{"text_format":"1","workbook":"xlsx","n_sheets":63,"sheets":["New Feedstock","Title","Label","DB_Prop_Translation","Database_Prop","Start","Biogas Use Selection","Biogas Process Description","Data entry needs","Planner_PS1","Planner_PS2","Planner_PS3","Planner_PS4","COST_PS1","PRICE_FS1_PS1","PRICE_FS2_PS1","PRICE_FS3_PS1","PRICE_FS4_PS1","PRICE_FS5_PS1","PRICE_FS6_PS1","FA_SIZE1_PS1","FA_SIZE2_PS1","FA_SIZE3_PS1","FA_SIZE4_PS1","COST(ADJUSTED)_PS1","COST_PS2","COST(ADJUSTED)_PS2","FA_SIZE1_PS2","FA_SIZE2_PS2","FA_SIZE3_PS2","FA_SIZE4_PS2","PRICE_FS1_PS2","PRICE_FS2_PS2","PRICE_FS3_PS2","PRICE_FS4_PS2","PRICE_FS5_PS2","PRICE_FS6_PS2","COST_PS3","COST(ADJUSTED)_PS3","FA_SIZE1_PS3","FA_SIZE2_PS3","FA_SIZE3_PS3","FA_SIZE4_PS3","PRICE_FS1_PS3","PRICE_FS2_PS3","PRICE_FS3_PS3","PRICE_FS4_PS3","PRICE_FS5_PS3","PRICE_FS6_PS3","COST_PS4","FA_SIZE1_PS4","FA_SIZE2_PS4","FA_SIZE3_PS4","FA_SIZE4_PS4","COST(ADJUSTED)_PS4","PRICE_FS1_PS4","PRICE_FS2_PS4","PRICE_FS3_PS4","PRICE_FS4_PS4","PRICE_FS5_PS4","PRICE_FS6_PS4","Summary of results-by feedstock","Summary of results-comparative"],"not_rendered":{"charts":37,"images":353,"macros":1,"external_links":0,"defined_names":1355,"comments":0,"pivot_tables":0},"unopened":[],"bounds":{"document_bytes":16777216,"sheet_cells":100000,"rows_first":2000,"rows_last":500,"rows_between":2000,"halvings":0,"cell_chars":16384,"cell_head_chars":4096},"cells_cut":0,"cells_raw":0,"read":"whole","date_system":"1900"}

{"sheet":"New Feedstock","index":0,"n_rows":337,"n_cols":68,"rows_kept":337,"cut":false,"hidden":true,"merged":[[1,62,1,67],[2,26,2,36],[2,38,2,48],[2,50,2,60]]}
[null,null,null,null,null,null,null,null,null,null,null,null,null,null,null,null,null,null,null,null,{"$f":"title426","v":"Method 1"},null,null,{"$f":"title428","v":"Method 2"}]
[null,null,null,null,null,null,null,null,null,null,"Elemental Analysis",null,null,null,null,null,null,null,null,null,"B",null,null,"B",null,null,null,null,null,null,null,null,null,null,null,null,null,null,null,null,null,null,null,null,null,null,null,null,null,null,null,null,null,null,null,null,null,null,null,null,null,null,"BIOGAS COMPOSITION METHOD 1"]
[null,"Type","Feedstock ID","TS (%)","VS (%)","Biogas Potential (m3/t VS)","Methane Content (%)",null,null,"C","H","O","N","S","PROTEIN (%)","CARBOHYDRATE (%)",{"$f":"UPPER(title658)&\" (%)\"","v":"ASH (%)"},"FAT (%)","DRY MATTER (%)","VS (%)","m3/t VS","CH4 (%)","LHV (MJ/m3)","m3/t VS","CH4 (%)","LHV (MJ/m3)","Number of moles",null,null,null,null,null,null,null,null,null,null,null,"emprirical formula",null,null,null,null,null,null,null,null,null,null,null,{"$f":"UPPER(title89)","v":"BIOGAS PRODUCTION"},null,null,null,null,null,null,null,null,null,null,null,null,"CO2","CH4","NH3","H2S","H2O"]
["New Feedstock ",null,null,0,0,0,0,null,null,null,null,null,null,null,null,null,null,null,null,{"$f":"$G$4","v":0},{"$f":"IFERROR(A_*22.415*$T4/(12*A_+B_+16*C_+14*D_)*1000,0)","v":0},{"$f":"IFERROR($BM4,0)","v":0},{"$f":"0.359*V4-0.024","v":-2.4E-2},{"$f":"IFERROR(($R4*$O$14+$O4*$O$15+$P4*$O$16),0)","v":0},{"$f":"IFERROR(($R4*$P$14+$O4*$P$15+$P4*$P$16)/100,0)","v":0},{"$f":"0.359*Y4-0.024","v":-2.4E-2},{"$f":"$C4","v":0},"C",{"$f":"J4/CARBON","v":0},"H",{"$f":"K4/HYDROGEN","v":0},"O",{"$f":"L4/OXYGEN","v":0},"N",{"$f":"M4/NITROGEN","v":0},"S",{"$f":"N4/SULFUR","v":0},null,{"$f":"$C4","v":0},"C",{"$f":"AC4/AI4","v":{"$error":"#DIV/0!"}},"H",{"$f":"+AE4/AI4","v":{"$error":"#DIV/0!"}},"O",{"$f":"+AG4/AI4","v":{"$error":"#DIV/0!"}},"N",{"$f":"+AI4/AI4","v":{"$error":"#DIV/0!"}},"S",{"$f":"+AK4/AI4","v":{"$error":"#DIV/0!"}},null,{"$f":"$C4","v":0},"F CO2",{"$f":"ABS(((A_/2)-(B_/8)+(C_/4)+(3*D_/B_)+(E_/4)))","v":{"$error":"#DIV/0!"}},"F CH4",{"$f":"ABS((A_/2)+(B_/8)-(C_/4)-(3*D_/8)-(E_/4))","v":{"$error":"#DIV/0!"}},"F NH3",{"$f":"+AU4","v":{"$error":"#DIV/0!"}},"F H2S",{"$f":"+E_","v":{"$error":"#DIV/0!"}},"F H2O",{"$f":"ABS(0.2*(A_-(B_/4)-(C_/2)-(3*D_/4)+(E_/2)))","v":{"$error":"#DIV/0!"}},null,{"$f":"$C4","v":0},{"$f":"$BA4/SUM($BA4:$BI4)","v":{"$error":"#DIV/0!"}},{"$f":"$BC4/SUM($BA4:$BI4)","v":{"$error":"#DIV/0!"}},{"$f":"$BE4/SUM($BA4:$BI4)","v":{"$error":"#DIV/0!"}},{"$f":"$BG4/SUM($BA4:$BI4)","v":{"$error":"#DIV/0!"}},{"$f":"$BI4/SUM($BA4:$BI4)","v":{"$error":"#DIV/0!"}}]
[null,"Type","Feedstock ID","COD in Wastewater (g/l)","Biogas Potential (m3/t COD removed)","Methane Content","COD degradability (%)"]
[{"$f":"title192","v":"Wastewater"},{"$f":"A6","v":"Wastewater"},"My Restaurant Wastewater",50,350,0.68,0.8]
[null,null,null,null,null,null,null,null,null,null,null,null,null,"Atomic Mass"]
[null,null,null,null,null,null,null,null,null,null,null,null,null,"C",12.0107]
[null,null,null,null,null,null,null,null,null,null,null,null,null,"H",1.0079400000000001]
[null,null,null,null,null,null,null,null,null,null,null,null,null,"O",15.9994]
[null,null,null,null,null,null,null,null,null,null,null,null,null,"N",14.0067]
[null,null,null,null,null,null,null,null,null,null,null,null,null,"S",32.064999999999998]
[null,null,null,null,null,null,null,null,null,null,null,null,null,"DATA","Yield (M3/TS)","CH4 (%)"]
[null,null,null,null,null,null,null,null,null,null,null,null,null,"FATS",1390,69]
[null,null,null,null,null,null,null,null,null,null,null,null,null,"PROTEINS",650,78]
[null,null,null,null,null,null,null,null,null,null,null,null,null,"CARBOHYDRATE",850,50]
[]
[]
["Size Caluclator"]
[{"$f":"title74","v":"Please Select"},{"$f":"title671","v":"m3 Methane/day"},"kWe",{"$f":"title260","v":"m3 Biogas/day"}]
[{"$f":"title671","v":"m3 Methane/day"},1,{"$f":"1/(10*30%/24)","v":8},{"$f":"0.6","v":0.6},null,1]
["kWe",{"$f":"1/(24/10/30%)","v":0.125},1,{"$f":"1/(24/10/30%/60%)","v":7.4999999999999997E-2},null,2]
[{"$f":"title260","v":"m3 Biogas/day"},{"$f":"1/0.6","v":1.6666666666666667},{"$f":"1/(10*30%*60%/24)","v":13.333333333333334},1,null,3]
[]
[]
[null,{"$f":"title248&\" 1\"","v":"Size 1"},{"$f":"title248&\" 2\"","v":"Size 2"},{"$f":"title248&\" 3\"","v":"Size 3"},{"$f":"title248&\" 4\"","v":"Size 4"},{"$f":"title64","v":"Selection"},"kWe","Min",100]
[{"$f":"title671","v":"m3 Methane/day"},{"$f":"IF($G$28=1,B32,B37)","v":800},{"$f":"IF($G$28=1,C32,C37)","v":140},{"$f":"IF($G$28=1,D32,D37)","v":220},{"$f":"IF($G$28=1,E32,E37)","v":960},"Column",{"$f":"IF($G$26=title671,COLUMN($B$20),IF($G$26=\"kWe\",COLUMN($C$20),IF($G$26=$D$20,COLUMN($D$20),0)))","v":3},"Max",120]
["kWe",{"$f":"IF($G$28=1,B33,B38)","v":100},105,115,120,"Selector",2]
[{"$f":"title260","v":"m3 Biogas/day"},1333,167,300,1600]
[]
["Default","Size1","Size2","Size3","Size4"]
[{"$f":"title671","v":"m3 Methane/day"},2000,8000,80000,400000]
["kW",250,1000,10000,50000]
[{"$f":"title260","v":"m3 Biogas/day"},{"$f":"B32/0.6","v":3333.3333333333335},{"$f":"C32/0.6","v":13333.333333333334},{"$f":"D32/0.6","v":133333.33333333334},{"$f":"E32/0.6","v":666666.66666666674}]
[null,0,25,75,100]
["Calculated",{"$f":"title248&\" 1\"","v":"Size 1"},{"$f":"title248&\" 2\"","v":"Size 2"},{"$f":"title248&\" 3\"","v":"Size 3"},{"$f":"title248&\" 4\"","v":"Size 4"}]
[{"$f":"title671","v":"m3 Methane/day"},{"$f":"ROUND(VLOOKUP($A37,$A$20:$D$23,$G$27,FALSE)*$I$26,0)","v":800},{"$f":"ROUND(VLOOKUP($A37,$A$20:$D$23,$G$27,FALSE)*(C$35-$B$35)*($I$27-$I$26)/($E$35-$B$35)+$I$26,0)","v":140},{"$f":"ROUND(VLOOKUP($A37,$A$20:$D$23,$G$27,FALSE)*(D$35-$B$35)*($I$27-$I$26)/($E$35-$B$35)+$I$26,0)","v":220},{"$f":"ROUND(VLOOKUP($A37,$A$20:$D$23,$G$27,FALSE)*$I$27,0)","v":960}]
["kWe",{"$f":"ROUND(VLOOKUP($A38,$A$20:$D$23,$G$27,FALSE)*$I$26,0)","v":100},{"$f":"ROUND(VLOOKUP($A38,$A$20:$D$23,$G$27,FALSE)*(C$35-$B$35)*($I$27-$I$26)/($E$35-$B$35)+$I$26,0)","v":105},115,{"$f":"ROUND(VLOOKUP($A38,$A$20:$D$23,$G$27,FALSE)*$I$27,0)","v":120}]
[{"$f":"title260","v":"m3 Biogas/day"},{"$f":"ROUND(VLOOKUP($A39,$A$20:$D$23,$G$27,FALSE)*$I$26,0)","v":1333},167,300,{"$f":"ROUND(VLOOKUP($A39,$A$20:$D$23,$G$27,FALSE)*$I$27,0)","v":1600}]
[]
[]
[]
[]
[]
[]
[]
[]
[]
[]
[]
[]
[]
[]
[]
[]
[]
[]
[]
[]
[]
[]
[]
[]
[]
[]
[]
[]
[]
[]
[]
[]
[]
[]
[]
[]
[]
[]
[]
[]
[]
[]
[]
[]
[]
[]
[]
[]
[]
[]
[]
[]
[]
[]
[]
[]
[]
[]
[]
[]
[]
[]
[]
[]
[]
[]
[]
[]
[]
[]
[]
[]
[]
[]
[]
[]
[]
[]
[]
[]
[]
[]
[]
[]
[]
[]
[]
[]
[]
[]
[]
[]
[]
[]
[]
[]
[]
[]
[]
[]
[]
[]
[]
[]
[]
[]
[]
[]
[]
[]
[]
[]
[]
[]
[]
[]
[]
[]
[]
[]
[]
[]
[]
[]
[]
[]
[]
[]
[]
[]
[]
[]
[]
[]
[]
[]
[]
[]
[]
[]
[]
[]
[]
[]
[]
[]
[]
[]
[]
[]
[]
[]
[]
[]
[]
[]
[]
[]
[]
[]
[]
[]
[]
[]
[]
[]
[]
[]
[]
[]
[]
[]
[]
[]
[]
[]
[]
[]
[]
[]
[]
[]
[]
[]
[]
[]
[]
[]
[]
[]
[]
[]
[]
[]
[]
[]
[]
[]
[]
[]
[]
[]
[]
[]
[]
[]
[]
[]
[]
[]
[]
[]
[]
[]
[]
[]
[]
[]
[]
[]
[]
[]
[]
[]
[]
[]
[]
[]
[]
[]
[]
[]
[]
[]
[]
[]
[]
[]
[]
[]
[]
[]
[]
[]
[]
[]
[]
[]
[]
[]
[]
[]
[]
[]
[]
[]
[]
[]
[]
[]
[]
[]
[]
[]
[]
[]
[]
[]
[]
[]
[]
[]
[]
[]
[]
[]
[]
[]
[]
[]
[]
[]
[]
[]
[]
[]
[]
[]
[]
[]
[]
[]
[]
[]
[]
[]
[]
["aa"]

{"sheet":"Title","index":1,"n_rows":791,"n_cols":15,"rows_kept":791,"cut":false,"hidden":true,"merged":[]}
[]
[null,"Selection",{"$f":"VLOOKUP(Start!C9,$A$3:$C$5,3,FALSE)","v":1}]
["EN","English",1]
["FR","French",2]
["ES","Spanish",3]
[]
["ID","English","French","Spanish","Typeof","Ref","Name"]
[1,1,2,3]
[2,"RAPID APPRAISAL TOOL FOR BIOGAS PRODUCTION INDUSTRIAL SCALE","OUTIL D'ÉVALUATION RAPIDE POUR LA PRODUCTION INDUSTRIELLE DE BIOGAZ","HERRAMIENTA DE EVALUACIÓN RÁPIDA PARA LA PRODUCCIÓN DE BIOGÁS A ESCALA INDUSTRIAL","title",{"$f":"HLOOKUP($C$2,$B$8:$D9,$A9,FALSE)","v":"RAPID APPRAISAL TOOL FOR BIOGAS PRODUCTION INDUSTRIAL SCALE"},{"$f":"$E9&$A9","v":"title2"}]
[3,"Disclaimer ","Déni de responsabilité ","Descargo de Responsabilidad ","title",{"$f":"HLOOKUP($C$2,$B$8:$D10,$A10,FALSE)","v":"Disclaimer "},"title3"]
[4,"FAO declines all responsibility for errors or deficiencies in the database or software or in the documentation accompanying it, for program maintenance and upgrading as well as for any damage that may arise from them.  FAO also declines any responsibility for updating the data and assumes no responsibility for errors and omissions in the data provided. Users are, however, kindly asked to report any errors or deficiencies in this product to FAO.  The choices of calculation made in this tool are those of the author(s) and do not necessarily reflect the views and choices of the Food and Agriculture Organization of the United Nations.","La FAO décline toute responsabilité quant aux erreurs ou défauts des textes du présent site et des bases de données y afférentes, ainsi que pour les dommages pouvant en résulter. La FAO décline également toute responsabilité quant à la mise à jour des données et se dégage de toute responsabilité quant aux erreurs ou omissions concernant les données fournies. Les utilisateurs sont toutefois invités à signaler toute erreur ou lacune de ce produit à la FAO. Les choix  des calculs faits  dans le présent outil sont celles du/des auteur(s) et ne reflètent pas nécessairement les choix et opinions de l’Organisation des Nations Unies pour l’alimentation et l’agriculture (FAO).","La FAO declina cualquier responsabilidad por errores u otros defectos del banco de datos, programa o de la documentación que los acompaña, o por cualquier daño derivado de ellos, así como por el mantenimiento y el mejoramiento de los programas. La FAO declina asimismo cualquier responsabilidad por la actualización de los datos, o por errores u omisiones en los datos que se han proporcionado. Se pide no obstante a los usuarios que señalen eventuales errores o defectos de este producto a la FAO. La elección de los cálculos presente en esta herramienta son las del/de los autor(es) y no reflejan necesariamente  las opiniones y elecciones de la Organización de las Naciones Unidas para la Agricultura y la Alimentación.","title",{"$f":"HLOOKUP($C$2,$B$8:$D11,$A11,FALSE)","v":"FAO declines all responsibility for errors or deficiencies in the database or software or in the documentation accompanying it, for program maintenance and upgrading as well as for any damage that may arise from them.  FAO also declines any responsibility for updating the data and assumes no responsibility for errors and omissions in the data provided. Users are, however, kindly asked to report any errors or deficiencies in this product to FAO.  The choices of calculation made in this tool are those of the author(s) and do not necessarily reflect the views and choices of the Food and Agriculture Organization of the United Nations."},"title4"]
[5,"FINAL USE OF BIOGAS SELECTOR","SELECTEUR D'UTILISATEUR FINAL DU BIOGAZ","SELECCION DEL USO FINAL DEL BIOGAS","title",{"$f":"HLOOKUP($C$2,$B$8:$D12,$A12,FALSE)","v":"FINAL USE OF BIOGAS SELECTOR"},"title5"]
[6,"Select a final use for biogas produced","Sélectionner un utilisateur final pour le biogaz produit","Seleccionar el uso final para el biogás producido","title",{"$f":"HLOOKUP($C$2,$B$8:$D13,$A13,FALSE)","v":"Select a final use for biogas produced"},"title6"]
[7,"Option 1: Heat and Electricity","Option1: Chaleur et Électricité","Opción 1: Calor y Electricidad","title",{"$f":"HLOOKUP($C$2,$B$8:$D14,$A14,FALSE)","v":"Option 1: Heat and Electricity"},"title7"]
[8,"Heat Consumption per Household","Consommation de chaleur par ménage","Consumo de calor por hogar","title",{"$f":"HLOOKUP($C$2,$B$8:$D15,$A15,FALSE)","v":"Heat Consumption per Household"},"title8"]
[9,"Briquettes (kg)","Briquette (kg)","Briquetas (kg)","title",{"$f":"HLOOKUP($C$2,$B$8:$D16,$A16,FALSE)","v":"Briquettes (kg)"},"title9"]
[10,"Pellets (kg)","Granulés de bois (kg)","Pellets (kg)","title",{"$f":"HLOOKUP($C$2,$B$8:$D17,$A17,FALSE)","v":"Pellets (kg)"},"title10"]
[11,"Charcoal (kg)","Charbon de bois (kg)","Carbón vegetal (kg)","title",{"$f":"HLOOKUP($C$2,$B$8:$D18,$A18,FALSE)","v":"Charcoal (kg)"},"title11"]
[12,"Coal (kg)","Charbon (kg)","Carbón (kg)","title",{"$f":"HLOOKUP($C$2,$B$8:$D19,$A19,FALSE)","v":"Coal (kg)"},"title12"]
[13,"Fuelwood (kg)","Bois-Energie (kg)","Madera combustible (kg)","title",{"$f":"HLOOKUP($C$2,$B$8:$D20,$A20,FALSE)","v":"Fuelwood (kg)"},"title13"]
[14,"Kerosene (l)","Kérosène (l)","Kerosén (l)","title",{"$f":"HLOOKUP($C$2,$B$8:$D21,$A21,FALSE)","v":"Kerosene (l)"},"title14"]
[15,"LPG (l)","GPL (l)","Gas de baja presión (l)","title",{"$f":"HLOOKUP($C$2,$B$8:$D22,$A22,FALSE)","v":"LPG (l)"},"title15"]
[16,"Natural Gas (m3)","Gaz Naturel (m3)","Gas Natural (m3)","title",{"$f":"HLOOKUP($C$2,$B$8:$D23,$A23,FALSE)","v":"Natural Gas (m3)"},"title16"]
[17,"Price","Prix","Precio","title",{"$f":"HLOOKUP($C$2,$B$8:$D24,$A24,FALSE)","v":"Price"},"title17"]
[18,"Consumption","Consommation","Consumo","title",{"$f":"HLOOKUP($C$2,$B$8:$D25,$A25,FALSE)","v":"Consumption"},"title18"]
[19,"USD/unit/hh","USD/unité/ménage","USD/unidad/hh","title",{"$f":"HLOOKUP($C$2,$B$8:$D26,$A26,FALSE)","v":"USD/unit/hh"},"title19"]
[20,"unit/day/hh","unité/jour/ménage","unidad/día/hh","title",{"$f":"HLOOKUP($C$2,$B$8:$D27,$A27,FALSE)","v":"unit/day/hh"},"title20"]
[21,"unit/year/hh","unité/an/ménage","unidad/año/hh","title",{"$f":"HLOOKUP($C$2,$B$8:$D28,$A28,FALSE)","v":"unit/year/hh"},"title21"]
[22,"Heat (GJ)","Chaleur (GJ)","Calor (GJ)","title",{"$f":"HLOOKUP($C$2,$B$8:$D29,$A29,FALSE)","v":"Heat (GJ)"},"title22"]
[23,"Electricity (kWh)","Électricité (kWh)","Electricidad (kWh)","title",{"$f":"HLOOKUP($C$2,$B$8:$D30,$A30,FALSE)","v":"Electricity (kWh)"},"title23"]
[24,"USD/unit","USD/unité","USD/unidad","title",{"$f":"HLOOKUP($C$2,$B$8:$D31,$A31,FALSE)","v":"USD/unit"},"title24"]
[25,"unit/year/ind","unité/an/ind","unidad/año/ind","title",{"$f":"HLOOKUP($C$2,$B$8:$D32,$A32,FALSE)","v":"unit/year/ind"},"title25"]
[26,"Energy Consumption per Industry","Consommation d'énergie par secteur","Consumo de energía por industria","title",{"$f":"HLOOKUP($C$2,$B$8:$D33,$A33,FALSE)","v":"Energy Consumption per Industry"},"title26"]
[27,"Unit","Unité","Unidad","title",{"$f":"HLOOKUP($C$2,$B$8:$D34,$A34,FALSE)","v":"Unit"},"title27"]
[28,"Electricity Consumption per Household","Consommation d'électricité par Ménage","Consumo de Electricidad por Hogar","title",{"$f":"HLOOKUP($C$2,$B$8:$D35,$A35,FALSE)","v":"Electricity Consumption per Household"},"title28"]
[29,"unit/month/hh","unité/mois/ménage","unidad/mes/hh","title",{"$f":"HLOOKUP($C$2,$B$8:$D36,$A36,FALSE)","v":"unit/month/hh"},"title29"]
[30,"Option 2: Heating and/or cooking","Option 2: Chauffage et/ou cuisson","Opción 2: Calor y/o la Cocina","title",{"$f":"HLOOKUP($C$2,$B$8:$D37,$A37,FALSE)","v":"Option 2: Heating and/or cooking"},"title30"]
[31,"Heat Consumption per Industry","Consommation de chaleur par secteur","Consumo de calor por industria","title",{"$f":"HLOOKUP($C$2,$B$8:$D38,$A38,FALSE)","v":"Heat Consumption per Industry"},"title31"]
[32,"GJ/year/ind","GJ/an/ind","GJ/año/ind","title",{"$f":"HLOOKUP($C$2,$B$8:$D39,$A39,FALSE)","v":"GJ/year/ind"},"title32"]
[33,"Include Biogas Distribution","Inclure la distribution de biogaz","Incluir la distribucion del biogás","title",{"$f":"HLOOKUP($C$2,$B$8:$D40,$A40,FALSE)","v":"Include Biogas Distribution"},"title33"]
[34,"Option 3: Electricity Only","Option 3: Électricité Seulement","Opción3: Solo Electricidad","title",{"$f":"HLOOKUP($C$2,$B$8:$D41,$A41,FALSE)","v":"Option 3: Electricity Only"},"title34"]
[35,"Electricity","Électricité","Electricidad","title",{"$f":"HLOOKUP($C$2,$B$8:$D42,$A42,FALSE)","v":"Electricity"},"title35"]
[36,"kWh/month/hh","kWh/mois/ménage","kWh/mes/hh","title",{"$f":"HLOOKUP($C$2,$B$8:$D43,$A43,FALSE)","v":"kWh/month/hh"},"title36"]
[37,"kWh/year/hh","kWh/an/ménage","kWh/año/hh","title",{"$f":"HLOOKUP($C$2,$B$8:$D44,$A44,FALSE)","v":"kWh/year/hh"},"title37"]
[38,"Electricity Consumption per Industry","Consommation d'électricité par secteur","Consumo de electricidad por industria","title",{"$f":"HLOOKUP($C$2,$B$8:$D45,$A45,FALSE)","v":"Electricity Consumption per Industry"},"title38"]
[39,"kWh/year/ind","kWh/an/ind","kWh/año/ind","title",{"$f":"HLOOKUP($C$2,$B$8:$D46,$A46,FALSE)","v":"kWh/year/ind"},"title39"]
[40,"Option 4: Connection to natural gas line","Option 4 : injection dans le réseau de gaz naturel","Opción 4: Conexion a la línea de gas natural","title",{"$f":"HLOOKUP($C$2,$B$8:$D47,$A47,FALSE)","v":"Option 4: Connection to natural gas line"},"title40"]
[41,"Natural Gas Consumption per Household","Consommation de gaz naturel par ménage","Consumo de gas natural por hogar","title",{"$f":"HLOOKUP($C$2,$B$8:$D48,$A48,FALSE)","v":"Natural Gas Consumption per Household"},"title41"]
[42,"m3/day/hh","m3/jour/ménage","m3/día/hh","title",{"$f":"HLOOKUP($C$2,$B$8:$D49,$A49,FALSE)","v":"m3/day/hh"},"title42"]
[43,"m3/year/hh","m3/an/ménage","m3/año/hh","title",{"$f":"HLOOKUP($C$2,$B$8:$D50,$A50,FALSE)","v":"m3/year/hh"},"title43"]
[44,"Include biomethane transportation to connection point","Inclure le transport du méthane au point d'injection","Incluir el transporte de biometano al punto de conexión","title",{"$f":"HLOOKUP($C$2,$B$8:$D51,$A51,FALSE)","v":"Include biomethane transportation to connection point"},"title44"]
[45,"Distance biogas plant to connection point (km)","Distance entre le site de production et le point d'injection (km)","Distancia de la planta de biogás al punto de conexión","title",{"$f":"HLOOKUP($C$2,$B$8:$D52,$A52,FALSE)","v":"Distance biogas plant to connection point (km)"},"title45"]
[46,"Natural Gas Consumption per Industry","Consommation de Gaz naturel par secteur","Consumo de gas natural por industria","title",{"$f":"HLOOKUP($C$2,$B$8:$D53,$A53,FALSE)","v":"Natural Gas Consumption per Industry"},"title46"]
[47,"Natural Gas","Gaz Naturel","Gas Natural","title",{"$f":"HLOOKUP($C$2,$B$8:$D54,$A54,FALSE)","v":"Natural Gas"},"title47"]
[48,"m3/year/ind","m3/an/ind","m3/año/ind","title",{"$f":"HLOOKUP($C$2,$B$8:$D55,$A55,FALSE)","v":"m3/year/ind"},"title48"]
[49,"MJ/year/hh","MJ/an/ménage","MJ/año/hh","title",{"$f":"HLOOKUP($C$2,$B$8:$D56,$A56,FALSE)","v":"MJ/year/hh"},"title49"]
[50,"USD/year/hh","USD/an/ménage","USD/año/hh","title",{"$f":"HLOOKUP($C$2,$B$8:$D57,$A57,FALSE)","v":"USD/year/hh"},"title50"]
[51,"Heat","Chaleur","Calor","title",{"$f":"HLOOKUP($C$2,$B$8:$D58,$A58,FALSE)","v":"Heat"},"title51"]
[52,"Households","Ménages","Hogares","title",{"$f":"HLOOKUP($C$2,$B$8:$D59,$A59,FALSE)","v":"Households"},"title52"]
[53,"Expenditure Heat","Dépense de Chaleur","Gasto Calor","title",{"$f":"HLOOKUP($C$2,$B$8:$D60,$A60,FALSE)","v":"Expenditure Heat"},"title53"]
[54,"Expenditure Electricity","Dépense d'Électricité","Gasto Electricidad","title",{"$f":"HLOOKUP($C$2,$B$8:$D61,$A61,FALSE)","v":"Expenditure Electricity"},"title54"]
[55,"Industries","Industries","Industrias","title",{"$f":"HLOOKUP($C$2,$B$8:$D62,$A62,FALSE)","v":"Industries"},"title55"]
[56,"Expenditure","Dépense","Gasto","title",{"$f":"HLOOKUP($C$2,$B$8:$D63,$A63,FALSE)","v":"Expenditure"},"title56"]
[57,"m3 biogas","m3 biogaz","m3 biogás","title",{"$f":"HLOOKUP($C$2,$B$8:$D64,$A64,FALSE)","v":"m3 biogas"},"title57"]
[58,"unit fuel/m3 biogas","Unité de carburant/m3 de biogaz","unidad de combustible/m3 de biogás","title",{"$f":"HLOOKUP($C$2,$B$8:$D65,$A65,FALSE)","v":"unit fuel/m3 biogas"},"title58"]
[59,"m3 biogas/year/hh","m3 biogaz/an/ménage","m3 biogás/año/hh","title",{"$f":"HLOOKUP($C$2,$B$8:$D66,$A66,FALSE)","v":"m3 biogas/year/hh"},"title59"]
[60,"Heat (MJ)","Chaleur (MJ)","Calor (MJ)","title",{"$f":"HLOOKUP($C$2,$B$8:$D67,$A67,FALSE)","v":"Heat (MJ)"},"title60"]
[61,"Industrial","Industriel","Industrial","title",{"$f":"HLOOKUP($C$2,$B$8:$D68,$A68,FALSE)","v":"Industrial"},"title61"]
[62,"m3 biogas/day/ind","m3 biogaz/jour/ind","m3 biogás/día/ind","title",{"$f":"HLOOKUP($C$2,$B$8:$D69,$A69,FALSE)","v":"m3 biogas/day/ind"},"title62"]
[63,"m3 biogas/year/ind","m3 biogaz/an/ind","m3 biogás/año/ind","title",{"$f":"HLOOKUP($C$2,$B$8:$D70,$A70,FALSE)","v":"m3 biogas/year/ind"},"title63"]
[64,"Selection","Sélection","Selección","title",{"$f":"HLOOKUP($C$2,$B$8:$D71,$A71,FALSE)","v":"Selection"},"title64"]
[65,"Heat and Electricity","Chauffage et Électricité","Calor y electricidad","title",{"$f":"HLOOKUP($C$2,$B$8:$D72,$A72,FALSE)","v":"Heat and Electricity"},"title65"]
[66,"Heating and/or Cooking","Chauffage et/ou Cuisson","Calefacción y/o Cocinar","title",{"$f":"HLOOKUP($C$2,$B$8:$D73,$A73,FALSE)","v":"Heating and/or Cooking"},{"$f":"$E73&$A73","v":"title66"}]
[67,"Electricity Only","Électricité Seulement","Solo electricidad","title",{"$f":"HLOOKUP($C$2,$B$8:$D74,$A74,FALSE)","v":"Electricity Only"},"title67"]
[68,"Connection to natural gas line","Connection au gazoduc","Conexión a la línea de gas natural","title",{"$f":"HLOOKUP($C$2,$B$8:$D75,$A75,FALSE)","v":"Connection to natural gas line"},"title68"]
[69,"Injection Fuel Grid","Injection dans le réseau","Inyección a la red de combustible","title",{"$f":"HLOOKUP($C$2,$B$8:$D76,$A76,FALSE)","v":"Injection Fuel Grid"},"title69"]
[70,"m3 methane/year/hh","m3 méthane/an/ménage","m3 metano/año/hogar","title",{"$f":"HLOOKUP($C$2,$B$8:$D77,$A77,FALSE)","v":"m3 methane/year/hh"},"title70"]
[71,"Expenditure (USD/YEAR/HH)","Dépense (USD/AN/MÉNAGE)","Gasto (USD/AÑO/Hogar)","title",{"$f":"HLOOKUP($C$2,$B$8:$D78,$A78,FALSE)","v":"Expenditure (USD/YEAR/HH)"},"title71"]
[72,"m3 methane/year/ind","m3 méthane/an/ind","m3 metano/año/ind","title",{"$f":"HLOOKUP($C$2,$B$8:$D79,$A79,FALSE)","v":"m3 methane/year/ind"},"title72"]
[73,"Expernditure (USD/YEAR/ind)","Dépense (USD/AN/IND)","Gasto (USD/AÑO/IND)","title",{"$f":"HLOOKUP($C$2,$B$8:$D80,$A80,FALSE)","v":"Expernditure (USD/YEAR/ind)"},"title73"]
[74,"Please Select","Sélectionnez","Seleccione","title",{"$f":"HLOOKUP($C$2,$B$8:$D81,$A81,FALSE)","v":"Please Select"},"title74"]
[75,"Yes","Oui","Sí","title",{"$f":"HLOOKUP($C$2,$B$8:$D82,$A82,FALSE)","v":"Yes"},"title75"]
[76,"Fuel","Carburant","Combustible","title",{"$f":"HLOOKUP($C$2,$B$8:$D83,$A83,FALSE)","v":"Fuel"},"title76"]
[77,"CV (MJ/unit)","CV (MJ/unité)","Poder Calorífico (MJ/unidad)","title",{"$f":"HLOOKUP($C$2,$B$8:$D84,$A84,FALSE)","v":"CV (MJ/unit)"},"title77"]
[78,"Unit/m3 BIOGAS","Unité/m3 BIOGAZ","Unidad/m3 BIOGÁS","title",{"$f":"HLOOKUP($C$2,$B$8:$D85,$A85,FALSE)","v":"Unit/m3 BIOGAS"},"title78"]
[79,"Biogas (m3)","Biogaz (m3)","Biogás (m3)","title",{"$f":"HLOOKUP($C$2,$B$8:$D86,$A86,FALSE)","v":"Biogas (m3)"},"title79"]
[80,"Biogas Density","Densité du biogaz","Densidad del biogás","title",{"$f":"HLOOKUP($C$2,$B$8:$D87,$A87,FALSE)","v":"Biogas Density"},"title80"]
[81,"Kg biogas/m3","Kg biogaz/m3","Kg biogás/m3","title",{"$f":"HLOOKUP($C$2,$B$8:$D88,$A88,FALSE)","v":"Kg biogas/m3"},"title81"]
[82,"Final Use Selected : ","Utilisateur final selectionné","Uso final seleccionado :","title",{"$f":"HLOOKUP($C$2,$B$8:$D89,$A89,FALSE)","v":"Final Use Selected : "},"title82"]
[83,"Biogas","Biogaz","Biogás","title",{"$f":"HLOOKUP($C$2,$B$8:$D90,$A90,FALSE)","v":"Biogas"},"title83"]
[84,"Manure","Fumier","Estiércol","title",{"$f":"HLOOKUP($C$2,$B$8:$D91,$A91,FALSE)","v":"Manure"},"title84"]
[85,"Crop Residues","Résidus de cultures","Residuos de cultivos","title",{"$f":"HLOOKUP($C$2,$B$8:$D92,$A92,FALSE)","v":"Crop Residues"},"title85"]
[86,"Biomass collection & transportation","Collecte & transport de biomasse","Recolección & Transporte de Residuos de Biomasa","title",{"$f":"HLOOKUP($C$2,$B$8:$D93,$A93,FALSE)","v":"Biomass collection & transportation"},"title86"]
[87,"Feedstock storage","Stockage des intrants","Almacenamiento de la materia prima","title",{"$f":"HLOOKUP($C$2,$B$8:$D94,$A94,FALSE)","v":"Feedstock storage"},"title87"]
[88,"Feedstock Pretreatment","Pré-traitement des intrants","Pre-tratado de la materia prima","title",{"$f":"HLOOKUP($C$2,$B$8:$D95,$A95,FALSE)","v":"Feedstock Pretreatment"},"title88"]
[89,"Biogas Production","Production de Biogaz","Producción de biogás","title",{"$f":"HLOOKUP($C$2,$B$8:$D96,$A96,FALSE)","v":"Biogas Production"},"title89"]
[90,"Connection to Natural Gas Pipeline","Connection au Gazoduc","Conexión a la línea de gas natural","title",{"$f":"HLOOKUP($C$2,$B$8:$D97,$A97,FALSE)","v":"Connection to Natural Gas Pipeline"},"title90"]
[91,"Upgrade System","Améliorer le système","Mejorar el sistema","title",{"$f":"HLOOKUP($C$2,$B$8:$D98,$A98,FALSE)","v":"Upgrade System"},"title91"]
[92,"Biomethane","Biométhane","Biometano","title",{"$f":"HLOOKUP($C$2,$B$8:$D99,$A99,FALSE)","v":"Biomethane"},"title92"]
[93,"Food Processing Residues","Résidus de transformation des aliments","Residuos del procesamiento de alimentos","title",{"$f":"HLOOKUP($C$2,$B$8:$D100,$A100,FALSE)","v":"Food Processing Residues"},"title93"]
[94,"Waste Waters","Eaux usées","Aguas residuales","title",{"$f":"HLOOKUP($C$2,$B$8:$D101,$A101,FALSE)","v":"Waste Waters"},"title94"]
[95,"DATA ENTRY FOR BIOGAS PRODUCTION - INDUSTRIAL SCALE","ENTRER LES DONNÉES POUR LA PRODUCTION DE BIOGAZ A ÉCHELLE INDUSTRIELLE","INGRESO DE DATOS PARA LA PRODUCCION DE BIOGAS - ESCALA INDUSTRIAL","title",{"$f":"HLOOKUP($C$2,$B$8:$D102,$A102,FALSE)","v":"DATA ENTRY FOR BIOGAS PRODUCTION - INDUSTRIAL SCALE"},"title95"]
[96,"Processes to analyze and Operation Mode Selection","Traitements à analyser et Sélection d'un Mode Opératoire","Procesos a analizar y selección del Modo de Operación","title",{"$f":"HLOOKUP($C$2,$B$8:$D103,$A103,FALSE)","v":"Processes to analyze and Operation Mode Selection"},"title96"]
[97,"Include processes to compare","Inclure les traitements à comparer","Incluir los procesos a comparar","title",{"$f":"HLOOKUP($C$2,$B$8:$D104,$A104,FALSE)","v":"Include processes to compare"},"title97"]
[98,"Process","Traitement","Procedimiento","title",{"$f":"HLOOKUP($C$2,$B$8:$D105,$A105,FALSE)","v":"Process"},"title98"]
[99,"Single Feedstock","Intrant unique","Materia prima única","title",{"$f":"HLOOKUP($C$2,$B$8:$D106,$A106,FALSE)","v":"Single Feedstock"},"title99"]
[100,"Multi-Feedstock","Intrants multiples","Múltiples paterias primas","title",{"$f":"HLOOKUP($C$2,$B$8:$D107,$A107,FALSE)","v":"Multi-Feedstock"},"title100"]
[101,"Optimized Co-digestion","Co-digestion optimisée","Co-digestión optimizada","title",{"$f":"HLOOKUP($C$2,$B$8:$D108,$A108,FALSE)","v":"Optimized Co-digestion"},"title101"]
[102,"One single feedstock is used throughout the year","Un seul intrant unique est utilisé tout au long de l'année","Una sola materia prima es utilizada durante todo el año","title",{"$f":"HLOOKUP($C$2,$B$8:$D109,$A109,FALSE)","v":"One single feedstock is used throughout the year"},"title102"]
[103,"Up to 5 feedstock options can be used throughout the year. But only one option can be allocated to each month.","Jusqu'à 5 options d'intrants peuvent êtres utilisées tout au long de l'année. Mais seule 1 option peut être attribuée à chaque mois.","Hasta cinco materias primas son utilizadas durante todo el año. Pero solo una puede ser asignada a cada mes","title",{"$f":"HLOOKUP($C$2,$B$8:$D110,$A110,FALSE)","v":"Up to 5 feedstock options can be used throughout the year. But only one option can be allocated to each month."},"title103"]
[104,"Up to 5 feedstock options can be used throughout the year, plus 1 main co-digestion feedstock. All combinations are accepted. Use of manure or wastewater as co-digestion feedstock is required.","Jusqu'à 5 options d'intrants peuvent êtres utilisées tout au long de l'année plus 1 intrant principal en co-digestion. Toutes les combinaisons sont acceptées. L'utilisation de fumier ou d'eaux usées en tant qu'intrant pour la co-digestion est requis.","Hasta cinco materias primas son utilizadas durante todo el año. Adicionalmente una materia prima para co-digestión. Todas las combinaciones son aceptadas. El uso de estiércol o aguas residuales como materia prima de codigestión es requerida.","title",{"$f":"HLOOKUP($C$2,$B$8:$D111,$A111,FALSE)","v":"Up to 5 feedstock options can be used throughout the year, plus 1 main co-digestion feedstock. All combinations are accepted. Use of manure or wastewater as co-digestion feedstock is required."},"title104"]
[105,"Operation Mode","Mode opératoire","Modo de Operación","title",{"$f":"HLOOKUP($C$2,$B$8:$D112,$A112,FALSE)","v":"Operation Mode"},"title105"]
[106,"Feedstock Availability and Cost","Disponibilité et Coût des Intrants","Disponibilidad y costo de la materia prima","title",{"$f":"HLOOKUP($C$2,$B$8:$D113,$A113,FALSE)","v":"Feedstock Availability and Cost"},"title106"]
[107,"Main Feedstocks","Intrants principaux","Materias primas principales","title",{"$f":"HLOOKUP($C$2,$B$8:$D114,$A114,FALSE)","v":"Main Feedstocks"},"title107"]
[108,"Main Category","Catégorie principale","Categorías principales","title",{"$f":"HLOOKUP($C$2,$B$8:$D115,$A115,FALSE)","v":"Main Category"},"title108"]
[109,"Feedstock","Intrants","Materia prima","title",{"$f":"HLOOKUP($C$2,$B$8:$D116,$A116,FALSE)","v":"Feedstock"},"title109"]
[110,"Feedstock Available (t/year)","Intrants disponibles (t/an)","Materia prima disponible (t/año)","title",{"$f":"HLOOKUP($C$2,$B$8:$D117,$A117,FALSE)","v":"Feedstock Available (t/year)"},"title110"]
[111,"Default values","Valeurs par défaut","Valores por defecto","title",{"$f":"HLOOKUP($C$2,$B$8:$D118,$A118,FALSE)","v":"Default values"},"title111"]
[112,"User defined","Défini par l'utilisateur","Definidos por el usuario","title",{"$f":"HLOOKUP($C$2,$B$8:$D119,$A119,FALSE)","v":"User defined"},"title112"]
[113,"Use Market Price","Utiliser le prix du marché","Usar el Valor de Mercado","title",{"$f":"HLOOKUP($C$2,$B$8:$D120,$A120,FALSE)","v":"Use Market Price"},"title113"]
[114,"Use Calculator","Utiliser le calculateur","Usar Calculadora","title",{"$f":"HLOOKUP($C$2,$B$8:$D121,$A121,FALSE)","v":"Use Calculator"},"title114"]
[115,"Price (USD/t)","Prix (USD/t)","Precio (USD/t)","title",{"$f":"HLOOKUP($C$2,$B$8:$D122,$A122,FALSE)","v":"Price (USD/t)"},"title115"]
[116,"Storage Cost (USD/t)","Coût du stockage (USD/t)","Costo de almacenamiento (USD/t)","title",{"$f":"HLOOKUP($C$2,$B$8:$D123,$A123,FALSE)","v":"Storage Cost (USD/t)"},"title116"]
[117,"Biogas potential","Potentiel de production du biogaz","Potencial de biogás","title",{"$f":"HLOOKUP($C$2,$B$8:$D124,$A124,FALSE)","v":"Biogas potential"},"title117"]
[118,"Feedstock Price","Prix des intrants","Precio de la Materia Prima","title",{"$f":"HLOOKUP($C$2,$B$8:$D125,$A125,FALSE)","v":"Feedstock Price"},"title118"]
[119,"Crops","Productions agricoles","Cultivos","title",{"$f":"HLOOKUP($C$2,$B$8:$D126,$A126,FALSE)","v":"Crops"},"title119"]
[120,"Energy Crops","Cultures énergétiques","Cultivos energéticos","title",{"$f":"HLOOKUP($C$2,$B$8:$D127,$A127,FALSE)","v":"Energy Crops"},"title120"]
[121,"Production Cost and Financial Parameters","Coût de Production et Paramètres Financiers","Costo de producción y parámetros financieros","title",{"$f":"HLOOKUP($C$2,$B$8:$D128,$A128,FALSE)","v":"Production Cost and Financial Parameters"},"title121"]
[122,"Utilities and other Raw Material","Charges et autres matières premières","Servicios básicos y otras materias primas","title",{"$f":"HLOOKUP($C$2,$B$8:$D129,$A129,FALSE)","v":"Utilities and other Raw Material"},"title122"]
[123,"Water","Eau","Agua","title",{"$f":"HLOOKUP($C$2,$B$8:$D130,$A130,FALSE)","v":"Water"},"title123"]
[124,"Caustic Soda (NaOH)","Soude caustique","Soda cáustica (NaOH)","title",{"$f":"HLOOKUP($C$2,$B$8:$D131,$A131,FALSE)","v":"Caustic Soda (NaOH)"},"title124"]
[125,"Labour","Main d’oeuvre","Mano de obra","title",{"$f":"HLOOKUP($C$2,$B$8:$D132,$A132,FALSE)","v":"Labour"},"title125"]
[126,"Skilled worker","Ouvrier qualifié","Trabajadores cualificados","title",{"$f":"HLOOKUP($C$2,$B$8:$D133,$A133,FALSE)","v":"Skilled worker"},"title126"]
[127,"Unskilled worker","Ouvrier non-qualifié","Trabajadores no cualificados","title",{"$f":"HLOOKUP($C$2,$B$8:$D134,$A134,FALSE)","v":"Unskilled worker"},"title127"]
[128,"USD/person-hour","USD/personne-heure","USD/persona-hora","title",{"$f":"HLOOKUP($C$2,$B$8:$D135,$A135,FALSE)","v":"USD/person-hour"},"title128"]
[129,"Feedstock collection","Collecte des intrants","Recolección de la materia prima","title",{"$f":"HLOOKUP($C$2,$B$8:$D136,$A136,FALSE)","v":"Feedstock collection"},"title129"]
[130,"Working hours per day (manual)","Heures de travail par jour (manuel)","Horas de trabajo por día (manual)","title",{"$f":"HLOOKUP($C$2,$B$8:$D137,$A137,FALSE)","v":"Working hours per day (manual)"},{"$f":"$E137&$A137","v":"title130"}]
[131,"Diesel price","Prix du Diesel","Precio del diésel","title",{"$f":"HLOOKUP($C$2,$B$8:$D138,$A138,FALSE)","v":"Diesel price"},"title131"]
[132,"h/day","h/jour","h/día","title",{"$f":"HLOOKUP($C$2,$B$8:$D139,$A139,FALSE)","v":"h/day"},"title132"]
[133,"Working hours per day (mechanized)","Heures de travail par jour (mécanisé )","Horas de trabajo por día (mecanizado)","title",{"$f":"HLOOKUP($C$2,$B$8:$D140,$A140,FALSE)","v":"Working hours per day (mechanized)"},"title133"]
[134,"Operating days per year","Jours de fonctionnement par an ","Días de operación por año","title",{"$f":"HLOOKUP($C$2,$B$8:$D141,$A141,FALSE)","v":"Operating days per year"},"title134"]
[135,"days/year","jours/an ","días/año","title",{"$f":"HLOOKUP($C$2,$B$8:$D142,$A142,FALSE)","v":"days/year"},"title135"]
[136,"Market Prices","Les Prix du Marché","Precios de Mercado","title",{"$f":"HLOOKUP($C$2,$B$8:$D143,$A143,FALSE)","v":"Market Prices"},"title136"]
[137,"Electricity Selling Price","Prix de Vente de l'Électricité","Precio de Venta de la Electricidad","title",{"$f":"HLOOKUP($C$2,$B$8:$D144,$A144,FALSE)","v":"Electricity Selling Price"},"title137"]
[138,"Heat Selling Price","Prix de Vente de la Chaleur","Precio de Venta de Calor","title",{"$f":"HLOOKUP($C$2,$B$8:$D145,$A145,FALSE)","v":"Heat Selling Price"},"title138"]
[139,"Biogas Selling Prince","Prix de Vente du Biogaz","Precio de Venta de Biogás","title",{"$f":"HLOOKUP($C$2,$B$8:$D146,$A146,FALSE)","v":"Biogas Selling Prince"},"title139"]
[140,"Natural Gas Selling Price","Prix de Vente du Gaz Naturel","Precio de venta de Gas Natural","title",{"$f":"HLOOKUP($C$2,$B$8:$D147,$A147,FALSE)","v":"Natural Gas Selling Price"},"title140"]
[141,"Digestate Market Price","Prix du Marché du Digestat","Precio de Mercado de Digestato","title",{"$f":"HLOOKUP($C$2,$B$8:$D148,$A148,FALSE)","v":"Digestate Market Price"},"title141"]
[142,"Operating parameters","Paramètres opérationnels","Parámetros de operación","title",{"$f":"HLOOKUP($C$2,$B$8:$D149,$A149,FALSE)","v":"Operating parameters"},"title142"]
[143,"Digestate Recovery System","Système de récupération du digestat","Sistema de recuperación del digestato","title",{"$f":"HLOOKUP($C$2,$B$8:$D150,$A150,FALSE)","v":"Digestate Recovery System"},"title143"]
[144,"Heat Loss In Production","Perte de chaleur pendant la production","Perdidas de calor durante la producción","title",{"$f":"HLOOKUP($C$2,$B$8:$D151,$A151,FALSE)","v":"Heat Loss In Production"},"title144"]
[145,"Electricity Loss In Production","Perte d'électricité pendant la production","Perdidas de electricidad durante la producción","title",{"$f":"HLOOKUP($C$2,$B$8:$D152,$A152,FALSE)","v":"Electricity Loss In Production"},"title145"]
[146,"Storage safety rate of Biogas","Taux de stockage de sécurité du biogaz","Nivel de almacenamiento de seguridad de biogás","title",{"$f":"HLOOKUP($C$2,$B$8:$D153,$A153,FALSE)","v":"Storage safety rate of Biogas"},"title146"]
[147,"Solids Recovery (%)","Récupération des matières solides (%)","Recuperación de sólidos (%)","title",{"$f":"HLOOKUP($C$2,$B$8:$D154,$A154,FALSE)","v":"Solids Recovery (%)"},"title147"]
[148,"Heat loss in Distribution","Perte de chaleur dans la distribution","Pérdida de calor durante la distribución","title",{"$f":"HLOOKUP($C$2,$B$8:$D155,$A155,FALSE)","v":"Heat loss in Distribution"},"title148"]
[149,"Electricity loss in Distribution","Perte d'électricité dans la distribution","Pérdida de electricidad durante la distribución","title",{"$f":"HLOOKUP($C$2,$B$8:$D156,$A156,FALSE)","v":"Electricity loss in Distribution"},"title149"]
[150,"Other costs","Autres coûts","Otros costos","title",{"$f":"HLOOKUP($C$2,$B$8:$D157,$A157,FALSE)","v":"Other costs"},"title150"]
[151,"Plant overhead","Frais généraux de l'usine","Gastos generales de planta","title",{"$f":"HLOOKUP($C$2,$B$8:$D158,$A158,FALSE)","v":"Plant overhead"},"title151"]
[152,"Maintenance (%)","Maintenance (%)","Mantenimiento (%)","title",{"$f":"HLOOKUP($C$2,$B$8:$D159,$A159,FALSE)","v":"Maintenance (%)"},"title152"]
[153,"Miscellaneous (%)","Divers (%)","Gastos miscelaneos (%)","title",{"$f":"HLOOKUP($C$2,$B$8:$D160,$A160,FALSE)","v":"Miscellaneous (%)"},"title153"]
[154,"General and administrative (%)","Frais généraux et administratifs (%)","Generales y administrativos (%)","title",{"$f":"HLOOKUP($C$2,$B$8:$D161,$A161,FALSE)","v":"General and administrative (%)"},"title154"]
[155,"Financial parameters","Paramètres financiers","Parámetros financieros","title",{"$f":"HLOOKUP($C$2,$B$8:$D162,$A162,FALSE)","v":"Financial parameters"},"title155"]
[156,"Loan ratio Size 1","Ratio du prêt taille 1","Proporción del crédito - Tamaño 1 (%)","title",{"$f":"HLOOKUP($C$2,$B$8:$D163,$A163,FALSE)","v":"Loan ratio Size 1"},"title156"]
[157,"Loan ratio Size 2","Ratio du prêt taille 2","Proporción del crédito - Tamaño 2 (%)","title",{"$f":"HLOOKUP($C$2,$B$8:$D164,$A164,FALSE)","v":"Loan ratio Size 2"},"title157"]
[158,"Loan ratio Size 3","Ratio du prêt taille 3","Proporción del crédito - Tamaño 3 (%)","title",{"$f":"HLOOKUP($C$2,$B$8:$D165,$A165,FALSE)","v":"Loan ratio Size 3"},"title158"]
[159,"Loan ratio Size 4","Ratio du prêt taille 4","Proporción del crédito - Tamaño 4 (%)","title",{"$f":"HLOOKUP($C$2,$B$8:$D166,$A166,FALSE)","v":"Loan ratio Size 4"},"title159"]
[160,"Investment cost update","Taux d'investissement actualisé","Actualización del costo de inversión","title",{"$f":"HLOOKUP($C$2,$B$8:$D167,$A167,FALSE)","v":"Investment cost update"},"title160"]
[161,"Discount rate","Taux d'actualisation","Tasa de descuento","title",{"$f":"HLOOKUP($C$2,$B$8:$D168,$A168,FALSE)","v":"Discount rate"},"title161"]
[162,"Loan interest rate","Taux d'intérêt du prêt","Tasa de interés de créditos","title",{"$f":"HLOOKUP($C$2,$B$8:$D169,$A169,FALSE)","v":"Loan interest rate"},"title162"]
[163,"Loan terms","La durée du prêt","Plazo del créditos","title",{"$f":"HLOOKUP($C$2,$B$8:$D170,$A170,FALSE)","v":"Loan terms"},"title163"]
[164,"year","année","año","title",{"$f":"HLOOKUP($C$2,$B$8:$D171,$A171,FALSE)","v":"year"},"title164"]
[165,"Loan term (years)","Durée du prêt (années)","Plazo del crédito (años)","title",{"$f":"HLOOKUP($C$2,$B$8:$D172,$A172,FALSE)","v":"Loan term (years)"},"title165"]
[166,"Residue","Résidu","Residuo","title",{"$f":"HLOOKUP($C$2,$B$8:$D173,$A173,FALSE)","v":"Residue"},"title166"]
[167,"Codigestion","Co-digestion","Co-digestión","title",{"$f":"HLOOKUP($C$2,$B$8:$D174,$A174,FALSE)","v":"Codigestion"},"title167"]
[168,"Market Price","Prix du Marché","Precio de Mercado","title",{"$f":"HLOOKUP($C$2,$B$8:$D175,$A175,FALSE)","v":"Market Price"},"title168"]
[169,"Wage","Salaire","Salario","title",{"$f":"HLOOKUP($C$2,$B$8:$D176,$A176,FALSE)","v":"Wage"},"title169"]
[170,"Diesel","Diesel","Diesel","title",{"$f":"HLOOKUP($C$2,$B$8:$D177,$A177,FALSE)","v":"Diesel"},"title170"]
[171,"Decision1","Décision1","Decisión1","title",{"$f":"HLOOKUP($C$2,$B$8:$D178,$A178,FALSE)","v":"Decision1"},"title171"]
[172,"Single","Simple","Simple","title",{"$f":"HLOOKUP($C$2,$B$8:$D179,$A179,FALSE)","v":"Single"},"title172"]
[173,"Multi","Multi","Múltiple","title",{"$f":"HLOOKUP($C$2,$B$8:$D180,$A180,FALSE)","v":"Multi"},"title173"]
[174,"Planner","Planificateur","Planificador","title",{"$f":"HLOOKUP($C$2,$B$8:$D181,$A181,FALSE)","v":"Planner"},"title174"]
[175,"Storage","Stockage","Almacenamiento","title",{"$f":"HLOOKUP($C$2,$B$8:$D182,$A182,FALSE)","v":"Storage"},"title175"]
[176,"Storage Selection","Sélection du stockage","Selección de almacenamiento","title",{"$f":"HLOOKUP($C$2,$B$8:$D183,$A183,FALSE)","v":"Storage Selection"},"title176"]
[177,"Sedimentator","Sédimentateur","Sedimentador","title",{"$f":"HLOOKUP($C$2,$B$8:$D184,$A184,FALSE)","v":"Sedimentator"},"title177"]
[178,"Floater","Collecteur","Flotador","title",{"$f":"HLOOKUP($C$2,$B$8:$D185,$A185,FALSE)","v":"Floater"},"title178"]
[179,"Centrifuge","Centrifugeuse","Centrifugador","title",{"$f":"HLOOKUP($C$2,$B$8:$D186,$A186,FALSE)","v":"Centrifuge"},"title179"]
[180,"Belt Press","Filtre-presse à bandes","Prensa de correa","title",{"$f":"HLOOKUP($C$2,$B$8:$D187,$A187,FALSE)","v":"Belt Press"},"title180"]
[181,"Screen Sieves","Filtre à tamis","Tamices de pantalla","title",{"$f":"HLOOKUP($C$2,$B$8:$D188,$A188,FALSE)","v":"Screen Sieves"},"title181"]
[182,"Screw Press","Presse à vis ","Prensa de tornillo","title",{"$f":"HLOOKUP($C$2,$B$8:$D189,$A189,FALSE)","v":"Screw Press"},"title182"]
[183,"Option 5: Vehicular Gas","Option 5: gas pour véhicules","Opción 5: Gas Vehicular","title",{"$f":"HLOOKUP($C$2,$B$8:$D190,$A190,FALSE)","v":"Option 5: Vehicular Gas"},"title183"]
[184,"Biodiesel/Oilseed Ind.","Biodiesel/Oléagineux Ind.","Biodiesel/Semilla oleaginosa Ind.","title",{"$f":"HLOOKUP($C$2,$B$8:$D191,$A191,FALSE)","v":"Biodiesel/Oilseed Ind."},"title184"]
[185,"Dairy-milk ind.","Produits laitiers Ind.","Industria lechera","title",{"$f":"HLOOKUP($C$2,$B$8:$D192,$A192,FALSE)","v":"Dairy-milk ind."},"title185"]
[186,"Eth-Sugar-Starch Ind.","Ethanol-Sucre-Fécule","Industria de ethanol-azucar-almidón","title",{"$f":"HLOOKUP($C$2,$B$8:$D193,$A193,FALSE)","v":"Eth-Sugar-Starch Ind."},"title186"]
[187,"Food Process. Res.","Résidus de transformation des aliments","Residuos de l procesamiento de alimentos","title",{"$f":"HLOOKUP($C$2,$B$8:$D194,$A194,FALSE)","v":"Food Process. Res."},"title187"]
[188,"Grass","Foin","Hierba/forraje","title",{"$f":"HLOOKUP($C$2,$B$8:$D195,$A195,FALSE)","v":"Grass"},"title188"]
[189,"Other Options","Autres options","Otras opciones","title",{"$f":"HLOOKUP($C$2,$B$8:$D196,$A196,FALSE)","v":"Other Options"},"title189"]
[190,"Slaughterhouses wastes","Déchets d'abattoirs","Residuos de mataderos","title",{"$f":"HLOOKUP($C$2,$B$8:$D197,$A197,FALSE)","v":"Slaughterhouses wastes"},"title190"]
[191,"Yeast-Alcoholic Bev.","Brevages fermentés","Levadura-bebidas alcohólicas","title",{"$f":"HLOOKUP($C$2,$B$8:$D198,$A198,FALSE)","v":"Yeast-Alcoholic Bev."},"title191"]
[192,"Wastewater","Eaux usées","Aguas residuales","title",{"$f":"HLOOKUP($C$2,$B$8:$D199,$A199,FALSE)","v":"Wastewater"},"title192"]
[193,"Use white cells to input data","Utilisez les cellules blanches pour saisir les données","Utilice las celdas en blanco para ingresar los datos","title",{"$f":"HLOOKUP($C$2,$B$8:$D200,$A200,FALSE)","v":"Use white cells to input data"},"title193"]
[194,"Grey cells are used for calculations","Les cellules grises sont utilisées pour les calculs","Utilice las celdas en gris para los cálculos","title",{"$f":"HLOOKUP($C$2,$B$8:$D201,$A201,FALSE)","v":"Grey cells are used for calculations"},{"$f":"$E201&$A201","v":"title194"}]
[195,"Wage for trained operators and technicians who leads the operation and maintenance of the plant.","Salaires pour les opérateurs et techniciens formés à la conduite des opérations et à la maintenance de l'usine.","Salarios para los operadores y técnicos capacitados que conduce la operación y mantenimiento de la planta.","title",{"$f":"HLOOKUP($C$2,$B$8:$D202,$A202,FALSE)","v":"Wage for trained operators and technicians who leads the operation and maintenance of the plant."},"title195"]
[196,"The plant overhead is a percentage of costs for services, facilities, payroll overhead, etc. ","Les frais généraux de l'usine est un pourcentage des coûts des services, des installations, des frais généraux pour la paie etc.","Los gastos generales son un porcentaje de los costos de los servicios, las instalaciones, gastos generales de la nómina, etc.","title",{"$f":"HLOOKUP($C$2,$B$8:$D203,$A203,FALSE)","v":"The plant overhead is a percentage of costs for services, facilities, payroll overhead, etc. "},"title196"]
[197,"This item is a percentage of the costs for maintenance of equipment, including labour and materials.","Cet item est un pourcentage des coûts d'entretien des équipements, y compris le travail et les matériaux.","Este ítem es un porcentaje de los costos de mantenimiento de los equipos, incluyendo mano de obra y los materiales.","title",{"$f":"HLOOKUP($C$2,$B$8:$D204,$A204,FALSE)","v":"This item is a percentage of the costs for maintenance of equipment, including labour and materials."},"title197"]
[198,"Wage for non-trained operators who supports the operation of the plant (e.g. biomass collection).","Salaire pour les opérateurs non qualifiés qui prennent en charge le fonctionnement de la plante (par exemple, la collecte de la biomasse).","Salario para los operadores no capacitados que soportan la operación en la planta (por ejemplo, la recolección de la biomasa).","title",{"$f":"HLOOKUP($C$2,$B$8:$D205,$A205,FALSE)","v":"Wage for non-trained operators who supports the operation of the plant (e.g. biomass collection)."},"title198"]
[199,"BIOMASS DISTRIBUTION PLANNER FOR PROCESS ","OUTIL DE PLANNIFICATION DE LA DISTRIBUTION DE BIOMASSE POUR LE PROCÉDÉ","PLANIFICADOR DE LA DISTRIBUCION DE LA BIOMASA EN EL PROCESO","title",{"$f":"HLOOKUP($C$2,$B$8:$D206,$A206,FALSE)","v":"BIOMASS DISTRIBUTION PLANNER FOR PROCESS "},"title199"]
[200,"Monthly Average Envirnomental Temperature","Température moyenne mensuelle","Promedio mensual de la temperatura ambiente","title",{"$f":"HLOOKUP($C$2,$B$8:$D207,$A207,FALSE)","v":"Monthly Average Envirnomental Temperature"},"title200"]
[201,"Feedstock Selection and Cost","Sélection des intrants et cout","Selección y costo de la materia prima","title",{"$f":"HLOOKUP($C$2,$B$8:$D208,$A208,FALSE)","v":"Feedstock Selection and Cost"},"title201"]
[202,"Feedstock Distribution","Distribution des intrants","Distribución de la materia prima","title",{"$f":"HLOOKUP($C$2,$B$8:$D209,$A209,FALSE)","v":"Feedstock Distribution"},"title202"]
[203,"Only one feedstock per motnh is allowed","Seulement un intrant par mois est autorisé","Solo un tipo de materia prima por mes es permitido","title",{"$f":"HLOOKUP($C$2,$B$8:$D210,$A210,FALSE)","v":"Only one feedstock per motnh is allowed"},"title203"]
[204,"Jan","Jan","Ene","title",{"$f":"HLOOKUP($C$2,$B$8:$D211,$A211,FALSE)","v":"Jan"},"title204"]
[205,"Feb","Fév","Feb","title",{"$f":"HLOOKUP($C$2,$B$8:$D212,$A212,FALSE)","v":"Feb"},"title205"]
[206,"Mar","Mar","Mar","title",{"$f":"HLOOKUP($C$2,$B$8:$D213,$A213,FALSE)","v":"Mar"},"title206"]
[207,"Apr","Avr","Abr","title",{"$f":"HLOOKUP($C$2,$B$8:$D214,$A214,FALSE)","v":"Apr"},"title207"]
[208,"May","Mai","May","title",{"$f":"HLOOKUP($C$2,$B$8:$D215,$A215,FALSE)","v":"May"},"title208"]
[209,"Jun","Jun","Jun","title",{"$f":"HLOOKUP($C$2,$B$8:$D216,$A216,FALSE)","v":"Jun"},"title209"]
[210,"Jul","Jul ","Jul","title",{"$f":"HLOOKUP($C$2,$B$8:$D217,$A217,FALSE)","v":"Jul"},"title210"]
[211,"Aug","Aoû","Ago","title",{"$f":"HLOOKUP($C$2,$B$8:$D218,$A218,FALSE)","v":"Aug"},"title211"]
[212,"Sep","Sep","Sep","title",{"$f":"HLOOKUP($C$2,$B$8:$D219,$A219,FALSE)","v":"Sep"},"title212"]
[213,"Oct","Oct","Oct","title",{"$f":"HLOOKUP($C$2,$B$8:$D220,$A220,FALSE)","v":"Oct"},"title213"]
[214,"Nov","Nov","Nov","title",{"$f":"HLOOKUP($C$2,$B$8:$D221,$A221,FALSE)","v":"Nov"},"title214"]
[215,"Dec","Déc","Dic","title",{"$f":"HLOOKUP($C$2,$B$8:$D222,$A222,FALSE)","v":"Dec"},"title215"]
[216,"Feedstock Monthly Available (t/month)","Disponibilité en intrants (t/mois)","Materia prima disponible mensualmente (t/mes)","title",{"$f":"HLOOKUP($C$2,$B$8:$D223,$A223,FALSE)","v":"Feedstock Monthly Available (t/month)"},"title216"]
[217,"Codigestion Feedstock Distribution","Distribution des intrants en Co-digestion","Distribución de la materia proma de codigestión","title",{"$f":"HLOOKUP($C$2,$B$8:$D224,$A224,FALSE)","v":"Codigestion Feedstock Distribution"},"title217"]
[218,"Left to Allocate","Restant à allouer","Restante para distribuir","title",{"$f":"HLOOKUP($C$2,$B$8:$D225,$A225,FALSE)","v":"Left to Allocate"},"title218"]
[219,"Codigestion Feedstock","Intrants pour la Co-digestion","Materia prima de codigestión","title",{"$f":"HLOOKUP($C$2,$B$8:$D226,$A226,FALSE)","v":"Codigestion Feedstock"},"title219"]
[220,"Codigestion Fs to Main Fs ratio","Ratio d'intrants en co-digestion sur intrants principaux ","Ratio de la materia prima de codigestión a la materia prima principal","title",{"$f":"HLOOKUP($C$2,$B$8:$D227,$A227,FALSE)","v":"Codigestion Fs to Main Fs ratio"},"title220"]
[221,"* VS = Volatile Solids, TS = Total Solids, COD =Chemical Oxygen Demand, BMP = Biomethane Potential, CH4 = Methane","* SV = Solides Volatils, TS = Solides Totaux, DCO = Demande Chimique en Oxygène,  BMP = Potentiel de Biométhane, CH4 = Méthane","* VS = Sólidos volátiles, TS = Sólidos totales, DOC = Demanda química de oxígeno, BMP = Potencial de biometano, CH4 = Metano","title",{"$f":"HLOOKUP($C$2,$B$8:$D228,$A228,FALSE)","v":"* VS = Volatile Solids, TS = Total Solids, COD =Chemical Oxygen Demand, BMP = Biomethane Potential, CH4 = Methane"},"title221"]
[222," PROCESSING COSTS FOR PROCESS","COUTS DE TRAITEMENT POUR LE PROCEDE","COSTOS DE PROCESAMIENTO DEL PROCESO","title",{"$f":"HLOOKUP($C$2,$B$8:$D229,$A229,FALSE)","v":" PROCESSING COSTS FOR PROCESS"},"title222"]
[223,"Summary of Feedstock Selected","Résumé de l'intrant selectionné","Resumen de las materias primas seleccionadas","title",{"$f":"HLOOKUP($C$2,$B$8:$D230,$A230,FALSE)","v":"Summary of Feedstock Selected"},"title223"]
[224,"Type of Operation","Type d'opération","Tipo de operación","title",{"$f":"HLOOKUP($C$2,$B$8:$D231,$A231,FALSE)","v":"Type of Operation"},"title224"]
[225,"Fs Available (t/yr)","Disponibilité en intrant (t/an)","Materia prima disponible (t/año)","title",{"$f":"HLOOKUP($C$2,$B$8:$D232,$A232,FALSE)","v":"Fs Available (t/yr)"},"title225"]
[226,"Feedstock 1","Intrant 1","Materia Prima 1","title",{"$f":"HLOOKUP($C$2,$B$8:$D233,$A233,FALSE)","v":"Feedstock 1"},"title226"]
[227,"Feedstock 2","Intrant 2","Materia Prima 2","title",{"$f":"HLOOKUP($C$2,$B$8:$D234,$A234,FALSE)","v":"Feedstock 2"},"title227"]
[228,"Feedstock 3","Intrant 3","Materia Prima 3","title",{"$f":"HLOOKUP($C$2,$B$8:$D235,$A235,FALSE)","v":"Feedstock 3"},"title228"]
[229,"Feedstock 4","Intrant 4","Materia Prima 4","title",{"$f":"HLOOKUP($C$2,$B$8:$D236,$A236,FALSE)","v":"Feedstock 4"},"title229"]
[230,"Biogas Properties","Propriétés du Biogaz","Propiedades del biogás","title",{"$f":"HLOOKUP($C$2,$B$8:$D237,$A237,FALSE)","v":"Biogas Properties"},"title230"]
[231,"Average Properties of Biogas","Propriétés moyennes du Biogaz","Propiedades promedio del biogás","title",{"$f":"HLOOKUP($C$2,$B$8:$D238,$A238,FALSE)","v":"Average Properties of Biogas"},"title231"]
[232,"VS (%) mixture : ","SV (%) du mélange","VS (%) de la mezcla:","title",{"$f":"HLOOKUP($C$2,$B$8:$D239,$A239,FALSE)","v":"VS (%) mixture : "},"title232"]
[233,"Expected CH4 Content : ","Contenu attendu en CH4","Contenido de CH4 esperado :","title",{"$f":"HLOOKUP($C$2,$B$8:$D240,$A240,FALSE)","v":"Expected CH4 Content : "},"title233"]
[234,"TS (%) mixture : ","TS (%) du mélange","TS (%) de la mezcla :","title",{"$f":"HLOOKUP($C$2,$B$8:$D241,$A241,FALSE)","v":"TS (%) mixture : "},"title234"]
[235,"Technical Parameters","Paramètres Techniques","Parámetros técnicos","title",{"$f":"HLOOKUP($C$2,$B$8:$D242,$A242,FALSE)","v":"Technical Parameters"},"title235"]
[236,"Type of Fermentor","Type de bioréacteur","Tipo de fermentador","title",{"$f":"HLOOKUP($C$2,$B$8:$D243,$A243,FALSE)","v":"Type of Fermentor"},"title236"]
[237,"Min. TS Allowed : ","Min. TS autorisé : ","Min. TS permitido :","title",{"$f":"HLOOKUP($C$2,$B$8:$D244,$A244,FALSE)","v":"Min. TS Allowed : "},"title237"]
[238,"Max. TS Allowed: ","Max. TS autorisé : ","Max. TS permitido :","title",{"$f":"HLOOKUP($C$2,$B$8:$D245,$A245,FALSE)","v":"Max. TS Allowed: "},"title238"]
[239,"Temperature Regime (°C)","Régime de température (°C)","Regimen de temperatura (°C)","title",{"$f":"HLOOKUP($C$2,$B$8:$D246,$A246,FALSE)","v":"Temperature Regime (°C)"},"title239"]
[240,"Mesophilic","Mesophilique","Mesofílico","title",{"$f":"HLOOKUP($C$2,$B$8:$D247,$A247,FALSE)","v":"Mesophilic"},"title240"]
[241,"Thermophilic","Thermophilique","termofílico","title",{"$f":"HLOOKUP($C$2,$B$8:$D248,$A248,FALSE)","v":"Thermophilic"},"title241"]
[242,"No additional dilution required","Pas de dilution additionnelle requise","No se requiere dilución adicional","title",{"$f":"HLOOKUP($C$2,$B$8:$D249,$A249,FALSE)","v":"No additional dilution required"},"title242"]
[243,"Mixture will be diluted in water until reach a ","Le mélange doit être dilué dans l'eau jusqu'a ce qu'il atteint","La mezcla se diluirá en agua hasta que","title",{"$f":"HLOOKUP($C$2,$B$8:$D250,$A250,FALSE)","v":"Mixture will be diluted in water until reach a "},"title243"]
[244,"Water Make-up ","Eaux usées ","Agua de reposición","title",{"$f":"HLOOKUP($C$2,$B$8:$D251,$A251,FALSE)","v":"Water Make-up "},"title244"]
[245,"Select a HRT (d)","Séléctionner un TRH (j)","Seleccionar un HRT (d)","title",{"$f":"HLOOKUP($C$2,$B$8:$D252,$A252,FALSE)","v":"Select a HRT (d)"},"title245"]
[246,"Storage Planner","Planificateur de Stockage","Planificador de Almacenamiento","title",{"$f":"HLOOKUP($C$2,$B$8:$D253,$A253,FALSE)","v":"Storage Planner"},"title246"]
[247,"Total Fs  (t/month)","Total intrant (t/mois)","Total Materia prima (t/mes)","title",{"$f":"HLOOKUP($C$2,$B$8:$D254,$A254,FALSE)","v":"Total Fs  (t/month)"},"title247"]
[248,"Size","Taille","Tamaño","title",{"$f":"HLOOKUP($C$2,$B$8:$D255,$A255,FALSE)","v":"Size"},"title248"]
[249,"Category","Catégorie","Categoría","title",{"$f":"HLOOKUP($C$2,$B$8:$D256,$A256,FALSE)","v":"Category"},"title249"]
[250,"Main Feedstock","Intrant principal","Materia prima principal","title",{"$f":"HLOOKUP($C$2,$B$8:$D257,$A257,FALSE)","v":"Main Feedstock"},"title250"]
[251,"Other","Autre","Otro","title",{"$f":"HLOOKUP($C$2,$B$8:$D258,$A258,FALSE)","v":"Other"},"title251"]
[252,"Code","Code","Código","title",{"$f":"HLOOKUP($C$2,$B$8:$D259,$A259,FALSE)","v":"Code"},"title252"]
[253,"Fs rate","Taux d'intrant","Ratio de materia prima","title",{"$f":"HLOOKUP($C$2,$B$8:$D260,$A260,FALSE)","v":"Fs rate"},"title253"]
[254,"Temperature (°C)","Température (°C)","Temperatura (°C)","title",{"$f":"HLOOKUP($C$2,$B$8:$D261,$A261,FALSE)","v":"Temperature (°C)"},"title254"]
[255,"Optimal Codigestion Ratios","Ratios de co-digestion optimaux","Ratio óptimo de codigestión","title",{"$f":"HLOOKUP($C$2,$B$8:$D262,$A262,FALSE)","v":"Optimal Codigestion Ratios"},"title255"]
[256,"Mixture","Mélange","Mezcla","title",{"$f":"HLOOKUP($C$2,$B$8:$D263,$A263,FALSE)","v":"Mixture"},"title256"]
[257,"Transport Distance of Feedstock(s) from collection point to biogas plant","Distance entre le site de collecte de(s) l'intrant(s) et le site de production du biogaz (km)","Distancia de transporte de la (s) materia prima (s) desde el punto de recogida hasta la planta de biogás","title",{"$f":"HLOOKUP($C$2,$B$8:$D264,$A264,FALSE)","v":"Transport Distance of Feedstock(s) from collection point to biogas plant"},"title257"]
[258,"Feedstock 5","Intrant 5","Materia Prima 5","title",{"$f":"HLOOKUP($C$2,$B$8:$D265,$A265,FALSE)","v":"Feedstock 5"},{"$f":"$E265&$A265","v":"title258"}]
[259,"Transport Distances (km)","Distances de transport (km)","Distancias de transporte (km)","title",{"$f":"HLOOKUP($C$2,$B$8:$D266,$A266,FALSE)","v":"Transport Distances (km)"},"title259"]
[260,"m3 Biogas/day","m3 biogaz/jour","m3 biogás/día","title",{"$f":"HLOOKUP($C$2,$B$8:$D267,$A267,FALSE)","v":"m3 Biogas/day"},"title260"]
[261,"Storage Capacity and Unitary Costs","Capacité de stockage et couts unitaires","Capacidad de almacenamiento y costos unitarios","title",{"$f":"HLOOKUP($C$2,$B$8:$D268,$A268,FALSE)","v":"Storage Capacity and Unitary Costs"},"title261"]
[262,"Storage capacity Required (t)","Capacité de stockage requis (t)","Capacidad de almacenamiento requerida (t)","title",{"$f":"HLOOKUP($C$2,$B$8:$D269,$A269,FALSE)","v":"Storage capacity Required (t)"},"title262"]
[263,"Feedstock Price (USD/t)","Prix des intrants (USD/t)","Precio de materia prima (USD/t)","title",{"$f":"HLOOKUP($C$2,$B$8:$D270,$A270,FALSE)","v":"Feedstock Price (USD/t)"},"title263"]
[264,"Transport Cost (USD/t/km)","Frais de transport (USD/t/km)","Costo de transporte (USD/t/km)","title",{"$f":"HLOOKUP($C$2,$B$8:$D271,$A271,FALSE)","v":"Transport Cost (USD/t/km)"},"title264"]
[265,"Operating hours per year","Heures de fonctionnement par an","Horas de operación por año","title",{"$f":"HLOOKUP($C$2,$B$8:$D272,$A272,FALSE)","v":"Operating hours per year"},"title265"]
[266,"Inputs","Intrants ","Insumos","title",{"$f":"HLOOKUP($C$2,$B$8:$D273,$A273,FALSE)","v":"Inputs"},"title266"]
[267,"Unit Price","Prix Unitaire","Precio unitario","title",{"$f":"HLOOKUP($C$2,$B$8:$D274,$A274,FALSE)","v":"Unit Price"},"title267"]
[268," - Consumption Self-Supplied","Consommation en auto-approvisionnement"," - Consumo auto aprovisionado","title",{"$f":"HLOOKUP($C$2,$B$8:$D275,$A275,FALSE)","v":" - Consumption Self-Supplied"},"title268"]
[269,"Subtotal","Sous-total","Sub-total","title",{"$f":"HLOOKUP($C$2,$B$8:$D276,$A276,FALSE)","v":"Subtotal"},"title269"]
[270,"Quantity","Quantité ","Cantidad ","title",{"$f":"HLOOKUP($C$2,$B$8:$D277,$A277,FALSE)","v":"Quantity"},"title270"]
[271,"(Unit/year)","(Unit/an)","(Unit/año)","title",{"$f":"HLOOKUP($C$2,$B$8:$D278,$A278,FALSE)","v":"(Unit/year)"},"title271"]
[272,"(USD/year)","(USD/an)","(USD/año)","title",{"$f":"HLOOKUP($C$2,$B$8:$D279,$A279,FALSE)","v":"(USD/year)"},"title272"]
[273,"Labour and miscellaneous costs","Travail et coût divers","Mano de obra y costos varios","title",{"$f":"HLOOKUP($C$2,$B$8:$D280,$A280,FALSE)","v":"Labour and miscellaneous costs"},"title273"]
[274,"Miscellaneous costs","Coût divers","Costos varios","title",{"$f":"HLOOKUP($C$2,$B$8:$D281,$A281,FALSE)","v":"Miscellaneous costs"},"title274"]
[275," # employee","# employé","# trabajadores","title",{"$f":"HLOOKUP($C$2,$B$8:$D282,$A282,FALSE)","v":" # employee"},"title275"]
[276,"Transportation","Transport","Transporte","title",{"$f":"HLOOKUP($C$2,$B$8:$D283,$A283,FALSE)","v":"Transportation"},"title276"]
[277,"Biogas Low-pressure system","Système de Biogaz basse pression","Sistema de biogás de baja presión","title",{"$f":"HLOOKUP($C$2,$B$8:$D284,$A284,FALSE)","v":"Biogas Low-pressure system"},"title277"]
[278,"Biogas - ","Biogaz - ","Biogás - ","title",{"$f":"HLOOKUP($C$2,$B$8:$D285,$A285,FALSE)","v":"Biogas - "},"title278"]
[279,"Investment","Investissement","Inversión","title",{"$f":"HLOOKUP($C$2,$B$8:$D286,$A286,FALSE)","v":"Investment"},"title279"]
[280,"Equipments","Equipements","Equipos","title",{"$f":"HLOOKUP($C$2,$B$8:$D287,$A287,FALSE)","v":"Equipments"},"title280"]
[281,"Building","Bâtiment","Construcción","title",{"$f":"HLOOKUP($C$2,$B$8:$D288,$A288,FALSE)","v":"Building"},"title281"]
[282,"Installation Distribution and/or Upgrade","Installation distribution et/ou amélioration","Distribución y / o actualización de la instalación","title",{"$f":"HLOOKUP($C$2,$B$8:$D289,$A289,FALSE)","v":"Installation Distribution and/or Upgrade"},"title282"]
[283,"Total investments","Total Investissements ","Inversión total ","title",{"$f":"HLOOKUP($C$2,$B$8:$D290,$A290,FALSE)","v":"Total investments"},"title283"]
[284,"Years","Années","Años","title",{"$f":"HLOOKUP($C$2,$B$8:$D291,$A291,FALSE)","v":"Years"},"title284"]
[285,"Depreciation","Amortissement","Depreciación","title",{"$f":"HLOOKUP($C$2,$B$8:$D292,$A292,FALSE)","v":"Depreciation"},"title285"]
[286,"Total\nDepreciation","Total\nDepreciation","Total\nDepreciation","title",{"$f":"HLOOKUP($C$2,$B$8:$D293,$A293,FALSE)","v":"Total\nDepreciation"},"title286"]
[287,"Maintenance cost","Coût de maintenance","Costo de mantenimiento","title",{"$f":"HLOOKUP($C$2,$B$8:$D294,$A294,FALSE)","v":"Maintenance cost"},"title287"]
[288,"General and administrative cost","Coût généraux et administratifs","Costos generales y administrativos","title",{"$f":"HLOOKUP($C$2,$B$8:$D295,$A295,FALSE)","v":"General and administrative cost"},"title288"]
[289,"Loan interest","Intérêts du prêt","Intereses de créditos","title",{"$f":"HLOOKUP($C$2,$B$8:$D296,$A296,FALSE)","v":"Loan interest"},"title289"]
[290,"Rate (%)","Taux (%)","Tasa (%)","title",{"$f":"HLOOKUP($C$2,$B$8:$D297,$A297,FALSE)","v":"Rate (%)"},"title290"]
[291,"Capacities (","Capacités (","Capacidad (","title",{"$f":"HLOOKUP($C$2,$B$8:$D298,$A298,FALSE)","v":"Capacities ("},"title291"]
[292,"Total costs","Coûts totaux","Costos totales","title",{"$f":"HLOOKUP($C$2,$B$8:$D299,$A299,FALSE)","v":"Total costs"},"title292"]
[293,"Total operating costs","Total des coûts d’opérations","Costos de operación totales","title",{"$f":"HLOOKUP($C$2,$B$8:$D300,$A300,FALSE)","v":"Total operating costs"},"title293"]
[294,"Total fixed costs","Total des coûts fixes","Costos fijos totales","title",{"$f":"HLOOKUP($C$2,$B$8:$D301,$A301,FALSE)","v":"Total fixed costs"},"title294"]
[295,"Total other costs","Total des autres charges","Otros costos totales","title",{"$f":"HLOOKUP($C$2,$B$8:$D302,$A302,FALSE)","v":"Total other costs"},"title295"]
[296,"Total production costs","Coûts totaux de production","Costos totales de producción","title",{"$f":"HLOOKUP($C$2,$B$8:$D303,$A303,FALSE)","v":"Total production costs"},"title296"]
[297,"Energy Balance","Balance énergétique","Balance energético","title",{"$f":"HLOOKUP($C$2,$B$8:$D304,$A304,FALSE)","v":"Energy Balance"},"title297"]
[298,"Electricity Production","Production d'électricité","Producción de electricidad","title",{"$f":"HLOOKUP($C$2,$B$8:$D305,$A305,FALSE)","v":"Electricity Production"},"title298"]
[299,"Heat Production","Production de chaleur","Producción de calor","title",{"$f":"HLOOKUP($C$2,$B$8:$D306,$A306,FALSE)","v":"Heat Production"},"title299"]
[300,"Electricity Consumption","Consommation d'électricité","Consumo de electricidad","title",{"$f":"HLOOKUP($C$2,$B$8:$D307,$A307,FALSE)","v":"Electricity Consumption"},"title300"]
[301,"Heat Consumption","Consommation de chaleur","Consumo de calor","title",{"$f":"HLOOKUP($C$2,$B$8:$D308,$A308,FALSE)","v":"Heat Consumption"},"title301"]
[302,"Electricity Available for Selling","Chaleur disponible à la vente","Electricidad disponible para la venta","title",{"$f":"HLOOKUP($C$2,$B$8:$D309,$A309,FALSE)","v":"Electricity Available for Selling"},"title302"]
[303,"Heat Available for Selling","Électricité disponible à la vente","Calor disponible para la venta","title",{"$f":"HLOOKUP($C$2,$B$8:$D310,$A310,FALSE)","v":"Heat Available for Selling"},"title303"]
[304,"kWh/year","kWh/an","kWh/año","title",{"$f":"HLOOKUP($C$2,$B$8:$D311,$A311,FALSE)","v":"kWh/year"},"title304"]
[305,"GJ/year","GJ/an","GJ/año","title",{"$f":"HLOOKUP($C$2,$B$8:$D312,$A312,FALSE)","v":"GJ/year"},"title305"]
[306,"MJ/year","MJ/an","MJ/año","title",{"$f":"HLOOKUP($C$2,$B$8:$D313,$A313,FALSE)","v":"MJ/year"},"title306"]
[307,"m3/year","m3/an","m3/año","title",{"$f":"HLOOKUP($C$2,$B$8:$D314,$A314,FALSE)","v":"m3/year"},"title307"]
[308,"t/year","t/an","t/año","title",{"$f":"HLOOKUP($C$2,$B$8:$D315,$A315,FALSE)","v":"t/year"},"title308"]
[309,"kg/year","kg/an","kg/año","title",{"$f":"HLOOKUP($C$2,$B$8:$D316,$A316,FALSE)","v":"kg/year"},"title309"]
[310,"m3 Biogas/year","m3 Biogaz/an","m3 Biogás/año","title",{"$f":"HLOOKUP($C$2,$B$8:$D317,$A317,FALSE)","v":"m3 Biogas/year"},"title310"]
[311,"m3 Methane/year","m3 Méthane/an","m3 Metano/año","title",{"$f":"HLOOKUP($C$2,$B$8:$D318,$A318,FALSE)","v":"m3 Methane/year"},"title311"]
[312,"Unit cost of biogas (","Coût unitaire du Biogaz","Costo unitario de Biogás","title",{"$f":"HLOOKUP($C$2,$B$8:$D319,$A319,FALSE)","v":"Unit cost of biogas ("},"title312"]
[313,"Average loan interest","Intérêt moyen du prêt","Interés promedio del crédito","title",{"$f":"HLOOKUP($C$2,$B$8:$D320,$A320,FALSE)","v":"Average loan interest"},"title313"]
[314,"Loan amount","Montant du prêt","Monto del crédito","title",{"$f":"HLOOKUP($C$2,$B$8:$D321,$A321,FALSE)","v":"Loan amount"},"title314"]
[315,"Loan payment","Paiement du prêt","Pago del crédito","title",{"$f":"HLOOKUP($C$2,$B$8:$D322,$A322,FALSE)","v":"Loan payment"},"title315"]
[316,"Annual loan payment","Paiement annuel du prêt","Pago anual del crédito","title",{"$f":"HLOOKUP($C$2,$B$8:$D323,$A323,FALSE)","v":"Annual loan payment"},"title316"]
[317,"Total loan payment","Paiement total du prêt","Pago total del crédito","title",{"$f":"HLOOKUP($C$2,$B$8:$D324,$A324,FALSE)","v":"Total loan payment"},"title317"]
[318,"USD/month","USD/mois","USD/mes","title",{"$f":"HLOOKUP($C$2,$B$8:$D325,$A325,FALSE)","v":"USD/month"},"title318"]
[319,"USD/year","USD/an","USD/año","title",{"$f":"HLOOKUP($C$2,$B$8:$D326,$A326,FALSE)","v":"USD/year"},"title319"]
[320,"Total investment","Total Investissements ","Inversión total ","title",{"$f":"HLOOKUP($C$2,$B$8:$D327,$A327,FALSE)","v":"Total investment"},"title320"]
[321,"Show Costing Details","Montrez les Détails des Coûts","Mostrar detalles de cálculo de costos","title",{"$f":"HLOOKUP($C$2,$B$8:$D328,$A328,FALSE)","v":"Show Costing Details"},"title321"]
[322,"Hide Costing Details","Cachez les Détails des Coûts","Ocultar detalles de cálculo de costos","title",{"$f":"HLOOKUP($C$2,$B$8:$D329,$A329,FALSE)","v":"Hide Costing Details"},{"$f":"$E329&$A329","v":"title322"}]
[323,"Share (%)","Part (%)","Participación (%)","title",{"$f":"HLOOKUP($C$2,$B$8:$D330,$A330,FALSE)","v":"Share (%)"},"title323"]
[324,"COLLECTION COSTS CALCULATOR FOR ","CALCULATEUR DES FRAIS DE LA COLLECTE POUR ","CALCULADORA PARA COSTOS DE RECOLECCIÓN PARA ","title",{"$f":"HLOOKUP($C$2,$B$8:$D331,$A331,FALSE)","v":"COLLECTION COSTS CALCULATOR FOR "},"title324"]
[325,"No collection method is required. It is assumed that ","Aucune méthode de collecte n'est requise. Il est assumé que ","No se requiere ningún método de recopilación. Se asume que","title",{"$f":"HLOOKUP($C$2,$B$8:$D332,$A332,FALSE)","v":"No collection method is required. It is assumed that "},"title325"]
[326," are already collected. Then, transportation cost and/or market price should be considered.","sont déja collectés. Puis, les couts de transport et/ou le prix du marché doivent être pris en compte. ","ya están recogidos. Luego, se debe considerar el costo de transporte y / o el precio de mercado.","title",{"$f":"HLOOKUP($C$2,$B$8:$D333,$A333,FALSE)","v":" are already collected. Then, transportation cost and/or market price should be considered."},"title326"]
[327,"Collection Method 1 - Biomass spread in the field","Méthode de collecte 1 - la biomasse est épandue sur le champ","Método de recolección 1 - Propagación de la biomasa en el campo","title",{"$f":"HLOOKUP($C$2,$B$8:$D334,$A334,FALSE)","v":"Collection Method 1 - Biomass spread in the field"},"title327"]
[328,"Collecting method","Méthode de collecte","Método de recolección ","title",{"$f":"HLOOKUP($C$2,$B$8:$D335,$A335,FALSE)","v":"Collecting method"},"title328"]
[329,"Biomass Yield","Rendement de la biomasse","Rendimento de la biomasa","title",{"$f":"HLOOKUP($C$2,$B$8:$D336,$A336,FALSE)","v":"Biomass Yield"},"title329"]
[330,"Collection days","Jours de collecte","Días de recolección","title",{"$f":"HLOOKUP($C$2,$B$8:$D337,$A337,FALSE)","v":"Collection days"},"title330"]
[331,"Biomass Collection definition","Définition de la Collecte de Biomasse","Definición de la recolección de la biomasa","title",{"$f":"HLOOKUP($C$2,$B$8:$D338,$A338,FALSE)","v":"Biomass Collection definition"},"title331"]
[332,"Biomass Price Definition","Définition du prix de la Biomasse","Definición del precio de la biomasa","title",{"$f":"HLOOKUP($C$2,$B$8:$D339,$A339,FALSE)","v":"Biomass Price Definition"},"title332"]
[333,"Labour cost","Coût de la main d’oeuvre","Costo de la mano de obra","title",{"$f":"HLOOKUP($C$2,$B$8:$D340,$A340,FALSE)","v":"Labour cost"},"title333"]
[334,"Machinery & operating cost","Coût des opérations et des machines","Maquinaria y costos de operación","title",{"$f":"HLOOKUP($C$2,$B$8:$D341,$A341,FALSE)","v":"Machinery & operating cost"},"title334"]
[335,"Unskilled labour wage","Salaire des travailleurs non qualifiés","Salario de mano de obra no cualificada","title",{"$f":"HLOOKUP($C$2,$B$8:$D342,$A342,FALSE)","v":"Unskilled labour wage"},"title335"]
[336,"Skilled labour wage","Salaire des travailleurs qualifiés","Salario de mano de obra cualificada","title",{"$f":"HLOOKUP($C$2,$B$8:$D343,$A343,FALSE)","v":"Skilled labour wage"},"title336"]
[337,"Manual","Manuel ","Manual ","title",{"$f":"HLOOKUP($C$2,$B$8:$D344,$A344,FALSE)","v":"Manual"},"title337"]
[338,"Collection cost of ","Cout de collecte de ","Recolección manual de","title",{"$f":"HLOOKUP($C$2,$B$8:$D345,$A345,FALSE)","v":"Collection cost of "},"title338"]
[339,"Collection Methods Available","Méthodes de collecte disponibles ","Métodos de colección disponibles","title",{"$f":"HLOOKUP($C$2,$B$8:$D346,$A346,FALSE)","v":"Collection Methods Available"},"title339"]
[340,"Use this method for feedstock direclty collected in stables, or procesing facilities (e.g. dairy industries)","Utiliser cette méthode pour l'intrant directement collecté dans les étables ou les unités de transformation (ex. Laiteries)","Utilice este método para la materia prima directamente recolectada en establos, o instalaciones de procesamiento (por ejemplo, industrias lácteas)","title",{"$f":"HLOOKUP($C$2,$B$8:$D347,$A347,FALSE)","v":"Use this method for feedstock direclty collected in stables, or procesing facilities (e.g. dairy industries)"},"title340"]
[341,"Use this method for feedstock collected and transported from different farms to a central collection point","Utiliser cette méthode pour l'intrant collecté dans différentes fermes et transporté dans un lieu de collecte central","Utilice este método para la materia prima recolectada y transportada de diferentes granjas a un punto central de recogida","title",{"$f":"HLOOKUP($C$2,$B$8:$D348,$A348,FALSE)","v":"Use this method for feedstock collected and transported from different farms to a central collection point"},"title341"]
[342,"Collection Method 2","Méthode de collecte 2","Método de recolección 2","title",{"$f":"HLOOKUP($C$2,$B$8:$D349,$A349,FALSE)","v":"Collection Method 2"},"title342"]
[343,"Transportation requirements","Conditions de transport","Requerimientos de transporte","title",{"$f":"HLOOKUP($C$2,$B$8:$D350,$A350,FALSE)","v":"Transportation requirements"},"title343"]
[344,"Initial ts in residue (%)","Taux de MS initial dans le résidu (%)","Contenido inicial de TS en el residuo (%)","title",{"$f":"HLOOKUP($C$2,$B$8:$D351,$A351,FALSE)","v":"Initial ts in residue (%)"},"title344"]
[345,"ts (%) allowed by ","MS (%) autorisé par","TS (%) permitido por","title",{"$f":"HLOOKUP($C$2,$B$8:$D352,$A352,FALSE)","v":"ts (%) allowed by "},"title345"]
[346,"Data Source","Source des données","Fuente del dato","title",{"$f":"HLOOKUP($C$2,$B$8:$D353,$A353,FALSE)","v":"Data Source"},"title346"]
[347,"Collection Cost Definition","Definition du cout de collecte","Definición del costo de recolección","title",{"$f":"HLOOKUP($C$2,$B$8:$D354,$A354,FALSE)","v":"Collection Cost Definition"},"title347"]
[348,"Operation Cost","Cout opérationnel","Costo de operación","title",{"$f":"HLOOKUP($C$2,$B$8:$D355,$A355,FALSE)","v":"Operation Cost"},"title348"]
[349,"Unskilled Workers","Ouvrier non-qualifié","Trabajadores no calificados","title",{"$f":"HLOOKUP($C$2,$B$8:$D356,$A356,FALSE)","v":"Unskilled Workers"},"title349"]
[350,"Liter Diesel/year","Litres de diesel par an","Litros Diesel/año","title",{"$f":"HLOOKUP($C$2,$B$8:$D357,$A357,FALSE)","v":"Liter Diesel/year"},"title350"]
[351,"Liter water/year","Litres d'eau par an","Litros de agua/año","title",{"$f":"HLOOKUP($C$2,$B$8:$D358,$A358,FALSE)","v":"Liter water/year"},"title351"]
[352,"person-hour","Personne-horaire","persona-hora","title",{"$f":"HLOOKUP($C$2,$B$8:$D359,$A359,FALSE)","v":"person-hour"},"title352"]
[353,"Liter water/t res","Litre d'eau par tonne de résidu","Litro de agua/t residuos","title",{"$f":"HLOOKUP($C$2,$B$8:$D360,$A360,FALSE)","v":"Liter water/t res"},"title353"]
[354,"person-day/t res","Personne par jour par tonne de résidu","persona-día/t residuos","title",{"$f":"HLOOKUP($C$2,$B$8:$D361,$A361,FALSE)","v":"person-day/t res"},"title354"]
[355,"Capital Investment","Investissement en capital","Inversión de Capital","title",{"$f":"HLOOKUP($C$2,$B$8:$D362,$A362,FALSE)","v":"Capital Investment"},"title355"]
[356," and equipment","et équipement","y equipos","title",{"$f":"HLOOKUP($C$2,$B$8:$D363,$A363,FALSE)","v":" and equipment"},"title356"]
[357,"Dewatering","Séchage","Deshidratación","title",{"$f":"HLOOKUP($C$2,$B$8:$D364,$A364,FALSE)","v":"Dewatering"},"title357"]
[358,"Operation and Mainteinance","Opération et Maintenance","Operación y Mantenimiento","title",{"$f":"HLOOKUP($C$2,$B$8:$D365,$A365,FALSE)","v":"Operation and Mainteinance"},"title358"]
[359,"Cost for Collection and transfer to storage tank","Cout de collecte et de transfert vers le erservoir de stockage","Costo de Recolección y transferir al tanque de almacenamiento","title",{"$f":"HLOOKUP($C$2,$B$8:$D366,$A366,FALSE)","v":"Cost for Collection and transfer to storage tank"},"title359"]
[360,"Collection Method 3 - Feedstock collected from different farms","Méthode de collecte 3 - Intrant collecté dans différentes fermes","Método de Recolección 3 - Materia prima recolectada de diferentes granjas","title",{"$f":"HLOOKUP($C$2,$B$8:$D367,$A367,FALSE)","v":"Collection Method 3 - Feedstock collected from different farms"},"title360"]
[361,"Source of biomass","Source de biomasse","Fuente de la biomasa","title",{"$f":"HLOOKUP($C$2,$B$8:$D368,$A368,FALSE)","v":"Source of biomass"},"title361"]
[362,"Transfer from individual farms","Transfer depuis des fermes individuelles","Transferencia de las granjas individuales","title",{"$f":"HLOOKUP($C$2,$B$8:$D369,$A369,FALSE)","v":"Transfer from individual farms"},"title362"]
[363,"Transportation method","Méthode de transport","Método de transporte","title",{"$f":"HLOOKUP($C$2,$B$8:$D370,$A370,FALSE)","v":"Transportation method"},"title363"]
[364,"Tanker Truck Transfer","Transport par camion citerne","Transporte en camiones cisterna","title",{"$f":"HLOOKUP($C$2,$B$8:$D371,$A371,FALSE)","v":"Tanker Truck Transfer"},"title364"]
[365,"Tranport Capacity (liter)","Capacité de transport (litre)","Capacidad de Transporte (litros)","title",{"$f":"HLOOKUP($C$2,$B$8:$D372,$A372,FALSE)","v":"Tranport Capacity (liter)"},"title365"]
[366,"Pipe Diameter (in)","Diamètre du tuyeau (inches)","DiámetroTuberia (pulgadas)","title",{"$f":"HLOOKUP($C$2,$B$8:$D373,$A373,FALSE)","v":"Pipe Diameter (in)"},"title366"]
[367,"Engine Power (HP)","Puissance du moteur (ch)","Potencia del motor (HP)","title",{"$f":"HLOOKUP($C$2,$B$8:$D374,$A374,FALSE)","v":"Engine Power (HP)"},"title367"]
[368,"Motor Power (HP)","Puissance du moteur (ch)","Potencia motor  (HP)","title",{"$f":"HLOOKUP($C$2,$B$8:$D375,$A375,FALSE)","v":"Motor Power (HP)"},"title368"]
[369,"Transfer Rate (l/h)","Taux de transfert (l/h)","Velocidad de transferencia (l / h)","title",{"$f":"HLOOKUP($C$2,$B$8:$D376,$A376,FALSE)","v":"Transfer Rate (l/h)"},"title369"]
[370,"Residue Quanitiy (t/year)","Quantité de résidus (t/an)","Cantidad Residuo (t / año)","title",{"$f":"HLOOKUP($C$2,$B$8:$D377,$A377,FALSE)","v":"Residue Quanitiy (t/year)"},"title370"]
[371,"Residue Density (kg/m3)","Densité du résidu (kg/m3)","Densidad Residuo (kg / m3)","title",{"$f":"HLOOKUP($C$2,$B$8:$D378,$A378,FALSE)","v":"Residue Density (kg/m3)"},"title371"]
[372,"Number Of Farms Supplying Feedstock","Nombre de fermes fournissant l'intrant","Número de granjas summinstrando materia prima","title",{"$f":"HLOOKUP($C$2,$B$8:$D379,$A379,FALSE)","v":"Number Of Farms Supplying Feedstock"},"title372"]
[373,"Average distance to collection point (m)","Distance moyenne par rapport au point de collecte (m)","Distancia media a un punto de recogida (m)","title",{"$f":"HLOOKUP($C$2,$B$8:$D380,$A380,FALSE)","v":"Average distance to collection point (m)"},"title373"]
[374,"Collection Period (days)","Période de collecte (jours)","Período de recolección (días)","title",{"$f":"HLOOKUP($C$2,$B$8:$D381,$A381,FALSE)","v":"Collection Period (days)"},"title374"]
[375,"Number of Tanks","Nombre de réservoirs","Número de Tanques","title",{"$f":"HLOOKUP($C$2,$B$8:$D382,$A382,FALSE)","v":"Number of Tanks"},"title375"]
[376,"Number of Pumps","Nombre de pompes","Número de bombas","title",{"$f":"HLOOKUP($C$2,$B$8:$D383,$A383,FALSE)","v":"Number of Pumps"},"title376"]
[377," required","Requis","Requerido","title",{"$f":"HLOOKUP($C$2,$B$8:$D384,$A384,FALSE)","v":" required"},"title377"]
[378,"Semi-mechanized","Semi-mécanisé","Semi-mecanizada","title",{"$f":"HLOOKUP($C$2,$B$8:$D385,$A385,FALSE)","v":"Semi-mechanized"},"title378"]
[379,"Number of unskilled workers","Nombre d'ouvriers non-qualifiés","Número de trabajadores no cualificados","title",{"$f":"HLOOKUP($C$2,$B$8:$D386,$A386,FALSE)","v":"Number of unskilled workers"},"title379"]
[380,"Number of skilled workers","Nombre d'ouvriers qualifiés","Número de trabajadores cualificados","title",{"$f":"HLOOKUP($C$2,$B$8:$D387,$A387,FALSE)","v":"Number of skilled workers"},"title380"]
[381,"person-hour/t","Personne-heure/t","persona-hora/t","title",{"$f":"HLOOKUP($C$2,$B$8:$D388,$A388,FALSE)","v":"person-hour/t"},"title381"]
[382,"Mechanized","Mécanisé","Mecanizado","title",{"$f":"HLOOKUP($C$2,$B$8:$D389,$A389,FALSE)","v":"Mechanized"},"title382"]
[383,"Collection Machinery","Machinerie de collecte","Maquinaria de recolección","title",{"$f":"HLOOKUP($C$2,$B$8:$D390,$A390,FALSE)","v":"Collection Machinery"},"title383"]
[384,"Collection Diesel Consumption","Consommation de Diesel pour la collecte","Consumo de diésel durante la recolección","title",{"$f":"HLOOKUP($C$2,$B$8:$D391,$A391,FALSE)","v":"Collection Diesel Consumption"},"title384"]
[385,"Truck Diesel Consumption","Consommation de Diesel des camions","Consumo de diésel del camión","title",{"$f":"HLOOKUP($C$2,$B$8:$D392,$A392,FALSE)","v":"Truck Diesel Consumption"},"title385"]
[386,"Pump Electricity Consumption","Consommation d'électricité de la pompe","Consumo de Electricidad de la bomba","title",{"$f":"HLOOKUP($C$2,$B$8:$D393,$A393,FALSE)","v":"Pump Electricity Consumption"},{"$f":"$E393&$A393","v":"title386"}]
[387,"l diesel/day","l diesel/jour","litros diésel/día","title",{"$f":"HLOOKUP($C$2,$B$8:$D394,$A394,FALSE)","v":"l diesel/day"},"title387"]
[388,"kWh/day","kwh/jour","kWh/día","title",{"$f":"HLOOKUP($C$2,$B$8:$D395,$A395,FALSE)","v":"kWh/day"},"title388"]
[389,"Diesel Cost","Cout du diesel","Costo diésel","title",{"$f":"HLOOKUP($C$2,$B$8:$D396,$A396,FALSE)","v":"Diesel Cost"},"title389"]
[390,"Electricity Cost","Cout de l'électricité","Costo Electricidad","title",{"$f":"HLOOKUP($C$2,$B$8:$D397,$A397,FALSE)","v":"Electricity Cost"},"title390"]
[391,"Equipment","Equipement","Equipo","title",{"$f":"HLOOKUP($C$2,$B$8:$D398,$A398,FALSE)","v":"Equipment"},"title391"]
[392,"Liquid Tanker Truck","Camion-citerne","Camión cisterna","title",{"$f":"HLOOKUP($C$2,$B$8:$D399,$A399,FALSE)","v":"Liquid Tanker Truck"},"title392"]
[393,"Pipe length","Longueur du tuyau","Longitud tuberías","title",{"$f":"HLOOKUP($C$2,$B$8:$D400,$A400,FALSE)","v":"Pipe length"},"title393"]
[394,"Semi-tractor 185 ","Semi-tracteur 185 ch","Semi-tractor 185","title",{"$f":"HLOOKUP($C$2,$B$8:$D401,$A401,FALSE)","v":"Semi-tractor 185 "},"title394"]
[395," HP"," Puissance","HP","title",{"$f":"HLOOKUP($C$2,$B$8:$D402,$A402,FALSE)","v":" HP"},"title395"]
[396,"Pump ","Pompe","Bomba","title",{"$f":"HLOOKUP($C$2,$B$8:$D403,$A403,FALSE)","v":"Pump "},"title396"]
[397," HP with agitator","HP avec agitateur","HP con agitador","title",{"$f":"HLOOKUP($C$2,$B$8:$D404,$A404,FALSE)","v":" HP with agitator"},"title397"]
[398,"tank(s)","Réservoir(s)","Tanque (s)","title",{"$f":"HLOOKUP($C$2,$B$8:$D405,$A405,FALSE)","v":"tank(s)"},"title398"]
[399,"Cost per Tank","Cout par réservoir","Costo por tanque","title",{"$f":"HLOOKUP($C$2,$B$8:$D406,$A406,FALSE)","v":"Cost per Tank"},"title399"]
[400,"Cost per meter","Cout par mètre","Costo por metro","title",{"$f":"HLOOKUP($C$2,$B$8:$D407,$A407,FALSE)","v":"Cost per meter"},"title400"]
[401,"Depreciation Period","Période de dépréciation","Período de depreciación","title",{"$f":"HLOOKUP($C$2,$B$8:$D408,$A408,FALSE)","v":"Depreciation Period"},"title401"]
[402,"USD/tank/year","US/réservoir/an","USD/tanque/año","title",{"$f":"HLOOKUP($C$2,$B$8:$D409,$A409,FALSE)","v":"USD/tank/year"},"title402"]
[403,"USD/m/year","US/m/an","USD/m/año","title",{"$f":"HLOOKUP($C$2,$B$8:$D410,$A410,FALSE)","v":"USD/m/year"},"title403"]
[404,"Cost for Collection and transfer to central collection point","Cout de collecte et de transfert à un lieu de collecte central","Costo de recogida y transferencia al punto de recogida central","title",{"$f":"HLOOKUP($C$2,$B$8:$D411,$A411,FALSE)","v":"Cost for Collection and transfer to central collection point"},"title404"]
[405,"Collection method","Méthode de collecte","Método de recolección","title",{"$f":"HLOOKUP($C$2,$B$8:$D412,$A412,FALSE)","v":"Collection method"},"title405"]
[406,"Semi-tractor 185 HP","Semi-tracteur 185 ch","Semi-tractor 185 HP","title",{"$f":"HLOOKUP($C$2,$B$8:$D413,$A413,FALSE)","v":"Semi-tractor 185 HP"},"title406"]
[407,"Average fuel economy","Economie moyenne en carburant","economía de combustible promedio","title",{"$f":"HLOOKUP($C$2,$B$8:$D414,$A414,FALSE)","v":"Average fuel economy"},"title407"]
[408,"Fuel price","Prix du carburant","Precio del combustible","title",{"$f":"HLOOKUP($C$2,$B$8:$D415,$A415,FALSE)","v":"Fuel price"},"title408"]
[409,"person-hour/ha","Personne-heure/ha","persona-hora/ha","title",{"$f":"HLOOKUP($C$2,$B$8:$D416,$A416,FALSE)","v":"person-hour/ha"},"title409"]
[410,"Sources of biomass","Sources de biomasse","Fuentes de biomasa","title",{"$f":"HLOOKUP($C$2,$B$8:$D417,$A417,FALSE)","v":"Sources of biomass"},"title410"]
[411,"Biomass spread in the field","Epandage de biomasse dans les champs","Biomasa dispersa en los campos","title",{"$f":"HLOOKUP($C$2,$B$8:$D418,$A418,FALSE)","v":"Biomass spread in the field"},"title411"]
[412,"Biomass collected from field","Biomasse collectée dans les champs","Biomasa recolectada en los campos","title",{"$f":"HLOOKUP($C$2,$B$8:$D419,$A419,FALSE)","v":"Biomass collected from field"},"title412"]
[413,"Biomass from food processing plant","Biomasse collectée depuis les usines agro-alimentaires","Biomasa de plantas de procesamiento de alimentos","title",{"$f":"HLOOKUP($C$2,$B$8:$D420,$A420,FALSE)","v":"Biomass from food processing plant"},"title413"]
[414,"Alley Scrapers","Raclette a étable","Alley scrapers","title",{"$f":"HLOOKUP($C$2,$B$8:$D421,$A421,FALSE)","v":"Alley Scrapers"},"title414"]
[415,"Flush System","Système de vidange","Sistema de descarga","title",{"$f":"HLOOKUP($C$2,$B$8:$D422,$A422,FALSE)","v":"Flush System"},"title415"]
[416,"Vacum Scraper","Raclette aspirante","Raspador al vacio","title",{"$f":"HLOOKUP($C$2,$B$8:$D423,$A423,FALSE)","v":"Vacum Scraper"},"title416"]
[417,"Skid-loader","Chargeuse compacte","Cargadora","title",{"$f":"HLOOKUP($C$2,$B$8:$D424,$A424,FALSE)","v":"Skid-loader"},"title417"]
[418,"Cross gutter Scraper","Nettoyeur de dalot transversal","Raspador de canal transversal","title",{"$f":"HLOOKUP($C$2,$B$8:$D425,$A425,FALSE)","v":"Cross gutter Scraper"},"title418"]
[419,"Cross Gutter Auger","Vis à fumier","Raspador de canal de barrena","title",{"$f":"HLOOKUP($C$2,$B$8:$D426,$A426,FALSE)","v":"Cross Gutter Auger"},"title419"]
[420,"Flush Flume","Canal de vidange","Canal de descarga","title",{"$f":"HLOOKUP($C$2,$B$8:$D427,$A427,FALSE)","v":"Flush Flume"},"title420"]
[421,"USD/liter mixture","USD/l de mixture","USD/litros de mezcla","title",{"$f":"HLOOKUP($C$2,$B$8:$D428,$A428,FALSE)","v":"USD/liter mixture"},"title421"]
[422,"Capital Cost (USD/t residue)","Cout en capital (USD/t de résidu)","Costo de capital (USD/t residuo)","title",{"$f":"HLOOKUP($C$2,$B$8:$D429,$A429,FALSE)","v":"Capital Cost (USD/t residue)"},"title422"]
[423,"Operation (worker/t residue)","Opération (travailleur/t de résidu)","Operación (trabajador/t residuo)","title",{"$f":"HLOOKUP($C$2,$B$8:$D430,$A430,FALSE)","v":"Operation (worker/t residue)"},"title423"]
[424,"Energy Demand kWh/t residue","Besoin en énergie (kWh/t de résidu)","Demanda de Energía kWh/t residuo","title",{"$f":"HLOOKUP($C$2,$B$8:$D431,$A431,FALSE)","v":"Energy Demand kWh/t residue"},"title424"]
[425,"No collection neeeded","Pas besoin de collecte","No requiere recolección","title",{"$f":"HLOOKUP($C$2,$B$8:$D432,$A432,FALSE)","v":"No collection neeeded"},"title425"]
[426,"Method 1","Méthode 1","Método 1","title",{"$f":"HLOOKUP($C$2,$B$8:$D433,$A433,FALSE)","v":"Method 1"},"title426"]
[427,"Method 2, Method 3","Méthode 2, Méthode 3","Método 2, Método 3","title",{"$f":"HLOOKUP($C$2,$B$8:$D434,$A434,FALSE)","v":"Method 2, Method 3"},"title427"]
[428,"Method 2","Méthode 2","Método 2","title",{"$f":"HLOOKUP($C$2,$B$8:$D435,$A435,FALSE)","v":"Method 2"},"title428"]
[429,"Option","Option","Opción","title",{"$f":"HLOOKUP($C$2,$B$8:$D436,$A436,FALSE)","v":"Option"},"title429"]
[430,"Result","Résultat","Resultado","title",{"$f":"HLOOKUP($C$2,$B$8:$D437,$A437,FALSE)","v":"Result"},"title430"]
[431,"Employees","Employés","Empleados","title",{"$f":"HLOOKUP($C$2,$B$8:$D438,$A438,FALSE)","v":"Employees"},"title431"]
[432,"High Volume Pipeline","Conduite gros volume","Tubería de alto Volumen","title",{"$f":"HLOOKUP($C$2,$B$8:$D439,$A439,FALSE)","v":"High Volume Pipeline"},"title432"]
[433,"Low Volume Pipeline","Conduite petit volume","Tubería de bajo volumen","title",{"$f":"HLOOKUP($C$2,$B$8:$D440,$A440,FALSE)","v":"Low Volume Pipeline"},"title433"]
[434,"Density (Kg/m3)","Densité (kg/m3)","Densidad (Kg / m3)","title",{"$f":"HLOOKUP($C$2,$B$8:$D441,$A441,FALSE)","v":"Density (Kg/m3)"},"title434"]
[435,"Buffalo","Buffle","Bufalo","title",{"$f":"HLOOKUP($C$2,$B$8:$D442,$A442,FALSE)","v":"Buffalo"},"title435"]
[436,"Cattle","Bovidés","Ganado","title",{"$f":"HLOOKUP($C$2,$B$8:$D443,$A443,FALSE)","v":"Cattle"},"title436"]
[437,"Dairy Cattle","Bovins laitiers","Ganado lechero","title",{"$f":"HLOOKUP($C$2,$B$8:$D444,$A444,FALSE)","v":"Dairy Cattle"},"title437"]
[438,"Poultry","Volailles","Aves de corral","title",{"$f":"HLOOKUP($C$2,$B$8:$D445,$A445,FALSE)","v":"Poultry"},"title438"]
[439,"Swine","Porcins","Ganado porcino","title",{"$f":"HLOOKUP($C$2,$B$8:$D446,$A446,FALSE)","v":"Swine"},"title439"]
[440,"Capacity","Capacité","Capacidad","title",{"$f":"HLOOKUP($C$2,$B$8:$D447,$A447,FALSE)","v":"Capacity"},"title440"]
[441,"Engine/motor (hp)","moteur/moteur (ch)","Motor/motor (CV)","title",{"$f":"HLOOKUP($C$2,$B$8:$D448,$A448,FALSE)","v":"Engine/motor (hp)"},"title441"]
[442,"Transfer time (m/h)","Temps de transfert ","Tiempo deTransferencia (m/h)","title",{"$f":"HLOOKUP($C$2,$B$8:$D449,$A449,FALSE)","v":"Transfer time (m/h)"},"title442"]
[443,"Energy Use  (kw)","Utilisation d'énergie (kw)","Uso de energía (kW)","title",{"$f":"HLOOKUP($C$2,$B$8:$D450,$A450,FALSE)","v":"Energy Use  (kw)"},"title443"]
[444,"Add equipment","Ajouter un équipement","Agregar equipos","title",{"$f":"HLOOKUP($C$2,$B$8:$D451,$A451,FALSE)","v":"Add equipment"},"title444"]
[445,"Revenues of biomass production and use system","Revenus issus du système de production et d'utilisation de biomasse","Ingresos de la producción de biomasa y del sistema de uso","title",{"$f":"HLOOKUP($C$2,$B$8:$D452,$A452,FALSE)","v":"Revenues of biomass production and use system"},"title445"]
[446,"Operating Year","Année d'opération","Años de Operación","title",{"$f":"HLOOKUP($C$2,$B$8:$D453,$A453,FALSE)","v":"Operating Year"},"title446"]
[447,"Biogas production capacity (m3 Biogas per year)","Capacité de production de biogaz (m3 de Biogaz par an)","Capacidad de producción de biogás (m3 de biogás por año)","title",{"$f":"HLOOKUP($C$2,$B$8:$D454,$A454,FALSE)","v":"Biogas production capacity (m3 Biogas per year)"},"title447"]
[448,"Heat Available for Selling (MJ/year)","Chaleur disponible à la vente (MJ/an)","Calor disponible para la venta (MJ / año)","title",{"$f":"HLOOKUP($C$2,$B$8:$D455,$A455,FALSE)","v":"Heat Available for Selling (MJ/year)"},"title448"]
[449,"Electricity Available for Selling (kWh/year)","Électricité disponible à la vente (kWh/an)","Electricidad disponible para la venta (kWh / año)","title",{"$f":"HLOOKUP($C$2,$B$8:$D456,$A456,FALSE)","v":"Electricity Available for Selling (kWh/year)"},"title449"]
[450,"Biomethane Production (m3 Methane/year)","Production de méthane (m3/an)","Producción de biometano (m3 de metano / año)","title",{"$f":"HLOOKUP($C$2,$B$8:$D457,$A457,FALSE)","v":"Biomethane Production (m3 Methane/year)"},{"$f":"$E457&$A457","v":"title450"}]
[451,"Biogas Available for Selling (m3/year)","Biogaz disponible à la vente (m3/an)","Biogás disponibles para la venta (m3 / año)","title",{"$f":"HLOOKUP($C$2,$B$8:$D458,$A458,FALSE)","v":"Biogas Available for Selling (m3/year)"},"title451"]
[452,"Digestate Production (t/year)","Production de digestat (t/an)","Prducción de digestato (t / año)","title",{"$f":"HLOOKUP($C$2,$B$8:$D459,$A459,FALSE)","v":"Digestate Production (t/year)"},"title452"]
[453,"Biogas Selling Price (USD/m3)","Prix de Vente du Biogaz (USD/m3)","Precio de venta del biogás (USD / m3)","title",{"$f":"HLOOKUP($C$2,$B$8:$D460,$A460,FALSE)","v":"Biogas Selling Price (USD/m3)"},"title453"]
[454,"Biomethane Selling Price (USD/m3)","Prix de Vente du méthane (USD/m3)","Precio de venta del biometano (USD / m3)","title",{"$f":"HLOOKUP($C$2,$B$8:$D461,$A461,FALSE)","v":"Biomethane Selling Price (USD/m3)"},"title454"]
[455,"Digestate Sellig Price (USD/t)","Prix de Vente du digestat (USD/t)","Precio de venta del digestato (USD / t)","title",{"$f":"HLOOKUP($C$2,$B$8:$D462,$A462,FALSE)","v":"Digestate Sellig Price (USD/t)"},"title455"]
[456,"Annual Income (USD per year)","Revenus annuels (USD par an)","Ingreso anual (USD por año)","title",{"$f":"HLOOKUP($C$2,$B$8:$D463,$A463,FALSE)","v":"Annual Income (USD per year)"},"title456"]
[457,"Lifespan of civil work (years)","Durée de vie des travaux d'infrastructure (années)","Vida útil de la obra civil (años)","title",{"$f":"HLOOKUP($C$2,$B$8:$D464,$A464,FALSE)","v":"Lifespan of civil work (years)"},"title457"]
[458,"Lifespan of charcoal system (years)","Durée de vie du système de charbon actif (années)","Vida útil del sistema de carbón (años)","title",{"$f":"HLOOKUP($C$2,$B$8:$D465,$A465,FALSE)","v":"Lifespan of charcoal system (years)"},"title458"]
[459,"Project lifetime (years)","Durée de vie du projet (années)","Vida útil del proyecto (años)","title",{"$f":"HLOOKUP($C$2,$B$8:$D466,$A466,FALSE)","v":"Project lifetime (years)"},"title459"]
[460,"Capital and operating cost of biogas system ","Capital et cout d'opération du système de biogaz","Capital y costos de operación del sistema de biogás","title",{"$f":"HLOOKUP($C$2,$B$8:$D467,$A467,FALSE)","v":"Capital and operating cost of biogas system "},"title460"]
[461,"Capital cost (USD)","Cout en capital (USD)","Costo de capital (USD)","title",{"$f":"HLOOKUP($C$2,$B$8:$D468,$A468,FALSE)","v":"Capital cost (USD)"},"title461"]
[462,"Installation","Installation","Instalación","title",{"$f":"HLOOKUP($C$2,$B$8:$D469,$A469,FALSE)","v":"Installation"},"title462"]
[463,"Total capital cost (USD)","Cout total en capital (USD)","Costo de capital total (USD)","title",{"$f":"HLOOKUP($C$2,$B$8:$D470,$A470,FALSE)","v":"Total capital cost (USD)"},"title463"]
[464,"Appraisal","Evaluation","Evaluación","title",{"$f":"HLOOKUP($C$2,$B$8:$D471,$A471,FALSE)","v":"Appraisal"},"title464"]
[465,"Project period (years)","Durée du projet (années)","Período del proyecto (años)","title",{"$f":"HLOOKUP($C$2,$B$8:$D472,$A472,FALSE)","v":"Project period (years)"},"title465"]
[466,"per year","Par an","por año","title",{"$f":"HLOOKUP($C$2,$B$8:$D473,$A473,FALSE)","v":"per year"},"title466"]
[467,"Annual operating and maintenance cost ","Couts d'opération et de maintenance annuels","Costo de operación y mantenimiento annual","title",{"$f":"HLOOKUP($C$2,$B$8:$D474,$A474,FALSE)","v":"Annual operating and maintenance cost "},"title467"]
[468,"Sub-total inputs cost (USD)","Sous-total cout des intrants (USD)","Subtotal costo de los insumos (USD)","title",{"$f":"HLOOKUP($C$2,$B$8:$D475,$A475,FALSE)","v":"Sub-total inputs cost (USD)"},"title468"]
[469,"Sub-total operating cost (USD)","Sous-total cout d'opération (USD)","Subtotal costo de operación (USD)","title",{"$f":"HLOOKUP($C$2,$B$8:$D476,$A476,FALSE)","v":"Sub-total operating cost (USD)"},"title469"]
[470,"Labour cost & Misc. (USD)","Cout de main-d'oeuvre et divers (USD)","Costo mano de obra y Misceláneos (USD)","title",{"$f":"HLOOKUP($C$2,$B$8:$D477,$A477,FALSE)","v":"Labour cost & Misc. (USD)"},"title470"]
[471,"Sub-total maintenance cost (USD)","Sous-total couts de maintenance (USD)","Subtotal costo de mantenimiento (USD)","title",{"$f":"HLOOKUP($C$2,$B$8:$D478,$A478,FALSE)","v":"Sub-total maintenance cost (USD)"},"title471"]
[472,"Sub-total of annual fixed cost (USD)","Sous-total couts fixes annuels (USD)","Subtotal de costos anuales fijos (USD)","title",{"$f":"HLOOKUP($C$2,$B$8:$D479,$A479,FALSE)","v":"Sub-total of annual fixed cost (USD)"},"title472"]
[473,"Sub-total of storage cost (USD)","Sous-total couts de stockage (USD)","Subtotal de costos de almacenamiento (USD)","title",{"$f":"HLOOKUP($C$2,$B$8:$D480,$A480,FALSE)","v":"Sub-total of storage cost (USD)"},"title473"]
[474,"Total operation and maintenance cost (USD)","Total couts d'opération et de maintenance (USD)","Costo total de operación y mantenimiento (USD)","title",{"$f":"HLOOKUP($C$2,$B$8:$D481,$A481,FALSE)","v":"Total operation and maintenance cost (USD)"},"title474"]
[475,"Loan ratio (%)","Ratio du prêt (%) ","Ratio del préstamo (%)","title",{"$f":"HLOOKUP($C$2,$B$8:$D482,$A482,FALSE)","v":"Loan ratio (%)"},"title475"]
[476,"Loan amount (USD)","Montant du prêt (USD)","Cantidad del préstamo (USD)","title",{"$f":"HLOOKUP($C$2,$B$8:$D483,$A483,FALSE)","v":"Loan amount (USD)"},"title476"]
[477,"Total loan payment (USD)","Paiement total du prêt (USD)","Pago total por el préstamo (USD)","title",{"$f":"HLOOKUP($C$2,$B$8:$D484,$A484,FALSE)","v":"Total loan payment (USD)"},"title477"]
[478,"Loan interest payment (USD)","Paiement des intérêts du prêt (USD)","Pago de intereses por el préstamo (USD)","title",{"$f":"HLOOKUP($C$2,$B$8:$D485,$A485,FALSE)","v":"Loan interest payment (USD)"},"title478"]
[479,"loan interest payment for project lifetime","Paiement des intérêts du prêt sur la durée de vie du projet (USD)","Pago de intereses por el préstamo durante toda la vida del proyecto","title",{"$f":"HLOOKUP($C$2,$B$8:$D486,$A486,FALSE)","v":"loan interest payment for project lifetime"},"title479"]
[480,"Depreciation method","Méthode de dépréciation","Método de depreciación","title",{"$f":"HLOOKUP($C$2,$B$8:$D487,$A487,FALSE)","v":"Depreciation method"},"title480"]
[481,"Total depreciation (USD)","Dépréciation totale (USD)","Depreciación total (USD)","title",{"$f":"HLOOKUP($C$2,$B$8:$D488,$A488,FALSE)","v":"Total depreciation (USD)"},"title481"]
[482,"Straight-line","Amortissement linéaire ","Línea recta","title",{"$f":"HLOOKUP($C$2,$B$8:$D489,$A489,FALSE)","v":"Straight-line"},"title482"]
[483,"Base case Project Summary","Cas de référence résumé du projet","Resúmen del caso base del proyecto","title",{"$f":"HLOOKUP($C$2,$B$8:$D490,$A490,FALSE)","v":"Base case Project Summary"},"title483"]
[484,"Summary of this project","Résumé de ce projet","Resúmen de este proyecto","title",{"$f":"HLOOKUP($C$2,$B$8:$D491,$A491,FALSE)","v":"Summary of this project"},"title484"]
[485,"Total revenue (USD)","Total des recettes (USD)","Total los ingresos (USD)","title",{"$f":"HLOOKUP($C$2,$B$8:$D492,$A492,FALSE)","v":"Total revenue (USD)"},"title485"]
[486,"Total operating and maintenance cost (USD)","Total couts d'opération et de maintenance (USD)","Total de costos de operación y mantenimiento (USD)","title",{"$f":"HLOOKUP($C$2,$B$8:$D493,$A493,FALSE)","v":"Total operating and maintenance cost (USD)"},"title486"]
[487,"Loan payment (USD)","Paiements du prêt (USD)","Pago del préstamo (USD)","title",{"$f":"HLOOKUP($C$2,$B$8:$D494,$A494,FALSE)","v":"Loan payment (USD)"},"title487"]
[488,"Cash flow with loan (USD)","Liquidités avec le prêt (USD)","Flujo de caja con el préstamo (USD)","title",{"$f":"HLOOKUP($C$2,$B$8:$D495,$A495,FALSE)","v":"Cash flow with loan (USD)"},"title488"]
[489,"Cash flow without loan (USD)","Liquidités sans le prêt (USD)","Flujo de caja sin el préstamo (USD)","title",{"$f":"HLOOKUP($C$2,$B$8:$D496,$A496,FALSE)","v":"Cash flow without loan (USD)"},"title489"]
[490,"Cumulative value of Net Profit","Valeur cumulée du profit net","Valor acumulado de Ganancias netas","title",{"$f":"HLOOKUP($C$2,$B$8:$D497,$A497,FALSE)","v":"Cumulative value of Net Profit"},"title490"]
[491,"Financial Analysis Result","Résultat de l'analyse financière","Resultados del Análisis financiero ","title",{"$f":"HLOOKUP($C$2,$B$8:$D498,$A498,FALSE)","v":"Financial Analysis Result"},"title491"]
[492,"Not feasible","Impossible","No es factible","title",{"$f":"HLOOKUP($C$2,$B$8:$D499,$A499,FALSE)","v":"Not feasible"},"title492"]
[493,"Net Present Value (NPV) (USD)","Valeur Actuelle Nette (VAN) (USD)","Valor Presente Neto (VPN) (USD)","title",{"$f":"HLOOKUP($C$2,$B$8:$D500,$A500,FALSE)","v":"Net Present Value (NPV) (USD)"},"title493"]
[494,"Internal Rate of Return (IRR) (%) - without loan","Taux de rendement Interne (TRI) (%) - sans prêt","Tasa Interna de Retorno (TIR) (%) - sin préstamo","title",{"$f":"HLOOKUP($C$2,$B$8:$D501,$A501,FALSE)","v":"Internal Rate of Return (IRR) (%) - without loan"},"title494"]
[495,"Internal Rate of Return (IRR) (%) - with loan","Taux de rendement Interne (TRI) (%) - avec prêt","Tasa Interna de Retorno (TIR) (%) - con préstamo","title",{"$f":"HLOOKUP($C$2,$B$8:$D502,$A502,FALSE)","v":"Internal Rate of Return (IRR) (%) - with loan"},"title495"]
[496,"FINANCIAL EVALUATION OF BIOGAS PRODUCTION SIZE","EVALUATION FINANCIÈRE DE LA TAILLE DE LA PRODUCTION DE BIOGAZ","EVALUACIÓN FINANCIERA DEL TAMANO DE LA PRODUCCIÓN DE BIOGAS","title",{"$f":"HLOOKUP($C$2,$B$8:$D503,$A503,FALSE)","v":"FINANCIAL EVALUATION OF BIOGAS PRODUCTION SIZE"},"title496"]
[497,"DETAILED INVESTMENT PROCESS","PROCÉDÉ D'INVESTISSEMENT DÉTAILLÉ","DETALLE DEL PROCESO DE INVERSIÓN","title",{"$f":"HLOOKUP($C$2,$B$8:$D504,$A504,FALSE)","v":"DETAILED INVESTMENT PROCESS"},"title497"]
[498,"Escalation Factor","Facteur d'indexation","Factor de escala","title",{"$f":"HLOOKUP($C$2,$B$8:$D505,$A505,FALSE)","v":"Escalation Factor"},"title498"]
[499,"Digester size","Taille du digesteur","Tamaño digestor","title",{"$f":"HLOOKUP($C$2,$B$8:$D506,$A506,FALSE)","v":"Digester size"},"title499"]
[500,"Households Electr.","Ménages Electricité","hogares eléctr.","title",{"$f":"HLOOKUP($C$2,$B$8:$D507,$A507,FALSE)","v":"Households Electr."},"title500"]
[501,"Households Heat.","Ménages Chaleur","Hogares calor.","title",{"$f":"HLOOKUP($C$2,$B$8:$D508,$A508,FALSE)","v":"Households Heat."},"title501"]
[502,"Operating period","Période d'opération","Periodo de operación","title",{"$f":"HLOOKUP($C$2,$B$8:$D509,$A509,FALSE)","v":"Operating period"},"title502"]
[503,"Cable Proxy","Cable de substitution","Cable proxy","title",{"$f":"HLOOKUP($C$2,$B$8:$D510,$A510,FALSE)","v":"Cable Proxy"},"title503"]
[504,"Volume Reactor","Volume du réacteur","Volumen del reactor","title",{"$f":"HLOOKUP($C$2,$B$8:$D511,$A511,FALSE)","v":"Volume Reactor"},"title504"]
[505,"h/year","h/an","h/año","title",{"$f":"HLOOKUP($C$2,$B$8:$D512,$A512,FALSE)","v":"h/year"},"title505"]
[506,"Capacities (m3 CH4/year)","Capacités (m3 CH4 par an)","capacidades (m3 CH4 / año)","title",{"$f":"HLOOKUP($C$2,$B$8:$D513,$A513,FALSE)","v":"Capacities (m3 CH4/year)"},"title506"]
[507,"Capacities (kWe)","Capacités (kWe)","Capacidades (kWe)","title",{"$f":"HLOOKUP($C$2,$B$8:$D514,$A514,FALSE)","v":"Capacities (kWe)"},"title507"]
[508,"Capacities (m3 Biogas/year)","Capacités (m3 Biogas par an)","Capacidades (m3 de biogás / año)","title",{"$f":"HLOOKUP($C$2,$B$8:$D515,$A515,FALSE)","v":"Capacities (m3 Biogas/year)"},"title508"]
[509,"Pretreatment","Pré-traitement","Pre-tratamiento","title",{"$f":"HLOOKUP($C$2,$B$8:$D516,$A516,FALSE)","v":"Pretreatment"},"title509"]
[510,"Other (Hygenization, crushing, homogenization)","Autres (hygiénisation, broyage, homogénéisation)","Otros (Higienización, trituración, homogeneización)","title",{"$f":"HLOOKUP($C$2,$B$8:$D517,$A517,FALSE)","v":"Other (Hygenization, crushing, homogenization)"},"title510"]
[511,"Pre-processing equipment","Matériel de prétraitement","Equipo de pre-procesamiento","title",{"$f":"HLOOKUP($C$2,$B$8:$D518,$A518,FALSE)","v":"Pre-processing equipment"},"title511"]
[512,"BIOGAS","BIOGAZ","BIOGAS","title",{"$f":"HLOOKUP($C$2,$B$8:$D519,$A519,FALSE)","v":"BIOGAS"},"title512"]
[513,"Digester CSTR","Digesteur à réservoir agité en continu (CSTR)","Digestor CSTR","title",{"$f":"HLOOKUP($C$2,$B$8:$D520,$A520,FALSE)","v":"Digester CSTR"},"title513"]
[514,"Digester UASB","Digesteur anaérobique à flux ascendants (UASB)","Digestor UASB","title",{"$f":"HLOOKUP($C$2,$B$8:$D521,$A521,FALSE)","v":"Digester UASB"},{"$f":"$E521&$A521","v":"title514"}]
[515,"Digester Plug Flow","Digesteur à écoulement piston","Digestor Plug Flow","title",{"$f":"HLOOKUP($C$2,$B$8:$D522,$A522,FALSE)","v":"Digester Plug Flow"},"title515"]
[516,"Digester Batch","Digesteur en discontinu","Lotes digestor","title",{"$f":"HLOOKUP($C$2,$B$8:$D523,$A523,FALSE)","v":"Digester Batch"},"title516"]
[517,"Effluence storage pool","Bassin de stockage des effluents","Efluentes piscina de almacenamiento","title",{"$f":"HLOOKUP($C$2,$B$8:$D524,$A524,FALSE)","v":"Effluence storage pool"},"title517"]
[518,"Buffer tank","Réservoir tampon","Tanque de transición","title",{"$f":"HLOOKUP($C$2,$B$8:$D525,$A525,FALSE)","v":"Buffer tank"},"title518"]
[519,"Odor Control System","Système de contrôle des odeurs","Sistema de control de olor","title",{"$f":"HLOOKUP($C$2,$B$8:$D526,$A526,FALSE)","v":"Odor Control System"},"title519"]
[520,"Metering Pumps","Pompes doseuses","Bombas dosificadoras","title",{"$f":"HLOOKUP($C$2,$B$8:$D527,$A527,FALSE)","v":"Metering Pumps"},"title520"]
[521,"Pumps","Pompes","Bombas","title",{"$f":"HLOOKUP($C$2,$B$8:$D528,$A528,FALSE)","v":"Pumps"},"title521"]
[522,"Trommel screen","Trommel cribleur","Sistema de criba","title",{"$f":"HLOOKUP($C$2,$B$8:$D529,$A529,FALSE)","v":"Trommel screen"},"title522"]
[523,"Mixers","Agitateurs","Mezcladores","title",{"$f":"HLOOKUP($C$2,$B$8:$D530,$A530,FALSE)","v":"Mixers"},"title523"]
[524,"Post digestion tank (for gravity separation)","Cuve de post digestion (pour séparation gravitaire)","Tanque de post digestión (para separación por gravedad)","title",{"$f":"HLOOKUP($C$2,$B$8:$D531,$A531,FALSE)","v":"Post digestion tank (for gravity separation)"},"title524"]
[525,"Gas collection equipment","Dispositif de collecte des gaz","Equipamiento de recolección de gas ","title",{"$f":"HLOOKUP($C$2,$B$8:$D532,$A532,FALSE)","v":"Gas collection equipment"},"title525"]
[526,"Desulfurizing tower","Colonne de désulfurisation","Torre de desulfuración","title",{"$f":"HLOOKUP($C$2,$B$8:$D533,$A533,FALSE)","v":"Desulfurizing tower"},"title526"]
[527,"Microturbines (30-500 kW)","Microturbines (30-500 kW)","Microturbinas (30-500 kW)","title",{"$f":"HLOOKUP($C$2,$B$8:$D534,$A534,FALSE)","v":"Microturbines (30-500 kW)"},"title527"]
[528,"Combustion Turbine (500 kW - 50 MW)","Turbine de combustion (500 kW - 50 MW)","Turbina de combustión(500 kW - 50 MW)","title",{"$f":"HLOOKUP($C$2,$B$8:$D535,$A535,FALSE)","v":"Combustion Turbine (500 kW - 50 MW)"},"title528"]
[529,"Reciprocating Engine (5 kW - 7 MW)","Moteur à pistons alternatifs (5 kW - 7 MW)","Motor alternativo (5 kW - 7 MW)","title",{"$f":"HLOOKUP($C$2,$B$8:$D536,$A536,FALSE)","v":"Reciprocating Engine (5 kW - 7 MW)"},"title529"]
[530,"Plug Flow","Écoulement piston","Tapón de flujo","title",{"$f":"HLOOKUP($C$2,$B$8:$D537,$A537,FALSE)","v":"Plug Flow"},"title530"]
[531,"Batch","Lot","Lote","title",{"$f":"HLOOKUP($C$2,$B$8:$D538,$A538,FALSE)","v":"Batch"},"title531"]
[532,"Building  w/slab","Bâtiment avec dalle","Construcción con losa","title",{"$f":"HLOOKUP($C$2,$B$8:$D539,$A539,FALSE)","v":"Building  w/slab"},"title532"]
[533,"50' Truck weighing scales","Balances à camion 50'","balanzas para pesaje de camiones de 50'","title",{"$f":"HLOOKUP($C$2,$B$8:$D540,$A540,FALSE)","v":"50' Truck weighing scales"},"title533"]
[534,"Foundation for scales inclu. Const.","Fondation pour des échelles incl. Const.","Fundación para las escalas inclu. Const.","title",{"$f":"HLOOKUP($C$2,$B$8:$D541,$A541,FALSE)","v":"Foundation for scales inclu. Const."},"title534"]
[535,"Front-End Loader","Chargeuse","Cargador frontal","title",{"$f":"HLOOKUP($C$2,$B$8:$D542,$A542,FALSE)","v":"Front-End Loader"},"title535"]
[536,"Solids drying area concrete slab","Dalle en béton zone de séchage des matières sèches","Zona de secado de sólidos en losa de hormigón","title",{"$f":"HLOOKUP($C$2,$B$8:$D543,$A543,FALSE)","v":"Solids drying area concrete slab"},"title536"]
[537,"Connection and earthing","Connexion et terrassement","Conexión y puesta a tierra","title",{"$f":"HLOOKUP($C$2,$B$8:$D544,$A544,FALSE)","v":"Connection and earthing"},"title537"]
[538,"Land Preparation","Préparation du sol","Preparación del terreno","title",{"$f":"HLOOKUP($C$2,$B$8:$D545,$A545,FALSE)","v":"Land Preparation"},"title538"]
[539,"Installation CSTR","Installation du système d’agitation en continu (CSTR) ","Instalación CSTR","title",{"$f":"HLOOKUP($C$2,$B$8:$D546,$A546,FALSE)","v":"Installation CSTR"},"title539"]
[540,"Installation UASB","Installation du digesteur anaérobique à flux ascendants (UASB)","Instalación UASB","title",{"$f":"HLOOKUP($C$2,$B$8:$D547,$A547,FALSE)","v":"Installation UASB"},"title540"]
[541,"Installation Plug Flow","Installation du digesteur à écoulement piston","Instalación Tapon de flujo","title",{"$f":"HLOOKUP($C$2,$B$8:$D548,$A548,FALSE)","v":"Installation Plug Flow"},"title541"]
[542,"Installation Batch","Installation du digesteur en discontinu","Instalación lote","title",{"$f":"HLOOKUP($C$2,$B$8:$D549,$A549,FALSE)","v":"Installation Batch"},"title542"]
[543,"Infrastructure (fencing) ","Infrastructure (clôture) ","Infraestructura (cercado)","title",{"$f":"HLOOKUP($C$2,$B$8:$D550,$A550,FALSE)","v":"Infrastructure (fencing) "},"title543"]
[544,"Infrastructure (roads) ($/ft2)","Infrastructure (routes) (USD/pi2)","de infraestructura (carreteras) ($ / pie2)","title",{"$f":"HLOOKUP($C$2,$B$8:$D551,$A551,FALSE)","v":"Infrastructure (roads) ($/ft2)"},"title544"]
[545,"ch4/year","ch4/an","CH4 / año","title",{"$f":"HLOOKUP($C$2,$B$8:$D552,$A552,FALSE)","v":"ch4/year"},"title545"]
[546,"Electricity Distribution network","Réseau de distribution électrique","Red de distribución de electricidad","title",{"$f":"HLOOKUP($C$2,$B$8:$D553,$A553,FALSE)","v":"Electricity Distribution network"},"title546"]
[547," Primary electricity cable"," Câble électrique primaire","Cable de electricidad primaria","title",{"$f":"HLOOKUP($C$2,$B$8:$D554,$A554,FALSE)","v":" Primary electricity cable"},"title547"]
[548,"Secondary cable, installation and meter","Câble secondaire, installation et compteur","Cable secundario, instalación y medido","title",{"$f":"HLOOKUP($C$2,$B$8:$D555,$A555,FALSE)","v":"Secondary cable, installation and meter"},"title548"]
[549,"Heat Distribution System","Système de distribution de la chaleur","Sistema de distribución de calor","title",{"$f":"HLOOKUP($C$2,$B$8:$D556,$A556,FALSE)","v":"Heat Distribution System"},"title549"]
[550,"Dwelling System","Système de logements","Sistema de Viviendas","title",{"$f":"HLOOKUP($C$2,$B$8:$D557,$A557,FALSE)","v":"Dwelling System"},"title550"]
[551,"Biogas Distribution System","Système de distribution de biogaz","Sistema de distribución de Biogas","title",{"$f":"HLOOKUP($C$2,$B$8:$D558,$A558,FALSE)","v":"Biogas Distribution System"},"title551"]
[552,"Pipe system (Biogas distribution)","Système de conduites (distribution de biogaz)","Sistema de tuberías (distribución de biogás)","title",{"$f":"HLOOKUP($C$2,$B$8:$D559,$A559,FALSE)","v":"Pipe system (Biogas distribution)"},"title552"]
[553,"Pipe system (BIOMETHANE distribution)","Système de conduites (distribution de BIOMÉTHANE)","Sistema de tuberías (distribución biometano)","title",{"$f":"HLOOKUP($C$2,$B$8:$D560,$A560,FALSE)","v":"Pipe system (BIOMETHANE distribution)"},"title553"]
[554,"Upgrade and connection to natural gas","Mise à niveau et raccordement au gaz naturel","Actualización y conexión para gas natrual","title",{"$f":"HLOOKUP($C$2,$B$8:$D561,$A561,FALSE)","v":"Upgrade and connection to natural gas"},"title554"]
[555,"Biogas Upgrading, Testing, and Injection Systems ","Systèmes de mise à niveau, de vérification et d'injection du biogaz ","Actualización Biogas , pruebas, y Sistemas de inyección","title",{"$f":"HLOOKUP($C$2,$B$8:$D562,$A562,FALSE)","v":"Biogas Upgrading, Testing, and Injection Systems "},"title555"]
[556,"Connection to Utility Natural Gas Pipeline","Raccordement aux conduites publiques de gaz naturel","Conexión a la tuberia del sistema de Gas Natural","title",{"$f":"HLOOKUP($C$2,$B$8:$D563,$A563,FALSE)","v":"Connection to Utility Natural Gas Pipeline"},"title556"]
[557,"USD/household","USD/ménage","USD / hogar","title",{"$f":"HLOOKUP($C$2,$B$8:$D564,$A564,FALSE)","v":"USD/household"},"title557"]
[558,"USD/m3/year","USD/m3/an","USD / m3 / año","title",{"$f":"HLOOKUP($C$2,$B$8:$D565,$A565,FALSE)","v":"USD/m3/year"},"title558"]
[559,"Production Cost Details","Détails des Coûts de Production","Detalles Costo de producción ","title",{"$f":"HLOOKUP($C$2,$B$8:$D566,$A566,FALSE)","v":"Production Cost Details"},"title559"]
[560,"Storage Methods","Méthodes de stockage","Métodos de almacenamiento","title",{"$f":"HLOOKUP($C$2,$B$8:$D567,$A567,FALSE)","v":"Storage Methods"},"title560"]
[561,"Pressure","Pression","Presión","title",{"$f":"HLOOKUP($C$2,$B$8:$D568,$A568,FALSE)","v":"Pressure"},"title561"]
[562,"Cost (USD/m3)","Coût (USD/m3)","Costo (USD / m3)","title",{"$f":"HLOOKUP($C$2,$B$8:$D569,$A569,FALSE)","v":"Cost (USD/m3)"},"title562"]
[563,"Energy (kWh/m3)","Énergie (kWh/m3)","Energía (kWh / m3)","title",{"$f":"HLOOKUP($C$2,$B$8:$D570,$A570,FALSE)","v":"Energy (kWh/m3)"},"title563"]
[564,"Methane (%)","Méthane (%)","Metano (% )","title",{"$f":"HLOOKUP($C$2,$B$8:$D571,$A571,FALSE)","v":"Methane (%)"},"title564"]
[565,"Low-pressure system","Système à basse pression","Sistema de baja presión","title",{"$f":"HLOOKUP($C$2,$B$8:$D572,$A572,FALSE)","v":"Low-pressure system"},"title565"]
[566,"Intermediate-pressure system","Système à intermédiaire pression","Sistema de presión intermedia","title",{"$f":"HLOOKUP($C$2,$B$8:$D573,$A573,FALSE)","v":"Intermediate-pressure system"},"title566"]
[567,"High-pressure system","Système à haute pression","Sistema de alta presión","title",{"$f":"HLOOKUP($C$2,$B$8:$D574,$A574,FALSE)","v":"High-pressure system"},"title567"]
[568,"Cryogenic-pressure system","Système cryogénique sous pression","Sistema criogénico de presión","title",{"$f":"HLOOKUP($C$2,$B$8:$D575,$A575,FALSE)","v":"Cryogenic-pressure system"},"title568"]
[569,"Water sealed gas holder","Gazomètre à garde hydraulique","Depósito de gas sellado de agua","title",{"$f":"HLOOKUP($C$2,$B$8:$D576,$A576,FALSE)","v":"Water sealed gas holder"},"title569"]
[570,"Propane Tanks","Bouteilles de propane","Tanques de propano","title",{"$f":"HLOOKUP($C$2,$B$8:$D577,$A577,FALSE)","v":"Propane Tanks"},"title570"]
[571,"CNG Tanks","Bouteilles de GNC","Tanques de GNC","title",{"$f":"HLOOKUP($C$2,$B$8:$D578,$A578,FALSE)","v":"CNG Tanks"},"title571"]
[572,"LNG Tanks","Bouteilles de GNL","Tanques de GNL","title",{"$f":"HLOOKUP($C$2,$B$8:$D579,$A579,FALSE)","v":"LNG Tanks"},"title572"]
[573,"2,000 to 5,000 psi","2000 à 5000 psi","2.000 a 5.000 psi","title",{"$f":"HLOOKUP($C$2,$B$8:$D580,$A580,FALSE)","v":"2,000 to 5,000 psi"},"title573"]
[574,"l diesel/t res","l diesel/t res","l de diesel / t res","title",{"$f":"HLOOKUP($C$2,$B$8:$D581,$A581,FALSE)","v":"l diesel/t res"},"title574"]
[575,"l diesel/h","l diesel/h","l de diesel / h","title",{"$f":"HLOOKUP($C$2,$B$8:$D582,$A582,FALSE)","v":"l diesel/h"},"title575"]
[576,"USD/l diesel","USD/l diesel","USD / l diesel","title",{"$f":"HLOOKUP($C$2,$B$8:$D583,$A583,FALSE)","v":"USD/l diesel"},"title576"]
[577,"SUMMARY OF RESULTS FOR PROCESS","RÉSUMÉ DES RÉSULTATS POUR LE PROCESSUS","RESUMEN DE LOS RESULTADOS DE PROCESO","title",{"$f":"HLOOKUP($C$2,$B$8:$D584,$A584,FALSE)","v":"SUMMARY OF RESULTS FOR PROCESS"},"title577"]
[578,"Select a feedstock to see the summary results","Sélectionner une matière première pour voir la synthèse des résultats","Seleccione una materia prima para ver el resumen de resultados","title",{"$f":"HLOOKUP($C$2,$B$8:$D585,$A585,FALSE)","v":"Select a feedstock to see the summary results"},"title578"]
[579,"Feedstock Selected","Matières premières sélectionné","Materia prima seleccionada","title",{"$f":"HLOOKUP($C$2,$B$8:$D586,$A586,FALSE)","v":"Feedstock Selected"},{"$f":"$E586&$A586","v":"title579"}]
[580,"Production Requirements","Exigences de production","Requisitos de la producción","title",{"$f":"HLOOKUP($C$2,$B$8:$D587,$A587,FALSE)","v":"Production Requirements"},"title580"]
[581,"Production Objective ","Objectifs de production ","Producción Objetivo","title",{"$f":"HLOOKUP($C$2,$B$8:$D588,$A588,FALSE)","v":"Production Objective "},"title581"]
[582,"Operation Hour per year","Heures de fonctionnement par an","Horas de funcionamiento al año","title",{"$f":"HLOOKUP($C$2,$B$8:$D589,$A589,FALSE)","v":"Operation Hour per year"},"title582"]
[583,"Digester Selected","Digesteur sélectionné","Digestor Seleccionado","title",{"$f":"HLOOKUP($C$2,$B$8:$D590,$A590,FALSE)","v":"Digester Selected"},"title583"]
[584,"HRT (days)","TRH (jours)","TRH (días)","title",{"$f":"HLOOKUP($C$2,$B$8:$D591,$A591,FALSE)","v":"HRT (days)"},"title584"]
[585,"Temperature Regime","Régime de Température","Régimen de temperatura","title",{"$f":"HLOOKUP($C$2,$B$8:$D592,$A592,FALSE)","v":"Temperature Regime"},"title585"]
[586,"Production Cost and Investment Results","Résultats des Coûts de Production et d'Investissement","Resultados Costo de producción e inversión","title",{"$f":"HLOOKUP($C$2,$B$8:$D593,$A593,FALSE)","v":"Production Cost and Investment Results"},"title586"]
[587,"Production Cost Main Product ","Coût de production produit principal","Costo de producción del producto principal","title",{"$f":"HLOOKUP($C$2,$B$8:$D594,$A594,FALSE)","v":"Production Cost Main Product "},"title587"]
[588,"- With Digestate Credits","- Avec crédits digestats","- Con créditos digestato ","title",{"$f":"HLOOKUP($C$2,$B$8:$D595,$A595,FALSE)","v":"- With Digestate Credits"},"title588"]
[589,"- No Digestate Credits","- Sans crédits digestats","- Sin créditos digestato ","title",{"$f":"HLOOKUP($C$2,$B$8:$D596,$A596,FALSE)","v":"- No Digestate Credits"},"title589"]
[590,"Share of Production Cost (%)","Fraction des coûts de production (%)","Proporción del costo de producción (%)","title",{"$f":"HLOOKUP($C$2,$B$8:$D597,$A597,FALSE)","v":"Share of Production Cost (%)"},"title590"]
[591,"Investment (USD)","Investissement (USD)","Inversión (USD)","title",{"$f":"HLOOKUP($C$2,$B$8:$D598,$A598,FALSE)","v":"Investment (USD)"},"title591"]
[592,"Operative Results","Résultats opérationnels","Resultados Operativos","title",{"$f":"HLOOKUP($C$2,$B$8:$D599,$A599,FALSE)","v":"Operative Results"},"title592"]
[593,"Feedstock Consumption and Demand (t/yr)","Consommation et demande de matières premières (t/an)","Consumo y demanda materia prima  (t / año)","title",{"$f":"HLOOKUP($C$2,$B$8:$D600,$A600,FALSE)","v":"Feedstock Consumption and Demand (t/yr)"},"title593"]
[594,"Annual Feedstock Disitribution","Répartition annuelle des matières premières","Disitribution anual de materia prima ","title",{"$f":"HLOOKUP($C$2,$B$8:$D601,$A601,FALSE)","v":"Annual Feedstock Disitribution"},"title594"]
[595,"Number of Plants Supported","Nombre d'installations approvisionnées","Número de plantas respaldadas","title",{"$f":"HLOOKUP($C$2,$B$8:$D602,$A602,FALSE)","v":"Number of Plants Supported"},"title595"]
[596,"Consumers potentially supplied","Consommateurs potentiels approvisionnés","Consumidores potencialmente suministrados","title",{"$f":"HLOOKUP($C$2,$B$8:$D603,$A603,FALSE)","v":"Consumers potentially supplied"},"title596"]
[597,"Number of Jobs Potentially Created","Nombre d'emplois potentiels créés","Número de trabajos potencialmente creados","title",{"$f":"HLOOKUP($C$2,$B$8:$D604,$A604,FALSE)","v":"Number of Jobs Potentially Created"},"title597"]
[598,"Financial Analysis","Analyse Financière","Análisis financiero","title",{"$f":"HLOOKUP($C$2,$B$8:$D605,$A605,FALSE)","v":"Financial Analysis"},"title598"]
[599,"Net Present Value (1000 USD/year)","Valeur actuelle nette (1000 USD/an)","Valor actual neto (1000 USD / año)","title",{"$f":"HLOOKUP($C$2,$B$8:$D606,$A606,FALSE)","v":"Net Present Value (1000 USD/year)"},"title599"]
[600,"Internal Rate of Return (%)","Taux de Rendement Interne (%)","Tasa interna de Retorno (%)","title",{"$f":"HLOOKUP($C$2,$B$8:$D607,$A607,FALSE)","v":"Internal Rate of Return (%)"},"title600"]
[601,"Digestate Composition","Composition du digestat","Composición Digestato","title",{"$f":"HLOOKUP($C$2,$B$8:$D608,$A608,FALSE)","v":"Digestate Composition"},"title601"]
[602,"Moisture","Humidité","Humedad","title",{"$f":"HLOOKUP($C$2,$B$8:$D609,$A609,FALSE)","v":"Moisture"},"title602"]
[603,"Digestate Production and Income","Production de digestats et recettes","Producción digestato e ingresos","title",{"$f":"HLOOKUP($C$2,$B$8:$D610,$A610,FALSE)","v":"Digestate Production and Income"},"title603"]
[604,"t/yr","t/an","t / año","title",{"$f":"HLOOKUP($C$2,$B$8:$D611,$A611,FALSE)","v":"t/yr"},"title604"]
[605,"Size 1 (","Taille 1 (","Tamaño 1 (","title",{"$f":"HLOOKUP($C$2,$B$8:$D612,$A612,FALSE)","v":"Size 1 ("},"title605",null,null,null,null,null,null,null,"Centrales potentielles couvertes"]
[606,"Size 2 (","Taille 2 (","Tamaño 2 (","title",{"$f":"HLOOKUP($C$2,$B$8:$D613,$A613,FALSE)","v":"Size 2 ("},"title606"]
[607,"Size 3 (","Taille 3 (","Tamaño 3 (","title",{"$f":"HLOOKUP($C$2,$B$8:$D614,$A614,FALSE)","v":"Size 3 ("},"title607"]
[608,"Size 4 (","Taille 4 (","Tamaño 4 (","title",{"$f":"HLOOKUP($C$2,$B$8:$D615,$A615,FALSE)","v":"Size 4 ("},"title608"]
[609,"Biogas Project Summary","Synthèse du projet sur le biogaz","Resumen del Proyecto de Biogas","title",{"$f":"HLOOKUP($C$2,$B$8:$D616,$A616,FALSE)","v":"Biogas Project Summary"},"title609"]
[610,"Biomass type","Type de biomasse","Tipo de biomasa","title",{"$f":"HLOOKUP($C$2,$B$8:$D617,$A617,FALSE)","v":"Biomass type"},"title610"]
[611,"Biomass required (t/year)","Biomasse nécessaire (t/an)","Biomasa requerida (t / año)","title",{"$f":"HLOOKUP($C$2,$B$8:$D618,$A618,FALSE)","v":"Biomass required (t/year)"},"title611"]
[612,"Total Biomass available (t/year)","Biomasse totale disponible (t/an)","Total de biomasa disponible (t / año)","title",{"$f":"HLOOKUP($C$2,$B$8:$D619,$A619,FALSE)","v":"Total Biomass available (t/year)"},"title612"]
[613,"Plants potentially supported","Installations potentielles couvertes","Plantas potencialmente respaldadas","title",{"$f":"HLOOKUP($C$2,$B$8:$D620,$A620,FALSE)","v":"Plants potentially supported"},"title613"]
[614,"Production cost","Coûts de production","Costo de producción","title",{"$f":"HLOOKUP($C$2,$B$8:$D621,$A621,FALSE)","v":"Production cost"},"title614"]
[615,"Main feedstock(s)","Principale(s) matière(s) première(s)","Materia prima(s) principales","title",{"$f":"HLOOKUP($C$2,$B$8:$D622,$A622,FALSE)","v":"Main feedstock(s)"},"title615"]
[616,"Other Raw Materials","Autres matières premières","Otras materias primas","title",{"$f":"HLOOKUP($C$2,$B$8:$D623,$A623,FALSE)","v":"Other Raw Materials"},"title616"]
[617,"Biogas Selling Price","Prix de vente du biogaz","Precio de venta biogás","title",{"$f":"HLOOKUP($C$2,$B$8:$D624,$A624,FALSE)","v":"Biogas Selling Price"},"title617"]
[618,"USD/m3 methane","USD/m3 méthane","USD/m3 de metano","title",{"$f":"HLOOKUP($C$2,$B$8:$D625,$A625,FALSE)","v":"USD/m3 methane"},"title618"]
[619,"Transport & Storage","Transport & Stockage","Transporte y almacenamiento","title",{"$f":"HLOOKUP($C$2,$B$8:$D626,$A626,FALSE)","v":"Transport & Storage"},"title619"]
[620,"Depreciation & Manteinance","Amortissement & Maintenance","Depreciación y mantenimiento","title",{"$f":"HLOOKUP($C$2,$B$8:$D627,$A627,FALSE)","v":"Depreciation & Manteinance"},"title620"]
[621,"Total annualized production cost","Coût de production total annualisé","Costo de producción total anualizado","title",{"$f":"HLOOKUP($C$2,$B$8:$D628,$A628,FALSE)","v":"Total annualized production cost"},"title621"]
[622,"Comparison Production","Comparaison du taux de production ","Comparación producción ","title",{"$f":"HLOOKUP($C$2,$B$8:$D629,$A629,FALSE)","v":"Comparison Production"},"title622"]
[623,"Total production cost-limsup","Coût total de production - limite supérieure","Costo total de producción-limsup","title",{"$f":"HLOOKUP($C$2,$B$8:$D630,$A630,FALSE)","v":"Total production cost-limsup"},"title623"]
[624,"Total production cost-liminf","Coût total de production - limite inférieure","Costo total de producción-liminf","title",{"$f":"HLOOKUP($C$2,$B$8:$D631,$A631,FALSE)","v":"Total production cost-liminf"},"title624"]
[625,"Total Capital Investment","Investissement totale en Capital","Inversión total de capital ","title",{"$f":"HLOOKUP($C$2,$B$8:$D632,$A632,FALSE)","v":"Total Capital Investment"},"title625"]
[626,"Digestate","Digestat","Digestato","title",{"$f":"HLOOKUP($C$2,$B$8:$D633,$A633,FALSE)","v":"Digestate"},"title626"]
[627,"Digestate Income","Recettes digestat","Ingresos digestato","title",{"$f":"HLOOKUP($C$2,$B$8:$D634,$A634,FALSE)","v":"Digestate Income"},"title627"]
[628,"Operating hour/year","Heures d'Exploitation/an","Operación horas/año","title",{"$f":"HLOOKUP($C$2,$B$8:$D635,$A635,FALSE)","v":"Operating hour/year"},"title628"]
[629,"Jobs","Emplois","Empleos","title",{"$f":"HLOOKUP($C$2,$B$8:$D636,$A636,FALSE)","v":"Jobs"},"title629"]
[630,"Collection","Collecte","Recolección","title",{"$f":"HLOOKUP($C$2,$B$8:$D637,$A637,FALSE)","v":"Collection"},"title630"]
[631,"Processing","Production","Procesamiento","title",{"$f":"HLOOKUP($C$2,$B$8:$D638,$A638,FALSE)","v":"Processing"},"title631"]
[632,"Person-h/t","Personne-h/t","persona-h/t","title",{"$f":"HLOOKUP($C$2,$B$8:$D639,$A639,FALSE)","v":"Person-h/t"},"title632"]
[633,"Collection Months","Mois de la collecte","Meses de recogida","title",{"$f":"HLOOKUP($C$2,$B$8:$D640,$A640,FALSE)","v":"Collection Months"},"title633"]
[634,"Heat Available","Chaleur disponible","Calor disponible","title",{"$f":"HLOOKUP($C$2,$B$8:$D641,$A641,FALSE)","v":"Heat Available"},"title634"]
[635,"Electricity Available","Électricité disponible","Electricidad disponible","title",{"$f":"HLOOKUP($C$2,$B$8:$D642,$A642,FALSE)","v":"Electricity Available"},"title635"]
[636,"Methane Production","Production de méthane","Producción de metano","title",{"$f":"HLOOKUP($C$2,$B$8:$D643,$A643,FALSE)","v":"Methane Production"},"title636"]
[637,"Biogas ","Biogaz","Biogás","title",{"$f":"HLOOKUP($C$2,$B$8:$D644,$A644,FALSE)","v":"Biogas "},"title637"]
[638,"Heat ","Chaleur","Calor","title",{"$f":"HLOOKUP($C$2,$B$8:$D645,$A645,FALSE)","v":"Heat "},"title638"]
[639,"Methane ","Méthane","Metano","title",{"$f":"HLOOKUP($C$2,$B$8:$D646,$A646,FALSE)","v":"Methane "},"title639"]
[640,"Expenditure Traditional","Dépenses traditionnelles","Gastos tradicionales","title",{"$f":"HLOOKUP($C$2,$B$8:$D647,$A647,FALSE)","v":"Expenditure Traditional"},"title640"]
[641,"Expenditure Biogas Tech.","Dépenses tech. biogaz","Gastos Tecnología biogás ","title",{"$f":"HLOOKUP($C$2,$B$8:$D648,$A648,FALSE)","v":"Expenditure Biogas Tech."},"title641"]
[642,"Electricity ","Électricité","Electricidad","title",{"$f":"HLOOKUP($C$2,$B$8:$D649,$A649,FALSE)","v":"Electricity "},"title642"]
[643,"Raw Materials","Matières premières","Materias Primas","title",{"$f":"HLOOKUP($C$2,$B$8:$D650,$A650,FALSE)","v":"Raw Materials"},"title643"]
[644,"Labour and Miscellaneous","Travail et divers","Trabajo y Varios","title",{"$f":"HLOOKUP($C$2,$B$8:$D651,$A651,FALSE)","v":"Labour and Miscellaneous"},{"$f":"$E651&$A651","v":"title644"}]
[645,"Total Feedstock Available","Matière Première Disponible Totale","Materia prima total disponible","title",{"$f":"HLOOKUP($C$2,$B$8:$D652,$A652,FALSE)","v":"Total Feedstock Available"},"title645"]
[646,"Feedstock Demand","Demande de matières premières","Materia Prima demanda","title",{"$f":"HLOOKUP($C$2,$B$8:$D653,$A653,FALSE)","v":"Feedstock Demand"},"title646"]
[647,"Collection Jobs","Emplois de collecte","Empleos en recolección","title",{"$f":"HLOOKUP($C$2,$B$8:$D654,$A654,FALSE)","v":"Collection Jobs"},"title647"]
[648,"Processing Jobs","Emplois de transformation","Empleos en procesamiento","title",{"$f":"HLOOKUP($C$2,$B$8:$D655,$A655,FALSE)","v":"Processing Jobs"},"title648"]
[649,"Total Jobs","Emplois Totale","Total empleos","title",{"$f":"HLOOKUP($C$2,$B$8:$D656,$A656,FALSE)","v":"Total Jobs"},"title649"]
[650,"No Electricity Produced","Pas d'électricité produite","Sin electricidad producida","title",{"$f":"HLOOKUP($C$2,$B$8:$D657,$A657,FALSE)","v":"No Electricity Produced"},"title650"]
[651,"Traditional  Expenditure of households","Dépenses traditionnelles des ménages","Gastos tradicionales de los hogares","title",{"$f":"HLOOKUP($C$2,$B$8:$D658,$A658,FALSE)","v":"Traditional  Expenditure of households"},"title651"]
[652,"Traditional  Expenditure of Industries","Dépenses traditionnelles des industries","Gastos tradicionales de Industrias","title",{"$f":"HLOOKUP($C$2,$B$8:$D659,$A659,FALSE)","v":"Traditional  Expenditure of Industries"},"title652"]
[653,"Biogas Tech. Expenditure of households","Tech. biogaz Dépenses des ménages","Gastos Tecnología biogás de los hogares","title",{"$f":"HLOOKUP($C$2,$B$8:$D660,$A660,FALSE)","v":"Biogas Tech. Expenditure of households"},"title653"]
[654,"Biogas Tech. Expenditure of Industries","Tech. biogaz Dépenses des industries","Gastos Tecnología biogás de las industrias","title",{"$f":"HLOOKUP($C$2,$B$8:$D661,$A661,FALSE)","v":"Biogas Tech. Expenditure of Industries"},"title654"]
[655,"Savings per Industry","Économies par industrie","Ahorros por Industria","title",{"$f":"HLOOKUP($C$2,$B$8:$D662,$A662,FALSE)","v":"Savings per Industry"},"title655"]
[656,"Savings per Household","Économies par ménage","Ahorros por hogar","title",{"$f":"HLOOKUP($C$2,$B$8:$D663,$A663,FALSE)","v":"Savings per Household"},{"$f":"$E663&$A663","v":"title656"}]
[657,"Biomethane Selling Price","Prix de vente du biométhane","Precio de venta biometano","title",{"$f":"HLOOKUP($C$2,$B$8:$D664,$A664,FALSE)","v":"Biomethane Selling Price"},{"$f":"$E664&$A664","v":"title657"}]
[658,"Ash","Cendre","Cenizas","title",{"$f":"HLOOKUP($C$2,$B$8:$D665,$A665,FALSE)","v":"Ash"},{"$f":"$E665&$A665","v":"title658"}]
[659,"SUMMARY OF RESULTS COMPARATIVE","RÉSUMÉ DES RÉSULTATS COMPARATIFS","RESUMEN COMPARATIVO DE LOS RESULTADOS ","title",{"$f":"HLOOKUP($C$2,$B$8:$D666,$A666,FALSE)","v":"SUMMARY OF RESULTS COMPARATIVE"},{"$f":"$E666&$A666","v":"title659"}]
[660,"Techno-economic Results","Résultats Techno-économiques","ResultadosTecno-económicos","title",{"$f":"HLOOKUP($C$2,$B$8:$D667,$A667,FALSE)","v":"Techno-economic Results"},"title660"]
[661,"Production Cost Main Product - No Digestate Credits","Coût de production du produit principal - Pas de crédits digestat","Costo de producción del producto principal - Sin créditos digestato","title",{"$f":"HLOOKUP($C$2,$B$8:$D668,$A668,FALSE)","v":"Production Cost Main Product - No Digestate Credits"},"title661"]
[662,"Number of Plants Potentially Supplied","Nombre d'installations potentielles alimentées","Número de plantas potencialmente suministradas","title",{"$f":"HLOOKUP($C$2,$B$8:$D669,$A669,FALSE)","v":"Number of Plants Potentially Supplied"},"title662"]
[663,"Socio-Economic Results","Résultats socioéconomiques","Resultados Socioeconómicos","title",{"$f":"HLOOKUP($C$2,$B$8:$D670,$A670,FALSE)","v":"Socio-Economic Results"},"title663"]
[664,"Financial Results","Résultats Financiers","Resultados financieros","title",{"$f":"HLOOKUP($C$2,$B$8:$D671,$A671,FALSE)","v":"Financial Results"},"title664"]
[665,"Maximum Number of Consumers Potentially Supplied","Nombre maximum de consommateurs potentiels approvisionnés","Máximo número de consumidores potencialmente suministrados","title",{"$f":"HLOOKUP($C$2,$B$8:$D672,$A672,FALSE)","v":"Maximum Number of Consumers Potentially Supplied"},"title665"]
[666,"Maximum Number of Jobs Potentially Created","Nombre maximum d'emplois potentiels créés","Número máximo de trabajos potencialmente creados","title",{"$f":"HLOOKUP($C$2,$B$8:$D673,$A673,FALSE)","v":"Maximum Number of Jobs Potentially Created"},"title666"]
[667,"Internal Rate Return (%)","Taux de rendement interne (TRI) (%)","Tasa interna de Retorno (%)","title",{"$f":"HLOOKUP($C$2,$B$8:$D674,$A674,FALSE)","v":"Internal Rate Return (%)"},"title667"]
[668,"Net Preset Value (1000 USD)","Valeur Actuelle Nette (1000 USD)","Valor Presente Neto (1000 USD)","title",{"$f":"HLOOKUP($C$2,$B$8:$D675,$A675,FALSE)","v":"Net Preset Value (1000 USD)"},"title668"]
[669,"USD/year/ind","USD/an/ind","USD / año / ind","title",{"$f":"HLOOKUP($C$2,$B$8:$D676,$A676,FALSE)","v":"USD/year/ind"},"title669"]
[670,"Process Selection","Sélection de processus","Selección del proceso","title",{"$f":"HLOOKUP($C$2,$B$8:$D677,$A677,FALSE)","v":"Process Selection"},"title670"]
[671,"m3 Methane/day","m3 Méthane/jour","m3 Metano/día","title",{"$f":"HLOOKUP($C$2,$B$8:$D678,$A678,FALSE)","v":"m3 Methane/day"},"title671"]
[672,"Barley Straw","Paille d'orge","Paja de cebada","title",{"$f":"HLOOKUP($C$2,$B$8:$D679,$A679,FALSE)","v":"Barley Straw"},"title672"]
[673,"Cassava Cake","Tourteau de manioc","Torta de cebada","title",{"$f":"HLOOKUP($C$2,$B$8:$D680,$A680,FALSE)","v":"Cassava Cake"},"title673"]
[674,"Castorbean Cake","Tourteau de ricin","Torta de ricino","title",{"$f":"HLOOKUP($C$2,$B$8:$D681,$A681,FALSE)","v":"Castorbean Cake"},"title674"]
[675,"Coconut Cake","Tourteau de coco","Torta de coco","title",{"$f":"HLOOKUP($C$2,$B$8:$D682,$A682,FALSE)","v":"Coconut Cake"},"title675"]
[676,"Cottonseed Cake","Tourteau de graines de coton","Torta de semilla de algodón","title",{"$f":"HLOOKUP($C$2,$B$8:$D683,$A683,FALSE)","v":"Cottonseed Cake"},"title676"]
[677,"Groundnut Cake","Tourteau d'arachide","Torta de maní","title",{"$f":"HLOOKUP($C$2,$B$8:$D684,$A684,FALSE)","v":"Groundnut Cake"},"title677"]
[678,"Jatropha Cake","Tourteau de Jatropha","Torta de Jatrofa","title",{"$f":"HLOOKUP($C$2,$B$8:$D685,$A685,FALSE)","v":"Jatropha Cake"},"title678"]
[679,"Maize Stover","Tiges et feuilles de maïs","Rastrojo de maíz","title",{"$f":"HLOOKUP($C$2,$B$8:$D686,$A686,FALSE)","v":"Maize Stover"},"title679"]
[680,"Oil Palm Cake","Tourteau de palmier à huile","Torta de aceite de palma","title",{"$f":"HLOOKUP($C$2,$B$8:$D687,$A687,FALSE)","v":"Oil Palm Cake"},"title680"]
[681,"Potatoes Cake","Tourteau de pomme de terre","Torta de patatas","title",{"$f":"HLOOKUP($C$2,$B$8:$D688,$A688,FALSE)","v":"Potatoes Cake"},"title681"]
[682,"Rapeseed Cake","Tourteau de colza","Torta de colza","title",{"$f":"HLOOKUP($C$2,$B$8:$D689,$A689,FALSE)","v":"Rapeseed Cake"},"title682"]
[683,"Rice Husk","Balle de riz","Cáscara de arroz","title",{"$f":"HLOOKUP($C$2,$B$8:$D690,$A690,FALSE)","v":"Rice Husk"},"title683"]
[684,"Safflower Cake","Tourteau de carthame","Torta de cártamo","title",{"$f":"HLOOKUP($C$2,$B$8:$D691,$A691,FALSE)","v":"Safflower Cake"},"title684"]
[685,"Sesame Cake","Tourteau de sésame","Torta de sésamo","title",{"$f":"HLOOKUP($C$2,$B$8:$D692,$A692,FALSE)","v":"Sesame Cake"},"title685"]
[686,"Sorghum Bagasse","Bagasse de sorgho","Bagazo de sorgo","title",{"$f":"HLOOKUP($C$2,$B$8:$D693,$A693,FALSE)","v":"Sorghum Bagasse"},"title686"]
[687,"Soybean Cake","Tourteau de graines de soja","Torta de soya","title",{"$f":"HLOOKUP($C$2,$B$8:$D694,$A694,FALSE)","v":"Soybean Cake"},"title687"]
[688,"Sugar Cane Bagasse","Bagasse de canne à sucre","Bagazo de caña de azúcar","title",{"$f":"HLOOKUP($C$2,$B$8:$D695,$A695,FALSE)","v":"Sugar Cane Bagasse"},"title688"]
[689,"Sunflower Cake","Tourteau de tournesol","Torta de girasol","title",{"$f":"HLOOKUP($C$2,$B$8:$D696,$A696,FALSE)","v":"Sunflower Cake"},"title689"]
[690,"Wheat Straw","Paille de blé","Paja de trigo","title",{"$f":"HLOOKUP($C$2,$B$8:$D697,$A697,FALSE)","v":"Wheat Straw"},"title690"]
[691,"Raw Hazelnut Skin","Peau brute de noisettes","Piel de avellana cruda","title",{"$f":"HLOOKUP($C$2,$B$8:$D698,$A698,FALSE)","v":"Raw Hazelnut Skin"},"title691"]
[692,"Fine Hazelnut Skin","Peau fine de noisettes","Piel de avellana fina","title",{"$f":"HLOOKUP($C$2,$B$8:$D699,$A699,FALSE)","v":"Fine Hazelnut Skin"},"title692"]
[693,"Large Hazelnut Skin","Peau grosse de noisettes","Piel de avellana grande","title",{"$f":"HLOOKUP($C$2,$B$8:$D700,$A700,FALSE)","v":"Large Hazelnut Skin"},"title693"]
[694,"Wine Less","Lie de vin","Vino inferior","title",{"$f":"HLOOKUP($C$2,$B$8:$D701,$A701,FALSE)","v":"Wine Less"},"title694"]
[695,"Grape Pomace","Marc de raisin","Orujo de uva","title",{"$f":"HLOOKUP($C$2,$B$8:$D702,$A702,FALSE)","v":"Grape Pomace"},"title695"]
[696,"Rice Bran","Son de riz","Salvado de arroz","title",{"$f":"HLOOKUP($C$2,$B$8:$D703,$A703,FALSE)","v":"Rice Bran"},"title696"]
[697,"Heat and Electricty Production","Production de chauffage et électricité","Producción de calor y electricidad","title",{"$f":"HLOOKUP($C$2,$B$8:$D704,$A704,FALSE)","v":"Heat and Electricty Production"},"title697"]
[698,"Now, the biogas distribution cost is included using a proxy of ",null,"Ahora, el costo de distribución de biogás se incluye usando un aproximado de","title",{"$f":"HLOOKUP($C$2,$B$8:$D705,$A705,FALSE)","v":"Now, the biogas distribution cost is included using a proxy of "},"title698"]
[699,"The biogas distribution cost has been excluded","Les coûts de distribution du biogaz ont été exclus","Se ha excluido el costo del distribución del biogás","title",{"$f":"HLOOKUP($C$2,$B$8:$D706,$A706,FALSE)","v":"The biogas distribution cost has been excluded"},"title699"]
[700,"Now, the biomethane transportation to connection point is included using a proxy of ","Maintenant, le transport de biométhane au point de connexion est inclus à l'aide d'une procuration de","Ahora, el transporte de biometano al punto de conexión se incluye usando un aproximado de","title",{"$f":"HLOOKUP($C$2,$B$8:$D707,$A707,FALSE)","v":"Now, the biomethane transportation to connection point is included using a proxy of "},"title700"]
[701,"The biomethane transportation to connection point cost has been excluded","Le transport de biométhane à coût de connexion au point a été exclu","Se ha excluido el costo del transporte de biometano al punto de conexión","title",{"$f":"HLOOKUP($C$2,$B$8:$D708,$A708,FALSE)","v":"The biomethane transportation to connection point cost has been excluded"},"title701"]
[702,"Please input first the Plant Cost Index for the current period in the investment cost update section.","Veuillez saisir d'abord l'indice du coût de la centrale pour la période en cours dans la section de mise à jour des coûts d'investissement.","Por favor, introduzca por primera vez el Índice del Costo de la planta para el período actual en la sección de actualización de los costos de inversión.","title",{"$f":"HLOOKUP($C$2,$B$8:$D709,$A709,FALSE)","v":"Please input first the Plant Cost Index for the current period in the investment cost update section."},"title702"]
[703,"Additional Data Required","Données supplémentaires nécessaires","Datos adicionales requeridos","title",{"$f":"HLOOKUP($C$2,$B$8:$D710,$A710,FALSE)","v":"Additional Data Required"},"title703"]
[704,"Please distribute feedstocks available using Feedstock Planner 1 or check values inputted","Veuillez distribuer les matières premières disponibles en utilisant le Planificateur de matières premières 1 ou contrôler les valeurs saisies","Por favor distribuya las materias primas disponibles usando el Planificador de materias primas 1 o cheque los valores introducidos","title",{"$f":"HLOOKUP($C$2,$B$8:$D711,$A711,FALSE)","v":"Please distribute feedstocks available using Feedstock Planner 1 or check values inputted"},"title704"]
[705,"Please distribute feedstocks available using Feedstock Planner 2 or check values inputted","Veuillez distribuer les matières premières disponibles en utilisant le Planificateur de matières premières 2 ou contrôler les valeurs saisies","Por favor distribuya las materias primas disponibles usando el Planificador de materias primas 2 o cheque los valores introducidos","title",{"$f":"HLOOKUP($C$2,$B$8:$D712,$A712,FALSE)","v":"Please distribute feedstocks available using Feedstock Planner 2 or check values inputted"},"title705"]
[706,"Please distribute feedstocks available using Feedstock Planner 3 or check values inputted","Veuillez distribuer les matières premières disponibles en utilisant le Planificateur de matières premières 3 ou contrôler les valeurs saisies","Por favor distribuya las materias primas disponibles usando el Planificador de materias primas 3 o cheque los valores introducidos","title",{"$f":"HLOOKUP($C$2,$B$8:$D713,$A713,FALSE)","v":"Please distribute feedstocks available using Feedstock Planner 3 or check values inputted"},"title706"]
[707,"Please distribute feedstocks available using Feedstock Planner 4 or check values inputted","Veuillez distribuer les matières premières disponibles en utilisant le Planificateur de matières premières 4 ou contrôler les valeurs saisies","Por favor distribuya las materias primas disponibles usando el Planificador de materias primas 4 o cheque los valores introducidos","title",{"$f":"HLOOKUP($C$2,$B$8:$D714,$A714,FALSE)","v":"Please distribute feedstocks available using Feedstock Planner 4 or check values inputted"},"title707"]
[708,"Use Planner1","Utiliser Planificateur 1","Usar el Planificador1","title",{"$f":"HLOOKUP($C$2,$B$8:$D715,$A715,FALSE)","v":"Use Planner1"},"title708"]
[709,"Use Planner2","Utiliser Planificateur 2","Usar el Planificador2","title",{"$f":"HLOOKUP($C$2,$B$8:$D716,$A716,FALSE)","v":"Use Planner2"},"title709"]
[710,"Use Planner3","Utiliser Planificateur 3","Usar el Planificador3","title",{"$f":"HLOOKUP($C$2,$B$8:$D717,$A717,FALSE)","v":"Use Planner3"},"title710"]
[711,"Use Planner4","Utiliser Planificateur 4","Usar el Planificador4","title",{"$f":"HLOOKUP($C$2,$B$8:$D718,$A718,FALSE)","v":"Use Planner4"},"title711"]
[712,"Use this calculator to define new plant sizes for calculations","Utiliser ce calculateur pour définir les nouvelles tailles des centrales pour les calculs","Utilice esta calculadora para definir nuevos tamaños de plantas para los cálculos","title",{"$f":"HLOOKUP($C$2,$B$8:$D719,$A719,FALSE)","v":"Use this calculator to define new plant sizes for calculations"},"title712"]
[713,"Plant Size Calculator","Calculateur taille de la centrale","Calculadora del tamaño de planta","title",{"$f":"HLOOKUP($C$2,$B$8:$D720,$A720,FALSE)","v":"Plant Size Calculator"},"title713"]
[714,"All Biomass has been redestributed","Toute la biomasse a été redistribuée","Toda la Biomasa ha sido distribuida","title",{"$f":"HLOOKUP($C$2,$B$8:$D721,$A721,FALSE)","v":"All Biomass has been redestributed"},"title714"]
[715,"Biomass Planner","Planificateur de biomasse","Planificador de Biomasa","title",{"$f":"HLOOKUP($C$2,$B$8:$D722,$A722,FALSE)","v":"Biomass Planner"},"title715"]
[716,"Biomass already allocated","La biomasse a été déjà alloué","La Biomasa ya ha sido distribuida","title",{"$f":"HLOOKUP($C$2,$B$8:$D723,$A723,FALSE)","v":"Biomass already allocated"},"title716"]
[717,"Please go first to the General Input Section below and input the following data: wages for both unskilled and skilled labour; working hours per day for feedstock collection, both manual and mechanical, and price of diesel","Aller d'abord à la Section Saisie générale plus bas et saisir les données suivantes: salaires pour la main d'oeuvre qualifiée et non qualifiée; heures de travail par jour pour la collecte de matières premières, manuelle et mécanique; et prix du diesel","Por favor, vaya primero a la Sección General de Entradas a continuación e ingrese los siguientes datos: salarios para trabajadores no calificados y calificados; Horas de trabajo por día para la recolección de materias primas, tanto manuales como mecánicas, y precio del diesel","title",{"$f":"HLOOKUP($C$2,$B$8:$D724,$A724,FALSE)","v":"Please go first to the General Input Section below and input the following data: wages for both unskilled and skilled labour; working hours per day for feedstock collection, both manual and mechanical, and price of diesel"},"title717"]
[718,"You have selected to input your own market price (transport excluded). Consequently, the labour creation potential for collection of feedstock will be zero. ","Vous avez choisi l'option du prix du marché (transport exclu). Par conséquent, le potentiel de création d'emplois pour la collecte de la matière première sera de zéro.","Ha seleccionado introducir su propio precio de mercado (excluyendo el transporte). Por consiguiente, el potencial de generación de empleo para la recolección de la materia prima será cero. ","title",{"$f":"HLOOKUP($C$2,$B$8:$D725,$A725,FALSE)","v":"You have selected to input your own market price (transport excluded). Consequently, the labour creation potential for collection of feedstock will be zero. "},"title718"]
[719,"A pdf report has been generated, and automatically opened. This file has been saved to ","Un rapport PDF a été généré et ouvert automatiquement. L'outil a été enregistré dans ","Se ha generado un informe pdf y se abrió automáticamente. Este archivo se ha guardado en","title",{"$f":"HLOOKUP($C$2,$B$8:$D726,$A726,FALSE)","v":"A pdf report has been generated, and automatically opened. This file has been saved to "},"title719"]
[720,"Generating Report","Générer un rapport","Generando el reporte","title",{"$f":"HLOOKUP($C$2,$B$8:$D727,$A727,FALSE)","v":"Generating Report"},"title720"]
[721,"In order to print a new report you need to close the report currently opened.","Pour imprimer un nouveau rapport, vous devez d'abord fermer le rapport ouvert.","Con el fin de imprimir un nuevo informe, necesita primero cerrar el informe actualmente abierto.","title",{"$f":"HLOOKUP($C$2,$B$8:$D728,$A728,FALSE)","v":"In order to print a new report you need to close the report currently opened."},"title721"]
[722,"District Heating","Chauffage urbain","Calefacción urbana","title",{"$f":"HLOOKUP($C$2,$B$8:$D729,$A729,FALSE)","v":"District Heating"},"title722"]
[723,"Electricity supply","Fourniture d'électricité","Suministro de Electricidad","title",{"$f":"HLOOKUP($C$2,$B$8:$D730,$A730,FALSE)","v":"Electricity supply"},{"$f":"$E730&$A730","v":"title723"}]
[724,"Industrial heating","Chauffage industriel","Calefacción industrial","title",{"$f":"HLOOKUP($C$2,$B$8:$D731,$A731,FALSE)","v":"Industrial heating"},"title724"]
[725,"Plant Cost Index during ","Indice du coût de l'usine pendant ","Índice de costo de la planta durante ","title",{"$f":"HLOOKUP($C$2,$B$8:$D732,$A732,FALSE)","v":"Plant Cost Index during "},"title725"]
[726,"Method 3","Méthode 3","Método 3","title",{"$f":"HLOOKUP($C$2,$B$8:$D733,$A733,FALSE)","v":"Method 3"},"title726"]
[727,"Biogas potential has been calculated as ","Le potentiel de production du biogaz a été calculé comme ","El potencial de biogás has sido calculado como ","title",{"$f":"HLOOKUP($C$2,$B$8:$D734,$A734,FALSE)","v":"Biogas potential has been calculated as "},"title727"]
[728,"Calculation Complete","Calcul Complet","Cálculos completados","title",{"$f":"HLOOKUP($C$2,$B$8:$D735,$A735,FALSE)","v":"Calculation Complete"},"title728"]
[729,"The new entry has been included in the database","La nouvelle entrée a été incluse dans la base de données","La nueva entrada ha sido incluida en la base de datos","title",{"$f":"HLOOKUP($C$2,$B$8:$D736,$A736,FALSE)","v":"The new entry has been included in the database"},"title729"]
[730,"Registry Complete","Registre terminé","Registro completado","title",{"$f":"HLOOKUP($C$2,$B$8:$D737,$A737,FALSE)","v":"Registry Complete"},"title730"]
[731,"Feedstock Definition","Définition des matières premières","Definición de la materia prima","title",{"$f":"HLOOKUP($C$2,$B$8:$D738,$A738,FALSE)","v":"Feedstock Definition"},"title731"]
[732,"Feedstock ID","ID matière première","Materia prima ID","title",{"$f":"HLOOKUP($C$2,$B$8:$D739,$A739,FALSE)","v":"Feedstock ID"},"title732"]
[733,"Type","Type","Tipo","title",{"$f":"HLOOKUP($C$2,$B$8:$D740,$A740,FALSE)","v":"Type"},"title733"]
[734,"Basic Properties","Propriétés de base","Propiedades básicas","title",{"$f":"HLOOKUP($C$2,$B$8:$D741,$A741,FALSE)","v":"Basic Properties"},"title734"]
[735,"Property","Propriété","Propiedad","title",{"$f":"HLOOKUP($C$2,$B$8:$D742,$A742,FALSE)","v":"Property"},"title735"]
[736,"Total Solids","Solides totaux","Solidos totales","title",{"$f":"HLOOKUP($C$2,$B$8:$D743,$A743,FALSE)","v":"Total Solids"},"title736"]
[737,"Volatile Solids","Solides volatiles","Sólidos volátiles","title",{"$f":"HLOOKUP($C$2,$B$8:$D744,$A744,FALSE)","v":"Volatile Solids"},"title737"]
[738,"Biogas potential calculated","Potentiel de biogaz calculé","Potencial de biogás calculado","title",{"$f":"HLOOKUP($C$2,$B$8:$D745,$A745,FALSE)","v":"Biogas potential calculated"},"title738"]
[739,"User defined values","Valeurs définies par l'utilisateur","Valores definidos por el usuario","title",{"$f":"HLOOKUP($C$2,$B$8:$D746,$A746,FALSE)","v":"User defined values"},"title739"]
[740,"Methane Content","Contenu en méthane","Contenido de metano","title",{"$f":"HLOOKUP($C$2,$B$8:$D747,$A747,FALSE)","v":"Methane Content"},"title740"]
[741,"Values","Valeurs","Valores","title",{"$f":"HLOOKUP($C$2,$B$8:$D748,$A748,FALSE)","v":"Values"},"title741"]
[742,"Complete Entry","Compléter la saisie","Entrada Completa","title",{"$f":"HLOOKUP($C$2,$B$8:$D749,$A749,FALSE)","v":"Complete Entry"},"title742"]
[743,"Recalculate biogas potential","Recalculer le potentiel de biogaz","Recalcular el potencial del biogás","title",{"$f":"HLOOKUP($C$2,$B$8:$D750,$A750,FALSE)","v":"Recalculate biogas potential"},"title743"]
[744,"Cancel","Annuler","Cancelar","title",{"$f":"HLOOKUP($C$2,$B$8:$D751,$A751,FALSE)","v":"Cancel"},"title744"]
[745,"New feedstock creator","Créateur de nouvelles matières premières","Nuevo creador de materias primas","title",{"$f":"HLOOKUP($C$2,$B$8:$D752,$A752,FALSE)","v":"New feedstock creator"},"title745"]
[746,"Plant Size Definition","Détermination de la taille de l'installation","Definición del tamaño de planta","title",{"$f":"HLOOKUP($C$2,$B$8:$D753,$A753,FALSE)","v":"Plant Size Definition"},"title746"]
[747,"Base Unit","Unité de base","Unidad base","title",{"$f":"HLOOKUP($C$2,$B$8:$D754,$A754,FALSE)","v":"Base Unit"},"title747"]
[748,"Select an Unit","Sélectionner une unité","Seleccione una unidad","title",{"$f":"HLOOKUP($C$2,$B$8:$D755,$A755,FALSE)","v":"Select an Unit"},"title748"]
[749,"Minimum Size Required","Taille minimale requise","Tamaño mínimo requerido","title",{"$f":"HLOOKUP($C$2,$B$8:$D756,$A756,FALSE)","v":"Minimum Size Required"},"title749"]
[750,"Maximum Size Required","Taille maximale requise","Tamaño máximo requerido","title",{"$f":"HLOOKUP($C$2,$B$8:$D757,$A757,FALSE)","v":"Maximum Size Required"},"title750"]
[751,"Calculate","Calculer","Calcular","title",{"$f":"HLOOKUP($C$2,$B$8:$D758,$A758,FALSE)","v":"Calculate"},"title751"]
[752,"Plant Sizes Results","Résultats de la taille de l'installation","Resultados del tamaño de planta","title",{"$f":"HLOOKUP($C$2,$B$8:$D759,$A759,FALSE)","v":"Plant Sizes Results"},"title752"]
[753,"Size 1","Taille 1","Tamaño 1","title",{"$f":"HLOOKUP($C$2,$B$8:$D760,$A760,FALSE)","v":"Size 1"},"title753"]
[754,"Size 2","Taille 2","Tamaño 2","title",{"$f":"HLOOKUP($C$2,$B$8:$D761,$A761,FALSE)","v":"Size 2"},"title754"]
[755,"Size 3","Taille 3","Tamaño 3","title",{"$f":"HLOOKUP($C$2,$B$8:$D762,$A762,FALSE)","v":"Size 3"},"title755"]
[756,"Size 4","Taille 4","Tamaño 4","title",{"$f":"HLOOKUP($C$2,$B$8:$D763,$A763,FALSE)","v":"Size 4"},"title756"]
[757,"Redefine Plant Sizes","Redéfinir la taille de l'installation","Redefinir los tamaños de planta","title",{"$f":"HLOOKUP($C$2,$B$8:$D764,$A764,FALSE)","v":"Redefine Plant Sizes"},"title757"]
[758,"Apply Plant Sizes","Appliquer la taille de l'installation","Aplicar tamaños de planta","title",{"$f":"HLOOKUP($C$2,$B$8:$D765,$A765,FALSE)","v":"Apply Plant Sizes"},"title758"]
[759,"Biogas Potential Calculator","Calculateur du potentiel de biogaz","Calculadora del potencial de biogás","title",{"$f":"HLOOKUP($C$2,$B$8:$D766,$A766,FALSE)","v":"Biogas Potential Calculator"},"title759"]
[760,"Ultimate Analysis","Analyse ultime","Análisis último","title",{"$f":"HLOOKUP($C$2,$B$8:$D767,$A767,FALSE)","v":"Ultimate Analysis"},"title760"]
[761,"Carbon","Carbone","Carbono","title",{"$f":"HLOOKUP($C$2,$B$8:$D768,$A768,FALSE)","v":"Carbon"},"title761"]
[762,"Nitrogen","Nitrogène","Nitrógeno","title",{"$f":"HLOOKUP($C$2,$B$8:$D769,$A769,FALSE)","v":"Nitrogen"},"title762"]
[763,"Hydrogen","Hydrogène","Hidrógeno","title",{"$f":"HLOOKUP($C$2,$B$8:$D770,$A770,FALSE)","v":"Hydrogen"},"title763"]
[764,"Oxygen","Oxygène","Oxígeno","title",{"$f":"HLOOKUP($C$2,$B$8:$D771,$A771,FALSE)","v":"Oxygen"},"title764"]
[765,"Sulphur","Sulfure","Azufre","title",{"$f":"HLOOKUP($C$2,$B$8:$D772,$A772,FALSE)","v":"Sulphur"},"title765"]
[766,"Calculate using Method 1","Calculer en utilisant la Méthode 1","Calcular utilizando el método 1","title",{"$f":"HLOOKUP($C$2,$B$8:$D773,$A773,FALSE)","v":"Calculate using Method 1"},"title766"]
[767,"Proximate Analysis","Analyse approximative","Análisis próximo","title",{"$f":"HLOOKUP($C$2,$B$8:$D774,$A774,FALSE)","v":"Proximate Analysis"},"title767"]
[768,"Carbohydrate","Glucides","Carbohidrato","title",{"$f":"HLOOKUP($C$2,$B$8:$D775,$A775,FALSE)","v":"Carbohydrate"},"title768"]
[769,"Protein","Proteines","Proteína","title",{"$f":"HLOOKUP($C$2,$B$8:$D776,$A776,FALSE)","v":"Protein"},"title769"]
[770,"Fat","Lipides","Lípidos","title",{"$f":"HLOOKUP($C$2,$B$8:$D777,$A777,FALSE)","v":"Fat"},"title770"]
[771,"Calculate using Method 2","Calculer en utilisant la Méthode 2","Calcular utilizando el método 2","title",{"$f":"HLOOKUP($C$2,$B$8:$D778,$A778,FALSE)","v":"Calculate using Method 2"},"title771"]
[772,"Wastewaters","Eaux usées","Aguas residuales","title",{"$f":"HLOOKUP($C$2,$B$8:$D779,$A779,FALSE)","v":"Wastewaters"},"title772"]
[773,"Other type of feedstock","Autre type de matières premières","Otro tipo de materia prima","title",{"$f":"HLOOKUP($C$2,$B$8:$D780,$A780,FALSE)","v":"Other type of feedstock"},"title773"]
[774,"Wastewater residue creator","Créateur de résidus d'eaux usées","Creador de residuos de aguas residuales","title",{"$f":"HLOOKUP($C$2,$B$8:$D781,$A781,FALSE)","v":"Wastewater residue creator"},"title774"]
[775,"Wastewater Definition","Définition des eaux usées","Definición de aguas residuales","title",{"$f":"HLOOKUP($C$2,$B$8:$D782,$A782,FALSE)","v":"Wastewater Definition"},"title775"]
[776,"Residue ID","ID du résidu","ID del residuo","title",{"$f":"HLOOKUP($C$2,$B$8:$D783,$A783,FALSE)","v":"Residue ID"},"title776"]
[777,"Properties","Propriétés","Propiedades","title",{"$f":"HLOOKUP($C$2,$B$8:$D784,$A784,FALSE)","v":"Properties"},"title777"]
[778,"COD in Wastewater","DCO des eaux usées","DQO de aguas residuales","title",{"$f":"HLOOKUP($C$2,$B$8:$D785,$A785,FALSE)","v":"COD in Wastewater"},"title778"]
[779,"COD degradability","Dégradabilité de la DCO","Degradabilidad de la DQO","title",{"$f":"HLOOKUP($C$2,$B$8:$D786,$A786,FALSE)","v":"COD degradability"},"title779"]
[780,"m3/t COD removed","m3/t DCO éliminée","m3/t DQO eliminada","title",{"$f":"HLOOKUP($C$2,$B$8:$D787,$A787,FALSE)","v":"m3/t COD removed"},"title780"]
[781,"Back to creator","Revenir au créateur","Volver al creador","title",{"$f":"HLOOKUP($C$2,$B$8:$D788,$A788,FALSE)","v":"Back to creator"},"title781"]
[782,"Method 1: User Defined","Méthode 1: défini par l'utilisateur","Método 1: definido por el usuario","title",{"$f":"HLOOKUP($C$2,$B$8:$D789,$A789,FALSE)","v":"Method 1: User Defined"},"title782"]
[783,"Method 2: Calculator","Méthode 2: calculateur","Método 2: calculadora","title",{"$f":"HLOOKUP($C$2,$B$8:$D790,$A790,FALSE)","v":"Method 2: Calculator"},"title783"]
[784,"Use Biogas potential calculator","Utiliser le calculateur du potentiel du biogaz","Utilizar la calculadora de potencial de biogás","title",{"$f":"HLOOKUP($C$2,$B$8:$D791,$A791,FALSE)","v":"Use Biogas potential calculator"},"title784"]

{"sheet":"Label","index":2,"n_rows":51,"n_cols":7,"rows_kept":51,"cut":false,"hidden":true,"merged":[]}
[null,"BB1:B51"]
[null,"Selection",{"$f":"VLOOKUP(Start!C9,$A$3:$C$5,3,FALSE)","v":1}]
["EN","English",1]
["FR","French",2]
["ES","Spanish",3]
[]
["ID","English","French","Spanish","Typeof","Ref","Name"]
[1,1,2,3]
[2,"Biogas Process Description","Description du Processus \nde Biogaz \n","Descripción del Proceso de Obtención de Biogás","label",{"$f":"HLOOKUP($C$2,$B$8:$D9,$A9,FALSE)","v":"Biogas Process Description"},{"$f":"$E9&$A9","v":"label2"}]
[3,"Data Entry","Saisie de Données","Datos de Entrada","label",{"$f":"HLOOKUP($C$2,$B$8:$D10,$A10,FALSE)","v":"Data Entry"},"label3"]
[4,"NEXT >>\nBiogas use selection","Sélection du l'utilisation des biogaz","Selección del uso de biogás","label",{"$f":"HLOOKUP($C$2,$B$8:$D11,$A11,FALSE)","v":"NEXT >>\nBiogas use selection"},"label4"]
[5,"<< BACK \nStart","<< RETOUR\nDébut \n\n","<< VOLVER\nInicio\n\n\n","label",{"$f":"HLOOKUP($C$2,$B$8:$D12,$A12,FALSE)","v":"<< BACK \nStart"},"label5"]
[6,"NEXT >>\nData Entry","SUIVANT >>\nSaisie de Données","SIGUIENTE >>\nDatos de Entrada","label",{"$f":"HLOOKUP($C$2,$B$8:$D13,$A13,FALSE)","v":"NEXT >>\nData Entry"},"label6"]
[7,"Biogas use selection","Sélection du l'utilisation des biogaz","Selección del uso de biogás","label",{"$f":"HLOOKUP($C$2,$B$8:$D14,$A14,FALSE)","v":"Biogas use selection"},"label7"]
[8,"Load Default Values","Charger les Valeurs par Défaut","Cargar Valores por Defecto","label",{"$f":"HLOOKUP($C$2,$B$8:$D15,$A15,FALSE)","v":"Load Default Values"},"label8"]
[9,"Clear data","Effacer les données","Borrar datos","label",{"$f":"HLOOKUP($C$2,$B$8:$D16,$A16,FALSE)","v":"Clear data"},"label9"]
[10,"Recalculate Plant Sizes","Recalculer la taille de la centrale","Recalcular tamaños de planta","label",{"$f":"HLOOKUP($C$2,$B$8:$D17,$A17,FALSE)","v":"Recalculate Plant Sizes"},"label10"]
[11,"Selected Biogas Process Description","Description du processus de génération de biogaz sélectionné ","Descripción del proceso de biogás seleccionado","label",{"$f":"HLOOKUP($C$2,$B$8:$D18,$A18,FALSE)","v":"Selected Biogas Process Description"},"label11"]
[12,"Input new feedstock manually","Saisir nouvelle matière première manuellement","Ingresar nueva materia prima manualmente","label",{"$f":"HLOOKUP($C$2,$B$8:$D19,$A19,FALSE)","v":"Input new feedstock manually"},"label12"]
[13,"Feedstock Planner 1","Planificateur de matières premières 1","Planificador de materias primas 1","label",{"$f":"HLOOKUP($C$2,$B$8:$D20,$A20,FALSE)","v":"Feedstock Planner 1"},"label13"]
[14,"Feedstock Planner 2","Planificateur de matières premières 2","Planificador de materias primas 2","label",{"$f":"HLOOKUP($C$2,$B$8:$D21,$A21,FALSE)","v":"Feedstock Planner 2"},"label14"]
[15,"Feedstock Planner 3","Planificateur de matières premières 3","Planificador de materias primas 3","label",{"$f":"HLOOKUP($C$2,$B$8:$D22,$A22,FALSE)","v":"Feedstock Planner 3"},"label15"]
[16,"Feedstock Planner 4","Planificateur de matières premières 4","Planificador de materias primas 4","label",{"$f":"HLOOKUP($C$2,$B$8:$D23,$A23,FALSE)","v":"Feedstock Planner 4"},"label16"]
[17,"Production Cost 1","Coût de Production 1","Costo de Producción 1","label",{"$f":"HLOOKUP($C$2,$B$8:$D24,$A24,FALSE)","v":"Production Cost 1"},"label17"]
[18,"Production Cost 2","Coût de Production 2","Costo de Producción 2","label",{"$f":"HLOOKUP($C$2,$B$8:$D25,$A25,FALSE)","v":"Production Cost 2"},"label18"]
[19,"Production Cost 3","Coût de Production 3","Costo de Producción 3","label",{"$f":"HLOOKUP($C$2,$B$8:$D26,$A26,FALSE)","v":"Production Cost 3"},"label19"]
[20,"Production Cost 4","Coût de Production 4","Costo de Producción 4","label",{"$f":"HLOOKUP($C$2,$B$8:$D27,$A27,FALSE)","v":"Production Cost 4"},"label20"]
[21,"NEXT >>\nSummary of Results Comparative\n\n","SUIVANT >>\nRésumé des Résultats Comparatifs\n\n","SIGUIENTE >>\nResumen de Resultados Comparativos\n\n\n\n","label",{"$f":"HLOOKUP($C$2,$B$8:$D28,$A28,FALSE)","v":"NEXT >>\nSummary of Results Comparative\n\n"},"label21"]
[22,"NEXT >>\nSummary of Results by Feedstock\n\n\n","SUIVANT >>\nRésumé des Résultats par Matière Premières\n\n","SIGUIENTE >>\nResumen de Resultados por Materia Prima\n\n\n\n\n","label",{"$f":"HLOOKUP($C$2,$B$8:$D29,$A29,FALSE)","v":"NEXT >>\nSummary of Results by Feedstock\n\n\n"},"label22"]
[23,"Price FS 1","Prix FS 1","Precio FS 1","label",{"$f":"HLOOKUP($C$2,$B$8:$D30,$A30,FALSE)","v":"Price FS 1"},"label23"]
[24,"<< BACK \nData Entry","<< RETOUR\nSaisie de Données","<< VOLVER\nDatos de Entrada","label",{"$f":"HLOOKUP($C$2,$B$8:$D31,$A31,FALSE)","v":"<< BACK \nData Entry"},"label24"]
[25,"<< BACK \nProduction Cost 1","<< RETOUR\nCoût de Production 1","<< VOLVER\nCosto de Producción 1","label",{"$f":"HLOOKUP($C$2,$B$8:$D32,$A32,FALSE)","v":"<< BACK \nProduction Cost 1"},"label25"]
[26,"<< BACK \nProduction Cost 2","<< RETOUR\nCoût de Production 2","<< VOLVER\nCosto de Producción 2","label",{"$f":"HLOOKUP($C$2,$B$8:$D33,$A33,FALSE)","v":"<< BACK \nProduction Cost 2"},"label26"]
[27,"<< BACK \nProduction Cost 3","<< RETOUR\nCoût de Production 3","<< VOLVER\nCosto de Producción 3","label",{"$f":"HLOOKUP($C$2,$B$8:$D34,$A34,FALSE)","v":"<< BACK \nProduction Cost 3"},"label27"]
[28,"<< BACK \nProduction Cost 4","<< RETOUR\nCoût de Production 4","<< VOLVER\nCosto de Producción 4","label",{"$f":"HLOOKUP($C$2,$B$8:$D35,$A35,FALSE)","v":"<< BACK \nProduction Cost 4"},"label28"]
[29,"Hide this sheet","Cachez cette feuille","Ocultar esta Hoja","label",{"$f":"HLOOKUP($C$2,$B$8:$D36,$A36,FALSE)","v":"Hide this sheet"},"label29"]
[30,"Spread","Écart","Expandir","label",{"$f":"HLOOKUP($C$2,$B$8:$D37,$A37,FALSE)","v":"Spread"},"label30"]
[31,"Price FS 2","Prix FS 2","Precio FS 2","label",{"$f":"HLOOKUP($C$2,$B$8:$D38,$A38,FALSE)","v":"Price FS 2"},"label31"]
[32,"Price FS 3","Prix FS 3","Precio FS 3","label",{"$f":"HLOOKUP($C$2,$B$8:$D39,$A39,FALSE)","v":"Price FS 3"},"label32"]
[33,"Price FS 4","Prix FS 4","Precio FS 4","label",{"$f":"HLOOKUP($C$2,$B$8:$D40,$A40,FALSE)","v":"Price FS 4"},"label33"]
[34,"Price FS 5","Prix FS 5","Precio FS 5","label",{"$f":"HLOOKUP($C$2,$B$8:$D41,$A41,FALSE)","v":"Price FS 5"},"label34"]
[35,"Price FS 6","Prix FS 6","Precio FS 6","label",{"$f":"HLOOKUP($C$2,$B$8:$D42,$A42,FALSE)","v":"Price FS 6"},"label35"]
[36,"Finanacial Analysis Size 1","Analyse financière Taille 1","Análisis financiero tamaño 1","label",{"$f":"HLOOKUP($C$2,$B$8:$D43,$A43,FALSE)","v":"Finanacial Analysis Size 1"},"label36"]
[37,"Finanacial Analysis Size 2","Analyse financière Taille 2","Análisis financiero tamaño 2","label",{"$f":"HLOOKUP($C$2,$B$8:$D44,$A44,FALSE)","v":"Finanacial Analysis Size 2"},"label37"]
[38,"Finanacial Analysis Size 3","Analyse financière Taille 3","Análisis financiero tamaño 3","label",{"$f":"HLOOKUP($C$2,$B$8:$D45,$A45,FALSE)","v":"Finanacial Analysis Size 3"},"label38"]
[39,"Finanacial Analysis Size 4","Analyse financière Taille 4","Análisis financiero tamaño 4","label",{"$f":"HLOOKUP($C$2,$B$8:$D46,$A46,FALSE)","v":"Finanacial Analysis Size 4"},"label39"]
[40,"Detailed Investment Cost 1","Coût d'investissement détaillé 1","Costo de inversión detallado 1","label",{"$f":"HLOOKUP($C$2,$B$8:$D47,$A47,FALSE)","v":"Detailed Investment Cost 1"},"label40"]
[41,"Detailed Investment Cost 2","Coût d'investissement détaillé 2","Costo de inversión detallado 2","label",{"$f":"HLOOKUP($C$2,$B$8:$D48,$A48,FALSE)","v":"Detailed Investment Cost 2"},"label41"]
[42,"Detailed Investment Cost 3","Coût d'investissement détaillé 3","Costo de inversión detallado 3","label",{"$f":"HLOOKUP($C$2,$B$8:$D49,$A49,FALSE)","v":"Detailed Investment Cost 3"},"label42"]
[43,"Detailed Investment Cost 4","Coût d'investissement détaillé 4","Costo de inversión detallado 4","label",{"$f":"HLOOKUP($C$2,$B$8:$D50,$A50,FALSE)","v":"Detailed Investment Cost 4"},"label43"]
[44,"Create PDF Report","Créer un rapport PDF","Crear un Reporte en PDF","label",{"$f":"HLOOKUP($C$2,$B$8:$D51,$A51,FALSE)","v":"Create PDF Report"},"label44"]

{"sheet":"DB_Prop_Translation","index":3,"n_rows":359,"n_cols":7,"rows_kept":359,"cut":false,"hidden":true,"merged":[]}
[]
[null,"Selection",{"$f":"VLOOKUP(Start!C9,$A$3:$C$5,3,FALSE)","v":1}]
["EN","English",1]
["FR","French",2]
["ES","Spanish",3]
[]
["ID","English","French","Spanish","Typeof","Ref","Name"]
[1,1,2,3]
[2,"Coconut cake/expeller","Tourteau de coco/expeller","Torta de coco / expulsor","feed",{"$f":"HLOOKUP($C$2,$B$8:$D9,$A9,FALSE)","v":"Coconut cake/expeller"},{"$f":"$E9&$A9","v":"feed2"}]
[3,"Coconut extraction meal","Extrait de coco","Harina de extracción de coco","feed",{"$f":"HLOOKUP($C$2,$B$8:$D10,$A10,FALSE)","v":"Coconut extraction meal"},"feed3"]
[4,"Cotton seed extraction meal","Extrait de graines de coton","Harina de extracción de semillas de algodón","feed",{"$f":"HLOOKUP($C$2,$B$8:$D11,$A11,FALSE)","v":"Cotton seed extraction meal"},"feed4"]
[5,"Fish Oil","Huile de poisson","Aceite de pescado","feed",{"$f":"HLOOKUP($C$2,$B$8:$D12,$A12,FALSE)","v":"Fish Oil"},"feed5"]
[6,"Flax cake/expeller","Tourteau de lin/expeller","torta de lino / expulsor","feed",{"$f":"HLOOKUP($C$2,$B$8:$D13,$A13,FALSE)","v":"Flax cake/expeller"},"feed6"]
[7,"Flax extraction meal","Extrait de lin","Harina de extracción de lino","feed",{"$f":"HLOOKUP($C$2,$B$8:$D14,$A14,FALSE)","v":"Flax extraction meal"},"feed7"]
[8,"Glycerin","Glycérine","Glicerina","feed",{"$f":"HLOOKUP($C$2,$B$8:$D15,$A15,FALSE)","v":"Glycerin"},"feed8"]
[9,"Hemp press cake, fresh","Tourteau de chanvre, frais","Torta del prensado de cáñamo, fresco","feed",{"$f":"HLOOKUP($C$2,$B$8:$D16,$A16,FALSE)","v":"Hemp press cake, fresh"},"feed9"]
[10,"Linseed oil","Huile de lin","aceite de semilla de linaza","feed",{"$f":"HLOOKUP($C$2,$B$8:$D17,$A17,FALSE)","v":"Linseed oil"},"feed10"]
[11,"Maize germ cake/expeller","Tourteau de germes de maïs/expeller","Torta germen de maíz / expulsor","feed",{"$f":"HLOOKUP($C$2,$B$8:$D18,$A18,FALSE)","v":"Maize germ cake/expeller"},"feed11"]
[12,"Maize germ extraction meal","Extrait de germes de maïs","Torta germen de trigo / expulsor","feed",{"$f":"HLOOKUP($C$2,$B$8:$D19,$A19,FALSE)","v":"Maize germ extraction meal"},"feed12"]
[13,"Oilseed Residuals (pressed)","Résidus oléagineux (pressés)","Residuos de oleaginosas (prensado)","feed",{"$f":"HLOOKUP($C$2,$B$8:$D20,$A20,FALSE)","v":"Oilseed Residuals (pressed)"},"feed13"]
[14,"Olive pulp","Tourteau d'extraction d'olives","pulpa de la aceituna","feed",{"$f":"HLOOKUP($C$2,$B$8:$D21,$A21,FALSE)","v":"Olive pulp"},"feed14"]
[15,"Palm Kernell","Noix de palme","Grano de palma","feed",{"$f":"HLOOKUP($C$2,$B$8:$D22,$A22,FALSE)","v":"Palm Kernell"},"feed15"]
[16,"Palm-kernel cake/expeller","Tourteau gras d'huile de palmiste","torta de grano de palma / expulsor","feed",{"$f":"HLOOKUP($C$2,$B$8:$D23,$A23,FALSE)","v":"Palm-kernel cake/expeller"},"feed16"]
[17,"Palm-kernel extraction meal","Tourteau déshuilé d'huile de palmiste","Harina de extracción de grano de palma","feed",{"$f":"HLOOKUP($C$2,$B$8:$D24,$A24,FALSE)","v":"Palm-kernel extraction meal"},"feed17"]
[18,"Peanut cake/expeller","Tourteau d'arachide/expeller","Torta de cacahuete / expulsor","feed",{"$f":"HLOOKUP($C$2,$B$8:$D25,$A25,FALSE)","v":"Peanut cake/expeller"},"feed18"]
[19,"Peanut extraction meal","Extrait d'arachide","Harina de extracción de cacahuete","feed",{"$f":"HLOOKUP($C$2,$B$8:$D26,$A26,FALSE)","v":"Peanut extraction meal"},"feed19"]
[20,"Rape cake (pressed cold)","Tourteau de graines de colza (pressées à froid)","Torta de colza (prensado en frío)","feed",{"$f":"HLOOKUP($C$2,$B$8:$D27,$A27,FALSE)","v":"Rape cake (pressed cold)"},"feed20"]
[21,"Rapeseed cake/expeller","Tourteau de colza/expeller","Harina de torta de colza / expulsor","feed",{"$f":"HLOOKUP($C$2,$B$8:$D28,$A28,FALSE)","v":"Rapeseed cake/expeller"},"feed21"]
[22,"Rapeseed extraction meal","Extrait de colza","Torta de colza","feed",{"$f":"HLOOKUP($C$2,$B$8:$D29,$A29,FALSE)","v":"Rapeseed extraction meal"},"feed22"]
[23,"Rapeseed oil","Huile de colza","Aceite de colza","feed",{"$f":"HLOOKUP($C$2,$B$8:$D30,$A30,FALSE)","v":"Rapeseed oil"},"feed23"]
[24,"Raw Glycerol","Glycérol brut","Glicerol crudo","feed",{"$f":"HLOOKUP($C$2,$B$8:$D31,$A31,FALSE)","v":"Raw Glycerol"},"feed24"]
[25,"Safflower extraction meal","Extrait de carthame","Harina de extracción de cártamo","feed",{"$f":"HLOOKUP($C$2,$B$8:$D32,$A32,FALSE)","v":"Safflower extraction meal"},"feed25"]
[26,"Sesame extraction meal","Extrait de sésame","Harina de extracción de sesamo","feed",{"$f":"HLOOKUP($C$2,$B$8:$D33,$A33,FALSE)","v":"Sesame extraction meal"},"feed26"]
[27,"Soy beans seeds steam-heated","Graines de soja chauffées à la vapeur","semillas de soja  calentados por vapor","feed",{"$f":"HLOOKUP($C$2,$B$8:$D34,$A34,FALSE)","v":"Soy beans seeds steam-heated"},"feed27"]
[28,"Soya Oil","Huile de soja","Aceite de soja","feed",{"$f":"HLOOKUP($C$2,$B$8:$D35,$A35,FALSE)","v":"Soya Oil"},"feed28"]
[29,"Soybean extraction meal","Extrait de graines de soja","Harina de extracción de soja ","feed",{"$f":"HLOOKUP($C$2,$B$8:$D36,$A36,FALSE)","v":"Soybean extraction meal"},"feed29"]
[30,"Sunflower cake cold pressed","Tourteau de tournesol pressé à froid","Torta de girasol prensado en frío","feed",{"$f":"HLOOKUP($C$2,$B$8:$D37,$A37,FALSE)","v":"Sunflower cake cold pressed"},"feed30"]
[31,"Sunflower extraction meal","Extrait de tournesol","Harina de extracción de girasol ","feed",{"$f":"HLOOKUP($C$2,$B$8:$D38,$A38,FALSE)","v":"Sunflower extraction meal"},"feed31"]
[32,"Sunflower Oil","Huile de tournesol","Aceite de girasol","feed",{"$f":"HLOOKUP($C$2,$B$8:$D39,$A39,FALSE)","v":"Sunflower Oil"},"feed32"]
[33,"Sunflower peelings","Épluchures de tournesol","Peladuras de girasol","feed",{"$f":"HLOOKUP($C$2,$B$8:$D40,$A40,FALSE)","v":"Sunflower peelings"},"feed33"]
[34,"Apple cake","Tourteau de pomme","Torta de manzanas","feed",{"$f":"HLOOKUP($C$2,$B$8:$D41,$A41,FALSE)","v":"Apple cake"},"feed34"]
[35,"Apple waste","Épluchures de pomme","residuos de manzanas","feed",{"$f":"HLOOKUP($C$2,$B$8:$D42,$A42,FALSE)","v":"Apple waste"},"feed35"]
[36,"Apricot fibre","Fibre d'abricot","Fibra de albaricoque","feed",{"$f":"HLOOKUP($C$2,$B$8:$D43,$A43,FALSE)","v":"Apricot fibre"},"feed36"]
[37,"Asparagus waste","Déchets d'asperge","Residuos de Espárrago ","feed",{"$f":"HLOOKUP($C$2,$B$8:$D44,$A44,FALSE)","v":"Asparagus waste"},"feed37"]
[38,"Banana Residues","Résidus de banane","Residuos de plátano ","feed",{"$f":"HLOOKUP($C$2,$B$8:$D45,$A45,FALSE)","v":"Banana Residues"},"feed38"]
[39,"Barley straw","Paille d'orge","Paja de cebada","feed",{"$f":"HLOOKUP($C$2,$B$8:$D46,$A46,FALSE)","v":"Barley straw"},"feed39"]
[40,"Cauliflower Residues","Résidus de choux fleur","Residuos de Coliflor ","feed",{"$f":"HLOOKUP($C$2,$B$8:$D47,$A47,FALSE)","v":"Cauliflower Residues"},"feed40"]
[41,"Cut flower wastes","Déchets de fleurs coupées","Desechos del cortado de flores","feed",{"$f":"HLOOKUP($C$2,$B$8:$D48,$A48,FALSE)","v":"Cut flower wastes"},"feed41"]
[42,"Eggplant Residues","Résidus d'aubergine","Residuos de la berenjena ","feed",{"$f":"HLOOKUP($C$2,$B$8:$D49,$A49,FALSE)","v":"Eggplant Residues"},"feed42"]
[43,"Feeding beet leaves, fresh","Feuilles de betterave fourragère, fraiches","Hojas de remolacha, frescas","feed",{"$f":"HLOOKUP($C$2,$B$8:$D50,$A50,FALSE)","v":"Feeding beet leaves, fresh"},"feed43"]
[44,"Feeding beet leaves, silage","Feuilles de betterave fourragère, ensilées","Hojas de remolacha, ensiladas","feed",{"$f":"HLOOKUP($C$2,$B$8:$D51,$A51,FALSE)","v":"Feeding beet leaves, silage"},"feed44"]
[45,"Field fodder hay","Fourrage séché des champs","Heno de forraje de campo","feed",{"$f":"HLOOKUP($C$2,$B$8:$D52,$A52,FALSE)","v":"Field fodder hay"},"feed45"]
[46,"Grape Residues","Résidus de raisin","Residuos de uva","feed",{"$f":"HLOOKUP($C$2,$B$8:$D53,$A53,FALSE)","v":"Grape Residues"},"feed46"]
[47,"Lemon Residues","Résidus de citron","Residuos de limon","feed",{"$f":"HLOOKUP($C$2,$B$8:$D54,$A54,FALSE)","v":"Lemon Residues"},"feed47"]
[48,"Maize cobs","Rafle de maïs","Mazorcas de Maíz","feed",{"$f":"HLOOKUP($C$2,$B$8:$D55,$A55,FALSE)","v":"Maize cobs"},"feed48"]
[49,"Maize stover","Tiges et feuilles de maïs","Maíz ","feed",{"$f":"HLOOKUP($C$2,$B$8:$D56,$A56,FALSE)","v":"Maize stover"},"feed49"]
[50,"Maize Straw","Paille de maïs","Paja de maiz","feed",{"$f":"HLOOKUP($C$2,$B$8:$D57,$A57,FALSE)","v":"Maize Straw"},"feed50"]
[51,"Mango Resdiues","Résidus de mangue","Residuos de mango","feed",{"$f":"HLOOKUP($C$2,$B$8:$D58,$A58,FALSE)","v":"Mango Resdiues"},"feed51"]
[52,"Oat straw","Paille d'avoine","Paja de avena","feed",{"$f":"HLOOKUP($C$2,$B$8:$D59,$A59,FALSE)","v":"Oat straw"},"feed52"]
[53,"Orange Residues","Épluchures d'orange","Residuos de naranja","feed",{"$f":"HLOOKUP($C$2,$B$8:$D60,$A60,FALSE)","v":"Orange Residues"},"feed53"]
[54,"Pea straw","Paille de petits pois","Paja de guisantes","feed",{"$f":"HLOOKUP($C$2,$B$8:$D61,$A61,FALSE)","v":"Pea straw"},"feed54"]
[55,"Pineapple Residues","Épluchures d'ananas","Residuos de piña","feed",{"$f":"HLOOKUP($C$2,$B$8:$D62,$A62,FALSE)","v":"Pineapple Residues"},"feed55"]
[56,"Pineapple waste","Déchets d'ananas","Residuos de piña","feed",{"$f":"HLOOKUP($C$2,$B$8:$D63,$A63,FALSE)","v":"Pineapple waste"},"feed56"]
[57,"Potatoe Residues","Épluchures de pommes de terre","Residuos de patatas","feed",{"$f":"HLOOKUP($C$2,$B$8:$D64,$A64,FALSE)","v":"Potatoe Residues"},"feed57"]
[58,"Rapeseed straw","Paille de colza","Paja de colza","feed",{"$f":"HLOOKUP($C$2,$B$8:$D65,$A65,FALSE)","v":"Rapeseed straw"},"feed58"]
[59,"Rice Straw","Paille de riz","Paja de arroz","feed",{"$f":"HLOOKUP($C$2,$B$8:$D66,$A66,FALSE)","v":"Rice Straw"},"feed59"]
[60,"Rye straw","Paille de seigle","Paja de centeno","feed",{"$f":"HLOOKUP($C$2,$B$8:$D67,$A67,FALSE)","v":"Rye straw"},"feed60"]
[61,"Ryegrass straw","Paille d'avoine","Paja de centeno","feed",{"$f":"HLOOKUP($C$2,$B$8:$D68,$A68,FALSE)","v":"Ryegrass straw"},"feed61"]
[62,"Spinach waste","Déchets d’épinard","residuos de espinaca ","feed",{"$f":"HLOOKUP($C$2,$B$8:$D69,$A69,FALSE)","v":"Spinach waste"},"feed62"]
[63,"Other Straw","Autre paille","Paja Otros","feed",{"$f":"HLOOKUP($C$2,$B$8:$D70,$A70,FALSE)","v":"Other Straw"},"feed63"]
[64,"Sugar Beet leaf","Feuille de betterave sucrière","hojas de remolacha","feed",{"$f":"HLOOKUP($C$2,$B$8:$D71,$A71,FALSE)","v":"Sugar Beet leaf"},"feed64"]
[65,"Sugar beet tops","Collet de betterave sucrière","Copas de remolacha","feed",{"$f":"HLOOKUP($C$2,$B$8:$D72,$A72,FALSE)","v":"Sugar beet tops"},"feed65"]
[66,"Sugar beet waste","Déchets de betterave sucrière","Residuos de remolacha","feed",{"$f":"HLOOKUP($C$2,$B$8:$D73,$A73,FALSE)","v":"Sugar beet waste"},{"$f":"$E73&$A73","v":"feed66"}]
[67,"Sugar beet, leaves and tops, silage","Betterave sucrière, feuilles et collets, ensilée","Hojas y las tapas de remolacha, ensilado","feed",{"$f":"HLOOKUP($C$2,$B$8:$D74,$A74,FALSE)","v":"Sugar beet, leaves and tops, silage"},"feed67"]
[68,"Sugas beet leaf (fresh)","Feuille de betterave sucrière (fraîche)","Hoja de remolacha (frescas)","feed",{"$f":"HLOOKUP($C$2,$B$8:$D75,$A75,FALSE)","v":"Sugas beet leaf (fresh)"},"feed68"]
[69,"Tangerine Residues","Résidus de mandarine","Residuos de mandarina","feed",{"$f":"HLOOKUP($C$2,$B$8:$D76,$A76,FALSE)","v":"Tangerine Residues"},"feed69"]
[70,"Tea Waste","Déchets de thé","Residuos de Té","feed",{"$f":"HLOOKUP($C$2,$B$8:$D77,$A77,FALSE)","v":"Tea Waste"},"feed70"]
[71,"Tomatoe Residues","Résidus des tomates","Residuos de Tomate","feed",{"$f":"HLOOKUP($C$2,$B$8:$D78,$A78,FALSE)","v":"Tomatoe Residues"},"feed71"]
[72,"Turnip Residues","Résidus des navets","Residuos de nabo","feed",{"$f":"HLOOKUP($C$2,$B$8:$D79,$A79,FALSE)","v":"Turnip Residues"},"feed72"]
[73,"Turnips tops, fresh","Collets de navet, frais","nabos copas, fresco","feed",{"$f":"HLOOKUP($C$2,$B$8:$D80,$A80,FALSE)","v":"Turnips tops, fresh"},"feed73"]
[74,"Wheat straw","Paille de blé","paja de trigo","feed",{"$f":"HLOOKUP($C$2,$B$8:$D81,$A81,FALSE)","v":"Wheat straw"},"feed74"]
[75,"Cocoa Shell","Coques de cacao","Cáscara de cocoa","feed",{"$f":"HLOOKUP($C$2,$B$8:$D82,$A82,FALSE)","v":"Cocoa Shell"},"feed75"]
[76,"Butter milk fresh","Babeurre frais","Mantequilla de leche fresca","feed",{"$f":"HLOOKUP($C$2,$B$8:$D83,$A83,FALSE)","v":"Butter milk fresh"},"feed76"]
[77,"Cheese waste","Restes de fromage","Residuos de queso","feed",{"$f":"HLOOKUP($C$2,$B$8:$D84,$A84,FALSE)","v":"Cheese waste"},"feed77"]
[78,"Dairy cow slurry","Lisier de vache laitière","Estiercol liquido de vaca lechera","feed",{"$f":"HLOOKUP($C$2,$B$8:$D85,$A85,FALSE)","v":"Dairy cow slurry"},"feed78"]
[79,"Dairy slurry inc. fodder remains","Lisier de vache laitière, restes de fourrage inclus","Estiercol liquido de vaca lechera con restos de alimentos para ganado","feed",{"$f":"HLOOKUP($C$2,$B$8:$D86,$A86,FALSE)","v":"Dairy slurry inc. fodder remains"},"feed79"]
[80,"Milk Whey","Lactosérum","Suero de leche","feed",{"$f":"HLOOKUP($C$2,$B$8:$D87,$A87,FALSE)","v":"Milk Whey"},"feed80"]
[81,"Skimmed milk dry","Lait écrémé, en poudre","leche desnatada seca","feed",{"$f":"HLOOKUP($C$2,$B$8:$D88,$A88,FALSE)","v":"Skimmed milk dry"},"feed81"]
[82,"Skimmed milk fresh","Lait écrémé, frais ","leche desnatada fresca","feed",{"$f":"HLOOKUP($C$2,$B$8:$D89,$A89,FALSE)","v":"Skimmed milk fresh"},"feed82"]
[83,"Sour whey fresh","Lactosérum acide, frais","Suero de leche agria fresca","feed",{"$f":"HLOOKUP($C$2,$B$8:$D90,$A90,FALSE)","v":"Sour whey fresh"},"feed83"]
[84,"Whole cows milk fresh","Lait entier de vache, frais","Leche de vaca entera fresca","feed",{"$f":"HLOOKUP($C$2,$B$8:$D91,$A91,FALSE)","v":"Whole cows milk fresh"},"feed84"]
[85,"Barley","Orge","Cebada","feed",{"$f":"HLOOKUP($C$2,$B$8:$D92,$A92,FALSE)","v":"Barley"},"feed85"]
[86,"Barley grain","Grain d'orge","grano de cebada","feed",{"$f":"HLOOKUP($C$2,$B$8:$D93,$A93,FALSE)","v":"Barley grain"},"feed86"]
[87,"Forage sorghum","Sorgho fourrager","sorgo forrajero","feed",{"$f":"HLOOKUP($C$2,$B$8:$D94,$A94,FALSE)","v":"Forage sorghum"},"feed87"]
[88,"Grain sorghum","Sorgho à grains","Grano de sorgo","feed",{"$f":"HLOOKUP($C$2,$B$8:$D95,$A95,FALSE)","v":"Grain sorghum"},"feed88"]
[89,"Grass Clipings","Herbe coupée","Recortes de césped","feed",{"$f":"HLOOKUP($C$2,$B$8:$D96,$A96,FALSE)","v":"Grass Clipings"},"feed89"]
[90,"Grass fresh","Herbe, fraîche","hierba fresca","feed",{"$f":"HLOOKUP($C$2,$B$8:$D97,$A97,FALSE)","v":"Grass fresh"},"feed90"]
[91,"Green maize","Maïs vert","Maiz verde","feed",{"$f":"HLOOKUP($C$2,$B$8:$D98,$A98,FALSE)","v":"Green maize"},"feed91"]
[92,"Maize","Mais","Maíz","feed",{"$f":"HLOOKUP($C$2,$B$8:$D99,$A99,FALSE)","v":"Maize"},"feed92"]
[93,"Maize grain dry","Maïs en grains secs","Maíz grano seco","feed",{"$f":"HLOOKUP($C$2,$B$8:$D100,$A100,FALSE)","v":"Maize grain dry"},"feed93"]
[94,"Oat grain","Avoine en grains","Grano de avena","feed",{"$f":"HLOOKUP($C$2,$B$8:$D101,$A101,FALSE)","v":"Oat grain"},"feed94"]
[95,"Rapeseed","Colza","Colza (semilla)","feed",{"$f":"HLOOKUP($C$2,$B$8:$D102,$A102,FALSE)","v":"Rapeseed"},"feed95"]
[96,"Reed, cattail, fresh","Roseau, épis, frais","Reed, espadaña, fresco","feed",{"$f":"HLOOKUP($C$2,$B$8:$D103,$A103,FALSE)","v":"Reed, cattail, fresh"},"feed96"]
[97,"Rice","Riz","arroz","feed",{"$f":"HLOOKUP($C$2,$B$8:$D104,$A104,FALSE)","v":"Rice"},"feed97"]
[98,"Seaweed, fresh","Algue marine, fraîche","algas, frescas","feed",{"$f":"HLOOKUP($C$2,$B$8:$D105,$A105,FALSE)","v":"Seaweed, fresh"},"feed98"]
[99,"Sorghum","Sorgho","Sorgo","feed",{"$f":"HLOOKUP($C$2,$B$8:$D106,$A106,FALSE)","v":"Sorghum"},"feed99"]
[100,"Sorghum grains","Sorgho en grains","granos de sorgo","feed",{"$f":"HLOOKUP($C$2,$B$8:$D107,$A107,FALSE)","v":"Sorghum grains"},"feed100"]
[101,"Sugar beet","Betterave sucrière","Remolacha","feed",{"$f":"HLOOKUP($C$2,$B$8:$D108,$A108,FALSE)","v":"Sugar beet"},"feed101"]
[102,"Sunflower","Tournesol","Sunflower","feed",{"$f":"HLOOKUP($C$2,$B$8:$D109,$A109,FALSE)","v":"Sunflower"},"feed102"]
[103,"Sunflowers green start of flowering","Tournesols verts en début de floraison","Girasoles verdes de inicio de la floración","feed",{"$f":"HLOOKUP($C$2,$B$8:$D110,$A110,FALSE)","v":"Sunflowers green start of flowering"},"feed103"]
[104,"Sweet Sorghum","Sorgho sucrier","sorgo dulce","feed",{"$f":"HLOOKUP($C$2,$B$8:$D111,$A111,FALSE)","v":"Sweet Sorghum"},"feed104"]
[105,"Triticale","Triticale","Triticale","feed",{"$f":"HLOOKUP($C$2,$B$8:$D112,$A112,FALSE)","v":"Triticale"},"feed105"]
[106,"Triticale grains","Grains de triticale","Granos de triticale","feed",{"$f":"HLOOKUP($C$2,$B$8:$D113,$A113,FALSE)","v":"Triticale grains"},"feed106"]
[107,"Wheat ","Blé ","Trigo","feed",{"$f":"HLOOKUP($C$2,$B$8:$D114,$A114,FALSE)","v":"Wheat "},"feed107"]
[108,"Wheat grain","Grains de blé","Granos de trigo","feed",{"$f":"HLOOKUP($C$2,$B$8:$D115,$A115,FALSE)","v":"Wheat grain"},"feed108"]
[109,"White fir","Sapin du Colorado","abeto blanco","feed",{"$f":"HLOOKUP($C$2,$B$8:$D116,$A116,FALSE)","v":"White fir"},"feed109"]
[110,"Willow","Saule","Mimbre","feed",{"$f":"HLOOKUP($C$2,$B$8:$D117,$A117,FALSE)","v":"Willow"},"feed110"]
[111,"Winter Barley","Orge d'hiver","Cebada de invierno","feed",{"$f":"HLOOKUP($C$2,$B$8:$D118,$A118,FALSE)","v":"Winter Barley"},"feed111"]
[112,"Maize Grain Silage (Crimped seed)","Grains ensilés de maïs (semence gaufrée)","maíz en grano ensilado (semilla rizada)","feed",{"$f":"HLOOKUP($C$2,$B$8:$D119,$A119,FALSE)","v":"Maize Grain Silage (Crimped seed)"},"feed112"]
[113,"Maize Silage","Maïs ensilé","maíz de ensilaje","feed",{"$f":"HLOOKUP($C$2,$B$8:$D120,$A120,FALSE)","v":"Maize Silage"},"feed113"]
[114,"Miscanthus silage","Roseau de Chine ensilé","Miscanthus ensilaje","feed",{"$f":"HLOOKUP($C$2,$B$8:$D121,$A121,FALSE)","v":"Miscanthus silage"},"feed114"]
[115,"Miscanthus silage","Roseau de Chine ensilé","Miscanthus sillage","feed",{"$f":"HLOOKUP($C$2,$B$8:$D122,$A122,FALSE)","v":"Miscanthus silage"},"feed115"]
[116,"Sugar beet leaves, silage","Feuilles de betterave sucrière, ensilées","hojas de remolacha azucarera, ensilado","feed",{"$f":"HLOOKUP($C$2,$B$8:$D123,$A123,FALSE)","v":"Sugar beet leaves, silage"},"feed116"]
[117,"Sugar beet silage","Betterave sucrière ensilée","Remolacha ensilaje","feed",{"$f":"HLOOKUP($C$2,$B$8:$D124,$A124,FALSE)","v":"Sugar beet silage"},"feed117"]
[118,"Wheat strip waste","Déchets de blé déchiqueté","Trigo residuos en tira","feed",{"$f":"HLOOKUP($C$2,$B$8:$D125,$A125,FALSE)","v":"Wheat strip waste"},"feed118"]
[119,"Apple Marc","Marc de pomme","Marcos de manzana","feed",{"$f":"HLOOKUP($C$2,$B$8:$D126,$A126,FALSE)","v":"Apple Marc"},"feed119"]
[120,"Maize gluten","Gluten de maïs","Gluten de maiz","feed",{"$f":"HLOOKUP($C$2,$B$8:$D127,$A127,FALSE)","v":"Maize gluten"},"feed120"]
[121,"Maize gluten feed","Fourrage au gluten de maïs","Pienso de gluten de maiz","feed",{"$f":"HLOOKUP($C$2,$B$8:$D128,$A128,FALSE)","v":"Maize gluten feed"},"feed121"]
[122,"Mash from distillations","Moût de distillation","Puré de destilaciones","feed",{"$f":"HLOOKUP($C$2,$B$8:$D129,$A129,FALSE)","v":"Mash from distillations"},"feed122"]
[123,"Molasses","Mélasses","Melaza","feed",{"$f":"HLOOKUP($C$2,$B$8:$D130,$A130,FALSE)","v":"Molasses"},"feed123"]
[124,"Potato chips","Chips de pomme de terre","chips de potata","feed",{"$f":"HLOOKUP($C$2,$B$8:$D131,$A131,FALSE)","v":"Potato chips"},"feed124"]
[125,"Potato flakes","Flocons de pomme de terre","escamas potata","feed",{"$f":"HLOOKUP($C$2,$B$8:$D132,$A132,FALSE)","v":"Potato flakes"},"feed125"]
[126,"Potato press water","Eau de presse des pommes de terre","Agua del prensado de patata","feed",{"$f":"HLOOKUP($C$2,$B$8:$D133,$A133,FALSE)","v":"Potato press water"},"feed126"]
[127,"Potato pulp, dried","Pulpe de pomme de terre, séchée","pulpa de la patata, seca","feed",{"$f":"HLOOKUP($C$2,$B$8:$D134,$A134,FALSE)","v":"Potato pulp, dried"},"feed127"]
[128,"Potato starch","Fécule de pomme de terre","almidón de patata","feed",{"$f":"HLOOKUP($C$2,$B$8:$D135,$A135,FALSE)","v":"Potato starch"},"feed128"]
[129,"Residue from production of sweets","Résidus de la production de bonbons","Residuos de la producción de dulces","feed",{"$f":"HLOOKUP($C$2,$B$8:$D136,$A136,FALSE)","v":"Residue from production of sweets"},"feed129"]
[130,"Sugar beet chips","Chips de betterave sucrière","Chips de remolacha azucarera","feed",{"$f":"HLOOKUP($C$2,$B$8:$D137,$A137,FALSE)","v":"Sugar beet chips"},{"$f":"$E137&$A137","v":"feed130"}]
[131,"Sugar beet dried & shredded","Betterave sucrière, séchée et broyée","Remolacha deshidratada y triturada","feed",{"$f":"HLOOKUP($C$2,$B$8:$D138,$A138,FALSE)","v":"Sugar beet dried & shredded"},"feed131"]
[132,"Sugar beet fresh","Betterave sucrière, fraîche","Remolacha fresca","feed",{"$f":"HLOOKUP($C$2,$B$8:$D139,$A139,FALSE)","v":"Sugar beet fresh"},"feed132"]
[133,"Sugar beet melasse","Mélasse de betterave sucrière","Melaza de remolacha","feed",{"$f":"HLOOKUP($C$2,$B$8:$D140,$A140,FALSE)","v":"Sugar beet melasse"},"feed133"]
[134,"Sugar beet pulp, dried","Pulpe de betterave sucrière, séchée","Pulpa de remolacha, seca","feed",{"$f":"HLOOKUP($C$2,$B$8:$D141,$A141,FALSE)","v":"Sugar beet pulp, dried"},"feed134"]
[135,"Sugar beet tops clean","Collets de betterave sucrière, lavées","Hojas de remolacha limpia","feed",{"$f":"HLOOKUP($C$2,$B$8:$D142,$A142,FALSE)","v":"Sugar beet tops clean"},"feed135"]
[136,"Sugar filter cake","Tourteau de sucre filtré","Torta de filtrado de azucar","feed",{"$f":"HLOOKUP($C$2,$B$8:$D143,$A143,FALSE)","v":"Sugar filter cake"},"feed136"]
[137,"Sugar for feeding","Sucre fourrager","Azucar para pienso","feed",{"$f":"HLOOKUP($C$2,$B$8:$D144,$A144,FALSE)","v":"Sugar for feeding"},"feed137"]
[138,"Apple pulp","Pulpe de pomme","Pulpa de manzana","feed",{"$f":"HLOOKUP($C$2,$B$8:$D145,$A145,FALSE)","v":"Apple pulp"},"feed138"]
[139,"Apple slurry","Bouillie de pomme","residuo liquido de manzana","feed",{"$f":"HLOOKUP($C$2,$B$8:$D146,$A146,FALSE)","v":"Apple slurry"},"feed139"]
[140,"Asparagus peels","Épluchures d’asperges","Espárrago cascaras","feed",{"$f":"HLOOKUP($C$2,$B$8:$D147,$A147,FALSE)","v":"Asparagus peels"},"feed140"]
[141,"Baking wastes","Déchets de boulangerie","Residuos de horneado","feed",{"$f":"HLOOKUP($C$2,$B$8:$D148,$A148,FALSE)","v":"Baking wastes"},"feed141"]
[142,"Banana peels","Peaux de banane","cáscaras de plátano","feed",{"$f":"HLOOKUP($C$2,$B$8:$D149,$A149,FALSE)","v":"Banana peels"},"feed142"]
[143,"Barley fresh mass","Masse fraiche d'orge","Cebada masa fresca","feed",{"$f":"HLOOKUP($C$2,$B$8:$D150,$A150,FALSE)","v":"Barley fresh mass"},"feed143"]
[144,"Barley silage","Orge ensilée","Cebada ensilaje","feed",{"$f":"HLOOKUP($C$2,$B$8:$D151,$A151,FALSE)","v":"Barley silage"},"feed144"]
[145,"Field fodder silage","Fourrage des champs, ensilé","Ensilaje forrajero","feed",{"$f":"HLOOKUP($C$2,$B$8:$D152,$A152,FALSE)","v":"Field fodder silage"},"feed145"]
[146,"Hemp press cake","Tourteau de chanvre","Torta de prensade de cáñamo","feed",{"$f":"HLOOKUP($C$2,$B$8:$D153,$A153,FALSE)","v":"Hemp press cake"},"feed146"]
[147,"Hemp silage","Chanvre ensilée","Cáñamo ensilaje","feed",{"$f":"HLOOKUP($C$2,$B$8:$D154,$A154,FALSE)","v":"Hemp silage"},"feed147"]
[148,"Loose skinned mandarin","Peaux de mandarines","Mandarina de piel suelta","feed",{"$f":"HLOOKUP($C$2,$B$8:$D155,$A155,FALSE)","v":"Loose skinned mandarin"},"feed148"]
[149,"Maize strip waste","Déchets de maïs déchiqueté","Residuos en tira de maiz ","feed",{"$f":"HLOOKUP($C$2,$B$8:$D156,$A156,FALSE)","v":"Maize strip waste"},"feed149"]
[150,"Mango Peels","Peaux de mangue","Mango cáscaras","feed",{"$f":"HLOOKUP($C$2,$B$8:$D157,$A157,FALSE)","v":"Mango Peels"},"feed150"]
[151,"Rapeseed strip waste","Déchets de colza déchiqueté","Colza residuos en tira","feed",{"$f":"HLOOKUP($C$2,$B$8:$D158,$A158,FALSE)","v":"Rapeseed strip waste"},"feed151"]
[152,"Reed, cattail, silage","Roseau, épis, ensilé","Reed, espadaña, ensilado","feed",{"$f":"HLOOKUP($C$2,$B$8:$D159,$A159,FALSE)","v":"Reed, cattail, silage"},"feed152"]
[153,"Bakery residues","Résidus de boulangerie","Panadería residuos","feed",{"$f":"HLOOKUP($C$2,$B$8:$D160,$A160,FALSE)","v":"Bakery residues"},"feed153"]
[154,"Barley bran","Son d'orge","Cebada afrecho","feed",{"$f":"HLOOKUP($C$2,$B$8:$D161,$A161,FALSE)","v":"Barley bran"},"feed154"]
[155,"Barley feeding meal","Farine fourragère d'orge ","cebada harina de pienso","feed",{"$f":"HLOOKUP($C$2,$B$8:$D162,$A162,FALSE)","v":"Barley feeding meal"},"feed155"]
[156,"Bran and cereal strip waste (70:30), fresh","Son et déchets de céréales déchiquettées (70:30), frais","Afrecho y residuos de cereales en tira  (70 : 30),fresco","feed",{"$f":"HLOOKUP($C$2,$B$8:$D163,$A163,FALSE)","v":"Bran and cereal strip waste (70:30), fresh"},"feed156"]
[157,"Cereal Mash","Moût de céréales","puré de cereales","feed",{"$f":"HLOOKUP($C$2,$B$8:$D164,$A164,FALSE)","v":"Cereal Mash"},"feed157"]
[158,"Cereal strip waste, fresh","Bourre de céréales, fraîche","Cereal residuos en tira,  fresca","feed",{"$f":"HLOOKUP($C$2,$B$8:$D165,$A165,FALSE)","v":"Cereal strip waste, fresh"},"feed158"]
[159,"Chip fat","Graisse des cossettes","Grasa de la viruta","feed",{"$f":"HLOOKUP($C$2,$B$8:$D166,$A166,FALSE)","v":"Chip fat"},"feed159"]
[160,"Coffee pulp","Pulpe de café","pulpa de café","feed",{"$f":"HLOOKUP($C$2,$B$8:$D167,$A167,FALSE)","v":"Coffee pulp"},"feed160"]
[161,"Dairy industry wastes","Déchets des industries laitières","lácteos desechos de la industria","feed",{"$f":"HLOOKUP($C$2,$B$8:$D168,$A168,FALSE)","v":"Dairy industry wastes"},"feed161"]
[162,"Discarded wheat flour","Rejets de farine de froment","desechados harina de trigo","feed",{"$f":"HLOOKUP($C$2,$B$8:$D169,$A169,FALSE)","v":"Discarded wheat flour"},"feed162"]
[163,"Field bean grain","Grains de féveroles","Grano de haba del campo","feed",{"$f":"HLOOKUP($C$2,$B$8:$D170,$A170,FALSE)","v":"Field bean grain"},"feed163"]
[164,"Grain Peas","Pois en grain","Guisantes en grano","feed",{"$f":"HLOOKUP($C$2,$B$8:$D171,$A171,FALSE)","v":"Grain Peas"},"feed164"]
[165,"Maize , broken","Maïs, concassé","Maiz, rotos","feed",{"$f":"HLOOKUP($C$2,$B$8:$D172,$A172,FALSE)","v":"Maize , broken"},"feed165"]
[166,"Maize grain powder","Poudre de grains de maïs","Grano de maiz en polvo","feed",{"$f":"HLOOKUP($C$2,$B$8:$D173,$A173,FALSE)","v":"Maize grain powder"},"feed166"]
[167,"Malt coffee marc","Malt de marc de café","Marco de café de malta","feed",{"$f":"HLOOKUP($C$2,$B$8:$D174,$A174,FALSE)","v":"Malt coffee marc"},"feed167"]
[168,"Medical tea (Production waste)","Thé thérapeutique (déchets de la production)","té Médico (residuos de fabricación)","feed",{"$f":"HLOOKUP($C$2,$B$8:$D175,$A175,FALSE)","v":"Medical tea (Production waste)"},"feed168"]
[169,"Mixed grain","Mélange de céréales","mezclado de granos","feed",{"$f":"HLOOKUP($C$2,$B$8:$D176,$A176,FALSE)","v":"Mixed grain"},"feed169"]
[170,"Oat bran","Son d'avoine","Afrecho de avena","feed",{"$f":"HLOOKUP($C$2,$B$8:$D177,$A177,FALSE)","v":"Oat bran"},"feed170"]
[171,"Oats fodder flour","Farine d'avoine fourragère ","Harina de pienso de avena","feed",{"$f":"HLOOKUP($C$2,$B$8:$D178,$A178,FALSE)","v":"Oats fodder flour"},"feed171"]
[172,"Old bread","Pain rassis","pan viejo","feed",{"$f":"HLOOKUP($C$2,$B$8:$D179,$A179,FALSE)","v":"Old bread"},"feed172"]
[173,"Old chip fat","Graisse usagée de cossettes","Grasa de viruta vieja","feed",{"$f":"HLOOKUP($C$2,$B$8:$D180,$A180,FALSE)","v":"Old chip fat"},"feed173"]
[174,"Onion Residues","Pelures d'oignon","Residuos de cebolla","feed",{"$f":"HLOOKUP($C$2,$B$8:$D181,$A181,FALSE)","v":"Onion Residues"},"feed174"]
[175,"Other cereals straw","Paille d'autres céréales","Paja de otros cereales","feed",{"$f":"HLOOKUP($C$2,$B$8:$D182,$A182,FALSE)","v":"Other cereals straw"},"feed175"]
[176,"Potato flakes","Flocons de pomme de terre","copos de patata","feed",{"$f":"HLOOKUP($C$2,$B$8:$D183,$A183,FALSE)","v":"Potato flakes"},"feed176"]
[177,"Potato peeling wastes roughly","Épluchures grossières de pomme de terre","patatas desechos cascaras","feed",{"$f":"HLOOKUP($C$2,$B$8:$D184,$A184,FALSE)","v":"Potato peeling wastes roughly"},"feed177"]
[178,"Potato Pulp/Peelings","Pulpe/Épluchures de pomme de terre","Patata pulpa/cascaras","feed",{"$f":"HLOOKUP($C$2,$B$8:$D185,$A185,FALSE)","v":"Potato Pulp/Peelings"},"feed178"]
[179,"Potatoes amniotic fluid (Starch production)","Liquide amniotique des pommes de terre (production d'amidon)","Patatas líquido amniótico (producción almidon)","feed",{"$f":"HLOOKUP($C$2,$B$8:$D186,$A186,FALSE)","v":"Potatoes amniotic fluid (Starch production)"},"feed179"]
[180,"Potatoes mash","Purée de pommes de terre","Patatas puré","feed",{"$f":"HLOOKUP($C$2,$B$8:$D187,$A187,FALSE)","v":"Potatoes mash"},"feed180"]
[181,"Potatoes pulp","Pulpe de pommes de terre","Patatas pulpa","feed",{"$f":"HLOOKUP($C$2,$B$8:$D188,$A188,FALSE)","v":"Potatoes pulp"},"feed181"]
[182,"Potatoes shredder","Broyeur de pommes de terre","Patatas trituradora","feed",{"$f":"HLOOKUP($C$2,$B$8:$D189,$A189,FALSE)","v":"Potatoes shredder"},"feed182"]
[183,"Potatoes waste water","Eau usée des pommes de terre","Patatas de aguas residuales","feed",{"$f":"HLOOKUP($C$2,$B$8:$D190,$A190,FALSE)","v":"Potatoes waste water"},"feed183"]
[184,"Processing waste (filtration cake, pulp)","Déchets de la transformation (gâteau de filtration, pulpe)","Desecho de procesamiento(torta de filtración, pulpa)","feed",{"$f":"HLOOKUP($C$2,$B$8:$D191,$A191,FALSE)","v":"Processing waste (filtration cake, pulp)"},"feed184"]
[185,"Pulp","Pulpe","Pulpa","feed",{"$f":"HLOOKUP($C$2,$B$8:$D192,$A192,FALSE)","v":"Pulp"},"feed185"]
[186,"Rice Bran","Son de riz","Arroz afrecho","feed",{"$f":"HLOOKUP($C$2,$B$8:$D193,$A193,FALSE)","v":"Rice Bran"},"feed186"]
[187,"Rice feeding meal","Farine fourragère de riz ","Arroz harina de pienso","feed",{"$f":"HLOOKUP($C$2,$B$8:$D194,$A194,FALSE)","v":"Rice feeding meal"},"feed187"]
[188,"Rolled oats","Flocons d'avoine","Avena rollos","feed",{"$f":"HLOOKUP($C$2,$B$8:$D195,$A195,FALSE)","v":"Rolled oats"},"feed188"]
[189,"Rye bran","Son de seigle","Centeno afrecho","feed",{"$f":"HLOOKUP($C$2,$B$8:$D196,$A196,FALSE)","v":"Rye bran"},"feed189"]
[190,"Rye feeding meal","Farine fourragère de seigle ","Avena harina de pienso","feed",{"$f":"HLOOKUP($C$2,$B$8:$D197,$A197,FALSE)","v":"Rye feeding meal"},"feed190"]
[191,"Silage seep water","Eau de percolation ensilée","Agua de ensilaje","feed",{"$f":"HLOOKUP($C$2,$B$8:$D198,$A198,FALSE)","v":"Silage seep water"},"feed191"]
[192,"Succory chaff","Balle de chicorée","Achicoria paja","feed",{"$f":"HLOOKUP($C$2,$B$8:$D199,$A199,FALSE)","v":"Succory chaff"},"feed192"]
[193,"Succory mush","Bouillie de chicorée","Achicoria pure","feed",{"$f":"HLOOKUP($C$2,$B$8:$D200,$A200,FALSE)","v":"Succory mush"},"feed193"]
[194,"Vegetable wastes","Déchets végétaux","vegetales residuos","feed",{"$f":"HLOOKUP($C$2,$B$8:$D201,$A201,FALSE)","v":"Vegetable wastes"},{"$f":"$E201&$A201","v":"feed194"}]
[195,"Wheat bran","Son de blé","Trigo afrecho","feed",{"$f":"HLOOKUP($C$2,$B$8:$D202,$A202,FALSE)","v":"Wheat bran"},"feed195"]
[196,"Wheat chaff","Balle de blé","Trigo paja","feed",{"$f":"HLOOKUP($C$2,$B$8:$D203,$A203,FALSE)","v":"Wheat chaff"},"feed196"]
[197,"Wheat flakes","Flocons de blé","Trigo copos","feed",{"$f":"HLOOKUP($C$2,$B$8:$D204,$A204,FALSE)","v":"Wheat flakes"},"feed197"]
[198,"Wheat germs","Germes de blé","Trigo germen","feed",{"$f":"HLOOKUP($C$2,$B$8:$D205,$A205,FALSE)","v":"Wheat germs"},"feed198"]
[199,"Wheat semolina bran","Son de semoule de blé","Trigo afrecho sémola","feed",{"$f":"HLOOKUP($C$2,$B$8:$D206,$A206,FALSE)","v":"Wheat semolina bran"},"feed199"]
[200,"Fruit slurry","Bouillie de fruit","Frutas residuos liquidos","feed",{"$f":"HLOOKUP($C$2,$B$8:$D207,$A207,FALSE)","v":"Fruit slurry"},"feed200"]
[201,"Alemangrass","Echinochloa","Alemangrass","feed",{"$f":"HLOOKUP($C$2,$B$8:$D208,$A208,FALSE)","v":"Alemangrass"},"feed201"]
[202,"Bermuda grass","Chiendent pied-de-poule","Bermuda hierba de ","feed",{"$f":"HLOOKUP($C$2,$B$8:$D209,$A209,FALSE)","v":"Bermuda grass"},"feed202"]
[203,"Glover grass hay","Foin de graminées et de trèfle","Glover hierba de - heno","feed",{"$f":"HLOOKUP($C$2,$B$8:$D210,$A210,FALSE)","v":"Glover grass hay"},"feed203"]
[204,"Glover grass silage","Foin de trèfle ensilé","Glover hierba de - ensilado","feed",{"$f":"HLOOKUP($C$2,$B$8:$D211,$A211,FALSE)","v":"Glover grass silage"},"feed204"]
[205,"Grass","Graminée","Hierba","feed",{"$f":"HLOOKUP($C$2,$B$8:$D212,$A212,FALSE)","v":"Grass"},"feed205"]
[206,"Clover grass hay","Herbe coupée (terrains de golf)","Hierba - cortes (campo de golf)","feed",{"$f":"HLOOKUP($C$2,$B$8:$D213,$A213,FALSE)","v":"Clover grass hay"},"feed206"]
[207,"Clover grass silage","Herbe coupée (émondages)","Hierba - cortes (podas)","feed",{"$f":"HLOOKUP($C$2,$B$8:$D214,$A214,FALSE)","v":"Clover grass silage"},"feed207"]
[208,"Grass cuttings from lawns","Herbe coupée des pelouses","Hierba - restos de corte de césped","feed",{"$f":"HLOOKUP($C$2,$B$8:$D215,$A215,FALSE)","v":"Grass cuttings from lawns"},"feed208"]
[209,"Grass hay","Foin de graminées","Hierba - heno","feed",{"$f":"HLOOKUP($C$2,$B$8:$D216,$A216,FALSE)","v":"Grass hay"},"feed209"]
[210,"Grass silage","Herbe ensilée","Hierba - ensilado","feed",{"$f":"HLOOKUP($C$2,$B$8:$D217,$A217,FALSE)","v":"Grass silage"},"feed210"]
[211,"Lawn","Gazon","césped","feed",{"$f":"HLOOKUP($C$2,$B$8:$D218,$A218,FALSE)","v":"Lawn"},"feed211"]
[212,"Meadow grass green","Pâturin vert","Hierba de pradera verde","feed",{"$f":"HLOOKUP($C$2,$B$8:$D219,$A219,FALSE)","v":"Meadow grass green"},"feed212"]
[213,"Miscanthus fresh","Miscanthus frais","Miscanthus fresca","feed",{"$f":"HLOOKUP($C$2,$B$8:$D220,$A220,FALSE)","v":"Miscanthus fresh"},"feed213"]
[214,"Napier grass","Napier","Napier hierba de","feed",{"$f":"HLOOKUP($C$2,$B$8:$D221,$A221,FALSE)","v":"Napier grass"},"feed214"]
[215,"Ray Grass","Ivraie","Ray hierba de","feed",{"$f":"HLOOKUP($C$2,$B$8:$D222,$A222,FALSE)","v":"Ray Grass"},"feed215"]
[216,"Ray Grass Silage","Ivraie ensilé","Ray hierba de - ensilado","feed",{"$f":"HLOOKUP($C$2,$B$8:$D223,$A223,FALSE)","v":"Ray Grass Silage"},"feed216"]
[217,"Reed canary grass","Baldingère faux-roseau","alpiste","feed",{"$f":"HLOOKUP($C$2,$B$8:$D224,$A224,FALSE)","v":"Reed canary grass"},"feed217"]
[218,"Ray grass","Ivraie","Centeno - hierba","feed",{"$f":"HLOOKUP($C$2,$B$8:$D225,$A225,FALSE)","v":"Ray grass"},"feed218"]
[219,"Spartina-Cordgrass","Spartina","cordgrass","feed",{"$f":"HLOOKUP($C$2,$B$8:$D226,$A226,FALSE)","v":"Spartina-Cordgrass"},"feed219"]
[220,"Sudan grass fresh","Sorgho du Soudan frais","Sudánhierba fresca","feed",{"$f":"HLOOKUP($C$2,$B$8:$D227,$A227,FALSE)","v":"Sudan grass fresh"},"feed220"]
[221,"Sudan grass silage","Sorgho du Soudan ensilé","Sudánensilado de hierba","feed",{"$f":"HLOOKUP($C$2,$B$8:$D228,$A228,FALSE)","v":"Sudan grass silage"},"feed221"]
[222,"Tall fescue","Fétuque","festuca alta","feed",{"$f":"HLOOKUP($C$2,$B$8:$D229,$A229,FALSE)","v":"Tall fescue"},"feed222"]
[223,"Timothy grass","Fléole des prés","Timoteo hierba","feed",{"$f":"HLOOKUP($C$2,$B$8:$D230,$A230,FALSE)","v":"Timothy grass"},"feed223"]
[224,"Turf grass","Pelouse en plaque","hierba de césped","feed",{"$f":"HLOOKUP($C$2,$B$8:$D231,$A231,FALSE)","v":"Turf grass"},"feed224"]
[225,"Wood grass","Pâturin des bois","de hierbamadera","feed",{"$f":"HLOOKUP($C$2,$B$8:$D232,$A232,FALSE)","v":"Wood grass"},"feed225"]
[226,"Buffalo","Buffle","Buffalo","feed",{"$f":"HLOOKUP($C$2,$B$8:$D233,$A233,FALSE)","v":"Buffalo"},"feed226"]
[227,"Cattle","Bovins","ganado","feed",{"$f":"HLOOKUP($C$2,$B$8:$D234,$A234,FALSE)","v":"Cattle"},"feed227"]
[228,"Dairy Cattle","Bovins laitiers","ganado lechero","feed",{"$f":"HLOOKUP($C$2,$B$8:$D235,$A235,FALSE)","v":"Dairy Cattle"},"feed228"]
[229,"Poultry","Volailles","aves de corral","feed",{"$f":"HLOOKUP($C$2,$B$8:$D236,$A236,FALSE)","v":"Poultry"},"feed229"]
[230,"Swine","Porcins","porcina","feed",{"$f":"HLOOKUP($C$2,$B$8:$D237,$A237,FALSE)","v":"Swine"},"feed230"]
[231,"Alfalfa","Luzerne","Alfalfa","feed",{"$f":"HLOOKUP($C$2,$B$8:$D238,$A238,FALSE)","v":"Alfalfa"},"feed231"]
[232,"Apple","Pomme","Manzana","feed",{"$f":"HLOOKUP($C$2,$B$8:$D239,$A239,FALSE)","v":"Apple"},"feed232"]
[233,"Banana","Banane","Plátano","feed",{"$f":"HLOOKUP($C$2,$B$8:$D240,$A240,FALSE)","v":"Banana"},"feed233"]
[234,"Beans","Haricots","Frijoles","feed",{"$f":"HLOOKUP($C$2,$B$8:$D241,$A241,FALSE)","v":"Beans"},"feed234"]
[235,"Buckwheat","Blé noir","alforfón","feed",{"$f":"HLOOKUP($C$2,$B$8:$D242,$A242,FALSE)","v":"Buckwheat"},"feed235"]
[236,"Cabbage","Chou","col","feed",{"$f":"HLOOKUP($C$2,$B$8:$D243,$A243,FALSE)","v":"Cabbage"},"feed236"]
[237,"Carrot","Carotte","Zanahoria","feed",{"$f":"HLOOKUP($C$2,$B$8:$D244,$A244,FALSE)","v":"Carrot"},"feed237"]
[238,"Cauliflower","Chou-fleur","Coliflor","feed",{"$f":"HLOOKUP($C$2,$B$8:$D245,$A245,FALSE)","v":"Cauliflower"},"feed238"]
[239,"Clover","Trèfle","Trébol","feed",{"$f":"HLOOKUP($C$2,$B$8:$D246,$A246,FALSE)","v":"Clover"},"feed239"]
[240,"Comfrey","Consoude","consuelda","feed",{"$f":"HLOOKUP($C$2,$B$8:$D247,$A247,FALSE)","v":"Comfrey"},"feed240"]
[241,"Coriander plant","Plante de coriandre","planta deCilantro","feed",{"$f":"HLOOKUP($C$2,$B$8:$D248,$A248,FALSE)","v":"Coriander plant"},"feed241"]
[242,"Eggplant","Aubergine","Berenjena","feed",{"$f":"HLOOKUP($C$2,$B$8:$D249,$A249,FALSE)","v":"Eggplant"},"feed242"]
[243,"Field beans","Légumineuse","granos de campo","feed",{"$f":"HLOOKUP($C$2,$B$8:$D250,$A250,FALSE)","v":"Field beans"},"feed243"]
[244,"Field fodder fresh","Fourrage des champs, frais","El campo forraje fresco","feed",{"$f":"HLOOKUP($C$2,$B$8:$D251,$A251,FALSE)","v":"Field fodder fresh"},"feed244"]
[245,"Fodder beet","Betterave fourragère","Remolacha forrajera","feed",{"$f":"HLOOKUP($C$2,$B$8:$D252,$A252,FALSE)","v":"Fodder beet"},"feed245"]
[246,"Garden beet","Betterave potagère","Jardín de remolacha","feed",{"$f":"HLOOKUP($C$2,$B$8:$D253,$A253,FALSE)","v":"Garden beet"},"feed246"]
[247,"Garden beet tops","Collets de betterave potagère","Jardín de remolacha tops","feed",{"$f":"HLOOKUP($C$2,$B$8:$D254,$A254,FALSE)","v":"Garden beet tops"},"feed247"]
[248,"Garden pea","Pois potager","Guisantes","feed",{"$f":"HLOOKUP($C$2,$B$8:$D255,$A255,FALSE)","v":"Garden pea"},"feed248"]
[249,"Giant knotweed","Renouée géante","knotweed gigante","feed",{"$f":"HLOOKUP($C$2,$B$8:$D256,$A256,FALSE)","v":"Giant knotweed"},"feed249"]
[250,"Grape vine","Vigne","vid de uva","feed",{"$f":"HLOOKUP($C$2,$B$8:$D257,$A257,FALSE)","v":"Grape vine"},"feed250"]
[251,"Ipomoea fistulosa","Ipomoea fistulosa","Ipomoea fistulosa","feed",{"$f":"HLOOKUP($C$2,$B$8:$D258,$A258,FALSE)","v":"Ipomoea fistulosa"},"feed251"]
[252,"Jerusalem Artichoke","Topinambour","alcachofa de Jerusalén","feed",{"$f":"HLOOKUP($C$2,$B$8:$D259,$A259,FALSE)","v":"Jerusalem Artichoke"},"feed252"]
[253,"Lady´s finger (Okra)","Gombo","Seguir este dedo (Okra)","feed",{"$f":"HLOOKUP($C$2,$B$8:$D260,$A260,FALSE)","v":"Lady´s finger (Okra)"},"feed253"]
[254,"Lemon pulp","Pulpe de citron","pulpa de limón","feed",{"$f":"HLOOKUP($C$2,$B$8:$D261,$A261,FALSE)","v":"Lemon pulp"},"feed254"]
[255,"Lupine","Lupin","Lupin","feed",{"$f":"HLOOKUP($C$2,$B$8:$D262,$A262,FALSE)","v":"Lupine"},"feed255"]
[256,"Mango pulp","Pulpe de mangue","pulpaMango","feed",{"$f":"HLOOKUP($C$2,$B$8:$D263,$A263,FALSE)","v":"Mango pulp"},"feed256"]
[257,"Mirabilis","Mirabilis","Mirabilis","feed",{"$f":"HLOOKUP($C$2,$B$8:$D264,$A264,FALSE)","v":"Mirabilis"},"feed257"]
[258,"Mustard ","Moutarde ","mostaza","feed",{"$f":"HLOOKUP($C$2,$B$8:$D265,$A265,FALSE)","v":"Mustard "},{"$f":"$E265&$A265","v":"feed258"}]
[259,"Nettle","Ortie","ortiga","feed",{"$f":"HLOOKUP($C$2,$B$8:$D266,$A266,FALSE)","v":"Nettle"},"feed259"]
[260,"Orange","Orange","Naranja","feed",{"$f":"HLOOKUP($C$2,$B$8:$D267,$A267,FALSE)","v":"Orange"},"feed260"]
[261,"Orange peel and seeds","Peau et graines d'orange","cáscara de naranja y semillas","feed",{"$f":"HLOOKUP($C$2,$B$8:$D268,$A268,FALSE)","v":"Orange peel and seeds"},"feed261"]
[262,"Parsnips","Panais","Chirivías","feed",{"$f":"HLOOKUP($C$2,$B$8:$D269,$A269,FALSE)","v":"Parsnips"},"feed262"]
[263,"Pea","Pois","Pea","feed",{"$f":"HLOOKUP($C$2,$B$8:$D270,$A270,FALSE)","v":"Pea"},"feed263"]
[264,"Pineapple","Ananas","piña","feed",{"$f":"HLOOKUP($C$2,$B$8:$D271,$A271,FALSE)","v":"Pineapple"},"feed264"]
[265,"Pomegranate","Grenade","granada","feed",{"$f":"HLOOKUP($C$2,$B$8:$D272,$A272,FALSE)","v":"Pomegranate"},"feed265"]
[266,"Potatoes","Pommes de terre","Patatas","feed",{"$f":"HLOOKUP($C$2,$B$8:$D273,$A273,FALSE)","v":"Potatoes"},"feed266"]
[267,"Quinoa","Quinoa","Quinoa","feed",{"$f":"HLOOKUP($C$2,$B$8:$D274,$A274,FALSE)","v":"Quinoa"},"feed267"]
[268,"Red clover","Trèfle des prés","El trébol rojo","feed",{"$f":"HLOOKUP($C$2,$B$8:$D275,$A275,FALSE)","v":"Red clover"},"feed268"]
[269,"Rhubarb","Rhubarbe","ruibarbo","feed",{"$f":"HLOOKUP($C$2,$B$8:$D276,$A276,FALSE)","v":"Rhubarb"},"feed269"]
[270,"Rosebay willow-herb","Épilobe en épi","Rosebay sauce-hierba","feed",{"$f":"HLOOKUP($C$2,$B$8:$D277,$A277,FALSE)","v":"Rosebay willow-herb"},"feed270"]
[271,"Rye","Seigle","Centeno","feed",{"$f":"HLOOKUP($C$2,$B$8:$D278,$A278,FALSE)","v":"Rye"},"feed271"]
[272,"Sweet clover","Mélilot","trébol de olor","feed",{"$f":"HLOOKUP($C$2,$B$8:$D279,$A279,FALSE)","v":"Sweet clover"},"feed272"]
[273,"Tomato","Tomate","tomate","feed",{"$f":"HLOOKUP($C$2,$B$8:$D280,$A280,FALSE)","v":"Tomato"},"feed273"]
[274,"Turnip","Navet","Nabo","feed",{"$f":"HLOOKUP($C$2,$B$8:$D281,$A281,FALSE)","v":"Turnip"},"feed274"]
[275,"Vetch","Vesce","Arveja","feed",{"$f":"HLOOKUP($C$2,$B$8:$D282,$A282,FALSE)","v":"Vetch"},"feed275"]
[276,"White cabbage","Chou blanc","col blanca","feed",{"$f":"HLOOKUP($C$2,$B$8:$D283,$A283,FALSE)","v":"White cabbage"},"feed276"]
[277,"Algae","Algues","algas","feed",{"$f":"HLOOKUP($C$2,$B$8:$D284,$A284,FALSE)","v":"Algae"},"feed277"]
[278,"bio-waste container","Conteneur de biodéchets","contenedor de biorresiduos","feed",{"$f":"HLOOKUP($C$2,$B$8:$D285,$A285,FALSE)","v":"bio-waste container"},"feed278"]
[279,"Clover 1st cut in flower","Première coupe de trèfle en fleur","Clover primera corte en flor","feed",{"$f":"HLOOKUP($C$2,$B$8:$D286,$A286,FALSE)","v":"Clover 1st cut in flower"},"feed279"]
[280,"Fodder carrot","Carotte fourragère","Piensos zanahoria","feed",{"$f":"HLOOKUP($C$2,$B$8:$D287,$A287,FALSE)","v":"Fodder carrot"},"feed280"]
[281,"Food leftovers Opt 1.","Restes alimentaires Option 1","sobras de comida Opt 1.","feed",{"$f":"HLOOKUP($C$2,$B$8:$D288,$A288,FALSE)","v":"Food leftovers Opt 1."},"feed281"]
[282,"Food Leftovers Opt 2.","Restes alimentaires Option 2","Food sobras Opt 2.","feed",{"$f":"HLOOKUP($C$2,$B$8:$D289,$A289,FALSE)","v":"Food Leftovers Opt 2."},"feed282"]
[283,"Green Mustard before flower","Moutarde verte avant floraison","mostaza verde antes de la flor","feed",{"$f":"HLOOKUP($C$2,$B$8:$D290,$A290,FALSE)","v":"Green Mustard before flower"},"feed283"]
[284,"Green oats in flower","Avoine verte en fleur","La avena verde en flor","feed",{"$f":"HLOOKUP($C$2,$B$8:$D291,$A291,FALSE)","v":"Green oats in flower"},"feed284"]
[285,"Makrophyt","Macrophyte","Makrophyt","feed",{"$f":"HLOOKUP($C$2,$B$8:$D292,$A292,FALSE)","v":"Makrophyt"},"feed285"]
[286,"Market waste Opt. 1","Opt. 1 Déchets provenant des marchés","desechos de los mercados Opt. 1","feed",{"$f":"HLOOKUP($C$2,$B$8:$D293,$A293,FALSE)","v":"Market waste Opt. 1"},"feed286"]
[287,"Market Wastes Opt. 2","Opt. 2 Déchets provenant des marchés","mercado de residuos Opt. 2","feed",{"$f":"HLOOKUP($C$2,$B$8:$D294,$A294,FALSE)","v":"Market Wastes Opt. 2"},"feed287"]
[288,"Meadow Hay","Foin de prairie","Meadow Hay","feed",{"$f":"HLOOKUP($C$2,$B$8:$D295,$A295,FALSE)","v":"Meadow Hay"},"feed288"]
[289,"Microalgae","Microalgues","Microalgas","feed",{"$f":"HLOOKUP($C$2,$B$8:$D296,$A296,FALSE)","v":"Microalgae"},"feed289"]
[290,"News paper","Journaux","Papel de las noticias","feed",{"$f":"HLOOKUP($C$2,$B$8:$D297,$A297,FALSE)","v":"News paper"},"feed290"]
[291,"Salad","Salade","Ensalada de","feed",{"$f":"HLOOKUP($C$2,$B$8:$D298,$A298,FALSE)","v":"Salad"},"feed291"]
[292,"Sisal Pulp","Pulpe d'agave","sisal Pulpa","feed",{"$f":"HLOOKUP($C$2,$B$8:$D299,$A299,FALSE)","v":"Sisal Pulp"},"feed292"]
[293,"Waste Sludge","Boues résiduaires","residuos de lodos","feed",{"$f":"HLOOKUP($C$2,$B$8:$D300,$A300,FALSE)","v":"Waste Sludge"},"feed293"]
[294,"Waste Sludge (concentrated)","Boues résiduaires (concentré)","residuos de lodos (concentrado)","feed",{"$f":"HLOOKUP($C$2,$B$8:$D301,$A301,FALSE)","v":"Waste Sludge (concentrated)"},"feed294"]
[295,"Fat seperator residues","Résidus de séparateur de graisse","residuos de separador de grasas","feed",{"$f":"HLOOKUP($C$2,$B$8:$D302,$A302,FALSE)","v":"Fat seperator residues"},"feed295"]
[296,"Floating Sludge","Boue flottante","flotante de lodos","feed",{"$f":"HLOOKUP($C$2,$B$8:$D303,$A303,FALSE)","v":"Floating Sludge"},"feed296"]
[297,"Flotate sludge, fresh","Boue flottante, fraîche","Flotate lodos, frescas","feed",{"$f":"HLOOKUP($C$2,$B$8:$D304,$A304,FALSE)","v":"Flotate sludge, fresh"},"feed297"]
[298,"Animal fats","Graisses d'origine animale","Las grasas animales","feed",{"$f":"HLOOKUP($C$2,$B$8:$D305,$A305,FALSE)","v":"Animal fats"},"feed298"]
[299,"Fish liver meal","Farine de foie de poisson","harina de hígadoPescado","feed",{"$f":"HLOOKUP($C$2,$B$8:$D306,$A306,FALSE)","v":"Fish liver meal"},"feed299"]
[300,"Fish meal","Farine de poisson","Pescado comida","feed",{"$f":"HLOOKUP($C$2,$B$8:$D307,$A307,FALSE)","v":"Fish meal"},"feed300"]
[301,"Flotate fat","Gras surnageant","rica en grasasFlotate","feed",{"$f":"HLOOKUP($C$2,$B$8:$D308,$A308,FALSE)","v":"Flotate fat"},"feed301"]
[302,"Hydrolyzed Meat and Bones","Viande et os hydrolysés","hidrolizada carne y los huesos","feed",{"$f":"HLOOKUP($C$2,$B$8:$D309,$A309,FALSE)","v":"Hydrolyzed Meat and Bones"},"feed302"]
[303,"Leftovers Average fat","Déchets (teneur moyenne en matières grasses)","sobras medio de grasa","feed",{"$f":"HLOOKUP($C$2,$B$8:$D310,$A310,FALSE)","v":"Leftovers Average fat"},"feed303"]
[304,"Leftovers fat-rich","Déchets (riches en matières grasses)","sobras rica en grasa","feed",{"$f":"HLOOKUP($C$2,$B$8:$D311,$A311,FALSE)","v":"Leftovers fat-rich"},"feed304"]
[305,"Leftovers low fat & wet","Déchets (faibles en matières grasses & humides)","sobras bajo contenido de grasa yenmojada","feed",{"$f":"HLOOKUP($C$2,$B$8:$D312,$A312,FALSE)","v":"Leftovers low fat & wet"},"feed305"]
[306,"Meat waste","Déchets de viande","residuosla carne","feed",{"$f":"HLOOKUP($C$2,$B$8:$D313,$A313,FALSE)","v":"Meat waste"},"feed306"]
[307,"Pig muck","Muck de cochon","Pig lodo","feed",{"$f":"HLOOKUP($C$2,$B$8:$D314,$A314,FALSE)","v":"Pig muck"},"feed307"]
[308,"Poultry meat offals","Abats de volaille","Aves de Corral despojos","feed",{"$f":"HLOOKUP($C$2,$B$8:$D315,$A315,FALSE)","v":"Poultry meat offals"},"feed308"]
[309,"Purines","Purines","Purines","feed",{"$f":"HLOOKUP($C$2,$B$8:$D316,$A316,FALSE)","v":"Purines"},"feed309"]
[310,"Rumen content","Contenu en rumen","ruminal contenido","feed",{"$f":"HLOOKUP($C$2,$B$8:$D317,$A317,FALSE)","v":"Rumen content"},"feed310"]
[311,"Slaughterhouse wastes mixtures","Mélanges de déchets d’abattoir","de matadero desechos mezclas","feed",{"$f":"HLOOKUP($C$2,$B$8:$D318,$A318,FALSE)","v":"Slaughterhouse wastes mixtures"},"feed311"]
[312,"Coffee Industry wastewater","Eaux usées de l'industrie caféière","industria del café de aguas residuales","feed",{"$f":"HLOOKUP($C$2,$B$8:$D319,$A319,FALSE)","v":"Coffee Industry wastewater"},"feed312"]
[313,"Dairy Industry wastewaters","Eaux usées de l'industrie laitière","aguas residuales de la industria lechera","feed",{"$f":"HLOOKUP($C$2,$B$8:$D320,$A320,FALSE)","v":"Dairy Industry wastewaters"},"feed313"]
[314,"Slaugtherhouse wastewater","Eaux usées des abattoirs","Slaugtherhouse de aguas residuales","feed",{"$f":"HLOOKUP($C$2,$B$8:$D321,$A321,FALSE)","v":"Slaugtherhouse wastewater"},"feed314"]
[315,"Distillery wastewater","Eaux usées de distillerie","Distillery aguas residuales","feed",{"$f":"HLOOKUP($C$2,$B$8:$D322,$A322,FALSE)","v":"Distillery wastewater"},"feed315"]
[316,"Oilseed proceesing wastewater","Eaux usées de la transformation des graines oléagineuses","de semillas oleaginosas proceesing aguas residuales","feed",{"$f":"HLOOKUP($C$2,$B$8:$D323,$A323,FALSE)","v":"Oilseed proceesing wastewater"},"feed316"]
[317,"Fruit industry wastewater","Eaux usées de l'industrie fruitière","Fruit industria de aguas residuales","feed",{"$f":"HLOOKUP($C$2,$B$8:$D324,$A324,FALSE)","v":"Fruit industry wastewater"},"feed317"]
[318,"Pulp and paper industry wastewater","Eaux usées de l'industrie papetière","pulpa y papel de aguas residuales","feed",{"$f":"HLOOKUP($C$2,$B$8:$D325,$A325,FALSE)","v":"Pulp and paper industry wastewater"},"feed318"]
[319,"Textile industry wastewater","Eaux usées de l'industrie du textile","industria Textil de aguas residuales","feed",{"$f":"HLOOKUP($C$2,$B$8:$D326,$A326,FALSE)","v":"Textile industry wastewater"},"feed319"]
[320,"Brewery industry wastewaters","Eaux usées de l'industrie brassicole","Brewery aguas residuales de la industria","feed",{"$f":"HLOOKUP($C$2,$B$8:$D327,$A327,FALSE)","v":"Brewery industry wastewaters"},"feed320"]
[321,"Vinasses","Vinasses","vinazas","feed",{"$f":"HLOOKUP($C$2,$B$8:$D328,$A328,FALSE)","v":"Vinasses"},"feed321"]
[322,"Apple pomace","Pulpe de pomme","de orujo dede Apple","feed",{"$f":"HLOOKUP($C$2,$B$8:$D329,$A329,FALSE)","v":"Apple pomace"},{"$f":"$E329&$A329","v":"feed322"}]
[323,"Beer Barm","Levure de bière","cervezaBarm","feed",{"$f":"HLOOKUP($C$2,$B$8:$D330,$A330,FALSE)","v":"Beer Barm"},"feed323"]
[324,"Brewer`s grains","Drèches de brasserie","granosBrewer`s","feed",{"$f":"HLOOKUP($C$2,$B$8:$D331,$A331,FALSE)","v":"Brewer`s grains"},"feed324"]
[325,"Brewer`s grains and yeast","Drèches et levure de brasserie","granos Brewer`s y levadura","feed",{"$f":"HLOOKUP($C$2,$B$8:$D332,$A332,FALSE)","v":"Brewer`s grains and yeast"},"feed325"]
[326,"Brewers yeast, fresh","Levure de brasserie, fraîche","levadura de cerveza, fresca","feed",{"$f":"HLOOKUP($C$2,$B$8:$D333,$A333,FALSE)","v":"Brewers yeast, fresh"},"feed326"]
[327,"Distiller`s dried grain, solubles only","Drèches sèches de distillerie, solubles uniquement","Destilador `s secó grano, solubles sólo","feed",{"$f":"HLOOKUP($C$2,$B$8:$D334,$A334,FALSE)","v":"Distiller`s dried grain, solubles only"},"feed327"]
[328,"Distiller`s dried grains","Drèches sèches de distillerie","Distiller`s granos secos","feed",{"$f":"HLOOKUP($C$2,$B$8:$D335,$A335,FALSE)","v":"Distiller`s dried grains"},"feed328"]
[329,"Draff","Drèches de céréales","Draff","feed",{"$f":"HLOOKUP($C$2,$B$8:$D336,$A336,FALSE)","v":"Draff"},"feed329"]
[330,"Grain mash","Moût de graines","de grano puré","feed",{"$f":"HLOOKUP($C$2,$B$8:$D337,$A337,FALSE)","v":"Grain mash"},"feed330"]
[331,"Grain strip waste","Déchets de céréales déchiquettées","stri grano p residuales","feed",{"$f":"HLOOKUP($C$2,$B$8:$D338,$A338,FALSE)","v":"Grain strip waste"},"feed331"]
[332,"Grape marc","Marc de raisin","Orujo de uva","feed",{"$f":"HLOOKUP($C$2,$B$8:$D339,$A339,FALSE)","v":"Grape marc"},"feed332"]
[333,"Grape marc, fresh","Marc de raisin, frais","Orujo de uva, fresca","feed",{"$f":"HLOOKUP($C$2,$B$8:$D340,$A340,FALSE)","v":"Grape marc, fresh"},"feed333"]
[334,"Malt coffee draff, fresh","Drèche de la fermentation du café, frais","de malta orujo de café,fresco","feed",{"$f":"HLOOKUP($C$2,$B$8:$D341,$A341,FALSE)","v":"Malt coffee draff, fresh"},"feed334"]
[335,"Pomace","Marc","orujo","feed",{"$f":"HLOOKUP($C$2,$B$8:$D342,$A342,FALSE)","v":"Pomace"},"feed335"]
[336,"Potato pulp, fresh","Pulpe de pomme de terre, fraîche","de pasta de patata fresca","feed",{"$f":"HLOOKUP($C$2,$B$8:$D343,$A343,FALSE)","v":"Potato pulp, fresh"},"feed336"]
[337,"Fermentation Residues","Résidus de fermentation","FermentaciónResiduos","feed",{"$f":"HLOOKUP($C$2,$B$8:$D344,$A344,FALSE)","v":"Fermentation Residues"},"feed337"]
[338,"Yeast","Levure","Levadura","feed",{"$f":"HLOOKUP($C$2,$B$8:$D345,$A345,FALSE)","v":"Yeast"},"feed338"]
[339,"Please Select","Sélectionnez","Seleccione","mainfeed",{"$f":"HLOOKUP($C$2,$B$8:$D346,$A346,FALSE)","v":"Please Select"},"mainfeed339"]
[340,"Biodiesel/Oilseed Ind.","Autres options","Biodiesel/Semilla oleaginosa Ind.","mainfeed",{"$f":"HLOOKUP($C$2,$B$8:$D347,$A347,FALSE)","v":"Biodiesel/Oilseed Ind."},"mainfeed340"]
[341,"Crop Residues","Biodiesel/Oléagineux Ind.","Cultivos","mainfeed",{"$f":"HLOOKUP($C$2,$B$8:$D348,$A348,FALSE)","v":"Crop Residues"},"mainfeed341"]
[342,"Crops","Brevages fermentés","Cultivos energéticos","mainfeed",{"$f":"HLOOKUP($C$2,$B$8:$D349,$A349,FALSE)","v":"Crops"},"mainfeed342"]
[343,"Dairy-milk ind.","Cultures énergétiques","Hierba/forraje","mainfeed",{"$f":"HLOOKUP($C$2,$B$8:$D350,$A350,FALSE)","v":"Dairy-milk ind."},"mainfeed343"]
[344,"Energy Crops","Déchets d'abattoirs","Industria de ethanol-azucar-almidón","mainfeed",{"$f":"HLOOKUP($C$2,$B$8:$D351,$A351,FALSE)","v":"Energy Crops"},"mainfeed344"]
[345,"Eth-Sugar-Starch Ind.","Ethanol-Sucre-Fécule","Industria lechera","mainfeed",{"$f":"HLOOKUP($C$2,$B$8:$D352,$A352,FALSE)","v":"Eth-Sugar-Starch Ind."},"mainfeed345"]
[346,"Food Process. Res.","Foin","Levadura-bebidas alcohólicas","mainfeed",{"$f":"HLOOKUP($C$2,$B$8:$D353,$A353,FALSE)","v":"Food Process. Res."},"mainfeed346"]
[347,"Grass","Productions agricoles","Otras opciones","mainfeed",{"$f":"HLOOKUP($C$2,$B$8:$D354,$A354,FALSE)","v":"Grass"},"mainfeed347"]
[348,"Other Options","Produits laitiers Ind.","Residuos de cultivos","mainfeed",{"$f":"HLOOKUP($C$2,$B$8:$D355,$A355,FALSE)","v":"Other Options"},"mainfeed348"]
[349,"Slaughterhouses wastes","Résidus de cultures","Residuos del procesamiento de alimentos","mainfeed",{"$f":"HLOOKUP($C$2,$B$8:$D356,$A356,FALSE)","v":"Slaughterhouses wastes"},"mainfeed349"]
[350,"Yeast-Alcoholic Bev.","Résidus de transformation des aliments","Residuos de mataderos","mainfeed",{"$f":"HLOOKUP($C$2,$B$8:$D357,$A357,FALSE)","v":"Yeast-Alcoholic Bev."},"mainfeed350"]
[351,"Manure","Eaux usées","Aguas residuales","mainfeed",{"$f":"HLOOKUP($C$2,$B$8:$D358,$A358,FALSE)","v":"Manure"},"mainfeed351"]
[352,"Wastewater","Fumier","Estiércol","mainfeed",{"$f":"HLOOKUP($C$2,$B$8:$D359,$A359,FALSE)","v":"Wastewater"},"mainfeed352"]

{"sheet":"Database_Prop","index":4,"n_rows":341,"n_cols":27,"rows_kept":341,"cut":false,"hidden":true,"merged":[]}
[{"$f":"title74","v":"Please Select"},{"$f":"title74","v":"Please Select"},null,"VS","m3 CH4 per t VS","methane content","TS (%)",null,null,null,"References"]
[{"$f":"title184","v":"Biodiesel/Oilseed Ind."},{"$f":"feed2","v":"Coconut cake/expeller"},{"$f":"$A2&\" \"&$B2","v":"Biodiesel/Oilseed Ind. Coconut cake/expeller"},0.93100000000000005,815,0.55460122699386505,0.9,null,null,null,"http://daten.ktbl.de/euagrobiogasbasis/navigation.do?selectedAction=Startseite",null,null,null,null,null,"C","H","O","N","S","DRY MATTER (%)","PROTEIN (%)","CARBOHYDRATE (%)",{"$f":"UPPER(title658)&\" (%)\"","v":"ASH (%)"},"FAT (%)","VS (%)"]
["Biodiesel/Oilseed Ind.",{"$f":"feed3","v":"Coconut extraction meal"},"Biodiesel/Oilseed Ind. Coconut extraction meal",0.92600000000000005,788,0.54060913705583757,0.9,null,null,null,"http://daten.ktbl.de/euagrobiogasbasis/navigation.do?selectedAction=Startseite",null,null,null,null,{"$f":"title672","v":"Barley Straw"},46.8,5.53,41.9,0.41,0.06,6.5000000000000002E-2,0.183,0.623,7.400000000000001E-2,3.8870000000000002E-2,0.96]
["Biodiesel/Oilseed Ind.",{"$f":"feed4","v":"Cotton seed extraction meal"},"Biodiesel/Oilseed Ind. Cotton seed extraction meal",0.93,794,0.55919395465994959,0.9,null,null,null,"http://daten.ktbl.de/euagrobiogasbasis/navigation.do?selectedAction=Startseite",null,null,null,null,"Cassava Cake",59.31,9.7799999999999994,28.74,2.06,0.11,0.78159999999999996,1.8200000000000001E-2,0.69900000000000007,1.61E-2,8.9999999999999998E-4,0.96]
["Biodiesel/Oilseed Ind.",{"$f":"feed5","v":"Fish Oil"},"Biodiesel/Oilseed Ind. Fish Oil",{"$f":"AVERAGE(80%,85%)","v":0.82499999999999996},{"$f":"AVERAGE(350,450)","v":400},0.6,1,null,null,null,"http://www.feedipedia.org/node/205",null,null,null,null,"Castorbean Cake",50.623749999999994,6.7112499999999997,38.741250000000001,1.76125,8.3750000000000005E-2,7.0300000000000001E-2,0.20780000000000001,0.24979999999999999,7.7499999999999999E-2,0.51200000000000001,0.96]
["Biodiesel/Oilseed Ind.",{"$f":"feed6","v":"Flax cake/expeller"},"Biodiesel/Oilseed Ind. Flax cake/expeller",0.93600000000000005,820,0.56829268292682922,0.90300000000000002,null,null,null,"http://daten.ktbl.de/euagrobiogasbasis/navigation.do?selectedAction=Startseite",null,null,null,null,"Coconut Cake",50.623749999999994,6.7112499999999997,38.741250000000001,1.7612499999999998,8.3749999999999991E-2,0.10390000000000001,0.26569999999999999,0.10619999999999999,1.66E-2,0.40749999999999997,0.96]
["Biodiesel/Oilseed Ind.",{"$f":"feed7","v":"Flax extraction meal"},"Biodiesel/Oilseed Ind. Flax extraction meal",0.93400000000000005,795,0.55597484276729559,0.89,null,null,null,"http://daten.ktbl.de/euagrobiogasbasis/navigation.do?selectedAction=Startseite",null,null,null,null,"Cottonseed Cake",52,5.9,40.799999999999997,1.3,0.05,6.7000000000000004E-2,0.40299999999999997,0.10800000000000001,6.8000000000000005E-2,0.25]
["Biodiesel/Oilseed Ind.",{"$f":"feed8","v":"Glycerin"},"Biodiesel/Oilseed Ind. Glycerin",0.995,850,0.6,1,null,null,null,null,null,null,null,null,"Groundnut Cake",50.623749999999994,6.7112499999999997,38.741250000000001,1.7612499999999998,8.3749999999999991E-2,0.08,0.24260000000000001,0.26,0.02,0.45]
["Biodiesel/Oilseed Ind.",{"$f":"feed9","v":"Hemp press cake, fresh"},"Biodiesel/Oilseed Ind. Hemp press cake, fresh",0.92900000000000005,119,0.6470588235294118,0.89400000000000002,null,null,null,"http://daten.ktbl.de/euagrobiogasbasis/navigation.do?selectedAction=Startseite",null,null,null,null,"Jatropha Cake",59.17,6.52,33.93,0.38,0.05,6.7199999999999996E-2,0.1898,0.28000000000000003,5.3099999999999994E-2,0.12179999999999999]
["Biodiesel/Oilseed Ind.",{"$f":"feed10","v":"Linseed oil"},"Biodiesel/Oilseed Ind. Linseed oil",0.99900000000000011,1225,0.68,0.99900000000000011,null,null,null,null,null,null,null,null,"Maize Stover",43.65,5.56,43.31,0.61,0.01,6.3E-2,9.8000000000000004E-2,0.72299999999999998,2.3E-2,3.1E-2]
["Biodiesel/Oilseed Ind.",{"$f":"feed11","v":"Maize germ cake/expeller"},"Biodiesel/Oilseed Ind. Maize germ cake/expeller",0.96299999999999997,800,0.54249999999999998,0.91500000000000004,null,null,null,"http://daten.ktbl.de/euagrobiogasbasis/navigation.do?selectedAction=Startseite",null,null,null,null,"Oil Palm Cake",52.53,5.65,38.93,2.86,0.03,9.1999999999999998E-2,0.18600000000000003,0.37,4.4999999999999998E-2,0.4]
["Biodiesel/Oilseed Ind.",{"$f":"feed12","v":"Maize germ extraction meal"},"Biodiesel/Oilseed Ind. Maize germ extraction meal",0.95299999999999996,774,0.52971576227390182,0.89,null,null,null,"http://daten.ktbl.de/euagrobiogasbasis/navigation.do?selectedAction=Startseite",null,null,null,null,"Potatoes Cake",50.623749999999994,6.7112499999999997,38.741250000000001,1.7612499999999998,8.3749999999999991E-2,0.72799999999999998,2.5000000000000001E-2,0.70299999999999996,1.8000000000000002E-2,1E-3]
["Biodiesel/Oilseed Ind.",{"$f":"feed13","v":"Oilseed Residuals (pressed)"},"Biodiesel/Oilseed Ind. Oilseed Residuals (pressed)",0.97,{"$f":"AVERAGE(1,0.9)*1000","v":950},0.70750000000000002,0.92,null,null,null,null,null,null,null,null,"Rapeseed Cake",48.62,7.47,35.42,3.78,0.15,0.1,0.33899999999999997,0.19699999999999998,7.4999999999999997E-2,0.1]
["Biodiesel/Oilseed Ind.",{"$f":"feed14","v":"Olive pulp"},"Biodiesel/Oilseed Ind. Olive pulp",0.92100000000000004,293,0.52901023890784982,0.94499999999999995,null,null,null,"http://daten.ktbl.de/euagrobiogasbasis/navigation.do?selectedAction=Startseite",null,null,null,null,"Rice Husk",45.41,6.28,47.1,0.99,0.21,4.2000000000000003E-2,0.14000000000000001,0.48,0.06,0.19800000000000001]
["Biodiesel/Oilseed Ind.",{"$f":"feed15","v":"Palm Kernell"},"Biodiesel/Oilseed Ind. Palm Kernell",0.95700000000000007,588.6,0.54200000000000004,0.8859999999999999,null,null,null,null,null,null,null,null,"Safflower Cake",49.5,6.9,40.6,3,0.05,8.6999999999999994E-2,0.45399999999999996,0.20100000000000001,0.105,0.35]
["Biodiesel/Oilseed Ind.",{"$f":"feed16","v":"Palm-kernel cake/expeller"},"Biodiesel/Oilseed Ind. Palm-kernel cake/expeller",0.95599999999999996,818,0.55256723716381417,0.91500000000000004,null,null,null,"http://daten.ktbl.de/euagrobiogasbasis/navigation.do?selectedAction=Startseite",null,null,null,null,"Sesame Cake",49.856428571428573,6.5028571428571436,38.344285714285718,2.257857142857143,7.7857142857142861E-2,0.17800000000000002,0.35600000000000004,7.5999999999999998E-2,6.6000000000000003E-2,0.18]
["Biodiesel/Oilseed Ind.",{"$f":"feed17","v":"Palm-kernel extraction meal"},"Biodiesel/Oilseed Ind. Palm-kernel extraction meal",0.95599999999999996,780,0.53205128205128205,0.88600000000000001,null,null,null,"http://daten.ktbl.de/euagrobiogasbasis/navigation.do?selectedAction=Startseite",null,null,null,null,"Sorghum Bagasse",49.5,6.2,40.1,0.9,0.01,0.26879999999999998,1.6200000000000003E-2,0.1298,1.34E-2,3.1E-2]
["Biodiesel/Oilseed Ind.",{"$f":"feed18","v":"Peanut cake/expeller"},"Biodiesel/Oilseed Ind. Peanut cake/expeller",0.93300000000000005,831,0.58002406738868828,0.91800000000000004,null,null,null,"http://daten.ktbl.de/euagrobiogasbasis/navigation.do?selectedAction=Startseite",null,null,null,null,"Soybean Cake",55.89,6.57,28.25,9.2899999999999991,0.05,8.3000000000000004E-2,0.44369999999999998,0.125,5.6299999999999996E-2,0.218]
["Biodiesel/Oilseed Ind.",{"$f":"feed19","v":"Peanut extraction meal"},"Biodiesel/Oilseed Ind. Peanut extraction meal",0.93500000000000005,789,0.56020278833967052,0.90300000000000002,null,null,null,"http://daten.ktbl.de/euagrobiogasbasis/navigation.do?selectedAction=Startseite",null,null,null,null,"Sugar Cane Bagasse",44.8,5.35,39.549999999999997,0.38,0.01,0.49,2.4E-2,0.43,1.7000000000000001E-2,3.5000000000000003E-2]
["Biodiesel/Oilseed Ind.",{"$f":"feed20","v":"Rape cake (pressed cold)"},"Biodiesel/Oilseed Ind. Rape cake (pressed cold)",0.18204000000000001,488,0.54300000000000004,0.20499999999999999,null,null,null,"CropGEN Database",null,null,null,null,"Sunflower Cake",47.61,8.33,38.79,5.04,0.19,0.09,0.20300000000000001,0.20199999999999999,0.111,0.32600000000000001]
["Biodiesel/Oilseed Ind.",{"$f":"feed21","v":"Rapeseed cake/expeller"},"Biodiesel/Oilseed Ind. Rapeseed cake/expeller",0.92800000000000005,850,0.58235294117647063,0.90600000000000003,null,null,null,"http://daten.ktbl.de/euagrobiogasbasis/navigation.do?selectedAction=Startseite",null,null,null,null,"Wheat Straw",43.2,5,39.4,0.61,0.11,7.8E-2,0.17399999999999999,0.57600000000000007,8.4000000000000005E-2,4.4999999999999998E-2]
["Biodiesel/Oilseed Ind.",{"$f":"feed22","v":"Rapeseed extraction meal"},"Biodiesel/Oilseed Ind. Rapeseed extraction meal",0.91600000000000004,792,0.55555555555555558,0.88700000000000001,null,null,null,"http://daten.ktbl.de/euagrobiogasbasis/navigation.do?selectedAction=Startseite",null,null,null,null,"Raw Hazelnut Skin",45.7,5.4,47.8,1.1000000000000001,0]
["Biodiesel/Oilseed Ind.",{"$f":"feed23","v":"Rapeseed oil"},"Biodiesel/Oilseed Ind. Rapeseed oil",0.99900000000000011,1200,0.68,0.99900000000000011,null,null,null,null,null,null,null,null,"Fine Hazelnut Skin",56.8,6.8,35.200000000000003,1.2,0]
["Biodiesel/Oilseed Ind.",{"$f":"feed24","v":"Raw Glycerol"},"Biodiesel/Oilseed Ind. Raw Glycerol",0.94699999999999995,1164,0.64518900343642616,0.84,null,null,null,"http://daten.ktbl.de/euagrobiogasbasis/navigation.do?selectedAction=Startseite",null,null,null,null,"Large Hazelnut Skin",54.6,7.2,36.1,2.2000000000000002,0]
["Biodiesel/Oilseed Ind.",{"$f":"feed25","v":"Safflower extraction meal"},"Biodiesel/Oilseed Ind. Safflower extraction meal",0.93700000000000006,779,0.54557124518613609,0.91,null,null,null,"http://daten.ktbl.de/euagrobiogasbasis/navigation.do?selectedAction=Startseite",null,null,null,null,"Wine Less",7.4,10.4,82,0.2,0]
["Biodiesel/Oilseed Ind.",{"$f":"feed26","v":"Sesame extraction meal"},"Biodiesel/Oilseed Ind. Sesame extraction meal",0.88300000000000001,792,0.56313131313131315,0.91,null,null,null,"http://daten.ktbl.de/euagrobiogasbasis/navigation.do?selectedAction=Startseite",null,null,null,null,"Grape Pomace",22.1,8.6,68.5,0.8,0]
["Biodiesel/Oilseed Ind.",{"$f":"feed27","v":"Soy beans seeds steam-heated"},"Biodiesel/Oilseed Ind. Soy beans seeds steam-heated",0.94700000000000006,732.9,0.63600000000000001,0.93500000000000005,null,null,null,null,null,null,null,null,"Rice Bran",44.9,6.9,45.8,2.4,0]
["Biodiesel/Oilseed Ind.",{"$f":"feed28","v":"Soya Oil"},"Biodiesel/Oilseed Ind. Soya Oil",0.99900000000000011,1225,0.68,0.99900000000000011]
["Biodiesel/Oilseed Ind.",{"$f":"feed29","v":"Soybean extraction meal"},"Biodiesel/Oilseed Ind. Soybean extraction meal",0.93400000000000005,791,0.5638432364096081,0.88700000000000001,null,null,null,"http://daten.ktbl.de/euagrobiogasbasis/navigation.do?selectedAction=Startseite"]
["Biodiesel/Oilseed Ind.",{"$f":"feed30","v":"Sunflower cake cold pressed"},"Biodiesel/Oilseed Ind. Sunflower cake cold pressed",0.91900000000000004,542.1,0.628,0.88]
["Biodiesel/Oilseed Ind.",{"$f":"feed31","v":"Sunflower extraction meal"},"Biodiesel/Oilseed Ind. Sunflower extraction meal",0.93,792,0.55303030303030298,0.89600000000000002,null,null,null,"http://daten.ktbl.de/euagrobiogasbasis/navigation.do?selectedAction=Startseite"]
["Biodiesel/Oilseed Ind.",{"$f":"feed32","v":"Sunflower Oil"},"Biodiesel/Oilseed Ind. Sunflower Oil",0.99900000000000011,1225,0.68,0.99900000000000011]
["Biodiesel/Oilseed Ind.",{"$f":"feed33","v":"Sunflower peelings"},"Biodiesel/Oilseed Ind. Sunflower peelings",0.96299999999999997,447,0.64429530201342278,0.90300000000000002,null,null,null,"http://daten.ktbl.de/euagrobiogasbasis/navigation.do?selectedAction=Startseite"]
[{"$f":"title85","v":"Crop Residues"},{"$f":"feed34","v":"Apple cake"},"Crop Residues Apple cake",1,454,0.53500000000000003,0.16500000000000001,null,null,null,"http://daten.ktbl.de/euagrobiogasbasis/navigation.do?selectedAction=Startseite"]
["Crop Residues",{"$f":"feed35","v":"Apple waste"},"Crop Residues Apple waste",1,437,0.51,0.12,null,null,null,"http://daten.ktbl.de/euagrobiogasbasis/navigation.do?selectedAction=Startseite"]
["Crop Residues",{"$f":"feed36","v":"Apricot fibre"},"Crop Residues Apricot fibre",1,477,0.56000000000000005,0.17699999999999999,null,null,null,"http://daten.ktbl.de/euagrobiogasbasis/navigation.do?selectedAction=Startseite"]
["Crop Residues",{"$f":"feed37","v":"Asparagus waste"},"Crop Residues Asparagus waste",1,460,0.48499999999999999,9.5000000000000001E-2,null,null,null,"http://daten.ktbl.de/euagrobiogasbasis/navigation.do?selectedAction=Startseite"]
["Crop Residues",{"$f":"feed38","v":"Banana Residues"},"Crop Residues Banana Residues",0.91200000000000003,292,0.6,0.128,null,null,null,"CropGEN Database"]
["Crop Residues",{"$f":"feed39","v":"Barley straw"},"Crop Residues Barley straw",0.89100000000000001,767,0.51499348109517606,0.86,null,null,null,"http://daten.ktbl.de/euagrobiogasbasis/navigation.do?selectedAction=Startseite"]
["Crop Residues",{"$f":"feed40","v":"Cauliflower Residues"},"Crop Residues Cauliflower Residues",0.84599999999999997,261,0.6,0.21199999999999999,null,null,null,"CropGEN Database"]
["Crop Residues",{"$f":"feed41","v":"Cut flower wastes"},"Crop Residues Cut flower wastes",0.92,27,0.55000000000000004,0.47499999999999998,null,null,null,"http://daten.ktbl.de/euagrobiogasbasis/navigation.do?selectedAction=Startseite"]
["Crop Residues",{"$f":"feed42","v":"Eggplant Residues"},"Crop Residues Eggplant Residues",0.92600000000000005,385,0.6,1,null,null,null,"CropGEN Database"]
["Crop Residues",{"$f":"feed43","v":"Feeding beet leaves, fresh"},"Crop Residues Feeding beet leaves, fresh",0.79500000000000004,779,0.53145057766367132,0.17,null,null,null,"CropGEN Database"]
["Crop Residues",{"$f":"feed44","v":"Feeding beet leaves, silage"},"Crop Residues Feeding beet leaves, silage",0.80200000000000005,782,0.53324808184143224,0.16600000000000001,null,null,null,"CropGEN Database"]
["Crop Residues",{"$f":"feed45","v":"Field fodder hay"},"Crop Residues Field fodder hay",0.81117600000000001,267,0.67100000000000004,0.876,null,null,null,"CropGEN Database"]
["Crop Residues",{"$f":"feed46","v":"Grape Residues"},"Crop Residues Grape Residues",0.91100000000000003,232,0.6,0.91600000000000004,null,null,null,"CropGEN Database"]
["Crop Residues",{"$f":"feed47","v":"Lemon Residues"},"Crop Residues Lemon Residues",0.96799999999999997,473,0.6,0.2,null,null,null,"CropGEN Database"]
["Crop Residues",{"$f":"feed48","v":"Maize cobs"},"Crop Residues Maize cobs",0.4,465,0.57499999999999996,0.20899999999999999,null,null,null,"CropGEN Database"]
["Crop Residues",{"$f":"feed49","v":"Maize stover"},"Crop Residues Maize stover",0.93200000000000005,360,0.6,0.89600000000000002]
["Crop Residues",{"$f":"feed50","v":"Maize Straw"},"Crop Residues Maize Straw",0.72,{"$f":"AVERAGE(0.4,1)*1000","v":700},0.6,0.86,null,null,null,"http://www.giz.de/fachexpertise/downloads/gtz2010-en-biogas-assessment-kenya.pdf"]
["Crop Residues",{"$f":"feed51","v":"Mango Resdiues"},"Crop Residues Mango Resdiues",0.95699999999999996,469,0.6,1,null,null,null,"http://daten.ktbl.de/euagrobiogasbasis/navigation.do?selectedAction=Startseite"]
["Crop Residues",{"$f":"feed52","v":"Oat straw"},"Crop Residues Oat straw",0.92300000000000004,765,0.51503267973856204,0.86,null,null,null,"http://www.feedipedia.org/node/691"]
["Crop Residues",{"$f":"feed53","v":"Orange Residues"},"Crop Residues Orange Residues",0.93500000000000005,479,0.6,0.26600000000000001,null,null,null,"CropGEN Database"]
["Crop Residues",{"$f":"feed54","v":"Pea straw"},"Crop Residues Pea straw",0.92600000000000005,432,0.65740740740740744,0.86]
["Crop Residues",{"$f":"feed55","v":"Pineapple Residues"},"Crop Residues Pineapple Residues",0.93899999999999995,356,{"$f":"AVERAGE(60%,63%)","v":0.61499999999999999},0.19600000000000001,null,null,null,"CropGEN Database"]
["Crop Residues",{"$f":"feed56","v":"Pineapple waste"},"Crop Residues Pineapple waste",0.94599999999999995,568,0.56499999999999995,0.19600000000000001,null,null,null,"CropGEN Database"]
["Crop Residues",{"$f":"feed57","v":"Potatoe Residues"},"Crop Residues Potatoe Residues",0.9,267,0.51,0.19]
["Crop Residues",{"$f":"feed58","v":"Rapeseed straw"},"Crop Residues Rapeseed straw",0.92600000000000005,458,0.65720524017467252,0.86,null,null,null,"CropGEN Database"]
["Crop Residues",{"$f":"feed59","v":"Rice Straw"},"Crop Residues Rice Straw",{"$f":"AVERAGE(70%,95%)","v":0.82499999999999996},{"$f":"AVERAGE(0.55,0.62)*1000","v":585},0.6,{"$f":"AVERAGE(25%,60%)","v":0.42499999999999999},null,null,null,"http://daten.ktbl.de/euagrobiogasbasis/navigation.do?selectedAction=Startseite"]
["Crop Residues",{"$f":"feed60","v":"Rye straw"},"Crop Residues Rye straw",0.92300000000000004,764,0.51439790575916233,0.86,null,null,null,"CropGEN Database"]
["Crop Residues",{"$f":"feed61","v":"Ryegrass straw"},"Crop Residues Ryegrass straw",0.97399999999999998,546,0.64468864468864473,0.88100000000000001]
["Crop Residues",{"$f":"feed62","v":"Spinach waste"},"Crop Residues Spinach waste",0.97,316,0.6,0.95,null,null,null,"CropGEN Database"]
["Crop Residues",{"$f":"feed63","v":"Other Straw"},"Crop Residues Other Straw",0.93,484,0.51446280991735538,0.64300000000000002]
["Crop Residues",{"$f":"feed64","v":"Sugar Beet leaf"},"Crop Residues Sugar Beet leaf",0.18720000000000001,385,0.497,0.19500000000000001,null,null,null,"http://daten.ktbl.de/euagrobiogasbasis/navigation.do?selectedAction=Startseite"]
["Crop Residues",{"$f":"feed65","v":"Sugar beet tops"},"Crop Residues Sugar beet tops",8.1204545454545488E-2,292.27272727272725,0.46899999999999997,0.10209090909090915,null,null,null,"http://daten.ktbl.de/euagrobiogasbasis/navigation.do?selectedAction=Startseite"]
["Crop Residues",{"$f":"feed66","v":"Sugar beet waste"},{"$f":"$A66&\" \"&$B66","v":"Crop Residues Sugar beet waste"},9.9000000000000005E-2,445,0.62,7.0000000000000007E-2]
["Crop Residues",{"$f":"feed67","v":"Sugar beet, leaves and tops, silage"},"Crop Residues Sugar beet, leaves and tops, silage",0.80100000000000005,642,0.53582554517133951,0.13400000000000001,null,null,null,"CropGEN Database"]
["Crop Residues",{"$f":"feed68","v":"Sugas beet leaf (fresh)"},"Crop Residues Sugas beet leaf (fresh)",0.132492,344,0.48899999999999999,0.18099999999999999,null,null,null,"cropgen"]
["Crop Residues",{"$f":"feed69","v":"Tangerine Residues"},"Crop Residues Tangerine Residues",0.94599999999999995,471,0.6,1,null,null,null,"http://daten.ktbl.de/euagrobiogasbasis/navigation.do?selectedAction=Startseite","https://books.google.com.co/books?id=UbcEAAAAYAAJ&pg=PA189&lpg=PA189&dq=dry+matter+%25+%2B+%22grape+vine%22&source=bl&ots=fBZH0lF3BF&sig=TQMkv4Sqa0cXu1lYa8-klxQ91G0&hl=es-419&sa=X&ei=SFPnVI7cLouqgwSJsYPICA&ved=0CBwQ6AEwADgK#v=onepage&q=dry%20matter%20%25%20%2B%20%22grape%20vine%22&f=false"]
["Crop Residues",{"$f":"feed70","v":"Tea Waste"},"Crop Residues Tea Waste",0.75660000000000005,358,0.55000000000000004,0.22700000000000001,null,null,null,"http://daten.ktbl.de/euagrobiogasbasis/navigation.do?selectedAction=Startseite"]
["Crop Residues",{"$f":"feed71","v":"Tomatoe Residues"},"Crop Residues Tomatoe Residues",0.95299999999999996,298,0.6,0.95,null,null,null,"http://daten.ktbl.de/euagrobiogasbasis/navigation.do?selectedAction=Startseite"]
["Crop Residues",{"$f":"feed72","v":"Turnip Residues"},"Crop Residues Turnip Residues",0.84399999999999997,314,0.6,0.95]
["Crop Residues",{"$f":"feed73","v":"Turnips tops, fresh"},"Crop Residues Turnips tops, fresh",0.79900000000000004,520,0.52500000000000002,0.111,null,null,null,"http://daten.ktbl.de/euagrobiogasbasis/navigation.do?selectedAction=Startseite"]
["Crop Residues",{"$f":"feed74","v":"Wheat straw"},"Crop Residues Wheat straw",0.89467266666666667,342.56666666666666,0.56792771084337346,0.72366666666666657,null,null,null,"http://daten.ktbl.de/euagrobiogasbasis/navigation.do?selectedAction=Startseite"]
["Crop Residues",{"$f":"feed75","v":"Cocoa Shell"},"Crop Residues Cocoa Shell",0.874,195,0.5,0.87,null,null,null,"http://dx.doi.org/10.4236/sgre.2014.56012"]
[{"$f":"title185","v":"Dairy-milk ind."},{"$f":"feed76","v":"Butter milk fresh"},"Dairy-milk ind. Butter milk fresh",0.92299999999999993,736.2,0.59200000000000008,0.08,null,null,null,"http://daten.ktbl.de/euagrobiogasbasis/navigation.do?selectedAction=Startseite"]
["Dairy-milk ind.",{"$f":"feed77","v":"Cheese waste"},"Dairy-milk ind. Cheese waste",0.94,904,0.67500000000000004,0.79299999999999993,null,null,null,"CropGEN Database"]
["Dairy-milk ind.",{"$f":"feed78","v":"Dairy cow slurry"},"Dairy-milk ind. Dairy cow slurry",0.85,280,0.55000000000000004,8.5000000000000006E-2,null,null,null,"http://daten.ktbl.de/euagrobiogasbasis/navigation.do?selectedAction=Startseite"]
["Dairy-milk ind.",{"$f":"feed79","v":"Dairy slurry inc. fodder remains"},"Dairy-milk ind. Dairy slurry inc. fodder remains",0.85,350,0.55000000000000004,8.5000000000000006E-2,null,null,null,"CropGEN Database"]
["Dairy-milk ind.",{"$f":"feed80","v":"Milk Whey"},"Dairy-milk ind. Milk Whey",0.1192,1000,{"$f":"AVERAGE(65.6,68.7,62.4,63.4,62.6,65.3)/100","v":0.64666666666666672},0.06,null,null,null,"CropGEN Database"]
["Dairy-milk ind.",{"$f":"feed81","v":"Skimmed milk dry"},"Dairy-milk ind. Skimmed milk dry",0.91700000000000004,728.6,0.57700000000000007,0.94099999999999995,null,null,null,"CropGEN Database"]
["Dairy-milk ind.",{"$f":"feed82","v":"Skimmed milk fresh"},"Dairy-milk ind. Skimmed milk fresh",0.91799999999999993,730,0.57700000000000007,8.5999999999999993E-2,null,null,null,"http://daten.ktbl.de/euagrobiogasbasis/navigation.do?selectedAction=Startseite"]
["Dairy-milk ind.",{"$f":"feed83","v":"Sour whey fresh"},"Dairy-milk ind. Sour whey fresh",0.88800000000000001,742.3,0.53500000000000003,5.5999999999999994E-2,null,null,null,"CropGEN Database"]
["Dairy-milk ind.",{"$f":"feed84","v":"Whole cows milk fresh"},"Dairy-milk ind. Whole cows milk fresh",0.94700000000000006,899.1,0.628,0.13500000000000001]
[{"$f":"title120","v":"Energy Crops"},{"$f":"feed85","v":"Barley"},"Energy Crops Barley",0.92598333333333338,461.66666666666663,0.62616666666666665,0.3012833333333334]
["Energy Crops",{"$f":"feed86","v":"Barley grain"},"Energy Crops Barley grain",0.97199999999999998,684.1,0.52700000000000002,0.87]
["Energy Crops",{"$f":"feed87","v":"Forage sorghum"},"Energy Crops Forage sorghum",0.91930000000000001,295,0.56899999999999995,0.27050000000000002]
["Energy Crops",{"$f":"feed88","v":"Grain sorghum"},"Energy Crops Grain sorghum",0.95379999999999998,372,0.59599999999999997,0.46689999999999998,null,null,null,"http://daten.ktbl.de/euagrobiogasbasis/navigation.do?selectedAction=Startseite"]
["Energy Crops",{"$f":"feed89","v":"Grass Clipings"},"Energy Crops Grass Clipings",0.73,185,{"$f":"80/185","v":0.43243243243243246},0.48,null,null,null,"http://daten.ktbl.de/euagrobiogasbasis/navigation.do?selectedAction=Startseite"]
["Energy Crops",{"$f":"feed90","v":"Grass fresh"},"Energy Crops Grass fresh",0.18926699999999999,330,0.55400000000000005,0.21099999999999999,null,null,null,"http://daten.ktbl.de/euagrobiogasbasis/navigation.do?selectedAction=Startseite"]
["Energy Crops",{"$f":"feed91","v":"Green maize"},"Energy Crops Green maize",0.94700000000000006,575.6,0.6,0.24]
["Energy Crops",{"$f":"feed92","v":"Maize"},"Energy Crops Maize",0.39991612903225798,433.58064516129031,0.58899999999999997,0.39046774193548389]
["Energy Crops",{"$f":"feed93","v":"Maize grain dry"},"Energy Crops Maize grain dry",0.98299999999999998,690.2,0.52800000000000002,0.87]
["Energy Crops",{"$f":"feed94","v":"Oat grain"},"Energy Crops Oat grain",0.96700000000000008,595.6,0.54100000000000004,0.87]
["Energy Crops",{"$f":"feed95","v":"Rapeseed"},"Energy Crops Rapeseed",0.92600000000000005,1060,{"$f":"691/1060","v":0.65188679245283021},0.88,null,null,null,"http://www.fao.org/docrep/004/x6512e/x6512e09.htm"]
["Energy Crops",{"$f":"feed96","v":"Reed, cattail, fresh"},"Energy Crops Reed, cattail, fresh",0.93100000000000005,315,0.51111111111111107,0.58799999999999997]
["Energy Crops",{"$f":"feed97","v":"Rice"},"Energy Crops Rice",0.79400000000000004,329.99999999999994,0.6,0.88]
["Energy Crops",{"$f":"feed98","v":"Seaweed, fresh"},"Energy Crops Seaweed, fresh",0.70199999999999996,760,0.51184210526315788,0.151]
["Energy Crops",{"$f":"feed99","v":"Sorghum"},"Energy Crops Sorghum",0.52502046000000002,349.62499999999994,0.46700000000000003,0.54254000000000002,null,null,null,"http://daten.ktbl.de/euagrobiogasbasis/navigation.do?selectedAction=Startseite"]
["Energy Crops",{"$f":"feed100","v":"Sorghum grains"},"Energy Crops Sorghum grains",0.97899999999999998,779,{"$f":"410/779","v":0.52631578947368418},0.878,null,null,null,"CropGEN Database"]
["Energy Crops",{"$f":"feed101","v":"Sugar beet"},"Energy Crops Sugar beet",0.43343999999999994,395.2,0.6166666666666667,0.1678,null,null,null,"http://biomethaneregions.cra.wallonie.be/img/download/TrainingTheTrainers_UK_Feedstocks_and_Pretreatments.pdf"]
["Energy Crops",{"$f":"feed102","v":"Sunflower"},"Energy Crops Sunflower",0.96599999999999997,699.4,0.63500000000000001,0.88,null,null,null,"CropGEN Database"]
["Energy Crops",{"$f":"feed103","v":"Sunflowers green start of flowering"},"Energy Crops Sunflowers green start of flowering",0.878,537.29999999999995,0.53400000000000003,0.16,null,null,null,"CropGEN Database"]
["Energy Crops",{"$f":"feed104","v":"Sweet Sorghum"},"Energy Crops Sweet Sorghum",0.90583333333333327,395.33333333333337,0.58499999999999996,3.348333333333333E-2,null,null,null,"http://biomethaneregions.cra.wallonie.be/img/download/TrainingTheTrainers_UK_Feedstocks_and_Pretreatments.pdf"]
["Energy Crops",{"$f":"feed105","v":"Triticale"},"Energy Crops Triticale",0.6699178469999999,454.50000000000006,0.64899999999999991,0.45546666666666669,null,null,null,"CropGEN Database"]
["Energy Crops",{"$f":"feed106","v":"Triticale grains"},"Energy Crops Triticale grains",0.95099999999999996,752,0.50664893617021278,0.871,null,null,null,"http://biomethaneregions.cra.wallonie.be/img/download/TrainingTheTrainers_UK_Feedstocks_and_Pretreatments.pdf"]
["Energy Crops",{"$f":"feed107","v":"Wheat "},"Energy Crops Wheat ",0.92010888888888909,298,0.56252499999999994,0.22185555555555558,null,null,null,"CropGEN Database"]
["Energy Crops",{"$f":"feed108","v":"Wheat grain"},"Energy Crops Wheat grain",0.98099999999999998,700.9,0.52800000000000002,0.87,null,null,null,"http://biomethaneregions.cra.wallonie.be/img/download/TrainingTheTrainers_UK_Feedstocks_and_Pretreatments.pdf"]
["Energy Crops",{"$f":"feed109","v":"White fir"},"Energy Crops White fir",0.98499999999999999,42,0.6,0.94699999999999995,null,null,null,"http://biomethaneregions.cra.wallonie.be/img/download/TrainingTheTrainers_UK_Feedstocks_and_Pretreatments.pdf"]
["Energy Crops",{"$f":"feed110","v":"Willow"},"Energy Crops Willow",0.49,240.83333333333337,0.6,0.6,null,null,null,"http://biomethaneregions.cra.wallonie.be/img/download/TrainingTheTrainers_UK_Feedstocks_and_Pretreatments.pdf"]
["Energy Crops",{"$f":"feed111","v":"Winter Barley"},"Energy Crops Winter Barley",0.36174769000000001,292,0.6,0.37940000000000002,null,null,null,"http://daten.ktbl.de/euagrobiogasbasis/navigation.do?selectedAction=Startseite"]
[{"$f":"title186","v":"Eth-Sugar-Starch Ind."},{"$f":"feed112","v":"Maize Grain Silage (Crimped seed)"},"Eth-Sugar-Starch Ind. Maize Grain Silage (Crimped seed)",0.98,708.4,0.52600000000000002,0.65,null,null,null,"CropGEN Database"]
["Eth-Sugar-Starch Ind.",{"$f":"feed113","v":"Maize Silage"},"Eth-Sugar-Starch Ind. Maize Silage",0.28422239999999999,367.8,0.52950000000000008,0.29959999999999998,null,null,null,"http://daten.ktbl.de/euagrobiogasbasis/navigation.do?selectedAction=Startseite"]
["Eth-Sugar-Starch Ind.",{"$f":"feed114","v":"Miscanthus silage"},"Eth-Sugar-Starch Ind. Miscanthus silage",0.28508800000000001,219,0.46700000000000003,0.30199999999999999,null,null,null,"CropGEN Database"]
["Eth-Sugar-Starch Ind.",{"$f":"feed115","v":"Miscanthus silage"},"Eth-Sugar-Starch Ind. Miscanthus silage",0.96599999999999997,346,{"$f":"187/346","v":0.54046242774566478},0.34799999999999998,null,null,null,"CropGEN Database"]
["Eth-Sugar-Starch Ind.",{"$f":"feed116","v":"Sugar beet leaves, silage"},"Eth-Sugar-Starch Ind. Sugar beet leaves, silage",0.748,783,0.53256704980842917,0.154,null,null,null,"CropGEN Database"]
["Eth-Sugar-Starch Ind.",{"$f":"feed117","v":"Sugar beet silage"},"Eth-Sugar-Starch Ind. Sugar beet silage",0.17222399999999999,235,0.46899999999999997,0.23400000000000001,null,null,null,"Cropgen"]
["Eth-Sugar-Starch Ind.",{"$f":"feed118","v":"Wheat strip waste"},"Eth-Sugar-Starch Ind. Wheat strip waste",0.93799999999999994,854,0.55035128805620603,0.84299999999999997,null,null,null,"CropGEN Database"]
["Eth-Sugar-Starch Ind.",{"$f":"feed119","v":"Apple Marc"},"Eth-Sugar-Starch Ind. Apple Marc",0.86,750,0.6,0.25,null,null,null,"CropGEN Database"]
["Eth-Sugar-Starch Ind.",{"$f":"feed120","v":"Maize gluten"},"Eth-Sugar-Starch Ind. Maize gluten",0.97900000000000009,673.9,0.66,0.90500000000000003,null,null,null,"http://daten.ktbl.de/euagrobiogasbasis/navigation.do?selectedAction=Startseite"]
["Eth-Sugar-Starch Ind.",{"$f":"feed121","v":"Maize gluten feed"},"Eth-Sugar-Starch Ind. Maize gluten feed",0.94399999999999995,792,0.54545454545454541,0.89600000000000002,null,null,null,"CropGEN Database"]
["Eth-Sugar-Starch Ind.",{"$f":"feed122","v":"Mash from distillations"},"Eth-Sugar-Starch Ind. Mash from distillations",{"$f":"AVERAGE(65%,85%)","v":0.75},{"$f":"420","v":420},0.6,{"$f":"AVERAGE(2%,8%)","v":0.05},null,null,null,"http://biomethaneregions.cra.wallonie.be/img/download/TrainingTheTrainers_UK_Feedstocks_and_Pretreatments.pdf"]
["Eth-Sugar-Starch Ind.",{"$f":"feed123","v":"Molasses"},"Eth-Sugar-Starch Ind. Molasses",0.89700000000000002,709.2,0.52200000000000002,0.77,null,null,null,"CropGEN Database"]
["Eth-Sugar-Starch Ind.",{"$f":"feed124","v":"Potato chips"},"Eth-Sugar-Starch Ind. Potato chips",0.95099999999999996,758,0.51055408970976257,0.88300000000000001,null,null,null,"http://biomethaneregions.cra.wallonie.be/img/download/TrainingTheTrainers_UK_Feedstocks_and_Pretreatments.pdf"]
["Eth-Sugar-Starch Ind.",{"$f":"feed125","v":"Potato flakes"},"Eth-Sugar-Starch Ind. Potato flakes",0.94799999999999995,757,0.51122853368560106,0.88,null,null,null,"http://biomethaneregions.cra.wallonie.be/img/download/TrainingTheTrainers_UK_Feedstocks_and_Pretreatments.pdf"]
["Eth-Sugar-Starch Ind.",{"$f":"feed126","v":"Potato press water"},"Eth-Sugar-Starch Ind. Potato press water",0.72,575,0.68869565217391304,2.5499999999999998E-2,null,null,null,"CropGEN Database"]
["Eth-Sugar-Starch Ind.",{"$f":"feed127","v":"Potato pulp, dried"},"Eth-Sugar-Starch Ind. Potato pulp, dried",0.92300000000000004,762,0.51968503937007871,0.88300000000000001,null,null,null,"CropGEN Database"]
["Eth-Sugar-Starch Ind.",{"$f":"feed128","v":"Potato starch"},"Eth-Sugar-Starch Ind. Potato starch",0.93100000000000005,759,0.51515151515151514,0.83099999999999996,null,null,null,"http://daten.ktbl.de/euagrobiogasbasis/navigation.do?selectedAction=Startseite"]
["Eth-Sugar-Starch Ind.",{"$f":"feed129","v":"Residue from production of sweets"},"Eth-Sugar-Starch Ind. Residue from production of sweets",0.86699999999999999,598,0.62876254180602009,0.86799999999999999,null,null,null,"CropGEN Database"]
["Eth-Sugar-Starch Ind.",{"$f":"feed130","v":"Sugar beet chips"},{"$f":"$A130&\" \"&$B130","v":"Eth-Sugar-Starch Ind. Sugar beet chips"},0.94599999999999995,747,0.57563587684069617,0.29499999999999998,null,null,null,"http://biomethaneregions.cra.wallonie.be/img/download/TrainingTheTrainers_UK_Feedstocks_and_Pretreatments.pdf"]
["Eth-Sugar-Starch Ind.",{"$f":"feed131","v":"Sugar beet dried & shredded"},"Eth-Sugar-Starch Ind. Sugar beet dried & shredded",0.94599999999999995,685.8,0.50600000000000001,0.91599999999999993,null,null,null,"CropGEN Database"]
["Eth-Sugar-Starch Ind.",{"$f":"feed132","v":"Sugar beet fresh"},"Eth-Sugar-Starch Ind. Sugar beet fresh",0.91900000000000004,696,0.50800000000000001,0.23,null,null,null,"CropGEN Database"]
["Eth-Sugar-Starch Ind.",{"$f":"feed133","v":"Sugar beet melasse"},"Eth-Sugar-Starch Ind. Sugar beet melasse",0.86299999999999999,760,0.51973684210526316,0.78800000000000003,null,null,null,"CropGEN Database"]
["Eth-Sugar-Starch Ind.",{"$f":"feed134","v":"Sugar beet pulp, dried"},"Eth-Sugar-Starch Ind. Sugar beet pulp, dried",0.92100000000000004,761,0.51511169513797639,0.9]
["Eth-Sugar-Starch Ind.",{"$f":"feed135","v":"Sugar beet tops clean"},"Eth-Sugar-Starch Ind. Sugar beet tops clean",0.83499999999999996,637,0.53700000000000003,0.16]
["Eth-Sugar-Starch Ind.",{"$f":"feed136","v":"Sugar filter cake"},"Eth-Sugar-Starch Ind. Sugar filter cake",0.7,475,0.55000000000000004,0.25,null,null,null,"http://daten.ktbl.de/euagrobiogasbasis/navigation.do?selectedAction=Startseite"]
["Eth-Sugar-Starch Ind.",{"$f":"feed137","v":"Sugar for feeding"},"Eth-Sugar-Starch Ind. Sugar for feeding",0.99199999999999999,751,0.50066577896138487,0.98599999999999999]
[{"$f":"title187","v":"Food Process. Res."},{"$f":"feed138","v":"Apple pulp"},"Food Process. Res. Apple pulp",1,308,0.6,0.17899999999999999,null,null,null,"Cropgen"]
["Food Process. Res.",{"$f":"feed139","v":"Apple slurry"},"Food Process. Res. Apple slurry",1,281,0.6,0.54,null,null,null,"http://daten.ktbl.de/euagrobiogasbasis/navigation.do?selectedAction=Startseite"]
["Food Process. Res.",{"$f":"feed140","v":"Asparagus peels"},"Food Process. Res. Asparagus peels",1,219,0.6,0.95,null,null,null,"http://daten.ktbl.de/euagrobiogasbasis/navigation.do?selectedAction=Startseite"]
["Food Process. Res.",{"$f":"feed141","v":"Baking wastes"},"Food Process. Res. Baking wastes",0.97099999999999997,764,0.52800000000000002,0.877,null,null,null,"CropGEN Database"]
["Food Process. Res.",{"$f":"feed142","v":"Banana peels"},"Food Process. Res. Banana peels",0.91014285714285703,298.85714285714289,0.6,0.95,null,null,null,"CropGEN Database"]
["Food Process. Res.",{"$f":"feed143","v":"Barley fresh mass"},"Food Process. Res. Barley fresh mass",0.21247199999999999,474.50000000000006,0.625,0.23100000000000001,null,null,null,"CropGEN Database"]
["Food Process. Res.",{"$f":"feed144","v":"Barley silage"},"Food Process. Res. Barley silage",0.290433,572,0.65500000000000003,0.3175,null,null,null,"http://daten.ktbl.de/euagrobiogasbasis/navigation.do?selectedAction=Startseite"]
["Food Process. Res.",{"$f":"feed145","v":"Field fodder silage"},"Food Process. Res. Field fodder silage",0.113284,331,0.69399999999999995,0.127,null,null,null,"CropGEN Database"]
["Food Process. Res.",{"$f":"feed146","v":"Hemp press cake"},"Food Process. Res. Hemp press cake",0.83142000000000005,77,0.65200000000000002,0.89400000000000002,null,null,null,"CropGEN Database"]
["Food Process. Res.",{"$f":"feed147","v":"Hemp silage"},"Food Process. Res. Hemp silage",0.24464,159,0.46899999999999997,0.27800000000000002]
["Food Process. Res.",{"$f":"feed148","v":"Loose skinned mandarin"},"Food Process. Res. Loose skinned mandarin",0.95039999999999991,523.59999999999991,0.6,0.95,null,null,null,"Cropgen"]
["Food Process. Res.",{"$f":"feed149","v":"Maize strip waste"},"Food Process. Res. Maize strip waste",0.94799999999999995,930,0.50752688172043015,0.27400000000000002]
["Food Process. Res.",{"$f":"feed150","v":"Mango Peels"},"Food Process. Res. Mango Peels",0.96100000000000008,419.57142857142856,0.6,0.95,null,null,null,"http://daten.ktbl.de/euagrobiogasbasis/navigation.do?selectedAction=Startseite"]
["Food Process. Res.",{"$f":"feed151","v":"Rapeseed strip waste"},"Food Process. Res. Rapeseed strip waste",0.91300000000000003,627,0.51674641148325362,0.90100000000000002,null,null,null,"CropGEN Database"]
["Food Process. Res.",{"$f":"feed152","v":"Reed, cattail, silage"},"Food Process. Res. Reed, cattail, silage",0.95099999999999996,384,0.43229166666666669,0.77200000000000002]
["Food Process. Res.",{"$f":"feed153","v":"Bakery residues"},"Food Process. Res. Bakery residues",0.98099999999999998,791,0.53476611883691527,0.88200000000000001,null,null,null,"http://biomethaneregions.cra.wallonie.be/img/download/TrainingTheTrainers_UK_Feedstocks_and_Pretreatments.pdf"]
["Food Process. Res.",{"$f":"feed154","v":"Barley bran"},"Food Process. Res. Barley bran",0.94199999999999995,788,0.53299492385786806,0.89300000000000002,null,null,null,"http://daten.ktbl.de/euagrobiogasbasis/navigation.do?selectedAction=Startseite"]
["Food Process. Res.",{"$f":"feed155","v":"Barley feeding meal"},"Food Process. Res. Barley feeding meal",0.95699999999999996,787,0.53367217280813217,0.88,null,null,null,"http://daten.ktbl.de/euagrobiogasbasis/navigation.do?selectedAction=Startseite"]
["Food Process. Res.",{"$f":"feed156","v":"Bran and cereal strip waste (70:30), fresh"},"Food Process. Res. Bran and cereal strip waste (70:30), fresh",0.91307500000000008,455.5,0.46157051282051287,0.95,null,null,null,"http://daten.ktbl.de/euagrobiogasbasis/navigation.do?selectedAction=Startseite"]
["Food Process. Res.",{"$f":"feed157","v":"Cereal Mash"},"Food Process. Res. Cereal Mash",{"$f":"AVERAGE(90%,83%)","v":0.86499999999999999},900,0.6,{"$f":"AVERAGE(6%,8%)","v":7.0000000000000007E-2},null,null,null,"http://daten.ktbl.de/euagrobiogasbasis/navigation.do?selectedAction=Startseite"]
["Food Process. Res.",{"$f":"feed158","v":"Cereal strip waste, fresh"},"Food Process. Res. Cereal strip waste, fresh",0.93899999999999995,714,0.49019607843137253,0.88900000000000001,null,null,null,"http://daten.ktbl.de/euagrobiogasbasis/navigation.do?selectedAction=Startseite"]
["Food Process. Res.",{"$f":"feed159","v":"Chip fat"},"Food Process. Res. Chip fat",0.999,320,0.47187499999999999,0.997,null,null,null,"http://daten.ktbl.de/euagrobiogasbasis/navigation.do?selectedAction=Startseite"]
["Food Process. Res.",{"$f":"feed160","v":"Coffee pulp"},"Food Process. Res. Coffee pulp",0.18600000000000003,390,0.63,0.91800000000000004,null,null,null,"http://daten.ktbl.de/euagrobiogasbasis/navigation.do?selectedAction=Startseite"]
["Food Process. Res.",{"$f":"feed161","v":"Dairy industry wastes"},"Food Process. Res. Dairy industry wastes",0.82,381,0.7,0.05]
["Food Process. Res.",{"$f":"feed162","v":"Discarded wheat flour"},"Food Process. Res. Discarded wheat flour",0.96,700,0.6,0.88]
["Food Process. Res.",{"$f":"feed163","v":"Field bean grain"},"Food Process. Res. Field bean grain",0.96099999999999997,696.2,0.56100000000000005,0.87,null,null,null,"http://daten.ktbl.de/euagrobiogasbasis/navigation.do?selectedAction=Startseite"]
["Food Process. Res.",{"$f":"feed164","v":"Grain Peas"},"Food Process. Res. Grain Peas",0.96299999999999997,693.9,0.55000000000000004,0.87,null,null,null,"http://daten.ktbl.de/euagrobiogasbasis/navigation.do?selectedAction=Startseite"]
["Food Process. Res.",{"$f":"feed165","v":"Maize , broken"},"Food Process. Res. Maize , broken",0.99,824,0.45873786407766992,0.91700000000000004]
["Food Process. Res.",{"$f":"feed166","v":"Maize grain powder"},"Food Process. Res. Maize grain powder",0.98099999999999998,487,0.47022587268993837,0.91400000000000003,null,null,null,"http://www.giz.de/fachexpertise/downloads/gtz2010-en-biogas-assessment-kenya.pdf"]
["Food Process. Res.",{"$f":"feed167","v":"Malt coffee marc"},"Food Process. Res. Malt coffee marc",0.20593600000000001,309,0.59,0.21099999999999999,null,null,null,"http://daten.ktbl.de/euagrobiogasbasis/navigation.do?selectedAction=Startseite"]
["Food Process. Res.",{"$f":"feed168","v":"Medical tea (Production waste)"},"Food Process. Res. Medical tea (Production waste)",0.14591999999999999,166,0.505,0.19,null,null,null,"http://daten.ktbl.de/euagrobiogasbasis/navigation.do?selectedAction=Startseite"]
["Food Process. Res.",{"$f":"feed169","v":"Mixed grain"},"Food Process. Res. Mixed grain",0.97199999999999998,682.5,0.52700000000000002,0.87,null,null,null,"http://daten.ktbl.de/euagrobiogasbasis/navigation.do?selectedAction=Startseite"]
[{"$f":"title187","v":"Food Process. Res."},{"$f":"feed170","v":"Oat bran"},"Food Process. Res. Oat bran",0.94599999999999995,782,0.52685421994884907,0.91,null,null,null,"http://daten.ktbl.de/euagrobiogasbasis/navigation.do?selectedAction=Startseite"]
["Food Process. Res.",{"$f":"feed171","v":"Oats fodder flour"},"Food Process. Res. Oats fodder flour",0.97400000000000009,732.6,0.54899999999999993,0.90900000000000003,null,null,null,"http://daten.ktbl.de/euagrobiogasbasis/navigation.do?selectedAction=Startseite"]
["Food Process. Res.",{"$f":"feed172","v":"Old bread"},"Food Process. Res. Old bread",0.97199999999999998,763,0.52800000000000002,0.65]
["Food Process. Res.",{"$f":"feed173","v":"Old chip fat"},"Food Process. Res. Old chip fat",0.97,1000,0.6,0.97,null,null,null,"http://daten.ktbl.de/euagrobiogasbasis/navigation.do?selectedAction=Startseite"]
["Food Process. Res.",{"$f":"feed174","v":"Onion Residues"},"Food Process. Res. Onion Residues",0.88200000000000001,400,0.6,0.13200000000000001,null,null,null,"http://daten.ktbl.de/euagrobiogasbasis/navigation.do?selectedAction=Startseite"]
["Food Process. Res.",{"$f":"feed175","v":"Other cereals straw"},"Food Process. Res. Other cereals straw",{"$f":"AVERAGE(89%,94%)","v":0.91500000000000004},{"$f":"AVERAGE(0.2,0.5)*1000","v":350},0.6,0.86,null,null,null,"http://www.feedipedia.org/node/549"]
["Food Process. Res.",{"$f":"feed176","v":"Potato flakes"},"Food Process. Res. Potato flakes",0.94700000000000006,667.6,0.50600000000000001,0.88,null,null,null,"CropGEN Database"]
["Food Process. Res.",{"$f":"feed177","v":"Potato peeling wastes roughly"},"Food Process. Res. Potato peeling wastes roughly",0.93799999999999994,655.9,0.51400000000000001,0.11]
["Food Process. Res.",{"$f":"feed178","v":"Potato Pulp/Peelings"},"Food Process. Res. Potato Pulp/Peelings",{"$f":"AVERAGE(85%,96%)","v":0.90500000000000003},{"$f":"AVERAGE(0.3,0.9)*1000","v":600},0.6,{"$f":"AVERAGE(6%,18%)","v":0.12}]
["Food Process. Res.",{"$f":"feed179","v":"Potatoes amniotic fluid (Starch production)"},"Food Process. Res. Potatoes amniotic fluid (Starch production)",2.2015E-2,516,0.71,3.5000000000000003E-2]
["Food Process. Res.",{"$f":"feed180","v":"Potatoes mash"},"Food Process. Res. Potatoes mash",3.9996999999999998E-2,366,0.54400000000000004,4.7E-2,null,null,null,"http://daten.ktbl.de/euagrobiogasbasis/navigation.do?selectedAction=Startseite"]
["Food Process. Res.",{"$f":"feed181","v":"Potatoes pulp"},"Food Process. Res. Potatoes pulp",0.17993000000000001,278,0.57999999999999996,0.19,null,null,null,"http://daten.ktbl.de/euagrobiogasbasis/navigation.do?selectedAction=Startseite","http://www.nt.gov.au/d/Primary_Industry/Content/File/horticulture/IS31_dry_matter_testing_of_mangoes.pdf"]
["Food Process. Res.",{"$f":"feed182","v":"Potatoes shredder"},"Food Process. Res. Potatoes shredder",0.18532199999999999,411,0.56499999999999995,0.20100000000000001,null,null,null,"CropGEN Database"]
["Food Process. Res.",{"$f":"feed183","v":"Potatoes waste water"},"Food Process. Res. Potatoes waste water",1.3008E-2,274,0.65,1.6E-2,null,null,null,"CropGEN Database"]
["Food Process. Res.",{"$f":"feed184","v":"Processing waste (filtration cake, pulp)"},"Food Process. Res. Processing waste (filtration cake, pulp)",0.9,320,0.51875000000000004,0.74]
["Food Process. Res.",{"$f":"feed185","v":"Pulp"},"Food Process. Res. Pulp",0.9,{"$f":"AVERAGE(0.65,0.75)*1000","v":700},0.6,0.13,null,null,null,"http://daten.ktbl.de/euagrobiogasbasis/navigation.do?selectedAction=Startseite"]
["Food Process. Res.",{"$f":"feed186","v":"Rice Bran"},"Food Process. Res. Rice Bran",{"$f":"AVERAGE(70%,95%)","v":0.82499999999999996},{"$f":"0.1*1000","v":100},0.6,0.9]
["Food Process. Res.",{"$f":"feed187","v":"Rice feeding meal"},"Food Process. Res. Rice feeding meal",0.877,855,0.57076023391812869,0.89600000000000002]
["Food Process. Res.",{"$f":"feed188","v":"Rolled oats"},"Food Process. Res. Rolled oats",0.98099999999999998,694.2,0.53500000000000003,0.91]
["Food Process. Res.",{"$f":"feed189","v":"Rye bran"},"Food Process. Res. Rye bran",0.94399999999999995,784,0.53188775510204078,0.88,null,null,null,"https://www.ecn.nl/phyllis2/Browse/Standard/ECN-Phyllis#onion"]
["Food Process. Res.",{"$f":"feed190","v":"Rye feeding meal"},"Food Process. Res. Rye feeding meal",0.96399999999999997,782,0.53196930946291565,0.88]
["Food Process. Res.",{"$f":"feed191","v":"Silage seep water"},"Food Process. Res. Silage seep water",0.10680000000000001,492,0.57999999999999996,0.15]
["Food Process. Res.",{"$f":"feed192","v":"Succory chaff"},"Food Process. Res. Succory chaff",0.66700000000000004,710,0.47042253521126759,0.19700000000000001]
["Food Process. Res.",{"$f":"feed193","v":"Succory mush"},"Food Process. Res. Succory mush",0.66700000000000004,771,0.45654993514915693,0.19700000000000001]
["Food Process. Res.",{"$f":"feed194","v":"Vegetable wastes"},{"$f":"$A194&\" \"&$B194","v":"Food Process. Res. Vegetable wastes"},0.76,500,0.56000000000000005,0.15,null,null,null,"CropGEN Database"]
["Food Process. Res.",{"$f":"feed195","v":"Wheat bran"},"Food Process. Res. Wheat bran",0.94,820,0.47073170731707314,0.88500000000000001,null,null,null,"CropGEN Database"]
["Food Process. Res.",{"$f":"feed196","v":"Wheat chaff"},"Food Process. Res. Wheat chaff",0.86499999999999999,340.9,0.50700000000000001,0.89,null,null,null,"CropGEN Database"]
["Food Process. Res.",{"$f":"feed197","v":"Wheat flakes"},"Food Process. Res. Wheat flakes",0.98299999999999998,704.5,0.52800000000000002,0.87,null,null,null,"CropGEN Database"]
["Food Process. Res.",{"$f":"feed198","v":"Wheat germs"},"Food Process. Res. Wheat germs",0.95,828,0.56642512077294682,0.9,null,null,null,"CropGEN Database"]
["Food Process. Res.",{"$f":"feed199","v":"Wheat semolina bran"},"Food Process. Res. Wheat semolina bran",0.94499999999999995,585.70000000000005,0.55000000000000004,0.878,null,null,null,"http://daten.ktbl.de/euagrobiogasbasis/navigation.do?selectedAction=Startseite"]
["Food Process. Res.",{"$f":"feed200","v":"Fruit slurry"},"Food Process. Res. Fruit slurry",{"$f":"AVERAGE(92%,98%)","v":0.95},{"$f":"AVERAGE(500,800)","v":650},0.5,{"$f":"AVERAGE(10%,4%)","v":7.0000000000000007E-2},null,null,null,"http://cdn.intechopen.com/pdfs-wm/27154.pdf"]
[{"$f":"title188","v":"Grass"},{"$f":"feed201","v":"Alemangrass"},"Grass Alemangrass",1,298,0.6,0.1583]
["Grass",{"$f":"feed202","v":"Bermuda grass"},"Grass Bermuda grass",0.88083333333333325,231.83333333333334,0.7,0.28500000000000003,null,null,null,"http://www.feedipedia.org/node/750"]
["Grass",{"$f":"feed203","v":"Glover grass hay"},"Grass Glover grass hay",0.83324500000000001,279,0.67500000000000004,0.89500000000000002,null,null,null,"http://daten.ktbl.de/euagrobiogasbasis/navigation.do?selectedAction=Startseite"]
["Grass",{"$f":"feed204","v":"Glover grass silage"},"Grass Glover grass silage",0.11468100000000001,334,0.69399999999999995,0.127]
["Grass",{"$f":"feed205","v":"Grass"},"Grass Grass",0.22459637499999999,371.25,0.5655,0.21312499999999998,null,null,null,"http://daten.ktbl.de/euagrobiogasbasis/navigation.do?selectedAction=Startseite"]
["Grass",{"$f":"feed206","v":"Clover grass hay"},"Grass Clover grass hay",0.24804000000000001,260,0.56899999999999995,0.318,null,null,null,"http://daten.ktbl.de/euagrobiogasbasis/navigation.do?selectedAction=Startseite"]
["Grass",{"$f":"feed207","v":"Clover grass silage"},"Grass Clover grass silage",0.20416799999999999,101,0.49,0.28199999999999997,null,null,null,"CropGEN Database"]
["Grass",{"$f":"feed208","v":"Grass cuttings from lawns"},"Grass Grass cuttings from lawns",0.93,750,0.6,0.37,null,null,null,"http://daten.ktbl.de/euagrobiogasbasis/navigation.do?selectedAction=Startseite"]
["Grass",{"$f":"feed209","v":"Grass hay"},"Grass Grass hay",0.4217469720930232,313.0232558139536,0.53227272727272734,0.26361162790697673,null,null,null,"http://daten.ktbl.de/euagrobiogasbasis/navigation.do?selectedAction=Startseite"]
["Grass",{"$f":"feed210","v":"Grass silage"},"Grass Grass silage",0.89200000000000002,583.79999999999995,0.54100000000000004,0.4]
["Grass",{"$f":"feed211","v":"Lawn"},"Grass Lawn",0.191,300,0.6,0.215,null,null,null,"http://daten.ktbl.de/euagrobiogasbasis/navigation.do?selectedAction=Startseite"]
["Grass",{"$f":"feed212","v":"Meadow grass green"},"Grass Meadow grass green",0.91099999999999992,598.29999999999995,0.53900000000000003,0.18]
["Grass",{"$f":"feed213","v":"Miscanthus fresh"},"Grass Miscanthus fresh",0.294846,180,0.49,0.313]
["Grass",{"$f":"feed214","v":"Napier grass"},"Grass Napier grass",0.89,274,0.67999999999999994,0.33324999999999999,null,null,null,"http://daten.ktbl.de/euagrobiogasbasis/navigation.do?selectedAction=Startseite"]
["Grass",{"$f":"feed215","v":"Ray Grass"},"Grass Ray Grass",0.9094000000000001,556.33333333333337,0.61166666666666669,0.21620000000000003]
["Grass",{"$f":"feed216","v":"Ray Grass Silage"},"Grass Ray Grass Silage",0.90939999999999999,409,0.60099999999999998,0.2162,null,null,null,"CropGEN Database"]
["Grass",{"$f":"feed217","v":"Reed canary grass"},"Grass Reed canary grass",0.28510000000000002,299.00000000000006,0.54374999999999996,0.30939999999999995,null,null,null,"CropGEN Database"]
["Grass",{"$f":"feed218","v":"Ray grass"},"Grass Ray grass",0.1356923076923077,443.84615384615381,0.6,0.16054615384615384,null,null,null,"CropGEN Database"]
["Grass",{"$f":"feed219","v":"Spartina-Cordgrass"},"Grass Spartina-Cordgrass",0.28101221399999998,280.5,0.6,0.315,null,null,null,"CropGEN Database"]
["Grass",{"$f":"feed220","v":"Sudan grass fresh"},"Grass Sudan grass fresh",0.38909199999999999,228,0.629,0.40699999999999997,null,null,null,"CropGEN Database"]
["Grass",{"$f":"feed221","v":"Sudan grass silage"},"Grass Sudan grass silage",0.245642,285,0.53700000000000003,0.26300000000000001,null,null,null,"CropGEN Database"]
["Grass",{"$f":"feed222","v":"Tall fescue"},"Grass Tall fescue",0.20931593549999999,390,0.6,0.23444999999999999,null,null,null,"CropGEN Database"]
["Grass",{"$f":"feed223","v":"Timothy grass"},"Grass Timothy grass",0.20900000000000002,375,0.6,0.22500000000000001]
["Grass",{"$f":"feed224","v":"Turf grass"},"Grass Turf grass",null,285.00000000000006,0.6,0.25,null,null,null,"CropGEN Database"]
["Grass",{"$f":"feed225","v":"Wood grass"},"Grass Wood grass",0.95799999999999996,291,0.6,0.88200000000000001,null,null,null,"CropGEN Database"]
[{"$f":"title84","v":"Manure"},{"$f":"feed226","v":"Buffalo"},"Manure Buffalo",{"$f":"0.1364/0.73","v":0.18684931506849314},100,0.59098274699999997,{"$f":"(1-0.73)","v":0.27},null,null,null,"CropGEN Database"]
[{"$f":"title84","v":"Manure"},{"$f":"feed227","v":"Cattle"},"Manure Cattle",{"$f":"0.1325/0.366","v":0.36202185792349728},100,0.57699999999999996,{"$f":"1-36%","v":0.64}]
[{"$f":"title84","v":"Manure"},{"$f":"feed228","v":"Dairy Cattle"},"Manure Dairy Cattle",{"$f":"0.2047/0.6738","v":0.3037993469872366},130,0.59099999999999997,{"$f":"1-67.38%","v":0.32620000000000005},null,null,null,"CropGEN Database"]
[{"$f":"title84","v":"Manure"},{"$f":"feed229","v":"Poultry"},"Manure Poultry",{"$f":"0.4936","v":0.49359999999999998},390,0.63800000000000001,{"$f":"1-25.3%","v":0.747},null,null,null,"CropGEN Database"]
[{"$f":"title84","v":"Manure"},{"$f":"feed230","v":"Swine"},"Manure Swine",0.23599999999999999,290,0.58799999999999997,{"$f":"1-0.0722","v":0.92779999999999996},null,null,null,"CropGEN Database"]
[{"$f":"title119","v":"Crops"},{"$f":"feed231","v":"Alfalfa"},"Crops Alfalfa",0.90920000000000001,340,0.65800000000000003,0.19939999999999999,null,null,null,"CropGEN Database"]
["Crops",{"$f":"feed232","v":"Apple"},"Crops Apple",0.97899999999999998,317,0.6,0.17100000000000001,null,null,null,"CropGEN Database"]
["Crops",{"$f":"feed233","v":"Banana"},"Crops Banana",0.84033333333333327,357.83333333333326,0.6,0.20799999999999999,null,null,null,"CropGEN Database"]
["Crops",{"$f":"feed234","v":"Beans"},"Crops Beans",0.13315011099999999,298,0.6,0.14480000000000001,null,null,null,"CropGEN Database"]
["Crops",{"$f":"feed235","v":"Buckwheat"},"Crops Buckwheat",0.14967651400000001,302,0.6,0.16600000000000001,null,null,null,"CropGEN Database"]
["Crops",{"$f":"feed236","v":"Cabbage"},"Crops Cabbage",0.84750000000000014,360,0.67549999999999999,0.114,null,null,null,"CropGEN Database"]
["Crops",{"$f":"feed237","v":"Carrot"},"Crops Carrot",0.63880233833333333,326.5,0.48,7.7733333333333335E-2,null,null,null,"CropGEN Database"]
["Crops",{"$f":"feed238","v":"Cauliflower"},"Crops Cauliflower",0.84066666666666678,385.71428571428572,0.6765000000000001,0.18342857142857147,null,null,null,"CropGEN Database"]
["Crops",{"$f":"feed239","v":"Clover"},"Crops Clover",0.91500000000000004,497.00000000000006,0.59316666666666662,0.19389999999999999,null,null,null,"CropGEN Database"]
["Crops",{"$f":"feed240","v":"Comfrey"},"Crops Comfrey",0.84,328.5,0.69699999999999995,0.111,null,null,null,"CropGEN Database"]
["Crops",{"$f":"feed241","v":"Coriander plant"},"Crops Coriander plant",0.8347500000000001,309.75,0.6,0.45,null,null,null,"http://daten.ktbl.de/euagrobiogasbasis/navigation.do?selectedAction=Startseite"]
["Crops",{"$f":"feed242","v":"Eggplant"},"Crops Eggplant",0.92599999999999993,385,0.6,0.1,null,null,null,"CropGEN Database"]
["Crops",{"$f":"feed243","v":"Field beans"},"Crops Field beans",0.92,259,0.53,0.18]
["Crops",{"$f":"feed244","v":"Field fodder fresh"},"Crops Field fodder fresh",0.17794599999999999,236,0.70699999999999996,0.193]
["Crops",{"$f":"feed245","v":"Fodder beet"},"Crops Fodder beet",0.83,278,0.53,0.16,null,null,null,"http://daten.ktbl.de/euagrobiogasbasis/navigation.do?selectedAction=Startseite"]
["Crops",{"$f":"feed246","v":"Garden beet"},"Crops Garden beet",0.18,425.00000000000006,0.6,0.2,null,null,null,"CropGEN Database"]
["Crops",{"$f":"feed247","v":"Garden beet tops"},"Crops Garden beet tops",0.12843478260869548,228.00000000000003,0.67649999999999999,0.10266666666666671]
["Crops",{"$f":"feed248","v":"Garden pea"},"Crops Garden pea",0.91800000000000004,390,0.6,0.2]
["Crops",{"$f":"feed249","v":"Giant knotweed"},"Crops Giant knotweed",0.28299999999999997,270,0.6,0.30299999999999999,null,null,null,"http://daten.ktbl.de/euagrobiogasbasis/navigation.do?selectedAction=Startseite"]
["Crops",{"$f":"feed250","v":"Grape vine"},"Crops Grape vine",0.91050000000000009,231.49999999999997,0.6,0.59740000000000004,null,null,null,"CropGEN Database"]
["Crops",{"$f":"feed251","v":"Ipomoea fistulosa"},"Crops Ipomoea fistulosa",0.877,410,0.6,0.28499999999999998]
["Crops",{"$f":"feed252","v":"Jerusalem Artichoke"},"Crops Jerusalem Artichoke",0.58684076923076911,348.56923076923073,0.61071428571428565,0.32946153846153858]
["Crops",{"$f":"feed253","v":"Lady´s finger (Okra)"},"Crops Lady´s finger (Okra)",0.91900000000000004,350,0.6,0.875,null,null,null,"CropGEN Database"]
[{"$f":"title187","v":"Food Process. Res."},{"$f":"feed254","v":"Lemon pulp"},"Food Process. Res. Lemon pulp",0.96799999999999997,473,0.6,0.2,null,null,null,"CropGEN Database"]
[{"$f":"title119","v":"Crops"},{"$f":"feed255","v":"Lupine"},"Crops Lupine",0.12598938400000001,330,0.6,0.1356,null,null,null,"CropGEN Database"]
[{"$f":"title187","v":"Food Process. Res."},{"$f":"feed256","v":"Mango pulp"},"Food Process. Res. Mango pulp",0.96100000000000008,370,0.6,0.11,null,null,null,"http://www.feedipedia.org/node/189"]
[{"$f":"title119","v":"Crops"},{"$f":"feed257","v":"Mirabilis"},"Crops Mirabilis",0.87799999999999989,325.20000000000005,0.6,0.312,null,null,null,"https://www.ecn.nl/phyllis2/Browse/Standard/ECN-Phyllis#sludge"]
[{"$f":"title119","v":"Crops"},{"$f":"feed258","v":"Mustard "},{"$f":"$A258&\" \"&$B258","v":"Crops Mustard "},0.83,313,0.67999999999999994,0.10299999999999999,null,null,null,"https://www.ecn.nl/phyllis2/Browse/Standard/ECN-Phyllis#sludge"]
[{"$f":"title119","v":"Crops"},{"$f":"feed259","v":"Nettle"},"Crops Nettle",0.13300000000000001,315,0.6,0.158,null,null,null,"CropGEN Database"]
[{"$f":"title119","v":"Crops"},{"$f":"feed260","v":"Orange"},"Crops Orange",0.96399999999999997,297,0.6,0.22600000000000001,null,null,null,"CropGEN Database"]
[{"$f":"title187","v":"Food Process. Res."},{"$f":"feed261","v":"Orange peel and seeds"},"Food Process. Res. Orange peel and seeds",0.93500000000000005,478.50000000000006,0.6,{"$f":"1-0.075","v":0.92500000000000004},null,null,null,"CropGEN Database"]
[{"$f":"title119","v":"Crops"},{"$f":"feed262","v":"Parsnips"},"Crops Parsnips",0.91,408,0.6,0.18,null,null,null,"CropGEN Database"]
["Crops",{"$f":"feed263","v":"Pea"},"Crops Pea",0.136305074,383.5,0.6,0.15160000000000001,null,null,null,"CropGEN Database"]
["Crops",{"$f":"feed264","v":"Pineapple"},"Crops Pineapple",0.97299999999999998,761,0.51379763469119577,0.16200000000000001,null,null,null,"CropGEN Database"]
["Crops",{"$f":"feed265","v":"Pomegranate"},"Crops Pomegranate",0.90300000000000002,397.33333333333331,0.6,0.2,null,null,null,"CropGEN Database"]
["Crops",{"$f":"feed266","v":"Potatoes"},"Crops Potatoes",0.92533333333333345,303,0.51,0.12666666666666668,null,null,null,"CropGEN Database"]
["Crops",{"$f":"feed267","v":"Quinoa"},"Crops Quinoa",0.19246228300000001,306.5,0.6,0.22409999999999999,null,null,null,"CropGEN Database","https://books.google.com.co/books?id=apdWdN8CscQC&pg=PA8&lpg=PA8&dq=dry+matter+%25+%2B+%22coriander%22&source=bl&ots=Y4yU08Atw_&sig=M4A1BIBe3FhfrTsAiWtdeU5FOs0&hl=es-419&sa=X&ei=BT7nVK-DBcGANrmzhIAO&ved=0CGYQ6AEwCQ#v=onepage&q=dry%20matter%20%25%20%2B%20%22coriander%22&f=false"]
["Crops",{"$f":"feed268","v":"Red clover"},"Crops Red clover",0.1895,290.00000000000006,0.6,0.20750000000000002,null,null,null,"CropGEN Database"]
["Crops",{"$f":"feed269","v":"Rhubarb"},"Crops Rhubarb",0.47,367.75,0.6745000000000001,8.6750000000000008E-2,null,null,null,"CropGEN Database"]
["Crops",{"$f":"feed270","v":"Rosebay willow-herb"},"Crops Rosebay willow-herb",0.23982674100000001,210,0.6,0.25590000000000002,null,null,null,"CropGEN Database"]
["Crops",{"$f":"feed271","v":"Rye"},"Crops Rye",0.61238500000000007,413.36363636363643,0.62754545454545463,0.37963636363636366,null,null,null,"CropGEN Database"]
["Crops",{"$f":"feed272","v":"Sweet clover"},"Crops Sweet clover",0.31215531400000002,311,0.6,0.3306,null,null,null,"CropGEN Database"]
["Crops",{"$f":"feed273","v":"Tomato"},"Crops Tomato",0.95300000000000007,297.5,0.6,0.17699999999999999,null,null,null,"CropGEN Database"]
["Crops",{"$f":"feed274","v":"Turnip"},"Crops Turnip",0.84399999999999997,314,0.6,0.09,null,null,null,"CropGEN Database"]
["Crops",{"$f":"feed275","v":"Vetch"},"Crops Vetch",0.221648702,284.5,0.6,0.23830000000000001,null,null,null,"CropGEN Database"]
["Crops",{"$f":"feed276","v":"White cabbage"},"Crops White cabbage",0.78,362.50000000000006,0.67549999999999999,0.114,null,null,null,"CropGEN Database"]
[{"$f":"title189","v":"Other Options"},{"$f":"feed277","v":"Algae"},"Other Options Algae",0.72699999999999998,770,0.52857142857142858,0.24399999999999999,null,null,null,"CropGEN Database"]
["Other Options",{"$f":"feed278","v":"bio-waste container"},"Other Options bio-waste container",0.16536999999999999,220,0.63,0.23,null,null,null,"CropGEN Database"]
["Other Options",{"$f":"feed279","v":"Clover 1st cut in flower"},"Other Options Clover 1st cut in flower",0.90700000000000003,537.9,0.53799999999999992,0.17,null,null,null,"CropGEN Database"]
["Other Options",{"$f":"feed280","v":"Fodder carrot"},"Other Options Fodder carrot",0.90300000000000002,683.9,0.51100000000000001,0.14599999999999999,null,null,null,"CropGEN Database"]
["Other Options",{"$f":"feed281","v":"Food leftovers Opt 1."},"Other Options Food leftovers Opt 1.",0.92300000000000004,879,0.58248009101251419,0.19700000000000001,null,null,null,"CropGEN Database"]
["Other Options",{"$f":"feed282","v":"Food Leftovers Opt 2."},"Other Options Food Leftovers Opt 2.",0.33102566666666666,394.66666666666669,0.57366666666666666,0.36033333333333334,null,null,null,"CropGEN Database"]
["Other Options",{"$f":"feed283","v":"Green Mustard before flower"},"Other Options Green Mustard before flower",0.84499999999999997,565.20000000000005,0.56100000000000005,0.12,null,null,null,"CropGEN Database"]
["Other Options",{"$f":"feed284","v":"Green oats in flower"},"Other Options Green oats in flower",0.91299999999999992,550.5,0.53,0.24,null,null,null,"CropGEN Database"]
["Other Options",{"$f":"feed285","v":"Makrophyt"},"Other Options Makrophyt",0.78800000000000003,769,0.52535760728218461,9.7000000000000003E-2,null,null,null,"CropGEN Database"]
["Other Options",{"$f":"feed286","v":"Market waste Opt. 1"},"Other Options Market waste Opt. 1",0.27,435,0.6,0.3,null,null,null,"CropGEN Database"]
["Other Options",{"$f":"feed287","v":"Market Wastes Opt. 2"},"Other Options Market Wastes Opt. 2",{"$f":"AVERAGE(76%,90%)","v":0.83000000000000007},{"$f":"AVERAGE(0.4,0.6)*1000","v":500},0.6,{"$f":"(8%+20%)/2","v":0.14000000000000001},null,null,null,"CropGEN Database"]
["Other Options",{"$f":"feed288","v":"Meadow Hay"},"Other Options Meadow Hay",0.91200000000000003,543.29999999999995,0.52600000000000002,0.86,null,null,null,"CropGEN Database"]
["Other Options",{"$f":"feed289","v":"Microalgae"},"Other Options Microalgae",0.2261,183,0.6,{"$f":"1-0.787","v":0.21299999999999997},null,null,null,"CropGEN Database"]
["Other Options",{"$f":"feed290","v":"News paper"},"Other Options News paper",0.98,92,0.6,0.94,null,null,null,"CropGEN Database"]
["Other Options",{"$f":"feed291","v":"Salad"},"Other Options Salad",0.8,294,0.6,0.109,null,null,null,"CropGEN Database"]
["Other Options",{"$f":"feed292","v":"Sisal Pulp"},"Other Options Sisal Pulp",0.10199999999999999,523,0.6,0.12,null,null,null,"http://daten.ktbl.de/euagrobiogasbasis/navigation.do?selectedAction=Startseite"]
["Other Options",{"$f":"feed293","v":"Waste Sludge"},"Other Options Waste Sludge",0.52880000000000005,{"$f":"AVERAGE(17,22)","v":19.5},0.6,{"$f":"1-0.096","v":0.90400000000000003},null,null,null,"CropGEN Database"]
["Other Options",{"$f":"feed294","v":"Waste Sludge (concentrated)"},"Other Options Waste Sludge (concentrated)",{"$f":"AVERAGE(20%,15%)","v":0.17499999999999999},{"$f":"AVERAGE(85,110)","v":97.5},0.6,{"$f":"1-0.04","v":0.96},null,null,null,"CropGEN Database"]
[{"$f":"title190","v":"Slaughterhouses wastes"},{"$f":"feed295","v":"Fat seperator residues"},"Slaughterhouses wastes Fat seperator residues",0.90700000000000003,1250,0.77280000000000004,0.34699999999999998,null,null,null,"CropGEN Database"]
["Slaughterhouses wastes",{"$f":"feed296","v":"Floating Sludge"},"Slaughterhouses wastes Floating Sludge",{"$f":"AVERAGE(13%,18%)","v":0.155},{"$f":"AVERAGE(90,130)","v":110},0.6,{"$f":"1-83.6/100","v":0.16400000000000003},null,null,null,"CropGEN Database"]
["Slaughterhouses wastes",{"$f":"feed297","v":"Flotate sludge, fresh"},"Slaughterhouses wastes Flotate sludge, fresh",0.98299999999999998,1350,0.72592592592592597,0.38,null,null,null,"CropGEN Database"]
["Slaughterhouses wastes",{"$f":"feed298","v":"Animal fats"},"Slaughterhouses wastes Animal fats",0.999,1390,0.72014388489208636,0.999,null,null,null,"CropGEN Database"]
["Slaughterhouses wastes",{"$f":"feed299","v":"Fish liver meal"},"Slaughterhouses wastes Fish liver meal",0.90400000000000003,1010,0.65346534653465349,0.91,null,null,null,"CropGEN Database"]
["Slaughterhouses wastes",{"$f":"feed300","v":"Fish meal"},"Slaughterhouses wastes Fish meal",0.79100000000000004,857,0.61376896149358229,0.90800000000000003,null,null,null,"CropGEN Database"]
["Slaughterhouses wastes",{"$f":"feed301","v":"Flotate fat"},"Slaughterhouses wastes Flotate fat",0.97,531,0.63276836158192096,0.35399999999999998,null,null,null,"CropGEN Database"]
["Slaughterhouses wastes",{"$f":"feed302","v":"Hydrolyzed Meat and Bones"},"Slaughterhouses wastes Hydrolyzed Meat and Bones",0.72,{"$f":"AVERAGE(70,100)","v":85},0.6,{"$f":"1-0.019","v":0.98099999999999998},null,null,null,"CropGEN Database"]
["Slaughterhouses wastes",{"$f":"feed303","v":"Leftovers Average fat"},"Slaughterhouses wastes Leftovers Average fat",0.86599999999999999,681.4,0.60199999999999998,0.156,null,null,null,"CropGEN Database"]
["Slaughterhouses wastes",{"$f":"feed304","v":"Leftovers fat-rich"},"Slaughterhouses wastes Leftovers fat-rich",0.92299999999999993,761.5,0.62,0.18,null,null,null,"CropGEN Database"]
["Slaughterhouses wastes",{"$f":"feed305","v":"Leftovers low fat & wet"},"Slaughterhouses wastes Leftovers low fat & wet",0.81499999999999995,642.6,0.59799999999999998,0.14400000000000002,null,null,null,"http://daten.ktbl.de/euagrobiogasbasis/navigation.do?selectedAction=Startseite"]
["Slaughterhouses wastes",{"$f":"feed306","v":"Meat waste"},"Slaughterhouses wastes Meat waste",0.95899999999999996,972,0.59979423868312753,0.36399999999999999,null,null,null,"https://www.ecn.nl/phyllis2/Browse/Standard/ECN-Phyllis#sludge"]
["Slaughterhouses wastes",{"$f":"feed307","v":"Pig muck"},"Slaughterhouses wastes Pig muck",0.82499999999999996,400,0.6,0.22500000000000001,null,null,null,"http://daten.ktbl.de/euagrobiogasbasis/navigation.do?selectedAction=Startseite"]
["Slaughterhouses wastes",{"$f":"feed308","v":"Poultry meat offals"},"Slaughterhouses wastes Poultry meat offals",0.86599999999999999,905,0.62983425414364635,0.94,null,null,null,"http://daten.ktbl.de/euagrobiogasbasis/navigation.do?selectedAction=Startseite"]
["Slaughterhouses wastes",{"$f":"feed309","v":"Purines"},"Slaughterhouses wastes Purines",{"$f":"AVERAGE(60%,80%)","v":0.7},13,0.6,0.62,null,null,null,"http://daten.ktbl.de/euagrobiogasbasis/navigation.do?selectedAction=Startseite"]
["Slaughterhouses wastes",{"$f":"feed310","v":"Rumen content"},"Slaughterhouses wastes Rumen content",0.18293699999999999,180,0.6,0.21099999999999999,null,null,null,"http://daten.ktbl.de/euagrobiogasbasis/navigation.do?selectedAction=Startseite"]
["Slaughterhouses wastes",{"$f":"feed311","v":"Slaughterhouse wastes mixtures"},"Slaughterhouses wastes Slaughterhouse wastes mixtures",0.99,160,0.6,2.5000000000000022E-2,null,null,null,"http://daten.ktbl.de/euagrobiogasbasis/navigation.do?selectedAction=Startseite"]
[{"$f":"title192","v":"Wastewater"},{"$f":"feed312","v":"Coffee Industry wastewater"},"Wastewater Coffee Industry wastewater",14.3,375,0.7,9.9999999999999978E-2]
["Wastewater",{"$f":"feed313","v":"Dairy Industry wastewaters"},"Wastewater Dairy Industry wastewaters",4,367,0.8,0.12]
["Wastewater",{"$f":"feed314","v":"Slaugtherhouse wastewater"},"Wastewater Slaugtherhouse wastewater",8,340,0.69,0.22999999999999998]
["Wastewater",{"$f":"feed315","v":"Distillery wastewater"},"Wastewater Distillery wastewater",90,390,0.73,0.33999999999999997]
["Wastewater",{"$f":"feed316","v":"Oilseed proceesing wastewater"},"Wastewater Oilseed proceesing wastewater",4.2,330,0.75,0.30000000000000004,null,null,null,"http://daten.ktbl.de/euagrobiogasbasis/navigation.do?selectedAction=Startseite"]
["Wastewater",{"$f":"feed317","v":"Fruit industry wastewater"},"Wastewater Fruit industry wastewater",5.5,375,0.75,0.14000000000000001]
["Wastewater",{"$f":"feed318","v":"Pulp and paper industry wastewater"},"Wastewater Pulp and paper industry wastewater",5,{"$f":"AVERAGE(141,178)","v":159.5},0.6,0.4,null,null,null,"http://daten.ktbl.de/euagrobiogasbasis/navigation.do?selectedAction=Startseite"]
["Wastewater",{"$f":"feed319","v":"Textile industry wastewater"},"Wastewater Textile industry wastewater",3,550,0.6,9.9999999999999978E-2]
["Wastewater",{"$f":"feed320","v":"Brewery industry wastewaters"},"Wastewater Brewery industry wastewaters",5.8,150,0.6,4.0000000000000036E-2,null,null,null,"CropGEN Database"]
["Wastewater",{"$f":"feed321","v":"Vinasses"},"Wastewater Vinasses",{"$f":"AVERAGE(4.65,20)","v":12.324999999999999},168,0.6,0.15000000000000002,null,null,null,"https://www.ecn.nl/phyllis2/Browse/Standard/ECN-Phyllis#slaughterhouse"]
[{"$f":"title191","v":"Yeast-Alcoholic Bev."},{"$f":"feed322","v":"Apple pomace"},{"$f":"$A322&\" \"&$B322","v":"Yeast-Alcoholic Bev. Apple pomace"},0.97499999999999998,788,0.52791878172588835,0.20200000000000001]
["Yeast-Alcoholic Bev.",{"$f":"feed323","v":"Beer Barm"},"Yeast-Alcoholic Bev. Beer Barm",0.92,660,0.57099999999999995,0.25]
["Yeast-Alcoholic Bev.",{"$f":"feed324","v":"Brewer`s grains"},"Yeast-Alcoholic Bev. Brewer`s grains",0.95599999999999996,754,0.66710875331564989,0.23300000000000001]
["Yeast-Alcoholic Bev.",{"$f":"feed325","v":"Brewer`s grains and yeast"},"Yeast-Alcoholic Bev. Brewer`s grains and yeast",0.6,700,0.55000000000000004,0.67500000000000004]
["Yeast-Alcoholic Bev.",{"$f":"feed326","v":"Brewers yeast, fresh"},"Yeast-Alcoholic Bev. Brewers yeast, fresh",0.92200000000000004,793,0.56872635561160156,0.13900000000000001]
["Yeast-Alcoholic Bev.",{"$f":"feed327","v":"Distiller`s dried grain, solubles only"},"Yeast-Alcoholic Bev. Distiller`s dried grain, solubles only",0.92800000000000005,812,0.55788177339901479,0.92400000000000004]
["Yeast-Alcoholic Bev.",{"$f":"feed328","v":"Distiller`s dried grains"},"Yeast-Alcoholic Bev. Distiller`s dried grains",0.94799999999999995,819,0.5641025641025641,0.91700000000000004]
["Yeast-Alcoholic Bev.",{"$f":"feed329","v":"Draff"},"Yeast-Alcoholic Bev. Draff",0.46982350000000001,503,0.57099999999999995,0.21450000000000002]
["Yeast-Alcoholic Bev.",{"$f":"feed330","v":"Grain mash"},"Yeast-Alcoholic Bev. Grain mash",6.5204999999999999E-2,364,0.54200000000000004,6.9000000000000006E-2]
["Yeast-Alcoholic Bev.",{"$f":"feed331","v":"Grain strip waste"},"Yeast-Alcoholic Bev. Grain strip waste",0.83491199999999999,354,0.54,0.89200000000000002]
["Yeast-Alcoholic Bev.",{"$f":"feed332","v":"Grape marc"},"Yeast-Alcoholic Bev. Grape marc",0.12218,160,0.55800000000000005,0.16400000000000001]
["Yeast-Alcoholic Bev.",{"$f":"feed333","v":"Grape marc, fresh"},"Yeast-Alcoholic Bev. Grape marc, fresh",0.74399999999999999,287,0.55749128919860624,0.28199999999999997]
["Yeast-Alcoholic Bev.",{"$f":"feed334","v":"Malt coffee draff, fresh"},"Yeast-Alcoholic Bev. Malt coffee draff, fresh",0.97599999999999998,525,0.59047619047619049,0.21099999999999999]
["Yeast-Alcoholic Bev.",{"$f":"feed335","v":"Pomace"},"Yeast-Alcoholic Bev. Pomace",0.15470700000000001,480,0.55749128919860624,0.159]
["Yeast-Alcoholic Bev.",{"$f":"feed336","v":"Potato pulp, fresh"},"Yeast-Alcoholic Bev. Potato pulp, fresh",0.85,670,0.54029850746268659,0.06]
["Yeast-Alcoholic Bev.",{"$f":"feed337","v":"Fermentation Residues"},"Yeast-Alcoholic Bev. Fermentation Residues",{"$f":"AVERAGE(90%,98%)","v":0.94},{"$f":"AVERAGE(400,700)","v":550},0.6,{"$f":"AVERAGE(4%,8%)","v":0.06}]
["Yeast-Alcoholic Bev.",{"$f":"feed338","v":"Yeast"},"Yeast-Alcoholic Bev. Yeast",0.93500000000000005,600,0.5,{"$f":"AVERAGE(10%,18%)","v":0.14000000000000001},null,null,null,"http://cdn.intechopen.com/pdfs-wm/27154.pdf"]
["Eaux usées","My Restaurant Wastewater",{"$f":"A339&\" \"&B339","v":"Eaux usées My Restaurant Wastewater"},50,350,0.68,0.8,{"$f":"IF($G339>20%,\"Dry Digestion\",IF($G339<10%,\"Wet Digestion\",\"Semi-Dry Digestion\"))","v":"Dry Digestion"}]
["Eaux usées","My Restaurant Wastewater",{"$f":"A340&\" \"&B340","v":"Eaux usées My Restaurant Wastewater"},50,350,0.68,0.8,{"$f":"IF($G340>20%,\"Dry Digestion\",IF($G340<10%,\"Wet Digestion\",\"Semi-Dry Digestion\"))","v":"Dry Digestion"}]
["Eaux usées","My Restaurant Wastewater",{"$f":"A341&\" \"&B341","v":"Eaux usées My Restaurant Wastewater"},50,350,0.68,0.8,{"$f":"IF($G341>20%,\"Dry Digestion\",IF($G341<10%,\"Wet Digestion\",\"Semi-Dry Digestion\"))","v":"Dry Digestion"}]

{"sheet":"Start","index":5,"n_rows":35,"n_cols":5,"rows_kept":35,"cut":false,"hidden":false,"merged":[[29,2,29,3],[30,2,33,13],[34,2,34,3],[2,4,5,13]]}
[]
[]
[null,null,null,null,{"$f":"title2","v":"RAPID APPRAISAL TOOL FOR BIOGAS PRODUCTION INDUSTRIAL SCALE"}]
[]
[]
[]
[]
[]
[null,null,"EN"]
[]
[]
[]
[]
[]
[]
[]
[]
[]
[]
[]
[]
[]
[]
[]
[]
[]
[]
[]
[]
[null,null,{"$f":"title3","v":"Disclaimer "}]
[null,null,{"$f":"title4","v":"FAO declines all responsibility for errors or deficiencies in the database or software or in the documentation accompanying it, for program maintenance and upgrading as well as for any damage that may arise from them.  FAO also declines any responsibility for updating the data and assumes no responsibility for errors and omissions in the data provided. Users are, however, kindly asked to report any errors or deficiencies in this product to FAO.  The choices of calculation made in this tool are those of the author(s) and do not necessarily reflect the views and choices of the Food and Agriculture Organization of the United Nations."}]
[]
[]
[]
[null,null,"© FAO, 2016"]

{"sheet":"Biogas Use Selection","index":6,"n_rows":111,"n_cols":31,"rows_kept":111,"cut":false,"hidden":false,"merged":[[57,2,57,3],[5,5,5,7],[52,4,52,5],[2,2,2,9],[10,4,10,5],[29,4,29,5],[56,2,56,3],[44,4,44,5],[34,7,34,8],[36,7,37,9],[56,6,56,9]]}
[]
[]
[null,null,"FINAL USE OF BIOGAS SELECTOR"]
[]
[]
[null,null,{"$f":"title6","v":"Select a final use for biogas produced"},null,null,"Heat and Electricity"]
[]
[null,null,{"$f":"title7","v":"Option 1: Heat and Electricity"}]
[]
[null,null,{"$f":"title8","v":"Heat Consumption per Household"},null,null,null,null,{"$f":"title26","v":"Energy Consumption per Industry"}]
[null,null,null,{"$f":"title17","v":"Price"},{"$f":"title18","v":"Consumption"},null,null,null,{"$f":"title17","v":"Price"},{"$f":"title18","v":"Consumption"}]
[null,null,null,{"$f":"title19","v":"USD/unit/hh"},{"$f":"title20","v":"unit/day/hh"},{"$f":"title21","v":"unit/year/hh"},null,null,{"$f":"title24","v":"USD/unit"},{"$f":"title25","v":"unit/year/ind"},null,null,null,null,{"$f":"title49","v":"MJ/year/hh"},{"$f":"title50","v":"USD/year/hh"},null,null,{"$f":"title50","v":"USD/year/hh"}]
[null,null,{"$f":"title9","v":"Briquettes (kg)"},null,null,{"$f":"E13*365","v":0},null,{"$f":"title22","v":"Heat (GJ)"},null,null,null,null,null,{"$f":"title9","v":"Briquettes (kg)"},{"$f":"$F13*$AD77","v":0},{"$f":"D13*F13","v":0},null,{"$f":"title51","v":"Heat"},{"$f":"I13*J13","v":0}]
[null,null,{"$f":"title10","v":"Pellets (kg)"},null,null,{"$f":"E14*365","v":0},null,{"$f":"title23","v":"Electricity (kWh)"},null,null,null,null,null,{"$f":"title10","v":"Pellets (kg)"},{"$f":"$F14*$AD78","v":0},{"$f":"D14*F14","v":0},null,{"$f":"title35","v":"Electricity"},{"$f":"I14*J14","v":0}]
[null,null,{"$f":"title11","v":"Charcoal (kg)"},null,null,0,null,null,null,null,null,null,null,{"$f":"title11","v":"Charcoal (kg)"},0,{"$f":"D15*F15","v":0}]
[null,null,{"$f":"title12","v":"Coal (kg)"},null,null,0,null,null,null,null,null,null,null,{"$f":"title12","v":"Coal (kg)"},0,0]
[null,null,{"$f":"title13","v":"Fuelwood (kg)"},null,null,0,null,null,null,null,null,null,null,{"$f":"title13","v":"Fuelwood (kg)"},0,0]
[null,null,{"$f":"title14","v":"Kerosene (l)"},null,null,0,null,null,null,null,null,null,null,{"$f":"title14","v":"Kerosene (l)"},0,0]
[null,null,{"$f":"title15","v":"LPG (l)"},null,null,0,null,null,null,null,null,null,null,{"$f":"title15","v":"LPG (l)"},0,0]
[null,null,{"$f":"title16","v":"Natural Gas (m3)"},null,null,0,null,null,null,null,null,null,null,{"$f":"title16","v":"Natural Gas (m3)"},0,0]
[]
[null,null,{"$f":"title28","v":"Electricity Consumption per Household"}]
[null,null,null,{"$f":"title17","v":"Price"},{"$f":"title18","v":"Consumption"},null,null,null,null,null,null,null,{"$f":"title52","v":"Households"},{"$f":"title51","v":"Heat"},{"$f":"SUM(O13:O21)","v":0},{"$f":"title49","v":"MJ/year/hh"},{"$f":"title55","v":"Industries"},{"$f":"title51","v":"Heat"},{"$f":"J13*1000","v":0},{"$f":"title49","v":"MJ/year/hh"}]
[null,null,null,{"$f":"title19","v":"USD/unit/hh"},{"$f":"title29","v":"unit/month/hh"},{"$f":"title21","v":"unit/year/hh"},null,null,null,null,null,null,null,{"$f":"title35","v":"Electricity"},{"$f":"F25","v":0},{"$f":"title37","v":"kWh/year/hh"},null,{"$f":"title35","v":"Electricity"},{"$f":"J14","v":0},{"$f":"title39","v":"kWh/year/ind"}]
[null,null,{"$f":"title23","v":"Electricity (kWh)"},null,null,{"$f":"E25*12","v":0},null,null,null,null,null,null,null,{"$f":"title53","v":"Expenditure Heat"},{"$f":"SUM(P13:P20)","v":0},{"$f":"title50","v":"USD/year/hh"},null,{"$f":"title56","v":"Expenditure"},{"$f":"SUM(S13)","v":0},{"$f":"title50","v":"USD/year/hh"}]
[null,null,null,null,null,null,null,null,null,null,null,null,null,{"$f":"title54","v":"Expenditure Electricity"},{"$f":"+D25*F25","v":0},{"$f":"title50","v":"USD/year/hh"},null,{"$f":"title54","v":"Expenditure Electricity"},{"$f":"+I14*J14","v":0}]
[null,null,{"$f":"title30","v":"Option 2: Heating and/or cooking"}]
[null,null,null,null,null,null,null,null,null,null,null,null,null,null,{"$f":"title52","v":"Households"},null,null,null,null,{"$f":"title61","v":"Industrial"}]
[null,null,{"$f":"title8","v":"Heat Consumption per Household"},null,null,null,null,{"$f":"title31","v":"Heat Consumption per Industry"},null,null,null,null,null,null,{"$f":"title58","v":"unit fuel/m3 biogas"},{"$f":"title59","v":"m3 biogas/year/hh"},{"$f":"title50","v":"USD/year/hh"},null,null,{"$f":"title62","v":"m3 biogas/day/ind"},{"$f":"title50","v":"USD/year/hh"}]
[null,null," ",{"$f":"title17","v":"Price"},{"$f":"title18","v":"Consumption"},null,null,null,{"$f":"title17","v":"Price"},{"$f":"title18","v":"Consumption"},null,null,null,{"$f":"title9","v":"Briquettes (kg)"},{"$f":"+$AE77","v":1.2891427982966857},{"$f":"F32/O30","v":0},{"$f":"D32*F32","v":0},{"$f":"title60","v":"Heat (MJ)"},null,{"$f":"J32*1000/$AD$76","v":0},{"$f":"I32*J32","v":0}]
[null,null,null,{"$f":"title19","v":"USD/unit/hh"},{"$f":"title20","v":"unit/day/hh"},{"$f":"title21","v":"unit/year/hh"},null,null,"USD/GJ",{"$f":"title32","v":"GJ/year/ind"},null,null,null,{"$f":"title10","v":"Pellets (kg)"},{"$f":"+$AE78","v":1.2891427982966857},{"$f":"F34/O31","v":0},{"$f":"D34*F34","v":0}]
[null,null,{"$f":"title9","v":"Briquettes (kg)"},null,null,{"$f":"E32*365","v":0},null,{"$f":"title22","v":"Heat (GJ)"},null,null,null,null,null,{"$f":"title11","v":"Charcoal (kg)"},0.66536402492732161,{"$f":"F35/O32","v":0},{"$f":"D35*F35","v":0}]
[null,null,{"$f":"title10","v":"Pellets (kg)"},null,null,0,null,null,null,null,null,null,null,{"$f":"title12","v":"Coal (kg)"},0.80102076787366872]
[null,null,{"$f":"title11","v":"Charcoal (kg)"},null,null,0,null,null,null,{"$f":"IF($J$35=title75,TRUE,FALSE)","v":true},null,null,null,{"$f":"title13","v":"Fuelwood (kg)"},1.0313142386373486,{"$f":"F36/O34","v":0},{"$f":"D36*F36","v":0}]
[null,null,{"$f":"title12","v":"Coal (kg)"},null,null,0,null,{"$f":"title33","v":"Include Biogas Distribution"},null,"Yes",null,null,null,{"$f":"title14","v":"Kerosene (l)"},0.59339139162102894,0,0]
[null,null,{"$f":"title13","v":"Fuelwood (kg)"},null,null,0,null,null,null,null,null,null,null,{"$f":"title15","v":"LPG (l)"},0.83608774919930962,0,0]
[null,null,{"$f":"title14","v":"Kerosene (l)"},null,null,0,null,{"$f":"IF(J34=TRUE,title698&\" \"&ROUND(biogas_range1,0)&\" (USD/hh)\",title699)","v":"Now, the biogas distribution cost is included using a proxy of  53 (USD/hh)"},null,null,null,null,null,{"$f":"title16","v":"Natural Gas (m3)"},0.58564124851638188,0,0]
[null,null,{"$f":"title15","v":"LPG (l)"},null,null,0,null,null,null,null,null,null,null,{"$f":"title52","v":"Households"},null,null,null,{"$f":"title55","v":"Industries"}]
[null,null,{"$f":"title16","v":"Natural Gas (m3)"},null,null,0,null,null,null,null,null,null,null,{"$f":"title57","v":"m3 biogas"},{"$f":"SUM(P30:P37)","v":0},{"$f":"title59","v":"m3 biogas/year/hh"},null,{"$f":"title57","v":"m3 biogas"},{"$f":"$T$30","v":0},{"$f":"title63","v":"m3 biogas/year/ind"}]
[null,null,null,null,null,null,null,null,null,null,null,null,null,{"$f":"title56","v":"Expenditure"},{"$f":"SUM(Q30:Q37)","v":0},{"$f":"title50","v":"USD/year/hh"},null,{"$f":"title56","v":"Expenditure"},{"$f":"SUM(U30:U37)","v":0},{"$f":"title50","v":"USD/year/hh"}]
[]
[null,null,{"$f":"title34","v":"Option 3: Electricity Only"}]
[]
[null,null,{"$f":"title28","v":"Electricity Consumption per Household"},null,null,null,null,{"$f":"title38","v":"Electricity Consumption per Industry"}]
[null,null," ",{"$f":"title17","v":"Price"},{"$f":"title18","v":"Consumption"},null,null,null,{"$f":"title17","v":"Price"},{"$f":"title18","v":"Consumption"}]
[null,null,null,"USD/kWh",{"$f":"title36","v":"kWh/month/hh"},{"$f":"title37","v":"kWh/year/hh"},null,null,"USD/kWh",{"$f":"title39","v":"kWh/year/ind"}]
[null,null,{"$f":"title35","v":"Electricity"},null,null,{"$f":"E47*12","v":0},null,{"$f":"title23","v":"Electricity (kWh)"}]
[]
[]
[null,null,{"$f":"title40","v":"Option 4: Connection to natural gas line"}]
[]
[null,null,{"$f":"title41","v":"Natural Gas Consumption per Household"},null,null,null,null,{"$f":"title46","v":"Natural Gas Consumption per Industry"}]
[null,null," ",{"$f":"title17","v":"Price"},{"$f":"title18","v":"Consumption"},null,null,null,{"$f":"title17","v":"Price"},{"$f":"title18","v":"Consumption"}]
[null,null,null,"USD/m3",{"$f":"title42","v":"m3/day/hh"},{"$f":"title43","v":"m3/year/hh"},null,null,"USD/m3",{"$f":"title48","v":"m3/year/ind"}]
[null,null,{"$f":"title16","v":"Natural Gas (m3)"},null,null,{"$f":"E55*365","v":0},null,{"$f":"title47","v":"Natural Gas"}]
[null,null,null,null,{"$f":"IF($E$57=title75,TRUE,FALSE)","v":true}]
[null,null,{"$f":"title44","v":"Include biomethane transportation to connection point"},null,"Yes",{"$f":"IF($E$57=\"no\",TRUE,FALSE)","v":false},{"$f":"IF(E56=TRUE,title700&\" \"&ROUND(biogas_range2,0)&\" (USD/hh)\",title701)","v":"Now, the biomethane transportation to connection point is included using a proxy of  109 (USD/hh)"}]
[null,null,{"$f":"title45","v":"Distance biogas plant to connection point (km)"}]
[]
[]
[]
[]
[]
[]
[]
[]
[null,null,null,null,null,null,null,null,null,null,null,null,null,null,{"$f":"title64","v":"Selection"},{"$f":"VLOOKUP($Q$67,O71:$P$75,2,FALSE)","v":1},{"$f":"F6","v":"Heat and Electricity"},null,null,null,null,null,null,null,null,null,null,null,{"$f":"title74","v":"Please Select"},null,{"$f":"title75","v":"Yes"}]
[null,null,null,null,null,null,null,null,null,null,null,null,null,null,1,2,3,4,5,6,7,null,8,9,10,11,12,null,{"$f":"title65","v":"Heat and Electricity"},null,"No"]
[null,null,null,null,null,null,null,null,null,null,null,null,null,null,null,null,{"$f":"title52","v":"Households"},null,null,null,{"$f":"title71","v":"Expenditure (USD/YEAR/HH)"},{"$f":"title71","v":"Expenditure (USD/YEAR/HH)"},{"$f":"title55","v":"Industries"},null,null,null,{"$f":"title73","v":"Expernditure (USD/YEAR/ind)"},{"$f":"title73","v":"Expernditure (USD/YEAR/ind)"},{"$f":"title66","v":"Heating and/or Cooking"}]
[null,null,null,null,null,null,null,null,null,null,null,null,null,null,null,null,{"$f":"title51","v":"Heat"},{"$f":"title27","v":"Unit"},{"$f":"title35","v":"Electricity"},{"$f":"title27","v":"Unit"},{"$f":"title51","v":"Heat"},{"$f":"title35","v":"Electricity"},{"$f":"title51","v":"Heat"},{"$f":"title27","v":"Unit"},{"$f":"title35","v":"Electricity"},{"$f":"title27","v":"Unit"},{"$f":"title51","v":"Heat"},{"$f":"title35","v":"Electricity"},{"$f":"title67","v":"Electricity Only"}]
[null,null,null,null,null,null,null,null,null,null,null,null,null,null,{"$f":"title65","v":"Heat and Electricity"},1,{"$f":"O23","v":0},{"$f":"P23","v":"MJ/year/hh"},{"$f":"O24","v":0},{"$f":"P24","v":"kWh/year/hh"},{"$f":"O25","v":0},{"$f":"O26","v":0},{"$f":"S23","v":0},{"$f":"T23","v":"MJ/year/hh"},{"$f":"S24","v":0},{"$f":"T24","v":"kWh/year/ind"},{"$f":"S25","v":0},{"$f":"S26","v":0},{"$f":"title68","v":"Connection to natural gas line"}]
[null,null,null,null,null,null,null,null,null,null,null,null,null,null,{"$f":"title66","v":"Heating and/or Cooking"},2,{"$f":"O39","v":0},{"$f":"P39","v":"m3 biogas/year/hh"},null,null,{"$f":"O40","v":0},null,{"$f":"S39","v":0},{"$f":"T39","v":"m3 biogas/year/ind"},null,null,{"$f":"S40","v":0}]
[null,null,null,null,null,null,null,null,null,null,null,null,null,null,{"$f":"title67","v":"Electricity Only"},3,null,null,{"$f":"$F$47","v":0},{"$f":"title37","v":"kWh/year/hh"},null,{"$f":"D47*F47","v":0},null,null,{"$f":"$J$47","v":0},{"$f":"title39","v":"kWh/year/ind"},null,{"$f":"I47*J47","v":0}]
[null,null,null,null,null,null,null,null,null,null,null,null,null,null,{"$f":"title68","v":"Connection to natural gas line"},4,{"$f":"$F$55","v":0},{"$f":"title70","v":"m3 methane/year/hh"},null,null,{"$f":"D55*F55","v":0},null,{"$f":"J55","v":0},{"$f":"title72","v":"m3 methane/year/ind"},null,null,{"$f":"I55*J55","v":0},null,"http://wogone.com/science/the_energy_and_fuel_data_sheet.pdf"]
[null,null,null,null,null,null,null,null,null,null,null,null,null,null,{"$f":"title69","v":"Injection Fuel Grid"},5,null,null,null,null,null,null,null,null,null,null,null,null,{"$f":"title76","v":"Fuel"},{"$f":"title77","v":"CV (MJ/unit)"},{"$f":"title78","v":"Unit/m3 BIOGAS"}]
[null,null,null,null,null,null,null,null,null,null,null,null,null,null,null,null,null,null,null,null,null,null,null,null,null,null,null,null,{"$f":"title79","v":"Biogas (m3)"},{"$f":"17.0465163411132*$AD$86","v":20.62628477274697}]
[null,null,null,null,null,null,null,null,null,null,null,null,null,null,null,null,null,null,null,null,null,null,null,null,null,null,null,null,{"$f":"title9","v":"Briquettes (kg)"},16,{"$f":"$AD$76/AD77","v":1.2891427982966857}]
[null,null,null,null,null,null,null,null,null,null,null,null,null,null,null,null,null,null,null,null,null,null,null,null,null,null,null,null,{"$f":"title10","v":"Pellets (kg)"},16,{"$f":"$AD$76/AD78","v":1.2891427982966857}]
[null,null,null,null,null,null,null,null,null,null,null,null,null,null,null,null,null,null,null,null,null,null,null,null,null,null,null,null,{"$f":"title11","v":"Charcoal (kg)"},31,{"$f":"$AD$76/AD79","v":0.66536402492732161}]
[null,null,null,null,null,null,null,null,null,null,null,null,null,null,null,null,null,null,null,null,null,null,null,null,null,null,null,null,{"$f":"title12","v":"Coal (kg)"},25.75,0.80102076787366872]
[null,null,null,null,null,null,null,null,null,null,null,null,null,null,null,null,null,null,null,null,null,null,null,null,null,null,null,null,{"$f":"title13","v":"Fuelwood (kg)"},20,1.0313142386373486]
[null,null,null,null,null,null,null,null,null,null,null,null,null,null,null,null,null,null,null,null,null,null,null,null,null,null,null,null,{"$f":"title14","v":"Kerosene (l)"},{"$f":"44*0.79","v":34.760000000000005},0.59339139162102894]
[null,null,null,null,null,null,null,null,null,null,null,null,null,null,null,null,null,null,null,null,null,null,null,null,null,null,null,null,{"$f":"title15","v":"LPG (l)"},24.67,0.83608774919930962]
[null,null,null,null,null,null,null,null,null,null,null,null,null,null,null,null,null,null,null,null,null,null,null,null,null,null,null,null,{"$f":"title16","v":"Natural Gas (m3)"},35.22,0.58564124851638188]
[]
[null,null,null,null,null,null,null,null,null,null,null,null,null,null,null,null,null,null,null,null,null,null,null,null,null,null,null,null,{"$f":"title80","v":"Biogas Density"},1.21,{"$f":"title81","v":"Kg biogas/m3"}]
[]
[]
[]
[]
[]
[]
[]
[]
[]
[]
[]
[]
[]
[]
[]
[]
[]
[]
[]
[]
[]
[]
[]
[]
[null,null,null,null,null,{"$f":"title74","v":"Please Select"}]

{"sheet":"Biogas Process Description","index":7,"n_rows":7,"n_cols":3,"rows_kept":7,"cut":false,"hidden":false,"merged":[[3,2,3,43]]}
[]
[]
[]
[null,null,{"$f":"UPPER(label2)","v":"BIOGAS PROCESS DESCRIPTION"}]
[]
[]
[null,null,{"$f":"title82&'Biogas Use Selection'!$F$6","v":"Final Use Selected : Heat and Electricity"}]

{"sheet":"Data entry needs","index":8,"n_rows":370,"n_cols":76,"rows_kept":370,"cut":false,"hidden":false,"merged":[[126,49,126,54],[126,31,126,36],[126,37,126,42],[126,43,126,48],[71,2,86,2],[71,3,72,3],[71,6,71,9],[71,10,71,11],[72,6,72,7],[72,8,72,9],[95,6,96,6],[95,12,96,12],[109,5,109,6],[53,2,68,2],[53,3,54,3],[53,6,53,9],[53,10,53,11],[54,6,54,7],[54,8,54,9],[35,2,50,2],[35,3,36,3],[35,6,35,9],[35,10,35,11],[36,6,36,7],[36,8,36,9],[2,2,2,12],[12,9,13,12],[11,9,11,12],[11,5,11,8],[5,5,5,8],[5,9,5,12],[17,10,17,11],[12,3,13,4],[11,3,11,4],[12,5,13,8],[9,11,9,12],[9,9,9,10],[9,7,9,8],[9,5,9,6],[9,2,9,4],[17,2,32,2],[11,2,13,2],[17,3,18,3],[18,6,18,7],[18,8,18,9],[17,6,17,9]]}
[]
[]
[null,null,{"$f":"title95","v":"DATA ENTRY FOR BIOGAS PRODUCTION - INDUSTRIAL SCALE"}]
[]
[null,null,null,null,null,null,null,"Please Select Please Select"]
[null,null,null,null,null,{"$f":"title193","v":"Use white cells to input data"},null,null,null,{"$f":"title194","v":"Grey cells are used for calculations"}]
[]
[null,null,{"$f":"title96","v":"Processes to analyze and Operation Mode Selection"}]
[]
[null,null,{"$f":"title97","v":"Include processes to compare"},null,null,true,null,true,null,true,null,true]
[null,null,null,{"$f":"IF($BP$125=1,TRUE,FALSE)","v":false},null,{"$f":"IF($BP$125=2,TRUE,FALSE)","v":false},null,null,null,{"$f":"IF($BP$125=3,TRUE,FALSE)","v":true}]
[null,null,{"$f":"title105","v":"Operation Mode"},{"$f":"title99","v":"Single Feedstock"},null,{"$f":"title100","v":"Multi-Feedstock"},null,null,null,{"$f":"title101","v":"Optimized Co-digestion"}]
[null,null,null,{"$f":"title102","v":"One single feedstock is used throughout the year"},null,{"$f":"title103","v":"Up to 5 feedstock options can be used throughout the year. But only one option can be allocated to each month."},null,null,null,{"$f":"title104","v":"Up to 5 feedstock options can be used throughout the year, plus 1 main co-digestion feedstock. All combinations are accepted. Use of manure or wastewater as co-digestion feedstock is required."}]
[]
[]
[null,null,{"$f":"title106","v":"Feedstock Availability and Cost"}]
[]
[null,null,{"$f":"title98&\" 1\"","v":"Process 1"},{"$f":"title107","v":"Main Feedstocks"},null,null,{"$f":"title117","v":"Biogas potential"},null,null,null,{"$f":"title118","v":"Feedstock Price"}]
[null,null,null,null,null,null,false,null,null,null,true]
[null,null,null,{"$f":"title108","v":"Main Category"},{"$f":"title109","v":"Feedstock"},{"$f":"title110","v":"Feedstock Available (t/year)"},{"$f":"IF($D21=title192,\"COD (g/l)\",\"VS (%)\")","v":"VS (%)"},{"$f":"IF($D21=title192,\"COD Deg. (%)\",\"TS (%)\")","v":"TS (%)"},{"$f":"IF($D21=title192,\"BMP (m3/t COD)\",\"BMP (m3/t VS)\")","v":"BMP (m3/t VS)"},"CH4 (%)",{"$f":"title115","v":"Price (USD/t)"},null,{"$f":"title116","v":"Storage Cost (USD/t)"}]
[null,{"$f":"ROW(D21)","v":21},null,"Please Select","Please Select",null,{"$f":"BJ129","v":0},{"$f":"BK129","v":0},{"$f":"BL129","v":0},{"$f":"BM129","v":0},null,{"$f":"IF(OR($D21=title119,$D21=title120),TRUE,FALSE)","v":false}]
[null,null,null,{"$f":"title108","v":"Main Category"},{"$f":"title109","v":"Feedstock"},{"$f":"title110","v":"Feedstock Available (t/year)"},{"$f":"IF($D23=title192,\"COD (g/l)\",\"VS (%)\")","v":"VS (%)"},{"$f":"IF($D23=title192,\"COD Deg. (%)\",\"TS (%)\")","v":"TS (%)"},{"$f":"IF($D23=title192,\"BMP (m3/t COD)\",\"BMP (m3/t VS)\")","v":"BMP (m3/t VS)"},"CH4 (%)",null,null,{"$f":"title116","v":"Storage Cost (USD/t)"}]
[null,{"$f":"ROW(D23)","v":23},null,"Please Select","Please Select",null,{"$f":"BJ131","v":0},{"$f":"BK131","v":0},{"$f":"BL131","v":0},{"$f":"BM131","v":0},null,{"$f":"IF(OR($D23=title119,$D23=title120),TRUE,FALSE)","v":false}]
[null,null,null,{"$f":"title108","v":"Main Category"},{"$f":"title109","v":"Feedstock"},{"$f":"title110","v":"Feedstock Available (t/year)"},{"$f":"IF($D25=title192,\"COD (g/l)\",\"VS (%)\")","v":"VS (%)"},{"$f":"IF($D25=title192,\"COD Deg. (%)\",\"TS (%)\")","v":"TS (%)"},{"$f":"IF($D25=title192,\"BMP (m3/t COD)\",\"BMP (m3/t VS)\")","v":"BMP (m3/t VS)"},"CH4 (%)",null,null,{"$f":"title116","v":"Storage Cost (USD/t)"}]
[null,{"$f":"ROW(D25)","v":25},null,"Please Select","Please Select",null,{"$f":"BJ133","v":0},{"$f":"BK133","v":0},{"$f":"BL133","v":0},{"$f":"BM133","v":0},null,{"$f":"IF(OR($D25=title119,$D25=title120),TRUE,FALSE)","v":false}]
[null,null,null,{"$f":"title108","v":"Main Category"},{"$f":"title109","v":"Feedstock"},{"$f":"title110","v":"Feedstock Available (t/year)"},{"$f":"IF($D27=title192,\"COD (g/l)\",\"VS (%)\")","v":"VS (%)"},{"$f":"IF($D27=title192,\"COD Deg. (%)\",\"TS (%)\")","v":"TS (%)"},{"$f":"IF($D27=title192,\"BMP (m3/t COD)\",\"BMP (m3/t VS)\")","v":"BMP (m3/t VS)"},"CH4 (%)",null,null,{"$f":"title116","v":"Storage Cost (USD/t)"}]
[null,{"$f":"ROW(D27)","v":27},null,"Please Select","Please Select",null,{"$f":"BJ135","v":0},{"$f":"BK135","v":0},{"$f":"BL135","v":0},{"$f":"BM135","v":0},null,{"$f":"IF(OR($D27=title119,$D27=title120),TRUE,FALSE)","v":false}]
[null,null,null,{"$f":"title108","v":"Main Category"},{"$f":"title109","v":"Feedstock"},{"$f":"title110","v":"Feedstock Available (t/year)"},{"$f":"IF($D29=title192,\"COD (g/l)\",\"VS (%)\")","v":"VS (%)"},{"$f":"IF($D29=title192,\"COD Deg. (%)\",\"TS (%)\")","v":"TS (%)"},{"$f":"IF($D29=title192,\"BMP (m3/t COD)\",\"BMP (m3/t VS)\")","v":"BMP (m3/t VS)"},"CH4 (%)",null,null,{"$f":"title116","v":"Storage Cost (USD/t)"}]
[null,{"$f":"ROW(D29)","v":29},null,"Please Select","Please Select",null,{"$f":"BJ137","v":0},{"$f":"BK137","v":0},{"$f":"BL137","v":0},{"$f":"BM137","v":0},null,{"$f":"IF(OR($D29=title119,$D29=title120),TRUE,FALSE)","v":false}]
[]
[null,null,null,{"$f":"title219","v":"Codigestion Feedstock"},"Codigestion Fs to Main Fs ratio :",50,{"$f":"$F$31/100","v":0.5}]
[null,null,null,{"$f":"title108","v":"Main Category"},{"$f":"title109","v":"Feedstock"},"Feedstock Required for Codigestion (t/yr)",{"$f":"IF($D33=title192,\"COD (g/l)\",\"VS (%)\")","v":"VS (%)"},{"$f":"IF($D33=title192,\"COD Deg. (%)\",\"TS (%)\")","v":"TS (%)"},{"$f":"IF($D33=title192,\"BMP (m3/t COD)\",\"BMP (m3/t VS)\")","v":"BMP (m3/t VS)"},"CH4 (%)",{"$f":"title115","v":"Price (USD/t)"},null,{"$f":"title116","v":"Storage Cost (USD/t)"}]
[null,{"$f":"ROW(D33)","v":33},null,"Please Select","Please Select",{"$f":"IF(D33=title74,0,F21+F23+F25+F27+F29)*G31/(1-G31)","v":0},{"$f":"BJ139","v":0},{"$f":"BK139","v":0},{"$f":"BL139","v":0},{"$f":"BM139","v":0},null,{"$f":"IF(OR($D33=title119,$D33=title120),TRUE,FALSE)","v":false}]
[null,null,null,"* VS = Volatile Solids, TS = Total Solids, COD =Chemical Oxygen Demand, BMP = Biomethane Potential, CH4 = Methane"]
[]
[null,null,{"$f":"title98&\" 2\"","v":"Process 2"},{"$f":"title107","v":"Main Feedstocks"},null,null,{"$f":"title117","v":"Biogas potential"},null,null,null,{"$f":"title118","v":"Feedstock Price"}]
[null,null,null,null,null,null,false,null,null,null,true]
[null,null,null,{"$f":"title108","v":"Main Category"},{"$f":"title109","v":"Feedstock"},{"$f":"title110","v":"Feedstock Available (t/year)"},{"$f":"IF($D39=title192,\"COD (g/l)\",\"VS (%)\")","v":"VS (%)"},{"$f":"IF($D39=title192,\"COD Deg. (%)\",\"TS (%)\")","v":"TS (%)"},{"$f":"IF($D39=title192,\"BMP (m3/t COD)\",\"BMP (m3/t VS)\")","v":"BMP (m3/t VS)"},"CH4 (%)",{"$f":"title115","v":"Price (USD/t)"},null,{"$f":"title116","v":"Storage Cost (USD/t)"}]
[null,{"$f":"ROW(D39)","v":39},null,"Please Select","Please Select",null,{"$f":"BJ142","v":0},{"$f":"BK142","v":0},{"$f":"BL142","v":0},{"$f":"BM142","v":0},null,{"$f":"IF(OR($D39=title119,$D39=title120),TRUE,FALSE)","v":false}]
[null,null,null,{"$f":"title108","v":"Main Category"},{"$f":"title109","v":"Feedstock"},{"$f":"title110","v":"Feedstock Available (t/year)"},{"$f":"IF($D41=title192,\"COD (g/l)\",\"VS (%)\")","v":"VS (%)"},{"$f":"IF($D41=title192,\"COD Deg. (%)\",\"TS (%)\")","v":"TS (%)"},{"$f":"IF($D41=title192,\"BMP (m3/t COD)\",\"BMP (m3/t VS)\")","v":"BMP (m3/t VS)"},"CH4 (%)",null,null,{"$f":"title116","v":"Storage Cost (USD/t)"}]
[null,{"$f":"ROW(D41)","v":41},null,"Please Select","Please Select",null,{"$f":"BJ144","v":0},{"$f":"BK144","v":0},{"$f":"BL144","v":0},{"$f":"BM144","v":0},null,{"$f":"IF(OR($D41=title119,$D41=title120),TRUE,FALSE)","v":false}]
[null,null,null,{"$f":"title108","v":"Main Category"},{"$f":"title109","v":"Feedstock"},{"$f":"title110","v":"Feedstock Available (t/year)"},{"$f":"IF($D43=title192,\"COD (g/l)\",\"VS (%)\")","v":"VS (%)"},{"$f":"IF($D43=title192,\"COD Deg. (%)\",\"TS (%)\")","v":"TS (%)"},{"$f":"IF($D43=title192,\"BMP (m3/t COD)\",\"BMP (m3/t VS)\")","v":"BMP (m3/t VS)"},"CH4 (%)",null,null,{"$f":"title116","v":"Storage Cost (USD/t)"}]
[null,{"$f":"ROW(D43)","v":43},null,"Please Select","Please Select",null,{"$f":"BJ146","v":0},{"$f":"BK146","v":0},{"$f":"BL146","v":0},{"$f":"BM146","v":0},null,{"$f":"IF(OR($D43=title119,$D43=title120),TRUE,FALSE)","v":false}]
[null,null,null,{"$f":"title108","v":"Main Category"},{"$f":"title109","v":"Feedstock"},{"$f":"title110","v":"Feedstock Available (t/year)"},{"$f":"IF($D45=title192,\"COD (g/l)\",\"VS (%)\")","v":"VS (%)"},{"$f":"IF($D45=title192,\"COD Deg. (%)\",\"TS (%)\")","v":"TS (%)"},{"$f":"IF($D45=title192,\"BMP (m3/t COD)\",\"BMP (m3/t VS)\")","v":"BMP (m3/t VS)"},"CH4 (%)",null,null,{"$f":"title116","v":"Storage Cost (USD/t)"}]
[null,{"$f":"ROW(D45)","v":45},null,"Please Select","Please Select",null,{"$f":"BJ148","v":0},{"$f":"BK148","v":0},{"$f":"BL148","v":0},{"$f":"BM148","v":0},null,{"$f":"IF(OR($D45=title119,$D45=title120),TRUE,FALSE)","v":false}]
[null,null,null,{"$f":"title108","v":"Main Category"},{"$f":"title109","v":"Feedstock"},{"$f":"title110","v":"Feedstock Available (t/year)"},{"$f":"IF($D47=title192,\"COD (g/l)\",\"VS (%)\")","v":"VS (%)"},{"$f":"IF($D47=title192,\"COD Deg. (%)\",\"TS (%)\")","v":"TS (%)"},{"$f":"IF($D47=title192,\"BMP (m3/t COD)\",\"BMP (m3/t VS)\")","v":"BMP (m3/t VS)"},"CH4 (%)",null,null,{"$f":"title116","v":"Storage Cost (USD/t)"}]
[null,{"$f":"ROW(D47)","v":47},null,"Please Select","Please Select",null,{"$f":"BJ150","v":0},{"$f":"BK150","v":0},{"$f":"BL150","v":0},{"$f":"BM150","v":0},null,{"$f":"IF(OR($D47=title119,$D47=title120),TRUE,FALSE)","v":false}]
[]
[null,null,null,{"$f":"title219","v":"Codigestion Feedstock"},{"$f":"title220","v":"Codigestion Fs to Main Fs ratio"},50,{"$f":"$F49/100","v":0.5}]
[null,null,null,{"$f":"title108","v":"Main Category"},{"$f":"title109","v":"Feedstock"},"Feedstock Required for Codigestion (t/yr)",{"$f":"IF($D51=title192,\"COD (g/l)\",\"VS (%)\")","v":"VS (%)"},{"$f":"IF($D51=title192,\"COD Deg. (%)\",\"TS (%)\")","v":"TS (%)"},{"$f":"IF($D51=title192,\"BMP (m3/t COD)\",\"BMP (m3/t VS)\")","v":"BMP (m3/t VS)"},"CH4 (%)",{"$f":"title115","v":"Price (USD/t)"},null,{"$f":"title116","v":"Storage Cost (USD/t)"}]
[null,{"$f":"ROW(D51)","v":51},null,"Please Select","Please Select",{"$f":"IF(D51=title74,0,F39+F41+F43+F45+F47)*G49/(1-G49)","v":0},{"$f":"BJ152","v":0},{"$f":"BK152","v":0},{"$f":"BL152","v":0},{"$f":"BM152","v":0},null,{"$f":"IF(OR($D51=title119,$D51=title120),TRUE,FALSE)","v":false}]
[null,null,null,"* VS = Volatile Solids, TS = Total Solids, COD =Chemical Oxygen Demand, BMP = Biomethane Potential, CH4 = Methane"]
[]
[null,null,{"$f":"title98&\" 3\"","v":"Process 3"},{"$f":"title107","v":"Main Feedstocks"},null,null,{"$f":"title117","v":"Biogas potential"},null,null,null,{"$f":"title118","v":"Feedstock Price"}]
[null,null,null,null,null,null,false,null,null,null,true]
[null,null,null,{"$f":"title108","v":"Main Category"},{"$f":"title109","v":"Feedstock"},{"$f":"title110","v":"Feedstock Available (t/year)"},{"$f":"IF($D57=title192,\"COD (g/l)\",\"VS (%)\")","v":"VS (%)"},{"$f":"IF($D57=title192,\"COD Deg. (%)\",\"TS (%)\")","v":"TS (%)"},{"$f":"IF($D57=title192,\"BMP (m3/t COD)\",\"BMP (m3/t VS)\")","v":"BMP (m3/t VS)"},"CH4 (%)",{"$f":"title115","v":"Price (USD/t)"},null,{"$f":"title116","v":"Storage Cost (USD/t)"}]
[null,{"$f":"ROW(D57)","v":57},null,"Please Select","Please Select",null,{"$f":"BJ155","v":0},{"$f":"BK155","v":0},{"$f":"BL155","v":0},{"$f":"BM155","v":0},null,{"$f":"IF(OR($D57=title119,$D57=title120),TRUE,FALSE)","v":false}]
[null,null,null,{"$f":"title108","v":"Main Category"},{"$f":"title109","v":"Feedstock"},{"$f":"title110","v":"Feedstock Available (t/year)"},{"$f":"IF($D59=title192,\"COD (g/l)\",\"VS (%)\")","v":"VS (%)"},{"$f":"IF($D59=title192,\"COD Deg. (%)\",\"TS (%)\")","v":"TS (%)"},{"$f":"IF($D59=title192,\"BMP (m3/t COD)\",\"BMP (m3/t VS)\")","v":"BMP (m3/t VS)"},"CH4 (%)",null,null,{"$f":"title116","v":"Storage Cost (USD/t)"}]
[null,{"$f":"ROW(D59)","v":59},null,"Please Select","Please Select",null,{"$f":"BJ157","v":0},{"$f":"BK157","v":0},{"$f":"BL157","v":0},{"$f":"BM157","v":0},null,{"$f":"IF(OR($D59=title119,$D59=title120),TRUE,FALSE)","v":false}]
[null,null,null,{"$f":"title108","v":"Main Category"},{"$f":"title109","v":"Feedstock"},{"$f":"title110","v":"Feedstock Available (t/year)"},{"$f":"IF($D61=title192,\"COD (g/l)\",\"VS (%)\")","v":"VS (%)"},{"$f":"IF($D61=title192,\"COD Deg. (%)\",\"TS (%)\")","v":"TS (%)"},{"$f":"IF($D61=title192,\"BMP (m3/t COD)\",\"BMP (m3/t VS)\")","v":"BMP (m3/t VS)"},"CH4 (%)",null,null,{"$f":"title116","v":"Storage Cost (USD/t)"}]
[null,{"$f":"ROW(D61)","v":61},null,"Please Select","Please Select",null,{"$f":"BJ159","v":0},{"$f":"BK159","v":0},{"$f":"BL159","v":0},{"$f":"BM159","v":0},null,{"$f":"IF(OR($D61=title119,$D61=title120),TRUE,FALSE)","v":false}]
[null,null,null,{"$f":"title108","v":"Main Category"},{"$f":"title109","v":"Feedstock"},{"$f":"title110","v":"Feedstock Available (t/year)"},{"$f":"IF($D63=title192,\"COD (g/l)\",\"VS (%)\")","v":"VS (%)"},{"$f":"IF($D63=title192,\"COD Deg. (%)\",\"TS (%)\")","v":"TS (%)"},{"$f":"IF($D63=title192,\"BMP (m3/t COD)\",\"BMP (m3/t VS)\")","v":"BMP (m3/t VS)"},"CH4 (%)",null,null,{"$f":"title116","v":"Storage Cost (USD/t)"}]
[null,{"$f":"ROW(D63)","v":63},null,"Please Select","Please Select",null,{"$f":"BJ161","v":0},{"$f":"BK161","v":0},{"$f":"BL161","v":0},{"$f":"BM161","v":0},null,{"$f":"IF(OR($D63=title119,$D63=title120),TRUE,FALSE)","v":false}]
[null,null,null,{"$f":"title108","v":"Main Category"},{"$f":"title109","v":"Feedstock"},{"$f":"title110","v":"Feedstock Available (t/year)"},{"$f":"IF($D65=title192,\"COD (g/l)\",\"VS (%)\")","v":"VS (%)"},{"$f":"IF($D65=title192,\"COD Deg. (%)\",\"TS (%)\")","v":"TS (%)"},{"$f":"IF($D65=title192,\"BMP (m3/t COD)\",\"BMP (m3/t VS)\")","v":"BMP (m3/t VS)"},"CH4 (%)",null,null,{"$f":"title116","v":"Storage Cost (USD/t)"}]
[null,{"$f":"ROW(D65)","v":65},null,"Please Select","Please Select",null,{"$f":"BJ163","v":0},{"$f":"BK163","v":0},{"$f":"BL163","v":0},{"$f":"BM163","v":0},null,{"$f":"IF(OR($D65=title119,$D65=title120),TRUE,FALSE)","v":false}]
[]
[null,null,null,{"$f":"title219","v":"Codigestion Feedstock"},{"$f":"title220","v":"Codigestion Fs to Main Fs ratio"},50,{"$f":"$F$67/100","v":0.5}]
[null,null,null,{"$f":"title108","v":"Main Category"},{"$f":"title109","v":"Feedstock"},"Feedstock Required for Codigestion (t/yr)",{"$f":"IF($D69=title192,\"COD (g/l)\",\"VS (%)\")","v":"VS (%)"},{"$f":"IF($D69=title192,\"COD Deg. (%)\",\"TS (%)\")","v":"TS (%)"},{"$f":"IF($D69=title192,\"BMP (m3/t COD)\",\"BMP (m3/t VS)\")","v":"BMP (m3/t VS)"},"CH4 (%)",{"$f":"title115","v":"Price (USD/t)"},null,{"$f":"title116","v":"Storage Cost (USD/t)"}]
[null,{"$f":"ROW(D69)","v":69},null,"Please Select","Please Select",{"$f":"IF(D69=title74,0,F57+F59+F61+F63+F65)*G67/(1-G67)","v":0},{"$f":"BJ165","v":0},{"$f":"BK165","v":0},{"$f":"BL165","v":0},{"$f":"BM165","v":0},null,{"$f":"IF(OR($D69=title119,$D69=title120),TRUE,FALSE)","v":false}]
[null,null,null,"* VS = Volatile Solids, TS = Total Solids, COD =Chemical Oxygen Demand, BMP = Biomethane Potential, CH4 = Methane"]
[]
[null,null,{"$f":"title98&\" 4\"","v":"Process 4"},{"$f":"title107","v":"Main Feedstocks"},null,null,{"$f":"title117","v":"Biogas potential"},null,null,null,{"$f":"title118","v":"Feedstock Price"}]
[null,null,null,null,null,null,false,null,null,null,true]
[null,null,null,{"$f":"title108","v":"Main Category"},{"$f":"title109","v":"Feedstock"},{"$f":"title110","v":"Feedstock Available (t/year)"},{"$f":"IF($D75=title192,\"COD (g/l)\",\"VS (%)\")","v":"VS (%)"},{"$f":"IF($D75=title192,\"COD Deg. (%)\",\"TS (%)\")","v":"TS (%)"},{"$f":"IF($D75=title192,\"BMP (m3/t COD)\",\"BMP (m3/t VS)\")","v":"BMP (m3/t VS)"},"CH4 (%)",{"$f":"title115","v":"Price (USD/t)"},null,{"$f":"title116","v":"Storage Cost (USD/t)"}]
[null,{"$f":"ROW(D75)","v":75},null,"Please Select","Please Select",null,{"$f":"BJ168","v":0},{"$f":"BK168","v":0},{"$f":"BL168","v":0},{"$f":"BM168","v":0},null,{"$f":"IF(OR($D75=title119,$D75=title120),TRUE,FALSE)","v":false}]
[null,null,null,{"$f":"title108","v":"Main Category"},{"$f":"title109","v":"Feedstock"},{"$f":"title110","v":"Feedstock Available (t/year)"},{"$f":"IF($D77=title192,\"COD (g/l)\",\"VS (%)\")","v":"VS (%)"},{"$f":"IF($D77=title192,\"COD Deg. (%)\",\"TS (%)\")","v":"TS (%)"},{"$f":"IF($D77=title192,\"BMP (m3/t COD)\",\"BMP (m3/t VS)\")","v":"BMP (m3/t VS)"},"CH4 (%)",null,null,{"$f":"title116","v":"Storage Cost (USD/t)"}]
[null,{"$f":"ROW(D77)","v":77},null,"Please Select","Please Select",null,{"$f":"BJ170","v":0},{"$f":"BK170","v":0},{"$f":"BL170","v":0},{"$f":"BM170","v":0},null,{"$f":"IF(OR($D77=title119,$D77=title120),TRUE,FALSE)","v":false}]
[null,null,null,{"$f":"title108","v":"Main Category"},{"$f":"title109","v":"Feedstock"},{"$f":"title110","v":"Feedstock Available (t/year)"},{"$f":"IF($D79=title192,\"COD (g/l)\",\"VS (%)\")","v":"VS (%)"},{"$f":"IF($D79=title192,\"COD Deg. (%)\",\"TS (%)\")","v":"TS (%)"},{"$f":"IF($D79=title192,\"BMP (m3/t COD)\",\"BMP (m3/t VS)\")","v":"BMP (m3/t VS)"},"CH4 (%)",null,null,{"$f":"title116","v":"Storage Cost (USD/t)"}]
[null,{"$f":"ROW(D79)","v":79},null,"Please Select","Please Select",null,{"$f":"BJ172","v":0},{"$f":"BK172","v":0},{"$f":"BL172","v":0},{"$f":"BM172","v":0},null,{"$f":"IF(OR($D79=title119,$D79=title120),TRUE,FALSE)","v":false}]
[null,null,null,{"$f":"title108","v":"Main Category"},{"$f":"title109","v":"Feedstock"},{"$f":"title110","v":"Feedstock Available (t/year)"},{"$f":"IF($D81=title192,\"COD (g/l)\",\"VS (%)\")","v":"VS (%)"},{"$f":"IF($D81=title192,\"COD Deg. (%)\",\"TS (%)\")","v":"TS (%)"},{"$f":"IF($D81=title192,\"BMP (m3/t COD)\",\"BMP (m3/t VS)\")","v":"BMP (m3/t VS)"},"CH4 (%)",null,null,{"$f":"title116","v":"Storage Cost (USD/t)"}]
[null,{"$f":"ROW(D81)","v":81},null,"Please Select","Please Select",null,{"$f":"BJ174","v":0},{"$f":"BK174","v":0},{"$f":"BL174","v":0},{"$f":"BM174","v":0},null,{"$f":"IF(OR($D81=title119,$D81=title120),TRUE,FALSE)","v":false}]
[null,null,null,{"$f":"title108","v":"Main Category"},{"$f":"title109","v":"Feedstock"},{"$f":"title110","v":"Feedstock Available (t/year)"},{"$f":"IF($D83=title192,\"COD (g/l)\",\"VS (%)\")","v":"VS (%)"},{"$f":"IF($D83=title192,\"COD Deg. (%)\",\"TS (%)\")","v":"TS (%)"},{"$f":"IF($D83=title192,\"BMP (m3/t COD)\",\"BMP (m3/t VS)\")","v":"BMP (m3/t VS)"},"CH4 (%)",null,null,{"$f":"title116","v":"Storage Cost (USD/t)"}]
[null,{"$f":"ROW(D83)","v":83},null,"Please Select","Please Select",null,{"$f":"BJ176","v":0},{"$f":"BK176","v":0},{"$f":"BL176","v":0},{"$f":"BM176","v":0},null,{"$f":"IF(OR($D83=title119,$D83=title120),TRUE,FALSE)","v":false}]
[]
[null,null,null,{"$f":"title219","v":"Codigestion Feedstock"},{"$f":"title220","v":"Codigestion Fs to Main Fs ratio"},50,{"$f":"$F$85/100","v":0.5}]
[null,null,null,{"$f":"title108","v":"Main Category"},{"$f":"title109","v":"Feedstock"},"Feedstock Required for Codigestion (t/yr)",{"$f":"IF($D87=title192,\"COD (g/l)\",\"VS (%)\")","v":"VS (%)"},{"$f":"IF($D87=title192,\"COD Deg. (%)\",\"TS (%)\")","v":"TS (%)"},{"$f":"IF($D87=title192,\"BMP (m3/t COD)\",\"BMP (m3/t VS)\")","v":"BMP (m3/t VS)"},"CH4 (%)",{"$f":"title115","v":"Price (USD/t)"},null,{"$f":"title116","v":"Storage Cost (USD/t)"}]
[null,{"$f":"ROW(D87)","v":87},null,"Please Select","Please Select",{"$f":"IF(D87=title74,0,F75+F77+F79+F81+F83)*G85/(1-G85)","v":0},{"$f":"BJ178","v":0},{"$f":"BK178","v":0},{"$f":"BL178","v":0},{"$f":"BM178","v":0},null,{"$f":"IF(OR($D87=title119,$D87=title120),TRUE,FALSE)","v":false}]
[null,null,null,{"$f":"title221","v":"* VS = Volatile Solids, TS = Total Solids, COD =Chemical Oxygen Demand, BMP = Biomethane Potential, CH4 = Methane"}]
[null,null,{"$f":"title121","v":"Production Cost and Financial Parameters"}]
[]
[null,null,{"$f":"title122","v":"Utilities and other Raw Material"},null,null,null,{"$f":"title27","v":"Unit"}]
[null,null,{"$f":"title123","v":"Water"},null,null,null,"USD/m3",{"$f":"title35","v":"Electricity"},null,null,null,null,"USD/kWh"]
[null,null,{"$f":"title124","v":"Caustic Soda (NaOH)"},null,null,null,"USD/t",{"$f":"title51","v":"Heat"},null,null,null,null,"USD/GJ"]
[null,null,"http://www.icis.com/chemicals/channel-info-chemicals-a-z/"]
[null,null,{"$f":"title125","v":"Labour"},null,null,null,{"$f":"title27","v":"Unit"}]
[null,null,{"$f":"title126","v":"Skilled worker"},null,null,null,{"$f":"title128","v":"USD/person-hour"},{"$f":"title127","v":"Unskilled worker"},null,null,null,null,{"$f":"title128","v":"USD/person-hour"}]
[]
[null,null,{"$f":"title129","v":"Feedstock collection"},null,null,null,{"$f":"title27","v":"Unit"},null,null,null,null,null,{"$f":"title27","v":"Unit"}]
[null,null,{"$f":"title130","v":"Working hours per day (manual)"},null,null,null,{"$f":"title132","v":"h/day"},{"$f":"title133","v":"Working hours per day (mechanized)"},null,null,null,null,{"$f":"title132","v":"h/day"}]
[null,null,{"$f":"title131","v":"Diesel price"},null,null,null,"USD/l",{"$f":"title134","v":"Operating days per year"},null,null,null,null,{"$f":"title135","v":"days/year"}]
[]
[null,null,{"$f":"title136","v":"Market Prices"},null,null,null,{"$f":"title27","v":"Unit"}]
[null,null,{"$f":"title137","v":"Electricity Selling Price"},null,null,null,"USD/kWh",{"$f":"title140","v":"Natural Gas Selling Price"},null,null,null,null,"USD/m3"]
[null,null,{"$f":"title138","v":"Heat Selling Price"},null,null,null,"USD/GJ",{"$f":"title141","v":"Digestate Market Price"},null,null,null,null,"USD/t"]
[null,null,{"$f":"title139","v":"Biogas Selling Prince"},null,null,null,"USD/m3"]
[]
[null,null,{"$f":"title142","v":"Operating parameters"},null,null,null,{"$f":"title27","v":"Unit"}]
[null,null,null,null,null,null,null,{"$f":"title146","v":"Storage safety rate of Biogas"}]
[]
[null,null,{"$f":"title143","v":"Digestate Recovery System"},null,null,"Please Select",null,{"$f":"title147","v":"Solids Recovery (%)"},null,null,null,{"$f":"VLOOKUP($F$110,$BO$148:$BP$154,2,FALSE)","v":0}]
[null,null,{"$f":"title144","v":"Heat Loss In Production"},null,null,null,null,{"$f":"title148","v":"Heat loss in Distribution"}]
[null,null,{"$f":"title145","v":"Electricity Loss In Production"},null,null,null,null,{"$f":"title149","v":"Electricity loss in Distribution"}]
[null,null,{"$f":"title150","v":"Other costs"},null,null,null,{"$f":"title27","v":"Unit"}]
[null,null,{"$f":"title151&\" (%)\"","v":"Plant overhead (%)"},null,null,null,null,{"$f":"title153","v":"Miscellaneous (%)"}]
[null,null,{"$f":"title152","v":"Maintenance (%)"},null,null,null,null,{"$f":"title154","v":"General and administrative (%)"}]
[]
[null,null,{"$f":"title155","v":"Financial parameters"},null,null,null,{"$f":"title27","v":"Unit"},{"$f":"title160","v":"Investment cost update"}]
[null,null,{"$f":"title156","v":"Loan ratio Size 1"},null,null,null,null,{"$f":"title161","v":"Discount rate"}]
[null,null,{"$f":"title157","v":"Loan ratio Size 2"},null,null,null,null,{"$f":"title162","v":"Loan interest rate"}]
[null,null,{"$f":"title158","v":"Loan ratio Size 3"},null,null,null,null,{"$f":"title163","v":"Loan terms"},null,null,null,null,{"$f":"title164","v":"year"}]
[null,null,{"$f":"title159","v":"Loan ratio Size 4"},null,null,null,null,{"$f":"title725&\" \"&MONTH(TODAY())&\"/\"&YEAR(TODAY())","v":"Plant Cost Index during  7/2017"},null,null,null,null,null,null,null,null,null,null,null,null,null,null,null,null,null,null,null,null,null,null,{"$f":"OFFSET('Data entry needs'!$AF$131,0,0,ABS(200-COUNTBLANK('Data entry needs'!J$131:J$331)),1)","v":"Please Select"}]
[null,null,null,null,null,null,null,"http://base.intratec.us/home/ic-index",null,null,null,null,null,null,null,null,null,null,null,null,null,null,null,null,null,null,null,null,null,null,null,null,null,null,null,null,null,null,null,null,null,null,null,null,null,null,null,null,null,null,null,null,null,null,null,null,null,null,null,null,null,null,null,null,null,null,null,null,null,{"$f":"title168&\" PS1\"","v":"Market Price PS1"},{"$f":"$K$19","v":true}]
[null,null,null,null,null,null,null,null,null,null,null,null,null,null,null,null,null,null,null,null,null,null,null,null,null,null,null,null,null,null,null,null,null,null,null,null,null,null,null,null,null,null,null,null,null,null,null,null,null,null,null,null,null,null,null,null,null,null,null,null,null,null,null,null,null,null,null,null,null,{"$f":"title168&\" PS2\"","v":"Market Price PS2"},{"$f":"$K$37","v":true}]
[null,null,null,null,null,null,null,null,null,null,null,null,null,null,null,null,null,null,null,null,null,null,null,null,null,null,null,null,null,null,null,{"$f":"OFFSET('Data entry needs'!$AF$131,0,0,ABS(200-COUNTBLANK('Data entry needs'!$AF$131:AF331)),1)","v":{"$error":"#REF!"}},null,null,null,null,null,null,null,null,null,null,null,null,null,null,null,null,null,null,null,null,null,null,null,null,null,null,null,null,null,null,null,null,null,null,null,null,null,{"$f":"title168&\" PS3\"","v":"Market Price PS3"},{"$f":"$K$55","v":true}]
[null,null,null,null,null,null,null,null,null,null,null,null,null,null,null,null,null,null,null,null,null,null,null,null,null,null,null,null,null,null,null,null,null,null,null,null,null,null,null,null,null,null,null,null,null,null,null,null,null,null,null,null,null,null,null,"Main FS","Country","Region",null,null,null,null,null,null,null,null,{"$f":"title105","v":"Operation Mode"},3,null,{"$f":"title168&\" PS4\"","v":"Market Price PS4"},{"$f":"$K$73","v":true}]
[null,null,null,null,null,null,null,null,null,null,null,null,null,null,null,null,null,null,null,null,null,null,null,null,null,null,null,null,null,null,"List Count",{"$f":"ABS(200-COUNTBLANK(AF$131:AF$331))","v":0},{"$f":"ABS(200-COUNTBLANK(AG$131:AG$331))","v":0},0,0,0,0,0,0,0,0,0,0,0,0,0,0,0,0,0,0,0,0,0,0,null,null,null,null,null,null,null,null,null,null,"!T171",null,null,null,{"$f":"title169&1","v":"Wage1"},{"$f":"IF(OR($F$96=\"\",$F$96=\" \"),TRUE,FALSE)","v":true}]
[null,null,null,null,null,null,null,null,null,null,null,null,null,null,null,null,null,null,null,null,null,null,null,null,null,null,null,null,null,null,null,{"$f":"title98&\" 1\"","v":"Process 1"},null,null,null,null,null,{"$f":"title98&\" 2\"","v":"Process 2"},null,null,null,null,null,{"$f":"title98&\" 3\"","v":"Process 3"},null,null,null,null,null,{"$f":"title98&\" 4\"","v":"Process 4"},null,null,null,null,null,null,null,null,null,{"$f":"title98&\" 1\"","v":"Process 1"},"PS1",null,null,null,null,null,null,null,null,{"$f":"title169&2","v":"Wage2"},{"$f":"IF(OR($L$96=\"\",$L$96=\" \"),TRUE,FALSE)","v":true}]
[null,null,null,null,null,null,null,null,null,null,null,null,null,null,null,null,null,null,null,null,null,null,null,null,null,null,null,null,null,null,{"$f":"UPPER(title167)","v":"CODIGESTION"},{"$f":"IF(AF$129=title84,1,IF(AF$129=title192,2,0))","v":0},0,0,0,0,0,0,0,0,0,0,0,0,0,0,0,0,0,0,0,0,0,0,0,null,null,null,null,{"$f":"title108","v":"Main Category"},{"$f":"title109","v":"Feedstock"},{"$f":"G$20","v":"VS (%)"},{"$f":"H$20","v":"TS (%)"},{"$f":"I$20","v":"BMP (m3/t VS)"},"CH4 (%)","Collection Price",null,null,null,{"$f":"title170","v":"Diesel"},{"$f":"IF(OR($F$100=\"\",$F$100=\" \"),TRUE,FALSE)","v":true}]
[null,null,null,null,null,null,null,null,null,null,null,null,null,null,null,null,null,null,null,null,null,null,null,null,null,null,null,null,null,null,null,{"$f":"$D$21","v":"Please Select"},{"$f":"$D$23","v":"Please Select"},{"$f":"$D$25","v":"Please Select"},{"$f":"$D$27","v":"Please Select"},{"$f":"$D$29","v":"Please Select"},{"$f":"$D$33","v":"Please Select"},{"$f":"$D$39","v":"Please Select"},{"$f":"$D$41","v":"Please Select"},{"$f":"$D$43","v":"Please Select"},{"$f":"$D$45","v":"Please Select"},{"$f":"$D$47","v":"Please Select"},{"$f":"$D$51","v":"Please Select"},{"$f":"$D$57","v":"Please Select"},{"$f":"$D$59","v":"Please Select"},{"$f":"$D$61","v":"Please Select"},{"$f":"$D$63","v":"Please Select"},{"$f":"$D$65","v":"Please Select"},{"$f":"$D$69","v":"Please Select"},{"$f":"$D$75","v":"Please Select"},{"$f":"$D$77","v":"Please Select"},{"$f":"$D$79","v":"Please Select"},{"$f":"$D$81","v":"Please Select"},{"$f":"$D$83","v":"Please Select"},{"$f":"$D$87","v":"Please Select"},{"$f":"title74","v":"Please Select"},"Select the country",null,"FS1",{"$f":"D$21","v":"Please Select"},{"$f":"E$21","v":"Please Select"},{"$f":"IFERROR(IF($BH129=title192,VLOOKUP($BH129&\" \"&$BI129,Database_Prop!$C:$G,2,FALSE),TEXT(VLOOKUP($BH129&\" \"&$BI129,Database_Prop!$C:$G,2,FALSE),\"0%\")),0)","v":0},{"$f":"IFERROR(VLOOKUP($BH129&\" \"&$BI129,Database_Prop!$C:$G,5,FALSE),0)","v":0},{"$f":"IFERROR(VLOOKUP($BH129&\" \"&$BI129,Database_Prop!$C:$G,3,FALSE),0)","v":0},{"$f":"IFERROR(VLOOKUP($BH129&\" \"&$BI129,Database_Prop!$C:$G,4,FALSE),0)","v":0},{"$f":"IFERROR(INDIRECT(\"PRICE_\"&$BG129&\"_\"&BI$127&$BN$126),0)","v":0},null,null,null,{"$f":"title171&1","v":"Decision11"},{"$f":"+OR(BS126,BS127,BS128)","v":true}]
[null,null,null,null,null,null,null,null,null,null,null,null,null,null,null,null,null,null,null,null,null,null,null,null,null,null,null,null,null,null,null,{"$f":"title166&1","v":"Residue1"},{"$f":"title166&2","v":"Residue2"},{"$f":"title166&3","v":"Residue3"},{"$f":"title166&4","v":"Residue4"},{"$f":"title166&5","v":"Residue5"},{"$f":"title167&1","v":"Codigestion1"},{"$f":"title166&12","v":"Residue12"},{"$f":"title166&22","v":"Residue22"},{"$f":"title166&32","v":"Residue32"},{"$f":"title166&42","v":"Residue42"},{"$f":"title166&52","v":"Residue52"},{"$f":"title167&2","v":"Codigestion2"},{"$f":"title166&13","v":"Residue13"},{"$f":"title166&23","v":"Residue23"},{"$f":"title166&33","v":"Residue33"},{"$f":"title166&43","v":"Residue43"},{"$f":"title166&53","v":"Residue53"},{"$f":"title167&3","v":"Codigestion3"},{"$f":"title166&14","v":"Residue14"},{"$f":"title166&24","v":"Residue24"},{"$f":"title166&34","v":"Residue34"},{"$f":"title166&44","v":"Residue44"},{"$f":"title166&54","v":"Residue54"},{"$f":"title167&4","v":"Codigestion4"},{"$f":"title184","v":"Biodiesel/Oilseed Ind."},"Afghanistan","Indian Subcontinent",null,{"$f":"title108","v":"Main Category"},{"$f":"title109","v":"Feedstock"},{"$f":"G$22","v":"VS (%)"},{"$f":"H$22","v":"TS (%)"},{"$f":"I$22","v":"BMP (m3/t VS)"},"CH4 (%)","Collection Price"]
[null,null,null,null,null,null,null,null,null,null,null,null,null,null,null,null,null,null,null,null,null,null,null,null,null,null,null,null,null,null,null,{"$f":"title74","v":"Please Select"},"Please Select","Please Select","Please Select","Please Select","Please Select","Please Select","Please Select","Please Select","Please Select","Please Select","Please Select","Please Select","Please Select","Please Select","Please Select","Please Select","Please Select","Please Select","Please Select","Please Select","Please Select","Please Select","Please Select",{"$f":"title85","v":"Crop Residues"},"Åland Islands","Western Europe","FS2",{"$f":"D$23","v":"Please Select"},{"$f":"E$23","v":"Please Select"},{"$f":"IFERROR(IF($BH131=title192,VLOOKUP($BH131&\" \"&$BI131,Database_Prop!$C:$G,2,FALSE),TEXT(VLOOKUP($BH131&\" \"&$BI131,Database_Prop!$C:$G,2,FALSE),\"0%\")),0)","v":0},{"$f":"IFERROR(VLOOKUP($BH131&\" \"&$BI131,Database_Prop!$C:$G,5,FALSE),0)","v":0},{"$f":"IFERROR(VLOOKUP($BH131&\" \"&$BI131,Database_Prop!$C:$G,3,FALSE),0)","v":0},{"$f":"IFERROR(VLOOKUP($BH131&\" \"&$BI131,Database_Prop!$C:$G,4,FALSE),0)","v":0},{"$f":"IFERROR(INDIRECT(\"PRICE_\"&$BG131&\"_\"&BI$127&$BN$126),0)","v":0},null,null,null,"ICU",{"$f":"IF(OR($L$121=\"\",$L$121=\" \"),TRUE,FALSE)","v":true}]
[null,null,null,null,null,null,null,null,null,null,null,null,null,null,null,null,null,null,null,null,null,null,null,null,null,null,null,null,null,null,1,{"$f":"IFERROR(INDEX(Database_Prop!$B$2:$B$1498,SMALL(IF(Database_Prop!$A$2:$A$1498=AF$129,ROW(Database_Prop!$B$2:$B$1498)-ROW(Database_Prop!$B$2)+1),ROWS(Database_Prop!C$2:'Database_Prop'!C2))),\"\")","v":""},{"$f":"IFERROR(INDEX(Database_Prop!$B$2:$B$1498,SMALL(IF(Database_Prop!$A$2:$A$1498=AG$129,ROW(Database_Prop!$B$2:$B$1498)-ROW(Database_Prop!$B$2)+1),ROWS(Database_Prop!D$2:'Database_Prop'!D2))),\"\")","v":""},{"$f":"IFERROR(INDEX(Database_Prop!$B$2:$B$1498,SMALL(IF(Database_Prop!$A$2:$A$1498=AH$129,ROW(Database_Prop!$B$2:$B$1498)-ROW(Database_Prop!$B$2)+1),ROWS(Database_Prop!E$2:'Database_Prop'!E2))),\"\")","v":""},{"$f":"IFERROR(INDEX(Database_Prop!$B$2:$B$1498,SMALL(IF(Database_Prop!$A$2:$A$1498=AI$129,ROW(Database_Prop!$B$2:$B$1498)-ROW(Database_Prop!$B$2)+1),ROWS(Database_Prop!F$2:'Database_Prop'!F2))),\"\")","v":""},{"$f":"IFERROR(INDEX(Database_Prop!$B$2:$B$1498,SMALL(IF(Database_Prop!$A$2:$A$1498=AJ$129,ROW(Database_Prop!$B$2:$B$1498)-ROW(Database_Prop!$B$2)+1),ROWS(Database_Prop!G$2:'Database_Prop'!G2))),\"\")","v":""},{"$f":"IFERROR(INDEX(Database_Prop!$B$2:$B$1498,SMALL(IF(Database_Prop!$A$2:$A$1498=AK$129,ROW(Database_Prop!$B$2:$B$1498)-ROW(Database_Prop!$B$2)+1),ROWS(Database_Prop!H$2:'Database_Prop'!H2))),\"\")","v":""},{"$f":"IFERROR(INDEX(Database_Prop!$B$2:$B$1498,SMALL(IF(Database_Prop!$A$2:$A$1498=AL$129,ROW(Database_Prop!$B$2:$B$1498)-ROW(Database_Prop!$B$2)+1),ROWS(Database_Prop!I$2:'Database_Prop'!I2))),\"\")","v":""},{"$f":"IFERROR(INDEX(Database_Prop!$B$2:$B$1498,SMALL(IF(Database_Prop!$A$2:$A$1498=AM$129,ROW(Database_Prop!$B$2:$B$1498)-ROW(Database_Prop!$B$2)+1),ROWS(Database_Prop!J$2:'Database_Prop'!J2))),\"\")","v":""},{"$f":"IFERROR(INDEX(Database_Prop!$B$2:$B$1498,SMALL(IF(Database_Prop!$A$2:$A$1498=AN$129,ROW(Database_Prop!$B$2:$B$1498)-ROW(Database_Prop!$B$2)+1),ROWS(Database_Prop!K$2:'Database_Prop'!K2))),\"\")","v":""},{"$f":"IFERROR(INDEX(Database_Prop!$B$2:$B$1498,SMALL(IF(Database_Prop!$A$2:$A$1498=AO$129,ROW(Database_Prop!$B$2:$B$1498)-ROW(Database_Prop!$B$2)+1),ROWS(Database_Prop!L$2:'Database_Prop'!L2))),\"\")","v":""},{"$f":"IFERROR(INDEX(Database_Prop!$B$2:$B$1498,SMALL(IF(Database_Prop!$A$2:$A$1498=AP$129,ROW(Database_Prop!$B$2:$B$1498)-ROW(Database_Prop!$B$2)+1),ROWS(Database_Prop!M$2:'Database_Prop'!M2))),\"\")","v":""},{"$f":"IFERROR(INDEX(Database_Prop!$B$2:$B$1498,SMALL(IF(Database_Prop!$A$2:$A$1498=AQ$129,ROW(Database_Prop!$B$2:$B$1498)-ROW(Database_Prop!$B$2)+1),ROWS(Database_Prop!N$2:'Database_Prop'!N2))),\"\")","v":""},{"$f":"IFERROR(INDEX(Database_Prop!$B$2:$B$1498,SMALL(IF(Database_Prop!$A$2:$A$1498=AR$129,ROW(Database_Prop!$B$2:$B$1498)-ROW(Database_Prop!$B$2)+1),ROWS(Database_Prop!O$2:'Database_Prop'!O2))),\"\")","v":""},{"$f":"IFERROR(INDEX(Database_Prop!$B$2:$B$1498,SMALL(IF(Database_Prop!$A$2:$A$1498=AS$129,ROW(Database_Prop!$B$2:$B$1498)-ROW(Database_Prop!$B$2)+1),ROWS(Database_Prop!P$2:'Database_Prop'!P2))),\"\")","v":""},{"$f":"IFERROR(INDEX(Database_Prop!$B$2:$B$1498,SMALL(IF(Database_Prop!$A$2:$A$1498=AT$129,ROW(Database_Prop!$B$2:$B$1498)-ROW(Database_Prop!$B$2)+1),ROWS(Database_Prop!Q$2:'Database_Prop'!Q2))),\"\")","v":""},{"$f":"IFERROR(INDEX(Database_Prop!$B$2:$B$1498,SMALL(IF(Database_Prop!$A$2:$A$1498=AU$129,ROW(Database_Prop!$B$2:$B$1498)-ROW(Database_Prop!$B$2)+1),ROWS(Database_Prop!R$2:'Database_Prop'!R2))),\"\")","v":""},{"$f":"IFERROR(INDEX(Database_Prop!$B$2:$B$1498,SMALL(IF(Database_Prop!$A$2:$A$1498=AV$129,ROW(Database_Prop!$B$2:$B$1498)-ROW(Database_Prop!$B$2)+1),ROWS(Database_Prop!S$2:'Database_Prop'!S2))),\"\")","v":""},{"$f":"IFERROR(INDEX(Database_Prop!$B$2:$B$1498,SMALL(IF(Database_Prop!$A$2:$A$1498=AW$129,ROW(Database_Prop!$B$2:$B$1498)-ROW(Database_Prop!$B$2)+1),ROWS(Database_Prop!T$2:'Database_Prop'!T2))),\"\")","v":""},{"$f":"IFERROR(INDEX(Database_Prop!$B$2:$B$1498,SMALL(IF(Database_Prop!$A$2:$A$1498=AX$129,ROW(Database_Prop!$B$2:$B$1498)-ROW(Database_Prop!$B$2)+1),ROWS(Database_Prop!U$2:'Database_Prop'!U2))),\"\")","v":""},{"$f":"IFERROR(INDEX(Database_Prop!$B$2:$B$1498,SMALL(IF(Database_Prop!$A$2:$A$1498=AY$129,ROW(Database_Prop!$B$2:$B$1498)-ROW(Database_Prop!$B$2)+1),ROWS(Database_Prop!V$2:'Database_Prop'!V2))),\"\")","v":""},{"$f":"IFERROR(INDEX(Database_Prop!$B$2:$B$1498,SMALL(IF(Database_Prop!$A$2:$A$1498=AZ$129,ROW(Database_Prop!$B$2:$B$1498)-ROW(Database_Prop!$B$2)+1),ROWS(Database_Prop!W$2:'Database_Prop'!W2))),\"\")","v":""},{"$f":"IFERROR(INDEX(Database_Prop!$B$2:$B$1498,SMALL(IF(Database_Prop!$A$2:$A$1498=BA$129,ROW(Database_Prop!$B$2:$B$1498)-ROW(Database_Prop!$B$2)+1),ROWS(Database_Prop!X$2:'Database_Prop'!X2))),\"\")","v":""},{"$f":"IFERROR(INDEX(Database_Prop!$B$2:$B$1498,SMALL(IF(Database_Prop!$A$2:$A$1498=BB$129,ROW(Database_Prop!$B$2:$B$1498)-ROW(Database_Prop!$B$2)+1),ROWS(Database_Prop!Y$2:'Database_Prop'!Y2))),\"\")","v":""},{"$f":"IFERROR(INDEX(Database_Prop!$B$2:$B$1498,SMALL(IF(Database_Prop!$A$2:$A$1498=BC$129,ROW(Database_Prop!$B$2:$B$1498)-ROW(Database_Prop!$B$2)+1),ROWS(Database_Prop!Z$2:'Database_Prop'!Z2))),\"\")","v":""},{"$f":"title119","v":"Crops"},"Albania","Eastern Europe",null,{"$f":"title108","v":"Main Category"},{"$f":"title109","v":"Feedstock"},{"$f":"G$24","v":"VS (%)"},{"$f":"H$24","v":"TS (%)"},{"$f":"I$24","v":"BMP (m3/t VS)"},"CH4 (%)","Collection Price",null,null,null,null,null,null,null,null,{"$f":"title175","v":"Storage"},{"$f":"title176","v":"Storage Selection"}]
[null,null,null,null,null,null,null,null,null,null,null,null,null,null,null,null,null,null,null,null,null,null,null,null,null,null,null,null,null,null,{"$f":"AE132+1","v":2},{"$f":"IFERROR(INDEX(Database_Prop!$B$2:$B$1498,SMALL(IF(Database_Prop!$A$2:$A$1498=AF$129,ROW(Database_Prop!$B$2:$B$1498)-ROW(Database_Prop!$B$2)+1),ROWS(Database_Prop!C$2:'Database_Prop'!C3))),\"\")","v":""},{"$f":"IFERROR(INDEX(Database_Prop!$B$2:$B$1498,SMALL(IF(Database_Prop!$A$2:$A$1498=AG$129,ROW(Database_Prop!$B$2:$B$1498)-ROW(Database_Prop!$B$2)+1),ROWS(Database_Prop!D$2:'Database_Prop'!D3))),\"\")","v":""},{"$f":"IFERROR(INDEX(Database_Prop!$B$2:$B$1498,SMALL(IF(Database_Prop!$A$2:$A$1498=AH$129,ROW(Database_Prop!$B$2:$B$1498)-ROW(Database_Prop!$B$2)+1),ROWS(Database_Prop!E$2:'Database_Prop'!E3))),\"\")","v":""},{"$f":"IFERROR(INDEX(Database_Prop!$B$2:$B$1498,SMALL(IF(Database_Prop!$A$2:$A$1498=AI$129,ROW(Database_Prop!$B$2:$B$1498)-ROW(Database_Prop!$B$2)+1),ROWS(Database_Prop!F$2:'Database_Prop'!F3))),\"\")","v":""},{"$f":"IFERROR(INDEX(Database_Prop!$B$2:$B$1498,SMALL(IF(Database_Prop!$A$2:$A$1498=AJ$129,ROW(Database_Prop!$B$2:$B$1498)-ROW(Database_Prop!$B$2)+1),ROWS(Database_Prop!G$2:'Database_Prop'!G3))),\"\")","v":""},{"$f":"IFERROR(INDEX(Database_Prop!$B$2:$B$1498,SMALL(IF(Database_Prop!$A$2:$A$1498=AK$129,ROW(Database_Prop!$B$2:$B$1498)-ROW(Database_Prop!$B$2)+1),ROWS(Database_Prop!H$2:'Database_Prop'!H3))),\"\")","v":""},{"$f":"IFERROR(INDEX(Database_Prop!$B$2:$B$1498,SMALL(IF(Database_Prop!$A$2:$A$1498=AL$129,ROW(Database_Prop!$B$2:$B$1498)-ROW(Database_Prop!$B$2)+1),ROWS(Database_Prop!I$2:'Database_Prop'!I3))),\"\")","v":""},{"$f":"IFERROR(INDEX(Database_Prop!$B$2:$B$1498,SMALL(IF(Database_Prop!$A$2:$A$1498=AM$129,ROW(Database_Prop!$B$2:$B$1498)-ROW(Database_Prop!$B$2)+1),ROWS(Database_Prop!J$2:'Database_Prop'!J3))),\"\")","v":""},{"$f":"IFERROR(INDEX(Database_Prop!$B$2:$B$1498,SMALL(IF(Database_Prop!$A$2:$A$1498=AN$129,ROW(Database_Prop!$B$2:$B$1498)-ROW(Database_Prop!$B$2)+1),ROWS(Database_Prop!K$2:'Database_Prop'!K3))),\"\")","v":""},{"$f":"IFERROR(INDEX(Database_Prop!$B$2:$B$1498,SMALL(IF(Database_Prop!$A$2:$A$1498=AO$129,ROW(Database_Prop!$B$2:$B$1498)-ROW(Database_Prop!$B$2)+1),ROWS(Database_Prop!L$2:'Database_Prop'!L3))),\"\")","v":""},{"$f":"IFERROR(INDEX(Database_Prop!$B$2:$B$1498,SMALL(IF(Database_Prop!$A$2:$A$1498=AP$129,ROW(Database_Prop!$B$2:$B$1498)-ROW(Database_Prop!$B$2)+1),ROWS(Database_Prop!M$2:'Database_Prop'!M3))),\"\")","v":""},{"$f":"IFERROR(INDEX(Database_Prop!$B$2:$B$1498,SMALL(IF(Database_Prop!$A$2:$A$1498=AQ$129,ROW(Database_Prop!$B$2:$B$1498)-ROW(Database_Prop!$B$2)+1),ROWS(Database_Prop!N$2:'Database_Prop'!N3))),\"\")","v":""},{"$f":"IFERROR(INDEX(Database_Prop!$B$2:$B$1498,SMALL(IF(Database_Prop!$A$2:$A$1498=AR$129,ROW(Database_Prop!$B$2:$B$1498)-ROW(Database_Prop!$B$2)+1),ROWS(Database_Prop!O$2:'Database_Prop'!O3))),\"\")","v":""},{"$f":"IFERROR(INDEX(Database_Prop!$B$2:$B$1498,SMALL(IF(Database_Prop!$A$2:$A$1498=AS$129,ROW(Database_Prop!$B$2:$B$1498)-ROW(Database_Prop!$B$2)+1),ROWS(Database_Prop!P$2:'Database_Prop'!P3))),\"\")","v":""},{"$f":"IFERROR(INDEX(Database_Prop!$B$2:$B$1498,SMALL(IF(Database_Prop!$A$2:$A$1498=AT$129,ROW(Database_Prop!$B$2:$B$1498)-ROW(Database_Prop!$B$2)+1),ROWS(Database_Prop!Q$2:'Database_Prop'!Q3))),\"\")","v":""},{"$f":"IFERROR(INDEX(Database_Prop!$B$2:$B$1498,SMALL(IF(Database_Prop!$A$2:$A$1498=AU$129,ROW(Database_Prop!$B$2:$B$1498)-ROW(Database_Prop!$B$2)+1),ROWS(Database_Prop!R$2:'Database_Prop'!R3))),\"\")","v":""},{"$f":"IFERROR(INDEX(Database_Prop!$B$2:$B$1498,SMALL(IF(Database_Prop!$A$2:$A$1498=AV$129,ROW(Database_Prop!$B$2:$B$1498)-ROW(Database_Prop!$B$2)+1),ROWS(Database_Prop!S$2:'Database_Prop'!S3))),\"\")","v":""},{"$f":"IFERROR(INDEX(Database_Prop!$B$2:$B$1498,SMALL(IF(Database_Prop!$A$2:$A$1498=AW$129,ROW(Database_Prop!$B$2:$B$1498)-ROW(Database_Prop!$B$2)+1),ROWS(Database_Prop!T$2:'Database_Prop'!T3))),\"\")","v":""},{"$f":"IFERROR(INDEX(Database_Prop!$B$2:$B$1498,SMALL(IF(Database_Prop!$A$2:$A$1498=AX$129,ROW(Database_Prop!$B$2:$B$1498)-ROW(Database_Prop!$B$2)+1),ROWS(Database_Prop!U$2:'Database_Prop'!U3))),\"\")","v":""},{"$f":"IFERROR(INDEX(Database_Prop!$B$2:$B$1498,SMALL(IF(Database_Prop!$A$2:$A$1498=AY$129,ROW(Database_Prop!$B$2:$B$1498)-ROW(Database_Prop!$B$2)+1),ROWS(Database_Prop!V$2:'Database_Prop'!V3))),\"\")","v":""},{"$f":"IFERROR(INDEX(Database_Prop!$B$2:$B$1498,SMALL(IF(Database_Prop!$A$2:$A$1498=AZ$129,ROW(Database_Prop!$B$2:$B$1498)-ROW(Database_Prop!$B$2)+1),ROWS(Database_Prop!W$2:'Database_Prop'!W3))),\"\")","v":""},{"$f":"IFERROR(INDEX(Database_Prop!$B$2:$B$1498,SMALL(IF(Database_Prop!$A$2:$A$1498=BA$129,ROW(Database_Prop!$B$2:$B$1498)-ROW(Database_Prop!$B$2)+1),ROWS(Database_Prop!X$2:'Database_Prop'!X3))),\"\")","v":""},{"$f":"IFERROR(INDEX(Database_Prop!$B$2:$B$1498,SMALL(IF(Database_Prop!$A$2:$A$1498=BB$129,ROW(Database_Prop!$B$2:$B$1498)-ROW(Database_Prop!$B$2)+1),ROWS(Database_Prop!Y$2:'Database_Prop'!Y3))),\"\")","v":""},{"$f":"IFERROR(INDEX(Database_Prop!$B$2:$B$1498,SMALL(IF(Database_Prop!$A$2:$A$1498=BC$129,ROW(Database_Prop!$B$2:$B$1498)-ROW(Database_Prop!$B$2)+1),ROWS(Database_Prop!Z$2:'Database_Prop'!Z3))),\"\")","v":""},{"$f":"title185","v":"Dairy-milk ind."},"Algeria","Africa","FS3",{"$f":"D$25","v":"Please Select"},{"$f":"E$25","v":"Please Select"},{"$f":"IFERROR(IF($BH133=title192,VLOOKUP($BH133&\" \"&$BI133,Database_Prop!$C:$G,2,FALSE),TEXT(VLOOKUP($BH133&\" \"&$BI133,Database_Prop!$C:$G,2,FALSE),\"0%\")),0)","v":0},{"$f":"IFERROR(VLOOKUP($BH133&\" \"&$BI133,Database_Prop!$C:$G,5,FALSE),0)","v":0},{"$f":"IFERROR(VLOOKUP($BH133&\" \"&$BI133,Database_Prop!$C:$G,3,FALSE),0)","v":0},{"$f":"IFERROR(VLOOKUP($BH133&\" \"&$BI133,Database_Prop!$C:$G,4,FALSE),0)","v":0},0,null,null,null,null,{"$f":"title174","v":"Planner"},null,{"$f":"title7","v":"Option 1: Heat and Electricity"},1,0,{"$f":"VLOOKUP('Biogas Use Selection'!$P$67,'Data entry needs'!BV133:$BW$137,2,FALSE)","v":0}]
[null,null,null,null,null,null,null,null,null,null,null,null,null,null,null,null,null,null,null,null,null,null,null,null,null,null,null,null,null,null,{"$f":"AE133+1","v":3},{"$f":"IFERROR(INDEX(Database_Prop!$B$2:$B$1498,SMALL(IF(Database_Prop!$A$2:$A$1498=AF$129,ROW(Database_Prop!$B$2:$B$1498)-ROW(Database_Prop!$B$2)+1),ROWS(Database_Prop!C$2:'Database_Prop'!C4))),\"\")","v":""},{"$f":"IFERROR(INDEX(Database_Prop!$B$2:$B$1498,SMALL(IF(Database_Prop!$A$2:$A$1498=AG$129,ROW(Database_Prop!$B$2:$B$1498)-ROW(Database_Prop!$B$2)+1),ROWS(Database_Prop!D$2:'Database_Prop'!D4))),\"\")","v":""},{"$f":"IFERROR(INDEX(Database_Prop!$B$2:$B$1498,SMALL(IF(Database_Prop!$A$2:$A$1498=AH$129,ROW(Database_Prop!$B$2:$B$1498)-ROW(Database_Prop!$B$2)+1),ROWS(Database_Prop!E$2:'Database_Prop'!E4))),\"\")","v":""},{"$f":"IFERROR(INDEX(Database_Prop!$B$2:$B$1498,SMALL(IF(Database_Prop!$A$2:$A$1498=AI$129,ROW(Database_Prop!$B$2:$B$1498)-ROW(Database_Prop!$B$2)+1),ROWS(Database_Prop!F$2:'Database_Prop'!F4))),\"\")","v":""},{"$f":"IFERROR(INDEX(Database_Prop!$B$2:$B$1498,SMALL(IF(Database_Prop!$A$2:$A$1498=AJ$129,ROW(Database_Prop!$B$2:$B$1498)-ROW(Database_Prop!$B$2)+1),ROWS(Database_Prop!G$2:'Database_Prop'!G4))),\"\")","v":""},{"$f":"IFERROR(INDEX(Database_Prop!$B$2:$B$1498,SMALL(IF(Database_Prop!$A$2:$A$1498=AK$129,ROW(Database_Prop!$B$2:$B$1498)-ROW(Database_Prop!$B$2)+1),ROWS(Database_Prop!H$2:'Database_Prop'!H4))),\"\")","v":""},{"$f":"IFERROR(INDEX(Database_Prop!$B$2:$B$1498,SMALL(IF(Database_Prop!$A$2:$A$1498=AL$129,ROW(Database_Prop!$B$2:$B$1498)-ROW(Database_Prop!$B$2)+1),ROWS(Database_Prop!I$2:'Database_Prop'!I4))),\"\")","v":""},{"$f":"IFERROR(INDEX(Database_Prop!$B$2:$B$1498,SMALL(IF(Database_Prop!$A$2:$A$1498=AM$129,ROW(Database_Prop!$B$2:$B$1498)-ROW(Database_Prop!$B$2)+1),ROWS(Database_Prop!J$2:'Database_Prop'!J4))),\"\")","v":""},{"$f":"IFERROR(INDEX(Database_Prop!$B$2:$B$1498,SMALL(IF(Database_Prop!$A$2:$A$1498=AN$129,ROW(Database_Prop!$B$2:$B$1498)-ROW(Database_Prop!$B$2)+1),ROWS(Database_Prop!K$2:'Database_Prop'!K4))),\"\")","v":""},{"$f":"IFERROR(INDEX(Database_Prop!$B$2:$B$1498,SMALL(IF(Database_Prop!$A$2:$A$1498=AO$129,ROW(Database_Prop!$B$2:$B$1498)-ROW(Database_Prop!$B$2)+1),ROWS(Database_Prop!L$2:'Database_Prop'!L4))),\"\")","v":""},{"$f":"IFERROR(INDEX(Database_Prop!$B$2:$B$1498,SMALL(IF(Database_Prop!$A$2:$A$1498=AP$129,ROW(Database_Prop!$B$2:$B$1498)-ROW(Database_Prop!$B$2)+1),ROWS(Database_Prop!M$2:'Database_Prop'!M4))),\"\")","v":""},{"$f":"IFERROR(INDEX(Database_Prop!$B$2:$B$1498,SMALL(IF(Database_Prop!$A$2:$A$1498=AQ$129,ROW(Database_Prop!$B$2:$B$1498)-ROW(Database_Prop!$B$2)+1),ROWS(Database_Prop!N$2:'Database_Prop'!N4))),\"\")","v":""},{"$f":"IFERROR(INDEX(Database_Prop!$B$2:$B$1498,SMALL(IF(Database_Prop!$A$2:$A$1498=AR$129,ROW(Database_Prop!$B$2:$B$1498)-ROW(Database_Prop!$B$2)+1),ROWS(Database_Prop!O$2:'Database_Prop'!O4))),\"\")","v":""},{"$f":"IFERROR(INDEX(Database_Prop!$B$2:$B$1498,SMALL(IF(Database_Prop!$A$2:$A$1498=AS$129,ROW(Database_Prop!$B$2:$B$1498)-ROW(Database_Prop!$B$2)+1),ROWS(Database_Prop!P$2:'Database_Prop'!P4))),\"\")","v":""},{"$f":"IFERROR(INDEX(Database_Prop!$B$2:$B$1498,SMALL(IF(Database_Prop!$A$2:$A$1498=AT$129,ROW(Database_Prop!$B$2:$B$1498)-ROW(Database_Prop!$B$2)+1),ROWS(Database_Prop!Q$2:'Database_Prop'!Q4))),\"\")","v":""},{"$f":"IFERROR(INDEX(Database_Prop!$B$2:$B$1498,SMALL(IF(Database_Prop!$A$2:$A$1498=AU$129,ROW(Database_Prop!$B$2:$B$1498)-ROW(Database_Prop!$B$2)+1),ROWS(Database_Prop!R$2:'Database_Prop'!R4))),\"\")","v":""},{"$f":"IFERROR(INDEX(Database_Prop!$B$2:$B$1498,SMALL(IF(Database_Prop!$A$2:$A$1498=AV$129,ROW(Database_Prop!$B$2:$B$1498)-ROW(Database_Prop!$B$2)+1),ROWS(Database_Prop!S$2:'Database_Prop'!S4))),\"\")","v":""},{"$f":"IFERROR(INDEX(Database_Prop!$B$2:$B$1498,SMALL(IF(Database_Prop!$A$2:$A$1498=AW$129,ROW(Database_Prop!$B$2:$B$1498)-ROW(Database_Prop!$B$2)+1),ROWS(Database_Prop!T$2:'Database_Prop'!T4))),\"\")","v":""},{"$f":"IFERROR(INDEX(Database_Prop!$B$2:$B$1498,SMALL(IF(Database_Prop!$A$2:$A$1498=AX$129,ROW(Database_Prop!$B$2:$B$1498)-ROW(Database_Prop!$B$2)+1),ROWS(Database_Prop!U$2:'Database_Prop'!U4))),\"\")","v":""},{"$f":"IFERROR(INDEX(Database_Prop!$B$2:$B$1498,SMALL(IF(Database_Prop!$A$2:$A$1498=AY$129,ROW(Database_Prop!$B$2:$B$1498)-ROW(Database_Prop!$B$2)+1),ROWS(Database_Prop!V$2:'Database_Prop'!V4))),\"\")","v":""},{"$f":"IFERROR(INDEX(Database_Prop!$B$2:$B$1498,SMALL(IF(Database_Prop!$A$2:$A$1498=AZ$129,ROW(Database_Prop!$B$2:$B$1498)-ROW(Database_Prop!$B$2)+1),ROWS(Database_Prop!W$2:'Database_Prop'!W4))),\"\")","v":""},{"$f":"IFERROR(INDEX(Database_Prop!$B$2:$B$1498,SMALL(IF(Database_Prop!$A$2:$A$1498=BA$129,ROW(Database_Prop!$B$2:$B$1498)-ROW(Database_Prop!$B$2)+1),ROWS(Database_Prop!X$2:'Database_Prop'!X4))),\"\")","v":""},{"$f":"IFERROR(INDEX(Database_Prop!$B$2:$B$1498,SMALL(IF(Database_Prop!$A$2:$A$1498=BB$129,ROW(Database_Prop!$B$2:$B$1498)-ROW(Database_Prop!$B$2)+1),ROWS(Database_Prop!Y$2:'Database_Prop'!Y4))),\"\")","v":""},{"$f":"IFERROR(INDEX(Database_Prop!$B$2:$B$1498,SMALL(IF(Database_Prop!$A$2:$A$1498=BC$129,ROW(Database_Prop!$B$2:$B$1498)-ROW(Database_Prop!$B$2)+1),ROWS(Database_Prop!Z$2:'Database_Prop'!Z4))),\"\")","v":""},{"$f":"title120","v":"Energy Crops"},"American Samoa","Oceania",null,{"$f":"title108","v":"Main Category"},{"$f":"title109","v":"Feedstock"},{"$f":"G$26","v":"VS (%)"},{"$f":"H$26","v":"TS (%)"},{"$f":"I$26","v":"BMP (m3/t VS)"},"CH4 (%)","Collection Price",{"$f":"title98&\" 1\"","v":"Process 1"},{"$f":"$F$10","v":true},{"$f":"title172","v":"Single"},{"$f":"AND($D$11,$BP$134)","v":false},{"$f":"IF(SUM(Planner_PS1!$R$13:$R$17,Planner_PS1!$R$20)<>0,TRUE,FALSE)","v":false},null,{"$f":"title30","v":"Option 2: Heating and/or cooking"},2,1]
[null,null,null,null,null,null,null,null,null,null,null,null,null,null,null,null,null,null,null,null,null,null,null,null,null,null,null,null,null,null,4,{"$f":"IFERROR(INDEX(Database_Prop!$B$2:$B$1498,SMALL(IF(Database_Prop!$A$2:$A$1498=AF$129,ROW(Database_Prop!$B$2:$B$1498)-ROW(Database_Prop!$B$2)+1),ROWS(Database_Prop!C$2:'Database_Prop'!C5))),\"\")","v":""},{"$f":"IFERROR(INDEX(Database_Prop!$B$2:$B$1498,SMALL(IF(Database_Prop!$A$2:$A$1498=AG$129,ROW(Database_Prop!$B$2:$B$1498)-ROW(Database_Prop!$B$2)+1),ROWS(Database_Prop!D$2:'Database_Prop'!D5))),\"\")","v":""},{"$f":"IFERROR(INDEX(Database_Prop!$B$2:$B$1498,SMALL(IF(Database_Prop!$A$2:$A$1498=AH$129,ROW(Database_Prop!$B$2:$B$1498)-ROW(Database_Prop!$B$2)+1),ROWS(Database_Prop!E$2:'Database_Prop'!E5))),\"\")","v":""},{"$f":"IFERROR(INDEX(Database_Prop!$B$2:$B$1498,SMALL(IF(Database_Prop!$A$2:$A$1498=AI$129,ROW(Database_Prop!$B$2:$B$1498)-ROW(Database_Prop!$B$2)+1),ROWS(Database_Prop!F$2:'Database_Prop'!F5))),\"\")","v":""},{"$f":"IFERROR(INDEX(Database_Prop!$B$2:$B$1498,SMALL(IF(Database_Prop!$A$2:$A$1498=AJ$129,ROW(Database_Prop!$B$2:$B$1498)-ROW(Database_Prop!$B$2)+1),ROWS(Database_Prop!G$2:'Database_Prop'!G5))),\"\")","v":""},{"$f":"IFERROR(INDEX(Database_Prop!$B$2:$B$1498,SMALL(IF(Database_Prop!$A$2:$A$1498=AK$129,ROW(Database_Prop!$B$2:$B$1498)-ROW(Database_Prop!$B$2)+1),ROWS(Database_Prop!H$2:'Database_Prop'!H5))),\"\")","v":""},{"$f":"IFERROR(INDEX(Database_Prop!$B$2:$B$1498,SMALL(IF(Database_Prop!$A$2:$A$1498=AL$129,ROW(Database_Prop!$B$2:$B$1498)-ROW(Database_Prop!$B$2)+1),ROWS(Database_Prop!I$2:'Database_Prop'!I5))),\"\")","v":""},{"$f":"IFERROR(INDEX(Database_Prop!$B$2:$B$1498,SMALL(IF(Database_Prop!$A$2:$A$1498=AM$129,ROW(Database_Prop!$B$2:$B$1498)-ROW(Database_Prop!$B$2)+1),ROWS(Database_Prop!J$2:'Database_Prop'!J5))),\"\")","v":""},{"$f":"IFERROR(INDEX(Database_Prop!$B$2:$B$1498,SMALL(IF(Database_Prop!$A$2:$A$1498=AN$129,ROW(Database_Prop!$B$2:$B$1498)-ROW(Database_Prop!$B$2)+1),ROWS(Database_Prop!K$2:'Database_Prop'!K5))),\"\")","v":""},{"$f":"IFERROR(INDEX(Database_Prop!$B$2:$B$1498,SMALL(IF(Database_Prop!$A$2:$A$1498=AO$129,ROW(Database_Prop!$B$2:$B$1498)-ROW(Database_Prop!$B$2)+1),ROWS(Database_Prop!L$2:'Database_Prop'!L5))),\"\")","v":""},{"$f":"IFERROR(INDEX(Database_Prop!$B$2:$B$1498,SMALL(IF(Database_Prop!$A$2:$A$1498=AP$129,ROW(Database_Prop!$B$2:$B$1498)-ROW(Database_Prop!$B$2)+1),ROWS(Database_Prop!M$2:'Database_Prop'!M5))),\"\")","v":""},{"$f":"IFERROR(INDEX(Database_Prop!$B$2:$B$1498,SMALL(IF(Database_Prop!$A$2:$A$1498=AQ$129,ROW(Database_Prop!$B$2:$B$1498)-ROW(Database_Prop!$B$2)+1),ROWS(Database_Prop!N$2:'Database_Prop'!N5))),\"\")","v":""},{"$f":"IFERROR(INDEX(Database_Prop!$B$2:$B$1498,SMALL(IF(Database_Prop!$A$2:$A$1498=AR$129,ROW(Database_Prop!$B$2:$B$1498)-ROW(Database_Prop!$B$2)+1),ROWS(Database_Prop!O$2:'Database_Prop'!O5))),\"\")","v":""},{"$f":"IFERROR(INDEX(Database_Prop!$B$2:$B$1498,SMALL(IF(Database_Prop!$A$2:$A$1498=AS$129,ROW(Database_Prop!$B$2:$B$1498)-ROW(Database_Prop!$B$2)+1),ROWS(Database_Prop!P$2:'Database_Prop'!P5))),\"\")","v":""},{"$f":"IFERROR(INDEX(Database_Prop!$B$2:$B$1498,SMALL(IF(Database_Prop!$A$2:$A$1498=AT$129,ROW(Database_Prop!$B$2:$B$1498)-ROW(Database_Prop!$B$2)+1),ROWS(Database_Prop!Q$2:'Database_Prop'!Q5))),\"\")","v":""},{"$f":"IFERROR(INDEX(Database_Prop!$B$2:$B$1498,SMALL(IF(Database_Prop!$A$2:$A$1498=AU$129,ROW(Database_Prop!$B$2:$B$1498)-ROW(Database_Prop!$B$2)+1),ROWS(Database_Prop!R$2:'Database_Prop'!R5))),\"\")","v":""},{"$f":"IFERROR(INDEX(Database_Prop!$B$2:$B$1498,SMALL(IF(Database_Prop!$A$2:$A$1498=AV$129,ROW(Database_Prop!$B$2:$B$1498)-ROW(Database_Prop!$B$2)+1),ROWS(Database_Prop!S$2:'Database_Prop'!S5))),\"\")","v":""},{"$f":"IFERROR(INDEX(Database_Prop!$B$2:$B$1498,SMALL(IF(Database_Prop!$A$2:$A$1498=AW$129,ROW(Database_Prop!$B$2:$B$1498)-ROW(Database_Prop!$B$2)+1),ROWS(Database_Prop!T$2:'Database_Prop'!T5))),\"\")","v":""},{"$f":"IFERROR(INDEX(Database_Prop!$B$2:$B$1498,SMALL(IF(Database_Prop!$A$2:$A$1498=AX$129,ROW(Database_Prop!$B$2:$B$1498)-ROW(Database_Prop!$B$2)+1),ROWS(Database_Prop!U$2:'Database_Prop'!U5))),\"\")","v":""},{"$f":"IFERROR(INDEX(Database_Prop!$B$2:$B$1498,SMALL(IF(Database_Prop!$A$2:$A$1498=AY$129,ROW(Database_Prop!$B$2:$B$1498)-ROW(Database_Prop!$B$2)+1),ROWS(Database_Prop!V$2:'Database_Prop'!V5))),\"\")","v":""},{"$f":"IFERROR(INDEX(Database_Prop!$B$2:$B$1498,SMALL(IF(Database_Prop!$A$2:$A$1498=AZ$129,ROW(Database_Prop!$B$2:$B$1498)-ROW(Database_Prop!$B$2)+1),ROWS(Database_Prop!W$2:'Database_Prop'!W5))),\"\")","v":""},{"$f":"IFERROR(INDEX(Database_Prop!$B$2:$B$1498,SMALL(IF(Database_Prop!$A$2:$A$1498=BA$129,ROW(Database_Prop!$B$2:$B$1498)-ROW(Database_Prop!$B$2)+1),ROWS(Database_Prop!X$2:'Database_Prop'!X5))),\"\")","v":""},{"$f":"IFERROR(INDEX(Database_Prop!$B$2:$B$1498,SMALL(IF(Database_Prop!$A$2:$A$1498=BB$129,ROW(Database_Prop!$B$2:$B$1498)-ROW(Database_Prop!$B$2)+1),ROWS(Database_Prop!Y$2:'Database_Prop'!Y5))),\"\")","v":""},{"$f":"IFERROR(INDEX(Database_Prop!$B$2:$B$1498,SMALL(IF(Database_Prop!$A$2:$A$1498=BC$129,ROW(Database_Prop!$B$2:$B$1498)-ROW(Database_Prop!$B$2)+1),ROWS(Database_Prop!Z$2:'Database_Prop'!Z5))),\"\")","v":""},{"$f":"title186","v":"Eth-Sugar-Starch Ind."},"Andorra","Western Europe","FS4",{"$f":"D$27","v":"Please Select"},{"$f":"E$27","v":"Please Select"},{"$f":"IFERROR(IF($BH135=title192,VLOOKUP($BH135&\" \"&$BI135,Database_Prop!$C:$G,2,FALSE),TEXT(VLOOKUP($BH135&\" \"&$BI135,Database_Prop!$C:$G,2,FALSE),\"0%\")),0)","v":0},{"$f":"IFERROR(VLOOKUP($BH135&\" \"&$BI135,Database_Prop!$C:$G,5,FALSE),0)","v":0},{"$f":"IFERROR(VLOOKUP($BH135&\" \"&$BI135,Database_Prop!$C:$G,3,FALSE),0)","v":0},{"$f":"IFERROR(VLOOKUP($BH135&\" \"&$BI135,Database_Prop!$C:$G,4,FALSE),0)","v":0},0,null,null,{"$f":"title173","v":"Multi"},{"$f":"AND($F$11,$BP$134)","v":false},null,null,{"$f":"title34","v":"Option 3: Electricity Only"},3,0]
[null,null,null,null,null,null,null,null,null,null,null,null,null,null,null,null,null,null,null,null,null,null,null,null,null,null,null,null,null,null,5,{"$f":"IFERROR(INDEX(Database_Prop!$B$2:$B$1498,SMALL(IF(Database_Prop!$A$2:$A$1498=AF$129,ROW(Database_Prop!$B$2:$B$1498)-ROW(Database_Prop!$B$2)+1),ROWS(Database_Prop!C$2:'Database_Prop'!C6))),\"\")","v":""},{"$f":"IFERROR(INDEX(Database_Prop!$B$2:$B$1498,SMALL(IF(Database_Prop!$A$2:$A$1498=AG$129,ROW(Database_Prop!$B$2:$B$1498)-ROW(Database_Prop!$B$2)+1),ROWS(Database_Prop!D$2:'Database_Prop'!D6))),\"\")","v":""},{"$f":"IFERROR(INDEX(Database_Prop!$B$2:$B$1498,SMALL(IF(Database_Prop!$A$2:$A$1498=AH$129,ROW(Database_Prop!$B$2:$B$1498)-ROW(Database_Prop!$B$2)+1),ROWS(Database_Prop!E$2:'Database_Prop'!E6))),\"\")","v":""},{"$f":"IFERROR(INDEX(Database_Prop!$B$2:$B$1498,SMALL(IF(Database_Prop!$A$2:$A$1498=AI$129,ROW(Database_Prop!$B$2:$B$1498)-ROW(Database_Prop!$B$2)+1),ROWS(Database_Prop!F$2:'Database_Prop'!F6))),\"\")","v":""},{"$f":"IFERROR(INDEX(Database_Prop!$B$2:$B$1498,SMALL(IF(Database_Prop!$A$2:$A$1498=AJ$129,ROW(Database_Prop!$B$2:$B$1498)-ROW(Database_Prop!$B$2)+1),ROWS(Database_Prop!G$2:'Database_Prop'!G6))),\"\")","v":""},{"$f":"IFERROR(INDEX(Database_Prop!$B$2:$B$1498,SMALL(IF(Database_Prop!$A$2:$A$1498=AK$129,ROW(Database_Prop!$B$2:$B$1498)-ROW(Database_Prop!$B$2)+1),ROWS(Database_Prop!H$2:'Database_Prop'!H6))),\"\")","v":""},{"$f":"IFERROR(INDEX(Database_Prop!$B$2:$B$1498,SMALL(IF(Database_Prop!$A$2:$A$1498=AL$129,ROW(Database_Prop!$B$2:$B$1498)-ROW(Database_Prop!$B$2)+1),ROWS(Database_Prop!I$2:'Database_Prop'!I6))),\"\")","v":""},{"$f":"IFERROR(INDEX(Database_Prop!$B$2:$B$1498,SMALL(IF(Database_Prop!$A$2:$A$1498=AM$129,ROW(Database_Prop!$B$2:$B$1498)-ROW(Database_Prop!$B$2)+1),ROWS(Database_Prop!J$2:'Database_Prop'!J6))),\"\")","v":""},{"$f":"IFERROR(INDEX(Database_Prop!$B$2:$B$1498,SMALL(IF(Database_Prop!$A$2:$A$1498=AN$129,ROW(Database_Prop!$B$2:$B$1498)-ROW(Database_Prop!$B$2)+1),ROWS(Database_Prop!K$2:'Database_Prop'!K6))),\"\")","v":""},{"$f":"IFERROR(INDEX(Database_Prop!$B$2:$B$1498,SMALL(IF(Database_Prop!$A$2:$A$1498=AO$129,ROW(Database_Prop!$B$2:$B$1498)-ROW(Database_Prop!$B$2)+1),ROWS(Database_Prop!L$2:'Database_Prop'!L6))),\"\")","v":""},{"$f":"IFERROR(INDEX(Database_Prop!$B$2:$B$1498,SMALL(IF(Database_Prop!$A$2:$A$1498=AP$129,ROW(Database_Prop!$B$2:$B$1498)-ROW(Database_Prop!$B$2)+1),ROWS(Database_Prop!M$2:'Database_Prop'!M6))),\"\")","v":""},{"$f":"IFERROR(INDEX(Database_Prop!$B$2:$B$1498,SMALL(IF(Database_Prop!$A$2:$A$1498=AQ$129,ROW(Database_Prop!$B$2:$B$1498)-ROW(Database_Prop!$B$2)+1),ROWS(Database_Prop!N$2:'Database_Prop'!N6))),\"\")","v":""},{"$f":"IFERROR(INDEX(Database_Prop!$B$2:$B$1498,SMALL(IF(Database_Prop!$A$2:$A$1498=AR$129,ROW(Database_Prop!$B$2:$B$1498)-ROW(Database_Prop!$B$2)+1),ROWS(Database_Prop!O$2:'Database_Prop'!O6))),\"\")","v":""},{"$f":"IFERROR(INDEX(Database_Prop!$B$2:$B$1498,SMALL(IF(Database_Prop!$A$2:$A$1498=AS$129,ROW(Database_Prop!$B$2:$B$1498)-ROW(Database_Prop!$B$2)+1),ROWS(Database_Prop!P$2:'Database_Prop'!P6))),\"\")","v":""},{"$f":"IFERROR(INDEX(Database_Prop!$B$2:$B$1498,SMALL(IF(Database_Prop!$A$2:$A$1498=AT$129,ROW(Database_Prop!$B$2:$B$1498)-ROW(Database_Prop!$B$2)+1),ROWS(Database_Prop!Q$2:'Database_Prop'!Q6))),\"\")","v":""},{"$f":"IFERROR(INDEX(Database_Prop!$B$2:$B$1498,SMALL(IF(Database_Prop!$A$2:$A$1498=AU$129,ROW(Database_Prop!$B$2:$B$1498)-ROW(Database_Prop!$B$2)+1),ROWS(Database_Prop!R$2:'Database_Prop'!R6))),\"\")","v":""},{"$f":"IFERROR(INDEX(Database_Prop!$B$2:$B$1498,SMALL(IF(Database_Prop!$A$2:$A$1498=AV$129,ROW(Database_Prop!$B$2:$B$1498)-ROW(Database_Prop!$B$2)+1),ROWS(Database_Prop!S$2:'Database_Prop'!S6))),\"\")","v":""},{"$f":"IFERROR(INDEX(Database_Prop!$B$2:$B$1498,SMALL(IF(Database_Prop!$A$2:$A$1498=AW$129,ROW(Database_Prop!$B$2:$B$1498)-ROW(Database_Prop!$B$2)+1),ROWS(Database_Prop!T$2:'Database_Prop'!T6))),\"\")","v":""},{"$f":"IFERROR(INDEX(Database_Prop!$B$2:$B$1498,SMALL(IF(Database_Prop!$A$2:$A$1498=AX$129,ROW(Database_Prop!$B$2:$B$1498)-ROW(Database_Prop!$B$2)+1),ROWS(Database_Prop!U$2:'Database_Prop'!U6))),\"\")","v":""},{"$f":"IFERROR(INDEX(Database_Prop!$B$2:$B$1498,SMALL(IF(Database_Prop!$A$2:$A$1498=AY$129,ROW(Database_Prop!$B$2:$B$1498)-ROW(Database_Prop!$B$2)+1),ROWS(Database_Prop!V$2:'Database_Prop'!V6))),\"\")","v":""},{"$f":"IFERROR(INDEX(Database_Prop!$B$2:$B$1498,SMALL(IF(Database_Prop!$A$2:$A$1498=AZ$129,ROW(Database_Prop!$B$2:$B$1498)-ROW(Database_Prop!$B$2)+1),ROWS(Database_Prop!W$2:'Database_Prop'!W6))),\"\")","v":""},{"$f":"IFERROR(INDEX(Database_Prop!$B$2:$B$1498,SMALL(IF(Database_Prop!$A$2:$A$1498=BA$129,ROW(Database_Prop!$B$2:$B$1498)-ROW(Database_Prop!$B$2)+1),ROWS(Database_Prop!X$2:'Database_Prop'!X6))),\"\")","v":""},{"$f":"IFERROR(INDEX(Database_Prop!$B$2:$B$1498,SMALL(IF(Database_Prop!$A$2:$A$1498=BB$129,ROW(Database_Prop!$B$2:$B$1498)-ROW(Database_Prop!$B$2)+1),ROWS(Database_Prop!Y$2:'Database_Prop'!Y6))),\"\")","v":""},{"$f":"IFERROR(INDEX(Database_Prop!$B$2:$B$1498,SMALL(IF(Database_Prop!$A$2:$A$1498=BC$129,ROW(Database_Prop!$B$2:$B$1498)-ROW(Database_Prop!$B$2)+1),ROWS(Database_Prop!Z$2:'Database_Prop'!Z6))),\"\")","v":""},{"$f":"title187","v":"Food Process. Res."},"Angola","Africa",null,{"$f":"title108","v":"Main Category"},{"$f":"title109","v":"Feedstock"},{"$f":"G$28","v":"VS (%)"},{"$f":"H$28","v":"TS (%)"},{"$f":"I$28","v":"BMP (m3/t VS)"},"CH4 (%)","Collection Price",null,null,{"$f":"title167","v":"Codigestion"},{"$f":"AND($J$11,$BP$134)","v":true},null,null,{"$f":"title40","v":"Option 4: Connection to natural gas line"},4,2]
[null,null,null,null,null,null,null,null,null,null,null,null,null,null,null,null,null,null,null,null,null,null,null,null,null,null,null,null,null,null,6,{"$f":"IFERROR(INDEX(Database_Prop!$B$2:$B$1498,SMALL(IF(Database_Prop!$A$2:$A$1498=AF$129,ROW(Database_Prop!$B$2:$B$1498)-ROW(Database_Prop!$B$2)+1),ROWS(Database_Prop!C$2:'Database_Prop'!C7))),\"\")","v":""},{"$f":"IFERROR(INDEX(Database_Prop!$B$2:$B$1498,SMALL(IF(Database_Prop!$A$2:$A$1498=AG$129,ROW(Database_Prop!$B$2:$B$1498)-ROW(Database_Prop!$B$2)+1),ROWS(Database_Prop!D$2:'Database_Prop'!D7))),\"\")","v":""},{"$f":"IFERROR(INDEX(Database_Prop!$B$2:$B$1498,SMALL(IF(Database_Prop!$A$2:$A$1498=AH$129,ROW(Database_Prop!$B$2:$B$1498)-ROW(Database_Prop!$B$2)+1),ROWS(Database_Prop!E$2:'Database_Prop'!E7))),\"\")","v":""},{"$f":"IFERROR(INDEX(Database_Prop!$B$2:$B$1498,SMALL(IF(Database_Prop!$A$2:$A$1498=AI$129,ROW(Database_Prop!$B$2:$B$1498)-ROW(Database_Prop!$B$2)+1),ROWS(Database_Prop!F$2:'Database_Prop'!F7))),\"\")","v":""},{"$f":"IFERROR(INDEX(Database_Prop!$B$2:$B$1498,SMALL(IF(Database_Prop!$A$2:$A$1498=AJ$129,ROW(Database_Prop!$B$2:$B$1498)-ROW(Database_Prop!$B$2)+1),ROWS(Database_Prop!G$2:'Database_Prop'!G7))),\"\")","v":""},{"$f":"IFERROR(INDEX(Database_Prop!$B$2:$B$1498,SMALL(IF(Database_Prop!$A$2:$A$1498=AK$129,ROW(Database_Prop!$B$2:$B$1498)-ROW(Database_Prop!$B$2)+1),ROWS(Database_Prop!H$2:'Database_Prop'!H7))),\"\")","v":""},{"$f":"IFERROR(INDEX(Database_Prop!$B$2:$B$1498,SMALL(IF(Database_Prop!$A$2:$A$1498=AL$129,ROW(Database_Prop!$B$2:$B$1498)-ROW(Database_Prop!$B$2)+1),ROWS(Database_Prop!I$2:'Database_Prop'!I7))),\"\")","v":""},{"$f":"IFERROR(INDEX(Database_Prop!$B$2:$B$1498,SMALL(IF(Database_Prop!$A$2:$A$1498=AM$129,ROW(Database_Prop!$B$2:$B$1498)-ROW(Database_Prop!$B$2)+1),ROWS(Database_Prop!J$2:'Database_Prop'!J7))),\"\")","v":""},{"$f":"IFERROR(INDEX(Database_Prop!$B$2:$B$1498,SMALL(IF(Database_Prop!$A$2:$A$1498=AN$129,ROW(Database_Prop!$B$2:$B$1498)-ROW(Database_Prop!$B$2)+1),ROWS(Database_Prop!K$2:'Database_Prop'!K7))),\"\")","v":""},{"$f":"IFERROR(INDEX(Database_Prop!$B$2:$B$1498,SMALL(IF(Database_Prop!$A$2:$A$1498=AO$129,ROW(Database_Prop!$B$2:$B$1498)-ROW(Database_Prop!$B$2)+1),ROWS(Database_Prop!L$2:'Database_Prop'!L7))),\"\")","v":""},{"$f":"IFERROR(INDEX(Database_Prop!$B$2:$B$1498,SMALL(IF(Database_Prop!$A$2:$A$1498=AP$129,ROW(Database_Prop!$B$2:$B$1498)-ROW(Database_Prop!$B$2)+1),ROWS(Database_Prop!M$2:'Database_Prop'!M7))),\"\")","v":""},{"$f":"IFERROR(INDEX(Database_Prop!$B$2:$B$1498,SMALL(IF(Database_Prop!$A$2:$A$1498=AQ$129,ROW(Database_Prop!$B$2:$B$1498)-ROW(Database_Prop!$B$2)+1),ROWS(Database_Prop!N$2:'Database_Prop'!N7))),\"\")","v":""},{"$f":"IFERROR(INDEX(Database_Prop!$B$2:$B$1498,SMALL(IF(Database_Prop!$A$2:$A$1498=AR$129,ROW(Database_Prop!$B$2:$B$1498)-ROW(Database_Prop!$B$2)+1),ROWS(Database_Prop!O$2:'Database_Prop'!O7))),\"\")","v":""},{"$f":"IFERROR(INDEX(Database_Prop!$B$2:$B$1498,SMALL(IF(Database_Prop!$A$2:$A$1498=AS$129,ROW(Database_Prop!$B$2:$B$1498)-ROW(Database_Prop!$B$2)+1),ROWS(Database_Prop!P$2:'Database_Prop'!P7))),\"\")","v":""},{"$f":"IFERROR(INDEX(Database_Prop!$B$2:$B$1498,SMALL(IF(Database_Prop!$A$2:$A$1498=AT$129,ROW(Database_Prop!$B$2:$B$1498)-ROW(Database_Prop!$B$2)+1),ROWS(Database_Prop!Q$2:'Database_Prop'!Q7))),\"\")","v":""},{"$f":"IFERROR(INDEX(Database_Prop!$B$2:$B$1498,SMALL(IF(Database_Prop!$A$2:$A$1498=AU$129,ROW(Database_Prop!$B$2:$B$1498)-ROW(Database_Prop!$B$2)+1),ROWS(Database_Prop!R$2:'Database_Prop'!R7))),\"\")","v":""},{"$f":"IFERROR(INDEX(Database_Prop!$B$2:$B$1498,SMALL(IF(Database_Prop!$A$2:$A$1498=AV$129,ROW(Database_Prop!$B$2:$B$1498)-ROW(Database_Prop!$B$2)+1),ROWS(Database_Prop!S$2:'Database_Prop'!S7))),\"\")","v":""},{"$f":"IFERROR(INDEX(Database_Prop!$B$2:$B$1498,SMALL(IF(Database_Prop!$A$2:$A$1498=AW$129,ROW(Database_Prop!$B$2:$B$1498)-ROW(Database_Prop!$B$2)+1),ROWS(Database_Prop!T$2:'Database_Prop'!T7))),\"\")","v":""},{"$f":"IFERROR(INDEX(Database_Prop!$B$2:$B$1498,SMALL(IF(Database_Prop!$A$2:$A$1498=AX$129,ROW(Database_Prop!$B$2:$B$1498)-ROW(Database_Prop!$B$2)+1),ROWS(Database_Prop!U$2:'Database_Prop'!U7))),\"\")","v":""},{"$f":"IFERROR(INDEX(Database_Prop!$B$2:$B$1498,SMALL(IF(Database_Prop!$A$2:$A$1498=AY$129,ROW(Database_Prop!$B$2:$B$1498)-ROW(Database_Prop!$B$2)+1),ROWS(Database_Prop!V$2:'Database_Prop'!V7))),\"\")","v":""},{"$f":"IFERROR(INDEX(Database_Prop!$B$2:$B$1498,SMALL(IF(Database_Prop!$A$2:$A$1498=AZ$129,ROW(Database_Prop!$B$2:$B$1498)-ROW(Database_Prop!$B$2)+1),ROWS(Database_Prop!W$2:'Database_Prop'!W7))),\"\")","v":""},{"$f":"IFERROR(INDEX(Database_Prop!$B$2:$B$1498,SMALL(IF(Database_Prop!$A$2:$A$1498=BA$129,ROW(Database_Prop!$B$2:$B$1498)-ROW(Database_Prop!$B$2)+1),ROWS(Database_Prop!X$2:'Database_Prop'!X7))),\"\")","v":""},{"$f":"IFERROR(INDEX(Database_Prop!$B$2:$B$1498,SMALL(IF(Database_Prop!$A$2:$A$1498=BB$129,ROW(Database_Prop!$B$2:$B$1498)-ROW(Database_Prop!$B$2)+1),ROWS(Database_Prop!Y$2:'Database_Prop'!Y7))),\"\")","v":""},{"$f":"IFERROR(INDEX(Database_Prop!$B$2:$B$1498,SMALL(IF(Database_Prop!$A$2:$A$1498=BC$129,ROW(Database_Prop!$B$2:$B$1498)-ROW(Database_Prop!$B$2)+1),ROWS(Database_Prop!Z$2:'Database_Prop'!Z7))),\"\")","v":""},{"$f":"title188","v":"Grass"},"Anguilla","Latin America","FS5",{"$f":"D$29","v":"Please Select"},{"$f":"E$29","v":"Please Select"},{"$f":"IFERROR(IF($BH137=title192,VLOOKUP($BH137&\" \"&$BI137,Database_Prop!$C:$G,2,FALSE),TEXT(VLOOKUP($BH137&\" \"&$BI137,Database_Prop!$C:$G,2,FALSE),\"0%\")),0)","v":0},{"$f":"IFERROR(VLOOKUP($BH137&\" \"&$BI137,Database_Prop!$C:$G,5,FALSE),0)","v":0},{"$f":"IFERROR(VLOOKUP($BH137&\" \"&$BI137,Database_Prop!$C:$G,3,FALSE),0)","v":0},{"$f":"IFERROR(VLOOKUP($BH137&\" \"&$BI137,Database_Prop!$C:$G,4,FALSE),0)","v":0},0,{"$f":"title98&\" 2\"","v":"Process 2"},{"$f":"$H$10","v":true},{"$f":"title172","v":"Single"},{"$f":"AND($D$11,BP137)","v":false},{"$f":"IF(SUM(Planner_PS2!$R$13:$R$17,Planner_PS2!$R$20)<>0,TRUE,FALSE)","v":false},null,{"$f":"title183","v":"Option 5: Vehicular Gas"},5,3]
[null,null,null,null,null,null,null,null,null,null,null,null,null,null,null,null,null,null,null,null,null,null,null,null,null,null,null,null,null,null,7,{"$f":"IFERROR(INDEX(Database_Prop!$B$2:$B$1498,SMALL(IF(Database_Prop!$A$2:$A$1498=AF$129,ROW(Database_Prop!$B$2:$B$1498)-ROW(Database_Prop!$B$2)+1),ROWS(Database_Prop!C$2:'Database_Prop'!C8))),\"\")","v":""},{"$f":"IFERROR(INDEX(Database_Prop!$B$2:$B$1498,SMALL(IF(Database_Prop!$A$2:$A$1498=AG$129,ROW(Database_Prop!$B$2:$B$1498)-ROW(Database_Prop!$B$2)+1),ROWS(Database_Prop!D$2:'Database_Prop'!D8))),\"\")","v":""},{"$f":"IFERROR(INDEX(Database_Prop!$B$2:$B$1498,SMALL(IF(Database_Prop!$A$2:$A$1498=AH$129,ROW(Database_Prop!$B$2:$B$1498)-ROW(Database_Prop!$B$2)+1),ROWS(Database_Prop!E$2:'Database_Prop'!E8))),\"\")","v":""},{"$f":"IFERROR(INDEX(Database_Prop!$B$2:$B$1498,SMALL(IF(Database_Prop!$A$2:$A$1498=AI$129,ROW(Database_Prop!$B$2:$B$1498)-ROW(Database_Prop!$B$2)+1),ROWS(Database_Prop!F$2:'Database_Prop'!F8))),\"\")","v":""},{"$f":"IFERROR(INDEX(Database_Prop!$B$2:$B$1498,SMALL(IF(Database_Prop!$A$2:$A$1498=AJ$129,ROW(Database_Prop!$B$2:$B$1498)-ROW(Database_Prop!$B$2)+1),ROWS(Database_Prop!G$2:'Database_Prop'!G8))),\"\")","v":""},{"$f":"IFERROR(INDEX(Database_Prop!$B$2:$B$1498,SMALL(IF(Database_Prop!$A$2:$A$1498=AK$129,ROW(Database_Prop!$B$2:$B$1498)-ROW(Database_Prop!$B$2)+1),ROWS(Database_Prop!H$2:'Database_Prop'!H8))),\"\")","v":""},{"$f":"IFERROR(INDEX(Database_Prop!$B$2:$B$1498,SMALL(IF(Database_Prop!$A$2:$A$1498=AL$129,ROW(Database_Prop!$B$2:$B$1498)-ROW(Database_Prop!$B$2)+1),ROWS(Database_Prop!I$2:'Database_Prop'!I8))),\"\")","v":""},{"$f":"IFERROR(INDEX(Database_Prop!$B$2:$B$1498,SMALL(IF(Database_Prop!$A$2:$A$1498=AM$129,ROW(Database_Prop!$B$2:$B$1498)-ROW(Database_Prop!$B$2)+1),ROWS(Database_Prop!J$2:'Database_Prop'!J8))),\"\")","v":""},{"$f":"IFERROR(INDEX(Database_Prop!$B$2:$B$1498,SMALL(IF(Database_Prop!$A$2:$A$1498=AN$129,ROW(Database_Prop!$B$2:$B$1498)-ROW(Database_Prop!$B$2)+1),ROWS(Database_Prop!K$2:'Database_Prop'!K8))),\"\")","v":""},{"$f":"IFERROR(INDEX(Database_Prop!$B$2:$B$1498,SMALL(IF(Database_Prop!$A$2:$A$1498=AO$129,ROW(Database_Prop!$B$2:$B$1498)-ROW(Database_Prop!$B$2)+1),ROWS(Database_Prop!L$2:'Database_Prop'!L8))),\"\")","v":""},{"$f":"IFERROR(INDEX(Database_Prop!$B$2:$B$1498,SMALL(IF(Database_Prop!$A$2:$A$1498=AP$129,ROW(Database_Prop!$B$2:$B$1498)-ROW(Database_Prop!$B$2)+1),ROWS(Database_Prop!M$2:'Database_Prop'!M8))),\"\")","v":""},{"$f":"IFERROR(INDEX(Database_Prop!$B$2:$B$1498,SMALL(IF(Database_Prop!$A$2:$A$1498=AQ$129,ROW(Database_Prop!$B$2:$B$1498)-ROW(Database_Prop!$B$2)+1),ROWS(Database_Prop!N$2:'Database_Prop'!N8))),\"\")","v":""},{"$f":"IFERROR(INDEX(Database_Prop!$B$2:$B$1498,SMALL(IF(Database_Prop!$A$2:$A$1498=AR$129,ROW(Database_Prop!$B$2:$B$1498)-ROW(Database_Prop!$B$2)+1),ROWS(Database_Prop!O$2:'Database_Prop'!O8))),\"\")","v":""},{"$f":"IFERROR(INDEX(Database_Prop!$B$2:$B$1498,SMALL(IF(Database_Prop!$A$2:$A$1498=AS$129,ROW(Database_Prop!$B$2:$B$1498)-ROW(Database_Prop!$B$2)+1),ROWS(Database_Prop!P$2:'Database_Prop'!P8))),\"\")","v":""},{"$f":"IFERROR(INDEX(Database_Prop!$B$2:$B$1498,SMALL(IF(Database_Prop!$A$2:$A$1498=AT$129,ROW(Database_Prop!$B$2:$B$1498)-ROW(Database_Prop!$B$2)+1),ROWS(Database_Prop!Q$2:'Database_Prop'!Q8))),\"\")","v":""},{"$f":"IFERROR(INDEX(Database_Prop!$B$2:$B$1498,SMALL(IF(Database_Prop!$A$2:$A$1498=AU$129,ROW(Database_Prop!$B$2:$B$1498)-ROW(Database_Prop!$B$2)+1),ROWS(Database_Prop!R$2:'Database_Prop'!R8))),\"\")","v":""},{"$f":"IFERROR(INDEX(Database_Prop!$B$2:$B$1498,SMALL(IF(Database_Prop!$A$2:$A$1498=AV$129,ROW(Database_Prop!$B$2:$B$1498)-ROW(Database_Prop!$B$2)+1),ROWS(Database_Prop!S$2:'Database_Prop'!S8))),\"\")","v":""},{"$f":"IFERROR(INDEX(Database_Prop!$B$2:$B$1498,SMALL(IF(Database_Prop!$A$2:$A$1498=AW$129,ROW(Database_Prop!$B$2:$B$1498)-ROW(Database_Prop!$B$2)+1),ROWS(Database_Prop!T$2:'Database_Prop'!T8))),\"\")","v":""},{"$f":"IFERROR(INDEX(Database_Prop!$B$2:$B$1498,SMALL(IF(Database_Prop!$A$2:$A$1498=AX$129,ROW(Database_Prop!$B$2:$B$1498)-ROW(Database_Prop!$B$2)+1),ROWS(Database_Prop!U$2:'Database_Prop'!U8))),\"\")","v":""},{"$f":"IFERROR(INDEX(Database_Prop!$B$2:$B$1498,SMALL(IF(Database_Prop!$A$2:$A$1498=AY$129,ROW(Database_Prop!$B$2:$B$1498)-ROW(Database_Prop!$B$2)+1),ROWS(Database_Prop!V$2:'Database_Prop'!V8))),\"\")","v":""},{"$f":"IFERROR(INDEX(Database_Prop!$B$2:$B$1498,SMALL(IF(Database_Prop!$A$2:$A$1498=AZ$129,ROW(Database_Prop!$B$2:$B$1498)-ROW(Database_Prop!$B$2)+1),ROWS(Database_Prop!W$2:'Database_Prop'!W8))),\"\")","v":""},{"$f":"IFERROR(INDEX(Database_Prop!$B$2:$B$1498,SMALL(IF(Database_Prop!$A$2:$A$1498=BA$129,ROW(Database_Prop!$B$2:$B$1498)-ROW(Database_Prop!$B$2)+1),ROWS(Database_Prop!X$2:'Database_Prop'!X8))),\"\")","v":""},{"$f":"IFERROR(INDEX(Database_Prop!$B$2:$B$1498,SMALL(IF(Database_Prop!$A$2:$A$1498=BB$129,ROW(Database_Prop!$B$2:$B$1498)-ROW(Database_Prop!$B$2)+1),ROWS(Database_Prop!Y$2:'Database_Prop'!Y8))),\"\")","v":""},{"$f":"IFERROR(INDEX(Database_Prop!$B$2:$B$1498,SMALL(IF(Database_Prop!$A$2:$A$1498=BC$129,ROW(Database_Prop!$B$2:$B$1498)-ROW(Database_Prop!$B$2)+1),ROWS(Database_Prop!Z$2:'Database_Prop'!Z8))),\"\")","v":""},{"$f":"title189","v":"Other Options"},"Antigua and Barbuda","Latin America",null,{"$f":"title108","v":"Main Category"},{"$f":"title109","v":"Feedstock"},{"$f":"G$28","v":"VS (%)"},{"$f":"H$28","v":"TS (%)"},{"$f":"I$28","v":"BMP (m3/t VS)"},"CH4 (%)","Collection Price",null,null,{"$f":"title173","v":"Multi"},{"$f":"AND($F$11,BP137)","v":false}]
[null,null,null,null,null,null,null,null,null,null,null,null,null,null,null,null,null,null,null,null,null,null,null,null,null,null,null,null,null,null,8,{"$f":"IFERROR(INDEX(Database_Prop!$B$2:$B$1498,SMALL(IF(Database_Prop!$A$2:$A$1498=AF$129,ROW(Database_Prop!$B$2:$B$1498)-ROW(Database_Prop!$B$2)+1),ROWS(Database_Prop!C$2:'Database_Prop'!C9))),\"\")","v":""},{"$f":"IFERROR(INDEX(Database_Prop!$B$2:$B$1498,SMALL(IF(Database_Prop!$A$2:$A$1498=AG$129,ROW(Database_Prop!$B$2:$B$1498)-ROW(Database_Prop!$B$2)+1),ROWS(Database_Prop!D$2:'Database_Prop'!D9))),\"\")","v":""},{"$f":"IFERROR(INDEX(Database_Prop!$B$2:$B$1498,SMALL(IF(Database_Prop!$A$2:$A$1498=AH$129,ROW(Database_Prop!$B$2:$B$1498)-ROW(Database_Prop!$B$2)+1),ROWS(Database_Prop!E$2:'Database_Prop'!E9))),\"\")","v":""},{"$f":"IFERROR(INDEX(Database_Prop!$B$2:$B$1498,SMALL(IF(Database_Prop!$A$2:$A$1498=AI$129,ROW(Database_Prop!$B$2:$B$1498)-ROW(Database_Prop!$B$2)+1),ROWS(Database_Prop!F$2:'Database_Prop'!F9))),\"\")","v":""},{"$f":"IFERROR(INDEX(Database_Prop!$B$2:$B$1498,SMALL(IF(Database_Prop!$A$2:$A$1498=AJ$129,ROW(Database_Prop!$B$2:$B$1498)-ROW(Database_Prop!$B$2)+1),ROWS(Database_Prop!G$2:'Database_Prop'!G9))),\"\")","v":""},{"$f":"IFERROR(INDEX(Database_Prop!$B$2:$B$1498,SMALL(IF(Database_Prop!$A$2:$A$1498=AK$129,ROW(Database_Prop!$B$2:$B$1498)-ROW(Database_Prop!$B$2)+1),ROWS(Database_Prop!H$2:'Database_Prop'!H9))),\"\")","v":""},{"$f":"IFERROR(INDEX(Database_Prop!$B$2:$B$1498,SMALL(IF(Database_Prop!$A$2:$A$1498=AL$129,ROW(Database_Prop!$B$2:$B$1498)-ROW(Database_Prop!$B$2)+1),ROWS(Database_Prop!I$2:'Database_Prop'!I9))),\"\")","v":""},{"$f":"IFERROR(INDEX(Database_Prop!$B$2:$B$1498,SMALL(IF(Database_Prop!$A$2:$A$1498=AM$129,ROW(Database_Prop!$B$2:$B$1498)-ROW(Database_Prop!$B$2)+1),ROWS(Database_Prop!J$2:'Database_Prop'!J9))),\"\")","v":""},{"$f":"IFERROR(INDEX(Database_Prop!$B$2:$B$1498,SMALL(IF(Database_Prop!$A$2:$A$1498=AN$129,ROW(Database_Prop!$B$2:$B$1498)-ROW(Database_Prop!$B$2)+1),ROWS(Database_Prop!K$2:'Database_Prop'!K9))),\"\")","v":""},{"$f":"IFERROR(INDEX(Database_Prop!$B$2:$B$1498,SMALL(IF(Database_Prop!$A$2:$A$1498=AO$129,ROW(Database_Prop!$B$2:$B$1498)-ROW(Database_Prop!$B$2)+1),ROWS(Database_Prop!L$2:'Database_Prop'!L9))),\"\")","v":""},{"$f":"IFERROR(INDEX(Database_Prop!$B$2:$B$1498,SMALL(IF(Database_Prop!$A$2:$A$1498=AP$129,ROW(Database_Prop!$B$2:$B$1498)-ROW(Database_Prop!$B$2)+1),ROWS(Database_Prop!M$2:'Database_Prop'!M9))),\"\")","v":""},{"$f":"IFERROR(INDEX(Database_Prop!$B$2:$B$1498,SMALL(IF(Database_Prop!$A$2:$A$1498=AQ$129,ROW(Database_Prop!$B$2:$B$1498)-ROW(Database_Prop!$B$2)+1),ROWS(Database_Prop!N$2:'Database_Prop'!N9))),\"\")","v":""},{"$f":"IFERROR(INDEX(Database_Prop!$B$2:$B$1498,SMALL(IF(Database_Prop!$A$2:$A$1498=AR$129,ROW(Database_Prop!$B$2:$B$1498)-ROW(Database_Prop!$B$2)+1),ROWS(Database_Prop!O$2:'Database_Prop'!O9))),\"\")","v":""},{"$f":"IFERROR(INDEX(Database_Prop!$B$2:$B$1498,SMALL(IF(Database_Prop!$A$2:$A$1498=AS$129,ROW(Database_Prop!$B$2:$B$1498)-ROW(Database_Prop!$B$2)+1),ROWS(Database_Prop!P$2:'Database_Prop'!P9))),\"\")","v":""},{"$f":"IFERROR(INDEX(Database_Prop!$B$2:$B$1498,SMALL(IF(Database_Prop!$A$2:$A$1498=AT$129,ROW(Database_Prop!$B$2:$B$1498)-ROW(Database_Prop!$B$2)+1),ROWS(Database_Prop!Q$2:'Database_Prop'!Q9))),\"\")","v":""},{"$f":"IFERROR(INDEX(Database_Prop!$B$2:$B$1498,SMALL(IF(Database_Prop!$A$2:$A$1498=AU$129,ROW(Database_Prop!$B$2:$B$1498)-ROW(Database_Prop!$B$2)+1),ROWS(Database_Prop!R$2:'Database_Prop'!R9))),\"\")","v":""},{"$f":"IFERROR(INDEX(Database_Prop!$B$2:$B$1498,SMALL(IF(Database_Prop!$A$2:$A$1498=AV$129,ROW(Database_Prop!$B$2:$B$1498)-ROW(Database_Prop!$B$2)+1),ROWS(Database_Prop!S$2:'Database_Prop'!S9))),\"\")","v":""},{"$f":"IFERROR(INDEX(Database_Prop!$B$2:$B$1498,SMALL(IF(Database_Prop!$A$2:$A$1498=AW$129,ROW(Database_Prop!$B$2:$B$1498)-ROW(Database_Prop!$B$2)+1),ROWS(Database_Prop!T$2:'Database_Prop'!T9))),\"\")","v":""},{"$f":"IFERROR(INDEX(Database_Prop!$B$2:$B$1498,SMALL(IF(Database_Prop!$A$2:$A$1498=AX$129,ROW(Database_Prop!$B$2:$B$1498)-ROW(Database_Prop!$B$2)+1),ROWS(Database_Prop!U$2:'Database_Prop'!U9))),\"\")","v":""},{"$f":"IFERROR(INDEX(Database_Prop!$B$2:$B$1498,SMALL(IF(Database_Prop!$A$2:$A$1498=AY$129,ROW(Database_Prop!$B$2:$B$1498)-ROW(Database_Prop!$B$2)+1),ROWS(Database_Prop!V$2:'Database_Prop'!V9))),\"\")","v":""},{"$f":"IFERROR(INDEX(Database_Prop!$B$2:$B$1498,SMALL(IF(Database_Prop!$A$2:$A$1498=AZ$129,ROW(Database_Prop!$B$2:$B$1498)-ROW(Database_Prop!$B$2)+1),ROWS(Database_Prop!W$2:'Database_Prop'!W9))),\"\")","v":""},{"$f":"IFERROR(INDEX(Database_Prop!$B$2:$B$1498,SMALL(IF(Database_Prop!$A$2:$A$1498=BA$129,ROW(Database_Prop!$B$2:$B$1498)-ROW(Database_Prop!$B$2)+1),ROWS(Database_Prop!X$2:'Database_Prop'!X9))),\"\")","v":""},{"$f":"IFERROR(INDEX(Database_Prop!$B$2:$B$1498,SMALL(IF(Database_Prop!$A$2:$A$1498=BB$129,ROW(Database_Prop!$B$2:$B$1498)-ROW(Database_Prop!$B$2)+1),ROWS(Database_Prop!Y$2:'Database_Prop'!Y9))),\"\")","v":""},{"$f":"IFERROR(INDEX(Database_Prop!$B$2:$B$1498,SMALL(IF(Database_Prop!$A$2:$A$1498=BC$129,ROW(Database_Prop!$B$2:$B$1498)-ROW(Database_Prop!$B$2)+1),ROWS(Database_Prop!Z$2:'Database_Prop'!Z9))),\"\")","v":""},{"$f":"title190","v":"Slaughterhouses wastes"},"Argentina","Latin America","FS6",{"$f":"D$33","v":"Please Select"},{"$f":"E$33","v":"Please Select"},{"$f":"IFERROR(IF($BH139=title192,VLOOKUP($BH139&\" \"&$BI139,Database_Prop!$C:$G,2,FALSE),TEXT(VLOOKUP($BH139&\" \"&$BI139,Database_Prop!$C:$G,2,FALSE),\"0%\")),0)","v":0},{"$f":"IFERROR(VLOOKUP($BH139&\" \"&$BI139,Database_Prop!$C:$G,5,FALSE),0)","v":0},{"$f":"IFERROR(VLOOKUP($BH139&\" \"&$BI139,Database_Prop!$C:$G,3,FALSE),0)","v":0},{"$f":"IFERROR(VLOOKUP($BH139&\" \"&$BI139,Database_Prop!$C:$G,4,FALSE),0)","v":0},0,null,null,{"$f":"title167","v":"Codigestion"},{"$f":"AND($J$11,BP137)","v":true}]
[null,null,null,null,null,null,null,null,null,null,null,null,null,null,null,null,null,null,null,null,null,null,null,null,null,null,null,null,null,null,9,{"$f":"IFERROR(INDEX(Database_Prop!$B$2:$B$1498,SMALL(IF(Database_Prop!$A$2:$A$1498=AF$129,ROW(Database_Prop!$B$2:$B$1498)-ROW(Database_Prop!$B$2)+1),ROWS(Database_Prop!C$2:'Database_Prop'!C10))),\"\")","v":""},{"$f":"IFERROR(INDEX(Database_Prop!$B$2:$B$1498,SMALL(IF(Database_Prop!$A$2:$A$1498=AG$129,ROW(Database_Prop!$B$2:$B$1498)-ROW(Database_Prop!$B$2)+1),ROWS(Database_Prop!D$2:'Database_Prop'!D10))),\"\")","v":""},{"$f":"IFERROR(INDEX(Database_Prop!$B$2:$B$1498,SMALL(IF(Database_Prop!$A$2:$A$1498=AH$129,ROW(Database_Prop!$B$2:$B$1498)-ROW(Database_Prop!$B$2)+1),ROWS(Database_Prop!E$2:'Database_Prop'!E10))),\"\")","v":""},{"$f":"IFERROR(INDEX(Database_Prop!$B$2:$B$1498,SMALL(IF(Database_Prop!$A$2:$A$1498=AI$129,ROW(Database_Prop!$B$2:$B$1498)-ROW(Database_Prop!$B$2)+1),ROWS(Database_Prop!F$2:'Database_Prop'!F10))),\"\")","v":""},{"$f":"IFERROR(INDEX(Database_Prop!$B$2:$B$1498,SMALL(IF(Database_Prop!$A$2:$A$1498=AJ$129,ROW(Database_Prop!$B$2:$B$1498)-ROW(Database_Prop!$B$2)+1),ROWS(Database_Prop!G$2:'Database_Prop'!G10))),\"\")","v":""},{"$f":"IFERROR(INDEX(Database_Prop!$B$2:$B$1498,SMALL(IF(Database_Prop!$A$2:$A$1498=AK$129,ROW(Database_Prop!$B$2:$B$1498)-ROW(Database_Prop!$B$2)+1),ROWS(Database_Prop!H$2:'Database_Prop'!H10))),\"\")","v":""},{"$f":"IFERROR(INDEX(Database_Prop!$B$2:$B$1498,SMALL(IF(Database_Prop!$A$2:$A$1498=AL$129,ROW(Database_Prop!$B$2:$B$1498)-ROW(Database_Prop!$B$2)+1),ROWS(Database_Prop!I$2:'Database_Prop'!I10))),\"\")","v":""},{"$f":"IFERROR(INDEX(Database_Prop!$B$2:$B$1498,SMALL(IF(Database_Prop!$A$2:$A$1498=AM$129,ROW(Database_Prop!$B$2:$B$1498)-ROW(Database_Prop!$B$2)+1),ROWS(Database_Prop!J$2:'Database_Prop'!J10))),\"\")","v":""},{"$f":"IFERROR(INDEX(Database_Prop!$B$2:$B$1498,SMALL(IF(Database_Prop!$A$2:$A$1498=AN$129,ROW(Database_Prop!$B$2:$B$1498)-ROW(Database_Prop!$B$2)+1),ROWS(Database_Prop!K$2:'Database_Prop'!K10))),\"\")","v":""},{"$f":"IFERROR(INDEX(Database_Prop!$B$2:$B$1498,SMALL(IF(Database_Prop!$A$2:$A$1498=AO$129,ROW(Database_Prop!$B$2:$B$1498)-ROW(Database_Prop!$B$2)+1),ROWS(Database_Prop!L$2:'Database_Prop'!L10))),\"\")","v":""},{"$f":"IFERROR(INDEX(Database_Prop!$B$2:$B$1498,SMALL(IF(Database_Prop!$A$2:$A$1498=AP$129,ROW(Database_Prop!$B$2:$B$1498)-ROW(Database_Prop!$B$2)+1),ROWS(Database_Prop!M$2:'Database_Prop'!M10))),\"\")","v":""},{"$f":"IFERROR(INDEX(Database_Prop!$B$2:$B$1498,SMALL(IF(Database_Prop!$A$2:$A$1498=AQ$129,ROW(Database_Prop!$B$2:$B$1498)-ROW(Database_Prop!$B$2)+1),ROWS(Database_Prop!N$2:'Database_Prop'!N10))),\"\")","v":""},{"$f":"IFERROR(INDEX(Database_Prop!$B$2:$B$1498,SMALL(IF(Database_Prop!$A$2:$A$1498=AR$129,ROW(Database_Prop!$B$2:$B$1498)-ROW(Database_Prop!$B$2)+1),ROWS(Database_Prop!O$2:'Database_Prop'!O10))),\"\")","v":""},{"$f":"IFERROR(INDEX(Database_Prop!$B$2:$B$1498,SMALL(IF(Database_Prop!$A$2:$A$1498=AS$129,ROW(Database_Prop!$B$2:$B$1498)-ROW(Database_Prop!$B$2)+1),ROWS(Database_Prop!P$2:'Database_Prop'!P10))),\"\")","v":""},{"$f":"IFERROR(INDEX(Database_Prop!$B$2:$B$1498,SMALL(IF(Database_Prop!$A$2:$A$1498=AT$129,ROW(Database_Prop!$B$2:$B$1498)-ROW(Database_Prop!$B$2)+1),ROWS(Database_Prop!Q$2:'Database_Prop'!Q10))),\"\")","v":""},{"$f":"IFERROR(INDEX(Database_Prop!$B$2:$B$1498,SMALL(IF(Database_Prop!$A$2:$A$1498=AU$129,ROW(Database_Prop!$B$2:$B$1498)-ROW(Database_Prop!$B$2)+1),ROWS(Database_Prop!R$2:'Database_Prop'!R10))),\"\")","v":""},{"$f":"IFERROR(INDEX(Database_Prop!$B$2:$B$1498,SMALL(IF(Database_Prop!$A$2:$A$1498=AV$129,ROW(Database_Prop!$B$2:$B$1498)-ROW(Database_Prop!$B$2)+1),ROWS(Database_Prop!S$2:'Database_Prop'!S10))),\"\")","v":""},{"$f":"IFERROR(INDEX(Database_Prop!$B$2:$B$1498,SMALL(IF(Database_Prop!$A$2:$A$1498=AW$129,ROW(Database_Prop!$B$2:$B$1498)-ROW(Database_Prop!$B$2)+1),ROWS(Database_Prop!T$2:'Database_Prop'!T10))),\"\")","v":""},{"$f":"IFERROR(INDEX(Database_Prop!$B$2:$B$1498,SMALL(IF(Database_Prop!$A$2:$A$1498=AX$129,ROW(Database_Prop!$B$2:$B$1498)-ROW(Database_Prop!$B$2)+1),ROWS(Database_Prop!U$2:'Database_Prop'!U10))),\"\")","v":""},{"$f":"IFERROR(INDEX(Database_Prop!$B$2:$B$1498,SMALL(IF(Database_Prop!$A$2:$A$1498=AY$129,ROW(Database_Prop!$B$2:$B$1498)-ROW(Database_Prop!$B$2)+1),ROWS(Database_Prop!V$2:'Database_Prop'!V10))),\"\")","v":""},{"$f":"IFERROR(INDEX(Database_Prop!$B$2:$B$1498,SMALL(IF(Database_Prop!$A$2:$A$1498=AZ$129,ROW(Database_Prop!$B$2:$B$1498)-ROW(Database_Prop!$B$2)+1),ROWS(Database_Prop!W$2:'Database_Prop'!W10))),\"\")","v":""},{"$f":"IFERROR(INDEX(Database_Prop!$B$2:$B$1498,SMALL(IF(Database_Prop!$A$2:$A$1498=BA$129,ROW(Database_Prop!$B$2:$B$1498)-ROW(Database_Prop!$B$2)+1),ROWS(Database_Prop!X$2:'Database_Prop'!X10))),\"\")","v":""},{"$f":"IFERROR(INDEX(Database_Prop!$B$2:$B$1498,SMALL(IF(Database_Prop!$A$2:$A$1498=BB$129,ROW(Database_Prop!$B$2:$B$1498)-ROW(Database_Prop!$B$2)+1),ROWS(Database_Prop!Y$2:'Database_Prop'!Y10))),\"\")","v":""},{"$f":"IFERROR(INDEX(Database_Prop!$B$2:$B$1498,SMALL(IF(Database_Prop!$A$2:$A$1498=BC$129,ROW(Database_Prop!$B$2:$B$1498)-ROW(Database_Prop!$B$2)+1),ROWS(Database_Prop!Z$2:'Database_Prop'!Z10))),\"\")","v":""},{"$f":"title191","v":"Yeast-Alcoholic Bev."},"Armenia","Asia",null,{"$f":"title98&\" 2\"","v":"Process 2"},"PS2",null,null,null,null,null,{"$f":"title98&\" 3\"","v":"Process 3"},{"$f":"$J$10","v":true},{"$f":"title172","v":"Single"},{"$f":"AND($D$11,BP140)","v":false},{"$f":"IF(SUM(Planner_PS3!$R$13:$R$17,Planner_PS3!$R$20)<>0,TRUE,FALSE)","v":false}]
[null,null,null,null,null,null,null,null,null,null,null,null,null,null,null,null,null,null,null,null,null,null,null,null,null,null,null,null,null,null,10,{"$f":"IFERROR(INDEX(Database_Prop!$B$2:$B$1498,SMALL(IF(Database_Prop!$A$2:$A$1498=AF$129,ROW(Database_Prop!$B$2:$B$1498)-ROW(Database_Prop!$B$2)+1),ROWS(Database_Prop!C$2:'Database_Prop'!C11))),\"\")","v":""},{"$f":"IFERROR(INDEX(Database_Prop!$B$2:$B$1498,SMALL(IF(Database_Prop!$A$2:$A$1498=AG$129,ROW(Database_Prop!$B$2:$B$1498)-ROW(Database_Prop!$B$2)+1),ROWS(Database_Prop!D$2:'Database_Prop'!D11))),\"\")","v":""},{"$f":"IFERROR(INDEX(Database_Prop!$B$2:$B$1498,SMALL(IF(Database_Prop!$A$2:$A$1498=AH$129,ROW(Database_Prop!$B$2:$B$1498)-ROW(Database_Prop!$B$2)+1),ROWS(Database_Prop!E$2:'Database_Prop'!E11))),\"\")","v":""},{"$f":"IFERROR(INDEX(Database_Prop!$B$2:$B$1498,SMALL(IF(Database_Prop!$A$2:$A$1498=AI$129,ROW(Database_Prop!$B$2:$B$1498)-ROW(Database_Prop!$B$2)+1),ROWS(Database_Prop!F$2:'Database_Prop'!F11))),\"\")","v":""},{"$f":"IFERROR(INDEX(Database_Prop!$B$2:$B$1498,SMALL(IF(Database_Prop!$A$2:$A$1498=AJ$129,ROW(Database_Prop!$B$2:$B$1498)-ROW(Database_Prop!$B$2)+1),ROWS(Database_Prop!G$2:'Database_Prop'!G11))),\"\")","v":""},{"$f":"IFERROR(INDEX(Database_Prop!$B$2:$B$1498,SMALL(IF(Database_Prop!$A$2:$A$1498=AK$129,ROW(Database_Prop!$B$2:$B$1498)-ROW(Database_Prop!$B$2)+1),ROWS(Database_Prop!H$2:'Database_Prop'!H11))),\"\")","v":""},{"$f":"IFERROR(INDEX(Database_Prop!$B$2:$B$1498,SMALL(IF(Database_Prop!$A$2:$A$1498=AL$129,ROW(Database_Prop!$B$2:$B$1498)-ROW(Database_Prop!$B$2)+1),ROWS(Database_Prop!I$2:'Database_Prop'!I11))),\"\")","v":""},{"$f":"IFERROR(INDEX(Database_Prop!$B$2:$B$1498,SMALL(IF(Database_Prop!$A$2:$A$1498=AM$129,ROW(Database_Prop!$B$2:$B$1498)-ROW(Database_Prop!$B$2)+1),ROWS(Database_Prop!J$2:'Database_Prop'!J11))),\"\")","v":""},{"$f":"IFERROR(INDEX(Database_Prop!$B$2:$B$1498,SMALL(IF(Database_Prop!$A$2:$A$1498=AN$129,ROW(Database_Prop!$B$2:$B$1498)-ROW(Database_Prop!$B$2)+1),ROWS(Database_Prop!K$2:'Database_Prop'!K11))),\"\")","v":""},{"$f":"IFERROR(INDEX(Database_Prop!$B$2:$B$1498,SMALL(IF(Database_Prop!$A$2:$A$1498=AO$129,ROW(Database_Prop!$B$2:$B$1498)-ROW(Database_Prop!$B$2)+1),ROWS(Database_Prop!L$2:'Database_Prop'!L11))),\"\")","v":""},{"$f":"IFERROR(INDEX(Database_Prop!$B$2:$B$1498,SMALL(IF(Database_Prop!$A$2:$A$1498=AP$129,ROW(Database_Prop!$B$2:$B$1498)-ROW(Database_Prop!$B$2)+1),ROWS(Database_Prop!M$2:'Database_Prop'!M11))),\"\")","v":""},{"$f":"IFERROR(INDEX(Database_Prop!$B$2:$B$1498,SMALL(IF(Database_Prop!$A$2:$A$1498=AQ$129,ROW(Database_Prop!$B$2:$B$1498)-ROW(Database_Prop!$B$2)+1),ROWS(Database_Prop!N$2:'Database_Prop'!N11))),\"\")","v":""},{"$f":"IFERROR(INDEX(Database_Prop!$B$2:$B$1498,SMALL(IF(Database_Prop!$A$2:$A$1498=AR$129,ROW(Database_Prop!$B$2:$B$1498)-ROW(Database_Prop!$B$2)+1),ROWS(Database_Prop!O$2:'Database_Prop'!O11))),\"\")","v":""},{"$f":"IFERROR(INDEX(Database_Prop!$B$2:$B$1498,SMALL(IF(Database_Prop!$A$2:$A$1498=AS$129,ROW(Database_Prop!$B$2:$B$1498)-ROW(Database_Prop!$B$2)+1),ROWS(Database_Prop!P$2:'Database_Prop'!P11))),\"\")","v":""},{"$f":"IFERROR(INDEX(Database_Prop!$B$2:$B$1498,SMALL(IF(Database_Prop!$A$2:$A$1498=AT$129,ROW(Database_Prop!$B$2:$B$1498)-ROW(Database_Prop!$B$2)+1),ROWS(Database_Prop!Q$2:'Database_Prop'!Q11))),\"\")","v":""},{"$f":"IFERROR(INDEX(Database_Prop!$B$2:$B$1498,SMALL(IF(Database_Prop!$A$2:$A$1498=AU$129,ROW(Database_Prop!$B$2:$B$1498)-ROW(Database_Prop!$B$2)+1),ROWS(Database_Prop!R$2:'Database_Prop'!R11))),\"\")","v":""},{"$f":"IFERROR(INDEX(Database_Prop!$B$2:$B$1498,SMALL(IF(Database_Prop!$A$2:$A$1498=AV$129,ROW(Database_Prop!$B$2:$B$1498)-ROW(Database_Prop!$B$2)+1),ROWS(Database_Prop!S$2:'Database_Prop'!S11))),\"\")","v":""},{"$f":"IFERROR(INDEX(Database_Prop!$B$2:$B$1498,SMALL(IF(Database_Prop!$A$2:$A$1498=AW$129,ROW(Database_Prop!$B$2:$B$1498)-ROW(Database_Prop!$B$2)+1),ROWS(Database_Prop!T$2:'Database_Prop'!T11))),\"\")","v":""},{"$f":"IFERROR(INDEX(Database_Prop!$B$2:$B$1498,SMALL(IF(Database_Prop!$A$2:$A$1498=AX$129,ROW(Database_Prop!$B$2:$B$1498)-ROW(Database_Prop!$B$2)+1),ROWS(Database_Prop!U$2:'Database_Prop'!U11))),\"\")","v":""},{"$f":"IFERROR(INDEX(Database_Prop!$B$2:$B$1498,SMALL(IF(Database_Prop!$A$2:$A$1498=AY$129,ROW(Database_Prop!$B$2:$B$1498)-ROW(Database_Prop!$B$2)+1),ROWS(Database_Prop!V$2:'Database_Prop'!V11))),\"\")","v":""},{"$f":"IFERROR(INDEX(Database_Prop!$B$2:$B$1498,SMALL(IF(Database_Prop!$A$2:$A$1498=AZ$129,ROW(Database_Prop!$B$2:$B$1498)-ROW(Database_Prop!$B$2)+1),ROWS(Database_Prop!W$2:'Database_Prop'!W11))),\"\")","v":""},{"$f":"IFERROR(INDEX(Database_Prop!$B$2:$B$1498,SMALL(IF(Database_Prop!$A$2:$A$1498=BA$129,ROW(Database_Prop!$B$2:$B$1498)-ROW(Database_Prop!$B$2)+1),ROWS(Database_Prop!X$2:'Database_Prop'!X11))),\"\")","v":""},{"$f":"IFERROR(INDEX(Database_Prop!$B$2:$B$1498,SMALL(IF(Database_Prop!$A$2:$A$1498=BB$129,ROW(Database_Prop!$B$2:$B$1498)-ROW(Database_Prop!$B$2)+1),ROWS(Database_Prop!Y$2:'Database_Prop'!Y11))),\"\")","v":""},{"$f":"IFERROR(INDEX(Database_Prop!$B$2:$B$1498,SMALL(IF(Database_Prop!$A$2:$A$1498=BC$129,ROW(Database_Prop!$B$2:$B$1498)-ROW(Database_Prop!$B$2)+1),ROWS(Database_Prop!Z$2:'Database_Prop'!Z11))),\"\")","v":""},{"$f":"title84","v":"Manure"},"Aruba","Latin America",null,{"$f":"title108","v":"Main Category"},{"$f":"title109","v":"Feedstock"},{"$f":"G$22","v":"VS (%)"},{"$f":"H$22","v":"TS (%)"},{"$f":"I$22","v":"BMP (m3/t VS)"},"CH4 (%)","Collection Price",null,null,{"$f":"title173","v":"Multi"},{"$f":"AND($F$11,BP140)","v":false}]
[null,null,null,null,null,null,null,null,null,null,null,null,null,null,null,null,null,null,null,null,null,null,null,null,null,null,null,null,null,null,11,{"$f":"IFERROR(INDEX(Database_Prop!$B$2:$B$1498,SMALL(IF(Database_Prop!$A$2:$A$1498=AF$129,ROW(Database_Prop!$B$2:$B$1498)-ROW(Database_Prop!$B$2)+1),ROWS(Database_Prop!C$2:'Database_Prop'!C12))),\"\")","v":""},{"$f":"IFERROR(INDEX(Database_Prop!$B$2:$B$1498,SMALL(IF(Database_Prop!$A$2:$A$1498=AG$129,ROW(Database_Prop!$B$2:$B$1498)-ROW(Database_Prop!$B$2)+1),ROWS(Database_Prop!D$2:'Database_Prop'!D12))),\"\")","v":""},{"$f":"IFERROR(INDEX(Database_Prop!$B$2:$B$1498,SMALL(IF(Database_Prop!$A$2:$A$1498=AH$129,ROW(Database_Prop!$B$2:$B$1498)-ROW(Database_Prop!$B$2)+1),ROWS(Database_Prop!E$2:'Database_Prop'!E12))),\"\")","v":""},{"$f":"IFERROR(INDEX(Database_Prop!$B$2:$B$1498,SMALL(IF(Database_Prop!$A$2:$A$1498=AI$129,ROW(Database_Prop!$B$2:$B$1498)-ROW(Database_Prop!$B$2)+1),ROWS(Database_Prop!F$2:'Database_Prop'!F12))),\"\")","v":""},{"$f":"IFERROR(INDEX(Database_Prop!$B$2:$B$1498,SMALL(IF(Database_Prop!$A$2:$A$1498=AJ$129,ROW(Database_Prop!$B$2:$B$1498)-ROW(Database_Prop!$B$2)+1),ROWS(Database_Prop!G$2:'Database_Prop'!G12))),\"\")","v":""},{"$f":"IFERROR(INDEX(Database_Prop!$B$2:$B$1498,SMALL(IF(Database_Prop!$A$2:$A$1498=AK$129,ROW(Database_Prop!$B$2:$B$1498)-ROW(Database_Prop!$B$2)+1),ROWS(Database_Prop!H$2:'Database_Prop'!H12))),\"\")","v":""},{"$f":"IFERROR(INDEX(Database_Prop!$B$2:$B$1498,SMALL(IF(Database_Prop!$A$2:$A$1498=AL$129,ROW(Database_Prop!$B$2:$B$1498)-ROW(Database_Prop!$B$2)+1),ROWS(Database_Prop!I$2:'Database_Prop'!I12))),\"\")","v":""},{"$f":"IFERROR(INDEX(Database_Prop!$B$2:$B$1498,SMALL(IF(Database_Prop!$A$2:$A$1498=AM$129,ROW(Database_Prop!$B$2:$B$1498)-ROW(Database_Prop!$B$2)+1),ROWS(Database_Prop!J$2:'Database_Prop'!J12))),\"\")","v":""},{"$f":"IFERROR(INDEX(Database_Prop!$B$2:$B$1498,SMALL(IF(Database_Prop!$A$2:$A$1498=AN$129,ROW(Database_Prop!$B$2:$B$1498)-ROW(Database_Prop!$B$2)+1),ROWS(Database_Prop!K$2:'Database_Prop'!K12))),\"\")","v":""},{"$f":"IFERROR(INDEX(Database_Prop!$B$2:$B$1498,SMALL(IF(Database_Prop!$A$2:$A$1498=AO$129,ROW(Database_Prop!$B$2:$B$1498)-ROW(Database_Prop!$B$2)+1),ROWS(Database_Prop!L$2:'Database_Prop'!L12))),\"\")","v":""},{"$f":"IFERROR(INDEX(Database_Prop!$B$2:$B$1498,SMALL(IF(Database_Prop!$A$2:$A$1498=AP$129,ROW(Database_Prop!$B$2:$B$1498)-ROW(Database_Prop!$B$2)+1),ROWS(Database_Prop!M$2:'Database_Prop'!M12))),\"\")","v":""},{"$f":"IFERROR(INDEX(Database_Prop!$B$2:$B$1498,SMALL(IF(Database_Prop!$A$2:$A$1498=AQ$129,ROW(Database_Prop!$B$2:$B$1498)-ROW(Database_Prop!$B$2)+1),ROWS(Database_Prop!N$2:'Database_Prop'!N12))),\"\")","v":""},{"$f":"IFERROR(INDEX(Database_Prop!$B$2:$B$1498,SMALL(IF(Database_Prop!$A$2:$A$1498=AR$129,ROW(Database_Prop!$B$2:$B$1498)-ROW(Database_Prop!$B$2)+1),ROWS(Database_Prop!O$2:'Database_Prop'!O12))),\"\")","v":""},{"$f":"IFERROR(INDEX(Database_Prop!$B$2:$B$1498,SMALL(IF(Database_Prop!$A$2:$A$1498=AS$129,ROW(Database_Prop!$B$2:$B$1498)-ROW(Database_Prop!$B$2)+1),ROWS(Database_Prop!P$2:'Database_Prop'!P12))),\"\")","v":""},{"$f":"IFERROR(INDEX(Database_Prop!$B$2:$B$1498,SMALL(IF(Database_Prop!$A$2:$A$1498=AT$129,ROW(Database_Prop!$B$2:$B$1498)-ROW(Database_Prop!$B$2)+1),ROWS(Database_Prop!Q$2:'Database_Prop'!Q12))),\"\")","v":""},{"$f":"IFERROR(INDEX(Database_Prop!$B$2:$B$1498,SMALL(IF(Database_Prop!$A$2:$A$1498=AU$129,ROW(Database_Prop!$B$2:$B$1498)-ROW(Database_Prop!$B$2)+1),ROWS(Database_Prop!R$2:'Database_Prop'!R12))),\"\")","v":""},{"$f":"IFERROR(INDEX(Database_Prop!$B$2:$B$1498,SMALL(IF(Database_Prop!$A$2:$A$1498=AV$129,ROW(Database_Prop!$B$2:$B$1498)-ROW(Database_Prop!$B$2)+1),ROWS(Database_Prop!S$2:'Database_Prop'!S12))),\"\")","v":""},{"$f":"IFERROR(INDEX(Database_Prop!$B$2:$B$1498,SMALL(IF(Database_Prop!$A$2:$A$1498=AW$129,ROW(Database_Prop!$B$2:$B$1498)-ROW(Database_Prop!$B$2)+1),ROWS(Database_Prop!T$2:'Database_Prop'!T12))),\"\")","v":""},{"$f":"IFERROR(INDEX(Database_Prop!$B$2:$B$1498,SMALL(IF(Database_Prop!$A$2:$A$1498=AX$129,ROW(Database_Prop!$B$2:$B$1498)-ROW(Database_Prop!$B$2)+1),ROWS(Database_Prop!U$2:'Database_Prop'!U12))),\"\")","v":""},{"$f":"IFERROR(INDEX(Database_Prop!$B$2:$B$1498,SMALL(IF(Database_Prop!$A$2:$A$1498=AY$129,ROW(Database_Prop!$B$2:$B$1498)-ROW(Database_Prop!$B$2)+1),ROWS(Database_Prop!V$2:'Database_Prop'!V12))),\"\")","v":""},{"$f":"IFERROR(INDEX(Database_Prop!$B$2:$B$1498,SMALL(IF(Database_Prop!$A$2:$A$1498=AZ$129,ROW(Database_Prop!$B$2:$B$1498)-ROW(Database_Prop!$B$2)+1),ROWS(Database_Prop!W$2:'Database_Prop'!W12))),\"\")","v":""},{"$f":"IFERROR(INDEX(Database_Prop!$B$2:$B$1498,SMALL(IF(Database_Prop!$A$2:$A$1498=BA$129,ROW(Database_Prop!$B$2:$B$1498)-ROW(Database_Prop!$B$2)+1),ROWS(Database_Prop!X$2:'Database_Prop'!X12))),\"\")","v":""},{"$f":"IFERROR(INDEX(Database_Prop!$B$2:$B$1498,SMALL(IF(Database_Prop!$A$2:$A$1498=BB$129,ROW(Database_Prop!$B$2:$B$1498)-ROW(Database_Prop!$B$2)+1),ROWS(Database_Prop!Y$2:'Database_Prop'!Y12))),\"\")","v":""},{"$f":"IFERROR(INDEX(Database_Prop!$B$2:$B$1498,SMALL(IF(Database_Prop!$A$2:$A$1498=BC$129,ROW(Database_Prop!$B$2:$B$1498)-ROW(Database_Prop!$B$2)+1),ROWS(Database_Prop!Z$2:'Database_Prop'!Z12))),\"\")","v":""},{"$f":"IF($BP$125=3,\"\",title192)","v":""},"Australia","Oceania","FS1",{"$f":"$D$39","v":"Please Select"},{"$f":"$E$39","v":"Please Select"},{"$f":"IFERROR(IF($BH142=title192,VLOOKUP($BH142&\" \"&$BI142,Database_Prop!$C:$G,2,FALSE),TEXT(VLOOKUP($BH142&\" \"&$BI142,Database_Prop!$C:$G,2,FALSE),\"0%\")),0)","v":0},{"$f":"IFERROR(VLOOKUP($BH142&\" \"&$BI142,Database_Prop!$C:$G,5,FALSE),0)","v":0},{"$f":"IFERROR(VLOOKUP($BH142&\" \"&$BI142,Database_Prop!$C:$G,3,FALSE),0)","v":0},{"$f":"IFERROR(VLOOKUP($BH142&\" \"&$BI142,Database_Prop!$C:$G,4,FALSE),0)","v":0},{"$f":"IFERROR(INDIRECT(\"PRICE_\"&$BG142&\"_\"&BI$140&$BN$126),0)","v":0},null,null,{"$f":"title167","v":"Codigestion"},{"$f":"AND($J$11,BP140)","v":true}]
[null,null,null,null,null,null,null,null,null,null,null,null,null,null,null,null,null,null,null,null,null,null,null,null,null,null,null,null,null,null,12,{"$f":"IFERROR(INDEX(Database_Prop!$B$2:$B$1498,SMALL(IF(Database_Prop!$A$2:$A$1498=AF$129,ROW(Database_Prop!$B$2:$B$1498)-ROW(Database_Prop!$B$2)+1),ROWS(Database_Prop!C$2:'Database_Prop'!C13))),\"\")","v":""},{"$f":"IFERROR(INDEX(Database_Prop!$B$2:$B$1498,SMALL(IF(Database_Prop!$A$2:$A$1498=AG$129,ROW(Database_Prop!$B$2:$B$1498)-ROW(Database_Prop!$B$2)+1),ROWS(Database_Prop!D$2:'Database_Prop'!D13))),\"\")","v":""},{"$f":"IFERROR(INDEX(Database_Prop!$B$2:$B$1498,SMALL(IF(Database_Prop!$A$2:$A$1498=AH$129,ROW(Database_Prop!$B$2:$B$1498)-ROW(Database_Prop!$B$2)+1),ROWS(Database_Prop!E$2:'Database_Prop'!E13))),\"\")","v":""},{"$f":"IFERROR(INDEX(Database_Prop!$B$2:$B$1498,SMALL(IF(Database_Prop!$A$2:$A$1498=AI$129,ROW(Database_Prop!$B$2:$B$1498)-ROW(Database_Prop!$B$2)+1),ROWS(Database_Prop!F$2:'Database_Prop'!F13))),\"\")","v":""},{"$f":"IFERROR(INDEX(Database_Prop!$B$2:$B$1498,SMALL(IF(Database_Prop!$A$2:$A$1498=AJ$129,ROW(Database_Prop!$B$2:$B$1498)-ROW(Database_Prop!$B$2)+1),ROWS(Database_Prop!G$2:'Database_Prop'!G13))),\"\")","v":""},{"$f":"IFERROR(INDEX(Database_Prop!$B$2:$B$1498,SMALL(IF(Database_Prop!$A$2:$A$1498=AK$129,ROW(Database_Prop!$B$2:$B$1498)-ROW(Database_Prop!$B$2)+1),ROWS(Database_Prop!H$2:'Database_Prop'!H13))),\"\")","v":""},{"$f":"IFERROR(INDEX(Database_Prop!$B$2:$B$1498,SMALL(IF(Database_Prop!$A$2:$A$1498=AL$129,ROW(Database_Prop!$B$2:$B$1498)-ROW(Database_Prop!$B$2)+1),ROWS(Database_Prop!I$2:'Database_Prop'!I13))),\"\")","v":""},{"$f":"IFERROR(INDEX(Database_Prop!$B$2:$B$1498,SMALL(IF(Database_Prop!$A$2:$A$1498=AM$129,ROW(Database_Prop!$B$2:$B$1498)-ROW(Database_Prop!$B$2)+1),ROWS(Database_Prop!J$2:'Database_Prop'!J13))),\"\")","v":""},{"$f":"IFERROR(INDEX(Database_Prop!$B$2:$B$1498,SMALL(IF(Database_Prop!$A$2:$A$1498=AN$129,ROW(Database_Prop!$B$2:$B$1498)-ROW(Database_Prop!$B$2)+1),ROWS(Database_Prop!K$2:'Database_Prop'!K13))),\"\")","v":""},{"$f":"IFERROR(INDEX(Database_Prop!$B$2:$B$1498,SMALL(IF(Database_Prop!$A$2:$A$1498=AO$129,ROW(Database_Prop!$B$2:$B$1498)-ROW(Database_Prop!$B$2)+1),ROWS(Database_Prop!L$2:'Database_Prop'!L13))),\"\")","v":""},{"$f":"IFERROR(INDEX(Database_Prop!$B$2:$B$1498,SMALL(IF(Database_Prop!$A$2:$A$1498=AP$129,ROW(Database_Prop!$B$2:$B$1498)-ROW(Database_Prop!$B$2)+1),ROWS(Database_Prop!M$2:'Database_Prop'!M13))),\"\")","v":""},{"$f":"IFERROR(INDEX(Database_Prop!$B$2:$B$1498,SMALL(IF(Database_Prop!$A$2:$A$1498=AQ$129,ROW(Database_Prop!$B$2:$B$1498)-ROW(Database_Prop!$B$2)+1),ROWS(Database_Prop!N$2:'Database_Prop'!N13))),\"\")","v":""},{"$f":"IFERROR(INDEX(Database_Prop!$B$2:$B$1498,SMALL(IF(Database_Prop!$A$2:$A$1498=AR$129,ROW(Database_Prop!$B$2:$B$1498)-ROW(Database_Prop!$B$2)+1),ROWS(Database_Prop!O$2:'Database_Prop'!O13))),\"\")","v":""},{"$f":"IFERROR(INDEX(Database_Prop!$B$2:$B$1498,SMALL(IF(Database_Prop!$A$2:$A$1498=AS$129,ROW(Database_Prop!$B$2:$B$1498)-ROW(Database_Prop!$B$2)+1),ROWS(Database_Prop!P$2:'Database_Prop'!P13))),\"\")","v":""},{"$f":"IFERROR(INDEX(Database_Prop!$B$2:$B$1498,SMALL(IF(Database_Prop!$A$2:$A$1498=AT$129,ROW(Database_Prop!$B$2:$B$1498)-ROW(Database_Prop!$B$2)+1),ROWS(Database_Prop!Q$2:'Database_Prop'!Q13))),\"\")","v":""},{"$f":"IFERROR(INDEX(Database_Prop!$B$2:$B$1498,SMALL(IF(Database_Prop!$A$2:$A$1498=AU$129,ROW(Database_Prop!$B$2:$B$1498)-ROW(Database_Prop!$B$2)+1),ROWS(Database_Prop!R$2:'Database_Prop'!R13))),\"\")","v":""},{"$f":"IFERROR(INDEX(Database_Prop!$B$2:$B$1498,SMALL(IF(Database_Prop!$A$2:$A$1498=AV$129,ROW(Database_Prop!$B$2:$B$1498)-ROW(Database_Prop!$B$2)+1),ROWS(Database_Prop!S$2:'Database_Prop'!S13))),\"\")","v":""},{"$f":"IFERROR(INDEX(Database_Prop!$B$2:$B$1498,SMALL(IF(Database_Prop!$A$2:$A$1498=AW$129,ROW(Database_Prop!$B$2:$B$1498)-ROW(Database_Prop!$B$2)+1),ROWS(Database_Prop!T$2:'Database_Prop'!T13))),\"\")","v":""},{"$f":"IFERROR(INDEX(Database_Prop!$B$2:$B$1498,SMALL(IF(Database_Prop!$A$2:$A$1498=AX$129,ROW(Database_Prop!$B$2:$B$1498)-ROW(Database_Prop!$B$2)+1),ROWS(Database_Prop!U$2:'Database_Prop'!U13))),\"\")","v":""},{"$f":"IFERROR(INDEX(Database_Prop!$B$2:$B$1498,SMALL(IF(Database_Prop!$A$2:$A$1498=AY$129,ROW(Database_Prop!$B$2:$B$1498)-ROW(Database_Prop!$B$2)+1),ROWS(Database_Prop!V$2:'Database_Prop'!V13))),\"\")","v":""},{"$f":"IFERROR(INDEX(Database_Prop!$B$2:$B$1498,SMALL(IF(Database_Prop!$A$2:$A$1498=AZ$129,ROW(Database_Prop!$B$2:$B$1498)-ROW(Database_Prop!$B$2)+1),ROWS(Database_Prop!W$2:'Database_Prop'!W13))),\"\")","v":""},{"$f":"IFERROR(INDEX(Database_Prop!$B$2:$B$1498,SMALL(IF(Database_Prop!$A$2:$A$1498=BA$129,ROW(Database_Prop!$B$2:$B$1498)-ROW(Database_Prop!$B$2)+1),ROWS(Database_Prop!X$2:'Database_Prop'!X13))),\"\")","v":""},{"$f":"IFERROR(INDEX(Database_Prop!$B$2:$B$1498,SMALL(IF(Database_Prop!$A$2:$A$1498=BB$129,ROW(Database_Prop!$B$2:$B$1498)-ROW(Database_Prop!$B$2)+1),ROWS(Database_Prop!Y$2:'Database_Prop'!Y13))),\"\")","v":""},{"$f":"IFERROR(INDEX(Database_Prop!$B$2:$B$1498,SMALL(IF(Database_Prop!$A$2:$A$1498=BC$129,ROW(Database_Prop!$B$2:$B$1498)-ROW(Database_Prop!$B$2)+1),ROWS(Database_Prop!Z$2:'Database_Prop'!Z13))),\"\")","v":""},{"$f":"title74","v":"Please Select"},"Austria","Western Europe",null,{"$f":"title108","v":"Main Category"},{"$f":"title109","v":"Feedstock"},{"$f":"G$22","v":"VS (%)"},{"$f":"H$22","v":"TS (%)"},{"$f":"I$22","v":"BMP (m3/t VS)"},"CH4 (%)","Collection Price",{"$f":"title98&\" 4\"","v":"Process 4"},{"$f":"$L$10","v":true},{"$f":"title172","v":"Single"},{"$f":"AND($D$11,BP143)","v":false},{"$f":"IF(SUM(Planner_PS4!$R$13:$R$17,Planner_PS4!$R$20)<>0,TRUE,FALSE)","v":false}]
[null,null,null,null,null,null,null,null,null,null,null,null,null,null,null,null,null,null,null,null,null,null,null,null,null,null,null,null,null,null,13,{"$f":"IFERROR(INDEX(Database_Prop!$B$2:$B$1498,SMALL(IF(Database_Prop!$A$2:$A$1498=AF$129,ROW(Database_Prop!$B$2:$B$1498)-ROW(Database_Prop!$B$2)+1),ROWS(Database_Prop!C$2:'Database_Prop'!C14))),\"\")","v":""},{"$f":"IFERROR(INDEX(Database_Prop!$B$2:$B$1498,SMALL(IF(Database_Prop!$A$2:$A$1498=AG$129,ROW(Database_Prop!$B$2:$B$1498)-ROW(Database_Prop!$B$2)+1),ROWS(Database_Prop!D$2:'Database_Prop'!D14))),\"\")","v":""},{"$f":"IFERROR(INDEX(Database_Prop!$B$2:$B$1498,SMALL(IF(Database_Prop!$A$2:$A$1498=AH$129,ROW(Database_Prop!$B$2:$B$1498)-ROW(Database_Prop!$B$2)+1),ROWS(Database_Prop!E$2:'Database_Prop'!E14))),\"\")","v":""},{"$f":"IFERROR(INDEX(Database_Prop!$B$2:$B$1498,SMALL(IF(Database_Prop!$A$2:$A$1498=AI$129,ROW(Database_Prop!$B$2:$B$1498)-ROW(Database_Prop!$B$2)+1),ROWS(Database_Prop!F$2:'Database_Prop'!F14))),\"\")","v":""},{"$f":"IFERROR(INDEX(Database_Prop!$B$2:$B$1498,SMALL(IF(Database_Prop!$A$2:$A$1498=AJ$129,ROW(Database_Prop!$B$2:$B$1498)-ROW(Database_Prop!$B$2)+1),ROWS(Database_Prop!G$2:'Database_Prop'!G14))),\"\")","v":""},{"$f":"IFERROR(INDEX(Database_Prop!$B$2:$B$1498,SMALL(IF(Database_Prop!$A$2:$A$1498=AK$129,ROW(Database_Prop!$B$2:$B$1498)-ROW(Database_Prop!$B$2)+1),ROWS(Database_Prop!H$2:'Database_Prop'!H14))),\"\")","v":""},{"$f":"IFERROR(INDEX(Database_Prop!$B$2:$B$1498,SMALL(IF(Database_Prop!$A$2:$A$1498=AL$129,ROW(Database_Prop!$B$2:$B$1498)-ROW(Database_Prop!$B$2)+1),ROWS(Database_Prop!I$2:'Database_Prop'!I14))),\"\")","v":""},{"$f":"IFERROR(INDEX(Database_Prop!$B$2:$B$1498,SMALL(IF(Database_Prop!$A$2:$A$1498=AM$129,ROW(Database_Prop!$B$2:$B$1498)-ROW(Database_Prop!$B$2)+1),ROWS(Database_Prop!J$2:'Database_Prop'!J14))),\"\")","v":""},{"$f":"IFERROR(INDEX(Database_Prop!$B$2:$B$1498,SMALL(IF(Database_Prop!$A$2:$A$1498=AN$129,ROW(Database_Prop!$B$2:$B$1498)-ROW(Database_Prop!$B$2)+1),ROWS(Database_Prop!K$2:'Database_Prop'!K14))),\"\")","v":""},{"$f":"IFERROR(INDEX(Database_Prop!$B$2:$B$1498,SMALL(IF(Database_Prop!$A$2:$A$1498=AO$129,ROW(Database_Prop!$B$2:$B$1498)-ROW(Database_Prop!$B$2)+1),ROWS(Database_Prop!L$2:'Database_Prop'!L14))),\"\")","v":""},{"$f":"IFERROR(INDEX(Database_Prop!$B$2:$B$1498,SMALL(IF(Database_Prop!$A$2:$A$1498=AP$129,ROW(Database_Prop!$B$2:$B$1498)-ROW(Database_Prop!$B$2)+1),ROWS(Database_Prop!M$2:'Database_Prop'!M14))),\"\")","v":""},{"$f":"IFERROR(INDEX(Database_Prop!$B$2:$B$1498,SMALL(IF(Database_Prop!$A$2:$A$1498=AQ$129,ROW(Database_Prop!$B$2:$B$1498)-ROW(Database_Prop!$B$2)+1),ROWS(Database_Prop!N$2:'Database_Prop'!N14))),\"\")","v":""},{"$f":"IFERROR(INDEX(Database_Prop!$B$2:$B$1498,SMALL(IF(Database_Prop!$A$2:$A$1498=AR$129,ROW(Database_Prop!$B$2:$B$1498)-ROW(Database_Prop!$B$2)+1),ROWS(Database_Prop!O$2:'Database_Prop'!O14))),\"\")","v":""},{"$f":"IFERROR(INDEX(Database_Prop!$B$2:$B$1498,SMALL(IF(Database_Prop!$A$2:$A$1498=AS$129,ROW(Database_Prop!$B$2:$B$1498)-ROW(Database_Prop!$B$2)+1),ROWS(Database_Prop!P$2:'Database_Prop'!P14))),\"\")","v":""},{"$f":"IFERROR(INDEX(Database_Prop!$B$2:$B$1498,SMALL(IF(Database_Prop!$A$2:$A$1498=AT$129,ROW(Database_Prop!$B$2:$B$1498)-ROW(Database_Prop!$B$2)+1),ROWS(Database_Prop!Q$2:'Database_Prop'!Q14))),\"\")","v":""},{"$f":"IFERROR(INDEX(Database_Prop!$B$2:$B$1498,SMALL(IF(Database_Prop!$A$2:$A$1498=AU$129,ROW(Database_Prop!$B$2:$B$1498)-ROW(Database_Prop!$B$2)+1),ROWS(Database_Prop!R$2:'Database_Prop'!R14))),\"\")","v":""},{"$f":"IFERROR(INDEX(Database_Prop!$B$2:$B$1498,SMALL(IF(Database_Prop!$A$2:$A$1498=AV$129,ROW(Database_Prop!$B$2:$B$1498)-ROW(Database_Prop!$B$2)+1),ROWS(Database_Prop!S$2:'Database_Prop'!S14))),\"\")","v":""},{"$f":"IFERROR(INDEX(Database_Prop!$B$2:$B$1498,SMALL(IF(Database_Prop!$A$2:$A$1498=AW$129,ROW(Database_Prop!$B$2:$B$1498)-ROW(Database_Prop!$B$2)+1),ROWS(Database_Prop!T$2:'Database_Prop'!T14))),\"\")","v":""},{"$f":"IFERROR(INDEX(Database_Prop!$B$2:$B$1498,SMALL(IF(Database_Prop!$A$2:$A$1498=AX$129,ROW(Database_Prop!$B$2:$B$1498)-ROW(Database_Prop!$B$2)+1),ROWS(Database_Prop!U$2:'Database_Prop'!U14))),\"\")","v":""},{"$f":"IFERROR(INDEX(Database_Prop!$B$2:$B$1498,SMALL(IF(Database_Prop!$A$2:$A$1498=AY$129,ROW(Database_Prop!$B$2:$B$1498)-ROW(Database_Prop!$B$2)+1),ROWS(Database_Prop!V$2:'Database_Prop'!V14))),\"\")","v":""},{"$f":"IFERROR(INDEX(Database_Prop!$B$2:$B$1498,SMALL(IF(Database_Prop!$A$2:$A$1498=AZ$129,ROW(Database_Prop!$B$2:$B$1498)-ROW(Database_Prop!$B$2)+1),ROWS(Database_Prop!W$2:'Database_Prop'!W14))),\"\")","v":""},{"$f":"IFERROR(INDEX(Database_Prop!$B$2:$B$1498,SMALL(IF(Database_Prop!$A$2:$A$1498=BA$129,ROW(Database_Prop!$B$2:$B$1498)-ROW(Database_Prop!$B$2)+1),ROWS(Database_Prop!X$2:'Database_Prop'!X14))),\"\")","v":""},{"$f":"IFERROR(INDEX(Database_Prop!$B$2:$B$1498,SMALL(IF(Database_Prop!$A$2:$A$1498=BB$129,ROW(Database_Prop!$B$2:$B$1498)-ROW(Database_Prop!$B$2)+1),ROWS(Database_Prop!Y$2:'Database_Prop'!Y14))),\"\")","v":""},{"$f":"IFERROR(INDEX(Database_Prop!$B$2:$B$1498,SMALL(IF(Database_Prop!$A$2:$A$1498=BC$129,ROW(Database_Prop!$B$2:$B$1498)-ROW(Database_Prop!$B$2)+1),ROWS(Database_Prop!Z$2:'Database_Prop'!Z14))),\"\")","v":""},{"$f":"title84","v":"Manure"},"Azerbaijan","Asia","FS2",{"$f":"$D$41","v":"Please Select"},{"$f":"$E$41","v":"Please Select"},{"$f":"IFERROR(IF($BH144=title192,VLOOKUP($BH144&\" \"&$BI144,Database_Prop!$C:$G,2,FALSE),TEXT(VLOOKUP($BH144&\" \"&$BI144,Database_Prop!$C:$G,2,FALSE),\"0%\")),0)","v":0},{"$f":"IFERROR(VLOOKUP($BH144&\" \"&$BI144,Database_Prop!$C:$G,5,FALSE),0)","v":0},{"$f":"IFERROR(VLOOKUP($BH144&\" \"&$BI144,Database_Prop!$C:$G,3,FALSE),0)","v":0},{"$f":"IFERROR(VLOOKUP($BH144&\" \"&$BI144,Database_Prop!$C:$G,4,FALSE),0)","v":0},{"$f":"IFERROR(INDIRECT(\"PRICE_\"&$BG144&\"_\"&BI$140&$BN$126),0)","v":0},null,null,{"$f":"title173","v":"Multi"},{"$f":"AND($F$11,BP143)","v":false}]
[null,null,null,null,null,null,null,null,null,null,null,null,null,null,null,null,null,null,null,null,null,null,null,null,null,null,null,null,null,null,14,{"$f":"IFERROR(INDEX(Database_Prop!$B$2:$B$1498,SMALL(IF(Database_Prop!$A$2:$A$1498=AF$129,ROW(Database_Prop!$B$2:$B$1498)-ROW(Database_Prop!$B$2)+1),ROWS(Database_Prop!C$2:'Database_Prop'!C15))),\"\")","v":""},{"$f":"IFERROR(INDEX(Database_Prop!$B$2:$B$1498,SMALL(IF(Database_Prop!$A$2:$A$1498=AG$129,ROW(Database_Prop!$B$2:$B$1498)-ROW(Database_Prop!$B$2)+1),ROWS(Database_Prop!D$2:'Database_Prop'!D15))),\"\")","v":""},{"$f":"IFERROR(INDEX(Database_Prop!$B$2:$B$1498,SMALL(IF(Database_Prop!$A$2:$A$1498=AH$129,ROW(Database_Prop!$B$2:$B$1498)-ROW(Database_Prop!$B$2)+1),ROWS(Database_Prop!E$2:'Database_Prop'!E15))),\"\")","v":""},{"$f":"IFERROR(INDEX(Database_Prop!$B$2:$B$1498,SMALL(IF(Database_Prop!$A$2:$A$1498=AI$129,ROW(Database_Prop!$B$2:$B$1498)-ROW(Database_Prop!$B$2)+1),ROWS(Database_Prop!F$2:'Database_Prop'!F15))),\"\")","v":""},{"$f":"IFERROR(INDEX(Database_Prop!$B$2:$B$1498,SMALL(IF(Database_Prop!$A$2:$A$1498=AJ$129,ROW(Database_Prop!$B$2:$B$1498)-ROW(Database_Prop!$B$2)+1),ROWS(Database_Prop!G$2:'Database_Prop'!G15))),\"\")","v":""},{"$f":"IFERROR(INDEX(Database_Prop!$B$2:$B$1498,SMALL(IF(Database_Prop!$A$2:$A$1498=AK$129,ROW(Database_Prop!$B$2:$B$1498)-ROW(Database_Prop!$B$2)+1),ROWS(Database_Prop!H$2:'Database_Prop'!H15))),\"\")","v":""},{"$f":"IFERROR(INDEX(Database_Prop!$B$2:$B$1498,SMALL(IF(Database_Prop!$A$2:$A$1498=AL$129,ROW(Database_Prop!$B$2:$B$1498)-ROW(Database_Prop!$B$2)+1),ROWS(Database_Prop!I$2:'Database_Prop'!I15))),\"\")","v":""},{"$f":"IFERROR(INDEX(Database_Prop!$B$2:$B$1498,SMALL(IF(Database_Prop!$A$2:$A$1498=AM$129,ROW(Database_Prop!$B$2:$B$1498)-ROW(Database_Prop!$B$2)+1),ROWS(Database_Prop!J$2:'Database_Prop'!J15))),\"\")","v":""},{"$f":"IFERROR(INDEX(Database_Prop!$B$2:$B$1498,SMALL(IF(Database_Prop!$A$2:$A$1498=AN$129,ROW(Database_Prop!$B$2:$B$1498)-ROW(Database_Prop!$B$2)+1),ROWS(Database_Prop!K$2:'Database_Prop'!K15))),\"\")","v":""},{"$f":"IFERROR(INDEX(Database_Prop!$B$2:$B$1498,SMALL(IF(Database_Prop!$A$2:$A$1498=AO$129,ROW(Database_Prop!$B$2:$B$1498)-ROW(Database_Prop!$B$2)+1),ROWS(Database_Prop!L$2:'Database_Prop'!L15))),\"\")","v":""},{"$f":"IFERROR(INDEX(Database_Prop!$B$2:$B$1498,SMALL(IF(Database_Prop!$A$2:$A$1498=AP$129,ROW(Database_Prop!$B$2:$B$1498)-ROW(Database_Prop!$B$2)+1),ROWS(Database_Prop!M$2:'Database_Prop'!M15))),\"\")","v":""},{"$f":"IFERROR(INDEX(Database_Prop!$B$2:$B$1498,SMALL(IF(Database_Prop!$A$2:$A$1498=AQ$129,ROW(Database_Prop!$B$2:$B$1498)-ROW(Database_Prop!$B$2)+1),ROWS(Database_Prop!N$2:'Database_Prop'!N15))),\"\")","v":""},{"$f":"IFERROR(INDEX(Database_Prop!$B$2:$B$1498,SMALL(IF(Database_Prop!$A$2:$A$1498=AR$129,ROW(Database_Prop!$B$2:$B$1498)-ROW(Database_Prop!$B$2)+1),ROWS(Database_Prop!O$2:'Database_Prop'!O15))),\"\")","v":""},{"$f":"IFERROR(INDEX(Database_Prop!$B$2:$B$1498,SMALL(IF(Database_Prop!$A$2:$A$1498=AS$129,ROW(Database_Prop!$B$2:$B$1498)-ROW(Database_Prop!$B$2)+1),ROWS(Database_Prop!P$2:'Database_Prop'!P15))),\"\")","v":""},{"$f":"IFERROR(INDEX(Database_Prop!$B$2:$B$1498,SMALL(IF(Database_Prop!$A$2:$A$1498=AT$129,ROW(Database_Prop!$B$2:$B$1498)-ROW(Database_Prop!$B$2)+1),ROWS(Database_Prop!Q$2:'Database_Prop'!Q15))),\"\")","v":""},{"$f":"IFERROR(INDEX(Database_Prop!$B$2:$B$1498,SMALL(IF(Database_Prop!$A$2:$A$1498=AU$129,ROW(Database_Prop!$B$2:$B$1498)-ROW(Database_Prop!$B$2)+1),ROWS(Database_Prop!R$2:'Database_Prop'!R15))),\"\")","v":""},{"$f":"IFERROR(INDEX(Database_Prop!$B$2:$B$1498,SMALL(IF(Database_Prop!$A$2:$A$1498=AV$129,ROW(Database_Prop!$B$2:$B$1498)-ROW(Database_Prop!$B$2)+1),ROWS(Database_Prop!S$2:'Database_Prop'!S15))),\"\")","v":""},{"$f":"IFERROR(INDEX(Database_Prop!$B$2:$B$1498,SMALL(IF(Database_Prop!$A$2:$A$1498=AW$129,ROW(Database_Prop!$B$2:$B$1498)-ROW(Database_Prop!$B$2)+1),ROWS(Database_Prop!T$2:'Database_Prop'!T15))),\"\")","v":""},{"$f":"IFERROR(INDEX(Database_Prop!$B$2:$B$1498,SMALL(IF(Database_Prop!$A$2:$A$1498=AX$129,ROW(Database_Prop!$B$2:$B$1498)-ROW(Database_Prop!$B$2)+1),ROWS(Database_Prop!U$2:'Database_Prop'!U15))),\"\")","v":""},{"$f":"IFERROR(INDEX(Database_Prop!$B$2:$B$1498,SMALL(IF(Database_Prop!$A$2:$A$1498=AY$129,ROW(Database_Prop!$B$2:$B$1498)-ROW(Database_Prop!$B$2)+1),ROWS(Database_Prop!V$2:'Database_Prop'!V15))),\"\")","v":""},{"$f":"IFERROR(INDEX(Database_Prop!$B$2:$B$1498,SMALL(IF(Database_Prop!$A$2:$A$1498=AZ$129,ROW(Database_Prop!$B$2:$B$1498)-ROW(Database_Prop!$B$2)+1),ROWS(Database_Prop!W$2:'Database_Prop'!W15))),\"\")","v":""},{"$f":"IFERROR(INDEX(Database_Prop!$B$2:$B$1498,SMALL(IF(Database_Prop!$A$2:$A$1498=BA$129,ROW(Database_Prop!$B$2:$B$1498)-ROW(Database_Prop!$B$2)+1),ROWS(Database_Prop!X$2:'Database_Prop'!X15))),\"\")","v":""},{"$f":"IFERROR(INDEX(Database_Prop!$B$2:$B$1498,SMALL(IF(Database_Prop!$A$2:$A$1498=BB$129,ROW(Database_Prop!$B$2:$B$1498)-ROW(Database_Prop!$B$2)+1),ROWS(Database_Prop!Y$2:'Database_Prop'!Y15))),\"\")","v":""},{"$f":"IFERROR(INDEX(Database_Prop!$B$2:$B$1498,SMALL(IF(Database_Prop!$A$2:$A$1498=BC$129,ROW(Database_Prop!$B$2:$B$1498)-ROW(Database_Prop!$B$2)+1),ROWS(Database_Prop!Z$2:'Database_Prop'!Z15))),\"\")","v":""},{"$f":"title192","v":"Wastewater"},"Bahamas","Latin America",null,{"$f":"title108","v":"Main Category"},{"$f":"title109","v":"Feedstock"},{"$f":"G$24","v":"VS (%)"},{"$f":"H$24","v":"TS (%)"},{"$f":"I$24","v":"BMP (m3/t VS)"},"CH4 (%)","Collection Price",null,null,{"$f":"title167","v":"Codigestion"},{"$f":"AND($J$11,BP143)","v":true}]
[null,null,null,null,null,null,null,null,null,null,null,null,null,null,null,null,null,null,null,null,null,null,null,null,null,null,null,null,null,null,15,{"$f":"IFERROR(INDEX(Database_Prop!$B$2:$B$1498,SMALL(IF(Database_Prop!$A$2:$A$1498=AF$129,ROW(Database_Prop!$B$2:$B$1498)-ROW(Database_Prop!$B$2)+1),ROWS(Database_Prop!C$2:'Database_Prop'!C16))),\"\")","v":""},{"$f":"IFERROR(INDEX(Database_Prop!$B$2:$B$1498,SMALL(IF(Database_Prop!$A$2:$A$1498=AG$129,ROW(Database_Prop!$B$2:$B$1498)-ROW(Database_Prop!$B$2)+1),ROWS(Database_Prop!D$2:'Database_Prop'!D16))),\"\")","v":""},{"$f":"IFERROR(INDEX(Database_Prop!$B$2:$B$1498,SMALL(IF(Database_Prop!$A$2:$A$1498=AH$129,ROW(Database_Prop!$B$2:$B$1498)-ROW(Database_Prop!$B$2)+1),ROWS(Database_Prop!E$2:'Database_Prop'!E16))),\"\")","v":""},{"$f":"IFERROR(INDEX(Database_Prop!$B$2:$B$1498,SMALL(IF(Database_Prop!$A$2:$A$1498=AI$129,ROW(Database_Prop!$B$2:$B$1498)-ROW(Database_Prop!$B$2)+1),ROWS(Database_Prop!F$2:'Database_Prop'!F16))),\"\")","v":""},{"$f":"IFERROR(INDEX(Database_Prop!$B$2:$B$1498,SMALL(IF(Database_Prop!$A$2:$A$1498=AJ$129,ROW(Database_Prop!$B$2:$B$1498)-ROW(Database_Prop!$B$2)+1),ROWS(Database_Prop!G$2:'Database_Prop'!G16))),\"\")","v":""},{"$f":"IFERROR(INDEX(Database_Prop!$B$2:$B$1498,SMALL(IF(Database_Prop!$A$2:$A$1498=AK$129,ROW(Database_Prop!$B$2:$B$1498)-ROW(Database_Prop!$B$2)+1),ROWS(Database_Prop!H$2:'Database_Prop'!H16))),\"\")","v":""},{"$f":"IFERROR(INDEX(Database_Prop!$B$2:$B$1498,SMALL(IF(Database_Prop!$A$2:$A$1498=AL$129,ROW(Database_Prop!$B$2:$B$1498)-ROW(Database_Prop!$B$2)+1),ROWS(Database_Prop!I$2:'Database_Prop'!I16))),\"\")","v":""},{"$f":"IFERROR(INDEX(Database_Prop!$B$2:$B$1498,SMALL(IF(Database_Prop!$A$2:$A$1498=AM$129,ROW(Database_Prop!$B$2:$B$1498)-ROW(Database_Prop!$B$2)+1),ROWS(Database_Prop!J$2:'Database_Prop'!J16))),\"\")","v":""},{"$f":"IFERROR(INDEX(Database_Prop!$B$2:$B$1498,SMALL(IF(Database_Prop!$A$2:$A$1498=AN$129,ROW(Database_Prop!$B$2:$B$1498)-ROW(Database_Prop!$B$2)+1),ROWS(Database_Prop!K$2:'Database_Prop'!K16))),\"\")","v":""},{"$f":"IFERROR(INDEX(Database_Prop!$B$2:$B$1498,SMALL(IF(Database_Prop!$A$2:$A$1498=AO$129,ROW(Database_Prop!$B$2:$B$1498)-ROW(Database_Prop!$B$2)+1),ROWS(Database_Prop!L$2:'Database_Prop'!L16))),\"\")","v":""},{"$f":"IFERROR(INDEX(Database_Prop!$B$2:$B$1498,SMALL(IF(Database_Prop!$A$2:$A$1498=AP$129,ROW(Database_Prop!$B$2:$B$1498)-ROW(Database_Prop!$B$2)+1),ROWS(Database_Prop!M$2:'Database_Prop'!M16))),\"\")","v":""},{"$f":"IFERROR(INDEX(Database_Prop!$B$2:$B$1498,SMALL(IF(Database_Prop!$A$2:$A$1498=AQ$129,ROW(Database_Prop!$B$2:$B$1498)-ROW(Database_Prop!$B$2)+1),ROWS(Database_Prop!N$2:'Database_Prop'!N16))),\"\")","v":""},{"$f":"IFERROR(INDEX(Database_Prop!$B$2:$B$1498,SMALL(IF(Database_Prop!$A$2:$A$1498=AR$129,ROW(Database_Prop!$B$2:$B$1498)-ROW(Database_Prop!$B$2)+1),ROWS(Database_Prop!O$2:'Database_Prop'!O16))),\"\")","v":""},{"$f":"IFERROR(INDEX(Database_Prop!$B$2:$B$1498,SMALL(IF(Database_Prop!$A$2:$A$1498=AS$129,ROW(Database_Prop!$B$2:$B$1498)-ROW(Database_Prop!$B$2)+1),ROWS(Database_Prop!P$2:'Database_Prop'!P16))),\"\")","v":""},{"$f":"IFERROR(INDEX(Database_Prop!$B$2:$B$1498,SMALL(IF(Database_Prop!$A$2:$A$1498=AT$129,ROW(Database_Prop!$B$2:$B$1498)-ROW(Database_Prop!$B$2)+1),ROWS(Database_Prop!Q$2:'Database_Prop'!Q16))),\"\")","v":""},{"$f":"IFERROR(INDEX(Database_Prop!$B$2:$B$1498,SMALL(IF(Database_Prop!$A$2:$A$1498=AU$129,ROW(Database_Prop!$B$2:$B$1498)-ROW(Database_Prop!$B$2)+1),ROWS(Database_Prop!R$2:'Database_Prop'!R16))),\"\")","v":""},{"$f":"IFERROR(INDEX(Database_Prop!$B$2:$B$1498,SMALL(IF(Database_Prop!$A$2:$A$1498=AV$129,ROW(Database_Prop!$B$2:$B$1498)-ROW(Database_Prop!$B$2)+1),ROWS(Database_Prop!S$2:'Database_Prop'!S16))),\"\")","v":""},{"$f":"IFERROR(INDEX(Database_Prop!$B$2:$B$1498,SMALL(IF(Database_Prop!$A$2:$A$1498=AW$129,ROW(Database_Prop!$B$2:$B$1498)-ROW(Database_Prop!$B$2)+1),ROWS(Database_Prop!T$2:'Database_Prop'!T16))),\"\")","v":""},{"$f":"IFERROR(INDEX(Database_Prop!$B$2:$B$1498,SMALL(IF(Database_Prop!$A$2:$A$1498=AX$129,ROW(Database_Prop!$B$2:$B$1498)-ROW(Database_Prop!$B$2)+1),ROWS(Database_Prop!U$2:'Database_Prop'!U16))),\"\")","v":""},{"$f":"IFERROR(INDEX(Database_Prop!$B$2:$B$1498,SMALL(IF(Database_Prop!$A$2:$A$1498=AY$129,ROW(Database_Prop!$B$2:$B$1498)-ROW(Database_Prop!$B$2)+1),ROWS(Database_Prop!V$2:'Database_Prop'!V16))),\"\")","v":""},{"$f":"IFERROR(INDEX(Database_Prop!$B$2:$B$1498,SMALL(IF(Database_Prop!$A$2:$A$1498=AZ$129,ROW(Database_Prop!$B$2:$B$1498)-ROW(Database_Prop!$B$2)+1),ROWS(Database_Prop!W$2:'Database_Prop'!W16))),\"\")","v":""},{"$f":"IFERROR(INDEX(Database_Prop!$B$2:$B$1498,SMALL(IF(Database_Prop!$A$2:$A$1498=BA$129,ROW(Database_Prop!$B$2:$B$1498)-ROW(Database_Prop!$B$2)+1),ROWS(Database_Prop!X$2:'Database_Prop'!X16))),\"\")","v":""},{"$f":"IFERROR(INDEX(Database_Prop!$B$2:$B$1498,SMALL(IF(Database_Prop!$A$2:$A$1498=BB$129,ROW(Database_Prop!$B$2:$B$1498)-ROW(Database_Prop!$B$2)+1),ROWS(Database_Prop!Y$2:'Database_Prop'!Y16))),\"\")","v":""},{"$f":"IFERROR(INDEX(Database_Prop!$B$2:$B$1498,SMALL(IF(Database_Prop!$A$2:$A$1498=BC$129,ROW(Database_Prop!$B$2:$B$1498)-ROW(Database_Prop!$B$2)+1),ROWS(Database_Prop!Z$2:'Database_Prop'!Z16))),\"\")","v":""},null,"Bahrain","Asia","FS3",{"$f":"$D$43","v":"Please Select"},{"$f":"$E$43","v":"Please Select"},{"$f":"IFERROR(IF($BH146=title192,VLOOKUP($BH146&\" \"&$BI146,Database_Prop!$C:$G,2,FALSE),TEXT(VLOOKUP($BH146&\" \"&$BI146,Database_Prop!$C:$G,2,FALSE),\"0%\")),0)","v":0},{"$f":"IFERROR(VLOOKUP($BH146&\" \"&$BI146,Database_Prop!$C:$G,5,FALSE),0)","v":0},{"$f":"IFERROR(VLOOKUP($BH146&\" \"&$BI146,Database_Prop!$C:$G,3,FALSE),0)","v":0},{"$f":"IFERROR(VLOOKUP($BH146&\" \"&$BI146,Database_Prop!$C:$G,4,FALSE),0)","v":0},{"$f":"IFERROR(INDIRECT(\"PRICE_\"&$BG146&\"_\"&BI$140&$BN$126),0)","v":0}]
[null,null,null,null,null,null,null,null,null,null,null,null,null,null,null,null,null,null,null,null,null,null,null,null,null,null,null,null,null,null,16,{"$f":"IFERROR(INDEX(Database_Prop!$B$2:$B$1498,SMALL(IF(Database_Prop!$A$2:$A$1498=AF$129,ROW(Database_Prop!$B$2:$B$1498)-ROW(Database_Prop!$B$2)+1),ROWS(Database_Prop!C$2:'Database_Prop'!C17))),\"\")","v":""},{"$f":"IFERROR(INDEX(Database_Prop!$B$2:$B$1498,SMALL(IF(Database_Prop!$A$2:$A$1498=AG$129,ROW(Database_Prop!$B$2:$B$1498)-ROW(Database_Prop!$B$2)+1),ROWS(Database_Prop!D$2:'Database_Prop'!D17))),\"\")","v":""},{"$f":"IFERROR(INDEX(Database_Prop!$B$2:$B$1498,SMALL(IF(Database_Prop!$A$2:$A$1498=AH$129,ROW(Database_Prop!$B$2:$B$1498)-ROW(Database_Prop!$B$2)+1),ROWS(Database_Prop!E$2:'Database_Prop'!E17))),\"\")","v":""},{"$f":"IFERROR(INDEX(Database_Prop!$B$2:$B$1498,SMALL(IF(Database_Prop!$A$2:$A$1498=AI$129,ROW(Database_Prop!$B$2:$B$1498)-ROW(Database_Prop!$B$2)+1),ROWS(Database_Prop!F$2:'Database_Prop'!F17))),\"\")","v":""},{"$f":"IFERROR(INDEX(Database_Prop!$B$2:$B$1498,SMALL(IF(Database_Prop!$A$2:$A$1498=AJ$129,ROW(Database_Prop!$B$2:$B$1498)-ROW(Database_Prop!$B$2)+1),ROWS(Database_Prop!G$2:'Database_Prop'!G17))),\"\")","v":""},{"$f":"IFERROR(INDEX(Database_Prop!$B$2:$B$1498,SMALL(IF(Database_Prop!$A$2:$A$1498=AK$129,ROW(Database_Prop!$B$2:$B$1498)-ROW(Database_Prop!$B$2)+1),ROWS(Database_Prop!H$2:'Database_Prop'!H17))),\"\")","v":""},{"$f":"IFERROR(INDEX(Database_Prop!$B$2:$B$1498,SMALL(IF(Database_Prop!$A$2:$A$1498=AL$129,ROW(Database_Prop!$B$2:$B$1498)-ROW(Database_Prop!$B$2)+1),ROWS(Database_Prop!I$2:'Database_Prop'!I17))),\"\")","v":""},{"$f":"IFERROR(INDEX(Database_Prop!$B$2:$B$1498,SMALL(IF(Database_Prop!$A$2:$A$1498=AM$129,ROW(Database_Prop!$B$2:$B$1498)-ROW(Database_Prop!$B$2)+1),ROWS(Database_Prop!J$2:'Database_Prop'!J17))),\"\")","v":""},{"$f":"IFERROR(INDEX(Database_Prop!$B$2:$B$1498,SMALL(IF(Database_Prop!$A$2:$A$1498=AN$129,ROW(Database_Prop!$B$2:$B$1498)-ROW(Database_Prop!$B$2)+1),ROWS(Database_Prop!K$2:'Database_Prop'!K17))),\"\")","v":""},{"$f":"IFERROR(INDEX(Database_Prop!$B$2:$B$1498,SMALL(IF(Database_Prop!$A$2:$A$1498=AO$129,ROW(Database_Prop!$B$2:$B$1498)-ROW(Database_Prop!$B$2)+1),ROWS(Database_Prop!L$2:'Database_Prop'!L17))),\"\")","v":""},{"$f":"IFERROR(INDEX(Database_Prop!$B$2:$B$1498,SMALL(IF(Database_Prop!$A$2:$A$1498=AP$129,ROW(Database_Prop!$B$2:$B$1498)-ROW(Database_Prop!$B$2)+1),ROWS(Database_Prop!M$2:'Database_Prop'!M17))),\"\")","v":""},{"$f":"IFERROR(INDEX(Database_Prop!$B$2:$B$1498,SMALL(IF(Database_Prop!$A$2:$A$1498=AQ$129,ROW(Database_Prop!$B$2:$B$1498)-ROW(Database_Prop!$B$2)+1),ROWS(Database_Prop!N$2:'Database_Prop'!N17))),\"\")","v":""},{"$f":"IFERROR(INDEX(Database_Prop!$B$2:$B$1498,SMALL(IF(Database_Prop!$A$2:$A$1498=AR$129,ROW(Database_Prop!$B$2:$B$1498)-ROW(Database_Prop!$B$2)+1),ROWS(Database_Prop!O$2:'Database_Prop'!O17))),\"\")","v":""},{"$f":"IFERROR(INDEX(Database_Prop!$B$2:$B$1498,SMALL(IF(Database_Prop!$A$2:$A$1498=AS$129,ROW(Database_Prop!$B$2:$B$1498)-ROW(Database_Prop!$B$2)+1),ROWS(Database_Prop!P$2:'Database_Prop'!P17))),\"\")","v":""},{"$f":"IFERROR(INDEX(Database_Prop!$B$2:$B$1498,SMALL(IF(Database_Prop!$A$2:$A$1498=AT$129,ROW(Database_Prop!$B$2:$B$1498)-ROW(Database_Prop!$B$2)+1),ROWS(Database_Prop!Q$2:'Database_Prop'!Q17))),\"\")","v":""},{"$f":"IFERROR(INDEX(Database_Prop!$B$2:$B$1498,SMALL(IF(Database_Prop!$A$2:$A$1498=AU$129,ROW(Database_Prop!$B$2:$B$1498)-ROW(Database_Prop!$B$2)+1),ROWS(Database_Prop!R$2:'Database_Prop'!R17))),\"\")","v":""},{"$f":"IFERROR(INDEX(Database_Prop!$B$2:$B$1498,SMALL(IF(Database_Prop!$A$2:$A$1498=AV$129,ROW(Database_Prop!$B$2:$B$1498)-ROW(Database_Prop!$B$2)+1),ROWS(Database_Prop!S$2:'Database_Prop'!S17))),\"\")","v":""},{"$f":"IFERROR(INDEX(Database_Prop!$B$2:$B$1498,SMALL(IF(Database_Prop!$A$2:$A$1498=AW$129,ROW(Database_Prop!$B$2:$B$1498)-ROW(Database_Prop!$B$2)+1),ROWS(Database_Prop!T$2:'Database_Prop'!T17))),\"\")","v":""},{"$f":"IFERROR(INDEX(Database_Prop!$B$2:$B$1498,SMALL(IF(Database_Prop!$A$2:$A$1498=AX$129,ROW(Database_Prop!$B$2:$B$1498)-ROW(Database_Prop!$B$2)+1),ROWS(Database_Prop!U$2:'Database_Prop'!U17))),\"\")","v":""},{"$f":"IFERROR(INDEX(Database_Prop!$B$2:$B$1498,SMALL(IF(Database_Prop!$A$2:$A$1498=AY$129,ROW(Database_Prop!$B$2:$B$1498)-ROW(Database_Prop!$B$2)+1),ROWS(Database_Prop!V$2:'Database_Prop'!V17))),\"\")","v":""},{"$f":"IFERROR(INDEX(Database_Prop!$B$2:$B$1498,SMALL(IF(Database_Prop!$A$2:$A$1498=AZ$129,ROW(Database_Prop!$B$2:$B$1498)-ROW(Database_Prop!$B$2)+1),ROWS(Database_Prop!W$2:'Database_Prop'!W17))),\"\")","v":""},{"$f":"IFERROR(INDEX(Database_Prop!$B$2:$B$1498,SMALL(IF(Database_Prop!$A$2:$A$1498=BA$129,ROW(Database_Prop!$B$2:$B$1498)-ROW(Database_Prop!$B$2)+1),ROWS(Database_Prop!X$2:'Database_Prop'!X17))),\"\")","v":""},{"$f":"IFERROR(INDEX(Database_Prop!$B$2:$B$1498,SMALL(IF(Database_Prop!$A$2:$A$1498=BB$129,ROW(Database_Prop!$B$2:$B$1498)-ROW(Database_Prop!$B$2)+1),ROWS(Database_Prop!Y$2:'Database_Prop'!Y17))),\"\")","v":""},{"$f":"IFERROR(INDEX(Database_Prop!$B$2:$B$1498,SMALL(IF(Database_Prop!$A$2:$A$1498=BC$129,ROW(Database_Prop!$B$2:$B$1498)-ROW(Database_Prop!$B$2)+1),ROWS(Database_Prop!Z$2:'Database_Prop'!Z17))),\"\")","v":""},null,"Bangladesh","Indian Subcontinent",null,{"$f":"title108","v":"Main Category"},{"$f":"title109","v":"Feedstock"},{"$f":"G$26","v":"VS (%)"},{"$f":"H$26","v":"TS (%)"},{"$f":"I$26","v":"BMP (m3/t VS)"},"CH4 (%)","Collection Price"]
[null,null,null,null,null,null,null,null,null,null,null,null,null,null,null,null,null,null,null,null,null,null,null,null,null,null,null,null,null,null,17,{"$f":"IFERROR(INDEX(Database_Prop!$B$2:$B$1498,SMALL(IF(Database_Prop!$A$2:$A$1498=AF$129,ROW(Database_Prop!$B$2:$B$1498)-ROW(Database_Prop!$B$2)+1),ROWS(Database_Prop!C$2:'Database_Prop'!C18))),\"\")","v":""},{"$f":"IFERROR(INDEX(Database_Prop!$B$2:$B$1498,SMALL(IF(Database_Prop!$A$2:$A$1498=AG$129,ROW(Database_Prop!$B$2:$B$1498)-ROW(Database_Prop!$B$2)+1),ROWS(Database_Prop!D$2:'Database_Prop'!D18))),\"\")","v":""},{"$f":"IFERROR(INDEX(Database_Prop!$B$2:$B$1498,SMALL(IF(Database_Prop!$A$2:$A$1498=AH$129,ROW(Database_Prop!$B$2:$B$1498)-ROW(Database_Prop!$B$2)+1),ROWS(Database_Prop!E$2:'Database_Prop'!E18))),\"\")","v":""},{"$f":"IFERROR(INDEX(Database_Prop!$B$2:$B$1498,SMALL(IF(Database_Prop!$A$2:$A$1498=AI$129,ROW(Database_Prop!$B$2:$B$1498)-ROW(Database_Prop!$B$2)+1),ROWS(Database_Prop!F$2:'Database_Prop'!F18))),\"\")","v":""},{"$f":"IFERROR(INDEX(Database_Prop!$B$2:$B$1498,SMALL(IF(Database_Prop!$A$2:$A$1498=AJ$129,ROW(Database_Prop!$B$2:$B$1498)-ROW(Database_Prop!$B$2)+1),ROWS(Database_Prop!G$2:'Database_Prop'!G18))),\"\")","v":""},{"$f":"IFERROR(INDEX(Database_Prop!$B$2:$B$1498,SMALL(IF(Database_Prop!$A$2:$A$1498=AK$129,ROW(Database_Prop!$B$2:$B$1498)-ROW(Database_Prop!$B$2)+1),ROWS(Database_Prop!H$2:'Database_Prop'!H18))),\"\")","v":""},{"$f":"IFERROR(INDEX(Database_Prop!$B$2:$B$1498,SMALL(IF(Database_Prop!$A$2:$A$1498=AL$129,ROW(Database_Prop!$B$2:$B$1498)-ROW(Database_Prop!$B$2)+1),ROWS(Database_Prop!I$2:'Database_Prop'!I18))),\"\")","v":""},{"$f":"IFERROR(INDEX(Database_Prop!$B$2:$B$1498,SMALL(IF(Database_Prop!$A$2:$A$1498=AM$129,ROW(Database_Prop!$B$2:$B$1498)-ROW(Database_Prop!$B$2)+1),ROWS(Database_Prop!J$2:'Database_Prop'!J18))),\"\")","v":""},{"$f":"IFERROR(INDEX(Database_Prop!$B$2:$B$1498,SMALL(IF(Database_Prop!$A$2:$A$1498=AN$129,ROW(Database_Prop!$B$2:$B$1498)-ROW(Database_Prop!$B$2)+1),ROWS(Database_Prop!K$2:'Database_Prop'!K18))),\"\")","v":""},{"$f":"IFERROR(INDEX(Database_Prop!$B$2:$B$1498,SMALL(IF(Database_Prop!$A$2:$A$1498=AO$129,ROW(Database_Prop!$B$2:$B$1498)-ROW(Database_Prop!$B$2)+1),ROWS(Database_Prop!L$2:'Database_Prop'!L18))),\"\")","v":""},{"$f":"IFERROR(INDEX(Database_Prop!$B$2:$B$1498,SMALL(IF(Database_Prop!$A$2:$A$1498=AP$129,ROW(Database_Prop!$B$2:$B$1498)-ROW(Database_Prop!$B$2)+1),ROWS(Database_Prop!M$2:'Database_Prop'!M18))),\"\")","v":""},{"$f":"IFERROR(INDEX(Database_Prop!$B$2:$B$1498,SMALL(IF(Database_Prop!$A$2:$A$1498=AQ$129,ROW(Database_Prop!$B$2:$B$1498)-ROW(Database_Prop!$B$2)+1),ROWS(Database_Prop!N$2:'Database_Prop'!N18))),\"\")","v":""},{"$f":"IFERROR(INDEX(Database_Prop!$B$2:$B$1498,SMALL(IF(Database_Prop!$A$2:$A$1498=AR$129,ROW(Database_Prop!$B$2:$B$1498)-ROW(Database_Prop!$B$2)+1),ROWS(Database_Prop!O$2:'Database_Prop'!O18))),\"\")","v":""},{"$f":"IFERROR(INDEX(Database_Prop!$B$2:$B$1498,SMALL(IF(Database_Prop!$A$2:$A$1498=AS$129,ROW(Database_Prop!$B$2:$B$1498)-ROW(Database_Prop!$B$2)+1),ROWS(Database_Prop!P$2:'Database_Prop'!P18))),\"\")","v":""},{"$f":"IFERROR(INDEX(Database_Prop!$B$2:$B$1498,SMALL(IF(Database_Prop!$A$2:$A$1498=AT$129,ROW(Database_Prop!$B$2:$B$1498)-ROW(Database_Prop!$B$2)+1),ROWS(Database_Prop!Q$2:'Database_Prop'!Q18))),\"\")","v":""},{"$f":"IFERROR(INDEX(Database_Prop!$B$2:$B$1498,SMALL(IF(Database_Prop!$A$2:$A$1498=AU$129,ROW(Database_Prop!$B$2:$B$1498)-ROW(Database_Prop!$B$2)+1),ROWS(Database_Prop!R$2:'Database_Prop'!R18))),\"\")","v":""},{"$f":"IFERROR(INDEX(Database_Prop!$B$2:$B$1498,SMALL(IF(Database_Prop!$A$2:$A$1498=AV$129,ROW(Database_Prop!$B$2:$B$1498)-ROW(Database_Prop!$B$2)+1),ROWS(Database_Prop!S$2:'Database_Prop'!S18))),\"\")","v":""},{"$f":"IFERROR(INDEX(Database_Prop!$B$2:$B$1498,SMALL(IF(Database_Prop!$A$2:$A$1498=AW$129,ROW(Database_Prop!$B$2:$B$1498)-ROW(Database_Prop!$B$2)+1),ROWS(Database_Prop!T$2:'Database_Prop'!T18))),\"\")","v":""},{"$f":"IFERROR(INDEX(Database_Prop!$B$2:$B$1498,SMALL(IF(Database_Prop!$A$2:$A$1498=AX$129,ROW(Database_Prop!$B$2:$B$1498)-ROW(Database_Prop!$B$2)+1),ROWS(Database_Prop!U$2:'Database_Prop'!U18))),\"\")","v":""},{"$f":"IFERROR(INDEX(Database_Prop!$B$2:$B$1498,SMALL(IF(Database_Prop!$A$2:$A$1498=AY$129,ROW(Database_Prop!$B$2:$B$1498)-ROW(Database_Prop!$B$2)+1),ROWS(Database_Prop!V$2:'Database_Prop'!V18))),\"\")","v":""},{"$f":"IFERROR(INDEX(Database_Prop!$B$2:$B$1498,SMALL(IF(Database_Prop!$A$2:$A$1498=AZ$129,ROW(Database_Prop!$B$2:$B$1498)-ROW(Database_Prop!$B$2)+1),ROWS(Database_Prop!W$2:'Database_Prop'!W18))),\"\")","v":""},{"$f":"IFERROR(INDEX(Database_Prop!$B$2:$B$1498,SMALL(IF(Database_Prop!$A$2:$A$1498=BA$129,ROW(Database_Prop!$B$2:$B$1498)-ROW(Database_Prop!$B$2)+1),ROWS(Database_Prop!X$2:'Database_Prop'!X18))),\"\")","v":""},{"$f":"IFERROR(INDEX(Database_Prop!$B$2:$B$1498,SMALL(IF(Database_Prop!$A$2:$A$1498=BB$129,ROW(Database_Prop!$B$2:$B$1498)-ROW(Database_Prop!$B$2)+1),ROWS(Database_Prop!Y$2:'Database_Prop'!Y18))),\"\")","v":""},{"$f":"IFERROR(INDEX(Database_Prop!$B$2:$B$1498,SMALL(IF(Database_Prop!$A$2:$A$1498=BC$129,ROW(Database_Prop!$B$2:$B$1498)-ROW(Database_Prop!$B$2)+1),ROWS(Database_Prop!Z$2:'Database_Prop'!Z18))),\"\")","v":""},null,"Barbados","Latin America","FS4",{"$f":"$D$45","v":"Please Select"},{"$f":"$E$45","v":"Please Select"},{"$f":"IFERROR(IF($BH148=title192,VLOOKUP($BH148&\" \"&$BI148,Database_Prop!$C:$G,2,FALSE),TEXT(VLOOKUP($BH148&\" \"&$BI148,Database_Prop!$C:$G,2,FALSE),\"0%\")),0)","v":0},{"$f":"IFERROR(VLOOKUP($BH148&\" \"&$BI148,Database_Prop!$C:$G,5,FALSE),0)","v":0},{"$f":"IFERROR(VLOOKUP($BH148&\" \"&$BI148,Database_Prop!$C:$G,3,FALSE),0)","v":0},{"$f":"IFERROR(VLOOKUP($BH148&\" \"&$BI148,Database_Prop!$C:$G,4,FALSE),0)","v":0},{"$f":"IFERROR(INDIRECT(\"PRICE_\"&$BG148&\"_\"&BI$140&$BN$126),0)","v":0},{"$f":"title74","v":"Please Select"}]
[null,null,null,null,null,null,null,null,null,null,null,null,null,null,null,null,null,null,null,null,null,null,null,null,null,null,null,null,null,null,18,{"$f":"IFERROR(INDEX(Database_Prop!$B$2:$B$1498,SMALL(IF(Database_Prop!$A$2:$A$1498=AF$129,ROW(Database_Prop!$B$2:$B$1498)-ROW(Database_Prop!$B$2)+1),ROWS(Database_Prop!C$2:'Database_Prop'!C19))),\"\")","v":""},{"$f":"IFERROR(INDEX(Database_Prop!$B$2:$B$1498,SMALL(IF(Database_Prop!$A$2:$A$1498=AG$129,ROW(Database_Prop!$B$2:$B$1498)-ROW(Database_Prop!$B$2)+1),ROWS(Database_Prop!D$2:'Database_Prop'!D19))),\"\")","v":""},{"$f":"IFERROR(INDEX(Database_Prop!$B$2:$B$1498,SMALL(IF(Database_Prop!$A$2:$A$1498=AH$129,ROW(Database_Prop!$B$2:$B$1498)-ROW(Database_Prop!$B$2)+1),ROWS(Database_Prop!E$2:'Database_Prop'!E19))),\"\")","v":""},{"$f":"IFERROR(INDEX(Database_Prop!$B$2:$B$1498,SMALL(IF(Database_Prop!$A$2:$A$1498=AI$129,ROW(Database_Prop!$B$2:$B$1498)-ROW(Database_Prop!$B$2)+1),ROWS(Database_Prop!F$2:'Database_Prop'!F19))),\"\")","v":""},{"$f":"IFERROR(INDEX(Database_Prop!$B$2:$B$1498,SMALL(IF(Database_Prop!$A$2:$A$1498=AJ$129,ROW(Database_Prop!$B$2:$B$1498)-ROW(Database_Prop!$B$2)+1),ROWS(Database_Prop!G$2:'Database_Prop'!G19))),\"\")","v":""},{"$f":"IFERROR(INDEX(Database_Prop!$B$2:$B$1498,SMALL(IF(Database_Prop!$A$2:$A$1498=AK$129,ROW(Database_Prop!$B$2:$B$1498)-ROW(Database_Prop!$B$2)+1),ROWS(Database_Prop!H$2:'Database_Prop'!H19))),\"\")","v":""},{"$f":"IFERROR(INDEX(Database_Prop!$B$2:$B$1498,SMALL(IF(Database_Prop!$A$2:$A$1498=AL$129,ROW(Database_Prop!$B$2:$B$1498)-ROW(Database_Prop!$B$2)+1),ROWS(Database_Prop!I$2:'Database_Prop'!I19))),\"\")","v":""},{"$f":"IFERROR(INDEX(Database_Prop!$B$2:$B$1498,SMALL(IF(Database_Prop!$A$2:$A$1498=AM$129,ROW(Database_Prop!$B$2:$B$1498)-ROW(Database_Prop!$B$2)+1),ROWS(Database_Prop!J$2:'Database_Prop'!J19))),\"\")","v":""},{"$f":"IFERROR(INDEX(Database_Prop!$B$2:$B$1498,SMALL(IF(Database_Prop!$A$2:$A$1498=AN$129,ROW(Database_Prop!$B$2:$B$1498)-ROW(Database_Prop!$B$2)+1),ROWS(Database_Prop!K$2:'Database_Prop'!K19))),\"\")","v":""},{"$f":"IFERROR(INDEX(Database_Prop!$B$2:$B$1498,SMALL(IF(Database_Prop!$A$2:$A$1498=AO$129,ROW(Database_Prop!$B$2:$B$1498)-ROW(Database_Prop!$B$2)+1),ROWS(Database_Prop!L$2:'Database_Prop'!L19))),\"\")","v":""},{"$f":"IFERROR(INDEX(Database_Prop!$B$2:$B$1498,SMALL(IF(Database_Prop!$A$2:$A$1498=AP$129,ROW(Database_Prop!$B$2:$B$1498)-ROW(Database_Prop!$B$2)+1),ROWS(Database_Prop!M$2:'Database_Prop'!M19))),\"\")","v":""},{"$f":"IFERROR(INDEX(Database_Prop!$B$2:$B$1498,SMALL(IF(Database_Prop!$A$2:$A$1498=AQ$129,ROW(Database_Prop!$B$2:$B$1498)-ROW(Database_Prop!$B$2)+1),ROWS(Database_Prop!N$2:'Database_Prop'!N19))),\"\")","v":""},{"$f":"IFERROR(INDEX(Database_Prop!$B$2:$B$1498,SMALL(IF(Database_Prop!$A$2:$A$1498=AR$129,ROW(Database_Prop!$B$2:$B$1498)-ROW(Database_Prop!$B$2)+1),ROWS(Database_Prop!O$2:'Database_Prop'!O19))),\"\")","v":""},{"$f":"IFERROR(INDEX(Database_Prop!$B$2:$B$1498,SMALL(IF(Database_Prop!$A$2:$A$1498=AS$129,ROW(Database_Prop!$B$2:$B$1498)-ROW(Database_Prop!$B$2)+1),ROWS(Database_Prop!P$2:'Database_Prop'!P19))),\"\")","v":""},{"$f":"IFERROR(INDEX(Database_Prop!$B$2:$B$1498,SMALL(IF(Database_Prop!$A$2:$A$1498=AT$129,ROW(Database_Prop!$B$2:$B$1498)-ROW(Database_Prop!$B$2)+1),ROWS(Database_Prop!Q$2:'Database_Prop'!Q19))),\"\")","v":""},{"$f":"IFERROR(INDEX(Database_Prop!$B$2:$B$1498,SMALL(IF(Database_Prop!$A$2:$A$1498=AU$129,ROW(Database_Prop!$B$2:$B$1498)-ROW(Database_Prop!$B$2)+1),ROWS(Database_Prop!R$2:'Database_Prop'!R19))),\"\")","v":""},{"$f":"IFERROR(INDEX(Database_Prop!$B$2:$B$1498,SMALL(IF(Database_Prop!$A$2:$A$1498=AV$129,ROW(Database_Prop!$B$2:$B$1498)-ROW(Database_Prop!$B$2)+1),ROWS(Database_Prop!S$2:'Database_Prop'!S19))),\"\")","v":""},{"$f":"IFERROR(INDEX(Database_Prop!$B$2:$B$1498,SMALL(IF(Database_Prop!$A$2:$A$1498=AW$129,ROW(Database_Prop!$B$2:$B$1498)-ROW(Database_Prop!$B$2)+1),ROWS(Database_Prop!T$2:'Database_Prop'!T19))),\"\")","v":""},{"$f":"IFERROR(INDEX(Database_Prop!$B$2:$B$1498,SMALL(IF(Database_Prop!$A$2:$A$1498=AX$129,ROW(Database_Prop!$B$2:$B$1498)-ROW(Database_Prop!$B$2)+1),ROWS(Database_Prop!U$2:'Database_Prop'!U19))),\"\")","v":""},{"$f":"IFERROR(INDEX(Database_Prop!$B$2:$B$1498,SMALL(IF(Database_Prop!$A$2:$A$1498=AY$129,ROW(Database_Prop!$B$2:$B$1498)-ROW(Database_Prop!$B$2)+1),ROWS(Database_Prop!V$2:'Database_Prop'!V19))),\"\")","v":""},{"$f":"IFERROR(INDEX(Database_Prop!$B$2:$B$1498,SMALL(IF(Database_Prop!$A$2:$A$1498=AZ$129,ROW(Database_Prop!$B$2:$B$1498)-ROW(Database_Prop!$B$2)+1),ROWS(Database_Prop!W$2:'Database_Prop'!W19))),\"\")","v":""},{"$f":"IFERROR(INDEX(Database_Prop!$B$2:$B$1498,SMALL(IF(Database_Prop!$A$2:$A$1498=BA$129,ROW(Database_Prop!$B$2:$B$1498)-ROW(Database_Prop!$B$2)+1),ROWS(Database_Prop!X$2:'Database_Prop'!X19))),\"\")","v":""},{"$f":"IFERROR(INDEX(Database_Prop!$B$2:$B$1498,SMALL(IF(Database_Prop!$A$2:$A$1498=BB$129,ROW(Database_Prop!$B$2:$B$1498)-ROW(Database_Prop!$B$2)+1),ROWS(Database_Prop!Y$2:'Database_Prop'!Y19))),\"\")","v":""},{"$f":"IFERROR(INDEX(Database_Prop!$B$2:$B$1498,SMALL(IF(Database_Prop!$A$2:$A$1498=BC$129,ROW(Database_Prop!$B$2:$B$1498)-ROW(Database_Prop!$B$2)+1),ROWS(Database_Prop!Z$2:'Database_Prop'!Z19))),\"\")","v":""},null,"Belarus","Eastern Europe",null,{"$f":"title108","v":"Main Category"},{"$f":"title109","v":"Feedstock"},{"$f":"G$28","v":"VS (%)"},{"$f":"H$28","v":"TS (%)"},{"$f":"I$28","v":"BMP (m3/t VS)"},"CH4 (%)","Collection Price",{"$f":"title177","v":"Sedimentator"},0.19]
[null,null,null,null,null,null,null,null,null,null,null,null,null,null,null,null,null,null,null,null,null,null,null,null,null,null,null,null,null,null,19,{"$f":"IFERROR(INDEX(Database_Prop!$B$2:$B$1498,SMALL(IF(Database_Prop!$A$2:$A$1498=AF$129,ROW(Database_Prop!$B$2:$B$1498)-ROW(Database_Prop!$B$2)+1),ROWS(Database_Prop!C$2:'Database_Prop'!C20))),\"\")","v":""},{"$f":"IFERROR(INDEX(Database_Prop!$B$2:$B$1498,SMALL(IF(Database_Prop!$A$2:$A$1498=AG$129,ROW(Database_Prop!$B$2:$B$1498)-ROW(Database_Prop!$B$2)+1),ROWS(Database_Prop!D$2:'Database_Prop'!D20))),\"\")","v":""},{"$f":"IFERROR(INDEX(Database_Prop!$B$2:$B$1498,SMALL(IF(Database_Prop!$A$2:$A$1498=AH$129,ROW(Database_Prop!$B$2:$B$1498)-ROW(Database_Prop!$B$2)+1),ROWS(Database_Prop!E$2:'Database_Prop'!E20))),\"\")","v":""},{"$f":"IFERROR(INDEX(Database_Prop!$B$2:$B$1498,SMALL(IF(Database_Prop!$A$2:$A$1498=AI$129,ROW(Database_Prop!$B$2:$B$1498)-ROW(Database_Prop!$B$2)+1),ROWS(Database_Prop!F$2:'Database_Prop'!F20))),\"\")","v":""},{"$f":"IFERROR(INDEX(Database_Prop!$B$2:$B$1498,SMALL(IF(Database_Prop!$A$2:$A$1498=AJ$129,ROW(Database_Prop!$B$2:$B$1498)-ROW(Database_Prop!$B$2)+1),ROWS(Database_Prop!G$2:'Database_Prop'!G20))),\"\")","v":""},{"$f":"IFERROR(INDEX(Database_Prop!$B$2:$B$1498,SMALL(IF(Database_Prop!$A$2:$A$1498=AK$129,ROW(Database_Prop!$B$2:$B$1498)-ROW(Database_Prop!$B$2)+1),ROWS(Database_Prop!H$2:'Database_Prop'!H20))),\"\")","v":""},{"$f":"IFERROR(INDEX(Database_Prop!$B$2:$B$1498,SMALL(IF(Database_Prop!$A$2:$A$1498=AL$129,ROW(Database_Prop!$B$2:$B$1498)-ROW(Database_Prop!$B$2)+1),ROWS(Database_Prop!I$2:'Database_Prop'!I20))),\"\")","v":""},{"$f":"IFERROR(INDEX(Database_Prop!$B$2:$B$1498,SMALL(IF(Database_Prop!$A$2:$A$1498=AM$129,ROW(Database_Prop!$B$2:$B$1498)-ROW(Database_Prop!$B$2)+1),ROWS(Database_Prop!J$2:'Database_Prop'!J20))),\"\")","v":""},{"$f":"IFERROR(INDEX(Database_Prop!$B$2:$B$1498,SMALL(IF(Database_Prop!$A$2:$A$1498=AN$129,ROW(Database_Prop!$B$2:$B$1498)-ROW(Database_Prop!$B$2)+1),ROWS(Database_Prop!K$2:'Database_Prop'!K20))),\"\")","v":""},{"$f":"IFERROR(INDEX(Database_Prop!$B$2:$B$1498,SMALL(IF(Database_Prop!$A$2:$A$1498=AO$129,ROW(Database_Prop!$B$2:$B$1498)-ROW(Database_Prop!$B$2)+1),ROWS(Database_Prop!L$2:'Database_Prop'!L20))),\"\")","v":""},{"$f":"IFERROR(INDEX(Database_Prop!$B$2:$B$1498,SMALL(IF(Database_Prop!$A$2:$A$1498=AP$129,ROW(Database_Prop!$B$2:$B$1498)-ROW(Database_Prop!$B$2)+1),ROWS(Database_Prop!M$2:'Database_Prop'!M20))),\"\")","v":""},{"$f":"IFERROR(INDEX(Database_Prop!$B$2:$B$1498,SMALL(IF(Database_Prop!$A$2:$A$1498=AQ$129,ROW(Database_Prop!$B$2:$B$1498)-ROW(Database_Prop!$B$2)+1),ROWS(Database_Prop!N$2:'Database_Prop'!N20))),\"\")","v":""},{"$f":"IFERROR(INDEX(Database_Prop!$B$2:$B$1498,SMALL(IF(Database_Prop!$A$2:$A$1498=AR$129,ROW(Database_Prop!$B$2:$B$1498)-ROW(Database_Prop!$B$2)+1),ROWS(Database_Prop!O$2:'Database_Prop'!O20))),\"\")","v":""},{"$f":"IFERROR(INDEX(Database_Prop!$B$2:$B$1498,SMALL(IF(Database_Prop!$A$2:$A$1498=AS$129,ROW(Database_Prop!$B$2:$B$1498)-ROW(Database_Prop!$B$2)+1),ROWS(Database_Prop!P$2:'Database_Prop'!P20))),\"\")","v":""},{"$f":"IFERROR(INDEX(Database_Prop!$B$2:$B$1498,SMALL(IF(Database_Prop!$A$2:$A$1498=AT$129,ROW(Database_Prop!$B$2:$B$1498)-ROW(Database_Prop!$B$2)+1),ROWS(Database_Prop!Q$2:'Database_Prop'!Q20))),\"\")","v":""},{"$f":"IFERROR(INDEX(Database_Prop!$B$2:$B$1498,SMALL(IF(Database_Prop!$A$2:$A$1498=AU$129,ROW(Database_Prop!$B$2:$B$1498)-ROW(Database_Prop!$B$2)+1),ROWS(Database_Prop!R$2:'Database_Prop'!R20))),\"\")","v":""},{"$f":"IFERROR(INDEX(Database_Prop!$B$2:$B$1498,SMALL(IF(Database_Prop!$A$2:$A$1498=AV$129,ROW(Database_Prop!$B$2:$B$1498)-ROW(Database_Prop!$B$2)+1),ROWS(Database_Prop!S$2:'Database_Prop'!S20))),\"\")","v":""},{"$f":"IFERROR(INDEX(Database_Prop!$B$2:$B$1498,SMALL(IF(Database_Prop!$A$2:$A$1498=AW$129,ROW(Database_Prop!$B$2:$B$1498)-ROW(Database_Prop!$B$2)+1),ROWS(Database_Prop!T$2:'Database_Prop'!T20))),\"\")","v":""},{"$f":"IFERROR(INDEX(Database_Prop!$B$2:$B$1498,SMALL(IF(Database_Prop!$A$2:$A$1498=AX$129,ROW(Database_Prop!$B$2:$B$1498)-ROW(Database_Prop!$B$2)+1),ROWS(Database_Prop!U$2:'Database_Prop'!U20))),\"\")","v":""},{"$f":"IFERROR(INDEX(Database_Prop!$B$2:$B$1498,SMALL(IF(Database_Prop!$A$2:$A$1498=AY$129,ROW(Database_Prop!$B$2:$B$1498)-ROW(Database_Prop!$B$2)+1),ROWS(Database_Prop!V$2:'Database_Prop'!V20))),\"\")","v":""},{"$f":"IFERROR(INDEX(Database_Prop!$B$2:$B$1498,SMALL(IF(Database_Prop!$A$2:$A$1498=AZ$129,ROW(Database_Prop!$B$2:$B$1498)-ROW(Database_Prop!$B$2)+1),ROWS(Database_Prop!W$2:'Database_Prop'!W20))),\"\")","v":""},{"$f":"IFERROR(INDEX(Database_Prop!$B$2:$B$1498,SMALL(IF(Database_Prop!$A$2:$A$1498=BA$129,ROW(Database_Prop!$B$2:$B$1498)-ROW(Database_Prop!$B$2)+1),ROWS(Database_Prop!X$2:'Database_Prop'!X20))),\"\")","v":""},{"$f":"IFERROR(INDEX(Database_Prop!$B$2:$B$1498,SMALL(IF(Database_Prop!$A$2:$A$1498=BB$129,ROW(Database_Prop!$B$2:$B$1498)-ROW(Database_Prop!$B$2)+1),ROWS(Database_Prop!Y$2:'Database_Prop'!Y20))),\"\")","v":""},{"$f":"IFERROR(INDEX(Database_Prop!$B$2:$B$1498,SMALL(IF(Database_Prop!$A$2:$A$1498=BC$129,ROW(Database_Prop!$B$2:$B$1498)-ROW(Database_Prop!$B$2)+1),ROWS(Database_Prop!Z$2:'Database_Prop'!Z20))),\"\")","v":""},null,"Belgium","Western Europe","FS5",{"$f":"$D$47","v":"Please Select"},{"$f":"$E$47","v":"Please Select"},{"$f":"IFERROR(IF($BH150=title192,VLOOKUP($BH150&\" \"&$BI150,Database_Prop!$C:$G,2,FALSE),TEXT(VLOOKUP($BH150&\" \"&$BI150,Database_Prop!$C:$G,2,FALSE),\"0%\")),0)","v":0},{"$f":"IFERROR(VLOOKUP($BH150&\" \"&$BI150,Database_Prop!$C:$G,5,FALSE),0)","v":0},{"$f":"IFERROR(VLOOKUP($BH150&\" \"&$BI150,Database_Prop!$C:$G,3,FALSE),0)","v":0},{"$f":"IFERROR(VLOOKUP($BH150&\" \"&$BI150,Database_Prop!$C:$G,4,FALSE),0)","v":0},{"$f":"IFERROR(INDIRECT(\"PRICE_\"&$BG150&\"_\"&BI$140&$BN$126),0)","v":0},{"$f":"title178","v":"Floater"},0.2]
[null,null,null,null,null,null,null,null,null,null,null,null,null,null,null,null,null,null,null,null,null,null,null,null,null,null,null,null,null,null,20,{"$f":"IFERROR(INDEX(Database_Prop!$B$2:$B$1498,SMALL(IF(Database_Prop!$A$2:$A$1498=AF$129,ROW(Database_Prop!$B$2:$B$1498)-ROW(Database_Prop!$B$2)+1),ROWS(Database_Prop!C$2:'Database_Prop'!C21))),\"\")","v":""},{"$f":"IFERROR(INDEX(Database_Prop!$B$2:$B$1498,SMALL(IF(Database_Prop!$A$2:$A$1498=AG$129,ROW(Database_Prop!$B$2:$B$1498)-ROW(Database_Prop!$B$2)+1),ROWS(Database_Prop!D$2:'Database_Prop'!D21))),\"\")","v":""},{"$f":"IFERROR(INDEX(Database_Prop!$B$2:$B$1498,SMALL(IF(Database_Prop!$A$2:$A$1498=AH$129,ROW(Database_Prop!$B$2:$B$1498)-ROW(Database_Prop!$B$2)+1),ROWS(Database_Prop!E$2:'Database_Prop'!E21))),\"\")","v":""},{"$f":"IFERROR(INDEX(Database_Prop!$B$2:$B$1498,SMALL(IF(Database_Prop!$A$2:$A$1498=AI$129,ROW(Database_Prop!$B$2:$B$1498)-ROW(Database_Prop!$B$2)+1),ROWS(Database_Prop!F$2:'Database_Prop'!F21))),\"\")","v":""},{"$f":"IFERROR(INDEX(Database_Prop!$B$2:$B$1498,SMALL(IF(Database_Prop!$A$2:$A$1498=AJ$129,ROW(Database_Prop!$B$2:$B$1498)-ROW(Database_Prop!$B$2)+1),ROWS(Database_Prop!G$2:'Database_Prop'!G21))),\"\")","v":""},{"$f":"IFERROR(INDEX(Database_Prop!$B$2:$B$1498,SMALL(IF(Database_Prop!$A$2:$A$1498=AK$129,ROW(Database_Prop!$B$2:$B$1498)-ROW(Database_Prop!$B$2)+1),ROWS(Database_Prop!H$2:'Database_Prop'!H21))),\"\")","v":""},{"$f":"IFERROR(INDEX(Database_Prop!$B$2:$B$1498,SMALL(IF(Database_Prop!$A$2:$A$1498=AL$129,ROW(Database_Prop!$B$2:$B$1498)-ROW(Database_Prop!$B$2)+1),ROWS(Database_Prop!I$2:'Database_Prop'!I21))),\"\")","v":""},{"$f":"IFERROR(INDEX(Database_Prop!$B$2:$B$1498,SMALL(IF(Database_Prop!$A$2:$A$1498=AM$129,ROW(Database_Prop!$B$2:$B$1498)-ROW(Database_Prop!$B$2)+1),ROWS(Database_Prop!J$2:'Database_Prop'!J21))),\"\")","v":""},{"$f":"IFERROR(INDEX(Database_Prop!$B$2:$B$1498,SMALL(IF(Database_Prop!$A$2:$A$1498=AN$129,ROW(Database_Prop!$B$2:$B$1498)-ROW(Database_Prop!$B$2)+1),ROWS(Database_Prop!K$2:'Database_Prop'!K21))),\"\")","v":""},{"$f":"IFERROR(INDEX(Database_Prop!$B$2:$B$1498,SMALL(IF(Database_Prop!$A$2:$A$1498=AO$129,ROW(Database_Prop!$B$2:$B$1498)-ROW(Database_Prop!$B$2)+1),ROWS(Database_Prop!L$2:'Database_Prop'!L21))),\"\")","v":""},{"$f":"IFERROR(INDEX(Database_Prop!$B$2:$B$1498,SMALL(IF(Database_Prop!$A$2:$A$1498=AP$129,ROW(Database_Prop!$B$2:$B$1498)-ROW(Database_Prop!$B$2)+1),ROWS(Database_Prop!M$2:'Database_Prop'!M21))),\"\")","v":""},{"$f":"IFERROR(INDEX(Database_Prop!$B$2:$B$1498,SMALL(IF(Database_Prop!$A$2:$A$1498=AQ$129,ROW(Database_Prop!$B$2:$B$1498)-ROW(Database_Prop!$B$2)+1),ROWS(Database_Prop!N$2:'Database_Prop'!N21))),\"\")","v":""},{"$f":"IFERROR(INDEX(Database_Prop!$B$2:$B$1498,SMALL(IF(Database_Prop!$A$2:$A$1498=AR$129,ROW(Database_Prop!$B$2:$B$1498)-ROW(Database_Prop!$B$2)+1),ROWS(Database_Prop!O$2:'Database_Prop'!O21))),\"\")","v":""},{"$f":"IFERROR(INDEX(Database_Prop!$B$2:$B$1498,SMALL(IF(Database_Prop!$A$2:$A$1498=AS$129,ROW(Database_Prop!$B$2:$B$1498)-ROW(Database_Prop!$B$2)+1),ROWS(Database_Prop!P$2:'Database_Prop'!P21))),\"\")","v":""},{"$f":"IFERROR(INDEX(Database_Prop!$B$2:$B$1498,SMALL(IF(Database_Prop!$A$2:$A$1498=AT$129,ROW(Database_Prop!$B$2:$B$1498)-ROW(Database_Prop!$B$2)+1),ROWS(Database_Prop!Q$2:'Database_Prop'!Q21))),\"\")","v":""},{"$f":"IFERROR(INDEX(Database_Prop!$B$2:$B$1498,SMALL(IF(Database_Prop!$A$2:$A$1498=AU$129,ROW(Database_Prop!$B$2:$B$1498)-ROW(Database_Prop!$B$2)+1),ROWS(Database_Prop!R$2:'Database_Prop'!R21))),\"\")","v":""},{"$f":"IFERROR(INDEX(Database_Prop!$B$2:$B$1498,SMALL(IF(Database_Prop!$A$2:$A$1498=AV$129,ROW(Database_Prop!$B$2:$B$1498)-ROW(Database_Prop!$B$2)+1),ROWS(Database_Prop!S$2:'Database_Prop'!S21))),\"\")","v":""},{"$f":"IFERROR(INDEX(Database_Prop!$B$2:$B$1498,SMALL(IF(Database_Prop!$A$2:$A$1498=AW$129,ROW(Database_Prop!$B$2:$B$1498)-ROW(Database_Prop!$B$2)+1),ROWS(Database_Prop!T$2:'Database_Prop'!T21))),\"\")","v":""},{"$f":"IFERROR(INDEX(Database_Prop!$B$2:$B$1498,SMALL(IF(Database_Prop!$A$2:$A$1498=AX$129,ROW(Database_Prop!$B$2:$B$1498)-ROW(Database_Prop!$B$2)+1),ROWS(Database_Prop!U$2:'Database_Prop'!U21))),\"\")","v":""},{"$f":"IFERROR(INDEX(Database_Prop!$B$2:$B$1498,SMALL(IF(Database_Prop!$A$2:$A$1498=AY$129,ROW(Database_Prop!$B$2:$B$1498)-ROW(Database_Prop!$B$2)+1),ROWS(Database_Prop!V$2:'Database_Prop'!V21))),\"\")","v":""},{"$f":"IFERROR(INDEX(Database_Prop!$B$2:$B$1498,SMALL(IF(Database_Prop!$A$2:$A$1498=AZ$129,ROW(Database_Prop!$B$2:$B$1498)-ROW(Database_Prop!$B$2)+1),ROWS(Database_Prop!W$2:'Database_Prop'!W21))),\"\")","v":""},{"$f":"IFERROR(INDEX(Database_Prop!$B$2:$B$1498,SMALL(IF(Database_Prop!$A$2:$A$1498=BA$129,ROW(Database_Prop!$B$2:$B$1498)-ROW(Database_Prop!$B$2)+1),ROWS(Database_Prop!X$2:'Database_Prop'!X21))),\"\")","v":""},{"$f":"IFERROR(INDEX(Database_Prop!$B$2:$B$1498,SMALL(IF(Database_Prop!$A$2:$A$1498=BB$129,ROW(Database_Prop!$B$2:$B$1498)-ROW(Database_Prop!$B$2)+1),ROWS(Database_Prop!Y$2:'Database_Prop'!Y21))),\"\")","v":""},{"$f":"IFERROR(INDEX(Database_Prop!$B$2:$B$1498,SMALL(IF(Database_Prop!$A$2:$A$1498=BC$129,ROW(Database_Prop!$B$2:$B$1498)-ROW(Database_Prop!$B$2)+1),ROWS(Database_Prop!Z$2:'Database_Prop'!Z21))),\"\")","v":""},null,"Belize","Latin America",null,{"$f":"title108","v":"Main Category"},{"$f":"title109","v":"Feedstock"},{"$f":"G$28","v":"VS (%)"},{"$f":"H$28","v":"TS (%)"},{"$f":"I$28","v":"BMP (m3/t VS)"},"CH4 (%)","Collection Price",{"$f":"title179","v":"Centrifuge"},0.68]
[null,null,null,null,null,null,null,null,null,null,null,null,null,null,null,null,null,null,null,null,null,null,null,null,null,null,null,null,null,null,21,{"$f":"IFERROR(INDEX(Database_Prop!$B$2:$B$1498,SMALL(IF(Database_Prop!$A$2:$A$1498=AF$129,ROW(Database_Prop!$B$2:$B$1498)-ROW(Database_Prop!$B$2)+1),ROWS(Database_Prop!C$2:'Database_Prop'!C22))),\"\")","v":""},{"$f":"IFERROR(INDEX(Database_Prop!$B$2:$B$1498,SMALL(IF(Database_Prop!$A$2:$A$1498=AG$129,ROW(Database_Prop!$B$2:$B$1498)-ROW(Database_Prop!$B$2)+1),ROWS(Database_Prop!D$2:'Database_Prop'!D22))),\"\")","v":""},{"$f":"IFERROR(INDEX(Database_Prop!$B$2:$B$1498,SMALL(IF(Database_Prop!$A$2:$A$1498=AH$129,ROW(Database_Prop!$B$2:$B$1498)-ROW(Database_Prop!$B$2)+1),ROWS(Database_Prop!E$2:'Database_Prop'!E22))),\"\")","v":""},{"$f":"IFERROR(INDEX(Database_Prop!$B$2:$B$1498,SMALL(IF(Database_Prop!$A$2:$A$1498=AI$129,ROW(Database_Prop!$B$2:$B$1498)-ROW(Database_Prop!$B$2)+1),ROWS(Database_Prop!F$2:'Database_Prop'!F22))),\"\")","v":""},{"$f":"IFERROR(INDEX(Database_Prop!$B$2:$B$1498,SMALL(IF(Database_Prop!$A$2:$A$1498=AJ$129,ROW(Database_Prop!$B$2:$B$1498)-ROW(Database_Prop!$B$2)+1),ROWS(Database_Prop!G$2:'Database_Prop'!G22))),\"\")","v":""},{"$f":"IFERROR(INDEX(Database_Prop!$B$2:$B$1498,SMALL(IF(Database_Prop!$A$2:$A$1498=AK$129,ROW(Database_Prop!$B$2:$B$1498)-ROW(Database_Prop!$B$2)+1),ROWS(Database_Prop!H$2:'Database_Prop'!H22))),\"\")","v":""},{"$f":"IFERROR(INDEX(Database_Prop!$B$2:$B$1498,SMALL(IF(Database_Prop!$A$2:$A$1498=AL$129,ROW(Database_Prop!$B$2:$B$1498)-ROW(Database_Prop!$B$2)+1),ROWS(Database_Prop!I$2:'Database_Prop'!I22))),\"\")","v":""},{"$f":"IFERROR(INDEX(Database_Prop!$B$2:$B$1498,SMALL(IF(Database_Prop!$A$2:$A$1498=AM$129,ROW(Database_Prop!$B$2:$B$1498)-ROW(Database_Prop!$B$2)+1),ROWS(Database_Prop!J$2:'Database_Prop'!J22))),\"\")","v":""},{"$f":"IFERROR(INDEX(Database_Prop!$B$2:$B$1498,SMALL(IF(Database_Prop!$A$2:$A$1498=AN$129,ROW(Database_Prop!$B$2:$B$1498)-ROW(Database_Prop!$B$2)+1),ROWS(Database_Prop!K$2:'Database_Prop'!K22))),\"\")","v":""},{"$f":"IFERROR(INDEX(Database_Prop!$B$2:$B$1498,SMALL(IF(Database_Prop!$A$2:$A$1498=AO$129,ROW(Database_Prop!$B$2:$B$1498)-ROW(Database_Prop!$B$2)+1),ROWS(Database_Prop!L$2:'Database_Prop'!L22))),\"\")","v":""},{"$f":"IFERROR(INDEX(Database_Prop!$B$2:$B$1498,SMALL(IF(Database_Prop!$A$2:$A$1498=AP$129,ROW(Database_Prop!$B$2:$B$1498)-ROW(Database_Prop!$B$2)+1),ROWS(Database_Prop!M$2:'Database_Prop'!M22))),\"\")","v":""},{"$f":"IFERROR(INDEX(Database_Prop!$B$2:$B$1498,SMALL(IF(Database_Prop!$A$2:$A$1498=AQ$129,ROW(Database_Prop!$B$2:$B$1498)-ROW(Database_Prop!$B$2)+1),ROWS(Database_Prop!N$2:'Database_Prop'!N22))),\"\")","v":""},{"$f":"IFERROR(INDEX(Database_Prop!$B$2:$B$1498,SMALL(IF(Database_Prop!$A$2:$A$1498=AR$129,ROW(Database_Prop!$B$2:$B$1498)-ROW(Database_Prop!$B$2)+1),ROWS(Database_Prop!O$2:'Database_Prop'!O22))),\"\")","v":""},{"$f":"IFERROR(INDEX(Database_Prop!$B$2:$B$1498,SMALL(IF(Database_Prop!$A$2:$A$1498=AS$129,ROW(Database_Prop!$B$2:$B$1498)-ROW(Database_Prop!$B$2)+1),ROWS(Database_Prop!P$2:'Database_Prop'!P22))),\"\")","v":""},{"$f":"IFERROR(INDEX(Database_Prop!$B$2:$B$1498,SMALL(IF(Database_Prop!$A$2:$A$1498=AT$129,ROW(Database_Prop!$B$2:$B$1498)-ROW(Database_Prop!$B$2)+1),ROWS(Database_Prop!Q$2:'Database_Prop'!Q22))),\"\")","v":""},{"$f":"IFERROR(INDEX(Database_Prop!$B$2:$B$1498,SMALL(IF(Database_Prop!$A$2:$A$1498=AU$129,ROW(Database_Prop!$B$2:$B$1498)-ROW(Database_Prop!$B$2)+1),ROWS(Database_Prop!R$2:'Database_Prop'!R22))),\"\")","v":""},{"$f":"IFERROR(INDEX(Database_Prop!$B$2:$B$1498,SMALL(IF(Database_Prop!$A$2:$A$1498=AV$129,ROW(Database_Prop!$B$2:$B$1498)-ROW(Database_Prop!$B$2)+1),ROWS(Database_Prop!S$2:'Database_Prop'!S22))),\"\")","v":""},{"$f":"IFERROR(INDEX(Database_Prop!$B$2:$B$1498,SMALL(IF(Database_Prop!$A$2:$A$1498=AW$129,ROW(Database_Prop!$B$2:$B$1498)-ROW(Database_Prop!$B$2)+1),ROWS(Database_Prop!T$2:'Database_Prop'!T22))),\"\")","v":""},{"$f":"IFERROR(INDEX(Database_Prop!$B$2:$B$1498,SMALL(IF(Database_Prop!$A$2:$A$1498=AX$129,ROW(Database_Prop!$B$2:$B$1498)-ROW(Database_Prop!$B$2)+1),ROWS(Database_Prop!U$2:'Database_Prop'!U22))),\"\")","v":""},{"$f":"IFERROR(INDEX(Database_Prop!$B$2:$B$1498,SMALL(IF(Database_Prop!$A$2:$A$1498=AY$129,ROW(Database_Prop!$B$2:$B$1498)-ROW(Database_Prop!$B$2)+1),ROWS(Database_Prop!V$2:'Database_Prop'!V22))),\"\")","v":""},{"$f":"IFERROR(INDEX(Database_Prop!$B$2:$B$1498,SMALL(IF(Database_Prop!$A$2:$A$1498=AZ$129,ROW(Database_Prop!$B$2:$B$1498)-ROW(Database_Prop!$B$2)+1),ROWS(Database_Prop!W$2:'Database_Prop'!W22))),\"\")","v":""},{"$f":"IFERROR(INDEX(Database_Prop!$B$2:$B$1498,SMALL(IF(Database_Prop!$A$2:$A$1498=BA$129,ROW(Database_Prop!$B$2:$B$1498)-ROW(Database_Prop!$B$2)+1),ROWS(Database_Prop!X$2:'Database_Prop'!X22))),\"\")","v":""},{"$f":"IFERROR(INDEX(Database_Prop!$B$2:$B$1498,SMALL(IF(Database_Prop!$A$2:$A$1498=BB$129,ROW(Database_Prop!$B$2:$B$1498)-ROW(Database_Prop!$B$2)+1),ROWS(Database_Prop!Y$2:'Database_Prop'!Y22))),\"\")","v":""},{"$f":"IFERROR(INDEX(Database_Prop!$B$2:$B$1498,SMALL(IF(Database_Prop!$A$2:$A$1498=BC$129,ROW(Database_Prop!$B$2:$B$1498)-ROW(Database_Prop!$B$2)+1),ROWS(Database_Prop!Z$2:'Database_Prop'!Z22))),\"\")","v":""},null,"Benin","Africa","FS6",{"$f":"$D$51","v":"Please Select"},{"$f":"$E$51","v":"Please Select"},{"$f":"IFERROR(IF($BH152=title192,VLOOKUP($BH152&\" \"&$BI152,Database_Prop!$C:$G,2,FALSE),TEXT(VLOOKUP($BH152&\" \"&$BI152,Database_Prop!$C:$G,2,FALSE),\"0%\")),0)","v":0},{"$f":"IFERROR(VLOOKUP($BH152&\" \"&$BI152,Database_Prop!$C:$G,5,FALSE),0)","v":0},{"$f":"IFERROR(VLOOKUP($BH152&\" \"&$BI152,Database_Prop!$C:$G,3,FALSE),0)","v":0},{"$f":"IFERROR(VLOOKUP($BH152&\" \"&$BI152,Database_Prop!$C:$G,4,FALSE),0)","v":0},{"$f":"IFERROR(INDIRECT(\"PRICE_\"&$BG152&\"_\"&BI$140&$BN$126),0)","v":0},{"$f":"title180","v":"Belt Press"},0.56000000000000005]
[null,null,null,null,null,null,null,null,null,null,null,null,null,null,null,null,null,null,null,null,null,null,null,null,null,null,null,null,null,null,22,{"$f":"IFERROR(INDEX(Database_Prop!$B$2:$B$1498,SMALL(IF(Database_Prop!$A$2:$A$1498=AF$129,ROW(Database_Prop!$B$2:$B$1498)-ROW(Database_Prop!$B$2)+1),ROWS(Database_Prop!C$2:'Database_Prop'!C23))),\"\")","v":""},{"$f":"IFERROR(INDEX(Database_Prop!$B$2:$B$1498,SMALL(IF(Database_Prop!$A$2:$A$1498=AG$129,ROW(Database_Prop!$B$2:$B$1498)-ROW(Database_Prop!$B$2)+1),ROWS(Database_Prop!D$2:'Database_Prop'!D23))),\"\")","v":""},{"$f":"IFERROR(INDEX(Database_Prop!$B$2:$B$1498,SMALL(IF(Database_Prop!$A$2:$A$1498=AH$129,ROW(Database_Prop!$B$2:$B$1498)-ROW(Database_Prop!$B$2)+1),ROWS(Database_Prop!E$2:'Database_Prop'!E23))),\"\")","v":""},{"$f":"IFERROR(INDEX(Database_Prop!$B$2:$B$1498,SMALL(IF(Database_Prop!$A$2:$A$1498=AI$129,ROW(Database_Prop!$B$2:$B$1498)-ROW(Database_Prop!$B$2)+1),ROWS(Database_Prop!F$2:'Database_Prop'!F23))),\"\")","v":""},{"$f":"IFERROR(INDEX(Database_Prop!$B$2:$B$1498,SMALL(IF(Database_Prop!$A$2:$A$1498=AJ$129,ROW(Database_Prop!$B$2:$B$1498)-ROW(Database_Prop!$B$2)+1),ROWS(Database_Prop!G$2:'Database_Prop'!G23))),\"\")","v":""},{"$f":"IFERROR(INDEX(Database_Prop!$B$2:$B$1498,SMALL(IF(Database_Prop!$A$2:$A$1498=AK$129,ROW(Database_Prop!$B$2:$B$1498)-ROW(Database_Prop!$B$2)+1),ROWS(Database_Prop!H$2:'Database_Prop'!H23))),\"\")","v":""},{"$f":"IFERROR(INDEX(Database_Prop!$B$2:$B$1498,SMALL(IF(Database_Prop!$A$2:$A$1498=AL$129,ROW(Database_Prop!$B$2:$B$1498)-ROW(Database_Prop!$B$2)+1),ROWS(Database_Prop!I$2:'Database_Prop'!I23))),\"\")","v":""},{"$f":"IFERROR(INDEX(Database_Prop!$B$2:$B$1498,SMALL(IF(Database_Prop!$A$2:$A$1498=AM$129,ROW(Database_Prop!$B$2:$B$1498)-ROW(Database_Prop!$B$2)+1),ROWS(Database_Prop!J$2:'Database_Prop'!J23))),\"\")","v":""},{"$f":"IFERROR(INDEX(Database_Prop!$B$2:$B$1498,SMALL(IF(Database_Prop!$A$2:$A$1498=AN$129,ROW(Database_Prop!$B$2:$B$1498)-ROW(Database_Prop!$B$2)+1),ROWS(Database_Prop!K$2:'Database_Prop'!K23))),\"\")","v":""},{"$f":"IFERROR(INDEX(Database_Prop!$B$2:$B$1498,SMALL(IF(Database_Prop!$A$2:$A$1498=AO$129,ROW(Database_Prop!$B$2:$B$1498)-ROW(Database_Prop!$B$2)+1),ROWS(Database_Prop!L$2:'Database_Prop'!L23))),\"\")","v":""},{"$f":"IFERROR(INDEX(Database_Prop!$B$2:$B$1498,SMALL(IF(Database_Prop!$A$2:$A$1498=AP$129,ROW(Database_Prop!$B$2:$B$1498)-ROW(Database_Prop!$B$2)+1),ROWS(Database_Prop!M$2:'Database_Prop'!M23))),\"\")","v":""},{"$f":"IFERROR(INDEX(Database_Prop!$B$2:$B$1498,SMALL(IF(Database_Prop!$A$2:$A$1498=AQ$129,ROW(Database_Prop!$B$2:$B$1498)-ROW(Database_Prop!$B$2)+1),ROWS(Database_Prop!N$2:'Database_Prop'!N23))),\"\")","v":""},{"$f":"IFERROR(INDEX(Database_Prop!$B$2:$B$1498,SMALL(IF(Database_Prop!$A$2:$A$1498=AR$129,ROW(Database_Prop!$B$2:$B$1498)-ROW(Database_Prop!$B$2)+1),ROWS(Database_Prop!O$2:'Database_Prop'!O23))),\"\")","v":""},{"$f":"IFERROR(INDEX(Database_Prop!$B$2:$B$1498,SMALL(IF(Database_Prop!$A$2:$A$1498=AS$129,ROW(Database_Prop!$B$2:$B$1498)-ROW(Database_Prop!$B$2)+1),ROWS(Database_Prop!P$2:'Database_Prop'!P23))),\"\")","v":""},{"$f":"IFERROR(INDEX(Database_Prop!$B$2:$B$1498,SMALL(IF(Database_Prop!$A$2:$A$1498=AT$129,ROW(Database_Prop!$B$2:$B$1498)-ROW(Database_Prop!$B$2)+1),ROWS(Database_Prop!Q$2:'Database_Prop'!Q23))),\"\")","v":""},{"$f":"IFERROR(INDEX(Database_Prop!$B$2:$B$1498,SMALL(IF(Database_Prop!$A$2:$A$1498=AU$129,ROW(Database_Prop!$B$2:$B$1498)-ROW(Database_Prop!$B$2)+1),ROWS(Database_Prop!R$2:'Database_Prop'!R23))),\"\")","v":""},{"$f":"IFERROR(INDEX(Database_Prop!$B$2:$B$1498,SMALL(IF(Database_Prop!$A$2:$A$1498=AV$129,ROW(Database_Prop!$B$2:$B$1498)-ROW(Database_Prop!$B$2)+1),ROWS(Database_Prop!S$2:'Database_Prop'!S23))),\"\")","v":""},{"$f":"IFERROR(INDEX(Database_Prop!$B$2:$B$1498,SMALL(IF(Database_Prop!$A$2:$A$1498=AW$129,ROW(Database_Prop!$B$2:$B$1498)-ROW(Database_Prop!$B$2)+1),ROWS(Database_Prop!T$2:'Database_Prop'!T23))),\"\")","v":""},{"$f":"IFERROR(INDEX(Database_Prop!$B$2:$B$1498,SMALL(IF(Database_Prop!$A$2:$A$1498=AX$129,ROW(Database_Prop!$B$2:$B$1498)-ROW(Database_Prop!$B$2)+1),ROWS(Database_Prop!U$2:'Database_Prop'!U23))),\"\")","v":""},{"$f":"IFERROR(INDEX(Database_Prop!$B$2:$B$1498,SMALL(IF(Database_Prop!$A$2:$A$1498=AY$129,ROW(Database_Prop!$B$2:$B$1498)-ROW(Database_Prop!$B$2)+1),ROWS(Database_Prop!V$2:'Database_Prop'!V23))),\"\")","v":""},{"$f":"IFERROR(INDEX(Database_Prop!$B$2:$B$1498,SMALL(IF(Database_Prop!$A$2:$A$1498=AZ$129,ROW(Database_Prop!$B$2:$B$1498)-ROW(Database_Prop!$B$2)+1),ROWS(Database_Prop!W$2:'Database_Prop'!W23))),\"\")","v":""},{"$f":"IFERROR(INDEX(Database_Prop!$B$2:$B$1498,SMALL(IF(Database_Prop!$A$2:$A$1498=BA$129,ROW(Database_Prop!$B$2:$B$1498)-ROW(Database_Prop!$B$2)+1),ROWS(Database_Prop!X$2:'Database_Prop'!X23))),\"\")","v":""},{"$f":"IFERROR(INDEX(Database_Prop!$B$2:$B$1498,SMALL(IF(Database_Prop!$A$2:$A$1498=BB$129,ROW(Database_Prop!$B$2:$B$1498)-ROW(Database_Prop!$B$2)+1),ROWS(Database_Prop!Y$2:'Database_Prop'!Y23))),\"\")","v":""},{"$f":"IFERROR(INDEX(Database_Prop!$B$2:$B$1498,SMALL(IF(Database_Prop!$A$2:$A$1498=BC$129,ROW(Database_Prop!$B$2:$B$1498)-ROW(Database_Prop!$B$2)+1),ROWS(Database_Prop!Z$2:'Database_Prop'!Z23))),\"\")","v":""},null,"Bermuda","North America",null,{"$f":"title98&\" 3\"","v":"Process 3"},"PS3",null,null,null,null,null,{"$f":"title181","v":"Screen Sieves"},0.2]
[null,null,null,null,null,null,null,null,null,null,null,null,null,null,null,null,null,null,null,null,null,null,null,null,null,null,null,null,null,null,23,{"$f":"IFERROR(INDEX(Database_Prop!$B$2:$B$1498,SMALL(IF(Database_Prop!$A$2:$A$1498=AF$129,ROW(Database_Prop!$B$2:$B$1498)-ROW(Database_Prop!$B$2)+1),ROWS(Database_Prop!C$2:'Database_Prop'!C24))),\"\")","v":""},{"$f":"IFERROR(INDEX(Database_Prop!$B$2:$B$1498,SMALL(IF(Database_Prop!$A$2:$A$1498=AG$129,ROW(Database_Prop!$B$2:$B$1498)-ROW(Database_Prop!$B$2)+1),ROWS(Database_Prop!D$2:'Database_Prop'!D24))),\"\")","v":""},{"$f":"IFERROR(INDEX(Database_Prop!$B$2:$B$1498,SMALL(IF(Database_Prop!$A$2:$A$1498=AH$129,ROW(Database_Prop!$B$2:$B$1498)-ROW(Database_Prop!$B$2)+1),ROWS(Database_Prop!E$2:'Database_Prop'!E24))),\"\")","v":""},{"$f":"IFERROR(INDEX(Database_Prop!$B$2:$B$1498,SMALL(IF(Database_Prop!$A$2:$A$1498=AI$129,ROW(Database_Prop!$B$2:$B$1498)-ROW(Database_Prop!$B$2)+1),ROWS(Database_Prop!F$2:'Database_Prop'!F24))),\"\")","v":""},{"$f":"IFERROR(INDEX(Database_Prop!$B$2:$B$1498,SMALL(IF(Database_Prop!$A$2:$A$1498=AJ$129,ROW(Database_Prop!$B$2:$B$1498)-ROW(Database_Prop!$B$2)+1),ROWS(Database_Prop!G$2:'Database_Prop'!G24))),\"\")","v":""},{"$f":"IFERROR(INDEX(Database_Prop!$B$2:$B$1498,SMALL(IF(Database_Prop!$A$2:$A$1498=AK$129,ROW(Database_Prop!$B$2:$B$1498)-ROW(Database_Prop!$B$2)+1),ROWS(Database_Prop!H$2:'Database_Prop'!H24))),\"\")","v":""},{"$f":"IFERROR(INDEX(Database_Prop!$B$2:$B$1498,SMALL(IF(Database_Prop!$A$2:$A$1498=AL$129,ROW(Database_Prop!$B$2:$B$1498)-ROW(Database_Prop!$B$2)+1),ROWS(Database_Prop!I$2:'Database_Prop'!I24))),\"\")","v":""},{"$f":"IFERROR(INDEX(Database_Prop!$B$2:$B$1498,SMALL(IF(Database_Prop!$A$2:$A$1498=AM$129,ROW(Database_Prop!$B$2:$B$1498)-ROW(Database_Prop!$B$2)+1),ROWS(Database_Prop!J$2:'Database_Prop'!J24))),\"\")","v":""},{"$f":"IFERROR(INDEX(Database_Prop!$B$2:$B$1498,SMALL(IF(Database_Prop!$A$2:$A$1498=AN$129,ROW(Database_Prop!$B$2:$B$1498)-ROW(Database_Prop!$B$2)+1),ROWS(Database_Prop!K$2:'Database_Prop'!K24))),\"\")","v":""},{"$f":"IFERROR(INDEX(Database_Prop!$B$2:$B$1498,SMALL(IF(Database_Prop!$A$2:$A$1498=AO$129,ROW(Database_Prop!$B$2:$B$1498)-ROW(Database_Prop!$B$2)+1),ROWS(Database_Prop!L$2:'Database_Prop'!L24))),\"\")","v":""},{"$f":"IFERROR(INDEX(Database_Prop!$B$2:$B$1498,SMALL(IF(Database_Prop!$A$2:$A$1498=AP$129,ROW(Database_Prop!$B$2:$B$1498)-ROW(Database_Prop!$B$2)+1),ROWS(Database_Prop!M$2:'Database_Prop'!M24))),\"\")","v":""},{"$f":"IFERROR(INDEX(Database_Prop!$B$2:$B$1498,SMALL(IF(Database_Prop!$A$2:$A$1498=AQ$129,ROW(Database_Prop!$B$2:$B$1498)-ROW(Database_Prop!$B$2)+1),ROWS(Database_Prop!N$2:'Database_Prop'!N24))),\"\")","v":""},{"$f":"IFERROR(INDEX(Database_Prop!$B$2:$B$1498,SMALL(IF(Database_Prop!$A$2:$A$1498=AR$129,ROW(Database_Prop!$B$2:$B$1498)-ROW(Database_Prop!$B$2)+1),ROWS(Database_Prop!O$2:'Database_Prop'!O24))),\"\")","v":""},{"$f":"IFERROR(INDEX(Database_Prop!$B$2:$B$1498,SMALL(IF(Database_Prop!$A$2:$A$1498=AS$129,ROW(Database_Prop!$B$2:$B$1498)-ROW(Database_Prop!$B$2)+1),ROWS(Database_Prop!P$2:'Database_Prop'!P24))),\"\")","v":""},{"$f":"IFERROR(INDEX(Database_Prop!$B$2:$B$1498,SMALL(IF(Database_Prop!$A$2:$A$1498=AT$129,ROW(Database_Prop!$B$2:$B$1498)-ROW(Database_Prop!$B$2)+1),ROWS(Database_Prop!Q$2:'Database_Prop'!Q24))),\"\")","v":""},{"$f":"IFERROR(INDEX(Database_Prop!$B$2:$B$1498,SMALL(IF(Database_Prop!$A$2:$A$1498=AU$129,ROW(Database_Prop!$B$2:$B$1498)-ROW(Database_Prop!$B$2)+1),ROWS(Database_Prop!R$2:'Database_Prop'!R24))),\"\")","v":""},{"$f":"IFERROR(INDEX(Database_Prop!$B$2:$B$1498,SMALL(IF(Database_Prop!$A$2:$A$1498=AV$129,ROW(Database_Prop!$B$2:$B$1498)-ROW(Database_Prop!$B$2)+1),ROWS(Database_Prop!S$2:'Database_Prop'!S24))),\"\")","v":""},{"$f":"IFERROR(INDEX(Database_Prop!$B$2:$B$1498,SMALL(IF(Database_Prop!$A$2:$A$1498=AW$129,ROW(Database_Prop!$B$2:$B$1498)-ROW(Database_Prop!$B$2)+1),ROWS(Database_Prop!T$2:'Database_Prop'!T24))),\"\")","v":""},{"$f":"IFERROR(INDEX(Database_Prop!$B$2:$B$1498,SMALL(IF(Database_Prop!$A$2:$A$1498=AX$129,ROW(Database_Prop!$B$2:$B$1498)-ROW(Database_Prop!$B$2)+1),ROWS(Database_Prop!U$2:'Database_Prop'!U24))),\"\")","v":""},{"$f":"IFERROR(INDEX(Database_Prop!$B$2:$B$1498,SMALL(IF(Database_Prop!$A$2:$A$1498=AY$129,ROW(Database_Prop!$B$2:$B$1498)-ROW(Database_Prop!$B$2)+1),ROWS(Database_Prop!V$2:'Database_Prop'!V24))),\"\")","v":""},{"$f":"IFERROR(INDEX(Database_Prop!$B$2:$B$1498,SMALL(IF(Database_Prop!$A$2:$A$1498=AZ$129,ROW(Database_Prop!$B$2:$B$1498)-ROW(Database_Prop!$B$2)+1),ROWS(Database_Prop!W$2:'Database_Prop'!W24))),\"\")","v":""},{"$f":"IFERROR(INDEX(Database_Prop!$B$2:$B$1498,SMALL(IF(Database_Prop!$A$2:$A$1498=BA$129,ROW(Database_Prop!$B$2:$B$1498)-ROW(Database_Prop!$B$2)+1),ROWS(Database_Prop!X$2:'Database_Prop'!X24))),\"\")","v":""},{"$f":"IFERROR(INDEX(Database_Prop!$B$2:$B$1498,SMALL(IF(Database_Prop!$A$2:$A$1498=BB$129,ROW(Database_Prop!$B$2:$B$1498)-ROW(Database_Prop!$B$2)+1),ROWS(Database_Prop!Y$2:'Database_Prop'!Y24))),\"\")","v":""},{"$f":"IFERROR(INDEX(Database_Prop!$B$2:$B$1498,SMALL(IF(Database_Prop!$A$2:$A$1498=BC$129,ROW(Database_Prop!$B$2:$B$1498)-ROW(Database_Prop!$B$2)+1),ROWS(Database_Prop!Z$2:'Database_Prop'!Z24))),\"\")","v":""},null,"Bhutan","Indian Subcontinent",null,{"$f":"title108","v":"Main Category"},{"$f":"title109","v":"Feedstock"},{"$f":"G$22","v":"VS (%)"},{"$f":"H$22","v":"TS (%)"},{"$f":"I$22","v":"BMP (m3/t VS)"},"CH4 (%)","Collection Price",{"$f":"title182","v":"Screw Press"},0.65]
[null,null,null,null,null,null,null,null,null,null,null,null,null,null,null,null,null,null,null,null,null,null,null,null,null,null,null,null,null,null,24,{"$f":"IFERROR(INDEX(Database_Prop!$B$2:$B$1498,SMALL(IF(Database_Prop!$A$2:$A$1498=AF$129,ROW(Database_Prop!$B$2:$B$1498)-ROW(Database_Prop!$B$2)+1),ROWS(Database_Prop!C$2:'Database_Prop'!C25))),\"\")","v":""},{"$f":"IFERROR(INDEX(Database_Prop!$B$2:$B$1498,SMALL(IF(Database_Prop!$A$2:$A$1498=AG$129,ROW(Database_Prop!$B$2:$B$1498)-ROW(Database_Prop!$B$2)+1),ROWS(Database_Prop!D$2:'Database_Prop'!D25))),\"\")","v":""},{"$f":"IFERROR(INDEX(Database_Prop!$B$2:$B$1498,SMALL(IF(Database_Prop!$A$2:$A$1498=AH$129,ROW(Database_Prop!$B$2:$B$1498)-ROW(Database_Prop!$B$2)+1),ROWS(Database_Prop!E$2:'Database_Prop'!E25))),\"\")","v":""},{"$f":"IFERROR(INDEX(Database_Prop!$B$2:$B$1498,SMALL(IF(Database_Prop!$A$2:$A$1498=AI$129,ROW(Database_Prop!$B$2:$B$1498)-ROW(Database_Prop!$B$2)+1),ROWS(Database_Prop!F$2:'Database_Prop'!F25))),\"\")","v":""},{"$f":"IFERROR(INDEX(Database_Prop!$B$2:$B$1498,SMALL(IF(Database_Prop!$A$2:$A$1498=AJ$129,ROW(Database_Prop!$B$2:$B$1498)-ROW(Database_Prop!$B$2)+1),ROWS(Database_Prop!G$2:'Database_Prop'!G25))),\"\")","v":""},{"$f":"IFERROR(INDEX(Database_Prop!$B$2:$B$1498,SMALL(IF(Database_Prop!$A$2:$A$1498=AK$129,ROW(Database_Prop!$B$2:$B$1498)-ROW(Database_Prop!$B$2)+1),ROWS(Database_Prop!H$2:'Database_Prop'!H25))),\"\")","v":""},{"$f":"IFERROR(INDEX(Database_Prop!$B$2:$B$1498,SMALL(IF(Database_Prop!$A$2:$A$1498=AL$129,ROW(Database_Prop!$B$2:$B$1498)-ROW(Database_Prop!$B$2)+1),ROWS(Database_Prop!I$2:'Database_Prop'!I25))),\"\")","v":""},{"$f":"IFERROR(INDEX(Database_Prop!$B$2:$B$1498,SMALL(IF(Database_Prop!$A$2:$A$1498=AM$129,ROW(Database_Prop!$B$2:$B$1498)-ROW(Database_Prop!$B$2)+1),ROWS(Database_Prop!J$2:'Database_Prop'!J25))),\"\")","v":""},{"$f":"IFERROR(INDEX(Database_Prop!$B$2:$B$1498,SMALL(IF(Database_Prop!$A$2:$A$1498=AN$129,ROW(Database_Prop!$B$2:$B$1498)-ROW(Database_Prop!$B$2)+1),ROWS(Database_Prop!K$2:'Database_Prop'!K25))),\"\")","v":""},{"$f":"IFERROR(INDEX(Database_Prop!$B$2:$B$1498,SMALL(IF(Database_Prop!$A$2:$A$1498=AO$129,ROW(Database_Prop!$B$2:$B$1498)-ROW(Database_Prop!$B$2)+1),ROWS(Database_Prop!L$2:'Database_Prop'!L25))),\"\")","v":""},{"$f":"IFERROR(INDEX(Database_Prop!$B$2:$B$1498,SMALL(IF(Database_Prop!$A$2:$A$1498=AP$129,ROW(Database_Prop!$B$2:$B$1498)-ROW(Database_Prop!$B$2)+1),ROWS(Database_Prop!M$2:'Database_Prop'!M25))),\"\")","v":""},{"$f":"IFERROR(INDEX(Database_Prop!$B$2:$B$1498,SMALL(IF(Database_Prop!$A$2:$A$1498=AQ$129,ROW(Database_Prop!$B$2:$B$1498)-ROW(Database_Prop!$B$2)+1),ROWS(Database_Prop!N$2:'Database_Prop'!N25))),\"\")","v":""},{"$f":"IFERROR(INDEX(Database_Prop!$B$2:$B$1498,SMALL(IF(Database_Prop!$A$2:$A$1498=AR$129,ROW(Database_Prop!$B$2:$B$1498)-ROW(Database_Prop!$B$2)+1),ROWS(Database_Prop!O$2:'Database_Prop'!O25))),\"\")","v":""},{"$f":"IFERROR(INDEX(Database_Prop!$B$2:$B$1498,SMALL(IF(Database_Prop!$A$2:$A$1498=AS$129,ROW(Database_Prop!$B$2:$B$1498)-ROW(Database_Prop!$B$2)+1),ROWS(Database_Prop!P$2:'Database_Prop'!P25))),\"\")","v":""},{"$f":"IFERROR(INDEX(Database_Prop!$B$2:$B$1498,SMALL(IF(Database_Prop!$A$2:$A$1498=AT$129,ROW(Database_Prop!$B$2:$B$1498)-ROW(Database_Prop!$B$2)+1),ROWS(Database_Prop!Q$2:'Database_Prop'!Q25))),\"\")","v":""},{"$f":"IFERROR(INDEX(Database_Prop!$B$2:$B$1498,SMALL(IF(Database_Prop!$A$2:$A$1498=AU$129,ROW(Database_Prop!$B$2:$B$1498)-ROW(Database_Prop!$B$2)+1),ROWS(Database_Prop!R$2:'Database_Prop'!R25))),\"\")","v":""},{"$f":"IFERROR(INDEX(Database_Prop!$B$2:$B$1498,SMALL(IF(Database_Prop!$A$2:$A$1498=AV$129,ROW(Database_Prop!$B$2:$B$1498)-ROW(Database_Prop!$B$2)+1),ROWS(Database_Prop!S$2:'Database_Prop'!S25))),\"\")","v":""},{"$f":"IFERROR(INDEX(Database_Prop!$B$2:$B$1498,SMALL(IF(Database_Prop!$A$2:$A$1498=AW$129,ROW(Database_Prop!$B$2:$B$1498)-ROW(Database_Prop!$B$2)+1),ROWS(Database_Prop!T$2:'Database_Prop'!T25))),\"\")","v":""},{"$f":"IFERROR(INDEX(Database_Prop!$B$2:$B$1498,SMALL(IF(Database_Prop!$A$2:$A$1498=AX$129,ROW(Database_Prop!$B$2:$B$1498)-ROW(Database_Prop!$B$2)+1),ROWS(Database_Prop!U$2:'Database_Prop'!U25))),\"\")","v":""},{"$f":"IFERROR(INDEX(Database_Prop!$B$2:$B$1498,SMALL(IF(Database_Prop!$A$2:$A$1498=AY$129,ROW(Database_Prop!$B$2:$B$1498)-ROW(Database_Prop!$B$2)+1),ROWS(Database_Prop!V$2:'Database_Prop'!V25))),\"\")","v":""},{"$f":"IFERROR(INDEX(Database_Prop!$B$2:$B$1498,SMALL(IF(Database_Prop!$A$2:$A$1498=AZ$129,ROW(Database_Prop!$B$2:$B$1498)-ROW(Database_Prop!$B$2)+1),ROWS(Database_Prop!W$2:'Database_Prop'!W25))),\"\")","v":""},{"$f":"IFERROR(INDEX(Database_Prop!$B$2:$B$1498,SMALL(IF(Database_Prop!$A$2:$A$1498=BA$129,ROW(Database_Prop!$B$2:$B$1498)-ROW(Database_Prop!$B$2)+1),ROWS(Database_Prop!X$2:'Database_Prop'!X25))),\"\")","v":""},{"$f":"IFERROR(INDEX(Database_Prop!$B$2:$B$1498,SMALL(IF(Database_Prop!$A$2:$A$1498=BB$129,ROW(Database_Prop!$B$2:$B$1498)-ROW(Database_Prop!$B$2)+1),ROWS(Database_Prop!Y$2:'Database_Prop'!Y25))),\"\")","v":""},{"$f":"IFERROR(INDEX(Database_Prop!$B$2:$B$1498,SMALL(IF(Database_Prop!$A$2:$A$1498=BC$129,ROW(Database_Prop!$B$2:$B$1498)-ROW(Database_Prop!$B$2)+1),ROWS(Database_Prop!Z$2:'Database_Prop'!Z25))),\"\")","v":""},null,"Bolivia (Plurinational State of)","Latin America","FS1",{"$f":"$D$57","v":"Please Select"},{"$f":"$E$57","v":"Please Select"},{"$f":"IFERROR(IF($BH155=title192,VLOOKUP($BH155&\" \"&$BI155,Database_Prop!$C:$G,2,FALSE),TEXT(VLOOKUP($BH155&\" \"&$BI155,Database_Prop!$C:$G,2,FALSE),\"0%\")),0)","v":0},{"$f":"IFERROR(VLOOKUP($BH155&\" \"&$BI155,Database_Prop!$C:$G,5,FALSE),0)","v":0},{"$f":"IFERROR(VLOOKUP($BH155&\" \"&$BI155,Database_Prop!$C:$G,3,FALSE),0)","v":0},{"$f":"IFERROR(VLOOKUP($BH155&\" \"&$BI155,Database_Prop!$C:$G,4,FALSE),0)","v":0},{"$f":"IFERROR(INDIRECT(\"PRICE_\"&$BG155&\"_\"&BI$153&$BN$126),0)","v":0}]
[null,null,null,null,null,null,null,null,null,null,null,null,null,null,null,null,null,null,null,null,null,null,null,null,null,null,null,null,null,null,25,{"$f":"IFERROR(INDEX(Database_Prop!$B$2:$B$1498,SMALL(IF(Database_Prop!$A$2:$A$1498=AF$129,ROW(Database_Prop!$B$2:$B$1498)-ROW(Database_Prop!$B$2)+1),ROWS(Database_Prop!C$2:'Database_Prop'!C26))),\"\")","v":""},{"$f":"IFERROR(INDEX(Database_Prop!$B$2:$B$1498,SMALL(IF(Database_Prop!$A$2:$A$1498=AG$129,ROW(Database_Prop!$B$2:$B$1498)-ROW(Database_Prop!$B$2)+1),ROWS(Database_Prop!D$2:'Database_Prop'!D26))),\"\")","v":""},{"$f":"IFERROR(INDEX(Database_Prop!$B$2:$B$1498,SMALL(IF(Database_Prop!$A$2:$A$1498=AH$129,ROW(Database_Prop!$B$2:$B$1498)-ROW(Database_Prop!$B$2)+1),ROWS(Database_Prop!E$2:'Database_Prop'!E26))),\"\")","v":""},{"$f":"IFERROR(INDEX(Database_Prop!$B$2:$B$1498,SMALL(IF(Database_Prop!$A$2:$A$1498=AI$129,ROW(Database_Prop!$B$2:$B$1498)-ROW(Database_Prop!$B$2)+1),ROWS(Database_Prop!F$2:'Database_Prop'!F26))),\"\")","v":""},{"$f":"IFERROR(INDEX(Database_Prop!$B$2:$B$1498,SMALL(IF(Database_Prop!$A$2:$A$1498=AJ$129,ROW(Database_Prop!$B$2:$B$1498)-ROW(Database_Prop!$B$2)+1),ROWS(Database_Prop!G$2:'Database_Prop'!G26))),\"\")","v":""},{"$f":"IFERROR(INDEX(Database_Prop!$B$2:$B$1498,SMALL(IF(Database_Prop!$A$2:$A$1498=AK$129,ROW(Database_Prop!$B$2:$B$1498)-ROW(Database_Prop!$B$2)+1),ROWS(Database_Prop!H$2:'Database_Prop'!H26))),\"\")","v":""},{"$f":"IFERROR(INDEX(Database_Prop!$B$2:$B$1498,SMALL(IF(Database_Prop!$A$2:$A$1498=AL$129,ROW(Database_Prop!$B$2:$B$1498)-ROW(Database_Prop!$B$2)+1),ROWS(Database_Prop!I$2:'Database_Prop'!I26))),\"\")","v":""},{"$f":"IFERROR(INDEX(Database_Prop!$B$2:$B$1498,SMALL(IF(Database_Prop!$A$2:$A$1498=AM$129,ROW(Database_Prop!$B$2:$B$1498)-ROW(Database_Prop!$B$2)+1),ROWS(Database_Prop!J$2:'Database_Prop'!J26))),\"\")","v":""},{"$f":"IFERROR(INDEX(Database_Prop!$B$2:$B$1498,SMALL(IF(Database_Prop!$A$2:$A$1498=AN$129,ROW(Database_Prop!$B$2:$B$1498)-ROW(Database_Prop!$B$2)+1),ROWS(Database_Prop!K$2:'Database_Prop'!K26))),\"\")","v":""},{"$f":"IFERROR(INDEX(Database_Prop!$B$2:$B$1498,SMALL(IF(Database_Prop!$A$2:$A$1498=AO$129,ROW(Database_Prop!$B$2:$B$1498)-ROW(Database_Prop!$B$2)+1),ROWS(Database_Prop!L$2:'Database_Prop'!L26))),\"\")","v":""},{"$f":"IFERROR(INDEX(Database_Prop!$B$2:$B$1498,SMALL(IF(Database_Prop!$A$2:$A$1498=AP$129,ROW(Database_Prop!$B$2:$B$1498)-ROW(Database_Prop!$B$2)+1),ROWS(Database_Prop!M$2:'Database_Prop'!M26))),\"\")","v":""},{"$f":"IFERROR(INDEX(Database_Prop!$B$2:$B$1498,SMALL(IF(Database_Prop!$A$2:$A$1498=AQ$129,ROW(Database_Prop!$B$2:$B$1498)-ROW(Database_Prop!$B$2)+1),ROWS(Database_Prop!N$2:'Database_Prop'!N26))),\"\")","v":""},{"$f":"IFERROR(INDEX(Database_Prop!$B$2:$B$1498,SMALL(IF(Database_Prop!$A$2:$A$1498=AR$129,ROW(Database_Prop!$B$2:$B$1498)-ROW(Database_Prop!$B$2)+1),ROWS(Database_Prop!O$2:'Database_Prop'!O26))),\"\")","v":""},{"$f":"IFERROR(INDEX(Database_Prop!$B$2:$B$1498,SMALL(IF(Database_Prop!$A$2:$A$1498=AS$129,ROW(Database_Prop!$B$2:$B$1498)-ROW(Database_Prop!$B$2)+1),ROWS(Database_Prop!P$2:'Database_Prop'!P26))),\"\")","v":""},{"$f":"IFERROR(INDEX(Database_Prop!$B$2:$B$1498,SMALL(IF(Database_Prop!$A$2:$A$1498=AT$129,ROW(Database_Prop!$B$2:$B$1498)-ROW(Database_Prop!$B$2)+1),ROWS(Database_Prop!Q$2:'Database_Prop'!Q26))),\"\")","v":""},{"$f":"IFERROR(INDEX(Database_Prop!$B$2:$B$1498,SMALL(IF(Database_Prop!$A$2:$A$1498=AU$129,ROW(Database_Prop!$B$2:$B$1498)-ROW(Database_Prop!$B$2)+1),ROWS(Database_Prop!R$2:'Database_Prop'!R26))),\"\")","v":""},{"$f":"IFERROR(INDEX(Database_Prop!$B$2:$B$1498,SMALL(IF(Database_Prop!$A$2:$A$1498=AV$129,ROW(Database_Prop!$B$2:$B$1498)-ROW(Database_Prop!$B$2)+1),ROWS(Database_Prop!S$2:'Database_Prop'!S26))),\"\")","v":""},{"$f":"IFERROR(INDEX(Database_Prop!$B$2:$B$1498,SMALL(IF(Database_Prop!$A$2:$A$1498=AW$129,ROW(Database_Prop!$B$2:$B$1498)-ROW(Database_Prop!$B$2)+1),ROWS(Database_Prop!T$2:'Database_Prop'!T26))),\"\")","v":""},{"$f":"IFERROR(INDEX(Database_Prop!$B$2:$B$1498,SMALL(IF(Database_Prop!$A$2:$A$1498=AX$129,ROW(Database_Prop!$B$2:$B$1498)-ROW(Database_Prop!$B$2)+1),ROWS(Database_Prop!U$2:'Database_Prop'!U26))),\"\")","v":""},{"$f":"IFERROR(INDEX(Database_Prop!$B$2:$B$1498,SMALL(IF(Database_Prop!$A$2:$A$1498=AY$129,ROW(Database_Prop!$B$2:$B$1498)-ROW(Database_Prop!$B$2)+1),ROWS(Database_Prop!V$2:'Database_Prop'!V26))),\"\")","v":""},{"$f":"IFERROR(INDEX(Database_Prop!$B$2:$B$1498,SMALL(IF(Database_Prop!$A$2:$A$1498=AZ$129,ROW(Database_Prop!$B$2:$B$1498)-ROW(Database_Prop!$B$2)+1),ROWS(Database_Prop!W$2:'Database_Prop'!W26))),\"\")","v":""},{"$f":"IFERROR(INDEX(Database_Prop!$B$2:$B$1498,SMALL(IF(Database_Prop!$A$2:$A$1498=BA$129,ROW(Database_Prop!$B$2:$B$1498)-ROW(Database_Prop!$B$2)+1),ROWS(Database_Prop!X$2:'Database_Prop'!X26))),\"\")","v":""},{"$f":"IFERROR(INDEX(Database_Prop!$B$2:$B$1498,SMALL(IF(Database_Prop!$A$2:$A$1498=BB$129,ROW(Database_Prop!$B$2:$B$1498)-ROW(Database_Prop!$B$2)+1),ROWS(Database_Prop!Y$2:'Database_Prop'!Y26))),\"\")","v":""},{"$f":"IFERROR(INDEX(Database_Prop!$B$2:$B$1498,SMALL(IF(Database_Prop!$A$2:$A$1498=BC$129,ROW(Database_Prop!$B$2:$B$1498)-ROW(Database_Prop!$B$2)+1),ROWS(Database_Prop!Z$2:'Database_Prop'!Z26))),\"\")","v":""},null,"Bonaire, Saint Eustatius and Saba","Latin America",null,{"$f":"title108","v":"Main Category"},{"$f":"title109","v":"Feedstock"},{"$f":"G$22","v":"VS (%)"},{"$f":"H$22","v":"TS (%)"},{"$f":"I$22","v":"BMP (m3/t VS)"},"CH4 (%)","Collection Price"]
[null,null,null,null,null,null,null,null,null,null,null,null,null,null,null,null,null,null,null,null,null,null,null,null,null,null,null,null,null,null,26,{"$f":"IFERROR(INDEX(Database_Prop!$B$2:$B$1498,SMALL(IF(Database_Prop!$A$2:$A$1498=AF$129,ROW(Database_Prop!$B$2:$B$1498)-ROW(Database_Prop!$B$2)+1),ROWS(Database_Prop!C$2:'Database_Prop'!C27))),\"\")","v":""},{"$f":"IFERROR(INDEX(Database_Prop!$B$2:$B$1498,SMALL(IF(Database_Prop!$A$2:$A$1498=AG$129,ROW(Database_Prop!$B$2:$B$1498)-ROW(Database_Prop!$B$2)+1),ROWS(Database_Prop!D$2:'Database_Prop'!D27))),\"\")","v":""},{"$f":"IFERROR(INDEX(Database_Prop!$B$2:$B$1498,SMALL(IF(Database_Prop!$A$2:$A$1498=AH$129,ROW(Database_Prop!$B$2:$B$1498)-ROW(Database_Prop!$B$2)+1),ROWS(Database_Prop!E$2:'Database_Prop'!E27))),\"\")","v":""},{"$f":"IFERROR(INDEX(Database_Prop!$B$2:$B$1498,SMALL(IF(Database_Prop!$A$2:$A$1498=AI$129,ROW(Database_Prop!$B$2:$B$1498)-ROW(Database_Prop!$B$2)+1),ROWS(Database_Prop!F$2:'Database_Prop'!F27))),\"\")","v":""},{"$f":"IFERROR(INDEX(Database_Prop!$B$2:$B$1498,SMALL(IF(Database_Prop!$A$2:$A$1498=AJ$129,ROW(Database_Prop!$B$2:$B$1498)-ROW(Database_Prop!$B$2)+1),ROWS(Database_Prop!G$2:'Database_Prop'!G27))),\"\")","v":""},{"$f":"IFERROR(INDEX(Database_Prop!$B$2:$B$1498,SMALL(IF(Database_Prop!$A$2:$A$1498=AK$129,ROW(Database_Prop!$B$2:$B$1498)-ROW(Database_Prop!$B$2)+1),ROWS(Database_Prop!H$2:'Database_Prop'!H27))),\"\")","v":""},{"$f":"IFERROR(INDEX(Database_Prop!$B$2:$B$1498,SMALL(IF(Database_Prop!$A$2:$A$1498=AL$129,ROW(Database_Prop!$B$2:$B$1498)-ROW(Database_Prop!$B$2)+1),ROWS(Database_Prop!I$2:'Database_Prop'!I27))),\"\")","v":""},{"$f":"IFERROR(INDEX(Database_Prop!$B$2:$B$1498,SMALL(IF(Database_Prop!$A$2:$A$1498=AM$129,ROW(Database_Prop!$B$2:$B$1498)-ROW(Database_Prop!$B$2)+1),ROWS(Database_Prop!J$2:'Database_Prop'!J27))),\"\")","v":""},{"$f":"IFERROR(INDEX(Database_Prop!$B$2:$B$1498,SMALL(IF(Database_Prop!$A$2:$A$1498=AN$129,ROW(Database_Prop!$B$2:$B$1498)-ROW(Database_Prop!$B$2)+1),ROWS(Database_Prop!K$2:'Database_Prop'!K27))),\"\")","v":""},{"$f":"IFERROR(INDEX(Database_Prop!$B$2:$B$1498,SMALL(IF(Database_Prop!$A$2:$A$1498=AO$129,ROW(Database_Prop!$B$2:$B$1498)-ROW(Database_Prop!$B$2)+1),ROWS(Database_Prop!L$2:'Database_Prop'!L27))),\"\")","v":""},{"$f":"IFERROR(INDEX(Database_Prop!$B$2:$B$1498,SMALL(IF(Database_Prop!$A$2:$A$1498=AP$129,ROW(Database_Prop!$B$2:$B$1498)-ROW(Database_Prop!$B$2)+1),ROWS(Database_Prop!M$2:'Database_Prop'!M27))),\"\")","v":""},{"$f":"IFERROR(INDEX(Database_Prop!$B$2:$B$1498,SMALL(IF(Database_Prop!$A$2:$A$1498=AQ$129,ROW(Database_Prop!$B$2:$B$1498)-ROW(Database_Prop!$B$2)+1),ROWS(Database_Prop!N$2:'Database_Prop'!N27))),\"\")","v":""},{"$f":"IFERROR(INDEX(Database_Prop!$B$2:$B$1498,SMALL(IF(Database_Prop!$A$2:$A$1498=AR$129,ROW(Database_Prop!$B$2:$B$1498)-ROW(Database_Prop!$B$2)+1),ROWS(Database_Prop!O$2:'Database_Prop'!O27))),\"\")","v":""},{"$f":"IFERROR(INDEX(Database_Prop!$B$2:$B$1498,SMALL(IF(Database_Prop!$A$2:$A$1498=AS$129,ROW(Database_Prop!$B$2:$B$1498)-ROW(Database_Prop!$B$2)+1),ROWS(Database_Prop!P$2:'Database_Prop'!P27))),\"\")","v":""},{"$f":"IFERROR(INDEX(Database_Prop!$B$2:$B$1498,SMALL(IF(Database_Prop!$A$2:$A$1498=AT$129,ROW(Database_Prop!$B$2:$B$1498)-ROW(Database_Prop!$B$2)+1),ROWS(Database_Prop!Q$2:'Database_Prop'!Q27))),\"\")","v":""},{"$f":"IFERROR(INDEX(Database_Prop!$B$2:$B$1498,SMALL(IF(Database_Prop!$A$2:$A$1498=AU$129,ROW(Database_Prop!$B$2:$B$1498)-ROW(Database_Prop!$B$2)+1),ROWS(Database_Prop!R$2:'Database_Prop'!R27))),\"\")","v":""},{"$f":"IFERROR(INDEX(Database_Prop!$B$2:$B$1498,SMALL(IF(Database_Prop!$A$2:$A$1498=AV$129,ROW(Database_Prop!$B$2:$B$1498)-ROW(Database_Prop!$B$2)+1),ROWS(Database_Prop!S$2:'Database_Prop'!S27))),\"\")","v":""},{"$f":"IFERROR(INDEX(Database_Prop!$B$2:$B$1498,SMALL(IF(Database_Prop!$A$2:$A$1498=AW$129,ROW(Database_Prop!$B$2:$B$1498)-ROW(Database_Prop!$B$2)+1),ROWS(Database_Prop!T$2:'Database_Prop'!T27))),\"\")","v":""},{"$f":"IFERROR(INDEX(Database_Prop!$B$2:$B$1498,SMALL(IF(Database_Prop!$A$2:$A$1498=AX$129,ROW(Database_Prop!$B$2:$B$1498)-ROW(Database_Prop!$B$2)+1),ROWS(Database_Prop!U$2:'Database_Prop'!U27))),\"\")","v":""},{"$f":"IFERROR(INDEX(Database_Prop!$B$2:$B$1498,SMALL(IF(Database_Prop!$A$2:$A$1498=AY$129,ROW(Database_Prop!$B$2:$B$1498)-ROW(Database_Prop!$B$2)+1),ROWS(Database_Prop!V$2:'Database_Prop'!V27))),\"\")","v":""},{"$f":"IFERROR(INDEX(Database_Prop!$B$2:$B$1498,SMALL(IF(Database_Prop!$A$2:$A$1498=AZ$129,ROW(Database_Prop!$B$2:$B$1498)-ROW(Database_Prop!$B$2)+1),ROWS(Database_Prop!W$2:'Database_Prop'!W27))),\"\")","v":""},{"$f":"IFERROR(INDEX(Database_Prop!$B$2:$B$1498,SMALL(IF(Database_Prop!$A$2:$A$1498=BA$129,ROW(Database_Prop!$B$2:$B$1498)-ROW(Database_Prop!$B$2)+1),ROWS(Database_Prop!X$2:'Database_Prop'!X27))),\"\")","v":""},{"$f":"IFERROR(INDEX(Database_Prop!$B$2:$B$1498,SMALL(IF(Database_Prop!$A$2:$A$1498=BB$129,ROW(Database_Prop!$B$2:$B$1498)-ROW(Database_Prop!$B$2)+1),ROWS(Database_Prop!Y$2:'Database_Prop'!Y27))),\"\")","v":""},{"$f":"IFERROR(INDEX(Database_Prop!$B$2:$B$1498,SMALL(IF(Database_Prop!$A$2:$A$1498=BC$129,ROW(Database_Prop!$B$2:$B$1498)-ROW(Database_Prop!$B$2)+1),ROWS(Database_Prop!Z$2:'Database_Prop'!Z27))),\"\")","v":""},null,"Bosnia and Herzegovina","Eastern Europe","FS2",{"$f":"$D$59","v":"Please Select"},{"$f":"$E$59","v":"Please Select"},{"$f":"IFERROR(IF($BH157=title192,VLOOKUP($BH157&\" \"&$BI157,Database_Prop!$C:$G,2,FALSE),TEXT(VLOOKUP($BH157&\" \"&$BI157,Database_Prop!$C:$G,2,FALSE),\"0%\")),0)","v":0},{"$f":"IFERROR(VLOOKUP($BH157&\" \"&$BI157,Database_Prop!$C:$G,5,FALSE),0)","v":0},{"$f":"IFERROR(VLOOKUP($BH157&\" \"&$BI157,Database_Prop!$C:$G,3,FALSE),0)","v":0},{"$f":"IFERROR(VLOOKUP($BH157&\" \"&$BI157,Database_Prop!$C:$G,4,FALSE),0)","v":0},{"$f":"IFERROR(INDIRECT(\"PRICE_\"&$BG157&\"_\"&BI$153&$BN$126),0)","v":0}]
[null,null,null,null,null,null,null,null,null,null,null,null,null,null,null,null,null,null,null,null,null,null,null,null,null,null,null,null,null,null,27,{"$f":"IFERROR(INDEX(Database_Prop!$B$2:$B$1498,SMALL(IF(Database_Prop!$A$2:$A$1498=AF$129,ROW(Database_Prop!$B$2:$B$1498)-ROW(Database_Prop!$B$2)+1),ROWS(Database_Prop!C$2:'Database_Prop'!C28))),\"\")","v":""},{"$f":"IFERROR(INDEX(Database_Prop!$B$2:$B$1498,SMALL(IF(Database_Prop!$A$2:$A$1498=AG$129,ROW(Database_Prop!$B$2:$B$1498)-ROW(Database_Prop!$B$2)+1),ROWS(Database_Prop!D$2:'Database_Prop'!D28))),\"\")","v":""},{"$f":"IFERROR(INDEX(Database_Prop!$B$2:$B$1498,SMALL(IF(Database_Prop!$A$2:$A$1498=AH$129,ROW(Database_Prop!$B$2:$B$1498)-ROW(Database_Prop!$B$2)+1),ROWS(Database_Prop!E$2:'Database_Prop'!E28))),\"\")","v":""},{"$f":"IFERROR(INDEX(Database_Prop!$B$2:$B$1498,SMALL(IF(Database_Prop!$A$2:$A$1498=AI$129,ROW(Database_Prop!$B$2:$B$1498)-ROW(Database_Prop!$B$2)+1),ROWS(Database_Prop!F$2:'Database_Prop'!F28))),\"\")","v":""},{"$f":"IFERROR(INDEX(Database_Prop!$B$2:$B$1498,SMALL(IF(Database_Prop!$A$2:$A$1498=AJ$129,ROW(Database_Prop!$B$2:$B$1498)-ROW(Database_Prop!$B$2)+1),ROWS(Database_Prop!G$2:'Database_Prop'!G28))),\"\")","v":""},{"$f":"IFERROR(INDEX(Database_Prop!$B$2:$B$1498,SMALL(IF(Database_Prop!$A$2:$A$1498=AK$129,ROW(Database_Prop!$B$2:$B$1498)-ROW(Database_Prop!$B$2)+1),ROWS(Database_Prop!H$2:'Database_Prop'!H28))),\"\")","v":""},{"$f":"IFERROR(INDEX(Database_Prop!$B$2:$B$1498,SMALL(IF(Database_Prop!$A$2:$A$1498=AL$129,ROW(Database_Prop!$B$2:$B$1498)-ROW(Database_Prop!$B$2)+1),ROWS(Database_Prop!I$2:'Database_Prop'!I28))),\"\")","v":""},{"$f":"IFERROR(INDEX(Database_Prop!$B$2:$B$1498,SMALL(IF(Database_Prop!$A$2:$A$1498=AM$129,ROW(Database_Prop!$B$2:$B$1498)-ROW(Database_Prop!$B$2)+1),ROWS(Database_Prop!J$2:'Database_Prop'!J28))),\"\")","v":""},{"$f":"IFERROR(INDEX(Database_Prop!$B$2:$B$1498,SMALL(IF(Database_Prop!$A$2:$A$1498=AN$129,ROW(Database_Prop!$B$2:$B$1498)-ROW(Database_Prop!$B$2)+1),ROWS(Database_Prop!K$2:'Database_Prop'!K28))),\"\")","v":""},{"$f":"IFERROR(INDEX(Database_Prop!$B$2:$B$1498,SMALL(IF(Database_Prop!$A$2:$A$1498=AO$129,ROW(Database_Prop!$B$2:$B$1498)-ROW(Database_Prop!$B$2)+1),ROWS(Database_Prop!L$2:'Database_Prop'!L28))),\"\")","v":""},{"$f":"IFERROR(INDEX(Database_Prop!$B$2:$B$1498,SMALL(IF(Database_Prop!$A$2:$A$1498=AP$129,ROW(Database_Prop!$B$2:$B$1498)-ROW(Database_Prop!$B$2)+1),ROWS(Database_Prop!M$2:'Database_Prop'!M28))),\"\")","v":""},{"$f":"IFERROR(INDEX(Database_Prop!$B$2:$B$1498,SMALL(IF(Database_Prop!$A$2:$A$1498=AQ$129,ROW(Database_Prop!$B$2:$B$1498)-ROW(Database_Prop!$B$2)+1),ROWS(Database_Prop!N$2:'Database_Prop'!N28))),\"\")","v":""},{"$f":"IFERROR(INDEX(Database_Prop!$B$2:$B$1498,SMALL(IF(Database_Prop!$A$2:$A$1498=AR$129,ROW(Database_Prop!$B$2:$B$1498)-ROW(Database_Prop!$B$2)+1),ROWS(Database_Prop!O$2:'Database_Prop'!O28))),\"\")","v":""},{"$f":"IFERROR(INDEX(Database_Prop!$B$2:$B$1498,SMALL(IF(Database_Prop!$A$2:$A$1498=AS$129,ROW(Database_Prop!$B$2:$B$1498)-ROW(Database_Prop!$B$2)+1),ROWS(Database_Prop!P$2:'Database_Prop'!P28))),\"\")","v":""},{"$f":"IFERROR(INDEX(Database_Prop!$B$2:$B$1498,SMALL(IF(Database_Prop!$A$2:$A$1498=AT$129,ROW(Database_Prop!$B$2:$B$1498)-ROW(Database_Prop!$B$2)+1),ROWS(Database_Prop!Q$2:'Database_Prop'!Q28))),\"\")","v":""},{"$f":"IFERROR(INDEX(Database_Prop!$B$2:$B$1498,SMALL(IF(Database_Prop!$A$2:$A$1498=AU$129,ROW(Database_Prop!$B$2:$B$1498)-ROW(Database_Prop!$B$2)+1),ROWS(Database_Prop!R$2:'Database_Prop'!R28))),\"\")","v":""},{"$f":"IFERROR(INDEX(Database_Prop!$B$2:$B$1498,SMALL(IF(Database_Prop!$A$2:$A$1498=AV$129,ROW(Database_Prop!$B$2:$B$1498)-ROW(Database_Prop!$B$2)+1),ROWS(Database_Prop!S$2:'Database_Prop'!S28))),\"\")","v":""},{"$f":"IFERROR(INDEX(Database_Prop!$B$2:$B$1498,SMALL(IF(Database_Prop!$A$2:$A$1498=AW$129,ROW(Database_Prop!$B$2:$B$1498)-ROW(Database_Prop!$B$2)+1),ROWS(Database_Prop!T$2:'Database_Prop'!T28))),\"\")","v":""},{"$f":"IFERROR(INDEX(Database_Prop!$B$2:$B$1498,SMALL(IF(Database_Prop!$A$2:$A$1498=AX$129,ROW(Database_Prop!$B$2:$B$1498)-ROW(Database_Prop!$B$2)+1),ROWS(Database_Prop!U$2:'Database_Prop'!U28))),\"\")","v":""},{"$f":"IFERROR(INDEX(Database_Prop!$B$2:$B$1498,SMALL(IF(Database_Prop!$A$2:$A$1498=AY$129,ROW(Database_Prop!$B$2:$B$1498)-ROW(Database_Prop!$B$2)+1),ROWS(Database_Prop!V$2:'Database_Prop'!V28))),\"\")","v":""},{"$f":"IFERROR(INDEX(Database_Prop!$B$2:$B$1498,SMALL(IF(Database_Prop!$A$2:$A$1498=AZ$129,ROW(Database_Prop!$B$2:$B$1498)-ROW(Database_Prop!$B$2)+1),ROWS(Database_Prop!W$2:'Database_Prop'!W28))),\"\")","v":""},{"$f":"IFERROR(INDEX(Database_Prop!$B$2:$B$1498,SMALL(IF(Database_Prop!$A$2:$A$1498=BA$129,ROW(Database_Prop!$B$2:$B$1498)-ROW(Database_Prop!$B$2)+1),ROWS(Database_Prop!X$2:'Database_Prop'!X28))),\"\")","v":""},{"$f":"IFERROR(INDEX(Database_Prop!$B$2:$B$1498,SMALL(IF(Database_Prop!$A$2:$A$1498=BB$129,ROW(Database_Prop!$B$2:$B$1498)-ROW(Database_Prop!$B$2)+1),ROWS(Database_Prop!Y$2:'Database_Prop'!Y28))),\"\")","v":""},{"$f":"IFERROR(INDEX(Database_Prop!$B$2:$B$1498,SMALL(IF(Database_Prop!$A$2:$A$1498=BC$129,ROW(Database_Prop!$B$2:$B$1498)-ROW(Database_Prop!$B$2)+1),ROWS(Database_Prop!Z$2:'Database_Prop'!Z28))),\"\")","v":""},null,"Botswana","Africa",null,{"$f":"title108","v":"Main Category"},{"$f":"title109","v":"Feedstock"},{"$f":"G$24","v":"VS (%)"},{"$f":"H$24","v":"TS (%)"},{"$f":"I$24","v":"BMP (m3/t VS)"},"CH4 (%)","Collection Price"]
[null,null,null,null,null,null,null,null,null,null,null,null,null,null,null,null,null,null,null,null,null,null,null,null,null,null,null,null,null,null,28,{"$f":"IFERROR(INDEX(Database_Prop!$B$2:$B$1498,SMALL(IF(Database_Prop!$A$2:$A$1498=AF$129,ROW(Database_Prop!$B$2:$B$1498)-ROW(Database_Prop!$B$2)+1),ROWS(Database_Prop!C$2:'Database_Prop'!C29))),\"\")","v":""},{"$f":"IFERROR(INDEX(Database_Prop!$B$2:$B$1498,SMALL(IF(Database_Prop!$A$2:$A$1498=AG$129,ROW(Database_Prop!$B$2:$B$1498)-ROW(Database_Prop!$B$2)+1),ROWS(Database_Prop!D$2:'Database_Prop'!D29))),\"\")","v":""},{"$f":"IFERROR(INDEX(Database_Prop!$B$2:$B$1498,SMALL(IF(Database_Prop!$A$2:$A$1498=AH$129,ROW(Database_Prop!$B$2:$B$1498)-ROW(Database_Prop!$B$2)+1),ROWS(Database_Prop!E$2:'Database_Prop'!E29))),\"\")","v":""},{"$f":"IFERROR(INDEX(Database_Prop!$B$2:$B$1498,SMALL(IF(Database_Prop!$A$2:$A$1498=AI$129,ROW(Database_Prop!$B$2:$B$1498)-ROW(Database_Prop!$B$2)+1),ROWS(Database_Prop!F$2:'Database_Prop'!F29))),\"\")","v":""},{"$f":"IFERROR(INDEX(Database_Prop!$B$2:$B$1498,SMALL(IF(Database_Prop!$A$2:$A$1498=AJ$129,ROW(Database_Prop!$B$2:$B$1498)-ROW(Database_Prop!$B$2)+1),ROWS(Database_Prop!G$2:'Database_Prop'!G29))),\"\")","v":""},{"$f":"IFERROR(INDEX(Database_Prop!$B$2:$B$1498,SMALL(IF(Database_Prop!$A$2:$A$1498=AK$129,ROW(Database_Prop!$B$2:$B$1498)-ROW(Database_Prop!$B$2)+1),ROWS(Database_Prop!H$2:'Database_Prop'!H29))),\"\")","v":""},{"$f":"IFERROR(INDEX(Database_Prop!$B$2:$B$1498,SMALL(IF(Database_Prop!$A$2:$A$1498=AL$129,ROW(Database_Prop!$B$2:$B$1498)-ROW(Database_Prop!$B$2)+1),ROWS(Database_Prop!I$2:'Database_Prop'!I29))),\"\")","v":""},{"$f":"IFERROR(INDEX(Database_Prop!$B$2:$B$1498,SMALL(IF(Database_Prop!$A$2:$A$1498=AM$129,ROW(Database_Prop!$B$2:$B$1498)-ROW(Database_Prop!$B$2)+1),ROWS(Database_Prop!J$2:'Database_Prop'!J29))),\"\")","v":""},{"$f":"IFERROR(INDEX(Database_Prop!$B$2:$B$1498,SMALL(IF(Database_Prop!$A$2:$A$1498=AN$129,ROW(Database_Prop!$B$2:$B$1498)-ROW(Database_Prop!$B$2)+1),ROWS(Database_Prop!K$2:'Database_Prop'!K29))),\"\")","v":""},{"$f":"IFERROR(INDEX(Database_Prop!$B$2:$B$1498,SMALL(IF(Database_Prop!$A$2:$A$1498=AO$129,ROW(Database_Prop!$B$2:$B$1498)-ROW(Database_Prop!$B$2)+1),ROWS(Database_Prop!L$2:'Database_Prop'!L29))),\"\")","v":""},{"$f":"IFERROR(INDEX(Database_Prop!$B$2:$B$1498,SMALL(IF(Database_Prop!$A$2:$A$1498=AP$129,ROW(Database_Prop!$B$2:$B$1498)-ROW(Database_Prop!$B$2)+1),ROWS(Database_Prop!M$2:'Database_Prop'!M29))),\"\")","v":""},{"$f":"IFERROR(INDEX(Database_Prop!$B$2:$B$1498,SMALL(IF(Database_Prop!$A$2:$A$1498=AQ$129,ROW(Database_Prop!$B$2:$B$1498)-ROW(Database_Prop!$B$2)+1),ROWS(Database_Prop!N$2:'Database_Prop'!N29))),\"\")","v":""},{"$f":"IFERROR(INDEX(Database_Prop!$B$2:$B$1498,SMALL(IF(Database_Prop!$A$2:$A$1498=AR$129,ROW(Database_Prop!$B$2:$B$1498)-ROW(Database_Prop!$B$2)+1),ROWS(Database_Prop!O$2:'Database_Prop'!O29))),\"\")","v":""},{"$f":"IFERROR(INDEX(Database_Prop!$B$2:$B$1498,SMALL(IF(Database_Prop!$A$2:$A$1498=AS$129,ROW(Database_Prop!$B$2:$B$1498)-ROW(Database_Prop!$B$2)+1),ROWS(Database_Prop!P$2:'Database_Prop'!P29))),\"\")","v":""},{"$f":"IFERROR(INDEX(Database_Prop!$B$2:$B$1498,SMALL(IF(Database_Prop!$A$2:$A$1498=AT$129,ROW(Database_Prop!$B$2:$B$1498)-ROW(Database_Prop!$B$2)+1),ROWS(Database_Prop!Q$2:'Database_Prop'!Q29))),\"\")","v":""},{"$f":"IFERROR(INDEX(Database_Prop!$B$2:$B$1498,SMALL(IF(Database_Prop!$A$2:$A$1498=AU$129,ROW(Database_Prop!$B$2:$B$1498)-ROW(Database_Prop!$B$2)+1),ROWS(Database_Prop!R$2:'Database_Prop'!R29))),\"\")","v":""},{"$f":"IFERROR(INDEX(Database_Prop!$B$2:$B$1498,SMALL(IF(Database_Prop!$A$2:$A$1498=AV$129,ROW(Database_Prop!$B$2:$B$1498)-ROW(Database_Prop!$B$2)+1),ROWS(Database_Prop!S$2:'Database_Prop'!S29))),\"\")","v":""},{"$f":"IFERROR(INDEX(Database_Prop!$B$2:$B$1498,SMALL(IF(Database_Prop!$A$2:$A$1498=AW$129,ROW(Database_Prop!$B$2:$B$1498)-ROW(Database_Prop!$B$2)+1),ROWS(Database_Prop!T$2:'Database_Prop'!T29))),\"\")","v":""},{"$f":"IFERROR(INDEX(Database_Prop!$B$2:$B$1498,SMALL(IF(Database_Prop!$A$2:$A$1498=AX$129,ROW(Database_Prop!$B$2:$B$1498)-ROW(Database_Prop!$B$2)+1),ROWS(Database_Prop!U$2:'Database_Prop'!U29))),\"\")","v":""},{"$f":"IFERROR(INDEX(Database_Prop!$B$2:$B$1498,SMALL(IF(Database_Prop!$A$2:$A$1498=AY$129,ROW(Database_Prop!$B$2:$B$1498)-ROW(Database_Prop!$B$2)+1),ROWS(Database_Prop!V$2:'Database_Prop'!V29))),\"\")","v":""},{"$f":"IFERROR(INDEX(Database_Prop!$B$2:$B$1498,SMALL(IF(Database_Prop!$A$2:$A$1498=AZ$129,ROW(Database_Prop!$B$2:$B$1498)-ROW(Database_Prop!$B$2)+1),ROWS(Database_Prop!W$2:'Database_Prop'!W29))),\"\")","v":""},{"$f":"IFERROR(INDEX(Database_Prop!$B$2:$B$1498,SMALL(IF(Database_Prop!$A$2:$A$1498=BA$129,ROW(Database_Prop!$B$2:$B$1498)-ROW(Database_Prop!$B$2)+1),ROWS(Database_Prop!X$2:'Database_Prop'!X29))),\"\")","v":""},{"$f":"IFERROR(INDEX(Database_Prop!$B$2:$B$1498,SMALL(IF(Database_Prop!$A$2:$A$1498=BB$129,ROW(Database_Prop!$B$2:$B$1498)-ROW(Database_Prop!$B$2)+1),ROWS(Database_Prop!Y$2:'Database_Prop'!Y29))),\"\")","v":""},{"$f":"IFERROR(INDEX(Database_Prop!$B$2:$B$1498,SMALL(IF(Database_Prop!$A$2:$A$1498=BC$129,ROW(Database_Prop!$B$2:$B$1498)-ROW(Database_Prop!$B$2)+1),ROWS(Database_Prop!Z$2:'Database_Prop'!Z29))),\"\")","v":""},null,"Brazil","Latin America","FS3",{"$f":"$D$61","v":"Please Select"},{"$f":"$E$61","v":"Please Select"},{"$f":"IFERROR(IF($BH159=title192,VLOOKUP($BH159&\" \"&$BI159,Database_Prop!$C:$G,2,FALSE),TEXT(VLOOKUP($BH159&\" \"&$BI159,Database_Prop!$C:$G,2,FALSE),\"0%\")),0)","v":0},{"$f":"IFERROR(VLOOKUP($BH159&\" \"&$BI159,Database_Prop!$C:$G,5,FALSE),0)","v":0},{"$f":"IFERROR(VLOOKUP($BH159&\" \"&$BI159,Database_Prop!$C:$G,3,FALSE),0)","v":0},{"$f":"IFERROR(VLOOKUP($BH159&\" \"&$BI159,Database_Prop!$C:$G,4,FALSE),0)","v":0},{"$f":"IFERROR(INDIRECT(\"PRICE_\"&$BG159&\"_\"&BI$153&$BN$126),0)","v":0}]
[null,null,null,null,null,null,null,null,null,null,null,null,null,null,null,null,null,null,null,null,null,null,null,null,null,null,null,null,null,null,29,{"$f":"IFERROR(INDEX(Database_Prop!$B$2:$B$1498,SMALL(IF(Database_Prop!$A$2:$A$1498=AF$129,ROW(Database_Prop!$B$2:$B$1498)-ROW(Database_Prop!$B$2)+1),ROWS(Database_Prop!C$2:'Database_Prop'!C30))),\"\")","v":""},{"$f":"IFERROR(INDEX(Database_Prop!$B$2:$B$1498,SMALL(IF(Database_Prop!$A$2:$A$1498=AG$129,ROW(Database_Prop!$B$2:$B$1498)-ROW(Database_Prop!$B$2)+1),ROWS(Database_Prop!D$2:'Database_Prop'!D30))),\"\")","v":""},{"$f":"IFERROR(INDEX(Database_Prop!$B$2:$B$1498,SMALL(IF(Database_Prop!$A$2:$A$1498=AH$129,ROW(Database_Prop!$B$2:$B$1498)-ROW(Database_Prop!$B$2)+1),ROWS(Database_Prop!E$2:'Database_Prop'!E30))),\"\")","v":""},{"$f":"IFERROR(INDEX(Database_Prop!$B$2:$B$1498,SMALL(IF(Database_Prop!$A$2:$A$1498=AI$129,ROW(Database_Prop!$B$2:$B$1498)-ROW(Database_Prop!$B$2)+1),ROWS(Database_Prop!F$2:'Database_Prop'!F30))),\"\")","v":""},{"$f":"IFERROR(INDEX(Database_Prop!$B$2:$B$1498,SMALL(IF(Database_Prop!$A$2:$A$1498=AJ$129,ROW(Database_Prop!$B$2:$B$1498)-ROW(Database_Prop!$B$2)+1),ROWS(Database_Prop!G$2:'Database_Prop'!G30))),\"\")","v":""},{"$f":"IFERROR(INDEX(Database_Prop!$B$2:$B$1498,SMALL(IF(Database_Prop!$A$2:$A$1498=AK$129,ROW(Database_Prop!$B$2:$B$1498)-ROW(Database_Prop!$B$2)+1),ROWS(Database_Prop!H$2:'Database_Prop'!H30))),\"\")","v":""},{"$f":"IFERROR(INDEX(Database_Prop!$B$2:$B$1498,SMALL(IF(Database_Prop!$A$2:$A$1498=AL$129,ROW(Database_Prop!$B$2:$B$1498)-ROW(Database_Prop!$B$2)+1),ROWS(Database_Prop!I$2:'Database_Prop'!I30))),\"\")","v":""},{"$f":"IFERROR(INDEX(Database_Prop!$B$2:$B$1498,SMALL(IF(Database_Prop!$A$2:$A$1498=AM$129,ROW(Database_Prop!$B$2:$B$1498)-ROW(Database_Prop!$B$2)+1),ROWS(Database_Prop!J$2:'Database_Prop'!J30))),\"\")","v":""},{"$f":"IFERROR(INDEX(Database_Prop!$B$2:$B$1498,SMALL(IF(Database_Prop!$A$2:$A$1498=AN$129,ROW(Database_Prop!$B$2:$B$1498)-ROW(Database_Prop!$B$2)+1),ROWS(Database_Prop!K$2:'Database_Prop'!K30))),\"\")","v":""},{"$f":"IFERROR(INDEX(Database_Prop!$B$2:$B$1498,SMALL(IF(Database_Prop!$A$2:$A$1498=AO$129,ROW(Database_Prop!$B$2:$B$1498)-ROW(Database_Prop!$B$2)+1),ROWS(Database_Prop!L$2:'Database_Prop'!L30))),\"\")","v":""},{"$f":"IFERROR(INDEX(Database_Prop!$B$2:$B$1498,SMALL(IF(Database_Prop!$A$2:$A$1498=AP$129,ROW(Database_Prop!$B$2:$B$1498)-ROW(Database_Prop!$B$2)+1),ROWS(Database_Prop!M$2:'Database_Prop'!M30))),\"\")","v":""},{"$f":"IFERROR(INDEX(Database_Prop!$B$2:$B$1498,SMALL(IF(Database_Prop!$A$2:$A$1498=AQ$129,ROW(Database_Prop!$B$2:$B$1498)-ROW(Database_Prop!$B$2)+1),ROWS(Database_Prop!N$2:'Database_Prop'!N30))),\"\")","v":""},{"$f":"IFERROR(INDEX(Database_Prop!$B$2:$B$1498,SMALL(IF(Database_Prop!$A$2:$A$1498=AR$129,ROW(Database_Prop!$B$2:$B$1498)-ROW(Database_Prop!$B$2)+1),ROWS(Database_Prop!O$2:'Database_Prop'!O30))),\"\")","v":""},{"$f":"IFERROR(INDEX(Database_Prop!$B$2:$B$1498,SMALL(IF(Database_Prop!$A$2:$A$1498=AS$129,ROW(Database_Prop!$B$2:$B$1498)-ROW(Database_Prop!$B$2)+1),ROWS(Database_Prop!P$2:'Database_Prop'!P30))),\"\")","v":""},{"$f":"IFERROR(INDEX(Database_Prop!$B$2:$B$1498,SMALL(IF(Database_Prop!$A$2:$A$1498=AT$129,ROW(Database_Prop!$B$2:$B$1498)-ROW(Database_Prop!$B$2)+1),ROWS(Database_Prop!Q$2:'Database_Prop'!Q30))),\"\")","v":""},{"$f":"IFERROR(INDEX(Database_Prop!$B$2:$B$1498,SMALL(IF(Database_Prop!$A$2:$A$1498=AU$129,ROW(Database_Prop!$B$2:$B$1498)-ROW(Database_Prop!$B$2)+1),ROWS(Database_Prop!R$2:'Database_Prop'!R30))),\"\")","v":""},{"$f":"IFERROR(INDEX(Database_Prop!$B$2:$B$1498,SMALL(IF(Database_Prop!$A$2:$A$1498=AV$129,ROW(Database_Prop!$B$2:$B$1498)-ROW(Database_Prop!$B$2)+1),ROWS(Database_Prop!S$2:'Database_Prop'!S30))),\"\")","v":""},{"$f":"IFERROR(INDEX(Database_Prop!$B$2:$B$1498,SMALL(IF(Database_Prop!$A$2:$A$1498=AW$129,ROW(Database_Prop!$B$2:$B$1498)-ROW(Database_Prop!$B$2)+1),ROWS(Database_Prop!T$2:'Database_Prop'!T30))),\"\")","v":""},{"$f":"IFERROR(INDEX(Database_Prop!$B$2:$B$1498,SMALL(IF(Database_Prop!$A$2:$A$1498=AX$129,ROW(Database_Prop!$B$2:$B$1498)-ROW(Database_Prop!$B$2)+1),ROWS(Database_Prop!U$2:'Database_Prop'!U30))),\"\")","v":""},{"$f":"IFERROR(INDEX(Database_Prop!$B$2:$B$1498,SMALL(IF(Database_Prop!$A$2:$A$1498=AY$129,ROW(Database_Prop!$B$2:$B$1498)-ROW(Database_Prop!$B$2)+1),ROWS(Database_Prop!V$2:'Database_Prop'!V30))),\"\")","v":""},{"$f":"IFERROR(INDEX(Database_Prop!$B$2:$B$1498,SMALL(IF(Database_Prop!$A$2:$A$1498=AZ$129,ROW(Database_Prop!$B$2:$B$1498)-ROW(Database_Prop!$B$2)+1),ROWS(Database_Prop!W$2:'Database_Prop'!W30))),\"\")","v":""},{"$f":"IFERROR(INDEX(Database_Prop!$B$2:$B$1498,SMALL(IF(Database_Prop!$A$2:$A$1498=BA$129,ROW(Database_Prop!$B$2:$B$1498)-ROW(Database_Prop!$B$2)+1),ROWS(Database_Prop!X$2:'Database_Prop'!X30))),\"\")","v":""},{"$f":"IFERROR(INDEX(Database_Prop!$B$2:$B$1498,SMALL(IF(Database_Prop!$A$2:$A$1498=BB$129,ROW(Database_Prop!$B$2:$B$1498)-ROW(Database_Prop!$B$2)+1),ROWS(Database_Prop!Y$2:'Database_Prop'!Y30))),\"\")","v":""},{"$f":"IFERROR(INDEX(Database_Prop!$B$2:$B$1498,SMALL(IF(Database_Prop!$A$2:$A$1498=BC$129,ROW(Database_Prop!$B$2:$B$1498)-ROW(Database_Prop!$B$2)+1),ROWS(Database_Prop!Z$2:'Database_Prop'!Z30))),\"\")","v":""},null,"British Virgin Islands","Latin America",null,{"$f":"title108","v":"Main Category"},{"$f":"title109","v":"Feedstock"},{"$f":"G$26","v":"VS (%)"},{"$f":"H$26","v":"TS (%)"},{"$f":"I$26","v":"BMP (m3/t VS)"},"CH4 (%)","Collection Price"]
[null,null,null,null,null,null,null,null,null,null,null,null,null,null,null,null,null,null,null,null,null,null,null,null,null,null,null,null,null,null,30,{"$f":"IFERROR(INDEX(Database_Prop!$B$2:$B$1498,SMALL(IF(Database_Prop!$A$2:$A$1498=AF$129,ROW(Database_Prop!$B$2:$B$1498)-ROW(Database_Prop!$B$2)+1),ROWS(Database_Prop!C$2:'Database_Prop'!C31))),\"\")","v":""},{"$f":"IFERROR(INDEX(Database_Prop!$B$2:$B$1498,SMALL(IF(Database_Prop!$A$2:$A$1498=AG$129,ROW(Database_Prop!$B$2:$B$1498)-ROW(Database_Prop!$B$2)+1),ROWS(Database_Prop!D$2:'Database_Prop'!D31))),\"\")","v":""},{"$f":"IFERROR(INDEX(Database_Prop!$B$2:$B$1498,SMALL(IF(Database_Prop!$A$2:$A$1498=AH$129,ROW(Database_Prop!$B$2:$B$1498)-ROW(Database_Prop!$B$2)+1),ROWS(Database_Prop!E$2:'Database_Prop'!E31))),\"\")","v":""},{"$f":"IFERROR(INDEX(Database_Prop!$B$2:$B$1498,SMALL(IF(Database_Prop!$A$2:$A$1498=AI$129,ROW(Database_Prop!$B$2:$B$1498)-ROW(Database_Prop!$B$2)+1),ROWS(Database_Prop!F$2:'Database_Prop'!F31))),\"\")","v":""},{"$f":"IFERROR(INDEX(Database_Prop!$B$2:$B$1498,SMALL(IF(Database_Prop!$A$2:$A$1498=AJ$129,ROW(Database_Prop!$B$2:$B$1498)-ROW(Database_Prop!$B$2)+1),ROWS(Database_Prop!G$2:'Database_Prop'!G31))),\"\")","v":""},{"$f":"IFERROR(INDEX(Database_Prop!$B$2:$B$1498,SMALL(IF(Database_Prop!$A$2:$A$1498=AK$129,ROW(Database_Prop!$B$2:$B$1498)-ROW(Database_Prop!$B$2)+1),ROWS(Database_Prop!H$2:'Database_Prop'!H31))),\"\")","v":""},{"$f":"IFERROR(INDEX(Database_Prop!$B$2:$B$1498,SMALL(IF(Database_Prop!$A$2:$A$1498=AL$129,ROW(Database_Prop!$B$2:$B$1498)-ROW(Database_Prop!$B$2)+1),ROWS(Database_Prop!I$2:'Database_Prop'!I31))),\"\")","v":""},{"$f":"IFERROR(INDEX(Database_Prop!$B$2:$B$1498,SMALL(IF(Database_Prop!$A$2:$A$1498=AM$129,ROW(Database_Prop!$B$2:$B$1498)-ROW(Database_Prop!$B$2)+1),ROWS(Database_Prop!J$2:'Database_Prop'!J31))),\"\")","v":""},{"$f":"IFERROR(INDEX(Database_Prop!$B$2:$B$1498,SMALL(IF(Database_Prop!$A$2:$A$1498=AN$129,ROW(Database_Prop!$B$2:$B$1498)-ROW(Database_Prop!$B$2)+1),ROWS(Database_Prop!K$2:'Database_Prop'!K31))),\"\")","v":""},{"$f":"IFERROR(INDEX(Database_Prop!$B$2:$B$1498,SMALL(IF(Database_Prop!$A$2:$A$1498=AO$129,ROW(Database_Prop!$B$2:$B$1498)-ROW(Database_Prop!$B$2)+1),ROWS(Database_Prop!L$2:'Database_Prop'!L31))),\"\")","v":""},{"$f":"IFERROR(INDEX(Database_Prop!$B$2:$B$1498,SMALL(IF(Database_Prop!$A$2:$A$1498=AP$129,ROW(Database_Prop!$B$2:$B$1498)-ROW(Database_Prop!$B$2)+1),ROWS(Database_Prop!M$2:'Database_Prop'!M31))),\"\")","v":""},{"$f":"IFERROR(INDEX(Database_Prop!$B$2:$B$1498,SMALL(IF(Database_Prop!$A$2:$A$1498=AQ$129,ROW(Database_Prop!$B$2:$B$1498)-ROW(Database_Prop!$B$2)+1),ROWS(Database_Prop!N$2:'Database_Prop'!N31))),\"\")","v":""},{"$f":"IFERROR(INDEX(Database_Prop!$B$2:$B$1498,SMALL(IF(Database_Prop!$A$2:$A$1498=AR$129,ROW(Database_Prop!$B$2:$B$1498)-ROW(Database_Prop!$B$2)+1),ROWS(Database_Prop!O$2:'Database_Prop'!O31))),\"\")","v":""},{"$f":"IFERROR(INDEX(Database_Prop!$B$2:$B$1498,SMALL(IF(Database_Prop!$A$2:$A$1498=AS$129,ROW(Database_Prop!$B$2:$B$1498)-ROW(Database_Prop!$B$2)+1),ROWS(Database_Prop!P$2:'Database_Prop'!P31))),\"\")","v":""},{"$f":"IFERROR(INDEX(Database_Prop!$B$2:$B$1498,SMALL(IF(Database_Prop!$A$2:$A$1498=AT$129,ROW(Database_Prop!$B$2:$B$1498)-ROW(Database_Prop!$B$2)+1),ROWS(Database_Prop!Q$2:'Database_Prop'!Q31))),\"\")","v":""},{"$f":"IFERROR(INDEX(Database_Prop!$B$2:$B$1498,SMALL(IF(Database_Prop!$A$2:$A$1498=AU$129,ROW(Database_Prop!$B$2:$B$1498)-ROW(Database_Prop!$B$2)+1),ROWS(Database_Prop!R$2:'Database_Prop'!R31))),\"\")","v":""},{"$f":"IFERROR(INDEX(Database_Prop!$B$2:$B$1498,SMALL(IF(Database_Prop!$A$2:$A$1498=AV$129,ROW(Database_Prop!$B$2:$B$1498)-ROW(Database_Prop!$B$2)+1),ROWS(Database_Prop!S$2:'Database_Prop'!S31))),\"\")","v":""},{"$f":"IFERROR(INDEX(Database_Prop!$B$2:$B$1498,SMALL(IF(Database_Prop!$A$2:$A$1498=AW$129,ROW(Database_Prop!$B$2:$B$1498)-ROW(Database_Prop!$B$2)+1),ROWS(Database_Prop!T$2:'Database_Prop'!T31))),\"\")","v":""},{"$f":"IFERROR(INDEX(Database_Prop!$B$2:$B$1498,SMALL(IF(Database_Prop!$A$2:$A$1498=AX$129,ROW(Database_Prop!$B$2:$B$1498)-ROW(Database_Prop!$B$2)+1),ROWS(Database_Prop!U$2:'Database_Prop'!U31))),\"\")","v":""},{"$f":"IFERROR(INDEX(Database_Prop!$B$2:$B$1498,SMALL(IF(Database_Prop!$A$2:$A$1498=AY$129,ROW(Database_Prop!$B$2:$B$1498)-ROW(Database_Prop!$B$2)+1),ROWS(Database_Prop!V$2:'Database_Prop'!V31))),\"\")","v":""},{"$f":"IFERROR(INDEX(Database_Prop!$B$2:$B$1498,SMALL(IF(Database_Prop!$A$2:$A$1498=AZ$129,ROW(Database_Prop!$B$2:$B$1498)-ROW(Database_Prop!$B$2)+1),ROWS(Database_Prop!W$2:'Database_Prop'!W31))),\"\")","v":""},{"$f":"IFERROR(INDEX(Database_Prop!$B$2:$B$1498,SMALL(IF(Database_Prop!$A$2:$A$1498=BA$129,ROW(Database_Prop!$B$2:$B$1498)-ROW(Database_Prop!$B$2)+1),ROWS(Database_Prop!X$2:'Database_Prop'!X31))),\"\")","v":""},{"$f":"IFERROR(INDEX(Database_Prop!$B$2:$B$1498,SMALL(IF(Database_Prop!$A$2:$A$1498=BB$129,ROW(Database_Prop!$B$2:$B$1498)-ROW(Database_Prop!$B$2)+1),ROWS(Database_Prop!Y$2:'Database_Prop'!Y31))),\"\")","v":""},{"$f":"IFERROR(INDEX(Database_Prop!$B$2:$B$1498,SMALL(IF(Database_Prop!$A$2:$A$1498=BC$129,ROW(Database_Prop!$B$2:$B$1498)-ROW(Database_Prop!$B$2)+1),ROWS(Database_Prop!Z$2:'Database_Prop'!Z31))),\"\")","v":""},null,"Brunei Darussalam","Asia","FS4",{"$f":"$D$63","v":"Please Select"},{"$f":"$E$63","v":"Please Select"},{"$f":"IFERROR(IF($BH161=title192,VLOOKUP($BH161&\" \"&$BI161,Database_Prop!$C:$G,2,FALSE),TEXT(VLOOKUP($BH161&\" \"&$BI161,Database_Prop!$C:$G,2,FALSE),\"0%\")),0)","v":0},{"$f":"IFERROR(VLOOKUP($BH161&\" \"&$BI161,Database_Prop!$C:$G,5,FALSE),0)","v":0},{"$f":"IFERROR(VLOOKUP($BH161&\" \"&$BI161,Database_Prop!$C:$G,3,FALSE),0)","v":0},{"$f":"IFERROR(VLOOKUP($BH161&\" \"&$BI161,Database_Prop!$C:$G,4,FALSE),0)","v":0},{"$f":"IFERROR(INDIRECT(\"PRICE_\"&$BG161&\"_\"&BI$153&$BN$126),0)","v":0}]
[null,null,null,null,null,null,null,null,null,null,null,null,null,null,null,null,null,null,null,null,null,null,null,null,null,null,null,null,null,null,31,{"$f":"IFERROR(INDEX(Database_Prop!$B$2:$B$1498,SMALL(IF(Database_Prop!$A$2:$A$1498=AF$129,ROW(Database_Prop!$B$2:$B$1498)-ROW(Database_Prop!$B$2)+1),ROWS(Database_Prop!C$2:'Database_Prop'!C32))),\"\")","v":""},{"$f":"IFERROR(INDEX(Database_Prop!$B$2:$B$1498,SMALL(IF(Database_Prop!$A$2:$A$1498=AG$129,ROW(Database_Prop!$B$2:$B$1498)-ROW(Database_Prop!$B$2)+1),ROWS(Database_Prop!D$2:'Database_Prop'!D32))),\"\")","v":""},{"$f":"IFERROR(INDEX(Database_Prop!$B$2:$B$1498,SMALL(IF(Database_Prop!$A$2:$A$1498=AH$129,ROW(Database_Prop!$B$2:$B$1498)-ROW(Database_Prop!$B$2)+1),ROWS(Database_Prop!E$2:'Database_Prop'!E32))),\"\")","v":""},{"$f":"IFERROR(INDEX(Database_Prop!$B$2:$B$1498,SMALL(IF(Database_Prop!$A$2:$A$1498=AI$129,ROW(Database_Prop!$B$2:$B$1498)-ROW(Database_Prop!$B$2)+1),ROWS(Database_Prop!F$2:'Database_Prop'!F32))),\"\")","v":""},{"$f":"IFERROR(INDEX(Database_Prop!$B$2:$B$1498,SMALL(IF(Database_Prop!$A$2:$A$1498=AJ$129,ROW(Database_Prop!$B$2:$B$1498)-ROW(Database_Prop!$B$2)+1),ROWS(Database_Prop!G$2:'Database_Prop'!G32))),\"\")","v":""},{"$f":"IFERROR(INDEX(Database_Prop!$B$2:$B$1498,SMALL(IF(Database_Prop!$A$2:$A$1498=AK$129,ROW(Database_Prop!$B$2:$B$1498)-ROW(Database_Prop!$B$2)+1),ROWS(Database_Prop!H$2:'Database_Prop'!H32))),\"\")","v":""},{"$f":"IFERROR(INDEX(Database_Prop!$B$2:$B$1498,SMALL(IF(Database_Prop!$A$2:$A$1498=AL$129,ROW(Database_Prop!$B$2:$B$1498)-ROW(Database_Prop!$B$2)+1),ROWS(Database_Prop!I$2:'Database_Prop'!I32))),\"\")","v":""},{"$f":"IFERROR(INDEX(Database_Prop!$B$2:$B$1498,SMALL(IF(Database_Prop!$A$2:$A$1498=AM$129,ROW(Database_Prop!$B$2:$B$1498)-ROW(Database_Prop!$B$2)+1),ROWS(Database_Prop!J$2:'Database_Prop'!J32))),\"\")","v":""},{"$f":"IFERROR(INDEX(Database_Prop!$B$2:$B$1498,SMALL(IF(Database_Prop!$A$2:$A$1498=AN$129,ROW(Database_Prop!$B$2:$B$1498)-ROW(Database_Prop!$B$2)+1),ROWS(Database_Prop!K$2:'Database_Prop'!K32))),\"\")","v":""},{"$f":"IFERROR(INDEX(Database_Prop!$B$2:$B$1498,SMALL(IF(Database_Prop!$A$2:$A$1498=AO$129,ROW(Database_Prop!$B$2:$B$1498)-ROW(Database_Prop!$B$2)+1),ROWS(Database_Prop!L$2:'Database_Prop'!L32))),\"\")","v":""},{"$f":"IFERROR(INDEX(Database_Prop!$B$2:$B$1498,SMALL(IF(Database_Prop!$A$2:$A$1498=AP$129,ROW(Database_Prop!$B$2:$B$1498)-ROW(Database_Prop!$B$2)+1),ROWS(Database_Prop!M$2:'Database_Prop'!M32))),\"\")","v":""},{"$f":"IFERROR(INDEX(Database_Prop!$B$2:$B$1498,SMALL(IF(Database_Prop!$A$2:$A$1498=AQ$129,ROW(Database_Prop!$B$2:$B$1498)-ROW(Database_Prop!$B$2)+1),ROWS(Database_Prop!N$2:'Database_Prop'!N32))),\"\")","v":""},{"$f":"IFERROR(INDEX(Database_Prop!$B$2:$B$1498,SMALL(IF(Database_Prop!$A$2:$A$1498=AR$129,ROW(Database_Prop!$B$2:$B$1498)-ROW(Database_Prop!$B$2)+1),ROWS(Database_Prop!O$2:'Database_Prop'!O32))),\"\")","v":""},{"$f":"IFERROR(INDEX(Database_Prop!$B$2:$B$1498,SMALL(IF(Database_Prop!$A$2:$A$1498=AS$129,ROW(Database_Prop!$B$2:$B$1498)-ROW(Database_Prop!$B$2)+1),ROWS(Database_Prop!P$2:'Database_Prop'!P32))),\"\")","v":""},{"$f":"IFERROR(INDEX(Database_Prop!$B$2:$B$1498,SMALL(IF(Database_Prop!$A$2:$A$1498=AT$129,ROW(Database_Prop!$B$2:$B$1498)-ROW(Database_Prop!$B$2)+1),ROWS(Database_Prop!Q$2:'Database_Prop'!Q32))),\"\")","v":""},{"$f":"IFERROR(INDEX(Database_Prop!$B$2:$B$1498,SMALL(IF(Database_Prop!$A$2:$A$1498=AU$129,ROW(Database_Prop!$B$2:$B$1498)-ROW(Database_Prop!$B$2)+1),ROWS(Database_Prop!R$2:'Database_Prop'!R32))),\"\")","v":""},{"$f":"IFERROR(INDEX(Database_Prop!$B$2:$B$1498,SMALL(IF(Database_Prop!$A$2:$A$1498=AV$129,ROW(Database_Prop!$B$2:$B$1498)-ROW(Database_Prop!$B$2)+1),ROWS(Database_Prop!S$2:'Database_Prop'!S32))),\"\")","v":""},{"$f":"IFERROR(INDEX(Database_Prop!$B$2:$B$1498,SMALL(IF(Database_Prop!$A$2:$A$1498=AW$129,ROW(Database_Prop!$B$2:$B$1498)-ROW(Database_Prop!$B$2)+1),ROWS(Database_Prop!T$2:'Database_Prop'!T32))),\"\")","v":""},{"$f":"IFERROR(INDEX(Database_Prop!$B$2:$B$1498,SMALL(IF(Database_Prop!$A$2:$A$1498=AX$129,ROW(Database_Prop!$B$2:$B$1498)-ROW(Database_Prop!$B$2)+1),ROWS(Database_Prop!U$2:'Database_Prop'!U32))),\"\")","v":""},{"$f":"IFERROR(INDEX(Database_Prop!$B$2:$B$1498,SMALL(IF(Database_Prop!$A$2:$A$1498=AY$129,ROW(Database_Prop!$B$2:$B$1498)-ROW(Database_Prop!$B$2)+1),ROWS(Database_Prop!V$2:'Database_Prop'!V32))),\"\")","v":""},{"$f":"IFERROR(INDEX(Database_Prop!$B$2:$B$1498,SMALL(IF(Database_Prop!$A$2:$A$1498=AZ$129,ROW(Database_Prop!$B$2:$B$1498)-ROW(Database_Prop!$B$2)+1),ROWS(Database_Prop!W$2:'Database_Prop'!W32))),\"\")","v":""},{"$f":"IFERROR(INDEX(Database_Prop!$B$2:$B$1498,SMALL(IF(Database_Prop!$A$2:$A$1498=BA$129,ROW(Database_Prop!$B$2:$B$1498)-ROW(Database_Prop!$B$2)+1),ROWS(Database_Prop!X$2:'Database_Prop'!X32))),\"\")","v":""},{"$f":"IFERROR(INDEX(Database_Prop!$B$2:$B$1498,SMALL(IF(Database_Prop!$A$2:$A$1498=BB$129,ROW(Database_Prop!$B$2:$B$1498)-ROW(Database_Prop!$B$2)+1),ROWS(Database_Prop!Y$2:'Database_Prop'!Y32))),\"\")","v":""},{"$f":"IFERROR(INDEX(Database_Prop!$B$2:$B$1498,SMALL(IF(Database_Prop!$A$2:$A$1498=BC$129,ROW(Database_Prop!$B$2:$B$1498)-ROW(Database_Prop!$B$2)+1),ROWS(Database_Prop!Z$2:'Database_Prop'!Z32))),\"\")","v":""},null,"Bulgaria","Eastern Europe",null,{"$f":"title108","v":"Main Category"},{"$f":"title109","v":"Feedstock"},{"$f":"G$28","v":"VS (%)"},{"$f":"H$28","v":"TS (%)"},{"$f":"I$28","v":"BMP (m3/t VS)"},"CH4 (%)","Collection Price"]
[null,null,null,null,null,null,null,null,null,null,null,null,null,null,null,null,null,null,null,null,null,null,null,null,null,null,null,null,null,null,32,{"$f":"IFERROR(INDEX(Database_Prop!$B$2:$B$1498,SMALL(IF(Database_Prop!$A$2:$A$1498=AF$129,ROW(Database_Prop!$B$2:$B$1498)-ROW(Database_Prop!$B$2)+1),ROWS(Database_Prop!C$2:'Database_Prop'!C33))),\"\")","v":""},{"$f":"IFERROR(INDEX(Database_Prop!$B$2:$B$1498,SMALL(IF(Database_Prop!$A$2:$A$1498=AG$129,ROW(Database_Prop!$B$2:$B$1498)-ROW(Database_Prop!$B$2)+1),ROWS(Database_Prop!D$2:'Database_Prop'!D33))),\"\")","v":""},{"$f":"IFERROR(INDEX(Database_Prop!$B$2:$B$1498,SMALL(IF(Database_Prop!$A$2:$A$1498=AH$129,ROW(Database_Prop!$B$2:$B$1498)-ROW(Database_Prop!$B$2)+1),ROWS(Database_Prop!E$2:'Database_Prop'!E33))),\"\")","v":""},{"$f":"IFERROR(INDEX(Database_Prop!$B$2:$B$1498,SMALL(IF(Database_Prop!$A$2:$A$1498=AI$129,ROW(Database_Prop!$B$2:$B$1498)-ROW(Database_Prop!$B$2)+1),ROWS(Database_Prop!F$2:'Database_Prop'!F33))),\"\")","v":""},{"$f":"IFERROR(INDEX(Database_Prop!$B$2:$B$1498,SMALL(IF(Database_Prop!$A$2:$A$1498=AJ$129,ROW(Database_Prop!$B$2:$B$1498)-ROW(Database_Prop!$B$2)+1),ROWS(Database_Prop!G$2:'Database_Prop'!G33))),\"\")","v":""},{"$f":"IFERROR(INDEX(Database_Prop!$B$2:$B$1498,SMALL(IF(Database_Prop!$A$2:$A$1498=AK$129,ROW(Database_Prop!$B$2:$B$1498)-ROW(Database_Prop!$B$2)+1),ROWS(Database_Prop!H$2:'Database_Prop'!H33))),\"\")","v":""},{"$f":"IFERROR(INDEX(Database_Prop!$B$2:$B$1498,SMALL(IF(Database_Prop!$A$2:$A$1498=AL$129,ROW(Database_Prop!$B$2:$B$1498)-ROW(Database_Prop!$B$2)+1),ROWS(Database_Prop!I$2:'Database_Prop'!I33))),\"\")","v":""},{"$f":"IFERROR(INDEX(Database_Prop!$B$2:$B$1498,SMALL(IF(Database_Prop!$A$2:$A$1498=AM$129,ROW(Database_Prop!$B$2:$B$1498)-ROW(Database_Prop!$B$2)+1),ROWS(Database_Prop!J$2:'Database_Prop'!J33))),\"\")","v":""},{"$f":"IFERROR(INDEX(Database_Prop!$B$2:$B$1498,SMALL(IF(Database_Prop!$A$2:$A$1498=AN$129,ROW(Database_Prop!$B$2:$B$1498)-ROW(Database_Prop!$B$2)+1),ROWS(Database_Prop!K$2:'Database_Prop'!K33))),\"\")","v":""},{"$f":"IFERROR(INDEX(Database_Prop!$B$2:$B$1498,SMALL(IF(Database_Prop!$A$2:$A$1498=AO$129,ROW(Database_Prop!$B$2:$B$1498)-ROW(Database_Prop!$B$2)+1),ROWS(Database_Prop!L$2:'Database_Prop'!L33))),\"\")","v":""},{"$f":"IFERROR(INDEX(Database_Prop!$B$2:$B$1498,SMALL(IF(Database_Prop!$A$2:$A$1498=AP$129,ROW(Database_Prop!$B$2:$B$1498)-ROW(Database_Prop!$B$2)+1),ROWS(Database_Prop!M$2:'Database_Prop'!M33))),\"\")","v":""},{"$f":"IFERROR(INDEX(Database_Prop!$B$2:$B$1498,SMALL(IF(Database_Prop!$A$2:$A$1498=AQ$129,ROW(Database_Prop!$B$2:$B$1498)-ROW(Database_Prop!$B$2)+1),ROWS(Database_Prop!N$2:'Database_Prop'!N33))),\"\")","v":""},{"$f":"IFERROR(INDEX(Database_Prop!$B$2:$B$1498,SMALL(IF(Database_Prop!$A$2:$A$1498=AR$129,ROW(Database_Prop!$B$2:$B$1498)-ROW(Database_Prop!$B$2)+1),ROWS(Database_Prop!O$2:'Database_Prop'!O33))),\"\")","v":""},{"$f":"IFERROR(INDEX(Database_Prop!$B$2:$B$1498,SMALL(IF(Database_Prop!$A$2:$A$1498=AS$129,ROW(Database_Prop!$B$2:$B$1498)-ROW(Database_Prop!$B$2)+1),ROWS(Database_Prop!P$2:'Database_Prop'!P33))),\"\")","v":""},{"$f":"IFERROR(INDEX(Database_Prop!$B$2:$B$1498,SMALL(IF(Database_Prop!$A$2:$A$1498=AT$129,ROW(Database_Prop!$B$2:$B$1498)-ROW(Database_Prop!$B$2)+1),ROWS(Database_Prop!Q$2:'Database_Prop'!Q33))),\"\")","v":""},{"$f":"IFERROR(INDEX(Database_Prop!$B$2:$B$1498,SMALL(IF(Database_Prop!$A$2:$A$1498=AU$129,ROW(Database_Prop!$B$2:$B$1498)-ROW(Database_Prop!$B$2)+1),ROWS(Database_Prop!R$2:'Database_Prop'!R33))),\"\")","v":""},{"$f":"IFERROR(INDEX(Database_Prop!$B$2:$B$1498,SMALL(IF(Database_Prop!$A$2:$A$1498=AV$129,ROW(Database_Prop!$B$2:$B$1498)-ROW(Database_Prop!$B$2)+1),ROWS(Database_Prop!S$2:'Database_Prop'!S33))),\"\")","v":""},{"$f":"IFERROR(INDEX(Database_Prop!$B$2:$B$1498,SMALL(IF(Database_Prop!$A$2:$A$1498=AW$129,ROW(Database_Prop!$B$2:$B$1498)-ROW(Database_Prop!$B$2)+1),ROWS(Database_Prop!T$2:'Database_Prop'!T33))),\"\")","v":""},{"$f":"IFERROR(INDEX(Database_Prop!$B$2:$B$1498,SMALL(IF(Database_Prop!$A$2:$A$1498=AX$129,ROW(Database_Prop!$B$2:$B$1498)-ROW(Database_Prop!$B$2)+1),ROWS(Database_Prop!U$2:'Database_Prop'!U33))),\"\")","v":""},{"$f":"IFERROR(INDEX(Database_Prop!$B$2:$B$1498,SMALL(IF(Database_Prop!$A$2:$A$1498=AY$129,ROW(Database_Prop!$B$2:$B$1498)-ROW(Database_Prop!$B$2)+1),ROWS(Database_Prop!V$2:'Database_Prop'!V33))),\"\")","v":""},{"$f":"IFERROR(INDEX(Database_Prop!$B$2:$B$1498,SMALL(IF(Database_Prop!$A$2:$A$1498=AZ$129,ROW(Database_Prop!$B$2:$B$1498)-ROW(Database_Prop!$B$2)+1),ROWS(Database_Prop!W$2:'Database_Prop'!W33))),\"\")","v":""},{"$f":"IFERROR(INDEX(Database_Prop!$B$2:$B$1498,SMALL(IF(Database_Prop!$A$2:$A$1498=BA$129,ROW(Database_Prop!$B$2:$B$1498)-ROW(Database_Prop!$B$2)+1),ROWS(Database_Prop!X$2:'Database_Prop'!X33))),\"\")","v":""},{"$f":"IFERROR(INDEX(Database_Prop!$B$2:$B$1498,SMALL(IF(Database_Prop!$A$2:$A$1498=BB$129,ROW(Database_Prop!$B$2:$B$1498)-ROW(Database_Prop!$B$2)+1),ROWS(Database_Prop!Y$2:'Database_Prop'!Y33))),\"\")","v":""},{"$f":"IFERROR(INDEX(Database_Prop!$B$2:$B$1498,SMALL(IF(Database_Prop!$A$2:$A$1498=BC$129,ROW(Database_Prop!$B$2:$B$1498)-ROW(Database_Prop!$B$2)+1),ROWS(Database_Prop!Z$2:'Database_Prop'!Z33))),\"\")","v":""},null,"Burkina Faso","Africa","FS5",{"$f":"$D$65","v":"Please Select"},{"$f":"$E$65","v":"Please Select"},{"$f":"IFERROR(IF($BH163=title192,VLOOKUP($BH163&\" \"&$BI163,Database_Prop!$C:$G,2,FALSE),TEXT(VLOOKUP($BH163&\" \"&$BI163,Database_Prop!$C:$G,2,FALSE),\"0%\")),0)","v":0},{"$f":"IFERROR(VLOOKUP($BH163&\" \"&$BI163,Database_Prop!$C:$G,5,FALSE),0)","v":0},{"$f":"IFERROR(VLOOKUP($BH163&\" \"&$BI163,Database_Prop!$C:$G,3,FALSE),0)","v":0},{"$f":"IFERROR(VLOOKUP($BH163&\" \"&$BI163,Database_Prop!$C:$G,4,FALSE),0)","v":0},{"$f":"IFERROR(INDIRECT(\"PRICE_\"&$BG163&\"_\"&BI$153&$BN$126),0)","v":0}]
[null,null,null,null,null,null,null,null,null,null,null,null,null,null,null,null,null,null,null,null,null,null,null,null,null,null,null,null,null,null,33,{"$f":"IFERROR(INDEX(Database_Prop!$B$2:$B$1498,SMALL(IF(Database_Prop!$A$2:$A$1498=AF$129,ROW(Database_Prop!$B$2:$B$1498)-ROW(Database_Prop!$B$2)+1),ROWS(Database_Prop!C$2:'Database_Prop'!C34))),\"\")","v":""},{"$f":"IFERROR(INDEX(Database_Prop!$B$2:$B$1498,SMALL(IF(Database_Prop!$A$2:$A$1498=AG$129,ROW(Database_Prop!$B$2:$B$1498)-ROW(Database_Prop!$B$2)+1),ROWS(Database_Prop!D$2:'Database_Prop'!D34))),\"\")","v":""},{"$f":"IFERROR(INDEX(Database_Prop!$B$2:$B$1498,SMALL(IF(Database_Prop!$A$2:$A$1498=AH$129,ROW(Database_Prop!$B$2:$B$1498)-ROW(Database_Prop!$B$2)+1),ROWS(Database_Prop!E$2:'Database_Prop'!E34))),\"\")","v":""},{"$f":"IFERROR(INDEX(Database_Prop!$B$2:$B$1498,SMALL(IF(Database_Prop!$A$2:$A$1498=AI$129,ROW(Database_Prop!$B$2:$B$1498)-ROW(Database_Prop!$B$2)+1),ROWS(Database_Prop!F$2:'Database_Prop'!F34))),\"\")","v":""},{"$f":"IFERROR(INDEX(Database_Prop!$B$2:$B$1498,SMALL(IF(Database_Prop!$A$2:$A$1498=AJ$129,ROW(Database_Prop!$B$2:$B$1498)-ROW(Database_Prop!$B$2)+1),ROWS(Database_Prop!G$2:'Database_Prop'!G34))),\"\")","v":""},{"$f":"IFERROR(INDEX(Database_Prop!$B$2:$B$1498,SMALL(IF(Database_Prop!$A$2:$A$1498=AK$129,ROW(Database_Prop!$B$2:$B$1498)-ROW(Database_Prop!$B$2)+1),ROWS(Database_Prop!H$2:'Database_Prop'!H34))),\"\")","v":""},{"$f":"IFERROR(INDEX(Database_Prop!$B$2:$B$1498,SMALL(IF(Database_Prop!$A$2:$A$1498=AL$129,ROW(Database_Prop!$B$2:$B$1498)-ROW(Database_Prop!$B$2)+1),ROWS(Database_Prop!I$2:'Database_Prop'!I34))),\"\")","v":""},{"$f":"IFERROR(INDEX(Database_Prop!$B$2:$B$1498,SMALL(IF(Database_Prop!$A$2:$A$1498=AM$129,ROW(Database_Prop!$B$2:$B$1498)-ROW(Database_Prop!$B$2)+1),ROWS(Database_Prop!J$2:'Database_Prop'!J34))),\"\")","v":""},{"$f":"IFERROR(INDEX(Database_Prop!$B$2:$B$1498,SMALL(IF(Database_Prop!$A$2:$A$1498=AN$129,ROW(Database_Prop!$B$2:$B$1498)-ROW(Database_Prop!$B$2)+1),ROWS(Database_Prop!K$2:'Database_Prop'!K34))),\"\")","v":""},{"$f":"IFERROR(INDEX(Database_Prop!$B$2:$B$1498,SMALL(IF(Database_Prop!$A$2:$A$1498=AO$129,ROW(Database_Prop!$B$2:$B$1498)-ROW(Database_Prop!$B$2)+1),ROWS(Database_Prop!L$2:'Database_Prop'!L34))),\"\")","v":""},{"$f":"IFERROR(INDEX(Database_Prop!$B$2:$B$1498,SMALL(IF(Database_Prop!$A$2:$A$1498=AP$129,ROW(Database_Prop!$B$2:$B$1498)-ROW(Database_Prop!$B$2)+1),ROWS(Database_Prop!M$2:'Database_Prop'!M34))),\"\")","v":""},{"$f":"IFERROR(INDEX(Database_Prop!$B$2:$B$1498,SMALL(IF(Database_Prop!$A$2:$A$1498=AQ$129,ROW(Database_Prop!$B$2:$B$1498)-ROW(Database_Prop!$B$2)+1),ROWS(Database_Prop!N$2:'Database_Prop'!N34))),\"\")","v":""},{"$f":"IFERROR(INDEX(Database_Prop!$B$2:$B$1498,SMALL(IF(Database_Prop!$A$2:$A$1498=AR$129,ROW(Database_Prop!$B$2:$B$1498)-ROW(Database_Prop!$B$2)+1),ROWS(Database_Prop!O$2:'Database_Prop'!O34))),\"\")","v":""},{"$f":"IFERROR(INDEX(Database_Prop!$B$2:$B$1498,SMALL(IF(Database_Prop!$A$2:$A$1498=AS$129,ROW(Database_Prop!$B$2:$B$1498)-ROW(Database_Prop!$B$2)+1),ROWS(Database_Prop!P$2:'Database_Prop'!P34))),\"\")","v":""},{"$f":"IFERROR(INDEX(Database_Prop!$B$2:$B$1498,SMALL(IF(Database_Prop!$A$2:$A$1498=AT$129,ROW(Database_Prop!$B$2:$B$1498)-ROW(Database_Prop!$B$2)+1),ROWS(Database_Prop!Q$2:'Database_Prop'!Q34))),\"\")","v":""},{"$f":"IFERROR(INDEX(Database_Prop!$B$2:$B$1498,SMALL(IF(Database_Prop!$A$2:$A$1498=AU$129,ROW(Database_Prop!$B$2:$B$1498)-ROW(Database_Prop!$B$2)+1),ROWS(Database_Prop!R$2:'Database_Prop'!R34))),\"\")","v":""},{"$f":"IFERROR(INDEX(Database_Prop!$B$2:$B$1498,SMALL(IF(Database_Prop!$A$2:$A$1498=AV$129,ROW(Database_Prop!$B$2:$B$1498)-ROW(Database_Prop!$B$2)+1),ROWS(Database_Prop!S$2:'Database_Prop'!S34))),\"\")","v":""},{"$f":"IFERROR(INDEX(Database_Prop!$B$2:$B$1498,SMALL(IF(Database_Prop!$A$2:$A$1498=AW$129,ROW(Database_Prop!$B$2:$B$1498)-ROW(Database_Prop!$B$2)+1),ROWS(Database_Prop!T$2:'Database_Prop'!T34))),\"\")","v":""},{"$f":"IFERROR(INDEX(Database_Prop!$B$2:$B$1498,SMALL(IF(Database_Prop!$A$2:$A$1498=AX$129,ROW(Database_Prop!$B$2:$B$1498)-ROW(Database_Prop!$B$2)+1),ROWS(Database_Prop!U$2:'Database_Prop'!U34))),\"\")","v":""},{"$f":"IFERROR(INDEX(Database_Prop!$B$2:$B$1498,SMALL(IF(Database_Prop!$A$2:$A$1498=AY$129,ROW(Database_Prop!$B$2:$B$1498)-ROW(Database_Prop!$B$2)+1),ROWS(Database_Prop!V$2:'Database_Prop'!V34))),\"\")","v":""},{"$f":"IFERROR(INDEX(Database_Prop!$B$2:$B$1498,SMALL(IF(Database_Prop!$A$2:$A$1498=AZ$129,ROW(Database_Prop!$B$2:$B$1498)-ROW(Database_Prop!$B$2)+1),ROWS(Database_Prop!W$2:'Database_Prop'!W34))),\"\")","v":""},{"$f":"IFERROR(INDEX(Database_Prop!$B$2:$B$1498,SMALL(IF(Database_Prop!$A$2:$A$1498=BA$129,ROW(Database_Prop!$B$2:$B$1498)-ROW(Database_Prop!$B$2)+1),ROWS(Database_Prop!X$2:'Database_Prop'!X34))),\"\")","v":""},{"$f":"IFERROR(INDEX(Database_Prop!$B$2:$B$1498,SMALL(IF(Database_Prop!$A$2:$A$1498=BB$129,ROW(Database_Prop!$B$2:$B$1498)-ROW(Database_Prop!$B$2)+1),ROWS(Database_Prop!Y$2:'Database_Prop'!Y34))),\"\")","v":""},{"$f":"IFERROR(INDEX(Database_Prop!$B$2:$B$1498,SMALL(IF(Database_Prop!$A$2:$A$1498=BC$129,ROW(Database_Prop!$B$2:$B$1498)-ROW(Database_Prop!$B$2)+1),ROWS(Database_Prop!Z$2:'Database_Prop'!Z34))),\"\")","v":""},null,"Burundi","Africa",null,{"$f":"title108","v":"Main Category"},{"$f":"title109","v":"Feedstock"},{"$f":"G$28","v":"VS (%)"},{"$f":"H$28","v":"TS (%)"},{"$f":"I$28","v":"BMP (m3/t VS)"},"CH4 (%)","Collection Price"]
[null,null,null,null,null,null,null,null,null,null,null,null,null,null,null,null,null,null,null,null,null,null,null,null,null,null,null,null,null,null,34,{"$f":"IFERROR(INDEX(Database_Prop!$B$2:$B$1498,SMALL(IF(Database_Prop!$A$2:$A$1498=AF$129,ROW(Database_Prop!$B$2:$B$1498)-ROW(Database_Prop!$B$2)+1),ROWS(Database_Prop!C$2:'Database_Prop'!C35))),\"\")","v":""},{"$f":"IFERROR(INDEX(Database_Prop!$B$2:$B$1498,SMALL(IF(Database_Prop!$A$2:$A$1498=AG$129,ROW(Database_Prop!$B$2:$B$1498)-ROW(Database_Prop!$B$2)+1),ROWS(Database_Prop!D$2:'Database_Prop'!D35))),\"\")","v":""},{"$f":"IFERROR(INDEX(Database_Prop!$B$2:$B$1498,SMALL(IF(Database_Prop!$A$2:$A$1498=AH$129,ROW(Database_Prop!$B$2:$B$1498)-ROW(Database_Prop!$B$2)+1),ROWS(Database_Prop!E$2:'Database_Prop'!E35))),\"\")","v":""},{"$f":"IFERROR(INDEX(Database_Prop!$B$2:$B$1498,SMALL(IF(Database_Prop!$A$2:$A$1498=AI$129,ROW(Database_Prop!$B$2:$B$1498)-ROW(Database_Prop!$B$2)+1),ROWS(Database_Prop!F$2:'Database_Prop'!F35))),\"\")","v":""},{"$f":"IFERROR(INDEX(Database_Prop!$B$2:$B$1498,SMALL(IF(Database_Prop!$A$2:$A$1498=AJ$129,ROW(Database_Prop!$B$2:$B$1498)-ROW(Database_Prop!$B$2)+1),ROWS(Database_Prop!G$2:'Database_Prop'!G35))),\"\")","v":""},{"$f":"IFERROR(INDEX(Database_Prop!$B$2:$B$1498,SMALL(IF(Database_Prop!$A$2:$A$1498=AK$129,ROW(Database_Prop!$B$2:$B$1498)-ROW(Database_Prop!$B$2)+1),ROWS(Database_Prop!H$2:'Database_Prop'!H35))),\"\")","v":""},{"$f":"IFERROR(INDEX(Database_Prop!$B$2:$B$1498,SMALL(IF(Database_Prop!$A$2:$A$1498=AL$129,ROW(Database_Prop!$B$2:$B$1498)-ROW(Database_Prop!$B$2)+1),ROWS(Database_Prop!I$2:'Database_Prop'!I35))),\"\")","v":""},{"$f":"IFERROR(INDEX(Database_Prop!$B$2:$B$1498,SMALL(IF(Database_Prop!$A$2:$A$1498=AM$129,ROW(Database_Prop!$B$2:$B$1498)-ROW(Database_Prop!$B$2)+1),ROWS(Database_Prop!J$2:'Database_Prop'!J35))),\"\")","v":""},{"$f":"IFERROR(INDEX(Database_Prop!$B$2:$B$1498,SMALL(IF(Database_Prop!$A$2:$A$1498=AN$129,ROW(Database_Prop!$B$2:$B$1498)-ROW(Database_Prop!$B$2)+1),ROWS(Database_Prop!K$2:'Database_Prop'!K35))),\"\")","v":""},{"$f":"IFERROR(INDEX(Database_Prop!$B$2:$B$1498,SMALL(IF(Database_Prop!$A$2:$A$1498=AO$129,ROW(Database_Prop!$B$2:$B$1498)-ROW(Database_Prop!$B$2)+1),ROWS(Database_Prop!L$2:'Database_Prop'!L35))),\"\")","v":""},{"$f":"IFERROR(INDEX(Database_Prop!$B$2:$B$1498,SMALL(IF(Database_Prop!$A$2:$A$1498=AP$129,ROW(Database_Prop!$B$2:$B$1498)-ROW(Database_Prop!$B$2)+1),ROWS(Database_Prop!M$2:'Database_Prop'!M35))),\"\")","v":""},{"$f":"IFERROR(INDEX(Database_Prop!$B$2:$B$1498,SMALL(IF(Database_Prop!$A$2:$A$1498=AQ$129,ROW(Database_Prop!$B$2:$B$1498)-ROW(Database_Prop!$B$2)+1),ROWS(Database_Prop!N$2:'Database_Prop'!N35))),\"\")","v":""},{"$f":"IFERROR(INDEX(Database_Prop!$B$2:$B$1498,SMALL(IF(Database_Prop!$A$2:$A$1498=AR$129,ROW(Database_Prop!$B$2:$B$1498)-ROW(Database_Prop!$B$2)+1),ROWS(Database_Prop!O$2:'Database_Prop'!O35))),\"\")","v":""},{"$f":"IFERROR(INDEX(Database_Prop!$B$2:$B$1498,SMALL(IF(Database_Prop!$A$2:$A$1498=AS$129,ROW(Database_Prop!$B$2:$B$1498)-ROW(Database_Prop!$B$2)+1),ROWS(Database_Prop!P$2:'Database_Prop'!P35))),\"\")","v":""},{"$f":"IFERROR(INDEX(Database_Prop!$B$2:$B$1498,SMALL(IF(Database_Prop!$A$2:$A$1498=AT$129,ROW(Database_Prop!$B$2:$B$1498)-ROW(Database_Prop!$B$2)+1),ROWS(Database_Prop!Q$2:'Database_Prop'!Q35))),\"\")","v":""},{"$f":"IFERROR(INDEX(Database_Prop!$B$2:$B$1498,SMALL(IF(Database_Prop!$A$2:$A$1498=AU$129,ROW(Database_Prop!$B$2:$B$1498)-ROW(Database_Prop!$B$2)+1),ROWS(Database_Prop!R$2:'Database_Prop'!R35))),\"\")","v":""},{"$f":"IFERROR(INDEX(Database_Prop!$B$2:$B$1498,SMALL(IF(Database_Prop!$A$2:$A$1498=AV$129,ROW(Database_Prop!$B$2:$B$1498)-ROW(Database_Prop!$B$2)+1),ROWS(Database_Prop!S$2:'Database_Prop'!S35))),\"\")","v":""},{"$f":"IFERROR(INDEX(Database_Prop!$B$2:$B$1498,SMALL(IF(Database_Prop!$A$2:$A$1498=AW$129,ROW(Database_Prop!$B$2:$B$1498)-ROW(Database_Prop!$B$2)+1),ROWS(Database_Prop!T$2:'Database_Prop'!T35))),\"\")","v":""},{"$f":"IFERROR(INDEX(Database_Prop!$B$2:$B$1498,SMALL(IF(Database_Prop!$A$2:$A$1498=AX$129,ROW(Database_Prop!$B$2:$B$1498)-ROW(Database_Prop!$B$2)+1),ROWS(Database_Prop!U$2:'Database_Prop'!U35))),\"\")","v":""},{"$f":"IFERROR(INDEX(Database_Prop!$B$2:$B$1498,SMALL(IF(Database_Prop!$A$2:$A$1498=AY$129,ROW(Database_Prop!$B$2:$B$1498)-ROW(Database_Prop!$B$2)+1),ROWS(Database_Prop!V$2:'Database_Prop'!V35))),\"\")","v":""},{"$f":"IFERROR(INDEX(Database_Prop!$B$2:$B$1498,SMALL(IF(Database_Prop!$A$2:$A$1498=AZ$129,ROW(Database_Prop!$B$2:$B$1498)-ROW(Database_Prop!$B$2)+1),ROWS(Database_Prop!W$2:'Database_Prop'!W35))),\"\")","v":""},{"$f":"IFERROR(INDEX(Database_Prop!$B$2:$B$1498,SMALL(IF(Database_Prop!$A$2:$A$1498=BA$129,ROW(Database_Prop!$B$2:$B$1498)-ROW(Database_Prop!$B$2)+1),ROWS(Database_Prop!X$2:'Database_Prop'!X35))),\"\")","v":""},{"$f":"IFERROR(INDEX(Database_Prop!$B$2:$B$1498,SMALL(IF(Database_Prop!$A$2:$A$1498=BB$129,ROW(Database_Prop!$B$2:$B$1498)-ROW(Database_Prop!$B$2)+1),ROWS(Database_Prop!Y$2:'Database_Prop'!Y35))),\"\")","v":""},{"$f":"IFERROR(INDEX(Database_Prop!$B$2:$B$1498,SMALL(IF(Database_Prop!$A$2:$A$1498=BC$129,ROW(Database_Prop!$B$2:$B$1498)-ROW(Database_Prop!$B$2)+1),ROWS(Database_Prop!Z$2:'Database_Prop'!Z35))),\"\")","v":""},null,"Cambodia","Asia","FS6",{"$f":"$D$69","v":"Please Select"},{"$f":"$E$69","v":"Please Select"},{"$f":"IFERROR(IF($BH165=title192,VLOOKUP($BH165&\" \"&$BI165,Database_Prop!$C:$G,2,FALSE),TEXT(VLOOKUP($BH165&\" \"&$BI165,Database_Prop!$C:$G,2,FALSE),\"0%\")),0)","v":0},{"$f":"IFERROR(VLOOKUP($BH165&\" \"&$BI165,Database_Prop!$C:$G,5,FALSE),0)","v":0},{"$f":"IFERROR(VLOOKUP($BH165&\" \"&$BI165,Database_Prop!$C:$G,3,FALSE),0)","v":0},{"$f":"IFERROR(VLOOKUP($BH165&\" \"&$BI165,Database_Prop!$C:$G,4,FALSE),0)","v":0},{"$f":"IFERROR(INDIRECT(\"PRICE_\"&$BG165&\"_\"&BI$153&$BN$126),0)","v":0}]
[null,null,null,null,null,null,null,null,null,null,null,null,null,null,null,null,null,null,null,null,null,null,null,null,null,null,null,null,null,null,35,{"$f":"IFERROR(INDEX(Database_Prop!$B$2:$B$1498,SMALL(IF(Database_Prop!$A$2:$A$1498=AF$129,ROW(Database_Prop!$B$2:$B$1498)-ROW(Database_Prop!$B$2)+1),ROWS(Database_Prop!C$2:'Database_Prop'!C36))),\"\")","v":""},{"$f":"IFERROR(INDEX(Database_Prop!$B$2:$B$1498,SMALL(IF(Database_Prop!$A$2:$A$1498=AG$129,ROW(Database_Prop!$B$2:$B$1498)-ROW(Database_Prop!$B$2)+1),ROWS(Database_Prop!D$2:'Database_Prop'!D36))),\"\")","v":""},{"$f":"IFERROR(INDEX(Database_Prop!$B$2:$B$1498,SMALL(IF(Database_Prop!$A$2:$A$1498=AH$129,ROW(Database_Prop!$B$2:$B$1498)-ROW(Database_Prop!$B$2)+1),ROWS(Database_Prop!E$2:'Database_Prop'!E36))),\"\")","v":""},{"$f":"IFERROR(INDEX(Database_Prop!$B$2:$B$1498,SMALL(IF(Database_Prop!$A$2:$A$1498=AI$129,ROW(Database_Prop!$B$2:$B$1498)-ROW(Database_Prop!$B$2)+1),ROWS(Database_Prop!F$2:'Database_Prop'!F36))),\"\")","v":""},{"$f":"IFERROR(INDEX(Database_Prop!$B$2:$B$1498,SMALL(IF(Database_Prop!$A$2:$A$1498=AJ$129,ROW(Database_Prop!$B$2:$B$1498)-ROW(Database_Prop!$B$2)+1),ROWS(Database_Prop!G$2:'Database_Prop'!G36))),\"\")","v":""},{"$f":"IFERROR(INDEX(Database_Prop!$B$2:$B$1498,SMALL(IF(Database_Prop!$A$2:$A$1498=AK$129,ROW(Database_Prop!$B$2:$B$1498)-ROW(Database_Prop!$B$2)+1),ROWS(Database_Prop!H$2:'Database_Prop'!H36))),\"\")","v":""},{"$f":"IFERROR(INDEX(Database_Prop!$B$2:$B$1498,SMALL(IF(Database_Prop!$A$2:$A$1498=AL$129,ROW(Database_Prop!$B$2:$B$1498)-ROW(Database_Prop!$B$2)+1),ROWS(Database_Prop!I$2:'Database_Prop'!I36))),\"\")","v":""},{"$f":"IFERROR(INDEX(Database_Prop!$B$2:$B$1498,SMALL(IF(Database_Prop!$A$2:$A$1498=AM$129,ROW(Database_Prop!$B$2:$B$1498)-ROW(Database_Prop!$B$2)+1),ROWS(Database_Prop!J$2:'Database_Prop'!J36))),\"\")","v":""},{"$f":"IFERROR(INDEX(Database_Prop!$B$2:$B$1498,SMALL(IF(Database_Prop!$A$2:$A$1498=AN$129,ROW(Database_Prop!$B$2:$B$1498)-ROW(Database_Prop!$B$2)+1),ROWS(Database_Prop!K$2:'Database_Prop'!K36))),\"\")","v":""},{"$f":"IFERROR(INDEX(Database_Prop!$B$2:$B$1498,SMALL(IF(Database_Prop!$A$2:$A$1498=AO$129,ROW(Database_Prop!$B$2:$B$1498)-ROW(Database_Prop!$B$2)+1),ROWS(Database_Prop!L$2:'Database_Prop'!L36))),\"\")","v":""},{"$f":"IFERROR(INDEX(Database_Prop!$B$2:$B$1498,SMALL(IF(Database_Prop!$A$2:$A$1498=AP$129,ROW(Database_Prop!$B$2:$B$1498)-ROW(Database_Prop!$B$2)+1),ROWS(Database_Prop!M$2:'Database_Prop'!M36))),\"\")","v":""},{"$f":"IFERROR(INDEX(Database_Prop!$B$2:$B$1498,SMALL(IF(Database_Prop!$A$2:$A$1498=AQ$129,ROW(Database_Prop!$B$2:$B$1498)-ROW(Database_Prop!$B$2)+1),ROWS(Database_Prop!N$2:'Database_Prop'!N36))),\"\")","v":""},{"$f":"IFERROR(INDEX(Database_Prop!$B$2:$B$1498,SMALL(IF(Database_Prop!$A$2:$A$1498=AR$129,ROW(Database_Prop!$B$2:$B$1498)-ROW(Database_Prop!$B$2)+1),ROWS(Database_Prop!O$2:'Database_Prop'!O36))),\"\")","v":""},{"$f":"IFERROR(INDEX(Database_Prop!$B$2:$B$1498,SMALL(IF(Database_Prop!$A$2:$A$1498=AS$129,ROW(Database_Prop!$B$2:$B$1498)-ROW(Database_Prop!$B$2)+1),ROWS(Database_Prop!P$2:'Database_Prop'!P36))),\"\")","v":""},{"$f":"IFERROR(INDEX(Database_Prop!$B$2:$B$1498,SMALL(IF(Database_Prop!$A$2:$A$1498=AT$129,ROW(Database_Prop!$B$2:$B$1498)-ROW(Database_Prop!$B$2)+1),ROWS(Database_Prop!Q$2:'Database_Prop'!Q36))),\"\")","v":""},{"$f":"IFERROR(INDEX(Database_Prop!$B$2:$B$1498,SMALL(IF(Database_Prop!$A$2:$A$1498=AU$129,ROW(Database_Prop!$B$2:$B$1498)-ROW(Database_Prop!$B$2)+1),ROWS(Database_Prop!R$2:'Database_Prop'!R36))),\"\")","v":""},{"$f":"IFERROR(INDEX(Database_Prop!$B$2:$B$1498,SMALL(IF(Database_Prop!$A$2:$A$1498=AV$129,ROW(Database_Prop!$B$2:$B$1498)-ROW(Database_Prop!$B$2)+1),ROWS(Database_Prop!S$2:'Database_Prop'!S36))),\"\")","v":""},{"$f":"IFERROR(INDEX(Database_Prop!$B$2:$B$1498,SMALL(IF(Database_Prop!$A$2:$A$1498=AW$129,ROW(Database_Prop!$B$2:$B$1498)-ROW(Database_Prop!$B$2)+1),ROWS(Database_Prop!T$2:'Database_Prop'!T36))),\"\")","v":""},{"$f":"IFERROR(INDEX(Database_Prop!$B$2:$B$1498,SMALL(IF(Database_Prop!$A$2:$A$1498=AX$129,ROW(Database_Prop!$B$2:$B$1498)-ROW(Database_Prop!$B$2)+1),ROWS(Database_Prop!U$2:'Database_Prop'!U36))),\"\")","v":""},{"$f":"IFERROR(INDEX(Database_Prop!$B$2:$B$1498,SMALL(IF(Database_Prop!$A$2:$A$1498=AY$129,ROW(Database_Prop!$B$2:$B$1498)-ROW(Database_Prop!$B$2)+1),ROWS(Database_Prop!V$2:'Database_Prop'!V36))),\"\")","v":""},{"$f":"IFERROR(INDEX(Database_Prop!$B$2:$B$1498,SMALL(IF(Database_Prop!$A$2:$A$1498=AZ$129,ROW(Database_Prop!$B$2:$B$1498)-ROW(Database_Prop!$B$2)+1),ROWS(Database_Prop!W$2:'Database_Prop'!W36))),\"\")","v":""},{"$f":"IFERROR(INDEX(Database_Prop!$B$2:$B$1498,SMALL(IF(Database_Prop!$A$2:$A$1498=BA$129,ROW(Database_Prop!$B$2:$B$1498)-ROW(Database_Prop!$B$2)+1),ROWS(Database_Prop!X$2:'Database_Prop'!X36))),\"\")","v":""},{"$f":"IFERROR(INDEX(Database_Prop!$B$2:$B$1498,SMALL(IF(Database_Prop!$A$2:$A$1498=BB$129,ROW(Database_Prop!$B$2:$B$1498)-ROW(Database_Prop!$B$2)+1),ROWS(Database_Prop!Y$2:'Database_Prop'!Y36))),\"\")","v":""},{"$f":"IFERROR(INDEX(Database_Prop!$B$2:$B$1498,SMALL(IF(Database_Prop!$A$2:$A$1498=BC$129,ROW(Database_Prop!$B$2:$B$1498)-ROW(Database_Prop!$B$2)+1),ROWS(Database_Prop!Z$2:'Database_Prop'!Z36))),\"\")","v":""},null,"Cameroon","Africa",null,{"$f":"title98&\" 4\"","v":"Process 4"},"PS4"]
[null,null,null,null,null,null,null,null,null,null,null,null,null,null,null,null,null,null,null,null,null,null,null,null,null,null,null,null,null,null,36,{"$f":"IFERROR(INDEX(Database_Prop!$B$2:$B$1498,SMALL(IF(Database_Prop!$A$2:$A$1498=AF$129,ROW(Database_Prop!$B$2:$B$1498)-ROW(Database_Prop!$B$2)+1),ROWS(Database_Prop!C$2:'Database_Prop'!C37))),\"\")","v":""},{"$f":"IFERROR(INDEX(Database_Prop!$B$2:$B$1498,SMALL(IF(Database_Prop!$A$2:$A$1498=AG$129,ROW(Database_Prop!$B$2:$B$1498)-ROW(Database_Prop!$B$2)+1),ROWS(Database_Prop!D$2:'Database_Prop'!D37))),\"\")","v":""},{"$f":"IFERROR(INDEX(Database_Prop!$B$2:$B$1498,SMALL(IF(Database_Prop!$A$2:$A$1498=AH$129,ROW(Database_Prop!$B$2:$B$1498)-ROW(Database_Prop!$B$2)+1),ROWS(Database_Prop!E$2:'Database_Prop'!E37))),\"\")","v":""},{"$f":"IFERROR(INDEX(Database_Prop!$B$2:$B$1498,SMALL(IF(Database_Prop!$A$2:$A$1498=AI$129,ROW(Database_Prop!$B$2:$B$1498)-ROW(Database_Prop!$B$2)+1),ROWS(Database_Prop!F$2:'Database_Prop'!F37))),\"\")","v":""},{"$f":"IFERROR(INDEX(Database_Prop!$B$2:$B$1498,SMALL(IF(Database_Prop!$A$2:$A$1498=AJ$129,ROW(Database_Prop!$B$2:$B$1498)-ROW(Database_Prop!$B$2)+1),ROWS(Database_Prop!G$2:'Database_Prop'!G37))),\"\")","v":""},{"$f":"IFERROR(INDEX(Database_Prop!$B$2:$B$1498,SMALL(IF(Database_Prop!$A$2:$A$1498=AK$129,ROW(Database_Prop!$B$2:$B$1498)-ROW(Database_Prop!$B$2)+1),ROWS(Database_Prop!H$2:'Database_Prop'!H37))),\"\")","v":""},{"$f":"IFERROR(INDEX(Database_Prop!$B$2:$B$1498,SMALL(IF(Database_Prop!$A$2:$A$1498=AL$129,ROW(Database_Prop!$B$2:$B$1498)-ROW(Database_Prop!$B$2)+1),ROWS(Database_Prop!I$2:'Database_Prop'!I37))),\"\")","v":""},{"$f":"IFERROR(INDEX(Database_Prop!$B$2:$B$1498,SMALL(IF(Database_Prop!$A$2:$A$1498=AM$129,ROW(Database_Prop!$B$2:$B$1498)-ROW(Database_Prop!$B$2)+1),ROWS(Database_Prop!J$2:'Database_Prop'!J37))),\"\")","v":""},{"$f":"IFERROR(INDEX(Database_Prop!$B$2:$B$1498,SMALL(IF(Database_Prop!$A$2:$A$1498=AN$129,ROW(Database_Prop!$B$2:$B$1498)-ROW(Database_Prop!$B$2)+1),ROWS(Database_Prop!K$2:'Database_Prop'!K37))),\"\")","v":""},{"$f":"IFERROR(INDEX(Database_Prop!$B$2:$B$1498,SMALL(IF(Database_Prop!$A$2:$A$1498=AO$129,ROW(Database_Prop!$B$2:$B$1498)-ROW(Database_Prop!$B$2)+1),ROWS(Database_Prop!L$2:'Database_Prop'!L37))),\"\")","v":""},{"$f":"IFERROR(INDEX(Database_Prop!$B$2:$B$1498,SMALL(IF(Database_Prop!$A$2:$A$1498=AP$129,ROW(Database_Prop!$B$2:$B$1498)-ROW(Database_Prop!$B$2)+1),ROWS(Database_Prop!M$2:'Database_Prop'!M37))),\"\")","v":""},{"$f":"IFERROR(INDEX(Database_Prop!$B$2:$B$1498,SMALL(IF(Database_Prop!$A$2:$A$1498=AQ$129,ROW(Database_Prop!$B$2:$B$1498)-ROW(Database_Prop!$B$2)+1),ROWS(Database_Prop!N$2:'Database_Prop'!N37))),\"\")","v":""},{"$f":"IFERROR(INDEX(Database_Prop!$B$2:$B$1498,SMALL(IF(Database_Prop!$A$2:$A$1498=AR$129,ROW(Database_Prop!$B$2:$B$1498)-ROW(Database_Prop!$B$2)+1),ROWS(Database_Prop!O$2:'Database_Prop'!O37))),\"\")","v":""},{"$f":"IFERROR(INDEX(Database_Prop!$B$2:$B$1498,SMALL(IF(Database_Prop!$A$2:$A$1498=AS$129,ROW(Database_Prop!$B$2:$B$1498)-ROW(Database_Prop!$B$2)+1),ROWS(Database_Prop!P$2:'Database_Prop'!P37))),\"\")","v":""},{"$f":"IFERROR(INDEX(Database_Prop!$B$2:$B$1498,SMALL(IF(Database_Prop!$A$2:$A$1498=AT$129,ROW(Database_Prop!$B$2:$B$1498)-ROW(Database_Prop!$B$2)+1),ROWS(Database_Prop!Q$2:'Database_Prop'!Q37))),\"\")","v":""},{"$f":"IFERROR(INDEX(Database_Prop!$B$2:$B$1498,SMALL(IF(Database_Prop!$A$2:$A$1498=AU$129,ROW(Database_Prop!$B$2:$B$1498)-ROW(Database_Prop!$B$2)+1),ROWS(Database_Prop!R$2:'Database_Prop'!R37))),\"\")","v":""},{"$f":"IFERROR(INDEX(Database_Prop!$B$2:$B$1498,SMALL(IF(Database_Prop!$A$2:$A$1498=AV$129,ROW(Database_Prop!$B$2:$B$1498)-ROW(Database_Prop!$B$2)+1),ROWS(Database_Prop!S$2:'Database_Prop'!S37))),\"\")","v":""},{"$f":"IFERROR(INDEX(Database_Prop!$B$2:$B$1498,SMALL(IF(Database_Prop!$A$2:$A$1498=AW$129,ROW(Database_Prop!$B$2:$B$1498)-ROW(Database_Prop!$B$2)+1),ROWS(Database_Prop!T$2:'Database_Prop'!T37))),\"\")","v":""},{"$f":"IFERROR(INDEX(Database_Prop!$B$2:$B$1498,SMALL(IF(Database_Prop!$A$2:$A$1498=AX$129,ROW(Database_Prop!$B$2:$B$1498)-ROW(Database_Prop!$B$2)+1),ROWS(Database_Prop!U$2:'Database_Prop'!U37))),\"\")","v":""},{"$f":"IFERROR(INDEX(Database_Prop!$B$2:$B$1498,SMALL(IF(Database_Prop!$A$2:$A$1498=AY$129,ROW(Database_Prop!$B$2:$B$1498)-ROW(Database_Prop!$B$2)+1),ROWS(Database_Prop!V$2:'Database_Prop'!V37))),\"\")","v":""},{"$f":"IFERROR(INDEX(Database_Prop!$B$2:$B$1498,SMALL(IF(Database_Prop!$A$2:$A$1498=AZ$129,ROW(Database_Prop!$B$2:$B$1498)-ROW(Database_Prop!$B$2)+1),ROWS(Database_Prop!W$2:'Database_Prop'!W37))),\"\")","v":""},{"$f":"IFERROR(INDEX(Database_Prop!$B$2:$B$1498,SMALL(IF(Database_Prop!$A$2:$A$1498=BA$129,ROW(Database_Prop!$B$2:$B$1498)-ROW(Database_Prop!$B$2)+1),ROWS(Database_Prop!X$2:'Database_Prop'!X37))),\"\")","v":""},{"$f":"IFERROR(INDEX(Database_Prop!$B$2:$B$1498,SMALL(IF(Database_Prop!$A$2:$A$1498=BB$129,ROW(Database_Prop!$B$2:$B$1498)-ROW(Database_Prop!$B$2)+1),ROWS(Database_Prop!Y$2:'Database_Prop'!Y37))),\"\")","v":""},{"$f":"IFERROR(INDEX(Database_Prop!$B$2:$B$1498,SMALL(IF(Database_Prop!$A$2:$A$1498=BC$129,ROW(Database_Prop!$B$2:$B$1498)-ROW(Database_Prop!$B$2)+1),ROWS(Database_Prop!Z$2:'Database_Prop'!Z37))),\"\")","v":""},null,"Canada","North America",null,{"$f":"title108","v":"Main Category"},{"$f":"title109","v":"Feedstock"},{"$f":"G$22","v":"VS (%)"},{"$f":"H$22","v":"TS (%)"},{"$f":"I$22","v":"BMP (m3/t VS)"},"CH4 (%)","Collection Price"]
[null,null,null,null,null,null,null,null,null,null,null,null,null,null,null,null,null,null,null,null,null,null,null,null,null,null,null,null,null,null,37,{"$f":"IFERROR(INDEX(Database_Prop!$B$2:$B$1498,SMALL(IF(Database_Prop!$A$2:$A$1498=AF$129,ROW(Database_Prop!$B$2:$B$1498)-ROW(Database_Prop!$B$2)+1),ROWS(Database_Prop!C$2:'Database_Prop'!C38))),\"\")","v":""},{"$f":"IFERROR(INDEX(Database_Prop!$B$2:$B$1498,SMALL(IF(Database_Prop!$A$2:$A$1498=AG$129,ROW(Database_Prop!$B$2:$B$1498)-ROW(Database_Prop!$B$2)+1),ROWS(Database_Prop!D$2:'Database_Prop'!D38))),\"\")","v":""},{"$f":"IFERROR(INDEX(Database_Prop!$B$2:$B$1498,SMALL(IF(Database_Prop!$A$2:$A$1498=AH$129,ROW(Database_Prop!$B$2:$B$1498)-ROW(Database_Prop!$B$2)+1),ROWS(Database_Prop!E$2:'Database_Prop'!E38))),\"\")","v":""},{"$f":"IFERROR(INDEX(Database_Prop!$B$2:$B$1498,SMALL(IF(Database_Prop!$A$2:$A$1498=AI$129,ROW(Database_Prop!$B$2:$B$1498)-ROW(Database_Prop!$B$2)+1),ROWS(Database_Prop!F$2:'Database_Prop'!F38))),\"\")","v":""},{"$f":"IFERROR(INDEX(Database_Prop!$B$2:$B$1498,SMALL(IF(Database_Prop!$A$2:$A$1498=AJ$129,ROW(Database_Prop!$B$2:$B$1498)-ROW(Database_Prop!$B$2)+1),ROWS(Database_Prop!G$2:'Database_Prop'!G38))),\"\")","v":""},{"$f":"IFERROR(INDEX(Database_Prop!$B$2:$B$1498,SMALL(IF(Database_Prop!$A$2:$A$1498=AK$129,ROW(Database_Prop!$B$2:$B$1498)-ROW(Database_Prop!$B$2)+1),ROWS(Database_Prop!H$2:'Database_Prop'!H38))),\"\")","v":""},{"$f":"IFERROR(INDEX(Database_Prop!$B$2:$B$1498,SMALL(IF(Database_Prop!$A$2:$A$1498=AL$129,ROW(Database_Prop!$B$2:$B$1498)-ROW(Database_Prop!$B$2)+1),ROWS(Database_Prop!I$2:'Database_Prop'!I38))),\"\")","v":""},{"$f":"IFERROR(INDEX(Database_Prop!$B$2:$B$1498,SMALL(IF(Database_Prop!$A$2:$A$1498=AM$129,ROW(Database_Prop!$B$2:$B$1498)-ROW(Database_Prop!$B$2)+1),ROWS(Database_Prop!J$2:'Database_Prop'!J38))),\"\")","v":""},{"$f":"IFERROR(INDEX(Database_Prop!$B$2:$B$1498,SMALL(IF(Database_Prop!$A$2:$A$1498=AN$129,ROW(Database_Prop!$B$2:$B$1498)-ROW(Database_Prop!$B$2)+1),ROWS(Database_Prop!K$2:'Database_Prop'!K38))),\"\")","v":""},{"$f":"IFERROR(INDEX(Database_Prop!$B$2:$B$1498,SMALL(IF(Database_Prop!$A$2:$A$1498=AO$129,ROW(Database_Prop!$B$2:$B$1498)-ROW(Database_Prop!$B$2)+1),ROWS(Database_Prop!L$2:'Database_Prop'!L38))),\"\")","v":""},{"$f":"IFERROR(INDEX(Database_Prop!$B$2:$B$1498,SMALL(IF(Database_Prop!$A$2:$A$1498=AP$129,ROW(Database_Prop!$B$2:$B$1498)-ROW(Database_Prop!$B$2)+1),ROWS(Database_Prop!M$2:'Database_Prop'!M38))),\"\")","v":""},{"$f":"IFERROR(INDEX(Database_Prop!$B$2:$B$1498,SMALL(IF(Database_Prop!$A$2:$A$1498=AQ$129,ROW(Database_Prop!$B$2:$B$1498)-ROW(Database_Prop!$B$2)+1),ROWS(Database_Prop!N$2:'Database_Prop'!N38))),\"\")","v":""},{"$f":"IFERROR(INDEX(Database_Prop!$B$2:$B$1498,SMALL(IF(Database_Prop!$A$2:$A$1498=AR$129,ROW(Database_Prop!$B$2:$B$1498)-ROW(Database_Prop!$B$2)+1),ROWS(Database_Prop!O$2:'Database_Prop'!O38))),\"\")","v":""},{"$f":"IFERROR(INDEX(Database_Prop!$B$2:$B$1498,SMALL(IF(Database_Prop!$A$2:$A$1498=AS$129,ROW(Database_Prop!$B$2:$B$1498)-ROW(Database_Prop!$B$2)+1),ROWS(Database_Prop!P$2:'Database_Prop'!P38))),\"\")","v":""},{"$f":"IFERROR(INDEX(Database_Prop!$B$2:$B$1498,SMALL(IF(Database_Prop!$A$2:$A$1498=AT$129,ROW(Database_Prop!$B$2:$B$1498)-ROW(Database_Prop!$B$2)+1),ROWS(Database_Prop!Q$2:'Database_Prop'!Q38))),\"\")","v":""},{"$f":"IFERROR(INDEX(Database_Prop!$B$2:$B$1498,SMALL(IF(Database_Prop!$A$2:$A$1498=AU$129,ROW(Database_Prop!$B$2:$B$1498)-ROW(Database_Prop!$B$2)+1),ROWS(Database_Prop!R$2:'Database_Prop'!R38))),\"\")","v":""},{"$f":"IFERROR(INDEX(Database_Prop!$B$2:$B$1498,SMALL(IF(Database_Prop!$A$2:$A$1498=AV$129,ROW(Database_Prop!$B$2:$B$1498)-ROW(Database_Prop!$B$2)+1),ROWS(Database_Prop!S$2:'Database_Prop'!S38))),\"\")","v":""},{"$f":"IFERROR(INDEX(Database_Prop!$B$2:$B$1498,SMALL(IF(Database_Prop!$A$2:$A$1498=AW$129,ROW(Database_Prop!$B$2:$B$1498)-ROW(Database_Prop!$B$2)+1),ROWS(Database_Prop!T$2:'Database_Prop'!T38))),\"\")","v":""},{"$f":"IFERROR(INDEX(Database_Prop!$B$2:$B$1498,SMALL(IF(Database_Prop!$A$2:$A$1498=AX$129,ROW(Database_Prop!$B$2:$B$1498)-ROW(Database_Prop!$B$2)+1),ROWS(Database_Prop!U$2:'Database_Prop'!U38))),\"\")","v":""},{"$f":"IFERROR(INDEX(Database_Prop!$B$2:$B$1498,SMALL(IF(Database_Prop!$A$2:$A$1498=AY$129,ROW(Database_Prop!$B$2:$B$1498)-ROW(Database_Prop!$B$2)+1),ROWS(Database_Prop!V$2:'Database_Prop'!V38))),\"\")","v":""},{"$f":"IFERROR(INDEX(Database_Prop!$B$2:$B$1498,SMALL(IF(Database_Prop!$A$2:$A$1498=AZ$129,ROW(Database_Prop!$B$2:$B$1498)-ROW(Database_Prop!$B$2)+1),ROWS(Database_Prop!W$2:'Database_Prop'!W38))),\"\")","v":""},{"$f":"IFERROR(INDEX(Database_Prop!$B$2:$B$1498,SMALL(IF(Database_Prop!$A$2:$A$1498=BA$129,ROW(Database_Prop!$B$2:$B$1498)-ROW(Database_Prop!$B$2)+1),ROWS(Database_Prop!X$2:'Database_Prop'!X38))),\"\")","v":""},{"$f":"IFERROR(INDEX(Database_Prop!$B$2:$B$1498,SMALL(IF(Database_Prop!$A$2:$A$1498=BB$129,ROW(Database_Prop!$B$2:$B$1498)-ROW(Database_Prop!$B$2)+1),ROWS(Database_Prop!Y$2:'Database_Prop'!Y38))),\"\")","v":""},{"$f":"IFERROR(INDEX(Database_Prop!$B$2:$B$1498,SMALL(IF(Database_Prop!$A$2:$A$1498=BC$129,ROW(Database_Prop!$B$2:$B$1498)-ROW(Database_Prop!$B$2)+1),ROWS(Database_Prop!Z$2:'Database_Prop'!Z38))),\"\")","v":""},null,"Cape Verde","Africa","FS1",{"$f":"$D$75","v":"Please Select"},{"$f":"$E$75","v":"Please Select"},{"$f":"IFERROR(IF($BH168=title192,VLOOKUP($BH168&\" \"&$BI168,Database_Prop!$C:$G,2,FALSE),TEXT(VLOOKUP($BH168&\" \"&$BI168,Database_Prop!$C:$G,2,FALSE),\"0%\")),0)","v":0},{"$f":"IFERROR(VLOOKUP($BH168&\" \"&$BI168,Database_Prop!$C:$G,5,FALSE),0)","v":0},{"$f":"IFERROR(VLOOKUP($BH168&\" \"&$BI168,Database_Prop!$C:$G,3,FALSE),0)","v":0},{"$f":"IFERROR(VLOOKUP($BH168&\" \"&$BI168,Database_Prop!$C:$G,4,FALSE),0)","v":0},{"$f":"IFERROR(INDIRECT(\"PRICE_\"&$BG168&\"_\"&BI$166&$BN$126),0)","v":0}]
[null,null,null,null,null,null,null,null,null,null,null,null,null,null,null,null,null,null,null,null,null,null,null,null,null,null,null,null,null,null,38,{"$f":"IFERROR(INDEX(Database_Prop!$B$2:$B$1498,SMALL(IF(Database_Prop!$A$2:$A$1498=AF$129,ROW(Database_Prop!$B$2:$B$1498)-ROW(Database_Prop!$B$2)+1),ROWS(Database_Prop!C$2:'Database_Prop'!C39))),\"\")","v":""},{"$f":"IFERROR(INDEX(Database_Prop!$B$2:$B$1498,SMALL(IF(Database_Prop!$A$2:$A$1498=AG$129,ROW(Database_Prop!$B$2:$B$1498)-ROW(Database_Prop!$B$2)+1),ROWS(Database_Prop!D$2:'Database_Prop'!D39))),\"\")","v":""},{"$f":"IFERROR(INDEX(Database_Prop!$B$2:$B$1498,SMALL(IF(Database_Prop!$A$2:$A$1498=AH$129,ROW(Database_Prop!$B$2:$B$1498)-ROW(Database_Prop!$B$2)+1),ROWS(Database_Prop!E$2:'Database_Prop'!E39))),\"\")","v":""},{"$f":"IFERROR(INDEX(Database_Prop!$B$2:$B$1498,SMALL(IF(Database_Prop!$A$2:$A$1498=AI$129,ROW(Database_Prop!$B$2:$B$1498)-ROW(Database_Prop!$B$2)+1),ROWS(Database_Prop!F$2:'Database_Prop'!F39))),\"\")","v":""},{"$f":"IFERROR(INDEX(Database_Prop!$B$2:$B$1498,SMALL(IF(Database_Prop!$A$2:$A$1498=AJ$129,ROW(Database_Prop!$B$2:$B$1498)-ROW(Database_Prop!$B$2)+1),ROWS(Database_Prop!G$2:'Database_Prop'!G39))),\"\")","v":""},{"$f":"IFERROR(INDEX(Database_Prop!$B$2:$B$1498,SMALL(IF(Database_Prop!$A$2:$A$1498=AK$129,ROW(Database_Prop!$B$2:$B$1498)-ROW(Database_Prop!$B$2)+1),ROWS(Database_Prop!H$2:'Database_Prop'!H39))),\"\")","v":""},{"$f":"IFERROR(INDEX(Database_Prop!$B$2:$B$1498,SMALL(IF(Database_Prop!$A$2:$A$1498=AL$129,ROW(Database_Prop!$B$2:$B$1498)-ROW(Database_Prop!$B$2)+1),ROWS(Database_Prop!I$2:'Database_Prop'!I39))),\"\")","v":""},{"$f":"IFERROR(INDEX(Database_Prop!$B$2:$B$1498,SMALL(IF(Database_Prop!$A$2:$A$1498=AM$129,ROW(Database_Prop!$B$2:$B$1498)-ROW(Database_Prop!$B$2)+1),ROWS(Database_Prop!J$2:'Database_Prop'!J39))),\"\")","v":""},{"$f":"IFERROR(INDEX(Database_Prop!$B$2:$B$1498,SMALL(IF(Database_Prop!$A$2:$A$1498=AN$129,ROW(Database_Prop!$B$2:$B$1498)-ROW(Database_Prop!$B$2)+1),ROWS(Database_Prop!K$2:'Database_Prop'!K39))),\"\")","v":""},{"$f":"IFERROR(INDEX(Database_Prop!$B$2:$B$1498,SMALL(IF(Database_Prop!$A$2:$A$1498=AO$129,ROW(Database_Prop!$B$2:$B$1498)-ROW(Database_Prop!$B$2)+1),ROWS(Database_Prop!L$2:'Database_Prop'!L39))),\"\")","v":""},{"$f":"IFERROR(INDEX(Database_Prop!$B$2:$B$1498,SMALL(IF(Database_Prop!$A$2:$A$1498=AP$129,ROW(Database_Prop!$B$2:$B$1498)-ROW(Database_Prop!$B$2)+1),ROWS(Database_Prop!M$2:'Database_Prop'!M39))),\"\")","v":""},{"$f":"IFERROR(INDEX(Database_Prop!$B$2:$B$1498,SMALL(IF(Database_Prop!$A$2:$A$1498=AQ$129,ROW(Database_Prop!$B$2:$B$1498)-ROW(Database_Prop!$B$2)+1),ROWS(Database_Prop!N$2:'Database_Prop'!N39))),\"\")","v":""},{"$f":"IFERROR(INDEX(Database_Prop!$B$2:$B$1498,SMALL(IF(Database_Prop!$A$2:$A$1498=AR$129,ROW(Database_Prop!$B$2:$B$1498)-ROW(Database_Prop!$B$2)+1),ROWS(Database_Prop!O$2:'Database_Prop'!O39))),\"\")","v":""},{"$f":"IFERROR(INDEX(Database_Prop!$B$2:$B$1498,SMALL(IF(Database_Prop!$A$2:$A$1498=AS$129,ROW(Database_Prop!$B$2:$B$1498)-ROW(Database_Prop!$B$2)+1),ROWS(Database_Prop!P$2:'Database_Prop'!P39))),\"\")","v":""},{"$f":"IFERROR(INDEX(Database_Prop!$B$2:$B$1498,SMALL(IF(Database_Prop!$A$2:$A$1498=AT$129,ROW(Database_Prop!$B$2:$B$1498)-ROW(Database_Prop!$B$2)+1),ROWS(Database_Prop!Q$2:'Database_Prop'!Q39))),\"\")","v":""},{"$f":"IFERROR(INDEX(Database_Prop!$B$2:$B$1498,SMALL(IF(Database_Prop!$A$2:$A$1498=AU$129,ROW(Database_Prop!$B$2:$B$1498)-ROW(Database_Prop!$B$2)+1),ROWS(Database_Prop!R$2:'Database_Prop'!R39))),\"\")","v":""},{"$f":"IFERROR(INDEX(Database_Prop!$B$2:$B$1498,SMALL(IF(Database_Prop!$A$2:$A$1498=AV$129,ROW(Database_Prop!$B$2:$B$1498)-ROW(Database_Prop!$B$2)+1),ROWS(Database_Prop!S$2:'Database_Prop'!S39))),\"\")","v":""},{"$f":"IFERROR(INDEX(Database_Prop!$B$2:$B$1498,SMALL(IF(Database_Prop!$A$2:$A$1498=AW$129,ROW(Database_Prop!$B$2:$B$1498)-ROW(Database_Prop!$B$2)+1),ROWS(Database_Prop!T$2:'Database_Prop'!T39))),\"\")","v":""},{"$f":"IFERROR(INDEX(Database_Prop!$B$2:$B$1498,SMALL(IF(Database_Prop!$A$2:$A$1498=AX$129,ROW(Database_Prop!$B$2:$B$1498)-ROW(Database_Prop!$B$2)+1),ROWS(Database_Prop!U$2:'Database_Prop'!U39))),\"\")","v":""},{"$f":"IFERROR(INDEX(Database_Prop!$B$2:$B$1498,SMALL(IF(Database_Prop!$A$2:$A$1498=AY$129,ROW(Database_Prop!$B$2:$B$1498)-ROW(Database_Prop!$B$2)+1),ROWS(Database_Prop!V$2:'Database_Prop'!V39))),\"\")","v":""},{"$f":"IFERROR(INDEX(Database_Prop!$B$2:$B$1498,SMALL(IF(Database_Prop!$A$2:$A$1498=AZ$129,ROW(Database_Prop!$B$2:$B$1498)-ROW(Database_Prop!$B$2)+1),ROWS(Database_Prop!W$2:'Database_Prop'!W39))),\"\")","v":""},{"$f":"IFERROR(INDEX(Database_Prop!$B$2:$B$1498,SMALL(IF(Database_Prop!$A$2:$A$1498=BA$129,ROW(Database_Prop!$B$2:$B$1498)-ROW(Database_Prop!$B$2)+1),ROWS(Database_Prop!X$2:'Database_Prop'!X39))),\"\")","v":""},{"$f":"IFERROR(INDEX(Database_Prop!$B$2:$B$1498,SMALL(IF(Database_Prop!$A$2:$A$1498=BB$129,ROW(Database_Prop!$B$2:$B$1498)-ROW(Database_Prop!$B$2)+1),ROWS(Database_Prop!Y$2:'Database_Prop'!Y39))),\"\")","v":""},{"$f":"IFERROR(INDEX(Database_Prop!$B$2:$B$1498,SMALL(IF(Database_Prop!$A$2:$A$1498=BC$129,ROW(Database_Prop!$B$2:$B$1498)-ROW(Database_Prop!$B$2)+1),ROWS(Database_Prop!Z$2:'Database_Prop'!Z39))),\"\")","v":""},null,"Cayman Islands","Latin America",null,{"$f":"title108","v":"Main Category"},{"$f":"title109","v":"Feedstock"},{"$f":"G$22","v":"VS (%)"},{"$f":"H$22","v":"TS (%)"},{"$f":"I$22","v":"BMP (m3/t VS)"},"CH4 (%)","Collection Price"]
[null,null,null,null,null,null,null,null,null,null,null,null,null,null,null,null,null,null,null,null,null,null,null,null,null,null,null,null,null,null,39,{"$f":"IFERROR(INDEX(Database_Prop!$B$2:$B$1498,SMALL(IF(Database_Prop!$A$2:$A$1498=AF$129,ROW(Database_Prop!$B$2:$B$1498)-ROW(Database_Prop!$B$2)+1),ROWS(Database_Prop!C$2:'Database_Prop'!C40))),\"\")","v":""},{"$f":"IFERROR(INDEX(Database_Prop!$B$2:$B$1498,SMALL(IF(Database_Prop!$A$2:$A$1498=AG$129,ROW(Database_Prop!$B$2:$B$1498)-ROW(Database_Prop!$B$2)+1),ROWS(Database_Prop!D$2:'Database_Prop'!D40))),\"\")","v":""},{"$f":"IFERROR(INDEX(Database_Prop!$B$2:$B$1498,SMALL(IF(Database_Prop!$A$2:$A$1498=AH$129,ROW(Database_Prop!$B$2:$B$1498)-ROW(Database_Prop!$B$2)+1),ROWS(Database_Prop!E$2:'Database_Prop'!E40))),\"\")","v":""},{"$f":"IFERROR(INDEX(Database_Prop!$B$2:$B$1498,SMALL(IF(Database_Prop!$A$2:$A$1498=AI$129,ROW(Database_Prop!$B$2:$B$1498)-ROW(Database_Prop!$B$2)+1),ROWS(Database_Prop!F$2:'Database_Prop'!F40))),\"\")","v":""},{"$f":"IFERROR(INDEX(Database_Prop!$B$2:$B$1498,SMALL(IF(Database_Prop!$A$2:$A$1498=AJ$129,ROW(Database_Prop!$B$2:$B$1498)-ROW(Database_Prop!$B$2)+1),ROWS(Database_Prop!G$2:'Database_Prop'!G40))),\"\")","v":""},{"$f":"IFERROR(INDEX(Database_Prop!$B$2:$B$1498,SMALL(IF(Database_Prop!$A$2:$A$1498=AK$129,ROW(Database_Prop!$B$2:$B$1498)-ROW(Database_Prop!$B$2)+1),ROWS(Database_Prop!H$2:'Database_Prop'!H40))),\"\")","v":""},{"$f":"IFERROR(INDEX(Database_Prop!$B$2:$B$1498,SMALL(IF(Database_Prop!$A$2:$A$1498=AL$129,ROW(Database_Prop!$B$2:$B$1498)-ROW(Database_Prop!$B$2)+1),ROWS(Database_Prop!I$2:'Database_Prop'!I40))),\"\")","v":""},{"$f":"IFERROR(INDEX(Database_Prop!$B$2:$B$1498,SMALL(IF(Database_Prop!$A$2:$A$1498=AM$129,ROW(Database_Prop!$B$2:$B$1498)-ROW(Database_Prop!$B$2)+1),ROWS(Database_Prop!J$2:'Database_Prop'!J40))),\"\")","v":""},{"$f":"IFERROR(INDEX(Database_Prop!$B$2:$B$1498,SMALL(IF(Database_Prop!$A$2:$A$1498=AN$129,ROW(Database_Prop!$B$2:$B$1498)-ROW(Database_Prop!$B$2)+1),ROWS(Database_Prop!K$2:'Database_Prop'!K40))),\"\")","v":""},{"$f":"IFERROR(INDEX(Database_Prop!$B$2:$B$1498,SMALL(IF(Database_Prop!$A$2:$A$1498=AO$129,ROW(Database_Prop!$B$2:$B$1498)-ROW(Database_Prop!$B$2)+1),ROWS(Database_Prop!L$2:'Database_Prop'!L40))),\"\")","v":""},{"$f":"IFERROR(INDEX(Database_Prop!$B$2:$B$1498,SMALL(IF(Database_Prop!$A$2:$A$1498=AP$129,ROW(Database_Prop!$B$2:$B$1498)-ROW(Database_Prop!$B$2)+1),ROWS(Database_Prop!M$2:'Database_Prop'!M40))),\"\")","v":""},{"$f":"IFERROR(INDEX(Database_Prop!$B$2:$B$1498,SMALL(IF(Database_Prop!$A$2:$A$1498=AQ$129,ROW(Database_Prop!$B$2:$B$1498)-ROW(Database_Prop!$B$2)+1),ROWS(Database_Prop!N$2:'Database_Prop'!N40))),\"\")","v":""},{"$f":"IFERROR(INDEX(Database_Prop!$B$2:$B$1498,SMALL(IF(Database_Prop!$A$2:$A$1498=AR$129,ROW(Database_Prop!$B$2:$B$1498)-ROW(Database_Prop!$B$2)+1),ROWS(Database_Prop!O$2:'Database_Prop'!O40))),\"\")","v":""},{"$f":"IFERROR(INDEX(Database_Prop!$B$2:$B$1498,SMALL(IF(Database_Prop!$A$2:$A$1498=AS$129,ROW(Database_Prop!$B$2:$B$1498)-ROW(Database_Prop!$B$2)+1),ROWS(Database_Prop!P$2:'Database_Prop'!P40))),\"\")","v":""},{"$f":"IFERROR(INDEX(Database_Prop!$B$2:$B$1498,SMALL(IF(Database_Prop!$A$2:$A$1498=AT$129,ROW(Database_Prop!$B$2:$B$1498)-ROW(Database_Prop!$B$2)+1),ROWS(Database_Prop!Q$2:'Database_Prop'!Q40))),\"\")","v":""},{"$f":"IFERROR(INDEX(Database_Prop!$B$2:$B$1498,SMALL(IF(Database_Prop!$A$2:$A$1498=AU$129,ROW(Database_Prop!$B$2:$B$1498)-ROW(Database_Prop!$B$2)+1),ROWS(Database_Prop!R$2:'Database_Prop'!R40))),\"\")","v":""},{"$f":"IFERROR(INDEX(Database_Prop!$B$2:$B$1498,SMALL(IF(Database_Prop!$A$2:$A$1498=AV$129,ROW(Database_Prop!$B$2:$B$1498)-ROW(Database_Prop!$B$2)+1),ROWS(Database_Prop!S$2:'Database_Prop'!S40))),\"\")","v":""},{"$f":"IFERROR(INDEX(Database_Prop!$B$2:$B$1498,SMALL(IF(Database_Prop!$A$2:$A$1498=AW$129,ROW(Database_Prop!$B$2:$B$1498)-ROW(Database_Prop!$B$2)+1),ROWS(Database_Prop!T$2:'Database_Prop'!T40))),\"\")","v":""},{"$f":"IFERROR(INDEX(Database_Prop!$B$2:$B$1498,SMALL(IF(Database_Prop!$A$2:$A$1498=AX$129,ROW(Database_Prop!$B$2:$B$1498)-ROW(Database_Prop!$B$2)+1),ROWS(Database_Prop!U$2:'Database_Prop'!U40))),\"\")","v":""},{"$f":"IFERROR(INDEX(Database_Prop!$B$2:$B$1498,SMALL(IF(Database_Prop!$A$2:$A$1498=AY$129,ROW(Database_Prop!$B$2:$B$1498)-ROW(Database_Prop!$B$2)+1),ROWS(Database_Prop!V$2:'Database_Prop'!V40))),\"\")","v":""},{"$f":"IFERROR(INDEX(Database_Prop!$B$2:$B$1498,SMALL(IF(Database_Prop!$A$2:$A$1498=AZ$129,ROW(Database_Prop!$B$2:$B$1498)-ROW(Database_Prop!$B$2)+1),ROWS(Database_Prop!W$2:'Database_Prop'!W40))),\"\")","v":""},{"$f":"IFERROR(INDEX(Database_Prop!$B$2:$B$1498,SMALL(IF(Database_Prop!$A$2:$A$1498=BA$129,ROW(Database_Prop!$B$2:$B$1498)-ROW(Database_Prop!$B$2)+1),ROWS(Database_Prop!X$2:'Database_Prop'!X40))),\"\")","v":""},{"$f":"IFERROR(INDEX(Database_Prop!$B$2:$B$1498,SMALL(IF(Database_Prop!$A$2:$A$1498=BB$129,ROW(Database_Prop!$B$2:$B$1498)-ROW(Database_Prop!$B$2)+1),ROWS(Database_Prop!Y$2:'Database_Prop'!Y40))),\"\")","v":""},{"$f":"IFERROR(INDEX(Database_Prop!$B$2:$B$1498,SMALL(IF(Database_Prop!$A$2:$A$1498=BC$129,ROW(Database_Prop!$B$2:$B$1498)-ROW(Database_Prop!$B$2)+1),ROWS(Database_Prop!Z$2:'Database_Prop'!Z40))),\"\")","v":""},null,"Central African Republic","Africa","FS2",{"$f":"$D$77","v":"Please Select"},{"$f":"$E$77","v":"Please Select"},{"$f":"IFERROR(IF($BH170=title192,VLOOKUP($BH170&\" \"&$BI170,Database_Prop!$C:$G,2,FALSE),TEXT(VLOOKUP($BH170&\" \"&$BI170,Database_Prop!$C:$G,2,FALSE),\"0%\")),0)","v":0},{"$f":"IFERROR(VLOOKUP($BH170&\" \"&$BI170,Database_Prop!$C:$G,5,FALSE),0)","v":0},{"$f":"IFERROR(VLOOKUP($BH170&\" \"&$BI170,Database_Prop!$C:$G,3,FALSE),0)","v":0},{"$f":"IFERROR(VLOOKUP($BH170&\" \"&$BI170,Database_Prop!$C:$G,4,FALSE),0)","v":0},{"$f":"IFERROR(INDIRECT(\"PRICE_\"&$BG170&\"_\"&BI$166&$BN$126),0)","v":0}]
[null,null,null,null,null,null,null,null,null,null,null,null,null,null,null,null,null,null,null,null,null,null,null,null,null,null,null,null,null,null,40,{"$f":"IFERROR(INDEX(Database_Prop!$B$2:$B$1498,SMALL(IF(Database_Prop!$A$2:$A$1498=AF$129,ROW(Database_Prop!$B$2:$B$1498)-ROW(Database_Prop!$B$2)+1),ROWS(Database_Prop!C$2:'Database_Prop'!C41))),\"\")","v":""},{"$f":"IFERROR(INDEX(Database_Prop!$B$2:$B$1498,SMALL(IF(Database_Prop!$A$2:$A$1498=AG$129,ROW(Database_Prop!$B$2:$B$1498)-ROW(Database_Prop!$B$2)+1),ROWS(Database_Prop!D$2:'Database_Prop'!D41))),\"\")","v":""},{"$f":"IFERROR(INDEX(Database_Prop!$B$2:$B$1498,SMALL(IF(Database_Prop!$A$2:$A$1498=AH$129,ROW(Database_Prop!$B$2:$B$1498)-ROW(Database_Prop!$B$2)+1),ROWS(Database_Prop!E$2:'Database_Prop'!E41))),\"\")","v":""},{"$f":"IFERROR(INDEX(Database_Prop!$B$2:$B$1498,SMALL(IF(Database_Prop!$A$2:$A$1498=AI$129,ROW(Database_Prop!$B$2:$B$1498)-ROW(Database_Prop!$B$2)+1),ROWS(Database_Prop!F$2:'Database_Prop'!F41))),\"\")","v":""},{"$f":"IFERROR(INDEX(Database_Prop!$B$2:$B$1498,SMALL(IF(Database_Prop!$A$2:$A$1498=AJ$129,ROW(Database_Prop!$B$2:$B$1498)-ROW(Database_Prop!$B$2)+1),ROWS(Database_Prop!G$2:'Database_Prop'!G41))),\"\")","v":""},{"$f":"IFERROR(INDEX(Database_Prop!$B$2:$B$1498,SMALL(IF(Database_Prop!$A$2:$A$1498=AK$129,ROW(Database_Prop!$B$2:$B$1498)-ROW(Database_Prop!$B$2)+1),ROWS(Database_Prop!H$2:'Database_Prop'!H41))),\"\")","v":""},{"$f":"IFERROR(INDEX(Database_Prop!$B$2:$B$1498,SMALL(IF(Database_Prop!$A$2:$A$1498=AL$129,ROW(Database_Prop!$B$2:$B$1498)-ROW(Database_Prop!$B$2)+1),ROWS(Database_Prop!I$2:'Database_Prop'!I41))),\"\")","v":""},{"$f":"IFERROR(INDEX(Database_Prop!$B$2:$B$1498,SMALL(IF(Database_Prop!$A$2:$A$1498=AM$129,ROW(Database_Prop!$B$2:$B$1498)-ROW(Database_Prop!$B$2)+1),ROWS(Database_Prop!J$2:'Database_Prop'!J41))),\"\")","v":""},{"$f":"IFERROR(INDEX(Database_Prop!$B$2:$B$1498,SMALL(IF(Database_Prop!$A$2:$A$1498=AN$129,ROW(Database_Prop!$B$2:$B$1498)-ROW(Database_Prop!$B$2)+1),ROWS(Database_Prop!K$2:'Database_Prop'!K41))),\"\")","v":""},{"$f":"IFERROR(INDEX(Database_Prop!$B$2:$B$1498,SMALL(IF(Database_Prop!$A$2:$A$1498=AO$129,ROW(Database_Prop!$B$2:$B$1498)-ROW(Database_Prop!$B$2)+1),ROWS(Database_Prop!L$2:'Database_Prop'!L41))),\"\")","v":""},{"$f":"IFERROR(INDEX(Database_Prop!$B$2:$B$1498,SMALL(IF(Database_Prop!$A$2:$A$1498=AP$129,ROW(Database_Prop!$B$2:$B$1498)-ROW(Database_Prop!$B$2)+1),ROWS(Database_Prop!M$2:'Database_Prop'!M41))),\"\")","v":""},{"$f":"IFERROR(INDEX(Database_Prop!$B$2:$B$1498,SMALL(IF(Database_Prop!$A$2:$A$1498=AQ$129,ROW(Database_Prop!$B$2:$B$1498)-ROW(Database_Prop!$B$2)+1),ROWS(Database_Prop!N$2:'Database_Prop'!N41))),\"\")","v":""},{"$f":"IFERROR(INDEX(Database_Prop!$B$2:$B$1498,SMALL(IF(Database_Prop!$A$2:$A$1498=AR$129,ROW(Database_Prop!$B$2:$B$1498)-ROW(Database_Prop!$B$2)+1),ROWS(Database_Prop!O$2:'Database_Prop'!O41))),\"\")","v":""},{"$f":"IFERROR(INDEX(Database_Prop!$B$2:$B$1498,SMALL(IF(Database_Prop!$A$2:$A$1498=AS$129,ROW(Database_Prop!$B$2:$B$1498)-ROW(Database_Prop!$B$2)+1),ROWS(Database_Prop!P$2:'Database_Prop'!P41))),\"\")","v":""},{"$f":"IFERROR(INDEX(Database_Prop!$B$2:$B$1498,SMALL(IF(Database_Prop!$A$2:$A$1498=AT$129,ROW(Database_Prop!$B$2:$B$1498)-ROW(Database_Prop!$B$2)+1),ROWS(Database_Prop!Q$2:'Database_Prop'!Q41))),\"\")","v":""},{"$f":"IFERROR(INDEX(Database_Prop!$B$2:$B$1498,SMALL(IF(Database_Prop!$A$2:$A$1498=AU$129,ROW(Database_Prop!$B$2:$B$1498)-ROW(Database_Prop!$B$2)+1),ROWS(Database_Prop!R$2:'Database_Prop'!R41))),\"\")","v":""},{"$f":"IFERROR(INDEX(Database_Prop!$B$2:$B$1498,SMALL(IF(Database_Prop!$A$2:$A$1498=AV$129,ROW(Database_Prop!$B$2:$B$1498)-ROW(Database_Prop!$B$2)+1),ROWS(Database_Prop!S$2:'Database_Prop'!S41))),\"\")","v":""},{"$f":"IFERROR(INDEX(Database_Prop!$B$2:$B$1498,SMALL(IF(Database_Prop!$A$2:$A$1498=AW$129,ROW(Database_Prop!$B$2:$B$1498)-ROW(Database_Prop!$B$2)+1),ROWS(Database_Prop!T$2:'Database_Prop'!T41))),\"\")","v":""},{"$f":"IFERROR(INDEX(Database_Prop!$B$2:$B$1498,SMALL(IF(Database_Prop!$A$2:$A$1498=AX$129,ROW(Database_Prop!$B$2:$B$1498)-ROW(Database_Prop!$B$2)+1),ROWS(Database_Prop!U$2:'Database_Prop'!U41))),\"\")","v":""},{"$f":"IFERROR(INDEX(Database_Prop!$B$2:$B$1498,SMALL(IF(Database_Prop!$A$2:$A$1498=AY$129,ROW(Database_Prop!$B$2:$B$1498)-ROW(Database_Prop!$B$2)+1),ROWS(Database_Prop!V$2:'Database_Prop'!V41))),\"\")","v":""},{"$f":"IFERROR(INDEX(Database_Prop!$B$2:$B$1498,SMALL(IF(Database_Prop!$A$2:$A$1498=AZ$129,ROW(Database_Prop!$B$2:$B$1498)-ROW(Database_Prop!$B$2)+1),ROWS(Database_Prop!W$2:'Database_Prop'!W41))),\"\")","v":""},{"$f":"IFERROR(INDEX(Database_Prop!$B$2:$B$1498,SMALL(IF(Database_Prop!$A$2:$A$1498=BA$129,ROW(Database_Prop!$B$2:$B$1498)-ROW(Database_Prop!$B$2)+1),ROWS(Database_Prop!X$2:'Database_Prop'!X41))),\"\")","v":""},{"$f":"IFERROR(INDEX(Database_Prop!$B$2:$B$1498,SMALL(IF(Database_Prop!$A$2:$A$1498=BB$129,ROW(Database_Prop!$B$2:$B$1498)-ROW(Database_Prop!$B$2)+1),ROWS(Database_Prop!Y$2:'Database_Prop'!Y41))),\"\")","v":""},{"$f":"IFERROR(INDEX(Database_Prop!$B$2:$B$1498,SMALL(IF(Database_Prop!$A$2:$A$1498=BC$129,ROW(Database_Prop!$B$2:$B$1498)-ROW(Database_Prop!$B$2)+1),ROWS(Database_Prop!Z$2:'Database_Prop'!Z41))),\"\")","v":""},null,"Chad","Africa",null,{"$f":"title108","v":"Main Category"},{"$f":"title109","v":"Feedstock"},{"$f":"G$24","v":"VS (%)"},{"$f":"H$24","v":"TS (%)"},{"$f":"I$24","v":"BMP (m3/t VS)"},"CH4 (%)","Collection Price"]
[null,null,null,null,null,null,null,null,null,null,null,null,null,null,null,null,null,null,null,null,null,null,null,null,null,null,null,null,null,null,41,{"$f":"IFERROR(INDEX(Database_Prop!$B$2:$B$1498,SMALL(IF(Database_Prop!$A$2:$A$1498=AF$129,ROW(Database_Prop!$B$2:$B$1498)-ROW(Database_Prop!$B$2)+1),ROWS(Database_Prop!C$2:'Database_Prop'!C42))),\"\")","v":""},{"$f":"IFERROR(INDEX(Database_Prop!$B$2:$B$1498,SMALL(IF(Database_Prop!$A$2:$A$1498=AG$129,ROW(Database_Prop!$B$2:$B$1498)-ROW(Database_Prop!$B$2)+1),ROWS(Database_Prop!D$2:'Database_Prop'!D42))),\"\")","v":""},{"$f":"IFERROR(INDEX(Database_Prop!$B$2:$B$1498,SMALL(IF(Database_Prop!$A$2:$A$1498=AH$129,ROW(Database_Prop!$B$2:$B$1498)-ROW(Database_Prop!$B$2)+1),ROWS(Database_Prop!E$2:'Database_Prop'!E42))),\"\")","v":""},{"$f":"IFERROR(INDEX(Database_Prop!$B$2:$B$1498,SMALL(IF(Database_Prop!$A$2:$A$1498=AI$129,ROW(Database_Prop!$B$2:$B$1498)-ROW(Database_Prop!$B$2)+1),ROWS(Database_Prop!F$2:'Database_Prop'!F42))),\"\")","v":""},{"$f":"IFERROR(INDEX(Database_Prop!$B$2:$B$1498,SMALL(IF(Database_Prop!$A$2:$A$1498=AJ$129,ROW(Database_Prop!$B$2:$B$1498)-ROW(Database_Prop!$B$2)+1),ROWS(Database_Prop!G$2:'Database_Prop'!G42))),\"\")","v":""},{"$f":"IFERROR(INDEX(Database_Prop!$B$2:$B$1498,SMALL(IF(Database_Prop!$A$2:$A$1498=AK$129,ROW(Database_Prop!$B$2:$B$1498)-ROW(Database_Prop!$B$2)+1),ROWS(Database_Prop!H$2:'Database_Prop'!H42))),\"\")","v":""},{"$f":"IFERROR(INDEX(Database_Prop!$B$2:$B$1498,SMALL(IF(Database_Prop!$A$2:$A$1498=AL$129,ROW(Database_Prop!$B$2:$B$1498)-ROW(Database_Prop!$B$2)+1),ROWS(Database_Prop!I$2:'Database_Prop'!I42))),\"\")","v":""},{"$f":"IFERROR(INDEX(Database_Prop!$B$2:$B$1498,SMALL(IF(Database_Prop!$A$2:$A$1498=AM$129,ROW(Database_Prop!$B$2:$B$1498)-ROW(Database_Prop!$B$2)+1),ROWS(Database_Prop!J$2:'Database_Prop'!J42))),\"\")","v":""},{"$f":"IFERROR(INDEX(Database_Prop!$B$2:$B$1498,SMALL(IF(Database_Prop!$A$2:$A$1498=AN$129,ROW(Database_Prop!$B$2:$B$1498)-ROW(Database_Prop!$B$2)+1),ROWS(Database_Prop!K$2:'Database_Prop'!K42))),\"\")","v":""},{"$f":"IFERROR(INDEX(Database_Prop!$B$2:$B$1498,SMALL(IF(Database_Prop!$A$2:$A$1498=AO$129,ROW(Database_Prop!$B$2:$B$1498)-ROW(Database_Prop!$B$2)+1),ROWS(Database_Prop!L$2:'Database_Prop'!L42))),\"\")","v":""},{"$f":"IFERROR(INDEX(Database_Prop!$B$2:$B$1498,SMALL(IF(Database_Prop!$A$2:$A$1498=AP$129,ROW(Database_Prop!$B$2:$B$1498)-ROW(Database_Prop!$B$2)+1),ROWS(Database_Prop!M$2:'Database_Prop'!M42))),\"\")","v":""},{"$f":"IFERROR(INDEX(Database_Prop!$B$2:$B$1498,SMALL(IF(Database_Prop!$A$2:$A$1498=AQ$129,ROW(Database_Prop!$B$2:$B$1498)-ROW(Database_Prop!$B$2)+1),ROWS(Database_Prop!N$2:'Database_Prop'!N42))),\"\")","v":""},{"$f":"IFERROR(INDEX(Database_Prop!$B$2:$B$1498,SMALL(IF(Database_Prop!$A$2:$A$1498=AR$129,ROW(Database_Prop!$B$2:$B$1498)-ROW(Database_Prop!$B$2)+1),ROWS(Database_Prop!O$2:'Database_Prop'!O42))),\"\")","v":""},{"$f":"IFERROR(INDEX(Database_Prop!$B$2:$B$1498,SMALL(IF(Database_Prop!$A$2:$A$1498=AS$129,ROW(Database_Prop!$B$2:$B$1498)-ROW(Database_Prop!$B$2)+1),ROWS(Database_Prop!P$2:'Database_Prop'!P42))),\"\")","v":""},{"$f":"IFERROR(INDEX(Database_Prop!$B$2:$B$1498,SMALL(IF(Database_Prop!$A$2:$A$1498=AT$129,ROW(Database_Prop!$B$2:$B$1498)-ROW(Database_Prop!$B$2)+1),ROWS(Database_Prop!Q$2:'Database_Prop'!Q42))),\"\")","v":""},{"$f":"IFERROR(INDEX(Database_Prop!$B$2:$B$1498,SMALL(IF(Database_Prop!$A$2:$A$1498=AU$129,ROW(Database_Prop!$B$2:$B$1498)-ROW(Database_Prop!$B$2)+1),ROWS(Database_Prop!R$2:'Database_Prop'!R42))),\"\")","v":""},{"$f":"IFERROR(INDEX(Database_Prop!$B$2:$B$1498,SMALL(IF(Database_Prop!$A$2:$A$1498=AV$129,ROW(Database_Prop!$B$2:$B$1498)-ROW(Database_Prop!$B$2)+1),ROWS(Database_Prop!S$2:'Database_Prop'!S42))),\"\")","v":""},{"$f":"IFERROR(INDEX(Database_Prop!$B$2:$B$1498,SMALL(IF(Database_Prop!$A$2:$A$1498=AW$129,ROW(Database_Prop!$B$2:$B$1498)-ROW(Database_Prop!$B$2)+1),ROWS(Database_Prop!T$2:'Database_Prop'!T42))),\"\")","v":""},{"$f":"IFERROR(INDEX(Database_Prop!$B$2:$B$1498,SMALL(IF(Database_Prop!$A$2:$A$1498=AX$129,ROW(Database_Prop!$B$2:$B$1498)-ROW(Database_Prop!$B$2)+1),ROWS(Database_Prop!U$2:'Database_Prop'!U42))),\"\")","v":""},{"$f":"IFERROR(INDEX(Database_Prop!$B$2:$B$1498,SMALL(IF(Database_Prop!$A$2:$A$1498=AY$129,ROW(Database_Prop!$B$2:$B$1498)-ROW(Database_Prop!$B$2)+1),ROWS(Database_Prop!V$2:'Database_Prop'!V42))),\"\")","v":""},{"$f":"IFERROR(INDEX(Database_Prop!$B$2:$B$1498,SMALL(IF(Database_Prop!$A$2:$A$1498=AZ$129,ROW(Database_Prop!$B$2:$B$1498)-ROW(Database_Prop!$B$2)+1),ROWS(Database_Prop!W$2:'Database_Prop'!W42))),\"\")","v":""},{"$f":"IFERROR(INDEX(Database_Prop!$B$2:$B$1498,SMALL(IF(Database_Prop!$A$2:$A$1498=BA$129,ROW(Database_Prop!$B$2:$B$1498)-ROW(Database_Prop!$B$2)+1),ROWS(Database_Prop!X$2:'Database_Prop'!X42))),\"\")","v":""},{"$f":"IFERROR(INDEX(Database_Prop!$B$2:$B$1498,SMALL(IF(Database_Prop!$A$2:$A$1498=BB$129,ROW(Database_Prop!$B$2:$B$1498)-ROW(Database_Prop!$B$2)+1),ROWS(Database_Prop!Y$2:'Database_Prop'!Y42))),\"\")","v":""},{"$f":"IFERROR(INDEX(Database_Prop!$B$2:$B$1498,SMALL(IF(Database_Prop!$A$2:$A$1498=BC$129,ROW(Database_Prop!$B$2:$B$1498)-ROW(Database_Prop!$B$2)+1),ROWS(Database_Prop!Z$2:'Database_Prop'!Z42))),\"\")","v":""},null,"Channel Islands","Western Europe","FS3",{"$f":"$D$79","v":"Please Select"},{"$f":"$E$79","v":"Please Select"},{"$f":"IFERROR(IF($BH172=title192,VLOOKUP($BH172&\" \"&$BI172,Database_Prop!$C:$G,2,FALSE),TEXT(VLOOKUP($BH172&\" \"&$BI172,Database_Prop!$C:$G,2,FALSE),\"0%\")),0)","v":0},{"$f":"IFERROR(VLOOKUP($BH172&\" \"&$BI172,Database_Prop!$C:$G,5,FALSE),0)","v":0},{"$f":"IFERROR(VLOOKUP($BH172&\" \"&$BI172,Database_Prop!$C:$G,3,FALSE),0)","v":0},{"$f":"IFERROR(VLOOKUP($BH172&\" \"&$BI172,Database_Prop!$C:$G,4,FALSE),0)","v":0},{"$f":"IFERROR(INDIRECT(\"PRICE_\"&$BG172&\"_\"&BI$166&$BN$126),0)","v":0}]
[null,null,null,null,null,null,null,null,null,null,null,null,null,null,null,null,null,null,null,null,null,null,null,null,null,null,null,null,null,null,42,{"$f":"IFERROR(INDEX(Database_Prop!$B$2:$B$1498,SMALL(IF(Database_Prop!$A$2:$A$1498=AF$129,ROW(Database_Prop!$B$2:$B$1498)-ROW(Database_Prop!$B$2)+1),ROWS(Database_Prop!C$2:'Database_Prop'!C43))),\"\")","v":""},{"$f":"IFERROR(INDEX(Database_Prop!$B$2:$B$1498,SMALL(IF(Database_Prop!$A$2:$A$1498=AG$129,ROW(Database_Prop!$B$2:$B$1498)-ROW(Database_Prop!$B$2)+1),ROWS(Database_Prop!D$2:'Database_Prop'!D43))),\"\")","v":""},{"$f":"IFERROR(INDEX(Database_Prop!$B$2:$B$1498,SMALL(IF(Database_Prop!$A$2:$A$1498=AH$129,ROW(Database_Prop!$B$2:$B$1498)-ROW(Database_Prop!$B$2)+1),ROWS(Database_Prop!E$2:'Database_Prop'!E43))),\"\")","v":""},{"$f":"IFERROR(INDEX(Database_Prop!$B$2:$B$1498,SMALL(IF(Database_Prop!$A$2:$A$1498=AI$129,ROW(Database_Prop!$B$2:$B$1498)-ROW(Database_Prop!$B$2)+1),ROWS(Database_Prop!F$2:'Database_Prop'!F43))),\"\")","v":""},{"$f":"IFERROR(INDEX(Database_Prop!$B$2:$B$1498,SMALL(IF(Database_Prop!$A$2:$A$1498=AJ$129,ROW(Database_Prop!$B$2:$B$1498)-ROW(Database_Prop!$B$2)+1),ROWS(Database_Prop!G$2:'Database_Prop'!G43))),\"\")","v":""},{"$f":"IFERROR(INDEX(Database_Prop!$B$2:$B$1498,SMALL(IF(Database_Prop!$A$2:$A$1498=AK$129,ROW(Database_Prop!$B$2:$B$1498)-ROW(Database_Prop!$B$2)+1),ROWS(Database_Prop!H$2:'Database_Prop'!H43))),\"\")","v":""},{"$f":"IFERROR(INDEX(Database_Prop!$B$2:$B$1498,SMALL(IF(Database_Prop!$A$2:$A$1498=AL$129,ROW(Database_Prop!$B$2:$B$1498)-ROW(Database_Prop!$B$2)+1),ROWS(Database_Prop!I$2:'Database_Prop'!I43))),\"\")","v":""},{"$f":"IFERROR(INDEX(Database_Prop!$B$2:$B$1498,SMALL(IF(Database_Prop!$A$2:$A$1498=AM$129,ROW(Database_Prop!$B$2:$B$1498)-ROW(Database_Prop!$B$2)+1),ROWS(Database_Prop!J$2:'Database_Prop'!J43))),\"\")","v":""},{"$f":"IFERROR(INDEX(Database_Prop!$B$2:$B$1498,SMALL(IF(Database_Prop!$A$2:$A$1498=AN$129,ROW(Database_Prop!$B$2:$B$1498)-ROW(Database_Prop!$B$2)+1),ROWS(Database_Prop!K$2:'Database_Prop'!K43))),\"\")","v":""},{"$f":"IFERROR(INDEX(Database_Prop!$B$2:$B$1498,SMALL(IF(Database_Prop!$A$2:$A$1498=AO$129,ROW(Database_Prop!$B$2:$B$1498)-ROW(Database_Prop!$B$2)+1),ROWS(Database_Prop!L$2:'Database_Prop'!L43))),\"\")","v":""},{"$f":"IFERROR(INDEX(Database_Prop!$B$2:$B$1498,SMALL(IF(Database_Prop!$A$2:$A$1498=AP$129,ROW(Database_Prop!$B$2:$B$1498)-ROW(Database_Prop!$B$2)+1),ROWS(Database_Prop!M$2:'Database_Prop'!M43))),\"\")","v":""},{"$f":"IFERROR(INDEX(Database_Prop!$B$2:$B$1498,SMALL(IF(Database_Prop!$A$2:$A$1498=AQ$129,ROW(Database_Prop!$B$2:$B$1498)-ROW(Database_Prop!$B$2)+1),ROWS(Database_Prop!N$2:'Database_Prop'!N43))),\"\")","v":""},{"$f":"IFERROR(INDEX(Database_Prop!$B$2:$B$1498,SMALL(IF(Database_Prop!$A$2:$A$1498=AR$129,ROW(Database_Prop!$B$2:$B$1498)-ROW(Database_Prop!$B$2)+1),ROWS(Database_Prop!O$2:'Database_Prop'!O43))),\"\")","v":""},{"$f":"IFERROR(INDEX(Database_Prop!$B$2:$B$1498,SMALL(IF(Database_Prop!$A$2:$A$1498=AS$129,ROW(Database_Prop!$B$2:$B$1498)-ROW(Database_Prop!$B$2)+1),ROWS(Database_Prop!P$2:'Database_Prop'!P43))),\"\")","v":""},{"$f":"IFERROR(INDEX(Database_Prop!$B$2:$B$1498,SMALL(IF(Database_Prop!$A$2:$A$1498=AT$129,ROW(Database_Prop!$B$2:$B$1498)-ROW(Database_Prop!$B$2)+1),ROWS(Database_Prop!Q$2:'Database_Prop'!Q43))),\"\")","v":""},{"$f":"IFERROR(INDEX(Database_Prop!$B$2:$B$1498,SMALL(IF(Database_Prop!$A$2:$A$1498=AU$129,ROW(Database_Prop!$B$2:$B$1498)-ROW(Database_Prop!$B$2)+1),ROWS(Database_Prop!R$2:'Database_Prop'!R43))),\"\")","v":""},{"$f":"IFERROR(INDEX(Database_Prop!$B$2:$B$1498,SMALL(IF(Database_Prop!$A$2:$A$1498=AV$129,ROW(Database_Prop!$B$2:$B$1498)-ROW(Database_Prop!$B$2)+1),ROWS(Database_Prop!S$2:'Database_Prop'!S43))),\"\")","v":""},{"$f":"IFERROR(INDEX(Database_Prop!$B$2:$B$1498,SMALL(IF(Database_Prop!$A$2:$A$1498=AW$129,ROW(Database_Prop!$B$2:$B$1498)-ROW(Database_Prop!$B$2)+1),ROWS(Database_Prop!T$2:'Database_Prop'!T43))),\"\")","v":""},{"$f":"IFERROR(INDEX(Database_Prop!$B$2:$B$1498,SMALL(IF(Database_Prop!$A$2:$A$1498=AX$129,ROW(Database_Prop!$B$2:$B$1498)-ROW(Database_Prop!$B$2)+1),ROWS(Database_Prop!U$2:'Database_Prop'!U43))),\"\")","v":""},{"$f":"IFERROR(INDEX(Database_Prop!$B$2:$B$1498,SMALL(IF(Database_Prop!$A$2:$A$1498=AY$129,ROW(Database_Prop!$B$2:$B$1498)-ROW(Database_Prop!$B$2)+1),ROWS(Database_Prop!V$2:'Database_Prop'!V43))),\"\")","v":""},{"$f":"IFERROR(INDEX(Database_Prop!$B$2:$B$1498,SMALL(IF(Database_Prop!$A$2:$A$1498=AZ$129,ROW(Database_Prop!$B$2:$B$1498)-ROW(Database_Prop!$B$2)+1),ROWS(Database_Prop!W$2:'Database_Prop'!W43))),\"\")","v":""},{"$f":"IFERROR(INDEX(Database_Prop!$B$2:$B$1498,SMALL(IF(Database_Prop!$A$2:$A$1498=BA$129,ROW(Database_Prop!$B$2:$B$1498)-ROW(Database_Prop!$B$2)+1),ROWS(Database_Prop!X$2:'Database_Prop'!X43))),\"\")","v":""},{"$f":"IFERROR(INDEX(Database_Prop!$B$2:$B$1498,SMALL(IF(Database_Prop!$A$2:$A$1498=BB$129,ROW(Database_Prop!$B$2:$B$1498)-ROW(Database_Prop!$B$2)+1),ROWS(Database_Prop!Y$2:'Database_Prop'!Y43))),\"\")","v":""},{"$f":"IFERROR(INDEX(Database_Prop!$B$2:$B$1498,SMALL(IF(Database_Prop!$A$2:$A$1498=BC$129,ROW(Database_Prop!$B$2:$B$1498)-ROW(Database_Prop!$B$2)+1),ROWS(Database_Prop!Z$2:'Database_Prop'!Z43))),\"\")","v":""},null,"Chile","Latin America",null,{"$f":"title108","v":"Main Category"},{"$f":"title109","v":"Feedstock"},{"$f":"G$26","v":"VS (%)"},{"$f":"H$26","v":"TS (%)"},{"$f":"I$26","v":"BMP (m3/t VS)"},"CH4 (%)","Collection Price"]
[null,null,null,null,null,null,null,null,null,null,null,null,null,null,null,null,null,null,null,null,null,null,null,null,null,null,null,null,null,null,43,{"$f":"IFERROR(INDEX(Database_Prop!$B$2:$B$1498,SMALL(IF(Database_Prop!$A$2:$A$1498=AF$129,ROW(Database_Prop!$B$2:$B$1498)-ROW(Database_Prop!$B$2)+1),ROWS(Database_Prop!C$2:'Database_Prop'!C44))),\"\")","v":""},{"$f":"IFERROR(INDEX(Database_Prop!$B$2:$B$1498,SMALL(IF(Database_Prop!$A$2:$A$1498=AG$129,ROW(Database_Prop!$B$2:$B$1498)-ROW(Database_Prop!$B$2)+1),ROWS(Database_Prop!D$2:'Database_Prop'!D44))),\"\")","v":""},{"$f":"IFERROR(INDEX(Database_Prop!$B$2:$B$1498,SMALL(IF(Database_Prop!$A$2:$A$1498=AH$129,ROW(Database_Prop!$B$2:$B$1498)-ROW(Database_Prop!$B$2)+1),ROWS(Database_Prop!E$2:'Database_Prop'!E44))),\"\")","v":""},{"$f":"IFERROR(INDEX(Database_Prop!$B$2:$B$1498,SMALL(IF(Database_Prop!$A$2:$A$1498=AI$129,ROW(Database_Prop!$B$2:$B$1498)-ROW(Database_Prop!$B$2)+1),ROWS(Database_Prop!F$2:'Database_Prop'!F44))),\"\")","v":""},{"$f":"IFERROR(INDEX(Database_Prop!$B$2:$B$1498,SMALL(IF(Database_Prop!$A$2:$A$1498=AJ$129,ROW(Database_Prop!$B$2:$B$1498)-ROW(Database_Prop!$B$2)+1),ROWS(Database_Prop!G$2:'Database_Prop'!G44))),\"\")","v":""},{"$f":"IFERROR(INDEX(Database_Prop!$B$2:$B$1498,SMALL(IF(Database_Prop!$A$2:$A$1498=AK$129,ROW(Database_Prop!$B$2:$B$1498)-ROW(Database_Prop!$B$2)+1),ROWS(Database_Prop!H$2:'Database_Prop'!H44))),\"\")","v":""},{"$f":"IFERROR(INDEX(Database_Prop!$B$2:$B$1498,SMALL(IF(Database_Prop!$A$2:$A$1498=AL$129,ROW(Database_Prop!$B$2:$B$1498)-ROW(Database_Prop!$B$2)+1),ROWS(Database_Prop!I$2:'Database_Prop'!I44))),\"\")","v":""},{"$f":"IFERROR(INDEX(Database_Prop!$B$2:$B$1498,SMALL(IF(Database_Prop!$A$2:$A$1498=AM$129,ROW(Database_Prop!$B$2:$B$1498)-ROW(Database_Prop!$B$2)+1),ROWS(Database_Prop!J$2:'Database_Prop'!J44))),\"\")","v":""},{"$f":"IFERROR(INDEX(Database_Prop!$B$2:$B$1498,SMALL(IF(Database_Prop!$A$2:$A$1498=AN$129,ROW(Database_Prop!$B$2:$B$1498)-ROW(Database_Prop!$B$2)+1),ROWS(Database_Prop!K$2:'Database_Prop'!K44))),\"\")","v":""},{"$f":"IFERROR(INDEX(Database_Prop!$B$2:$B$1498,SMALL(IF(Database_Prop!$A$2:$A$1498=AO$129,ROW(Database_Prop!$B$2:$B$1498)-ROW(Database_Prop!$B$2)+1),ROWS(Database_Prop!L$2:'Database_Prop'!L44))),\"\")","v":""},{"$f":"IFERROR(INDEX(Database_Prop!$B$2:$B$1498,SMALL(IF(Database_Prop!$A$2:$A$1498=AP$129,ROW(Database_Prop!$B$2:$B$1498)-ROW(Database_Prop!$B$2)+1),ROWS(Database_Prop!M$2:'Database_Prop'!M44))),\"\")","v":""},{"$f":"IFERROR(INDEX(Database_Prop!$B$2:$B$1498,SMALL(IF(Database_Prop!$A$2:$A$1498=AQ$129,ROW(Database_Prop!$B$2:$B$1498)-ROW(Database_Prop!$B$2)+1),ROWS(Database_Prop!N$2:'Database_Prop'!N44))),\"\")","v":""},{"$f":"IFERROR(INDEX(Database_Prop!$B$2:$B$1498,SMALL(IF(Database_Prop!$A$2:$A$1498=AR$129,ROW(Database_Prop!$B$2:$B$1498)-ROW(Database_Prop!$B$2)+1),ROWS(Database_Prop!O$2:'Database_Prop'!O44))),\"\")","v":""},{"$f":"IFERROR(INDEX(Database_Prop!$B$2:$B$1498,SMALL(IF(Database_Prop!$A$2:$A$1498=AS$129,ROW(Database_Prop!$B$2:$B$1498)-ROW(Database_Prop!$B$2)+1),ROWS(Database_Prop!P$2:'Database_Prop'!P44))),\"\")","v":""},{"$f":"IFERROR(INDEX(Database_Prop!$B$2:$B$1498,SMALL(IF(Database_Prop!$A$2:$A$1498=AT$129,ROW(Database_Prop!$B$2:$B$1498)-ROW(Database_Prop!$B$2)+1),ROWS(Database_Prop!Q$2:'Database_Prop'!Q44))),\"\")","v":""},{"$f":"IFERROR(INDEX(Database_Prop!$B$2:$B$1498,SMALL(IF(Database_Prop!$A$2:$A$1498=AU$129,ROW(Database_Prop!$B$2:$B$1498)-ROW(Database_Prop!$B$2)+1),ROWS(Database_Prop!R$2:'Database_Prop'!R44))),\"\")","v":""},{"$f":"IFERROR(INDEX(Database_Prop!$B$2:$B$1498,SMALL(IF(Database_Prop!$A$2:$A$1498=AV$129,ROW(Database_Prop!$B$2:$B$1498)-ROW(Database_Prop!$B$2)+1),ROWS(Database_Prop!S$2:'Database_Prop'!S44))),\"\")","v":""},{"$f":"IFERROR(INDEX(Database_Prop!$B$2:$B$1498,SMALL(IF(Database_Prop!$A$2:$A$1498=AW$129,ROW(Database_Prop!$B$2:$B$1498)-ROW(Database_Prop!$B$2)+1),ROWS(Database_Prop!T$2:'Database_Prop'!T44))),\"\")","v":""},{"$f":"IFERROR(INDEX(Database_Prop!$B$2:$B$1498,SMALL(IF(Database_Prop!$A$2:$A$1498=AX$129,ROW(Database_Prop!$B$2:$B$1498)-ROW(Database_Prop!$B$2)+1),ROWS(Database_Prop!U$2:'Database_Prop'!U44))),\"\")","v":""},{"$f":"IFERROR(INDEX(Database_Prop!$B$2:$B$1498,SMALL(IF(Database_Prop!$A$2:$A$1498=AY$129,ROW(Database_Prop!$B$2:$B$1498)-ROW(Database_Prop!$B$2)+1),ROWS(Database_Prop!V$2:'Database_Prop'!V44))),\"\")","v":""},{"$f":"IFERROR(INDEX(Database_Prop!$B$2:$B$1498,SMALL(IF(Database_Prop!$A$2:$A$1498=AZ$129,ROW(Database_Prop!$B$2:$B$1498)-ROW(Database_Prop!$B$2)+1),ROWS(Database_Prop!W$2:'Database_Prop'!W44))),\"\")","v":""},{"$f":"IFERROR(INDEX(Database_Prop!$B$2:$B$1498,SMALL(IF(Database_Prop!$A$2:$A$1498=BA$129,ROW(Database_Prop!$B$2:$B$1498)-ROW(Database_Prop!$B$2)+1),ROWS(Database_Prop!X$2:'Database_Prop'!X44))),\"\")","v":""},{"$f":"IFERROR(INDEX(Database_Prop!$B$2:$B$1498,SMALL(IF(Database_Prop!$A$2:$A$1498=BB$129,ROW(Database_Prop!$B$2:$B$1498)-ROW(Database_Prop!$B$2)+1),ROWS(Database_Prop!Y$2:'Database_Prop'!Y44))),\"\")","v":""},{"$f":"IFERROR(INDEX(Database_Prop!$B$2:$B$1498,SMALL(IF(Database_Prop!$A$2:$A$1498=BC$129,ROW(Database_Prop!$B$2:$B$1498)-ROW(Database_Prop!$B$2)+1),ROWS(Database_Prop!Z$2:'Database_Prop'!Z44))),\"\")","v":""},null,"China","Asia","FS4",{"$f":"$D$81","v":"Please Select"},{"$f":"$E$81","v":"Please Select"},{"$f":"IFERROR(IF($BH174=title192,VLOOKUP($BH174&\" \"&$BI174,Database_Prop!$C:$G,2,FALSE),TEXT(VLOOKUP($BH174&\" \"&$BI174,Database_Prop!$C:$G,2,FALSE),\"0%\")),0)","v":0},{"$f":"IFERROR(VLOOKUP($BH174&\" \"&$BI174,Database_Prop!$C:$G,5,FALSE),0)","v":0},{"$f":"IFERROR(VLOOKUP($BH174&\" \"&$BI174,Database_Prop!$C:$G,3,FALSE),0)","v":0},{"$f":"IFERROR(VLOOKUP($BH174&\" \"&$BI174,Database_Prop!$C:$G,4,FALSE),0)","v":0},{"$f":"IFERROR(INDIRECT(\"PRICE_\"&$BG174&\"_\"&BI$166&$BN$126),0)","v":0}]
[null,null,null,null,null,null,null,null,null,null,null,null,null,null,null,null,null,null,null,null,null,null,null,null,null,null,null,null,null,null,44,{"$f":"IFERROR(INDEX(Database_Prop!$B$2:$B$1498,SMALL(IF(Database_Prop!$A$2:$A$1498=AF$129,ROW(Database_Prop!$B$2:$B$1498)-ROW(Database_Prop!$B$2)+1),ROWS(Database_Prop!C$2:'Database_Prop'!C45))),\"\")","v":""},{"$f":"IFERROR(INDEX(Database_Prop!$B$2:$B$1498,SMALL(IF(Database_Prop!$A$2:$A$1498=AG$129,ROW(Database_Prop!$B$2:$B$1498)-ROW(Database_Prop!$B$2)+1),ROWS(Database_Prop!D$2:'Database_Prop'!D45))),\"\")","v":""},{"$f":"IFERROR(INDEX(Database_Prop!$B$2:$B$1498,SMALL(IF(Database_Prop!$A$2:$A$1498=AH$129,ROW(Database_Prop!$B$2:$B$1498)-ROW(Database_Prop!$B$2)+1),ROWS(Database_Prop!E$2:'Database_Prop'!E45))),\"\")","v":""},{"$f":"IFERROR(INDEX(Database_Prop!$B$2:$B$1498,SMALL(IF(Database_Prop!$A$2:$A$1498=AI$129,ROW(Database_Prop!$B$2:$B$1498)-ROW(Database_Prop!$B$2)+1),ROWS(Database_Prop!F$2:'Database_Prop'!F45))),\"\")","v":""},{"$f":"IFERROR(INDEX(Database_Prop!$B$2:$B$1498,SMALL(IF(Database_Prop!$A$2:$A$1498=AJ$129,ROW(Database_Prop!$B$2:$B$1498)-ROW(Database_Prop!$B$2)+1),ROWS(Database_Prop!G$2:'Database_Prop'!G45))),\"\")","v":""},{"$f":"IFERROR(INDEX(Database_Prop!$B$2:$B$1498,SMALL(IF(Database_Prop!$A$2:$A$1498=AK$129,ROW(Database_Prop!$B$2:$B$1498)-ROW(Database_Prop!$B$2)+1),ROWS(Database_Prop!H$2:'Database_Prop'!H45))),\"\")","v":""},{"$f":"IFERROR(INDEX(Database_Prop!$B$2:$B$1498,SMALL(IF(Database_Prop!$A$2:$A$1498=AL$129,ROW(Database_Prop!$B$2:$B$1498)-ROW(Database_Prop!$B$2)+1),ROWS(Database_Prop!I$2:'Database_Prop'!I45))),\"\")","v":""},{"$f":"IFERROR(INDEX(Database_Prop!$B$2:$B$1498,SMALL(IF(Database_Prop!$A$2:$A$1498=AM$129,ROW(Database_Prop!$B$2:$B$1498)-ROW(Database_Prop!$B$2)+1),ROWS(Database_Prop!J$2:'Database_Prop'!J45))),\"\")","v":""},{"$f":"IFERROR(INDEX(Database_Prop!$B$2:$B$1498,SMALL(IF(Database_Prop!$A$2:$A$1498=AN$129,ROW(Database_Prop!$B$2:$B$1498)-ROW(Database_Prop!$B$2)+1),ROWS(Database_Prop!K$2:'Database_Prop'!K45))),\"\")","v":""},{"$f":"IFERROR(INDEX(Database_Prop!$B$2:$B$1498,SMALL(IF(Database_Prop!$A$2:$A$1498=AO$129,ROW(Database_Prop!$B$2:$B$1498)-ROW(Database_Prop!$B$2)+1),ROWS(Database_Prop!L$2:'Database_Prop'!L45))),\"\")","v":""},{"$f":"IFERROR(INDEX(Database_Prop!$B$2:$B$1498,SMALL(IF(Database_Prop!$A$2:$A$1498=AP$129,ROW(Database_Prop!$B$2:$B$1498)-ROW(Database_Prop!$B$2)+1),ROWS(Database_Prop!M$2:'Database_Prop'!M45))),\"\")","v":""},{"$f":"IFERROR(INDEX(Database_Prop!$B$2:$B$1498,SMALL(IF(Database_Prop!$A$2:$A$1498=AQ$129,ROW(Database_Prop!$B$2:$B$1498)-ROW(Database_Prop!$B$2)+1),ROWS(Database_Prop!N$2:'Database_Prop'!N45))),\"\")","v":""},{"$f":"IFERROR(INDEX(Database_Prop!$B$2:$B$1498,SMALL(IF(Database_Prop!$A$2:$A$1498=AR$129,ROW(Database_Prop!$B$2:$B$1498)-ROW(Database_Prop!$B$2)+1),ROWS(Database_Prop!O$2:'Database_Prop'!O45))),\"\")","v":""},{"$f":"IFERROR(INDEX(Database_Prop!$B$2:$B$1498,SMALL(IF(Database_Prop!$A$2:$A$1498=AS$129,ROW(Database_Prop!$B$2:$B$1498)-ROW(Database_Prop!$B$2)+1),ROWS(Database_Prop!P$2:'Database_Prop'!P45))),\"\")","v":""},{"$f":"IFERROR(INDEX(Database_Prop!$B$2:$B$1498,SMALL(IF(Database_Prop!$A$2:$A$1498=AT$129,ROW(Database_Prop!$B$2:$B$1498)-ROW(Database_Prop!$B$2)+1),ROWS(Database_Prop!Q$2:'Database_Prop'!Q45))),\"\")","v":""},{"$f":"IFERROR(INDEX(Database_Prop!$B$2:$B$1498,SMALL(IF(Database_Prop!$A$2:$A$1498=AU$129,ROW(Database_Prop!$B$2:$B$1498)-ROW(Database_Prop!$B$2)+1),ROWS(Database_Prop!R$2:'Database_Prop'!R45))),\"\")","v":""},{"$f":"IFERROR(INDEX(Database_Prop!$B$2:$B$1498,SMALL(IF(Database_Prop!$A$2:$A$1498=AV$129,ROW(Database_Prop!$B$2:$B$1498)-ROW(Database_Prop!$B$2)+1),ROWS(Database_Prop!S$2:'Database_Prop'!S45))),\"\")","v":""},{"$f":"IFERROR(INDEX(Database_Prop!$B$2:$B$1498,SMALL(IF(Database_Prop!$A$2:$A$1498=AW$129,ROW(Database_Prop!$B$2:$B$1498)-ROW(Database_Prop!$B$2)+1),ROWS(Database_Prop!T$2:'Database_Prop'!T45))),\"\")","v":""},{"$f":"IFERROR(INDEX(Database_Prop!$B$2:$B$1498,SMALL(IF(Database_Prop!$A$2:$A$1498=AX$129,ROW(Database_Prop!$B$2:$B$1498)-ROW(Database_Prop!$B$2)+1),ROWS(Database_Prop!U$2:'Database_Prop'!U45))),\"\")","v":""},{"$f":"IFERROR(INDEX(Database_Prop!$B$2:$B$1498,SMALL(IF(Database_Prop!$A$2:$A$1498=AY$129,ROW(Database_Prop!$B$2:$B$1498)-ROW(Database_Prop!$B$2)+1),ROWS(Database_Prop!V$2:'Database_Prop'!V45))),\"\")","v":""},{"$f":"IFERROR(INDEX(Database_Prop!$B$2:$B$1498,SMALL(IF(Database_Prop!$A$2:$A$1498=AZ$129,ROW(Database_Prop!$B$2:$B$1498)-ROW(Database_Prop!$B$2)+1),ROWS(Database_Prop!W$2:'Database_Prop'!W45))),\"\")","v":""},{"$f":"IFERROR(INDEX(Database_Prop!$B$2:$B$1498,SMALL(IF(Database_Prop!$A$2:$A$1498=BA$129,ROW(Database_Prop!$B$2:$B$1498)-ROW(Database_Prop!$B$2)+1),ROWS(Database_Prop!X$2:'Database_Prop'!X45))),\"\")","v":""},{"$f":"IFERROR(INDEX(Database_Prop!$B$2:$B$1498,SMALL(IF(Database_Prop!$A$2:$A$1498=BB$129,ROW(Database_Prop!$B$2:$B$1498)-ROW(Database_Prop!$B$2)+1),ROWS(Database_Prop!Y$2:'Database_Prop'!Y45))),\"\")","v":""},{"$f":"IFERROR(INDEX(Database_Prop!$B$2:$B$1498,SMALL(IF(Database_Prop!$A$2:$A$1498=BC$129,ROW(Database_Prop!$B$2:$B$1498)-ROW(Database_Prop!$B$2)+1),ROWS(Database_Prop!Z$2:'Database_Prop'!Z45))),\"\")","v":""},null,"China, Hong Kong Special Administrative Region","Asia",null,{"$f":"title108","v":"Main Category"},{"$f":"title109","v":"Feedstock"},{"$f":"G$28","v":"VS (%)"},{"$f":"H$28","v":"TS (%)"},{"$f":"I$28","v":"BMP (m3/t VS)"},"CH4 (%)","Collection Price"]
[null,null,null,null,null,null,null,null,null,null,null,null,null,null,null,null,null,null,null,null,null,null,null,null,null,null,null,null,null,null,45,{"$f":"IFERROR(INDEX(Database_Prop!$B$2:$B$1498,SMALL(IF(Database_Prop!$A$2:$A$1498=AF$129,ROW(Database_Prop!$B$2:$B$1498)-ROW(Database_Prop!$B$2)+1),ROWS(Database_Prop!C$2:'Database_Prop'!C46))),\"\")","v":""},{"$f":"IFERROR(INDEX(Database_Prop!$B$2:$B$1498,SMALL(IF(Database_Prop!$A$2:$A$1498=AG$129,ROW(Database_Prop!$B$2:$B$1498)-ROW(Database_Prop!$B$2)+1),ROWS(Database_Prop!D$2:'Database_Prop'!D46))),\"\")","v":""},{"$f":"IFERROR(INDEX(Database_Prop!$B$2:$B$1498,SMALL(IF(Database_Prop!$A$2:$A$1498=AH$129,ROW(Database_Prop!$B$2:$B$1498)-ROW(Database_Prop!$B$2)+1),ROWS(Database_Prop!E$2:'Database_Prop'!E46))),\"\")","v":""},{"$f":"IFERROR(INDEX(Database_Prop!$B$2:$B$1498,SMALL(IF(Database_Prop!$A$2:$A$1498=AI$129,ROW(Database_Prop!$B$2:$B$1498)-ROW(Database_Prop!$B$2)+1),ROWS(Database_Prop!F$2:'Database_Prop'!F46))),\"\")","v":""},{"$f":"IFERROR(INDEX(Database_Prop!$B$2:$B$1498,SMALL(IF(Database_Prop!$A$2:$A$1498=AJ$129,ROW(Database_Prop!$B$2:$B$1498)-ROW(Database_Prop!$B$2)+1),ROWS(Database_Prop!G$2:'Database_Prop'!G46))),\"\")","v":""},{"$f":"IFERROR(INDEX(Database_Prop!$B$2:$B$1498,SMALL(IF(Database_Prop!$A$2:$A$1498=AK$129,ROW(Database_Prop!$B$2:$B$1498)-ROW(Database_Prop!$B$2)+1),ROWS(Database_Prop!H$2:'Database_Prop'!H46))),\"\")","v":""},{"$f":"IFERROR(INDEX(Database_Prop!$B$2:$B$1498,SMALL(IF(Database_Prop!$A$2:$A$1498=AL$129,ROW(Database_Prop!$B$2:$B$1498)-ROW(Database_Prop!$B$2)+1),ROWS(Database_Prop!I$2:'Database_Prop'!I46))),\"\")","v":""},{"$f":"IFERROR(INDEX(Database_Prop!$B$2:$B$1498,SMALL(IF(Database_Prop!$A$2:$A$1498=AM$129,ROW(Database_Prop!$B$2:$B$1498)-ROW(Database_Prop!$B$2)+1),ROWS(Database_Prop!J$2:'Database_Prop'!J46))),\"\")","v":""},{"$f":"IFERROR(INDEX(Database_Prop!$B$2:$B$1498,SMALL(IF(Database_Prop!$A$2:$A$1498=AN$129,ROW(Database_Prop!$B$2:$B$1498)-ROW(Database_Prop!$B$2)+1),ROWS(Database_Prop!K$2:'Database_Prop'!K46))),\"\")","v":""},{"$f":"IFERROR(INDEX(Database_Prop!$B$2:$B$1498,SMALL(IF(Database_Prop!$A$2:$A$1498=AO$129,ROW(Database_Prop!$B$2:$B$1498)-ROW(Database_Prop!$B$2)+1),ROWS(Database_Prop!L$2:'Database_Prop'!L46))),\"\")","v":""},{"$f":"IFERROR(INDEX(Database_Prop!$B$2:$B$1498,SMALL(IF(Database_Prop!$A$2:$A$1498=AP$129,ROW(Database_Prop!$B$2:$B$1498)-ROW(Database_Prop!$B$2)+1),ROWS(Database_Prop!M$2:'Database_Prop'!M46))),\"\")","v":""},{"$f":"IFERROR(INDEX(Database_Prop!$B$2:$B$1498,SMALL(IF(Database_Prop!$A$2:$A$1498=AQ$129,ROW(Database_Prop!$B$2:$B$1498)-ROW(Database_Prop!$B$2)+1),ROWS(Database_Prop!N$2:'Database_Prop'!N46))),\"\")","v":""},{"$f":"IFERROR(INDEX(Database_Prop!$B$2:$B$1498,SMALL(IF(Database_Prop!$A$2:$A$1498=AR$129,ROW(Database_Prop!$B$2:$B$1498)-ROW(Database_Prop!$B$2)+1),ROWS(Database_Prop!O$2:'Database_Prop'!O46))),\"\")","v":""},{"$f":"IFERROR(INDEX(Database_Prop!$B$2:$B$1498,SMALL(IF(Database_Prop!$A$2:$A$1498=AS$129,ROW(Database_Prop!$B$2:$B$1498)-ROW(Database_Prop!$B$2)+1),ROWS(Database_Prop!P$2:'Database_Prop'!P46))),\"\")","v":""},{"$f":"IFERROR(INDEX(Database_Prop!$B$2:$B$1498,SMALL(IF(Database_Prop!$A$2:$A$1498=AT$129,ROW(Database_Prop!$B$2:$B$1498)-ROW(Database_Prop!$B$2)+1),ROWS(Database_Prop!Q$2:'Database_Prop'!Q46))),\"\")","v":""},{"$f":"IFERROR(INDEX(Database_Prop!$B$2:$B$1498,SMALL(IF(Database_Prop!$A$2:$A$1498=AU$129,ROW(Database_Prop!$B$2:$B$1498)-ROW(Database_Prop!$B$2)+1),ROWS(Database_Prop!R$2:'Database_Prop'!R46))),\"\")","v":""},{"$f":"IFERROR(INDEX(Database_Prop!$B$2:$B$1498,SMALL(IF(Database_Prop!$A$2:$A$1498=AV$129,ROW(Database_Prop!$B$2:$B$1498)-ROW(Database_Prop!$B$2)+1),ROWS(Database_Prop!S$2:'Database_Prop'!S46))),\"\")","v":""},{"$f":"IFERROR(INDEX(Database_Prop!$B$2:$B$1498,SMALL(IF(Database_Prop!$A$2:$A$1498=AW$129,ROW(Database_Prop!$B$2:$B$1498)-ROW(Database_Prop!$B$2)+1),ROWS(Database_Prop!T$2:'Database_Prop'!T46))),\"\")","v":""},{"$f":"IFERROR(INDEX(Database_Prop!$B$2:$B$1498,SMALL(IF(Database_Prop!$A$2:$A$1498=AX$129,ROW(Database_Prop!$B$2:$B$1498)-ROW(Database_Prop!$B$2)+1),ROWS(Database_Prop!U$2:'Database_Prop'!U46))),\"\")","v":""},{"$f":"IFERROR(INDEX(Database_Prop!$B$2:$B$1498,SMALL(IF(Database_Prop!$A$2:$A$1498=AY$129,ROW(Database_Prop!$B$2:$B$1498)-ROW(Database_Prop!$B$2)+1),ROWS(Database_Prop!V$2:'Database_Prop'!V46))),\"\")","v":""},{"$f":"IFERROR(INDEX(Database_Prop!$B$2:$B$1498,SMALL(IF(Database_Prop!$A$2:$A$1498=AZ$129,ROW(Database_Prop!$B$2:$B$1498)-ROW(Database_Prop!$B$2)+1),ROWS(Database_Prop!W$2:'Database_Prop'!W46))),\"\")","v":""},{"$f":"IFERROR(INDEX(Database_Prop!$B$2:$B$1498,SMALL(IF(Database_Prop!$A$2:$A$1498=BA$129,ROW(Database_Prop!$B$2:$B$1498)-ROW(Database_Prop!$B$2)+1),ROWS(Database_Prop!X$2:'Database_Prop'!X46))),\"\")","v":""},{"$f":"IFERROR(INDEX(Database_Prop!$B$2:$B$1498,SMALL(IF(Database_Prop!$A$2:$A$1498=BB$129,ROW(Database_Prop!$B$2:$B$1498)-ROW(Database_Prop!$B$2)+1),ROWS(Database_Prop!Y$2:'Database_Prop'!Y46))),\"\")","v":""},{"$f":"IFERROR(INDEX(Database_Prop!$B$2:$B$1498,SMALL(IF(Database_Prop!$A$2:$A$1498=BC$129,ROW(Database_Prop!$B$2:$B$1498)-ROW(Database_Prop!$B$2)+1),ROWS(Database_Prop!Z$2:'Database_Prop'!Z46))),\"\")","v":""},null,"China, Macao Special Administrative Region","Asia","FS5",{"$f":"$D$83","v":"Please Select"},{"$f":"$E$83","v":"Please Select"},{"$f":"IFERROR(IF($BH176=title192,VLOOKUP($BH176&\" \"&$BI176,Database_Prop!$C:$G,2,FALSE),TEXT(VLOOKUP($BH176&\" \"&$BI176,Database_Prop!$C:$G,2,FALSE),\"0%\")),0)","v":0},{"$f":"IFERROR(VLOOKUP($BH176&\" \"&$BI176,Database_Prop!$C:$G,5,FALSE),0)","v":0},{"$f":"IFERROR(VLOOKUP($BH176&\" \"&$BI176,Database_Prop!$C:$G,3,FALSE),0)","v":0},{"$f":"IFERROR(VLOOKUP($BH176&\" \"&$BI176,Database_Prop!$C:$G,4,FALSE),0)","v":0},{"$f":"IFERROR(INDIRECT(\"PRICE_\"&$BG176&\"_\"&BI$166&$BN$126),0)","v":0}]
[null,null,null,null,null,null,null,null,null,null,null,null,null,null,null,null,null,null,null,null,null,null,null,null,null,null,null,null,null,null,46,{"$f":"IFERROR(INDEX(Database_Prop!$B$2:$B$1498,SMALL(IF(Database_Prop!$A$2:$A$1498=AF$129,ROW(Database_Prop!$B$2:$B$1498)-ROW(Database_Prop!$B$2)+1),ROWS(Database_Prop!C$2:'Database_Prop'!C47))),\"\")","v":""},{"$f":"IFERROR(INDEX(Database_Prop!$B$2:$B$1498,SMALL(IF(Database_Prop!$A$2:$A$1498=AG$129,ROW(Database_Prop!$B$2:$B$1498)-ROW(Database_Prop!$B$2)+1),ROWS(Database_Prop!D$2:'Database_Prop'!D47))),\"\")","v":""},{"$f":"IFERROR(INDEX(Database_Prop!$B$2:$B$1498,SMALL(IF(Database_Prop!$A$2:$A$1498=AH$129,ROW(Database_Prop!$B$2:$B$1498)-ROW(Database_Prop!$B$2)+1),ROWS(Database_Prop!E$2:'Database_Prop'!E47))),\"\")","v":""},{"$f":"IFERROR(INDEX(Database_Prop!$B$2:$B$1498,SMALL(IF(Database_Prop!$A$2:$A$1498=AI$129,ROW(Database_Prop!$B$2:$B$1498)-ROW(Database_Prop!$B$2)+1),ROWS(Database_Prop!F$2:'Database_Prop'!F47))),\"\")","v":""},{"$f":"IFERROR(INDEX(Database_Prop!$B$2:$B$1498,SMALL(IF(Database_Prop!$A$2:$A$1498=AJ$129,ROW(Database_Prop!$B$2:$B$1498)-ROW(Database_Prop!$B$2)+1),ROWS(Database_Prop!G$2:'Database_Prop'!G47))),\"\")","v":""},{"$f":"IFERROR(INDEX(Database_Prop!$B$2:$B$1498,SMALL(IF(Database_Prop!$A$2:$A$1498=AK$129,ROW(Database_Prop!$B$2:$B$1498)-ROW(Database_Prop!$B$2)+1),ROWS(Database_Prop!H$2:'Database_Prop'!H47))),\"\")","v":""},{"$f":"IFERROR(INDEX(Database_Prop!$B$2:$B$1498,SMALL(IF(Database_Prop!$A$2:$A$1498=AL$129,ROW(Database_Prop!$B$2:$B$1498)-ROW(Database_Prop!$B$2)+1),ROWS(Database_Prop!I$2:'Database_Prop'!I47))),\"\")","v":""},{"$f":"IFERROR(INDEX(Database_Prop!$B$2:$B$1498,SMALL(IF(Database_Prop!$A$2:$A$1498=AM$129,ROW(Database_Prop!$B$2:$B$1498)-ROW(Database_Prop!$B$2)+1),ROWS(Database_Prop!J$2:'Database_Prop'!J47))),\"\")","v":""},{"$f":"IFERROR(INDEX(Database_Prop!$B$2:$B$1498,SMALL(IF(Database_Prop!$A$2:$A$1498=AN$129,ROW(Database_Prop!$B$2:$B$1498)-ROW(Database_Prop!$B$2)+1),ROWS(Database_Prop!K$2:'Database_Prop'!K47))),\"\")","v":""},{"$f":"IFERROR(INDEX(Database_Prop!$B$2:$B$1498,SMALL(IF(Database_Prop!$A$2:$A$1498=AO$129,ROW(Database_Prop!$B$2:$B$1498)-ROW(Database_Prop!$B$2)+1),ROWS(Database_Prop!L$2:'Database_Prop'!L47))),\"\")","v":""},{"$f":"IFERROR(INDEX(Database_Prop!$B$2:$B$1498,SMALL(IF(Database_Prop!$A$2:$A$1498=AP$129,ROW(Database_Prop!$B$2:$B$1498)-ROW(Database_Prop!$B$2)+1),ROWS(Database_Prop!M$2:'Database_Prop'!M47))),\"\")","v":""},{"$f":"IFERROR(INDEX(Database_Prop!$B$2:$B$1498,SMALL(IF(Database_Prop!$A$2:$A$1498=AQ$129,ROW(Database_Prop!$B$2:$B$1498)-ROW(Database_Prop!$B$2)+1),ROWS(Database_Prop!N$2:'Database_Prop'!N47))),\"\")","v":""},{"$f":"IFERROR(INDEX(Database_Prop!$B$2:$B$1498,SMALL(IF(Database_Prop!$A$2:$A$1498=AR$129,ROW(Database_Prop!$B$2:$B$1498)-ROW(Database_Prop!$B$2)+1),ROWS(Database_Prop!O$2:'Database_Prop'!O47))),\"\")","v":""},{"$f":"IFERROR(INDEX(Database_Prop!$B$2:$B$1498,SMALL(IF(Database_Prop!$A$2:$A$1498=AS$129,ROW(Database_Prop!$B$2:$B$1498)-ROW(Database_Prop!$B$2)+1),ROWS(Database_Prop!P$2:'Database_Prop'!P47))),\"\")","v":""},{"$f":"IFERROR(INDEX(Database_Prop!$B$2:$B$1498,SMALL(IF(Database_Prop!$A$2:$A$1498=AT$129,ROW(Database_Prop!$B$2:$B$1498)-ROW(Database_Prop!$B$2)+1),ROWS(Database_Prop!Q$2:'Database_Prop'!Q47))),\"\")","v":""},{"$f":"IFERROR(INDEX(Database_Prop!$B$2:$B$1498,SMALL(IF(Database_Prop!$A$2:$A$1498=AU$129,ROW(Database_Prop!$B$2:$B$1498)-ROW(Database_Prop!$B$2)+1),ROWS(Database_Prop!R$2:'Database_Prop'!R47))),\"\")","v":""},{"$f":"IFERROR(INDEX(Database_Prop!$B$2:$B$1498,SMALL(IF(Database_Prop!$A$2:$A$1498=AV$129,ROW(Database_Prop!$B$2:$B$1498)-ROW(Database_Prop!$B$2)+1),ROWS(Database_Prop!S$2:'Database_Prop'!S47))),\"\")","v":""},{"$f":"IFERROR(INDEX(Database_Prop!$B$2:$B$1498,SMALL(IF(Database_Prop!$A$2:$A$1498=AW$129,ROW(Database_Prop!$B$2:$B$1498)-ROW(Database_Prop!$B$2)+1),ROWS(Database_Prop!T$2:'Database_Prop'!T47))),\"\")","v":""},{"$f":"IFERROR(INDEX(Database_Prop!$B$2:$B$1498,SMALL(IF(Database_Prop!$A$2:$A$1498=AX$129,ROW(Database_Prop!$B$2:$B$1498)-ROW(Database_Prop!$B$2)+1),ROWS(Database_Prop!U$2:'Database_Prop'!U47))),\"\")","v":""},{"$f":"IFERROR(INDEX(Database_Prop!$B$2:$B$1498,SMALL(IF(Database_Prop!$A$2:$A$1498=AY$129,ROW(Database_Prop!$B$2:$B$1498)-ROW(Database_Prop!$B$2)+1),ROWS(Database_Prop!V$2:'Database_Prop'!V47))),\"\")","v":""},{"$f":"IFERROR(INDEX(Database_Prop!$B$2:$B$1498,SMALL(IF(Database_Prop!$A$2:$A$1498=AZ$129,ROW(Database_Prop!$B$2:$B$1498)-ROW(Database_Prop!$B$2)+1),ROWS(Database_Prop!W$2:'Database_Prop'!W47))),\"\")","v":""},{"$f":"IFERROR(INDEX(Database_Prop!$B$2:$B$1498,SMALL(IF(Database_Prop!$A$2:$A$1498=BA$129,ROW(Database_Prop!$B$2:$B$1498)-ROW(Database_Prop!$B$2)+1),ROWS(Database_Prop!X$2:'Database_Prop'!X47))),\"\")","v":""},{"$f":"IFERROR(INDEX(Database_Prop!$B$2:$B$1498,SMALL(IF(Database_Prop!$A$2:$A$1498=BB$129,ROW(Database_Prop!$B$2:$B$1498)-ROW(Database_Prop!$B$2)+1),ROWS(Database_Prop!Y$2:'Database_Prop'!Y47))),\"\")","v":""},{"$f":"IFERROR(INDEX(Database_Prop!$B$2:$B$1498,SMALL(IF(Database_Prop!$A$2:$A$1498=BC$129,ROW(Database_Prop!$B$2:$B$1498)-ROW(Database_Prop!$B$2)+1),ROWS(Database_Prop!Z$2:'Database_Prop'!Z47))),\"\")","v":""},null,"Colombia","Latin America",null,{"$f":"title108","v":"Main Category"},{"$f":"title109","v":"Feedstock"},{"$f":"G$28","v":"VS (%)"},{"$f":"H$28","v":"TS (%)"},{"$f":"I$28","v":"BMP (m3/t VS)"},"CH4 (%)","Collection Price"]
[null,null,null,null,null,null,null,null,null,null,null,null,null,null,null,null,null,null,null,null,null,null,null,null,null,null,null,null,null,null,47,{"$f":"IFERROR(INDEX(Database_Prop!$B$2:$B$1498,SMALL(IF(Database_Prop!$A$2:$A$1498=AF$129,ROW(Database_Prop!$B$2:$B$1498)-ROW(Database_Prop!$B$2)+1),ROWS(Database_Prop!C$2:'Database_Prop'!C48))),\"\")","v":""},{"$f":"IFERROR(INDEX(Database_Prop!$B$2:$B$1498,SMALL(IF(Database_Prop!$A$2:$A$1498=AG$129,ROW(Database_Prop!$B$2:$B$1498)-ROW(Database_Prop!$B$2)+1),ROWS(Database_Prop!D$2:'Database_Prop'!D48))),\"\")","v":""},{"$f":"IFERROR(INDEX(Database_Prop!$B$2:$B$1498,SMALL(IF(Database_Prop!$A$2:$A$1498=AH$129,ROW(Database_Prop!$B$2:$B$1498)-ROW(Database_Prop!$B$2)+1),ROWS(Database_Prop!E$2:'Database_Prop'!E48))),\"\")","v":""},{"$f":"IFERROR(INDEX(Database_Prop!$B$2:$B$1498,SMALL(IF(Database_Prop!$A$2:$A$1498=AI$129,ROW(Database_Prop!$B$2:$B$1498)-ROW(Database_Prop!$B$2)+1),ROWS(Database_Prop!F$2:'Database_Prop'!F48))),\"\")","v":""},{"$f":"IFERROR(INDEX(Database_Prop!$B$2:$B$1498,SMALL(IF(Database_Prop!$A$2:$A$1498=AJ$129,ROW(Database_Prop!$B$2:$B$1498)-ROW(Database_Prop!$B$2)+1),ROWS(Database_Prop!G$2:'Database_Prop'!G48))),\"\")","v":""},{"$f":"IFERROR(INDEX(Database_Prop!$B$2:$B$1498,SMALL(IF(Database_Prop!$A$2:$A$1498=AK$129,ROW(Database_Prop!$B$2:$B$1498)-ROW(Database_Prop!$B$2)+1),ROWS(Database_Prop!H$2:'Database_Prop'!H48))),\"\")","v":""},{"$f":"IFERROR(INDEX(Database_Prop!$B$2:$B$1498,SMALL(IF(Database_Prop!$A$2:$A$1498=AL$129,ROW(Database_Prop!$B$2:$B$1498)-ROW(Database_Prop!$B$2)+1),ROWS(Database_Prop!I$2:'Database_Prop'!I48))),\"\")","v":""},{"$f":"IFERROR(INDEX(Database_Prop!$B$2:$B$1498,SMALL(IF(Database_Prop!$A$2:$A$1498=AM$129,ROW(Database_Prop!$B$2:$B$1498)-ROW(Database_Prop!$B$2)+1),ROWS(Database_Prop!J$2:'Database_Prop'!J48))),\"\")","v":""},{"$f":"IFERROR(INDEX(Database_Prop!$B$2:$B$1498,SMALL(IF(Database_Prop!$A$2:$A$1498=AN$129,ROW(Database_Prop!$B$2:$B$1498)-ROW(Database_Prop!$B$2)+1),ROWS(Database_Prop!K$2:'Database_Prop'!K48))),\"\")","v":""},{"$f":"IFERROR(INDEX(Database_Prop!$B$2:$B$1498,SMALL(IF(Database_Prop!$A$2:$A$1498=AO$129,ROW(Database_Prop!$B$2:$B$1498)-ROW(Database_Prop!$B$2)+1),ROWS(Database_Prop!L$2:'Database_Prop'!L48))),\"\")","v":""},{"$f":"IFERROR(INDEX(Database_Prop!$B$2:$B$1498,SMALL(IF(Database_Prop!$A$2:$A$1498=AP$129,ROW(Database_Prop!$B$2:$B$1498)-ROW(Database_Prop!$B$2)+1),ROWS(Database_Prop!M$2:'Database_Prop'!M48))),\"\")","v":""},{"$f":"IFERROR(INDEX(Database_Prop!$B$2:$B$1498,SMALL(IF(Database_Prop!$A$2:$A$1498=AQ$129,ROW(Database_Prop!$B$2:$B$1498)-ROW(Database_Prop!$B$2)+1),ROWS(Database_Prop!N$2:'Database_Prop'!N48))),\"\")","v":""},{"$f":"IFERROR(INDEX(Database_Prop!$B$2:$B$1498,SMALL(IF(Database_Prop!$A$2:$A$1498=AR$129,ROW(Database_Prop!$B$2:$B$1498)-ROW(Database_Prop!$B$2)+1),ROWS(Database_Prop!O$2:'Database_Prop'!O48))),\"\")","v":""},{"$f":"IFERROR(INDEX(Database_Prop!$B$2:$B$1498,SMALL(IF(Database_Prop!$A$2:$A$1498=AS$129,ROW(Database_Prop!$B$2:$B$1498)-ROW(Database_Prop!$B$2)+1),ROWS(Database_Prop!P$2:'Database_Prop'!P48))),\"\")","v":""},{"$f":"IFERROR(INDEX(Database_Prop!$B$2:$B$1498,SMALL(IF(Database_Prop!$A$2:$A$1498=AT$129,ROW(Database_Prop!$B$2:$B$1498)-ROW(Database_Prop!$B$2)+1),ROWS(Database_Prop!Q$2:'Database_Prop'!Q48))),\"\")","v":""},{"$f":"IFERROR(INDEX(Database_Prop!$B$2:$B$1498,SMALL(IF(Database_Prop!$A$2:$A$1498=AU$129,ROW(Database_Prop!$B$2:$B$1498)-ROW(Database_Prop!$B$2)+1),ROWS(Database_Prop!R$2:'Database_Prop'!R48))),\"\")","v":""},{"$f":"IFERROR(INDEX(Database_Prop!$B$2:$B$1498,SMALL(IF(Database_Prop!$A$2:$A$1498=AV$129,ROW(Database_Prop!$B$2:$B$1498)-ROW(Database_Prop!$B$2)+1),ROWS(Database_Prop!S$2:'Database_Prop'!S48))),\"\")","v":""},{"$f":"IFERROR(INDEX(Database_Prop!$B$2:$B$1498,SMALL(IF(Database_Prop!$A$2:$A$1498=AW$129,ROW(Database_Prop!$B$2:$B$1498)-ROW(Database_Prop!$B$2)+1),ROWS(Database_Prop!T$2:'Database_Prop'!T48))),\"\")","v":""},{"$f":"IFERROR(INDEX(Database_Prop!$B$2:$B$1498,SMALL(IF(Database_Prop!$A$2:$A$1498=AX$129,ROW(Database_Prop!$B$2:$B$1498)-ROW(Database_Prop!$B$2)+1),ROWS(Database_Prop!U$2:'Database_Prop'!U48))),\"\")","v":""},{"$f":"IFERROR(INDEX(Database_Prop!$B$2:$B$1498,SMALL(IF(Database_Prop!$A$2:$A$1498=AY$129,ROW(Database_Prop!$B$2:$B$1498)-ROW(Database_Prop!$B$2)+1),ROWS(Database_Prop!V$2:'Database_Prop'!V48))),\"\")","v":""},{"$f":"IFERROR(INDEX(Database_Prop!$B$2:$B$1498,SMALL(IF(Database_Prop!$A$2:$A$1498=AZ$129,ROW(Database_Prop!$B$2:$B$1498)-ROW(Database_Prop!$B$2)+1),ROWS(Database_Prop!W$2:'Database_Prop'!W48))),\"\")","v":""},{"$f":"IFERROR(INDEX(Database_Prop!$B$2:$B$1498,SMALL(IF(Database_Prop!$A$2:$A$1498=BA$129,ROW(Database_Prop!$B$2:$B$1498)-ROW(Database_Prop!$B$2)+1),ROWS(Database_Prop!X$2:'Database_Prop'!X48))),\"\")","v":""},{"$f":"IFERROR(INDEX(Database_Prop!$B$2:$B$1498,SMALL(IF(Database_Prop!$A$2:$A$1498=BB$129,ROW(Database_Prop!$B$2:$B$1498)-ROW(Database_Prop!$B$2)+1),ROWS(Database_Prop!Y$2:'Database_Prop'!Y48))),\"\")","v":""},{"$f":"IFERROR(INDEX(Database_Prop!$B$2:$B$1498,SMALL(IF(Database_Prop!$A$2:$A$1498=BC$129,ROW(Database_Prop!$B$2:$B$1498)-ROW(Database_Prop!$B$2)+1),ROWS(Database_Prop!Z$2:'Database_Prop'!Z48))),\"\")","v":""},null,"Comoros","Africa","FS6",{"$f":"$D$87","v":"Please Select"},{"$f":"$E$87","v":"Please Select"},{"$f":"IFERROR(IF($BH178=title192,VLOOKUP($BH178&\" \"&$BI178,Database_Prop!$C:$G,2,FALSE),TEXT(VLOOKUP($BH178&\" \"&$BI178,Database_Prop!$C:$G,2,FALSE),\"0%\")),0)","v":0},{"$f":"IFERROR(VLOOKUP($BH178&\" \"&$BI178,Database_Prop!$C:$G,5,FALSE),0)","v":0},{"$f":"IFERROR(VLOOKUP($BH178&\" \"&$BI178,Database_Prop!$C:$G,3,FALSE),0)","v":0},{"$f":"IFERROR(VLOOKUP($BH178&\" \"&$BI178,Database_Prop!$C:$G,4,FALSE),0)","v":0},{"$f":"IFERROR(INDIRECT(\"PRICE_\"&$BG178&\"_\"&BI$166&$BN$126),0)","v":0}]
[null,null,null,null,null,null,null,null,null,null,null,null,null,null,null,null,null,null,null,null,null,null,null,null,null,null,null,null,null,null,48,{"$f":"IFERROR(INDEX(Database_Prop!$B$2:$B$1498,SMALL(IF(Database_Prop!$A$2:$A$1498=AF$129,ROW(Database_Prop!$B$2:$B$1498)-ROW(Database_Prop!$B$2)+1),ROWS(Database_Prop!C$2:'Database_Prop'!C49))),\"\")","v":""},{"$f":"IFERROR(INDEX(Database_Prop!$B$2:$B$1498,SMALL(IF(Database_Prop!$A$2:$A$1498=AG$129,ROW(Database_Prop!$B$2:$B$1498)-ROW(Database_Prop!$B$2)+1),ROWS(Database_Prop!D$2:'Database_Prop'!D49))),\"\")","v":""},{"$f":"IFERROR(INDEX(Database_Prop!$B$2:$B$1498,SMALL(IF(Database_Prop!$A$2:$A$1498=AH$129,ROW(Database_Prop!$B$2:$B$1498)-ROW(Database_Prop!$B$2)+1),ROWS(Database_Prop!E$2:'Database_Prop'!E49))),\"\")","v":""},{"$f":"IFERROR(INDEX(Database_Prop!$B$2:$B$1498,SMALL(IF(Database_Prop!$A$2:$A$1498=AI$129,ROW(Database_Prop!$B$2:$B$1498)-ROW(Database_Prop!$B$2)+1),ROWS(Database_Prop!F$2:'Database_Prop'!F49))),\"\")","v":""},{"$f":"IFERROR(INDEX(Database_Prop!$B$2:$B$1498,SMALL(IF(Database_Prop!$A$2:$A$1498=AJ$129,ROW(Database_Prop!$B$2:$B$1498)-ROW(Database_Prop!$B$2)+1),ROWS(Database_Prop!G$2:'Database_Prop'!G49))),\"\")","v":""},{"$f":"IFERROR(INDEX(Database_Prop!$B$2:$B$1498,SMALL(IF(Database_Prop!$A$2:$A$1498=AK$129,ROW(Database_Prop!$B$2:$B$1498)-ROW(Database_Prop!$B$2)+1),ROWS(Database_Prop!H$2:'Database_Prop'!H49))),\"\")","v":""},{"$f":"IFERROR(INDEX(Database_Prop!$B$2:$B$1498,SMALL(IF(Database_Prop!$A$2:$A$1498=AL$129,ROW(Database_Prop!$B$2:$B$1498)-ROW(Database_Prop!$B$2)+1),ROWS(Database_Prop!I$2:'Database_Prop'!I49))),\"\")","v":""},{"$f":"IFERROR(INDEX(Database_Prop!$B$2:$B$1498,SMALL(IF(Database_Prop!$A$2:$A$1498=AM$129,ROW(Database_Prop!$B$2:$B$1498)-ROW(Database_Prop!$B$2)+1),ROWS(Database_Prop!J$2:'Database_Prop'!J49))),\"\")","v":""},{"$f":"IFERROR(INDEX(Database_Prop!$B$2:$B$1498,SMALL(IF(Database_Prop!$A$2:$A$1498=AN$129,ROW(Database_Prop!$B$2:$B$1498)-ROW(Database_Prop!$B$2)+1),ROWS(Database_Prop!K$2:'Database_Prop'!K49))),\"\")","v":""},{"$f":"IFERROR(INDEX(Database_Prop!$B$2:$B$1498,SMALL(IF(Database_Prop!$A$2:$A$1498=AO$129,ROW(Database_Prop!$B$2:$B$1498)-ROW(Database_Prop!$B$2)+1),ROWS(Database_Prop!L$2:'Database_Prop'!L49))),\"\")","v":""},{"$f":"IFERROR(INDEX(Database_Prop!$B$2:$B$1498,SMALL(IF(Database_Prop!$A$2:$A$1498=AP$129,ROW(Database_Prop!$B$2:$B$1498)-ROW(Database_Prop!$B$2)+1),ROWS(Database_Prop!M$2:'Database_Prop'!M49))),\"\")","v":""},{"$f":"IFERROR(INDEX(Database_Prop!$B$2:$B$1498,SMALL(IF(Database_Prop!$A$2:$A$1498=AQ$129,ROW(Database_Prop!$B$2:$B$1498)-ROW(Database_Prop!$B$2)+1),ROWS(Database_Prop!N$2:'Database_Prop'!N49))),\"\")","v":""},{"$f":"IFERROR(INDEX(Database_Prop!$B$2:$B$1498,SMALL(IF(Database_Prop!$A$2:$A$1498=AR$129,ROW(Database_Prop!$B$2:$B$1498)-ROW(Database_Prop!$B$2)+1),ROWS(Database_Prop!O$2:'Database_Prop'!O49))),\"\")","v":""},{"$f":"IFERROR(INDEX(Database_Prop!$B$2:$B$1498,SMALL(IF(Database_Prop!$A$2:$A$1498=AS$129,ROW(Database_Prop!$B$2:$B$1498)-ROW(Database_Prop!$B$2)+1),ROWS(Database_Prop!P$2:'Database_Prop'!P49))),\"\")","v":""},{"$f":"IFERROR(INDEX(Database_Prop!$B$2:$B$1498,SMALL(IF(Database_Prop!$A$2:$A$1498=AT$129,ROW(Database_Prop!$B$2:$B$1498)-ROW(Database_Prop!$B$2)+1),ROWS(Database_Prop!Q$2:'Database_Prop'!Q49))),\"\")","v":""},{"$f":"IFERROR(INDEX(Database_Prop!$B$2:$B$1498,SMALL(IF(Database_Prop!$A$2:$A$1498=AU$129,ROW(Database_Prop!$B$2:$B$1498)-ROW(Database_Prop!$B$2)+1),ROWS(Database_Prop!R$2:'Database_Prop'!R49))),\"\")","v":""},{"$f":"IFERROR(INDEX(Database_Prop!$B$2:$B$1498,SMALL(IF(Database_Prop!$A$2:$A$1498=AV$129,ROW(Database_Prop!$B$2:$B$1498)-ROW(Database_Prop!$B$2)+1),ROWS(Database_Prop!S$2:'Database_Prop'!S49))),\"\")","v":""},{"$f":"IFERROR(INDEX(Database_Prop!$B$2:$B$1498,SMALL(IF(Database_Prop!$A$2:$A$1498=AW$129,ROW(Database_Prop!$B$2:$B$1498)-ROW(Database_Prop!$B$2)+1),ROWS(Database_Prop!T$2:'Database_Prop'!T49))),\"\")","v":""},{"$f":"IFERROR(INDEX(Database_Prop!$B$2:$B$1498,SMALL(IF(Database_Prop!$A$2:$A$1498=AX$129,ROW(Database_Prop!$B$2:$B$1498)-ROW(Database_Prop!$B$2)+1),ROWS(Database_Prop!U$2:'Database_Prop'!U49))),\"\")","v":""},{"$f":"IFERROR(INDEX(Database_Prop!$B$2:$B$1498,SMALL(IF(Database_Prop!$A$2:$A$1498=AY$129,ROW(Database_Prop!$B$2:$B$1498)-ROW(Database_Prop!$B$2)+1),ROWS(Database_Prop!V$2:'Database_Prop'!V49))),\"\")","v":""},{"$f":"IFERROR(INDEX(Database_Prop!$B$2:$B$1498,SMALL(IF(Database_Prop!$A$2:$A$1498=AZ$129,ROW(Database_Prop!$B$2:$B$1498)-ROW(Database_Prop!$B$2)+1),ROWS(Database_Prop!W$2:'Database_Prop'!W49))),\"\")","v":""},{"$f":"IFERROR(INDEX(Database_Prop!$B$2:$B$1498,SMALL(IF(Database_Prop!$A$2:$A$1498=BA$129,ROW(Database_Prop!$B$2:$B$1498)-ROW(Database_Prop!$B$2)+1),ROWS(Database_Prop!X$2:'Database_Prop'!X49))),\"\")","v":""},{"$f":"IFERROR(INDEX(Database_Prop!$B$2:$B$1498,SMALL(IF(Database_Prop!$A$2:$A$1498=BB$129,ROW(Database_Prop!$B$2:$B$1498)-ROW(Database_Prop!$B$2)+1),ROWS(Database_Prop!Y$2:'Database_Prop'!Y49))),\"\")","v":""},{"$f":"IFERROR(INDEX(Database_Prop!$B$2:$B$1498,SMALL(IF(Database_Prop!$A$2:$A$1498=BC$129,ROW(Database_Prop!$B$2:$B$1498)-ROW(Database_Prop!$B$2)+1),ROWS(Database_Prop!Z$2:'Database_Prop'!Z49))),\"\")","v":""},null,"Congo","Africa"]
[null,null,null,null,null,null,null,null,null,null,null,null,null,null,null,null,null,null,null,null,null,null,null,null,null,null,null,null,null,null,49,{"$f":"IFERROR(INDEX(Database_Prop!$B$2:$B$1498,SMALL(IF(Database_Prop!$A$2:$A$1498=AF$129,ROW(Database_Prop!$B$2:$B$1498)-ROW(Database_Prop!$B$2)+1),ROWS(Database_Prop!C$2:'Database_Prop'!C50))),\"\")","v":""},{"$f":"IFERROR(INDEX(Database_Prop!$B$2:$B$1498,SMALL(IF(Database_Prop!$A$2:$A$1498=AG$129,ROW(Database_Prop!$B$2:$B$1498)-ROW(Database_Prop!$B$2)+1),ROWS(Database_Prop!D$2:'Database_Prop'!D50))),\"\")","v":""},{"$f":"IFERROR(INDEX(Database_Prop!$B$2:$B$1498,SMALL(IF(Database_Prop!$A$2:$A$1498=AH$129,ROW(Database_Prop!$B$2:$B$1498)-ROW(Database_Prop!$B$2)+1),ROWS(Database_Prop!E$2:'Database_Prop'!E50))),\"\")","v":""},{"$f":"IFERROR(INDEX(Database_Prop!$B$2:$B$1498,SMALL(IF(Database_Prop!$A$2:$A$1498=AI$129,ROW(Database_Prop!$B$2:$B$1498)-ROW(Database_Prop!$B$2)+1),ROWS(Database_Prop!F$2:'Database_Prop'!F50))),\"\")","v":""},{"$f":"IFERROR(INDEX(Database_Prop!$B$2:$B$1498,SMALL(IF(Database_Prop!$A$2:$A$1498=AJ$129,ROW(Database_Prop!$B$2:$B$1498)-ROW(Database_Prop!$B$2)+1),ROWS(Database_Prop!G$2:'Database_Prop'!G50))),\"\")","v":""},{"$f":"IFERROR(INDEX(Database_Prop!$B$2:$B$1498,SMALL(IF(Database_Prop!$A$2:$A$1498=AK$129,ROW(Database_Prop!$B$2:$B$1498)-ROW(Database_Prop!$B$2)+1),ROWS(Database_Prop!H$2:'Database_Prop'!H50))),\"\")","v":""},{"$f":"IFERROR(INDEX(Database_Prop!$B$2:$B$1498,SMALL(IF(Database_Prop!$A$2:$A$1498=AL$129,ROW(Database_Prop!$B$2:$B$1498)-ROW(Database_Prop!$B$2)+1),ROWS(Database_Prop!I$2:'Database_Prop'!I50))),\"\")","v":""},{"$f":"IFERROR(INDEX(Database_Prop!$B$2:$B$1498,SMALL(IF(Database_Prop!$A$2:$A$1498=AM$129,ROW(Database_Prop!$B$2:$B$1498)-ROW(Database_Prop!$B$2)+1),ROWS(Database_Prop!J$2:'Database_Prop'!J50))),\"\")","v":""},{"$f":"IFERROR(INDEX(Database_Prop!$B$2:$B$1498,SMALL(IF(Database_Prop!$A$2:$A$1498=AN$129,ROW(Database_Prop!$B$2:$B$1498)-ROW(Database_Prop!$B$2)+1),ROWS(Database_Prop!K$2:'Database_Prop'!K50))),\"\")","v":""},{"$f":"IFERROR(INDEX(Database_Prop!$B$2:$B$1498,SMALL(IF(Database_Prop!$A$2:$A$1498=AO$129,ROW(Database_Prop!$B$2:$B$1498)-ROW(Database_Prop!$B$2)+1),ROWS(Database_Prop!L$2:'Database_Prop'!L50))),\"\")","v":""},{"$f":"IFERROR(INDEX(Database_Prop!$B$2:$B$1498,SMALL(IF(Database_Prop!$A$2:$A$1498=AP$129,ROW(Database_Prop!$B$2:$B$1498)-ROW(Database_Prop!$B$2)+1),ROWS(Database_Prop!M$2:'Database_Prop'!M50))),\"\")","v":""},{"$f":"IFERROR(INDEX(Database_Prop!$B$2:$B$1498,SMALL(IF(Database_Prop!$A$2:$A$1498=AQ$129,ROW(Database_Prop!$B$2:$B$1498)-ROW(Database_Prop!$B$2)+1),ROWS(Database_Prop!N$2:'Database_Prop'!N50))),\"\")","v":""},{"$f":"IFERROR(INDEX(Database_Prop!$B$2:$B$1498,SMALL(IF(Database_Prop!$A$2:$A$1498=AR$129,ROW(Database_Prop!$B$2:$B$1498)-ROW(Database_Prop!$B$2)+1),ROWS(Database_Prop!O$2:'Database_Prop'!O50))),\"\")","v":""},{"$f":"IFERROR(INDEX(Database_Prop!$B$2:$B$1498,SMALL(IF(Database_Prop!$A$2:$A$1498=AS$129,ROW(Database_Prop!$B$2:$B$1498)-ROW(Database_Prop!$B$2)+1),ROWS(Database_Prop!P$2:'Database_Prop'!P50))),\"\")","v":""},{"$f":"IFERROR(INDEX(Database_Prop!$B$2:$B$1498,SMALL(IF(Database_Prop!$A$2:$A$1498=AT$129,ROW(Database_Prop!$B$2:$B$1498)-ROW(Database_Prop!$B$2)+1),ROWS(Database_Prop!Q$2:'Database_Prop'!Q50))),\"\")","v":""},{"$f":"IFERROR(INDEX(Database_Prop!$B$2:$B$1498,SMALL(IF(Database_Prop!$A$2:$A$1498=AU$129,ROW(Database_Prop!$B$2:$B$1498)-ROW(Database_Prop!$B$2)+1),ROWS(Database_Prop!R$2:'Database_Prop'!R50))),\"\")","v":""},{"$f":"IFERROR(INDEX(Database_Prop!$B$2:$B$1498,SMALL(IF(Database_Prop!$A$2:$A$1498=AV$129,ROW(Database_Prop!$B$2:$B$1498)-ROW(Database_Prop!$B$2)+1),ROWS(Database_Prop!S$2:'Database_Prop'!S50))),\"\")","v":""},{"$f":"IFERROR(INDEX(Database_Prop!$B$2:$B$1498,SMALL(IF(Database_Prop!$A$2:$A$1498=AW$129,ROW(Database_Prop!$B$2:$B$1498)-ROW(Database_Prop!$B$2)+1),ROWS(Database_Prop!T$2:'Database_Prop'!T50))),\"\")","v":""},{"$f":"IFERROR(INDEX(Database_Prop!$B$2:$B$1498,SMALL(IF(Database_Prop!$A$2:$A$1498=AX$129,ROW(Database_Prop!$B$2:$B$1498)-ROW(Database_Prop!$B$2)+1),ROWS(Database_Prop!U$2:'Database_Prop'!U50))),\"\")","v":""},{"$f":"IFERROR(INDEX(Database_Prop!$B$2:$B$1498,SMALL(IF(Database_Prop!$A$2:$A$1498=AY$129,ROW(Database_Prop!$B$2:$B$1498)-ROW(Database_Prop!$B$2)+1),ROWS(Database_Prop!V$2:'Database_Prop'!V50))),\"\")","v":""},{"$f":"IFERROR(INDEX(Database_Prop!$B$2:$B$1498,SMALL(IF(Database_Prop!$A$2:$A$1498=AZ$129,ROW(Database_Prop!$B$2:$B$1498)-ROW(Database_Prop!$B$2)+1),ROWS(Database_Prop!W$2:'Database_Prop'!W50))),\"\")","v":""},{"$f":"IFERROR(INDEX(Database_Prop!$B$2:$B$1498,SMALL(IF(Database_Prop!$A$2:$A$1498=BA$129,ROW(Database_Prop!$B$2:$B$1498)-ROW(Database_Prop!$B$2)+1),ROWS(Database_Prop!X$2:'Database_Prop'!X50))),\"\")","v":""},{"$f":"IFERROR(INDEX(Database_Prop!$B$2:$B$1498,SMALL(IF(Database_Prop!$A$2:$A$1498=BB$129,ROW(Database_Prop!$B$2:$B$1498)-ROW(Database_Prop!$B$2)+1),ROWS(Database_Prop!Y$2:'Database_Prop'!Y50))),\"\")","v":""},{"$f":"IFERROR(INDEX(Database_Prop!$B$2:$B$1498,SMALL(IF(Database_Prop!$A$2:$A$1498=BC$129,ROW(Database_Prop!$B$2:$B$1498)-ROW(Database_Prop!$B$2)+1),ROWS(Database_Prop!Z$2:'Database_Prop'!Z50))),\"\")","v":""},null,"Cook Islands","Oceania"]
[null,null,null,null,null,null,null,null,null,null,null,null,null,null,null,null,null,null,null,null,null,null,null,null,null,null,null,null,null,null,50,{"$f":"IFERROR(INDEX(Database_Prop!$B$2:$B$1498,SMALL(IF(Database_Prop!$A$2:$A$1498=AF$129,ROW(Database_Prop!$B$2:$B$1498)-ROW(Database_Prop!$B$2)+1),ROWS(Database_Prop!C$2:'Database_Prop'!C51))),\"\")","v":""},{"$f":"IFERROR(INDEX(Database_Prop!$B$2:$B$1498,SMALL(IF(Database_Prop!$A$2:$A$1498=AG$129,ROW(Database_Prop!$B$2:$B$1498)-ROW(Database_Prop!$B$2)+1),ROWS(Database_Prop!D$2:'Database_Prop'!D51))),\"\")","v":""},{"$f":"IFERROR(INDEX(Database_Prop!$B$2:$B$1498,SMALL(IF(Database_Prop!$A$2:$A$1498=AH$129,ROW(Database_Prop!$B$2:$B$1498)-ROW(Database_Prop!$B$2)+1),ROWS(Database_Prop!E$2:'Database_Prop'!E51))),\"\")","v":""},{"$f":"IFERROR(INDEX(Database_Prop!$B$2:$B$1498,SMALL(IF(Database_Prop!$A$2:$A$1498=AI$129,ROW(Database_Prop!$B$2:$B$1498)-ROW(Database_Prop!$B$2)+1),ROWS(Database_Prop!F$2:'Database_Prop'!F51))),\"\")","v":""},{"$f":"IFERROR(INDEX(Database_Prop!$B$2:$B$1498,SMALL(IF(Database_Prop!$A$2:$A$1498=AJ$129,ROW(Database_Prop!$B$2:$B$1498)-ROW(Database_Prop!$B$2)+1),ROWS(Database_Prop!G$2:'Database_Prop'!G51))),\"\")","v":""},{"$f":"IFERROR(INDEX(Database_Prop!$B$2:$B$1498,SMALL(IF(Database_Prop!$A$2:$A$1498=AK$129,ROW(Database_Prop!$B$2:$B$1498)-ROW(Database_Prop!$B$2)+1),ROWS(Database_Prop!H$2:'Database_Prop'!H51))),\"\")","v":""},{"$f":"IFERROR(INDEX(Database_Prop!$B$2:$B$1498,SMALL(IF(Database_Prop!$A$2:$A$1498=AL$129,ROW(Database_Prop!$B$2:$B$1498)-ROW(Database_Prop!$B$2)+1),ROWS(Database_Prop!I$2:'Database_Prop'!I51))),\"\")","v":""},{"$f":"IFERROR(INDEX(Database_Prop!$B$2:$B$1498,SMALL(IF(Database_Prop!$A$2:$A$1498=AM$129,ROW(Database_Prop!$B$2:$B$1498)-ROW(Database_Prop!$B$2)+1),ROWS(Database_Prop!J$2:'Database_Prop'!J51))),\"\")","v":""},{"$f":"IFERROR(INDEX(Database_Prop!$B$2:$B$1498,SMALL(IF(Database_Prop!$A$2:$A$1498=AN$129,ROW(Database_Prop!$B$2:$B$1498)-ROW(Database_Prop!$B$2)+1),ROWS(Database_Prop!K$2:'Database_Prop'!K51))),\"\")","v":""},{"$f":"IFERROR(INDEX(Database_Prop!$B$2:$B$1498,SMALL(IF(Database_Prop!$A$2:$A$1498=AO$129,ROW(Database_Prop!$B$2:$B$1498)-ROW(Database_Prop!$B$2)+1),ROWS(Database_Prop!L$2:'Database_Prop'!L51))),\"\")","v":""},{"$f":"IFERROR(INDEX(Database_Prop!$B$2:$B$1498,SMALL(IF(Database_Prop!$A$2:$A$1498=AP$129,ROW(Database_Prop!$B$2:$B$1498)-ROW(Database_Prop!$B$2)+1),ROWS(Database_Prop!M$2:'Database_Prop'!M51))),\"\")","v":""},{"$f":"IFERROR(INDEX(Database_Prop!$B$2:$B$1498,SMALL(IF(Database_Prop!$A$2:$A$1498=AQ$129,ROW(Database_Prop!$B$2:$B$1498)-ROW(Database_Prop!$B$2)+1),ROWS(Database_Prop!N$2:'Database_Prop'!N51))),\"\")","v":""},{"$f":"IFERROR(INDEX(Database_Prop!$B$2:$B$1498,SMALL(IF(Database_Prop!$A$2:$A$1498=AR$129,ROW(Database_Prop!$B$2:$B$1498)-ROW(Database_Prop!$B$2)+1),ROWS(Database_Prop!O$2:'Database_Prop'!O51))),\"\")","v":""},{"$f":"IFERROR(INDEX(Database_Prop!$B$2:$B$1498,SMALL(IF(Database_Prop!$A$2:$A$1498=AS$129,ROW(Database_Prop!$B$2:$B$1498)-ROW(Database_Prop!$B$2)+1),ROWS(Database_Prop!P$2:'Database_Prop'!P51))),\"\")","v":""},{"$f":"IFERROR(INDEX(Database_Prop!$B$2:$B$1498,SMALL(IF(Database_Prop!$A$2:$A$1498=AT$129,ROW(Database_Prop!$B$2:$B$1498)-ROW(Database_Prop!$B$2)+1),ROWS(Database_Prop!Q$2:'Database_Prop'!Q51))),\"\")","v":""},{"$f":"IFERROR(INDEX(Database_Prop!$B$2:$B$1498,SMALL(IF(Database_Prop!$A$2:$A$1498=AU$129,ROW(Database_Prop!$B$2:$B$1498)-ROW(Database_Prop!$B$2)+1),ROWS(Database_Prop!R$2:'Database_Prop'!R51))),\"\")","v":""},{"$f":"IFERROR(INDEX(Database_Prop!$B$2:$B$1498,SMALL(IF(Database_Prop!$A$2:$A$1498=AV$129,ROW(Database_Prop!$B$2:$B$1498)-ROW(Database_Prop!$B$2)+1),ROWS(Database_Prop!S$2:'Database_Prop'!S51))),\"\")","v":""},{"$f":"IFERROR(INDEX(Database_Prop!$B$2:$B$1498,SMALL(IF(Database_Prop!$A$2:$A$1498=AW$129,ROW(Database_Prop!$B$2:$B$1498)-ROW(Database_Prop!$B$2)+1),ROWS(Database_Prop!T$2:'Database_Prop'!T51))),\"\")","v":""},{"$f":"IFERROR(INDEX(Database_Prop!$B$2:$B$1498,SMALL(IF(Database_Prop!$A$2:$A$1498=AX$129,ROW(Database_Prop!$B$2:$B$1498)-ROW(Database_Prop!$B$2)+1),ROWS(Database_Prop!U$2:'Database_Prop'!U51))),\"\")","v":""},{"$f":"IFERROR(INDEX(Database_Prop!$B$2:$B$1498,SMALL(IF(Database_Prop!$A$2:$A$1498=AY$129,ROW(Database_Prop!$B$2:$B$1498)-ROW(Database_Prop!$B$2)+1),ROWS(Database_Prop!V$2:'Database_Prop'!V51))),\"\")","v":""},{"$f":"IFERROR(INDEX(Database_Prop!$B$2:$B$1498,SMALL(IF(Database_Prop!$A$2:$A$1498=AZ$129,ROW(Database_Prop!$B$2:$B$1498)-ROW(Database_Prop!$B$2)+1),ROWS(Database_Prop!W$2:'Database_Prop'!W51))),\"\")","v":""},{"$f":"IFERROR(INDEX(Database_Prop!$B$2:$B$1498,SMALL(IF(Database_Prop!$A$2:$A$1498=BA$129,ROW(Database_Prop!$B$2:$B$1498)-ROW(Database_Prop!$B$2)+1),ROWS(Database_Prop!X$2:'Database_Prop'!X51))),\"\")","v":""},{"$f":"IFERROR(INDEX(Database_Prop!$B$2:$B$1498,SMALL(IF(Database_Prop!$A$2:$A$1498=BB$129,ROW(Database_Prop!$B$2:$B$1498)-ROW(Database_Prop!$B$2)+1),ROWS(Database_Prop!Y$2:'Database_Prop'!Y51))),\"\")","v":""},{"$f":"IFERROR(INDEX(Database_Prop!$B$2:$B$1498,SMALL(IF(Database_Prop!$A$2:$A$1498=BC$129,ROW(Database_Prop!$B$2:$B$1498)-ROW(Database_Prop!$B$2)+1),ROWS(Database_Prop!Z$2:'Database_Prop'!Z51))),\"\")","v":""},null,"Costa Rica","Latin America"]
[null,null,null,null,null,null,null,null,null,null,null,null,null,null,null,null,null,null,null,null,null,null,null,null,null,null,null,null,null,null,51,{"$f":"IFERROR(INDEX(Database_Prop!$B$2:$B$1498,SMALL(IF(Database_Prop!$A$2:$A$1498=AF$129,ROW(Database_Prop!$B$2:$B$1498)-ROW(Database_Prop!$B$2)+1),ROWS(Database_Prop!C$2:'Database_Prop'!C52))),\"\")","v":""},{"$f":"IFERROR(INDEX(Database_Prop!$B$2:$B$1498,SMALL(IF(Database_Prop!$A$2:$A$1498=AG$129,ROW(Database_Prop!$B$2:$B$1498)-ROW(Database_Prop!$B$2)+1),ROWS(Database_Prop!D$2:'Database_Prop'!D52))),\"\")","v":""},{"$f":"IFERROR(INDEX(Database_Prop!$B$2:$B$1498,SMALL(IF(Database_Prop!$A$2:$A$1498=AH$129,ROW(Database_Prop!$B$2:$B$1498)-ROW(Database_Prop!$B$2)+1),ROWS(Database_Prop!E$2:'Database_Prop'!E52))),\"\")","v":""},{"$f":"IFERROR(INDEX(Database_Prop!$B$2:$B$1498,SMALL(IF(Database_Prop!$A$2:$A$1498=AI$129,ROW(Database_Prop!$B$2:$B$1498)-ROW(Database_Prop!$B$2)+1),ROWS(Database_Prop!F$2:'Database_Prop'!F52))),\"\")","v":""},{"$f":"IFERROR(INDEX(Database_Prop!$B$2:$B$1498,SMALL(IF(Database_Prop!$A$2:$A$1498=AJ$129,ROW(Database_Prop!$B$2:$B$1498)-ROW(Database_Prop!$B$2)+1),ROWS(Database_Prop!G$2:'Database_Prop'!G52))),\"\")","v":""},{"$f":"IFERROR(INDEX(Database_Prop!$B$2:$B$1498,SMALL(IF(Database_Prop!$A$2:$A$1498=AK$129,ROW(Database_Prop!$B$2:$B$1498)-ROW(Database_Prop!$B$2)+1),ROWS(Database_Prop!H$2:'Database_Prop'!H52))),\"\")","v":""},{"$f":"IFERROR(INDEX(Database_Prop!$B$2:$B$1498,SMALL(IF(Database_Prop!$A$2:$A$1498=AL$129,ROW(Database_Prop!$B$2:$B$1498)-ROW(Database_Prop!$B$2)+1),ROWS(Database_Prop!I$2:'Database_Prop'!I52))),\"\")","v":""},{"$f":"IFERROR(INDEX(Database_Prop!$B$2:$B$1498,SMALL(IF(Database_Prop!$A$2:$A$1498=AM$129,ROW(Database_Prop!$B$2:$B$1498)-ROW(Database_Prop!$B$2)+1),ROWS(Database_Prop!J$2:'Database_Prop'!J52))),\"\")","v":""},{"$f":"IFERROR(INDEX(Database_Prop!$B$2:$B$1498,SMALL(IF(Database_Prop!$A$2:$A$1498=AN$129,ROW(Database_Prop!$B$2:$B$1498)-ROW(Database_Prop!$B$2)+1),ROWS(Database_Prop!K$2:'Database_Prop'!K52))),\"\")","v":""},{"$f":"IFERROR(INDEX(Database_Prop!$B$2:$B$1498,SMALL(IF(Database_Prop!$A$2:$A$1498=AO$129,ROW(Database_Prop!$B$2:$B$1498)-ROW(Database_Prop!$B$2)+1),ROWS(Database_Prop!L$2:'Database_Prop'!L52))),\"\")","v":""},{"$f":"IFERROR(INDEX(Database_Prop!$B$2:$B$1498,SMALL(IF(Database_Prop!$A$2:$A$1498=AP$129,ROW(Database_Prop!$B$2:$B$1498)-ROW(Database_Prop!$B$2)+1),ROWS(Database_Prop!M$2:'Database_Prop'!M52))),\"\")","v":""},{"$f":"IFERROR(INDEX(Database_Prop!$B$2:$B$1498,SMALL(IF(Database_Prop!$A$2:$A$1498=AQ$129,ROW(Database_Prop!$B$2:$B$1498)-ROW(Database_Prop!$B$2)+1),ROWS(Database_Prop!N$2:'Database_Prop'!N52))),\"\")","v":""},{"$f":"IFERROR(INDEX(Database_Prop!$B$2:$B$1498,SMALL(IF(Database_Prop!$A$2:$A$1498=AR$129,ROW(Database_Prop!$B$2:$B$1498)-ROW(Database_Prop!$B$2)+1),ROWS(Database_Prop!O$2:'Database_Prop'!O52))),\"\")","v":""},{"$f":"IFERROR(INDEX(Database_Prop!$B$2:$B$1498,SMALL(IF(Database_Prop!$A$2:$A$1498=AS$129,ROW(Database_Prop!$B$2:$B$1498)-ROW(Database_Prop!$B$2)+1),ROWS(Database_Prop!P$2:'Database_Prop'!P52))),\"\")","v":""},{"$f":"IFERROR(INDEX(Database_Prop!$B$2:$B$1498,SMALL(IF(Database_Prop!$A$2:$A$1498=AT$129,ROW(Database_Prop!$B$2:$B$1498)-ROW(Database_Prop!$B$2)+1),ROWS(Database_Prop!Q$2:'Database_Prop'!Q52))),\"\")","v":""},{"$f":"IFERROR(INDEX(Database_Prop!$B$2:$B$1498,SMALL(IF(Database_Prop!$A$2:$A$1498=AU$129,ROW(Database_Prop!$B$2:$B$1498)-ROW(Database_Prop!$B$2)+1),ROWS(Database_Prop!R$2:'Database_Prop'!R52))),\"\")","v":""},{"$f":"IFERROR(INDEX(Database_Prop!$B$2:$B$1498,SMALL(IF(Database_Prop!$A$2:$A$1498=AV$129,ROW(Database_Prop!$B$2:$B$1498)-ROW(Database_Prop!$B$2)+1),ROWS(Database_Prop!S$2:'Database_Prop'!S52))),\"\")","v":""},{"$f":"IFERROR(INDEX(Database_Prop!$B$2:$B$1498,SMALL(IF(Database_Prop!$A$2:$A$1498=AW$129,ROW(Database_Prop!$B$2:$B$1498)-ROW(Database_Prop!$B$2)+1),ROWS(Database_Prop!T$2:'Database_Prop'!T52))),\"\")","v":""},{"$f":"IFERROR(INDEX(Database_Prop!$B$2:$B$1498,SMALL(IF(Database_Prop!$A$2:$A$1498=AX$129,ROW(Database_Prop!$B$2:$B$1498)-ROW(Database_Prop!$B$2)+1),ROWS(Database_Prop!U$2:'Database_Prop'!U52))),\"\")","v":""},{"$f":"IFERROR(INDEX(Database_Prop!$B$2:$B$1498,SMALL(IF(Database_Prop!$A$2:$A$1498=AY$129,ROW(Database_Prop!$B$2:$B$1498)-ROW(Database_Prop!$B$2)+1),ROWS(Database_Prop!V$2:'Database_Prop'!V52))),\"\")","v":""},{"$f":"IFERROR(INDEX(Database_Prop!$B$2:$B$1498,SMALL(IF(Database_Prop!$A$2:$A$1498=AZ$129,ROW(Database_Prop!$B$2:$B$1498)-ROW(Database_Prop!$B$2)+1),ROWS(Database_Prop!W$2:'Database_Prop'!W52))),\"\")","v":""},{"$f":"IFERROR(INDEX(Database_Prop!$B$2:$B$1498,SMALL(IF(Database_Prop!$A$2:$A$1498=BA$129,ROW(Database_Prop!$B$2:$B$1498)-ROW(Database_Prop!$B$2)+1),ROWS(Database_Prop!X$2:'Database_Prop'!X52))),\"\")","v":""},{"$f":"IFERROR(INDEX(Database_Prop!$B$2:$B$1498,SMALL(IF(Database_Prop!$A$2:$A$1498=BB$129,ROW(Database_Prop!$B$2:$B$1498)-ROW(Database_Prop!$B$2)+1),ROWS(Database_Prop!Y$2:'Database_Prop'!Y52))),\"\")","v":""},{"$f":"IFERROR(INDEX(Database_Prop!$B$2:$B$1498,SMALL(IF(Database_Prop!$A$2:$A$1498=BC$129,ROW(Database_Prop!$B$2:$B$1498)-ROW(Database_Prop!$B$2)+1),ROWS(Database_Prop!Z$2:'Database_Prop'!Z52))),\"\")","v":""},null,"Côte d'Ivoire","Africa"]
[null,null,null,null,null,null,null,null,null,null,null,null,null,null,null,null,null,null,null,null,null,null,null,null,null,null,null,null,null,null,52,{"$f":"IFERROR(INDEX(Database_Prop!$B$2:$B$1498,SMALL(IF(Database_Prop!$A$2:$A$1498=AF$129,ROW(Database_Prop!$B$2:$B$1498)-ROW(Database_Prop!$B$2)+1),ROWS(Database_Prop!C$2:'Database_Prop'!C53))),\"\")","v":""},{"$f":"IFERROR(INDEX(Database_Prop!$B$2:$B$1498,SMALL(IF(Database_Prop!$A$2:$A$1498=AG$129,ROW(Database_Prop!$B$2:$B$1498)-ROW(Database_Prop!$B$2)+1),ROWS(Database_Prop!D$2:'Database_Prop'!D53))),\"\")","v":""},{"$f":"IFERROR(INDEX(Database_Prop!$B$2:$B$1498,SMALL(IF(Database_Prop!$A$2:$A$1498=AH$129,ROW(Database_Prop!$B$2:$B$1498)-ROW(Database_Prop!$B$2)+1),ROWS(Database_Prop!E$2:'Database_Prop'!E53))),\"\")","v":""},{"$f":"IFERROR(INDEX(Database_Prop!$B$2:$B$1498,SMALL(IF(Database_Prop!$A$2:$A$1498=AI$129,ROW(Database_Prop!$B$2:$B$1498)-ROW(Database_Prop!$B$2)+1),ROWS(Database_Prop!F$2:'Database_Prop'!F53))),\"\")","v":""},{"$f":"IFERROR(INDEX(Database_Prop!$B$2:$B$1498,SMALL(IF(Database_Prop!$A$2:$A$1498=AJ$129,ROW(Database_Prop!$B$2:$B$1498)-ROW(Database_Prop!$B$2)+1),ROWS(Database_Prop!G$2:'Database_Prop'!G53))),\"\")","v":""},{"$f":"IFERROR(INDEX(Database_Prop!$B$2:$B$1498,SMALL(IF(Database_Prop!$A$2:$A$1498=AK$129,ROW(Database_Prop!$B$2:$B$1498)-ROW(Database_Prop!$B$2)+1),ROWS(Database_Prop!H$2:'Database_Prop'!H53))),\"\")","v":""},{"$f":"IFERROR(INDEX(Database_Prop!$B$2:$B$1498,SMALL(IF(Database_Prop!$A$2:$A$1498=AL$129,ROW(Database_Prop!$B$2:$B$1498)-ROW(Database_Prop!$B$2)+1),ROWS(Database_Prop!I$2:'Database_Prop'!I53))),\"\")","v":""},{"$f":"IFERROR(INDEX(Database_Prop!$B$2:$B$1498,SMALL(IF(Database_Prop!$A$2:$A$1498=AM$129,ROW(Database_Prop!$B$2:$B$1498)-ROW(Database_Prop!$B$2)+1),ROWS(Database_Prop!J$2:'Database_Prop'!J53))),\"\")","v":""},{"$f":"IFERROR(INDEX(Database_Prop!$B$2:$B$1498,SMALL(IF(Database_Prop!$A$2:$A$1498=AN$129,ROW(Database_Prop!$B$2:$B$1498)-ROW(Database_Prop!$B$2)+1),ROWS(Database_Prop!K$2:'Database_Prop'!K53))),\"\")","v":""},{"$f":"IFERROR(INDEX(Database_Prop!$B$2:$B$1498,SMALL(IF(Database_Prop!$A$2:$A$1498=AO$129,ROW(Database_Prop!$B$2:$B$1498)-ROW(Database_Prop!$B$2)+1),ROWS(Database_Prop!L$2:'Database_Prop'!L53))),\"\")","v":""},{"$f":"IFERROR(INDEX(Database_Prop!$B$2:$B$1498,SMALL(IF(Database_Prop!$A$2:$A$1498=AP$129,ROW(Database_Prop!$B$2:$B$1498)-ROW(Database_Prop!$B$2)+1),ROWS(Database_Prop!M$2:'Database_Prop'!M53))),\"\")","v":""},{"$f":"IFERROR(INDEX(Database_Prop!$B$2:$B$1498,SMALL(IF(Database_Prop!$A$2:$A$1498=AQ$129,ROW(Database_Prop!$B$2:$B$1498)-ROW(Database_Prop!$B$2)+1),ROWS(Database_Prop!N$2:'Database_Prop'!N53))),\"\")","v":""},{"$f":"IFERROR(INDEX(Database_Prop!$B$2:$B$1498,SMALL(IF(Database_Prop!$A$2:$A$1498=AR$129,ROW(Database_Prop!$B$2:$B$1498)-ROW(Database_Prop!$B$2)+1),ROWS(Database_Prop!O$2:'Database_Prop'!O53))),\"\")","v":""},{"$f":"IFERROR(INDEX(Database_Prop!$B$2:$B$1498,SMALL(IF(Database_Prop!$A$2:$A$1498=AS$129,ROW(Database_Prop!$B$2:$B$1498)-ROW(Database_Prop!$B$2)+1),ROWS(Database_Prop!P$2:'Database_Prop'!P53))),\"\")","v":""},{"$f":"IFERROR(INDEX(Database_Prop!$B$2:$B$1498,SMALL(IF(Database_Prop!$A$2:$A$1498=AT$129,ROW(Database_Prop!$B$2:$B$1498)-ROW(Database_Prop!$B$2)+1),ROWS(Database_Prop!Q$2:'Database_Prop'!Q53))),\"\")","v":""},{"$f":"IFERROR(INDEX(Database_Prop!$B$2:$B$1498,SMALL(IF(Database_Prop!$A$2:$A$1498=AU$129,ROW(Database_Prop!$B$2:$B$1498)-ROW(Database_Prop!$B$2)+1),ROWS(Database_Prop!R$2:'Database_Prop'!R53))),\"\")","v":""},{"$f":"IFERROR(INDEX(Database_Prop!$B$2:$B$1498,SMALL(IF(Database_Prop!$A$2:$A$1498=AV$129,ROW(Database_Prop!$B$2:$B$1498)-ROW(Database_Prop!$B$2)+1),ROWS(Database_Prop!S$2:'Database_Prop'!S53))),\"\")","v":""},{"$f":"IFERROR(INDEX(Database_Prop!$B$2:$B$1498,SMALL(IF(Database_Prop!$A$2:$A$1498=AW$129,ROW(Database_Prop!$B$2:$B$1498)-ROW(Database_Prop!$B$2)+1),ROWS(Database_Prop!T$2:'Database_Prop'!T53))),\"\")","v":""},{"$f":"IFERROR(INDEX(Database_Prop!$B$2:$B$1498,SMALL(IF(Database_Prop!$A$2:$A$1498=AX$129,ROW(Database_Prop!$B$2:$B$1498)-ROW(Database_Prop!$B$2)+1),ROWS(Database_Prop!U$2:'Database_Prop'!U53))),\"\")","v":""},{"$f":"IFERROR(INDEX(Database_Prop!$B$2:$B$1498,SMALL(IF(Database_Prop!$A$2:$A$1498=AY$129,ROW(Database_Prop!$B$2:$B$1498)-ROW(Database_Prop!$B$2)+1),ROWS(Database_Prop!V$2:'Database_Prop'!V53))),\"\")","v":""},{"$f":"IFERROR(INDEX(Database_Prop!$B$2:$B$1498,SMALL(IF(Database_Prop!$A$2:$A$1498=AZ$129,ROW(Database_Prop!$B$2:$B$1498)-ROW(Database_Prop!$B$2)+1),ROWS(Database_Prop!W$2:'Database_Prop'!W53))),\"\")","v":""},{"$f":"IFERROR(INDEX(Database_Prop!$B$2:$B$1498,SMALL(IF(Database_Prop!$A$2:$A$1498=BA$129,ROW(Database_Prop!$B$2:$B$1498)-ROW(Database_Prop!$B$2)+1),ROWS(Database_Prop!X$2:'Database_Prop'!X53))),\"\")","v":""},{"$f":"IFERROR(INDEX(Database_Prop!$B$2:$B$1498,SMALL(IF(Database_Prop!$A$2:$A$1498=BB$129,ROW(Database_Prop!$B$2:$B$1498)-ROW(Database_Prop!$B$2)+1),ROWS(Database_Prop!Y$2:'Database_Prop'!Y53))),\"\")","v":""},{"$f":"IFERROR(INDEX(Database_Prop!$B$2:$B$1498,SMALL(IF(Database_Prop!$A$2:$A$1498=BC$129,ROW(Database_Prop!$B$2:$B$1498)-ROW(Database_Prop!$B$2)+1),ROWS(Database_Prop!Z$2:'Database_Prop'!Z53))),\"\")","v":""},null,"Croatia","Eastern Europe"]
[null,null,null,null,null,null,null,null,null,null,null,null,null,null,null,null,null,null,null,null,null,null,null,null,null,null,null,null,null,null,53,{"$f":"IFERROR(INDEX(Database_Prop!$B$2:$B$1498,SMALL(IF(Database_Prop!$A$2:$A$1498=AF$129,ROW(Database_Prop!$B$2:$B$1498)-ROW(Database_Prop!$B$2)+1),ROWS(Database_Prop!C$2:'Database_Prop'!C54))),\"\")","v":""},{"$f":"IFERROR(INDEX(Database_Prop!$B$2:$B$1498,SMALL(IF(Database_Prop!$A$2:$A$1498=AG$129,ROW(Database_Prop!$B$2:$B$1498)-ROW(Database_Prop!$B$2)+1),ROWS(Database_Prop!D$2:'Database_Prop'!D54))),\"\")","v":""},{"$f":"IFERROR(INDEX(Database_Prop!$B$2:$B$1498,SMALL(IF(Database_Prop!$A$2:$A$1498=AH$129,ROW(Database_Prop!$B$2:$B$1498)-ROW(Database_Prop!$B$2)+1),ROWS(Database_Prop!E$2:'Database_Prop'!E54))),\"\")","v":""},{"$f":"IFERROR(INDEX(Database_Prop!$B$2:$B$1498,SMALL(IF(Database_Prop!$A$2:$A$1498=AI$129,ROW(Database_Prop!$B$2:$B$1498)-ROW(Database_Prop!$B$2)+1),ROWS(Database_Prop!F$2:'Database_Prop'!F54))),\"\")","v":""},{"$f":"IFERROR(INDEX(Database_Prop!$B$2:$B$1498,SMALL(IF(Database_Prop!$A$2:$A$1498=AJ$129,ROW(Database_Prop!$B$2:$B$1498)-ROW(Database_Prop!$B$2)+1),ROWS(Database_Prop!G$2:'Database_Prop'!G54))),\"\")","v":""},{"$f":"IFERROR(INDEX(Database_Prop!$B$2:$B$1498,SMALL(IF(Database_Prop!$A$2:$A$1498=AK$129,ROW(Database_Prop!$B$2:$B$1498)-ROW(Database_Prop!$B$2)+1),ROWS(Database_Prop!H$2:'Database_Prop'!H54))),\"\")","v":""},{"$f":"IFERROR(INDEX(Database_Prop!$B$2:$B$1498,SMALL(IF(Database_Prop!$A$2:$A$1498=AL$129,ROW(Database_Prop!$B$2:$B$1498)-ROW(Database_Prop!$B$2)+1),ROWS(Database_Prop!I$2:'Database_Prop'!I54))),\"\")","v":""},{"$f":"IFERROR(INDEX(Database_Prop!$B$2:$B$1498,SMALL(IF(Database_Prop!$A$2:$A$1498=AM$129,ROW(Database_Prop!$B$2:$B$1498)-ROW(Database_Prop!$B$2)+1),ROWS(Database_Prop!J$2:'Database_Prop'!J54))),\"\")","v":""},{"$f":"IFERROR(INDEX(Database_Prop!$B$2:$B$1498,SMALL(IF(Database_Prop!$A$2:$A$1498=AN$129,ROW(Database_Prop!$B$2:$B$1498)-ROW(Database_Prop!$B$2)+1),ROWS(Database_Prop!K$2:'Database_Prop'!K54))),\"\")","v":""},{"$f":"IFERROR(INDEX(Database_Prop!$B$2:$B$1498,SMALL(IF(Database_Prop!$A$2:$A$1498=AO$129,ROW(Database_Prop!$B$2:$B$1498)-ROW(Database_Prop!$B$2)+1),ROWS(Database_Prop!L$2:'Database_Prop'!L54))),\"\")","v":""},{"$f":"IFERROR(INDEX(Database_Prop!$B$2:$B$1498,SMALL(IF(Database_Prop!$A$2:$A$1498=AP$129,ROW(Database_Prop!$B$2:$B$1498)-ROW(Database_Prop!$B$2)+1),ROWS(Database_Prop!M$2:'Database_Prop'!M54))),\"\")","v":""},{"$f":"IFERROR(INDEX(Database_Prop!$B$2:$B$1498,SMALL(IF(Database_Prop!$A$2:$A$1498=AQ$129,ROW(Database_Prop!$B$2:$B$1498)-ROW(Database_Prop!$B$2)+1),ROWS(Database_Prop!N$2:'Database_Prop'!N54))),\"\")","v":""},{"$f":"IFERROR(INDEX(Database_Prop!$B$2:$B$1498,SMALL(IF(Database_Prop!$A$2:$A$1498=AR$129,ROW(Database_Prop!$B$2:$B$1498)-ROW(Database_Prop!$B$2)+1),ROWS(Database_Prop!O$2:'Database_Prop'!O54))),\"\")","v":""},{"$f":"IFERROR(INDEX(Database_Prop!$B$2:$B$1498,SMALL(IF(Database_Prop!$A$2:$A$1498=AS$129,ROW(Database_Prop!$B$2:$B$1498)-ROW(Database_Prop!$B$2)+1),ROWS(Database_Prop!P$2:'Database_Prop'!P54))),\"\")","v":""},{"$f":"IFERROR(INDEX(Database_Prop!$B$2:$B$1498,SMALL(IF(Database_Prop!$A$2:$A$1498=AT$129,ROW(Database_Prop!$B$2:$B$1498)-ROW(Database_Prop!$B$2)+1),ROWS(Database_Prop!Q$2:'Database_Prop'!Q54))),\"\")","v":""},{"$f":"IFERROR(INDEX(Database_Prop!$B$2:$B$1498,SMALL(IF(Database_Prop!$A$2:$A$1498=AU$129,ROW(Database_Prop!$B$2:$B$1498)-ROW(Database_Prop!$B$2)+1),ROWS(Database_Prop!R$2:'Database_Prop'!R54))),\"\")","v":""},{"$f":"IFERROR(INDEX(Database_Prop!$B$2:$B$1498,SMALL(IF(Database_Prop!$A$2:$A$1498=AV$129,ROW(Database_Prop!$B$2:$B$1498)-ROW(Database_Prop!$B$2)+1),ROWS(Database_Prop!S$2:'Database_Prop'!S54))),\"\")","v":""},{"$f":"IFERROR(INDEX(Database_Prop!$B$2:$B$1498,SMALL(IF(Database_Prop!$A$2:$A$1498=AW$129,ROW(Database_Prop!$B$2:$B$1498)-ROW(Database_Prop!$B$2)+1),ROWS(Database_Prop!T$2:'Database_Prop'!T54))),\"\")","v":""},{"$f":"IFERROR(INDEX(Database_Prop!$B$2:$B$1498,SMALL(IF(Database_Prop!$A$2:$A$1498=AX$129,ROW(Database_Prop!$B$2:$B$1498)-ROW(Database_Prop!$B$2)+1),ROWS(Database_Prop!U$2:'Database_Prop'!U54))),\"\")","v":""},{"$f":"IFERROR(INDEX(Database_Prop!$B$2:$B$1498,SMALL(IF(Database_Prop!$A$2:$A$1498=AY$129,ROW(Database_Prop!$B$2:$B$1498)-ROW(Database_Prop!$B$2)+1),ROWS(Database_Prop!V$2:'Database_Prop'!V54))),\"\")","v":""},{"$f":"IFERROR(INDEX(Database_Prop!$B$2:$B$1498,SMALL(IF(Database_Prop!$A$2:$A$1498=AZ$129,ROW(Database_Prop!$B$2:$B$1498)-ROW(Database_Prop!$B$2)+1),ROWS(Database_Prop!W$2:'Database_Prop'!W54))),\"\")","v":""},{"$f":"IFERROR(INDEX(Database_Prop!$B$2:$B$1498,SMALL(IF(Database_Prop!$A$2:$A$1498=BA$129,ROW(Database_Prop!$B$2:$B$1498)-ROW(Database_Prop!$B$2)+1),ROWS(Database_Prop!X$2:'Database_Prop'!X54))),\"\")","v":""},{"$f":"IFERROR(INDEX(Database_Prop!$B$2:$B$1498,SMALL(IF(Database_Prop!$A$2:$A$1498=BB$129,ROW(Database_Prop!$B$2:$B$1498)-ROW(Database_Prop!$B$2)+1),ROWS(Database_Prop!Y$2:'Database_Prop'!Y54))),\"\")","v":""},{"$f":"IFERROR(INDEX(Database_Prop!$B$2:$B$1498,SMALL(IF(Database_Prop!$A$2:$A$1498=BC$129,ROW(Database_Prop!$B$2:$B$1498)-ROW(Database_Prop!$B$2)+1),ROWS(Database_Prop!Z$2:'Database_Prop'!Z54))),\"\")","v":""},null,"Cuba","Latin America"]
[null,null,null,null,null,null,null,null,null,null,null,null,null,null,null,null,null,null,null,null,null,null,null,null,null,null,null,null,null,null,54,{"$f":"IFERROR(INDEX(Database_Prop!$B$2:$B$1498,SMALL(IF(Database_Prop!$A$2:$A$1498=AF$129,ROW(Database_Prop!$B$2:$B$1498)-ROW(Database_Prop!$B$2)+1),ROWS(Database_Prop!C$2:'Database_Prop'!C55))),\"\")","v":""},{"$f":"IFERROR(INDEX(Database_Prop!$B$2:$B$1498,SMALL(IF(Database_Prop!$A$2:$A$1498=AG$129,ROW(Database_Prop!$B$2:$B$1498)-ROW(Database_Prop!$B$2)+1),ROWS(Database_Prop!D$2:'Database_Prop'!D55))),\"\")","v":""},{"$f":"IFERROR(INDEX(Database_Prop!$B$2:$B$1498,SMALL(IF(Database_Prop!$A$2:$A$1498=AH$129,ROW(Database_Prop!$B$2:$B$1498)-ROW(Database_Prop!$B$2)+1),ROWS(Database_Prop!E$2:'Database_Prop'!E55))),\"\")","v":""},{"$f":"IFERROR(INDEX(Database_Prop!$B$2:$B$1498,SMALL(IF(Database_Prop!$A$2:$A$1498=AI$129,ROW(Database_Prop!$B$2:$B$1498)-ROW(Database_Prop!$B$2)+1),ROWS(Database_Prop!F$2:'Database_Prop'!F55))),\"\")","v":""},{"$f":"IFERROR(INDEX(Database_Prop!$B$2:$B$1498,SMALL(IF(Database_Prop!$A$2:$A$1498=AJ$129,ROW(Database_Prop!$B$2:$B$1498)-ROW(Database_Prop!$B$2)+1),ROWS(Database_Prop!G$2:'Database_Prop'!G55))),\"\")","v":""},{"$f":"IFERROR(INDEX(Database_Prop!$B$2:$B$1498,SMALL(IF(Database_Prop!$A$2:$A$1498=AK$129,ROW(Database_Prop!$B$2:$B$1498)-ROW(Database_Prop!$B$2)+1),ROWS(Database_Prop!H$2:'Database_Prop'!H55))),\"\")","v":""},{"$f":"IFERROR(INDEX(Database_Prop!$B$2:$B$1498,SMALL(IF(Database_Prop!$A$2:$A$1498=AL$129,ROW(Database_Prop!$B$2:$B$1498)-ROW(Database_Prop!$B$2)+1),ROWS(Database_Prop!I$2:'Database_Prop'!I55))),\"\")","v":""},{"$f":"IFERROR(INDEX(Database_Prop!$B$2:$B$1498,SMALL(IF(Database_Prop!$A$2:$A$1498=AM$129,ROW(Database_Prop!$B$2:$B$1498)-ROW(Database_Prop!$B$2)+1),ROWS(Database_Prop!J$2:'Database_Prop'!J55))),\"\")","v":""},{"$f":"IFERROR(INDEX(Database_Prop!$B$2:$B$1498,SMALL(IF(Database_Prop!$A$2:$A$1498=AN$129,ROW(Database_Prop!$B$2:$B$1498)-ROW(Database_Prop!$B$2)+1),ROWS(Database_Prop!K$2:'Database_Prop'!K55))),\"\")","v":""},{"$f":"IFERROR(INDEX(Database_Prop!$B$2:$B$1498,SMALL(IF(Database_Prop!$A$2:$A$1498=AO$129,ROW(Database_Prop!$B$2:$B$1498)-ROW(Database_Prop!$B$2)+1),ROWS(Database_Prop!L$2:'Database_Prop'!L55))),\"\")","v":""},{"$f":"IFERROR(INDEX(Database_Prop!$B$2:$B$1498,SMALL(IF(Database_Prop!$A$2:$A$1498=AP$129,ROW(Database_Prop!$B$2:$B$1498)-ROW(Database_Prop!$B$2)+1),ROWS(Database_Prop!M$2:'Database_Prop'!M55))),\"\")","v":""},{"$f":"IFERROR(INDEX(Database_Prop!$B$2:$B$1498,SMALL(IF(Database_Prop!$A$2:$A$1498=AQ$129,ROW(Database_Prop!$B$2:$B$1498)-ROW(Database_Prop!$B$2)+1),ROWS(Database_Prop!N$2:'Database_Prop'!N55))),\"\")","v":""},{"$f":"IFERROR(INDEX(Database_Prop!$B$2:$B$1498,SMALL(IF(Database_Prop!$A$2:$A$1498=AR$129,ROW(Database_Prop!$B$2:$B$1498)-ROW(Database_Prop!$B$2)+1),ROWS(Database_Prop!O$2:'Database_Prop'!O55))),\"\")","v":""},{"$f":"IFERROR(INDEX(Database_Prop!$B$2:$B$1498,SMALL(IF(Database_Prop!$A$2:$A$1498=AS$129,ROW(Database_Prop!$B$2:$B$1498)-ROW(Database_Prop!$B$2)+1),ROWS(Database_Prop!P$2:'Database_Prop'!P55))),\"\")","v":""},{"$f":"IFERROR(INDEX(Database_Prop!$B$2:$B$1498,SMALL(IF(Database_Prop!$A$2:$A$1498=AT$129,ROW(Database_Prop!$B$2:$B$1498)-ROW(Database_Prop!$B$2)+1),ROWS(Database_Prop!Q$2:'Database_Prop'!Q55))),\"\")","v":""},{"$f":"IFERROR(INDEX(Database_Prop!$B$2:$B$1498,SMALL(IF(Database_Prop!$A$2:$A$1498=AU$129,ROW(Database_Prop!$B$2:$B$1498)-ROW(Database_Prop!$B$2)+1),ROWS(Database_Prop!R$2:'Database_Prop'!R55))),\"\")","v":""},{"$f":"IFERROR(INDEX(Database_Prop!$B$2:$B$1498,SMALL(IF(Database_Prop!$A$2:$A$1498=AV$129,ROW(Database_Prop!$B$2:$B$1498)-ROW(Database_Prop!$B$2)+1),ROWS(Database_Prop!S$2:'Database_Prop'!S55))),\"\")","v":""},{"$f":"IFERROR(INDEX(Database_Prop!$B$2:$B$1498,SMALL(IF(Database_Prop!$A$2:$A$1498=AW$129,ROW(Database_Prop!$B$2:$B$1498)-ROW(Database_Prop!$B$2)+1),ROWS(Database_Prop!T$2:'Database_Prop'!T55))),\"\")","v":""},{"$f":"IFERROR(INDEX(Database_Prop!$B$2:$B$1498,SMALL(IF(Database_Prop!$A$2:$A$1498=AX$129,ROW(Database_Prop!$B$2:$B$1498)-ROW(Database_Prop!$B$2)+1),ROWS(Database_Prop!U$2:'Database_Prop'!U55))),\"\")","v":""},{"$f":"IFERROR(INDEX(Database_Prop!$B$2:$B$1498,SMALL(IF(Database_Prop!$A$2:$A$1498=AY$129,ROW(Database_Prop!$B$2:$B$1498)-ROW(Database_Prop!$B$2)+1),ROWS(Database_Prop!V$2:'Database_Prop'!V55))),\"\")","v":""},{"$f":"IFERROR(INDEX(Database_Prop!$B$2:$B$1498,SMALL(IF(Database_Prop!$A$2:$A$1498=AZ$129,ROW(Database_Prop!$B$2:$B$1498)-ROW(Database_Prop!$B$2)+1),ROWS(Database_Prop!W$2:'Database_Prop'!W55))),\"\")","v":""},{"$f":"IFERROR(INDEX(Database_Prop!$B$2:$B$1498,SMALL(IF(Database_Prop!$A$2:$A$1498=BA$129,ROW(Database_Prop!$B$2:$B$1498)-ROW(Database_Prop!$B$2)+1),ROWS(Database_Prop!X$2:'Database_Prop'!X55))),\"\")","v":""},{"$f":"IFERROR(INDEX(Database_Prop!$B$2:$B$1498,SMALL(IF(Database_Prop!$A$2:$A$1498=BB$129,ROW(Database_Prop!$B$2:$B$1498)-ROW(Database_Prop!$B$2)+1),ROWS(Database_Prop!Y$2:'Database_Prop'!Y55))),\"\")","v":""},{"$f":"IFERROR(INDEX(Database_Prop!$B$2:$B$1498,SMALL(IF(Database_Prop!$A$2:$A$1498=BC$129,ROW(Database_Prop!$B$2:$B$1498)-ROW(Database_Prop!$B$2)+1),ROWS(Database_Prop!Z$2:'Database_Prop'!Z55))),\"\")","v":""},null,"Curaçao","Latin America"]
[null,null,null,null,null,null,null,null,null,null,null,null,null,null,null,null,null,null,null,null,null,null,null,null,null,null,null,null,null,null,55,{"$f":"IFERROR(INDEX(Database_Prop!$B$2:$B$1498,SMALL(IF(Database_Prop!$A$2:$A$1498=AF$129,ROW(Database_Prop!$B$2:$B$1498)-ROW(Database_Prop!$B$2)+1),ROWS(Database_Prop!C$2:'Database_Prop'!C56))),\"\")","v":""},{"$f":"IFERROR(INDEX(Database_Prop!$B$2:$B$1498,SMALL(IF(Database_Prop!$A$2:$A$1498=AG$129,ROW(Database_Prop!$B$2:$B$1498)-ROW(Database_Prop!$B$2)+1),ROWS(Database_Prop!D$2:'Database_Prop'!D56))),\"\")","v":""},{"$f":"IFERROR(INDEX(Database_Prop!$B$2:$B$1498,SMALL(IF(Database_Prop!$A$2:$A$1498=AH$129,ROW(Database_Prop!$B$2:$B$1498)-ROW(Database_Prop!$B$2)+1),ROWS(Database_Prop!E$2:'Database_Prop'!E56))),\"\")","v":""},{"$f":"IFERROR(INDEX(Database_Prop!$B$2:$B$1498,SMALL(IF(Database_Prop!$A$2:$A$1498=AI$129,ROW(Database_Prop!$B$2:$B$1498)-ROW(Database_Prop!$B$2)+1),ROWS(Database_Prop!F$2:'Database_Prop'!F56))),\"\")","v":""},{"$f":"IFERROR(INDEX(Database_Prop!$B$2:$B$1498,SMALL(IF(Database_Prop!$A$2:$A$1498=AJ$129,ROW(Database_Prop!$B$2:$B$1498)-ROW(Database_Prop!$B$2)+1),ROWS(Database_Prop!G$2:'Database_Prop'!G56))),\"\")","v":""},{"$f":"IFERROR(INDEX(Database_Prop!$B$2:$B$1498,SMALL(IF(Database_Prop!$A$2:$A$1498=AK$129,ROW(Database_Prop!$B$2:$B$1498)-ROW(Database_Prop!$B$2)+1),ROWS(Database_Prop!H$2:'Database_Prop'!H56))),\"\")","v":""},{"$f":"IFERROR(INDEX(Database_Prop!$B$2:$B$1498,SMALL(IF(Database_Prop!$A$2:$A$1498=AL$129,ROW(Database_Prop!$B$2:$B$1498)-ROW(Database_Prop!$B$2)+1),ROWS(Database_Prop!I$2:'Database_Prop'!I56))),\"\")","v":""},{"$f":"IFERROR(INDEX(Database_Prop!$B$2:$B$1498,SMALL(IF(Database_Prop!$A$2:$A$1498=AM$129,ROW(Database_Prop!$B$2:$B$1498)-ROW(Database_Prop!$B$2)+1),ROWS(Database_Prop!J$2:'Database_Prop'!J56))),\"\")","v":""},{"$f":"IFERROR(INDEX(Database_Prop!$B$2:$B$1498,SMALL(IF(Database_Prop!$A$2:$A$1498=AN$129,ROW(Database_Prop!$B$2:$B$1498)-ROW(Database_Prop!$B$2)+1),ROWS(Database_Prop!K$2:'Database_Prop'!K56))),\"\")","v":""},{"$f":"IFERROR(INDEX(Database_Prop!$B$2:$B$1498,SMALL(IF(Database_Prop!$A$2:$A$1498=AO$129,ROW(Database_Prop!$B$2:$B$1498)-ROW(Database_Prop!$B$2)+1),ROWS(Database_Prop!L$2:'Database_Prop'!L56))),\"\")","v":""},{"$f":"IFERROR(INDEX(Database_Prop!$B$2:$B$1498,SMALL(IF(Database_Prop!$A$2:$A$1498=AP$129,ROW(Database_Prop!$B$2:$B$1498)-ROW(Database_Prop!$B$2)+1),ROWS(Database_Prop!M$2:'Database_Prop'!M56))),\"\")","v":""},{"$f":"IFERROR(INDEX(Database_Prop!$B$2:$B$1498,SMALL(IF(Database_Prop!$A$2:$A$1498=AQ$129,ROW(Database_Prop!$B$2:$B$1498)-ROW(Database_Prop!$B$2)+1),ROWS(Database_Prop!N$2:'Database_Prop'!N56))),\"\")","v":""},{"$f":"IFERROR(INDEX(Database_Prop!$B$2:$B$1498,SMALL(IF(Database_Prop!$A$2:$A$1498=AR$129,ROW(Database_Prop!$B$2:$B$1498)-ROW(Database_Prop!$B$2)+1),ROWS(Database_Prop!O$2:'Database_Prop'!O56))),\"\")","v":""},{"$f":"IFERROR(INDEX(Database_Prop!$B$2:$B$1498,SMALL(IF(Database_Prop!$A$2:$A$1498=AS$129,ROW(Database_Prop!$B$2:$B$1498)-ROW(Database_Prop!$B$2)+1),ROWS(Database_Prop!P$2:'Database_Prop'!P56))),\"\")","v":""},{"$f":"IFERROR(INDEX(Database_Prop!$B$2:$B$1498,SMALL(IF(Database_Prop!$A$2:$A$1498=AT$129,ROW(Database_Prop!$B$2:$B$1498)-ROW(Database_Prop!$B$2)+1),ROWS(Database_Prop!Q$2:'Database_Prop'!Q56))),\"\")","v":""},{"$f":"IFERROR(INDEX(Database_Prop!$B$2:$B$1498,SMALL(IF(Database_Prop!$A$2:$A$1498=AU$129,ROW(Database_Prop!$B$2:$B$1498)-ROW(Database_Prop!$B$2)+1),ROWS(Database_Prop!R$2:'Database_Prop'!R56))),\"\")","v":""},{"$f":"IFERROR(INDEX(Database_Prop!$B$2:$B$1498,SMALL(IF(Database_Prop!$A$2:$A$1498=AV$129,ROW(Database_Prop!$B$2:$B$1498)-ROW(Database_Prop!$B$2)+1),ROWS(Database_Prop!S$2:'Database_Prop'!S56))),\"\")","v":""},{"$f":"IFERROR(INDEX(Database_Prop!$B$2:$B$1498,SMALL(IF(Database_Prop!$A$2:$A$1498=AW$129,ROW(Database_Prop!$B$2:$B$1498)-ROW(Database_Prop!$B$2)+1),ROWS(Database_Prop!T$2:'Database_Prop'!T56))),\"\")","v":""},{"$f":"IFERROR(INDEX(Database_Prop!$B$2:$B$1498,SMALL(IF(Database_Prop!$A$2:$A$1498=AX$129,ROW(Database_Prop!$B$2:$B$1498)-ROW(Database_Prop!$B$2)+1),ROWS(Database_Prop!U$2:'Database_Prop'!U56))),\"\")","v":""},{"$f":"IFERROR(INDEX(Database_Prop!$B$2:$B$1498,SMALL(IF(Database_Prop!$A$2:$A$1498=AY$129,ROW(Database_Prop!$B$2:$B$1498)-ROW(Database_Prop!$B$2)+1),ROWS(Database_Prop!V$2:'Database_Prop'!V56))),\"\")","v":""},{"$f":"IFERROR(INDEX(Database_Prop!$B$2:$B$1498,SMALL(IF(Database_Prop!$A$2:$A$1498=AZ$129,ROW(Database_Prop!$B$2:$B$1498)-ROW(Database_Prop!$B$2)+1),ROWS(Database_Prop!W$2:'Database_Prop'!W56))),\"\")","v":""},{"$f":"IFERROR(INDEX(Database_Prop!$B$2:$B$1498,SMALL(IF(Database_Prop!$A$2:$A$1498=BA$129,ROW(Database_Prop!$B$2:$B$1498)-ROW(Database_Prop!$B$2)+1),ROWS(Database_Prop!X$2:'Database_Prop'!X56))),\"\")","v":""},{"$f":"IFERROR(INDEX(Database_Prop!$B$2:$B$1498,SMALL(IF(Database_Prop!$A$2:$A$1498=BB$129,ROW(Database_Prop!$B$2:$B$1498)-ROW(Database_Prop!$B$2)+1),ROWS(Database_Prop!Y$2:'Database_Prop'!Y56))),\"\")","v":""},{"$f":"IFERROR(INDEX(Database_Prop!$B$2:$B$1498,SMALL(IF(Database_Prop!$A$2:$A$1498=BC$129,ROW(Database_Prop!$B$2:$B$1498)-ROW(Database_Prop!$B$2)+1),ROWS(Database_Prop!Z$2:'Database_Prop'!Z56))),\"\")","v":""},null,"Cyprus","Asia"]
[null,null,null,null,null,null,null,null,null,null,null,null,null,null,null,null,null,null,null,null,null,null,null,null,null,null,null,null,null,null,56,{"$f":"IFERROR(INDEX(Database_Prop!$B$2:$B$1498,SMALL(IF(Database_Prop!$A$2:$A$1498=AF$129,ROW(Database_Prop!$B$2:$B$1498)-ROW(Database_Prop!$B$2)+1),ROWS(Database_Prop!C$2:'Database_Prop'!C57))),\"\")","v":""},{"$f":"IFERROR(INDEX(Database_Prop!$B$2:$B$1498,SMALL(IF(Database_Prop!$A$2:$A$1498=AG$129,ROW(Database_Prop!$B$2:$B$1498)-ROW(Database_Prop!$B$2)+1),ROWS(Database_Prop!D$2:'Database_Prop'!D57))),\"\")","v":""},{"$f":"IFERROR(INDEX(Database_Prop!$B$2:$B$1498,SMALL(IF(Database_Prop!$A$2:$A$1498=AH$129,ROW(Database_Prop!$B$2:$B$1498)-ROW(Database_Prop!$B$2)+1),ROWS(Database_Prop!E$2:'Database_Prop'!E57))),\"\")","v":""},{"$f":"IFERROR(INDEX(Database_Prop!$B$2:$B$1498,SMALL(IF(Database_Prop!$A$2:$A$1498=AI$129,ROW(Database_Prop!$B$2:$B$1498)-ROW(Database_Prop!$B$2)+1),ROWS(Database_Prop!F$2:'Database_Prop'!F57))),\"\")","v":""},{"$f":"IFERROR(INDEX(Database_Prop!$B$2:$B$1498,SMALL(IF(Database_Prop!$A$2:$A$1498=AJ$129,ROW(Database_Prop!$B$2:$B$1498)-ROW(Database_Prop!$B$2)+1),ROWS(Database_Prop!G$2:'Database_Prop'!G57))),\"\")","v":""},{"$f":"IFERROR(INDEX(Database_Prop!$B$2:$B$1498,SMALL(IF(Database_Prop!$A$2:$A$1498=AK$129,ROW(Database_Prop!$B$2:$B$1498)-ROW(Database_Prop!$B$2)+1),ROWS(Database_Prop!H$2:'Database_Prop'!H57))),\"\")","v":""},{"$f":"IFERROR(INDEX(Database_Prop!$B$2:$B$1498,SMALL(IF(Database_Prop!$A$2:$A$1498=AL$129,ROW(Database_Prop!$B$2:$B$1498)-ROW(Database_Prop!$B$2)+1),ROWS(Database_Prop!I$2:'Database_Prop'!I57))),\"\")","v":""},{"$f":"IFERROR(INDEX(Database_Prop!$B$2:$B$1498,SMALL(IF(Database_Prop!$A$2:$A$1498=AM$129,ROW(Database_Prop!$B$2:$B$1498)-ROW(Database_Prop!$B$2)+1),ROWS(Database_Prop!J$2:'Database_Prop'!J57))),\"\")","v":""},{"$f":"IFERROR(INDEX(Database_Prop!$B$2:$B$1498,SMALL(IF(Database_Prop!$A$2:$A$1498=AN$129,ROW(Database_Prop!$B$2:$B$1498)-ROW(Database_Prop!$B$2)+1),ROWS(Database_Prop!K$2:'Database_Prop'!K57))),\"\")","v":""},{"$f":"IFERROR(INDEX(Database_Prop!$B$2:$B$1498,SMALL(IF(Database_Prop!$A$2:$A$1498=AO$129,ROW(Database_Prop!$B$2:$B$1498)-ROW(Database_Prop!$B$2)+1),ROWS(Database_Prop!L$2:'Database_Prop'!L57))),\"\")","v":""},{"$f":"IFERROR(INDEX(Database_Prop!$B$2:$B$1498,SMALL(IF(Database_Prop!$A$2:$A$1498=AP$129,ROW(Database_Prop!$B$2:$B$1498)-ROW(Database_Prop!$B$2)+1),ROWS(Database_Prop!M$2:'Database_Prop'!M57))),\"\")","v":""},{"$f":"IFERROR(INDEX(Database_Prop!$B$2:$B$1498,SMALL(IF(Database_Prop!$A$2:$A$1498=AQ$129,ROW(Database_Prop!$B$2:$B$1498)-ROW(Database_Prop!$B$2)+1),ROWS(Database_Prop!N$2:'Database_Prop'!N57))),\"\")","v":""},{"$f":"IFERROR(INDEX(Database_Prop!$B$2:$B$1498,SMALL(IF(Database_Prop!$A$2:$A$1498=AR$129,ROW(Database_Prop!$B$2:$B$1498)-ROW(Database_Prop!$B$2)+1),ROWS(Database_Prop!O$2:'Database_Prop'!O57))),\"\")","v":""},{"$f":"IFERROR(INDEX(Database_Prop!$B$2:$B$1498,SMALL(IF(Database_Prop!$A$2:$A$1498=AS$129,ROW(Database_Prop!$B$2:$B$1498)-ROW(Database_Prop!$B$2)+1),ROWS(Database_Prop!P$2:'Database_Prop'!P57))),\"\")","v":""},{"$f":"IFERROR(INDEX(Database_Prop!$B$2:$B$1498,SMALL(IF(Database_Prop!$A$2:$A$1498=AT$129,ROW(Database_Prop!$B$2:$B$1498)-ROW(Database_Prop!$B$2)+1),ROWS(Database_Prop!Q$2:'Database_Prop'!Q57))),\"\")","v":""},{"$f":"IFERROR(INDEX(Database_Prop!$B$2:$B$1498,SMALL(IF(Database_Prop!$A$2:$A$1498=AU$129,ROW(Database_Prop!$B$2:$B$1498)-ROW(Database_Prop!$B$2)+1),ROWS(Database_Prop!R$2:'Database_Prop'!R57))),\"\")","v":""},{"$f":"IFERROR(INDEX(Database_Prop!$B$2:$B$1498,SMALL(IF(Database_Prop!$A$2:$A$1498=AV$129,ROW(Database_Prop!$B$2:$B$1498)-ROW(Database_Prop!$B$2)+1),ROWS(Database_Prop!S$2:'Database_Prop'!S57))),\"\")","v":""},{"$f":"IFERROR(INDEX(Database_Prop!$B$2:$B$1498,SMALL(IF(Database_Prop!$A$2:$A$1498=AW$129,ROW(Database_Prop!$B$2:$B$1498)-ROW(Database_Prop!$B$2)+1),ROWS(Database_Prop!T$2:'Database_Prop'!T57))),\"\")","v":""},{"$f":"IFERROR(INDEX(Database_Prop!$B$2:$B$1498,SMALL(IF(Database_Prop!$A$2:$A$1498=AX$129,ROW(Database_Prop!$B$2:$B$1498)-ROW(Database_Prop!$B$2)+1),ROWS(Database_Prop!U$2:'Database_Prop'!U57))),\"\")","v":""},{"$f":"IFERROR(INDEX(Database_Prop!$B$2:$B$1498,SMALL(IF(Database_Prop!$A$2:$A$1498=AY$129,ROW(Database_Prop!$B$2:$B$1498)-ROW(Database_Prop!$B$2)+1),ROWS(Database_Prop!V$2:'Database_Prop'!V57))),\"\")","v":""},{"$f":"IFERROR(INDEX(Database_Prop!$B$2:$B$1498,SMALL(IF(Database_Prop!$A$2:$A$1498=AZ$129,ROW(Database_Prop!$B$2:$B$1498)-ROW(Database_Prop!$B$2)+1),ROWS(Database_Prop!W$2:'Database_Prop'!W57))),\"\")","v":""},{"$f":"IFERROR(INDEX(Database_Prop!$B$2:$B$1498,SMALL(IF(Database_Prop!$A$2:$A$1498=BA$129,ROW(Database_Prop!$B$2:$B$1498)-ROW(Database_Prop!$B$2)+1),ROWS(Database_Prop!X$2:'Database_Prop'!X57))),\"\")","v":""},{"$f":"IFERROR(INDEX(Database_Prop!$B$2:$B$1498,SMALL(IF(Database_Prop!$A$2:$A$1498=BB$129,ROW(Database_Prop!$B$2:$B$1498)-ROW(Database_Prop!$B$2)+1),ROWS(Database_Prop!Y$2:'Database_Prop'!Y57))),\"\")","v":""},{"$f":"IFERROR(INDEX(Database_Prop!$B$2:$B$1498,SMALL(IF(Database_Prop!$A$2:$A$1498=BC$129,ROW(Database_Prop!$B$2:$B$1498)-ROW(Database_Prop!$B$2)+1),ROWS(Database_Prop!Z$2:'Database_Prop'!Z57))),\"\")","v":""},null,"Czech Republic","Eastern Europe"]
[null,null,null,null,null,null,null,null,null,null,null,null,null,null,null,null,null,null,null,null,null,null,null,null,null,null,null,null,null,null,57,{"$f":"IFERROR(INDEX(Database_Prop!$B$2:$B$1498,SMALL(IF(Database_Prop!$A$2:$A$1498=AF$129,ROW(Database_Prop!$B$2:$B$1498)-ROW(Database_Prop!$B$2)+1),ROWS(Database_Prop!C$2:'Database_Prop'!C58))),\"\")","v":""},{"$f":"IFERROR(INDEX(Database_Prop!$B$2:$B$1498,SMALL(IF(Database_Prop!$A$2:$A$1498=AG$129,ROW(Database_Prop!$B$2:$B$1498)-ROW(Database_Prop!$B$2)+1),ROWS(Database_Prop!D$2:'Database_Prop'!D58))),\"\")","v":""},{"$f":"IFERROR(INDEX(Database_Prop!$B$2:$B$1498,SMALL(IF(Database_Prop!$A$2:$A$1498=AH$129,ROW(Database_Prop!$B$2:$B$1498)-ROW(Database_Prop!$B$2)+1),ROWS(Database_Prop!E$2:'Database_Prop'!E58))),\"\")","v":""},{"$f":"IFERROR(INDEX(Database_Prop!$B$2:$B$1498,SMALL(IF(Database_Prop!$A$2:$A$1498=AI$129,ROW(Database_Prop!$B$2:$B$1498)-ROW(Database_Prop!$B$2)+1),ROWS(Database_Prop!F$2:'Database_Prop'!F58))),\"\")","v":""},{"$f":"IFERROR(INDEX(Database_Prop!$B$2:$B$1498,SMALL(IF(Database_Prop!$A$2:$A$1498=AJ$129,ROW(Database_Prop!$B$2:$B$1498)-ROW(Database_Prop!$B$2)+1),ROWS(Database_Prop!G$2:'Database_Prop'!G58))),\"\")","v":""},{"$f":"IFERROR(INDEX(Database_Prop!$B$2:$B$1498,SMALL(IF(Database_Prop!$A$2:$A$1498=AK$129,ROW(Database_Prop!$B$2:$B$1498)-ROW(Database_Prop!$B$2)+1),ROWS(Database_Prop!H$2:'Database_Prop'!H58))),\"\")","v":""},{"$f":"IFERROR(INDEX(Database_Prop!$B$2:$B$1498,SMALL(IF(Database_Prop!$A$2:$A$1498=AL$129,ROW(Database_Prop!$B$2:$B$1498)-ROW(Database_Prop!$B$2)+1),ROWS(Database_Prop!I$2:'Database_Prop'!I58))),\"\")","v":""},{"$f":"IFERROR(INDEX(Database_Prop!$B$2:$B$1498,SMALL(IF(Database_Prop!$A$2:$A$1498=AM$129,ROW(Database_Prop!$B$2:$B$1498)-ROW(Database_Prop!$B$2)+1),ROWS(Database_Prop!J$2:'Database_Prop'!J58))),\"\")","v":""},{"$f":"IFERROR(INDEX(Database_Prop!$B$2:$B$1498,SMALL(IF(Database_Prop!$A$2:$A$1498=AN$129,ROW(Database_Prop!$B$2:$B$1498)-ROW(Database_Prop!$B$2)+1),ROWS(Database_Prop!K$2:'Database_Prop'!K58))),\"\")","v":""},{"$f":"IFERROR(INDEX(Database_Prop!$B$2:$B$1498,SMALL(IF(Database_Prop!$A$2:$A$1498=AO$129,ROW(Database_Prop!$B$2:$B$1498)-ROW(Database_Prop!$B$2)+1),ROWS(Database_Prop!L$2:'Database_Prop'!L58))),\"\")","v":""},{"$f":"IFERROR(INDEX(Database_Prop!$B$2:$B$1498,SMALL(IF(Database_Prop!$A$2:$A$1498=AP$129,ROW(Database_Prop!$B$2:$B$1498)-ROW(Database_Prop!$B$2)+1),ROWS(Database_Prop!M$2:'Database_Prop'!M58))),\"\")","v":""},{"$f":"IFERROR(INDEX(Database_Prop!$B$2:$B$1498,SMALL(IF(Database_Prop!$A$2:$A$1498=AQ$129,ROW(Database_Prop!$B$2:$B$1498)-ROW(Database_Prop!$B$2)+1),ROWS(Database_Prop!N$2:'Database_Prop'!N58))),\"\")","v":""},{"$f":"IFERROR(INDEX(Database_Prop!$B$2:$B$1498,SMALL(IF(Database_Prop!$A$2:$A$1498=AR$129,ROW(Database_Prop!$B$2:$B$1498)-ROW(Database_Prop!$B$2)+1),ROWS(Database_Prop!O$2:'Database_Prop'!O58))),\"\")","v":""},{"$f":"IFERROR(INDEX(Database_Prop!$B$2:$B$1498,SMALL(IF(Database_Prop!$A$2:$A$1498=AS$129,ROW(Database_Prop!$B$2:$B$1498)-ROW(Database_Prop!$B$2)+1),ROWS(Database_Prop!P$2:'Database_Prop'!P58))),\"\")","v":""},{"$f":"IFERROR(INDEX(Database_Prop!$B$2:$B$1498,SMALL(IF(Database_Prop!$A$2:$A$1498=AT$129,ROW(Database_Prop!$B$2:$B$1498)-ROW(Database_Prop!$B$2)+1),ROWS(Database_Prop!Q$2:'Database_Prop'!Q58))),\"\")","v":""},{"$f":"IFERROR(INDEX(Database_Prop!$B$2:$B$1498,SMALL(IF(Database_Prop!$A$2:$A$1498=AU$129,ROW(Database_Prop!$B$2:$B$1498)-ROW(Database_Prop!$B$2)+1),ROWS(Database_Prop!R$2:'Database_Prop'!R58))),\"\")","v":""},{"$f":"IFERROR(INDEX(Database_Prop!$B$2:$B$1498,SMALL(IF(Database_Prop!$A$2:$A$1498=AV$129,ROW(Database_Prop!$B$2:$B$1498)-ROW(Database_Prop!$B$2)+1),ROWS(Database_Prop!S$2:'Database_Prop'!S58))),\"\")","v":""},{"$f":"IFERROR(INDEX(Database_Prop!$B$2:$B$1498,SMALL(IF(Database_Prop!$A$2:$A$1498=AW$129,ROW(Database_Prop!$B$2:$B$1498)-ROW(Database_Prop!$B$2)+1),ROWS(Database_Prop!T$2:'Database_Prop'!T58))),\"\")","v":""},{"$f":"IFERROR(INDEX(Database_Prop!$B$2:$B$1498,SMALL(IF(Database_Prop!$A$2:$A$1498=AX$129,ROW(Database_Prop!$B$2:$B$1498)-ROW(Database_Prop!$B$2)+1),ROWS(Database_Prop!U$2:'Database_Prop'!U58))),\"\")","v":""},{"$f":"IFERROR(INDEX(Database_Prop!$B$2:$B$1498,SMALL(IF(Database_Prop!$A$2:$A$1498=AY$129,ROW(Database_Prop!$B$2:$B$1498)-ROW(Database_Prop!$B$2)+1),ROWS(Database_Prop!V$2:'Database_Prop'!V58))),\"\")","v":""},{"$f":"IFERROR(INDEX(Database_Prop!$B$2:$B$1498,SMALL(IF(Database_Prop!$A$2:$A$1498=AZ$129,ROW(Database_Prop!$B$2:$B$1498)-ROW(Database_Prop!$B$2)+1),ROWS(Database_Prop!W$2:'Database_Prop'!W58))),\"\")","v":""},{"$f":"IFERROR(INDEX(Database_Prop!$B$2:$B$1498,SMALL(IF(Database_Prop!$A$2:$A$1498=BA$129,ROW(Database_Prop!$B$2:$B$1498)-ROW(Database_Prop!$B$2)+1),ROWS(Database_Prop!X$2:'Database_Prop'!X58))),\"\")","v":""},{"$f":"IFERROR(INDEX(Database_Prop!$B$2:$B$1498,SMALL(IF(Database_Prop!$A$2:$A$1498=BB$129,ROW(Database_Prop!$B$2:$B$1498)-ROW(Database_Prop!$B$2)+1),ROWS(Database_Prop!Y$2:'Database_Prop'!Y58))),\"\")","v":""},{"$f":"IFERROR(INDEX(Database_Prop!$B$2:$B$1498,SMALL(IF(Database_Prop!$A$2:$A$1498=BC$129,ROW(Database_Prop!$B$2:$B$1498)-ROW(Database_Prop!$B$2)+1),ROWS(Database_Prop!Z$2:'Database_Prop'!Z58))),\"\")","v":""},null,"Democratic People's Republic of Korea","Asia"]
[null,null,null,null,null,null,null,null,null,null,null,null,null,null,null,null,null,null,null,null,null,null,null,null,null,null,null,null,null,null,58,{"$f":"IFERROR(INDEX(Database_Prop!$B$2:$B$1498,SMALL(IF(Database_Prop!$A$2:$A$1498=AF$129,ROW(Database_Prop!$B$2:$B$1498)-ROW(Database_Prop!$B$2)+1),ROWS(Database_Prop!C$2:'Database_Prop'!C59))),\"\")","v":""},{"$f":"IFERROR(INDEX(Database_Prop!$B$2:$B$1498,SMALL(IF(Database_Prop!$A$2:$A$1498=AG$129,ROW(Database_Prop!$B$2:$B$1498)-ROW(Database_Prop!$B$2)+1),ROWS(Database_Prop!D$2:'Database_Prop'!D59))),\"\")","v":""},{"$f":"IFERROR(INDEX(Database_Prop!$B$2:$B$1498,SMALL(IF(Database_Prop!$A$2:$A$1498=AH$129,ROW(Database_Prop!$B$2:$B$1498)-ROW(Database_Prop!$B$2)+1),ROWS(Database_Prop!E$2:'Database_Prop'!E59))),\"\")","v":""},{"$f":"IFERROR(INDEX(Database_Prop!$B$2:$B$1498,SMALL(IF(Database_Prop!$A$2:$A$1498=AI$129,ROW(Database_Prop!$B$2:$B$1498)-ROW(Database_Prop!$B$2)+1),ROWS(Database_Prop!F$2:'Database_Prop'!F59))),\"\")","v":""},{"$f":"IFERROR(INDEX(Database_Prop!$B$2:$B$1498,SMALL(IF(Database_Prop!$A$2:$A$1498=AJ$129,ROW(Database_Prop!$B$2:$B$1498)-ROW(Database_Prop!$B$2)+1),ROWS(Database_Prop!G$2:'Database_Prop'!G59))),\"\")","v":""},{"$f":"IFERROR(INDEX(Database_Prop!$B$2:$B$1498,SMALL(IF(Database_Prop!$A$2:$A$1498=AK$129,ROW(Database_Prop!$B$2:$B$1498)-ROW(Database_Prop!$B$2)+1),ROWS(Database_Prop!H$2:'Database_Prop'!H59))),\"\")","v":""},{"$f":"IFERROR(INDEX(Database_Prop!$B$2:$B$1498,SMALL(IF(Database_Prop!$A$2:$A$1498=AL$129,ROW(Database_Prop!$B$2:$B$1498)-ROW(Database_Prop!$B$2)+1),ROWS(Database_Prop!I$2:'Database_Prop'!I59))),\"\")","v":""},{"$f":"IFERROR(INDEX(Database_Prop!$B$2:$B$1498,SMALL(IF(Database_Prop!$A$2:$A$1498=AM$129,ROW(Database_Prop!$B$2:$B$1498)-ROW(Database_Prop!$B$2)+1),ROWS(Database_Prop!J$2:'Database_Prop'!J59))),\"\")","v":""},{"$f":"IFERROR(INDEX(Database_Prop!$B$2:$B$1498,SMALL(IF(Database_Prop!$A$2:$A$1498=AN$129,ROW(Database_Prop!$B$2:$B$1498)-ROW(Database_Prop!$B$2)+1),ROWS(Database_Prop!K$2:'Database_Prop'!K59))),\"\")","v":""},{"$f":"IFERROR(INDEX(Database_Prop!$B$2:$B$1498,SMALL(IF(Database_Prop!$A$2:$A$1498=AO$129,ROW(Database_Prop!$B$2:$B$1498)-ROW(Database_Prop!$B$2)+1),ROWS(Database_Prop!L$2:'Database_Prop'!L59))),\"\")","v":""},{"$f":"IFERROR(INDEX(Database_Prop!$B$2:$B$1498,SMALL(IF(Database_Prop!$A$2:$A$1498=AP$129,ROW(Database_Prop!$B$2:$B$1498)-ROW(Database_Prop!$B$2)+1),ROWS(Database_Prop!M$2:'Database_Prop'!M59))),\"\")","v":""},{"$f":"IFERROR(INDEX(Database_Prop!$B$2:$B$1498,SMALL(IF(Database_Prop!$A$2:$A$1498=AQ$129,ROW(Database_Prop!$B$2:$B$1498)-ROW(Database_Prop!$B$2)+1),ROWS(Database_Prop!N$2:'Database_Prop'!N59))),\"\")","v":""},{"$f":"IFERROR(INDEX(Database_Prop!$B$2:$B$1498,SMALL(IF(Database_Prop!$A$2:$A$1498=AR$129,ROW(Database_Prop!$B$2:$B$1498)-ROW(Database_Prop!$B$2)+1),ROWS(Database_Prop!O$2:'Database_Prop'!O59))),\"\")","v":""},{"$f":"IFERROR(INDEX(Database_Prop!$B$2:$B$1498,SMALL(IF(Database_Prop!$A$2:$A$1498=AS$129,ROW(Database_Prop!$B$2:$B$1498)-ROW(Database_Prop!$B$2)+1),ROWS(Database_Prop!P$2:'Database_Prop'!P59))),\"\")","v":""},{"$f":"IFERROR(INDEX(Database_Prop!$B$2:$B$1498,SMALL(IF(Database_Prop!$A$2:$A$1498=AT$129,ROW(Database_Prop!$B$2:$B$1498)-ROW(Database_Prop!$B$2)+1),ROWS(Database_Prop!Q$2:'Database_Prop'!Q59))),\"\")","v":""},{"$f":"IFERROR(INDEX(Database_Prop!$B$2:$B$1498,SMALL(IF(Database_Prop!$A$2:$A$1498=AU$129,ROW(Database_Prop!$B$2:$B$1498)-ROW(Database_Prop!$B$2)+1),ROWS(Database_Prop!R$2:'Database_Prop'!R59))),\"\")","v":""},{"$f":"IFERROR(INDEX(Database_Prop!$B$2:$B$1498,SMALL(IF(Database_Prop!$A$2:$A$1498=AV$129,ROW(Database_Prop!$B$2:$B$1498)-ROW(Database_Prop!$B$2)+1),ROWS(Database_Prop!S$2:'Database_Prop'!S59))),\"\")","v":""},{"$f":"IFERROR(INDEX(Database_Prop!$B$2:$B$1498,SMALL(IF(Database_Prop!$A$2:$A$1498=AW$129,ROW(Database_Prop!$B$2:$B$1498)-ROW(Database_Prop!$B$2)+1),ROWS(Database_Prop!T$2:'Database_Prop'!T59))),\"\")","v":""},{"$f":"IFERROR(INDEX(Database_Prop!$B$2:$B$1498,SMALL(IF(Database_Prop!$A$2:$A$1498=AX$129,ROW(Database_Prop!$B$2:$B$1498)-ROW(Database_Prop!$B$2)+1),ROWS(Database_Prop!U$2:'Database_Prop'!U59))),\"\")","v":""},{"$f":"IFERROR(INDEX(Database_Prop!$B$2:$B$1498,SMALL(IF(Database_Prop!$A$2:$A$1498=AY$129,ROW(Database_Prop!$B$2:$B$1498)-ROW(Database_Prop!$B$2)+1),ROWS(Database_Prop!V$2:'Database_Prop'!V59))),\"\")","v":""},{"$f":"IFERROR(INDEX(Database_Prop!$B$2:$B$1498,SMALL(IF(Database_Prop!$A$2:$A$1498=AZ$129,ROW(Database_Prop!$B$2:$B$1498)-ROW(Database_Prop!$B$2)+1),ROWS(Database_Prop!W$2:'Database_Prop'!W59))),\"\")","v":""},{"$f":"IFERROR(INDEX(Database_Prop!$B$2:$B$1498,SMALL(IF(Database_Prop!$A$2:$A$1498=BA$129,ROW(Database_Prop!$B$2:$B$1498)-ROW(Database_Prop!$B$2)+1),ROWS(Database_Prop!X$2:'Database_Prop'!X59))),\"\")","v":""},{"$f":"IFERROR(INDEX(Database_Prop!$B$2:$B$1498,SMALL(IF(Database_Prop!$A$2:$A$1498=BB$129,ROW(Database_Prop!$B$2:$B$1498)-ROW(Database_Prop!$B$2)+1),ROWS(Database_Prop!Y$2:'Database_Prop'!Y59))),\"\")","v":""},{"$f":"IFERROR(INDEX(Database_Prop!$B$2:$B$1498,SMALL(IF(Database_Prop!$A$2:$A$1498=BC$129,ROW(Database_Prop!$B$2:$B$1498)-ROW(Database_Prop!$B$2)+1),ROWS(Database_Prop!Z$2:'Database_Prop'!Z59))),\"\")","v":""},null,"Democratic Republic of the Congo","Africa"]
[null,null,null,null,null,null,null,null,null,null,null,null,null,null,null,null,null,null,null,null,null,null,null,null,null,null,null,null,null,null,59,{"$f":"IFERROR(INDEX(Database_Prop!$B$2:$B$1498,SMALL(IF(Database_Prop!$A$2:$A$1498=AF$129,ROW(Database_Prop!$B$2:$B$1498)-ROW(Database_Prop!$B$2)+1),ROWS(Database_Prop!C$2:'Database_Prop'!C60))),\"\")","v":""},{"$f":"IFERROR(INDEX(Database_Prop!$B$2:$B$1498,SMALL(IF(Database_Prop!$A$2:$A$1498=AG$129,ROW(Database_Prop!$B$2:$B$1498)-ROW(Database_Prop!$B$2)+1),ROWS(Database_Prop!D$2:'Database_Prop'!D60))),\"\")","v":""},{"$f":"IFERROR(INDEX(Database_Prop!$B$2:$B$1498,SMALL(IF(Database_Prop!$A$2:$A$1498=AH$129,ROW(Database_Prop!$B$2:$B$1498)-ROW(Database_Prop!$B$2)+1),ROWS(Database_Prop!E$2:'Database_Prop'!E60))),\"\")","v":""},{"$f":"IFERROR(INDEX(Database_Prop!$B$2:$B$1498,SMALL(IF(Database_Prop!$A$2:$A$1498=AI$129,ROW(Database_Prop!$B$2:$B$1498)-ROW(Database_Prop!$B$2)+1),ROWS(Database_Prop!F$2:'Database_Prop'!F60))),\"\")","v":""},{"$f":"IFERROR(INDEX(Database_Prop!$B$2:$B$1498,SMALL(IF(Database_Prop!$A$2:$A$1498=AJ$129,ROW(Database_Prop!$B$2:$B$1498)-ROW(Database_Prop!$B$2)+1),ROWS(Database_Prop!G$2:'Database_Prop'!G60))),\"\")","v":""},{"$f":"IFERROR(INDEX(Database_Prop!$B$2:$B$1498,SMALL(IF(Database_Prop!$A$2:$A$1498=AK$129,ROW(Database_Prop!$B$2:$B$1498)-ROW(Database_Prop!$B$2)+1),ROWS(Database_Prop!H$2:'Database_Prop'!H60))),\"\")","v":""},{"$f":"IFERROR(INDEX(Database_Prop!$B$2:$B$1498,SMALL(IF(Database_Prop!$A$2:$A$1498=AL$129,ROW(Database_Prop!$B$2:$B$1498)-ROW(Database_Prop!$B$2)+1),ROWS(Database_Prop!I$2:'Database_Prop'!I60))),\"\")","v":""},{"$f":"IFERROR(INDEX(Database_Prop!$B$2:$B$1498,SMALL(IF(Database_Prop!$A$2:$A$1498=AM$129,ROW(Database_Prop!$B$2:$B$1498)-ROW(Database_Prop!$B$2)+1),ROWS(Database_Prop!J$2:'Database_Prop'!J60))),\"\")","v":""},{"$f":"IFERROR(INDEX(Database_Prop!$B$2:$B$1498,SMALL(IF(Database_Prop!$A$2:$A$1498=AN$129,ROW(Database_Prop!$B$2:$B$1498)-ROW(Database_Prop!$B$2)+1),ROWS(Database_Prop!K$2:'Database_Prop'!K60))),\"\")","v":""},{"$f":"IFERROR(INDEX(Database_Prop!$B$2:$B$1498,SMALL(IF(Database_Prop!$A$2:$A$1498=AO$129,ROW(Database_Prop!$B$2:$B$1498)-ROW(Database_Prop!$B$2)+1),ROWS(Database_Prop!L$2:'Database_Prop'!L60))),\"\")","v":""},{"$f":"IFERROR(INDEX(Database_Prop!$B$2:$B$1498,SMALL(IF(Database_Prop!$A$2:$A$1498=AP$129,ROW(Database_Prop!$B$2:$B$1498)-ROW(Database_Prop!$B$2)+1),ROWS(Database_Prop!M$2:'Database_Prop'!M60))),\"\")","v":""},{"$f":"IFERROR(INDEX(Database_Prop!$B$2:$B$1498,SMALL(IF(Database_Prop!$A$2:$A$1498=AQ$129,ROW(Database_Prop!$B$2:$B$1498)-ROW(Database_Prop!$B$2)+1),ROWS(Database_Prop!N$2:'Database_Prop'!N60))),\"\")","v":""},{"$f":"IFERROR(INDEX(Database_Prop!$B$2:$B$1498,SMALL(IF(Database_Prop!$A$2:$A$1498=AR$129,ROW(Database_Prop!$B$2:$B$1498)-ROW(Database_Prop!$B$2)+1),ROWS(Database_Prop!O$2:'Database_Prop'!O60))),\"\")","v":""},{"$f":"IFERROR(INDEX(Database_Prop!$B$2:$B$1498,SMALL(IF(Database_Prop!$A$2:$A$1498=AS$129,ROW(Database_Prop!$B$2:$B$1498)-ROW(Database_Prop!$B$2)+1),ROWS(Database_Prop!P$2:'Database_Prop'!P60))),\"\")","v":""},{"$f":"IFERROR(INDEX(Database_Prop!$B$2:$B$1498,SMALL(IF(Database_Prop!$A$2:$A$1498=AT$129,ROW(Database_Prop!$B$2:$B$1498)-ROW(Database_Prop!$B$2)+1),ROWS(Database_Prop!Q$2:'Database_Prop'!Q60))),\"\")","v":""},{"$f":"IFERROR(INDEX(Database_Prop!$B$2:$B$1498,SMALL(IF(Database_Prop!$A$2:$A$1498=AU$129,ROW(Database_Prop!$B$2:$B$1498)-ROW(Database_Prop!$B$2)+1),ROWS(Database_Prop!R$2:'Database_Prop'!R60))),\"\")","v":""},{"$f":"IFERROR(INDEX(Database_Prop!$B$2:$B$1498,SMALL(IF(Database_Prop!$A$2:$A$1498=AV$129,ROW(Database_Prop!$B$2:$B$1498)-ROW(Database_Prop!$B$2)+1),ROWS(Database_Prop!S$2:'Database_Prop'!S60))),\"\")","v":""},{"$f":"IFERROR(INDEX(Database_Prop!$B$2:$B$1498,SMALL(IF(Database_Prop!$A$2:$A$1498=AW$129,ROW(Database_Prop!$B$2:$B$1498)-ROW(Database_Prop!$B$2)+1),ROWS(Database_Prop!T$2:'Database_Prop'!T60))),\"\")","v":""},{"$f":"IFERROR(INDEX(Database_Prop!$B$2:$B$1498,SMALL(IF(Database_Prop!$A$2:$A$1498=AX$129,ROW(Database_Prop!$B$2:$B$1498)-ROW(Database_Prop!$B$2)+1),ROWS(Database_Prop!U$2:'Database_Prop'!U60))),\"\")","v":""},{"$f":"IFERROR(INDEX(Database_Prop!$B$2:$B$1498,SMALL(IF(Database_Prop!$A$2:$A$1498=AY$129,ROW(Database_Prop!$B$2:$B$1498)-ROW(Database_Prop!$B$2)+1),ROWS(Database_Prop!V$2:'Database_Prop'!V60))),\"\")","v":""},{"$f":"IFERROR(INDEX(Database_Prop!$B$2:$B$1498,SMALL(IF(Database_Prop!$A$2:$A$1498=AZ$129,ROW(Database_Prop!$B$2:$B$1498)-ROW(Database_Prop!$B$2)+1),ROWS(Database_Prop!W$2:'Database_Prop'!W60))),\"\")","v":""},{"$f":"IFERROR(INDEX(Database_Prop!$B$2:$B$1498,SMALL(IF(Database_Prop!$A$2:$A$1498=BA$129,ROW(Database_Prop!$B$2:$B$1498)-ROW(Database_Prop!$B$2)+1),ROWS(Database_Prop!X$2:'Database_Prop'!X60))),\"\")","v":""},{"$f":"IFERROR(INDEX(Database_Prop!$B$2:$B$1498,SMALL(IF(Database_Prop!$A$2:$A$1498=BB$129,ROW(Database_Prop!$B$2:$B$1498)-ROW(Database_Prop!$B$2)+1),ROWS(Database_Prop!Y$2:'Database_Prop'!Y60))),\"\")","v":""},{"$f":"IFERROR(INDEX(Database_Prop!$B$2:$B$1498,SMALL(IF(Database_Prop!$A$2:$A$1498=BC$129,ROW(Database_Prop!$B$2:$B$1498)-ROW(Database_Prop!$B$2)+1),ROWS(Database_Prop!Z$2:'Database_Prop'!Z60))),\"\")","v":""},null,"Denmark","Western Europe"]
[null,null,null,null,null,null,null,null,null,null,null,null,null,null,null,null,null,null,null,null,null,null,null,null,null,null,null,null,null,null,60,{"$f":"IFERROR(INDEX(Database_Prop!$B$2:$B$1498,SMALL(IF(Database_Prop!$A$2:$A$1498=AF$129,ROW(Database_Prop!$B$2:$B$1498)-ROW(Database_Prop!$B$2)+1),ROWS(Database_Prop!C$2:'Database_Prop'!C61))),\"\")","v":""},{"$f":"IFERROR(INDEX(Database_Prop!$B$2:$B$1498,SMALL(IF(Database_Prop!$A$2:$A$1498=AG$129,ROW(Database_Prop!$B$2:$B$1498)-ROW(Database_Prop!$B$2)+1),ROWS(Database_Prop!D$2:'Database_Prop'!D61))),\"\")","v":""},{"$f":"IFERROR(INDEX(Database_Prop!$B$2:$B$1498,SMALL(IF(Database_Prop!$A$2:$A$1498=AH$129,ROW(Database_Prop!$B$2:$B$1498)-ROW(Database_Prop!$B$2)+1),ROWS(Database_Prop!E$2:'Database_Prop'!E61))),\"\")","v":""},{"$f":"IFERROR(INDEX(Database_Prop!$B$2:$B$1498,SMALL(IF(Database_Prop!$A$2:$A$1498=AI$129,ROW(Database_Prop!$B$2:$B$1498)-ROW(Database_Prop!$B$2)+1),ROWS(Database_Prop!F$2:'Database_Prop'!F61))),\"\")","v":""},{"$f":"IFERROR(INDEX(Database_Prop!$B$2:$B$1498,SMALL(IF(Database_Prop!$A$2:$A$1498=AJ$129,ROW(Database_Prop!$B$2:$B$1498)-ROW(Database_Prop!$B$2)+1),ROWS(Database_Prop!G$2:'Database_Prop'!G61))),\"\")","v":""},{"$f":"IFERROR(INDEX(Database_Prop!$B$2:$B$1498,SMALL(IF(Database_Prop!$A$2:$A$1498=AK$129,ROW(Database_Prop!$B$2:$B$1498)-ROW(Database_Prop!$B$2)+1),ROWS(Database_Prop!H$2:'Database_Prop'!H61))),\"\")","v":""},{"$f":"IFERROR(INDEX(Database_Prop!$B$2:$B$1498,SMALL(IF(Database_Prop!$A$2:$A$1498=AL$129,ROW(Database_Prop!$B$2:$B$1498)-ROW(Database_Prop!$B$2)+1),ROWS(Database_Prop!I$2:'Database_Prop'!I61))),\"\")","v":""},{"$f":"IFERROR(INDEX(Database_Prop!$B$2:$B$1498,SMALL(IF(Database_Prop!$A$2:$A$1498=AM$129,ROW(Database_Prop!$B$2:$B$1498)-ROW(Database_Prop!$B$2)+1),ROWS(Database_Prop!J$2:'Database_Prop'!J61))),\"\")","v":""},{"$f":"IFERROR(INDEX(Database_Prop!$B$2:$B$1498,SMALL(IF(Database_Prop!$A$2:$A$1498=AN$129,ROW(Database_Prop!$B$2:$B$1498)-ROW(Database_Prop!$B$2)+1),ROWS(Database_Prop!K$2:'Database_Prop'!K61))),\"\")","v":""},{"$f":"IFERROR(INDEX(Database_Prop!$B$2:$B$1498,SMALL(IF(Database_Prop!$A$2:$A$1498=AO$129,ROW(Database_Prop!$B$2:$B$1498)-ROW(Database_Prop!$B$2)+1),ROWS(Database_Prop!L$2:'Database_Prop'!L61))),\"\")","v":""},{"$f":"IFERROR(INDEX(Database_Prop!$B$2:$B$1498,SMALL(IF(Database_Prop!$A$2:$A$1498=AP$129,ROW(Database_Prop!$B$2:$B$1498)-ROW(Database_Prop!$B$2)+1),ROWS(Database_Prop!M$2:'Database_Prop'!M61))),\"\")","v":""},{"$f":"IFERROR(INDEX(Database_Prop!$B$2:$B$1498,SMALL(IF(Database_Prop!$A$2:$A$1498=AQ$129,ROW(Database_Prop!$B$2:$B$1498)-ROW(Database_Prop!$B$2)+1),ROWS(Database_Prop!N$2:'Database_Prop'!N61))),\"\")","v":""},{"$f":"IFERROR(INDEX(Database_Prop!$B$2:$B$1498,SMALL(IF(Database_Prop!$A$2:$A$1498=AR$129,ROW(Database_Prop!$B$2:$B$1498)-ROW(Database_Prop!$B$2)+1),ROWS(Database_Prop!O$2:'Database_Prop'!O61))),\"\")","v":""},{"$f":"IFERROR(INDEX(Database_Prop!$B$2:$B$1498,SMALL(IF(Database_Prop!$A$2:$A$1498=AS$129,ROW(Database_Prop!$B$2:$B$1498)-ROW(Database_Prop!$B$2)+1),ROWS(Database_Prop!P$2:'Database_Prop'!P61))),\"\")","v":""},{"$f":"IFERROR(INDEX(Database_Prop!$B$2:$B$1498,SMALL(IF(Database_Prop!$A$2:$A$1498=AT$129,ROW(Database_Prop!$B$2:$B$1498)-ROW(Database_Prop!$B$2)+1),ROWS(Database_Prop!Q$2:'Database_Prop'!Q61))),\"\")","v":""},{"$f":"IFERROR(INDEX(Database_Prop!$B$2:$B$1498,SMALL(IF(Database_Prop!$A$2:$A$1498=AU$129,ROW(Database_Prop!$B$2:$B$1498)-ROW(Database_Prop!$B$2)+1),ROWS(Database_Prop!R$2:'Database_Prop'!R61))),\"\")","v":""},{"$f":"IFERROR(INDEX(Database_Prop!$B$2:$B$1498,SMALL(IF(Database_Prop!$A$2:$A$1498=AV$129,ROW(Database_Prop!$B$2:$B$1498)-ROW(Database_Prop!$B$2)+1),ROWS(Database_Prop!S$2:'Database_Prop'!S61))),\"\")","v":""},{"$f":"IFERROR(INDEX(Database_Prop!$B$2:$B$1498,SMALL(IF(Database_Prop!$A$2:$A$1498=AW$129,ROW(Database_Prop!$B$2:$B$1498)-ROW(Database_Prop!$B$2)+1),ROWS(Database_Prop!T$2:'Database_Prop'!T61))),\"\")","v":""},{"$f":"IFERROR(INDEX(Database_Prop!$B$2:$B$1498,SMALL(IF(Database_Prop!$A$2:$A$1498=AX$129,ROW(Database_Prop!$B$2:$B$1498)-ROW(Database_Prop!$B$2)+1),ROWS(Database_Prop!U$2:'Database_Prop'!U61))),\"\")","v":""},{"$f":"IFERROR(INDEX(Database_Prop!$B$2:$B$1498,SMALL(IF(Database_Prop!$A$2:$A$1498=AY$129,ROW(Database_Prop!$B$2:$B$1498)-ROW(Database_Prop!$B$2)+1),ROWS(Database_Prop!V$2:'Database_Prop'!V61))),\"\")","v":""},{"$f":"IFERROR(INDEX(Database_Prop!$B$2:$B$1498,SMALL(IF(Database_Prop!$A$2:$A$1498=AZ$129,ROW(Database_Prop!$B$2:$B$1498)-ROW(Database_Prop!$B$2)+1),ROWS(Database_Prop!W$2:'Database_Prop'!W61))),\"\")","v":""},{"$f":"IFERROR(INDEX(Database_Prop!$B$2:$B$1498,SMALL(IF(Database_Prop!$A$2:$A$1498=BA$129,ROW(Database_Prop!$B$2:$B$1498)-ROW(Database_Prop!$B$2)+1),ROWS(Database_Prop!X$2:'Database_Prop'!X61))),\"\")","v":""},{"$f":"IFERROR(INDEX(Database_Prop!$B$2:$B$1498,SMALL(IF(Database_Prop!$A$2:$A$1498=BB$129,ROW(Database_Prop!$B$2:$B$1498)-ROW(Database_Prop!$B$2)+1),ROWS(Database_Prop!Y$2:'Database_Prop'!Y61))),\"\")","v":""},{"$f":"IFERROR(INDEX(Database_Prop!$B$2:$B$1498,SMALL(IF(Database_Prop!$A$2:$A$1498=BC$129,ROW(Database_Prop!$B$2:$B$1498)-ROW(Database_Prop!$B$2)+1),ROWS(Database_Prop!Z$2:'Database_Prop'!Z61))),\"\")","v":""},null,"Djibouti","Africa"]
[null,null,null,null,null,null,null,null,null,null,null,null,null,null,null,null,null,null,null,null,null,null,null,null,null,null,null,null,null,null,61,{"$f":"IFERROR(INDEX(Database_Prop!$B$2:$B$1498,SMALL(IF(Database_Prop!$A$2:$A$1498=AF$129,ROW(Database_Prop!$B$2:$B$1498)-ROW(Database_Prop!$B$2)+1),ROWS(Database_Prop!C$2:'Database_Prop'!C62))),\"\")","v":""},{"$f":"IFERROR(INDEX(Database_Prop!$B$2:$B$1498,SMALL(IF(Database_Prop!$A$2:$A$1498=AG$129,ROW(Database_Prop!$B$2:$B$1498)-ROW(Database_Prop!$B$2)+1),ROWS(Database_Prop!D$2:'Database_Prop'!D62))),\"\")","v":""},{"$f":"IFERROR(INDEX(Database_Prop!$B$2:$B$1498,SMALL(IF(Database_Prop!$A$2:$A$1498=AH$129,ROW(Database_Prop!$B$2:$B$1498)-ROW(Database_Prop!$B$2)+1),ROWS(Database_Prop!E$2:'Database_Prop'!E62))),\"\")","v":""},{"$f":"IFERROR(INDEX(Database_Prop!$B$2:$B$1498,SMALL(IF(Database_Prop!$A$2:$A$1498=AI$129,ROW(Database_Prop!$B$2:$B$1498)-ROW(Database_Prop!$B$2)+1),ROWS(Database_Prop!F$2:'Database_Prop'!F62))),\"\")","v":""},{"$f":"IFERROR(INDEX(Database_Prop!$B$2:$B$1498,SMALL(IF(Database_Prop!$A$2:$A$1498=AJ$129,ROW(Database_Prop!$B$2:$B$1498)-ROW(Database_Prop!$B$2)+1),ROWS(Database_Prop!G$2:'Database_Prop'!G62))),\"\")","v":""},{"$f":"IFERROR(INDEX(Database_Prop!$B$2:$B$1498,SMALL(IF(Database_Prop!$A$2:$A$1498=AK$129,ROW(Database_Prop!$B$2:$B$1498)-ROW(Database_Prop!$B$2)+1),ROWS(Database_Prop!H$2:'Database_Prop'!H62))),\"\")","v":""},{"$f":"IFERROR(INDEX(Database_Prop!$B$2:$B$1498,SMALL(IF(Database_Prop!$A$2:$A$1498=AL$129,ROW(Database_Prop!$B$2:$B$1498)-ROW(Database_Prop!$B$2)+1),ROWS(Database_Prop!I$2:'Database_Prop'!I62))),\"\")","v":""},{"$f":"IFERROR(INDEX(Database_Prop!$B$2:$B$1498,SMALL(IF(Database_Prop!$A$2:$A$1498=AM$129,ROW(Database_Prop!$B$2:$B$1498)-ROW(Database_Prop!$B$2)+1),ROWS(Database_Prop!J$2:'Database_Prop'!J62))),\"\")","v":""},{"$f":"IFERROR(INDEX(Database_Prop!$B$2:$B$1498,SMALL(IF(Database_Prop!$A$2:$A$1498=AN$129,ROW(Database_Prop!$B$2:$B$1498)-ROW(Database_Prop!$B$2)+1),ROWS(Database_Prop!K$2:'Database_Prop'!K62))),\"\")","v":""},{"$f":"IFERROR(INDEX(Database_Prop!$B$2:$B$1498,SMALL(IF(Database_Prop!$A$2:$A$1498=AO$129,ROW(Database_Prop!$B$2:$B$1498)-ROW(Database_Prop!$B$2)+1),ROWS(Database_Prop!L$2:'Database_Prop'!L62))),\"\")","v":""},{"$f":"IFERROR(INDEX(Database_Prop!$B$2:$B$1498,SMALL(IF(Database_Prop!$A$2:$A$1498=AP$129,ROW(Database_Prop!$B$2:$B$1498)-ROW(Database_Prop!$B$2)+1),ROWS(Database_Prop!M$2:'Database_Prop'!M62))),\"\")","v":""},{"$f":"IFERROR(INDEX(Database_Prop!$B$2:$B$1498,SMALL(IF(Database_Prop!$A$2:$A$1498=AQ$129,ROW(Database_Prop!$B$2:$B$1498)-ROW(Database_Prop!$B$2)+1),ROWS(Database_Prop!N$2:'Database_Prop'!N62))),\"\")","v":""},{"$f":"IFERROR(INDEX(Database_Prop!$B$2:$B$1498,SMALL(IF(Database_Prop!$A$2:$A$1498=AR$129,ROW(Database_Prop!$B$2:$B$1498)-ROW(Database_Prop!$B$2)+1),ROWS(Database_Prop!O$2:'Database_Prop'!O62))),\"\")","v":""},{"$f":"IFERROR(INDEX(Database_Prop!$B$2:$B$1498,SMALL(IF(Database_Prop!$A$2:$A$1498=AS$129,ROW(Database_Prop!$B$2:$B$1498)-ROW(Database_Prop!$B$2)+1),ROWS(Database_Prop!P$2:'Database_Prop'!P62))),\"\")","v":""},{"$f":"IFERROR(INDEX(Database_Prop!$B$2:$B$1498,SMALL(IF(Database_Prop!$A$2:$A$1498=AT$129,ROW(Database_Prop!$B$2:$B$1498)-ROW(Database_Prop!$B$2)+1),ROWS(Database_Prop!Q$2:'Database_Prop'!Q62))),\"\")","v":""},{"$f":"IFERROR(INDEX(Database_Prop!$B$2:$B$1498,SMALL(IF(Database_Prop!$A$2:$A$1498=AU$129,ROW(Database_Prop!$B$2:$B$1498)-ROW(Database_Prop!$B$2)+1),ROWS(Database_Prop!R$2:'Database_Prop'!R62))),\"\")","v":""},{"$f":"IFERROR(INDEX(Database_Prop!$B$2:$B$1498,SMALL(IF(Database_Prop!$A$2:$A$1498=AV$129,ROW(Database_Prop!$B$2:$B$1498)-ROW(Database_Prop!$B$2)+1),ROWS(Database_Prop!S$2:'Database_Prop'!S62))),\"\")","v":""},{"$f":"IFERROR(INDEX(Database_Prop!$B$2:$B$1498,SMALL(IF(Database_Prop!$A$2:$A$1498=AW$129,ROW(Database_Prop!$B$2:$B$1498)-ROW(Database_Prop!$B$2)+1),ROWS(Database_Prop!T$2:'Database_Prop'!T62))),\"\")","v":""},{"$f":"IFERROR(INDEX(Database_Prop!$B$2:$B$1498,SMALL(IF(Database_Prop!$A$2:$A$1498=AX$129,ROW(Database_Prop!$B$2:$B$1498)-ROW(Database_Prop!$B$2)+1),ROWS(Database_Prop!U$2:'Database_Prop'!U62))),\"\")","v":""},{"$f":"IFERROR(INDEX(Database_Prop!$B$2:$B$1498,SMALL(IF(Database_Prop!$A$2:$A$1498=AY$129,ROW(Database_Prop!$B$2:$B$1498)-ROW(Database_Prop!$B$2)+1),ROWS(Database_Prop!V$2:'Database_Prop'!V62))),\"\")","v":""},{"$f":"IFERROR(INDEX(Database_Prop!$B$2:$B$1498,SMALL(IF(Database_Prop!$A$2:$A$1498=AZ$129,ROW(Database_Prop!$B$2:$B$1498)-ROW(Database_Prop!$B$2)+1),ROWS(Database_Prop!W$2:'Database_Prop'!W62))),\"\")","v":""},{"$f":"IFERROR(INDEX(Database_Prop!$B$2:$B$1498,SMALL(IF(Database_Prop!$A$2:$A$1498=BA$129,ROW(Database_Prop!$B$2:$B$1498)-ROW(Database_Prop!$B$2)+1),ROWS(Database_Prop!X$2:'Database_Prop'!X62))),\"\")","v":""},{"$f":"IFERROR(INDEX(Database_Prop!$B$2:$B$1498,SMALL(IF(Database_Prop!$A$2:$A$1498=BB$129,ROW(Database_Prop!$B$2:$B$1498)-ROW(Database_Prop!$B$2)+1),ROWS(Database_Prop!Y$2:'Database_Prop'!Y62))),\"\")","v":""},{"$f":"IFERROR(INDEX(Database_Prop!$B$2:$B$1498,SMALL(IF(Database_Prop!$A$2:$A$1498=BC$129,ROW(Database_Prop!$B$2:$B$1498)-ROW(Database_Prop!$B$2)+1),ROWS(Database_Prop!Z$2:'Database_Prop'!Z62))),\"\")","v":""},null,"Dominica","Latin America"]
[null,null,null,null,null,null,null,null,null,null,null,null,null,null,null,null,null,null,null,null,null,null,null,null,null,null,null,null,null,null,62,{"$f":"IFERROR(INDEX(Database_Prop!$B$2:$B$1498,SMALL(IF(Database_Prop!$A$2:$A$1498=AF$129,ROW(Database_Prop!$B$2:$B$1498)-ROW(Database_Prop!$B$2)+1),ROWS(Database_Prop!C$2:'Database_Prop'!C63))),\"\")","v":""},{"$f":"IFERROR(INDEX(Database_Prop!$B$2:$B$1498,SMALL(IF(Database_Prop!$A$2:$A$1498=AG$129,ROW(Database_Prop!$B$2:$B$1498)-ROW(Database_Prop!$B$2)+1),ROWS(Database_Prop!D$2:'Database_Prop'!D63))),\"\")","v":""},{"$f":"IFERROR(INDEX(Database_Prop!$B$2:$B$1498,SMALL(IF(Database_Prop!$A$2:$A$1498=AH$129,ROW(Database_Prop!$B$2:$B$1498)-ROW(Database_Prop!$B$2)+1),ROWS(Database_Prop!E$2:'Database_Prop'!E63))),\"\")","v":""},{"$f":"IFERROR(INDEX(Database_Prop!$B$2:$B$1498,SMALL(IF(Database_Prop!$A$2:$A$1498=AI$129,ROW(Database_Prop!$B$2:$B$1498)-ROW(Database_Prop!$B$2)+1),ROWS(Database_Prop!F$2:'Database_Prop'!F63))),\"\")","v":""},{"$f":"IFERROR(INDEX(Database_Prop!$B$2:$B$1498,SMALL(IF(Database_Prop!$A$2:$A$1498=AJ$129,ROW(Database_Prop!$B$2:$B$1498)-ROW(Database_Prop!$B$2)+1),ROWS(Database_Prop!G$2:'Database_Prop'!G63))),\"\")","v":""},{"$f":"IFERROR(INDEX(Database_Prop!$B$2:$B$1498,SMALL(IF(Database_Prop!$A$2:$A$1498=AK$129,ROW(Database_Prop!$B$2:$B$1498)-ROW(Database_Prop!$B$2)+1),ROWS(Database_Prop!H$2:'Database_Prop'!H63))),\"\")","v":""},{"$f":"IFERROR(INDEX(Database_Prop!$B$2:$B$1498,SMALL(IF(Database_Prop!$A$2:$A$1498=AL$129,ROW(Database_Prop!$B$2:$B$1498)-ROW(Database_Prop!$B$2)+1),ROWS(Database_Prop!I$2:'Database_Prop'!I63))),\"\")","v":""},{"$f":"IFERROR(INDEX(Database_Prop!$B$2:$B$1498,SMALL(IF(Database_Prop!$A$2:$A$1498=AM$129,ROW(Database_Prop!$B$2:$B$1498)-ROW(Database_Prop!$B$2)+1),ROWS(Database_Prop!J$2:'Database_Prop'!J63))),\"\")","v":""},{"$f":"IFERROR(INDEX(Database_Prop!$B$2:$B$1498,SMALL(IF(Database_Prop!$A$2:$A$1498=AN$129,ROW(Database_Prop!$B$2:$B$1498)-ROW(Database_Prop!$B$2)+1),ROWS(Database_Prop!K$2:'Database_Prop'!K63))),\"\")","v":""},{"$f":"IFERROR(INDEX(Database_Prop!$B$2:$B$1498,SMALL(IF(Database_Prop!$A$2:$A$1498=AO$129,ROW(Database_Prop!$B$2:$B$1498)-ROW(Database_Prop!$B$2)+1),ROWS(Database_Prop!L$2:'Database_Prop'!L63))),\"\")","v":""},{"$f":"IFERROR(INDEX(Database_Prop!$B$2:$B$1498,SMALL(IF(Database_Prop!$A$2:$A$1498=AP$129,ROW(Database_Prop!$B$2:$B$1498)-ROW(Database_Prop!$B$2)+1),ROWS(Database_Prop!M$2:'Database_Prop'!M63))),\"\")","v":""},{"$f":"IFERROR(INDEX(Database_Prop!$B$2:$B$1498,SMALL(IF(Database_Prop!$A$2:$A$1498=AQ$129,ROW(Database_Prop!$B$2:$B$1498)-ROW(Database_Prop!$B$2)+1),ROWS(Database_Prop!N$2:'Database_Prop'!N63))),\"\")","v":""},{"$f":"IFERROR(INDEX(Database_Prop!$B$2:$B$1498,SMALL(IF(Database_Prop!$A$2:$A$1498=AR$129,ROW(Database_Prop!$B$2:$B$1498)-ROW(Database_Prop!$B$2)+1),ROWS(Database_Prop!O$2:'Database_Prop'!O63))),\"\")","v":""},{"$f":"IFERROR(INDEX(Database_Prop!$B$2:$B$1498,SMALL(IF(Database_Prop!$A$2:$A$1498=AS$129,ROW(Database_Prop!$B$2:$B$1498)-ROW(Database_Prop!$B$2)+1),ROWS(Database_Prop!P$2:'Database_Prop'!P63))),\"\")","v":""},{"$f":"IFERROR(INDEX(Database_Prop!$B$2:$B$1498,SMALL(IF(Database_Prop!$A$2:$A$1498=AT$129,ROW(Database_Prop!$B$2:$B$1498)-ROW(Database_Prop!$B$2)+1),ROWS(Database_Prop!Q$2:'Database_Prop'!Q63))),\"\")","v":""},{"$f":"IFERROR(INDEX(Database_Prop!$B$2:$B$1498,SMALL(IF(Database_Prop!$A$2:$A$1498=AU$129,ROW(Database_Prop!$B$2:$B$1498)-ROW(Database_Prop!$B$2)+1),ROWS(Database_Prop!R$2:'Database_Prop'!R63))),\"\")","v":""},{"$f":"IFERROR(INDEX(Database_Prop!$B$2:$B$1498,SMALL(IF(Database_Prop!$A$2:$A$1498=AV$129,ROW(Database_Prop!$B$2:$B$1498)-ROW(Database_Prop!$B$2)+1),ROWS(Database_Prop!S$2:'Database_Prop'!S63))),\"\")","v":""},{"$f":"IFERROR(INDEX(Database_Prop!$B$2:$B$1498,SMALL(IF(Database_Prop!$A$2:$A$1498=AW$129,ROW(Database_Prop!$B$2:$B$1498)-ROW(Database_Prop!$B$2)+1),ROWS(Database_Prop!T$2:'Database_Prop'!T63))),\"\")","v":""},{"$f":"IFERROR(INDEX(Database_Prop!$B$2:$B$1498,SMALL(IF(Database_Prop!$A$2:$A$1498=AX$129,ROW(Database_Prop!$B$2:$B$1498)-ROW(Database_Prop!$B$2)+1),ROWS(Database_Prop!U$2:'Database_Prop'!U63))),\"\")","v":""},{"$f":"IFERROR(INDEX(Database_Prop!$B$2:$B$1498,SMALL(IF(Database_Prop!$A$2:$A$1498=AY$129,ROW(Database_Prop!$B$2:$B$1498)-ROW(Database_Prop!$B$2)+1),ROWS(Database_Prop!V$2:'Database_Prop'!V63))),\"\")","v":""},{"$f":"IFERROR(INDEX(Database_Prop!$B$2:$B$1498,SMALL(IF(Database_Prop!$A$2:$A$1498=AZ$129,ROW(Database_Prop!$B$2:$B$1498)-ROW(Database_Prop!$B$2)+1),ROWS(Database_Prop!W$2:'Database_Prop'!W63))),\"\")","v":""},{"$f":"IFERROR(INDEX(Database_Prop!$B$2:$B$1498,SMALL(IF(Database_Prop!$A$2:$A$1498=BA$129,ROW(Database_Prop!$B$2:$B$1498)-ROW(Database_Prop!$B$2)+1),ROWS(Database_Prop!X$2:'Database_Prop'!X63))),\"\")","v":""},{"$f":"IFERROR(INDEX(Database_Prop!$B$2:$B$1498,SMALL(IF(Database_Prop!$A$2:$A$1498=BB$129,ROW(Database_Prop!$B$2:$B$1498)-ROW(Database_Prop!$B$2)+1),ROWS(Database_Prop!Y$2:'Database_Prop'!Y63))),\"\")","v":""},{"$f":"IFERROR(INDEX(Database_Prop!$B$2:$B$1498,SMALL(IF(Database_Prop!$A$2:$A$1498=BC$129,ROW(Database_Prop!$B$2:$B$1498)-ROW(Database_Prop!$B$2)+1),ROWS(Database_Prop!Z$2:'Database_Prop'!Z63))),\"\")","v":""},null,"Dominican Republic","Latin America"]
[null,null,null,null,null,null,null,null,null,null,null,null,null,null,null,null,null,null,null,null,null,null,null,null,null,null,null,null,null,null,63,{"$f":"IFERROR(INDEX(Database_Prop!$B$2:$B$1498,SMALL(IF(Database_Prop!$A$2:$A$1498=AF$129,ROW(Database_Prop!$B$2:$B$1498)-ROW(Database_Prop!$B$2)+1),ROWS(Database_Prop!C$2:'Database_Prop'!C64))),\"\")","v":""},{"$f":"IFERROR(INDEX(Database_Prop!$B$2:$B$1498,SMALL(IF(Database_Prop!$A$2:$A$1498=AG$129,ROW(Database_Prop!$B$2:$B$1498)-ROW(Database_Prop!$B$2)+1),ROWS(Database_Prop!D$2:'Database_Prop'!D64))),\"\")","v":""},{"$f":"IFERROR(INDEX(Database_Prop!$B$2:$B$1498,SMALL(IF(Database_Prop!$A$2:$A$1498=AH$129,ROW(Database_Prop!$B$2:$B$1498)-ROW(Database_Prop!$B$2)+1),ROWS(Database_Prop!E$2:'Database_Prop'!E64))),\"\")","v":""},{"$f":"IFERROR(INDEX(Database_Prop!$B$2:$B$1498,SMALL(IF(Database_Prop!$A$2:$A$1498=AI$129,ROW(Database_Prop!$B$2:$B$1498)-ROW(Database_Prop!$B$2)+1),ROWS(Database_Prop!F$2:'Database_Prop'!F64))),\"\")","v":""},{"$f":"IFERROR(INDEX(Database_Prop!$B$2:$B$1498,SMALL(IF(Database_Prop!$A$2:$A$1498=AJ$129,ROW(Database_Prop!$B$2:$B$1498)-ROW(Database_Prop!$B$2)+1),ROWS(Database_Prop!G$2:'Database_Prop'!G64))),\"\")","v":""},{"$f":"IFERROR(INDEX(Database_Prop!$B$2:$B$1498,SMALL(IF(Database_Prop!$A$2:$A$1498=AK$129,ROW(Database_Prop!$B$2:$B$1498)-ROW(Database_Prop!$B$2)+1),ROWS(Database_Prop!H$2:'Database_Prop'!H64))),\"\")","v":""},{"$f":"IFERROR(INDEX(Database_Prop!$B$2:$B$1498,SMALL(IF(Database_Prop!$A$2:$A$1498=AL$129,ROW(Database_Prop!$B$2:$B$1498)-ROW(Database_Prop!$B$2)+1),ROWS(Database_Prop!I$2:'Database_Prop'!I64))),\"\")","v":""},{"$f":"IFERROR(INDEX(Database_Prop!$B$2:$B$1498,SMALL(IF(Database_Prop!$A$2:$A$1498=AM$129,ROW(Database_Prop!$B$2:$B$1498)-ROW(Database_Prop!$B$2)+1),ROWS(Database_Prop!J$2:'Database_Prop'!J64))),\"\")","v":""},{"$f":"IFERROR(INDEX(Database_Prop!$B$2:$B$1498,SMALL(IF(Database_Prop!$A$2:$A$1498=AN$129,ROW(Database_Prop!$B$2:$B$1498)-ROW(Database_Prop!$B$2)+1),ROWS(Database_Prop!K$2:'Database_Prop'!K64))),\"\")","v":""},{"$f":"IFERROR(INDEX(Database_Prop!$B$2:$B$1498,SMALL(IF(Database_Prop!$A$2:$A$1498=AO$129,ROW(Database_Prop!$B$2:$B$1498)-ROW(Database_Prop!$B$2)+1),ROWS(Database_Prop!L$2:'Database_Prop'!L64))),\"\")","v":""},{"$f":"IFERROR(INDEX(Database_Prop!$B$2:$B$1498,SMALL(IF(Database_Prop!$A$2:$A$1498=AP$129,ROW(Database_Prop!$B$2:$B$1498)-ROW(Database_Prop!$B$2)+1),ROWS(Database_Prop!M$2:'Database_Prop'!M64))),\"\")","v":""},{"$f":"IFERROR(INDEX(Database_Prop!$B$2:$B$1498,SMALL(IF(Database_Prop!$A$2:$A$1498=AQ$129,ROW(Database_Prop!$B$2:$B$1498)-ROW(Database_Prop!$B$2)+1),ROWS(Database_Prop!N$2:'Database_Prop'!N64))),\"\")","v":""},{"$f":"IFERROR(INDEX(Database_Prop!$B$2:$B$1498,SMALL(IF(Database_Prop!$A$2:$A$1498=AR$129,ROW(Database_Prop!$B$2:$B$1498)-ROW(Database_Prop!$B$2)+1),ROWS(Database_Prop!O$2:'Database_Prop'!O64))),\"\")","v":""},{"$f":"IFERROR(INDEX(Database_Prop!$B$2:$B$1498,SMALL(IF(Database_Prop!$A$2:$A$1498=AS$129,ROW(Database_Prop!$B$2:$B$1498)-ROW(Database_Prop!$B$2)+1),ROWS(Database_Prop!P$2:'Database_Prop'!P64))),\"\")","v":""},{"$f":"IFERROR(INDEX(Database_Prop!$B$2:$B$1498,SMALL(IF(Database_Prop!$A$2:$A$1498=AT$129,ROW(Database_Prop!$B$2:$B$1498)-ROW(Database_Prop!$B$2)+1),ROWS(Database_Prop!Q$2:'Database_Prop'!Q64))),\"\")","v":""},{"$f":"IFERROR(INDEX(Database_Prop!$B$2:$B$1498,SMALL(IF(Database_Prop!$A$2:$A$1498=AU$129,ROW(Database_Prop!$B$2:$B$1498)-ROW(Database_Prop!$B$2)+1),ROWS(Database_Prop!R$2:'Database_Prop'!R64))),\"\")","v":""},{"$f":"IFERROR(INDEX(Database_Prop!$B$2:$B$1498,SMALL(IF(Database_Prop!$A$2:$A$1498=AV$129,ROW(Database_Prop!$B$2:$B$1498)-ROW(Database_Prop!$B$2)+1),ROWS(Database_Prop!S$2:'Database_Prop'!S64))),\"\")","v":""},{"$f":"IFERROR(INDEX(Database_Prop!$B$2:$B$1498,SMALL(IF(Database_Prop!$A$2:$A$1498=AW$129,ROW(Database_Prop!$B$2:$B$1498)-ROW(Database_Prop!$B$2)+1),ROWS(Database_Prop!T$2:'Database_Prop'!T64))),\"\")","v":""},{"$f":"IFERROR(INDEX(Database_Prop!$B$2:$B$1498,SMALL(IF(Database_Prop!$A$2:$A$1498=AX$129,ROW(Database_Prop!$B$2:$B$1498)-ROW(Database_Prop!$B$2)+1),ROWS(Database_Prop!U$2:'Database_Prop'!U64))),\"\")","v":""},{"$f":"IFERROR(INDEX(Database_Prop!$B$2:$B$1498,SMALL(IF(Database_Prop!$A$2:$A$1498=AY$129,ROW(Database_Prop!$B$2:$B$1498)-ROW(Database_Prop!$B$2)+1),ROWS(Database_Prop!V$2:'Database_Prop'!V64))),\"\")","v":""},{"$f":"IFERROR(INDEX(Database_Prop!$B$2:$B$1498,SMALL(IF(Database_Prop!$A$2:$A$1498=AZ$129,ROW(Database_Prop!$B$2:$B$1498)-ROW(Database_Prop!$B$2)+1),ROWS(Database_Prop!W$2:'Database_Prop'!W64))),\"\")","v":""},{"$f":"IFERROR(INDEX(Database_Prop!$B$2:$B$1498,SMALL(IF(Database_Prop!$A$2:$A$1498=BA$129,ROW(Database_Prop!$B$2:$B$1498)-ROW(Database_Prop!$B$2)+1),ROWS(Database_Prop!X$2:'Database_Prop'!X64))),\"\")","v":""},{"$f":"IFERROR(INDEX(Database_Prop!$B$2:$B$1498,SMALL(IF(Database_Prop!$A$2:$A$1498=BB$129,ROW(Database_Prop!$B$2:$B$1498)-ROW(Database_Prop!$B$2)+1),ROWS(Database_Prop!Y$2:'Database_Prop'!Y64))),\"\")","v":""},{"$f":"IFERROR(INDEX(Database_Prop!$B$2:$B$1498,SMALL(IF(Database_Prop!$A$2:$A$1498=BC$129,ROW(Database_Prop!$B$2:$B$1498)-ROW(Database_Prop!$B$2)+1),ROWS(Database_Prop!Z$2:'Database_Prop'!Z64))),\"\")","v":""},null,"Ecuador","Latin America"]
[null,null,null,null,null,null,null,null,null,null,null,null,null,null,null,null,null,null,null,null,null,null,null,null,null,null,null,null,null,null,64,{"$f":"IFERROR(INDEX(Database_Prop!$B$2:$B$1498,SMALL(IF(Database_Prop!$A$2:$A$1498=AF$129,ROW(Database_Prop!$B$2:$B$1498)-ROW(Database_Prop!$B$2)+1),ROWS(Database_Prop!C$2:'Database_Prop'!C65))),\"\")","v":""},{"$f":"IFERROR(INDEX(Database_Prop!$B$2:$B$1498,SMALL(IF(Database_Prop!$A$2:$A$1498=AG$129,ROW(Database_Prop!$B$2:$B$1498)-ROW(Database_Prop!$B$2)+1),ROWS(Database_Prop!D$2:'Database_Prop'!D65))),\"\")","v":""},{"$f":"IFERROR(INDEX(Database_Prop!$B$2:$B$1498,SMALL(IF(Database_Prop!$A$2:$A$1498=AH$129,ROW(Database_Prop!$B$2:$B$1498)-ROW(Database_Prop!$B$2)+1),ROWS(Database_Prop!E$2:'Database_Prop'!E65))),\"\")","v":""},{"$f":"IFERROR(INDEX(Database_Prop!$B$2:$B$1498,SMALL(IF(Database_Prop!$A$2:$A$1498=AI$129,ROW(Database_Prop!$B$2:$B$1498)-ROW(Database_Prop!$B$2)+1),ROWS(Database_Prop!F$2:'Database_Prop'!F65))),\"\")","v":""},{"$f":"IFERROR(INDEX(Database_Prop!$B$2:$B$1498,SMALL(IF(Database_Prop!$A$2:$A$1498=AJ$129,ROW(Database_Prop!$B$2:$B$1498)-ROW(Database_Prop!$B$2)+1),ROWS(Database_Prop!G$2:'Database_Prop'!G65))),\"\")","v":""},{"$f":"IFERROR(INDEX(Database_Prop!$B$2:$B$1498,SMALL(IF(Database_Prop!$A$2:$A$1498=AK$129,ROW(Database_Prop!$B$2:$B$1498)-ROW(Database_Prop!$B$2)+1),ROWS(Database_Prop!H$2:'Database_Prop'!H65))),\"\")","v":""},{"$f":"IFERROR(INDEX(Database_Prop!$B$2:$B$1498,SMALL(IF(Database_Prop!$A$2:$A$1498=AL$129,ROW(Database_Prop!$B$2:$B$1498)-ROW(Database_Prop!$B$2)+1),ROWS(Database_Prop!I$2:'Database_Prop'!I65))),\"\")","v":""},{"$f":"IFERROR(INDEX(Database_Prop!$B$2:$B$1498,SMALL(IF(Database_Prop!$A$2:$A$1498=AM$129,ROW(Database_Prop!$B$2:$B$1498)-ROW(Database_Prop!$B$2)+1),ROWS(Database_Prop!J$2:'Database_Prop'!J65))),\"\")","v":""},{"$f":"IFERROR(INDEX(Database_Prop!$B$2:$B$1498,SMALL(IF(Database_Prop!$A$2:$A$1498=AN$129,ROW(Database_Prop!$B$2:$B$1498)-ROW(Database_Prop!$B$2)+1),ROWS(Database_Prop!K$2:'Database_Prop'!K65))),\"\")","v":""},{"$f":"IFERROR(INDEX(Database_Prop!$B$2:$B$1498,SMALL(IF(Database_Prop!$A$2:$A$1498=AO$129,ROW(Database_Prop!$B$2:$B$1498)-ROW(Database_Prop!$B$2)+1),ROWS(Database_Prop!L$2:'Database_Prop'!L65))),\"\")","v":""},{"$f":"IFERROR(INDEX(Database_Prop!$B$2:$B$1498,SMALL(IF(Database_Prop!$A$2:$A$1498=AP$129,ROW(Database_Prop!$B$2:$B$1498)-ROW(Database_Prop!$B$2)+1),ROWS(Database_Prop!M$2:'Database_Prop'!M65))),\"\")","v":""},{"$f":"IFERROR(INDEX(Database_Prop!$B$2:$B$1498,SMALL(IF(Database_Prop!$A$2:$A$1498=AQ$129,ROW(Database_Prop!$B$2:$B$1498)-ROW(Database_Prop!$B$2)+1),ROWS(Database_Prop!N$2:'Database_Prop'!N65))),\"\")","v":""},{"$f":"IFERROR(INDEX(Database_Prop!$B$2:$B$1498,SMALL(IF(Database_Prop!$A$2:$A$1498=AR$129,ROW(Database_Prop!$B$2:$B$1498)-ROW(Database_Prop!$B$2)+1),ROWS(Database_Prop!O$2:'Database_Prop'!O65))),\"\")","v":""},{"$f":"IFERROR(INDEX(Database_Prop!$B$2:$B$1498,SMALL(IF(Database_Prop!$A$2:$A$1498=AS$129,ROW(Database_Prop!$B$2:$B$1498)-ROW(Database_Prop!$B$2)+1),ROWS(Database_Prop!P$2:'Database_Prop'!P65))),\"\")","v":""},{"$f":"IFERROR(INDEX(Database_Prop!$B$2:$B$1498,SMALL(IF(Database_Prop!$A$2:$A$1498=AT$129,ROW(Database_Prop!$B$2:$B$1498)-ROW(Database_Prop!$B$2)+1),ROWS(Database_Prop!Q$2:'Database_Prop'!Q65))),\"\")","v":""},{"$f":"IFERROR(INDEX(Database_Prop!$B$2:$B$1498,SMALL(IF(Database_Prop!$A$2:$A$1498=AU$129,ROW(Database_Prop!$B$2:$B$1498)-ROW(Database_Prop!$B$2)+1),ROWS(Database_Prop!R$2:'Database_Prop'!R65))),\"\")","v":""},{"$f":"IFERROR(INDEX(Database_Prop!$B$2:$B$1498,SMALL(IF(Database_Prop!$A$2:$A$1498=AV$129,ROW(Database_Prop!$B$2:$B$1498)-ROW(Database_Prop!$B$2)+1),ROWS(Database_Prop!S$2:'Database_Prop'!S65))),\"\")","v":""},{"$f":"IFERROR(INDEX(Database_Prop!$B$2:$B$1498,SMALL(IF(Database_Prop!$A$2:$A$1498=AW$129,ROW(Database_Prop!$B$2:$B$1498)-ROW(Database_Prop!$B$2)+1),ROWS(Database_Prop!T$2:'Database_Prop'!T65))),\"\")","v":""},{"$f":"IFERROR(INDEX(Database_Prop!$B$2:$B$1498,SMALL(IF(Database_Prop!$A$2:$A$1498=AX$129,ROW(Database_Prop!$B$2:$B$1498)-ROW(Database_Prop!$B$2)+1),ROWS(Database_Prop!U$2:'Database_Prop'!U65))),\"\")","v":""},{"$f":"IFERROR(INDEX(Database_Prop!$B$2:$B$1498,SMALL(IF(Database_Prop!$A$2:$A$1498=AY$129,ROW(Database_Prop!$B$2:$B$1498)-ROW(Database_Prop!$B$2)+1),ROWS(Database_Prop!V$2:'Database_Prop'!V65))),\"\")","v":""},{"$f":"IFERROR(INDEX(Database_Prop!$B$2:$B$1498,SMALL(IF(Database_Prop!$A$2:$A$1498=AZ$129,ROW(Database_Prop!$B$2:$B$1498)-ROW(Database_Prop!$B$2)+1),ROWS(Database_Prop!W$2:'Database_Prop'!W65))),\"\")","v":""},{"$f":"IFERROR(INDEX(Database_Prop!$B$2:$B$1498,SMALL(IF(Database_Prop!$A$2:$A$1498=BA$129,ROW(Database_Prop!$B$2:$B$1498)-ROW(Database_Prop!$B$2)+1),ROWS(Database_Prop!X$2:'Database_Prop'!X65))),\"\")","v":""},{"$f":"IFERROR(INDEX(Database_Prop!$B$2:$B$1498,SMALL(IF(Database_Prop!$A$2:$A$1498=BB$129,ROW(Database_Prop!$B$2:$B$1498)-ROW(Database_Prop!$B$2)+1),ROWS(Database_Prop!Y$2:'Database_Prop'!Y65))),\"\")","v":""},{"$f":"IFERROR(INDEX(Database_Prop!$B$2:$B$1498,SMALL(IF(Database_Prop!$A$2:$A$1498=BC$129,ROW(Database_Prop!$B$2:$B$1498)-ROW(Database_Prop!$B$2)+1),ROWS(Database_Prop!Z$2:'Database_Prop'!Z65))),\"\")","v":""},null,"Egypt","Middle East"]
[null,null,null,null,null,null,null,null,null,null,null,null,null,null,null,null,null,null,null,null,null,null,null,null,null,null,null,null,null,null,65,{"$f":"IFERROR(INDEX(Database_Prop!$B$2:$B$1498,SMALL(IF(Database_Prop!$A$2:$A$1498=AF$129,ROW(Database_Prop!$B$2:$B$1498)-ROW(Database_Prop!$B$2)+1),ROWS(Database_Prop!C$2:'Database_Prop'!C66))),\"\")","v":""},{"$f":"IFERROR(INDEX(Database_Prop!$B$2:$B$1498,SMALL(IF(Database_Prop!$A$2:$A$1498=AG$129,ROW(Database_Prop!$B$2:$B$1498)-ROW(Database_Prop!$B$2)+1),ROWS(Database_Prop!D$2:'Database_Prop'!D66))),\"\")","v":""},{"$f":"IFERROR(INDEX(Database_Prop!$B$2:$B$1498,SMALL(IF(Database_Prop!$A$2:$A$1498=AH$129,ROW(Database_Prop!$B$2:$B$1498)-ROW(Database_Prop!$B$2)+1),ROWS(Database_Prop!E$2:'Database_Prop'!E66))),\"\")","v":""},{"$f":"IFERROR(INDEX(Database_Prop!$B$2:$B$1498,SMALL(IF(Database_Prop!$A$2:$A$1498=AI$129,ROW(Database_Prop!$B$2:$B$1498)-ROW(Database_Prop!$B$2)+1),ROWS(Database_Prop!F$2:'Database_Prop'!F66))),\"\")","v":""},{"$f":"IFERROR(INDEX(Database_Prop!$B$2:$B$1498,SMALL(IF(Database_Prop!$A$2:$A$1498=AJ$129,ROW(Database_Prop!$B$2:$B$1498)-ROW(Database_Prop!$B$2)+1),ROWS(Database_Prop!G$2:'Database_Prop'!G66))),\"\")","v":""},{"$f":"IFERROR(INDEX(Database_Prop!$B$2:$B$1498,SMALL(IF(Database_Prop!$A$2:$A$1498=AK$129,ROW(Database_Prop!$B$2:$B$1498)-ROW(Database_Prop!$B$2)+1),ROWS(Database_Prop!H$2:'Database_Prop'!H66))),\"\")","v":""},{"$f":"IFERROR(INDEX(Database_Prop!$B$2:$B$1498,SMALL(IF(Database_Prop!$A$2:$A$1498=AL$129,ROW(Database_Prop!$B$2:$B$1498)-ROW(Database_Prop!$B$2)+1),ROWS(Database_Prop!I$2:'Database_Prop'!I66))),\"\")","v":""},{"$f":"IFERROR(INDEX(Database_Prop!$B$2:$B$1498,SMALL(IF(Database_Prop!$A$2:$A$1498=AM$129,ROW(Database_Prop!$B$2:$B$1498)-ROW(Database_Prop!$B$2)+1),ROWS(Database_Prop!J$2:'Database_Prop'!J66))),\"\")","v":""},{"$f":"IFERROR(INDEX(Database_Prop!$B$2:$B$1498,SMALL(IF(Database_Prop!$A$2:$A$1498=AN$129,ROW(Database_Prop!$B$2:$B$1498)-ROW(Database_Prop!$B$2)+1),ROWS(Database_Prop!K$2:'Database_Prop'!K66))),\"\")","v":""},{"$f":"IFERROR(INDEX(Database_Prop!$B$2:$B$1498,SMALL(IF(Database_Prop!$A$2:$A$1498=AO$129,ROW(Database_Prop!$B$2:$B$1498)-ROW(Database_Prop!$B$2)+1),ROWS(Database_Prop!L$2:'Database_Prop'!L66))),\"\")","v":""},{"$f":"IFERROR(INDEX(Database_Prop!$B$2:$B$1498,SMALL(IF(Database_Prop!$A$2:$A$1498=AP$129,ROW(Database_Prop!$B$2:$B$1498)-ROW(Database_Prop!$B$2)+1),ROWS(Database_Prop!M$2:'Database_Prop'!M66))),\"\")","v":""},{"$f":"IFERROR(INDEX(Database_Prop!$B$2:$B$1498,SMALL(IF(Database_Prop!$A$2:$A$1498=AQ$129,ROW(Database_Prop!$B$2:$B$1498)-ROW(Database_Prop!$B$2)+1),ROWS(Database_Prop!N$2:'Database_Prop'!N66))),\"\")","v":""},{"$f":"IFERROR(INDEX(Database_Prop!$B$2:$B$1498,SMALL(IF(Database_Prop!$A$2:$A$1498=AR$129,ROW(Database_Prop!$B$2:$B$1498)-ROW(Database_Prop!$B$2)+1),ROWS(Database_Prop!O$2:'Database_Prop'!O66))),\"\")","v":""},{"$f":"IFERROR(INDEX(Database_Prop!$B$2:$B$1498,SMALL(IF(Database_Prop!$A$2:$A$1498=AS$129,ROW(Database_Prop!$B$2:$B$1498)-ROW(Database_Prop!$B$2)+1),ROWS(Database_Prop!P$2:'Database_Prop'!P66))),\"\")","v":""},{"$f":"IFERROR(INDEX(Database_Prop!$B$2:$B$1498,SMALL(IF(Database_Prop!$A$2:$A$1498=AT$129,ROW(Database_Prop!$B$2:$B$1498)-ROW(Database_Prop!$B$2)+1),ROWS(Database_Prop!Q$2:'Database_Prop'!Q66))),\"\")","v":""},{"$f":"IFERROR(INDEX(Database_Prop!$B$2:$B$1498,SMALL(IF(Database_Prop!$A$2:$A$1498=AU$129,ROW(Database_Prop!$B$2:$B$1498)-ROW(Database_Prop!$B$2)+1),ROWS(Database_Prop!R$2:'Database_Prop'!R66))),\"\")","v":""},{"$f":"IFERROR(INDEX(Database_Prop!$B$2:$B$1498,SMALL(IF(Database_Prop!$A$2:$A$1498=AV$129,ROW(Database_Prop!$B$2:$B$1498)-ROW(Database_Prop!$B$2)+1),ROWS(Database_Prop!S$2:'Database_Prop'!S66))),\"\")","v":""},{"$f":"IFERROR(INDEX(Database_Prop!$B$2:$B$1498,SMALL(IF(Database_Prop!$A$2:$A$1498=AW$129,ROW(Database_Prop!$B$2:$B$1498)-ROW(Database_Prop!$B$2)+1),ROWS(Database_Prop!T$2:'Database_Prop'!T66))),\"\")","v":""},{"$f":"IFERROR(INDEX(Database_Prop!$B$2:$B$1498,SMALL(IF(Database_Prop!$A$2:$A$1498=AX$129,ROW(Database_Prop!$B$2:$B$1498)-ROW(Database_Prop!$B$2)+1),ROWS(Database_Prop!U$2:'Database_Prop'!U66))),\"\")","v":""},{"$f":"IFERROR(INDEX(Database_Prop!$B$2:$B$1498,SMALL(IF(Database_Prop!$A$2:$A$1498=AY$129,ROW(Database_Prop!$B$2:$B$1498)-ROW(Database_Prop!$B$2)+1),ROWS(Database_Prop!V$2:'Database_Prop'!V66))),\"\")","v":""},{"$f":"IFERROR(INDEX(Database_Prop!$B$2:$B$1498,SMALL(IF(Database_Prop!$A$2:$A$1498=AZ$129,ROW(Database_Prop!$B$2:$B$1498)-ROW(Database_Prop!$B$2)+1),ROWS(Database_Prop!W$2:'Database_Prop'!W66))),\"\")","v":""},{"$f":"IFERROR(INDEX(Database_Prop!$B$2:$B$1498,SMALL(IF(Database_Prop!$A$2:$A$1498=BA$129,ROW(Database_Prop!$B$2:$B$1498)-ROW(Database_Prop!$B$2)+1),ROWS(Database_Prop!X$2:'Database_Prop'!X66))),\"\")","v":""},{"$f":"IFERROR(INDEX(Database_Prop!$B$2:$B$1498,SMALL(IF(Database_Prop!$A$2:$A$1498=BB$129,ROW(Database_Prop!$B$2:$B$1498)-ROW(Database_Prop!$B$2)+1),ROWS(Database_Prop!Y$2:'Database_Prop'!Y66))),\"\")","v":""},{"$f":"IFERROR(INDEX(Database_Prop!$B$2:$B$1498,SMALL(IF(Database_Prop!$A$2:$A$1498=BC$129,ROW(Database_Prop!$B$2:$B$1498)-ROW(Database_Prop!$B$2)+1),ROWS(Database_Prop!Z$2:'Database_Prop'!Z66))),\"\")","v":""},null,"El Salvador","Latin America"]
[null,null,null,null,null,null,null,null,null,null,null,null,null,null,null,null,null,null,null,null,null,null,null,null,null,null,null,null,null,null,66,{"$f":"IFERROR(INDEX(Database_Prop!$B$2:$B$1498,SMALL(IF(Database_Prop!$A$2:$A$1498=AF$129,ROW(Database_Prop!$B$2:$B$1498)-ROW(Database_Prop!$B$2)+1),ROWS(Database_Prop!C$2:'Database_Prop'!C67))),\"\")","v":""},{"$f":"IFERROR(INDEX(Database_Prop!$B$2:$B$1498,SMALL(IF(Database_Prop!$A$2:$A$1498=AG$129,ROW(Database_Prop!$B$2:$B$1498)-ROW(Database_Prop!$B$2)+1),ROWS(Database_Prop!D$2:'Database_Prop'!D67))),\"\")","v":""},{"$f":"IFERROR(INDEX(Database_Prop!$B$2:$B$1498,SMALL(IF(Database_Prop!$A$2:$A$1498=AH$129,ROW(Database_Prop!$B$2:$B$1498)-ROW(Database_Prop!$B$2)+1),ROWS(Database_Prop!E$2:'Database_Prop'!E67))),\"\")","v":""},{"$f":"IFERROR(INDEX(Database_Prop!$B$2:$B$1498,SMALL(IF(Database_Prop!$A$2:$A$1498=AI$129,ROW(Database_Prop!$B$2:$B$1498)-ROW(Database_Prop!$B$2)+1),ROWS(Database_Prop!F$2:'Database_Prop'!F67))),\"\")","v":""},{"$f":"IFERROR(INDEX(Database_Prop!$B$2:$B$1498,SMALL(IF(Database_Prop!$A$2:$A$1498=AJ$129,ROW(Database_Prop!$B$2:$B$1498)-ROW(Database_Prop!$B$2)+1),ROWS(Database_Prop!G$2:'Database_Prop'!G67))),\"\")","v":""},{"$f":"IFERROR(INDEX(Database_Prop!$B$2:$B$1498,SMALL(IF(Database_Prop!$A$2:$A$1498=AK$129,ROW(Database_Prop!$B$2:$B$1498)-ROW(Database_Prop!$B$2)+1),ROWS(Database_Prop!H$2:'Database_Prop'!H67))),\"\")","v":""},{"$f":"IFERROR(INDEX(Database_Prop!$B$2:$B$1498,SMALL(IF(Database_Prop!$A$2:$A$1498=AL$129,ROW(Database_Prop!$B$2:$B$1498)-ROW(Database_Prop!$B$2)+1),ROWS(Database_Prop!I$2:'Database_Prop'!I67))),\"\")","v":""},{"$f":"IFERROR(INDEX(Database_Prop!$B$2:$B$1498,SMALL(IF(Database_Prop!$A$2:$A$1498=AM$129,ROW(Database_Prop!$B$2:$B$1498)-ROW(Database_Prop!$B$2)+1),ROWS(Database_Prop!J$2:'Database_Prop'!J67))),\"\")","v":""},{"$f":"IFERROR(INDEX(Database_Prop!$B$2:$B$1498,SMALL(IF(Database_Prop!$A$2:$A$1498=AN$129,ROW(Database_Prop!$B$2:$B$1498)-ROW(Database_Prop!$B$2)+1),ROWS(Database_Prop!K$2:'Database_Prop'!K67))),\"\")","v":""},{"$f":"IFERROR(INDEX(Database_Prop!$B$2:$B$1498,SMALL(IF(Database_Prop!$A$2:$A$1498=AO$129,ROW(Database_Prop!$B$2:$B$1498)-ROW(Database_Prop!$B$2)+1),ROWS(Database_Prop!L$2:'Database_Prop'!L67))),\"\")","v":""},{"$f":"IFERROR(INDEX(Database_Prop!$B$2:$B$1498,SMALL(IF(Database_Prop!$A$2:$A$1498=AP$129,ROW(Database_Prop!$B$2:$B$1498)-ROW(Database_Prop!$B$2)+1),ROWS(Database_Prop!M$2:'Database_Prop'!M67))),\"\")","v":""},{"$f":"IFERROR(INDEX(Database_Prop!$B$2:$B$1498,SMALL(IF(Database_Prop!$A$2:$A$1498=AQ$129,ROW(Database_Prop!$B$2:$B$1498)-ROW(Database_Prop!$B$2)+1),ROWS(Database_Prop!N$2:'Database_Prop'!N67))),\"\")","v":""},{"$f":"IFERROR(INDEX(Database_Prop!$B$2:$B$1498,SMALL(IF(Database_Prop!$A$2:$A$1498=AR$129,ROW(Database_Prop!$B$2:$B$1498)-ROW(Database_Prop!$B$2)+1),ROWS(Database_Prop!O$2:'Database_Prop'!O67))),\"\")","v":""},{"$f":"IFERROR(INDEX(Database_Prop!$B$2:$B$1498,SMALL(IF(Database_Prop!$A$2:$A$1498=AS$129,ROW(Database_Prop!$B$2:$B$1498)-ROW(Database_Prop!$B$2)+1),ROWS(Database_Prop!P$2:'Database_Prop'!P67))),\"\")","v":""},{"$f":"IFERROR(INDEX(Database_Prop!$B$2:$B$1498,SMALL(IF(Database_Prop!$A$2:$A$1498=AT$129,ROW(Database_Prop!$B$2:$B$1498)-ROW(Database_Prop!$B$2)+1),ROWS(Database_Prop!Q$2:'Database_Prop'!Q67))),\"\")","v":""},{"$f":"IFERROR(INDEX(Database_Prop!$B$2:$B$1498,SMALL(IF(Database_Prop!$A$2:$A$1498=AU$129,ROW(Database_Prop!$B$2:$B$1498)-ROW(Database_Prop!$B$2)+1),ROWS(Database_Prop!R$2:'Database_Prop'!R67))),\"\")","v":""},{"$f":"IFERROR(INDEX(Database_Prop!$B$2:$B$1498,SMALL(IF(Database_Prop!$A$2:$A$1498=AV$129,ROW(Database_Prop!$B$2:$B$1498)-ROW(Database_Prop!$B$2)+1),ROWS(Database_Prop!S$2:'Database_Prop'!S67))),\"\")","v":""},{"$f":"IFERROR(INDEX(Database_Prop!$B$2:$B$1498,SMALL(IF(Database_Prop!$A$2:$A$1498=AW$129,ROW(Database_Prop!$B$2:$B$1498)-ROW(Database_Prop!$B$2)+1),ROWS(Database_Prop!T$2:'Database_Prop'!T67))),\"\")","v":""},{"$f":"IFERROR(INDEX(Database_Prop!$B$2:$B$1498,SMALL(IF(Database_Prop!$A$2:$A$1498=AX$129,ROW(Database_Prop!$B$2:$B$1498)-ROW(Database_Prop!$B$2)+1),ROWS(Database_Prop!U$2:'Database_Prop'!U67))),\"\")","v":""},{"$f":"IFERROR(INDEX(Database_Prop!$B$2:$B$1498,SMALL(IF(Database_Prop!$A$2:$A$1498=AY$129,ROW(Database_Prop!$B$2:$B$1498)-ROW(Database_Prop!$B$2)+1),ROWS(Database_Prop!V$2:'Database_Prop'!V67))),\"\")","v":""},{"$f":"IFERROR(INDEX(Database_Prop!$B$2:$B$1498,SMALL(IF(Database_Prop!$A$2:$A$1498=AZ$129,ROW(Database_Prop!$B$2:$B$1498)-ROW(Database_Prop!$B$2)+1),ROWS(Database_Prop!W$2:'Database_Prop'!W67))),\"\")","v":""},{"$f":"IFERROR(INDEX(Database_Prop!$B$2:$B$1498,SMALL(IF(Database_Prop!$A$2:$A$1498=BA$129,ROW(Database_Prop!$B$2:$B$1498)-ROW(Database_Prop!$B$2)+1),ROWS(Database_Prop!X$2:'Database_Prop'!X67))),\"\")","v":""},{"$f":"IFERROR(INDEX(Database_Prop!$B$2:$B$1498,SMALL(IF(Database_Prop!$A$2:$A$1498=BB$129,ROW(Database_Prop!$B$2:$B$1498)-ROW(Database_Prop!$B$2)+1),ROWS(Database_Prop!Y$2:'Database_Prop'!Y67))),\"\")","v":""},{"$f":"IFERROR(INDEX(Database_Prop!$B$2:$B$1498,SMALL(IF(Database_Prop!$A$2:$A$1498=BC$129,ROW(Database_Prop!$B$2:$B$1498)-ROW(Database_Prop!$B$2)+1),ROWS(Database_Prop!Z$2:'Database_Prop'!Z67))),\"\")","v":""},null,"Equatorial Guinea","Africa"]
[null,null,null,null,null,null,null,null,null,null,null,null,null,null,null,null,null,null,null,null,null,null,null,null,null,null,null,null,null,null,{"$f":"AE197+1","v":67},{"$f":"IFERROR(INDEX(Database_Prop!$B$2:$B$1498,SMALL(IF(Database_Prop!$A$2:$A$1498=AF$129,ROW(Database_Prop!$B$2:$B$1498)-ROW(Database_Prop!$B$2)+1),ROWS(Database_Prop!C$2:'Database_Prop'!C68))),\"\")","v":""},{"$f":"IFERROR(INDEX(Database_Prop!$B$2:$B$1498,SMALL(IF(Database_Prop!$A$2:$A$1498=AG$129,ROW(Database_Prop!$B$2:$B$1498)-ROW(Database_Prop!$B$2)+1),ROWS(Database_Prop!D$2:'Database_Prop'!D68))),\"\")","v":""},{"$f":"IFERROR(INDEX(Database_Prop!$B$2:$B$1498,SMALL(IF(Database_Prop!$A$2:$A$1498=AH$129,ROW(Database_Prop!$B$2:$B$1498)-ROW(Database_Prop!$B$2)+1),ROWS(Database_Prop!E$2:'Database_Prop'!E68))),\"\")","v":""},{"$f":"IFERROR(INDEX(Database_Prop!$B$2:$B$1498,SMALL(IF(Database_Prop!$A$2:$A$1498=AI$129,ROW(Database_Prop!$B$2:$B$1498)-ROW(Database_Prop!$B$2)+1),ROWS(Database_Prop!F$2:'Database_Prop'!F68))),\"\")","v":""},{"$f":"IFERROR(INDEX(Database_Prop!$B$2:$B$1498,SMALL(IF(Database_Prop!$A$2:$A$1498=AJ$129,ROW(Database_Prop!$B$2:$B$1498)-ROW(Database_Prop!$B$2)+1),ROWS(Database_Prop!G$2:'Database_Prop'!G68))),\"\")","v":""},{"$f":"IFERROR(INDEX(Database_Prop!$B$2:$B$1498,SMALL(IF(Database_Prop!$A$2:$A$1498=AK$129,ROW(Database_Prop!$B$2:$B$1498)-ROW(Database_Prop!$B$2)+1),ROWS(Database_Prop!H$2:'Database_Prop'!H68))),\"\")","v":""},{"$f":"IFERROR(INDEX(Database_Prop!$B$2:$B$1498,SMALL(IF(Database_Prop!$A$2:$A$1498=AL$129,ROW(Database_Prop!$B$2:$B$1498)-ROW(Database_Prop!$B$2)+1),ROWS(Database_Prop!I$2:'Database_Prop'!I68))),\"\")","v":""},{"$f":"IFERROR(INDEX(Database_Prop!$B$2:$B$1498,SMALL(IF(Database_Prop!$A$2:$A$1498=AM$129,ROW(Database_Prop!$B$2:$B$1498)-ROW(Database_Prop!$B$2)+1),ROWS(Database_Prop!J$2:'Database_Prop'!J68))),\"\")","v":""},{"$f":"IFERROR(INDEX(Database_Prop!$B$2:$B$1498,SMALL(IF(Database_Prop!$A$2:$A$1498=AN$129,ROW(Database_Prop!$B$2:$B$1498)-ROW(Database_Prop!$B$2)+1),ROWS(Database_Prop!K$2:'Database_Prop'!K68))),\"\")","v":""},{"$f":"IFERROR(INDEX(Database_Prop!$B$2:$B$1498,SMALL(IF(Database_Prop!$A$2:$A$1498=AO$129,ROW(Database_Prop!$B$2:$B$1498)-ROW(Database_Prop!$B$2)+1),ROWS(Database_Prop!L$2:'Database_Prop'!L68))),\"\")","v":""},{"$f":"IFERROR(INDEX(Database_Prop!$B$2:$B$1498,SMALL(IF(Database_Prop!$A$2:$A$1498=AP$129,ROW(Database_Prop!$B$2:$B$1498)-ROW(Database_Prop!$B$2)+1),ROWS(Database_Prop!M$2:'Database_Prop'!M68))),\"\")","v":""},{"$f":"IFERROR(INDEX(Database_Prop!$B$2:$B$1498,SMALL(IF(Database_Prop!$A$2:$A$1498=AQ$129,ROW(Database_Prop!$B$2:$B$1498)-ROW(Database_Prop!$B$2)+1),ROWS(Database_Prop!N$2:'Database_Prop'!N68))),\"\")","v":""},{"$f":"IFERROR(INDEX(Database_Prop!$B$2:$B$1498,SMALL(IF(Database_Prop!$A$2:$A$1498=AR$129,ROW(Database_Prop!$B$2:$B$1498)-ROW(Database_Prop!$B$2)+1),ROWS(Database_Prop!O$2:'Database_Prop'!O68))),\"\")","v":""},{"$f":"IFERROR(INDEX(Database_Prop!$B$2:$B$1498,SMALL(IF(Database_Prop!$A$2:$A$1498=AS$129,ROW(Database_Prop!$B$2:$B$1498)-ROW(Database_Prop!$B$2)+1),ROWS(Database_Prop!P$2:'Database_Prop'!P68))),\"\")","v":""},{"$f":"IFERROR(INDEX(Database_Prop!$B$2:$B$1498,SMALL(IF(Database_Prop!$A$2:$A$1498=AT$129,ROW(Database_Prop!$B$2:$B$1498)-ROW(Database_Prop!$B$2)+1),ROWS(Database_Prop!Q$2:'Database_Prop'!Q68))),\"\")","v":""},{"$f":"IFERROR(INDEX(Database_Prop!$B$2:$B$1498,SMALL(IF(Database_Prop!$A$2:$A$1498=AU$129,ROW(Database_Prop!$B$2:$B$1498)-ROW(Database_Prop!$B$2)+1),ROWS(Database_Prop!R$2:'Database_Prop'!R68))),\"\")","v":""},{"$f":"IFERROR(INDEX(Database_Prop!$B$2:$B$1498,SMALL(IF(Database_Prop!$A$2:$A$1498=AV$129,ROW(Database_Prop!$B$2:$B$1498)-ROW(Database_Prop!$B$2)+1),ROWS(Database_Prop!S$2:'Database_Prop'!S68))),\"\")","v":""},{"$f":"IFERROR(INDEX(Database_Prop!$B$2:$B$1498,SMALL(IF(Database_Prop!$A$2:$A$1498=AW$129,ROW(Database_Prop!$B$2:$B$1498)-ROW(Database_Prop!$B$2)+1),ROWS(Database_Prop!T$2:'Database_Prop'!T68))),\"\")","v":""},{"$f":"IFERROR(INDEX(Database_Prop!$B$2:$B$1498,SMALL(IF(Database_Prop!$A$2:$A$1498=AX$129,ROW(Database_Prop!$B$2:$B$1498)-ROW(Database_Prop!$B$2)+1),ROWS(Database_Prop!U$2:'Database_Prop'!U68))),\"\")","v":""},{"$f":"IFERROR(INDEX(Database_Prop!$B$2:$B$1498,SMALL(IF(Database_Prop!$A$2:$A$1498=AY$129,ROW(Database_Prop!$B$2:$B$1498)-ROW(Database_Prop!$B$2)+1),ROWS(Database_Prop!V$2:'Database_Prop'!V68))),\"\")","v":""},{"$f":"IFERROR(INDEX(Database_Prop!$B$2:$B$1498,SMALL(IF(Database_Prop!$A$2:$A$1498=AZ$129,ROW(Database_Prop!$B$2:$B$1498)-ROW(Database_Prop!$B$2)+1),ROWS(Database_Prop!W$2:'Database_Prop'!W68))),\"\")","v":""},{"$f":"IFERROR(INDEX(Database_Prop!$B$2:$B$1498,SMALL(IF(Database_Prop!$A$2:$A$1498=BA$129,ROW(Database_Prop!$B$2:$B$1498)-ROW(Database_Prop!$B$2)+1),ROWS(Database_Prop!X$2:'Database_Prop'!X68))),\"\")","v":""},{"$f":"IFERROR(INDEX(Database_Prop!$B$2:$B$1498,SMALL(IF(Database_Prop!$A$2:$A$1498=BB$129,ROW(Database_Prop!$B$2:$B$1498)-ROW(Database_Prop!$B$2)+1),ROWS(Database_Prop!Y$2:'Database_Prop'!Y68))),\"\")","v":""},{"$f":"IFERROR(INDEX(Database_Prop!$B$2:$B$1498,SMALL(IF(Database_Prop!$A$2:$A$1498=BC$129,ROW(Database_Prop!$B$2:$B$1498)-ROW(Database_Prop!$B$2)+1),ROWS(Database_Prop!Z$2:'Database_Prop'!Z68))),\"\")","v":""},null,"Eritrea","Africa"]
[null,null,null,null,null,null,null,null,null,null,null,null,null,null,null,null,null,null,null,null,null,null,null,null,null,null,null,null,null,null,68,{"$f":"IFERROR(INDEX(Database_Prop!$B$2:$B$1498,SMALL(IF(Database_Prop!$A$2:$A$1498=AF$129,ROW(Database_Prop!$B$2:$B$1498)-ROW(Database_Prop!$B$2)+1),ROWS(Database_Prop!C$2:'Database_Prop'!C69))),\"\")","v":""},{"$f":"IFERROR(INDEX(Database_Prop!$B$2:$B$1498,SMALL(IF(Database_Prop!$A$2:$A$1498=AG$129,ROW(Database_Prop!$B$2:$B$1498)-ROW(Database_Prop!$B$2)+1),ROWS(Database_Prop!D$2:'Database_Prop'!D69))),\"\")","v":""},{"$f":"IFERROR(INDEX(Database_Prop!$B$2:$B$1498,SMALL(IF(Database_Prop!$A$2:$A$1498=AH$129,ROW(Database_Prop!$B$2:$B$1498)-ROW(Database_Prop!$B$2)+1),ROWS(Database_Prop!E$2:'Database_Prop'!E69))),\"\")","v":""},{"$f":"IFERROR(INDEX(Database_Prop!$B$2:$B$1498,SMALL(IF(Database_Prop!$A$2:$A$1498=AI$129,ROW(Database_Prop!$B$2:$B$1498)-ROW(Database_Prop!$B$2)+1),ROWS(Database_Prop!F$2:'Database_Prop'!F69))),\"\")","v":""},{"$f":"IFERROR(INDEX(Database_Prop!$B$2:$B$1498,SMALL(IF(Database_Prop!$A$2:$A$1498=AJ$129,ROW(Database_Prop!$B$2:$B$1498)-ROW(Database_Prop!$B$2)+1),ROWS(Database_Prop!G$2:'Database_Prop'!G69))),\"\")","v":""},{"$f":"IFERROR(INDEX(Database_Prop!$B$2:$B$1498,SMALL(IF(Database_Prop!$A$2:$A$1498=AK$129,ROW(Database_Prop!$B$2:$B$1498)-ROW(Database_Prop!$B$2)+1),ROWS(Database_Prop!H$2:'Database_Prop'!H69))),\"\")","v":""},{"$f":"IFERROR(INDEX(Database_Prop!$B$2:$B$1498,SMALL(IF(Database_Prop!$A$2:$A$1498=AL$129,ROW(Database_Prop!$B$2:$B$1498)-ROW(Database_Prop!$B$2)+1),ROWS(Database_Prop!I$2:'Database_Prop'!I69))),\"\")","v":""},{"$f":"IFERROR(INDEX(Database_Prop!$B$2:$B$1498,SMALL(IF(Database_Prop!$A$2:$A$1498=AM$129,ROW(Database_Prop!$B$2:$B$1498)-ROW(Database_Prop!$B$2)+1),ROWS(Database_Prop!J$2:'Database_Prop'!J69))),\"\")","v":""},{"$f":"IFERROR(INDEX(Database_Prop!$B$2:$B$1498,SMALL(IF(Database_Prop!$A$2:$A$1498=AN$129,ROW(Database_Prop!$B$2:$B$1498)-ROW(Database_Prop!$B$2)+1),ROWS(Database_Prop!K$2:'Database_Prop'!K69))),\"\")","v":""},{"$f":"IFERROR(INDEX(Database_Prop!$B$2:$B$1498,SMALL(IF(Database_Prop!$A$2:$A$1498=AO$129,ROW(Database_Prop!$B$2:$B$1498)-ROW(Database_Prop!$B$2)+1),ROWS(Database_Prop!L$2:'Database_Prop'!L69))),\"\")","v":""},{"$f":"IFERROR(INDEX(Database_Prop!$B$2:$B$1498,SMALL(IF(Database_Prop!$A$2:$A$1498=AP$129,ROW(Database_Prop!$B$2:$B$1498)-ROW(Database_Prop!$B$2)+1),ROWS(Database_Prop!M$2:'Database_Prop'!M69))),\"\")","v":""},{"$f":"IFERROR(INDEX(Database_Prop!$B$2:$B$1498,SMALL(IF(Database_Prop!$A$2:$A$1498=AQ$129,ROW(Database_Prop!$B$2:$B$1498)-ROW(Database_Prop!$B$2)+1),ROWS(Database_Prop!N$2:'Database_Prop'!N69))),\"\")","v":""},{"$f":"IFERROR(INDEX(Database_Prop!$B$2:$B$1498,SMALL(IF(Database_Prop!$A$2:$A$1498=AR$129,ROW(Database_Prop!$B$2:$B$1498)-ROW(Database_Prop!$B$2)+1),ROWS(Database_Prop!O$2:'Database_Prop'!O69))),\"\")","v":""},{"$f":"IFERROR(INDEX(Database_Prop!$B$2:$B$1498,SMALL(IF(Database_Prop!$A$2:$A$1498=AS$129,ROW(Database_Prop!$B$2:$B$1498)-ROW(Database_Prop!$B$2)+1),ROWS(Database_Prop!P$2:'Database_Prop'!P69))),\"\")","v":""},{"$f":"IFERROR(INDEX(Database_Prop!$B$2:$B$1498,SMALL(IF(Database_Prop!$A$2:$A$1498=AT$129,ROW(Database_Prop!$B$2:$B$1498)-ROW(Database_Prop!$B$2)+1),ROWS(Database_Prop!Q$2:'Database_Prop'!Q69))),\"\")","v":""},{"$f":"IFERROR(INDEX(Database_Prop!$B$2:$B$1498,SMALL(IF(Database_Prop!$A$2:$A$1498=AU$129,ROW(Database_Prop!$B$2:$B$1498)-ROW(Database_Prop!$B$2)+1),ROWS(Database_Prop!R$2:'Database_Prop'!R69))),\"\")","v":""},{"$f":"IFERROR(INDEX(Database_Prop!$B$2:$B$1498,SMALL(IF(Database_Prop!$A$2:$A$1498=AV$129,ROW(Database_Prop!$B$2:$B$1498)-ROW(Database_Prop!$B$2)+1),ROWS(Database_Prop!S$2:'Database_Prop'!S69))),\"\")","v":""},{"$f":"IFERROR(INDEX(Database_Prop!$B$2:$B$1498,SMALL(IF(Database_Prop!$A$2:$A$1498=AW$129,ROW(Database_Prop!$B$2:$B$1498)-ROW(Database_Prop!$B$2)+1),ROWS(Database_Prop!T$2:'Database_Prop'!T69))),\"\")","v":""},{"$f":"IFERROR(INDEX(Database_Prop!$B$2:$B$1498,SMALL(IF(Database_Prop!$A$2:$A$1498=AX$129,ROW(Database_Prop!$B$2:$B$1498)-ROW(Database_Prop!$B$2)+1),ROWS(Database_Prop!U$2:'Database_Prop'!U69))),\"\")","v":""},{"$f":"IFERROR(INDEX(Database_Prop!$B$2:$B$1498,SMALL(IF(Database_Prop!$A$2:$A$1498=AY$129,ROW(Database_Prop!$B$2:$B$1498)-ROW(Database_Prop!$B$2)+1),ROWS(Database_Prop!V$2:'Database_Prop'!V69))),\"\")","v":""},{"$f":"IFERROR(INDEX(Database_Prop!$B$2:$B$1498,SMALL(IF(Database_Prop!$A$2:$A$1498=AZ$129,ROW(Database_Prop!$B$2:$B$1498)-ROW(Database_Prop!$B$2)+1),ROWS(Database_Prop!W$2:'Database_Prop'!W69))),\"\")","v":""},{"$f":"IFERROR(INDEX(Database_Prop!$B$2:$B$1498,SMALL(IF(Database_Prop!$A$2:$A$1498=BA$129,ROW(Database_Prop!$B$2:$B$1498)-ROW(Database_Prop!$B$2)+1),ROWS(Database_Prop!X$2:'Database_Prop'!X69))),\"\")","v":""},{"$f":"IFERROR(INDEX(Database_Prop!$B$2:$B$1498,SMALL(IF(Database_Prop!$A$2:$A$1498=BB$129,ROW(Database_Prop!$B$2:$B$1498)-ROW(Database_Prop!$B$2)+1),ROWS(Database_Prop!Y$2:'Database_Prop'!Y69))),\"\")","v":""},{"$f":"IFERROR(INDEX(Database_Prop!$B$2:$B$1498,SMALL(IF(Database_Prop!$A$2:$A$1498=BC$129,ROW(Database_Prop!$B$2:$B$1498)-ROW(Database_Prop!$B$2)+1),ROWS(Database_Prop!Z$2:'Database_Prop'!Z69))),\"\")","v":""},null,"Estonia","Western Europe"]
[null,null,null,null,null,null,null,null,null,null,null,null,null,null,null,null,null,null,null,null,null,null,null,null,null,null,null,null,null,null,69,{"$f":"IFERROR(INDEX(Database_Prop!$B$2:$B$1498,SMALL(IF(Database_Prop!$A$2:$A$1498=AF$129,ROW(Database_Prop!$B$2:$B$1498)-ROW(Database_Prop!$B$2)+1),ROWS(Database_Prop!C$2:Database_Prop!#REF!))),\"\")","v":""},{"$f":"IFERROR(INDEX(Database_Prop!$B$2:$B$1498,SMALL(IF(Database_Prop!$A$2:$A$1498=AG$129,ROW(Database_Prop!$B$2:$B$1498)-ROW(Database_Prop!$B$2)+1),ROWS(Database_Prop!D$2:Database_Prop!#REF!))),\"\")","v":""},{"$f":"IFERROR(INDEX(Database_Prop!$B$2:$B$1498,SMALL(IF(Database_Prop!$A$2:$A$1498=AH$129,ROW(Database_Prop!$B$2:$B$1498)-ROW(Database_Prop!$B$2)+1),ROWS(Database_Prop!E$2:Database_Prop!#REF!))),\"\")","v":""},{"$f":"IFERROR(INDEX(Database_Prop!$B$2:$B$1498,SMALL(IF(Database_Prop!$A$2:$A$1498=AI$129,ROW(Database_Prop!$B$2:$B$1498)-ROW(Database_Prop!$B$2)+1),ROWS(Database_Prop!F$2:Database_Prop!#REF!))),\"\")","v":""},{"$f":"IFERROR(INDEX(Database_Prop!$B$2:$B$1498,SMALL(IF(Database_Prop!$A$2:$A$1498=AJ$129,ROW(Database_Prop!$B$2:$B$1498)-ROW(Database_Prop!$B$2)+1),ROWS(Database_Prop!G$2:Database_Prop!#REF!))),\"\")","v":""},{"$f":"IFERROR(INDEX(Database_Prop!$B$2:$B$1498,SMALL(IF(Database_Prop!$A$2:$A$1498=AK$129,ROW(Database_Prop!$B$2:$B$1498)-ROW(Database_Prop!$B$2)+1),ROWS(Database_Prop!H$2:Database_Prop!#REF!))),\"\")","v":""},{"$f":"IFERROR(INDEX(Database_Prop!$B$2:$B$1498,SMALL(IF(Database_Prop!$A$2:$A$1498=AL$129,ROW(Database_Prop!$B$2:$B$1498)-ROW(Database_Prop!$B$2)+1),ROWS(Database_Prop!I$2:Database_Prop!#REF!))),\"\")","v":""},{"$f":"IFERROR(INDEX(Database_Prop!$B$2:$B$1498,SMALL(IF(Database_Prop!$A$2:$A$1498=AM$129,ROW(Database_Prop!$B$2:$B$1498)-ROW(Database_Prop!$B$2)+1),ROWS(Database_Prop!J$2:Database_Prop!#REF!))),\"\")","v":""},{"$f":"IFERROR(INDEX(Database_Prop!$B$2:$B$1498,SMALL(IF(Database_Prop!$A$2:$A$1498=AN$129,ROW(Database_Prop!$B$2:$B$1498)-ROW(Database_Prop!$B$2)+1),ROWS(Database_Prop!K$2:Database_Prop!#REF!))),\"\")","v":""},{"$f":"IFERROR(INDEX(Database_Prop!$B$2:$B$1498,SMALL(IF(Database_Prop!$A$2:$A$1498=AO$129,ROW(Database_Prop!$B$2:$B$1498)-ROW(Database_Prop!$B$2)+1),ROWS(Database_Prop!L$2:Database_Prop!#REF!))),\"\")","v":""},{"$f":"IFERROR(INDEX(Database_Prop!$B$2:$B$1498,SMALL(IF(Database_Prop!$A$2:$A$1498=AP$129,ROW(Database_Prop!$B$2:$B$1498)-ROW(Database_Prop!$B$2)+1),ROWS(Database_Prop!M$2:Database_Prop!#REF!))),\"\")","v":""},{"$f":"IFERROR(INDEX(Database_Prop!$B$2:$B$1498,SMALL(IF(Database_Prop!$A$2:$A$1498=AQ$129,ROW(Database_Prop!$B$2:$B$1498)-ROW(Database_Prop!$B$2)+1),ROWS(Database_Prop!N$2:Database_Prop!#REF!))),\"\")","v":""},{"$f":"IFERROR(INDEX(Database_Prop!$B$2:$B$1498,SMALL(IF(Database_Prop!$A$2:$A$1498=AR$129,ROW(Database_Prop!$B$2:$B$1498)-ROW(Database_Prop!$B$2)+1),ROWS(Database_Prop!O$2:Database_Prop!#REF!))),\"\")","v":""},{"$f":"IFERROR(INDEX(Database_Prop!$B$2:$B$1498,SMALL(IF(Database_Prop!$A$2:$A$1498=AS$129,ROW(Database_Prop!$B$2:$B$1498)-ROW(Database_Prop!$B$2)+1),ROWS(Database_Prop!P$2:Database_Prop!#REF!))),\"\")","v":""},{"$f":"IFERROR(INDEX(Database_Prop!$B$2:$B$1498,SMALL(IF(Database_Prop!$A$2:$A$1498=AT$129,ROW(Database_Prop!$B$2:$B$1498)-ROW(Database_Prop!$B$2)+1),ROWS(Database_Prop!Q$2:Database_Prop!#REF!))),\"\")","v":""},{"$f":"IFERROR(INDEX(Database_Prop!$B$2:$B$1498,SMALL(IF(Database_Prop!$A$2:$A$1498=AU$129,ROW(Database_Prop!$B$2:$B$1498)-ROW(Database_Prop!$B$2)+1),ROWS(Database_Prop!R$2:Database_Prop!#REF!))),\"\")","v":""},{"$f":"IFERROR(INDEX(Database_Prop!$B$2:$B$1498,SMALL(IF(Database_Prop!$A$2:$A$1498=AV$129,ROW(Database_Prop!$B$2:$B$1498)-ROW(Database_Prop!$B$2)+1),ROWS(Database_Prop!S$2:Database_Prop!#REF!))),\"\")","v":""},{"$f":"IFERROR(INDEX(Database_Prop!$B$2:$B$1498,SMALL(IF(Database_Prop!$A$2:$A$1498=AW$129,ROW(Database_Prop!$B$2:$B$1498)-ROW(Database_Prop!$B$2)+1),ROWS(Database_Prop!T$2:Database_Prop!#REF!))),\"\")","v":""},{"$f":"IFERROR(INDEX(Database_Prop!$B$2:$B$1498,SMALL(IF(Database_Prop!$A$2:$A$1498=AX$129,ROW(Database_Prop!$B$2:$B$1498)-ROW(Database_Prop!$B$2)+1),ROWS(Database_Prop!U$2:Database_Prop!#REF!))),\"\")","v":""},{"$f":"IFERROR(INDEX(Database_Prop!$B$2:$B$1498,SMALL(IF(Database_Prop!$A$2:$A$1498=AY$129,ROW(Database_Prop!$B$2:$B$1498)-ROW(Database_Prop!$B$2)+1),ROWS(Database_Prop!V$2:Database_Prop!#REF!))),\"\")","v":""},{"$f":"IFERROR(INDEX(Database_Prop!$B$2:$B$1498,SMALL(IF(Database_Prop!$A$2:$A$1498=AZ$129,ROW(Database_Prop!$B$2:$B$1498)-ROW(Database_Prop!$B$2)+1),ROWS(Database_Prop!W$2:Database_Prop!#REF!))),\"\")","v":""},{"$f":"IFERROR(INDEX(Database_Prop!$B$2:$B$1498,SMALL(IF(Database_Prop!$A$2:$A$1498=BA$129,ROW(Database_Prop!$B$2:$B$1498)-ROW(Database_Prop!$B$2)+1),ROWS(Database_Prop!X$2:Database_Prop!#REF!))),\"\")","v":""},{"$f":"IFERROR(INDEX(Database_Prop!$B$2:$B$1498,SMALL(IF(Database_Prop!$A$2:$A$1498=BB$129,ROW(Database_Prop!$B$2:$B$1498)-ROW(Database_Prop!$B$2)+1),ROWS(Database_Prop!Y$2:Database_Prop!#REF!))),\"\")","v":""},{"$f":"IFERROR(INDEX(Database_Prop!$B$2:$B$1498,SMALL(IF(Database_Prop!$A$2:$A$1498=BC$129,ROW(Database_Prop!$B$2:$B$1498)-ROW(Database_Prop!$B$2)+1),ROWS(Database_Prop!Z$2:Database_Prop!#REF!))),\"\")","v":""},null,"Ethiopia","Africa"]
[null,null,null,null,null,null,null,null,null,null,null,null,null,null,null,null,null,null,null,null,null,null,null,null,null,null,null,null,null,null,70,{"$f":"IFERROR(INDEX(Database_Prop!$B$2:$B$1498,SMALL(IF(Database_Prop!$A$2:$A$1498=AF$129,ROW(Database_Prop!$B$2:$B$1498)-ROW(Database_Prop!$B$2)+1),ROWS(Database_Prop!C$2:'Database_Prop'!C70))),\"\")","v":""},{"$f":"IFERROR(INDEX(Database_Prop!$B$2:$B$1498,SMALL(IF(Database_Prop!$A$2:$A$1498=AG$129,ROW(Database_Prop!$B$2:$B$1498)-ROW(Database_Prop!$B$2)+1),ROWS(Database_Prop!D$2:'Database_Prop'!D70))),\"\")","v":""},{"$f":"IFERROR(INDEX(Database_Prop!$B$2:$B$1498,SMALL(IF(Database_Prop!$A$2:$A$1498=AH$129,ROW(Database_Prop!$B$2:$B$1498)-ROW(Database_Prop!$B$2)+1),ROWS(Database_Prop!E$2:'Database_Prop'!E70))),\"\")","v":""},{"$f":"IFERROR(INDEX(Database_Prop!$B$2:$B$1498,SMALL(IF(Database_Prop!$A$2:$A$1498=AI$129,ROW(Database_Prop!$B$2:$B$1498)-ROW(Database_Prop!$B$2)+1),ROWS(Database_Prop!F$2:'Database_Prop'!F70))),\"\")","v":""},{"$f":"IFERROR(INDEX(Database_Prop!$B$2:$B$1498,SMALL(IF(Database_Prop!$A$2:$A$1498=AJ$129,ROW(Database_Prop!$B$2:$B$1498)-ROW(Database_Prop!$B$2)+1),ROWS(Database_Prop!G$2:'Database_Prop'!G70))),\"\")","v":""},{"$f":"IFERROR(INDEX(Database_Prop!$B$2:$B$1498,SMALL(IF(Database_Prop!$A$2:$A$1498=AK$129,ROW(Database_Prop!$B$2:$B$1498)-ROW(Database_Prop!$B$2)+1),ROWS(Database_Prop!H$2:'Database_Prop'!H70))),\"\")","v":""},{"$f":"IFERROR(INDEX(Database_Prop!$B$2:$B$1498,SMALL(IF(Database_Prop!$A$2:$A$1498=AL$129,ROW(Database_Prop!$B$2:$B$1498)-ROW(Database_Prop!$B$2)+1),ROWS(Database_Prop!I$2:'Database_Prop'!I70))),\"\")","v":""},{"$f":"IFERROR(INDEX(Database_Prop!$B$2:$B$1498,SMALL(IF(Database_Prop!$A$2:$A$1498=AM$129,ROW(Database_Prop!$B$2:$B$1498)-ROW(Database_Prop!$B$2)+1),ROWS(Database_Prop!J$2:'Database_Prop'!J70))),\"\")","v":""},{"$f":"IFERROR(INDEX(Database_Prop!$B$2:$B$1498,SMALL(IF(Database_Prop!$A$2:$A$1498=AN$129,ROW(Database_Prop!$B$2:$B$1498)-ROW(Database_Prop!$B$2)+1),ROWS(Database_Prop!K$2:'Database_Prop'!K70))),\"\")","v":""},{"$f":"IFERROR(INDEX(Database_Prop!$B$2:$B$1498,SMALL(IF(Database_Prop!$A$2:$A$1498=AO$129,ROW(Database_Prop!$B$2:$B$1498)-ROW(Database_Prop!$B$2)+1),ROWS(Database_Prop!L$2:'Database_Prop'!L70))),\"\")","v":""},{"$f":"IFERROR(INDEX(Database_Prop!$B$2:$B$1498,SMALL(IF(Database_Prop!$A$2:$A$1498=AP$129,ROW(Database_Prop!$B$2:$B$1498)-ROW(Database_Prop!$B$2)+1),ROWS(Database_Prop!M$2:'Database_Prop'!M70))),\"\")","v":""},{"$f":"IFERROR(INDEX(Database_Prop!$B$2:$B$1498,SMALL(IF(Database_Prop!$A$2:$A$1498=AQ$129,ROW(Database_Prop!$B$2:$B$1498)-ROW(Database_Prop!$B$2)+1),ROWS(Database_Prop!N$2:'Database_Prop'!N70))),\"\")","v":""},{"$f":"IFERROR(INDEX(Database_Prop!$B$2:$B$1498,SMALL(IF(Database_Prop!$A$2:$A$1498=AR$129,ROW(Database_Prop!$B$2:$B$1498)-ROW(Database_Prop!$B$2)+1),ROWS(Database_Prop!O$2:'Database_Prop'!O70))),\"\")","v":""},{"$f":"IFERROR(INDEX(Database_Prop!$B$2:$B$1498,SMALL(IF(Database_Prop!$A$2:$A$1498=AS$129,ROW(Database_Prop!$B$2:$B$1498)-ROW(Database_Prop!$B$2)+1),ROWS(Database_Prop!P$2:'Database_Prop'!P70))),\"\")","v":""},{"$f":"IFERROR(INDEX(Database_Prop!$B$2:$B$1498,SMALL(IF(Database_Prop!$A$2:$A$1498=AT$129,ROW(Database_Prop!$B$2:$B$1498)-ROW(Database_Prop!$B$2)+1),ROWS(Database_Prop!Q$2:'Database_Prop'!Q70))),\"\")","v":""},{"$f":"IFERROR(INDEX(Database_Prop!$B$2:$B$1498,SMALL(IF(Database_Prop!$A$2:$A$1498=AU$129,ROW(Database_Prop!$B$2:$B$1498)-ROW(Database_Prop!$B$2)+1),ROWS(Database_Prop!R$2:'Database_Prop'!R70))),\"\")","v":""},{"$f":"IFERROR(INDEX(Database_Prop!$B$2:$B$1498,SMALL(IF(Database_Prop!$A$2:$A$1498=AV$129,ROW(Database_Prop!$B$2:$B$1498)-ROW(Database_Prop!$B$2)+1),ROWS(Database_Prop!S$2:'Database_Prop'!S70))),\"\")","v":""},{"$f":"IFERROR(INDEX(Database_Prop!$B$2:$B$1498,SMALL(IF(Database_Prop!$A$2:$A$1498=AW$129,ROW(Database_Prop!$B$2:$B$1498)-ROW(Database_Prop!$B$2)+1),ROWS(Database_Prop!T$2:'Database_Prop'!T70))),\"\")","v":""},{"$f":"IFERROR(INDEX(Database_Prop!$B$2:$B$1498,SMALL(IF(Database_Prop!$A$2:$A$1498=AX$129,ROW(Database_Prop!$B$2:$B$1498)-ROW(Database_Prop!$B$2)+1),ROWS(Database_Prop!U$2:'Database_Prop'!U70))),\"\")","v":""},{"$f":"IFERROR(INDEX(Database_Prop!$B$2:$B$1498,SMALL(IF(Database_Prop!$A$2:$A$1498=AY$129,ROW(Database_Prop!$B$2:$B$1498)-ROW(Database_Prop!$B$2)+1),ROWS(Database_Prop!V$2:'Database_Prop'!V70))),\"\")","v":""},{"$f":"IFERROR(INDEX(Database_Prop!$B$2:$B$1498,SMALL(IF(Database_Prop!$A$2:$A$1498=AZ$129,ROW(Database_Prop!$B$2:$B$1498)-ROW(Database_Prop!$B$2)+1),ROWS(Database_Prop!W$2:'Database_Prop'!W70))),\"\")","v":""},{"$f":"IFERROR(INDEX(Database_Prop!$B$2:$B$1498,SMALL(IF(Database_Prop!$A$2:$A$1498=BA$129,ROW(Database_Prop!$B$2:$B$1498)-ROW(Database_Prop!$B$2)+1),ROWS(Database_Prop!X$2:'Database_Prop'!X70))),\"\")","v":""},{"$f":"IFERROR(INDEX(Database_Prop!$B$2:$B$1498,SMALL(IF(Database_Prop!$A$2:$A$1498=BB$129,ROW(Database_Prop!$B$2:$B$1498)-ROW(Database_Prop!$B$2)+1),ROWS(Database_Prop!Y$2:'Database_Prop'!Y70))),\"\")","v":""},{"$f":"IFERROR(INDEX(Database_Prop!$B$2:$B$1498,SMALL(IF(Database_Prop!$A$2:$A$1498=BC$129,ROW(Database_Prop!$B$2:$B$1498)-ROW(Database_Prop!$B$2)+1),ROWS(Database_Prop!Z$2:'Database_Prop'!Z70))),\"\")","v":""},null,"Faeroe Islands","Western Europe"]
[null,null,null,null,null,null,null,null,null,null,null,null,null,null,null,null,null,null,null,null,null,null,null,null,null,null,null,null,null,null,71,{"$f":"IFERROR(INDEX(Database_Prop!$B$2:$B$1498,SMALL(IF(Database_Prop!$A$2:$A$1498=AF$129,ROW(Database_Prop!$B$2:$B$1498)-ROW(Database_Prop!$B$2)+1),ROWS(Database_Prop!C$2:'Database_Prop'!C71))),\"\")","v":""},{"$f":"IFERROR(INDEX(Database_Prop!$B$2:$B$1498,SMALL(IF(Database_Prop!$A$2:$A$1498=AG$129,ROW(Database_Prop!$B$2:$B$1498)-ROW(Database_Prop!$B$2)+1),ROWS(Database_Prop!D$2:'Database_Prop'!D71))),\"\")","v":""},{"$f":"IFERROR(INDEX(Database_Prop!$B$2:$B$1498,SMALL(IF(Database_Prop!$A$2:$A$1498=AH$129,ROW(Database_Prop!$B$2:$B$1498)-ROW(Database_Prop!$B$2)+1),ROWS(Database_Prop!E$2:'Database_Prop'!E71))),\"\")","v":""},{"$f":"IFERROR(INDEX(Database_Prop!$B$2:$B$1498,SMALL(IF(Database_Prop!$A$2:$A$1498=AI$129,ROW(Database_Prop!$B$2:$B$1498)-ROW(Database_Prop!$B$2)+1),ROWS(Database_Prop!F$2:'Database_Prop'!F71))),\"\")","v":""},{"$f":"IFERROR(INDEX(Database_Prop!$B$2:$B$1498,SMALL(IF(Database_Prop!$A$2:$A$1498=AJ$129,ROW(Database_Prop!$B$2:$B$1498)-ROW(Database_Prop!$B$2)+1),ROWS(Database_Prop!G$2:'Database_Prop'!G71))),\"\")","v":""},{"$f":"IFERROR(INDEX(Database_Prop!$B$2:$B$1498,SMALL(IF(Database_Prop!$A$2:$A$1498=AK$129,ROW(Database_Prop!$B$2:$B$1498)-ROW(Database_Prop!$B$2)+1),ROWS(Database_Prop!H$2:'Database_Prop'!H71))),\"\")","v":""},{"$f":"IFERROR(INDEX(Database_Prop!$B$2:$B$1498,SMALL(IF(Database_Prop!$A$2:$A$1498=AL$129,ROW(Database_Prop!$B$2:$B$1498)-ROW(Database_Prop!$B$2)+1),ROWS(Database_Prop!I$2:'Database_Prop'!I71))),\"\")","v":""},{"$f":"IFERROR(INDEX(Database_Prop!$B$2:$B$1498,SMALL(IF(Database_Prop!$A$2:$A$1498=AM$129,ROW(Database_Prop!$B$2:$B$1498)-ROW(Database_Prop!$B$2)+1),ROWS(Database_Prop!J$2:'Database_Prop'!J71))),\"\")","v":""},{"$f":"IFERROR(INDEX(Database_Prop!$B$2:$B$1498,SMALL(IF(Database_Prop!$A$2:$A$1498=AN$129,ROW(Database_Prop!$B$2:$B$1498)-ROW(Database_Prop!$B$2)+1),ROWS(Database_Prop!K$2:'Database_Prop'!K71))),\"\")","v":""},{"$f":"IFERROR(INDEX(Database_Prop!$B$2:$B$1498,SMALL(IF(Database_Prop!$A$2:$A$1498=AO$129,ROW(Database_Prop!$B$2:$B$1498)-ROW(Database_Prop!$B$2)+1),ROWS(Database_Prop!L$2:'Database_Prop'!L71))),\"\")","v":""},{"$f":"IFERROR(INDEX(Database_Prop!$B$2:$B$1498,SMALL(IF(Database_Prop!$A$2:$A$1498=AP$129,ROW(Database_Prop!$B$2:$B$1498)-ROW(Database_Prop!$B$2)+1),ROWS(Database_Prop!M$2:'Database_Prop'!M71))),\"\")","v":""},{"$f":"IFERROR(INDEX(Database_Prop!$B$2:$B$1498,SMALL(IF(Database_Prop!$A$2:$A$1498=AQ$129,ROW(Database_Prop!$B$2:$B$1498)-ROW(Database_Prop!$B$2)+1),ROWS(Database_Prop!N$2:'Database_Prop'!N71))),\"\")","v":""},{"$f":"IFERROR(INDEX(Database_Prop!$B$2:$B$1498,SMALL(IF(Database_Prop!$A$2:$A$1498=AR$129,ROW(Database_Prop!$B$2:$B$1498)-ROW(Database_Prop!$B$2)+1),ROWS(Database_Prop!O$2:'Database_Prop'!O71))),\"\")","v":""},{"$f":"IFERROR(INDEX(Database_Prop!$B$2:$B$1498,SMALL(IF(Database_Prop!$A$2:$A$1498=AS$129,ROW(Database_Prop!$B$2:$B$1498)-ROW(Database_Prop!$B$2)+1),ROWS(Database_Prop!P$2:'Database_Prop'!P71))),\"\")","v":""},{"$f":"IFERROR(INDEX(Database_Prop!$B$2:$B$1498,SMALL(IF(Database_Prop!$A$2:$A$1498=AT$129,ROW(Database_Prop!$B$2:$B$1498)-ROW(Database_Prop!$B$2)+1),ROWS(Database_Prop!Q$2:'Database_Prop'!Q71))),\"\")","v":""},{"$f":"IFERROR(INDEX(Database_Prop!$B$2:$B$1498,SMALL(IF(Database_Prop!$A$2:$A$1498=AU$129,ROW(Database_Prop!$B$2:$B$1498)-ROW(Database_Prop!$B$2)+1),ROWS(Database_Prop!R$2:'Database_Prop'!R71))),\"\")","v":""},{"$f":"IFERROR(INDEX(Database_Prop!$B$2:$B$1498,SMALL(IF(Database_Prop!$A$2:$A$1498=AV$129,ROW(Database_Prop!$B$2:$B$1498)-ROW(Database_Prop!$B$2)+1),ROWS(Database_Prop!S$2:'Database_Prop'!S71))),\"\")","v":""},{"$f":"IFERROR(INDEX(Database_Prop!$B$2:$B$1498,SMALL(IF(Database_Prop!$A$2:$A$1498=AW$129,ROW(Database_Prop!$B$2:$B$1498)-ROW(Database_Prop!$B$2)+1),ROWS(Database_Prop!T$2:'Database_Prop'!T71))),\"\")","v":""},{"$f":"IFERROR(INDEX(Database_Prop!$B$2:$B$1498,SMALL(IF(Database_Prop!$A$2:$A$1498=AX$129,ROW(Database_Prop!$B$2:$B$1498)-ROW(Database_Prop!$B$2)+1),ROWS(Database_Prop!U$2:'Database_Prop'!U71))),\"\")","v":""},{"$f":"IFERROR(INDEX(Database_Prop!$B$2:$B$1498,SMALL(IF(Database_Prop!$A$2:$A$1498=AY$129,ROW(Database_Prop!$B$2:$B$1498)-ROW(Database_Prop!$B$2)+1),ROWS(Database_Prop!V$2:'Database_Prop'!V71))),\"\")","v":""},{"$f":"IFERROR(INDEX(Database_Prop!$B$2:$B$1498,SMALL(IF(Database_Prop!$A$2:$A$1498=AZ$129,ROW(Database_Prop!$B$2:$B$1498)-ROW(Database_Prop!$B$2)+1),ROWS(Database_Prop!W$2:'Database_Prop'!W71))),\"\")","v":""},{"$f":"IFERROR(INDEX(Database_Prop!$B$2:$B$1498,SMALL(IF(Database_Prop!$A$2:$A$1498=BA$129,ROW(Database_Prop!$B$2:$B$1498)-ROW(Database_Prop!$B$2)+1),ROWS(Database_Prop!X$2:'Database_Prop'!X71))),\"\")","v":""},{"$f":"IFERROR(INDEX(Database_Prop!$B$2:$B$1498,SMALL(IF(Database_Prop!$A$2:$A$1498=BB$129,ROW(Database_Prop!$B$2:$B$1498)-ROW(Database_Prop!$B$2)+1),ROWS(Database_Prop!Y$2:'Database_Prop'!Y71))),\"\")","v":""},{"$f":"IFERROR(INDEX(Database_Prop!$B$2:$B$1498,SMALL(IF(Database_Prop!$A$2:$A$1498=BC$129,ROW(Database_Prop!$B$2:$B$1498)-ROW(Database_Prop!$B$2)+1),ROWS(Database_Prop!Z$2:'Database_Prop'!Z71))),\"\")","v":""},null,"Falkland Islands (Malvinas)","Latin America"]
[null,null,null,null,null,null,null,null,null,null,null,null,null,null,null,null,null,null,null,null,null,null,null,null,null,null,null,null,null,null,72,{"$f":"IFERROR(INDEX(Database_Prop!$B$2:$B$1498,SMALL(IF(Database_Prop!$A$2:$A$1498=AF$129,ROW(Database_Prop!$B$2:$B$1498)-ROW(Database_Prop!$B$2)+1),ROWS(Database_Prop!C$2:'Database_Prop'!C72))),\"\")","v":""},{"$f":"IFERROR(INDEX(Database_Prop!$B$2:$B$1498,SMALL(IF(Database_Prop!$A$2:$A$1498=AG$129,ROW(Database_Prop!$B$2:$B$1498)-ROW(Database_Prop!$B$2)+1),ROWS(Database_Prop!D$2:'Database_Prop'!D72))),\"\")","v":""},{"$f":"IFERROR(INDEX(Database_Prop!$B$2:$B$1498,SMALL(IF(Database_Prop!$A$2:$A$1498=AH$129,ROW(Database_Prop!$B$2:$B$1498)-ROW(Database_Prop!$B$2)+1),ROWS(Database_Prop!E$2:'Database_Prop'!E72))),\"\")","v":""},{"$f":"IFERROR(INDEX(Database_Prop!$B$2:$B$1498,SMALL(IF(Database_Prop!$A$2:$A$1498=AI$129,ROW(Database_Prop!$B$2:$B$1498)-ROW(Database_Prop!$B$2)+1),ROWS(Database_Prop!F$2:'Database_Prop'!F72))),\"\")","v":""},{"$f":"IFERROR(INDEX(Database_Prop!$B$2:$B$1498,SMALL(IF(Database_Prop!$A$2:$A$1498=AJ$129,ROW(Database_Prop!$B$2:$B$1498)-ROW(Database_Prop!$B$2)+1),ROWS(Database_Prop!G$2:'Database_Prop'!G72))),\"\")","v":""},{"$f":"IFERROR(INDEX(Database_Prop!$B$2:$B$1498,SMALL(IF(Database_Prop!$A$2:$A$1498=AK$129,ROW(Database_Prop!$B$2:$B$1498)-ROW(Database_Prop!$B$2)+1),ROWS(Database_Prop!H$2:'Database_Prop'!H72))),\"\")","v":""},{"$f":"IFERROR(INDEX(Database_Prop!$B$2:$B$1498,SMALL(IF(Database_Prop!$A$2:$A$1498=AL$129,ROW(Database_Prop!$B$2:$B$1498)-ROW(Database_Prop!$B$2)+1),ROWS(Database_Prop!I$2:'Database_Prop'!I72))),\"\")","v":""},{"$f":"IFERROR(INDEX(Database_Prop!$B$2:$B$1498,SMALL(IF(Database_Prop!$A$2:$A$1498=AM$129,ROW(Database_Prop!$B$2:$B$1498)-ROW(Database_Prop!$B$2)+1),ROWS(Database_Prop!J$2:'Database_Prop'!J72))),\"\")","v":""},{"$f":"IFERROR(INDEX(Database_Prop!$B$2:$B$1498,SMALL(IF(Database_Prop!$A$2:$A$1498=AN$129,ROW(Database_Prop!$B$2:$B$1498)-ROW(Database_Prop!$B$2)+1),ROWS(Database_Prop!K$2:'Database_Prop'!K72))),\"\")","v":""},{"$f":"IFERROR(INDEX(Database_Prop!$B$2:$B$1498,SMALL(IF(Database_Prop!$A$2:$A$1498=AO$129,ROW(Database_Prop!$B$2:$B$1498)-ROW(Database_Prop!$B$2)+1),ROWS(Database_Prop!L$2:'Database_Prop'!L72))),\"\")","v":""},{"$f":"IFERROR(INDEX(Database_Prop!$B$2:$B$1498,SMALL(IF(Database_Prop!$A$2:$A$1498=AP$129,ROW(Database_Prop!$B$2:$B$1498)-ROW(Database_Prop!$B$2)+1),ROWS(Database_Prop!M$2:'Database_Prop'!M72))),\"\")","v":""},{"$f":"IFERROR(INDEX(Database_Prop!$B$2:$B$1498,SMALL(IF(Database_Prop!$A$2:$A$1498=AQ$129,ROW(Database_Prop!$B$2:$B$1498)-ROW(Database_Prop!$B$2)+1),ROWS(Database_Prop!N$2:'Database_Prop'!N72))),\"\")","v":""},{"$f":"IFERROR(INDEX(Database_Prop!$B$2:$B$1498,SMALL(IF(Database_Prop!$A$2:$A$1498=AR$129,ROW(Database_Prop!$B$2:$B$1498)-ROW(Database_Prop!$B$2)+1),ROWS(Database_Prop!O$2:'Database_Prop'!O72))),\"\")","v":""},{"$f":"IFERROR(INDEX(Database_Prop!$B$2:$B$1498,SMALL(IF(Database_Prop!$A$2:$A$1498=AS$129,ROW(Database_Prop!$B$2:$B$1498)-ROW(Database_Prop!$B$2)+1),ROWS(Database_Prop!P$2:'Database_Prop'!P72))),\"\")","v":""},{"$f":"IFERROR(INDEX(Database_Prop!$B$2:$B$1498,SMALL(IF(Database_Prop!$A$2:$A$1498=AT$129,ROW(Database_Prop!$B$2:$B$1498)-ROW(Database_Prop!$B$2)+1),ROWS(Database_Prop!Q$2:'Database_Prop'!Q72))),\"\")","v":""},{"$f":"IFERROR(INDEX(Database_Prop!$B$2:$B$1498,SMALL(IF(Database_Prop!$A$2:$A$1498=AU$129,ROW(Database_Prop!$B$2:$B$1498)-ROW(Database_Prop!$B$2)+1),ROWS(Database_Prop!R$2:'Database_Prop'!R72))),\"\")","v":""},{"$f":"IFERROR(INDEX(Database_Prop!$B$2:$B$1498,SMALL(IF(Database_Prop!$A$2:$A$1498=AV$129,ROW(Database_Prop!$B$2:$B$1498)-ROW(Database_Prop!$B$2)+1),ROWS(Database_Prop!S$2:'Database_Prop'!S72))),\"\")","v":""},{"$f":"IFERROR(INDEX(Database_Prop!$B$2:$B$1498,SMALL(IF(Database_Prop!$A$2:$A$1498=AW$129,ROW(Database_Prop!$B$2:$B$1498)-ROW(Database_Prop!$B$2)+1),ROWS(Database_Prop!T$2:'Database_Prop'!T72))),\"\")","v":""},{"$f":"IFERROR(INDEX(Database_Prop!$B$2:$B$1498,SMALL(IF(Database_Prop!$A$2:$A$1498=AX$129,ROW(Database_Prop!$B$2:$B$1498)-ROW(Database_Prop!$B$2)+1),ROWS(Database_Prop!U$2:'Database_Prop'!U72))),\"\")","v":""},{"$f":"IFERROR(INDEX(Database_Prop!$B$2:$B$1498,SMALL(IF(Database_Prop!$A$2:$A$1498=AY$129,ROW(Database_Prop!$B$2:$B$1498)-ROW(Database_Prop!$B$2)+1),ROWS(Database_Prop!V$2:'Database_Prop'!V72))),\"\")","v":""},{"$f":"IFERROR(INDEX(Database_Prop!$B$2:$B$1498,SMALL(IF(Database_Prop!$A$2:$A$1498=AZ$129,ROW(Database_Prop!$B$2:$B$1498)-ROW(Database_Prop!$B$2)+1),ROWS(Database_Prop!W$2:'Database_Prop'!W72))),\"\")","v":""},{"$f":"IFERROR(INDEX(Database_Prop!$B$2:$B$1498,SMALL(IF(Database_Prop!$A$2:$A$1498=BA$129,ROW(Database_Prop!$B$2:$B$1498)-ROW(Database_Prop!$B$2)+1),ROWS(Database_Prop!X$2:'Database_Prop'!X72))),\"\")","v":""},{"$f":"IFERROR(INDEX(Database_Prop!$B$2:$B$1498,SMALL(IF(Database_Prop!$A$2:$A$1498=BB$129,ROW(Database_Prop!$B$2:$B$1498)-ROW(Database_Prop!$B$2)+1),ROWS(Database_Prop!Y$2:'Database_Prop'!Y72))),\"\")","v":""},{"$f":"IFERROR(INDEX(Database_Prop!$B$2:$B$1498,SMALL(IF(Database_Prop!$A$2:$A$1498=BC$129,ROW(Database_Prop!$B$2:$B$1498)-ROW(Database_Prop!$B$2)+1),ROWS(Database_Prop!Z$2:'Database_Prop'!Z72))),\"\")","v":""},null,"Fiji","Oceania"]
[null,null,null,null,null,null,null,null,null,null,null,null,null,null,null,null,null,null,null,null,null,null,null,null,null,null,null,null,null,null,73,{"$f":"IFERROR(INDEX(Database_Prop!$B$2:$B$1498,SMALL(IF(Database_Prop!$A$2:$A$1498=AF$129,ROW(Database_Prop!$B$2:$B$1498)-ROW(Database_Prop!$B$2)+1),ROWS(Database_Prop!C$2:'Database_Prop'!C73))),\"\")","v":""},{"$f":"IFERROR(INDEX(Database_Prop!$B$2:$B$1498,SMALL(IF(Database_Prop!$A$2:$A$1498=AG$129,ROW(Database_Prop!$B$2:$B$1498)-ROW(Database_Prop!$B$2)+1),ROWS(Database_Prop!D$2:'Database_Prop'!D73))),\"\")","v":""},{"$f":"IFERROR(INDEX(Database_Prop!$B$2:$B$1498,SMALL(IF(Database_Prop!$A$2:$A$1498=AH$129,ROW(Database_Prop!$B$2:$B$1498)-ROW(Database_Prop!$B$2)+1),ROWS(Database_Prop!E$2:'Database_Prop'!E73))),\"\")","v":""},{"$f":"IFERROR(INDEX(Database_Prop!$B$2:$B$1498,SMALL(IF(Database_Prop!$A$2:$A$1498=AI$129,ROW(Database_Prop!$B$2:$B$1498)-ROW(Database_Prop!$B$2)+1),ROWS(Database_Prop!F$2:'Database_Prop'!F73))),\"\")","v":""},{"$f":"IFERROR(INDEX(Database_Prop!$B$2:$B$1498,SMALL(IF(Database_Prop!$A$2:$A$1498=AJ$129,ROW(Database_Prop!$B$2:$B$1498)-ROW(Database_Prop!$B$2)+1),ROWS(Database_Prop!G$2:'Database_Prop'!G73))),\"\")","v":""},{"$f":"IFERROR(INDEX(Database_Prop!$B$2:$B$1498,SMALL(IF(Database_Prop!$A$2:$A$1498=AK$129,ROW(Database_Prop!$B$2:$B$1498)-ROW(Database_Prop!$B$2)+1),ROWS(Database_Prop!H$2:'Database_Prop'!H73))),\"\")","v":""},{"$f":"IFERROR(INDEX(Database_Prop!$B$2:$B$1498,SMALL(IF(Database_Prop!$A$2:$A$1498=AL$129,ROW(Database_Prop!$B$2:$B$1498)-ROW(Database_Prop!$B$2)+1),ROWS(Database_Prop!I$2:'Database_Prop'!I73))),\"\")","v":""},{"$f":"IFERROR(INDEX(Database_Prop!$B$2:$B$1498,SMALL(IF(Database_Prop!$A$2:$A$1498=AM$129,ROW(Database_Prop!$B$2:$B$1498)-ROW(Database_Prop!$B$2)+1),ROWS(Database_Prop!J$2:'Database_Prop'!J73))),\"\")","v":""},{"$f":"IFERROR(INDEX(Database_Prop!$B$2:$B$1498,SMALL(IF(Database_Prop!$A$2:$A$1498=AN$129,ROW(Database_Prop!$B$2:$B$1498)-ROW(Database_Prop!$B$2)+1),ROWS(Database_Prop!K$2:'Database_Prop'!K73))),\"\")","v":""},{"$f":"IFERROR(INDEX(Database_Prop!$B$2:$B$1498,SMALL(IF(Database_Prop!$A$2:$A$1498=AO$129,ROW(Database_Prop!$B$2:$B$1498)-ROW(Database_Prop!$B$2)+1),ROWS(Database_Prop!L$2:'Database_Prop'!L73))),\"\")","v":""},{"$f":"IFERROR(INDEX(Database_Prop!$B$2:$B$1498,SMALL(IF(Database_Prop!$A$2:$A$1498=AP$129,ROW(Database_Prop!$B$2:$B$1498)-ROW(Database_Prop!$B$2)+1),ROWS(Database_Prop!M$2:'Database_Prop'!M73))),\"\")","v":""},{"$f":"IFERROR(INDEX(Database_Prop!$B$2:$B$1498,SMALL(IF(Database_Prop!$A$2:$A$1498=AQ$129,ROW(Database_Prop!$B$2:$B$1498)-ROW(Database_Prop!$B$2)+1),ROWS(Database_Prop!N$2:'Database_Prop'!N73))),\"\")","v":""},{"$f":"IFERROR(INDEX(Database_Prop!$B$2:$B$1498,SMALL(IF(Database_Prop!$A$2:$A$1498=AR$129,ROW(Database_Prop!$B$2:$B$1498)-ROW(Database_Prop!$B$2)+1),ROWS(Database_Prop!O$2:'Database_Prop'!O73))),\"\")","v":""},{"$f":"IFERROR(INDEX(Database_Prop!$B$2:$B$1498,SMALL(IF(Database_Prop!$A$2:$A$1498=AS$129,ROW(Database_Prop!$B$2:$B$1498)-ROW(Database_Prop!$B$2)+1),ROWS(Database_Prop!P$2:'Database_Prop'!P73))),\"\")","v":""},{"$f":"IFERROR(INDEX(Database_Prop!$B$2:$B$1498,SMALL(IF(Database_Prop!$A$2:$A$1498=AT$129,ROW(Database_Prop!$B$2:$B$1498)-ROW(Database_Prop!$B$2)+1),ROWS(Database_Prop!Q$2:'Database_Prop'!Q73))),\"\")","v":""},{"$f":"IFERROR(INDEX(Database_Prop!$B$2:$B$1498,SMALL(IF(Database_Prop!$A$2:$A$1498=AU$129,ROW(Database_Prop!$B$2:$B$1498)-ROW(Database_Prop!$B$2)+1),ROWS(Database_Prop!R$2:'Database_Prop'!R73))),\"\")","v":""},{"$f":"IFERROR(INDEX(Database_Prop!$B$2:$B$1498,SMALL(IF(Database_Prop!$A$2:$A$1498=AV$129,ROW(Database_Prop!$B$2:$B$1498)-ROW(Database_Prop!$B$2)+1),ROWS(Database_Prop!S$2:'Database_Prop'!S73))),\"\")","v":""},{"$f":"IFERROR(INDEX(Database_Prop!$B$2:$B$1498,SMALL(IF(Database_Prop!$A$2:$A$1498=AW$129,ROW(Database_Prop!$B$2:$B$1498)-ROW(Database_Prop!$B$2)+1),ROWS(Database_Prop!T$2:'Database_Prop'!T73))),\"\")","v":""},{"$f":"IFERROR(INDEX(Database_Prop!$B$2:$B$1498,SMALL(IF(Database_Prop!$A$2:$A$1498=AX$129,ROW(Database_Prop!$B$2:$B$1498)-ROW(Database_Prop!$B$2)+1),ROWS(Database_Prop!U$2:'Database_Prop'!U73))),\"\")","v":""},{"$f":"IFERROR(INDEX(Database_Prop!$B$2:$B$1498,SMALL(IF(Database_Prop!$A$2:$A$1498=AY$129,ROW(Database_Prop!$B$2:$B$1498)-ROW(Database_Prop!$B$2)+1),ROWS(Database_Prop!V$2:'Database_Prop'!V73))),\"\")","v":""},{"$f":"IFERROR(INDEX(Database_Prop!$B$2:$B$1498,SMALL(IF(Database_Prop!$A$2:$A$1498=AZ$129,ROW(Database_Prop!$B$2:$B$1498)-ROW(Database_Prop!$B$2)+1),ROWS(Database_Prop!W$2:'Database_Prop'!W73))),\"\")","v":""},{"$f":"IFERROR(INDEX(Database_Prop!$B$2:$B$1498,SMALL(IF(Database_Prop!$A$2:$A$1498=BA$129,ROW(Database_Prop!$B$2:$B$1498)-ROW(Database_Prop!$B$2)+1),ROWS(Database_Prop!X$2:'Database_Prop'!X73))),\"\")","v":""},{"$f":"IFERROR(INDEX(Database_Prop!$B$2:$B$1498,SMALL(IF(Database_Prop!$A$2:$A$1498=BB$129,ROW(Database_Prop!$B$2:$B$1498)-ROW(Database_Prop!$B$2)+1),ROWS(Database_Prop!Y$2:'Database_Prop'!Y73))),\"\")","v":""},{"$f":"IFERROR(INDEX(Database_Prop!$B$2:$B$1498,SMALL(IF(Database_Prop!$A$2:$A$1498=BC$129,ROW(Database_Prop!$B$2:$B$1498)-ROW(Database_Prop!$B$2)+1),ROWS(Database_Prop!Z$2:'Database_Prop'!Z73))),\"\")","v":""},null,"Finland","Western Europe"]
[null,null,null,null,null,null,null,null,null,null,null,null,null,null,null,null,null,null,null,null,null,null,null,null,null,null,null,null,null,null,74,{"$f":"IFERROR(INDEX(Database_Prop!$B$2:$B$1498,SMALL(IF(Database_Prop!$A$2:$A$1498=AF$129,ROW(Database_Prop!$B$2:$B$1498)-ROW(Database_Prop!$B$2)+1),ROWS(Database_Prop!C$2:'Database_Prop'!C74))),\"\")","v":""},{"$f":"IFERROR(INDEX(Database_Prop!$B$2:$B$1498,SMALL(IF(Database_Prop!$A$2:$A$1498=AG$129,ROW(Database_Prop!$B$2:$B$1498)-ROW(Database_Prop!$B$2)+1),ROWS(Database_Prop!D$2:'Database_Prop'!D74))),\"\")","v":""},{"$f":"IFERROR(INDEX(Database_Prop!$B$2:$B$1498,SMALL(IF(Database_Prop!$A$2:$A$1498=AH$129,ROW(Database_Prop!$B$2:$B$1498)-ROW(Database_Prop!$B$2)+1),ROWS(Database_Prop!E$2:'Database_Prop'!E74))),\"\")","v":""},{"$f":"IFERROR(INDEX(Database_Prop!$B$2:$B$1498,SMALL(IF(Database_Prop!$A$2:$A$1498=AI$129,ROW(Database_Prop!$B$2:$B$1498)-ROW(Database_Prop!$B$2)+1),ROWS(Database_Prop!F$2:'Database_Prop'!F74))),\"\")","v":""},{"$f":"IFERROR(INDEX(Database_Prop!$B$2:$B$1498,SMALL(IF(Database_Prop!$A$2:$A$1498=AJ$129,ROW(Database_Prop!$B$2:$B$1498)-ROW(Database_Prop!$B$2)+1),ROWS(Database_Prop!G$2:'Database_Prop'!G74))),\"\")","v":""},{"$f":"IFERROR(INDEX(Database_Prop!$B$2:$B$1498,SMALL(IF(Database_Prop!$A$2:$A$1498=AK$129,ROW(Database_Prop!$B$2:$B$1498)-ROW(Database_Prop!$B$2)+1),ROWS(Database_Prop!H$2:'Database_Prop'!H74))),\"\")","v":""},{"$f":"IFERROR(INDEX(Database_Prop!$B$2:$B$1498,SMALL(IF(Database_Prop!$A$2:$A$1498=AL$129,ROW(Database_Prop!$B$2:$B$1498)-ROW(Database_Prop!$B$2)+1),ROWS(Database_Prop!I$2:'Database_Prop'!I74))),\"\")","v":""},{"$f":"IFERROR(INDEX(Database_Prop!$B$2:$B$1498,SMALL(IF(Database_Prop!$A$2:$A$1498=AM$129,ROW(Database_Prop!$B$2:$B$1498)-ROW(Database_Prop!$B$2)+1),ROWS(Database_Prop!J$2:'Database_Prop'!J74))),\"\")","v":""},{"$f":"IFERROR(INDEX(Database_Prop!$B$2:$B$1498,SMALL(IF(Database_Prop!$A$2:$A$1498=AN$129,ROW(Database_Prop!$B$2:$B$1498)-ROW(Database_Prop!$B$2)+1),ROWS(Database_Prop!K$2:'Database_Prop'!K74))),\"\")","v":""},{"$f":"IFERROR(INDEX(Database_Prop!$B$2:$B$1498,SMALL(IF(Database_Prop!$A$2:$A$1498=AO$129,ROW(Database_Prop!$B$2:$B$1498)-ROW(Database_Prop!$B$2)+1),ROWS(Database_Prop!L$2:'Database_Prop'!L74))),\"\")","v":""},{"$f":"IFERROR(INDEX(Database_Prop!$B$2:$B$1498,SMALL(IF(Database_Prop!$A$2:$A$1498=AP$129,ROW(Database_Prop!$B$2:$B$1498)-ROW(Database_Prop!$B$2)+1),ROWS(Database_Prop!M$2:'Database_Prop'!M74))),\"\")","v":""},{"$f":"IFERROR(INDEX(Database_Prop!$B$2:$B$1498,SMALL(IF(Database_Prop!$A$2:$A$1498=AQ$129,ROW(Database_Prop!$B$2:$B$1498)-ROW(Database_Prop!$B$2)+1),ROWS(Database_Prop!N$2:'Database_Prop'!N74))),\"\")","v":""},{"$f":"IFERROR(INDEX(Database_Prop!$B$2:$B$1498,SMALL(IF(Database_Prop!$A$2:$A$1498=AR$129,ROW(Database_Prop!$B$2:$B$1498)-ROW(Database_Prop!$B$2)+1),ROWS(Database_Prop!O$2:'Database_Prop'!O74))),\"\")","v":""},{"$f":"IFERROR(INDEX(Database_Prop!$B$2:$B$1498,SMALL(IF(Database_Prop!$A$2:$A$1498=AS$129,ROW(Database_Prop!$B$2:$B$1498)-ROW(Database_Prop!$B$2)+1),ROWS(Database_Prop!P$2:'Database_Prop'!P74))),\"\")","v":""},{"$f":"IFERROR(INDEX(Database_Prop!$B$2:$B$1498,SMALL(IF(Database_Prop!$A$2:$A$1498=AT$129,ROW(Database_Prop!$B$2:$B$1498)-ROW(Database_Prop!$B$2)+1),ROWS(Database_Prop!Q$2:'Database_Prop'!Q74))),\"\")","v":""},{"$f":"IFERROR(INDEX(Database_Prop!$B$2:$B$1498,SMALL(IF(Database_Prop!$A$2:$A$1498=AU$129,ROW(Database_Prop!$B$2:$B$1498)-ROW(Database_Prop!$B$2)+1),ROWS(Database_Prop!R$2:'Database_Prop'!R74))),\"\")","v":""},{"$f":"IFERROR(INDEX(Database_Prop!$B$2:$B$1498,SMALL(IF(Database_Prop!$A$2:$A$1498=AV$129,ROW(Database_Prop!$B$2:$B$1498)-ROW(Database_Prop!$B$2)+1),ROWS(Database_Prop!S$2:'Database_Prop'!S74))),\"\")","v":""},{"$f":"IFERROR(INDEX(Database_Prop!$B$2:$B$1498,SMALL(IF(Database_Prop!$A$2:$A$1498=AW$129,ROW(Database_Prop!$B$2:$B$1498)-ROW(Database_Prop!$B$2)+1),ROWS(Database_Prop!T$2:'Database_Prop'!T74))),\"\")","v":""},{"$f":"IFERROR(INDEX(Database_Prop!$B$2:$B$1498,SMALL(IF(Database_Prop!$A$2:$A$1498=AX$129,ROW(Database_Prop!$B$2:$B$1498)-ROW(Database_Prop!$B$2)+1),ROWS(Database_Prop!U$2:'Database_Prop'!U74))),\"\")","v":""},{"$f":"IFERROR(INDEX(Database_Prop!$B$2:$B$1498,SMALL(IF(Database_Prop!$A$2:$A$1498=AY$129,ROW(Database_Prop!$B$2:$B$1498)-ROW(Database_Prop!$B$2)+1),ROWS(Database_Prop!V$2:'Database_Prop'!V74))),\"\")","v":""},{"$f":"IFERROR(INDEX(Database_Prop!$B$2:$B$1498,SMALL(IF(Database_Prop!$A$2:$A$1498=AZ$129,ROW(Database_Prop!$B$2:$B$1498)-ROW(Database_Prop!$B$2)+1),ROWS(Database_Prop!W$2:'Database_Prop'!W74))),\"\")","v":""},{"$f":"IFERROR(INDEX(Database_Prop!$B$2:$B$1498,SMALL(IF(Database_Prop!$A$2:$A$1498=BA$129,ROW(Database_Prop!$B$2:$B$1498)-ROW(Database_Prop!$B$2)+1),ROWS(Database_Prop!X$2:'Database_Prop'!X74))),\"\")","v":""},{"$f":"IFERROR(INDEX(Database_Prop!$B$2:$B$1498,SMALL(IF(Database_Prop!$A$2:$A$1498=BB$129,ROW(Database_Prop!$B$2:$B$1498)-ROW(Database_Prop!$B$2)+1),ROWS(Database_Prop!Y$2:'Database_Prop'!Y74))),\"\")","v":""},{"$f":"IFERROR(INDEX(Database_Prop!$B$2:$B$1498,SMALL(IF(Database_Prop!$A$2:$A$1498=BC$129,ROW(Database_Prop!$B$2:$B$1498)-ROW(Database_Prop!$B$2)+1),ROWS(Database_Prop!Z$2:'Database_Prop'!Z74))),\"\")","v":""},null,"France","Western Europe"]
[null,null,null,null,null,null,null,null,null,null,null,null,null,null,null,null,null,null,null,null,null,null,null,null,null,null,null,null,null,null,75,{"$f":"IFERROR(INDEX(Database_Prop!$B$2:$B$1498,SMALL(IF(Database_Prop!$A$2:$A$1498=AF$129,ROW(Database_Prop!$B$2:$B$1498)-ROW(Database_Prop!$B$2)+1),ROWS(Database_Prop!C$2:'Database_Prop'!C75))),\"\")","v":""},{"$f":"IFERROR(INDEX(Database_Prop!$B$2:$B$1498,SMALL(IF(Database_Prop!$A$2:$A$1498=AG$129,ROW(Database_Prop!$B$2:$B$1498)-ROW(Database_Prop!$B$2)+1),ROWS(Database_Prop!D$2:'Database_Prop'!D75))),\"\")","v":""},{"$f":"IFERROR(INDEX(Database_Prop!$B$2:$B$1498,SMALL(IF(Database_Prop!$A$2:$A$1498=AH$129,ROW(Database_Prop!$B$2:$B$1498)-ROW(Database_Prop!$B$2)+1),ROWS(Database_Prop!E$2:'Database_Prop'!E75))),\"\")","v":""},{"$f":"IFERROR(INDEX(Database_Prop!$B$2:$B$1498,SMALL(IF(Database_Prop!$A$2:$A$1498=AI$129,ROW(Database_Prop!$B$2:$B$1498)-ROW(Database_Prop!$B$2)+1),ROWS(Database_Prop!F$2:'Database_Prop'!F75))),\"\")","v":""},{"$f":"IFERROR(INDEX(Database_Prop!$B$2:$B$1498,SMALL(IF(Database_Prop!$A$2:$A$1498=AJ$129,ROW(Database_Prop!$B$2:$B$1498)-ROW(Database_Prop!$B$2)+1),ROWS(Database_Prop!G$2:'Database_Prop'!G75))),\"\")","v":""},{"$f":"IFERROR(INDEX(Database_Prop!$B$2:$B$1498,SMALL(IF(Database_Prop!$A$2:$A$1498=AK$129,ROW(Database_Prop!$B$2:$B$1498)-ROW(Database_Prop!$B$2)+1),ROWS(Database_Prop!H$2:'Database_Prop'!H75))),\"\")","v":""},{"$f":"IFERROR(INDEX(Database_Prop!$B$2:$B$1498,SMALL(IF(Database_Prop!$A$2:$A$1498=AL$129,ROW(Database_Prop!$B$2:$B$1498)-ROW(Database_Prop!$B$2)+1),ROWS(Database_Prop!I$2:'Database_Prop'!I75))),\"\")","v":""},{"$f":"IFERROR(INDEX(Database_Prop!$B$2:$B$1498,SMALL(IF(Database_Prop!$A$2:$A$1498=AM$129,ROW(Database_Prop!$B$2:$B$1498)-ROW(Database_Prop!$B$2)+1),ROWS(Database_Prop!J$2:'Database_Prop'!J75))),\"\")","v":""},{"$f":"IFERROR(INDEX(Database_Prop!$B$2:$B$1498,SMALL(IF(Database_Prop!$A$2:$A$1498=AN$129,ROW(Database_Prop!$B$2:$B$1498)-ROW(Database_Prop!$B$2)+1),ROWS(Database_Prop!K$2:'Database_Prop'!K75))),\"\")","v":""},{"$f":"IFERROR(INDEX(Database_Prop!$B$2:$B$1498,SMALL(IF(Database_Prop!$A$2:$A$1498=AO$129,ROW(Database_Prop!$B$2:$B$1498)-ROW(Database_Prop!$B$2)+1),ROWS(Database_Prop!L$2:'Database_Prop'!L75))),\"\")","v":""},{"$f":"IFERROR(INDEX(Database_Prop!$B$2:$B$1498,SMALL(IF(Database_Prop!$A$2:$A$1498=AP$129,ROW(Database_Prop!$B$2:$B$1498)-ROW(Database_Prop!$B$2)+1),ROWS(Database_Prop!M$2:'Database_Prop'!M75))),\"\")","v":""},{"$f":"IFERROR(INDEX(Database_Prop!$B$2:$B$1498,SMALL(IF(Database_Prop!$A$2:$A$1498=AQ$129,ROW(Database_Prop!$B$2:$B$1498)-ROW(Database_Prop!$B$2)+1),ROWS(Database_Prop!N$2:'Database_Prop'!N75))),\"\")","v":""},{"$f":"IFERROR(INDEX(Database_Prop!$B$2:$B$1498,SMALL(IF(Database_Prop!$A$2:$A$1498=AR$129,ROW(Database_Prop!$B$2:$B$1498)-ROW(Database_Prop!$B$2)+1),ROWS(Database_Prop!O$2:'Database_Prop'!O75))),\"\")","v":""},{"$f":"IFERROR(INDEX(Database_Prop!$B$2:$B$1498,SMALL(IF(Database_Prop!$A$2:$A$1498=AS$129,ROW(Database_Prop!$B$2:$B$1498)-ROW(Database_Prop!$B$2)+1),ROWS(Database_Prop!P$2:'Database_Prop'!P75))),\"\")","v":""},{"$f":"IFERROR(INDEX(Database_Prop!$B$2:$B$1498,SMALL(IF(Database_Prop!$A$2:$A$1498=AT$129,ROW(Database_Prop!$B$2:$B$1498)-ROW(Database_Prop!$B$2)+1),ROWS(Database_Prop!Q$2:'Database_Prop'!Q75))),\"\")","v":""},{"$f":"IFERROR(INDEX(Database_Prop!$B$2:$B$1498,SMALL(IF(Database_Prop!$A$2:$A$1498=AU$129,ROW(Database_Prop!$B$2:$B$1498)-ROW(Database_Prop!$B$2)+1),ROWS(Database_Prop!R$2:'Database_Prop'!R75))),\"\")","v":""},{"$f":"IFERROR(INDEX(Database_Prop!$B$2:$B$1498,SMALL(IF(Database_Prop!$A$2:$A$1498=AV$129,ROW(Database_Prop!$B$2:$B$1498)-ROW(Database_Prop!$B$2)+1),ROWS(Database_Prop!S$2:'Database_Prop'!S75))),\"\")","v":""},{"$f":"IFERROR(INDEX(Database_Prop!$B$2:$B$1498,SMALL(IF(Database_Prop!$A$2:$A$1498=AW$129,ROW(Database_Prop!$B$2:$B$1498)-ROW(Database_Prop!$B$2)+1),ROWS(Database_Prop!T$2:'Database_Prop'!T75))),\"\")","v":""},{"$f":"IFERROR(INDEX(Database_Prop!$B$2:$B$1498,SMALL(IF(Database_Prop!$A$2:$A$1498=AX$129,ROW(Database_Prop!$B$2:$B$1498)-ROW(Database_Prop!$B$2)+1),ROWS(Database_Prop!U$2:'Database_Prop'!U75))),\"\")","v":""},{"$f":"IFERROR(INDEX(Database_Prop!$B$2:$B$1498,SMALL(IF(Database_Prop!$A$2:$A$1498=AY$129,ROW(Database_Prop!$B$2:$B$1498)-ROW(Database_Prop!$B$2)+1),ROWS(Database_Prop!V$2:'Database_Prop'!V75))),\"\")","v":""},{"$f":"IFERROR(INDEX(Database_Prop!$B$2:$B$1498,SMALL(IF(Database_Prop!$A$2:$A$1498=AZ$129,ROW(Database_Prop!$B$2:$B$1498)-ROW(Database_Prop!$B$2)+1),ROWS(Database_Prop!W$2:'Database_Prop'!W75))),\"\")","v":""},{"$f":"IFERROR(INDEX(Database_Prop!$B$2:$B$1498,SMALL(IF(Database_Prop!$A$2:$A$1498=BA$129,ROW(Database_Prop!$B$2:$B$1498)-ROW(Database_Prop!$B$2)+1),ROWS(Database_Prop!X$2:'Database_Prop'!X75))),\"\")","v":""},{"$f":"IFERROR(INDEX(Database_Prop!$B$2:$B$1498,SMALL(IF(Database_Prop!$A$2:$A$1498=BB$129,ROW(Database_Prop!$B$2:$B$1498)-ROW(Database_Prop!$B$2)+1),ROWS(Database_Prop!Y$2:'Database_Prop'!Y75))),\"\")","v":""},{"$f":"IFERROR(INDEX(Database_Prop!$B$2:$B$1498,SMALL(IF(Database_Prop!$A$2:$A$1498=BC$129,ROW(Database_Prop!$B$2:$B$1498)-ROW(Database_Prop!$B$2)+1),ROWS(Database_Prop!Z$2:'Database_Prop'!Z75))),\"\")","v":""},null,"French Guiana","Latin America"]
[null,null,null,null,null,null,null,null,null,null,null,null,null,null,null,null,null,null,null,null,null,null,null,null,null,null,null,null,null,null,76,{"$f":"IFERROR(INDEX(Database_Prop!$B$2:$B$1498,SMALL(IF(Database_Prop!$A$2:$A$1498=AF$129,ROW(Database_Prop!$B$2:$B$1498)-ROW(Database_Prop!$B$2)+1),ROWS(Database_Prop!C$2:'Database_Prop'!C76))),\"\")","v":""},{"$f":"IFERROR(INDEX(Database_Prop!$B$2:$B$1498,SMALL(IF(Database_Prop!$A$2:$A$1498=AG$129,ROW(Database_Prop!$B$2:$B$1498)-ROW(Database_Prop!$B$2)+1),ROWS(Database_Prop!D$2:'Database_Prop'!D76))),\"\")","v":""},{"$f":"IFERROR(INDEX(Database_Prop!$B$2:$B$1498,SMALL(IF(Database_Prop!$A$2:$A$1498=AH$129,ROW(Database_Prop!$B$2:$B$1498)-ROW(Database_Prop!$B$2)+1),ROWS(Database_Prop!E$2:'Database_Prop'!E76))),\"\")","v":""},{"$f":"IFERROR(INDEX(Database_Prop!$B$2:$B$1498,SMALL(IF(Database_Prop!$A$2:$A$1498=AI$129,ROW(Database_Prop!$B$2:$B$1498)-ROW(Database_Prop!$B$2)+1),ROWS(Database_Prop!F$2:'Database_Prop'!F76))),\"\")","v":""},{"$f":"IFERROR(INDEX(Database_Prop!$B$2:$B$1498,SMALL(IF(Database_Prop!$A$2:$A$1498=AJ$129,ROW(Database_Prop!$B$2:$B$1498)-ROW(Database_Prop!$B$2)+1),ROWS(Database_Prop!G$2:'Database_Prop'!G76))),\"\")","v":""},{"$f":"IFERROR(INDEX(Database_Prop!$B$2:$B$1498,SMALL(IF(Database_Prop!$A$2:$A$1498=AK$129,ROW(Database_Prop!$B$2:$B$1498)-ROW(Database_Prop!$B$2)+1),ROWS(Database_Prop!H$2:'Database_Prop'!H76))),\"\")","v":""},{"$f":"IFERROR(INDEX(Database_Prop!$B$2:$B$1498,SMALL(IF(Database_Prop!$A$2:$A$1498=AL$129,ROW(Database_Prop!$B$2:$B$1498)-ROW(Database_Prop!$B$2)+1),ROWS(Database_Prop!I$2:'Database_Prop'!I76))),\"\")","v":""},{"$f":"IFERROR(INDEX(Database_Prop!$B$2:$B$1498,SMALL(IF(Database_Prop!$A$2:$A$1498=AM$129,ROW(Database_Prop!$B$2:$B$1498)-ROW(Database_Prop!$B$2)+1),ROWS(Database_Prop!J$2:'Database_Prop'!J76))),\"\")","v":""},{"$f":"IFERROR(INDEX(Database_Prop!$B$2:$B$1498,SMALL(IF(Database_Prop!$A$2:$A$1498=AN$129,ROW(Database_Prop!$B$2:$B$1498)-ROW(Database_Prop!$B$2)+1),ROWS(Database_Prop!K$2:'Database_Prop'!K76))),\"\")","v":""},{"$f":"IFERROR(INDEX(Database_Prop!$B$2:$B$1498,SMALL(IF(Database_Prop!$A$2:$A$1498=AO$129,ROW(Database_Prop!$B$2:$B$1498)-ROW(Database_Prop!$B$2)+1),ROWS(Database_Prop!L$2:'Database_Prop'!L76))),\"\")","v":""},{"$f":"IFERROR(INDEX(Database_Prop!$B$2:$B$1498,SMALL(IF(Database_Prop!$A$2:$A$1498=AP$129,ROW(Database_Prop!$B$2:$B$1498)-ROW(Database_Prop!$B$2)+1),ROWS(Database_Prop!M$2:'Database_Prop'!M76))),\"\")","v":""},{"$f":"IFERROR(INDEX(Database_Prop!$B$2:$B$1498,SMALL(IF(Database_Prop!$A$2:$A$1498=AQ$129,ROW(Database_Prop!$B$2:$B$1498)-ROW(Database_Prop!$B$2)+1),ROWS(Database_Prop!N$2:'Database_Prop'!N76))),\"\")","v":""},{"$f":"IFERROR(INDEX(Database_Prop!$B$2:$B$1498,SMALL(IF(Database_Prop!$A$2:$A$1498=AR$129,ROW(Database_Prop!$B$2:$B$1498)-ROW(Database_Prop!$B$2)+1),ROWS(Database_Prop!O$2:'Database_Prop'!O76))),\"\")","v":""},{"$f":"IFERROR(INDEX(Database_Prop!$B$2:$B$1498,SMALL(IF(Database_Prop!$A$2:$A$1498=AS$129,ROW(Database_Prop!$B$2:$B$1498)-ROW(Database_Prop!$B$2)+1),ROWS(Database_Prop!P$2:'Database_Prop'!P76))),\"\")","v":""},{"$f":"IFERROR(INDEX(Database_Prop!$B$2:$B$1498,SMALL(IF(Database_Prop!$A$2:$A$1498=AT$129,ROW(Database_Prop!$B$2:$B$1498)-ROW(Database_Prop!$B$2)+1),ROWS(Database_Prop!Q$2:'Database_Prop'!Q76))),\"\")","v":""},{"$f":"IFERROR(INDEX(Database_Prop!$B$2:$B$1498,SMALL(IF(Database_Prop!$A$2:$A$1498=AU$129,ROW(Database_Prop!$B$2:$B$1498)-ROW(Database_Prop!$B$2)+1),ROWS(Database_Prop!R$2:'Database_Prop'!R76))),\"\")","v":""},{"$f":"IFERROR(INDEX(Database_Prop!$B$2:$B$1498,SMALL(IF(Database_Prop!$A$2:$A$1498=AV$129,ROW(Database_Prop!$B$2:$B$1498)-ROW(Database_Prop!$B$2)+1),ROWS(Database_Prop!S$2:'Database_Prop'!S76))),\"\")","v":""},{"$f":"IFERROR(INDEX(Database_Prop!$B$2:$B$1498,SMALL(IF(Database_Prop!$A$2:$A$1498=AW$129,ROW(Database_Prop!$B$2:$B$1498)-ROW(Database_Prop!$B$2)+1),ROWS(Database_Prop!T$2:'Database_Prop'!T76))),\"\")","v":""},{"$f":"IFERROR(INDEX(Database_Prop!$B$2:$B$1498,SMALL(IF(Database_Prop!$A$2:$A$1498=AX$129,ROW(Database_Prop!$B$2:$B$1498)-ROW(Database_Prop!$B$2)+1),ROWS(Database_Prop!U$2:'Database_Prop'!U76))),\"\")","v":""},{"$f":"IFERROR(INDEX(Database_Prop!$B$2:$B$1498,SMALL(IF(Database_Prop!$A$2:$A$1498=AY$129,ROW(Database_Prop!$B$2:$B$1498)-ROW(Database_Prop!$B$2)+1),ROWS(Database_Prop!V$2:'Database_Prop'!V76))),\"\")","v":""},{"$f":"IFERROR(INDEX(Database_Prop!$B$2:$B$1498,SMALL(IF(Database_Prop!$A$2:$A$1498=AZ$129,ROW(Database_Prop!$B$2:$B$1498)-ROW(Database_Prop!$B$2)+1),ROWS(Database_Prop!W$2:'Database_Prop'!W76))),\"\")","v":""},{"$f":"IFERROR(INDEX(Database_Prop!$B$2:$B$1498,SMALL(IF(Database_Prop!$A$2:$A$1498=BA$129,ROW(Database_Prop!$B$2:$B$1498)-ROW(Database_Prop!$B$2)+1),ROWS(Database_Prop!X$2:'Database_Prop'!X76))),\"\")","v":""},{"$f":"IFERROR(INDEX(Database_Prop!$B$2:$B$1498,SMALL(IF(Database_Prop!$A$2:$A$1498=BB$129,ROW(Database_Prop!$B$2:$B$1498)-ROW(Database_Prop!$B$2)+1),ROWS(Database_Prop!Y$2:'Database_Prop'!Y76))),\"\")","v":""},{"$f":"IFERROR(INDEX(Database_Prop!$B$2:$B$1498,SMALL(IF(Database_Prop!$A$2:$A$1498=BC$129,ROW(Database_Prop!$B$2:$B$1498)-ROW(Database_Prop!$B$2)+1),ROWS(Database_Prop!Z$2:'Database_Prop'!Z76))),\"\")","v":""},null,"French Polynesia","Oceania"]
[null,null,null,null,null,null,null,null,null,null,null,null,null,null,null,null,null,null,null,null,null,null,null,null,null,null,null,null,null,null,77,{"$f":"IFERROR(INDEX(Database_Prop!$B$2:$B$1498,SMALL(IF(Database_Prop!$A$2:$A$1498=AF$129,ROW(Database_Prop!$B$2:$B$1498)-ROW(Database_Prop!$B$2)+1),ROWS(Database_Prop!C$2:'Database_Prop'!C77))),\"\")","v":""},{"$f":"IFERROR(INDEX(Database_Prop!$B$2:$B$1498,SMALL(IF(Database_Prop!$A$2:$A$1498=AG$129,ROW(Database_Prop!$B$2:$B$1498)-ROW(Database_Prop!$B$2)+1),ROWS(Database_Prop!D$2:'Database_Prop'!D77))),\"\")","v":""},{"$f":"IFERROR(INDEX(Database_Prop!$B$2:$B$1498,SMALL(IF(Database_Prop!$A$2:$A$1498=AH$129,ROW(Database_Prop!$B$2:$B$1498)-ROW(Database_Prop!$B$2)+1),ROWS(Database_Prop!E$2:'Database_Prop'!E77))),\"\")","v":""},{"$f":"IFERROR(INDEX(Database_Prop!$B$2:$B$1498,SMALL(IF(Database_Prop!$A$2:$A$1498=AI$129,ROW(Database_Prop!$B$2:$B$1498)-ROW(Database_Prop!$B$2)+1),ROWS(Database_Prop!F$2:'Database_Prop'!F77))),\"\")","v":""},{"$f":"IFERROR(INDEX(Database_Prop!$B$2:$B$1498,SMALL(IF(Database_Prop!$A$2:$A$1498=AJ$129,ROW(Database_Prop!$B$2:$B$1498)-ROW(Database_Prop!$B$2)+1),ROWS(Database_Prop!G$2:'Database_Prop'!G77))),\"\")","v":""},{"$f":"IFERROR(INDEX(Database_Prop!$B$2:$B$1498,SMALL(IF(Database_Prop!$A$2:$A$1498=AK$129,ROW(Database_Prop!$B$2:$B$1498)-ROW(Database_Prop!$B$2)+1),ROWS(Database_Prop!H$2:'Database_Prop'!H77))),\"\")","v":""},{"$f":"IFERROR(INDEX(Database_Prop!$B$2:$B$1498,SMALL(IF(Database_Prop!$A$2:$A$1498=AL$129,ROW(Database_Prop!$B$2:$B$1498)-ROW(Database_Prop!$B$2)+1),ROWS(Database_Prop!I$2:'Database_Prop'!I77))),\"\")","v":""},{"$f":"IFERROR(INDEX(Database_Prop!$B$2:$B$1498,SMALL(IF(Database_Prop!$A$2:$A$1498=AM$129,ROW(Database_Prop!$B$2:$B$1498)-ROW(Database_Prop!$B$2)+1),ROWS(Database_Prop!J$2:'Database_Prop'!J77))),\"\")","v":""},{"$f":"IFERROR(INDEX(Database_Prop!$B$2:$B$1498,SMALL(IF(Database_Prop!$A$2:$A$1498=AN$129,ROW(Database_Prop!$B$2:$B$1498)-ROW(Database_Prop!$B$2)+1),ROWS(Database_Prop!K$2:'Database_Prop'!K77))),\"\")","v":""},{"$f":"IFERROR(INDEX(Database_Prop!$B$2:$B$1498,SMALL(IF(Database_Prop!$A$2:$A$1498=AO$129,ROW(Database_Prop!$B$2:$B$1498)-ROW(Database_Prop!$B$2)+1),ROWS(Database_Prop!L$2:'Database_Prop'!L77))),\"\")","v":""},{"$f":"IFERROR(INDEX(Database_Prop!$B$2:$B$1498,SMALL(IF(Database_Prop!$A$2:$A$1498=AP$129,ROW(Database_Prop!$B$2:$B$1498)-ROW(Database_Prop!$B$2)+1),ROWS(Database_Prop!M$2:'Database_Prop'!M77))),\"\")","v":""},{"$f":"IFERROR(INDEX(Database_Prop!$B$2:$B$1498,SMALL(IF(Database_Prop!$A$2:$A$1498=AQ$129,ROW(Database_Prop!$B$2:$B$1498)-ROW(Database_Prop!$B$2)+1),ROWS(Database_Prop!N$2:'Database_Prop'!N77))),\"\")","v":""},{"$f":"IFERROR(INDEX(Database_Prop!$B$2:$B$1498,SMALL(IF(Database_Prop!$A$2:$A$1498=AR$129,ROW(Database_Prop!$B$2:$B$1498)-ROW(Database_Prop!$B$2)+1),ROWS(Database_Prop!O$2:'Database_Prop'!O77))),\"\")","v":""},{"$f":"IFERROR(INDEX(Database_Prop!$B$2:$B$1498,SMALL(IF(Database_Prop!$A$2:$A$1498=AS$129,ROW(Database_Prop!$B$2:$B$1498)-ROW(Database_Prop!$B$2)+1),ROWS(Database_Prop!P$2:'Database_Prop'!P77))),\"\")","v":""},{"$f":"IFERROR(INDEX(Database_Prop!$B$2:$B$1498,SMALL(IF(Database_Prop!$A$2:$A$1498=AT$129,ROW(Database_Prop!$B$2:$B$1498)-ROW(Database_Prop!$B$2)+1),ROWS(Database_Prop!Q$2:'Database_Prop'!Q77))),\"\")","v":""},{"$f":"IFERROR(INDEX(Database_Prop!$B$2:$B$1498,SMALL(IF(Database_Prop!$A$2:$A$1498=AU$129,ROW(Database_Prop!$B$2:$B$1498)-ROW(Database_Prop!$B$2)+1),ROWS(Database_Prop!R$2:'Database_Prop'!R77))),\"\")","v":""},{"$f":"IFERROR(INDEX(Database_Prop!$B$2:$B$1498,SMALL(IF(Database_Prop!$A$2:$A$1498=AV$129,ROW(Database_Prop!$B$2:$B$1498)-ROW(Database_Prop!$B$2)+1),ROWS(Database_Prop!S$2:'Database_Prop'!S77))),\"\")","v":""},{"$f":"IFERROR(INDEX(Database_Prop!$B$2:$B$1498,SMALL(IF(Database_Prop!$A$2:$A$1498=AW$129,ROW(Database_Prop!$B$2:$B$1498)-ROW(Database_Prop!$B$2)+1),ROWS(Database_Prop!T$2:'Database_Prop'!T77))),\"\")","v":""},{"$f":"IFERROR(INDEX(Database_Prop!$B$2:$B$1498,SMALL(IF(Database_Prop!$A$2:$A$1498=AX$129,ROW(Database_Prop!$B$2:$B$1498)-ROW(Database_Prop!$B$2)+1),ROWS(Database_Prop!U$2:'Database_Prop'!U77))),\"\")","v":""},{"$f":"IFERROR(INDEX(Database_Prop!$B$2:$B$1498,SMALL(IF(Database_Prop!$A$2:$A$1498=AY$129,ROW(Database_Prop!$B$2:$B$1498)-ROW(Database_Prop!$B$2)+1),ROWS(Database_Prop!V$2:'Database_Prop'!V77))),\"\")","v":""},{"$f":"IFERROR(INDEX(Database_Prop!$B$2:$B$1498,SMALL(IF(Database_Prop!$A$2:$A$1498=AZ$129,ROW(Database_Prop!$B$2:$B$1498)-ROW(Database_Prop!$B$2)+1),ROWS(Database_Prop!W$2:'Database_Prop'!W77))),\"\")","v":""},{"$f":"IFERROR(INDEX(Database_Prop!$B$2:$B$1498,SMALL(IF(Database_Prop!$A$2:$A$1498=BA$129,ROW(Database_Prop!$B$2:$B$1498)-ROW(Database_Prop!$B$2)+1),ROWS(Database_Prop!X$2:'Database_Prop'!X77))),\"\")","v":""},{"$f":"IFERROR(INDEX(Database_Prop!$B$2:$B$1498,SMALL(IF(Database_Prop!$A$2:$A$1498=BB$129,ROW(Database_Prop!$B$2:$B$1498)-ROW(Database_Prop!$B$2)+1),ROWS(Database_Prop!Y$2:'Database_Prop'!Y77))),\"\")","v":""},{"$f":"IFERROR(INDEX(Database_Prop!$B$2:$B$1498,SMALL(IF(Database_Prop!$A$2:$A$1498=BC$129,ROW(Database_Prop!$B$2:$B$1498)-ROW(Database_Prop!$B$2)+1),ROWS(Database_Prop!Z$2:'Database_Prop'!Z77))),\"\")","v":""},null,"Gabon","Africa"]
[null,null,null,null,null,null,null,null,null,null,null,null,null,null,null,null,null,null,null,null,null,null,null,null,null,null,null,null,null,null,78,{"$f":"IFERROR(INDEX(Database_Prop!$B$2:$B$1498,SMALL(IF(Database_Prop!$A$2:$A$1498=AF$129,ROW(Database_Prop!$B$2:$B$1498)-ROW(Database_Prop!$B$2)+1),ROWS(Database_Prop!C$2:'Database_Prop'!C78))),\"\")","v":""},{"$f":"IFERROR(INDEX(Database_Prop!$B$2:$B$1498,SMALL(IF(Database_Prop!$A$2:$A$1498=AG$129,ROW(Database_Prop!$B$2:$B$1498)-ROW(Database_Prop!$B$2)+1),ROWS(Database_Prop!D$2:'Database_Prop'!D78))),\"\")","v":""},{"$f":"IFERROR(INDEX(Database_Prop!$B$2:$B$1498,SMALL(IF(Database_Prop!$A$2:$A$1498=AH$129,ROW(Database_Prop!$B$2:$B$1498)-ROW(Database_Prop!$B$2)+1),ROWS(Database_Prop!E$2:'Database_Prop'!E78))),\"\")","v":""},{"$f":"IFERROR(INDEX(Database_Prop!$B$2:$B$1498,SMALL(IF(Database_Prop!$A$2:$A$1498=AI$129,ROW(Database_Prop!$B$2:$B$1498)-ROW(Database_Prop!$B$2)+1),ROWS(Database_Prop!F$2:'Database_Prop'!F78))),\"\")","v":""},{"$f":"IFERROR(INDEX(Database_Prop!$B$2:$B$1498,SMALL(IF(Database_Prop!$A$2:$A$1498=AJ$129,ROW(Database_Prop!$B$2:$B$1498)-ROW(Database_Prop!$B$2)+1),ROWS(Database_Prop!G$2:'Database_Prop'!G78))),\"\")","v":""},{"$f":"IFERROR(INDEX(Database_Prop!$B$2:$B$1498,SMALL(IF(Database_Prop!$A$2:$A$1498=AK$129,ROW(Database_Prop!$B$2:$B$1498)-ROW(Database_Prop!$B$2)+1),ROWS(Database_Prop!H$2:'Database_Prop'!H78))),\"\")","v":""},{"$f":"IFERROR(INDEX(Database_Prop!$B$2:$B$1498,SMALL(IF(Database_Prop!$A$2:$A$1498=AL$129,ROW(Database_Prop!$B$2:$B$1498)-ROW(Database_Prop!$B$2)+1),ROWS(Database_Prop!I$2:'Database_Prop'!I78))),\"\")","v":""},{"$f":"IFERROR(INDEX(Database_Prop!$B$2:$B$1498,SMALL(IF(Database_Prop!$A$2:$A$1498=AM$129,ROW(Database_Prop!$B$2:$B$1498)-ROW(Database_Prop!$B$2)+1),ROWS(Database_Prop!J$2:'Database_Prop'!J78))),\"\")","v":""},{"$f":"IFERROR(INDEX(Database_Prop!$B$2:$B$1498,SMALL(IF(Database_Prop!$A$2:$A$1498=AN$129,ROW(Database_Prop!$B$2:$B$1498)-ROW(Database_Prop!$B$2)+1),ROWS(Database_Prop!K$2:'Database_Prop'!K78))),\"\")","v":""},{"$f":"IFERROR(INDEX(Database_Prop!$B$2:$B$1498,SMALL(IF(Database_Prop!$A$2:$A$1498=AO$129,ROW(Database_Prop!$B$2:$B$1498)-ROW(Database_Prop!$B$2)+1),ROWS(Database_Prop!L$2:'Database_Prop'!L78))),\"\")","v":""},{"$f":"IFERROR(INDEX(Database_Prop!$B$2:$B$1498,SMALL(IF(Database_Prop!$A$2:$A$1498=AP$129,ROW(Database_Prop!$B$2:$B$1498)-ROW(Database_Prop!$B$2)+1),ROWS(Database_Prop!M$2:'Database_Prop'!M78))),\"\")","v":""},{"$f":"IFERROR(INDEX(Database_Prop!$B$2:$B$1498,SMALL(IF(Database_Prop!$A$2:$A$1498=AQ$129,ROW(Database_Prop!$B$2:$B$1498)-ROW(Database_Prop!$B$2)+1),ROWS(Database_Prop!N$2:'Database_Prop'!N78))),\"\")","v":""},{"$f":"IFERROR(INDEX(Database_Prop!$B$2:$B$1498,SMALL(IF(Database_Prop!$A$2:$A$1498=AR$129,ROW(Database_Prop!$B$2:$B$1498)-ROW(Database_Prop!$B$2)+1),ROWS(Database_Prop!O$2:'Database_Prop'!O78))),\"\")","v":""},{"$f":"IFERROR(INDEX(Database_Prop!$B$2:$B$1498,SMALL(IF(Database_Prop!$A$2:$A$1498=AS$129,ROW(Database_Prop!$B$2:$B$1498)-ROW(Database_Prop!$B$2)+1),ROWS(Database_Prop!P$2:'Database_Prop'!P78))),\"\")","v":""},{"$f":"IFERROR(INDEX(Database_Prop!$B$2:$B$1498,SMALL(IF(Database_Prop!$A$2:$A$1498=AT$129,ROW(Database_Prop!$B$2:$B$1498)-ROW(Database_Prop!$B$2)+1),ROWS(Database_Prop!Q$2:'Database_Prop'!Q78))),\"\")","v":""},{"$f":"IFERROR(INDEX(Database_Prop!$B$2:$B$1498,SMALL(IF(Database_Prop!$A$2:$A$1498=AU$129,ROW(Database_Prop!$B$2:$B$1498)-ROW(Database_Prop!$B$2)+1),ROWS(Database_Prop!R$2:'Database_Prop'!R78))),\"\")","v":""},{"$f":"IFERROR(INDEX(Database_Prop!$B$2:$B$1498,SMALL(IF(Database_Prop!$A$2:$A$1498=AV$129,ROW(Database_Prop!$B$2:$B$1498)-ROW(Database_Prop!$B$2)+1),ROWS(Database_Prop!S$2:'Database_Prop'!S78))),\"\")","v":""},{"$f":"IFERROR(INDEX(Database_Prop!$B$2:$B$1498,SMALL(IF(Database_Prop!$A$2:$A$1498=AW$129,ROW(Database_Prop!$B$2:$B$1498)-ROW(Database_Prop!$B$2)+1),ROWS(Database_Prop!T$2:'Database_Prop'!T78))),\"\")","v":""},{"$f":"IFERROR(INDEX(Database_Prop!$B$2:$B$1498,SMALL(IF(Database_Prop!$A$2:$A$1498=AX$129,ROW(Database_Prop!$B$2:$B$1498)-ROW(Database_Prop!$B$2)+1),ROWS(Database_Prop!U$2:'Database_Prop'!U78))),\"\")","v":""},{"$f":"IFERROR(INDEX(Database_Prop!$B$2:$B$1498,SMALL(IF(Database_Prop!$A$2:$A$1498=AY$129,ROW(Database_Prop!$B$2:$B$1498)-ROW(Database_Prop!$B$2)+1),ROWS(Database_Prop!V$2:'Database_Prop'!V78))),\"\")","v":""},{"$f":"IFERROR(INDEX(Database_Prop!$B$2:$B$1498,SMALL(IF(Database_Prop!$A$2:$A$1498=AZ$129,ROW(Database_Prop!$B$2:$B$1498)-ROW(Database_Prop!$B$2)+1),ROWS(Database_Prop!W$2:'Database_Prop'!W78))),\"\")","v":""},{"$f":"IFERROR(INDEX(Database_Prop!$B$2:$B$1498,SMALL(IF(Database_Prop!$A$2:$A$1498=BA$129,ROW(Database_Prop!$B$2:$B$1498)-ROW(Database_Prop!$B$2)+1),ROWS(Database_Prop!X$2:'Database_Prop'!X78))),\"\")","v":""},{"$f":"IFERROR(INDEX(Database_Prop!$B$2:$B$1498,SMALL(IF(Database_Prop!$A$2:$A$1498=BB$129,ROW(Database_Prop!$B$2:$B$1498)-ROW(Database_Prop!$B$2)+1),ROWS(Database_Prop!Y$2:'Database_Prop'!Y78))),\"\")","v":""},{"$f":"IFERROR(INDEX(Database_Prop!$B$2:$B$1498,SMALL(IF(Database_Prop!$A$2:$A$1498=BC$129,ROW(Database_Prop!$B$2:$B$1498)-ROW(Database_Prop!$B$2)+1),ROWS(Database_Prop!Z$2:'Database_Prop'!Z78))),\"\")","v":""},null,"Gambia","Africa"]
[null,null,null,null,null,null,null,null,null,null,null,null,null,null,null,null,null,null,null,null,null,null,null,null,null,null,null,null,null,null,79,{"$f":"IFERROR(INDEX(Database_Prop!$B$2:$B$1498,SMALL(IF(Database_Prop!$A$2:$A$1498=AF$129,ROW(Database_Prop!$B$2:$B$1498)-ROW(Database_Prop!$B$2)+1),ROWS(Database_Prop!C$2:'Database_Prop'!C79))),\"\")","v":""},{"$f":"IFERROR(INDEX(Database_Prop!$B$2:$B$1498,SMALL(IF(Database_Prop!$A$2:$A$1498=AG$129,ROW(Database_Prop!$B$2:$B$1498)-ROW(Database_Prop!$B$2)+1),ROWS(Database_Prop!D$2:'Database_Prop'!D79))),\"\")","v":""},{"$f":"IFERROR(INDEX(Database_Prop!$B$2:$B$1498,SMALL(IF(Database_Prop!$A$2:$A$1498=AH$129,ROW(Database_Prop!$B$2:$B$1498)-ROW(Database_Prop!$B$2)+1),ROWS(Database_Prop!E$2:'Database_Prop'!E79))),\"\")","v":""},{"$f":"IFERROR(INDEX(Database_Prop!$B$2:$B$1498,SMALL(IF(Database_Prop!$A$2:$A$1498=AI$129,ROW(Database_Prop!$B$2:$B$1498)-ROW(Database_Prop!$B$2)+1),ROWS(Database_Prop!F$2:'Database_Prop'!F79))),\"\")","v":""},{"$f":"IFERROR(INDEX(Database_Prop!$B$2:$B$1498,SMALL(IF(Database_Prop!$A$2:$A$1498=AJ$129,ROW(Database_Prop!$B$2:$B$1498)-ROW(Database_Prop!$B$2)+1),ROWS(Database_Prop!G$2:'Database_Prop'!G79))),\"\")","v":""},{"$f":"IFERROR(INDEX(Database_Prop!$B$2:$B$1498,SMALL(IF(Database_Prop!$A$2:$A$1498=AK$129,ROW(Database_Prop!$B$2:$B$1498)-ROW(Database_Prop!$B$2)+1),ROWS(Database_Prop!H$2:'Database_Prop'!H79))),\"\")","v":""},{"$f":"IFERROR(INDEX(Database_Prop!$B$2:$B$1498,SMALL(IF(Database_Prop!$A$2:$A$1498=AL$129,ROW(Database_Prop!$B$2:$B$1498)-ROW(Database_Prop!$B$2)+1),ROWS(Database_Prop!I$2:'Database_Prop'!I79))),\"\")","v":""},{"$f":"IFERROR(INDEX(Database_Prop!$B$2:$B$1498,SMALL(IF(Database_Prop!$A$2:$A$1498=AM$129,ROW(Database_Prop!$B$2:$B$1498)-ROW(Database_Prop!$B$2)+1),ROWS(Database_Prop!J$2:'Database_Prop'!J79))),\"\")","v":""},{"$f":"IFERROR(INDEX(Database_Prop!$B$2:$B$1498,SMALL(IF(Database_Prop!$A$2:$A$1498=AN$129,ROW(Database_Prop!$B$2:$B$1498)-ROW(Database_Prop!$B$2)+1),ROWS(Database_Prop!K$2:'Database_Prop'!K79))),\"\")","v":""},{"$f":"IFERROR(INDEX(Database_Prop!$B$2:$B$1498,SMALL(IF(Database_Prop!$A$2:$A$1498=AO$129,ROW(Database_Prop!$B$2:$B$1498)-ROW(Database_Prop!$B$2)+1),ROWS(Database_Prop!L$2:'Database_Prop'!L79))),\"\")","v":""},{"$f":"IFERROR(INDEX(Database_Prop!$B$2:$B$1498,SMALL(IF(Database_Prop!$A$2:$A$1498=AP$129,ROW(Database_Prop!$B$2:$B$1498)-ROW(Database_Prop!$B$2)+1),ROWS(Database_Prop!M$2:'Database_Prop'!M79))),\"\")","v":""},{"$f":"IFERROR(INDEX(Database_Prop!$B$2:$B$1498,SMALL(IF(Database_Prop!$A$2:$A$1498=AQ$129,ROW(Database_Prop!$B$2:$B$1498)-ROW(Database_Prop!$B$2)+1),ROWS(Database_Prop!N$2:'Database_Prop'!N79))),\"\")","v":""},{"$f":"IFERROR(INDEX(Database_Prop!$B$2:$B$1498,SMALL(IF(Database_Prop!$A$2:$A$1498=AR$129,ROW(Database_Prop!$B$2:$B$1498)-ROW(Database_Prop!$B$2)+1),ROWS(Database_Prop!O$2:'Database_Prop'!O79))),\"\")","v":""},{"$f":"IFERROR(INDEX(Database_Prop!$B$2:$B$1498,SMALL(IF(Database_Prop!$A$2:$A$1498=AS$129,ROW(Database_Prop!$B$2:$B$1498)-ROW(Database_Prop!$B$2)+1),ROWS(Database_Prop!P$2:'Database_Prop'!P79))),\"\")","v":""},{"$f":"IFERROR(INDEX(Database_Prop!$B$2:$B$1498,SMALL(IF(Database_Prop!$A$2:$A$1498=AT$129,ROW(Database_Prop!$B$2:$B$1498)-ROW(Database_Prop!$B$2)+1),ROWS(Database_Prop!Q$2:'Database_Prop'!Q79))),\"\")","v":""},{"$f":"IFERROR(INDEX(Database_Prop!$B$2:$B$1498,SMALL(IF(Database_Prop!$A$2:$A$1498=AU$129,ROW(Database_Prop!$B$2:$B$1498)-ROW(Database_Prop!$B$2)+1),ROWS(Database_Prop!R$2:'Database_Prop'!R79))),\"\")","v":""},{"$f":"IFERROR(INDEX(Database_Prop!$B$2:$B$1498,SMALL(IF(Database_Prop!$A$2:$A$1498=AV$129,ROW(Database_Prop!$B$2:$B$1498)-ROW(Database_Prop!$B$2)+1),ROWS(Database_Prop!S$2:'Database_Prop'!S79))),\"\")","v":""},{"$f":"IFERROR(INDEX(Database_Prop!$B$2:$B$1498,SMALL(IF(Database_Prop!$A$2:$A$1498=AW$129,ROW(Database_Prop!$B$2:$B$1498)-ROW(Database_Prop!$B$2)+1),ROWS(Database_Prop!T$2:'Database_Prop'!T79))),\"\")","v":""},{"$f":"IFERROR(INDEX(Database_Prop!$B$2:$B$1498,SMALL(IF(Database_Prop!$A$2:$A$1498=AX$129,ROW(Database_Prop!$B$2:$B$1498)-ROW(Database_Prop!$B$2)+1),ROWS(Database_Prop!U$2:'Database_Prop'!U79))),\"\")","v":""},{"$f":"IFERROR(INDEX(Database_Prop!$B$2:$B$1498,SMALL(IF(Database_Prop!$A$2:$A$1498=AY$129,ROW(Database_Prop!$B$2:$B$1498)-ROW(Database_Prop!$B$2)+1),ROWS(Database_Prop!V$2:'Database_Prop'!V79))),\"\")","v":""},{"$f":"IFERROR(INDEX(Database_Prop!$B$2:$B$1498,SMALL(IF(Database_Prop!$A$2:$A$1498=AZ$129,ROW(Database_Prop!$B$2:$B$1498)-ROW(Database_Prop!$B$2)+1),ROWS(Database_Prop!W$2:'Database_Prop'!W79))),\"\")","v":""},{"$f":"IFERROR(INDEX(Database_Prop!$B$2:$B$1498,SMALL(IF(Database_Prop!$A$2:$A$1498=BA$129,ROW(Database_Prop!$B$2:$B$1498)-ROW(Database_Prop!$B$2)+1),ROWS(Database_Prop!X$2:'Database_Prop'!X79))),\"\")","v":""},{"$f":"IFERROR(INDEX(Database_Prop!$B$2:$B$1498,SMALL(IF(Database_Prop!$A$2:$A$1498=BB$129,ROW(Database_Prop!$B$2:$B$1498)-ROW(Database_Prop!$B$2)+1),ROWS(Database_Prop!Y$2:'Database_Prop'!Y79))),\"\")","v":""},{"$f":"IFERROR(INDEX(Database_Prop!$B$2:$B$1498,SMALL(IF(Database_Prop!$A$2:$A$1498=BC$129,ROW(Database_Prop!$B$2:$B$1498)-ROW(Database_Prop!$B$2)+1),ROWS(Database_Prop!Z$2:'Database_Prop'!Z79))),\"\")","v":""},null,"Georgia","Asia"]
[null,null,null,null,null,null,null,null,null,null,null,null,null,null,null,null,null,null,null,null,null,null,null,null,null,null,null,null,null,null,80,{"$f":"IFERROR(INDEX(Database_Prop!$B$2:$B$1498,SMALL(IF(Database_Prop!$A$2:$A$1498=AF$129,ROW(Database_Prop!$B$2:$B$1498)-ROW(Database_Prop!$B$2)+1),ROWS(Database_Prop!C$2:'Database_Prop'!C80))),\"\")","v":""},{"$f":"IFERROR(INDEX(Database_Prop!$B$2:$B$1498,SMALL(IF(Database_Prop!$A$2:$A$1498=AG$129,ROW(Database_Prop!$B$2:$B$1498)-ROW(Database_Prop!$B$2)+1),ROWS(Database_Prop!D$2:'Database_Prop'!D80))),\"\")","v":""},{"$f":"IFERROR(INDEX(Database_Prop!$B$2:$B$1498,SMALL(IF(Database_Prop!$A$2:$A$1498=AH$129,ROW(Database_Prop!$B$2:$B$1498)-ROW(Database_Prop!$B$2)+1),ROWS(Database_Prop!E$2:'Database_Prop'!E80))),\"\")","v":""},{"$f":"IFERROR(INDEX(Database_Prop!$B$2:$B$1498,SMALL(IF(Database_Prop!$A$2:$A$1498=AI$129,ROW(Database_Prop!$B$2:$B$1498)-ROW(Database_Prop!$B$2)+1),ROWS(Database_Prop!F$2:'Database_Prop'!F80))),\"\")","v":""},{"$f":"IFERROR(INDEX(Database_Prop!$B$2:$B$1498,SMALL(IF(Database_Prop!$A$2:$A$1498=AJ$129,ROW(Database_Prop!$B$2:$B$1498)-ROW(Database_Prop!$B$2)+1),ROWS(Database_Prop!G$2:'Database_Prop'!G80))),\"\")","v":""},{"$f":"IFERROR(INDEX(Database_Prop!$B$2:$B$1498,SMALL(IF(Database_Prop!$A$2:$A$1498=AK$129,ROW(Database_Prop!$B$2:$B$1498)-ROW(Database_Prop!$B$2)+1),ROWS(Database_Prop!H$2:'Database_Prop'!H80))),\"\")","v":""},{"$f":"IFERROR(INDEX(Database_Prop!$B$2:$B$1498,SMALL(IF(Database_Prop!$A$2:$A$1498=AL$129,ROW(Database_Prop!$B$2:$B$1498)-ROW(Database_Prop!$B$2)+1),ROWS(Database_Prop!I$2:'Database_Prop'!I80))),\"\")","v":""},{"$f":"IFERROR(INDEX(Database_Prop!$B$2:$B$1498,SMALL(IF(Database_Prop!$A$2:$A$1498=AM$129,ROW(Database_Prop!$B$2:$B$1498)-ROW(Database_Prop!$B$2)+1),ROWS(Database_Prop!J$2:'Database_Prop'!J80))),\"\")","v":""},{"$f":"IFERROR(INDEX(Database_Prop!$B$2:$B$1498,SMALL(IF(Database_Prop!$A$2:$A$1498=AN$129,ROW(Database_Prop!$B$2:$B$1498)-ROW(Database_Prop!$B$2)+1),ROWS(Database_Prop!K$2:'Database_Prop'!K80))),\"\")","v":""},{"$f":"IFERROR(INDEX(Database_Prop!$B$2:$B$1498,SMALL(IF(Database_Prop!$A$2:$A$1498=AO$129,ROW(Database_Prop!$B$2:$B$1498)-ROW(Database_Prop!$B$2)+1),ROWS(Database_Prop!L$2:'Database_Prop'!L80))),\"\")","v":""},{"$f":"IFERROR(INDEX(Database_Prop!$B$2:$B$1498,SMALL(IF(Database_Prop!$A$2:$A$1498=AP$129,ROW(Database_Prop!$B$2:$B$1498)-ROW(Database_Prop!$B$2)+1),ROWS(Database_Prop!M$2:'Database_Prop'!M80))),\"\")","v":""},{"$f":"IFERROR(INDEX(Database_Prop!$B$2:$B$1498,SMALL(IF(Database_Prop!$A$2:$A$1498=AQ$129,ROW(Database_Prop!$B$2:$B$1498)-ROW(Database_Prop!$B$2)+1),ROWS(Database_Prop!N$2:'Database_Prop'!N80))),\"\")","v":""},{"$f":"IFERROR(INDEX(Database_Prop!$B$2:$B$1498,SMALL(IF(Database_Prop!$A$2:$A$1498=AR$129,ROW(Database_Prop!$B$2:$B$1498)-ROW(Database_Prop!$B$2)+1),ROWS(Database_Prop!O$2:'Database_Prop'!O80))),\"\")","v":""},{"$f":"IFERROR(INDEX(Database_Prop!$B$2:$B$1498,SMALL(IF(Database_Prop!$A$2:$A$1498=AS$129,ROW(Database_Prop!$B$2:$B$1498)-ROW(Database_Prop!$B$2)+1),ROWS(Database_Prop!P$2:'Database_Prop'!P80))),\"\")","v":""},{"$f":"IFERROR(INDEX(Database_Prop!$B$2:$B$1498,SMALL(IF(Database_Prop!$A$2:$A$1498=AT$129,ROW(Database_Prop!$B$2:$B$1498)-ROW(Database_Prop!$B$2)+1),ROWS(Database_Prop!Q$2:'Database_Prop'!Q80))),\"\")","v":""},{"$f":"IFERROR(INDEX(Database_Prop!$B$2:$B$1498,SMALL(IF(Database_Prop!$A$2:$A$1498=AU$129,ROW(Database_Prop!$B$2:$B$1498)-ROW(Database_Prop!$B$2)+1),ROWS(Database_Prop!R$2:'Database_Prop'!R80))),\"\")","v":""},{"$f":"IFERROR(INDEX(Database_Prop!$B$2:$B$1498,SMALL(IF(Database_Prop!$A$2:$A$1498=AV$129,ROW(Database_Prop!$B$2:$B$1498)-ROW(Database_Prop!$B$2)+1),ROWS(Database_Prop!S$2:'Database_Prop'!S80))),\"\")","v":""},{"$f":"IFERROR(INDEX(Database_Prop!$B$2:$B$1498,SMALL(IF(Database_Prop!$A$2:$A$1498=AW$129,ROW(Database_Prop!$B$2:$B$1498)-ROW(Database_Prop!$B$2)+1),ROWS(Database_Prop!T$2:'Database_Prop'!T80))),\"\")","v":""},{"$f":"IFERROR(INDEX(Database_Prop!$B$2:$B$1498,SMALL(IF(Database_Prop!$A$2:$A$1498=AX$129,ROW(Database_Prop!$B$2:$B$1498)-ROW(Database_Prop!$B$2)+1),ROWS(Database_Prop!U$2:'Database_Prop'!U80))),\"\")","v":""},{"$f":"IFERROR(INDEX(Database_Prop!$B$2:$B$1498,SMALL(IF(Database_Prop!$A$2:$A$1498=AY$129,ROW(Database_Prop!$B$2:$B$1498)-ROW(Database_Prop!$B$2)+1),ROWS(Database_Prop!V$2:'Database_Prop'!V80))),\"\")","v":""},{"$f":"IFERROR(INDEX(Database_Prop!$B$2:$B$1498,SMALL(IF(Database_Prop!$A$2:$A$1498=AZ$129,ROW(Database_Prop!$B$2:$B$1498)-ROW(Database_Prop!$B$2)+1),ROWS(Database_Prop!W$2:'Database_Prop'!W80))),\"\")","v":""},{"$f":"IFERROR(INDEX(Database_Prop!$B$2:$B$1498,SMALL(IF(Database_Prop!$A$2:$A$1498=BA$129,ROW(Database_Prop!$B$2:$B$1498)-ROW(Database_Prop!$B$2)+1),ROWS(Database_Prop!X$2:'Database_Prop'!X80))),\"\")","v":""},{"$f":"IFERROR(INDEX(Database_Prop!$B$2:$B$1498,SMALL(IF(Database_Prop!$A$2:$A$1498=BB$129,ROW(Database_Prop!$B$2:$B$1498)-ROW(Database_Prop!$B$2)+1),ROWS(Database_Prop!Y$2:'Database_Prop'!Y80))),\"\")","v":""},{"$f":"IFERROR(INDEX(Database_Prop!$B$2:$B$1498,SMALL(IF(Database_Prop!$A$2:$A$1498=BC$129,ROW(Database_Prop!$B$2:$B$1498)-ROW(Database_Prop!$B$2)+1),ROWS(Database_Prop!Z$2:'Database_Prop'!Z80))),\"\")","v":""},null,"Germany","Western Europe"]
[null,null,null,null,null,null,null,null,null,null,null,null,null,null,null,null,null,null,null,null,null,null,null,null,null,null,null,null,null,null,81,{"$f":"IFERROR(INDEX(Database_Prop!$B$2:$B$1498,SMALL(IF(Database_Prop!$A$2:$A$1498=AF$129,ROW(Database_Prop!$B$2:$B$1498)-ROW(Database_Prop!$B$2)+1),ROWS(Database_Prop!C$2:'Database_Prop'!C81))),\"\")","v":""},{"$f":"IFERROR(INDEX(Database_Prop!$B$2:$B$1498,SMALL(IF(Database_Prop!$A$2:$A$1498=AG$129,ROW(Database_Prop!$B$2:$B$1498)-ROW(Database_Prop!$B$2)+1),ROWS(Database_Prop!D$2:'Database_Prop'!D81))),\"\")","v":""},{"$f":"IFERROR(INDEX(Database_Prop!$B$2:$B$1498,SMALL(IF(Database_Prop!$A$2:$A$1498=AH$129,ROW(Database_Prop!$B$2:$B$1498)-ROW(Database_Prop!$B$2)+1),ROWS(Database_Prop!E$2:'Database_Prop'!E81))),\"\")","v":""},{"$f":"IFERROR(INDEX(Database_Prop!$B$2:$B$1498,SMALL(IF(Database_Prop!$A$2:$A$1498=AI$129,ROW(Database_Prop!$B$2:$B$1498)-ROW(Database_Prop!$B$2)+1),ROWS(Database_Prop!F$2:'Database_Prop'!F81))),\"\")","v":""},{"$f":"IFERROR(INDEX(Database_Prop!$B$2:$B$1498,SMALL(IF(Database_Prop!$A$2:$A$1498=AJ$129,ROW(Database_Prop!$B$2:$B$1498)-ROW(Database_Prop!$B$2)+1),ROWS(Database_Prop!G$2:'Database_Prop'!G81))),\"\")","v":""},{"$f":"IFERROR(INDEX(Database_Prop!$B$2:$B$1498,SMALL(IF(Database_Prop!$A$2:$A$1498=AK$129,ROW(Database_Prop!$B$2:$B$1498)-ROW(Database_Prop!$B$2)+1),ROWS(Database_Prop!H$2:'Database_Prop'!H81))),\"\")","v":""},{"$f":"IFERROR(INDEX(Database_Prop!$B$2:$B$1498,SMALL(IF(Database_Prop!$A$2:$A$1498=AL$129,ROW(Database_Prop!$B$2:$B$1498)-ROW(Database_Prop!$B$2)+1),ROWS(Database_Prop!I$2:'Database_Prop'!I81))),\"\")","v":""},{"$f":"IFERROR(INDEX(Database_Prop!$B$2:$B$1498,SMALL(IF(Database_Prop!$A$2:$A$1498=AM$129,ROW(Database_Prop!$B$2:$B$1498)-ROW(Database_Prop!$B$2)+1),ROWS(Database_Prop!J$2:'Database_Prop'!J81))),\"\")","v":""},{"$f":"IFERROR(INDEX(Database_Prop!$B$2:$B$1498,SMALL(IF(Database_Prop!$A$2:$A$1498=AN$129,ROW(Database_Prop!$B$2:$B$1498)-ROW(Database_Prop!$B$2)+1),ROWS(Database_Prop!K$2:'Database_Prop'!K81))),\"\")","v":""},{"$f":"IFERROR(INDEX(Database_Prop!$B$2:$B$1498,SMALL(IF(Database_Prop!$A$2:$A$1498=AO$129,ROW(Database_Prop!$B$2:$B$1498)-ROW(Database_Prop!$B$2)+1),ROWS(Database_Prop!L$2:'Database_Prop'!L81))),\"\")","v":""},{"$f":"IFERROR(INDEX(Database_Prop!$B$2:$B$1498,SMALL(IF(Database_Prop!$A$2:$A$1498=AP$129,ROW(Database_Prop!$B$2:$B$1498)-ROW(Database_Prop!$B$2)+1),ROWS(Database_Prop!M$2:'Database_Prop'!M81))),\"\")","v":""},{"$f":"IFERROR(INDEX(Database_Prop!$B$2:$B$1498,SMALL(IF(Database_Prop!$A$2:$A$1498=AQ$129,ROW(Database_Prop!$B$2:$B$1498)-ROW(Database_Prop!$B$2)+1),ROWS(Database_Prop!N$2:'Database_Prop'!N81))),\"\")","v":""},{"$f":"IFERROR(INDEX(Database_Prop!$B$2:$B$1498,SMALL(IF(Database_Prop!$A$2:$A$1498=AR$129,ROW(Database_Prop!$B$2:$B$1498)-ROW(Database_Prop!$B$2)+1),ROWS(Database_Prop!O$2:'Database_Prop'!O81))),\"\")","v":""},{"$f":"IFERROR(INDEX(Database_Prop!$B$2:$B$1498,SMALL(IF(Database_Prop!$A$2:$A$1498=AS$129,ROW(Database_Prop!$B$2:$B$1498)-ROW(Database_Prop!$B$2)+1),ROWS(Database_Prop!P$2:'Database_Prop'!P81))),\"\")","v":""},{"$f":"IFERROR(INDEX(Database_Prop!$B$2:$B$1498,SMALL(IF(Database_Prop!$A$2:$A$1498=AT$129,ROW(Database_Prop!$B$2:$B$1498)-ROW(Database_Prop!$B$2)+1),ROWS(Database_Prop!Q$2:'Database_Prop'!Q81))),\"\")","v":""},{"$f":"IFERROR(INDEX(Database_Prop!$B$2:$B$1498,SMALL(IF(Database_Prop!$A$2:$A$1498=AU$129,ROW(Database_Prop!$B$2:$B$1498)-ROW(Database_Prop!$B$2)+1),ROWS(Database_Prop!R$2:'Database_Prop'!R81))),\"\")","v":""},{"$f":"IFERROR(INDEX(Database_Prop!$B$2:$B$1498,SMALL(IF(Database_Prop!$A$2:$A$1498=AV$129,ROW(Database_Prop!$B$2:$B$1498)-ROW(Database_Prop!$B$2)+1),ROWS(Database_Prop!S$2:'Database_Prop'!S81))),\"\")","v":""},{"$f":"IFERROR(INDEX(Database_Prop!$B$2:$B$1498,SMALL(IF(Database_Prop!$A$2:$A$1498=AW$129,ROW(Database_Prop!$B$2:$B$1498)-ROW(Database_Prop!$B$2)+1),ROWS(Database_Prop!T$2:'Database_Prop'!T81))),\"\")","v":""},{"$f":"IFERROR(INDEX(Database_Prop!$B$2:$B$1498,SMALL(IF(Database_Prop!$A$2:$A$1498=AX$129,ROW(Database_Prop!$B$2:$B$1498)-ROW(Database_Prop!$B$2)+1),ROWS(Database_Prop!U$2:'Database_Prop'!U81))),\"\")","v":""},{"$f":"IFERROR(INDEX(Database_Prop!$B$2:$B$1498,SMALL(IF(Database_Prop!$A$2:$A$1498=AY$129,ROW(Database_Prop!$B$2:$B$1498)-ROW(Database_Prop!$B$2)+1),ROWS(Database_Prop!V$2:'Database_Prop'!V81))),\"\")","v":""},{"$f":"IFERROR(INDEX(Database_Prop!$B$2:$B$1498,SMALL(IF(Database_Prop!$A$2:$A$1498=AZ$129,ROW(Database_Prop!$B$2:$B$1498)-ROW(Database_Prop!$B$2)+1),ROWS(Database_Prop!W$2:'Database_Prop'!W81))),\"\")","v":""},{"$f":"IFERROR(INDEX(Database_Prop!$B$2:$B$1498,SMALL(IF(Database_Prop!$A$2:$A$1498=BA$129,ROW(Database_Prop!$B$2:$B$1498)-ROW(Database_Prop!$B$2)+1),ROWS(Database_Prop!X$2:'Database_Prop'!X81))),\"\")","v":""},{"$f":"IFERROR(INDEX(Database_Prop!$B$2:$B$1498,SMALL(IF(Database_Prop!$A$2:$A$1498=BB$129,ROW(Database_Prop!$B$2:$B$1498)-ROW(Database_Prop!$B$2)+1),ROWS(Database_Prop!Y$2:'Database_Prop'!Y81))),\"\")","v":""},{"$f":"IFERROR(INDEX(Database_Prop!$B$2:$B$1498,SMALL(IF(Database_Prop!$A$2:$A$1498=BC$129,ROW(Database_Prop!$B$2:$B$1498)-ROW(Database_Prop!$B$2)+1),ROWS(Database_Prop!Z$2:'Database_Prop'!Z81))),\"\")","v":""},null,"Ghana","Africa"]
[null,null,null,null,null,null,null,null,null,null,null,null,null,null,null,null,null,null,null,null,null,null,null,null,null,null,null,null,null,null,82,{"$f":"IFERROR(INDEX(Database_Prop!$B$2:$B$1498,SMALL(IF(Database_Prop!$A$2:$A$1498=AF$129,ROW(Database_Prop!$B$2:$B$1498)-ROW(Database_Prop!$B$2)+1),ROWS(Database_Prop!C$2:'Database_Prop'!C82))),\"\")","v":""},{"$f":"IFERROR(INDEX(Database_Prop!$B$2:$B$1498,SMALL(IF(Database_Prop!$A$2:$A$1498=AG$129,ROW(Database_Prop!$B$2:$B$1498)-ROW(Database_Prop!$B$2)+1),ROWS(Database_Prop!D$2:'Database_Prop'!D82))),\"\")","v":""},{"$f":"IFERROR(INDEX(Database_Prop!$B$2:$B$1498,SMALL(IF(Database_Prop!$A$2:$A$1498=AH$129,ROW(Database_Prop!$B$2:$B$1498)-ROW(Database_Prop!$B$2)+1),ROWS(Database_Prop!E$2:'Database_Prop'!E82))),\"\")","v":""},{"$f":"IFERROR(INDEX(Database_Prop!$B$2:$B$1498,SMALL(IF(Database_Prop!$A$2:$A$1498=AI$129,ROW(Database_Prop!$B$2:$B$1498)-ROW(Database_Prop!$B$2)+1),ROWS(Database_Prop!F$2:'Database_Prop'!F82))),\"\")","v":""},{"$f":"IFERROR(INDEX(Database_Prop!$B$2:$B$1498,SMALL(IF(Database_Prop!$A$2:$A$1498=AJ$129,ROW(Database_Prop!$B$2:$B$1498)-ROW(Database_Prop!$B$2)+1),ROWS(Database_Prop!G$2:'Database_Prop'!G82))),\"\")","v":""},{"$f":"IFERROR(INDEX(Database_Prop!$B$2:$B$1498,SMALL(IF(Database_Prop!$A$2:$A$1498=AK$129,ROW(Database_Prop!$B$2:$B$1498)-ROW(Database_Prop!$B$2)+1),ROWS(Database_Prop!H$2:'Database_Prop'!H82))),\"\")","v":""},{"$f":"IFERROR(INDEX(Database_Prop!$B$2:$B$1498,SMALL(IF(Database_Prop!$A$2:$A$1498=AL$129,ROW(Database_Prop!$B$2:$B$1498)-ROW(Database_Prop!$B$2)+1),ROWS(Database_Prop!I$2:'Database_Prop'!I82))),\"\")","v":""},{"$f":"IFERROR(INDEX(Database_Prop!$B$2:$B$1498,SMALL(IF(Database_Prop!$A$2:$A$1498=AM$129,ROW(Database_Prop!$B$2:$B$1498)-ROW(Database_Prop!$B$2)+1),ROWS(Database_Prop!J$2:'Database_Prop'!J82))),\"\")","v":""},{"$f":"IFERROR(INDEX(Database_Prop!$B$2:$B$1498,SMALL(IF(Database_Prop!$A$2:$A$1498=AN$129,ROW(Database_Prop!$B$2:$B$1498)-ROW(Database_Prop!$B$2)+1),ROWS(Database_Prop!K$2:'Database_Prop'!K82))),\"\")","v":""},{"$f":"IFERROR(INDEX(Database_Prop!$B$2:$B$1498,SMALL(IF(Database_Prop!$A$2:$A$1498=AO$129,ROW(Database_Prop!$B$2:$B$1498)-ROW(Database_Prop!$B$2)+1),ROWS(Database_Prop!L$2:'Database_Prop'!L82))),\"\")","v":""},{"$f":"IFERROR(INDEX(Database_Prop!$B$2:$B$1498,SMALL(IF(Database_Prop!$A$2:$A$1498=AP$129,ROW(Database_Prop!$B$2:$B$1498)-ROW(Database_Prop!$B$2)+1),ROWS(Database_Prop!M$2:'Database_Prop'!M82))),\"\")","v":""},{"$f":"IFERROR(INDEX(Database_Prop!$B$2:$B$1498,SMALL(IF(Database_Prop!$A$2:$A$1498=AQ$129,ROW(Database_Prop!$B$2:$B$1498)-ROW(Database_Prop!$B$2)+1),ROWS(Database_Prop!N$2:'Database_Prop'!N82))),\"\")","v":""},{"$f":"IFERROR(INDEX(Database_Prop!$B$2:$B$1498,SMALL(IF(Database_Prop!$A$2:$A$1498=AR$129,ROW(Database_Prop!$B$2:$B$1498)-ROW(Database_Prop!$B$2)+1),ROWS(Database_Prop!O$2:'Database_Prop'!O82))),\"\")","v":""},{"$f":"IFERROR(INDEX(Database_Prop!$B$2:$B$1498,SMALL(IF(Database_Prop!$A$2:$A$1498=AS$129,ROW(Database_Prop!$B$2:$B$1498)-ROW(Database_Prop!$B$2)+1),ROWS(Database_Prop!P$2:'Database_Prop'!P82))),\"\")","v":""},{"$f":"IFERROR(INDEX(Database_Prop!$B$2:$B$1498,SMALL(IF(Database_Prop!$A$2:$A$1498=AT$129,ROW(Database_Prop!$B$2:$B$1498)-ROW(Database_Prop!$B$2)+1),ROWS(Database_Prop!Q$2:'Database_Prop'!Q82))),\"\")","v":""},{"$f":"IFERROR(INDEX(Database_Prop!$B$2:$B$1498,SMALL(IF(Database_Prop!$A$2:$A$1498=AU$129,ROW(Database_Prop!$B$2:$B$1498)-ROW(Database_Prop!$B$2)+1),ROWS(Database_Prop!R$2:'Database_Prop'!R82))),\"\")","v":""},{"$f":"IFERROR(INDEX(Database_Prop!$B$2:$B$1498,SMALL(IF(Database_Prop!$A$2:$A$1498=AV$129,ROW(Database_Prop!$B$2:$B$1498)-ROW(Database_Prop!$B$2)+1),ROWS(Database_Prop!S$2:'Database_Prop'!S82))),\"\")","v":""},{"$f":"IFERROR(INDEX(Database_Prop!$B$2:$B$1498,SMALL(IF(Database_Prop!$A$2:$A$1498=AW$129,ROW(Database_Prop!$B$2:$B$1498)-ROW(Database_Prop!$B$2)+1),ROWS(Database_Prop!T$2:'Database_Prop'!T82))),\"\")","v":""},{"$f":"IFERROR(INDEX(Database_Prop!$B$2:$B$1498,SMALL(IF(Database_Prop!$A$2:$A$1498=AX$129,ROW(Database_Prop!$B$2:$B$1498)-ROW(Database_Prop!$B$2)+1),ROWS(Database_Prop!U$2:'Database_Prop'!U82))),\"\")","v":""},{"$f":"IFERROR(INDEX(Database_Prop!$B$2:$B$1498,SMALL(IF(Database_Prop!$A$2:$A$1498=AY$129,ROW(Database_Prop!$B$2:$B$1498)-ROW(Database_Prop!$B$2)+1),ROWS(Database_Prop!V$2:'Database_Prop'!V82))),\"\")","v":""},{"$f":"IFERROR(INDEX(Database_Prop!$B$2:$B$1498,SMALL(IF(Database_Prop!$A$2:$A$1498=AZ$129,ROW(Database_Prop!$B$2:$B$1498)-ROW(Database_Prop!$B$2)+1),ROWS(Database_Prop!W$2:'Database_Prop'!W82))),\"\")","v":""},{"$f":"IFERROR(INDEX(Database_Prop!$B$2:$B$1498,SMALL(IF(Database_Prop!$A$2:$A$1498=BA$129,ROW(Database_Prop!$B$2:$B$1498)-ROW(Database_Prop!$B$2)+1),ROWS(Database_Prop!X$2:'Database_Prop'!X82))),\"\")","v":""},{"$f":"IFERROR(INDEX(Database_Prop!$B$2:$B$1498,SMALL(IF(Database_Prop!$A$2:$A$1498=BB$129,ROW(Database_Prop!$B$2:$B$1498)-ROW(Database_Prop!$B$2)+1),ROWS(Database_Prop!Y$2:'Database_Prop'!Y82))),\"\")","v":""},{"$f":"IFERROR(INDEX(Database_Prop!$B$2:$B$1498,SMALL(IF(Database_Prop!$A$2:$A$1498=BC$129,ROW(Database_Prop!$B$2:$B$1498)-ROW(Database_Prop!$B$2)+1),ROWS(Database_Prop!Z$2:'Database_Prop'!Z82))),\"\")","v":""},null,"Gibraltar","Western Europe"]
[null,null,null,null,null,null,null,null,null,null,null,null,null,null,null,null,null,null,null,null,null,null,null,null,null,null,null,null,null,null,83,{"$f":"IFERROR(INDEX(Database_Prop!$B$2:$B$1498,SMALL(IF(Database_Prop!$A$2:$A$1498=AF$129,ROW(Database_Prop!$B$2:$B$1498)-ROW(Database_Prop!$B$2)+1),ROWS(Database_Prop!C$2:'Database_Prop'!C83))),\"\")","v":""},{"$f":"IFERROR(INDEX(Database_Prop!$B$2:$B$1498,SMALL(IF(Database_Prop!$A$2:$A$1498=AG$129,ROW(Database_Prop!$B$2:$B$1498)-ROW(Database_Prop!$B$2)+1),ROWS(Database_Prop!D$2:'Database_Prop'!D83))),\"\")","v":""},{"$f":"IFERROR(INDEX(Database_Prop!$B$2:$B$1498,SMALL(IF(Database_Prop!$A$2:$A$1498=AH$129,ROW(Database_Prop!$B$2:$B$1498)-ROW(Database_Prop!$B$2)+1),ROWS(Database_Prop!E$2:'Database_Prop'!E83))),\"\")","v":""},{"$f":"IFERROR(INDEX(Database_Prop!$B$2:$B$1498,SMALL(IF(Database_Prop!$A$2:$A$1498=AI$129,ROW(Database_Prop!$B$2:$B$1498)-ROW(Database_Prop!$B$2)+1),ROWS(Database_Prop!F$2:'Database_Prop'!F83))),\"\")","v":""},{"$f":"IFERROR(INDEX(Database_Prop!$B$2:$B$1498,SMALL(IF(Database_Prop!$A$2:$A$1498=AJ$129,ROW(Database_Prop!$B$2:$B$1498)-ROW(Database_Prop!$B$2)+1),ROWS(Database_Prop!G$2:'Database_Prop'!G83))),\"\")","v":""},{"$f":"IFERROR(INDEX(Database_Prop!$B$2:$B$1498,SMALL(IF(Database_Prop!$A$2:$A$1498=AK$129,ROW(Database_Prop!$B$2:$B$1498)-ROW(Database_Prop!$B$2)+1),ROWS(Database_Prop!H$2:'Database_Prop'!H83))),\"\")","v":""},{"$f":"IFERROR(INDEX(Database_Prop!$B$2:$B$1498,SMALL(IF(Database_Prop!$A$2:$A$1498=AL$129,ROW(Database_Prop!$B$2:$B$1498)-ROW(Database_Prop!$B$2)+1),ROWS(Database_Prop!I$2:'Database_Prop'!I83))),\"\")","v":""},{"$f":"IFERROR(INDEX(Database_Prop!$B$2:$B$1498,SMALL(IF(Database_Prop!$A$2:$A$1498=AM$129,ROW(Database_Prop!$B$2:$B$1498)-ROW(Database_Prop!$B$2)+1),ROWS(Database_Prop!J$2:'Database_Prop'!J83))),\"\")","v":""},{"$f":"IFERROR(INDEX(Database_Prop!$B$2:$B$1498,SMALL(IF(Database_Prop!$A$2:$A$1498=AN$129,ROW(Database_Prop!$B$2:$B$1498)-ROW(Database_Prop!$B$2)+1),ROWS(Database_Prop!K$2:'Database_Prop'!K83))),\"\")","v":""},{"$f":"IFERROR(INDEX(Database_Prop!$B$2:$B$1498,SMALL(IF(Database_Prop!$A$2:$A$1498=AO$129,ROW(Database_Prop!$B$2:$B$1498)-ROW(Database_Prop!$B$2)+1),ROWS(Database_Prop!L$2:'Database_Prop'!L83))),\"\")","v":""},{"$f":"IFERROR(INDEX(Database_Prop!$B$2:$B$1498,SMALL(IF(Database_Prop!$A$2:$A$1498=AP$129,ROW(Database_Prop!$B$2:$B$1498)-ROW(Database_Prop!$B$2)+1),ROWS(Database_Prop!M$2:'Database_Prop'!M83))),\"\")","v":""},{"$f":"IFERROR(INDEX(Database_Prop!$B$2:$B$1498,SMALL(IF(Database_Prop!$A$2:$A$1498=AQ$129,ROW(Database_Prop!$B$2:$B$1498)-ROW(Database_Prop!$B$2)+1),ROWS(Database_Prop!N$2:'Database_Prop'!N83))),\"\")","v":""},{"$f":"IFERROR(INDEX(Database_Prop!$B$2:$B$1498,SMALL(IF(Database_Prop!$A$2:$A$1498=AR$129,ROW(Database_Prop!$B$2:$B$1498)-ROW(Database_Prop!$B$2)+1),ROWS(Database_Prop!O$2:'Database_Prop'!O83))),\"\")","v":""},{"$f":"IFERROR(INDEX(Database_Prop!$B$2:$B$1498,SMALL(IF(Database_Prop!$A$2:$A$1498=AS$129,ROW(Database_Prop!$B$2:$B$1498)-ROW(Database_Prop!$B$2)+1),ROWS(Database_Prop!P$2:'Database_Prop'!P83))),\"\")","v":""},{"$f":"IFERROR(INDEX(Database_Prop!$B$2:$B$1498,SMALL(IF(Database_Prop!$A$2:$A$1498=AT$129,ROW(Database_Prop!$B$2:$B$1498)-ROW(Database_Prop!$B$2)+1),ROWS(Database_Prop!Q$2:'Database_Prop'!Q83))),\"\")","v":""},{"$f":"IFERROR(INDEX(Database_Prop!$B$2:$B$1498,SMALL(IF(Database_Prop!$A$2:$A$1498=AU$129,ROW(Database_Prop!$B$2:$B$1498)-ROW(Database_Prop!$B$2)+1),ROWS(Database_Prop!R$2:'Database_Prop'!R83))),\"\")","v":""},{"$f":"IFERROR(INDEX(Database_Prop!$B$2:$B$1498,SMALL(IF(Database_Prop!$A$2:$A$1498=AV$129,ROW(Database_Prop!$B$2:$B$1498)-ROW(Database_Prop!$B$2)+1),ROWS(Database_Prop!S$2:'Database_Prop'!S83))),\"\")","v":""},{"$f":"IFERROR(INDEX(Database_Prop!$B$2:$B$1498,SMALL(IF(Database_Prop!$A$2:$A$1498=AW$129,ROW(Database_Prop!$B$2:$B$1498)-ROW(Database_Prop!$B$2)+1),ROWS(Database_Prop!T$2:'Database_Prop'!T83))),\"\")","v":""},{"$f":"IFERROR(INDEX(Database_Prop!$B$2:$B$1498,SMALL(IF(Database_Prop!$A$2:$A$1498=AX$129,ROW(Database_Prop!$B$2:$B$1498)-ROW(Database_Prop!$B$2)+1),ROWS(Database_Prop!U$2:'Database_Prop'!U83))),\"\")","v":""},{"$f":"IFERROR(INDEX(Database_Prop!$B$2:$B$1498,SMALL(IF(Database_Prop!$A$2:$A$1498=AY$129,ROW(Database_Prop!$B$2:$B$1498)-ROW(Database_Prop!$B$2)+1),ROWS(Database_Prop!V$2:'Database_Prop'!V83))),\"\")","v":""},{"$f":"IFERROR(INDEX(Database_Prop!$B$2:$B$1498,SMALL(IF(Database_Prop!$A$2:$A$1498=AZ$129,ROW(Database_Prop!$B$2:$B$1498)-ROW(Database_Prop!$B$2)+1),ROWS(Database_Prop!W$2:'Database_Prop'!W83))),\"\")","v":""},{"$f":"IFERROR(INDEX(Database_Prop!$B$2:$B$1498,SMALL(IF(Database_Prop!$A$2:$A$1498=BA$129,ROW(Database_Prop!$B$2:$B$1498)-ROW(Database_Prop!$B$2)+1),ROWS(Database_Prop!X$2:'Database_Prop'!X83))),\"\")","v":""},{"$f":"IFERROR(INDEX(Database_Prop!$B$2:$B$1498,SMALL(IF(Database_Prop!$A$2:$A$1498=BB$129,ROW(Database_Prop!$B$2:$B$1498)-ROW(Database_Prop!$B$2)+1),ROWS(Database_Prop!Y$2:'Database_Prop'!Y83))),\"\")","v":""},{"$f":"IFERROR(INDEX(Database_Prop!$B$2:$B$1498,SMALL(IF(Database_Prop!$A$2:$A$1498=BC$129,ROW(Database_Prop!$B$2:$B$1498)-ROW(Database_Prop!$B$2)+1),ROWS(Database_Prop!Z$2:'Database_Prop'!Z83))),\"\")","v":""},null,"Greece","Western Europe"]
[null,null,null,null,null,null,null,null,null,null,null,null,null,null,null,null,null,null,null,null,null,null,null,null,null,null,null,null,null,null,84,{"$f":"IFERROR(INDEX(Database_Prop!$B$2:$B$1498,SMALL(IF(Database_Prop!$A$2:$A$1498=AF$129,ROW(Database_Prop!$B$2:$B$1498)-ROW(Database_Prop!$B$2)+1),ROWS(Database_Prop!C$2:'Database_Prop'!C84))),\"\")","v":""},{"$f":"IFERROR(INDEX(Database_Prop!$B$2:$B$1498,SMALL(IF(Database_Prop!$A$2:$A$1498=AG$129,ROW(Database_Prop!$B$2:$B$1498)-ROW(Database_Prop!$B$2)+1),ROWS(Database_Prop!D$2:'Database_Prop'!D84))),\"\")","v":""},{"$f":"IFERROR(INDEX(Database_Prop!$B$2:$B$1498,SMALL(IF(Database_Prop!$A$2:$A$1498=AH$129,ROW(Database_Prop!$B$2:$B$1498)-ROW(Database_Prop!$B$2)+1),ROWS(Database_Prop!E$2:'Database_Prop'!E84))),\"\")","v":""},{"$f":"IFERROR(INDEX(Database_Prop!$B$2:$B$1498,SMALL(IF(Database_Prop!$A$2:$A$1498=AI$129,ROW(Database_Prop!$B$2:$B$1498)-ROW(Database_Prop!$B$2)+1),ROWS(Database_Prop!F$2:'Database_Prop'!F84))),\"\")","v":""},{"$f":"IFERROR(INDEX(Database_Prop!$B$2:$B$1498,SMALL(IF(Database_Prop!$A$2:$A$1498=AJ$129,ROW(Database_Prop!$B$2:$B$1498)-ROW(Database_Prop!$B$2)+1),ROWS(Database_Prop!G$2:'Database_Prop'!G84))),\"\")","v":""},{"$f":"IFERROR(INDEX(Database_Prop!$B$2:$B$1498,SMALL(IF(Database_Prop!$A$2:$A$1498=AK$129,ROW(Database_Prop!$B$2:$B$1498)-ROW(Database_Prop!$B$2)+1),ROWS(Database_Prop!H$2:'Database_Prop'!H84))),\"\")","v":""},{"$f":"IFERROR(INDEX(Database_Prop!$B$2:$B$1498,SMALL(IF(Database_Prop!$A$2:$A$1498=AL$129,ROW(Database_Prop!$B$2:$B$1498)-ROW(Database_Prop!$B$2)+1),ROWS(Database_Prop!I$2:'Database_Prop'!I84))),\"\")","v":""},{"$f":"IFERROR(INDEX(Database_Prop!$B$2:$B$1498,SMALL(IF(Database_Prop!$A$2:$A$1498=AM$129,ROW(Database_Prop!$B$2:$B$1498)-ROW(Database_Prop!$B$2)+1),ROWS(Database_Prop!J$2:'Database_Prop'!J84))),\"\")","v":""},{"$f":"IFERROR(INDEX(Database_Prop!$B$2:$B$1498,SMALL(IF(Database_Prop!$A$2:$A$1498=AN$129,ROW(Database_Prop!$B$2:$B$1498)-ROW(Database_Prop!$B$2)+1),ROWS(Database_Prop!K$2:'Database_Prop'!K84))),\"\")","v":""},{"$f":"IFERROR(INDEX(Database_Prop!$B$2:$B$1498,SMALL(IF(Database_Prop!$A$2:$A$1498=AO$129,ROW(Database_Prop!$B$2:$B$1498)-ROW(Database_Prop!$B$2)+1),ROWS(Database_Prop!L$2:'Database_Prop'!L84))),\"\")","v":""},{"$f":"IFERROR(INDEX(Database_Prop!$B$2:$B$1498,SMALL(IF(Database_Prop!$A$2:$A$1498=AP$129,ROW(Database_Prop!$B$2:$B$1498)-ROW(Database_Prop!$B$2)+1),ROWS(Database_Prop!M$2:'Database_Prop'!M84))),\"\")","v":""},{"$f":"IFERROR(INDEX(Database_Prop!$B$2:$B$1498,SMALL(IF(Database_Prop!$A$2:$A$1498=AQ$129,ROW(Database_Prop!$B$2:$B$1498)-ROW(Database_Prop!$B$2)+1),ROWS(Database_Prop!N$2:'Database_Prop'!N84))),\"\")","v":""},{"$f":"IFERROR(INDEX(Database_Prop!$B$2:$B$1498,SMALL(IF(Database_Prop!$A$2:$A$1498=AR$129,ROW(Database_Prop!$B$2:$B$1498)-ROW(Database_Prop!$B$2)+1),ROWS(Database_Prop!O$2:'Database_Prop'!O84))),\"\")","v":""},{"$f":"IFERROR(INDEX(Database_Prop!$B$2:$B$1498,SMALL(IF(Database_Prop!$A$2:$A$1498=AS$129,ROW(Database_Prop!$B$2:$B$1498)-ROW(Database_Prop!$B$2)+1),ROWS(Database_Prop!P$2:'Database_Prop'!P84))),\"\")","v":""},{"$f":"IFERROR(INDEX(Database_Prop!$B$2:$B$1498,SMALL(IF(Database_Prop!$A$2:$A$1498=AT$129,ROW(Database_Prop!$B$2:$B$1498)-ROW(Database_Prop!$B$2)+1),ROWS(Database_Prop!Q$2:'Database_Prop'!Q84))),\"\")","v":""},{"$f":"IFERROR(INDEX(Database_Prop!$B$2:$B$1498,SMALL(IF(Database_Prop!$A$2:$A$1498=AU$129,ROW(Database_Prop!$B$2:$B$1498)-ROW(Database_Prop!$B$2)+1),ROWS(Database_Prop!R$2:'Database_Prop'!R84))),\"\")","v":""},{"$f":"IFERROR(INDEX(Database_Prop!$B$2:$B$1498,SMALL(IF(Database_Prop!$A$2:$A$1498=AV$129,ROW(Database_Prop!$B$2:$B$1498)-ROW(Database_Prop!$B$2)+1),ROWS(Database_Prop!S$2:'Database_Prop'!S84))),\"\")","v":""},{"$f":"IFERROR(INDEX(Database_Prop!$B$2:$B$1498,SMALL(IF(Database_Prop!$A$2:$A$1498=AW$129,ROW(Database_Prop!$B$2:$B$1498)-ROW(Database_Prop!$B$2)+1),ROWS(Database_Prop!T$2:'Database_Prop'!T84))),\"\")","v":""},{"$f":"IFERROR(INDEX(Database_Prop!$B$2:$B$1498,SMALL(IF(Database_Prop!$A$2:$A$1498=AX$129,ROW(Database_Prop!$B$2:$B$1498)-ROW(Database_Prop!$B$2)+1),ROWS(Database_Prop!U$2:'Database_Prop'!U84))),\"\")","v":""},{"$f":"IFERROR(INDEX(Database_Prop!$B$2:$B$1498,SMALL(IF(Database_Prop!$A$2:$A$1498=AY$129,ROW(Database_Prop!$B$2:$B$1498)-ROW(Database_Prop!$B$2)+1),ROWS(Database_Prop!V$2:'Database_Prop'!V84))),\"\")","v":""},{"$f":"IFERROR(INDEX(Database_Prop!$B$2:$B$1498,SMALL(IF(Database_Prop!$A$2:$A$1498=AZ$129,ROW(Database_Prop!$B$2:$B$1498)-ROW(Database_Prop!$B$2)+1),ROWS(Database_Prop!W$2:'Database_Prop'!W84))),\"\")","v":""},{"$f":"IFERROR(INDEX(Database_Prop!$B$2:$B$1498,SMALL(IF(Database_Prop!$A$2:$A$1498=BA$129,ROW(Database_Prop!$B$2:$B$1498)-ROW(Database_Prop!$B$2)+1),ROWS(Database_Prop!X$2:'Database_Prop'!X84))),\"\")","v":""},{"$f":"IFERROR(INDEX(Database_Prop!$B$2:$B$1498,SMALL(IF(Database_Prop!$A$2:$A$1498=BB$129,ROW(Database_Prop!$B$2:$B$1498)-ROW(Database_Prop!$B$2)+1),ROWS(Database_Prop!Y$2:'Database_Prop'!Y84))),\"\")","v":""},{"$f":"IFERROR(INDEX(Database_Prop!$B$2:$B$1498,SMALL(IF(Database_Prop!$A$2:$A$1498=BC$129,ROW(Database_Prop!$B$2:$B$1498)-ROW(Database_Prop!$B$2)+1),ROWS(Database_Prop!Z$2:'Database_Prop'!Z84))),\"\")","v":""},null,"Greenland","North America"]
[null,null,null,null,null,null,null,null,null,null,null,null,null,null,null,null,null,null,null,null,null,null,null,null,null,null,null,null,null,null,85,{"$f":"IFERROR(INDEX(Database_Prop!$B$2:$B$1498,SMALL(IF(Database_Prop!$A$2:$A$1498=AF$129,ROW(Database_Prop!$B$2:$B$1498)-ROW(Database_Prop!$B$2)+1),ROWS(Database_Prop!C$2:'Database_Prop'!C85))),\"\")","v":""},{"$f":"IFERROR(INDEX(Database_Prop!$B$2:$B$1498,SMALL(IF(Database_Prop!$A$2:$A$1498=AG$129,ROW(Database_Prop!$B$2:$B$1498)-ROW(Database_Prop!$B$2)+1),ROWS(Database_Prop!D$2:'Database_Prop'!D85))),\"\")","v":""},{"$f":"IFERROR(INDEX(Database_Prop!$B$2:$B$1498,SMALL(IF(Database_Prop!$A$2:$A$1498=AH$129,ROW(Database_Prop!$B$2:$B$1498)-ROW(Database_Prop!$B$2)+1),ROWS(Database_Prop!E$2:'Database_Prop'!E85))),\"\")","v":""},{"$f":"IFERROR(INDEX(Database_Prop!$B$2:$B$1498,SMALL(IF(Database_Prop!$A$2:$A$1498=AI$129,ROW(Database_Prop!$B$2:$B$1498)-ROW(Database_Prop!$B$2)+1),ROWS(Database_Prop!F$2:'Database_Prop'!F85))),\"\")","v":""},{"$f":"IFERROR(INDEX(Database_Prop!$B$2:$B$1498,SMALL(IF(Database_Prop!$A$2:$A$1498=AJ$129,ROW(Database_Prop!$B$2:$B$1498)-ROW(Database_Prop!$B$2)+1),ROWS(Database_Prop!G$2:'Database_Prop'!G85))),\"\")","v":""},{"$f":"IFERROR(INDEX(Database_Prop!$B$2:$B$1498,SMALL(IF(Database_Prop!$A$2:$A$1498=AK$129,ROW(Database_Prop!$B$2:$B$1498)-ROW(Database_Prop!$B$2)+1),ROWS(Database_Prop!H$2:'Database_Prop'!H85))),\"\")","v":""},{"$f":"IFERROR(INDEX(Database_Prop!$B$2:$B$1498,SMALL(IF(Database_Prop!$A$2:$A$1498=AL$129,ROW(Database_Prop!$B$2:$B$1498)-ROW(Database_Prop!$B$2)+1),ROWS(Database_Prop!I$2:'Database_Prop'!I85))),\"\")","v":""},{"$f":"IFERROR(INDEX(Database_Prop!$B$2:$B$1498,SMALL(IF(Database_Prop!$A$2:$A$1498=AM$129,ROW(Database_Prop!$B$2:$B$1498)-ROW(Database_Prop!$B$2)+1),ROWS(Database_Prop!J$2:'Database_Prop'!J85))),\"\")","v":""},{"$f":"IFERROR(INDEX(Database_Prop!$B$2:$B$1498,SMALL(IF(Database_Prop!$A$2:$A$1498=AN$129,ROW(Database_Prop!$B$2:$B$1498)-ROW(Database_Prop!$B$2)+1),ROWS(Database_Prop!K$2:'Database_Prop'!K85))),\"\")","v":""},{"$f":"IFERROR(INDEX(Database_Prop!$B$2:$B$1498,SMALL(IF(Database_Prop!$A$2:$A$1498=AO$129,ROW(Database_Prop!$B$2:$B$1498)-ROW(Database_Prop!$B$2)+1),ROWS(Database_Prop!L$2:'Database_Prop'!L85))),\"\")","v":""},{"$f":"IFERROR(INDEX(Database_Prop!$B$2:$B$1498,SMALL(IF(Database_Prop!$A$2:$A$1498=AP$129,ROW(Database_Prop!$B$2:$B$1498)-ROW(Database_Prop!$B$2)+1),ROWS(Database_Prop!M$2:'Database_Prop'!M85))),\"\")","v":""},{"$f":"IFERROR(INDEX(Database_Prop!$B$2:$B$1498,SMALL(IF(Database_Prop!$A$2:$A$1498=AQ$129,ROW(Database_Prop!$B$2:$B$1498)-ROW(Database_Prop!$B$2)+1),ROWS(Database_Prop!N$2:'Database_Prop'!N85))),\"\")","v":""},{"$f":"IFERROR(INDEX(Database_Prop!$B$2:$B$1498,SMALL(IF(Database_Prop!$A$2:$A$1498=AR$129,ROW(Database_Prop!$B$2:$B$1498)-ROW(Database_Prop!$B$2)+1),ROWS(Database_Prop!O$2:'Database_Prop'!O85))),\"\")","v":""},{"$f":"IFERROR(INDEX(Database_Prop!$B$2:$B$1498,SMALL(IF(Database_Prop!$A$2:$A$1498=AS$129,ROW(Database_Prop!$B$2:$B$1498)-ROW(Database_Prop!$B$2)+1),ROWS(Database_Prop!P$2:'Database_Prop'!P85))),\"\")","v":""},{"$f":"IFERROR(INDEX(Database_Prop!$B$2:$B$1498,SMALL(IF(Database_Prop!$A$2:$A$1498=AT$129,ROW(Database_Prop!$B$2:$B$1498)-ROW(Database_Prop!$B$2)+1),ROWS(Database_Prop!Q$2:'Database_Prop'!Q85))),\"\")","v":""},{"$f":"IFERROR(INDEX(Database_Prop!$B$2:$B$1498,SMALL(IF(Database_Prop!$A$2:$A$1498=AU$129,ROW(Database_Prop!$B$2:$B$1498)-ROW(Database_Prop!$B$2)+1),ROWS(Database_Prop!R$2:'Database_Prop'!R85))),\"\")","v":""},{"$f":"IFERROR(INDEX(Database_Prop!$B$2:$B$1498,SMALL(IF(Database_Prop!$A$2:$A$1498=AV$129,ROW(Database_Prop!$B$2:$B$1498)-ROW(Database_Prop!$B$2)+1),ROWS(Database_Prop!S$2:'Database_Prop'!S85))),\"\")","v":""},{"$f":"IFERROR(INDEX(Database_Prop!$B$2:$B$1498,SMALL(IF(Database_Prop!$A$2:$A$1498=AW$129,ROW(Database_Prop!$B$2:$B$1498)-ROW(Database_Prop!$B$2)+1),ROWS(Database_Prop!T$2:'Database_Prop'!T85))),\"\")","v":""},{"$f":"IFERROR(INDEX(Database_Prop!$B$2:$B$1498,SMALL(IF(Database_Prop!$A$2:$A$1498=AX$129,ROW(Database_Prop!$B$2:$B$1498)-ROW(Database_Prop!$B$2)+1),ROWS(Database_Prop!U$2:'Database_Prop'!U85))),\"\")","v":""},{"$f":"IFERROR(INDEX(Database_Prop!$B$2:$B$1498,SMALL(IF(Database_Prop!$A$2:$A$1498=AY$129,ROW(Database_Prop!$B$2:$B$1498)-ROW(Database_Prop!$B$2)+1),ROWS(Database_Prop!V$2:'Database_Prop'!V85))),\"\")","v":""},{"$f":"IFERROR(INDEX(Database_Prop!$B$2:$B$1498,SMALL(IF(Database_Prop!$A$2:$A$1498=AZ$129,ROW(Database_Prop!$B$2:$B$1498)-ROW(Database_Prop!$B$2)+1),ROWS(Database_Prop!W$2:'Database_Prop'!W85))),\"\")","v":""},{"$f":"IFERROR(INDEX(Database_Prop!$B$2:$B$1498,SMALL(IF(Database_Prop!$A$2:$A$1498=BA$129,ROW(Database_Prop!$B$2:$B$1498)-ROW(Database_Prop!$B$2)+1),ROWS(Database_Prop!X$2:'Database_Prop'!X85))),\"\")","v":""},{"$f":"IFERROR(INDEX(Database_Prop!$B$2:$B$1498,SMALL(IF(Database_Prop!$A$2:$A$1498=BB$129,ROW(Database_Prop!$B$2:$B$1498)-ROW(Database_Prop!$B$2)+1),ROWS(Database_Prop!Y$2:'Database_Prop'!Y85))),\"\")","v":""},{"$f":"IFERROR(INDEX(Database_Prop!$B$2:$B$1498,SMALL(IF(Database_Prop!$A$2:$A$1498=BC$129,ROW(Database_Prop!$B$2:$B$1498)-ROW(Database_Prop!$B$2)+1),ROWS(Database_Prop!Z$2:'Database_Prop'!Z85))),\"\")","v":""},null,"Grenada","Latin America"]
[null,null,null,null,null,null,null,null,null,null,null,null,null,null,null,null,null,null,null,null,null,null,null,null,null,null,null,null,null,null,86,{"$f":"IFERROR(INDEX(Database_Prop!$B$2:$B$1498,SMALL(IF(Database_Prop!$A$2:$A$1498=AF$129,ROW(Database_Prop!$B$2:$B$1498)-ROW(Database_Prop!$B$2)+1),ROWS(Database_Prop!C$2:'Database_Prop'!C86))),\"\")","v":""},{"$f":"IFERROR(INDEX(Database_Prop!$B$2:$B$1498,SMALL(IF(Database_Prop!$A$2:$A$1498=AG$129,ROW(Database_Prop!$B$2:$B$1498)-ROW(Database_Prop!$B$2)+1),ROWS(Database_Prop!D$2:'Database_Prop'!D86))),\"\")","v":""},{"$f":"IFERROR(INDEX(Database_Prop!$B$2:$B$1498,SMALL(IF(Database_Prop!$A$2:$A$1498=AH$129,ROW(Database_Prop!$B$2:$B$1498)-ROW(Database_Prop!$B$2)+1),ROWS(Database_Prop!E$2:'Database_Prop'!E86))),\"\")","v":""},{"$f":"IFERROR(INDEX(Database_Prop!$B$2:$B$1498,SMALL(IF(Database_Prop!$A$2:$A$1498=AI$129,ROW(Database_Prop!$B$2:$B$1498)-ROW(Database_Prop!$B$2)+1),ROWS(Database_Prop!F$2:'Database_Prop'!F86))),\"\")","v":""},{"$f":"IFERROR(INDEX(Database_Prop!$B$2:$B$1498,SMALL(IF(Database_Prop!$A$2:$A$1498=AJ$129,ROW(Database_Prop!$B$2:$B$1498)-ROW(Database_Prop!$B$2)+1),ROWS(Database_Prop!G$2:'Database_Prop'!G86))),\"\")","v":""},{"$f":"IFERROR(INDEX(Database_Prop!$B$2:$B$1498,SMALL(IF(Database_Prop!$A$2:$A$1498=AK$129,ROW(Database_Prop!$B$2:$B$1498)-ROW(Database_Prop!$B$2)+1),ROWS(Database_Prop!H$2:'Database_Prop'!H86))),\"\")","v":""},{"$f":"IFERROR(INDEX(Database_Prop!$B$2:$B$1498,SMALL(IF(Database_Prop!$A$2:$A$1498=AL$129,ROW(Database_Prop!$B$2:$B$1498)-ROW(Database_Prop!$B$2)+1),ROWS(Database_Prop!I$2:'Database_Prop'!I86))),\"\")","v":""},{"$f":"IFERROR(INDEX(Database_Prop!$B$2:$B$1498,SMALL(IF(Database_Prop!$A$2:$A$1498=AM$129,ROW(Database_Prop!$B$2:$B$1498)-ROW(Database_Prop!$B$2)+1),ROWS(Database_Prop!J$2:'Database_Prop'!J86))),\"\")","v":""},{"$f":"IFERROR(INDEX(Database_Prop!$B$2:$B$1498,SMALL(IF(Database_Prop!$A$2:$A$1498=AN$129,ROW(Database_Prop!$B$2:$B$1498)-ROW(Database_Prop!$B$2)+1),ROWS(Database_Prop!K$2:'Database_Prop'!K86))),\"\")","v":""},{"$f":"IFERROR(INDEX(Database_Prop!$B$2:$B$1498,SMALL(IF(Database_Prop!$A$2:$A$1498=AO$129,ROW(Database_Prop!$B$2:$B$1498)-ROW(Database_Prop!$B$2)+1),ROWS(Database_Prop!L$2:'Database_Prop'!L86))),\"\")","v":""},{"$f":"IFERROR(INDEX(Database_Prop!$B$2:$B$1498,SMALL(IF(Database_Prop!$A$2:$A$1498=AP$129,ROW(Database_Prop!$B$2:$B$1498)-ROW(Database_Prop!$B$2)+1),ROWS(Database_Prop!M$2:'Database_Prop'!M86))),\"\")","v":""},{"$f":"IFERROR(INDEX(Database_Prop!$B$2:$B$1498,SMALL(IF(Database_Prop!$A$2:$A$1498=AQ$129,ROW(Database_Prop!$B$2:$B$1498)-ROW(Database_Prop!$B$2)+1),ROWS(Database_Prop!N$2:'Database_Prop'!N86))),\"\")","v":""},{"$f":"IFERROR(INDEX(Database_Prop!$B$2:$B$1498,SMALL(IF(Database_Prop!$A$2:$A$1498=AR$129,ROW(Database_Prop!$B$2:$B$1498)-ROW(Database_Prop!$B$2)+1),ROWS(Database_Prop!O$2:'Database_Prop'!O86))),\"\")","v":""},{"$f":"IFERROR(INDEX(Database_Prop!$B$2:$B$1498,SMALL(IF(Database_Prop!$A$2:$A$1498=AS$129,ROW(Database_Prop!$B$2:$B$1498)-ROW(Database_Prop!$B$2)+1),ROWS(Database_Prop!P$2:'Database_Prop'!P86))),\"\")","v":""},{"$f":"IFERROR(INDEX(Database_Prop!$B$2:$B$1498,SMALL(IF(Database_Prop!$A$2:$A$1498=AT$129,ROW(Database_Prop!$B$2:$B$1498)-ROW(Database_Prop!$B$2)+1),ROWS(Database_Prop!Q$2:'Database_Prop'!Q86))),\"\")","v":""},{"$f":"IFERROR(INDEX(Database_Prop!$B$2:$B$1498,SMALL(IF(Database_Prop!$A$2:$A$1498=AU$129,ROW(Database_Prop!$B$2:$B$1498)-ROW(Database_Prop!$B$2)+1),ROWS(Database_Prop!R$2:'Database_Prop'!R86))),\"\")","v":""},{"$f":"IFERROR(INDEX(Database_Prop!$B$2:$B$1498,SMALL(IF(Database_Prop!$A$2:$A$1498=AV$129,ROW(Database_Prop!$B$2:$B$1498)-ROW(Database_Prop!$B$2)+1),ROWS(Database_Prop!S$2:'Database_Prop'!S86))),\"\")","v":""},{"$f":"IFERROR(INDEX(Database_Prop!$B$2:$B$1498,SMALL(IF(Database_Prop!$A$2:$A$1498=AW$129,ROW(Database_Prop!$B$2:$B$1498)-ROW(Database_Prop!$B$2)+1),ROWS(Database_Prop!T$2:'Database_Prop'!T86))),\"\")","v":""},{"$f":"IFERROR(INDEX(Database_Prop!$B$2:$B$1498,SMALL(IF(Database_Prop!$A$2:$A$1498=AX$129,ROW(Database_Prop!$B$2:$B$1498)-ROW(Database_Prop!$B$2)+1),ROWS(Database_Prop!U$2:'Database_Prop'!U86))),\"\")","v":""},{"$f":"IFERROR(INDEX(Database_Prop!$B$2:$B$1498,SMALL(IF(Database_Prop!$A$2:$A$1498=AY$129,ROW(Database_Prop!$B$2:$B$1498)-ROW(Database_Prop!$B$2)+1),ROWS(Database_Prop!V$2:'Database_Prop'!V86))),\"\")","v":""},{"$f":"IFERROR(INDEX(Database_Prop!$B$2:$B$1498,SMALL(IF(Database_Prop!$A$2:$A$1498=AZ$129,ROW(Database_Prop!$B$2:$B$1498)-ROW(Database_Prop!$B$2)+1),ROWS(Database_Prop!W$2:'Database_Prop'!W86))),\"\")","v":""},{"$f":"IFERROR(INDEX(Database_Prop!$B$2:$B$1498,SMALL(IF(Database_Prop!$A$2:$A$1498=BA$129,ROW(Database_Prop!$B$2:$B$1498)-ROW(Database_Prop!$B$2)+1),ROWS(Database_Prop!X$2:'Database_Prop'!X86))),\"\")","v":""},{"$f":"IFERROR(INDEX(Database_Prop!$B$2:$B$1498,SMALL(IF(Database_Prop!$A$2:$A$1498=BB$129,ROW(Database_Prop!$B$2:$B$1498)-ROW(Database_Prop!$B$2)+1),ROWS(Database_Prop!Y$2:'Database_Prop'!Y86))),\"\")","v":""},{"$f":"IFERROR(INDEX(Database_Prop!$B$2:$B$1498,SMALL(IF(Database_Prop!$A$2:$A$1498=BC$129,ROW(Database_Prop!$B$2:$B$1498)-ROW(Database_Prop!$B$2)+1),ROWS(Database_Prop!Z$2:'Database_Prop'!Z86))),\"\")","v":""},null,"Guadeloupe","Latin America"]
[null,null,null,null,null,null,null,null,null,null,null,null,null,null,null,null,null,null,null,null,null,null,null,null,null,null,null,null,null,null,87,{"$f":"IFERROR(INDEX(Database_Prop!$B$2:$B$1498,SMALL(IF(Database_Prop!$A$2:$A$1498=AF$129,ROW(Database_Prop!$B$2:$B$1498)-ROW(Database_Prop!$B$2)+1),ROWS(Database_Prop!C$2:'Database_Prop'!C87))),\"\")","v":""},{"$f":"IFERROR(INDEX(Database_Prop!$B$2:$B$1498,SMALL(IF(Database_Prop!$A$2:$A$1498=AG$129,ROW(Database_Prop!$B$2:$B$1498)-ROW(Database_Prop!$B$2)+1),ROWS(Database_Prop!D$2:'Database_Prop'!D87))),\"\")","v":""},{"$f":"IFERROR(INDEX(Database_Prop!$B$2:$B$1498,SMALL(IF(Database_Prop!$A$2:$A$1498=AH$129,ROW(Database_Prop!$B$2:$B$1498)-ROW(Database_Prop!$B$2)+1),ROWS(Database_Prop!E$2:'Database_Prop'!E87))),\"\")","v":""},{"$f":"IFERROR(INDEX(Database_Prop!$B$2:$B$1498,SMALL(IF(Database_Prop!$A$2:$A$1498=AI$129,ROW(Database_Prop!$B$2:$B$1498)-ROW(Database_Prop!$B$2)+1),ROWS(Database_Prop!F$2:'Database_Prop'!F87))),\"\")","v":""},{"$f":"IFERROR(INDEX(Database_Prop!$B$2:$B$1498,SMALL(IF(Database_Prop!$A$2:$A$1498=AJ$129,ROW(Database_Prop!$B$2:$B$1498)-ROW(Database_Prop!$B$2)+1),ROWS(Database_Prop!G$2:'Database_Prop'!G87))),\"\")","v":""},{"$f":"IFERROR(INDEX(Database_Prop!$B$2:$B$1498,SMALL(IF(Database_Prop!$A$2:$A$1498=AK$129,ROW(Database_Prop!$B$2:$B$1498)-ROW(Database_Prop!$B$2)+1),ROWS(Database_Prop!H$2:'Database_Prop'!H87))),\"\")","v":""},{"$f":"IFERROR(INDEX(Database_Prop!$B$2:$B$1498,SMALL(IF(Database_Prop!$A$2:$A$1498=AL$129,ROW(Database_Prop!$B$2:$B$1498)-ROW(Database_Prop!$B$2)+1),ROWS(Database_Prop!I$2:'Database_Prop'!I87))),\"\")","v":""},{"$f":"IFERROR(INDEX(Database_Prop!$B$2:$B$1498,SMALL(IF(Database_Prop!$A$2:$A$1498=AM$129,ROW(Database_Prop!$B$2:$B$1498)-ROW(Database_Prop!$B$2)+1),ROWS(Database_Prop!J$2:'Database_Prop'!J87))),\"\")","v":""},{"$f":"IFERROR(INDEX(Database_Prop!$B$2:$B$1498,SMALL(IF(Database_Prop!$A$2:$A$1498=AN$129,ROW(Database_Prop!$B$2:$B$1498)-ROW(Database_Prop!$B$2)+1),ROWS(Database_Prop!K$2:'Database_Prop'!K87))),\"\")","v":""},{"$f":"IFERROR(INDEX(Database_Prop!$B$2:$B$1498,SMALL(IF(Database_Prop!$A$2:$A$1498=AO$129,ROW(Database_Prop!$B$2:$B$1498)-ROW(Database_Prop!$B$2)+1),ROWS(Database_Prop!L$2:'Database_Prop'!L87))),\"\")","v":""},{"$f":"IFERROR(INDEX(Database_Prop!$B$2:$B$1498,SMALL(IF(Database_Prop!$A$2:$A$1498=AP$129,ROW(Database_Prop!$B$2:$B$1498)-ROW(Database_Prop!$B$2)+1),ROWS(Database_Prop!M$2:'Database_Prop'!M87))),\"\")","v":""},{"$f":"IFERROR(INDEX(Database_Prop!$B$2:$B$1498,SMALL(IF(Database_Prop!$A$2:$A$1498=AQ$129,ROW(Database_Prop!$B$2:$B$1498)-ROW(Database_Prop!$B$2)+1),ROWS(Database_Prop!N$2:'Database_Prop'!N87))),\"\")","v":""},{"$f":"IFERROR(INDEX(Database_Prop!$B$2:$B$1498,SMALL(IF(Database_Prop!$A$2:$A$1498=AR$129,ROW(Database_Prop!$B$2:$B$1498)-ROW(Database_Prop!$B$2)+1),ROWS(Database_Prop!O$2:'Database_Prop'!O87))),\"\")","v":""},{"$f":"IFERROR(INDEX(Database_Prop!$B$2:$B$1498,SMALL(IF(Database_Prop!$A$2:$A$1498=AS$129,ROW(Database_Prop!$B$2:$B$1498)-ROW(Database_Prop!$B$2)+1),ROWS(Database_Prop!P$2:'Database_Prop'!P87))),\"\")","v":""},{"$f":"IFERROR(INDEX(Database_Prop!$B$2:$B$1498,SMALL(IF(Database_Prop!$A$2:$A$1498=AT$129,ROW(Database_Prop!$B$2:$B$1498)-ROW(Database_Prop!$B$2)+1),ROWS(Database_Prop!Q$2:'Database_Prop'!Q87))),\"\")","v":""},{"$f":"IFERROR(INDEX(Database_Prop!$B$2:$B$1498,SMALL(IF(Database_Prop!$A$2:$A$1498=AU$129,ROW(Database_Prop!$B$2:$B$1498)-ROW(Database_Prop!$B$2)+1),ROWS(Database_Prop!R$2:'Database_Prop'!R87))),\"\")","v":""},{"$f":"IFERROR(INDEX(Database_Prop!$B$2:$B$1498,SMALL(IF(Database_Prop!$A$2:$A$1498=AV$129,ROW(Database_Prop!$B$2:$B$1498)-ROW(Database_Prop!$B$2)+1),ROWS(Database_Prop!S$2:'Database_Prop'!S87))),\"\")","v":""},{"$f":"IFERROR(INDEX(Database_Prop!$B$2:$B$1498,SMALL(IF(Database_Prop!$A$2:$A$1498=AW$129,ROW(Database_Prop!$B$2:$B$1498)-ROW(Database_Prop!$B$2)+1),ROWS(Database_Prop!T$2:'Database_Prop'!T87))),\"\")","v":""},{"$f":"IFERROR(INDEX(Database_Prop!$B$2:$B$1498,SMALL(IF(Database_Prop!$A$2:$A$1498=AX$129,ROW(Database_Prop!$B$2:$B$1498)-ROW(Database_Prop!$B$2)+1),ROWS(Database_Prop!U$2:'Database_Prop'!U87))),\"\")","v":""},{"$f":"IFERROR(INDEX(Database_Prop!$B$2:$B$1498,SMALL(IF(Database_Prop!$A$2:$A$1498=AY$129,ROW(Database_Prop!$B$2:$B$1498)-ROW(Database_Prop!$B$2)+1),ROWS(Database_Prop!V$2:'Database_Prop'!V87))),\"\")","v":""},{"$f":"IFERROR(INDEX(Database_Prop!$B$2:$B$1498,SMALL(IF(Database_Prop!$A$2:$A$1498=AZ$129,ROW(Database_Prop!$B$2:$B$1498)-ROW(Database_Prop!$B$2)+1),ROWS(Database_Prop!W$2:'Database_Prop'!W87))),\"\")","v":""},{"$f":"IFERROR(INDEX(Database_Prop!$B$2:$B$1498,SMALL(IF(Database_Prop!$A$2:$A$1498=BA$129,ROW(Database_Prop!$B$2:$B$1498)-ROW(Database_Prop!$B$2)+1),ROWS(Database_Prop!X$2:'Database_Prop'!X87))),\"\")","v":""},{"$f":"IFERROR(INDEX(Database_Prop!$B$2:$B$1498,SMALL(IF(Database_Prop!$A$2:$A$1498=BB$129,ROW(Database_Prop!$B$2:$B$1498)-ROW(Database_Prop!$B$2)+1),ROWS(Database_Prop!Y$2:'Database_Prop'!Y87))),\"\")","v":""},{"$f":"IFERROR(INDEX(Database_Prop!$B$2:$B$1498,SMALL(IF(Database_Prop!$A$2:$A$1498=BC$129,ROW(Database_Prop!$B$2:$B$1498)-ROW(Database_Prop!$B$2)+1),ROWS(Database_Prop!Z$2:'Database_Prop'!Z87))),\"\")","v":""},null,"Guam","Oceania"]
[null,null,null,null,null,null,null,null,null,null,null,null,null,null,null,null,null,null,null,null,null,null,null,null,null,null,null,null,null,null,88,{"$f":"IFERROR(INDEX(Database_Prop!$B$2:$B$1498,SMALL(IF(Database_Prop!$A$2:$A$1498=AF$129,ROW(Database_Prop!$B$2:$B$1498)-ROW(Database_Prop!$B$2)+1),ROWS(Database_Prop!C$2:'Database_Prop'!C88))),\"\")","v":""},{"$f":"IFERROR(INDEX(Database_Prop!$B$2:$B$1498,SMALL(IF(Database_Prop!$A$2:$A$1498=AG$129,ROW(Database_Prop!$B$2:$B$1498)-ROW(Database_Prop!$B$2)+1),ROWS(Database_Prop!D$2:'Database_Prop'!D88))),\"\")","v":""},{"$f":"IFERROR(INDEX(Database_Prop!$B$2:$B$1498,SMALL(IF(Database_Prop!$A$2:$A$1498=AH$129,ROW(Database_Prop!$B$2:$B$1498)-ROW(Database_Prop!$B$2)+1),ROWS(Database_Prop!E$2:'Database_Prop'!E88))),\"\")","v":""},{"$f":"IFERROR(INDEX(Database_Prop!$B$2:$B$1498,SMALL(IF(Database_Prop!$A$2:$A$1498=AI$129,ROW(Database_Prop!$B$2:$B$1498)-ROW(Database_Prop!$B$2)+1),ROWS(Database_Prop!F$2:'Database_Prop'!F88))),\"\")","v":""},{"$f":"IFERROR(INDEX(Database_Prop!$B$2:$B$1498,SMALL(IF(Database_Prop!$A$2:$A$1498=AJ$129,ROW(Database_Prop!$B$2:$B$1498)-ROW(Database_Prop!$B$2)+1),ROWS(Database_Prop!G$2:'Database_Prop'!G88))),\"\")","v":""},{"$f":"IFERROR(INDEX(Database_Prop!$B$2:$B$1498,SMALL(IF(Database_Prop!$A$2:$A$1498=AK$129,ROW(Database_Prop!$B$2:$B$1498)-ROW(Database_Prop!$B$2)+1),ROWS(Database_Prop!H$2:'Database_Prop'!H88))),\"\")","v":""},{"$f":"IFERROR(INDEX(Database_Prop!$B$2:$B$1498,SMALL(IF(Database_Prop!$A$2:$A$1498=AL$129,ROW(Database_Prop!$B$2:$B$1498)-ROW(Database_Prop!$B$2)+1),ROWS(Database_Prop!I$2:'Database_Prop'!I88))),\"\")","v":""},{"$f":"IFERROR(INDEX(Database_Prop!$B$2:$B$1498,SMALL(IF(Database_Prop!$A$2:$A$1498=AM$129,ROW(Database_Prop!$B$2:$B$1498)-ROW(Database_Prop!$B$2)+1),ROWS(Database_Prop!J$2:'Database_Prop'!J88))),\"\")","v":""},{"$f":"IFERROR(INDEX(Database_Prop!$B$2:$B$1498,SMALL(IF(Database_Prop!$A$2:$A$1498=AN$129,ROW(Database_Prop!$B$2:$B$1498)-ROW(Database_Prop!$B$2)+1),ROWS(Database_Prop!K$2:'Database_Prop'!K88))),\"\")","v":""},{"$f":"IFERROR(INDEX(Database_Prop!$B$2:$B$1498,SMALL(IF(Database_Prop!$A$2:$A$1498=AO$129,ROW(Database_Prop!$B$2:$B$1498)-ROW(Database_Prop!$B$2)+1),ROWS(Database_Prop!L$2:'Database_Prop'!L88))),\"\")","v":""},{"$f":"IFERROR(INDEX(Database_Prop!$B$2:$B$1498,SMALL(IF(Database_Prop!$A$2:$A$1498=AP$129,ROW(Database_Prop!$B$2:$B$1498)-ROW(Database_Prop!$B$2)+1),ROWS(Database_Prop!M$2:'Database_Prop'!M88))),\"\")","v":""},{"$f":"IFERROR(INDEX(Database_Prop!$B$2:$B$1498,SMALL(IF(Database_Prop!$A$2:$A$1498=AQ$129,ROW(Database_Prop!$B$2:$B$1498)-ROW(Database_Prop!$B$2)+1),ROWS(Database_Prop!N$2:'Database_Prop'!N88))),\"\")","v":""},{"$f":"IFERROR(INDEX(Database_Prop!$B$2:$B$1498,SMALL(IF(Database_Prop!$A$2:$A$1498=AR$129,ROW(Database_Prop!$B$2:$B$1498)-ROW(Database_Prop!$B$2)+1),ROWS(Database_Prop!O$2:'Database_Prop'!O88))),\"\")","v":""},{"$f":"IFERROR(INDEX(Database_Prop!$B$2:$B$1498,SMALL(IF(Database_Prop!$A$2:$A$1498=AS$129,ROW(Database_Prop!$B$2:$B$1498)-ROW(Database_Prop!$B$2)+1),ROWS(Database_Prop!P$2:'Database_Prop'!P88))),\"\")","v":""},{"$f":"IFERROR(INDEX(Database_Prop!$B$2:$B$1498,SMALL(IF(Database_Prop!$A$2:$A$1498=AT$129,ROW(Database_Prop!$B$2:$B$1498)-ROW(Database_Prop!$B$2)+1),ROWS(Database_Prop!Q$2:'Database_Prop'!Q88))),\"\")","v":""},{"$f":"IFERROR(INDEX(Database_Prop!$B$2:$B$1498,SMALL(IF(Database_Prop!$A$2:$A$1498=AU$129,ROW(Database_Prop!$B$2:$B$1498)-ROW(Database_Prop!$B$2)+1),ROWS(Database_Prop!R$2:'Database_Prop'!R88))),\"\")","v":""},{"$f":"IFERROR(INDEX(Database_Prop!$B$2:$B$1498,SMALL(IF(Database_Prop!$A$2:$A$1498=AV$129,ROW(Database_Prop!$B$2:$B$1498)-ROW(Database_Prop!$B$2)+1),ROWS(Database_Prop!S$2:'Database_Prop'!S88))),\"\")","v":""},{"$f":"IFERROR(INDEX(Database_Prop!$B$2:$B$1498,SMALL(IF(Database_Prop!$A$2:$A$1498=AW$129,ROW(Database_Prop!$B$2:$B$1498)-ROW(Database_Prop!$B$2)+1),ROWS(Database_Prop!T$2:'Database_Prop'!T88))),\"\")","v":""},{"$f":"IFERROR(INDEX(Database_Prop!$B$2:$B$1498,SMALL(IF(Database_Prop!$A$2:$A$1498=AX$129,ROW(Database_Prop!$B$2:$B$1498)-ROW(Database_Prop!$B$2)+1),ROWS(Database_Prop!U$2:'Database_Prop'!U88))),\"\")","v":""},{"$f":"IFERROR(INDEX(Database_Prop!$B$2:$B$1498,SMALL(IF(Database_Prop!$A$2:$A$1498=AY$129,ROW(Database_Prop!$B$2:$B$1498)-ROW(Database_Prop!$B$2)+1),ROWS(Database_Prop!V$2:'Database_Prop'!V88))),\"\")","v":""},{"$f":"IFERROR(INDEX(Database_Prop!$B$2:$B$1498,SMALL(IF(Database_Prop!$A$2:$A$1498=AZ$129,ROW(Database_Prop!$B$2:$B$1498)-ROW(Database_Prop!$B$2)+1),ROWS(Database_Prop!W$2:'Database_Prop'!W88))),\"\")","v":""},{"$f":"IFERROR(INDEX(Database_Prop!$B$2:$B$1498,SMALL(IF(Database_Prop!$A$2:$A$1498=BA$129,ROW(Database_Prop!$B$2:$B$1498)-ROW(Database_Prop!$B$2)+1),ROWS(Database_Prop!X$2:'Database_Prop'!X88))),\"\")","v":""},{"$f":"IFERROR(INDEX(Database_Prop!$B$2:$B$1498,SMALL(IF(Database_Prop!$A$2:$A$1498=BB$129,ROW(Database_Prop!$B$2:$B$1498)-ROW(Database_Prop!$B$2)+1),ROWS(Database_Prop!Y$2:'Database_Prop'!Y88))),\"\")","v":""},{"$f":"IFERROR(INDEX(Database_Prop!$B$2:$B$1498,SMALL(IF(Database_Prop!$A$2:$A$1498=BC$129,ROW(Database_Prop!$B$2:$B$1498)-ROW(Database_Prop!$B$2)+1),ROWS(Database_Prop!Z$2:'Database_Prop'!Z88))),\"\")","v":""},null,"Guatemala","Latin America"]
[null,null,null,null,null,null,null,null,null,null,null,null,null,null,null,null,null,null,null,null,null,null,null,null,null,null,null,null,null,null,89,{"$f":"IFERROR(INDEX(Database_Prop!$B$2:$B$1498,SMALL(IF(Database_Prop!$A$2:$A$1498=AF$129,ROW(Database_Prop!$B$2:$B$1498)-ROW(Database_Prop!$B$2)+1),ROWS(Database_Prop!C$2:'Database_Prop'!C89))),\"\")","v":""},{"$f":"IFERROR(INDEX(Database_Prop!$B$2:$B$1498,SMALL(IF(Database_Prop!$A$2:$A$1498=AG$129,ROW(Database_Prop!$B$2:$B$1498)-ROW(Database_Prop!$B$2)+1),ROWS(Database_Prop!D$2:'Database_Prop'!D89))),\"\")","v":""},{"$f":"IFERROR(INDEX(Database_Prop!$B$2:$B$1498,SMALL(IF(Database_Prop!$A$2:$A$1498=AH$129,ROW(Database_Prop!$B$2:$B$1498)-ROW(Database_Prop!$B$2)+1),ROWS(Database_Prop!E$2:'Database_Prop'!E89))),\"\")","v":""},{"$f":"IFERROR(INDEX(Database_Prop!$B$2:$B$1498,SMALL(IF(Database_Prop!$A$2:$A$1498=AI$129,ROW(Database_Prop!$B$2:$B$1498)-ROW(Database_Prop!$B$2)+1),ROWS(Database_Prop!F$2:'Database_Prop'!F89))),\"\")","v":""},{"$f":"IFERROR(INDEX(Database_Prop!$B$2:$B$1498,SMALL(IF(Database_Prop!$A$2:$A$1498=AJ$129,ROW(Database_Prop!$B$2:$B$1498)-ROW(Database_Prop!$B$2)+1),ROWS(Database_Prop!G$2:'Database_Prop'!G89))),\"\")","v":""},{"$f":"IFERROR(INDEX(Database_Prop!$B$2:$B$1498,SMALL(IF(Database_Prop!$A$2:$A$1498=AK$129,ROW(Database_Prop!$B$2:$B$1498)-ROW(Database_Prop!$B$2)+1),ROWS(Database_Prop!H$2:'Database_Prop'!H89))),\"\")","v":""},{"$f":"IFERROR(INDEX(Database_Prop!$B$2:$B$1498,SMALL(IF(Database_Prop!$A$2:$A$1498=AL$129,ROW(Database_Prop!$B$2:$B$1498)-ROW(Database_Prop!$B$2)+1),ROWS(Database_Prop!I$2:'Database_Prop'!I89))),\"\")","v":""},{"$f":"IFERROR(INDEX(Database_Prop!$B$2:$B$1498,SMALL(IF(Database_Prop!$A$2:$A$1498=AM$129,ROW(Database_Prop!$B$2:$B$1498)-ROW(Database_Prop!$B$2)+1),ROWS(Database_Prop!J$2:'Database_Prop'!J89))),\"\")","v":""},{"$f":"IFERROR(INDEX(Database_Prop!$B$2:$B$1498,SMALL(IF(Database_Prop!$A$2:$A$1498=AN$129,ROW(Database_Prop!$B$2:$B$1498)-ROW(Database_Prop!$B$2)+1),ROWS(Database_Prop!K$2:'Database_Prop'!K89))),\"\")","v":""},{"$f":"IFERROR(INDEX(Database_Prop!$B$2:$B$1498,SMALL(IF(Database_Prop!$A$2:$A$1498=AO$129,ROW(Database_Prop!$B$2:$B$1498)-ROW(Database_Prop!$B$2)+1),ROWS(Database_Prop!L$2:'Database_Prop'!L89))),\"\")","v":""},{"$f":"IFERROR(INDEX(Database_Prop!$B$2:$B$1498,SMALL(IF(Database_Prop!$A$2:$A$1498=AP$129,ROW(Database_Prop!$B$2:$B$1498)-ROW(Database_Prop!$B$2)+1),ROWS(Database_Prop!M$2:'Database_Prop'!M89))),\"\")","v":""},{"$f":"IFERROR(INDEX(Database_Prop!$B$2:$B$1498,SMALL(IF(Database_Prop!$A$2:$A$1498=AQ$129,ROW(Database_Prop!$B$2:$B$1498)-ROW(Database_Prop!$B$2)+1),ROWS(Database_Prop!N$2:'Database_Prop'!N89))),\"\")","v":""},{"$f":"IFERROR(INDEX(Database_Prop!$B$2:$B$1498,SMALL(IF(Database_Prop!$A$2:$A$1498=AR$129,ROW(Database_Prop!$B$2:$B$1498)-ROW(Database_Prop!$B$2)+1),ROWS(Database_Prop!O$2:'Database_Prop'!O89))),\"\")","v":""},{"$f":"IFERROR(INDEX(Database_Prop!$B$2:$B$1498,SMALL(IF(Database_Prop!$A$2:$A$1498=AS$129,ROW(Database_Prop!$B$2:$B$1498)-ROW(Database_Prop!$B$2)+1),ROWS(Database_Prop!P$2:'Database_Prop'!P89))),\"\")","v":""},{"$f":"IFERROR(INDEX(Database_Prop!$B$2:$B$1498,SMALL(IF(Database_Prop!$A$2:$A$1498=AT$129,ROW(Database_Prop!$B$2:$B$1498)-ROW(Database_Prop!$B$2)+1),ROWS(Database_Prop!Q$2:'Database_Prop'!Q89))),\"\")","v":""},{"$f":"IFERROR(INDEX(Database_Prop!$B$2:$B$1498,SMALL(IF(Database_Prop!$A$2:$A$1498=AU$129,ROW(Database_Prop!$B$2:$B$1498)-ROW(Database_Prop!$B$2)+1),ROWS(Database_Prop!R$2:'Database_Prop'!R89))),\"\")","v":""},{"$f":"IFERROR(INDEX(Database_Prop!$B$2:$B$1498,SMALL(IF(Database_Prop!$A$2:$A$1498=AV$129,ROW(Database_Prop!$B$2:$B$1498)-ROW(Database_Prop!$B$2)+1),ROWS(Database_Prop!S$2:'Database_Prop'!S89))),\"\")","v":""},{"$f":"IFERROR(INDEX(Database_Prop!$B$2:$B$1498,SMALL(IF(Database_Prop!$A$2:$A$1498=AW$129,ROW(Database_Prop!$B$2:$B$1498)-ROW(Database_Prop!$B$2)+1),ROWS(Database_Prop!T$2:'Database_Prop'!T89))),\"\")","v":""},{"$f":"IFERROR(INDEX(Database_Prop!$B$2:$B$1498,SMALL(IF(Database_Prop!$A$2:$A$1498=AX$129,ROW(Database_Prop!$B$2:$B$1498)-ROW(Database_Prop!$B$2)+1),ROWS(Database_Prop!U$2:'Database_Prop'!U89))),\"\")","v":""},{"$f":"IFERROR(INDEX(Database_Prop!$B$2:$B$1498,SMALL(IF(Database_Prop!$A$2:$A$1498=AY$129,ROW(Database_Prop!$B$2:$B$1498)-ROW(Database_Prop!$B$2)+1),ROWS(Database_Prop!V$2:'Database_Prop'!V89))),\"\")","v":""},{"$f":"IFERROR(INDEX(Database_Prop!$B$2:$B$1498,SMALL(IF(Database_Prop!$A$2:$A$1498=AZ$129,ROW(Database_Prop!$B$2:$B$1498)-ROW(Database_Prop!$B$2)+1),ROWS(Database_Prop!W$2:'Database_Prop'!W89))),\"\")","v":""},{"$f":"IFERROR(INDEX(Database_Prop!$B$2:$B$1498,SMALL(IF(Database_Prop!$A$2:$A$1498=BA$129,ROW(Database_Prop!$B$2:$B$1498)-ROW(Database_Prop!$B$2)+1),ROWS(Database_Prop!X$2:'Database_Prop'!X89))),\"\")","v":""},{"$f":"IFERROR(INDEX(Database_Prop!$B$2:$B$1498,SMALL(IF(Database_Prop!$A$2:$A$1498=BB$129,ROW(Database_Prop!$B$2:$B$1498)-ROW(Database_Prop!$B$2)+1),ROWS(Database_Prop!Y$2:'Database_Prop'!Y89))),\"\")","v":""},{"$f":"IFERROR(INDEX(Database_Prop!$B$2:$B$1498,SMALL(IF(Database_Prop!$A$2:$A$1498=BC$129,ROW(Database_Prop!$B$2:$B$1498)-ROW(Database_Prop!$B$2)+1),ROWS(Database_Prop!Z$2:'Database_Prop'!Z89))),\"\")","v":""},null,"Guernsey","Western Europe"]
[null,null,null,null,null,null,null,null,null,null,null,null,null,null,null,null,null,null,null,null,null,null,null,null,null,null,null,null,null,null,90,{"$f":"IFERROR(INDEX(Database_Prop!$B$2:$B$1498,SMALL(IF(Database_Prop!$A$2:$A$1498=AF$129,ROW(Database_Prop!$B$2:$B$1498)-ROW(Database_Prop!$B$2)+1),ROWS(Database_Prop!C$2:'Database_Prop'!C90))),\"\")","v":""},{"$f":"IFERROR(INDEX(Database_Prop!$B$2:$B$1498,SMALL(IF(Database_Prop!$A$2:$A$1498=AG$129,ROW(Database_Prop!$B$2:$B$1498)-ROW(Database_Prop!$B$2)+1),ROWS(Database_Prop!D$2:'Database_Prop'!D90))),\"\")","v":""},{"$f":"IFERROR(INDEX(Database_Prop!$B$2:$B$1498,SMALL(IF(Database_Prop!$A$2:$A$1498=AH$129,ROW(Database_Prop!$B$2:$B$1498)-ROW(Database_Prop!$B$2)+1),ROWS(Database_Prop!E$2:'Database_Prop'!E90))),\"\")","v":""},{"$f":"IFERROR(INDEX(Database_Prop!$B$2:$B$1498,SMALL(IF(Database_Prop!$A$2:$A$1498=AI$129,ROW(Database_Prop!$B$2:$B$1498)-ROW(Database_Prop!$B$2)+1),ROWS(Database_Prop!F$2:'Database_Prop'!F90))),\"\")","v":""},{"$f":"IFERROR(INDEX(Database_Prop!$B$2:$B$1498,SMALL(IF(Database_Prop!$A$2:$A$1498=AJ$129,ROW(Database_Prop!$B$2:$B$1498)-ROW(Database_Prop!$B$2)+1),ROWS(Database_Prop!G$2:'Database_Prop'!G90))),\"\")","v":""},{"$f":"IFERROR(INDEX(Database_Prop!$B$2:$B$1498,SMALL(IF(Database_Prop!$A$2:$A$1498=AK$129,ROW(Database_Prop!$B$2:$B$1498)-ROW(Database_Prop!$B$2)+1),ROWS(Database_Prop!H$2:'Database_Prop'!H90))),\"\")","v":""},{"$f":"IFERROR(INDEX(Database_Prop!$B$2:$B$1498,SMALL(IF(Database_Prop!$A$2:$A$1498=AL$129,ROW(Database_Prop!$B$2:$B$1498)-ROW(Database_Prop!$B$2)+1),ROWS(Database_Prop!I$2:'Database_Prop'!I90))),\"\")","v":""},{"$f":"IFERROR(INDEX(Database_Prop!$B$2:$B$1498,SMALL(IF(Database_Prop!$A$2:$A$1498=AM$129,ROW(Database_Prop!$B$2:$B$1498)-ROW(Database_Prop!$B$2)+1),ROWS(Database_Prop!J$2:'Database_Prop'!J90))),\"\")","v":""},{"$f":"IFERROR(INDEX(Database_Prop!$B$2:$B$1498,SMALL(IF(Database_Prop!$A$2:$A$1498=AN$129,ROW(Database_Prop!$B$2:$B$1498)-ROW(Database_Prop!$B$2)+1),ROWS(Database_Prop!K$2:'Database_Prop'!K90))),\"\")","v":""},{"$f":"IFERROR(INDEX(Database_Prop!$B$2:$B$1498,SMALL(IF(Database_Prop!$A$2:$A$1498=AO$129,ROW(Database_Prop!$B$2:$B$1498)-ROW(Database_Prop!$B$2)+1),ROWS(Database_Prop!L$2:'Database_Prop'!L90))),\"\")","v":""},{"$f":"IFERROR(INDEX(Database_Prop!$B$2:$B$1498,SMALL(IF(Database_Prop!$A$2:$A$1498=AP$129,ROW(Database_Prop!$B$2:$B$1498)-ROW(Database_Prop!$B$2)+1),ROWS(Database_Prop!M$2:'Database_Prop'!M90))),\"\")","v":""},{"$f":"IFERROR(INDEX(Database_Prop!$B$2:$B$1498,SMALL(IF(Database_Prop!$A$2:$A$1498=AQ$129,ROW(Database_Prop!$B$2:$B$1498)-ROW(Database_Prop!$B$2)+1),ROWS(Database_Prop!N$2:'Database_Prop'!N90))),\"\")","v":""},{"$f":"IFERROR(INDEX(Database_Prop!$B$2:$B$1498,SMALL(IF(Database_Prop!$A$2:$A$1498=AR$129,ROW(Database_Prop!$B$2:$B$1498)-ROW(Database_Prop!$B$2)+1),ROWS(Database_Prop!O$2:'Database_Prop'!O90))),\"\")","v":""},{"$f":"IFERROR(INDEX(Database_Prop!$B$2:$B$1498,SMALL(IF(Database_Prop!$A$2:$A$1498=AS$129,ROW(Database_Prop!$B$2:$B$1498)-ROW(Database_Prop!$B$2)+1),ROWS(Database_Prop!P$2:'Database_Prop'!P90))),\"\")","v":""},{"$f":"IFERROR(INDEX(Database_Prop!$B$2:$B$1498,SMALL(IF(Database_Prop!$A$2:$A$1498=AT$129,ROW(Database_Prop!$B$2:$B$1498)-ROW(Database_Prop!$B$2)+1),ROWS(Database_Prop!Q$2:'Database_Prop'!Q90))),\"\")","v":""},{"$f":"IFERROR(INDEX(Database_Prop!$B$2:$B$1498,SMALL(IF(Database_Prop!$A$2:$A$1498=AU$129,ROW(Database_Prop!$B$2:$B$1498)-ROW(Database_Prop!$B$2)+1),ROWS(Database_Prop!R$2:'Database_Prop'!R90))),\"\")","v":""},{"$f":"IFERROR(INDEX(Database_Prop!$B$2:$B$1498,SMALL(IF(Database_Prop!$A$2:$A$1498=AV$129,ROW(Database_Prop!$B$2:$B$1498)-ROW(Database_Prop!$B$2)+1),ROWS(Database_Prop!S$2:'Database_Prop'!S90))),\"\")","v":""},{"$f":"IFERROR(INDEX(Database_Prop!$B$2:$B$1498,SMALL(IF(Database_Prop!$A$2:$A$1498=AW$129,ROW(Database_Prop!$B$2:$B$1498)-ROW(Database_Prop!$B$2)+1),ROWS(Database_Prop!T$2:'Database_Prop'!T90))),\"\")","v":""},{"$f":"IFERROR(INDEX(Database_Prop!$B$2:$B$1498,SMALL(IF(Database_Prop!$A$2:$A$1498=AX$129,ROW(Database_Prop!$B$2:$B$1498)-ROW(Database_Prop!$B$2)+1),ROWS(Database_Prop!U$2:'Database_Prop'!U90))),\"\")","v":""},{"$f":"IFERROR(INDEX(Database_Prop!$B$2:$B$1498,SMALL(IF(Database_Prop!$A$2:$A$1498=AY$129,ROW(Database_Prop!$B$2:$B$1498)-ROW(Database_Prop!$B$2)+1),ROWS(Database_Prop!V$2:'Database_Prop'!V90))),\"\")","v":""},{"$f":"IFERROR(INDEX(Database_Prop!$B$2:$B$1498,SMALL(IF(Database_Prop!$A$2:$A$1498=AZ$129,ROW(Database_Prop!$B$2:$B$1498)-ROW(Database_Prop!$B$2)+1),ROWS(Database_Prop!W$2:'Database_Prop'!W90))),\"\")","v":""},{"$f":"IFERROR(INDEX(Database_Prop!$B$2:$B$1498,SMALL(IF(Database_Prop!$A$2:$A$1498=BA$129,ROW(Database_Prop!$B$2:$B$1498)-ROW(Database_Prop!$B$2)+1),ROWS(Database_Prop!X$2:'Database_Prop'!X90))),\"\")","v":""},{"$f":"IFERROR(INDEX(Database_Prop!$B$2:$B$1498,SMALL(IF(Database_Prop!$A$2:$A$1498=BB$129,ROW(Database_Prop!$B$2:$B$1498)-ROW(Database_Prop!$B$2)+1),ROWS(Database_Prop!Y$2:'Database_Prop'!Y90))),\"\")","v":""},{"$f":"IFERROR(INDEX(Database_Prop!$B$2:$B$1498,SMALL(IF(Database_Prop!$A$2:$A$1498=BC$129,ROW(Database_Prop!$B$2:$B$1498)-ROW(Database_Prop!$B$2)+1),ROWS(Database_Prop!Z$2:'Database_Prop'!Z90))),\"\")","v":""},null,"Guinea","Africa"]
[null,null,null,null,null,null,null,null,null,null,null,null,null,null,null,null,null,null,null,null,null,null,null,null,null,null,null,null,null,null,91,{"$f":"IFERROR(INDEX(Database_Prop!$B$2:$B$1498,SMALL(IF(Database_Prop!$A$2:$A$1498=AF$129,ROW(Database_Prop!$B$2:$B$1498)-ROW(Database_Prop!$B$2)+1),ROWS(Database_Prop!C$2:'Database_Prop'!C91))),\"\")","v":""},{"$f":"IFERROR(INDEX(Database_Prop!$B$2:$B$1498,SMALL(IF(Database_Prop!$A$2:$A$1498=AG$129,ROW(Database_Prop!$B$2:$B$1498)-ROW(Database_Prop!$B$2)+1),ROWS(Database_Prop!D$2:'Database_Prop'!D91))),\"\")","v":""},{"$f":"IFERROR(INDEX(Database_Prop!$B$2:$B$1498,SMALL(IF(Database_Prop!$A$2:$A$1498=AH$129,ROW(Database_Prop!$B$2:$B$1498)-ROW(Database_Prop!$B$2)+1),ROWS(Database_Prop!E$2:'Database_Prop'!E91))),\"\")","v":""},{"$f":"IFERROR(INDEX(Database_Prop!$B$2:$B$1498,SMALL(IF(Database_Prop!$A$2:$A$1498=AI$129,ROW(Database_Prop!$B$2:$B$1498)-ROW(Database_Prop!$B$2)+1),ROWS(Database_Prop!F$2:'Database_Prop'!F91))),\"\")","v":""},{"$f":"IFERROR(INDEX(Database_Prop!$B$2:$B$1498,SMALL(IF(Database_Prop!$A$2:$A$1498=AJ$129,ROW(Database_Prop!$B$2:$B$1498)-ROW(Database_Prop!$B$2)+1),ROWS(Database_Prop!G$2:'Database_Prop'!G91))),\"\")","v":""},{"$f":"IFERROR(INDEX(Database_Prop!$B$2:$B$1498,SMALL(IF(Database_Prop!$A$2:$A$1498=AK$129,ROW(Database_Prop!$B$2:$B$1498)-ROW(Database_Prop!$B$2)+1),ROWS(Database_Prop!H$2:'Database_Prop'!H91))),\"\")","v":""},{"$f":"IFERROR(INDEX(Database_Prop!$B$2:$B$1498,SMALL(IF(Database_Prop!$A$2:$A$1498=AL$129,ROW(Database_Prop!$B$2:$B$1498)-ROW(Database_Prop!$B$2)+1),ROWS(Database_Prop!I$2:'Database_Prop'!I91))),\"\")","v":""},{"$f":"IFERROR(INDEX(Database_Prop!$B$2:$B$1498,SMALL(IF(Database_Prop!$A$2:$A$1498=AM$129,ROW(Database_Prop!$B$2:$B$1498)-ROW(Database_Prop!$B$2)+1),ROWS(Database_Prop!J$2:'Database_Prop'!J91))),\"\")","v":""},{"$f":"IFERROR(INDEX(Database_Prop!$B$2:$B$1498,SMALL(IF(Database_Prop!$A$2:$A$1498=AN$129,ROW(Database_Prop!$B$2:$B$1498)-ROW(Database_Prop!$B$2)+1),ROWS(Database_Prop!K$2:'Database_Prop'!K91))),\"\")","v":""},{"$f":"IFERROR(INDEX(Database_Prop!$B$2:$B$1498,SMALL(IF(Database_Prop!$A$2:$A$1498=AO$129,ROW(Database_Prop!$B$2:$B$1498)-ROW(Database_Prop!$B$2)+1),ROWS(Database_Prop!L$2:'Database_Prop'!L91))),\"\")","v":""},{"$f":"IFERROR(INDEX(Database_Prop!$B$2:$B$1498,SMALL(IF(Database_Prop!$A$2:$A$1498=AP$129,ROW(Database_Prop!$B$2:$B$1498)-ROW(Database_Prop!$B$2)+1),ROWS(Database_Prop!M$2:'Database_Prop'!M91))),\"\")","v":""},{"$f":"IFERROR(INDEX(Database_Prop!$B$2:$B$1498,SMALL(IF(Database_Prop!$A$2:$A$1498=AQ$129,ROW(Database_Prop!$B$2:$B$1498)-ROW(Database_Prop!$B$2)+1),ROWS(Database_Prop!N$2:'Database_Prop'!N91))),\"\")","v":""},{"$f":"IFERROR(INDEX(Database_Prop!$B$2:$B$1498,SMALL(IF(Database_Prop!$A$2:$A$1498=AR$129,ROW(Database_Prop!$B$2:$B$1498)-ROW(Database_Prop!$B$2)+1),ROWS(Database_Prop!O$2:'Database_Prop'!O91))),\"\")","v":""},{"$f":"IFERROR(INDEX(Database_Prop!$B$2:$B$1498,SMALL(IF(Database_Prop!$A$2:$A$1498=AS$129,ROW(Database_Prop!$B$2:$B$1498)-ROW(Database_Prop!$B$2)+1),ROWS(Database_Prop!P$2:'Database_Prop'!P91))),\"\")","v":""},{"$f":"IFERROR(INDEX(Database_Prop!$B$2:$B$1498,SMALL(IF(Database_Prop!$A$2:$A$1498=AT$129,ROW(Database_Prop!$B$2:$B$1498)-ROW(Database_Prop!$B$2)+1),ROWS(Database_Prop!Q$2:'Database_Prop'!Q91))),\"\")","v":""},{"$f":"IFERROR(INDEX(Database_Prop!$B$2:$B$1498,SMALL(IF(Database_Prop!$A$2:$A$1498=AU$129,ROW(Database_Prop!$B$2:$B$1498)-ROW(Database_Prop!$B$2)+1),ROWS(Database_Prop!R$2:'Database_Prop'!R91))),\"\")","v":""},{"$f":"IFERROR(INDEX(Database_Prop!$B$2:$B$1498,SMALL(IF(Database_Prop!$A$2:$A$1498=AV$129,ROW(Database_Prop!$B$2:$B$1498)-ROW(Database_Prop!$B$2)+1),ROWS(Database_Prop!S$2:'Database_Prop'!S91))),\"\")","v":""},{"$f":"IFERROR(INDEX(Database_Prop!$B$2:$B$1498,SMALL(IF(Database_Prop!$A$2:$A$1498=AW$129,ROW(Database_Prop!$B$2:$B$1498)-ROW(Database_Prop!$B$2)+1),ROWS(Database_Prop!T$2:'Database_Prop'!T91))),\"\")","v":""},{"$f":"IFERROR(INDEX(Database_Prop!$B$2:$B$1498,SMALL(IF(Database_Prop!$A$2:$A$1498=AX$129,ROW(Database_Prop!$B$2:$B$1498)-ROW(Database_Prop!$B$2)+1),ROWS(Database_Prop!U$2:'Database_Prop'!U91))),\"\")","v":""},{"$f":"IFERROR(INDEX(Database_Prop!$B$2:$B$1498,SMALL(IF(Database_Prop!$A$2:$A$1498=AY$129,ROW(Database_Prop!$B$2:$B$1498)-ROW(Database_Prop!$B$2)+1),ROWS(Database_Prop!V$2:'Database_Prop'!V91))),\"\")","v":""},{"$f":"IFERROR(INDEX(Database_Prop!$B$2:$B$1498,SMALL(IF(Database_Prop!$A$2:$A$1498=AZ$129,ROW(Database_Prop!$B$2:$B$1498)-ROW(Database_Prop!$B$2)+1),ROWS(Database_Prop!W$2:'Database_Prop'!W91))),\"\")","v":""},{"$f":"IFERROR(INDEX(Database_Prop!$B$2:$B$1498,SMALL(IF(Database_Prop!$A$2:$A$1498=BA$129,ROW(Database_Prop!$B$2:$B$1498)-ROW(Database_Prop!$B$2)+1),ROWS(Database_Prop!X$2:'Database_Prop'!X91))),\"\")","v":""},{"$f":"IFERROR(INDEX(Database_Prop!$B$2:$B$1498,SMALL(IF(Database_Prop!$A$2:$A$1498=BB$129,ROW(Database_Prop!$B$2:$B$1498)-ROW(Database_Prop!$B$2)+1),ROWS(Database_Prop!Y$2:'Database_Prop'!Y91))),\"\")","v":""},{"$f":"IFERROR(INDEX(Database_Prop!$B$2:$B$1498,SMALL(IF(Database_Prop!$A$2:$A$1498=BC$129,ROW(Database_Prop!$B$2:$B$1498)-ROW(Database_Prop!$B$2)+1),ROWS(Database_Prop!Z$2:'Database_Prop'!Z91))),\"\")","v":""},null,"Guinea-Bissau","Africa"]
[null,null,null,null,null,null,null,null,null,null,null,null,null,null,null,null,null,null,null,null,null,null,null,null,null,null,null,null,null,null,92,{"$f":"IFERROR(INDEX(Database_Prop!$B$2:$B$1498,SMALL(IF(Database_Prop!$A$2:$A$1498=AF$129,ROW(Database_Prop!$B$2:$B$1498)-ROW(Database_Prop!$B$2)+1),ROWS(Database_Prop!C$2:'Database_Prop'!C92))),\"\")","v":""},{"$f":"IFERROR(INDEX(Database_Prop!$B$2:$B$1498,SMALL(IF(Database_Prop!$A$2:$A$1498=AG$129,ROW(Database_Prop!$B$2:$B$1498)-ROW(Database_Prop!$B$2)+1),ROWS(Database_Prop!D$2:'Database_Prop'!D92))),\"\")","v":""},{"$f":"IFERROR(INDEX(Database_Prop!$B$2:$B$1498,SMALL(IF(Database_Prop!$A$2:$A$1498=AH$129,ROW(Database_Prop!$B$2:$B$1498)-ROW(Database_Prop!$B$2)+1),ROWS(Database_Prop!E$2:'Database_Prop'!E92))),\"\")","v":""},{"$f":"IFERROR(INDEX(Database_Prop!$B$2:$B$1498,SMALL(IF(Database_Prop!$A$2:$A$1498=AI$129,ROW(Database_Prop!$B$2:$B$1498)-ROW(Database_Prop!$B$2)+1),ROWS(Database_Prop!F$2:'Database_Prop'!F92))),\"\")","v":""},{"$f":"IFERROR(INDEX(Database_Prop!$B$2:$B$1498,SMALL(IF(Database_Prop!$A$2:$A$1498=AJ$129,ROW(Database_Prop!$B$2:$B$1498)-ROW(Database_Prop!$B$2)+1),ROWS(Database_Prop!G$2:'Database_Prop'!G92))),\"\")","v":""},{"$f":"IFERROR(INDEX(Database_Prop!$B$2:$B$1498,SMALL(IF(Database_Prop!$A$2:$A$1498=AK$129,ROW(Database_Prop!$B$2:$B$1498)-ROW(Database_Prop!$B$2)+1),ROWS(Database_Prop!H$2:'Database_Prop'!H92))),\"\")","v":""},{"$f":"IFERROR(INDEX(Database_Prop!$B$2:$B$1498,SMALL(IF(Database_Prop!$A$2:$A$1498=AL$129,ROW(Database_Prop!$B$2:$B$1498)-ROW(Database_Prop!$B$2)+1),ROWS(Database_Prop!I$2:'Database_Prop'!I92))),\"\")","v":""},{"$f":"IFERROR(INDEX(Database_Prop!$B$2:$B$1498,SMALL(IF(Database_Prop!$A$2:$A$1498=AM$129,ROW(Database_Prop!$B$2:$B$1498)-ROW(Database_Prop!$B$2)+1),ROWS(Database_Prop!J$2:'Database_Prop'!J92))),\"\")","v":""},{"$f":"IFERROR(INDEX(Database_Prop!$B$2:$B$1498,SMALL(IF(Database_Prop!$A$2:$A$1498=AN$129,ROW(Database_Prop!$B$2:$B$1498)-ROW(Database_Prop!$B$2)+1),ROWS(Database_Prop!K$2:'Database_Prop'!K92))),\"\")","v":""},{"$f":"IFERROR(INDEX(Database_Prop!$B$2:$B$1498,SMALL(IF(Database_Prop!$A$2:$A$1498=AO$129,ROW(Database_Prop!$B$2:$B$1498)-ROW(Database_Prop!$B$2)+1),ROWS(Database_Prop!L$2:'Database_Prop'!L92))),\"\")","v":""},{"$f":"IFERROR(INDEX(Database_Prop!$B$2:$B$1498,SMALL(IF(Database_Prop!$A$2:$A$1498=AP$129,ROW(Database_Prop!$B$2:$B$1498)-ROW(Database_Prop!$B$2)+1),ROWS(Database_Prop!M$2:'Database_Prop'!M92))),\"\")","v":""},{"$f":"IFERROR(INDEX(Database_Prop!$B$2:$B$1498,SMALL(IF(Database_Prop!$A$2:$A$1498=AQ$129,ROW(Database_Prop!$B$2:$B$1498)-ROW(Database_Prop!$B$2)+1),ROWS(Database_Prop!N$2:'Database_Prop'!N92))),\"\")","v":""},{"$f":"IFERROR(INDEX(Database_Prop!$B$2:$B$1498,SMALL(IF(Database_Prop!$A$2:$A$1498=AR$129,ROW(Database_Prop!$B$2:$B$1498)-ROW(Database_Prop!$B$2)+1),ROWS(Database_Prop!O$2:'Database_Prop'!O92))),\"\")","v":""},{"$f":"IFERROR(INDEX(Database_Prop!$B$2:$B$1498,SMALL(IF(Database_Prop!$A$2:$A$1498=AS$129,ROW(Database_Prop!$B$2:$B$1498)-ROW(Database_Prop!$B$2)+1),ROWS(Database_Prop!P$2:'Database_Prop'!P92))),\"\")","v":""},{"$f":"IFERROR(INDEX(Database_Prop!$B$2:$B$1498,SMALL(IF(Database_Prop!$A$2:$A$1498=AT$129,ROW(Database_Prop!$B$2:$B$1498)-ROW(Database_Prop!$B$2)+1),ROWS(Database_Prop!Q$2:'Database_Prop'!Q92))),\"\")","v":""},{"$f":"IFERROR(INDEX(Database_Prop!$B$2:$B$1498,SMALL(IF(Database_Prop!$A$2:$A$1498=AU$129,ROW(Database_Prop!$B$2:$B$1498)-ROW(Database_Prop!$B$2)+1),ROWS(Database_Prop!R$2:'Database_Prop'!R92))),\"\")","v":""},{"$f":"IFERROR(INDEX(Database_Prop!$B$2:$B$1498,SMALL(IF(Database_Prop!$A$2:$A$1498=AV$129,ROW(Database_Prop!$B$2:$B$1498)-ROW(Database_Prop!$B$2)+1),ROWS(Database_Prop!S$2:'Database_Prop'!S92))),\"\")","v":""},{"$f":"IFERROR(INDEX(Database_Prop!$B$2:$B$1498,SMALL(IF(Database_Prop!$A$2:$A$1498=AW$129,ROW(Database_Prop!$B$2:$B$1498)-ROW(Database_Prop!$B$2)+1),ROWS(Database_Prop!T$2:'Database_Prop'!T92))),\"\")","v":""},{"$f":"IFERROR(INDEX(Database_Prop!$B$2:$B$1498,SMALL(IF(Database_Prop!$A$2:$A$1498=AX$129,ROW(Database_Prop!$B$2:$B$1498)-ROW(Database_Prop!$B$2)+1),ROWS(Database_Prop!U$2:'Database_Prop'!U92))),\"\")","v":""},{"$f":"IFERROR(INDEX(Database_Prop!$B$2:$B$1498,SMALL(IF(Database_Prop!$A$2:$A$1498=AY$129,ROW(Database_Prop!$B$2:$B$1498)-ROW(Database_Prop!$B$2)+1),ROWS(Database_Prop!V$2:'Database_Prop'!V92))),\"\")","v":""},{"$f":"IFERROR(INDEX(Database_Prop!$B$2:$B$1498,SMALL(IF(Database_Prop!$A$2:$A$1498=AZ$129,ROW(Database_Prop!$B$2:$B$1498)-ROW(Database_Prop!$B$2)+1),ROWS(Database_Prop!W$2:'Database_Prop'!W92))),\"\")","v":""},{"$f":"IFERROR(INDEX(Database_Prop!$B$2:$B$1498,SMALL(IF(Database_Prop!$A$2:$A$1498=BA$129,ROW(Database_Prop!$B$2:$B$1498)-ROW(Database_Prop!$B$2)+1),ROWS(Database_Prop!X$2:'Database_Prop'!X92))),\"\")","v":""},{"$f":"IFERROR(INDEX(Database_Prop!$B$2:$B$1498,SMALL(IF(Database_Prop!$A$2:$A$1498=BB$129,ROW(Database_Prop!$B$2:$B$1498)-ROW(Database_Prop!$B$2)+1),ROWS(Database_Prop!Y$2:'Database_Prop'!Y92))),\"\")","v":""},{"$f":"IFERROR(INDEX(Database_Prop!$B$2:$B$1498,SMALL(IF(Database_Prop!$A$2:$A$1498=BC$129,ROW(Database_Prop!$B$2:$B$1498)-ROW(Database_Prop!$B$2)+1),ROWS(Database_Prop!Z$2:'Database_Prop'!Z92))),\"\")","v":""},null,"Guyana","Latin America"]
[null,null,null,null,null,null,null,null,null,null,null,null,null,null,null,null,null,null,null,null,null,null,null,null,null,null,null,null,null,null,93,{"$f":"IFERROR(INDEX(Database_Prop!$B$2:$B$1498,SMALL(IF(Database_Prop!$A$2:$A$1498=AF$129,ROW(Database_Prop!$B$2:$B$1498)-ROW(Database_Prop!$B$2)+1),ROWS(Database_Prop!C$2:'Database_Prop'!C93))),\"\")","v":""},{"$f":"IFERROR(INDEX(Database_Prop!$B$2:$B$1498,SMALL(IF(Database_Prop!$A$2:$A$1498=AG$129,ROW(Database_Prop!$B$2:$B$1498)-ROW(Database_Prop!$B$2)+1),ROWS(Database_Prop!D$2:'Database_Prop'!D93))),\"\")","v":""},{"$f":"IFERROR(INDEX(Database_Prop!$B$2:$B$1498,SMALL(IF(Database_Prop!$A$2:$A$1498=AH$129,ROW(Database_Prop!$B$2:$B$1498)-ROW(Database_Prop!$B$2)+1),ROWS(Database_Prop!E$2:'Database_Prop'!E93))),\"\")","v":""},{"$f":"IFERROR(INDEX(Database_Prop!$B$2:$B$1498,SMALL(IF(Database_Prop!$A$2:$A$1498=AI$129,ROW(Database_Prop!$B$2:$B$1498)-ROW(Database_Prop!$B$2)+1),ROWS(Database_Prop!F$2:'Database_Prop'!F93))),\"\")","v":""},{"$f":"IFERROR(INDEX(Database_Prop!$B$2:$B$1498,SMALL(IF(Database_Prop!$A$2:$A$1498=AJ$129,ROW(Database_Prop!$B$2:$B$1498)-ROW(Database_Prop!$B$2)+1),ROWS(Database_Prop!G$2:'Database_Prop'!G93))),\"\")","v":""},{"$f":"IFERROR(INDEX(Database_Prop!$B$2:$B$1498,SMALL(IF(Database_Prop!$A$2:$A$1498=AK$129,ROW(Database_Prop!$B$2:$B$1498)-ROW(Database_Prop!$B$2)+1),ROWS(Database_Prop!H$2:'Database_Prop'!H93))),\"\")","v":""},{"$f":"IFERROR(INDEX(Database_Prop!$B$2:$B$1498,SMALL(IF(Database_Prop!$A$2:$A$1498=AL$129,ROW(Database_Prop!$B$2:$B$1498)-ROW(Database_Prop!$B$2)+1),ROWS(Database_Prop!I$2:'Database_Prop'!I93))),\"\")","v":""},{"$f":"IFERROR(INDEX(Database_Prop!$B$2:$B$1498,SMALL(IF(Database_Prop!$A$2:$A$1498=AM$129,ROW(Database_Prop!$B$2:$B$1498)-ROW(Database_Prop!$B$2)+1),ROWS(Database_Prop!J$2:'Database_Prop'!J93))),\"\")","v":""},{"$f":"IFERROR(INDEX(Database_Prop!$B$2:$B$1498,SMALL(IF(Database_Prop!$A$2:$A$1498=AN$129,ROW(Database_Prop!$B$2:$B$1498)-ROW(Database_Prop!$B$2)+1),ROWS(Database_Prop!K$2:'Database_Prop'!K93))),\"\")","v":""},{"$f":"IFERROR(INDEX(Database_Prop!$B$2:$B$1498,SMALL(IF(Database_Prop!$A$2:$A$1498=AO$129,ROW(Database_Prop!$B$2:$B$1498)-ROW(Database_Prop!$B$2)+1),ROWS(Database_Prop!L$2:'Database_Prop'!L93))),\"\")","v":""},{"$f":"IFERROR(INDEX(Database_Prop!$B$2:$B$1498,SMALL(IF(Database_Prop!$A$2:$A$1498=AP$129,ROW(Database_Prop!$B$2:$B$1498)-ROW(Database_Prop!$B$2)+1),ROWS(Database_Prop!M$2:'Database_Prop'!M93))),\"\")","v":""},{"$f":"IFERROR(INDEX(Database_Prop!$B$2:$B$1498,SMALL(IF(Database_Prop!$A$2:$A$1498=AQ$129,ROW(Database_Prop!$B$2:$B$1498)-ROW(Database_Prop!$B$2)+1),ROWS(Database_Prop!N$2:'Database_Prop'!N93))),\"\")","v":""},{"$f":"IFERROR(INDEX(Database_Prop!$B$2:$B$1498,SMALL(IF(Database_Prop!$A$2:$A$1498=AR$129,ROW(Database_Prop!$B$2:$B$1498)-ROW(Database_Prop!$B$2)+1),ROWS(Database_Prop!O$2:'Database_Prop'!O93))),\"\")","v":""},{"$f":"IFERROR(INDEX(Database_Prop!$B$2:$B$1498,SMALL(IF(Database_Prop!$A$2:$A$1498=AS$129,ROW(Database_Prop!$B$2:$B$1498)-ROW(Database_Prop!$B$2)+1),ROWS(Database_Prop!P$2:'Database_Prop'!P93))),\"\")","v":""},{"$f":"IFERROR(INDEX(Database_Prop!$B$2:$B$1498,SMALL(IF(Database_Prop!$A$2:$A$1498=AT$129,ROW(Database_Prop!$B$2:$B$1498)-ROW(Database_Prop!$B$2)+1),ROWS(Database_Prop!Q$2:'Database_Prop'!Q93))),\"\")","v":""},{"$f":"IFERROR(INDEX(Database_Prop!$B$2:$B$1498,SMALL(IF(Database_Prop!$A$2:$A$1498=AU$129,ROW(Database_Prop!$B$2:$B$1498)-ROW(Database_Prop!$B$2)+1),ROWS(Database_Prop!R$2:'Database_Prop'!R93))),\"\")","v":""},{"$f":"IFERROR(INDEX(Database_Prop!$B$2:$B$1498,SMALL(IF(Database_Prop!$A$2:$A$1498=AV$129,ROW(Database_Prop!$B$2:$B$1498)-ROW(Database_Prop!$B$2)+1),ROWS(Database_Prop!S$2:'Database_Prop'!S93))),\"\")","v":""},{"$f":"IFERROR(INDEX(Database_Prop!$B$2:$B$1498,SMALL(IF(Database_Prop!$A$2:$A$1498=AW$129,ROW(Database_Prop!$B$2:$B$1498)-ROW(Database_Prop!$B$2)+1),ROWS(Database_Prop!T$2:'Database_Prop'!T93))),\"\")","v":""},{"$f":"IFERROR(INDEX(Database_Prop!$B$2:$B$1498,SMALL(IF(Database_Prop!$A$2:$A$1498=AX$129,ROW(Database_Prop!$B$2:$B$1498)-ROW(Database_Prop!$B$2)+1),ROWS(Database_Prop!U$2:'Database_Prop'!U93))),\"\")","v":""},{"$f":"IFERROR(INDEX(Database_Prop!$B$2:$B$1498,SMALL(IF(Database_Prop!$A$2:$A$1498=AY$129,ROW(Database_Prop!$B$2:$B$1498)-ROW(Database_Prop!$B$2)+1),ROWS(Database_Prop!V$2:'Database_Prop'!V93))),\"\")","v":""},{"$f":"IFERROR(INDEX(Database_Prop!$B$2:$B$1498,SMALL(IF(Database_Prop!$A$2:$A$1498=AZ$129,ROW(Database_Prop!$B$2:$B$1498)-ROW(Database_Prop!$B$2)+1),ROWS(Database_Prop!W$2:'Database_Prop'!W93))),\"\")","v":""},{"$f":"IFERROR(INDEX(Database_Prop!$B$2:$B$1498,SMALL(IF(Database_Prop!$A$2:$A$1498=BA$129,ROW(Database_Prop!$B$2:$B$1498)-ROW(Database_Prop!$B$2)+1),ROWS(Database_Prop!X$2:'Database_Prop'!X93))),\"\")","v":""},{"$f":"IFERROR(INDEX(Database_Prop!$B$2:$B$1498,SMALL(IF(Database_Prop!$A$2:$A$1498=BB$129,ROW(Database_Prop!$B$2:$B$1498)-ROW(Database_Prop!$B$2)+1),ROWS(Database_Prop!Y$2:'Database_Prop'!Y93))),\"\")","v":""},{"$f":"IFERROR(INDEX(Database_Prop!$B$2:$B$1498,SMALL(IF(Database_Prop!$A$2:$A$1498=BC$129,ROW(Database_Prop!$B$2:$B$1498)-ROW(Database_Prop!$B$2)+1),ROWS(Database_Prop!Z$2:'Database_Prop'!Z93))),\"\")","v":""},null,"Haiti","Latin America"]
[null,null,null,null,null,null,null,null,null,null,null,null,null,null,null,null,null,null,null,null,null,null,null,null,null,null,null,null,null,null,94,{"$f":"IFERROR(INDEX(Database_Prop!$B$2:$B$1498,SMALL(IF(Database_Prop!$A$2:$A$1498=AF$129,ROW(Database_Prop!$B$2:$B$1498)-ROW(Database_Prop!$B$2)+1),ROWS(Database_Prop!C$2:'Database_Prop'!C94))),\"\")","v":""},{"$f":"IFERROR(INDEX(Database_Prop!$B$2:$B$1498,SMALL(IF(Database_Prop!$A$2:$A$1498=AG$129,ROW(Database_Prop!$B$2:$B$1498)-ROW(Database_Prop!$B$2)+1),ROWS(Database_Prop!D$2:'Database_Prop'!D94))),\"\")","v":""},{"$f":"IFERROR(INDEX(Database_Prop!$B$2:$B$1498,SMALL(IF(Database_Prop!$A$2:$A$1498=AH$129,ROW(Database_Prop!$B$2:$B$1498)-ROW(Database_Prop!$B$2)+1),ROWS(Database_Prop!E$2:'Database_Prop'!E94))),\"\")","v":""},{"$f":"IFERROR(INDEX(Database_Prop!$B$2:$B$1498,SMALL(IF(Database_Prop!$A$2:$A$1498=AI$129,ROW(Database_Prop!$B$2:$B$1498)-ROW(Database_Prop!$B$2)+1),ROWS(Database_Prop!F$2:'Database_Prop'!F94))),\"\")","v":""},{"$f":"IFERROR(INDEX(Database_Prop!$B$2:$B$1498,SMALL(IF(Database_Prop!$A$2:$A$1498=AJ$129,ROW(Database_Prop!$B$2:$B$1498)-ROW(Database_Prop!$B$2)+1),ROWS(Database_Prop!G$2:'Database_Prop'!G94))),\"\")","v":""},{"$f":"IFERROR(INDEX(Database_Prop!$B$2:$B$1498,SMALL(IF(Database_Prop!$A$2:$A$1498=AK$129,ROW(Database_Prop!$B$2:$B$1498)-ROW(Database_Prop!$B$2)+1),ROWS(Database_Prop!H$2:'Database_Prop'!H94))),\"\")","v":""},{"$f":"IFERROR(INDEX(Database_Prop!$B$2:$B$1498,SMALL(IF(Database_Prop!$A$2:$A$1498=AL$129,ROW(Database_Prop!$B$2:$B$1498)-ROW(Database_Prop!$B$2)+1),ROWS(Database_Prop!I$2:'Database_Prop'!I94))),\"\")","v":""},{"$f":"IFERROR(INDEX(Database_Prop!$B$2:$B$1498,SMALL(IF(Database_Prop!$A$2:$A$1498=AM$129,ROW(Database_Prop!$B$2:$B$1498)-ROW(Database_Prop!$B$2)+1),ROWS(Database_Prop!J$2:'Database_Prop'!J94))),\"\")","v":""},{"$f":"IFERROR(INDEX(Database_Prop!$B$2:$B$1498,SMALL(IF(Database_Prop!$A$2:$A$1498=AN$129,ROW(Database_Prop!$B$2:$B$1498)-ROW(Database_Prop!$B$2)+1),ROWS(Database_Prop!K$2:'Database_Prop'!K94))),\"\")","v":""},{"$f":"IFERROR(INDEX(Database_Prop!$B$2:$B$1498,SMALL(IF(Database_Prop!$A$2:$A$1498=AO$129,ROW(Database_Prop!$B$2:$B$1498)-ROW(Database_Prop!$B$2)+1),ROWS(Database_Prop!L$2:'Database_Prop'!L94))),\"\")","v":""},{"$f":"IFERROR(INDEX(Database_Prop!$B$2:$B$1498,SMALL(IF(Database_Prop!$A$2:$A$1498=AP$129,ROW(Database_Prop!$B$2:$B$1498)-ROW(Database_Prop!$B$2)+1),ROWS(Database_Prop!M$2:'Database_Prop'!M94))),\"\")","v":""},{"$f":"IFERROR(INDEX(Database_Prop!$B$2:$B$1498,SMALL(IF(Database_Prop!$A$2:$A$1498=AQ$129,ROW(Database_Prop!$B$2:$B$1498)-ROW(Database_Prop!$B$2)+1),ROWS(Database_Prop!N$2:'Database_Prop'!N94))),\"\")","v":""},{"$f":"IFERROR(INDEX(Database_Prop!$B$2:$B$1498,SMALL(IF(Database_Prop!$A$2:$A$1498=AR$129,ROW(Database_Prop!$B$2:$B$1498)-ROW(Database_Prop!$B$2)+1),ROWS(Database_Prop!O$2:'Database_Prop'!O94))),\"\")","v":""},{"$f":"IFERROR(INDEX(Database_Prop!$B$2:$B$1498,SMALL(IF(Database_Prop!$A$2:$A$1498=AS$129,ROW(Database_Prop!$B$2:$B$1498)-ROW(Database_Prop!$B$2)+1),ROWS(Database_Prop!P$2:'Database_Prop'!P94))),\"\")","v":""},{"$f":"IFERROR(INDEX(Database_Prop!$B$2:$B$1498,SMALL(IF(Database_Prop!$A$2:$A$1498=AT$129,ROW(Database_Prop!$B$2:$B$1498)-ROW(Database_Prop!$B$2)+1),ROWS(Database_Prop!Q$2:'Database_Prop'!Q94))),\"\")","v":""},{"$f":"IFERROR(INDEX(Database_Prop!$B$2:$B$1498,SMALL(IF(Database_Prop!$A$2:$A$1498=AU$129,ROW(Database_Prop!$B$2:$B$1498)-ROW(Database_Prop!$B$2)+1),ROWS(Database_Prop!R$2:'Database_Prop'!R94))),\"\")","v":""},{"$f":"IFERROR(INDEX(Database_Prop!$B$2:$B$1498,SMALL(IF(Database_Prop!$A$2:$A$1498=AV$129,ROW(Database_Prop!$B$2:$B$1498)-ROW(Database_Prop!$B$2)+1),ROWS(Database_Prop!S$2:'Database_Prop'!S94))),\"\")","v":""},{"$f":"IFERROR(INDEX(Database_Prop!$B$2:$B$1498,SMALL(IF(Database_Prop!$A$2:$A$1498=AW$129,ROW(Database_Prop!$B$2:$B$1498)-ROW(Database_Prop!$B$2)+1),ROWS(Database_Prop!T$2:'Database_Prop'!T94))),\"\")","v":""},{"$f":"IFERROR(INDEX(Database_Prop!$B$2:$B$1498,SMALL(IF(Database_Prop!$A$2:$A$1498=AX$129,ROW(Database_Prop!$B$2:$B$1498)-ROW(Database_Prop!$B$2)+1),ROWS(Database_Prop!U$2:'Database_Prop'!U94))),\"\")","v":""},{"$f":"IFERROR(INDEX(Database_Prop!$B$2:$B$1498,SMALL(IF(Database_Prop!$A$2:$A$1498=AY$129,ROW(Database_Prop!$B$2:$B$1498)-ROW(Database_Prop!$B$2)+1),ROWS(Database_Prop!V$2:'Database_Prop'!V94))),\"\")","v":""},{"$f":"IFERROR(INDEX(Database_Prop!$B$2:$B$1498,SMALL(IF(Database_Prop!$A$2:$A$1498=AZ$129,ROW(Database_Prop!$B$2:$B$1498)-ROW(Database_Prop!$B$2)+1),ROWS(Database_Prop!W$2:'Database_Prop'!W94))),\"\")","v":""},{"$f":"IFERROR(INDEX(Database_Prop!$B$2:$B$1498,SMALL(IF(Database_Prop!$A$2:$A$1498=BA$129,ROW(Database_Prop!$B$2:$B$1498)-ROW(Database_Prop!$B$2)+1),ROWS(Database_Prop!X$2:'Database_Prop'!X94))),\"\")","v":""},{"$f":"IFERROR(INDEX(Database_Prop!$B$2:$B$1498,SMALL(IF(Database_Prop!$A$2:$A$1498=BB$129,ROW(Database_Prop!$B$2:$B$1498)-ROW(Database_Prop!$B$2)+1),ROWS(Database_Prop!Y$2:'Database_Prop'!Y94))),\"\")","v":""},{"$f":"IFERROR(INDEX(Database_Prop!$B$2:$B$1498,SMALL(IF(Database_Prop!$A$2:$A$1498=BC$129,ROW(Database_Prop!$B$2:$B$1498)-ROW(Database_Prop!$B$2)+1),ROWS(Database_Prop!Z$2:'Database_Prop'!Z94))),\"\")","v":""},null,"Holy See","Western Europe"]
[null,null,null,null,null,null,null,null,null,null,null,null,null,null,null,null,null,null,null,null,null,null,null,null,null,null,null,null,null,null,95,{"$f":"IFERROR(INDEX(Database_Prop!$B$2:$B$1498,SMALL(IF(Database_Prop!$A$2:$A$1498=AF$129,ROW(Database_Prop!$B$2:$B$1498)-ROW(Database_Prop!$B$2)+1),ROWS(Database_Prop!C$2:'Database_Prop'!C95))),\"\")","v":""},{"$f":"IFERROR(INDEX(Database_Prop!$B$2:$B$1498,SMALL(IF(Database_Prop!$A$2:$A$1498=AG$129,ROW(Database_Prop!$B$2:$B$1498)-ROW(Database_Prop!$B$2)+1),ROWS(Database_Prop!D$2:'Database_Prop'!D95))),\"\")","v":""},{"$f":"IFERROR(INDEX(Database_Prop!$B$2:$B$1498,SMALL(IF(Database_Prop!$A$2:$A$1498=AH$129,ROW(Database_Prop!$B$2:$B$1498)-ROW(Database_Prop!$B$2)+1),ROWS(Database_Prop!E$2:'Database_Prop'!E95))),\"\")","v":""},{"$f":"IFERROR(INDEX(Database_Prop!$B$2:$B$1498,SMALL(IF(Database_Prop!$A$2:$A$1498=AI$129,ROW(Database_Prop!$B$2:$B$1498)-ROW(Database_Prop!$B$2)+1),ROWS(Database_Prop!F$2:'Database_Prop'!F95))),\"\")","v":""},{"$f":"IFERROR(INDEX(Database_Prop!$B$2:$B$1498,SMALL(IF(Database_Prop!$A$2:$A$1498=AJ$129,ROW(Database_Prop!$B$2:$B$1498)-ROW(Database_Prop!$B$2)+1),ROWS(Database_Prop!G$2:'Database_Prop'!G95))),\"\")","v":""},{"$f":"IFERROR(INDEX(Database_Prop!$B$2:$B$1498,SMALL(IF(Database_Prop!$A$2:$A$1498=AK$129,ROW(Database_Prop!$B$2:$B$1498)-ROW(Database_Prop!$B$2)+1),ROWS(Database_Prop!H$2:'Database_Prop'!H95))),\"\")","v":""},{"$f":"IFERROR(INDEX(Database_Prop!$B$2:$B$1498,SMALL(IF(Database_Prop!$A$2:$A$1498=AL$129,ROW(Database_Prop!$B$2:$B$1498)-ROW(Database_Prop!$B$2)+1),ROWS(Database_Prop!I$2:'Database_Prop'!I95))),\"\")","v":""},{"$f":"IFERROR(INDEX(Database_Prop!$B$2:$B$1498,SMALL(IF(Database_Prop!$A$2:$A$1498=AM$129,ROW(Database_Prop!$B$2:$B$1498)-ROW(Database_Prop!$B$2)+1),ROWS(Database_Prop!J$2:'Database_Prop'!J95))),\"\")","v":""},{"$f":"IFERROR(INDEX(Database_Prop!$B$2:$B$1498,SMALL(IF(Database_Prop!$A$2:$A$1498=AN$129,ROW(Database_Prop!$B$2:$B$1498)-ROW(Database_Prop!$B$2)+1),ROWS(Database_Prop!K$2:'Database_Prop'!K95))),\"\")","v":""},{"$f":"IFERROR(INDEX(Database_Prop!$B$2:$B$1498,SMALL(IF(Database_Prop!$A$2:$A$1498=AO$129,ROW(Database_Prop!$B$2:$B$1498)-ROW(Database_Prop!$B$2)+1),ROWS(Database_Prop!L$2:'Database_Prop'!L95))),\"\")","v":""},{"$f":"IFERROR(INDEX(Database_Prop!$B$2:$B$1498,SMALL(IF(Database_Prop!$A$2:$A$1498=AP$129,ROW(Database_Prop!$B$2:$B$1498)-ROW(Database_Prop!$B$2)+1),ROWS(Database_Prop!M$2:'Database_Prop'!M95))),\"\")","v":""},{"$f":"IFERROR(INDEX(Database_Prop!$B$2:$B$1498,SMALL(IF(Database_Prop!$A$2:$A$1498=AQ$129,ROW(Database_Prop!$B$2:$B$1498)-ROW(Database_Prop!$B$2)+1),ROWS(Database_Prop!N$2:'Database_Prop'!N95))),\"\")","v":""},{"$f":"IFERROR(INDEX(Database_Prop!$B$2:$B$1498,SMALL(IF(Database_Prop!$A$2:$A$1498=AR$129,ROW(Database_Prop!$B$2:$B$1498)-ROW(Database_Prop!$B$2)+1),ROWS(Database_Prop!O$2:'Database_Prop'!O95))),\"\")","v":""},{"$f":"IFERROR(INDEX(Database_Prop!$B$2:$B$1498,SMALL(IF(Database_Prop!$A$2:$A$1498=AS$129,ROW(Database_Prop!$B$2:$B$1498)-ROW(Database_Prop!$B$2)+1),ROWS(Database_Prop!P$2:'Database_Prop'!P95))),\"\")","v":""},{"$f":"IFERROR(INDEX(Database_Prop!$B$2:$B$1498,SMALL(IF(Database_Prop!$A$2:$A$1498=AT$129,ROW(Database_Prop!$B$2:$B$1498)-ROW(Database_Prop!$B$2)+1),ROWS(Database_Prop!Q$2:'Database_Prop'!Q95))),\"\")","v":""},{"$f":"IFERROR(INDEX(Database_Prop!$B$2:$B$1498,SMALL(IF(Database_Prop!$A$2:$A$1498=AU$129,ROW(Database_Prop!$B$2:$B$1498)-ROW(Database_Prop!$B$2)+1),ROWS(Database_Prop!R$2:'Database_Prop'!R95))),\"\")","v":""},{"$f":"IFERROR(INDEX(Database_Prop!$B$2:$B$1498,SMALL(IF(Database_Prop!$A$2:$A$1498=AV$129,ROW(Database_Prop!$B$2:$B$1498)-ROW(Database_Prop!$B$2)+1),ROWS(Database_Prop!S$2:'Database_Prop'!S95))),\"\")","v":""},{"$f":"IFERROR(INDEX(Database_Prop!$B$2:$B$1498,SMALL(IF(Database_Prop!$A$2:$A$1498=AW$129,ROW(Database_Prop!$B$2:$B$1498)-ROW(Database_Prop!$B$2)+1),ROWS(Database_Prop!T$2:'Database_Prop'!T95))),\"\")","v":""},{"$f":"IFERROR(INDEX(Database_Prop!$B$2:$B$1498,SMALL(IF(Database_Prop!$A$2:$A$1498=AX$129,ROW(Database_Prop!$B$2:$B$1498)-ROW(Database_Prop!$B$2)+1),ROWS(Database_Prop!U$2:'Database_Prop'!U95))),\"\")","v":""},{"$f":"IFERROR(INDEX(Database_Prop!$B$2:$B$1498,SMALL(IF(Database_Prop!$A$2:$A$1498=AY$129,ROW(Database_Prop!$B$2:$B$1498)-ROW(Database_Prop!$B$2)+1),ROWS(Database_Prop!V$2:'Database_Prop'!V95))),\"\")","v":""},{"$f":"IFERROR(INDEX(Database_Prop!$B$2:$B$1498,SMALL(IF(Database_Prop!$A$2:$A$1498=AZ$129,ROW(Database_Prop!$B$2:$B$1498)-ROW(Database_Prop!$B$2)+1),ROWS(Database_Prop!W$2:'Database_Prop'!W95))),\"\")","v":""},{"$f":"IFERROR(INDEX(Database_Prop!$B$2:$B$1498,SMALL(IF(Database_Prop!$A$2:$A$1498=BA$129,ROW(Database_Prop!$B$2:$B$1498)-ROW(Database_Prop!$B$2)+1),ROWS(Database_Prop!X$2:'Database_Prop'!X95))),\"\")","v":""},{"$f":"IFERROR(INDEX(Database_Prop!$B$2:$B$1498,SMALL(IF(Database_Prop!$A$2:$A$1498=BB$129,ROW(Database_Prop!$B$2:$B$1498)-ROW(Database_Prop!$B$2)+1),ROWS(Database_Prop!Y$2:'Database_Prop'!Y95))),\"\")","v":""},{"$f":"IFERROR(INDEX(Database_Prop!$B$2:$B$1498,SMALL(IF(Database_Prop!$A$2:$A$1498=BC$129,ROW(Database_Prop!$B$2:$B$1498)-ROW(Database_Prop!$B$2)+1),ROWS(Database_Prop!Z$2:'Database_Prop'!Z95))),\"\")","v":""},null,"Honduras","Latin America"]
[null,null,null,null,null,null,null,null,null,null,null,null,null,null,null,null,null,null,null,null,null,null,null,null,null,null,null,null,null,null,96,{"$f":"IFERROR(INDEX(Database_Prop!$B$2:$B$1498,SMALL(IF(Database_Prop!$A$2:$A$1498=AF$129,ROW(Database_Prop!$B$2:$B$1498)-ROW(Database_Prop!$B$2)+1),ROWS(Database_Prop!C$2:'Database_Prop'!C96))),\"\")","v":""},{"$f":"IFERROR(INDEX(Database_Prop!$B$2:$B$1498,SMALL(IF(Database_Prop!$A$2:$A$1498=AG$129,ROW(Database_Prop!$B$2:$B$1498)-ROW(Database_Prop!$B$2)+1),ROWS(Database_Prop!D$2:'Database_Prop'!D96))),\"\")","v":""},{"$f":"IFERROR(INDEX(Database_Prop!$B$2:$B$1498,SMALL(IF(Database_Prop!$A$2:$A$1498=AH$129,ROW(Database_Prop!$B$2:$B$1498)-ROW(Database_Prop!$B$2)+1),ROWS(Database_Prop!E$2:'Database_Prop'!E96))),\"\")","v":""},{"$f":"IFERROR(INDEX(Database_Prop!$B$2:$B$1498,SMALL(IF(Database_Prop!$A$2:$A$1498=AI$129,ROW(Database_Prop!$B$2:$B$1498)-ROW(Database_Prop!$B$2)+1),ROWS(Database_Prop!F$2:'Database_Prop'!F96))),\"\")","v":""},{"$f":"IFERROR(INDEX(Database_Prop!$B$2:$B$1498,SMALL(IF(Database_Prop!$A$2:$A$1498=AJ$129,ROW(Database_Prop!$B$2:$B$1498)-ROW(Database_Prop!$B$2)+1),ROWS(Database_Prop!G$2:'Database_Prop'!G96))),\"\")","v":""},{"$f":"IFERROR(INDEX(Database_Prop!$B$2:$B$1498,SMALL(IF(Database_Prop!$A$2:$A$1498=AK$129,ROW(Database_Prop!$B$2:$B$1498)-ROW(Database_Prop!$B$2)+1),ROWS(Database_Prop!H$2:'Database_Prop'!H96))),\"\")","v":""},{"$f":"IFERROR(INDEX(Database_Prop!$B$2:$B$1498,SMALL(IF(Database_Prop!$A$2:$A$1498=AL$129,ROW(Database_Prop!$B$2:$B$1498)-ROW(Database_Prop!$B$2)+1),ROWS(Database_Prop!I$2:'Database_Prop'!I96))),\"\")","v":""},{"$f":"IFERROR(INDEX(Database_Prop!$B$2:$B$1498,SMALL(IF(Database_Prop!$A$2:$A$1498=AM$129,ROW(Database_Prop!$B$2:$B$1498)-ROW(Database_Prop!$B$2)+1),ROWS(Database_Prop!J$2:'Database_Prop'!J96))),\"\")","v":""},{"$f":"IFERROR(INDEX(Database_Prop!$B$2:$B$1498,SMALL(IF(Database_Prop!$A$2:$A$1498=AN$129,ROW(Database_Prop!$B$2:$B$1498)-ROW(Database_Prop!$B$2)+1),ROWS(Database_Prop!K$2:'Database_Prop'!K96))),\"\")","v":""},{"$f":"IFERROR(INDEX(Database_Prop!$B$2:$B$1498,SMALL(IF(Database_Prop!$A$2:$A$1498=AO$129,ROW(Database_Prop!$B$2:$B$1498)-ROW(Database_Prop!$B$2)+1),ROWS(Database_Prop!L$2:'Database_Prop'!L96))),\"\")","v":""},{"$f":"IFERROR(INDEX(Database_Prop!$B$2:$B$1498,SMALL(IF(Database_Prop!$A$2:$A$1498=AP$129,ROW(Database_Prop!$B$2:$B$1498)-ROW(Database_Prop!$B$2)+1),ROWS(Database_Prop!M$2:'Database_Prop'!M96))),\"\")","v":""},{"$f":"IFERROR(INDEX(Database_Prop!$B$2:$B$1498,SMALL(IF(Database_Prop!$A$2:$A$1498=AQ$129,ROW(Database_Prop!$B$2:$B$1498)-ROW(Database_Prop!$B$2)+1),ROWS(Database_Prop!N$2:'Database_Prop'!N96))),\"\")","v":""},{"$f":"IFERROR(INDEX(Database_Prop!$B$2:$B$1498,SMALL(IF(Database_Prop!$A$2:$A$1498=AR$129,ROW(Database_Prop!$B$2:$B$1498)-ROW(Database_Prop!$B$2)+1),ROWS(Database_Prop!O$2:'Database_Prop'!O96))),\"\")","v":""},{"$f":"IFERROR(INDEX(Database_Prop!$B$2:$B$1498,SMALL(IF(Database_Prop!$A$2:$A$1498=AS$129,ROW(Database_Prop!$B$2:$B$1498)-ROW(Database_Prop!$B$2)+1),ROWS(Database_Prop!P$2:'Database_Prop'!P96))),\"\")","v":""},{"$f":"IFERROR(INDEX(Database_Prop!$B$2:$B$1498,SMALL(IF(Database_Prop!$A$2:$A$1498=AT$129,ROW(Database_Prop!$B$2:$B$1498)-ROW(Database_Prop!$B$2)+1),ROWS(Database_Prop!Q$2:'Database_Prop'!Q96))),\"\")","v":""},{"$f":"IFERROR(INDEX(Database_Prop!$B$2:$B$1498,SMALL(IF(Database_Prop!$A$2:$A$1498=AU$129,ROW(Database_Prop!$B$2:$B$1498)-ROW(Database_Prop!$B$2)+1),ROWS(Database_Prop!R$2:'Database_Prop'!R96))),\"\")","v":""},{"$f":"IFERROR(INDEX(Database_Prop!$B$2:$B$1498,SMALL(IF(Database_Prop!$A$2:$A$1498=AV$129,ROW(Database_Prop!$B$2:$B$1498)-ROW(Database_Prop!$B$2)+1),ROWS(Database_Prop!S$2:'Database_Prop'!S96))),\"\")","v":""},{"$f":"IFERROR(INDEX(Database_Prop!$B$2:$B$1498,SMALL(IF(Database_Prop!$A$2:$A$1498=AW$129,ROW(Database_Prop!$B$2:$B$1498)-ROW(Database_Prop!$B$2)+1),ROWS(Database_Prop!T$2:'Database_Prop'!T96))),\"\")","v":""},{"$f":"IFERROR(INDEX(Database_Prop!$B$2:$B$1498,SMALL(IF(Database_Prop!$A$2:$A$1498=AX$129,ROW(Database_Prop!$B$2:$B$1498)-ROW(Database_Prop!$B$2)+1),ROWS(Database_Prop!U$2:'Database_Prop'!U96))),\"\")","v":""},{"$f":"IFERROR(INDEX(Database_Prop!$B$2:$B$1498,SMALL(IF(Database_Prop!$A$2:$A$1498=AY$129,ROW(Database_Prop!$B$2:$B$1498)-ROW(Database_Prop!$B$2)+1),ROWS(Database_Prop!V$2:'Database_Prop'!V96))),\"\")","v":""},{"$f":"IFERROR(INDEX(Database_Prop!$B$2:$B$1498,SMALL(IF(Database_Prop!$A$2:$A$1498=AZ$129,ROW(Database_Prop!$B$2:$B$1498)-ROW(Database_Prop!$B$2)+1),ROWS(Database_Prop!W$2:'Database_Prop'!W96))),\"\")","v":""},{"$f":"IFERROR(INDEX(Database_Prop!$B$2:$B$1498,SMALL(IF(Database_Prop!$A$2:$A$1498=BA$129,ROW(Database_Prop!$B$2:$B$1498)-ROW(Database_Prop!$B$2)+1),ROWS(Database_Prop!X$2:'Database_Prop'!X96))),\"\")","v":""},{"$f":"IFERROR(INDEX(Database_Prop!$B$2:$B$1498,SMALL(IF(Database_Prop!$A$2:$A$1498=BB$129,ROW(Database_Prop!$B$2:$B$1498)-ROW(Database_Prop!$B$2)+1),ROWS(Database_Prop!Y$2:'Database_Prop'!Y96))),\"\")","v":""},{"$f":"IFERROR(INDEX(Database_Prop!$B$2:$B$1498,SMALL(IF(Database_Prop!$A$2:$A$1498=BC$129,ROW(Database_Prop!$B$2:$B$1498)-ROW(Database_Prop!$B$2)+1),ROWS(Database_Prop!Z$2:'Database_Prop'!Z96))),\"\")","v":""},null,"Hungary","Eastern Europe"]
[null,null,null,null,null,null,null,null,null,null,null,null,null,null,null,null,null,null,null,null,null,null,null,null,null,null,null,null,null,null,97,{"$f":"IFERROR(INDEX(Database_Prop!$B$2:$B$1498,SMALL(IF(Database_Prop!$A$2:$A$1498=AF$129,ROW(Database_Prop!$B$2:$B$1498)-ROW(Database_Prop!$B$2)+1),ROWS(Database_Prop!C$2:'Database_Prop'!C97))),\"\")","v":""},{"$f":"IFERROR(INDEX(Database_Prop!$B$2:$B$1498,SMALL(IF(Database_Prop!$A$2:$A$1498=AG$129,ROW(Database_Prop!$B$2:$B$1498)-ROW(Database_Prop!$B$2)+1),ROWS(Database_Prop!D$2:'Database_Prop'!D97))),\"\")","v":""},{"$f":"IFERROR(INDEX(Database_Prop!$B$2:$B$1498,SMALL(IF(Database_Prop!$A$2:$A$1498=AH$129,ROW(Database_Prop!$B$2:$B$1498)-ROW(Database_Prop!$B$2)+1),ROWS(Database_Prop!E$2:'Database_Prop'!E97))),\"\")","v":""},{"$f":"IFERROR(INDEX(Database_Prop!$B$2:$B$1498,SMALL(IF(Database_Prop!$A$2:$A$1498=AI$129,ROW(Database_Prop!$B$2:$B$1498)-ROW(Database_Prop!$B$2)+1),ROWS(Database_Prop!F$2:'Database_Prop'!F97))),\"\")","v":""},{"$f":"IFERROR(INDEX(Database_Prop!$B$2:$B$1498,SMALL(IF(Database_Prop!$A$2:$A$1498=AJ$129,ROW(Database_Prop!$B$2:$B$1498)-ROW(Database_Prop!$B$2)+1),ROWS(Database_Prop!G$2:'Database_Prop'!G97))),\"\")","v":""},{"$f":"IFERROR(INDEX(Database_Prop!$B$2:$B$1498,SMALL(IF(Database_Prop!$A$2:$A$1498=AK$129,ROW(Database_Prop!$B$2:$B$1498)-ROW(Database_Prop!$B$2)+1),ROWS(Database_Prop!H$2:'Database_Prop'!H97))),\"\")","v":""},{"$f":"IFERROR(INDEX(Database_Prop!$B$2:$B$1498,SMALL(IF(Database_Prop!$A$2:$A$1498=AL$129,ROW(Database_Prop!$B$2:$B$1498)-ROW(Database_Prop!$B$2)+1),ROWS(Database_Prop!I$2:'Database_Prop'!I97))),\"\")","v":""},{"$f":"IFERROR(INDEX(Database_Prop!$B$2:$B$1498,SMALL(IF(Database_Prop!$A$2:$A$1498=AM$129,ROW(Database_Prop!$B$2:$B$1498)-ROW(Database_Prop!$B$2)+1),ROWS(Database_Prop!J$2:'Database_Prop'!J97))),\"\")","v":""},{"$f":"IFERROR(INDEX(Database_Prop!$B$2:$B$1498,SMALL(IF(Database_Prop!$A$2:$A$1498=AN$129,ROW(Database_Prop!$B$2:$B$1498)-ROW(Database_Prop!$B$2)+1),ROWS(Database_Prop!K$2:'Database_Prop'!K97))),\"\")","v":""},{"$f":"IFERROR(INDEX(Database_Prop!$B$2:$B$1498,SMALL(IF(Database_Prop!$A$2:$A$1498=AO$129,ROW(Database_Prop!$B$2:$B$1498)-ROW(Database_Prop!$B$2)+1),ROWS(Database_Prop!L$2:'Database_Prop'!L97))),\"\")","v":""},{"$f":"IFERROR(INDEX(Database_Prop!$B$2:$B$1498,SMALL(IF(Database_Prop!$A$2:$A$1498=AP$129,ROW(Database_Prop!$B$2:$B$1498)-ROW(Database_Prop!$B$2)+1),ROWS(Database_Prop!M$2:'Database_Prop'!M97))),\"\")","v":""},{"$f":"IFERROR(INDEX(Database_Prop!$B$2:$B$1498,SMALL(IF(Database_Prop!$A$2:$A$1498=AQ$129,ROW(Database_Prop!$B$2:$B$1498)-ROW(Database_Prop!$B$2)+1),ROWS(Database_Prop!N$2:'Database_Prop'!N97))),\"\")","v":""},{"$f":"IFERROR(INDEX(Database_Prop!$B$2:$B$1498,SMALL(IF(Database_Prop!$A$2:$A$1498=AR$129,ROW(Database_Prop!$B$2:$B$1498)-ROW(Database_Prop!$B$2)+1),ROWS(Database_Prop!O$2:'Database_Prop'!O97))),\"\")","v":""},{"$f":"IFERROR(INDEX(Database_Prop!$B$2:$B$1498,SMALL(IF(Database_Prop!$A$2:$A$1498=AS$129,ROW(Database_Prop!$B$2:$B$1498)-ROW(Database_Prop!$B$2)+1),ROWS(Database_Prop!P$2:'Database_Prop'!P97))),\"\")","v":""},{"$f":"IFERROR(INDEX(Database_Prop!$B$2:$B$1498,SMALL(IF(Database_Prop!$A$2:$A$1498=AT$129,ROW(Database_Prop!$B$2:$B$1498)-ROW(Database_Prop!$B$2)+1),ROWS(Database_Prop!Q$2:'Database_Prop'!Q97))),\"\")","v":""},{"$f":"IFERROR(INDEX(Database_Prop!$B$2:$B$1498,SMALL(IF(Database_Prop!$A$2:$A$1498=AU$129,ROW(Database_Prop!$B$2:$B$1498)-ROW(Database_Prop!$B$2)+1),ROWS(Database_Prop!R$2:'Database_Prop'!R97))),\"\")","v":""},{"$f":"IFERROR(INDEX(Database_Prop!$B$2:$B$1498,SMALL(IF(Database_Prop!$A$2:$A$1498=AV$129,ROW(Database_Prop!$B$2:$B$1498)-ROW(Database_Prop!$B$2)+1),ROWS(Database_Prop!S$2:'Database_Prop'!S97))),\"\")","v":""},{"$f":"IFERROR(INDEX(Database_Prop!$B$2:$B$1498,SMALL(IF(Database_Prop!$A$2:$A$1498=AW$129,ROW(Database_Prop!$B$2:$B$1498)-ROW(Database_Prop!$B$2)+1),ROWS(Database_Prop!T$2:'Database_Prop'!T97))),\"\")","v":""},{"$f":"IFERROR(INDEX(Database_Prop!$B$2:$B$1498,SMALL(IF(Database_Prop!$A$2:$A$1498=AX$129,ROW(Database_Prop!$B$2:$B$1498)-ROW(Database_Prop!$B$2)+1),ROWS(Database_Prop!U$2:'Database_Prop'!U97))),\"\")","v":""},{"$f":"IFERROR(INDEX(Database_Prop!$B$2:$B$1498,SMALL(IF(Database_Prop!$A$2:$A$1498=AY$129,ROW(Database_Prop!$B$2:$B$1498)-ROW(Database_Prop!$B$2)+1),ROWS(Database_Prop!V$2:'Database_Prop'!V97))),\"\")","v":""},{"$f":"IFERROR(INDEX(Database_Prop!$B$2:$B$1498,SMALL(IF(Database_Prop!$A$2:$A$1498=AZ$129,ROW(Database_Prop!$B$2:$B$1498)-ROW(Database_Prop!$B$2)+1),ROWS(Database_Prop!W$2:'Database_Prop'!W97))),\"\")","v":""},{"$f":"IFERROR(INDEX(Database_Prop!$B$2:$B$1498,SMALL(IF(Database_Prop!$A$2:$A$1498=BA$129,ROW(Database_Prop!$B$2:$B$1498)-ROW(Database_Prop!$B$2)+1),ROWS(Database_Prop!X$2:'Database_Prop'!X97))),\"\")","v":""},{"$f":"IFERROR(INDEX(Database_Prop!$B$2:$B$1498,SMALL(IF(Database_Prop!$A$2:$A$1498=BB$129,ROW(Database_Prop!$B$2:$B$1498)-ROW(Database_Prop!$B$2)+1),ROWS(Database_Prop!Y$2:'Database_Prop'!Y97))),\"\")","v":""},{"$f":"IFERROR(INDEX(Database_Prop!$B$2:$B$1498,SMALL(IF(Database_Prop!$A$2:$A$1498=BC$129,ROW(Database_Prop!$B$2:$B$1498)-ROW(Database_Prop!$B$2)+1),ROWS(Database_Prop!Z$2:'Database_Prop'!Z97))),\"\")","v":""},null,"Iceland","Western Europe"]
[null,null,null,null,null,null,null,null,null,null,null,null,null,null,null,null,null,null,null,null,null,null,null,null,null,null,null,null,null,null,98,{"$f":"IFERROR(INDEX(Database_Prop!$B$2:$B$1498,SMALL(IF(Database_Prop!$A$2:$A$1498=AF$129,ROW(Database_Prop!$B$2:$B$1498)-ROW(Database_Prop!$B$2)+1),ROWS(Database_Prop!C$2:'Database_Prop'!C98))),\"\")","v":""},{"$f":"IFERROR(INDEX(Database_Prop!$B$2:$B$1498,SMALL(IF(Database_Prop!$A$2:$A$1498=AG$129,ROW(Database_Prop!$B$2:$B$1498)-ROW(Database_Prop!$B$2)+1),ROWS(Database_Prop!D$2:'Database_Prop'!D98))),\"\")","v":""},{"$f":"IFERROR(INDEX(Database_Prop!$B$2:$B$1498,SMALL(IF(Database_Prop!$A$2:$A$1498=AH$129,ROW(Database_Prop!$B$2:$B$1498)-ROW(Database_Prop!$B$2)+1),ROWS(Database_Prop!E$2:'Database_Prop'!E98))),\"\")","v":""},{"$f":"IFERROR(INDEX(Database_Prop!$B$2:$B$1498,SMALL(IF(Database_Prop!$A$2:$A$1498=AI$129,ROW(Database_Prop!$B$2:$B$1498)-ROW(Database_Prop!$B$2)+1),ROWS(Database_Prop!F$2:'Database_Prop'!F98))),\"\")","v":""},{"$f":"IFERROR(INDEX(Database_Prop!$B$2:$B$1498,SMALL(IF(Database_Prop!$A$2:$A$1498=AJ$129,ROW(Database_Prop!$B$2:$B$1498)-ROW(Database_Prop!$B$2)+1),ROWS(Database_Prop!G$2:'Database_Prop'!G98))),\"\")","v":""},{"$f":"IFERROR(INDEX(Database_Prop!$B$2:$B$1498,SMALL(IF(Database_Prop!$A$2:$A$1498=AK$129,ROW(Database_Prop!$B$2:$B$1498)-ROW(Database_Prop!$B$2)+1),ROWS(Database_Prop!H$2:'Database_Prop'!H98))),\"\")","v":""},{"$f":"IFERROR(INDEX(Database_Prop!$B$2:$B$1498,SMALL(IF(Database_Prop!$A$2:$A$1498=AL$129,ROW(Database_Prop!$B$2:$B$1498)-ROW(Database_Prop!$B$2)+1),ROWS(Database_Prop!I$2:'Database_Prop'!I98))),\"\")","v":""},{"$f":"IFERROR(INDEX(Database_Prop!$B$2:$B$1498,SMALL(IF(Database_Prop!$A$2:$A$1498=AM$129,ROW(Database_Prop!$B$2:$B$1498)-ROW(Database_Prop!$B$2)+1),ROWS(Database_Prop!J$2:'Database_Prop'!J98))),\"\")","v":""},{"$f":"IFERROR(INDEX(Database_Prop!$B$2:$B$1498,SMALL(IF(Database_Prop!$A$2:$A$1498=AN$129,ROW(Database_Prop!$B$2:$B$1498)-ROW(Database_Prop!$B$2)+1),ROWS(Database_Prop!K$2:'Database_Prop'!K98))),\"\")","v":""},{"$f":"IFERROR(INDEX(Database_Prop!$B$2:$B$1498,SMALL(IF(Database_Prop!$A$2:$A$1498=AO$129,ROW(Database_Prop!$B$2:$B$1498)-ROW(Database_Prop!$B$2)+1),ROWS(Database_Prop!L$2:'Database_Prop'!L98))),\"\")","v":""},{"$f":"IFERROR(INDEX(Database_Prop!$B$2:$B$1498,SMALL(IF(Database_Prop!$A$2:$A$1498=AP$129,ROW(Database_Prop!$B$2:$B$1498)-ROW(Database_Prop!$B$2)+1),ROWS(Database_Prop!M$2:'Database_Prop'!M98))),\"\")","v":""},{"$f":"IFERROR(INDEX(Database_Prop!$B$2:$B$1498,SMALL(IF(Database_Prop!$A$2:$A$1498=AQ$129,ROW(Database_Prop!$B$2:$B$1498)-ROW(Database_Prop!$B$2)+1),ROWS(Database_Prop!N$2:'Database_Prop'!N98))),\"\")","v":""},{"$f":"IFERROR(INDEX(Database_Prop!$B$2:$B$1498,SMALL(IF(Database_Prop!$A$2:$A$1498=AR$129,ROW(Database_Prop!$B$2:$B$1498)-ROW(Database_Prop!$B$2)+1),ROWS(Database_Prop!O$2:'Database_Prop'!O98))),\"\")","v":""},{"$f":"IFERROR(INDEX(Database_Prop!$B$2:$B$1498,SMALL(IF(Database_Prop!$A$2:$A$1498=AS$129,ROW(Database_Prop!$B$2:$B$1498)-ROW(Database_Prop!$B$2)+1),ROWS(Database_Prop!P$2:'Database_Prop'!P98))),\"\")","v":""},{"$f":"IFERROR(INDEX(Database_Prop!$B$2:$B$1498,SMALL(IF(Database_Prop!$A$2:$A$1498=AT$129,ROW(Database_Prop!$B$2:$B$1498)-ROW(Database_Prop!$B$2)+1),ROWS(Database_Prop!Q$2:'Database_Prop'!Q98))),\"\")","v":""},{"$f":"IFERROR(INDEX(Database_Prop!$B$2:$B$1498,SMALL(IF(Database_Prop!$A$2:$A$1498=AU$129,ROW(Database_Prop!$B$2:$B$1498)-ROW(Database_Prop!$B$2)+1),ROWS(Database_Prop!R$2:'Database_Prop'!R98))),\"\")","v":""},{"$f":"IFERROR(INDEX(Database_Prop!$B$2:$B$1498,SMALL(IF(Database_Prop!$A$2:$A$1498=AV$129,ROW(Database_Prop!$B$2:$B$1498)-ROW(Database_Prop!$B$2)+1),ROWS(Database_Prop!S$2:'Database_Prop'!S98))),\"\")","v":""},{"$f":"IFERROR(INDEX(Database_Prop!$B$2:$B$1498,SMALL(IF(Database_Prop!$A$2:$A$1498=AW$129,ROW(Database_Prop!$B$2:$B$1498)-ROW(Database_Prop!$B$2)+1),ROWS(Database_Prop!T$2:'Database_Prop'!T98))),\"\")","v":""},{"$f":"IFERROR(INDEX(Database_Prop!$B$2:$B$1498,SMALL(IF(Database_Prop!$A$2:$A$1498=AX$129,ROW(Database_Prop!$B$2:$B$1498)-ROW(Database_Prop!$B$2)+1),ROWS(Database_Prop!U$2:'Database_Prop'!U98))),\"\")","v":""},{"$f":"IFERROR(INDEX(Database_Prop!$B$2:$B$1498,SMALL(IF(Database_Prop!$A$2:$A$1498=AY$129,ROW(Database_Prop!$B$2:$B$1498)-ROW(Database_Prop!$B$2)+1),ROWS(Database_Prop!V$2:'Database_Prop'!V98))),\"\")","v":""},{"$f":"IFERROR(INDEX(Database_Prop!$B$2:$B$1498,SMALL(IF(Database_Prop!$A$2:$A$1498=AZ$129,ROW(Database_Prop!$B$2:$B$1498)-ROW(Database_Prop!$B$2)+1),ROWS(Database_Prop!W$2:'Database_Prop'!W98))),\"\")","v":""},{"$f":"IFERROR(INDEX(Database_Prop!$B$2:$B$1498,SMALL(IF(Database_Prop!$A$2:$A$1498=BA$129,ROW(Database_Prop!$B$2:$B$1498)-ROW(Database_Prop!$B$2)+1),ROWS(Database_Prop!X$2:'Database_Prop'!X98))),\"\")","v":""},{"$f":"IFERROR(INDEX(Database_Prop!$B$2:$B$1498,SMALL(IF(Database_Prop!$A$2:$A$1498=BB$129,ROW(Database_Prop!$B$2:$B$1498)-ROW(Database_Prop!$B$2)+1),ROWS(Database_Prop!Y$2:'Database_Prop'!Y98))),\"\")","v":""},{"$f":"IFERROR(INDEX(Database_Prop!$B$2:$B$1498,SMALL(IF(Database_Prop!$A$2:$A$1498=BC$129,ROW(Database_Prop!$B$2:$B$1498)-ROW(Database_Prop!$B$2)+1),ROWS(Database_Prop!Z$2:'Database_Prop'!Z98))),\"\")","v":""},null,"India","Indian Subcontinent"]
[null,null,null,null,null,null,null,null,null,null,null,null,null,null,null,null,null,null,null,null,null,null,null,null,null,null,null,null,null,null,99,{"$f":"IFERROR(INDEX(Database_Prop!$B$2:$B$1498,SMALL(IF(Database_Prop!$A$2:$A$1498=AF$129,ROW(Database_Prop!$B$2:$B$1498)-ROW(Database_Prop!$B$2)+1),ROWS(Database_Prop!C$2:'Database_Prop'!C99))),\"\")","v":""},{"$f":"IFERROR(INDEX(Database_Prop!$B$2:$B$1498,SMALL(IF(Database_Prop!$A$2:$A$1498=AG$129,ROW(Database_Prop!$B$2:$B$1498)-ROW(Database_Prop!$B$2)+1),ROWS(Database_Prop!D$2:'Database_Prop'!D99))),\"\")","v":""},{"$f":"IFERROR(INDEX(Database_Prop!$B$2:$B$1498,SMALL(IF(Database_Prop!$A$2:$A$1498=AH$129,ROW(Database_Prop!$B$2:$B$1498)-ROW(Database_Prop!$B$2)+1),ROWS(Database_Prop!E$2:'Database_Prop'!E99))),\"\")","v":""},{"$f":"IFERROR(INDEX(Database_Prop!$B$2:$B$1498,SMALL(IF(Database_Prop!$A$2:$A$1498=AI$129,ROW(Database_Prop!$B$2:$B$1498)-ROW(Database_Prop!$B$2)+1),ROWS(Database_Prop!F$2:'Database_Prop'!F99))),\"\")","v":""},{"$f":"IFERROR(INDEX(Database_Prop!$B$2:$B$1498,SMALL(IF(Database_Prop!$A$2:$A$1498=AJ$129,ROW(Database_Prop!$B$2:$B$1498)-ROW(Database_Prop!$B$2)+1),ROWS(Database_Prop!G$2:'Database_Prop'!G99))),\"\")","v":""},{"$f":"IFERROR(INDEX(Database_Prop!$B$2:$B$1498,SMALL(IF(Database_Prop!$A$2:$A$1498=AK$129,ROW(Database_Prop!$B$2:$B$1498)-ROW(Database_Prop!$B$2)+1),ROWS(Database_Prop!H$2:'Database_Prop'!H99))),\"\")","v":""},{"$f":"IFERROR(INDEX(Database_Prop!$B$2:$B$1498,SMALL(IF(Database_Prop!$A$2:$A$1498=AL$129,ROW(Database_Prop!$B$2:$B$1498)-ROW(Database_Prop!$B$2)+1),ROWS(Database_Prop!I$2:'Database_Prop'!I99))),\"\")","v":""},{"$f":"IFERROR(INDEX(Database_Prop!$B$2:$B$1498,SMALL(IF(Database_Prop!$A$2:$A$1498=AM$129,ROW(Database_Prop!$B$2:$B$1498)-ROW(Database_Prop!$B$2)+1),ROWS(Database_Prop!J$2:'Database_Prop'!J99))),\"\")","v":""},{"$f":"IFERROR(INDEX(Database_Prop!$B$2:$B$1498,SMALL(IF(Database_Prop!$A$2:$A$1498=AN$129,ROW(Database_Prop!$B$2:$B$1498)-ROW(Database_Prop!$B$2)+1),ROWS(Database_Prop!K$2:'Database_Prop'!K99))),\"\")","v":""},{"$f":"IFERROR(INDEX(Database_Prop!$B$2:$B$1498,SMALL(IF(Database_Prop!$A$2:$A$1498=AO$129,ROW(Database_Prop!$B$2:$B$1498)-ROW(Database_Prop!$B$2)+1),ROWS(Database_Prop!L$2:'Database_Prop'!L99))),\"\")","v":""},{"$f":"IFERROR(INDEX(Database_Prop!$B$2:$B$1498,SMALL(IF(Database_Prop!$A$2:$A$1498=AP$129,ROW(Database_Prop!$B$2:$B$1498)-ROW(Database_Prop!$B$2)+1),ROWS(Database_Prop!M$2:'Database_Prop'!M99))),\"\")","v":""},{"$f":"IFERROR(INDEX(Database_Prop!$B$2:$B$1498,SMALL(IF(Database_Prop!$A$2:$A$1498=AQ$129,ROW(Database_Prop!$B$2:$B$1498)-ROW(Database_Prop!$B$2)+1),ROWS(Database_Prop!N$2:'Database_Prop'!N99))),\"\")","v":""},{"$f":"IFERROR(INDEX(Database_Prop!$B$2:$B$1498,SMALL(IF(Database_Prop!$A$2:$A$1498=AR$129,ROW(Database_Prop!$B$2:$B$1498)-ROW(Database_Prop!$B$2)+1),ROWS(Database_Prop!O$2:'Database_Prop'!O99))),\"\")","v":""},{"$f":"IFERROR(INDEX(Database_Prop!$B$2:$B$1498,SMALL(IF(Database_Prop!$A$2:$A$1498=AS$129,ROW(Database_Prop!$B$2:$B$1498)-ROW(Database_Prop!$B$2)+1),ROWS(Database_Prop!P$2:'Database_Prop'!P99))),\"\")","v":""},{"$f":"IFERROR(INDEX(Database_Prop!$B$2:$B$1498,SMALL(IF(Database_Prop!$A$2:$A$1498=AT$129,ROW(Database_Prop!$B$2:$B$1498)-ROW(Database_Prop!$B$2)+1),ROWS(Database_Prop!Q$2:'Database_Prop'!Q99))),\"\")","v":""},{"$f":"IFERROR(INDEX(Database_Prop!$B$2:$B$1498,SMALL(IF(Database_Prop!$A$2:$A$1498=AU$129,ROW(Database_Prop!$B$2:$B$1498)-ROW(Database_Prop!$B$2)+1),ROWS(Database_Prop!R$2:'Database_Prop'!R99))),\"\")","v":""},{"$f":"IFERROR(INDEX(Database_Prop!$B$2:$B$1498,SMALL(IF(Database_Prop!$A$2:$A$1498=AV$129,ROW(Database_Prop!$B$2:$B$1498)-ROW(Database_Prop!$B$2)+1),ROWS(Database_Prop!S$2:'Database_Prop'!S99))),\"\")","v":""},{"$f":"IFERROR(INDEX(Database_Prop!$B$2:$B$1498,SMALL(IF(Database_Prop!$A$2:$A$1498=AW$129,ROW(Database_Prop!$B$2:$B$1498)-ROW(Database_Prop!$B$2)+1),ROWS(Database_Prop!T$2:'Database_Prop'!T99))),\"\")","v":""},{"$f":"IFERROR(INDEX(Database_Prop!$B$2:$B$1498,SMALL(IF(Database_Prop!$A$2:$A$1498=AX$129,ROW(Database_Prop!$B$2:$B$1498)-ROW(Database_Prop!$B$2)+1),ROWS(Database_Prop!U$2:'Database_Prop'!U99))),\"\")","v":""},{"$f":"IFERROR(INDEX(Database_Prop!$B$2:$B$1498,SMALL(IF(Database_Prop!$A$2:$A$1498=AY$129,ROW(Database_Prop!$B$2:$B$1498)-ROW(Database_Prop!$B$2)+1),ROWS(Database_Prop!V$2:'Database_Prop'!V99))),\"\")","v":""},{"$f":"IFERROR(INDEX(Database_Prop!$B$2:$B$1498,SMALL(IF(Database_Prop!$A$2:$A$1498=AZ$129,ROW(Database_Prop!$B$2:$B$1498)-ROW(Database_Prop!$B$2)+1),ROWS(Database_Prop!W$2:'Database_Prop'!W99))),\"\")","v":""},{"$f":"IFERROR(INDEX(Database_Prop!$B$2:$B$1498,SMALL(IF(Database_Prop!$A$2:$A$1498=BA$129,ROW(Database_Prop!$B$2:$B$1498)-ROW(Database_Prop!$B$2)+1),ROWS(Database_Prop!X$2:'Database_Prop'!X99))),\"\")","v":""},{"$f":"IFERROR(INDEX(Database_Prop!$B$2:$B$1498,SMALL(IF(Database_Prop!$A$2:$A$1498=BB$129,ROW(Database_Prop!$B$2:$B$1498)-ROW(Database_Prop!$B$2)+1),ROWS(Database_Prop!Y$2:'Database_Prop'!Y99))),\"\")","v":""},{"$f":"IFERROR(INDEX(Database_Prop!$B$2:$B$1498,SMALL(IF(Database_Prop!$A$2:$A$1498=BC$129,ROW(Database_Prop!$B$2:$B$1498)-ROW(Database_Prop!$B$2)+1),ROWS(Database_Prop!Z$2:'Database_Prop'!Z99))),\"\")","v":""},null,"Indonesia","Asia"]
[null,null,null,null,null,null,null,null,null,null,null,null,null,null,null,null,null,null,null,null,null,null,null,null,null,null,null,null,null,null,100,{"$f":"IFERROR(INDEX(Database_Prop!$B$2:$B$1498,SMALL(IF(Database_Prop!$A$2:$A$1498=AF$129,ROW(Database_Prop!$B$2:$B$1498)-ROW(Database_Prop!$B$2)+1),ROWS(Database_Prop!C$2:'Database_Prop'!C100))),\"\")","v":""},{"$f":"IFERROR(INDEX(Database_Prop!$B$2:$B$1498,SMALL(IF(Database_Prop!$A$2:$A$1498=AG$129,ROW(Database_Prop!$B$2:$B$1498)-ROW(Database_Prop!$B$2)+1),ROWS(Database_Prop!D$2:'Database_Prop'!D100))),\"\")","v":""},{"$f":"IFERROR(INDEX(Database_Prop!$B$2:$B$1498,SMALL(IF(Database_Prop!$A$2:$A$1498=AH$129,ROW(Database_Prop!$B$2:$B$1498)-ROW(Database_Prop!$B$2)+1),ROWS(Database_Prop!E$2:'Database_Prop'!E100))),\"\")","v":""},{"$f":"IFERROR(INDEX(Database_Prop!$B$2:$B$1498,SMALL(IF(Database_Prop!$A$2:$A$1498=AI$129,ROW(Database_Prop!$B$2:$B$1498)-ROW(Database_Prop!$B$2)+1),ROWS(Database_Prop!F$2:'Database_Prop'!F100))),\"\")","v":""},{"$f":"IFERROR(INDEX(Database_Prop!$B$2:$B$1498,SMALL(IF(Database_Prop!$A$2:$A$1498=AJ$129,ROW(Database_Prop!$B$2:$B$1498)-ROW(Database_Prop!$B$2)+1),ROWS(Database_Prop!G$2:'Database_Prop'!G100))),\"\")","v":""},{"$f":"IFERROR(INDEX(Database_Prop!$B$2:$B$1498,SMALL(IF(Database_Prop!$A$2:$A$1498=AK$129,ROW(Database_Prop!$B$2:$B$1498)-ROW(Database_Prop!$B$2)+1),ROWS(Database_Prop!H$2:'Database_Prop'!H100))),\"\")","v":""},{"$f":"IFERROR(INDEX(Database_Prop!$B$2:$B$1498,SMALL(IF(Database_Prop!$A$2:$A$1498=AL$129,ROW(Database_Prop!$B$2:$B$1498)-ROW(Database_Prop!$B$2)+1),ROWS(Database_Prop!I$2:'Database_Prop'!I100))),\"\")","v":""},{"$f":"IFERROR(INDEX(Database_Prop!$B$2:$B$1498,SMALL(IF(Database_Prop!$A$2:$A$1498=AM$129,ROW(Database_Prop!$B$2:$B$1498)-ROW(Database_Prop!$B$2)+1),ROWS(Database_Prop!J$2:'Database_Prop'!J100))),\"\")","v":""},{"$f":"IFERROR(INDEX(Database_Prop!$B$2:$B$1498,SMALL(IF(Database_Prop!$A$2:$A$1498=AN$129,ROW(Database_Prop!$B$2:$B$1498)-ROW(Database_Prop!$B$2)+1),ROWS(Database_Prop!K$2:'Database_Prop'!K100))),\"\")","v":""},{"$f":"IFERROR(INDEX(Database_Prop!$B$2:$B$1498,SMALL(IF(Database_Prop!$A$2:$A$1498=AO$129,ROW(Database_Prop!$B$2:$B$1498)-ROW(Database_Prop!$B$2)+1),ROWS(Database_Prop!L$2:'Database_Prop'!L100))),\"\")","v":""},{"$f":"IFERROR(INDEX(Database_Prop!$B$2:$B$1498,SMALL(IF(Database_Prop!$A$2:$A$1498=AP$129,ROW(Database_Prop!$B$2:$B$1498)-ROW(Database_Prop!$B$2)+1),ROWS(Database_Prop!M$2:'Database_Prop'!M100))),\"\")","v":""},{"$f":"IFERROR(INDEX(Database_Prop!$B$2:$B$1498,SMALL(IF(Database_Prop!$A$2:$A$1498=AQ$129,ROW(Database_Prop!$B$2:$B$1498)-ROW(Database_Prop!$B$2)+1),ROWS(Database_Prop!N$2:'Database_Prop'!N100))),\"\")","v":""},{"$f":"IFERROR(INDEX(Database_Prop!$B$2:$B$1498,SMALL(IF(Database_Prop!$A$2:$A$1498=AR$129,ROW(Database_Prop!$B$2:$B$1498)-ROW(Database_Prop!$B$2)+1),ROWS(Database_Prop!O$2:'Database_Prop'!O100))),\"\")","v":""},{"$f":"IFERROR(INDEX(Database_Prop!$B$2:$B$1498,SMALL(IF(Database_Prop!$A$2:$A$1498=AS$129,ROW(Database_Prop!$B$2:$B$1498)-ROW(Database_Prop!$B$2)+1),ROWS(Database_Prop!P$2:'Database_Prop'!P100))),\"\")","v":""},{"$f":"IFERROR(INDEX(Database_Prop!$B$2:$B$1498,SMALL(IF(Database_Prop!$A$2:$A$1498=AT$129,ROW(Database_Prop!$B$2:$B$1498)-ROW(Database_Prop!$B$2)+1),ROWS(Database_Prop!Q$2:'Database_Prop'!Q100))),\"\")","v":""},{"$f":"IFERROR(INDEX(Database_Prop!$B$2:$B$1498,SMALL(IF(Database_Prop!$A$2:$A$1498=AU$129,ROW(Database_Prop!$B$2:$B$1498)-ROW(Database_Prop!$B$2)+1),ROWS(Database_Prop!R$2:'Database_Prop'!R100))),\"\")","v":""},{"$f":"IFERROR(INDEX(Database_Prop!$B$2:$B$1498,SMALL(IF(Database_Prop!$A$2:$A$1498=AV$129,ROW(Database_Prop!$B$2:$B$1498)-ROW(Database_Prop!$B$2)+1),ROWS(Database_Prop!S$2:'Database_Prop'!S100))),\"\")","v":""},{"$f":"IFERROR(INDEX(Database_Prop!$B$2:$B$1498,SMALL(IF(Database_Prop!$A$2:$A$1498=AW$129,ROW(Database_Prop!$B$2:$B$1498)-ROW(Database_Prop!$B$2)+1),ROWS(Database_Prop!T$2:'Database_Prop'!T100))),\"\")","v":""},{"$f":"IFERROR(INDEX(Database_Prop!$B$2:$B$1498,SMALL(IF(Database_Prop!$A$2:$A$1498=AX$129,ROW(Database_Prop!$B$2:$B$1498)-ROW(Database_Prop!$B$2)+1),ROWS(Database_Prop!U$2:'Database_Prop'!U100))),\"\")","v":""},{"$f":"IFERROR(INDEX(Database_Prop!$B$2:$B$1498,SMALL(IF(Database_Prop!$A$2:$A$1498=AY$129,ROW(Database_Prop!$B$2:$B$1498)-ROW(Database_Prop!$B$2)+1),ROWS(Database_Prop!V$2:'Database_Prop'!V100))),\"\")","v":""},{"$f":"IFERROR(INDEX(Database_Prop!$B$2:$B$1498,SMALL(IF(Database_Prop!$A$2:$A$1498=AZ$129,ROW(Database_Prop!$B$2:$B$1498)-ROW(Database_Prop!$B$2)+1),ROWS(Database_Prop!W$2:'Database_Prop'!W100))),\"\")","v":""},{"$f":"IFERROR(INDEX(Database_Prop!$B$2:$B$1498,SMALL(IF(Database_Prop!$A$2:$A$1498=BA$129,ROW(Database_Prop!$B$2:$B$1498)-ROW(Database_Prop!$B$2)+1),ROWS(Database_Prop!X$2:'Database_Prop'!X100))),\"\")","v":""},{"$f":"IFERROR(INDEX(Database_Prop!$B$2:$B$1498,SMALL(IF(Database_Prop!$A$2:$A$1498=BB$129,ROW(Database_Prop!$B$2:$B$1498)-ROW(Database_Prop!$B$2)+1),ROWS(Database_Prop!Y$2:'Database_Prop'!Y100))),\"\")","v":""},{"$f":"IFERROR(INDEX(Database_Prop!$B$2:$B$1498,SMALL(IF(Database_Prop!$A$2:$A$1498=BC$129,ROW(Database_Prop!$B$2:$B$1498)-ROW(Database_Prop!$B$2)+1),ROWS(Database_Prop!Z$2:'Database_Prop'!Z100))),\"\")","v":""},null,"Iran (Islamic Republic of)","Middle East"]
[null,null,null,null,null,null,null,null,null,null,null,null,null,null,null,null,null,null,null,null,null,null,null,null,null,null,null,null,null,null,101,{"$f":"IFERROR(INDEX(Database_Prop!$B$2:$B$1498,SMALL(IF(Database_Prop!$A$2:$A$1498=AF$129,ROW(Database_Prop!$B$2:$B$1498)-ROW(Database_Prop!$B$2)+1),ROWS(Database_Prop!C$2:'Database_Prop'!C101))),\"\")","v":""},{"$f":"IFERROR(INDEX(Database_Prop!$B$2:$B$1498,SMALL(IF(Database_Prop!$A$2:$A$1498=AG$129,ROW(Database_Prop!$B$2:$B$1498)-ROW(Database_Prop!$B$2)+1),ROWS(Database_Prop!D$2:'Database_Prop'!D101))),\"\")","v":""},{"$f":"IFERROR(INDEX(Database_Prop!$B$2:$B$1498,SMALL(IF(Database_Prop!$A$2:$A$1498=AH$129,ROW(Database_Prop!$B$2:$B$1498)-ROW(Database_Prop!$B$2)+1),ROWS(Database_Prop!E$2:'Database_Prop'!E101))),\"\")","v":""},{"$f":"IFERROR(INDEX(Database_Prop!$B$2:$B$1498,SMALL(IF(Database_Prop!$A$2:$A$1498=AI$129,ROW(Database_Prop!$B$2:$B$1498)-ROW(Database_Prop!$B$2)+1),ROWS(Database_Prop!F$2:'Database_Prop'!F101))),\"\")","v":""},{"$f":"IFERROR(INDEX(Database_Prop!$B$2:$B$1498,SMALL(IF(Database_Prop!$A$2:$A$1498=AJ$129,ROW(Database_Prop!$B$2:$B$1498)-ROW(Database_Prop!$B$2)+1),ROWS(Database_Prop!G$2:'Database_Prop'!G101))),\"\")","v":""},{"$f":"IFERROR(INDEX(Database_Prop!$B$2:$B$1498,SMALL(IF(Database_Prop!$A$2:$A$1498=AK$129,ROW(Database_Prop!$B$2:$B$1498)-ROW(Database_Prop!$B$2)+1),ROWS(Database_Prop!H$2:'Database_Prop'!H101))),\"\")","v":""},{"$f":"IFERROR(INDEX(Database_Prop!$B$2:$B$1498,SMALL(IF(Database_Prop!$A$2:$A$1498=AL$129,ROW(Database_Prop!$B$2:$B$1498)-ROW(Database_Prop!$B$2)+1),ROWS(Database_Prop!I$2:'Database_Prop'!I101))),\"\")","v":""},{"$f":"IFERROR(INDEX(Database_Prop!$B$2:$B$1498,SMALL(IF(Database_Prop!$A$2:$A$1498=AM$129,ROW(Database_Prop!$B$2:$B$1498)-ROW(Database_Prop!$B$2)+1),ROWS(Database_Prop!J$2:'Database_Prop'!J101))),\"\")","v":""},{"$f":"IFERROR(INDEX(Database_Prop!$B$2:$B$1498,SMALL(IF(Database_Prop!$A$2:$A$1498=AN$129,ROW(Database_Prop!$B$2:$B$1498)-ROW(Database_Prop!$B$2)+1),ROWS(Database_Prop!K$2:'Database_Prop'!K101))),\"\")","v":""},{"$f":"IFERROR(INDEX(Database_Prop!$B$2:$B$1498,SMALL(IF(Database_Prop!$A$2:$A$1498=AO$129,ROW(Database_Prop!$B$2:$B$1498)-ROW(Database_Prop!$B$2)+1),ROWS(Database_Prop!L$2:'Database_Prop'!L101))),\"\")","v":""},{"$f":"IFERROR(INDEX(Database_Prop!$B$2:$B$1498,SMALL(IF(Database_Prop!$A$2:$A$1498=AP$129,ROW(Database_Prop!$B$2:$B$1498)-ROW(Database_Prop!$B$2)+1),ROWS(Database_Prop!M$2:'Database_Prop'!M101))),\"\")","v":""},{"$f":"IFERROR(INDEX(Database_Prop!$B$2:$B$1498,SMALL(IF(Database_Prop!$A$2:$A$1498=AQ$129,ROW(Database_Prop!$B$2:$B$1498)-ROW(Database_Prop!$B$2)+1),ROWS(Database_Prop!N$2:'Database_Prop'!N101))),\"\")","v":""},{"$f":"IFERROR(INDEX(Database_Prop!$B$2:$B$1498,SMALL(IF(Database_Prop!$A$2:$A$1498=AR$129,ROW(Database_Prop!$B$2:$B$1498)-ROW(Database_Prop!$B$2)+1),ROWS(Database_Prop!O$2:'Database_Prop'!O101))),\"\")","v":""},{"$f":"IFERROR(INDEX(Database_Prop!$B$2:$B$1498,SMALL(IF(Database_Prop!$A$2:$A$1498=AS$129,ROW(Database_Prop!$B$2:$B$1498)-ROW(Database_Prop!$B$2)+1),ROWS(Database_Prop!P$2:'Database_Prop'!P101))),\"\")","v":""},{"$f":"IFERROR(INDEX(Database_Prop!$B$2:$B$1498,SMALL(IF(Database_Prop!$A$2:$A$1498=AT$129,ROW(Database_Prop!$B$2:$B$1498)-ROW(Database_Prop!$B$2)+1),ROWS(Database_Prop!Q$2:'Database_Prop'!Q101))),\"\")","v":""},{"$f":"IFERROR(INDEX(Database_Prop!$B$2:$B$1498,SMALL(IF(Database_Prop!$A$2:$A$1498=AU$129,ROW(Database_Prop!$B$2:$B$1498)-ROW(Database_Prop!$B$2)+1),ROWS(Database_Prop!R$2:'Database_Prop'!R101))),\"\")","v":""},{"$f":"IFERROR(INDEX(Database_Prop!$B$2:$B$1498,SMALL(IF(Database_Prop!$A$2:$A$1498=AV$129,ROW(Database_Prop!$B$2:$B$1498)-ROW(Database_Prop!$B$2)+1),ROWS(Database_Prop!S$2:'Database_Prop'!S101))),\"\")","v":""},{"$f":"IFERROR(INDEX(Database_Prop!$B$2:$B$1498,SMALL(IF(Database_Prop!$A$2:$A$1498=AW$129,ROW(Database_Prop!$B$2:$B$1498)-ROW(Database_Prop!$B$2)+1),ROWS(Database_Prop!T$2:'Database_Prop'!T101))),\"\")","v":""},{"$f":"IFERROR(INDEX(Database_Prop!$B$2:$B$1498,SMALL(IF(Database_Prop!$A$2:$A$1498=AX$129,ROW(Database_Prop!$B$2:$B$1498)-ROW(Database_Prop!$B$2)+1),ROWS(Database_Prop!U$2:'Database_Prop'!U101))),\"\")","v":""},{"$f":"IFERROR(INDEX(Database_Prop!$B$2:$B$1498,SMALL(IF(Database_Prop!$A$2:$A$1498=AY$129,ROW(Database_Prop!$B$2:$B$1498)-ROW(Database_Prop!$B$2)+1),ROWS(Database_Prop!V$2:'Database_Prop'!V101))),\"\")","v":""},{"$f":"IFERROR(INDEX(Database_Prop!$B$2:$B$1498,SMALL(IF(Database_Prop!$A$2:$A$1498=AZ$129,ROW(Database_Prop!$B$2:$B$1498)-ROW(Database_Prop!$B$2)+1),ROWS(Database_Prop!W$2:'Database_Prop'!W101))),\"\")","v":""},{"$f":"IFERROR(INDEX(Database_Prop!$B$2:$B$1498,SMALL(IF(Database_Prop!$A$2:$A$1498=BA$129,ROW(Database_Prop!$B$2:$B$1498)-ROW(Database_Prop!$B$2)+1),ROWS(Database_Prop!X$2:'Database_Prop'!X101))),\"\")","v":""},{"$f":"IFERROR(INDEX(Database_Prop!$B$2:$B$1498,SMALL(IF(Database_Prop!$A$2:$A$1498=BB$129,ROW(Database_Prop!$B$2:$B$1498)-ROW(Database_Prop!$B$2)+1),ROWS(Database_Prop!Y$2:'Database_Prop'!Y101))),\"\")","v":""},{"$f":"IFERROR(INDEX(Database_Prop!$B$2:$B$1498,SMALL(IF(Database_Prop!$A$2:$A$1498=BC$129,ROW(Database_Prop!$B$2:$B$1498)-ROW(Database_Prop!$B$2)+1),ROWS(Database_Prop!Z$2:'Database_Prop'!Z101))),\"\")","v":""},null,"Iraq","Middle East"]
[null,null,null,null,null,null,null,null,null,null,null,null,null,null,null,null,null,null,null,null,null,null,null,null,null,null,null,null,null,null,102,{"$f":"IFERROR(INDEX(Database_Prop!$B$2:$B$1498,SMALL(IF(Database_Prop!$A$2:$A$1498=AF$129,ROW(Database_Prop!$B$2:$B$1498)-ROW(Database_Prop!$B$2)+1),ROWS(Database_Prop!C$2:'Database_Prop'!C102))),\"\")","v":""},{"$f":"IFERROR(INDEX(Database_Prop!$B$2:$B$1498,SMALL(IF(Database_Prop!$A$2:$A$1498=AG$129,ROW(Database_Prop!$B$2:$B$1498)-ROW(Database_Prop!$B$2)+1),ROWS(Database_Prop!D$2:'Database_Prop'!D102))),\"\")","v":""},{"$f":"IFERROR(INDEX(Database_Prop!$B$2:$B$1498,SMALL(IF(Database_Prop!$A$2:$A$1498=AH$129,ROW(Database_Prop!$B$2:$B$1498)-ROW(Database_Prop!$B$2)+1),ROWS(Database_Prop!E$2:'Database_Prop'!E102))),\"\")","v":""},{"$f":"IFERROR(INDEX(Database_Prop!$B$2:$B$1498,SMALL(IF(Database_Prop!$A$2:$A$1498=AI$129,ROW(Database_Prop!$B$2:$B$1498)-ROW(Database_Prop!$B$2)+1),ROWS(Database_Prop!F$2:'Database_Prop'!F102))),\"\")","v":""},{"$f":"IFERROR(INDEX(Database_Prop!$B$2:$B$1498,SMALL(IF(Database_Prop!$A$2:$A$1498=AJ$129,ROW(Database_Prop!$B$2:$B$1498)-ROW(Database_Prop!$B$2)+1),ROWS(Database_Prop!G$2:'Database_Prop'!G102))),\"\")","v":""},{"$f":"IFERROR(INDEX(Database_Prop!$B$2:$B$1498,SMALL(IF(Database_Prop!$A$2:$A$1498=AK$129,ROW(Database_Prop!$B$2:$B$1498)-ROW(Database_Prop!$B$2)+1),ROWS(Database_Prop!H$2:'Database_Prop'!H102))),\"\")","v":""},{"$f":"IFERROR(INDEX(Database_Prop!$B$2:$B$1498,SMALL(IF(Database_Prop!$A$2:$A$1498=AL$129,ROW(Database_Prop!$B$2:$B$1498)-ROW(Database_Prop!$B$2)+1),ROWS(Database_Prop!I$2:'Database_Prop'!I102))),\"\")","v":""},{"$f":"IFERROR(INDEX(Database_Prop!$B$2:$B$1498,SMALL(IF(Database_Prop!$A$2:$A$1498=AM$129,ROW(Database_Prop!$B$2:$B$1498)-ROW(Database_Prop!$B$2)+1),ROWS(Database_Prop!J$2:'Database_Prop'!J102))),\"\")","v":""},{"$f":"IFERROR(INDEX(Database_Prop!$B$2:$B$1498,SMALL(IF(Database_Prop!$A$2:$A$1498=AN$129,ROW(Database_Prop!$B$2:$B$1498)-ROW(Database_Prop!$B$2)+1),ROWS(Database_Prop!K$2:'Database_Prop'!K102))),\"\")","v":""},{"$f":"IFERROR(INDEX(Database_Prop!$B$2:$B$1498,SMALL(IF(Database_Prop!$A$2:$A$1498=AO$129,ROW(Database_Prop!$B$2:$B$1498)-ROW(Database_Prop!$B$2)+1),ROWS(Database_Prop!L$2:'Database_Prop'!L102))),\"\")","v":""},{"$f":"IFERROR(INDEX(Database_Prop!$B$2:$B$1498,SMALL(IF(Database_Prop!$A$2:$A$1498=AP$129,ROW(Database_Prop!$B$2:$B$1498)-ROW(Database_Prop!$B$2)+1),ROWS(Database_Prop!M$2:'Database_Prop'!M102))),\"\")","v":""},{"$f":"IFERROR(INDEX(Database_Prop!$B$2:$B$1498,SMALL(IF(Database_Prop!$A$2:$A$1498=AQ$129,ROW(Database_Prop!$B$2:$B$1498)-ROW(Database_Prop!$B$2)+1),ROWS(Database_Prop!N$2:'Database_Prop'!N102))),\"\")","v":""},{"$f":"IFERROR(INDEX(Database_Prop!$B$2:$B$1498,SMALL(IF(Database_Prop!$A$2:$A$1498=AR$129,ROW(Database_Prop!$B$2:$B$1498)-ROW(Database_Prop!$B$2)+1),ROWS(Database_Prop!O$2:'Database_Prop'!O102))),\"\")","v":""},{"$f":"IFERROR(INDEX(Database_Prop!$B$2:$B$1498,SMALL(IF(Database_Prop!$A$2:$A$1498=AS$129,ROW(Database_Prop!$B$2:$B$1498)-ROW(Database_Prop!$B$2)+1),ROWS(Database_Prop!P$2:'Database_Prop'!P102))),\"\")","v":""},{"$f":"IFERROR(INDEX(Database_Prop!$B$2:$B$1498,SMALL(IF(Database_Prop!$A$2:$A$1498=AT$129,ROW(Database_Prop!$B$2:$B$1498)-ROW(Database_Prop!$B$2)+1),ROWS(Database_Prop!Q$2:'Database_Prop'!Q102))),\"\")","v":""},{"$f":"IFERROR(INDEX(Database_Prop!$B$2:$B$1498,SMALL(IF(Database_Prop!$A$2:$A$1498=AU$129,ROW(Database_Prop!$B$2:$B$1498)-ROW(Database_Prop!$B$2)+1),ROWS(Database_Prop!R$2:'Database_Prop'!R102))),\"\")","v":""},{"$f":"IFERROR(INDEX(Database_Prop!$B$2:$B$1498,SMALL(IF(Database_Prop!$A$2:$A$1498=AV$129,ROW(Database_Prop!$B$2:$B$1498)-ROW(Database_Prop!$B$2)+1),ROWS(Database_Prop!S$2:'Database_Prop'!S102))),\"\")","v":""},{"$f":"IFERROR(INDEX(Database_Prop!$B$2:$B$1498,SMALL(IF(Database_Prop!$A$2:$A$1498=AW$129,ROW(Database_Prop!$B$2:$B$1498)-ROW(Database_Prop!$B$2)+1),ROWS(Database_Prop!T$2:'Database_Prop'!T102))),\"\")","v":""},{"$f":"IFERROR(INDEX(Database_Prop!$B$2:$B$1498,SMALL(IF(Database_Prop!$A$2:$A$1498=AX$129,ROW(Database_Prop!$B$2:$B$1498)-ROW(Database_Prop!$B$2)+1),ROWS(Database_Prop!U$2:'Database_Prop'!U102))),\"\")","v":""},{"$f":"IFERROR(INDEX(Database_Prop!$B$2:$B$1498,SMALL(IF(Database_Prop!$A$2:$A$1498=AY$129,ROW(Database_Prop!$B$2:$B$1498)-ROW(Database_Prop!$B$2)+1),ROWS(Database_Prop!V$2:'Database_Prop'!V102))),\"\")","v":""},{"$f":"IFERROR(INDEX(Database_Prop!$B$2:$B$1498,SMALL(IF(Database_Prop!$A$2:$A$1498=AZ$129,ROW(Database_Prop!$B$2:$B$1498)-ROW(Database_Prop!$B$2)+1),ROWS(Database_Prop!W$2:'Database_Prop'!W102))),\"\")","v":""},{"$f":"IFERROR(INDEX(Database_Prop!$B$2:$B$1498,SMALL(IF(Database_Prop!$A$2:$A$1498=BA$129,ROW(Database_Prop!$B$2:$B$1498)-ROW(Database_Prop!$B$2)+1),ROWS(Database_Prop!X$2:'Database_Prop'!X102))),\"\")","v":""},{"$f":"IFERROR(INDEX(Database_Prop!$B$2:$B$1498,SMALL(IF(Database_Prop!$A$2:$A$1498=BB$129,ROW(Database_Prop!$B$2:$B$1498)-ROW(Database_Prop!$B$2)+1),ROWS(Database_Prop!Y$2:'Database_Prop'!Y102))),\"\")","v":""},{"$f":"IFERROR(INDEX(Database_Prop!$B$2:$B$1498,SMALL(IF(Database_Prop!$A$2:$A$1498=BC$129,ROW(Database_Prop!$B$2:$B$1498)-ROW(Database_Prop!$B$2)+1),ROWS(Database_Prop!Z$2:'Database_Prop'!Z102))),\"\")","v":""},null,"Ireland","Western Europe"]
[null,null,null,null,null,null,null,null,null,null,null,null,null,null,null,null,null,null,null,null,null,null,null,null,null,null,null,null,null,null,103,{"$f":"IFERROR(INDEX(Database_Prop!$B$2:$B$1498,SMALL(IF(Database_Prop!$A$2:$A$1498=AF$129,ROW(Database_Prop!$B$2:$B$1498)-ROW(Database_Prop!$B$2)+1),ROWS(Database_Prop!C$2:'Database_Prop'!C103))),\"\")","v":""},{"$f":"IFERROR(INDEX(Database_Prop!$B$2:$B$1498,SMALL(IF(Database_Prop!$A$2:$A$1498=AG$129,ROW(Database_Prop!$B$2:$B$1498)-ROW(Database_Prop!$B$2)+1),ROWS(Database_Prop!D$2:'Database_Prop'!D103))),\"\")","v":""},{"$f":"IFERROR(INDEX(Database_Prop!$B$2:$B$1498,SMALL(IF(Database_Prop!$A$2:$A$1498=AH$129,ROW(Database_Prop!$B$2:$B$1498)-ROW(Database_Prop!$B$2)+1),ROWS(Database_Prop!E$2:'Database_Prop'!E103))),\"\")","v":""},{"$f":"IFERROR(INDEX(Database_Prop!$B$2:$B$1498,SMALL(IF(Database_Prop!$A$2:$A$1498=AI$129,ROW(Database_Prop!$B$2:$B$1498)-ROW(Database_Prop!$B$2)+1),ROWS(Database_Prop!F$2:'Database_Prop'!F103))),\"\")","v":""},{"$f":"IFERROR(INDEX(Database_Prop!$B$2:$B$1498,SMALL(IF(Database_Prop!$A$2:$A$1498=AJ$129,ROW(Database_Prop!$B$2:$B$1498)-ROW(Database_Prop!$B$2)+1),ROWS(Database_Prop!G$2:'Database_Prop'!G103))),\"\")","v":""},{"$f":"IFERROR(INDEX(Database_Prop!$B$2:$B$1498,SMALL(IF(Database_Prop!$A$2:$A$1498=AK$129,ROW(Database_Prop!$B$2:$B$1498)-ROW(Database_Prop!$B$2)+1),ROWS(Database_Prop!H$2:'Database_Prop'!H103))),\"\")","v":""},{"$f":"IFERROR(INDEX(Database_Prop!$B$2:$B$1498,SMALL(IF(Database_Prop!$A$2:$A$1498=AL$129,ROW(Database_Prop!$B$2:$B$1498)-ROW(Database_Prop!$B$2)+1),ROWS(Database_Prop!I$2:'Database_Prop'!I103))),\"\")","v":""},{"$f":"IFERROR(INDEX(Database_Prop!$B$2:$B$1498,SMALL(IF(Database_Prop!$A$2:$A$1498=AM$129,ROW(Database_Prop!$B$2:$B$1498)-ROW(Database_Prop!$B$2)+1),ROWS(Database_Prop!J$2:'Database_Prop'!J103))),\"\")","v":""},{"$f":"IFERROR(INDEX(Database_Prop!$B$2:$B$1498,SMALL(IF(Database_Prop!$A$2:$A$1498=AN$129,ROW(Database_Prop!$B$2:$B$1498)-ROW(Database_Prop!$B$2)+1),ROWS(Database_Prop!K$2:'Database_Prop'!K103))),\"\")","v":""},{"$f":"IFERROR(INDEX(Database_Prop!$B$2:$B$1498,SMALL(IF(Database_Prop!$A$2:$A$1498=AO$129,ROW(Database_Prop!$B$2:$B$1498)-ROW(Database_Prop!$B$2)+1),ROWS(Database_Prop!L$2:'Database_Prop'!L103))),\"\")","v":""},{"$f":"IFERROR(INDEX(Database_Prop!$B$2:$B$1498,SMALL(IF(Database_Prop!$A$2:$A$1498=AP$129,ROW(Database_Prop!$B$2:$B$1498)-ROW(Database_Prop!$B$2)+1),ROWS(Database_Prop!M$2:'Database_Prop'!M103))),\"\")","v":""},{"$f":"IFERROR(INDEX(Database_Prop!$B$2:$B$1498,SMALL(IF(Database_Prop!$A$2:$A$1498=AQ$129,ROW(Database_Prop!$B$2:$B$1498)-ROW(Database_Prop!$B$2)+1),ROWS(Database_Prop!N$2:'Database_Prop'!N103))),\"\")","v":""},{"$f":"IFERROR(INDEX(Database_Prop!$B$2:$B$1498,SMALL(IF(Database_Prop!$A$2:$A$1498=AR$129,ROW(Database_Prop!$B$2:$B$1498)-ROW(Database_Prop!$B$2)+1),ROWS(Database_Prop!O$2:'Database_Prop'!O103))),\"\")","v":""},{"$f":"IFERROR(INDEX(Database_Prop!$B$2:$B$1498,SMALL(IF(Database_Prop!$A$2:$A$1498=AS$129,ROW(Database_Prop!$B$2:$B$1498)-ROW(Database_Prop!$B$2)+1),ROWS(Database_Prop!P$2:'Database_Prop'!P103))),\"\")","v":""},{"$f":"IFERROR(INDEX(Database_Prop!$B$2:$B$1498,SMALL(IF(Database_Prop!$A$2:$A$1498=AT$129,ROW(Database_Prop!$B$2:$B$1498)-ROW(Database_Prop!$B$2)+1),ROWS(Database_Prop!Q$2:'Database_Prop'!Q103))),\"\")","v":""},{"$f":"IFERROR(INDEX(Database_Prop!$B$2:$B$1498,SMALL(IF(Database_Prop!$A$2:$A$1498=AU$129,ROW(Database_Prop!$B$2:$B$1498)-ROW(Database_Prop!$B$2)+1),ROWS(Database_Prop!R$2:'Database_Prop'!R103))),\"\")","v":""},{"$f":"IFERROR(INDEX(Database_Prop!$B$2:$B$1498,SMALL(IF(Database_Prop!$A$2:$A$1498=AV$129,ROW(Database_Prop!$B$2:$B$1498)-ROW(Database_Prop!$B$2)+1),ROWS(Database_Prop!S$2:'Database_Prop'!S103))),\"\")","v":""},{"$f":"IFERROR(INDEX(Database_Prop!$B$2:$B$1498,SMALL(IF(Database_Prop!$A$2:$A$1498=AW$129,ROW(Database_Prop!$B$2:$B$1498)-ROW(Database_Prop!$B$2)+1),ROWS(Database_Prop!T$2:'Database_Prop'!T103))),\"\")","v":""},{"$f":"IFERROR(INDEX(Database_Prop!$B$2:$B$1498,SMALL(IF(Database_Prop!$A$2:$A$1498=AX$129,ROW(Database_Prop!$B$2:$B$1498)-ROW(Database_Prop!$B$2)+1),ROWS(Database_Prop!U$2:'Database_Prop'!U103))),\"\")","v":""},{"$f":"IFERROR(INDEX(Database_Prop!$B$2:$B$1498,SMALL(IF(Database_Prop!$A$2:$A$1498=AY$129,ROW(Database_Prop!$B$2:$B$1498)-ROW(Database_Prop!$B$2)+1),ROWS(Database_Prop!V$2:'Database_Prop'!V103))),\"\")","v":""},{"$f":"IFERROR(INDEX(Database_Prop!$B$2:$B$1498,SMALL(IF(Database_Prop!$A$2:$A$1498=AZ$129,ROW(Database_Prop!$B$2:$B$1498)-ROW(Database_Prop!$B$2)+1),ROWS(Database_Prop!W$2:'Database_Prop'!W103))),\"\")","v":""},{"$f":"IFERROR(INDEX(Database_Prop!$B$2:$B$1498,SMALL(IF(Database_Prop!$A$2:$A$1498=BA$129,ROW(Database_Prop!$B$2:$B$1498)-ROW(Database_Prop!$B$2)+1),ROWS(Database_Prop!X$2:'Database_Prop'!X103))),\"\")","v":""},{"$f":"IFERROR(INDEX(Database_Prop!$B$2:$B$1498,SMALL(IF(Database_Prop!$A$2:$A$1498=BB$129,ROW(Database_Prop!$B$2:$B$1498)-ROW(Database_Prop!$B$2)+1),ROWS(Database_Prop!Y$2:'Database_Prop'!Y103))),\"\")","v":""},{"$f":"IFERROR(INDEX(Database_Prop!$B$2:$B$1498,SMALL(IF(Database_Prop!$A$2:$A$1498=BC$129,ROW(Database_Prop!$B$2:$B$1498)-ROW(Database_Prop!$B$2)+1),ROWS(Database_Prop!Z$2:'Database_Prop'!Z103))),\"\")","v":""},null,"Isle of Man","Western Europe"]
[null,null,null,null,null,null,null,null,null,null,null,null,null,null,null,null,null,null,null,null,null,null,null,null,null,null,null,null,null,null,104,{"$f":"IFERROR(INDEX(Database_Prop!$B$2:$B$1498,SMALL(IF(Database_Prop!$A$2:$A$1498=AF$129,ROW(Database_Prop!$B$2:$B$1498)-ROW(Database_Prop!$B$2)+1),ROWS(Database_Prop!C$2:'Database_Prop'!C104))),\"\")","v":""},{"$f":"IFERROR(INDEX(Database_Prop!$B$2:$B$1498,SMALL(IF(Database_Prop!$A$2:$A$1498=AG$129,ROW(Database_Prop!$B$2:$B$1498)-ROW(Database_Prop!$B$2)+1),ROWS(Database_Prop!D$2:'Database_Prop'!D104))),\"\")","v":""},{"$f":"IFERROR(INDEX(Database_Prop!$B$2:$B$1498,SMALL(IF(Database_Prop!$A$2:$A$1498=AH$129,ROW(Database_Prop!$B$2:$B$1498)-ROW(Database_Prop!$B$2)+1),ROWS(Database_Prop!E$2:'Database_Prop'!E104))),\"\")","v":""},{"$f":"IFERROR(INDEX(Database_Prop!$B$2:$B$1498,SMALL(IF(Database_Prop!$A$2:$A$1498=AI$129,ROW(Database_Prop!$B$2:$B$1498)-ROW(Database_Prop!$B$2)+1),ROWS(Database_Prop!F$2:'Database_Prop'!F104))),\"\")","v":""},{"$f":"IFERROR(INDEX(Database_Prop!$B$2:$B$1498,SMALL(IF(Database_Prop!$A$2:$A$1498=AJ$129,ROW(Database_Prop!$B$2:$B$1498)-ROW(Database_Prop!$B$2)+1),ROWS(Database_Prop!G$2:'Database_Prop'!G104))),\"\")","v":""},{"$f":"IFERROR(INDEX(Database_Prop!$B$2:$B$1498,SMALL(IF(Database_Prop!$A$2:$A$1498=AK$129,ROW(Database_Prop!$B$2:$B$1498)-ROW(Database_Prop!$B$2)+1),ROWS(Database_Prop!H$2:'Database_Prop'!H104))),\"\")","v":""},{"$f":"IFERROR(INDEX(Database_Prop!$B$2:$B$1498,SMALL(IF(Database_Prop!$A$2:$A$1498=AL$129,ROW(Database_Prop!$B$2:$B$1498)-ROW(Database_Prop!$B$2)+1),ROWS(Database_Prop!I$2:'Database_Prop'!I104))),\"\")","v":""},{"$f":"IFERROR(INDEX(Database_Prop!$B$2:$B$1498,SMALL(IF(Database_Prop!$A$2:$A$1498=AM$129,ROW(Database_Prop!$B$2:$B$1498)-ROW(Database_Prop!$B$2)+1),ROWS(Database_Prop!J$2:'Database_Prop'!J104))),\"\")","v":""},{"$f":"IFERROR(INDEX(Database_Prop!$B$2:$B$1498,SMALL(IF(Database_Prop!$A$2:$A$1498=AN$129,ROW(Database_Prop!$B$2:$B$1498)-ROW(Database_Prop!$B$2)+1),ROWS(Database_Prop!K$2:'Database_Prop'!K104))),\"\")","v":""},{"$f":"IFERROR(INDEX(Database_Prop!$B$2:$B$1498,SMALL(IF(Database_Prop!$A$2:$A$1498=AO$129,ROW(Database_Prop!$B$2:$B$1498)-ROW(Database_Prop!$B$2)+1),ROWS(Database_Prop!L$2:'Database_Prop'!L104))),\"\")","v":""},{"$f":"IFERROR(INDEX(Database_Prop!$B$2:$B$1498,SMALL(IF(Database_Prop!$A$2:$A$1498=AP$129,ROW(Database_Prop!$B$2:$B$1498)-ROW(Database_Prop!$B$2)+1),ROWS(Database_Prop!M$2:'Database_Prop'!M104))),\"\")","v":""},{"$f":"IFERROR(INDEX(Database_Prop!$B$2:$B$1498,SMALL(IF(Database_Prop!$A$2:$A$1498=AQ$129,ROW(Database_Prop!$B$2:$B$1498)-ROW(Database_Prop!$B$2)+1),ROWS(Database_Prop!N$2:'Database_Prop'!N104))),\"\")","v":""},{"$f":"IFERROR(INDEX(Database_Prop!$B$2:$B$1498,SMALL(IF(Database_Prop!$A$2:$A$1498=AR$129,ROW(Database_Prop!$B$2:$B$1498)-ROW(Database_Prop!$B$2)+1),ROWS(Database_Prop!O$2:'Database_Prop'!O104))),\"\")","v":""},{"$f":"IFERROR(INDEX(Database_Prop!$B$2:$B$1498,SMALL(IF(Database_Prop!$A$2:$A$1498=AS$129,ROW(Database_Prop!$B$2:$B$1498)-ROW(Database_Prop!$B$2)+1),ROWS(Database_Prop!P$2:'Database_Prop'!P104))),\"\")","v":""},{"$f":"IFERROR(INDEX(Database_Prop!$B$2:$B$1498,SMALL(IF(Database_Prop!$A$2:$A$1498=AT$129,ROW(Database_Prop!$B$2:$B$1498)-ROW(Database_Prop!$B$2)+1),ROWS(Database_Prop!Q$2:'Database_Prop'!Q104))),\"\")","v":""},{"$f":"IFERROR(INDEX(Database_Prop!$B$2:$B$1498,SMALL(IF(Database_Prop!$A$2:$A$1498=AU$129,ROW(Database_Prop!$B$2:$B$1498)-ROW(Database_Prop!$B$2)+1),ROWS(Database_Prop!R$2:'Database_Prop'!R104))),\"\")","v":""},{"$f":"IFERROR(INDEX(Database_Prop!$B$2:$B$1498,SMALL(IF(Database_Prop!$A$2:$A$1498=AV$129,ROW(Database_Prop!$B$2:$B$1498)-ROW(Database_Prop!$B$2)+1),ROWS(Database_Prop!S$2:'Database_Prop'!S104))),\"\")","v":""},{"$f":"IFERROR(INDEX(Database_Prop!$B$2:$B$1498,SMALL(IF(Database_Prop!$A$2:$A$1498=AW$129,ROW(Database_Prop!$B$2:$B$1498)-ROW(Database_Prop!$B$2)+1),ROWS(Database_Prop!T$2:'Database_Prop'!T104))),\"\")","v":""},{"$f":"IFERROR(INDEX(Database_Prop!$B$2:$B$1498,SMALL(IF(Database_Prop!$A$2:$A$1498=AX$129,ROW(Database_Prop!$B$2:$B$1498)-ROW(Database_Prop!$B$2)+1),ROWS(Database_Prop!U$2:'Database_Prop'!U104))),\"\")","v":""},{"$f":"IFERROR(INDEX(Database_Prop!$B$2:$B$1498,SMALL(IF(Database_Prop!$A$2:$A$1498=AY$129,ROW(Database_Prop!$B$2:$B$1498)-ROW(Database_Prop!$B$2)+1),ROWS(Database_Prop!V$2:'Database_Prop'!V104))),\"\")","v":""},{"$f":"IFERROR(INDEX(Database_Prop!$B$2:$B$1498,SMALL(IF(Database_Prop!$A$2:$A$1498=AZ$129,ROW(Database_Prop!$B$2:$B$1498)-ROW(Database_Prop!$B$2)+1),ROWS(Database_Prop!W$2:'Database_Prop'!W104))),\"\")","v":""},{"$f":"IFERROR(INDEX(Database_Prop!$B$2:$B$1498,SMALL(IF(Database_Prop!$A$2:$A$1498=BA$129,ROW(Database_Prop!$B$2:$B$1498)-ROW(Database_Prop!$B$2)+1),ROWS(Database_Prop!X$2:'Database_Prop'!X104))),\"\")","v":""},{"$f":"IFERROR(INDEX(Database_Prop!$B$2:$B$1498,SMALL(IF(Database_Prop!$A$2:$A$1498=BB$129,ROW(Database_Prop!$B$2:$B$1498)-ROW(Database_Prop!$B$2)+1),ROWS(Database_Prop!Y$2:'Database_Prop'!Y104))),\"\")","v":""},{"$f":"IFERROR(INDEX(Database_Prop!$B$2:$B$1498,SMALL(IF(Database_Prop!$A$2:$A$1498=BC$129,ROW(Database_Prop!$B$2:$B$1498)-ROW(Database_Prop!$B$2)+1),ROWS(Database_Prop!Z$2:'Database_Prop'!Z104))),\"\")","v":""},null,"Israel","Middle East"]
[null,null,null,null,null,null,null,null,null,null,null,null,null,null,null,null,null,null,null,null,null,null,null,null,null,null,null,null,null,null,105,{"$f":"IFERROR(INDEX(Database_Prop!$B$2:$B$1498,SMALL(IF(Database_Prop!$A$2:$A$1498=AF$129,ROW(Database_Prop!$B$2:$B$1498)-ROW(Database_Prop!$B$2)+1),ROWS(Database_Prop!C$2:'Database_Prop'!C105))),\"\")","v":""},{"$f":"IFERROR(INDEX(Database_Prop!$B$2:$B$1498,SMALL(IF(Database_Prop!$A$2:$A$1498=AG$129,ROW(Database_Prop!$B$2:$B$1498)-ROW(Database_Prop!$B$2)+1),ROWS(Database_Prop!D$2:'Database_Prop'!D105))),\"\")","v":""},{"$f":"IFERROR(INDEX(Database_Prop!$B$2:$B$1498,SMALL(IF(Database_Prop!$A$2:$A$1498=AH$129,ROW(Database_Prop!$B$2:$B$1498)-ROW(Database_Prop!$B$2)+1),ROWS(Database_Prop!E$2:'Database_Prop'!E105))),\"\")","v":""},{"$f":"IFERROR(INDEX(Database_Prop!$B$2:$B$1498,SMALL(IF(Database_Prop!$A$2:$A$1498=AI$129,ROW(Database_Prop!$B$2:$B$1498)-ROW(Database_Prop!$B$2)+1),ROWS(Database_Prop!F$2:'Database_Prop'!F105))),\"\")","v":""},{"$f":"IFERROR(INDEX(Database_Prop!$B$2:$B$1498,SMALL(IF(Database_Prop!$A$2:$A$1498=AJ$129,ROW(Database_Prop!$B$2:$B$1498)-ROW(Database_Prop!$B$2)+1),ROWS(Database_Prop!G$2:'Database_Prop'!G105))),\"\")","v":""},{"$f":"IFERROR(INDEX(Database_Prop!$B$2:$B$1498,SMALL(IF(Database_Prop!$A$2:$A$1498=AK$129,ROW(Database_Prop!$B$2:$B$1498)-ROW(Database_Prop!$B$2)+1),ROWS(Database_Prop!H$2:'Database_Prop'!H105))),\"\")","v":""},{"$f":"IFERROR(INDEX(Database_Prop!$B$2:$B$1498,SMALL(IF(Database_Prop!$A$2:$A$1498=AL$129,ROW(Database_Prop!$B$2:$B$1498)-ROW(Database_Prop!$B$2)+1),ROWS(Database_Prop!I$2:'Database_Prop'!I105))),\"\")","v":""},{"$f":"IFERROR(INDEX(Database_Prop!$B$2:$B$1498,SMALL(IF(Database_Prop!$A$2:$A$1498=AM$129,ROW(Database_Prop!$B$2:$B$1498)-ROW(Database_Prop!$B$2)+1),ROWS(Database_Prop!J$2:'Database_Prop'!J105))),\"\")","v":""},{"$f":"IFERROR(INDEX(Database_Prop!$B$2:$B$1498,SMALL(IF(Database_Prop!$A$2:$A$1498=AN$129,ROW(Database_Prop!$B$2:$B$1498)-ROW(Database_Prop!$B$2)+1),ROWS(Database_Prop!K$2:'Database_Prop'!K105))),\"\")","v":""},{"$f":"IFERROR(INDEX(Database_Prop!$B$2:$B$1498,SMALL(IF(Database_Prop!$A$2:$A$1498=AO$129,ROW(Database_Prop!$B$2:$B$1498)-ROW(Database_Prop!$B$2)+1),ROWS(Database_Prop!L$2:'Database_Prop'!L105))),\"\")","v":""},{"$f":"IFERROR(INDEX(Database_Prop!$B$2:$B$1498,SMALL(IF(Database_Prop!$A$2:$A$1498=AP$129,ROW(Database_Prop!$B$2:$B$1498)-ROW(Database_Prop!$B$2)+1),ROWS(Database_Prop!M$2:'Database_Prop'!M105))),\"\")","v":""},{"$f":"IFERROR(INDEX(Database_Prop!$B$2:$B$1498,SMALL(IF(Database_Prop!$A$2:$A$1498=AQ$129,ROW(Database_Prop!$B$2:$B$1498)-ROW(Database_Prop!$B$2)+1),ROWS(Database_Prop!N$2:'Database_Prop'!N105))),\"\")","v":""},{"$f":"IFERROR(INDEX(Database_Prop!$B$2:$B$1498,SMALL(IF(Database_Prop!$A$2:$A$1498=AR$129,ROW(Database_Prop!$B$2:$B$1498)-ROW(Database_Prop!$B$2)+1),ROWS(Database_Prop!O$2:'Database_Prop'!O105))),\"\")","v":""},{"$f":"IFERROR(INDEX(Database_Prop!$B$2:$B$1498,SMALL(IF(Database_Prop!$A$2:$A$1498=AS$129,ROW(Database_Prop!$B$2:$B$1498)-ROW(Database_Prop!$B$2)+1),ROWS(Database_Prop!P$2:'Database_Prop'!P105))),\"\")","v":""},{"$f":"IFERROR(INDEX(Database_Prop!$B$2:$B$1498,SMALL(IF(Database_Prop!$A$2:$A$1498=AT$129,ROW(Database_Prop!$B$2:$B$1498)-ROW(Database_Prop!$B$2)+1),ROWS(Database_Prop!Q$2:'Database_Prop'!Q105))),\"\")","v":""},{"$f":"IFERROR(INDEX(Database_Prop!$B$2:$B$1498,SMALL(IF(Database_Prop!$A$2:$A$1498=AU$129,ROW(Database_Prop!$B$2:$B$1498)-ROW(Database_Prop!$B$2)+1),ROWS(Database_Prop!R$2:'Database_Prop'!R105))),\"\")","v":""},{"$f":"IFERROR(INDEX(Database_Prop!$B$2:$B$1498,SMALL(IF(Database_Prop!$A$2:$A$1498=AV$129,ROW(Database_Prop!$B$2:$B$1498)-ROW(Database_Prop!$B$2)+1),ROWS(Database_Prop!S$2:'Database_Prop'!S105))),\"\")","v":""},{"$f":"IFERROR(INDEX(Database_Prop!$B$2:$B$1498,SMALL(IF(Database_Prop!$A$2:$A$1498=AW$129,ROW(Database_Prop!$B$2:$B$1498)-ROW(Database_Prop!$B$2)+1),ROWS(Database_Prop!T$2:'Database_Prop'!T105))),\"\")","v":""},{"$f":"IFERROR(INDEX(Database_Prop!$B$2:$B$1498,SMALL(IF(Database_Prop!$A$2:$A$1498=AX$129,ROW(Database_Prop!$B$2:$B$1498)-ROW(Database_Prop!$B$2)+1),ROWS(Database_Prop!U$2:'Database_Prop'!U105))),\"\")","v":""},{"$f":"IFERROR(INDEX(Database_Prop!$B$2:$B$1498,SMALL(IF(Database_Prop!$A$2:$A$1498=AY$129,ROW(Database_Prop!$B$2:$B$1498)-ROW(Database_Prop!$B$2)+1),ROWS(Database_Prop!V$2:'Database_Prop'!V105))),\"\")","v":""},{"$f":"IFERROR(INDEX(Database_Prop!$B$2:$B$1498,SMALL(IF(Database_Prop!$A$2:$A$1498=AZ$129,ROW(Database_Prop!$B$2:$B$1498)-ROW(Database_Prop!$B$2)+1),ROWS(Database_Prop!W$2:'Database_Prop'!W105))),\"\")","v":""},{"$f":"IFERROR(INDEX(Database_Prop!$B$2:$B$1498,SMALL(IF(Database_Prop!$A$2:$A$1498=BA$129,ROW(Database_Prop!$B$2:$B$1498)-ROW(Database_Prop!$B$2)+1),ROWS(Database_Prop!X$2:'Database_Prop'!X105))),\"\")","v":""},{"$f":"IFERROR(INDEX(Database_Prop!$B$2:$B$1498,SMALL(IF(Database_Prop!$A$2:$A$1498=BB$129,ROW(Database_Prop!$B$2:$B$1498)-ROW(Database_Prop!$B$2)+1),ROWS(Database_Prop!Y$2:'Database_Prop'!Y105))),\"\")","v":""},{"$f":"IFERROR(INDEX(Database_Prop!$B$2:$B$1498,SMALL(IF(Database_Prop!$A$2:$A$1498=BC$129,ROW(Database_Prop!$B$2:$B$1498)-ROW(Database_Prop!$B$2)+1),ROWS(Database_Prop!Z$2:'Database_Prop'!Z105))),\"\")","v":""},null,"Italy","Western Europe"]
[null,null,null,null,null,null,null,null,null,null,null,null,null,null,null,null,null,null,null,null,null,null,null,null,null,null,null,null,null,null,106,{"$f":"IFERROR(INDEX(Database_Prop!$B$2:$B$1498,SMALL(IF(Database_Prop!$A$2:$A$1498=AF$129,ROW(Database_Prop!$B$2:$B$1498)-ROW(Database_Prop!$B$2)+1),ROWS(Database_Prop!C$2:'Database_Prop'!C106))),\"\")","v":""},{"$f":"IFERROR(INDEX(Database_Prop!$B$2:$B$1498,SMALL(IF(Database_Prop!$A$2:$A$1498=AG$129,ROW(Database_Prop!$B$2:$B$1498)-ROW(Database_Prop!$B$2)+1),ROWS(Database_Prop!D$2:'Database_Prop'!D106))),\"\")","v":""},{"$f":"IFERROR(INDEX(Database_Prop!$B$2:$B$1498,SMALL(IF(Database_Prop!$A$2:$A$1498=AH$129,ROW(Database_Prop!$B$2:$B$1498)-ROW(Database_Prop!$B$2)+1),ROWS(Database_Prop!E$2:'Database_Prop'!E106))),\"\")","v":""},{"$f":"IFERROR(INDEX(Database_Prop!$B$2:$B$1498,SMALL(IF(Database_Prop!$A$2:$A$1498=AI$129,ROW(Database_Prop!$B$2:$B$1498)-ROW(Database_Prop!$B$2)+1),ROWS(Database_Prop!F$2:'Database_Prop'!F106))),\"\")","v":""},{"$f":"IFERROR(INDEX(Database_Prop!$B$2:$B$1498,SMALL(IF(Database_Prop!$A$2:$A$1498=AJ$129,ROW(Database_Prop!$B$2:$B$1498)-ROW(Database_Prop!$B$2)+1),ROWS(Database_Prop!G$2:'Database_Prop'!G106))),\"\")","v":""},{"$f":"IFERROR(INDEX(Database_Prop!$B$2:$B$1498,SMALL(IF(Database_Prop!$A$2:$A$1498=AK$129,ROW(Database_Prop!$B$2:$B$1498)-ROW(Database_Prop!$B$2)+1),ROWS(Database_Prop!H$2:'Database_Prop'!H106))),\"\")","v":""},{"$f":"IFERROR(INDEX(Database_Prop!$B$2:$B$1498,SMALL(IF(Database_Prop!$A$2:$A$1498=AL$129,ROW(Database_Prop!$B$2:$B$1498)-ROW(Database_Prop!$B$2)+1),ROWS(Database_Prop!I$2:'Database_Prop'!I106))),\"\")","v":""},{"$f":"IFERROR(INDEX(Database_Prop!$B$2:$B$1498,SMALL(IF(Database_Prop!$A$2:$A$1498=AM$129,ROW(Database_Prop!$B$2:$B$1498)-ROW(Database_Prop!$B$2)+1),ROWS(Database_Prop!J$2:'Database_Prop'!J106))),\"\")","v":""},{"$f":"IFERROR(INDEX(Database_Prop!$B$2:$B$1498,SMALL(IF(Database_Prop!$A$2:$A$1498=AN$129,ROW(Database_Prop!$B$2:$B$1498)-ROW(Database_Prop!$B$2)+1),ROWS(Database_Prop!K$2:'Database_Prop'!K106))),\"\")","v":""},{"$f":"IFERROR(INDEX(Database_Prop!$B$2:$B$1498,SMALL(IF(Database_Prop!$A$2:$A$1498=AO$129,ROW(Database_Prop!$B$2:$B$1498)-ROW(Database_Prop!$B$2)+1),ROWS(Database_Prop!L$2:'Database_Prop'!L106))),\"\")","v":""},{"$f":"IFERROR(INDEX(Database_Prop!$B$2:$B$1498,SMALL(IF(Database_Prop!$A$2:$A$1498=AP$129,ROW(Database_Prop!$B$2:$B$1498)-ROW(Database_Prop!$B$2)+1),ROWS(Database_Prop!M$2:'Database_Prop'!M106))),\"\")","v":""},{"$f":"IFERROR(INDEX(Database_Prop!$B$2:$B$1498,SMALL(IF(Database_Prop!$A$2:$A$1498=AQ$129,ROW(Database_Prop!$B$2:$B$1498)-ROW(Database_Prop!$B$2)+1),ROWS(Database_Prop!N$2:'Database_Prop'!N106))),\"\")","v":""},{"$f":"IFERROR(INDEX(Database_Prop!$B$2:$B$1498,SMALL(IF(Database_Prop!$A$2:$A$1498=AR$129,ROW(Database_Prop!$B$2:$B$1498)-ROW(Database_Prop!$B$2)+1),ROWS(Database_Prop!O$2:'Database_Prop'!O106))),\"\")","v":""},{"$f":"IFERROR(INDEX(Database_Prop!$B$2:$B$1498,SMALL(IF(Database_Prop!$A$2:$A$1498=AS$129,ROW(Database_Prop!$B$2:$B$1498)-ROW(Database_Prop!$B$2)+1),ROWS(Database_Prop!P$2:'Database_Prop'!P106))),\"\")","v":""},{"$f":"IFERROR(INDEX(Database_Prop!$B$2:$B$1498,SMALL(IF(Database_Prop!$A$2:$A$1498=AT$129,ROW(Database_Prop!$B$2:$B$1498)-ROW(Database_Prop!$B$2)+1),ROWS(Database_Prop!Q$2:'Database_Prop'!Q106))),\"\")","v":""},{"$f":"IFERROR(INDEX(Database_Prop!$B$2:$B$1498,SMALL(IF(Database_Prop!$A$2:$A$1498=AU$129,ROW(Database_Prop!$B$2:$B$1498)-ROW(Database_Prop!$B$2)+1),ROWS(Database_Prop!R$2:'Database_Prop'!R106))),\"\")","v":""},{"$f":"IFERROR(INDEX(Database_Prop!$B$2:$B$1498,SMALL(IF(Database_Prop!$A$2:$A$1498=AV$129,ROW(Database_Prop!$B$2:$B$1498)-ROW(Database_Prop!$B$2)+1),ROWS(Database_Prop!S$2:'Database_Prop'!S106))),\"\")","v":""},{"$f":"IFERROR(INDEX(Database_Prop!$B$2:$B$1498,SMALL(IF(Database_Prop!$A$2:$A$1498=AW$129,ROW(Database_Prop!$B$2:$B$1498)-ROW(Database_Prop!$B$2)+1),ROWS(Database_Prop!T$2:'Database_Prop'!T106))),\"\")","v":""},{"$f":"IFERROR(INDEX(Database_Prop!$B$2:$B$1498,SMALL(IF(Database_Prop!$A$2:$A$1498=AX$129,ROW(Database_Prop!$B$2:$B$1498)-ROW(Database_Prop!$B$2)+1),ROWS(Database_Prop!U$2:'Database_Prop'!U106))),\"\")","v":""},{"$f":"IFERROR(INDEX(Database_Prop!$B$2:$B$1498,SMALL(IF(Database_Prop!$A$2:$A$1498=AY$129,ROW(Database_Prop!$B$2:$B$1498)-ROW(Database_Prop!$B$2)+1),ROWS(Database_Prop!V$2:'Database_Prop'!V106))),\"\")","v":""},{"$f":"IFERROR(INDEX(Database_Prop!$B$2:$B$1498,SMALL(IF(Database_Prop!$A$2:$A$1498=AZ$129,ROW(Database_Prop!$B$2:$B$1498)-ROW(Database_Prop!$B$2)+1),ROWS(Database_Prop!W$2:'Database_Prop'!W106))),\"\")","v":""},{"$f":"IFERROR(INDEX(Database_Prop!$B$2:$B$1498,SMALL(IF(Database_Prop!$A$2:$A$1498=BA$129,ROW(Database_Prop!$B$2:$B$1498)-ROW(Database_Prop!$B$2)+1),ROWS(Database_Prop!X$2:'Database_Prop'!X106))),\"\")","v":""},{"$f":"IFERROR(INDEX(Database_Prop!$B$2:$B$1498,SMALL(IF(Database_Prop!$A$2:$A$1498=BB$129,ROW(Database_Prop!$B$2:$B$1498)-ROW(Database_Prop!$B$2)+1),ROWS(Database_Prop!Y$2:'Database_Prop'!Y106))),\"\")","v":""},{"$f":"IFERROR(INDEX(Database_Prop!$B$2:$B$1498,SMALL(IF(Database_Prop!$A$2:$A$1498=BC$129,ROW(Database_Prop!$B$2:$B$1498)-ROW(Database_Prop!$B$2)+1),ROWS(Database_Prop!Z$2:'Database_Prop'!Z106))),\"\")","v":""},null,"Jamaica","Latin America"]
[null,null,null,null,null,null,null,null,null,null,null,null,null,null,null,null,null,null,null,null,null,null,null,null,null,null,null,null,null,null,107,{"$f":"IFERROR(INDEX(Database_Prop!$B$2:$B$1498,SMALL(IF(Database_Prop!$A$2:$A$1498=AF$129,ROW(Database_Prop!$B$2:$B$1498)-ROW(Database_Prop!$B$2)+1),ROWS(Database_Prop!C$2:'Database_Prop'!C107))),\"\")","v":""},{"$f":"IFERROR(INDEX(Database_Prop!$B$2:$B$1498,SMALL(IF(Database_Prop!$A$2:$A$1498=AG$129,ROW(Database_Prop!$B$2:$B$1498)-ROW(Database_Prop!$B$2)+1),ROWS(Database_Prop!D$2:'Database_Prop'!D107))),\"\")","v":""},{"$f":"IFERROR(INDEX(Database_Prop!$B$2:$B$1498,SMALL(IF(Database_Prop!$A$2:$A$1498=AH$129,ROW(Database_Prop!$B$2:$B$1498)-ROW(Database_Prop!$B$2)+1),ROWS(Database_Prop!E$2:'Database_Prop'!E107))),\"\")","v":""},{"$f":"IFERROR(INDEX(Database_Prop!$B$2:$B$1498,SMALL(IF(Database_Prop!$A$2:$A$1498=AI$129,ROW(Database_Prop!$B$2:$B$1498)-ROW(Database_Prop!$B$2)+1),ROWS(Database_Prop!F$2:'Database_Prop'!F107))),\"\")","v":""},{"$f":"IFERROR(INDEX(Database_Prop!$B$2:$B$1498,SMALL(IF(Database_Prop!$A$2:$A$1498=AJ$129,ROW(Database_Prop!$B$2:$B$1498)-ROW(Database_Prop!$B$2)+1),ROWS(Database_Prop!G$2:'Database_Prop'!G107))),\"\")","v":""},{"$f":"IFERROR(INDEX(Database_Prop!$B$2:$B$1498,SMALL(IF(Database_Prop!$A$2:$A$1498=AK$129,ROW(Database_Prop!$B$2:$B$1498)-ROW(Database_Prop!$B$2)+1),ROWS(Database_Prop!H$2:'Database_Prop'!H107))),\"\")","v":""},{"$f":"IFERROR(INDEX(Database_Prop!$B$2:$B$1498,SMALL(IF(Database_Prop!$A$2:$A$1498=AL$129,ROW(Database_Prop!$B$2:$B$1498)-ROW(Database_Prop!$B$2)+1),ROWS(Database_Prop!I$2:'Database_Prop'!I107))),\"\")","v":""},{"$f":"IFERROR(INDEX(Database_Prop!$B$2:$B$1498,SMALL(IF(Database_Prop!$A$2:$A$1498=AM$129,ROW(Database_Prop!$B$2:$B$1498)-ROW(Database_Prop!$B$2)+1),ROWS(Database_Prop!J$2:'Database_Prop'!J107))),\"\")","v":""},{"$f":"IFERROR(INDEX(Database_Prop!$B$2:$B$1498,SMALL(IF(Database_Prop!$A$2:$A$1498=AN$129,ROW(Database_Prop!$B$2:$B$1498)-ROW(Database_Prop!$B$2)+1),ROWS(Database_Prop!K$2:'Database_Prop'!K107))),\"\")","v":""},{"$f":"IFERROR(INDEX(Database_Prop!$B$2:$B$1498,SMALL(IF(Database_Prop!$A$2:$A$1498=AO$129,ROW(Database_Prop!$B$2:$B$1498)-ROW(Database_Prop!$B$2)+1),ROWS(Database_Prop!L$2:'Database_Prop'!L107))),\"\")","v":""},{"$f":"IFERROR(INDEX(Database_Prop!$B$2:$B$1498,SMALL(IF(Database_Prop!$A$2:$A$1498=AP$129,ROW(Database_Prop!$B$2:$B$1498)-ROW(Database_Prop!$B$2)+1),ROWS(Database_Prop!M$2:'Database_Prop'!M107))),\"\")","v":""},{"$f":"IFERROR(INDEX(Database_Prop!$B$2:$B$1498,SMALL(IF(Database_Prop!$A$2:$A$1498=AQ$129,ROW(Database_Prop!$B$2:$B$1498)-ROW(Database_Prop!$B$2)+1),ROWS(Database_Prop!N$2:'Database_Prop'!N107))),\"\")","v":""},{"$f":"IFERROR(INDEX(Database_Prop!$B$2:$B$1498,SMALL(IF(Database_Prop!$A$2:$A$1498=AR$129,ROW(Database_Prop!$B$2:$B$1498)-ROW(Database_Prop!$B$2)+1),ROWS(Database_Prop!O$2:'Database_Prop'!O107))),\"\")","v":""},{"$f":"IFERROR(INDEX(Database_Prop!$B$2:$B$1498,SMALL(IF(Database_Prop!$A$2:$A$1498=AS$129,ROW(Database_Prop!$B$2:$B$1498)-ROW(Database_Prop!$B$2)+1),ROWS(Database_Prop!P$2:'Database_Prop'!P107))),\"\")","v":""},{"$f":"IFERROR(INDEX(Database_Prop!$B$2:$B$1498,SMALL(IF(Database_Prop!$A$2:$A$1498=AT$129,ROW(Database_Prop!$B$2:$B$1498)-ROW(Database_Prop!$B$2)+1),ROWS(Database_Prop!Q$2:'Database_Prop'!Q107))),\"\")","v":""},{"$f":"IFERROR(INDEX(Database_Prop!$B$2:$B$1498,SMALL(IF(Database_Prop!$A$2:$A$1498=AU$129,ROW(Database_Prop!$B$2:$B$1498)-ROW(Database_Prop!$B$2)+1),ROWS(Database_Prop!R$2:'Database_Prop'!R107))),\"\")","v":""},{"$f":"IFERROR(INDEX(Database_Prop!$B$2:$B$1498,SMALL(IF(Database_Prop!$A$2:$A$1498=AV$129,ROW(Database_Prop!$B$2:$B$1498)-ROW(Database_Prop!$B$2)+1),ROWS(Database_Prop!S$2:'Database_Prop'!S107))),\"\")","v":""},{"$f":"IFERROR(INDEX(Database_Prop!$B$2:$B$1498,SMALL(IF(Database_Prop!$A$2:$A$1498=AW$129,ROW(Database_Prop!$B$2:$B$1498)-ROW(Database_Prop!$B$2)+1),ROWS(Database_Prop!T$2:'Database_Prop'!T107))),\"\")","v":""},{"$f":"IFERROR(INDEX(Database_Prop!$B$2:$B$1498,SMALL(IF(Database_Prop!$A$2:$A$1498=AX$129,ROW(Database_Prop!$B$2:$B$1498)-ROW(Database_Prop!$B$2)+1),ROWS(Database_Prop!U$2:'Database_Prop'!U107))),\"\")","v":""},{"$f":"IFERROR(INDEX(Database_Prop!$B$2:$B$1498,SMALL(IF(Database_Prop!$A$2:$A$1498=AY$129,ROW(Database_Prop!$B$2:$B$1498)-ROW(Database_Prop!$B$2)+1),ROWS(Database_Prop!V$2:'Database_Prop'!V107))),\"\")","v":""},{"$f":"IFERROR(INDEX(Database_Prop!$B$2:$B$1498,SMALL(IF(Database_Prop!$A$2:$A$1498=AZ$129,ROW(Database_Prop!$B$2:$B$1498)-ROW(Database_Prop!$B$2)+1),ROWS(Database_Prop!W$2:'Database_Prop'!W107))),\"\")","v":""},{"$f":"IFERROR(INDEX(Database_Prop!$B$2:$B$1498,SMALL(IF(Database_Prop!$A$2:$A$1498=BA$129,ROW(Database_Prop!$B$2:$B$1498)-ROW(Database_Prop!$B$2)+1),ROWS(Database_Prop!X$2:'Database_Prop'!X107))),\"\")","v":""},{"$f":"IFERROR(INDEX(Database_Prop!$B$2:$B$1498,SMALL(IF(Database_Prop!$A$2:$A$1498=BB$129,ROW(Database_Prop!$B$2:$B$1498)-ROW(Database_Prop!$B$2)+1),ROWS(Database_Prop!Y$2:'Database_Prop'!Y107))),\"\")","v":""},{"$f":"IFERROR(INDEX(Database_Prop!$B$2:$B$1498,SMALL(IF(Database_Prop!$A$2:$A$1498=BC$129,ROW(Database_Prop!$B$2:$B$1498)-ROW(Database_Prop!$B$2)+1),ROWS(Database_Prop!Z$2:'Database_Prop'!Z107))),\"\")","v":""},null,"Japan","Asia"]
[null,null,null,null,null,null,null,null,null,null,null,null,null,null,null,null,null,null,null,null,null,null,null,null,null,null,null,null,null,null,108,{"$f":"IFERROR(INDEX(Database_Prop!$B$2:$B$1498,SMALL(IF(Database_Prop!$A$2:$A$1498=AF$129,ROW(Database_Prop!$B$2:$B$1498)-ROW(Database_Prop!$B$2)+1),ROWS(Database_Prop!C$2:'Database_Prop'!C108))),\"\")","v":""},{"$f":"IFERROR(INDEX(Database_Prop!$B$2:$B$1498,SMALL(IF(Database_Prop!$A$2:$A$1498=AG$129,ROW(Database_Prop!$B$2:$B$1498)-ROW(Database_Prop!$B$2)+1),ROWS(Database_Prop!D$2:'Database_Prop'!D108))),\"\")","v":""},{"$f":"IFERROR(INDEX(Database_Prop!$B$2:$B$1498,SMALL(IF(Database_Prop!$A$2:$A$1498=AH$129,ROW(Database_Prop!$B$2:$B$1498)-ROW(Database_Prop!$B$2)+1),ROWS(Database_Prop!E$2:'Database_Prop'!E108))),\"\")","v":""},{"$f":"IFERROR(INDEX(Database_Prop!$B$2:$B$1498,SMALL(IF(Database_Prop!$A$2:$A$1498=AI$129,ROW(Database_Prop!$B$2:$B$1498)-ROW(Database_Prop!$B$2)+1),ROWS(Database_Prop!F$2:'Database_Prop'!F108))),\"\")","v":""},{"$f":"IFERROR(INDEX(Database_Prop!$B$2:$B$1498,SMALL(IF(Database_Prop!$A$2:$A$1498=AJ$129,ROW(Database_Prop!$B$2:$B$1498)-ROW(Database_Prop!$B$2)+1),ROWS(Database_Prop!G$2:'Database_Prop'!G108))),\"\")","v":""},{"$f":"IFERROR(INDEX(Database_Prop!$B$2:$B$1498,SMALL(IF(Database_Prop!$A$2:$A$1498=AK$129,ROW(Database_Prop!$B$2:$B$1498)-ROW(Database_Prop!$B$2)+1),ROWS(Database_Prop!H$2:'Database_Prop'!H108))),\"\")","v":""},{"$f":"IFERROR(INDEX(Database_Prop!$B$2:$B$1498,SMALL(IF(Database_Prop!$A$2:$A$1498=AL$129,ROW(Database_Prop!$B$2:$B$1498)-ROW(Database_Prop!$B$2)+1),ROWS(Database_Prop!I$2:'Database_Prop'!I108))),\"\")","v":""},{"$f":"IFERROR(INDEX(Database_Prop!$B$2:$B$1498,SMALL(IF(Database_Prop!$A$2:$A$1498=AM$129,ROW(Database_Prop!$B$2:$B$1498)-ROW(Database_Prop!$B$2)+1),ROWS(Database_Prop!J$2:'Database_Prop'!J108))),\"\")","v":""},{"$f":"IFERROR(INDEX(Database_Prop!$B$2:$B$1498,SMALL(IF(Database_Prop!$A$2:$A$1498=AN$129,ROW(Database_Prop!$B$2:$B$1498)-ROW(Database_Prop!$B$2)+1),ROWS(Database_Prop!K$2:'Database_Prop'!K108))),\"\")","v":""},{"$f":"IFERROR(INDEX(Database_Prop!$B$2:$B$1498,SMALL(IF(Database_Prop!$A$2:$A$1498=AO$129,ROW(Database_Prop!$B$2:$B$1498)-ROW(Database_Prop!$B$2)+1),ROWS(Database_Prop!L$2:'Database_Prop'!L108))),\"\")","v":""},{"$f":"IFERROR(INDEX(Database_Prop!$B$2:$B$1498,SMALL(IF(Database_Prop!$A$2:$A$1498=AP$129,ROW(Database_Prop!$B$2:$B$1498)-ROW(Database_Prop!$B$2)+1),ROWS(Database_Prop!M$2:'Database_Prop'!M108))),\"\")","v":""},{"$f":"IFERROR(INDEX(Database_Prop!$B$2:$B$1498,SMALL(IF(Database_Prop!$A$2:$A$1498=AQ$129,ROW(Database_Prop!$B$2:$B$1498)-ROW(Database_Prop!$B$2)+1),ROWS(Database_Prop!N$2:'Database_Prop'!N108))),\"\")","v":""},{"$f":"IFERROR(INDEX(Database_Prop!$B$2:$B$1498,SMALL(IF(Database_Prop!$A$2:$A$1498=AR$129,ROW(Database_Prop!$B$2:$B$1498)-ROW(Database_Prop!$B$2)+1),ROWS(Database_Prop!O$2:'Database_Prop'!O108))),\"\")","v":""},{"$f":"IFERROR(INDEX(Database_Prop!$B$2:$B$1498,SMALL(IF(Database_Prop!$A$2:$A$1498=AS$129,ROW(Database_Prop!$B$2:$B$1498)-ROW(Database_Prop!$B$2)+1),ROWS(Database_Prop!P$2:'Database_Prop'!P108))),\"\")","v":""},{"$f":"IFERROR(INDEX(Database_Prop!$B$2:$B$1498,SMALL(IF(Database_Prop!$A$2:$A$1498=AT$129,ROW(Database_Prop!$B$2:$B$1498)-ROW(Database_Prop!$B$2)+1),ROWS(Database_Prop!Q$2:'Database_Prop'!Q108))),\"\")","v":""},{"$f":"IFERROR(INDEX(Database_Prop!$B$2:$B$1498,SMALL(IF(Database_Prop!$A$2:$A$1498=AU$129,ROW(Database_Prop!$B$2:$B$1498)-ROW(Database_Prop!$B$2)+1),ROWS(Database_Prop!R$2:'Database_Prop'!R108))),\"\")","v":""},{"$f":"IFERROR(INDEX(Database_Prop!$B$2:$B$1498,SMALL(IF(Database_Prop!$A$2:$A$1498=AV$129,ROW(Database_Prop!$B$2:$B$1498)-ROW(Database_Prop!$B$2)+1),ROWS(Database_Prop!S$2:'Database_Prop'!S108))),\"\")","v":""},{"$f":"IFERROR(INDEX(Database_Prop!$B$2:$B$1498,SMALL(IF(Database_Prop!$A$2:$A$1498=AW$129,ROW(Database_Prop!$B$2:$B$1498)-ROW(Database_Prop!$B$2)+1),ROWS(Database_Prop!T$2:'Database_Prop'!T108))),\"\")","v":""},{"$f":"IFERROR(INDEX(Database_Prop!$B$2:$B$1498,SMALL(IF(Database_Prop!$A$2:$A$1498=AX$129,ROW(Database_Prop!$B$2:$B$1498)-ROW(Database_Prop!$B$2)+1),ROWS(Database_Prop!U$2:'Database_Prop'!U108))),\"\")","v":""},{"$f":"IFERROR(INDEX(Database_Prop!$B$2:$B$1498,SMALL(IF(Database_Prop!$A$2:$A$1498=AY$129,ROW(Database_Prop!$B$2:$B$1498)-ROW(Database_Prop!$B$2)+1),ROWS(Database_Prop!V$2:'Database_Prop'!V108))),\"\")","v":""},{"$f":"IFERROR(INDEX(Database_Prop!$B$2:$B$1498,SMALL(IF(Database_Prop!$A$2:$A$1498=AZ$129,ROW(Database_Prop!$B$2:$B$1498)-ROW(Database_Prop!$B$2)+1),ROWS(Database_Prop!W$2:'Database_Prop'!W108))),\"\")","v":""},{"$f":"IFERROR(INDEX(Database_Prop!$B$2:$B$1498,SMALL(IF(Database_Prop!$A$2:$A$1498=BA$129,ROW(Database_Prop!$B$2:$B$1498)-ROW(Database_Prop!$B$2)+1),ROWS(Database_Prop!X$2:'Database_Prop'!X108))),\"\")","v":""},{"$f":"IFERROR(INDEX(Database_Prop!$B$2:$B$1498,SMALL(IF(Database_Prop!$A$2:$A$1498=BB$129,ROW(Database_Prop!$B$2:$B$1498)-ROW(Database_Prop!$B$2)+1),ROWS(Database_Prop!Y$2:'Database_Prop'!Y108))),\"\")","v":""},{"$f":"IFERROR(INDEX(Database_Prop!$B$2:$B$1498,SMALL(IF(Database_Prop!$A$2:$A$1498=BC$129,ROW(Database_Prop!$B$2:$B$1498)-ROW(Database_Prop!$B$2)+1),ROWS(Database_Prop!Z$2:'Database_Prop'!Z108))),\"\")","v":""},null,"Jordan","Middle East"]
[null,null,null,null,null,null,null,null,null,null,null,null,null,null,null,null,null,null,null,null,null,null,null,null,null,null,null,null,null,null,109,{"$f":"IFERROR(INDEX(Database_Prop!$B$2:$B$1498,SMALL(IF(Database_Prop!$A$2:$A$1498=AF$129,ROW(Database_Prop!$B$2:$B$1498)-ROW(Database_Prop!$B$2)+1),ROWS(Database_Prop!C$2:'Database_Prop'!C109))),\"\")","v":""},{"$f":"IFERROR(INDEX(Database_Prop!$B$2:$B$1498,SMALL(IF(Database_Prop!$A$2:$A$1498=AG$129,ROW(Database_Prop!$B$2:$B$1498)-ROW(Database_Prop!$B$2)+1),ROWS(Database_Prop!D$2:'Database_Prop'!D109))),\"\")","v":""},{"$f":"IFERROR(INDEX(Database_Prop!$B$2:$B$1498,SMALL(IF(Database_Prop!$A$2:$A$1498=AH$129,ROW(Database_Prop!$B$2:$B$1498)-ROW(Database_Prop!$B$2)+1),ROWS(Database_Prop!E$2:'Database_Prop'!E109))),\"\")","v":""},{"$f":"IFERROR(INDEX(Database_Prop!$B$2:$B$1498,SMALL(IF(Database_Prop!$A$2:$A$1498=AI$129,ROW(Database_Prop!$B$2:$B$1498)-ROW(Database_Prop!$B$2)+1),ROWS(Database_Prop!F$2:'Database_Prop'!F109))),\"\")","v":""},{"$f":"IFERROR(INDEX(Database_Prop!$B$2:$B$1498,SMALL(IF(Database_Prop!$A$2:$A$1498=AJ$129,ROW(Database_Prop!$B$2:$B$1498)-ROW(Database_Prop!$B$2)+1),ROWS(Database_Prop!G$2:'Database_Prop'!G109))),\"\")","v":""},{"$f":"IFERROR(INDEX(Database_Prop!$B$2:$B$1498,SMALL(IF(Database_Prop!$A$2:$A$1498=AK$129,ROW(Database_Prop!$B$2:$B$1498)-ROW(Database_Prop!$B$2)+1),ROWS(Database_Prop!H$2:'Database_Prop'!H109))),\"\")","v":""},{"$f":"IFERROR(INDEX(Database_Prop!$B$2:$B$1498,SMALL(IF(Database_Prop!$A$2:$A$1498=AL$129,ROW(Database_Prop!$B$2:$B$1498)-ROW(Database_Prop!$B$2)+1),ROWS(Database_Prop!I$2:'Database_Prop'!I109))),\"\")","v":""},{"$f":"IFERROR(INDEX(Database_Prop!$B$2:$B$1498,SMALL(IF(Database_Prop!$A$2:$A$1498=AM$129,ROW(Database_Prop!$B$2:$B$1498)-ROW(Database_Prop!$B$2)+1),ROWS(Database_Prop!J$2:'Database_Prop'!J109))),\"\")","v":""},{"$f":"IFERROR(INDEX(Database_Prop!$B$2:$B$1498,SMALL(IF(Database_Prop!$A$2:$A$1498=AN$129,ROW(Database_Prop!$B$2:$B$1498)-ROW(Database_Prop!$B$2)+1),ROWS(Database_Prop!K$2:'Database_Prop'!K109))),\"\")","v":""},{"$f":"IFERROR(INDEX(Database_Prop!$B$2:$B$1498,SMALL(IF(Database_Prop!$A$2:$A$1498=AO$129,ROW(Database_Prop!$B$2:$B$1498)-ROW(Database_Prop!$B$2)+1),ROWS(Database_Prop!L$2:'Database_Prop'!L109))),\"\")","v":""},{"$f":"IFERROR(INDEX(Database_Prop!$B$2:$B$1498,SMALL(IF(Database_Prop!$A$2:$A$1498=AP$129,ROW(Database_Prop!$B$2:$B$1498)-ROW(Database_Prop!$B$2)+1),ROWS(Database_Prop!M$2:'Database_Prop'!M109))),\"\")","v":""},{"$f":"IFERROR(INDEX(Database_Prop!$B$2:$B$1498,SMALL(IF(Database_Prop!$A$2:$A$1498=AQ$129,ROW(Database_Prop!$B$2:$B$1498)-ROW(Database_Prop!$B$2)+1),ROWS(Database_Prop!N$2:'Database_Prop'!N109))),\"\")","v":""},{"$f":"IFERROR(INDEX(Database_Prop!$B$2:$B$1498,SMALL(IF(Database_Prop!$A$2:$A$1498=AR$129,ROW(Database_Prop!$B$2:$B$1498)-ROW(Database_Prop!$B$2)+1),ROWS(Database_Prop!O$2:'Database_Prop'!O109))),\"\")","v":""},{"$f":"IFERROR(INDEX(Database_Prop!$B$2:$B$1498,SMALL(IF(Database_Prop!$A$2:$A$1498=AS$129,ROW(Database_Prop!$B$2:$B$1498)-ROW(Database_Prop!$B$2)+1),ROWS(Database_Prop!P$2:'Database_Prop'!P109))),\"\")","v":""},{"$f":"IFERROR(INDEX(Database_Prop!$B$2:$B$1498,SMALL(IF(Database_Prop!$A$2:$A$1498=AT$129,ROW(Database_Prop!$B$2:$B$1498)-ROW(Database_Prop!$B$2)+1),ROWS(Database_Prop!Q$2:'Database_Prop'!Q109))),\"\")","v":""},{"$f":"IFERROR(INDEX(Database_Prop!$B$2:$B$1498,SMALL(IF(Database_Prop!$A$2:$A$1498=AU$129,ROW(Database_Prop!$B$2:$B$1498)-ROW(Database_Prop!$B$2)+1),ROWS(Database_Prop!R$2:'Database_Prop'!R109))),\"\")","v":""},{"$f":"IFERROR(INDEX(Database_Prop!$B$2:$B$1498,SMALL(IF(Database_Prop!$A$2:$A$1498=AV$129,ROW(Database_Prop!$B$2:$B$1498)-ROW(Database_Prop!$B$2)+1),ROWS(Database_Prop!S$2:'Database_Prop'!S109))),\"\")","v":""},{"$f":"IFERROR(INDEX(Database_Prop!$B$2:$B$1498,SMALL(IF(Database_Prop!$A$2:$A$1498=AW$129,ROW(Database_Prop!$B$2:$B$1498)-ROW(Database_Prop!$B$2)+1),ROWS(Database_Prop!T$2:'Database_Prop'!T109))),\"\")","v":""},{"$f":"IFERROR(INDEX(Database_Prop!$B$2:$B$1498,SMALL(IF(Database_Prop!$A$2:$A$1498=AX$129,ROW(Database_Prop!$B$2:$B$1498)-ROW(Database_Prop!$B$2)+1),ROWS(Database_Prop!U$2:'Database_Prop'!U109))),\"\")","v":""},{"$f":"IFERROR(INDEX(Database_Prop!$B$2:$B$1498,SMALL(IF(Database_Prop!$A$2:$A$1498=AY$129,ROW(Database_Prop!$B$2:$B$1498)-ROW(Database_Prop!$B$2)+1),ROWS(Database_Prop!V$2:'Database_Prop'!V109))),\"\")","v":""},{"$f":"IFERROR(INDEX(Database_Prop!$B$2:$B$1498,SMALL(IF(Database_Prop!$A$2:$A$1498=AZ$129,ROW(Database_Prop!$B$2:$B$1498)-ROW(Database_Prop!$B$2)+1),ROWS(Database_Prop!W$2:'Database_Prop'!W109))),\"\")","v":""},{"$f":"IFERROR(INDEX(Database_Prop!$B$2:$B$1498,SMALL(IF(Database_Prop!$A$2:$A$1498=BA$129,ROW(Database_Prop!$B$2:$B$1498)-ROW(Database_Prop!$B$2)+1),ROWS(Database_Prop!X$2:'Database_Prop'!X109))),\"\")","v":""},{"$f":"IFERROR(INDEX(Database_Prop!$B$2:$B$1498,SMALL(IF(Database_Prop!$A$2:$A$1498=BB$129,ROW(Database_Prop!$B$2:$B$1498)-ROW(Database_Prop!$B$2)+1),ROWS(Database_Prop!Y$2:'Database_Prop'!Y109))),\"\")","v":""},{"$f":"IFERROR(INDEX(Database_Prop!$B$2:$B$1498,SMALL(IF(Database_Prop!$A$2:$A$1498=BC$129,ROW(Database_Prop!$B$2:$B$1498)-ROW(Database_Prop!$B$2)+1),ROWS(Database_Prop!Z$2:'Database_Prop'!Z109))),\"\")","v":""},null,"Kazakhstan","Asia"]
[null,null,null,null,null,null,null,null,null,null,null,null,null,null,null,null,null,null,null,null,null,null,null,null,null,null,null,null,null,null,110,{"$f":"IFERROR(INDEX(Database_Prop!$B$2:$B$1498,SMALL(IF(Database_Prop!$A$2:$A$1498=AF$129,ROW(Database_Prop!$B$2:$B$1498)-ROW(Database_Prop!$B$2)+1),ROWS(Database_Prop!C$2:'Database_Prop'!C110))),\"\")","v":""},{"$f":"IFERROR(INDEX(Database_Prop!$B$2:$B$1498,SMALL(IF(Database_Prop!$A$2:$A$1498=AG$129,ROW(Database_Prop!$B$2:$B$1498)-ROW(Database_Prop!$B$2)+1),ROWS(Database_Prop!D$2:'Database_Prop'!D110))),\"\")","v":""},{"$f":"IFERROR(INDEX(Database_Prop!$B$2:$B$1498,SMALL(IF(Database_Prop!$A$2:$A$1498=AH$129,ROW(Database_Prop!$B$2:$B$1498)-ROW(Database_Prop!$B$2)+1),ROWS(Database_Prop!E$2:'Database_Prop'!E110))),\"\")","v":""},{"$f":"IFERROR(INDEX(Database_Prop!$B$2:$B$1498,SMALL(IF(Database_Prop!$A$2:$A$1498=AI$129,ROW(Database_Prop!$B$2:$B$1498)-ROW(Database_Prop!$B$2)+1),ROWS(Database_Prop!F$2:'Database_Prop'!F110))),\"\")","v":""},{"$f":"IFERROR(INDEX(Database_Prop!$B$2:$B$1498,SMALL(IF(Database_Prop!$A$2:$A$1498=AJ$129,ROW(Database_Prop!$B$2:$B$1498)-ROW(Database_Prop!$B$2)+1),ROWS(Database_Prop!G$2:'Database_Prop'!G110))),\"\")","v":""},{"$f":"IFERROR(INDEX(Database_Prop!$B$2:$B$1498,SMALL(IF(Database_Prop!$A$2:$A$1498=AK$129,ROW(Database_Prop!$B$2:$B$1498)-ROW(Database_Prop!$B$2)+1),ROWS(Database_Prop!H$2:'Database_Prop'!H110))),\"\")","v":""},{"$f":"IFERROR(INDEX(Database_Prop!$B$2:$B$1498,SMALL(IF(Database_Prop!$A$2:$A$1498=AL$129,ROW(Database_Prop!$B$2:$B$1498)-ROW(Database_Prop!$B$2)+1),ROWS(Database_Prop!I$2:'Database_Prop'!I110))),\"\")","v":""},{"$f":"IFERROR(INDEX(Database_Prop!$B$2:$B$1498,SMALL(IF(Database_Prop!$A$2:$A$1498=AM$129,ROW(Database_Prop!$B$2:$B$1498)-ROW(Database_Prop!$B$2)+1),ROWS(Database_Prop!J$2:'Database_Prop'!J110))),\"\")","v":""},{"$f":"IFERROR(INDEX(Database_Prop!$B$2:$B$1498,SMALL(IF(Database_Prop!$A$2:$A$1498=AN$129,ROW(Database_Prop!$B$2:$B$1498)-ROW(Database_Prop!$B$2)+1),ROWS(Database_Prop!K$2:'Database_Prop'!K110))),\"\")","v":""},{"$f":"IFERROR(INDEX(Database_Prop!$B$2:$B$1498,SMALL(IF(Database_Prop!$A$2:$A$1498=AO$129,ROW(Database_Prop!$B$2:$B$1498)-ROW(Database_Prop!$B$2)+1),ROWS(Database_Prop!L$2:'Database_Prop'!L110))),\"\")","v":""},{"$f":"IFERROR(INDEX(Database_Prop!$B$2:$B$1498,SMALL(IF(Database_Prop!$A$2:$A$1498=AP$129,ROW(Database_Prop!$B$2:$B$1498)-ROW(Database_Prop!$B$2)+1),ROWS(Database_Prop!M$2:'Database_Prop'!M110))),\"\")","v":""},{"$f":"IFERROR(INDEX(Database_Prop!$B$2:$B$1498,SMALL(IF(Database_Prop!$A$2:$A$1498=AQ$129,ROW(Database_Prop!$B$2:$B$1498)-ROW(Database_Prop!$B$2)+1),ROWS(Database_Prop!N$2:'Database_Prop'!N110))),\"\")","v":""},{"$f":"IFERROR(INDEX(Database_Prop!$B$2:$B$1498,SMALL(IF(Database_Prop!$A$2:$A$1498=AR$129,ROW(Database_Prop!$B$2:$B$1498)-ROW(Database_Prop!$B$2)+1),ROWS(Database_Prop!O$2:'Database_Prop'!O110))),\"\")","v":""},{"$f":"IFERROR(INDEX(Database_Prop!$B$2:$B$1498,SMALL(IF(Database_Prop!$A$2:$A$1498=AS$129,ROW(Database_Prop!$B$2:$B$1498)-ROW(Database_Prop!$B$2)+1),ROWS(Database_Prop!P$2:'Database_Prop'!P110))),\"\")","v":""},{"$f":"IFERROR(INDEX(Database_Prop!$B$2:$B$1498,SMALL(IF(Database_Prop!$A$2:$A$1498=AT$129,ROW(Database_Prop!$B$2:$B$1498)-ROW(Database_Prop!$B$2)+1),ROWS(Database_Prop!Q$2:'Database_Prop'!Q110))),\"\")","v":""},{"$f":"IFERROR(INDEX(Database_Prop!$B$2:$B$1498,SMALL(IF(Database_Prop!$A$2:$A$1498=AU$129,ROW(Database_Prop!$B$2:$B$1498)-ROW(Database_Prop!$B$2)+1),ROWS(Database_Prop!R$2:'Database_Prop'!R110))),\"\")","v":""},{"$f":"IFERROR(INDEX(Database_Prop!$B$2:$B$1498,SMALL(IF(Database_Prop!$A$2:$A$1498=AV$129,ROW(Database_Prop!$B$2:$B$1498)-ROW(Database_Prop!$B$2)+1),ROWS(Database_Prop!S$2:'Database_Prop'!S110))),\"\")","v":""},{"$f":"IFERROR(INDEX(Database_Prop!$B$2:$B$1498,SMALL(IF(Database_Prop!$A$2:$A$1498=AW$129,ROW(Database_Prop!$B$2:$B$1498)-ROW(Database_Prop!$B$2)+1),ROWS(Database_Prop!T$2:'Database_Prop'!T110))),\"\")","v":""},{"$f":"IFERROR(INDEX(Database_Prop!$B$2:$B$1498,SMALL(IF(Database_Prop!$A$2:$A$1498=AX$129,ROW(Database_Prop!$B$2:$B$1498)-ROW(Database_Prop!$B$2)+1),ROWS(Database_Prop!U$2:'Database_Prop'!U110))),\"\")","v":""},{"$f":"IFERROR(INDEX(Database_Prop!$B$2:$B$1498,SMALL(IF(Database_Prop!$A$2:$A$1498=AY$129,ROW(Database_Prop!$B$2:$B$1498)-ROW(Database_Prop!$B$2)+1),ROWS(Database_Prop!V$2:'Database_Prop'!V110))),\"\")","v":""},{"$f":"IFERROR(INDEX(Database_Prop!$B$2:$B$1498,SMALL(IF(Database_Prop!$A$2:$A$1498=AZ$129,ROW(Database_Prop!$B$2:$B$1498)-ROW(Database_Prop!$B$2)+1),ROWS(Database_Prop!W$2:'Database_Prop'!W110))),\"\")","v":""},{"$f":"IFERROR(INDEX(Database_Prop!$B$2:$B$1498,SMALL(IF(Database_Prop!$A$2:$A$1498=BA$129,ROW(Database_Prop!$B$2:$B$1498)-ROW(Database_Prop!$B$2)+1),ROWS(Database_Prop!X$2:'Database_Prop'!X110))),\"\")","v":""},{"$f":"IFERROR(INDEX(Database_Prop!$B$2:$B$1498,SMALL(IF(Database_Prop!$A$2:$A$1498=BB$129,ROW(Database_Prop!$B$2:$B$1498)-ROW(Database_Prop!$B$2)+1),ROWS(Database_Prop!Y$2:'Database_Prop'!Y110))),\"\")","v":""},{"$f":"IFERROR(INDEX(Database_Prop!$B$2:$B$1498,SMALL(IF(Database_Prop!$A$2:$A$1498=BC$129,ROW(Database_Prop!$B$2:$B$1498)-ROW(Database_Prop!$B$2)+1),ROWS(Database_Prop!Z$2:'Database_Prop'!Z110))),\"\")","v":""},null,"Kenya","Africa"]
[null,null,null,null,null,null,null,null,null,null,null,null,null,null,null,null,null,null,null,null,null,null,null,null,null,null,null,null,null,null,111,{"$f":"IFERROR(INDEX(Database_Prop!$B$2:$B$1498,SMALL(IF(Database_Prop!$A$2:$A$1498=AF$129,ROW(Database_Prop!$B$2:$B$1498)-ROW(Database_Prop!$B$2)+1),ROWS(Database_Prop!C$2:'Database_Prop'!C111))),\"\")","v":""},{"$f":"IFERROR(INDEX(Database_Prop!$B$2:$B$1498,SMALL(IF(Database_Prop!$A$2:$A$1498=AG$129,ROW(Database_Prop!$B$2:$B$1498)-ROW(Database_Prop!$B$2)+1),ROWS(Database_Prop!D$2:'Database_Prop'!D111))),\"\")","v":""},{"$f":"IFERROR(INDEX(Database_Prop!$B$2:$B$1498,SMALL(IF(Database_Prop!$A$2:$A$1498=AH$129,ROW(Database_Prop!$B$2:$B$1498)-ROW(Database_Prop!$B$2)+1),ROWS(Database_Prop!E$2:'Database_Prop'!E111))),\"\")","v":""},{"$f":"IFERROR(INDEX(Database_Prop!$B$2:$B$1498,SMALL(IF(Database_Prop!$A$2:$A$1498=AI$129,ROW(Database_Prop!$B$2:$B$1498)-ROW(Database_Prop!$B$2)+1),ROWS(Database_Prop!F$2:'Database_Prop'!F111))),\"\")","v":""},{"$f":"IFERROR(INDEX(Database_Prop!$B$2:$B$1498,SMALL(IF(Database_Prop!$A$2:$A$1498=AJ$129,ROW(Database_Prop!$B$2:$B$1498)-ROW(Database_Prop!$B$2)+1),ROWS(Database_Prop!G$2:'Database_Prop'!G111))),\"\")","v":""},{"$f":"IFERROR(INDEX(Database_Prop!$B$2:$B$1498,SMALL(IF(Database_Prop!$A$2:$A$1498=AK$129,ROW(Database_Prop!$B$2:$B$1498)-ROW(Database_Prop!$B$2)+1),ROWS(Database_Prop!H$2:'Database_Prop'!H111))),\"\")","v":""},{"$f":"IFERROR(INDEX(Database_Prop!$B$2:$B$1498,SMALL(IF(Database_Prop!$A$2:$A$1498=AL$129,ROW(Database_Prop!$B$2:$B$1498)-ROW(Database_Prop!$B$2)+1),ROWS(Database_Prop!I$2:'Database_Prop'!I111))),\"\")","v":""},{"$f":"IFERROR(INDEX(Database_Prop!$B$2:$B$1498,SMALL(IF(Database_Prop!$A$2:$A$1498=AM$129,ROW(Database_Prop!$B$2:$B$1498)-ROW(Database_Prop!$B$2)+1),ROWS(Database_Prop!J$2:'Database_Prop'!J111))),\"\")","v":""},{"$f":"IFERROR(INDEX(Database_Prop!$B$2:$B$1498,SMALL(IF(Database_Prop!$A$2:$A$1498=AN$129,ROW(Database_Prop!$B$2:$B$1498)-ROW(Database_Prop!$B$2)+1),ROWS(Database_Prop!K$2:'Database_Prop'!K111))),\"\")","v":""},{"$f":"IFERROR(INDEX(Database_Prop!$B$2:$B$1498,SMALL(IF(Database_Prop!$A$2:$A$1498=AO$129,ROW(Database_Prop!$B$2:$B$1498)-ROW(Database_Prop!$B$2)+1),ROWS(Database_Prop!L$2:'Database_Prop'!L111))),\"\")","v":""},{"$f":"IFERROR(INDEX(Database_Prop!$B$2:$B$1498,SMALL(IF(Database_Prop!$A$2:$A$1498=AP$129,ROW(Database_Prop!$B$2:$B$1498)-ROW(Database_Prop!$B$2)+1),ROWS(Database_Prop!M$2:'Database_Prop'!M111))),\"\")","v":""},{"$f":"IFERROR(INDEX(Database_Prop!$B$2:$B$1498,SMALL(IF(Database_Prop!$A$2:$A$1498=AQ$129,ROW(Database_Prop!$B$2:$B$1498)-ROW(Database_Prop!$B$2)+1),ROWS(Database_Prop!N$2:'Database_Prop'!N111))),\"\")","v":""},{"$f":"IFERROR(INDEX(Database_Prop!$B$2:$B$1498,SMALL(IF(Database_Prop!$A$2:$A$1498=AR$129,ROW(Database_Prop!$B$2:$B$1498)-ROW(Database_Prop!$B$2)+1),ROWS(Database_Prop!O$2:'Database_Prop'!O111))),\"\")","v":""},{"$f":"IFERROR(INDEX(Database_Prop!$B$2:$B$1498,SMALL(IF(Database_Prop!$A$2:$A$1498=AS$129,ROW(Database_Prop!$B$2:$B$1498)-ROW(Database_Prop!$B$2)+1),ROWS(Database_Prop!P$2:'Database_Prop'!P111))),\"\")","v":""},{"$f":"IFERROR(INDEX(Database_Prop!$B$2:$B$1498,SMALL(IF(Database_Prop!$A$2:$A$1498=AT$129,ROW(Database_Prop!$B$2:$B$1498)-ROW(Database_Prop!$B$2)+1),ROWS(Database_Prop!Q$2:'Database_Prop'!Q111))),\"\")","v":""},{"$f":"IFERROR(INDEX(Database_Prop!$B$2:$B$1498,SMALL(IF(Database_Prop!$A$2:$A$1498=AU$129,ROW(Database_Prop!$B$2:$B$1498)-ROW(Database_Prop!$B$2)+1),ROWS(Database_Prop!R$2:'Database_Prop'!R111))),\"\")","v":""},{"$f":"IFERROR(INDEX(Database_Prop!$B$2:$B$1498,SMALL(IF(Database_Prop!$A$2:$A$1498=AV$129,ROW(Database_Prop!$B$2:$B$1498)-ROW(Database_Prop!$B$2)+1),ROWS(Database_Prop!S$2:'Database_Prop'!S111))),\"\")","v":""},{"$f":"IFERROR(INDEX(Database_Prop!$B$2:$B$1498,SMALL(IF(Database_Prop!$A$2:$A$1498=AW$129,ROW(Database_Prop!$B$2:$B$1498)-ROW(Database_Prop!$B$2)+1),ROWS(Database_Prop!T$2:'Database_Prop'!T111))),\"\")","v":""},{"$f":"IFERROR(INDEX(Database_Prop!$B$2:$B$1498,SMALL(IF(Database_Prop!$A$2:$A$1498=AX$129,ROW(Database_Prop!$B$2:$B$1498)-ROW(Database_Prop!$B$2)+1),ROWS(Database_Prop!U$2:'Database_Prop'!U111))),\"\")","v":""},{"$f":"IFERROR(INDEX(Database_Prop!$B$2:$B$1498,SMALL(IF(Database_Prop!$A$2:$A$1498=AY$129,ROW(Database_Prop!$B$2:$B$1498)-ROW(Database_Prop!$B$2)+1),ROWS(Database_Prop!V$2:'Database_Prop'!V111))),\"\")","v":""},{"$f":"IFERROR(INDEX(Database_Prop!$B$2:$B$1498,SMALL(IF(Database_Prop!$A$2:$A$1498=AZ$129,ROW(Database_Prop!$B$2:$B$1498)-ROW(Database_Prop!$B$2)+1),ROWS(Database_Prop!W$2:'Database_Prop'!W111))),\"\")","v":""},{"$f":"IFERROR(INDEX(Database_Prop!$B$2:$B$1498,SMALL(IF(Database_Prop!$A$2:$A$1498=BA$129,ROW(Database_Prop!$B$2:$B$1498)-ROW(Database_Prop!$B$2)+1),ROWS(Database_Prop!X$2:'Database_Prop'!X111))),\"\")","v":""},{"$f":"IFERROR(INDEX(Database_Prop!$B$2:$B$1498,SMALL(IF(Database_Prop!$A$2:$A$1498=BB$129,ROW(Database_Prop!$B$2:$B$1498)-ROW(Database_Prop!$B$2)+1),ROWS(Database_Prop!Y$2:'Database_Prop'!Y111))),\"\")","v":""},{"$f":"IFERROR(INDEX(Database_Prop!$B$2:$B$1498,SMALL(IF(Database_Prop!$A$2:$A$1498=BC$129,ROW(Database_Prop!$B$2:$B$1498)-ROW(Database_Prop!$B$2)+1),ROWS(Database_Prop!Z$2:'Database_Prop'!Z111))),\"\")","v":""},null,"Kiribati","Oceania"]
[null,null,null,null,null,null,null,null,null,null,null,null,null,null,null,null,null,null,null,null,null,null,null,null,null,null,null,null,null,null,112,{"$f":"IFERROR(INDEX(Database_Prop!$B$2:$B$1498,SMALL(IF(Database_Prop!$A$2:$A$1498=AF$129,ROW(Database_Prop!$B$2:$B$1498)-ROW(Database_Prop!$B$2)+1),ROWS(Database_Prop!C$2:'Database_Prop'!C112))),\"\")","v":""},{"$f":"IFERROR(INDEX(Database_Prop!$B$2:$B$1498,SMALL(IF(Database_Prop!$A$2:$A$1498=AG$129,ROW(Database_Prop!$B$2:$B$1498)-ROW(Database_Prop!$B$2)+1),ROWS(Database_Prop!D$2:'Database_Prop'!D112))),\"\")","v":""},{"$f":"IFERROR(INDEX(Database_Prop!$B$2:$B$1498,SMALL(IF(Database_Prop!$A$2:$A$1498=AH$129,ROW(Database_Prop!$B$2:$B$1498)-ROW(Database_Prop!$B$2)+1),ROWS(Database_Prop!E$2:'Database_Prop'!E112))),\"\")","v":""},{"$f":"IFERROR(INDEX(Database_Prop!$B$2:$B$1498,SMALL(IF(Database_Prop!$A$2:$A$1498=AI$129,ROW(Database_Prop!$B$2:$B$1498)-ROW(Database_Prop!$B$2)+1),ROWS(Database_Prop!F$2:'Database_Prop'!F112))),\"\")","v":""},{"$f":"IFERROR(INDEX(Database_Prop!$B$2:$B$1498,SMALL(IF(Database_Prop!$A$2:$A$1498=AJ$129,ROW(Database_Prop!$B$2:$B$1498)-ROW(Database_Prop!$B$2)+1),ROWS(Database_Prop!G$2:'Database_Prop'!G112))),\"\")","v":""},{"$f":"IFERROR(INDEX(Database_Prop!$B$2:$B$1498,SMALL(IF(Database_Prop!$A$2:$A$1498=AK$129,ROW(Database_Prop!$B$2:$B$1498)-ROW(Database_Prop!$B$2)+1),ROWS(Database_Prop!H$2:'Database_Prop'!H112))),\"\")","v":""},{"$f":"IFERROR(INDEX(Database_Prop!$B$2:$B$1498,SMALL(IF(Database_Prop!$A$2:$A$1498=AL$129,ROW(Database_Prop!$B$2:$B$1498)-ROW(Database_Prop!$B$2)+1),ROWS(Database_Prop!I$2:'Database_Prop'!I112))),\"\")","v":""},{"$f":"IFERROR(INDEX(Database_Prop!$B$2:$B$1498,SMALL(IF(Database_Prop!$A$2:$A$1498=AM$129,ROW(Database_Prop!$B$2:$B$1498)-ROW(Database_Prop!$B$2)+1),ROWS(Database_Prop!J$2:'Database_Prop'!J112))),\"\")","v":""},{"$f":"IFERROR(INDEX(Database_Prop!$B$2:$B$1498,SMALL(IF(Database_Prop!$A$2:$A$1498=AN$129,ROW(Database_Prop!$B$2:$B$1498)-ROW(Database_Prop!$B$2)+1),ROWS(Database_Prop!K$2:'Database_Prop'!K112))),\"\")","v":""},{"$f":"IFERROR(INDEX(Database_Prop!$B$2:$B$1498,SMALL(IF(Database_Prop!$A$2:$A$1498=AO$129,ROW(Database_Prop!$B$2:$B$1498)-ROW(Database_Prop!$B$2)+1),ROWS(Database_Prop!L$2:'Database_Prop'!L112))),\"\")","v":""},{"$f":"IFERROR(INDEX(Database_Prop!$B$2:$B$1498,SMALL(IF(Database_Prop!$A$2:$A$1498=AP$129,ROW(Database_Prop!$B$2:$B$1498)-ROW(Database_Prop!$B$2)+1),ROWS(Database_Prop!M$2:'Database_Prop'!M112))),\"\")","v":""},{"$f":"IFERROR(INDEX(Database_Prop!$B$2:$B$1498,SMALL(IF(Database_Prop!$A$2:$A$1498=AQ$129,ROW(Database_Prop!$B$2:$B$1498)-ROW(Database_Prop!$B$2)+1),ROWS(Database_Prop!N$2:'Database_Prop'!N112))),\"\")","v":""},{"$f":"IFERROR(INDEX(Database_Prop!$B$2:$B$1498,SMALL(IF(Database_Prop!$A$2:$A$1498=AR$129,ROW(Database_Prop!$B$2:$B$1498)-ROW(Database_Prop!$B$2)+1),ROWS(Database_Prop!O$2:'Database_Prop'!O112))),\"\")","v":""},{"$f":"IFERROR(INDEX(Database_Prop!$B$2:$B$1498,SMALL(IF(Database_Prop!$A$2:$A$1498=AS$129,ROW(Database_Prop!$B$2:$B$1498)-ROW(Database_Prop!$B$2)+1),ROWS(Database_Prop!P$2:'Database_Prop'!P112))),\"\")","v":""},{"$f":"IFERROR(INDEX(Database_Prop!$B$2:$B$1498,SMALL(IF(Database_Prop!$A$2:$A$1498=AT$129,ROW(Database_Prop!$B$2:$B$1498)-ROW(Database_Prop!$B$2)+1),ROWS(Database_Prop!Q$2:'Database_Prop'!Q112))),\"\")","v":""},{"$f":"IFERROR(INDEX(Database_Prop!$B$2:$B$1498,SMALL(IF(Database_Prop!$A$2:$A$1498=AU$129,ROW(Database_Prop!$B$2:$B$1498)-ROW(Database_Prop!$B$2)+1),ROWS(Database_Prop!R$2:'Database_Prop'!R112))),\"\")","v":""},{"$f":"IFERROR(INDEX(Database_Prop!$B$2:$B$1498,SMALL(IF(Database_Prop!$A$2:$A$1498=AV$129,ROW(Database_Prop!$B$2:$B$1498)-ROW(Database_Prop!$B$2)+1),ROWS(Database_Prop!S$2:'Database_Prop'!S112))),\"\")","v":""},{"$f":"IFERROR(INDEX(Database_Prop!$B$2:$B$1498,SMALL(IF(Database_Prop!$A$2:$A$1498=AW$129,ROW(Database_Prop!$B$2:$B$1498)-ROW(Database_Prop!$B$2)+1),ROWS(Database_Prop!T$2:'Database_Prop'!T112))),\"\")","v":""},{"$f":"IFERROR(INDEX(Database_Prop!$B$2:$B$1498,SMALL(IF(Database_Prop!$A$2:$A$1498=AX$129,ROW(Database_Prop!$B$2:$B$1498)-ROW(Database_Prop!$B$2)+1),ROWS(Database_Prop!U$2:'Database_Prop'!U112))),\"\")","v":""},{"$f":"IFERROR(INDEX(Database_Prop!$B$2:$B$1498,SMALL(IF(Database_Prop!$A$2:$A$1498=AY$129,ROW(Database_Prop!$B$2:$B$1498)-ROW(Database_Prop!$B$2)+1),ROWS(Database_Prop!V$2:'Database_Prop'!V112))),\"\")","v":""},{"$f":"IFERROR(INDEX(Database_Prop!$B$2:$B$1498,SMALL(IF(Database_Prop!$A$2:$A$1498=AZ$129,ROW(Database_Prop!$B$2:$B$1498)-ROW(Database_Prop!$B$2)+1),ROWS(Database_Prop!W$2:'Database_Prop'!W112))),\"\")","v":""},{"$f":"IFERROR(INDEX(Database_Prop!$B$2:$B$1498,SMALL(IF(Database_Prop!$A$2:$A$1498=BA$129,ROW(Database_Prop!$B$2:$B$1498)-ROW(Database_Prop!$B$2)+1),ROWS(Database_Prop!X$2:'Database_Prop'!X112))),\"\")","v":""},{"$f":"IFERROR(INDEX(Database_Prop!$B$2:$B$1498,SMALL(IF(Database_Prop!$A$2:$A$1498=BB$129,ROW(Database_Prop!$B$2:$B$1498)-ROW(Database_Prop!$B$2)+1),ROWS(Database_Prop!Y$2:'Database_Prop'!Y112))),\"\")","v":""},{"$f":"IFERROR(INDEX(Database_Prop!$B$2:$B$1498,SMALL(IF(Database_Prop!$A$2:$A$1498=BC$129,ROW(Database_Prop!$B$2:$B$1498)-ROW(Database_Prop!$B$2)+1),ROWS(Database_Prop!Z$2:'Database_Prop'!Z112))),\"\")","v":""},null,"Kuwait","Middle East"]
[null,null,null,null,null,null,null,null,null,null,null,null,null,null,null,null,null,null,null,null,null,null,null,null,null,null,null,null,null,null,113,{"$f":"IFERROR(INDEX(Database_Prop!$B$2:$B$1498,SMALL(IF(Database_Prop!$A$2:$A$1498=AF$129,ROW(Database_Prop!$B$2:$B$1498)-ROW(Database_Prop!$B$2)+1),ROWS(Database_Prop!C$2:'Database_Prop'!C113))),\"\")","v":""},{"$f":"IFERROR(INDEX(Database_Prop!$B$2:$B$1498,SMALL(IF(Database_Prop!$A$2:$A$1498=AG$129,ROW(Database_Prop!$B$2:$B$1498)-ROW(Database_Prop!$B$2)+1),ROWS(Database_Prop!D$2:'Database_Prop'!D113))),\"\")","v":""},{"$f":"IFERROR(INDEX(Database_Prop!$B$2:$B$1498,SMALL(IF(Database_Prop!$A$2:$A$1498=AH$129,ROW(Database_Prop!$B$2:$B$1498)-ROW(Database_Prop!$B$2)+1),ROWS(Database_Prop!E$2:'Database_Prop'!E113))),\"\")","v":""},{"$f":"IFERROR(INDEX(Database_Prop!$B$2:$B$1498,SMALL(IF(Database_Prop!$A$2:$A$1498=AI$129,ROW(Database_Prop!$B$2:$B$1498)-ROW(Database_Prop!$B$2)+1),ROWS(Database_Prop!F$2:'Database_Prop'!F113))),\"\")","v":""},{"$f":"IFERROR(INDEX(Database_Prop!$B$2:$B$1498,SMALL(IF(Database_Prop!$A$2:$A$1498=AJ$129,ROW(Database_Prop!$B$2:$B$1498)-ROW(Database_Prop!$B$2)+1),ROWS(Database_Prop!G$2:'Database_Prop'!G113))),\"\")","v":""},{"$f":"IFERROR(INDEX(Database_Prop!$B$2:$B$1498,SMALL(IF(Database_Prop!$A$2:$A$1498=AK$129,ROW(Database_Prop!$B$2:$B$1498)-ROW(Database_Prop!$B$2)+1),ROWS(Database_Prop!H$2:'Database_Prop'!H113))),\"\")","v":""},{"$f":"IFERROR(INDEX(Database_Prop!$B$2:$B$1498,SMALL(IF(Database_Prop!$A$2:$A$1498=AL$129,ROW(Database_Prop!$B$2:$B$1498)-ROW(Database_Prop!$B$2)+1),ROWS(Database_Prop!I$2:'Database_Prop'!I113))),\"\")","v":""},{"$f":"IFERROR(INDEX(Database_Prop!$B$2:$B$1498,SMALL(IF(Database_Prop!$A$2:$A$1498=AM$129,ROW(Database_Prop!$B$2:$B$1498)-ROW(Database_Prop!$B$2)+1),ROWS(Database_Prop!J$2:'Database_Prop'!J113))),\"\")","v":""},{"$f":"IFERROR(INDEX(Database_Prop!$B$2:$B$1498,SMALL(IF(Database_Prop!$A$2:$A$1498=AN$129,ROW(Database_Prop!$B$2:$B$1498)-ROW(Database_Prop!$B$2)+1),ROWS(Database_Prop!K$2:'Database_Prop'!K113))),\"\")","v":""},{"$f":"IFERROR(INDEX(Database_Prop!$B$2:$B$1498,SMALL(IF(Database_Prop!$A$2:$A$1498=AO$129,ROW(Database_Prop!$B$2:$B$1498)-ROW(Database_Prop!$B$2)+1),ROWS(Database_Prop!L$2:'Database_Prop'!L113))),\"\")","v":""},{"$f":"IFERROR(INDEX(Database_Prop!$B$2:$B$1498,SMALL(IF(Database_Prop!$A$2:$A$1498=AP$129,ROW(Database_Prop!$B$2:$B$1498)-ROW(Database_Prop!$B$2)+1),ROWS(Database_Prop!M$2:'Database_Prop'!M113))),\"\")","v":""},{"$f":"IFERROR(INDEX(Database_Prop!$B$2:$B$1498,SMALL(IF(Database_Prop!$A$2:$A$1498=AQ$129,ROW(Database_Prop!$B$2:$B$1498)-ROW(Database_Prop!$B$2)+1),ROWS(Database_Prop!N$2:'Database_Prop'!N113))),\"\")","v":""},{"$f":"IFERROR(INDEX(Database_Prop!$B$2:$B$1498,SMALL(IF(Database_Prop!$A$2:$A$1498=AR$129,ROW(Database_Prop!$B$2:$B$1498)-ROW(Database_Prop!$B$2)+1),ROWS(Database_Prop!O$2:'Database_Prop'!O113))),\"\")","v":""},{"$f":"IFERROR(INDEX(Database_Prop!$B$2:$B$1498,SMALL(IF(Database_Prop!$A$2:$A$1498=AS$129,ROW(Database_Prop!$B$2:$B$1498)-ROW(Database_Prop!$B$2)+1),ROWS(Database_Prop!P$2:'Database_Prop'!P113))),\"\")","v":""},{"$f":"IFERROR(INDEX(Database_Prop!$B$2:$B$1498,SMALL(IF(Database_Prop!$A$2:$A$1498=AT$129,ROW(Database_Prop!$B$2:$B$1498)-ROW(Database_Prop!$B$2)+1),ROWS(Database_Prop!Q$2:'Database_Prop'!Q113))),\"\")","v":""},{"$f":"IFERROR(INDEX(Database_Prop!$B$2:$B$1498,SMALL(IF(Database_Prop!$A$2:$A$1498=AU$129,ROW(Database_Prop!$B$2:$B$1498)-ROW(Database_Prop!$B$2)+1),ROWS(Database_Prop!R$2:'Database_Prop'!R113))),\"\")","v":""},{"$f":"IFERROR(INDEX(Database_Prop!$B$2:$B$1498,SMALL(IF(Database_Prop!$A$2:$A$1498=AV$129,ROW(Database_Prop!$B$2:$B$1498)-ROW(Database_Prop!$B$2)+1),ROWS(Database_Prop!S$2:'Database_Prop'!S113))),\"\")","v":""},{"$f":"IFERROR(INDEX(Database_Prop!$B$2:$B$1498,SMALL(IF(Database_Prop!$A$2:$A$1498=AW$129,ROW(Database_Prop!$B$2:$B$1498)-ROW(Database_Prop!$B$2)+1),ROWS(Database_Prop!T$2:'Database_Prop'!T113))),\"\")","v":""},{"$f":"IFERROR(INDEX(Database_Prop!$B$2:$B$1498,SMALL(IF(Database_Prop!$A$2:$A$1498=AX$129,ROW(Database_Prop!$B$2:$B$1498)-ROW(Database_Prop!$B$2)+1),ROWS(Database_Prop!U$2:'Database_Prop'!U113))),\"\")","v":""},{"$f":"IFERROR(INDEX(Database_Prop!$B$2:$B$1498,SMALL(IF(Database_Prop!$A$2:$A$1498=AY$129,ROW(Database_Prop!$B$2:$B$1498)-ROW(Database_Prop!$B$2)+1),ROWS(Database_Prop!V$2:'Database_Prop'!V113))),\"\")","v":""},{"$f":"IFERROR(INDEX(Database_Prop!$B$2:$B$1498,SMALL(IF(Database_Prop!$A$2:$A$1498=AZ$129,ROW(Database_Prop!$B$2:$B$1498)-ROW(Database_Prop!$B$2)+1),ROWS(Database_Prop!W$2:'Database_Prop'!W113))),\"\")","v":""},{"$f":"IFERROR(INDEX(Database_Prop!$B$2:$B$1498,SMALL(IF(Database_Prop!$A$2:$A$1498=BA$129,ROW(Database_Prop!$B$2:$B$1498)-ROW(Database_Prop!$B$2)+1),ROWS(Database_Prop!X$2:'Database_Prop'!X113))),\"\")","v":""},{"$f":"IFERROR(INDEX(Database_Prop!$B$2:$B$1498,SMALL(IF(Database_Prop!$A$2:$A$1498=BB$129,ROW(Database_Prop!$B$2:$B$1498)-ROW(Database_Prop!$B$2)+1),ROWS(Database_Prop!Y$2:'Database_Prop'!Y113))),\"\")","v":""},{"$f":"IFERROR(INDEX(Database_Prop!$B$2:$B$1498,SMALL(IF(Database_Prop!$A$2:$A$1498=BC$129,ROW(Database_Prop!$B$2:$B$1498)-ROW(Database_Prop!$B$2)+1),ROWS(Database_Prop!Z$2:'Database_Prop'!Z113))),\"\")","v":""},null,"Kyrgyzstan","Asia"]
[null,null,null,null,null,null,null,null,null,null,null,null,null,null,null,null,null,null,null,null,null,null,null,null,null,null,null,null,null,null,114,{"$f":"IFERROR(INDEX(Database_Prop!$B$2:$B$1498,SMALL(IF(Database_Prop!$A$2:$A$1498=AF$129,ROW(Database_Prop!$B$2:$B$1498)-ROW(Database_Prop!$B$2)+1),ROWS(Database_Prop!C$2:'Database_Prop'!C114))),\"\")","v":""},{"$f":"IFERROR(INDEX(Database_Prop!$B$2:$B$1498,SMALL(IF(Database_Prop!$A$2:$A$1498=AG$129,ROW(Database_Prop!$B$2:$B$1498)-ROW(Database_Prop!$B$2)+1),ROWS(Database_Prop!D$2:'Database_Prop'!D114))),\"\")","v":""},{"$f":"IFERROR(INDEX(Database_Prop!$B$2:$B$1498,SMALL(IF(Database_Prop!$A$2:$A$1498=AH$129,ROW(Database_Prop!$B$2:$B$1498)-ROW(Database_Prop!$B$2)+1),ROWS(Database_Prop!E$2:'Database_Prop'!E114))),\"\")","v":""},{"$f":"IFERROR(INDEX(Database_Prop!$B$2:$B$1498,SMALL(IF(Database_Prop!$A$2:$A$1498=AI$129,ROW(Database_Prop!$B$2:$B$1498)-ROW(Database_Prop!$B$2)+1),ROWS(Database_Prop!F$2:'Database_Prop'!F114))),\"\")","v":""},{"$f":"IFERROR(INDEX(Database_Prop!$B$2:$B$1498,SMALL(IF(Database_Prop!$A$2:$A$1498=AJ$129,ROW(Database_Prop!$B$2:$B$1498)-ROW(Database_Prop!$B$2)+1),ROWS(Database_Prop!G$2:'Database_Prop'!G114))),\"\")","v":""},{"$f":"IFERROR(INDEX(Database_Prop!$B$2:$B$1498,SMALL(IF(Database_Prop!$A$2:$A$1498=AK$129,ROW(Database_Prop!$B$2:$B$1498)-ROW(Database_Prop!$B$2)+1),ROWS(Database_Prop!H$2:'Database_Prop'!H114))),\"\")","v":""},{"$f":"IFERROR(INDEX(Database_Prop!$B$2:$B$1498,SMALL(IF(Database_Prop!$A$2:$A$1498=AL$129,ROW(Database_Prop!$B$2:$B$1498)-ROW(Database_Prop!$B$2)+1),ROWS(Database_Prop!I$2:'Database_Prop'!I114))),\"\")","v":""},{"$f":"IFERROR(INDEX(Database_Prop!$B$2:$B$1498,SMALL(IF(Database_Prop!$A$2:$A$1498=AM$129,ROW(Database_Prop!$B$2:$B$1498)-ROW(Database_Prop!$B$2)+1),ROWS(Database_Prop!J$2:'Database_Prop'!J114))),\"\")","v":""},{"$f":"IFERROR(INDEX(Database_Prop!$B$2:$B$1498,SMALL(IF(Database_Prop!$A$2:$A$1498=AN$129,ROW(Database_Prop!$B$2:$B$1498)-ROW(Database_Prop!$B$2)+1),ROWS(Database_Prop!K$2:'Database_Prop'!K114))),\"\")","v":""},{"$f":"IFERROR(INDEX(Database_Prop!$B$2:$B$1498,SMALL(IF(Database_Prop!$A$2:$A$1498=AO$129,ROW(Database_Prop!$B$2:$B$1498)-ROW(Database_Prop!$B$2)+1),ROWS(Database_Prop!L$2:'Database_Prop'!L114))),\"\")","v":""},{"$f":"IFERROR(INDEX(Database_Prop!$B$2:$B$1498,SMALL(IF(Database_Prop!$A$2:$A$1498=AP$129,ROW(Database_Prop!$B$2:$B$1498)-ROW(Database_Prop!$B$2)+1),ROWS(Database_Prop!M$2:'Database_Prop'!M114))),\"\")","v":""},{"$f":"IFERROR(INDEX(Database_Prop!$B$2:$B$1498,SMALL(IF(Database_Prop!$A$2:$A$1498=AQ$129,ROW(Database_Prop!$B$2:$B$1498)-ROW(Database_Prop!$B$2)+1),ROWS(Database_Prop!N$2:'Database_Prop'!N114))),\"\")","v":""},{"$f":"IFERROR(INDEX(Database_Prop!$B$2:$B$1498,SMALL(IF(Database_Prop!$A$2:$A$1498=AR$129,ROW(Database_Prop!$B$2:$B$1498)-ROW(Database_Prop!$B$2)+1),ROWS(Database_Prop!O$2:'Database_Prop'!O114))),\"\")","v":""},{"$f":"IFERROR(INDEX(Database_Prop!$B$2:$B$1498,SMALL(IF(Database_Prop!$A$2:$A$1498=AS$129,ROW(Database_Prop!$B$2:$B$1498)-ROW(Database_Prop!$B$2)+1),ROWS(Database_Prop!P$2:'Database_Prop'!P114))),\"\")","v":""},{"$f":"IFERROR(INDEX(Database_Prop!$B$2:$B$1498,SMALL(IF(Database_Prop!$A$2:$A$1498=AT$129,ROW(Database_Prop!$B$2:$B$1498)-ROW(Database_Prop!$B$2)+1),ROWS(Database_Prop!Q$2:'Database_Prop'!Q114))),\"\")","v":""},{"$f":"IFERROR(INDEX(Database_Prop!$B$2:$B$1498,SMALL(IF(Database_Prop!$A$2:$A$1498=AU$129,ROW(Database_Prop!$B$2:$B$1498)-ROW(Database_Prop!$B$2)+1),ROWS(Database_Prop!R$2:'Database_Prop'!R114))),\"\")","v":""},{"$f":"IFERROR(INDEX(Database_Prop!$B$2:$B$1498,SMALL(IF(Database_Prop!$A$2:$A$1498=AV$129,ROW(Database_Prop!$B$2:$B$1498)-ROW(Database_Prop!$B$2)+1),ROWS(Database_Prop!S$2:'Database_Prop'!S114))),\"\")","v":""},{"$f":"IFERROR(INDEX(Database_Prop!$B$2:$B$1498,SMALL(IF(Database_Prop!$A$2:$A$1498=AW$129,ROW(Database_Prop!$B$2:$B$1498)-ROW(Database_Prop!$B$2)+1),ROWS(Database_Prop!T$2:'Database_Prop'!T114))),\"\")","v":""},{"$f":"IFERROR(INDEX(Database_Prop!$B$2:$B$1498,SMALL(IF(Database_Prop!$A$2:$A$1498=AX$129,ROW(Database_Prop!$B$2:$B$1498)-ROW(Database_Prop!$B$2)+1),ROWS(Database_Prop!U$2:'Database_Prop'!U114))),\"\")","v":""},{"$f":"IFERROR(INDEX(Database_Prop!$B$2:$B$1498,SMALL(IF(Database_Prop!$A$2:$A$1498=AY$129,ROW(Database_Prop!$B$2:$B$1498)-ROW(Database_Prop!$B$2)+1),ROWS(Database_Prop!V$2:'Database_Prop'!V114))),\"\")","v":""},{"$f":"IFERROR(INDEX(Database_Prop!$B$2:$B$1498,SMALL(IF(Database_Prop!$A$2:$A$1498=AZ$129,ROW(Database_Prop!$B$2:$B$1498)-ROW(Database_Prop!$B$2)+1),ROWS(Database_Prop!W$2:'Database_Prop'!W114))),\"\")","v":""},{"$f":"IFERROR(INDEX(Database_Prop!$B$2:$B$1498,SMALL(IF(Database_Prop!$A$2:$A$1498=BA$129,ROW(Database_Prop!$B$2:$B$1498)-ROW(Database_Prop!$B$2)+1),ROWS(Database_Prop!X$2:'Database_Prop'!X114))),\"\")","v":""},{"$f":"IFERROR(INDEX(Database_Prop!$B$2:$B$1498,SMALL(IF(Database_Prop!$A$2:$A$1498=BB$129,ROW(Database_Prop!$B$2:$B$1498)-ROW(Database_Prop!$B$2)+1),ROWS(Database_Prop!Y$2:'Database_Prop'!Y114))),\"\")","v":""},{"$f":"IFERROR(INDEX(Database_Prop!$B$2:$B$1498,SMALL(IF(Database_Prop!$A$2:$A$1498=BC$129,ROW(Database_Prop!$B$2:$B$1498)-ROW(Database_Prop!$B$2)+1),ROWS(Database_Prop!Z$2:'Database_Prop'!Z114))),\"\")","v":""},null,"Lao People's Democratic Republic","Asia"]
[null,null,null,null,null,null,null,null,null,null,null,null,null,null,null,null,null,null,null,null,null,null,null,null,null,null,null,null,null,null,115,{"$f":"IFERROR(INDEX(Database_Prop!$B$2:$B$1498,SMALL(IF(Database_Prop!$A$2:$A$1498=AF$129,ROW(Database_Prop!$B$2:$B$1498)-ROW(Database_Prop!$B$2)+1),ROWS(Database_Prop!C$2:'Database_Prop'!C115))),\"\")","v":""},{"$f":"IFERROR(INDEX(Database_Prop!$B$2:$B$1498,SMALL(IF(Database_Prop!$A$2:$A$1498=AG$129,ROW(Database_Prop!$B$2:$B$1498)-ROW(Database_Prop!$B$2)+1),ROWS(Database_Prop!D$2:'Database_Prop'!D115))),\"\")","v":""},{"$f":"IFERROR(INDEX(Database_Prop!$B$2:$B$1498,SMALL(IF(Database_Prop!$A$2:$A$1498=AH$129,ROW(Database_Prop!$B$2:$B$1498)-ROW(Database_Prop!$B$2)+1),ROWS(Database_Prop!E$2:'Database_Prop'!E115))),\"\")","v":""},{"$f":"IFERROR(INDEX(Database_Prop!$B$2:$B$1498,SMALL(IF(Database_Prop!$A$2:$A$1498=AI$129,ROW(Database_Prop!$B$2:$B$1498)-ROW(Database_Prop!$B$2)+1),ROWS(Database_Prop!F$2:'Database_Prop'!F115))),\"\")","v":""},{"$f":"IFERROR(INDEX(Database_Prop!$B$2:$B$1498,SMALL(IF(Database_Prop!$A$2:$A$1498=AJ$129,ROW(Database_Prop!$B$2:$B$1498)-ROW(Database_Prop!$B$2)+1),ROWS(Database_Prop!G$2:'Database_Prop'!G115))),\"\")","v":""},{"$f":"IFERROR(INDEX(Database_Prop!$B$2:$B$1498,SMALL(IF(Database_Prop!$A$2:$A$1498=AK$129,ROW(Database_Prop!$B$2:$B$1498)-ROW(Database_Prop!$B$2)+1),ROWS(Database_Prop!H$2:'Database_Prop'!H115))),\"\")","v":""},{"$f":"IFERROR(INDEX(Database_Prop!$B$2:$B$1498,SMALL(IF(Database_Prop!$A$2:$A$1498=AL$129,ROW(Database_Prop!$B$2:$B$1498)-ROW(Database_Prop!$B$2)+1),ROWS(Database_Prop!I$2:'Database_Prop'!I115))),\"\")","v":""},{"$f":"IFERROR(INDEX(Database_Prop!$B$2:$B$1498,SMALL(IF(Database_Prop!$A$2:$A$1498=AM$129,ROW(Database_Prop!$B$2:$B$1498)-ROW(Database_Prop!$B$2)+1),ROWS(Database_Prop!J$2:'Database_Prop'!J115))),\"\")","v":""},{"$f":"IFERROR(INDEX(Database_Prop!$B$2:$B$1498,SMALL(IF(Database_Prop!$A$2:$A$1498=AN$129,ROW(Database_Prop!$B$2:$B$1498)-ROW(Database_Prop!$B$2)+1),ROWS(Database_Prop!K$2:'Database_Prop'!K115))),\"\")","v":""},{"$f":"IFERROR(INDEX(Database_Prop!$B$2:$B$1498,SMALL(IF(Database_Prop!$A$2:$A$1498=AO$129,ROW(Database_Prop!$B$2:$B$1498)-ROW(Database_Prop!$B$2)+1),ROWS(Database_Prop!L$2:'Database_Prop'!L115))),\"\")","v":""},{"$f":"IFERROR(INDEX(Database_Prop!$B$2:$B$1498,SMALL(IF(Database_Prop!$A$2:$A$1498=AP$129,ROW(Database_Prop!$B$2:$B$1498)-ROW(Database_Prop!$B$2)+1),ROWS(Database_Prop!M$2:'Database_Prop'!M115))),\"\")","v":""},{"$f":"IFERROR(INDEX(Database_Prop!$B$2:$B$1498,SMALL(IF(Database_Prop!$A$2:$A$1498=AQ$129,ROW(Database_Prop!$B$2:$B$1498)-ROW(Database_Prop!$B$2)+1),ROWS(Database_Prop!N$2:'Database_Prop'!N115))),\"\")","v":""},{"$f":"IFERROR(INDEX(Database_Prop!$B$2:$B$1498,SMALL(IF(Database_Prop!$A$2:$A$1498=AR$129,ROW(Database_Prop!$B$2:$B$1498)-ROW(Database_Prop!$B$2)+1),ROWS(Database_Prop!O$2:'Database_Prop'!O115))),\"\")","v":""},{"$f":"IFERROR(INDEX(Database_Prop!$B$2:$B$1498,SMALL(IF(Database_Prop!$A$2:$A$1498=AS$129,ROW(Database_Prop!$B$2:$B$1498)-ROW(Database_Prop!$B$2)+1),ROWS(Database_Prop!P$2:'Database_Prop'!P115))),\"\")","v":""},{"$f":"IFERROR(INDEX(Database_Prop!$B$2:$B$1498,SMALL(IF(Database_Prop!$A$2:$A$1498=AT$129,ROW(Database_Prop!$B$2:$B$1498)-ROW(Database_Prop!$B$2)+1),ROWS(Database_Prop!Q$2:'Database_Prop'!Q115))),\"\")","v":""},{"$f":"IFERROR(INDEX(Database_Prop!$B$2:$B$1498,SMALL(IF(Database_Prop!$A$2:$A$1498=AU$129,ROW(Database_Prop!$B$2:$B$1498)-ROW(Database_Prop!$B$2)+1),ROWS(Database_Prop!R$2:'Database_Prop'!R115))),\"\")","v":""},{"$f":"IFERROR(INDEX(Database_Prop!$B$2:$B$1498,SMALL(IF(Database_Prop!$A$2:$A$1498=AV$129,ROW(Database_Prop!$B$2:$B$1498)-ROW(Database_Prop!$B$2)+1),ROWS(Database_Prop!S$2:'Database_Prop'!S115))),\"\")","v":""},{"$f":"IFERROR(INDEX(Database_Prop!$B$2:$B$1498,SMALL(IF(Database_Prop!$A$2:$A$1498=AW$129,ROW(Database_Prop!$B$2:$B$1498)-ROW(Database_Prop!$B$2)+1),ROWS(Database_Prop!T$2:'Database_Prop'!T115))),\"\")","v":""},{"$f":"IFERROR(INDEX(Database_Prop!$B$2:$B$1498,SMALL(IF(Database_Prop!$A$2:$A$1498=AX$129,ROW(Database_Prop!$B$2:$B$1498)-ROW(Database_Prop!$B$2)+1),ROWS(Database_Prop!U$2:'Database_Prop'!U115))),\"\")","v":""},{"$f":"IFERROR(INDEX(Database_Prop!$B$2:$B$1498,SMALL(IF(Database_Prop!$A$2:$A$1498=AY$129,ROW(Database_Prop!$B$2:$B$1498)-ROW(Database_Prop!$B$2)+1),ROWS(Database_Prop!V$2:'Database_Prop'!V115))),\"\")","v":""},{"$f":"IFERROR(INDEX(Database_Prop!$B$2:$B$1498,SMALL(IF(Database_Prop!$A$2:$A$1498=AZ$129,ROW(Database_Prop!$B$2:$B$1498)-ROW(Database_Prop!$B$2)+1),ROWS(Database_Prop!W$2:'Database_Prop'!W115))),\"\")","v":""},{"$f":"IFERROR(INDEX(Database_Prop!$B$2:$B$1498,SMALL(IF(Database_Prop!$A$2:$A$1498=BA$129,ROW(Database_Prop!$B$2:$B$1498)-ROW(Database_Prop!$B$2)+1),ROWS(Database_Prop!X$2:'Database_Prop'!X115))),\"\")","v":""},{"$f":"IFERROR(INDEX(Database_Prop!$B$2:$B$1498,SMALL(IF(Database_Prop!$A$2:$A$1498=BB$129,ROW(Database_Prop!$B$2:$B$1498)-ROW(Database_Prop!$B$2)+1),ROWS(Database_Prop!Y$2:'Database_Prop'!Y115))),\"\")","v":""},{"$f":"IFERROR(INDEX(Database_Prop!$B$2:$B$1498,SMALL(IF(Database_Prop!$A$2:$A$1498=BC$129,ROW(Database_Prop!$B$2:$B$1498)-ROW(Database_Prop!$B$2)+1),ROWS(Database_Prop!Z$2:'Database_Prop'!Z115))),\"\")","v":""},null,"Latvia","Western Europe"]
[null,null,null,null,null,null,null,null,null,null,null,null,null,null,null,null,null,null,null,null,null,null,null,null,null,null,null,null,null,null,116,{"$f":"IFERROR(INDEX(Database_Prop!$B$2:$B$1498,SMALL(IF(Database_Prop!$A$2:$A$1498=AF$129,ROW(Database_Prop!$B$2:$B$1498)-ROW(Database_Prop!$B$2)+1),ROWS(Database_Prop!C$2:'Database_Prop'!C116))),\"\")","v":""},{"$f":"IFERROR(INDEX(Database_Prop!$B$2:$B$1498,SMALL(IF(Database_Prop!$A$2:$A$1498=AG$129,ROW(Database_Prop!$B$2:$B$1498)-ROW(Database_Prop!$B$2)+1),ROWS(Database_Prop!D$2:'Database_Prop'!D116))),\"\")","v":""},{"$f":"IFERROR(INDEX(Database_Prop!$B$2:$B$1498,SMALL(IF(Database_Prop!$A$2:$A$1498=AH$129,ROW(Database_Prop!$B$2:$B$1498)-ROW(Database_Prop!$B$2)+1),ROWS(Database_Prop!E$2:'Database_Prop'!E116))),\"\")","v":""},{"$f":"IFERROR(INDEX(Database_Prop!$B$2:$B$1498,SMALL(IF(Database_Prop!$A$2:$A$1498=AI$129,ROW(Database_Prop!$B$2:$B$1498)-ROW(Database_Prop!$B$2)+1),ROWS(Database_Prop!F$2:'Database_Prop'!F116))),\"\")","v":""},{"$f":"IFERROR(INDEX(Database_Prop!$B$2:$B$1498,SMALL(IF(Database_Prop!$A$2:$A$1498=AJ$129,ROW(Database_Prop!$B$2:$B$1498)-ROW(Database_Prop!$B$2)+1),ROWS(Database_Prop!G$2:'Database_Prop'!G116))),\"\")","v":""},{"$f":"IFERROR(INDEX(Database_Prop!$B$2:$B$1498,SMALL(IF(Database_Prop!$A$2:$A$1498=AK$129,ROW(Database_Prop!$B$2:$B$1498)-ROW(Database_Prop!$B$2)+1),ROWS(Database_Prop!H$2:'Database_Prop'!H116))),\"\")","v":""},{"$f":"IFERROR(INDEX(Database_Prop!$B$2:$B$1498,SMALL(IF(Database_Prop!$A$2:$A$1498=AL$129,ROW(Database_Prop!$B$2:$B$1498)-ROW(Database_Prop!$B$2)+1),ROWS(Database_Prop!I$2:'Database_Prop'!I116))),\"\")","v":""},{"$f":"IFERROR(INDEX(Database_Prop!$B$2:$B$1498,SMALL(IF(Database_Prop!$A$2:$A$1498=AM$129,ROW(Database_Prop!$B$2:$B$1498)-ROW(Database_Prop!$B$2)+1),ROWS(Database_Prop!J$2:'Database_Prop'!J116))),\"\")","v":""},{"$f":"IFERROR(INDEX(Database_Prop!$B$2:$B$1498,SMALL(IF(Database_Prop!$A$2:$A$1498=AN$129,ROW(Database_Prop!$B$2:$B$1498)-ROW(Database_Prop!$B$2)+1),ROWS(Database_Prop!K$2:'Database_Prop'!K116))),\"\")","v":""},{"$f":"IFERROR(INDEX(Database_Prop!$B$2:$B$1498,SMALL(IF(Database_Prop!$A$2:$A$1498=AO$129,ROW(Database_Prop!$B$2:$B$1498)-ROW(Database_Prop!$B$2)+1),ROWS(Database_Prop!L$2:'Database_Prop'!L116))),\"\")","v":""},{"$f":"IFERROR(INDEX(Database_Prop!$B$2:$B$1498,SMALL(IF(Database_Prop!$A$2:$A$1498=AP$129,ROW(Database_Prop!$B$2:$B$1498)-ROW(Database_Prop!$B$2)+1),ROWS(Database_Prop!M$2:'Database_Prop'!M116))),\"\")","v":""},{"$f":"IFERROR(INDEX(Database_Prop!$B$2:$B$1498,SMALL(IF(Database_Prop!$A$2:$A$1498=AQ$129,ROW(Database_Prop!$B$2:$B$1498)-ROW(Database_Prop!$B$2)+1),ROWS(Database_Prop!N$2:'Database_Prop'!N116))),\"\")","v":""},{"$f":"IFERROR(INDEX(Database_Prop!$B$2:$B$1498,SMALL(IF(Database_Prop!$A$2:$A$1498=AR$129,ROW(Database_Prop!$B$2:$B$1498)-ROW(Database_Prop!$B$2)+1),ROWS(Database_Prop!O$2:'Database_Prop'!O116))),\"\")","v":""},{"$f":"IFERROR(INDEX(Database_Prop!$B$2:$B$1498,SMALL(IF(Database_Prop!$A$2:$A$1498=AS$129,ROW(Database_Prop!$B$2:$B$1498)-ROW(Database_Prop!$B$2)+1),ROWS(Database_Prop!P$2:'Database_Prop'!P116))),\"\")","v":""},{"$f":"IFERROR(INDEX(Database_Prop!$B$2:$B$1498,SMALL(IF(Database_Prop!$A$2:$A$1498=AT$129,ROW(Database_Prop!$B$2:$B$1498)-ROW(Database_Prop!$B$2)+1),ROWS(Database_Prop!Q$2:'Database_Prop'!Q116))),\"\")","v":""},{"$f":"IFERROR(INDEX(Database_Prop!$B$2:$B$1498,SMALL(IF(Database_Prop!$A$2:$A$1498=AU$129,ROW(Database_Prop!$B$2:$B$1498)-ROW(Database_Prop!$B$2)+1),ROWS(Database_Prop!R$2:'Database_Prop'!R116))),\"\")","v":""},{"$f":"IFERROR(INDEX(Database_Prop!$B$2:$B$1498,SMALL(IF(Database_Prop!$A$2:$A$1498=AV$129,ROW(Database_Prop!$B$2:$B$1498)-ROW(Database_Prop!$B$2)+1),ROWS(Database_Prop!S$2:'Database_Prop'!S116))),\"\")","v":""},{"$f":"IFERROR(INDEX(Database_Prop!$B$2:$B$1498,SMALL(IF(Database_Prop!$A$2:$A$1498=AW$129,ROW(Database_Prop!$B$2:$B$1498)-ROW(Database_Prop!$B$2)+1),ROWS(Database_Prop!T$2:'Database_Prop'!T116))),\"\")","v":""},{"$f":"IFERROR(INDEX(Database_Prop!$B$2:$B$1498,SMALL(IF(Database_Prop!$A$2:$A$1498=AX$129,ROW(Database_Prop!$B$2:$B$1498)-ROW(Database_Prop!$B$2)+1),ROWS(Database_Prop!U$2:'Database_Prop'!U116))),\"\")","v":""},{"$f":"IFERROR(INDEX(Database_Prop!$B$2:$B$1498,SMALL(IF(Database_Prop!$A$2:$A$1498=AY$129,ROW(Database_Prop!$B$2:$B$1498)-ROW(Database_Prop!$B$2)+1),ROWS(Database_Prop!V$2:'Database_Prop'!V116))),\"\")","v":""},{"$f":"IFERROR(INDEX(Database_Prop!$B$2:$B$1498,SMALL(IF(Database_Prop!$A$2:$A$1498=AZ$129,ROW(Database_Prop!$B$2:$B$1498)-ROW(Database_Prop!$B$2)+1),ROWS(Database_Prop!W$2:'Database_Prop'!W116))),\"\")","v":""},{"$f":"IFERROR(INDEX(Database_Prop!$B$2:$B$1498,SMALL(IF(Database_Prop!$A$2:$A$1498=BA$129,ROW(Database_Prop!$B$2:$B$1498)-ROW(Database_Prop!$B$2)+1),ROWS(Database_Prop!X$2:'Database_Prop'!X116))),\"\")","v":""},{"$f":"IFERROR(INDEX(Database_Prop!$B$2:$B$1498,SMALL(IF(Database_Prop!$A$2:$A$1498=BB$129,ROW(Database_Prop!$B$2:$B$1498)-ROW(Database_Prop!$B$2)+1),ROWS(Database_Prop!Y$2:'Database_Prop'!Y116))),\"\")","v":""},{"$f":"IFERROR(INDEX(Database_Prop!$B$2:$B$1498,SMALL(IF(Database_Prop!$A$2:$A$1498=BC$129,ROW(Database_Prop!$B$2:$B$1498)-ROW(Database_Prop!$B$2)+1),ROWS(Database_Prop!Z$2:'Database_Prop'!Z116))),\"\")","v":""},null,"Lebanon","Middle East"]
[null,null,null,null,null,null,null,null,null,null,null,null,null,null,null,null,null,null,null,null,null,null,null,null,null,null,null,null,null,null,117,{"$f":"IFERROR(INDEX(Database_Prop!$B$2:$B$1498,SMALL(IF(Database_Prop!$A$2:$A$1498=AF$129,ROW(Database_Prop!$B$2:$B$1498)-ROW(Database_Prop!$B$2)+1),ROWS(Database_Prop!C$2:'Database_Prop'!C117))),\"\")","v":""},{"$f":"IFERROR(INDEX(Database_Prop!$B$2:$B$1498,SMALL(IF(Database_Prop!$A$2:$A$1498=AG$129,ROW(Database_Prop!$B$2:$B$1498)-ROW(Database_Prop!$B$2)+1),ROWS(Database_Prop!D$2:'Database_Prop'!D117))),\"\")","v":""},{"$f":"IFERROR(INDEX(Database_Prop!$B$2:$B$1498,SMALL(IF(Database_Prop!$A$2:$A$1498=AH$129,ROW(Database_Prop!$B$2:$B$1498)-ROW(Database_Prop!$B$2)+1),ROWS(Database_Prop!E$2:'Database_Prop'!E117))),\"\")","v":""},{"$f":"IFERROR(INDEX(Database_Prop!$B$2:$B$1498,SMALL(IF(Database_Prop!$A$2:$A$1498=AI$129,ROW(Database_Prop!$B$2:$B$1498)-ROW(Database_Prop!$B$2)+1),ROWS(Database_Prop!F$2:'Database_Prop'!F117))),\"\")","v":""},{"$f":"IFERROR(INDEX(Database_Prop!$B$2:$B$1498,SMALL(IF(Database_Prop!$A$2:$A$1498=AJ$129,ROW(Database_Prop!$B$2:$B$1498)-ROW(Database_Prop!$B$2)+1),ROWS(Database_Prop!G$2:'Database_Prop'!G117))),\"\")","v":""},{"$f":"IFERROR(INDEX(Database_Prop!$B$2:$B$1498,SMALL(IF(Database_Prop!$A$2:$A$1498=AK$129,ROW(Database_Prop!$B$2:$B$1498)-ROW(Database_Prop!$B$2)+1),ROWS(Database_Prop!H$2:'Database_Prop'!H117))),\"\")","v":""},{"$f":"IFERROR(INDEX(Database_Prop!$B$2:$B$1498,SMALL(IF(Database_Prop!$A$2:$A$1498=AL$129,ROW(Database_Prop!$B$2:$B$1498)-ROW(Database_Prop!$B$2)+1),ROWS(Database_Prop!I$2:'Database_Prop'!I117))),\"\")","v":""},{"$f":"IFERROR(INDEX(Database_Prop!$B$2:$B$1498,SMALL(IF(Database_Prop!$A$2:$A$1498=AM$129,ROW(Database_Prop!$B$2:$B$1498)-ROW(Database_Prop!$B$2)+1),ROWS(Database_Prop!J$2:'Database_Prop'!J117))),\"\")","v":""},{"$f":"IFERROR(INDEX(Database_Prop!$B$2:$B$1498,SMALL(IF(Database_Prop!$A$2:$A$1498=AN$129,ROW(Database_Prop!$B$2:$B$1498)-ROW(Database_Prop!$B$2)+1),ROWS(Database_Prop!K$2:'Database_Prop'!K117))),\"\")","v":""},{"$f":"IFERROR(INDEX(Database_Prop!$B$2:$B$1498,SMALL(IF(Database_Prop!$A$2:$A$1498=AO$129,ROW(Database_Prop!$B$2:$B$1498)-ROW(Database_Prop!$B$2)+1),ROWS(Database_Prop!L$2:'Database_Prop'!L117))),\"\")","v":""},{"$f":"IFERROR(INDEX(Database_Prop!$B$2:$B$1498,SMALL(IF(Database_Prop!$A$2:$A$1498=AP$129,ROW(Database_Prop!$B$2:$B$1498)-ROW(Database_Prop!$B$2)+1),ROWS(Database_Prop!M$2:'Database_Prop'!M117))),\"\")","v":""},{"$f":"IFERROR(INDEX(Database_Prop!$B$2:$B$1498,SMALL(IF(Database_Prop!$A$2:$A$1498=AQ$129,ROW(Database_Prop!$B$2:$B$1498)-ROW(Database_Prop!$B$2)+1),ROWS(Database_Prop!N$2:'Database_Prop'!N117))),\"\")","v":""},{"$f":"IFERROR(INDEX(Database_Prop!$B$2:$B$1498,SMALL(IF(Database_Prop!$A$2:$A$1498=AR$129,ROW(Database_Prop!$B$2:$B$1498)-ROW(Database_Prop!$B$2)+1),ROWS(Database_Prop!O$2:'Database_Prop'!O117))),\"\")","v":""},{"$f":"IFERROR(INDEX(Database_Prop!$B$2:$B$1498,SMALL(IF(Database_Prop!$A$2:$A$1498=AS$129,ROW(Database_Prop!$B$2:$B$1498)-ROW(Database_Prop!$B$2)+1),ROWS(Database_Prop!P$2:'Database_Prop'!P117))),\"\")","v":""},{"$f":"IFERROR(INDEX(Database_Prop!$B$2:$B$1498,SMALL(IF(Database_Prop!$A$2:$A$1498=AT$129,ROW(Database_Prop!$B$2:$B$1498)-ROW(Database_Prop!$B$2)+1),ROWS(Database_Prop!Q$2:'Database_Prop'!Q117))),\"\")","v":""},{"$f":"IFERROR(INDEX(Database_Prop!$B$2:$B$1498,SMALL(IF(Database_Prop!$A$2:$A$1498=AU$129,ROW(Database_Prop!$B$2:$B$1498)-ROW(Database_Prop!$B$2)+1),ROWS(Database_Prop!R$2:'Database_Prop'!R117))),\"\")","v":""},{"$f":"IFERROR(INDEX(Database_Prop!$B$2:$B$1498,SMALL(IF(Database_Prop!$A$2:$A$1498=AV$129,ROW(Database_Prop!$B$2:$B$1498)-ROW(Database_Prop!$B$2)+1),ROWS(Database_Prop!S$2:'Database_Prop'!S117))),\"\")","v":""},{"$f":"IFERROR(INDEX(Database_Prop!$B$2:$B$1498,SMALL(IF(Database_Prop!$A$2:$A$1498=AW$129,ROW(Database_Prop!$B$2:$B$1498)-ROW(Database_Prop!$B$2)+1),ROWS(Database_Prop!T$2:'Database_Prop'!T117))),\"\")","v":""},{"$f":"IFERROR(INDEX(Database_Prop!$B$2:$B$1498,SMALL(IF(Database_Prop!$A$2:$A$1498=AX$129,ROW(Database_Prop!$B$2:$B$1498)-ROW(Database_Prop!$B$2)+1),ROWS(Database_Prop!U$2:'Database_Prop'!U117))),\"\")","v":""},{"$f":"IFERROR(INDEX(Database_Prop!$B$2:$B$1498,SMALL(IF(Database_Prop!$A$2:$A$1498=AY$129,ROW(Database_Prop!$B$2:$B$1498)-ROW(Database_Prop!$B$2)+1),ROWS(Database_Prop!V$2:'Database_Prop'!V117))),\"\")","v":""},{"$f":"IFERROR(INDEX(Database_Prop!$B$2:$B$1498,SMALL(IF(Database_Prop!$A$2:$A$1498=AZ$129,ROW(Database_Prop!$B$2:$B$1498)-ROW(Database_Prop!$B$2)+1),ROWS(Database_Prop!W$2:'Database_Prop'!W117))),\"\")","v":""},{"$f":"IFERROR(INDEX(Database_Prop!$B$2:$B$1498,SMALL(IF(Database_Prop!$A$2:$A$1498=BA$129,ROW(Database_Prop!$B$2:$B$1498)-ROW(Database_Prop!$B$2)+1),ROWS(Database_Prop!X$2:'Database_Prop'!X117))),\"\")","v":""},{"$f":"IFERROR(INDEX(Database_Prop!$B$2:$B$1498,SMALL(IF(Database_Prop!$A$2:$A$1498=BB$129,ROW(Database_Prop!$B$2:$B$1498)-ROW(Database_Prop!$B$2)+1),ROWS(Database_Prop!Y$2:'Database_Prop'!Y117))),\"\")","v":""},{"$f":"IFERROR(INDEX(Database_Prop!$B$2:$B$1498,SMALL(IF(Database_Prop!$A$2:$A$1498=BC$129,ROW(Database_Prop!$B$2:$B$1498)-ROW(Database_Prop!$B$2)+1),ROWS(Database_Prop!Z$2:'Database_Prop'!Z117))),\"\")","v":""},null,"Lesotho","Africa"]
[null,null,null,null,null,null,null,null,null,null,null,null,null,null,null,null,null,null,null,null,null,null,null,null,null,null,null,null,null,null,118,{"$f":"IFERROR(INDEX(Database_Prop!$B$2:$B$1498,SMALL(IF(Database_Prop!$A$2:$A$1498=AF$129,ROW(Database_Prop!$B$2:$B$1498)-ROW(Database_Prop!$B$2)+1),ROWS(Database_Prop!C$2:'Database_Prop'!C118))),\"\")","v":""},{"$f":"IFERROR(INDEX(Database_Prop!$B$2:$B$1498,SMALL(IF(Database_Prop!$A$2:$A$1498=AG$129,ROW(Database_Prop!$B$2:$B$1498)-ROW(Database_Prop!$B$2)+1),ROWS(Database_Prop!D$2:'Database_Prop'!D118))),\"\")","v":""},{"$f":"IFERROR(INDEX(Database_Prop!$B$2:$B$1498,SMALL(IF(Database_Prop!$A$2:$A$1498=AH$129,ROW(Database_Prop!$B$2:$B$1498)-ROW(Database_Prop!$B$2)+1),ROWS(Database_Prop!E$2:'Database_Prop'!E118))),\"\")","v":""},{"$f":"IFERROR(INDEX(Database_Prop!$B$2:$B$1498,SMALL(IF(Database_Prop!$A$2:$A$1498=AI$129,ROW(Database_Prop!$B$2:$B$1498)-ROW(Database_Prop!$B$2)+1),ROWS(Database_Prop!F$2:'Database_Prop'!F118))),\"\")","v":""},{"$f":"IFERROR(INDEX(Database_Prop!$B$2:$B$1498,SMALL(IF(Database_Prop!$A$2:$A$1498=AJ$129,ROW(Database_Prop!$B$2:$B$1498)-ROW(Database_Prop!$B$2)+1),ROWS(Database_Prop!G$2:'Database_Prop'!G118))),\"\")","v":""},{"$f":"IFERROR(INDEX(Database_Prop!$B$2:$B$1498,SMALL(IF(Database_Prop!$A$2:$A$1498=AK$129,ROW(Database_Prop!$B$2:$B$1498)-ROW(Database_Prop!$B$2)+1),ROWS(Database_Prop!H$2:'Database_Prop'!H118))),\"\")","v":""},{"$f":"IFERROR(INDEX(Database_Prop!$B$2:$B$1498,SMALL(IF(Database_Prop!$A$2:$A$1498=AL$129,ROW(Database_Prop!$B$2:$B$1498)-ROW(Database_Prop!$B$2)+1),ROWS(Database_Prop!I$2:'Database_Prop'!I118))),\"\")","v":""},{"$f":"IFERROR(INDEX(Database_Prop!$B$2:$B$1498,SMALL(IF(Database_Prop!$A$2:$A$1498=AM$129,ROW(Database_Prop!$B$2:$B$1498)-ROW(Database_Prop!$B$2)+1),ROWS(Database_Prop!J$2:'Database_Prop'!J118))),\"\")","v":""},{"$f":"IFERROR(INDEX(Database_Prop!$B$2:$B$1498,SMALL(IF(Database_Prop!$A$2:$A$1498=AN$129,ROW(Database_Prop!$B$2:$B$1498)-ROW(Database_Prop!$B$2)+1),ROWS(Database_Prop!K$2:'Database_Prop'!K118))),\"\")","v":""},{"$f":"IFERROR(INDEX(Database_Prop!$B$2:$B$1498,SMALL(IF(Database_Prop!$A$2:$A$1498=AO$129,ROW(Database_Prop!$B$2:$B$1498)-ROW(Database_Prop!$B$2)+1),ROWS(Database_Prop!L$2:'Database_Prop'!L118))),\"\")","v":""},{"$f":"IFERROR(INDEX(Database_Prop!$B$2:$B$1498,SMALL(IF(Database_Prop!$A$2:$A$1498=AP$129,ROW(Database_Prop!$B$2:$B$1498)-ROW(Database_Prop!$B$2)+1),ROWS(Database_Prop!M$2:'Database_Prop'!M118))),\"\")","v":""},{"$f":"IFERROR(INDEX(Database_Prop!$B$2:$B$1498,SMALL(IF(Database_Prop!$A$2:$A$1498=AQ$129,ROW(Database_Prop!$B$2:$B$1498)-ROW(Database_Prop!$B$2)+1),ROWS(Database_Prop!N$2:'Database_Prop'!N118))),\"\")","v":""},{"$f":"IFERROR(INDEX(Database_Prop!$B$2:$B$1498,SMALL(IF(Database_Prop!$A$2:$A$1498=AR$129,ROW(Database_Prop!$B$2:$B$1498)-ROW(Database_Prop!$B$2)+1),ROWS(Database_Prop!O$2:'Database_Prop'!O118))),\"\")","v":""},{"$f":"IFERROR(INDEX(Database_Prop!$B$2:$B$1498,SMALL(IF(Database_Prop!$A$2:$A$1498=AS$129,ROW(Database_Prop!$B$2:$B$1498)-ROW(Database_Prop!$B$2)+1),ROWS(Database_Prop!P$2:'Database_Prop'!P118))),\"\")","v":""},{"$f":"IFERROR(INDEX(Database_Prop!$B$2:$B$1498,SMALL(IF(Database_Prop!$A$2:$A$1498=AT$129,ROW(Database_Prop!$B$2:$B$1498)-ROW(Database_Prop!$B$2)+1),ROWS(Database_Prop!Q$2:'Database_Prop'!Q118))),\"\")","v":""},{"$f":"IFERROR(INDEX(Database_Prop!$B$2:$B$1498,SMALL(IF(Database_Prop!$A$2:$A$1498=AU$129,ROW(Database_Prop!$B$2:$B$1498)-ROW(Database_Prop!$B$2)+1),ROWS(Database_Prop!R$2:'Database_Prop'!R118))),\"\")","v":""},{"$f":"IFERROR(INDEX(Database_Prop!$B$2:$B$1498,SMALL(IF(Database_Prop!$A$2:$A$1498=AV$129,ROW(Database_Prop!$B$2:$B$1498)-ROW(Database_Prop!$B$2)+1),ROWS(Database_Prop!S$2:'Database_Prop'!S118))),\"\")","v":""},{"$f":"IFERROR(INDEX(Database_Prop!$B$2:$B$1498,SMALL(IF(Database_Prop!$A$2:$A$1498=AW$129,ROW(Database_Prop!$B$2:$B$1498)-ROW(Database_Prop!$B$2)+1),ROWS(Database_Prop!T$2:'Database_Prop'!T118))),\"\")","v":""},{"$f":"IFERROR(INDEX(Database_Prop!$B$2:$B$1498,SMALL(IF(Database_Prop!$A$2:$A$1498=AX$129,ROW(Database_Prop!$B$2:$B$1498)-ROW(Database_Prop!$B$2)+1),ROWS(Database_Prop!U$2:'Database_Prop'!U118))),\"\")","v":""},{"$f":"IFERROR(INDEX(Database_Prop!$B$2:$B$1498,SMALL(IF(Database_Prop!$A$2:$A$1498=AY$129,ROW(Database_Prop!$B$2:$B$1498)-ROW(Database_Prop!$B$2)+1),ROWS(Database_Prop!V$2:'Database_Prop'!V118))),\"\")","v":""},{"$f":"IFERROR(INDEX(Database_Prop!$B$2:$B$1498,SMALL(IF(Database_Prop!$A$2:$A$1498=AZ$129,ROW(Database_Prop!$B$2:$B$1498)-ROW(Database_Prop!$B$2)+1),ROWS(Database_Prop!W$2:'Database_Prop'!W118))),\"\")","v":""},{"$f":"IFERROR(INDEX(Database_Prop!$B$2:$B$1498,SMALL(IF(Database_Prop!$A$2:$A$1498=BA$129,ROW(Database_Prop!$B$2:$B$1498)-ROW(Database_Prop!$B$2)+1),ROWS(Database_Prop!X$2:'Database_Prop'!X118))),\"\")","v":""},{"$f":"IFERROR(INDEX(Database_Prop!$B$2:$B$1498,SMALL(IF(Database_Prop!$A$2:$A$1498=BB$129,ROW(Database_Prop!$B$2:$B$1498)-ROW(Database_Prop!$B$2)+1),ROWS(Database_Prop!Y$2:'Database_Prop'!Y118))),\"\")","v":""},{"$f":"IFERROR(INDEX(Database_Prop!$B$2:$B$1498,SMALL(IF(Database_Prop!$A$2:$A$1498=BC$129,ROW(Database_Prop!$B$2:$B$1498)-ROW(Database_Prop!$B$2)+1),ROWS(Database_Prop!Z$2:'Database_Prop'!Z118))),\"\")","v":""},null,"Liberia","Africa"]
[null,null,null,null,null,null,null,null,null,null,null,null,null,null,null,null,null,null,null,null,null,null,null,null,null,null,null,null,null,null,119,{"$f":"IFERROR(INDEX(Database_Prop!$B$2:$B$1498,SMALL(IF(Database_Prop!$A$2:$A$1498=AF$129,ROW(Database_Prop!$B$2:$B$1498)-ROW(Database_Prop!$B$2)+1),ROWS(Database_Prop!C$2:'Database_Prop'!C119))),\"\")","v":""},{"$f":"IFERROR(INDEX(Database_Prop!$B$2:$B$1498,SMALL(IF(Database_Prop!$A$2:$A$1498=AG$129,ROW(Database_Prop!$B$2:$B$1498)-ROW(Database_Prop!$B$2)+1),ROWS(Database_Prop!D$2:'Database_Prop'!D119))),\"\")","v":""},{"$f":"IFERROR(INDEX(Database_Prop!$B$2:$B$1498,SMALL(IF(Database_Prop!$A$2:$A$1498=AH$129,ROW(Database_Prop!$B$2:$B$1498)-ROW(Database_Prop!$B$2)+1),ROWS(Database_Prop!E$2:'Database_Prop'!E119))),\"\")","v":""},{"$f":"IFERROR(INDEX(Database_Prop!$B$2:$B$1498,SMALL(IF(Database_Prop!$A$2:$A$1498=AI$129,ROW(Database_Prop!$B$2:$B$1498)-ROW(Database_Prop!$B$2)+1),ROWS(Database_Prop!F$2:'Database_Prop'!F119))),\"\")","v":""},{"$f":"IFERROR(INDEX(Database_Prop!$B$2:$B$1498,SMALL(IF(Database_Prop!$A$2:$A$1498=AJ$129,ROW(Database_Prop!$B$2:$B$1498)-ROW(Database_Prop!$B$2)+1),ROWS(Database_Prop!G$2:'Database_Prop'!G119))),\"\")","v":""},{"$f":"IFERROR(INDEX(Database_Prop!$B$2:$B$1498,SMALL(IF(Database_Prop!$A$2:$A$1498=AK$129,ROW(Database_Prop!$B$2:$B$1498)-ROW(Database_Prop!$B$2)+1),ROWS(Database_Prop!H$2:'Database_Prop'!H119))),\"\")","v":""},{"$f":"IFERROR(INDEX(Database_Prop!$B$2:$B$1498,SMALL(IF(Database_Prop!$A$2:$A$1498=AL$129,ROW(Database_Prop!$B$2:$B$1498)-ROW(Database_Prop!$B$2)+1),ROWS(Database_Prop!I$2:'Database_Prop'!I119))),\"\")","v":""},{"$f":"IFERROR(INDEX(Database_Prop!$B$2:$B$1498,SMALL(IF(Database_Prop!$A$2:$A$1498=AM$129,ROW(Database_Prop!$B$2:$B$1498)-ROW(Database_Prop!$B$2)+1),ROWS(Database_Prop!J$2:'Database_Prop'!J119))),\"\")","v":""},{"$f":"IFERROR(INDEX(Database_Prop!$B$2:$B$1498,SMALL(IF(Database_Prop!$A$2:$A$1498=AN$129,ROW(Database_Prop!$B$2:$B$1498)-ROW(Database_Prop!$B$2)+1),ROWS(Database_Prop!K$2:'Database_Prop'!K119))),\"\")","v":""},{"$f":"IFERROR(INDEX(Database_Prop!$B$2:$B$1498,SMALL(IF(Database_Prop!$A$2:$A$1498=AO$129,ROW(Database_Prop!$B$2:$B$1498)-ROW(Database_Prop!$B$2)+1),ROWS(Database_Prop!L$2:'Database_Prop'!L119))),\"\")","v":""},{"$f":"IFERROR(INDEX(Database_Prop!$B$2:$B$1498,SMALL(IF(Database_Prop!$A$2:$A$1498=AP$129,ROW(Database_Prop!$B$2:$B$1498)-ROW(Database_Prop!$B$2)+1),ROWS(Database_Prop!M$2:'Database_Prop'!M119))),\"\")","v":""},{"$f":"IFERROR(INDEX(Database_Prop!$B$2:$B$1498,SMALL(IF(Database_Prop!$A$2:$A$1498=AQ$129,ROW(Database_Prop!$B$2:$B$1498)-ROW(Database_Prop!$B$2)+1),ROWS(Database_Prop!N$2:'Database_Prop'!N119))),\"\")","v":""},{"$f":"IFERROR(INDEX(Database_Prop!$B$2:$B$1498,SMALL(IF(Database_Prop!$A$2:$A$1498=AR$129,ROW(Database_Prop!$B$2:$B$1498)-ROW(Database_Prop!$B$2)+1),ROWS(Database_Prop!O$2:'Database_Prop'!O119))),\"\")","v":""},{"$f":"IFERROR(INDEX(Database_Prop!$B$2:$B$1498,SMALL(IF(Database_Prop!$A$2:$A$1498=AS$129,ROW(Database_Prop!$B$2:$B$1498)-ROW(Database_Prop!$B$2)+1),ROWS(Database_Prop!P$2:'Database_Prop'!P119))),\"\")","v":""},{"$f":"IFERROR(INDEX(Database_Prop!$B$2:$B$1498,SMALL(IF(Database_Prop!$A$2:$A$1498=AT$129,ROW(Database_Prop!$B$2:$B$1498)-ROW(Database_Prop!$B$2)+1),ROWS(Database_Prop!Q$2:'Database_Prop'!Q119))),\"\")","v":""},{"$f":"IFERROR(INDEX(Database_Prop!$B$2:$B$1498,SMALL(IF(Database_Prop!$A$2:$A$1498=AU$129,ROW(Database_Prop!$B$2:$B$1498)-ROW(Database_Prop!$B$2)+1),ROWS(Database_Prop!R$2:'Database_Prop'!R119))),\"\")","v":""},{"$f":"IFERROR(INDEX(Database_Prop!$B$2:$B$1498,SMALL(IF(Database_Prop!$A$2:$A$1498=AV$129,ROW(Database_Prop!$B$2:$B$1498)-ROW(Database_Prop!$B$2)+1),ROWS(Database_Prop!S$2:'Database_Prop'!S119))),\"\")","v":""},{"$f":"IFERROR(INDEX(Database_Prop!$B$2:$B$1498,SMALL(IF(Database_Prop!$A$2:$A$1498=AW$129,ROW(Database_Prop!$B$2:$B$1498)-ROW(Database_Prop!$B$2)+1),ROWS(Database_Prop!T$2:'Database_Prop'!T119))),\"\")","v":""},{"$f":"IFERROR(INDEX(Database_Prop!$B$2:$B$1498,SMALL(IF(Database_Prop!$A$2:$A$1498=AX$129,ROW(Database_Prop!$B$2:$B$1498)-ROW(Database_Prop!$B$2)+1),ROWS(Database_Prop!U$2:'Database_Prop'!U119))),\"\")","v":""},{"$f":"IFERROR(INDEX(Database_Prop!$B$2:$B$1498,SMALL(IF(Database_Prop!$A$2:$A$1498=AY$129,ROW(Database_Prop!$B$2:$B$1498)-ROW(Database_Prop!$B$2)+1),ROWS(Database_Prop!V$2:'Database_Prop'!V119))),\"\")","v":""},{"$f":"IFERROR(INDEX(Database_Prop!$B$2:$B$1498,SMALL(IF(Database_Prop!$A$2:$A$1498=AZ$129,ROW(Database_Prop!$B$2:$B$1498)-ROW(Database_Prop!$B$2)+1),ROWS(Database_Prop!W$2:'Database_Prop'!W119))),\"\")","v":""},{"$f":"IFERROR(INDEX(Database_Prop!$B$2:$B$1498,SMALL(IF(Database_Prop!$A$2:$A$1498=BA$129,ROW(Database_Prop!$B$2:$B$1498)-ROW(Database_Prop!$B$2)+1),ROWS(Database_Prop!X$2:'Database_Prop'!X119))),\"\")","v":""},{"$f":"IFERROR(INDEX(Database_Prop!$B$2:$B$1498,SMALL(IF(Database_Prop!$A$2:$A$1498=BB$129,ROW(Database_Prop!$B$2:$B$1498)-ROW(Database_Prop!$B$2)+1),ROWS(Database_Prop!Y$2:'Database_Prop'!Y119))),\"\")","v":""},{"$f":"IFERROR(INDEX(Database_Prop!$B$2:$B$1498,SMALL(IF(Database_Prop!$A$2:$A$1498=BC$129,ROW(Database_Prop!$B$2:$B$1498)-ROW(Database_Prop!$B$2)+1),ROWS(Database_Prop!Z$2:'Database_Prop'!Z119))),\"\")","v":""},null,"Libya","Africa"]
[null,null,null,null,null,null,null,null,null,null,null,null,null,null,null,null,null,null,null,null,null,null,null,null,null,null,null,null,null,null,120,{"$f":"IFERROR(INDEX(Database_Prop!$B$2:$B$1498,SMALL(IF(Database_Prop!$A$2:$A$1498=AF$129,ROW(Database_Prop!$B$2:$B$1498)-ROW(Database_Prop!$B$2)+1),ROWS(Database_Prop!C$2:'Database_Prop'!C120))),\"\")","v":""},{"$f":"IFERROR(INDEX(Database_Prop!$B$2:$B$1498,SMALL(IF(Database_Prop!$A$2:$A$1498=AG$129,ROW(Database_Prop!$B$2:$B$1498)-ROW(Database_Prop!$B$2)+1),ROWS(Database_Prop!D$2:'Database_Prop'!D120))),\"\")","v":""},{"$f":"IFERROR(INDEX(Database_Prop!$B$2:$B$1498,SMALL(IF(Database_Prop!$A$2:$A$1498=AH$129,ROW(Database_Prop!$B$2:$B$1498)-ROW(Database_Prop!$B$2)+1),ROWS(Database_Prop!E$2:'Database_Prop'!E120))),\"\")","v":""},{"$f":"IFERROR(INDEX(Database_Prop!$B$2:$B$1498,SMALL(IF(Database_Prop!$A$2:$A$1498=AI$129,ROW(Database_Prop!$B$2:$B$1498)-ROW(Database_Prop!$B$2)+1),ROWS(Database_Prop!F$2:'Database_Prop'!F120))),\"\")","v":""},{"$f":"IFERROR(INDEX(Database_Prop!$B$2:$B$1498,SMALL(IF(Database_Prop!$A$2:$A$1498=AJ$129,ROW(Database_Prop!$B$2:$B$1498)-ROW(Database_Prop!$B$2)+1),ROWS(Database_Prop!G$2:'Database_Prop'!G120))),\"\")","v":""},{"$f":"IFERROR(INDEX(Database_Prop!$B$2:$B$1498,SMALL(IF(Database_Prop!$A$2:$A$1498=AK$129,ROW(Database_Prop!$B$2:$B$1498)-ROW(Database_Prop!$B$2)+1),ROWS(Database_Prop!H$2:'Database_Prop'!H120))),\"\")","v":""},{"$f":"IFERROR(INDEX(Database_Prop!$B$2:$B$1498,SMALL(IF(Database_Prop!$A$2:$A$1498=AL$129,ROW(Database_Prop!$B$2:$B$1498)-ROW(Database_Prop!$B$2)+1),ROWS(Database_Prop!I$2:'Database_Prop'!I120))),\"\")","v":""},{"$f":"IFERROR(INDEX(Database_Prop!$B$2:$B$1498,SMALL(IF(Database_Prop!$A$2:$A$1498=AM$129,ROW(Database_Prop!$B$2:$B$1498)-ROW(Database_Prop!$B$2)+1),ROWS(Database_Prop!J$2:'Database_Prop'!J120))),\"\")","v":""},{"$f":"IFERROR(INDEX(Database_Prop!$B$2:$B$1498,SMALL(IF(Database_Prop!$A$2:$A$1498=AN$129,ROW(Database_Prop!$B$2:$B$1498)-ROW(Database_Prop!$B$2)+1),ROWS(Database_Prop!K$2:'Database_Prop'!K120))),\"\")","v":""},{"$f":"IFERROR(INDEX(Database_Prop!$B$2:$B$1498,SMALL(IF(Database_Prop!$A$2:$A$1498=AO$129,ROW(Database_Prop!$B$2:$B$1498)-ROW(Database_Prop!$B$2)+1),ROWS(Database_Prop!L$2:'Database_Prop'!L120))),\"\")","v":""},{"$f":"IFERROR(INDEX(Database_Prop!$B$2:$B$1498,SMALL(IF(Database_Prop!$A$2:$A$1498=AP$129,ROW(Database_Prop!$B$2:$B$1498)-ROW(Database_Prop!$B$2)+1),ROWS(Database_Prop!M$2:'Database_Prop'!M120))),\"\")","v":""},{"$f":"IFERROR(INDEX(Database_Prop!$B$2:$B$1498,SMALL(IF(Database_Prop!$A$2:$A$1498=AQ$129,ROW(Database_Prop!$B$2:$B$1498)-ROW(Database_Prop!$B$2)+1),ROWS(Database_Prop!N$2:'Database_Prop'!N120))),\"\")","v":""},{"$f":"IFERROR(INDEX(Database_Prop!$B$2:$B$1498,SMALL(IF(Database_Prop!$A$2:$A$1498=AR$129,ROW(Database_Prop!$B$2:$B$1498)-ROW(Database_Prop!$B$2)+1),ROWS(Database_Prop!O$2:'Database_Prop'!O120))),\"\")","v":""},{"$f":"IFERROR(INDEX(Database_Prop!$B$2:$B$1498,SMALL(IF(Database_Prop!$A$2:$A$1498=AS$129,ROW(Database_Prop!$B$2:$B$1498)-ROW(Database_Prop!$B$2)+1),ROWS(Database_Prop!P$2:'Database_Prop'!P120))),\"\")","v":""},{"$f":"IFERROR(INDEX(Database_Prop!$B$2:$B$1498,SMALL(IF(Database_Prop!$A$2:$A$1498=AT$129,ROW(Database_Prop!$B$2:$B$1498)-ROW(Database_Prop!$B$2)+1),ROWS(Database_Prop!Q$2:'Database_Prop'!Q120))),\"\")","v":""},{"$f":"IFERROR(INDEX(Database_Prop!$B$2:$B$1498,SMALL(IF(Database_Prop!$A$2:$A$1498=AU$129,ROW(Database_Prop!$B$2:$B$1498)-ROW(Database_Prop!$B$2)+1),ROWS(Database_Prop!R$2:'Database_Prop'!R120))),\"\")","v":""},{"$f":"IFERROR(INDEX(Database_Prop!$B$2:$B$1498,SMALL(IF(Database_Prop!$A$2:$A$1498=AV$129,ROW(Database_Prop!$B$2:$B$1498)-ROW(Database_Prop!$B$2)+1),ROWS(Database_Prop!S$2:'Database_Prop'!S120))),\"\")","v":""},{"$f":"IFERROR(INDEX(Database_Prop!$B$2:$B$1498,SMALL(IF(Database_Prop!$A$2:$A$1498=AW$129,ROW(Database_Prop!$B$2:$B$1498)-ROW(Database_Prop!$B$2)+1),ROWS(Database_Prop!T$2:'Database_Prop'!T120))),\"\")","v":""},{"$f":"IFERROR(INDEX(Database_Prop!$B$2:$B$1498,SMALL(IF(Database_Prop!$A$2:$A$1498=AX$129,ROW(Database_Prop!$B$2:$B$1498)-ROW(Database_Prop!$B$2)+1),ROWS(Database_Prop!U$2:'Database_Prop'!U120))),\"\")","v":""},{"$f":"IFERROR(INDEX(Database_Prop!$B$2:$B$1498,SMALL(IF(Database_Prop!$A$2:$A$1498=AY$129,ROW(Database_Prop!$B$2:$B$1498)-ROW(Database_Prop!$B$2)+1),ROWS(Database_Prop!V$2:'Database_Prop'!V120))),\"\")","v":""},{"$f":"IFERROR(INDEX(Database_Prop!$B$2:$B$1498,SMALL(IF(Database_Prop!$A$2:$A$1498=AZ$129,ROW(Database_Prop!$B$2:$B$1498)-ROW(Database_Prop!$B$2)+1),ROWS(Database_Prop!W$2:'Database_Prop'!W120))),\"\")","v":""},{"$f":"IFERROR(INDEX(Database_Prop!$B$2:$B$1498,SMALL(IF(Database_Prop!$A$2:$A$1498=BA$129,ROW(Database_Prop!$B$2:$B$1498)-ROW(Database_Prop!$B$2)+1),ROWS(Database_Prop!X$2:'Database_Prop'!X120))),\"\")","v":""},{"$f":"IFERROR(INDEX(Database_Prop!$B$2:$B$1498,SMALL(IF(Database_Prop!$A$2:$A$1498=BB$129,ROW(Database_Prop!$B$2:$B$1498)-ROW(Database_Prop!$B$2)+1),ROWS(Database_Prop!Y$2:'Database_Prop'!Y120))),\"\")","v":""},{"$f":"IFERROR(INDEX(Database_Prop!$B$2:$B$1498,SMALL(IF(Database_Prop!$A$2:$A$1498=BC$129,ROW(Database_Prop!$B$2:$B$1498)-ROW(Database_Prop!$B$2)+1),ROWS(Database_Prop!Z$2:'Database_Prop'!Z120))),\"\")","v":""},null,"Liechtenstein","Western Europe"]
[null,null,null,null,null,null,null,null,null,null,null,null,null,null,null,null,null,null,null,null,null,null,null,null,null,null,null,null,null,null,121,{"$f":"IFERROR(INDEX(Database_Prop!$B$2:$B$1498,SMALL(IF(Database_Prop!$A$2:$A$1498=AF$129,ROW(Database_Prop!$B$2:$B$1498)-ROW(Database_Prop!$B$2)+1),ROWS(Database_Prop!C$2:'Database_Prop'!C121))),\"\")","v":""},{"$f":"IFERROR(INDEX(Database_Prop!$B$2:$B$1498,SMALL(IF(Database_Prop!$A$2:$A$1498=AG$129,ROW(Database_Prop!$B$2:$B$1498)-ROW(Database_Prop!$B$2)+1),ROWS(Database_Prop!D$2:'Database_Prop'!D121))),\"\")","v":""},{"$f":"IFERROR(INDEX(Database_Prop!$B$2:$B$1498,SMALL(IF(Database_Prop!$A$2:$A$1498=AH$129,ROW(Database_Prop!$B$2:$B$1498)-ROW(Database_Prop!$B$2)+1),ROWS(Database_Prop!E$2:'Database_Prop'!E121))),\"\")","v":""},{"$f":"IFERROR(INDEX(Database_Prop!$B$2:$B$1498,SMALL(IF(Database_Prop!$A$2:$A$1498=AI$129,ROW(Database_Prop!$B$2:$B$1498)-ROW(Database_Prop!$B$2)+1),ROWS(Database_Prop!F$2:'Database_Prop'!F121))),\"\")","v":""},{"$f":"IFERROR(INDEX(Database_Prop!$B$2:$B$1498,SMALL(IF(Database_Prop!$A$2:$A$1498=AJ$129,ROW(Database_Prop!$B$2:$B$1498)-ROW(Database_Prop!$B$2)+1),ROWS(Database_Prop!G$2:'Database_Prop'!G121))),\"\")","v":""},{"$f":"IFERROR(INDEX(Database_Prop!$B$2:$B$1498,SMALL(IF(Database_Prop!$A$2:$A$1498=AK$129,ROW(Database_Prop!$B$2:$B$1498)-ROW(Database_Prop!$B$2)+1),ROWS(Database_Prop!H$2:'Database_Prop'!H121))),\"\")","v":""},{"$f":"IFERROR(INDEX(Database_Prop!$B$2:$B$1498,SMALL(IF(Database_Prop!$A$2:$A$1498=AL$129,ROW(Database_Prop!$B$2:$B$1498)-ROW(Database_Prop!$B$2)+1),ROWS(Database_Prop!I$2:'Database_Prop'!I121))),\"\")","v":""},{"$f":"IFERROR(INDEX(Database_Prop!$B$2:$B$1498,SMALL(IF(Database_Prop!$A$2:$A$1498=AM$129,ROW(Database_Prop!$B$2:$B$1498)-ROW(Database_Prop!$B$2)+1),ROWS(Database_Prop!J$2:'Database_Prop'!J121))),\"\")","v":""},{"$f":"IFERROR(INDEX(Database_Prop!$B$2:$B$1498,SMALL(IF(Database_Prop!$A$2:$A$1498=AN$129,ROW(Database_Prop!$B$2:$B$1498)-ROW(Database_Prop!$B$2)+1),ROWS(Database_Prop!K$2:'Database_Prop'!K121))),\"\")","v":""},{"$f":"IFERROR(INDEX(Database_Prop!$B$2:$B$1498,SMALL(IF(Database_Prop!$A$2:$A$1498=AO$129,ROW(Database_Prop!$B$2:$B$1498)-ROW(Database_Prop!$B$2)+1),ROWS(Database_Prop!L$2:'Database_Prop'!L121))),\"\")","v":""},{"$f":"IFERROR(INDEX(Database_Prop!$B$2:$B$1498,SMALL(IF(Database_Prop!$A$2:$A$1498=AP$129,ROW(Database_Prop!$B$2:$B$1498)-ROW(Database_Prop!$B$2)+1),ROWS(Database_Prop!M$2:'Database_Prop'!M121))),\"\")","v":""},{"$f":"IFERROR(INDEX(Database_Prop!$B$2:$B$1498,SMALL(IF(Database_Prop!$A$2:$A$1498=AQ$129,ROW(Database_Prop!$B$2:$B$1498)-ROW(Database_Prop!$B$2)+1),ROWS(Database_Prop!N$2:'Database_Prop'!N121))),\"\")","v":""},{"$f":"IFERROR(INDEX(Database_Prop!$B$2:$B$1498,SMALL(IF(Database_Prop!$A$2:$A$1498=AR$129,ROW(Database_Prop!$B$2:$B$1498)-ROW(Database_Prop!$B$2)+1),ROWS(Database_Prop!O$2:'Database_Prop'!O121))),\"\")","v":""},{"$f":"IFERROR(INDEX(Database_Prop!$B$2:$B$1498,SMALL(IF(Database_Prop!$A$2:$A$1498=AS$129,ROW(Database_Prop!$B$2:$B$1498)-ROW(Database_Prop!$B$2)+1),ROWS(Database_Prop!P$2:'Database_Prop'!P121))),\"\")","v":""},{"$f":"IFERROR(INDEX(Database_Prop!$B$2:$B$1498,SMALL(IF(Database_Prop!$A$2:$A$1498=AT$129,ROW(Database_Prop!$B$2:$B$1498)-ROW(Database_Prop!$B$2)+1),ROWS(Database_Prop!Q$2:'Database_Prop'!Q121))),\"\")","v":""},{"$f":"IFERROR(INDEX(Database_Prop!$B$2:$B$1498,SMALL(IF(Database_Prop!$A$2:$A$1498=AU$129,ROW(Database_Prop!$B$2:$B$1498)-ROW(Database_Prop!$B$2)+1),ROWS(Database_Prop!R$2:'Database_Prop'!R121))),\"\")","v":""},{"$f":"IFERROR(INDEX(Database_Prop!$B$2:$B$1498,SMALL(IF(Database_Prop!$A$2:$A$1498=AV$129,ROW(Database_Prop!$B$2:$B$1498)-ROW(Database_Prop!$B$2)+1),ROWS(Database_Prop!S$2:'Database_Prop'!S121))),\"\")","v":""},{"$f":"IFERROR(INDEX(Database_Prop!$B$2:$B$1498,SMALL(IF(Database_Prop!$A$2:$A$1498=AW$129,ROW(Database_Prop!$B$2:$B$1498)-ROW(Database_Prop!$B$2)+1),ROWS(Database_Prop!T$2:'Database_Prop'!T121))),\"\")","v":""},{"$f":"IFERROR(INDEX(Database_Prop!$B$2:$B$1498,SMALL(IF(Database_Prop!$A$2:$A$1498=AX$129,ROW(Database_Prop!$B$2:$B$1498)-ROW(Database_Prop!$B$2)+1),ROWS(Database_Prop!U$2:'Database_Prop'!U121))),\"\")","v":""},{"$f":"IFERROR(INDEX(Database_Prop!$B$2:$B$1498,SMALL(IF(Database_Prop!$A$2:$A$1498=AY$129,ROW(Database_Prop!$B$2:$B$1498)-ROW(Database_Prop!$B$2)+1),ROWS(Database_Prop!V$2:'Database_Prop'!V121))),\"\")","v":""},{"$f":"IFERROR(INDEX(Database_Prop!$B$2:$B$1498,SMALL(IF(Database_Prop!$A$2:$A$1498=AZ$129,ROW(Database_Prop!$B$2:$B$1498)-ROW(Database_Prop!$B$2)+1),ROWS(Database_Prop!W$2:'Database_Prop'!W121))),\"\")","v":""},{"$f":"IFERROR(INDEX(Database_Prop!$B$2:$B$1498,SMALL(IF(Database_Prop!$A$2:$A$1498=BA$129,ROW(Database_Prop!$B$2:$B$1498)-ROW(Database_Prop!$B$2)+1),ROWS(Database_Prop!X$2:'Database_Prop'!X121))),\"\")","v":""},{"$f":"IFERROR(INDEX(Database_Prop!$B$2:$B$1498,SMALL(IF(Database_Prop!$A$2:$A$1498=BB$129,ROW(Database_Prop!$B$2:$B$1498)-ROW(Database_Prop!$B$2)+1),ROWS(Database_Prop!Y$2:'Database_Prop'!Y121))),\"\")","v":""},{"$f":"IFERROR(INDEX(Database_Prop!$B$2:$B$1498,SMALL(IF(Database_Prop!$A$2:$A$1498=BC$129,ROW(Database_Prop!$B$2:$B$1498)-ROW(Database_Prop!$B$2)+1),ROWS(Database_Prop!Z$2:'Database_Prop'!Z121))),\"\")","v":""},null,"Lithuania","Western Europe"]
[null,null,null,null,null,null,null,null,null,null,null,null,null,null,null,null,null,null,null,null,null,null,null,null,null,null,null,null,null,null,122,{"$f":"IFERROR(INDEX(Database_Prop!$B$2:$B$1498,SMALL(IF(Database_Prop!$A$2:$A$1498=AF$129,ROW(Database_Prop!$B$2:$B$1498)-ROW(Database_Prop!$B$2)+1),ROWS(Database_Prop!C$2:'Database_Prop'!C122))),\"\")","v":""},{"$f":"IFERROR(INDEX(Database_Prop!$B$2:$B$1498,SMALL(IF(Database_Prop!$A$2:$A$1498=AG$129,ROW(Database_Prop!$B$2:$B$1498)-ROW(Database_Prop!$B$2)+1),ROWS(Database_Prop!D$2:'Database_Prop'!D122))),\"\")","v":""},{"$f":"IFERROR(INDEX(Database_Prop!$B$2:$B$1498,SMALL(IF(Database_Prop!$A$2:$A$1498=AH$129,ROW(Database_Prop!$B$2:$B$1498)-ROW(Database_Prop!$B$2)+1),ROWS(Database_Prop!E$2:'Database_Prop'!E122))),\"\")","v":""},{"$f":"IFERROR(INDEX(Database_Prop!$B$2:$B$1498,SMALL(IF(Database_Prop!$A$2:$A$1498=AI$129,ROW(Database_Prop!$B$2:$B$1498)-ROW(Database_Prop!$B$2)+1),ROWS(Database_Prop!F$2:'Database_Prop'!F122))),\"\")","v":""},{"$f":"IFERROR(INDEX(Database_Prop!$B$2:$B$1498,SMALL(IF(Database_Prop!$A$2:$A$1498=AJ$129,ROW(Database_Prop!$B$2:$B$1498)-ROW(Database_Prop!$B$2)+1),ROWS(Database_Prop!G$2:'Database_Prop'!G122))),\"\")","v":""},{"$f":"IFERROR(INDEX(Database_Prop!$B$2:$B$1498,SMALL(IF(Database_Prop!$A$2:$A$1498=AK$129,ROW(Database_Prop!$B$2:$B$1498)-ROW(Database_Prop!$B$2)+1),ROWS(Database_Prop!H$2:'Database_Prop'!H122))),\"\")","v":""},{"$f":"IFERROR(INDEX(Database_Prop!$B$2:$B$1498,SMALL(IF(Database_Prop!$A$2:$A$1498=AL$129,ROW(Database_Prop!$B$2:$B$1498)-ROW(Database_Prop!$B$2)+1),ROWS(Database_Prop!I$2:'Database_Prop'!I122))),\"\")","v":""},{"$f":"IFERROR(INDEX(Database_Prop!$B$2:$B$1498,SMALL(IF(Database_Prop!$A$2:$A$1498=AM$129,ROW(Database_Prop!$B$2:$B$1498)-ROW(Database_Prop!$B$2)+1),ROWS(Database_Prop!J$2:'Database_Prop'!J122))),\"\")","v":""},{"$f":"IFERROR(INDEX(Database_Prop!$B$2:$B$1498,SMALL(IF(Database_Prop!$A$2:$A$1498=AN$129,ROW(Database_Prop!$B$2:$B$1498)-ROW(Database_Prop!$B$2)+1),ROWS(Database_Prop!K$2:'Database_Prop'!K122))),\"\")","v":""},{"$f":"IFERROR(INDEX(Database_Prop!$B$2:$B$1498,SMALL(IF(Database_Prop!$A$2:$A$1498=AO$129,ROW(Database_Prop!$B$2:$B$1498)-ROW(Database_Prop!$B$2)+1),ROWS(Database_Prop!L$2:'Database_Prop'!L122))),\"\")","v":""},{"$f":"IFERROR(INDEX(Database_Prop!$B$2:$B$1498,SMALL(IF(Database_Prop!$A$2:$A$1498=AP$129,ROW(Database_Prop!$B$2:$B$1498)-ROW(Database_Prop!$B$2)+1),ROWS(Database_Prop!M$2:'Database_Prop'!M122))),\"\")","v":""},{"$f":"IFERROR(INDEX(Database_Prop!$B$2:$B$1498,SMALL(IF(Database_Prop!$A$2:$A$1498=AQ$129,ROW(Database_Prop!$B$2:$B$1498)-ROW(Database_Prop!$B$2)+1),ROWS(Database_Prop!N$2:'Database_Prop'!N122))),\"\")","v":""},{"$f":"IFERROR(INDEX(Database_Prop!$B$2:$B$1498,SMALL(IF(Database_Prop!$A$2:$A$1498=AR$129,ROW(Database_Prop!$B$2:$B$1498)-ROW(Database_Prop!$B$2)+1),ROWS(Database_Prop!O$2:'Database_Prop'!O122))),\"\")","v":""},{"$f":"IFERROR(INDEX(Database_Prop!$B$2:$B$1498,SMALL(IF(Database_Prop!$A$2:$A$1498=AS$129,ROW(Database_Prop!$B$2:$B$1498)-ROW(Database_Prop!$B$2)+1),ROWS(Database_Prop!P$2:'Database_Prop'!P122))),\"\")","v":""},{"$f":"IFERROR(INDEX(Database_Prop!$B$2:$B$1498,SMALL(IF(Database_Prop!$A$2:$A$1498=AT$129,ROW(Database_Prop!$B$2:$B$1498)-ROW(Database_Prop!$B$2)+1),ROWS(Database_Prop!Q$2:'Database_Prop'!Q122))),\"\")","v":""},{"$f":"IFERROR(INDEX(Database_Prop!$B$2:$B$1498,SMALL(IF(Database_Prop!$A$2:$A$1498=AU$129,ROW(Database_Prop!$B$2:$B$1498)-ROW(Database_Prop!$B$2)+1),ROWS(Database_Prop!R$2:'Database_Prop'!R122))),\"\")","v":""},{"$f":"IFERROR(INDEX(Database_Prop!$B$2:$B$1498,SMALL(IF(Database_Prop!$A$2:$A$1498=AV$129,ROW(Database_Prop!$B$2:$B$1498)-ROW(Database_Prop!$B$2)+1),ROWS(Database_Prop!S$2:'Database_Prop'!S122))),\"\")","v":""},{"$f":"IFERROR(INDEX(Database_Prop!$B$2:$B$1498,SMALL(IF(Database_Prop!$A$2:$A$1498=AW$129,ROW(Database_Prop!$B$2:$B$1498)-ROW(Database_Prop!$B$2)+1),ROWS(Database_Prop!T$2:'Database_Prop'!T122))),\"\")","v":""},{"$f":"IFERROR(INDEX(Database_Prop!$B$2:$B$1498,SMALL(IF(Database_Prop!$A$2:$A$1498=AX$129,ROW(Database_Prop!$B$2:$B$1498)-ROW(Database_Prop!$B$2)+1),ROWS(Database_Prop!U$2:'Database_Prop'!U122))),\"\")","v":""},{"$f":"IFERROR(INDEX(Database_Prop!$B$2:$B$1498,SMALL(IF(Database_Prop!$A$2:$A$1498=AY$129,ROW(Database_Prop!$B$2:$B$1498)-ROW(Database_Prop!$B$2)+1),ROWS(Database_Prop!V$2:'Database_Prop'!V122))),\"\")","v":""},{"$f":"IFERROR(INDEX(Database_Prop!$B$2:$B$1498,SMALL(IF(Database_Prop!$A$2:$A$1498=AZ$129,ROW(Database_Prop!$B$2:$B$1498)-ROW(Database_Prop!$B$2)+1),ROWS(Database_Prop!W$2:'Database_Prop'!W122))),\"\")","v":""},{"$f":"IFERROR(INDEX(Database_Prop!$B$2:$B$1498,SMALL(IF(Database_Prop!$A$2:$A$1498=BA$129,ROW(Database_Prop!$B$2:$B$1498)-ROW(Database_Prop!$B$2)+1),ROWS(Database_Prop!X$2:'Database_Prop'!X122))),\"\")","v":""},{"$f":"IFERROR(INDEX(Database_Prop!$B$2:$B$1498,SMALL(IF(Database_Prop!$A$2:$A$1498=BB$129,ROW(Database_Prop!$B$2:$B$1498)-ROW(Database_Prop!$B$2)+1),ROWS(Database_Prop!Y$2:'Database_Prop'!Y122))),\"\")","v":""},{"$f":"IFERROR(INDEX(Database_Prop!$B$2:$B$1498,SMALL(IF(Database_Prop!$A$2:$A$1498=BC$129,ROW(Database_Prop!$B$2:$B$1498)-ROW(Database_Prop!$B$2)+1),ROWS(Database_Prop!Z$2:'Database_Prop'!Z122))),\"\")","v":""},null,"Luxembourg","Western Europe"]
[null,null,null,null,null,null,null,null,null,null,null,null,null,null,null,null,null,null,null,null,null,null,null,null,null,null,null,null,null,null,123,{"$f":"IFERROR(INDEX(Database_Prop!$B$2:$B$1498,SMALL(IF(Database_Prop!$A$2:$A$1498=AF$129,ROW(Database_Prop!$B$2:$B$1498)-ROW(Database_Prop!$B$2)+1),ROWS(Database_Prop!C$2:'Database_Prop'!C123))),\"\")","v":""},{"$f":"IFERROR(INDEX(Database_Prop!$B$2:$B$1498,SMALL(IF(Database_Prop!$A$2:$A$1498=AG$129,ROW(Database_Prop!$B$2:$B$1498)-ROW(Database_Prop!$B$2)+1),ROWS(Database_Prop!D$2:'Database_Prop'!D123))),\"\")","v":""},{"$f":"IFERROR(INDEX(Database_Prop!$B$2:$B$1498,SMALL(IF(Database_Prop!$A$2:$A$1498=AH$129,ROW(Database_Prop!$B$2:$B$1498)-ROW(Database_Prop!$B$2)+1),ROWS(Database_Prop!E$2:'Database_Prop'!E123))),\"\")","v":""},{"$f":"IFERROR(INDEX(Database_Prop!$B$2:$B$1498,SMALL(IF(Database_Prop!$A$2:$A$1498=AI$129,ROW(Database_Prop!$B$2:$B$1498)-ROW(Database_Prop!$B$2)+1),ROWS(Database_Prop!F$2:'Database_Prop'!F123))),\"\")","v":""},{"$f":"IFERROR(INDEX(Database_Prop!$B$2:$B$1498,SMALL(IF(Database_Prop!$A$2:$A$1498=AJ$129,ROW(Database_Prop!$B$2:$B$1498)-ROW(Database_Prop!$B$2)+1),ROWS(Database_Prop!G$2:'Database_Prop'!G123))),\"\")","v":""},{"$f":"IFERROR(INDEX(Database_Prop!$B$2:$B$1498,SMALL(IF(Database_Prop!$A$2:$A$1498=AK$129,ROW(Database_Prop!$B$2:$B$1498)-ROW(Database_Prop!$B$2)+1),ROWS(Database_Prop!H$2:'Database_Prop'!H123))),\"\")","v":""},{"$f":"IFERROR(INDEX(Database_Prop!$B$2:$B$1498,SMALL(IF(Database_Prop!$A$2:$A$1498=AL$129,ROW(Database_Prop!$B$2:$B$1498)-ROW(Database_Prop!$B$2)+1),ROWS(Database_Prop!I$2:'Database_Prop'!I123))),\"\")","v":""},{"$f":"IFERROR(INDEX(Database_Prop!$B$2:$B$1498,SMALL(IF(Database_Prop!$A$2:$A$1498=AM$129,ROW(Database_Prop!$B$2:$B$1498)-ROW(Database_Prop!$B$2)+1),ROWS(Database_Prop!J$2:'Database_Prop'!J123))),\"\")","v":""},{"$f":"IFERROR(INDEX(Database_Prop!$B$2:$B$1498,SMALL(IF(Database_Prop!$A$2:$A$1498=AN$129,ROW(Database_Prop!$B$2:$B$1498)-ROW(Database_Prop!$B$2)+1),ROWS(Database_Prop!K$2:'Database_Prop'!K123))),\"\")","v":""},{"$f":"IFERROR(INDEX(Database_Prop!$B$2:$B$1498,SMALL(IF(Database_Prop!$A$2:$A$1498=AO$129,ROW(Database_Prop!$B$2:$B$1498)-ROW(Database_Prop!$B$2)+1),ROWS(Database_Prop!L$2:'Database_Prop'!L123))),\"\")","v":""},{"$f":"IFERROR(INDEX(Database_Prop!$B$2:$B$1498,SMALL(IF(Database_Prop!$A$2:$A$1498=AP$129,ROW(Database_Prop!$B$2:$B$1498)-ROW(Database_Prop!$B$2)+1),ROWS(Database_Prop!M$2:'Database_Prop'!M123))),\"\")","v":""},{"$f":"IFERROR(INDEX(Database_Prop!$B$2:$B$1498,SMALL(IF(Database_Prop!$A$2:$A$1498=AQ$129,ROW(Database_Prop!$B$2:$B$1498)-ROW(Database_Prop!$B$2)+1),ROWS(Database_Prop!N$2:'Database_Prop'!N123))),\"\")","v":""},{"$f":"IFERROR(INDEX(Database_Prop!$B$2:$B$1498,SMALL(IF(Database_Prop!$A$2:$A$1498=AR$129,ROW(Database_Prop!$B$2:$B$1498)-ROW(Database_Prop!$B$2)+1),ROWS(Database_Prop!O$2:'Database_Prop'!O123))),\"\")","v":""},{"$f":"IFERROR(INDEX(Database_Prop!$B$2:$B$1498,SMALL(IF(Database_Prop!$A$2:$A$1498=AS$129,ROW(Database_Prop!$B$2:$B$1498)-ROW(Database_Prop!$B$2)+1),ROWS(Database_Prop!P$2:'Database_Prop'!P123))),\"\")","v":""},{"$f":"IFERROR(INDEX(Database_Prop!$B$2:$B$1498,SMALL(IF(Database_Prop!$A$2:$A$1498=AT$129,ROW(Database_Prop!$B$2:$B$1498)-ROW(Database_Prop!$B$2)+1),ROWS(Database_Prop!Q$2:'Database_Prop'!Q123))),\"\")","v":""},{"$f":"IFERROR(INDEX(Database_Prop!$B$2:$B$1498,SMALL(IF(Database_Prop!$A$2:$A$1498=AU$129,ROW(Database_Prop!$B$2:$B$1498)-ROW(Database_Prop!$B$2)+1),ROWS(Database_Prop!R$2:'Database_Prop'!R123))),\"\")","v":""},{"$f":"IFERROR(INDEX(Database_Prop!$B$2:$B$1498,SMALL(IF(Database_Prop!$A$2:$A$1498=AV$129,ROW(Database_Prop!$B$2:$B$1498)-ROW(Database_Prop!$B$2)+1),ROWS(Database_Prop!S$2:'Database_Prop'!S123))),\"\")","v":""},{"$f":"IFERROR(INDEX(Database_Prop!$B$2:$B$1498,SMALL(IF(Database_Prop!$A$2:$A$1498=AW$129,ROW(Database_Prop!$B$2:$B$1498)-ROW(Database_Prop!$B$2)+1),ROWS(Database_Prop!T$2:'Database_Prop'!T123))),\"\")","v":""},{"$f":"IFERROR(INDEX(Database_Prop!$B$2:$B$1498,SMALL(IF(Database_Prop!$A$2:$A$1498=AX$129,ROW(Database_Prop!$B$2:$B$1498)-ROW(Database_Prop!$B$2)+1),ROWS(Database_Prop!U$2:'Database_Prop'!U123))),\"\")","v":""},{"$f":"IFERROR(INDEX(Database_Prop!$B$2:$B$1498,SMALL(IF(Database_Prop!$A$2:$A$1498=AY$129,ROW(Database_Prop!$B$2:$B$1498)-ROW(Database_Prop!$B$2)+1),ROWS(Database_Prop!V$2:'Database_Prop'!V123))),\"\")","v":""},{"$f":"IFERROR(INDEX(Database_Prop!$B$2:$B$1498,SMALL(IF(Database_Prop!$A$2:$A$1498=AZ$129,ROW(Database_Prop!$B$2:$B$1498)-ROW(Database_Prop!$B$2)+1),ROWS(Database_Prop!W$2:'Database_Prop'!W123))),\"\")","v":""},{"$f":"IFERROR(INDEX(Database_Prop!$B$2:$B$1498,SMALL(IF(Database_Prop!$A$2:$A$1498=BA$129,ROW(Database_Prop!$B$2:$B$1498)-ROW(Database_Prop!$B$2)+1),ROWS(Database_Prop!X$2:'Database_Prop'!X123))),\"\")","v":""},{"$f":"IFERROR(INDEX(Database_Prop!$B$2:$B$1498,SMALL(IF(Database_Prop!$A$2:$A$1498=BB$129,ROW(Database_Prop!$B$2:$B$1498)-ROW(Database_Prop!$B$2)+1),ROWS(Database_Prop!Y$2:'Database_Prop'!Y123))),\"\")","v":""},{"$f":"IFERROR(INDEX(Database_Prop!$B$2:$B$1498,SMALL(IF(Database_Prop!$A$2:$A$1498=BC$129,ROW(Database_Prop!$B$2:$B$1498)-ROW(Database_Prop!$B$2)+1),ROWS(Database_Prop!Z$2:'Database_Prop'!Z123))),\"\")","v":""},null,"Madagascar","Africa"]
[null,null,null,null,null,null,null,null,null,null,null,null,null,null,null,null,null,null,null,null,null,null,null,null,null,null,null,null,null,null,124,{"$f":"IFERROR(INDEX(Database_Prop!$B$2:$B$1498,SMALL(IF(Database_Prop!$A$2:$A$1498=AF$129,ROW(Database_Prop!$B$2:$B$1498)-ROW(Database_Prop!$B$2)+1),ROWS(Database_Prop!C$2:'Database_Prop'!C124))),\"\")","v":""},{"$f":"IFERROR(INDEX(Database_Prop!$B$2:$B$1498,SMALL(IF(Database_Prop!$A$2:$A$1498=AG$129,ROW(Database_Prop!$B$2:$B$1498)-ROW(Database_Prop!$B$2)+1),ROWS(Database_Prop!D$2:'Database_Prop'!D124))),\"\")","v":""},{"$f":"IFERROR(INDEX(Database_Prop!$B$2:$B$1498,SMALL(IF(Database_Prop!$A$2:$A$1498=AH$129,ROW(Database_Prop!$B$2:$B$1498)-ROW(Database_Prop!$B$2)+1),ROWS(Database_Prop!E$2:'Database_Prop'!E124))),\"\")","v":""},{"$f":"IFERROR(INDEX(Database_Prop!$B$2:$B$1498,SMALL(IF(Database_Prop!$A$2:$A$1498=AI$129,ROW(Database_Prop!$B$2:$B$1498)-ROW(Database_Prop!$B$2)+1),ROWS(Database_Prop!F$2:'Database_Prop'!F124))),\"\")","v":""},{"$f":"IFERROR(INDEX(Database_Prop!$B$2:$B$1498,SMALL(IF(Database_Prop!$A$2:$A$1498=AJ$129,ROW(Database_Prop!$B$2:$B$1498)-ROW(Database_Prop!$B$2)+1),ROWS(Database_Prop!G$2:'Database_Prop'!G124))),\"\")","v":""},{"$f":"IFERROR(INDEX(Database_Prop!$B$2:$B$1498,SMALL(IF(Database_Prop!$A$2:$A$1498=AK$129,ROW(Database_Prop!$B$2:$B$1498)-ROW(Database_Prop!$B$2)+1),ROWS(Database_Prop!H$2:'Database_Prop'!H124))),\"\")","v":""},{"$f":"IFERROR(INDEX(Database_Prop!$B$2:$B$1498,SMALL(IF(Database_Prop!$A$2:$A$1498=AL$129,ROW(Database_Prop!$B$2:$B$1498)-ROW(Database_Prop!$B$2)+1),ROWS(Database_Prop!I$2:'Database_Prop'!I124))),\"\")","v":""},{"$f":"IFERROR(INDEX(Database_Prop!$B$2:$B$1498,SMALL(IF(Database_Prop!$A$2:$A$1498=AM$129,ROW(Database_Prop!$B$2:$B$1498)-ROW(Database_Prop!$B$2)+1),ROWS(Database_Prop!J$2:'Database_Prop'!J124))),\"\")","v":""},{"$f":"IFERROR(INDEX(Database_Prop!$B$2:$B$1498,SMALL(IF(Database_Prop!$A$2:$A$1498=AN$129,ROW(Database_Prop!$B$2:$B$1498)-ROW(Database_Prop!$B$2)+1),ROWS(Database_Prop!K$2:'Database_Prop'!K124))),\"\")","v":""},{"$f":"IFERROR(INDEX(Database_Prop!$B$2:$B$1498,SMALL(IF(Database_Prop!$A$2:$A$1498=AO$129,ROW(Database_Prop!$B$2:$B$1498)-ROW(Database_Prop!$B$2)+1),ROWS(Database_Prop!L$2:'Database_Prop'!L124))),\"\")","v":""},{"$f":"IFERROR(INDEX(Database_Prop!$B$2:$B$1498,SMALL(IF(Database_Prop!$A$2:$A$1498=AP$129,ROW(Database_Prop!$B$2:$B$1498)-ROW(Database_Prop!$B$2)+1),ROWS(Database_Prop!M$2:'Database_Prop'!M124))),\"\")","v":""},{"$f":"IFERROR(INDEX(Database_Prop!$B$2:$B$1498,SMALL(IF(Database_Prop!$A$2:$A$1498=AQ$129,ROW(Database_Prop!$B$2:$B$1498)-ROW(Database_Prop!$B$2)+1),ROWS(Database_Prop!N$2:'Database_Prop'!N124))),\"\")","v":""},{"$f":"IFERROR(INDEX(Database_Prop!$B$2:$B$1498,SMALL(IF(Database_Prop!$A$2:$A$1498=AR$129,ROW(Database_Prop!$B$2:$B$1498)-ROW(Database_Prop!$B$2)+1),ROWS(Database_Prop!O$2:'Database_Prop'!O124))),\"\")","v":""},{"$f":"IFERROR(INDEX(Database_Prop!$B$2:$B$1498,SMALL(IF(Database_Prop!$A$2:$A$1498=AS$129,ROW(Database_Prop!$B$2:$B$1498)-ROW(Database_Prop!$B$2)+1),ROWS(Database_Prop!P$2:'Database_Prop'!P124))),\"\")","v":""},{"$f":"IFERROR(INDEX(Database_Prop!$B$2:$B$1498,SMALL(IF(Database_Prop!$A$2:$A$1498=AT$129,ROW(Database_Prop!$B$2:$B$1498)-ROW(Database_Prop!$B$2)+1),ROWS(Database_Prop!Q$2:'Database_Prop'!Q124))),\"\")","v":""},{"$f":"IFERROR(INDEX(Database_Prop!$B$2:$B$1498,SMALL(IF(Database_Prop!$A$2:$A$1498=AU$129,ROW(Database_Prop!$B$2:$B$1498)-ROW(Database_Prop!$B$2)+1),ROWS(Database_Prop!R$2:'Database_Prop'!R124))),\"\")","v":""},{"$f":"IFERROR(INDEX(Database_Prop!$B$2:$B$1498,SMALL(IF(Database_Prop!$A$2:$A$1498=AV$129,ROW(Database_Prop!$B$2:$B$1498)-ROW(Database_Prop!$B$2)+1),ROWS(Database_Prop!S$2:'Database_Prop'!S124))),\"\")","v":""},{"$f":"IFERROR(INDEX(Database_Prop!$B$2:$B$1498,SMALL(IF(Database_Prop!$A$2:$A$1498=AW$129,ROW(Database_Prop!$B$2:$B$1498)-ROW(Database_Prop!$B$2)+1),ROWS(Database_Prop!T$2:'Database_Prop'!T124))),\"\")","v":""},{"$f":"IFERROR(INDEX(Database_Prop!$B$2:$B$1498,SMALL(IF(Database_Prop!$A$2:$A$1498=AX$129,ROW(Database_Prop!$B$2:$B$1498)-ROW(Database_Prop!$B$2)+1),ROWS(Database_Prop!U$2:'Database_Prop'!U124))),\"\")","v":""},{"$f":"IFERROR(INDEX(Database_Prop!$B$2:$B$1498,SMALL(IF(Database_Prop!$A$2:$A$1498=AY$129,ROW(Database_Prop!$B$2:$B$1498)-ROW(Database_Prop!$B$2)+1),ROWS(Database_Prop!V$2:'Database_Prop'!V124))),\"\")","v":""},{"$f":"IFERROR(INDEX(Database_Prop!$B$2:$B$1498,SMALL(IF(Database_Prop!$A$2:$A$1498=AZ$129,ROW(Database_Prop!$B$2:$B$1498)-ROW(Database_Prop!$B$2)+1),ROWS(Database_Prop!W$2:'Database_Prop'!W124))),\"\")","v":""},{"$f":"IFERROR(INDEX(Database_Prop!$B$2:$B$1498,SMALL(IF(Database_Prop!$A$2:$A$1498=BA$129,ROW(Database_Prop!$B$2:$B$1498)-ROW(Database_Prop!$B$2)+1),ROWS(Database_Prop!X$2:'Database_Prop'!X124))),\"\")","v":""},{"$f":"IFERROR(INDEX(Database_Prop!$B$2:$B$1498,SMALL(IF(Database_Prop!$A$2:$A$1498=BB$129,ROW(Database_Prop!$B$2:$B$1498)-ROW(Database_Prop!$B$2)+1),ROWS(Database_Prop!Y$2:'Database_Prop'!Y124))),\"\")","v":""},{"$f":"IFERROR(INDEX(Database_Prop!$B$2:$B$1498,SMALL(IF(Database_Prop!$A$2:$A$1498=BC$129,ROW(Database_Prop!$B$2:$B$1498)-ROW(Database_Prop!$B$2)+1),ROWS(Database_Prop!Z$2:'Database_Prop'!Z124))),\"\")","v":""},null,"Malawi","Africa"]
[null,null,null,null,null,null,null,null,null,null,null,null,null,null,null,null,null,null,null,null,null,null,null,null,null,null,null,null,null,null,125,{"$f":"IFERROR(INDEX(Database_Prop!$B$2:$B$1498,SMALL(IF(Database_Prop!$A$2:$A$1498=AF$129,ROW(Database_Prop!$B$2:$B$1498)-ROW(Database_Prop!$B$2)+1),ROWS(Database_Prop!C$2:'Database_Prop'!C125))),\"\")","v":""},{"$f":"IFERROR(INDEX(Database_Prop!$B$2:$B$1498,SMALL(IF(Database_Prop!$A$2:$A$1498=AG$129,ROW(Database_Prop!$B$2:$B$1498)-ROW(Database_Prop!$B$2)+1),ROWS(Database_Prop!D$2:'Database_Prop'!D125))),\"\")","v":""},{"$f":"IFERROR(INDEX(Database_Prop!$B$2:$B$1498,SMALL(IF(Database_Prop!$A$2:$A$1498=AH$129,ROW(Database_Prop!$B$2:$B$1498)-ROW(Database_Prop!$B$2)+1),ROWS(Database_Prop!E$2:'Database_Prop'!E125))),\"\")","v":""},{"$f":"IFERROR(INDEX(Database_Prop!$B$2:$B$1498,SMALL(IF(Database_Prop!$A$2:$A$1498=AI$129,ROW(Database_Prop!$B$2:$B$1498)-ROW(Database_Prop!$B$2)+1),ROWS(Database_Prop!F$2:'Database_Prop'!F125))),\"\")","v":""},{"$f":"IFERROR(INDEX(Database_Prop!$B$2:$B$1498,SMALL(IF(Database_Prop!$A$2:$A$1498=AJ$129,ROW(Database_Prop!$B$2:$B$1498)-ROW(Database_Prop!$B$2)+1),ROWS(Database_Prop!G$2:'Database_Prop'!G125))),\"\")","v":""},{"$f":"IFERROR(INDEX(Database_Prop!$B$2:$B$1498,SMALL(IF(Database_Prop!$A$2:$A$1498=AK$129,ROW(Database_Prop!$B$2:$B$1498)-ROW(Database_Prop!$B$2)+1),ROWS(Database_Prop!H$2:'Database_Prop'!H125))),\"\")","v":""},{"$f":"IFERROR(INDEX(Database_Prop!$B$2:$B$1498,SMALL(IF(Database_Prop!$A$2:$A$1498=AL$129,ROW(Database_Prop!$B$2:$B$1498)-ROW(Database_Prop!$B$2)+1),ROWS(Database_Prop!I$2:'Database_Prop'!I125))),\"\")","v":""},{"$f":"IFERROR(INDEX(Database_Prop!$B$2:$B$1498,SMALL(IF(Database_Prop!$A$2:$A$1498=AM$129,ROW(Database_Prop!$B$2:$B$1498)-ROW(Database_Prop!$B$2)+1),ROWS(Database_Prop!J$2:'Database_Prop'!J125))),\"\")","v":""},{"$f":"IFERROR(INDEX(Database_Prop!$B$2:$B$1498,SMALL(IF(Database_Prop!$A$2:$A$1498=AN$129,ROW(Database_Prop!$B$2:$B$1498)-ROW(Database_Prop!$B$2)+1),ROWS(Database_Prop!K$2:'Database_Prop'!K125))),\"\")","v":""},{"$f":"IFERROR(INDEX(Database_Prop!$B$2:$B$1498,SMALL(IF(Database_Prop!$A$2:$A$1498=AO$129,ROW(Database_Prop!$B$2:$B$1498)-ROW(Database_Prop!$B$2)+1),ROWS(Database_Prop!L$2:'Database_Prop'!L125))),\"\")","v":""},{"$f":"IFERROR(INDEX(Database_Prop!$B$2:$B$1498,SMALL(IF(Database_Prop!$A$2:$A$1498=AP$129,ROW(Database_Prop!$B$2:$B$1498)-ROW(Database_Prop!$B$2)+1),ROWS(Database_Prop!M$2:'Database_Prop'!M125))),\"\")","v":""},{"$f":"IFERROR(INDEX(Database_Prop!$B$2:$B$1498,SMALL(IF(Database_Prop!$A$2:$A$1498=AQ$129,ROW(Database_Prop!$B$2:$B$1498)-ROW(Database_Prop!$B$2)+1),ROWS(Database_Prop!N$2:'Database_Prop'!N125))),\"\")","v":""},{"$f":"IFERROR(INDEX(Database_Prop!$B$2:$B$1498,SMALL(IF(Database_Prop!$A$2:$A$1498=AR$129,ROW(Database_Prop!$B$2:$B$1498)-ROW(Database_Prop!$B$2)+1),ROWS(Database_Prop!O$2:'Database_Prop'!O125))),\"\")","v":""},{"$f":"IFERROR(INDEX(Database_Prop!$B$2:$B$1498,SMALL(IF(Database_Prop!$A$2:$A$1498=AS$129,ROW(Database_Prop!$B$2:$B$1498)-ROW(Database_Prop!$B$2)+1),ROWS(Database_Prop!P$2:'Database_Prop'!P125))),\"\")","v":""},{"$f":"IFERROR(INDEX(Database_Prop!$B$2:$B$1498,SMALL(IF(Database_Prop!$A$2:$A$1498=AT$129,ROW(Database_Prop!$B$2:$B$1498)-ROW(Database_Prop!$B$2)+1),ROWS(Database_Prop!Q$2:'Database_Prop'!Q125))),\"\")","v":""},{"$f":"IFERROR(INDEX(Database_Prop!$B$2:$B$1498,SMALL(IF(Database_Prop!$A$2:$A$1498=AU$129,ROW(Database_Prop!$B$2:$B$1498)-ROW(Database_Prop!$B$2)+1),ROWS(Database_Prop!R$2:'Database_Prop'!R125))),\"\")","v":""},{"$f":"IFERROR(INDEX(Database_Prop!$B$2:$B$1498,SMALL(IF(Database_Prop!$A$2:$A$1498=AV$129,ROW(Database_Prop!$B$2:$B$1498)-ROW(Database_Prop!$B$2)+1),ROWS(Database_Prop!S$2:'Database_Prop'!S125))),\"\")","v":""},{"$f":"IFERROR(INDEX(Database_Prop!$B$2:$B$1498,SMALL(IF(Database_Prop!$A$2:$A$1498=AW$129,ROW(Database_Prop!$B$2:$B$1498)-ROW(Database_Prop!$B$2)+1),ROWS(Database_Prop!T$2:'Database_Prop'!T125))),\"\")","v":""},{"$f":"IFERROR(INDEX(Database_Prop!$B$2:$B$1498,SMALL(IF(Database_Prop!$A$2:$A$1498=AX$129,ROW(Database_Prop!$B$2:$B$1498)-ROW(Database_Prop!$B$2)+1),ROWS(Database_Prop!U$2:'Database_Prop'!U125))),\"\")","v":""},{"$f":"IFERROR(INDEX(Database_Prop!$B$2:$B$1498,SMALL(IF(Database_Prop!$A$2:$A$1498=AY$129,ROW(Database_Prop!$B$2:$B$1498)-ROW(Database_Prop!$B$2)+1),ROWS(Database_Prop!V$2:'Database_Prop'!V125))),\"\")","v":""},{"$f":"IFERROR(INDEX(Database_Prop!$B$2:$B$1498,SMALL(IF(Database_Prop!$A$2:$A$1498=AZ$129,ROW(Database_Prop!$B$2:$B$1498)-ROW(Database_Prop!$B$2)+1),ROWS(Database_Prop!W$2:'Database_Prop'!W125))),\"\")","v":""},{"$f":"IFERROR(INDEX(Database_Prop!$B$2:$B$1498,SMALL(IF(Database_Prop!$A$2:$A$1498=BA$129,ROW(Database_Prop!$B$2:$B$1498)-ROW(Database_Prop!$B$2)+1),ROWS(Database_Prop!X$2:'Database_Prop'!X125))),\"\")","v":""},{"$f":"IFERROR(INDEX(Database_Prop!$B$2:$B$1498,SMALL(IF(Database_Prop!$A$2:$A$1498=BB$129,ROW(Database_Prop!$B$2:$B$1498)-ROW(Database_Prop!$B$2)+1),ROWS(Database_Prop!Y$2:'Database_Prop'!Y125))),\"\")","v":""},{"$f":"IFERROR(INDEX(Database_Prop!$B$2:$B$1498,SMALL(IF(Database_Prop!$A$2:$A$1498=BC$129,ROW(Database_Prop!$B$2:$B$1498)-ROW(Database_Prop!$B$2)+1),ROWS(Database_Prop!Z$2:'Database_Prop'!Z125))),\"\")","v":""},null,"Malaysia","Asia"]
[null,null,null,null,null,null,null,null,null,null,null,null,null,null,null,null,null,null,null,null,null,null,null,null,null,null,null,null,null,null,126,{"$f":"IFERROR(INDEX(Database_Prop!$B$2:$B$1498,SMALL(IF(Database_Prop!$A$2:$A$1498=AF$129,ROW(Database_Prop!$B$2:$B$1498)-ROW(Database_Prop!$B$2)+1),ROWS(Database_Prop!C$2:'Database_Prop'!C126))),\"\")","v":""},{"$f":"IFERROR(INDEX(Database_Prop!$B$2:$B$1498,SMALL(IF(Database_Prop!$A$2:$A$1498=AG$129,ROW(Database_Prop!$B$2:$B$1498)-ROW(Database_Prop!$B$2)+1),ROWS(Database_Prop!D$2:'Database_Prop'!D126))),\"\")","v":""},{"$f":"IFERROR(INDEX(Database_Prop!$B$2:$B$1498,SMALL(IF(Database_Prop!$A$2:$A$1498=AH$129,ROW(Database_Prop!$B$2:$B$1498)-ROW(Database_Prop!$B$2)+1),ROWS(Database_Prop!E$2:'Database_Prop'!E126))),\"\")","v":""},{"$f":"IFERROR(INDEX(Database_Prop!$B$2:$B$1498,SMALL(IF(Database_Prop!$A$2:$A$1498=AI$129,ROW(Database_Prop!$B$2:$B$1498)-ROW(Database_Prop!$B$2)+1),ROWS(Database_Prop!F$2:'Database_Prop'!F126))),\"\")","v":""},{"$f":"IFERROR(INDEX(Database_Prop!$B$2:$B$1498,SMALL(IF(Database_Prop!$A$2:$A$1498=AJ$129,ROW(Database_Prop!$B$2:$B$1498)-ROW(Database_Prop!$B$2)+1),ROWS(Database_Prop!G$2:'Database_Prop'!G126))),\"\")","v":""},{"$f":"IFERROR(INDEX(Database_Prop!$B$2:$B$1498,SMALL(IF(Database_Prop!$A$2:$A$1498=AK$129,ROW(Database_Prop!$B$2:$B$1498)-ROW(Database_Prop!$B$2)+1),ROWS(Database_Prop!H$2:'Database_Prop'!H126))),\"\")","v":""},{"$f":"IFERROR(INDEX(Database_Prop!$B$2:$B$1498,SMALL(IF(Database_Prop!$A$2:$A$1498=AL$129,ROW(Database_Prop!$B$2:$B$1498)-ROW(Database_Prop!$B$2)+1),ROWS(Database_Prop!I$2:'Database_Prop'!I126))),\"\")","v":""},{"$f":"IFERROR(INDEX(Database_Prop!$B$2:$B$1498,SMALL(IF(Database_Prop!$A$2:$A$1498=AM$129,ROW(Database_Prop!$B$2:$B$1498)-ROW(Database_Prop!$B$2)+1),ROWS(Database_Prop!J$2:'Database_Prop'!J126))),\"\")","v":""},{"$f":"IFERROR(INDEX(Database_Prop!$B$2:$B$1498,SMALL(IF(Database_Prop!$A$2:$A$1498=AN$129,ROW(Database_Prop!$B$2:$B$1498)-ROW(Database_Prop!$B$2)+1),ROWS(Database_Prop!K$2:'Database_Prop'!K126))),\"\")","v":""},{"$f":"IFERROR(INDEX(Database_Prop!$B$2:$B$1498,SMALL(IF(Database_Prop!$A$2:$A$1498=AO$129,ROW(Database_Prop!$B$2:$B$1498)-ROW(Database_Prop!$B$2)+1),ROWS(Database_Prop!L$2:'Database_Prop'!L126))),\"\")","v":""},{"$f":"IFERROR(INDEX(Database_Prop!$B$2:$B$1498,SMALL(IF(Database_Prop!$A$2:$A$1498=AP$129,ROW(Database_Prop!$B$2:$B$1498)-ROW(Database_Prop!$B$2)+1),ROWS(Database_Prop!M$2:'Database_Prop'!M126))),\"\")","v":""},{"$f":"IFERROR(INDEX(Database_Prop!$B$2:$B$1498,SMALL(IF(Database_Prop!$A$2:$A$1498=AQ$129,ROW(Database_Prop!$B$2:$B$1498)-ROW(Database_Prop!$B$2)+1),ROWS(Database_Prop!N$2:'Database_Prop'!N126))),\"\")","v":""},{"$f":"IFERROR(INDEX(Database_Prop!$B$2:$B$1498,SMALL(IF(Database_Prop!$A$2:$A$1498=AR$129,ROW(Database_Prop!$B$2:$B$1498)-ROW(Database_Prop!$B$2)+1),ROWS(Database_Prop!O$2:'Database_Prop'!O126))),\"\")","v":""},{"$f":"IFERROR(INDEX(Database_Prop!$B$2:$B$1498,SMALL(IF(Database_Prop!$A$2:$A$1498=AS$129,ROW(Database_Prop!$B$2:$B$1498)-ROW(Database_Prop!$B$2)+1),ROWS(Database_Prop!P$2:'Database_Prop'!P126))),\"\")","v":""},{"$f":"IFERROR(INDEX(Database_Prop!$B$2:$B$1498,SMALL(IF(Database_Prop!$A$2:$A$1498=AT$129,ROW(Database_Prop!$B$2:$B$1498)-ROW(Database_Prop!$B$2)+1),ROWS(Database_Prop!Q$2:'Database_Prop'!Q126))),\"\")","v":""},{"$f":"IFERROR(INDEX(Database_Prop!$B$2:$B$1498,SMALL(IF(Database_Prop!$A$2:$A$1498=AU$129,ROW(Database_Prop!$B$2:$B$1498)-ROW(Database_Prop!$B$2)+1),ROWS(Database_Prop!R$2:'Database_Prop'!R126))),\"\")","v":""},{"$f":"IFERROR(INDEX(Database_Prop!$B$2:$B$1498,SMALL(IF(Database_Prop!$A$2:$A$1498=AV$129,ROW(Database_Prop!$B$2:$B$1498)-ROW(Database_Prop!$B$2)+1),ROWS(Database_Prop!S$2:'Database_Prop'!S126))),\"\")","v":""},{"$f":"IFERROR(INDEX(Database_Prop!$B$2:$B$1498,SMALL(IF(Database_Prop!$A$2:$A$1498=AW$129,ROW(Database_Prop!$B$2:$B$1498)-ROW(Database_Prop!$B$2)+1),ROWS(Database_Prop!T$2:'Database_Prop'!T126))),\"\")","v":""},{"$f":"IFERROR(INDEX(Database_Prop!$B$2:$B$1498,SMALL(IF(Database_Prop!$A$2:$A$1498=AX$129,ROW(Database_Prop!$B$2:$B$1498)-ROW(Database_Prop!$B$2)+1),ROWS(Database_Prop!U$2:'Database_Prop'!U126))),\"\")","v":""},{"$f":"IFERROR(INDEX(Database_Prop!$B$2:$B$1498,SMALL(IF(Database_Prop!$A$2:$A$1498=AY$129,ROW(Database_Prop!$B$2:$B$1498)-ROW(Database_Prop!$B$2)+1),ROWS(Database_Prop!V$2:'Database_Prop'!V126))),\"\")","v":""},{"$f":"IFERROR(INDEX(Database_Prop!$B$2:$B$1498,SMALL(IF(Database_Prop!$A$2:$A$1498=AZ$129,ROW(Database_Prop!$B$2:$B$1498)-ROW(Database_Prop!$B$2)+1),ROWS(Database_Prop!W$2:'Database_Prop'!W126))),\"\")","v":""},{"$f":"IFERROR(INDEX(Database_Prop!$B$2:$B$1498,SMALL(IF(Database_Prop!$A$2:$A$1498=BA$129,ROW(Database_Prop!$B$2:$B$1498)-ROW(Database_Prop!$B$2)+1),ROWS(Database_Prop!X$2:'Database_Prop'!X126))),\"\")","v":""},{"$f":"IFERROR(INDEX(Database_Prop!$B$2:$B$1498,SMALL(IF(Database_Prop!$A$2:$A$1498=BB$129,ROW(Database_Prop!$B$2:$B$1498)-ROW(Database_Prop!$B$2)+1),ROWS(Database_Prop!Y$2:'Database_Prop'!Y126))),\"\")","v":""},{"$f":"IFERROR(INDEX(Database_Prop!$B$2:$B$1498,SMALL(IF(Database_Prop!$A$2:$A$1498=BC$129,ROW(Database_Prop!$B$2:$B$1498)-ROW(Database_Prop!$B$2)+1),ROWS(Database_Prop!Z$2:'Database_Prop'!Z126))),\"\")","v":""},null,"Maldives","Indian Subcontinent"]
[null,null,null,null,null,null,null,null,null,null,null,null,null,null,null,null,null,null,null,null,null,null,null,null,null,null,null,null,null,null,127,{"$f":"IFERROR(INDEX(Database_Prop!$B$2:$B$1498,SMALL(IF(Database_Prop!$A$2:$A$1498=AF$129,ROW(Database_Prop!$B$2:$B$1498)-ROW(Database_Prop!$B$2)+1),ROWS(Database_Prop!C$2:'Database_Prop'!C127))),\"\")","v":""},{"$f":"IFERROR(INDEX(Database_Prop!$B$2:$B$1498,SMALL(IF(Database_Prop!$A$2:$A$1498=AG$129,ROW(Database_Prop!$B$2:$B$1498)-ROW(Database_Prop!$B$2)+1),ROWS(Database_Prop!D$2:'Database_Prop'!D127))),\"\")","v":""},{"$f":"IFERROR(INDEX(Database_Prop!$B$2:$B$1498,SMALL(IF(Database_Prop!$A$2:$A$1498=AH$129,ROW(Database_Prop!$B$2:$B$1498)-ROW(Database_Prop!$B$2)+1),ROWS(Database_Prop!E$2:'Database_Prop'!E127))),\"\")","v":""},{"$f":"IFERROR(INDEX(Database_Prop!$B$2:$B$1498,SMALL(IF(Database_Prop!$A$2:$A$1498=AI$129,ROW(Database_Prop!$B$2:$B$1498)-ROW(Database_Prop!$B$2)+1),ROWS(Database_Prop!F$2:'Database_Prop'!F127))),\"\")","v":""},{"$f":"IFERROR(INDEX(Database_Prop!$B$2:$B$1498,SMALL(IF(Database_Prop!$A$2:$A$1498=AJ$129,ROW(Database_Prop!$B$2:$B$1498)-ROW(Database_Prop!$B$2)+1),ROWS(Database_Prop!G$2:'Database_Prop'!G127))),\"\")","v":""},{"$f":"IFERROR(INDEX(Database_Prop!$B$2:$B$1498,SMALL(IF(Database_Prop!$A$2:$A$1498=AK$129,ROW(Database_Prop!$B$2:$B$1498)-ROW(Database_Prop!$B$2)+1),ROWS(Database_Prop!H$2:'Database_Prop'!H127))),\"\")","v":""},{"$f":"IFERROR(INDEX(Database_Prop!$B$2:$B$1498,SMALL(IF(Database_Prop!$A$2:$A$1498=AL$129,ROW(Database_Prop!$B$2:$B$1498)-ROW(Database_Prop!$B$2)+1),ROWS(Database_Prop!I$2:'Database_Prop'!I127))),\"\")","v":""},{"$f":"IFERROR(INDEX(Database_Prop!$B$2:$B$1498,SMALL(IF(Database_Prop!$A$2:$A$1498=AM$129,ROW(Database_Prop!$B$2:$B$1498)-ROW(Database_Prop!$B$2)+1),ROWS(Database_Prop!J$2:'Database_Prop'!J127))),\"\")","v":""},{"$f":"IFERROR(INDEX(Database_Prop!$B$2:$B$1498,SMALL(IF(Database_Prop!$A$2:$A$1498=AN$129,ROW(Database_Prop!$B$2:$B$1498)-ROW(Database_Prop!$B$2)+1),ROWS(Database_Prop!K$2:'Database_Prop'!K127))),\"\")","v":""},{"$f":"IFERROR(INDEX(Database_Prop!$B$2:$B$1498,SMALL(IF(Database_Prop!$A$2:$A$1498=AO$129,ROW(Database_Prop!$B$2:$B$1498)-ROW(Database_Prop!$B$2)+1),ROWS(Database_Prop!L$2:'Database_Prop'!L127))),\"\")","v":""},{"$f":"IFERROR(INDEX(Database_Prop!$B$2:$B$1498,SMALL(IF(Database_Prop!$A$2:$A$1498=AP$129,ROW(Database_Prop!$B$2:$B$1498)-ROW(Database_Prop!$B$2)+1),ROWS(Database_Prop!M$2:'Database_Prop'!M127))),\"\")","v":""},{"$f":"IFERROR(INDEX(Database_Prop!$B$2:$B$1498,SMALL(IF(Database_Prop!$A$2:$A$1498=AQ$129,ROW(Database_Prop!$B$2:$B$1498)-ROW(Database_Prop!$B$2)+1),ROWS(Database_Prop!N$2:'Database_Prop'!N127))),\"\")","v":""},{"$f":"IFERROR(INDEX(Database_Prop!$B$2:$B$1498,SMALL(IF(Database_Prop!$A$2:$A$1498=AR$129,ROW(Database_Prop!$B$2:$B$1498)-ROW(Database_Prop!$B$2)+1),ROWS(Database_Prop!O$2:'Database_Prop'!O127))),\"\")","v":""},{"$f":"IFERROR(INDEX(Database_Prop!$B$2:$B$1498,SMALL(IF(Database_Prop!$A$2:$A$1498=AS$129,ROW(Database_Prop!$B$2:$B$1498)-ROW(Database_Prop!$B$2)+1),ROWS(Database_Prop!P$2:'Database_Prop'!P127))),\"\")","v":""},{"$f":"IFERROR(INDEX(Database_Prop!$B$2:$B$1498,SMALL(IF(Database_Prop!$A$2:$A$1498=AT$129,ROW(Database_Prop!$B$2:$B$1498)-ROW(Database_Prop!$B$2)+1),ROWS(Database_Prop!Q$2:'Database_Prop'!Q127))),\"\")","v":""},{"$f":"IFERROR(INDEX(Database_Prop!$B$2:$B$1498,SMALL(IF(Database_Prop!$A$2:$A$1498=AU$129,ROW(Database_Prop!$B$2:$B$1498)-ROW(Database_Prop!$B$2)+1),ROWS(Database_Prop!R$2:'Database_Prop'!R127))),\"\")","v":""},{"$f":"IFERROR(INDEX(Database_Prop!$B$2:$B$1498,SMALL(IF(Database_Prop!$A$2:$A$1498=AV$129,ROW(Database_Prop!$B$2:$B$1498)-ROW(Database_Prop!$B$2)+1),ROWS(Database_Prop!S$2:'Database_Prop'!S127))),\"\")","v":""},{"$f":"IFERROR(INDEX(Database_Prop!$B$2:$B$1498,SMALL(IF(Database_Prop!$A$2:$A$1498=AW$129,ROW(Database_Prop!$B$2:$B$1498)-ROW(Database_Prop!$B$2)+1),ROWS(Database_Prop!T$2:'Database_Prop'!T127))),\"\")","v":""},{"$f":"IFERROR(INDEX(Database_Prop!$B$2:$B$1498,SMALL(IF(Database_Prop!$A$2:$A$1498=AX$129,ROW(Database_Prop!$B$2:$B$1498)-ROW(Database_Prop!$B$2)+1),ROWS(Database_Prop!U$2:'Database_Prop'!U127))),\"\")","v":""},{"$f":"IFERROR(INDEX(Database_Prop!$B$2:$B$1498,SMALL(IF(Database_Prop!$A$2:$A$1498=AY$129,ROW(Database_Prop!$B$2:$B$1498)-ROW(Database_Prop!$B$2)+1),ROWS(Database_Prop!V$2:'Database_Prop'!V127))),\"\")","v":""},{"$f":"IFERROR(INDEX(Database_Prop!$B$2:$B$1498,SMALL(IF(Database_Prop!$A$2:$A$1498=AZ$129,ROW(Database_Prop!$B$2:$B$1498)-ROW(Database_Prop!$B$2)+1),ROWS(Database_Prop!W$2:'Database_Prop'!W127))),\"\")","v":""},{"$f":"IFERROR(INDEX(Database_Prop!$B$2:$B$1498,SMALL(IF(Database_Prop!$A$2:$A$1498=BA$129,ROW(Database_Prop!$B$2:$B$1498)-ROW(Database_Prop!$B$2)+1),ROWS(Database_Prop!X$2:'Database_Prop'!X127))),\"\")","v":""},{"$f":"IFERROR(INDEX(Database_Prop!$B$2:$B$1498,SMALL(IF(Database_Prop!$A$2:$A$1498=BB$129,ROW(Database_Prop!$B$2:$B$1498)-ROW(Database_Prop!$B$2)+1),ROWS(Database_Prop!Y$2:'Database_Prop'!Y127))),\"\")","v":""},{"$f":"IFERROR(INDEX(Database_Prop!$B$2:$B$1498,SMALL(IF(Database_Prop!$A$2:$A$1498=BC$129,ROW(Database_Prop!$B$2:$B$1498)-ROW(Database_Prop!$B$2)+1),ROWS(Database_Prop!Z$2:'Database_Prop'!Z127))),\"\")","v":""},null,"Mali","Africa"]
[null,null,null,null,null,null,null,null,null,null,null,null,null,null,null,null,null,null,null,null,null,null,null,null,null,null,null,null,null,null,128,{"$f":"IFERROR(INDEX(Database_Prop!$B$2:$B$1498,SMALL(IF(Database_Prop!$A$2:$A$1498=AF$129,ROW(Database_Prop!$B$2:$B$1498)-ROW(Database_Prop!$B$2)+1),ROWS(Database_Prop!C$2:'Database_Prop'!C128))),\"\")","v":""},{"$f":"IFERROR(INDEX(Database_Prop!$B$2:$B$1498,SMALL(IF(Database_Prop!$A$2:$A$1498=AG$129,ROW(Database_Prop!$B$2:$B$1498)-ROW(Database_Prop!$B$2)+1),ROWS(Database_Prop!D$2:'Database_Prop'!D128))),\"\")","v":""},{"$f":"IFERROR(INDEX(Database_Prop!$B$2:$B$1498,SMALL(IF(Database_Prop!$A$2:$A$1498=AH$129,ROW(Database_Prop!$B$2:$B$1498)-ROW(Database_Prop!$B$2)+1),ROWS(Database_Prop!E$2:'Database_Prop'!E128))),\"\")","v":""},{"$f":"IFERROR(INDEX(Database_Prop!$B$2:$B$1498,SMALL(IF(Database_Prop!$A$2:$A$1498=AI$129,ROW(Database_Prop!$B$2:$B$1498)-ROW(Database_Prop!$B$2)+1),ROWS(Database_Prop!F$2:'Database_Prop'!F128))),\"\")","v":""},{"$f":"IFERROR(INDEX(Database_Prop!$B$2:$B$1498,SMALL(IF(Database_Prop!$A$2:$A$1498=AJ$129,ROW(Database_Prop!$B$2:$B$1498)-ROW(Database_Prop!$B$2)+1),ROWS(Database_Prop!G$2:'Database_Prop'!G128))),\"\")","v":""},{"$f":"IFERROR(INDEX(Database_Prop!$B$2:$B$1498,SMALL(IF(Database_Prop!$A$2:$A$1498=AK$129,ROW(Database_Prop!$B$2:$B$1498)-ROW(Database_Prop!$B$2)+1),ROWS(Database_Prop!H$2:'Database_Prop'!H128))),\"\")","v":""},{"$f":"IFERROR(INDEX(Database_Prop!$B$2:$B$1498,SMALL(IF(Database_Prop!$A$2:$A$1498=AL$129,ROW(Database_Prop!$B$2:$B$1498)-ROW(Database_Prop!$B$2)+1),ROWS(Database_Prop!I$2:'Database_Prop'!I128))),\"\")","v":""},{"$f":"IFERROR(INDEX(Database_Prop!$B$2:$B$1498,SMALL(IF(Database_Prop!$A$2:$A$1498=AM$129,ROW(Database_Prop!$B$2:$B$1498)-ROW(Database_Prop!$B$2)+1),ROWS(Database_Prop!J$2:'Database_Prop'!J128))),\"\")","v":""},{"$f":"IFERROR(INDEX(Database_Prop!$B$2:$B$1498,SMALL(IF(Database_Prop!$A$2:$A$1498=AN$129,ROW(Database_Prop!$B$2:$B$1498)-ROW(Database_Prop!$B$2)+1),ROWS(Database_Prop!K$2:'Database_Prop'!K128))),\"\")","v":""},{"$f":"IFERROR(INDEX(Database_Prop!$B$2:$B$1498,SMALL(IF(Database_Prop!$A$2:$A$1498=AO$129,ROW(Database_Prop!$B$2:$B$1498)-ROW(Database_Prop!$B$2)+1),ROWS(Database_Prop!L$2:'Database_Prop'!L128))),\"\")","v":""},{"$f":"IFERROR(INDEX(Database_Prop!$B$2:$B$1498,SMALL(IF(Database_Prop!$A$2:$A$1498=AP$129,ROW(Database_Prop!$B$2:$B$1498)-ROW(Database_Prop!$B$2)+1),ROWS(Database_Prop!M$2:'Database_Prop'!M128))),\"\")","v":""},{"$f":"IFERROR(INDEX(Database_Prop!$B$2:$B$1498,SMALL(IF(Database_Prop!$A$2:$A$1498=AQ$129,ROW(Database_Prop!$B$2:$B$1498)-ROW(Database_Prop!$B$2)+1),ROWS(Database_Prop!N$2:'Database_Prop'!N128))),\"\")","v":""},{"$f":"IFERROR(INDEX(Database_Prop!$B$2:$B$1498,SMALL(IF(Database_Prop!$A$2:$A$1498=AR$129,ROW(Database_Prop!$B$2:$B$1498)-ROW(Database_Prop!$B$2)+1),ROWS(Database_Prop!O$2:'Database_Prop'!O128))),\"\")","v":""},{"$f":"IFERROR(INDEX(Database_Prop!$B$2:$B$1498,SMALL(IF(Database_Prop!$A$2:$A$1498=AS$129,ROW(Database_Prop!$B$2:$B$1498)-ROW(Database_Prop!$B$2)+1),ROWS(Database_Prop!P$2:'Database_Prop'!P128))),\"\")","v":""},{"$f":"IFERROR(INDEX(Database_Prop!$B$2:$B$1498,SMALL(IF(Database_Prop!$A$2:$A$1498=AT$129,ROW(Database_Prop!$B$2:$B$1498)-ROW(Database_Prop!$B$2)+1),ROWS(Database_Prop!Q$2:'Database_Prop'!Q128))),\"\")","v":""},{"$f":"IFERROR(INDEX(Database_Prop!$B$2:$B$1498,SMALL(IF(Database_Prop!$A$2:$A$1498=AU$129,ROW(Database_Prop!$B$2:$B$1498)-ROW(Database_Prop!$B$2)+1),ROWS(Database_Prop!R$2:'Database_Prop'!R128))),\"\")","v":""},{"$f":"IFERROR(INDEX(Database_Prop!$B$2:$B$1498,SMALL(IF(Database_Prop!$A$2:$A$1498=AV$129,ROW(Database_Prop!$B$2:$B$1498)-ROW(Database_Prop!$B$2)+1),ROWS(Database_Prop!S$2:'Database_Prop'!S128))),\"\")","v":""},{"$f":"IFERROR(INDEX(Database_Prop!$B$2:$B$1498,SMALL(IF(Database_Prop!$A$2:$A$1498=AW$129,ROW(Database_Prop!$B$2:$B$1498)-ROW(Database_Prop!$B$2)+1),ROWS(Database_Prop!T$2:'Database_Prop'!T128))),\"\")","v":""},{"$f":"IFERROR(INDEX(Database_Prop!$B$2:$B$1498,SMALL(IF(Database_Prop!$A$2:$A$1498=AX$129,ROW(Database_Prop!$B$2:$B$1498)-ROW(Database_Prop!$B$2)+1),ROWS(Database_Prop!U$2:'Database_Prop'!U128))),\"\")","v":""},{"$f":"IFERROR(INDEX(Database_Prop!$B$2:$B$1498,SMALL(IF(Database_Prop!$A$2:$A$1498=AY$129,ROW(Database_Prop!$B$2:$B$1498)-ROW(Database_Prop!$B$2)+1),ROWS(Database_Prop!V$2:'Database_Prop'!V128))),\"\")","v":""},{"$f":"IFERROR(INDEX(Database_Prop!$B$2:$B$1498,SMALL(IF(Database_Prop!$A$2:$A$1498=AZ$129,ROW(Database_Prop!$B$2:$B$1498)-ROW(Database_Prop!$B$2)+1),ROWS(Database_Prop!W$2:'Database_Prop'!W128))),\"\")","v":""},{"$f":"IFERROR(INDEX(Database_Prop!$B$2:$B$1498,SMALL(IF(Database_Prop!$A$2:$A$1498=BA$129,ROW(Database_Prop!$B$2:$B$1498)-ROW(Database_Prop!$B$2)+1),ROWS(Database_Prop!X$2:'Database_Prop'!X128))),\"\")","v":""},{"$f":"IFERROR(INDEX(Database_Prop!$B$2:$B$1498,SMALL(IF(Database_Prop!$A$2:$A$1498=BB$129,ROW(Database_Prop!$B$2:$B$1498)-ROW(Database_Prop!$B$2)+1),ROWS(Database_Prop!Y$2:'Database_Prop'!Y128))),\"\")","v":""},{"$f":"IFERROR(INDEX(Database_Prop!$B$2:$B$1498,SMALL(IF(Database_Prop!$A$2:$A$1498=BC$129,ROW(Database_Prop!$B$2:$B$1498)-ROW(Database_Prop!$B$2)+1),ROWS(Database_Prop!Z$2:'Database_Prop'!Z128))),\"\")","v":""},null,"Malta","Western Europe"]
[null,null,null,null,null,null,null,null,null,null,null,null,null,null,null,null,null,null,null,null,null,null,null,null,null,null,null,null,null,null,129,{"$f":"IFERROR(INDEX(Database_Prop!$B$2:$B$1498,SMALL(IF(Database_Prop!$A$2:$A$1498=AF$129,ROW(Database_Prop!$B$2:$B$1498)-ROW(Database_Prop!$B$2)+1),ROWS(Database_Prop!C$2:'Database_Prop'!C129))),\"\")","v":""},{"$f":"IFERROR(INDEX(Database_Prop!$B$2:$B$1498,SMALL(IF(Database_Prop!$A$2:$A$1498=AG$129,ROW(Database_Prop!$B$2:$B$1498)-ROW(Database_Prop!$B$2)+1),ROWS(Database_Prop!D$2:'Database_Prop'!D129))),\"\")","v":""},{"$f":"IFERROR(INDEX(Database_Prop!$B$2:$B$1498,SMALL(IF(Database_Prop!$A$2:$A$1498=AH$129,ROW(Database_Prop!$B$2:$B$1498)-ROW(Database_Prop!$B$2)+1),ROWS(Database_Prop!E$2:'Database_Prop'!E129))),\"\")","v":""},{"$f":"IFERROR(INDEX(Database_Prop!$B$2:$B$1498,SMALL(IF(Database_Prop!$A$2:$A$1498=AI$129,ROW(Database_Prop!$B$2:$B$1498)-ROW(Database_Prop!$B$2)+1),ROWS(Database_Prop!F$2:'Database_Prop'!F129))),\"\")","v":""},{"$f":"IFERROR(INDEX(Database_Prop!$B$2:$B$1498,SMALL(IF(Database_Prop!$A$2:$A$1498=AJ$129,ROW(Database_Prop!$B$2:$B$1498)-ROW(Database_Prop!$B$2)+1),ROWS(Database_Prop!G$2:'Database_Prop'!G129))),\"\")","v":""},{"$f":"IFERROR(INDEX(Database_Prop!$B$2:$B$1498,SMALL(IF(Database_Prop!$A$2:$A$1498=AK$129,ROW(Database_Prop!$B$2:$B$1498)-ROW(Database_Prop!$B$2)+1),ROWS(Database_Prop!H$2:'Database_Prop'!H129))),\"\")","v":""},{"$f":"IFERROR(INDEX(Database_Prop!$B$2:$B$1498,SMALL(IF(Database_Prop!$A$2:$A$1498=AL$129,ROW(Database_Prop!$B$2:$B$1498)-ROW(Database_Prop!$B$2)+1),ROWS(Database_Prop!I$2:'Database_Prop'!I129))),\"\")","v":""},{"$f":"IFERROR(INDEX(Database_Prop!$B$2:$B$1498,SMALL(IF(Database_Prop!$A$2:$A$1498=AM$129,ROW(Database_Prop!$B$2:$B$1498)-ROW(Database_Prop!$B$2)+1),ROWS(Database_Prop!J$2:'Database_Prop'!J129))),\"\")","v":""},{"$f":"IFERROR(INDEX(Database_Prop!$B$2:$B$1498,SMALL(IF(Database_Prop!$A$2:$A$1498=AN$129,ROW(Database_Prop!$B$2:$B$1498)-ROW(Database_Prop!$B$2)+1),ROWS(Database_Prop!K$2:'Database_Prop'!K129))),\"\")","v":""},{"$f":"IFERROR(INDEX(Database_Prop!$B$2:$B$1498,SMALL(IF(Database_Prop!$A$2:$A$1498=AO$129,ROW(Database_Prop!$B$2:$B$1498)-ROW(Database_Prop!$B$2)+1),ROWS(Database_Prop!L$2:'Database_Prop'!L129))),\"\")","v":""},{"$f":"IFERROR(INDEX(Database_Prop!$B$2:$B$1498,SMALL(IF(Database_Prop!$A$2:$A$1498=AP$129,ROW(Database_Prop!$B$2:$B$1498)-ROW(Database_Prop!$B$2)+1),ROWS(Database_Prop!M$2:'Database_Prop'!M129))),\"\")","v":""},{"$f":"IFERROR(INDEX(Database_Prop!$B$2:$B$1498,SMALL(IF(Database_Prop!$A$2:$A$1498=AQ$129,ROW(Database_Prop!$B$2:$B$1498)-ROW(Database_Prop!$B$2)+1),ROWS(Database_Prop!N$2:'Database_Prop'!N129))),\"\")","v":""},{"$f":"IFERROR(INDEX(Database_Prop!$B$2:$B$1498,SMALL(IF(Database_Prop!$A$2:$A$1498=AR$129,ROW(Database_Prop!$B$2:$B$1498)-ROW(Database_Prop!$B$2)+1),ROWS(Database_Prop!O$2:'Database_Prop'!O129))),\"\")","v":""},{"$f":"IFERROR(INDEX(Database_Prop!$B$2:$B$1498,SMALL(IF(Database_Prop!$A$2:$A$1498=AS$129,ROW(Database_Prop!$B$2:$B$1498)-ROW(Database_Prop!$B$2)+1),ROWS(Database_Prop!P$2:'Database_Prop'!P129))),\"\")","v":""},{"$f":"IFERROR(INDEX(Database_Prop!$B$2:$B$1498,SMALL(IF(Database_Prop!$A$2:$A$1498=AT$129,ROW(Database_Prop!$B$2:$B$1498)-ROW(Database_Prop!$B$2)+1),ROWS(Database_Prop!Q$2:'Database_Prop'!Q129))),\"\")","v":""},{"$f":"IFERROR(INDEX(Database_Prop!$B$2:$B$1498,SMALL(IF(Database_Prop!$A$2:$A$1498=AU$129,ROW(Database_Prop!$B$2:$B$1498)-ROW(Database_Prop!$B$2)+1),ROWS(Database_Prop!R$2:'Database_Prop'!R129))),\"\")","v":""},{"$f":"IFERROR(INDEX(Database_Prop!$B$2:$B$1498,SMALL(IF(Database_Prop!$A$2:$A$1498=AV$129,ROW(Database_Prop!$B$2:$B$1498)-ROW(Database_Prop!$B$2)+1),ROWS(Database_Prop!S$2:'Database_Prop'!S129))),\"\")","v":""},{"$f":"IFERROR(INDEX(Database_Prop!$B$2:$B$1498,SMALL(IF(Database_Prop!$A$2:$A$1498=AW$129,ROW(Database_Prop!$B$2:$B$1498)-ROW(Database_Prop!$B$2)+1),ROWS(Database_Prop!T$2:'Database_Prop'!T129))),\"\")","v":""},{"$f":"IFERROR(INDEX(Database_Prop!$B$2:$B$1498,SMALL(IF(Database_Prop!$A$2:$A$1498=AX$129,ROW(Database_Prop!$B$2:$B$1498)-ROW(Database_Prop!$B$2)+1),ROWS(Database_Prop!U$2:'Database_Prop'!U129))),\"\")","v":""},{"$f":"IFERROR(INDEX(Database_Prop!$B$2:$B$1498,SMALL(IF(Database_Prop!$A$2:$A$1498=AY$129,ROW(Database_Prop!$B$2:$B$1498)-ROW(Database_Prop!$B$2)+1),ROWS(Database_Prop!V$2:'Database_Prop'!V129))),\"\")","v":""},{"$f":"IFERROR(INDEX(Database_Prop!$B$2:$B$1498,SMALL(IF(Database_Prop!$A$2:$A$1498=AZ$129,ROW(Database_Prop!$B$2:$B$1498)-ROW(Database_Prop!$B$2)+1),ROWS(Database_Prop!W$2:'Database_Prop'!W129))),\"\")","v":""},{"$f":"IFERROR(INDEX(Database_Prop!$B$2:$B$1498,SMALL(IF(Database_Prop!$A$2:$A$1498=BA$129,ROW(Database_Prop!$B$2:$B$1498)-ROW(Database_Prop!$B$2)+1),ROWS(Database_Prop!X$2:'Database_Prop'!X129))),\"\")","v":""},{"$f":"IFERROR(INDEX(Database_Prop!$B$2:$B$1498,SMALL(IF(Database_Prop!$A$2:$A$1498=BB$129,ROW(Database_Prop!$B$2:$B$1498)-ROW(Database_Prop!$B$2)+1),ROWS(Database_Prop!Y$2:'Database_Prop'!Y129))),\"\")","v":""},{"$f":"IFERROR(INDEX(Database_Prop!$B$2:$B$1498,SMALL(IF(Database_Prop!$A$2:$A$1498=BC$129,ROW(Database_Prop!$B$2:$B$1498)-ROW(Database_Prop!$B$2)+1),ROWS(Database_Prop!Z$2:'Database_Prop'!Z129))),\"\")","v":""},null,"Marshall Islands","Oceania"]
[null,null,null,null,null,null,null,null,null,null,null,null,null,null,null,null,null,null,null,null,null,null,null,null,null,null,null,null,null,null,130,{"$f":"IFERROR(INDEX(Database_Prop!$B$2:$B$1498,SMALL(IF(Database_Prop!$A$2:$A$1498=AF$129,ROW(Database_Prop!$B$2:$B$1498)-ROW(Database_Prop!$B$2)+1),ROWS(Database_Prop!C$2:'Database_Prop'!C130))),\"\")","v":""},{"$f":"IFERROR(INDEX(Database_Prop!$B$2:$B$1498,SMALL(IF(Database_Prop!$A$2:$A$1498=AG$129,ROW(Database_Prop!$B$2:$B$1498)-ROW(Database_Prop!$B$2)+1),ROWS(Database_Prop!D$2:'Database_Prop'!D130))),\"\")","v":""},{"$f":"IFERROR(INDEX(Database_Prop!$B$2:$B$1498,SMALL(IF(Database_Prop!$A$2:$A$1498=AH$129,ROW(Database_Prop!$B$2:$B$1498)-ROW(Database_Prop!$B$2)+1),ROWS(Database_Prop!E$2:'Database_Prop'!E130))),\"\")","v":""},{"$f":"IFERROR(INDEX(Database_Prop!$B$2:$B$1498,SMALL(IF(Database_Prop!$A$2:$A$1498=AI$129,ROW(Database_Prop!$B$2:$B$1498)-ROW(Database_Prop!$B$2)+1),ROWS(Database_Prop!F$2:'Database_Prop'!F130))),\"\")","v":""},{"$f":"IFERROR(INDEX(Database_Prop!$B$2:$B$1498,SMALL(IF(Database_Prop!$A$2:$A$1498=AJ$129,ROW(Database_Prop!$B$2:$B$1498)-ROW(Database_Prop!$B$2)+1),ROWS(Database_Prop!G$2:'Database_Prop'!G130))),\"\")","v":""},{"$f":"IFERROR(INDEX(Database_Prop!$B$2:$B$1498,SMALL(IF(Database_Prop!$A$2:$A$1498=AK$129,ROW(Database_Prop!$B$2:$B$1498)-ROW(Database_Prop!$B$2)+1),ROWS(Database_Prop!H$2:'Database_Prop'!H130))),\"\")","v":""},{"$f":"IFERROR(INDEX(Database_Prop!$B$2:$B$1498,SMALL(IF(Database_Prop!$A$2:$A$1498=AL$129,ROW(Database_Prop!$B$2:$B$1498)-ROW(Database_Prop!$B$2)+1),ROWS(Database_Prop!I$2:'Database_Prop'!I130))),\"\")","v":""},{"$f":"IFERROR(INDEX(Database_Prop!$B$2:$B$1498,SMALL(IF(Database_Prop!$A$2:$A$1498=AM$129,ROW(Database_Prop!$B$2:$B$1498)-ROW(Database_Prop!$B$2)+1),ROWS(Database_Prop!J$2:'Database_Prop'!J130))),\"\")","v":""},{"$f":"IFERROR(INDEX(Database_Prop!$B$2:$B$1498,SMALL(IF(Database_Prop!$A$2:$A$1498=AN$129,ROW(Database_Prop!$B$2:$B$1498)-ROW(Database_Prop!$B$2)+1),ROWS(Database_Prop!K$2:'Database_Prop'!K130))),\"\")","v":""},{"$f":"IFERROR(INDEX(Database_Prop!$B$2:$B$1498,SMALL(IF(Database_Prop!$A$2:$A$1498=AO$129,ROW(Database_Prop!$B$2:$B$1498)-ROW(Database_Prop!$B$2)+1),ROWS(Database_Prop!L$2:'Database_Prop'!L130))),\"\")","v":""},{"$f":"IFERROR(INDEX(Database_Prop!$B$2:$B$1498,SMALL(IF(Database_Prop!$A$2:$A$1498=AP$129,ROW(Database_Prop!$B$2:$B$1498)-ROW(Database_Prop!$B$2)+1),ROWS(Database_Prop!M$2:'Database_Prop'!M130))),\"\")","v":""},{"$f":"IFERROR(INDEX(Database_Prop!$B$2:$B$1498,SMALL(IF(Database_Prop!$A$2:$A$1498=AQ$129,ROW(Database_Prop!$B$2:$B$1498)-ROW(Database_Prop!$B$2)+1),ROWS(Database_Prop!N$2:'Database_Prop'!N130))),\"\")","v":""},{"$f":"IFERROR(INDEX(Database_Prop!$B$2:$B$1498,SMALL(IF(Database_Prop!$A$2:$A$1498=AR$129,ROW(Database_Prop!$B$2:$B$1498)-ROW(Database_Prop!$B$2)+1),ROWS(Database_Prop!O$2:'Database_Prop'!O130))),\"\")","v":""},{"$f":"IFERROR(INDEX(Database_Prop!$B$2:$B$1498,SMALL(IF(Database_Prop!$A$2:$A$1498=AS$129,ROW(Database_Prop!$B$2:$B$1498)-ROW(Database_Prop!$B$2)+1),ROWS(Database_Prop!P$2:'Database_Prop'!P130))),\"\")","v":""},{"$f":"IFERROR(INDEX(Database_Prop!$B$2:$B$1498,SMALL(IF(Database_Prop!$A$2:$A$1498=AT$129,ROW(Database_Prop!$B$2:$B$1498)-ROW(Database_Prop!$B$2)+1),ROWS(Database_Prop!Q$2:'Database_Prop'!Q130))),\"\")","v":""},{"$f":"IFERROR(INDEX(Database_Prop!$B$2:$B$1498,SMALL(IF(Database_Prop!$A$2:$A$1498=AU$129,ROW(Database_Prop!$B$2:$B$1498)-ROW(Database_Prop!$B$2)+1),ROWS(Database_Prop!R$2:'Database_Prop'!R130))),\"\")","v":""},{"$f":"IFERROR(INDEX(Database_Prop!$B$2:$B$1498,SMALL(IF(Database_Prop!$A$2:$A$1498=AV$129,ROW(Database_Prop!$B$2:$B$1498)-ROW(Database_Prop!$B$2)+1),ROWS(Database_Prop!S$2:'Database_Prop'!S130))),\"\")","v":""},{"$f":"IFERROR(INDEX(Database_Prop!$B$2:$B$1498,SMALL(IF(Database_Prop!$A$2:$A$1498=AW$129,ROW(Database_Prop!$B$2:$B$1498)-ROW(Database_Prop!$B$2)+1),ROWS(Database_Prop!T$2:'Database_Prop'!T130))),\"\")","v":""},{"$f":"IFERROR(INDEX(Database_Prop!$B$2:$B$1498,SMALL(IF(Database_Prop!$A$2:$A$1498=AX$129,ROW(Database_Prop!$B$2:$B$1498)-ROW(Database_Prop!$B$2)+1),ROWS(Database_Prop!U$2:'Database_Prop'!U130))),\"\")","v":""},{"$f":"IFERROR(INDEX(Database_Prop!$B$2:$B$1498,SMALL(IF(Database_Prop!$A$2:$A$1498=AY$129,ROW(Database_Prop!$B$2:$B$1498)-ROW(Database_Prop!$B$2)+1),ROWS(Database_Prop!V$2:'Database_Prop'!V130))),\"\")","v":""},{"$f":"IFERROR(INDEX(Database_Prop!$B$2:$B$1498,SMALL(IF(Database_Prop!$A$2:$A$1498=AZ$129,ROW(Database_Prop!$B$2:$B$1498)-ROW(Database_Prop!$B$2)+1),ROWS(Database_Prop!W$2:'Database_Prop'!W130))),\"\")","v":""},{"$f":"IFERROR(INDEX(Database_Prop!$B$2:$B$1498,SMALL(IF(Database_Prop!$A$2:$A$1498=BA$129,ROW(Database_Prop!$B$2:$B$1498)-ROW(Database_Prop!$B$2)+1),ROWS(Database_Prop!X$2:'Database_Prop'!X130))),\"\")","v":""},{"$f":"IFERROR(INDEX(Database_Prop!$B$2:$B$1498,SMALL(IF(Database_Prop!$A$2:$A$1498=BB$129,ROW(Database_Prop!$B$2:$B$1498)-ROW(Database_Prop!$B$2)+1),ROWS(Database_Prop!Y$2:'Database_Prop'!Y130))),\"\")","v":""},{"$f":"IFERROR(INDEX(Database_Prop!$B$2:$B$1498,SMALL(IF(Database_Prop!$A$2:$A$1498=BC$129,ROW(Database_Prop!$B$2:$B$1498)-ROW(Database_Prop!$B$2)+1),ROWS(Database_Prop!Z$2:'Database_Prop'!Z130))),\"\")","v":""},null,"Martinique","Latin America"]
[null,null,null,null,null,null,null,null,null,null,null,null,null,null,null,null,null,null,null,null,null,null,null,null,null,null,null,null,null,null,{"$f":"AE261+1","v":131},{"$f":"IFERROR(INDEX(Database_Prop!$B$2:$B$1498,SMALL(IF(Database_Prop!$A$2:$A$1498=AF$129,ROW(Database_Prop!$B$2:$B$1498)-ROW(Database_Prop!$B$2)+1),ROWS(Database_Prop!C$2:'Database_Prop'!C131))),\"\")","v":""},{"$f":"IFERROR(INDEX(Database_Prop!$B$2:$B$1498,SMALL(IF(Database_Prop!$A$2:$A$1498=AG$129,ROW(Database_Prop!$B$2:$B$1498)-ROW(Database_Prop!$B$2)+1),ROWS(Database_Prop!D$2:'Database_Prop'!D131))),\"\")","v":""},{"$f":"IFERROR(INDEX(Database_Prop!$B$2:$B$1498,SMALL(IF(Database_Prop!$A$2:$A$1498=AH$129,ROW(Database_Prop!$B$2:$B$1498)-ROW(Database_Prop!$B$2)+1),ROWS(Database_Prop!E$2:'Database_Prop'!E131))),\"\")","v":""},{"$f":"IFERROR(INDEX(Database_Prop!$B$2:$B$1498,SMALL(IF(Database_Prop!$A$2:$A$1498=AI$129,ROW(Database_Prop!$B$2:$B$1498)-ROW(Database_Prop!$B$2)+1),ROWS(Database_Prop!F$2:'Database_Prop'!F131))),\"\")","v":""},{"$f":"IFERROR(INDEX(Database_Prop!$B$2:$B$1498,SMALL(IF(Database_Prop!$A$2:$A$1498=AJ$129,ROW(Database_Prop!$B$2:$B$1498)-ROW(Database_Prop!$B$2)+1),ROWS(Database_Prop!G$2:'Database_Prop'!G131))),\"\")","v":""},{"$f":"IFERROR(INDEX(Database_Prop!$B$2:$B$1498,SMALL(IF(Database_Prop!$A$2:$A$1498=AK$129,ROW(Database_Prop!$B$2:$B$1498)-ROW(Database_Prop!$B$2)+1),ROWS(Database_Prop!H$2:'Database_Prop'!H131))),\"\")","v":""},{"$f":"IFERROR(INDEX(Database_Prop!$B$2:$B$1498,SMALL(IF(Database_Prop!$A$2:$A$1498=AL$129,ROW(Database_Prop!$B$2:$B$1498)-ROW(Database_Prop!$B$2)+1),ROWS(Database_Prop!I$2:'Database_Prop'!I131))),\"\")","v":""},{"$f":"IFERROR(INDEX(Database_Prop!$B$2:$B$1498,SMALL(IF(Database_Prop!$A$2:$A$1498=AM$129,ROW(Database_Prop!$B$2:$B$1498)-ROW(Database_Prop!$B$2)+1),ROWS(Database_Prop!J$2:'Database_Prop'!J131))),\"\")","v":""},{"$f":"IFERROR(INDEX(Database_Prop!$B$2:$B$1498,SMALL(IF(Database_Prop!$A$2:$A$1498=AN$129,ROW(Database_Prop!$B$2:$B$1498)-ROW(Database_Prop!$B$2)+1),ROWS(Database_Prop!K$2:'Database_Prop'!K131))),\"\")","v":""},{"$f":"IFERROR(INDEX(Database_Prop!$B$2:$B$1498,SMALL(IF(Database_Prop!$A$2:$A$1498=AO$129,ROW(Database_Prop!$B$2:$B$1498)-ROW(Database_Prop!$B$2)+1),ROWS(Database_Prop!L$2:'Database_Prop'!L131))),\"\")","v":""},{"$f":"IFERROR(INDEX(Database_Prop!$B$2:$B$1498,SMALL(IF(Database_Prop!$A$2:$A$1498=AP$129,ROW(Database_Prop!$B$2:$B$1498)-ROW(Database_Prop!$B$2)+1),ROWS(Database_Prop!M$2:'Database_Prop'!M131))),\"\")","v":""},{"$f":"IFERROR(INDEX(Database_Prop!$B$2:$B$1498,SMALL(IF(Database_Prop!$A$2:$A$1498=AQ$129,ROW(Database_Prop!$B$2:$B$1498)-ROW(Database_Prop!$B$2)+1),ROWS(Database_Prop!N$2:'Database_Prop'!N131))),\"\")","v":""},{"$f":"IFERROR(INDEX(Database_Prop!$B$2:$B$1498,SMALL(IF(Database_Prop!$A$2:$A$1498=AR$129,ROW(Database_Prop!$B$2:$B$1498)-ROW(Database_Prop!$B$2)+1),ROWS(Database_Prop!O$2:'Database_Prop'!O131))),\"\")","v":""},{"$f":"IFERROR(INDEX(Database_Prop!$B$2:$B$1498,SMALL(IF(Database_Prop!$A$2:$A$1498=AS$129,ROW(Database_Prop!$B$2:$B$1498)-ROW(Database_Prop!$B$2)+1),ROWS(Database_Prop!P$2:'Database_Prop'!P131))),\"\")","v":""},{"$f":"IFERROR(INDEX(Database_Prop!$B$2:$B$1498,SMALL(IF(Database_Prop!$A$2:$A$1498=AT$129,ROW(Database_Prop!$B$2:$B$1498)-ROW(Database_Prop!$B$2)+1),ROWS(Database_Prop!Q$2:'Database_Prop'!Q131))),\"\")","v":""},{"$f":"IFERROR(INDEX(Database_Prop!$B$2:$B$1498,SMALL(IF(Database_Prop!$A$2:$A$1498=AU$129,ROW(Database_Prop!$B$2:$B$1498)-ROW(Database_Prop!$B$2)+1),ROWS(Database_Prop!R$2:'Database_Prop'!R131))),\"\")","v":""},{"$f":"IFERROR(INDEX(Database_Prop!$B$2:$B$1498,SMALL(IF(Database_Prop!$A$2:$A$1498=AV$129,ROW(Database_Prop!$B$2:$B$1498)-ROW(Database_Prop!$B$2)+1),ROWS(Database_Prop!S$2:'Database_Prop'!S131))),\"\")","v":""},{"$f":"IFERROR(INDEX(Database_Prop!$B$2:$B$1498,SMALL(IF(Database_Prop!$A$2:$A$1498=AW$129,ROW(Database_Prop!$B$2:$B$1498)-ROW(Database_Prop!$B$2)+1),ROWS(Database_Prop!T$2:'Database_Prop'!T131))),\"\")","v":""},{"$f":"IFERROR(INDEX(Database_Prop!$B$2:$B$1498,SMALL(IF(Database_Prop!$A$2:$A$1498=AX$129,ROW(Database_Prop!$B$2:$B$1498)-ROW(Database_Prop!$B$2)+1),ROWS(Database_Prop!U$2:'Database_Prop'!U131))),\"\")","v":""},{"$f":"IFERROR(INDEX(Database_Prop!$B$2:$B$1498,SMALL(IF(Database_Prop!$A$2:$A$1498=AY$129,ROW(Database_Prop!$B$2:$B$1498)-ROW(Database_Prop!$B$2)+1),ROWS(Database_Prop!V$2:'Database_Prop'!V131))),\"\")","v":""},{"$f":"IFERROR(INDEX(Database_Prop!$B$2:$B$1498,SMALL(IF(Database_Prop!$A$2:$A$1498=AZ$129,ROW(Database_Prop!$B$2:$B$1498)-ROW(Database_Prop!$B$2)+1),ROWS(Database_Prop!W$2:'Database_Prop'!W131))),\"\")","v":""},{"$f":"IFERROR(INDEX(Database_Prop!$B$2:$B$1498,SMALL(IF(Database_Prop!$A$2:$A$1498=BA$129,ROW(Database_Prop!$B$2:$B$1498)-ROW(Database_Prop!$B$2)+1),ROWS(Database_Prop!X$2:'Database_Prop'!X131))),\"\")","v":""},{"$f":"IFERROR(INDEX(Database_Prop!$B$2:$B$1498,SMALL(IF(Database_Prop!$A$2:$A$1498=BB$129,ROW(Database_Prop!$B$2:$B$1498)-ROW(Database_Prop!$B$2)+1),ROWS(Database_Prop!Y$2:'Database_Prop'!Y131))),\"\")","v":""},{"$f":"IFERROR(INDEX(Database_Prop!$B$2:$B$1498,SMALL(IF(Database_Prop!$A$2:$A$1498=BC$129,ROW(Database_Prop!$B$2:$B$1498)-ROW(Database_Prop!$B$2)+1),ROWS(Database_Prop!Z$2:'Database_Prop'!Z131))),\"\")","v":""},null,"Mauritania","Africa"]
[null,null,null,null,null,null,null,null,null,null,null,null,null,null,null,null,null,null,null,null,null,null,null,null,null,null,null,null,null,null,132,{"$f":"IFERROR(INDEX(Database_Prop!$B$2:$B$1498,SMALL(IF(Database_Prop!$A$2:$A$1498=AF$129,ROW(Database_Prop!$B$2:$B$1498)-ROW(Database_Prop!$B$2)+1),ROWS(Database_Prop!C$2:'Database_Prop'!C132))),\"\")","v":""},{"$f":"IFERROR(INDEX(Database_Prop!$B$2:$B$1498,SMALL(IF(Database_Prop!$A$2:$A$1498=AG$129,ROW(Database_Prop!$B$2:$B$1498)-ROW(Database_Prop!$B$2)+1),ROWS(Database_Prop!D$2:'Database_Prop'!D132))),\"\")","v":""},{"$f":"IFERROR(INDEX(Database_Prop!$B$2:$B$1498,SMALL(IF(Database_Prop!$A$2:$A$1498=AH$129,ROW(Database_Prop!$B$2:$B$1498)-ROW(Database_Prop!$B$2)+1),ROWS(Database_Prop!E$2:'Database_Prop'!E132))),\"\")","v":""},{"$f":"IFERROR(INDEX(Database_Prop!$B$2:$B$1498,SMALL(IF(Database_Prop!$A$2:$A$1498=AI$129,ROW(Database_Prop!$B$2:$B$1498)-ROW(Database_Prop!$B$2)+1),ROWS(Database_Prop!F$2:'Database_Prop'!F132))),\"\")","v":""},{"$f":"IFERROR(INDEX(Database_Prop!$B$2:$B$1498,SMALL(IF(Database_Prop!$A$2:$A$1498=AJ$129,ROW(Database_Prop!$B$2:$B$1498)-ROW(Database_Prop!$B$2)+1),ROWS(Database_Prop!G$2:'Database_Prop'!G132))),\"\")","v":""},{"$f":"IFERROR(INDEX(Database_Prop!$B$2:$B$1498,SMALL(IF(Database_Prop!$A$2:$A$1498=AK$129,ROW(Database_Prop!$B$2:$B$1498)-ROW(Database_Prop!$B$2)+1),ROWS(Database_Prop!H$2:'Database_Prop'!H132))),\"\")","v":""},{"$f":"IFERROR(INDEX(Database_Prop!$B$2:$B$1498,SMALL(IF(Database_Prop!$A$2:$A$1498=AL$129,ROW(Database_Prop!$B$2:$B$1498)-ROW(Database_Prop!$B$2)+1),ROWS(Database_Prop!I$2:'Database_Prop'!I132))),\"\")","v":""},{"$f":"IFERROR(INDEX(Database_Prop!$B$2:$B$1498,SMALL(IF(Database_Prop!$A$2:$A$1498=AM$129,ROW(Database_Prop!$B$2:$B$1498)-ROW(Database_Prop!$B$2)+1),ROWS(Database_Prop!J$2:'Database_Prop'!J132))),\"\")","v":""},{"$f":"IFERROR(INDEX(Database_Prop!$B$2:$B$1498,SMALL(IF(Database_Prop!$A$2:$A$1498=AN$129,ROW(Database_Prop!$B$2:$B$1498)-ROW(Database_Prop!$B$2)+1),ROWS(Database_Prop!K$2:'Database_Prop'!K132))),\"\")","v":""},{"$f":"IFERROR(INDEX(Database_Prop!$B$2:$B$1498,SMALL(IF(Database_Prop!$A$2:$A$1498=AO$129,ROW(Database_Prop!$B$2:$B$1498)-ROW(Database_Prop!$B$2)+1),ROWS(Database_Prop!L$2:'Database_Prop'!L132))),\"\")","v":""},{"$f":"IFERROR(INDEX(Database_Prop!$B$2:$B$1498,SMALL(IF(Database_Prop!$A$2:$A$1498=AP$129,ROW(Database_Prop!$B$2:$B$1498)-ROW(Database_Prop!$B$2)+1),ROWS(Database_Prop!M$2:'Database_Prop'!M132))),\"\")","v":""},{"$f":"IFERROR(INDEX(Database_Prop!$B$2:$B$1498,SMALL(IF(Database_Prop!$A$2:$A$1498=AQ$129,ROW(Database_Prop!$B$2:$B$1498)-ROW(Database_Prop!$B$2)+1),ROWS(Database_Prop!N$2:'Database_Prop'!N132))),\"\")","v":""},{"$f":"IFERROR(INDEX(Database_Prop!$B$2:$B$1498,SMALL(IF(Database_Prop!$A$2:$A$1498=AR$129,ROW(Database_Prop!$B$2:$B$1498)-ROW(Database_Prop!$B$2)+1),ROWS(Database_Prop!O$2:'Database_Prop'!O132))),\"\")","v":""},{"$f":"IFERROR(INDEX(Database_Prop!$B$2:$B$1498,SMALL(IF(Database_Prop!$A$2:$A$1498=AS$129,ROW(Database_Prop!$B$2:$B$1498)-ROW(Database_Prop!$B$2)+1),ROWS(Database_Prop!P$2:'Database_Prop'!P132))),\"\")","v":""},{"$f":"IFERROR(INDEX(Database_Prop!$B$2:$B$1498,SMALL(IF(Database_Prop!$A$2:$A$1498=AT$129,ROW(Database_Prop!$B$2:$B$1498)-ROW(Database_Prop!$B$2)+1),ROWS(Database_Prop!Q$2:'Database_Prop'!Q132))),\"\")","v":""},{"$f":"IFERROR(INDEX(Database_Prop!$B$2:$B$1498,SMALL(IF(Database_Prop!$A$2:$A$1498=AU$129,ROW(Database_Prop!$B$2:$B$1498)-ROW(Database_Prop!$B$2)+1),ROWS(Database_Prop!R$2:'Database_Prop'!R132))),\"\")","v":""},{"$f":"IFERROR(INDEX(Database_Prop!$B$2:$B$1498,SMALL(IF(Database_Prop!$A$2:$A$1498=AV$129,ROW(Database_Prop!$B$2:$B$1498)-ROW(Database_Prop!$B$2)+1),ROWS(Database_Prop!S$2:'Database_Prop'!S132))),\"\")","v":""},{"$f":"IFERROR(INDEX(Database_Prop!$B$2:$B$1498,SMALL(IF(Database_Prop!$A$2:$A$1498=AW$129,ROW(Database_Prop!$B$2:$B$1498)-ROW(Database_Prop!$B$2)+1),ROWS(Database_Prop!T$2:'Database_Prop'!T132))),\"\")","v":""},{"$f":"IFERROR(INDEX(Database_Prop!$B$2:$B$1498,SMALL(IF(Database_Prop!$A$2:$A$1498=AX$129,ROW(Database_Prop!$B$2:$B$1498)-ROW(Database_Prop!$B$2)+1),ROWS(Database_Prop!U$2:'Database_Prop'!U132))),\"\")","v":""},{"$f":"IFERROR(INDEX(Database_Prop!$B$2:$B$1498,SMALL(IF(Database_Prop!$A$2:$A$1498=AY$129,ROW(Database_Prop!$B$2:$B$1498)-ROW(Database_Prop!$B$2)+1),ROWS(Database_Prop!V$2:'Database_Prop'!V132))),\"\")","v":""},{"$f":"IFERROR(INDEX(Database_Prop!$B$2:$B$1498,SMALL(IF(Database_Prop!$A$2:$A$1498=AZ$129,ROW(Database_Prop!$B$2:$B$1498)-ROW(Database_Prop!$B$2)+1),ROWS(Database_Prop!W$2:'Database_Prop'!W132))),\"\")","v":""},{"$f":"IFERROR(INDEX(Database_Prop!$B$2:$B$1498,SMALL(IF(Database_Prop!$A$2:$A$1498=BA$129,ROW(Database_Prop!$B$2:$B$1498)-ROW(Database_Prop!$B$2)+1),ROWS(Database_Prop!X$2:'Database_Prop'!X132))),\"\")","v":""},{"$f":"IFERROR(INDEX(Database_Prop!$B$2:$B$1498,SMALL(IF(Database_Prop!$A$2:$A$1498=BB$129,ROW(Database_Prop!$B$2:$B$1498)-ROW(Database_Prop!$B$2)+1),ROWS(Database_Prop!Y$2:'Database_Prop'!Y132))),\"\")","v":""},{"$f":"IFERROR(INDEX(Database_Prop!$B$2:$B$1498,SMALL(IF(Database_Prop!$A$2:$A$1498=BC$129,ROW(Database_Prop!$B$2:$B$1498)-ROW(Database_Prop!$B$2)+1),ROWS(Database_Prop!Z$2:'Database_Prop'!Z132))),\"\")","v":""},null,"Mauritius","Africa"]
[null,null,null,null,null,null,null,null,null,null,null,null,null,null,null,null,null,null,null,null,null,null,null,null,null,null,null,null,null,null,133,{"$f":"IFERROR(INDEX(Database_Prop!$B$2:$B$1498,SMALL(IF(Database_Prop!$A$2:$A$1498=AF$129,ROW(Database_Prop!$B$2:$B$1498)-ROW(Database_Prop!$B$2)+1),ROWS(Database_Prop!C$2:'Database_Prop'!C133))),\"\")","v":""},{"$f":"IFERROR(INDEX(Database_Prop!$B$2:$B$1498,SMALL(IF(Database_Prop!$A$2:$A$1498=AG$129,ROW(Database_Prop!$B$2:$B$1498)-ROW(Database_Prop!$B$2)+1),ROWS(Database_Prop!D$2:'Database_Prop'!D133))),\"\")","v":""},{"$f":"IFERROR(INDEX(Database_Prop!$B$2:$B$1498,SMALL(IF(Database_Prop!$A$2:$A$1498=AH$129,ROW(Database_Prop!$B$2:$B$1498)-ROW(Database_Prop!$B$2)+1),ROWS(Database_Prop!E$2:'Database_Prop'!E133))),\"\")","v":""},{"$f":"IFERROR(INDEX(Database_Prop!$B$2:$B$1498,SMALL(IF(Database_Prop!$A$2:$A$1498=AI$129,ROW(Database_Prop!$B$2:$B$1498)-ROW(Database_Prop!$B$2)+1),ROWS(Database_Prop!F$2:'Database_Prop'!F133))),\"\")","v":""},{"$f":"IFERROR(INDEX(Database_Prop!$B$2:$B$1498,SMALL(IF(Database_Prop!$A$2:$A$1498=AJ$129,ROW(Database_Prop!$B$2:$B$1498)-ROW(Database_Prop!$B$2)+1),ROWS(Database_Prop!G$2:'Database_Prop'!G133))),\"\")","v":""},{"$f":"IFERROR(INDEX(Database_Prop!$B$2:$B$1498,SMALL(IF(Database_Prop!$A$2:$A$1498=AK$129,ROW(Database_Prop!$B$2:$B$1498)-ROW(Database_Prop!$B$2)+1),ROWS(Database_Prop!H$2:'Database_Prop'!H133))),\"\")","v":""},{"$f":"IFERROR(INDEX(Database_Prop!$B$2:$B$1498,SMALL(IF(Database_Prop!$A$2:$A$1498=AL$129,ROW(Database_Prop!$B$2:$B$1498)-ROW(Database_Prop!$B$2)+1),ROWS(Database_Prop!I$2:'Database_Prop'!I133))),\"\")","v":""},{"$f":"IFERROR(INDEX(Database_Prop!$B$2:$B$1498,SMALL(IF(Database_Prop!$A$2:$A$1498=AM$129,ROW(Database_Prop!$B$2:$B$1498)-ROW(Database_Prop!$B$2)+1),ROWS(Database_Prop!J$2:'Database_Prop'!J133))),\"\")","v":""},{"$f":"IFERROR(INDEX(Database_Prop!$B$2:$B$1498,SMALL(IF(Database_Prop!$A$2:$A$1498=AN$129,ROW(Database_Prop!$B$2:$B$1498)-ROW(Database_Prop!$B$2)+1),ROWS(Database_Prop!K$2:'Database_Prop'!K133))),\"\")","v":""},{"$f":"IFERROR(INDEX(Database_Prop!$B$2:$B$1498,SMALL(IF(Database_Prop!$A$2:$A$1498=AO$129,ROW(Database_Prop!$B$2:$B$1498)-ROW(Database_Prop!$B$2)+1),ROWS(Database_Prop!L$2:'Database_Prop'!L133))),\"\")","v":""},{"$f":"IFERROR(INDEX(Database_Prop!$B$2:$B$1498,SMALL(IF(Database_Prop!$A$2:$A$1498=AP$129,ROW(Database_Prop!$B$2:$B$1498)-ROW(Database_Prop!$B$2)+1),ROWS(Database_Prop!M$2:'Database_Prop'!M133))),\"\")","v":""},{"$f":"IFERROR(INDEX(Database_Prop!$B$2:$B$1498,SMALL(IF(Database_Prop!$A$2:$A$1498=AQ$129,ROW(Database_Prop!$B$2:$B$1498)-ROW(Database_Prop!$B$2)+1),ROWS(Database_Prop!N$2:'Database_Prop'!N133))),\"\")","v":""},{"$f":"IFERROR(INDEX(Database_Prop!$B$2:$B$1498,SMALL(IF(Database_Prop!$A$2:$A$1498=AR$129,ROW(Database_Prop!$B$2:$B$1498)-ROW(Database_Prop!$B$2)+1),ROWS(Database_Prop!O$2:'Database_Prop'!O133))),\"\")","v":""},{"$f":"IFERROR(INDEX(Database_Prop!$B$2:$B$1498,SMALL(IF(Database_Prop!$A$2:$A$1498=AS$129,ROW(Database_Prop!$B$2:$B$1498)-ROW(Database_Prop!$B$2)+1),ROWS(Database_Prop!P$2:'Database_Prop'!P133))),\"\")","v":""},{"$f":"IFERROR(INDEX(Database_Prop!$B$2:$B$1498,SMALL(IF(Database_Prop!$A$2:$A$1498=AT$129,ROW(Database_Prop!$B$2:$B$1498)-ROW(Database_Prop!$B$2)+1),ROWS(Database_Prop!Q$2:'Database_Prop'!Q133))),\"\")","v":""},{"$f":"IFERROR(INDEX(Database_Prop!$B$2:$B$1498,SMALL(IF(Database_Prop!$A$2:$A$1498=AU$129,ROW(Database_Prop!$B$2:$B$1498)-ROW(Database_Prop!$B$2)+1),ROWS(Database_Prop!R$2:'Database_Prop'!R133))),\"\")","v":""},{"$f":"IFERROR(INDEX(Database_Prop!$B$2:$B$1498,SMALL(IF(Database_Prop!$A$2:$A$1498=AV$129,ROW(Database_Prop!$B$2:$B$1498)-ROW(Database_Prop!$B$2)+1),ROWS(Database_Prop!S$2:'Database_Prop'!S133))),\"\")","v":""},{"$f":"IFERROR(INDEX(Database_Prop!$B$2:$B$1498,SMALL(IF(Database_Prop!$A$2:$A$1498=AW$129,ROW(Database_Prop!$B$2:$B$1498)-ROW(Database_Prop!$B$2)+1),ROWS(Database_Prop!T$2:'Database_Prop'!T133))),\"\")","v":""},{"$f":"IFERROR(INDEX(Database_Prop!$B$2:$B$1498,SMALL(IF(Database_Prop!$A$2:$A$1498=AX$129,ROW(Database_Prop!$B$2:$B$1498)-ROW(Database_Prop!$B$2)+1),ROWS(Database_Prop!U$2:'Database_Prop'!U133))),\"\")","v":""},{"$f":"IFERROR(INDEX(Database_Prop!$B$2:$B$1498,SMALL(IF(Database_Prop!$A$2:$A$1498=AY$129,ROW(Database_Prop!$B$2:$B$1498)-ROW(Database_Prop!$B$2)+1),ROWS(Database_Prop!V$2:'Database_Prop'!V133))),\"\")","v":""},{"$f":"IFERROR(INDEX(Database_Prop!$B$2:$B$1498,SMALL(IF(Database_Prop!$A$2:$A$1498=AZ$129,ROW(Database_Prop!$B$2:$B$1498)-ROW(Database_Prop!$B$2)+1),ROWS(Database_Prop!W$2:'Database_Prop'!W133))),\"\")","v":""},{"$f":"IFERROR(INDEX(Database_Prop!$B$2:$B$1498,SMALL(IF(Database_Prop!$A$2:$A$1498=BA$129,ROW(Database_Prop!$B$2:$B$1498)-ROW(Database_Prop!$B$2)+1),ROWS(Database_Prop!X$2:'Database_Prop'!X133))),\"\")","v":""},{"$f":"IFERROR(INDEX(Database_Prop!$B$2:$B$1498,SMALL(IF(Database_Prop!$A$2:$A$1498=BB$129,ROW(Database_Prop!$B$2:$B$1498)-ROW(Database_Prop!$B$2)+1),ROWS(Database_Prop!Y$2:'Database_Prop'!Y133))),\"\")","v":""},{"$f":"IFERROR(INDEX(Database_Prop!$B$2:$B$1498,SMALL(IF(Database_Prop!$A$2:$A$1498=BC$129,ROW(Database_Prop!$B$2:$B$1498)-ROW(Database_Prop!$B$2)+1),ROWS(Database_Prop!Z$2:'Database_Prop'!Z133))),\"\")","v":""},null,"Mayotte","Africa"]
[null,null,null,null,null,null,null,null,null,null,null,null,null,null,null,null,null,null,null,null,null,null,null,null,null,null,null,null,null,null,134,{"$f":"IFERROR(INDEX(Database_Prop!$B$2:$B$1498,SMALL(IF(Database_Prop!$A$2:$A$1498=AF$129,ROW(Database_Prop!$B$2:$B$1498)-ROW(Database_Prop!$B$2)+1),ROWS(Database_Prop!C$2:'Database_Prop'!C134))),\"\")","v":""},{"$f":"IFERROR(INDEX(Database_Prop!$B$2:$B$1498,SMALL(IF(Database_Prop!$A$2:$A$1498=AG$129,ROW(Database_Prop!$B$2:$B$1498)-ROW(Database_Prop!$B$2)+1),ROWS(Database_Prop!D$2:'Database_Prop'!D134))),\"\")","v":""},{"$f":"IFERROR(INDEX(Database_Prop!$B$2:$B$1498,SMALL(IF(Database_Prop!$A$2:$A$1498=AH$129,ROW(Database_Prop!$B$2:$B$1498)-ROW(Database_Prop!$B$2)+1),ROWS(Database_Prop!E$2:'Database_Prop'!E134))),\"\")","v":""},{"$f":"IFERROR(INDEX(Database_Prop!$B$2:$B$1498,SMALL(IF(Database_Prop!$A$2:$A$1498=AI$129,ROW(Database_Prop!$B$2:$B$1498)-ROW(Database_Prop!$B$2)+1),ROWS(Database_Prop!F$2:'Database_Prop'!F134))),\"\")","v":""},{"$f":"IFERROR(INDEX(Database_Prop!$B$2:$B$1498,SMALL(IF(Database_Prop!$A$2:$A$1498=AJ$129,ROW(Database_Prop!$B$2:$B$1498)-ROW(Database_Prop!$B$2)+1),ROWS(Database_Prop!G$2:'Database_Prop'!G134))),\"\")","v":""},{"$f":"IFERROR(INDEX(Database_Prop!$B$2:$B$1498,SMALL(IF(Database_Prop!$A$2:$A$1498=AK$129,ROW(Database_Prop!$B$2:$B$1498)-ROW(Database_Prop!$B$2)+1),ROWS(Database_Prop!H$2:'Database_Prop'!H134))),\"\")","v":""},{"$f":"IFERROR(INDEX(Database_Prop!$B$2:$B$1498,SMALL(IF(Database_Prop!$A$2:$A$1498=AL$129,ROW(Database_Prop!$B$2:$B$1498)-ROW(Database_Prop!$B$2)+1),ROWS(Database_Prop!I$2:'Database_Prop'!I134))),\"\")","v":""},{"$f":"IFERROR(INDEX(Database_Prop!$B$2:$B$1498,SMALL(IF(Database_Prop!$A$2:$A$1498=AM$129,ROW(Database_Prop!$B$2:$B$1498)-ROW(Database_Prop!$B$2)+1),ROWS(Database_Prop!J$2:'Database_Prop'!J134))),\"\")","v":""},{"$f":"IFERROR(INDEX(Database_Prop!$B$2:$B$1498,SMALL(IF(Database_Prop!$A$2:$A$1498=AN$129,ROW(Database_Prop!$B$2:$B$1498)-ROW(Database_Prop!$B$2)+1),ROWS(Database_Prop!K$2:'Database_Prop'!K134))),\"\")","v":""},{"$f":"IFERROR(INDEX(Database_Prop!$B$2:$B$1498,SMALL(IF(Database_Prop!$A$2:$A$1498=AO$129,ROW(Database_Prop!$B$2:$B$1498)-ROW(Database_Prop!$B$2)+1),ROWS(Database_Prop!L$2:'Database_Prop'!L134))),\"\")","v":""},{"$f":"IFERROR(INDEX(Database_Prop!$B$2:$B$1498,SMALL(IF(Database_Prop!$A$2:$A$1498=AP$129,ROW(Database_Prop!$B$2:$B$1498)-ROW(Database_Prop!$B$2)+1),ROWS(Database_Prop!M$2:'Database_Prop'!M134))),\"\")","v":""},{"$f":"IFERROR(INDEX(Database_Prop!$B$2:$B$1498,SMALL(IF(Database_Prop!$A$2:$A$1498=AQ$129,ROW(Database_Prop!$B$2:$B$1498)-ROW(Database_Prop!$B$2)+1),ROWS(Database_Prop!N$2:'Database_Prop'!N134))),\"\")","v":""},{"$f":"IFERROR(INDEX(Database_Prop!$B$2:$B$1498,SMALL(IF(Database_Prop!$A$2:$A$1498=AR$129,ROW(Database_Prop!$B$2:$B$1498)-ROW(Database_Prop!$B$2)+1),ROWS(Database_Prop!O$2:'Database_Prop'!O134))),\"\")","v":""},{"$f":"IFERROR(INDEX(Database_Prop!$B$2:$B$1498,SMALL(IF(Database_Prop!$A$2:$A$1498=AS$129,ROW(Database_Prop!$B$2:$B$1498)-ROW(Database_Prop!$B$2)+1),ROWS(Database_Prop!P$2:'Database_Prop'!P134))),\"\")","v":""},{"$f":"IFERROR(INDEX(Database_Prop!$B$2:$B$1498,SMALL(IF(Database_Prop!$A$2:$A$1498=AT$129,ROW(Database_Prop!$B$2:$B$1498)-ROW(Database_Prop!$B$2)+1),ROWS(Database_Prop!Q$2:'Database_Prop'!Q134))),\"\")","v":""},{"$f":"IFERROR(INDEX(Database_Prop!$B$2:$B$1498,SMALL(IF(Database_Prop!$A$2:$A$1498=AU$129,ROW(Database_Prop!$B$2:$B$1498)-ROW(Database_Prop!$B$2)+1),ROWS(Database_Prop!R$2:'Database_Prop'!R134))),\"\")","v":""},{"$f":"IFERROR(INDEX(Database_Prop!$B$2:$B$1498,SMALL(IF(Database_Prop!$A$2:$A$1498=AV$129,ROW(Database_Prop!$B$2:$B$1498)-ROW(Database_Prop!$B$2)+1),ROWS(Database_Prop!S$2:'Database_Prop'!S134))),\"\")","v":""},{"$f":"IFERROR(INDEX(Database_Prop!$B$2:$B$1498,SMALL(IF(Database_Prop!$A$2:$A$1498=AW$129,ROW(Database_Prop!$B$2:$B$1498)-ROW(Database_Prop!$B$2)+1),ROWS(Database_Prop!T$2:'Database_Prop'!T134))),\"\")","v":""},{"$f":"IFERROR(INDEX(Database_Prop!$B$2:$B$1498,SMALL(IF(Database_Prop!$A$2:$A$1498=AX$129,ROW(Database_Prop!$B$2:$B$1498)-ROW(Database_Prop!$B$2)+1),ROWS(Database_Prop!U$2:'Database_Prop'!U134))),\"\")","v":""},{"$f":"IFERROR(INDEX(Database_Prop!$B$2:$B$1498,SMALL(IF(Database_Prop!$A$2:$A$1498=AY$129,ROW(Database_Prop!$B$2:$B$1498)-ROW(Database_Prop!$B$2)+1),ROWS(Database_Prop!V$2:'Database_Prop'!V134))),\"\")","v":""},{"$f":"IFERROR(INDEX(Database_Prop!$B$2:$B$1498,SMALL(IF(Database_Prop!$A$2:$A$1498=AZ$129,ROW(Database_Prop!$B$2:$B$1498)-ROW(Database_Prop!$B$2)+1),ROWS(Database_Prop!W$2:'Database_Prop'!W134))),\"\")","v":""},{"$f":"IFERROR(INDEX(Database_Prop!$B$2:$B$1498,SMALL(IF(Database_Prop!$A$2:$A$1498=BA$129,ROW(Database_Prop!$B$2:$B$1498)-ROW(Database_Prop!$B$2)+1),ROWS(Database_Prop!X$2:'Database_Prop'!X134))),\"\")","v":""},{"$f":"IFERROR(INDEX(Database_Prop!$B$2:$B$1498,SMALL(IF(Database_Prop!$A$2:$A$1498=BB$129,ROW(Database_Prop!$B$2:$B$1498)-ROW(Database_Prop!$B$2)+1),ROWS(Database_Prop!Y$2:'Database_Prop'!Y134))),\"\")","v":""},{"$f":"IFERROR(INDEX(Database_Prop!$B$2:$B$1498,SMALL(IF(Database_Prop!$A$2:$A$1498=BC$129,ROW(Database_Prop!$B$2:$B$1498)-ROW(Database_Prop!$B$2)+1),ROWS(Database_Prop!Z$2:'Database_Prop'!Z134))),\"\")","v":""},null,"Mexico","Latin America"]
[null,null,null,null,null,null,null,null,null,null,null,null,null,null,null,null,null,null,null,null,null,null,null,null,null,null,null,null,null,null,135,{"$f":"IFERROR(INDEX(Database_Prop!$B$2:$B$1498,SMALL(IF(Database_Prop!$A$2:$A$1498=AF$129,ROW(Database_Prop!$B$2:$B$1498)-ROW(Database_Prop!$B$2)+1),ROWS(Database_Prop!C$2:'Database_Prop'!C135))),\"\")","v":""},{"$f":"IFERROR(INDEX(Database_Prop!$B$2:$B$1498,SMALL(IF(Database_Prop!$A$2:$A$1498=AG$129,ROW(Database_Prop!$B$2:$B$1498)-ROW(Database_Prop!$B$2)+1),ROWS(Database_Prop!D$2:'Database_Prop'!D135))),\"\")","v":""},{"$f":"IFERROR(INDEX(Database_Prop!$B$2:$B$1498,SMALL(IF(Database_Prop!$A$2:$A$1498=AH$129,ROW(Database_Prop!$B$2:$B$1498)-ROW(Database_Prop!$B$2)+1),ROWS(Database_Prop!E$2:'Database_Prop'!E135))),\"\")","v":""},{"$f":"IFERROR(INDEX(Database_Prop!$B$2:$B$1498,SMALL(IF(Database_Prop!$A$2:$A$1498=AI$129,ROW(Database_Prop!$B$2:$B$1498)-ROW(Database_Prop!$B$2)+1),ROWS(Database_Prop!F$2:'Database_Prop'!F135))),\"\")","v":""},{"$f":"IFERROR(INDEX(Database_Prop!$B$2:$B$1498,SMALL(IF(Database_Prop!$A$2:$A$1498=AJ$129,ROW(Database_Prop!$B$2:$B$1498)-ROW(Database_Prop!$B$2)+1),ROWS(Database_Prop!G$2:'Database_Prop'!G135))),\"\")","v":""},{"$f":"IFERROR(INDEX(Database_Prop!$B$2:$B$1498,SMALL(IF(Database_Prop!$A$2:$A$1498=AK$129,ROW(Database_Prop!$B$2:$B$1498)-ROW(Database_Prop!$B$2)+1),ROWS(Database_Prop!H$2:'Database_Prop'!H135))),\"\")","v":""},{"$f":"IFERROR(INDEX(Database_Prop!$B$2:$B$1498,SMALL(IF(Database_Prop!$A$2:$A$1498=AL$129,ROW(Database_Prop!$B$2:$B$1498)-ROW(Database_Prop!$B$2)+1),ROWS(Database_Prop!I$2:'Database_Prop'!I135))),\"\")","v":""},{"$f":"IFERROR(INDEX(Database_Prop!$B$2:$B$1498,SMALL(IF(Database_Prop!$A$2:$A$1498=AM$129,ROW(Database_Prop!$B$2:$B$1498)-ROW(Database_Prop!$B$2)+1),ROWS(Database_Prop!J$2:'Database_Prop'!J135))),\"\")","v":""},{"$f":"IFERROR(INDEX(Database_Prop!$B$2:$B$1498,SMALL(IF(Database_Prop!$A$2:$A$1498=AN$129,ROW(Database_Prop!$B$2:$B$1498)-ROW(Database_Prop!$B$2)+1),ROWS(Database_Prop!K$2:'Database_Prop'!K135))),\"\")","v":""},{"$f":"IFERROR(INDEX(Database_Prop!$B$2:$B$1498,SMALL(IF(Database_Prop!$A$2:$A$1498=AO$129,ROW(Database_Prop!$B$2:$B$1498)-ROW(Database_Prop!$B$2)+1),ROWS(Database_Prop!L$2:'Database_Prop'!L135))),\"\")","v":""},{"$f":"IFERROR(INDEX(Database_Prop!$B$2:$B$1498,SMALL(IF(Database_Prop!$A$2:$A$1498=AP$129,ROW(Database_Prop!$B$2:$B$1498)-ROW(Database_Prop!$B$2)+1),ROWS(Database_Prop!M$2:'Database_Prop'!M135))),\"\")","v":""},{"$f":"IFERROR(INDEX(Database_Prop!$B$2:$B$1498,SMALL(IF(Database_Prop!$A$2:$A$1498=AQ$129,ROW(Database_Prop!$B$2:$B$1498)-ROW(Database_Prop!$B$2)+1),ROWS(Database_Prop!N$2:'Database_Prop'!N135))),\"\")","v":""},{"$f":"IFERROR(INDEX(Database_Prop!$B$2:$B$1498,SMALL(IF(Database_Prop!$A$2:$A$1498=AR$129,ROW(Database_Prop!$B$2:$B$1498)-ROW(Database_Prop!$B$2)+1),ROWS(Database_Prop!O$2:'Database_Prop'!O135))),\"\")","v":""},{"$f":"IFERROR(INDEX(Database_Prop!$B$2:$B$1498,SMALL(IF(Database_Prop!$A$2:$A$1498=AS$129,ROW(Database_Prop!$B$2:$B$1498)-ROW(Database_Prop!$B$2)+1),ROWS(Database_Prop!P$2:'Database_Prop'!P135))),\"\")","v":""},{"$f":"IFERROR(INDEX(Database_Prop!$B$2:$B$1498,SMALL(IF(Database_Prop!$A$2:$A$1498=AT$129,ROW(Database_Prop!$B$2:$B$1498)-ROW(Database_Prop!$B$2)+1),ROWS(Database_Prop!Q$2:'Database_Prop'!Q135))),\"\")","v":""},{"$f":"IFERROR(INDEX(Database_Prop!$B$2:$B$1498,SMALL(IF(Database_Prop!$A$2:$A$1498=AU$129,ROW(Database_Prop!$B$2:$B$1498)-ROW(Database_Prop!$B$2)+1),ROWS(Database_Prop!R$2:'Database_Prop'!R135))),\"\")","v":""},{"$f":"IFERROR(INDEX(Database_Prop!$B$2:$B$1498,SMALL(IF(Database_Prop!$A$2:$A$1498=AV$129,ROW(Database_Prop!$B$2:$B$1498)-ROW(Database_Prop!$B$2)+1),ROWS(Database_Prop!S$2:'Database_Prop'!S135))),\"\")","v":""},{"$f":"IFERROR(INDEX(Database_Prop!$B$2:$B$1498,SMALL(IF(Database_Prop!$A$2:$A$1498=AW$129,ROW(Database_Prop!$B$2:$B$1498)-ROW(Database_Prop!$B$2)+1),ROWS(Database_Prop!T$2:'Database_Prop'!T135))),\"\")","v":""},{"$f":"IFERROR(INDEX(Database_Prop!$B$2:$B$1498,SMALL(IF(Database_Prop!$A$2:$A$1498=AX$129,ROW(Database_Prop!$B$2:$B$1498)-ROW(Database_Prop!$B$2)+1),ROWS(Database_Prop!U$2:'Database_Prop'!U135))),\"\")","v":""},{"$f":"IFERROR(INDEX(Database_Prop!$B$2:$B$1498,SMALL(IF(Database_Prop!$A$2:$A$1498=AY$129,ROW(Database_Prop!$B$2:$B$1498)-ROW(Database_Prop!$B$2)+1),ROWS(Database_Prop!V$2:'Database_Prop'!V135))),\"\")","v":""},{"$f":"IFERROR(INDEX(Database_Prop!$B$2:$B$1498,SMALL(IF(Database_Prop!$A$2:$A$1498=AZ$129,ROW(Database_Prop!$B$2:$B$1498)-ROW(Database_Prop!$B$2)+1),ROWS(Database_Prop!W$2:'Database_Prop'!W135))),\"\")","v":""},{"$f":"IFERROR(INDEX(Database_Prop!$B$2:$B$1498,SMALL(IF(Database_Prop!$A$2:$A$1498=BA$129,ROW(Database_Prop!$B$2:$B$1498)-ROW(Database_Prop!$B$2)+1),ROWS(Database_Prop!X$2:'Database_Prop'!X135))),\"\")","v":""},{"$f":"IFERROR(INDEX(Database_Prop!$B$2:$B$1498,SMALL(IF(Database_Prop!$A$2:$A$1498=BB$129,ROW(Database_Prop!$B$2:$B$1498)-ROW(Database_Prop!$B$2)+1),ROWS(Database_Prop!Y$2:'Database_Prop'!Y135))),\"\")","v":""},{"$f":"IFERROR(INDEX(Database_Prop!$B$2:$B$1498,SMALL(IF(Database_Prop!$A$2:$A$1498=BC$129,ROW(Database_Prop!$B$2:$B$1498)-ROW(Database_Prop!$B$2)+1),ROWS(Database_Prop!Z$2:'Database_Prop'!Z135))),\"\")","v":""},null,"Micronesia (Federated States of)","Oceania"]
[null,null,null,null,null,null,null,null,null,null,null,null,null,null,null,null,null,null,null,null,null,null,null,null,null,null,null,null,null,null,136,{"$f":"IFERROR(INDEX(Database_Prop!$B$2:$B$1498,SMALL(IF(Database_Prop!$A$2:$A$1498=AF$129,ROW(Database_Prop!$B$2:$B$1498)-ROW(Database_Prop!$B$2)+1),ROWS(Database_Prop!C$2:'Database_Prop'!C136))),\"\")","v":""},{"$f":"IFERROR(INDEX(Database_Prop!$B$2:$B$1498,SMALL(IF(Database_Prop!$A$2:$A$1498=AG$129,ROW(Database_Prop!$B$2:$B$1498)-ROW(Database_Prop!$B$2)+1),ROWS(Database_Prop!D$2:'Database_Prop'!D136))),\"\")","v":""},{"$f":"IFERROR(INDEX(Database_Prop!$B$2:$B$1498,SMALL(IF(Database_Prop!$A$2:$A$1498=AH$129,ROW(Database_Prop!$B$2:$B$1498)-ROW(Database_Prop!$B$2)+1),ROWS(Database_Prop!E$2:'Database_Prop'!E136))),\"\")","v":""},{"$f":"IFERROR(INDEX(Database_Prop!$B$2:$B$1498,SMALL(IF(Database_Prop!$A$2:$A$1498=AI$129,ROW(Database_Prop!$B$2:$B$1498)-ROW(Database_Prop!$B$2)+1),ROWS(Database_Prop!F$2:'Database_Prop'!F136))),\"\")","v":""},{"$f":"IFERROR(INDEX(Database_Prop!$B$2:$B$1498,SMALL(IF(Database_Prop!$A$2:$A$1498=AJ$129,ROW(Database_Prop!$B$2:$B$1498)-ROW(Database_Prop!$B$2)+1),ROWS(Database_Prop!G$2:'Database_Prop'!G136))),\"\")","v":""},{"$f":"IFERROR(INDEX(Database_Prop!$B$2:$B$1498,SMALL(IF(Database_Prop!$A$2:$A$1498=AK$129,ROW(Database_Prop!$B$2:$B$1498)-ROW(Database_Prop!$B$2)+1),ROWS(Database_Prop!H$2:'Database_Prop'!H136))),\"\")","v":""},{"$f":"IFERROR(INDEX(Database_Prop!$B$2:$B$1498,SMALL(IF(Database_Prop!$A$2:$A$1498=AL$129,ROW(Database_Prop!$B$2:$B$1498)-ROW(Database_Prop!$B$2)+1),ROWS(Database_Prop!I$2:'Database_Prop'!I136))),\"\")","v":""},{"$f":"IFERROR(INDEX(Database_Prop!$B$2:$B$1498,SMALL(IF(Database_Prop!$A$2:$A$1498=AM$129,ROW(Database_Prop!$B$2:$B$1498)-ROW(Database_Prop!$B$2)+1),ROWS(Database_Prop!J$2:'Database_Prop'!J136))),\"\")","v":""},{"$f":"IFERROR(INDEX(Database_Prop!$B$2:$B$1498,SMALL(IF(Database_Prop!$A$2:$A$1498=AN$129,ROW(Database_Prop!$B$2:$B$1498)-ROW(Database_Prop!$B$2)+1),ROWS(Database_Prop!K$2:'Database_Prop'!K136))),\"\")","v":""},{"$f":"IFERROR(INDEX(Database_Prop!$B$2:$B$1498,SMALL(IF(Database_Prop!$A$2:$A$1498=AO$129,ROW(Database_Prop!$B$2:$B$1498)-ROW(Database_Prop!$B$2)+1),ROWS(Database_Prop!L$2:'Database_Prop'!L136))),\"\")","v":""},{"$f":"IFERROR(INDEX(Database_Prop!$B$2:$B$1498,SMALL(IF(Database_Prop!$A$2:$A$1498=AP$129,ROW(Database_Prop!$B$2:$B$1498)-ROW(Database_Prop!$B$2)+1),ROWS(Database_Prop!M$2:'Database_Prop'!M136))),\"\")","v":""},{"$f":"IFERROR(INDEX(Database_Prop!$B$2:$B$1498,SMALL(IF(Database_Prop!$A$2:$A$1498=AQ$129,ROW(Database_Prop!$B$2:$B$1498)-ROW(Database_Prop!$B$2)+1),ROWS(Database_Prop!N$2:'Database_Prop'!N136))),\"\")","v":""},{"$f":"IFERROR(INDEX(Database_Prop!$B$2:$B$1498,SMALL(IF(Database_Prop!$A$2:$A$1498=AR$129,ROW(Database_Prop!$B$2:$B$1498)-ROW(Database_Prop!$B$2)+1),ROWS(Database_Prop!O$2:'Database_Prop'!O136))),\"\")","v":""},{"$f":"IFERROR(INDEX(Database_Prop!$B$2:$B$1498,SMALL(IF(Database_Prop!$A$2:$A$1498=AS$129,ROW(Database_Prop!$B$2:$B$1498)-ROW(Database_Prop!$B$2)+1),ROWS(Database_Prop!P$2:'Database_Prop'!P136))),\"\")","v":""},{"$f":"IFERROR(INDEX(Database_Prop!$B$2:$B$1498,SMALL(IF(Database_Prop!$A$2:$A$1498=AT$129,ROW(Database_Prop!$B$2:$B$1498)-ROW(Database_Prop!$B$2)+1),ROWS(Database_Prop!Q$2:'Database_Prop'!Q136))),\"\")","v":""},{"$f":"IFERROR(INDEX(Database_Prop!$B$2:$B$1498,SMALL(IF(Database_Prop!$A$2:$A$1498=AU$129,ROW(Database_Prop!$B$2:$B$1498)-ROW(Database_Prop!$B$2)+1),ROWS(Database_Prop!R$2:'Database_Prop'!R136))),\"\")","v":""},{"$f":"IFERROR(INDEX(Database_Prop!$B$2:$B$1498,SMALL(IF(Database_Prop!$A$2:$A$1498=AV$129,ROW(Database_Prop!$B$2:$B$1498)-ROW(Database_Prop!$B$2)+1),ROWS(Database_Prop!S$2:'Database_Prop'!S136))),\"\")","v":""},{"$f":"IFERROR(INDEX(Database_Prop!$B$2:$B$1498,SMALL(IF(Database_Prop!$A$2:$A$1498=AW$129,ROW(Database_Prop!$B$2:$B$1498)-ROW(Database_Prop!$B$2)+1),ROWS(Database_Prop!T$2:'Database_Prop'!T136))),\"\")","v":""},{"$f":"IFERROR(INDEX(Database_Prop!$B$2:$B$1498,SMALL(IF(Database_Prop!$A$2:$A$1498=AX$129,ROW(Database_Prop!$B$2:$B$1498)-ROW(Database_Prop!$B$2)+1),ROWS(Database_Prop!U$2:'Database_Prop'!U136))),\"\")","v":""},{"$f":"IFERROR(INDEX(Database_Prop!$B$2:$B$1498,SMALL(IF(Database_Prop!$A$2:$A$1498=AY$129,ROW(Database_Prop!$B$2:$B$1498)-ROW(Database_Prop!$B$2)+1),ROWS(Database_Prop!V$2:'Database_Prop'!V136))),\"\")","v":""},{"$f":"IFERROR(INDEX(Database_Prop!$B$2:$B$1498,SMALL(IF(Database_Prop!$A$2:$A$1498=AZ$129,ROW(Database_Prop!$B$2:$B$1498)-ROW(Database_Prop!$B$2)+1),ROWS(Database_Prop!W$2:'Database_Prop'!W136))),\"\")","v":""},{"$f":"IFERROR(INDEX(Database_Prop!$B$2:$B$1498,SMALL(IF(Database_Prop!$A$2:$A$1498=BA$129,ROW(Database_Prop!$B$2:$B$1498)-ROW(Database_Prop!$B$2)+1),ROWS(Database_Prop!X$2:'Database_Prop'!X136))),\"\")","v":""},{"$f":"IFERROR(INDEX(Database_Prop!$B$2:$B$1498,SMALL(IF(Database_Prop!$A$2:$A$1498=BB$129,ROW(Database_Prop!$B$2:$B$1498)-ROW(Database_Prop!$B$2)+1),ROWS(Database_Prop!Y$2:'Database_Prop'!Y136))),\"\")","v":""},{"$f":"IFERROR(INDEX(Database_Prop!$B$2:$B$1498,SMALL(IF(Database_Prop!$A$2:$A$1498=BC$129,ROW(Database_Prop!$B$2:$B$1498)-ROW(Database_Prop!$B$2)+1),ROWS(Database_Prop!Z$2:'Database_Prop'!Z136))),\"\")","v":""},null,"Monaco","Western Europe"]
[null,null,null,null,null,null,null,null,null,null,null,null,null,null,null,null,null,null,null,null,null,null,null,null,null,null,null,null,null,null,137,{"$f":"IFERROR(INDEX(Database_Prop!$B$2:$B$1498,SMALL(IF(Database_Prop!$A$2:$A$1498=AF$129,ROW(Database_Prop!$B$2:$B$1498)-ROW(Database_Prop!$B$2)+1),ROWS(Database_Prop!C$2:'Database_Prop'!C137))),\"\")","v":""},{"$f":"IFERROR(INDEX(Database_Prop!$B$2:$B$1498,SMALL(IF(Database_Prop!$A$2:$A$1498=AG$129,ROW(Database_Prop!$B$2:$B$1498)-ROW(Database_Prop!$B$2)+1),ROWS(Database_Prop!D$2:'Database_Prop'!D137))),\"\")","v":""},{"$f":"IFERROR(INDEX(Database_Prop!$B$2:$B$1498,SMALL(IF(Database_Prop!$A$2:$A$1498=AH$129,ROW(Database_Prop!$B$2:$B$1498)-ROW(Database_Prop!$B$2)+1),ROWS(Database_Prop!E$2:'Database_Prop'!E137))),\"\")","v":""},{"$f":"IFERROR(INDEX(Database_Prop!$B$2:$B$1498,SMALL(IF(Database_Prop!$A$2:$A$1498=AI$129,ROW(Database_Prop!$B$2:$B$1498)-ROW(Database_Prop!$B$2)+1),ROWS(Database_Prop!F$2:'Database_Prop'!F137))),\"\")","v":""},{"$f":"IFERROR(INDEX(Database_Prop!$B$2:$B$1498,SMALL(IF(Database_Prop!$A$2:$A$1498=AJ$129,ROW(Database_Prop!$B$2:$B$1498)-ROW(Database_Prop!$B$2)+1),ROWS(Database_Prop!G$2:'Database_Prop'!G137))),\"\")","v":""},{"$f":"IFERROR(INDEX(Database_Prop!$B$2:$B$1498,SMALL(IF(Database_Prop!$A$2:$A$1498=AK$129,ROW(Database_Prop!$B$2:$B$1498)-ROW(Database_Prop!$B$2)+1),ROWS(Database_Prop!H$2:'Database_Prop'!H137))),\"\")","v":""},{"$f":"IFERROR(INDEX(Database_Prop!$B$2:$B$1498,SMALL(IF(Database_Prop!$A$2:$A$1498=AL$129,ROW(Database_Prop!$B$2:$B$1498)-ROW(Database_Prop!$B$2)+1),ROWS(Database_Prop!I$2:'Database_Prop'!I137))),\"\")","v":""},{"$f":"IFERROR(INDEX(Database_Prop!$B$2:$B$1498,SMALL(IF(Database_Prop!$A$2:$A$1498=AM$129,ROW(Database_Prop!$B$2:$B$1498)-ROW(Database_Prop!$B$2)+1),ROWS(Database_Prop!J$2:'Database_Prop'!J137))),\"\")","v":""},{"$f":"IFERROR(INDEX(Database_Prop!$B$2:$B$1498,SMALL(IF(Database_Prop!$A$2:$A$1498=AN$129,ROW(Database_Prop!$B$2:$B$1498)-ROW(Database_Prop!$B$2)+1),ROWS(Database_Prop!K$2:'Database_Prop'!K137))),\"\")","v":""},{"$f":"IFERROR(INDEX(Database_Prop!$B$2:$B$1498,SMALL(IF(Database_Prop!$A$2:$A$1498=AO$129,ROW(Database_Prop!$B$2:$B$1498)-ROW(Database_Prop!$B$2)+1),ROWS(Database_Prop!L$2:'Database_Prop'!L137))),\"\")","v":""},{"$f":"IFERROR(INDEX(Database_Prop!$B$2:$B$1498,SMALL(IF(Database_Prop!$A$2:$A$1498=AP$129,ROW(Database_Prop!$B$2:$B$1498)-ROW(Database_Prop!$B$2)+1),ROWS(Database_Prop!M$2:'Database_Prop'!M137))),\"\")","v":""},{"$f":"IFERROR(INDEX(Database_Prop!$B$2:$B$1498,SMALL(IF(Database_Prop!$A$2:$A$1498=AQ$129,ROW(Database_Prop!$B$2:$B$1498)-ROW(Database_Prop!$B$2)+1),ROWS(Database_Prop!N$2:'Database_Prop'!N137))),\"\")","v":""},{"$f":"IFERROR(INDEX(Database_Prop!$B$2:$B$1498,SMALL(IF(Database_Prop!$A$2:$A$1498=AR$129,ROW(Database_Prop!$B$2:$B$1498)-ROW(Database_Prop!$B$2)+1),ROWS(Database_Prop!O$2:'Database_Prop'!O137))),\"\")","v":""},{"$f":"IFERROR(INDEX(Database_Prop!$B$2:$B$1498,SMALL(IF(Database_Prop!$A$2:$A$1498=AS$129,ROW(Database_Prop!$B$2:$B$1498)-ROW(Database_Prop!$B$2)+1),ROWS(Database_Prop!P$2:'Database_Prop'!P137))),\"\")","v":""},{"$f":"IFERROR(INDEX(Database_Prop!$B$2:$B$1498,SMALL(IF(Database_Prop!$A$2:$A$1498=AT$129,ROW(Database_Prop!$B$2:$B$1498)-ROW(Database_Prop!$B$2)+1),ROWS(Database_Prop!Q$2:'Database_Prop'!Q137))),\"\")","v":""},{"$f":"IFERROR(INDEX(Database_Prop!$B$2:$B$1498,SMALL(IF(Database_Prop!$A$2:$A$1498=AU$129,ROW(Database_Prop!$B$2:$B$1498)-ROW(Database_Prop!$B$2)+1),ROWS(Database_Prop!R$2:'Database_Prop'!R137))),\"\")","v":""},{"$f":"IFERROR(INDEX(Database_Prop!$B$2:$B$1498,SMALL(IF(Database_Prop!$A$2:$A$1498=AV$129,ROW(Database_Prop!$B$2:$B$1498)-ROW(Database_Prop!$B$2)+1),ROWS(Database_Prop!S$2:'Database_Prop'!S137))),\"\")","v":""},{"$f":"IFERROR(INDEX(Database_Prop!$B$2:$B$1498,SMALL(IF(Database_Prop!$A$2:$A$1498=AW$129,ROW(Database_Prop!$B$2:$B$1498)-ROW(Database_Prop!$B$2)+1),ROWS(Database_Prop!T$2:'Database_Prop'!T137))),\"\")","v":""},{"$f":"IFERROR(INDEX(Database_Prop!$B$2:$B$1498,SMALL(IF(Database_Prop!$A$2:$A$1498=AX$129,ROW(Database_Prop!$B$2:$B$1498)-ROW(Database_Prop!$B$2)+1),ROWS(Database_Prop!U$2:'Database_Prop'!U137))),\"\")","v":""},{"$f":"IFERROR(INDEX(Database_Prop!$B$2:$B$1498,SMALL(IF(Database_Prop!$A$2:$A$1498=AY$129,ROW(Database_Prop!$B$2:$B$1498)-ROW(Database_Prop!$B$2)+1),ROWS(Database_Prop!V$2:'Database_Prop'!V137))),\"\")","v":""},{"$f":"IFERROR(INDEX(Database_Prop!$B$2:$B$1498,SMALL(IF(Database_Prop!$A$2:$A$1498=AZ$129,ROW(Database_Prop!$B$2:$B$1498)-ROW(Database_Prop!$B$2)+1),ROWS(Database_Prop!W$2:'Database_Prop'!W137))),\"\")","v":""},{"$f":"IFERROR(INDEX(Database_Prop!$B$2:$B$1498,SMALL(IF(Database_Prop!$A$2:$A$1498=BA$129,ROW(Database_Prop!$B$2:$B$1498)-ROW(Database_Prop!$B$2)+1),ROWS(Database_Prop!X$2:'Database_Prop'!X137))),\"\")","v":""},{"$f":"IFERROR(INDEX(Database_Prop!$B$2:$B$1498,SMALL(IF(Database_Prop!$A$2:$A$1498=BB$129,ROW(Database_Prop!$B$2:$B$1498)-ROW(Database_Prop!$B$2)+1),ROWS(Database_Prop!Y$2:'Database_Prop'!Y137))),\"\")","v":""},{"$f":"IFERROR(INDEX(Database_Prop!$B$2:$B$1498,SMALL(IF(Database_Prop!$A$2:$A$1498=BC$129,ROW(Database_Prop!$B$2:$B$1498)-ROW(Database_Prop!$B$2)+1),ROWS(Database_Prop!Z$2:'Database_Prop'!Z137))),\"\")","v":""},null,"Mongolia","Asia"]
[null,null,null,null,null,null,null,null,null,null,null,null,null,null,null,null,null,null,null,null,null,null,null,null,null,null,null,null,null,null,138,{"$f":"IFERROR(INDEX(Database_Prop!$B$2:$B$1498,SMALL(IF(Database_Prop!$A$2:$A$1498=AF$129,ROW(Database_Prop!$B$2:$B$1498)-ROW(Database_Prop!$B$2)+1),ROWS(Database_Prop!C$2:'Database_Prop'!C138))),\"\")","v":""},{"$f":"IFERROR(INDEX(Database_Prop!$B$2:$B$1498,SMALL(IF(Database_Prop!$A$2:$A$1498=AG$129,ROW(Database_Prop!$B$2:$B$1498)-ROW(Database_Prop!$B$2)+1),ROWS(Database_Prop!D$2:'Database_Prop'!D138))),\"\")","v":""},{"$f":"IFERROR(INDEX(Database_Prop!$B$2:$B$1498,SMALL(IF(Database_Prop!$A$2:$A$1498=AH$129,ROW(Database_Prop!$B$2:$B$1498)-ROW(Database_Prop!$B$2)+1),ROWS(Database_Prop!E$2:'Database_Prop'!E138))),\"\")","v":""},{"$f":"IFERROR(INDEX(Database_Prop!$B$2:$B$1498,SMALL(IF(Database_Prop!$A$2:$A$1498=AI$129,ROW(Database_Prop!$B$2:$B$1498)-ROW(Database_Prop!$B$2)+1),ROWS(Database_Prop!F$2:'Database_Prop'!F138))),\"\")","v":""},{"$f":"IFERROR(INDEX(Database_Prop!$B$2:$B$1498,SMALL(IF(Database_Prop!$A$2:$A$1498=AJ$129,ROW(Database_Prop!$B$2:$B$1498)-ROW(Database_Prop!$B$2)+1),ROWS(Database_Prop!G$2:'Database_Prop'!G138))),\"\")","v":""},{"$f":"IFERROR(INDEX(Database_Prop!$B$2:$B$1498,SMALL(IF(Database_Prop!$A$2:$A$1498=AK$129,ROW(Database_Prop!$B$2:$B$1498)-ROW(Database_Prop!$B$2)+1),ROWS(Database_Prop!H$2:'Database_Prop'!H138))),\"\")","v":""},{"$f":"IFERROR(INDEX(Database_Prop!$B$2:$B$1498,SMALL(IF(Database_Prop!$A$2:$A$1498=AL$129,ROW(Database_Prop!$B$2:$B$1498)-ROW(Database_Prop!$B$2)+1),ROWS(Database_Prop!I$2:'Database_Prop'!I138))),\"\")","v":""},{"$f":"IFERROR(INDEX(Database_Prop!$B$2:$B$1498,SMALL(IF(Database_Prop!$A$2:$A$1498=AM$129,ROW(Database_Prop!$B$2:$B$1498)-ROW(Database_Prop!$B$2)+1),ROWS(Database_Prop!J$2:'Database_Prop'!J138))),\"\")","v":""},{"$f":"IFERROR(INDEX(Database_Prop!$B$2:$B$1498,SMALL(IF(Database_Prop!$A$2:$A$1498=AN$129,ROW(Database_Prop!$B$2:$B$1498)-ROW(Database_Prop!$B$2)+1),ROWS(Database_Prop!K$2:'Database_Prop'!K138))),\"\")","v":""},{"$f":"IFERROR(INDEX(Database_Prop!$B$2:$B$1498,SMALL(IF(Database_Prop!$A$2:$A$1498=AO$129,ROW(Database_Prop!$B$2:$B$1498)-ROW(Database_Prop!$B$2)+1),ROWS(Database_Prop!L$2:'Database_Prop'!L138))),\"\")","v":""},{"$f":"IFERROR(INDEX(Database_Prop!$B$2:$B$1498,SMALL(IF(Database_Prop!$A$2:$A$1498=AP$129,ROW(Database_Prop!$B$2:$B$1498)-ROW(Database_Prop!$B$2)+1),ROWS(Database_Prop!M$2:'Database_Prop'!M138))),\"\")","v":""},{"$f":"IFERROR(INDEX(Database_Prop!$B$2:$B$1498,SMALL(IF(Database_Prop!$A$2:$A$1498=AQ$129,ROW(Database_Prop!$B$2:$B$1498)-ROW(Database_Prop!$B$2)+1),ROWS(Database_Prop!N$2:'Database_Prop'!N138))),\"\")","v":""},{"$f":"IFERROR(INDEX(Database_Prop!$B$2:$B$1498,SMALL(IF(Database_Prop!$A$2:$A$1498=AR$129,ROW(Database_Prop!$B$2:$B$1498)-ROW(Database_Prop!$B$2)+1),ROWS(Database_Prop!O$2:'Database_Prop'!O138))),\"\")","v":""},{"$f":"IFERROR(INDEX(Database_Prop!$B$2:$B$1498,SMALL(IF(Database_Prop!$A$2:$A$1498=AS$129,ROW(Database_Prop!$B$2:$B$1498)-ROW(Database_Prop!$B$2)+1),ROWS(Database_Prop!P$2:'Database_Prop'!P138))),\"\")","v":""},{"$f":"IFERROR(INDEX(Database_Prop!$B$2:$B$1498,SMALL(IF(Database_Prop!$A$2:$A$1498=AT$129,ROW(Database_Prop!$B$2:$B$1498)-ROW(Database_Prop!$B$2)+1),ROWS(Database_Prop!Q$2:'Database_Prop'!Q138))),\"\")","v":""},{"$f":"IFERROR(INDEX(Database_Prop!$B$2:$B$1498,SMALL(IF(Database_Prop!$A$2:$A$1498=AU$129,ROW(Database_Prop!$B$2:$B$1498)-ROW(Database_Prop!$B$2)+1),ROWS(Database_Prop!R$2:'Database_Prop'!R138))),\"\")","v":""},{"$f":"IFERROR(INDEX(Database_Prop!$B$2:$B$1498,SMALL(IF(Database_Prop!$A$2:$A$1498=AV$129,ROW(Database_Prop!$B$2:$B$1498)-ROW(Database_Prop!$B$2)+1),ROWS(Database_Prop!S$2:'Database_Prop'!S138))),\"\")","v":""},{"$f":"IFERROR(INDEX(Database_Prop!$B$2:$B$1498,SMALL(IF(Database_Prop!$A$2:$A$1498=AW$129,ROW(Database_Prop!$B$2:$B$1498)-ROW(Database_Prop!$B$2)+1),ROWS(Database_Prop!T$2:'Database_Prop'!T138))),\"\")","v":""},{"$f":"IFERROR(INDEX(Database_Prop!$B$2:$B$1498,SMALL(IF(Database_Prop!$A$2:$A$1498=AX$129,ROW(Database_Prop!$B$2:$B$1498)-ROW(Database_Prop!$B$2)+1),ROWS(Database_Prop!U$2:'Database_Prop'!U138))),\"\")","v":""},{"$f":"IFERROR(INDEX(Database_Prop!$B$2:$B$1498,SMALL(IF(Database_Prop!$A$2:$A$1498=AY$129,ROW(Database_Prop!$B$2:$B$1498)-ROW(Database_Prop!$B$2)+1),ROWS(Database_Prop!V$2:'Database_Prop'!V138))),\"\")","v":""},{"$f":"IFERROR(INDEX(Database_Prop!$B$2:$B$1498,SMALL(IF(Database_Prop!$A$2:$A$1498=AZ$129,ROW(Database_Prop!$B$2:$B$1498)-ROW(Database_Prop!$B$2)+1),ROWS(Database_Prop!W$2:'Database_Prop'!W138))),\"\")","v":""},{"$f":"IFERROR(INDEX(Database_Prop!$B$2:$B$1498,SMALL(IF(Database_Prop!$A$2:$A$1498=BA$129,ROW(Database_Prop!$B$2:$B$1498)-ROW(Database_Prop!$B$2)+1),ROWS(Database_Prop!X$2:'Database_Prop'!X138))),\"\")","v":""},{"$f":"IFERROR(INDEX(Database_Prop!$B$2:$B$1498,SMALL(IF(Database_Prop!$A$2:$A$1498=BB$129,ROW(Database_Prop!$B$2:$B$1498)-ROW(Database_Prop!$B$2)+1),ROWS(Database_Prop!Y$2:'Database_Prop'!Y138))),\"\")","v":""},{"$f":"IFERROR(INDEX(Database_Prop!$B$2:$B$1498,SMALL(IF(Database_Prop!$A$2:$A$1498=BC$129,ROW(Database_Prop!$B$2:$B$1498)-ROW(Database_Prop!$B$2)+1),ROWS(Database_Prop!Z$2:'Database_Prop'!Z138))),\"\")","v":""},null,"Montenegro","Eastern Europe"]
[null,null,null,null,null,null,null,null,null,null,null,null,null,null,null,null,null,null,null,null,null,null,null,null,null,null,null,null,null,null,139,{"$f":"IFERROR(INDEX(Database_Prop!$B$2:$B$1498,SMALL(IF(Database_Prop!$A$2:$A$1498=AF$129,ROW(Database_Prop!$B$2:$B$1498)-ROW(Database_Prop!$B$2)+1),ROWS(Database_Prop!C$2:'Database_Prop'!C139))),\"\")","v":""},{"$f":"IFERROR(INDEX(Database_Prop!$B$2:$B$1498,SMALL(IF(Database_Prop!$A$2:$A$1498=AG$129,ROW(Database_Prop!$B$2:$B$1498)-ROW(Database_Prop!$B$2)+1),ROWS(Database_Prop!D$2:'Database_Prop'!D139))),\"\")","v":""},{"$f":"IFERROR(INDEX(Database_Prop!$B$2:$B$1498,SMALL(IF(Database_Prop!$A$2:$A$1498=AH$129,ROW(Database_Prop!$B$2:$B$1498)-ROW(Database_Prop!$B$2)+1),ROWS(Database_Prop!E$2:'Database_Prop'!E139))),\"\")","v":""},{"$f":"IFERROR(INDEX(Database_Prop!$B$2:$B$1498,SMALL(IF(Database_Prop!$A$2:$A$1498=AI$129,ROW(Database_Prop!$B$2:$B$1498)-ROW(Database_Prop!$B$2)+1),ROWS(Database_Prop!F$2:'Database_Prop'!F139))),\"\")","v":""},{"$f":"IFERROR(INDEX(Database_Prop!$B$2:$B$1498,SMALL(IF(Database_Prop!$A$2:$A$1498=AJ$129,ROW(Database_Prop!$B$2:$B$1498)-ROW(Database_Prop!$B$2)+1),ROWS(Database_Prop!G$2:'Database_Prop'!G139))),\"\")","v":""},{"$f":"IFERROR(INDEX(Database_Prop!$B$2:$B$1498,SMALL(IF(Database_Prop!$A$2:$A$1498=AK$129,ROW(Database_Prop!$B$2:$B$1498)-ROW(Database_Prop!$B$2)+1),ROWS(Database_Prop!H$2:'Database_Prop'!H139))),\"\")","v":""},{"$f":"IFERROR(INDEX(Database_Prop!$B$2:$B$1498,SMALL(IF(Database_Prop!$A$2:$A$1498=AL$129,ROW(Database_Prop!$B$2:$B$1498)-ROW(Database_Prop!$B$2)+1),ROWS(Database_Prop!I$2:'Database_Prop'!I139))),\"\")","v":""},{"$f":"IFERROR(INDEX(Database_Prop!$B$2:$B$1498,SMALL(IF(Database_Prop!$A$2:$A$1498=AM$129,ROW(Database_Prop!$B$2:$B$1498)-ROW(Database_Prop!$B$2)+1),ROWS(Database_Prop!J$2:'Database_Prop'!J139))),\"\")","v":""},{"$f":"IFERROR(INDEX(Database_Prop!$B$2:$B$1498,SMALL(IF(Database_Prop!$A$2:$A$1498=AN$129,ROW(Database_Prop!$B$2:$B$1498)-ROW(Database_Prop!$B$2)+1),ROWS(Database_Prop!K$2:'Database_Prop'!K139))),\"\")","v":""},{"$f":"IFERROR(INDEX(Database_Prop!$B$2:$B$1498,SMALL(IF(Database_Prop!$A$2:$A$1498=AO$129,ROW(Database_Prop!$B$2:$B$1498)-ROW(Database_Prop!$B$2)+1),ROWS(Database_Prop!L$2:'Database_Prop'!L139))),\"\")","v":""},{"$f":"IFERROR(INDEX(Database_Prop!$B$2:$B$1498,SMALL(IF(Database_Prop!$A$2:$A$1498=AP$129,ROW(Database_Prop!$B$2:$B$1498)-ROW(Database_Prop!$B$2)+1),ROWS(Database_Prop!M$2:'Database_Prop'!M139))),\"\")","v":""},{"$f":"IFERROR(INDEX(Database_Prop!$B$2:$B$1498,SMALL(IF(Database_Prop!$A$2:$A$1498=AQ$129,ROW(Database_Prop!$B$2:$B$1498)-ROW(Database_Prop!$B$2)+1),ROWS(Database_Prop!N$2:'Database_Prop'!N139))),\"\")","v":""},{"$f":"IFERROR(INDEX(Database_Prop!$B$2:$B$1498,SMALL(IF(Database_Prop!$A$2:$A$1498=AR$129,ROW(Database_Prop!$B$2:$B$1498)-ROW(Database_Prop!$B$2)+1),ROWS(Database_Prop!O$2:'Database_Prop'!O139))),\"\")","v":""},{"$f":"IFERROR(INDEX(Database_Prop!$B$2:$B$1498,SMALL(IF(Database_Prop!$A$2:$A$1498=AS$129,ROW(Database_Prop!$B$2:$B$1498)-ROW(Database_Prop!$B$2)+1),ROWS(Database_Prop!P$2:'Database_Prop'!P139))),\"\")","v":""},{"$f":"IFERROR(INDEX(Database_Prop!$B$2:$B$1498,SMALL(IF(Database_Prop!$A$2:$A$1498=AT$129,ROW(Database_Prop!$B$2:$B$1498)-ROW(Database_Prop!$B$2)+1),ROWS(Database_Prop!Q$2:'Database_Prop'!Q139))),\"\")","v":""},{"$f":"IFERROR(INDEX(Database_Prop!$B$2:$B$1498,SMALL(IF(Database_Prop!$A$2:$A$1498=AU$129,ROW(Database_Prop!$B$2:$B$1498)-ROW(Database_Prop!$B$2)+1),ROWS(Database_Prop!R$2:'Database_Prop'!R139))),\"\")","v":""},{"$f":"IFERROR(INDEX(Database_Prop!$B$2:$B$1498,SMALL(IF(Database_Prop!$A$2:$A$1498=AV$129,ROW(Database_Prop!$B$2:$B$1498)-ROW(Database_Prop!$B$2)+1),ROWS(Database_Prop!S$2:'Database_Prop'!S139))),\"\")","v":""},{"$f":"IFERROR(INDEX(Database_Prop!$B$2:$B$1498,SMALL(IF(Database_Prop!$A$2:$A$1498=AW$129,ROW(Database_Prop!$B$2:$B$1498)-ROW(Database_Prop!$B$2)+1),ROWS(Database_Prop!T$2:'Database_Prop'!T139))),\"\")","v":""},{"$f":"IFERROR(INDEX(Database_Prop!$B$2:$B$1498,SMALL(IF(Database_Prop!$A$2:$A$1498=AX$129,ROW(Database_Prop!$B$2:$B$1498)-ROW(Database_Prop!$B$2)+1),ROWS(Database_Prop!U$2:'Database_Prop'!U139))),\"\")","v":""},{"$f":"IFERROR(INDEX(Database_Prop!$B$2:$B$1498,SMALL(IF(Database_Prop!$A$2:$A$1498=AY$129,ROW(Database_Prop!$B$2:$B$1498)-ROW(Database_Prop!$B$2)+1),ROWS(Database_Prop!V$2:'Database_Prop'!V139))),\"\")","v":""},{"$f":"IFERROR(INDEX(Database_Prop!$B$2:$B$1498,SMALL(IF(Database_Prop!$A$2:$A$1498=AZ$129,ROW(Database_Prop!$B$2:$B$1498)-ROW(Database_Prop!$B$2)+1),ROWS(Database_Prop!W$2:'Database_Prop'!W139))),\"\")","v":""},{"$f":"IFERROR(INDEX(Database_Prop!$B$2:$B$1498,SMALL(IF(Database_Prop!$A$2:$A$1498=BA$129,ROW(Database_Prop!$B$2:$B$1498)-ROW(Database_Prop!$B$2)+1),ROWS(Database_Prop!X$2:'Database_Prop'!X139))),\"\")","v":""},{"$f":"IFERROR(INDEX(Database_Prop!$B$2:$B$1498,SMALL(IF(Database_Prop!$A$2:$A$1498=BB$129,ROW(Database_Prop!$B$2:$B$1498)-ROW(Database_Prop!$B$2)+1),ROWS(Database_Prop!Y$2:'Database_Prop'!Y139))),\"\")","v":""},{"$f":"IFERROR(INDEX(Database_Prop!$B$2:$B$1498,SMALL(IF(Database_Prop!$A$2:$A$1498=BC$129,ROW(Database_Prop!$B$2:$B$1498)-ROW(Database_Prop!$B$2)+1),ROWS(Database_Prop!Z$2:'Database_Prop'!Z139))),\"\")","v":""},null,"Montserrat","Latin America"]
[null,null,null,null,null,null,null,null,null,null,null,null,null,null,null,null,null,null,null,null,null,null,null,null,null,null,null,null,null,null,140,{"$f":"IFERROR(INDEX(Database_Prop!$B$2:$B$1498,SMALL(IF(Database_Prop!$A$2:$A$1498=AF$129,ROW(Database_Prop!$B$2:$B$1498)-ROW(Database_Prop!$B$2)+1),ROWS(Database_Prop!C$2:'Database_Prop'!C140))),\"\")","v":""},{"$f":"IFERROR(INDEX(Database_Prop!$B$2:$B$1498,SMALL(IF(Database_Prop!$A$2:$A$1498=AG$129,ROW(Database_Prop!$B$2:$B$1498)-ROW(Database_Prop!$B$2)+1),ROWS(Database_Prop!D$2:'Database_Prop'!D140))),\"\")","v":""},{"$f":"IFERROR(INDEX(Database_Prop!$B$2:$B$1498,SMALL(IF(Database_Prop!$A$2:$A$1498=AH$129,ROW(Database_Prop!$B$2:$B$1498)-ROW(Database_Prop!$B$2)+1),ROWS(Database_Prop!E$2:'Database_Prop'!E140))),\"\")","v":""},{"$f":"IFERROR(INDEX(Database_Prop!$B$2:$B$1498,SMALL(IF(Database_Prop!$A$2:$A$1498=AI$129,ROW(Database_Prop!$B$2:$B$1498)-ROW(Database_Prop!$B$2)+1),ROWS(Database_Prop!F$2:'Database_Prop'!F140))),\"\")","v":""},{"$f":"IFERROR(INDEX(Database_Prop!$B$2:$B$1498,SMALL(IF(Database_Prop!$A$2:$A$1498=AJ$129,ROW(Database_Prop!$B$2:$B$1498)-ROW(Database_Prop!$B$2)+1),ROWS(Database_Prop!G$2:'Database_Prop'!G140))),\"\")","v":""},{"$f":"IFERROR(INDEX(Database_Prop!$B$2:$B$1498,SMALL(IF(Database_Prop!$A$2:$A$1498=AK$129,ROW(Database_Prop!$B$2:$B$1498)-ROW(Database_Prop!$B$2)+1),ROWS(Database_Prop!H$2:'Database_Prop'!H140))),\"\")","v":""},{"$f":"IFERROR(INDEX(Database_Prop!$B$2:$B$1498,SMALL(IF(Database_Prop!$A$2:$A$1498=AL$129,ROW(Database_Prop!$B$2:$B$1498)-ROW(Database_Prop!$B$2)+1),ROWS(Database_Prop!I$2:'Database_Prop'!I140))),\"\")","v":""},{"$f":"IFERROR(INDEX(Database_Prop!$B$2:$B$1498,SMALL(IF(Database_Prop!$A$2:$A$1498=AM$129,ROW(Database_Prop!$B$2:$B$1498)-ROW(Database_Prop!$B$2)+1),ROWS(Database_Prop!J$2:'Database_Prop'!J140))),\"\")","v":""},{"$f":"IFERROR(INDEX(Database_Prop!$B$2:$B$1498,SMALL(IF(Database_Prop!$A$2:$A$1498=AN$129,ROW(Database_Prop!$B$2:$B$1498)-ROW(Database_Prop!$B$2)+1),ROWS(Database_Prop!K$2:'Database_Prop'!K140))),\"\")","v":""},{"$f":"IFERROR(INDEX(Database_Prop!$B$2:$B$1498,SMALL(IF(Database_Prop!$A$2:$A$1498=AO$129,ROW(Database_Prop!$B$2:$B$1498)-ROW(Database_Prop!$B$2)+1),ROWS(Database_Prop!L$2:'Database_Prop'!L140))),\"\")","v":""},{"$f":"IFERROR(INDEX(Database_Prop!$B$2:$B$1498,SMALL(IF(Database_Prop!$A$2:$A$1498=AP$129,ROW(Database_Prop!$B$2:$B$1498)-ROW(Database_Prop!$B$2)+1),ROWS(Database_Prop!M$2:'Database_Prop'!M140))),\"\")","v":""},{"$f":"IFERROR(INDEX(Database_Prop!$B$2:$B$1498,SMALL(IF(Database_Prop!$A$2:$A$1498=AQ$129,ROW(Database_Prop!$B$2:$B$1498)-ROW(Database_Prop!$B$2)+1),ROWS(Database_Prop!N$2:'Database_Prop'!N140))),\"\")","v":""},{"$f":"IFERROR(INDEX(Database_Prop!$B$2:$B$1498,SMALL(IF(Database_Prop!$A$2:$A$1498=AR$129,ROW(Database_Prop!$B$2:$B$1498)-ROW(Database_Prop!$B$2)+1),ROWS(Database_Prop!O$2:'Database_Prop'!O140))),\"\")","v":""},{"$f":"IFERROR(INDEX(Database_Prop!$B$2:$B$1498,SMALL(IF(Database_Prop!$A$2:$A$1498=AS$129,ROW(Database_Prop!$B$2:$B$1498)-ROW(Database_Prop!$B$2)+1),ROWS(Database_Prop!P$2:'Database_Prop'!P140))),\"\")","v":""},{"$f":"IFERROR(INDEX(Database_Prop!$B$2:$B$1498,SMALL(IF(Database_Prop!$A$2:$A$1498=AT$129,ROW(Database_Prop!$B$2:$B$1498)-ROW(Database_Prop!$B$2)+1),ROWS(Database_Prop!Q$2:'Database_Prop'!Q140))),\"\")","v":""},{"$f":"IFERROR(INDEX(Database_Prop!$B$2:$B$1498,SMALL(IF(Database_Prop!$A$2:$A$1498=AU$129,ROW(Database_Prop!$B$2:$B$1498)-ROW(Database_Prop!$B$2)+1),ROWS(Database_Prop!R$2:'Database_Prop'!R140))),\"\")","v":""},{"$f":"IFERROR(INDEX(Database_Prop!$B$2:$B$1498,SMALL(IF(Database_Prop!$A$2:$A$1498=AV$129,ROW(Database_Prop!$B$2:$B$1498)-ROW(Database_Prop!$B$2)+1),ROWS(Database_Prop!S$2:'Database_Prop'!S140))),\"\")","v":""},{"$f":"IFERROR(INDEX(Database_Prop!$B$2:$B$1498,SMALL(IF(Database_Prop!$A$2:$A$1498=AW$129,ROW(Database_Prop!$B$2:$B$1498)-ROW(Database_Prop!$B$2)+1),ROWS(Database_Prop!T$2:'Database_Prop'!T140))),\"\")","v":""},{"$f":"IFERROR(INDEX(Database_Prop!$B$2:$B$1498,SMALL(IF(Database_Prop!$A$2:$A$1498=AX$129,ROW(Database_Prop!$B$2:$B$1498)-ROW(Database_Prop!$B$2)+1),ROWS(Database_Prop!U$2:'Database_Prop'!U140))),\"\")","v":""},{"$f":"IFERROR(INDEX(Database_Prop!$B$2:$B$1498,SMALL(IF(Database_Prop!$A$2:$A$1498=AY$129,ROW(Database_Prop!$B$2:$B$1498)-ROW(Database_Prop!$B$2)+1),ROWS(Database_Prop!V$2:'Database_Prop'!V140))),\"\")","v":""},{"$f":"IFERROR(INDEX(Database_Prop!$B$2:$B$1498,SMALL(IF(Database_Prop!$A$2:$A$1498=AZ$129,ROW(Database_Prop!$B$2:$B$1498)-ROW(Database_Prop!$B$2)+1),ROWS(Database_Prop!W$2:'Database_Prop'!W140))),\"\")","v":""},{"$f":"IFERROR(INDEX(Database_Prop!$B$2:$B$1498,SMALL(IF(Database_Prop!$A$2:$A$1498=BA$129,ROW(Database_Prop!$B$2:$B$1498)-ROW(Database_Prop!$B$2)+1),ROWS(Database_Prop!X$2:'Database_Prop'!X140))),\"\")","v":""},{"$f":"IFERROR(INDEX(Database_Prop!$B$2:$B$1498,SMALL(IF(Database_Prop!$A$2:$A$1498=BB$129,ROW(Database_Prop!$B$2:$B$1498)-ROW(Database_Prop!$B$2)+1),ROWS(Database_Prop!Y$2:'Database_Prop'!Y140))),\"\")","v":""},{"$f":"IFERROR(INDEX(Database_Prop!$B$2:$B$1498,SMALL(IF(Database_Prop!$A$2:$A$1498=BC$129,ROW(Database_Prop!$B$2:$B$1498)-ROW(Database_Prop!$B$2)+1),ROWS(Database_Prop!Z$2:'Database_Prop'!Z140))),\"\")","v":""},null,"Morocco","Africa"]
[null,null,null,null,null,null,null,null,null,null,null,null,null,null,null,null,null,null,null,null,null,null,null,null,null,null,null,null,null,null,141,{"$f":"IFERROR(INDEX(Database_Prop!$B$2:$B$1498,SMALL(IF(Database_Prop!$A$2:$A$1498=AF$129,ROW(Database_Prop!$B$2:$B$1498)-ROW(Database_Prop!$B$2)+1),ROWS(Database_Prop!C$2:'Database_Prop'!C141))),\"\")","v":""},{"$f":"IFERROR(INDEX(Database_Prop!$B$2:$B$1498,SMALL(IF(Database_Prop!$A$2:$A$1498=AG$129,ROW(Database_Prop!$B$2:$B$1498)-ROW(Database_Prop!$B$2)+1),ROWS(Database_Prop!D$2:'Database_Prop'!D141))),\"\")","v":""},{"$f":"IFERROR(INDEX(Database_Prop!$B$2:$B$1498,SMALL(IF(Database_Prop!$A$2:$A$1498=AH$129,ROW(Database_Prop!$B$2:$B$1498)-ROW(Database_Prop!$B$2)+1),ROWS(Database_Prop!E$2:'Database_Prop'!E141))),\"\")","v":""},{"$f":"IFERROR(INDEX(Database_Prop!$B$2:$B$1498,SMALL(IF(Database_Prop!$A$2:$A$1498=AI$129,ROW(Database_Prop!$B$2:$B$1498)-ROW(Database_Prop!$B$2)+1),ROWS(Database_Prop!F$2:'Database_Prop'!F141))),\"\")","v":""},{"$f":"IFERROR(INDEX(Database_Prop!$B$2:$B$1498,SMALL(IF(Database_Prop!$A$2:$A$1498=AJ$129,ROW(Database_Prop!$B$2:$B$1498)-ROW(Database_Prop!$B$2)+1),ROWS(Database_Prop!G$2:'Database_Prop'!G141))),\"\")","v":""},{"$f":"IFERROR(INDEX(Database_Prop!$B$2:$B$1498,SMALL(IF(Database_Prop!$A$2:$A$1498=AK$129,ROW(Database_Prop!$B$2:$B$1498)-ROW(Database_Prop!$B$2)+1),ROWS(Database_Prop!H$2:'Database_Prop'!H141))),\"\")","v":""},{"$f":"IFERROR(INDEX(Database_Prop!$B$2:$B$1498,SMALL(IF(Database_Prop!$A$2:$A$1498=AL$129,ROW(Database_Prop!$B$2:$B$1498)-ROW(Database_Prop!$B$2)+1),ROWS(Database_Prop!I$2:'Database_Prop'!I141))),\"\")","v":""},{"$f":"IFERROR(INDEX(Database_Prop!$B$2:$B$1498,SMALL(IF(Database_Prop!$A$2:$A$1498=AM$129,ROW(Database_Prop!$B$2:$B$1498)-ROW(Database_Prop!$B$2)+1),ROWS(Database_Prop!J$2:'Database_Prop'!J141))),\"\")","v":""},{"$f":"IFERROR(INDEX(Database_Prop!$B$2:$B$1498,SMALL(IF(Database_Prop!$A$2:$A$1498=AN$129,ROW(Database_Prop!$B$2:$B$1498)-ROW(Database_Prop!$B$2)+1),ROWS(Database_Prop!K$2:'Database_Prop'!K141))),\"\")","v":""},{"$f":"IFERROR(INDEX(Database_Prop!$B$2:$B$1498,SMALL(IF(Database_Prop!$A$2:$A$1498=AO$129,ROW(Database_Prop!$B$2:$B$1498)-ROW(Database_Prop!$B$2)+1),ROWS(Database_Prop!L$2:'Database_Prop'!L141))),\"\")","v":""},{"$f":"IFERROR(INDEX(Database_Prop!$B$2:$B$1498,SMALL(IF(Database_Prop!$A$2:$A$1498=AP$129,ROW(Database_Prop!$B$2:$B$1498)-ROW(Database_Prop!$B$2)+1),ROWS(Database_Prop!M$2:'Database_Prop'!M141))),\"\")","v":""},{"$f":"IFERROR(INDEX(Database_Prop!$B$2:$B$1498,SMALL(IF(Database_Prop!$A$2:$A$1498=AQ$129,ROW(Database_Prop!$B$2:$B$1498)-ROW(Database_Prop!$B$2)+1),ROWS(Database_Prop!N$2:'Database_Prop'!N141))),\"\")","v":""},{"$f":"IFERROR(INDEX(Database_Prop!$B$2:$B$1498,SMALL(IF(Database_Prop!$A$2:$A$1498=AR$129,ROW(Database_Prop!$B$2:$B$1498)-ROW(Database_Prop!$B$2)+1),ROWS(Database_Prop!O$2:'Database_Prop'!O141))),\"\")","v":""},{"$f":"IFERROR(INDEX(Database_Prop!$B$2:$B$1498,SMALL(IF(Database_Prop!$A$2:$A$1498=AS$129,ROW(Database_Prop!$B$2:$B$1498)-ROW(Database_Prop!$B$2)+1),ROWS(Database_Prop!P$2:'Database_Prop'!P141))),\"\")","v":""},{"$f":"IFERROR(INDEX(Database_Prop!$B$2:$B$1498,SMALL(IF(Database_Prop!$A$2:$A$1498=AT$129,ROW(Database_Prop!$B$2:$B$1498)-ROW(Database_Prop!$B$2)+1),ROWS(Database_Prop!Q$2:'Database_Prop'!Q141))),\"\")","v":""},{"$f":"IFERROR(INDEX(Database_Prop!$B$2:$B$1498,SMALL(IF(Database_Prop!$A$2:$A$1498=AU$129,ROW(Database_Prop!$B$2:$B$1498)-ROW(Database_Prop!$B$2)+1),ROWS(Database_Prop!R$2:'Database_Prop'!R141))),\"\")","v":""},{"$f":"IFERROR(INDEX(Database_Prop!$B$2:$B$1498,SMALL(IF(Database_Prop!$A$2:$A$1498=AV$129,ROW(Database_Prop!$B$2:$B$1498)-ROW(Database_Prop!$B$2)+1),ROWS(Database_Prop!S$2:'Database_Prop'!S141))),\"\")","v":""},{"$f":"IFERROR(INDEX(Database_Prop!$B$2:$B$1498,SMALL(IF(Database_Prop!$A$2:$A$1498=AW$129,ROW(Database_Prop!$B$2:$B$1498)-ROW(Database_Prop!$B$2)+1),ROWS(Database_Prop!T$2:'Database_Prop'!T141))),\"\")","v":""},{"$f":"IFERROR(INDEX(Database_Prop!$B$2:$B$1498,SMALL(IF(Database_Prop!$A$2:$A$1498=AX$129,ROW(Database_Prop!$B$2:$B$1498)-ROW(Database_Prop!$B$2)+1),ROWS(Database_Prop!U$2:'Database_Prop'!U141))),\"\")","v":""},{"$f":"IFERROR(INDEX(Database_Prop!$B$2:$B$1498,SMALL(IF(Database_Prop!$A$2:$A$1498=AY$129,ROW(Database_Prop!$B$2:$B$1498)-ROW(Database_Prop!$B$2)+1),ROWS(Database_Prop!V$2:'Database_Prop'!V141))),\"\")","v":""},{"$f":"IFERROR(INDEX(Database_Prop!$B$2:$B$1498,SMALL(IF(Database_Prop!$A$2:$A$1498=AZ$129,ROW(Database_Prop!$B$2:$B$1498)-ROW(Database_Prop!$B$2)+1),ROWS(Database_Prop!W$2:'Database_Prop'!W141))),\"\")","v":""},{"$f":"IFERROR(INDEX(Database_Prop!$B$2:$B$1498,SMALL(IF(Database_Prop!$A$2:$A$1498=BA$129,ROW(Database_Prop!$B$2:$B$1498)-ROW(Database_Prop!$B$2)+1),ROWS(Database_Prop!X$2:'Database_Prop'!X141))),\"\")","v":""},{"$f":"IFERROR(INDEX(Database_Prop!$B$2:$B$1498,SMALL(IF(Database_Prop!$A$2:$A$1498=BB$129,ROW(Database_Prop!$B$2:$B$1498)-ROW(Database_Prop!$B$2)+1),ROWS(Database_Prop!Y$2:'Database_Prop'!Y141))),\"\")","v":""},{"$f":"IFERROR(INDEX(Database_Prop!$B$2:$B$1498,SMALL(IF(Database_Prop!$A$2:$A$1498=BC$129,ROW(Database_Prop!$B$2:$B$1498)-ROW(Database_Prop!$B$2)+1),ROWS(Database_Prop!Z$2:'Database_Prop'!Z141))),\"\")","v":""},null,"Mozambique","Africa"]
[null,null,null,null,null,null,null,null,null,null,null,null,null,null,null,null,null,null,null,null,null,null,null,null,null,null,null,null,null,null,142,{"$f":"IFERROR(INDEX(Database_Prop!$B$2:$B$1498,SMALL(IF(Database_Prop!$A$2:$A$1498=AF$129,ROW(Database_Prop!$B$2:$B$1498)-ROW(Database_Prop!$B$2)+1),ROWS(Database_Prop!C$2:'Database_Prop'!C142))),\"\")","v":""},{"$f":"IFERROR(INDEX(Database_Prop!$B$2:$B$1498,SMALL(IF(Database_Prop!$A$2:$A$1498=AG$129,ROW(Database_Prop!$B$2:$B$1498)-ROW(Database_Prop!$B$2)+1),ROWS(Database_Prop!D$2:'Database_Prop'!D142))),\"\")","v":""},{"$f":"IFERROR(INDEX(Database_Prop!$B$2:$B$1498,SMALL(IF(Database_Prop!$A$2:$A$1498=AH$129,ROW(Database_Prop!$B$2:$B$1498)-ROW(Database_Prop!$B$2)+1),ROWS(Database_Prop!E$2:'Database_Prop'!E142))),\"\")","v":""},{"$f":"IFERROR(INDEX(Database_Prop!$B$2:$B$1498,SMALL(IF(Database_Prop!$A$2:$A$1498=AI$129,ROW(Database_Prop!$B$2:$B$1498)-ROW(Database_Prop!$B$2)+1),ROWS(Database_Prop!F$2:'Database_Prop'!F142))),\"\")","v":""},{"$f":"IFERROR(INDEX(Database_Prop!$B$2:$B$1498,SMALL(IF(Database_Prop!$A$2:$A$1498=AJ$129,ROW(Database_Prop!$B$2:$B$1498)-ROW(Database_Prop!$B$2)+1),ROWS(Database_Prop!G$2:'Database_Prop'!G142))),\"\")","v":""},{"$f":"IFERROR(INDEX(Database_Prop!$B$2:$B$1498,SMALL(IF(Database_Prop!$A$2:$A$1498=AK$129,ROW(Database_Prop!$B$2:$B$1498)-ROW(Database_Prop!$B$2)+1),ROWS(Database_Prop!H$2:'Database_Prop'!H142))),\"\")","v":""},{"$f":"IFERROR(INDEX(Database_Prop!$B$2:$B$1498,SMALL(IF(Database_Prop!$A$2:$A$1498=AL$129,ROW(Database_Prop!$B$2:$B$1498)-ROW(Database_Prop!$B$2)+1),ROWS(Database_Prop!I$2:'Database_Prop'!I142))),\"\")","v":""},{"$f":"IFERROR(INDEX(Database_Prop!$B$2:$B$1498,SMALL(IF(Database_Prop!$A$2:$A$1498=AM$129,ROW(Database_Prop!$B$2:$B$1498)-ROW(Database_Prop!$B$2)+1),ROWS(Database_Prop!J$2:'Database_Prop'!J142))),\"\")","v":""},{"$f":"IFERROR(INDEX(Database_Prop!$B$2:$B$1498,SMALL(IF(Database_Prop!$A$2:$A$1498=AN$129,ROW(Database_Prop!$B$2:$B$1498)-ROW(Database_Prop!$B$2)+1),ROWS(Database_Prop!K$2:'Database_Prop'!K142))),\"\")","v":""},{"$f":"IFERROR(INDEX(Database_Prop!$B$2:$B$1498,SMALL(IF(Database_Prop!$A$2:$A$1498=AO$129,ROW(Database_Prop!$B$2:$B$1498)-ROW(Database_Prop!$B$2)+1),ROWS(Database_Prop!L$2:'Database_Prop'!L142))),\"\")","v":""},{"$f":"IFERROR(INDEX(Database_Prop!$B$2:$B$1498,SMALL(IF(Database_Prop!$A$2:$A$1498=AP$129,ROW(Database_Prop!$B$2:$B$1498)-ROW(Database_Prop!$B$2)+1),ROWS(Database_Prop!M$2:'Database_Prop'!M142))),\"\")","v":""},{"$f":"IFERROR(INDEX(Database_Prop!$B$2:$B$1498,SMALL(IF(Database_Prop!$A$2:$A$1498=AQ$129,ROW(Database_Prop!$B$2:$B$1498)-ROW(Database_Prop!$B$2)+1),ROWS(Database_Prop!N$2:'Database_Prop'!N142))),\"\")","v":""},{"$f":"IFERROR(INDEX(Database_Prop!$B$2:$B$1498,SMALL(IF(Database_Prop!$A$2:$A$1498=AR$129,ROW(Database_Prop!$B$2:$B$1498)-ROW(Database_Prop!$B$2)+1),ROWS(Database_Prop!O$2:'Database_Prop'!O142))),\"\")","v":""},{"$f":"IFERROR(INDEX(Database_Prop!$B$2:$B$1498,SMALL(IF(Database_Prop!$A$2:$A$1498=AS$129,ROW(Database_Prop!$B$2:$B$1498)-ROW(Database_Prop!$B$2)+1),ROWS(Database_Prop!P$2:'Database_Prop'!P142))),\"\")","v":""},{"$f":"IFERROR(INDEX(Database_Prop!$B$2:$B$1498,SMALL(IF(Database_Prop!$A$2:$A$1498=AT$129,ROW(Database_Prop!$B$2:$B$1498)-ROW(Database_Prop!$B$2)+1),ROWS(Database_Prop!Q$2:'Database_Prop'!Q142))),\"\")","v":""},{"$f":"IFERROR(INDEX(Database_Prop!$B$2:$B$1498,SMALL(IF(Database_Prop!$A$2:$A$1498=AU$129,ROW(Database_Prop!$B$2:$B$1498)-ROW(Database_Prop!$B$2)+1),ROWS(Database_Prop!R$2:'Database_Prop'!R142))),\"\")","v":""},{"$f":"IFERROR(INDEX(Database_Prop!$B$2:$B$1498,SMALL(IF(Database_Prop!$A$2:$A$1498=AV$129,ROW(Database_Prop!$B$2:$B$1498)-ROW(Database_Prop!$B$2)+1),ROWS(Database_Prop!S$2:'Database_Prop'!S142))),\"\")","v":""},{"$f":"IFERROR(INDEX(Database_Prop!$B$2:$B$1498,SMALL(IF(Database_Prop!$A$2:$A$1498=AW$129,ROW(Database_Prop!$B$2:$B$1498)-ROW(Database_Prop!$B$2)+1),ROWS(Database_Prop!T$2:'Database_Prop'!T142))),\"\")","v":""},{"$f":"IFERROR(INDEX(Database_Prop!$B$2:$B$1498,SMALL(IF(Database_Prop!$A$2:$A$1498=AX$129,ROW(Database_Prop!$B$2:$B$1498)-ROW(Database_Prop!$B$2)+1),ROWS(Database_Prop!U$2:'Database_Prop'!U142))),\"\")","v":""},{"$f":"IFERROR(INDEX(Database_Prop!$B$2:$B$1498,SMALL(IF(Database_Prop!$A$2:$A$1498=AY$129,ROW(Database_Prop!$B$2:$B$1498)-ROW(Database_Prop!$B$2)+1),ROWS(Database_Prop!V$2:'Database_Prop'!V142))),\"\")","v":""},{"$f":"IFERROR(INDEX(Database_Prop!$B$2:$B$1498,SMALL(IF(Database_Prop!$A$2:$A$1498=AZ$129,ROW(Database_Prop!$B$2:$B$1498)-ROW(Database_Prop!$B$2)+1),ROWS(Database_Prop!W$2:'Database_Prop'!W142))),\"\")","v":""},{"$f":"IFERROR(INDEX(Database_Prop!$B$2:$B$1498,SMALL(IF(Database_Prop!$A$2:$A$1498=BA$129,ROW(Database_Prop!$B$2:$B$1498)-ROW(Database_Prop!$B$2)+1),ROWS(Database_Prop!X$2:'Database_Prop'!X142))),\"\")","v":""},{"$f":"IFERROR(INDEX(Database_Prop!$B$2:$B$1498,SMALL(IF(Database_Prop!$A$2:$A$1498=BB$129,ROW(Database_Prop!$B$2:$B$1498)-ROW(Database_Prop!$B$2)+1),ROWS(Database_Prop!Y$2:'Database_Prop'!Y142))),\"\")","v":""},{"$f":"IFERROR(INDEX(Database_Prop!$B$2:$B$1498,SMALL(IF(Database_Prop!$A$2:$A$1498=BC$129,ROW(Database_Prop!$B$2:$B$1498)-ROW(Database_Prop!$B$2)+1),ROWS(Database_Prop!Z$2:'Database_Prop'!Z142))),\"\")","v":""},null,"Myanmar","Asia"]
[null,null,null,null,null,null,null,null,null,null,null,null,null,null,null,null,null,null,null,null,null,null,null,null,null,null,null,null,null,null,143,{"$f":"IFERROR(INDEX(Database_Prop!$B$2:$B$1498,SMALL(IF(Database_Prop!$A$2:$A$1498=AF$129,ROW(Database_Prop!$B$2:$B$1498)-ROW(Database_Prop!$B$2)+1),ROWS(Database_Prop!C$2:'Database_Prop'!C143))),\"\")","v":""},{"$f":"IFERROR(INDEX(Database_Prop!$B$2:$B$1498,SMALL(IF(Database_Prop!$A$2:$A$1498=AG$129,ROW(Database_Prop!$B$2:$B$1498)-ROW(Database_Prop!$B$2)+1),ROWS(Database_Prop!D$2:'Database_Prop'!D143))),\"\")","v":""},{"$f":"IFERROR(INDEX(Database_Prop!$B$2:$B$1498,SMALL(IF(Database_Prop!$A$2:$A$1498=AH$129,ROW(Database_Prop!$B$2:$B$1498)-ROW(Database_Prop!$B$2)+1),ROWS(Database_Prop!E$2:'Database_Prop'!E143))),\"\")","v":""},{"$f":"IFERROR(INDEX(Database_Prop!$B$2:$B$1498,SMALL(IF(Database_Prop!$A$2:$A$1498=AI$129,ROW(Database_Prop!$B$2:$B$1498)-ROW(Database_Prop!$B$2)+1),ROWS(Database_Prop!F$2:'Database_Prop'!F143))),\"\")","v":""},{"$f":"IFERROR(INDEX(Database_Prop!$B$2:$B$1498,SMALL(IF(Database_Prop!$A$2:$A$1498=AJ$129,ROW(Database_Prop!$B$2:$B$1498)-ROW(Database_Prop!$B$2)+1),ROWS(Database_Prop!G$2:'Database_Prop'!G143))),\"\")","v":""},{"$f":"IFERROR(INDEX(Database_Prop!$B$2:$B$1498,SMALL(IF(Database_Prop!$A$2:$A$1498=AK$129,ROW(Database_Prop!$B$2:$B$1498)-ROW(Database_Prop!$B$2)+1),ROWS(Database_Prop!H$2:'Database_Prop'!H143))),\"\")","v":""},{"$f":"IFERROR(INDEX(Database_Prop!$B$2:$B$1498,SMALL(IF(Database_Prop!$A$2:$A$1498=AL$129,ROW(Database_Prop!$B$2:$B$1498)-ROW(Database_Prop!$B$2)+1),ROWS(Database_Prop!I$2:'Database_Prop'!I143))),\"\")","v":""},{"$f":"IFERROR(INDEX(Database_Prop!$B$2:$B$1498,SMALL(IF(Database_Prop!$A$2:$A$1498=AM$129,ROW(Database_Prop!$B$2:$B$1498)-ROW(Database_Prop!$B$2)+1),ROWS(Database_Prop!J$2:'Database_Prop'!J143))),\"\")","v":""},{"$f":"IFERROR(INDEX(Database_Prop!$B$2:$B$1498,SMALL(IF(Database_Prop!$A$2:$A$1498=AN$129,ROW(Database_Prop!$B$2:$B$1498)-ROW(Database_Prop!$B$2)+1),ROWS(Database_Prop!K$2:'Database_Prop'!K143))),\"\")","v":""},{"$f":"IFERROR(INDEX(Database_Prop!$B$2:$B$1498,SMALL(IF(Database_Prop!$A$2:$A$1498=AO$129,ROW(Database_Prop!$B$2:$B$1498)-ROW(Database_Prop!$B$2)+1),ROWS(Database_Prop!L$2:'Database_Prop'!L143))),\"\")","v":""},{"$f":"IFERROR(INDEX(Database_Prop!$B$2:$B$1498,SMALL(IF(Database_Prop!$A$2:$A$1498=AP$129,ROW(Database_Prop!$B$2:$B$1498)-ROW(Database_Prop!$B$2)+1),ROWS(Database_Prop!M$2:'Database_Prop'!M143))),\"\")","v":""},{"$f":"IFERROR(INDEX(Database_Prop!$B$2:$B$1498,SMALL(IF(Database_Prop!$A$2:$A$1498=AQ$129,ROW(Database_Prop!$B$2:$B$1498)-ROW(Database_Prop!$B$2)+1),ROWS(Database_Prop!N$2:'Database_Prop'!N143))),\"\")","v":""},{"$f":"IFERROR(INDEX(Database_Prop!$B$2:$B$1498,SMALL(IF(Database_Prop!$A$2:$A$1498=AR$129,ROW(Database_Prop!$B$2:$B$1498)-ROW(Database_Prop!$B$2)+1),ROWS(Database_Prop!O$2:'Database_Prop'!O143))),\"\")","v":""},{"$f":"IFERROR(INDEX(Database_Prop!$B$2:$B$1498,SMALL(IF(Database_Prop!$A$2:$A$1498=AS$129,ROW(Database_Prop!$B$2:$B$1498)-ROW(Database_Prop!$B$2)+1),ROWS(Database_Prop!P$2:'Database_Prop'!P143))),\"\")","v":""},{"$f":"IFERROR(INDEX(Database_Prop!$B$2:$B$1498,SMALL(IF(Database_Prop!$A$2:$A$1498=AT$129,ROW(Database_Prop!$B$2:$B$1498)-ROW(Database_Prop!$B$2)+1),ROWS(Database_Prop!Q$2:'Database_Prop'!Q143))),\"\")","v":""},{"$f":"IFERROR(INDEX(Database_Prop!$B$2:$B$1498,SMALL(IF(Database_Prop!$A$2:$A$1498=AU$129,ROW(Database_Prop!$B$2:$B$1498)-ROW(Database_Prop!$B$2)+1),ROWS(Database_Prop!R$2:'Database_Prop'!R143))),\"\")","v":""},{"$f":"IFERROR(INDEX(Database_Prop!$B$2:$B$1498,SMALL(IF(Database_Prop!$A$2:$A$1498=AV$129,ROW(Database_Prop!$B$2:$B$1498)-ROW(Database_Prop!$B$2)+1),ROWS(Database_Prop!S$2:'Database_Prop'!S143))),\"\")","v":""},{"$f":"IFERROR(INDEX(Database_Prop!$B$2:$B$1498,SMALL(IF(Database_Prop!$A$2:$A$1498=AW$129,ROW(Database_Prop!$B$2:$B$1498)-ROW(Database_Prop!$B$2)+1),ROWS(Database_Prop!T$2:'Database_Prop'!T143))),\"\")","v":""},{"$f":"IFERROR(INDEX(Database_Prop!$B$2:$B$1498,SMALL(IF(Database_Prop!$A$2:$A$1498=AX$129,ROW(Database_Prop!$B$2:$B$1498)-ROW(Database_Prop!$B$2)+1),ROWS(Database_Prop!U$2:'Database_Prop'!U143))),\"\")","v":""},{"$f":"IFERROR(INDEX(Database_Prop!$B$2:$B$1498,SMALL(IF(Database_Prop!$A$2:$A$1498=AY$129,ROW(Database_Prop!$B$2:$B$1498)-ROW(Database_Prop!$B$2)+1),ROWS(Database_Prop!V$2:'Database_Prop'!V143))),\"\")","v":""},{"$f":"IFERROR(INDEX(Database_Prop!$B$2:$B$1498,SMALL(IF(Database_Prop!$A$2:$A$1498=AZ$129,ROW(Database_Prop!$B$2:$B$1498)-ROW(Database_Prop!$B$2)+1),ROWS(Database_Prop!W$2:'Database_Prop'!W143))),\"\")","v":""},{"$f":"IFERROR(INDEX(Database_Prop!$B$2:$B$1498,SMALL(IF(Database_Prop!$A$2:$A$1498=BA$129,ROW(Database_Prop!$B$2:$B$1498)-ROW(Database_Prop!$B$2)+1),ROWS(Database_Prop!X$2:'Database_Prop'!X143))),\"\")","v":""},{"$f":"IFERROR(INDEX(Database_Prop!$B$2:$B$1498,SMALL(IF(Database_Prop!$A$2:$A$1498=BB$129,ROW(Database_Prop!$B$2:$B$1498)-ROW(Database_Prop!$B$2)+1),ROWS(Database_Prop!Y$2:'Database_Prop'!Y143))),\"\")","v":""},{"$f":"IFERROR(INDEX(Database_Prop!$B$2:$B$1498,SMALL(IF(Database_Prop!$A$2:$A$1498=BC$129,ROW(Database_Prop!$B$2:$B$1498)-ROW(Database_Prop!$B$2)+1),ROWS(Database_Prop!Z$2:'Database_Prop'!Z143))),\"\")","v":""},null,"Namibia","Africa"]
[null,null,null,null,null,null,null,null,null,null,null,null,null,null,null,null,null,null,null,null,null,null,null,null,null,null,null,null,null,null,144,{"$f":"IFERROR(INDEX(Database_Prop!$B$2:$B$1498,SMALL(IF(Database_Prop!$A$2:$A$1498=AF$129,ROW(Database_Prop!$B$2:$B$1498)-ROW(Database_Prop!$B$2)+1),ROWS(Database_Prop!C$2:'Database_Prop'!C144))),\"\")","v":""},{"$f":"IFERROR(INDEX(Database_Prop!$B$2:$B$1498,SMALL(IF(Database_Prop!$A$2:$A$1498=AG$129,ROW(Database_Prop!$B$2:$B$1498)-ROW(Database_Prop!$B$2)+1),ROWS(Database_Prop!D$2:'Database_Prop'!D144))),\"\")","v":""},{"$f":"IFERROR(INDEX(Database_Prop!$B$2:$B$1498,SMALL(IF(Database_Prop!$A$2:$A$1498=AH$129,ROW(Database_Prop!$B$2:$B$1498)-ROW(Database_Prop!$B$2)+1),ROWS(Database_Prop!E$2:'Database_Prop'!E144))),\"\")","v":""},{"$f":"IFERROR(INDEX(Database_Prop!$B$2:$B$1498,SMALL(IF(Database_Prop!$A$2:$A$1498=AI$129,ROW(Database_Prop!$B$2:$B$1498)-ROW(Database_Prop!$B$2)+1),ROWS(Database_Prop!F$2:'Database_Prop'!F144))),\"\")","v":""},{"$f":"IFERROR(INDEX(Database_Prop!$B$2:$B$1498,SMALL(IF(Database_Prop!$A$2:$A$1498=AJ$129,ROW(Database_Prop!$B$2:$B$1498)-ROW(Database_Prop!$B$2)+1),ROWS(Database_Prop!G$2:'Database_Prop'!G144))),\"\")","v":""},{"$f":"IFERROR(INDEX(Database_Prop!$B$2:$B$1498,SMALL(IF(Database_Prop!$A$2:$A$1498=AK$129,ROW(Database_Prop!$B$2:$B$1498)-ROW(Database_Prop!$B$2)+1),ROWS(Database_Prop!H$2:'Database_Prop'!H144))),\"\")","v":""},{"$f":"IFERROR(INDEX(Database_Prop!$B$2:$B$1498,SMALL(IF(Database_Prop!$A$2:$A$1498=AL$129,ROW(Database_Prop!$B$2:$B$1498)-ROW(Database_Prop!$B$2)+1),ROWS(Database_Prop!I$2:'Database_Prop'!I144))),\"\")","v":""},{"$f":"IFERROR(INDEX(Database_Prop!$B$2:$B$1498,SMALL(IF(Database_Prop!$A$2:$A$1498=AM$129,ROW(Database_Prop!$B$2:$B$1498)-ROW(Database_Prop!$B$2)+1),ROWS(Database_Prop!J$2:'Database_Prop'!J144))),\"\")","v":""},{"$f":"IFERROR(INDEX(Database_Prop!$B$2:$B$1498,SMALL(IF(Database_Prop!$A$2:$A$1498=AN$129,ROW(Database_Prop!$B$2:$B$1498)-ROW(Database_Prop!$B$2)+1),ROWS(Database_Prop!K$2:'Database_Prop'!K144))),\"\")","v":""},{"$f":"IFERROR(INDEX(Database_Prop!$B$2:$B$1498,SMALL(IF(Database_Prop!$A$2:$A$1498=AO$129,ROW(Database_Prop!$B$2:$B$1498)-ROW(Database_Prop!$B$2)+1),ROWS(Database_Prop!L$2:'Database_Prop'!L144))),\"\")","v":""},{"$f":"IFERROR(INDEX(Database_Prop!$B$2:$B$1498,SMALL(IF(Database_Prop!$A$2:$A$1498=AP$129,ROW(Database_Prop!$B$2:$B$1498)-ROW(Database_Prop!$B$2)+1),ROWS(Database_Prop!M$2:'Database_Prop'!M144))),\"\")","v":""},{"$f":"IFERROR(INDEX(Database_Prop!$B$2:$B$1498,SMALL(IF(Database_Prop!$A$2:$A$1498=AQ$129,ROW(Database_Prop!$B$2:$B$1498)-ROW(Database_Prop!$B$2)+1),ROWS(Database_Prop!N$2:'Database_Prop'!N144))),\"\")","v":""},{"$f":"IFERROR(INDEX(Database_Prop!$B$2:$B$1498,SMALL(IF(Database_Prop!$A$2:$A$1498=AR$129,ROW(Database_Prop!$B$2:$B$1498)-ROW(Database_Prop!$B$2)+1),ROWS(Database_Prop!O$2:'Database_Prop'!O144))),\"\")","v":""},{"$f":"IFERROR(INDEX(Database_Prop!$B$2:$B$1498,SMALL(IF(Database_Prop!$A$2:$A$1498=AS$129,ROW(Database_Prop!$B$2:$B$1498)-ROW(Database_Prop!$B$2)+1),ROWS(Database_Prop!P$2:'Database_Prop'!P144))),\"\")","v":""},{"$f":"IFERROR(INDEX(Database_Prop!$B$2:$B$1498,SMALL(IF(Database_Prop!$A$2:$A$1498=AT$129,ROW(Database_Prop!$B$2:$B$1498)-ROW(Database_Prop!$B$2)+1),ROWS(Database_Prop!Q$2:'Database_Prop'!Q144))),\"\")","v":""},{"$f":"IFERROR(INDEX(Database_Prop!$B$2:$B$1498,SMALL(IF(Database_Prop!$A$2:$A$1498=AU$129,ROW(Database_Prop!$B$2:$B$1498)-ROW(Database_Prop!$B$2)+1),ROWS(Database_Prop!R$2:'Database_Prop'!R144))),\"\")","v":""},{"$f":"IFERROR(INDEX(Database_Prop!$B$2:$B$1498,SMALL(IF(Database_Prop!$A$2:$A$1498=AV$129,ROW(Database_Prop!$B$2:$B$1498)-ROW(Database_Prop!$B$2)+1),ROWS(Database_Prop!S$2:'Database_Prop'!S144))),\"\")","v":""},{"$f":"IFERROR(INDEX(Database_Prop!$B$2:$B$1498,SMALL(IF(Database_Prop!$A$2:$A$1498=AW$129,ROW(Database_Prop!$B$2:$B$1498)-ROW(Database_Prop!$B$2)+1),ROWS(Database_Prop!T$2:'Database_Prop'!T144))),\"\")","v":""},{"$f":"IFERROR(INDEX(Database_Prop!$B$2:$B$1498,SMALL(IF(Database_Prop!$A$2:$A$1498=AX$129,ROW(Database_Prop!$B$2:$B$1498)-ROW(Database_Prop!$B$2)+1),ROWS(Database_Prop!U$2:'Database_Prop'!U144))),\"\")","v":""},{"$f":"IFERROR(INDEX(Database_Prop!$B$2:$B$1498,SMALL(IF(Database_Prop!$A$2:$A$1498=AY$129,ROW(Database_Prop!$B$2:$B$1498)-ROW(Database_Prop!$B$2)+1),ROWS(Database_Prop!V$2:'Database_Prop'!V144))),\"\")","v":""},{"$f":"IFERROR(INDEX(Database_Prop!$B$2:$B$1498,SMALL(IF(Database_Prop!$A$2:$A$1498=AZ$129,ROW(Database_Prop!$B$2:$B$1498)-ROW(Database_Prop!$B$2)+1),ROWS(Database_Prop!W$2:'Database_Prop'!W144))),\"\")","v":""},{"$f":"IFERROR(INDEX(Database_Prop!$B$2:$B$1498,SMALL(IF(Database_Prop!$A$2:$A$1498=BA$129,ROW(Database_Prop!$B$2:$B$1498)-ROW(Database_Prop!$B$2)+1),ROWS(Database_Prop!X$2:'Database_Prop'!X144))),\"\")","v":""},{"$f":"IFERROR(INDEX(Database_Prop!$B$2:$B$1498,SMALL(IF(Database_Prop!$A$2:$A$1498=BB$129,ROW(Database_Prop!$B$2:$B$1498)-ROW(Database_Prop!$B$2)+1),ROWS(Database_Prop!Y$2:'Database_Prop'!Y144))),\"\")","v":""},{"$f":"IFERROR(INDEX(Database_Prop!$B$2:$B$1498,SMALL(IF(Database_Prop!$A$2:$A$1498=BC$129,ROW(Database_Prop!$B$2:$B$1498)-ROW(Database_Prop!$B$2)+1),ROWS(Database_Prop!Z$2:'Database_Prop'!Z144))),\"\")","v":""},null,"Nauru","Oceania"]
[null,null,null,null,null,null,null,null,null,null,null,null,null,null,null,null,null,null,null,null,null,null,null,null,null,null,null,null,null,null,145,{"$f":"IFERROR(INDEX(Database_Prop!$B$2:$B$1498,SMALL(IF(Database_Prop!$A$2:$A$1498=AF$129,ROW(Database_Prop!$B$2:$B$1498)-ROW(Database_Prop!$B$2)+1),ROWS(Database_Prop!C$2:'Database_Prop'!C145))),\"\")","v":""},{"$f":"IFERROR(INDEX(Database_Prop!$B$2:$B$1498,SMALL(IF(Database_Prop!$A$2:$A$1498=AG$129,ROW(Database_Prop!$B$2:$B$1498)-ROW(Database_Prop!$B$2)+1),ROWS(Database_Prop!D$2:'Database_Prop'!D145))),\"\")","v":""},{"$f":"IFERROR(INDEX(Database_Prop!$B$2:$B$1498,SMALL(IF(Database_Prop!$A$2:$A$1498=AH$129,ROW(Database_Prop!$B$2:$B$1498)-ROW(Database_Prop!$B$2)+1),ROWS(Database_Prop!E$2:'Database_Prop'!E145))),\"\")","v":""},{"$f":"IFERROR(INDEX(Database_Prop!$B$2:$B$1498,SMALL(IF(Database_Prop!$A$2:$A$1498=AI$129,ROW(Database_Prop!$B$2:$B$1498)-ROW(Database_Prop!$B$2)+1),ROWS(Database_Prop!F$2:'Database_Prop'!F145))),\"\")","v":""},{"$f":"IFERROR(INDEX(Database_Prop!$B$2:$B$1498,SMALL(IF(Database_Prop!$A$2:$A$1498=AJ$129,ROW(Database_Prop!$B$2:$B$1498)-ROW(Database_Prop!$B$2)+1),ROWS(Database_Prop!G$2:'Database_Prop'!G145))),\"\")","v":""},{"$f":"IFERROR(INDEX(Database_Prop!$B$2:$B$1498,SMALL(IF(Database_Prop!$A$2:$A$1498=AK$129,ROW(Database_Prop!$B$2:$B$1498)-ROW(Database_Prop!$B$2)+1),ROWS(Database_Prop!H$2:'Database_Prop'!H145))),\"\")","v":""},{"$f":"IFERROR(INDEX(Database_Prop!$B$2:$B$1498,SMALL(IF(Database_Prop!$A$2:$A$1498=AL$129,ROW(Database_Prop!$B$2:$B$1498)-ROW(Database_Prop!$B$2)+1),ROWS(Database_Prop!I$2:'Database_Prop'!I145))),\"\")","v":""},{"$f":"IFERROR(INDEX(Database_Prop!$B$2:$B$1498,SMALL(IF(Database_Prop!$A$2:$A$1498=AM$129,ROW(Database_Prop!$B$2:$B$1498)-ROW(Database_Prop!$B$2)+1),ROWS(Database_Prop!J$2:'Database_Prop'!J145))),\"\")","v":""},{"$f":"IFERROR(INDEX(Database_Prop!$B$2:$B$1498,SMALL(IF(Database_Prop!$A$2:$A$1498=AN$129,ROW(Database_Prop!$B$2:$B$1498)-ROW(Database_Prop!$B$2)+1),ROWS(Database_Prop!K$2:'Database_Prop'!K145))),\"\")","v":""},{"$f":"IFERROR(INDEX(Database_Prop!$B$2:$B$1498,SMALL(IF(Database_Prop!$A$2:$A$1498=AO$129,ROW(Database_Prop!$B$2:$B$1498)-ROW(Database_Prop!$B$2)+1),ROWS(Database_Prop!L$2:'Database_Prop'!L145))),\"\")","v":""},{"$f":"IFERROR(INDEX(Database_Prop!$B$2:$B$1498,SMALL(IF(Database_Prop!$A$2:$A$1498=AP$129,ROW(Database_Prop!$B$2:$B$1498)-ROW(Database_Prop!$B$2)+1),ROWS(Database_Prop!M$2:'Database_Prop'!M145))),\"\")","v":""},{"$f":"IFERROR(INDEX(Database_Prop!$B$2:$B$1498,SMALL(IF(Database_Prop!$A$2:$A$1498=AQ$129,ROW(Database_Prop!$B$2:$B$1498)-ROW(Database_Prop!$B$2)+1),ROWS(Database_Prop!N$2:'Database_Prop'!N145))),\"\")","v":""},{"$f":"IFERROR(INDEX(Database_Prop!$B$2:$B$1498,SMALL(IF(Database_Prop!$A$2:$A$1498=AR$129,ROW(Database_Prop!$B$2:$B$1498)-ROW(Database_Prop!$B$2)+1),ROWS(Database_Prop!O$2:'Database_Prop'!O145))),\"\")","v":""},{"$f":"IFERROR(INDEX(Database_Prop!$B$2:$B$1498,SMALL(IF(Database_Prop!$A$2:$A$1498=AS$129,ROW(Database_Prop!$B$2:$B$1498)-ROW(Database_Prop!$B$2)+1),ROWS(Database_Prop!P$2:'Database_Prop'!P145))),\"\")","v":""},{"$f":"IFERROR(INDEX(Database_Prop!$B$2:$B$1498,SMALL(IF(Database_Prop!$A$2:$A$1498=AT$129,ROW(Database_Prop!$B$2:$B$1498)-ROW(Database_Prop!$B$2)+1),ROWS(Database_Prop!Q$2:'Database_Prop'!Q145))),\"\")","v":""},{"$f":"IFERROR(INDEX(Database_Prop!$B$2:$B$1498,SMALL(IF(Database_Prop!$A$2:$A$1498=AU$129,ROW(Database_Prop!$B$2:$B$1498)-ROW(Database_Prop!$B$2)+1),ROWS(Database_Prop!R$2:'Database_Prop'!R145))),\"\")","v":""},{"$f":"IFERROR(INDEX(Database_Prop!$B$2:$B$1498,SMALL(IF(Database_Prop!$A$2:$A$1498=AV$129,ROW(Database_Prop!$B$2:$B$1498)-ROW(Database_Prop!$B$2)+1),ROWS(Database_Prop!S$2:'Database_Prop'!S145))),\"\")","v":""},{"$f":"IFERROR(INDEX(Database_Prop!$B$2:$B$1498,SMALL(IF(Database_Prop!$A$2:$A$1498=AW$129,ROW(Database_Prop!$B$2:$B$1498)-ROW(Database_Prop!$B$2)+1),ROWS(Database_Prop!T$2:'Database_Prop'!T145))),\"\")","v":""},{"$f":"IFERROR(INDEX(Database_Prop!$B$2:$B$1498,SMALL(IF(Database_Prop!$A$2:$A$1498=AX$129,ROW(Database_Prop!$B$2:$B$1498)-ROW(Database_Prop!$B$2)+1),ROWS(Database_Prop!U$2:'Database_Prop'!U145))),\"\")","v":""},{"$f":"IFERROR(INDEX(Database_Prop!$B$2:$B$1498,SMALL(IF(Database_Prop!$A$2:$A$1498=AY$129,ROW(Database_Prop!$B$2:$B$1498)-ROW(Database_Prop!$B$2)+1),ROWS(Database_Prop!V$2:'Database_Prop'!V145))),\"\")","v":""},{"$f":"IFERROR(INDEX(Database_Prop!$B$2:$B$1498,SMALL(IF(Database_Prop!$A$2:$A$1498=AZ$129,ROW(Database_Prop!$B$2:$B$1498)-ROW(Database_Prop!$B$2)+1),ROWS(Database_Prop!W$2:'Database_Prop'!W145))),\"\")","v":""},{"$f":"IFERROR(INDEX(Database_Prop!$B$2:$B$1498,SMALL(IF(Database_Prop!$A$2:$A$1498=BA$129,ROW(Database_Prop!$B$2:$B$1498)-ROW(Database_Prop!$B$2)+1),ROWS(Database_Prop!X$2:'Database_Prop'!X145))),\"\")","v":""},{"$f":"IFERROR(INDEX(Database_Prop!$B$2:$B$1498,SMALL(IF(Database_Prop!$A$2:$A$1498=BB$129,ROW(Database_Prop!$B$2:$B$1498)-ROW(Database_Prop!$B$2)+1),ROWS(Database_Prop!Y$2:'Database_Prop'!Y145))),\"\")","v":""},{"$f":"IFERROR(INDEX(Database_Prop!$B$2:$B$1498,SMALL(IF(Database_Prop!$A$2:$A$1498=BC$129,ROW(Database_Prop!$B$2:$B$1498)-ROW(Database_Prop!$B$2)+1),ROWS(Database_Prop!Z$2:'Database_Prop'!Z145))),\"\")","v":""},null,"Nepal","Indian Subcontinent"]
[null,null,null,null,null,null,null,null,null,null,null,null,null,null,null,null,null,null,null,null,null,null,null,null,null,null,null,null,null,null,146,{"$f":"IFERROR(INDEX(Database_Prop!$B$2:$B$1498,SMALL(IF(Database_Prop!$A$2:$A$1498=AF$129,ROW(Database_Prop!$B$2:$B$1498)-ROW(Database_Prop!$B$2)+1),ROWS(Database_Prop!C$2:'Database_Prop'!C146))),\"\")","v":""},{"$f":"IFERROR(INDEX(Database_Prop!$B$2:$B$1498,SMALL(IF(Database_Prop!$A$2:$A$1498=AG$129,ROW(Database_Prop!$B$2:$B$1498)-ROW(Database_Prop!$B$2)+1),ROWS(Database_Prop!D$2:'Database_Prop'!D146))),\"\")","v":""},{"$f":"IFERROR(INDEX(Database_Prop!$B$2:$B$1498,SMALL(IF(Database_Prop!$A$2:$A$1498=AH$129,ROW(Database_Prop!$B$2:$B$1498)-ROW(Database_Prop!$B$2)+1),ROWS(Database_Prop!E$2:'Database_Prop'!E146))),\"\")","v":""},{"$f":"IFERROR(INDEX(Database_Prop!$B$2:$B$1498,SMALL(IF(Database_Prop!$A$2:$A$1498=AI$129,ROW(Database_Prop!$B$2:$B$1498)-ROW(Database_Prop!$B$2)+1),ROWS(Database_Prop!F$2:'Database_Prop'!F146))),\"\")","v":""},{"$f":"IFERROR(INDEX(Database_Prop!$B$2:$B$1498,SMALL(IF(Database_Prop!$A$2:$A$1498=AJ$129,ROW(Database_Prop!$B$2:$B$1498)-ROW(Database_Prop!$B$2)+1),ROWS(Database_Prop!G$2:'Database_Prop'!G146))),\"\")","v":""},{"$f":"IFERROR(INDEX(Database_Prop!$B$2:$B$1498,SMALL(IF(Database_Prop!$A$2:$A$1498=AK$129,ROW(Database_Prop!$B$2:$B$1498)-ROW(Database_Prop!$B$2)+1),ROWS(Database_Prop!H$2:'Database_Prop'!H146))),\"\")","v":""},{"$f":"IFERROR(INDEX(Database_Prop!$B$2:$B$1498,SMALL(IF(Database_Prop!$A$2:$A$1498=AL$129,ROW(Database_Prop!$B$2:$B$1498)-ROW(Database_Prop!$B$2)+1),ROWS(Database_Prop!I$2:'Database_Prop'!I146))),\"\")","v":""},{"$f":"IFERROR(INDEX(Database_Prop!$B$2:$B$1498,SMALL(IF(Database_Prop!$A$2:$A$1498=AM$129,ROW(Database_Prop!$B$2:$B$1498)-ROW(Database_Prop!$B$2)+1),ROWS(Database_Prop!J$2:'Database_Prop'!J146))),\"\")","v":""},{"$f":"IFERROR(INDEX(Database_Prop!$B$2:$B$1498,SMALL(IF(Database_Prop!$A$2:$A$1498=AN$129,ROW(Database_Prop!$B$2:$B$1498)-ROW(Database_Prop!$B$2)+1),ROWS(Database_Prop!K$2:'Database_Prop'!K146))),\"\")","v":""},{"$f":"IFERROR(INDEX(Database_Prop!$B$2:$B$1498,SMALL(IF(Database_Prop!$A$2:$A$1498=AO$129,ROW(Database_Prop!$B$2:$B$1498)-ROW(Database_Prop!$B$2)+1),ROWS(Database_Prop!L$2:'Database_Prop'!L146))),\"\")","v":""},{"$f":"IFERROR(INDEX(Database_Prop!$B$2:$B$1498,SMALL(IF(Database_Prop!$A$2:$A$1498=AP$129,ROW(Database_Prop!$B$2:$B$1498)-ROW(Database_Prop!$B$2)+1),ROWS(Database_Prop!M$2:'Database_Prop'!M146))),\"\")","v":""},{"$f":"IFERROR(INDEX(Database_Prop!$B$2:$B$1498,SMALL(IF(Database_Prop!$A$2:$A$1498=AQ$129,ROW(Database_Prop!$B$2:$B$1498)-ROW(Database_Prop!$B$2)+1),ROWS(Database_Prop!N$2:'Database_Prop'!N146))),\"\")","v":""},{"$f":"IFERROR(INDEX(Database_Prop!$B$2:$B$1498,SMALL(IF(Database_Prop!$A$2:$A$1498=AR$129,ROW(Database_Prop!$B$2:$B$1498)-ROW(Database_Prop!$B$2)+1),ROWS(Database_Prop!O$2:'Database_Prop'!O146))),\"\")","v":""},{"$f":"IFERROR(INDEX(Database_Prop!$B$2:$B$1498,SMALL(IF(Database_Prop!$A$2:$A$1498=AS$129,ROW(Database_Prop!$B$2:$B$1498)-ROW(Database_Prop!$B$2)+1),ROWS(Database_Prop!P$2:'Database_Prop'!P146))),\"\")","v":""},{"$f":"IFERROR(INDEX(Database_Prop!$B$2:$B$1498,SMALL(IF(Database_Prop!$A$2:$A$1498=AT$129,ROW(Database_Prop!$B$2:$B$1498)-ROW(Database_Prop!$B$2)+1),ROWS(Database_Prop!Q$2:'Database_Prop'!Q146))),\"\")","v":""},{"$f":"IFERROR(INDEX(Database_Prop!$B$2:$B$1498,SMALL(IF(Database_Prop!$A$2:$A$1498=AU$129,ROW(Database_Prop!$B$2:$B$1498)-ROW(Database_Prop!$B$2)+1),ROWS(Database_Prop!R$2:'Database_Prop'!R146))),\"\")","v":""},{"$f":"IFERROR(INDEX(Database_Prop!$B$2:$B$1498,SMALL(IF(Database_Prop!$A$2:$A$1498=AV$129,ROW(Database_Prop!$B$2:$B$1498)-ROW(Database_Prop!$B$2)+1),ROWS(Database_Prop!S$2:'Database_Prop'!S146))),\"\")","v":""},{"$f":"IFERROR(INDEX(Database_Prop!$B$2:$B$1498,SMALL(IF(Database_Prop!$A$2:$A$1498=AW$129,ROW(Database_Prop!$B$2:$B$1498)-ROW(Database_Prop!$B$2)+1),ROWS(Database_Prop!T$2:'Database_Prop'!T146))),\"\")","v":""},{"$f":"IFERROR(INDEX(Database_Prop!$B$2:$B$1498,SMALL(IF(Database_Prop!$A$2:$A$1498=AX$129,ROW(Database_Prop!$B$2:$B$1498)-ROW(Database_Prop!$B$2)+1),ROWS(Database_Prop!U$2:'Database_Prop'!U146))),\"\")","v":""},{"$f":"IFERROR(INDEX(Database_Prop!$B$2:$B$1498,SMALL(IF(Database_Prop!$A$2:$A$1498=AY$129,ROW(Database_Prop!$B$2:$B$1498)-ROW(Database_Prop!$B$2)+1),ROWS(Database_Prop!V$2:'Database_Prop'!V146))),\"\")","v":""},{"$f":"IFERROR(INDEX(Database_Prop!$B$2:$B$1498,SMALL(IF(Database_Prop!$A$2:$A$1498=AZ$129,ROW(Database_Prop!$B$2:$B$1498)-ROW(Database_Prop!$B$2)+1),ROWS(Database_Prop!W$2:'Database_Prop'!W146))),\"\")","v":""},{"$f":"IFERROR(INDEX(Database_Prop!$B$2:$B$1498,SMALL(IF(Database_Prop!$A$2:$A$1498=BA$129,ROW(Database_Prop!$B$2:$B$1498)-ROW(Database_Prop!$B$2)+1),ROWS(Database_Prop!X$2:'Database_Prop'!X146))),\"\")","v":""},{"$f":"IFERROR(INDEX(Database_Prop!$B$2:$B$1498,SMALL(IF(Database_Prop!$A$2:$A$1498=BB$129,ROW(Database_Prop!$B$2:$B$1498)-ROW(Database_Prop!$B$2)+1),ROWS(Database_Prop!Y$2:'Database_Prop'!Y146))),\"\")","v":""},{"$f":"IFERROR(INDEX(Database_Prop!$B$2:$B$1498,SMALL(IF(Database_Prop!$A$2:$A$1498=BC$129,ROW(Database_Prop!$B$2:$B$1498)-ROW(Database_Prop!$B$2)+1),ROWS(Database_Prop!Z$2:'Database_Prop'!Z146))),\"\")","v":""},null,"Netherlands","Western Europe"]
[null,null,null,null,null,null,null,null,null,null,null,null,null,null,null,null,null,null,null,null,null,null,null,null,null,null,null,null,null,null,147,{"$f":"IFERROR(INDEX(Database_Prop!$B$2:$B$1498,SMALL(IF(Database_Prop!$A$2:$A$1498=AF$129,ROW(Database_Prop!$B$2:$B$1498)-ROW(Database_Prop!$B$2)+1),ROWS(Database_Prop!C$2:'Database_Prop'!C147))),\"\")","v":""},{"$f":"IFERROR(INDEX(Database_Prop!$B$2:$B$1498,SMALL(IF(Database_Prop!$A$2:$A$1498=AG$129,ROW(Database_Prop!$B$2:$B$1498)-ROW(Database_Prop!$B$2)+1),ROWS(Database_Prop!D$2:'Database_Prop'!D147))),\"\")","v":""},{"$f":"IFERROR(INDEX(Database_Prop!$B$2:$B$1498,SMALL(IF(Database_Prop!$A$2:$A$1498=AH$129,ROW(Database_Prop!$B$2:$B$1498)-ROW(Database_Prop!$B$2)+1),ROWS(Database_Prop!E$2:'Database_Prop'!E147))),\"\")","v":""},{"$f":"IFERROR(INDEX(Database_Prop!$B$2:$B$1498,SMALL(IF(Database_Prop!$A$2:$A$1498=AI$129,ROW(Database_Prop!$B$2:$B$1498)-ROW(Database_Prop!$B$2)+1),ROWS(Database_Prop!F$2:'Database_Prop'!F147))),\"\")","v":""},{"$f":"IFERROR(INDEX(Database_Prop!$B$2:$B$1498,SMALL(IF(Database_Prop!$A$2:$A$1498=AJ$129,ROW(Database_Prop!$B$2:$B$1498)-ROW(Database_Prop!$B$2)+1),ROWS(Database_Prop!G$2:'Database_Prop'!G147))),\"\")","v":""},{"$f":"IFERROR(INDEX(Database_Prop!$B$2:$B$1498,SMALL(IF(Database_Prop!$A$2:$A$1498=AK$129,ROW(Database_Prop!$B$2:$B$1498)-ROW(Database_Prop!$B$2)+1),ROWS(Database_Prop!H$2:'Database_Prop'!H147))),\"\")","v":""},{"$f":"IFERROR(INDEX(Database_Prop!$B$2:$B$1498,SMALL(IF(Database_Prop!$A$2:$A$1498=AL$129,ROW(Database_Prop!$B$2:$B$1498)-ROW(Database_Prop!$B$2)+1),ROWS(Database_Prop!I$2:'Database_Prop'!I147))),\"\")","v":""},{"$f":"IFERROR(INDEX(Database_Prop!$B$2:$B$1498,SMALL(IF(Database_Prop!$A$2:$A$1498=AM$129,ROW(Database_Prop!$B$2:$B$1498)-ROW(Database_Prop!$B$2)+1),ROWS(Database_Prop!J$2:'Database_Prop'!J147))),\"\")","v":""},{"$f":"IFERROR(INDEX(Database_Prop!$B$2:$B$1498,SMALL(IF(Database_Prop!$A$2:$A$1498=AN$129,ROW(Database_Prop!$B$2:$B$1498)-ROW(Database_Prop!$B$2)+1),ROWS(Database_Prop!K$2:'Database_Prop'!K147))),\"\")","v":""},{"$f":"IFERROR(INDEX(Database_Prop!$B$2:$B$1498,SMALL(IF(Database_Prop!$A$2:$A$1498=AO$129,ROW(Database_Prop!$B$2:$B$1498)-ROW(Database_Prop!$B$2)+1),ROWS(Database_Prop!L$2:'Database_Prop'!L147))),\"\")","v":""},{"$f":"IFERROR(INDEX(Database_Prop!$B$2:$B$1498,SMALL(IF(Database_Prop!$A$2:$A$1498=AP$129,ROW(Database_Prop!$B$2:$B$1498)-ROW(Database_Prop!$B$2)+1),ROWS(Database_Prop!M$2:'Database_Prop'!M147))),\"\")","v":""},{"$f":"IFERROR(INDEX(Database_Prop!$B$2:$B$1498,SMALL(IF(Database_Prop!$A$2:$A$1498=AQ$129,ROW(Database_Prop!$B$2:$B$1498)-ROW(Database_Prop!$B$2)+1),ROWS(Database_Prop!N$2:'Database_Prop'!N147))),\"\")","v":""},{"$f":"IFERROR(INDEX(Database_Prop!$B$2:$B$1498,SMALL(IF(Database_Prop!$A$2:$A$1498=AR$129,ROW(Database_Prop!$B$2:$B$1498)-ROW(Database_Prop!$B$2)+1),ROWS(Database_Prop!O$2:'Database_Prop'!O147))),\"\")","v":""},{"$f":"IFERROR(INDEX(Database_Prop!$B$2:$B$1498,SMALL(IF(Database_Prop!$A$2:$A$1498=AS$129,ROW(Database_Prop!$B$2:$B$1498)-ROW(Database_Prop!$B$2)+1),ROWS(Database_Prop!P$2:'Database_Prop'!P147))),\"\")","v":""},{"$f":"IFERROR(INDEX(Database_Prop!$B$2:$B$1498,SMALL(IF(Database_Prop!$A$2:$A$1498=AT$129,ROW(Database_Prop!$B$2:$B$1498)-ROW(Database_Prop!$B$2)+1),ROWS(Database_Prop!Q$2:'Database_Prop'!Q147))),\"\")","v":""},{"$f":"IFERROR(INDEX(Database_Prop!$B$2:$B$1498,SMALL(IF(Database_Prop!$A$2:$A$1498=AU$129,ROW(Database_Prop!$B$2:$B$1498)-ROW(Database_Prop!$B$2)+1),ROWS(Database_Prop!R$2:'Database_Prop'!R147))),\"\")","v":""},{"$f":"IFERROR(INDEX(Database_Prop!$B$2:$B$1498,SMALL(IF(Database_Prop!$A$2:$A$1498=AV$129,ROW(Database_Prop!$B$2:$B$1498)-ROW(Database_Prop!$B$2)+1),ROWS(Database_Prop!S$2:'Database_Prop'!S147))),\"\")","v":""},{"$f":"IFERROR(INDEX(Database_Prop!$B$2:$B$1498,SMALL(IF(Database_Prop!$A$2:$A$1498=AW$129,ROW(Database_Prop!$B$2:$B$1498)-ROW(Database_Prop!$B$2)+1),ROWS(Database_Prop!T$2:'Database_Prop'!T147))),\"\")","v":""},{"$f":"IFERROR(INDEX(Database_Prop!$B$2:$B$1498,SMALL(IF(Database_Prop!$A$2:$A$1498=AX$129,ROW(Database_Prop!$B$2:$B$1498)-ROW(Database_Prop!$B$2)+1),ROWS(Database_Prop!U$2:'Database_Prop'!U147))),\"\")","v":""},{"$f":"IFERROR(INDEX(Database_Prop!$B$2:$B$1498,SMALL(IF(Database_Prop!$A$2:$A$1498=AY$129,ROW(Database_Prop!$B$2:$B$1498)-ROW(Database_Prop!$B$2)+1),ROWS(Database_Prop!V$2:'Database_Prop'!V147))),\"\")","v":""},{"$f":"IFERROR(INDEX(Database_Prop!$B$2:$B$1498,SMALL(IF(Database_Prop!$A$2:$A$1498=AZ$129,ROW(Database_Prop!$B$2:$B$1498)-ROW(Database_Prop!$B$2)+1),ROWS(Database_Prop!W$2:'Database_Prop'!W147))),\"\")","v":""},{"$f":"IFERROR(INDEX(Database_Prop!$B$2:$B$1498,SMALL(IF(Database_Prop!$A$2:$A$1498=BA$129,ROW(Database_Prop!$B$2:$B$1498)-ROW(Database_Prop!$B$2)+1),ROWS(Database_Prop!X$2:'Database_Prop'!X147))),\"\")","v":""},{"$f":"IFERROR(INDEX(Database_Prop!$B$2:$B$1498,SMALL(IF(Database_Prop!$A$2:$A$1498=BB$129,ROW(Database_Prop!$B$2:$B$1498)-ROW(Database_Prop!$B$2)+1),ROWS(Database_Prop!Y$2:'Database_Prop'!Y147))),\"\")","v":""},{"$f":"IFERROR(INDEX(Database_Prop!$B$2:$B$1498,SMALL(IF(Database_Prop!$A$2:$A$1498=BC$129,ROW(Database_Prop!$B$2:$B$1498)-ROW(Database_Prop!$B$2)+1),ROWS(Database_Prop!Z$2:'Database_Prop'!Z147))),\"\")","v":""},null,"New Caledonia","Oceania"]
[null,null,null,null,null,null,null,null,null,null,null,null,null,null,null,null,null,null,null,null,null,null,null,null,null,null,null,null,null,null,148,{"$f":"IFERROR(INDEX(Database_Prop!$B$2:$B$1498,SMALL(IF(Database_Prop!$A$2:$A$1498=AF$129,ROW(Database_Prop!$B$2:$B$1498)-ROW(Database_Prop!$B$2)+1),ROWS(Database_Prop!C$2:'Database_Prop'!C148))),\"\")","v":""},{"$f":"IFERROR(INDEX(Database_Prop!$B$2:$B$1498,SMALL(IF(Database_Prop!$A$2:$A$1498=AG$129,ROW(Database_Prop!$B$2:$B$1498)-ROW(Database_Prop!$B$2)+1),ROWS(Database_Prop!D$2:'Database_Prop'!D148))),\"\")","v":""},{"$f":"IFERROR(INDEX(Database_Prop!$B$2:$B$1498,SMALL(IF(Database_Prop!$A$2:$A$1498=AH$129,ROW(Database_Prop!$B$2:$B$1498)-ROW(Database_Prop!$B$2)+1),ROWS(Database_Prop!E$2:'Database_Prop'!E148))),\"\")","v":""},{"$f":"IFERROR(INDEX(Database_Prop!$B$2:$B$1498,SMALL(IF(Database_Prop!$A$2:$A$1498=AI$129,ROW(Database_Prop!$B$2:$B$1498)-ROW(Database_Prop!$B$2)+1),ROWS(Database_Prop!F$2:'Database_Prop'!F148))),\"\")","v":""},{"$f":"IFERROR(INDEX(Database_Prop!$B$2:$B$1498,SMALL(IF(Database_Prop!$A$2:$A$1498=AJ$129,ROW(Database_Prop!$B$2:$B$1498)-ROW(Database_Prop!$B$2)+1),ROWS(Database_Prop!G$2:'Database_Prop'!G148))),\"\")","v":""},{"$f":"IFERROR(INDEX(Database_Prop!$B$2:$B$1498,SMALL(IF(Database_Prop!$A$2:$A$1498=AK$129,ROW(Database_Prop!$B$2:$B$1498)-ROW(Database_Prop!$B$2)+1),ROWS(Database_Prop!H$2:'Database_Prop'!H148))),\"\")","v":""},{"$f":"IFERROR(INDEX(Database_Prop!$B$2:$B$1498,SMALL(IF(Database_Prop!$A$2:$A$1498=AL$129,ROW(Database_Prop!$B$2:$B$1498)-ROW(Database_Prop!$B$2)+1),ROWS(Database_Prop!I$2:'Database_Prop'!I148))),\"\")","v":""},{"$f":"IFERROR(INDEX(Database_Prop!$B$2:$B$1498,SMALL(IF(Database_Prop!$A$2:$A$1498=AM$129,ROW(Database_Prop!$B$2:$B$1498)-ROW(Database_Prop!$B$2)+1),ROWS(Database_Prop!J$2:'Database_Prop'!J148))),\"\")","v":""},{"$f":"IFERROR(INDEX(Database_Prop!$B$2:$B$1498,SMALL(IF(Database_Prop!$A$2:$A$1498=AN$129,ROW(Database_Prop!$B$2:$B$1498)-ROW(Database_Prop!$B$2)+1),ROWS(Database_Prop!K$2:'Database_Prop'!K148))),\"\")","v":""},{"$f":"IFERROR(INDEX(Database_Prop!$B$2:$B$1498,SMALL(IF(Database_Prop!$A$2:$A$1498=AO$129,ROW(Database_Prop!$B$2:$B$1498)-ROW(Database_Prop!$B$2)+1),ROWS(Database_Prop!L$2:'Database_Prop'!L148))),\"\")","v":""},{"$f":"IFERROR(INDEX(Database_Prop!$B$2:$B$1498,SMALL(IF(Database_Prop!$A$2:$A$1498=AP$129,ROW(Database_Prop!$B$2:$B$1498)-ROW(Database_Prop!$B$2)+1),ROWS(Database_Prop!M$2:'Database_Prop'!M148))),\"\")","v":""},{"$f":"IFERROR(INDEX(Database_Prop!$B$2:$B$1498,SMALL(IF(Database_Prop!$A$2:$A$1498=AQ$129,ROW(Database_Prop!$B$2:$B$1498)-ROW(Database_Prop!$B$2)+1),ROWS(Database_Prop!N$2:'Database_Prop'!N148))),\"\")","v":""},{"$f":"IFERROR(INDEX(Database_Prop!$B$2:$B$1498,SMALL(IF(Database_Prop!$A$2:$A$1498=AR$129,ROW(Database_Prop!$B$2:$B$1498)-ROW(Database_Prop!$B$2)+1),ROWS(Database_Prop!O$2:'Database_Prop'!O148))),\"\")","v":""},{"$f":"IFERROR(INDEX(Database_Prop!$B$2:$B$1498,SMALL(IF(Database_Prop!$A$2:$A$1498=AS$129,ROW(Database_Prop!$B$2:$B$1498)-ROW(Database_Prop!$B$2)+1),ROWS(Database_Prop!P$2:'Database_Prop'!P148))),\"\")","v":""},{"$f":"IFERROR(INDEX(Database_Prop!$B$2:$B$1498,SMALL(IF(Database_Prop!$A$2:$A$1498=AT$129,ROW(Database_Prop!$B$2:$B$1498)-ROW(Database_Prop!$B$2)+1),ROWS(Database_Prop!Q$2:'Database_Prop'!Q148))),\"\")","v":""},{"$f":"IFERROR(INDEX(Database_Prop!$B$2:$B$1498,SMALL(IF(Database_Prop!$A$2:$A$1498=AU$129,ROW(Database_Prop!$B$2:$B$1498)-ROW(Database_Prop!$B$2)+1),ROWS(Database_Prop!R$2:'Database_Prop'!R148))),\"\")","v":""},{"$f":"IFERROR(INDEX(Database_Prop!$B$2:$B$1498,SMALL(IF(Database_Prop!$A$2:$A$1498=AV$129,ROW(Database_Prop!$B$2:$B$1498)-ROW(Database_Prop!$B$2)+1),ROWS(Database_Prop!S$2:'Database_Prop'!S148))),\"\")","v":""},{"$f":"IFERROR(INDEX(Database_Prop!$B$2:$B$1498,SMALL(IF(Database_Prop!$A$2:$A$1498=AW$129,ROW(Database_Prop!$B$2:$B$1498)-ROW(Database_Prop!$B$2)+1),ROWS(Database_Prop!T$2:'Database_Prop'!T148))),\"\")","v":""},{"$f":"IFERROR(INDEX(Database_Prop!$B$2:$B$1498,SMALL(IF(Database_Prop!$A$2:$A$1498=AX$129,ROW(Database_Prop!$B$2:$B$1498)-ROW(Database_Prop!$B$2)+1),ROWS(Database_Prop!U$2:'Database_Prop'!U148))),\"\")","v":""},{"$f":"IFERROR(INDEX(Database_Prop!$B$2:$B$1498,SMALL(IF(Database_Prop!$A$2:$A$1498=AY$129,ROW(Database_Prop!$B$2:$B$1498)-ROW(Database_Prop!$B$2)+1),ROWS(Database_Prop!V$2:'Database_Prop'!V148))),\"\")","v":""},{"$f":"IFERROR(INDEX(Database_Prop!$B$2:$B$1498,SMALL(IF(Database_Prop!$A$2:$A$1498=AZ$129,ROW(Database_Prop!$B$2:$B$1498)-ROW(Database_Prop!$B$2)+1),ROWS(Database_Prop!W$2:'Database_Prop'!W148))),\"\")","v":""},{"$f":"IFERROR(INDEX(Database_Prop!$B$2:$B$1498,SMALL(IF(Database_Prop!$A$2:$A$1498=BA$129,ROW(Database_Prop!$B$2:$B$1498)-ROW(Database_Prop!$B$2)+1),ROWS(Database_Prop!X$2:'Database_Prop'!X148))),\"\")","v":""},{"$f":"IFERROR(INDEX(Database_Prop!$B$2:$B$1498,SMALL(IF(Database_Prop!$A$2:$A$1498=BB$129,ROW(Database_Prop!$B$2:$B$1498)-ROW(Database_Prop!$B$2)+1),ROWS(Database_Prop!Y$2:'Database_Prop'!Y148))),\"\")","v":""},{"$f":"IFERROR(INDEX(Database_Prop!$B$2:$B$1498,SMALL(IF(Database_Prop!$A$2:$A$1498=BC$129,ROW(Database_Prop!$B$2:$B$1498)-ROW(Database_Prop!$B$2)+1),ROWS(Database_Prop!Z$2:'Database_Prop'!Z148))),\"\")","v":""},null,"New Zealand","Oceania"]
[null,null,null,null,null,null,null,null,null,null,null,null,null,null,null,null,null,null,null,null,null,null,null,null,null,null,null,null,null,null,149,{"$f":"IFERROR(INDEX(Database_Prop!$B$2:$B$1498,SMALL(IF(Database_Prop!$A$2:$A$1498=AF$129,ROW(Database_Prop!$B$2:$B$1498)-ROW(Database_Prop!$B$2)+1),ROWS(Database_Prop!C$2:'Database_Prop'!C149))),\"\")","v":""},{"$f":"IFERROR(INDEX(Database_Prop!$B$2:$B$1498,SMALL(IF(Database_Prop!$A$2:$A$1498=AG$129,ROW(Database_Prop!$B$2:$B$1498)-ROW(Database_Prop!$B$2)+1),ROWS(Database_Prop!D$2:'Database_Prop'!D149))),\"\")","v":""},{"$f":"IFERROR(INDEX(Database_Prop!$B$2:$B$1498,SMALL(IF(Database_Prop!$A$2:$A$1498=AH$129,ROW(Database_Prop!$B$2:$B$1498)-ROW(Database_Prop!$B$2)+1),ROWS(Database_Prop!E$2:'Database_Prop'!E149))),\"\")","v":""},{"$f":"IFERROR(INDEX(Database_Prop!$B$2:$B$1498,SMALL(IF(Database_Prop!$A$2:$A$1498=AI$129,ROW(Database_Prop!$B$2:$B$1498)-ROW(Database_Prop!$B$2)+1),ROWS(Database_Prop!F$2:'Database_Prop'!F149))),\"\")","v":""},{"$f":"IFERROR(INDEX(Database_Prop!$B$2:$B$1498,SMALL(IF(Database_Prop!$A$2:$A$1498=AJ$129,ROW(Database_Prop!$B$2:$B$1498)-ROW(Database_Prop!$B$2)+1),ROWS(Database_Prop!G$2:'Database_Prop'!G149))),\"\")","v":""},{"$f":"IFERROR(INDEX(Database_Prop!$B$2:$B$1498,SMALL(IF(Database_Prop!$A$2:$A$1498=AK$129,ROW(Database_Prop!$B$2:$B$1498)-ROW(Database_Prop!$B$2)+1),ROWS(Database_Prop!H$2:'Database_Prop'!H149))),\"\")","v":""},{"$f":"IFERROR(INDEX(Database_Prop!$B$2:$B$1498,SMALL(IF(Database_Prop!$A$2:$A$1498=AL$129,ROW(Database_Prop!$B$2:$B$1498)-ROW(Database_Prop!$B$2)+1),ROWS(Database_Prop!I$2:'Database_Prop'!I149))),\"\")","v":""},{"$f":"IFERROR(INDEX(Database_Prop!$B$2:$B$1498,SMALL(IF(Database_Prop!$A$2:$A$1498=AM$129,ROW(Database_Prop!$B$2:$B$1498)-ROW(Database_Prop!$B$2)+1),ROWS(Database_Prop!J$2:'Database_Prop'!J149))),\"\")","v":""},{"$f":"IFERROR(INDEX(Database_Prop!$B$2:$B$1498,SMALL(IF(Database_Prop!$A$2:$A$1498=AN$129,ROW(Database_Prop!$B$2:$B$1498)-ROW(Database_Prop!$B$2)+1),ROWS(Database_Prop!K$2:'Database_Prop'!K149))),\"\")","v":""},{"$f":"IFERROR(INDEX(Database_Prop!$B$2:$B$1498,SMALL(IF(Database_Prop!$A$2:$A$1498=AO$129,ROW(Database_Prop!$B$2:$B$1498)-ROW(Database_Prop!$B$2)+1),ROWS(Database_Prop!L$2:'Database_Prop'!L149))),\"\")","v":""},{"$f":"IFERROR(INDEX(Database_Prop!$B$2:$B$1498,SMALL(IF(Database_Prop!$A$2:$A$1498=AP$129,ROW(Database_Prop!$B$2:$B$1498)-ROW(Database_Prop!$B$2)+1),ROWS(Database_Prop!M$2:'Database_Prop'!M149))),\"\")","v":""},{"$f":"IFERROR(INDEX(Database_Prop!$B$2:$B$1498,SMALL(IF(Database_Prop!$A$2:$A$1498=AQ$129,ROW(Database_Prop!$B$2:$B$1498)-ROW(Database_Prop!$B$2)+1),ROWS(Database_Prop!N$2:'Database_Prop'!N149))),\"\")","v":""},{"$f":"IFERROR(INDEX(Database_Prop!$B$2:$B$1498,SMALL(IF(Database_Prop!$A$2:$A$1498=AR$129,ROW(Database_Prop!$B$2:$B$1498)-ROW(Database_Prop!$B$2)+1),ROWS(Database_Prop!O$2:'Database_Prop'!O149))),\"\")","v":""},{"$f":"IFERROR(INDEX(Database_Prop!$B$2:$B$1498,SMALL(IF(Database_Prop!$A$2:$A$1498=AS$129,ROW(Database_Prop!$B$2:$B$1498)-ROW(Database_Prop!$B$2)+1),ROWS(Database_Prop!P$2:'Database_Prop'!P149))),\"\")","v":""},{"$f":"IFERROR(INDEX(Database_Prop!$B$2:$B$1498,SMALL(IF(Database_Prop!$A$2:$A$1498=AT$129,ROW(Database_Prop!$B$2:$B$1498)-ROW(Database_Prop!$B$2)+1),ROWS(Database_Prop!Q$2:'Database_Prop'!Q149))),\"\")","v":""},{"$f":"IFERROR(INDEX(Database_Prop!$B$2:$B$1498,SMALL(IF(Database_Prop!$A$2:$A$1498=AU$129,ROW(Database_Prop!$B$2:$B$1498)-ROW(Database_Prop!$B$2)+1),ROWS(Database_Prop!R$2:'Database_Prop'!R149))),\"\")","v":""},{"$f":"IFERROR(INDEX(Database_Prop!$B$2:$B$1498,SMALL(IF(Database_Prop!$A$2:$A$1498=AV$129,ROW(Database_Prop!$B$2:$B$1498)-ROW(Database_Prop!$B$2)+1),ROWS(Database_Prop!S$2:'Database_Prop'!S149))),\"\")","v":""},{"$f":"IFERROR(INDEX(Database_Prop!$B$2:$B$1498,SMALL(IF(Database_Prop!$A$2:$A$1498=AW$129,ROW(Database_Prop!$B$2:$B$1498)-ROW(Database_Prop!$B$2)+1),ROWS(Database_Prop!T$2:'Database_Prop'!T149))),\"\")","v":""},{"$f":"IFERROR(INDEX(Database_Prop!$B$2:$B$1498,SMALL(IF(Database_Prop!$A$2:$A$1498=AX$129,ROW(Database_Prop!$B$2:$B$1498)-ROW(Database_Prop!$B$2)+1),ROWS(Database_Prop!U$2:'Database_Prop'!U149))),\"\")","v":""},{"$f":"IFERROR(INDEX(Database_Prop!$B$2:$B$1498,SMALL(IF(Database_Prop!$A$2:$A$1498=AY$129,ROW(Database_Prop!$B$2:$B$1498)-ROW(Database_Prop!$B$2)+1),ROWS(Database_Prop!V$2:'Database_Prop'!V149))),\"\")","v":""},{"$f":"IFERROR(INDEX(Database_Prop!$B$2:$B$1498,SMALL(IF(Database_Prop!$A$2:$A$1498=AZ$129,ROW(Database_Prop!$B$2:$B$1498)-ROW(Database_Prop!$B$2)+1),ROWS(Database_Prop!W$2:'Database_Prop'!W149))),\"\")","v":""},{"$f":"IFERROR(INDEX(Database_Prop!$B$2:$B$1498,SMALL(IF(Database_Prop!$A$2:$A$1498=BA$129,ROW(Database_Prop!$B$2:$B$1498)-ROW(Database_Prop!$B$2)+1),ROWS(Database_Prop!X$2:'Database_Prop'!X149))),\"\")","v":""},{"$f":"IFERROR(INDEX(Database_Prop!$B$2:$B$1498,SMALL(IF(Database_Prop!$A$2:$A$1498=BB$129,ROW(Database_Prop!$B$2:$B$1498)-ROW(Database_Prop!$B$2)+1),ROWS(Database_Prop!Y$2:'Database_Prop'!Y149))),\"\")","v":""},{"$f":"IFERROR(INDEX(Database_Prop!$B$2:$B$1498,SMALL(IF(Database_Prop!$A$2:$A$1498=BC$129,ROW(Database_Prop!$B$2:$B$1498)-ROW(Database_Prop!$B$2)+1),ROWS(Database_Prop!Z$2:'Database_Prop'!Z149))),\"\")","v":""},null,"Nicaragua","Latin America"]
[null,null,null,null,null,null,null,null,null,null,null,null,null,null,null,null,null,null,null,null,null,null,null,null,null,null,null,null,null,null,150,{"$f":"IFERROR(INDEX(Database_Prop!$B$2:$B$1498,SMALL(IF(Database_Prop!$A$2:$A$1498=AF$129,ROW(Database_Prop!$B$2:$B$1498)-ROW(Database_Prop!$B$2)+1),ROWS(Database_Prop!C$2:'Database_Prop'!C150))),\"\")","v":""},{"$f":"IFERROR(INDEX(Database_Prop!$B$2:$B$1498,SMALL(IF(Database_Prop!$A$2:$A$1498=AG$129,ROW(Database_Prop!$B$2:$B$1498)-ROW(Database_Prop!$B$2)+1),ROWS(Database_Prop!D$2:'Database_Prop'!D150))),\"\")","v":""},{"$f":"IFERROR(INDEX(Database_Prop!$B$2:$B$1498,SMALL(IF(Database_Prop!$A$2:$A$1498=AH$129,ROW(Database_Prop!$B$2:$B$1498)-ROW(Database_Prop!$B$2)+1),ROWS(Database_Prop!E$2:'Database_Prop'!E150))),\"\")","v":""},{"$f":"IFERROR(INDEX(Database_Prop!$B$2:$B$1498,SMALL(IF(Database_Prop!$A$2:$A$1498=AI$129,ROW(Database_Prop!$B$2:$B$1498)-ROW(Database_Prop!$B$2)+1),ROWS(Database_Prop!F$2:'Database_Prop'!F150))),\"\")","v":""},{"$f":"IFERROR(INDEX(Database_Prop!$B$2:$B$1498,SMALL(IF(Database_Prop!$A$2:$A$1498=AJ$129,ROW(Database_Prop!$B$2:$B$1498)-ROW(Database_Prop!$B$2)+1),ROWS(Database_Prop!G$2:'Database_Prop'!G150))),\"\")","v":""},{"$f":"IFERROR(INDEX(Database_Prop!$B$2:$B$1498,SMALL(IF(Database_Prop!$A$2:$A$1498=AK$129,ROW(Database_Prop!$B$2:$B$1498)-ROW(Database_Prop!$B$2)+1),ROWS(Database_Prop!H$2:'Database_Prop'!H150))),\"\")","v":""},{"$f":"IFERROR(INDEX(Database_Prop!$B$2:$B$1498,SMALL(IF(Database_Prop!$A$2:$A$1498=AL$129,ROW(Database_Prop!$B$2:$B$1498)-ROW(Database_Prop!$B$2)+1),ROWS(Database_Prop!I$2:'Database_Prop'!I150))),\"\")","v":""},{"$f":"IFERROR(INDEX(Database_Prop!$B$2:$B$1498,SMALL(IF(Database_Prop!$A$2:$A$1498=AM$129,ROW(Database_Prop!$B$2:$B$1498)-ROW(Database_Prop!$B$2)+1),ROWS(Database_Prop!J$2:'Database_Prop'!J150))),\"\")","v":""},{"$f":"IFERROR(INDEX(Database_Prop!$B$2:$B$1498,SMALL(IF(Database_Prop!$A$2:$A$1498=AN$129,ROW(Database_Prop!$B$2:$B$1498)-ROW(Database_Prop!$B$2)+1),ROWS(Database_Prop!K$2:'Database_Prop'!K150))),\"\")","v":""},{"$f":"IFERROR(INDEX(Database_Prop!$B$2:$B$1498,SMALL(IF(Database_Prop!$A$2:$A$1498=AO$129,ROW(Database_Prop!$B$2:$B$1498)-ROW(Database_Prop!$B$2)+1),ROWS(Database_Prop!L$2:'Database_Prop'!L150))),\"\")","v":""},{"$f":"IFERROR(INDEX(Database_Prop!$B$2:$B$1498,SMALL(IF(Database_Prop!$A$2:$A$1498=AP$129,ROW(Database_Prop!$B$2:$B$1498)-ROW(Database_Prop!$B$2)+1),ROWS(Database_Prop!M$2:'Database_Prop'!M150))),\"\")","v":""},{"$f":"IFERROR(INDEX(Database_Prop!$B$2:$B$1498,SMALL(IF(Database_Prop!$A$2:$A$1498=AQ$129,ROW(Database_Prop!$B$2:$B$1498)-ROW(Database_Prop!$B$2)+1),ROWS(Database_Prop!N$2:'Database_Prop'!N150))),\"\")","v":""},{"$f":"IFERROR(INDEX(Database_Prop!$B$2:$B$1498,SMALL(IF(Database_Prop!$A$2:$A$1498=AR$129,ROW(Database_Prop!$B$2:$B$1498)-ROW(Database_Prop!$B$2)+1),ROWS(Database_Prop!O$2:'Database_Prop'!O150))),\"\")","v":""},{"$f":"IFERROR(INDEX(Database_Prop!$B$2:$B$1498,SMALL(IF(Database_Prop!$A$2:$A$1498=AS$129,ROW(Database_Prop!$B$2:$B$1498)-ROW(Database_Prop!$B$2)+1),ROWS(Database_Prop!P$2:'Database_Prop'!P150))),\"\")","v":""},{"$f":"IFERROR(INDEX(Database_Prop!$B$2:$B$1498,SMALL(IF(Database_Prop!$A$2:$A$1498=AT$129,ROW(Database_Prop!$B$2:$B$1498)-ROW(Database_Prop!$B$2)+1),ROWS(Database_Prop!Q$2:'Database_Prop'!Q150))),\"\")","v":""},{"$f":"IFERROR(INDEX(Database_Prop!$B$2:$B$1498,SMALL(IF(Database_Prop!$A$2:$A$1498=AU$129,ROW(Database_Prop!$B$2:$B$1498)-ROW(Database_Prop!$B$2)+1),ROWS(Database_Prop!R$2:'Database_Prop'!R150))),\"\")","v":""},{"$f":"IFERROR(INDEX(Database_Prop!$B$2:$B$1498,SMALL(IF(Database_Prop!$A$2:$A$1498=AV$129,ROW(Database_Prop!$B$2:$B$1498)-ROW(Database_Prop!$B$2)+1),ROWS(Database_Prop!S$2:'Database_Prop'!S150))),\"\")","v":""},{"$f":"IFERROR(INDEX(Database_Prop!$B$2:$B$1498,SMALL(IF(Database_Prop!$A$2:$A$1498=AW$129,ROW(Database_Prop!$B$2:$B$1498)-ROW(Database_Prop!$B$2)+1),ROWS(Database_Prop!T$2:'Database_Prop'!T150))),\"\")","v":""},{"$f":"IFERROR(INDEX(Database_Prop!$B$2:$B$1498,SMALL(IF(Database_Prop!$A$2:$A$1498=AX$129,ROW(Database_Prop!$B$2:$B$1498)-ROW(Database_Prop!$B$2)+1),ROWS(Database_Prop!U$2:'Database_Prop'!U150))),\"\")","v":""},{"$f":"IFERROR(INDEX(Database_Prop!$B$2:$B$1498,SMALL(IF(Database_Prop!$A$2:$A$1498=AY$129,ROW(Database_Prop!$B$2:$B$1498)-ROW(Database_Prop!$B$2)+1),ROWS(Database_Prop!V$2:'Database_Prop'!V150))),\"\")","v":""},{"$f":"IFERROR(INDEX(Database_Prop!$B$2:$B$1498,SMALL(IF(Database_Prop!$A$2:$A$1498=AZ$129,ROW(Database_Prop!$B$2:$B$1498)-ROW(Database_Prop!$B$2)+1),ROWS(Database_Prop!W$2:'Database_Prop'!W150))),\"\")","v":""},{"$f":"IFERROR(INDEX(Database_Prop!$B$2:$B$1498,SMALL(IF(Database_Prop!$A$2:$A$1498=BA$129,ROW(Database_Prop!$B$2:$B$1498)-ROW(Database_Prop!$B$2)+1),ROWS(Database_Prop!X$2:'Database_Prop'!X150))),\"\")","v":""},{"$f":"IFERROR(INDEX(Database_Prop!$B$2:$B$1498,SMALL(IF(Database_Prop!$A$2:$A$1498=BB$129,ROW(Database_Prop!$B$2:$B$1498)-ROW(Database_Prop!$B$2)+1),ROWS(Database_Prop!Y$2:'Database_Prop'!Y150))),\"\")","v":""},{"$f":"IFERROR(INDEX(Database_Prop!$B$2:$B$1498,SMALL(IF(Database_Prop!$A$2:$A$1498=BC$129,ROW(Database_Prop!$B$2:$B$1498)-ROW(Database_Prop!$B$2)+1),ROWS(Database_Prop!Z$2:'Database_Prop'!Z150))),\"\")","v":""},null,"Niger","Africa"]
[null,null,null,null,null,null,null,null,null,null,null,null,null,null,null,null,null,null,null,null,null,null,null,null,null,null,null,null,null,null,151,{"$f":"IFERROR(INDEX(Database_Prop!$B$2:$B$1498,SMALL(IF(Database_Prop!$A$2:$A$1498=AF$129,ROW(Database_Prop!$B$2:$B$1498)-ROW(Database_Prop!$B$2)+1),ROWS(Database_Prop!C$2:'Database_Prop'!C151))),\"\")","v":""},{"$f":"IFERROR(INDEX(Database_Prop!$B$2:$B$1498,SMALL(IF(Database_Prop!$A$2:$A$1498=AG$129,ROW(Database_Prop!$B$2:$B$1498)-ROW(Database_Prop!$B$2)+1),ROWS(Database_Prop!D$2:'Database_Prop'!D151))),\"\")","v":""},{"$f":"IFERROR(INDEX(Database_Prop!$B$2:$B$1498,SMALL(IF(Database_Prop!$A$2:$A$1498=AH$129,ROW(Database_Prop!$B$2:$B$1498)-ROW(Database_Prop!$B$2)+1),ROWS(Database_Prop!E$2:'Database_Prop'!E151))),\"\")","v":""},{"$f":"IFERROR(INDEX(Database_Prop!$B$2:$B$1498,SMALL(IF(Database_Prop!$A$2:$A$1498=AI$129,ROW(Database_Prop!$B$2:$B$1498)-ROW(Database_Prop!$B$2)+1),ROWS(Database_Prop!F$2:'Database_Prop'!F151))),\"\")","v":""},{"$f":"IFERROR(INDEX(Database_Prop!$B$2:$B$1498,SMALL(IF(Database_Prop!$A$2:$A$1498=AJ$129,ROW(Database_Prop!$B$2:$B$1498)-ROW(Database_Prop!$B$2)+1),ROWS(Database_Prop!G$2:'Database_Prop'!G151))),\"\")","v":""},{"$f":"IFERROR(INDEX(Database_Prop!$B$2:$B$1498,SMALL(IF(Database_Prop!$A$2:$A$1498=AK$129,ROW(Database_Prop!$B$2:$B$1498)-ROW(Database_Prop!$B$2)+1),ROWS(Database_Prop!H$2:'Database_Prop'!H151))),\"\")","v":""},{"$f":"IFERROR(INDEX(Database_Prop!$B$2:$B$1498,SMALL(IF(Database_Prop!$A$2:$A$1498=AL$129,ROW(Database_Prop!$B$2:$B$1498)-ROW(Database_Prop!$B$2)+1),ROWS(Database_Prop!I$2:'Database_Prop'!I151))),\"\")","v":""},{"$f":"IFERROR(INDEX(Database_Prop!$B$2:$B$1498,SMALL(IF(Database_Prop!$A$2:$A$1498=AM$129,ROW(Database_Prop!$B$2:$B$1498)-ROW(Database_Prop!$B$2)+1),ROWS(Database_Prop!J$2:'Database_Prop'!J151))),\"\")","v":""},{"$f":"IFERROR(INDEX(Database_Prop!$B$2:$B$1498,SMALL(IF(Database_Prop!$A$2:$A$1498=AN$129,ROW(Database_Prop!$B$2:$B$1498)-ROW(Database_Prop!$B$2)+1),ROWS(Database_Prop!K$2:'Database_Prop'!K151))),\"\")","v":""},{"$f":"IFERROR(INDEX(Database_Prop!$B$2:$B$1498,SMALL(IF(Database_Prop!$A$2:$A$1498=AO$129,ROW(Database_Prop!$B$2:$B$1498)-ROW(Database_Prop!$B$2)+1),ROWS(Database_Prop!L$2:'Database_Prop'!L151))),\"\")","v":""},{"$f":"IFERROR(INDEX(Database_Prop!$B$2:$B$1498,SMALL(IF(Database_Prop!$A$2:$A$1498=AP$129,ROW(Database_Prop!$B$2:$B$1498)-ROW(Database_Prop!$B$2)+1),ROWS(Database_Prop!M$2:'Database_Prop'!M151))),\"\")","v":""},{"$f":"IFERROR(INDEX(Database_Prop!$B$2:$B$1498,SMALL(IF(Database_Prop!$A$2:$A$1498=AQ$129,ROW(Database_Prop!$B$2:$B$1498)-ROW(Database_Prop!$B$2)+1),ROWS(Database_Prop!N$2:'Database_Prop'!N151))),\"\")","v":""},{"$f":"IFERROR(INDEX(Database_Prop!$B$2:$B$1498,SMALL(IF(Database_Prop!$A$2:$A$1498=AR$129,ROW(Database_Prop!$B$2:$B$1498)-ROW(Database_Prop!$B$2)+1),ROWS(Database_Prop!O$2:'Database_Prop'!O151))),\"\")","v":""},{"$f":"IFERROR(INDEX(Database_Prop!$B$2:$B$1498,SMALL(IF(Database_Prop!$A$2:$A$1498=AS$129,ROW(Database_Prop!$B$2:$B$1498)-ROW(Database_Prop!$B$2)+1),ROWS(Database_Prop!P$2:'Database_Prop'!P151))),\"\")","v":""},{"$f":"IFERROR(INDEX(Database_Prop!$B$2:$B$1498,SMALL(IF(Database_Prop!$A$2:$A$1498=AT$129,ROW(Database_Prop!$B$2:$B$1498)-ROW(Database_Prop!$B$2)+1),ROWS(Database_Prop!Q$2:'Database_Prop'!Q151))),\"\")","v":""},{"$f":"IFERROR(INDEX(Database_Prop!$B$2:$B$1498,SMALL(IF(Database_Prop!$A$2:$A$1498=AU$129,ROW(Database_Prop!$B$2:$B$1498)-ROW(Database_Prop!$B$2)+1),ROWS(Database_Prop!R$2:'Database_Prop'!R151))),\"\")","v":""},{"$f":"IFERROR(INDEX(Database_Prop!$B$2:$B$1498,SMALL(IF(Database_Prop!$A$2:$A$1498=AV$129,ROW(Database_Prop!$B$2:$B$1498)-ROW(Database_Prop!$B$2)+1),ROWS(Database_Prop!S$2:'Database_Prop'!S151))),\"\")","v":""},{"$f":"IFERROR(INDEX(Database_Prop!$B$2:$B$1498,SMALL(IF(Database_Prop!$A$2:$A$1498=AW$129,ROW(Database_Prop!$B$2:$B$1498)-ROW(Database_Prop!$B$2)+1),ROWS(Database_Prop!T$2:'Database_Prop'!T151))),\"\")","v":""},{"$f":"IFERROR(INDEX(Database_Prop!$B$2:$B$1498,SMALL(IF(Database_Prop!$A$2:$A$1498=AX$129,ROW(Database_Prop!$B$2:$B$1498)-ROW(Database_Prop!$B$2)+1),ROWS(Database_Prop!U$2:'Database_Prop'!U151))),\"\")","v":""},{"$f":"IFERROR(INDEX(Database_Prop!$B$2:$B$1498,SMALL(IF(Database_Prop!$A$2:$A$1498=AY$129,ROW(Database_Prop!$B$2:$B$1498)-ROW(Database_Prop!$B$2)+1),ROWS(Database_Prop!V$2:'Database_Prop'!V151))),\"\")","v":""},{"$f":"IFERROR(INDEX(Database_Prop!$B$2:$B$1498,SMALL(IF(Database_Prop!$A$2:$A$1498=AZ$129,ROW(Database_Prop!$B$2:$B$1498)-ROW(Database_Prop!$B$2)+1),ROWS(Database_Prop!W$2:'Database_Prop'!W151))),\"\")","v":""},{"$f":"IFERROR(INDEX(Database_Prop!$B$2:$B$1498,SMALL(IF(Database_Prop!$A$2:$A$1498=BA$129,ROW(Database_Prop!$B$2:$B$1498)-ROW(Database_Prop!$B$2)+1),ROWS(Database_Prop!X$2:'Database_Prop'!X151))),\"\")","v":""},{"$f":"IFERROR(INDEX(Database_Prop!$B$2:$B$1498,SMALL(IF(Database_Prop!$A$2:$A$1498=BB$129,ROW(Database_Prop!$B$2:$B$1498)-ROW(Database_Prop!$B$2)+1),ROWS(Database_Prop!Y$2:'Database_Prop'!Y151))),\"\")","v":""},{"$f":"IFERROR(INDEX(Database_Prop!$B$2:$B$1498,SMALL(IF(Database_Prop!$A$2:$A$1498=BC$129,ROW(Database_Prop!$B$2:$B$1498)-ROW(Database_Prop!$B$2)+1),ROWS(Database_Prop!Z$2:'Database_Prop'!Z151))),\"\")","v":""},null,"Nigeria","Africa"]
[null,null,null,null,null,null,null,null,null,null,null,null,null,null,null,null,null,null,null,null,null,null,null,null,null,null,null,null,null,null,152,{"$f":"IFERROR(INDEX(Database_Prop!$B$2:$B$1498,SMALL(IF(Database_Prop!$A$2:$A$1498=AF$129,ROW(Database_Prop!$B$2:$B$1498)-ROW(Database_Prop!$B$2)+1),ROWS(Database_Prop!C$2:'Database_Prop'!C152))),\"\")","v":""},{"$f":"IFERROR(INDEX(Database_Prop!$B$2:$B$1498,SMALL(IF(Database_Prop!$A$2:$A$1498=AG$129,ROW(Database_Prop!$B$2:$B$1498)-ROW(Database_Prop!$B$2)+1),ROWS(Database_Prop!D$2:'Database_Prop'!D152))),\"\")","v":""},{"$f":"IFERROR(INDEX(Database_Prop!$B$2:$B$1498,SMALL(IF(Database_Prop!$A$2:$A$1498=AH$129,ROW(Database_Prop!$B$2:$B$1498)-ROW(Database_Prop!$B$2)+1),ROWS(Database_Prop!E$2:'Database_Prop'!E152))),\"\")","v":""},{"$f":"IFERROR(INDEX(Database_Prop!$B$2:$B$1498,SMALL(IF(Database_Prop!$A$2:$A$1498=AI$129,ROW(Database_Prop!$B$2:$B$1498)-ROW(Database_Prop!$B$2)+1),ROWS(Database_Prop!F$2:'Database_Prop'!F152))),\"\")","v":""},{"$f":"IFERROR(INDEX(Database_Prop!$B$2:$B$1498,SMALL(IF(Database_Prop!$A$2:$A$1498=AJ$129,ROW(Database_Prop!$B$2:$B$1498)-ROW(Database_Prop!$B$2)+1),ROWS(Database_Prop!G$2:'Database_Prop'!G152))),\"\")","v":""},{"$f":"IFERROR(INDEX(Database_Prop!$B$2:$B$1498,SMALL(IF(Database_Prop!$A$2:$A$1498=AK$129,ROW(Database_Prop!$B$2:$B$1498)-ROW(Database_Prop!$B$2)+1),ROWS(Database_Prop!H$2:'Database_Prop'!H152))),\"\")","v":""},{"$f":"IFERROR(INDEX(Database_Prop!$B$2:$B$1498,SMALL(IF(Database_Prop!$A$2:$A$1498=AL$129,ROW(Database_Prop!$B$2:$B$1498)-ROW(Database_Prop!$B$2)+1),ROWS(Database_Prop!I$2:'Database_Prop'!I152))),\"\")","v":""},{"$f":"IFERROR(INDEX(Database_Prop!$B$2:$B$1498,SMALL(IF(Database_Prop!$A$2:$A$1498=AM$129,ROW(Database_Prop!$B$2:$B$1498)-ROW(Database_Prop!$B$2)+1),ROWS(Database_Prop!J$2:'Database_Prop'!J152))),\"\")","v":""},{"$f":"IFERROR(INDEX(Database_Prop!$B$2:$B$1498,SMALL(IF(Database_Prop!$A$2:$A$1498=AN$129,ROW(Database_Prop!$B$2:$B$1498)-ROW(Database_Prop!$B$2)+1),ROWS(Database_Prop!K$2:'Database_Prop'!K152))),\"\")","v":""},{"$f":"IFERROR(INDEX(Database_Prop!$B$2:$B$1498,SMALL(IF(Database_Prop!$A$2:$A$1498=AO$129,ROW(Database_Prop!$B$2:$B$1498)-ROW(Database_Prop!$B$2)+1),ROWS(Database_Prop!L$2:'Database_Prop'!L152))),\"\")","v":""},{"$f":"IFERROR(INDEX(Database_Prop!$B$2:$B$1498,SMALL(IF(Database_Prop!$A$2:$A$1498=AP$129,ROW(Database_Prop!$B$2:$B$1498)-ROW(Database_Prop!$B$2)+1),ROWS(Database_Prop!M$2:'Database_Prop'!M152))),\"\")","v":""},{"$f":"IFERROR(INDEX(Database_Prop!$B$2:$B$1498,SMALL(IF(Database_Prop!$A$2:$A$1498=AQ$129,ROW(Database_Prop!$B$2:$B$1498)-ROW(Database_Prop!$B$2)+1),ROWS(Database_Prop!N$2:'Database_Prop'!N152))),\"\")","v":""},{"$f":"IFERROR(INDEX(Database_Prop!$B$2:$B$1498,SMALL(IF(Database_Prop!$A$2:$A$1498=AR$129,ROW(Database_Prop!$B$2:$B$1498)-ROW(Database_Prop!$B$2)+1),ROWS(Database_Prop!O$2:'Database_Prop'!O152))),\"\")","v":""},{"$f":"IFERROR(INDEX(Database_Prop!$B$2:$B$1498,SMALL(IF(Database_Prop!$A$2:$A$1498=AS$129,ROW(Database_Prop!$B$2:$B$1498)-ROW(Database_Prop!$B$2)+1),ROWS(Database_Prop!P$2:'Database_Prop'!P152))),\"\")","v":""},{"$f":"IFERROR(INDEX(Database_Prop!$B$2:$B$1498,SMALL(IF(Database_Prop!$A$2:$A$1498=AT$129,ROW(Database_Prop!$B$2:$B$1498)-ROW(Database_Prop!$B$2)+1),ROWS(Database_Prop!Q$2:'Database_Prop'!Q152))),\"\")","v":""},{"$f":"IFERROR(INDEX(Database_Prop!$B$2:$B$1498,SMALL(IF(Database_Prop!$A$2:$A$1498=AU$129,ROW(Database_Prop!$B$2:$B$1498)-ROW(Database_Prop!$B$2)+1),ROWS(Database_Prop!R$2:'Database_Prop'!R152))),\"\")","v":""},{"$f":"IFERROR(INDEX(Database_Prop!$B$2:$B$1498,SMALL(IF(Database_Prop!$A$2:$A$1498=AV$129,ROW(Database_Prop!$B$2:$B$1498)-ROW(Database_Prop!$B$2)+1),ROWS(Database_Prop!S$2:'Database_Prop'!S152))),\"\")","v":""},{"$f":"IFERROR(INDEX(Database_Prop!$B$2:$B$1498,SMALL(IF(Database_Prop!$A$2:$A$1498=AW$129,ROW(Database_Prop!$B$2:$B$1498)-ROW(Database_Prop!$B$2)+1),ROWS(Database_Prop!T$2:'Database_Prop'!T152))),\"\")","v":""},{"$f":"IFERROR(INDEX(Database_Prop!$B$2:$B$1498,SMALL(IF(Database_Prop!$A$2:$A$1498=AX$129,ROW(Database_Prop!$B$2:$B$1498)-ROW(Database_Prop!$B$2)+1),ROWS(Database_Prop!U$2:'Database_Prop'!U152))),\"\")","v":""},{"$f":"IFERROR(INDEX(Database_Prop!$B$2:$B$1498,SMALL(IF(Database_Prop!$A$2:$A$1498=AY$129,ROW(Database_Prop!$B$2:$B$1498)-ROW(Database_Prop!$B$2)+1),ROWS(Database_Prop!V$2:'Database_Prop'!V152))),\"\")","v":""},{"$f":"IFERROR(INDEX(Database_Prop!$B$2:$B$1498,SMALL(IF(Database_Prop!$A$2:$A$1498=AZ$129,ROW(Database_Prop!$B$2:$B$1498)-ROW(Database_Prop!$B$2)+1),ROWS(Database_Prop!W$2:'Database_Prop'!W152))),\"\")","v":""},{"$f":"IFERROR(INDEX(Database_Prop!$B$2:$B$1498,SMALL(IF(Database_Prop!$A$2:$A$1498=BA$129,ROW(Database_Prop!$B$2:$B$1498)-ROW(Database_Prop!$B$2)+1),ROWS(Database_Prop!X$2:'Database_Prop'!X152))),\"\")","v":""},{"$f":"IFERROR(INDEX(Database_Prop!$B$2:$B$1498,SMALL(IF(Database_Prop!$A$2:$A$1498=BB$129,ROW(Database_Prop!$B$2:$B$1498)-ROW(Database_Prop!$B$2)+1),ROWS(Database_Prop!Y$2:'Database_Prop'!Y152))),\"\")","v":""},{"$f":"IFERROR(INDEX(Database_Prop!$B$2:$B$1498,SMALL(IF(Database_Prop!$A$2:$A$1498=BC$129,ROW(Database_Prop!$B$2:$B$1498)-ROW(Database_Prop!$B$2)+1),ROWS(Database_Prop!Z$2:'Database_Prop'!Z152))),\"\")","v":""},null,"Niue","Oceania"]
[null,null,null,null,null,null,null,null,null,null,null,null,null,null,null,null,null,null,null,null,null,null,null,null,null,null,null,null,null,null,153,{"$f":"IFERROR(INDEX(Database_Prop!$B$2:$B$1498,SMALL(IF(Database_Prop!$A$2:$A$1498=AF$129,ROW(Database_Prop!$B$2:$B$1498)-ROW(Database_Prop!$B$2)+1),ROWS(Database_Prop!C$2:'Database_Prop'!C153))),\"\")","v":""},{"$f":"IFERROR(INDEX(Database_Prop!$B$2:$B$1498,SMALL(IF(Database_Prop!$A$2:$A$1498=AG$129,ROW(Database_Prop!$B$2:$B$1498)-ROW(Database_Prop!$B$2)+1),ROWS(Database_Prop!D$2:'Database_Prop'!D153))),\"\")","v":""},{"$f":"IFERROR(INDEX(Database_Prop!$B$2:$B$1498,SMALL(IF(Database_Prop!$A$2:$A$1498=AH$129,ROW(Database_Prop!$B$2:$B$1498)-ROW(Database_Prop!$B$2)+1),ROWS(Database_Prop!E$2:'Database_Prop'!E153))),\"\")","v":""},{"$f":"IFERROR(INDEX(Database_Prop!$B$2:$B$1498,SMALL(IF(Database_Prop!$A$2:$A$1498=AI$129,ROW(Database_Prop!$B$2:$B$1498)-ROW(Database_Prop!$B$2)+1),ROWS(Database_Prop!F$2:'Database_Prop'!F153))),\"\")","v":""},{"$f":"IFERROR(INDEX(Database_Prop!$B$2:$B$1498,SMALL(IF(Database_Prop!$A$2:$A$1498=AJ$129,ROW(Database_Prop!$B$2:$B$1498)-ROW(Database_Prop!$B$2)+1),ROWS(Database_Prop!G$2:'Database_Prop'!G153))),\"\")","v":""},{"$f":"IFERROR(INDEX(Database_Prop!$B$2:$B$1498,SMALL(IF(Database_Prop!$A$2:$A$1498=AK$129,ROW(Database_Prop!$B$2:$B$1498)-ROW(Database_Prop!$B$2)+1),ROWS(Database_Prop!H$2:'Database_Prop'!H153))),\"\")","v":""},{"$f":"IFERROR(INDEX(Database_Prop!$B$2:$B$1498,SMALL(IF(Database_Prop!$A$2:$A$1498=AL$129,ROW(Database_Prop!$B$2:$B$1498)-ROW(Database_Prop!$B$2)+1),ROWS(Database_Prop!I$2:'Database_Prop'!I153))),\"\")","v":""},{"$f":"IFERROR(INDEX(Database_Prop!$B$2:$B$1498,SMALL(IF(Database_Prop!$A$2:$A$1498=AM$129,ROW(Database_Prop!$B$2:$B$1498)-ROW(Database_Prop!$B$2)+1),ROWS(Database_Prop!J$2:'Database_Prop'!J153))),\"\")","v":""},{"$f":"IFERROR(INDEX(Database_Prop!$B$2:$B$1498,SMALL(IF(Database_Prop!$A$2:$A$1498=AN$129,ROW(Database_Prop!$B$2:$B$1498)-ROW(Database_Prop!$B$2)+1),ROWS(Database_Prop!K$2:'Database_Prop'!K153))),\"\")","v":""},{"$f":"IFERROR(INDEX(Database_Prop!$B$2:$B$1498,SMALL(IF(Database_Prop!$A$2:$A$1498=AO$129,ROW(Database_Prop!$B$2:$B$1498)-ROW(Database_Prop!$B$2)+1),ROWS(Database_Prop!L$2:'Database_Prop'!L153))),\"\")","v":""},{"$f":"IFERROR(INDEX(Database_Prop!$B$2:$B$1498,SMALL(IF(Database_Prop!$A$2:$A$1498=AP$129,ROW(Database_Prop!$B$2:$B$1498)-ROW(Database_Prop!$B$2)+1),ROWS(Database_Prop!M$2:'Database_Prop'!M153))),\"\")","v":""},{"$f":"IFERROR(INDEX(Database_Prop!$B$2:$B$1498,SMALL(IF(Database_Prop!$A$2:$A$1498=AQ$129,ROW(Database_Prop!$B$2:$B$1498)-ROW(Database_Prop!$B$2)+1),ROWS(Database_Prop!N$2:'Database_Prop'!N153))),\"\")","v":""},{"$f":"IFERROR(INDEX(Database_Prop!$B$2:$B$1498,SMALL(IF(Database_Prop!$A$2:$A$1498=AR$129,ROW(Database_Prop!$B$2:$B$1498)-ROW(Database_Prop!$B$2)+1),ROWS(Database_Prop!O$2:'Database_Prop'!O153))),\"\")","v":""},{"$f":"IFERROR(INDEX(Database_Prop!$B$2:$B$1498,SMALL(IF(Database_Prop!$A$2:$A$1498=AS$129,ROW(Database_Prop!$B$2:$B$1498)-ROW(Database_Prop!$B$2)+1),ROWS(Database_Prop!P$2:'Database_Prop'!P153))),\"\")","v":""},{"$f":"IFERROR(INDEX(Database_Prop!$B$2:$B$1498,SMALL(IF(Database_Prop!$A$2:$A$1498=AT$129,ROW(Database_Prop!$B$2:$B$1498)-ROW(Database_Prop!$B$2)+1),ROWS(Database_Prop!Q$2:'Database_Prop'!Q153))),\"\")","v":""},{"$f":"IFERROR(INDEX(Database_Prop!$B$2:$B$1498,SMALL(IF(Database_Prop!$A$2:$A$1498=AU$129,ROW(Database_Prop!$B$2:$B$1498)-ROW(Database_Prop!$B$2)+1),ROWS(Database_Prop!R$2:'Database_Prop'!R153))),\"\")","v":""},{"$f":"IFERROR(INDEX(Database_Prop!$B$2:$B$1498,SMALL(IF(Database_Prop!$A$2:$A$1498=AV$129,ROW(Database_Prop!$B$2:$B$1498)-ROW(Database_Prop!$B$2)+1),ROWS(Database_Prop!S$2:'Database_Prop'!S153))),\"\")","v":""},{"$f":"IFERROR(INDEX(Database_Prop!$B$2:$B$1498,SMALL(IF(Database_Prop!$A$2:$A$1498=AW$129,ROW(Database_Prop!$B$2:$B$1498)-ROW(Database_Prop!$B$2)+1),ROWS(Database_Prop!T$2:'Database_Prop'!T153))),\"\")","v":""},{"$f":"IFERROR(INDEX(Database_Prop!$B$2:$B$1498,SMALL(IF(Database_Prop!$A$2:$A$1498=AX$129,ROW(Database_Prop!$B$2:$B$1498)-ROW(Database_Prop!$B$2)+1),ROWS(Database_Prop!U$2:'Database_Prop'!U153))),\"\")","v":""},{"$f":"IFERROR(INDEX(Database_Prop!$B$2:$B$1498,SMALL(IF(Database_Prop!$A$2:$A$1498=AY$129,ROW(Database_Prop!$B$2:$B$1498)-ROW(Database_Prop!$B$2)+1),ROWS(Database_Prop!V$2:'Database_Prop'!V153))),\"\")","v":""},{"$f":"IFERROR(INDEX(Database_Prop!$B$2:$B$1498,SMALL(IF(Database_Prop!$A$2:$A$1498=AZ$129,ROW(Database_Prop!$B$2:$B$1498)-ROW(Database_Prop!$B$2)+1),ROWS(Database_Prop!W$2:'Database_Prop'!W153))),\"\")","v":""},{"$f":"IFERROR(INDEX(Database_Prop!$B$2:$B$1498,SMALL(IF(Database_Prop!$A$2:$A$1498=BA$129,ROW(Database_Prop!$B$2:$B$1498)-ROW(Database_Prop!$B$2)+1),ROWS(Database_Prop!X$2:'Database_Prop'!X153))),\"\")","v":""},{"$f":"IFERROR(INDEX(Database_Prop!$B$2:$B$1498,SMALL(IF(Database_Prop!$A$2:$A$1498=BB$129,ROW(Database_Prop!$B$2:$B$1498)-ROW(Database_Prop!$B$2)+1),ROWS(Database_Prop!Y$2:'Database_Prop'!Y153))),\"\")","v":""},{"$f":"IFERROR(INDEX(Database_Prop!$B$2:$B$1498,SMALL(IF(Database_Prop!$A$2:$A$1498=BC$129,ROW(Database_Prop!$B$2:$B$1498)-ROW(Database_Prop!$B$2)+1),ROWS(Database_Prop!Z$2:'Database_Prop'!Z153))),\"\")","v":""},null,"Norfolk Island","Oceania"]
[null,null,null,null,null,null,null,null,null,null,null,null,null,null,null,null,null,null,null,null,null,null,null,null,null,null,null,null,null,null,154,{"$f":"IFERROR(INDEX(Database_Prop!$B$2:$B$1498,SMALL(IF(Database_Prop!$A$2:$A$1498=AF$129,ROW(Database_Prop!$B$2:$B$1498)-ROW(Database_Prop!$B$2)+1),ROWS(Database_Prop!C$2:'Database_Prop'!C154))),\"\")","v":""},{"$f":"IFERROR(INDEX(Database_Prop!$B$2:$B$1498,SMALL(IF(Database_Prop!$A$2:$A$1498=AG$129,ROW(Database_Prop!$B$2:$B$1498)-ROW(Database_Prop!$B$2)+1),ROWS(Database_Prop!D$2:'Database_Prop'!D154))),\"\")","v":""},{"$f":"IFERROR(INDEX(Database_Prop!$B$2:$B$1498,SMALL(IF(Database_Prop!$A$2:$A$1498=AH$129,ROW(Database_Prop!$B$2:$B$1498)-ROW(Database_Prop!$B$2)+1),ROWS(Database_Prop!E$2:'Database_Prop'!E154))),\"\")","v":""},{"$f":"IFERROR(INDEX(Database_Prop!$B$2:$B$1498,SMALL(IF(Database_Prop!$A$2:$A$1498=AI$129,ROW(Database_Prop!$B$2:$B$1498)-ROW(Database_Prop!$B$2)+1),ROWS(Database_Prop!F$2:'Database_Prop'!F154))),\"\")","v":""},{"$f":"IFERROR(INDEX(Database_Prop!$B$2:$B$1498,SMALL(IF(Database_Prop!$A$2:$A$1498=AJ$129,ROW(Database_Prop!$B$2:$B$1498)-ROW(Database_Prop!$B$2)+1),ROWS(Database_Prop!G$2:'Database_Prop'!G154))),\"\")","v":""},{"$f":"IFERROR(INDEX(Database_Prop!$B$2:$B$1498,SMALL(IF(Database_Prop!$A$2:$A$1498=AK$129,ROW(Database_Prop!$B$2:$B$1498)-ROW(Database_Prop!$B$2)+1),ROWS(Database_Prop!H$2:'Database_Prop'!H154))),\"\")","v":""},{"$f":"IFERROR(INDEX(Database_Prop!$B$2:$B$1498,SMALL(IF(Database_Prop!$A$2:$A$1498=AL$129,ROW(Database_Prop!$B$2:$B$1498)-ROW(Database_Prop!$B$2)+1),ROWS(Database_Prop!I$2:'Database_Prop'!I154))),\"\")","v":""},{"$f":"IFERROR(INDEX(Database_Prop!$B$2:$B$1498,SMALL(IF(Database_Prop!$A$2:$A$1498=AM$129,ROW(Database_Prop!$B$2:$B$1498)-ROW(Database_Prop!$B$2)+1),ROWS(Database_Prop!J$2:'Database_Prop'!J154))),\"\")","v":""},{"$f":"IFERROR(INDEX(Database_Prop!$B$2:$B$1498,SMALL(IF(Database_Prop!$A$2:$A$1498=AN$129,ROW(Database_Prop!$B$2:$B$1498)-ROW(Database_Prop!$B$2)+1),ROWS(Database_Prop!K$2:'Database_Prop'!K154))),\"\")","v":""},{"$f":"IFERROR(INDEX(Database_Prop!$B$2:$B$1498,SMALL(IF(Database_Prop!$A$2:$A$1498=AO$129,ROW(Database_Prop!$B$2:$B$1498)-ROW(Database_Prop!$B$2)+1),ROWS(Database_Prop!L$2:'Database_Prop'!L154))),\"\")","v":""},{"$f":"IFERROR(INDEX(Database_Prop!$B$2:$B$1498,SMALL(IF(Database_Prop!$A$2:$A$1498=AP$129,ROW(Database_Prop!$B$2:$B$1498)-ROW(Database_Prop!$B$2)+1),ROWS(Database_Prop!M$2:'Database_Prop'!M154))),\"\")","v":""},{"$f":"IFERROR(INDEX(Database_Prop!$B$2:$B$1498,SMALL(IF(Database_Prop!$A$2:$A$1498=AQ$129,ROW(Database_Prop!$B$2:$B$1498)-ROW(Database_Prop!$B$2)+1),ROWS(Database_Prop!N$2:'Database_Prop'!N154))),\"\")","v":""},{"$f":"IFERROR(INDEX(Database_Prop!$B$2:$B$1498,SMALL(IF(Database_Prop!$A$2:$A$1498=AR$129,ROW(Database_Prop!$B$2:$B$1498)-ROW(Database_Prop!$B$2)+1),ROWS(Database_Prop!O$2:'Database_Prop'!O154))),\"\")","v":""},{"$f":"IFERROR(INDEX(Database_Prop!$B$2:$B$1498,SMALL(IF(Database_Prop!$A$2:$A$1498=AS$129,ROW(Database_Prop!$B$2:$B$1498)-ROW(Database_Prop!$B$2)+1),ROWS(Database_Prop!P$2:'Database_Prop'!P154))),\"\")","v":""},{"$f":"IFERROR(INDEX(Database_Prop!$B$2:$B$1498,SMALL(IF(Database_Prop!$A$2:$A$1498=AT$129,ROW(Database_Prop!$B$2:$B$1498)-ROW(Database_Prop!$B$2)+1),ROWS(Database_Prop!Q$2:'Database_Prop'!Q154))),\"\")","v":""},{"$f":"IFERROR(INDEX(Database_Prop!$B$2:$B$1498,SMALL(IF(Database_Prop!$A$2:$A$1498=AU$129,ROW(Database_Prop!$B$2:$B$1498)-ROW(Database_Prop!$B$2)+1),ROWS(Database_Prop!R$2:'Database_Prop'!R154))),\"\")","v":""},{"$f":"IFERROR(INDEX(Database_Prop!$B$2:$B$1498,SMALL(IF(Database_Prop!$A$2:$A$1498=AV$129,ROW(Database_Prop!$B$2:$B$1498)-ROW(Database_Prop!$B$2)+1),ROWS(Database_Prop!S$2:'Database_Prop'!S154))),\"\")","v":""},{"$f":"IFERROR(INDEX(Database_Prop!$B$2:$B$1498,SMALL(IF(Database_Prop!$A$2:$A$1498=AW$129,ROW(Database_Prop!$B$2:$B$1498)-ROW(Database_Prop!$B$2)+1),ROWS(Database_Prop!T$2:'Database_Prop'!T154))),\"\")","v":""},{"$f":"IFERROR(INDEX(Database_Prop!$B$2:$B$1498,SMALL(IF(Database_Prop!$A$2:$A$1498=AX$129,ROW(Database_Prop!$B$2:$B$1498)-ROW(Database_Prop!$B$2)+1),ROWS(Database_Prop!U$2:'Database_Prop'!U154))),\"\")","v":""},{"$f":"IFERROR(INDEX(Database_Prop!$B$2:$B$1498,SMALL(IF(Database_Prop!$A$2:$A$1498=AY$129,ROW(Database_Prop!$B$2:$B$1498)-ROW(Database_Prop!$B$2)+1),ROWS(Database_Prop!V$2:'Database_Prop'!V154))),\"\")","v":""},{"$f":"IFERROR(INDEX(Database_Prop!$B$2:$B$1498,SMALL(IF(Database_Prop!$A$2:$A$1498=AZ$129,ROW(Database_Prop!$B$2:$B$1498)-ROW(Database_Prop!$B$2)+1),ROWS(Database_Prop!W$2:'Database_Prop'!W154))),\"\")","v":""},{"$f":"IFERROR(INDEX(Database_Prop!$B$2:$B$1498,SMALL(IF(Database_Prop!$A$2:$A$1498=BA$129,ROW(Database_Prop!$B$2:$B$1498)-ROW(Database_Prop!$B$2)+1),ROWS(Database_Prop!X$2:'Database_Prop'!X154))),\"\")","v":""},{"$f":"IFERROR(INDEX(Database_Prop!$B$2:$B$1498,SMALL(IF(Database_Prop!$A$2:$A$1498=BB$129,ROW(Database_Prop!$B$2:$B$1498)-ROW(Database_Prop!$B$2)+1),ROWS(Database_Prop!Y$2:'Database_Prop'!Y154))),\"\")","v":""},{"$f":"IFERROR(INDEX(Database_Prop!$B$2:$B$1498,SMALL(IF(Database_Prop!$A$2:$A$1498=BC$129,ROW(Database_Prop!$B$2:$B$1498)-ROW(Database_Prop!$B$2)+1),ROWS(Database_Prop!Z$2:'Database_Prop'!Z154))),\"\")","v":""},null,"Northern Mariana Islands","Oceania"]
[null,null,null,null,null,null,null,null,null,null,null,null,null,null,null,null,null,null,null,null,null,null,null,null,null,null,null,null,null,null,155,{"$f":"IFERROR(INDEX(Database_Prop!$B$2:$B$1498,SMALL(IF(Database_Prop!$A$2:$A$1498=AF$129,ROW(Database_Prop!$B$2:$B$1498)-ROW(Database_Prop!$B$2)+1),ROWS(Database_Prop!C$2:'Database_Prop'!C155))),\"\")","v":""},{"$f":"IFERROR(INDEX(Database_Prop!$B$2:$B$1498,SMALL(IF(Database_Prop!$A$2:$A$1498=AG$129,ROW(Database_Prop!$B$2:$B$1498)-ROW(Database_Prop!$B$2)+1),ROWS(Database_Prop!D$2:'Database_Prop'!D155))),\"\")","v":""},{"$f":"IFERROR(INDEX(Database_Prop!$B$2:$B$1498,SMALL(IF(Database_Prop!$A$2:$A$1498=AH$129,ROW(Database_Prop!$B$2:$B$1498)-ROW(Database_Prop!$B$2)+1),ROWS(Database_Prop!E$2:'Database_Prop'!E155))),\"\")","v":""},{"$f":"IFERROR(INDEX(Database_Prop!$B$2:$B$1498,SMALL(IF(Database_Prop!$A$2:$A$1498=AI$129,ROW(Database_Prop!$B$2:$B$1498)-ROW(Database_Prop!$B$2)+1),ROWS(Database_Prop!F$2:'Database_Prop'!F155))),\"\")","v":""},{"$f":"IFERROR(INDEX(Database_Prop!$B$2:$B$1498,SMALL(IF(Database_Prop!$A$2:$A$1498=AJ$129,ROW(Database_Prop!$B$2:$B$1498)-ROW(Database_Prop!$B$2)+1),ROWS(Database_Prop!G$2:'Database_Prop'!G155))),\"\")","v":""},{"$f":"IFERROR(INDEX(Database_Prop!$B$2:$B$1498,SMALL(IF(Database_Prop!$A$2:$A$1498=AK$129,ROW(Database_Prop!$B$2:$B$1498)-ROW(Database_Prop!$B$2)+1),ROWS(Database_Prop!H$2:'Database_Prop'!H155))),\"\")","v":""},{"$f":"IFERROR(INDEX(Database_Prop!$B$2:$B$1498,SMALL(IF(Database_Prop!$A$2:$A$1498=AL$129,ROW(Database_Prop!$B$2:$B$1498)-ROW(Database_Prop!$B$2)+1),ROWS(Database_Prop!I$2:'Database_Prop'!I155))),\"\")","v":""},{"$f":"IFERROR(INDEX(Database_Prop!$B$2:$B$1498,SMALL(IF(Database_Prop!$A$2:$A$1498=AM$129,ROW(Database_Prop!$B$2:$B$1498)-ROW(Database_Prop!$B$2)+1),ROWS(Database_Prop!J$2:'Database_Prop'!J155))),\"\")","v":""},{"$f":"IFERROR(INDEX(Database_Prop!$B$2:$B$1498,SMALL(IF(Database_Prop!$A$2:$A$1498=AN$129,ROW(Database_Prop!$B$2:$B$1498)-ROW(Database_Prop!$B$2)+1),ROWS(Database_Prop!K$2:'Database_Prop'!K155))),\"\")","v":""},{"$f":"IFERROR(INDEX(Database_Prop!$B$2:$B$1498,SMALL(IF(Database_Prop!$A$2:$A$1498=AO$129,ROW(Database_Prop!$B$2:$B$1498)-ROW(Database_Prop!$B$2)+1),ROWS(Database_Prop!L$2:'Database_Prop'!L155))),\"\")","v":""},{"$f":"IFERROR(INDEX(Database_Prop!$B$2:$B$1498,SMALL(IF(Database_Prop!$A$2:$A$1498=AP$129,ROW(Database_Prop!$B$2:$B$1498)-ROW(Database_Prop!$B$2)+1),ROWS(Database_Prop!M$2:'Database_Prop'!M155))),\"\")","v":""},{"$f":"IFERROR(INDEX(Database_Prop!$B$2:$B$1498,SMALL(IF(Database_Prop!$A$2:$A$1498=AQ$129,ROW(Database_Prop!$B$2:$B$1498)-ROW(Database_Prop!$B$2)+1),ROWS(Database_Prop!N$2:'Database_Prop'!N155))),\"\")","v":""},{"$f":"IFERROR(INDEX(Database_Prop!$B$2:$B$1498,SMALL(IF(Database_Prop!$A$2:$A$1498=AR$129,ROW(Database_Prop!$B$2:$B$1498)-ROW(Database_Prop!$B$2)+1),ROWS(Database_Prop!O$2:'Database_Prop'!O155))),\"\")","v":""},{"$f":"IFERROR(INDEX(Database_Prop!$B$2:$B$1498,SMALL(IF(Database_Prop!$A$2:$A$1498=AS$129,ROW(Database_Prop!$B$2:$B$1498)-ROW(Database_Prop!$B$2)+1),ROWS(Database_Prop!P$2:'Database_Prop'!P155))),\"\")","v":""},{"$f":"IFERROR(INDEX(Database_Prop!$B$2:$B$1498,SMALL(IF(Database_Prop!$A$2:$A$1498=AT$129,ROW(Database_Prop!$B$2:$B$1498)-ROW(Database_Prop!$B$2)+1),ROWS(Database_Prop!Q$2:'Database_Prop'!Q155))),\"\")","v":""},{"$f":"IFERROR(INDEX(Database_Prop!$B$2:$B$1498,SMALL(IF(Database_Prop!$A$2:$A$1498=AU$129,ROW(Database_Prop!$B$2:$B$1498)-ROW(Database_Prop!$B$2)+1),ROWS(Database_Prop!R$2:'Database_Prop'!R155))),\"\")","v":""},{"$f":"IFERROR(INDEX(Database_Prop!$B$2:$B$1498,SMALL(IF(Database_Prop!$A$2:$A$1498=AV$129,ROW(Database_Prop!$B$2:$B$1498)-ROW(Database_Prop!$B$2)+1),ROWS(Database_Prop!S$2:'Database_Prop'!S155))),\"\")","v":""},{"$f":"IFERROR(INDEX(Database_Prop!$B$2:$B$1498,SMALL(IF(Database_Prop!$A$2:$A$1498=AW$129,ROW(Database_Prop!$B$2:$B$1498)-ROW(Database_Prop!$B$2)+1),ROWS(Database_Prop!T$2:'Database_Prop'!T155))),\"\")","v":""},{"$f":"IFERROR(INDEX(Database_Prop!$B$2:$B$1498,SMALL(IF(Database_Prop!$A$2:$A$1498=AX$129,ROW(Database_Prop!$B$2:$B$1498)-ROW(Database_Prop!$B$2)+1),ROWS(Database_Prop!U$2:'Database_Prop'!U155))),\"\")","v":""},{"$f":"IFERROR(INDEX(Database_Prop!$B$2:$B$1498,SMALL(IF(Database_Prop!$A$2:$A$1498=AY$129,ROW(Database_Prop!$B$2:$B$1498)-ROW(Database_Prop!$B$2)+1),ROWS(Database_Prop!V$2:'Database_Prop'!V155))),\"\")","v":""},{"$f":"IFERROR(INDEX(Database_Prop!$B$2:$B$1498,SMALL(IF(Database_Prop!$A$2:$A$1498=AZ$129,ROW(Database_Prop!$B$2:$B$1498)-ROW(Database_Prop!$B$2)+1),ROWS(Database_Prop!W$2:'Database_Prop'!W155))),\"\")","v":""},{"$f":"IFERROR(INDEX(Database_Prop!$B$2:$B$1498,SMALL(IF(Database_Prop!$A$2:$A$1498=BA$129,ROW(Database_Prop!$B$2:$B$1498)-ROW(Database_Prop!$B$2)+1),ROWS(Database_Prop!X$2:'Database_Prop'!X155))),\"\")","v":""},{"$f":"IFERROR(INDEX(Database_Prop!$B$2:$B$1498,SMALL(IF(Database_Prop!$A$2:$A$1498=BB$129,ROW(Database_Prop!$B$2:$B$1498)-ROW(Database_Prop!$B$2)+1),ROWS(Database_Prop!Y$2:'Database_Prop'!Y155))),\"\")","v":""},{"$f":"IFERROR(INDEX(Database_Prop!$B$2:$B$1498,SMALL(IF(Database_Prop!$A$2:$A$1498=BC$129,ROW(Database_Prop!$B$2:$B$1498)-ROW(Database_Prop!$B$2)+1),ROWS(Database_Prop!Z$2:'Database_Prop'!Z155))),\"\")","v":""},null,"Norway","Western Europe"]
[null,null,null,null,null,null,null,null,null,null,null,null,null,null,null,null,null,null,null,null,null,null,null,null,null,null,null,null,null,null,156,{"$f":"IFERROR(INDEX(Database_Prop!$B$2:$B$1498,SMALL(IF(Database_Prop!$A$2:$A$1498=AF$129,ROW(Database_Prop!$B$2:$B$1498)-ROW(Database_Prop!$B$2)+1),ROWS(Database_Prop!C$2:'Database_Prop'!C156))),\"\")","v":""},{"$f":"IFERROR(INDEX(Database_Prop!$B$2:$B$1498,SMALL(IF(Database_Prop!$A$2:$A$1498=AG$129,ROW(Database_Prop!$B$2:$B$1498)-ROW(Database_Prop!$B$2)+1),ROWS(Database_Prop!D$2:'Database_Prop'!D156))),\"\")","v":""},{"$f":"IFERROR(INDEX(Database_Prop!$B$2:$B$1498,SMALL(IF(Database_Prop!$A$2:$A$1498=AH$129,ROW(Database_Prop!$B$2:$B$1498)-ROW(Database_Prop!$B$2)+1),ROWS(Database_Prop!E$2:'Database_Prop'!E156))),\"\")","v":""},{"$f":"IFERROR(INDEX(Database_Prop!$B$2:$B$1498,SMALL(IF(Database_Prop!$A$2:$A$1498=AI$129,ROW(Database_Prop!$B$2:$B$1498)-ROW(Database_Prop!$B$2)+1),ROWS(Database_Prop!F$2:'Database_Prop'!F156))),\"\")","v":""},{"$f":"IFERROR(INDEX(Database_Prop!$B$2:$B$1498,SMALL(IF(Database_Prop!$A$2:$A$1498=AJ$129,ROW(Database_Prop!$B$2:$B$1498)-ROW(Database_Prop!$B$2)+1),ROWS(Database_Prop!G$2:'Database_Prop'!G156))),\"\")","v":""},{"$f":"IFERROR(INDEX(Database_Prop!$B$2:$B$1498,SMALL(IF(Database_Prop!$A$2:$A$1498=AK$129,ROW(Database_Prop!$B$2:$B$1498)-ROW(Database_Prop!$B$2)+1),ROWS(Database_Prop!H$2:'Database_Prop'!H156))),\"\")","v":""},{"$f":"IFERROR(INDEX(Database_Prop!$B$2:$B$1498,SMALL(IF(Database_Prop!$A$2:$A$1498=AL$129,ROW(Database_Prop!$B$2:$B$1498)-ROW(Database_Prop!$B$2)+1),ROWS(Database_Prop!I$2:'Database_Prop'!I156))),\"\")","v":""},{"$f":"IFERROR(INDEX(Database_Prop!$B$2:$B$1498,SMALL(IF(Database_Prop!$A$2:$A$1498=AM$129,ROW(Database_Prop!$B$2:$B$1498)-ROW(Database_Prop!$B$2)+1),ROWS(Database_Prop!J$2:'Database_Prop'!J156))),\"\")","v":""},{"$f":"IFERROR(INDEX(Database_Prop!$B$2:$B$1498,SMALL(IF(Database_Prop!$A$2:$A$1498=AN$129,ROW(Database_Prop!$B$2:$B$1498)-ROW(Database_Prop!$B$2)+1),ROWS(Database_Prop!K$2:'Database_Prop'!K156))),\"\")","v":""},{"$f":"IFERROR(INDEX(Database_Prop!$B$2:$B$1498,SMALL(IF(Database_Prop!$A$2:$A$1498=AO$129,ROW(Database_Prop!$B$2:$B$1498)-ROW(Database_Prop!$B$2)+1),ROWS(Database_Prop!L$2:'Database_Prop'!L156))),\"\")","v":""},{"$f":"IFERROR(INDEX(Database_Prop!$B$2:$B$1498,SMALL(IF(Database_Prop!$A$2:$A$1498=AP$129,ROW(Database_Prop!$B$2:$B$1498)-ROW(Database_Prop!$B$2)+1),ROWS(Database_Prop!M$2:'Database_Prop'!M156))),\"\")","v":""},{"$f":"IFERROR(INDEX(Database_Prop!$B$2:$B$1498,SMALL(IF(Database_Prop!$A$2:$A$1498=AQ$129,ROW(Database_Prop!$B$2:$B$1498)-ROW(Database_Prop!$B$2)+1),ROWS(Database_Prop!N$2:'Database_Prop'!N156))),\"\")","v":""},{"$f":"IFERROR(INDEX(Database_Prop!$B$2:$B$1498,SMALL(IF(Database_Prop!$A$2:$A$1498=AR$129,ROW(Database_Prop!$B$2:$B$1498)-ROW(Database_Prop!$B$2)+1),ROWS(Database_Prop!O$2:'Database_Prop'!O156))),\"\")","v":""},{"$f":"IFERROR(INDEX(Database_Prop!$B$2:$B$1498,SMALL(IF(Database_Prop!$A$2:$A$1498=AS$129,ROW(Database_Prop!$B$2:$B$1498)-ROW(Database_Prop!$B$2)+1),ROWS(Database_Prop!P$2:'Database_Prop'!P156))),\"\")","v":""},{"$f":"IFERROR(INDEX(Database_Prop!$B$2:$B$1498,SMALL(IF(Database_Prop!$A$2:$A$1498=AT$129,ROW(Database_Prop!$B$2:$B$1498)-ROW(Database_Prop!$B$2)+1),ROWS(Database_Prop!Q$2:'Database_Prop'!Q156))),\"\")","v":""},{"$f":"IFERROR(INDEX(Database_Prop!$B$2:$B$1498,SMALL(IF(Database_Prop!$A$2:$A$1498=AU$129,ROW(Database_Prop!$B$2:$B$1498)-ROW(Database_Prop!$B$2)+1),ROWS(Database_Prop!R$2:'Database_Prop'!R156))),\"\")","v":""},{"$f":"IFERROR(INDEX(Database_Prop!$B$2:$B$1498,SMALL(IF(Database_Prop!$A$2:$A$1498=AV$129,ROW(Database_Prop!$B$2:$B$1498)-ROW(Database_Prop!$B$2)+1),ROWS(Database_Prop!S$2:'Database_Prop'!S156))),\"\")","v":""},{"$f":"IFERROR(INDEX(Database_Prop!$B$2:$B$1498,SMALL(IF(Database_Prop!$A$2:$A$1498=AW$129,ROW(Database_Prop!$B$2:$B$1498)-ROW(Database_Prop!$B$2)+1),ROWS(Database_Prop!T$2:'Database_Prop'!T156))),\"\")","v":""},{"$f":"IFERROR(INDEX(Database_Prop!$B$2:$B$1498,SMALL(IF(Database_Prop!$A$2:$A$1498=AX$129,ROW(Database_Prop!$B$2:$B$1498)-ROW(Database_Prop!$B$2)+1),ROWS(Database_Prop!U$2:'Database_Prop'!U156))),\"\")","v":""},{"$f":"IFERROR(INDEX(Database_Prop!$B$2:$B$1498,SMALL(IF(Database_Prop!$A$2:$A$1498=AY$129,ROW(Database_Prop!$B$2:$B$1498)-ROW(Database_Prop!$B$2)+1),ROWS(Database_Prop!V$2:'Database_Prop'!V156))),\"\")","v":""},{"$f":"IFERROR(INDEX(Database_Prop!$B$2:$B$1498,SMALL(IF(Database_Prop!$A$2:$A$1498=AZ$129,ROW(Database_Prop!$B$2:$B$1498)-ROW(Database_Prop!$B$2)+1),ROWS(Database_Prop!W$2:'Database_Prop'!W156))),\"\")","v":""},{"$f":"IFERROR(INDEX(Database_Prop!$B$2:$B$1498,SMALL(IF(Database_Prop!$A$2:$A$1498=BA$129,ROW(Database_Prop!$B$2:$B$1498)-ROW(Database_Prop!$B$2)+1),ROWS(Database_Prop!X$2:'Database_Prop'!X156))),\"\")","v":""},{"$f":"IFERROR(INDEX(Database_Prop!$B$2:$B$1498,SMALL(IF(Database_Prop!$A$2:$A$1498=BB$129,ROW(Database_Prop!$B$2:$B$1498)-ROW(Database_Prop!$B$2)+1),ROWS(Database_Prop!Y$2:'Database_Prop'!Y156))),\"\")","v":""},{"$f":"IFERROR(INDEX(Database_Prop!$B$2:$B$1498,SMALL(IF(Database_Prop!$A$2:$A$1498=BC$129,ROW(Database_Prop!$B$2:$B$1498)-ROW(Database_Prop!$B$2)+1),ROWS(Database_Prop!Z$2:'Database_Prop'!Z156))),\"\")","v":""},null,"Occupied Palestinian Territory","Middle East"]
[null,null,null,null,null,null,null,null,null,null,null,null,null,null,null,null,null,null,null,null,null,null,null,null,null,null,null,null,null,null,157,{"$f":"IFERROR(INDEX(Database_Prop!$B$2:$B$1498,SMALL(IF(Database_Prop!$A$2:$A$1498=AF$129,ROW(Database_Prop!$B$2:$B$1498)-ROW(Database_Prop!$B$2)+1),ROWS(Database_Prop!C$2:'Database_Prop'!C157))),\"\")","v":""},{"$f":"IFERROR(INDEX(Database_Prop!$B$2:$B$1498,SMALL(IF(Database_Prop!$A$2:$A$1498=AG$129,ROW(Database_Prop!$B$2:$B$1498)-ROW(Database_Prop!$B$2)+1),ROWS(Database_Prop!D$2:'Database_Prop'!D157))),\"\")","v":""},{"$f":"IFERROR(INDEX(Database_Prop!$B$2:$B$1498,SMALL(IF(Database_Prop!$A$2:$A$1498=AH$129,ROW(Database_Prop!$B$2:$B$1498)-ROW(Database_Prop!$B$2)+1),ROWS(Database_Prop!E$2:'Database_Prop'!E157))),\"\")","v":""},{"$f":"IFERROR(INDEX(Database_Prop!$B$2:$B$1498,SMALL(IF(Database_Prop!$A$2:$A$1498=AI$129,ROW(Database_Prop!$B$2:$B$1498)-ROW(Database_Prop!$B$2)+1),ROWS(Database_Prop!F$2:'Database_Prop'!F157))),\"\")","v":""},{"$f":"IFERROR(INDEX(Database_Prop!$B$2:$B$1498,SMALL(IF(Database_Prop!$A$2:$A$1498=AJ$129,ROW(Database_Prop!$B$2:$B$1498)-ROW(Database_Prop!$B$2)+1),ROWS(Database_Prop!G$2:'Database_Prop'!G157))),\"\")","v":""},{"$f":"IFERROR(INDEX(Database_Prop!$B$2:$B$1498,SMALL(IF(Database_Prop!$A$2:$A$1498=AK$129,ROW(Database_Prop!$B$2:$B$1498)-ROW(Database_Prop!$B$2)+1),ROWS(Database_Prop!H$2:'Database_Prop'!H157))),\"\")","v":""},{"$f":"IFERROR(INDEX(Database_Prop!$B$2:$B$1498,SMALL(IF(Database_Prop!$A$2:$A$1498=AL$129,ROW(Database_Prop!$B$2:$B$1498)-ROW(Database_Prop!$B$2)+1),ROWS(Database_Prop!I$2:'Database_Prop'!I157))),\"\")","v":""},{"$f":"IFERROR(INDEX(Database_Prop!$B$2:$B$1498,SMALL(IF(Database_Prop!$A$2:$A$1498=AM$129,ROW(Database_Prop!$B$2:$B$1498)-ROW(Database_Prop!$B$2)+1),ROWS(Database_Prop!J$2:'Database_Prop'!J157))),\"\")","v":""},{"$f":"IFERROR(INDEX(Database_Prop!$B$2:$B$1498,SMALL(IF(Database_Prop!$A$2:$A$1498=AN$129,ROW(Database_Prop!$B$2:$B$1498)-ROW(Database_Prop!$B$2)+1),ROWS(Database_Prop!K$2:'Database_Prop'!K157))),\"\")","v":""},{"$f":"IFERROR(INDEX(Database_Prop!$B$2:$B$1498,SMALL(IF(Database_Prop!$A$2:$A$1498=AO$129,ROW(Database_Prop!$B$2:$B$1498)-ROW(Database_Prop!$B$2)+1),ROWS(Database_Prop!L$2:'Database_Prop'!L157))),\"\")","v":""},{"$f":"IFERROR(INDEX(Database_Prop!$B$2:$B$1498,SMALL(IF(Database_Prop!$A$2:$A$1498=AP$129,ROW(Database_Prop!$B$2:$B$1498)-ROW(Database_Prop!$B$2)+1),ROWS(Database_Prop!M$2:'Database_Prop'!M157))),\"\")","v":""},{"$f":"IFERROR(INDEX(Database_Prop!$B$2:$B$1498,SMALL(IF(Database_Prop!$A$2:$A$1498=AQ$129,ROW(Database_Prop!$B$2:$B$1498)-ROW(Database_Prop!$B$2)+1),ROWS(Database_Prop!N$2:'Database_Prop'!N157))),\"\")","v":""},{"$f":"IFERROR(INDEX(Database_Prop!$B$2:$B$1498,SMALL(IF(Database_Prop!$A$2:$A$1498=AR$129,ROW(Database_Prop!$B$2:$B$1498)-ROW(Database_Prop!$B$2)+1),ROWS(Database_Prop!O$2:'Database_Prop'!O157))),\"\")","v":""},{"$f":"IFERROR(INDEX(Database_Prop!$B$2:$B$1498,SMALL(IF(Database_Prop!$A$2:$A$1498=AS$129,ROW(Database_Prop!$B$2:$B$1498)-ROW(Database_Prop!$B$2)+1),ROWS(Database_Prop!P$2:'Database_Prop'!P157))),\"\")","v":""},{"$f":"IFERROR(INDEX(Database_Prop!$B$2:$B$1498,SMALL(IF(Database_Prop!$A$2:$A$1498=AT$129,ROW(Database_Prop!$B$2:$B$1498)-ROW(Database_Prop!$B$2)+1),ROWS(Database_Prop!Q$2:'Database_Prop'!Q157))),\"\")","v":""},{"$f":"IFERROR(INDEX(Database_Prop!$B$2:$B$1498,SMALL(IF(Database_Prop!$A$2:$A$1498=AU$129,ROW(Database_Prop!$B$2:$B$1498)-ROW(Database_Prop!$B$2)+1),ROWS(Database_Prop!R$2:'Database_Prop'!R157))),\"\")","v":""},{"$f":"IFERROR(INDEX(Database_Prop!$B$2:$B$1498,SMALL(IF(Database_Prop!$A$2:$A$1498=AV$129,ROW(Database_Prop!$B$2:$B$1498)-ROW(Database_Prop!$B$2)+1),ROWS(Database_Prop!S$2:'Database_Prop'!S157))),\"\")","v":""},{"$f":"IFERROR(INDEX(Database_Prop!$B$2:$B$1498,SMALL(IF(Database_Prop!$A$2:$A$1498=AW$129,ROW(Database_Prop!$B$2:$B$1498)-ROW(Database_Prop!$B$2)+1),ROWS(Database_Prop!T$2:'Database_Prop'!T157))),\"\")","v":""},{"$f":"IFERROR(INDEX(Database_Prop!$B$2:$B$1498,SMALL(IF(Database_Prop!$A$2:$A$1498=AX$129,ROW(Database_Prop!$B$2:$B$1498)-ROW(Database_Prop!$B$2)+1),ROWS(Database_Prop!U$2:'Database_Prop'!U157))),\"\")","v":""},{"$f":"IFERROR(INDEX(Database_Prop!$B$2:$B$1498,SMALL(IF(Database_Prop!$A$2:$A$1498=AY$129,ROW(Database_Prop!$B$2:$B$1498)-ROW(Database_Prop!$B$2)+1),ROWS(Database_Prop!V$2:'Database_Prop'!V157))),\"\")","v":""},{"$f":"IFERROR(INDEX(Database_Prop!$B$2:$B$1498,SMALL(IF(Database_Prop!$A$2:$A$1498=AZ$129,ROW(Database_Prop!$B$2:$B$1498)-ROW(Database_Prop!$B$2)+1),ROWS(Database_Prop!W$2:'Database_Prop'!W157))),\"\")","v":""},{"$f":"IFERROR(INDEX(Database_Prop!$B$2:$B$1498,SMALL(IF(Database_Prop!$A$2:$A$1498=BA$129,ROW(Database_Prop!$B$2:$B$1498)-ROW(Database_Prop!$B$2)+1),ROWS(Database_Prop!X$2:'Database_Prop'!X157))),\"\")","v":""},{"$f":"IFERROR(INDEX(Database_Prop!$B$2:$B$1498,SMALL(IF(Database_Prop!$A$2:$A$1498=BB$129,ROW(Database_Prop!$B$2:$B$1498)-ROW(Database_Prop!$B$2)+1),ROWS(Database_Prop!Y$2:'Database_Prop'!Y157))),\"\")","v":""},{"$f":"IFERROR(INDEX(Database_Prop!$B$2:$B$1498,SMALL(IF(Database_Prop!$A$2:$A$1498=BC$129,ROW(Database_Prop!$B$2:$B$1498)-ROW(Database_Prop!$B$2)+1),ROWS(Database_Prop!Z$2:'Database_Prop'!Z157))),\"\")","v":""},null,"Oman","Middle East"]
[null,null,null,null,null,null,null,null,null,null,null,null,null,null,null,null,null,null,null,null,null,null,null,null,null,null,null,null,null,null,158,{"$f":"IFERROR(INDEX(Database_Prop!$B$2:$B$1498,SMALL(IF(Database_Prop!$A$2:$A$1498=AF$129,ROW(Database_Prop!$B$2:$B$1498)-ROW(Database_Prop!$B$2)+1),ROWS(Database_Prop!C$2:'Database_Prop'!C158))),\"\")","v":""},{"$f":"IFERROR(INDEX(Database_Prop!$B$2:$B$1498,SMALL(IF(Database_Prop!$A$2:$A$1498=AG$129,ROW(Database_Prop!$B$2:$B$1498)-ROW(Database_Prop!$B$2)+1),ROWS(Database_Prop!D$2:'Database_Prop'!D158))),\"\")","v":""},{"$f":"IFERROR(INDEX(Database_Prop!$B$2:$B$1498,SMALL(IF(Database_Prop!$A$2:$A$1498=AH$129,ROW(Database_Prop!$B$2:$B$1498)-ROW(Database_Prop!$B$2)+1),ROWS(Database_Prop!E$2:'Database_Prop'!E158))),\"\")","v":""},{"$f":"IFERROR(INDEX(Database_Prop!$B$2:$B$1498,SMALL(IF(Database_Prop!$A$2:$A$1498=AI$129,ROW(Database_Prop!$B$2:$B$1498)-ROW(Database_Prop!$B$2)+1),ROWS(Database_Prop!F$2:'Database_Prop'!F158))),\"\")","v":""},{"$f":"IFERROR(INDEX(Database_Prop!$B$2:$B$1498,SMALL(IF(Database_Prop!$A$2:$A$1498=AJ$129,ROW(Database_Prop!$B$2:$B$1498)-ROW(Database_Prop!$B$2)+1),ROWS(Database_Prop!G$2:'Database_Prop'!G158))),\"\")","v":""},{"$f":"IFERROR(INDEX(Database_Prop!$B$2:$B$1498,SMALL(IF(Database_Prop!$A$2:$A$1498=AK$129,ROW(Database_Prop!$B$2:$B$1498)-ROW(Database_Prop!$B$2)+1),ROWS(Database_Prop!H$2:'Database_Prop'!H158))),\"\")","v":""},{"$f":"IFERROR(INDEX(Database_Prop!$B$2:$B$1498,SMALL(IF(Database_Prop!$A$2:$A$1498=AL$129,ROW(Database_Prop!$B$2:$B$1498)-ROW(Database_Prop!$B$2)+1),ROWS(Database_Prop!I$2:'Database_Prop'!I158))),\"\")","v":""},{"$f":"IFERROR(INDEX(Database_Prop!$B$2:$B$1498,SMALL(IF(Database_Prop!$A$2:$A$1498=AM$129,ROW(Database_Prop!$B$2:$B$1498)-ROW(Database_Prop!$B$2)+1),ROWS(Database_Prop!J$2:'Database_Prop'!J158))),\"\")","v":""},{"$f":"IFERROR(INDEX(Database_Prop!$B$2:$B$1498,SMALL(IF(Database_Prop!$A$2:$A$1498=AN$129,ROW(Database_Prop!$B$2:$B$1498)-ROW(Database_Prop!$B$2)+1),ROWS(Database_Prop!K$2:'Database_Prop'!K158))),\"\")","v":""},{"$f":"IFERROR(INDEX(Database_Prop!$B$2:$B$1498,SMALL(IF(Database_Prop!$A$2:$A$1498=AO$129,ROW(Database_Prop!$B$2:$B$1498)-ROW(Database_Prop!$B$2)+1),ROWS(Database_Prop!L$2:'Database_Prop'!L158))),\"\")","v":""},{"$f":"IFERROR(INDEX(Database_Prop!$B$2:$B$1498,SMALL(IF(Database_Prop!$A$2:$A$1498=AP$129,ROW(Database_Prop!$B$2:$B$1498)-ROW(Database_Prop!$B$2)+1),ROWS(Database_Prop!M$2:'Database_Prop'!M158))),\"\")","v":""},{"$f":"IFERROR(INDEX(Database_Prop!$B$2:$B$1498,SMALL(IF(Database_Prop!$A$2:$A$1498=AQ$129,ROW(Database_Prop!$B$2:$B$1498)-ROW(Database_Prop!$B$2)+1),ROWS(Database_Prop!N$2:'Database_Prop'!N158))),\"\")","v":""},{"$f":"IFERROR(INDEX(Database_Prop!$B$2:$B$1498,SMALL(IF(Database_Prop!$A$2:$A$1498=AR$129,ROW(Database_Prop!$B$2:$B$1498)-ROW(Database_Prop!$B$2)+1),ROWS(Database_Prop!O$2:'Database_Prop'!O158))),\"\")","v":""},{"$f":"IFERROR(INDEX(Database_Prop!$B$2:$B$1498,SMALL(IF(Database_Prop!$A$2:$A$1498=AS$129,ROW(Database_Prop!$B$2:$B$1498)-ROW(Database_Prop!$B$2)+1),ROWS(Database_Prop!P$2:'Database_Prop'!P158))),\"\")","v":""},{"$f":"IFERROR(INDEX(Database_Prop!$B$2:$B$1498,SMALL(IF(Database_Prop!$A$2:$A$1498=AT$129,ROW(Database_Prop!$B$2:$B$1498)-ROW(Database_Prop!$B$2)+1),ROWS(Database_Prop!Q$2:'Database_Prop'!Q158))),\"\")","v":""},{"$f":"IFERROR(INDEX(Database_Prop!$B$2:$B$1498,SMALL(IF(Database_Prop!$A$2:$A$1498=AU$129,ROW(Database_Prop!$B$2:$B$1498)-ROW(Database_Prop!$B$2)+1),ROWS(Database_Prop!R$2:'Database_Prop'!R158))),\"\")","v":""},{"$f":"IFERROR(INDEX(Database_Prop!$B$2:$B$1498,SMALL(IF(Database_Prop!$A$2:$A$1498=AV$129,ROW(Database_Prop!$B$2:$B$1498)-ROW(Database_Prop!$B$2)+1),ROWS(Database_Prop!S$2:'Database_Prop'!S158))),\"\")","v":""},{"$f":"IFERROR(INDEX(Database_Prop!$B$2:$B$1498,SMALL(IF(Database_Prop!$A$2:$A$1498=AW$129,ROW(Database_Prop!$B$2:$B$1498)-ROW(Database_Prop!$B$2)+1),ROWS(Database_Prop!T$2:'Database_Prop'!T158))),\"\")","v":""},{"$f":"IFERROR(INDEX(Database_Prop!$B$2:$B$1498,SMALL(IF(Database_Prop!$A$2:$A$1498=AX$129,ROW(Database_Prop!$B$2:$B$1498)-ROW(Database_Prop!$B$2)+1),ROWS(Database_Prop!U$2:'Database_Prop'!U158))),\"\")","v":""},{"$f":"IFERROR(INDEX(Database_Prop!$B$2:$B$1498,SMALL(IF(Database_Prop!$A$2:$A$1498=AY$129,ROW(Database_Prop!$B$2:$B$1498)-ROW(Database_Prop!$B$2)+1),ROWS(Database_Prop!V$2:'Database_Prop'!V158))),\"\")","v":""},{"$f":"IFERROR(INDEX(Database_Prop!$B$2:$B$1498,SMALL(IF(Database_Prop!$A$2:$A$1498=AZ$129,ROW(Database_Prop!$B$2:$B$1498)-ROW(Database_Prop!$B$2)+1),ROWS(Database_Prop!W$2:'Database_Prop'!W158))),\"\")","v":""},{"$f":"IFERROR(INDEX(Database_Prop!$B$2:$B$1498,SMALL(IF(Database_Prop!$A$2:$A$1498=BA$129,ROW(Database_Prop!$B$2:$B$1498)-ROW(Database_Prop!$B$2)+1),ROWS(Database_Prop!X$2:'Database_Prop'!X158))),\"\")","v":""},{"$f":"IFERROR(INDEX(Database_Prop!$B$2:$B$1498,SMALL(IF(Database_Prop!$A$2:$A$1498=BB$129,ROW(Database_Prop!$B$2:$B$1498)-ROW(Database_Prop!$B$2)+1),ROWS(Database_Prop!Y$2:'Database_Prop'!Y158))),\"\")","v":""},{"$f":"IFERROR(INDEX(Database_Prop!$B$2:$B$1498,SMALL(IF(Database_Prop!$A$2:$A$1498=BC$129,ROW(Database_Prop!$B$2:$B$1498)-ROW(Database_Prop!$B$2)+1),ROWS(Database_Prop!Z$2:'Database_Prop'!Z158))),\"\")","v":""},null,"Pakistan","Indian Subcontinent"]
[null,null,null,null,null,null,null,null,null,null,null,null,null,null,null,null,null,null,null,null,null,null,null,null,null,null,null,null,null,null,159,{"$f":"IFERROR(INDEX(Database_Prop!$B$2:$B$1498,SMALL(IF(Database_Prop!$A$2:$A$1498=AF$129,ROW(Database_Prop!$B$2:$B$1498)-ROW(Database_Prop!$B$2)+1),ROWS(Database_Prop!C$2:'Database_Prop'!C159))),\"\")","v":""},{"$f":"IFERROR(INDEX(Database_Prop!$B$2:$B$1498,SMALL(IF(Database_Prop!$A$2:$A$1498=AG$129,ROW(Database_Prop!$B$2:$B$1498)-ROW(Database_Prop!$B$2)+1),ROWS(Database_Prop!D$2:'Database_Prop'!D159))),\"\")","v":""},{"$f":"IFERROR(INDEX(Database_Prop!$B$2:$B$1498,SMALL(IF(Database_Prop!$A$2:$A$1498=AH$129,ROW(Database_Prop!$B$2:$B$1498)-ROW(Database_Prop!$B$2)+1),ROWS(Database_Prop!E$2:'Database_Prop'!E159))),\"\")","v":""},{"$f":"IFERROR(INDEX(Database_Prop!$B$2:$B$1498,SMALL(IF(Database_Prop!$A$2:$A$1498=AI$129,ROW(Database_Prop!$B$2:$B$1498)-ROW(Database_Prop!$B$2)+1),ROWS(Database_Prop!F$2:'Database_Prop'!F159))),\"\")","v":""},{"$f":"IFERROR(INDEX(Database_Prop!$B$2:$B$1498,SMALL(IF(Database_Prop!$A$2:$A$1498=AJ$129,ROW(Database_Prop!$B$2:$B$1498)-ROW(Database_Prop!$B$2)+1),ROWS(Database_Prop!G$2:'Database_Prop'!G159))),\"\")","v":""},{"$f":"IFERROR(INDEX(Database_Prop!$B$2:$B$1498,SMALL(IF(Database_Prop!$A$2:$A$1498=AK$129,ROW(Database_Prop!$B$2:$B$1498)-ROW(Database_Prop!$B$2)+1),ROWS(Database_Prop!H$2:'Database_Prop'!H159))),\"\")","v":""},{"$f":"IFERROR(INDEX(Database_Prop!$B$2:$B$1498,SMALL(IF(Database_Prop!$A$2:$A$1498=AL$129,ROW(Database_Prop!$B$2:$B$1498)-ROW(Database_Prop!$B$2)+1),ROWS(Database_Prop!I$2:'Database_Prop'!I159))),\"\")","v":""},{"$f":"IFERROR(INDEX(Database_Prop!$B$2:$B$1498,SMALL(IF(Database_Prop!$A$2:$A$1498=AM$129,ROW(Database_Prop!$B$2:$B$1498)-ROW(Database_Prop!$B$2)+1),ROWS(Database_Prop!J$2:'Database_Prop'!J159))),\"\")","v":""},{"$f":"IFERROR(INDEX(Database_Prop!$B$2:$B$1498,SMALL(IF(Database_Prop!$A$2:$A$1498=AN$129,ROW(Database_Prop!$B$2:$B$1498)-ROW(Database_Prop!$B$2)+1),ROWS(Database_Prop!K$2:'Database_Prop'!K159))),\"\")","v":""},{"$f":"IFERROR(INDEX(Database_Prop!$B$2:$B$1498,SMALL(IF(Database_Prop!$A$2:$A$1498=AO$129,ROW(Database_Prop!$B$2:$B$1498)-ROW(Database_Prop!$B$2)+1),ROWS(Database_Prop!L$2:'Database_Prop'!L159))),\"\")","v":""},{"$f":"IFERROR(INDEX(Database_Prop!$B$2:$B$1498,SMALL(IF(Database_Prop!$A$2:$A$1498=AP$129,ROW(Database_Prop!$B$2:$B$1498)-ROW(Database_Prop!$B$2)+1),ROWS(Database_Prop!M$2:'Database_Prop'!M159))),\"\")","v":""},{"$f":"IFERROR(INDEX(Database_Prop!$B$2:$B$1498,SMALL(IF(Database_Prop!$A$2:$A$1498=AQ$129,ROW(Database_Prop!$B$2:$B$1498)-ROW(Database_Prop!$B$2)+1),ROWS(Database_Prop!N$2:'Database_Prop'!N159))),\"\")","v":""},{"$f":"IFERROR(INDEX(Database_Prop!$B$2:$B$1498,SMALL(IF(Database_Prop!$A$2:$A$1498=AR$129,ROW(Database_Prop!$B$2:$B$1498)-ROW(Database_Prop!$B$2)+1),ROWS(Database_Prop!O$2:'Database_Prop'!O159))),\"\")","v":""},{"$f":"IFERROR(INDEX(Database_Prop!$B$2:$B$1498,SMALL(IF(Database_Prop!$A$2:$A$1498=AS$129,ROW(Database_Prop!$B$2:$B$1498)-ROW(Database_Prop!$B$2)+1),ROWS(Database_Prop!P$2:'Database_Prop'!P159))),\"\")","v":""},{"$f":"IFERROR(INDEX(Database_Prop!$B$2:$B$1498,SMALL(IF(Database_Prop!$A$2:$A$1498=AT$129,ROW(Database_Prop!$B$2:$B$1498)-ROW(Database_Prop!$B$2)+1),ROWS(Database_Prop!Q$2:'Database_Prop'!Q159))),\"\")","v":""},{"$f":"IFERROR(INDEX(Database_Prop!$B$2:$B$1498,SMALL(IF(Database_Prop!$A$2:$A$1498=AU$129,ROW(Database_Prop!$B$2:$B$1498)-ROW(Database_Prop!$B$2)+1),ROWS(Database_Prop!R$2:'Database_Prop'!R159))),\"\")","v":""},{"$f":"IFERROR(INDEX(Database_Prop!$B$2:$B$1498,SMALL(IF(Database_Prop!$A$2:$A$1498=AV$129,ROW(Database_Prop!$B$2:$B$1498)-ROW(Database_Prop!$B$2)+1),ROWS(Database_Prop!S$2:'Database_Prop'!S159))),\"\")","v":""},{"$f":"IFERROR(INDEX(Database_Prop!$B$2:$B$1498,SMALL(IF(Database_Prop!$A$2:$A$1498=AW$129,ROW(Database_Prop!$B$2:$B$1498)-ROW(Database_Prop!$B$2)+1),ROWS(Database_Prop!T$2:'Database_Prop'!T159))),\"\")","v":""},{"$f":"IFERROR(INDEX(Database_Prop!$B$2:$B$1498,SMALL(IF(Database_Prop!$A$2:$A$1498=AX$129,ROW(Database_Prop!$B$2:$B$1498)-ROW(Database_Prop!$B$2)+1),ROWS(Database_Prop!U$2:'Database_Prop'!U159))),\"\")","v":""},{"$f":"IFERROR(INDEX(Database_Prop!$B$2:$B$1498,SMALL(IF(Database_Prop!$A$2:$A$1498=AY$129,ROW(Database_Prop!$B$2:$B$1498)-ROW(Database_Prop!$B$2)+1),ROWS(Database_Prop!V$2:'Database_Prop'!V159))),\"\")","v":""},{"$f":"IFERROR(INDEX(Database_Prop!$B$2:$B$1498,SMALL(IF(Database_Prop!$A$2:$A$1498=AZ$129,ROW(Database_Prop!$B$2:$B$1498)-ROW(Database_Prop!$B$2)+1),ROWS(Database_Prop!W$2:'Database_Prop'!W159))),\"\")","v":""},{"$f":"IFERROR(INDEX(Database_Prop!$B$2:$B$1498,SMALL(IF(Database_Prop!$A$2:$A$1498=BA$129,ROW(Database_Prop!$B$2:$B$1498)-ROW(Database_Prop!$B$2)+1),ROWS(Database_Prop!X$2:'Database_Prop'!X159))),\"\")","v":""},{"$f":"IFERROR(INDEX(Database_Prop!$B$2:$B$1498,SMALL(IF(Database_Prop!$A$2:$A$1498=BB$129,ROW(Database_Prop!$B$2:$B$1498)-ROW(Database_Prop!$B$2)+1),ROWS(Database_Prop!Y$2:'Database_Prop'!Y159))),\"\")","v":""},{"$f":"IFERROR(INDEX(Database_Prop!$B$2:$B$1498,SMALL(IF(Database_Prop!$A$2:$A$1498=BC$129,ROW(Database_Prop!$B$2:$B$1498)-ROW(Database_Prop!$B$2)+1),ROWS(Database_Prop!Z$2:'Database_Prop'!Z159))),\"\")","v":""},null,"Palau","Oceania"]
[null,null,null,null,null,null,null,null,null,null,null,null,null,null,null,null,null,null,null,null,null,null,null,null,null,null,null,null,null,null,160,{"$f":"IFERROR(INDEX(Database_Prop!$B$2:$B$1498,SMALL(IF(Database_Prop!$A$2:$A$1498=AF$129,ROW(Database_Prop!$B$2:$B$1498)-ROW(Database_Prop!$B$2)+1),ROWS(Database_Prop!C$2:'Database_Prop'!C160))),\"\")","v":""},{"$f":"IFERROR(INDEX(Database_Prop!$B$2:$B$1498,SMALL(IF(Database_Prop!$A$2:$A$1498=AG$129,ROW(Database_Prop!$B$2:$B$1498)-ROW(Database_Prop!$B$2)+1),ROWS(Database_Prop!D$2:'Database_Prop'!D160))),\"\")","v":""},{"$f":"IFERROR(INDEX(Database_Prop!$B$2:$B$1498,SMALL(IF(Database_Prop!$A$2:$A$1498=AH$129,ROW(Database_Prop!$B$2:$B$1498)-ROW(Database_Prop!$B$2)+1),ROWS(Database_Prop!E$2:'Database_Prop'!E160))),\"\")","v":""},{"$f":"IFERROR(INDEX(Database_Prop!$B$2:$B$1498,SMALL(IF(Database_Prop!$A$2:$A$1498=AI$129,ROW(Database_Prop!$B$2:$B$1498)-ROW(Database_Prop!$B$2)+1),ROWS(Database_Prop!F$2:'Database_Prop'!F160))),\"\")","v":""},{"$f":"IFERROR(INDEX(Database_Prop!$B$2:$B$1498,SMALL(IF(Database_Prop!$A$2:$A$1498=AJ$129,ROW(Database_Prop!$B$2:$B$1498)-ROW(Database_Prop!$B$2)+1),ROWS(Database_Prop!G$2:'Database_Prop'!G160))),\"\")","v":""},{"$f":"IFERROR(INDEX(Database_Prop!$B$2:$B$1498,SMALL(IF(Database_Prop!$A$2:$A$1498=AK$129,ROW(Database_Prop!$B$2:$B$1498)-ROW(Database_Prop!$B$2)+1),ROWS(Database_Prop!H$2:'Database_Prop'!H160))),\"\")","v":""},{"$f":"IFERROR(INDEX(Database_Prop!$B$2:$B$1498,SMALL(IF(Database_Prop!$A$2:$A$1498=AL$129,ROW(Database_Prop!$B$2:$B$1498)-ROW(Database_Prop!$B$2)+1),ROWS(Database_Prop!I$2:'Database_Prop'!I160))),\"\")","v":""},{"$f":"IFERROR(INDEX(Database_Prop!$B$2:$B$1498,SMALL(IF(Database_Prop!$A$2:$A$1498=AM$129,ROW(Database_Prop!$B$2:$B$1498)-ROW(Database_Prop!$B$2)+1),ROWS(Database_Prop!J$2:'Database_Prop'!J160))),\"\")","v":""},{"$f":"IFERROR(INDEX(Database_Prop!$B$2:$B$1498,SMALL(IF(Database_Prop!$A$2:$A$1498=AN$129,ROW(Database_Prop!$B$2:$B$1498)-ROW(Database_Prop!$B$2)+1),ROWS(Database_Prop!K$2:'Database_Prop'!K160))),\"\")","v":""},{"$f":"IFERROR(INDEX(Database_Prop!$B$2:$B$1498,SMALL(IF(Database_Prop!$A$2:$A$1498=AO$129,ROW(Database_Prop!$B$2:$B$1498)-ROW(Database_Prop!$B$2)+1),ROWS(Database_Prop!L$2:'Database_Prop'!L160))),\"\")","v":""},{"$f":"IFERROR(INDEX(Database_Prop!$B$2:$B$1498,SMALL(IF(Database_Prop!$A$2:$A$1498=AP$129,ROW(Database_Prop!$B$2:$B$1498)-ROW(Database_Prop!$B$2)+1),ROWS(Database_Prop!M$2:'Database_Prop'!M160))),\"\")","v":""},{"$f":"IFERROR(INDEX(Database_Prop!$B$2:$B$1498,SMALL(IF(Database_Prop!$A$2:$A$1498=AQ$129,ROW(Database_Prop!$B$2:$B$1498)-ROW(Database_Prop!$B$2)+1),ROWS(Database_Prop!N$2:'Database_Prop'!N160))),\"\")","v":""},{"$f":"IFERROR(INDEX(Database_Prop!$B$2:$B$1498,SMALL(IF(Database_Prop!$A$2:$A$1498=AR$129,ROW(Database_Prop!$B$2:$B$1498)-ROW(Database_Prop!$B$2)+1),ROWS(Database_Prop!O$2:'Database_Prop'!O160))),\"\")","v":""},{"$f":"IFERROR(INDEX(Database_Prop!$B$2:$B$1498,SMALL(IF(Database_Prop!$A$2:$A$1498=AS$129,ROW(Database_Prop!$B$2:$B$1498)-ROW(Database_Prop!$B$2)+1),ROWS(Database_Prop!P$2:'Database_Prop'!P160))),\"\")","v":""},{"$f":"IFERROR(INDEX(Database_Prop!$B$2:$B$1498,SMALL(IF(Database_Prop!$A$2:$A$1498=AT$129,ROW(Database_Prop!$B$2:$B$1498)-ROW(Database_Prop!$B$2)+1),ROWS(Database_Prop!Q$2:'Database_Prop'!Q160))),\"\")","v":""},{"$f":"IFERROR(INDEX(Database_Prop!$B$2:$B$1498,SMALL(IF(Database_Prop!$A$2:$A$1498=AU$129,ROW(Database_Prop!$B$2:$B$1498)-ROW(Database_Prop!$B$2)+1),ROWS(Database_Prop!R$2:'Database_Prop'!R160))),\"\")","v":""},{"$f":"IFERROR(INDEX(Database_Prop!$B$2:$B$1498,SMALL(IF(Database_Prop!$A$2:$A$1498=AV$129,ROW(Database_Prop!$B$2:$B$1498)-ROW(Database_Prop!$B$2)+1),ROWS(Database_Prop!S$2:'Database_Prop'!S160))),\"\")","v":""},{"$f":"IFERROR(INDEX(Database_Prop!$B$2:$B$1498,SMALL(IF(Database_Prop!$A$2:$A$1498=AW$129,ROW(Database_Prop!$B$2:$B$1498)-ROW(Database_Prop!$B$2)+1),ROWS(Database_Prop!T$2:'Database_Prop'!T160))),\"\")","v":""},{"$f":"IFERROR(INDEX(Database_Prop!$B$2:$B$1498,SMALL(IF(Database_Prop!$A$2:$A$1498=AX$129,ROW(Database_Prop!$B$2:$B$1498)-ROW(Database_Prop!$B$2)+1),ROWS(Database_Prop!U$2:'Database_Prop'!U160))),\"\")","v":""},{"$f":"IFERROR(INDEX(Database_Prop!$B$2:$B$1498,SMALL(IF(Database_Prop!$A$2:$A$1498=AY$129,ROW(Database_Prop!$B$2:$B$1498)-ROW(Database_Prop!$B$2)+1),ROWS(Database_Prop!V$2:'Database_Prop'!V160))),\"\")","v":""},{"$f":"IFERROR(INDEX(Database_Prop!$B$2:$B$1498,SMALL(IF(Database_Prop!$A$2:$A$1498=AZ$129,ROW(Database_Prop!$B$2:$B$1498)-ROW(Database_Prop!$B$2)+1),ROWS(Database_Prop!W$2:'Database_Prop'!W160))),\"\")","v":""},{"$f":"IFERROR(INDEX(Database_Prop!$B$2:$B$1498,SMALL(IF(Database_Prop!$A$2:$A$1498=BA$129,ROW(Database_Prop!$B$2:$B$1498)-ROW(Database_Prop!$B$2)+1),ROWS(Database_Prop!X$2:'Database_Prop'!X160))),\"\")","v":""},{"$f":"IFERROR(INDEX(Database_Prop!$B$2:$B$1498,SMALL(IF(Database_Prop!$A$2:$A$1498=BB$129,ROW(Database_Prop!$B$2:$B$1498)-ROW(Database_Prop!$B$2)+1),ROWS(Database_Prop!Y$2:'Database_Prop'!Y160))),\"\")","v":""},{"$f":"IFERROR(INDEX(Database_Prop!$B$2:$B$1498,SMALL(IF(Database_Prop!$A$2:$A$1498=BC$129,ROW(Database_Prop!$B$2:$B$1498)-ROW(Database_Prop!$B$2)+1),ROWS(Database_Prop!Z$2:'Database_Prop'!Z160))),\"\")","v":""},null,"Panama","Latin America"]
[null,null,null,null,null,null,null,null,null,null,null,null,null,null,null,null,null,null,null,null,null,null,null,null,null,null,null,null,null,null,161,{"$f":"IFERROR(INDEX(Database_Prop!$B$2:$B$1498,SMALL(IF(Database_Prop!$A$2:$A$1498=AF$129,ROW(Database_Prop!$B$2:$B$1498)-ROW(Database_Prop!$B$2)+1),ROWS(Database_Prop!C$2:'Database_Prop'!C161))),\"\")","v":""},{"$f":"IFERROR(INDEX(Database_Prop!$B$2:$B$1498,SMALL(IF(Database_Prop!$A$2:$A$1498=AG$129,ROW(Database_Prop!$B$2:$B$1498)-ROW(Database_Prop!$B$2)+1),ROWS(Database_Prop!D$2:'Database_Prop'!D161))),\"\")","v":""},{"$f":"IFERROR(INDEX(Database_Prop!$B$2:$B$1498,SMALL(IF(Database_Prop!$A$2:$A$1498=AH$129,ROW(Database_Prop!$B$2:$B$1498)-ROW(Database_Prop!$B$2)+1),ROWS(Database_Prop!E$2:'Database_Prop'!E161))),\"\")","v":""},{"$f":"IFERROR(INDEX(Database_Prop!$B$2:$B$1498,SMALL(IF(Database_Prop!$A$2:$A$1498=AI$129,ROW(Database_Prop!$B$2:$B$1498)-ROW(Database_Prop!$B$2)+1),ROWS(Database_Prop!F$2:'Database_Prop'!F161))),\"\")","v":""},{"$f":"IFERROR(INDEX(Database_Prop!$B$2:$B$1498,SMALL(IF(Database_Prop!$A$2:$A$1498=AJ$129,ROW(Database_Prop!$B$2:$B$1498)-ROW(Database_Prop!$B$2)+1),ROWS(Database_Prop!G$2:'Database_Prop'!G161))),\"\")","v":""},{"$f":"IFERROR(INDEX(Database_Prop!$B$2:$B$1498,SMALL(IF(Database_Prop!$A$2:$A$1498=AK$129,ROW(Database_Prop!$B$2:$B$1498)-ROW(Database_Prop!$B$2)+1),ROWS(Database_Prop!H$2:'Database_Prop'!H161))),\"\")","v":""},{"$f":"IFERROR(INDEX(Database_Prop!$B$2:$B$1498,SMALL(IF(Database_Prop!$A$2:$A$1498=AL$129,ROW(Database_Prop!$B$2:$B$1498)-ROW(Database_Prop!$B$2)+1),ROWS(Database_Prop!I$2:'Database_Prop'!I161))),\"\")","v":""},{"$f":"IFERROR(INDEX(Database_Prop!$B$2:$B$1498,SMALL(IF(Database_Prop!$A$2:$A$1498=AM$129,ROW(Database_Prop!$B$2:$B$1498)-ROW(Database_Prop!$B$2)+1),ROWS(Database_Prop!J$2:'Database_Prop'!J161))),\"\")","v":""},{"$f":"IFERROR(INDEX(Database_Prop!$B$2:$B$1498,SMALL(IF(Database_Prop!$A$2:$A$1498=AN$129,ROW(Database_Prop!$B$2:$B$1498)-ROW(Database_Prop!$B$2)+1),ROWS(Database_Prop!K$2:'Database_Prop'!K161))),\"\")","v":""},{"$f":"IFERROR(INDEX(Database_Prop!$B$2:$B$1498,SMALL(IF(Database_Prop!$A$2:$A$1498=AO$129,ROW(Database_Prop!$B$2:$B$1498)-ROW(Database_Prop!$B$2)+1),ROWS(Database_Prop!L$2:'Database_Prop'!L161))),\"\")","v":""},{"$f":"IFERROR(INDEX(Database_Prop!$B$2:$B$1498,SMALL(IF(Database_Prop!$A$2:$A$1498=AP$129,ROW(Database_Prop!$B$2:$B$1498)-ROW(Database_Prop!$B$2)+1),ROWS(Database_Prop!M$2:'Database_Prop'!M161))),\"\")","v":""},{"$f":"IFERROR(INDEX(Database_Prop!$B$2:$B$1498,SMALL(IF(Database_Prop!$A$2:$A$1498=AQ$129,ROW(Database_Prop!$B$2:$B$1498)-ROW(Database_Prop!$B$2)+1),ROWS(Database_Prop!N$2:'Database_Prop'!N161))),\"\")","v":""},{"$f":"IFERROR(INDEX(Database_Prop!$B$2:$B$1498,SMALL(IF(Database_Prop!$A$2:$A$1498=AR$129,ROW(Database_Prop!$B$2:$B$1498)-ROW(Database_Prop!$B$2)+1),ROWS(Database_Prop!O$2:'Database_Prop'!O161))),\"\")","v":""},{"$f":"IFERROR(INDEX(Database_Prop!$B$2:$B$1498,SMALL(IF(Database_Prop!$A$2:$A$1498=AS$129,ROW(Database_Prop!$B$2:$B$1498)-ROW(Database_Prop!$B$2)+1),ROWS(Database_Prop!P$2:'Database_Prop'!P161))),\"\")","v":""},{"$f":"IFERROR(INDEX(Database_Prop!$B$2:$B$1498,SMALL(IF(Database_Prop!$A$2:$A$1498=AT$129,ROW(Database_Prop!$B$2:$B$1498)-ROW(Database_Prop!$B$2)+1),ROWS(Database_Prop!Q$2:'Database_Prop'!Q161))),\"\")","v":""},{"$f":"IFERROR(INDEX(Database_Prop!$B$2:$B$1498,SMALL(IF(Database_Prop!$A$2:$A$1498=AU$129,ROW(Database_Prop!$B$2:$B$1498)-ROW(Database_Prop!$B$2)+1),ROWS(Database_Prop!R$2:'Database_Prop'!R161))),\"\")","v":""},{"$f":"IFERROR(INDEX(Database_Prop!$B$2:$B$1498,SMALL(IF(Database_Prop!$A$2:$A$1498=AV$129,ROW(Database_Prop!$B$2:$B$1498)-ROW(Database_Prop!$B$2)+1),ROWS(Database_Prop!S$2:'Database_Prop'!S161))),\"\")","v":""},{"$f":"IFERROR(INDEX(Database_Prop!$B$2:$B$1498,SMALL(IF(Database_Prop!$A$2:$A$1498=AW$129,ROW(Database_Prop!$B$2:$B$1498)-ROW(Database_Prop!$B$2)+1),ROWS(Database_Prop!T$2:'Database_Prop'!T161))),\"\")","v":""},{"$f":"IFERROR(INDEX(Database_Prop!$B$2:$B$1498,SMALL(IF(Database_Prop!$A$2:$A$1498=AX$129,ROW(Database_Prop!$B$2:$B$1498)-ROW(Database_Prop!$B$2)+1),ROWS(Database_Prop!U$2:'Database_Prop'!U161))),\"\")","v":""},{"$f":"IFERROR(INDEX(Database_Prop!$B$2:$B$1498,SMALL(IF(Database_Prop!$A$2:$A$1498=AY$129,ROW(Database_Prop!$B$2:$B$1498)-ROW(Database_Prop!$B$2)+1),ROWS(Database_Prop!V$2:'Database_Prop'!V161))),\"\")","v":""},{"$f":"IFERROR(INDEX(Database_Prop!$B$2:$B$1498,SMALL(IF(Database_Prop!$A$2:$A$1498=AZ$129,ROW(Database_Prop!$B$2:$B$1498)-ROW(Database_Prop!$B$2)+1),ROWS(Database_Prop!W$2:'Database_Prop'!W161))),\"\")","v":""},{"$f":"IFERROR(INDEX(Database_Prop!$B$2:$B$1498,SMALL(IF(Database_Prop!$A$2:$A$1498=BA$129,ROW(Database_Prop!$B$2:$B$1498)-ROW(Database_Prop!$B$2)+1),ROWS(Database_Prop!X$2:'Database_Prop'!X161))),\"\")","v":""},{"$f":"IFERROR(INDEX(Database_Prop!$B$2:$B$1498,SMALL(IF(Database_Prop!$A$2:$A$1498=BB$129,ROW(Database_Prop!$B$2:$B$1498)-ROW(Database_Prop!$B$2)+1),ROWS(Database_Prop!Y$2:'Database_Prop'!Y161))),\"\")","v":""},{"$f":"IFERROR(INDEX(Database_Prop!$B$2:$B$1498,SMALL(IF(Database_Prop!$A$2:$A$1498=BC$129,ROW(Database_Prop!$B$2:$B$1498)-ROW(Database_Prop!$B$2)+1),ROWS(Database_Prop!Z$2:'Database_Prop'!Z161))),\"\")","v":""},null,"Papua New Guinea","Oceania"]
[null,null,null,null,null,null,null,null,null,null,null,null,null,null,null,null,null,null,null,null,null,null,null,null,null,null,null,null,null,null,162,{"$f":"IFERROR(INDEX(Database_Prop!$B$2:$B$1498,SMALL(IF(Database_Prop!$A$2:$A$1498=AF$129,ROW(Database_Prop!$B$2:$B$1498)-ROW(Database_Prop!$B$2)+1),ROWS(Database_Prop!C$2:'Database_Prop'!C162))),\"\")","v":""},{"$f":"IFERROR(INDEX(Database_Prop!$B$2:$B$1498,SMALL(IF(Database_Prop!$A$2:$A$1498=AG$129,ROW(Database_Prop!$B$2:$B$1498)-ROW(Database_Prop!$B$2)+1),ROWS(Database_Prop!D$2:'Database_Prop'!D162))),\"\")","v":""},{"$f":"IFERROR(INDEX(Database_Prop!$B$2:$B$1498,SMALL(IF(Database_Prop!$A$2:$A$1498=AH$129,ROW(Database_Prop!$B$2:$B$1498)-ROW(Database_Prop!$B$2)+1),ROWS(Database_Prop!E$2:'Database_Prop'!E162))),\"\")","v":""},{"$f":"IFERROR(INDEX(Database_Prop!$B$2:$B$1498,SMALL(IF(Database_Prop!$A$2:$A$1498=AI$129,ROW(Database_Prop!$B$2:$B$1498)-ROW(Database_Prop!$B$2)+1),ROWS(Database_Prop!F$2:'Database_Prop'!F162))),\"\")","v":""},{"$f":"IFERROR(INDEX(Database_Prop!$B$2:$B$1498,SMALL(IF(Database_Prop!$A$2:$A$1498=AJ$129,ROW(Database_Prop!$B$2:$B$1498)-ROW(Database_Prop!$B$2)+1),ROWS(Database_Prop!G$2:'Database_Prop'!G162))),\"\")","v":""},{"$f":"IFERROR(INDEX(Database_Prop!$B$2:$B$1498,SMALL(IF(Database_Prop!$A$2:$A$1498=AK$129,ROW(Database_Prop!$B$2:$B$1498)-ROW(Database_Prop!$B$2)+1),ROWS(Database_Prop!H$2:'Database_Prop'!H162))),\"\")","v":""},{"$f":"IFERROR(INDEX(Database_Prop!$B$2:$B$1498,SMALL(IF(Database_Prop!$A$2:$A$1498=AL$129,ROW(Database_Prop!$B$2:$B$1498)-ROW(Database_Prop!$B$2)+1),ROWS(Database_Prop!I$2:'Database_Prop'!I162))),\"\")","v":""},{"$f":"IFERROR(INDEX(Database_Prop!$B$2:$B$1498,SMALL(IF(Database_Prop!$A$2:$A$1498=AM$129,ROW(Database_Prop!$B$2:$B$1498)-ROW(Database_Prop!$B$2)+1),ROWS(Database_Prop!J$2:'Database_Prop'!J162))),\"\")","v":""},{"$f":"IFERROR(INDEX(Database_Prop!$B$2:$B$1498,SMALL(IF(Database_Prop!$A$2:$A$1498=AN$129,ROW(Database_Prop!$B$2:$B$1498)-ROW(Database_Prop!$B$2)+1),ROWS(Database_Prop!K$2:'Database_Prop'!K162))),\"\")","v":""},{"$f":"IFERROR(INDEX(Database_Prop!$B$2:$B$1498,SMALL(IF(Database_Prop!$A$2:$A$1498=AO$129,ROW(Database_Prop!$B$2:$B$1498)-ROW(Database_Prop!$B$2)+1),ROWS(Database_Prop!L$2:'Database_Prop'!L162))),\"\")","v":""},{"$f":"IFERROR(INDEX(Database_Prop!$B$2:$B$1498,SMALL(IF(Database_Prop!$A$2:$A$1498=AP$129,ROW(Database_Prop!$B$2:$B$1498)-ROW(Database_Prop!$B$2)+1),ROWS(Database_Prop!M$2:'Database_Prop'!M162))),\"\")","v":""},{"$f":"IFERROR(INDEX(Database_Prop!$B$2:$B$1498,SMALL(IF(Database_Prop!$A$2:$A$1498=AQ$129,ROW(Database_Prop!$B$2:$B$1498)-ROW(Database_Prop!$B$2)+1),ROWS(Database_Prop!N$2:'Database_Prop'!N162))),\"\")","v":""},{"$f":"IFERROR(INDEX(Database_Prop!$B$2:$B$1498,SMALL(IF(Database_Prop!$A$2:$A$1498=AR$129,ROW(Database_Prop!$B$2:$B$1498)-ROW(Database_Prop!$B$2)+1),ROWS(Database_Prop!O$2:'Database_Prop'!O162))),\"\")","v":""},{"$f":"IFERROR(INDEX(Database_Prop!$B$2:$B$1498,SMALL(IF(Database_Prop!$A$2:$A$1498=AS$129,ROW(Database_Prop!$B$2:$B$1498)-ROW(Database_Prop!$B$2)+1),ROWS(Database_Prop!P$2:'Database_Prop'!P162))),\"\")","v":""},{"$f":"IFERROR(INDEX(Database_Prop!$B$2:$B$1498,SMALL(IF(Database_Prop!$A$2:$A$1498=AT$129,ROW(Database_Prop!$B$2:$B$1498)-ROW(Database_Prop!$B$2)+1),ROWS(Database_Prop!Q$2:'Database_Prop'!Q162))),\"\")","v":""},{"$f":"IFERROR(INDEX(Database_Prop!$B$2:$B$1498,SMALL(IF(Database_Prop!$A$2:$A$1498=AU$129,ROW(Database_Prop!$B$2:$B$1498)-ROW(Database_Prop!$B$2)+1),ROWS(Database_Prop!R$2:'Database_Prop'!R162))),\"\")","v":""},{"$f":"IFERROR(INDEX(Database_Prop!$B$2:$B$1498,SMALL(IF(Database_Prop!$A$2:$A$1498=AV$129,ROW(Database_Prop!$B$2:$B$1498)-ROW(Database_Prop!$B$2)+1),ROWS(Database_Prop!S$2:'Database_Prop'!S162))),\"\")","v":""},{"$f":"IFERROR(INDEX(Database_Prop!$B$2:$B$1498,SMALL(IF(Database_Prop!$A$2:$A$1498=AW$129,ROW(Database_Prop!$B$2:$B$1498)-ROW(Database_Prop!$B$2)+1),ROWS(Database_Prop!T$2:'Database_Prop'!T162))),\"\")","v":""},{"$f":"IFERROR(INDEX(Database_Prop!$B$2:$B$1498,SMALL(IF(Database_Prop!$A$2:$A$1498=AX$129,ROW(Database_Prop!$B$2:$B$1498)-ROW(Database_Prop!$B$2)+1),ROWS(Database_Prop!U$2:'Database_Prop'!U162))),\"\")","v":""},{"$f":"IFERROR(INDEX(Database_Prop!$B$2:$B$1498,SMALL(IF(Database_Prop!$A$2:$A$1498=AY$129,ROW(Database_Prop!$B$2:$B$1498)-ROW(Database_Prop!$B$2)+1),ROWS(Database_Prop!V$2:'Database_Prop'!V162))),\"\")","v":""},{"$f":"IFERROR(INDEX(Database_Prop!$B$2:$B$1498,SMALL(IF(Database_Prop!$A$2:$A$1498=AZ$129,ROW(Database_Prop!$B$2:$B$1498)-ROW(Database_Prop!$B$2)+1),ROWS(Database_Prop!W$2:'Database_Prop'!W162))),\"\")","v":""},{"$f":"IFERROR(INDEX(Database_Prop!$B$2:$B$1498,SMALL(IF(Database_Prop!$A$2:$A$1498=BA$129,ROW(Database_Prop!$B$2:$B$1498)-ROW(Database_Prop!$B$2)+1),ROWS(Database_Prop!X$2:'Database_Prop'!X162))),\"\")","v":""},{"$f":"IFERROR(INDEX(Database_Prop!$B$2:$B$1498,SMALL(IF(Database_Prop!$A$2:$A$1498=BB$129,ROW(Database_Prop!$B$2:$B$1498)-ROW(Database_Prop!$B$2)+1),ROWS(Database_Prop!Y$2:'Database_Prop'!Y162))),\"\")","v":""},{"$f":"IFERROR(INDEX(Database_Prop!$B$2:$B$1498,SMALL(IF(Database_Prop!$A$2:$A$1498=BC$129,ROW(Database_Prop!$B$2:$B$1498)-ROW(Database_Prop!$B$2)+1),ROWS(Database_Prop!Z$2:'Database_Prop'!Z162))),\"\")","v":""},null,"Paraguay","Latin America"]
[null,null,null,null,null,null,null,null,null,null,null,null,null,null,null,null,null,null,null,null,null,null,null,null,null,null,null,null,null,null,163,{"$f":"IFERROR(INDEX(Database_Prop!$B$2:$B$1498,SMALL(IF(Database_Prop!$A$2:$A$1498=AF$129,ROW(Database_Prop!$B$2:$B$1498)-ROW(Database_Prop!$B$2)+1),ROWS(Database_Prop!C$2:'Database_Prop'!C163))),\"\")","v":""},{"$f":"IFERROR(INDEX(Database_Prop!$B$2:$B$1498,SMALL(IF(Database_Prop!$A$2:$A$1498=AG$129,ROW(Database_Prop!$B$2:$B$1498)-ROW(Database_Prop!$B$2)+1),ROWS(Database_Prop!D$2:'Database_Prop'!D163))),\"\")","v":""},{"$f":"IFERROR(INDEX(Database_Prop!$B$2:$B$1498,SMALL(IF(Database_Prop!$A$2:$A$1498=AH$129,ROW(Database_Prop!$B$2:$B$1498)-ROW(Database_Prop!$B$2)+1),ROWS(Database_Prop!E$2:'Database_Prop'!E163))),\"\")","v":""},{"$f":"IFERROR(INDEX(Database_Prop!$B$2:$B$1498,SMALL(IF(Database_Prop!$A$2:$A$1498=AI$129,ROW(Database_Prop!$B$2:$B$1498)-ROW(Database_Prop!$B$2)+1),ROWS(Database_Prop!F$2:'Database_Prop'!F163))),\"\")","v":""},{"$f":"IFERROR(INDEX(Database_Prop!$B$2:$B$1498,SMALL(IF(Database_Prop!$A$2:$A$1498=AJ$129,ROW(Database_Prop!$B$2:$B$1498)-ROW(Database_Prop!$B$2)+1),ROWS(Database_Prop!G$2:'Database_Prop'!G163))),\"\")","v":""},{"$f":"IFERROR(INDEX(Database_Prop!$B$2:$B$1498,SMALL(IF(Database_Prop!$A$2:$A$1498=AK$129,ROW(Database_Prop!$B$2:$B$1498)-ROW(Database_Prop!$B$2)+1),ROWS(Database_Prop!H$2:'Database_Prop'!H163))),\"\")","v":""},{"$f":"IFERROR(INDEX(Database_Prop!$B$2:$B$1498,SMALL(IF(Database_Prop!$A$2:$A$1498=AL$129,ROW(Database_Prop!$B$2:$B$1498)-ROW(Database_Prop!$B$2)+1),ROWS(Database_Prop!I$2:'Database_Prop'!I163))),\"\")","v":""},{"$f":"IFERROR(INDEX(Database_Prop!$B$2:$B$1498,SMALL(IF(Database_Prop!$A$2:$A$1498=AM$129,ROW(Database_Prop!$B$2:$B$1498)-ROW(Database_Prop!$B$2)+1),ROWS(Database_Prop!J$2:'Database_Prop'!J163))),\"\")","v":""},{"$f":"IFERROR(INDEX(Database_Prop!$B$2:$B$1498,SMALL(IF(Database_Prop!$A$2:$A$1498=AN$129,ROW(Database_Prop!$B$2:$B$1498)-ROW(Database_Prop!$B$2)+1),ROWS(Database_Prop!K$2:'Database_Prop'!K163))),\"\")","v":""},{"$f":"IFERROR(INDEX(Database_Prop!$B$2:$B$1498,SMALL(IF(Database_Prop!$A$2:$A$1498=AO$129,ROW(Database_Prop!$B$2:$B$1498)-ROW(Database_Prop!$B$2)+1),ROWS(Database_Prop!L$2:'Database_Prop'!L163))),\"\")","v":""},{"$f":"IFERROR(INDEX(Database_Prop!$B$2:$B$1498,SMALL(IF(Database_Prop!$A$2:$A$1498=AP$129,ROW(Database_Prop!$B$2:$B$1498)-ROW(Database_Prop!$B$2)+1),ROWS(Database_Prop!M$2:'Database_Prop'!M163))),\"\")","v":""},{"$f":"IFERROR(INDEX(Database_Prop!$B$2:$B$1498,SMALL(IF(Database_Prop!$A$2:$A$1498=AQ$129,ROW(Database_Prop!$B$2:$B$1498)-ROW(Database_Prop!$B$2)+1),ROWS(Database_Prop!N$2:'Database_Prop'!N163))),\"\")","v":""},{"$f":"IFERROR(INDEX(Database_Prop!$B$2:$B$1498,SMALL(IF(Database_Prop!$A$2:$A$1498=AR$129,ROW(Database_Prop!$B$2:$B$1498)-ROW(Database_Prop!$B$2)+1),ROWS(Database_Prop!O$2:'Database_Prop'!O163))),\"\")","v":""},{"$f":"IFERROR(INDEX(Database_Prop!$B$2:$B$1498,SMALL(IF(Database_Prop!$A$2:$A$1498=AS$129,ROW(Database_Prop!$B$2:$B$1498)-ROW(Database_Prop!$B$2)+1),ROWS(Database_Prop!P$2:'Database_Prop'!P163))),\"\")","v":""},{"$f":"IFERROR(INDEX(Database_Prop!$B$2:$B$1498,SMALL(IF(Database_Prop!$A$2:$A$1498=AT$129,ROW(Database_Prop!$B$2:$B$1498)-ROW(Database_Prop!$B$2)+1),ROWS(Database_Prop!Q$2:'Database_Prop'!Q163))),\"\")","v":""},{"$f":"IFERROR(INDEX(Database_Prop!$B$2:$B$1498,SMALL(IF(Database_Prop!$A$2:$A$1498=AU$129,ROW(Database_Prop!$B$2:$B$1498)-ROW(Database_Prop!$B$2)+1),ROWS(Database_Prop!R$2:'Database_Prop'!R163))),\"\")","v":""},{"$f":"IFERROR(INDEX(Database_Prop!$B$2:$B$1498,SMALL(IF(Database_Prop!$A$2:$A$1498=AV$129,ROW(Database_Prop!$B$2:$B$1498)-ROW(Database_Prop!$B$2)+1),ROWS(Database_Prop!S$2:'Database_Prop'!S163))),\"\")","v":""},{"$f":"IFERROR(INDEX(Database_Prop!$B$2:$B$1498,SMALL(IF(Database_Prop!$A$2:$A$1498=AW$129,ROW(Database_Prop!$B$2:$B$1498)-ROW(Database_Prop!$B$2)+1),ROWS(Database_Prop!T$2:'Database_Prop'!T163))),\"\")","v":""},{"$f":"IFERROR(INDEX(Database_Prop!$B$2:$B$1498,SMALL(IF(Database_Prop!$A$2:$A$1498=AX$129,ROW(Database_Prop!$B$2:$B$1498)-ROW(Database_Prop!$B$2)+1),ROWS(Database_Prop!U$2:'Database_Prop'!U163))),\"\")","v":""},{"$f":"IFERROR(INDEX(Database_Prop!$B$2:$B$1498,SMALL(IF(Database_Prop!$A$2:$A$1498=AY$129,ROW(Database_Prop!$B$2:$B$1498)-ROW(Database_Prop!$B$2)+1),ROWS(Database_Prop!V$2:'Database_Prop'!V163))),\"\")","v":""},{"$f":"IFERROR(INDEX(Database_Prop!$B$2:$B$1498,SMALL(IF(Database_Prop!$A$2:$A$1498=AZ$129,ROW(Database_Prop!$B$2:$B$1498)-ROW(Database_Prop!$B$2)+1),ROWS(Database_Prop!W$2:'Database_Prop'!W163))),\"\")","v":""},{"$f":"IFERROR(INDEX(Database_Prop!$B$2:$B$1498,SMALL(IF(Database_Prop!$A$2:$A$1498=BA$129,ROW(Database_Prop!$B$2:$B$1498)-ROW(Database_Prop!$B$2)+1),ROWS(Database_Prop!X$2:'Database_Prop'!X163))),\"\")","v":""},{"$f":"IFERROR(INDEX(Database_Prop!$B$2:$B$1498,SMALL(IF(Database_Prop!$A$2:$A$1498=BB$129,ROW(Database_Prop!$B$2:$B$1498)-ROW(Database_Prop!$B$2)+1),ROWS(Database_Prop!Y$2:'Database_Prop'!Y163))),\"\")","v":""},{"$f":"IFERROR(INDEX(Database_Prop!$B$2:$B$1498,SMALL(IF(Database_Prop!$A$2:$A$1498=BC$129,ROW(Database_Prop!$B$2:$B$1498)-ROW(Database_Prop!$B$2)+1),ROWS(Database_Prop!Z$2:'Database_Prop'!Z163))),\"\")","v":""},null,"Peru","Latin America"]
[null,null,null,null,null,null,null,null,null,null,null,null,null,null,null,null,null,null,null,null,null,null,null,null,null,null,null,null,null,null,164,{"$f":"IFERROR(INDEX(Database_Prop!$B$2:$B$1498,SMALL(IF(Database_Prop!$A$2:$A$1498=AF$129,ROW(Database_Prop!$B$2:$B$1498)-ROW(Database_Prop!$B$2)+1),ROWS(Database_Prop!C$2:'Database_Prop'!C164))),\"\")","v":""},{"$f":"IFERROR(INDEX(Database_Prop!$B$2:$B$1498,SMALL(IF(Database_Prop!$A$2:$A$1498=AG$129,ROW(Database_Prop!$B$2:$B$1498)-ROW(Database_Prop!$B$2)+1),ROWS(Database_Prop!D$2:'Database_Prop'!D164))),\"\")","v":""},{"$f":"IFERROR(INDEX(Database_Prop!$B$2:$B$1498,SMALL(IF(Database_Prop!$A$2:$A$1498=AH$129,ROW(Database_Prop!$B$2:$B$1498)-ROW(Database_Prop!$B$2)+1),ROWS(Database_Prop!E$2:'Database_Prop'!E164))),\"\")","v":""},{"$f":"IFERROR(INDEX(Database_Prop!$B$2:$B$1498,SMALL(IF(Database_Prop!$A$2:$A$1498=AI$129,ROW(Database_Prop!$B$2:$B$1498)-ROW(Database_Prop!$B$2)+1),ROWS(Database_Prop!F$2:'Database_Prop'!F164))),\"\")","v":""},{"$f":"IFERROR(INDEX(Database_Prop!$B$2:$B$1498,SMALL(IF(Database_Prop!$A$2:$A$1498=AJ$129,ROW(Database_Prop!$B$2:$B$1498)-ROW(Database_Prop!$B$2)+1),ROWS(Database_Prop!G$2:'Database_Prop'!G164))),\"\")","v":""},{"$f":"IFERROR(INDEX(Database_Prop!$B$2:$B$1498,SMALL(IF(Database_Prop!$A$2:$A$1498=AK$129,ROW(Database_Prop!$B$2:$B$1498)-ROW(Database_Prop!$B$2)+1),ROWS(Database_Prop!H$2:'Database_Prop'!H164))),\"\")","v":""},{"$f":"IFERROR(INDEX(Database_Prop!$B$2:$B$1498,SMALL(IF(Database_Prop!$A$2:$A$1498=AL$129,ROW(Database_Prop!$B$2:$B$1498)-ROW(Database_Prop!$B$2)+1),ROWS(Database_Prop!I$2:'Database_Prop'!I164))),\"\")","v":""},{"$f":"IFERROR(INDEX(Database_Prop!$B$2:$B$1498,SMALL(IF(Database_Prop!$A$2:$A$1498=AM$129,ROW(Database_Prop!$B$2:$B$1498)-ROW(Database_Prop!$B$2)+1),ROWS(Database_Prop!J$2:'Database_Prop'!J164))),\"\")","v":""},{"$f":"IFERROR(INDEX(Database_Prop!$B$2:$B$1498,SMALL(IF(Database_Prop!$A$2:$A$1498=AN$129,ROW(Database_Prop!$B$2:$B$1498)-ROW(Database_Prop!$B$2)+1),ROWS(Database_Prop!K$2:'Database_Prop'!K164))),\"\")","v":""},{"$f":"IFERROR(INDEX(Database_Prop!$B$2:$B$1498,SMALL(IF(Database_Prop!$A$2:$A$1498=AO$129,ROW(Database_Prop!$B$2:$B$1498)-ROW(Database_Prop!$B$2)+1),ROWS(Database_Prop!L$2:'Database_Prop'!L164))),\"\")","v":""},{"$f":"IFERROR(INDEX(Database_Prop!$B$2:$B$1498,SMALL(IF(Database_Prop!$A$2:$A$1498=AP$129,ROW(Database_Prop!$B$2:$B$1498)-ROW(Database_Prop!$B$2)+1),ROWS(Database_Prop!M$2:'Database_Prop'!M164))),\"\")","v":""},{"$f":"IFERROR(INDEX(Database_Prop!$B$2:$B$1498,SMALL(IF(Database_Prop!$A$2:$A$1498=AQ$129,ROW(Database_Prop!$B$2:$B$1498)-ROW(Database_Prop!$B$2)+1),ROWS(Database_Prop!N$2:'Database_Prop'!N164))),\"\")","v":""},{"$f":"IFERROR(INDEX(Database_Prop!$B$2:$B$1498,SMALL(IF(Database_Prop!$A$2:$A$1498=AR$129,ROW(Database_Prop!$B$2:$B$1498)-ROW(Database_Prop!$B$2)+1),ROWS(Database_Prop!O$2:'Database_Prop'!O164))),\"\")","v":""},{"$f":"IFERROR(INDEX(Database_Prop!$B$2:$B$1498,SMALL(IF(Database_Prop!$A$2:$A$1498=AS$129,ROW(Database_Prop!$B$2:$B$1498)-ROW(Database_Prop!$B$2)+1),ROWS(Database_Prop!P$2:'Database_Prop'!P164))),\"\")","v":""},{"$f":"IFERROR(INDEX(Database_Prop!$B$2:$B$1498,SMALL(IF(Database_Prop!$A$2:$A$1498=AT$129,ROW(Database_Prop!$B$2:$B$1498)-ROW(Database_Prop!$B$2)+1),ROWS(Database_Prop!Q$2:'Database_Prop'!Q164))),\"\")","v":""},{"$f":"IFERROR(INDEX(Database_Prop!$B$2:$B$1498,SMALL(IF(Database_Prop!$A$2:$A$1498=AU$129,ROW(Database_Prop!$B$2:$B$1498)-ROW(Database_Prop!$B$2)+1),ROWS(Database_Prop!R$2:'Database_Prop'!R164))),\"\")","v":""},{"$f":"IFERROR(INDEX(Database_Prop!$B$2:$B$1498,SMALL(IF(Database_Prop!$A$2:$A$1498=AV$129,ROW(Database_Prop!$B$2:$B$1498)-ROW(Database_Prop!$B$2)+1),ROWS(Database_Prop!S$2:'Database_Prop'!S164))),\"\")","v":""},{"$f":"IFERROR(INDEX(Database_Prop!$B$2:$B$1498,SMALL(IF(Database_Prop!$A$2:$A$1498=AW$129,ROW(Database_Prop!$B$2:$B$1498)-ROW(Database_Prop!$B$2)+1),ROWS(Database_Prop!T$2:'Database_Prop'!T164))),\"\")","v":""},{"$f":"IFERROR(INDEX(Database_Prop!$B$2:$B$1498,SMALL(IF(Database_Prop!$A$2:$A$1498=AX$129,ROW(Database_Prop!$B$2:$B$1498)-ROW(Database_Prop!$B$2)+1),ROWS(Database_Prop!U$2:'Database_Prop'!U164))),\"\")","v":""},{"$f":"IFERROR(INDEX(Database_Prop!$B$2:$B$1498,SMALL(IF(Database_Prop!$A$2:$A$1498=AY$129,ROW(Database_Prop!$B$2:$B$1498)-ROW(Database_Prop!$B$2)+1),ROWS(Database_Prop!V$2:'Database_Prop'!V164))),\"\")","v":""},{"$f":"IFERROR(INDEX(Database_Prop!$B$2:$B$1498,SMALL(IF(Database_Prop!$A$2:$A$1498=AZ$129,ROW(Database_Prop!$B$2:$B$1498)-ROW(Database_Prop!$B$2)+1),ROWS(Database_Prop!W$2:'Database_Prop'!W164))),\"\")","v":""},{"$f":"IFERROR(INDEX(Database_Prop!$B$2:$B$1498,SMALL(IF(Database_Prop!$A$2:$A$1498=BA$129,ROW(Database_Prop!$B$2:$B$1498)-ROW(Database_Prop!$B$2)+1),ROWS(Database_Prop!X$2:'Database_Prop'!X164))),\"\")","v":""},{"$f":"IFERROR(INDEX(Database_Prop!$B$2:$B$1498,SMALL(IF(Database_Prop!$A$2:$A$1498=BB$129,ROW(Database_Prop!$B$2:$B$1498)-ROW(Database_Prop!$B$2)+1),ROWS(Database_Prop!Y$2:'Database_Prop'!Y164))),\"\")","v":""},{"$f":"IFERROR(INDEX(Database_Prop!$B$2:$B$1498,SMALL(IF(Database_Prop!$A$2:$A$1498=BC$129,ROW(Database_Prop!$B$2:$B$1498)-ROW(Database_Prop!$B$2)+1),ROWS(Database_Prop!Z$2:'Database_Prop'!Z164))),\"\")","v":""},null,"Philippines","Asia"]
[null,null,null,null,null,null,null,null,null,null,null,null,null,null,null,null,null,null,null,null,null,null,null,null,null,null,null,null,null,null,165,{"$f":"IFERROR(INDEX(Database_Prop!$B$2:$B$1498,SMALL(IF(Database_Prop!$A$2:$A$1498=AF$129,ROW(Database_Prop!$B$2:$B$1498)-ROW(Database_Prop!$B$2)+1),ROWS(Database_Prop!C$2:'Database_Prop'!C165))),\"\")","v":""},{"$f":"IFERROR(INDEX(Database_Prop!$B$2:$B$1498,SMALL(IF(Database_Prop!$A$2:$A$1498=AG$129,ROW(Database_Prop!$B$2:$B$1498)-ROW(Database_Prop!$B$2)+1),ROWS(Database_Prop!D$2:'Database_Prop'!D165))),\"\")","v":""},{"$f":"IFERROR(INDEX(Database_Prop!$B$2:$B$1498,SMALL(IF(Database_Prop!$A$2:$A$1498=AH$129,ROW(Database_Prop!$B$2:$B$1498)-ROW(Database_Prop!$B$2)+1),ROWS(Database_Prop!E$2:'Database_Prop'!E165))),\"\")","v":""},{"$f":"IFERROR(INDEX(Database_Prop!$B$2:$B$1498,SMALL(IF(Database_Prop!$A$2:$A$1498=AI$129,ROW(Database_Prop!$B$2:$B$1498)-ROW(Database_Prop!$B$2)+1),ROWS(Database_Prop!F$2:'Database_Prop'!F165))),\"\")","v":""},{"$f":"IFERROR(INDEX(Database_Prop!$B$2:$B$1498,SMALL(IF(Database_Prop!$A$2:$A$1498=AJ$129,ROW(Database_Prop!$B$2:$B$1498)-ROW(Database_Prop!$B$2)+1),ROWS(Database_Prop!G$2:'Database_Prop'!G165))),\"\")","v":""},{"$f":"IFERROR(INDEX(Database_Prop!$B$2:$B$1498,SMALL(IF(Database_Prop!$A$2:$A$1498=AK$129,ROW(Database_Prop!$B$2:$B$1498)-ROW(Database_Prop!$B$2)+1),ROWS(Database_Prop!H$2:'Database_Prop'!H165))),\"\")","v":""},{"$f":"IFERROR(INDEX(Database_Prop!$B$2:$B$1498,SMALL(IF(Database_Prop!$A$2:$A$1498=AL$129,ROW(Database_Prop!$B$2:$B$1498)-ROW(Database_Prop!$B$2)+1),ROWS(Database_Prop!I$2:'Database_Prop'!I165))),\"\")","v":""},{"$f":"IFERROR(INDEX(Database_Prop!$B$2:$B$1498,SMALL(IF(Database_Prop!$A$2:$A$1498=AM$129,ROW(Database_Prop!$B$2:$B$1498)-ROW(Database_Prop!$B$2)+1),ROWS(Database_Prop!J$2:'Database_Prop'!J165))),\"\")","v":""},{"$f":"IFERROR(INDEX(Database_Prop!$B$2:$B$1498,SMALL(IF(Database_Prop!$A$2:$A$1498=AN$129,ROW(Database_Prop!$B$2:$B$1498)-ROW(Database_Prop!$B$2)+1),ROWS(Database_Prop!K$2:'Database_Prop'!K165))),\"\")","v":""},{"$f":"IFERROR(INDEX(Database_Prop!$B$2:$B$1498,SMALL(IF(Database_Prop!$A$2:$A$1498=AO$129,ROW(Database_Prop!$B$2:$B$1498)-ROW(Database_Prop!$B$2)+1),ROWS(Database_Prop!L$2:'Database_Prop'!L165))),\"\")","v":""},{"$f":"IFERROR(INDEX(Database_Prop!$B$2:$B$1498,SMALL(IF(Database_Prop!$A$2:$A$1498=AP$129,ROW(Database_Prop!$B$2:$B$1498)-ROW(Database_Prop!$B$2)+1),ROWS(Database_Prop!M$2:'Database_Prop'!M165))),\"\")","v":""},{"$f":"IFERROR(INDEX(Database_Prop!$B$2:$B$1498,SMALL(IF(Database_Prop!$A$2:$A$1498=AQ$129,ROW(Database_Prop!$B$2:$B$1498)-ROW(Database_Prop!$B$2)+1),ROWS(Database_Prop!N$2:'Database_Prop'!N165))),\"\")","v":""},{"$f":"IFERROR(INDEX(Database_Prop!$B$2:$B$1498,SMALL(IF(Database_Prop!$A$2:$A$1498=AR$129,ROW(Database_Prop!$B$2:$B$1498)-ROW(Database_Prop!$B$2)+1),ROWS(Database_Prop!O$2:'Database_Prop'!O165))),\"\")","v":""},{"$f":"IFERROR(INDEX(Database_Prop!$B$2:$B$1498,SMALL(IF(Database_Prop!$A$2:$A$1498=AS$129,ROW(Database_Prop!$B$2:$B$1498)-ROW(Database_Prop!$B$2)+1),ROWS(Database_Prop!P$2:'Database_Prop'!P165))),\"\")","v":""},{"$f":"IFERROR(INDEX(Database_Prop!$B$2:$B$1498,SMALL(IF(Database_Prop!$A$2:$A$1498=AT$129,ROW(Database_Prop!$B$2:$B$1498)-ROW(Database_Prop!$B$2)+1),ROWS(Database_Prop!Q$2:'Database_Prop'!Q165))),\"\")","v":""},{"$f":"IFERROR(INDEX(Database_Prop!$B$2:$B$1498,SMALL(IF(Database_Prop!$A$2:$A$1498=AU$129,ROW(Database_Prop!$B$2:$B$1498)-ROW(Database_Prop!$B$2)+1),ROWS(Database_Prop!R$2:'Database_Prop'!R165))),\"\")","v":""},{"$f":"IFERROR(INDEX(Database_Prop!$B$2:$B$1498,SMALL(IF(Database_Prop!$A$2:$A$1498=AV$129,ROW(Database_Prop!$B$2:$B$1498)-ROW(Database_Prop!$B$2)+1),ROWS(Database_Prop!S$2:'Database_Prop'!S165))),\"\")","v":""},{"$f":"IFERROR(INDEX(Database_Prop!$B$2:$B$1498,SMALL(IF(Database_Prop!$A$2:$A$1498=AW$129,ROW(Database_Prop!$B$2:$B$1498)-ROW(Database_Prop!$B$2)+1),ROWS(Database_Prop!T$2:'Database_Prop'!T165))),\"\")","v":""},{"$f":"IFERROR(INDEX(Database_Prop!$B$2:$B$1498,SMALL(IF(Database_Prop!$A$2:$A$1498=AX$129,ROW(Database_Prop!$B$2:$B$1498)-ROW(Database_Prop!$B$2)+1),ROWS(Database_Prop!U$2:'Database_Prop'!U165))),\"\")","v":""},{"$f":"IFERROR(INDEX(Database_Prop!$B$2:$B$1498,SMALL(IF(Database_Prop!$A$2:$A$1498=AY$129,ROW(Database_Prop!$B$2:$B$1498)-ROW(Database_Prop!$B$2)+1),ROWS(Database_Prop!V$2:'Database_Prop'!V165))),\"\")","v":""},{"$f":"IFERROR(INDEX(Database_Prop!$B$2:$B$1498,SMALL(IF(Database_Prop!$A$2:$A$1498=AZ$129,ROW(Database_Prop!$B$2:$B$1498)-ROW(Database_Prop!$B$2)+1),ROWS(Database_Prop!W$2:'Database_Prop'!W165))),\"\")","v":""},{"$f":"IFERROR(INDEX(Database_Prop!$B$2:$B$1498,SMALL(IF(Database_Prop!$A$2:$A$1498=BA$129,ROW(Database_Prop!$B$2:$B$1498)-ROW(Database_Prop!$B$2)+1),ROWS(Database_Prop!X$2:'Database_Prop'!X165))),\"\")","v":""},{"$f":"IFERROR(INDEX(Database_Prop!$B$2:$B$1498,SMALL(IF(Database_Prop!$A$2:$A$1498=BB$129,ROW(Database_Prop!$B$2:$B$1498)-ROW(Database_Prop!$B$2)+1),ROWS(Database_Prop!Y$2:'Database_Prop'!Y165))),\"\")","v":""},{"$f":"IFERROR(INDEX(Database_Prop!$B$2:$B$1498,SMALL(IF(Database_Prop!$A$2:$A$1498=BC$129,ROW(Database_Prop!$B$2:$B$1498)-ROW(Database_Prop!$B$2)+1),ROWS(Database_Prop!Z$2:'Database_Prop'!Z165))),\"\")","v":""},null,"Pitcairn","Oceania"]
[null,null,null,null,null,null,null,null,null,null,null,null,null,null,null,null,null,null,null,null,null,null,null,null,null,null,null,null,null,null,166,{"$f":"IFERROR(INDEX(Database_Prop!$B$2:$B$1498,SMALL(IF(Database_Prop!$A$2:$A$1498=AF$129,ROW(Database_Prop!$B$2:$B$1498)-ROW(Database_Prop!$B$2)+1),ROWS(Database_Prop!C$2:'Database_Prop'!C166))),\"\")","v":""},{"$f":"IFERROR(INDEX(Database_Prop!$B$2:$B$1498,SMALL(IF(Database_Prop!$A$2:$A$1498=AG$129,ROW(Database_Prop!$B$2:$B$1498)-ROW(Database_Prop!$B$2)+1),ROWS(Database_Prop!D$2:'Database_Prop'!D166))),\"\")","v":""},{"$f":"IFERROR(INDEX(Database_Prop!$B$2:$B$1498,SMALL(IF(Database_Prop!$A$2:$A$1498=AH$129,ROW(Database_Prop!$B$2:$B$1498)-ROW(Database_Prop!$B$2)+1),ROWS(Database_Prop!E$2:'Database_Prop'!E166))),\"\")","v":""},{"$f":"IFERROR(INDEX(Database_Prop!$B$2:$B$1498,SMALL(IF(Database_Prop!$A$2:$A$1498=AI$129,ROW(Database_Prop!$B$2:$B$1498)-ROW(Database_Prop!$B$2)+1),ROWS(Database_Prop!F$2:'Database_Prop'!F166))),\"\")","v":""},{"$f":"IFERROR(INDEX(Database_Prop!$B$2:$B$1498,SMALL(IF(Database_Prop!$A$2:$A$1498=AJ$129,ROW(Database_Prop!$B$2:$B$1498)-ROW(Database_Prop!$B$2)+1),ROWS(Database_Prop!G$2:'Database_Prop'!G166))),\"\")","v":""},{"$f":"IFERROR(INDEX(Database_Prop!$B$2:$B$1498,SMALL(IF(Database_Prop!$A$2:$A$1498=AK$129,ROW(Database_Prop!$B$2:$B$1498)-ROW(Database_Prop!$B$2)+1),ROWS(Database_Prop!H$2:'Database_Prop'!H166))),\"\")","v":""},{"$f":"IFERROR(INDEX(Database_Prop!$B$2:$B$1498,SMALL(IF(Database_Prop!$A$2:$A$1498=AL$129,ROW(Database_Prop!$B$2:$B$1498)-ROW(Database_Prop!$B$2)+1),ROWS(Database_Prop!I$2:'Database_Prop'!I166))),\"\")","v":""},{"$f":"IFERROR(INDEX(Database_Prop!$B$2:$B$1498,SMALL(IF(Database_Prop!$A$2:$A$1498=AM$129,ROW(Database_Prop!$B$2:$B$1498)-ROW(Database_Prop!$B$2)+1),ROWS(Database_Prop!J$2:'Database_Prop'!J166))),\"\")","v":""},{"$f":"IFERROR(INDEX(Database_Prop!$B$2:$B$1498,SMALL(IF(Database_Prop!$A$2:$A$1498=AN$129,ROW(Database_Prop!$B$2:$B$1498)-ROW(Database_Prop!$B$2)+1),ROWS(Database_Prop!K$2:'Database_Prop'!K166))),\"\")","v":""},{"$f":"IFERROR(INDEX(Database_Prop!$B$2:$B$1498,SMALL(IF(Database_Prop!$A$2:$A$1498=AO$129,ROW(Database_Prop!$B$2:$B$1498)-ROW(Database_Prop!$B$2)+1),ROWS(Database_Prop!L$2:'Database_Prop'!L166))),\"\")","v":""},{"$f":"IFERROR(INDEX(Database_Prop!$B$2:$B$1498,SMALL(IF(Database_Prop!$A$2:$A$1498=AP$129,ROW(Database_Prop!$B$2:$B$1498)-ROW(Database_Prop!$B$2)+1),ROWS(Database_Prop!M$2:'Database_Prop'!M166))),\"\")","v":""},{"$f":"IFERROR(INDEX(Database_Prop!$B$2:$B$1498,SMALL(IF(Database_Prop!$A$2:$A$1498=AQ$129,ROW(Database_Prop!$B$2:$B$1498)-ROW(Database_Prop!$B$2)+1),ROWS(Database_Prop!N$2:'Database_Prop'!N166))),\"\")","v":""},{"$f":"IFERROR(INDEX(Database_Prop!$B$2:$B$1498,SMALL(IF(Database_Prop!$A$2:$A$1498=AR$129,ROW(Database_Prop!$B$2:$B$1498)-ROW(Database_Prop!$B$2)+1),ROWS(Database_Prop!O$2:'Database_Prop'!O166))),\"\")","v":""},{"$f":"IFERROR(INDEX(Database_Prop!$B$2:$B$1498,SMALL(IF(Database_Prop!$A$2:$A$1498=AS$129,ROW(Database_Prop!$B$2:$B$1498)-ROW(Database_Prop!$B$2)+1),ROWS(Database_Prop!P$2:'Database_Prop'!P166))),\"\")","v":""},{"$f":"IFERROR(INDEX(Database_Prop!$B$2:$B$1498,SMALL(IF(Database_Prop!$A$2:$A$1498=AT$129,ROW(Database_Prop!$B$2:$B$1498)-ROW(Database_Prop!$B$2)+1),ROWS(Database_Prop!Q$2:'Database_Prop'!Q166))),\"\")","v":""},{"$f":"IFERROR(INDEX(Database_Prop!$B$2:$B$1498,SMALL(IF(Database_Prop!$A$2:$A$1498=AU$129,ROW(Database_Prop!$B$2:$B$1498)-ROW(Database_Prop!$B$2)+1),ROWS(Database_Prop!R$2:'Database_Prop'!R166))),\"\")","v":""},{"$f":"IFERROR(INDEX(Database_Prop!$B$2:$B$1498,SMALL(IF(Database_Prop!$A$2:$A$1498=AV$129,ROW(Database_Prop!$B$2:$B$1498)-ROW(Database_Prop!$B$2)+1),ROWS(Database_Prop!S$2:'Database_Prop'!S166))),\"\")","v":""},{"$f":"IFERROR(INDEX(Database_Prop!$B$2:$B$1498,SMALL(IF(Database_Prop!$A$2:$A$1498=AW$129,ROW(Database_Prop!$B$2:$B$1498)-ROW(Database_Prop!$B$2)+1),ROWS(Database_Prop!T$2:'Database_Prop'!T166))),\"\")","v":""},{"$f":"IFERROR(INDEX(Database_Prop!$B$2:$B$1498,SMALL(IF(Database_Prop!$A$2:$A$1498=AX$129,ROW(Database_Prop!$B$2:$B$1498)-ROW(Database_Prop!$B$2)+1),ROWS(Database_Prop!U$2:'Database_Prop'!U166))),\"\")","v":""},{"$f":"IFERROR(INDEX(Database_Prop!$B$2:$B$1498,SMALL(IF(Database_Prop!$A$2:$A$1498=AY$129,ROW(Database_Prop!$B$2:$B$1498)-ROW(Database_Prop!$B$2)+1),ROWS(Database_Prop!V$2:'Database_Prop'!V166))),\"\")","v":""},{"$f":"IFERROR(INDEX(Database_Prop!$B$2:$B$1498,SMALL(IF(Database_Prop!$A$2:$A$1498=AZ$129,ROW(Database_Prop!$B$2:$B$1498)-ROW(Database_Prop!$B$2)+1),ROWS(Database_Prop!W$2:'Database_Prop'!W166))),\"\")","v":""},{"$f":"IFERROR(INDEX(Database_Prop!$B$2:$B$1498,SMALL(IF(Database_Prop!$A$2:$A$1498=BA$129,ROW(Database_Prop!$B$2:$B$1498)-ROW(Database_Prop!$B$2)+1),ROWS(Database_Prop!X$2:'Database_Prop'!X166))),\"\")","v":""},{"$f":"IFERROR(INDEX(Database_Prop!$B$2:$B$1498,SMALL(IF(Database_Prop!$A$2:$A$1498=BB$129,ROW(Database_Prop!$B$2:$B$1498)-ROW(Database_Prop!$B$2)+1),ROWS(Database_Prop!Y$2:'Database_Prop'!Y166))),\"\")","v":""},{"$f":"IFERROR(INDEX(Database_Prop!$B$2:$B$1498,SMALL(IF(Database_Prop!$A$2:$A$1498=BC$129,ROW(Database_Prop!$B$2:$B$1498)-ROW(Database_Prop!$B$2)+1),ROWS(Database_Prop!Z$2:'Database_Prop'!Z166))),\"\")","v":""},null,"Poland","Eastern Europe"]
[null,null,null,null,null,null,null,null,null,null,null,null,null,null,null,null,null,null,null,null,null,null,null,null,null,null,null,null,null,null,167,{"$f":"IFERROR(INDEX(Database_Prop!$B$2:$B$1498,SMALL(IF(Database_Prop!$A$2:$A$1498=AF$129,ROW(Database_Prop!$B$2:$B$1498)-ROW(Database_Prop!$B$2)+1),ROWS(Database_Prop!C$2:'Database_Prop'!C167))),\"\")","v":""},{"$f":"IFERROR(INDEX(Database_Prop!$B$2:$B$1498,SMALL(IF(Database_Prop!$A$2:$A$1498=AG$129,ROW(Database_Prop!$B$2:$B$1498)-ROW(Database_Prop!$B$2)+1),ROWS(Database_Prop!D$2:'Database_Prop'!D167))),\"\")","v":""},{"$f":"IFERROR(INDEX(Database_Prop!$B$2:$B$1498,SMALL(IF(Database_Prop!$A$2:$A$1498=AH$129,ROW(Database_Prop!$B$2:$B$1498)-ROW(Database_Prop!$B$2)+1),ROWS(Database_Prop!E$2:'Database_Prop'!E167))),\"\")","v":""},{"$f":"IFERROR(INDEX(Database_Prop!$B$2:$B$1498,SMALL(IF(Database_Prop!$A$2:$A$1498=AI$129,ROW(Database_Prop!$B$2:$B$1498)-ROW(Database_Prop!$B$2)+1),ROWS(Database_Prop!F$2:'Database_Prop'!F167))),\"\")","v":""},{"$f":"IFERROR(INDEX(Database_Prop!$B$2:$B$1498,SMALL(IF(Database_Prop!$A$2:$A$1498=AJ$129,ROW(Database_Prop!$B$2:$B$1498)-ROW(Database_Prop!$B$2)+1),ROWS(Database_Prop!G$2:'Database_Prop'!G167))),\"\")","v":""},{"$f":"IFERROR(INDEX(Database_Prop!$B$2:$B$1498,SMALL(IF(Database_Prop!$A$2:$A$1498=AK$129,ROW(Database_Prop!$B$2:$B$1498)-ROW(Database_Prop!$B$2)+1),ROWS(Database_Prop!H$2:'Database_Prop'!H167))),\"\")","v":""},{"$f":"IFERROR(INDEX(Database_Prop!$B$2:$B$1498,SMALL(IF(Database_Prop!$A$2:$A$1498=AL$129,ROW(Database_Prop!$B$2:$B$1498)-ROW(Database_Prop!$B$2)+1),ROWS(Database_Prop!I$2:'Database_Prop'!I167))),\"\")","v":""},{"$f":"IFERROR(INDEX(Database_Prop!$B$2:$B$1498,SMALL(IF(Database_Prop!$A$2:$A$1498=AM$129,ROW(Database_Prop!$B$2:$B$1498)-ROW(Database_Prop!$B$2)+1),ROWS(Database_Prop!J$2:'Database_Prop'!J167))),\"\")","v":""},{"$f":"IFERROR(INDEX(Database_Prop!$B$2:$B$1498,SMALL(IF(Database_Prop!$A$2:$A$1498=AN$129,ROW(Database_Prop!$B$2:$B$1498)-ROW(Database_Prop!$B$2)+1),ROWS(Database_Prop!K$2:'Database_Prop'!K167))),\"\")","v":""},{"$f":"IFERROR(INDEX(Database_Prop!$B$2:$B$1498,SMALL(IF(Database_Prop!$A$2:$A$1498=AO$129,ROW(Database_Prop!$B$2:$B$1498)-ROW(Database_Prop!$B$2)+1),ROWS(Database_Prop!L$2:'Database_Prop'!L167))),\"\")","v":""},{"$f":"IFERROR(INDEX(Database_Prop!$B$2:$B$1498,SMALL(IF(Database_Prop!$A$2:$A$1498=AP$129,ROW(Database_Prop!$B$2:$B$1498)-ROW(Database_Prop!$B$2)+1),ROWS(Database_Prop!M$2:'Database_Prop'!M167))),\"\")","v":""},{"$f":"IFERROR(INDEX(Database_Prop!$B$2:$B$1498,SMALL(IF(Database_Prop!$A$2:$A$1498=AQ$129,ROW(Database_Prop!$B$2:$B$1498)-ROW(Database_Prop!$B$2)+1),ROWS(Database_Prop!N$2:'Database_Prop'!N167))),\"\")","v":""},{"$f":"IFERROR(INDEX(Database_Prop!$B$2:$B$1498,SMALL(IF(Database_Prop!$A$2:$A$1498=AR$129,ROW(Database_Prop!$B$2:$B$1498)-ROW(Database_Prop!$B$2)+1),ROWS(Database_Prop!O$2:'Database_Prop'!O167))),\"\")","v":""},{"$f":"IFERROR(INDEX(Database_Prop!$B$2:$B$1498,SMALL(IF(Database_Prop!$A$2:$A$1498=AS$129,ROW(Database_Prop!$B$2:$B$1498)-ROW(Database_Prop!$B$2)+1),ROWS(Database_Prop!P$2:'Database_Prop'!P167))),\"\")","v":""},{"$f":"IFERROR(INDEX(Database_Prop!$B$2:$B$1498,SMALL(IF(Database_Prop!$A$2:$A$1498=AT$129,ROW(Database_Prop!$B$2:$B$1498)-ROW(Database_Prop!$B$2)+1),ROWS(Database_Prop!Q$2:'Database_Prop'!Q167))),\"\")","v":""},{"$f":"IFERROR(INDEX(Database_Prop!$B$2:$B$1498,SMALL(IF(Database_Prop!$A$2:$A$1498=AU$129,ROW(Database_Prop!$B$2:$B$1498)-ROW(Database_Prop!$B$2)+1),ROWS(Database_Prop!R$2:'Database_Prop'!R167))),\"\")","v":""},{"$f":"IFERROR(INDEX(Database_Prop!$B$2:$B$1498,SMALL(IF(Database_Prop!$A$2:$A$1498=AV$129,ROW(Database_Prop!$B$2:$B$1498)-ROW(Database_Prop!$B$2)+1),ROWS(Database_Prop!S$2:'Database_Prop'!S167))),\"\")","v":""},{"$f":"IFERROR(INDEX(Database_Prop!$B$2:$B$1498,SMALL(IF(Database_Prop!$A$2:$A$1498=AW$129,ROW(Database_Prop!$B$2:$B$1498)-ROW(Database_Prop!$B$2)+1),ROWS(Database_Prop!T$2:'Database_Prop'!T167))),\"\")","v":""},{"$f":"IFERROR(INDEX(Database_Prop!$B$2:$B$1498,SMALL(IF(Database_Prop!$A$2:$A$1498=AX$129,ROW(Database_Prop!$B$2:$B$1498)-ROW(Database_Prop!$B$2)+1),ROWS(Database_Prop!U$2:'Database_Prop'!U167))),\"\")","v":""},{"$f":"IFERROR(INDEX(Database_Prop!$B$2:$B$1498,SMALL(IF(Database_Prop!$A$2:$A$1498=AY$129,ROW(Database_Prop!$B$2:$B$1498)-ROW(Database_Prop!$B$2)+1),ROWS(Database_Prop!V$2:'Database_Prop'!V167))),\"\")","v":""},{"$f":"IFERROR(INDEX(Database_Prop!$B$2:$B$1498,SMALL(IF(Database_Prop!$A$2:$A$1498=AZ$129,ROW(Database_Prop!$B$2:$B$1498)-ROW(Database_Prop!$B$2)+1),ROWS(Database_Prop!W$2:'Database_Prop'!W167))),\"\")","v":""},{"$f":"IFERROR(INDEX(Database_Prop!$B$2:$B$1498,SMALL(IF(Database_Prop!$A$2:$A$1498=BA$129,ROW(Database_Prop!$B$2:$B$1498)-ROW(Database_Prop!$B$2)+1),ROWS(Database_Prop!X$2:'Database_Prop'!X167))),\"\")","v":""},{"$f":"IFERROR(INDEX(Database_Prop!$B$2:$B$1498,SMALL(IF(Database_Prop!$A$2:$A$1498=BB$129,ROW(Database_Prop!$B$2:$B$1498)-ROW(Database_Prop!$B$2)+1),ROWS(Database_Prop!Y$2:'Database_Prop'!Y167))),\"\")","v":""},{"$f":"IFERROR(INDEX(Database_Prop!$B$2:$B$1498,SMALL(IF(Database_Prop!$A$2:$A$1498=BC$129,ROW(Database_Prop!$B$2:$B$1498)-ROW(Database_Prop!$B$2)+1),ROWS(Database_Prop!Z$2:'Database_Prop'!Z167))),\"\")","v":""},null,"Portugal","Western Europe"]
[null,null,null,null,null,null,null,null,null,null,null,null,null,null,null,null,null,null,null,null,null,null,null,null,null,null,null,null,null,null,168,{"$f":"IFERROR(INDEX(Database_Prop!$B$2:$B$1498,SMALL(IF(Database_Prop!$A$2:$A$1498=AF$129,ROW(Database_Prop!$B$2:$B$1498)-ROW(Database_Prop!$B$2)+1),ROWS(Database_Prop!C$2:'Database_Prop'!C168))),\"\")","v":""},{"$f":"IFERROR(INDEX(Database_Prop!$B$2:$B$1498,SMALL(IF(Database_Prop!$A$2:$A$1498=AG$129,ROW(Database_Prop!$B$2:$B$1498)-ROW(Database_Prop!$B$2)+1),ROWS(Database_Prop!D$2:'Database_Prop'!D168))),\"\")","v":""},{"$f":"IFERROR(INDEX(Database_Prop!$B$2:$B$1498,SMALL(IF(Database_Prop!$A$2:$A$1498=AH$129,ROW(Database_Prop!$B$2:$B$1498)-ROW(Database_Prop!$B$2)+1),ROWS(Database_Prop!E$2:'Database_Prop'!E168))),\"\")","v":""},{"$f":"IFERROR(INDEX(Database_Prop!$B$2:$B$1498,SMALL(IF(Database_Prop!$A$2:$A$1498=AI$129,ROW(Database_Prop!$B$2:$B$1498)-ROW(Database_Prop!$B$2)+1),ROWS(Database_Prop!F$2:'Database_Prop'!F168))),\"\")","v":""},{"$f":"IFERROR(INDEX(Database_Prop!$B$2:$B$1498,SMALL(IF(Database_Prop!$A$2:$A$1498=AJ$129,ROW(Database_Prop!$B$2:$B$1498)-ROW(Database_Prop!$B$2)+1),ROWS(Database_Prop!G$2:'Database_Prop'!G168))),\"\")","v":""},{"$f":"IFERROR(INDEX(Database_Prop!$B$2:$B$1498,SMALL(IF(Database_Prop!$A$2:$A$1498=AK$129,ROW(Database_Prop!$B$2:$B$1498)-ROW(Database_Prop!$B$2)+1),ROWS(Database_Prop!H$2:'Database_Prop'!H168))),\"\")","v":""},{"$f":"IFERROR(INDEX(Database_Prop!$B$2:$B$1498,SMALL(IF(Database_Prop!$A$2:$A$1498=AL$129,ROW(Database_Prop!$B$2:$B$1498)-ROW(Database_Prop!$B$2)+1),ROWS(Database_Prop!I$2:'Database_Prop'!I168))),\"\")","v":""},{"$f":"IFERROR(INDEX(Database_Prop!$B$2:$B$1498,SMALL(IF(Database_Prop!$A$2:$A$1498=AM$129,ROW(Database_Prop!$B$2:$B$1498)-ROW(Database_Prop!$B$2)+1),ROWS(Database_Prop!J$2:'Database_Prop'!J168))),\"\")","v":""},{"$f":"IFERROR(INDEX(Database_Prop!$B$2:$B$1498,SMALL(IF(Database_Prop!$A$2:$A$1498=AN$129,ROW(Database_Prop!$B$2:$B$1498)-ROW(Database_Prop!$B$2)+1),ROWS(Database_Prop!K$2:'Database_Prop'!K168))),\"\")","v":""},{"$f":"IFERROR(INDEX(Database_Prop!$B$2:$B$1498,SMALL(IF(Database_Prop!$A$2:$A$1498=AO$129,ROW(Database_Prop!$B$2:$B$1498)-ROW(Database_Prop!$B$2)+1),ROWS(Database_Prop!L$2:'Database_Prop'!L168))),\"\")","v":""},{"$f":"IFERROR(INDEX(Database_Prop!$B$2:$B$1498,SMALL(IF(Database_Prop!$A$2:$A$1498=AP$129,ROW(Database_Prop!$B$2:$B$1498)-ROW(Database_Prop!$B$2)+1),ROWS(Database_Prop!M$2:'Database_Prop'!M168))),\"\")","v":""},{"$f":"IFERROR(INDEX(Database_Prop!$B$2:$B$1498,SMALL(IF(Database_Prop!$A$2:$A$1498=AQ$129,ROW(Database_Prop!$B$2:$B$1498)-ROW(Database_Prop!$B$2)+1),ROWS(Database_Prop!N$2:'Database_Prop'!N168))),\"\")","v":""},{"$f":"IFERROR(INDEX(Database_Prop!$B$2:$B$1498,SMALL(IF(Database_Prop!$A$2:$A$1498=AR$129,ROW(Database_Prop!$B$2:$B$1498)-ROW(Database_Prop!$B$2)+1),ROWS(Database_Prop!O$2:'Database_Prop'!O168))),\"\")","v":""},{"$f":"IFERROR(INDEX(Database_Prop!$B$2:$B$1498,SMALL(IF(Database_Prop!$A$2:$A$1498=AS$129,ROW(Database_Prop!$B$2:$B$1498)-ROW(Database_Prop!$B$2)+1),ROWS(Database_Prop!P$2:'Database_Prop'!P168))),\"\")","v":""},{"$f":"IFERROR(INDEX(Database_Prop!$B$2:$B$1498,SMALL(IF(Database_Prop!$A$2:$A$1498=AT$129,ROW(Database_Prop!$B$2:$B$1498)-ROW(Database_Prop!$B$2)+1),ROWS(Database_Prop!Q$2:'Database_Prop'!Q168))),\"\")","v":""},{"$f":"IFERROR(INDEX(Database_Prop!$B$2:$B$1498,SMALL(IF(Database_Prop!$A$2:$A$1498=AU$129,ROW(Database_Prop!$B$2:$B$1498)-ROW(Database_Prop!$B$2)+1),ROWS(Database_Prop!R$2:'Database_Prop'!R168))),\"\")","v":""},{"$f":"IFERROR(INDEX(Database_Prop!$B$2:$B$1498,SMALL(IF(Database_Prop!$A$2:$A$1498=AV$129,ROW(Database_Prop!$B$2:$B$1498)-ROW(Database_Prop!$B$2)+1),ROWS(Database_Prop!S$2:'Database_Prop'!S168))),\"\")","v":""},{"$f":"IFERROR(INDEX(Database_Prop!$B$2:$B$1498,SMALL(IF(Database_Prop!$A$2:$A$1498=AW$129,ROW(Database_Prop!$B$2:$B$1498)-ROW(Database_Prop!$B$2)+1),ROWS(Database_Prop!T$2:'Database_Prop'!T168))),\"\")","v":""},{"$f":"IFERROR(INDEX(Database_Prop!$B$2:$B$1498,SMALL(IF(Database_Prop!$A$2:$A$1498=AX$129,ROW(Database_Prop!$B$2:$B$1498)-ROW(Database_Prop!$B$2)+1),ROWS(Database_Prop!U$2:'Database_Prop'!U168))),\"\")","v":""},{"$f":"IFERROR(INDEX(Database_Prop!$B$2:$B$1498,SMALL(IF(Database_Prop!$A$2:$A$1498=AY$129,ROW(Database_Prop!$B$2:$B$1498)-ROW(Database_Prop!$B$2)+1),ROWS(Database_Prop!V$2:'Database_Prop'!V168))),\"\")","v":""},{"$f":"IFERROR(INDEX(Database_Prop!$B$2:$B$1498,SMALL(IF(Database_Prop!$A$2:$A$1498=AZ$129,ROW(Database_Prop!$B$2:$B$1498)-ROW(Database_Prop!$B$2)+1),ROWS(Database_Prop!W$2:'Database_Prop'!W168))),\"\")","v":""},{"$f":"IFERROR(INDEX(Database_Prop!$B$2:$B$1498,SMALL(IF(Database_Prop!$A$2:$A$1498=BA$129,ROW(Database_Prop!$B$2:$B$1498)-ROW(Database_Prop!$B$2)+1),ROWS(Database_Prop!X$2:'Database_Prop'!X168))),\"\")","v":""},{"$f":"IFERROR(INDEX(Database_Prop!$B$2:$B$1498,SMALL(IF(Database_Prop!$A$2:$A$1498=BB$129,ROW(Database_Prop!$B$2:$B$1498)-ROW(Database_Prop!$B$2)+1),ROWS(Database_Prop!Y$2:'Database_Prop'!Y168))),\"\")","v":""},{"$f":"IFERROR(INDEX(Database_Prop!$B$2:$B$1498,SMALL(IF(Database_Prop!$A$2:$A$1498=BC$129,ROW(Database_Prop!$B$2:$B$1498)-ROW(Database_Prop!$B$2)+1),ROWS(Database_Prop!Z$2:'Database_Prop'!Z168))),\"\")","v":""},null,"Puerto Rico","Latin America"]
[null,null,null,null,null,null,null,null,null,null,null,null,null,null,null,null,null,null,null,null,null,null,null,null,null,null,null,null,null,null,169,{"$f":"IFERROR(INDEX(Database_Prop!$B$2:$B$1498,SMALL(IF(Database_Prop!$A$2:$A$1498=AF$129,ROW(Database_Prop!$B$2:$B$1498)-ROW(Database_Prop!$B$2)+1),ROWS(Database_Prop!C$2:'Database_Prop'!C169))),\"\")","v":""},{"$f":"IFERROR(INDEX(Database_Prop!$B$2:$B$1498,SMALL(IF(Database_Prop!$A$2:$A$1498=AG$129,ROW(Database_Prop!$B$2:$B$1498)-ROW(Database_Prop!$B$2)+1),ROWS(Database_Prop!D$2:'Database_Prop'!D169))),\"\")","v":""},{"$f":"IFERROR(INDEX(Database_Prop!$B$2:$B$1498,SMALL(IF(Database_Prop!$A$2:$A$1498=AH$129,ROW(Database_Prop!$B$2:$B$1498)-ROW(Database_Prop!$B$2)+1),ROWS(Database_Prop!E$2:'Database_Prop'!E169))),\"\")","v":""},{"$f":"IFERROR(INDEX(Database_Prop!$B$2:$B$1498,SMALL(IF(Database_Prop!$A$2:$A$1498=AI$129,ROW(Database_Prop!$B$2:$B$1498)-ROW(Database_Prop!$B$2)+1),ROWS(Database_Prop!F$2:'Database_Prop'!F169))),\"\")","v":""},{"$f":"IFERROR(INDEX(Database_Prop!$B$2:$B$1498,SMALL(IF(Database_Prop!$A$2:$A$1498=AJ$129,ROW(Database_Prop!$B$2:$B$1498)-ROW(Database_Prop!$B$2)+1),ROWS(Database_Prop!G$2:'Database_Prop'!G169))),\"\")","v":""},{"$f":"IFERROR(INDEX(Database_Prop!$B$2:$B$1498,SMALL(IF(Database_Prop!$A$2:$A$1498=AK$129,ROW(Database_Prop!$B$2:$B$1498)-ROW(Database_Prop!$B$2)+1),ROWS(Database_Prop!H$2:'Database_Prop'!H169))),\"\")","v":""},{"$f":"IFERROR(INDEX(Database_Prop!$B$2:$B$1498,SMALL(IF(Database_Prop!$A$2:$A$1498=AL$129,ROW(Database_Prop!$B$2:$B$1498)-ROW(Database_Prop!$B$2)+1),ROWS(Database_Prop!I$2:'Database_Prop'!I169))),\"\")","v":""},{"$f":"IFERROR(INDEX(Database_Prop!$B$2:$B$1498,SMALL(IF(Database_Prop!$A$2:$A$1498=AM$129,ROW(Database_Prop!$B$2:$B$1498)-ROW(Database_Prop!$B$2)+1),ROWS(Database_Prop!J$2:'Database_Prop'!J169))),\"\")","v":""},{"$f":"IFERROR(INDEX(Database_Prop!$B$2:$B$1498,SMALL(IF(Database_Prop!$A$2:$A$1498=AN$129,ROW(Database_Prop!$B$2:$B$1498)-ROW(Database_Prop!$B$2)+1),ROWS(Database_Prop!K$2:'Database_Prop'!K169))),\"\")","v":""},{"$f":"IFERROR(INDEX(Database_Prop!$B$2:$B$1498,SMALL(IF(Database_Prop!$A$2:$A$1498=AO$129,ROW(Database_Prop!$B$2:$B$1498)-ROW(Database_Prop!$B$2)+1),ROWS(Database_Prop!L$2:'Database_Prop'!L169))),\"\")","v":""},{"$f":"IFERROR(INDEX(Database_Prop!$B$2:$B$1498,SMALL(IF(Database_Prop!$A$2:$A$1498=AP$129,ROW(Database_Prop!$B$2:$B$1498)-ROW(Database_Prop!$B$2)+1),ROWS(Database_Prop!M$2:'Database_Prop'!M169))),\"\")","v":""},{"$f":"IFERROR(INDEX(Database_Prop!$B$2:$B$1498,SMALL(IF(Database_Prop!$A$2:$A$1498=AQ$129,ROW(Database_Prop!$B$2:$B$1498)-ROW(Database_Prop!$B$2)+1),ROWS(Database_Prop!N$2:'Database_Prop'!N169))),\"\")","v":""},{"$f":"IFERROR(INDEX(Database_Prop!$B$2:$B$1498,SMALL(IF(Database_Prop!$A$2:$A$1498=AR$129,ROW(Database_Prop!$B$2:$B$1498)-ROW(Database_Prop!$B$2)+1),ROWS(Database_Prop!O$2:'Database_Prop'!O169))),\"\")","v":""},{"$f":"IFERROR(INDEX(Database_Prop!$B$2:$B$1498,SMALL(IF(Database_Prop!$A$2:$A$1498=AS$129,ROW(Database_Prop!$B$2:$B$1498)-ROW(Database_Prop!$B$2)+1),ROWS(Database_Prop!P$2:'Database_Prop'!P169))),\"\")","v":""},{"$f":"IFERROR(INDEX(Database_Prop!$B$2:$B$1498,SMALL(IF(Database_Prop!$A$2:$A$1498=AT$129,ROW(Database_Prop!$B$2:$B$1498)-ROW(Database_Prop!$B$2)+1),ROWS(Database_Prop!Q$2:'Database_Prop'!Q169))),\"\")","v":""},{"$f":"IFERROR(INDEX(Database_Prop!$B$2:$B$1498,SMALL(IF(Database_Prop!$A$2:$A$1498=AU$129,ROW(Database_Prop!$B$2:$B$1498)-ROW(Database_Prop!$B$2)+1),ROWS(Database_Prop!R$2:'Database_Prop'!R169))),\"\")","v":""},{"$f":"IFERROR(INDEX(Database_Prop!$B$2:$B$1498,SMALL(IF(Database_Prop!$A$2:$A$1498=AV$129,ROW(Database_Prop!$B$2:$B$1498)-ROW(Database_Prop!$B$2)+1),ROWS(Database_Prop!S$2:'Database_Prop'!S169))),\"\")","v":""},{"$f":"IFERROR(INDEX(Database_Prop!$B$2:$B$1498,SMALL(IF(Database_Prop!$A$2:$A$1498=AW$129,ROW(Database_Prop!$B$2:$B$1498)-ROW(Database_Prop!$B$2)+1),ROWS(Database_Prop!T$2:'Database_Prop'!T169))),\"\")","v":""},{"$f":"IFERROR(INDEX(Database_Prop!$B$2:$B$1498,SMALL(IF(Database_Prop!$A$2:$A$1498=AX$129,ROW(Database_Prop!$B$2:$B$1498)-ROW(Database_Prop!$B$2)+1),ROWS(Database_Prop!U$2:'Database_Prop'!U169))),\"\")","v":""},{"$f":"IFERROR(INDEX(Database_Prop!$B$2:$B$1498,SMALL(IF(Database_Prop!$A$2:$A$1498=AY$129,ROW(Database_Prop!$B$2:$B$1498)-ROW(Database_Prop!$B$2)+1),ROWS(Database_Prop!V$2:'Database_Prop'!V169))),\"\")","v":""},{"$f":"IFERROR(INDEX(Database_Prop!$B$2:$B$1498,SMALL(IF(Database_Prop!$A$2:$A$1498=AZ$129,ROW(Database_Prop!$B$2:$B$1498)-ROW(Database_Prop!$B$2)+1),ROWS(Database_Prop!W$2:'Database_Prop'!W169))),\"\")","v":""},{"$f":"IFERROR(INDEX(Database_Prop!$B$2:$B$1498,SMALL(IF(Database_Prop!$A$2:$A$1498=BA$129,ROW(Database_Prop!$B$2:$B$1498)-ROW(Database_Prop!$B$2)+1),ROWS(Database_Prop!X$2:'Database_Prop'!X169))),\"\")","v":""},{"$f":"IFERROR(INDEX(Database_Prop!$B$2:$B$1498,SMALL(IF(Database_Prop!$A$2:$A$1498=BB$129,ROW(Database_Prop!$B$2:$B$1498)-ROW(Database_Prop!$B$2)+1),ROWS(Database_Prop!Y$2:'Database_Prop'!Y169))),\"\")","v":""},{"$f":"IFERROR(INDEX(Database_Prop!$B$2:$B$1498,SMALL(IF(Database_Prop!$A$2:$A$1498=BC$129,ROW(Database_Prop!$B$2:$B$1498)-ROW(Database_Prop!$B$2)+1),ROWS(Database_Prop!Z$2:'Database_Prop'!Z169))),\"\")","v":""},null,"Qatar","Middle East"]
[null,null,null,null,null,null,null,null,null,null,null,null,null,null,null,null,null,null,null,null,null,null,null,null,null,null,null,null,null,null,170,{"$f":"IFERROR(INDEX(Database_Prop!$B$2:$B$1498,SMALL(IF(Database_Prop!$A$2:$A$1498=AF$129,ROW(Database_Prop!$B$2:$B$1498)-ROW(Database_Prop!$B$2)+1),ROWS(Database_Prop!C$2:'Database_Prop'!C170))),\"\")","v":""},{"$f":"IFERROR(INDEX(Database_Prop!$B$2:$B$1498,SMALL(IF(Database_Prop!$A$2:$A$1498=AG$129,ROW(Database_Prop!$B$2:$B$1498)-ROW(Database_Prop!$B$2)+1),ROWS(Database_Prop!D$2:'Database_Prop'!D170))),\"\")","v":""},{"$f":"IFERROR(INDEX(Database_Prop!$B$2:$B$1498,SMALL(IF(Database_Prop!$A$2:$A$1498=AH$129,ROW(Database_Prop!$B$2:$B$1498)-ROW(Database_Prop!$B$2)+1),ROWS(Database_Prop!E$2:'Database_Prop'!E170))),\"\")","v":""},{"$f":"IFERROR(INDEX(Database_Prop!$B$2:$B$1498,SMALL(IF(Database_Prop!$A$2:$A$1498=AI$129,ROW(Database_Prop!$B$2:$B$1498)-ROW(Database_Prop!$B$2)+1),ROWS(Database_Prop!F$2:'Database_Prop'!F170))),\"\")","v":""},{"$f":"IFERROR(INDEX(Database_Prop!$B$2:$B$1498,SMALL(IF(Database_Prop!$A$2:$A$1498=AJ$129,ROW(Database_Prop!$B$2:$B$1498)-ROW(Database_Prop!$B$2)+1),ROWS(Database_Prop!G$2:'Database_Prop'!G170))),\"\")","v":""},{"$f":"IFERROR(INDEX(Database_Prop!$B$2:$B$1498,SMALL(IF(Database_Prop!$A$2:$A$1498=AK$129,ROW(Database_Prop!$B$2:$B$1498)-ROW(Database_Prop!$B$2)+1),ROWS(Database_Prop!H$2:'Database_Prop'!H170))),\"\")","v":""},{"$f":"IFERROR(INDEX(Database_Prop!$B$2:$B$1498,SMALL(IF(Database_Prop!$A$2:$A$1498=AL$129,ROW(Database_Prop!$B$2:$B$1498)-ROW(Database_Prop!$B$2)+1),ROWS(Database_Prop!I$2:'Database_Prop'!I170))),\"\")","v":""},{"$f":"IFERROR(INDEX(Database_Prop!$B$2:$B$1498,SMALL(IF(Database_Prop!$A$2:$A$1498=AM$129,ROW(Database_Prop!$B$2:$B$1498)-ROW(Database_Prop!$B$2)+1),ROWS(Database_Prop!J$2:'Database_Prop'!J170))),\"\")","v":""},{"$f":"IFERROR(INDEX(Database_Prop!$B$2:$B$1498,SMALL(IF(Database_Prop!$A$2:$A$1498=AN$129,ROW(Database_Prop!$B$2:$B$1498)-ROW(Database_Prop!$B$2)+1),ROWS(Database_Prop!K$2:'Database_Prop'!K170))),\"\")","v":""},{"$f":"IFERROR(INDEX(Database_Prop!$B$2:$B$1498,SMALL(IF(Database_Prop!$A$2:$A$1498=AO$129,ROW(Database_Prop!$B$2:$B$1498)-ROW(Database_Prop!$B$2)+1),ROWS(Database_Prop!L$2:'Database_Prop'!L170))),\"\")","v":""},{"$f":"IFERROR(INDEX(Database_Prop!$B$2:$B$1498,SMALL(IF(Database_Prop!$A$2:$A$1498=AP$129,ROW(Database_Prop!$B$2:$B$1498)-ROW(Database_Prop!$B$2)+1),ROWS(Database_Prop!M$2:'Database_Prop'!M170))),\"\")","v":""},{"$f":"IFERROR(INDEX(Database_Prop!$B$2:$B$1498,SMALL(IF(Database_Prop!$A$2:$A$1498=AQ$129,ROW(Database_Prop!$B$2:$B$1498)-ROW(Database_Prop!$B$2)+1),ROWS(Database_Prop!N$2:'Database_Prop'!N170))),\"\")","v":""},{"$f":"IFERROR(INDEX(Database_Prop!$B$2:$B$1498,SMALL(IF(Database_Prop!$A$2:$A$1498=AR$129,ROW(Database_Prop!$B$2:$B$1498)-ROW(Database_Prop!$B$2)+1),ROWS(Database_Prop!O$2:'Database_Prop'!O170))),\"\")","v":""},{"$f":"IFERROR(INDEX(Database_Prop!$B$2:$B$1498,SMALL(IF(Database_Prop!$A$2:$A$1498=AS$129,ROW(Database_Prop!$B$2:$B$1498)-ROW(Database_Prop!$B$2)+1),ROWS(Database_Prop!P$2:'Database_Prop'!P170))),\"\")","v":""},{"$f":"IFERROR(INDEX(Database_Prop!$B$2:$B$1498,SMALL(IF(Database_Prop!$A$2:$A$1498=AT$129,ROW(Database_Prop!$B$2:$B$1498)-ROW(Database_Prop!$B$2)+1),ROWS(Database_Prop!Q$2:'Database_Prop'!Q170))),\"\")","v":""},{"$f":"IFERROR(INDEX(Database_Prop!$B$2:$B$1498,SMALL(IF(Database_Prop!$A$2:$A$1498=AU$129,ROW(Database_Prop!$B$2:$B$1498)-ROW(Database_Prop!$B$2)+1),ROWS(Database_Prop!R$2:'Database_Prop'!R170))),\"\")","v":""},{"$f":"IFERROR(INDEX(Database_Prop!$B$2:$B$1498,SMALL(IF(Database_Prop!$A$2:$A$1498=AV$129,ROW(Database_Prop!$B$2:$B$1498)-ROW(Database_Prop!$B$2)+1),ROWS(Database_Prop!S$2:'Database_Prop'!S170))),\"\")","v":""},{"$f":"IFERROR(INDEX(Database_Prop!$B$2:$B$1498,SMALL(IF(Database_Prop!$A$2:$A$1498=AW$129,ROW(Database_Prop!$B$2:$B$1498)-ROW(Database_Prop!$B$2)+1),ROWS(Database_Prop!T$2:'Database_Prop'!T170))),\"\")","v":""},{"$f":"IFERROR(INDEX(Database_Prop!$B$2:$B$1498,SMALL(IF(Database_Prop!$A$2:$A$1498=AX$129,ROW(Database_Prop!$B$2:$B$1498)-ROW(Database_Prop!$B$2)+1),ROWS(Database_Prop!U$2:'Database_Prop'!U170))),\"\")","v":""},{"$f":"IFERROR(INDEX(Database_Prop!$B$2:$B$1498,SMALL(IF(Database_Prop!$A$2:$A$1498=AY$129,ROW(Database_Prop!$B$2:$B$1498)-ROW(Database_Prop!$B$2)+1),ROWS(Database_Prop!V$2:'Database_Prop'!V170))),\"\")","v":""},{"$f":"IFERROR(INDEX(Database_Prop!$B$2:$B$1498,SMALL(IF(Database_Prop!$A$2:$A$1498=AZ$129,ROW(Database_Prop!$B$2:$B$1498)-ROW(Database_Prop!$B$2)+1),ROWS(Database_Prop!W$2:'Database_Prop'!W170))),\"\")","v":""},{"$f":"IFERROR(INDEX(Database_Prop!$B$2:$B$1498,SMALL(IF(Database_Prop!$A$2:$A$1498=BA$129,ROW(Database_Prop!$B$2:$B$1498)-ROW(Database_Prop!$B$2)+1),ROWS(Database_Prop!X$2:'Database_Prop'!X170))),\"\")","v":""},{"$f":"IFERROR(INDEX(Database_Prop!$B$2:$B$1498,SMALL(IF(Database_Prop!$A$2:$A$1498=BB$129,ROW(Database_Prop!$B$2:$B$1498)-ROW(Database_Prop!$B$2)+1),ROWS(Database_Prop!Y$2:'Database_Prop'!Y170))),\"\")","v":""},{"$f":"IFERROR(INDEX(Database_Prop!$B$2:$B$1498,SMALL(IF(Database_Prop!$A$2:$A$1498=BC$129,ROW(Database_Prop!$B$2:$B$1498)-ROW(Database_Prop!$B$2)+1),ROWS(Database_Prop!Z$2:'Database_Prop'!Z170))),\"\")","v":""},null,"Réunion","Asia"]
[null,null,null,null,null,null,null,null,null,null,null,null,null,null,null,null,null,null,null,null,null,null,null,null,null,null,null,null,null,null,171,{"$f":"IFERROR(INDEX(Database_Prop!$B$2:$B$1498,SMALL(IF(Database_Prop!$A$2:$A$1498=AF$129,ROW(Database_Prop!$B$2:$B$1498)-ROW(Database_Prop!$B$2)+1),ROWS(Database_Prop!C$2:'Database_Prop'!C171))),\"\")","v":""},{"$f":"IFERROR(INDEX(Database_Prop!$B$2:$B$1498,SMALL(IF(Database_Prop!$A$2:$A$1498=AG$129,ROW(Database_Prop!$B$2:$B$1498)-ROW(Database_Prop!$B$2)+1),ROWS(Database_Prop!D$2:'Database_Prop'!D171))),\"\")","v":""},{"$f":"IFERROR(INDEX(Database_Prop!$B$2:$B$1498,SMALL(IF(Database_Prop!$A$2:$A$1498=AH$129,ROW(Database_Prop!$B$2:$B$1498)-ROW(Database_Prop!$B$2)+1),ROWS(Database_Prop!E$2:'Database_Prop'!E171))),\"\")","v":""},{"$f":"IFERROR(INDEX(Database_Prop!$B$2:$B$1498,SMALL(IF(Database_Prop!$A$2:$A$1498=AI$129,ROW(Database_Prop!$B$2:$B$1498)-ROW(Database_Prop!$B$2)+1),ROWS(Database_Prop!F$2:'Database_Prop'!F171))),\"\")","v":""},{"$f":"IFERROR(INDEX(Database_Prop!$B$2:$B$1498,SMALL(IF(Database_Prop!$A$2:$A$1498=AJ$129,ROW(Database_Prop!$B$2:$B$1498)-ROW(Database_Prop!$B$2)+1),ROWS(Database_Prop!G$2:'Database_Prop'!G171))),\"\")","v":""},{"$f":"IFERROR(INDEX(Database_Prop!$B$2:$B$1498,SMALL(IF(Database_Prop!$A$2:$A$1498=AK$129,ROW(Database_Prop!$B$2:$B$1498)-ROW(Database_Prop!$B$2)+1),ROWS(Database_Prop!H$2:'Database_Prop'!H171))),\"\")","v":""},{"$f":"IFERROR(INDEX(Database_Prop!$B$2:$B$1498,SMALL(IF(Database_Prop!$A$2:$A$1498=AL$129,ROW(Database_Prop!$B$2:$B$1498)-ROW(Database_Prop!$B$2)+1),ROWS(Database_Prop!I$2:'Database_Prop'!I171))),\"\")","v":""},{"$f":"IFERROR(INDEX(Database_Prop!$B$2:$B$1498,SMALL(IF(Database_Prop!$A$2:$A$1498=AM$129,ROW(Database_Prop!$B$2:$B$1498)-ROW(Database_Prop!$B$2)+1),ROWS(Database_Prop!J$2:'Database_Prop'!J171))),\"\")","v":""},{"$f":"IFERROR(INDEX(Database_Prop!$B$2:$B$1498,SMALL(IF(Database_Prop!$A$2:$A$1498=AN$129,ROW(Database_Prop!$B$2:$B$1498)-ROW(Database_Prop!$B$2)+1),ROWS(Database_Prop!K$2:'Database_Prop'!K171))),\"\")","v":""},{"$f":"IFERROR(INDEX(Database_Prop!$B$2:$B$1498,SMALL(IF(Database_Prop!$A$2:$A$1498=AO$129,ROW(Database_Prop!$B$2:$B$1498)-ROW(Database_Prop!$B$2)+1),ROWS(Database_Prop!L$2:'Database_Prop'!L171))),\"\")","v":""},{"$f":"IFERROR(INDEX(Database_Prop!$B$2:$B$1498,SMALL(IF(Database_Prop!$A$2:$A$1498=AP$129,ROW(Database_Prop!$B$2:$B$1498)-ROW(Database_Prop!$B$2)+1),ROWS(Database_Prop!M$2:'Database_Prop'!M171))),\"\")","v":""},{"$f":"IFERROR(INDEX(Database_Prop!$B$2:$B$1498,SMALL(IF(Database_Prop!$A$2:$A$1498=AQ$129,ROW(Database_Prop!$B$2:$B$1498)-ROW(Database_Prop!$B$2)+1),ROWS(Database_Prop!N$2:'Database_Prop'!N171))),\"\")","v":""},{"$f":"IFERROR(INDEX(Database_Prop!$B$2:$B$1498,SMALL(IF(Database_Prop!$A$2:$A$1498=AR$129,ROW(Database_Prop!$B$2:$B$1498)-ROW(Database_Prop!$B$2)+1),ROWS(Database_Prop!O$2:'Database_Prop'!O171))),\"\")","v":""},{"$f":"IFERROR(INDEX(Database_Prop!$B$2:$B$1498,SMALL(IF(Database_Prop!$A$2:$A$1498=AS$129,ROW(Database_Prop!$B$2:$B$1498)-ROW(Database_Prop!$B$2)+1),ROWS(Database_Prop!P$2:'Database_Prop'!P171))),\"\")","v":""},{"$f":"IFERROR(INDEX(Database_Prop!$B$2:$B$1498,SMALL(IF(Database_Prop!$A$2:$A$1498=AT$129,ROW(Database_Prop!$B$2:$B$1498)-ROW(Database_Prop!$B$2)+1),ROWS(Database_Prop!Q$2:'Database_Prop'!Q171))),\"\")","v":""},{"$f":"IFERROR(INDEX(Database_Prop!$B$2:$B$1498,SMALL(IF(Database_Prop!$A$2:$A$1498=AU$129,ROW(Database_Prop!$B$2:$B$1498)-ROW(Database_Prop!$B$2)+1),ROWS(Database_Prop!R$2:'Database_Prop'!R171))),\"\")","v":""},{"$f":"IFERROR(INDEX(Database_Prop!$B$2:$B$1498,SMALL(IF(Database_Prop!$A$2:$A$1498=AV$129,ROW(Database_Prop!$B$2:$B$1498)-ROW(Database_Prop!$B$2)+1),ROWS(Database_Prop!S$2:'Database_Prop'!S171))),\"\")","v":""},{"$f":"IFERROR(INDEX(Database_Prop!$B$2:$B$1498,SMALL(IF(Database_Prop!$A$2:$A$1498=AW$129,ROW(Database_Prop!$B$2:$B$1498)-ROW(Database_Prop!$B$2)+1),ROWS(Database_Prop!T$2:'Database_Prop'!T171))),\"\")","v":""},{"$f":"IFERROR(INDEX(Database_Prop!$B$2:$B$1498,SMALL(IF(Database_Prop!$A$2:$A$1498=AX$129,ROW(Database_Prop!$B$2:$B$1498)-ROW(Database_Prop!$B$2)+1),ROWS(Database_Prop!U$2:'Database_Prop'!U171))),\"\")","v":""},{"$f":"IFERROR(INDEX(Database_Prop!$B$2:$B$1498,SMALL(IF(Database_Prop!$A$2:$A$1498=AY$129,ROW(Database_Prop!$B$2:$B$1498)-ROW(Database_Prop!$B$2)+1),ROWS(Database_Prop!V$2:'Database_Prop'!V171))),\"\")","v":""},{"$f":"IFERROR(INDEX(Database_Prop!$B$2:$B$1498,SMALL(IF(Database_Prop!$A$2:$A$1498=AZ$129,ROW(Database_Prop!$B$2:$B$1498)-ROW(Database_Prop!$B$2)+1),ROWS(Database_Prop!W$2:'Database_Prop'!W171))),\"\")","v":""},{"$f":"IFERROR(INDEX(Database_Prop!$B$2:$B$1498,SMALL(IF(Database_Prop!$A$2:$A$1498=BA$129,ROW(Database_Prop!$B$2:$B$1498)-ROW(Database_Prop!$B$2)+1),ROWS(Database_Prop!X$2:'Database_Prop'!X171))),\"\")","v":""},{"$f":"IFERROR(INDEX(Database_Prop!$B$2:$B$1498,SMALL(IF(Database_Prop!$A$2:$A$1498=BB$129,ROW(Database_Prop!$B$2:$B$1498)-ROW(Database_Prop!$B$2)+1),ROWS(Database_Prop!Y$2:'Database_Prop'!Y171))),\"\")","v":""},{"$f":"IFERROR(INDEX(Database_Prop!$B$2:$B$1498,SMALL(IF(Database_Prop!$A$2:$A$1498=BC$129,ROW(Database_Prop!$B$2:$B$1498)-ROW(Database_Prop!$B$2)+1),ROWS(Database_Prop!Z$2:'Database_Prop'!Z171))),\"\")","v":""},null,"Republic of Moldova","Eastern Europe"]
[null,null,null,null,null,null,null,null,null,null,null,null,null,null,null,null,null,null,null,null,null,null,null,null,null,null,null,null,null,null,172,{"$f":"IFERROR(INDEX(Database_Prop!$B$2:$B$1498,SMALL(IF(Database_Prop!$A$2:$A$1498=AF$129,ROW(Database_Prop!$B$2:$B$1498)-ROW(Database_Prop!$B$2)+1),ROWS(Database_Prop!C$2:'Database_Prop'!C172))),\"\")","v":""},{"$f":"IFERROR(INDEX(Database_Prop!$B$2:$B$1498,SMALL(IF(Database_Prop!$A$2:$A$1498=AG$129,ROW(Database_Prop!$B$2:$B$1498)-ROW(Database_Prop!$B$2)+1),ROWS(Database_Prop!D$2:'Database_Prop'!D172))),\"\")","v":""},{"$f":"IFERROR(INDEX(Database_Prop!$B$2:$B$1498,SMALL(IF(Database_Prop!$A$2:$A$1498=AH$129,ROW(Database_Prop!$B$2:$B$1498)-ROW(Database_Prop!$B$2)+1),ROWS(Database_Prop!E$2:'Database_Prop'!E172))),\"\")","v":""},{"$f":"IFERROR(INDEX(Database_Prop!$B$2:$B$1498,SMALL(IF(Database_Prop!$A$2:$A$1498=AI$129,ROW(Database_Prop!$B$2:$B$1498)-ROW(Database_Prop!$B$2)+1),ROWS(Database_Prop!F$2:'Database_Prop'!F172))),\"\")","v":""},{"$f":"IFERROR(INDEX(Database_Prop!$B$2:$B$1498,SMALL(IF(Database_Prop!$A$2:$A$1498=AJ$129,ROW(Database_Prop!$B$2:$B$1498)-ROW(Database_Prop!$B$2)+1),ROWS(Database_Prop!G$2:'Database_Prop'!G172))),\"\")","v":""},{"$f":"IFERROR(INDEX(Database_Prop!$B$2:$B$1498,SMALL(IF(Database_Prop!$A$2:$A$1498=AK$129,ROW(Database_Prop!$B$2:$B$1498)-ROW(Database_Prop!$B$2)+1),ROWS(Database_Prop!H$2:'Database_Prop'!H172))),\"\")","v":""},{"$f":"IFERROR(INDEX(Database_Prop!$B$2:$B$1498,SMALL(IF(Database_Prop!$A$2:$A$1498=AL$129,ROW(Database_Prop!$B$2:$B$1498)-ROW(Database_Prop!$B$2)+1),ROWS(Database_Prop!I$2:'Database_Prop'!I172))),\"\")","v":""},{"$f":"IFERROR(INDEX(Database_Prop!$B$2:$B$1498,SMALL(IF(Database_Prop!$A$2:$A$1498=AM$129,ROW(Database_Prop!$B$2:$B$1498)-ROW(Database_Prop!$B$2)+1),ROWS(Database_Prop!J$2:'Database_Prop'!J172))),\"\")","v":""},{"$f":"IFERROR(INDEX(Database_Prop!$B$2:$B$1498,SMALL(IF(Database_Prop!$A$2:$A$1498=AN$129,ROW(Database_Prop!$B$2:$B$1498)-ROW(Database_Prop!$B$2)+1),ROWS(Database_Prop!K$2:'Database_Prop'!K172))),\"\")","v":""},{"$f":"IFERROR(INDEX(Database_Prop!$B$2:$B$1498,SMALL(IF(Database_Prop!$A$2:$A$1498=AO$129,ROW(Database_Prop!$B$2:$B$1498)-ROW(Database_Prop!$B$2)+1),ROWS(Database_Prop!L$2:'Database_Prop'!L172))),\"\")","v":""},{"$f":"IFERROR(INDEX(Database_Prop!$B$2:$B$1498,SMALL(IF(Database_Prop!$A$2:$A$1498=AP$129,ROW(Database_Prop!$B$2:$B$1498)-ROW(Database_Prop!$B$2)+1),ROWS(Database_Prop!M$2:'Database_Prop'!M172))),\"\")","v":""},{"$f":"IFERROR(INDEX(Database_Prop!$B$2:$B$1498,SMALL(IF(Database_Prop!$A$2:$A$1498=AQ$129,ROW(Database_Prop!$B$2:$B$1498)-ROW(Database_Prop!$B$2)+1),ROWS(Database_Prop!N$2:'Database_Prop'!N172))),\"\")","v":""},{"$f":"IFERROR(INDEX(Database_Prop!$B$2:$B$1498,SMALL(IF(Database_Prop!$A$2:$A$1498=AR$129,ROW(Database_Prop!$B$2:$B$1498)-ROW(Database_Prop!$B$2)+1),ROWS(Database_Prop!O$2:'Database_Prop'!O172))),\"\")","v":""},{"$f":"IFERROR(INDEX(Database_Prop!$B$2:$B$1498,SMALL(IF(Database_Prop!$A$2:$A$1498=AS$129,ROW(Database_Prop!$B$2:$B$1498)-ROW(Database_Prop!$B$2)+1),ROWS(Database_Prop!P$2:'Database_Prop'!P172))),\"\")","v":""},{"$f":"IFERROR(INDEX(Database_Prop!$B$2:$B$1498,SMALL(IF(Database_Prop!$A$2:$A$1498=AT$129,ROW(Database_Prop!$B$2:$B$1498)-ROW(Database_Prop!$B$2)+1),ROWS(Database_Prop!Q$2:'Database_Prop'!Q172))),\"\")","v":""},{"$f":"IFERROR(INDEX(Database_Prop!$B$2:$B$1498,SMALL(IF(Database_Prop!$A$2:$A$1498=AU$129,ROW(Database_Prop!$B$2:$B$1498)-ROW(Database_Prop!$B$2)+1),ROWS(Database_Prop!R$2:'Database_Prop'!R172))),\"\")","v":""},{"$f":"IFERROR(INDEX(Database_Prop!$B$2:$B$1498,SMALL(IF(Database_Prop!$A$2:$A$1498=AV$129,ROW(Database_Prop!$B$2:$B$1498)-ROW(Database_Prop!$B$2)+1),ROWS(Database_Prop!S$2:'Database_Prop'!S172))),\"\")","v":""},{"$f":"IFERROR(INDEX(Database_Prop!$B$2:$B$1498,SMALL(IF(Database_Prop!$A$2:$A$1498=AW$129,ROW(Database_Prop!$B$2:$B$1498)-ROW(Database_Prop!$B$2)+1),ROWS(Database_Prop!T$2:'Database_Prop'!T172))),\"\")","v":""},{"$f":"IFERROR(INDEX(Database_Prop!$B$2:$B$1498,SMALL(IF(Database_Prop!$A$2:$A$1498=AX$129,ROW(Database_Prop!$B$2:$B$1498)-ROW(Database_Prop!$B$2)+1),ROWS(Database_Prop!U$2:'Database_Prop'!U172))),\"\")","v":""},{"$f":"IFERROR(INDEX(Database_Prop!$B$2:$B$1498,SMALL(IF(Database_Prop!$A$2:$A$1498=AY$129,ROW(Database_Prop!$B$2:$B$1498)-ROW(Database_Prop!$B$2)+1),ROWS(Database_Prop!V$2:'Database_Prop'!V172))),\"\")","v":""},{"$f":"IFERROR(INDEX(Database_Prop!$B$2:$B$1498,SMALL(IF(Database_Prop!$A$2:$A$1498=AZ$129,ROW(Database_Prop!$B$2:$B$1498)-ROW(Database_Prop!$B$2)+1),ROWS(Database_Prop!W$2:'Database_Prop'!W172))),\"\")","v":""},{"$f":"IFERROR(INDEX(Database_Prop!$B$2:$B$1498,SMALL(IF(Database_Prop!$A$2:$A$1498=BA$129,ROW(Database_Prop!$B$2:$B$1498)-ROW(Database_Prop!$B$2)+1),ROWS(Database_Prop!X$2:'Database_Prop'!X172))),\"\")","v":""},{"$f":"IFERROR(INDEX(Database_Prop!$B$2:$B$1498,SMALL(IF(Database_Prop!$A$2:$A$1498=BB$129,ROW(Database_Prop!$B$2:$B$1498)-ROW(Database_Prop!$B$2)+1),ROWS(Database_Prop!Y$2:'Database_Prop'!Y172))),\"\")","v":""},{"$f":"IFERROR(INDEX(Database_Prop!$B$2:$B$1498,SMALL(IF(Database_Prop!$A$2:$A$1498=BC$129,ROW(Database_Prop!$B$2:$B$1498)-ROW(Database_Prop!$B$2)+1),ROWS(Database_Prop!Z$2:'Database_Prop'!Z172))),\"\")","v":""},null,"Republic of Korea","Africa"]
[null,null,null,null,null,null,null,null,null,null,null,null,null,null,null,null,null,null,null,null,null,null,null,null,null,null,null,null,null,null,173,{"$f":"IFERROR(INDEX(Database_Prop!$B$2:$B$1498,SMALL(IF(Database_Prop!$A$2:$A$1498=AF$129,ROW(Database_Prop!$B$2:$B$1498)-ROW(Database_Prop!$B$2)+1),ROWS(Database_Prop!C$2:'Database_Prop'!C173))),\"\")","v":""},{"$f":"IFERROR(INDEX(Database_Prop!$B$2:$B$1498,SMALL(IF(Database_Prop!$A$2:$A$1498=AG$129,ROW(Database_Prop!$B$2:$B$1498)-ROW(Database_Prop!$B$2)+1),ROWS(Database_Prop!D$2:'Database_Prop'!D173))),\"\")","v":""},{"$f":"IFERROR(INDEX(Database_Prop!$B$2:$B$1498,SMALL(IF(Database_Prop!$A$2:$A$1498=AH$129,ROW(Database_Prop!$B$2:$B$1498)-ROW(Database_Prop!$B$2)+1),ROWS(Database_Prop!E$2:'Database_Prop'!E173))),\"\")","v":""},{"$f":"IFERROR(INDEX(Database_Prop!$B$2:$B$1498,SMALL(IF(Database_Prop!$A$2:$A$1498=AI$129,ROW(Database_Prop!$B$2:$B$1498)-ROW(Database_Prop!$B$2)+1),ROWS(Database_Prop!F$2:'Database_Prop'!F173))),\"\")","v":""},{"$f":"IFERROR(INDEX(Database_Prop!$B$2:$B$1498,SMALL(IF(Database_Prop!$A$2:$A$1498=AJ$129,ROW(Database_Prop!$B$2:$B$1498)-ROW(Database_Prop!$B$2)+1),ROWS(Database_Prop!G$2:'Database_Prop'!G173))),\"\")","v":""},{"$f":"IFERROR(INDEX(Database_Prop!$B$2:$B$1498,SMALL(IF(Database_Prop!$A$2:$A$1498=AK$129,ROW(Database_Prop!$B$2:$B$1498)-ROW(Database_Prop!$B$2)+1),ROWS(Database_Prop!H$2:'Database_Prop'!H173))),\"\")","v":""},{"$f":"IFERROR(INDEX(Database_Prop!$B$2:$B$1498,SMALL(IF(Database_Prop!$A$2:$A$1498=AL$129,ROW(Database_Prop!$B$2:$B$1498)-ROW(Database_Prop!$B$2)+1),ROWS(Database_Prop!I$2:'Database_Prop'!I173))),\"\")","v":""},{"$f":"IFERROR(INDEX(Database_Prop!$B$2:$B$1498,SMALL(IF(Database_Prop!$A$2:$A$1498=AM$129,ROW(Database_Prop!$B$2:$B$1498)-ROW(Database_Prop!$B$2)+1),ROWS(Database_Prop!J$2:'Database_Prop'!J173))),\"\")","v":""},{"$f":"IFERROR(INDEX(Database_Prop!$B$2:$B$1498,SMALL(IF(Database_Prop!$A$2:$A$1498=AN$129,ROW(Database_Prop!$B$2:$B$1498)-ROW(Database_Prop!$B$2)+1),ROWS(Database_Prop!K$2:'Database_Prop'!K173))),\"\")","v":""},{"$f":"IFERROR(INDEX(Database_Prop!$B$2:$B$1498,SMALL(IF(Database_Prop!$A$2:$A$1498=AO$129,ROW(Database_Prop!$B$2:$B$1498)-ROW(Database_Prop!$B$2)+1),ROWS(Database_Prop!L$2:'Database_Prop'!L173))),\"\")","v":""},{"$f":"IFERROR(INDEX(Database_Prop!$B$2:$B$1498,SMALL(IF(Database_Prop!$A$2:$A$1498=AP$129,ROW(Database_Prop!$B$2:$B$1498)-ROW(Database_Prop!$B$2)+1),ROWS(Database_Prop!M$2:'Database_Prop'!M173))),\"\")","v":""},{"$f":"IFERROR(INDEX(Database_Prop!$B$2:$B$1498,SMALL(IF(Database_Prop!$A$2:$A$1498=AQ$129,ROW(Database_Prop!$B$2:$B$1498)-ROW(Database_Prop!$B$2)+1),ROWS(Database_Prop!N$2:'Database_Prop'!N173))),\"\")","v":""},{"$f":"IFERROR(INDEX(Database_Prop!$B$2:$B$1498,SMALL(IF(Database_Prop!$A$2:$A$1498=AR$129,ROW(Database_Prop!$B$2:$B$1498)-ROW(Database_Prop!$B$2)+1),ROWS(Database_Prop!O$2:'Database_Prop'!O173))),\"\")","v":""},{"$f":"IFERROR(INDEX(Database_Prop!$B$2:$B$1498,SMALL(IF(Database_Prop!$A$2:$A$1498=AS$129,ROW(Database_Prop!$B$2:$B$1498)-ROW(Database_Prop!$B$2)+1),ROWS(Database_Prop!P$2:'Database_Prop'!P173))),\"\")","v":""},{"$f":"IFERROR(INDEX(Database_Prop!$B$2:$B$1498,SMALL(IF(Database_Prop!$A$2:$A$1498=AT$129,ROW(Database_Prop!$B$2:$B$1498)-ROW(Database_Prop!$B$2)+1),ROWS(Database_Prop!Q$2:'Database_Prop'!Q173))),\"\")","v":""},{"$f":"IFERROR(INDEX(Database_Prop!$B$2:$B$1498,SMALL(IF(Database_Prop!$A$2:$A$1498=AU$129,ROW(Database_Prop!$B$2:$B$1498)-ROW(Database_Prop!$B$2)+1),ROWS(Database_Prop!R$2:'Database_Prop'!R173))),\"\")","v":""},{"$f":"IFERROR(INDEX(Database_Prop!$B$2:$B$1498,SMALL(IF(Database_Prop!$A$2:$A$1498=AV$129,ROW(Database_Prop!$B$2:$B$1498)-ROW(Database_Prop!$B$2)+1),ROWS(Database_Prop!S$2:'Database_Prop'!S173))),\"\")","v":""},{"$f":"IFERROR(INDEX(Database_Prop!$B$2:$B$1498,SMALL(IF(Database_Prop!$A$2:$A$1498=AW$129,ROW(Database_Prop!$B$2:$B$1498)-ROW(Database_Prop!$B$2)+1),ROWS(Database_Prop!T$2:'Database_Prop'!T173))),\"\")","v":""},{"$f":"IFERROR(INDEX(Database_Prop!$B$2:$B$1498,SMALL(IF(Database_Prop!$A$2:$A$1498=AX$129,ROW(Database_Prop!$B$2:$B$1498)-ROW(Database_Prop!$B$2)+1),ROWS(Database_Prop!U$2:'Database_Prop'!U173))),\"\")","v":""},{"$f":"IFERROR(INDEX(Database_Prop!$B$2:$B$1498,SMALL(IF(Database_Prop!$A$2:$A$1498=AY$129,ROW(Database_Prop!$B$2:$B$1498)-ROW(Database_Prop!$B$2)+1),ROWS(Database_Prop!V$2:'Database_Prop'!V173))),\"\")","v":""},{"$f":"IFERROR(INDEX(Database_Prop!$B$2:$B$1498,SMALL(IF(Database_Prop!$A$2:$A$1498=AZ$129,ROW(Database_Prop!$B$2:$B$1498)-ROW(Database_Prop!$B$2)+1),ROWS(Database_Prop!W$2:'Database_Prop'!W173))),\"\")","v":""},{"$f":"IFERROR(INDEX(Database_Prop!$B$2:$B$1498,SMALL(IF(Database_Prop!$A$2:$A$1498=BA$129,ROW(Database_Prop!$B$2:$B$1498)-ROW(Database_Prop!$B$2)+1),ROWS(Database_Prop!X$2:'Database_Prop'!X173))),\"\")","v":""},{"$f":"IFERROR(INDEX(Database_Prop!$B$2:$B$1498,SMALL(IF(Database_Prop!$A$2:$A$1498=BB$129,ROW(Database_Prop!$B$2:$B$1498)-ROW(Database_Prop!$B$2)+1),ROWS(Database_Prop!Y$2:'Database_Prop'!Y173))),\"\")","v":""},{"$f":"IFERROR(INDEX(Database_Prop!$B$2:$B$1498,SMALL(IF(Database_Prop!$A$2:$A$1498=BC$129,ROW(Database_Prop!$B$2:$B$1498)-ROW(Database_Prop!$B$2)+1),ROWS(Database_Prop!Z$2:'Database_Prop'!Z173))),\"\")","v":""},null,"Romania","Eastern Europe"]
[null,null,null,null,null,null,null,null,null,null,null,null,null,null,null,null,null,null,null,null,null,null,null,null,null,null,null,null,null,null,174,{"$f":"IFERROR(INDEX(Database_Prop!$B$2:$B$1498,SMALL(IF(Database_Prop!$A$2:$A$1498=AF$129,ROW(Database_Prop!$B$2:$B$1498)-ROW(Database_Prop!$B$2)+1),ROWS(Database_Prop!C$2:'Database_Prop'!C174))),\"\")","v":""},{"$f":"IFERROR(INDEX(Database_Prop!$B$2:$B$1498,SMALL(IF(Database_Prop!$A$2:$A$1498=AG$129,ROW(Database_Prop!$B$2:$B$1498)-ROW(Database_Prop!$B$2)+1),ROWS(Database_Prop!D$2:'Database_Prop'!D174))),\"\")","v":""},{"$f":"IFERROR(INDEX(Database_Prop!$B$2:$B$1498,SMALL(IF(Database_Prop!$A$2:$A$1498=AH$129,ROW(Database_Prop!$B$2:$B$1498)-ROW(Database_Prop!$B$2)+1),ROWS(Database_Prop!E$2:'Database_Prop'!E174))),\"\")","v":""},{"$f":"IFERROR(INDEX(Database_Prop!$B$2:$B$1498,SMALL(IF(Database_Prop!$A$2:$A$1498=AI$129,ROW(Database_Prop!$B$2:$B$1498)-ROW(Database_Prop!$B$2)+1),ROWS(Database_Prop!F$2:'Database_Prop'!F174))),\"\")","v":""},{"$f":"IFERROR(INDEX(Database_Prop!$B$2:$B$1498,SMALL(IF(Database_Prop!$A$2:$A$1498=AJ$129,ROW(Database_Prop!$B$2:$B$1498)-ROW(Database_Prop!$B$2)+1),ROWS(Database_Prop!G$2:'Database_Prop'!G174))),\"\")","v":""},{"$f":"IFERROR(INDEX(Database_Prop!$B$2:$B$1498,SMALL(IF(Database_Prop!$A$2:$A$1498=AK$129,ROW(Database_Prop!$B$2:$B$1498)-ROW(Database_Prop!$B$2)+1),ROWS(Database_Prop!H$2:'Database_Prop'!H174))),\"\")","v":""},{"$f":"IFERROR(INDEX(Database_Prop!$B$2:$B$1498,SMALL(IF(Database_Prop!$A$2:$A$1498=AL$129,ROW(Database_Prop!$B$2:$B$1498)-ROW(Database_Prop!$B$2)+1),ROWS(Database_Prop!I$2:'Database_Prop'!I174))),\"\")","v":""},{"$f":"IFERROR(INDEX(Database_Prop!$B$2:$B$1498,SMALL(IF(Database_Prop!$A$2:$A$1498=AM$129,ROW(Database_Prop!$B$2:$B$1498)-ROW(Database_Prop!$B$2)+1),ROWS(Database_Prop!J$2:'Database_Prop'!J174))),\"\")","v":""},{"$f":"IFERROR(INDEX(Database_Prop!$B$2:$B$1498,SMALL(IF(Database_Prop!$A$2:$A$1498=AN$129,ROW(Database_Prop!$B$2:$B$1498)-ROW(Database_Prop!$B$2)+1),ROWS(Database_Prop!K$2:'Database_Prop'!K174))),\"\")","v":""},{"$f":"IFERROR(INDEX(Database_Prop!$B$2:$B$1498,SMALL(IF(Database_Prop!$A$2:$A$1498=AO$129,ROW(Database_Prop!$B$2:$B$1498)-ROW(Database_Prop!$B$2)+1),ROWS(Database_Prop!L$2:'Database_Prop'!L174))),\"\")","v":""},{"$f":"IFERROR(INDEX(Database_Prop!$B$2:$B$1498,SMALL(IF(Database_Prop!$A$2:$A$1498=AP$129,ROW(Database_Prop!$B$2:$B$1498)-ROW(Database_Prop!$B$2)+1),ROWS(Database_Prop!M$2:'Database_Prop'!M174))),\"\")","v":""},{"$f":"IFERROR(INDEX(Database_Prop!$B$2:$B$1498,SMALL(IF(Database_Prop!$A$2:$A$1498=AQ$129,ROW(Database_Prop!$B$2:$B$1498)-ROW(Database_Prop!$B$2)+1),ROWS(Database_Prop!N$2:'Database_Prop'!N174))),\"\")","v":""},{"$f":"IFERROR(INDEX(Database_Prop!$B$2:$B$1498,SMALL(IF(Database_Prop!$A$2:$A$1498=AR$129,ROW(Database_Prop!$B$2:$B$1498)-ROW(Database_Prop!$B$2)+1),ROWS(Database_Prop!O$2:'Database_Prop'!O174))),\"\")","v":""},{"$f":"IFERROR(INDEX(Database_Prop!$B$2:$B$1498,SMALL(IF(Database_Prop!$A$2:$A$1498=AS$129,ROW(Database_Prop!$B$2:$B$1498)-ROW(Database_Prop!$B$2)+1),ROWS(Database_Prop!P$2:'Database_Prop'!P174))),\"\")","v":""},{"$f":"IFERROR(INDEX(Database_Prop!$B$2:$B$1498,SMALL(IF(Database_Prop!$A$2:$A$1498=AT$129,ROW(Database_Prop!$B$2:$B$1498)-ROW(Database_Prop!$B$2)+1),ROWS(Database_Prop!Q$2:'Database_Prop'!Q174))),\"\")","v":""},{"$f":"IFERROR(INDEX(Database_Prop!$B$2:$B$1498,SMALL(IF(Database_Prop!$A$2:$A$1498=AU$129,ROW(Database_Prop!$B$2:$B$1498)-ROW(Database_Prop!$B$2)+1),ROWS(Database_Prop!R$2:'Database_Prop'!R174))),\"\")","v":""},{"$f":"IFERROR(INDEX(Database_Prop!$B$2:$B$1498,SMALL(IF(Database_Prop!$A$2:$A$1498=AV$129,ROW(Database_Prop!$B$2:$B$1498)-ROW(Database_Prop!$B$2)+1),ROWS(Database_Prop!S$2:'Database_Prop'!S174))),\"\")","v":""},{"$f":"IFERROR(INDEX(Database_Prop!$B$2:$B$1498,SMALL(IF(Database_Prop!$A$2:$A$1498=AW$129,ROW(Database_Prop!$B$2:$B$1498)-ROW(Database_Prop!$B$2)+1),ROWS(Database_Prop!T$2:'Database_Prop'!T174))),\"\")","v":""},{"$f":"IFERROR(INDEX(Database_Prop!$B$2:$B$1498,SMALL(IF(Database_Prop!$A$2:$A$1498=AX$129,ROW(Database_Prop!$B$2:$B$1498)-ROW(Database_Prop!$B$2)+1),ROWS(Database_Prop!U$2:'Database_Prop'!U174))),\"\")","v":""},{"$f":"IFERROR(INDEX(Database_Prop!$B$2:$B$1498,SMALL(IF(Database_Prop!$A$2:$A$1498=AY$129,ROW(Database_Prop!$B$2:$B$1498)-ROW(Database_Prop!$B$2)+1),ROWS(Database_Prop!V$2:'Database_Prop'!V174))),\"\")","v":""},{"$f":"IFERROR(INDEX(Database_Prop!$B$2:$B$1498,SMALL(IF(Database_Prop!$A$2:$A$1498=AZ$129,ROW(Database_Prop!$B$2:$B$1498)-ROW(Database_Prop!$B$2)+1),ROWS(Database_Prop!W$2:'Database_Prop'!W174))),\"\")","v":""},{"$f":"IFERROR(INDEX(Database_Prop!$B$2:$B$1498,SMALL(IF(Database_Prop!$A$2:$A$1498=BA$129,ROW(Database_Prop!$B$2:$B$1498)-ROW(Database_Prop!$B$2)+1),ROWS(Database_Prop!X$2:'Database_Prop'!X174))),\"\")","v":""},{"$f":"IFERROR(INDEX(Database_Prop!$B$2:$B$1498,SMALL(IF(Database_Prop!$A$2:$A$1498=BB$129,ROW(Database_Prop!$B$2:$B$1498)-ROW(Database_Prop!$B$2)+1),ROWS(Database_Prop!Y$2:'Database_Prop'!Y174))),\"\")","v":""},{"$f":"IFERROR(INDEX(Database_Prop!$B$2:$B$1498,SMALL(IF(Database_Prop!$A$2:$A$1498=BC$129,ROW(Database_Prop!$B$2:$B$1498)-ROW(Database_Prop!$B$2)+1),ROWS(Database_Prop!Z$2:'Database_Prop'!Z174))),\"\")","v":""},null,"Russian Federation","Eastern Europe"]
[null,null,null,null,null,null,null,null,null,null,null,null,null,null,null,null,null,null,null,null,null,null,null,null,null,null,null,null,null,null,175,{"$f":"IFERROR(INDEX(Database_Prop!$B$2:$B$1498,SMALL(IF(Database_Prop!$A$2:$A$1498=AF$129,ROW(Database_Prop!$B$2:$B$1498)-ROW(Database_Prop!$B$2)+1),ROWS(Database_Prop!C$2:'Database_Prop'!C175))),\"\")","v":""},{"$f":"IFERROR(INDEX(Database_Prop!$B$2:$B$1498,SMALL(IF(Database_Prop!$A$2:$A$1498=AG$129,ROW(Database_Prop!$B$2:$B$1498)-ROW(Database_Prop!$B$2)+1),ROWS(Database_Prop!D$2:'Database_Prop'!D175))),\"\")","v":""},{"$f":"IFERROR(INDEX(Database_Prop!$B$2:$B$1498,SMALL(IF(Database_Prop!$A$2:$A$1498=AH$129,ROW(Database_Prop!$B$2:$B$1498)-ROW(Database_Prop!$B$2)+1),ROWS(Database_Prop!E$2:'Database_Prop'!E175))),\"\")","v":""},{"$f":"IFERROR(INDEX(Database_Prop!$B$2:$B$1498,SMALL(IF(Database_Prop!$A$2:$A$1498=AI$129,ROW(Database_Prop!$B$2:$B$1498)-ROW(Database_Prop!$B$2)+1),ROWS(Database_Prop!F$2:'Database_Prop'!F175))),\"\")","v":""},{"$f":"IFERROR(INDEX(Database_Prop!$B$2:$B$1498,SMALL(IF(Database_Prop!$A$2:$A$1498=AJ$129,ROW(Database_Prop!$B$2:$B$1498)-ROW(Database_Prop!$B$2)+1),ROWS(Database_Prop!G$2:'Database_Prop'!G175))),\"\")","v":""},{"$f":"IFERROR(INDEX(Database_Prop!$B$2:$B$1498,SMALL(IF(Database_Prop!$A$2:$A$1498=AK$129,ROW(Database_Prop!$B$2:$B$1498)-ROW(Database_Prop!$B$2)+1),ROWS(Database_Prop!H$2:'Database_Prop'!H175))),\"\")","v":""},{"$f":"IFERROR(INDEX(Database_Prop!$B$2:$B$1498,SMALL(IF(Database_Prop!$A$2:$A$1498=AL$129,ROW(Database_Prop!$B$2:$B$1498)-ROW(Database_Prop!$B$2)+1),ROWS(Database_Prop!I$2:'Database_Prop'!I175))),\"\")","v":""},{"$f":"IFERROR(INDEX(Database_Prop!$B$2:$B$1498,SMALL(IF(Database_Prop!$A$2:$A$1498=AM$129,ROW(Database_Prop!$B$2:$B$1498)-ROW(Database_Prop!$B$2)+1),ROWS(Database_Prop!J$2:'Database_Prop'!J175))),\"\")","v":""},{"$f":"IFERROR(INDEX(Database_Prop!$B$2:$B$1498,SMALL(IF(Database_Prop!$A$2:$A$1498=AN$129,ROW(Database_Prop!$B$2:$B$1498)-ROW(Database_Prop!$B$2)+1),ROWS(Database_Prop!K$2:'Database_Prop'!K175))),\"\")","v":""},{"$f":"IFERROR(INDEX(Database_Prop!$B$2:$B$1498,SMALL(IF(Database_Prop!$A$2:$A$1498=AO$129,ROW(Database_Prop!$B$2:$B$1498)-ROW(Database_Prop!$B$2)+1),ROWS(Database_Prop!L$2:'Database_Prop'!L175))),\"\")","v":""},{"$f":"IFERROR(INDEX(Database_Prop!$B$2:$B$1498,SMALL(IF(Database_Prop!$A$2:$A$1498=AP$129,ROW(Database_Prop!$B$2:$B$1498)-ROW(Database_Prop!$B$2)+1),ROWS(Database_Prop!M$2:'Database_Prop'!M175))),\"\")","v":""},{"$f":"IFERROR(INDEX(Database_Prop!$B$2:$B$1498,SMALL(IF(Database_Prop!$A$2:$A$1498=AQ$129,ROW(Database_Prop!$B$2:$B$1498)-ROW(Database_Prop!$B$2)+1),ROWS(Database_Prop!N$2:'Database_Prop'!N175))),\"\")","v":""},{"$f":"IFERROR(INDEX(Database_Prop!$B$2:$B$1498,SMALL(IF(Database_Prop!$A$2:$A$1498=AR$129,ROW(Database_Prop!$B$2:$B$1498)-ROW(Database_Prop!$B$2)+1),ROWS(Database_Prop!O$2:'Database_Prop'!O175))),\"\")","v":""},{"$f":"IFERROR(INDEX(Database_Prop!$B$2:$B$1498,SMALL(IF(Database_Prop!$A$2:$A$1498=AS$129,ROW(Database_Prop!$B$2:$B$1498)-ROW(Database_Prop!$B$2)+1),ROWS(Database_Prop!P$2:'Database_Prop'!P175))),\"\")","v":""},{"$f":"IFERROR(INDEX(Database_Prop!$B$2:$B$1498,SMALL(IF(Database_Prop!$A$2:$A$1498=AT$129,ROW(Database_Prop!$B$2:$B$1498)-ROW(Database_Prop!$B$2)+1),ROWS(Database_Prop!Q$2:'Database_Prop'!Q175))),\"\")","v":""},{"$f":"IFERROR(INDEX(Database_Prop!$B$2:$B$1498,SMALL(IF(Database_Prop!$A$2:$A$1498=AU$129,ROW(Database_Prop!$B$2:$B$1498)-ROW(Database_Prop!$B$2)+1),ROWS(Database_Prop!R$2:'Database_Prop'!R175))),\"\")","v":""},{"$f":"IFERROR(INDEX(Database_Prop!$B$2:$B$1498,SMALL(IF(Database_Prop!$A$2:$A$1498=AV$129,ROW(Database_Prop!$B$2:$B$1498)-ROW(Database_Prop!$B$2)+1),ROWS(Database_Prop!S$2:'Database_Prop'!S175))),\"\")","v":""},{"$f":"IFERROR(INDEX(Database_Prop!$B$2:$B$1498,SMALL(IF(Database_Prop!$A$2:$A$1498=AW$129,ROW(Database_Prop!$B$2:$B$1498)-ROW(Database_Prop!$B$2)+1),ROWS(Database_Prop!T$2:'Database_Prop'!T175))),\"\")","v":""},{"$f":"IFERROR(INDEX(Database_Prop!$B$2:$B$1498,SMALL(IF(Database_Prop!$A$2:$A$1498=AX$129,ROW(Database_Prop!$B$2:$B$1498)-ROW(Database_Prop!$B$2)+1),ROWS(Database_Prop!U$2:'Database_Prop'!U175))),\"\")","v":""},{"$f":"IFERROR(INDEX(Database_Prop!$B$2:$B$1498,SMALL(IF(Database_Prop!$A$2:$A$1498=AY$129,ROW(Database_Prop!$B$2:$B$1498)-ROW(Database_Prop!$B$2)+1),ROWS(Database_Prop!V$2:'Database_Prop'!V175))),\"\")","v":""},{"$f":"IFERROR(INDEX(Database_Prop!$B$2:$B$1498,SMALL(IF(Database_Prop!$A$2:$A$1498=AZ$129,ROW(Database_Prop!$B$2:$B$1498)-ROW(Database_Prop!$B$2)+1),ROWS(Database_Prop!W$2:'Database_Prop'!W175))),\"\")","v":""},{"$f":"IFERROR(INDEX(Database_Prop!$B$2:$B$1498,SMALL(IF(Database_Prop!$A$2:$A$1498=BA$129,ROW(Database_Prop!$B$2:$B$1498)-ROW(Database_Prop!$B$2)+1),ROWS(Database_Prop!X$2:'Database_Prop'!X175))),\"\")","v":""},{"$f":"IFERROR(INDEX(Database_Prop!$B$2:$B$1498,SMALL(IF(Database_Prop!$A$2:$A$1498=BB$129,ROW(Database_Prop!$B$2:$B$1498)-ROW(Database_Prop!$B$2)+1),ROWS(Database_Prop!Y$2:'Database_Prop'!Y175))),\"\")","v":""},{"$f":"IFERROR(INDEX(Database_Prop!$B$2:$B$1498,SMALL(IF(Database_Prop!$A$2:$A$1498=BC$129,ROW(Database_Prop!$B$2:$B$1498)-ROW(Database_Prop!$B$2)+1),ROWS(Database_Prop!Z$2:'Database_Prop'!Z175))),\"\")","v":""},null,"Rwanda","Africa"]
[null,null,null,null,null,null,null,null,null,null,null,null,null,null,null,null,null,null,null,null,null,null,null,null,null,null,null,null,null,null,176,{"$f":"IFERROR(INDEX(Database_Prop!$B$2:$B$1498,SMALL(IF(Database_Prop!$A$2:$A$1498=AF$129,ROW(Database_Prop!$B$2:$B$1498)-ROW(Database_Prop!$B$2)+1),ROWS(Database_Prop!C$2:'Database_Prop'!C176))),\"\")","v":""},{"$f":"IFERROR(INDEX(Database_Prop!$B$2:$B$1498,SMALL(IF(Database_Prop!$A$2:$A$1498=AG$129,ROW(Database_Prop!$B$2:$B$1498)-ROW(Database_Prop!$B$2)+1),ROWS(Database_Prop!D$2:'Database_Prop'!D176))),\"\")","v":""},{"$f":"IFERROR(INDEX(Database_Prop!$B$2:$B$1498,SMALL(IF(Database_Prop!$A$2:$A$1498=AH$129,ROW(Database_Prop!$B$2:$B$1498)-ROW(Database_Prop!$B$2)+1),ROWS(Database_Prop!E$2:'Database_Prop'!E176))),\"\")","v":""},{"$f":"IFERROR(INDEX(Database_Prop!$B$2:$B$1498,SMALL(IF(Database_Prop!$A$2:$A$1498=AI$129,ROW(Database_Prop!$B$2:$B$1498)-ROW(Database_Prop!$B$2)+1),ROWS(Database_Prop!F$2:'Database_Prop'!F176))),\"\")","v":""},{"$f":"IFERROR(INDEX(Database_Prop!$B$2:$B$1498,SMALL(IF(Database_Prop!$A$2:$A$1498=AJ$129,ROW(Database_Prop!$B$2:$B$1498)-ROW(Database_Prop!$B$2)+1),ROWS(Database_Prop!G$2:'Database_Prop'!G176))),\"\")","v":""},{"$f":"IFERROR(INDEX(Database_Prop!$B$2:$B$1498,SMALL(IF(Database_Prop!$A$2:$A$1498=AK$129,ROW(Database_Prop!$B$2:$B$1498)-ROW(Database_Prop!$B$2)+1),ROWS(Database_Prop!H$2:'Database_Prop'!H176))),\"\")","v":""},{"$f":"IFERROR(INDEX(Database_Prop!$B$2:$B$1498,SMALL(IF(Database_Prop!$A$2:$A$1498=AL$129,ROW(Database_Prop!$B$2:$B$1498)-ROW(Database_Prop!$B$2)+1),ROWS(Database_Prop!I$2:'Database_Prop'!I176))),\"\")","v":""},{"$f":"IFERROR(INDEX(Database_Prop!$B$2:$B$1498,SMALL(IF(Database_Prop!$A$2:$A$1498=AM$129,ROW(Database_Prop!$B$2:$B$1498)-ROW(Database_Prop!$B$2)+1),ROWS(Database_Prop!J$2:'Database_Prop'!J176))),\"\")","v":""},{"$f":"IFERROR(INDEX(Database_Prop!$B$2:$B$1498,SMALL(IF(Database_Prop!$A$2:$A$1498=AN$129,ROW(Database_Prop!$B$2:$B$1498)-ROW(Database_Prop!$B$2)+1),ROWS(Database_Prop!K$2:'Database_Prop'!K176))),\"\")","v":""},{"$f":"IFERROR(INDEX(Database_Prop!$B$2:$B$1498,SMALL(IF(Database_Prop!$A$2:$A$1498=AO$129,ROW(Database_Prop!$B$2:$B$1498)-ROW(Database_Prop!$B$2)+1),ROWS(Database_Prop!L$2:'Database_Prop'!L176))),\"\")","v":""},{"$f":"IFERROR(INDEX(Database_Prop!$B$2:$B$1498,SMALL(IF(Database_Prop!$A$2:$A$1498=AP$129,ROW(Database_Prop!$B$2:$B$1498)-ROW(Database_Prop!$B$2)+1),ROWS(Database_Prop!M$2:'Database_Prop'!M176))),\"\")","v":""},{"$f":"IFERROR(INDEX(Database_Prop!$B$2:$B$1498,SMALL(IF(Database_Prop!$A$2:$A$1498=AQ$129,ROW(Database_Prop!$B$2:$B$1498)-ROW(Database_Prop!$B$2)+1),ROWS(Database_Prop!N$2:'Database_Prop'!N176))),\"\")","v":""},{"$f":"IFERROR(INDEX(Database_Prop!$B$2:$B$1498,SMALL(IF(Database_Prop!$A$2:$A$1498=AR$129,ROW(Database_Prop!$B$2:$B$1498)-ROW(Database_Prop!$B$2)+1),ROWS(Database_Prop!O$2:'Database_Prop'!O176))),\"\")","v":""},{"$f":"IFERROR(INDEX(Database_Prop!$B$2:$B$1498,SMALL(IF(Database_Prop!$A$2:$A$1498=AS$129,ROW(Database_Prop!$B$2:$B$1498)-ROW(Database_Prop!$B$2)+1),ROWS(Database_Prop!P$2:'Database_Prop'!P176))),\"\")","v":""},{"$f":"IFERROR(INDEX(Database_Prop!$B$2:$B$1498,SMALL(IF(Database_Prop!$A$2:$A$1498=AT$129,ROW(Database_Prop!$B$2:$B$1498)-ROW(Database_Prop!$B$2)+1),ROWS(Database_Prop!Q$2:'Database_Prop'!Q176))),\"\")","v":""},{"$f":"IFERROR(INDEX(Database_Prop!$B$2:$B$1498,SMALL(IF(Database_Prop!$A$2:$A$1498=AU$129,ROW(Database_Prop!$B$2:$B$1498)-ROW(Database_Prop!$B$2)+1),ROWS(Database_Prop!R$2:'Database_Prop'!R176))),\"\")","v":""},{"$f":"IFERROR(INDEX(Database_Prop!$B$2:$B$1498,SMALL(IF(Database_Prop!$A$2:$A$1498=AV$129,ROW(Database_Prop!$B$2:$B$1498)-ROW(Database_Prop!$B$2)+1),ROWS(Database_Prop!S$2:'Database_Prop'!S176))),\"\")","v":""},{"$f":"IFERROR(INDEX(Database_Prop!$B$2:$B$1498,SMALL(IF(Database_Prop!$A$2:$A$1498=AW$129,ROW(Database_Prop!$B$2:$B$1498)-ROW(Database_Prop!$B$2)+1),ROWS(Database_Prop!T$2:'Database_Prop'!T176))),\"\")","v":""},{"$f":"IFERROR(INDEX(Database_Prop!$B$2:$B$1498,SMALL(IF(Database_Prop!$A$2:$A$1498=AX$129,ROW(Database_Prop!$B$2:$B$1498)-ROW(Database_Prop!$B$2)+1),ROWS(Database_Prop!U$2:'Database_Prop'!U176))),\"\")","v":""},{"$f":"IFERROR(INDEX(Database_Prop!$B$2:$B$1498,SMALL(IF(Database_Prop!$A$2:$A$1498=AY$129,ROW(Database_Prop!$B$2:$B$1498)-ROW(Database_Prop!$B$2)+1),ROWS(Database_Prop!V$2:'Database_Prop'!V176))),\"\")","v":""},{"$f":"IFERROR(INDEX(Database_Prop!$B$2:$B$1498,SMALL(IF(Database_Prop!$A$2:$A$1498=AZ$129,ROW(Database_Prop!$B$2:$B$1498)-ROW(Database_Prop!$B$2)+1),ROWS(Database_Prop!W$2:'Database_Prop'!W176))),\"\")","v":""},{"$f":"IFERROR(INDEX(Database_Prop!$B$2:$B$1498,SMALL(IF(Database_Prop!$A$2:$A$1498=BA$129,ROW(Database_Prop!$B$2:$B$1498)-ROW(Database_Prop!$B$2)+1),ROWS(Database_Prop!X$2:'Database_Prop'!X176))),\"\")","v":""},{"$f":"IFERROR(INDEX(Database_Prop!$B$2:$B$1498,SMALL(IF(Database_Prop!$A$2:$A$1498=BB$129,ROW(Database_Prop!$B$2:$B$1498)-ROW(Database_Prop!$B$2)+1),ROWS(Database_Prop!Y$2:'Database_Prop'!Y176))),\"\")","v":""},{"$f":"IFERROR(INDEX(Database_Prop!$B$2:$B$1498,SMALL(IF(Database_Prop!$A$2:$A$1498=BC$129,ROW(Database_Prop!$B$2:$B$1498)-ROW(Database_Prop!$B$2)+1),ROWS(Database_Prop!Z$2:'Database_Prop'!Z176))),\"\")","v":""},null,"Saint Helena","Africa"]
[null,null,null,null,null,null,null,null,null,null,null,null,null,null,null,null,null,null,null,null,null,null,null,null,null,null,null,null,null,null,177,{"$f":"IFERROR(INDEX(Database_Prop!$B$2:$B$1498,SMALL(IF(Database_Prop!$A$2:$A$1498=AF$129,ROW(Database_Prop!$B$2:$B$1498)-ROW(Database_Prop!$B$2)+1),ROWS(Database_Prop!C$2:'Database_Prop'!C177))),\"\")","v":""},{"$f":"IFERROR(INDEX(Database_Prop!$B$2:$B$1498,SMALL(IF(Database_Prop!$A$2:$A$1498=AG$129,ROW(Database_Prop!$B$2:$B$1498)-ROW(Database_Prop!$B$2)+1),ROWS(Database_Prop!D$2:'Database_Prop'!D177))),\"\")","v":""},{"$f":"IFERROR(INDEX(Database_Prop!$B$2:$B$1498,SMALL(IF(Database_Prop!$A$2:$A$1498=AH$129,ROW(Database_Prop!$B$2:$B$1498)-ROW(Database_Prop!$B$2)+1),ROWS(Database_Prop!E$2:'Database_Prop'!E177))),\"\")","v":""},{"$f":"IFERROR(INDEX(Database_Prop!$B$2:$B$1498,SMALL(IF(Database_Prop!$A$2:$A$1498=AI$129,ROW(Database_Prop!$B$2:$B$1498)-ROW(Database_Prop!$B$2)+1),ROWS(Database_Prop!F$2:'Database_Prop'!F177))),\"\")","v":""},{"$f":"IFERROR(INDEX(Database_Prop!$B$2:$B$1498,SMALL(IF(Database_Prop!$A$2:$A$1498=AJ$129,ROW(Database_Prop!$B$2:$B$1498)-ROW(Database_Prop!$B$2)+1),ROWS(Database_Prop!G$2:'Database_Prop'!G177))),\"\")","v":""},{"$f":"IFERROR(INDEX(Database_Prop!$B$2:$B$1498,SMALL(IF(Database_Prop!$A$2:$A$1498=AK$129,ROW(Database_Prop!$B$2:$B$1498)-ROW(Database_Prop!$B$2)+1),ROWS(Database_Prop!H$2:'Database_Prop'!H177))),\"\")","v":""},{"$f":"IFERROR(INDEX(Database_Prop!$B$2:$B$1498,SMALL(IF(Database_Prop!$A$2:$A$1498=AL$129,ROW(Database_Prop!$B$2:$B$1498)-ROW(Database_Prop!$B$2)+1),ROWS(Database_Prop!I$2:'Database_Prop'!I177))),\"\")","v":""},{"$f":"IFERROR(INDEX(Database_Prop!$B$2:$B$1498,SMALL(IF(Database_Prop!$A$2:$A$1498=AM$129,ROW(Database_Prop!$B$2:$B$1498)-ROW(Database_Prop!$B$2)+1),ROWS(Database_Prop!J$2:'Database_Prop'!J177))),\"\")","v":""},{"$f":"IFERROR(INDEX(Database_Prop!$B$2:$B$1498,SMALL(IF(Database_Prop!$A$2:$A$1498=AN$129,ROW(Database_Prop!$B$2:$B$1498)-ROW(Database_Prop!$B$2)+1),ROWS(Database_Prop!K$2:'Database_Prop'!K177))),\"\")","v":""},{"$f":"IFERROR(INDEX(Database_Prop!$B$2:$B$1498,SMALL(IF(Database_Prop!$A$2:$A$1498=AO$129,ROW(Database_Prop!$B$2:$B$1498)-ROW(Database_Prop!$B$2)+1),ROWS(Database_Prop!L$2:'Database_Prop'!L177))),\"\")","v":""},{"$f":"IFERROR(INDEX(Database_Prop!$B$2:$B$1498,SMALL(IF(Database_Prop!$A$2:$A$1498=AP$129,ROW(Database_Prop!$B$2:$B$1498)-ROW(Database_Prop!$B$2)+1),ROWS(Database_Prop!M$2:'Database_Prop'!M177))),\"\")","v":""},{"$f":"IFERROR(INDEX(Database_Prop!$B$2:$B$1498,SMALL(IF(Database_Prop!$A$2:$A$1498=AQ$129,ROW(Database_Prop!$B$2:$B$1498)-ROW(Database_Prop!$B$2)+1),ROWS(Database_Prop!N$2:'Database_Prop'!N177))),\"\")","v":""},{"$f":"IFERROR(INDEX(Database_Prop!$B$2:$B$1498,SMALL(IF(Database_Prop!$A$2:$A$1498=AR$129,ROW(Database_Prop!$B$2:$B$1498)-ROW(Database_Prop!$B$2)+1),ROWS(Database_Prop!O$2:'Database_Prop'!O177))),\"\")","v":""},{"$f":"IFERROR(INDEX(Database_Prop!$B$2:$B$1498,SMALL(IF(Database_Prop!$A$2:$A$1498=AS$129,ROW(Database_Prop!$B$2:$B$1498)-ROW(Database_Prop!$B$2)+1),ROWS(Database_Prop!P$2:'Database_Prop'!P177))),\"\")","v":""},{"$f":"IFERROR(INDEX(Database_Prop!$B$2:$B$1498,SMALL(IF(Database_Prop!$A$2:$A$1498=AT$129,ROW(Database_Prop!$B$2:$B$1498)-ROW(Database_Prop!$B$2)+1),ROWS(Database_Prop!Q$2:'Database_Prop'!Q177))),\"\")","v":""},{"$f":"IFERROR(INDEX(Database_Prop!$B$2:$B$1498,SMALL(IF(Database_Prop!$A$2:$A$1498=AU$129,ROW(Database_Prop!$B$2:$B$1498)-ROW(Database_Prop!$B$2)+1),ROWS(Database_Prop!R$2:'Database_Prop'!R177))),\"\")","v":""},{"$f":"IFERROR(INDEX(Database_Prop!$B$2:$B$1498,SMALL(IF(Database_Prop!$A$2:$A$1498=AV$129,ROW(Database_Prop!$B$2:$B$1498)-ROW(Database_Prop!$B$2)+1),ROWS(Database_Prop!S$2:'Database_Prop'!S177))),\"\")","v":""},{"$f":"IFERROR(INDEX(Database_Prop!$B$2:$B$1498,SMALL(IF(Database_Prop!$A$2:$A$1498=AW$129,ROW(Database_Prop!$B$2:$B$1498)-ROW(Database_Prop!$B$2)+1),ROWS(Database_Prop!T$2:'Database_Prop'!T177))),\"\")","v":""},{"$f":"IFERROR(INDEX(Database_Prop!$B$2:$B$1498,SMALL(IF(Database_Prop!$A$2:$A$1498=AX$129,ROW(Database_Prop!$B$2:$B$1498)-ROW(Database_Prop!$B$2)+1),ROWS(Database_Prop!U$2:'Database_Prop'!U177))),\"\")","v":""},{"$f":"IFERROR(INDEX(Database_Prop!$B$2:$B$1498,SMALL(IF(Database_Prop!$A$2:$A$1498=AY$129,ROW(Database_Prop!$B$2:$B$1498)-ROW(Database_Prop!$B$2)+1),ROWS(Database_Prop!V$2:'Database_Prop'!V177))),\"\")","v":""},{"$f":"IFERROR(INDEX(Database_Prop!$B$2:$B$1498,SMALL(IF(Database_Prop!$A$2:$A$1498=AZ$129,ROW(Database_Prop!$B$2:$B$1498)-ROW(Database_Prop!$B$2)+1),ROWS(Database_Prop!W$2:'Database_Prop'!W177))),\"\")","v":""},{"$f":"IFERROR(INDEX(Database_Prop!$B$2:$B$1498,SMALL(IF(Database_Prop!$A$2:$A$1498=BA$129,ROW(Database_Prop!$B$2:$B$1498)-ROW(Database_Prop!$B$2)+1),ROWS(Database_Prop!X$2:'Database_Prop'!X177))),\"\")","v":""},{"$f":"IFERROR(INDEX(Database_Prop!$B$2:$B$1498,SMALL(IF(Database_Prop!$A$2:$A$1498=BB$129,ROW(Database_Prop!$B$2:$B$1498)-ROW(Database_Prop!$B$2)+1),ROWS(Database_Prop!Y$2:'Database_Prop'!Y177))),\"\")","v":""},{"$f":"IFERROR(INDEX(Database_Prop!$B$2:$B$1498,SMALL(IF(Database_Prop!$A$2:$A$1498=BC$129,ROW(Database_Prop!$B$2:$B$1498)-ROW(Database_Prop!$B$2)+1),ROWS(Database_Prop!Z$2:'Database_Prop'!Z177))),\"\")","v":""},null,"Saint Kitts and Nevis","Latin America"]
[null,null,null,null,null,null,null,null,null,null,null,null,null,null,null,null,null,null,null,null,null,null,null,null,null,null,null,null,null,null,178,{"$f":"IFERROR(INDEX(Database_Prop!$B$2:$B$1498,SMALL(IF(Database_Prop!$A$2:$A$1498=AF$129,ROW(Database_Prop!$B$2:$B$1498)-ROW(Database_Prop!$B$2)+1),ROWS(Database_Prop!C$2:'Database_Prop'!C178))),\"\")","v":""},{"$f":"IFERROR(INDEX(Database_Prop!$B$2:$B$1498,SMALL(IF(Database_Prop!$A$2:$A$1498=AG$129,ROW(Database_Prop!$B$2:$B$1498)-ROW(Database_Prop!$B$2)+1),ROWS(Database_Prop!D$2:'Database_Prop'!D178))),\"\")","v":""},{"$f":"IFERROR(INDEX(Database_Prop!$B$2:$B$1498,SMALL(IF(Database_Prop!$A$2:$A$1498=AH$129,ROW(Database_Prop!$B$2:$B$1498)-ROW(Database_Prop!$B$2)+1),ROWS(Database_Prop!E$2:'Database_Prop'!E178))),\"\")","v":""},{"$f":"IFERROR(INDEX(Database_Prop!$B$2:$B$1498,SMALL(IF(Database_Prop!$A$2:$A$1498=AI$129,ROW(Database_Prop!$B$2:$B$1498)-ROW(Database_Prop!$B$2)+1),ROWS(Database_Prop!F$2:'Database_Prop'!F178))),\"\")","v":""},{"$f":"IFERROR(INDEX(Database_Prop!$B$2:$B$1498,SMALL(IF(Database_Prop!$A$2:$A$1498=AJ$129,ROW(Database_Prop!$B$2:$B$1498)-ROW(Database_Prop!$B$2)+1),ROWS(Database_Prop!G$2:'Database_Prop'!G178))),\"\")","v":""},{"$f":"IFERROR(INDEX(Database_Prop!$B$2:$B$1498,SMALL(IF(Database_Prop!$A$2:$A$1498=AK$129,ROW(Database_Prop!$B$2:$B$1498)-ROW(Database_Prop!$B$2)+1),ROWS(Database_Prop!H$2:'Database_Prop'!H178))),\"\")","v":""},{"$f":"IFERROR(INDEX(Database_Prop!$B$2:$B$1498,SMALL(IF(Database_Prop!$A$2:$A$1498=AL$129,ROW(Database_Prop!$B$2:$B$1498)-ROW(Database_Prop!$B$2)+1),ROWS(Database_Prop!I$2:'Database_Prop'!I178))),\"\")","v":""},{"$f":"IFERROR(INDEX(Database_Prop!$B$2:$B$1498,SMALL(IF(Database_Prop!$A$2:$A$1498=AM$129,ROW(Database_Prop!$B$2:$B$1498)-ROW(Database_Prop!$B$2)+1),ROWS(Database_Prop!J$2:'Database_Prop'!J178))),\"\")","v":""},{"$f":"IFERROR(INDEX(Database_Prop!$B$2:$B$1498,SMALL(IF(Database_Prop!$A$2:$A$1498=AN$129,ROW(Database_Prop!$B$2:$B$1498)-ROW(Database_Prop!$B$2)+1),ROWS(Database_Prop!K$2:'Database_Prop'!K178))),\"\")","v":""},{"$f":"IFERROR(INDEX(Database_Prop!$B$2:$B$1498,SMALL(IF(Database_Prop!$A$2:$A$1498=AO$129,ROW(Database_Prop!$B$2:$B$1498)-ROW(Database_Prop!$B$2)+1),ROWS(Database_Prop!L$2:'Database_Prop'!L178))),\"\")","v":""},{"$f":"IFERROR(INDEX(Database_Prop!$B$2:$B$1498,SMALL(IF(Database_Prop!$A$2:$A$1498=AP$129,ROW(Database_Prop!$B$2:$B$1498)-ROW(Database_Prop!$B$2)+1),ROWS(Database_Prop!M$2:'Database_Prop'!M178))),\"\")","v":""},{"$f":"IFERROR(INDEX(Database_Prop!$B$2:$B$1498,SMALL(IF(Database_Prop!$A$2:$A$1498=AQ$129,ROW(Database_Prop!$B$2:$B$1498)-ROW(Database_Prop!$B$2)+1),ROWS(Database_Prop!N$2:'Database_Prop'!N178))),\"\")","v":""},{"$f":"IFERROR(INDEX(Database_Prop!$B$2:$B$1498,SMALL(IF(Database_Prop!$A$2:$A$1498=AR$129,ROW(Database_Prop!$B$2:$B$1498)-ROW(Database_Prop!$B$2)+1),ROWS(Database_Prop!O$2:'Database_Prop'!O178))),\"\")","v":""},{"$f":"IFERROR(INDEX(Database_Prop!$B$2:$B$1498,SMALL(IF(Database_Prop!$A$2:$A$1498=AS$129,ROW(Database_Prop!$B$2:$B$1498)-ROW(Database_Prop!$B$2)+1),ROWS(Database_Prop!P$2:'Database_Prop'!P178))),\"\")","v":""},{"$f":"IFERROR(INDEX(Database_Prop!$B$2:$B$1498,SMALL(IF(Database_Prop!$A$2:$A$1498=AT$129,ROW(Database_Prop!$B$2:$B$1498)-ROW(Database_Prop!$B$2)+1),ROWS(Database_Prop!Q$2:'Database_Prop'!Q178))),\"\")","v":""},{"$f":"IFERROR(INDEX(Database_Prop!$B$2:$B$1498,SMALL(IF(Database_Prop!$A$2:$A$1498=AU$129,ROW(Database_Prop!$B$2:$B$1498)-ROW(Database_Prop!$B$2)+1),ROWS(Database_Prop!R$2:'Database_Prop'!R178))),\"\")","v":""},{"$f":"IFERROR(INDEX(Database_Prop!$B$2:$B$1498,SMALL(IF(Database_Prop!$A$2:$A$1498=AV$129,ROW(Database_Prop!$B$2:$B$1498)-ROW(Database_Prop!$B$2)+1),ROWS(Database_Prop!S$2:'Database_Prop'!S178))),\"\")","v":""},{"$f":"IFERROR(INDEX(Database_Prop!$B$2:$B$1498,SMALL(IF(Database_Prop!$A$2:$A$1498=AW$129,ROW(Database_Prop!$B$2:$B$1498)-ROW(Database_Prop!$B$2)+1),ROWS(Database_Prop!T$2:'Database_Prop'!T178))),\"\")","v":""},{"$f":"IFERROR(INDEX(Database_Prop!$B$2:$B$1498,SMALL(IF(Database_Prop!$A$2:$A$1498=AX$129,ROW(Database_Prop!$B$2:$B$1498)-ROW(Database_Prop!$B$2)+1),ROWS(Database_Prop!U$2:'Database_Prop'!U178))),\"\")","v":""},{"$f":"IFERROR(INDEX(Database_Prop!$B$2:$B$1498,SMALL(IF(Database_Prop!$A$2:$A$1498=AY$129,ROW(Database_Prop!$B$2:$B$1498)-ROW(Database_Prop!$B$2)+1),ROWS(Database_Prop!V$2:'Database_Prop'!V178))),\"\")","v":""},{"$f":"IFERROR(INDEX(Database_Prop!$B$2:$B$1498,SMALL(IF(Database_Prop!$A$2:$A$1498=AZ$129,ROW(Database_Prop!$B$2:$B$1498)-ROW(Database_Prop!$B$2)+1),ROWS(Database_Prop!W$2:'Database_Prop'!W178))),\"\")","v":""},{"$f":"IFERROR(INDEX(Database_Prop!$B$2:$B$1498,SMALL(IF(Database_Prop!$A$2:$A$1498=BA$129,ROW(Database_Prop!$B$2:$B$1498)-ROW(Database_Prop!$B$2)+1),ROWS(Database_Prop!X$2:'Database_Prop'!X178))),\"\")","v":""},{"$f":"IFERROR(INDEX(Database_Prop!$B$2:$B$1498,SMALL(IF(Database_Prop!$A$2:$A$1498=BB$129,ROW(Database_Prop!$B$2:$B$1498)-ROW(Database_Prop!$B$2)+1),ROWS(Database_Prop!Y$2:'Database_Prop'!Y178))),\"\")","v":""},{"$f":"IFERROR(INDEX(Database_Prop!$B$2:$B$1498,SMALL(IF(Database_Prop!$A$2:$A$1498=BC$129,ROW(Database_Prop!$B$2:$B$1498)-ROW(Database_Prop!$B$2)+1),ROWS(Database_Prop!Z$2:'Database_Prop'!Z178))),\"\")","v":""},null,"Saint Lucia","Latin America"]
[null,null,null,null,null,null,null,null,null,null,null,null,null,null,null,null,null,null,null,null,null,null,null,null,null,null,null,null,null,null,179,{"$f":"IFERROR(INDEX(Database_Prop!$B$2:$B$1498,SMALL(IF(Database_Prop!$A$2:$A$1498=AF$129,ROW(Database_Prop!$B$2:$B$1498)-ROW(Database_Prop!$B$2)+1),ROWS(Database_Prop!C$2:'Database_Prop'!C179))),\"\")","v":""},{"$f":"IFERROR(INDEX(Database_Prop!$B$2:$B$1498,SMALL(IF(Database_Prop!$A$2:$A$1498=AG$129,ROW(Database_Prop!$B$2:$B$1498)-ROW(Database_Prop!$B$2)+1),ROWS(Database_Prop!D$2:'Database_Prop'!D179))),\"\")","v":""},{"$f":"IFERROR(INDEX(Database_Prop!$B$2:$B$1498,SMALL(IF(Database_Prop!$A$2:$A$1498=AH$129,ROW(Database_Prop!$B$2:$B$1498)-ROW(Database_Prop!$B$2)+1),ROWS(Database_Prop!E$2:'Database_Prop'!E179))),\"\")","v":""},{"$f":"IFERROR(INDEX(Database_Prop!$B$2:$B$1498,SMALL(IF(Database_Prop!$A$2:$A$1498=AI$129,ROW(Database_Prop!$B$2:$B$1498)-ROW(Database_Prop!$B$2)+1),ROWS(Database_Prop!F$2:'Database_Prop'!F179))),\"\")","v":""},{"$f":"IFERROR(INDEX(Database_Prop!$B$2:$B$1498,SMALL(IF(Database_Prop!$A$2:$A$1498=AJ$129,ROW(Database_Prop!$B$2:$B$1498)-ROW(Database_Prop!$B$2)+1),ROWS(Database_Prop!G$2:'Database_Prop'!G179))),\"\")","v":""},{"$f":"IFERROR(INDEX(Database_Prop!$B$2:$B$1498,SMALL(IF(Database_Prop!$A$2:$A$1498=AK$129,ROW(Database_Prop!$B$2:$B$1498)-ROW(Database_Prop!$B$2)+1),ROWS(Database_Prop!H$2:'Database_Prop'!H179))),\"\")","v":""},{"$f":"IFERROR(INDEX(Database_Prop!$B$2:$B$1498,SMALL(IF(Database_Prop!$A$2:$A$1498=AL$129,ROW(Database_Prop!$B$2:$B$1498)-ROW(Database_Prop!$B$2)+1),ROWS(Database_Prop!I$2:'Database_Prop'!I179))),\"\")","v":""},{"$f":"IFERROR(INDEX(Database_Prop!$B$2:$B$1498,SMALL(IF(Database_Prop!$A$2:$A$1498=AM$129,ROW(Database_Prop!$B$2:$B$1498)-ROW(Database_Prop!$B$2)+1),ROWS(Database_Prop!J$2:'Database_Prop'!J179))),\"\")","v":""},{"$f":"IFERROR(INDEX(Database_Prop!$B$2:$B$1498,SMALL(IF(Database_Prop!$A$2:$A$1498=AN$129,ROW(Database_Prop!$B$2:$B$1498)-ROW(Database_Prop!$B$2)+1),ROWS(Database_Prop!K$2:'Database_Prop'!K179))),\"\")","v":""},{"$f":"IFERROR(INDEX(Database_Prop!$B$2:$B$1498,SMALL(IF(Database_Prop!$A$2:$A$1498=AO$129,ROW(Database_Prop!$B$2:$B$1498)-ROW(Database_Prop!$B$2)+1),ROWS(Database_Prop!L$2:'Database_Prop'!L179))),\"\")","v":""},{"$f":"IFERROR(INDEX(Database_Prop!$B$2:$B$1498,SMALL(IF(Database_Prop!$A$2:$A$1498=AP$129,ROW(Database_Prop!$B$2:$B$1498)-ROW(Database_Prop!$B$2)+1),ROWS(Database_Prop!M$2:'Database_Prop'!M179))),\"\")","v":""},{"$f":"IFERROR(INDEX(Database_Prop!$B$2:$B$1498,SMALL(IF(Database_Prop!$A$2:$A$1498=AQ$129,ROW(Database_Prop!$B$2:$B$1498)-ROW(Database_Prop!$B$2)+1),ROWS(Database_Prop!N$2:'Database_Prop'!N179))),\"\")","v":""},{"$f":"IFERROR(INDEX(Database_Prop!$B$2:$B$1498,SMALL(IF(Database_Prop!$A$2:$A$1498=AR$129,ROW(Database_Prop!$B$2:$B$1498)-ROW(Database_Prop!$B$2)+1),ROWS(Database_Prop!O$2:'Database_Prop'!O179))),\"\")","v":""},{"$f":"IFERROR(INDEX(Database_Prop!$B$2:$B$1498,SMALL(IF(Database_Prop!$A$2:$A$1498=AS$129,ROW(Database_Prop!$B$2:$B$1498)-ROW(Database_Prop!$B$2)+1),ROWS(Database_Prop!P$2:'Database_Prop'!P179))),\"\")","v":""},{"$f":"IFERROR(INDEX(Database_Prop!$B$2:$B$1498,SMALL(IF(Database_Prop!$A$2:$A$1498=AT$129,ROW(Database_Prop!$B$2:$B$1498)-ROW(Database_Prop!$B$2)+1),ROWS(Database_Prop!Q$2:'Database_Prop'!Q179))),\"\")","v":""},{"$f":"IFERROR(INDEX(Database_Prop!$B$2:$B$1498,SMALL(IF(Database_Prop!$A$2:$A$1498=AU$129,ROW(Database_Prop!$B$2:$B$1498)-ROW(Database_Prop!$B$2)+1),ROWS(Database_Prop!R$2:'Database_Prop'!R179))),\"\")","v":""},{"$f":"IFERROR(INDEX(Database_Prop!$B$2:$B$1498,SMALL(IF(Database_Prop!$A$2:$A$1498=AV$129,ROW(Database_Prop!$B$2:$B$1498)-ROW(Database_Prop!$B$2)+1),ROWS(Database_Prop!S$2:'Database_Prop'!S179))),\"\")","v":""},{"$f":"IFERROR(INDEX(Database_Prop!$B$2:$B$1498,SMALL(IF(Database_Prop!$A$2:$A$1498=AW$129,ROW(Database_Prop!$B$2:$B$1498)-ROW(Database_Prop!$B$2)+1),ROWS(Database_Prop!T$2:'Database_Prop'!T179))),\"\")","v":""},{"$f":"IFERROR(INDEX(Database_Prop!$B$2:$B$1498,SMALL(IF(Database_Prop!$A$2:$A$1498=AX$129,ROW(Database_Prop!$B$2:$B$1498)-ROW(Database_Prop!$B$2)+1),ROWS(Database_Prop!U$2:'Database_Prop'!U179))),\"\")","v":""},{"$f":"IFERROR(INDEX(Database_Prop!$B$2:$B$1498,SMALL(IF(Database_Prop!$A$2:$A$1498=AY$129,ROW(Database_Prop!$B$2:$B$1498)-ROW(Database_Prop!$B$2)+1),ROWS(Database_Prop!V$2:'Database_Prop'!V179))),\"\")","v":""},{"$f":"IFERROR(INDEX(Database_Prop!$B$2:$B$1498,SMALL(IF(Database_Prop!$A$2:$A$1498=AZ$129,ROW(Database_Prop!$B$2:$B$1498)-ROW(Database_Prop!$B$2)+1),ROWS(Database_Prop!W$2:'Database_Prop'!W179))),\"\")","v":""},{"$f":"IFERROR(INDEX(Database_Prop!$B$2:$B$1498,SMALL(IF(Database_Prop!$A$2:$A$1498=BA$129,ROW(Database_Prop!$B$2:$B$1498)-ROW(Database_Prop!$B$2)+1),ROWS(Database_Prop!X$2:'Database_Prop'!X179))),\"\")","v":""},{"$f":"IFERROR(INDEX(Database_Prop!$B$2:$B$1498,SMALL(IF(Database_Prop!$A$2:$A$1498=BB$129,ROW(Database_Prop!$B$2:$B$1498)-ROW(Database_Prop!$B$2)+1),ROWS(Database_Prop!Y$2:'Database_Prop'!Y179))),\"\")","v":""},{"$f":"IFERROR(INDEX(Database_Prop!$B$2:$B$1498,SMALL(IF(Database_Prop!$A$2:$A$1498=BC$129,ROW(Database_Prop!$B$2:$B$1498)-ROW(Database_Prop!$B$2)+1),ROWS(Database_Prop!Z$2:'Database_Prop'!Z179))),\"\")","v":""},null,"Saint Martin (French part)","Latin America"]
[null,null,null,null,null,null,null,null,null,null,null,null,null,null,null,null,null,null,null,null,null,null,null,null,null,null,null,null,null,null,180,{"$f":"IFERROR(INDEX(Database_Prop!$B$2:$B$1498,SMALL(IF(Database_Prop!$A$2:$A$1498=AF$129,ROW(Database_Prop!$B$2:$B$1498)-ROW(Database_Prop!$B$2)+1),ROWS(Database_Prop!C$2:'Database_Prop'!C180))),\"\")","v":""},{"$f":"IFERROR(INDEX(Database_Prop!$B$2:$B$1498,SMALL(IF(Database_Prop!$A$2:$A$1498=AG$129,ROW(Database_Prop!$B$2:$B$1498)-ROW(Database_Prop!$B$2)+1),ROWS(Database_Prop!D$2:'Database_Prop'!D180))),\"\")","v":""},{"$f":"IFERROR(INDEX(Database_Prop!$B$2:$B$1498,SMALL(IF(Database_Prop!$A$2:$A$1498=AH$129,ROW(Database_Prop!$B$2:$B$1498)-ROW(Database_Prop!$B$2)+1),ROWS(Database_Prop!E$2:'Database_Prop'!E180))),\"\")","v":""},{"$f":"IFERROR(INDEX(Database_Prop!$B$2:$B$1498,SMALL(IF(Database_Prop!$A$2:$A$1498=AI$129,ROW(Database_Prop!$B$2:$B$1498)-ROW(Database_Prop!$B$2)+1),ROWS(Database_Prop!F$2:'Database_Prop'!F180))),\"\")","v":""},{"$f":"IFERROR(INDEX(Database_Prop!$B$2:$B$1498,SMALL(IF(Database_Prop!$A$2:$A$1498=AJ$129,ROW(Database_Prop!$B$2:$B$1498)-ROW(Database_Prop!$B$2)+1),ROWS(Database_Prop!G$2:'Database_Prop'!G180))),\"\")","v":""},{"$f":"IFERROR(INDEX(Database_Prop!$B$2:$B$1498,SMALL(IF(Database_Prop!$A$2:$A$1498=AK$129,ROW(Database_Prop!$B$2:$B$1498)-ROW(Database_Prop!$B$2)+1),ROWS(Database_Prop!H$2:'Database_Prop'!H180))),\"\")","v":""},{"$f":"IFERROR(INDEX(Database_Prop!$B$2:$B$1498,SMALL(IF(Database_Prop!$A$2:$A$1498=AL$129,ROW(Database_Prop!$B$2:$B$1498)-ROW(Database_Prop!$B$2)+1),ROWS(Database_Prop!I$2:'Database_Prop'!I180))),\"\")","v":""},{"$f":"IFERROR(INDEX(Database_Prop!$B$2:$B$1498,SMALL(IF(Database_Prop!$A$2:$A$1498=AM$129,ROW(Database_Prop!$B$2:$B$1498)-ROW(Database_Prop!$B$2)+1),ROWS(Database_Prop!J$2:'Database_Prop'!J180))),\"\")","v":""},{"$f":"IFERROR(INDEX(Database_Prop!$B$2:$B$1498,SMALL(IF(Database_Prop!$A$2:$A$1498=AN$129,ROW(Database_Prop!$B$2:$B$1498)-ROW(Database_Prop!$B$2)+1),ROWS(Database_Prop!K$2:'Database_Prop'!K180))),\"\")","v":""},{"$f":"IFERROR(INDEX(Database_Prop!$B$2:$B$1498,SMALL(IF(Database_Prop!$A$2:$A$1498=AO$129,ROW(Database_Prop!$B$2:$B$1498)-ROW(Database_Prop!$B$2)+1),ROWS(Database_Prop!L$2:'Database_Prop'!L180))),\"\")","v":""},{"$f":"IFERROR(INDEX(Database_Prop!$B$2:$B$1498,SMALL(IF(Database_Prop!$A$2:$A$1498=AP$129,ROW(Database_Prop!$B$2:$B$1498)-ROW(Database_Prop!$B$2)+1),ROWS(Database_Prop!M$2:'Database_Prop'!M180))),\"\")","v":""},{"$f":"IFERROR(INDEX(Database_Prop!$B$2:$B$1498,SMALL(IF(Database_Prop!$A$2:$A$1498=AQ$129,ROW(Database_Prop!$B$2:$B$1498)-ROW(Database_Prop!$B$2)+1),ROWS(Database_Prop!N$2:'Database_Prop'!N180))),\"\")","v":""},{"$f":"IFERROR(INDEX(Database_Prop!$B$2:$B$1498,SMALL(IF(Database_Prop!$A$2:$A$1498=AR$129,ROW(Database_Prop!$B$2:$B$1498)-ROW(Database_Prop!$B$2)+1),ROWS(Database_Prop!O$2:'Database_Prop'!O180))),\"\")","v":""},{"$f":"IFERROR(INDEX(Database_Prop!$B$2:$B$1498,SMALL(IF(Database_Prop!$A$2:$A$1498=AS$129,ROW(Database_Prop!$B$2:$B$1498)-ROW(Database_Prop!$B$2)+1),ROWS(Database_Prop!P$2:'Database_Prop'!P180))),\"\")","v":""},{"$f":"IFERROR(INDEX(Database_Prop!$B$2:$B$1498,SMALL(IF(Database_Prop!$A$2:$A$1498=AT$129,ROW(Database_Prop!$B$2:$B$1498)-ROW(Database_Prop!$B$2)+1),ROWS(Database_Prop!Q$2:'Database_Prop'!Q180))),\"\")","v":""},{"$f":"IFERROR(INDEX(Database_Prop!$B$2:$B$1498,SMALL(IF(Database_Prop!$A$2:$A$1498=AU$129,ROW(Database_Prop!$B$2:$B$1498)-ROW(Database_Prop!$B$2)+1),ROWS(Database_Prop!R$2:'Database_Prop'!R180))),\"\")","v":""},{"$f":"IFERROR(INDEX(Database_Prop!$B$2:$B$1498,SMALL(IF(Database_Prop!$A$2:$A$1498=AV$129,ROW(Database_Prop!$B$2:$B$1498)-ROW(Database_Prop!$B$2)+1),ROWS(Database_Prop!S$2:'Database_Prop'!S180))),\"\")","v":""},{"$f":"IFERROR(INDEX(Database_Prop!$B$2:$B$1498,SMALL(IF(Database_Prop!$A$2:$A$1498=AW$129,ROW(Database_Prop!$B$2:$B$1498)-ROW(Database_Prop!$B$2)+1),ROWS(Database_Prop!T$2:'Database_Prop'!T180))),\"\")","v":""},{"$f":"IFERROR(INDEX(Database_Prop!$B$2:$B$1498,SMALL(IF(Database_Prop!$A$2:$A$1498=AX$129,ROW(Database_Prop!$B$2:$B$1498)-ROW(Database_Prop!$B$2)+1),ROWS(Database_Prop!U$2:'Database_Prop'!U180))),\"\")","v":""},{"$f":"IFERROR(INDEX(Database_Prop!$B$2:$B$1498,SMALL(IF(Database_Prop!$A$2:$A$1498=AY$129,ROW(Database_Prop!$B$2:$B$1498)-ROW(Database_Prop!$B$2)+1),ROWS(Database_Prop!V$2:'Database_Prop'!V180))),\"\")","v":""},{"$f":"IFERROR(INDEX(Database_Prop!$B$2:$B$1498,SMALL(IF(Database_Prop!$A$2:$A$1498=AZ$129,ROW(Database_Prop!$B$2:$B$1498)-ROW(Database_Prop!$B$2)+1),ROWS(Database_Prop!W$2:'Database_Prop'!W180))),\"\")","v":""},{"$f":"IFERROR(INDEX(Database_Prop!$B$2:$B$1498,SMALL(IF(Database_Prop!$A$2:$A$1498=BA$129,ROW(Database_Prop!$B$2:$B$1498)-ROW(Database_Prop!$B$2)+1),ROWS(Database_Prop!X$2:'Database_Prop'!X180))),\"\")","v":""},{"$f":"IFERROR(INDEX(Database_Prop!$B$2:$B$1498,SMALL(IF(Database_Prop!$A$2:$A$1498=BB$129,ROW(Database_Prop!$B$2:$B$1498)-ROW(Database_Prop!$B$2)+1),ROWS(Database_Prop!Y$2:'Database_Prop'!Y180))),\"\")","v":""},{"$f":"IFERROR(INDEX(Database_Prop!$B$2:$B$1498,SMALL(IF(Database_Prop!$A$2:$A$1498=BC$129,ROW(Database_Prop!$B$2:$B$1498)-ROW(Database_Prop!$B$2)+1),ROWS(Database_Prop!Z$2:'Database_Prop'!Z180))),\"\")","v":""},null,"Saint Pierre and Miquelon","North America"]
[null,null,null,null,null,null,null,null,null,null,null,null,null,null,null,null,null,null,null,null,null,null,null,null,null,null,null,null,null,null,181,{"$f":"IFERROR(INDEX(Database_Prop!$B$2:$B$1498,SMALL(IF(Database_Prop!$A$2:$A$1498=AF$129,ROW(Database_Prop!$B$2:$B$1498)-ROW(Database_Prop!$B$2)+1),ROWS(Database_Prop!C$2:'Database_Prop'!C181))),\"\")","v":""},{"$f":"IFERROR(INDEX(Database_Prop!$B$2:$B$1498,SMALL(IF(Database_Prop!$A$2:$A$1498=AG$129,ROW(Database_Prop!$B$2:$B$1498)-ROW(Database_Prop!$B$2)+1),ROWS(Database_Prop!D$2:'Database_Prop'!D181))),\"\")","v":""},{"$f":"IFERROR(INDEX(Database_Prop!$B$2:$B$1498,SMALL(IF(Database_Prop!$A$2:$A$1498=AH$129,ROW(Database_Prop!$B$2:$B$1498)-ROW(Database_Prop!$B$2)+1),ROWS(Database_Prop!E$2:'Database_Prop'!E181))),\"\")","v":""},{"$f":"IFERROR(INDEX(Database_Prop!$B$2:$B$1498,SMALL(IF(Database_Prop!$A$2:$A$1498=AI$129,ROW(Database_Prop!$B$2:$B$1498)-ROW(Database_Prop!$B$2)+1),ROWS(Database_Prop!F$2:'Database_Prop'!F181))),\"\")","v":""},{"$f":"IFERROR(INDEX(Database_Prop!$B$2:$B$1498,SMALL(IF(Database_Prop!$A$2:$A$1498=AJ$129,ROW(Database_Prop!$B$2:$B$1498)-ROW(Database_Prop!$B$2)+1),ROWS(Database_Prop!G$2:'Database_Prop'!G181))),\"\")","v":""},{"$f":"IFERROR(INDEX(Database_Prop!$B$2:$B$1498,SMALL(IF(Database_Prop!$A$2:$A$1498=AK$129,ROW(Database_Prop!$B$2:$B$1498)-ROW(Database_Prop!$B$2)+1),ROWS(Database_Prop!H$2:'Database_Prop'!H181))),\"\")","v":""},{"$f":"IFERROR(INDEX(Database_Prop!$B$2:$B$1498,SMALL(IF(Database_Prop!$A$2:$A$1498=AL$129,ROW(Database_Prop!$B$2:$B$1498)-ROW(Database_Prop!$B$2)+1),ROWS(Database_Prop!I$2:'Database_Prop'!I181))),\"\")","v":""},{"$f":"IFERROR(INDEX(Database_Prop!$B$2:$B$1498,SMALL(IF(Database_Prop!$A$2:$A$1498=AM$129,ROW(Database_Prop!$B$2:$B$1498)-ROW(Database_Prop!$B$2)+1),ROWS(Database_Prop!J$2:'Database_Prop'!J181))),\"\")","v":""},{"$f":"IFERROR(INDEX(Database_Prop!$B$2:$B$1498,SMALL(IF(Database_Prop!$A$2:$A$1498=AN$129,ROW(Database_Prop!$B$2:$B$1498)-ROW(Database_Prop!$B$2)+1),ROWS(Database_Prop!K$2:'Database_Prop'!K181))),\"\")","v":""},{"$f":"IFERROR(INDEX(Database_Prop!$B$2:$B$1498,SMALL(IF(Database_Prop!$A$2:$A$1498=AO$129,ROW(Database_Prop!$B$2:$B$1498)-ROW(Database_Prop!$B$2)+1),ROWS(Database_Prop!L$2:'Database_Prop'!L181))),\"\")","v":""},{"$f":"IFERROR(INDEX(Database_Prop!$B$2:$B$1498,SMALL(IF(Database_Prop!$A$2:$A$1498=AP$129,ROW(Database_Prop!$B$2:$B$1498)-ROW(Database_Prop!$B$2)+1),ROWS(Database_Prop!M$2:'Database_Prop'!M181))),\"\")","v":""},{"$f":"IFERROR(INDEX(Database_Prop!$B$2:$B$1498,SMALL(IF(Database_Prop!$A$2:$A$1498=AQ$129,ROW(Database_Prop!$B$2:$B$1498)-ROW(Database_Prop!$B$2)+1),ROWS(Database_Prop!N$2:'Database_Prop'!N181))),\"\")","v":""},{"$f":"IFERROR(INDEX(Database_Prop!$B$2:$B$1498,SMALL(IF(Database_Prop!$A$2:$A$1498=AR$129,ROW(Database_Prop!$B$2:$B$1498)-ROW(Database_Prop!$B$2)+1),ROWS(Database_Prop!O$2:'Database_Prop'!O181))),\"\")","v":""},{"$f":"IFERROR(INDEX(Database_Prop!$B$2:$B$1498,SMALL(IF(Database_Prop!$A$2:$A$1498=AS$129,ROW(Database_Prop!$B$2:$B$1498)-ROW(Database_Prop!$B$2)+1),ROWS(Database_Prop!P$2:'Database_Prop'!P181))),\"\")","v":""},{"$f":"IFERROR(INDEX(Database_Prop!$B$2:$B$1498,SMALL(IF(Database_Prop!$A$2:$A$1498=AT$129,ROW(Database_Prop!$B$2:$B$1498)-ROW(Database_Prop!$B$2)+1),ROWS(Database_Prop!Q$2:'Database_Prop'!Q181))),\"\")","v":""},{"$f":"IFERROR(INDEX(Database_Prop!$B$2:$B$1498,SMALL(IF(Database_Prop!$A$2:$A$1498=AU$129,ROW(Database_Prop!$B$2:$B$1498)-ROW(Database_Prop!$B$2)+1),ROWS(Database_Prop!R$2:'Database_Prop'!R181))),\"\")","v":""},{"$f":"IFERROR(INDEX(Database_Prop!$B$2:$B$1498,SMALL(IF(Database_Prop!$A$2:$A$1498=AV$129,ROW(Database_Prop!$B$2:$B$1498)-ROW(Database_Prop!$B$2)+1),ROWS(Database_Prop!S$2:'Database_Prop'!S181))),\"\")","v":""},{"$f":"IFERROR(INDEX(Database_Prop!$B$2:$B$1498,SMALL(IF(Database_Prop!$A$2:$A$1498=AW$129,ROW(Database_Prop!$B$2:$B$1498)-ROW(Database_Prop!$B$2)+1),ROWS(Database_Prop!T$2:'Database_Prop'!T181))),\"\")","v":""},{"$f":"IFERROR(INDEX(Database_Prop!$B$2:$B$1498,SMALL(IF(Database_Prop!$A$2:$A$1498=AX$129,ROW(Database_Prop!$B$2:$B$1498)-ROW(Database_Prop!$B$2)+1),ROWS(Database_Prop!U$2:'Database_Prop'!U181))),\"\")","v":""},{"$f":"IFERROR(INDEX(Database_Prop!$B$2:$B$1498,SMALL(IF(Database_Prop!$A$2:$A$1498=AY$129,ROW(Database_Prop!$B$2:$B$1498)-ROW(Database_Prop!$B$2)+1),ROWS(Database_Prop!V$2:'Database_Prop'!V181))),\"\")","v":""},{"$f":"IFERROR(INDEX(Database_Prop!$B$2:$B$1498,SMALL(IF(Database_Prop!$A$2:$A$1498=AZ$129,ROW(Database_Prop!$B$2:$B$1498)-ROW(Database_Prop!$B$2)+1),ROWS(Database_Prop!W$2:'Database_Prop'!W181))),\"\")","v":""},{"$f":"IFERROR(INDEX(Database_Prop!$B$2:$B$1498,SMALL(IF(Database_Prop!$A$2:$A$1498=BA$129,ROW(Database_Prop!$B$2:$B$1498)-ROW(Database_Prop!$B$2)+1),ROWS(Database_Prop!X$2:'Database_Prop'!X181))),\"\")","v":""},{"$f":"IFERROR(INDEX(Database_Prop!$B$2:$B$1498,SMALL(IF(Database_Prop!$A$2:$A$1498=BB$129,ROW(Database_Prop!$B$2:$B$1498)-ROW(Database_Prop!$B$2)+1),ROWS(Database_Prop!Y$2:'Database_Prop'!Y181))),\"\")","v":""},{"$f":"IFERROR(INDEX(Database_Prop!$B$2:$B$1498,SMALL(IF(Database_Prop!$A$2:$A$1498=BC$129,ROW(Database_Prop!$B$2:$B$1498)-ROW(Database_Prop!$B$2)+1),ROWS(Database_Prop!Z$2:'Database_Prop'!Z181))),\"\")","v":""},null,"Saint Vincent and the Grenadines","Latin America"]
[null,null,null,null,null,null,null,null,null,null,null,null,null,null,null,null,null,null,null,null,null,null,null,null,null,null,null,null,null,null,182,{"$f":"IFERROR(INDEX(Database_Prop!$B$2:$B$1498,SMALL(IF(Database_Prop!$A$2:$A$1498=AF$129,ROW(Database_Prop!$B$2:$B$1498)-ROW(Database_Prop!$B$2)+1),ROWS(Database_Prop!C$2:'Database_Prop'!C182))),\"\")","v":""},{"$f":"IFERROR(INDEX(Database_Prop!$B$2:$B$1498,SMALL(IF(Database_Prop!$A$2:$A$1498=AG$129,ROW(Database_Prop!$B$2:$B$1498)-ROW(Database_Prop!$B$2)+1),ROWS(Database_Prop!D$2:'Database_Prop'!D182))),\"\")","v":""},{"$f":"IFERROR(INDEX(Database_Prop!$B$2:$B$1498,SMALL(IF(Database_Prop!$A$2:$A$1498=AH$129,ROW(Database_Prop!$B$2:$B$1498)-ROW(Database_Prop!$B$2)+1),ROWS(Database_Prop!E$2:'Database_Prop'!E182))),\"\")","v":""},{"$f":"IFERROR(INDEX(Database_Prop!$B$2:$B$1498,SMALL(IF(Database_Prop!$A$2:$A$1498=AI$129,ROW(Database_Prop!$B$2:$B$1498)-ROW(Database_Prop!$B$2)+1),ROWS(Database_Prop!F$2:'Database_Prop'!F182))),\"\")","v":""},{"$f":"IFERROR(INDEX(Database_Prop!$B$2:$B$1498,SMALL(IF(Database_Prop!$A$2:$A$1498=AJ$129,ROW(Database_Prop!$B$2:$B$1498)-ROW(Database_Prop!$B$2)+1),ROWS(Database_Prop!G$2:'Database_Prop'!G182))),\"\")","v":""},{"$f":"IFERROR(INDEX(Database_Prop!$B$2:$B$1498,SMALL(IF(Database_Prop!$A$2:$A$1498=AK$129,ROW(Database_Prop!$B$2:$B$1498)-ROW(Database_Prop!$B$2)+1),ROWS(Database_Prop!H$2:'Database_Prop'!H182))),\"\")","v":""},{"$f":"IFERROR(INDEX(Database_Prop!$B$2:$B$1498,SMALL(IF(Database_Prop!$A$2:$A$1498=AL$129,ROW(Database_Prop!$B$2:$B$1498)-ROW(Database_Prop!$B$2)+1),ROWS(Database_Prop!I$2:'Database_Prop'!I182))),\"\")","v":""},{"$f":"IFERROR(INDEX(Database_Prop!$B$2:$B$1498,SMALL(IF(Database_Prop!$A$2:$A$1498=AM$129,ROW(Database_Prop!$B$2:$B$1498)-ROW(Database_Prop!$B$2)+1),ROWS(Database_Prop!J$2:'Database_Prop'!J182))),\"\")","v":""},{"$f":"IFERROR(INDEX(Database_Prop!$B$2:$B$1498,SMALL(IF(Database_Prop!$A$2:$A$1498=AN$129,ROW(Database_Prop!$B$2:$B$1498)-ROW(Database_Prop!$B$2)+1),ROWS(Database_Prop!K$2:'Database_Prop'!K182))),\"\")","v":""},{"$f":"IFERROR(INDEX(Database_Prop!$B$2:$B$1498,SMALL(IF(Database_Prop!$A$2:$A$1498=AO$129,ROW(Database_Prop!$B$2:$B$1498)-ROW(Database_Prop!$B$2)+1),ROWS(Database_Prop!L$2:'Database_Prop'!L182))),\"\")","v":""},{"$f":"IFERROR(INDEX(Database_Prop!$B$2:$B$1498,SMALL(IF(Database_Prop!$A$2:$A$1498=AP$129,ROW(Database_Prop!$B$2:$B$1498)-ROW(Database_Prop!$B$2)+1),ROWS(Database_Prop!M$2:'Database_Prop'!M182))),\"\")","v":""},{"$f":"IFERROR(INDEX(Database_Prop!$B$2:$B$1498,SMALL(IF(Database_Prop!$A$2:$A$1498=AQ$129,ROW(Database_Prop!$B$2:$B$1498)-ROW(Database_Prop!$B$2)+1),ROWS(Database_Prop!N$2:'Database_Prop'!N182))),\"\")","v":""},{"$f":"IFERROR(INDEX(Database_Prop!$B$2:$B$1498,SMALL(IF(Database_Prop!$A$2:$A$1498=AR$129,ROW(Database_Prop!$B$2:$B$1498)-ROW(Database_Prop!$B$2)+1),ROWS(Database_Prop!O$2:'Database_Prop'!O182))),\"\")","v":""},{"$f":"IFERROR(INDEX(Database_Prop!$B$2:$B$1498,SMALL(IF(Database_Prop!$A$2:$A$1498=AS$129,ROW(Database_Prop!$B$2:$B$1498)-ROW(Database_Prop!$B$2)+1),ROWS(Database_Prop!P$2:'Database_Prop'!P182))),\"\")","v":""},{"$f":"IFERROR(INDEX(Database_Prop!$B$2:$B$1498,SMALL(IF(Database_Prop!$A$2:$A$1498=AT$129,ROW(Database_Prop!$B$2:$B$1498)-ROW(Database_Prop!$B$2)+1),ROWS(Database_Prop!Q$2:'Database_Prop'!Q182))),\"\")","v":""},{"$f":"IFERROR(INDEX(Database_Prop!$B$2:$B$1498,SMALL(IF(Database_Prop!$A$2:$A$1498=AU$129,ROW(Database_Prop!$B$2:$B$1498)-ROW(Database_Prop!$B$2)+1),ROWS(Database_Prop!R$2:'Database_Prop'!R182))),\"\")","v":""},{"$f":"IFERROR(INDEX(Database_Prop!$B$2:$B$1498,SMALL(IF(Database_Prop!$A$2:$A$1498=AV$129,ROW(Database_Prop!$B$2:$B$1498)-ROW(Database_Prop!$B$2)+1),ROWS(Database_Prop!S$2:'Database_Prop'!S182))),\"\")","v":""},{"$f":"IFERROR(INDEX(Database_Prop!$B$2:$B$1498,SMALL(IF(Database_Prop!$A$2:$A$1498=AW$129,ROW(Database_Prop!$B$2:$B$1498)-ROW(Database_Prop!$B$2)+1),ROWS(Database_Prop!T$2:'Database_Prop'!T182))),\"\")","v":""},{"$f":"IFERROR(INDEX(Database_Prop!$B$2:$B$1498,SMALL(IF(Database_Prop!$A$2:$A$1498=AX$129,ROW(Database_Prop!$B$2:$B$1498)-ROW(Database_Prop!$B$2)+1),ROWS(Database_Prop!U$2:'Database_Prop'!U182))),\"\")","v":""},{"$f":"IFERROR(INDEX(Database_Prop!$B$2:$B$1498,SMALL(IF(Database_Prop!$A$2:$A$1498=AY$129,ROW(Database_Prop!$B$2:$B$1498)-ROW(Database_Prop!$B$2)+1),ROWS(Database_Prop!V$2:'Database_Prop'!V182))),\"\")","v":""},{"$f":"IFERROR(INDEX(Database_Prop!$B$2:$B$1498,SMALL(IF(Database_Prop!$A$2:$A$1498=AZ$129,ROW(Database_Prop!$B$2:$B$1498)-ROW(Database_Prop!$B$2)+1),ROWS(Database_Prop!W$2:'Database_Prop'!W182))),\"\")","v":""},{"$f":"IFERROR(INDEX(Database_Prop!$B$2:$B$1498,SMALL(IF(Database_Prop!$A$2:$A$1498=BA$129,ROW(Database_Prop!$B$2:$B$1498)-ROW(Database_Prop!$B$2)+1),ROWS(Database_Prop!X$2:'Database_Prop'!X182))),\"\")","v":""},{"$f":"IFERROR(INDEX(Database_Prop!$B$2:$B$1498,SMALL(IF(Database_Prop!$A$2:$A$1498=BB$129,ROW(Database_Prop!$B$2:$B$1498)-ROW(Database_Prop!$B$2)+1),ROWS(Database_Prop!Y$2:'Database_Prop'!Y182))),\"\")","v":""},{"$f":"IFERROR(INDEX(Database_Prop!$B$2:$B$1498,SMALL(IF(Database_Prop!$A$2:$A$1498=BC$129,ROW(Database_Prop!$B$2:$B$1498)-ROW(Database_Prop!$B$2)+1),ROWS(Database_Prop!Z$2:'Database_Prop'!Z182))),\"\")","v":""},null,"Saint-Barthélemy","Latin America"]
[null,null,null,null,null,null,null,null,null,null,null,null,null,null,null,null,null,null,null,null,null,null,null,null,null,null,null,null,null,null,183,{"$f":"IFERROR(INDEX(Database_Prop!$B$2:$B$1498,SMALL(IF(Database_Prop!$A$2:$A$1498=AF$129,ROW(Database_Prop!$B$2:$B$1498)-ROW(Database_Prop!$B$2)+1),ROWS(Database_Prop!C$2:'Database_Prop'!C183))),\"\")","v":""},{"$f":"IFERROR(INDEX(Database_Prop!$B$2:$B$1498,SMALL(IF(Database_Prop!$A$2:$A$1498=AG$129,ROW(Database_Prop!$B$2:$B$1498)-ROW(Database_Prop!$B$2)+1),ROWS(Database_Prop!D$2:'Database_Prop'!D183))),\"\")","v":""},{"$f":"IFERROR(INDEX(Database_Prop!$B$2:$B$1498,SMALL(IF(Database_Prop!$A$2:$A$1498=AH$129,ROW(Database_Prop!$B$2:$B$1498)-ROW(Database_Prop!$B$2)+1),ROWS(Database_Prop!E$2:'Database_Prop'!E183))),\"\")","v":""},{"$f":"IFERROR(INDEX(Database_Prop!$B$2:$B$1498,SMALL(IF(Database_Prop!$A$2:$A$1498=AI$129,ROW(Database_Prop!$B$2:$B$1498)-ROW(Database_Prop!$B$2)+1),ROWS(Database_Prop!F$2:'Database_Prop'!F183))),\"\")","v":""},{"$f":"IFERROR(INDEX(Database_Prop!$B$2:$B$1498,SMALL(IF(Database_Prop!$A$2:$A$1498=AJ$129,ROW(Database_Prop!$B$2:$B$1498)-ROW(Database_Prop!$B$2)+1),ROWS(Database_Prop!G$2:'Database_Prop'!G183))),\"\")","v":""},{"$f":"IFERROR(INDEX(Database_Prop!$B$2:$B$1498,SMALL(IF(Database_Prop!$A$2:$A$1498=AK$129,ROW(Database_Prop!$B$2:$B$1498)-ROW(Database_Prop!$B$2)+1),ROWS(Database_Prop!H$2:'Database_Prop'!H183))),\"\")","v":""},{"$f":"IFERROR(INDEX(Database_Prop!$B$2:$B$1498,SMALL(IF(Database_Prop!$A$2:$A$1498=AL$129,ROW(Database_Prop!$B$2:$B$1498)-ROW(Database_Prop!$B$2)+1),ROWS(Database_Prop!I$2:'Database_Prop'!I183))),\"\")","v":""},{"$f":"IFERROR(INDEX(Database_Prop!$B$2:$B$1498,SMALL(IF(Database_Prop!$A$2:$A$1498=AM$129,ROW(Database_Prop!$B$2:$B$1498)-ROW(Database_Prop!$B$2)+1),ROWS(Database_Prop!J$2:'Database_Prop'!J183))),\"\")","v":""},{"$f":"IFERROR(INDEX(Database_Prop!$B$2:$B$1498,SMALL(IF(Database_Prop!$A$2:$A$1498=AN$129,ROW(Database_Prop!$B$2:$B$1498)-ROW(Database_Prop!$B$2)+1),ROWS(Database_Prop!K$2:'Database_Prop'!K183))),\"\")","v":""},{"$f":"IFERROR(INDEX(Database_Prop!$B$2:$B$1498,SMALL(IF(Database_Prop!$A$2:$A$1498=AO$129,ROW(Database_Prop!$B$2:$B$1498)-ROW(Database_Prop!$B$2)+1),ROWS(Database_Prop!L$2:'Database_Prop'!L183))),\"\")","v":""},{"$f":"IFERROR(INDEX(Database_Prop!$B$2:$B$1498,SMALL(IF(Database_Prop!$A$2:$A$1498=AP$129,ROW(Database_Prop!$B$2:$B$1498)-ROW(Database_Prop!$B$2)+1),ROWS(Database_Prop!M$2:'Database_Prop'!M183))),\"\")","v":""},{"$f":"IFERROR(INDEX(Database_Prop!$B$2:$B$1498,SMALL(IF(Database_Prop!$A$2:$A$1498=AQ$129,ROW(Database_Prop!$B$2:$B$1498)-ROW(Database_Prop!$B$2)+1),ROWS(Database_Prop!N$2:'Database_Prop'!N183))),\"\")","v":""},{"$f":"IFERROR(INDEX(Database_Prop!$B$2:$B$1498,SMALL(IF(Database_Prop!$A$2:$A$1498=AR$129,ROW(Database_Prop!$B$2:$B$1498)-ROW(Database_Prop!$B$2)+1),ROWS(Database_Prop!O$2:'Database_Prop'!O183))),\"\")","v":""},{"$f":"IFERROR(INDEX(Database_Prop!$B$2:$B$1498,SMALL(IF(Database_Prop!$A$2:$A$1498=AS$129,ROW(Database_Prop!$B$2:$B$1498)-ROW(Database_Prop!$B$2)+1),ROWS(Database_Prop!P$2:'Database_Prop'!P183))),\"\")","v":""},{"$f":"IFERROR(INDEX(Database_Prop!$B$2:$B$1498,SMALL(IF(Database_Prop!$A$2:$A$1498=AT$129,ROW(Database_Prop!$B$2:$B$1498)-ROW(Database_Prop!$B$2)+1),ROWS(Database_Prop!Q$2:'Database_Prop'!Q183))),\"\")","v":""},{"$f":"IFERROR(INDEX(Database_Prop!$B$2:$B$1498,SMALL(IF(Database_Prop!$A$2:$A$1498=AU$129,ROW(Database_Prop!$B$2:$B$1498)-ROW(Database_Prop!$B$2)+1),ROWS(Database_Prop!R$2:'Database_Prop'!R183))),\"\")","v":""},{"$f":"IFERROR(INDEX(Database_Prop!$B$2:$B$1498,SMALL(IF(Database_Prop!$A$2:$A$1498=AV$129,ROW(Database_Prop!$B$2:$B$1498)-ROW(Database_Prop!$B$2)+1),ROWS(Database_Prop!S$2:'Database_Prop'!S183))),\"\")","v":""},{"$f":"IFERROR(INDEX(Database_Prop!$B$2:$B$1498,SMALL(IF(Database_Prop!$A$2:$A$1498=AW$129,ROW(Database_Prop!$B$2:$B$1498)-ROW(Database_Prop!$B$2)+1),ROWS(Database_Prop!T$2:'Database_Prop'!T183))),\"\")","v":""},{"$f":"IFERROR(INDEX(Database_Prop!$B$2:$B$1498,SMALL(IF(Database_Prop!$A$2:$A$1498=AX$129,ROW(Database_Prop!$B$2:$B$1498)-ROW(Database_Prop!$B$2)+1),ROWS(Database_Prop!U$2:'Database_Prop'!U183))),\"\")","v":""},{"$f":"IFERROR(INDEX(Database_Prop!$B$2:$B$1498,SMALL(IF(Database_Prop!$A$2:$A$1498=AY$129,ROW(Database_Prop!$B$2:$B$1498)-ROW(Database_Prop!$B$2)+1),ROWS(Database_Prop!V$2:'Database_Prop'!V183))),\"\")","v":""},{"$f":"IFERROR(INDEX(Database_Prop!$B$2:$B$1498,SMALL(IF(Database_Prop!$A$2:$A$1498=AZ$129,ROW(Database_Prop!$B$2:$B$1498)-ROW(Database_Prop!$B$2)+1),ROWS(Database_Prop!W$2:'Database_Prop'!W183))),\"\")","v":""},{"$f":"IFERROR(INDEX(Database_Prop!$B$2:$B$1498,SMALL(IF(Database_Prop!$A$2:$A$1498=BA$129,ROW(Database_Prop!$B$2:$B$1498)-ROW(Database_Prop!$B$2)+1),ROWS(Database_Prop!X$2:'Database_Prop'!X183))),\"\")","v":""},{"$f":"IFERROR(INDEX(Database_Prop!$B$2:$B$1498,SMALL(IF(Database_Prop!$A$2:$A$1498=BB$129,ROW(Database_Prop!$B$2:$B$1498)-ROW(Database_Prop!$B$2)+1),ROWS(Database_Prop!Y$2:'Database_Prop'!Y183))),\"\")","v":""},{"$f":"IFERROR(INDEX(Database_Prop!$B$2:$B$1498,SMALL(IF(Database_Prop!$A$2:$A$1498=BC$129,ROW(Database_Prop!$B$2:$B$1498)-ROW(Database_Prop!$B$2)+1),ROWS(Database_Prop!Z$2:'Database_Prop'!Z183))),\"\")","v":""},null,"Samoa","Oceania"]
[null,null,null,null,null,null,null,null,null,null,null,null,null,null,null,null,null,null,null,null,null,null,null,null,null,null,null,null,null,null,184,{"$f":"IFERROR(INDEX(Database_Prop!$B$2:$B$1498,SMALL(IF(Database_Prop!$A$2:$A$1498=AF$129,ROW(Database_Prop!$B$2:$B$1498)-ROW(Database_Prop!$B$2)+1),ROWS(Database_Prop!C$2:'Database_Prop'!C184))),\"\")","v":""},{"$f":"IFERROR(INDEX(Database_Prop!$B$2:$B$1498,SMALL(IF(Database_Prop!$A$2:$A$1498=AG$129,ROW(Database_Prop!$B$2:$B$1498)-ROW(Database_Prop!$B$2)+1),ROWS(Database_Prop!D$2:'Database_Prop'!D184))),\"\")","v":""},{"$f":"IFERROR(INDEX(Database_Prop!$B$2:$B$1498,SMALL(IF(Database_Prop!$A$2:$A$1498=AH$129,ROW(Database_Prop!$B$2:$B$1498)-ROW(Database_Prop!$B$2)+1),ROWS(Database_Prop!E$2:'Database_Prop'!E184))),\"\")","v":""},{"$f":"IFERROR(INDEX(Database_Prop!$B$2:$B$1498,SMALL(IF(Database_Prop!$A$2:$A$1498=AI$129,ROW(Database_Prop!$B$2:$B$1498)-ROW(Database_Prop!$B$2)+1),ROWS(Database_Prop!F$2:'Database_Prop'!F184))),\"\")","v":""},{"$f":"IFERROR(INDEX(Database_Prop!$B$2:$B$1498,SMALL(IF(Database_Prop!$A$2:$A$1498=AJ$129,ROW(Database_Prop!$B$2:$B$1498)-ROW(Database_Prop!$B$2)+1),ROWS(Database_Prop!G$2:'Database_Prop'!G184))),\"\")","v":""},{"$f":"IFERROR(INDEX(Database_Prop!$B$2:$B$1498,SMALL(IF(Database_Prop!$A$2:$A$1498=AK$129,ROW(Database_Prop!$B$2:$B$1498)-ROW(Database_Prop!$B$2)+1),ROWS(Database_Prop!H$2:'Database_Prop'!H184))),\"\")","v":""},{"$f":"IFERROR(INDEX(Database_Prop!$B$2:$B$1498,SMALL(IF(Database_Prop!$A$2:$A$1498=AL$129,ROW(Database_Prop!$B$2:$B$1498)-ROW(Database_Prop!$B$2)+1),ROWS(Database_Prop!I$2:'Database_Prop'!I184))),\"\")","v":""},{"$f":"IFERROR(INDEX(Database_Prop!$B$2:$B$1498,SMALL(IF(Database_Prop!$A$2:$A$1498=AM$129,ROW(Database_Prop!$B$2:$B$1498)-ROW(Database_Prop!$B$2)+1),ROWS(Database_Prop!J$2:'Database_Prop'!J184))),\"\")","v":""},{"$f":"IFERROR(INDEX(Database_Prop!$B$2:$B$1498,SMALL(IF(Database_Prop!$A$2:$A$1498=AN$129,ROW(Database_Prop!$B$2:$B$1498)-ROW(Database_Prop!$B$2)+1),ROWS(Database_Prop!K$2:'Database_Prop'!K184))),\"\")","v":""},{"$f":"IFERROR(INDEX(Database_Prop!$B$2:$B$1498,SMALL(IF(Database_Prop!$A$2:$A$1498=AO$129,ROW(Database_Prop!$B$2:$B$1498)-ROW(Database_Prop!$B$2)+1),ROWS(Database_Prop!L$2:'Database_Prop'!L184))),\"\")","v":""},{"$f":"IFERROR(INDEX(Database_Prop!$B$2:$B$1498,SMALL(IF(Database_Prop!$A$2:$A$1498=AP$129,ROW(Database_Prop!$B$2:$B$1498)-ROW(Database_Prop!$B$2)+1),ROWS(Database_Prop!M$2:'Database_Prop'!M184))),\"\")","v":""},{"$f":"IFERROR(INDEX(Database_Prop!$B$2:$B$1498,SMALL(IF(Database_Prop!$A$2:$A$1498=AQ$129,ROW(Database_Prop!$B$2:$B$1498)-ROW(Database_Prop!$B$2)+1),ROWS(Database_Prop!N$2:'Database_Prop'!N184))),\"\")","v":""},{"$f":"IFERROR(INDEX(Database_Prop!$B$2:$B$1498,SMALL(IF(Database_Prop!$A$2:$A$1498=AR$129,ROW(Database_Prop!$B$2:$B$1498)-ROW(Database_Prop!$B$2)+1),ROWS(Database_Prop!O$2:'Database_Prop'!O184))),\"\")","v":""},{"$f":"IFERROR(INDEX(Database_Prop!$B$2:$B$1498,SMALL(IF(Database_Prop!$A$2:$A$1498=AS$129,ROW(Database_Prop!$B$2:$B$1498)-ROW(Database_Prop!$B$2)+1),ROWS(Database_Prop!P$2:'Database_Prop'!P184))),\"\")","v":""},{"$f":"IFERROR(INDEX(Database_Prop!$B$2:$B$1498,SMALL(IF(Database_Prop!$A$2:$A$1498=AT$129,ROW(Database_Prop!$B$2:$B$1498)-ROW(Database_Prop!$B$2)+1),ROWS(Database_Prop!Q$2:'Database_Prop'!Q184))),\"\")","v":""},{"$f":"IFERROR(INDEX(Database_Prop!$B$2:$B$1498,SMALL(IF(Database_Prop!$A$2:$A$1498=AU$129,ROW(Database_Prop!$B$2:$B$1498)-ROW(Database_Prop!$B$2)+1),ROWS(Database_Prop!R$2:'Database_Prop'!R184))),\"\")","v":""},{"$f":"IFERROR(INDEX(Database_Prop!$B$2:$B$1498,SMALL(IF(Database_Prop!$A$2:$A$1498=AV$129,ROW(Database_Prop!$B$2:$B$1498)-ROW(Database_Prop!$B$2)+1),ROWS(Database_Prop!S$2:'Database_Prop'!S184))),\"\")","v":""},{"$f":"IFERROR(INDEX(Database_Prop!$B$2:$B$1498,SMALL(IF(Database_Prop!$A$2:$A$1498=AW$129,ROW(Database_Prop!$B$2:$B$1498)-ROW(Database_Prop!$B$2)+1),ROWS(Database_Prop!T$2:'Database_Prop'!T184))),\"\")","v":""},{"$f":"IFERROR(INDEX(Database_Prop!$B$2:$B$1498,SMALL(IF(Database_Prop!$A$2:$A$1498=AX$129,ROW(Database_Prop!$B$2:$B$1498)-ROW(Database_Prop!$B$2)+1),ROWS(Database_Prop!U$2:'Database_Prop'!U184))),\"\")","v":""},{"$f":"IFERROR(INDEX(Database_Prop!$B$2:$B$1498,SMALL(IF(Database_Prop!$A$2:$A$1498=AY$129,ROW(Database_Prop!$B$2:$B$1498)-ROW(Database_Prop!$B$2)+1),ROWS(Database_Prop!V$2:'Database_Prop'!V184))),\"\")","v":""},{"$f":"IFERROR(INDEX(Database_Prop!$B$2:$B$1498,SMALL(IF(Database_Prop!$A$2:$A$1498=AZ$129,ROW(Database_Prop!$B$2:$B$1498)-ROW(Database_Prop!$B$2)+1),ROWS(Database_Prop!W$2:'Database_Prop'!W184))),\"\")","v":""},{"$f":"IFERROR(INDEX(Database_Prop!$B$2:$B$1498,SMALL(IF(Database_Prop!$A$2:$A$1498=BA$129,ROW(Database_Prop!$B$2:$B$1498)-ROW(Database_Prop!$B$2)+1),ROWS(Database_Prop!X$2:'Database_Prop'!X184))),\"\")","v":""},{"$f":"IFERROR(INDEX(Database_Prop!$B$2:$B$1498,SMALL(IF(Database_Prop!$A$2:$A$1498=BB$129,ROW(Database_Prop!$B$2:$B$1498)-ROW(Database_Prop!$B$2)+1),ROWS(Database_Prop!Y$2:'Database_Prop'!Y184))),\"\")","v":""},{"$f":"IFERROR(INDEX(Database_Prop!$B$2:$B$1498,SMALL(IF(Database_Prop!$A$2:$A$1498=BC$129,ROW(Database_Prop!$B$2:$B$1498)-ROW(Database_Prop!$B$2)+1),ROWS(Database_Prop!Z$2:'Database_Prop'!Z184))),\"\")","v":""},null,"San Marino","Western Europe"]
[null,null,null,null,null,null,null,null,null,null,null,null,null,null,null,null,null,null,null,null,null,null,null,null,null,null,null,null,null,null,185,{"$f":"IFERROR(INDEX(Database_Prop!$B$2:$B$1498,SMALL(IF(Database_Prop!$A$2:$A$1498=AF$129,ROW(Database_Prop!$B$2:$B$1498)-ROW(Database_Prop!$B$2)+1),ROWS(Database_Prop!C$2:'Database_Prop'!C185))),\"\")","v":""},{"$f":"IFERROR(INDEX(Database_Prop!$B$2:$B$1498,SMALL(IF(Database_Prop!$A$2:$A$1498=AG$129,ROW(Database_Prop!$B$2:$B$1498)-ROW(Database_Prop!$B$2)+1),ROWS(Database_Prop!D$2:'Database_Prop'!D185))),\"\")","v":""},{"$f":"IFERROR(INDEX(Database_Prop!$B$2:$B$1498,SMALL(IF(Database_Prop!$A$2:$A$1498=AH$129,ROW(Database_Prop!$B$2:$B$1498)-ROW(Database_Prop!$B$2)+1),ROWS(Database_Prop!E$2:'Database_Prop'!E185))),\"\")","v":""},{"$f":"IFERROR(INDEX(Database_Prop!$B$2:$B$1498,SMALL(IF(Database_Prop!$A$2:$A$1498=AI$129,ROW(Database_Prop!$B$2:$B$1498)-ROW(Database_Prop!$B$2)+1),ROWS(Database_Prop!F$2:'Database_Prop'!F185))),\"\")","v":""},{"$f":"IFERROR(INDEX(Database_Prop!$B$2:$B$1498,SMALL(IF(Database_Prop!$A$2:$A$1498=AJ$129,ROW(Database_Prop!$B$2:$B$1498)-ROW(Database_Prop!$B$2)+1),ROWS(Database_Prop!G$2:'Database_Prop'!G185))),\"\")","v":""},{"$f":"IFERROR(INDEX(Database_Prop!$B$2:$B$1498,SMALL(IF(Database_Prop!$A$2:$A$1498=AK$129,ROW(Database_Prop!$B$2:$B$1498)-ROW(Database_Prop!$B$2)+1),ROWS(Database_Prop!H$2:'Database_Prop'!H185))),\"\")","v":""},{"$f":"IFERROR(INDEX(Database_Prop!$B$2:$B$1498,SMALL(IF(Database_Prop!$A$2:$A$1498=AL$129,ROW(Database_Prop!$B$2:$B$1498)-ROW(Database_Prop!$B$2)+1),ROWS(Database_Prop!I$2:'Database_Prop'!I185))),\"\")","v":""},{"$f":"IFERROR(INDEX(Database_Prop!$B$2:$B$1498,SMALL(IF(Database_Prop!$A$2:$A$1498=AM$129,ROW(Database_Prop!$B$2:$B$1498)-ROW(Database_Prop!$B$2)+1),ROWS(Database_Prop!J$2:'Database_Prop'!J185))),\"\")","v":""},{"$f":"IFERROR(INDEX(Database_Prop!$B$2:$B$1498,SMALL(IF(Database_Prop!$A$2:$A$1498=AN$129,ROW(Database_Prop!$B$2:$B$1498)-ROW(Database_Prop!$B$2)+1),ROWS(Database_Prop!K$2:'Database_Prop'!K185))),\"\")","v":""},{"$f":"IFERROR(INDEX(Database_Prop!$B$2:$B$1498,SMALL(IF(Database_Prop!$A$2:$A$1498=AO$129,ROW(Database_Prop!$B$2:$B$1498)-ROW(Database_Prop!$B$2)+1),ROWS(Database_Prop!L$2:'Database_Prop'!L185))),\"\")","v":""},{"$f":"IFERROR(INDEX(Database_Prop!$B$2:$B$1498,SMALL(IF(Database_Prop!$A$2:$A$1498=AP$129,ROW(Database_Prop!$B$2:$B$1498)-ROW(Database_Prop!$B$2)+1),ROWS(Database_Prop!M$2:'Database_Prop'!M185))),\"\")","v":""},{"$f":"IFERROR(INDEX(Database_Prop!$B$2:$B$1498,SMALL(IF(Database_Prop!$A$2:$A$1498=AQ$129,ROW(Database_Prop!$B$2:$B$1498)-ROW(Database_Prop!$B$2)+1),ROWS(Database_Prop!N$2:'Database_Prop'!N185))),\"\")","v":""},{"$f":"IFERROR(INDEX(Database_Prop!$B$2:$B$1498,SMALL(IF(Database_Prop!$A$2:$A$1498=AR$129,ROW(Database_Prop!$B$2:$B$1498)-ROW(Database_Prop!$B$2)+1),ROWS(Database_Prop!O$2:'Database_Prop'!O185))),\"\")","v":""},{"$f":"IFERROR(INDEX(Database_Prop!$B$2:$B$1498,SMALL(IF(Database_Prop!$A$2:$A$1498=AS$129,ROW(Database_Prop!$B$2:$B$1498)-ROW(Database_Prop!$B$2)+1),ROWS(Database_Prop!P$2:'Database_Prop'!P185))),\"\")","v":""},{"$f":"IFERROR(INDEX(Database_Prop!$B$2:$B$1498,SMALL(IF(Database_Prop!$A$2:$A$1498=AT$129,ROW(Database_Prop!$B$2:$B$1498)-ROW(Database_Prop!$B$2)+1),ROWS(Database_Prop!Q$2:'Database_Prop'!Q185))),\"\")","v":""},{"$f":"IFERROR(INDEX(Database_Prop!$B$2:$B$1498,SMALL(IF(Database_Prop!$A$2:$A$1498=AU$129,ROW(Database_Prop!$B$2:$B$1498)-ROW(Database_Prop!$B$2)+1),ROWS(Database_Prop!R$2:'Database_Prop'!R185))),\"\")","v":""},{"$f":"IFERROR(INDEX(Database_Prop!$B$2:$B$1498,SMALL(IF(Database_Prop!$A$2:$A$1498=AV$129,ROW(Database_Prop!$B$2:$B$1498)-ROW(Database_Prop!$B$2)+1),ROWS(Database_Prop!S$2:'Database_Prop'!S185))),\"\")","v":""},{"$f":"IFERROR(INDEX(Database_Prop!$B$2:$B$1498,SMALL(IF(Database_Prop!$A$2:$A$1498=AW$129,ROW(Database_Prop!$B$2:$B$1498)-ROW(Database_Prop!$B$2)+1),ROWS(Database_Prop!T$2:'Database_Prop'!T185))),\"\")","v":""},{"$f":"IFERROR(INDEX(Database_Prop!$B$2:$B$1498,SMALL(IF(Database_Prop!$A$2:$A$1498=AX$129,ROW(Database_Prop!$B$2:$B$1498)-ROW(Database_Prop!$B$2)+1),ROWS(Database_Prop!U$2:'Database_Prop'!U185))),\"\")","v":""},{"$f":"IFERROR(INDEX(Database_Prop!$B$2:$B$1498,SMALL(IF(Database_Prop!$A$2:$A$1498=AY$129,ROW(Database_Prop!$B$2:$B$1498)-ROW(Database_Prop!$B$2)+1),ROWS(Database_Prop!V$2:'Database_Prop'!V185))),\"\")","v":""},{"$f":"IFERROR(INDEX(Database_Prop!$B$2:$B$1498,SMALL(IF(Database_Prop!$A$2:$A$1498=AZ$129,ROW(Database_Prop!$B$2:$B$1498)-ROW(Database_Prop!$B$2)+1),ROWS(Database_Prop!W$2:'Database_Prop'!W185))),\"\")","v":""},{"$f":"IFERROR(INDEX(Database_Prop!$B$2:$B$1498,SMALL(IF(Database_Prop!$A$2:$A$1498=BA$129,ROW(Database_Prop!$B$2:$B$1498)-ROW(Database_Prop!$B$2)+1),ROWS(Database_Prop!X$2:'Database_Prop'!X185))),\"\")","v":""},{"$f":"IFERROR(INDEX(Database_Prop!$B$2:$B$1498,SMALL(IF(Database_Prop!$A$2:$A$1498=BB$129,ROW(Database_Prop!$B$2:$B$1498)-ROW(Database_Prop!$B$2)+1),ROWS(Database_Prop!Y$2:'Database_Prop'!Y185))),\"\")","v":""},{"$f":"IFERROR(INDEX(Database_Prop!$B$2:$B$1498,SMALL(IF(Database_Prop!$A$2:$A$1498=BC$129,ROW(Database_Prop!$B$2:$B$1498)-ROW(Database_Prop!$B$2)+1),ROWS(Database_Prop!Z$2:'Database_Prop'!Z185))),\"\")","v":""},null,"Sao Tome and Principe","Africa"]
[null,null,null,null,null,null,null,null,null,null,null,null,null,null,null,null,null,null,null,null,null,null,null,null,null,null,null,null,null,null,186,{"$f":"IFERROR(INDEX(Database_Prop!$B$2:$B$1498,SMALL(IF(Database_Prop!$A$2:$A$1498=AF$129,ROW(Database_Prop!$B$2:$B$1498)-ROW(Database_Prop!$B$2)+1),ROWS(Database_Prop!C$2:'Database_Prop'!C186))),\"\")","v":""},{"$f":"IFERROR(INDEX(Database_Prop!$B$2:$B$1498,SMALL(IF(Database_Prop!$A$2:$A$1498=AG$129,ROW(Database_Prop!$B$2:$B$1498)-ROW(Database_Prop!$B$2)+1),ROWS(Database_Prop!D$2:'Database_Prop'!D186))),\"\")","v":""},{"$f":"IFERROR(INDEX(Database_Prop!$B$2:$B$1498,SMALL(IF(Database_Prop!$A$2:$A$1498=AH$129,ROW(Database_Prop!$B$2:$B$1498)-ROW(Database_Prop!$B$2)+1),ROWS(Database_Prop!E$2:'Database_Prop'!E186))),\"\")","v":""},{"$f":"IFERROR(INDEX(Database_Prop!$B$2:$B$1498,SMALL(IF(Database_Prop!$A$2:$A$1498=AI$129,ROW(Database_Prop!$B$2:$B$1498)-ROW(Database_Prop!$B$2)+1),ROWS(Database_Prop!F$2:'Database_Prop'!F186))),\"\")","v":""},{"$f":"IFERROR(INDEX(Database_Prop!$B$2:$B$1498,SMALL(IF(Database_Prop!$A$2:$A$1498=AJ$129,ROW(Database_Prop!$B$2:$B$1498)-ROW(Database_Prop!$B$2)+1),ROWS(Database_Prop!G$2:'Database_Prop'!G186))),\"\")","v":""},{"$f":"IFERROR(INDEX(Database_Prop!$B$2:$B$1498,SMALL(IF(Database_Prop!$A$2:$A$1498=AK$129,ROW(Database_Prop!$B$2:$B$1498)-ROW(Database_Prop!$B$2)+1),ROWS(Database_Prop!H$2:'Database_Prop'!H186))),\"\")","v":""},{"$f":"IFERROR(INDEX(Database_Prop!$B$2:$B$1498,SMALL(IF(Database_Prop!$A$2:$A$1498=AL$129,ROW(Database_Prop!$B$2:$B$1498)-ROW(Database_Prop!$B$2)+1),ROWS(Database_Prop!I$2:'Database_Prop'!I186))),\"\")","v":""},{"$f":"IFERROR(INDEX(Database_Prop!$B$2:$B$1498,SMALL(IF(Database_Prop!$A$2:$A$1498=AM$129,ROW(Database_Prop!$B$2:$B$1498)-ROW(Database_Prop!$B$2)+1),ROWS(Database_Prop!J$2:'Database_Prop'!J186))),\"\")","v":""},{"$f":"IFERROR(INDEX(Database_Prop!$B$2:$B$1498,SMALL(IF(Database_Prop!$A$2:$A$1498=AN$129,ROW(Database_Prop!$B$2:$B$1498)-ROW(Database_Prop!$B$2)+1),ROWS(Database_Prop!K$2:'Database_Prop'!K186))),\"\")","v":""},{"$f":"IFERROR(INDEX(Database_Prop!$B$2:$B$1498,SMALL(IF(Database_Prop!$A$2:$A$1498=AO$129,ROW(Database_Prop!$B$2:$B$1498)-ROW(Database_Prop!$B$2)+1),ROWS(Database_Prop!L$2:'Database_Prop'!L186))),\"\")","v":""},{"$f":"IFERROR(INDEX(Database_Prop!$B$2:$B$1498,SMALL(IF(Database_Prop!$A$2:$A$1498=AP$129,ROW(Database_Prop!$B$2:$B$1498)-ROW(Database_Prop!$B$2)+1),ROWS(Database_Prop!M$2:'Database_Prop'!M186))),\"\")","v":""},{"$f":"IFERROR(INDEX(Database_Prop!$B$2:$B$1498,SMALL(IF(Database_Prop!$A$2:$A$1498=AQ$129,ROW(Database_Prop!$B$2:$B$1498)-ROW(Database_Prop!$B$2)+1),ROWS(Database_Prop!N$2:'Database_Prop'!N186))),\"\")","v":""},{"$f":"IFERROR(INDEX(Database_Prop!$B$2:$B$1498,SMALL(IF(Database_Prop!$A$2:$A$1498=AR$129,ROW(Database_Prop!$B$2:$B$1498)-ROW(Database_Prop!$B$2)+1),ROWS(Database_Prop!O$2:'Database_Prop'!O186))),\"\")","v":""},{"$f":"IFERROR(INDEX(Database_Prop!$B$2:$B$1498,SMALL(IF(Database_Prop!$A$2:$A$1498=AS$129,ROW(Database_Prop!$B$2:$B$1498)-ROW(Database_Prop!$B$2)+1),ROWS(Database_Prop!P$2:'Database_Prop'!P186))),\"\")","v":""},{"$f":"IFERROR(INDEX(Database_Prop!$B$2:$B$1498,SMALL(IF(Database_Prop!$A$2:$A$1498=AT$129,ROW(Database_Prop!$B$2:$B$1498)-ROW(Database_Prop!$B$2)+1),ROWS(Database_Prop!Q$2:'Database_Prop'!Q186))),\"\")","v":""},{"$f":"IFERROR(INDEX(Database_Prop!$B$2:$B$1498,SMALL(IF(Database_Prop!$A$2:$A$1498=AU$129,ROW(Database_Prop!$B$2:$B$1498)-ROW(Database_Prop!$B$2)+1),ROWS(Database_Prop!R$2:'Database_Prop'!R186))),\"\")","v":""},{"$f":"IFERROR(INDEX(Database_Prop!$B$2:$B$1498,SMALL(IF(Database_Prop!$A$2:$A$1498=AV$129,ROW(Database_Prop!$B$2:$B$1498)-ROW(Database_Prop!$B$2)+1),ROWS(Database_Prop!S$2:'Database_Prop'!S186))),\"\")","v":""},{"$f":"IFERROR(INDEX(Database_Prop!$B$2:$B$1498,SMALL(IF(Database_Prop!$A$2:$A$1498=AW$129,ROW(Database_Prop!$B$2:$B$1498)-ROW(Database_Prop!$B$2)+1),ROWS(Database_Prop!T$2:'Database_Prop'!T186))),\"\")","v":""},{"$f":"IFERROR(INDEX(Database_Prop!$B$2:$B$1498,SMALL(IF(Database_Prop!$A$2:$A$1498=AX$129,ROW(Database_Prop!$B$2:$B$1498)-ROW(Database_Prop!$B$2)+1),ROWS(Database_Prop!U$2:'Database_Prop'!U186))),\"\")","v":""},{"$f":"IFERROR(INDEX(Database_Prop!$B$2:$B$1498,SMALL(IF(Database_Prop!$A$2:$A$1498=AY$129,ROW(Database_Prop!$B$2:$B$1498)-ROW(Database_Prop!$B$2)+1),ROWS(Database_Prop!V$2:'Database_Prop'!V186))),\"\")","v":""},{"$f":"IFERROR(INDEX(Database_Prop!$B$2:$B$1498,SMALL(IF(Database_Prop!$A$2:$A$1498=AZ$129,ROW(Database_Prop!$B$2:$B$1498)-ROW(Database_Prop!$B$2)+1),ROWS(Database_Prop!W$2:'Database_Prop'!W186))),\"\")","v":""},{"$f":"IFERROR(INDEX(Database_Prop!$B$2:$B$1498,SMALL(IF(Database_Prop!$A$2:$A$1498=BA$129,ROW(Database_Prop!$B$2:$B$1498)-ROW(Database_Prop!$B$2)+1),ROWS(Database_Prop!X$2:'Database_Prop'!X186))),\"\")","v":""},{"$f":"IFERROR(INDEX(Database_Prop!$B$2:$B$1498,SMALL(IF(Database_Prop!$A$2:$A$1498=BB$129,ROW(Database_Prop!$B$2:$B$1498)-ROW(Database_Prop!$B$2)+1),ROWS(Database_Prop!Y$2:'Database_Prop'!Y186))),\"\")","v":""},{"$f":"IFERROR(INDEX(Database_Prop!$B$2:$B$1498,SMALL(IF(Database_Prop!$A$2:$A$1498=BC$129,ROW(Database_Prop!$B$2:$B$1498)-ROW(Database_Prop!$B$2)+1),ROWS(Database_Prop!Z$2:'Database_Prop'!Z186))),\"\")","v":""},null,"Sark","Western Europe"]
[null,null,null,null,null,null,null,null,null,null,null,null,null,null,null,null,null,null,null,null,null,null,null,null,null,null,null,null,null,null,187,{"$f":"IFERROR(INDEX(Database_Prop!$B$2:$B$1498,SMALL(IF(Database_Prop!$A$2:$A$1498=AF$129,ROW(Database_Prop!$B$2:$B$1498)-ROW(Database_Prop!$B$2)+1),ROWS(Database_Prop!C$2:'Database_Prop'!C187))),\"\")","v":""},{"$f":"IFERROR(INDEX(Database_Prop!$B$2:$B$1498,SMALL(IF(Database_Prop!$A$2:$A$1498=AG$129,ROW(Database_Prop!$B$2:$B$1498)-ROW(Database_Prop!$B$2)+1),ROWS(Database_Prop!D$2:'Database_Prop'!D187))),\"\")","v":""},{"$f":"IFERROR(INDEX(Database_Prop!$B$2:$B$1498,SMALL(IF(Database_Prop!$A$2:$A$1498=AH$129,ROW(Database_Prop!$B$2:$B$1498)-ROW(Database_Prop!$B$2)+1),ROWS(Database_Prop!E$2:'Database_Prop'!E187))),\"\")","v":""},{"$f":"IFERROR(INDEX(Database_Prop!$B$2:$B$1498,SMALL(IF(Database_Prop!$A$2:$A$1498=AI$129,ROW(Database_Prop!$B$2:$B$1498)-ROW(Database_Prop!$B$2)+1),ROWS(Database_Prop!F$2:'Database_Prop'!F187))),\"\")","v":""},{"$f":"IFERROR(INDEX(Database_Prop!$B$2:$B$1498,SMALL(IF(Database_Prop!$A$2:$A$1498=AJ$129,ROW(Database_Prop!$B$2:$B$1498)-ROW(Database_Prop!$B$2)+1),ROWS(Database_Prop!G$2:'Database_Prop'!G187))),\"\")","v":""},{"$f":"IFERROR(INDEX(Database_Prop!$B$2:$B$1498,SMALL(IF(Database_Prop!$A$2:$A$1498=AK$129,ROW(Database_Prop!$B$2:$B$1498)-ROW(Database_Prop!$B$2)+1),ROWS(Database_Prop!H$2:'Database_Prop'!H187))),\"\")","v":""},{"$f":"IFERROR(INDEX(Database_Prop!$B$2:$B$1498,SMALL(IF(Database_Prop!$A$2:$A$1498=AL$129,ROW(Database_Prop!$B$2:$B$1498)-ROW(Database_Prop!$B$2)+1),ROWS(Database_Prop!I$2:'Database_Prop'!I187))),\"\")","v":""},{"$f":"IFERROR(INDEX(Database_Prop!$B$2:$B$1498,SMALL(IF(Database_Prop!$A$2:$A$1498=AM$129,ROW(Database_Prop!$B$2:$B$1498)-ROW(Database_Prop!$B$2)+1),ROWS(Database_Prop!J$2:'Database_Prop'!J187))),\"\")","v":""},{"$f":"IFERROR(INDEX(Database_Prop!$B$2:$B$1498,SMALL(IF(Database_Prop!$A$2:$A$1498=AN$129,ROW(Database_Prop!$B$2:$B$1498)-ROW(Database_Prop!$B$2)+1),ROWS(Database_Prop!K$2:'Database_Prop'!K187))),\"\")","v":""},{"$f":"IFERROR(INDEX(Database_Prop!$B$2:$B$1498,SMALL(IF(Database_Prop!$A$2:$A$1498=AO$129,ROW(Database_Prop!$B$2:$B$1498)-ROW(Database_Prop!$B$2)+1),ROWS(Database_Prop!L$2:'Database_Prop'!L187))),\"\")","v":""},{"$f":"IFERROR(INDEX(Database_Prop!$B$2:$B$1498,SMALL(IF(Database_Prop!$A$2:$A$1498=AP$129,ROW(Database_Prop!$B$2:$B$1498)-ROW(Database_Prop!$B$2)+1),ROWS(Database_Prop!M$2:'Database_Prop'!M187))),\"\")","v":""},{"$f":"IFERROR(INDEX(Database_Prop!$B$2:$B$1498,SMALL(IF(Database_Prop!$A$2:$A$1498=AQ$129,ROW(Database_Prop!$B$2:$B$1498)-ROW(Database_Prop!$B$2)+1),ROWS(Database_Prop!N$2:'Database_Prop'!N187))),\"\")","v":""},{"$f":"IFERROR(INDEX(Database_Prop!$B$2:$B$1498,SMALL(IF(Database_Prop!$A$2:$A$1498=AR$129,ROW(Database_Prop!$B$2:$B$1498)-ROW(Database_Prop!$B$2)+1),ROWS(Database_Prop!O$2:'Database_Prop'!O187))),\"\")","v":""},{"$f":"IFERROR(INDEX(Database_Prop!$B$2:$B$1498,SMALL(IF(Database_Prop!$A$2:$A$1498=AS$129,ROW(Database_Prop!$B$2:$B$1498)-ROW(Database_Prop!$B$2)+1),ROWS(Database_Prop!P$2:'Database_Prop'!P187))),\"\")","v":""},{"$f":"IFERROR(INDEX(Database_Prop!$B$2:$B$1498,SMALL(IF(Database_Prop!$A$2:$A$1498=AT$129,ROW(Database_Prop!$B$2:$B$1498)-ROW(Database_Prop!$B$2)+1),ROWS(Database_Prop!Q$2:'Database_Prop'!Q187))),\"\")","v":""},{"$f":"IFERROR(INDEX(Database_Prop!$B$2:$B$1498,SMALL(IF(Database_Prop!$A$2:$A$1498=AU$129,ROW(Database_Prop!$B$2:$B$1498)-ROW(Database_Prop!$B$2)+1),ROWS(Database_Prop!R$2:'Database_Prop'!R187))),\"\")","v":""},{"$f":"IFERROR(INDEX(Database_Prop!$B$2:$B$1498,SMALL(IF(Database_Prop!$A$2:$A$1498=AV$129,ROW(Database_Prop!$B$2:$B$1498)-ROW(Database_Prop!$B$2)+1),ROWS(Database_Prop!S$2:'Database_Prop'!S187))),\"\")","v":""},{"$f":"IFERROR(INDEX(Database_Prop!$B$2:$B$1498,SMALL(IF(Database_Prop!$A$2:$A$1498=AW$129,ROW(Database_Prop!$B$2:$B$1498)-ROW(Database_Prop!$B$2)+1),ROWS(Database_Prop!T$2:'Database_Prop'!T187))),\"\")","v":""},{"$f":"IFERROR(INDEX(Database_Prop!$B$2:$B$1498,SMALL(IF(Database_Prop!$A$2:$A$1498=AX$129,ROW(Database_Prop!$B$2:$B$1498)-ROW(Database_Prop!$B$2)+1),ROWS(Database_Prop!U$2:'Database_Prop'!U187))),\"\")","v":""},{"$f":"IFERROR(INDEX(Database_Prop!$B$2:$B$1498,SMALL(IF(Database_Prop!$A$2:$A$1498=AY$129,ROW(Database_Prop!$B$2:$B$1498)-ROW(Database_Prop!$B$2)+1),ROWS(Database_Prop!V$2:'Database_Prop'!V187))),\"\")","v":""},{"$f":"IFERROR(INDEX(Database_Prop!$B$2:$B$1498,SMALL(IF(Database_Prop!$A$2:$A$1498=AZ$129,ROW(Database_Prop!$B$2:$B$1498)-ROW(Database_Prop!$B$2)+1),ROWS(Database_Prop!W$2:'Database_Prop'!W187))),\"\")","v":""},{"$f":"IFERROR(INDEX(Database_Prop!$B$2:$B$1498,SMALL(IF(Database_Prop!$A$2:$A$1498=BA$129,ROW(Database_Prop!$B$2:$B$1498)-ROW(Database_Prop!$B$2)+1),ROWS(Database_Prop!X$2:'Database_Prop'!X187))),\"\")","v":""},{"$f":"IFERROR(INDEX(Database_Prop!$B$2:$B$1498,SMALL(IF(Database_Prop!$A$2:$A$1498=BB$129,ROW(Database_Prop!$B$2:$B$1498)-ROW(Database_Prop!$B$2)+1),ROWS(Database_Prop!Y$2:'Database_Prop'!Y187))),\"\")","v":""},{"$f":"IFERROR(INDEX(Database_Prop!$B$2:$B$1498,SMALL(IF(Database_Prop!$A$2:$A$1498=BC$129,ROW(Database_Prop!$B$2:$B$1498)-ROW(Database_Prop!$B$2)+1),ROWS(Database_Prop!Z$2:'Database_Prop'!Z187))),\"\")","v":""},null,"Saudi Arabia","Middle East"]
[null,null,null,null,null,null,null,null,null,null,null,null,null,null,null,null,null,null,null,null,null,null,null,null,null,null,null,null,null,null,188,{"$f":"IFERROR(INDEX(Database_Prop!$B$2:$B$1498,SMALL(IF(Database_Prop!$A$2:$A$1498=AF$129,ROW(Database_Prop!$B$2:$B$1498)-ROW(Database_Prop!$B$2)+1),ROWS(Database_Prop!C$2:'Database_Prop'!C188))),\"\")","v":""},{"$f":"IFERROR(INDEX(Database_Prop!$B$2:$B$1498,SMALL(IF(Database_Prop!$A$2:$A$1498=AG$129,ROW(Database_Prop!$B$2:$B$1498)-ROW(Database_Prop!$B$2)+1),ROWS(Database_Prop!D$2:'Database_Prop'!D188))),\"\")","v":""},{"$f":"IFERROR(INDEX(Database_Prop!$B$2:$B$1498,SMALL(IF(Database_Prop!$A$2:$A$1498=AH$129,ROW(Database_Prop!$B$2:$B$1498)-ROW(Database_Prop!$B$2)+1),ROWS(Database_Prop!E$2:'Database_Prop'!E188))),\"\")","v":""},{"$f":"IFERROR(INDEX(Database_Prop!$B$2:$B$1498,SMALL(IF(Database_Prop!$A$2:$A$1498=AI$129,ROW(Database_Prop!$B$2:$B$1498)-ROW(Database_Prop!$B$2)+1),ROWS(Database_Prop!F$2:'Database_Prop'!F188))),\"\")","v":""},{"$f":"IFERROR(INDEX(Database_Prop!$B$2:$B$1498,SMALL(IF(Database_Prop!$A$2:$A$1498=AJ$129,ROW(Database_Prop!$B$2:$B$1498)-ROW(Database_Prop!$B$2)+1),ROWS(Database_Prop!G$2:'Database_Prop'!G188))),\"\")","v":""},{"$f":"IFERROR(INDEX(Database_Prop!$B$2:$B$1498,SMALL(IF(Database_Prop!$A$2:$A$1498=AK$129,ROW(Database_Prop!$B$2:$B$1498)-ROW(Database_Prop!$B$2)+1),ROWS(Database_Prop!H$2:'Database_Prop'!H188))),\"\")","v":""},{"$f":"IFERROR(INDEX(Database_Prop!$B$2:$B$1498,SMALL(IF(Database_Prop!$A$2:$A$1498=AL$129,ROW(Database_Prop!$B$2:$B$1498)-ROW(Database_Prop!$B$2)+1),ROWS(Database_Prop!I$2:'Database_Prop'!I188))),\"\")","v":""},{"$f":"IFERROR(INDEX(Database_Prop!$B$2:$B$1498,SMALL(IF(Database_Prop!$A$2:$A$1498=AM$129,ROW(Database_Prop!$B$2:$B$1498)-ROW(Database_Prop!$B$2)+1),ROWS(Database_Prop!J$2:'Database_Prop'!J188))),\"\")","v":""},{"$f":"IFERROR(INDEX(Database_Prop!$B$2:$B$1498,SMALL(IF(Database_Prop!$A$2:$A$1498=AN$129,ROW(Database_Prop!$B$2:$B$1498)-ROW(Database_Prop!$B$2)+1),ROWS(Database_Prop!K$2:'Database_Prop'!K188))),\"\")","v":""},{"$f":"IFERROR(INDEX(Database_Prop!$B$2:$B$1498,SMALL(IF(Database_Prop!$A$2:$A$1498=AO$129,ROW(Database_Prop!$B$2:$B$1498)-ROW(Database_Prop!$B$2)+1),ROWS(Database_Prop!L$2:'Database_Prop'!L188))),\"\")","v":""},{"$f":"IFERROR(INDEX(Database_Prop!$B$2:$B$1498,SMALL(IF(Database_Prop!$A$2:$A$1498=AP$129,ROW(Database_Prop!$B$2:$B$1498)-ROW(Database_Prop!$B$2)+1),ROWS(Database_Prop!M$2:'Database_Prop'!M188))),\"\")","v":""},{"$f":"IFERROR(INDEX(Database_Prop!$B$2:$B$1498,SMALL(IF(Database_Prop!$A$2:$A$1498=AQ$129,ROW(Database_Prop!$B$2:$B$1498)-ROW(Database_Prop!$B$2)+1),ROWS(Database_Prop!N$2:'Database_Prop'!N188))),\"\")","v":""},{"$f":"IFERROR(INDEX(Database_Prop!$B$2:$B$1498,SMALL(IF(Database_Prop!$A$2:$A$1498=AR$129,ROW(Database_Prop!$B$2:$B$1498)-ROW(Database_Prop!$B$2)+1),ROWS(Database_Prop!O$2:'Database_Prop'!O188))),\"\")","v":""},{"$f":"IFERROR(INDEX(Database_Prop!$B$2:$B$1498,SMALL(IF(Database_Prop!$A$2:$A$1498=AS$129,ROW(Database_Prop!$B$2:$B$1498)-ROW(Database_Prop!$B$2)+1),ROWS(Database_Prop!P$2:'Database_Prop'!P188))),\"\")","v":""},{"$f":"IFERROR(INDEX(Database_Prop!$B$2:$B$1498,SMALL(IF(Database_Prop!$A$2:$A$1498=AT$129,ROW(Database_Prop!$B$2:$B$1498)-ROW(Database_Prop!$B$2)+1),ROWS(Database_Prop!Q$2:'Database_Prop'!Q188))),\"\")","v":""},{"$f":"IFERROR(INDEX(Database_Prop!$B$2:$B$1498,SMALL(IF(Database_Prop!$A$2:$A$1498=AU$129,ROW(Database_Prop!$B$2:$B$1498)-ROW(Database_Prop!$B$2)+1),ROWS(Database_Prop!R$2:'Database_Prop'!R188))),\"\")","v":""},{"$f":"IFERROR(INDEX(Database_Prop!$B$2:$B$1498,SMALL(IF(Database_Prop!$A$2:$A$1498=AV$129,ROW(Database_Prop!$B$2:$B$1498)-ROW(Database_Prop!$B$2)+1),ROWS(Database_Prop!S$2:'Database_Prop'!S188))),\"\")","v":""},{"$f":"IFERROR(INDEX(Database_Prop!$B$2:$B$1498,SMALL(IF(Database_Prop!$A$2:$A$1498=AW$129,ROW(Database_Prop!$B$2:$B$1498)-ROW(Database_Prop!$B$2)+1),ROWS(Database_Prop!T$2:'Database_Prop'!T188))),\"\")","v":""},{"$f":"IFERROR(INDEX(Database_Prop!$B$2:$B$1498,SMALL(IF(Database_Prop!$A$2:$A$1498=AX$129,ROW(Database_Prop!$B$2:$B$1498)-ROW(Database_Prop!$B$2)+1),ROWS(Database_Prop!U$2:'Database_Prop'!U188))),\"\")","v":""},{"$f":"IFERROR(INDEX(Database_Prop!$B$2:$B$1498,SMALL(IF(Database_Prop!$A$2:$A$1498=AY$129,ROW(Database_Prop!$B$2:$B$1498)-ROW(Database_Prop!$B$2)+1),ROWS(Database_Prop!V$2:'Database_Prop'!V188))),\"\")","v":""},{"$f":"IFERROR(INDEX(Database_Prop!$B$2:$B$1498,SMALL(IF(Database_Prop!$A$2:$A$1498=AZ$129,ROW(Database_Prop!$B$2:$B$1498)-ROW(Database_Prop!$B$2)+1),ROWS(Database_Prop!W$2:'Database_Prop'!W188))),\"\")","v":""},{"$f":"IFERROR(INDEX(Database_Prop!$B$2:$B$1498,SMALL(IF(Database_Prop!$A$2:$A$1498=BA$129,ROW(Database_Prop!$B$2:$B$1498)-ROW(Database_Prop!$B$2)+1),ROWS(Database_Prop!X$2:'Database_Prop'!X188))),\"\")","v":""},{"$f":"IFERROR(INDEX(Database_Prop!$B$2:$B$1498,SMALL(IF(Database_Prop!$A$2:$A$1498=BB$129,ROW(Database_Prop!$B$2:$B$1498)-ROW(Database_Prop!$B$2)+1),ROWS(Database_Prop!Y$2:'Database_Prop'!Y188))),\"\")","v":""},{"$f":"IFERROR(INDEX(Database_Prop!$B$2:$B$1498,SMALL(IF(Database_Prop!$A$2:$A$1498=BC$129,ROW(Database_Prop!$B$2:$B$1498)-ROW(Database_Prop!$B$2)+1),ROWS(Database_Prop!Z$2:'Database_Prop'!Z188))),\"\")","v":""},null,"Senegal","Africa"]
[null,null,null,null,null,null,null,null,null,null,null,null,null,null,null,null,null,null,null,null,null,null,null,null,null,null,null,null,null,null,189,{"$f":"IFERROR(INDEX(Database_Prop!$B$2:$B$1498,SMALL(IF(Database_Prop!$A$2:$A$1498=AF$129,ROW(Database_Prop!$B$2:$B$1498)-ROW(Database_Prop!$B$2)+1),ROWS(Database_Prop!C$2:'Database_Prop'!C189))),\"\")","v":""},{"$f":"IFERROR(INDEX(Database_Prop!$B$2:$B$1498,SMALL(IF(Database_Prop!$A$2:$A$1498=AG$129,ROW(Database_Prop!$B$2:$B$1498)-ROW(Database_Prop!$B$2)+1),ROWS(Database_Prop!D$2:'Database_Prop'!D189))),\"\")","v":""},{"$f":"IFERROR(INDEX(Database_Prop!$B$2:$B$1498,SMALL(IF(Database_Prop!$A$2:$A$1498=AH$129,ROW(Database_Prop!$B$2:$B$1498)-ROW(Database_Prop!$B$2)+1),ROWS(Database_Prop!E$2:'Database_Prop'!E189))),\"\")","v":""},{"$f":"IFERROR(INDEX(Database_Prop!$B$2:$B$1498,SMALL(IF(Database_Prop!$A$2:$A$1498=AI$129,ROW(Database_Prop!$B$2:$B$1498)-ROW(Database_Prop!$B$2)+1),ROWS(Database_Prop!F$2:'Database_Prop'!F189))),\"\")","v":""},{"$f":"IFERROR(INDEX(Database_Prop!$B$2:$B$1498,SMALL(IF(Database_Prop!$A$2:$A$1498=AJ$129,ROW(Database_Prop!$B$2:$B$1498)-ROW(Database_Prop!$B$2)+1),ROWS(Database_Prop!G$2:'Database_Prop'!G189))),\"\")","v":""},{"$f":"IFERROR(INDEX(Database_Prop!$B$2:$B$1498,SMALL(IF(Database_Prop!$A$2:$A$1498=AK$129,ROW(Database_Prop!$B$2:$B$1498)-ROW(Database_Prop!$B$2)+1),ROWS(Database_Prop!H$2:'Database_Prop'!H189))),\"\")","v":""},{"$f":"IFERROR(INDEX(Database_Prop!$B$2:$B$1498,SMALL(IF(Database_Prop!$A$2:$A$1498=AL$129,ROW(Database_Prop!$B$2:$B$1498)-ROW(Database_Prop!$B$2)+1),ROWS(Database_Prop!I$2:'Database_Prop'!I189))),\"\")","v":""},{"$f":"IFERROR(INDEX(Database_Prop!$B$2:$B$1498,SMALL(IF(Database_Prop!$A$2:$A$1498=AM$129,ROW(Database_Prop!$B$2:$B$1498)-ROW(Database_Prop!$B$2)+1),ROWS(Database_Prop!J$2:'Database_Prop'!J189))),\"\")","v":""},{"$f":"IFERROR(INDEX(Database_Prop!$B$2:$B$1498,SMALL(IF(Database_Prop!$A$2:$A$1498=AN$129,ROW(Database_Prop!$B$2:$B$1498)-ROW(Database_Prop!$B$2)+1),ROWS(Database_Prop!K$2:'Database_Prop'!K189))),\"\")","v":""},{"$f":"IFERROR(INDEX(Database_Prop!$B$2:$B$1498,SMALL(IF(Database_Prop!$A$2:$A$1498=AO$129,ROW(Database_Prop!$B$2:$B$1498)-ROW(Database_Prop!$B$2)+1),ROWS(Database_Prop!L$2:'Database_Prop'!L189))),\"\")","v":""},{"$f":"IFERROR(INDEX(Database_Prop!$B$2:$B$1498,SMALL(IF(Database_Prop!$A$2:$A$1498=AP$129,ROW(Database_Prop!$B$2:$B$1498)-ROW(Database_Prop!$B$2)+1),ROWS(Database_Prop!M$2:'Database_Prop'!M189))),\"\")","v":""},{"$f":"IFERROR(INDEX(Database_Prop!$B$2:$B$1498,SMALL(IF(Database_Prop!$A$2:$A$1498=AQ$129,ROW(Database_Prop!$B$2:$B$1498)-ROW(Database_Prop!$B$2)+1),ROWS(Database_Prop!N$2:'Database_Prop'!N189))),\"\")","v":""},{"$f":"IFERROR(INDEX(Database_Prop!$B$2:$B$1498,SMALL(IF(Database_Prop!$A$2:$A$1498=AR$129,ROW(Database_Prop!$B$2:$B$1498)-ROW(Database_Prop!$B$2)+1),ROWS(Database_Prop!O$2:'Database_Prop'!O189))),\"\")","v":""},{"$f":"IFERROR(INDEX(Database_Prop!$B$2:$B$1498,SMALL(IF(Database_Prop!$A$2:$A$1498=AS$129,ROW(Database_Prop!$B$2:$B$1498)-ROW(Database_Prop!$B$2)+1),ROWS(Database_Prop!P$2:'Database_Prop'!P189))),\"\")","v":""},{"$f":"IFERROR(INDEX(Database_Prop!$B$2:$B$1498,SMALL(IF(Database_Prop!$A$2:$A$1498=AT$129,ROW(Database_Prop!$B$2:$B$1498)-ROW(Database_Prop!$B$2)+1),ROWS(Database_Prop!Q$2:'Database_Prop'!Q189))),\"\")","v":""},{"$f":"IFERROR(INDEX(Database_Prop!$B$2:$B$1498,SMALL(IF(Database_Prop!$A$2:$A$1498=AU$129,ROW(Database_Prop!$B$2:$B$1498)-ROW(Database_Prop!$B$2)+1),ROWS(Database_Prop!R$2:'Database_Prop'!R189))),\"\")","v":""},{"$f":"IFERROR(INDEX(Database_Prop!$B$2:$B$1498,SMALL(IF(Database_Prop!$A$2:$A$1498=AV$129,ROW(Database_Prop!$B$2:$B$1498)-ROW(Database_Prop!$B$2)+1),ROWS(Database_Prop!S$2:'Database_Prop'!S189))),\"\")","v":""},{"$f":"IFERROR(INDEX(Database_Prop!$B$2:$B$1498,SMALL(IF(Database_Prop!$A$2:$A$1498=AW$129,ROW(Database_Prop!$B$2:$B$1498)-ROW(Database_Prop!$B$2)+1),ROWS(Database_Prop!T$2:'Database_Prop'!T189))),\"\")","v":""},{"$f":"IFERROR(INDEX(Database_Prop!$B$2:$B$1498,SMALL(IF(Database_Prop!$A$2:$A$1498=AX$129,ROW(Database_Prop!$B$2:$B$1498)-ROW(Database_Prop!$B$2)+1),ROWS(Database_Prop!U$2:'Database_Prop'!U189))),\"\")","v":""},{"$f":"IFERROR(INDEX(Database_Prop!$B$2:$B$1498,SMALL(IF(Database_Prop!$A$2:$A$1498=AY$129,ROW(Database_Prop!$B$2:$B$1498)-ROW(Database_Prop!$B$2)+1),ROWS(Database_Prop!V$2:'Database_Prop'!V189))),\"\")","v":""},{"$f":"IFERROR(INDEX(Database_Prop!$B$2:$B$1498,SMALL(IF(Database_Prop!$A$2:$A$1498=AZ$129,ROW(Database_Prop!$B$2:$B$1498)-ROW(Database_Prop!$B$2)+1),ROWS(Database_Prop!W$2:'Database_Prop'!W189))),\"\")","v":""},{"$f":"IFERROR(INDEX(Database_Prop!$B$2:$B$1498,SMALL(IF(Database_Prop!$A$2:$A$1498=BA$129,ROW(Database_Prop!$B$2:$B$1498)-ROW(Database_Prop!$B$2)+1),ROWS(Database_Prop!X$2:'Database_Prop'!X189))),\"\")","v":""},{"$f":"IFERROR(INDEX(Database_Prop!$B$2:$B$1498,SMALL(IF(Database_Prop!$A$2:$A$1498=BB$129,ROW(Database_Prop!$B$2:$B$1498)-ROW(Database_Prop!$B$2)+1),ROWS(Database_Prop!Y$2:'Database_Prop'!Y189))),\"\")","v":""},{"$f":"IFERROR(INDEX(Database_Prop!$B$2:$B$1498,SMALL(IF(Database_Prop!$A$2:$A$1498=BC$129,ROW(Database_Prop!$B$2:$B$1498)-ROW(Database_Prop!$B$2)+1),ROWS(Database_Prop!Z$2:'Database_Prop'!Z189))),\"\")","v":""},null,"Serbia","Eastern Europe"]
[null,null,null,null,null,null,null,null,null,null,null,null,null,null,null,null,null,null,null,null,null,null,null,null,null,null,null,null,null,null,190,{"$f":"IFERROR(INDEX(Database_Prop!$B$2:$B$1498,SMALL(IF(Database_Prop!$A$2:$A$1498=AF$129,ROW(Database_Prop!$B$2:$B$1498)-ROW(Database_Prop!$B$2)+1),ROWS(Database_Prop!C$2:'Database_Prop'!C190))),\"\")","v":""},{"$f":"IFERROR(INDEX(Database_Prop!$B$2:$B$1498,SMALL(IF(Database_Prop!$A$2:$A$1498=AG$129,ROW(Database_Prop!$B$2:$B$1498)-ROW(Database_Prop!$B$2)+1),ROWS(Database_Prop!D$2:'Database_Prop'!D190))),\"\")","v":""},{"$f":"IFERROR(INDEX(Database_Prop!$B$2:$B$1498,SMALL(IF(Database_Prop!$A$2:$A$1498=AH$129,ROW(Database_Prop!$B$2:$B$1498)-ROW(Database_Prop!$B$2)+1),ROWS(Database_Prop!E$2:'Database_Prop'!E190))),\"\")","v":""},{"$f":"IFERROR(INDEX(Database_Prop!$B$2:$B$1498,SMALL(IF(Database_Prop!$A$2:$A$1498=AI$129,ROW(Database_Prop!$B$2:$B$1498)-ROW(Database_Prop!$B$2)+1),ROWS(Database_Prop!F$2:'Database_Prop'!F190))),\"\")","v":""},{"$f":"IFERROR(INDEX(Database_Prop!$B$2:$B$1498,SMALL(IF(Database_Prop!$A$2:$A$1498=AJ$129,ROW(Database_Prop!$B$2:$B$1498)-ROW(Database_Prop!$B$2)+1),ROWS(Database_Prop!G$2:'Database_Prop'!G190))),\"\")","v":""},{"$f":"IFERROR(INDEX(Database_Prop!$B$2:$B$1498,SMALL(IF(Database_Prop!$A$2:$A$1498=AK$129,ROW(Database_Prop!$B$2:$B$1498)-ROW(Database_Prop!$B$2)+1),ROWS(Database_Prop!H$2:'Database_Prop'!H190))),\"\")","v":""},{"$f":"IFERROR(INDEX(Database_Prop!$B$2:$B$1498,SMALL(IF(Database_Prop!$A$2:$A$1498=AL$129,ROW(Database_Prop!$B$2:$B$1498)-ROW(Database_Prop!$B$2)+1),ROWS(Database_Prop!I$2:'Database_Prop'!I190))),\"\")","v":""},{"$f":"IFERROR(INDEX(Database_Prop!$B$2:$B$1498,SMALL(IF(Database_Prop!$A$2:$A$1498=AM$129,ROW(Database_Prop!$B$2:$B$1498)-ROW(Database_Prop!$B$2)+1),ROWS(Database_Prop!J$2:'Database_Prop'!J190))),\"\")","v":""},{"$f":"IFERROR(INDEX(Database_Prop!$B$2:$B$1498,SMALL(IF(Database_Prop!$A$2:$A$1498=AN$129,ROW(Database_Prop!$B$2:$B$1498)-ROW(Database_Prop!$B$2)+1),ROWS(Database_Prop!K$2:'Database_Prop'!K190))),\"\")","v":""},{"$f":"IFERROR(INDEX(Database_Prop!$B$2:$B$1498,SMALL(IF(Database_Prop!$A$2:$A$1498=AO$129,ROW(Database_Prop!$B$2:$B$1498)-ROW(Database_Prop!$B$2)+1),ROWS(Database_Prop!L$2:'Database_Prop'!L190))),\"\")","v":""},{"$f":"IFERROR(INDEX(Database_Prop!$B$2:$B$1498,SMALL(IF(Database_Prop!$A$2:$A$1498=AP$129,ROW(Database_Prop!$B$2:$B$1498)-ROW(Database_Prop!$B$2)+1),ROWS(Database_Prop!M$2:'Database_Prop'!M190))),\"\")","v":""},{"$f":"IFERROR(INDEX(Database_Prop!$B$2:$B$1498,SMALL(IF(Database_Prop!$A$2:$A$1498=AQ$129,ROW(Database_Prop!$B$2:$B$1498)-ROW(Database_Prop!$B$2)+1),ROWS(Database_Prop!N$2:'Database_Prop'!N190))),\"\")","v":""},{"$f":"IFERROR(INDEX(Database_Prop!$B$2:$B$1498,SMALL(IF(Database_Prop!$A$2:$A$1498=AR$129,ROW(Database_Prop!$B$2:$B$1498)-ROW(Database_Prop!$B$2)+1),ROWS(Database_Prop!O$2:'Database_Prop'!O190))),\"\")","v":""},{"$f":"IFERROR(INDEX(Database_Prop!$B$2:$B$1498,SMALL(IF(Database_Prop!$A$2:$A$1498=AS$129,ROW(Database_Prop!$B$2:$B$1498)-ROW(Database_Prop!$B$2)+1),ROWS(Database_Prop!P$2:'Database_Prop'!P190))),\"\")","v":""},{"$f":"IFERROR(INDEX(Database_Prop!$B$2:$B$1498,SMALL(IF(Database_Prop!$A$2:$A$1498=AT$129,ROW(Database_Prop!$B$2:$B$1498)-ROW(Database_Prop!$B$2)+1),ROWS(Database_Prop!Q$2:'Database_Prop'!Q190))),\"\")","v":""},{"$f":"IFERROR(INDEX(Database_Prop!$B$2:$B$1498,SMALL(IF(Database_Prop!$A$2:$A$1498=AU$129,ROW(Database_Prop!$B$2:$B$1498)-ROW(Database_Prop!$B$2)+1),ROWS(Database_Prop!R$2:'Database_Prop'!R190))),\"\")","v":""},{"$f":"IFERROR(INDEX(Database_Prop!$B$2:$B$1498,SMALL(IF(Database_Prop!$A$2:$A$1498=AV$129,ROW(Database_Prop!$B$2:$B$1498)-ROW(Database_Prop!$B$2)+1),ROWS(Database_Prop!S$2:'Database_Prop'!S190))),\"\")","v":""},{"$f":"IFERROR(INDEX(Database_Prop!$B$2:$B$1498,SMALL(IF(Database_Prop!$A$2:$A$1498=AW$129,ROW(Database_Prop!$B$2:$B$1498)-ROW(Database_Prop!$B$2)+1),ROWS(Database_Prop!T$2:'Database_Prop'!T190))),\"\")","v":""},{"$f":"IFERROR(INDEX(Database_Prop!$B$2:$B$1498,SMALL(IF(Database_Prop!$A$2:$A$1498=AX$129,ROW(Database_Prop!$B$2:$B$1498)-ROW(Database_Prop!$B$2)+1),ROWS(Database_Prop!U$2:'Database_Prop'!U190))),\"\")","v":""},{"$f":"IFERROR(INDEX(Database_Prop!$B$2:$B$1498,SMALL(IF(Database_Prop!$A$2:$A$1498=AY$129,ROW(Database_Prop!$B$2:$B$1498)-ROW(Database_Prop!$B$2)+1),ROWS(Database_Prop!V$2:'Database_Prop'!V190))),\"\")","v":""},{"$f":"IFERROR(INDEX(Database_Prop!$B$2:$B$1498,SMALL(IF(Database_Prop!$A$2:$A$1498=AZ$129,ROW(Database_Prop!$B$2:$B$1498)-ROW(Database_Prop!$B$2)+1),ROWS(Database_Prop!W$2:'Database_Prop'!W190))),\"\")","v":""},{"$f":"IFERROR(INDEX(Database_Prop!$B$2:$B$1498,SMALL(IF(Database_Prop!$A$2:$A$1498=BA$129,ROW(Database_Prop!$B$2:$B$1498)-ROW(Database_Prop!$B$2)+1),ROWS(Database_Prop!X$2:'Database_Prop'!X190))),\"\")","v":""},{"$f":"IFERROR(INDEX(Database_Prop!$B$2:$B$1498,SMALL(IF(Database_Prop!$A$2:$A$1498=BB$129,ROW(Database_Prop!$B$2:$B$1498)-ROW(Database_Prop!$B$2)+1),ROWS(Database_Prop!Y$2:'Database_Prop'!Y190))),\"\")","v":""},{"$f":"IFERROR(INDEX(Database_Prop!$B$2:$B$1498,SMALL(IF(Database_Prop!$A$2:$A$1498=BC$129,ROW(Database_Prop!$B$2:$B$1498)-ROW(Database_Prop!$B$2)+1),ROWS(Database_Prop!Z$2:'Database_Prop'!Z190))),\"\")","v":""},null,"Seychelles","Africa"]
[null,null,null,null,null,null,null,null,null,null,null,null,null,null,null,null,null,null,null,null,null,null,null,null,null,null,null,null,null,null,191,{"$f":"IFERROR(INDEX(Database_Prop!$B$2:$B$1498,SMALL(IF(Database_Prop!$A$2:$A$1498=AF$129,ROW(Database_Prop!$B$2:$B$1498)-ROW(Database_Prop!$B$2)+1),ROWS(Database_Prop!C$2:'Database_Prop'!C191))),\"\")","v":""},{"$f":"IFERROR(INDEX(Database_Prop!$B$2:$B$1498,SMALL(IF(Database_Prop!$A$2:$A$1498=AG$129,ROW(Database_Prop!$B$2:$B$1498)-ROW(Database_Prop!$B$2)+1),ROWS(Database_Prop!D$2:'Database_Prop'!D191))),\"\")","v":""},{"$f":"IFERROR(INDEX(Database_Prop!$B$2:$B$1498,SMALL(IF(Database_Prop!$A$2:$A$1498=AH$129,ROW(Database_Prop!$B$2:$B$1498)-ROW(Database_Prop!$B$2)+1),ROWS(Database_Prop!E$2:'Database_Prop'!E191))),\"\")","v":""},{"$f":"IFERROR(INDEX(Database_Prop!$B$2:$B$1498,SMALL(IF(Database_Prop!$A$2:$A$1498=AI$129,ROW(Database_Prop!$B$2:$B$1498)-ROW(Database_Prop!$B$2)+1),ROWS(Database_Prop!F$2:'Database_Prop'!F191))),\"\")","v":""},{"$f":"IFERROR(INDEX(Database_Prop!$B$2:$B$1498,SMALL(IF(Database_Prop!$A$2:$A$1498=AJ$129,ROW(Database_Prop!$B$2:$B$1498)-ROW(Database_Prop!$B$2)+1),ROWS(Database_Prop!G$2:'Database_Prop'!G191))),\"\")","v":""},{"$f":"IFERROR(INDEX(Database_Prop!$B$2:$B$1498,SMALL(IF(Database_Prop!$A$2:$A$1498=AK$129,ROW(Database_Prop!$B$2:$B$1498)-ROW(Database_Prop!$B$2)+1),ROWS(Database_Prop!H$2:'Database_Prop'!H191))),\"\")","v":""},{"$f":"IFERROR(INDEX(Database_Prop!$B$2:$B$1498,SMALL(IF(Database_Prop!$A$2:$A$1498=AL$129,ROW(Database_Prop!$B$2:$B$1498)-ROW(Database_Prop!$B$2)+1),ROWS(Database_Prop!I$2:'Database_Prop'!I191))),\"\")","v":""},{"$f":"IFERROR(INDEX(Database_Prop!$B$2:$B$1498,SMALL(IF(Database_Prop!$A$2:$A$1498=AM$129,ROW(Database_Prop!$B$2:$B$1498)-ROW(Database_Prop!$B$2)+1),ROWS(Database_Prop!J$2:'Database_Prop'!J191))),\"\")","v":""},{"$f":"IFERROR(INDEX(Database_Prop!$B$2:$B$1498,SMALL(IF(Database_Prop!$A$2:$A$1498=AN$129,ROW(Database_Prop!$B$2:$B$1498)-ROW(Database_Prop!$B$2)+1),ROWS(Database_Prop!K$2:'Database_Prop'!K191))),\"\")","v":""},{"$f":"IFERROR(INDEX(Database_Prop!$B$2:$B$1498,SMALL(IF(Database_Prop!$A$2:$A$1498=AO$129,ROW(Database_Prop!$B$2:$B$1498)-ROW(Database_Prop!$B$2)+1),ROWS(Database_Prop!L$2:'Database_Prop'!L191))),\"\")","v":""},{"$f":"IFERROR(INDEX(Database_Prop!$B$2:$B$1498,SMALL(IF(Database_Prop!$A$2:$A$1498=AP$129,ROW(Database_Prop!$B$2:$B$1498)-ROW(Database_Prop!$B$2)+1),ROWS(Database_Prop!M$2:'Database_Prop'!M191))),\"\")","v":""},{"$f":"IFERROR(INDEX(Database_Prop!$B$2:$B$1498,SMALL(IF(Database_Prop!$A$2:$A$1498=AQ$129,ROW(Database_Prop!$B$2:$B$1498)-ROW(Database_Prop!$B$2)+1),ROWS(Database_Prop!N$2:'Database_Prop'!N191))),\"\")","v":""},{"$f":"IFERROR(INDEX(Database_Prop!$B$2:$B$1498,SMALL(IF(Database_Prop!$A$2:$A$1498=AR$129,ROW(Database_Prop!$B$2:$B$1498)-ROW(Database_Prop!$B$2)+1),ROWS(Database_Prop!O$2:'Database_Prop'!O191))),\"\")","v":""},{"$f":"IFERROR(INDEX(Database_Prop!$B$2:$B$1498,SMALL(IF(Database_Prop!$A$2:$A$1498=AS$129,ROW(Database_Prop!$B$2:$B$1498)-ROW(Database_Prop!$B$2)+1),ROWS(Database_Prop!P$2:'Database_Prop'!P191))),\"\")","v":""},{"$f":"IFERROR(INDEX(Database_Prop!$B$2:$B$1498,SMALL(IF(Database_Prop!$A$2:$A$1498=AT$129,ROW(Database_Prop!$B$2:$B$1498)-ROW(Database_Prop!$B$2)+1),ROWS(Database_Prop!Q$2:'Database_Prop'!Q191))),\"\")","v":""},{"$f":"IFERROR(INDEX(Database_Prop!$B$2:$B$1498,SMALL(IF(Database_Prop!$A$2:$A$1498=AU$129,ROW(Database_Prop!$B$2:$B$1498)-ROW(Database_Prop!$B$2)+1),ROWS(Database_Prop!R$2:'Database_Prop'!R191))),\"\")","v":""},{"$f":"IFERROR(INDEX(Database_Prop!$B$2:$B$1498,SMALL(IF(Database_Prop!$A$2:$A$1498=AV$129,ROW(Database_Prop!$B$2:$B$1498)-ROW(Database_Prop!$B$2)+1),ROWS(Database_Prop!S$2:'Database_Prop'!S191))),\"\")","v":""},{"$f":"IFERROR(INDEX(Database_Prop!$B$2:$B$1498,SMALL(IF(Database_Prop!$A$2:$A$1498=AW$129,ROW(Database_Prop!$B$2:$B$1498)-ROW(Database_Prop!$B$2)+1),ROWS(Database_Prop!T$2:'Database_Prop'!T191))),\"\")","v":""},{"$f":"IFERROR(INDEX(Database_Prop!$B$2:$B$1498,SMALL(IF(Database_Prop!$A$2:$A$1498=AX$129,ROW(Database_Prop!$B$2:$B$1498)-ROW(Database_Prop!$B$2)+1),ROWS(Database_Prop!U$2:'Database_Prop'!U191))),\"\")","v":""},{"$f":"IFERROR(INDEX(Database_Prop!$B$2:$B$1498,SMALL(IF(Database_Prop!$A$2:$A$1498=AY$129,ROW(Database_Prop!$B$2:$B$1498)-ROW(Database_Prop!$B$2)+1),ROWS(Database_Prop!V$2:'Database_Prop'!V191))),\"\")","v":""},{"$f":"IFERROR(INDEX(Database_Prop!$B$2:$B$1498,SMALL(IF(Database_Prop!$A$2:$A$1498=AZ$129,ROW(Database_Prop!$B$2:$B$1498)-ROW(Database_Prop!$B$2)+1),ROWS(Database_Prop!W$2:'Database_Prop'!W191))),\"\")","v":""},{"$f":"IFERROR(INDEX(Database_Prop!$B$2:$B$1498,SMALL(IF(Database_Prop!$A$2:$A$1498=BA$129,ROW(Database_Prop!$B$2:$B$1498)-ROW(Database_Prop!$B$2)+1),ROWS(Database_Prop!X$2:'Database_Prop'!X191))),\"\")","v":""},{"$f":"IFERROR(INDEX(Database_Prop!$B$2:$B$1498,SMALL(IF(Database_Prop!$A$2:$A$1498=BB$129,ROW(Database_Prop!$B$2:$B$1498)-ROW(Database_Prop!$B$2)+1),ROWS(Database_Prop!Y$2:'Database_Prop'!Y191))),\"\")","v":""},{"$f":"IFERROR(INDEX(Database_Prop!$B$2:$B$1498,SMALL(IF(Database_Prop!$A$2:$A$1498=BC$129,ROW(Database_Prop!$B$2:$B$1498)-ROW(Database_Prop!$B$2)+1),ROWS(Database_Prop!Z$2:'Database_Prop'!Z191))),\"\")","v":""},null,"Sierra Leone","Africa"]
[null,null,null,null,null,null,null,null,null,null,null,null,null,null,null,null,null,null,null,null,null,null,null,null,null,null,null,null,null,null,192,{"$f":"IFERROR(INDEX(Database_Prop!$B$2:$B$1498,SMALL(IF(Database_Prop!$A$2:$A$1498=AF$129,ROW(Database_Prop!$B$2:$B$1498)-ROW(Database_Prop!$B$2)+1),ROWS(Database_Prop!C$2:'Database_Prop'!C192))),\"\")","v":""},{"$f":"IFERROR(INDEX(Database_Prop!$B$2:$B$1498,SMALL(IF(Database_Prop!$A$2:$A$1498=AG$129,ROW(Database_Prop!$B$2:$B$1498)-ROW(Database_Prop!$B$2)+1),ROWS(Database_Prop!D$2:'Database_Prop'!D192))),\"\")","v":""},{"$f":"IFERROR(INDEX(Database_Prop!$B$2:$B$1498,SMALL(IF(Database_Prop!$A$2:$A$1498=AH$129,ROW(Database_Prop!$B$2:$B$1498)-ROW(Database_Prop!$B$2)+1),ROWS(Database_Prop!E$2:'Database_Prop'!E192))),\"\")","v":""},{"$f":"IFERROR(INDEX(Database_Prop!$B$2:$B$1498,SMALL(IF(Database_Prop!$A$2:$A$1498=AI$129,ROW(Database_Prop!$B$2:$B$1498)-ROW(Database_Prop!$B$2)+1),ROWS(Database_Prop!F$2:'Database_Prop'!F192))),\"\")","v":""},{"$f":"IFERROR(INDEX(Database_Prop!$B$2:$B$1498,SMALL(IF(Database_Prop!$A$2:$A$1498=AJ$129,ROW(Database_Prop!$B$2:$B$1498)-ROW(Database_Prop!$B$2)+1),ROWS(Database_Prop!G$2:'Database_Prop'!G192))),\"\")","v":""},{"$f":"IFERROR(INDEX(Database_Prop!$B$2:$B$1498,SMALL(IF(Database_Prop!$A$2:$A$1498=AK$129,ROW(Database_Prop!$B$2:$B$1498)-ROW(Database_Prop!$B$2)+1),ROWS(Database_Prop!H$2:'Database_Prop'!H192))),\"\")","v":""},{"$f":"IFERROR(INDEX(Database_Prop!$B$2:$B$1498,SMALL(IF(Database_Prop!$A$2:$A$1498=AL$129,ROW(Database_Prop!$B$2:$B$1498)-ROW(Database_Prop!$B$2)+1),ROWS(Database_Prop!I$2:'Database_Prop'!I192))),\"\")","v":""},{"$f":"IFERROR(INDEX(Database_Prop!$B$2:$B$1498,SMALL(IF(Database_Prop!$A$2:$A$1498=AM$129,ROW(Database_Prop!$B$2:$B$1498)-ROW(Database_Prop!$B$2)+1),ROWS(Database_Prop!J$2:'Database_Prop'!J192))),\"\")","v":""},{"$f":"IFERROR(INDEX(Database_Prop!$B$2:$B$1498,SMALL(IF(Database_Prop!$A$2:$A$1498=AN$129,ROW(Database_Prop!$B$2:$B$1498)-ROW(Database_Prop!$B$2)+1),ROWS(Database_Prop!K$2:'Database_Prop'!K192))),\"\")","v":""},{"$f":"IFERROR(INDEX(Database_Prop!$B$2:$B$1498,SMALL(IF(Database_Prop!$A$2:$A$1498=AO$129,ROW(Database_Prop!$B$2:$B$1498)-ROW(Database_Prop!$B$2)+1),ROWS(Database_Prop!L$2:'Database_Prop'!L192))),\"\")","v":""},{"$f":"IFERROR(INDEX(Database_Prop!$B$2:$B$1498,SMALL(IF(Database_Prop!$A$2:$A$1498=AP$129,ROW(Database_Prop!$B$2:$B$1498)-ROW(Database_Prop!$B$2)+1),ROWS(Database_Prop!M$2:'Database_Prop'!M192))),\"\")","v":""},{"$f":"IFERROR(INDEX(Database_Prop!$B$2:$B$1498,SMALL(IF(Database_Prop!$A$2:$A$1498=AQ$129,ROW(Database_Prop!$B$2:$B$1498)-ROW(Database_Prop!$B$2)+1),ROWS(Database_Prop!N$2:'Database_Prop'!N192))),\"\")","v":""},{"$f":"IFERROR(INDEX(Database_Prop!$B$2:$B$1498,SMALL(IF(Database_Prop!$A$2:$A$1498=AR$129,ROW(Database_Prop!$B$2:$B$1498)-ROW(Database_Prop!$B$2)+1),ROWS(Database_Prop!O$2:'Database_Prop'!O192))),\"\")","v":""},{"$f":"IFERROR(INDEX(Database_Prop!$B$2:$B$1498,SMALL(IF(Database_Prop!$A$2:$A$1498=AS$129,ROW(Database_Prop!$B$2:$B$1498)-ROW(Database_Prop!$B$2)+1),ROWS(Database_Prop!P$2:'Database_Prop'!P192))),\"\")","v":""},{"$f":"IFERROR(INDEX(Database_Prop!$B$2:$B$1498,SMALL(IF(Database_Prop!$A$2:$A$1498=AT$129,ROW(Database_Prop!$B$2:$B$1498)-ROW(Database_Prop!$B$2)+1),ROWS(Database_Prop!Q$2:'Database_Prop'!Q192))),\"\")","v":""},{"$f":"IFERROR(INDEX(Database_Prop!$B$2:$B$1498,SMALL(IF(Database_Prop!$A$2:$A$1498=AU$129,ROW(Database_Prop!$B$2:$B$1498)-ROW(Database_Prop!$B$2)+1),ROWS(Database_Prop!R$2:'Database_Prop'!R192))),\"\")","v":""},{"$f":"IFERROR(INDEX(Database_Prop!$B$2:$B$1498,SMALL(IF(Database_Prop!$A$2:$A$1498=AV$129,ROW(Database_Prop!$B$2:$B$1498)-ROW(Database_Prop!$B$2)+1),ROWS(Database_Prop!S$2:'Database_Prop'!S192))),\"\")","v":""},{"$f":"IFERROR(INDEX(Database_Prop!$B$2:$B$1498,SMALL(IF(Database_Prop!$A$2:$A$1498=AW$129,ROW(Database_Prop!$B$2:$B$1498)-ROW(Database_Prop!$B$2)+1),ROWS(Database_Prop!T$2:'Database_Prop'!T192))),\"\")","v":""},{"$f":"IFERROR(INDEX(Database_Prop!$B$2:$B$1498,SMALL(IF(Database_Prop!$A$2:$A$1498=AX$129,ROW(Database_Prop!$B$2:$B$1498)-ROW(Database_Prop!$B$2)+1),ROWS(Database_Prop!U$2:'Database_Prop'!U192))),\"\")","v":""},{"$f":"IFERROR(INDEX(Database_Prop!$B$2:$B$1498,SMALL(IF(Database_Prop!$A$2:$A$1498=AY$129,ROW(Database_Prop!$B$2:$B$1498)-ROW(Database_Prop!$B$2)+1),ROWS(Database_Prop!V$2:'Database_Prop'!V192))),\"\")","v":""},{"$f":"IFERROR(INDEX(Database_Prop!$B$2:$B$1498,SMALL(IF(Database_Prop!$A$2:$A$1498=AZ$129,ROW(Database_Prop!$B$2:$B$1498)-ROW(Database_Prop!$B$2)+1),ROWS(Database_Prop!W$2:'Database_Prop'!W192))),\"\")","v":""},{"$f":"IFERROR(INDEX(Database_Prop!$B$2:$B$1498,SMALL(IF(Database_Prop!$A$2:$A$1498=BA$129,ROW(Database_Prop!$B$2:$B$1498)-ROW(Database_Prop!$B$2)+1),ROWS(Database_Prop!X$2:'Database_Prop'!X192))),\"\")","v":""},{"$f":"IFERROR(INDEX(Database_Prop!$B$2:$B$1498,SMALL(IF(Database_Prop!$A$2:$A$1498=BB$129,ROW(Database_Prop!$B$2:$B$1498)-ROW(Database_Prop!$B$2)+1),ROWS(Database_Prop!Y$2:'Database_Prop'!Y192))),\"\")","v":""},{"$f":"IFERROR(INDEX(Database_Prop!$B$2:$B$1498,SMALL(IF(Database_Prop!$A$2:$A$1498=BC$129,ROW(Database_Prop!$B$2:$B$1498)-ROW(Database_Prop!$B$2)+1),ROWS(Database_Prop!Z$2:'Database_Prop'!Z192))),\"\")","v":""},null,"Singapore","Asia"]
[null,null,null,null,null,null,null,null,null,null,null,null,null,null,null,null,null,null,null,null,null,null,null,null,null,null,null,null,null,null,193,{"$f":"IFERROR(INDEX(Database_Prop!$B$2:$B$1498,SMALL(IF(Database_Prop!$A$2:$A$1498=AF$129,ROW(Database_Prop!$B$2:$B$1498)-ROW(Database_Prop!$B$2)+1),ROWS(Database_Prop!C$2:'Database_Prop'!C193))),\"\")","v":""},{"$f":"IFERROR(INDEX(Database_Prop!$B$2:$B$1498,SMALL(IF(Database_Prop!$A$2:$A$1498=AG$129,ROW(Database_Prop!$B$2:$B$1498)-ROW(Database_Prop!$B$2)+1),ROWS(Database_Prop!D$2:'Database_Prop'!D193))),\"\")","v":""},{"$f":"IFERROR(INDEX(Database_Prop!$B$2:$B$1498,SMALL(IF(Database_Prop!$A$2:$A$1498=AH$129,ROW(Database_Prop!$B$2:$B$1498)-ROW(Database_Prop!$B$2)+1),ROWS(Database_Prop!E$2:'Database_Prop'!E193))),\"\")","v":""},{"$f":"IFERROR(INDEX(Database_Prop!$B$2:$B$1498,SMALL(IF(Database_Prop!$A$2:$A$1498=AI$129,ROW(Database_Prop!$B$2:$B$1498)-ROW(Database_Prop!$B$2)+1),ROWS(Database_Prop!F$2:'Database_Prop'!F193))),\"\")","v":""},{"$f":"IFERROR(INDEX(Database_Prop!$B$2:$B$1498,SMALL(IF(Database_Prop!$A$2:$A$1498=AJ$129,ROW(Database_Prop!$B$2:$B$1498)-ROW(Database_Prop!$B$2)+1),ROWS(Database_Prop!G$2:'Database_Prop'!G193))),\"\")","v":""},{"$f":"IFERROR(INDEX(Database_Prop!$B$2:$B$1498,SMALL(IF(Database_Prop!$A$2:$A$1498=AK$129,ROW(Database_Prop!$B$2:$B$1498)-ROW(Database_Prop!$B$2)+1),ROWS(Database_Prop!H$2:'Database_Prop'!H193))),\"\")","v":""},{"$f":"IFERROR(INDEX(Database_Prop!$B$2:$B$1498,SMALL(IF(Database_Prop!$A$2:$A$1498=AL$129,ROW(Database_Prop!$B$2:$B$1498)-ROW(Database_Prop!$B$2)+1),ROWS(Database_Prop!I$2:'Database_Prop'!I193))),\"\")","v":""},{"$f":"IFERROR(INDEX(Database_Prop!$B$2:$B$1498,SMALL(IF(Database_Prop!$A$2:$A$1498=AM$129,ROW(Database_Prop!$B$2:$B$1498)-ROW(Database_Prop!$B$2)+1),ROWS(Database_Prop!J$2:'Database_Prop'!J193))),\"\")","v":""},{"$f":"IFERROR(INDEX(Database_Prop!$B$2:$B$1498,SMALL(IF(Database_Prop!$A$2:$A$1498=AN$129,ROW(Database_Prop!$B$2:$B$1498)-ROW(Database_Prop!$B$2)+1),ROWS(Database_Prop!K$2:'Database_Prop'!K193))),\"\")","v":""},{"$f":"IFERROR(INDEX(Database_Prop!$B$2:$B$1498,SMALL(IF(Database_Prop!$A$2:$A$1498=AO$129,ROW(Database_Prop!$B$2:$B$1498)-ROW(Database_Prop!$B$2)+1),ROWS(Database_Prop!L$2:'Database_Prop'!L193))),\"\")","v":""},{"$f":"IFERROR(INDEX(Database_Prop!$B$2:$B$1498,SMALL(IF(Database_Prop!$A$2:$A$1498=AP$129,ROW(Database_Prop!$B$2:$B$1498)-ROW(Database_Prop!$B$2)+1),ROWS(Database_Prop!M$2:'Database_Prop'!M193))),\"\")","v":""},{"$f":"IFERROR(INDEX(Database_Prop!$B$2:$B$1498,SMALL(IF(Database_Prop!$A$2:$A$1498=AQ$129,ROW(Database_Prop!$B$2:$B$1498)-ROW(Database_Prop!$B$2)+1),ROWS(Database_Prop!N$2:'Database_Prop'!N193))),\"\")","v":""},{"$f":"IFERROR(INDEX(Database_Prop!$B$2:$B$1498,SMALL(IF(Database_Prop!$A$2:$A$1498=AR$129,ROW(Database_Prop!$B$2:$B$1498)-ROW(Database_Prop!$B$2)+1),ROWS(Database_Prop!O$2:'Database_Prop'!O193))),\"\")","v":""},{"$f":"IFERROR(INDEX(Database_Prop!$B$2:$B$1498,SMALL(IF(Database_Prop!$A$2:$A$1498=AS$129,ROW(Database_Prop!$B$2:$B$1498)-ROW(Database_Prop!$B$2)+1),ROWS(Database_Prop!P$2:'Database_Prop'!P193))),\"\")","v":""},{"$f":"IFERROR(INDEX(Database_Prop!$B$2:$B$1498,SMALL(IF(Database_Prop!$A$2:$A$1498=AT$129,ROW(Database_Prop!$B$2:$B$1498)-ROW(Database_Prop!$B$2)+1),ROWS(Database_Prop!Q$2:'Database_Prop'!Q193))),\"\")","v":""},{"$f":"IFERROR(INDEX(Database_Prop!$B$2:$B$1498,SMALL(IF(Database_Prop!$A$2:$A$1498=AU$129,ROW(Database_Prop!$B$2:$B$1498)-ROW(Database_Prop!$B$2)+1),ROWS(Database_Prop!R$2:'Database_Prop'!R193))),\"\")","v":""},{"$f":"IFERROR(INDEX(Database_Prop!$B$2:$B$1498,SMALL(IF(Database_Prop!$A$2:$A$1498=AV$129,ROW(Database_Prop!$B$2:$B$1498)-ROW(Database_Prop!$B$2)+1),ROWS(Database_Prop!S$2:'Database_Prop'!S193))),\"\")","v":""},{"$f":"IFERROR(INDEX(Database_Prop!$B$2:$B$1498,SMALL(IF(Database_Prop!$A$2:$A$1498=AW$129,ROW(Database_Prop!$B$2:$B$1498)-ROW(Database_Prop!$B$2)+1),ROWS(Database_Prop!T$2:'Database_Prop'!T193))),\"\")","v":""},{"$f":"IFERROR(INDEX(Database_Prop!$B$2:$B$1498,SMALL(IF(Database_Prop!$A$2:$A$1498=AX$129,ROW(Database_Prop!$B$2:$B$1498)-ROW(Database_Prop!$B$2)+1),ROWS(Database_Prop!U$2:'Database_Prop'!U193))),\"\")","v":""},{"$f":"IFERROR(INDEX(Database_Prop!$B$2:$B$1498,SMALL(IF(Database_Prop!$A$2:$A$1498=AY$129,ROW(Database_Prop!$B$2:$B$1498)-ROW(Database_Prop!$B$2)+1),ROWS(Database_Prop!V$2:'Database_Prop'!V193))),\"\")","v":""},{"$f":"IFERROR(INDEX(Database_Prop!$B$2:$B$1498,SMALL(IF(Database_Prop!$A$2:$A$1498=AZ$129,ROW(Database_Prop!$B$2:$B$1498)-ROW(Database_Prop!$B$2)+1),ROWS(Database_Prop!W$2:'Database_Prop'!W193))),\"\")","v":""},{"$f":"IFERROR(INDEX(Database_Prop!$B$2:$B$1498,SMALL(IF(Database_Prop!$A$2:$A$1498=BA$129,ROW(Database_Prop!$B$2:$B$1498)-ROW(Database_Prop!$B$2)+1),ROWS(Database_Prop!X$2:'Database_Prop'!X193))),\"\")","v":""},{"$f":"IFERROR(INDEX(Database_Prop!$B$2:$B$1498,SMALL(IF(Database_Prop!$A$2:$A$1498=BB$129,ROW(Database_Prop!$B$2:$B$1498)-ROW(Database_Prop!$B$2)+1),ROWS(Database_Prop!Y$2:'Database_Prop'!Y193))),\"\")","v":""},{"$f":"IFERROR(INDEX(Database_Prop!$B$2:$B$1498,SMALL(IF(Database_Prop!$A$2:$A$1498=BC$129,ROW(Database_Prop!$B$2:$B$1498)-ROW(Database_Prop!$B$2)+1),ROWS(Database_Prop!Z$2:'Database_Prop'!Z193))),\"\")","v":""},null,"Sint Maarten (Dutch part)","Latin America"]
[null,null,null,null,null,null,null,null,null,null,null,null,null,null,null,null,null,null,null,null,null,null,null,null,null,null,null,null,null,null,194,{"$f":"IFERROR(INDEX(Database_Prop!$B$2:$B$1498,SMALL(IF(Database_Prop!$A$2:$A$1498=AF$129,ROW(Database_Prop!$B$2:$B$1498)-ROW(Database_Prop!$B$2)+1),ROWS(Database_Prop!C$2:'Database_Prop'!C194))),\"\")","v":""},{"$f":"IFERROR(INDEX(Database_Prop!$B$2:$B$1498,SMALL(IF(Database_Prop!$A$2:$A$1498=AG$129,ROW(Database_Prop!$B$2:$B$1498)-ROW(Database_Prop!$B$2)+1),ROWS(Database_Prop!D$2:'Database_Prop'!D194))),\"\")","v":""},{"$f":"IFERROR(INDEX(Database_Prop!$B$2:$B$1498,SMALL(IF(Database_Prop!$A$2:$A$1498=AH$129,ROW(Database_Prop!$B$2:$B$1498)-ROW(Database_Prop!$B$2)+1),ROWS(Database_Prop!E$2:'Database_Prop'!E194))),\"\")","v":""},{"$f":"IFERROR(INDEX(Database_Prop!$B$2:$B$1498,SMALL(IF(Database_Prop!$A$2:$A$1498=AI$129,ROW(Database_Prop!$B$2:$B$1498)-ROW(Database_Prop!$B$2)+1),ROWS(Database_Prop!F$2:'Database_Prop'!F194))),\"\")","v":""},{"$f":"IFERROR(INDEX(Database_Prop!$B$2:$B$1498,SMALL(IF(Database_Prop!$A$2:$A$1498=AJ$129,ROW(Database_Prop!$B$2:$B$1498)-ROW(Database_Prop!$B$2)+1),ROWS(Database_Prop!G$2:'Database_Prop'!G194))),\"\")","v":""},{"$f":"IFERROR(INDEX(Database_Prop!$B$2:$B$1498,SMALL(IF(Database_Prop!$A$2:$A$1498=AK$129,ROW(Database_Prop!$B$2:$B$1498)-ROW(Database_Prop!$B$2)+1),ROWS(Database_Prop!H$2:'Database_Prop'!H194))),\"\")","v":""},{"$f":"IFERROR(INDEX(Database_Prop!$B$2:$B$1498,SMALL(IF(Database_Prop!$A$2:$A$1498=AL$129,ROW(Database_Prop!$B$2:$B$1498)-ROW(Database_Prop!$B$2)+1),ROWS(Database_Prop!I$2:'Database_Prop'!I194))),\"\")","v":""},{"$f":"IFERROR(INDEX(Database_Prop!$B$2:$B$1498,SMALL(IF(Database_Prop!$A$2:$A$1498=AM$129,ROW(Database_Prop!$B$2:$B$1498)-ROW(Database_Prop!$B$2)+1),ROWS(Database_Prop!J$2:'Database_Prop'!J194))),\"\")","v":""},{"$f":"IFERROR(INDEX(Database_Prop!$B$2:$B$1498,SMALL(IF(Database_Prop!$A$2:$A$1498=AN$129,ROW(Database_Prop!$B$2:$B$1498)-ROW(Database_Prop!$B$2)+1),ROWS(Database_Prop!K$2:'Database_Prop'!K194))),\"\")","v":""},{"$f":"IFERROR(INDEX(Database_Prop!$B$2:$B$1498,SMALL(IF(Database_Prop!$A$2:$A$1498=AO$129,ROW(Database_Prop!$B$2:$B$1498)-ROW(Database_Prop!$B$2)+1),ROWS(Database_Prop!L$2:'Database_Prop'!L194))),\"\")","v":""},{"$f":"IFERROR(INDEX(Database_Prop!$B$2:$B$1498,SMALL(IF(Database_Prop!$A$2:$A$1498=AP$129,ROW(Database_Prop!$B$2:$B$1498)-ROW(Database_Prop!$B$2)+1),ROWS(Database_Prop!M$2:'Database_Prop'!M194))),\"\")","v":""},{"$f":"IFERROR(INDEX(Database_Prop!$B$2:$B$1498,SMALL(IF(Database_Prop!$A$2:$A$1498=AQ$129,ROW(Database_Prop!$B$2:$B$1498)-ROW(Database_Prop!$B$2)+1),ROWS(Database_Prop!N$2:'Database_Prop'!N194))),\"\")","v":""},{"$f":"IFERROR(INDEX(Database_Prop!$B$2:$B$1498,SMALL(IF(Database_Prop!$A$2:$A$1498=AR$129,ROW(Database_Prop!$B$2:$B$1498)-ROW(Database_Prop!$B$2)+1),ROWS(Database_Prop!O$2:'Database_Prop'!O194))),\"\")","v":""},{"$f":"IFERROR(INDEX(Database_Prop!$B$2:$B$1498,SMALL(IF(Database_Prop!$A$2:$A$1498=AS$129,ROW(Database_Prop!$B$2:$B$1498)-ROW(Database_Prop!$B$2)+1),ROWS(Database_Prop!P$2:'Database_Prop'!P194))),\"\")","v":""},{"$f":"IFERROR(INDEX(Database_Prop!$B$2:$B$1498,SMALL(IF(Database_Prop!$A$2:$A$1498=AT$129,ROW(Database_Prop!$B$2:$B$1498)-ROW(Database_Prop!$B$2)+1),ROWS(Database_Prop!Q$2:'Database_Prop'!Q194))),\"\")","v":""},{"$f":"IFERROR(INDEX(Database_Prop!$B$2:$B$1498,SMALL(IF(Database_Prop!$A$2:$A$1498=AU$129,ROW(Database_Prop!$B$2:$B$1498)-ROW(Database_Prop!$B$2)+1),ROWS(Database_Prop!R$2:'Database_Prop'!R194))),\"\")","v":""},{"$f":"IFERROR(INDEX(Database_Prop!$B$2:$B$1498,SMALL(IF(Database_Prop!$A$2:$A$1498=AV$129,ROW(Database_Prop!$B$2:$B$1498)-ROW(Database_Prop!$B$2)+1),ROWS(Database_Prop!S$2:'Database_Prop'!S194))),\"\")","v":""},{"$f":"IFERROR(INDEX(Database_Prop!$B$2:$B$1498,SMALL(IF(Database_Prop!$A$2:$A$1498=AW$129,ROW(Database_Prop!$B$2:$B$1498)-ROW(Database_Prop!$B$2)+1),ROWS(Database_Prop!T$2:'Database_Prop'!T194))),\"\")","v":""},{"$f":"IFERROR(INDEX(Database_Prop!$B$2:$B$1498,SMALL(IF(Database_Prop!$A$2:$A$1498=AX$129,ROW(Database_Prop!$B$2:$B$1498)-ROW(Database_Prop!$B$2)+1),ROWS(Database_Prop!U$2:'Database_Prop'!U194))),\"\")","v":""},{"$f":"IFERROR(INDEX(Database_Prop!$B$2:$B$1498,SMALL(IF(Database_Prop!$A$2:$A$1498=AY$129,ROW(Database_Prop!$B$2:$B$1498)-ROW(Database_Prop!$B$2)+1),ROWS(Database_Prop!V$2:'Database_Prop'!V194))),\"\")","v":""},{"$f":"IFERROR(INDEX(Database_Prop!$B$2:$B$1498,SMALL(IF(Database_Prop!$A$2:$A$1498=AZ$129,ROW(Database_Prop!$B$2:$B$1498)-ROW(Database_Prop!$B$2)+1),ROWS(Database_Prop!W$2:'Database_Prop'!W194))),\"\")","v":""},{"$f":"IFERROR(INDEX(Database_Prop!$B$2:$B$1498,SMALL(IF(Database_Prop!$A$2:$A$1498=BA$129,ROW(Database_Prop!$B$2:$B$1498)-ROW(Database_Prop!$B$2)+1),ROWS(Database_Prop!X$2:'Database_Prop'!X194))),\"\")","v":""},{"$f":"IFERROR(INDEX(Database_Prop!$B$2:$B$1498,SMALL(IF(Database_Prop!$A$2:$A$1498=BB$129,ROW(Database_Prop!$B$2:$B$1498)-ROW(Database_Prop!$B$2)+1),ROWS(Database_Prop!Y$2:'Database_Prop'!Y194))),\"\")","v":""},{"$f":"IFERROR(INDEX(Database_Prop!$B$2:$B$1498,SMALL(IF(Database_Prop!$A$2:$A$1498=BC$129,ROW(Database_Prop!$B$2:$B$1498)-ROW(Database_Prop!$B$2)+1),ROWS(Database_Prop!Z$2:'Database_Prop'!Z194))),\"\")","v":""},null,"Slovakia","Eastern Europe"]
[null,null,null,null,null,null,null,null,null,null,null,null,null,null,null,null,null,null,null,null,null,null,null,null,null,null,null,null,null,null,{"$f":"AE325+1","v":195},{"$f":"IFERROR(INDEX(Database_Prop!$B$2:$B$1498,SMALL(IF(Database_Prop!$A$2:$A$1498=AF$129,ROW(Database_Prop!$B$2:$B$1498)-ROW(Database_Prop!$B$2)+1),ROWS(Database_Prop!C$2:'Database_Prop'!C195))),\"\")","v":""},{"$f":"IFERROR(INDEX(Database_Prop!$B$2:$B$1498,SMALL(IF(Database_Prop!$A$2:$A$1498=AG$129,ROW(Database_Prop!$B$2:$B$1498)-ROW(Database_Prop!$B$2)+1),ROWS(Database_Prop!D$2:'Database_Prop'!D195))),\"\")","v":""},{"$f":"IFERROR(INDEX(Database_Prop!$B$2:$B$1498,SMALL(IF(Database_Prop!$A$2:$A$1498=AH$129,ROW(Database_Prop!$B$2:$B$1498)-ROW(Database_Prop!$B$2)+1),ROWS(Database_Prop!E$2:'Database_Prop'!E195))),\"\")","v":""},{"$f":"IFERROR(INDEX(Database_Prop!$B$2:$B$1498,SMALL(IF(Database_Prop!$A$2:$A$1498=AI$129,ROW(Database_Prop!$B$2:$B$1498)-ROW(Database_Prop!$B$2)+1),ROWS(Database_Prop!F$2:'Database_Prop'!F195))),\"\")","v":""},{"$f":"IFERROR(INDEX(Database_Prop!$B$2:$B$1498,SMALL(IF(Database_Prop!$A$2:$A$1498=AJ$129,ROW(Database_Prop!$B$2:$B$1498)-ROW(Database_Prop!$B$2)+1),ROWS(Database_Prop!G$2:'Database_Prop'!G195))),\"\")","v":""},{"$f":"IFERROR(INDEX(Database_Prop!$B$2:$B$1498,SMALL(IF(Database_Prop!$A$2:$A$1498=AK$129,ROW(Database_Prop!$B$2:$B$1498)-ROW(Database_Prop!$B$2)+1),ROWS(Database_Prop!H$2:'Database_Prop'!H195))),\"\")","v":""},{"$f":"IFERROR(INDEX(Database_Prop!$B$2:$B$1498,SMALL(IF(Database_Prop!$A$2:$A$1498=AL$129,ROW(Database_Prop!$B$2:$B$1498)-ROW(Database_Prop!$B$2)+1),ROWS(Database_Prop!I$2:'Database_Prop'!I195))),\"\")","v":""},{"$f":"IFERROR(INDEX(Database_Prop!$B$2:$B$1498,SMALL(IF(Database_Prop!$A$2:$A$1498=AM$129,ROW(Database_Prop!$B$2:$B$1498)-ROW(Database_Prop!$B$2)+1),ROWS(Database_Prop!J$2:'Database_Prop'!J195))),\"\")","v":""},{"$f":"IFERROR(INDEX(Database_Prop!$B$2:$B$1498,SMALL(IF(Database_Prop!$A$2:$A$1498=AN$129,ROW(Database_Prop!$B$2:$B$1498)-ROW(Database_Prop!$B$2)+1),ROWS(Database_Prop!K$2:'Database_Prop'!K195))),\"\")","v":""},{"$f":"IFERROR(INDEX(Database_Prop!$B$2:$B$1498,SMALL(IF(Database_Prop!$A$2:$A$1498=AO$129,ROW(Database_Prop!$B$2:$B$1498)-ROW(Database_Prop!$B$2)+1),ROWS(Database_Prop!L$2:'Database_Prop'!L195))),\"\")","v":""},{"$f":"IFERROR(INDEX(Database_Prop!$B$2:$B$1498,SMALL(IF(Database_Prop!$A$2:$A$1498=AP$129,ROW(Database_Prop!$B$2:$B$1498)-ROW(Database_Prop!$B$2)+1),ROWS(Database_Prop!M$2:'Database_Prop'!M195))),\"\")","v":""},{"$f":"IFERROR(INDEX(Database_Prop!$B$2:$B$1498,SMALL(IF(Database_Prop!$A$2:$A$1498=AQ$129,ROW(Database_Prop!$B$2:$B$1498)-ROW(Database_Prop!$B$2)+1),ROWS(Database_Prop!N$2:'Database_Prop'!N195))),\"\")","v":""},{"$f":"IFERROR(INDEX(Database_Prop!$B$2:$B$1498,SMALL(IF(Database_Prop!$A$2:$A$1498=AR$129,ROW(Database_Prop!$B$2:$B$1498)-ROW(Database_Prop!$B$2)+1),ROWS(Database_Prop!O$2:'Database_Prop'!O195))),\"\")","v":""},{"$f":"IFERROR(INDEX(Database_Prop!$B$2:$B$1498,SMALL(IF(Database_Prop!$A$2:$A$1498=AS$129,ROW(Database_Prop!$B$2:$B$1498)-ROW(Database_Prop!$B$2)+1),ROWS(Database_Prop!P$2:'Database_Prop'!P195))),\"\")","v":""},{"$f":"IFERROR(INDEX(Database_Prop!$B$2:$B$1498,SMALL(IF(Database_Prop!$A$2:$A$1498=AT$129,ROW(Database_Prop!$B$2:$B$1498)-ROW(Database_Prop!$B$2)+1),ROWS(Database_Prop!Q$2:'Database_Prop'!Q195))),\"\")","v":""},{"$f":"IFERROR(INDEX(Database_Prop!$B$2:$B$1498,SMALL(IF(Database_Prop!$A$2:$A$1498=AU$129,ROW(Database_Prop!$B$2:$B$1498)-ROW(Database_Prop!$B$2)+1),ROWS(Database_Prop!R$2:'Database_Prop'!R195))),\"\")","v":""},{"$f":"IFERROR(INDEX(Database_Prop!$B$2:$B$1498,SMALL(IF(Database_Prop!$A$2:$A$1498=AV$129,ROW(Database_Prop!$B$2:$B$1498)-ROW(Database_Prop!$B$2)+1),ROWS(Database_Prop!S$2:'Database_Prop'!S195))),\"\")","v":""},{"$f":"IFERROR(INDEX(Database_Prop!$B$2:$B$1498,SMALL(IF(Database_Prop!$A$2:$A$1498=AW$129,ROW(Database_Prop!$B$2:$B$1498)-ROW(Database_Prop!$B$2)+1),ROWS(Database_Prop!T$2:'Database_Prop'!T195))),\"\")","v":""},{"$f":"IFERROR(INDEX(Database_Prop!$B$2:$B$1498,SMALL(IF(Database_Prop!$A$2:$A$1498=AX$129,ROW(Database_Prop!$B$2:$B$1498)-ROW(Database_Prop!$B$2)+1),ROWS(Database_Prop!U$2:'Database_Prop'!U195))),\"\")","v":""},{"$f":"IFERROR(INDEX(Database_Prop!$B$2:$B$1498,SMALL(IF(Database_Prop!$A$2:$A$1498=AY$129,ROW(Database_Prop!$B$2:$B$1498)-ROW(Database_Prop!$B$2)+1),ROWS(Database_Prop!V$2:'Database_Prop'!V195))),\"\")","v":""},{"$f":"IFERROR(INDEX(Database_Prop!$B$2:$B$1498,SMALL(IF(Database_Prop!$A$2:$A$1498=AZ$129,ROW(Database_Prop!$B$2:$B$1498)-ROW(Database_Prop!$B$2)+1),ROWS(Database_Prop!W$2:'Database_Prop'!W195))),\"\")","v":""},{"$f":"IFERROR(INDEX(Database_Prop!$B$2:$B$1498,SMALL(IF(Database_Prop!$A$2:$A$1498=BA$129,ROW(Database_Prop!$B$2:$B$1498)-ROW(Database_Prop!$B$2)+1),ROWS(Database_Prop!X$2:'Database_Prop'!X195))),\"\")","v":""},{"$f":"IFERROR(INDEX(Database_Prop!$B$2:$B$1498,SMALL(IF(Database_Prop!$A$2:$A$1498=BB$129,ROW(Database_Prop!$B$2:$B$1498)-ROW(Database_Prop!$B$2)+1),ROWS(Database_Prop!Y$2:'Database_Prop'!Y195))),\"\")","v":""},{"$f":"IFERROR(INDEX(Database_Prop!$B$2:$B$1498,SMALL(IF(Database_Prop!$A$2:$A$1498=BC$129,ROW(Database_Prop!$B$2:$B$1498)-ROW(Database_Prop!$B$2)+1),ROWS(Database_Prop!Z$2:'Database_Prop'!Z195))),\"\")","v":""},null,"Slovenia","Western Europe"]
[null,null,null,null,null,null,null,null,null,null,null,null,null,null,null,null,null,null,null,null,null,null,null,null,null,null,null,null,null,null,196,{"$f":"IFERROR(INDEX(Database_Prop!$B$2:$B$1498,SMALL(IF(Database_Prop!$A$2:$A$1498=AF$129,ROW(Database_Prop!$B$2:$B$1498)-ROW(Database_Prop!$B$2)+1),ROWS(Database_Prop!C$2:'Database_Prop'!C196))),\"\")","v":""},{"$f":"IFERROR(INDEX(Database_Prop!$B$2:$B$1498,SMALL(IF(Database_Prop!$A$2:$A$1498=AG$129,ROW(Database_Prop!$B$2:$B$1498)-ROW(Database_Prop!$B$2)+1),ROWS(Database_Prop!D$2:'Database_Prop'!D196))),\"\")","v":""},{"$f":"IFERROR(INDEX(Database_Prop!$B$2:$B$1498,SMALL(IF(Database_Prop!$A$2:$A$1498=AH$129,ROW(Database_Prop!$B$2:$B$1498)-ROW(Database_Prop!$B$2)+1),ROWS(Database_Prop!E$2:'Database_Prop'!E196))),\"\")","v":""},{"$f":"IFERROR(INDEX(Database_Prop!$B$2:$B$1498,SMALL(IF(Database_Prop!$A$2:$A$1498=AI$129,ROW(Database_Prop!$B$2:$B$1498)-ROW(Database_Prop!$B$2)+1),ROWS(Database_Prop!F$2:'Database_Prop'!F196))),\"\")","v":""},{"$f":"IFERROR(INDEX(Database_Prop!$B$2:$B$1498,SMALL(IF(Database_Prop!$A$2:$A$1498=AJ$129,ROW(Database_Prop!$B$2:$B$1498)-ROW(Database_Prop!$B$2)+1),ROWS(Database_Prop!G$2:'Database_Prop'!G196))),\"\")","v":""},{"$f":"IFERROR(INDEX(Database_Prop!$B$2:$B$1498,SMALL(IF(Database_Prop!$A$2:$A$1498=AK$129,ROW(Database_Prop!$B$2:$B$1498)-ROW(Database_Prop!$B$2)+1),ROWS(Database_Prop!H$2:'Database_Prop'!H196))),\"\")","v":""},{"$f":"IFERROR(INDEX(Database_Prop!$B$2:$B$1498,SMALL(IF(Database_Prop!$A$2:$A$1498=AL$129,ROW(Database_Prop!$B$2:$B$1498)-ROW(Database_Prop!$B$2)+1),ROWS(Database_Prop!I$2:'Database_Prop'!I196))),\"\")","v":""},{"$f":"IFERROR(INDEX(Database_Prop!$B$2:$B$1498,SMALL(IF(Database_Prop!$A$2:$A$1498=AM$129,ROW(Database_Prop!$B$2:$B$1498)-ROW(Database_Prop!$B$2)+1),ROWS(Database_Prop!J$2:'Database_Prop'!J196))),\"\")","v":""},{"$f":"IFERROR(INDEX(Database_Prop!$B$2:$B$1498,SMALL(IF(Database_Prop!$A$2:$A$1498=AN$129,ROW(Database_Prop!$B$2:$B$1498)-ROW(Database_Prop!$B$2)+1),ROWS(Database_Prop!K$2:'Database_Prop'!K196))),\"\")","v":""},{"$f":"IFERROR(INDEX(Database_Prop!$B$2:$B$1498,SMALL(IF(Database_Prop!$A$2:$A$1498=AO$129,ROW(Database_Prop!$B$2:$B$1498)-ROW(Database_Prop!$B$2)+1),ROWS(Database_Prop!L$2:'Database_Prop'!L196))),\"\")","v":""},{"$f":"IFERROR(INDEX(Database_Prop!$B$2:$B$1498,SMALL(IF(Database_Prop!$A$2:$A$1498=AP$129,ROW(Database_Prop!$B$2:$B$1498)-ROW(Database_Prop!$B$2)+1),ROWS(Database_Prop!M$2:'Database_Prop'!M196))),\"\")","v":""},{"$f":"IFERROR(INDEX(Database_Prop!$B$2:$B$1498,SMALL(IF(Database_Prop!$A$2:$A$1498=AQ$129,ROW(Database_Prop!$B$2:$B$1498)-ROW(Database_Prop!$B$2)+1),ROWS(Database_Prop!N$2:'Database_Prop'!N196))),\"\")","v":""},{"$f":"IFERROR(INDEX(Database_Prop!$B$2:$B$1498,SMALL(IF(Database_Prop!$A$2:$A$1498=AR$129,ROW(Database_Prop!$B$2:$B$1498)-ROW(Database_Prop!$B$2)+1),ROWS(Database_Prop!O$2:'Database_Prop'!O196))),\"\")","v":""},{"$f":"IFERROR(INDEX(Database_Prop!$B$2:$B$1498,SMALL(IF(Database_Prop!$A$2:$A$1498=AS$129,ROW(Database_Prop!$B$2:$B$1498)-ROW(Database_Prop!$B$2)+1),ROWS(Database_Prop!P$2:'Database_Prop'!P196))),\"\")","v":""},{"$f":"IFERROR(INDEX(Database_Prop!$B$2:$B$1498,SMALL(IF(Database_Prop!$A$2:$A$1498=AT$129,ROW(Database_Prop!$B$2:$B$1498)-ROW(Database_Prop!$B$2)+1),ROWS(Database_Prop!Q$2:'Database_Prop'!Q196))),\"\")","v":""},{"$f":"IFERROR(INDEX(Database_Prop!$B$2:$B$1498,SMALL(IF(Database_Prop!$A$2:$A$1498=AU$129,ROW(Database_Prop!$B$2:$B$1498)-ROW(Database_Prop!$B$2)+1),ROWS(Database_Prop!R$2:'Database_Prop'!R196))),\"\")","v":""},{"$f":"IFERROR(INDEX(Database_Prop!$B$2:$B$1498,SMALL(IF(Database_Prop!$A$2:$A$1498=AV$129,ROW(Database_Prop!$B$2:$B$1498)-ROW(Database_Prop!$B$2)+1),ROWS(Database_Prop!S$2:'Database_Prop'!S196))),\"\")","v":""},{"$f":"IFERROR(INDEX(Database_Prop!$B$2:$B$1498,SMALL(IF(Database_Prop!$A$2:$A$1498=AW$129,ROW(Database_Prop!$B$2:$B$1498)-ROW(Database_Prop!$B$2)+1),ROWS(Database_Prop!T$2:'Database_Prop'!T196))),\"\")","v":""},{"$f":"IFERROR(INDEX(Database_Prop!$B$2:$B$1498,SMALL(IF(Database_Prop!$A$2:$A$1498=AX$129,ROW(Database_Prop!$B$2:$B$1498)-ROW(Database_Prop!$B$2)+1),ROWS(Database_Prop!U$2:'Database_Prop'!U196))),\"\")","v":""},{"$f":"IFERROR(INDEX(Database_Prop!$B$2:$B$1498,SMALL(IF(Database_Prop!$A$2:$A$1498=AY$129,ROW(Database_Prop!$B$2:$B$1498)-ROW(Database_Prop!$B$2)+1),ROWS(Database_Prop!V$2:'Database_Prop'!V196))),\"\")","v":""},{"$f":"IFERROR(INDEX(Database_Prop!$B$2:$B$1498,SMALL(IF(Database_Prop!$A$2:$A$1498=AZ$129,ROW(Database_Prop!$B$2:$B$1498)-ROW(Database_Prop!$B$2)+1),ROWS(Database_Prop!W$2:'Database_Prop'!W196))),\"\")","v":""},{"$f":"IFERROR(INDEX(Database_Prop!$B$2:$B$1498,SMALL(IF(Database_Prop!$A$2:$A$1498=BA$129,ROW(Database_Prop!$B$2:$B$1498)-ROW(Database_Prop!$B$2)+1),ROWS(Database_Prop!X$2:'Database_Prop'!X196))),\"\")","v":""},{"$f":"IFERROR(INDEX(Database_Prop!$B$2:$B$1498,SMALL(IF(Database_Prop!$A$2:$A$1498=BB$129,ROW(Database_Prop!$B$2:$B$1498)-ROW(Database_Prop!$B$2)+1),ROWS(Database_Prop!Y$2:'Database_Prop'!Y196))),\"\")","v":""},{"$f":"IFERROR(INDEX(Database_Prop!$B$2:$B$1498,SMALL(IF(Database_Prop!$A$2:$A$1498=BC$129,ROW(Database_Prop!$B$2:$B$1498)-ROW(Database_Prop!$B$2)+1),ROWS(Database_Prop!Z$2:'Database_Prop'!Z196))),\"\")","v":""},null,"Solomon Islands","Oceania"]
[null,null,null,null,null,null,null,null,null,null,null,null,null,null,null,null,null,null,null,null,null,null,null,null,null,null,null,null,null,null,197,{"$f":"IFERROR(INDEX(Database_Prop!$B$2:$B$1498,SMALL(IF(Database_Prop!$A$2:$A$1498=AF$129,ROW(Database_Prop!$B$2:$B$1498)-ROW(Database_Prop!$B$2)+1),ROWS(Database_Prop!C$2:'Database_Prop'!C197))),\"\")","v":""},{"$f":"IFERROR(INDEX(Database_Prop!$B$2:$B$1498,SMALL(IF(Database_Prop!$A$2:$A$1498=AG$129,ROW(Database_Prop!$B$2:$B$1498)-ROW(Database_Prop!$B$2)+1),ROWS(Database_Prop!D$2:'Database_Prop'!D197))),\"\")","v":""},{"$f":"IFERROR(INDEX(Database_Prop!$B$2:$B$1498,SMALL(IF(Database_Prop!$A$2:$A$1498=AH$129,ROW(Database_Prop!$B$2:$B$1498)-ROW(Database_Prop!$B$2)+1),ROWS(Database_Prop!E$2:'Database_Prop'!E197))),\"\")","v":""},{"$f":"IFERROR(INDEX(Database_Prop!$B$2:$B$1498,SMALL(IF(Database_Prop!$A$2:$A$1498=AI$129,ROW(Database_Prop!$B$2:$B$1498)-ROW(Database_Prop!$B$2)+1),ROWS(Database_Prop!F$2:'Database_Prop'!F197))),\"\")","v":""},{"$f":"IFERROR(INDEX(Database_Prop!$B$2:$B$1498,SMALL(IF(Database_Prop!$A$2:$A$1498=AJ$129,ROW(Database_Prop!$B$2:$B$1498)-ROW(Database_Prop!$B$2)+1),ROWS(Database_Prop!G$2:'Database_Prop'!G197))),\"\")","v":""},{"$f":"IFERROR(INDEX(Database_Prop!$B$2:$B$1498,SMALL(IF(Database_Prop!$A$2:$A$1498=AK$129,ROW(Database_Prop!$B$2:$B$1498)-ROW(Database_Prop!$B$2)+1),ROWS(Database_Prop!H$2:'Database_Prop'!H197))),\"\")","v":""},{"$f":"IFERROR(INDEX(Database_Prop!$B$2:$B$1498,SMALL(IF(Database_Prop!$A$2:$A$1498=AL$129,ROW(Database_Prop!$B$2:$B$1498)-ROW(Database_Prop!$B$2)+1),ROWS(Database_Prop!I$2:'Database_Prop'!I197))),\"\")","v":""},{"$f":"IFERROR(INDEX(Database_Prop!$B$2:$B$1498,SMALL(IF(Database_Prop!$A$2:$A$1498=AM$129,ROW(Database_Prop!$B$2:$B$1498)-ROW(Database_Prop!$B$2)+1),ROWS(Database_Prop!J$2:'Database_Prop'!J197))),\"\")","v":""},{"$f":"IFERROR(INDEX(Database_Prop!$B$2:$B$1498,SMALL(IF(Database_Prop!$A$2:$A$1498=AN$129,ROW(Database_Prop!$B$2:$B$1498)-ROW(Database_Prop!$B$2)+1),ROWS(Database_Prop!K$2:'Database_Prop'!K197))),\"\")","v":""},{"$f":"IFERROR(INDEX(Database_Prop!$B$2:$B$1498,SMALL(IF(Database_Prop!$A$2:$A$1498=AO$129,ROW(Database_Prop!$B$2:$B$1498)-ROW(Database_Prop!$B$2)+1),ROWS(Database_Prop!L$2:'Database_Prop'!L197))),\"\")","v":""},{"$f":"IFERROR(INDEX(Database_Prop!$B$2:$B$1498,SMALL(IF(Database_Prop!$A$2:$A$1498=AP$129,ROW(Database_Prop!$B$2:$B$1498)-ROW(Database_Prop!$B$2)+1),ROWS(Database_Prop!M$2:'Database_Prop'!M197))),\"\")","v":""},{"$f":"IFERROR(INDEX(Database_Prop!$B$2:$B$1498,SMALL(IF(Database_Prop!$A$2:$A$1498=AQ$129,ROW(Database_Prop!$B$2:$B$1498)-ROW(Database_Prop!$B$2)+1),ROWS(Database_Prop!N$2:'Database_Prop'!N197))),\"\")","v":""},{"$f":"IFERROR(INDEX(Database_Prop!$B$2:$B$1498,SMALL(IF(Database_Prop!$A$2:$A$1498=AR$129,ROW(Database_Prop!$B$2:$B$1498)-ROW(Database_Prop!$B$2)+1),ROWS(Database_Prop!O$2:'Database_Prop'!O197))),\"\")","v":""},{"$f":"IFERROR(INDEX(Database_Prop!$B$2:$B$1498,SMALL(IF(Database_Prop!$A$2:$A$1498=AS$129,ROW(Database_Prop!$B$2:$B$1498)-ROW(Database_Prop!$B$2)+1),ROWS(Database_Prop!P$2:'Database_Prop'!P197))),\"\")","v":""},{"$f":"IFERROR(INDEX(Database_Prop!$B$2:$B$1498,SMALL(IF(Database_Prop!$A$2:$A$1498=AT$129,ROW(Database_Prop!$B$2:$B$1498)-ROW(Database_Prop!$B$2)+1),ROWS(Database_Prop!Q$2:'Database_Prop'!Q197))),\"\")","v":""},{"$f":"IFERROR(INDEX(Database_Prop!$B$2:$B$1498,SMALL(IF(Database_Prop!$A$2:$A$1498=AU$129,ROW(Database_Prop!$B$2:$B$1498)-ROW(Database_Prop!$B$2)+1),ROWS(Database_Prop!R$2:'Database_Prop'!R197))),\"\")","v":""},{"$f":"IFERROR(INDEX(Database_Prop!$B$2:$B$1498,SMALL(IF(Database_Prop!$A$2:$A$1498=AV$129,ROW(Database_Prop!$B$2:$B$1498)-ROW(Database_Prop!$B$2)+1),ROWS(Database_Prop!S$2:'Database_Prop'!S197))),\"\")","v":""},{"$f":"IFERROR(INDEX(Database_Prop!$B$2:$B$1498,SMALL(IF(Database_Prop!$A$2:$A$1498=AW$129,ROW(Database_Prop!$B$2:$B$1498)-ROW(Database_Prop!$B$2)+1),ROWS(Database_Prop!T$2:'Database_Prop'!T197))),\"\")","v":""},{"$f":"IFERROR(INDEX(Database_Prop!$B$2:$B$1498,SMALL(IF(Database_Prop!$A$2:$A$1498=AX$129,ROW(Database_Prop!$B$2:$B$1498)-ROW(Database_Prop!$B$2)+1),ROWS(Database_Prop!U$2:'Database_Prop'!U197))),\"\")","v":""},{"$f":"IFERROR(INDEX(Database_Prop!$B$2:$B$1498,SMALL(IF(Database_Prop!$A$2:$A$1498=AY$129,ROW(Database_Prop!$B$2:$B$1498)-ROW(Database_Prop!$B$2)+1),ROWS(Database_Prop!V$2:'Database_Prop'!V197))),\"\")","v":""},{"$f":"IFERROR(INDEX(Database_Prop!$B$2:$B$1498,SMALL(IF(Database_Prop!$A$2:$A$1498=AZ$129,ROW(Database_Prop!$B$2:$B$1498)-ROW(Database_Prop!$B$2)+1),ROWS(Database_Prop!W$2:'Database_Prop'!W197))),\"\")","v":""},{"$f":"IFERROR(INDEX(Database_Prop!$B$2:$B$1498,SMALL(IF(Database_Prop!$A$2:$A$1498=BA$129,ROW(Database_Prop!$B$2:$B$1498)-ROW(Database_Prop!$B$2)+1),ROWS(Database_Prop!X$2:'Database_Prop'!X197))),\"\")","v":""},{"$f":"IFERROR(INDEX(Database_Prop!$B$2:$B$1498,SMALL(IF(Database_Prop!$A$2:$A$1498=BB$129,ROW(Database_Prop!$B$2:$B$1498)-ROW(Database_Prop!$B$2)+1),ROWS(Database_Prop!Y$2:'Database_Prop'!Y197))),\"\")","v":""},{"$f":"IFERROR(INDEX(Database_Prop!$B$2:$B$1498,SMALL(IF(Database_Prop!$A$2:$A$1498=BC$129,ROW(Database_Prop!$B$2:$B$1498)-ROW(Database_Prop!$B$2)+1),ROWS(Database_Prop!Z$2:'Database_Prop'!Z197))),\"\")","v":""},null,"Somalia","Africa"]
[null,null,null,null,null,null,null,null,null,null,null,null,null,null,null,null,null,null,null,null,null,null,null,null,null,null,null,null,null,null,198,{"$f":"IFERROR(INDEX(Database_Prop!$B$2:$B$1498,SMALL(IF(Database_Prop!$A$2:$A$1498=AF$129,ROW(Database_Prop!$B$2:$B$1498)-ROW(Database_Prop!$B$2)+1),ROWS(Database_Prop!C$2:'Database_Prop'!C198))),\"\")","v":""},{"$f":"IFERROR(INDEX(Database_Prop!$B$2:$B$1498,SMALL(IF(Database_Prop!$A$2:$A$1498=AG$129,ROW(Database_Prop!$B$2:$B$1498)-ROW(Database_Prop!$B$2)+1),ROWS(Database_Prop!D$2:'Database_Prop'!D198))),\"\")","v":""},{"$f":"IFERROR(INDEX(Database_Prop!$B$2:$B$1498,SMALL(IF(Database_Prop!$A$2:$A$1498=AH$129,ROW(Database_Prop!$B$2:$B$1498)-ROW(Database_Prop!$B$2)+1),ROWS(Database_Prop!E$2:'Database_Prop'!E198))),\"\")","v":""},{"$f":"IFERROR(INDEX(Database_Prop!$B$2:$B$1498,SMALL(IF(Database_Prop!$A$2:$A$1498=AI$129,ROW(Database_Prop!$B$2:$B$1498)-ROW(Database_Prop!$B$2)+1),ROWS(Database_Prop!F$2:'Database_Prop'!F198))),\"\")","v":""},{"$f":"IFERROR(INDEX(Database_Prop!$B$2:$B$1498,SMALL(IF(Database_Prop!$A$2:$A$1498=AJ$129,ROW(Database_Prop!$B$2:$B$1498)-ROW(Database_Prop!$B$2)+1),ROWS(Database_Prop!G$2:'Database_Prop'!G198))),\"\")","v":""},{"$f":"IFERROR(INDEX(Database_Prop!$B$2:$B$1498,SMALL(IF(Database_Prop!$A$2:$A$1498=AK$129,ROW(Database_Prop!$B$2:$B$1498)-ROW(Database_Prop!$B$2)+1),ROWS(Database_Prop!H$2:'Database_Prop'!H198))),\"\")","v":""},{"$f":"IFERROR(INDEX(Database_Prop!$B$2:$B$1498,SMALL(IF(Database_Prop!$A$2:$A$1498=AL$129,ROW(Database_Prop!$B$2:$B$1498)-ROW(Database_Prop!$B$2)+1),ROWS(Database_Prop!I$2:'Database_Prop'!I198))),\"\")","v":""},{"$f":"IFERROR(INDEX(Database_Prop!$B$2:$B$1498,SMALL(IF(Database_Prop!$A$2:$A$1498=AM$129,ROW(Database_Prop!$B$2:$B$1498)-ROW(Database_Prop!$B$2)+1),ROWS(Database_Prop!J$2:'Database_Prop'!J198))),\"\")","v":""},{"$f":"IFERROR(INDEX(Database_Prop!$B$2:$B$1498,SMALL(IF(Database_Prop!$A$2:$A$1498=AN$129,ROW(Database_Prop!$B$2:$B$1498)-ROW(Database_Prop!$B$2)+1),ROWS(Database_Prop!K$2:'Database_Prop'!K198))),\"\")","v":""},{"$f":"IFERROR(INDEX(Database_Prop!$B$2:$B$1498,SMALL(IF(Database_Prop!$A$2:$A$1498=AO$129,ROW(Database_Prop!$B$2:$B$1498)-ROW(Database_Prop!$B$2)+1),ROWS(Database_Prop!L$2:'Database_Prop'!L198))),\"\")","v":""},{"$f":"IFERROR(INDEX(Database_Prop!$B$2:$B$1498,SMALL(IF(Database_Prop!$A$2:$A$1498=AP$129,ROW(Database_Prop!$B$2:$B$1498)-ROW(Database_Prop!$B$2)+1),ROWS(Database_Prop!M$2:'Database_Prop'!M198))),\"\")","v":""},{"$f":"IFERROR(INDEX(Database_Prop!$B$2:$B$1498,SMALL(IF(Database_Prop!$A$2:$A$1498=AQ$129,ROW(Database_Prop!$B$2:$B$1498)-ROW(Database_Prop!$B$2)+1),ROWS(Database_Prop!N$2:'Database_Prop'!N198))),\"\")","v":""},{"$f":"IFERROR(INDEX(Database_Prop!$B$2:$B$1498,SMALL(IF(Database_Prop!$A$2:$A$1498=AR$129,ROW(Database_Prop!$B$2:$B$1498)-ROW(Database_Prop!$B$2)+1),ROWS(Database_Prop!O$2:'Database_Prop'!O198))),\"\")","v":""},{"$f":"IFERROR(INDEX(Database_Prop!$B$2:$B$1498,SMALL(IF(Database_Prop!$A$2:$A$1498=AS$129,ROW(Database_Prop!$B$2:$B$1498)-ROW(Database_Prop!$B$2)+1),ROWS(Database_Prop!P$2:'Database_Prop'!P198))),\"\")","v":""},{"$f":"IFERROR(INDEX(Database_Prop!$B$2:$B$1498,SMALL(IF(Database_Prop!$A$2:$A$1498=AT$129,ROW(Database_Prop!$B$2:$B$1498)-ROW(Database_Prop!$B$2)+1),ROWS(Database_Prop!Q$2:'Database_Prop'!Q198))),\"\")","v":""},{"$f":"IFERROR(INDEX(Database_Prop!$B$2:$B$1498,SMALL(IF(Database_Prop!$A$2:$A$1498=AU$129,ROW(Database_Prop!$B$2:$B$1498)-ROW(Database_Prop!$B$2)+1),ROWS(Database_Prop!R$2:'Database_Prop'!R198))),\"\")","v":""},{"$f":"IFERROR(INDEX(Database_Prop!$B$2:$B$1498,SMALL(IF(Database_Prop!$A$2:$A$1498=AV$129,ROW(Database_Prop!$B$2:$B$1498)-ROW(Database_Prop!$B$2)+1),ROWS(Database_Prop!S$2:'Database_Prop'!S198))),\"\")","v":""},{"$f":"IFERROR(INDEX(Database_Prop!$B$2:$B$1498,SMALL(IF(Database_Prop!$A$2:$A$1498=AW$129,ROW(Database_Prop!$B$2:$B$1498)-ROW(Database_Prop!$B$2)+1),ROWS(Database_Prop!T$2:'Database_Prop'!T198))),\"\")","v":""},{"$f":"IFERROR(INDEX(Database_Prop!$B$2:$B$1498,SMALL(IF(Database_Prop!$A$2:$A$1498=AX$129,ROW(Database_Prop!$B$2:$B$1498)-ROW(Database_Prop!$B$2)+1),ROWS(Database_Prop!U$2:'Database_Prop'!U198))),\"\")","v":""},{"$f":"IFERROR(INDEX(Database_Prop!$B$2:$B$1498,SMALL(IF(Database_Prop!$A$2:$A$1498=AY$129,ROW(Database_Prop!$B$2:$B$1498)-ROW(Database_Prop!$B$2)+1),ROWS(Database_Prop!V$2:'Database_Prop'!V198))),\"\")","v":""},{"$f":"IFERROR(INDEX(Database_Prop!$B$2:$B$1498,SMALL(IF(Database_Prop!$A$2:$A$1498=AZ$129,ROW(Database_Prop!$B$2:$B$1498)-ROW(Database_Prop!$B$2)+1),ROWS(Database_Prop!W$2:'Database_Prop'!W198))),\"\")","v":""},{"$f":"IFERROR(INDEX(Database_Prop!$B$2:$B$1498,SMALL(IF(Database_Prop!$A$2:$A$1498=BA$129,ROW(Database_Prop!$B$2:$B$1498)-ROW(Database_Prop!$B$2)+1),ROWS(Database_Prop!X$2:'Database_Prop'!X198))),\"\")","v":""},{"$f":"IFERROR(INDEX(Database_Prop!$B$2:$B$1498,SMALL(IF(Database_Prop!$A$2:$A$1498=BB$129,ROW(Database_Prop!$B$2:$B$1498)-ROW(Database_Prop!$B$2)+1),ROWS(Database_Prop!Y$2:'Database_Prop'!Y198))),\"\")","v":""},{"$f":"IFERROR(INDEX(Database_Prop!$B$2:$B$1498,SMALL(IF(Database_Prop!$A$2:$A$1498=BC$129,ROW(Database_Prop!$B$2:$B$1498)-ROW(Database_Prop!$B$2)+1),ROWS(Database_Prop!Z$2:'Database_Prop'!Z198))),\"\")","v":""},null,"South Africa","Africa"]
[null,null,null,null,null,null,null,null,null,null,null,null,null,null,null,null,null,null,null,null,null,null,null,null,null,null,null,null,null,null,199,{"$f":"IFERROR(INDEX(Database_Prop!$B$2:$B$1498,SMALL(IF(Database_Prop!$A$2:$A$1498=AF$129,ROW(Database_Prop!$B$2:$B$1498)-ROW(Database_Prop!$B$2)+1),ROWS(Database_Prop!C$2:'Database_Prop'!C199))),\"\")","v":""},{"$f":"IFERROR(INDEX(Database_Prop!$B$2:$B$1498,SMALL(IF(Database_Prop!$A$2:$A$1498=AG$129,ROW(Database_Prop!$B$2:$B$1498)-ROW(Database_Prop!$B$2)+1),ROWS(Database_Prop!D$2:'Database_Prop'!D199))),\"\")","v":""},{"$f":"IFERROR(INDEX(Database_Prop!$B$2:$B$1498,SMALL(IF(Database_Prop!$A$2:$A$1498=AH$129,ROW(Database_Prop!$B$2:$B$1498)-ROW(Database_Prop!$B$2)+1),ROWS(Database_Prop!E$2:'Database_Prop'!E199))),\"\")","v":""},{"$f":"IFERROR(INDEX(Database_Prop!$B$2:$B$1498,SMALL(IF(Database_Prop!$A$2:$A$1498=AI$129,ROW(Database_Prop!$B$2:$B$1498)-ROW(Database_Prop!$B$2)+1),ROWS(Database_Prop!F$2:'Database_Prop'!F199))),\"\")","v":""},{"$f":"IFERROR(INDEX(Database_Prop!$B$2:$B$1498,SMALL(IF(Database_Prop!$A$2:$A$1498=AJ$129,ROW(Database_Prop!$B$2:$B$1498)-ROW(Database_Prop!$B$2)+1),ROWS(Database_Prop!G$2:'Database_Prop'!G199))),\"\")","v":""},{"$f":"IFERROR(INDEX(Database_Prop!$B$2:$B$1498,SMALL(IF(Database_Prop!$A$2:$A$1498=AK$129,ROW(Database_Prop!$B$2:$B$1498)-ROW(Database_Prop!$B$2)+1),ROWS(Database_Prop!H$2:'Database_Prop'!H199))),\"\")","v":""},{"$f":"IFERROR(INDEX(Database_Prop!$B$2:$B$1498,SMALL(IF(Database_Prop!$A$2:$A$1498=AL$129,ROW(Database_Prop!$B$2:$B$1498)-ROW(Database_Prop!$B$2)+1),ROWS(Database_Prop!I$2:'Database_Prop'!I199))),\"\")","v":""},{"$f":"IFERROR(INDEX(Database_Prop!$B$2:$B$1498,SMALL(IF(Database_Prop!$A$2:$A$1498=AM$129,ROW(Database_Prop!$B$2:$B$1498)-ROW(Database_Prop!$B$2)+1),ROWS(Database_Prop!J$2:'Database_Prop'!J199))),\"\")","v":""},{"$f":"IFERROR(INDEX(Database_Prop!$B$2:$B$1498,SMALL(IF(Database_Prop!$A$2:$A$1498=AN$129,ROW(Database_Prop!$B$2:$B$1498)-ROW(Database_Prop!$B$2)+1),ROWS(Database_Prop!K$2:'Database_Prop'!K199))),\"\")","v":""},{"$f":"IFERROR(INDEX(Database_Prop!$B$2:$B$1498,SMALL(IF(Database_Prop!$A$2:$A$1498=AO$129,ROW(Database_Prop!$B$2:$B$1498)-ROW(Database_Prop!$B$2)+1),ROWS(Database_Prop!L$2:'Database_Prop'!L199))),\"\")","v":""},{"$f":"IFERROR(INDEX(Database_Prop!$B$2:$B$1498,SMALL(IF(Database_Prop!$A$2:$A$1498=AP$129,ROW(Database_Prop!$B$2:$B$1498)-ROW(Database_Prop!$B$2)+1),ROWS(Database_Prop!M$2:'Database_Prop'!M199))),\"\")","v":""},{"$f":"IFERROR(INDEX(Database_Prop!$B$2:$B$1498,SMALL(IF(Database_Prop!$A$2:$A$1498=AQ$129,ROW(Database_Prop!$B$2:$B$1498)-ROW(Database_Prop!$B$2)+1),ROWS(Database_Prop!N$2:'Database_Prop'!N199))),\"\")","v":""},{"$f":"IFERROR(INDEX(Database_Prop!$B$2:$B$1498,SMALL(IF(Database_Prop!$A$2:$A$1498=AR$129,ROW(Database_Prop!$B$2:$B$1498)-ROW(Database_Prop!$B$2)+1),ROWS(Database_Prop!O$2:'Database_Prop'!O199))),\"\")","v":""},{"$f":"IFERROR(INDEX(Database_Prop!$B$2:$B$1498,SMALL(IF(Database_Prop!$A$2:$A$1498=AS$129,ROW(Database_Prop!$B$2:$B$1498)-ROW(Database_Prop!$B$2)+1),ROWS(Database_Prop!P$2:'Database_Prop'!P199))),\"\")","v":""},{"$f":"IFERROR(INDEX(Database_Prop!$B$2:$B$1498,SMALL(IF(Database_Prop!$A$2:$A$1498=AT$129,ROW(Database_Prop!$B$2:$B$1498)-ROW(Database_Prop!$B$2)+1),ROWS(Database_Prop!Q$2:'Database_Prop'!Q199))),\"\")","v":""},{"$f":"IFERROR(INDEX(Database_Prop!$B$2:$B$1498,SMALL(IF(Database_Prop!$A$2:$A$1498=AU$129,ROW(Database_Prop!$B$2:$B$1498)-ROW(Database_Prop!$B$2)+1),ROWS(Database_Prop!R$2:'Database_Prop'!R199))),\"\")","v":""},{"$f":"IFERROR(INDEX(Database_Prop!$B$2:$B$1498,SMALL(IF(Database_Prop!$A$2:$A$1498=AV$129,ROW(Database_Prop!$B$2:$B$1498)-ROW(Database_Prop!$B$2)+1),ROWS(Database_Prop!S$2:'Database_Prop'!S199))),\"\")","v":""},{"$f":"IFERROR(INDEX(Database_Prop!$B$2:$B$1498,SMALL(IF(Database_Prop!$A$2:$A$1498=AW$129,ROW(Database_Prop!$B$2:$B$1498)-ROW(Database_Prop!$B$2)+1),ROWS(Database_Prop!T$2:'Database_Prop'!T199))),\"\")","v":""},{"$f":"IFERROR(INDEX(Database_Prop!$B$2:$B$1498,SMALL(IF(Database_Prop!$A$2:$A$1498=AX$129,ROW(Database_Prop!$B$2:$B$1498)-ROW(Database_Prop!$B$2)+1),ROWS(Database_Prop!U$2:'Database_Prop'!U199))),\"\")","v":""},{"$f":"IFERROR(INDEX(Database_Prop!$B$2:$B$1498,SMALL(IF(Database_Prop!$A$2:$A$1498=AY$129,ROW(Database_Prop!$B$2:$B$1498)-ROW(Database_Prop!$B$2)+1),ROWS(Database_Prop!V$2:'Database_Prop'!V199))),\"\")","v":""},{"$f":"IFERROR(INDEX(Database_Prop!$B$2:$B$1498,SMALL(IF(Database_Prop!$A$2:$A$1498=AZ$129,ROW(Database_Prop!$B$2:$B$1498)-ROW(Database_Prop!$B$2)+1),ROWS(Database_Prop!W$2:'Database_Prop'!W199))),\"\")","v":""},{"$f":"IFERROR(INDEX(Database_Prop!$B$2:$B$1498,SMALL(IF(Database_Prop!$A$2:$A$1498=BA$129,ROW(Database_Prop!$B$2:$B$1498)-ROW(Database_Prop!$B$2)+1),ROWS(Database_Prop!X$2:'Database_Prop'!X199))),\"\")","v":""},{"$f":"IFERROR(INDEX(Database_Prop!$B$2:$B$1498,SMALL(IF(Database_Prop!$A$2:$A$1498=BB$129,ROW(Database_Prop!$B$2:$B$1498)-ROW(Database_Prop!$B$2)+1),ROWS(Database_Prop!Y$2:'Database_Prop'!Y199))),\"\")","v":""},{"$f":"IFERROR(INDEX(Database_Prop!$B$2:$B$1498,SMALL(IF(Database_Prop!$A$2:$A$1498=BC$129,ROW(Database_Prop!$B$2:$B$1498)-ROW(Database_Prop!$B$2)+1),ROWS(Database_Prop!Z$2:'Database_Prop'!Z199))),\"\")","v":""},null,"South Sudan","Africa"]
[null,null,null,null,null,null,null,null,null,null,null,null,null,null,null,null,null,null,null,null,null,null,null,null,null,null,null,null,null,null,200,{"$f":"IFERROR(INDEX(Database_Prop!$B$2:$B$1498,SMALL(IF(Database_Prop!$A$2:$A$1498=AF$129,ROW(Database_Prop!$B$2:$B$1498)-ROW(Database_Prop!$B$2)+1),ROWS(Database_Prop!C$2:'Database_Prop'!C200))),\"\")","v":""},{"$f":"IFERROR(INDEX(Database_Prop!$B$2:$B$1498,SMALL(IF(Database_Prop!$A$2:$A$1498=AG$129,ROW(Database_Prop!$B$2:$B$1498)-ROW(Database_Prop!$B$2)+1),ROWS(Database_Prop!D$2:'Database_Prop'!D200))),\"\")","v":""},{"$f":"IFERROR(INDEX(Database_Prop!$B$2:$B$1498,SMALL(IF(Database_Prop!$A$2:$A$1498=AH$129,ROW(Database_Prop!$B$2:$B$1498)-ROW(Database_Prop!$B$2)+1),ROWS(Database_Prop!E$2:'Database_Prop'!E200))),\"\")","v":""},{"$f":"IFERROR(INDEX(Database_Prop!$B$2:$B$1498,SMALL(IF(Database_Prop!$A$2:$A$1498=AI$129,ROW(Database_Prop!$B$2:$B$1498)-ROW(Database_Prop!$B$2)+1),ROWS(Database_Prop!F$2:'Database_Prop'!F200))),\"\")","v":""},{"$f":"IFERROR(INDEX(Database_Prop!$B$2:$B$1498,SMALL(IF(Database_Prop!$A$2:$A$1498=AJ$129,ROW(Database_Prop!$B$2:$B$1498)-ROW(Database_Prop!$B$2)+1),ROWS(Database_Prop!G$2:'Database_Prop'!G200))),\"\")","v":""},{"$f":"IFERROR(INDEX(Database_Prop!$B$2:$B$1498,SMALL(IF(Database_Prop!$A$2:$A$1498=AK$129,ROW(Database_Prop!$B$2:$B$1498)-ROW(Database_Prop!$B$2)+1),ROWS(Database_Prop!H$2:'Database_Prop'!H200))),\"\")","v":""},{"$f":"IFERROR(INDEX(Database_Prop!$B$2:$B$1498,SMALL(IF(Database_Prop!$A$2:$A$1498=AL$129,ROW(Database_Prop!$B$2:$B$1498)-ROW(Database_Prop!$B$2)+1),ROWS(Database_Prop!I$2:'Database_Prop'!I200))),\"\")","v":""},{"$f":"IFERROR(INDEX(Database_Prop!$B$2:$B$1498,SMALL(IF(Database_Prop!$A$2:$A$1498=AM$129,ROW(Database_Prop!$B$2:$B$1498)-ROW(Database_Prop!$B$2)+1),ROWS(Database_Prop!J$2:'Database_Prop'!J200))),\"\")","v":""},{"$f":"IFERROR(INDEX(Database_Prop!$B$2:$B$1498,SMALL(IF(Database_Prop!$A$2:$A$1498=AN$129,ROW(Database_Prop!$B$2:$B$1498)-ROW(Database_Prop!$B$2)+1),ROWS(Database_Prop!K$2:'Database_Prop'!K200))),\"\")","v":""},{"$f":"IFERROR(INDEX(Database_Prop!$B$2:$B$1498,SMALL(IF(Database_Prop!$A$2:$A$1498=AO$129,ROW(Database_Prop!$B$2:$B$1498)-ROW(Database_Prop!$B$2)+1),ROWS(Database_Prop!L$2:'Database_Prop'!L200))),\"\")","v":""},{"$f":"IFERROR(INDEX(Database_Prop!$B$2:$B$1498,SMALL(IF(Database_Prop!$A$2:$A$1498=AP$129,ROW(Database_Prop!$B$2:$B$1498)-ROW(Database_Prop!$B$2)+1),ROWS(Database_Prop!M$2:'Database_Prop'!M200))),\"\")","v":""},{"$f":"IFERROR(INDEX(Database_Prop!$B$2:$B$1498,SMALL(IF(Database_Prop!$A$2:$A$1498=AQ$129,ROW(Database_Prop!$B$2:$B$1498)-ROW(Database_Prop!$B$2)+1),ROWS(Database_Prop!N$2:'Database_Prop'!N200))),\"\")","v":""},{"$f":"IFERROR(INDEX(Database_Prop!$B$2:$B$1498,SMALL(IF(Database_Prop!$A$2:$A$1498=AR$129,ROW(Database_Prop!$B$2:$B$1498)-ROW(Database_Prop!$B$2)+1),ROWS(Database_Prop!O$2:'Database_Prop'!O200))),\"\")","v":""},{"$f":"IFERROR(INDEX(Database_Prop!$B$2:$B$1498,SMALL(IF(Database_Prop!$A$2:$A$1498=AS$129,ROW(Database_Prop!$B$2:$B$1498)-ROW(Database_Prop!$B$2)+1),ROWS(Database_Prop!P$2:'Database_Prop'!P200))),\"\")","v":""},{"$f":"IFERROR(INDEX(Database_Prop!$B$2:$B$1498,SMALL(IF(Database_Prop!$A$2:$A$1498=AT$129,ROW(Database_Prop!$B$2:$B$1498)-ROW(Database_Prop!$B$2)+1),ROWS(Database_Prop!Q$2:'Database_Prop'!Q200))),\"\")","v":""},{"$f":"IFERROR(INDEX(Database_Prop!$B$2:$B$1498,SMALL(IF(Database_Prop!$A$2:$A$1498=AU$129,ROW(Database_Prop!$B$2:$B$1498)-ROW(Database_Prop!$B$2)+1),ROWS(Database_Prop!R$2:'Database_Prop'!R200))),\"\")","v":""},{"$f":"IFERROR(INDEX(Database_Prop!$B$2:$B$1498,SMALL(IF(Database_Prop!$A$2:$A$1498=AV$129,ROW(Database_Prop!$B$2:$B$1498)-ROW(Database_Prop!$B$2)+1),ROWS(Database_Prop!S$2:'Database_Prop'!S200))),\"\")","v":""},{"$f":"IFERROR(INDEX(Database_Prop!$B$2:$B$1498,SMALL(IF(Database_Prop!$A$2:$A$1498=AW$129,ROW(Database_Prop!$B$2:$B$1498)-ROW(Database_Prop!$B$2)+1),ROWS(Database_Prop!T$2:'Database_Prop'!T200))),\"\")","v":""},{"$f":"IFERROR(INDEX(Database_Prop!$B$2:$B$1498,SMALL(IF(Database_Prop!$A$2:$A$1498=AX$129,ROW(Database_Prop!$B$2:$B$1498)-ROW(Database_Prop!$B$2)+1),ROWS(Database_Prop!U$2:'Database_Prop'!U200))),\"\")","v":""},{"$f":"IFERROR(INDEX(Database_Prop!$B$2:$B$1498,SMALL(IF(Database_Prop!$A$2:$A$1498=AY$129,ROW(Database_Prop!$B$2:$B$1498)-ROW(Database_Prop!$B$2)+1),ROWS(Database_Prop!V$2:'Database_Prop'!V200))),\"\")","v":""},{"$f":"IFERROR(INDEX(Database_Prop!$B$2:$B$1498,SMALL(IF(Database_Prop!$A$2:$A$1498=AZ$129,ROW(Database_Prop!$B$2:$B$1498)-ROW(Database_Prop!$B$2)+1),ROWS(Database_Prop!W$2:'Database_Prop'!W200))),\"\")","v":""},{"$f":"IFERROR(INDEX(Database_Prop!$B$2:$B$1498,SMALL(IF(Database_Prop!$A$2:$A$1498=BA$129,ROW(Database_Prop!$B$2:$B$1498)-ROW(Database_Prop!$B$2)+1),ROWS(Database_Prop!X$2:'Database_Prop'!X200))),\"\")","v":""},{"$f":"IFERROR(INDEX(Database_Prop!$B$2:$B$1498,SMALL(IF(Database_Prop!$A$2:$A$1498=BB$129,ROW(Database_Prop!$B$2:$B$1498)-ROW(Database_Prop!$B$2)+1),ROWS(Database_Prop!Y$2:'Database_Prop'!Y200))),\"\")","v":""},{"$f":"IFERROR(INDEX(Database_Prop!$B$2:$B$1498,SMALL(IF(Database_Prop!$A$2:$A$1498=BC$129,ROW(Database_Prop!$B$2:$B$1498)-ROW(Database_Prop!$B$2)+1),ROWS(Database_Prop!Z$2:'Database_Prop'!Z200))),\"\")","v":""},null,"Spain","Western Europe"]
[null,null,null,null,null,null,null,null,null,null,null,null,null,null,null,null,null,null,null,null,null,null,null,null,null,null,null,null,null,null,1,1,1,1,1,1,1,2,3,4,5,6,7,8,9,10,11,12,13,14,15,16,17,18,19,1,"Sri Lanka","Indian Subcontinent"]
[null,null,null,null,null,null,null,null,null,null,null,null,null,null,null,null,null,null,null,null,null,null,null,null,null,null,null,null,null,null,null,null,null,null,null,null,null,null,null,null,null,null,null,null,null,null,null,null,null,null,null,null,null,null,null,null,"Sudan","Africa"]
[null,null,null,null,null,null,null,null,null,null,null,null,null,null,null,null,null,null,null,null,null,null,null,null,null,null,null,null,null,null,null,null,null,null,null,null,null,null,null,null,null,null,null,null,null,null,null,null,null,null,null,null,null,null,null,null,"Sudan (former)","Africa"]
[null,null,null,null,null,null,null,null,null,null,null,null,null,null,null,null,null,null,null,null,null,null,null,null,null,null,null,null,null,null,null,null,null,null,null,null,null,null,null,null,null,null,null,null,null,null,null,null,null,null,null,null,null,null,null,null,"Suriname","Latin America"]
[null,null,null,null,null,null,null,null,null,null,null,null,null,null,null,null,null,null,null,null,null,null,null,null,null,null,null,null,null,null,null,null,null,null,null,null,null,null,null,null,null,null,null,null,null,null,null,null,null,null,null,null,null,null,null,null,"Svalbard and Jan Mayen Islands","Western Europe"]
[null,null,null,null,null,null,null,null,null,null,null,null,null,null,null,null,null,null,null,null,null,null,null,null,null,null,null,null,null,null,null,null,null,null,null,null,null,null,null,null,null,null,null,null,null,null,null,null,null,null,null,null,null,null,null,null,"Swaziland","Africa"]
[null,null,null,null,null,null,null,null,null,null,null,null,null,null,null,null,null,null,null,null,null,null,null,null,null,null,null,null,null,null,null,null,null,null,null,null,null,null,null,null,null,null,null,null,null,null,null,null,null,null,null,null,null,null,null,null,"Sweden","Western Europe"]
[null,null,null,null,null,null,null,null,null,null,null,null,null,null,null,null,null,null,null,null,null,null,null,null,null,null,null,null,null,null,null,null,null,null,null,null,null,null,null,null,null,null,null,null,null,null,null,null,null,null,null,null,null,null,null,null,"Switzerland","Western Europe"]
[null,null,null,null,null,null,null,null,null,null,null,null,null,null,null,null,null,null,null,null,null,null,null,null,null,null,null,null,null,null,null,null,null,null,null,null,null,null,null,null,null,null,null,null,null,null,null,null,null,null,null,null,null,null,null,null,"Syrian Arab Republic","Middle East"]
[null,null,null,null,null,null,null,null,null,null,null,null,null,null,null,null,null,null,null,null,null,null,null,null,null,null,null,null,null,null,null,null,null,null,null,null,null,null,null,null,null,null,null,null,null,null,null,null,null,null,null,null,null,null,null,null,"Tajikistan","Asia"]
[null,null,null,null,null,null,null,null,null,null,null,null,null,null,null,null,null,null,null,null,null,null,null,null,null,null,null,null,null,null,null,null,null,null,null,null,null,null,null,null,null,null,null,null,null,null,null,null,null,null,null,null,null,null,null,null,"Thailand","Asia"]
[null,null,null,null,null,null,null,null,null,null,null,null,null,null,null,null,null,null,null,null,null,null,null,null,null,null,null,null,null,null,null,null,null,null,null,null,null,null,null,null,null,null,null,null,null,null,null,null,null,null,null,null,null,null,null,null,"The former Yugoslav Republic of Macedonia","Eastern Europe"]
[null,null,null,null,null,null,null,null,null,null,null,null,null,null,null,null,null,null,null,null,null,null,null,null,null,null,null,null,null,null,null,null,null,null,null,null,null,null,null,null,null,null,null,null,null,null,null,null,null,null,null,null,null,null,null,null,"Timor-Leste","Asia"]
[null,null,null,null,null,null,null,null,null,null,null,null,null,null,null,null,null,null,null,null,null,null,null,null,null,null,null,null,null,null,null,null,null,null,null,null,null,null,null,null,null,null,null,null,null,null,null,null,null,null,null,null,null,null,null,null,"Togo","Africa"]
[null,null,null,null,null,null,null,null,null,null,null,null,null,null,null,null,null,null,null,null,null,null,null,null,null,null,null,null,null,null,null,null,null,null,null,null,null,null,null,null,null,null,null,null,null,null,null,null,null,null,null,null,null,null,null,null,"Tokelau","Oceania"]
[null,null,null,null,null,null,null,null,null,null,null,null,null,null,null,null,null,null,null,null,null,null,null,null,null,null,null,null,null,null,null,null,null,null,null,null,null,null,null,null,null,null,null,null,null,null,null,null,null,null,null,null,null,null,null,null,"Tonga","Oceania"]
[null,null,null,null,null,null,null,null,null,null,null,null,null,null,null,null,null,null,null,null,null,null,null,null,null,null,null,null,null,null,null,null,null,null,null,null,null,null,null,null,null,null,null,null,null,null,null,null,null,null,null,null,null,null,null,null,"Trinidad and Tobago","Latin America"]
[null,null,null,null,null,null,null,null,null,null,null,null,null,null,null,null,null,null,null,null,null,null,null,null,null,null,null,null,null,null,null,null,null,null,null,null,null,null,null,null,null,null,null,null,null,null,null,null,null,null,null,null,null,null,null,null,"Tunisia","Africa"]
[null,null,null,null,null,null,null,null,null,null,null,null,null,null,null,null,null,null,null,null,null,null,null,null,null,null,null,null,null,null,null,null,null,null,null,null,null,null,null,null,null,null,null,null,null,null,null,null,null,null,null,null,null,null,null,null,"Turkey","Middle East"]
[null,null,null,null,null,null,null,null,null,null,null,null,null,null,null,null,null,null,null,null,null,null,null,null,null,null,null,null,null,null,null,null,null,null,null,null,null,null,null,null,null,null,null,null,null,null,null,null,null,null,null,null,null,null,null,null,"Turkmenistan","Asia"]
[null,null,null,null,null,null,null,null,null,null,null,null,null,null,null,null,null,null,null,null,null,null,null,null,null,null,null,null,null,null,null,null,null,null,null,null,null,null,null,null,null,null,null,null,null,null,null,null,null,null,null,null,null,null,null,null,"Turks and Caicos Islands","Latin America"]
[null,null,null,null,null,null,null,null,null,null,null,null,null,null,null,null,null,null,null,null,null,null,null,null,null,null,null,null,null,null,null,null,null,null,null,null,null,null,null,null,null,null,null,null,null,null,null,null,null,null,null,null,null,null,null,null,"Tuvalu","Oceania"]
[null,null,null,null,null,null,null,null,null,null,null,null,null,null,null,null,null,null,null,null,null,null,null,null,null,null,null,null,null,null,null,null,null,null,null,null,null,null,null,null,null,null,null,null,null,null,null,null,null,null,null,null,null,null,null,null,"Uganda","Africa"]
[null,null,null,null,null,null,null,null,null,null,null,null,null,null,null,null,null,null,null,null,null,null,null,null,null,null,null,null,null,null,null,null,null,null,null,null,null,null,null,null,null,null,null,null,null,null,null,null,null,null,null,null,null,null,null,null,"Ukraine","Eastern Europe"]
[null,null,null,null,null,null,null,null,null,null,null,null,null,null,null,null,null,null,null,null,null,null,null,null,null,null,null,null,null,null,null,null,null,null,null,null,null,null,null,null,null,null,null,null,null,null,null,null,null,null,null,null,null,null,null,null,"United Arab Emirates","Middle East"]
[null,null,null,null,null,null,null,null,null,null,null,null,null,null,null,null,null,null,null,null,null,null,null,null,null,null,null,null,null,null,null,null,null,null,null,null,null,null,null,null,null,null,null,null,null,null,null,null,null,null,null,null,null,null,null,null,"United Kingdom","Western Europe"]
[null,null,null,null,null,null,null,null,null,null,null,null,null,null,null,null,null,null,null,null,null,null,null,null,null,null,null,null,null,null,null,null,null,null,null,null,null,null,null,null,null,null,null,null,null,null,null,null,null,null,null,null,null,null,null,null,"United Republic of Tanzania","Africa"]
[null,null,null,null,null,null,null,null,null,null,null,null,null,null,null,null,null,null,null,null,null,null,null,null,null,null,null,null,null,null,null,null,null,null,null,null,null,null,null,null,null,null,null,null,null,null,null,null,null,null,null,null,null,null,null,null,"United States of America","North America"]
[null,null,null,null,null,null,null,null,null,null,null,null,null,null,null,null,null,null,null,null,null,null,null,null,null,null,null,null,null,null,null,null,null,null,null,null,null,null,null,null,null,null,null,null,null,null,null,null,null,null,null,null,null,null,null,null,"United States Virgin Islands","Latin America"]
[null,null,null,null,null,null,null,null,null,null,null,null,null,null,null,null,null,null,null,null,null,null,null,null,null,null,null,null,null,null,null,null,null,null,null,null,null,null,null,null,null,null,null,null,null,null,null,null,null,null,null,null,null,null,null,null,"Uruguay","Latin America"]
[null,null,null,null,null,null,null,null,null,null,null,null,null,null,null,null,null,null,null,null,null,null,null,null,null,null,null,null,null,null,null,null,null,null,null,null,null,null,null,null,null,null,null,null,null,null,null,null,null,null,null,null,null,null,null,null,"Uzbekistan","Asia"]
[null,null,null,null,null,null,null,null,null,null,null,null,null,null,null,null,null,null,null,null,null,null,null,null,null,null,null,null,null,null,null,null,null,null,null,null,null,null,null,null,null,null,null,null,null,null,null,null,null,null,null,null,null,null,null,null,"Vanuatu","Oceania"]
[null,null,null,null,null,null,null,null,null,null,null,null,null,null,null,null,null,null,null,null,null,null,null,null,null,null,null,null,null,null,null,null,null,null,null,null,null,null,null,null,null,null,null,null,null,null,null,null,null,null,null,null,null,null,null,null,"Venezuela (Bolivarian Republic of)","Latin America"]
[null,null,null,null,null,null,null,null,null,null,null,null,null,null,null,null,null,null,null,null,null,null,null,null,null,null,null,null,null,null,null,null,null,null,null,null,null,null,null,null,null,null,null,null,null,null,null,null,null,null,null,null,null,null,null,null,"Viet Nam","Asia"]
[null,null,null,null,null,null,null,null,null,null,null,null,null,null,null,null,null,null,null,null,null,null,null,null,null,null,null,null,null,null,null,null,null,null,null,null,null,null,null,null,null,null,null,null,null,null,null,null,null,null,null,null,null,null,null,null,"Wallis and Futuna Islands","Oceania"]
[null,null,null,null,null,null,null,null,null,null,null,null,null,null,null,null,null,null,null,null,null,null,null,null,null,null,null,null,null,null,null,null,null,null,null,null,null,null,null,null,null,null,null,null,null,null,null,null,null,null,null,null,null,null,null,null,"Western Sahara","Africa"]
[null,null,null,null,null,null,null,null,null,null,null,null,null,null,null,null,null,null,null,null,null,null,null,null,null,null,null,null,null,null,null,null,null,null,null,null,null,null,null,null,null,null,null,null,null,null,null,null,null,null,null,null,null,null,null,null,"Yemen","Middle East"]
[null,null,null,null,null,null,null,null,null,null,null,null,null,null,null,null,null,null,null,null,null,null,null,null,null,null,null,null,null,null,null,null,null,null,null,null,null,null,null,null,null,null,null,null,null,null,null,null,null,null,null,null,null,null,null,null,"Zambia","Africa"]
[null,null,null,null,null,null,null,null,null,null,null,null,null,null,null,null,null,null,null,null,null,null,null,null,null,null,null,null,null,null,null,null,null,null,null,null,null,null,null,null,null,null,null,null,null,null,null,null,null,null,null,null,null,null,null,null,"Zimbabwe","Africa"]

{"sheet":"Planner_PS1","index":9,"n_rows":190,"n_cols":44,"rows_kept":190,"cut":false,"hidden":true,"merged":[[2,2,2,17],[113,30,113,31],[115,30,115,31],[115,32,116,33],[5,2,5,3],[5,4,5,8]]}
[]
[]
[null,null,{"$f":"title199&\" 1\"","v":"BIOMASS DISTRIBUTION PLANNER FOR PROCESS  1"}]
[]
[null,null,null,null,null,null,null,null,null,null,null,null,null,null,"Please Select Please Select"]
[null,null,{"$f":"title193","v":"Use white cells to input data"},null,{"$f":"title194","v":"Grey cells are used for calculations"}]
[]
[null,null,null,null,null,{"$f":"title204","v":"Jan"},{"$f":"title205","v":"Feb"},{"$f":"title206","v":"Mar"},{"$f":"title207","v":"Apr"},{"$f":"title208","v":"May"},{"$f":"title209","v":"Jun"},{"$f":"title210","v":"Jul"},{"$f":"title211","v":"Aug"},{"$f":"title212","v":"Sep"},{"$f":"title213","v":"Oct"},{"$f":"title214","v":"Nov"},{"$f":"title215","v":"Dec"}]
[null,null,{"$f":"title200","v":"Monthly Average Envirnomental Temperature"},null,"°C"]
[null,null,{"$f":"title201","v":"Feedstock Selection and Cost"}]
[null,null,null,null,null,{"$f":"IF(AND(AB$93>1,AB$86),title203,\"\")","v":""},"","","","","","","","","","",""]
[null,null,{"$f":"title202","v":"Feedstock Distribution"},null,{"$f":"title110","v":"Feedstock Available (t/year)"},{"$f":"title204","v":"Jan"},{"$f":"title205","v":"Feb"},{"$f":"title206","v":"Mar"},{"$f":"title207","v":"Apr"},{"$f":"title208","v":"May"},{"$f":"title209","v":"Jun"},{"$f":"title210","v":"Jul"},{"$f":"title211","v":"Aug"},{"$f":"title212","v":"Sep"},{"$f":"title213","v":"Oct"},{"$f":"title214","v":"Nov"},{"$f":"title215","v":"Dec"},{"$f":"title218","v":"Left to Allocate"},null,"Criteria1","Criteria2"]
[null,{"$f":"ROW('Data entry needs'!$B$21)","v":21},{"$f":"IF(INDIRECT(\"'Data entry needs'!$D\"&$B13)=title74,\"\",INDIRECT(\"'Data entry needs'!$d\"&$B13)&\"-\"&INDIRECT(\"'Data entry needs'!$e\"&$B13))","v":""},null,{"$f":"IF(INDIRECT(\"'Data entry needs'!$e\"&$B13)=title74,0,INDIRECT(\"'Data entry needs'!$f\"&$B13))","v":0},null,null,null,null,null,null,null,null,null,null,null,null,{"$f":"IFERROR(ROUND(E13-SUM(F13:Q13),0),0)","v":0},{"$f":"12-COUNTA(F13:Q13)","v":12},{"$f":"AND(IF(R13<=0,FALSE,TRUE),NOT(U13))","v":false},{"$f":"AND(IF(COUNTA(F13:Q13)=12,TRUE,FALSE),IF(R13>0,TRUE,FALSE))","v":false}]
[null,{"$f":"B13+2","v":23},{"$f":"IF(INDIRECT(\"'Data entry needs'!$D\"&$B14)=title74,\"\",INDIRECT(\"'Data entry needs'!$d\"&$B14)&\"-\"&INDIRECT(\"'Data entry needs'!$e\"&$B14))","v":""},null,{"$f":"IF(INDIRECT(\"'Data entry needs'!$e\"&$B14)=title74,0,INDIRECT(\"'Data entry needs'!$f\"&$B14))","v":0},null,null,null,null,null,null,null,null,null,null,null,null,{"$f":"IFERROR(ROUND(E14-SUM(F14:Q14),0),0)","v":0},{"$f":"12-COUNTA(F14:Q14)","v":12},{"$f":"AND(IF(R14<=0,FALSE,TRUE),NOT(U14))","v":false},{"$f":"AND(IF(COUNTA(F14:Q14)=12,TRUE,FALSE),IF(R14>0,TRUE,FALSE))","v":false}]
[null,{"$f":"B14+2","v":25},{"$f":"IF(INDIRECT(\"'Data entry needs'!$D\"&$B15)=title74,\"\",INDIRECT(\"'Data entry needs'!$d\"&$B15)&\"-\"&INDIRECT(\"'Data entry needs'!$e\"&$B15))","v":""},null,{"$f":"IF(INDIRECT(\"'Data entry needs'!$e\"&$B15)=title74,0,INDIRECT(\"'Data entry needs'!$f\"&$B15))","v":0},null,null,null,null,null,null,null,null,null,null,null,null,{"$f":"IFERROR(ROUND(E15-SUM(F15:Q15),0),0)","v":0},{"$f":"12-COUNTA(F15:Q15)","v":12},{"$f":"AND(IF(R15<=0,FALSE,TRUE),NOT(U15))","v":false},{"$f":"AND(IF(COUNTA(F15:Q15)=12,TRUE,FALSE),IF(R15>0,TRUE,FALSE))","v":false}]
[null,{"$f":"B15+2","v":27},{"$f":"IF(INDIRECT(\"'Data entry needs'!$D\"&$B16)=title74,\"\",INDIRECT(\"'Data entry needs'!$d\"&$B16)&\"-\"&INDIRECT(\"'Data entry needs'!$e\"&$B16))","v":""},null,{"$f":"IF(INDIRECT(\"'Data entry needs'!$e\"&$B16)=title74,0,INDIRECT(\"'Data entry needs'!$f\"&$B16))","v":0},null,null,null,null,null,null,null,null,null,null,null,null,{"$f":"IFERROR(ROUND(E16-SUM(F16:Q16),0),0)","v":0},{"$f":"12-COUNTA(F16:Q16)","v":12},{"$f":"AND(IF(R16<=0,FALSE,TRUE),NOT(U16))","v":false},{"$f":"AND(IF(COUNTA(F16:Q16)=12,TRUE,FALSE),IF(R16>0,TRUE,FALSE))","v":false}]
[null,{"$f":"B16+2","v":29},{"$f":"IF(INDIRECT(\"'Data entry needs'!$D\"&$B17)=title74,\"\",INDIRECT(\"'Data entry needs'!$d\"&$B17)&\"-\"&INDIRECT(\"'Data entry needs'!$e\"&$B17))","v":""},null,{"$f":"IF(INDIRECT(\"'Data entry needs'!$e\"&$B17)=title74,0,INDIRECT(\"'Data entry needs'!$f\"&$B17))","v":0},null,null,null,null,null,null,null,null,null,null,null,null,{"$f":"IFERROR(ROUND(E17-SUM(F17:Q17),0),0)","v":0},{"$f":"12-COUNTA(F17:Q17)","v":12},{"$f":"AND(IF(R17<=0,FALSE,TRUE),NOT(U17))","v":false},{"$f":"AND(IF(COUNTA(F17:Q17)=12,TRUE,FALSE),IF(R17>0,TRUE,FALSE))","v":false}]
[]
[null,null,{"$f":"title217","v":"Codigestion Feedstock Distribution"}]
[null,{"$f":"B17+4","v":33},{"$f":"IF(INDIRECT(\"'Data entry needs'!$D\"&$B20)=title74,\"\",INDIRECT(\"'Data entry needs'!$d\"&$B20)&\"-\"&INDIRECT(\"'Data entry needs'!$e\"&$B20))","v":""},null,{"$f":"IF(INDIRECT(\"'Data entry needs'!$e\"&$B20)=title74,\"\",INDIRECT(\"'Data entry needs'!$f\"&$B20))","v":""},null,null,null,null,null,null,null,null,null,null,null,null,{"$f":"IFERROR(ROUND(E20-SUM(F20:Q20),0),0)","v":0},{"$f":"12-COUNTA(F20:Q20)","v":12},{"$f":"AND(IF(R20<=0,FALSE,TRUE),NOT(U20))","v":false},{"$f":"AND(IF(COUNTA(F20:Q20)=12,TRUE,FALSE),IF(R20>0,TRUE,FALSE))","v":false}]
[]
[null,null,{"$f":"title216","v":"Feedstock Monthly Available (t/month)"},null,null,{"$f":"IF('Data entry needs'!$D$11,Planner_PS1!$F$13,IF('Data entry needs'!$F$11,SUM(F13:F17),SUM(F13:F17,F20)))","v":0},{"$f":"SUM(G13:G17,G20)","v":0},0,0,0,0,0,0,0,0,0,0]
[]
[]
[]
[]
[]
[]
[]
[]
[]
[]
[]
[]
[]
[]
[]
[]
[]
[]
[]
[]
[]
[]
[]
[]
[]
[]
[]
[]
[]
[]
[]
[]
[]
[]
[]
[]
[null,null,null,null,null,null,null,null,null,null,null,null,null,null,null,null,null,null,null,null,null,null,null,null,null,null,{"$f":"title246","v":"Storage Planner"}]
[null,null,null,null,null,null,null,null,null,null,null,null,null,null,null,null,null,null,null,null,null,null,null,null,null,null,{"$f":"title247","v":"Total Fs  (t/month)"},{"$f":"F22","v":0},0,0,0,0,0,0,0,0,0,0,0]
[null,null,null,null,null,null,null,null,null,null,null,null,null,null,null,null,null,null,null,null,null,null,null,null,null,null,null,{"$f":"title204","v":"Jan"},{"$f":"title205","v":"Feb"},{"$f":"title206","v":"Mar"},{"$f":"title207","v":"Apr"},{"$f":"title208","v":"May"},{"$f":"title209","v":"Jun"},{"$f":"title210","v":"Jul"},{"$f":"title211","v":"Aug"},{"$f":"title212","v":"Sep"},{"$f":"title213","v":"Oct"},{"$f":"title214","v":"Nov"},{"$f":"title215","v":"Dec"},"AVERAGE"]
[null,null,null,null,null,null,null,null,null,null,null,null,null,null,null,null,null,null,null,null,null,null,null,null,null,null,"FS1",{"$f":"$AH100*F13/$AB$60","v":{"$error":"#DIV/0!"}},{"$f":"$AH100*G13/$AB$60","v":{"$error":"#DIV/0!"}},{"$error":"#DIV/0!"},{"$error":"#DIV/0!"},{"$error":"#DIV/0!"},{"$error":"#DIV/0!"},{"$error":"#DIV/0!"},{"$error":"#DIV/0!"},{"$error":"#DIV/0!"},{"$error":"#DIV/0!"},{"$error":"#DIV/0!"},{"$error":"#DIV/0!"},{"$f":"AVERAGE(AB62:AM62)","v":{"$error":"#DIV/0!"}}]
[null,null,null,null,null,null,null,null,null,null,null,null,null,null,null,null,null,null,null,null,null,null,null,null,null,null,"FS2",{"$f":"$AH101*F14/$AB$60","v":{"$error":"#DIV/0!"}},{"$error":"#DIV/0!"},{"$error":"#DIV/0!"},{"$error":"#DIV/0!"},{"$error":"#DIV/0!"},{"$error":"#DIV/0!"},{"$error":"#DIV/0!"},{"$error":"#DIV/0!"},{"$error":"#DIV/0!"},{"$error":"#DIV/0!"},{"$error":"#DIV/0!"},{"$error":"#DIV/0!"},{"$error":"#DIV/0!"}]
[null,null,null,null,null,null,null,null,null,null,null,null,null,null,null,null,null,null,null,null,null,null,null,null,null,null,"FS3",{"$f":"$AH102*F15/$AB$60","v":{"$error":"#DIV/0!"}},{"$error":"#DIV/0!"},{"$error":"#DIV/0!"},{"$error":"#DIV/0!"},{"$error":"#DIV/0!"},{"$error":"#DIV/0!"},{"$error":"#DIV/0!"},{"$error":"#DIV/0!"},{"$error":"#DIV/0!"},{"$error":"#DIV/0!"},{"$error":"#DIV/0!"},{"$error":"#DIV/0!"},{"$error":"#DIV/0!"}]
[null,null,null,null,null,null,null,null,null,null,null,null,null,null,null,null,null,null,null,null,null,null,null,null,null,null,"FS4",{"$f":"$AH103*F16/$AB$60","v":{"$error":"#DIV/0!"}},{"$error":"#DIV/0!"},{"$error":"#DIV/0!"},{"$error":"#DIV/0!"},{"$error":"#DIV/0!"},{"$error":"#DIV/0!"},{"$error":"#DIV/0!"},{"$error":"#DIV/0!"},{"$error":"#DIV/0!"},{"$error":"#DIV/0!"},{"$error":"#DIV/0!"},{"$error":"#DIV/0!"},{"$error":"#DIV/0!"}]
[null,null,null,null,null,null,null,null,null,null,null,null,null,null,null,null,null,null,null,null,null,null,null,null,null,null,"FS5",{"$f":"$AH104*F17/$AB$60","v":{"$error":"#DIV/0!"}},{"$error":"#DIV/0!"},{"$error":"#DIV/0!"},{"$error":"#DIV/0!"},{"$error":"#DIV/0!"},{"$error":"#DIV/0!"},{"$error":"#DIV/0!"},{"$error":"#DIV/0!"},{"$error":"#DIV/0!"},{"$error":"#DIV/0!"},{"$error":"#DIV/0!"},{"$error":"#DIV/0!"},{"$error":"#DIV/0!"}]
[null,null,null,null,null,null,null,null,null,null,null,null,null,null,null,null,null,null,null,null,null,null,null,null,null,null,{"$f":"title167","v":"Codigestion"},{"$f":"$AH105*F20/$AB$60","v":{"$error":"#DIV/0!"}},{"$f":"$AH105*G20/$AB$60","v":{"$error":"#DIV/0!"}},{"$error":"#DIV/0!"},{"$error":"#DIV/0!"},{"$error":"#DIV/0!"},{"$error":"#DIV/0!"},{"$error":"#DIV/0!"},{"$error":"#DIV/0!"},{"$error":"#DIV/0!"},{"$error":"#DIV/0!"},{"$error":"#DIV/0!"},{"$error":"#DIV/0!"},{"$error":"#DIV/0!"}]
[]
[]
[null,null,null,null,null,null,null,null,null,null,null,null,null,null,null,null,null,null,null,null,null,null,null,null,null,null,null,{"$f":"title248&\" 1\"","v":"Size 1"},{"$f":"title248&\" 2\"","v":"Size 2"},{"$f":"title248&\" 3\"","v":"Size 3"},{"$f":"title248&\" 4\"","v":"Size 4"}]
[null,null,null,null,null,null,null,null,null,null,null,null,null,null,null,null,null,null,null,null,null,null,null,null,null,null,"FS1",{"$f":"$AN62*AD$132*30","v":{"$error":"#DIV/0!"}},{"$f":"$AN62*AE$132*30","v":{"$error":"#DIV/0!"}},{"$error":"#DIV/0!"},{"$error":"#DIV/0!"}]
[null,null,null,null,null,null,null,null,null,null,null,null,null,null,null,null,null,null,null,null,null,null,null,null,null,null,"FS2",{"$error":"#DIV/0!"},{"$error":"#DIV/0!"},{"$error":"#DIV/0!"},{"$error":"#DIV/0!"}]
[null,null,null,null,null,null,null,null,null,null,null,null,null,null,null,null,null,null,null,null,null,null,null,null,null,null,"FS3",{"$error":"#DIV/0!"},{"$error":"#DIV/0!"},{"$error":"#DIV/0!"},{"$error":"#DIV/0!"}]
[null,null,null,null,null,null,null,null,null,null,null,null,null,null,null,null,null,null,null,null,null,null,null,null,null,null,"FS4",{"$error":"#DIV/0!"},{"$error":"#DIV/0!"},{"$error":"#DIV/0!"},{"$error":"#DIV/0!"}]
[null,null,null,null,null,null,null,null,null,null,null,null,null,null,null,null,null,null,null,null,null,null,null,null,null,null,"FS5",{"$error":"#DIV/0!"},{"$error":"#DIV/0!"},{"$error":"#DIV/0!"},{"$error":"#DIV/0!"}]
[null,null,null,null,null,null,null,null,null,null,null,null,null,null,null,null,null,null,null,null,null,null,null,null,null,null,{"$f":"title167","v":"Codigestion"},{"$error":"#DIV/0!"},{"$error":"#DIV/0!"},{"$error":"#DIV/0!"},{"$error":"#DIV/0!"}]
[]
[]
[]
[]
[]
[]
[]
[]
[]
[null,null,null,null,null,null,null,null,null,null,null,null,null,null,null,null,null,null,null,null,null,null,null,null,null,null,null,{"$f":"'Data entry needs'!$F$11","v":false},{"$f":"'Data entry needs'!$F$11","v":false},{"$f":"'Data entry needs'!$F$11","v":false},{"$f":"'Data entry needs'!$F$11","v":false},{"$f":"'Data entry needs'!$F$11","v":false},{"$f":"'Data entry needs'!$F$11","v":false},{"$f":"'Data entry needs'!$F$11","v":false},{"$f":"'Data entry needs'!$F$11","v":false},{"$f":"'Data entry needs'!$F$11","v":false},{"$f":"'Data entry needs'!$F$11","v":false},{"$f":"'Data entry needs'!$F$11","v":false},{"$f":"'Data entry needs'!$F$11","v":false}]
[null,null,null,null,null,null,null,null,null,null,null,null,null,null,null,null,null,null,null,null,null,null,null,null,null,null,null,{"$f":"title204","v":"Jan"},{"$f":"title205","v":"Feb"},{"$f":"title206","v":"Mar"},{"$f":"title207","v":"Apr"},{"$f":"title208","v":"May"},{"$f":"title209","v":"Jun"},{"$f":"title210","v":"Jul"},{"$f":"title211","v":"Aug"},{"$f":"title212","v":"Sep"},{"$f":"title213","v":"Oct"},{"$f":"title214","v":"Nov"},{"$f":"title215","v":"Dec"},"Not Collection Months",{"$f":"title633","v":"Collection Months"}]
[null,null,null,null,null,null,null,null,null,null,null,null,null,null,null,null,null,null,null,null,null,null,null,null,null,null,null,{"$f":"IF(OR(ISBLANK(F13),F13=0),0,1)","v":0},0,0,0,0,0,0,0,0,0,0,0,{"$f":"IF((12-COUNTIF(AB88:AM88,\">0\"))=0,1,(12-COUNTIF(AB88:AM88,\">0\")))","v":12},{"$f":"SUM(AB88:AM88)","v":0}]
[null,null,null,null,null,null,null,null,null,null,null,null,null,null,null,null,null,null,null,null,null,null,null,null,null,null,null,0,0,0,0,0,0,0,0,0,0,0,0,{"$f":"IF((12-COUNTIF(AB89:AM89,\">0\"))=0,1,(12-COUNTIF(AB89:AM89,\">0\")))","v":12},{"$f":"SUM(AB89:AM89)","v":0}]
[null,null,null,null,null,null,null,null,null,null,null,null,null,null,null,null,null,null,null,null,null,null,null,null,null,null,null,0,0,0,0,0,0,0,0,0,0,0,0,{"$f":"IF((12-COUNTIF(AB90:AM90,\">0\"))=0,1,(12-COUNTIF(AB90:AM90,\">0\")))","v":12},{"$f":"SUM(AB90:AM90)","v":0}]
[null,null,null,null,null,null,null,null,null,null,null,null,null,null,null,null,null,null,null,null,null,null,null,null,null,null,null,0,0,0,0,0,0,0,0,0,0,0,0,{"$f":"IF((12-COUNTIF(AB91:AM91,\">0\"))=0,1,(12-COUNTIF(AB91:AM91,\">0\")))","v":12},{"$f":"SUM(AB91:AM91)","v":0}]
[null,null,null,null,null,null,null,null,null,null,null,null,null,null,null,null,null,null,null,null,null,null,null,null,null,null,null,0,0,0,0,0,0,0,0,0,0,0,0,{"$f":"IF((12-COUNTIF(AB92:AM92,\">0\"))=0,1,(12-COUNTIF(AB92:AM92,\">0\")))","v":12},{"$f":"SUM(AB92:AM92)","v":0}]
[null,null,null,null,null,null,null,null,null,null,null,null,null,null,null,null,null,null,null,null,null,null,null,null,null,null,null,{"$f":"SUM(AB88:AB92)","v":0},0,0,0,0,0,0,0,0,0,0,0]
[null,null,null,null,null,null,null,null,null,null,null,null,null,null,null,null,null,null,null,null,null,null,null,null,null,null,null,{"$f":"IF(AND(AB$93>1,AB$86),TRUE,FALSE)","v":false},false,false,false,false,false,false,false,false,false,false,false]
[null,null,null,null,null,null,null,null,null,null,null,null,null,null,null,null,null,null,null,null,null,null,null,null,null,null,{"$f":"title167","v":"Codigestion"},{"$f":"IF(OR(ISBLANK(F20),F20=0),0,1)","v":0},{"$f":"IF(OR(ISBLANK(G20),G20=0),0,1)","v":0},0,0,0,0,0,0,0,0,0,0,{"$f":"IF((12-COUNTIF(AB95:AM95,\">0\"))=0,1,(12-COUNTIF(AB95:AM95,\">0\")))","v":12},{"$f":"SUM(AB95:AM95)","v":0}]
[]
[]
[null,null,null,null,null,null,null,null,null,null,null,null,null,null,null,null,null,null,null,null,null,null,null,null,null,null,null,null,null,"G","H","I","J",null,null,"k"]
[null,null,null,null,null,null,null,null,null,null,null,null,null,null,null,null,null,null,null,null,null,null,null,null,null,null,null,{"$f":"title249","v":"Category"},{"$f":"title250","v":"Main Feedstock"},"VS (%)  or COD (kg/l)","TS (%) or COD Deg(%)","BMP (m3/t VS)","CH4 (%)","Final",{"$f":"title252","v":"Code"},{"$f":"title17","v":"Price"},{"$f":"title253","v":"Fs rate"},"%",null,null,null,"Optimal Codigestion synergy Factor"]
[null,null,null,null,null,null,null,null,null,null,null,null,null,null,null,null,null,null,null,null,null,null,null,null,null,null,{"$f":"$B13","v":21},{"$f":"IF(INDIRECT(\"'Data entry needs'!$D\"&$AA100)=title74,\"\",INDIRECT(\"'Data entry needs'!$d\"&$AA100))","v":""},{"$f":"IF(INDIRECT(\"'Data entry needs'!$D\"&$AA100)=title74,\"\",INDIRECT(\"'Data entry needs'!$d\"&$AA100)&\"-\"&INDIRECT(\"'Data entry needs'!$e\"&$AA100))","v":""},{"$f":"IF(INDIRECT(\"'Data entry needs'!$D\"&$AA100)=title74,0,IF($AB100=title192,TEXT(INDIRECT(\"'Data entry needs'!$\"&AD$98&0&$AA100),\"0.00\")/1000,TEXT(INDIRECT(\"'Data entry needs'!$\"&AD$98&0&$AA100),\"0%\"))+0%)","v":0},{"$f":"IF(INDIRECT(\"'Data entry needs'!$D\"&$AA100)=title74,0,INDIRECT(\"'Data entry needs'!$\"&AE$98&0&$AA100))+0%","v":0},{"$f":"IF(INDIRECT(\"'Data entry needs'!$D\"&$AA100)=title74,0,INDIRECT(\"'Data entry needs'!$\"&AF$98&0&$AA100))+0","v":0},0,{"$f":"IF(AB100=\"\",0,1)*AI100","v":0},1,{"$f":"IF(INDIRECT(\"'Data entry needs'!$D\"&$AA100)=title74,0,INDIRECT(\"'Data entry needs'!$\"&AJ$98&0&$AA100))+0","v":0},{"$f":"$E13*$AH100","v":0},{"$f":"AK100/$AK$106","v":{"$error":"#DIV/0!"}},{"$f":"title167","v":"Codigestion"},{"$f":"'Data entry needs'!$J$11","v":true},null,{"$f":"IF(AN100,1.5,1)","v":1.5},"Biogas yiled"]
[null,null,null,null,null,null,null,null,null,null,null,null,null,null,null,null,null,null,null,null,null,null,null,null,null,null,{"$f":"$B14","v":23},"","",0,0,0,0,0,1,0,0,{"$error":"#DIV/0!"},null,null,null,"Thermophilic enhance Factor"]
[null,null,null,null,null,null,null,null,null,null,null,null,null,null,null,null,null,null,null,null,null,null,null,null,null,null,{"$f":"$B15","v":25},"","",0,0,0,0,0,1,0,0,{"$error":"#DIV/0!"},{"$f":"title254","v":"Temperature (°C)"},{"$f":"COST_PS1!$L$12","v":"Mesophilic"},{"$f":"COST_PS1!$M$12","v":37.5},{"$f":"IF($AN$102=\"thermophilic\",0.5,1)","v":1},"HRT"]
[null,null,null,null,null,null,null,null,null,null,null,null,null,null,null,null,null,null,null,null,null,null,null,null,null,null,{"$f":"$B16","v":27},"","",0,0,0,0,0,1,0,0,{"$error":"#DIV/0!"},{"$f":"title255","v":"Optimal Codigestion Ratios"}]
[null,null,null,null,null,null,null,null,null,null,null,null,null,null,null,null,null,null,null,null,null,null,null,null,null,null,{"$f":"$B17","v":29},"","",0,0,0,0,0,1,0,0,{"$error":"#DIV/0!"},{"$f":"title84","v":"Manure"},{"$f":"title251","v":"Other"}]
[null,null,null,null,null,null,null,null,null,null,null,null,null,null,null,null,null,null,null,null,null,null,null,null,null,null,{"$f":"$B$20","v":33},"","",0,0,0,0,0,1,0,{"$f":"IFERROR($E20*$AH105,0)","v":0},{"$error":"#DIV/0!"},3,1]
[null,null,null,null,null,null,null,null,null,null,null,null,null,null,null,null,null,null,null,null,null,null,null,null,null,null,null,null,null,"VS (%)","TS (%)","BMP (m3/t VS)","CH4 (%)",{"$f":"SUM(AH100:AH105)","v":0},null,null,{"$f":"SUM(AK100:AK105)","v":0}]
[null,null,null,null,null,null,null,null,null,null,null,null,null,null,null,null,null,null,null,null,null,null,null,null,null,null,null,null,{"$f":"title256","v":"Mixture"},{"$f":"SUMPRODUCT(AD100:AD105,$AH$100:$AH$105)/$AH$106","v":{"$error":"#DIV/0!"}},{"$f":"ROUND(SUMPRODUCT(AE100:AE105,$AH$100:$AH$105)/$AH$106,2)","v":{"$error":"#DIV/0!"}},{"$f":"SUMPRODUCT(AF100:AF105,$AH$100:$AH$105)/$AH$106","v":{"$error":"#DIV/0!"}},{"$f":"ROUND(SUMPRODUCT(AG100:AG105,$AH$100:$AH$105)/$AH$106,2)","v":{"$error":"#DIV/0!"}}]
[]
[null,null,null,null,null,null,null,null,null,null,null,null,null,null,null,null,null,null,null,null,null,null,null,null,null,null,null,null,"Hashimoto's kinetic model"]
[null,null,null,null,null,null,null,null,null,null,null,null,null,null,null,null,null,null,null,null,null,null,null,null,null,null,null,null,"Description",{"$f":"title27","v":"Unit"},null,null,null,null,null,null,{"$f":"title263","v":"Feedstock Price (USD/t)"},null,{"$f":"SUMPRODUCT(AJ100:AJ105,AL100:AL105)","v":{"$error":"#DIV/0!"}}]
[null,null,null,null,null,null,null,null,null,null,null,null,null,null,null,null,null,null,null,null,null,null,null,null,null,null,null,"γ'","Volumetric CH4 production rate","m3 CH4/day/m3 feed/day"]
[null,null,null,null,null,null,null,null,null,null,null,null,null,null,null,null,null,null,null,null,null,null,null,null,null,null,null,"Bo","BMP","m3/t VS"]
[null,null,null,null,null,null,null,null,null,null,null,null,null,null,null,null,null,null,null,null,null,null,null,null,null,null,null,"So'","Influent VS concentration","t VS/m3"]
[null,null,null,null,null,null,null,null,null,null,null,null,null,null,null,null,null,null,null,null,null,null,null,null,null,null,null,"µm","Maximum specific growth rate/day","1/day","µm=0.013T-0.129",null,null,null,null,null,"TS (%)",null,null,{"$f":"title584","v":"HRT (days)"}]
[null,null,null,null,null,null,null,null,null,null,null,null,null,null,null,null,null,null,null,null,null,null,null,null,null,null,null,"HRT","Hydraulic Retention Times","day",{"$f":"COST_PS1!$M$16","v":0},null,null,null,null,null,"min","max","Average","Cold","Warm","Dilution",null,"Efficiency"]
[null,null,null,null,null,null,null,null,null,null,null,null,null,null,null,null,null,null,null,null,null,null,null,null,null,null,null,"k","Knetic parameter","dimesionless","k = 0.6+0.0206exp(0.051*vs*ts)",null,"Assumption = these equation applies for all fs",null,null,"CSTR",0.02,0.2,{"$f":"AVERAGE(AK116:AL116)","v":0.11},15,40,{"$f":"IF($AE$107<=$AL116,0%,IF($AE$107>$AL116,$AM116))","v":{"$error":"#DIV/0!"}},{"$f":"IF(AP116=0%,TRUE,FALSE)","v":{"$error":"#DIV/0!"}},0.8]
[null,null,null,null,null,null,null,null,null,null,null,null,null,null,null,null,null,null,null,null,null,null,null,null,null,null,null,null,"Average Temp",{"$f":"AVERAGE(F9:Q9)","v":{"$error":"#DIV/0!"}},null,null,null,null,null,{"$f":"title530","v":"Plug Flow"},0.2,0.35,{"$f":"AVERAGE(AK117:AL117)","v":0.27500000000000002},18,20,{"$f":"IF($AE$107<=$AL117,0%,IF($AE$107>$AL117,$AM117))","v":{"$error":"#DIV/0!"}},{"$f":"IF(AP117=0%,TRUE,FALSE)","v":{"$error":"#DIV/0!"}},0.8]
[null,null,null,null,null,null,null,null,null,null,null,null,null,null,null,null,null,null,null,null,null,null,null,null,null,null,null,null,null,null,null,null,null,null,null,"UASB",0,0.02,{"$f":"AVERAGE(AK118:AL118)","v":0.01},1,5,{"$f":"IF($AE$107<=$AL118,0%,IF($AE$107>$AL118,$AM118))","v":{"$error":"#DIV/0!"}},{"$f":"IF(AP118=0%,TRUE,FALSE)","v":{"$error":"#DIV/0!"}},0.9]
[null,null,null,null,null,null,null,null,null,null,null,null,null,null,null,null,null,null,null,null,null,null,null,null,null,null,null,null,null,null,null,null,null,null,null,{"$f":"title531","v":"Batch"},0.35,0.5,{"$f":"AVERAGE(AK119:AL119)","v":0.42499999999999999},40,60,{"$f":"$AE$107","v":{"$error":"#DIV/0!"}},{"$f":"IF(AP119=0%,TRUE,FALSE)","v":{"$error":"#DIV/0!"}},0.75]
[null,null,null,null,null,null,null,null,null,null,null,null,null,null,null,null,null,null,null,null,null,null,null,null,null,null,null,"Biogas"]
[null,null,null,null,null,null,null,null,null,null,null,null,null,null,null,null,null,null,null,null,null,null,null,null,null,null,null,null,"k",{"$f":"0.6+0.0206*EXP(0.051*$AD$107*$AE$107*100)","v":{"$error":"#DIV/0!"}},"Usage % digesters",0.8]
[null,null,null,null,null,null,null,null,null,null,null,null,null,null,null,null,null,null,null,null,null,null,null,null,null,null,null,null,"µm",{"$f":"0.013*$AO$102-0.129","v":0.35849999999999999},"Target Ts(%)",{"$f":"IF(VLOOKUP(COST_PS1!$L$10,Planner_PS1!$AJ$116:$AQ$119,7,FALSE)=0%,$AE$107,VLOOKUP(COST_PS1!$L$10,Planner_PS1!$AJ$116:$AQ$119,7,FALSE))","v":{"$error":"#DIV/0!"}},{"$f":"AD133/(AD133+AD136)","v":{"$error":"#DIV/0!"}}]
[null,null,null,null,null,null,null,null,null,null,null,null,null,null,null,null,null,null,null,null,null,null,null,null,null,null,null,null,"γ'",{"$f":"AF107*AE107*AD107*(1-(AD121/(AE115*AD122-1+AD121)))","v":{"$error":"#DIV/0!"}}]
[null,null,null,null,null,null,null,null,null,null,null,null,null,null,null,null,null,null,null,null,null,null,null,null,null,null,null,"Density Mixture",1,"t Feed/m3","Cp MIXTURE",{"$f":"4.17*(1-0.00812*$AE$107)","v":{"$error":"#DIV/0!"}},"kJ7kg°C"]
[null,null,null,null,null,null,null,null,null,null,null,null,null,null,null,null,null,null,null,null,null,null,null,null,null,null,null,null,null,null,null,null,null,"Uses"]
[null,null,null,null,null,null,null,null,null,null,null,null,null,null,null,null,null,null,null,null,null,null,null,null,null,null,null,null,null,{"$f":"title248&\" 1\"","v":"Size 1"},{"$f":"title248&\" 2\"","v":"Size 2"},{"$f":"title248&\" 3\"","v":"Size 3"},{"$f":"title248&\" 4\"","v":"Size 4"}]
[null,null,null,null,null,null,null,null,null,null,null,null,null,null,null,null,null,null,null,null,null,null,null,null,null,null,null,{"$f":"ROW(AD127)","v":127},{"$f":"title671","v":"m3 Methane/day"},{"$f":"'New Feedstock'!B$27","v":800},{"$f":"'New Feedstock'!C$27","v":140},{"$f":"'New Feedstock'!D$27","v":220},{"$f":"'New Feedstock'!E$27","v":960},4,5,{"$f":"\"USD/m3 \"&PROPER(title512)","v":"USD/m3 Biogas"},{"$f":"'Data entry needs'!$L$100","v":0}]
[null,null,null,null,null,null,null,null,null,null,null,null,null,null,null,null,null,null,null,null,null,null,null,null,null,null,null,{"$f":"ROW(AD128)","v":128},"kWe",{"$f":"'New Feedstock'!B$28","v":100},{"$f":"'New Feedstock'!C$28","v":105},{"$f":"'New Feedstock'!D$28","v":115},{"$f":"'New Feedstock'!E$28","v":120},1,3,"USD/kWh",{"$f":"COST_PS1!$M$35","v":0}]
[null,null,null,null,null,null,null,null,null,null,null,null,null,null,null,null,null,null,null,null,null,null,null,null,null,null,null,{"$f":"ROW(AD129)","v":129},null,null,null,null,null,2,null,{"$f":"title618","v":"USD/m3 methane"},{"$f":"'Data entry needs'!$L$100","v":0}]
[null,null,null,null,null,null,null,null,null,null,null,null,null,null,null,null,null,null,null,null,null,null,null,null,null,null,null,130,{"$f":"title260","v":"m3 Biogas/day"},{"$f":"'New Feedstock'!B$29*60%/$AG$107","v":{"$error":"#DIV/0!"}},{"$f":"'New Feedstock'!C$29*60%/$AG$107","v":{"$error":"#DIV/0!"}},{"$f":"'New Feedstock'!D$29*60%/$AG$107","v":{"$error":"#DIV/0!"}},{"$f":"'New Feedstock'!E$29*60%/$AG$107","v":{"$error":"#DIV/0!"}}]
[null,null,null,null,null,null,null,null,null,null,null,null,null,null,null,null,null,null,null,null,null,null,null,null,null,null,null,"Feed Rate Vol","m3 Feed/day",{"$f":"AD127/$AD$123/VLOOKUP(COST_PS1!$L$10,Planner_PS1!$AJ$116:$AR$119,9,FALSE)","v":{"$error":"#DIV/0!"}},{"$f":"AE127/$AD$123/VLOOKUP(COST_PS1!$L$10,Planner_PS1!$AJ$116:$AR$119,9,FALSE)","v":{"$error":"#DIV/0!"}},{"$f":"AF127/$AD$123/VLOOKUP(COST_PS1!$L$10,Planner_PS1!$AJ$116:$AR$119,9,FALSE)","v":{"$error":"#DIV/0!"}},{"$f":"AG127/$AD$123/VLOOKUP(COST_PS1!$L$10,Planner_PS1!$AJ$116:$AR$119,9,FALSE)","v":{"$error":"#DIV/0!"}}]
[null,null,null,null,null,null,null,null,null,null,null,null,null,null,null,null,null,null,null,null,null,null,null,null,null,null,null,"Feed Rate Mass","t Feed/day",{"$f":"AD127/$AD$123","v":{"$error":"#DIV/0!"}},{"$f":"AE127/$AD$123","v":{"$error":"#DIV/0!"}},{"$f":"AF127/$AD$123","v":{"$error":"#DIV/0!"}},{"$f":"AG127/$AD$123","v":{"$error":"#DIV/0!"}}]
[null,null,null,null,null,null,null,null,null,null,null,null,null,null,null,null,null,null,null,null,null,null,null,null,null,null,null,null,"t Feed/ year",{"$f":"AD$132*'Data entry needs'!$L$100","v":{"$error":"#DIV/0!"}},{"$f":"AE$132*'Data entry needs'!$L$100","v":{"$error":"#DIV/0!"}},{"$f":"AF$132*'Data entry needs'!$L$100","v":{"$error":"#DIV/0!"}},{"$f":"AG$132*'Data entry needs'!$L$100","v":{"$error":"#DIV/0!"}}]
[null,null,null,null,null,null,null,null,null,null,null,null,null,null,null,null,null,null,null,null,null,null,null,null,null,null,null,"Volume","m3",{"$f":"AD131*$AE$115/$AF$121","v":{"$error":"#DIV/0!"}},{"$f":"AE131*$AE$115/$AF$121","v":{"$error":"#DIV/0!"}},{"$f":"AF131*$AE$115/$AF$121","v":{"$error":"#DIV/0!"}},{"$f":"AG131*$AE$115/$AF$121","v":{"$error":"#DIV/0!"}}]
[null,null,null,null,null,null,null,null,null,null,null,null,null,null,null,null,null,null,null,null,null,null,null,null,null,null,null,"Water Initial","t water/year",{"$f":"AD133*$AE$107*(1/$AE$107-1)","v":{"$error":"#DIV/0!"}},{"$f":"AE133*$AE$107*(1/$AE$107-1)","v":{"$error":"#DIV/0!"}},{"$f":"AF133*$AE$107*(1/$AE$107-1)","v":{"$error":"#DIV/0!"}},{"$f":"AG133*$AE$107*(1/$AE$107-1)","v":{"$error":"#DIV/0!"}}]
[null,null,null,null,null,null,null,null,null,null,null,null,null,null,null,null,null,null,null,null,null,null,null,null,null,null,null,"Water Demand","t water/year",{"$f":"(AD133*$AE$107/$AF$122)-AD135-AD133*$AE$107","v":{"$error":"#DIV/0!"}},{"$f":"AE133*$AE$107/$AF$122-AE135-AE133*$AE$107","v":{"$error":"#DIV/0!"}},{"$f":"AF133*$AE$107/$AF$122-AF135-AF133*$AE$107","v":{"$error":"#DIV/0!"}},{"$f":"AG133*$AE$107/$AF$122-AG135-AG133*$AE$107","v":{"$error":"#DIV/0!"}}]
[null,null,null,null,null,null,null,null,null,null,null,null,null,null,null,null,null,null,null,null,null,null,null,null,null,null,null,{"$f":"title256","v":"Mixture"},"t mixture/year",{"$f":"AD133+AD136","v":{"$error":"#DIV/0!"}},{"$f":"AE133+AE136","v":{"$error":"#DIV/0!"}},{"$f":"AF133+AF136","v":{"$error":"#DIV/0!"}},{"$f":"AG133+AG136","v":{"$error":"#DIV/0!"}}]
[]
[null,null,null,null,null,null,null,null,null,null,null,null,null,null,null,null,null,null,null,null,null,null,null,null,null,null,"Energy Consumption"]
[null,null,null,null,null,null,null,null,null,null,null,null,null,null,null,null,null,null,null,null,null,null,null,null,null,null,{"$f":"title51","v":"Heat"},{"$f":"title204","v":"Jan"},{"$f":"title205","v":"Feb"},{"$f":"title206","v":"Mar"},{"$f":"title207","v":"Apr"},{"$f":"title208","v":"May"},{"$f":"title209","v":"Jun"},{"$f":"title210","v":"Jul"},{"$f":"title211","v":"Aug"},{"$f":"title212","v":"Sep"},{"$f":"title213","v":"Oct"},{"$f":"title214","v":"Nov"},{"$f":"title215","v":"Dec"}]
[null,null,null,null,null,null,null,null,null,null,null,null,null,null,null,null,null,null,null,null,null,null,null,null,null,null,"Enviromental Temp",{"$f":"F$9","v":0},{"$f":"G$9","v":0},0,0,0,0,0,0,0,0,0,0]
[null,null,null,null,null,null,null,null,null,null,null,null,null,null,null,null,null,null,null,null,null,null,null,null,null,null,"Operation. Temp",{"$f":"$AO$102","v":37.5},37.5,37.5,37.5,37.5,37.5,37.5,37.5,37.5,37.5,37.5,37.5]
[null,null,null,null,null,null,null,null,null,null,null,null,null,null,null,null,null,null,null,null,null,null,null,null,null,null,"Cp' (MJ/t)",{"$f":"$AF$124*(AB142-AB141)","v":{"$error":"#DIV/0!"}},{"$f":"$AF$124*(AC142-AC141)","v":{"$error":"#DIV/0!"}},{"$error":"#DIV/0!"},{"$error":"#DIV/0!"},{"$error":"#DIV/0!"},{"$error":"#DIV/0!"},{"$error":"#DIV/0!"},{"$error":"#DIV/0!"},{"$error":"#DIV/0!"},{"$error":"#DIV/0!"},{"$error":"#DIV/0!"},{"$error":"#DIV/0!"},{"$f":"\"Total (\"&title305&\")\"","v":"Total (GJ/year)"}]
[null,null,null,null,null,null,null,null,null,null,null,null,null,null,null,null,null,null,null,null,null,null,null,null,null,null,"Size 1 (MJ/month)",{"$f":"$AD$137*AB$143/12","v":{"$error":"#DIV/0!"}},{"$error":"#DIV/0!"},{"$error":"#DIV/0!"},{"$error":"#DIV/0!"},{"$error":"#DIV/0!"},{"$error":"#DIV/0!"},{"$error":"#DIV/0!"},{"$error":"#DIV/0!"},{"$error":"#DIV/0!"},{"$error":"#DIV/0!"},{"$error":"#DIV/0!"},{"$error":"#DIV/0!"},{"$f":"SUM(AB144:AM144)/1000","v":{"$error":"#DIV/0!"}}]
[null,null,null,null,null,null,null,null,null,null,null,null,null,null,null,null,null,null,null,null,null,null,null,null,null,null,"Size 2 (MJ/month)",{"$f":"$AE$137*AB$143/12","v":{"$error":"#DIV/0!"}},{"$error":"#DIV/0!"},{"$error":"#DIV/0!"},{"$error":"#DIV/0!"},{"$error":"#DIV/0!"},{"$error":"#DIV/0!"},{"$error":"#DIV/0!"},{"$error":"#DIV/0!"},{"$error":"#DIV/0!"},{"$error":"#DIV/0!"},{"$error":"#DIV/0!"},{"$error":"#DIV/0!"},{"$f":"SUM(AB145:AM145)/1000","v":{"$error":"#DIV/0!"}}]
[null,null,null,null,null,null,null,null,null,null,null,null,null,null,null,null,null,null,null,null,null,null,null,null,null,null,"Size 3 (MJ/month)",{"$f":"$AF$137*AB$143/12","v":{"$error":"#DIV/0!"}},{"$error":"#DIV/0!"},{"$error":"#DIV/0!"},{"$error":"#DIV/0!"},{"$error":"#DIV/0!"},{"$error":"#DIV/0!"},{"$error":"#DIV/0!"},{"$error":"#DIV/0!"},{"$error":"#DIV/0!"},{"$error":"#DIV/0!"},{"$error":"#DIV/0!"},{"$error":"#DIV/0!"},{"$f":"SUM(AB146:AM146)/1000","v":{"$error":"#DIV/0!"}}]
[null,null,null,null,null,null,null,null,null,null,null,null,null,null,null,null,null,null,null,null,null,null,null,null,null,null,"Size 4 (MJ/month)",{"$f":"$AG$137*AB$143/12","v":{"$error":"#DIV/0!"}},{"$error":"#DIV/0!"},{"$error":"#DIV/0!"},{"$error":"#DIV/0!"},{"$error":"#DIV/0!"},{"$error":"#DIV/0!"},{"$error":"#DIV/0!"},{"$error":"#DIV/0!"},{"$error":"#DIV/0!"},{"$error":"#DIV/0!"},{"$error":"#DIV/0!"},{"$error":"#DIV/0!"},{"$f":"SUM(AB147:AM147)/1000","v":{"$error":"#DIV/0!"}}]
[]
[null,null,null,null,null,null,null,null,null,null,null,null,null,null,null,null,null,null,null,null,null,null,null,null,null,null,"Electricity (kWh/year)",{"$f":"title248&\" 1\"","v":"Size 1"},{"$f":"title248&\" 2\"","v":"Size 2"},{"$f":"title248&\" 3\"","v":"Size 3"},{"$f":"title248&\" 4\"","v":"Size 4"}]
[null,null,null,null,null,null,null,null,null,null,null,null,null,null,null,null,null,null,null,null,null,null,null,null,null,null,"CSTR",{"$f":"(7.29+2.16)*AD$133+6.3*AD$134/100","v":{"$error":"#DIV/0!"}},{"$f":"(7.29+2.16)*AE$133+6.3*AE$134/100","v":{"$error":"#DIV/0!"}},{"$f":"(7.29+2.16)*AF$133+6.3*AF$134/100","v":{"$error":"#DIV/0!"}},{"$f":"(7.29+2.16)*AG$133+6.3*AG$134/100","v":{"$error":"#DIV/0!"}}]
[null,null,null,null,null,null,null,null,null,null,null,null,null,null,null,null,null,null,null,null,null,null,null,null,null,null,"UASB",{"$f":"250*AD134","v":{"$error":"#DIV/0!"}},{"$f":"250*AE134","v":{"$error":"#DIV/0!"}},{"$f":"250*AF134","v":{"$error":"#DIV/0!"}},{"$f":"250*AG134","v":{"$error":"#DIV/0!"}}]
[null,null,null,null,null,null,null,null,null,null,null,null,null,null,null,null,null,null,null,null,null,null,null,null,null,null,{"$f":"title530","v":"Plug Flow"},{"$f":"12.25*AD133","v":{"$error":"#DIV/0!"}},{"$f":"12.25*AE133","v":{"$error":"#DIV/0!"}},{"$f":"12.25*AF133","v":{"$error":"#DIV/0!"}},{"$f":"12.25*AG133","v":{"$error":"#DIV/0!"}}]
[null,null,null,null,null,null,null,null,null,null,null,null,null,null,null,null,null,null,null,null,null,null,null,null,null,null,{"$f":"title531","v":"Batch"},{"$f":"(7.29+2.16)*AD$133+6.3*AD$134/100","v":{"$error":"#DIV/0!"}},{"$f":"(7.29+2.16)*AE$133+6.3*AE$134/100","v":{"$error":"#DIV/0!"}},{"$f":"(7.29+2.16)*AF$133+6.3*AF$134/100","v":{"$error":"#DIV/0!"}},{"$f":"(7.29+2.16)*AG$133+6.3*AG$134/100","v":{"$error":"#DIV/0!"}}]
[]
[null,null,null,null,null,null,null,null,null,null,null,null,null,null,null,null,null,null,null,null,null,null,null,null,null,null,"Energy Potential - Cogeneration"]
[null,null,null,null,null,null,null,null,null,null,null,null,null,null,null,null,null,null,null,null,null,null,null,null,null,null,null,{"$f":"title248&\" 1\"","v":"Size 1"},{"$f":"title248&\" 2\"","v":"Size 2"},{"$f":"title248&\" 3\"","v":"Size 3"},{"$f":"title248&\" 4\"","v":"Size 4"},null,"CV",{"$f":"(0.3594*$AG$107*100-0.024)/3.6","v":{"$error":"#DIV/0!"}},"kWh/m3 biogas","Y = AX^4+BX^3+CX^2+DX+E","(kg/t)"]
[null,null,null,null,null,null,null,null,null,null,null,null,null,null,null,null,null,null,null,null,null,null,null,null,null,null,"Energy Potential",{"$f":"$AH$156*AD$130*'Data entry needs'!$L$100*3.6","v":{"$error":"#DIV/0!"}},{"$f":"$AH$156*AE$130*'Data entry needs'!$L$100*3.6","v":{"$error":"#DIV/0!"}},{"$f":"$AH$156*AF$130*'Data entry needs'!$L$100*3.6","v":{"$error":"#DIV/0!"}},{"$f":"$AH$156*AG$130*'Data entry needs'!$L$100*3.6","v":{"$error":"#DIV/0!"}},{"$f":"title306","v":"MJ/year"},"Thermal Eff.",0.6,null,null,"A","B","C","D","E"]
[null,null,null,null,null,null,null,null,null,null,null,null,null,null,null,null,null,null,null,null,null,null,null,null,null,null,{"$f":"title51","v":"Heat"},{"$f":"AB157*($AH$157-$AH$158)/(1-($AH$158/$AH$159))/1000","v":{"$error":"#DIV/0!"}},{"$f":"AC157*($AH$157-$AH$158)/(1-($AH$158/$AH$159))/1000","v":{"$error":"#DIV/0!"}},{"$f":"AD157*($AH$157-$AH$158)/(1-($AH$158/$AH$159))/1000","v":{"$error":"#DIV/0!"}},{"$f":"AE157*($AH$157-$AH$158)/(1-($AH$158/$AH$159))/1000","v":{"$error":"#DIV/0!"}},{"$f":"title305","v":"GJ/year"},"Electrical Eff.",0.4,null,"NH3-N",2.6264300000000001E-4,-5.29693E-3,3.2159399999999998E-2,-5.2911699999999999E-2,0.57911000000000001]
[null,null,null,null,null,null,null,null,null,null,null,null,null,null,null,null,null,null,null,null,null,null,null,null,null,null,{"$f":"title35","v":"Electricity"},{"$f":"(AB157*$AH$157-AB158*1000)/3.6","v":{"$error":"#DIV/0!"}},{"$f":"(AC157*$AH$157-AC158*1000)/3.6","v":{"$error":"#DIV/0!"}},{"$f":"(AD157*$AH$157-AD158*1000)/3.6","v":{"$error":"#DIV/0!"}},{"$f":"(AE157*$AH$157-AE158*1000)/3.6","v":{"$error":"#DIV/0!"}},{"$f":"title304","v":"kWh/year"},"Alpha",0.75,null,"P2O5",1.1614599999999999E-2,-9.3845899999999996E-2,0.21317700000000001,-0.12223199999999999,0.58016500000000004]
[null,null,null,null,null,null,null,null,null,null,null,null,null,null,null,null,null,null,null,null,null,null,null,null,null,null,null,null,null,null,null,null,null,null,null,"K2O",1.14288E-4,-2.09458E-3,1.2713199999999999E-2,-2.1764599999999999E-2,0.57522600000000002]
[null,null,null,null,null,null,null,null,null,null,null,null,null,null,null,null,null,null,null,null,null,null,null,null,null,null,"Energy Potential-Electricity"]
[null,null,null,null,null,null,null,null,null,null,null,null,null,null,null,null,null,null,null,null,null,null,null,null,null,null,"Energy Potential",{"$f":"$AH$156*AD$130*'Data entry needs'!$L$100","v":{"$error":"#DIV/0!"}},{"$f":"$AH$156*AE$130*'Data entry needs'!$L$100","v":{"$error":"#DIV/0!"}},{"$f":"$AH$156*AF$130*'Data entry needs'!$L$100","v":{"$error":"#DIV/0!"}},{"$f":"$AH$156*AG$130*'Data entry needs'!$L$100","v":{"$error":"#DIV/0!"}},{"$f":"title304","v":"kWh/year"},"Electrical Eff. Only",0.3,null,null,"Efficency of Separation"]
[null,null,null,null,null,null,null,null,null,null,null,null,null,null,null,null,null,null,null,null,null,null,null,null,null,null,{"$f":"title35","v":"Electricity"},{"$f":"AB162*$AH$162","v":{"$error":"#DIV/0!"}},{"$f":"AC162*$AH$162","v":{"$error":"#DIV/0!"}},{"$f":"AD162*$AH$162","v":{"$error":"#DIV/0!"}},{"$f":"AE162*$AH$162","v":{"$error":"#DIV/0!"}},{"$f":"title304","v":"kWh/year"},null,null,null,{"$f":"title74","v":"Please Select"},"TS (%)","N(%)","P(%)","K(%)","Energy Consumption (kWh/t)","Recovery (%)"]
[null,null,null,null,null,null,null,null,null,null,null,null,null,null,null,null,null,null,null,null,null,null,null,null,null,null,null,null,null,null,null,null,null,null,null,{"$f":"title177","v":"Sedimentator"},0.05,{"$f":"AVERAGE(25%,35%)","v":0.3},0.3,0.2,0,0.19]
[null,null,null,null,null,null,null,null,null,null,null,null,null,null,null,null,null,null,null,null,null,null,null,null,null,null,"Connection to Natural Gas",null,null,null,null,null,null,null,null,{"$f":"title178","v":"Floater"},0.05,{"$f":"AVERAGE(30%,40%)","v":0.35},0.3,0.2,0,0.2]
[null,null,null,null,null,null,null,null,null,null,null,null,null,null,null,null,null,null,null,null,null,null,null,null,null,null,{"$f":"title47","v":"Natural Gas"},{"$f":"AD$127*'Data entry needs'!$L$100/97%","v":0},{"$f":"AE$127*'Data entry needs'!$L$100/97%","v":0},{"$f":"AF$127*'Data entry needs'!$L$100/97%","v":0},{"$f":"AG$127*'Data entry needs'!$L$100/97%","v":0},{"$f":"title307","v":"m3/year"},null,null,null,{"$f":"title179","v":"Centrifuge"},0.3,0.3,0.24,0.36,7,0.68]
[null,null,null,null,null,null,null,null,null,null,null,null,null,null,null,null,null,null,null,null,null,null,null,null,null,null,null,null,null,null,null,null,null,null,null,{"$f":"title180","v":"Belt Press"},0.25,0.32,0.28999999999999998,0.27,0.12,0.56000000000000005]
[null,null,null,null,null,null,null,null,null,null,null,null,null,null,null,null,null,null,null,null,null,null,null,null,null,null,"Energy Potential-Heating and Cooking",null,null,null,null,null,null,null,null,{"$f":"title181","v":"Screen Sieves"},0.1,0.25,0.26,0.17,0.9,0.2]
[null,null,null,null,null,null,null,null,null,null,null,null,null,null,null,null,null,null,null,null,null,null,null,null,null,null,null,null,null,null,null,null,null,null,null,{"$f":"title182","v":"Screw Press"},0.4,0.28000000000000003,0.33,0.18,1.1000000000000001,0.65]
[null,null,null,null,null,null,null,null,null,null,null,null,null,null,null,null,null,null,null,null,null,null,null,null,null,null,{"$f":"title626","v":"Digestate"},{"$f":"'Data entry needs'!$F$110","v":"Please Select"},"Solids Recovered",{"$f":"VLOOKUP($AB$170,$AJ$164:$AP$169,7,FALSE)","v":{"$error":"#N/A"}},"TS Digestate (%)",{"$f":"VLOOKUP($AB$170,$AJ$164:$AP$169,2,FALSE)","v":{"$error":"#N/A"}}]
[null,null,null,null,null,null,null,null,null,null,null,null,null,null,null,null,null,null,null,null,null,null,null,null,null,null,null,{"$f":"title248&\" 1\"","v":"Size 1"},{"$f":"title248&\" 2\"","v":"Size 2"},{"$f":"title248&\" 3\"","v":"Size 3"},{"$f":"title248&\" 4\"","v":"Size 4"},null,"Molecular Weight"]
[null,null,null,null,null,null,null,null,null,null,null,null,null,null,null,null,null,null,null,null,null,null,null,null,null,null,"Residual Solids Recov",{"$f":"AD$133*(1-$AD$107)*$AE$107*$AD$170","v":{"$error":"#DIV/0!"}},{"$f":"AE$133*(1-$AD$107)*$AE$107*$AD$170","v":{"$error":"#DIV/0!"}},{"$f":"AF$133*(1-$AD$107)*$AE$107*$AD$170","v":{"$error":"#DIV/0!"}},{"$f":"AG$133*(1-$AD$107)*$AE$107*$AD$170","v":{"$error":"#DIV/0!"}},{"$f":"title604","v":"t/yr"},"N",14.0067,"P205",{"$f":"AH174*2+AH176*5","v":141.94452200000001}]
[null,null,null,null,null,null,null,null,null,null,null,null,null,null,null,null,null,null,null,null,null,null,null,null,null,null,"N",{"$f":"($AK158*$AG$107^4+$AL158*$AG$107^3+$AM158*$AG$107^2+$AN158*$AG$107+$AO158)*AB$172*VLOOKUP($AB$170,$AJ$164:$AN$169,3,FALSE)","v":{"$error":"#DIV/0!"}},{"$error":"#DIV/0!"},{"$error":"#DIV/0!"},{"$error":"#DIV/0!"},{"$f":"title604","v":"t/yr"},"H",1.0079400000000001,"K20",{"$f":"AH175*2+AH176","v":94.195999999999998}]
[null,null,null,null,null,null,null,null,null,null,null,null,null,null,null,null,null,null,null,null,null,null,null,null,null,null,"P2O5",{"$error":"#DIV/0!"},{"$error":"#DIV/0!"},{"$error":"#DIV/0!"},{"$error":"#DIV/0!"},{"$f":"title604","v":"t/yr"},"P",30.973761]
[null,null,null,null,null,null,null,null,null,null,null,null,null,null,null,null,null,null,null,null,null,null,null,null,null,null,"K2O",{"$error":"#DIV/0!"},{"$error":"#DIV/0!"},{"$error":"#DIV/0!"},{"$error":"#DIV/0!"},{"$f":"title604","v":"t/yr"},"K",39.098300000000002]
[null,null,null,null,null,null,null,null,null,null,null,null,null,null,null,null,null,null,null,null,null,null,null,null,null,null,{"$f":"title658","v":"Ash"},{"$f":"(AD$133-AD$135)*$AE$107*$AD$107*$AD$170/10","v":{"$error":"#DIV/0!"}},{"$f":"(AE$133-AE$135)*$AE$107*$AD$107*$AD$170/10","v":{"$error":"#DIV/0!"}},{"$f":"(AF$133-AF$135)*$AE$107*$AD$107*$AD$170/10","v":{"$error":"#DIV/0!"}},{"$f":"(AG$133-AG$135)*$AE$107*$AD$107*$AD$170/10","v":{"$error":"#DIV/0!"}},{"$f":"title604","v":"t/yr"},"O",15.9994]
[null,null,null,null,null,null,null,null,null,null,null,null,null,null,null,null,null,null,null,null,null,null,null,null,null,null,"Solids Recovered",{"$f":"SUM(AB173:AB176)","v":{"$error":"#DIV/0!"}},{"$f":"SUM(AC173:AC176)","v":{"$error":"#DIV/0!"}},{"$f":"SUM(AD173:AD176)","v":{"$error":"#DIV/0!"}},{"$f":"SUM(AE173:AE176)","v":{"$error":"#DIV/0!"}}]
[null,null,null,null,null,null,null,null,null,null,null,null,null,null,null,null,null,null,null,null,null,null,null,null,null,null,"Total digestate",{"$f":"AB177/$AF$170","v":{"$error":"#DIV/0!"}},{"$f":"AC177/$AF$170","v":{"$error":"#DIV/0!"}},{"$f":"AD177/$AF$170","v":{"$error":"#DIV/0!"}},{"$f":"AE177/$AF$170","v":{"$error":"#DIV/0!"}},{"$f":"title308","v":"t/year"}]
[null,null,null,null,null,null,null,null,null,null,null,null,null,null,null,null,null,null,null,null,null,null,null,null,null,null,"Energy (kWh/t)",{"$f":"VLOOKUP($AB$170,$AJ$164:$AP$169,6,FALSE)*AB178","v":{"$error":"#N/A"}},{"$f":"VLOOKUP($AB$170,$AJ$164:$AP$169,6,FALSE)*AC178","v":{"$error":"#N/A"}},{"$f":"VLOOKUP($AB$170,$AJ$164:$AP$169,6,FALSE)*AD178","v":{"$error":"#N/A"}},{"$f":"VLOOKUP($AB$170,$AJ$164:$AP$169,6,FALSE)*AE178","v":{"$error":"#N/A"}},{"$f":"title304","v":"kWh/year"}]
[null,null,null,null,null,null,null,null,null,null,null,null,null,null,null,null,null,null,null,null,null,null,null,null,null,null,"N",{"$f":"AB173","v":{"$error":"#DIV/0!"}},{"$f":"AC173","v":{"$error":"#DIV/0!"}},{"$f":"AD173","v":{"$error":"#DIV/0!"}},{"$f":"AE173","v":{"$error":"#DIV/0!"}},{"$f":"AF173","v":"t/yr"}]
[null,null,null,null,null,null,null,null,null,null,null,null,null,null,null,null,null,null,null,null,null,null,null,null,null,null,"P",{"$f":"AB174*$AH$174/$AJ$172","v":{"$error":"#DIV/0!"}},{"$f":"AC174*$AH$174/$AJ$172","v":{"$error":"#DIV/0!"}},{"$f":"AD174*$AH$174/$AJ$172","v":{"$error":"#DIV/0!"}},{"$f":"AE174*$AH$174/$AJ$172","v":{"$error":"#DIV/0!"}},{"$f":"AF174","v":"t/yr"}]
[null,null,null,null,null,null,null,null,null,null,null,null,null,null,null,null,null,null,null,null,null,null,null,null,null,null,"K",{"$f":"AB175*$AH$175/$AJ$173","v":{"$error":"#DIV/0!"}},{"$f":"AC175*$AH$175/$AJ$173","v":{"$error":"#DIV/0!"}},{"$f":"AD175*$AH$175/$AJ$173","v":{"$error":"#DIV/0!"}},{"$f":"AE175*$AH$175/$AJ$173","v":{"$error":"#DIV/0!"}},{"$f":"AF175","v":"t/yr"}]
[null,null,null,null,null,null,null,null,null,null,null,null,null,null,null,null,null,null,null,null,null,null,null,null,null,null,{"$f":"title658","v":"Ash"},{"$f":"AB176","v":{"$error":"#DIV/0!"}},{"$f":"AC176","v":{"$error":"#DIV/0!"}},{"$f":"AD176","v":{"$error":"#DIV/0!"}},{"$f":"AE176","v":{"$error":"#DIV/0!"}},{"$f":"AF176","v":"t/yr"}]
[null,null,null,null,null,null,null,null,null,null,null,null,null,null,null,null,null,null,null,null,null,null,null,null,null,null,"Total",{"$f":"SUM(AB180:AB183)","v":{"$error":"#DIV/0!"}},{"$f":"SUM(AC180:AC183)","v":{"$error":"#DIV/0!"}},{"$f":"SUM(AD180:AD183)","v":{"$error":"#DIV/0!"}},{"$f":"SUM(AE180:AE183)","v":{"$error":"#DIV/0!"}},{"$f":"AF177","v":0}]
[null,null,null,null,null,null,null,null,null,null,null,null,null,null,null,null,null,null,null,null,null,null,null,null,null,null,"%"]
[null,null,null,null,null,null,null,null,null,null,null,null,null,null,null,null,null,null,null,null,null,null,null,null,null,null,"N",{"$f":"AB180/AB$184","v":{"$error":"#DIV/0!"}}]
[null,null,null,null,null,null,null,null,null,null,null,null,null,null,null,null,null,null,null,null,null,null,null,null,null,null,"P",{"$f":"AB181/AB$184","v":{"$error":"#DIV/0!"}}]
[null,null,null,null,null,null,null,null,null,null,null,null,null,null,null,null,null,null,null,null,null,null,null,null,null,null,"K",{"$f":"AB182/AB$184","v":{"$error":"#DIV/0!"}}]
[null,null,null,null,null,null,null,null,null,null,null,null,null,null,null,null,null,null,null,null,null,null,null,null,null,null,{"$f":"title658","v":"Ash"},{"$f":"AB183/AB$184","v":{"$error":"#DIV/0!"}}]
[null,null,null,null,null,null,null,null,null,null,null,null,null,null,null,null,null,null,null,null,null,null,null,null,null,null,{"$f":"title602","v":"Moisture"},{"$f":"1-AF170","v":{"$error":"#N/A"}}]

{"sheet":"Planner_PS2","index":10,"n_rows":190,"n_cols":44,"rows_kept":190,"cut":false,"hidden":true,"merged":[[115,32,116,33],[2,2,2,17],[5,2,5,3],[5,4,5,8],[113,30,113,31],[115,30,115,31]]}
[]
[]
[null,null,{"$f":"title199&\" 2\"","v":"BIOMASS DISTRIBUTION PLANNER FOR PROCESS  2"}]
[]
[null,null,null,null,null,null,null,null,null,null,null,null,null,null,"Please Select Please Select"]
[null,null,{"$f":"title193","v":"Use white cells to input data"},null,{"$f":"title194","v":"Grey cells are used for calculations"}]
[]
[null,null,null,null,null,{"$f":"title204","v":"Jan"},{"$f":"title205","v":"Feb"},{"$f":"title206","v":"Mar"},{"$f":"title207","v":"Apr"},{"$f":"title208","v":"May"},{"$f":"title209","v":"Jun"},{"$f":"title210","v":"Jul"},{"$f":"title211","v":"Aug"},{"$f":"title212","v":"Sep"},{"$f":"title213","v":"Oct"},{"$f":"title214","v":"Nov"},{"$f":"title215","v":"Dec"}]
[null,null,{"$f":"title200","v":"Monthly Average Envirnomental Temperature"},null,"°C"]
[null,null,{"$f":"title201","v":"Feedstock Selection and Cost"}]
[null,null,null,null,null,{"$f":"IF(AND(AB$93>1,AB$86),title203,\"\")","v":""},"","","","","","","","","","",""]
[null,null,{"$f":"title202","v":"Feedstock Distribution"},null,{"$f":"title110","v":"Feedstock Available (t/year)"},{"$f":"title204","v":"Jan"},{"$f":"title205","v":"Feb"},{"$f":"title206","v":"Mar"},{"$f":"title207","v":"Apr"},{"$f":"title208","v":"May"},{"$f":"title209","v":"Jun"},{"$f":"title210","v":"Jul"},{"$f":"title211","v":"Aug"},{"$f":"title212","v":"Sep"},{"$f":"title213","v":"Oct"},{"$f":"title214","v":"Nov"},{"$f":"title215","v":"Dec"},{"$f":"title218","v":"Left to Allocate"},null,"Criteria1","Criteria2"]
[null,{"$f":"ROW('Data entry needs'!$B$39)","v":39},{"$f":"IF(INDIRECT(\"'Data entry needs'!$D\"&$B13)=title74,\"\",INDIRECT(\"'Data entry needs'!$d\"&$B13)&\"-\"&INDIRECT(\"'Data entry needs'!$e\"&$B13))","v":""},null,{"$f":"IF(INDIRECT(\"'Data entry needs'!$e\"&$B13)=title74,0,INDIRECT(\"'Data entry needs'!$f\"&$B13))","v":0},null,null,null,null,null,null,null,null,null,null,null,null,{"$f":"IFERROR(ROUND(E13-SUM(F13:Q13),0),0)","v":0},{"$f":"12-COUNTA(F13:Q13)","v":12},{"$f":"AND(IF(R13<=0,FALSE,TRUE),NOT(U13))","v":false},{"$f":"AND(IF(COUNTA(F13:Q13)=12,TRUE,FALSE),IF(R13>0,TRUE,FALSE))","v":false}]
[null,{"$f":"B13+2","v":41},{"$f":"IF(INDIRECT(\"'Data entry needs'!$D\"&$B14)=title74,\"\",INDIRECT(\"'Data entry needs'!$d\"&$B14)&\"-\"&INDIRECT(\"'Data entry needs'!$e\"&$B14))","v":""},null,{"$f":"IF(INDIRECT(\"'Data entry needs'!$e\"&$B14)=title74,0,INDIRECT(\"'Data entry needs'!$f\"&$B14))","v":0},null,null,null,null,null,null,null,null,null,null,null,null,{"$f":"IFERROR(ROUND(E14-SUM(F14:Q14),0),0)","v":0},{"$f":"12-COUNTA(F14:Q14)","v":12},{"$f":"AND(IF(R14<=0,FALSE,TRUE),NOT(U14))","v":false},{"$f":"AND(IF(COUNTA(F14:Q14)=12,TRUE,FALSE),IF(R14>0,TRUE,FALSE))","v":false}]
[null,{"$f":"B14+2","v":43},{"$f":"IF(INDIRECT(\"'Data entry needs'!$D\"&$B15)=title74,\"\",INDIRECT(\"'Data entry needs'!$d\"&$B15)&\"-\"&INDIRECT(\"'Data entry needs'!$e\"&$B15))","v":""},null,{"$f":"IF(INDIRECT(\"'Data entry needs'!$e\"&$B15)=title74,0,INDIRECT(\"'Data entry needs'!$f\"&$B15))","v":0},null,null,null,null,null,null,null,null,null,null,null,null,{"$f":"IFERROR(ROUND(E15-SUM(F15:Q15),0),0)","v":0},{"$f":"12-COUNTA(F15:Q15)","v":12},{"$f":"AND(IF(R15<=0,FALSE,TRUE),NOT(U15))","v":false},{"$f":"AND(IF(COUNTA(F15:Q15)=12,TRUE,FALSE),IF(R15>0,TRUE,FALSE))","v":false}]
[null,{"$f":"B15+2","v":45},{"$f":"IF(INDIRECT(\"'Data entry needs'!$D\"&$B16)=title74,\"\",INDIRECT(\"'Data entry needs'!$d\"&$B16)&\"-\"&INDIRECT(\"'Data entry needs'!$e\"&$B16))","v":""},null,{"$f":"IF(INDIRECT(\"'Data entry needs'!$e\"&$B16)=title74,0,INDIRECT(\"'Data entry needs'!$f\"&$B16))","v":0},null,null,null,null,null,null,null,null,null,null,null,null,{"$f":"IFERROR(ROUND(E16-SUM(F16:Q16),0),0)","v":0},{"$f":"12-COUNTA(F16:Q16)","v":12},{"$f":"AND(IF(R16<=0,FALSE,TRUE),NOT(U16))","v":false},{"$f":"AND(IF(COUNTA(F16:Q16)=12,TRUE,FALSE),IF(R16>0,TRUE,FALSE))","v":false}]
[null,{"$f":"B16+2","v":47},{"$f":"IF(INDIRECT(\"'Data entry needs'!$D\"&$B17)=title74,\"\",INDIRECT(\"'Data entry needs'!$d\"&$B17)&\"-\"&INDIRECT(\"'Data entry needs'!$e\"&$B17))","v":""},null,{"$f":"IF(INDIRECT(\"'Data entry needs'!$e\"&$B17)=title74,0,INDIRECT(\"'Data entry needs'!$f\"&$B17))","v":0},null,null,null,null,null,null,null,null,null,null,null,null,{"$f":"IFERROR(ROUND(E17-SUM(F17:Q17),0),0)","v":0},{"$f":"12-COUNTA(F17:Q17)","v":12},{"$f":"AND(IF(R17<=0,FALSE,TRUE),NOT(U17))","v":false},{"$f":"AND(IF(COUNTA(F17:Q17)=12,TRUE,FALSE),IF(R17>0,TRUE,FALSE))","v":false}]
[]
[null,null,{"$f":"title217","v":"Codigestion Feedstock Distribution"}]
[null,{"$f":"B17+4","v":51},{"$f":"IF(INDIRECT(\"'Data entry needs'!$D\"&$B20)=title74,\"\",INDIRECT(\"'Data entry needs'!$d\"&$B20)&\"-\"&INDIRECT(\"'Data entry needs'!$e\"&$B20))","v":""},null,{"$f":"IF(INDIRECT(\"'Data entry needs'!$e\"&$B20)=title74,\"\",INDIRECT(\"'Data entry needs'!$f\"&$B20))","v":""},null,null,null,null,null,null,null,null,null,null,null,null,{"$f":"IFERROR(ROUND(E20-SUM(F20:Q20),0),0)","v":0},{"$f":"12-COUNTA(F20:Q20)","v":12},{"$f":"AND(IF(R20<=0,FALSE,TRUE),NOT(U20))","v":false},{"$f":"AND(IF(COUNTA(F20:Q20)=12,TRUE,FALSE),IF(R20>0,TRUE,FALSE))","v":false}]
[]
[null,null,{"$f":"title216","v":"Feedstock Monthly Available (t/month)"},null,null,{"$f":"IF('Data entry needs'!$D$11,Planner_PS2!$F$13,IF('Data entry needs'!$F$11,SUM(F13:F17),SUM(F13:F17,F20)))","v":0},{"$f":"SUM(G13:G17,G20)","v":0},0,0,0,0,0,0,0,0,0,0]
[]
[]
[]
[]
[]
[]
[]
[]
[]
[]
[]
[]
[]
[]
[]
[]
[]
[]
[]
[]
[]
[]
[]
[]
[]
[]
[]
[]
[]
[]
[]
[]
[]
[]
[]
[]
[null,null,null,null,null,null,null,null,null,null,null,null,null,null,null,null,null,null,null,null,null,null,null,null,null,null,{"$f":"title246","v":"Storage Planner"}]
[null,null,null,null,null,null,null,null,null,null,null,null,null,null,null,null,null,null,null,null,null,null,null,null,null,null,{"$f":"title247","v":"Total Fs  (t/month)"},{"$f":"F22","v":0},0,0,0,0,0,0,0,0,0,0,0]
[null,null,null,null,null,null,null,null,null,null,null,null,null,null,null,null,null,null,null,null,null,null,null,null,null,null,null,{"$f":"title204","v":"Jan"},{"$f":"title205","v":"Feb"},{"$f":"title206","v":"Mar"},{"$f":"title207","v":"Apr"},{"$f":"title208","v":"May"},{"$f":"title209","v":"Jun"},{"$f":"title210","v":"Jul"},{"$f":"title211","v":"Aug"},{"$f":"title212","v":"Sep"},{"$f":"title213","v":"Oct"},{"$f":"title214","v":"Nov"},{"$f":"title215","v":"Dec"},"AVERAGE"]
[null,null,null,null,null,null,null,null,null,null,null,null,null,null,null,null,null,null,null,null,null,null,null,null,null,null,"FS1",{"$f":"$AH100*F13/$AB$60","v":{"$error":"#DIV/0!"}},{"$error":"#DIV/0!"},{"$error":"#DIV/0!"},{"$error":"#DIV/0!"},{"$error":"#DIV/0!"},{"$error":"#DIV/0!"},{"$error":"#DIV/0!"},{"$error":"#DIV/0!"},{"$error":"#DIV/0!"},{"$error":"#DIV/0!"},{"$error":"#DIV/0!"},{"$error":"#DIV/0!"},{"$f":"AVERAGE(AB62:AM62)","v":{"$error":"#DIV/0!"}}]
[null,null,null,null,null,null,null,null,null,null,null,null,null,null,null,null,null,null,null,null,null,null,null,null,null,null,"FS2",{"$error":"#DIV/0!"},{"$error":"#DIV/0!"},{"$error":"#DIV/0!"},{"$error":"#DIV/0!"},{"$error":"#DIV/0!"},{"$error":"#DIV/0!"},{"$error":"#DIV/0!"},{"$error":"#DIV/0!"},{"$error":"#DIV/0!"},{"$error":"#DIV/0!"},{"$error":"#DIV/0!"},{"$error":"#DIV/0!"},{"$error":"#DIV/0!"},null,39]
[null,null,null,null,null,null,null,null,null,null,null,null,null,null,null,null,null,null,null,null,null,null,null,null,null,null,"FS3",{"$error":"#DIV/0!"},{"$error":"#DIV/0!"},{"$error":"#DIV/0!"},{"$error":"#DIV/0!"},{"$error":"#DIV/0!"},{"$error":"#DIV/0!"},{"$error":"#DIV/0!"},{"$error":"#DIV/0!"},{"$error":"#DIV/0!"},{"$error":"#DIV/0!"},{"$error":"#DIV/0!"},{"$error":"#DIV/0!"},{"$error":"#DIV/0!"},null,41]
[null,null,null,null,null,null,null,null,null,null,null,null,null,null,null,null,null,null,null,null,null,null,null,null,null,null,"FS4",{"$error":"#DIV/0!"},{"$error":"#DIV/0!"},{"$error":"#DIV/0!"},{"$error":"#DIV/0!"},{"$error":"#DIV/0!"},{"$error":"#DIV/0!"},{"$error":"#DIV/0!"},{"$error":"#DIV/0!"},{"$error":"#DIV/0!"},{"$error":"#DIV/0!"},{"$error":"#DIV/0!"},{"$error":"#DIV/0!"},{"$error":"#DIV/0!"},null,43]
[null,null,null,null,null,null,null,null,null,null,null,null,null,null,null,null,null,null,null,null,null,null,null,null,null,null,"FS5",{"$error":"#DIV/0!"},{"$error":"#DIV/0!"},{"$error":"#DIV/0!"},{"$error":"#DIV/0!"},{"$error":"#DIV/0!"},{"$error":"#DIV/0!"},{"$error":"#DIV/0!"},{"$error":"#DIV/0!"},{"$error":"#DIV/0!"},{"$error":"#DIV/0!"},{"$error":"#DIV/0!"},{"$error":"#DIV/0!"},{"$error":"#DIV/0!"},null,44]
[null,null,null,null,null,null,null,null,null,null,null,null,null,null,null,null,null,null,null,null,null,null,null,null,null,null,{"$f":"title167","v":"Codigestion"},{"$f":"$AH105*F20/$AB$60","v":{"$error":"#DIV/0!"}},{"$f":"$AH105*G20/$AB$60","v":{"$error":"#DIV/0!"}},{"$error":"#DIV/0!"},{"$error":"#DIV/0!"},{"$error":"#DIV/0!"},{"$error":"#DIV/0!"},{"$error":"#DIV/0!"},{"$error":"#DIV/0!"},{"$error":"#DIV/0!"},{"$error":"#DIV/0!"},{"$error":"#DIV/0!"},{"$error":"#DIV/0!"},{"$error":"#DIV/0!"},null,45]
[null,null,null,null,null,null,null,null,null,null,null,null,null,null,null,null,null,null,null,null,null,null,null,null,null,null,null,null,null,null,null,null,null,null,null,null,null,null,null,null,null,47]
[]
[null,null,null,null,null,null,null,null,null,null,null,null,null,null,null,null,null,null,null,null,null,null,null,null,null,null,null,{"$f":"title248&\" 1\"","v":"Size 1"},{"$f":"title248&\" 2\"","v":"Size 2"},{"$f":"title248&\" 3\"","v":"Size 3"},{"$f":"title248&\" 4\"","v":"Size 4"},null,null,null,null,null,null,null,null,null,null,51]
[null,null,null,null,null,null,null,null,null,null,null,null,null,null,null,null,null,null,null,null,null,null,null,null,null,null,"FS1",{"$f":"$AN62*AD$132*30","v":{"$error":"#DIV/0!"}},{"$error":"#DIV/0!"},{"$error":"#DIV/0!"},{"$error":"#DIV/0!"}]
[null,null,null,null,null,null,null,null,null,null,null,null,null,null,null,null,null,null,null,null,null,null,null,null,null,null,"FS2",{"$error":"#DIV/0!"},{"$error":"#DIV/0!"},{"$error":"#DIV/0!"},{"$error":"#DIV/0!"}]
[null,null,null,null,null,null,null,null,null,null,null,null,null,null,null,null,null,null,null,null,null,null,null,null,null,null,"FS3",{"$error":"#DIV/0!"},{"$error":"#DIV/0!"},{"$error":"#DIV/0!"},{"$error":"#DIV/0!"}]
[null,null,null,null,null,null,null,null,null,null,null,null,null,null,null,null,null,null,null,null,null,null,null,null,null,null,"FS4",{"$error":"#DIV/0!"},{"$error":"#DIV/0!"},{"$error":"#DIV/0!"},{"$error":"#DIV/0!"}]
[null,null,null,null,null,null,null,null,null,null,null,null,null,null,null,null,null,null,null,null,null,null,null,null,null,null,"FS5",{"$error":"#DIV/0!"},{"$error":"#DIV/0!"},{"$error":"#DIV/0!"},{"$error":"#DIV/0!"}]
[null,null,null,null,null,null,null,null,null,null,null,null,null,null,null,null,null,null,null,null,null,null,null,null,null,null,{"$f":"title167","v":"Codigestion"},{"$error":"#DIV/0!"},{"$error":"#DIV/0!"},{"$error":"#DIV/0!"},{"$error":"#DIV/0!"}]
[]
[]
[]
[]
[]
[]
[]
[]
[]
[null,null,null,null,null,null,null,null,null,null,null,null,null,null,null,null,null,null,null,null,null,null,null,null,null,null,null,{"$f":"'Data entry needs'!$F$11","v":false},{"$f":"'Data entry needs'!$F$11","v":false},{"$f":"'Data entry needs'!$F$11","v":false},{"$f":"'Data entry needs'!$F$11","v":false},{"$f":"'Data entry needs'!$F$11","v":false},{"$f":"'Data entry needs'!$F$11","v":false},{"$f":"'Data entry needs'!$F$11","v":false},{"$f":"'Data entry needs'!$F$11","v":false},{"$f":"'Data entry needs'!$F$11","v":false},{"$f":"'Data entry needs'!$F$11","v":false},{"$f":"'Data entry needs'!$F$11","v":false},{"$f":"'Data entry needs'!$F$11","v":false}]
[null,null,null,null,null,null,null,null,null,null,null,null,null,null,null,null,null,null,null,null,null,null,null,null,null,null,null,{"$f":"title204","v":"Jan"},{"$f":"title205","v":"Feb"},{"$f":"title206","v":"Mar"},{"$f":"title207","v":"Apr"},{"$f":"title208","v":"May"},{"$f":"title209","v":"Jun"},{"$f":"title210","v":"Jul"},{"$f":"title211","v":"Aug"},{"$f":"title212","v":"Sep"},{"$f":"title213","v":"Oct"},{"$f":"title214","v":"Nov"},{"$f":"title215","v":"Dec"},"Not Collection Months",{"$f":"title633","v":"Collection Months"}]
[null,null,null,null,null,null,null,null,null,null,null,null,null,null,null,null,null,null,null,null,null,null,null,null,null,null,null,{"$f":"IF(OR(ISBLANK(F13),F13=0),0,1)","v":0},0,0,0,0,0,0,0,0,0,0,0,{"$f":"IF((12-COUNTIF(AB88:AM88,\">0\"))=0,1,(12-COUNTIF(AB88:AM88,\">0\")))","v":12},{"$f":"SUM(AB88:AM88)","v":0}]
[null,null,null,null,null,null,null,null,null,null,null,null,null,null,null,null,null,null,null,null,null,null,null,null,null,null,null,0,0,0,0,0,0,0,0,0,0,0,0,{"$f":"IF((12-COUNTIF(AB89:AM89,\">0\"))=0,1,(12-COUNTIF(AB89:AM89,\">0\")))","v":12},{"$f":"SUM(AB89:AM89)","v":0}]
[null,null,null,null,null,null,null,null,null,null,null,null,null,null,null,null,null,null,null,null,null,null,null,null,null,null,null,0,0,0,0,0,0,0,0,0,0,0,0,{"$f":"IF((12-COUNTIF(AB90:AM90,\">0\"))=0,1,(12-COUNTIF(AB90:AM90,\">0\")))","v":12},{"$f":"SUM(AB90:AM90)","v":0}]
[null,null,null,null,null,null,null,null,null,null,null,null,null,null,null,null,null,null,null,null,null,null,null,null,null,null,null,0,0,0,0,0,0,0,0,0,0,0,0,{"$f":"IF((12-COUNTIF(AB91:AM91,\">0\"))=0,1,(12-COUNTIF(AB91:AM91,\">0\")))","v":12},{"$f":"SUM(AB91:AM91)","v":0}]
[null,null,null,null,null,null,null,null,null,null,null,null,null,null,null,null,null,null,null,null,null,null,null,null,null,null,null,0,0,0,0,0,0,0,0,0,0,0,0,{"$f":"IF((12-COUNTIF(AB92:AM92,\">0\"))=0,1,(12-COUNTIF(AB92:AM92,\">0\")))","v":12},{"$f":"SUM(AB92:AM92)","v":0}]
[null,null,null,null,null,null,null,null,null,null,null,null,null,null,null,null,null,null,null,null,null,null,null,null,null,null,null,{"$f":"SUM(AB88:AB92)","v":0},0,0,0,0,0,0,0,0,0,0,0]
[null,null,null,null,null,null,null,null,null,null,null,null,null,null,null,null,null,null,null,null,null,null,null,null,null,null,null,{"$f":"IF(AND(AB$93>1,AB$86),TRUE,FALSE)","v":false},false,false,false,false,false,false,false,false,false,false,false]
[null,null,null,null,null,null,null,null,null,null,null,null,null,null,null,null,null,null,null,null,null,null,null,null,null,null,{"$f":"title167","v":"Codigestion"},{"$f":"IF(OR(ISBLANK(F20),F20=0),0,1)","v":0},{"$f":"IF(OR(ISBLANK(G20),G20=0),0,1)","v":0},0,0,0,0,0,0,0,0,0,0,{"$f":"IF((12-COUNTIF(AB95:AM95,\">0\"))=0,1,(12-COUNTIF(AB95:AM95,\">0\")))","v":12},{"$f":"SUM(AB95:AM95)","v":0}]
[]
[]
[null,null,null,null,null,null,null,null,null,null,null,null,null,null,null,null,null,null,null,null,null,null,null,null,null,null,null,null,null,"G","H","I","J",null,null,"k"]
[null,null,null,null,null,null,null,null,null,null,null,null,null,null,null,null,null,null,null,null,null,null,null,null,null,null,null,{"$f":"title249","v":"Category"},{"$f":"title250","v":"Main Feedstock"},"VS (%)  or COD (kg/l)","TS (%) or COD Deg(%)","BMP (m3/t VS)","CH4 (%)","Final",{"$f":"title252","v":"Code"},{"$f":"title17","v":"Price"},{"$f":"title253","v":"Fs rate"},"%",null,null,null,"Optimal Codigestion synergy Factor"]
[null,null,null,null,null,null,null,null,null,null,null,null,null,null,null,null,null,null,null,null,null,null,null,null,null,null,{"$f":"$B13","v":39},{"$f":"IF(INDIRECT(\"'Data entry needs'!$D\"&$AA100)=title74,\"\",INDIRECT(\"'Data entry needs'!$d\"&$AA100))","v":""},{"$f":"IF(INDIRECT(\"'Data entry needs'!$D\"&$AA100)=title74,\"\",INDIRECT(\"'Data entry needs'!$d\"&$AA100)&\"-\"&INDIRECT(\"'Data entry needs'!$e\"&$AA100))","v":""},{"$f":"IF(INDIRECT(\"'Data entry needs'!$D\"&$AA100)=title74,0,IF($AB100=title192,TEXT(INDIRECT(\"'Data entry needs'!$\"&AD$98&0&$AA100),\"0.00\")/1000,TEXT(INDIRECT(\"'Data entry needs'!$\"&AD$98&0&$AA100),\"0%\"))+0%)","v":0},{"$f":"IF(INDIRECT(\"'Data entry needs'!$D\"&$AA100)=title74,0,INDIRECT(\"'Data entry needs'!$\"&AE$98&0&$AA100))+0%","v":0},{"$f":"IF(INDIRECT(\"'Data entry needs'!$D\"&$AA100)=title74,0,INDIRECT(\"'Data entry needs'!$\"&AF$98&0&$AA100))+0","v":0},0,{"$f":"IF(AB100=\"\",0,1)*AI100","v":0},1,{"$f":"IF(INDIRECT(\"'Data entry needs'!$D\"&$AA100)=title74,0,INDIRECT(\"'Data entry needs'!$\"&AJ$98&0&$AA100))+0","v":0},{"$f":"$E13*$AH100","v":0},{"$f":"AK100/$AK$106","v":{"$error":"#DIV/0!"}},{"$f":"title167","v":"Codigestion"},{"$f":"'Data entry needs'!$J$11","v":true},null,{"$f":"IF(AN100,1.5,1)","v":1.5},"Biogas yiled"]
[null,null,null,null,null,null,null,null,null,null,null,null,null,null,null,null,null,null,null,null,null,null,null,null,null,null,{"$f":"$B14","v":41},"","",0,0,0,0,0,1,0,0,{"$error":"#DIV/0!"},null,null,null,"Thermophilic enhance Factor"]
[null,null,null,null,null,null,null,null,null,null,null,null,null,null,null,null,null,null,null,null,null,null,null,null,null,null,{"$f":"$B15","v":43},"","",0,0,0,0,0,1,0,0,{"$error":"#DIV/0!"},{"$f":"title254","v":"Temperature (°C)"},{"$f":"COST_PS2!$L$12","v":"Mesophilic"},{"$f":"COST_PS2!$M$12","v":37.5},{"$f":"IF($AN$102=\"thermophilic\",0.5,1)","v":1},"HRT"]
[null,null,null,null,null,null,null,null,null,null,null,null,null,null,null,null,null,null,null,null,null,null,null,null,null,null,{"$f":"$B16","v":45},"","",0,0,0,0,0,1,0,0,{"$error":"#DIV/0!"},{"$f":"title255","v":"Optimal Codigestion Ratios"}]
[null,null,null,null,null,null,null,null,null,null,null,null,null,null,null,null,null,null,null,null,null,null,null,null,null,null,{"$f":"$B17","v":47},"","",0,0,0,0,0,1,0,0,{"$error":"#DIV/0!"},{"$f":"title84","v":"Manure"},{"$f":"title251","v":"Other"}]
[null,null,null,null,null,null,null,null,null,null,null,null,null,null,null,null,null,null,null,null,null,null,null,null,null,null,{"$f":"$B$20","v":51},"","",0,0,0,0,0,1,0,{"$f":"IFERROR($E20*$AH105,0)","v":0},{"$error":"#DIV/0!"},3,1]
[null,null,null,null,null,null,null,null,null,null,null,null,null,null,null,null,null,null,null,null,null,null,null,null,null,null,null,null,null,"VS (%)","TS (%)","BMP (m3/t VS)","CH4 (%)",{"$f":"SUM(AH100:AH105)","v":0},null,null,{"$f":"SUM(AK100:AK105)","v":0}]
[null,null,null,null,null,null,null,null,null,null,null,null,null,null,null,null,null,null,null,null,null,null,null,null,null,null,null,null,{"$f":"title256","v":"Mixture"},{"$f":"SUMPRODUCT(AD100:AD105,$AH$100:$AH$105)/$AH$106","v":{"$error":"#DIV/0!"}},{"$f":"ROUND(SUMPRODUCT(AE100:AE105,$AH$100:$AH$105)/$AH$106,2)","v":{"$error":"#DIV/0!"}},{"$f":"SUMPRODUCT(AF100:AF105,$AH$100:$AH$105)/$AH$106","v":{"$error":"#DIV/0!"}},{"$f":"ROUND(SUMPRODUCT(AG100:AG105,$AH$100:$AH$105)/$AH$106,2)","v":{"$error":"#DIV/0!"}}]
[]
[null,null,null,null,null,null,null,null,null,null,null,null,null,null,null,null,null,null,null,null,null,null,null,null,null,null,null,null,"Hashimoto's kinetic model"]
[null,null,null,null,null,null,null,null,null,null,null,null,null,null,null,null,null,null,null,null,null,null,null,null,null,null,null,null,"Description",{"$f":"title27","v":"Unit"},null,null,null,null,null,null,{"$f":"title263","v":"Feedstock Price (USD/t)"},null,{"$f":"SUMPRODUCT(AJ100:AJ105,AL100:AL105)","v":{"$error":"#DIV/0!"}}]
[null,null,null,null,null,null,null,null,null,null,null,null,null,null,null,null,null,null,null,null,null,null,null,null,null,null,null,"γ'","Volumetric CH4 production rate","m3 CH4/day/m3 feed/day"]
[null,null,null,null,null,null,null,null,null,null,null,null,null,null,null,null,null,null,null,null,null,null,null,null,null,null,null,"Bo","BMP","m3/t VS"]
[null,null,null,null,null,null,null,null,null,null,null,null,null,null,null,null,null,null,null,null,null,null,null,null,null,null,null,"So'","Influent VS concentration","t VS/m3"]
[null,null,null,null,null,null,null,null,null,null,null,null,null,null,null,null,null,null,null,null,null,null,null,null,null,null,null,"µm","Maximum specific growth rate/day","1/day","µm=0.013T-0.129",null,null,null,null,null,"TS (%)",null,null,{"$f":"title584","v":"HRT (days)"}]
[null,null,null,null,null,null,null,null,null,null,null,null,null,null,null,null,null,null,null,null,null,null,null,null,null,null,null,"HRT","Hydraulic Retention Times","day",{"$f":"COST_PS2!$M$16","v":0},null,null,null,null,null,"min","max","Average","Cold","Warm","Dilution",null,"Efficiency"]
[null,null,null,null,null,null,null,null,null,null,null,null,null,null,null,null,null,null,null,null,null,null,null,null,null,null,null,"k","Knetic parameter","dimesionless","k = 0.6+0.0206exp(0.051*vs*ts)",null,"Assumption = these equation applies for all fs",null,null,"CSTR",0.02,0.2,{"$f":"AVERAGE(AK116:AL116)","v":0.11},15,40,{"$f":"IF($AE$107<=$AL116,0%,IF($AE$107>$AL116,$AM116))","v":{"$error":"#DIV/0!"}},{"$f":"IF(AP116=0%,TRUE,FALSE)","v":{"$error":"#DIV/0!"}},0.8]
[null,null,null,null,null,null,null,null,null,null,null,null,null,null,null,null,null,null,null,null,null,null,null,null,null,null,null,null,"Average Temp",{"$f":"AVERAGE(F9:Q9)","v":{"$error":"#DIV/0!"}},null,null,null,null,null,{"$f":"title530","v":"Plug Flow"},0.2,0.35,{"$f":"AVERAGE(AK117:AL117)","v":0.27500000000000002},18,20,{"$f":"IF($AE$107<=$AL117,0%,IF($AE$107>$AL117,$AM117))","v":{"$error":"#DIV/0!"}},{"$f":"IF(AP117=0%,TRUE,FALSE)","v":{"$error":"#DIV/0!"}},0.8]
[null,null,null,null,null,null,null,null,null,null,null,null,null,null,null,null,null,null,null,null,null,null,null,null,null,null,null,null,null,null,null,null,null,null,null,"UASB",0,0.02,{"$f":"AVERAGE(AK118:AL118)","v":0.01},1,5,{"$f":"IF($AE$107<=$AL118,0%,IF($AE$107>$AL118,$AM118))","v":{"$error":"#DIV/0!"}},{"$f":"IF(AP118=0%,TRUE,FALSE)","v":{"$error":"#DIV/0!"}},0.9]
[null,null,null,null,null,null,null,null,null,null,null,null,null,null,null,null,null,null,null,null,null,null,null,null,null,null,null,null,null,null,null,null,null,null,null,{"$f":"title531","v":"Batch"},0.35,0.5,{"$f":"AVERAGE(AK119:AL119)","v":0.42499999999999999},40,60,{"$f":"$AE$107","v":{"$error":"#DIV/0!"}},{"$f":"IF(AP119=0%,TRUE,FALSE)","v":{"$error":"#DIV/0!"}},0.75]
[null,null,null,null,null,null,null,null,null,null,null,null,null,null,null,null,null,null,null,null,null,null,null,null,null,null,null,"Biogas"]
[null,null,null,null,null,null,null,null,null,null,null,null,null,null,null,null,null,null,null,null,null,null,null,null,null,null,null,null,"k",{"$f":"0.6+0.0206*EXP(0.051*$AD$107*$AE$107*100)","v":{"$error":"#DIV/0!"}},"Usage % digesters",0.8]
[null,null,null,null,null,null,null,null,null,null,null,null,null,null,null,null,null,null,null,null,null,null,null,null,null,null,null,null,"µm",{"$f":"0.013*$AO$102-0.129","v":0.35849999999999999},"Target Ts(%)",{"$f":"IF(VLOOKUP(COST_PS2!$L$10,Planner_PS2!$AJ$116:$AQ$119,7,FALSE)=0%,$AE$107,VLOOKUP(COST_PS2!$L$10,Planner_PS2!$AJ$116:$AQ$119,7,FALSE))","v":{"$error":"#DIV/0!"}},{"$f":"AD133/(AD133+AD136)","v":{"$error":"#DIV/0!"}}]
[null,null,null,null,null,null,null,null,null,null,null,null,null,null,null,null,null,null,null,null,null,null,null,null,null,null,null,null,"γ'",{"$f":"AF107*AE107*AD107*(1-(AD121/(AE115*AD122-1+AD121)))","v":{"$error":"#DIV/0!"}}]
[null,null,null,null,null,null,null,null,null,null,null,null,null,null,null,null,null,null,null,null,null,null,null,null,null,null,null,"Density Mixture",1,"t Feed/m3","Cp MIXTURE",{"$f":"4.17*(1-0.00812*$AE$107)","v":{"$error":"#DIV/0!"}},"kJ7kg°C"]
[null,null,null,null,null,null,null,null,null,null,null,null,null,null,null,null,null,null,null,null,null,null,null,null,null,null,null,null,null,null,null,null,null,"Uses"]
[null,null,null,null,null,null,null,null,null,null,null,null,null,null,null,null,null,null,null,null,null,null,null,null,null,null,null,null,null,{"$f":"title248&\" 1\"","v":"Size 1"},{"$f":"title248&\" 2\"","v":"Size 2"},{"$f":"title248&\" 3\"","v":"Size 3"},{"$f":"title248&\" 4\"","v":"Size 4"}]
[null,null,null,null,null,null,null,null,null,null,null,null,null,null,null,null,null,null,null,null,null,null,null,null,null,null,null,{"$f":"ROW(AD127)","v":127},{"$f":"title671","v":"m3 Methane/day"},{"$f":"'New Feedstock'!B$27","v":800},{"$f":"'New Feedstock'!C$27","v":140},{"$f":"'New Feedstock'!D$27","v":220},{"$f":"'New Feedstock'!E$27","v":960},4,5,{"$f":"\"USD/m3 \"&PROPER(title512)","v":"USD/m3 Biogas"},{"$f":"'Data entry needs'!$L$100","v":0}]
[null,null,null,null,null,null,null,null,null,null,null,null,null,null,null,null,null,null,null,null,null,null,null,null,null,null,null,{"$f":"ROW(AD128)","v":128},"kWe",{"$f":"'New Feedstock'!B$28","v":100},{"$f":"'New Feedstock'!C$28","v":105},{"$f":"'New Feedstock'!D$28","v":115},{"$f":"'New Feedstock'!E$28","v":120},1,3,"USD/kWh",{"$f":"COST_PS2!$M$35","v":0}]
[null,null,null,null,null,null,null,null,null,null,null,null,null,null,null,null,null,null,null,null,null,null,null,null,null,null,null,{"$f":"ROW(AD129)","v":129},"GJ/day",21.6,86.4,864,4320,2,null,{"$f":"title618","v":"USD/m3 methane"},{"$f":"'Data entry needs'!$L$100","v":0}]
[null,null,null,null,null,null,null,null,null,null,null,null,null,null,null,null,null,null,null,null,null,null,null,null,null,null,null,130,{"$f":"title260","v":"m3 Biogas/day"},{"$f":"'New Feedstock'!B$29*60%/$AG$107","v":{"$error":"#DIV/0!"}},{"$f":"'New Feedstock'!C$29*60%/$AG$107","v":{"$error":"#DIV/0!"}},{"$f":"'New Feedstock'!D$29*60%/$AG$107","v":{"$error":"#DIV/0!"}},{"$f":"'New Feedstock'!E$29*60%/$AG$107","v":{"$error":"#DIV/0!"}}]
[null,null,null,null,null,null,null,null,null,null,null,null,null,null,null,null,null,null,null,null,null,null,null,null,null,null,null,"Feed Rate Vol","m3 Feed/day",{"$f":"AD127/$AD$123/VLOOKUP(COST_PS2!$L$10,Planner_PS2!$AJ$116:$AR$119,9,FALSE)","v":{"$error":"#DIV/0!"}},{"$f":"AE127/$AD$123/VLOOKUP(COST_PS2!$L$10,Planner_PS2!$AJ$116:$AR$119,9,FALSE)","v":{"$error":"#DIV/0!"}},{"$f":"AF127/$AD$123/VLOOKUP(COST_PS2!$L$10,Planner_PS2!$AJ$116:$AR$119,9,FALSE)","v":{"$error":"#DIV/0!"}},{"$f":"AG127/$AD$123/VLOOKUP(COST_PS2!$L$10,Planner_PS2!$AJ$116:$AR$119,9,FALSE)","v":{"$error":"#DIV/0!"}}]
[null,null,null,null,null,null,null,null,null,null,null,null,null,null,null,null,null,null,null,null,null,null,null,null,null,null,null,"Feed Rate Mass","t Feed/day",{"$f":"AD127/$AD$123","v":{"$error":"#DIV/0!"}},{"$f":"AE127/$AD$123","v":{"$error":"#DIV/0!"}},{"$f":"AF127/$AD$123","v":{"$error":"#DIV/0!"}},{"$f":"AG127/$AD$123","v":{"$error":"#DIV/0!"}}]
[null,null,null,null,null,null,null,null,null,null,null,null,null,null,null,null,null,null,null,null,null,null,null,null,null,null,null,null,"t Feed/ year",{"$f":"AD$132*'Data entry needs'!$L$100","v":{"$error":"#DIV/0!"}},{"$f":"AE$132*'Data entry needs'!$L$100","v":{"$error":"#DIV/0!"}},{"$f":"AF$132*'Data entry needs'!$L$100","v":{"$error":"#DIV/0!"}},{"$f":"AG$132*'Data entry needs'!$L$100","v":{"$error":"#DIV/0!"}}]
[null,null,null,null,null,null,null,null,null,null,null,null,null,null,null,null,null,null,null,null,null,null,null,null,null,null,null,"Volume","m3",{"$f":"AD131*$AE$115/$AF$121","v":{"$error":"#DIV/0!"}},{"$f":"AE131*$AE$115/$AF$121","v":{"$error":"#DIV/0!"}},{"$f":"AF131*$AE$115/$AF$121","v":{"$error":"#DIV/0!"}},{"$f":"AG131*$AE$115/$AF$121","v":{"$error":"#DIV/0!"}}]
[null,null,null,null,null,null,null,null,null,null,null,null,null,null,null,null,null,null,null,null,null,null,null,null,null,null,null,"Water Initial","t water/year",{"$f":"AD133*$AE$107*(1/$AE$107-1)","v":{"$error":"#DIV/0!"}},{"$f":"AE133*$AE$107*(1/$AE$107-1)","v":{"$error":"#DIV/0!"}},{"$f":"AF133*$AE$107*(1/$AE$107-1)","v":{"$error":"#DIV/0!"}},{"$f":"AG133*$AE$107*(1/$AE$107-1)","v":{"$error":"#DIV/0!"}}]
[null,null,null,null,null,null,null,null,null,null,null,null,null,null,null,null,null,null,null,null,null,null,null,null,null,null,null,"Water Demand","t water/year",{"$f":"(AD133*$AE$107/$AF$122)-AD135-AD133*$AE$107","v":{"$error":"#DIV/0!"}},{"$f":"AE133*$AE$107/$AF$122-AE135-AE133*$AE$107","v":{"$error":"#DIV/0!"}},{"$f":"AF133*$AE$107/$AF$122-AF135-AF133*$AE$107","v":{"$error":"#DIV/0!"}},{"$f":"AG133*$AE$107/$AF$122-AG135-AG133*$AE$107","v":{"$error":"#DIV/0!"}}]
[null,null,null,null,null,null,null,null,null,null,null,null,null,null,null,null,null,null,null,null,null,null,null,null,null,null,null,{"$f":"title256","v":"Mixture"},"t mixture/year",{"$f":"AD133+AD136","v":{"$error":"#DIV/0!"}},{"$f":"AE133+AE136","v":{"$error":"#DIV/0!"}},{"$f":"AF133+AF136","v":{"$error":"#DIV/0!"}},{"$f":"AG133+AG136","v":{"$error":"#DIV/0!"}}]
[]
[null,null,null,null,null,null,null,null,null,null,null,null,null,null,null,null,null,null,null,null,null,null,null,null,null,null,"Energy Consumption"]
[null,null,null,null,null,null,null,null,null,null,null,null,null,null,null,null,null,null,null,null,null,null,null,null,null,null,{"$f":"title51","v":"Heat"},{"$f":"title204","v":"Jan"},{"$f":"title205","v":"Feb"},{"$f":"title206","v":"Mar"},{"$f":"title207","v":"Apr"},{"$f":"title208","v":"May"},{"$f":"title209","v":"Jun"},{"$f":"title210","v":"Jul"},{"$f":"title211","v":"Aug"},{"$f":"title212","v":"Sep"},{"$f":"title213","v":"Oct"},{"$f":"title214","v":"Nov"},{"$f":"title215","v":"Dec"}]
[null,null,null,null,null,null,null,null,null,null,null,null,null,null,null,null,null,null,null,null,null,null,null,null,null,null,"Enviromental Temp",{"$f":"F$9","v":0},{"$f":"G$9","v":0},0,0,0,0,0,0,0,0,0,0]
[null,null,null,null,null,null,null,null,null,null,null,null,null,null,null,null,null,null,null,null,null,null,null,null,null,null,"Operation. Temp",{"$f":"$AO$102","v":37.5},37.5,37.5,37.5,37.5,37.5,37.5,37.5,37.5,37.5,37.5,37.5]
[null,null,null,null,null,null,null,null,null,null,null,null,null,null,null,null,null,null,null,null,null,null,null,null,null,null,"Cp' (MJ/t)",{"$f":"$AF$124*(AB142-AB141)","v":{"$error":"#DIV/0!"}},{"$f":"$AF$124*(AC142-AC141)","v":{"$error":"#DIV/0!"}},{"$error":"#DIV/0!"},{"$error":"#DIV/0!"},{"$error":"#DIV/0!"},{"$error":"#DIV/0!"},{"$error":"#DIV/0!"},{"$error":"#DIV/0!"},{"$error":"#DIV/0!"},{"$error":"#DIV/0!"},{"$error":"#DIV/0!"},{"$error":"#DIV/0!"},{"$f":"\"Total (\"&title305&\")\"","v":"Total (GJ/year)"}]
[null,null,null,null,null,null,null,null,null,null,null,null,null,null,null,null,null,null,null,null,null,null,null,null,null,null,"Size 1 (MJ/month)",{"$f":"$AD$137*AB$143/12","v":{"$error":"#DIV/0!"}},{"$error":"#DIV/0!"},{"$error":"#DIV/0!"},{"$error":"#DIV/0!"},{"$error":"#DIV/0!"},{"$error":"#DIV/0!"},{"$error":"#DIV/0!"},{"$error":"#DIV/0!"},{"$error":"#DIV/0!"},{"$error":"#DIV/0!"},{"$error":"#DIV/0!"},{"$error":"#DIV/0!"},{"$f":"SUM(AB144:AM144)/1000","v":{"$error":"#DIV/0!"}}]
[null,null,null,null,null,null,null,null,null,null,null,null,null,null,null,null,null,null,null,null,null,null,null,null,null,null,"Size 2 (MJ/month)",{"$f":"$AE$137*AB$143/12","v":{"$error":"#DIV/0!"}},{"$error":"#DIV/0!"},{"$error":"#DIV/0!"},{"$error":"#DIV/0!"},{"$error":"#DIV/0!"},{"$error":"#DIV/0!"},{"$error":"#DIV/0!"},{"$error":"#DIV/0!"},{"$error":"#DIV/0!"},{"$error":"#DIV/0!"},{"$error":"#DIV/0!"},{"$error":"#DIV/0!"},{"$f":"SUM(AB145:AM145)/1000","v":{"$error":"#DIV/0!"}}]
[null,null,null,null,null,null,null,null,null,null,null,null,null,null,null,null,null,null,null,null,null,null,null,null,null,null,"Size 3 (MJ/month)",{"$f":"$AF$137*AB$143/12","v":{"$error":"#DIV/0!"}},{"$error":"#DIV/0!"},{"$error":"#DIV/0!"},{"$error":"#DIV/0!"},{"$error":"#DIV/0!"},{"$error":"#DIV/0!"},{"$error":"#DIV/0!"},{"$error":"#DIV/0!"},{"$error":"#DIV/0!"},{"$error":"#DIV/0!"},{"$error":"#DIV/0!"},{"$error":"#DIV/0!"},{"$f":"SUM(AB146:AM146)/1000","v":{"$error":"#DIV/0!"}}]
[null,null,null,null,null,null,null,null,null,null,null,null,null,null,null,null,null,null,null,null,null,null,null,null,null,null,"Size 4 (MJ/month)",{"$f":"$AG$137*AB$143/12","v":{"$error":"#DIV/0!"}},{"$error":"#DIV/0!"},{"$error":"#DIV/0!"},{"$error":"#DIV/0!"},{"$error":"#DIV/0!"},{"$error":"#DIV/0!"},{"$error":"#DIV/0!"},{"$error":"#DIV/0!"},{"$error":"#DIV/0!"},{"$error":"#DIV/0!"},{"$error":"#DIV/0!"},{"$error":"#DIV/0!"},{"$f":"SUM(AB147:AM147)/1000","v":{"$error":"#DIV/0!"}}]
[]
[null,null,null,null,null,null,null,null,null,null,null,null,null,null,null,null,null,null,null,null,null,null,null,null,null,null,"Electricity (kWh/year)",{"$f":"title248&\" 1\"","v":"Size 1"},{"$f":"title248&\" 2\"","v":"Size 2"},{"$f":"title248&\" 3\"","v":"Size 3"},{"$f":"title248&\" 4\"","v":"Size 4"}]
[null,null,null,null,null,null,null,null,null,null,null,null,null,null,null,null,null,null,null,null,null,null,null,null,null,null,"CSTR",{"$f":"(7.29+2.16)*AD$133+6.3*AD$134/100","v":{"$error":"#DIV/0!"}},{"$f":"(7.29+2.16)*AE$133+6.3*AE$134/100","v":{"$error":"#DIV/0!"}},{"$f":"(7.29+2.16)*AF$133+6.3*AF$134/100","v":{"$error":"#DIV/0!"}},{"$f":"(7.29+2.16)*AG$133+6.3*AG$134/100","v":{"$error":"#DIV/0!"}}]
[null,null,null,null,null,null,null,null,null,null,null,null,null,null,null,null,null,null,null,null,null,null,null,null,null,null,"UASB",{"$f":"250*AD134","v":{"$error":"#DIV/0!"}},{"$f":"250*AE134","v":{"$error":"#DIV/0!"}},{"$f":"250*AF134","v":{"$error":"#DIV/0!"}},{"$f":"250*AG134","v":{"$error":"#DIV/0!"}}]
[null,null,null,null,null,null,null,null,null,null,null,null,null,null,null,null,null,null,null,null,null,null,null,null,null,null,{"$f":"title530","v":"Plug Flow"},{"$f":"12.25*AD133","v":{"$error":"#DIV/0!"}},{"$f":"12.25*AE133","v":{"$error":"#DIV/0!"}},{"$f":"12.25*AF133","v":{"$error":"#DIV/0!"}},{"$f":"12.25*AG133","v":{"$error":"#DIV/0!"}}]
[null,null,null,null,null,null,null,null,null,null,null,null,null,null,null,null,null,null,null,null,null,null,null,null,null,null,{"$f":"title531","v":"Batch"},{"$f":"(7.29+2.16)*AD$133+6.3*AD$134/100","v":{"$error":"#DIV/0!"}},{"$f":"(7.29+2.16)*AE$133+6.3*AE$134/100","v":{"$error":"#DIV/0!"}},{"$f":"(7.29+2.16)*AF$133+6.3*AF$134/100","v":{"$error":"#DIV/0!"}},{"$f":"(7.29+2.16)*AG$133+6.3*AG$134/100","v":{"$error":"#DIV/0!"}}]
[]
[null,null,null,null,null,null,null,null,null,null,null,null,null,null,null,null,null,null,null,null,null,null,null,null,null,null,"Energy Potential - Cogeneration"]
[null,null,null,null,null,null,null,null,null,null,null,null,null,null,null,null,null,null,null,null,null,null,null,null,null,null,null,{"$f":"title248&\" 1\"","v":"Size 1"},{"$f":"title248&\" 2\"","v":"Size 2"},{"$f":"title248&\" 3\"","v":"Size 3"},{"$f":"title248&\" 4\"","v":"Size 4"},null,"CV",{"$f":"(0.3594*$AG$107*100-0.024)/3.6","v":{"$error":"#DIV/0!"}},"kWh/m3 biogas","Y = AX^4+BX^3+CX^2+DX+E","(kg/t)"]
[null,null,null,null,null,null,null,null,null,null,null,null,null,null,null,null,null,null,null,null,null,null,null,null,null,null,"Energy Potential",{"$f":"$AH$156*AD$130*'Data entry needs'!$L$100*3.6","v":{"$error":"#DIV/0!"}},{"$f":"$AH$156*AE$130*'Data entry needs'!$L$100*3.6","v":{"$error":"#DIV/0!"}},{"$f":"$AH$156*AF$130*'Data entry needs'!$L$100*3.6","v":{"$error":"#DIV/0!"}},{"$f":"$AH$156*AG$130*'Data entry needs'!$L$100*3.6","v":{"$error":"#DIV/0!"}},{"$f":"title306","v":"MJ/year"},"Thermal Eff.",0.6,null,null,"A","B","C","D","E"]
[null,null,null,null,null,null,null,null,null,null,null,null,null,null,null,null,null,null,null,null,null,null,null,null,null,null,{"$f":"title51","v":"Heat"},{"$f":"AB157*($AH$157-$AH$158)/(1-($AH$158/$AH$159))/1000","v":{"$error":"#DIV/0!"}},{"$f":"AC157*($AH$157-$AH$158)/(1-($AH$158/$AH$159))/1000","v":{"$error":"#DIV/0!"}},{"$f":"AD157*($AH$157-$AH$158)/(1-($AH$158/$AH$159))/1000","v":{"$error":"#DIV/0!"}},{"$f":"AE157*($AH$157-$AH$158)/(1-($AH$158/$AH$159))/1000","v":{"$error":"#DIV/0!"}},{"$f":"title305","v":"GJ/year"},"Electrical Eff.",0.4,null,"NH3-N",2.6264300000000001E-4,-5.29693E-3,3.2159399999999998E-2,-5.2911699999999999E-2,0.57911000000000001]
[null,null,null,null,null,null,null,null,null,null,null,null,null,null,null,null,null,null,null,null,null,null,null,null,null,null,{"$f":"title35","v":"Electricity"},{"$f":"(AB157*$AH$157-AB158*1000)/3.6","v":{"$error":"#DIV/0!"}},{"$f":"(AC157*$AH$157-AC158*1000)/3.6","v":{"$error":"#DIV/0!"}},{"$f":"(AD157*$AH$157-AD158*1000)/3.6","v":{"$error":"#DIV/0!"}},{"$f":"(AE157*$AH$157-AE158*1000)/3.6","v":{"$error":"#DIV/0!"}},{"$f":"title304","v":"kWh/year"},"Alpha",0.75,null,"P2O5",1.1614599999999999E-2,-9.3845899999999996E-2,0.21317700000000001,-0.12223199999999999,0.58016500000000004]
[null,null,null,null,null,null,null,null,null,null,null,null,null,null,null,null,null,null,null,null,null,null,null,null,null,null,null,null,null,null,null,null,null,null,null,"K2O",1.14288E-4,-2.09458E-3,1.2713199999999999E-2,-2.1764599999999999E-2,0.57522600000000002]
[null,null,null,null,null,null,null,null,null,null,null,null,null,null,null,null,null,null,null,null,null,null,null,null,null,null,"Energy Potential-Electricity"]
[null,null,null,null,null,null,null,null,null,null,null,null,null,null,null,null,null,null,null,null,null,null,null,null,null,null,"Energy Potential",{"$f":"$AH$156*AD$130*'Data entry needs'!$L$100","v":{"$error":"#DIV/0!"}},{"$f":"$AH$156*AE$130*'Data entry needs'!$L$100","v":{"$error":"#DIV/0!"}},{"$f":"$AH$156*AF$130*'Data entry needs'!$L$100","v":{"$error":"#DIV/0!"}},{"$f":"$AH$156*AG$130*'Data entry needs'!$L$100","v":{"$error":"#DIV/0!"}},{"$f":"title304","v":"kWh/year"},"Electrical Eff. Only",0.3,null,null,"Efficency of Separation"]
[null,null,null,null,null,null,null,null,null,null,null,null,null,null,null,null,null,null,null,null,null,null,null,null,null,null,{"$f":"title35","v":"Electricity"},{"$f":"AB162*$AH$162","v":{"$error":"#DIV/0!"}},{"$f":"AC162*$AH$162","v":{"$error":"#DIV/0!"}},{"$f":"AD162*$AH$162","v":{"$error":"#DIV/0!"}},{"$f":"AE162*$AH$162","v":{"$error":"#DIV/0!"}},{"$f":"title304","v":"kWh/year"},null,null,null,null,"TS (%)","N(%)","P(%)","K(%)","Energy Consumption (kWh/t)","Recovery (%)"]
[null,null,null,null,null,null,null,null,null,null,null,null,null,null,null,null,null,null,null,null,null,null,null,null,null,null,null,null,null,null,null,null,null,null,null,{"$f":"title177","v":"Sedimentator"},0.05,{"$f":"AVERAGE(25%,35%)","v":0.3},0.3,0.2,0,0.19]
[null,null,null,null,null,null,null,null,null,null,null,null,null,null,null,null,null,null,null,null,null,null,null,null,null,null,"Connection to Natural Gas",null,null,null,null,null,null,null,null,{"$f":"title178","v":"Floater"},0.05,{"$f":"AVERAGE(30%,40%)","v":0.35},0.3,0.2,0,0.2]
[null,null,null,null,null,null,null,null,null,null,null,null,null,null,null,null,null,null,null,null,null,null,null,null,null,null,{"$f":"title47","v":"Natural Gas"},{"$f":"AD$127*'Data entry needs'!$L$100/97%","v":0},{"$f":"AE$127*'Data entry needs'!$L$100/97%","v":0},{"$f":"AF$127*'Data entry needs'!$L$100/97%","v":0},{"$f":"AG$127*'Data entry needs'!$L$100/97%","v":0},{"$f":"title307","v":"m3/year"},null,null,null,{"$f":"title179","v":"Centrifuge"},0.3,0.3,0.24,0.36,7,0.68]
[null,null,null,null,null,null,null,null,null,null,null,null,null,null,null,null,null,null,null,null,null,null,null,null,null,null,null,null,null,null,null,null,null,null,null,{"$f":"title180","v":"Belt Press"},0.25,0.32,0.28999999999999998,0.27,0.12,0.56000000000000005]
[null,null,null,null,null,null,null,null,null,null,null,null,null,null,null,null,null,null,null,null,null,null,null,null,null,null,"Energy Potential-Heating and Cooking",null,null,null,null,null,null,null,null,{"$f":"title181","v":"Screen Sieves"},0.1,0.25,0.26,0.17,0.9,0.2]
[null,null,null,null,null,null,null,null,null,null,null,null,null,null,null,null,null,null,null,null,null,null,null,null,null,null,null,null,null,null,null,null,null,null,null,{"$f":"title182","v":"Screw Press"},0.4,0.28000000000000003,0.33,0.18,1.1000000000000001,0.65]
[null,null,null,null,null,null,null,null,null,null,null,null,null,null,null,null,null,null,null,null,null,null,null,null,null,null,{"$f":"title626","v":"Digestate"},{"$f":"'Data entry needs'!$F$110","v":"Please Select"},"Solids Recovered",{"$f":"VLOOKUP($AB$170,$AJ$164:$AP$169,7,FALSE)","v":{"$error":"#N/A"}},"TS Digestate (%)",{"$f":"VLOOKUP($AB$170,$AJ$164:$AP$169,2,FALSE)","v":{"$error":"#N/A"}}]
[null,null,null,null,null,null,null,null,null,null,null,null,null,null,null,null,null,null,null,null,null,null,null,null,null,null,null,{"$f":"title248&\" 1\"","v":"Size 1"},{"$f":"title248&\" 2\"","v":"Size 2"},{"$f":"title248&\" 3\"","v":"Size 3"},{"$f":"title248&\" 4\"","v":"Size 4"},null,"Molecular Weight"]
[null,null,null,null,null,null,null,null,null,null,null,null,null,null,null,null,null,null,null,null,null,null,null,null,null,null,"Residual Solids Recov",{"$f":"AD$133*(1-$AD$107)*$AE$107*$AD$170","v":{"$error":"#DIV/0!"}},{"$f":"AE$133*(1-$AD$107)*$AE$107*$AD$170","v":{"$error":"#DIV/0!"}},{"$f":"AF$133*(1-$AD$107)*$AE$107*$AD$170","v":{"$error":"#DIV/0!"}},{"$f":"AG$133*(1-$AD$107)*$AE$107*$AD$170","v":{"$error":"#DIV/0!"}},{"$f":"title604","v":"t/yr"},"N",14.0067,"P205",{"$f":"AH174*2+AH176*5","v":141.94452200000001}]
[null,null,null,null,null,null,null,null,null,null,null,null,null,null,null,null,null,null,null,null,null,null,null,null,null,null,"N",{"$f":"($AK158*$AG$107^4+$AL158*$AG$107^3+$AM158*$AG$107^2+$AN158*$AG$107+$AO158)*AB$172*VLOOKUP($AB$170,$AJ$164:$AN$169,3,FALSE)","v":{"$error":"#DIV/0!"}},{"$error":"#DIV/0!"},{"$error":"#DIV/0!"},{"$error":"#DIV/0!"},{"$f":"title604","v":"t/yr"},"H",1.0079400000000001,"K20",{"$f":"AH175*2+AH176","v":94.195999999999998}]
[null,null,null,null,null,null,null,null,null,null,null,null,null,null,null,null,null,null,null,null,null,null,null,null,null,null,"P2O5",{"$error":"#DIV/0!"},{"$error":"#DIV/0!"},{"$error":"#DIV/0!"},{"$error":"#DIV/0!"},{"$f":"title604","v":"t/yr"},"P",30.973761]
[null,null,null,null,null,null,null,null,null,null,null,null,null,null,null,null,null,null,null,null,null,null,null,null,null,null,"K2O",{"$error":"#DIV/0!"},{"$error":"#DIV/0!"},{"$error":"#DIV/0!"},{"$error":"#DIV/0!"},{"$f":"title604","v":"t/yr"},"K",39.098300000000002]
[null,null,null,null,null,null,null,null,null,null,null,null,null,null,null,null,null,null,null,null,null,null,null,null,null,null,{"$f":"title658","v":"Ash"},{"$f":"(AD$133-AD$135)*$AE$107*$AD$107*$AD$170/10","v":{"$error":"#DIV/0!"}},{"$f":"(AE$133-AE$135)*$AE$107*$AD$107*$AD$170/10","v":{"$error":"#DIV/0!"}},{"$f":"(AF$133-AF$135)*$AE$107*$AD$107*$AD$170/10","v":{"$error":"#DIV/0!"}},{"$f":"(AG$133-AG$135)*$AE$107*$AD$107*$AD$170/10","v":{"$error":"#DIV/0!"}},{"$f":"title604","v":"t/yr"},"O",15.9994]
[null,null,null,null,null,null,null,null,null,null,null,null,null,null,null,null,null,null,null,null,null,null,null,null,null,null,"Solids Recovered",{"$f":"SUM(AB173:AB176)","v":{"$error":"#DIV/0!"}},{"$f":"SUM(AC173:AC176)","v":{"$error":"#DIV/0!"}},{"$f":"SUM(AD173:AD176)","v":{"$error":"#DIV/0!"}},{"$f":"SUM(AE173:AE176)","v":{"$error":"#DIV/0!"}}]
[null,null,null,null,null,null,null,null,null,null,null,null,null,null,null,null,null,null,null,null,null,null,null,null,null,null,"Total digestate",{"$f":"AB177/$AF$170","v":{"$error":"#DIV/0!"}},{"$f":"AC177/$AF$170","v":{"$error":"#DIV/0!"}},{"$f":"AD177/$AF$170","v":{"$error":"#DIV/0!"}},{"$f":"AE177/$AF$170","v":{"$error":"#DIV/0!"}}]
[null,null,null,null,null,null,null,null,null,null,null,null,null,null,null,null,null,null,null,null,null,null,null,null,null,null,"Energy (kWh/t)",{"$f":"VLOOKUP($AB$170,$AJ$164:$AP$169,6,FALSE)*AB178","v":{"$error":"#N/A"}},{"$f":"VLOOKUP($AB$170,$AJ$164:$AP$169,6,FALSE)*AC178","v":{"$error":"#N/A"}},{"$f":"VLOOKUP($AB$170,$AJ$164:$AP$169,6,FALSE)*AD178","v":{"$error":"#N/A"}},{"$f":"VLOOKUP($AB$170,$AJ$164:$AP$169,6,FALSE)*AE178","v":{"$error":"#N/A"}},{"$f":"title304","v":"kWh/year"}]
[null,null,null,null,null,null,null,null,null,null,null,null,null,null,null,null,null,null,null,null,null,null,null,null,null,null,"N",{"$f":"AB173","v":{"$error":"#DIV/0!"}},{"$f":"AC173","v":{"$error":"#DIV/0!"}},{"$f":"AD173","v":{"$error":"#DIV/0!"}},{"$f":"AE173","v":{"$error":"#DIV/0!"}},{"$f":"AF173","v":"t/yr"}]
[null,null,null,null,null,null,null,null,null,null,null,null,null,null,null,null,null,null,null,null,null,null,null,null,null,null,"P",{"$f":"AB174*$AH$174/$AJ$172","v":{"$error":"#DIV/0!"}},{"$f":"AC174*$AH$174/$AJ$172","v":{"$error":"#DIV/0!"}},{"$f":"AD174*$AH$174/$AJ$172","v":{"$error":"#DIV/0!"}},{"$f":"AE174*$AH$174/$AJ$172","v":{"$error":"#DIV/0!"}},{"$f":"AF174","v":"t/yr"}]
[null,null,null,null,null,null,null,null,null,null,null,null,null,null,null,null,null,null,null,null,null,null,null,null,null,null,"K",{"$f":"AB175*$AH$175/$AJ$173","v":{"$error":"#DIV/0!"}},{"$f":"AC175*$AH$175/$AJ$173","v":{"$error":"#DIV/0!"}},{"$f":"AD175*$AH$175/$AJ$173","v":{"$error":"#DIV/0!"}},{"$f":"AE175*$AH$175/$AJ$173","v":{"$error":"#DIV/0!"}},{"$f":"AF175","v":"t/yr"}]
[null,null,null,null,null,null,null,null,null,null,null,null,null,null,null,null,null,null,null,null,null,null,null,null,null,null,{"$f":"title658","v":"Ash"},{"$f":"AB176","v":{"$error":"#DIV/0!"}},{"$f":"AC176","v":{"$error":"#DIV/0!"}},{"$f":"AD176","v":{"$error":"#DIV/0!"}},{"$f":"AE176","v":{"$error":"#DIV/0!"}},{"$f":"AF176","v":"t/yr"}]
[null,null,null,null,null,null,null,null,null,null,null,null,null,null,null,null,null,null,null,null,null,null,null,null,null,null,"Total",{"$f":"SUM(AB180:AB183)","v":{"$error":"#DIV/0!"}},{"$f":"SUM(AC180:AC183)","v":{"$error":"#DIV/0!"}},{"$f":"SUM(AD180:AD183)","v":{"$error":"#DIV/0!"}},{"$f":"SUM(AE180:AE183)","v":{"$error":"#DIV/0!"}},{"$f":"AF177","v":0}]
[null,null,null,null,null,null,null,null,null,null,null,null,null,null,null,null,null,null,null,null,null,null,null,null,null,null,"%"]
[null,null,null,null,null,null,null,null,null,null,null,null,null,null,null,null,null,null,null,null,null,null,null,null,null,null,"N",{"$f":"AB180/AB$184","v":{"$error":"#DIV/0!"}}]
[null,null,null,null,null,null,null,null,null,null,null,null,null,null,null,null,null,null,null,null,null,null,null,null,null,null,"P",{"$f":"AB181/AB$184","v":{"$error":"#DIV/0!"}}]
[null,null,null,null,null,null,null,null,null,null,null,null,null,null,null,null,null,null,null,null,null,null,null,null,null,null,"K",{"$f":"AB182/AB$184","v":{"$error":"#DIV/0!"}}]
[null,null,null,null,null,null,null,null,null,null,null,null,null,null,null,null,null,null,null,null,null,null,null,null,null,null,{"$f":"title658","v":"Ash"},{"$f":"AB183/AB$184","v":{"$error":"#DIV/0!"}}]
[null,null,null,null,null,null,null,null,null,null,null,null,null,null,null,null,null,null,null,null,null,null,null,null,null,null,{"$f":"title602","v":"Moisture"},{"$f":"1-AF170","v":{"$error":"#N/A"}}]

{"sheet":"Planner_PS3","index":11,"n_rows":190,"n_cols":44,"rows_kept":190,"cut":false,"hidden":true,"merged":[[115,32,116,33],[2,2,2,17],[5,2,5,3],[5,4,5,8],[113,30,113,31],[115,30,115,31]]}
[]
[]
[null,null,{"$f":"title199&\" 3\"","v":"BIOMASS DISTRIBUTION PLANNER FOR PROCESS  3"}]
[]
[null,null,null,null,null,null,null,null,null,null,null,null,null,null,"Please Select Please Select"]
[null,null,{"$f":"title193","v":"Use white cells to input data"},null,{"$f":"title194","v":"Grey cells are used for calculations"}]
[]
[null,null,null,null,null,{"$f":"title204","v":"Jan"},{"$f":"title205","v":"Feb"},{"$f":"title206","v":"Mar"},{"$f":"title207","v":"Apr"},{"$f":"title208","v":"May"},{"$f":"title209","v":"Jun"},{"$f":"title210","v":"Jul"},{"$f":"title211","v":"Aug"},{"$f":"title212","v":"Sep"},{"$f":"title213","v":"Oct"},{"$f":"title214","v":"Nov"},{"$f":"title215","v":"Dec"}]
[null,null,{"$f":"title200","v":"Monthly Average Envirnomental Temperature"},null,"°C"]
[null,null,{"$f":"title201","v":"Feedstock Selection and Cost"}]
[null,null,null,null,null,{"$f":"IF(AND(AB$93>1,AB$86),title203,\"\")","v":""},"","","","","","","","","","",""]
[null,null,{"$f":"title202","v":"Feedstock Distribution"},null,{"$f":"title110","v":"Feedstock Available (t/year)"},{"$f":"title204","v":"Jan"},{"$f":"title205","v":"Feb"},{"$f":"title206","v":"Mar"},{"$f":"title207","v":"Apr"},{"$f":"title208","v":"May"},{"$f":"title209","v":"Jun"},{"$f":"title210","v":"Jul"},{"$f":"title211","v":"Aug"},{"$f":"title212","v":"Sep"},{"$f":"title213","v":"Oct"},{"$f":"title214","v":"Nov"},{"$f":"title215","v":"Dec"},{"$f":"title218","v":"Left to Allocate"},null,"Criteria1","Criteria2"]
[null,{"$f":"ROW('Data entry needs'!$B$57)","v":57},{"$f":"IF(INDIRECT(\"'Data entry needs'!$D\"&$B13)=title74,\"\",INDIRECT(\"'Data entry needs'!$d\"&$B13)&\"-\"&INDIRECT(\"'Data entry needs'!$e\"&$B13))","v":""},null,{"$f":"IF(INDIRECT(\"'Data entry needs'!$e\"&$B13)=title74,0,INDIRECT(\"'Data entry needs'!$f\"&$B13))","v":0},null,null,null,null,null,null,null,null,null,null,null,null,{"$f":"IFERROR(ROUND(E13-SUM(F13:Q13),0),0)","v":0},{"$f":"12-COUNTA(F13:Q13)","v":12},{"$f":"AND(IF(R13<=0,FALSE,TRUE),NOT(U13))","v":false},{"$f":"AND(IF(COUNTA(F13:Q13)=12,TRUE,FALSE),IF(R13>0,TRUE,FALSE))","v":false}]
[null,{"$f":"B13+2","v":59},{"$f":"IF(INDIRECT(\"'Data entry needs'!$D\"&$B14)=title74,\"\",INDIRECT(\"'Data entry needs'!$d\"&$B14)&\"-\"&INDIRECT(\"'Data entry needs'!$e\"&$B14))","v":""},null,{"$f":"IF(INDIRECT(\"'Data entry needs'!$e\"&$B14)=title74,0,INDIRECT(\"'Data entry needs'!$f\"&$B14))","v":0},null,null,null,null,null,null,null,null,null,null,null,null,{"$f":"IFERROR(ROUND(E14-SUM(F14:Q14),0),0)","v":0},{"$f":"12-COUNTA(F14:Q14)","v":12},{"$f":"AND(IF(R14<=0,FALSE,TRUE),NOT(U14))","v":false},{"$f":"AND(IF(COUNTA(F14:Q14)=12,TRUE,FALSE),IF(R14>0,TRUE,FALSE))","v":false}]
[null,{"$f":"B14+2","v":61},{"$f":"IF(INDIRECT(\"'Data entry needs'!$D\"&$B15)=title74,\"\",INDIRECT(\"'Data entry needs'!$d\"&$B15)&\"-\"&INDIRECT(\"'Data entry needs'!$e\"&$B15))","v":""},null,{"$f":"IF(INDIRECT(\"'Data entry needs'!$e\"&$B15)=title74,0,INDIRECT(\"'Data entry needs'!$f\"&$B15))","v":0},null,null,null,null,null,null,null,null,null,null,null,null,{"$f":"IFERROR(ROUND(E15-SUM(F15:Q15),0),0)","v":0},{"$f":"12-COUNTA(F15:Q15)","v":12},{"$f":"AND(IF(R15<=0,FALSE,TRUE),NOT(U15))","v":false},{"$f":"AND(IF(COUNTA(F15:Q15)=12,TRUE,FALSE),IF(R15>0,TRUE,FALSE))","v":false}]
[null,{"$f":"B15+2","v":63},{"$f":"IF(INDIRECT(\"'Data entry needs'!$D\"&$B16)=title74,\"\",INDIRECT(\"'Data entry needs'!$d\"&$B16)&\"-\"&INDIRECT(\"'Data entry needs'!$e\"&$B16))","v":""},null,{"$f":"IF(INDIRECT(\"'Data entry needs'!$e\"&$B16)=title74,0,INDIRECT(\"'Data entry needs'!$f\"&$B16))","v":0},null,null,null,null,null,null,null,null,null,null,null,null,{"$f":"IFERROR(ROUND(E16-SUM(F16:Q16),0),0)","v":0},{"$f":"12-COUNTA(F16:Q16)","v":12},{"$f":"AND(IF(R16<=0,FALSE,TRUE),NOT(U16))","v":false},{"$f":"AND(IF(COUNTA(F16:Q16)=12,TRUE,FALSE),IF(R16>0,TRUE,FALSE))","v":false}]
[null,{"$f":"B16+2","v":65},{"$f":"IF(INDIRECT(\"'Data entry needs'!$D\"&$B17)=title74,\"\",INDIRECT(\"'Data entry needs'!$d\"&$B17)&\"-\"&INDIRECT(\"'Data entry needs'!$e\"&$B17))","v":""},null,{"$f":"IF(INDIRECT(\"'Data entry needs'!$e\"&$B17)=title74,0,INDIRECT(\"'Data entry needs'!$f\"&$B17))","v":0},null,null,null,null,null,null,null,null,null,null,null,null,{"$f":"IFERROR(ROUND(E17-SUM(F17:Q17),0),0)","v":0},{"$f":"12-COUNTA(F17:Q17)","v":12},{"$f":"AND(IF(R17<=0,FALSE,TRUE),NOT(U17))","v":false},{"$f":"AND(IF(COUNTA(F17:Q17)=12,TRUE,FALSE),IF(R17>0,TRUE,FALSE))","v":false}]
[]
[null,null,{"$f":"title217","v":"Codigestion Feedstock Distribution"}]
[null,{"$f":"B17+4","v":69},{"$f":"IF(INDIRECT(\"'Data entry needs'!$D\"&$B20)=title74,\"\",INDIRECT(\"'Data entry needs'!$d\"&$B20)&\"-\"&INDIRECT(\"'Data entry needs'!$e\"&$B20))","v":""},null,{"$f":"IF(INDIRECT(\"'Data entry needs'!$e\"&$B20)=title74,\"\",INDIRECT(\"'Data entry needs'!$f\"&$B20))","v":""},null,null,null,null,null,null,null,null,null,null,null,null,{"$f":"IFERROR(ROUND(E20-SUM(F20:Q20),0),0)","v":0},{"$f":"12-COUNTA(F20:Q20)","v":12},{"$f":"AND(IF(R20<=0,FALSE,TRUE),NOT(U20))","v":false},{"$f":"AND(IF(COUNTA(F20:Q20)=12,TRUE,FALSE),IF(R20>0,TRUE,FALSE))","v":false}]
[]
[null,null,{"$f":"title216","v":"Feedstock Monthly Available (t/month)"},null,null,{"$f":"IF('Data entry needs'!$D$11,Planner_PS3!$F$13,IF('Data entry needs'!$F$11,SUM(F13:F17),SUM(F13:F17,F20)))","v":0},{"$f":"SUM(G13:G17,G20)","v":0},0,0,0,0,0,0,0,0,0,0]
[]
[]
[]
[]
[]
[]
[]
[]
[]
[]
[]
[]
[]
[]
[]
[]
[]
[]
[]
[]
[]
[]
[]
[]
[]
[]
[]
[]
[]
[]
[]
[]
[]
[]
[]
[]
[null,null,null,null,null,null,null,null,null,null,null,null,null,null,null,null,null,null,null,null,null,null,null,null,null,null,{"$f":"title246","v":"Storage Planner"}]
[null,null,null,null,null,null,null,null,null,null,null,null,null,null,null,null,null,null,null,null,null,null,null,null,null,null,{"$f":"title247","v":"Total Fs  (t/month)"},{"$f":"F22","v":0},0,0,0,0,0,0,0,0,0,0,0]
[null,null,null,null,null,null,null,null,null,null,null,null,null,null,null,null,null,null,null,null,null,null,null,null,null,null,null,{"$f":"title204","v":"Jan"},{"$f":"title205","v":"Feb"},{"$f":"title206","v":"Mar"},{"$f":"title207","v":"Apr"},{"$f":"title208","v":"May"},{"$f":"title209","v":"Jun"},{"$f":"title210","v":"Jul"},{"$f":"title211","v":"Aug"},{"$f":"title212","v":"Sep"},{"$f":"title213","v":"Oct"},{"$f":"title214","v":"Nov"},{"$f":"title215","v":"Dec"},"AVERAGE"]
[null,null,null,null,null,null,null,null,null,null,null,null,null,null,null,null,null,null,null,null,null,null,null,null,null,null,"FS1",{"$f":"$AH100*F13/$AB$60","v":{"$error":"#DIV/0!"}},{"$error":"#DIV/0!"},{"$error":"#DIV/0!"},{"$error":"#DIV/0!"},{"$error":"#DIV/0!"},{"$error":"#DIV/0!"},{"$error":"#DIV/0!"},{"$error":"#DIV/0!"},{"$error":"#DIV/0!"},{"$error":"#DIV/0!"},{"$error":"#DIV/0!"},{"$error":"#DIV/0!"},{"$f":"AVERAGE(AB62:AM62)","v":{"$error":"#DIV/0!"}}]
[null,null,null,null,null,null,null,null,null,null,null,null,null,null,null,null,null,null,null,null,null,null,null,null,null,null,"FS2",{"$error":"#DIV/0!"},{"$error":"#DIV/0!"},{"$error":"#DIV/0!"},{"$error":"#DIV/0!"},{"$error":"#DIV/0!"},{"$error":"#DIV/0!"},{"$error":"#DIV/0!"},{"$error":"#DIV/0!"},{"$error":"#DIV/0!"},{"$error":"#DIV/0!"},{"$error":"#DIV/0!"},{"$error":"#DIV/0!"},{"$error":"#DIV/0!"},null,39]
[null,null,null,null,null,null,null,null,null,null,null,null,null,null,null,null,null,null,null,null,null,null,null,null,null,null,"FS3",{"$error":"#DIV/0!"},{"$error":"#DIV/0!"},{"$error":"#DIV/0!"},{"$error":"#DIV/0!"},{"$error":"#DIV/0!"},{"$error":"#DIV/0!"},{"$error":"#DIV/0!"},{"$error":"#DIV/0!"},{"$error":"#DIV/0!"},{"$error":"#DIV/0!"},{"$error":"#DIV/0!"},{"$error":"#DIV/0!"},{"$error":"#DIV/0!"},null,41]
[null,null,null,null,null,null,null,null,null,null,null,null,null,null,null,null,null,null,null,null,null,null,null,null,null,null,"FS4",{"$error":"#DIV/0!"},{"$error":"#DIV/0!"},{"$error":"#DIV/0!"},{"$error":"#DIV/0!"},{"$error":"#DIV/0!"},{"$error":"#DIV/0!"},{"$error":"#DIV/0!"},{"$error":"#DIV/0!"},{"$error":"#DIV/0!"},{"$error":"#DIV/0!"},{"$error":"#DIV/0!"},{"$error":"#DIV/0!"},{"$error":"#DIV/0!"},null,43]
[null,null,null,null,null,null,null,null,null,null,null,null,null,null,null,null,null,null,null,null,null,null,null,null,null,null,"FS5",{"$error":"#DIV/0!"},{"$error":"#DIV/0!"},{"$error":"#DIV/0!"},{"$error":"#DIV/0!"},{"$error":"#DIV/0!"},{"$error":"#DIV/0!"},{"$error":"#DIV/0!"},{"$error":"#DIV/0!"},{"$error":"#DIV/0!"},{"$error":"#DIV/0!"},{"$error":"#DIV/0!"},{"$error":"#DIV/0!"},{"$error":"#DIV/0!"},null,44]
[null,null,null,null,null,null,null,null,null,null,null,null,null,null,null,null,null,null,null,null,null,null,null,null,null,null,{"$f":"title167","v":"Codigestion"},{"$f":"$AH105*F20/$AB$60","v":{"$error":"#DIV/0!"}},{"$f":"$AH105*G20/$AB$60","v":{"$error":"#DIV/0!"}},{"$error":"#DIV/0!"},{"$error":"#DIV/0!"},{"$error":"#DIV/0!"},{"$error":"#DIV/0!"},{"$error":"#DIV/0!"},{"$error":"#DIV/0!"},{"$error":"#DIV/0!"},{"$error":"#DIV/0!"},{"$error":"#DIV/0!"},{"$error":"#DIV/0!"},{"$error":"#DIV/0!"},null,45]
[null,null,null,null,null,null,null,null,null,null,null,null,null,null,null,null,null,null,null,null,null,null,null,null,null,null,null,null,null,null,null,null,null,null,null,null,null,null,null,null,null,47]
[]
[null,null,null,null,null,null,null,null,null,null,null,null,null,null,null,null,null,null,null,null,null,null,null,null,null,null,null,{"$f":"title248&\" 1\"","v":"Size 1"},{"$f":"title248&\" 2\"","v":"Size 2"},{"$f":"title248&\" 3\"","v":"Size 3"},{"$f":"title248&\" 4\"","v":"Size 4"},null,null,null,null,null,null,null,null,null,null,51]
[null,null,null,null,null,null,null,null,null,null,null,null,null,null,null,null,null,null,null,null,null,null,null,null,null,null,"FS1",{"$f":"$AN62*AD$132*30","v":{"$error":"#DIV/0!"}},{"$error":"#DIV/0!"},{"$error":"#DIV/0!"},{"$error":"#DIV/0!"}]
[null,null,null,null,null,null,null,null,null,null,null,null,null,null,null,null,null,null,null,null,null,null,null,null,null,null,"FS2",{"$error":"#DIV/0!"},{"$error":"#DIV/0!"},{"$error":"#DIV/0!"},{"$error":"#DIV/0!"}]
[null,null,null,null,null,null,null,null,null,null,null,null,null,null,null,null,null,null,null,null,null,null,null,null,null,null,"FS3",{"$error":"#DIV/0!"},{"$error":"#DIV/0!"},{"$error":"#DIV/0!"},{"$error":"#DIV/0!"}]
[null,null,null,null,null,null,null,null,null,null,null,null,null,null,null,null,null,null,null,null,null,null,null,null,null,null,"FS4",{"$error":"#DIV/0!"},{"$error":"#DIV/0!"},{"$error":"#DIV/0!"},{"$error":"#DIV/0!"}]
[null,null,null,null,null,null,null,null,null,null,null,null,null,null,null,null,null,null,null,null,null,null,null,null,null,null,"FS5",{"$error":"#DIV/0!"},{"$error":"#DIV/0!"},{"$error":"#DIV/0!"},{"$error":"#DIV/0!"}]
[null,null,null,null,null,null,null,null,null,null,null,null,null,null,null,null,null,null,null,null,null,null,null,null,null,null,{"$f":"title167","v":"Codigestion"},{"$error":"#DIV/0!"},{"$error":"#DIV/0!"},{"$error":"#DIV/0!"},{"$error":"#DIV/0!"}]
[]
[]
[]
[]
[]
[]
[]
[]
[]
[null,null,null,null,null,null,null,null,null,null,null,null,null,null,null,null,null,null,null,null,null,null,null,null,null,null,null,{"$f":"'Data entry needs'!$F$11","v":false},{"$f":"'Data entry needs'!$F$11","v":false},{"$f":"'Data entry needs'!$F$11","v":false},{"$f":"'Data entry needs'!$F$11","v":false},{"$f":"'Data entry needs'!$F$11","v":false},{"$f":"'Data entry needs'!$F$11","v":false},{"$f":"'Data entry needs'!$F$11","v":false},{"$f":"'Data entry needs'!$F$11","v":false},{"$f":"'Data entry needs'!$F$11","v":false},{"$f":"'Data entry needs'!$F$11","v":false},{"$f":"'Data entry needs'!$F$11","v":false},{"$f":"'Data entry needs'!$F$11","v":false}]
[null,null,null,null,null,null,null,null,null,null,null,null,null,null,null,null,null,null,null,null,null,null,null,null,null,null,null,{"$f":"title204","v":"Jan"},{"$f":"title205","v":"Feb"},{"$f":"title206","v":"Mar"},{"$f":"title207","v":"Apr"},{"$f":"title208","v":"May"},{"$f":"title209","v":"Jun"},{"$f":"title210","v":"Jul"},{"$f":"title211","v":"Aug"},{"$f":"title212","v":"Sep"},{"$f":"title213","v":"Oct"},{"$f":"title214","v":"Nov"},{"$f":"title215","v":"Dec"},"Not Collection Months",{"$f":"title633","v":"Collection Months"}]
[null,null,null,null,null,null,null,null,null,null,null,null,null,null,null,null,null,null,null,null,null,null,null,null,null,null,null,{"$f":"IF(OR(ISBLANK(F13),F13=0),0,1)","v":0},0,0,0,0,0,0,0,0,0,0,0,{"$f":"IF((12-COUNTIF(AB88:AM88,\">0\"))=0,1,(12-COUNTIF(AB88:AM88,\">0\")))","v":12},{"$f":"SUM(AB88:AM88)","v":0}]
[null,null,null,null,null,null,null,null,null,null,null,null,null,null,null,null,null,null,null,null,null,null,null,null,null,null,null,0,0,0,0,0,0,0,0,0,0,0,0,{"$f":"IF((12-COUNTIF(AB89:AM89,\">0\"))=0,1,(12-COUNTIF(AB89:AM89,\">0\")))","v":12},{"$f":"SUM(AB89:AM89)","v":0}]
[null,null,null,null,null,null,null,null,null,null,null,null,null,null,null,null,null,null,null,null,null,null,null,null,null,null,null,0,0,0,0,0,0,0,0,0,0,0,0,{"$f":"IF((12-COUNTIF(AB90:AM90,\">0\"))=0,1,(12-COUNTIF(AB90:AM90,\">0\")))","v":12},{"$f":"SUM(AB90:AM90)","v":0}]
[null,null,null,null,null,null,null,null,null,null,null,null,null,null,null,null,null,null,null,null,null,null,null,null,null,null,null,0,0,0,0,0,0,0,0,0,0,0,0,{"$f":"IF((12-COUNTIF(AB91:AM91,\">0\"))=0,1,(12-COUNTIF(AB91:AM91,\">0\")))","v":12},{"$f":"SUM(AB91:AM91)","v":0}]
[null,null,null,null,null,null,null,null,null,null,null,null,null,null,null,null,null,null,null,null,null,null,null,null,null,null,null,0,0,0,0,0,0,0,0,0,0,0,0,{"$f":"IF((12-COUNTIF(AB92:AM92,\">0\"))=0,1,(12-COUNTIF(AB92:AM92,\">0\")))","v":12},{"$f":"SUM(AB92:AM92)","v":0}]
[null,null,null,null,null,null,null,null,null,null,null,null,null,null,null,null,null,null,null,null,null,null,null,null,null,null,null,{"$f":"SUM(AB88:AB92)","v":0},0,0,0,0,0,0,0,0,0,0,0]
[null,null,null,null,null,null,null,null,null,null,null,null,null,null,null,null,null,null,null,null,null,null,null,null,null,null,null,{"$f":"IF(AND(AB$93>1,AB$86),TRUE,FALSE)","v":false},false,false,false,false,false,false,false,false,false,false,false]
[null,null,null,null,null,null,null,null,null,null,null,null,null,null,null,null,null,null,null,null,null,null,null,null,null,null,{"$f":"title167","v":"Codigestion"},{"$f":"IF(OR(ISBLANK(F20),F20=0),0,1)","v":0},{"$f":"IF(OR(ISBLANK(G20),G20=0),0,1)","v":0},0,0,0,0,0,0,0,0,0,0,{"$f":"IF((12-COUNTIF(AB95:AM95,\">0\"))=0,1,(12-COUNTIF(AB95:AM95,\">0\")))","v":12},{"$f":"SUM(AB95:AM95)","v":0}]
[]
[]
[null,null,null,null,null,null,null,null,null,null,null,null,null,null,null,null,null,null,null,null,null,null,null,null,null,null,null,null,null,"G","H","I","J",null,null,"k"]
[null,null,null,null,null,null,null,null,null,null,null,null,null,null,null,null,null,null,null,null,null,null,null,null,null,null,null,{"$f":"title249","v":"Category"},{"$f":"title250","v":"Main Feedstock"},"VS (%)  or COD (kg/l)","TS (%) or COD Deg(%)","BMP (m3/t VS)","CH4 (%)","Final",{"$f":"title252","v":"Code"},{"$f":"title17","v":"Price"},{"$f":"title253","v":"Fs rate"},"%",null,null,null,"Optimal Codigestion synergy Factor"]
[null,null,null,null,null,null,null,null,null,null,null,null,null,null,null,null,null,null,null,null,null,null,null,null,null,null,{"$f":"$B13","v":57},{"$f":"IF(INDIRECT(\"'Data entry needs'!$D\"&$AA100)=title74,\"\",INDIRECT(\"'Data entry needs'!$d\"&$AA100))","v":""},{"$f":"IF(INDIRECT(\"'Data entry needs'!$D\"&$AA100)=title74,\"\",INDIRECT(\"'Data entry needs'!$d\"&$AA100)&\"-\"&INDIRECT(\"'Data entry needs'!$e\"&$AA100))","v":""},{"$f":"IF(INDIRECT(\"'Data entry needs'!$D\"&$AA100)=title74,0,IF($AB100=title192,TEXT(INDIRECT(\"'Data entry needs'!$\"&AD$98&0&$AA100),\"0.00\")/1000,TEXT(INDIRECT(\"'Data entry needs'!$\"&AD$98&0&$AA100),\"0%\"))+0%)","v":0},{"$f":"IF(INDIRECT(\"'Data entry needs'!$D\"&$AA100)=title74,0,INDIRECT(\"'Data entry needs'!$\"&AE$98&0&$AA100))+0%","v":0},{"$f":"IF(INDIRECT(\"'Data entry needs'!$D\"&$AA100)=title74,0,INDIRECT(\"'Data entry needs'!$\"&AF$98&0&$AA100))+0","v":0},0,{"$f":"IF(AB100=\"\",0,1)*AI100","v":0},1,{"$f":"IF(INDIRECT(\"'Data entry needs'!$D\"&$AA100)=title74,0,INDIRECT(\"'Data entry needs'!$\"&AJ$98&0&$AA100))+0","v":0},{"$f":"$E13*$AH100","v":0},{"$f":"AK100/$AK$106","v":{"$error":"#DIV/0!"}},{"$f":"title167","v":"Codigestion"},{"$f":"'Data entry needs'!$J$11","v":true},null,{"$f":"IF(AN100,1.5,1)","v":1.5},"Biogas yiled"]
[null,null,null,null,null,null,null,null,null,null,null,null,null,null,null,null,null,null,null,null,null,null,null,null,null,null,{"$f":"$B14","v":59},"","",0,0,0,0,0,1,0,0,{"$error":"#DIV/0!"},null,null,null,"Thermophilic enhance Factor"]
[null,null,null,null,null,null,null,null,null,null,null,null,null,null,null,null,null,null,null,null,null,null,null,null,null,null,{"$f":"$B15","v":61},"","",0,0,0,0,0,1,0,0,{"$error":"#DIV/0!"},{"$f":"title254","v":"Temperature (°C)"},{"$f":"COST_PS3!$L$12","v":"Mesophilic"},{"$f":"COST_PS3!$M$12","v":37.5},{"$f":"IF($AN$102=\"thermophilic\",0.5,1)","v":1},"HRT"]
[null,null,null,null,null,null,null,null,null,null,null,null,null,null,null,null,null,null,null,null,null,null,null,null,null,null,{"$f":"$B16","v":63},"","",0,0,0,0,0,1,0,0,{"$error":"#DIV/0!"},{"$f":"title255","v":"Optimal Codigestion Ratios"}]
[null,null,null,null,null,null,null,null,null,null,null,null,null,null,null,null,null,null,null,null,null,null,null,null,null,null,{"$f":"$B17","v":65},"","",0,0,0,0,0,1,0,0,{"$error":"#DIV/0!"},{"$f":"title84","v":"Manure"},{"$f":"title251","v":"Other"}]
[null,null,null,null,null,null,null,null,null,null,null,null,null,null,null,null,null,null,null,null,null,null,null,null,null,null,{"$f":"$B$20","v":69},"","",0,0,0,0,0,1,0,{"$f":"IFERROR($E20*$AH105,0)","v":0},{"$error":"#DIV/0!"},3,1]
[null,null,null,null,null,null,null,null,null,null,null,null,null,null,null,null,null,null,null,null,null,null,null,null,null,null,null,null,null,"VS (%)","TS (%)","BMP (m3/t VS)","CH4 (%)",{"$f":"SUM(AH100:AH105)","v":0},null,null,{"$f":"SUM(AK100:AK105)","v":0}]
[null,null,null,null,null,null,null,null,null,null,null,null,null,null,null,null,null,null,null,null,null,null,null,null,null,null,null,null,{"$f":"title256","v":"Mixture"},{"$f":"SUMPRODUCT(AD100:AD105,$AH$100:$AH$105)/$AH$106","v":{"$error":"#DIV/0!"}},{"$f":"ROUND(SUMPRODUCT(AE100:AE105,$AH$100:$AH$105)/$AH$106,2)","v":{"$error":"#DIV/0!"}},{"$f":"SUMPRODUCT(AF100:AF105,$AH$100:$AH$105)/$AH$106","v":{"$error":"#DIV/0!"}},{"$f":"ROUND(SUMPRODUCT(AG100:AG105,$AH$100:$AH$105)/$AH$106,2)","v":{"$error":"#DIV/0!"}}]
[]
[null,null,null,null,null,null,null,null,null,null,null,null,null,null,null,null,null,null,null,null,null,null,null,null,null,null,null,null,"Hashimoto's kinetic model"]
[null,null,null,null,null,null,null,null,null,null,null,null,null,null,null,null,null,null,null,null,null,null,null,null,null,null,null,null,"Description",{"$f":"title27","v":"Unit"},null,null,null,null,null,null,{"$f":"title263","v":"Feedstock Price (USD/t)"},null,{"$f":"SUMPRODUCT(AJ100:AJ105,AL100:AL105)","v":{"$error":"#DIV/0!"}}]
[null,null,null,null,null,null,null,null,null,null,null,null,null,null,null,null,null,null,null,null,null,null,null,null,null,null,null,"γ'","Volumetric CH4 production rate","m3 CH4/day/m3 feed/day"]
[null,null,null,null,null,null,null,null,null,null,null,null,null,null,null,null,null,null,null,null,null,null,null,null,null,null,null,"Bo","BMP","m3/t VS"]
[null,null,null,null,null,null,null,null,null,null,null,null,null,null,null,null,null,null,null,null,null,null,null,null,null,null,null,"So'","Influent VS concentration","t VS/m3"]
[null,null,null,null,null,null,null,null,null,null,null,null,null,null,null,null,null,null,null,null,null,null,null,null,null,null,null,"µm","Maximum specific growth rate/day","1/day","µm=0.013T-0.129",null,null,null,null,null,"TS (%)",null,null,{"$f":"title584","v":"HRT (days)"}]
[null,null,null,null,null,null,null,null,null,null,null,null,null,null,null,null,null,null,null,null,null,null,null,null,null,null,null,"HRT","Hydraulic Retention Times","day",{"$f":"COST_PS3!$M$16","v":0},null,null,null,null,null,"min","max","Average","Cold","Warm","Dilution",null,"Efficiency"]
[null,null,null,null,null,null,null,null,null,null,null,null,null,null,null,null,null,null,null,null,null,null,null,null,null,null,null,"k","Knetic parameter","dimesionless","k = 0.6+0.0206exp(0.051*vs*ts)",null,"Assumption = these equation applies for all fs",null,null,"CSTR",0.02,0.2,{"$f":"AVERAGE(AK116:AL116)","v":0.11},15,40,{"$f":"IF($AE$107<=$AL116,0%,IF($AE$107>$AL116,$AM116))","v":{"$error":"#DIV/0!"}},{"$f":"IF(AP116=0%,TRUE,FALSE)","v":{"$error":"#DIV/0!"}},0.8]
[null,null,null,null,null,null,null,null,null,null,null,null,null,null,null,null,null,null,null,null,null,null,null,null,null,null,null,null,"Average Temp",{"$f":"AVERAGE(F9:Q9)","v":{"$error":"#DIV/0!"}},null,null,null,null,null,{"$f":"title530","v":"Plug Flow"},0.2,0.35,{"$f":"AVERAGE(AK117:AL117)","v":0.27500000000000002},18,20,{"$f":"IF($AE$107<=$AL117,0%,IF($AE$107>$AL117,$AM117))","v":{"$error":"#DIV/0!"}},{"$f":"IF(AP117=0%,TRUE,FALSE)","v":{"$error":"#DIV/0!"}},0.8]
[null,null,null,null,null,null,null,null,null,null,null,null,null,null,null,null,null,null,null,null,null,null,null,null,null,null,null,null,null,null,null,null,null,null,null,"UASB",0,0.02,{"$f":"AVERAGE(AK118:AL118)","v":0.01},1,5,{"$f":"IF($AE$107<=$AL118,0%,IF($AE$107>$AL118,$AM118))","v":{"$error":"#DIV/0!"}},{"$f":"IF(AP118=0%,TRUE,FALSE)","v":{"$error":"#DIV/0!"}},0.9]
[null,null,null,null,null,null,null,null,null,null,null,null,null,null,null,null,null,null,null,null,null,null,null,null,null,null,null,null,null,null,null,null,null,null,null,{"$f":"title531","v":"Batch"},0.35,0.5,{"$f":"AVERAGE(AK119:AL119)","v":0.42499999999999999},40,60,{"$f":"$AE$107","v":{"$error":"#DIV/0!"}},{"$f":"IF(AP119=0%,TRUE,FALSE)","v":{"$error":"#DIV/0!"}},0.75]
[null,null,null,null,null,null,null,null,null,null,null,null,null,null,null,null,null,null,null,null,null,null,null,null,null,null,null,"Biogas"]
[null,null,null,null,null,null,null,null,null,null,null,null,null,null,null,null,null,null,null,null,null,null,null,null,null,null,null,null,"k",{"$f":"0.6+0.0206*EXP(0.051*$AD$107*$AE$107*100)","v":{"$error":"#DIV/0!"}},"Usage % digesters",0.8]
[null,null,null,null,null,null,null,null,null,null,null,null,null,null,null,null,null,null,null,null,null,null,null,null,null,null,null,null,"µm",{"$f":"0.013*$AO$102-0.129","v":0.35849999999999999},"Target Ts(%)",{"$f":"IF(VLOOKUP(COST_PS3!$L$10,Planner_PS3!$AJ$116:$AQ$119,7,FALSE)=0%,$AE$107,VLOOKUP(COST_PS3!$L$10,Planner_PS3!$AJ$116:$AQ$119,7,FALSE))","v":{"$error":"#DIV/0!"}},{"$f":"AD133/(AD133+AD136)","v":{"$error":"#DIV/0!"}}]
[null,null,null,null,null,null,null,null,null,null,null,null,null,null,null,null,null,null,null,null,null,null,null,null,null,null,null,null,"γ'",{"$f":"AF107*AE107*AD107*(1-(AD121/(AE115*AD122-1+AD121)))","v":{"$error":"#DIV/0!"}}]
[null,null,null,null,null,null,null,null,null,null,null,null,null,null,null,null,null,null,null,null,null,null,null,null,null,null,null,"Density Mixture",1,"t Feed/m3","Cp MIXTURE",{"$f":"4.17*(1-0.00812*$AE$107)","v":{"$error":"#DIV/0!"}},"kJ7kg°C"]
[null,null,null,null,null,null,null,null,null,null,null,null,null,null,null,null,null,null,null,null,null,null,null,null,null,null,null,null,null,null,null,null,null,"Uses"]
[null,null,null,null,null,null,null,null,null,null,null,null,null,null,null,null,null,null,null,null,null,null,null,null,null,null,null,null,null,{"$f":"title248&\" 1\"","v":"Size 1"},{"$f":"title248&\" 2\"","v":"Size 2"},{"$f":"title248&\" 3\"","v":"Size 3"},{"$f":"title248&\" 4\"","v":"Size 4"}]
[null,null,null,null,null,null,null,null,null,null,null,null,null,null,null,null,null,null,null,null,null,null,null,null,null,null,null,{"$f":"ROW(AD127)","v":127},{"$f":"title671","v":"m3 Methane/day"},{"$f":"'New Feedstock'!B$27","v":800},{"$f":"'New Feedstock'!C$27","v":140},{"$f":"'New Feedstock'!D$27","v":220},{"$f":"'New Feedstock'!E$27","v":960},4,5,{"$f":"\"USD/m3 \"&PROPER(title512)","v":"USD/m3 Biogas"},{"$f":"'Data entry needs'!$L$100","v":0}]
[null,null,null,null,null,null,null,null,null,null,null,null,null,null,null,null,null,null,null,null,null,null,null,null,null,null,null,{"$f":"ROW(AD128)","v":128},"kWe",{"$f":"'New Feedstock'!B$28","v":100},{"$f":"'New Feedstock'!C$28","v":105},{"$f":"'New Feedstock'!D$28","v":115},{"$f":"'New Feedstock'!E$28","v":120},1,3,"USD/kWh",{"$f":"COST_PS3!$M$35","v":0}]
[null,null,null,null,null,null,null,null,null,null,null,null,null,null,null,null,null,null,null,null,null,null,null,null,null,null,null,{"$f":"ROW(AD129)","v":129},"GJ/day",21.6,86.4,864,4320,2,null,{"$f":"title618","v":"USD/m3 methane"},{"$f":"'Data entry needs'!$L$100","v":0}]
[null,null,null,null,null,null,null,null,null,null,null,null,null,null,null,null,null,null,null,null,null,null,null,null,null,null,null,130,{"$f":"title260","v":"m3 Biogas/day"},{"$f":"'New Feedstock'!B$29*60%/$AG$107","v":{"$error":"#DIV/0!"}},{"$f":"'New Feedstock'!C$29*60%/$AG$107","v":{"$error":"#DIV/0!"}},{"$f":"'New Feedstock'!D$29*60%/$AG$107","v":{"$error":"#DIV/0!"}},{"$f":"'New Feedstock'!E$29*60%/$AG$107","v":{"$error":"#DIV/0!"}}]
[null,null,null,null,null,null,null,null,null,null,null,null,null,null,null,null,null,null,null,null,null,null,null,null,null,null,null,"Feed Rate Vol","m3 Feed/day",{"$f":"AD127/$AD$123/VLOOKUP(COST_PS3!$L$10,Planner_PS3!$AJ$116:$AR$119,9,FALSE)","v":{"$error":"#DIV/0!"}},{"$f":"AE127/$AD$123/VLOOKUP(COST_PS3!$L$10,Planner_PS3!$AJ$116:$AR$119,9,FALSE)","v":{"$error":"#DIV/0!"}},{"$f":"AF127/$AD$123/VLOOKUP(COST_PS3!$L$10,Planner_PS3!$AJ$116:$AR$119,9,FALSE)","v":{"$error":"#DIV/0!"}},{"$f":"AG127/$AD$123/VLOOKUP(COST_PS3!$L$10,Planner_PS3!$AJ$116:$AR$119,9,FALSE)","v":{"$error":"#DIV/0!"}}]
[null,null,null,null,null,null,null,null,null,null,null,null,null,null,null,null,null,null,null,null,null,null,null,null,null,null,null,"Feed Rate Mass","t Feed/day",{"$f":"AD127/$AD$123","v":{"$error":"#DIV/0!"}},{"$f":"AE127/$AD$123","v":{"$error":"#DIV/0!"}},{"$f":"AF127/$AD$123","v":{"$error":"#DIV/0!"}},{"$f":"AG127/$AD$123","v":{"$error":"#DIV/0!"}}]
[null,null,null,null,null,null,null,null,null,null,null,null,null,null,null,null,null,null,null,null,null,null,null,null,null,null,null,null,"t Feed/ year",{"$f":"AD$132*'Data entry needs'!$L$100","v":{"$error":"#DIV/0!"}},{"$f":"AE$132*'Data entry needs'!$L$100","v":{"$error":"#DIV/0!"}},{"$f":"AF$132*'Data entry needs'!$L$100","v":{"$error":"#DIV/0!"}},{"$f":"AG$132*'Data entry needs'!$L$100","v":{"$error":"#DIV/0!"}}]
[null,null,null,null,null,null,null,null,null,null,null,null,null,null,null,null,null,null,null,null,null,null,null,null,null,null,null,"Volume","m3",{"$f":"AD131*$AE$115/$AF$121","v":{"$error":"#DIV/0!"}},{"$f":"AE131*$AE$115/$AF$121","v":{"$error":"#DIV/0!"}},{"$f":"AF131*$AE$115/$AF$121","v":{"$error":"#DIV/0!"}},{"$f":"AG131*$AE$115/$AF$121","v":{"$error":"#DIV/0!"}}]
[null,null,null,null,null,null,null,null,null,null,null,null,null,null,null,null,null,null,null,null,null,null,null,null,null,null,null,"Water Initial","t water/year",{"$f":"AD133*$AE$107*(1/$AE$107-1)","v":{"$error":"#DIV/0!"}},{"$f":"AE133*$AE$107*(1/$AE$107-1)","v":{"$error":"#DIV/0!"}},{"$f":"AF133*$AE$107*(1/$AE$107-1)","v":{"$error":"#DIV/0!"}},{"$f":"AG133*$AE$107*(1/$AE$107-1)","v":{"$error":"#DIV/0!"}}]
[null,null,null,null,null,null,null,null,null,null,null,null,null,null,null,null,null,null,null,null,null,null,null,null,null,null,null,"Water Demand","t water/year",{"$f":"(AD133*$AE$107/$AF$122)-AD135-AD133*$AE$107","v":{"$error":"#DIV/0!"}},{"$f":"AE133*$AE$107/$AF$122-AE135-AE133*$AE$107","v":{"$error":"#DIV/0!"}},{"$f":"AF133*$AE$107/$AF$122-AF135-AF133*$AE$107","v":{"$error":"#DIV/0!"}},{"$f":"AG133*$AE$107/$AF$122-AG135-AG133*$AE$107","v":{"$error":"#DIV/0!"}}]
[null,null,null,null,null,null,null,null,null,null,null,null,null,null,null,null,null,null,null,null,null,null,null,null,null,null,null,{"$f":"title256","v":"Mixture"},"t mixture/year",{"$f":"AD133+AD136","v":{"$error":"#DIV/0!"}},{"$f":"AE133+AE136","v":{"$error":"#DIV/0!"}},{"$f":"AF133+AF136","v":{"$error":"#DIV/0!"}},{"$f":"AG133+AG136","v":{"$error":"#DIV/0!"}}]
[]
[null,null,null,null,null,null,null,null,null,null,null,null,null,null,null,null,null,null,null,null,null,null,null,null,null,null,"Energy Consumption"]
[null,null,null,null,null,null,null,null,null,null,null,null,null,null,null,null,null,null,null,null,null,null,null,null,null,null,{"$f":"title51","v":"Heat"},{"$f":"title204","v":"Jan"},{"$f":"title205","v":"Feb"},{"$f":"title206","v":"Mar"},{"$f":"title207","v":"Apr"},{"$f":"title208","v":"May"},{"$f":"title209","v":"Jun"},{"$f":"title210","v":"Jul"},{"$f":"title211","v":"Aug"},{"$f":"title212","v":"Sep"},{"$f":"title213","v":"Oct"},{"$f":"title214","v":"Nov"},{"$f":"title215","v":"Dec"}]
[null,null,null,null,null,null,null,null,null,null,null,null,null,null,null,null,null,null,null,null,null,null,null,null,null,null,"Enviromental Temp",{"$f":"F$9","v":0},{"$f":"G$9","v":0},0,0,0,0,0,0,0,0,0,0]
[null,null,null,null,null,null,null,null,null,null,null,null,null,null,null,null,null,null,null,null,null,null,null,null,null,null,"Operation. Temp",{"$f":"$AO$102","v":37.5},37.5,37.5,37.5,37.5,37.5,37.5,37.5,37.5,37.5,37.5,37.5]
[null,null,null,null,null,null,null,null,null,null,null,null,null,null,null,null,null,null,null,null,null,null,null,null,null,null,"Cp' (MJ/t)",{"$f":"$AF$124*(AB142-AB141)","v":{"$error":"#DIV/0!"}},{"$f":"$AF$124*(AC142-AC141)","v":{"$error":"#DIV/0!"}},{"$error":"#DIV/0!"},{"$error":"#DIV/0!"},{"$error":"#DIV/0!"},{"$error":"#DIV/0!"},{"$error":"#DIV/0!"},{"$error":"#DIV/0!"},{"$error":"#DIV/0!"},{"$error":"#DIV/0!"},{"$error":"#DIV/0!"},{"$error":"#DIV/0!"},{"$f":"\"Total (\"&title305&\")\"","v":"Total (GJ/year)"}]
[null,null,null,null,null,null,null,null,null,null,null,null,null,null,null,null,null,null,null,null,null,null,null,null,null,null,"Size 1 (MJ/month)",{"$f":"$AD$137*AB$143/12","v":{"$error":"#DIV/0!"}},{"$error":"#DIV/0!"},{"$error":"#DIV/0!"},{"$error":"#DIV/0!"},{"$error":"#DIV/0!"},{"$error":"#DIV/0!"},{"$error":"#DIV/0!"},{"$error":"#DIV/0!"},{"$error":"#DIV/0!"},{"$error":"#DIV/0!"},{"$error":"#DIV/0!"},{"$error":"#DIV/0!"},{"$f":"SUM(AB144:AM144)/1000","v":{"$error":"#DIV/0!"}}]
[null,null,null,null,null,null,null,null,null,null,null,null,null,null,null,null,null,null,null,null,null,null,null,null,null,null,"Size 2 (MJ/month)",{"$f":"$AE$137*AB$143/12","v":{"$error":"#DIV/0!"}},{"$error":"#DIV/0!"},{"$error":"#DIV/0!"},{"$error":"#DIV/0!"},{"$error":"#DIV/0!"},{"$error":"#DIV/0!"},{"$error":"#DIV/0!"},{"$error":"#DIV/0!"},{"$error":"#DIV/0!"},{"$error":"#DIV/0!"},{"$error":"#DIV/0!"},{"$error":"#DIV/0!"},{"$f":"SUM(AB145:AM145)/1000","v":{"$error":"#DIV/0!"}}]
[null,null,null,null,null,null,null,null,null,null,null,null,null,null,null,null,null,null,null,null,null,null,null,null,null,null,"Size 3 (MJ/month)",{"$f":"$AF$137*AB$143/12","v":{"$error":"#DIV/0!"}},{"$error":"#DIV/0!"},{"$error":"#DIV/0!"},{"$error":"#DIV/0!"},{"$error":"#DIV/0!"},{"$error":"#DIV/0!"},{"$error":"#DIV/0!"},{"$error":"#DIV/0!"},{"$error":"#DIV/0!"},{"$error":"#DIV/0!"},{"$error":"#DIV/0!"},{"$error":"#DIV/0!"},{"$f":"SUM(AB146:AM146)/1000","v":{"$error":"#DIV/0!"}}]
[null,null,null,null,null,null,null,null,null,null,null,null,null,null,null,null,null,null,null,null,null,null,null,null,null,null,"Size 4 (MJ/month)",{"$f":"$AG$137*AB$143/12","v":{"$error":"#DIV/0!"}},{"$error":"#DIV/0!"},{"$error":"#DIV/0!"},{"$error":"#DIV/0!"},{"$error":"#DIV/0!"},{"$error":"#DIV/0!"},{"$error":"#DIV/0!"},{"$error":"#DIV/0!"},{"$error":"#DIV/0!"},{"$error":"#DIV/0!"},{"$error":"#DIV/0!"},{"$error":"#DIV/0!"},{"$f":"SUM(AB147:AM147)/1000","v":{"$error":"#DIV/0!"}}]
[]
[null,null,null,null,null,null,null,null,null,null,null,null,null,null,null,null,null,null,null,null,null,null,null,null,null,null,"Electricity (kWh/year)",{"$f":"title248&\" 1\"","v":"Size 1"},{"$f":"title248&\" 2\"","v":"Size 2"},{"$f":"title248&\" 3\"","v":"Size 3"},{"$f":"title248&\" 4\"","v":"Size 4"}]
[null,null,null,null,null,null,null,null,null,null,null,null,null,null,null,null,null,null,null,null,null,null,null,null,null,null,"CSTR",{"$f":"(7.29+2.16)*AD$133+6.3*AD$134/100","v":{"$error":"#DIV/0!"}},{"$f":"(7.29+2.16)*AE$133+6.3*AE$134/100","v":{"$error":"#DIV/0!"}},{"$f":"(7.29+2.16)*AF$133+6.3*AF$134/100","v":{"$error":"#DIV/0!"}},{"$f":"(7.29+2.16)*AG$133+6.3*AG$134/100","v":{"$error":"#DIV/0!"}}]
[null,null,null,null,null,null,null,null,null,null,null,null,null,null,null,null,null,null,null,null,null,null,null,null,null,null,"UASB",{"$f":"250*AD134","v":{"$error":"#DIV/0!"}},{"$f":"250*AE134","v":{"$error":"#DIV/0!"}},{"$f":"250*AF134","v":{"$error":"#DIV/0!"}},{"$f":"250*AG134","v":{"$error":"#DIV/0!"}}]
[null,null,null,null,null,null,null,null,null,null,null,null,null,null,null,null,null,null,null,null,null,null,null,null,null,null,{"$f":"title530","v":"Plug Flow"},{"$f":"12.25*AD133","v":{"$error":"#DIV/0!"}},{"$f":"12.25*AE133","v":{"$error":"#DIV/0!"}},{"$f":"12.25*AF133","v":{"$error":"#DIV/0!"}},{"$f":"12.25*AG133","v":{"$error":"#DIV/0!"}}]
[null,null,null,null,null,null,null,null,null,null,null,null,null,null,null,null,null,null,null,null,null,null,null,null,null,null,{"$f":"title531","v":"Batch"},{"$f":"(7.29+2.16)*AD$133+6.3*AD$134/100","v":{"$error":"#DIV/0!"}},{"$f":"(7.29+2.16)*AE$133+6.3*AE$134/100","v":{"$error":"#DIV/0!"}},{"$f":"(7.29+2.16)*AF$133+6.3*AF$134/100","v":{"$error":"#DIV/0!"}},{"$f":"(7.29+2.16)*AG$133+6.3*AG$134/100","v":{"$error":"#DIV/0!"}}]
[]
[null,null,null,null,null,null,null,null,null,null,null,null,null,null,null,null,null,null,null,null,null,null,null,null,null,null,"Energy Potential - Cogeneration"]
[null,null,null,null,null,null,null,null,null,null,null,null,null,null,null,null,null,null,null,null,null,null,null,null,null,null,null,{"$f":"title248&\" 1\"","v":"Size 1"},{"$f":"title248&\" 2\"","v":"Size 2"},{"$f":"title248&\" 3\"","v":"Size 3"},{"$f":"title248&\" 4\"","v":"Size 4"},null,"CV",{"$f":"(0.3594*$AG$107*100-0.024)/3.6","v":{"$error":"#DIV/0!"}},"kWh/m3 biogas","Y = AX^4+BX^3+CX^2+DX+E","(kg/t)"]
[null,null,null,null,null,null,null,null,null,null,null,null,null,null,null,null,null,null,null,null,null,null,null,null,null,null,"Energy Potential",{"$f":"$AH$156*AD$130*'Data entry needs'!$L$100*3.6","v":{"$error":"#DIV/0!"}},{"$f":"$AH$156*AE$130*'Data entry needs'!$L$100*3.6","v":{"$error":"#DIV/0!"}},{"$f":"$AH$156*AF$130*'Data entry needs'!$L$100*3.6","v":{"$error":"#DIV/0!"}},{"$f":"$AH$156*AG$130*'Data entry needs'!$L$100*3.6","v":{"$error":"#DIV/0!"}},{"$f":"title306","v":"MJ/year"},"Thermal Eff.",0.6,null,null,"A","B","C","D","E"]
[null,null,null,null,null,null,null,null,null,null,null,null,null,null,null,null,null,null,null,null,null,null,null,null,null,null,{"$f":"title51","v":"Heat"},{"$f":"AB157*($AH$157-$AH$158)/(1-($AH$158/$AH$159))/1000","v":{"$error":"#DIV/0!"}},{"$f":"AC157*($AH$157-$AH$158)/(1-($AH$158/$AH$159))/1000","v":{"$error":"#DIV/0!"}},{"$f":"AD157*($AH$157-$AH$158)/(1-($AH$158/$AH$159))/1000","v":{"$error":"#DIV/0!"}},{"$f":"AE157*($AH$157-$AH$158)/(1-($AH$158/$AH$159))/1000","v":{"$error":"#DIV/0!"}},{"$f":"title305","v":"GJ/year"},"Electrical Eff.",0.4,null,"NH3-N",2.6264300000000001E-4,-5.29693E-3,3.2159399999999998E-2,-5.2911699999999999E-2,0.57911000000000001]
[null,null,null,null,null,null,null,null,null,null,null,null,null,null,null,null,null,null,null,null,null,null,null,null,null,null,{"$f":"title35","v":"Electricity"},{"$f":"(AB157*$AH$157-AB158*1000)/3.6","v":{"$error":"#DIV/0!"}},{"$f":"(AC157*$AH$157-AC158*1000)/3.6","v":{"$error":"#DIV/0!"}},{"$f":"(AD157*$AH$157-AD158*1000)/3.6","v":{"$error":"#DIV/0!"}},{"$f":"(AE157*$AH$157-AE158*1000)/3.6","v":{"$error":"#DIV/0!"}},{"$f":"title304","v":"kWh/year"},"Alpha",0.75,null,"P2O5",1.1614599999999999E-2,-9.3845899999999996E-2,0.21317700000000001,-0.12223199999999999,0.58016500000000004]
[null,null,null,null,null,null,null,null,null,null,null,null,null,null,null,null,null,null,null,null,null,null,null,null,null,null,null,null,null,null,null,null,null,null,null,"K2O",1.14288E-4,-2.09458E-3,1.2713199999999999E-2,-2.1764599999999999E-2,0.57522600000000002]
[null,null,null,null,null,null,null,null,null,null,null,null,null,null,null,null,null,null,null,null,null,null,null,null,null,null,"Energy Potential-Electricity"]
[null,null,null,null,null,null,null,null,null,null,null,null,null,null,null,null,null,null,null,null,null,null,null,null,null,null,"Energy Potential",{"$f":"$AH$156*AD$130*'Data entry needs'!$L$100","v":{"$error":"#DIV/0!"}},{"$f":"$AH$156*AE$130*'Data entry needs'!$L$100","v":{"$error":"#DIV/0!"}},{"$f":"$AH$156*AF$130*'Data entry needs'!$L$100","v":{"$error":"#DIV/0!"}},{"$f":"$AH$156*AG$130*'Data entry needs'!$L$100","v":{"$error":"#DIV/0!"}},{"$f":"title304","v":"kWh/year"},"Electrical Eff. Only",0.3,null,null,"Efficency of Separation"]
[null,null,null,null,null,null,null,null,null,null,null,null,null,null,null,null,null,null,null,null,null,null,null,null,null,null,{"$f":"title35","v":"Electricity"},{"$f":"AB162*$AH$162","v":{"$error":"#DIV/0!"}},{"$f":"AC162*$AH$162","v":{"$error":"#DIV/0!"}},{"$f":"AD162*$AH$162","v":{"$error":"#DIV/0!"}},{"$f":"AE162*$AH$162","v":{"$error":"#DIV/0!"}},{"$f":"title304","v":"kWh/year"},null,null,null,null,"TS (%)","N(%)","P(%)","K(%)","Energy Consumption (kWh/t)","Recovery (%)"]
[null,null,null,null,null,null,null,null,null,null,null,null,null,null,null,null,null,null,null,null,null,null,null,null,null,null,null,null,null,null,null,null,null,null,null,{"$f":"title177","v":"Sedimentator"},0.05,{"$f":"AVERAGE(25%,35%)","v":0.3},0.3,0.2,0,0.19]
[null,null,null,null,null,null,null,null,null,null,null,null,null,null,null,null,null,null,null,null,null,null,null,null,null,null,"Connection to Natural Gas",null,null,null,null,null,null,null,null,{"$f":"title178","v":"Floater"},0.05,{"$f":"AVERAGE(30%,40%)","v":0.35},0.3,0.2,0,0.2]
[null,null,null,null,null,null,null,null,null,null,null,null,null,null,null,null,null,null,null,null,null,null,null,null,null,null,{"$f":"title47","v":"Natural Gas"},{"$f":"AD$127*'Data entry needs'!$L$100/97%","v":0},{"$f":"AE$127*'Data entry needs'!$L$100/97%","v":0},{"$f":"AF$127*'Data entry needs'!$L$100/97%","v":0},{"$f":"AG$127*'Data entry needs'!$L$100/97%","v":0},{"$f":"title307","v":"m3/year"},null,null,null,{"$f":"title179","v":"Centrifuge"},0.3,0.3,0.24,0.36,7,0.68]
[null,null,null,null,null,null,null,null,null,null,null,null,null,null,null,null,null,null,null,null,null,null,null,null,null,null,null,null,null,null,null,null,null,null,null,{"$f":"title180","v":"Belt Press"},0.25,0.32,0.28999999999999998,0.27,0.12,0.56000000000000005]
[null,null,null,null,null,null,null,null,null,null,null,null,null,null,null,null,null,null,null,null,null,null,null,null,null,null,"Energy Potential-Heating and Cooking",null,null,null,null,null,null,null,null,{"$f":"title181","v":"Screen Sieves"},0.1,0.25,0.26,0.17,0.9,0.2]
[null,null,null,null,null,null,null,null,null,null,null,null,null,null,null,null,null,null,null,null,null,null,null,null,null,null,null,null,null,null,null,null,null,null,null,{"$f":"title182","v":"Screw Press"},0.4,0.28000000000000003,0.33,0.18,1.1000000000000001,0.65]
[null,null,null,null,null,null,null,null,null,null,null,null,null,null,null,null,null,null,null,null,null,null,null,null,null,null,{"$f":"title626","v":"Digestate"},{"$f":"'Data entry needs'!$F$110","v":"Please Select"},"Solids Recovered",{"$f":"VLOOKUP($AB$170,$AJ$164:$AP$169,7,FALSE)","v":{"$error":"#N/A"}},"TS Digestate (%)",{"$f":"VLOOKUP($AB$170,$AJ$164:$AP$169,2,FALSE)","v":{"$error":"#N/A"}}]
[null,null,null,null,null,null,null,null,null,null,null,null,null,null,null,null,null,null,null,null,null,null,null,null,null,null,null,{"$f":"title248&\" 1\"","v":"Size 1"},{"$f":"title248&\" 2\"","v":"Size 2"},{"$f":"title248&\" 3\"","v":"Size 3"},{"$f":"title248&\" 4\"","v":"Size 4"},null,"Molecular Weight"]
[null,null,null,null,null,null,null,null,null,null,null,null,null,null,null,null,null,null,null,null,null,null,null,null,null,null,"Residual Solids Recov",{"$f":"AD$133*(1-$AD$107)*$AE$107*$AD$170","v":{"$error":"#DIV/0!"}},{"$f":"AE$133*(1-$AD$107)*$AE$107*$AD$170","v":{"$error":"#DIV/0!"}},{"$f":"AF$133*(1-$AD$107)*$AE$107*$AD$170","v":{"$error":"#DIV/0!"}},{"$f":"AG$133*(1-$AD$107)*$AE$107*$AD$170","v":{"$error":"#DIV/0!"}},{"$f":"title604","v":"t/yr"},"N",14.0067,"P205",{"$f":"AH174*2+AH176*5","v":141.94452200000001}]
[null,null,null,null,null,null,null,null,null,null,null,null,null,null,null,null,null,null,null,null,null,null,null,null,null,null,"N",{"$f":"($AK158*$AG$107^4+$AL158*$AG$107^3+$AM158*$AG$107^2+$AN158*$AG$107+$AO158)*AB$172*VLOOKUP($AB$170,$AJ$164:$AN$169,3,FALSE)","v":{"$error":"#DIV/0!"}},{"$error":"#DIV/0!"},{"$error":"#DIV/0!"},{"$error":"#DIV/0!"},{"$f":"title604","v":"t/yr"},"H",1.0079400000000001,"K20",{"$f":"AH175*2+AH176","v":94.195999999999998}]
[null,null,null,null,null,null,null,null,null,null,null,null,null,null,null,null,null,null,null,null,null,null,null,null,null,null,"P2O5",{"$error":"#DIV/0!"},{"$error":"#DIV/0!"},{"$error":"#DIV/0!"},{"$error":"#DIV/0!"},{"$f":"title604","v":"t/yr"},"P",30.973761]
[null,null,null,null,null,null,null,null,null,null,null,null,null,null,null,null,null,null,null,null,null,null,null,null,null,null,"K2O",{"$error":"#DIV/0!"},{"$error":"#DIV/0!"},{"$error":"#DIV/0!"},{"$error":"#DIV/0!"},{"$f":"title604","v":"t/yr"},"K",39.098300000000002]
[null,null,null,null,null,null,null,null,null,null,null,null,null,null,null,null,null,null,null,null,null,null,null,null,null,null,{"$f":"title658","v":"Ash"},{"$f":"(AD$133-AD$135)*$AE$107*$AD$107*$AD$170/10","v":{"$error":"#DIV/0!"}},{"$f":"(AE$133-AE$135)*$AE$107*$AD$107*$AD$170/10","v":{"$error":"#DIV/0!"}},{"$f":"(AF$133-AF$135)*$AE$107*$AD$107*$AD$170/10","v":{"$error":"#DIV/0!"}},{"$f":"(AG$133-AG$135)*$AE$107*$AD$107*$AD$170/10","v":{"$error":"#DIV/0!"}},{"$f":"title604","v":"t/yr"},"O",15.9994]
[null,null,null,null,null,null,null,null,null,null,null,null,null,null,null,null,null,null,null,null,null,null,null,null,null,null,"Solids Recovered",{"$f":"SUM(AB173:AB176)","v":{"$error":"#DIV/0!"}},{"$f":"SUM(AC173:AC176)","v":{"$error":"#DIV/0!"}},{"$f":"SUM(AD173:AD176)","v":{"$error":"#DIV/0!"}},{"$f":"SUM(AE173:AE176)","v":{"$error":"#DIV/0!"}}]
[null,null,null,null,null,null,null,null,null,null,null,null,null,null,null,null,null,null,null,null,null,null,null,null,null,null,"Total digestate",{"$f":"AB177/$AF$170","v":{"$error":"#DIV/0!"}},{"$f":"AC177/$AF$170","v":{"$error":"#DIV/0!"}},{"$f":"AD177/$AF$170","v":{"$error":"#DIV/0!"}},{"$f":"AE177/$AF$170","v":{"$error":"#DIV/0!"}}]
[null,null,null,null,null,null,null,null,null,null,null,null,null,null,null,null,null,null,null,null,null,null,null,null,null,null,"Energy (kWh/t)",{"$f":"VLOOKUP($AB$170,$AJ$164:$AP$169,6,FALSE)*AB178","v":{"$error":"#N/A"}},{"$f":"VLOOKUP($AB$170,$AJ$164:$AP$169,6,FALSE)*AC178","v":{"$error":"#N/A"}},{"$f":"VLOOKUP($AB$170,$AJ$164:$AP$169,6,FALSE)*AD178","v":{"$error":"#N/A"}},{"$f":"VLOOKUP($AB$170,$AJ$164:$AP$169,6,FALSE)*AE178","v":{"$error":"#N/A"}},{"$f":"title304","v":"kWh/year"}]
[null,null,null,null,null,null,null,null,null,null,null,null,null,null,null,null,null,null,null,null,null,null,null,null,null,null,"N",{"$f":"AB173","v":{"$error":"#DIV/0!"}},{"$f":"AC173","v":{"$error":"#DIV/0!"}},{"$f":"AD173","v":{"$error":"#DIV/0!"}},{"$f":"AE173","v":{"$error":"#DIV/0!"}},{"$f":"AF173","v":"t/yr"}]
[null,null,null,null,null,null,null,null,null,null,null,null,null,null,null,null,null,null,null,null,null,null,null,null,null,null,"P",{"$f":"AB174*$AH$174/$AJ$172","v":{"$error":"#DIV/0!"}},{"$f":"AC174*$AH$174/$AJ$172","v":{"$error":"#DIV/0!"}},{"$f":"AD174*$AH$174/$AJ$172","v":{"$error":"#DIV/0!"}},{"$f":"AE174*$AH$174/$AJ$172","v":{"$error":"#DIV/0!"}},{"$f":"AF174","v":"t/yr"}]
[null,null,null,null,null,null,null,null,null,null,null,null,null,null,null,null,null,null,null,null,null,null,null,null,null,null,"K",{"$f":"AB175*$AH$175/$AJ$173","v":{"$error":"#DIV/0!"}},{"$f":"AC175*$AH$175/$AJ$173","v":{"$error":"#DIV/0!"}},{"$f":"AD175*$AH$175/$AJ$173","v":{"$error":"#DIV/0!"}},{"$f":"AE175*$AH$175/$AJ$173","v":{"$error":"#DIV/0!"}},{"$f":"AF175","v":"t/yr"}]
[null,null,null,null,null,null,null,null,null,null,null,null,null,null,null,null,null,null,null,null,null,null,null,null,null,null,{"$f":"title658","v":"Ash"},{"$f":"AB176","v":{"$error":"#DIV/0!"}},{"$f":"AC176","v":{"$error":"#DIV/0!"}},{"$f":"AD176","v":{"$error":"#DIV/0!"}},{"$f":"AE176","v":{"$error":"#DIV/0!"}},{"$f":"AF176","v":"t/yr"}]
[null,null,null,null,null,null,null,null,null,null,null,null,null,null,null,null,null,null,null,null,null,null,null,null,null,null,"Total",{"$f":"SUM(AB180:AB183)","v":{"$error":"#DIV/0!"}},{"$f":"SUM(AC180:AC183)","v":{"$error":"#DIV/0!"}},{"$f":"SUM(AD180:AD183)","v":{"$error":"#DIV/0!"}},{"$f":"SUM(AE180:AE183)","v":{"$error":"#DIV/0!"}},{"$f":"AF177","v":0}]
[null,null,null,null,null,null,null,null,null,null,null,null,null,null,null,null,null,null,null,null,null,null,null,null,null,null,"%"]
[null,null,null,null,null,null,null,null,null,null,null,null,null,null,null,null,null,null,null,null,null,null,null,null,null,null,"N",{"$f":"AB180/AB$184","v":{"$error":"#DIV/0!"}}]
[null,null,null,null,null,null,null,null,null,null,null,null,null,null,null,null,null,null,null,null,null,null,null,null,null,null,"P",{"$f":"AB181/AB$184","v":{"$error":"#DIV/0!"}}]
[null,null,null,null,null,null,null,null,null,null,null,null,null,null,null,null,null,null,null,null,null,null,null,null,null,null,"K",{"$f":"AB182/AB$184","v":{"$error":"#DIV/0!"}}]
[null,null,null,null,null,null,null,null,null,null,null,null,null,null,null,null,null,null,null,null,null,null,null,null,null,null,{"$f":"title658","v":"Ash"},{"$f":"AB183/AB$184","v":{"$error":"#DIV/0!"}}]
[null,null,null,null,null,null,null,null,null,null,null,null,null,null,null,null,null,null,null,null,null,null,null,null,null,null,{"$f":"title602","v":"Moisture"},{"$f":"1-AF170","v":{"$error":"#N/A"}}]

{"sheet":"Planner_PS4","index":12,"n_rows":190,"n_cols":44,"rows_kept":190,"cut":false,"hidden":true,"merged":[[115,32,116,33],[2,2,2,17],[5,2,5,3],[5,4,5,8],[113,30,113,31],[115,30,115,31]]}
[]
[]
[null,null,{"$f":"title199&\" 4\"","v":"BIOMASS DISTRIBUTION PLANNER FOR PROCESS  4"}]
[]
[null,null,null,null,null,null,null,null,null,null,null,null,null,null,"Please Select Please Select"]
[null,null,{"$f":"title193","v":"Use white cells to input data"},null,{"$f":"title194","v":"Grey cells are used for calculations"}]
[]
[null,null,null,null,null,{"$f":"title204","v":"Jan"},{"$f":"title205","v":"Feb"},{"$f":"title206","v":"Mar"},{"$f":"title207","v":"Apr"},{"$f":"title208","v":"May"},{"$f":"title209","v":"Jun"},{"$f":"title210","v":"Jul"},{"$f":"title211","v":"Aug"},{"$f":"title212","v":"Sep"},{"$f":"title213","v":"Oct"},{"$f":"title214","v":"Nov"},{"$f":"title215","v":"Dec"}]
[null,null,{"$f":"title200","v":"Monthly Average Envirnomental Temperature"},null,"°C"]
[null,null,{"$f":"title201","v":"Feedstock Selection and Cost"}]
[null,null,null,null,null,{"$f":"IF(AND(AB$93>1,AB$86),title203,\"\")","v":""},"","","","","","","","","","",""]
[null,null,{"$f":"title202","v":"Feedstock Distribution"},null,{"$f":"title110","v":"Feedstock Available (t/year)"},{"$f":"title204","v":"Jan"},{"$f":"title205","v":"Feb"},{"$f":"title206","v":"Mar"},{"$f":"title207","v":"Apr"},{"$f":"title208","v":"May"},{"$f":"title209","v":"Jun"},{"$f":"title210","v":"Jul"},{"$f":"title211","v":"Aug"},{"$f":"title212","v":"Sep"},{"$f":"title213","v":"Oct"},{"$f":"title214","v":"Nov"},{"$f":"title215","v":"Dec"},{"$f":"title218","v":"Left to Allocate"},null,"Criteria1","Criteria2"]
[null,75,{"$f":"IF(INDIRECT(\"'Data entry needs'!$D\"&$B13)=title74,\"\",INDIRECT(\"'Data entry needs'!$d\"&$B13)&\"-\"&INDIRECT(\"'Data entry needs'!$e\"&$B13))","v":""},null,{"$f":"IF(INDIRECT(\"'Data entry needs'!$e\"&$B13)=title74,0,INDIRECT(\"'Data entry needs'!$f\"&$B13))","v":0},null,null,null,null,null,null,null,null,null,null,null,null,{"$f":"IFERROR(ROUND(E13-SUM(F13:Q13),0),0)","v":0},{"$f":"12-COUNTA(F13:Q13)","v":12},{"$f":"AND(IF(R13<=0,FALSE,TRUE),NOT(U13))","v":false},{"$f":"AND(IF(COUNTA(F13:Q13)=12,TRUE,FALSE),IF(R13>0,TRUE,FALSE))","v":false}]
[null,{"$f":"B13+2","v":77},{"$f":"IF(INDIRECT(\"'Data entry needs'!$D\"&$B14)=title74,\"\",INDIRECT(\"'Data entry needs'!$d\"&$B14)&\"-\"&INDIRECT(\"'Data entry needs'!$e\"&$B14))","v":""},null,{"$f":"IF(INDIRECT(\"'Data entry needs'!$e\"&$B14)=title74,0,INDIRECT(\"'Data entry needs'!$f\"&$B14))","v":0},null,null,null,null,null,null,null,null,null,null,null,null,{"$f":"IFERROR(ROUND(E14-SUM(F14:Q14),0),0)","v":0},{"$f":"12-COUNTA(F14:Q14)","v":12},{"$f":"AND(IF(R14<=0,FALSE,TRUE),NOT(U14))","v":false},{"$f":"AND(IF(COUNTA(F14:Q14)=12,TRUE,FALSE),IF(R14>0,TRUE,FALSE))","v":false}]
[null,{"$f":"B14+2","v":79},{"$f":"IF(INDIRECT(\"'Data entry needs'!$D\"&$B15)=title74,\"\",INDIRECT(\"'Data entry needs'!$d\"&$B15)&\"-\"&INDIRECT(\"'Data entry needs'!$e\"&$B15))","v":""},null,{"$f":"IF(INDIRECT(\"'Data entry needs'!$e\"&$B15)=title74,0,INDIRECT(\"'Data entry needs'!$f\"&$B15))","v":0},null,null,null,null,null,null,null,null,null,null,null,null,{"$f":"IFERROR(ROUND(E15-SUM(F15:Q15),0),0)","v":0},{"$f":"12-COUNTA(F15:Q15)","v":12},{"$f":"AND(IF(R15<=0,FALSE,TRUE),NOT(U15))","v":false},{"$f":"AND(IF(COUNTA(F15:Q15)=12,TRUE,FALSE),IF(R15>0,TRUE,FALSE))","v":false}]
[null,{"$f":"B15+2","v":81},{"$f":"IF(INDIRECT(\"'Data entry needs'!$D\"&$B16)=title74,\"\",INDIRECT(\"'Data entry needs'!$d\"&$B16)&\"-\"&INDIRECT(\"'Data entry needs'!$e\"&$B16))","v":""},null,{"$f":"IF(INDIRECT(\"'Data entry needs'!$e\"&$B16)=title74,0,INDIRECT(\"'Data entry needs'!$f\"&$B16))","v":0},null,null,null,null,null,null,null,null,null,null,null,null,{"$f":"IFERROR(ROUND(E16-SUM(F16:Q16),0),0)","v":0},{"$f":"12-COUNTA(F16:Q16)","v":12},{"$f":"AND(IF(R16<=0,FALSE,TRUE),NOT(U16))","v":false},{"$f":"AND(IF(COUNTA(F16:Q16)=12,TRUE,FALSE),IF(R16>0,TRUE,FALSE))","v":false}]
[null,{"$f":"B16+2","v":83},{"$f":"IF(INDIRECT(\"'Data entry needs'!$D\"&$B17)=title74,\"\",INDIRECT(\"'Data entry needs'!$d\"&$B17)&\"-\"&INDIRECT(\"'Data entry needs'!$e\"&$B17))","v":""},null,{"$f":"IF(INDIRECT(\"'Data entry needs'!$e\"&$B17)=title74,0,INDIRECT(\"'Data entry needs'!$f\"&$B17))","v":0},null,null,null,null,null,null,null,null,null,null,null,null,{"$f":"IFERROR(ROUND(E17-SUM(F17:Q17),0),0)","v":0},{"$f":"12-COUNTA(F17:Q17)","v":12},{"$f":"AND(IF(R17<=0,FALSE,TRUE),NOT(U17))","v":false},{"$f":"AND(IF(COUNTA(F17:Q17)=12,TRUE,FALSE),IF(R17>0,TRUE,FALSE))","v":false}]
[]
[null,null,{"$f":"title217","v":"Codigestion Feedstock Distribution"}]
[null,{"$f":"B17+4","v":87},{"$f":"IF(INDIRECT(\"'Data entry needs'!$D\"&$B20)=title74,\"\",INDIRECT(\"'Data entry needs'!$d\"&$B20)&\"-\"&INDIRECT(\"'Data entry needs'!$e\"&$B20))","v":""},null,{"$f":"IF(INDIRECT(\"'Data entry needs'!$e\"&$B20)=title74,\"\",INDIRECT(\"'Data entry needs'!$f\"&$B20))","v":""},null,null,null,null,null,null,null,null,null,null,null,null,{"$f":"IFERROR(ROUND(E20-SUM(F20:Q20),0),0)","v":0},{"$f":"12-COUNTA(F20:Q20)","v":12},{"$f":"AND(IF(R20<=0,FALSE,TRUE),NOT(U20))","v":false},{"$f":"AND(IF(COUNTA(F20:Q20)=12,TRUE,FALSE),IF(R20>0,TRUE,FALSE))","v":false}]
[]
[null,null,{"$f":"title216","v":"Feedstock Monthly Available (t/month)"},null,null,{"$f":"IF('Data entry needs'!$D$11,Planner_PS4!$F$13,IF('Data entry needs'!$F$11,SUM(F13:F17),SUM(F13:F17,F20)))","v":0},{"$f":"SUM(G13:G17,G20)","v":0},0,0,0,0,0,0,0,0,0,0]
[]
[]
[]
[]
[]
[]
[]
[]
[]
[]
[]
[]
[]
[]
[]
[]
[]
[]
[]
[]
[]
[]
[]
[]
[]
[]
[]
[]
[]
[]
[]
[]
[]
[]
[]
[]
[null,null,null,null,null,null,null,null,null,null,null,null,null,null,null,null,null,null,null,null,null,null,null,null,null,null,{"$f":"title246","v":"Storage Planner"}]
[null,null,null,null,null,null,null,null,null,null,null,null,null,null,null,null,null,null,null,null,null,null,null,null,null,null,{"$f":"title247","v":"Total Fs  (t/month)"},{"$f":"F22","v":0},0,0,0,0,0,0,0,0,0,0,0]
[null,null,null,null,null,null,null,null,null,null,null,null,null,null,null,null,null,null,null,null,null,null,null,null,null,null,null,{"$f":"title204","v":"Jan"},{"$f":"title205","v":"Feb"},{"$f":"title206","v":"Mar"},{"$f":"title207","v":"Apr"},{"$f":"title208","v":"May"},{"$f":"title209","v":"Jun"},{"$f":"title210","v":"Jul"},{"$f":"title211","v":"Aug"},{"$f":"title212","v":"Sep"},{"$f":"title213","v":"Oct"},{"$f":"title214","v":"Nov"},{"$f":"title215","v":"Dec"},"AVERAGE"]
[null,null,null,null,null,null,null,null,null,null,null,null,null,null,null,null,null,null,null,null,null,null,null,null,null,null,"FS1",{"$f":"$AH100*F13/$AB$60","v":{"$error":"#DIV/0!"}},{"$error":"#DIV/0!"},{"$error":"#DIV/0!"},{"$error":"#DIV/0!"},{"$error":"#DIV/0!"},{"$error":"#DIV/0!"},{"$error":"#DIV/0!"},{"$error":"#DIV/0!"},{"$error":"#DIV/0!"},{"$error":"#DIV/0!"},{"$error":"#DIV/0!"},{"$error":"#DIV/0!"},{"$f":"AVERAGE(AB62:AM62)","v":{"$error":"#DIV/0!"}}]
[null,null,null,null,null,null,null,null,null,null,null,null,null,null,null,null,null,null,null,null,null,null,null,null,null,null,"FS2",{"$error":"#DIV/0!"},{"$error":"#DIV/0!"},{"$error":"#DIV/0!"},{"$error":"#DIV/0!"},{"$error":"#DIV/0!"},{"$error":"#DIV/0!"},{"$error":"#DIV/0!"},{"$error":"#DIV/0!"},{"$error":"#DIV/0!"},{"$error":"#DIV/0!"},{"$error":"#DIV/0!"},{"$error":"#DIV/0!"},{"$error":"#DIV/0!"},null,39]
[null,null,null,null,null,null,null,null,null,null,null,null,null,null,null,null,null,null,null,null,null,null,null,null,null,null,"FS3",{"$error":"#DIV/0!"},{"$error":"#DIV/0!"},{"$error":"#DIV/0!"},{"$error":"#DIV/0!"},{"$error":"#DIV/0!"},{"$error":"#DIV/0!"},{"$error":"#DIV/0!"},{"$error":"#DIV/0!"},{"$error":"#DIV/0!"},{"$error":"#DIV/0!"},{"$error":"#DIV/0!"},{"$error":"#DIV/0!"},{"$error":"#DIV/0!"},null,41]
[null,null,null,null,null,null,null,null,null,null,null,null,null,null,null,null,null,null,null,null,null,null,null,null,null,null,"FS4",{"$error":"#DIV/0!"},{"$error":"#DIV/0!"},{"$error":"#DIV/0!"},{"$error":"#DIV/0!"},{"$error":"#DIV/0!"},{"$error":"#DIV/0!"},{"$error":"#DIV/0!"},{"$error":"#DIV/0!"},{"$error":"#DIV/0!"},{"$error":"#DIV/0!"},{"$error":"#DIV/0!"},{"$error":"#DIV/0!"},{"$error":"#DIV/0!"},null,43]
[null,null,null,null,null,null,null,null,null,null,null,null,null,null,null,null,null,null,null,null,null,null,null,null,null,null,"FS5",{"$error":"#DIV/0!"},{"$error":"#DIV/0!"},{"$error":"#DIV/0!"},{"$error":"#DIV/0!"},{"$error":"#DIV/0!"},{"$error":"#DIV/0!"},{"$error":"#DIV/0!"},{"$error":"#DIV/0!"},{"$error":"#DIV/0!"},{"$error":"#DIV/0!"},{"$error":"#DIV/0!"},{"$error":"#DIV/0!"},{"$error":"#DIV/0!"},null,44]
[null,null,null,null,null,null,null,null,null,null,null,null,null,null,null,null,null,null,null,null,null,null,null,null,null,null,{"$f":"title167","v":"Codigestion"},{"$f":"$AH105*F20/$AB$60","v":{"$error":"#DIV/0!"}},{"$f":"$AH105*G20/$AB$60","v":{"$error":"#DIV/0!"}},{"$error":"#DIV/0!"},{"$error":"#DIV/0!"},{"$error":"#DIV/0!"},{"$error":"#DIV/0!"},{"$error":"#DIV/0!"},{"$error":"#DIV/0!"},{"$error":"#DIV/0!"},{"$error":"#DIV/0!"},{"$error":"#DIV/0!"},{"$error":"#DIV/0!"},{"$error":"#DIV/0!"},null,45]
[null,null,null,null,null,null,null,null,null,null,null,null,null,null,null,null,null,null,null,null,null,null,null,null,null,null,null,null,null,null,null,null,null,null,null,null,null,null,null,null,null,47]
[]
[null,null,null,null,null,null,null,null,null,null,null,null,null,null,null,null,null,null,null,null,null,null,null,null,null,null,null,{"$f":"title248&\" 1\"","v":"Size 1"},{"$f":"title248&\" 2\"","v":"Size 2"},{"$f":"title248&\" 3\"","v":"Size 3"},{"$f":"title248&\" 4\"","v":"Size 4"},null,null,null,null,null,null,null,null,null,null,51]
[null,null,null,null,null,null,null,null,null,null,null,null,null,null,null,null,null,null,null,null,null,null,null,null,null,null,"FS1",{"$f":"$AN62*AD$132*30","v":{"$error":"#DIV/0!"}},{"$error":"#DIV/0!"},{"$error":"#DIV/0!"},{"$error":"#DIV/0!"}]
[null,null,null,null,null,null,null,null,null,null,null,null,null,null,null,null,null,null,null,null,null,null,null,null,null,null,"FS2",{"$error":"#DIV/0!"},{"$error":"#DIV/0!"},{"$error":"#DIV/0!"},{"$error":"#DIV/0!"}]
[null,null,null,null,null,null,null,null,null,null,null,null,null,null,null,null,null,null,null,null,null,null,null,null,null,null,"FS3",{"$error":"#DIV/0!"},{"$error":"#DIV/0!"},{"$error":"#DIV/0!"},{"$error":"#DIV/0!"}]
[null,null,null,null,null,null,null,null,null,null,null,null,null,null,null,null,null,null,null,null,null,null,null,null,null,null,"FS4",{"$error":"#DIV/0!"},{"$error":"#DIV/0!"},{"$error":"#DIV/0!"},{"$error":"#DIV/0!"}]
[null,null,null,null,null,null,null,null,null,null,null,null,null,null,null,null,null,null,null,null,null,null,null,null,null,null,"FS5",{"$error":"#DIV/0!"},{"$error":"#DIV/0!"},{"$error":"#DIV/0!"},{"$error":"#DIV/0!"}]
[null,null,null,null,null,null,null,null,null,null,null,null,null,null,null,null,null,null,null,null,null,null,null,null,null,null,{"$f":"title167","v":"Codigestion"},{"$error":"#DIV/0!"},{"$error":"#DIV/0!"},{"$error":"#DIV/0!"},{"$error":"#DIV/0!"}]
[]
[]
[]
[]
[]
[]
[]
[]
[]
[null,null,null,null,null,null,null,null,null,null,null,null,null,null,null,null,null,null,null,null,null,null,null,null,null,null,null,{"$f":"'Data entry needs'!$F$11","v":false},{"$f":"'Data entry needs'!$F$11","v":false},{"$f":"'Data entry needs'!$F$11","v":false},{"$f":"'Data entry needs'!$F$11","v":false},{"$f":"'Data entry needs'!$F$11","v":false},{"$f":"'Data entry needs'!$F$11","v":false},{"$f":"'Data entry needs'!$F$11","v":false},{"$f":"'Data entry needs'!$F$11","v":false},{"$f":"'Data entry needs'!$F$11","v":false},{"$f":"'Data entry needs'!$F$11","v":false},{"$f":"'Data entry needs'!$F$11","v":false},{"$f":"'Data entry needs'!$F$11","v":false}]
[null,null,null,null,null,null,null,null,null,null,null,null,null,null,null,null,null,null,null,null,null,null,null,null,null,null,null,{"$f":"title204","v":"Jan"},{"$f":"title205","v":"Feb"},{"$f":"title206","v":"Mar"},{"$f":"title207","v":"Apr"},{"$f":"title208","v":"May"},{"$f":"title209","v":"Jun"},{"$f":"title210","v":"Jul"},{"$f":"title211","v":"Aug"},{"$f":"title212","v":"Sep"},{"$f":"title213","v":"Oct"},{"$f":"title214","v":"Nov"},{"$f":"title215","v":"Dec"},"Not Collection Months",{"$f":"title633","v":"Collection Months"}]
[null,null,null,null,null,null,null,null,null,null,null,null,null,null,null,null,null,null,null,null,null,null,null,null,null,null,null,{"$f":"IF(OR(ISBLANK(F13),F13=0),0,1)","v":0},0,0,0,0,0,0,0,0,0,0,0,{"$f":"IF((12-COUNTIF(AB88:AM88,\">0\"))=0,1,(12-COUNTIF(AB88:AM88,\">0\")))","v":12},{"$f":"SUM(AB88:AM88)","v":0}]
[null,null,null,null,null,null,null,null,null,null,null,null,null,null,null,null,null,null,null,null,null,null,null,null,null,null,null,0,0,0,0,0,0,0,0,0,0,0,0,{"$f":"IF((12-COUNTIF(AB89:AM89,\">0\"))=0,1,(12-COUNTIF(AB89:AM89,\">0\")))","v":12},{"$f":"SUM(AB89:AM89)","v":0}]
[null,null,null,null,null,null,null,null,null,null,null,null,null,null,null,null,null,null,null,null,null,null,null,null,null,null,null,0,0,0,0,0,0,0,0,0,0,0,0,{"$f":"IF((12-COUNTIF(AB90:AM90,\">0\"))=0,1,(12-COUNTIF(AB90:AM90,\">0\")))","v":12},{"$f":"SUM(AB90:AM90)","v":0}]
[null,null,null,null,null,null,null,null,null,null,null,null,null,null,null,null,null,null,null,null,null,null,null,null,null,null,null,0,0,0,0,0,0,0,0,0,0,0,0,{"$f":"IF((12-COUNTIF(AB91:AM91,\">0\"))=0,1,(12-COUNTIF(AB91:AM91,\">0\")))","v":12},{"$f":"SUM(AB91:AM91)","v":0}]
[null,null,null,null,null,null,null,null,null,null,null,null,null,null,null,null,null,null,null,null,null,null,null,null,null,null,null,0,0,0,0,0,0,0,0,0,0,0,0,{"$f":"IF((12-COUNTIF(AB92:AM92,\">0\"))=0,1,(12-COUNTIF(AB92:AM92,\">0\")))","v":12},{"$f":"SUM(AB92:AM92)","v":0}]
[null,null,null,null,null,null,null,null,null,null,null,null,null,null,null,null,null,null,null,null,null,null,null,null,null,null,null,{"$f":"SUM(AB88:AB92)","v":0},0,0,0,0,0,0,0,0,0,0,0]
[null,null,null,null,null,null,null,null,null,null,null,null,null,null,null,null,null,null,null,null,null,null,null,null,null,null,null,{"$f":"IF(AND(AB$93>1,AB$86),TRUE,FALSE)","v":false},false,false,false,false,false,false,false,false,false,false,false]
[null,null,null,null,null,null,null,null,null,null,null,null,null,null,null,null,null,null,null,null,null,null,null,null,null,null,{"$f":"title167","v":"Codigestion"},{"$f":"IF(OR(ISBLANK(F20),F20=0),0,1)","v":0},{"$f":"IF(OR(ISBLANK(G20),G20=0),0,1)","v":0},0,0,0,0,0,0,0,0,0,0,{"$f":"IF((12-COUNTIF(AB95:AM95,\">0\"))=0,1,(12-COUNTIF(AB95:AM95,\">0\")))","v":12},{"$f":"SUM(AB95:AM95)","v":0}]
[]
[]
[null,null,null,null,null,null,null,null,null,null,null,null,null,null,null,null,null,null,null,null,null,null,null,null,null,null,null,null,null,"G","H","I","J",null,null,"k"]
[null,null,null,null,null,null,null,null,null,null,null,null,null,null,null,null,null,null,null,null,null,null,null,null,null,null,null,{"$f":"title249","v":"Category"},{"$f":"title250","v":"Main Feedstock"},"VS (%)  or COD (kg/l)","TS (%) or COD Deg(%)","BMP (m3/t VS)","CH4 (%)","Final",{"$f":"title252","v":"Code"},{"$f":"title17","v":"Price"},{"$f":"title253","v":"Fs rate"},"%",null,null,null,"Optimal Codigestion synergy Factor"]
[null,null,null,null,null,null,null,null,null,null,null,null,null,null,null,null,null,null,null,null,null,null,null,null,null,null,{"$f":"$B13","v":75},{"$f":"IF(INDIRECT(\"'Data entry needs'!$D\"&$AA100)=title74,\"\",INDIRECT(\"'Data entry needs'!$d\"&$AA100))","v":""},{"$f":"IF(INDIRECT(\"'Data entry needs'!$D\"&$AA100)=title74,\"\",INDIRECT(\"'Data entry needs'!$d\"&$AA100)&\"-\"&INDIRECT(\"'Data entry needs'!$e\"&$AA100))","v":""},{"$f":"IF(INDIRECT(\"'Data entry needs'!$D\"&$AA100)=title74,0,IF($AB100=title192,TEXT(INDIRECT(\"'Data entry needs'!$\"&AD$98&0&$AA100),\"0.00\")/1000,TEXT(INDIRECT(\"'Data entry needs'!$\"&AD$98&0&$AA100),\"0%\"))+0%)","v":0},{"$f":"IF(INDIRECT(\"'Data entry needs'!$D\"&$AA100)=title74,0,INDIRECT(\"'Data entry needs'!$\"&AE$98&0&$AA100))+0%","v":0},{"$f":"IF(INDIRECT(\"'Data entry needs'!$D\"&$AA100)=title74,0,INDIRECT(\"'Data entry needs'!$\"&AF$98&0&$AA100))+0","v":0},0,{"$f":"IF(AB100=\"\",0,1)*AI100","v":0},1,{"$f":"IF(INDIRECT(\"'Data entry needs'!$D\"&$AA100)=title74,0,INDIRECT(\"'Data entry needs'!$\"&AJ$98&0&$AA100))+0","v":0},{"$f":"$E13*$AH100","v":0},{"$f":"AK100/$AK$106","v":{"$error":"#DIV/0!"}},{"$f":"title167","v":"Codigestion"},{"$f":"'Data entry needs'!$J$11","v":true},null,{"$f":"IF(AN100,1.5,1)","v":1.5},"Biogas yiled"]
[null,null,null,null,null,null,null,null,null,null,null,null,null,null,null,null,null,null,null,null,null,null,null,null,null,null,{"$f":"$B14","v":77},"","",0,0,0,0,0,1,0,0,{"$error":"#DIV/0!"},null,null,null,"Thermophilic enhance Factor"]
[null,null,null,null,null,null,null,null,null,null,null,null,null,null,null,null,null,null,null,null,null,null,null,null,null,null,{"$f":"$B15","v":79},"","",0,0,0,0,0,1,0,0,{"$error":"#DIV/0!"},{"$f":"title254","v":"Temperature (°C)"},{"$f":"COST_PS4!$L$12","v":"Mesophilic"},{"$f":"COST_PS4!$M$12","v":37.5},{"$f":"IF($AN$102=\"thermophilic\",0.5,1)","v":1},"HRT"]
[null,null,null,null,null,null,null,null,null,null,null,null,null,null,null,null,null,null,null,null,null,null,null,null,null,null,{"$f":"$B16","v":81},"","",0,0,0,0,0,1,0,0,{"$error":"#DIV/0!"},{"$f":"title255","v":"Optimal Codigestion Ratios"}]
[null,null,null,null,null,null,null,null,null,null,null,null,null,null,null,null,null,null,null,null,null,null,null,null,null,null,{"$f":"$B17","v":83},"","",0,0,0,0,0,1,0,0,{"$error":"#DIV/0!"},{"$f":"title84","v":"Manure"},{"$f":"title251","v":"Other"}]
[null,null,null,null,null,null,null,null,null,null,null,null,null,null,null,null,null,null,null,null,null,null,null,null,null,null,{"$f":"$B$20","v":87},"","",0,0,0,0,0,1,0,{"$f":"IFERROR($E20*$AH105,0)","v":0},{"$error":"#DIV/0!"},3,1]
[null,null,null,null,null,null,null,null,null,null,null,null,null,null,null,null,null,null,null,null,null,null,null,null,null,null,null,null,null,"VS (%)","TS (%)","BMP (m3/t VS)","CH4 (%)",{"$f":"SUM(AH100:AH105)","v":0},null,null,{"$f":"SUM(AK100:AK105)","v":0}]
[null,null,null,null,null,null,null,null,null,null,null,null,null,null,null,null,null,null,null,null,null,null,null,null,null,null,null,null,{"$f":"title256","v":"Mixture"},{"$f":"SUMPRODUCT(AD100:AD105,$AH$100:$AH$105)/$AH$106","v":{"$error":"#DIV/0!"}},{"$f":"ROUND(SUMPRODUCT(AE100:AE105,$AH$100:$AH$105)/$AH$106,2)","v":{"$error":"#DIV/0!"}},{"$f":"SUMPRODUCT(AF100:AF105,$AH$100:$AH$105)/$AH$106","v":{"$error":"#DIV/0!"}},{"$f":"ROUND(SUMPRODUCT(AG100:AG105,$AH$100:$AH$105)/$AH$106,2)","v":{"$error":"#DIV/0!"}}]
[]
[null,null,null,null,null,null,null,null,null,null,null,null,null,null,null,null,null,null,null,null,null,null,null,null,null,null,null,null,"Hashimoto's kinetic model"]
[null,null,null,null,null,null,null,null,null,null,null,null,null,null,null,null,null,null,null,null,null,null,null,null,null,null,null,null,"Description",{"$f":"title27","v":"Unit"},null,null,null,null,null,null,{"$f":"title263","v":"Feedstock Price (USD/t)"},null,{"$f":"SUMPRODUCT(AJ100:AJ105,AL100:AL105)","v":{"$error":"#DIV/0!"}}]
[null,null,null,null,null,null,null,null,null,null,null,null,null,null,null,null,null,null,null,null,null,null,null,null,null,null,null,"γ'","Volumetric CH4 production rate","m3 CH4/day/m3 feed/day"]
[null,null,null,null,null,null,null,null,null,null,null,null,null,null,null,null,null,null,null,null,null,null,null,null,null,null,null,"Bo","BMP","m3/t VS"]
[null,null,null,null,null,null,null,null,null,null,null,null,null,null,null,null,null,null,null,null,null,null,null,null,null,null,null,"So'","Influent VS concentration","t VS/m3"]
[null,null,null,null,null,null,null,null,null,null,null,null,null,null,null,null,null,null,null,null,null,null,null,null,null,null,null,"µm","Maximum specific growth rate/day","1/day","µm=0.013T-0.129",null,null,null,null,null,"TS (%)",null,null,{"$f":"title584","v":"HRT (days)"}]
[null,null,null,null,null,null,null,null,null,null,null,null,null,null,null,null,null,null,null,null,null,null,null,null,null,null,null,"HRT","Hydraulic Retention Times","day",{"$f":"COST_PS4!$M$16","v":0},null,null,null,null,null,"min","max","Average","Cold","Warm","Dilution",null,"Efficiency"]
[null,null,null,null,null,null,null,null,null,null,null,null,null,null,null,null,null,null,null,null,null,null,null,null,null,null,null,"k","Knetic parameter","dimesionless","k = 0.6+0.0206exp(0.051*vs*ts)",null,"Assumption = these equation applies for all fs",null,null,"CSTR",0.02,0.2,{"$f":"AVERAGE(AK116:AL116)","v":0.11},15,40,{"$f":"IF($AE$107<=$AL116,0%,IF($AE$107>$AL116,$AM116))","v":{"$error":"#DIV/0!"}},{"$f":"IF(AP116=0%,TRUE,FALSE)","v":{"$error":"#DIV/0!"}},0.8]
[null,null,null,null,null,null,null,null,null,null,null,null,null,null,null,null,null,null,null,null,null,null,null,null,null,null,null,null,"Average Temp",{"$f":"AVERAGE(F9:Q9)","v":{"$error":"#DIV/0!"}},null,null,null,null,null,{"$f":"title530","v":"Plug Flow"},0.2,0.35,{"$f":"AVERAGE(AK117:AL117)","v":0.27500000000000002},18,20,{"$f":"IF($AE$107<=$AL117,0%,IF($AE$107>$AL117,$AM117))","v":{"$error":"#DIV/0!"}},{"$f":"IF(AP117=0%,TRUE,FALSE)","v":{"$error":"#DIV/0!"}},0.8]
[null,null,null,null,null,null,null,null,null,null,null,null,null,null,null,null,null,null,null,null,null,null,null,null,null,null,null,null,null,null,null,null,null,null,null,"UASB",0,0.02,{"$f":"AVERAGE(AK118:AL118)","v":0.01},1,5,{"$f":"IF($AE$107<=$AL118,0%,IF($AE$107>$AL118,$AM118))","v":{"$error":"#DIV/0!"}},{"$f":"IF(AP118=0%,TRUE,FALSE)","v":{"$error":"#DIV/0!"}},0.9]
[null,null,null,null,null,null,null,null,null,null,null,null,null,null,null,null,null,null,null,null,null,null,null,null,null,null,null,null,null,null,null,null,null,null,null,{"$f":"title531","v":"Batch"},0.35,0.5,{"$f":"AVERAGE(AK119:AL119)","v":0.42499999999999999},40,60,{"$f":"$AE$107","v":{"$error":"#DIV/0!"}},{"$f":"IF(AP119=0%,TRUE,FALSE)","v":{"$error":"#DIV/0!"}},0.75]
[null,null,null,null,null,null,null,null,null,null,null,null,null,null,null,null,null,null,null,null,null,null,null,null,null,null,null,"Biogas"]
[null,null,null,null,null,null,null,null,null,null,null,null,null,null,null,null,null,null,null,null,null,null,null,null,null,null,null,null,"k",{"$f":"0.6+0.0206*EXP(0.051*$AD$107*$AE$107*100)","v":{"$error":"#DIV/0!"}},"Usage % digesters",0.8]
[null,null,null,null,null,null,null,null,null,null,null,null,null,null,null,null,null,null,null,null,null,null,null,null,null,null,null,null,"µm",{"$f":"0.013*$AO$102-0.129","v":0.35849999999999999},"Target Ts(%)",{"$f":"IF(VLOOKUP(COST_PS4!$L$10,Planner_PS4!$AJ$116:$AQ$119,7,FALSE)=0%,$AE$107,VLOOKUP(COST_PS4!$L$10,Planner_PS4!$AJ$116:$AQ$119,7,FALSE))","v":{"$error":"#DIV/0!"}},{"$f":"AD133/(AD133+AD136)","v":{"$error":"#DIV/0!"}}]
[null,null,null,null,null,null,null,null,null,null,null,null,null,null,null,null,null,null,null,null,null,null,null,null,null,null,null,null,"γ'",{"$f":"AF107*AE107*AD107*(1-(AD121/(AE115*AD122-1+AD121)))","v":{"$error":"#DIV/0!"}}]
[null,null,null,null,null,null,null,null,null,null,null,null,null,null,null,null,null,null,null,null,null,null,null,null,null,null,null,"Density Mixture",1,"t Feed/m3","Cp MIXTURE",{"$f":"4.17*(1-0.00812*$AE$107)","v":{"$error":"#DIV/0!"}},"kJ7kg°C"]
[null,null,null,null,null,null,null,null,null,null,null,null,null,null,null,null,null,null,null,null,null,null,null,null,null,null,null,null,null,null,null,null,null,"Uses"]
[null,null,null,null,null,null,null,null,null,null,null,null,null,null,null,null,null,null,null,null,null,null,null,null,null,null,null,null,null,{"$f":"title248&\" 1\"","v":"Size 1"},{"$f":"title248&\" 2\"","v":"Size 2"},{"$f":"title248&\" 3\"","v":"Size 3"},{"$f":"title248&\" 4\"","v":"Size 4"}]
[null,null,null,null,null,null,null,null,null,null,null,null,null,null,null,null,null,null,null,null,null,null,null,null,null,null,null,{"$f":"ROW(AD127)","v":127},{"$f":"title671","v":"m3 Methane/day"},{"$f":"'New Feedstock'!B$27","v":800},{"$f":"'New Feedstock'!C$27","v":140},{"$f":"'New Feedstock'!D$27","v":220},{"$f":"'New Feedstock'!E$27","v":960},4,5,{"$f":"\"USD/m3 \"&PROPER(title512)","v":"USD/m3 Biogas"},{"$f":"'Data entry needs'!$L$100","v":0}]
[null,null,null,null,null,null,null,null,null,null,null,null,null,null,null,null,null,null,null,null,null,null,null,null,null,null,null,{"$f":"ROW(AD128)","v":128},"kWe",{"$f":"'New Feedstock'!B$28","v":100},{"$f":"'New Feedstock'!C$28","v":105},{"$f":"'New Feedstock'!D$28","v":115},{"$f":"'New Feedstock'!E$28","v":120},1,3,"USD/kWh",{"$f":"COST_PS4!$M$35","v":0}]
[null,null,null,null,null,null,null,null,null,null,null,null,null,null,null,null,null,null,null,null,null,null,null,null,null,null,null,{"$f":"ROW(AD129)","v":129},"GJ/day",21.6,86.4,864,4320,2,null,{"$f":"title618","v":"USD/m3 methane"},{"$f":"'Data entry needs'!$L$100","v":0}]
[null,null,null,null,null,null,null,null,null,null,null,null,null,null,null,null,null,null,null,null,null,null,null,null,null,null,null,130,{"$f":"title260","v":"m3 Biogas/day"},{"$f":"'New Feedstock'!B$29*60%/$AG$107","v":{"$error":"#DIV/0!"}},{"$f":"'New Feedstock'!C$29*60%/$AG$107","v":{"$error":"#DIV/0!"}},{"$f":"'New Feedstock'!D$29*60%/$AG$107","v":{"$error":"#DIV/0!"}},{"$f":"'New Feedstock'!E$29*60%/$AG$107","v":{"$error":"#DIV/0!"}}]
[null,null,null,null,null,null,null,null,null,null,null,null,null,null,null,null,null,null,null,null,null,null,null,null,null,null,null,"Feed Rate Vol","m3 Feed/day",{"$f":"AD127/$AD$123/VLOOKUP(COST_PS4!$L$10,Planner_PS4!$AJ$116:$AR$119,9,FALSE)","v":{"$error":"#DIV/0!"}},{"$f":"AE127/$AD$123/VLOOKUP(COST_PS4!$L$10,Planner_PS4!$AJ$116:$AR$119,9,FALSE)","v":{"$error":"#DIV/0!"}},{"$f":"AF127/$AD$123/VLOOKUP(COST_PS4!$L$10,Planner_PS4!$AJ$116:$AR$119,9,FALSE)","v":{"$error":"#DIV/0!"}},{"$f":"AG127/$AD$123/VLOOKUP(COST_PS4!$L$10,Planner_PS4!$AJ$116:$AR$119,9,FALSE)","v":{"$error":"#DIV/0!"}}]
[null,null,null,null,null,null,null,null,null,null,null,null,null,null,null,null,null,null,null,null,null,null,null,null,null,null,null,"Feed Rate Mass","t Feed/day",{"$f":"AD127/$AD$123","v":{"$error":"#DIV/0!"}},{"$f":"AE127/$AD$123","v":{"$error":"#DIV/0!"}},{"$f":"AF127/$AD$123","v":{"$error":"#DIV/0!"}},{"$f":"AG127/$AD$123","v":{"$error":"#DIV/0!"}}]
[null,null,null,null,null,null,null,null,null,null,null,null,null,null,null,null,null,null,null,null,null,null,null,null,null,null,null,null,"t Feed/ year",{"$f":"AD$132*'Data entry needs'!$L$100","v":{"$error":"#DIV/0!"}},{"$f":"AE$132*'Data entry needs'!$L$100","v":{"$error":"#DIV/0!"}},{"$f":"AF$132*'Data entry needs'!$L$100","v":{"$error":"#DIV/0!"}},{"$f":"AG$132*'Data entry needs'!$L$100","v":{"$error":"#DIV/0!"}}]
[null,null,null,null,null,null,null,null,null,null,null,null,null,null,null,null,null,null,null,null,null,null,null,null,null,null,null,"Volume","m3",{"$f":"AD131*$AE$115/$AF$121","v":{"$error":"#DIV/0!"}},{"$f":"AE131*$AE$115/$AF$121","v":{"$error":"#DIV/0!"}},{"$f":"AF131*$AE$115/$AF$121","v":{"$error":"#DIV/0!"}},{"$f":"AG131*$AE$115/$AF$121","v":{"$error":"#DIV/0!"}}]
[null,null,null,null,null,null,null,null,null,null,null,null,null,null,null,null,null,null,null,null,null,null,null,null,null,null,null,"Water Initial","t water/year",{"$f":"AD133*$AE$107*(1/$AE$107-1)","v":{"$error":"#DIV/0!"}},{"$f":"AE133*$AE$107*(1/$AE$107-1)","v":{"$error":"#DIV/0!"}},{"$f":"AF133*$AE$107*(1/$AE$107-1)","v":{"$error":"#DIV/0!"}},{"$f":"AG133*$AE$107*(1/$AE$107-1)","v":{"$error":"#DIV/0!"}}]
[null,null,null,null,null,null,null,null,null,null,null,null,null,null,null,null,null,null,null,null,null,null,null,null,null,null,null,"Water Demand","t water/year",{"$f":"(AD133*$AE$107/$AF$122)-AD135-AD133*$AE$107","v":{"$error":"#DIV/0!"}},{"$f":"AE133*$AE$107/$AF$122-AE135-AE133*$AE$107","v":{"$error":"#DIV/0!"}},{"$f":"AF133*$AE$107/$AF$122-AF135-AF133*$AE$107","v":{"$error":"#DIV/0!"}},{"$f":"AG133*$AE$107/$AF$122-AG135-AG133*$AE$107","v":{"$error":"#DIV/0!"}}]
[null,null,null,null,null,null,null,null,null,null,null,null,null,null,null,null,null,null,null,null,null,null,null,null,null,null,null,{"$f":"title256","v":"Mixture"},"t mixture/year",{"$f":"AD133+AD136","v":{"$error":"#DIV/0!"}},{"$f":"AE133+AE136","v":{"$error":"#DIV/0!"}},{"$f":"AF133+AF136","v":{"$error":"#DIV/0!"}},{"$f":"AG133+AG136","v":{"$error":"#DIV/0!"}}]
[]
[null,null,null,null,null,null,null,null,null,null,null,null,null,null,null,null,null,null,null,null,null,null,null,null,null,null,"Energy Consumption"]
[null,null,null,null,null,null,null,null,null,null,null,null,null,null,null,null,null,null,null,null,null,null,null,null,null,null,{"$f":"title51","v":"Heat"},{"$f":"title204","v":"Jan"},{"$f":"title205","v":"Feb"},{"$f":"title206","v":"Mar"},{"$f":"title207","v":"Apr"},{"$f":"title208","v":"May"},{"$f":"title209","v":"Jun"},{"$f":"title210","v":"Jul"},{"$f":"title211","v":"Aug"},{"$f":"title212","v":"Sep"},{"$f":"title213","v":"Oct"},{"$f":"title214","v":"Nov"},{"$f":"title215","v":"Dec"}]
[null,null,null,null,null,null,null,null,null,null,null,null,null,null,null,null,null,null,null,null,null,null,null,null,null,null,"Enviromental Temp",{"$f":"F$9","v":0},{"$f":"G$9","v":0},0,0,0,0,0,0,0,0,0,0]
[null,null,null,null,null,null,null,null,null,null,null,null,null,null,null,null,null,null,null,null,null,null,null,null,null,null,"Operation. Temp",{"$f":"$AO$102","v":37.5},37.5,37.5,37.5,37.5,37.5,37.5,37.5,37.5,37.5,37.5,37.5]
[null,null,null,null,null,null,null,null,null,null,null,null,null,null,null,null,null,null,null,null,null,null,null,null,null,null,"Cp' (MJ/t)",{"$f":"$AF$124*(AB142-AB141)","v":{"$error":"#DIV/0!"}},{"$f":"$AF$124*(AC142-AC141)","v":{"$error":"#DIV/0!"}},{"$error":"#DIV/0!"},{"$error":"#DIV/0!"},{"$error":"#DIV/0!"},{"$error":"#DIV/0!"},{"$error":"#DIV/0!"},{"$error":"#DIV/0!"},{"$error":"#DIV/0!"},{"$error":"#DIV/0!"},{"$error":"#DIV/0!"},{"$error":"#DIV/0!"},{"$f":"\"Total (\"&title305&\")\"","v":"Total (GJ/year)"}]
[null,null,null,null,null,null,null,null,null,null,null,null,null,null,null,null,null,null,null,null,null,null,null,null,null,null,"Size 1 (MJ/month)",{"$f":"$AD$137*AB$143/12","v":{"$error":"#DIV/0!"}},{"$error":"#DIV/0!"},{"$error":"#DIV/0!"},{"$error":"#DIV/0!"},{"$error":"#DIV/0!"},{"$error":"#DIV/0!"},{"$error":"#DIV/0!"},{"$error":"#DIV/0!"},{"$error":"#DIV/0!"},{"$error":"#DIV/0!"},{"$error":"#DIV/0!"},{"$error":"#DIV/0!"},{"$f":"SUM(AB144:AM144)/1000","v":{"$error":"#DIV/0!"}}]
[null,null,null,null,null,null,null,null,null,null,null,null,null,null,null,null,null,null,null,null,null,null,null,null,null,null,"Size 2 (MJ/month)",{"$f":"$AE$137*AB$143/12","v":{"$error":"#DIV/0!"}},{"$error":"#DIV/0!"},{"$error":"#DIV/0!"},{"$error":"#DIV/0!"},{"$error":"#DIV/0!"},{"$error":"#DIV/0!"},{"$error":"#DIV/0!"},{"$error":"#DIV/0!"},{"$error":"#DIV/0!"},{"$error":"#DIV/0!"},{"$error":"#DIV/0!"},{"$error":"#DIV/0!"},{"$f":"SUM(AB145:AM145)/1000","v":{"$error":"#DIV/0!"}}]
[null,null,null,null,null,null,null,null,null,null,null,null,null,null,null,null,null,null,null,null,null,null,null,null,null,null,"Size 3 (MJ/month)",{"$f":"$AF$137*AB$143/12","v":{"$error":"#DIV/0!"}},{"$error":"#DIV/0!"},{"$error":"#DIV/0!"},{"$error":"#DIV/0!"},{"$error":"#DIV/0!"},{"$error":"#DIV/0!"},{"$error":"#DIV/0!"},{"$error":"#DIV/0!"},{"$error":"#DIV/0!"},{"$error":"#DIV/0!"},{"$error":"#DIV/0!"},{"$error":"#DIV/0!"},{"$f":"SUM(AB146:AM146)/1000","v":{"$error":"#DIV/0!"}}]
[null,null,null,null,null,null,null,null,null,null,null,null,null,null,null,null,null,null,null,null,null,null,null,null,null,null,"Size 4 (MJ/month)",{"$f":"$AG$137*AB$143/12","v":{"$error":"#DIV/0!"}},{"$error":"#DIV/0!"},{"$error":"#DIV/0!"},{"$error":"#DIV/0!"},{"$error":"#DIV/0!"},{"$error":"#DIV/0!"},{"$error":"#DIV/0!"},{"$error":"#DIV/0!"},{"$error":"#DIV/0!"},{"$error":"#DIV/0!"},{"$error":"#DIV/0!"},{"$error":"#DIV/0!"},{"$f":"SUM(AB147:AM147)/1000","v":{"$error":"#DIV/0!"}}]
[]
[null,null,null,null,null,null,null,null,null,null,null,null,null,null,null,null,null,null,null,null,null,null,null,null,null,null,"Electricity (kWh/year)",{"$f":"title248&\" 1\"","v":"Size 1"},{"$f":"title248&\" 2\"","v":"Size 2"},{"$f":"title248&\" 3\"","v":"Size 3"},{"$f":"title248&\" 4\"","v":"Size 4"}]
[null,null,null,null,null,null,null,null,null,null,null,null,null,null,null,null,null,null,null,null,null,null,null,null,null,null,"CSTR",{"$f":"(7.29+2.16)*AD$133+6.3*AD$134/100","v":{"$error":"#DIV/0!"}},{"$f":"(7.29+2.16)*AE$133+6.3*AE$134/100","v":{"$error":"#DIV/0!"}},{"$f":"(7.29+2.16)*AF$133+6.3*AF$134/100","v":{"$error":"#DIV/0!"}},{"$f":"(7.29+2.16)*AG$133+6.3*AG$134/100","v":{"$error":"#DIV/0!"}}]
[null,null,null,null,null,null,null,null,null,null,null,null,null,null,null,null,null,null,null,null,null,null,null,null,null,null,"UASB",{"$f":"250*AD134","v":{"$error":"#DIV/0!"}},{"$f":"250*AE134","v":{"$error":"#DIV/0!"}},{"$f":"250*AF134","v":{"$error":"#DIV/0!"}},{"$f":"250*AG134","v":{"$error":"#DIV/0!"}}]
[null,null,null,null,null,null,null,null,null,null,null,null,null,null,null,null,null,null,null,null,null,null,null,null,null,null,{"$f":"title530","v":"Plug Flow"},{"$f":"12.25*AD133","v":{"$error":"#DIV/0!"}},{"$f":"12.25*AE133","v":{"$error":"#DIV/0!"}},{"$f":"12.25*AF133","v":{"$error":"#DIV/0!"}},{"$f":"12.25*AG133","v":{"$error":"#DIV/0!"}}]
[null,null,null,null,null,null,null,null,null,null,null,null,null,null,null,null,null,null,null,null,null,null,null,null,null,null,{"$f":"title531","v":"Batch"},{"$f":"(7.29+2.16)*AD$133+6.3*AD$134/100","v":{"$error":"#DIV/0!"}},{"$f":"(7.29+2.16)*AE$133+6.3*AE$134/100","v":{"$error":"#DIV/0!"}},{"$f":"(7.29+2.16)*AF$133+6.3*AF$134/100","v":{"$error":"#DIV/0!"}},{"$f":"(7.29+2.16)*AG$133+6.3*AG$134/100","v":{"$error":"#DIV/0!"}}]
[]
[null,null,null,null,null,null,null,null,null,null,null,null,null,null,null,null,null,null,null,null,null,null,null,null,null,null,"Energy Potential - Cogeneration"]
[null,null,null,null,null,null,null,null,null,null,null,null,null,null,null,null,null,null,null,null,null,null,null,null,null,null,null,{"$f":"title248&\" 1\"","v":"Size 1"},{"$f":"title248&\" 2\"","v":"Size 2"},{"$f":"title248&\" 3\"","v":"Size 3"},{"$f":"title248&\" 4\"","v":"Size 4"},null,"CV",{"$f":"(0.3594*$AG$107*100-0.024)/3.6","v":{"$error":"#DIV/0!"}},"kWh/m3 biogas","Y = AX^4+BX^3+CX^2+DX+E","(kg/t)"]
[null,null,null,null,null,null,null,null,null,null,null,null,null,null,null,null,null,null,null,null,null,null,null,null,null,null,"Energy Potential",{"$f":"$AH$156*AD$130*'Data entry needs'!$L$100*3.6","v":{"$error":"#DIV/0!"}},{"$f":"$AH$156*AE$130*'Data entry needs'!$L$100*3.6","v":{"$error":"#DIV/0!"}},{"$f":"$AH$156*AF$130*'Data entry needs'!$L$100*3.6","v":{"$error":"#DIV/0!"}},{"$f":"$AH$156*AG$130*'Data entry needs'!$L$100*3.6","v":{"$error":"#DIV/0!"}},{"$f":"title306","v":"MJ/year"},"Thermal Eff.",0.6,null,null,"A","B","C","D","E"]
[null,null,null,null,null,null,null,null,null,null,null,null,null,null,null,null,null,null,null,null,null,null,null,null,null,null,{"$f":"title51","v":"Heat"},{"$f":"AB157*($AH$157-$AH$158)/(1-($AH$158/$AH$159))/1000","v":{"$error":"#DIV/0!"}},{"$f":"AC157*($AH$157-$AH$158)/(1-($AH$158/$AH$159))/1000","v":{"$error":"#DIV/0!"}},{"$f":"AD157*($AH$157-$AH$158)/(1-($AH$158/$AH$159))/1000","v":{"$error":"#DIV/0!"}},{"$f":"AE157*($AH$157-$AH$158)/(1-($AH$158/$AH$159))/1000","v":{"$error":"#DIV/0!"}},{"$f":"title305","v":"GJ/year"},"Electrical Eff.",0.4,null,"NH3-N",2.6264300000000001E-4,-5.29693E-3,3.2159399999999998E-2,-5.2911699999999999E-2,0.57911000000000001]
[null,null,null,null,null,null,null,null,null,null,null,null,null,null,null,null,null,null,null,null,null,null,null,null,null,null,{"$f":"title35","v":"Electricity"},{"$f":"(AB157*$AH$157-AB158*1000)/3.6","v":{"$error":"#DIV/0!"}},{"$f":"(AC157*$AH$157-AC158*1000)/3.6","v":{"$error":"#DIV/0!"}},{"$f":"(AD157*$AH$157-AD158*1000)/3.6","v":{"$error":"#DIV/0!"}},{"$f":"(AE157*$AH$157-AE158*1000)/3.6","v":{"$error":"#DIV/0!"}},{"$f":"title304","v":"kWh/year"},"Alpha",0.75,null,"P2O5",1.1614599999999999E-2,-9.3845899999999996E-2,0.21317700000000001,-0.12223199999999999,0.58016500000000004]
[null,null,null,null,null,null,null,null,null,null,null,null,null,null,null,null,null,null,null,null,null,null,null,null,null,null,null,null,null,null,null,null,null,null,null,"K2O",1.14288E-4,-2.09458E-3,1.2713199999999999E-2,-2.1764599999999999E-2,0.57522600000000002]
[null,null,null,null,null,null,null,null,null,null,null,null,null,null,null,null,null,null,null,null,null,null,null,null,null,null,"Energy Potential-Electricity"]
[null,null,null,null,null,null,null,null,null,null,null,null,null,null,null,null,null,null,null,null,null,null,null,null,null,null,"Energy Potential",{"$f":"$AH$156*AD$130*'Data entry needs'!$L$100","v":{"$error":"#DIV/0!"}},{"$f":"$AH$156*AE$130*'Data entry needs'!$L$100","v":{"$error":"#DIV/0!"}},{"$f":"$AH$156*AF$130*'Data entry needs'!$L$100","v":{"$error":"#DIV/0!"}},{"$f":"$AH$156*AG$130*'Data entry needs'!$L$100","v":{"$error":"#DIV/0!"}},{"$f":"title304","v":"kWh/year"},"Electrical Eff. Only",0.3,null,null,"Efficency of Separation"]
[null,null,null,null,null,null,null,null,null,null,null,null,null,null,null,null,null,null,null,null,null,null,null,null,null,null,{"$f":"title35","v":"Electricity"},{"$f":"AB162*$AH$162","v":{"$error":"#DIV/0!"}},{"$f":"AC162*$AH$162","v":{"$error":"#DIV/0!"}},{"$f":"AD162*$AH$162","v":{"$error":"#DIV/0!"}},{"$f":"AE162*$AH$162","v":{"$error":"#DIV/0!"}},{"$f":"title304","v":"kWh/year"},null,null,null,null,"TS (%)","N(%)","P(%)","K(%)","Energy Consumption (kWh/t)","Recovery (%)"]
[null,null,null,null,null,null,null,null,null,null,null,null,null,null,null,null,null,null,null,null,null,null,null,null,null,null,null,null,null,null,null,null,null,null,null,{"$f":"title177","v":"Sedimentator"},0.05,{"$f":"AVERAGE(25%,35%)","v":0.3},0.3,0.2,0,0.19]
[null,null,null,null,null,null,null,null,null,null,null,null,null,null,null,null,null,null,null,null,null,null,null,null,null,null,"Connection to Natural Gas",null,null,null,null,null,null,null,null,{"$f":"title178","v":"Floater"},0.05,{"$f":"AVERAGE(30%,40%)","v":0.35},0.3,0.2,0,0.2]
[null,null,null,null,null,null,null,null,null,null,null,null,null,null,null,null,null,null,null,null,null,null,null,null,null,null,{"$f":"title47","v":"Natural Gas"},{"$f":"AD$127*'Data entry needs'!$L$100/97%","v":0},{"$f":"AE$127*'Data entry needs'!$L$100/97%","v":0},{"$f":"AF$127*'Data entry needs'!$L$100/97%","v":0},{"$f":"AG$127*'Data entry needs'!$L$100/97%","v":0},{"$f":"title307","v":"m3/year"},null,null,null,{"$f":"title179","v":"Centrifuge"},0.3,0.3,0.24,0.36,7,0.68]
[null,null,null,null,null,null,null,null,null,null,null,null,null,null,null,null,null,null,null,null,null,null,null,null,null,null,null,null,null,null,null,null,null,null,null,{"$f":"title180","v":"Belt Press"},0.25,0.32,0.28999999999999998,0.27,0.12,0.56000000000000005]
[null,null,null,null,null,null,null,null,null,null,null,null,null,null,null,null,null,null,null,null,null,null,null,null,null,null,"Energy Potential-Heating and Cooking",null,null,null,null,null,null,null,null,{"$f":"title181","v":"Screen Sieves"},0.1,0.25,0.26,0.17,0.9,0.2]
[null,null,null,null,null,null,null,null,null,null,null,null,null,null,null,null,null,null,null,null,null,null,null,null,null,null,null,null,null,null,null,null,null,null,null,{"$f":"title182","v":"Screw Press"},0.4,0.28000000000000003,0.33,0.18,1.1000000000000001,0.65]
[null,null,null,null,null,null,null,null,null,null,null,null,null,null,null,null,null,null,null,null,null,null,null,null,null,null,{"$f":"title626","v":"Digestate"},{"$f":"'Data entry needs'!$F$110","v":"Please Select"},"Solids Recovered",{"$f":"VLOOKUP($AB$170,$AJ$164:$AP$169,7,FALSE)","v":{"$error":"#N/A"}},"TS Digestate (%)",{"$f":"VLOOKUP($AB$170,$AJ$164:$AP$169,2,FALSE)","v":{"$error":"#N/A"}}]
[null,null,null,null,null,null,null,null,null,null,null,null,null,null,null,null,null,null,null,null,null,null,null,null,null,null,null,{"$f":"title248&\" 1\"","v":"Size 1"},{"$f":"title248&\" 2\"","v":"Size 2"},{"$f":"title248&\" 3\"","v":"Size 3"},{"$f":"title248&\" 4\"","v":"Size 4"},null,"Molecular Weight"]
[null,null,null,null,null,null,null,null,null,null,null,null,null,null,null,null,null,null,null,null,null,null,null,null,null,null,"Residual Solids Recov",{"$f":"AD$133*(1-$AD$107)*$AE$107*$AD$170","v":{"$error":"#DIV/0!"}},{"$f":"AE$133*(1-$AD$107)*$AE$107*$AD$170","v":{"$error":"#DIV/0!"}},{"$f":"AF$133*(1-$AD$107)*$AE$107*$AD$170","v":{"$error":"#DIV/0!"}},{"$f":"AG$133*(1-$AD$107)*$AE$107*$AD$170","v":{"$error":"#DIV/0!"}},{"$f":"title604","v":"t/yr"},"N",14.0067,"P205",{"$f":"AH174*2+AH176*5","v":141.94452200000001}]
[null,null,null,null,null,null,null,null,null,null,null,null,null,null,null,null,null,null,null,null,null,null,null,null,null,null,"N",{"$f":"($AK158*$AG$107^4+$AL158*$AG$107^3+$AM158*$AG$107^2+$AN158*$AG$107+$AO158)*AB$172*VLOOKUP($AB$170,$AJ$164:$AN$169,3,FALSE)","v":{"$error":"#DIV/0!"}},{"$error":"#DIV/0!"},{"$error":"#DIV/0!"},{"$error":"#DIV/0!"},{"$f":"title604","v":"t/yr"},"H",1.0079400000000001,"K20",{"$f":"AH175*2+AH176","v":94.195999999999998}]
[null,null,null,null,null,null,null,null,null,null,null,null,null,null,null,null,null,null,null,null,null,null,null,null,null,null,"P2O5",{"$error":"#DIV/0!"},{"$error":"#DIV/0!"},{"$error":"#DIV/0!"},{"$error":"#DIV/0!"},{"$f":"title604","v":"t/yr"},"P",30.973761]
[null,null,null,null,null,null,null,null,null,null,null,null,null,null,null,null,null,null,null,null,null,null,null,null,null,null,"K2O",{"$error":"#DIV/0!"},{"$error":"#DIV/0!"},{"$error":"#DIV/0!"},{"$error":"#DIV/0!"},{"$f":"title604","v":"t/yr"},"K",39.098300000000002]
[null,null,null,null,null,null,null,null,null,null,null,null,null,null,null,null,null,null,null,null,null,null,null,null,null,null,{"$f":"title658","v":"Ash"},{"$f":"(AD$133-AD$135)*$AE$107*$AD$107*$AD$170/10","v":{"$error":"#DIV/0!"}},{"$f":"(AE$133-AE$135)*$AE$107*$AD$107*$AD$170/10","v":{"$error":"#DIV/0!"}},{"$f":"(AF$133-AF$135)*$AE$107*$AD$107*$AD$170/10","v":{"$error":"#DIV/0!"}},{"$f":"(AG$133-AG$135)*$AE$107*$AD$107*$AD$170/10","v":{"$error":"#DIV/0!"}},{"$f":"title604","v":"t/yr"},"O",15.9994]
[null,null,null,null,null,null,null,null,null,null,null,null,null,null,null,null,null,null,null,null,null,null,null,null,null,null,"Solids Recovered",{"$f":"SUM(AB173:AB176)","v":{"$error":"#DIV/0!"}},{"$f":"SUM(AC173:AC176)","v":{"$error":"#DIV/0!"}},{"$f":"SUM(AD173:AD176)","v":{"$error":"#DIV/0!"}},{"$f":"SUM(AE173:AE176)","v":{"$error":"#DIV/0!"}}]
[null,null,null,null,null,null,null,null,null,null,null,null,null,null,null,null,null,null,null,null,null,null,null,null,null,null,"Total digestate",{"$f":"AB177/$AF$170","v":{"$error":"#DIV/0!"}},{"$f":"AC177/$AF$170","v":{"$error":"#DIV/0!"}},{"$f":"AD177/$AF$170","v":{"$error":"#DIV/0!"}},{"$f":"AE177/$AF$170","v":{"$error":"#DIV/0!"}}]
[null,null,null,null,null,null,null,null,null,null,null,null,null,null,null,null,null,null,null,null,null,null,null,null,null,null,"Energy (kWh/t)",{"$f":"VLOOKUP($AB$170,$AJ$164:$AP$169,6,FALSE)*AB178","v":{"$error":"#N/A"}},{"$f":"VLOOKUP($AB$170,$AJ$164:$AP$169,6,FALSE)*AC178","v":{"$error":"#N/A"}},{"$f":"VLOOKUP($AB$170,$AJ$164:$AP$169,6,FALSE)*AD178","v":{"$error":"#N/A"}},{"$f":"VLOOKUP($AB$170,$AJ$164:$AP$169,6,FALSE)*AE178","v":{"$error":"#N/A"}},{"$f":"title304","v":"kWh/year"}]
[null,null,null,null,null,null,null,null,null,null,null,null,null,null,null,null,null,null,null,null,null,null,null,null,null,null,"N",{"$f":"AB173","v":{"$error":"#DIV/0!"}},{"$f":"AC173","v":{"$error":"#DIV/0!"}},{"$f":"AD173","v":{"$error":"#DIV/0!"}},{"$f":"AE173","v":{"$error":"#DIV/0!"}},{"$f":"AF173","v":"t/yr"}]
[null,null,null,null,null,null,null,null,null,null,null,null,null,null,null,null,null,null,null,null,null,null,null,null,null,null,"P",{"$f":"AB174*$AH$174/$AJ$172","v":{"$error":"#DIV/0!"}},{"$f":"AC174*$AH$174/$AJ$172","v":{"$error":"#DIV/0!"}},{"$f":"AD174*$AH$174/$AJ$172","v":{"$error":"#DIV/0!"}},{"$f":"AE174*$AH$174/$AJ$172","v":{"$error":"#DIV/0!"}},{"$f":"AF174","v":"t/yr"}]
[null,null,null,null,null,null,null,null,null,null,null,null,null,null,null,null,null,null,null,null,null,null,null,null,null,null,"K",{"$f":"AB175*$AH$175/$AJ$173","v":{"$error":"#DIV/0!"}},{"$f":"AC175*$AH$175/$AJ$173","v":{"$error":"#DIV/0!"}},{"$f":"AD175*$AH$175/$AJ$173","v":{"$error":"#DIV/0!"}},{"$f":"AE175*$AH$175/$AJ$173","v":{"$error":"#DIV/0!"}},{"$f":"AF175","v":"t/yr"}]
[null,null,null,null,null,null,null,null,null,null,null,null,null,null,null,null,null,null,null,null,null,null,null,null,null,null,{"$f":"title658","v":"Ash"},{"$f":"AB176","v":{"$error":"#DIV/0!"}},{"$f":"AC176","v":{"$error":"#DIV/0!"}},{"$f":"AD176","v":{"$error":"#DIV/0!"}},{"$f":"AE176","v":{"$error":"#DIV/0!"}},{"$f":"AF176","v":"t/yr"}]
[null,null,null,null,null,null,null,null,null,null,null,null,null,null,null,null,null,null,null,null,null,null,null,null,null,null,"Total",{"$f":"SUM(AB180:AB183)","v":{"$error":"#DIV/0!"}},{"$f":"SUM(AC180:AC183)","v":{"$error":"#DIV/0!"}},{"$f":"SUM(AD180:AD183)","v":{"$error":"#DIV/0!"}},{"$f":"SUM(AE180:AE183)","v":{"$error":"#DIV/0!"}},{"$f":"AF177","v":0}]
[null,null,null,null,null,null,null,null,null,null,null,null,null,null,null,null,null,null,null,null,null,null,null,null,null,null,"%"]
[null,null,null,null,null,null,null,null,null,null,null,null,null,null,null,null,null,null,null,null,null,null,null,null,null,null,"N",{"$f":"AB180/AB$184","v":{"$error":"#DIV/0!"}}]
[null,null,null,null,null,null,null,null,null,null,null,null,null,null,null,null,null,null,null,null,null,null,null,null,null,null,"P",{"$f":"AB181/AB$184","v":{"$error":"#DIV/0!"}}]
[null,null,null,null,null,null,null,null,null,null,null,null,null,null,null,null,null,null,null,null,null,null,null,null,null,null,"K",{"$f":"AB182/AB$184","v":{"$error":"#DIV/0!"}}]
[null,null,null,null,null,null,null,null,null,null,null,null,null,null,null,null,null,null,null,null,null,null,null,null,null,null,{"$f":"title658","v":"Ash"},{"$f":"AB183/AB$184","v":{"$error":"#DIV/0!"}}]
[null,null,null,null,null,null,null,null,null,null,null,null,null,null,null,null,null,null,null,null,null,null,null,null,null,null,{"$f":"title602","v":"Moisture"},{"$f":"1-AF170","v":{"$error":"#N/A"}}]

{"sheet":"COST_PS1","index":13,"n_rows":134,"n_cols":38,"rows_kept":134,"cut":false,"hidden":false,"merged":[[5,3,5,5],[99,2,100,2],[99,3,100,3],[99,4,100,4],[99,5,99,12],[100,5,100,6],[100,7,100,8],[100,9,100,10],[100,11,100,12],[43,11,43,12],[52,2,53,2],[52,3,53,3],[36,2,37,2],[36,3,37,3],[45,2,46,2],[45,3,46,3],[108,5,108,12],[109,5,109,6],[33,9,33,10],[33,11,33,12],[2,2,2,12],[31,5,31,12],[32,5,32,6],[32,7,32,8],[32,9,32,10],[32,11,32,12],[7,6,7,7],[9,11,9,12],[9,9,9,10],[12,9,12,12],[9,6,9,7],[19,9,20,9],[43,5,43,6],[43,7,43,8],[43,9,43,10],[19,12,20,12],[19,11,20,11],[19,4,19,7],[19,10,20,10],[33,7,33,8],[60,11,60,12],[60,9,60,10],[60,7,60,8],[60,5,60,6],[62,2,63,2],[62,3,63,3],[62,4,63,4],[72,11,72,12],[74,2,75,2],[74,3,75,3],[74,4,75,4],[82,5,82,6],[82,7,82,8],[82,9,82,10],[82,11,82,12],[72,9,72,10],[72,5,72,6],[72,7,72,8],[97,9,97,10],[97,11,97,12],[89,9,89,10],[84,2,85,2],[84,3,85,3],[84,4,85,4],[89,5,89,6],[89,7,89,8],[92,3,93,3],[92,4,93,4],[97,2,97,4],[97,5,97,6],[97,7,97,8],[89,11,89,12],[92,2,93,2],[112,2,113,2],[112,3,113,3],[112,4,113,4],[109,7,109,8],[109,9,109,10],[109,11,109,12],[110,5,110,6],[110,7,110,8],[110,9,110,10],[110,11,110,12]]}
[]
[]
[null,null,{"$f":"title222&\" 1\"","v":" PROCESSING COSTS FOR PROCESS 1"}]
[]
[]
[null,null,{"$f":"title193","v":"Use white cells to input data"},{"$f":"title194","v":"Grey cells are used for calculations"}]
[]
[null,null,{"$f":"title223","v":"Summary of Feedstock Selected"},null,null,null,{"$f":"IF('Data entry needs'!$D$11,title230,IF('Data entry needs'!$F$11,title231,IF('Data entry needs'!$J$11,title230)))","v":"Biogas Properties"},null,null,{"$f":"title235","v":"Technical Parameters"}]
[]
[null,null,{"$f":"title224","v":"Type of Operation"},{"$f":"IF('Data entry needs'!$D$11,'Data entry needs'!$D$12,IF('Data entry needs'!$F$11,'Data entry needs'!$F$12,IF('Data entry needs'!$J$11,'Data entry needs'!$J$12)))","v":"Optimized Co-digestion"},{"$f":"title225","v":"Fs Available (t/yr)"},null,{"$f":"IF('Data entry needs'!$D$11,'Data entry needs'!$D$12,IF('Data entry needs'!$F$11,'Data entry needs'!$F$12,IF('Data entry needs'!$J$11,'Data entry needs'!$J$12)))","v":"Optimized Co-digestion"},null,null,{"$f":"title236","v":"Type of Fermentor"},null,"CSTR"]
[{"$f":"'Data entry needs'!$B$21","v":21},{"$f":"A11*Planner_PS1!$AH100","v":0},{"$f":"IF($B11=0,\"\",title226&\" - \"&INDIRECT(\"'Data entry needs'!$d\"&$B11)&\" :\")","v":""},{"$f":"IF($B11=0,\"\",INDIRECT(\"'Data entry needs'!$e\"&$B11))","v":""},{"$f":"IF($B11=0,\"\",INDIRECT(\"'Data entry needs'!$f\"&$B11))","v":""},null,{"$f":"IFERROR(title232&ROUND(Planner_PS1!$AD$107*100,0)&\"%\",\"\")","v":""},null,null,null,{"$f":"IFERROR(title237&VLOOKUP($L$10,Planner_PS1!$AJ$116:$AP$119,2,FALSE)*100&\"%\",\"\")","v":"Min. TS Allowed : 2%"},null,{"$f":"IFERROR(title238&VLOOKUP($L$10,Planner_PS1!$AJ$116:$AP$119,3,FALSE)*100&\"%\",\"\")","v":"Max. TS Allowed: 20%"}]
[{"$f":"A11+2","v":23},{"$f":"A12*Planner_PS1!$AH101","v":0},{"$f":"IF($B12=0,\"\",title227&\" - \"&INDIRECT(\"'Data entry needs'!$d\"&$B12)&\" :\")","v":""},"","",null,{"$f":"IFERROR(\"BMP (m^3 CH4/t VS) : \"&ROUND(Planner_PS1!$AF$107,0),\"\")","v":""},null,null,{"$f":"title239","v":"Temperature Regime (°C)"},null,"Mesophilic",{"$f":"IF($L$12=title241,AVERAGE(55,60),AVERAGE(35,40))","v":37.5}]
[{"$f":"A12+2","v":25},{"$f":"A13*Planner_PS1!$AH102","v":0},{"$f":"IF($B13=0,\"\",title228&\" - \"&INDIRECT(\"'Data entry needs'!$d\"&$B13)&\" :\")","v":""},"","",null,{"$f":"IFERROR(title233&ROUND(Planner_PS1!$AG$107*100,0)&\"%\",\"\")","v":""},null,null,{"$f":"IF(VLOOKUP($L$10,Planner_PS1!$AJ$116:$AQ$119,8,FALSE),title242,title243&VLOOKUP($L$10,Planner_PS1!$AJ$116:$AQ$119,7,FALSE)*100&\"% TS\")","v":{"$error":"#DIV/0!"}}]
[{"$f":"A13+2","v":27},{"$f":"A14*Planner_PS1!$AH103","v":0},{"$f":"IF($B14=0,\"\",title229&\" - \"&INDIRECT(\"'Data entry needs'!$d\"&$B14)&\" :\")","v":""},"","",null,{"$f":"IFERROR(title234&ROUND(Planner_PS1!$AE$107*100,0)&\"%\",\"\")","v":""}]
[{"$f":"A14+2","v":29},{"$f":"A15*Planner_PS1!$AH104","v":0},{"$f":"IF($B15=0,\"\",title258&\" - \"&INDIRECT(\"'Data entry needs'!$d\"&$B15)&\" :\")","v":""},"","",null,null,null,null,"HRT Min. (d)",{"$f":"VLOOKUP($L$10,Planner_PS1!$AJ$116:$AP$119,5,FALSE)*IF($L$12=title241,0.5,1)","v":15},{"$f":"title244","v":"Water Make-up "}]
[{"$f":"A15+4","v":33},{"$f":"A16*Planner_PS1!$AH105","v":0},{"$f":"IF($B16=0,\"\",title219&\"  - \"&INDIRECT(\"'Data entry needs'!$d\"&$B16)&\" :\")","v":""},"","",null,null,null,null,"HRT Max. (d)",{"$f":"VLOOKUP($L$10,Planner_PS1!$AJ$116:$AP$119,6,FALSE)*IF($L$12=title241,0.5,1)","v":40},{"$f":"title245","v":"Select a HRT (d)"}]
[]
[null,null,{"$f":"title257","v":"Transport Distance of Feedstock(s) from collection point to biogas plant"},null,null,null,null,null,null,{"$f":"title261","v":"Storage Capacity and Unitary Costs"}]
[]
[null,null,null,null,{"$f":"title259","v":"Transport Distances (km)"},null,null,null,null,{"$f":"title262","v":"Storage capacity Required (t)"},{"$f":"title116","v":"Storage Cost (USD/t)"},{"$f":"title263","v":"Feedstock Price (USD/t)"},{"$f":"title264","v":"Transport Cost (USD/t/km)"}]
[null,null,null,null,{"$f":"ROUND(F33,0)&\" (\"&IF(OR('Biogas Use Selection'!$P$67=5,'Biogas Use Selection'!$P$67=2),title260,IF(OR('Biogas Use Selection'!$P$67=1,'Biogas Use Selection'!$P$67=3),Planner_PS1!$AC$128,IF('Biogas Use Selection'!$P$67=4,Planner_PS1!$AC$127)))&\")\"","v":"100 (kWe)"},{"$f":"ROUND(H33,0)&\" (\"&IF(OR('Biogas Use Selection'!$P$67=5,'Biogas Use Selection'!$P$67=2),title260,IF(OR('Biogas Use Selection'!$P$67=1,'Biogas Use Selection'!$P$67=3),Planner_PS1!$AC$128,IF('Biogas Use Selection'!$P$67=4,Planner_PS1!$AC$127)))&\")\"","v":"105 (kWe)"},{"$f":"ROUND(J33,0)&\" (\"&IF(OR('Biogas Use Selection'!$P$67=5,'Biogas Use Selection'!$P$67=2),title260,IF(OR('Biogas Use Selection'!$P$67=1,'Biogas Use Selection'!$P$67=3),Planner_PS1!$AC$128,IF('Biogas Use Selection'!$P$67=4,Planner_PS1!$AC$127)))&\")\"","v":"115 (kWe)"},{"$f":"ROUND(L33,0)&\" (\"&IF(OR('Biogas Use Selection'!$P$67=5,'Biogas Use Selection'!$P$67=2),title260,IF(OR('Biogas Use Selection'!$P$67=1,'Biogas Use Selection'!$P$67=3),Planner_PS1!$AC$128,IF('Biogas Use Selection'!$P$67=4,Planner_PS1!$AC$127)))&\")\"","v":"120 (kWe)"}]
[null,{"$f":"$B11","v":0},{"$f":"IF($B11=0,\"\",title226&\" - \"&INDIRECT(\"'Data entry needs'!$e\"&$B11))","v":""},null,null,null,null,null,null,{"$f":"IF($B11=0,\"\",MAX(Planner_PS1!F13:Q13))","v":""},{"$f":"IF($B11=0,\"\",INDIRECT(\"'Data entry needs'!$m\"&$B11))","v":""},{"$f":"IF($B11=0,\"\",INDIRECT(\"'Data entry needs'!$k\"&$B11))","v":""}]
[null,0,{"$f":"IF($B12=0,\"\",title227&\" - \"&INDIRECT(\"'Data entry needs'!$e\"&$B12))","v":""},null,null,null,null,null,null,{"$f":"IF($B12=0,\"\",MAX(Planner_PS1!F14:Q14))","v":""},"",""]
[null,0,{"$f":"IF($B13=0,\"\",title228&\" - \"&INDIRECT(\"'Data entry needs'!$e\"&$B13))","v":""},null,null,null,null,null,null,{"$f":"IF($B13=0,\"\",MAX(Planner_PS1!F15:Q15))","v":""},"",""]
[null,0,{"$f":"IF($B14=0,\"\",title229&\" - \"&INDIRECT(\"'Data entry needs'!$e\"&$B14))","v":""},null,null,null,null,null,null,{"$f":"IF($B14=0,\"\",MAX(Planner_PS1!F16:Q16))","v":""},"",""]
[null,0,{"$f":"IF($B15=0,\"\",title258&\" - \"&INDIRECT(\"'Data entry needs'!$e\"&$B15))","v":""},null,null,null,null,null,null,{"$f":"IF($B15=0,\"\",MAX(Planner_PS1!F17:Q17))","v":""},"",""]
[null,0,{"$f":"IF($B16=0,\"\",title219&\" - \"&INDIRECT(\"'Data entry needs'!$e\"&$B16))","v":""},null,null,null,null,null,null,{"$f":"IF($B16=0,\"\",MAX(Planner_PS1!F18:Q18))","v":""},"",""]
[]
[]
[null,null,{"$f":"title559","v":"Production Cost Details"}]
[]
[null,null,null,null,null,{"$f":"title291&IF(OR('Biogas Use Selection'!$P$67=5,'Biogas Use Selection'!$P$67=2),title260,IF(OR('Biogas Use Selection'!$P$67=1,'Biogas Use Selection'!$P$67=3),Planner_PS1!$AC$128,IF('Biogas Use Selection'!$P$67=4,Planner_PS1!$AC$127)))&\")\"","v":"Capacities (kWe)"}]
[null,null,null,null,null,{"$f":"IF(OR('Biogas Use Selection'!$P$67=5,'Biogas Use Selection'!$P$67=2),Planner_PS1!AD$127/Planner_PS1!$AG$107,IF(OR('Biogas Use Selection'!$P$67=1,'Biogas Use Selection'!$P$67=3),Planner_PS1!AD$128,IF('Biogas Use Selection'!$P$67=4,Planner_PS1!AD$127)))","v":100},null,{"$f":"IF(OR('Biogas Use Selection'!$P$67=5,'Biogas Use Selection'!$P$67=2),Planner_PS1!AE$127/Planner_PS1!$AG$107,IF(OR('Biogas Use Selection'!$P$67=1,'Biogas Use Selection'!$P$67=3),Planner_PS1!AE$128,IF('Biogas Use Selection'!$P$67=4,Planner_PS1!AE$127)))","v":105},null,{"$f":"IF(OR('Biogas Use Selection'!$P$67=5,'Biogas Use Selection'!$P$67=2),Planner_PS1!AF$127/Planner_PS1!$AG$107,IF(OR('Biogas Use Selection'!$P$67=1,'Biogas Use Selection'!$P$67=3),Planner_PS1!AF$128,IF('Biogas Use Selection'!$P$67=4,Planner_PS1!AF$127)))","v":115},null,{"$f":"IF(OR('Biogas Use Selection'!$P$67=5,'Biogas Use Selection'!$P$67=2),Planner_PS1!AG$127/Planner_PS1!$AG$107,IF(OR('Biogas Use Selection'!$P$67=1,'Biogas Use Selection'!$P$67=3),Planner_PS1!AG$128,IF('Biogas Use Selection'!$P$67=4,Planner_PS1!AG$127)))","v":120}]
[]
[null,null,null,null,null,{"$f":"title265","v":"Operating hours per year"},{"$f":"'Data entry needs'!$L$100*24","v":0},{"$f":"title265","v":"Operating hours per year"},{"$f":"'Data entry needs'!$L$100*24","v":0},{"$f":"title265","v":"Operating hours per year"},{"$f":"'Data entry needs'!$L$100*24","v":0},{"$f":"title265","v":"Operating hours per year"},{"$f":"'Data entry needs'!$L$100*24","v":0}]
[]
[null,null,{"$f":"title266","v":"Inputs"},{"$f":"title27","v":"Unit"},{"$f":"title267","v":"Unit Price"},{"$f":"title270","v":"Quantity"},"Total",{"$f":"title270","v":"Quantity"},"Total",{"$f":"title270","v":"Quantity"},"Total",{"$f":"title270","v":"Quantity"},"Total"]
[null,null,null,null,{"$f":"\"(\"&title24&\")\"","v":"(USD/unit)"},{"$f":"title271","v":"(Unit/year)"},{"$f":"title272","v":"(USD/year)"},{"$f":"title271","v":"(Unit/year)"},{"$f":"title272","v":"(USD/year)"},{"$f":"title271","v":"(Unit/year)"},{"$f":"title272","v":"(USD/year)"},{"$f":"title271","v":"(Unit/year)"},{"$f":"title272","v":"(USD/year)"}]
[null,null,{"$f":"IF('Data entry needs'!$D$11,'Data entry needs'!$D$12,IF('Data entry needs'!$F$11,'Data entry needs'!$F$12,IF('Data entry needs'!$J$11,'Data entry needs'!$J$12)))","v":"Optimized Co-digestion"},"t",{"$f":"Planner_PS1!$AM$110","v":{"$error":"#DIV/0!"}},{"$f":"Planner_PS1!$AD$133","v":{"$error":"#DIV/0!"}},{"$f":"+F39*E39","v":{"$error":"#DIV/0!"}},{"$f":"Planner_PS1!$AE$133","v":{"$error":"#DIV/0!"}},{"$f":"+H39*$E39","v":{"$error":"#DIV/0!"}},{"$f":"Planner_PS1!$AF$133","v":{"$error":"#DIV/0!"}},{"$f":"+J39*$E39","v":{"$error":"#DIV/0!"}},{"$f":"Planner_PS1!$AG$133","v":{"$error":"#DIV/0!"}},{"$f":"+L39*$E39","v":{"$error":"#DIV/0!"}}]
[null,null,{"$f":"title244","v":"Water Make-up "},"m3",{"$f":"'Data entry needs'!$F$92","v":0},{"$f":"Planner_PS1!$AD$136*$M$15","v":{"$error":"#DIV/0!"}},{"$f":"+F40*E40","v":{"$error":"#DIV/0!"}},{"$f":"Planner_PS1!$AE$136*$M$15","v":{"$error":"#DIV/0!"}},{"$f":"+H40*$E40","v":{"$error":"#DIV/0!"}},{"$f":"Planner_PS1!$AF$136*$M$15","v":{"$error":"#DIV/0!"}},{"$f":"+J40*$E40","v":{"$error":"#DIV/0!"}},{"$f":"Planner_PS1!$AG$136*$M$15","v":{"$error":"#DIV/0!"}},{"$f":"+L40*$E40","v":{"$error":"#DIV/0!"}}]
[null,{"$f":"IF(OR('Biogas Use Selection'!$P$67=1,'Biogas Use Selection'!$P$67=3),0,1)","v":0},{"$f":"title35&\" \"&IF(B41=1,\"\",title268)","v":"Electricity  - Consumption Self-Supplied"},"KWh",{"$f":"'Data entry needs'!$L$92*B41","v":0},{"$f":"VLOOKUP($L$10,Planner_PS1!$AA$150:$AE$153,2,FALSE)+Planner_PS1!$AB$179","v":{"$error":"#DIV/0!"}},{"$f":"+F41*E41","v":{"$error":"#DIV/0!"}},{"$f":"VLOOKUP($L$10,Planner_PS1!$AA$150:$AE$153,3,FALSE)+Planner_PS1!$AC$179","v":{"$error":"#DIV/0!"}},{"$f":"+H41*$E41","v":{"$error":"#DIV/0!"}},{"$f":"VLOOKUP($L$10,Planner_PS1!$AA$150:$AE$153,4,FALSE)+Planner_PS1!$AD$179","v":{"$error":"#DIV/0!"}},{"$f":"+J41*$E41","v":{"$error":"#DIV/0!"}},{"$f":"VLOOKUP($L$10,Planner_PS1!$AA$150:$AE$153,5,FALSE)+Planner_PS1!$AE$179","v":{"$error":"#DIV/0!"}},{"$f":"+L41*$E41","v":{"$error":"#DIV/0!"}}]
[null,{"$f":"IF('Biogas Use Selection'!$P$67=1,0,1)","v":0},{"$f":"title51&IF(B42=1,\"\",title268)","v":"Heat - Consumption Self-Supplied"},"USD/GJ",{"$f":"'Data entry needs'!$L$93*B42","v":0},{"$f":"Planner_PS1!$AN$144","v":{"$error":"#DIV/0!"}},{"$f":"+F42*E42","v":{"$error":"#DIV/0!"}},{"$f":"Planner_PS1!$AN$145","v":{"$error":"#DIV/0!"}},{"$f":"+H42*$E42","v":{"$error":"#DIV/0!"}},{"$f":"Planner_PS1!$AN$146","v":{"$error":"#DIV/0!"}},{"$f":"+J42*$E42","v":{"$error":"#DIV/0!"}},{"$f":"Planner_PS1!$AN$147","v":{"$error":"#DIV/0!"}},{"$f":"+L42*$E42","v":{"$error":"#DIV/0!"}}]
[null,null,"NaOH","t",{"$f":"'Data entry needs'!$F$93","v":0},{"$f":"F39*2%","v":{"$error":"#DIV/0!"}},{"$f":"F43*$E$43","v":{"$error":"#DIV/0!"}},{"$f":"H39*2%","v":{"$error":"#DIV/0!"}},{"$f":"H43*$E$43","v":{"$error":"#DIV/0!"}},{"$f":"J39*2%","v":{"$error":"#DIV/0!"}},{"$f":"J43*$E$43","v":{"$error":"#DIV/0!"}},{"$f":"L39*2%","v":{"$error":"#DIV/0!"}},{"$f":"L43*$E$43","v":{"$error":"#DIV/0!"}}]
[null,null,{"$f":"title269","v":"Subtotal"},null,null,{"$f":"SUM(G39:G43)","v":{"$error":"#DIV/0!"}},null,{"$f":"SUM(I39:I43)","v":{"$error":"#DIV/0!"}},null,{"$f":"SUM(K39:K43)","v":{"$error":"#DIV/0!"}},null,{"$f":"SUM(M39:M43)","v":{"$error":"#DIV/0!"}}]
[]
[null,null,{"$f":"title273","v":"Labour and miscellaneous costs"},{"$f":"title27","v":"Unit"},{"$f":"title267","v":"Unit Price"},{"$f":"title270","v":"Quantity"},"Total",{"$f":"title270","v":"Quantity"},"Total",{"$f":"title270","v":"Quantity"},"Total",{"$f":"title270","v":"Quantity"},"Total"]
[null,null,null,null,{"$f":"\"(\"&title128&\")\"","v":"(USD/person-hour)"},{"$f":"\"(\"&title27&\")\"","v":"(Unit)"},{"$f":"title272","v":"(USD/year)"},{"$f":"\"(\"&title27&\")\"","v":"(Unit)"},{"$f":"title272","v":"(USD/year)"},{"$f":"\"(\"&title27&\")\"","v":"(Unit)"},{"$f":"title272","v":"(USD/year)"},{"$f":"\"(\"&title27&\")\"","v":"(Unit)"},{"$f":"title272","v":"(USD/year)"}]
[null,null,{"$f":"title127","v":"Unskilled worker"},{"$f":"title275","v":" # employee"},{"$f":"'Data entry needs'!$L$96","v":0},{"$f":"ROUNDUP(0.42*'COST(ADJUSTED)_PS1'!$J$9*'COST(ADJUSTED)_PS1'!$J$15/1000000,0)","v":0},{"$f":"+E48*F48*G35","v":0},{"$f":"ROUNDUP(0.42*'COST(ADJUSTED)_PS1'!$K$9*'COST(ADJUSTED)_PS1'!$K$15/1000000,0)","v":0},{"$f":"+$E48*H48*I35","v":0},{"$f":"ROUNDUP(0.42*'COST(ADJUSTED)_PS1'!$L$9*'COST(ADJUSTED)_PS1'!$L$15/1000000,0)","v":0},{"$f":"+$E48*J48*K35","v":0},{"$f":"ROUNDUP(0.42*'COST(ADJUSTED)_PS1'!$M$9*'COST(ADJUSTED)_PS1'!$M$15/1000000,0)","v":0},{"$f":"+$E48*L48*M35","v":0}]
[null,null,{"$f":"title126","v":"Skilled worker"},{"$f":"title275","v":" # employee"},{"$f":"'Data entry needs'!$F$96","v":0},{"$f":"ROUNDUP(F48/5,0)","v":0},{"$f":"+E49*F49*G35","v":0},{"$f":"ROUNDUP(H48/5,0)","v":0},{"$f":"+$E49*H49*I35","v":0},{"$f":"ROUNDUP(J48/10,0)","v":0},{"$f":"+$E49*J49*K35","v":0},{"$f":"ROUNDUP(L48/10,0)","v":0},{"$f":"+$E49*L49*M35","v":0}]
[null,null,{"$f":"title274","v":"Miscellaneous costs"},null,null,{"$f":"'Data entry needs'!$L$114","v":0},{"$f":"+F50*SUM(G48:G49)","v":0},{"$f":"'Data entry needs'!$L$114","v":0},{"$f":"+H50*SUM(I48:I49)","v":0},{"$f":"'Data entry needs'!$L$114","v":0},{"$f":"+J50*SUM(K48:K49)","v":0},{"$f":"'Data entry needs'!$L$114","v":0},{"$f":"+L50*SUM(M48:M49)","v":0}]
[null,null,{"$f":"title269","v":"Subtotal"},null,null,null,{"$f":"SUM(G48:G50)","v":0},null,{"$f":"SUM(I48:I50)","v":0},null,{"$f":"SUM(K48:K50)","v":0},null,{"$f":"SUM(M48:M50)","v":0}]
[]
[null,null,{"$f":"title276","v":"Transportation"},{"$f":"title27","v":"Unit"},{"$f":"title267","v":"Unit Price"},{"$f":"title270","v":"Quantity"},"Total",{"$f":"title270","v":"Quantity"},"Total",{"$f":"title270","v":"Quantity"},"Total",{"$f":"title270","v":"Quantity"},"Total"]
[null,null,null,null,"(USD/t/km)",{"$f":"\"(\"&title27&\")\"","v":"(Unit)"},{"$f":"title272","v":"(USD/year)"},{"$f":"\"(\"&title27&\")\"","v":"(Unit)"},{"$f":"title272","v":"(USD/year)"},{"$f":"\"(\"&title27&\")\"","v":"(Unit)"},{"$f":"title272","v":"(USD/year)"},{"$f":"\"(\"&title27&\")\"","v":"(Unit)"},{"$f":"title272","v":"(USD/year)"}]
[{"$f":"A11","v":21},{"$f":"A55*Planner_PS1!$AH100","v":0},{"$f":"IF($B55=0,\"\",title226&\" - \"&INDIRECT(\"'Data entry needs'!$e\"&$B55))","v":""},{"$f":"IF($B55=0,\"\",\"km\")","v":""},{"$f":"IF($B55=0,\"\",$M22)","v":""},{"$f":"IF($B55=0,\"\",$E22)","v":""},{"$f":"IFERROR($F55*$E55*F$39,0)","v":0},{"$f":"IF($B55=0,\"\",$F22)","v":""},{"$f":"IFERROR($H55*$E55*H$39,0)","v":0},{"$f":"IF($B55=0,\"\",$G22)","v":""},{"$f":"IFERROR($J55*$E55*J$39,0)","v":0},{"$f":"IF($B55=0,\"\",$H22)","v":""},{"$f":"IFERROR($L55*$E55*L$39,0)","v":0}]
[23,{"$f":"A56*Planner_PS1!$AH101","v":0},{"$f":"IF($B56=0,\"\",title227&\" - \"&INDIRECT(\"'Data entry needs'!$e\"&$B56))","v":""},"","","",0,"",0,"",0,"",0]
[25,{"$f":"A57*Planner_PS1!$AH102","v":0},{"$f":"IF($B57=0,\"\",title228&\" - \"&INDIRECT(\"'Data entry needs'!$e\"&$B57))","v":""},"","","",0,"",0,"",0,"",0]
[27,{"$f":"A58*Planner_PS1!$AH103","v":0},{"$f":"IF($B58=0,\"\",title229&\" - \"&INDIRECT(\"'Data entry needs'!$e\"&$B58))","v":""},"","","",0,"",0,"",0,"",0]
[29,{"$f":"A59*Planner_PS1!$AH104","v":0},{"$f":"IF($B59=0,\"\",title258&\" - \"&INDIRECT(\"'Data entry needs'!$e\"&$B59))","v":""},"","","",0,"",0,"",0,"",0]
[33,{"$f":"A60*Planner_PS1!$AH105","v":0},{"$f":"IF($B60=0,\"\",title219&\" - \"&INDIRECT(\"'Data entry needs'!$e\"&$B60))","v":""},"","","",0,"",0,"",0,"",0]
[null,null,{"$f":"title269","v":"Subtotal"},null,null,{"$f":"SUM(G55:G60)","v":0},{"$f":"SUM(G55:G60)","v":0},{"$f":"SUM(I55:I60)","v":0},{"$f":"SUM(I55:I60)","v":0},{"$f":"SUM(K55:K60)","v":0},{"$f":"SUM(K55:K60)","v":0},{"$f":"SUM(M55:M60)","v":0},{"$f":"SUM(M55:M60)","v":0}]
[]
[null,null,{"$f":"title175","v":"Storage"},{"$f":"title27","v":"Unit"},{"$f":"title267","v":"Unit Price"},{"$f":"title270","v":"Quantity"},"Total",{"$f":"title270","v":"Quantity"},"Total",{"$f":"title270","v":"Quantity"},"Total",{"$f":"title270","v":"Quantity"},"Total"]
[null,null,null,null,null,{"$f":"\"(\"&title27&\")\"","v":"(Unit)"},{"$f":"title272","v":"(USD/year)"},{"$f":"\"(\"&title27&\")\"","v":"(Unit)"},{"$f":"title272","v":"(USD/year)"},{"$f":"\"(\"&title27&\")\"","v":"(Unit)"},{"$f":"title272","v":"(USD/year)"},{"$f":"\"(\"&title27&\")\"","v":"(Unit)"},{"$f":"title272","v":"(USD/year)"}]
[{"$f":"A55","v":21},{"$f":"A65*Planner_PS1!$AH100","v":0},{"$f":"IF($B65=0,\"\",title226&\" - \"&INDIRECT(\"'Data entry needs'!$e\"&$B65))","v":""},{"$f":"IF($B65=0,\"\",\"USD/t\")","v":""},{"$f":"IF($B65=0,\"\",$K22)","v":""},{"$f":"IF($B65=0,\"\",Planner_PS1!$AB71)","v":""},{"$f":"IFERROR($E65*F65,0)","v":0},{"$f":"IF($B65=0,\"\",Planner_PS1!$AC71)","v":""},{"$f":"IFERROR($E65*H65,0)","v":0},{"$f":"IF($B65=0,\"\",Planner_PS1!$AD71)","v":""},{"$f":"IFERROR($E65*J65,0)","v":0},{"$f":"IF($B65=0,\"\",Planner_PS1!$AE71)","v":""},{"$f":"IFERROR($E65*L65,0)","v":0}]
[23,{"$f":"A66*Planner_PS1!$AH101","v":0},{"$f":"IF($B66=0,\"\",title227&\" - \"&INDIRECT(\"'Data entry needs'!$e\"&$B66))","v":""},"","",{"$f":"IF($B66=0,\"\",Planner_PS1!$AB72)","v":""},{"$f":"IFERROR($E66*F66,0)","v":0},{"$f":"IF($B66=0,\"\",Planner_PS1!$AC72)","v":""},0,{"$f":"IF($B66=0,\"\",Planner_PS1!$AD72)","v":""},0,{"$f":"IF($B66=0,\"\",Planner_PS1!$AE72)","v":""},0]
[25,{"$f":"A67*Planner_PS1!$AH102","v":0},{"$f":"IF($B67=0,\"\",title228&\" - \"&INDIRECT(\"'Data entry needs'!$e\"&$B67))","v":""},"","",{"$f":"IF($B67=0,\"\",Planner_PS1!$AB73)","v":""},0,{"$f":"IF($B67=0,\"\",Planner_PS1!$AC73)","v":""},0,{"$f":"IF($B67=0,\"\",Planner_PS1!$AD73)","v":""},0,{"$f":"IF($B67=0,\"\",Planner_PS1!$AE73)","v":""},0]
[27,{"$f":"A68*Planner_PS1!$AH103","v":0},{"$f":"IF($B68=0,\"\",title229&\" - \"&INDIRECT(\"'Data entry needs'!$e\"&$B68))","v":""},"","",{"$f":"IF($B68=0,\"\",Planner_PS1!$AB74)","v":""},0,{"$f":"IF($B68=0,\"\",Planner_PS1!$AC74)","v":""},0,{"$f":"IF($B68=0,\"\",Planner_PS1!$AD74)","v":""},0,{"$f":"IF($B68=0,\"\",Planner_PS1!$AE74)","v":""},0]
[29,{"$f":"A69*Planner_PS1!$AH104","v":0},{"$f":"IF($B69=0,\"\",title258&\" - \"&INDIRECT(\"'Data entry needs'!$e\"&$B69))","v":""},"","",{"$f":"IF($B69=0,\"\",Planner_PS1!$AB75)","v":""},0,{"$f":"IF($B69=0,\"\",Planner_PS1!$AC75)","v":""},0,{"$f":"IF($B69=0,\"\",Planner_PS1!$AD75)","v":""},0,{"$f":"IF($B69=0,\"\",Planner_PS1!$AE75)","v":""},0]
[33,{"$f":"A70*Planner_PS1!$AH105","v":0},{"$f":"IF($B70=0,\"\",title258&\" - \"&INDIRECT(\"'Data entry needs'!$e\"&$B70))","v":""},"","",{"$f":"IF($B70=0,\"\",Planner_PS1!$AB76)","v":""},0,{"$f":"IF($B70=0,\"\",Planner_PS1!$AC76)","v":""},0,{"$f":"IF($B70=0,\"\",Planner_PS1!$AD76)","v":""},0,{"$f":"IF($B70=0,\"\",Planner_PS1!$AE76)","v":""},0]
[null,null,{"$f":"title277","v":"Biogas Low-pressure system"},"USD/m3",{"$f":"$AI$131","v":9.893992932862191E-3},{"$f":"Planner_PS1!AD$127*30/VLOOKUP('Data entry needs'!$BX$133,COST_PS1!$AE$131:$AK$134,7,FALSE)","v":{"$error":"#DIV/0!"}},{"$f":"IFERROR(F71*$E$71,0)","v":0},{"$f":"Planner_PS1!AE$127*30/VLOOKUP('Data entry needs'!$BX$133,COST_PS1!$AE$131:$AK$134,7,FALSE)","v":{"$error":"#DIV/0!"}},{"$f":"IFERROR(H71*$E$71,0)","v":0},{"$f":"Planner_PS1!AF$127*30/VLOOKUP('Data entry needs'!$BX$133,COST_PS1!$AE$131:$AK$134,7,FALSE)","v":{"$error":"#DIV/0!"}},{"$f":"IFERROR(J71*$E$71,0)","v":0},{"$f":"Planner_PS1!AG$127*30/VLOOKUP('Data entry needs'!$BX$133,COST_PS1!$AE$131:$AK$134,7,FALSE)","v":{"$error":"#DIV/0!"}},{"$f":"IFERROR(L71*$E$71,0)","v":0}]
[null,{"$f":"IF('Data entry needs'!$BX$133=0,TRUE,FALSE)","v":true},{"$f":"IF(B72,\"\",title278&VLOOKUP('Data entry needs'!$BX$133,COST_PS1!$AE$131:$AJ$134,2,FALSE))","v":""},{"$f":"IF(B72,\"\",\"USD/m3\")","v":""},{"$f":"IF(B72,\"\",VLOOKUP('Data entry needs'!$BX$133,COST_PS1!$AE$131:$AJ$134,5,FALSE))","v":""},{"$f":"IF($B$72,\"\",Planner_PS1!AD$127*30*'Data entry needs'!$L$108)","v":""},{"$f":"IFERROR(F72*$E$72,0)","v":0},{"$f":"IF($B$72,\"\",Planner_PS1!AE$127*30*'Data entry needs'!$L$108)","v":""},{"$f":"IFERROR(H72*$E$72,0)","v":0},{"$f":"IF($B$72,\"\",Planner_PS1!AF$127*30*'Data entry needs'!$L$108)","v":""},{"$f":"IFERROR(J72*$E$72,0)","v":0},{"$f":"IF($B$72,\"\",Planner_PS1!AG$127*30*'Data entry needs'!$L$108)","v":""},{"$f":"IFERROR(L72*$E$72,0)","v":0}]
[null,null,{"$f":"title269","v":"Subtotal"},null,null,{"$f":"SUM(G65:G72)","v":0},{"$f":"SUM(G65:G65)","v":0},{"$f":"SUM(I65:I70)","v":0},{"$f":"SUM(I65:I65)","v":0},{"$f":"SUM(K65:K70)","v":0},{"$f":"SUM(K65:K65)","v":0},{"$f":"SUM(M65:M70)","v":0},{"$f":"SUM(M65:M65)","v":0}]
[]
[null,null,{"$f":"title279","v":"Investment"},{"$f":"title27","v":"Unit"},{"$f":"title284","v":"Years"},"Total",{"$f":"title285","v":"Depreciation"},"Total",{"$f":"title285","v":"Depreciation"},"Total",{"$f":"title285","v":"Depreciation"},"Total",{"$f":"title285","v":"Depreciation"}]
[null,null,"Investment",null,null,"(USD)",{"$f":"title272","v":"(USD/year)"},"(USD)",{"$f":"title272","v":"(USD/year)"},"(USD)",{"$f":"title272","v":"(USD/year)"},"(USD)",{"$f":"title272","v":"(USD/year)"}]
[null,null,{"$f":"title280","v":"Equipments"},"USD",20,{"$f":"'COST(ADJUSTED)_PS1'!J42+'COST(ADJUSTED)_PS1'!J23","v":{"$error":"#DIV/0!"}},{"$f":"+F77/E77","v":{"$error":"#DIV/0!"}},{"$f":"'COST(ADJUSTED)_PS1'!K42+'COST(ADJUSTED)_PS1'!K23","v":{"$error":"#DIV/0!"}},{"$f":"+H77/$E$77","v":{"$error":"#DIV/0!"}},{"$f":"'COST(ADJUSTED)_PS1'!L42+'COST(ADJUSTED)_PS1'!L23","v":{"$error":"#DIV/0!"}},{"$f":"+J77/$E$77","v":{"$error":"#DIV/0!"}},{"$f":"'COST(ADJUSTED)_PS1'!M42+'COST(ADJUSTED)_PS1'!M23","v":{"$error":"#DIV/0!"}},{"$f":"+L77/$E$77","v":{"$error":"#DIV/0!"}}]
[null,null,{"$f":"title281","v":"Building"},"USD",20,{"$f":"'COST(ADJUSTED)_PS1'!J50","v":{"$error":"#DIV/0!"}},{"$f":"+F78/E78","v":{"$error":"#DIV/0!"}},{"$f":"'COST(ADJUSTED)_PS1'!K50","v":{"$error":"#DIV/0!"}},{"$f":"+H78/$E$77","v":{"$error":"#DIV/0!"}},{"$f":"'COST(ADJUSTED)_PS1'!L50","v":{"$error":"#DIV/0!"}},{"$f":"+J78/$E$77","v":{"$error":"#DIV/0!"}},{"$f":"'COST(ADJUSTED)_PS1'!M50","v":{"$error":"#DIV/0!"}},{"$f":"+L78/$E$77","v":{"$error":"#DIV/0!"}}]
[null,null,{"$f":"title282","v":"Installation Distribution and/or Upgrade"},"USD",20,{"$f":"'COST(ADJUSTED)_PS1'!J60+'COST(ADJUSTED)_PS1'!J64+'COST(ADJUSTED)_PS1'!J71+'COST(ADJUSTED)_PS1'!J75+'COST(ADJUSTED)_PS1'!J67","v":{"$error":"#DIV/0!"}},{"$f":"+F79/E79","v":{"$error":"#DIV/0!"}},{"$f":"'COST(ADJUSTED)_PS1'!K60+'COST(ADJUSTED)_PS1'!K64+'COST(ADJUSTED)_PS1'!K71+'COST(ADJUSTED)_PS1'!K75+'COST(ADJUSTED)_PS1'!K67","v":{"$error":"#DIV/0!"}},{"$f":"+H79/$E$77","v":{"$error":"#DIV/0!"}},{"$f":"'COST(ADJUSTED)_PS1'!L60+'COST(ADJUSTED)_PS1'!L64+'COST(ADJUSTED)_PS1'!L71+'COST(ADJUSTED)_PS1'!L75+'COST(ADJUSTED)_PS1'!L67","v":{"$error":"#DIV/0!"}},{"$f":"+J79/$E$77","v":{"$error":"#DIV/0!"}},{"$f":"'COST(ADJUSTED)_PS1'!M60+'COST(ADJUSTED)_PS1'!M64+'COST(ADJUSTED)_PS1'!M71+'COST(ADJUSTED)_PS1'!M75+'COST(ADJUSTED)_PS1'!M67","v":{"$error":"#DIV/0!"}},{"$f":"+L79/$E$77","v":{"$error":"#DIV/0!"}}]
[null,null,{"$f":"title283","v":"Total investments"},null,null,{"$f":"SUM(F77:F79)","v":{"$error":"#DIV/0!"}},null,{"$f":"SUM(H77:H79)","v":{"$error":"#DIV/0!"}},null,{"$f":"SUM(J77:J79)","v":{"$error":"#DIV/0!"}},null,{"$f":"SUM(L77:L79)","v":{"$error":"#DIV/0!"}}]
[null,null,null,null,null,"Total \nDepreciation",{"$f":"SUM(G77:G80)","v":{"$error":"#DIV/0!"}},{"$f":"title286","v":"Total\nDepreciation"},{"$f":"SUM(I77:I80)","v":{"$error":"#DIV/0!"}},{"$f":"title286","v":"Total\nDepreciation"},{"$f":"SUM(K77:K80)","v":{"$error":"#DIV/0!"}},{"$f":"title286","v":"Total\nDepreciation"},{"$f":"SUM(M77:M80)","v":{"$error":"#DIV/0!"}}]
[null,null,{"$f":"title287","v":"Maintenance cost"},null,{"$f":"'Data entry needs'!$F$115","v":0},null,{"$f":"+E82*G81","v":{"$error":"#DIV/0!"}},null,{"$f":"+E82*$I$81","v":{"$error":"#DIV/0!"}},null,{"$f":"+$E$82*K81","v":{"$error":"#DIV/0!"}},null,{"$f":"+$E$82*M81","v":{"$error":"#DIV/0!"}}]
[null,null,{"$f":"title269","v":"Subtotal"},null,null,{"$f":"SUM(G81:G82)","v":{"$error":"#DIV/0!"}},null,{"$f":"SUM(I81:I82)","v":{"$error":"#DIV/0!"}},null,{"$f":"SUM(K81:K82)","v":{"$error":"#DIV/0!"}},null,{"$f":"SUM(M81:M82)","v":{"$error":"#DIV/0!"}}]
[]
[null,null,{"$f":"title150","v":"Other costs"},{"$f":"title27","v":"Unit"},{"$f":"title290","v":"Rate (%)"},null,"Total",null,"Total",null,"Total",null,"Total"]
[null,null,null,null,null,null,{"$f":"title272","v":"(USD/year)"},null,{"$f":"title272","v":"(USD/year)"},null,{"$f":"title272","v":"(USD/year)"},null,{"$f":"title272","v":"(USD/year)"}]
[null,null,{"$f":"title151","v":"Plant overhead"},"USD",{"$f":"'Data entry needs'!$F$114","v":0},null,{"$f":"+(G48+G49+G82)*$E$87","v":{"$error":"#DIV/0!"}},null,{"$f":"+(I48+I49+I82)*$E$87","v":{"$error":"#DIV/0!"}},null,{"$f":"+(K48+K49+K82)*$E$87","v":{"$error":"#DIV/0!"}},null,{"$f":"+(M48+M49+M82)*$E$87","v":{"$error":"#DIV/0!"}}]
[null,null,{"$f":"title288","v":"General and administrative cost"},"USD",{"$f":"'Data entry needs'!$L$115","v":0},null,{"$f":"+(F44+G51+G87+G82)*$E$88","v":{"$error":"#DIV/0!"}},null,{"$f":"+(H44+I51+I87+I82)*$E$88","v":{"$error":"#DIV/0!"}},null,{"$f":"+(J44+K51+K87+K82)*$E$88","v":{"$error":"#DIV/0!"}},null,{"$f":"+(L44+M51+M87+M82)*$E$88","v":{"$error":"#DIV/0!"}}]
[null,null,{"$f":"title289","v":"Loan interest"},"USD",{"$f":"'Data entry needs'!$L$119","v":0},null,{"$f":"-G118","v":{"$error":"#DIV/0!"}},null,{"$f":"-I118","v":{"$error":"#DIV/0!"}},null,{"$f":"-K118","v":{"$error":"#DIV/0!"}},null,{"$f":"-M118","v":{"$error":"#DIV/0!"}}]
[null,null,{"$f":"title269","v":"Subtotal"},null,null,{"$f":"SUM(G87:G89)","v":{"$error":"#DIV/0!"}},null,{"$f":"SUM(I87:I89)","v":{"$error":"#DIV/0!"}},null,{"$f":"SUM(K87:K89)","v":{"$error":"#DIV/0!"}},{"$f":"SUM(K87:K89)","v":{"$error":"#DIV/0!"}},{"$f":"SUM(M87:M89)","v":{"$error":"#DIV/0!"}},{"$f":"SUM(M87:M89)","v":{"$error":"#DIV/0!"}}]
[]
[]
[null,null,{"$f":"title292","v":"Total costs"},null,null,"Total",{"$f":"title323","v":"Share (%)"},"Total",{"$f":"title323","v":"Share (%)"},"Total",{"$f":"title323","v":"Share (%)"},"Total",{"$f":"title323","v":"Share (%)"}]
[null,null,"Investment",null,null,{"$f":"title272","v":"(USD/year)"},null,{"$f":"title272","v":"(USD/year)"},null,{"$f":"title272","v":"(USD/year)"},null,{"$f":"title272","v":"(USD/year)"}]
[null,null,{"$f":"title293","v":"Total operating costs"},null,null,{"$f":"+F44+G51+G61+G73","v":{"$error":"#DIV/0!"}},{"$f":"+F95/$F$98","v":{"$error":"#DIV/0!"}},{"$f":"+H44+I51+I61+I73","v":{"$error":"#DIV/0!"}},{"$f":"+H95/$H$98","v":{"$error":"#DIV/0!"}},{"$f":"+J44+K51+K61+K73","v":{"$error":"#DIV/0!"}},{"$f":"+J95/$J$98","v":{"$error":"#DIV/0!"}},{"$f":"+L44+M51+M61+M73","v":{"$error":"#DIV/0!"}},{"$f":"+L95/$L$98","v":{"$error":"#DIV/0!"}}]
[null,null,{"$f":"title294","v":"Total fixed costs"},null,null,{"$f":"+F83","v":{"$error":"#DIV/0!"}},{"$f":"+F96/$F$98","v":{"$error":"#DIV/0!"}},{"$f":"+H83","v":{"$error":"#DIV/0!"}},{"$f":"+H96/$H$98","v":{"$error":"#DIV/0!"}},{"$f":"+J83","v":{"$error":"#DIV/0!"}},{"$f":"+J96/$J$98","v":{"$error":"#DIV/0!"}},{"$f":"+L83","v":{"$error":"#DIV/0!"}},{"$f":"+L96/$L$98","v":{"$error":"#DIV/0!"}}]
[null,null,{"$f":"title295","v":"Total other costs"},null,null,{"$f":"+F90","v":{"$error":"#DIV/0!"}},{"$f":"+F97/$F$98","v":{"$error":"#DIV/0!"}},{"$f":"+H90","v":{"$error":"#DIV/0!"}},{"$f":"+H97/$H$98","v":{"$error":"#DIV/0!"}},{"$f":"+J90","v":{"$error":"#DIV/0!"}},{"$f":"+J97/$J$98","v":{"$error":"#DIV/0!"}},{"$f":"+M90","v":{"$error":"#DIV/0!"}},{"$f":"+L97/$L$98","v":{"$error":"#DIV/0!"}}]
[null,null,{"$f":"title296","v":"Total production costs"},null,null,{"$f":"SUM(F95:F97)","v":{"$error":"#DIV/0!"}},null,{"$f":"SUM(H95:H97)","v":{"$error":"#DIV/0!"}},null,{"$f":"SUM(J95:J97)","v":{"$error":"#DIV/0!"}},null,{"$f":"SUM(L95:L97)","v":{"$error":"#DIV/0!"}}]
[]
[null,null,{"$f":"title297","v":"Energy Balance"},null,{"$f":"title27","v":"Unit"},{"$f":"F32","v":"Capacities (kWe)"}]
[null,null,"Investment",null,null,{"$f":"F$33","v":100},null,{"$f":"H$33","v":105},null,{"$f":"J$33","v":115},null,{"$f":"L$33","v":120}]
[null,null,{"$f":"title298","v":"Electricity Production"},null,{"$f":"title304","v":"kWh/year"},null,{"$f":"IF('Biogas Use Selection'!$P$67=1,Planner_PS1!AB$159,IF('Biogas Use Selection'!$P$67=3,Planner_PS1!AB$163,0))*(1-'Data entry needs'!$F$112-'Data entry needs'!$L$112)","v":{"$error":"#DIV/0!"}},null,{"$f":"IF('Biogas Use Selection'!$P$67=1,Planner_PS1!AC$159,IF('Biogas Use Selection'!$P$67=3,Planner_PS1!AC$163,0))*(1-'Data entry needs'!$F$112-'Data entry needs'!$L$112)","v":{"$error":"#DIV/0!"}},null,{"$f":"IF('Biogas Use Selection'!$P$67=1,Planner_PS1!AD$159,IF('Biogas Use Selection'!$P$67=3,Planner_PS1!AD$163,0))*(1-'Data entry needs'!$F$112-'Data entry needs'!$L$112)","v":{"$error":"#DIV/0!"}},null,{"$f":"IF('Biogas Use Selection'!$P$67=1,Planner_PS1!AE$159,IF('Biogas Use Selection'!$P$67=3,Planner_PS1!AE$163,0))*(1-'Data entry needs'!$F$112-'Data entry needs'!$L$112)","v":{"$error":"#DIV/0!"}}]
[null,null,{"$f":"title299","v":"Heat Production"},null,{"$f":"title305","v":"GJ/year"},null,{"$f":"IF('Biogas Use Selection'!$P$67=1,Planner_PS1!AB$158,0)*(1-'Data entry needs'!$F$111-'Data entry needs'!$L$111)","v":{"$error":"#DIV/0!"}},null,{"$f":"IF('Biogas Use Selection'!$P$67=1,Planner_PS1!AC$158,0)*(1-'Data entry needs'!$F$111-'Data entry needs'!$L$111)","v":{"$error":"#DIV/0!"}},null,{"$f":"IF('Biogas Use Selection'!$P$67=1,Planner_PS1!AD$158,0)*(1-'Data entry needs'!$F$111-'Data entry needs'!$L$111)","v":{"$error":"#DIV/0!"}},null,{"$f":"IF('Biogas Use Selection'!$P$67=1,Planner_PS1!AE$158,0)*(1-'Data entry needs'!$F$111-'Data entry needs'!$L$111)","v":{"$error":"#DIV/0!"}}]
[null,null,{"$f":"title300","v":"Electricity Consumption"},null,{"$f":"title304","v":"kWh/year"},null,{"$f":"-F41","v":{"$error":"#DIV/0!"}},null,{"$f":"-H41","v":{"$error":"#DIV/0!"}},null,{"$f":"-J41","v":{"$error":"#DIV/0!"}},null,{"$f":"-L41","v":{"$error":"#DIV/0!"}}]
[null,null,{"$f":"title301","v":"Heat Consumption"},null,{"$f":"title305","v":"GJ/year"},null,{"$f":"-F42","v":{"$error":"#DIV/0!"}},null,{"$f":"-H42","v":{"$error":"#DIV/0!"}},null,{"$f":"-J42","v":{"$error":"#DIV/0!"}},null,{"$f":"-L42","v":{"$error":"#DIV/0!"}}]
[null,null,{"$f":"title302","v":"Electricity Available for Selling"},null,{"$f":"title304","v":"kWh/year"},null,{"$f":"G102+G104","v":{"$error":"#DIV/0!"}},null,{"$f":"I102+I104","v":{"$error":"#DIV/0!"}},null,{"$f":"K102+K104","v":{"$error":"#DIV/0!"}},null,{"$f":"M102+M104","v":{"$error":"#DIV/0!"}}]
[null,null,{"$f":"title303","v":"Heat Available for Selling"},null,{"$f":"title305","v":"GJ/year"},null,{"$f":"G103+G105","v":{"$error":"#DIV/0!"}},null,{"$f":"I103+I105","v":{"$error":"#DIV/0!"}},null,{"$f":"K103+K105","v":{"$error":"#DIV/0!"}},null,{"$f":"M103+M105","v":{"$error":"#DIV/0!"}}]
[]
[null,null,null,null,null,{"$f":"F32","v":"Capacities (kWe)"}]
[null,null,null,null,null,{"$f":"F33","v":100},null,{"$f":"H33","v":105},null,{"$f":"J33","v":115},null,{"$f":"L33","v":120}]
[null,null,{"$f":"title312&IF(OR('Biogas Use Selection'!$P$67=5,'Biogas Use Selection'!$P$67=2),Planner_PS1!$AJ$127,IF(OR('Biogas Use Selection'!$P$67=1,'Biogas Use Selection'!$P$67=3),Planner_PS1!$AJ$128,IF('Biogas Use Selection'!$P$67=4,Planner_PS1!$AJ$129)))&\")\"","v":"Unit cost of biogas (USD/kWh)"},null,null,{"$f":"F$98/IF(OR('Biogas Use Selection'!$P$67=1,'Biogas Use Selection'!$P$67=3),G$106,IF(OR('Biogas Use Selection'!$P$67=5,'Biogas Use Selection'!$P$67=2),Planner_PS1!AD$130*'Data entry needs'!$L$100,IF('Biogas Use Selection'!$P$67=4,F110*'Data entry needs'!$L$100)))","v":{"$error":"#DIV/0!"}},null,{"$f":"H$98/IF(OR('Biogas Use Selection'!$P$67=1,'Biogas Use Selection'!$P$67=3),I$106,IF(OR('Biogas Use Selection'!$P$67=5,'Biogas Use Selection'!$P$67=2),Planner_PS1!AE$130*'Data entry needs'!$L$100,IF('Biogas Use Selection'!$P$67=4,H110*'Data entry needs'!$L$100)))","v":{"$error":"#DIV/0!"}},null,{"$f":"J$98/IF(OR('Biogas Use Selection'!$P$67=1,'Biogas Use Selection'!$P$67=3),K$106,IF(OR('Biogas Use Selection'!$P$67=5,'Biogas Use Selection'!$P$67=2),Planner_PS1!AF$130*'Data entry needs'!$L$100,IF('Biogas Use Selection'!$P$67=4,J110*'Data entry needs'!$L$100)))","v":{"$error":"#DIV/0!"}},null,{"$f":"L$98/IF(OR('Biogas Use Selection'!$P$67=1,'Biogas Use Selection'!$P$67=3),M$106,IF(OR('Biogas Use Selection'!$P$67=5,'Biogas Use Selection'!$P$67=2),Planner_PS1!AG$130*'Data entry needs'!$L$100,IF('Biogas Use Selection'!$P$67=4,L110*'Data entry needs'!$L$100)))","v":{"$error":"#DIV/0!"}}]
[]
[null,null,{"$f":"title313","v":"Average loan interest"},{"$f":"title27","v":"Unit"},null,{"$f":"title320","v":"Total investment"},{"$f":"title314","v":"Loan amount"},{"$f":"title320","v":"Total investment"},{"$f":"title314","v":"Loan amount"},{"$f":"title320","v":"Total investment"},{"$f":"title314","v":"Loan amount"},{"$f":"title320","v":"Total investment"},{"$f":"title314","v":"Loan amount"}]
[null,null,null,null,null,"(USD)","(USD)","(USD)","(USD)","(USD)","(USD)","(USD)","(USD)"]
[null,null,{"$f":"title314","v":"Loan amount"},"USD",null,{"$f":"F80","v":{"$error":"#DIV/0!"}},{"$f":"'Data entry needs'!$F$118*F115","v":{"$error":"#DIV/0!"}},{"$f":"H80","v":{"$error":"#DIV/0!"}},{"$f":"'Data entry needs'!$F$119*H115","v":{"$error":"#DIV/0!"}},{"$f":"J80","v":{"$error":"#DIV/0!"}},{"$f":"'Data entry needs'!$F$120*J115","v":{"$error":"#DIV/0!"}},{"$f":"L80","v":{"$error":"#DIV/0!"}},{"$f":"'Data entry needs'!$F$121*L115","v":{"$error":"#DIV/0!"}}]
[null,null,{"$f":"title162","v":"Loan interest rate"},"%",null,null,{"$f":"E89","v":0},null,{"$f":"E89","v":0},null,{"$f":"E89","v":0},null,{"$f":"E89","v":0}]
[null,null,{"$f":"title315","v":"Loan payment"},{"$f":"title318","v":"USD/month"},null,null,{"$f":"PMT(G116/12,G119*12,G115,0)","v":{"$error":"#DIV/0!"}},null,{"$f":"PMT(I116/12,I119*12,I115,0)","v":{"$error":"#DIV/0!"}},null,{"$f":"PMT(K116/12,K119*12,K115,0)","v":{"$error":"#DIV/0!"}},null,{"$f":"PMT(M116/12,M119*12,M115,0)","v":{"$error":"#DIV/0!"}}]
[null,null,{"$f":"title316","v":"Annual loan payment"},{"$f":"title319","v":"USD/year"},null,null,{"$f":"G117*12","v":{"$error":"#DIV/0!"}},null,{"$f":"I117*12","v":{"$error":"#DIV/0!"}},null,{"$f":"K117*12","v":{"$error":"#DIV/0!"}},null,{"$f":"M117*12","v":{"$error":"#DIV/0!"}}]
[null,null,{"$f":"title163","v":"Loan terms"},{"$f":"title164","v":"year"},null,null,{"$f":"'Data entry needs'!$L$120","v":0},null,{"$f":"$G$119","v":0},null,{"$f":"$G$119","v":0},null,{"$f":"$G$119","v":0}]
[null,null,{"$f":"title317","v":"Total loan payment"},"USD",null,null,{"$f":"G118*G119","v":{"$error":"#DIV/0!"}},null,{"$f":"I118*I119","v":{"$error":"#DIV/0!"}},null,{"$f":"K118*K119","v":{"$error":"#DIV/0!"}},null,{"$f":"M118*M119","v":{"$error":"#DIV/0!"}}]
[null,null,{"$f":"title289","v":"Loan interest"},"USD",null,null,{"$f":"G120+G115","v":{"$error":"#DIV/0!"}},null,{"$f":"I120+I115","v":{"$error":"#DIV/0!"}},null,{"$f":"K120+K115","v":{"$error":"#DIV/0!"}},null,{"$f":"M120+M115","v":{"$error":"#DIV/0!"}}]
[null,null,{"$f":"title313","v":"Average loan interest"},{"$f":"title319","v":"USD/year"},null,null,{"$f":"+G121/20","v":{"$error":"#DIV/0!"}},null,{"$f":"+I121/20","v":{"$error":"#DIV/0!"}},null,{"$f":"+K121/20","v":{"$error":"#DIV/0!"}},null,{"$f":"+M121/20","v":{"$error":"#DIV/0!"}},null,null,null,null,null,null,null,null,null,null,null,null,null,null,null,null,{"$f":"title240","v":"Mesophilic"}]
[null,null,null,null,null,null,null,null,null,null,null,null,null,null,null,null,null,null,null,null,null,null,null,null,null,null,null,null,null,{"$f":"title241","v":"Thermophilic"}]
[null,null,null,null,null,null,null,null,null,null,null,null,null,null,null,null,null,null,null,null,null,null,null,null,null,null,null,null,null,{"$f":"IF('Data entry needs'!$J$11,COST_PS1!$AE124,COST_PS1!$AE124)","v":"CSTR"},"CSTR"]
[null,null,null,null,null,null,null,null,null,null,null,null,null,null,null,null,null,null,null,null,null,null,null,null,null,null,null,null,null,{"$f":"IF('Data entry needs'!$J$11,COST_PS1!$AE125,COST_PS1!$AE125)","v":"Plug Flow"},{"$f":"title530","v":"Plug Flow"}]
[null,null,null,null,null,null,null,null,null,null,null,null,null,null,null,null,null,null,null,null,null,null,null,null,null,null,null,null,null,{"$f":"IF('Data entry needs'!$J$11,COST_PS1!$AE126,COST_PS1!$AE126)","v":"UASB"},"UASB"]
[null,null,null,null,null,null,null,null,null,null,null,null,null,null,null,null,null,null,null,null,null,null,null,null,null,null,null,null,null,{"$f":"IF('Data entry needs'!$J$11,\"\",COST_PS1!$AE127)","v":""},{"$f":"title531","v":"Batch"}]
[]
[]
[null,null,null,null,null,null,null,null,null,null,null,null,null,null,null,null,null,null,null,null,null,null,null,null,null,null,null,null,null,null,{"$f":"title560","v":"Storage Methods"},null,null,{"$f":"title561","v":"Pressure"},{"$f":"title562","v":"Cost (USD/m3)"},{"$f":"title563","v":"Energy (kWh/m3)"},{"$f":"title564","v":"Methane (%)"}]
[null,null,null,null,null,null,null,null,null,null,null,null,null,null,null,null,null,null,null,null,null,null,null,null,null,null,null,null,null,null,0,{"$f":"title565","v":"Low-pressure system"},{"$f":"title569","v":"Water sealed gas holder"}," <2",9.893992932862191E-3,0,{"$f":"Planner_PS1!$AG$107","v":{"$error":"#DIV/0!"}},"Used for short and intermediate storage"]
[null,null,null,null,null,null,null,null,null,null,null,null,null,null,null,null,null,null,null,null,null,null,null,null,null,null,null,null,null,null,1,{"$f":"title566","v":"Intermediate-pressure system"},{"$f":"title570","v":"Propane Tanks"},"300 psi",7.9119529346846758,0.1765736241383207,{"$f":"Planner_PS1!$AG$107","v":{"$error":"#DIV/0!"}},"Suitable for standard storage"]
[null,null,null,null,null,null,null,null,null,null,null,null,null,null,null,null,null,null,null,null,null,null,null,null,null,null,null,null,null,null,2,{"$f":"title567","v":"High-pressure system"},{"$f":"title571","v":"CNG Tanks"},{"$f":"title573","v":"2,000 to 5,000 psi"},12.809187279151944,0.49440614758729801,1,"For pipeline injection of biomethane, only limited on-site gas storage facilities are necessary Needs first be upgraded to biomethane"]
[null,null,null,null,null,null,null,null,null,null,null,null,null,null,null,null,null,null,null,null,null,null,null,null,null,null,null,null,null,null,3,{"$f":"title568","v":"Cryogenic-pressure system"},{"$f":"title572","v":"LNG Tanks"},">5000 psi",29.939499246165674,{"$f":"AJ133*3","v":1.483218442761894},1,"For delivery and use as a transportation fuel,"]

{"sheet":"PRICE_FS1_PS1","index":14,"n_rows":178,"n_cols":39,"rows_kept":178,"cut":false,"hidden":true,"merged":[[40,8,40,9],[2,2,2,9],[5,2,5,3],[5,4,5,6],[7,2,10,9],[14,6,14,7],[15,2,15,3],[15,6,15,7],[30,3,30,7],[33,4,34,4],[33,5,34,5],[33,6,34,9],[34,2,34,3],[64,9,66,9],[86,3,86,7],[41,8,41,9],[57,3,57,7],[61,4,61,5],[61,6,62,6],[62,4,62,5],[64,2,64,3],[64,4,64,5],[64,6,66,6],[64,7,66,7],[64,8,66,8]]}
[21,88]
[]
[null,null,{"$f":"+title324&UPPER(INDIRECT(\"'Data entry needs'!$d$\"&$A$1)&\"-\"&INDIRECT(\"'Data entry needs'!$e$\"&$A$1))","v":"COLLECTION COSTS CALCULATOR FOR PLEASE SELECT-PLEASE SELECT"}]
[]
[]
[null,null,{"$f":"title193","v":"Use white cells to input data"},null,{"$f":"title194","v":"Grey cells are used for calculations"}]
[]
[null,null,{"$f":"title325&INDIRECT(\"'Data entry needs'!$d$\"&$A$1)&title326","v":"No collection method is required. It is assumed that Please Select are already collected. Then, transportation cost and/or market price should be considered."}]
[]
[]
[]
[]
[null,null,{"$f":"title327","v":"Collection Method 1 - Biomass spread in the field"}]
[]
[null,null,{"$f":"title328","v":"Collecting method"},null,{"$f":"title329","v":"Biomass Yield"},null,{"$f":"title110","v":"Feedstock Available (t/year)"},null,{"$f":"title330","v":"Collection days"}]
[null,null,"Mechanized",null,null,"t/ha",{"$f":"INDIRECT(\"'Data entry needs'!$F$\"&$A$1)","v":0},null,{"$f":"'Data entry needs'!L100-INDIRECT(\"Planner_pS1!$AN$\"&$B$1)*21","v":-252}]
[]
[null,null,{"$f":"title331","v":"Biomass Collection definition"}]
[]
[null,null,{"$f":"title332","v":"Biomass Price Definition"},null,null,null,null,null,null,null,null,null,null,null,null,null,null,null,null,null,null,{"$f":"title405","v":"Collection method"},null,{"$f":"title382","v":"Mechanized"},{"$f":"title380","v":"Number of skilled workers"},{"$f":"title409","v":"person-hour/ha"}]
[null,null,{"$f":"title333","v":"Labour cost"},{"$f":"title270","v":"Quantity"},{"$f":"title27","v":"Unit"},{"$f":"title270","v":"Quantity"},null,{"$f":"title27","v":"Unit"},"Total",{"$f":"title27","v":"Unit"},null,null,null,null,null,null,null,null,null,null,null,{"$f":"$C$16","v":"Mechanized"},null,{"$f":"title382&2","v":"Mechanized2"},{"$f":"title336","v":"Skilled labour wage"},{"$f":"title128","v":"USD/person-hour"}]
[null,null,{"$f":"IFERROR(VLOOKUP($V$21&$W21,$X$20:$Z$31,2,FALSE),\"\")","v":"Number of skilled workers"},null,{"$f":"IFERROR(VLOOKUP($V$21&$W21,$X$20:$Z$31,3,FALSE),\"\")","v":"person-hour/ha"},{"$f":"IFERROR(VLOOKUP($V$21&$W23,$X$20:$Z$31,2,FALSE),\"\")","v":"Skilled labour wage"},{"$f":"IF(F22=\"\",\"\",IF(F22=title335,'Data entry needs'!$L$96,IF(F22=title336,'Data entry needs'!F96)))","v":0},{"$f":"IFERROR(VLOOKUP($V$21&$W23,$X$20:$Z$31,3,FALSE),\"\")","v":"USD/person-hour"},{"$f":"IFERROR(G22*D22*(G16/E16)*('Data entry needs'!$L$100/$I$16),0)","v":0},{"$f":"IF(C22=\"\",\"\",title319)","v":"USD/year"},null,null,null,null,null,null,null,null,null,null,null,null,1,{"$f":"title382&4","v":"Mechanized4"},{"$f":"title407","v":"Average fuel economy"},"l/h"]
[null,null,{"$f":"IFERROR(VLOOKUP($V$21&$W22,$X$20:$Z$31,2,FALSE),\"\")","v":""},null,{"$f":"IFERROR(VLOOKUP($V$21&$W22,$X$20:$Z$31,3,FALSE),\"\")","v":""},{"$f":"IFERROR(VLOOKUP($V$21&$W24,$X$20:$Z$31,2,FALSE),\"\")","v":""},{"$f":"IF(F23=\"\",\"\",'Data entry needs'!L96)","v":""},{"$f":"title128","v":"USD/person-hour"},{"$f":"IFERROR(G23*D23*(G16/E16)*('Data entry needs'!$L$100/$I$16),0)","v":0},{"$f":"IF(C23=\"\",\"\",title319)","v":""},null,null,null,null,null,null,null,null,null,null,null,{"$f":"VLOOKUP($V$21,$T$29:$U$31,2,FALSE)","v":1},2,{"$f":"title382&5","v":"Mechanized5"},{"$f":"title408","v":"Fuel price"},"USD/l"]
[null,null,null,{"$f":"+IF(AND(C22=\"\",C23=\"\"),0,IF(C22=\"\",D23,IF(C23=\"\",D22,D22+D23)))","v":0},null,null,null,{"$f":"title269","v":"Subtotal"},{"$f":"+SUMIF($I$22:$I$23,\">0\")","v":0},{"$f":"title319","v":"USD/year"},null,null,null,null,null,null,null,null,null,null,null,null,3,{"$f":"title378","v":"Semi-mechanized"},{"$f":"title380","v":"Number of skilled workers"},{"$f":"title409","v":"person-hour/ha"}]
[null,null,{"$f":"title334","v":"Machinery & operating cost"},{"$f":"title270","v":"Quantity"},{"$f":"title27","v":"Unit"},{"$f":"title270","v":"Quantity"},null,{"$f":"title27","v":"Unit"},"Total",{"$f":"title27","v":"Unit"},null,null,null,null,null,null,null,null,null,null,null,null,4,{"$f":"title378&1","v":"Semi-mechanized1"},{"$f":"title379","v":"Number of unskilled workers"},{"$f":"title409","v":"person-hour/ha"}]
[null,null,{"$f":"IFERROR(VLOOKUP($V$21&$W25,$X$20:$Z$31,2,FALSE),\"\")","v":"Average fuel economy"},null,{"$f":"IFERROR(VLOOKUP($V$21&$W25,$X$20:$Z$31,3,FALSE),\"\")","v":"l/h"},{"$f":"IFERROR(VLOOKUP($V$21&$W26,$X$20:$Z$31,2,FALSE),\"\")","v":"Fuel price"},{"$f":"IF(F26=\"\",\"\",'Data entry needs'!$F$100)","v":0},{"$f":"+IFERROR(VLOOKUP($V$21&$W26,$X$20:$Z$31,3,FALSE),\"\")","v":"USD/l"},{"$f":"+IFERROR(D26*G26*IF($C$16=title337,0,$D$22*G16/E16)*('Data entry needs'!$L$100/$I$16),\"\")","v":""},{"$f":"IF(C26=\"\",\"\",title319)","v":"USD/year"},null,null,null,null,null,null,null,null,null,null,null,null,5,{"$f":"title378&2","v":"Semi-mechanized2"},{"$f":"title336","v":"Skilled labour wage"},{"$f":"title128","v":"USD/person-hour"}]
[null,null,null,null,null,null,null,{"$f":"IF(C26=\"\",\"\",title269)","v":"Subtotal"},{"$f":"+I26","v":""},{"$f":"IF(C26=\"\",\"\",title319)","v":"USD/year"},null,null,null,null,null,null,null,null,null,null,null,null,null,{"$f":"title378&3","v":"Semi-mechanized3"},{"$f":"title335","v":"Unskilled labour wage"},{"$f":"title128","v":"USD/person-hour"}]
[null,null,null,null,null,null,null,{"$f":"IF(C26=\"\",\"\",\"Total\")","v":"Total"},{"$f":"IFERROR(I24+I27,I24)","v":0},{"$f":"title319","v":"USD/year"},null,null,null,null,null,null,null,null,null,{"$f":"title405","v":"Collection method"},null,null,null,{"$f":"title378&4","v":"Semi-mechanized4"},{"$f":"title407","v":"Average fuel economy"},"l/h"]
[null,null,null,null,null,null,null,null,null,null,null,null,null,null,null,null,null,null,null,{"$f":"title382","v":"Mechanized"},1,null,null,{"$f":"title378&5","v":"Semi-mechanized5"},{"$f":"title408","v":"Fuel price"},"USD/l"]
[null,null,null,null,null,null,null,null,"",null,null,null,null,null,null,null,null,null,null,{"$f":"title378","v":"Semi-mechanized"},2,null,null,{"$f":"title337","v":"Manual"},{"$f":"title379","v":"Number of unskilled workers"},{"$f":"title409","v":"person-hour/ha"}]
[null,null,null,{"$f":"title338&INDIRECT(\"'Data entry needs'!$d$\"&$A$1)&\"-\"&INDIRECT(\"'Data entry needs'!$e$\"&$A$1)","v":"Collection cost of Please Select-Please Select"},null,null,null,null,{"$f":"(I24+I28)/$G$16","v":{"$error":"#DIV/0!"}},"USD/t",null,null,null,null,null,null,null,null,null,{"$f":"title337","v":"Manual"},3,null,null,{"$f":"title337&2","v":"Manual2"},{"$f":"title335","v":"Unskilled labour wage"},{"$f":"title128","v":"USD/person-hour"}]
[]
[]
[null,null,null,null,false,null,{"$f":"IF($E$34,title340,title341)","v":"Use this method for feedstock collected and transported from different farms to a central collection point"}]
[null,null,{"$f":"title339","v":"Collection Methods Available"}]
[]
[null,null,{"$f":"title342","v":"Collection Method 2"}]
[]
[null,null,{"$f":"title328","v":"Collecting method"},{"$f":"title343","v":"Transportation requirements"},null,null,null,null,{"$f":"title346","v":"Data Source"}]
[]
[null,null,"Please Select",{"$f":"title110","v":"Feedstock Available (t/year)"},{"$f":"INDIRECT(\"'Data entry needs'!$F$\"&$A$1)","v":0},{"$f":"title344","v":"Initial ts in residue (%)"},null,{"$f":"INDIRECT(\"'Data entry needs'!$h$\"&$A$1)","v":0},false]
[null,null,null,{"$f":"title134","v":"Operating days per year"},{"$f":"'Data entry needs'!L100-INDIRECT(\"Planner_pS1!$AN$\"&$B$1)*21","v":-252},{"$f":"title345&$C$41","v":"ts (%) allowed by Please Select"},null,{"$f":"Q45","v":{"$error":"#N/A"}}]
[]
[null,null,{"$f":"title347","v":"Collection Cost Definition"}]
[null,null,{"$f":"title348","v":"Operation Cost"},{"$f":"title270","v":"Quantity"},{"$f":"title27","v":"Unit"},{"$f":"title270","v":"Quantity"},{"$f":"title27","v":"Unit"},{"$f":"title267","v":"Unit Price"},"Total",null,null,null,null,null,null,"ts (%) transported",{"$f":"VLOOKUP($C$41,$P$149:$V$155,7,FALSE)","v":{"$error":"#N/A"}}]
[null,null,{"$f":"title35","v":"Electricity"},{"$f":"Q46","v":13.333333333333334},"kWh/t res",{"$f":"D46*E41","v":0},{"$f":"title304","v":"kWh/year"},{"$f":"'Data entry needs'!$L$92","v":0},{"$f":"F46*H46","v":0},{"$f":"title319","v":"USD/year"},null,null,null,null,null,{"$f":"title35","v":"Electricity"},{"$f":"$Q$160","v":13.333333333333334}]
[null,null,{"$f":"title170","v":"Diesel"},{"$f":"Q47","v":{"$error":"#N/A"}},{"$f":"title574","v":"l diesel/t res"},{"$f":"D47*$E$41","v":{"$error":"#N/A"}},{"$f":"title350","v":"Liter Diesel/year"},{"$f":"'Data entry needs'!$F$100","v":0},{"$f":"F47*H47","v":{"$error":"#N/A"}},{"$f":"title319","v":"USD/year"},null,null,null,null,null,{"$f":"title170","v":"Diesel"},{"$f":"VLOOKUP($C$41,$P$149:$S$155,2,FALSE)","v":{"$error":"#N/A"}}]
[null,null,{"$f":"title244","v":"Water Make-up "},{"$f":"Q48","v":0.15},{"$f":"title353","v":"Liter water/t res"},{"$f":"IF(D48=0,0,E41*(H41/H42)*(1-D48))","v":{"$error":"#N/A"}},{"$f":"title351","v":"Liter water/year"},{"$f":"'Data entry needs'!$F$92","v":0},{"$f":"F48*H48*D48","v":{"$error":"#N/A"}},{"$f":"title319","v":"USD/year"},null,null,null,null,null,{"$f":"title244","v":"Water Make-up "},0.15]
[null,null,{"$f":"title349","v":"Unskilled Workers"},{"$f":"Q49","v":{"$error":"#N/A"}},{"$f":"title354","v":"person-day/t res"},{"$f":"ROUNDUP($D$49*E41*('Data entry needs'!$L$100/PRICE_FS1_PS1!E42)/'Data entry needs'!$L$99,0)","v":{"$error":"#N/A"}},{"$f":"title352","v":"person-hour"},{"$f":"'Data entry needs'!$L$96","v":0},{"$f":"F49*H49","v":{"$error":"#N/A"}},{"$f":"title319","v":"USD/year"},null,null,null,null,null,{"$f":"title127","v":"Unskilled worker"},{"$f":"VLOOKUP($C$41,$P$149:$S$155,3,FALSE)","v":{"$error":"#N/A"}}]
[null,null,null,{"$f":"Q47","v":{"$error":"#N/A"}},null,null,null,{"$f":"title269","v":"Subtotal"},{"$f":"+SUMIF($I$46:$I$49,\">0\")","v":0},{"$f":"title319","v":"USD/year"}]
[]
[null,null,{"$f":"title355","v":"Capital Investment"},{"$f":"title270","v":"Quantity"},{"$f":"title27","v":"Unit"}]
[null,null,{"$f":"$C$41&title356","v":"Please Select and equipment"},{"$f":"Q53","v":{"$error":"#N/A"}},{"$f":"VLOOKUP($C$41,$P$149:$T$155,5,FALSE)","v":{"$error":"#N/A"}},null,null,null,{"$f":"D53*(E41*10)/20","v":{"$error":"#N/A"}},{"$f":"title319","v":"USD/year"},null,null,null,null,null,{"$f":"$C$41&title356","v":"Please Select and equipment"},{"$f":"VLOOKUP($C$41,$P$149:$S$155,4,FALSE)","v":{"$error":"#N/A"}}]
[null,null,{"$f":"title357","v":"Dewatering"},{"$f":"Q54","v":7},"USD/t res",null,null,null,{"$f":"D54*$E$41/20","v":0},{"$f":"title319","v":"USD/year"},null,null,null,null,null,{"$f":"title357","v":"Dewatering"},{"$f":"$Q$158","v":7}]
[null,null,{"$f":"title358","v":"Operation and Mainteinance"},{"$f":"Q55","v":0.15},null,null,null,null,{"$f":"SUM(I53:I54)*$D$55","v":{"$error":"#N/A"}},{"$f":"title319","v":"USD/year"},null,null,null,null,null,{"$f":"title358","v":"Operation and Mainteinance"},0.15]
[null,null,null,{"$f":"+IF(AND(C54=\"\",C55=\"\"),0,IF(C54=\"\",D55,IF(C55=\"\",D54,D54+D55)))","v":7.15},null,null,null,{"$f":"title269","v":"Subtotal"},{"$f":"+SUMIF(I53:I55,\">0\")","v":0},{"$f":"title319","v":"USD/year"}]
[]
[null,null,null,{"$f":"title359","v":"Cost for Collection and transfer to storage tank"},null,null,null,null,{"$f":"SUM(I50+I56)/E41","v":{"$error":"#DIV/0!"}},"USD/t"]
[]
[null,null,{"$f":"title360","v":"Collection Method 3 - Feedstock collected from different farms"}]
[]
[null,null,{"$f":"title361","v":"Source of biomass"},null,{"$f":"title405","v":"Collection method"},null,{"$f":"title346","v":"Data Source"},false]
[null,null,{"$f":"title362","v":"Transfer from individual farms"},null,"Mechanized"]
[]
[null,null,{"$f":"title363","v":"Transportation method"},null,"Tanker Truck Transfer",null,{"$f":"title372","v":"Number Of Farms Supplying Feedstock"},{"$f":"title373","v":"Average distance to collection point (m)"},{"$f":"title374","v":"Collection Period (days)"},{"$f":"IF($E$65=title364,title375,title376)&title377","v":"Number of Tanks required"}]
[]
[null,null,{"$f":"IF($E$65=title364,title365,title366)","v":"Tranport Capacity (liter)"},{"$f":"Q67","v":27600},{"$f":"title370","v":"Residue Quanitiy (t/year)"},{"$f":"INDIRECT(\"'Data entry needs'!$F$\"&$A$1)","v":0},null,null,null,null,null,null,null,null,null,{"$f":"IF($E$60=title364,title365,title366)","v":"Pipe Diameter (in)"},{"$f":"VLOOKUP($E$65,$Y$147:$AE$149,3,FALSE)","v":27600}]
[null,null,{"$f":"IF($E$65=title364,title367,title368)","v":"Engine Power (HP)"},{"$f":"Q68","v":200},{"$f":"title371","v":"Residue Density (kg/m3)"},{"$f":"Q72","v":1000},null,null,{"$f":"'Data entry needs'!L100-INDIRECT(\"Planner_pS1!$AN$\"&$B$1)*21","v":-252},{"$f":"IFERROR(ROUNDUP($F$67*1000*1000/(960*$D$69*'Data entry needs'!$L$99)/$I$68,0),0)","v":0},null,null,null,null,null,{"$f":"IF($E$60=title364,title367,title368)","v":"Motor Power (HP)"},{"$f":"VLOOKUP($E$65,$Y$147:$AE$149,4,FALSE)","v":200}]
[null,null,{"$f":"title369","v":"Transfer Rate (l/h)"},{"$f":"Q69","v":27221.917808219176},null,null,null,null,null,null,null,null,null,null,null,{"$f":"title369","v":"Transfer Rate (l/h)"},{"$f":"VLOOKUP($E$65,$Y$147:$AE$149,5,FALSE)","v":27221.917808219176}]
[]
[null,null,null,{"$f":"+IF(OR($E$63=title337,$E$63=title378),FALSE,TRUE)","v":true},{"$f":"+IF($E$63=title337,TRUE,FALSE)","v":false}]
[null,null,{"$f":"title332","v":"Biomass Price Definition"},null,null,null,null,null,null,null,null,null,null,null,null,{"$f":"title371","v":"Residue Density (kg/m3)"},{"$f":"IFERROR(VLOOKUP(INDIRECT(\"'Data entry needs'!$e$\"&$A$1),PRICE_FS1_PS1!$Y$152:$Z$156,2,FALSE),1000)","v":1000}]
[null,null,{"$f":"title333","v":"Labour cost"},{"$f":"title270","v":"Quantity"},{"$f":"title27","v":"Unit"},{"$f":"title270","v":"Quantity"},null,{"$f":"title27","v":"Unit"},"Total",{"$f":"title27","v":"Unit"}]
[null,null,{"$f":"IF(OR($E$63=title337,$E$63=title378),title379,\"\")","v":""},null,{"$f":"IF(OR($E$63=title337,$E$63=title378),title381,\"\")","v":""},{"$f":"IF(OR($E$63=title337,$E$63=title378),title335,\"\")","v":""},{"$f":"IF(OR($E$63=title337,$E$63=title378),'Data entry needs'!$L$96,\"\")","v":""},{"$f":"IF(OR($E$63=title337,$E$63=title378),title128,\"\")","v":""},{"$f":"IFERROR(IF(OR($E$63=title337,$E$63=title378),$F$67*D74*$G$74,\"\"),0)","v":""},{"$f":"IF(OR($E$63=title337,$E$63=title378),title319,\"\")","v":""}]
[null,null,{"$f":"IF($E$63=title337,\"\",title380)","v":"Number of skilled workers"},null,{"$f":"IF($E$63=title337,\"\",title381)","v":"person-hour/t"},{"$f":"IF($E$63=title337,\"\",title336)","v":"Skilled labour wage"},{"$f":"IF($E$63=title337,\"\",'Data entry needs'!$F$96)","v":0},{"$f":"IF($E$63=title337,\"\",title128)","v":"USD/person-hour"},{"$f":"IFERROR(IF($E$63=title337,\"\",D75*G75*$F$67),0)","v":0},{"$f":"IF($E$63=title337,\"\",title319)","v":"USD/year"}]
[null,null,null,{"$f":"+IF(AND(C74=\"\",C75=\"\"),0,IF(C74=\"\",D75,IF(C75=\"\",D74,D74+D75)))","v":0},null,null,null,{"$f":"title269","v":"Subtotal"},{"$f":"+SUMIF($I$74:$I$75,\">0\")","v":0},{"$f":"title319","v":"USD/year"}]
[null,null,{"$f":"title383","v":"Collection Machinery"},{"$f":"title270","v":"Quantity"},{"$f":"title27","v":"Unit"},{"$f":"title270","v":"Quantity"},null,{"$f":"title27","v":"Unit"},"Total",{"$f":"title27","v":"Unit"}]
[null,null,{"$f":"IF(OR($E$63=title382,$E$63=title378),title384,\"\")","v":"Collection Diesel Consumption"},null,{"$f":"IF(OR($E$63=title382,$E$63=title378),title575,\"\")","v":"l diesel/h"},{"$f":"IF(OR($E$63=title382,$E$63=title378),title389,\"\")","v":"Diesel Cost"},{"$f":"IF(OR($E$63=title382,$E$63=title378),'Data entry needs'!F$100,\"\")","v":0},{"$f":"IF(OR($E$63=title382,$E$63=title378),title576,\"\")","v":"USD/l diesel"},{"$f":"IFERROR(IF(OR($E$63=title382,$E$63=title378),D78*G78*D75*F67,\"\"),0)","v":0},{"$f":"title319","v":"USD/year"}]
[null,null,{"$f":"IF($E$65=title364,title385,title386)","v":"Truck Diesel Consumption"},{"$f":"Q79","v":154},{"$f":"IF($E$65=title364,title387,title388)","v":"l diesel/day"},{"$f":"IF($E$65=title364,title389,title390)","v":"Diesel Cost"},{"$f":"IF($E$65=title364,'Data entry needs'!F$100,'Data entry needs'!$L$92)","v":0},{"$f":"IF($E$65=title364,title576,\"USD/kWh\")","v":"USD/l diesel"},{"$f":"IFERROR(D79*G79*$I$68*$J$68,0)","v":0},{"$f":"title319","v":"USD/year"},null,null,null,null,null,{"$f":"IF($E$60=title364,title385,title386)","v":"Pump Electricity Consumption"},{"$f":"VLOOKUP($E$65,$Y$147:$AE$149,7,FALSE)","v":154}]
[null,null,null,null,null,null,null,{"$f":"title269","v":"Subtotal"},{"$f":"+SUMIF($I$78:$I$79,\">0\")","v":0},{"$f":"title319","v":"USD/year"}]
[null,null,{"$f":"title391","v":"Equipment"},{"$f":"title270","v":"Quantity"},{"$f":"title27","v":"Unit"},{"$f":"title270","v":"Quantity"},null,{"$f":"title27","v":"Unit"},"Total",{"$f":"title27","v":"Unit"}]
[null,null,{"$f":"IF($E$65=title364,title392,title393)","v":"Liquid Tanker Truck"},{"$f":"IF($E$65=title364,$J$68,$G$68*$H$68*1.2)","v":0},{"$f":"IF($E$65=title364,title398,\"m\")","v":"tank(s)"},{"$f":"IF($E$65=title364,title399,title400)","v":"Cost per Tank"},{"$f":"VLOOKUP($E$65,$Y$147:$AF$149,8,FALSE)/10","v":7900},{"$f":"IF($E$65=title364,title402,title403)","v":"USD/tank/year"},{"$f":"IFERROR(D82*G82,0)","v":0},{"$f":"title319","v":"USD/year"}]
[null,null,{"$f":"IF($E$65=title364,title394&$D$68&title395,title396&$D$68&title397)","v":"Semi-tractor 185 200 HP"},{"$f":"Q83","v":148000},"USD",{"$f":"title401","v":"Depreciation Period"},{"$f":"Q85","v":15},{"$f":"title164","v":"year"},{"$f":"IFERROR(D83*$J$68/G83,0)","v":0},{"$f":"title319","v":"USD/year"},null,null,null,null,null,{"$f":"IF($E$60=title364,title406,title396&$D$63&title397)","v":"Pump  HP with agitator"},{"$f":"VLOOKUP($E$65,$Y$147:$AH$149,10,FALSE)","v":148000}]
[null,null,{"$f":"title358","v":"Operation and Mainteinance"},{"$f":"Q84","v":0.15},null,null,null,null,{"$f":"IFERROR(SUM(I82:I83)*$D$84,0)","v":0},{"$f":"title319","v":"USD/year"},null,null,null,null,null,{"$f":"title358","v":"Operation and Mainteinance"},0.15]
[null,null,null,null,null,null,null,{"$f":"title269","v":"Subtotal"},{"$f":"I82","v":0},{"$f":"title319","v":"USD/year"},null,null,null,null,null,{"$f":"title401","v":"Depreciation Period"},15]
[]
[null,null,null,{"$f":"title404","v":"Cost for Collection and transfer to central collection point"},null,null,null,null,{"$f":"(I85+I80+I76)/$F$67","v":{"$error":"#DIV/0!"}},"USD/t"]
[]
[]
[]
[]
[]
[]
[]
[]
[]
[]
[]
[]
[]
[]
[]
[]
[]
[]
[]
[]
[]
[]
[]
[]
[]
[]
[]
[]
[]
[]
[]
[null,null,null,null,null,null,null,null,null,null,null,null,null,null,null,{"$f":"title410","v":"Sources of biomass"}]
[null,null,null,null,null,null,null,null,null,null,null,null,null,null,null,{"$f":"title411","v":"Biomass spread in the field"}]
[null,null,null,null,null,null,null,null,null,null,null,null,null,null,null,{"$f":"title412","v":"Biomass collected from field"}]
[null,null,null,null,null,null,null,null,null,null,null,null,null,null,null,{"$f":"title413","v":"Biomass from food processing plant"}]
[]
[]
[]
[]
[null,null,null,null,null,null,null,null,null,null,null,null,null,null,null,{"$f":"title405","v":"Collection method"}]
[null,null,null,null,null,null,null,null,null,null,null,null,null,null,null,{"$f":"title382","v":"Mechanized"}]
[null,null,null,null,null,null,null,null,null,null,null,null,null,null,null,{"$f":"title378","v":"Semi-mechanized"}]
[null,null,null,null,null,null,null,null,null,null,null,null,null,null,null,{"$f":"title337","v":"Manual"}]
[]
[]
[]
[]
[]
[]
[]
[]
[]
[]
[]
[]
[]
[]
[null,null,null,null,null,null,null,null,null,null,null,null,null,null,null,"Dairy maNURE",40.753799999999998,"Manure (kg/head/day)"]
[null,null,null,null,null,null,null,null,null,null,null,null,null,null,null,null,"Energy Use Cost","Labor and Mainteinance",null,null,null,"ts (%) transported","Dewateing",null,null,null,{"$f":"title440","v":"Capacity"},{"$f":"title441","v":"Engine/motor (hp)"},{"$f":"title369","v":"Transfer Rate (l/h)"},{"$f":"title442","v":"Transfer time (m/h)"},{"$f":"title443","v":"Energy Use  (kw)"},{"$f":"title444","v":"Add equipment"}]
[null,null,null,null,null,null,null,null,null,null,null,null,null,null,null,{"$f":"title405","v":"Collection method"},"liters diesel/t residue","workers*day/t residue","Capital cost","Capital cost","Capital cost",null,"Final solids ts (%)",null,{"$f":"title364","v":"Tanker Truck Transfer"},null,27600,200,27221.917808219176,609.6,154,79000,"USD",{"$f":"148000","v":148000},2010,{"$f":"title406","v":"Semi-tractor 185 HP"},null,null,"l/working day"]
[null,null,null,null,null,null,null,null,null,null,null,null,null,null,null,{"$f":"title74","v":"Please Select"},null,null,null,null,null,null,null,null,{"$f":"title432","v":"High Volume Pipeline"},null,"6´´ PVC",150,3028,1016,215,{"$f":"37/3.048","v":12.139107611548557},"USD/m",37075,2003]
[null,null,null,null,null,null,null,null,null,null,null,null,null,null,null,{"$f":"title414","v":"Alley Scrapers"},0.14330809896079807,0.42057427773606393,{"$f":"(AVERAGE(35,45)*$B$52+10000+4000)/3785.41178","v":3.698408736922143},{"$f":"title421","v":"USD/liter mixture"},2009,0.08,0.5,null,{"$f":"title433","v":"Low Volume Pipeline"},null,"4´´ PVC",7.5,378,127,86,{"$f":"12.4/3.048","v":4.0682414698162734},"USD/m",7675,2003]
[null,null,null,null,null,null,null,null,null,null,null,null,null,null,null,{"$f":"title415","v":"Flush System"},0.4093569308278352,0.10526625737967994,{"$f":"(4950.08+(16+9.8)*$B$52)/3785.41178","v":1.3076727943188258},"USD/liter mixture",2014,{"$f":"AVERAGE(1%,3%)","v":0.02},0.5]
[null,null,null,null,null,null,null,null,null,null,null,null,null,null,null,{"$f":"title416","v":"Vacum Scraper"},3.190595592141102,1.9769935564290937,10,"USD/liter mixture",2010,0.18,0.5,null,null,{"$f":"title434","v":"Density (Kg/m3)"}]
[null,null,null,null,null,null,null,null,null,null,null,null,null,null,null,{"$f":"title417","v":"Skid-loader"},0.75612714559717353,1.2830705357537211,{"$f":"(142.6*0.914+58.5*0.084+50.75*0.997)/$Q$145","v":4.5602655457895951},"USD/liter mixture",2010,{"$f":"AVERAGE(8%,18%)","v":0.13},0.5,null,{"$f":"title435","v":"Buffalo"},960]
[null,null,null,null,null,null,null,null,null,null,null,null,null,null,null,{"$f":"title418","v":"Cross gutter Scraper"},1.5259658685640533E-2,2.6500596263415929E-2,5,"USD/liter mixture",2010,0.08,0.5,null,{"$f":"title436","v":"Cattle"},960]
[null,null,null,null,null,null,null,null,null,null,null,null,null,null,null,{"$f":"title419","v":"Cross Gutter Auger"},0.20478904265077005,2.6255220372088005E-2,{"$f":"2200*30/2378/10","v":2.7754415475189234},"USD/liter mixture",2010,0.08,0.5,null,{"$f":"title437","v":"Dairy Cattle"},994]
[null,null,null,null,null,null,null,null,null,null,null,null,null,null,null,{"$f":"title420","v":"Flush Flume"},0.13645231027594507,2.6255220372088005E-2,{"$f":"(4950.08+(16+9.8)*$B$52)*1.5/3785.41178","v":1.9615091914782385},"USD/liter mixture",2010,{"$f":"AVERAGE(4%,9%)","v":6.5000000000000002E-2},0.5,null,{"$f":"title438","v":"Poultry"},961.11]
[null,null,null,null,null,null,null,null,null,null,null,null,null,null,null,null,null,null,null,null,null,null,null,null,{"$f":"title439","v":"Swine"},1140.9000000000001]
[null,null,null,null,null,null,null,null,null,null,null,null,null,null,null,{"$f":"title357","v":"Dewatering"},"Screw Press ",{"$f":"PROPER(title164)","v":"Year"}]
[null,null,null,null,null,null,null,null,null,null,null,null,null,null,null,{"$f":"title422","v":"Capital Cost (USD/t residue)"},{"$f":"AVERAGE(0.2,0.5)*1000000*0.12/AVERAGE(4000,8000)","v":7},2002]
[null,null,null,null,null,null,null,null,null,null,null,null,null,null,null,{"$f":"title423","v":"Operation (worker/t residue)"},{"$f":"AVERAGE(20,40)*1000/AVERAGE(4000,8000)/(300*8*160)","v":1.3020833333333334E-5}]
[null,null,null,null,null,null,null,null,null,null,null,null,null,null,null,{"$f":"title424","v":"Energy Demand kWh/t residue"},{"$f":"AVERAGE(5,15)*8000/AVERAGE(4000,8000)","v":13.333333333333334},2002]
[]
[]
[]
[]
[null,null,null,null,null,null,null,null,null,null,null,null,null,null,null,{"$f":"title74","v":"Please Select"},{"$f":"title405","v":"Collection method"},"Show","Section to Show",{"$f":"VLOOKUP(INDIRECT(\"'Data entry needs'!$d$\"&$A$1),$P$166:$R$178,3,FALSE)","v":{"$error":"#N/A"}}]
[null,null,null,null,null,null,null,null,null,null,null,null,null,null,null,{"$f":"title184","v":"Biodiesel/Oilseed Ind."},{"$f":"title425","v":"No collection neeeded"},1,{"$f":"title429&\" 0\"","v":"Option 0"},0,0]
[null,null,null,null,null,null,null,null,null,null,null,null,null,null,null,{"$f":"title85","v":"Crop Residues"},{"$f":"title426","v":"Method 1"},2,{"$f":"title429&\" 1\"","v":"Option 1"},{"$f":"$I$31","v":{"$error":"#DIV/0!"}},{"$f":"$D$24/E16","v":{"$error":"#DIV/0!"}},{"$f":"title381","v":"person-hour/t"}]
[null,null,null,null,null,null,null,null,null,null,null,null,null,null,null,{"$f":"title185","v":"Dairy-milk ind."},{"$f":"title427","v":"Method 2, Method 3"},4,{"$f":"title429&\" 2\"","v":"Option 2"},{"$f":"$I$58","v":{"$error":"#DIV/0!"}},{"$f":"F49/E41","v":{"$error":"#N/A"}},{"$f":"title381","v":"person-hour/t"}]
[null,null,null,null,null,null,null,null,null,null,null,null,null,null,null,{"$f":"title120","v":"Energy Crops"},{"$f":"title425","v":"No collection neeeded"},1,{"$f":"title429&\" 3\"","v":"Option 3"},{"$f":"$I$87","v":{"$error":"#DIV/0!"}},{"$f":"D76","v":0},{"$f":"title381","v":"person-hour/t"}]
[null,null,null,null,null,null,null,null,null,null,null,null,null,null,null,{"$f":"title186","v":"Eth-Sugar-Starch Ind."},{"$f":"title425","v":"No collection neeeded"},1]
[null,null,null,null,null,null,null,null,null,null,null,null,null,null,null,{"$f":"title187","v":"Food Process. Res."},{"$f":"title425","v":"No collection neeeded"},1,{"$f":"title430","v":"Result"},{"$f":"IF($T$165=1,T166,IF($T$165=2,$T$167,IF($T$165=3,T168,IF(AND($T$165=4,$E$34),$T$168,$T$169))))","v":{"$error":"#N/A"}}]
[null,null,null,null,null,null,null,null,null,null,null,null,null,null,null,{"$f":"title188","v":"Grass"},{"$f":"title426","v":"Method 1"},2,{"$f":"title431","v":"Employees"},{"$f":"IF($T$165=1,U166,IF($T$165=2,$U$167,IF($T$165=3,U169,IF(AND($T$165=4,$E$34),$U$168,$U$169))))","v":{"$error":"#N/A"}},{"$f":"title381","v":"person-hour/t"}]
[null,null,null,null,null,null,null,null,null,null,null,null,null,null,null,{"$f":"title119","v":"Crops"},{"$f":"title425","v":"No collection neeeded"},1]
[null,null,null,null,null,null,null,null,null,null,null,null,null,null,null,{"$f":"title189","v":"Other Options"},{"$f":"title425","v":"No collection neeeded"},1]
[null,null,null,null,null,null,null,null,null,null,null,null,null,null,null,{"$f":"title190","v":"Slaughterhouses wastes"},{"$f":"title428","v":"Method 2"},3]
[null,null,null,null,null,null,null,null,null,null,null,null,null,null,null,{"$f":"title191","v":"Yeast-Alcoholic Bev."},{"$f":"title425","v":"No collection neeeded"},1]
[null,null,null,null,null,null,null,null,null,null,null,null,null,null,null,{"$f":"title84","v":"Manure"},{"$f":"title427","v":"Method 2, Method 3"},4]
[null,null,null,null,null,null,null,null,null,null,null,null,null,null,null,{"$f":"title192","v":"Wastewater"},{"$f":"title425","v":"No collection neeeded"},1]

{"sheet":"PRICE_FS2_PS1","index":15,"n_rows":178,"n_cols":39,"rows_kept":178,"cut":false,"hidden":true,"merged":[[40,8,40,9],[2,2,2,9],[5,2,5,3],[5,4,5,6],[7,2,10,9],[14,6,14,7],[15,2,15,3],[15,6,15,7],[30,3,30,7],[33,4,34,4],[33,5,34,5],[33,6,34,9],[34,2,34,3],[64,9,66,9],[86,3,86,7],[41,8,41,9],[57,3,57,7],[61,4,61,5],[61,6,62,6],[62,4,62,5],[64,2,64,3],[64,4,64,5],[64,6,66,6],[64,7,66,7],[64,8,66,8]]}
[{"$f":"+PRICE_FS1_PS1!A1+2","v":23},89]
[]
[null,null,{"$f":"+title324&UPPER(INDIRECT(\"'Data entry needs'!$d$\"&$A$1)&\"-\"&INDIRECT(\"'Data entry needs'!$e$\"&$A$1))","v":"COLLECTION COSTS CALCULATOR FOR PLEASE SELECT-PLEASE SELECT"}]
[]
[]
[null,null,{"$f":"title193","v":"Use white cells to input data"},null,{"$f":"title194","v":"Grey cells are used for calculations"}]
[]
[null,null,{"$f":"title325&INDIRECT(\"'Data entry needs'!$d$\"&$A$1)&title326","v":"No collection method is required. It is assumed that Please Select are already collected. Then, transportation cost and/or market price should be considered."}]
[]
[]
[]
[]
[null,null,{"$f":"title327","v":"Collection Method 1 - Biomass spread in the field"}]
[]
[null,null,{"$f":"title328","v":"Collecting method"},null,{"$f":"title329","v":"Biomass Yield"},null,{"$f":"title110","v":"Feedstock Available (t/year)"},null,{"$f":"title330","v":"Collection days"}]
[null,null,"Mechanized",null,null,"t/ha",{"$f":"INDIRECT(\"'Data entry needs'!$F$\"&$A$1)","v":0},null,{"$f":"'Data entry needs'!L100-INDIRECT(\"Planner_pS1!$AN$\"&$B$1)*21","v":-252}]
[]
[null,null,{"$f":"title331","v":"Biomass Collection definition"}]
[]
[null,null,{"$f":"title332","v":"Biomass Price Definition"},null,null,null,null,null,null,null,null,null,null,null,null,null,null,null,null,null,null,{"$f":"title405","v":"Collection method"},null,{"$f":"title382","v":"Mechanized"},{"$f":"title380","v":"Number of skilled workers"},{"$f":"title409","v":"person-hour/ha"}]
[null,null,{"$f":"title333","v":"Labour cost"},{"$f":"title270","v":"Quantity"},{"$f":"title27","v":"Unit"},{"$f":"title270","v":"Quantity"},null,{"$f":"title27","v":"Unit"},"Total",{"$f":"title27","v":"Unit"},null,null,null,null,null,null,null,null,null,null,null,{"$f":"$C$16","v":"Mechanized"},null,{"$f":"title382&2","v":"Mechanized2"},{"$f":"title336","v":"Skilled labour wage"},{"$f":"title128","v":"USD/person-hour"}]
[null,null,{"$f":"IFERROR(VLOOKUP($V$21&$W21,$X$20:$Z$31,2,FALSE),\"\")","v":"Number of skilled workers"},null,{"$f":"IFERROR(VLOOKUP($V$21&$W21,$X$20:$Z$31,3,FALSE),\"\")","v":"person-hour/ha"},{"$f":"IFERROR(VLOOKUP($V$21&$W23,$X$20:$Z$31,2,FALSE),\"\")","v":"Skilled labour wage"},{"$f":"IF(F22=\"\",\"\",IF(F22=title335,'Data entry needs'!$L$96,IF(F22=title336,'Data entry needs'!F96)))","v":0},{"$f":"IFERROR(VLOOKUP($V$21&$W23,$X$20:$Z$31,3,FALSE),\"\")","v":"USD/person-hour"},{"$f":"IFERROR(G22*D22*(G16/E16)*('Data entry needs'!$L$100/$I$16),0)","v":0},{"$f":"IF(C22=\"\",\"\",title319)","v":"USD/year"},null,null,null,null,null,null,null,null,null,null,null,null,1,{"$f":"title382&4","v":"Mechanized4"},{"$f":"title407","v":"Average fuel economy"},"l/h"]
[null,null,{"$f":"IFERROR(VLOOKUP($V$21&$W22,$X$20:$Z$31,2,FALSE),\"\")","v":""},null,{"$f":"IFERROR(VLOOKUP($V$21&$W22,$X$20:$Z$31,3,FALSE),\"\")","v":""},{"$f":"IFERROR(VLOOKUP($V$21&$W24,$X$20:$Z$31,2,FALSE),\"\")","v":""},{"$f":"IF(F23=\"\",\"\",'Data entry needs'!L96)","v":""},{"$f":"title128","v":"USD/person-hour"},{"$f":"IFERROR(G23*D23*(G16/E16)*('Data entry needs'!$L$100/$I$16),0)","v":0},{"$f":"IF(C23=\"\",\"\",title319)","v":""},null,null,null,null,null,null,null,null,null,null,null,{"$f":"VLOOKUP($V$21,$T$29:$U$31,2,FALSE)","v":1},2,{"$f":"title382&5","v":"Mechanized5"},{"$f":"title408","v":"Fuel price"},"USD/l"]
[null,null,null,{"$f":"+IF(AND(C22=\"\",C23=\"\"),0,IF(C22=\"\",D23,IF(C23=\"\",D22,D22+D23)))","v":0},null,null,null,{"$f":"title269","v":"Subtotal"},{"$f":"+SUMIF($I$22:$I$23,\">0\")","v":0},{"$f":"title319","v":"USD/year"},null,null,null,null,null,null,null,null,null,null,null,null,3,{"$f":"title378","v":"Semi-mechanized"},{"$f":"title380","v":"Number of skilled workers"},{"$f":"title409","v":"person-hour/ha"}]
[null,null,{"$f":"title334","v":"Machinery & operating cost"},{"$f":"title270","v":"Quantity"},{"$f":"title27","v":"Unit"},{"$f":"title270","v":"Quantity"},null,{"$f":"title27","v":"Unit"},"Total",{"$f":"title27","v":"Unit"},null,null,null,null,null,null,null,null,null,null,null,null,4,{"$f":"title378&1","v":"Semi-mechanized1"},{"$f":"title379","v":"Number of unskilled workers"},{"$f":"title409","v":"person-hour/ha"}]
[null,null,{"$f":"IFERROR(VLOOKUP($V$21&$W25,$X$20:$Z$31,2,FALSE),\"\")","v":"Average fuel economy"},null,{"$f":"IFERROR(VLOOKUP($V$21&$W25,$X$20:$Z$31,3,FALSE),\"\")","v":"l/h"},{"$f":"IFERROR(VLOOKUP($V$21&$W26,$X$20:$Z$31,2,FALSE),\"\")","v":"Fuel price"},{"$f":"IF(F26=\"\",\"\",'Data entry needs'!$F$100)","v":0},{"$f":"+IFERROR(VLOOKUP($V$21&$W26,$X$20:$Z$31,3,FALSE),\"\")","v":"USD/l"},{"$f":"+IFERROR(D26*G26*IF($C$16=title337,0,$D$22*G16/E16)*('Data entry needs'!$L$100/$I$16),\"\")","v":""},{"$f":"IF(C26=\"\",\"\",title319)","v":"USD/year"},null,null,null,null,null,null,null,null,null,null,null,null,5,{"$f":"title378&2","v":"Semi-mechanized2"},{"$f":"title336","v":"Skilled labour wage"},{"$f":"title128","v":"USD/person-hour"}]
[null,null,null,null,null,null,null,{"$f":"IF(C26=\"\",\"\",title269)","v":"Subtotal"},{"$f":"+I26","v":""},{"$f":"IF(C26=\"\",\"\",title319)","v":"USD/year"},null,null,null,null,null,null,null,null,null,null,null,null,null,{"$f":"title378&3","v":"Semi-mechanized3"},{"$f":"title335","v":"Unskilled labour wage"},{"$f":"title128","v":"USD/person-hour"}]
[null,null,null,null,null,null,null,{"$f":"IF(C26=\"\",\"\",\"Total\")","v":"Total"},{"$f":"IFERROR(I24+I27,I24)","v":0},{"$f":"title319","v":"USD/year"},null,null,null,null,null,null,null,null,null,{"$f":"title405","v":"Collection method"},null,null,null,{"$f":"title378&4","v":"Semi-mechanized4"},{"$f":"title407","v":"Average fuel economy"},"l/h"]
[null,null,null,null,null,null,null,null,null,null,null,null,null,null,null,null,null,null,null,{"$f":"title382","v":"Mechanized"},1,null,null,{"$f":"title378&5","v":"Semi-mechanized5"},{"$f":"title408","v":"Fuel price"},"USD/l"]
[null,null,null,null,null,null,null,null,"",null,null,null,null,null,null,null,null,null,null,{"$f":"title378","v":"Semi-mechanized"},2,null,null,{"$f":"title337","v":"Manual"},{"$f":"title379","v":"Number of unskilled workers"},{"$f":"title409","v":"person-hour/ha"}]
[null,null,null,{"$f":"title338&INDIRECT(\"'Data entry needs'!$d$\"&$A$1)&\"-\"&INDIRECT(\"'Data entry needs'!$e$\"&$A$1)","v":"Collection cost of Please Select-Please Select"},null,null,null,null,{"$f":"(I24+I28)/$G$16","v":{"$error":"#DIV/0!"}},"USD/t",null,null,null,null,null,null,null,null,null,{"$f":"title337","v":"Manual"},3,null,null,{"$f":"title337&2","v":"Manual2"},{"$f":"title335","v":"Unskilled labour wage"},{"$f":"title128","v":"USD/person-hour"}]
[]
[]
[null,null,null,null,false,null,{"$f":"IF($E$34,title340,title341)","v":"Use this method for feedstock collected and transported from different farms to a central collection point"}]
[null,null,{"$f":"title339","v":"Collection Methods Available"}]
[]
[null,null,{"$f":"title342","v":"Collection Method 2"}]
[]
[null,null,{"$f":"title328","v":"Collecting method"},{"$f":"title343","v":"Transportation requirements"},null,null,null,null,{"$f":"title346","v":"Data Source"}]
[]
[null,null,"Please Select",{"$f":"title110","v":"Feedstock Available (t/year)"},{"$f":"INDIRECT(\"'Data entry needs'!$F$\"&$A$1)","v":0},{"$f":"title344","v":"Initial ts in residue (%)"},null,{"$f":"INDIRECT(\"'Data entry needs'!$h$\"&$A$1)","v":0},false]
[null,null,null,{"$f":"title134","v":"Operating days per year"},{"$f":"'Data entry needs'!L100-INDIRECT(\"Planner_pS1!$AN$\"&$B$1)*21","v":-252},{"$f":"title345&$C$41","v":"ts (%) allowed by Please Select"},null,{"$f":"Q45","v":{"$error":"#N/A"}}]
[]
[null,null,{"$f":"title347","v":"Collection Cost Definition"}]
[null,null,{"$f":"title348","v":"Operation Cost"},{"$f":"title270","v":"Quantity"},{"$f":"title27","v":"Unit"},{"$f":"title270","v":"Quantity"},{"$f":"title27","v":"Unit"},{"$f":"title267","v":"Unit Price"},"Total",null,null,null,null,null,null,"ts (%) transported",{"$f":"VLOOKUP($C$41,$P$149:$V$155,7,FALSE)","v":{"$error":"#N/A"}}]
[null,null,{"$f":"title35","v":"Electricity"},{"$f":"Q46","v":13.333333333333334},"kWh/t res",{"$f":"D46*E41","v":0},{"$f":"title304","v":"kWh/year"},{"$f":"'Data entry needs'!$L$92","v":0},{"$f":"F46*H46","v":0},{"$f":"title319","v":"USD/year"},null,null,null,null,null,{"$f":"title35","v":"Electricity"},{"$f":"$Q$160","v":13.333333333333334}]
[null,null,{"$f":"title170","v":"Diesel"},{"$f":"Q47","v":{"$error":"#N/A"}},{"$f":"title574","v":"l diesel/t res"},{"$f":"D47*$E$41","v":{"$error":"#N/A"}},{"$f":"title350","v":"Liter Diesel/year"},{"$f":"'Data entry needs'!$F$100","v":0},{"$f":"F47*H47","v":{"$error":"#N/A"}},{"$f":"title319","v":"USD/year"},null,null,null,null,null,{"$f":"title170","v":"Diesel"},{"$f":"VLOOKUP($C$41,$P$149:$S$155,2,FALSE)","v":{"$error":"#N/A"}}]
[null,null,{"$f":"title244","v":"Water Make-up "},{"$f":"Q48","v":0.15},{"$f":"title353","v":"Liter water/t res"},{"$f":"IF(D48=0,0,E41*(H41/H42)*(1-D48))","v":{"$error":"#N/A"}},{"$f":"title351","v":"Liter water/year"},{"$f":"'Data entry needs'!$F$92","v":0},{"$f":"F48*H48*D48","v":{"$error":"#N/A"}},{"$f":"title319","v":"USD/year"},null,null,null,null,null,{"$f":"title244","v":"Water Make-up "},0.15]
[null,null,{"$f":"title349","v":"Unskilled Workers"},{"$f":"Q49","v":{"$error":"#N/A"}},{"$f":"title354","v":"person-day/t res"},{"$f":"ROUNDUP($D$49*E41*('Data entry needs'!$L$100/PRICE_FS2_PS1!E42)/'Data entry needs'!$L$99,0)","v":{"$error":"#N/A"}},{"$f":"title352","v":"person-hour"},{"$f":"'Data entry needs'!$L$96","v":0},{"$f":"F49*H49","v":{"$error":"#N/A"}},{"$f":"title319","v":"USD/year"},null,null,null,null,null,{"$f":"title127","v":"Unskilled worker"},{"$f":"VLOOKUP($C$41,$P$149:$S$155,3,FALSE)","v":{"$error":"#N/A"}}]
[null,null,null,{"$f":"Q47","v":{"$error":"#N/A"}},null,null,null,{"$f":"title269","v":"Subtotal"},{"$f":"+SUMIF($I$46:$I$49,\">0\")","v":0},{"$f":"title319","v":"USD/year"}]
[]
[null,null,{"$f":"title355","v":"Capital Investment"},{"$f":"title270","v":"Quantity"},{"$f":"title27","v":"Unit"}]
[null,null,{"$f":"$C$41&title356","v":"Please Select and equipment"},{"$f":"Q53","v":{"$error":"#N/A"}},{"$f":"VLOOKUP($C$41,$P$149:$T$155,5,FALSE)","v":{"$error":"#N/A"}},null,null,null,{"$f":"D53*(E41*10)/20","v":{"$error":"#N/A"}},{"$f":"title319","v":"USD/year"},null,null,null,null,null,{"$f":"$C$41&title356","v":"Please Select and equipment"},{"$f":"VLOOKUP($C$41,$P$149:$S$155,4,FALSE)","v":{"$error":"#N/A"}}]
[null,null,{"$f":"title357","v":"Dewatering"},{"$f":"Q54","v":7},"USD/t res",null,null,null,{"$f":"D54*$E$41/20","v":0},{"$f":"title319","v":"USD/year"},null,null,null,null,null,{"$f":"title357","v":"Dewatering"},{"$f":"$Q$158","v":7}]
[null,null,{"$f":"title358","v":"Operation and Mainteinance"},{"$f":"Q55","v":0.15},null,null,null,null,{"$f":"SUM(I53:I54)*$D$55","v":{"$error":"#N/A"}},{"$f":"title319","v":"USD/year"},null,null,null,null,null,{"$f":"title358","v":"Operation and Mainteinance"},0.15]
[null,null,null,{"$f":"+IF(AND(C54=\"\",C55=\"\"),0,IF(C54=\"\",D55,IF(C55=\"\",D54,D54+D55)))","v":7.15},null,null,null,{"$f":"title269","v":"Subtotal"},{"$f":"+SUMIF(I53:I55,\">0\")","v":0},{"$f":"title319","v":"USD/year"}]
[]
[null,null,null,{"$f":"title359","v":"Cost for Collection and transfer to storage tank"},null,null,null,null,{"$f":"SUM(I50+I56)/E41","v":{"$error":"#DIV/0!"}},"USD/t"]
[]
[null,null,{"$f":"title360","v":"Collection Method 3 - Feedstock collected from different farms"}]
[]
[null,null,{"$f":"title361","v":"Source of biomass"},null,{"$f":"title405","v":"Collection method"},null,{"$f":"title346","v":"Data Source"},false]
[null,null,{"$f":"title362","v":"Transfer from individual farms"},null,"Mechanized"]
[]
[null,null,{"$f":"title363","v":"Transportation method"},null,"Tanker Truck Transfer",null,{"$f":"title372","v":"Number Of Farms Supplying Feedstock"},{"$f":"title373","v":"Average distance to collection point (m)"},{"$f":"title374","v":"Collection Period (days)"},{"$f":"IF($E$65=title364,title375,title376)&title377","v":"Number of Tanks required"}]
[]
[null,null,{"$f":"IF($E$65=title364,title365,title366)","v":"Tranport Capacity (liter)"},{"$f":"Q67","v":27600},{"$f":"title370","v":"Residue Quanitiy (t/year)"},{"$f":"INDIRECT(\"'Data entry needs'!$F$\"&$A$1)","v":0},null,null,null,null,null,null,null,null,null,{"$f":"IF($E$60=title364,title365,title366)","v":"Pipe Diameter (in)"},{"$f":"VLOOKUP($E$65,$Y$147:$AE$149,3,FALSE)","v":27600}]
[null,null,{"$f":"IF($E$65=title364,title367,title368)","v":"Engine Power (HP)"},{"$f":"Q68","v":200},{"$f":"title371","v":"Residue Density (kg/m3)"},{"$f":"Q72","v":1000},null,null,{"$f":"'Data entry needs'!L100-INDIRECT(\"Planner_pS1!$AN$\"&$B$1)*21","v":-252},{"$f":"IFERROR(ROUNDUP($F$67*1000*1000/(960*$D$69*'Data entry needs'!$L$99)/$I$68,0),0)","v":0},null,null,null,null,null,{"$f":"IF($E$60=title364,title367,title368)","v":"Motor Power (HP)"},{"$f":"VLOOKUP($E$65,$Y$147:$AE$149,4,FALSE)","v":200}]
[null,null,{"$f":"title369","v":"Transfer Rate (l/h)"},{"$f":"Q69","v":27221.917808219176},null,null,null,null,null,null,null,null,null,null,null,{"$f":"title369","v":"Transfer Rate (l/h)"},{"$f":"VLOOKUP($E$65,$Y$147:$AE$149,5,FALSE)","v":27221.917808219176}]
[]
[null,null,null,{"$f":"+IF(OR($E$63=title337,$E$63=title378),FALSE,TRUE)","v":true},{"$f":"+IF($E$63=title337,TRUE,FALSE)","v":false}]
[null,null,{"$f":"title332","v":"Biomass Price Definition"},null,null,null,null,null,null,null,null,null,null,null,null,{"$f":"title371","v":"Residue Density (kg/m3)"},{"$f":"IFERROR(VLOOKUP(INDIRECT(\"'Data entry needs'!$e$\"&$A$1),PRICE_FS2_PS1!$Y$152:$Z$156,2,FALSE),1000)","v":1000}]
[null,null,{"$f":"title333","v":"Labour cost"},{"$f":"title270","v":"Quantity"},{"$f":"title27","v":"Unit"},{"$f":"title270","v":"Quantity"},null,{"$f":"title27","v":"Unit"},"Total",{"$f":"title27","v":"Unit"}]
[null,null,{"$f":"IF(OR($E$63=title337,$E$63=title378),title379,\"\")","v":""},null,{"$f":"IF(OR($E$63=title337,$E$63=title378),title381,\"\")","v":""},{"$f":"IF(OR($E$63=title337,$E$63=title378),title335,\"\")","v":""},{"$f":"IF(OR($E$63=title337,$E$63=title378),'Data entry needs'!$L$96,\"\")","v":""},{"$f":"IF(OR($E$63=title337,$E$63=title378),title128,\"\")","v":""},{"$f":"IFERROR(IF(OR($E$63=title337,$E$63=title378),$F$67*D74*$G$74,\"\"),0)","v":""},{"$f":"IF(OR($E$63=title337,$E$63=title378),title319,\"\")","v":""}]
[null,null,{"$f":"IF($E$63=title337,\"\",title380)","v":"Number of skilled workers"},null,{"$f":"IF($E$63=title337,\"\",title381)","v":"person-hour/t"},{"$f":"IF($E$63=title337,\"\",title336)","v":"Skilled labour wage"},{"$f":"IF($E$63=title337,\"\",'Data entry needs'!$F$96)","v":0},{"$f":"IF($E$63=title337,\"\",title128)","v":"USD/person-hour"},{"$f":"IFERROR(IF($E$63=title337,\"\",D75*G75*$F$67),0)","v":0},{"$f":"IF($E$63=title337,\"\",title319)","v":"USD/year"}]
[null,null,null,{"$f":"+IF(AND(C74=\"\",C75=\"\"),0,IF(C74=\"\",D75,IF(C75=\"\",D74,D74+D75)))","v":0},null,null,null,{"$f":"title269","v":"Subtotal"},{"$f":"+SUMIF($I$74:$I$75,\">0\")","v":0},{"$f":"title319","v":"USD/year"}]
[null,null,{"$f":"title383","v":"Collection Machinery"},{"$f":"title270","v":"Quantity"},{"$f":"title27","v":"Unit"},{"$f":"title270","v":"Quantity"},null,{"$f":"title27","v":"Unit"},"Total",{"$f":"title27","v":"Unit"}]
[null,null,{"$f":"IF(OR($E$63=title382,$E$63=title378),title384,\"\")","v":"Collection Diesel Consumption"},null,{"$f":"IF(OR($E$63=title382,$E$63=title378),title575,\"\")","v":"l diesel/h"},{"$f":"IF(OR($E$63=title382,$E$63=title378),title389,\"\")","v":"Diesel Cost"},{"$f":"IF(OR($E$63=title382,$E$63=title378),'Data entry needs'!F$100,\"\")","v":0},{"$f":"IF(OR($E$63=title382,$E$63=title378),title576,\"\")","v":"USD/l diesel"},{"$f":"IFERROR(IF(OR($E$63=title382,$E$63=title378),D78*G78*D75*F67,\"\"),0)","v":0},{"$f":"title319","v":"USD/year"}]
[null,null,{"$f":"IF($E$65=title364,title385,title386)","v":"Truck Diesel Consumption"},{"$f":"Q79","v":154},{"$f":"IF($E$65=title364,title387,title388)","v":"l diesel/day"},{"$f":"IF($E$65=title364,title389,title390)","v":"Diesel Cost"},{"$f":"IF($E$65=title364,'Data entry needs'!F$100,'Data entry needs'!$L$92)","v":0},{"$f":"IF($E$65=title364,title576,\"USD/kWh\")","v":"USD/l diesel"},{"$f":"IFERROR(D79*G79*$I$68*$J$68,0)","v":0},{"$f":"title319","v":"USD/year"},null,null,null,null,null,{"$f":"IF($E$60=title364,title385,title386)","v":"Pump Electricity Consumption"},{"$f":"VLOOKUP($E$65,$Y$147:$AE$149,7,FALSE)","v":154}]
[null,null,null,null,null,null,null,{"$f":"title269","v":"Subtotal"},{"$f":"+SUMIF($I$78:$I$79,\">0\")","v":0},{"$f":"title319","v":"USD/year"}]
[null,null,{"$f":"title391","v":"Equipment"},{"$f":"title270","v":"Quantity"},{"$f":"title27","v":"Unit"},{"$f":"title270","v":"Quantity"},null,{"$f":"title27","v":"Unit"},"Total",{"$f":"title27","v":"Unit"}]
[null,null,{"$f":"IF($E$65=title364,title392,title393)","v":"Liquid Tanker Truck"},{"$f":"IF($E$65=title364,$J$68,$G$68*$H$68*1.2)","v":0},{"$f":"IF($E$65=title364,title398,\"m\")","v":"tank(s)"},{"$f":"IF($E$65=title364,title399,title400)","v":"Cost per Tank"},{"$f":"VLOOKUP($E$65,$Y$147:$AF$149,8,FALSE)/10","v":7900},{"$f":"IF($E$65=title364,title402,title403)","v":"USD/tank/year"},{"$f":"IFERROR(D82*G82,0)","v":0},{"$f":"title319","v":"USD/year"}]
[null,null,{"$f":"IF($E$65=title364,title394&$D$68&title395,title396&$D$68&title397)","v":"Semi-tractor 185 200 HP"},{"$f":"Q83","v":148000},"USD",{"$f":"title401","v":"Depreciation Period"},{"$f":"Q85","v":15},{"$f":"title164","v":"year"},{"$f":"IFERROR(D83*$J$68/G83,0)","v":0},{"$f":"title319","v":"USD/year"},null,null,null,null,null,{"$f":"IF($E$60=title364,title406,title396&$D$63&title397)","v":"Pump  HP with agitator"},{"$f":"VLOOKUP($E$65,$Y$147:$AH$149,10,FALSE)","v":148000}]
[null,null,{"$f":"title358","v":"Operation and Mainteinance"},{"$f":"Q84","v":0.15},null,null,null,null,{"$f":"IFERROR(SUM(I82:I83)*$D$84,0)","v":0},{"$f":"title319","v":"USD/year"},null,null,null,null,null,{"$f":"title358","v":"Operation and Mainteinance"},0.15]
[null,null,null,null,null,null,null,{"$f":"title269","v":"Subtotal"},{"$f":"I82","v":0},{"$f":"title319","v":"USD/year"},null,null,null,null,null,{"$f":"title401","v":"Depreciation Period"},15]
[]
[null,null,null,{"$f":"title404","v":"Cost for Collection and transfer to central collection point"},null,null,null,null,{"$f":"(I85+I80+I76)/$F$67","v":{"$error":"#DIV/0!"}},"USD/t"]
[]
[]
[]
[]
[]
[]
[]
[]
[]
[]
[]
[]
[]
[]
[]
[]
[]
[]
[]
[]
[]
[]
[]
[]
[]
[]
[]
[]
[]
[]
[]
[null,null,null,null,null,null,null,null,null,null,null,null,null,null,null,{"$f":"title410","v":"Sources of biomass"}]
[null,null,null,null,null,null,null,null,null,null,null,null,null,null,null,{"$f":"title411","v":"Biomass spread in the field"}]
[null,null,null,null,null,null,null,null,null,null,null,null,null,null,null,{"$f":"title412","v":"Biomass collected from field"}]
[null,null,null,null,null,null,null,null,null,null,null,null,null,null,null,{"$f":"title413","v":"Biomass from food processing plant"}]
[]
[]
[]
[]
[null,null,null,null,null,null,null,null,null,null,null,null,null,null,null,{"$f":"title405","v":"Collection method"}]
[null,null,null,null,null,null,null,null,null,null,null,null,null,null,null,{"$f":"title382","v":"Mechanized"}]
[null,null,null,null,null,null,null,null,null,null,null,null,null,null,null,{"$f":"title378","v":"Semi-mechanized"}]
[null,null,null,null,null,null,null,null,null,null,null,null,null,null,null,{"$f":"title337","v":"Manual"}]
[]
[]
[]
[]
[]
[]
[]
[]
[]
[]
[]
[]
[]
[]
[null,null,null,null,null,null,null,null,null,null,null,null,null,null,null,"Dairy maNURE",40.753799999999998,"Manure (kg/head/day)"]
[null,null,null,null,null,null,null,null,null,null,null,null,null,null,null,null,"Energy Use Cost","Labor and Mainteinance",null,null,null,"ts (%) transported","Dewateing",null,null,null,{"$f":"title440","v":"Capacity"},{"$f":"title441","v":"Engine/motor (hp)"},{"$f":"title369","v":"Transfer Rate (l/h)"},{"$f":"title442","v":"Transfer time (m/h)"},{"$f":"title443","v":"Energy Use  (kw)"},{"$f":"title444","v":"Add equipment"}]
[null,null,null,null,null,null,null,null,null,null,null,null,null,null,null,{"$f":"title405","v":"Collection method"},"liters diesel/t residue","workers*day/t residue","Capital cost","Capital cost","Capital cost",null,"Final solids ts (%)",null,{"$f":"title364","v":"Tanker Truck Transfer"},null,27600,200,27221.917808219176,609.6,154,79000,"USD",{"$f":"148000","v":148000},2010,{"$f":"title406","v":"Semi-tractor 185 HP"},null,null,"l/working day"]
[null,null,null,null,null,null,null,null,null,null,null,null,null,null,null,{"$f":"title74","v":"Please Select"},null,null,null,null,null,null,null,null,{"$f":"title432","v":"High Volume Pipeline"},null,"6´´ PVC",150,3028,1016,215,{"$f":"37/3.048","v":12.139107611548557},"USD/m",37075,2003]
[null,null,null,null,null,null,null,null,null,null,null,null,null,null,null,{"$f":"title414","v":"Alley Scrapers"},0.14330809896079807,0.42057427773606393,{"$f":"(AVERAGE(35,45)*$B$52+10000+4000)/3785.41178","v":3.698408736922143},{"$f":"title421","v":"USD/liter mixture"},2009,0.08,0.5,null,{"$f":"title433","v":"Low Volume Pipeline"},null,"4´´ PVC",7.5,378,127,86,{"$f":"12.4/3.048","v":4.0682414698162734},"USD/m",7675,2003]
[null,null,null,null,null,null,null,null,null,null,null,null,null,null,null,{"$f":"title415","v":"Flush System"},0.4093569308278352,0.10526625737967994,{"$f":"(4950.08+(16+9.8)*$B$52)/3785.41178","v":1.3076727943188258},"USD/liter mixture",2014,{"$f":"AVERAGE(1%,3%)","v":0.02},0.5]
[null,null,null,null,null,null,null,null,null,null,null,null,null,null,null,{"$f":"title416","v":"Vacum Scraper"},3.190595592141102,1.9769935564290937,10,"USD/liter mixture",2010,0.18,0.5,null,null,{"$f":"title434","v":"Density (Kg/m3)"}]
[null,null,null,null,null,null,null,null,null,null,null,null,null,null,null,{"$f":"title417","v":"Skid-loader"},0.75612714559717353,1.2830705357537211,{"$f":"(142.6*0.914+58.5*0.084+50.75*0.997)/$Q$145","v":4.5602655457895951},"USD/liter mixture",2010,{"$f":"AVERAGE(8%,18%)","v":0.13},0.5,null,{"$f":"title435","v":"Buffalo"},960]
[null,null,null,null,null,null,null,null,null,null,null,null,null,null,null,{"$f":"title418","v":"Cross gutter Scraper"},1.5259658685640533E-2,2.6500596263415929E-2,5,"USD/liter mixture",2010,0.08,0.5,null,{"$f":"title436","v":"Cattle"},960]
[null,null,null,null,null,null,null,null,null,null,null,null,null,null,null,{"$f":"title419","v":"Cross Gutter Auger"},0.20478904265077005,2.6255220372088005E-2,{"$f":"2200*30/2378/10","v":2.7754415475189234},"USD/liter mixture",2010,0.08,0.5,null,{"$f":"title437","v":"Dairy Cattle"},994]
[null,null,null,null,null,null,null,null,null,null,null,null,null,null,null,{"$f":"title420","v":"Flush Flume"},0.13645231027594507,2.6255220372088005E-2,{"$f":"(4950.08+(16+9.8)*$B$52)*1.5/3785.41178","v":1.9615091914782385},"USD/liter mixture",2010,{"$f":"AVERAGE(4%,9%)","v":6.5000000000000002E-2},0.5,null,{"$f":"title438","v":"Poultry"},961.11]
[null,null,null,null,null,null,null,null,null,null,null,null,null,null,null,null,null,null,null,null,null,null,null,null,{"$f":"title439","v":"Swine"},1140.9000000000001]
[null,null,null,null,null,null,null,null,null,null,null,null,null,null,null,{"$f":"title357","v":"Dewatering"},"Screw Press ",{"$f":"PROPER(title164)","v":"Year"}]
[null,null,null,null,null,null,null,null,null,null,null,null,null,null,null,{"$f":"title422","v":"Capital Cost (USD/t residue)"},{"$f":"AVERAGE(0.2,0.5)*1000000*0.12/AVERAGE(4000,8000)","v":7},2002]
[null,null,null,null,null,null,null,null,null,null,null,null,null,null,null,{"$f":"title423","v":"Operation (worker/t residue)"},{"$f":"AVERAGE(20,40)*1000/AVERAGE(4000,8000)/(300*8*160)","v":1.3020833333333334E-5}]
[null,null,null,null,null,null,null,null,null,null,null,null,null,null,null,{"$f":"title424","v":"Energy Demand kWh/t residue"},{"$f":"AVERAGE(5,15)*8000/AVERAGE(4000,8000)","v":13.333333333333334},2002]
[]
[]
[]
[]
[null,null,null,null,null,null,null,null,null,null,null,null,null,null,null,{"$f":"title74","v":"Please Select"},{"$f":"title405","v":"Collection method"},"Show","Section to Show",{"$f":"VLOOKUP(INDIRECT(\"'Data entry needs'!$d$\"&$A$1),$P$166:$R$178,3,FALSE)","v":{"$error":"#N/A"}}]
[null,null,null,null,null,null,null,null,null,null,null,null,null,null,null,{"$f":"title184","v":"Biodiesel/Oilseed Ind."},{"$f":"title425","v":"No collection neeeded"},1,{"$f":"title429&\" 0\"","v":"Option 0"},0,0]
[null,null,null,null,null,null,null,null,null,null,null,null,null,null,null,{"$f":"title85","v":"Crop Residues"},{"$f":"title426","v":"Method 1"},2,{"$f":"title429&\" 1\"","v":"Option 1"},{"$f":"$I$31","v":{"$error":"#DIV/0!"}},{"$f":"$D$24/E16","v":{"$error":"#DIV/0!"}},{"$f":"title381","v":"person-hour/t"}]
[null,null,null,null,null,null,null,null,null,null,null,null,null,null,null,{"$f":"title185","v":"Dairy-milk ind."},{"$f":"title427","v":"Method 2, Method 3"},4,{"$f":"title429&\" 2\"","v":"Option 2"},{"$f":"$I$58","v":{"$error":"#DIV/0!"}},{"$f":"F49/E41","v":{"$error":"#N/A"}},{"$f":"title381","v":"person-hour/t"}]
[null,null,null,null,null,null,null,null,null,null,null,null,null,null,null,{"$f":"title120","v":"Energy Crops"},{"$f":"title425","v":"No collection neeeded"},1,{"$f":"title429&\" 3\"","v":"Option 3"},{"$f":"$I$87","v":{"$error":"#DIV/0!"}},{"$f":"D76","v":0},{"$f":"title381","v":"person-hour/t"}]
[null,null,null,null,null,null,null,null,null,null,null,null,null,null,null,{"$f":"title186","v":"Eth-Sugar-Starch Ind."},{"$f":"title425","v":"No collection neeeded"},1]
[null,null,null,null,null,null,null,null,null,null,null,null,null,null,null,{"$f":"title187","v":"Food Process. Res."},{"$f":"title425","v":"No collection neeeded"},1,{"$f":"title430","v":"Result"},{"$f":"IF($T$165=1,T166,IF($T$165=2,$T$167,IF($T$165=3,T168,IF(AND($T$165=4,$E$34),$T$168,$T$169))))","v":{"$error":"#N/A"}}]
[null,null,null,null,null,null,null,null,null,null,null,null,null,null,null,{"$f":"title188","v":"Grass"},{"$f":"title426","v":"Method 1"},2,{"$f":"title431","v":"Employees"},{"$f":"IF($T$165=1,U166,IF($T$165=2,$U$167,IF($T$165=3,U169,IF(AND($T$165=4,$E$34),$U$168,$U$169))))","v":{"$error":"#N/A"}},{"$f":"title381","v":"person-hour/t"}]
[null,null,null,null,null,null,null,null,null,null,null,null,null,null,null,{"$f":"title119","v":"Crops"},{"$f":"title425","v":"No collection neeeded"},1]
[null,null,null,null,null,null,null,null,null,null,null,null,null,null,null,{"$f":"title189","v":"Other Options"},{"$f":"title425","v":"No collection neeeded"},1]
[null,null,null,null,null,null,null,null,null,null,null,null,null,null,null,{"$f":"title190","v":"Slaughterhouses wastes"},{"$f":"title428","v":"Method 2"},3]
[null,null,null,null,null,null,null,null,null,null,null,null,null,null,null,{"$f":"title191","v":"Yeast-Alcoholic Bev."},{"$f":"title425","v":"No collection neeeded"},1]
[null,null,null,null,null,null,null,null,null,null,null,null,null,null,null,{"$f":"title84","v":"Manure"},{"$f":"title427","v":"Method 2, Method 3"},4]
[null,null,null,null,null,null,null,null,null,null,null,null,null,null,null,{"$f":"title192","v":"Wastewater"},{"$f":"title425","v":"No collection neeeded"},1]

{"sheet":"PRICE_FS3_PS1","index":16,"n_rows":178,"n_cols":39,"rows_kept":178,"cut":false,"hidden":true,"merged":[[40,8,40,9],[2,2,2,9],[5,2,5,3],[5,4,5,6],[7,2,10,9],[14,6,14,7],[15,2,15,3],[15,6,15,7],[30,3,30,7],[33,4,34,4],[33,5,34,5],[33,6,34,9],[34,2,34,3],[64,9,66,9],[86,3,86,7],[41,8,41,9],[57,3,57,7],[61,4,61,5],[61,6,62,6],[62,4,62,5],[64,2,64,3],[64,4,64,5],[64,6,66,6],[64,7,66,7],[64,8,66,8]]}
[{"$f":"PRICE_FS2_PS1!A1+2","v":25},90]
[]
[null,null,{"$f":"+title324&UPPER(INDIRECT(\"'Data entry needs'!$d$\"&$A$1)&\"-\"&INDIRECT(\"'Data entry needs'!$e$\"&$A$1))","v":"COLLECTION COSTS CALCULATOR FOR PLEASE SELECT-PLEASE SELECT"}]
[]
[]
[null,null,{"$f":"title193","v":"Use white cells to input data"},null,{"$f":"title194","v":"Grey cells are used for calculations"}]
[]
[null,null,{"$f":"title325&INDIRECT(\"'Data entry needs'!$d$\"&$A$1)&title326","v":"No collection method is required. It is assumed that Please Select are already collected. Then, transportation cost and/or market price should be considered."}]
[]
[]
[]
[]
[null,null,{"$f":"title327","v":"Collection Method 1 - Biomass spread in the field"}]
[]
[null,null,{"$f":"title328","v":"Collecting method"},null,{"$f":"title329","v":"Biomass Yield"},null,{"$f":"title110","v":"Feedstock Available (t/year)"},null,{"$f":"title330","v":"Collection days"}]
[null,null,"Mechanized",null,null,"t/ha",{"$f":"INDIRECT(\"'Data entry needs'!$F$\"&$A$1)","v":0},null,{"$f":"'Data entry needs'!L100-INDIRECT(\"Planner_pS1!$AN$\"&$B$1)*21","v":-252}]
[]
[null,null,{"$f":"title331","v":"Biomass Collection definition"}]
[]
[null,null,{"$f":"title332","v":"Biomass Price Definition"},null,null,null,null,null,null,null,null,null,null,null,null,null,null,null,null,null,null,{"$f":"title405","v":"Collection method"},null,{"$f":"title382","v":"Mechanized"},{"$f":"title380","v":"Number of skilled workers"},{"$f":"title409","v":"person-hour/ha"}]
[null,null,{"$f":"title333","v":"Labour cost"},{"$f":"title270","v":"Quantity"},{"$f":"title27","v":"Unit"},{"$f":"title270","v":"Quantity"},null,{"$f":"title27","v":"Unit"},"Total",{"$f":"title27","v":"Unit"},null,null,null,null,null,null,null,null,null,null,null,{"$f":"$C$16","v":"Mechanized"},null,{"$f":"title382&2","v":"Mechanized2"},{"$f":"title336","v":"Skilled labour wage"},{"$f":"title128","v":"USD/person-hour"}]
[null,null,{"$f":"IFERROR(VLOOKUP($V$21&$W21,$X$20:$Z$31,2,FALSE),\"\")","v":"Number of skilled workers"},null,{"$f":"IFERROR(VLOOKUP($V$21&$W21,$X$20:$Z$31,3,FALSE),\"\")","v":"person-hour/ha"},{"$f":"IFERROR(VLOOKUP($V$21&$W23,$X$20:$Z$31,2,FALSE),\"\")","v":"Skilled labour wage"},{"$f":"IF(F22=\"\",\"\",IF(F22=title335,'Data entry needs'!$L$96,IF(F22=title336,'Data entry needs'!F96)))","v":0},{"$f":"IFERROR(VLOOKUP($V$21&$W23,$X$20:$Z$31,3,FALSE),\"\")","v":"USD/person-hour"},{"$f":"IFERROR(G22*D22*(G16/E16)*('Data entry needs'!$L$100/$I$16),0)","v":0},{"$f":"IF(C22=\"\",\"\",title319)","v":"USD/year"},null,null,null,null,null,null,null,null,null,null,null,null,1,{"$f":"title382&4","v":"Mechanized4"},{"$f":"title407","v":"Average fuel economy"},"l/h"]
[null,null,{"$f":"IFERROR(VLOOKUP($V$21&$W22,$X$20:$Z$31,2,FALSE),\"\")","v":""},null,{"$f":"IFERROR(VLOOKUP($V$21&$W22,$X$20:$Z$31,3,FALSE),\"\")","v":""},{"$f":"IFERROR(VLOOKUP($V$21&$W24,$X$20:$Z$31,2,FALSE),\"\")","v":""},{"$f":"IF(F23=\"\",\"\",'Data entry needs'!L96)","v":""},{"$f":"title128","v":"USD/person-hour"},{"$f":"IFERROR(G23*D23*(G16/E16)*('Data entry needs'!$L$100/$I$16),0)","v":0},{"$f":"IF(C23=\"\",\"\",title319)","v":""},null,null,null,null,null,null,null,null,null,null,null,{"$f":"VLOOKUP($V$21,$T$29:$U$31,2,FALSE)","v":1},2,{"$f":"title382&5","v":"Mechanized5"},{"$f":"title408","v":"Fuel price"},"USD/l"]
[null,null,null,{"$f":"+IF(AND(C22=\"\",C23=\"\"),0,IF(C22=\"\",D23,IF(C23=\"\",D22,D22+D23)))","v":0},null,null,null,{"$f":"title269","v":"Subtotal"},{"$f":"+SUMIF($I$22:$I$23,\">0\")","v":0},{"$f":"title319","v":"USD/year"},null,null,null,null,null,null,null,null,null,null,null,null,3,{"$f":"title378","v":"Semi-mechanized"},{"$f":"title380","v":"Number of skilled workers"},{"$f":"title409","v":"person-hour/ha"}]
[null,null,{"$f":"title334","v":"Machinery & operating cost"},{"$f":"title270","v":"Quantity"},{"$f":"title27","v":"Unit"},{"$f":"title270","v":"Quantity"},null,{"$f":"title27","v":"Unit"},"Total",{"$f":"title27","v":"Unit"},null,null,null,null,null,null,null,null,null,null,null,null,4,{"$f":"title378&1","v":"Semi-mechanized1"},{"$f":"title379","v":"Number of unskilled workers"},{"$f":"title409","v":"person-hour/ha"}]
[null,null,{"$f":"IFERROR(VLOOKUP($V$21&$W25,$X$20:$Z$31,2,FALSE),\"\")","v":"Average fuel economy"},null,{"$f":"IFERROR(VLOOKUP($V$21&$W25,$X$20:$Z$31,3,FALSE),\"\")","v":"l/h"},{"$f":"IFERROR(VLOOKUP($V$21&$W26,$X$20:$Z$31,2,FALSE),\"\")","v":"Fuel price"},{"$f":"IF(F26=\"\",\"\",'Data entry needs'!$F$100)","v":0},{"$f":"+IFERROR(VLOOKUP($V$21&$W26,$X$20:$Z$31,3,FALSE),\"\")","v":"USD/l"},{"$f":"+IFERROR(D26*G26*IF($C$16=title337,0,$D$22*G16/E16)*('Data entry needs'!$L$100/$I$16),\"\")","v":""},{"$f":"IF(C26=\"\",\"\",title319)","v":"USD/year"},null,null,null,null,null,null,null,null,null,null,null,null,5,{"$f":"title378&2","v":"Semi-mechanized2"},{"$f":"title336","v":"Skilled labour wage"},{"$f":"title128","v":"USD/person-hour"}]
[null,null,null,null,null,null,null,{"$f":"IF(C26=\"\",\"\",title269)","v":"Subtotal"},{"$f":"+I26","v":""},{"$f":"IF(C26=\"\",\"\",title319)","v":"USD/year"},null,null,null,null,null,null,null,null,null,null,null,null,null,{"$f":"title378&3","v":"Semi-mechanized3"},{"$f":"title335","v":"Unskilled labour wage"},{"$f":"title128","v":"USD/person-hour"}]
[null,null,null,null,null,null,null,{"$f":"IF(C26=\"\",\"\",\"Total\")","v":"Total"},{"$f":"IFERROR(I24+I27,I24)","v":0},{"$f":"title319","v":"USD/year"},null,null,null,null,null,null,null,null,null,{"$f":"title405","v":"Collection method"},null,null,null,{"$f":"title378&4","v":"Semi-mechanized4"},{"$f":"title407","v":"Average fuel economy"},"l/h"]
[null,null,null,null,null,null,null,null,null,null,null,null,null,null,null,null,null,null,null,{"$f":"title382","v":"Mechanized"},1,null,null,{"$f":"title378&5","v":"Semi-mechanized5"},{"$f":"title408","v":"Fuel price"},"USD/l"]
[null,null,null,null,null,null,null,null,"",null,null,null,null,null,null,null,null,null,null,{"$f":"title378","v":"Semi-mechanized"},2,null,null,{"$f":"title337","v":"Manual"},{"$f":"title379","v":"Number of unskilled workers"},{"$f":"title409","v":"person-hour/ha"}]
[null,null,null,{"$f":"title338&INDIRECT(\"'Data entry needs'!$d$\"&$A$1)&\"-\"&INDIRECT(\"'Data entry needs'!$e$\"&$A$1)","v":"Collection cost of Please Select-Please Select"},null,null,null,null,{"$f":"(I24+I28)/$G$16","v":{"$error":"#DIV/0!"}},"USD/t",null,null,null,null,null,null,null,null,null,{"$f":"title337","v":"Manual"},3,null,null,{"$f":"title337&2","v":"Manual2"},{"$f":"title335","v":"Unskilled labour wage"},{"$f":"title128","v":"USD/person-hour"}]
[]
[]
[null,null,null,null,false,null,{"$f":"IF($E$34,title340,title341)","v":"Use this method for feedstock collected and transported from different farms to a central collection point"}]
[null,null,{"$f":"title339","v":"Collection Methods Available"}]
[]
[null,null,{"$f":"title342","v":"Collection Method 2"}]
[]
[null,null,{"$f":"title328","v":"Collecting method"},{"$f":"title343","v":"Transportation requirements"},null,null,null,null,{"$f":"title346","v":"Data Source"}]
[]
[null,null,"Please Select",{"$f":"title110","v":"Feedstock Available (t/year)"},{"$f":"INDIRECT(\"'Data entry needs'!$F$\"&$A$1)","v":0},{"$f":"title344","v":"Initial ts in residue (%)"},null,{"$f":"INDIRECT(\"'Data entry needs'!$h$\"&$A$1)","v":0},false]
[null,null,null,{"$f":"title134","v":"Operating days per year"},{"$f":"'Data entry needs'!L100-INDIRECT(\"Planner_pS1!$AN$\"&$B$1)*21","v":-252},{"$f":"title345&$C$41","v":"ts (%) allowed by Please Select"},null,{"$f":"Q45","v":{"$error":"#N/A"}}]
[]
[null,null,{"$f":"title347","v":"Collection Cost Definition"}]
[null,null,{"$f":"title348","v":"Operation Cost"},{"$f":"title270","v":"Quantity"},{"$f":"title27","v":"Unit"},{"$f":"title270","v":"Quantity"},{"$f":"title27","v":"Unit"},{"$f":"title267","v":"Unit Price"},"Total",null,null,null,null,null,null,"ts (%) transported",{"$f":"VLOOKUP($C$41,$P$149:$V$155,7,FALSE)","v":{"$error":"#N/A"}}]
[null,null,{"$f":"title35","v":"Electricity"},{"$f":"Q46","v":13.333333333333334},"kWh/t res",{"$f":"D46*E41","v":0},{"$f":"title304","v":"kWh/year"},{"$f":"'Data entry needs'!$L$92","v":0},{"$f":"F46*H46","v":0},{"$f":"title319","v":"USD/year"},null,null,null,null,null,{"$f":"title35","v":"Electricity"},{"$f":"$Q$160","v":13.333333333333334}]
[null,null,{"$f":"title170","v":"Diesel"},{"$f":"Q47","v":{"$error":"#N/A"}},{"$f":"title574","v":"l diesel/t res"},{"$f":"D47*$E$41","v":{"$error":"#N/A"}},{"$f":"title350","v":"Liter Diesel/year"},{"$f":"'Data entry needs'!$F$100","v":0},{"$f":"F47*H47","v":{"$error":"#N/A"}},{"$f":"title319","v":"USD/year"},null,null,null,null,null,{"$f":"title170","v":"Diesel"},{"$f":"VLOOKUP($C$41,$P$149:$S$155,2,FALSE)","v":{"$error":"#N/A"}}]
[null,null,{"$f":"title244","v":"Water Make-up "},{"$f":"Q48","v":0.15},{"$f":"title353","v":"Liter water/t res"},{"$f":"IF(D48=0,0,E41*(H41/H42)*(1-D48))","v":{"$error":"#N/A"}},{"$f":"title351","v":"Liter water/year"},{"$f":"'Data entry needs'!$F$92","v":0},{"$f":"F48*H48*D48","v":{"$error":"#N/A"}},{"$f":"title319","v":"USD/year"},null,null,null,null,null,{"$f":"title244","v":"Water Make-up "},0.15]
[null,null,{"$f":"title349","v":"Unskilled Workers"},{"$f":"Q49","v":{"$error":"#N/A"}},{"$f":"title354","v":"person-day/t res"},{"$f":"ROUNDUP($D$49*E41*('Data entry needs'!$L$100/PRICE_FS3_PS1!E42)/'Data entry needs'!$L$99,0)","v":{"$error":"#N/A"}},{"$f":"title352","v":"person-hour"},{"$f":"'Data entry needs'!$L$96","v":0},{"$f":"F49*H49","v":{"$error":"#N/A"}},{"$f":"title319","v":"USD/year"},null,null,null,null,null,{"$f":"title127","v":"Unskilled worker"},{"$f":"VLOOKUP($C$41,$P$149:$S$155,3,FALSE)","v":{"$error":"#N/A"}}]
[null,null,null,{"$f":"Q47","v":{"$error":"#N/A"}},null,null,null,{"$f":"title269","v":"Subtotal"},{"$f":"+SUMIF($I$46:$I$49,\">0\")","v":0},{"$f":"title319","v":"USD/year"}]
[]
[null,null,{"$f":"title355","v":"Capital Investment"},{"$f":"title270","v":"Quantity"},{"$f":"title27","v":"Unit"}]
[null,null,{"$f":"$C$41&title356","v":"Please Select and equipment"},{"$f":"Q53","v":{"$error":"#N/A"}},{"$f":"VLOOKUP($C$41,$P$149:$T$155,5,FALSE)","v":{"$error":"#N/A"}},null,null,null,{"$f":"D53*(E41*10)/20","v":{"$error":"#N/A"}},{"$f":"title319","v":"USD/year"},null,null,null,null,null,{"$f":"$C$41&title356","v":"Please Select and equipment"},{"$f":"VLOOKUP($C$41,$P$149:$S$155,4,FALSE)","v":{"$error":"#N/A"}}]
[null,null,{"$f":"title357","v":"Dewatering"},{"$f":"Q54","v":7},"USD/t res",null,null,null,{"$f":"D54*$E$41/20","v":0},{"$f":"title319","v":"USD/year"},null,null,null,null,null,{"$f":"title357","v":"Dewatering"},{"$f":"$Q$158","v":7}]
[null,null,{"$f":"title358","v":"Operation and Mainteinance"},{"$f":"Q55","v":0.15},null,null,null,null,{"$f":"SUM(I53:I54)*$D$55","v":{"$error":"#N/A"}},{"$f":"title319","v":"USD/year"},null,null,null,null,null,{"$f":"title358","v":"Operation and Mainteinance"},0.15]
[null,null,null,{"$f":"+IF(AND(C54=\"\",C55=\"\"),0,IF(C54=\"\",D55,IF(C55=\"\",D54,D54+D55)))","v":7.15},null,null,null,{"$f":"title269","v":"Subtotal"},{"$f":"+SUMIF(I53:I55,\">0\")","v":0},{"$f":"title319","v":"USD/year"}]
[]
[null,null,null,{"$f":"title359","v":"Cost for Collection and transfer to storage tank"},null,null,null,null,{"$f":"SUM(I50+I56)/E41","v":{"$error":"#DIV/0!"}},"USD/t"]
[]
[null,null,{"$f":"title360","v":"Collection Method 3 - Feedstock collected from different farms"}]
[]
[null,null,{"$f":"title361","v":"Source of biomass"},null,{"$f":"title405","v":"Collection method"},null,{"$f":"title346","v":"Data Source"},false]
[null,null,{"$f":"title362","v":"Transfer from individual farms"},null,"Mechanized"]
[]
[null,null,{"$f":"title363","v":"Transportation method"},null,"Tanker Truck Transfer",null,{"$f":"title372","v":"Number Of Farms Supplying Feedstock"},{"$f":"title373","v":"Average distance to collection point (m)"},{"$f":"title374","v":"Collection Period (days)"},{"$f":"IF($E$65=title364,title375,title376)&title377","v":"Number of Tanks required"}]
[]
[null,null,{"$f":"IF($E$65=title364,title365,title366)","v":"Tranport Capacity (liter)"},null,{"$f":"title370","v":"Residue Quanitiy (t/year)"},{"$f":"INDIRECT(\"'Data entry needs'!$F$\"&$A$1)","v":0},null,null,null,null,null,null,null,null,null,{"$f":"IF($E$60=title364,title365,title366)","v":"Pipe Diameter (in)"},{"$f":"VLOOKUP($E$65,$Y$147:$AE$149,3,FALSE)","v":27600}]
[null,null,{"$f":"IF($E$65=title364,title367,title368)","v":"Engine Power (HP)"},null,{"$f":"title371","v":"Residue Density (kg/m3)"},null,null,null,{"$f":"'Data entry needs'!L100-INDIRECT(\"Planner_pS1!$AN$\"&$B$1)*21","v":-252},{"$f":"IFERROR(ROUNDUP($F$67*1000*1000/(960*$D$69*'Data entry needs'!$L$99)/$I$68,0),0)","v":0},null,null,null,null,null,{"$f":"IF($E$60=title364,title367,title368)","v":"Motor Power (HP)"},{"$f":"VLOOKUP($E$65,$Y$147:$AE$149,4,FALSE)","v":200}]
[null,null,{"$f":"title369","v":"Transfer Rate (l/h)"},null,null,null,null,null,null,null,null,null,null,null,null,{"$f":"title369","v":"Transfer Rate (l/h)"},{"$f":"VLOOKUP($E$65,$Y$147:$AE$149,5,FALSE)","v":27221.917808219176}]
[]
[null,null,null,{"$f":"+IF(OR($E$63=title337,$E$63=title378),FALSE,TRUE)","v":true},{"$f":"+IF($E$63=title337,TRUE,FALSE)","v":false}]
[null,null,{"$f":"title332","v":"Biomass Price Definition"},null,null,null,null,null,null,null,null,null,null,null,null,{"$f":"title371","v":"Residue Density (kg/m3)"},{"$f":"IFERROR(VLOOKUP(INDIRECT(\"'Data entry needs'!$e$\"&$A$1),PRICE_FS3_PS1!$Y$152:$Z$156,2,FALSE),1000)","v":1000}]
[null,null,{"$f":"title333","v":"Labour cost"},{"$f":"title270","v":"Quantity"},{"$f":"title27","v":"Unit"},{"$f":"title270","v":"Quantity"},null,{"$f":"title27","v":"Unit"},"Total",{"$f":"title27","v":"Unit"}]
[null,null,{"$f":"IF(OR($E$63=title337,$E$63=title378),title379,\"\")","v":""},null,{"$f":"IF(OR($E$63=title337,$E$63=title378),title381,\"\")","v":""},{"$f":"IF(OR($E$63=title337,$E$63=title378),title335,\"\")","v":""},{"$f":"IF(OR($E$63=title337,$E$63=title378),'Data entry needs'!$L$96,\"\")","v":""},{"$f":"IF(OR($E$63=title337,$E$63=title378),title128,\"\")","v":""},{"$f":"IFERROR(IF(OR($E$63=title337,$E$63=title378),$F$67*D74*$G$74,\"\"),0)","v":""},{"$f":"IF(OR($E$63=title337,$E$63=title378),title319,\"\")","v":""}]
[null,null,{"$f":"IF($E$63=title337,\"\",title380)","v":"Number of skilled workers"},null,{"$f":"IF($E$63=title337,\"\",title381)","v":"person-hour/t"},{"$f":"IF($E$63=title337,\"\",title336)","v":"Skilled labour wage"},{"$f":"IF($E$63=title337,\"\",'Data entry needs'!$F$96)","v":0},{"$f":"IF($E$63=title337,\"\",title128)","v":"USD/person-hour"},{"$f":"IFERROR(IF($E$63=title337,\"\",D75*G75*$F$67),0)","v":0},{"$f":"IF($E$63=title337,\"\",title319)","v":"USD/year"}]
[null,null,null,{"$f":"+IF(AND(C74=\"\",C75=\"\"),0,IF(C74=\"\",D75,IF(C75=\"\",D74,D74+D75)))","v":0},null,null,null,{"$f":"title269","v":"Subtotal"},{"$f":"+SUMIF($I$74:$I$75,\">0\")","v":0},{"$f":"title319","v":"USD/year"}]
[null,null,{"$f":"title383","v":"Collection Machinery"},{"$f":"title270","v":"Quantity"},{"$f":"title27","v":"Unit"},{"$f":"title270","v":"Quantity"},null,{"$f":"title27","v":"Unit"},"Total",{"$f":"title27","v":"Unit"}]
[null,null,{"$f":"IF(OR($E$63=title382,$E$63=title378),title384,\"\")","v":"Collection Diesel Consumption"},null,{"$f":"IF(OR($E$63=title382,$E$63=title378),title575,\"\")","v":"l diesel/h"},{"$f":"IF(OR($E$63=title382,$E$63=title378),title389,\"\")","v":"Diesel Cost"},{"$f":"IF(OR($E$63=title382,$E$63=title378),'Data entry needs'!F$100,\"\")","v":0},{"$f":"IF(OR($E$63=title382,$E$63=title378),title576,\"\")","v":"USD/l diesel"},{"$f":"IFERROR(IF(OR($E$63=title382,$E$63=title378),D78*G78*D75*F67,\"\"),0)","v":0},{"$f":"title319","v":"USD/year"}]
[null,null,{"$f":"IF($E$65=title364,title385,title386)","v":"Truck Diesel Consumption"},null,{"$f":"IF($E$65=title364,title387,title388)","v":"l diesel/day"},{"$f":"IF($E$65=title364,title389,title390)","v":"Diesel Cost"},{"$f":"IF($E$65=title364,'Data entry needs'!F$100,'Data entry needs'!$L$92)","v":0},{"$f":"IF($E$65=title364,title576,\"USD/kWh\")","v":"USD/l diesel"},{"$f":"IFERROR(D79*G79*$I$68*$J$68,0)","v":0},{"$f":"title319","v":"USD/year"},null,null,null,null,null,{"$f":"IF($E$60=title364,title385,title386)","v":"Pump Electricity Consumption"},{"$f":"VLOOKUP($E$65,$Y$147:$AE$149,7,FALSE)","v":154}]
[null,null,null,null,null,null,null,{"$f":"title269","v":"Subtotal"},{"$f":"+SUMIF($I$78:$I$79,\">0\")","v":0},{"$f":"title319","v":"USD/year"}]
[null,null,{"$f":"title391","v":"Equipment"},{"$f":"title270","v":"Quantity"},{"$f":"title27","v":"Unit"},{"$f":"title270","v":"Quantity"},null,{"$f":"title27","v":"Unit"},"Total",{"$f":"title27","v":"Unit"}]
[null,null,{"$f":"IF($E$65=title364,title392,title393)","v":"Liquid Tanker Truck"},{"$f":"IF($E$65=title364,$J$68,$G$68*$H$68*1.2)","v":0},{"$f":"IF($E$65=title364,title398,\"m\")","v":"tank(s)"},{"$f":"IF($E$65=title364,title399,title400)","v":"Cost per Tank"},{"$f":"VLOOKUP($E$65,$Y$147:$AF$149,8,FALSE)/10","v":7900},{"$f":"IF($E$65=title364,title402,title403)","v":"USD/tank/year"},{"$f":"IFERROR(D82*G82,0)","v":0},{"$f":"title319","v":"USD/year"}]
[null,null,{"$f":"IF($E$65=title364,title394&$D$68&title395,title396&$D$68&title397)","v":"Semi-tractor 185  HP"},null,"USD",{"$f":"title401","v":"Depreciation Period"},null,{"$f":"title164","v":"year"},{"$f":"IFERROR(D83*$J$68/G83,0)","v":0},{"$f":"title319","v":"USD/year"},null,null,null,null,null,{"$f":"IF($E$60=title364,title406,title396&$D$63&title397)","v":"Pump  HP with agitator"},{"$f":"VLOOKUP($E$65,$Y$147:$AH$149,10,FALSE)","v":148000}]
[null,null,{"$f":"title358","v":"Operation and Mainteinance"},null,null,null,null,null,{"$f":"IFERROR(SUM(I82:I83)*$D$84,0)","v":0},{"$f":"title319","v":"USD/year"},null,null,null,null,null,{"$f":"title358","v":"Operation and Mainteinance"},0.15]
[null,null,null,null,null,null,null,{"$f":"title269","v":"Subtotal"},{"$f":"I82","v":0},{"$f":"title319","v":"USD/year"},null,null,null,null,null,{"$f":"title401","v":"Depreciation Period"},15]
[]
[null,null,null,{"$f":"title404","v":"Cost for Collection and transfer to central collection point"},null,null,null,null,{"$f":"(I85+I80+I76)/$F$67","v":{"$error":"#DIV/0!"}},"USD/t"]
[]
[]
[]
[]
[]
[]
[]
[]
[]
[]
[]
[]
[]
[]
[]
[]
[]
[]
[]
[]
[]
[]
[]
[]
[]
[]
[]
[]
[]
[]
[]
[null,null,null,null,null,null,null,null,null,null,null,null,null,null,null,{"$f":"title410","v":"Sources of biomass"}]
[null,null,null,null,null,null,null,null,null,null,null,null,null,null,null,{"$f":"title411","v":"Biomass spread in the field"}]
[null,null,null,null,null,null,null,null,null,null,null,null,null,null,null,{"$f":"title412","v":"Biomass collected from field"}]
[null,null,null,null,null,null,null,null,null,null,null,null,null,null,null,{"$f":"title413","v":"Biomass from food processing plant"}]
[]
[]
[]
[]
[null,null,null,null,null,null,null,null,null,null,null,null,null,null,null,{"$f":"title405","v":"Collection method"}]
[null,null,null,null,null,null,null,null,null,null,null,null,null,null,null,{"$f":"title382","v":"Mechanized"}]
[null,null,null,null,null,null,null,null,null,null,null,null,null,null,null,{"$f":"title378","v":"Semi-mechanized"}]
[null,null,null,null,null,null,null,null,null,null,null,null,null,null,null,{"$f":"title337","v":"Manual"}]
[]
[]
[]
[]
[]
[]
[]
[]
[]
[]
[]
[]
[]
[]
[null,null,null,null,null,null,null,null,null,null,null,null,null,null,null,"Dairy maNURE",40.753799999999998,"Manure (kg/head/day)"]
[null,null,null,null,null,null,null,null,null,null,null,null,null,null,null,null,"Energy Use Cost","Labor and Mainteinance",null,null,null,"ts (%) transported","Dewateing",null,null,null,{"$f":"title440","v":"Capacity"},{"$f":"title441","v":"Engine/motor (hp)"},{"$f":"title369","v":"Transfer Rate (l/h)"},{"$f":"title442","v":"Transfer time (m/h)"},{"$f":"title443","v":"Energy Use  (kw)"},{"$f":"title444","v":"Add equipment"}]
[null,null,null,null,null,null,null,null,null,null,null,null,null,null,null,{"$f":"title405","v":"Collection method"},"liters diesel/t residue","workers*day/t residue","Capital cost","Capital cost","Capital cost",null,"Final solids ts (%)",null,{"$f":"title364","v":"Tanker Truck Transfer"},null,27600,200,27221.917808219176,609.6,154,79000,"USD",{"$f":"148000","v":148000},2010,{"$f":"title406","v":"Semi-tractor 185 HP"},null,null,"l/working day"]
[null,null,null,null,null,null,null,null,null,null,null,null,null,null,null,{"$f":"title74","v":"Please Select"},null,null,null,null,null,null,null,null,{"$f":"title432","v":"High Volume Pipeline"},null,"6´´ PVC",150,3028,1016,215,{"$f":"37/3.048","v":12.139107611548557},"USD/m",37075,2003]
[null,null,null,null,null,null,null,null,null,null,null,null,null,null,null,{"$f":"title414","v":"Alley Scrapers"},0.14330809896079807,0.42057427773606393,{"$f":"(AVERAGE(35,45)*$B$52+10000+4000)/3785.41178","v":3.698408736922143},{"$f":"title421","v":"USD/liter mixture"},2009,0.08,0.5,null,{"$f":"title433","v":"Low Volume Pipeline"},null,"4´´ PVC",7.5,378,127,86,{"$f":"12.4/3.048","v":4.0682414698162734},"USD/m",7675,2003]
[null,null,null,null,null,null,null,null,null,null,null,null,null,null,null,{"$f":"title415","v":"Flush System"},0.4093569308278352,0.10526625737967994,{"$f":"(4950.08+(16+9.8)*$B$52)/3785.41178","v":1.3076727943188258},"USD/liter mixture",2014,{"$f":"AVERAGE(1%,3%)","v":0.02},0.5]
[null,null,null,null,null,null,null,null,null,null,null,null,null,null,null,{"$f":"title416","v":"Vacum Scraper"},3.190595592141102,1.9769935564290937,10,"USD/liter mixture",2010,0.18,0.5,null,null,{"$f":"title434","v":"Density (Kg/m3)"}]
[null,null,null,null,null,null,null,null,null,null,null,null,null,null,null,{"$f":"title417","v":"Skid-loader"},0.75612714559717353,1.2830705357537211,{"$f":"(142.6*0.914+58.5*0.084+50.75*0.997)/$Q$145","v":4.5602655457895951},"USD/liter mixture",2010,{"$f":"AVERAGE(8%,18%)","v":0.13},0.5,null,{"$f":"title435","v":"Buffalo"},960]
[null,null,null,null,null,null,null,null,null,null,null,null,null,null,null,{"$f":"title418","v":"Cross gutter Scraper"},1.5259658685640533E-2,2.6500596263415929E-2,5,"USD/liter mixture",2010,0.08,0.5,null,{"$f":"title436","v":"Cattle"},960]
[null,null,null,null,null,null,null,null,null,null,null,null,null,null,null,{"$f":"title419","v":"Cross Gutter Auger"},0.20478904265077005,2.6255220372088005E-2,{"$f":"2200*30/2378/10","v":2.7754415475189234},"USD/liter mixture",2010,0.08,0.5,null,{"$f":"title437","v":"Dairy Cattle"},994]
[null,null,null,null,null,null,null,null,null,null,null,null,null,null,null,{"$f":"title420","v":"Flush Flume"},0.13645231027594507,2.6255220372088005E-2,{"$f":"(4950.08+(16+9.8)*$B$52)*1.5/3785.41178","v":1.9615091914782385},"USD/liter mixture",2010,{"$f":"AVERAGE(4%,9%)","v":6.5000000000000002E-2},0.5,null,{"$f":"title438","v":"Poultry"},961.11]
[null,null,null,null,null,null,null,null,null,null,null,null,null,null,null,null,null,null,null,null,null,null,null,null,{"$f":"title439","v":"Swine"},1140.9000000000001]
[null,null,null,null,null,null,null,null,null,null,null,null,null,null,null,{"$f":"title357","v":"Dewatering"},"Screw Press ",{"$f":"PROPER(title164)","v":"Year"}]
[null,null,null,null,null,null,null,null,null,null,null,null,null,null,null,{"$f":"title422","v":"Capital Cost (USD/t residue)"},{"$f":"AVERAGE(0.2,0.5)*1000000*0.12/AVERAGE(4000,8000)","v":7},2002]
[null,null,null,null,null,null,null,null,null,null,null,null,null,null,null,{"$f":"title423","v":"Operation (worker/t residue)"},{"$f":"AVERAGE(20,40)*1000/AVERAGE(4000,8000)/(300*8*160)","v":1.3020833333333334E-5}]
[null,null,null,null,null,null,null,null,null,null,null,null,null,null,null,{"$f":"title424","v":"Energy Demand kWh/t residue"},{"$f":"AVERAGE(5,15)*8000/AVERAGE(4000,8000)","v":13.333333333333334},2002]
[]
[]
[]
[]
[null,null,null,null,null,null,null,null,null,null,null,null,null,null,null,{"$f":"title74","v":"Please Select"},{"$f":"title405","v":"Collection method"},"Show","Section to Show",{"$f":"VLOOKUP(INDIRECT(\"'Data entry needs'!$d$\"&$A$1),$P$166:$R$178,3,FALSE)","v":{"$error":"#N/A"}}]
[null,null,null,null,null,null,null,null,null,null,null,null,null,null,null,{"$f":"title184","v":"Biodiesel/Oilseed Ind."},{"$f":"title425","v":"No collection neeeded"},1,{"$f":"title429&\" 0\"","v":"Option 0"},0,0]
[null,null,null,null,null,null,null,null,null,null,null,null,null,null,null,{"$f":"title85","v":"Crop Residues"},{"$f":"title426","v":"Method 1"},2,{"$f":"title429&\" 1\"","v":"Option 1"},{"$f":"$I$31","v":{"$error":"#DIV/0!"}},{"$f":"$D$24/E16","v":{"$error":"#DIV/0!"}},{"$f":"title381","v":"person-hour/t"}]
[null,null,null,null,null,null,null,null,null,null,null,null,null,null,null,{"$f":"title185","v":"Dairy-milk ind."},{"$f":"title427","v":"Method 2, Method 3"},4,{"$f":"title429&\" 2\"","v":"Option 2"},{"$f":"$I$58","v":{"$error":"#DIV/0!"}},{"$f":"F49/E41","v":{"$error":"#N/A"}},{"$f":"title381","v":"person-hour/t"}]
[null,null,null,null,null,null,null,null,null,null,null,null,null,null,null,{"$f":"title120","v":"Energy Crops"},{"$f":"title425","v":"No collection neeeded"},1,{"$f":"title429&\" 3\"","v":"Option 3"},{"$f":"$I$87","v":{"$error":"#DIV/0!"}},{"$f":"D76","v":0},{"$f":"title381","v":"person-hour/t"}]
[null,null,null,null,null,null,null,null,null,null,null,null,null,null,null,{"$f":"title186","v":"Eth-Sugar-Starch Ind."},{"$f":"title425","v":"No collection neeeded"},1]
[null,null,null,null,null,null,null,null,null,null,null,null,null,null,null,{"$f":"title187","v":"Food Process. Res."},{"$f":"title425","v":"No collection neeeded"},1,{"$f":"title430","v":"Result"},{"$f":"IF($T$165=1,T166,IF($T$165=2,$T$167,IF($T$165=3,T168,IF(AND($T$165=4,$E$34),$T$168,$T$169))))","v":{"$error":"#N/A"}}]
[null,null,null,null,null,null,null,null,null,null,null,null,null,null,null,{"$f":"title188","v":"Grass"},{"$f":"title426","v":"Method 1"},2,{"$f":"title431","v":"Employees"},{"$f":"IF($T$165=1,U166,IF($T$165=2,$U$167,IF($T$165=3,U169,IF(AND($T$165=4,$E$34),$U$168,$U$169))))","v":{"$error":"#N/A"}},{"$f":"title381","v":"person-hour/t"}]
[null,null,null,null,null,null,null,null,null,null,null,null,null,null,null,{"$f":"title119","v":"Crops"},{"$f":"title425","v":"No collection neeeded"},1]
[null,null,null,null,null,null,null,null,null,null,null,null,null,null,null,{"$f":"title189","v":"Other Options"},{"$f":"title425","v":"No collection neeeded"},1]
[null,null,null,null,null,null,null,null,null,null,null,null,null,null,null,{"$f":"title190","v":"Slaughterhouses wastes"},{"$f":"title428","v":"Method 2"},3]
[null,null,null,null,null,null,null,null,null,null,null,null,null,null,null,{"$f":"title191","v":"Yeast-Alcoholic Bev."},{"$f":"title425","v":"No collection neeeded"},1]
[null,null,null,null,null,null,null,null,null,null,null,null,null,null,null,{"$f":"title84","v":"Manure"},{"$f":"title427","v":"Method 2, Method 3"},4]
[null,null,null,null,null,null,null,null,null,null,null,null,null,null,null,{"$f":"title192","v":"Wastewater"},{"$f":"title425","v":"No collection neeeded"},1]

{"sheet":"PRICE_FS4_PS1","index":17,"n_rows":178,"n_cols":39,"rows_kept":178,"cut":false,"hidden":true,"merged":[[40,8,40,9],[2,2,2,9],[5,2,5,3],[5,4,5,6],[7,2,10,9],[14,6,14,7],[15,2,15,3],[15,6,15,7],[30,3,30,7],[33,4,34,4],[33,5,34,5],[33,6,34,9],[34,2,34,3],[64,9,66,9],[86,3,86,7],[41,8,41,9],[57,3,57,7],[61,4,61,5],[61,6,62,6],[62,4,62,5],[64,2,64,3],[64,4,64,5],[64,6,66,6],[64,7,66,7],[64,8,66,8]]}
[{"$f":"PRICE_FS3_PS1!A1+2","v":27},91]
[]
[null,null,{"$f":"+title324&UPPER(INDIRECT(\"'Data entry needs'!$d$\"&$A$1)&\"-\"&INDIRECT(\"'Data entry needs'!$e$\"&$A$1))","v":"COLLECTION COSTS CALCULATOR FOR PLEASE SELECT-PLEASE SELECT"}]
[]
[]
[null,null,{"$f":"title193","v":"Use white cells to input data"},null,{"$f":"title194","v":"Grey cells are used for calculations"}]
[]
[null,null,{"$f":"title325&INDIRECT(\"'Data entry needs'!$d$\"&$A$1)&title326","v":"No collection method is required. It is assumed that Please Select are already collected. Then, transportation cost and/or market price should be considered."}]
[]
[]
[]
[]
[null,null,{"$f":"title327","v":"Collection Method 1 - Biomass spread in the field"}]
[]
[null,null,{"$f":"title328","v":"Collecting method"},null,{"$f":"title329","v":"Biomass Yield"},null,{"$f":"title110","v":"Feedstock Available (t/year)"},null,{"$f":"title330","v":"Collection days"}]
[null,null,"Mechanized",null,null,"t/ha",{"$f":"INDIRECT(\"'Data entry needs'!$F$\"&$A$1)","v":0},null,{"$f":"'Data entry needs'!L100-INDIRECT(\"Planner_pS1!$AN$\"&$B$1)*21","v":-252}]
[]
[null,null,{"$f":"title331","v":"Biomass Collection definition"}]
[]
[null,null,{"$f":"title332","v":"Biomass Price Definition"},null,null,null,null,null,null,null,null,null,null,null,null,null,null,null,null,null,null,{"$f":"title405","v":"Collection method"},null,{"$f":"title382","v":"Mechanized"},{"$f":"title380","v":"Number of skilled workers"},{"$f":"title409","v":"person-hour/ha"}]
[null,null,{"$f":"title333","v":"Labour cost"},{"$f":"title270","v":"Quantity"},{"$f":"title27","v":"Unit"},{"$f":"title270","v":"Quantity"},null,{"$f":"title27","v":"Unit"},"Total",{"$f":"title27","v":"Unit"},null,null,null,null,null,null,null,null,null,null,null,{"$f":"$C$16","v":"Mechanized"},null,{"$f":"title382&2","v":"Mechanized2"},{"$f":"title336","v":"Skilled labour wage"},{"$f":"title128","v":"USD/person-hour"}]
[null,null,{"$f":"IFERROR(VLOOKUP($V$21&$W21,$X$20:$Z$31,2,FALSE),\"\")","v":"Number of skilled workers"},null,{"$f":"IFERROR(VLOOKUP($V$21&$W21,$X$20:$Z$31,3,FALSE),\"\")","v":"person-hour/ha"},{"$f":"IFERROR(VLOOKUP($V$21&$W23,$X$20:$Z$31,2,FALSE),\"\")","v":"Skilled labour wage"},{"$f":"IF(F22=\"\",\"\",IF(F22=title335,'Data entry needs'!$L$96,IF(F22=title336,'Data entry needs'!F96)))","v":0},{"$f":"IFERROR(VLOOKUP($V$21&$W23,$X$20:$Z$31,3,FALSE),\"\")","v":"USD/person-hour"},{"$f":"IFERROR(G22*D22*(G16/E16)*('Data entry needs'!$L$100/$I$16),0)","v":0},{"$f":"IF(C22=\"\",\"\",title319)","v":"USD/year"},null,null,null,null,null,null,null,null,null,null,null,null,1,{"$f":"title382&4","v":"Mechanized4"},{"$f":"title407","v":"Average fuel economy"},"l/h"]
[null,null,{"$f":"IFERROR(VLOOKUP($V$21&$W22,$X$20:$Z$31,2,FALSE),\"\")","v":""},null,{"$f":"IFERROR(VLOOKUP($V$21&$W22,$X$20:$Z$31,3,FALSE),\"\")","v":""},{"$f":"IFERROR(VLOOKUP($V$21&$W24,$X$20:$Z$31,2,FALSE),\"\")","v":""},{"$f":"IF(F23=\"\",\"\",'Data entry needs'!L96)","v":""},{"$f":"title128","v":"USD/person-hour"},{"$f":"IFERROR(G23*D23*(G16/E16)*('Data entry needs'!$L$100/$I$16),0)","v":0},{"$f":"IF(C23=\"\",\"\",title319)","v":""},null,null,null,null,null,null,null,null,null,null,null,{"$f":"VLOOKUP($V$21,$T$29:$U$31,2,FALSE)","v":1},2,{"$f":"title382&5","v":"Mechanized5"},{"$f":"title408","v":"Fuel price"},"USD/l"]
[null,null,null,{"$f":"+IF(AND(C22=\"\",C23=\"\"),0,IF(C22=\"\",D23,IF(C23=\"\",D22,D22+D23)))","v":0},null,null,null,{"$f":"title269","v":"Subtotal"},{"$f":"+SUMIF($I$22:$I$23,\">0\")","v":0},{"$f":"title319","v":"USD/year"},null,null,null,null,null,null,null,null,null,null,null,null,3,{"$f":"title378","v":"Semi-mechanized"},{"$f":"title380","v":"Number of skilled workers"},{"$f":"title409","v":"person-hour/ha"}]
[null,null,{"$f":"title334","v":"Machinery & operating cost"},{"$f":"title270","v":"Quantity"},{"$f":"title27","v":"Unit"},{"$f":"title270","v":"Quantity"},null,{"$f":"title27","v":"Unit"},"Total",{"$f":"title27","v":"Unit"},null,null,null,null,null,null,null,null,null,null,null,null,4,{"$f":"title378&1","v":"Semi-mechanized1"},{"$f":"title379","v":"Number of unskilled workers"},{"$f":"title409","v":"person-hour/ha"}]
[null,null,{"$f":"IFERROR(VLOOKUP($V$21&$W25,$X$20:$Z$31,2,FALSE),\"\")","v":"Average fuel economy"},null,{"$f":"IFERROR(VLOOKUP($V$21&$W25,$X$20:$Z$31,3,FALSE),\"\")","v":"l/h"},{"$f":"IFERROR(VLOOKUP($V$21&$W26,$X$20:$Z$31,2,FALSE),\"\")","v":"Fuel price"},{"$f":"IF(F26=\"\",\"\",'Data entry needs'!$F$100)","v":0},{"$f":"+IFERROR(VLOOKUP($V$21&$W26,$X$20:$Z$31,3,FALSE),\"\")","v":"USD/l"},{"$f":"+IFERROR(D26*G26*IF($C$16=title337,0,$D$22*G16/E16)*('Data entry needs'!$L$100/$I$16),\"\")","v":""},{"$f":"IF(C26=\"\",\"\",title319)","v":"USD/year"},null,null,null,null,null,null,null,null,null,null,null,null,5,{"$f":"title378&2","v":"Semi-mechanized2"},{"$f":"title336","v":"Skilled labour wage"},{"$f":"title128","v":"USD/person-hour"}]
[null,null,null,null,null,null,null,{"$f":"IF(C26=\"\",\"\",title269)","v":"Subtotal"},{"$f":"+I26","v":""},{"$f":"IF(C26=\"\",\"\",title319)","v":"USD/year"},null,null,null,null,null,null,null,null,null,null,null,null,null,{"$f":"title378&3","v":"Semi-mechanized3"},{"$f":"title335","v":"Unskilled labour wage"},{"$f":"title128","v":"USD/person-hour"}]
[null,null,null,null,null,null,null,{"$f":"IF(C26=\"\",\"\",\"Total\")","v":"Total"},{"$f":"IFERROR(I24+I27,I24)","v":0},{"$f":"title319","v":"USD/year"},null,null,null,null,null,null,null,null,null,{"$f":"title405","v":"Collection method"},null,null,null,{"$f":"title378&4","v":"Semi-mechanized4"},{"$f":"title407","v":"Average fuel economy"},"l/h"]
[null,null,null,null,null,null,null,null,null,null,null,null,null,null,null,null,null,null,null,{"$f":"title382","v":"Mechanized"},1,null,null,{"$f":"title378&5","v":"Semi-mechanized5"},{"$f":"title408","v":"Fuel price"},"USD/l"]
[null,null,null,null,null,null,null,null,"",null,null,null,null,null,null,null,null,null,null,{"$f":"title378","v":"Semi-mechanized"},2,null,null,{"$f":"title337","v":"Manual"},{"$f":"title379","v":"Number of unskilled workers"},{"$f":"title409","v":"person-hour/ha"}]
[null,null,null,{"$f":"title338&INDIRECT(\"'Data entry needs'!$d$\"&$A$1)&\"-\"&INDIRECT(\"'Data entry needs'!$e$\"&$A$1)","v":"Collection cost of Please Select-Please Select"},null,null,null,null,{"$f":"(I24+I28)/$G$16","v":{"$error":"#DIV/0!"}},"USD/t",null,null,null,null,null,null,null,null,null,{"$f":"title337","v":"Manual"},3,null,null,{"$f":"title337&2","v":"Manual2"},{"$f":"title335","v":"Unskilled labour wage"},{"$f":"title128","v":"USD/person-hour"}]
[]
[]
[null,null,null,null,false,null,{"$f":"IF($E$34,title340,title341)","v":"Use this method for feedstock collected and transported from different farms to a central collection point"}]
[null,null,{"$f":"title339","v":"Collection Methods Available"}]
[]
[null,null,{"$f":"title342","v":"Collection Method 2"}]
[]
[null,null,{"$f":"title328","v":"Collecting method"},{"$f":"title343","v":"Transportation requirements"},null,null,null,null,{"$f":"title346","v":"Data Source"}]
[]
[null,null,"Please Select",{"$f":"title110","v":"Feedstock Available (t/year)"},{"$f":"INDIRECT(\"'Data entry needs'!$F$\"&$A$1)","v":0},{"$f":"title344","v":"Initial ts in residue (%)"},null,{"$f":"INDIRECT(\"'Data entry needs'!$h$\"&$A$1)","v":0},false]
[null,null,null,{"$f":"title134","v":"Operating days per year"},{"$f":"'Data entry needs'!L100-INDIRECT(\"Planner_pS1!$AN$\"&$B$1)*21","v":-252},{"$f":"title345&$C$41","v":"ts (%) allowed by Please Select"},null,{"$f":"Q45","v":{"$error":"#N/A"}}]
[]
[null,null,{"$f":"title347","v":"Collection Cost Definition"}]
[null,null,{"$f":"title348","v":"Operation Cost"},{"$f":"title270","v":"Quantity"},{"$f":"title27","v":"Unit"},{"$f":"title270","v":"Quantity"},{"$f":"title27","v":"Unit"},{"$f":"title267","v":"Unit Price"},"Total",null,null,null,null,null,null,"ts (%) transported",{"$f":"VLOOKUP($C$41,$P$149:$V$155,7,FALSE)","v":{"$error":"#N/A"}}]
[null,null,{"$f":"title35","v":"Electricity"},{"$f":"Q46","v":13.333333333333334},"kWh/t res",{"$f":"D46*E41","v":0},{"$f":"title304","v":"kWh/year"},{"$f":"'Data entry needs'!$L$92","v":0},{"$f":"F46*H46","v":0},{"$f":"title319","v":"USD/year"},null,null,null,null,null,{"$f":"title35","v":"Electricity"},{"$f":"$Q$160","v":13.333333333333334}]
[null,null,{"$f":"title170","v":"Diesel"},{"$f":"Q47","v":{"$error":"#N/A"}},{"$f":"title574","v":"l diesel/t res"},{"$f":"D47*$E$41","v":{"$error":"#N/A"}},{"$f":"title350","v":"Liter Diesel/year"},{"$f":"'Data entry needs'!$F$100","v":0},{"$f":"F47*H47","v":{"$error":"#N/A"}},{"$f":"title319","v":"USD/year"},null,null,null,null,null,{"$f":"title170","v":"Diesel"},{"$f":"VLOOKUP($C$41,$P$149:$S$155,2,FALSE)","v":{"$error":"#N/A"}}]
[null,null,{"$f":"title244","v":"Water Make-up "},{"$f":"Q48","v":0.15},{"$f":"title353","v":"Liter water/t res"},{"$f":"IF(D48=0,0,E41*(H41/H42)*(1-D48))","v":{"$error":"#N/A"}},{"$f":"title351","v":"Liter water/year"},{"$f":"'Data entry needs'!$F$92","v":0},{"$f":"F48*H48*D48","v":{"$error":"#N/A"}},{"$f":"title319","v":"USD/year"},null,null,null,null,null,{"$f":"title244","v":"Water Make-up "},0.15]
[null,null,{"$f":"title349","v":"Unskilled Workers"},{"$f":"Q49","v":{"$error":"#N/A"}},{"$f":"title354","v":"person-day/t res"},{"$f":"ROUNDUP($D$49*E41*('Data entry needs'!$L$100/PRICE_FS4_PS1!E42)/'Data entry needs'!$L$99,0)","v":{"$error":"#N/A"}},{"$f":"title352","v":"person-hour"},{"$f":"'Data entry needs'!$L$96","v":0},{"$f":"F49*H49","v":{"$error":"#N/A"}},{"$f":"title319","v":"USD/year"},null,null,null,null,null,{"$f":"title127","v":"Unskilled worker"},{"$f":"VLOOKUP($C$41,$P$149:$S$155,3,FALSE)","v":{"$error":"#N/A"}}]
[null,null,null,{"$f":"Q47","v":{"$error":"#N/A"}},null,null,null,{"$f":"title269","v":"Subtotal"},{"$f":"+SUMIF($I$46:$I$49,\">0\")","v":0},{"$f":"title319","v":"USD/year"}]
[]
[null,null,{"$f":"title355","v":"Capital Investment"},{"$f":"title270","v":"Quantity"},{"$f":"title27","v":"Unit"}]
[null,null,{"$f":"$C$41&title356","v":"Please Select and equipment"},{"$f":"Q53","v":{"$error":"#N/A"}},{"$f":"VLOOKUP($C$41,$P$149:$T$155,5,FALSE)","v":{"$error":"#N/A"}},null,null,null,{"$f":"D53*(E41*10)/20","v":{"$error":"#N/A"}},{"$f":"title319","v":"USD/year"},null,null,null,null,null,{"$f":"$C$41&title356","v":"Please Select and equipment"},{"$f":"VLOOKUP($C$41,$P$149:$S$155,4,FALSE)","v":{"$error":"#N/A"}}]
[null,null,{"$f":"title357","v":"Dewatering"},{"$f":"Q54","v":7},"USD/t res",null,null,null,{"$f":"D54*$E$41/20","v":0},{"$f":"title319","v":"USD/year"},null,null,null,null,null,{"$f":"title357","v":"Dewatering"},{"$f":"$Q$158","v":7}]
[null,null,{"$f":"title358","v":"Operation and Mainteinance"},{"$f":"Q55","v":0.15},null,null,null,null,{"$f":"SUM(I53:I54)*$D$55","v":{"$error":"#N/A"}},{"$f":"title319","v":"USD/year"},null,null,null,null,null,{"$f":"title358","v":"Operation and Mainteinance"},0.15]
[null,null,null,{"$f":"+IF(AND(C54=\"\",C55=\"\"),0,IF(C54=\"\",D55,IF(C55=\"\",D54,D54+D55)))","v":7.15},null,null,null,{"$f":"title269","v":"Subtotal"},{"$f":"+SUMIF(I53:I55,\">0\")","v":0},{"$f":"title319","v":"USD/year"}]
[]
[null,null,null,{"$f":"title359","v":"Cost for Collection and transfer to storage tank"},null,null,null,null,{"$f":"SUM(I50+I56)/E41","v":{"$error":"#DIV/0!"}},"USD/t"]
[]
[null,null,{"$f":"title360","v":"Collection Method 3 - Feedstock collected from different farms"}]
[]
[null,null,{"$f":"title361","v":"Source of biomass"},null,{"$f":"title405","v":"Collection method"},null,{"$f":"title346","v":"Data Source"},false]
[null,null,{"$f":"title362","v":"Transfer from individual farms"},null,"Mechanized"]
[]
[null,null,{"$f":"title363","v":"Transportation method"},null,"Tanker Truck Transfer",null,{"$f":"title372","v":"Number Of Farms Supplying Feedstock"},{"$f":"title373","v":"Average distance to collection point (m)"},{"$f":"title374","v":"Collection Period (days)"},{"$f":"IF($E$65=title364,title375,title376)&title377","v":"Number of Tanks required"}]
[]
[null,null,{"$f":"IF($E$65=title364,title365,title366)","v":"Tranport Capacity (liter)"},null,{"$f":"title370","v":"Residue Quanitiy (t/year)"},{"$f":"INDIRECT(\"'Data entry needs'!$F$\"&$A$1)","v":0},null,null,null,null,null,null,null,null,null,{"$f":"IF($E$60=title364,title365,title366)","v":"Pipe Diameter (in)"},{"$f":"VLOOKUP($E$65,$Y$147:$AE$149,3,FALSE)","v":27600}]
[null,null,{"$f":"IF($E$65=title364,title367,title368)","v":"Engine Power (HP)"},null,{"$f":"title371","v":"Residue Density (kg/m3)"},{"$f":"Q72","v":1000},null,null,{"$f":"'Data entry needs'!L100-INDIRECT(\"Planner_pS1!$AN$\"&$B$1)*21","v":-252},{"$f":"IFERROR(ROUNDUP($F$67*1000*1000/(960*$D$69*'Data entry needs'!$L$99)/$I$68,0),0)","v":0},null,null,null,null,null,{"$f":"IF($E$60=title364,title367,title368)","v":"Motor Power (HP)"},{"$f":"VLOOKUP($E$65,$Y$147:$AE$149,4,FALSE)","v":200}]
[null,null,{"$f":"title369","v":"Transfer Rate (l/h)"},null,null,null,null,null,null,null,null,null,null,null,null,{"$f":"title369","v":"Transfer Rate (l/h)"},{"$f":"VLOOKUP($E$65,$Y$147:$AE$149,5,FALSE)","v":27221.917808219176}]
[]
[null,null,null,{"$f":"+IF(OR($E$63=title337,$E$63=title378),FALSE,TRUE)","v":true},{"$f":"+IF($E$63=title337,TRUE,FALSE)","v":false}]
[null,null,{"$f":"title332","v":"Biomass Price Definition"},null,null,null,null,null,null,null,null,null,null,null,null,{"$f":"title371","v":"Residue Density (kg/m3)"},{"$f":"IFERROR(VLOOKUP(INDIRECT(\"'Data entry needs'!$e$\"&$A$1),PRICE_FS3_PS1!$Y$152:$Z$156,2,FALSE),1000)","v":1000}]
[null,null,{"$f":"title333","v":"Labour cost"},{"$f":"title270","v":"Quantity"},{"$f":"title27","v":"Unit"},{"$f":"title270","v":"Quantity"},null,{"$f":"title27","v":"Unit"},"Total",{"$f":"title27","v":"Unit"}]
[null,null,{"$f":"IF(OR($E$63=title337,$E$63=title378),title379,\"\")","v":""},null,{"$f":"IF(OR($E$63=title337,$E$63=title378),title381,\"\")","v":""},{"$f":"IF(OR($E$63=title337,$E$63=title378),title335,\"\")","v":""},{"$f":"IF(OR($E$63=title337,$E$63=title378),'Data entry needs'!$L$96,\"\")","v":""},{"$f":"IF(OR($E$63=title337,$E$63=title378),title128,\"\")","v":""},{"$f":"IFERROR(IF(OR($E$63=title337,$E$63=title378),$F$67*D74*$G$74,\"\"),0)","v":""},{"$f":"IF(OR($E$63=title337,$E$63=title378),title319,\"\")","v":""}]
[null,null,{"$f":"IF($E$63=title337,\"\",title380)","v":"Number of skilled workers"},null,{"$f":"IF($E$63=title337,\"\",title381)","v":"person-hour/t"},{"$f":"IF($E$63=title337,\"\",title336)","v":"Skilled labour wage"},{"$f":"IF($E$63=title337,\"\",'Data entry needs'!$F$96)","v":0},{"$f":"IF($E$63=title337,\"\",title128)","v":"USD/person-hour"},{"$f":"IFERROR(IF($E$63=title337,\"\",D75*G75*$F$67),0)","v":0},{"$f":"IF($E$63=title337,\"\",title319)","v":"USD/year"}]
[null,null,null,{"$f":"+IF(AND(C74=\"\",C75=\"\"),0,IF(C74=\"\",D75,IF(C75=\"\",D74,D74+D75)))","v":0},null,null,null,{"$f":"title269","v":"Subtotal"},{"$f":"+SUMIF($I$74:$I$75,\">0\")","v":0},{"$f":"title319","v":"USD/year"}]
[null,null,{"$f":"title383","v":"Collection Machinery"},{"$f":"title270","v":"Quantity"},{"$f":"title27","v":"Unit"},{"$f":"title270","v":"Quantity"},null,{"$f":"title27","v":"Unit"},"Total",{"$f":"title27","v":"Unit"}]
[null,null,{"$f":"IF(OR($E$63=title382,$E$63=title378),title384,\"\")","v":"Collection Diesel Consumption"},null,{"$f":"IF(OR($E$63=title382,$E$63=title378),title575,\"\")","v":"l diesel/h"},{"$f":"IF(OR($E$63=title382,$E$63=title378),title389,\"\")","v":"Diesel Cost"},{"$f":"IF(OR($E$63=title382,$E$63=title378),'Data entry needs'!F$100,\"\")","v":0},{"$f":"IF(OR($E$63=title382,$E$63=title378),title576,\"\")","v":"USD/l diesel"},{"$f":"IFERROR(IF(OR($E$63=title382,$E$63=title378),D78*G78*D75*F67,\"\"),0)","v":0},{"$f":"title319","v":"USD/year"}]
[null,null,{"$f":"IF($E$65=title364,title385,title386)","v":"Truck Diesel Consumption"},null,{"$f":"IF($E$65=title364,title387,title388)","v":"l diesel/day"},{"$f":"IF($E$65=title364,title389,title390)","v":"Diesel Cost"},{"$f":"IF($E$65=title364,'Data entry needs'!F$100,'Data entry needs'!$L$92)","v":0},{"$f":"IF($E$65=title364,title576,\"USD/kWh\")","v":"USD/l diesel"},{"$f":"IFERROR(D79*G79*$I$68*$J$68,0)","v":0},{"$f":"title319","v":"USD/year"},null,null,null,null,null,{"$f":"IF($E$60=title364,title385,title386)","v":"Pump Electricity Consumption"},{"$f":"VLOOKUP($E$65,$Y$147:$AE$149,7,FALSE)","v":154}]
[null,null,null,null,null,null,null,{"$f":"title269","v":"Subtotal"},{"$f":"+SUMIF($I$78:$I$79,\">0\")","v":0},{"$f":"title319","v":"USD/year"}]
[null,null,{"$f":"title391","v":"Equipment"},{"$f":"title270","v":"Quantity"},{"$f":"title27","v":"Unit"},{"$f":"title270","v":"Quantity"},null,{"$f":"title27","v":"Unit"},"Total",{"$f":"title27","v":"Unit"}]
[null,null,{"$f":"IF($E$65=title364,title392,title393)","v":"Liquid Tanker Truck"},{"$f":"IF($E$65=title364,$J$68,$G$68*$H$68*1.2)","v":0},{"$f":"IF($E$65=title364,title398,\"m\")","v":"tank(s)"},{"$f":"IF($E$65=title364,title399,title400)","v":"Cost per Tank"},{"$f":"VLOOKUP($E$65,$Y$147:$AF$149,8,FALSE)/10","v":7900},{"$f":"IF($E$65=title364,title402,title403)","v":"USD/tank/year"},{"$f":"IFERROR(D82*G82,0)","v":0},{"$f":"title319","v":"USD/year"}]
[null,null,{"$f":"IF($E$65=title364,title394&$D$68&title395,title396&$D$68&title397)","v":"Semi-tractor 185  HP"},null,"USD",{"$f":"title401","v":"Depreciation Period"},null,{"$f":"title164","v":"year"},{"$f":"IFERROR(D83*$J$68/G83,0)","v":0},{"$f":"title319","v":"USD/year"},null,null,null,null,null,{"$f":"IF($E$60=title364,title406,title396&$D$63&title397)","v":"Pump  HP with agitator"},{"$f":"VLOOKUP($E$65,$Y$147:$AH$149,10,FALSE)","v":148000}]
[null,null,{"$f":"title358","v":"Operation and Mainteinance"},null,null,null,null,null,{"$f":"IFERROR(SUM(I82:I83)*$D$84,0)","v":0},{"$f":"title319","v":"USD/year"},null,null,null,null,null,{"$f":"title358","v":"Operation and Mainteinance"},0.15]
[null,null,null,null,null,null,null,{"$f":"title269","v":"Subtotal"},{"$f":"I82","v":0},{"$f":"title319","v":"USD/year"},null,null,null,null,null,{"$f":"title401","v":"Depreciation Period"},15]
[]
[null,null,null,{"$f":"title404","v":"Cost for Collection and transfer to central collection point"},null,null,null,null,{"$f":"(I85+I80+I76)/$F$67","v":{"$error":"#DIV/0!"}},"USD/t"]
[]
[]
[]
[]
[]
[]
[]
[]
[]
[]
[]
[]
[]
[]
[]
[]
[]
[]
[]
[]
[]
[]
[]
[]
[]
[]
[]
[]
[]
[]
[]
[null,null,null,null,null,null,null,null,null,null,null,null,null,null,null,{"$f":"title410","v":"Sources of biomass"}]
[null,null,null,null,null,null,null,null,null,null,null,null,null,null,null,{"$f":"title411","v":"Biomass spread in the field"}]
[null,null,null,null,null,null,null,null,null,null,null,null,null,null,null,{"$f":"title412","v":"Biomass collected from field"}]
[null,null,null,null,null,null,null,null,null,null,null,null,null,null,null,{"$f":"title413","v":"Biomass from food processing plant"}]
[]
[]
[]
[]
[null,null,null,null,null,null,null,null,null,null,null,null,null,null,null,{"$f":"title405","v":"Collection method"}]
[null,null,null,null,null,null,null,null,null,null,null,null,null,null,null,{"$f":"title382","v":"Mechanized"}]
[null,null,null,null,null,null,null,null,null,null,null,null,null,null,null,{"$f":"title378","v":"Semi-mechanized"}]
[null,null,null,null,null,null,null,null,null,null,null,null,null,null,null,{"$f":"title337","v":"Manual"}]
[]
[]
[]
[]
[]
[]
[]
[]
[]
[]
[]
[]
[]
[]
[null,null,null,null,null,null,null,null,null,null,null,null,null,null,null,"Dairy maNURE",40.753799999999998,"Manure (kg/head/day)"]
[null,null,null,null,null,null,null,null,null,null,null,null,null,null,null,null,"Energy Use Cost","Labor and Mainteinance",null,null,null,"ts (%) transported","Dewateing",null,null,null,{"$f":"title440","v":"Capacity"},{"$f":"title441","v":"Engine/motor (hp)"},{"$f":"title369","v":"Transfer Rate (l/h)"},{"$f":"title442","v":"Transfer time (m/h)"},{"$f":"title443","v":"Energy Use  (kw)"},{"$f":"title444","v":"Add equipment"}]
[null,null,null,null,null,null,null,null,null,null,null,null,null,null,null,{"$f":"title405","v":"Collection method"},"liters diesel/t residue","workers*day/t residue","Capital cost","Capital cost","Capital cost",null,"Final solids ts (%)",null,{"$f":"title364","v":"Tanker Truck Transfer"},null,27600,200,27221.917808219176,609.6,154,79000,"USD",{"$f":"148000","v":148000},2010,{"$f":"title406","v":"Semi-tractor 185 HP"},null,null,"l/working day"]
[null,null,null,null,null,null,null,null,null,null,null,null,null,null,null,{"$f":"title74","v":"Please Select"},null,null,null,null,null,null,null,null,{"$f":"title432","v":"High Volume Pipeline"},null,"6´´ PVC",150,3028,1016,215,{"$f":"37/3.048","v":12.139107611548557},"USD/m",37075,2003]
[null,null,null,null,null,null,null,null,null,null,null,null,null,null,null,{"$f":"title414","v":"Alley Scrapers"},0.14330809896079807,0.42057427773606393,{"$f":"(AVERAGE(35,45)*$B$52+10000+4000)/3785.41178","v":3.698408736922143},{"$f":"title421","v":"USD/liter mixture"},2009,0.08,0.5,null,{"$f":"title433","v":"Low Volume Pipeline"},null,"4´´ PVC",7.5,378,127,86,{"$f":"12.4/3.048","v":4.0682414698162734},"USD/m",7675,2003]
[null,null,null,null,null,null,null,null,null,null,null,null,null,null,null,{"$f":"title415","v":"Flush System"},0.4093569308278352,0.10526625737967994,{"$f":"(4950.08+(16+9.8)*$B$52)/3785.41178","v":1.3076727943188258},"USD/liter mixture",2014,{"$f":"AVERAGE(1%,3%)","v":0.02},0.5]
[null,null,null,null,null,null,null,null,null,null,null,null,null,null,null,{"$f":"title416","v":"Vacum Scraper"},3.190595592141102,1.9769935564290937,10,"USD/liter mixture",2010,0.18,0.5,null,null,{"$f":"title434","v":"Density (Kg/m3)"}]
[null,null,null,null,null,null,null,null,null,null,null,null,null,null,null,{"$f":"title417","v":"Skid-loader"},0.75612714559717353,1.2830705357537211,{"$f":"(142.6*0.914+58.5*0.084+50.75*0.997)/$Q$145","v":4.5602655457895951},"USD/liter mixture",2010,{"$f":"AVERAGE(8%,18%)","v":0.13},0.5,null,{"$f":"title435","v":"Buffalo"},960]
[null,null,null,null,null,null,null,null,null,null,null,null,null,null,null,{"$f":"title418","v":"Cross gutter Scraper"},1.5259658685640533E-2,2.6500596263415929E-2,5,"USD/liter mixture",2010,0.08,0.5,null,{"$f":"title436","v":"Cattle"},960]
[null,null,null,null,null,null,null,null,null,null,null,null,null,null,null,{"$f":"title419","v":"Cross Gutter Auger"},0.20478904265077005,2.6255220372088005E-2,{"$f":"2200*30/2378/10","v":2.7754415475189234},"USD/liter mixture",2010,0.08,0.5,null,{"$f":"title437","v":"Dairy Cattle"},994]
[null,null,null,null,null,null,null,null,null,null,null,null,null,null,null,{"$f":"title420","v":"Flush Flume"},0.13645231027594507,2.6255220372088005E-2,{"$f":"(4950.08+(16+9.8)*$B$52)*1.5/3785.41178","v":1.9615091914782385},"USD/liter mixture",2010,{"$f":"AVERAGE(4%,9%)","v":6.5000000000000002E-2},0.5,null,{"$f":"title438","v":"Poultry"},961.11]
[null,null,null,null,null,null,null,null,null,null,null,null,null,null,null,null,null,null,null,null,null,null,null,null,{"$f":"title439","v":"Swine"},1140.9000000000001]
[null,null,null,null,null,null,null,null,null,null,null,null,null,null,null,{"$f":"title357","v":"Dewatering"},"Screw Press ",{"$f":"PROPER(title164)","v":"Year"}]
[null,null,null,null,null,null,null,null,null,null,null,null,null,null,null,{"$f":"title422","v":"Capital Cost (USD/t residue)"},{"$f":"AVERAGE(0.2,0.5)*1000000*0.12/AVERAGE(4000,8000)","v":7},2002]
[null,null,null,null,null,null,null,null,null,null,null,null,null,null,null,{"$f":"title423","v":"Operation (worker/t residue)"},{"$f":"AVERAGE(20,40)*1000/AVERAGE(4000,8000)/(300*8*160)","v":1.3020833333333334E-5}]
[null,null,null,null,null,null,null,null,null,null,null,null,null,null,null,{"$f":"title424","v":"Energy Demand kWh/t residue"},{"$f":"AVERAGE(5,15)*8000/AVERAGE(4000,8000)","v":13.333333333333334},2002]
[]
[]
[]
[]
[null,null,null,null,null,null,null,null,null,null,null,null,null,null,null,{"$f":"title74","v":"Please Select"},{"$f":"title405","v":"Collection method"},"Show","Section to Show",{"$f":"VLOOKUP(INDIRECT(\"'Data entry needs'!$d$\"&$A$1),$P$166:$R$178,3,FALSE)","v":{"$error":"#N/A"}}]
[null,null,null,null,null,null,null,null,null,null,null,null,null,null,null,{"$f":"title184","v":"Biodiesel/Oilseed Ind."},{"$f":"title425","v":"No collection neeeded"},1,{"$f":"title429&\" 0\"","v":"Option 0"},0,0]
[null,null,null,null,null,null,null,null,null,null,null,null,null,null,null,{"$f":"title85","v":"Crop Residues"},{"$f":"title426","v":"Method 1"},2,{"$f":"title429&\" 1\"","v":"Option 1"},{"$f":"$I$31","v":{"$error":"#DIV/0!"}},{"$f":"$D$24/E16","v":{"$error":"#DIV/0!"}},{"$f":"title381","v":"person-hour/t"}]
[null,null,null,null,null,null,null,null,null,null,null,null,null,null,null,{"$f":"title185","v":"Dairy-milk ind."},{"$f":"title427","v":"Method 2, Method 3"},4,{"$f":"title429&\" 2\"","v":"Option 2"},{"$f":"$I$58","v":{"$error":"#DIV/0!"}},{"$f":"F49/E41","v":{"$error":"#N/A"}},{"$f":"title381","v":"person-hour/t"}]
[null,null,null,null,null,null,null,null,null,null,null,null,null,null,null,{"$f":"title120","v":"Energy Crops"},{"$f":"title425","v":"No collection neeeded"},1,{"$f":"title429&\" 3\"","v":"Option 3"},{"$f":"$I$87","v":{"$error":"#DIV/0!"}},{"$f":"D76","v":0},{"$f":"title381","v":"person-hour/t"}]
[null,null,null,null,null,null,null,null,null,null,null,null,null,null,null,{"$f":"title186","v":"Eth-Sugar-Starch Ind."},{"$f":"title425","v":"No collection neeeded"},1]
[null,null,null,null,null,null,null,null,null,null,null,null,null,null,null,{"$f":"title187","v":"Food Process. Res."},{"$f":"title425","v":"No collection neeeded"},1,{"$f":"title430","v":"Result"},{"$f":"IF($T$165=1,T166,IF($T$165=2,$T$167,IF($T$165=3,T168,IF(AND($T$165=4,$E$34),$T$168,$T$169))))","v":{"$error":"#N/A"}}]
[null,null,null,null,null,null,null,null,null,null,null,null,null,null,null,{"$f":"title188","v":"Grass"},{"$f":"title426","v":"Method 1"},2,{"$f":"title431","v":"Employees"},{"$f":"IF($T$165=1,U166,IF($T$165=2,$U$167,IF($T$165=3,U169,IF(AND($T$165=4,$E$34),$U$168,$U$169))))","v":{"$error":"#N/A"}},{"$f":"title381","v":"person-hour/t"}]
[null,null,null,null,null,null,null,null,null,null,null,null,null,null,null,{"$f":"title119","v":"Crops"},{"$f":"title425","v":"No collection neeeded"},1]
[null,null,null,null,null,null,null,null,null,null,null,null,null,null,null,{"$f":"title189","v":"Other Options"},{"$f":"title425","v":"No collection neeeded"},1]
[null,null,null,null,null,null,null,null,null,null,null,null,null,null,null,{"$f":"title190","v":"Slaughterhouses wastes"},{"$f":"title428","v":"Method 2"},3]
[null,null,null,null,null,null,null,null,null,null,null,null,null,null,null,{"$f":"title191","v":"Yeast-Alcoholic Bev."},{"$f":"title425","v":"No collection neeeded"},1]
[null,null,null,null,null,null,null,null,null,null,null,null,null,null,null,{"$f":"title84","v":"Manure"},{"$f":"title427","v":"Method 2, Method 3"},4]
[null,null,null,null,null,null,null,null,null,null,null,null,null,null,null,{"$f":"title192","v":"Wastewater"},{"$f":"title425","v":"No collection neeeded"},1]

{"sheet":"PRICE_FS5_PS1","index":18,"n_rows":178,"n_cols":39,"rows_kept":178,"cut":false,"hidden":true,"merged":[[40,8,40,9],[2,2,2,9],[5,2,5,3],[5,4,5,6],[7,2,10,9],[14,6,14,7],[15,2,15,3],[15,6,15,7],[30,3,30,7],[33,4,34,4],[33,5,34,5],[33,6,34,9],[34,2,34,3],[64,9,66,9],[86,3,86,7],[41,8,41,9],[57,3,57,7],[61,4,61,5],[61,6,62,6],[62,4,62,5],[64,2,64,3],[64,4,64,5],[64,6,66,6],[64,7,66,7],[64,8,66,8]]}
[{"$f":"PRICE_FS4_PS1!A1+2","v":29},92]
[]
[null,null,{"$f":"+title324&UPPER(INDIRECT(\"'Data entry needs'!$d$\"&$A$1)&\"-\"&INDIRECT(\"'Data entry needs'!$e$\"&$A$1))","v":"COLLECTION COSTS CALCULATOR FOR PLEASE SELECT-PLEASE SELECT"}]
[]
[]
[null,null,{"$f":"title193","v":"Use white cells to input data"},null,{"$f":"title194","v":"Grey cells are used for calculations"}]
[]
[null,null,{"$f":"title325&INDIRECT(\"'Data entry needs'!$d$\"&$A$1)&title326","v":"No collection method is required. It is assumed that Please Select are already collected. Then, transportation cost and/or market price should be considered."}]
[]
[]
[]
[]
[null,null,{"$f":"title327","v":"Collection Method 1 - Biomass spread in the field"}]
[]
[null,null,{"$f":"title328","v":"Collecting method"},null,{"$f":"title329","v":"Biomass Yield"},null,{"$f":"title110","v":"Feedstock Available (t/year)"},null,{"$f":"title330","v":"Collection days"}]
[null,null,"Mechanized",null,null,"t/ha",{"$f":"INDIRECT(\"'Data entry needs'!$F$\"&$A$1)","v":0},null,{"$f":"'Data entry needs'!L100-INDIRECT(\"Planner_pS1!$AN$\"&$B$1)*21","v":-252}]
[]
[null,null,{"$f":"title331","v":"Biomass Collection definition"}]
[]
[null,null,{"$f":"title332","v":"Biomass Price Definition"},null,null,null,null,null,null,null,null,null,null,null,null,null,null,null,null,null,null,{"$f":"title405","v":"Collection method"},null,{"$f":"title382","v":"Mechanized"},{"$f":"title380","v":"Number of skilled workers"},{"$f":"title409","v":"person-hour/ha"}]
[null,null,{"$f":"title333","v":"Labour cost"},{"$f":"title270","v":"Quantity"},{"$f":"title27","v":"Unit"},{"$f":"title270","v":"Quantity"},null,{"$f":"title27","v":"Unit"},"Total",{"$f":"title27","v":"Unit"},null,null,null,null,null,null,null,null,null,null,null,{"$f":"$C$16","v":"Mechanized"},null,{"$f":"title382&2","v":"Mechanized2"},{"$f":"title336","v":"Skilled labour wage"},{"$f":"title128","v":"USD/person-hour"}]
[null,null,{"$f":"IFERROR(VLOOKUP($V$21&$W21,$X$20:$Z$31,2,FALSE),\"\")","v":"Number of skilled workers"},null,{"$f":"IFERROR(VLOOKUP($V$21&$W21,$X$20:$Z$31,3,FALSE),\"\")","v":"person-hour/ha"},{"$f":"IFERROR(VLOOKUP($V$21&$W23,$X$20:$Z$31,2,FALSE),\"\")","v":"Skilled labour wage"},{"$f":"IF(F22=\"\",\"\",IF(F22=title335,'Data entry needs'!$L$96,IF(F22=title336,'Data entry needs'!F96)))","v":0},{"$f":"IFERROR(VLOOKUP($V$21&$W23,$X$20:$Z$31,3,FALSE),\"\")","v":"USD/person-hour"},{"$f":"IFERROR(G22*D22*(G16/E16)*('Data entry needs'!$L$100/$I$16),0)","v":0},{"$f":"IF(C22=\"\",\"\",title319)","v":"USD/year"},null,null,null,null,null,null,null,null,null,null,null,null,1,{"$f":"title382&4","v":"Mechanized4"},{"$f":"title407","v":"Average fuel economy"},"l/h"]
[null,null,{"$f":"IFERROR(VLOOKUP($V$21&$W22,$X$20:$Z$31,2,FALSE),\"\")","v":""},null,{"$f":"IFERROR(VLOOKUP($V$21&$W22,$X$20:$Z$31,3,FALSE),\"\")","v":""},{"$f":"IFERROR(VLOOKUP($V$21&$W24,$X$20:$Z$31,2,FALSE),\"\")","v":""},{"$f":"IF(F23=\"\",\"\",'Data entry needs'!L96)","v":""},{"$f":"title128","v":"USD/person-hour"},{"$f":"IFERROR(G23*D23*(G16/E16)*('Data entry needs'!$L$100/$I$16),0)","v":0},{"$f":"IF(C23=\"\",\"\",title319)","v":""},null,null,null,null,null,null,null,null,null,null,null,{"$f":"VLOOKUP($V$21,$T$29:$U$31,2,FALSE)","v":1},2,{"$f":"title382&5","v":"Mechanized5"},{"$f":"title408","v":"Fuel price"},"USD/l"]
[null,null,null,{"$f":"+IF(AND(C22=\"\",C23=\"\"),0,IF(C22=\"\",D23,IF(C23=\"\",D22,D22+D23)))","v":0},null,null,null,{"$f":"title269","v":"Subtotal"},{"$f":"+SUMIF($I$22:$I$23,\">0\")","v":0},{"$f":"title319","v":"USD/year"},null,null,null,null,null,null,null,null,null,null,null,null,3,{"$f":"title378","v":"Semi-mechanized"},{"$f":"title380","v":"Number of skilled workers"},{"$f":"title409","v":"person-hour/ha"}]
[null,null,{"$f":"title334","v":"Machinery & operating cost"},{"$f":"title270","v":"Quantity"},{"$f":"title27","v":"Unit"},{"$f":"title270","v":"Quantity"},null,{"$f":"title27","v":"Unit"},"Total",{"$f":"title27","v":"Unit"},null,null,null,null,null,null,null,null,null,null,null,null,4,{"$f":"title378&1","v":"Semi-mechanized1"},{"$f":"title379","v":"Number of unskilled workers"},{"$f":"title409","v":"person-hour/ha"}]
[null,null,{"$f":"IFERROR(VLOOKUP($V$21&$W25,$X$20:$Z$31,2,FALSE),\"\")","v":"Average fuel economy"},null,{"$f":"IFERROR(VLOOKUP($V$21&$W25,$X$20:$Z$31,3,FALSE),\"\")","v":"l/h"},{"$f":"IFERROR(VLOOKUP($V$21&$W26,$X$20:$Z$31,2,FALSE),\"\")","v":"Fuel price"},{"$f":"IF(F26=\"\",\"\",'Data entry needs'!$F$100)","v":0},{"$f":"+IFERROR(VLOOKUP($V$21&$W26,$X$20:$Z$31,3,FALSE),\"\")","v":"USD/l"},{"$f":"+IFERROR(D26*G26*IF($C$16=title337,0,$D$22*G16/E16)*('Data entry needs'!$L$100/$I$16),\"\")","v":""},{"$f":"IF(C26=\"\",\"\",title319)","v":"USD/year"},null,null,null,null,null,null,null,null,null,null,null,null,5,{"$f":"title378&2","v":"Semi-mechanized2"},{"$f":"title336","v":"Skilled labour wage"},{"$f":"title128","v":"USD/person-hour"}]
[null,null,null,null,null,null,null,{"$f":"IF(C26=\"\",\"\",title269)","v":"Subtotal"},{"$f":"+I26","v":""},{"$f":"IF(C26=\"\",\"\",title319)","v":"USD/year"},null,null,null,null,null,null,null,null,null,null,null,null,null,{"$f":"title378&3","v":"Semi-mechanized3"},{"$f":"title335","v":"Unskilled labour wage"},{"$f":"title128","v":"USD/person-hour"}]
[null,null,null,null,null,null,null,{"$f":"IF(C26=\"\",\"\",\"Total\")","v":"Total"},{"$f":"IFERROR(I24+I27,I24)","v":0},{"$f":"title319","v":"USD/year"},null,null,null,null,null,null,null,null,null,{"$f":"title405","v":"Collection method"},null,null,null,{"$f":"title378&4","v":"Semi-mechanized4"},{"$f":"title407","v":"Average fuel economy"},"l/h"]
[null,null,null,null,null,null,null,null,null,null,null,null,null,null,null,null,null,null,null,{"$f":"title382","v":"Mechanized"},1,null,null,{"$f":"title378&5","v":"Semi-mechanized5"},{"$f":"title408","v":"Fuel price"},"USD/l"]
[null,null,null,null,null,null,null,null,"",null,null,null,null,null,null,null,null,null,null,{"$f":"title378","v":"Semi-mechanized"},2,null,null,{"$f":"title337","v":"Manual"},{"$f":"title379","v":"Number of unskilled workers"},{"$f":"title409","v":"person-hour/ha"}]
[null,null,null,{"$f":"title338&INDIRECT(\"'Data entry needs'!$d$\"&$A$1)&\"-\"&INDIRECT(\"'Data entry needs'!$e$\"&$A$1)","v":"Collection cost of Please Select-Please Select"},null,null,null,null,{"$f":"(I24+I28)/$G$16","v":{"$error":"#DIV/0!"}},"USD/t",null,null,null,null,null,null,null,null,null,{"$f":"title337","v":"Manual"},3,null,null,{"$f":"title337&2","v":"Manual2"},{"$f":"title335","v":"Unskilled labour wage"},{"$f":"title128","v":"USD/person-hour"}]
[]
[]
[null,null,null,null,false,null,{"$f":"IF($E$34,title340,title341)","v":"Use this method for feedstock collected and transported from different farms to a central collection point"}]
[null,null,{"$f":"title339","v":"Collection Methods Available"}]
[]
[null,null,{"$f":"title342","v":"Collection Method 2"}]
[]
[null,null,{"$f":"title328","v":"Collecting method"},{"$f":"title343","v":"Transportation requirements"},null,null,null,null,{"$f":"title346","v":"Data Source"}]
[]
[null,null,"Please Select",{"$f":"title110","v":"Feedstock Available (t/year)"},{"$f":"INDIRECT(\"'Data entry needs'!$F$\"&$A$1)","v":0},{"$f":"title344","v":"Initial ts in residue (%)"},null,{"$f":"INDIRECT(\"'Data entry needs'!$h$\"&$A$1)","v":0},false]
[null,null,null,{"$f":"title134","v":"Operating days per year"},{"$f":"'Data entry needs'!L100-INDIRECT(\"Planner_pS1!$AN$\"&$B$1)*21","v":-252},{"$f":"title345&$C$41","v":"ts (%) allowed by Please Select"},null,{"$f":"Q45","v":{"$error":"#N/A"}}]
[]
[null,null,{"$f":"title347","v":"Collection Cost Definition"}]
[null,null,{"$f":"title348","v":"Operation Cost"},{"$f":"title270","v":"Quantity"},{"$f":"title27","v":"Unit"},{"$f":"title270","v":"Quantity"},{"$f":"title27","v":"Unit"},{"$f":"title267","v":"Unit Price"},"Total",null,null,null,null,null,null,"ts (%) transported",{"$f":"VLOOKUP($C$41,$P$149:$V$155,7,FALSE)","v":{"$error":"#N/A"}}]
[null,null,{"$f":"title35","v":"Electricity"},null,"kWh/t res",{"$f":"D46*E41","v":0},{"$f":"title304","v":"kWh/year"},{"$f":"'Data entry needs'!$L$92","v":0},{"$f":"F46*H46","v":0},{"$f":"title319","v":"USD/year"},null,null,null,null,null,{"$f":"title35","v":"Electricity"},{"$f":"$Q$160","v":13.333333333333334}]
[null,null,{"$f":"title170","v":"Diesel"},null,{"$f":"title574","v":"l diesel/t res"},{"$f":"D47*$E$41","v":0},{"$f":"title350","v":"Liter Diesel/year"},{"$f":"'Data entry needs'!$F$100","v":0},{"$f":"F47*H47","v":0},{"$f":"title319","v":"USD/year"},null,null,null,null,null,{"$f":"title170","v":"Diesel"},{"$f":"VLOOKUP($C$41,$P$149:$S$155,2,FALSE)","v":{"$error":"#N/A"}}]
[null,null,{"$f":"title244","v":"Water Make-up "},null,{"$f":"title353","v":"Liter water/t res"},{"$f":"IF(D48=0,0,E41*(H41/H42)*(1-D48))","v":0},{"$f":"title351","v":"Liter water/year"},{"$f":"'Data entry needs'!$F$92","v":0},{"$f":"F48*H48*D48","v":0},{"$f":"title319","v":"USD/year"},null,null,null,null,null,{"$f":"title244","v":"Water Make-up "},0.15]
[null,null,{"$f":"title349","v":"Unskilled Workers"},null,{"$f":"title354","v":"person-day/t res"},{"$f":"ROUNDUP($D$49*E41*('Data entry needs'!$L$100/PRICE_FS5_PS1!E42)/'Data entry needs'!$L$99,0)","v":{"$error":"#DIV/0!"}},{"$f":"title352","v":"person-hour"},{"$f":"'Data entry needs'!$L$96","v":0},{"$f":"F49*H49","v":{"$error":"#DIV/0!"}},{"$f":"title319","v":"USD/year"},null,null,null,null,null,{"$f":"title127","v":"Unskilled worker"},{"$f":"VLOOKUP($C$41,$P$149:$S$155,3,FALSE)","v":{"$error":"#N/A"}}]
[null,null,null,{"$f":"Q47","v":{"$error":"#N/A"}},null,null,null,{"$f":"title269","v":"Subtotal"},{"$f":"+SUMIF($I$46:$I$49,\">0\")","v":0},{"$f":"title319","v":"USD/year"}]
[]
[null,null,{"$f":"title355","v":"Capital Investment"},{"$f":"title270","v":"Quantity"},{"$f":"title27","v":"Unit"}]
[null,null,{"$f":"$C$41&title356","v":"Please Select and equipment"},null,{"$f":"VLOOKUP($C$41,$P$149:$T$155,5,FALSE)","v":{"$error":"#N/A"}},null,null,null,{"$f":"D53*(E41*10)/20","v":0},{"$f":"title319","v":"USD/year"},null,null,null,null,null,{"$f":"$C$41&title356","v":"Please Select and equipment"},{"$f":"VLOOKUP($C$41,$P$149:$S$155,4,FALSE)","v":{"$error":"#N/A"}}]
[null,null,{"$f":"title357","v":"Dewatering"},null,"USD/t res",null,null,null,{"$f":"D54*$E$41/20","v":0},{"$f":"title319","v":"USD/year"},null,null,null,null,null,{"$f":"title357","v":"Dewatering"},{"$f":"$Q$158","v":7}]
[null,null,{"$f":"title358","v":"Operation and Mainteinance"},null,null,null,null,null,{"$f":"SUM(I53:I54)*$D$55","v":0},{"$f":"title319","v":"USD/year"},null,null,null,null,null,{"$f":"title358","v":"Operation and Mainteinance"},0.15]
[null,null,null,{"$f":"+IF(AND(C54=\"\",C55=\"\"),0,IF(C54=\"\",D55,IF(C55=\"\",D54,D54+D55)))","v":0},null,null,null,{"$f":"title269","v":"Subtotal"},{"$f":"+SUMIF(I53:I55,\">0\")","v":0},{"$f":"title319","v":"USD/year"}]
[]
[null,null,null,{"$f":"title359","v":"Cost for Collection and transfer to storage tank"},null,null,null,null,{"$f":"SUM(I50+I56)/E41","v":{"$error":"#DIV/0!"}},"USD/t"]
[]
[null,null,{"$f":"title360","v":"Collection Method 3 - Feedstock collected from different farms"}]
[]
[null,null,{"$f":"title361","v":"Source of biomass"},null,{"$f":"title405","v":"Collection method"},null,{"$f":"title346","v":"Data Source"},false]
[null,null,{"$f":"title362","v":"Transfer from individual farms"},null,"Mechanized"]
[]
[null,null,{"$f":"title363","v":"Transportation method"},null,"Tanker Truck Transfer",null,{"$f":"title372","v":"Number Of Farms Supplying Feedstock"},{"$f":"title373","v":"Average distance to collection point (m)"},{"$f":"title374","v":"Collection Period (days)"},{"$f":"IF($E$65=title364,title375,title376)&title377","v":"Number of Tanks required"}]
[]
[null,null,{"$f":"IF($E$65=title364,title365,title366)","v":"Tranport Capacity (liter)"},null,{"$f":"title370","v":"Residue Quanitiy (t/year)"},{"$f":"INDIRECT(\"'Data entry needs'!$F$\"&$A$1)","v":0},null,null,null,null,null,null,null,null,null,{"$f":"IF($E$60=title364,title365,title366)","v":"Pipe Diameter (in)"},{"$f":"VLOOKUP($E$65,$Y$147:$AE$149,3,FALSE)","v":27600}]
[null,null,{"$f":"IF($E$65=title364,title367,title368)","v":"Engine Power (HP)"},null,{"$f":"title371","v":"Residue Density (kg/m3)"},{"$f":"Q72","v":1000},null,null,{"$f":"'Data entry needs'!L100-INDIRECT(\"Planner_pS1!$AN$\"&$B$1)*21","v":-252},{"$f":"IFERROR(ROUNDUP($F$67*1000*1000/(960*$D$69*'Data entry needs'!$L$99)/$I$68,0),0)","v":0},null,null,null,null,null,{"$f":"IF($E$60=title364,title367,title368)","v":"Motor Power (HP)"},{"$f":"VLOOKUP($E$65,$Y$147:$AE$149,4,FALSE)","v":200}]
[null,null,{"$f":"title369","v":"Transfer Rate (l/h)"},null,null,null,null,null,null,null,null,null,null,null,null,{"$f":"title369","v":"Transfer Rate (l/h)"},{"$f":"VLOOKUP($E$65,$Y$147:$AE$149,5,FALSE)","v":27221.917808219176}]
[]
[null,null,null,{"$f":"+IF(OR($E$63=title337,$E$63=title378),FALSE,TRUE)","v":true},{"$f":"+IF($E$63=title337,TRUE,FALSE)","v":false}]
[null,null,{"$f":"title332","v":"Biomass Price Definition"},null,null,null,null,null,null,null,null,null,null,null,null,{"$f":"title371","v":"Residue Density (kg/m3)"},{"$f":"IFERROR(VLOOKUP(INDIRECT(\"'Data entry needs'!$e$\"&$A$1),PRICE_FS3_PS1!$Y$152:$Z$156,2,FALSE),1000)","v":1000}]
[null,null,{"$f":"title333","v":"Labour cost"},{"$f":"title270","v":"Quantity"},{"$f":"title27","v":"Unit"},{"$f":"title270","v":"Quantity"},null,{"$f":"title27","v":"Unit"},"Total",{"$f":"title27","v":"Unit"}]
[null,null,{"$f":"IF(OR($E$63=title337,$E$63=title378),title379,\"\")","v":""},null,{"$f":"IF(OR($E$63=title337,$E$63=title378),title381,\"\")","v":""},{"$f":"IF(OR($E$63=title337,$E$63=title378),title335,\"\")","v":""},{"$f":"IF(OR($E$63=title337,$E$63=title378),'Data entry needs'!$L$96,\"\")","v":""},{"$f":"IF(OR($E$63=title337,$E$63=title378),title128,\"\")","v":""},{"$f":"IFERROR(IF(OR($E$63=title337,$E$63=title378),$F$67*D74*$G$74,\"\"),0)","v":""},{"$f":"IF(OR($E$63=title337,$E$63=title378),title319,\"\")","v":""}]
[null,null,{"$f":"IF($E$63=title337,\"\",title380)","v":"Number of skilled workers"},null,{"$f":"IF($E$63=title337,\"\",title381)","v":"person-hour/t"},{"$f":"IF($E$63=title337,\"\",title336)","v":"Skilled labour wage"},{"$f":"IF($E$63=title337,\"\",'Data entry needs'!$F$96)","v":0},{"$f":"IF($E$63=title337,\"\",title128)","v":"USD/person-hour"},{"$f":"IFERROR(IF($E$63=title337,\"\",D75*G75*$F$67),0)","v":0},{"$f":"IF($E$63=title337,\"\",title319)","v":"USD/year"}]
[null,null,null,{"$f":"+IF(AND(C74=\"\",C75=\"\"),0,IF(C74=\"\",D75,IF(C75=\"\",D74,D74+D75)))","v":0},null,null,null,{"$f":"title269","v":"Subtotal"},{"$f":"+SUMIF($I$74:$I$75,\">0\")","v":0},{"$f":"title319","v":"USD/year"}]
[null,null,{"$f":"title383","v":"Collection Machinery"},{"$f":"title270","v":"Quantity"},{"$f":"title27","v":"Unit"},{"$f":"title270","v":"Quantity"},null,{"$f":"title27","v":"Unit"},"Total",{"$f":"title27","v":"Unit"}]
[null,null,{"$f":"IF(OR($E$63=title382,$E$63=title378),title384,\"\")","v":"Collection Diesel Consumption"},null,{"$f":"IF(OR($E$63=title382,$E$63=title378),title575,\"\")","v":"l diesel/h"},{"$f":"IF(OR($E$63=title382,$E$63=title378),title389,\"\")","v":"Diesel Cost"},{"$f":"IF(OR($E$63=title382,$E$63=title378),'Data entry needs'!F$100,\"\")","v":0},{"$f":"IF(OR($E$63=title382,$E$63=title378),title576,\"\")","v":"USD/l diesel"},{"$f":"IFERROR(IF(OR($E$63=title382,$E$63=title378),D78*G78*D75*F67,\"\"),0)","v":0},{"$f":"title319","v":"USD/year"}]
[null,null,{"$f":"IF($E$65=title364,title385,title386)","v":"Truck Diesel Consumption"},null,{"$f":"IF($E$65=title364,title387,title388)","v":"l diesel/day"},{"$f":"IF($E$65=title364,title389,title390)","v":"Diesel Cost"},{"$f":"IF($E$65=title364,'Data entry needs'!F$100,'Data entry needs'!$L$92)","v":0},{"$f":"IF($E$65=title364,title576,\"USD/kWh\")","v":"USD/l diesel"},{"$f":"IFERROR(D79*G79*$I$68*$J$68,0)","v":0},{"$f":"title319","v":"USD/year"},null,null,null,null,null,{"$f":"IF($E$60=title364,title385,title386)","v":"Pump Electricity Consumption"},{"$f":"VLOOKUP($E$65,$Y$147:$AE$149,7,FALSE)","v":154}]
[null,null,null,null,null,null,null,{"$f":"title269","v":"Subtotal"},{"$f":"+SUMIF($I$78:$I$79,\">0\")","v":0},{"$f":"title319","v":"USD/year"}]
[null,null,{"$f":"title391","v":"Equipment"},{"$f":"title270","v":"Quantity"},{"$f":"title27","v":"Unit"},{"$f":"title270","v":"Quantity"},null,{"$f":"title27","v":"Unit"},"Total",{"$f":"title27","v":"Unit"}]
[null,null,{"$f":"IF($E$65=title364,title392,title393)","v":"Liquid Tanker Truck"},{"$f":"IF($E$65=title364,$J$68,$G$68*$H$68*1.2)","v":0},{"$f":"IF($E$65=title364,title398,\"m\")","v":"tank(s)"},{"$f":"IF($E$65=title364,title399,title400)","v":"Cost per Tank"},{"$f":"VLOOKUP($E$65,$Y$147:$AF$149,8,FALSE)/10","v":7900},{"$f":"IF($E$65=title364,title402,title403)","v":"USD/tank/year"},{"$f":"IFERROR(D82*G82,0)","v":0},{"$f":"title319","v":"USD/year"}]
[null,null,{"$f":"IF($E$65=title364,title394&$D$68&title395,title396&$D$68&title397)","v":"Semi-tractor 185  HP"},null,"USD",{"$f":"title401","v":"Depreciation Period"},null,{"$f":"title164","v":"year"},{"$f":"IFERROR(D83*$J$68/G83,0)","v":0},{"$f":"title319","v":"USD/year"},null,null,null,null,null,{"$f":"IF($E$60=title364,title406,title396&$D$63&title397)","v":"Pump  HP with agitator"},{"$f":"VLOOKUP($E$65,$Y$147:$AH$149,10,FALSE)","v":148000}]
[null,null,{"$f":"title358","v":"Operation and Mainteinance"},null,null,null,null,null,{"$f":"IFERROR(SUM(I82:I83)*$D$84,0)","v":0},{"$f":"title319","v":"USD/year"},null,null,null,null,null,{"$f":"title358","v":"Operation and Mainteinance"},0.15]
[null,null,null,null,null,null,null,{"$f":"title269","v":"Subtotal"},{"$f":"I82","v":0},{"$f":"title319","v":"USD/year"},null,null,null,null,null,{"$f":"title401","v":"Depreciation Period"},15]
[]
[null,null,null,{"$f":"title404","v":"Cost for Collection and transfer to central collection point"},null,null,null,null,{"$f":"(I85+I80+I76)/$F$67","v":{"$error":"#DIV/0!"}},"USD/t"]
[]
[]
[]
[]
[]
[]
[]
[]
[]
[]
[]
[]
[]
[]
[]
[]
[]
[]
[]
[]
[]
[]
[]
[]
[]
[]
[]
[]
[]
[]
[]
[null,null,null,null,null,null,null,null,null,null,null,null,null,null,null,{"$f":"title410","v":"Sources of biomass"}]
[null,null,null,null,null,null,null,null,null,null,null,null,null,null,null,{"$f":"title411","v":"Biomass spread in the field"}]
[null,null,null,null,null,null,null,null,null,null,null,null,null,null,null,{"$f":"title412","v":"Biomass collected from field"}]
[null,null,null,null,null,null,null,null,null,null,null,null,null,null,null,{"$f":"title413","v":"Biomass from food processing plant"}]
[]
[]
[]
[]
[null,null,null,null,null,null,null,null,null,null,null,null,null,null,null,{"$f":"title405","v":"Collection method"}]
[null,null,null,null,null,null,null,null,null,null,null,null,null,null,null,{"$f":"title382","v":"Mechanized"}]
[null,null,null,null,null,null,null,null,null,null,null,null,null,null,null,{"$f":"title378","v":"Semi-mechanized"}]
[null,null,null,null,null,null,null,null,null,null,null,null,null,null,null,{"$f":"title337","v":"Manual"}]
[]
[]
[]
[]
[]
[]
[]
[]
[]
[]
[]
[]
[]
[]
[null,null,null,null,null,null,null,null,null,null,null,null,null,null,null,"Dairy maNURE",40.753799999999998,"Manure (kg/head/day)"]
[null,null,null,null,null,null,null,null,null,null,null,null,null,null,null,null,"Energy Use Cost","Labor and Mainteinance",null,null,null,"ts (%) transported","Dewateing",null,null,null,{"$f":"title440","v":"Capacity"},{"$f":"title441","v":"Engine/motor (hp)"},{"$f":"title369","v":"Transfer Rate (l/h)"},{"$f":"title442","v":"Transfer time (m/h)"},{"$f":"title443","v":"Energy Use  (kw)"},{"$f":"title444","v":"Add equipment"}]
[null,null,null,null,null,null,null,null,null,null,null,null,null,null,null,{"$f":"title405","v":"Collection method"},"liters diesel/t residue","workers*day/t residue","Capital cost","Capital cost","Capital cost",null,"Final solids ts (%)",null,{"$f":"title364","v":"Tanker Truck Transfer"},null,27600,200,27221.917808219176,609.6,154,79000,"USD",{"$f":"148000","v":148000},2010,{"$f":"title406","v":"Semi-tractor 185 HP"},null,null,"l/working day"]
[null,null,null,null,null,null,null,null,null,null,null,null,null,null,null,{"$f":"title74","v":"Please Select"},null,null,null,null,null,null,null,null,{"$f":"title432","v":"High Volume Pipeline"},null,"6´´ PVC",150,3028,1016,215,{"$f":"37/3.048","v":12.139107611548557},"USD/m",37075,2003]
[null,null,null,null,null,null,null,null,null,null,null,null,null,null,null,{"$f":"title414","v":"Alley Scrapers"},0.14330809896079807,0.42057427773606393,{"$f":"(AVERAGE(35,45)*$B$52+10000+4000)/3785.41178","v":3.698408736922143},{"$f":"title421","v":"USD/liter mixture"},2009,0.08,0.5,null,{"$f":"title433","v":"Low Volume Pipeline"},null,"4´´ PVC",7.5,378,127,86,{"$f":"12.4/3.048","v":4.0682414698162734},"USD/m",7675,2003]
[null,null,null,null,null,null,null,null,null,null,null,null,null,null,null,{"$f":"title415","v":"Flush System"},0.4093569308278352,0.10526625737967994,{"$f":"(4950.08+(16+9.8)*$B$52)/3785.41178","v":1.3076727943188258},"USD/liter mixture",2014,{"$f":"AVERAGE(1%,3%)","v":0.02},0.5]
[null,null,null,null,null,null,null,null,null,null,null,null,null,null,null,{"$f":"title416","v":"Vacum Scraper"},3.190595592141102,1.9769935564290937,10,"USD/liter mixture",2010,0.18,0.5,null,null,{"$f":"title434","v":"Density (Kg/m3)"}]
[null,null,null,null,null,null,null,null,null,null,null,null,null,null,null,{"$f":"title417","v":"Skid-loader"},0.75612714559717353,1.2830705357537211,{"$f":"(142.6*0.914+58.5*0.084+50.75*0.997)/$Q$145","v":4.5602655457895951},"USD/liter mixture",2010,{"$f":"AVERAGE(8%,18%)","v":0.13},0.5,null,{"$f":"title435","v":"Buffalo"},960]
[null,null,null,null,null,null,null,null,null,null,null,null,null,null,null,{"$f":"title418","v":"Cross gutter Scraper"},1.5259658685640533E-2,2.6500596263415929E-2,5,"USD/liter mixture",2010,0.08,0.5,null,{"$f":"title436","v":"Cattle"},960]
[null,null,null,null,null,null,null,null,null,null,null,null,null,null,null,{"$f":"title419","v":"Cross Gutter Auger"},0.20478904265077005,2.6255220372088005E-2,{"$f":"2200*30/2378/10","v":2.7754415475189234},"USD/liter mixture",2010,0.08,0.5,null,{"$f":"title437","v":"Dairy Cattle"},994]
[null,null,null,null,null,null,null,null,null,null,null,null,null,null,null,{"$f":"title420","v":"Flush Flume"},0.13645231027594507,2.6255220372088005E-2,{"$f":"(4950.08+(16+9.8)*$B$52)*1.5/3785.41178","v":1.9615091914782385},"USD/liter mixture",2010,{"$f":"AVERAGE(4%,9%)","v":6.5000000000000002E-2},0.5,null,{"$f":"title438","v":"Poultry"},961.11]
[null,null,null,null,null,null,null,null,null,null,null,null,null,null,null,null,null,null,null,null,null,null,null,null,{"$f":"title439","v":"Swine"},1140.9000000000001]
[null,null,null,null,null,null,null,null,null,null,null,null,null,null,null,{"$f":"title357","v":"Dewatering"},"Screw Press ",{"$f":"PROPER(title164)","v":"Year"}]
[null,null,null,null,null,null,null,null,null,null,null,null,null,null,null,{"$f":"title422","v":"Capital Cost (USD/t residue)"},{"$f":"AVERAGE(0.2,0.5)*1000000*0.12/AVERAGE(4000,8000)","v":7},2002]
[null,null,null,null,null,null,null,null,null,null,null,null,null,null,null,{"$f":"title423","v":"Operation (worker/t residue)"},{"$f":"AVERAGE(20,40)*1000/AVERAGE(4000,8000)/(300*8*160)","v":1.3020833333333334E-5}]
[null,null,null,null,null,null,null,null,null,null,null,null,null,null,null,{"$f":"title424","v":"Energy Demand kWh/t residue"},{"$f":"AVERAGE(5,15)*8000/AVERAGE(4000,8000)","v":13.333333333333334},2002]
[]
[]
[]
[]
[null,null,null,null,null,null,null,null,null,null,null,null,null,null,null,{"$f":"title74","v":"Please Select"},{"$f":"title405","v":"Collection method"},"Show","Section to Show",{"$f":"VLOOKUP(INDIRECT(\"'Data entry needs'!$d$\"&$A$1),$P$166:$R$178,3,FALSE)","v":{"$error":"#N/A"}}]
[null,null,null,null,null,null,null,null,null,null,null,null,null,null,null,{"$f":"title184","v":"Biodiesel/Oilseed Ind."},{"$f":"title425","v":"No collection neeeded"},1,{"$f":"title429&\" 0\"","v":"Option 0"},0,0]
[null,null,null,null,null,null,null,null,null,null,null,null,null,null,null,{"$f":"title85","v":"Crop Residues"},{"$f":"title426","v":"Method 1"},2,{"$f":"title429&\" 1\"","v":"Option 1"},{"$f":"$I$31","v":{"$error":"#DIV/0!"}},{"$f":"$D$24/E16","v":{"$error":"#DIV/0!"}},{"$f":"title381","v":"person-hour/t"}]
[null,null,null,null,null,null,null,null,null,null,null,null,null,null,null,{"$f":"title185","v":"Dairy-milk ind."},{"$f":"title427","v":"Method 2, Method 3"},4,{"$f":"title429&\" 2\"","v":"Option 2"},{"$f":"$I$58","v":{"$error":"#DIV/0!"}},{"$f":"F49/E41","v":{"$error":"#DIV/0!"}},{"$f":"title381","v":"person-hour/t"}]
[null,null,null,null,null,null,null,null,null,null,null,null,null,null,null,{"$f":"title120","v":"Energy Crops"},{"$f":"title425","v":"No collection neeeded"},1,{"$f":"title429&\" 3\"","v":"Option 3"},{"$f":"$I$87","v":{"$error":"#DIV/0!"}},{"$f":"D76","v":0},{"$f":"title381","v":"person-hour/t"}]
[null,null,null,null,null,null,null,null,null,null,null,null,null,null,null,{"$f":"title186","v":"Eth-Sugar-Starch Ind."},{"$f":"title425","v":"No collection neeeded"},1]
[null,null,null,null,null,null,null,null,null,null,null,null,null,null,null,{"$f":"title187","v":"Food Process. Res."},{"$f":"title425","v":"No collection neeeded"},1,{"$f":"title430","v":"Result"},{"$f":"IF($T$165=1,T166,IF($T$165=2,$T$167,IF($T$165=3,T168,IF(AND($T$165=4,$E$34),$T$168,$T$169))))","v":{"$error":"#N/A"}}]
[null,null,null,null,null,null,null,null,null,null,null,null,null,null,null,{"$f":"title188","v":"Grass"},{"$f":"title426","v":"Method 1"},2,{"$f":"title431","v":"Employees"},{"$f":"IF($T$165=1,U166,IF($T$165=2,$U$167,IF($T$165=3,U169,IF(AND($T$165=4,$E$34),$U$168,$U$169))))","v":{"$error":"#N/A"}},{"$f":"title381","v":"person-hour/t"}]
[null,null,null,null,null,null,null,null,null,null,null,null,null,null,null,{"$f":"title119","v":"Crops"},{"$f":"title425","v":"No collection neeeded"},1]
[null,null,null,null,null,null,null,null,null,null,null,null,null,null,null,{"$f":"title189","v":"Other Options"},{"$f":"title425","v":"No collection neeeded"},1]
[null,null,null,null,null,null,null,null,null,null,null,null,null,null,null,{"$f":"title190","v":"Slaughterhouses wastes"},{"$f":"title428","v":"Method 2"},3]
[null,null,null,null,null,null,null,null,null,null,null,null,null,null,null,{"$f":"title191","v":"Yeast-Alcoholic Bev."},{"$f":"title425","v":"No collection neeeded"},1]
[null,null,null,null,null,null,null,null,null,null,null,null,null,null,null,{"$f":"title84","v":"Manure"},{"$f":"title427","v":"Method 2, Method 3"},4]
[null,null,null,null,null,null,null,null,null,null,null,null,null,null,null,{"$f":"title192","v":"Wastewater"},{"$f":"title425","v":"No collection neeeded"},1]

{"sheet":"PRICE_FS6_PS1","index":19,"n_rows":178,"n_cols":39,"rows_kept":178,"cut":false,"hidden":true,"merged":[[40,8,40,9],[2,2,2,9],[5,2,5,3],[5,4,5,6],[7,2,10,9],[14,6,14,7],[15,2,15,3],[15,6,15,7],[30,3,30,7],[33,4,34,4],[33,5,34,5],[33,6,34,9],[34,2,34,3],[64,9,66,9],[86,3,86,7],[41,8,41,9],[57,3,57,7],[61,4,61,5],[61,6,62,6],[62,4,62,5],[64,2,64,3],[64,4,64,5],[64,6,66,6],[64,7,66,7],[64,8,66,8]]}
[{"$f":"PRICE_FS5_PS1!A1+4","v":33},93]
[]
[null,null,{"$f":"+title324&UPPER(INDIRECT(\"'Data entry needs'!$d$\"&$A$1)&\"-\"&INDIRECT(\"'Data entry needs'!$e$\"&$A$1))","v":"COLLECTION COSTS CALCULATOR FOR PLEASE SELECT-PLEASE SELECT"}]
[]
[]
[null,null,{"$f":"title193","v":"Use white cells to input data"},null,{"$f":"title194","v":"Grey cells are used for calculations"}]
[]
[null,null,{"$f":"title325&INDIRECT(\"'Data entry needs'!$d$\"&$A$1)&title326","v":"No collection method is required. It is assumed that Please Select are already collected. Then, transportation cost and/or market price should be considered."}]
[]
[]
[]
[]
[null,null,{"$f":"title327","v":"Collection Method 1 - Biomass spread in the field"}]
[]
[null,null,{"$f":"title328","v":"Collecting method"},null,{"$f":"title329","v":"Biomass Yield"},null,{"$f":"title110","v":"Feedstock Available (t/year)"},null,{"$f":"title330","v":"Collection days"}]
[null,null,"Mechanized",null,null,"t/ha",{"$f":"INDIRECT(\"'Data entry needs'!$F$\"&$A$1)","v":0},null,{"$f":"'Data entry needs'!L100-INDIRECT(\"Planner_pS1!$AN$\"&$B$1)*21","v":0}]
[]
[null,null,{"$f":"title331","v":"Biomass Collection definition"}]
[]
[null,null,{"$f":"title332","v":"Biomass Price Definition"},null,null,null,null,null,null,null,null,null,null,null,null,null,null,null,null,null,null,{"$f":"title405","v":"Collection method"},null,{"$f":"title382","v":"Mechanized"},{"$f":"title380","v":"Number of skilled workers"},{"$f":"title409","v":"person-hour/ha"}]
[null,null,{"$f":"title333","v":"Labour cost"},{"$f":"title270","v":"Quantity"},{"$f":"title27","v":"Unit"},{"$f":"title270","v":"Quantity"},null,{"$f":"title27","v":"Unit"},"Total",{"$f":"title27","v":"Unit"},null,null,null,null,null,null,null,null,null,null,null,{"$f":"$C$16","v":"Mechanized"},null,{"$f":"title382&2","v":"Mechanized2"},{"$f":"title336","v":"Skilled labour wage"},{"$f":"title128","v":"USD/person-hour"}]
[null,null,{"$f":"IFERROR(VLOOKUP($V$21&$W21,$X$20:$Z$31,2,FALSE),\"\")","v":"Number of skilled workers"},null,{"$f":"IFERROR(VLOOKUP($V$21&$W21,$X$20:$Z$31,3,FALSE),\"\")","v":"person-hour/ha"},{"$f":"IFERROR(VLOOKUP($V$21&$W23,$X$20:$Z$31,2,FALSE),\"\")","v":"Skilled labour wage"},{"$f":"IF(F22=\"\",\"\",IF(F22=title335,'Data entry needs'!$L$96,IF(F22=title336,'Data entry needs'!F96)))","v":0},{"$f":"IFERROR(VLOOKUP($V$21&$W23,$X$20:$Z$31,3,FALSE),\"\")","v":"USD/person-hour"},{"$f":"IFERROR(G22*D22*(G16/E16)*('Data entry needs'!$L$100/$I$16),0)","v":0},{"$f":"IF(C22=\"\",\"\",title319)","v":"USD/year"},null,null,null,null,null,null,null,null,null,null,null,null,1,{"$f":"title382&4","v":"Mechanized4"},{"$f":"title407","v":"Average fuel economy"},"l/h"]
[null,null,{"$f":"IFERROR(VLOOKUP($V$21&$W22,$X$20:$Z$31,2,FALSE),\"\")","v":""},null,{"$f":"IFERROR(VLOOKUP($V$21&$W22,$X$20:$Z$31,3,FALSE),\"\")","v":""},{"$f":"IFERROR(VLOOKUP($V$21&$W24,$X$20:$Z$31,2,FALSE),\"\")","v":""},{"$f":"IF(F23=\"\",\"\",'Data entry needs'!L96)","v":""},{"$f":"title128","v":"USD/person-hour"},{"$f":"IFERROR(G23*D23*(G16/E16)*('Data entry needs'!$L$100/$I$16),0)","v":0},{"$f":"IF(C23=\"\",\"\",title319)","v":""},null,null,null,null,null,null,null,null,null,null,null,{"$f":"VLOOKUP($V$21,$T$29:$U$31,2,FALSE)","v":1},2,{"$f":"title382&5","v":"Mechanized5"},{"$f":"title408","v":"Fuel price"},"USD/l"]
[null,null,null,{"$f":"+IF(AND(C22=\"\",C23=\"\"),0,IF(C22=\"\",D23,IF(C23=\"\",D22,D22+D23)))","v":0},null,null,null,{"$f":"title269","v":"Subtotal"},{"$f":"+SUMIF($I$22:$I$23,\">0\")","v":0},{"$f":"title319","v":"USD/year"},null,null,null,null,null,null,null,null,null,null,null,null,3,{"$f":"title378","v":"Semi-mechanized"},{"$f":"title380","v":"Number of skilled workers"},{"$f":"title409","v":"person-hour/ha"}]
[null,null,{"$f":"title334","v":"Machinery & operating cost"},{"$f":"title270","v":"Quantity"},{"$f":"title27","v":"Unit"},{"$f":"title270","v":"Quantity"},null,{"$f":"title27","v":"Unit"},"Total",{"$f":"title27","v":"Unit"},null,null,null,null,null,null,null,null,null,null,null,null,4,{"$f":"title378&1","v":"Semi-mechanized1"},{"$f":"title379","v":"Number of unskilled workers"},{"$f":"title409","v":"person-hour/ha"}]
[null,null,{"$f":"IFERROR(VLOOKUP($V$21&$W25,$X$20:$Z$31,2,FALSE),\"\")","v":"Average fuel economy"},null,{"$f":"IFERROR(VLOOKUP($V$21&$W25,$X$20:$Z$31,3,FALSE),\"\")","v":"l/h"},{"$f":"IFERROR(VLOOKUP($V$21&$W26,$X$20:$Z$31,2,FALSE),\"\")","v":"Fuel price"},{"$f":"IF(F26=\"\",\"\",'Data entry needs'!$F$100)","v":0},{"$f":"+IFERROR(VLOOKUP($V$21&$W26,$X$20:$Z$31,3,FALSE),\"\")","v":"USD/l"},{"$f":"+IFERROR(D26*G26*IF($C$16=title337,0,$D$22*G16/E16)*('Data entry needs'!$L$100/$I$16),\"\")","v":""},{"$f":"IF(C26=\"\",\"\",title319)","v":"USD/year"},null,null,null,null,null,null,null,null,null,null,null,null,5,{"$f":"title378&2","v":"Semi-mechanized2"},{"$f":"title336","v":"Skilled labour wage"},{"$f":"title128","v":"USD/person-hour"}]
[null,null,null,null,null,null,null,{"$f":"IF(C26=\"\",\"\",title269)","v":"Subtotal"},{"$f":"+I26","v":""},{"$f":"IF(C26=\"\",\"\",title319)","v":"USD/year"},null,null,null,null,null,null,null,null,null,null,null,null,null,{"$f":"title378&3","v":"Semi-mechanized3"},{"$f":"title335","v":"Unskilled labour wage"},{"$f":"title128","v":"USD/person-hour"}]
[null,null,null,null,null,null,null,{"$f":"IF(C26=\"\",\"\",\"Total\")","v":"Total"},{"$f":"IFERROR(I24+I27,I24)","v":0},{"$f":"title319","v":"USD/year"},null,null,null,null,null,null,null,null,null,{"$f":"title405","v":"Collection method"},null,null,null,{"$f":"title378&4","v":"Semi-mechanized4"},{"$f":"title407","v":"Average fuel economy"},"l/h"]
[null,null,null,null,null,null,null,null,null,null,null,null,null,null,null,null,null,null,null,{"$f":"title382","v":"Mechanized"},1,null,null,{"$f":"title378&5","v":"Semi-mechanized5"},{"$f":"title408","v":"Fuel price"},"USD/l"]
[null,null,null,null,null,null,null,null,"",null,null,null,null,null,null,null,null,null,null,{"$f":"title378","v":"Semi-mechanized"},2,null,null,{"$f":"title337","v":"Manual"},{"$f":"title379","v":"Number of unskilled workers"},{"$f":"title409","v":"person-hour/ha"}]
[null,null,null,{"$f":"title338&INDIRECT(\"'Data entry needs'!$d$\"&$A$1)&\"-\"&INDIRECT(\"'Data entry needs'!$e$\"&$A$1)","v":"Collection cost of Please Select-Please Select"},null,null,null,null,{"$f":"(I24+I28)/$G$16","v":{"$error":"#DIV/0!"}},"USD/t",null,null,null,null,null,null,null,null,null,{"$f":"title337","v":"Manual"},3,null,null,{"$f":"title337&2","v":"Manual2"},{"$f":"title335","v":"Unskilled labour wage"},{"$f":"title128","v":"USD/person-hour"}]
[]
[]
[null,null,null,null,false,null,{"$f":"IF($E$34,title340,title341)","v":"Use this method for feedstock collected and transported from different farms to a central collection point"}]
[null,null,{"$f":"title339","v":"Collection Methods Available"}]
[]
[null,null,{"$f":"title342","v":"Collection Method 2"}]
[]
[null,null,{"$f":"title328","v":"Collecting method"},{"$f":"title343","v":"Transportation requirements"},null,null,null,null,{"$f":"title346","v":"Data Source"}]
[]
[null,null,"Please Select",{"$f":"title110","v":"Feedstock Available (t/year)"},{"$f":"INDIRECT(\"'Data entry needs'!$F$\"&$A$1)","v":0},{"$f":"title344","v":"Initial ts in residue (%)"},null,{"$f":"INDIRECT(\"'Data entry needs'!$h$\"&$A$1)","v":0},false]
[null,null,null,{"$f":"title134","v":"Operating days per year"},{"$f":"'Data entry needs'!L100-INDIRECT(\"Planner_pS1!$AN$\"&$B$1)*21","v":0},{"$f":"title345&$C$41","v":"ts (%) allowed by Please Select"},null,0.02]
[]
[null,null,{"$f":"title347","v":"Collection Cost Definition"}]
[null,null,{"$f":"title348","v":"Operation Cost"},{"$f":"title270","v":"Quantity"},{"$f":"title27","v":"Unit"},{"$f":"title270","v":"Quantity"},{"$f":"title27","v":"Unit"},{"$f":"title267","v":"Unit Price"},"Total",null,null,null,null,null,null,"ts (%) transported",{"$f":"VLOOKUP($C$41,$P$149:$V$155,7,FALSE)","v":{"$error":"#N/A"}}]
[null,null,{"$f":"title35","v":"Electricity"},{"$f":"Q46","v":13.333333333333334},"kWh/t res",{"$f":"D46*E41","v":0},{"$f":"title304","v":"kWh/year"},{"$f":"'Data entry needs'!$L$92","v":0},{"$f":"F46*H46","v":0},{"$f":"title319","v":"USD/year"},null,null,null,null,null,{"$f":"title35","v":"Electricity"},{"$f":"$Q$160","v":13.333333333333334}]
[null,null,{"$f":"title170","v":"Diesel"},{"$f":"Q47","v":{"$error":"#N/A"}},{"$f":"title574","v":"l diesel/t res"},{"$f":"D47*$E$41","v":{"$error":"#N/A"}},{"$f":"title350","v":"Liter Diesel/year"},{"$f":"'Data entry needs'!$F$100","v":0},{"$f":"F47*H47","v":{"$error":"#N/A"}},{"$f":"title319","v":"USD/year"},null,null,null,null,null,{"$f":"title170","v":"Diesel"},{"$f":"VLOOKUP($C$41,$P$149:$S$155,2,FALSE)","v":{"$error":"#N/A"}}]
[null,null,{"$f":"title244","v":"Water Make-up "},{"$f":"Q48","v":0.15},{"$f":"title353","v":"Liter water/t res"},{"$f":"IF(D48=0,0,E41*(H41/H42)*(1-D48))","v":0},{"$f":"title351","v":"Liter water/year"},{"$f":"'Data entry needs'!$F$92","v":0},{"$f":"F48*H48*D48","v":0},{"$f":"title319","v":"USD/year"},null,null,null,null,null,{"$f":"title244","v":"Water Make-up "},0.15]
[null,null,{"$f":"title349","v":"Unskilled Workers"},{"$f":"Q49","v":{"$error":"#N/A"}},{"$f":"title354","v":"person-day/t res"},{"$f":"ROUNDUP($D$49*E41*('Data entry needs'!$L$100/PRICE_FS6_PS1!E42)/'Data entry needs'!$L$99,0)","v":{"$error":"#N/A"}},{"$f":"title352","v":"person-hour"},{"$f":"'Data entry needs'!$L$96","v":0},{"$f":"F49*H49","v":{"$error":"#N/A"}},{"$f":"title319","v":"USD/year"},null,null,null,null,null,{"$f":"title127","v":"Unskilled worker"},{"$f":"VLOOKUP($C$41,$P$149:$S$155,3,FALSE)","v":{"$error":"#N/A"}}]
[null,null,null,{"$f":"Q47","v":{"$error":"#N/A"}},null,null,null,{"$f":"title269","v":"Subtotal"},{"$f":"+SUMIF($I$46:$I$49,\">0\")","v":0},{"$f":"title319","v":"USD/year"}]
[]
[null,null,{"$f":"title355","v":"Capital Investment"},{"$f":"title270","v":"Quantity"},{"$f":"title27","v":"Unit"}]
[null,null,{"$f":"$C$41&title356","v":"Please Select and equipment"},{"$f":"Q53","v":{"$error":"#N/A"}},{"$f":"VLOOKUP($C$41,$P$149:$T$155,5,FALSE)","v":{"$error":"#N/A"}},null,null,null,{"$f":"D53*(E41*10)/20","v":{"$error":"#N/A"}},{"$f":"title319","v":"USD/year"},null,null,null,null,null,{"$f":"$C$41&title356","v":"Please Select and equipment"},{"$f":"VLOOKUP($C$41,$P$149:$S$155,4,FALSE)","v":{"$error":"#N/A"}}]
[null,null,{"$f":"title357","v":"Dewatering"},{"$f":"Q54","v":7},"USD/t res",null,null,null,{"$f":"D54*$E$41/20","v":0},{"$f":"title319","v":"USD/year"},null,null,null,null,null,{"$f":"title357","v":"Dewatering"},{"$f":"$Q$158","v":7}]
[null,null,{"$f":"title358","v":"Operation and Mainteinance"},{"$f":"Q55","v":0.15},null,null,null,null,{"$f":"SUM(I53:I54)*$D$55","v":{"$error":"#N/A"}},{"$f":"title319","v":"USD/year"},null,null,null,null,null,{"$f":"title358","v":"Operation and Mainteinance"},0.15]
[null,null,null,{"$f":"+IF(AND(C54=\"\",C55=\"\"),0,IF(C54=\"\",D55,IF(C55=\"\",D54,D54+D55)))","v":7.15},null,null,null,{"$f":"title269","v":"Subtotal"},{"$f":"+SUMIF(I53:I55,\">0\")","v":0},{"$f":"title319","v":"USD/year"}]
[]
[null,null,null,{"$f":"title359","v":"Cost for Collection and transfer to storage tank"},null,null,null,null,{"$f":"SUM(I50+I56)/E41","v":{"$error":"#DIV/0!"}},"USD/t"]
[]
[null,null,{"$f":"title360","v":"Collection Method 3 - Feedstock collected from different farms"}]
[]
[null,null,{"$f":"title361","v":"Source of biomass"},null,{"$f":"title405","v":"Collection method"},null,{"$f":"title346","v":"Data Source"},true]
[null,null,{"$f":"title362","v":"Transfer from individual farms"},null,"Mechanized",null,null,false]
[]
[null,null,{"$f":"title363","v":"Transportation method"},null,"Tanker Truck Transfer",null,{"$f":"title372","v":"Number Of Farms Supplying Feedstock"},{"$f":"title373","v":"Average distance to collection point (m)"},{"$f":"title374","v":"Collection Period (days)"},{"$f":"IF($E$65=title364,title375,title376)&title377","v":"Number of Tanks required"}]
[]
[null,null,{"$f":"IF($E$65=title364,title365,title366)","v":"Tranport Capacity (liter)"},null,{"$f":"title370","v":"Residue Quanitiy (t/year)"},{"$f":"INDIRECT(\"'Data entry needs'!$F$\"&$A$1)","v":0},null,null,null,null,null,null,null,null,null,{"$f":"IF($E$60=title364,title365,title366)","v":"Pipe Diameter (in)"},{"$f":"VLOOKUP($E$65,$Y$147:$AE$149,3,FALSE)","v":27600}]
[null,null,{"$f":"IF($E$65=title364,title367,title368)","v":"Engine Power (HP)"},null,{"$f":"title371","v":"Residue Density (kg/m3)"},null,null,null,{"$f":"'Data entry needs'!L100-INDIRECT(\"Planner_pS1!$AN$\"&$B$1)*21","v":0},{"$f":"IFERROR(ROUNDUP($F$67*1000*1000/(960*$D$69*'Data entry needs'!$L$99)/$I$68,0),0)","v":0},null,null,null,null,null,{"$f":"IF($E$60=title364,title367,title368)","v":"Motor Power (HP)"},{"$f":"VLOOKUP($E$65,$Y$147:$AE$149,4,FALSE)","v":200}]
[null,null,{"$f":"title369","v":"Transfer Rate (l/h)"},null,null,null,null,null,null,null,null,null,null,null,null,{"$f":"title369","v":"Transfer Rate (l/h)"},{"$f":"VLOOKUP($E$65,$Y$147:$AE$149,5,FALSE)","v":27221.917808219176}]
[]
[null,null,null,{"$f":"+IF(OR($E$63=title337,$E$63=title378),FALSE,TRUE)","v":true},{"$f":"+IF($E$63=title337,TRUE,FALSE)","v":false}]
[null,null,{"$f":"title332","v":"Biomass Price Definition"},null,null,null,null,null,null,null,null,null,null,null,null,{"$f":"title371","v":"Residue Density (kg/m3)"},{"$f":"IFERROR(VLOOKUP(INDIRECT(\"'Data entry needs'!$e$\"&$A$1),PRICE_FS3_PS1!$Y$152:$Z$156,2,FALSE),1000)","v":1000}]
[null,null,{"$f":"title333","v":"Labour cost"},{"$f":"title270","v":"Quantity"},{"$f":"title27","v":"Unit"},{"$f":"title270","v":"Quantity"},null,{"$f":"title27","v":"Unit"},"Total",{"$f":"title27","v":"Unit"}]
[null,null,{"$f":"IF(OR($E$63=title337,$E$63=title378),title379,\"\")","v":""},null,{"$f":"IF(OR($E$63=title337,$E$63=title378),title381,\"\")","v":""},{"$f":"IF(OR($E$63=title337,$E$63=title378),title335,\"\")","v":""},{"$f":"IF(OR($E$63=title337,$E$63=title378),'Data entry needs'!$L$96,\"\")","v":""},{"$f":"IF(OR($E$63=title337,$E$63=title378),title128,\"\")","v":""},{"$f":"IFERROR(IF(OR($E$63=title337,$E$63=title378),$F$67*D74*$G$74,\"\"),0)","v":""},{"$f":"IF(OR($E$63=title337,$E$63=title378),title319,\"\")","v":""}]
[null,null,{"$f":"IF($E$63=title337,\"\",title380)","v":"Number of skilled workers"},null,{"$f":"IF($E$63=title337,\"\",title381)","v":"person-hour/t"},{"$f":"IF($E$63=title337,\"\",title336)","v":"Skilled labour wage"},{"$f":"IF($E$63=title337,\"\",'Data entry needs'!$F$96)","v":0},{"$f":"IF($E$63=title337,\"\",title128)","v":"USD/person-hour"},{"$f":"IFERROR(IF($E$63=title337,\"\",D75*G75*$F$67),0)","v":0},{"$f":"IF($E$63=title337,\"\",title319)","v":"USD/year"}]
[null,null,null,{"$f":"+IF(AND(C74=\"\",C75=\"\"),0,IF(C74=\"\",D75,IF(C75=\"\",D74,D74+D75)))","v":0},null,null,null,{"$f":"title269","v":"Subtotal"},{"$f":"+SUMIF($I$74:$I$75,\">0\")","v":0},{"$f":"title319","v":"USD/year"}]
[null,null,{"$f":"title383","v":"Collection Machinery"},{"$f":"title270","v":"Quantity"},{"$f":"title27","v":"Unit"},{"$f":"title270","v":"Quantity"},null,{"$f":"title27","v":"Unit"},"Total",{"$f":"title27","v":"Unit"}]
[null,null,{"$f":"IF(OR($E$63=title382,$E$63=title378),title384,\"\")","v":"Collection Diesel Consumption"},null,{"$f":"IF(OR($E$63=title382,$E$63=title378),title575,\"\")","v":"l diesel/h"},{"$f":"IF(OR($E$63=title382,$E$63=title378),title389,\"\")","v":"Diesel Cost"},{"$f":"IF(OR($E$63=title382,$E$63=title378),'Data entry needs'!F$100,\"\")","v":0},{"$f":"IF(OR($E$63=title382,$E$63=title378),title576,\"\")","v":"USD/l diesel"},{"$f":"IFERROR(IF(OR($E$63=title382,$E$63=title378),D78*G78*D75*F67,\"\"),0)","v":0},{"$f":"title319","v":"USD/year"}]
[null,null,{"$f":"IF($E$65=title364,title385,title386)","v":"Truck Diesel Consumption"},{"$f":"Q79","v":154},{"$f":"IF($E$65=title364,title387,title388)","v":"l diesel/day"},{"$f":"IF($E$65=title364,title389,title390)","v":"Diesel Cost"},{"$f":"IF($E$65=title364,'Data entry needs'!F$100,'Data entry needs'!$L$92)","v":0},{"$f":"IF($E$65=title364,title576,\"USD/kWh\")","v":"USD/l diesel"},{"$f":"IFERROR(D79*G79*$I$68*$J$68,0)","v":0},{"$f":"title319","v":"USD/year"},null,null,null,null,null,{"$f":"IF($E$60=title364,title385,title386)","v":"Pump Electricity Consumption"},{"$f":"VLOOKUP($E$65,$Y$147:$AE$149,7,FALSE)","v":154}]
[null,null,null,null,null,null,null,{"$f":"title269","v":"Subtotal"},{"$f":"+SUMIF($I$78:$I$79,\">0\")","v":0},{"$f":"title319","v":"USD/year"}]
[null,null,{"$f":"title391","v":"Equipment"},{"$f":"title270","v":"Quantity"},{"$f":"title27","v":"Unit"},{"$f":"title270","v":"Quantity"},null,{"$f":"title27","v":"Unit"},"Total",{"$f":"title27","v":"Unit"}]
[null,null,{"$f":"IF($E$65=title364,title392,title393)","v":"Liquid Tanker Truck"},{"$f":"IF($E$65=title364,$J$68,$G$68*$H$68*1.2)","v":0},{"$f":"IF($E$65=title364,title398,\"m\")","v":"tank(s)"},{"$f":"IF($E$65=title364,title399,title400)","v":"Cost per Tank"},{"$f":"VLOOKUP($E$65,$Y$147:$AF$149,8,FALSE)/10","v":7900},{"$f":"IF($E$65=title364,title402,title403)","v":"USD/tank/year"},{"$f":"IFERROR(D82*G82,0)","v":0},{"$f":"title319","v":"USD/year"}]
[null,null,{"$f":"IF($E$65=title364,title394&$D$68&title395,title396&$D$68&title397)","v":"Semi-tractor 185  HP"},null,"USD",{"$f":"title401","v":"Depreciation Period"},null,{"$f":"title164","v":"year"},{"$f":"IFERROR(D83*$J$68/G83,0)","v":0},{"$f":"title319","v":"USD/year"},null,null,null,null,null,{"$f":"IF($E$60=title364,title406,title396&$D$63&title397)","v":"Pump  HP with agitator"},{"$f":"VLOOKUP($E$65,$Y$147:$AH$149,10,FALSE)","v":148000}]
[null,null,{"$f":"title358","v":"Operation and Mainteinance"},{"$f":"Q84","v":0.15},null,null,null,null,{"$f":"IFERROR(SUM(I82:I83)*$D$84,0)","v":0},{"$f":"title319","v":"USD/year"},null,null,null,null,null,{"$f":"title358","v":"Operation and Mainteinance"},0.15]
[null,null,null,null,null,null,null,{"$f":"title269","v":"Subtotal"},{"$f":"I82","v":0},{"$f":"title319","v":"USD/year"},null,null,null,null,null,{"$f":"title401","v":"Depreciation Period"},15]
[]
[null,null,null,{"$f":"title404","v":"Cost for Collection and transfer to central collection point"},null,null,null,null,{"$f":"(I85+I80+I76)/$F$67","v":{"$error":"#DIV/0!"}},"USD/t"]
[]
[]
[]
[]
[]
[]
[]
[]
[]
[]
[]
[]
[]
[]
[]
[]
[]
[]
[]
[]
[]
[]
[]
[]
[]
[]
[]
[]
[]
[]
[]
[null,null,null,null,null,null,null,null,null,null,null,null,null,null,null,{"$f":"title410","v":"Sources of biomass"}]
[null,null,null,null,null,null,null,null,null,null,null,null,null,null,null,{"$f":"title411","v":"Biomass spread in the field"}]
[null,null,null,null,null,null,null,null,null,null,null,null,null,null,null,{"$f":"title412","v":"Biomass collected from field"}]
[null,null,null,null,null,null,null,null,null,null,null,null,null,null,null,{"$f":"title413","v":"Biomass from food processing plant"}]
[]
[]
[]
[]
[null,null,null,null,null,null,null,null,null,null,null,null,null,null,null,{"$f":"title405","v":"Collection method"}]
[null,null,null,null,null,null,null,null,null,null,null,null,null,null,null,{"$f":"title382","v":"Mechanized"}]
[null,null,null,null,null,null,null,null,null,null,null,null,null,null,null,{"$f":"title378","v":"Semi-mechanized"}]
[null,null,null,null,null,null,null,null,null,null,null,null,null,null,null,{"$f":"title337","v":"Manual"}]
[]
[]
[]
[]
[]
[]
[]
[]
[]
[]
[]
[]
[]
[]
[null,null,null,null,null,null,null,null,null,null,null,null,null,null,null,"Dairy maNURE",40.753799999999998,"Manure (kg/head/day)"]
[null,null,null,null,null,null,null,null,null,null,null,null,null,null,null,null,"Energy Use Cost","Labor and Mainteinance",null,null,null,"ts (%) transported","Dewateing",null,null,null,{"$f":"title440","v":"Capacity"},{"$f":"title441","v":"Engine/motor (hp)"},{"$f":"title369","v":"Transfer Rate (l/h)"},{"$f":"title442","v":"Transfer time (m/h)"},{"$f":"title443","v":"Energy Use  (kw)"},{"$f":"title444","v":"Add equipment"}]
[null,null,null,null,null,null,null,null,null,null,null,null,null,null,null,{"$f":"title405","v":"Collection method"},"liters diesel/t residue","workers*day/t residue","Capital cost","Capital cost","Capital cost",null,"Final solids ts (%)",null,{"$f":"title364","v":"Tanker Truck Transfer"},null,27600,200,27221.917808219176,609.6,154,79000,"USD",{"$f":"148000","v":148000},2010,{"$f":"title406","v":"Semi-tractor 185 HP"},null,null,"l/working day"]
[null,null,null,null,null,null,null,null,null,null,null,null,null,null,null,{"$f":"title74","v":"Please Select"},null,null,null,null,null,null,null,null,{"$f":"title432","v":"High Volume Pipeline"},null,"6´´ PVC",150,3028,1016,215,{"$f":"37/3.048","v":12.139107611548557},"USD/m",37075,2003]
[null,null,null,null,null,null,null,null,null,null,null,null,null,null,null,{"$f":"title414","v":"Alley Scrapers"},0.14330809896079807,0.42057427773606393,{"$f":"(AVERAGE(35,45)*$B$52+10000+4000)/3785.41178","v":3.698408736922143},{"$f":"title421","v":"USD/liter mixture"},2009,0.08,0.5,null,{"$f":"title433","v":"Low Volume Pipeline"},null,"4´´ PVC",7.5,378,127,86,{"$f":"12.4/3.048","v":4.0682414698162734},"USD/m",7675,2003]
[null,null,null,null,null,null,null,null,null,null,null,null,null,null,null,{"$f":"title415","v":"Flush System"},0.4093569308278352,0.10526625737967994,{"$f":"(4950.08+(16+9.8)*$B$52)/3785.41178","v":1.3076727943188258},"USD/liter mixture",2014,{"$f":"AVERAGE(1%,3%)","v":0.02},0.5]
[null,null,null,null,null,null,null,null,null,null,null,null,null,null,null,{"$f":"title416","v":"Vacum Scraper"},3.190595592141102,1.9769935564290937,10,"USD/liter mixture",2010,0.18,0.5,null,null,{"$f":"title434","v":"Density (Kg/m3)"}]
[null,null,null,null,null,null,null,null,null,null,null,null,null,null,null,{"$f":"title417","v":"Skid-loader"},0.75612714559717353,1.2830705357537211,{"$f":"(142.6*0.914+58.5*0.084+50.75*0.997)/$Q$145","v":4.5602655457895951},"USD/liter mixture",2010,{"$f":"AVERAGE(8%,18%)","v":0.13},0.5,null,{"$f":"title435","v":"Buffalo"},960]
[null,null,null,null,null,null,null,null,null,null,null,null,null,null,null,{"$f":"title418","v":"Cross gutter Scraper"},1.5259658685640533E-2,2.6500596263415929E-2,5,"USD/liter mixture",2010,0.08,0.5,null,{"$f":"title436","v":"Cattle"},960]
[null,null,null,null,null,null,null,null,null,null,null,null,null,null,null,{"$f":"title419","v":"Cross Gutter Auger"},0.20478904265077005,2.6255220372088005E-2,{"$f":"2200*30/2378/10","v":2.7754415475189234},"USD/liter mixture",2010,0.08,0.5,null,{"$f":"title437","v":"Dairy Cattle"},994]
[null,null,null,null,null,null,null,null,null,null,null,null,null,null,null,{"$f":"title420","v":"Flush Flume"},0.13645231027594507,2.6255220372088005E-2,{"$f":"(4950.08+(16+9.8)*$B$52)*1.5/3785.41178","v":1.9615091914782385},"USD/liter mixture",2010,{"$f":"AVERAGE(4%,9%)","v":6.5000000000000002E-2},0.5,null,{"$f":"title438","v":"Poultry"},961.11]
[null,null,null,null,null,null,null,null,null,null,null,null,null,null,null,null,null,null,null,null,null,null,null,null,{"$f":"title439","v":"Swine"},1140.9000000000001]
[null,null,null,null,null,null,null,null,null,null,null,null,null,null,null,{"$f":"title357","v":"Dewatering"},"Screw Press ",{"$f":"PROPER(title164)","v":"Year"}]
[null,null,null,null,null,null,null,null,null,null,null,null,null,null,null,{"$f":"title422","v":"Capital Cost (USD/t residue)"},{"$f":"AVERAGE(0.2,0.5)*1000000*0.12/AVERAGE(4000,8000)","v":7},2002]
[null,null,null,null,null,null,null,null,null,null,null,null,null,null,null,{"$f":"title423","v":"Operation (worker/t residue)"},{"$f":"AVERAGE(20,40)*1000/AVERAGE(4000,8000)/(300*8*160)","v":1.3020833333333334E-5}]
[null,null,null,null,null,null,null,null,null,null,null,null,null,null,null,{"$f":"title424","v":"Energy Demand kWh/t residue"},{"$f":"AVERAGE(5,15)*8000/AVERAGE(4000,8000)","v":13.333333333333334},2002]
[]
[]
[]
[]
[null,null,null,null,null,null,null,null,null,null,null,null,null,null,null,{"$f":"title74","v":"Please Select"},{"$f":"title405","v":"Collection method"},"Show","Section to Show",{"$f":"VLOOKUP(INDIRECT(\"'Data entry needs'!$d$\"&$A$1),$P$166:$R$178,3,FALSE)","v":{"$error":"#N/A"}}]
[null,null,null,null,null,null,null,null,null,null,null,null,null,null,null,{"$f":"title184","v":"Biodiesel/Oilseed Ind."},{"$f":"title425","v":"No collection neeeded"},1,{"$f":"title429&\" 0\"","v":"Option 0"},0,0]
[null,null,null,null,null,null,null,null,null,null,null,null,null,null,null,{"$f":"title85","v":"Crop Residues"},{"$f":"title426","v":"Method 1"},2,{"$f":"title429&\" 1\"","v":"Option 1"},{"$f":"$I$31","v":{"$error":"#DIV/0!"}},{"$f":"$D$24/E16","v":{"$error":"#DIV/0!"}},{"$f":"title381","v":"person-hour/t"}]
[null,null,null,null,null,null,null,null,null,null,null,null,null,null,null,{"$f":"title185","v":"Dairy-milk ind."},{"$f":"title427","v":"Method 2, Method 3"},4,{"$f":"title429&\" 2\"","v":"Option 2"},{"$f":"$I$58","v":{"$error":"#DIV/0!"}},{"$f":"F49/E41","v":{"$error":"#N/A"}},{"$f":"title381","v":"person-hour/t"}]
[null,null,null,null,null,null,null,null,null,null,null,null,null,null,null,{"$f":"title120","v":"Energy Crops"},{"$f":"title425","v":"No collection neeeded"},1,{"$f":"title429&\" 3\"","v":"Option 3"},{"$f":"$I$87","v":{"$error":"#DIV/0!"}},{"$f":"D76","v":0},{"$f":"title381","v":"person-hour/t"}]
[null,null,null,null,null,null,null,null,null,null,null,null,null,null,null,{"$f":"title186","v":"Eth-Sugar-Starch Ind."},{"$f":"title425","v":"No collection neeeded"},1]
[null,null,null,null,null,null,null,null,null,null,null,null,null,null,null,{"$f":"title187","v":"Food Process. Res."},{"$f":"title425","v":"No collection neeeded"},1,{"$f":"title430","v":"Result"},{"$f":"IF($T$165=1,T166,IF($T$165=2,$T$167,IF($T$165=3,T168,IF(AND($T$165=4,$E$34),$T$168,$T$169))))","v":{"$error":"#N/A"}}]
[null,null,null,null,null,null,null,null,null,null,null,null,null,null,null,{"$f":"title188","v":"Grass"},{"$f":"title426","v":"Method 1"},2,{"$f":"title431","v":"Employees"},{"$f":"IF($T$165=1,U166,IF($T$165=2,$U$167,IF($T$165=3,U169,IF(AND($T$165=4,$E$34),$U$168,$U$169))))","v":{"$error":"#N/A"}},{"$f":"title381","v":"person-hour/t"}]
[null,null,null,null,null,null,null,null,null,null,null,null,null,null,null,{"$f":"title119","v":"Crops"},{"$f":"title425","v":"No collection neeeded"},1]
[null,null,null,null,null,null,null,null,null,null,null,null,null,null,null,{"$f":"title189","v":"Other Options"},{"$f":"title425","v":"No collection neeeded"},1]
[null,null,null,null,null,null,null,null,null,null,null,null,null,null,null,{"$f":"title190","v":"Slaughterhouses wastes"},{"$f":"title428","v":"Method 2"},3]
[null,null,null,null,null,null,null,null,null,null,null,null,null,null,null,{"$f":"title191","v":"Yeast-Alcoholic Bev."},{"$f":"title425","v":"No collection neeeded"},1]
[null,null,null,null,null,null,null,null,null,null,null,null,null,null,null,{"$f":"title84","v":"Manure"},{"$f":"title427","v":"Method 2, Method 3"},4]
[null,null,null,null,null,null,null,null,null,null,null,null,null,null,null,{"$f":"title192","v":"Wastewater"},{"$f":"title425","v":"No collection neeeded"},1]

{"sheet":"FA_SIZE1_PS1","index":20,"n_rows":97,"n_cols":25,"rows_kept":97,"cut":false,"hidden":true,"merged":[[1,1,1,23]]}
[]
[null,{"$f":"title496&\" 1\"","v":"FINANCIAL EVALUATION OF BIOGAS PRODUCTION SIZE 1"}]
[]
[null,{"$f":"title445","v":"Revenues of biomass production and use system"}]
[null,{"$f":"title446","v":"Operating Year"},null,0,1,2,3,4,5,6,7,8,9,10,11,12,13,14,15,16,17,18,19,20,1]
[null,null,null,null,null,null,null,null,null,null,null,null,null,null,null,null,null,null,null,null,null,null,null,null,1]
["AD130",{"$f":"title447","v":"Biogas production capacity (m3 Biogas per year)"},null,{"$f":"INDIRECT(\"Planner_PS1!$\"&$A$7)*'Data entry needs'!$L$100","v":{"$error":"#DIV/0!"}},{"$f":"D7","v":{"$error":"#DIV/0!"}},{"$f":"E7","v":{"$error":"#DIV/0!"}},{"$f":"F7","v":{"$error":"#DIV/0!"}},{"$error":"#DIV/0!"},{"$error":"#DIV/0!"},{"$error":"#DIV/0!"},{"$error":"#DIV/0!"},{"$error":"#DIV/0!"},{"$error":"#DIV/0!"},{"$error":"#DIV/0!"},{"$error":"#DIV/0!"},{"$error":"#DIV/0!"},{"$error":"#DIV/0!"},{"$error":"#DIV/0!"},{"$error":"#DIV/0!"},{"$error":"#DIV/0!"},{"$error":"#DIV/0!"},{"$error":"#DIV/0!"},{"$error":"#DIV/0!"},{"$error":"#DIV/0!"},1]
[]
["G107",{"$f":"title448","v":"Heat Available for Selling (MJ/year)"},null,{"$f":"IF(INDIRECT(\"COST_PS1!\"&$A$9)<0,0,INDIRECT(\"COST_PS1!\"&$A$9))","v":{"$error":"#DIV/0!"}},{"$f":"D9","v":{"$error":"#DIV/0!"}},{"$f":"E9","v":{"$error":"#DIV/0!"}},{"$error":"#DIV/0!"},{"$error":"#DIV/0!"},{"$error":"#DIV/0!"},{"$error":"#DIV/0!"},{"$error":"#DIV/0!"},{"$error":"#DIV/0!"},{"$error":"#DIV/0!"},{"$error":"#DIV/0!"},{"$error":"#DIV/0!"},{"$error":"#DIV/0!"},{"$error":"#DIV/0!"},{"$error":"#DIV/0!"},{"$error":"#DIV/0!"},{"$error":"#DIV/0!"},{"$error":"#DIV/0!"},{"$error":"#DIV/0!"},{"$error":"#DIV/0!"},{"$error":"#DIV/0!"},1]
["G106",{"$f":"title449","v":"Electricity Available for Selling (kWh/year)"},null,{"$f":"IF(INDIRECT(\"COST_PS1!\"&$A$10)<0,0,INDIRECT(\"COST_PS1!\"&$A$10))","v":{"$error":"#DIV/0!"}},{"$f":"D10","v":{"$error":"#DIV/0!"}},{"$error":"#DIV/0!"},{"$error":"#DIV/0!"},{"$error":"#DIV/0!"},{"$error":"#DIV/0!"},{"$error":"#DIV/0!"},{"$error":"#DIV/0!"},{"$error":"#DIV/0!"},{"$error":"#DIV/0!"},{"$error":"#DIV/0!"},{"$error":"#DIV/0!"},{"$error":"#DIV/0!"},{"$error":"#DIV/0!"},{"$error":"#DIV/0!"},{"$error":"#DIV/0!"},{"$error":"#DIV/0!"},{"$error":"#DIV/0!"},{"$error":"#DIV/0!"},{"$error":"#DIV/0!"},{"$error":"#DIV/0!"},1]
["AB166",{"$f":"title450","v":"Biomethane Production (m3 Methane/year)"},null,{"$f":"IF(OR('Biogas Use Selection'!$P$67=4,'Biogas Use Selection'!$P$67=5),INDIRECT(\"Planner_PS1!$\"&$A$11),0)","v":0},{"$f":"D11","v":0},0,0,0,0,0,0,0,0,0,0,0,0,0,0,0,0,0,0,0,1]
[null,{"$f":"title451","v":"Biogas Available for Selling (m3/year)"},null,{"$f":"IF('Biogas Use Selection'!$P$67=2,$D$7,0)","v":0},{"$f":"D12","v":0},0,0,0,0,0,0,0,0,0,0,0,0,0,0,0,0,0,0,0]
["AB178",{"$f":"title452","v":"Digestate Production (t/year)"},null,{"$f":"INDIRECT(\"Planner_PS1!$\"&$A$13)","v":{"$error":"#DIV/0!"}},{"$f":"D13","v":{"$error":"#DIV/0!"}},{"$error":"#DIV/0!"},{"$error":"#DIV/0!"},{"$error":"#DIV/0!"},{"$error":"#DIV/0!"},{"$error":"#DIV/0!"},{"$error":"#DIV/0!"},{"$error":"#DIV/0!"},{"$error":"#DIV/0!"},{"$error":"#DIV/0!"},{"$error":"#DIV/0!"},{"$error":"#DIV/0!"},{"$error":"#DIV/0!"},{"$error":"#DIV/0!"},{"$error":"#DIV/0!"},{"$error":"#DIV/0!"},{"$error":"#DIV/0!"},{"$error":"#DIV/0!"},{"$error":"#DIV/0!"},{"$error":"#DIV/0!"}]
[]
[null,{"$f":"title265","v":"Operating hours per year"},null,{"$f":"COST_PS1!$G$35","v":0},{"$f":"D15","v":0},{"$f":"E15","v":0},0,0,0,0,0,0,0,0,0,0,0,0,0,0,0,0,0,0,1]
[null,null,null,null,null,null,null,null,null,null,null,null,null,null,null,null,null,null,null,null,null,null,null,null,1]
[1,{"$f":"title137&\" (USD/kWh)\"","v":"Electricity Selling Price (USD/kWh)"},null,{"$f":"IF($A17=1,'Data entry needs'!$F$103,0)","v":0},null,null,null,null,null,null,null,null,null,null,null,null,null,null,null,null,null,null,null,null,1]
[1,{"$f":"title138&\" (USD/GJ)\"","v":"Heat Selling Price (USD/GJ)"},null,{"$f":"IF($A18=1,'Data entry needs'!$F$104,0)","v":0}]
[1,{"$f":"title453","v":"Biogas Selling Price (USD/m3)"},null,{"$f":"IF($A19=1,'Data entry needs'!$F$105,0)","v":0}]
[1,{"$f":"title454","v":"Biomethane Selling Price (USD/m3)"},null,{"$f":"IF($A20=1,'Data entry needs'!$L$103,0)","v":0}]
[1,{"$f":"title455","v":"Digestate Sellig Price (USD/t)"},null,{"$f":"'Data entry needs'!$L$104","v":0}]
[]
[null,null,null,null,null,null,null,null,null,null,null,null,null,null,null,null,null,null,null,null,null,null,null,null,1]
[null,{"$f":"title456","v":"Annual Income (USD per year)"},null,{"$f":"$D$18*D9+D10*$D$17+D12*$D$19+D11*$D$20+$D$21*D13","v":{"$error":"#DIV/0!"}},{"$f":"$D$18*E9+E10*$D$17+E12*$D$19+E11*$D$20+$D$21*E13","v":{"$error":"#DIV/0!"}},{"$f":"$D$18*F9+F10*$D$17+F12*$D$19+F11*$D$20+$D$21*F13","v":{"$error":"#DIV/0!"}},{"$error":"#DIV/0!"},{"$error":"#DIV/0!"},{"$error":"#DIV/0!"},{"$error":"#DIV/0!"},{"$error":"#DIV/0!"},{"$error":"#DIV/0!"},{"$error":"#DIV/0!"},{"$error":"#DIV/0!"},{"$error":"#DIV/0!"},{"$error":"#DIV/0!"},{"$error":"#DIV/0!"},{"$error":"#DIV/0!"},{"$error":"#DIV/0!"},{"$error":"#DIV/0!"},{"$error":"#DIV/0!"},{"$error":"#DIV/0!"},{"$error":"#DIV/0!"},{"$error":"#DIV/0!"},1]
[null,null,null,null,null,null,null,null,null,null,null,null,null,null,null,null,null,null,null,null,null,null,null,null,1]
[null,{"$f":"title457","v":"Lifespan of civil work (years)"},null,{"$f":"'Data entry needs'!$L$120","v":0},null,null,null,null,null,null,null,null,null,null,null,null,null,null,null,null,null,null,null,null,1]
[null,{"$f":"title458","v":"Lifespan of charcoal system (years)"},null,{"$f":"'Data entry needs'!$L$120","v":0},null,null,null,null,null,null,null,null,null,null,null,null,null,null,null,null,null,null,null,null,1]
[null,{"$f":"title459","v":"Project lifetime (years)"},null,{"$f":"'Data entry needs'!$L$120","v":0},null,null,null,null,null,null,null,null,null,null,null,null,null,null,null,null,null,null,null,null,1]
[null,null,null,null,null,null,null,null,null,null,null,null,null,null,null,null,null,null,null,null,null,null,null,null,1]
[null,null,null,null,null,null,null,null,null,null,null,null,null,null,null,null,null,null,null,null,null,null,null,null,1]
[null,{"$f":"title460","v":"Capital and operating cost of biogas system "},null,null,null,null,null,null,null,null,null,null,null,null,null,null,null,null,null,null,null,null,null,null,1]
[null,null,null,null,null,null,null,null,null,null,null,null,null,null,null,null,null,null,null,null,null,null,null,null,1]
[null,{"$f":"title446","v":"Operating Year"},null,{"$f":"title464","v":"Appraisal"},{"$f":"title465","v":"Project period (years)"},{"$f":"title466","v":"per year"},null,null,null,null,null,null,null,null,null,null,null,null,null,null,null,null,null,null,1]
[null,{"$f":"title461","v":"Capital cost (USD)"},null,"Total",null,null,null,null,null,null,null,null,null,null,null,null,null,null,null,null,null,null,null,null,1]
["F77",{"$f":"title280","v":"Equipments"},null,{"$f":"INDIRECT(\"COST_PS1!\"&$A35)","v":{"$error":"#DIV/0!"}},{"$f":"+D26","v":0},{"$f":"D35/E35","v":{"$error":"#DIV/0!"}},null,null,null,null,null,null,null,null,null,null,null,null,null,null,null,null,null,null,1]
["F78",{"$f":"title281","v":"Building"},null,{"$f":"INDIRECT(\"COST_PS1!\"&$A36)","v":{"$error":"#DIV/0!"}},{"$f":"+D27","v":0},{"$f":"D36/E36","v":{"$error":"#DIV/0!"}},null,null,null,null,null,null,null,null,null,null,null,null,null,null,null,null,null,null,1]
["F79",{"$f":"title462","v":"Installation"},null,{"$f":"INDIRECT(\"COST_PS1!\"&$A37)","v":{"$error":"#DIV/0!"}},{"$f":"+D28","v":0},{"$f":"D37/E37","v":{"$error":"#DIV/0!"}},null,null,null,null,null,null,null,null,null,null,null,null,null,null,null,null,null,null,1]
[null,{"$f":"title463","v":"Total capital cost (USD)"},null,{"$f":"SUM(D35:D37)","v":{"$error":"#DIV/0!"}},null,{"$f":"SUM(F35:F37)","v":{"$error":"#DIV/0!"}},null,null,null,null,null,null,null,null,null,null,null,null,null,null,null,null,null,null,1]
[null,null,null,null,null,null,null,null,null,null,null,null,null,null,null,null,null,null,null,null,null,null,null,null,1]
[null,null,null,null,null,null,null,null,null,null,null,null,null,null,null,null,null,null,null,null,null,null,null,null,1]
[null,{"$f":"title446","v":"Operating Year"},null,{"$f":"title464","v":"Appraisal"},1,2,3,4,5,6,7,8,9,10,11,12,13,14,15,16,17,18,19,20,1]
[null,{"$f":"title467","v":"Annual operating and maintenance cost "},null,null,null,null,null,null,null,null,null,null,null,null,null,null,null,null,null,null,null,null,null,null,1]
["F44",{"$f":"title468","v":"Sub-total inputs cost (USD)"},null,{"$f":"INDIRECT(\"COST_PS1!\"&$A$43)","v":{"$error":"#DIV/0!"}},{"$f":"INDIRECT(\"COST_PS1!\"&$A$43)","v":{"$error":"#DIV/0!"}},{"$error":"#DIV/0!"},{"$error":"#DIV/0!"},{"$error":"#DIV/0!"},{"$error":"#DIV/0!"},{"$error":"#DIV/0!"},{"$error":"#DIV/0!"},{"$error":"#DIV/0!"},{"$error":"#DIV/0!"},{"$error":"#DIV/0!"},{"$error":"#DIV/0!"},{"$error":"#DIV/0!"},{"$error":"#DIV/0!"},{"$error":"#DIV/0!"},{"$error":"#DIV/0!"},{"$error":"#DIV/0!"},{"$error":"#DIV/0!"},{"$error":"#DIV/0!"},{"$error":"#DIV/0!"},{"$error":"#DIV/0!"},1]
[]
[null,{"$f":"title469","v":"Sub-total operating cost (USD)"},null,{"$f":"D46+D47+D48","v":{"$error":"#DIV/0!"}},{"$f":"E46+E47+E48","v":{"$error":"#DIV/0!"}},{"$f":"F46+F47+F48","v":{"$error":"#DIV/0!"}},{"$error":"#DIV/0!"},{"$error":"#DIV/0!"},{"$error":"#DIV/0!"},{"$error":"#DIV/0!"},{"$error":"#DIV/0!"},{"$error":"#DIV/0!"},{"$error":"#DIV/0!"},{"$error":"#DIV/0!"},{"$error":"#DIV/0!"},{"$error":"#DIV/0!"},{"$error":"#DIV/0!"},{"$error":"#DIV/0!"},{"$error":"#DIV/0!"},{"$error":"#DIV/0!"},{"$error":"#DIV/0!"},{"$error":"#DIV/0!"},{"$error":"#DIV/0!"},{"$error":"#DIV/0!"},1]
["g51",{"$f":"title470","v":"Labour cost & Misc. (USD)"},null,{"$f":"INDIRECT(\"COST_PS1!\"&$A46)","v":0},{"$f":"+D46","v":0},{"$f":"+E46","v":0},0,0,0,0,0,0,0,0,0,0,0,0,0,0,0,0,0,0,1]
["g87",{"$f":"title151","v":"Plant overhead"},null,{"$f":"INDIRECT(\"COST_PS1!\"&$A47)","v":{"$error":"#DIV/0!"}},{"$f":"D47","v":{"$error":"#DIV/0!"}},{"$f":"E47","v":{"$error":"#DIV/0!"}},{"$error":"#DIV/0!"},{"$error":"#DIV/0!"},{"$error":"#DIV/0!"},{"$error":"#DIV/0!"},{"$error":"#DIV/0!"},{"$error":"#DIV/0!"},{"$error":"#DIV/0!"},{"$error":"#DIV/0!"},{"$error":"#DIV/0!"},{"$error":"#DIV/0!"},{"$error":"#DIV/0!"},{"$error":"#DIV/0!"},{"$error":"#DIV/0!"},{"$error":"#DIV/0!"},{"$error":"#DIV/0!"},{"$error":"#DIV/0!"},{"$error":"#DIV/0!"},{"$error":"#DIV/0!"},1]
["g88",{"$f":"title288","v":"General and administrative cost"},null,{"$f":"INDIRECT(\"COST_PS1!\"&$A48)","v":{"$error":"#DIV/0!"}},{"$f":"D48","v":{"$error":"#DIV/0!"}},{"$f":"E48","v":{"$error":"#DIV/0!"}},{"$error":"#DIV/0!"},{"$error":"#DIV/0!"},{"$error":"#DIV/0!"},{"$error":"#DIV/0!"},{"$error":"#DIV/0!"},{"$error":"#DIV/0!"},{"$error":"#DIV/0!"},{"$error":"#DIV/0!"},{"$error":"#DIV/0!"},{"$error":"#DIV/0!"},{"$error":"#DIV/0!"},{"$error":"#DIV/0!"},{"$error":"#DIV/0!"},{"$error":"#DIV/0!"},{"$error":"#DIV/0!"},{"$error":"#DIV/0!"},{"$error":"#DIV/0!"},{"$error":"#DIV/0!"},1]
["g82",{"$f":"title471","v":"Sub-total maintenance cost (USD)"},null,{"$f":"INDIRECT(\"COST_PS1!\"&$A49)","v":{"$error":"#DIV/0!"}},{"$f":"D49","v":{"$error":"#DIV/0!"}},{"$f":"E49","v":{"$error":"#DIV/0!"}},{"$error":"#DIV/0!"},{"$error":"#DIV/0!"},{"$error":"#DIV/0!"},{"$error":"#DIV/0!"},{"$error":"#DIV/0!"},{"$error":"#DIV/0!"},{"$error":"#DIV/0!"},{"$error":"#DIV/0!"},{"$error":"#DIV/0!"},{"$error":"#DIV/0!"},{"$error":"#DIV/0!"},{"$error":"#DIV/0!"},{"$error":"#DIV/0!"},{"$error":"#DIV/0!"},{"$error":"#DIV/0!"},{"$error":"#DIV/0!"},{"$error":"#DIV/0!"},{"$error":"#DIV/0!"},1]
[null,null,null,null,null,null,null,null,null,null,null,null,null,null,null,null,null,null,null,null,null,null,null,null,1]
["g82",{"$f":"title472","v":"Sub-total of annual fixed cost (USD)"},null,{"$f":"F38","v":{"$error":"#DIV/0!"}},{"$f":"D51","v":{"$error":"#DIV/0!"}},{"$f":"E51","v":{"$error":"#DIV/0!"}},{"$error":"#DIV/0!"},{"$error":"#DIV/0!"},{"$error":"#DIV/0!"},{"$error":"#DIV/0!"},{"$error":"#DIV/0!"},{"$error":"#DIV/0!"},{"$error":"#DIV/0!"},{"$error":"#DIV/0!"},{"$error":"#DIV/0!"},{"$error":"#DIV/0!"},{"$error":"#DIV/0!"},{"$error":"#DIV/0!"},{"$error":"#DIV/0!"},{"$error":"#DIV/0!"},{"$error":"#DIV/0!"},{"$error":"#DIV/0!"},{"$error":"#DIV/0!"},{"$error":"#DIV/0!"},1]
[null,null,null,null,null,null,null,null,null,null,null,null,null,null,null,null,null,null,null,null,null,null,null,null,1]
["f73",{"$f":"title473","v":"Sub-total of storage cost (USD)"},null,{"$f":"INDIRECT(\"COST_PS1!\"&$A53)","v":0},0,0,0,0,0,0,0,0,0,0,0,0,0,0,0,0,0,0,0,0,1]
[null,null,null,null,null,null,null,null,null,null,null,null,null,null,null,null,null,null,null,null,null,null,null,null,1]
[null,{"$f":"title474","v":"Total operation and maintenance cost (USD)"},null,{"$f":"D43+D45+D49+D51+D53","v":{"$error":"#DIV/0!"}},{"$f":"E43+E45+E49+E51+E53","v":{"$error":"#DIV/0!"}},{"$error":"#DIV/0!"},{"$error":"#DIV/0!"},{"$error":"#DIV/0!"},{"$error":"#DIV/0!"},{"$error":"#DIV/0!"},{"$error":"#DIV/0!"},{"$error":"#DIV/0!"},{"$error":"#DIV/0!"},{"$error":"#DIV/0!"},{"$error":"#DIV/0!"},{"$error":"#DIV/0!"},{"$error":"#DIV/0!"},{"$error":"#DIV/0!"},{"$error":"#DIV/0!"},{"$error":"#DIV/0!"},{"$error":"#DIV/0!"},{"$error":"#DIV/0!"},{"$error":"#DIV/0!"},{"$error":"#DIV/0!"},1]
[null,null,null,null,null,null,null,null,null,null,null,null,null,null,null,null,null,null,null,null,null,null,null,null,1]
[null,null,null,null,null,null,null,null,null,null,null,null,null,null,null,null,null,null,null,null,null,null,null,null,1]
[null,{"$f":"title155","v":"Financial parameters"},null,null,null,null,null,null,null,null,null,null,null,null,null,null,null,null,null,null,null,null,null,null,1]
[null,{"$f":"title446","v":"Operating Year"},null,{"$f":"title464","v":"Appraisal"},1,2,3,4,5,6,7,8,9,10,11,12,13,14,15,16,17,18,19,20,1]
[null,{"$f":"title161&\"(%)\"","v":"Discount rate(%)"},null,{"$f":"'Data entry needs'!$L$118","v":0},null,null,null,null,null,null,null,null,null,null,null,null,null,null,null,null,null,null,null,null,1]
[null,{"$f":"title475","v":"Loan ratio (%)"},null,{"$f":"'Data entry needs'!$F$118","v":0},null,null,null,null,null,null,null,null,null,null,null,null,null,null,null,null,null,null,null,null,1]
[null,null,null,null,null,null,null,null,null,null,null,null,null,null,null,null,null,null,null,null,null,null,null,null,1]
[null,null,null,null,null,null,null,null,null,null,null,null,null,null,null,null,null,null,null,null,null,null,null,null,1]
[null,{"$f":"title446","v":"Operating Year"},null,{"$f":"title464","v":"Appraisal"},1,2,3,4,5,6,7,8,9,10,11,12,13,14,15,16,17,18,19,20,1]
[null,{"$f":"title476","v":"Loan amount (USD)"},null,{"$f":"D61*(D38)","v":{"$error":"#DIV/0!"}},null,null,null,null,null,null,null,null,null,null,null,null,null,null,null,null,null,null,null,null,1]
[null,{"$f":"title162&\"(%)\"","v":"Loan interest rate(%)"},null,{"$f":"'Data entry needs'!$L$119","v":0},null,null,null,null,null,null,null,null,null,null,null,null,null,null,null,null,null,null,null,null,1]
[null,{"$f":"title165","v":"Loan term (years)"},null,{"$f":"D26","v":0},null,null,null,null,null,null,null,null,null,null,null,null,null,null,null,null,null,null,null,null,1]
[null,{"$f":"title315&\" (\"&title318&\")\"","v":"Loan payment (USD/month)"},null,{"$f":"(PMT($D$66/12,($D$67*12),$D$65))","v":{"$error":"#DIV/0!"}}]
[null,{"$f":"title315&\" (\"&title319&\")\"","v":"Loan payment (USD/year)"},null,{"$f":"D68*12","v":{"$error":"#DIV/0!"}},null,null,null,null,null,null,null,null,null,null,null,null,null,null,null,null,null,null,null,null,1]
[null,{"$f":"title315&\" (\"&title319&\")\"","v":"Loan payment (USD/year)"},null,null,{"$f":"IF(E64<=$D$67,$D$68*12,0)","v":0},{"$f":"IF(F64<=$D$67,$D$68*12,0)","v":0},0,0,0,0,0,0,0,0,0,0,0,0,0,0,0,0,0,0,1]
[null,{"$f":"title477","v":"Total loan payment (USD)"},null,{"$f":"SUM(E70:X70)","v":0},null,null,null,null,null,null,null,null,null,null,null,null,null,null,null,null,null,null,null,null,1]
[null,{"$f":"title478","v":"Loan interest payment (USD)"},null,{"$f":"D71+D65","v":{"$error":"#DIV/0!"}},{"$f":"title479","v":"loan interest payment for project lifetime"},null,null,null,null,null,null,null,null,null,null,null,null,null,null,null,null,null,null,null,1]
[null,null,null,null,null,null,null,null,null,null,null,null,null,null,null,null,null,null,null,null,null,null,null,null,1]
[null,{"$f":"title285","v":"Depreciation"},null,null,null,null,null,null,null,null,null,null,null,null,null,null,null,null,null,null,null,null,null,null,1]
[null,{"$f":"title446","v":"Operating Year"},null,{"$f":"title464","v":"Appraisal"},1,2,3,4,5,6,7,8,9,10,11,12,13,14,15,16,17,18,19,20,1]
[null,{"$f":"title480","v":"Depreciation method"},null,{"$f":"title482","v":"Straight-line"},null,null,null,null,null,null,null,null,null,null,null,null,null,null,null,null,null,null,null,null,1]
[null,{"$f":"title481","v":"Total depreciation (USD)"},null,null,{"$f":"$F$38","v":{"$error":"#DIV/0!"}},{"$f":"$F$38","v":{"$error":"#DIV/0!"}},{"$error":"#DIV/0!"},{"$error":"#DIV/0!"},{"$error":"#DIV/0!"},{"$error":"#DIV/0!"},{"$error":"#DIV/0!"},{"$error":"#DIV/0!"},{"$error":"#DIV/0!"},{"$error":"#DIV/0!"},{"$error":"#DIV/0!"},{"$error":"#DIV/0!"},{"$error":"#DIV/0!"},{"$error":"#DIV/0!"},{"$error":"#DIV/0!"},{"$error":"#DIV/0!"},{"$error":"#DIV/0!"},{"$error":"#DIV/0!"},{"$error":"#DIV/0!"},{"$error":"#DIV/0!"},1]
[null,null,null,null,null,null,null,null,null,null,null,null,null,null,null,null,null,null,null,null,null,null,null,null,1]
[null,{"$f":"title483","v":"Base case Project Summary"},null,null,null,null,null,null,null,null,null,null,null,null,null,null,null,null,null,null,null,null,null,null,1]
[null,{"$f":"title484","v":"Summary of this project"},null,null,null,null,null,null,null,null,null,null,null,null,null,null,null,null,null,null,null,null,null,null,1]
[null,{"$f":"title446","v":"Operating Year"},null,{"$f":"title464","v":"Appraisal"},1,2,3,4,5,6,7,8,9,10,11,12,13,14,15,16,17,18,19,20,1]
[null,{"$f":"title485","v":"Total revenue (USD)"},null,null,{"$f":"E24","v":{"$error":"#DIV/0!"}},{"$f":"F24","v":{"$error":"#DIV/0!"}},{"$error":"#DIV/0!"},{"$error":"#DIV/0!"},{"$error":"#DIV/0!"},{"$error":"#DIV/0!"},{"$error":"#DIV/0!"},{"$error":"#DIV/0!"},{"$error":"#DIV/0!"},{"$error":"#DIV/0!"},{"$error":"#DIV/0!"},{"$error":"#DIV/0!"},{"$error":"#DIV/0!"},{"$error":"#DIV/0!"},{"$error":"#DIV/0!"},{"$error":"#DIV/0!"},{"$error":"#DIV/0!"},{"$error":"#DIV/0!"},{"$error":"#DIV/0!"},{"$error":"#DIV/0!"},1]
[null,{"$f":"title463","v":"Total capital cost (USD)"},null,{"$f":"-D38*(1-$D$61)","v":{"$error":"#DIV/0!"}},null,null,null,null,null,null,null,null,null,null,null,null,null,null,null,null,null,null,null,null,1]
[null,{"$f":"title486","v":"Total operating and maintenance cost (USD)"},null,null,{"$f":"-E55+E51","v":{"$error":"#DIV/0!"}},{"$f":"-F55+F51","v":{"$error":"#DIV/0!"}},{"$f":"-G55+G51","v":{"$error":"#DIV/0!"}},{"$error":"#DIV/0!"},{"$error":"#DIV/0!"},{"$error":"#DIV/0!"},{"$error":"#DIV/0!"},{"$error":"#DIV/0!"},{"$error":"#DIV/0!"},{"$error":"#DIV/0!"},{"$error":"#DIV/0!"},{"$error":"#DIV/0!"},{"$error":"#DIV/0!"},{"$error":"#DIV/0!"},{"$error":"#DIV/0!"},{"$error":"#DIV/0!"},{"$error":"#DIV/0!"},{"$error":"#DIV/0!"},{"$error":"#DIV/0!"},{"$error":"#DIV/0!"},1]
[null,{"$f":"title487","v":"Loan payment (USD)"},null,null,{"$f":"+E70","v":0},{"$f":"+F70","v":0},{"$f":"+G70","v":0},0,0,0,0,0,0,0,0,0,0,0,0,0,0,0,0,0,1]
[null,{"$f":"title488","v":"Cash flow with loan (USD)"},null,{"$f":"SUM(D82:D85)","v":{"$error":"#DIV/0!"}},{"$f":"SUM(E82:E85)","v":{"$error":"#DIV/0!"}},{"$f":"SUM(F82:F85)","v":{"$error":"#DIV/0!"}},{"$f":"SUM(G82:G85)","v":{"$error":"#DIV/0!"}},{"$error":"#DIV/0!"},{"$error":"#DIV/0!"},{"$error":"#DIV/0!"},{"$error":"#DIV/0!"},{"$error":"#DIV/0!"},{"$error":"#DIV/0!"},{"$error":"#DIV/0!"},{"$error":"#DIV/0!"},{"$error":"#DIV/0!"},{"$error":"#DIV/0!"},{"$error":"#DIV/0!"},{"$error":"#DIV/0!"},{"$error":"#DIV/0!"},{"$error":"#DIV/0!"},{"$error":"#DIV/0!"},{"$error":"#DIV/0!"},{"$error":"#DIV/0!"},1]
[null,{"$f":"title489","v":"Cash flow without loan (USD)"},null,{"$f":"-D38","v":{"$error":"#DIV/0!"}},{"$f":"+E82+E84","v":{"$error":"#DIV/0!"}},{"$f":"+F82+F84","v":{"$error":"#DIV/0!"}},{"$f":"+G82+G84","v":{"$error":"#DIV/0!"}},{"$error":"#DIV/0!"},{"$error":"#DIV/0!"},{"$error":"#DIV/0!"},{"$error":"#DIV/0!"},{"$error":"#DIV/0!"},{"$error":"#DIV/0!"},{"$error":"#DIV/0!"},{"$error":"#DIV/0!"},{"$error":"#DIV/0!"},{"$error":"#DIV/0!"},{"$error":"#DIV/0!"},{"$error":"#DIV/0!"},{"$error":"#DIV/0!"},{"$error":"#DIV/0!"},{"$error":"#DIV/0!"},{"$error":"#DIV/0!"},{"$error":"#DIV/0!"},1]
[null,{"$f":"title446","v":"Operating Year"},null,{"$f":"title464","v":"Appraisal"},1,2,3,4,5,6,7,8,9,10,11,12,13,14,15,16,17,18,19,20,1]
[null,{"$f":"title490","v":"Cumulative value of Net Profit"},null,{"$f":"D86","v":{"$error":"#DIV/0!"}},{"$f":"D89+(E86)","v":{"$error":"#DIV/0!"}},{"$f":"E89+(F86)","v":{"$error":"#DIV/0!"}},{"$error":"#DIV/0!"},{"$error":"#DIV/0!"},{"$error":"#DIV/0!"},{"$error":"#DIV/0!"},{"$error":"#DIV/0!"},{"$error":"#DIV/0!"},{"$error":"#DIV/0!"},{"$error":"#DIV/0!"},{"$error":"#DIV/0!"},{"$error":"#DIV/0!"},{"$error":"#DIV/0!"},{"$error":"#DIV/0!"},{"$error":"#DIV/0!"},{"$error":"#DIV/0!"},{"$error":"#DIV/0!"},{"$error":"#DIV/0!"},{"$error":"#DIV/0!"},{"$error":"#DIV/0!"},1]
[null,null,null,null,null,null,null,null,null,null,null,null,null,null,null,null,null,null,null,null,null,null,null,null,1]
[null,{"$f":"title491","v":"Financial Analysis Result"},null,null,null,null,null,null,null,null,null,null,null,null,null,null,null,null,null,null,null,null,null,null,1]
[null,null,null,null,null,null,null,null,null,null,null,null,null,null,null,null,null,null,null,null,null,null,null,null,1]
[null,{"$f":"title493","v":"Net Present Value (NPV) (USD)"},null,{"$f":"NPV(D60,E86:AA86)+D86","v":{"$error":"#DIV/0!"}},null,null,null,null,null,null,null,null,null,null,null,null,null,null,null,null,null,null,null,null,1]
[null,{"$f":"title494","v":"Internal Rate of Return (IRR) (%) - without loan"},null,{"$f":"IF(D93<0,title492,IRR(D87:AA87,0.001))","v":{"$error":"#DIV/0!"}},null,null,null,null,null,null,null,null,null,null,null,null,null,null,null,null,null,null,null,null,1]
[null,{"$f":"title495","v":"Internal Rate of Return (IRR) (%) - with loan"},null,{"$f":"IF(D94<0,title492,IRR(D86:AA86,0.001))","v":{"$error":"#DIV/0!"}},null,null,null,null,null,null,null,null,null,null,null,null,null,null,null,null,null,null,null,null,1]
[null,null,null,null,null,null,null,null,null,null,null,null,null,null,null,null,null,null,null,null,null,null,null,null,1]
[null,null,null,null,null,null,null,null,null,null,null,null,null,null,null,null,null,null,null,null,null,null,null,null,1]

{"sheet":"FA_SIZE2_PS1","index":21,"n_rows":97,"n_cols":25,"rows_kept":97,"cut":false,"hidden":true,"merged":[[1,1,1,23]]}
[]
[null,{"$f":"title496&\" 2\"","v":"FINANCIAL EVALUATION OF BIOGAS PRODUCTION SIZE 2"}]
[]
[null,{"$f":"title445","v":"Revenues of biomass production and use system"}]
[null,{"$f":"title446","v":"Operating Year"},null,0,1,2,3,4,5,6,7,8,9,10,11,12,13,14,15,16,17,18,19,20,1]
[null,null,null,null,null,null,null,null,null,null,null,null,null,null,null,null,null,null,null,null,null,null,null,null,1]
["Ae130",{"$f":"title447","v":"Biogas production capacity (m3 Biogas per year)"},null,{"$f":"INDIRECT(\"Planner_PS1!$\"&$A$7)*'Data entry needs'!$L$100","v":{"$error":"#DIV/0!"}},{"$f":"D7","v":{"$error":"#DIV/0!"}},{"$f":"E7","v":{"$error":"#DIV/0!"}},{"$f":"F7","v":{"$error":"#DIV/0!"}},{"$error":"#DIV/0!"},{"$error":"#DIV/0!"},{"$error":"#DIV/0!"},{"$error":"#DIV/0!"},{"$error":"#DIV/0!"},{"$error":"#DIV/0!"},{"$error":"#DIV/0!"},{"$error":"#DIV/0!"},{"$error":"#DIV/0!"},{"$error":"#DIV/0!"},{"$error":"#DIV/0!"},{"$error":"#DIV/0!"},{"$error":"#DIV/0!"},{"$error":"#DIV/0!"},{"$error":"#DIV/0!"},{"$error":"#DIV/0!"},{"$error":"#DIV/0!"},1]
[]
["I107",{"$f":"title448","v":"Heat Available for Selling (MJ/year)"},null,{"$f":"IF(INDIRECT(\"COST_PS1!\"&$A$9)<0,0,INDIRECT(\"COST_PS1!\"&$A$9))","v":{"$error":"#DIV/0!"}},{"$f":"D9","v":{"$error":"#DIV/0!"}},{"$f":"E9","v":{"$error":"#DIV/0!"}},{"$error":"#DIV/0!"},{"$error":"#DIV/0!"},{"$error":"#DIV/0!"},{"$error":"#DIV/0!"},{"$error":"#DIV/0!"},{"$error":"#DIV/0!"},{"$error":"#DIV/0!"},{"$error":"#DIV/0!"},{"$error":"#DIV/0!"},{"$error":"#DIV/0!"},{"$error":"#DIV/0!"},{"$error":"#DIV/0!"},{"$error":"#DIV/0!"},{"$error":"#DIV/0!"},{"$error":"#DIV/0!"},{"$f":"U9","v":{"$error":"#DIV/0!"}},{"$error":"#DIV/0!"},{"$error":"#DIV/0!"},1]
["I106",{"$f":"title449","v":"Electricity Available for Selling (kWh/year)"},null,{"$f":"IF(INDIRECT(\"COST_PS1!\"&$A$10)<0,0,INDIRECT(\"COST_PS1!\"&$A$10))","v":{"$error":"#DIV/0!"}},{"$f":"D10","v":{"$error":"#DIV/0!"}},{"$error":"#DIV/0!"},{"$error":"#DIV/0!"},{"$error":"#DIV/0!"},{"$error":"#DIV/0!"},{"$error":"#DIV/0!"},{"$error":"#DIV/0!"},{"$error":"#DIV/0!"},{"$error":"#DIV/0!"},{"$error":"#DIV/0!"},{"$error":"#DIV/0!"},{"$error":"#DIV/0!"},{"$error":"#DIV/0!"},{"$error":"#DIV/0!"},{"$error":"#DIV/0!"},{"$error":"#DIV/0!"},{"$error":"#DIV/0!"},{"$error":"#DIV/0!"},{"$error":"#DIV/0!"},{"$error":"#DIV/0!"},1]
["AC166",{"$f":"title450","v":"Biomethane Production (m3 Methane/year)"},null,{"$f":"IF(OR('Biogas Use Selection'!$P$67=4,'Biogas Use Selection'!$P$67=5),INDIRECT(\"Planner_PS1!$\"&$A$11),0)","v":0},{"$f":"D11","v":0},0,0,0,0,0,0,0,0,0,0,0,0,0,0,0,0,0,0,0,1]
[null,{"$f":"title451","v":"Biogas Available for Selling (m3/year)"},null,{"$f":"IF('Biogas Use Selection'!$P$67=2,$D$7,0)","v":0},{"$f":"D12","v":0},0,0,0,0,0,0,0,0,0,0,0,0,0,0,0,0,0,0,0]
["AC178",{"$f":"title452","v":"Digestate Production (t/year)"},null,{"$f":"INDIRECT(\"Planner_PS1!$\"&$A$13)","v":{"$error":"#DIV/0!"}},{"$f":"D13","v":{"$error":"#DIV/0!"}},{"$error":"#DIV/0!"},{"$error":"#DIV/0!"},{"$error":"#DIV/0!"},{"$error":"#DIV/0!"},{"$error":"#DIV/0!"},{"$error":"#DIV/0!"},{"$error":"#DIV/0!"},{"$error":"#DIV/0!"},{"$error":"#DIV/0!"},{"$error":"#DIV/0!"},{"$error":"#DIV/0!"},{"$error":"#DIV/0!"},{"$error":"#DIV/0!"},{"$error":"#DIV/0!"},{"$error":"#DIV/0!"},{"$error":"#DIV/0!"},{"$error":"#DIV/0!"},{"$error":"#DIV/0!"},{"$error":"#DIV/0!"}]
[]
[null,{"$f":"title265","v":"Operating hours per year"},null,{"$f":"COST_PS1!$G$35","v":0},{"$f":"D15","v":0},{"$f":"E15","v":0},0,0,0,0,0,0,0,0,0,0,0,0,0,0,0,0,0,0,1]
[null,null,null,null,null,null,null,null,null,null,null,null,null,null,null,null,null,null,null,null,null,null,null,null,1]
[1,{"$f":"title137&\" (USD/kWh)\"","v":"Electricity Selling Price (USD/kWh)"},null,{"$f":"IF($A17=1,'Data entry needs'!$F$103,0)","v":0},null,null,null,null,null,null,null,null,null,null,null,null,null,null,null,null,null,null,null,null,1]
[1,{"$f":"title138&\" (USD/GJ)\"","v":"Heat Selling Price (USD/GJ)"},null,{"$f":"IF($A18=1,'Data entry needs'!$F$104,0)","v":0}]
[1,{"$f":"title453","v":"Biogas Selling Price (USD/m3)"},null,{"$f":"IF($A19=1,'Data entry needs'!$F$105,0)","v":0}]
[1,{"$f":"title454","v":"Biomethane Selling Price (USD/m3)"},null,{"$f":"IF($A20=1,'Data entry needs'!$L$103,0)","v":0}]
[1,{"$f":"title455","v":"Digestate Sellig Price (USD/t)"},null,{"$f":"'Data entry needs'!$L$104","v":0}]
[]
[null,null,null,null,null,null,null,null,null,null,null,null,null,null,null,null,null,null,null,null,null,null,null,null,1]
[null,{"$f":"title456","v":"Annual Income (USD per year)"},null,{"$f":"$D$18*D9+D10*$D$17+D12*$D$19+D11*$D$20+$D$21*D13","v":{"$error":"#DIV/0!"}},{"$f":"$D$18*E9+E10*$D$17+E12*$D$19+E11*$D$20+$D$21*E13","v":{"$error":"#DIV/0!"}},{"$f":"$D$18*F9+F10*$D$17+F12*$D$19+F11*$D$20+$D$21*F13","v":{"$error":"#DIV/0!"}},{"$error":"#DIV/0!"},{"$error":"#DIV/0!"},{"$error":"#DIV/0!"},{"$error":"#DIV/0!"},{"$error":"#DIV/0!"},{"$error":"#DIV/0!"},{"$error":"#DIV/0!"},{"$error":"#DIV/0!"},{"$error":"#DIV/0!"},{"$error":"#DIV/0!"},{"$error":"#DIV/0!"},{"$error":"#DIV/0!"},{"$error":"#DIV/0!"},{"$error":"#DIV/0!"},{"$error":"#DIV/0!"},{"$error":"#DIV/0!"},{"$error":"#DIV/0!"},{"$error":"#DIV/0!"},1]
[null,null,null,null,null,null,null,null,null,null,null,null,null,null,null,null,null,null,null,null,null,null,null,null,1]
[null,{"$f":"title457","v":"Lifespan of civil work (years)"},null,{"$f":"'Data entry needs'!$L$120","v":0},null,null,null,null,null,null,null,null,null,null,null,null,null,null,null,null,null,null,null,null,1]
[null,{"$f":"title458","v":"Lifespan of charcoal system (years)"},null,{"$f":"'Data entry needs'!$L$120","v":0},null,null,null,null,null,null,null,null,null,null,null,null,null,null,null,null,null,null,null,null,1]
[null,{"$f":"title459","v":"Project lifetime (years)"},null,{"$f":"'Data entry needs'!$L$120","v":0},null,null,null,null,null,null,null,null,null,null,null,null,null,null,null,null,null,null,null,null,1]
[null,null,null,null,null,null,null,null,null,null,null,null,null,null,null,null,null,null,null,null,null,null,null,null,1]
[null,null,null,null,null,null,null,null,null,null,null,null,null,null,null,null,null,null,null,null,null,null,null,null,1]
[null,{"$f":"title460","v":"Capital and operating cost of biogas system "},null,null,null,null,null,null,null,null,null,null,null,null,null,null,null,null,null,null,null,null,null,null,1]
[null,null,null,null,null,null,null,null,null,null,null,null,null,null,null,null,null,null,null,null,null,null,null,null,1]
[null,{"$f":"title446","v":"Operating Year"},null,{"$f":"title464","v":"Appraisal"},{"$f":"title465","v":"Project period (years)"},{"$f":"title466","v":"per year"},null,null,null,null,null,null,null,null,null,null,null,null,null,null,null,null,null,null,1]
[null,{"$f":"title461","v":"Capital cost (USD)"},null,"Total",null,null,null,null,null,null,null,null,null,null,null,null,null,null,null,null,null,null,null,null,1]
["h77",{"$f":"title280","v":"Equipments"},null,{"$f":"INDIRECT(\"COST_PS1!\"&$A35)","v":{"$error":"#DIV/0!"}},{"$f":"+D26","v":0},{"$f":"D35/E35","v":{"$error":"#DIV/0!"}},null,null,null,null,null,null,null,null,null,null,null,null,null,null,null,null,null,null,1]
["h78",{"$f":"title281","v":"Building"},null,{"$f":"INDIRECT(\"COST_PS1!\"&$A36)","v":{"$error":"#DIV/0!"}},{"$f":"+D27","v":0},{"$f":"D36/E36","v":{"$error":"#DIV/0!"}},null,null,null,null,null,null,null,null,null,null,null,null,null,null,null,null,null,null,1]
["h79",{"$f":"title462","v":"Installation"},null,{"$f":"INDIRECT(\"COST_PS1!\"&$A37)","v":{"$error":"#DIV/0!"}},{"$f":"+D28","v":0},{"$f":"D37/E37","v":{"$error":"#DIV/0!"}},null,null,null,null,null,null,null,null,null,null,null,null,null,null,null,null,null,null,1]
[null,{"$f":"title463","v":"Total capital cost (USD)"},null,{"$f":"SUM(D35:D37)","v":{"$error":"#DIV/0!"}},null,{"$f":"SUM(F35:F37)","v":{"$error":"#DIV/0!"}},null,null,null,null,null,null,null,null,null,null,null,null,null,null,null,null,null,null,1]
[null,null,null,null,null,null,null,null,null,null,null,null,null,null,null,null,null,null,null,null,null,null,null,null,1]
[null,null,null,null,null,null,null,null,null,null,null,null,null,null,null,null,null,null,null,null,null,null,null,null,1]
[null,{"$f":"title446","v":"Operating Year"},null,{"$f":"title464","v":"Appraisal"},1,2,3,4,5,6,7,8,9,10,11,12,13,14,15,16,17,18,19,20,1]
[null,{"$f":"title467","v":"Annual operating and maintenance cost "},null,null,null,null,null,null,null,null,null,null,null,null,null,null,null,null,null,null,null,null,null,null,1]
["h44",{"$f":"title468","v":"Sub-total inputs cost (USD)"},null,{"$f":"INDIRECT(\"COST_PS1!\"&$A$43)","v":{"$error":"#DIV/0!"}},{"$f":"INDIRECT(\"COST_PS1!\"&$A$43)","v":{"$error":"#DIV/0!"}},{"$error":"#DIV/0!"},{"$error":"#DIV/0!"},{"$error":"#DIV/0!"},{"$error":"#DIV/0!"},{"$error":"#DIV/0!"},{"$error":"#DIV/0!"},{"$error":"#DIV/0!"},{"$error":"#DIV/0!"},{"$error":"#DIV/0!"},{"$error":"#DIV/0!"},{"$error":"#DIV/0!"},{"$error":"#DIV/0!"},{"$error":"#DIV/0!"},{"$error":"#DIV/0!"},{"$error":"#DIV/0!"},{"$error":"#DIV/0!"},{"$error":"#DIV/0!"},{"$error":"#DIV/0!"},{"$error":"#DIV/0!"},1]
[]
[null,{"$f":"title469","v":"Sub-total operating cost (USD)"},null,{"$f":"D46+D47+D48","v":{"$error":"#DIV/0!"}},{"$f":"E46+E47+E48","v":{"$error":"#DIV/0!"}},{"$f":"F46+F47+F48","v":{"$error":"#DIV/0!"}},{"$error":"#DIV/0!"},{"$error":"#DIV/0!"},{"$error":"#DIV/0!"},{"$error":"#DIV/0!"},{"$error":"#DIV/0!"},{"$error":"#DIV/0!"},{"$error":"#DIV/0!"},{"$error":"#DIV/0!"},{"$error":"#DIV/0!"},{"$error":"#DIV/0!"},{"$error":"#DIV/0!"},{"$error":"#DIV/0!"},{"$error":"#DIV/0!"},{"$error":"#DIV/0!"},{"$error":"#DIV/0!"},{"$error":"#DIV/0!"},{"$error":"#DIV/0!"},{"$error":"#DIV/0!"},1]
["i51",{"$f":"title470","v":"Labour cost & Misc. (USD)"},null,{"$f":"INDIRECT(\"COST_PS1!\"&$A46)","v":0},{"$f":"+D46","v":0},{"$f":"+E46","v":0},0,0,0,0,0,0,0,0,0,0,0,0,0,0,0,0,0,0,1]
["i87",{"$f":"title151","v":"Plant overhead"},null,{"$f":"INDIRECT(\"COST_PS1!\"&$A47)","v":{"$error":"#DIV/0!"}},{"$f":"D47","v":{"$error":"#DIV/0!"}},{"$error":"#DIV/0!"},{"$error":"#DIV/0!"},{"$error":"#DIV/0!"},{"$error":"#DIV/0!"},{"$error":"#DIV/0!"},{"$error":"#DIV/0!"},{"$error":"#DIV/0!"},{"$error":"#DIV/0!"},{"$error":"#DIV/0!"},{"$error":"#DIV/0!"},{"$error":"#DIV/0!"},{"$error":"#DIV/0!"},{"$error":"#DIV/0!"},{"$error":"#DIV/0!"},{"$error":"#DIV/0!"},{"$error":"#DIV/0!"},{"$error":"#DIV/0!"},{"$error":"#DIV/0!"},{"$error":"#DIV/0!"},1]
["i88",{"$f":"title288","v":"General and administrative cost"},null,{"$f":"INDIRECT(\"COST_PS1!\"&$A48)","v":{"$error":"#DIV/0!"}},{"$error":"#DIV/0!"},{"$error":"#DIV/0!"},{"$error":"#DIV/0!"},{"$error":"#DIV/0!"},{"$error":"#DIV/0!"},{"$error":"#DIV/0!"},{"$error":"#DIV/0!"},{"$error":"#DIV/0!"},{"$error":"#DIV/0!"},{"$error":"#DIV/0!"},{"$error":"#DIV/0!"},{"$error":"#DIV/0!"},{"$error":"#DIV/0!"},{"$error":"#DIV/0!"},{"$error":"#DIV/0!"},{"$error":"#DIV/0!"},{"$error":"#DIV/0!"},{"$error":"#DIV/0!"},{"$error":"#DIV/0!"},{"$error":"#DIV/0!"},1]
["i82",{"$f":"title471","v":"Sub-total maintenance cost (USD)"},null,{"$f":"INDIRECT(\"COST_PS1!\"&$A49)","v":{"$error":"#DIV/0!"}},{"$error":"#DIV/0!"},{"$error":"#DIV/0!"},{"$error":"#DIV/0!"},{"$error":"#DIV/0!"},{"$error":"#DIV/0!"},{"$error":"#DIV/0!"},{"$error":"#DIV/0!"},{"$error":"#DIV/0!"},{"$error":"#DIV/0!"},{"$error":"#DIV/0!"},{"$error":"#DIV/0!"},{"$error":"#DIV/0!"},{"$error":"#DIV/0!"},{"$error":"#DIV/0!"},{"$error":"#DIV/0!"},{"$error":"#DIV/0!"},{"$error":"#DIV/0!"},{"$error":"#DIV/0!"},{"$error":"#DIV/0!"},{"$error":"#DIV/0!"},1]
[null,null,null,null,null,null,null,null,null,null,null,null,null,null,null,null,null,null,null,null,null,null,null,null,1]
["i82",{"$f":"title472","v":"Sub-total of annual fixed cost (USD)"},null,{"$f":"F38","v":{"$error":"#DIV/0!"}},{"$f":"D51","v":{"$error":"#DIV/0!"}},{"$f":"E51","v":{"$error":"#DIV/0!"}},{"$error":"#DIV/0!"},{"$error":"#DIV/0!"},{"$error":"#DIV/0!"},{"$error":"#DIV/0!"},{"$error":"#DIV/0!"},{"$error":"#DIV/0!"},{"$error":"#DIV/0!"},{"$error":"#DIV/0!"},{"$error":"#DIV/0!"},{"$error":"#DIV/0!"},{"$error":"#DIV/0!"},{"$error":"#DIV/0!"},{"$error":"#DIV/0!"},{"$error":"#DIV/0!"},{"$error":"#DIV/0!"},{"$error":"#DIV/0!"},{"$error":"#DIV/0!"},{"$error":"#DIV/0!"},1]
[null,null,null,null,null,null,null,null,null,null,null,null,null,null,null,null,null,null,null,null,null,null,null,null,1]
["H73",{"$f":"title473","v":"Sub-total of storage cost (USD)"},null,{"$f":"INDIRECT(\"COST_PS1!\"&$A53)","v":0},0,0,0,0,0,0,0,0,0,0,0,0,0,0,0,0,0,0,0,0,1]
[null,null,null,null,null,null,null,null,null,null,null,null,null,null,null,null,null,null,null,null,null,null,null,null,1]
[null,{"$f":"title474","v":"Total operation and maintenance cost (USD)"},null,{"$f":"D43+D45+D49+D51+D53","v":{"$error":"#DIV/0!"}},{"$f":"E43+E45+E49+E51+E53","v":{"$error":"#DIV/0!"}},{"$error":"#DIV/0!"},{"$error":"#DIV/0!"},{"$error":"#DIV/0!"},{"$error":"#DIV/0!"},{"$error":"#DIV/0!"},{"$error":"#DIV/0!"},{"$error":"#DIV/0!"},{"$error":"#DIV/0!"},{"$error":"#DIV/0!"},{"$error":"#DIV/0!"},{"$error":"#DIV/0!"},{"$error":"#DIV/0!"},{"$error":"#DIV/0!"},{"$error":"#DIV/0!"},{"$error":"#DIV/0!"},{"$error":"#DIV/0!"},{"$error":"#DIV/0!"},{"$error":"#DIV/0!"},{"$error":"#DIV/0!"},1]
[null,null,null,null,null,null,null,null,null,null,null,null,null,null,null,null,null,null,null,null,null,null,null,null,1]
[null,null,null,null,null,null,null,null,null,null,null,null,null,null,null,null,null,null,null,null,null,null,null,null,1]
[null,{"$f":"title155","v":"Financial parameters"},null,null,null,null,null,null,null,null,null,null,null,null,null,null,null,null,null,null,null,null,null,null,1]
[null,{"$f":"title446","v":"Operating Year"},null,{"$f":"title464","v":"Appraisal"},1,2,3,4,5,6,7,8,9,10,11,12,13,14,15,16,17,18,19,20,1]
[null,{"$f":"title161&\"(%)\"","v":"Discount rate(%)"},null,{"$f":"'Data entry needs'!$L$118","v":0},null,null,null,null,null,null,null,null,null,null,null,null,null,null,null,null,null,null,null,null,1]
[null,{"$f":"title475","v":"Loan ratio (%)"},null,{"$f":"'Data entry needs'!$F$118","v":0},null,null,null,null,null,null,null,null,null,null,null,null,null,null,null,null,null,null,null,null,1]
[null,null,null,null,null,null,null,null,null,null,null,null,null,null,null,null,null,null,null,null,null,null,null,null,1]
[null,null,null,null,null,null,null,null,null,null,null,null,null,null,null,null,null,null,null,null,null,null,null,null,1]
[null,{"$f":"title446","v":"Operating Year"},null,{"$f":"title464","v":"Appraisal"},1,2,3,4,5,6,7,8,9,10,11,12,13,14,15,16,17,18,19,20,1]
[null,{"$f":"title476","v":"Loan amount (USD)"},null,{"$f":"D61*(D38)","v":{"$error":"#DIV/0!"}},null,null,null,null,null,null,null,null,null,null,null,null,null,null,null,null,null,null,null,null,1]
[null,{"$f":"title162&\"(%)\"","v":"Loan interest rate(%)"},null,{"$f":"'Data entry needs'!$L$119","v":0},null,null,null,null,null,null,null,null,null,null,null,null,null,null,null,null,null,null,null,null,1]
[null,{"$f":"title165","v":"Loan term (years)"},null,{"$f":"D26","v":0},null,null,null,null,null,null,null,null,null,null,null,null,null,null,null,null,null,null,null,null,1]
[null,{"$f":"title315&\" (\"&title318&\")\"","v":"Loan payment (USD/month)"},null,{"$f":"(PMT($D$66/12,($D$67*12),$D$65))","v":{"$error":"#DIV/0!"}}]
[null,{"$f":"title315&\" (\"&title319&\")\"","v":"Loan payment (USD/year)"},null,{"$f":"D68*12","v":{"$error":"#DIV/0!"}},null,null,null,null,null,null,null,null,null,null,null,null,null,null,null,null,null,null,null,null,1]
[null,{"$f":"title315&\" (\"&title319&\")\"","v":"Loan payment (USD/year)"},null,null,{"$f":"IF(E64<=$D$67,$D$68*12,0)","v":0},{"$f":"IF(F64<=$D$67,$D$68*12,0)","v":0},0,0,0,0,0,0,0,0,0,0,0,0,0,0,0,0,0,0,1]
[null,{"$f":"title477","v":"Total loan payment (USD)"},null,{"$f":"SUM(E70:X70)","v":0},null,null,null,null,null,null,null,null,null,null,null,null,null,null,null,null,null,null,null,null,1]
[null,{"$f":"title478","v":"Loan interest payment (USD)"},null,{"$f":"D71+D65","v":{"$error":"#DIV/0!"}},{"$f":"title479","v":"loan interest payment for project lifetime"},null,null,null,null,null,null,null,null,null,null,null,null,null,null,null,null,null,null,null,1]
[null,null,null,null,null,null,null,null,null,null,null,null,null,null,null,null,null,null,null,null,null,null,null,null,1]
[null,{"$f":"title285","v":"Depreciation"},null,null,null,null,null,null,null,null,null,null,null,null,null,null,null,null,null,null,null,null,null,null,1]
[null,{"$f":"title446","v":"Operating Year"},null,{"$f":"title464","v":"Appraisal"},1,2,3,4,5,6,7,8,9,10,11,12,13,14,15,16,17,18,19,20,1]
[null,{"$f":"title480","v":"Depreciation method"},null,{"$f":"title482","v":"Straight-line"},null,null,null,null,null,null,null,null,null,null,null,null,null,null,null,null,null,null,null,null,1]
[null,{"$f":"title481","v":"Total depreciation (USD)"},null,null,{"$f":"$F$38","v":{"$error":"#DIV/0!"}},{"$f":"$F$38","v":{"$error":"#DIV/0!"}},{"$error":"#DIV/0!"},{"$error":"#DIV/0!"},{"$error":"#DIV/0!"},{"$error":"#DIV/0!"},{"$error":"#DIV/0!"},{"$error":"#DIV/0!"},{"$error":"#DIV/0!"},{"$error":"#DIV/0!"},{"$error":"#DIV/0!"},{"$error":"#DIV/0!"},{"$error":"#DIV/0!"},{"$error":"#DIV/0!"},{"$error":"#DIV/0!"},{"$error":"#DIV/0!"},{"$error":"#DIV/0!"},{"$error":"#DIV/0!"},{"$error":"#DIV/0!"},{"$error":"#DIV/0!"},1]
[null,null,null,null,null,null,null,null,null,null,null,null,null,null,null,null,null,null,null,null,null,null,null,null,1]
[null,{"$f":"title483","v":"Base case Project Summary"},null,null,null,null,null,null,null,null,null,null,null,null,null,null,null,null,null,null,null,null,null,null,1]
[null,{"$f":"title484","v":"Summary of this project"},null,null,null,null,null,null,null,null,null,null,null,null,null,null,null,null,null,null,null,null,null,null,1]
[null,{"$f":"title446","v":"Operating Year"},null,{"$f":"title464","v":"Appraisal"},1,2,3,4,5,6,7,8,9,10,11,12,13,14,15,16,17,18,19,20,1]
[null,{"$f":"title485","v":"Total revenue (USD)"},null,null,{"$f":"E24","v":{"$error":"#DIV/0!"}},{"$f":"F24","v":{"$error":"#DIV/0!"}},{"$error":"#DIV/0!"},{"$error":"#DIV/0!"},{"$error":"#DIV/0!"},{"$error":"#DIV/0!"},{"$error":"#DIV/0!"},{"$error":"#DIV/0!"},{"$error":"#DIV/0!"},{"$error":"#DIV/0!"},{"$error":"#DIV/0!"},{"$error":"#DIV/0!"},{"$error":"#DIV/0!"},{"$error":"#DIV/0!"},{"$error":"#DIV/0!"},{"$error":"#DIV/0!"},{"$error":"#DIV/0!"},{"$error":"#DIV/0!"},{"$error":"#DIV/0!"},{"$error":"#DIV/0!"},1]
[null,{"$f":"title463","v":"Total capital cost (USD)"},null,{"$f":"-D38*(1-$D$61)","v":{"$error":"#DIV/0!"}},null,null,null,null,null,null,null,null,null,null,null,null,null,null,null,null,null,null,null,null,1]
[null,{"$f":"title486","v":"Total operating and maintenance cost (USD)"},null,null,{"$f":"-E55+E51","v":{"$error":"#DIV/0!"}},{"$f":"-F55+F51","v":{"$error":"#DIV/0!"}},{"$f":"-G55+G51","v":{"$error":"#DIV/0!"}},{"$error":"#DIV/0!"},{"$error":"#DIV/0!"},{"$error":"#DIV/0!"},{"$error":"#DIV/0!"},{"$error":"#DIV/0!"},{"$error":"#DIV/0!"},{"$error":"#DIV/0!"},{"$error":"#DIV/0!"},{"$error":"#DIV/0!"},{"$error":"#DIV/0!"},{"$error":"#DIV/0!"},{"$error":"#DIV/0!"},{"$error":"#DIV/0!"},{"$error":"#DIV/0!"},{"$error":"#DIV/0!"},{"$error":"#DIV/0!"},{"$error":"#DIV/0!"},1]
[null,{"$f":"title487","v":"Loan payment (USD)"},null,null,{"$f":"+E70","v":0},{"$f":"+F70","v":0},{"$f":"+G70","v":0},0,0,0,0,0,0,0,0,0,0,0,0,0,0,0,0,0,1]
[null,{"$f":"title488","v":"Cash flow with loan (USD)"},null,{"$f":"SUM(D82:D85)","v":{"$error":"#DIV/0!"}},{"$f":"SUM(E82:E85)","v":{"$error":"#DIV/0!"}},{"$f":"SUM(F82:F85)","v":{"$error":"#DIV/0!"}},{"$f":"SUM(G82:G85)","v":{"$error":"#DIV/0!"}},{"$error":"#DIV/0!"},{"$error":"#DIV/0!"},{"$error":"#DIV/0!"},{"$error":"#DIV/0!"},{"$error":"#DIV/0!"},{"$error":"#DIV/0!"},{"$error":"#DIV/0!"},{"$error":"#DIV/0!"},{"$error":"#DIV/0!"},{"$error":"#DIV/0!"},{"$error":"#DIV/0!"},{"$error":"#DIV/0!"},{"$error":"#DIV/0!"},{"$error":"#DIV/0!"},{"$error":"#DIV/0!"},{"$error":"#DIV/0!"},{"$error":"#DIV/0!"},1]
[null,{"$f":"title489","v":"Cash flow without loan (USD)"},null,{"$f":"-D38","v":{"$error":"#DIV/0!"}},{"$f":"+E82+E84","v":{"$error":"#DIV/0!"}},{"$f":"+F82+F84","v":{"$error":"#DIV/0!"}},{"$f":"+G82+G84","v":{"$error":"#DIV/0!"}},{"$error":"#DIV/0!"},{"$error":"#DIV/0!"},{"$error":"#DIV/0!"},{"$error":"#DIV/0!"},{"$error":"#DIV/0!"},{"$error":"#DIV/0!"},{"$error":"#DIV/0!"},{"$error":"#DIV/0!"},{"$error":"#DIV/0!"},{"$error":"#DIV/0!"},{"$error":"#DIV/0!"},{"$error":"#DIV/0!"},{"$error":"#DIV/0!"},{"$error":"#DIV/0!"},{"$error":"#DIV/0!"},{"$error":"#DIV/0!"},{"$error":"#DIV/0!"},1]
[null,{"$f":"title446","v":"Operating Year"},null,{"$f":"title464","v":"Appraisal"},1,2,3,4,5,6,7,8,9,10,11,12,13,14,15,16,17,18,19,20,1]
[null,{"$f":"title490","v":"Cumulative value of Net Profit"},null,{"$f":"D86","v":{"$error":"#DIV/0!"}},{"$f":"D89+(E86)","v":{"$error":"#DIV/0!"}},{"$f":"E89+(F86)","v":{"$error":"#DIV/0!"}},{"$error":"#DIV/0!"},{"$error":"#DIV/0!"},{"$error":"#DIV/0!"},{"$error":"#DIV/0!"},{"$error":"#DIV/0!"},{"$error":"#DIV/0!"},{"$error":"#DIV/0!"},{"$error":"#DIV/0!"},{"$error":"#DIV/0!"},{"$error":"#DIV/0!"},{"$error":"#DIV/0!"},{"$error":"#DIV/0!"},{"$error":"#DIV/0!"},{"$error":"#DIV/0!"},{"$error":"#DIV/0!"},{"$error":"#DIV/0!"},{"$error":"#DIV/0!"},{"$error":"#DIV/0!"},1]
[null,null,null,null,null,null,null,null,null,null,null,null,null,null,null,null,null,null,null,null,null,null,null,null,1]
[null,{"$f":"title491","v":"Financial Analysis Result"},null,null,null,null,null,null,null,null,null,null,null,null,null,null,null,null,null,null,null,null,null,null,1]
[null,null,null,null,null,null,null,null,null,null,null,null,null,null,null,null,null,null,null,null,null,null,null,null,1]
[null,{"$f":"title493","v":"Net Present Value (NPV) (USD)"},null,{"$f":"NPV(D60,E86:AA86)+D86","v":{"$error":"#DIV/0!"}},null,null,null,null,null,null,null,null,null,null,null,null,null,null,null,null,null,null,null,null,1]
[null,{"$f":"title494","v":"Internal Rate of Return (IRR) (%) - without loan"},null,{"$f":"IF(D93<0,title492,IRR(D87:AA87,0.001))","v":{"$error":"#DIV/0!"}},null,null,null,null,null,null,null,null,null,null,null,null,null,null,null,null,null,null,null,null,1]
[null,{"$f":"title495","v":"Internal Rate of Return (IRR) (%) - with loan"},null,{"$f":"IF(D94<0,title492,IRR(D86:AA86,0.001))","v":{"$error":"#DIV/0!"}},null,null,null,null,null,null,null,null,null,null,null,null,null,null,null,null,null,null,null,null,1]
[null,null,null,null,null,null,null,null,null,null,null,null,null,null,null,null,null,null,null,null,null,null,null,null,1]
[null,null,null,null,null,null,null,null,null,null,null,null,null,null,null,null,null,null,null,null,null,null,null,null,1]

{"sheet":"FA_SIZE3_PS1","index":22,"n_rows":97,"n_cols":25,"rows_kept":97,"cut":false,"hidden":true,"merged":[[1,1,1,23]]}
[]
[null,{"$f":"title496&\" 3\"","v":"FINANCIAL EVALUATION OF BIOGAS PRODUCTION SIZE 3"}]
[]
[null,{"$f":"title445","v":"Revenues of biomass production and use system"}]
[null,{"$f":"title446","v":"Operating Year"},null,0,1,2,3,4,5,6,7,8,9,10,11,12,13,14,15,16,17,18,19,20,1]
[null,null,null,null,null,null,null,null,null,null,null,null,null,null,null,null,null,null,null,null,null,null,null,null,1]
["AF130",{"$f":"title447","v":"Biogas production capacity (m3 Biogas per year)"},null,{"$f":"INDIRECT(\"Planner_PS1!$\"&$A$7)*'Data entry needs'!$L$100","v":{"$error":"#DIV/0!"}},{"$f":"D7","v":{"$error":"#DIV/0!"}},{"$f":"E7","v":{"$error":"#DIV/0!"}},{"$f":"F7","v":{"$error":"#DIV/0!"}},{"$error":"#DIV/0!"},{"$error":"#DIV/0!"},{"$error":"#DIV/0!"},{"$error":"#DIV/0!"},{"$error":"#DIV/0!"},{"$error":"#DIV/0!"},{"$error":"#DIV/0!"},{"$error":"#DIV/0!"},{"$error":"#DIV/0!"},{"$error":"#DIV/0!"},{"$error":"#DIV/0!"},{"$error":"#DIV/0!"},{"$error":"#DIV/0!"},{"$error":"#DIV/0!"},{"$error":"#DIV/0!"},{"$error":"#DIV/0!"},{"$error":"#DIV/0!"},1]
[]
["K107",{"$f":"title448","v":"Heat Available for Selling (MJ/year)"},null,{"$f":"IF(INDIRECT(\"COST_PS1!\"&$A$9)<0,0,INDIRECT(\"COST_PS1!\"&$A$9))","v":{"$error":"#DIV/0!"}},{"$f":"D9","v":{"$error":"#DIV/0!"}},{"$f":"E9","v":{"$error":"#DIV/0!"}},{"$error":"#DIV/0!"},{"$error":"#DIV/0!"},{"$error":"#DIV/0!"},{"$error":"#DIV/0!"},{"$error":"#DIV/0!"},{"$error":"#DIV/0!"},{"$error":"#DIV/0!"},{"$error":"#DIV/0!"},{"$error":"#DIV/0!"},{"$error":"#DIV/0!"},{"$error":"#DIV/0!"},{"$error":"#DIV/0!"},{"$error":"#DIV/0!"},{"$error":"#DIV/0!"},{"$error":"#DIV/0!"},{"$f":"U9","v":{"$error":"#DIV/0!"}},{"$error":"#DIV/0!"},{"$error":"#DIV/0!"},1]
["K106",{"$f":"title449","v":"Electricity Available for Selling (kWh/year)"},null,{"$f":"IF(INDIRECT(\"COST_PS1!\"&$A$10)<0,0,INDIRECT(\"COST_PS1!\"&$A$10))","v":{"$error":"#DIV/0!"}},{"$f":"D10","v":{"$error":"#DIV/0!"}},{"$error":"#DIV/0!"},{"$error":"#DIV/0!"},{"$error":"#DIV/0!"},{"$error":"#DIV/0!"},{"$error":"#DIV/0!"},{"$error":"#DIV/0!"},{"$error":"#DIV/0!"},{"$error":"#DIV/0!"},{"$error":"#DIV/0!"},{"$error":"#DIV/0!"},{"$error":"#DIV/0!"},{"$error":"#DIV/0!"},{"$error":"#DIV/0!"},{"$error":"#DIV/0!"},{"$error":"#DIV/0!"},{"$error":"#DIV/0!"},{"$error":"#DIV/0!"},{"$error":"#DIV/0!"},{"$error":"#DIV/0!"},1]
["AD166",{"$f":"title450","v":"Biomethane Production (m3 Methane/year)"},null,{"$f":"IF(OR('Biogas Use Selection'!$P$67=4,'Biogas Use Selection'!$P$67=5),INDIRECT(\"Planner_PS1!$\"&$A$11),0)","v":0},{"$f":"D11","v":0},0,0,0,0,0,0,0,0,0,0,0,0,0,0,0,0,0,0,0,1]
[null,{"$f":"title451","v":"Biogas Available for Selling (m3/year)"},null,{"$f":"IF('Biogas Use Selection'!$P$67=2,$D$7,0)","v":0},{"$f":"D12","v":0},0,0,0,0,0,0,0,0,0,0,0,0,0,0,0,0,0,0,0]
["AD178",{"$f":"title452","v":"Digestate Production (t/year)"},null,{"$f":"INDIRECT(\"Planner_PS1!$\"&$A$13)","v":{"$error":"#DIV/0!"}},{"$f":"D13","v":{"$error":"#DIV/0!"}},{"$error":"#DIV/0!"},{"$error":"#DIV/0!"},{"$error":"#DIV/0!"},{"$error":"#DIV/0!"},{"$error":"#DIV/0!"},{"$error":"#DIV/0!"},{"$error":"#DIV/0!"},{"$error":"#DIV/0!"},{"$error":"#DIV/0!"},{"$error":"#DIV/0!"},{"$error":"#DIV/0!"},{"$error":"#DIV/0!"},{"$error":"#DIV/0!"},{"$error":"#DIV/0!"},{"$error":"#DIV/0!"},{"$error":"#DIV/0!"},{"$error":"#DIV/0!"},{"$error":"#DIV/0!"},{"$error":"#DIV/0!"}]
[]
[null,{"$f":"title265","v":"Operating hours per year"},null,{"$f":"COST_PS1!$G$35","v":0},{"$f":"D15","v":0},{"$f":"E15","v":0},0,0,0,0,0,0,0,0,0,0,0,0,0,0,0,0,0,0,1]
[null,null,null,null,null,null,null,null,null,null,null,null,null,null,null,null,null,null,null,null,null,null,null,null,1]
[1,{"$f":"title137&\" (USD/kWh)\"","v":"Electricity Selling Price (USD/kWh)"},null,{"$f":"IF($A17=1,'Data entry needs'!$F$103,0)","v":0},null,null,null,null,null,null,null,null,null,null,null,null,null,null,null,null,null,null,null,null,1]
[1,{"$f":"title138&\" (USD/GJ)\"","v":"Heat Selling Price (USD/GJ)"},null,{"$f":"IF($A18=1,'Data entry needs'!$F$104,0)","v":0}]
[1,{"$f":"title453","v":"Biogas Selling Price (USD/m3)"},null,{"$f":"IF($A19=1,'Data entry needs'!$F$105,0)","v":0}]
[1,{"$f":"title454","v":"Biomethane Selling Price (USD/m3)"},null,{"$f":"IF($A20=1,'Data entry needs'!$L$103,0)","v":0}]
[1,{"$f":"title455","v":"Digestate Sellig Price (USD/t)"},null,{"$f":"'Data entry needs'!$L$104","v":0}]
[]
[null,null,null,null,null,null,null,null,null,null,null,null,null,null,null,null,null,null,null,null,null,null,null,null,1]
[null,{"$f":"title456","v":"Annual Income (USD per year)"},null,{"$f":"$D$18*D9+D10*$D$17+D12*$D$19+D11*$D$20+$D$21*D13","v":{"$error":"#DIV/0!"}},{"$f":"$D$18*E9+E10*$D$17+E12*$D$19+E11*$D$20+$D$21*E13","v":{"$error":"#DIV/0!"}},{"$f":"$D$18*F9+F10*$D$17+F12*$D$19+F11*$D$20+$D$21*F13","v":{"$error":"#DIV/0!"}},{"$error":"#DIV/0!"},{"$error":"#DIV/0!"},{"$error":"#DIV/0!"},{"$error":"#DIV/0!"},{"$error":"#DIV/0!"},{"$error":"#DIV/0!"},{"$error":"#DIV/0!"},{"$error":"#DIV/0!"},{"$error":"#DIV/0!"},{"$error":"#DIV/0!"},{"$error":"#DIV/0!"},{"$error":"#DIV/0!"},{"$error":"#DIV/0!"},{"$error":"#DIV/0!"},{"$error":"#DIV/0!"},{"$error":"#DIV/0!"},{"$error":"#DIV/0!"},{"$error":"#DIV/0!"},1]
[null,null,null,null,null,null,null,null,null,null,null,null,null,null,null,null,null,null,null,null,null,null,null,null,1]
[null,{"$f":"title457","v":"Lifespan of civil work (years)"},null,{"$f":"'Data entry needs'!$L$120","v":0},null,null,null,null,null,null,null,null,null,null,null,null,null,null,null,null,null,null,null,null,1]
[null,{"$f":"title458","v":"Lifespan of charcoal system (years)"},null,{"$f":"'Data entry needs'!$L$120","v":0},null,null,null,null,null,null,null,null,null,null,null,null,null,null,null,null,null,null,null,null,1]
[null,{"$f":"title459","v":"Project lifetime (years)"},null,{"$f":"'Data entry needs'!$L$120","v":0},null,null,null,null,null,null,null,null,null,null,null,null,null,null,null,null,null,null,null,null,1]
[null,null,null,null,null,null,null,null,null,null,null,null,null,null,null,null,null,null,null,null,null,null,null,null,1]
[null,null,null,null,null,null,null,null,null,null,null,null,null,null,null,null,null,null,null,null,null,null,null,null,1]
[null,{"$f":"title460","v":"Capital and operating cost of biogas system "},null,null,null,null,null,null,null,null,null,null,null,null,null,null,null,null,null,null,null,null,null,null,1]
[null,null,null,null,null,null,null,null,null,null,null,null,null,null,null,null,null,null,null,null,null,null,null,null,1]
[null,{"$f":"title446","v":"Operating Year"},null,{"$f":"title464","v":"Appraisal"},{"$f":"title465","v":"Project period (years)"},{"$f":"title466","v":"per year"},null,null,null,null,null,null,null,null,null,null,null,null,null,null,null,null,null,null,1]
[null,{"$f":"title461","v":"Capital cost (USD)"},null,"Total",null,null,null,null,null,null,null,null,null,null,null,null,null,null,null,null,null,null,null,null,1]
["J77",{"$f":"title280","v":"Equipments"},null,{"$f":"INDIRECT(\"COST_PS1!\"&$A35)","v":{"$error":"#DIV/0!"}},{"$f":"+D26","v":0},{"$f":"D35/E35","v":{"$error":"#DIV/0!"}},null,null,null,null,null,null,null,null,null,null,null,null,null,null,null,null,null,null,1]
["J78",{"$f":"title281","v":"Building"},null,{"$f":"INDIRECT(\"COST_PS1!\"&$A36)","v":{"$error":"#DIV/0!"}},{"$f":"+D27","v":0},{"$f":"D36/E36","v":{"$error":"#DIV/0!"}},null,null,null,null,null,null,null,null,null,null,null,null,null,null,null,null,null,null,1]
["J79",{"$f":"title462","v":"Installation"},null,{"$f":"INDIRECT(\"COST_PS1!\"&$A37)","v":{"$error":"#DIV/0!"}},{"$f":"+D28","v":0},{"$f":"D37/E37","v":{"$error":"#DIV/0!"}},null,null,null,null,null,null,null,null,null,null,null,null,null,null,null,null,null,null,1]
[null,{"$f":"title463","v":"Total capital cost (USD)"},null,{"$f":"SUM(D35:D37)","v":{"$error":"#DIV/0!"}},null,{"$f":"SUM(F35:F37)","v":{"$error":"#DIV/0!"}},null,null,null,null,null,null,null,null,null,null,null,null,null,null,null,null,null,null,1]
[null,null,null,null,null,null,null,null,null,null,null,null,null,null,null,null,null,null,null,null,null,null,null,null,1]
[null,null,null,null,null,null,null,null,null,null,null,null,null,null,null,null,null,null,null,null,null,null,null,null,1]
[null,{"$f":"title446","v":"Operating Year"},null,{"$f":"title464","v":"Appraisal"},1,2,3,4,5,6,7,8,9,10,11,12,13,14,15,16,17,18,19,20,1]
[null,{"$f":"title467","v":"Annual operating and maintenance cost "},null,null,null,null,null,null,null,null,null,null,null,null,null,null,null,null,null,null,null,null,null,null,1]
["J44",{"$f":"title468","v":"Sub-total inputs cost (USD)"},null,{"$f":"INDIRECT(\"COST_PS1!\"&$A$43)","v":{"$error":"#DIV/0!"}},{"$f":"INDIRECT(\"COST_PS1!\"&$A$43)","v":{"$error":"#DIV/0!"}},{"$error":"#DIV/0!"},{"$error":"#DIV/0!"},{"$error":"#DIV/0!"},{"$error":"#DIV/0!"},{"$error":"#DIV/0!"},{"$error":"#DIV/0!"},{"$error":"#DIV/0!"},{"$error":"#DIV/0!"},{"$error":"#DIV/0!"},{"$error":"#DIV/0!"},{"$error":"#DIV/0!"},{"$error":"#DIV/0!"},{"$error":"#DIV/0!"},{"$error":"#DIV/0!"},{"$error":"#DIV/0!"},{"$error":"#DIV/0!"},{"$error":"#DIV/0!"},{"$error":"#DIV/0!"},{"$error":"#DIV/0!"},1]
[]
[null,{"$f":"title469","v":"Sub-total operating cost (USD)"},null,{"$f":"D46+D47+D48","v":{"$error":"#DIV/0!"}},{"$f":"E46+E47+E48","v":{"$error":"#DIV/0!"}},{"$f":"F46+F47+F48","v":{"$error":"#DIV/0!"}},{"$error":"#DIV/0!"},{"$error":"#DIV/0!"},{"$error":"#DIV/0!"},{"$error":"#DIV/0!"},{"$error":"#DIV/0!"},{"$error":"#DIV/0!"},{"$error":"#DIV/0!"},{"$error":"#DIV/0!"},{"$error":"#DIV/0!"},{"$error":"#DIV/0!"},{"$error":"#DIV/0!"},{"$error":"#DIV/0!"},{"$error":"#DIV/0!"},{"$error":"#DIV/0!"},{"$error":"#DIV/0!"},{"$error":"#DIV/0!"},{"$error":"#DIV/0!"},{"$error":"#DIV/0!"},1]
["k51",{"$f":"title470","v":"Labour cost & Misc. (USD)"},null,{"$f":"INDIRECT(\"COST_PS1!\"&$A46)","v":0},{"$f":"+D46","v":0},{"$f":"+E46","v":0},0,0,0,0,0,0,0,0,0,0,0,0,0,0,0,0,0,0,1]
["k87",{"$f":"title151","v":"Plant overhead"},null,{"$f":"INDIRECT(\"COST_PS1!\"&$A47)","v":{"$error":"#DIV/0!"}},{"$f":"D47","v":{"$error":"#DIV/0!"}},{"$error":"#DIV/0!"},{"$error":"#DIV/0!"},{"$error":"#DIV/0!"},{"$error":"#DIV/0!"},{"$error":"#DIV/0!"},{"$error":"#DIV/0!"},{"$error":"#DIV/0!"},{"$error":"#DIV/0!"},{"$error":"#DIV/0!"},{"$error":"#DIV/0!"},{"$error":"#DIV/0!"},{"$error":"#DIV/0!"},{"$error":"#DIV/0!"},{"$error":"#DIV/0!"},{"$error":"#DIV/0!"},{"$error":"#DIV/0!"},{"$error":"#DIV/0!"},{"$error":"#DIV/0!"},{"$error":"#DIV/0!"},1]
["k88",{"$f":"title288","v":"General and administrative cost"},null,{"$f":"INDIRECT(\"COST_PS1!\"&$A48)","v":{"$error":"#DIV/0!"}},{"$error":"#DIV/0!"},{"$error":"#DIV/0!"},{"$error":"#DIV/0!"},{"$error":"#DIV/0!"},{"$error":"#DIV/0!"},{"$error":"#DIV/0!"},{"$error":"#DIV/0!"},{"$error":"#DIV/0!"},{"$error":"#DIV/0!"},{"$error":"#DIV/0!"},{"$error":"#DIV/0!"},{"$error":"#DIV/0!"},{"$error":"#DIV/0!"},{"$error":"#DIV/0!"},{"$error":"#DIV/0!"},{"$error":"#DIV/0!"},{"$error":"#DIV/0!"},{"$error":"#DIV/0!"},{"$error":"#DIV/0!"},{"$error":"#DIV/0!"},1]
["k82",{"$f":"title471","v":"Sub-total maintenance cost (USD)"},null,{"$f":"INDIRECT(\"COST_PS1!\"&$A49)","v":{"$error":"#DIV/0!"}},{"$error":"#DIV/0!"},{"$error":"#DIV/0!"},{"$error":"#DIV/0!"},{"$error":"#DIV/0!"},{"$error":"#DIV/0!"},{"$error":"#DIV/0!"},{"$error":"#DIV/0!"},{"$error":"#DIV/0!"},{"$error":"#DIV/0!"},{"$error":"#DIV/0!"},{"$error":"#DIV/0!"},{"$error":"#DIV/0!"},{"$error":"#DIV/0!"},{"$error":"#DIV/0!"},{"$error":"#DIV/0!"},{"$error":"#DIV/0!"},{"$error":"#DIV/0!"},{"$error":"#DIV/0!"},{"$error":"#DIV/0!"},{"$error":"#DIV/0!"},1]
[null,null,null,null,null,null,null,null,null,null,null,null,null,null,null,null,null,null,null,null,null,null,null,null,1]
["k82",{"$f":"title472","v":"Sub-total of annual fixed cost (USD)"},null,{"$f":"F38","v":{"$error":"#DIV/0!"}},{"$f":"D51","v":{"$error":"#DIV/0!"}},{"$f":"E51","v":{"$error":"#DIV/0!"}},{"$error":"#DIV/0!"},{"$error":"#DIV/0!"},{"$error":"#DIV/0!"},{"$error":"#DIV/0!"},{"$error":"#DIV/0!"},{"$error":"#DIV/0!"},{"$error":"#DIV/0!"},{"$error":"#DIV/0!"},{"$error":"#DIV/0!"},{"$error":"#DIV/0!"},{"$error":"#DIV/0!"},{"$error":"#DIV/0!"},{"$error":"#DIV/0!"},{"$error":"#DIV/0!"},{"$error":"#DIV/0!"},{"$error":"#DIV/0!"},{"$error":"#DIV/0!"},{"$error":"#DIV/0!"},1]
[null,null,null,null,null,null,null,null,null,null,null,null,null,null,null,null,null,null,null,null,null,null,null,null,1]
["J73",{"$f":"title473","v":"Sub-total of storage cost (USD)"},null,{"$f":"INDIRECT(\"COST_PS1!\"&$A53)","v":0},0,0,0,0,0,0,0,0,0,0,0,0,0,0,0,0,0,0,0,0,1]
[null,null,null,null,null,null,null,null,null,null,null,null,null,null,null,null,null,null,null,null,null,null,null,null,1]
[null,{"$f":"title474","v":"Total operation and maintenance cost (USD)"},null,{"$f":"D43+D45+D49+D51+D53","v":{"$error":"#DIV/0!"}},{"$f":"E43+E45+E49+E51+E53","v":{"$error":"#DIV/0!"}},{"$error":"#DIV/0!"},{"$error":"#DIV/0!"},{"$error":"#DIV/0!"},{"$error":"#DIV/0!"},{"$error":"#DIV/0!"},{"$error":"#DIV/0!"},{"$error":"#DIV/0!"},{"$error":"#DIV/0!"},{"$error":"#DIV/0!"},{"$error":"#DIV/0!"},{"$error":"#DIV/0!"},{"$error":"#DIV/0!"},{"$error":"#DIV/0!"},{"$error":"#DIV/0!"},{"$error":"#DIV/0!"},{"$error":"#DIV/0!"},{"$error":"#DIV/0!"},{"$error":"#DIV/0!"},{"$error":"#DIV/0!"},1]
[null,null,null,null,null,null,null,null,null,null,null,null,null,null,null,null,null,null,null,null,null,null,null,null,1]
[null,null,null,null,null,null,null,null,null,null,null,null,null,null,null,null,null,null,null,null,null,null,null,null,1]
[null,{"$f":"title155","v":"Financial parameters"},null,null,null,null,null,null,null,null,null,null,null,null,null,null,null,null,null,null,null,null,null,null,1]
[null,{"$f":"title446","v":"Operating Year"},null,{"$f":"title464","v":"Appraisal"},1,2,3,4,5,6,7,8,9,10,11,12,13,14,15,16,17,18,19,20,1]
[null,{"$f":"title161&\"(%)\"","v":"Discount rate(%)"},null,{"$f":"'Data entry needs'!$L$118","v":0},null,null,null,null,null,null,null,null,null,null,null,null,null,null,null,null,null,null,null,null,1]
[null,{"$f":"title475","v":"Loan ratio (%)"},null,{"$f":"'Data entry needs'!$F$118","v":0},null,null,null,null,null,null,null,null,null,null,null,null,null,null,null,null,null,null,null,null,1]
[null,null,null,null,null,null,null,null,null,null,null,null,null,null,null,null,null,null,null,null,null,null,null,null,1]
[null,null,null,null,null,null,null,null,null,null,null,null,null,null,null,null,null,null,null,null,null,null,null,null,1]
[null,{"$f":"title446","v":"Operating Year"},null,{"$f":"title464","v":"Appraisal"},1,2,3,4,5,6,7,8,9,10,11,12,13,14,15,16,17,18,19,20,1]
[null,{"$f":"title476","v":"Loan amount (USD)"},null,{"$f":"D61*(D38)","v":{"$error":"#DIV/0!"}},null,null,null,null,null,null,null,null,null,null,null,null,null,null,null,null,null,null,null,null,1]
[null,{"$f":"title162&\"(%)\"","v":"Loan interest rate(%)"},null,{"$f":"'Data entry needs'!$L$119","v":0},null,null,null,null,null,null,null,null,null,null,null,null,null,null,null,null,null,null,null,null,1]
[null,{"$f":"title165","v":"Loan term (years)"},null,{"$f":"D26","v":0},null,null,null,null,null,null,null,null,null,null,null,null,null,null,null,null,null,null,null,null,1]
[null,{"$f":"title315&\" (\"&title318&\")\"","v":"Loan payment (USD/month)"},null,{"$f":"(PMT($D$66/12,($D$67*12),$D$65))","v":{"$error":"#DIV/0!"}}]
[null,{"$f":"title315&\" (\"&title319&\")\"","v":"Loan payment (USD/year)"},null,{"$f":"D68*12","v":{"$error":"#DIV/0!"}},null,null,null,null,null,null,null,null,null,null,null,null,null,null,null,null,null,null,null,null,1]
[null,{"$f":"title315&\" (\"&title319&\")\"","v":"Loan payment (USD/year)"},null,null,{"$f":"IF(E64<=$D$67,$D$68*12,0)","v":0},{"$f":"IF(F64<=$D$67,$D$68*12,0)","v":0},0,0,0,0,0,0,0,0,0,0,0,0,0,0,0,0,0,0,1]
[null,{"$f":"title477","v":"Total loan payment (USD)"},null,{"$f":"SUM(E70:X70)","v":0},null,null,null,null,null,null,null,null,null,null,null,null,null,null,null,null,null,null,null,null,1]
[null,{"$f":"title478","v":"Loan interest payment (USD)"},null,{"$f":"D71+D65","v":{"$error":"#DIV/0!"}},{"$f":"title479","v":"loan interest payment for project lifetime"},null,null,null,null,null,null,null,null,null,null,null,null,null,null,null,null,null,null,null,1]
[null,null,null,null,null,null,null,null,null,null,null,null,null,null,null,null,null,null,null,null,null,null,null,null,1]
[null,{"$f":"title285","v":"Depreciation"},null,null,null,null,null,null,null,null,null,null,null,null,null,null,null,null,null,null,null,null,null,null,1]
[null,{"$f":"title446","v":"Operating Year"},null,{"$f":"title464","v":"Appraisal"},1,2,3,4,5,6,7,8,9,10,11,12,13,14,15,16,17,18,19,20,1]
[null,{"$f":"title480","v":"Depreciation method"},null,{"$f":"title482","v":"Straight-line"},null,null,null,null,null,null,null,null,null,null,null,null,null,null,null,null,null,null,null,null,1]
[null,{"$f":"title481","v":"Total depreciation (USD)"},null,null,{"$f":"$F$38","v":{"$error":"#DIV/0!"}},{"$f":"$F$38","v":{"$error":"#DIV/0!"}},{"$error":"#DIV/0!"},{"$error":"#DIV/0!"},{"$error":"#DIV/0!"},{"$error":"#DIV/0!"},{"$error":"#DIV/0!"},{"$error":"#DIV/0!"},{"$error":"#DIV/0!"},{"$error":"#DIV/0!"},{"$error":"#DIV/0!"},{"$error":"#DIV/0!"},{"$error":"#DIV/0!"},{"$error":"#DIV/0!"},{"$error":"#DIV/0!"},{"$error":"#DIV/0!"},{"$error":"#DIV/0!"},{"$error":"#DIV/0!"},{"$error":"#DIV/0!"},{"$error":"#DIV/0!"},1]
[null,null,null,null,null,null,null,null,null,null,null,null,null,null,null,null,null,null,null,null,null,null,null,null,1]
[null,{"$f":"title483","v":"Base case Project Summary"},null,null,null,null,null,null,null,null,null,null,null,null,null,null,null,null,null,null,null,null,null,null,1]
[null,{"$f":"title484","v":"Summary of this project"},null,null,null,null,null,null,null,null,null,null,null,null,null,null,null,null,null,null,null,null,null,null,1]
[null,{"$f":"title446","v":"Operating Year"},null,{"$f":"title464","v":"Appraisal"},1,2,3,4,5,6,7,8,9,10,11,12,13,14,15,16,17,18,19,20,1]
[null,{"$f":"title485","v":"Total revenue (USD)"},null,null,{"$f":"E24","v":{"$error":"#DIV/0!"}},{"$f":"F24","v":{"$error":"#DIV/0!"}},{"$error":"#DIV/0!"},{"$error":"#DIV/0!"},{"$error":"#DIV/0!"},{"$error":"#DIV/0!"},{"$error":"#DIV/0!"},{"$error":"#DIV/0!"},{"$error":"#DIV/0!"},{"$error":"#DIV/0!"},{"$error":"#DIV/0!"},{"$error":"#DIV/0!"},{"$error":"#DIV/0!"},{"$error":"#DIV/0!"},{"$error":"#DIV/0!"},{"$error":"#DIV/0!"},{"$error":"#DIV/0!"},{"$error":"#DIV/0!"},{"$error":"#DIV/0!"},{"$error":"#DIV/0!"},1]
[null,{"$f":"title463","v":"Total capital cost (USD)"},null,{"$f":"-D38*(1-$D$61)","v":{"$error":"#DIV/0!"}},null,null,null,null,null,null,null,null,null,null,null,null,null,null,null,null,null,null,null,null,1]
[null,{"$f":"title486","v":"Total operating and maintenance cost (USD)"},null,null,{"$f":"-E55+E51","v":{"$error":"#DIV/0!"}},{"$f":"-F55+F51","v":{"$error":"#DIV/0!"}},{"$f":"-G55+G51","v":{"$error":"#DIV/0!"}},{"$error":"#DIV/0!"},{"$error":"#DIV/0!"},{"$error":"#DIV/0!"},{"$error":"#DIV/0!"},{"$error":"#DIV/0!"},{"$error":"#DIV/0!"},{"$error":"#DIV/0!"},{"$error":"#DIV/0!"},{"$error":"#DIV/0!"},{"$error":"#DIV/0!"},{"$error":"#DIV/0!"},{"$error":"#DIV/0!"},{"$error":"#DIV/0!"},{"$error":"#DIV/0!"},{"$error":"#DIV/0!"},{"$error":"#DIV/0!"},{"$error":"#DIV/0!"},1]
[null,{"$f":"title487","v":"Loan payment (USD)"},null,null,{"$f":"+E70","v":0},{"$f":"+F70","v":0},{"$f":"+G70","v":0},0,0,0,0,0,0,0,0,0,0,0,0,0,0,0,0,0,1]
[null,{"$f":"title488","v":"Cash flow with loan (USD)"},null,{"$f":"SUM(D82:D85)","v":{"$error":"#DIV/0!"}},{"$f":"SUM(E82:E85)","v":{"$error":"#DIV/0!"}},{"$f":"SUM(F82:F85)","v":{"$error":"#DIV/0!"}},{"$f":"SUM(G82:G85)","v":{"$error":"#DIV/0!"}},{"$error":"#DIV/0!"},{"$error":"#DIV/0!"},{"$error":"#DIV/0!"},{"$error":"#DIV/0!"},{"$error":"#DIV/0!"},{"$error":"#DIV/0!"},{"$error":"#DIV/0!"},{"$error":"#DIV/0!"},{"$error":"#DIV/0!"},{"$error":"#DIV/0!"},{"$error":"#DIV/0!"},{"$error":"#DIV/0!"},{"$error":"#DIV/0!"},{"$error":"#DIV/0!"},{"$error":"#DIV/0!"},{"$error":"#DIV/0!"},{"$error":"#DIV/0!"},1]
[null,{"$f":"title489","v":"Cash flow without loan (USD)"},null,{"$f":"-D38","v":{"$error":"#DIV/0!"}},{"$f":"+E82+E84","v":{"$error":"#DIV/0!"}},{"$f":"+F82+F84","v":{"$error":"#DIV/0!"}},{"$f":"+G82+G84","v":{"$error":"#DIV/0!"}},{"$error":"#DIV/0!"},{"$error":"#DIV/0!"},{"$error":"#DIV/0!"},{"$error":"#DIV/0!"},{"$error":"#DIV/0!"},{"$error":"#DIV/0!"},{"$error":"#DIV/0!"},{"$error":"#DIV/0!"},{"$error":"#DIV/0!"},{"$error":"#DIV/0!"},{"$error":"#DIV/0!"},{"$error":"#DIV/0!"},{"$error":"#DIV/0!"},{"$error":"#DIV/0!"},{"$error":"#DIV/0!"},{"$error":"#DIV/0!"},{"$error":"#DIV/0!"},1]
[null,{"$f":"title446","v":"Operating Year"},null,{"$f":"title464","v":"Appraisal"},1,2,3,4,5,6,7,8,9,10,11,12,13,14,15,16,17,18,19,20,1]
[null,{"$f":"title490","v":"Cumulative value of Net Profit"},null,{"$f":"D86","v":{"$error":"#DIV/0!"}},{"$f":"D89+(E86)","v":{"$error":"#DIV/0!"}},{"$f":"E89+(F86)","v":{"$error":"#DIV/0!"}},{"$error":"#DIV/0!"},{"$error":"#DIV/0!"},{"$error":"#DIV/0!"},{"$error":"#DIV/0!"},{"$error":"#DIV/0!"},{"$error":"#DIV/0!"},{"$error":"#DIV/0!"},{"$error":"#DIV/0!"},{"$error":"#DIV/0!"},{"$error":"#DIV/0!"},{"$error":"#DIV/0!"},{"$error":"#DIV/0!"},{"$error":"#DIV/0!"},{"$error":"#DIV/0!"},{"$error":"#DIV/0!"},{"$error":"#DIV/0!"},{"$error":"#DIV/0!"},{"$error":"#DIV/0!"},1]
[null,null,null,null,null,null,null,null,null,null,null,null,null,null,null,null,null,null,null,null,null,null,null,null,1]
[null,{"$f":"title491","v":"Financial Analysis Result"},null,null,null,null,null,null,null,null,null,null,null,null,null,null,null,null,null,null,null,null,null,null,1]
[null,null,null,null,null,null,null,null,null,null,null,null,null,null,null,null,null,null,null,null,null,null,null,null,1]
[null,{"$f":"title493","v":"Net Present Value (NPV) (USD)"},null,{"$f":"NPV(D60,E86:AA86)+D86","v":{"$error":"#DIV/0!"}},null,null,null,null,null,null,null,null,null,null,null,null,null,null,null,null,null,null,null,null,1]
[null,{"$f":"title494","v":"Internal Rate of Return (IRR) (%) - without loan"},null,{"$f":"IF(D93<0,title492,IRR(D87:AA87,0.001))","v":{"$error":"#DIV/0!"}},null,null,null,null,null,null,null,null,null,null,null,null,null,null,null,null,null,null,null,null,1]
[null,{"$f":"title495","v":"Internal Rate of Return (IRR) (%) - with loan"},null,{"$f":"IF(D94<0,title492,IRR(D86:AA86,0.001))","v":{"$error":"#DIV/0!"}},null,null,null,null,null,null,null,null,null,null,null,null,null,null,null,null,null,null,null,null,1]
[null,null,null,null,null,null,null,null,null,null,null,null,null,null,null,null,null,null,null,null,null,null,null,null,1]
[null,null,null,null,null,null,null,null,null,null,null,null,null,null,null,null,null,null,null,null,null,null,null,null,1]

{"sheet":"FA_SIZE4_PS1","index":23,"n_rows":97,"n_cols":25,"rows_kept":97,"cut":false,"hidden":true,"merged":[[1,1,1,23]]}
[]
[null,{"$f":"title496&\" 4\"","v":"FINANCIAL EVALUATION OF BIOGAS PRODUCTION SIZE 4"}]
[]
[null,{"$f":"title445","v":"Revenues of biomass production and use system"}]
[null,{"$f":"title446","v":"Operating Year"},null,0,1,2,3,4,5,6,7,8,9,10,11,12,13,14,15,16,17,18,19,20,1]
[null,null,null,null,null,null,null,null,null,null,null,null,null,null,null,null,null,null,null,null,null,null,null,null,1]
["Ag130",{"$f":"title447","v":"Biogas production capacity (m3 Biogas per year)"},null,{"$f":"INDIRECT(\"Planner_PS1!$\"&$A$7)*'Data entry needs'!$L$100","v":{"$error":"#DIV/0!"}},{"$f":"D7","v":{"$error":"#DIV/0!"}},{"$f":"E7","v":{"$error":"#DIV/0!"}},{"$f":"F7","v":{"$error":"#DIV/0!"}},{"$error":"#DIV/0!"},{"$error":"#DIV/0!"},{"$error":"#DIV/0!"},{"$error":"#DIV/0!"},{"$error":"#DIV/0!"},{"$error":"#DIV/0!"},{"$error":"#DIV/0!"},{"$error":"#DIV/0!"},{"$error":"#DIV/0!"},{"$error":"#DIV/0!"},{"$error":"#DIV/0!"},{"$error":"#DIV/0!"},{"$error":"#DIV/0!"},{"$error":"#DIV/0!"},{"$error":"#DIV/0!"},{"$error":"#DIV/0!"},{"$error":"#DIV/0!"},1]
[]
["m107",{"$f":"title448","v":"Heat Available for Selling (MJ/year)"},null,{"$f":"IF(INDIRECT(\"COST_PS1!\"&$A$9)<0,0,INDIRECT(\"COST_PS1!\"&$A$9))","v":{"$error":"#DIV/0!"}},{"$f":"D9","v":{"$error":"#DIV/0!"}},{"$f":"E9","v":{"$error":"#DIV/0!"}},{"$error":"#DIV/0!"},{"$error":"#DIV/0!"},{"$error":"#DIV/0!"},{"$error":"#DIV/0!"},{"$error":"#DIV/0!"},{"$error":"#DIV/0!"},{"$error":"#DIV/0!"},{"$error":"#DIV/0!"},{"$error":"#DIV/0!"},{"$error":"#DIV/0!"},{"$error":"#DIV/0!"},{"$error":"#DIV/0!"},{"$error":"#DIV/0!"},{"$error":"#DIV/0!"},{"$error":"#DIV/0!"},{"$f":"U9","v":{"$error":"#DIV/0!"}},{"$error":"#DIV/0!"},{"$error":"#DIV/0!"},1]
["m106",{"$f":"title449","v":"Electricity Available for Selling (kWh/year)"},null,{"$f":"IF(INDIRECT(\"COST_PS1!\"&$A$10)<0,0,INDIRECT(\"COST_PS1!\"&$A$10))","v":{"$error":"#DIV/0!"}},{"$f":"D10","v":{"$error":"#DIV/0!"}},{"$error":"#DIV/0!"},{"$error":"#DIV/0!"},{"$error":"#DIV/0!"},{"$error":"#DIV/0!"},{"$error":"#DIV/0!"},{"$error":"#DIV/0!"},{"$error":"#DIV/0!"},{"$error":"#DIV/0!"},{"$error":"#DIV/0!"},{"$error":"#DIV/0!"},{"$error":"#DIV/0!"},{"$error":"#DIV/0!"},{"$error":"#DIV/0!"},{"$error":"#DIV/0!"},{"$error":"#DIV/0!"},{"$error":"#DIV/0!"},{"$error":"#DIV/0!"},{"$error":"#DIV/0!"},{"$error":"#DIV/0!"},1]
["Ae166",{"$f":"title450","v":"Biomethane Production (m3 Methane/year)"},null,{"$f":"IF(OR('Biogas Use Selection'!$P$67=4,'Biogas Use Selection'!$P$67=5),INDIRECT(\"Planner_PS1!$\"&$A$11),0)","v":0},{"$f":"D11","v":0},0,0,0,0,0,0,0,0,0,0,0,0,0,0,0,0,0,0,0,1]
[null,{"$f":"title451","v":"Biogas Available for Selling (m3/year)"},null,{"$f":"IF('Biogas Use Selection'!$P$67=2,$D$7,0)","v":0},{"$f":"D12","v":0},0,0,0,0,0,0,0,0,0,0,0,0,0,0,0,0,0,0,0]
["Ae178",{"$f":"title452","v":"Digestate Production (t/year)"},null,{"$f":"INDIRECT(\"Planner_PS1!$\"&$A$13)","v":{"$error":"#DIV/0!"}},{"$f":"D13","v":{"$error":"#DIV/0!"}},{"$error":"#DIV/0!"},{"$error":"#DIV/0!"},{"$error":"#DIV/0!"},{"$error":"#DIV/0!"},{"$error":"#DIV/0!"},{"$error":"#DIV/0!"},{"$error":"#DIV/0!"},{"$error":"#DIV/0!"},{"$error":"#DIV/0!"},{"$error":"#DIV/0!"},{"$error":"#DIV/0!"},{"$error":"#DIV/0!"},{"$error":"#DIV/0!"},{"$error":"#DIV/0!"},{"$error":"#DIV/0!"},{"$error":"#DIV/0!"},{"$error":"#DIV/0!"},{"$error":"#DIV/0!"},{"$error":"#DIV/0!"}]
[]
[null,{"$f":"title265","v":"Operating hours per year"},null,{"$f":"COST_PS1!$G$35","v":0},{"$f":"D15","v":0},{"$f":"E15","v":0},0,0,0,0,0,0,0,0,0,0,0,0,0,0,0,0,0,0,1]
[null,null,null,null,null,null,null,null,null,null,null,null,null,null,null,null,null,null,null,null,null,null,null,null,1]
[1,{"$f":"title137&\" (USD/kWh)\"","v":"Electricity Selling Price (USD/kWh)"},null,{"$f":"IF($A17=1,'Data entry needs'!$F$103,0)","v":0},null,null,null,null,null,null,null,null,null,null,null,null,null,null,null,null,null,null,null,null,1]
[1,{"$f":"title138&\" (USD/GJ)\"","v":"Heat Selling Price (USD/GJ)"},null,{"$f":"IF($A18=1,'Data entry needs'!$F$104,0)","v":0}]
[1,{"$f":"title453","v":"Biogas Selling Price (USD/m3)"},null,{"$f":"IF($A19=1,'Data entry needs'!$F$105,0)","v":0}]
[1,{"$f":"title454","v":"Biomethane Selling Price (USD/m3)"},null,{"$f":"IF($A20=1,'Data entry needs'!$L$103,0)","v":0}]
[1,{"$f":"title455","v":"Digestate Sellig Price (USD/t)"},null,{"$f":"'Data entry needs'!$L$104","v":0}]
[]
[null,null,null,null,null,null,null,null,null,null,null,null,null,null,null,null,null,null,null,null,null,null,null,null,1]
[null,{"$f":"title456","v":"Annual Income (USD per year)"},null,{"$f":"$D$18*D9+D10*$D$17+D12*$D$19+D11*$D$20+$D$21*D13","v":{"$error":"#DIV/0!"}},{"$f":"$D$18*E9+E10*$D$17+E12*$D$19+E11*$D$20+$D$21*E13","v":{"$error":"#DIV/0!"}},{"$f":"$D$18*F9+F10*$D$17+F12*$D$19+F11*$D$20+$D$21*F13","v":{"$error":"#DIV/0!"}},{"$error":"#DIV/0!"},{"$error":"#DIV/0!"},{"$error":"#DIV/0!"},{"$error":"#DIV/0!"},{"$error":"#DIV/0!"},{"$error":"#DIV/0!"},{"$error":"#DIV/0!"},{"$error":"#DIV/0!"},{"$error":"#DIV/0!"},{"$error":"#DIV/0!"},{"$error":"#DIV/0!"},{"$error":"#DIV/0!"},{"$error":"#DIV/0!"},{"$error":"#DIV/0!"},{"$error":"#DIV/0!"},{"$error":"#DIV/0!"},{"$error":"#DIV/0!"},{"$error":"#DIV/0!"},1]
[null,null,null,null,null,null,null,null,null,null,null,null,null,null,null,null,null,null,null,null,null,null,null,null,1]
[null,{"$f":"title457","v":"Lifespan of civil work (years)"},null,{"$f":"'Data entry needs'!$L$120","v":0},null,null,null,null,null,null,null,null,null,null,null,null,null,null,null,null,null,null,null,null,1]
[null,{"$f":"title458","v":"Lifespan of charcoal system (years)"},null,{"$f":"'Data entry needs'!$L$120","v":0},null,null,null,null,null,null,null,null,null,null,null,null,null,null,null,null,null,null,null,null,1]
[null,{"$f":"title459","v":"Project lifetime (years)"},null,{"$f":"'Data entry needs'!$L$120","v":0},null,null,null,null,null,null,null,null,null,null,null,null,null,null,null,null,null,null,null,null,1]
[null,null,null,null,null,null,null,null,null,null,null,null,null,null,null,null,null,null,null,null,null,null,null,null,1]
[null,null,null,null,null,null,null,null,null,null,null,null,null,null,null,null,null,null,null,null,null,null,null,null,1]
[null,{"$f":"title460","v":"Capital and operating cost of biogas system "},null,null,null,null,null,null,null,null,null,null,null,null,null,null,null,null,null,null,null,null,null,null,1]
[null,null,null,null,null,null,null,null,null,null,null,null,null,null,null,null,null,null,null,null,null,null,null,null,1]
[null,{"$f":"title446","v":"Operating Year"},null,{"$f":"title464","v":"Appraisal"},{"$f":"title465","v":"Project period (years)"},{"$f":"title466","v":"per year"},null,null,null,null,null,null,null,null,null,null,null,null,null,null,null,null,null,null,1]
[null,{"$f":"title461","v":"Capital cost (USD)"},null,"Total",null,null,null,null,null,null,null,null,null,null,null,null,null,null,null,null,null,null,null,null,1]
["l77",{"$f":"title280","v":"Equipments"},null,{"$f":"INDIRECT(\"COST_PS1!\"&$A35)","v":{"$error":"#DIV/0!"}},{"$f":"+D26","v":0},{"$f":"D35/E35","v":{"$error":"#DIV/0!"}},null,null,null,null,null,null,null,null,null,null,null,null,null,null,null,null,null,null,1]
["l78",{"$f":"title281","v":"Building"},null,{"$f":"INDIRECT(\"COST_PS1!\"&$A36)","v":{"$error":"#DIV/0!"}},{"$f":"+D27","v":0},{"$f":"D36/E36","v":{"$error":"#DIV/0!"}},null,null,null,null,null,null,null,null,null,null,null,null,null,null,null,null,null,null,1]
["l79",{"$f":"title462","v":"Installation"},null,{"$f":"INDIRECT(\"COST_PS1!\"&$A37)","v":{"$error":"#DIV/0!"}},{"$f":"+D28","v":0},{"$f":"D37/E37","v":{"$error":"#DIV/0!"}},null,null,null,null,null,null,null,null,null,null,null,null,null,null,null,null,null,null,1]
[null,{"$f":"title463","v":"Total capital cost (USD)"},null,{"$f":"SUM(D35:D37)","v":{"$error":"#DIV/0!"}},null,{"$f":"SUM(F35:F37)","v":{"$error":"#DIV/0!"}},null,null,null,null,null,null,null,null,null,null,null,null,null,null,null,null,null,null,1]
[null,null,null,null,null,null,null,null,null,null,null,null,null,null,null,null,null,null,null,null,null,null,null,null,1]
[null,null,null,null,null,null,null,null,null,null,null,null,null,null,null,null,null,null,null,null,null,null,null,null,1]
[null,{"$f":"title446","v":"Operating Year"},null,{"$f":"title464","v":"Appraisal"},1,2,3,4,5,6,7,8,9,10,11,12,13,14,15,16,17,18,19,20,1]
[null,{"$f":"title467","v":"Annual operating and maintenance cost "},null,null,null,null,null,null,null,null,null,null,null,null,null,null,null,null,null,null,null,null,null,null,1]
["l44",{"$f":"title468","v":"Sub-total inputs cost (USD)"},null,{"$f":"INDIRECT(\"COST_PS1!\"&$A$43)","v":{"$error":"#DIV/0!"}},{"$f":"INDIRECT(\"COST_PS1!\"&$A$43)","v":{"$error":"#DIV/0!"}},{"$error":"#DIV/0!"},{"$error":"#DIV/0!"},{"$error":"#DIV/0!"},{"$error":"#DIV/0!"},{"$error":"#DIV/0!"},{"$error":"#DIV/0!"},{"$error":"#DIV/0!"},{"$error":"#DIV/0!"},{"$error":"#DIV/0!"},{"$error":"#DIV/0!"},{"$error":"#DIV/0!"},{"$error":"#DIV/0!"},{"$error":"#DIV/0!"},{"$error":"#DIV/0!"},{"$error":"#DIV/0!"},{"$error":"#DIV/0!"},{"$error":"#DIV/0!"},{"$error":"#DIV/0!"},{"$error":"#DIV/0!"},1]
[]
[null,{"$f":"title469","v":"Sub-total operating cost (USD)"},null,{"$f":"D46+D47+D48","v":{"$error":"#DIV/0!"}},{"$f":"E46+E47+E48","v":{"$error":"#DIV/0!"}},{"$f":"F46+F47+F48","v":{"$error":"#DIV/0!"}},{"$error":"#DIV/0!"},{"$error":"#DIV/0!"},{"$error":"#DIV/0!"},{"$error":"#DIV/0!"},{"$error":"#DIV/0!"},{"$error":"#DIV/0!"},{"$error":"#DIV/0!"},{"$error":"#DIV/0!"},{"$error":"#DIV/0!"},{"$error":"#DIV/0!"},{"$error":"#DIV/0!"},{"$error":"#DIV/0!"},{"$error":"#DIV/0!"},{"$error":"#DIV/0!"},{"$error":"#DIV/0!"},{"$error":"#DIV/0!"},{"$error":"#DIV/0!"},{"$error":"#DIV/0!"},1]
["m51",{"$f":"title470","v":"Labour cost & Misc. (USD)"},null,{"$f":"INDIRECT(\"COST_PS1!\"&$A46)","v":0},{"$f":"+D46","v":0},{"$f":"+E46","v":0},0,0,0,0,0,0,0,0,0,0,0,0,0,0,0,0,0,0,1]
["m87",{"$f":"title151","v":"Plant overhead"},null,{"$f":"INDIRECT(\"COST_PS1!\"&$A47)","v":{"$error":"#DIV/0!"}},{"$f":"D47","v":{"$error":"#DIV/0!"}},{"$error":"#DIV/0!"},{"$error":"#DIV/0!"},{"$error":"#DIV/0!"},{"$error":"#DIV/0!"},{"$error":"#DIV/0!"},{"$error":"#DIV/0!"},{"$error":"#DIV/0!"},{"$error":"#DIV/0!"},{"$error":"#DIV/0!"},{"$error":"#DIV/0!"},{"$error":"#DIV/0!"},{"$error":"#DIV/0!"},{"$error":"#DIV/0!"},{"$error":"#DIV/0!"},{"$error":"#DIV/0!"},{"$error":"#DIV/0!"},{"$error":"#DIV/0!"},{"$error":"#DIV/0!"},{"$error":"#DIV/0!"},1]
["m88",{"$f":"title288","v":"General and administrative cost"},null,{"$f":"INDIRECT(\"COST_PS1!\"&$A48)","v":{"$error":"#DIV/0!"}},{"$error":"#DIV/0!"},{"$error":"#DIV/0!"},{"$error":"#DIV/0!"},{"$error":"#DIV/0!"},{"$error":"#DIV/0!"},{"$error":"#DIV/0!"},{"$error":"#DIV/0!"},{"$error":"#DIV/0!"},{"$error":"#DIV/0!"},{"$error":"#DIV/0!"},{"$error":"#DIV/0!"},{"$error":"#DIV/0!"},{"$error":"#DIV/0!"},{"$error":"#DIV/0!"},{"$error":"#DIV/0!"},{"$error":"#DIV/0!"},{"$error":"#DIV/0!"},{"$error":"#DIV/0!"},{"$error":"#DIV/0!"},{"$error":"#DIV/0!"},1]
["m82",{"$f":"title471","v":"Sub-total maintenance cost (USD)"},null,{"$f":"INDIRECT(\"COST_PS1!\"&$A49)","v":{"$error":"#DIV/0!"}},{"$error":"#DIV/0!"},{"$error":"#DIV/0!"},{"$error":"#DIV/0!"},{"$error":"#DIV/0!"},{"$error":"#DIV/0!"},{"$error":"#DIV/0!"},{"$error":"#DIV/0!"},{"$error":"#DIV/0!"},{"$error":"#DIV/0!"},{"$error":"#DIV/0!"},{"$error":"#DIV/0!"},{"$error":"#DIV/0!"},{"$error":"#DIV/0!"},{"$error":"#DIV/0!"},{"$error":"#DIV/0!"},{"$error":"#DIV/0!"},{"$error":"#DIV/0!"},{"$error":"#DIV/0!"},{"$error":"#DIV/0!"},{"$error":"#DIV/0!"},1]
[null,null,null,null,null,null,null,null,null,null,null,null,null,null,null,null,null,null,null,null,null,null,null,null,1]
["m82",{"$f":"title472","v":"Sub-total of annual fixed cost (USD)"},null,{"$f":"F38","v":{"$error":"#DIV/0!"}},{"$f":"D51","v":{"$error":"#DIV/0!"}},{"$f":"E51","v":{"$error":"#DIV/0!"}},{"$error":"#DIV/0!"},{"$error":"#DIV/0!"},{"$error":"#DIV/0!"},{"$error":"#DIV/0!"},{"$error":"#DIV/0!"},{"$error":"#DIV/0!"},{"$error":"#DIV/0!"},{"$error":"#DIV/0!"},{"$error":"#DIV/0!"},{"$error":"#DIV/0!"},{"$error":"#DIV/0!"},{"$error":"#DIV/0!"},{"$error":"#DIV/0!"},{"$error":"#DIV/0!"},{"$error":"#DIV/0!"},{"$error":"#DIV/0!"},{"$error":"#DIV/0!"},{"$error":"#DIV/0!"},1]
[null,null,null,null,null,null,null,null,null,null,null,null,null,null,null,null,null,null,null,null,null,null,null,null,1]
["l73",{"$f":"title473","v":"Sub-total of storage cost (USD)"},null,{"$f":"INDIRECT(\"COST_PS1!\"&$A53)","v":0},0,0,0,0,0,0,0,0,0,0,0,0,0,0,0,0,0,0,0,0,1]
[null,null,null,null,null,null,null,null,null,null,null,null,null,null,null,null,null,null,null,null,null,null,null,null,1]
[null,{"$f":"title474","v":"Total operation and maintenance cost (USD)"},null,{"$f":"D43+D45+D49+D51+D53","v":{"$error":"#DIV/0!"}},{"$f":"E43+E45+E49+E51+E53","v":{"$error":"#DIV/0!"}},{"$error":"#DIV/0!"},{"$error":"#DIV/0!"},{"$error":"#DIV/0!"},{"$error":"#DIV/0!"},{"$error":"#DIV/0!"},{"$error":"#DIV/0!"},{"$error":"#DIV/0!"},{"$error":"#DIV/0!"},{"$error":"#DIV/0!"},{"$error":"#DIV/0!"},{"$error":"#DIV/0!"},{"$error":"#DIV/0!"},{"$error":"#DIV/0!"},{"$error":"#DIV/0!"},{"$error":"#DIV/0!"},{"$error":"#DIV/0!"},{"$error":"#DIV/0!"},{"$error":"#DIV/0!"},{"$error":"#DIV/0!"},1]
[null,null,null,null,null,null,null,null,null,null,null,null,null,null,null,null,null,null,null,null,null,null,null,null,1]
[null,null,null,null,null,null,null,null,null,null,null,null,null,null,null,null,null,null,null,null,null,null,null,null,1]
[null,{"$f":"title155","v":"Financial parameters"},null,null,null,null,null,null,null,null,null,null,null,null,null,null,null,null,null,null,null,null,null,null,1]
[null,{"$f":"title446","v":"Operating Year"},null,{"$f":"title464","v":"Appraisal"},1,2,3,4,5,6,7,8,9,10,11,12,13,14,15,16,17,18,19,20,1]
[null,{"$f":"title161&\"(%)\"","v":"Discount rate(%)"},null,{"$f":"'Data entry needs'!$L$118","v":0},null,null,null,null,null,null,null,null,null,null,null,null,null,null,null,null,null,null,null,null,1]
[null,{"$f":"title475","v":"Loan ratio (%)"},null,{"$f":"'Data entry needs'!$F$118","v":0},null,null,null,null,null,null,null,null,null,null,null,null,null,null,null,null,null,null,null,null,1]
[null,null,null,null,null,null,null,null,null,null,null,null,null,null,null,null,null,null,null,null,null,null,null,null,1]
[null,null,null,null,null,null,null,null,null,null,null,null,null,null,null,null,null,null,null,null,null,null,null,null,1]
[null,{"$f":"title446","v":"Operating Year"},null,{"$f":"title464","v":"Appraisal"},1,2,3,4,5,6,7,8,9,10,11,12,13,14,15,16,17,18,19,20,1]
[null,{"$f":"title476","v":"Loan amount (USD)"},null,{"$f":"D61*(D38)","v":{"$error":"#DIV/0!"}},null,null,null,null,null,null,null,null,null,null,null,null,null,null,null,null,null,null,null,null,1]
[null,{"$f":"title162&\"(%)\"","v":"Loan interest rate(%)"},null,{"$f":"'Data entry needs'!$L$119","v":0},null,null,null,null,null,null,null,null,null,null,null,null,null,null,null,null,null,null,null,null,1]
[null,{"$f":"title165","v":"Loan term (years)"},null,{"$f":"D26","v":0},null,null,null,null,null,null,null,null,null,null,null,null,null,null,null,null,null,null,null,null,1]
[null,{"$f":"title315&\" (\"&title318&\")\"","v":"Loan payment (USD/month)"},null,{"$f":"(PMT($D$66/12,($D$67*12),$D$65))","v":{"$error":"#DIV/0!"}}]
[null,{"$f":"title315&\" (\"&title319&\")\"","v":"Loan payment (USD/year)"},null,{"$f":"D68*12","v":{"$error":"#DIV/0!"}},null,null,null,null,null,null,null,null,null,null,null,null,null,null,null,null,null,null,null,null,1]
[null,{"$f":"title315&\" (\"&title319&\")\"","v":"Loan payment (USD/year)"},null,null,{"$f":"IF(E64<=$D$67,$D$68*12,0)","v":0},{"$f":"IF(F64<=$D$67,$D$68*12,0)","v":0},0,0,0,0,0,0,0,0,0,0,0,0,0,0,0,0,0,0,1]
[null,{"$f":"title477","v":"Total loan payment (USD)"},null,{"$f":"SUM(E70:X70)","v":0},null,null,null,null,null,null,null,null,null,null,null,null,null,null,null,null,null,null,null,null,1]
[null,{"$f":"title478","v":"Loan interest payment (USD)"},null,{"$f":"D71+D65","v":{"$error":"#DIV/0!"}},{"$f":"title479","v":"loan interest payment for project lifetime"},null,null,null,null,null,null,null,null,null,null,null,null,null,null,null,null,null,null,null,1]
[null,null,null,null,null,null,null,null,null,null,null,null,null,null,null,null,null,null,null,null,null,null,null,null,1]
[null,{"$f":"title285","v":"Depreciation"},null,null,null,null,null,null,null,null,null,null,null,null,null,null,null,null,null,null,null,null,null,null,1]
[null,{"$f":"title446","v":"Operating Year"},null,{"$f":"title464","v":"Appraisal"},1,2,3,4,5,6,7,8,9,10,11,12,13,14,15,16,17,18,19,20,1]
[null,{"$f":"title480","v":"Depreciation method"},null,{"$f":"title482","v":"Straight-line"},null,null,null,null,null,null,null,null,null,null,null,null,null,null,null,null,null,null,null,null,1]
[null,{"$f":"title481","v":"Total depreciation (USD)"},null,null,{"$f":"$F$38","v":{"$error":"#DIV/0!"}},{"$f":"$F$38","v":{"$error":"#DIV/0!"}},{"$error":"#DIV/0!"},{"$error":"#DIV/0!"},{"$error":"#DIV/0!"},{"$error":"#DIV/0!"},{"$error":"#DIV/0!"},{"$error":"#DIV/0!"},{"$error":"#DIV/0!"},{"$error":"#DIV/0!"},{"$error":"#DIV/0!"},{"$error":"#DIV/0!"},{"$error":"#DIV/0!"},{"$error":"#DIV/0!"},{"$error":"#DIV/0!"},{"$error":"#DIV/0!"},{"$error":"#DIV/0!"},{"$error":"#DIV/0!"},{"$error":"#DIV/0!"},{"$error":"#DIV/0!"},1]
[null,null,null,null,null,null,null,null,null,null,null,null,null,null,null,null,null,null,null,null,null,null,null,null,1]
[null,{"$f":"title483","v":"Base case Project Summary"},null,null,null,null,null,null,null,null,null,null,null,null,null,null,null,null,null,null,null,null,null,null,1]
[null,{"$f":"title484","v":"Summary of this project"},null,null,null,null,null,null,null,null,null,null,null,null,null,null,null,null,null,null,null,null,null,null,1]
[null,{"$f":"title446","v":"Operating Year"},null,{"$f":"title464","v":"Appraisal"},1,2,3,4,5,6,7,8,9,10,11,12,13,14,15,16,17,18,19,20,1]
[null,{"$f":"title485","v":"Total revenue (USD)"},null,null,{"$f":"E24","v":{"$error":"#DIV/0!"}},{"$f":"F24","v":{"$error":"#DIV/0!"}},{"$error":"#DIV/0!"},{"$error":"#DIV/0!"},{"$error":"#DIV/0!"},{"$error":"#DIV/0!"},{"$error":"#DIV/0!"},{"$error":"#DIV/0!"},{"$error":"#DIV/0!"},{"$error":"#DIV/0!"},{"$error":"#DIV/0!"},{"$error":"#DIV/0!"},{"$error":"#DIV/0!"},{"$error":"#DIV/0!"},{"$error":"#DIV/0!"},{"$error":"#DIV/0!"},{"$error":"#DIV/0!"},{"$error":"#DIV/0!"},{"$error":"#DIV/0!"},{"$error":"#DIV/0!"},1]
[null,{"$f":"title463","v":"Total capital cost (USD)"},null,{"$f":"-D38*(1-$D$61)","v":{"$error":"#DIV/0!"}},null,null,null,null,null,null,null,null,null,null,null,null,null,null,null,null,null,null,null,null,1]
[null,{"$f":"title486","v":"Total operating and maintenance cost (USD)"},null,null,{"$f":"-E55+E51","v":{"$error":"#DIV/0!"}},{"$f":"-F55+F51","v":{"$error":"#DIV/0!"}},{"$f":"-G55+G51","v":{"$error":"#DIV/0!"}},{"$error":"#DIV/0!"},{"$error":"#DIV/0!"},{"$error":"#DIV/0!"},{"$error":"#DIV/0!"},{"$error":"#DIV/0!"},{"$error":"#DIV/0!"},{"$error":"#DIV/0!"},{"$error":"#DIV/0!"},{"$error":"#DIV/0!"},{"$error":"#DIV/0!"},{"$error":"#DIV/0!"},{"$error":"#DIV/0!"},{"$error":"#DIV/0!"},{"$error":"#DIV/0!"},{"$error":"#DIV/0!"},{"$error":"#DIV/0!"},{"$error":"#DIV/0!"},1]
[null,{"$f":"title487","v":"Loan payment (USD)"},null,null,{"$f":"+E70","v":0},{"$f":"+F70","v":0},{"$f":"+G70","v":0},0,0,0,0,0,0,0,0,0,0,0,0,0,0,0,0,0,1]
[null,{"$f":"title488","v":"Cash flow with loan (USD)"},null,{"$f":"SUM(D82:D85)","v":{"$error":"#DIV/0!"}},{"$f":"SUM(E82:E85)","v":{"$error":"#DIV/0!"}},{"$f":"SUM(F82:F85)","v":{"$error":"#DIV/0!"}},{"$f":"SUM(G82:G85)","v":{"$error":"#DIV/0!"}},{"$error":"#DIV/0!"},{"$error":"#DIV/0!"},{"$error":"#DIV/0!"},{"$error":"#DIV/0!"},{"$error":"#DIV/0!"},{"$error":"#DIV/0!"},{"$error":"#DIV/0!"},{"$error":"#DIV/0!"},{"$error":"#DIV/0!"},{"$error":"#DIV/0!"},{"$error":"#DIV/0!"},{"$error":"#DIV/0!"},{"$error":"#DIV/0!"},{"$error":"#DIV/0!"},{"$error":"#DIV/0!"},{"$error":"#DIV/0!"},{"$error":"#DIV/0!"},1]
[null,{"$f":"title489","v":"Cash flow without loan (USD)"},null,{"$f":"-D38","v":{"$error":"#DIV/0!"}},{"$f":"+E82+E84","v":{"$error":"#DIV/0!"}},{"$f":"+F82+F84","v":{"$error":"#DIV/0!"}},{"$f":"+G82+G84","v":{"$error":"#DIV/0!"}},{"$error":"#DIV/0!"},{"$error":"#DIV/0!"},{"$error":"#DIV/0!"},{"$error":"#DIV/0!"},{"$error":"#DIV/0!"},{"$error":"#DIV/0!"},{"$error":"#DIV/0!"},{"$error":"#DIV/0!"},{"$error":"#DIV/0!"},{"$error":"#DIV/0!"},{"$error":"#DIV/0!"},{"$error":"#DIV/0!"},{"$error":"#DIV/0!"},{"$error":"#DIV/0!"},{"$error":"#DIV/0!"},{"$error":"#DIV/0!"},{"$error":"#DIV/0!"},1]
[null,{"$f":"title446","v":"Operating Year"},null,{"$f":"title464","v":"Appraisal"},1,2,3,4,5,6,7,8,9,10,11,12,13,14,15,16,17,18,19,20,1]
[null,{"$f":"title490","v":"Cumulative value of Net Profit"},null,{"$f":"D86","v":{"$error":"#DIV/0!"}},{"$f":"D89+(E86)","v":{"$error":"#DIV/0!"}},{"$f":"E89+(F86)","v":{"$error":"#DIV/0!"}},{"$error":"#DIV/0!"},{"$error":"#DIV/0!"},{"$error":"#DIV/0!"},{"$error":"#DIV/0!"},{"$error":"#DIV/0!"},{"$error":"#DIV/0!"},{"$error":"#DIV/0!"},{"$error":"#DIV/0!"},{"$error":"#DIV/0!"},{"$error":"#DIV/0!"},{"$error":"#DIV/0!"},{"$error":"#DIV/0!"},{"$error":"#DIV/0!"},{"$error":"#DIV/0!"},{"$error":"#DIV/0!"},{"$error":"#DIV/0!"},{"$error":"#DIV/0!"},{"$error":"#DIV/0!"},1]
[null,null,null,null,null,null,null,null,null,null,null,null,null,null,null,null,null,null,null,null,null,null,null,null,1]
[null,{"$f":"title491","v":"Financial Analysis Result"},null,null,null,null,null,null,null,null,null,null,null,null,null,null,null,null,null,null,null,null,null,null,1]
[null,null,null,null,null,null,null,null,null,null,null,null,null,null,null,null,null,null,null,null,null,null,null,null,1]
[null,{"$f":"title493","v":"Net Present Value (NPV) (USD)"},null,{"$f":"NPV(D60,E86:AA86)+D86","v":{"$error":"#DIV/0!"}},null,null,null,null,null,null,null,null,null,null,null,null,null,null,null,null,null,null,null,null,1]
[null,{"$f":"title494","v":"Internal Rate of Return (IRR) (%) - without loan"},null,{"$f":"IF(D93<0,title492,IRR(D87:AA87,0.001))","v":{"$error":"#DIV/0!"}},null,null,null,null,null,null,null,null,null,null,null,null,null,null,null,null,null,null,null,null,1]
[null,{"$f":"title495","v":"Internal Rate of Return (IRR) (%) - with loan"},null,{"$f":"IF(D94<0,title492,IRR(D86:AA86,0.001))","v":{"$error":"#DIV/0!"}},null,null,null,null,null,null,null,null,null,null,null,null,null,null,null,null,null,null,null,null,1]
[null,null,null,null,null,null,null,null,null,null,null,null,null,null,null,null,null,null,null,null,null,null,null,null,1]
[null,null,null,null,null,null,null,null,null,null,null,null,null,null,null,null,null,null,null,null,null,null,null,null,1]

{"sheet":"COST(ADJUSTED)_PS1","index":24,"n_rows":75,"n_cols":13,"rows_kept":75,"cut":false,"hidden":true,"merged":[[5,9,5,12],[7,9,7,12],[9,9,9,12],[2,2,2,12]]}
[]
[]
[null,null,{"$f":"title497&\" 1\"","v":"DETAILED INVESTMENT PROCESS 1"}]
[]
[]
[null,null,{"$f":"title498","v":"Escalation Factor"},0.89,null,null,null,null,null,{"$f":"title506","v":"Capacities (m3 CH4/year)"}]
[null,null,null,null,null,null,null,null,null,{"$f":"Planner_PS1!AD$127*'Data entry needs'!$L$100","v":0},{"$f":"Planner_PS1!AE$127*'Data entry needs'!$L$100","v":0},{"$f":"Planner_PS1!AF$127*'Data entry needs'!$L$100","v":0},{"$f":"Planner_PS1!AG$127*'Data entry needs'!$L$100","v":0}]
[null,null,null,null,null,null,null,null,null,{"$f":"title507","v":"Capacities (kWe)"}]
[null,null,null,null,null,null,null,null,null,{"$f":"Planner_PS1!AD$128","v":100},{"$f":"Planner_PS1!AE$128","v":105},{"$f":"Planner_PS1!AF$128","v":115},{"$f":"Planner_PS1!AG$128","v":120}]
[null,null,null,null,null,null,null,null,null,{"$f":"title508","v":"Capacities (m3 Biogas/year)"}]
[null,null,null,null,null,null,null,null,null,{"$f":"Planner_PS1!AD$130*'Data entry needs'!$L$100","v":{"$error":"#DIV/0!"}},{"$f":"Planner_PS1!AE$130*'Data entry needs'!$L$100","v":{"$error":"#DIV/0!"}},{"$f":"Planner_PS1!AF$130*'Data entry needs'!$L$100","v":{"$error":"#DIV/0!"}},{"$f":"Planner_PS1!AG$130*'Data entry needs'!$L$100","v":{"$error":"#DIV/0!"}}]
[null,null,null,{"$f":"title500","v":"Households Electr."},"hh",null,null,null,null,{"$f":"IFERROR(COST_PS1!G106/VLOOKUP('Biogas Use Selection'!$Q$67,'Biogas Use Selection'!$O$71:$Z$75,5,FALSE),0)","v":0},{"$f":"IFERROR(COST_PS1!I106/VLOOKUP('Biogas Use Selection'!$Q$67,'Biogas Use Selection'!$O$71:$Z$75,5,FALSE),0)","v":0},{"$f":"IFERROR(COST_PS1!K106/VLOOKUP('Biogas Use Selection'!$Q$67,'Biogas Use Selection'!$O$71:$Z$75,5,FALSE),0)","v":0},{"$f":"IFERROR(COST_PS1!M106/VLOOKUP('Biogas Use Selection'!$Q$67,'Biogas Use Selection'!$O$71:$Z$75,5,FALSE),0)","v":0}]
[null,null,null,{"$f":"title501","v":"Households Heat."},"hh",null,null,null,null,{"$f":"IFERROR(ROUNDDOWN(IF(OR('Biogas Use Selection'!$P$67=5,'Biogas Use Selection'!$P$67=2),J$11,IF('Biogas Use Selection'!$P$67=1,J$17*1000,IF('Biogas Use Selection'!$P$67=4,J$7)))/VLOOKUP('Biogas Use Selection'!$Q$67,'Biogas Use Selection'!$O$71:$Z$75,3,FALSE),0),0)","v":0},{"$f":"IFERROR(ROUNDDOWN(IF(OR('Biogas Use Selection'!$P$67=5,'Biogas Use Selection'!$P$67=2),K$11,IF('Biogas Use Selection'!$P$67=1,K$17*1000,IF('Biogas Use Selection'!$P$67=4,K$7)))/VLOOKUP('Biogas Use Selection'!$Q$67,'Biogas Use Selection'!$O$71:$Z$75,3,FALSE),0),0)","v":0},{"$f":"IFERROR(ROUNDDOWN(IF(OR('Biogas Use Selection'!$P$67=5,'Biogas Use Selection'!$P$67=2),L$11,IF('Biogas Use Selection'!$P$67=1,L$17*1000,IF('Biogas Use Selection'!$P$67=4,L$7)))/VLOOKUP('Biogas Use Selection'!$Q$67,'Biogas Use Selection'!$O$71:$Z$75,3,FALSE),0),0)","v":0},{"$f":"IFERROR(ROUNDDOWN(IF(OR('Biogas Use Selection'!$P$67=5,'Biogas Use Selection'!$P$67=2),M$11,IF('Biogas Use Selection'!$P$67=1,M$17*1000,IF('Biogas Use Selection'!$P$67=4,M$7)))/VLOOKUP('Biogas Use Selection'!$Q$67,'Biogas Use Selection'!$O$71:$Z$75,3,FALSE),0),0)","v":0}]
[null,null,null,{"$f":"title109","v":"Feedstock"},{"$f":"title308","v":"t/year"},null,null,null,null,{"$f":"Planner_PS1!AD133","v":{"$error":"#DIV/0!"}},{"$f":"Planner_PS1!AE133","v":{"$error":"#DIV/0!"}},{"$f":"Planner_PS1!AF133","v":{"$error":"#DIV/0!"}},{"$f":"Planner_PS1!AG133","v":{"$error":"#DIV/0!"}}]
[null,null,null,{"$f":"title502","v":"Operating period"},{"$f":"title505","v":"h/year"},null,null,null,null,{"$f":"COST_PS1!G$35","v":0},{"$f":"J15","v":0},{"$f":"K15","v":0},{"$f":"L15","v":0}]
[null,null,null,{"$f":"title503","v":"Cable Proxy"},"m/hh",null,null,null,10,{"$f":"IFERROR($I$16*J12,0)","v":0},{"$f":"IFERROR($I$16*K12,0)","v":0},{"$f":"IFERROR($I$16*L12,0)","v":0},{"$f":"IFERROR($I$16*M12,0)","v":0}]
[null,null,null,{"$f":"title299","v":"Heat Production"},{"$f":"title305","v":"GJ/year"},null,null,null,null,{"$f":"COST_PS1!G107","v":{"$error":"#DIV/0!"}},{"$f":"COST_PS1!I107","v":{"$error":"#DIV/0!"}},{"$f":"COST_PS1!K107","v":{"$error":"#DIV/0!"}},{"$f":"COST_PS1!M107","v":{"$error":"#DIV/0!"}}]
[null,null,{"$f":"title499","v":"Digester size"},{"$f":"title504","v":"Volume Reactor"},"m3",null,null,null,null,{"$f":"Planner_PS1!AD$134","v":{"$error":"#DIV/0!"}},{"$f":"Planner_PS1!AE$134","v":{"$error":"#DIV/0!"}},{"$f":"Planner_PS1!AF$134","v":{"$error":"#DIV/0!"}},{"$f":"Planner_PS1!AG$134","v":{"$error":"#DIV/0!"}}]
[]
[null,null,{"$f":"title509","v":"Pretreatment"}]
[null,1,{"$f":"title510","v":"Other (Hygenization, crushing, homogenization)"},{"$f":"\"USD/m3 \"&title512","v":"USD/m3 BIOGAS"},10.8,2006,135.30000000000001,{"$f":"'Data entry needs'!$L$121/$G21","v":0},{"$f":"E21*B21*$H21","v":0},{"$f":"$I21*J$18^$D$6","v":{"$error":"#DIV/0!"}},{"$f":"$J21*(K$18/$J$18)^$D$6","v":{"$error":"#DIV/0!"}},{"$f":"$J21*(L$18/$J$18)^$D$6","v":{"$error":"#DIV/0!"}},{"$f":"$J21*(M$18/$J$18)^$D$6","v":{"$error":"#DIV/0!"}}]
[null,1,{"$f":"title511","v":"Pre-processing equipment"},{"$f":"\"USD/t \"&LOWER(title109)","v":"USD/t feedstock"},{"$f":"450000/100000","v":4.5},2006,135.30000000000001,{"$f":"'Data entry needs'!$L$121/$G22","v":0},{"$f":"E22*B22*$H22","v":0},{"$f":"$I22*J$14^$D$6","v":{"$error":"#DIV/0!"}},{"$f":"$J22*(K$14/$J$14)^$D$6","v":{"$error":"#DIV/0!"}},{"$f":"$J22*(L$14/$J$14)^$D$6","v":{"$error":"#DIV/0!"}},{"$f":"$J22*(M$14/$J$14)^$D$6","v":{"$error":"#DIV/0!"}}]
[null,null,null,null,{"$f":"title269","v":"Subtotal"},{"$f":"title269","v":"Subtotal"},null,null,null,{"$f":"SUM(J21:J22)","v":{"$error":"#DIV/0!"}},{"$f":"SUM(K21:K22)","v":{"$error":"#DIV/0!"}},{"$f":"SUM(L21:L22)","v":{"$error":"#DIV/0!"}},{"$f":"SUM(M21:M22)","v":{"$error":"#DIV/0!"}}]
[null,null,{"$f":"title280","v":"Equipments"}]
[null,{"$f":"IF(COST_PS1!$L$10=\"CSTR\",1,0)","v":1},{"$f":"title513","v":"Digester CSTR"},{"$f":"\"USD/m3 \"&title512","v":"USD/m3 BIOGAS"},{"$f":"174.56112313391/1","v":174.56112313391},2006,135.30000000000001,{"$f":"'Data entry needs'!$L$121/$G25","v":0},{"$f":"E25*B25*$H25","v":0},{"$f":"$I25*J$18^$D$6","v":{"$error":"#DIV/0!"}},{"$f":"$J25*(K$18/$J$18)^$D$6","v":{"$error":"#DIV/0!"}},{"$error":"#DIV/0!"},{"$error":"#DIV/0!"}]
[null,{"$f":"IF(COST_PS1!$L$10=\"uasb\",1,0)","v":0},{"$f":"title514","v":"Digester UASB"},"USD/m3 BIOGAS",{"$f":"608.409048874878/1","v":608.40904887487795},2006,135.30000000000001,{"$f":"'Data entry needs'!$L$121/$G26","v":0},0,{"$f":"$I26*J$18^$D$6","v":{"$error":"#DIV/0!"}},{"$error":"#DIV/0!"},{"$error":"#DIV/0!"},{"$error":"#DIV/0!"}]
[null,{"$f":"IF(COST_PS1!$L$10=title530,1,0)","v":0},{"$f":"title515","v":"Digester Plug Flow"},"USD/m3 BIOGAS",{"$f":"20804*Planner_PS1!$AG$107/24","v":{"$error":"#DIV/0!"}},2008,157.69999999999999,{"$f":"'Data entry needs'!$L$121/$G27","v":0},{"$error":"#DIV/0!"},{"$error":"#DIV/0!"},{"$error":"#DIV/0!"},{"$error":"#DIV/0!"},{"$error":"#DIV/0!"}]
[null,{"$f":"IF(COST_PS1!$L$10=title531,1,0)","v":0},{"$f":"title516","v":"Digester Batch"},"USD/m3 BIOGAS",{"$f":"E25/3","v":58.187041044636665},2009,138.9,{"$f":"'Data entry needs'!$L$121/$G28","v":0},0,{"$error":"#DIV/0!"},{"$error":"#DIV/0!"},{"$error":"#DIV/0!"},{"$error":"#DIV/0!"}]
[null,1,{"$f":"title517","v":"Effluence storage pool"},"USD/m3 BIOGAS",87.06,2010,146.4,{"$f":"'Data entry needs'!$L$121/$G29","v":0},0,{"$error":"#DIV/0!"},{"$error":"#DIV/0!"},{"$error":"#DIV/0!"},{"$error":"#DIV/0!"}]
[null,1,{"$f":"title518","v":"Buffer tank"},"USD/m3 BIOGAS",{"$f":"0.9/0.3048^3/2","v":15.891600024669863},2010,146.4,{"$f":"'Data entry needs'!$L$121/$G30","v":0},0,{"$error":"#DIV/0!"},{"$f":"$I30*K$18","v":{"$error":"#DIV/0!"}},{"$f":"$I30*L$18","v":{"$error":"#DIV/0!"}},{"$f":"$I30*M$18","v":{"$error":"#DIV/0!"}}]
[null,1,{"$f":"title519","v":"Odor Control System"},{"$f":"\"USD/t \"&LOWER(title109)","v":"USD/t feedstock"},{"$f":"85000/20000","v":4.25},2010,146.4,{"$f":"'Data entry needs'!$L$121/$G31","v":0},0,{"$f":"$I31*J$14^$D$6","v":{"$error":"#DIV/0!"}},{"$f":"$J31*(K$14/$J$14)^$D$6","v":{"$error":"#DIV/0!"}},{"$error":"#DIV/0!"},{"$error":"#DIV/0!"}]
[null,1,{"$f":"title520","v":"Metering Pumps"},{"$f":"\"USD/t \"&LOWER(title109)","v":"USD/t feedstock"},{"$f":"40000/20000","v":2},2010,146.4,{"$f":"'Data entry needs'!$L$121/$G32","v":0},0,{"$f":"$I32*J$14^$D$6","v":{"$error":"#DIV/0!"}},{"$error":"#DIV/0!"},{"$error":"#DIV/0!"},{"$error":"#DIV/0!"}]
[null,1,{"$f":"title521","v":"Pumps"},{"$f":"\"USD/t \"&LOWER(title109)","v":"USD/t feedstock"},{"$f":"90000/20000","v":4.5},2010,146.4,{"$f":"'Data entry needs'!$L$121/$G33","v":0},0,{"$error":"#DIV/0!"},{"$error":"#DIV/0!"},{"$error":"#DIV/0!"},{"$error":"#DIV/0!"}]
[null,1,{"$f":"title522","v":"Trommel screen"},{"$f":"\"USD/t \"&LOWER(title109)","v":"USD/t feedstock"},{"$f":"110000/20000","v":5.5},2010,146.4,{"$f":"'Data entry needs'!$L$121/$G34","v":0},0,{"$error":"#DIV/0!"},{"$error":"#DIV/0!"},{"$error":"#DIV/0!"},{"$error":"#DIV/0!"}]
[null,1,{"$f":"title523","v":"Mixers"},{"$f":"\"USD/t \"&LOWER(title109)","v":"USD/t feedstock"},{"$f":"40000/20000","v":2},2010,146.4,{"$f":"'Data entry needs'!$L$121/$G35","v":0},0,{"$f":"$I35*J$14^$D$6","v":{"$error":"#DIV/0!"}},{"$error":"#DIV/0!"},{"$error":"#DIV/0!"},{"$error":"#DIV/0!"}]
[null,1,{"$f":"title524","v":"Post digestion tank (for gravity separation)"},{"$f":"\"USD/m3 \"&title512","v":"USD/m3 BIOGAS"},{"$f":"0.9/0.3048^3/2","v":15.891600024669863},2010,146.4,{"$f":"'Data entry needs'!$L$121/$G36","v":0},0,{"$f":"$I36*J$18^$D$6","v":{"$error":"#DIV/0!"}},{"$f":"$J36*(K$18/$J$18)^$D$6","v":{"$error":"#DIV/0!"}},{"$f":"$J36*(L$18/$J$18)^$D$6","v":{"$error":"#DIV/0!"}},{"$f":"$J36*(M$18/$J$18)^$D$6","v":{"$error":"#DIV/0!"}}]
[null,1,{"$f":"title525","v":"Gas collection equipment"},{"$f":"\"USD/t \"&LOWER(title109)","v":"USD/t feedstock"},{"$f":"75000/10000","v":7.5},2010,146.4,{"$f":"'Data entry needs'!$L$121/$G37","v":0},0,{"$f":"$I37*J$14^$D$6","v":{"$error":"#DIV/0!"}},{"$f":"$J37*(K$14/$J$14)^$D$6","v":{"$error":"#DIV/0!"}},{"$f":"$J37*(L$14/$J$14)^$D$6","v":{"$error":"#DIV/0!"}},{"$f":"$J37*(M$14/$J$14)^$D$6","v":{"$error":"#DIV/0!"}}]
[null,1,{"$f":"title526","v":"Desulfurizing tower"},{"$f":"\"USD/m3 \"&title512","v":"USD/m3 BIOGAS"},0.9,2010,146.4,{"$f":"'Data entry needs'!$L$121/$G38","v":0},0,{"$f":"$I38*J$18^$D$6","v":{"$error":"#DIV/0!"}},{"$f":"$J38*(K$18/$J$18)^$D$6","v":{"$error":"#DIV/0!"}},{"$f":"$J38*(L$18/$J$18)^$D$6","v":{"$error":"#DIV/0!"}},{"$f":"$J38*(M$18/$J$18)^$D$6","v":{"$error":"#DIV/0!"}}]
[null,{"$f":"IF('Biogas Use Selection'!$P$67=1,1,0)","v":1},{"$f":"title527","v":"Microturbines (30-500 kW)"},"USD/kW",{"$f":"AVERAGE(300,1000)","v":650},2007,141,{"$f":"'Data entry needs'!$L$121/$G39","v":0},0,{"$f":"$I39*J$9^$D$6","v":0},{"$f":"$J39*(K$9/$J$9)^$D$6","v":0}]
[null,{"$f":"IF('Biogas Use Selection'!$P$67=1,1,0)","v":1},{"$f":"title528","v":"Combustion Turbine (500 kW - 50 MW)"},"USD/kW",{"$f":"AVERAGE(300,1000)","v":650},2007,141,{"$f":"'Data entry needs'!$L$121/$G40","v":0},0,null,null,{"$f":"$I40*J9*(L$9/$J$9)^$D$6","v":0},{"$f":"$I40*J9*(M$9/$J$9)^$D$6","v":0}]
[null,{"$f":"IF('Biogas Use Selection'!$P$67=3,1,0)","v":0},{"$f":"title529","v":"Reciprocating Engine (5 kW - 7 MW)"},"USD/kW",{"$f":"AVERAGE(300,900)","v":600},2007,141,{"$f":"'Data entry needs'!$L$121/$G41","v":0},0,{"$f":"$I41*J$9^$D$6","v":0},{"$f":"$J41*(K$9/$J$9)^$D$6","v":0},{"$f":"$J41*(L$9/$J$9)^$D$6","v":0},{"$f":"$J41*(M$9/$J$9)^$D$6","v":0}]
[null,null,null,null,{"$f":"title269","v":"Subtotal"},{"$f":"title269","v":"Subtotal"},null,null,null,{"$f":"SUM(J25:J41)","v":{"$error":"#DIV/0!"}},{"$f":"SUM(K25:K41)","v":{"$error":"#DIV/0!"}},{"$f":"SUM(L25:L41)","v":{"$error":"#DIV/0!"}},{"$f":"SUM(M25:M41)","v":{"$error":"#DIV/0!"}}]
[]
[null,null,{"$f":"title281","v":"Building"}]
[null,1,{"$f":"title532","v":"Building  w/slab"},{"$f":"\"USD/t \"&LOWER(title109)","v":"USD/t feedstock"},{"$f":"640000/100000","v":6.4},2010,146.4,{"$f":"'Data entry needs'!$L$121/$G45","v":0},{"$f":"E45*B45*$H45","v":0},{"$f":"$I45*J$14^$D$6","v":{"$error":"#DIV/0!"}},{"$f":"$J45*(K$18/$J$18)^$D$6","v":{"$error":"#DIV/0!"}},{"$error":"#DIV/0!"},{"$error":"#DIV/0!"}]
[null,1,{"$f":"title533","v":"50' Truck weighing scales"},{"$f":"\"USD/t \"&LOWER(title109)","v":"USD/t feedstock"},{"$f":"32700/10000","v":3.27},2010,146.4,{"$f":"'Data entry needs'!$L$121/$G46","v":0},0,{"$f":"$I46*J$14^$D$6","v":{"$error":"#DIV/0!"}},{"$error":"#DIV/0!"},{"$error":"#DIV/0!"},{"$error":"#DIV/0!"}]
[null,1,{"$f":"title534","v":"Foundation for scales inclu. Const."},{"$f":"\"USD/t \"&LOWER(title109)","v":"USD/t feedstock"},{"$f":"20000/10000","v":2},2010,146.4,{"$f":"'Data entry needs'!$L$121/$G47","v":0},0,{"$error":"#DIV/0!"},{"$error":"#DIV/0!"},{"$error":"#DIV/0!"},{"$error":"#DIV/0!"}]
[null,1,{"$f":"title535","v":"Front-End Loader"},{"$f":"\"USD/t \"&LOWER(title109)","v":"USD/t feedstock"},{"$f":"118000/20000","v":5.9},2010,146.4,{"$f":"'Data entry needs'!$L$121/$G48","v":0},0,{"$error":"#DIV/0!"},{"$error":"#DIV/0!"},{"$error":"#DIV/0!"},{"$error":"#DIV/0!"}]
[null,1,{"$f":"title536","v":"Solids drying area concrete slab"},{"$f":"\"USD/t \"&LOWER(title109)","v":"USD/t feedstock"},{"$f":"30*6400/20000","v":9.6},2010,146.4,{"$f":"'Data entry needs'!$L$121/$G49","v":0},0,{"$error":"#DIV/0!"},{"$error":"#DIV/0!"},{"$error":"#DIV/0!"},{"$error":"#DIV/0!"}]
[null,null,null,null,{"$f":"title269","v":"Subtotal"},{"$f":"title269","v":"Subtotal"},null,null,null,{"$f":"SUM(J45:J49)","v":{"$error":"#DIV/0!"}},{"$f":"SUM(K45:K49)","v":{"$error":"#DIV/0!"}},{"$f":"SUM(L45:L49)","v":{"$error":"#DIV/0!"}},{"$f":"SUM(M45:M49)","v":{"$error":"#DIV/0!"}}]
[null,null,{"$f":"title462","v":"Installation"}]
[null,{"$f":"IF(OR('Biogas Use Selection'!$P$67=1,'Biogas Use Selection'!$P$67=3),1,0)","v":1},{"$f":"title537","v":"Connection and earthing"},"USD/kW",27.142857142857142,2010,146.4,{"$f":"'Data entry needs'!$L$121/$G52","v":0},{"$f":"E52*B52*$H52","v":0},{"$f":"$I52*J$9^$D$6","v":0},{"$f":"$J52*(K$9/$J$9)^$D$6","v":0},{"$f":"$J52*(L$9/$J$9)^$D$6","v":0},{"$f":"$J52*(M$9/$J$9)^$D$6","v":0}]
[null,1,{"$f":"title538","v":"Land Preparation"},{"$f":"\"USD/t \"&LOWER(title109)","v":"USD/t feedstock"},{"$f":"87120/10000","v":8.7119999999999997},2010,146.4,{"$f":"'Data entry needs'!$L$121/$G53","v":0},0,{"$f":"$I53*J$14^$D$6","v":{"$error":"#DIV/0!"}},{"$f":"$J53*(K$18/$J$18)^$D$6","v":{"$error":"#DIV/0!"}},{"$f":"$J53*(L$18/$J$18)^$D$6","v":{"$error":"#DIV/0!"}},{"$f":"$J53*(M$18/$J$18)^$D$6","v":{"$error":"#DIV/0!"}}]
[null,{"$f":"IF(COST_PS1!$L$10=\"CSTR\",1,0)","v":1},{"$f":"title539","v":"Installation CSTR"},{"$f":"\"USD/m3 \"&title545","v":"USD/m3 ch4/year"},7.4000000000000003E-3,2010,146.4,{"$f":"'Data entry needs'!$L$121/$G54","v":0},0,{"$f":"$I54*J$7^$D$6","v":0},{"$f":"$J54*(K$7/$J$7)^$D$6","v":{"$error":"#DIV/0!"}},{"$error":"#DIV/0!"},{"$error":"#DIV/0!"}]
[null,{"$f":"IF(COST_PS1!$L$10=\"uasb\",1,0)","v":0},{"$f":"title540","v":"Installation UASB"},{"$f":"\"USD/m3 \"&title545","v":"USD/m3 ch4/year"},5.5000000000000005E-3,2010,146.4,{"$f":"'Data entry needs'!$L$121/$G55","v":0},0,{"$f":"$I55*J$7^$D$6","v":0},{"$error":"#DIV/0!"},{"$error":"#DIV/0!"},{"$error":"#DIV/0!"}]
[null,{"$f":"IF(COST_PS1!$L$10=title530,1,0)","v":0},{"$f":"title541","v":"Installation Plug Flow"},{"$f":"\"USD/m3 \"&title545","v":"USD/m3 ch4/year"},3.2291666666666662E-3,2010,146.4,{"$f":"'Data entry needs'!$L$121/$G56","v":0},0,0,{"$error":"#DIV/0!"},{"$error":"#DIV/0!"},{"$error":"#DIV/0!"}]
[null,{"$f":"IF(COST_PS1!$L$10=title531,1,0)","v":0},{"$f":"title542","v":"Installation Batch"},{"$f":"\"USD/m3 \"&title545","v":"USD/m3 ch4/year"},3.7000000000000002E-3,2010,146.4,{"$f":"'Data entry needs'!$L$121/$G57","v":0},0,0,{"$error":"#DIV/0!"},{"$error":"#DIV/0!"},{"$error":"#DIV/0!"}]
[null,1,{"$f":"title543","v":"Infrastructure (fencing) "},{"$f":"\"USD/t \"&LOWER(title109)","v":"USD/t feedstock"},{"$f":"46170/10000","v":4.617},2010,146.4,{"$f":"'Data entry needs'!$L$121/$G58","v":0},0,{"$f":"$I58*J$14^$D$6","v":{"$error":"#DIV/0!"}},{"$f":"$J58*(K$18/$J$18)^$D$6","v":{"$error":"#DIV/0!"}},{"$error":"#DIV/0!"},{"$error":"#DIV/0!"}]
[null,1,{"$f":"title544","v":"Infrastructure (roads) ($/ft2)"},{"$f":"\"USD/t \"&LOWER(title109)","v":"USD/t feedstock"},{"$f":"60000/10000","v":6},2010,146.4,{"$f":"'Data entry needs'!$L$121/$G59","v":0},0,{"$f":"$I59*J$14^$D$6","v":{"$error":"#DIV/0!"}},{"$error":"#DIV/0!"},{"$error":"#DIV/0!"},{"$error":"#DIV/0!"}]
[null,null,null,null,{"$f":"title269","v":"Subtotal"},{"$f":"title269","v":"Subtotal"},null,null,null,{"$f":"SUM(J52:J59)","v":{"$error":"#DIV/0!"}},{"$f":"SUM(K52:K59)","v":{"$error":"#DIV/0!"}},{"$f":"SUM(L52:L59)","v":{"$error":"#DIV/0!"}},{"$f":"SUM(M52:M59)","v":{"$error":"#DIV/0!"}}]
[null,null,{"$f":"title546","v":"Electricity Distribution network"}]
[null,{"$f":"IF(OR('Biogas Use Selection'!$P$67=1,'Biogas Use Selection'!$P$67=3),1,0)","v":1},{"$f":"title547","v":" Primary electricity cable"},"USD/m",7.4539999999999997,2010,146.4,{"$f":"'Data entry needs'!$L$121/$G62","v":0},{"$f":"E62*B62*$H62","v":0},{"$f":"+J$16*$I62","v":0},{"$f":"+K$16*$I62","v":0},{"$f":"+L$16*$I62","v":0},{"$f":"+M$16*$I62","v":0}]
[null,{"$f":"IF(OR('Biogas Use Selection'!$P$67=1,'Biogas Use Selection'!$P$67=3),1,0)","v":1},{"$f":"title548","v":"Secondary cable, installation and meter"},{"$f":"title557","v":"USD/household"},164,2010,146.4,{"$f":"'Data entry needs'!$L$121/$G63","v":0},0,{"$f":"$I$63*J$12","v":0},{"$f":"$I$63*K$12","v":0},{"$f":"$I$63*L$12","v":0},{"$f":"$I$63*M$12","v":0}]
[null,null,null,null,{"$f":"title269","v":"Subtotal"},{"$f":"title269","v":"Subtotal"},null,null,null,{"$f":"SUM(J62:J63)","v":0},{"$f":"SUM(K62:K63)","v":0},{"$f":"SUM(L62:L63)","v":0},{"$f":"SUM(M62:M63)","v":0}]
[null,null,{"$f":"title549","v":"Heat Distribution System"}]
[null,{"$f":"IF('Biogas Use Selection'!$P$67=1,1,0)","v":1},{"$f":"title550","v":"Dwelling System"},"USD/MJ",1.4222435477483325E-3,2008,135.30000000000001,{"$f":"'Data entry needs'!$L$121/$G66","v":0},{"$f":"E66*B66*$H66","v":0},{"$f":"$I$66*J17*1000","v":{"$error":"#DIV/0!"}},{"$f":"$J66*(K$17/$J$17)^$D$6","v":{"$error":"#DIV/0!"}},{"$f":"$J66*(L$17/$J$17)^$D$6","v":{"$error":"#DIV/0!"}},{"$f":"$J66*(M$17/$J$17)^$D$6","v":{"$error":"#DIV/0!"}}]
[null,null,null,null,{"$f":"title269","v":"Subtotal"},{"$f":"title269","v":"Subtotal"},null,null,null,{"$f":"SUM(J66:J66)","v":{"$error":"#DIV/0!"}},{"$f":"SUM(K66:K66)","v":{"$error":"#DIV/0!"}},{"$f":"SUM(L66:L66)","v":{"$error":"#DIV/0!"}},{"$f":"SUM(M66:M66)","v":{"$error":"#DIV/0!"}}]
[null,null,{"$f":"title551","v":"Biogas Distribution System"}]
[null,{"$f":"IF(AND('Biogas Use Selection'!$P$67=2,NOT('Biogas Use Selection'!K35),'Biogas Use Selection'!$J$35=title75),1,0)","v":0},{"$f":"title552","v":"Pipe system (Biogas distribution)"},{"$f":"title557","v":"USD/household"},52.63,2006,135.30000000000001,{"$f":"'Data entry needs'!$L$121/$G69","v":0},{"$f":"E69*B69*$H69","v":0},{"$f":"$I69*J$13","v":0},{"$f":"$I69*K$13","v":0},{"$f":"$I69*L$13","v":0},{"$f":"$I69*M$13","v":0}]
[null,{"$f":"IF(AND('Biogas Use Selection'!$P$67=4,'Biogas Use Selection'!$E$56),1,0)","v":0},{"$f":"title553","v":"Pipe system (BIOMETHANE distribution)"},"USD/m",{"$f":"AVERAGE(100000,250000)/1609.344","v":108.73995864153345},2006,135.30000000000001,{"$f":"'Data entry needs'!$L$121/$G70","v":0},0,{"$f":"$I$70*'Biogas Use Selection'!$E$58*1000","v":0},{"$f":"$I$70*'Biogas Use Selection'!$E$58*1000","v":0},{"$f":"$I$70*'Biogas Use Selection'!$E$58*1000","v":0},{"$f":"$I$70*'Biogas Use Selection'!$E$58*1000","v":0}]
[null,null,null,null,null,{"$f":"title269","v":"Subtotal"},null,null,null,{"$f":"SUM(J69:J70)","v":0},{"$f":"SUM(K69:K70)","v":0},{"$f":"SUM(L69:L70)","v":0},{"$f":"SUM(M69:M70)","v":0}]
[null,null,{"$f":"title554","v":"Upgrade and connection to natural gas"}]
[null,{"$f":"IF(OR('Biogas Use Selection'!$P$67=4,'Biogas Use Selection'!$P$67=5),1,0)","v":0},{"$f":"title555","v":"Biogas Upgrading, Testing, and Injection Systems "},{"$f":"title558","v":"USD/m3/year"},1.2209860833884656,2009,138.9,{"$f":"'Data entry needs'!$L$121/$G73","v":0},{"$f":"E73*B73*$H73","v":0},{"$f":"+J$7*$I73/Planner_PS1!$AG$107","v":{"$error":"#DIV/0!"}},{"$f":"$J73*(K$7/$J$7)^$D$6","v":{"$error":"#DIV/0!"}},{"$error":"#DIV/0!"},{"$error":"#DIV/0!"}]
[null,{"$f":"IF('Biogas Use Selection'!$P$67=4,1,0)","v":0},{"$f":"title556","v":"Connection to Utility Natural Gas Pipeline"},{"$f":"title558","v":"USD/m3/year"},0.26298161796059261,2010,146.4,{"$f":"'Data entry needs'!$L$121/$G74","v":0},0,{"$f":"+J$7*$I74/Planner_PS1!$AG$107","v":{"$error":"#DIV/0!"}},{"$error":"#DIV/0!"},{"$error":"#DIV/0!"},{"$error":"#DIV/0!"}]
[null,null,null,null,{"$f":"title269","v":"Subtotal"},{"$f":"title269","v":"Subtotal"},null,null,null,{"$f":"SUM(J73:J74)","v":{"$error":"#DIV/0!"}},{"$f":"SUM(K73:K74)","v":{"$error":"#DIV/0!"}},{"$f":"SUM(L73:L74)","v":{"$error":"#DIV/0!"}},{"$f":"SUM(M73:M74)","v":{"$error":"#DIV/0!"}}]

{"sheet":"COST_PS2","index":25,"n_rows":134,"n_cols":38,"rows_kept":134,"cut":false,"hidden":false,"merged":[[112,2,113,2],[112,3,113,3],[112,4,113,4],[108,5,108,12],[109,5,109,6],[109,7,109,8],[109,9,109,10],[109,11,109,12],[110,5,110,6],[110,7,110,8],[110,9,110,10],[110,11,110,12],[97,9,97,10],[97,11,97,12],[99,2,100,2],[99,3,100,3],[99,4,100,4],[99,5,99,12],[100,5,100,6],[100,7,100,8],[100,9,100,10],[100,11,100,12],[97,7,97,8],[92,2,93,2],[92,3,93,3],[92,4,93,4],[97,2,97,4],[97,5,97,6],[82,11,82,12],[84,2,85,2],[84,3,85,3],[84,4,85,4],[89,5,89,6],[89,7,89,8],[89,9,89,10],[89,11,89,12],[82,9,82,10],[74,2,75,2],[74,3,75,3],[74,4,75,4],[82,5,82,6],[82,7,82,8],[72,5,72,6],[72,7,72,8],[72,9,72,10],[72,11,72,12],[45,2,46,2],[45,3,46,3],[52,2,53,2],[52,3,53,3],[60,5,60,6],[60,7,60,8],[60,9,60,10],[60,11,60,12],[62,2,63,2],[62,3,63,3],[62,4,63,4],[36,2,37,2],[36,3,37,3],[43,5,43,6],[43,7,43,8],[43,9,43,10],[43,11,43,12],[31,5,31,12],[32,5,32,6],[32,7,32,8],[32,9,32,10],[32,11,32,12],[33,7,33,8],[33,9,33,10],[33,11,33,12],[12,9,12,12],[19,4,19,7],[19,9,20,9],[19,10,20,10],[19,11,20,11],[19,12,20,12],[2,2,2,12],[5,3,5,5],[7,6,7,7],[9,6,9,7],[9,9,9,10],[9,11,9,12]]}
[]
[]
[null,null,{"$f":"title222&\" 2\"","v":" PROCESSING COSTS FOR PROCESS 2"}]
[]
[]
[null,null,{"$f":"title193","v":"Use white cells to input data"},{"$f":"title194","v":"Grey cells are used for calculations"}]
[]
[null,null,{"$f":"title223","v":"Summary of Feedstock Selected"},null,null,null,{"$f":"IF('Data entry needs'!$D$11,title230,IF('Data entry needs'!$F$11,title231,IF('Data entry needs'!$J$11,title230)))","v":"Biogas Properties"},null,null,{"$f":"title235","v":"Technical Parameters"}]
[]
[null,null,{"$f":"title224","v":"Type of Operation"},{"$f":"IF('Data entry needs'!$D$11,'Data entry needs'!$D$12,IF('Data entry needs'!$F$11,'Data entry needs'!$F$12,IF('Data entry needs'!$J$11,'Data entry needs'!$J$12)))","v":"Optimized Co-digestion"},{"$f":"title225","v":"Fs Available (t/yr)"},null,{"$f":"IF('Data entry needs'!$D$11,'Data entry needs'!$D$12,IF('Data entry needs'!$F$11,'Data entry needs'!$F$12,IF('Data entry needs'!$J$11,'Data entry needs'!$J$12)))","v":"Optimized Co-digestion"},null,null,{"$f":"title236","v":"Type of Fermentor"},null,"CSTR"]
[{"$f":"'Data entry needs'!$B39","v":39},{"$f":"A11*Planner_PS2!$AH100","v":0},{"$f":"IF($B11=0,\"\",title226&\" - \"&INDIRECT(\"'Data entry needs'!$d\"&$B11)&\" :\")","v":""},{"$f":"IF($B11=0,\"\",INDIRECT(\"'Data entry needs'!$e\"&$B11))","v":""},{"$f":"IF($B11=0,\"\",INDIRECT(\"'Data entry needs'!$f\"&$B11))","v":""},null,{"$f":"IFERROR(title232&ROUND(Planner_PS2!$AD$107*100,0)&\"%\",\"\")","v":""},null,null,null,{"$f":"IFERROR(title237&VLOOKUP($L$10,Planner_PS2!$AJ$116:$AP$119,2,FALSE)*100&\"%\",\"\")","v":"Min. TS Allowed : 2%"},null,{"$f":"IFERROR(title238&VLOOKUP($L$10,Planner_PS2!$AJ$116:$AP$119,3,FALSE)*100&\"%\",\"\")","v":"Max. TS Allowed: 20%"}]
[{"$f":"$A11+2","v":41},{"$f":"A12*Planner_PS2!$AH101","v":0},{"$f":"IF($B12=0,\"\",title227&\" - \"&INDIRECT(\"'Data entry needs'!$d\"&$B12)&\" :\")","v":""},"","",null,{"$f":"IFERROR(\"BMP (m^3 CH4/t VS) : \"&ROUND(Planner_PS2!$AF$107,0),\"\")","v":""},null,null,{"$f":"title239","v":"Temperature Regime (°C)"},null,"Mesophilic",{"$f":"IF($L$12=title241,AVERAGE(55,60),AVERAGE(35,40))","v":37.5}]
[{"$f":"$A12+2","v":43},{"$f":"A13*Planner_PS2!$AH102","v":0},{"$f":"IF($B13=0,\"\",title228&\" - \"&INDIRECT(\"'Data entry needs'!$d\"&$B13)&\" :\")","v":""},"","",null,{"$f":"IFERROR(title233&ROUND(Planner_PS2!$AG$107*100,0)&\"%\",\"\")","v":""},null,null,{"$f":"IF(VLOOKUP($L$10,Planner_PS2!$AJ$116:$AQ$119,8,FALSE),title242,title243&VLOOKUP($L$10,Planner_PS2!$AJ$116:$AQ$119,7,FALSE)*100&\"% TS\")","v":{"$error":"#DIV/0!"}}]
[{"$f":"$A13+2","v":45},{"$f":"A14*Planner_PS2!$AH103","v":0},{"$f":"IF($B14=0,\"\",title229&\" - \"&INDIRECT(\"'Data entry needs'!$d\"&$B14)&\" :\")","v":""},"","",null,{"$f":"IFERROR(title234&ROUND(Planner_PS2!$AE$107*100,0)&\"%\",\"\")","v":""}]
[{"$f":"$A14+2","v":47},{"$f":"A15*Planner_PS2!$AH104","v":0},{"$f":"IF($B15=0,\"\",title258&\" - \"&INDIRECT(\"'Data entry needs'!$d\"&$B15)&\" :\")","v":""},"","",null,null,null,null,"HRT Min. (d)",{"$f":"VLOOKUP($L$10,Planner_PS2!$AJ$116:$AP$119,5,FALSE)*IF($L$12=title241,0.5,1)","v":15},{"$f":"title244","v":"Water Make-up "}]
[{"$f":"$A15+4","v":51},{"$f":"A16*Planner_PS2!$AH105","v":0},{"$f":"IF($B16=0,\"\",title219&\"  - \"&INDIRECT(\"'Data entry needs'!$d\"&$B16)&\" :\")","v":""},"","",null,null,null,null,"HRT Max. (d)",{"$f":"VLOOKUP($L$10,Planner_PS2!$AJ$116:$AP$119,6,FALSE)*IF($L$12=title241,0.5,1)","v":40},{"$f":"title245","v":"Select a HRT (d)"}]
[]
[null,null,{"$f":"title257","v":"Transport Distance of Feedstock(s) from collection point to biogas plant"},null,null,null,null,null,null,{"$f":"title261","v":"Storage Capacity and Unitary Costs"}]
[]
[null,null,null,null,{"$f":"title259","v":"Transport Distances (km)"},null,null,null,null,{"$f":"title262","v":"Storage capacity Required (t)"},{"$f":"title116","v":"Storage Cost (USD/t)"},{"$f":"title263","v":"Feedstock Price (USD/t)"},{"$f":"title264","v":"Transport Cost (USD/t/km)"}]
[null,null,null,null,{"$f":"ROUND(F33,0)&\" (\"&IF(OR('Biogas Use Selection'!$P$67=5,'Biogas Use Selection'!$P$67=2),title260,IF(OR('Biogas Use Selection'!$P$67=1,'Biogas Use Selection'!$P$67=3),Planner_PS2!$AC$128,IF('Biogas Use Selection'!$P$67=4,Planner_PS2!$AC$127)))&\")\"","v":"100 (kWe)"},{"$f":"ROUND(H33,0)&\" (\"&IF(OR('Biogas Use Selection'!$P$67=5,'Biogas Use Selection'!$P$67=2),title260,IF(OR('Biogas Use Selection'!$P$67=1,'Biogas Use Selection'!$P$67=3),Planner_PS2!$AC$128,IF('Biogas Use Selection'!$P$67=4,Planner_PS2!$AC$127)))&\")\"","v":"105 (kWe)"},{"$f":"ROUND(J33,0)&\" (\"&IF(OR('Biogas Use Selection'!$P$67=5,'Biogas Use Selection'!$P$67=2),title260,IF(OR('Biogas Use Selection'!$P$67=1,'Biogas Use Selection'!$P$67=3),Planner_PS2!$AC$128,IF('Biogas Use Selection'!$P$67=4,Planner_PS2!$AC$127)))&\")\"","v":"115 (kWe)"},{"$f":"ROUND(L33,0)&\" (\"&IF(OR('Biogas Use Selection'!$P$67=5,'Biogas Use Selection'!$P$67=2),title260,IF(OR('Biogas Use Selection'!$P$67=1,'Biogas Use Selection'!$P$67=3),Planner_PS2!$AC$128,IF('Biogas Use Selection'!$P$67=4,Planner_PS2!$AC$127)))&\")\"","v":"120 (kWe)"}]
[null,{"$f":"$B11","v":0},{"$f":"IF($B11=0,\"\",title226&\" - \"&INDIRECT(\"'Data entry needs'!$e\"&$B11))","v":""},null,null,null,null,null,null,{"$f":"IF($B11=0,\"\",MAX(Planner_PS2!F13:Q13))","v":""},{"$f":"IF($B11=0,\"\",INDIRECT(\"'Data entry needs'!$m\"&$B11))","v":""},{"$f":"IF($B11=0,\"\",INDIRECT(\"'Data entry needs'!$k\"&$B11))","v":""}]
[null,0,{"$f":"IF($B12=0,\"\",title227&\" - \"&INDIRECT(\"'Data entry needs'!$e\"&$B12))","v":""},null,null,null,null,null,null,{"$f":"IF($B12=0,\"\",MAX(Planner_PS2!F14:Q14))","v":""},"",""]
[null,0,{"$f":"IF($B13=0,\"\",title228&\" - \"&INDIRECT(\"'Data entry needs'!$e\"&$B13))","v":""},null,null,null,null,null,null,{"$f":"IF($B13=0,\"\",MAX(Planner_PS2!F15:Q15))","v":""},"",""]
[null,0,{"$f":"IF($B14=0,\"\",title229&\" - \"&INDIRECT(\"'Data entry needs'!$e\"&$B14))","v":""},null,null,null,null,null,null,{"$f":"IF($B14=0,\"\",MAX(Planner_PS2!F16:Q16))","v":""},"",""]
[null,0,{"$f":"IF($B15=0,\"\",title258&\" - \"&INDIRECT(\"'Data entry needs'!$e\"&$B15))","v":""},null,null,null,null,null,null,{"$f":"IF($B15=0,\"\",MAX(Planner_PS2!F17:Q17))","v":""},"",""]
[null,0,{"$f":"IF($B16=0,\"\",title219&\" - \"&INDIRECT(\"'Data entry needs'!$e\"&$B16))","v":""},null,null,null,null,null,null,{"$f":"IF($B16=0,\"\",MAX(Planner_PS2!F18:Q18))","v":""},"",""]
[]
[]
[null,null,{"$f":"title559","v":"Production Cost Details"}]
[]
[null,null,null,null,null,{"$f":"title291&IF(OR('Biogas Use Selection'!$P$67=5,'Biogas Use Selection'!$P$67=2),title260,IF(OR('Biogas Use Selection'!$P$67=1,'Biogas Use Selection'!$P$67=3),Planner_PS2!$AC$128,IF('Biogas Use Selection'!$P$67=4,Planner_PS2!$AC$127)))&\")\"","v":"Capacities (kWe)"}]
[null,null,null,null,null,{"$f":"IF(OR('Biogas Use Selection'!$P$67=5,'Biogas Use Selection'!$P$67=2),Planner_PS2!AD$127/Planner_PS2!$AG$107,IF(OR('Biogas Use Selection'!$P$67=1,'Biogas Use Selection'!$P$67=3),Planner_PS2!AD$128,IF('Biogas Use Selection'!$P$67=4,Planner_PS2!AD$127)))","v":100},null,{"$f":"IF(OR('Biogas Use Selection'!$P$67=5,'Biogas Use Selection'!$P$67=2),Planner_PS2!AE$127/Planner_PS2!$AG$107,IF(OR('Biogas Use Selection'!$P$67=1,'Biogas Use Selection'!$P$67=3),Planner_PS2!AE$128,IF('Biogas Use Selection'!$P$67=4,Planner_PS2!AE$127)))","v":105},null,{"$f":"IF(OR('Biogas Use Selection'!$P$67=5,'Biogas Use Selection'!$P$67=2),Planner_PS2!AF$127/Planner_PS2!$AG$107,IF(OR('Biogas Use Selection'!$P$67=1,'Biogas Use Selection'!$P$67=3),Planner_PS2!AF$128,IF('Biogas Use Selection'!$P$67=4,Planner_PS2!AF$127)))","v":115},null,{"$f":"IF(OR('Biogas Use Selection'!$P$67=5,'Biogas Use Selection'!$P$67=2),Planner_PS2!AG$127/Planner_PS2!$AG$107,IF(OR('Biogas Use Selection'!$P$67=1,'Biogas Use Selection'!$P$67=3),Planner_PS2!AG$128,IF('Biogas Use Selection'!$P$67=4,Planner_PS2!AG$127)))","v":120}]
[]
[null,null,null,null,null,{"$f":"title265","v":"Operating hours per year"},{"$f":"'Data entry needs'!$L$100*24","v":0},{"$f":"title265","v":"Operating hours per year"},{"$f":"'Data entry needs'!$L$100*24","v":0},{"$f":"title265","v":"Operating hours per year"},{"$f":"'Data entry needs'!$L$100*24","v":0},{"$f":"title265","v":"Operating hours per year"},{"$f":"'Data entry needs'!$L$100*24","v":0}]
[]
[null,null,{"$f":"title266","v":"Inputs"},{"$f":"title27","v":"Unit"},{"$f":"title267","v":"Unit Price"},{"$f":"title270","v":"Quantity"},"Total",{"$f":"title270","v":"Quantity"},"Total",{"$f":"title270","v":"Quantity"},"Total",{"$f":"title270","v":"Quantity"},"Total"]
[null,null,null,null,{"$f":"\"(\"&title24&\")\"","v":"(USD/unit)"},{"$f":"title271","v":"(Unit/year)"},{"$f":"title272","v":"(USD/year)"},{"$f":"title271","v":"(Unit/year)"},{"$f":"title272","v":"(USD/year)"},{"$f":"title271","v":"(Unit/year)"},{"$f":"title272","v":"(USD/year)"},{"$f":"title271","v":"(Unit/year)"},{"$f":"title272","v":"(USD/year)"}]
[null,null,{"$f":"IF('Data entry needs'!$D$11,'Data entry needs'!$D$12,IF('Data entry needs'!$F$11,'Data entry needs'!$F$12,IF('Data entry needs'!$J$11,'Data entry needs'!$J$12)))","v":"Optimized Co-digestion"},"t",{"$f":"Planner_PS2!$AM$110","v":{"$error":"#DIV/0!"}},{"$f":"Planner_PS2!$AD$133","v":{"$error":"#DIV/0!"}},{"$f":"+F39*E39","v":{"$error":"#DIV/0!"}},{"$f":"Planner_PS2!$AE$133","v":{"$error":"#DIV/0!"}},{"$f":"+H39*$E39","v":{"$error":"#DIV/0!"}},{"$f":"Planner_PS2!$AF$133","v":{"$error":"#DIV/0!"}},{"$f":"+J39*$E39","v":{"$error":"#DIV/0!"}},{"$f":"Planner_PS2!$AG$133","v":{"$error":"#DIV/0!"}},{"$f":"+L39*$E39","v":{"$error":"#DIV/0!"}}]
[null,null,{"$f":"title244","v":"Water Make-up "},"m3",{"$f":"'Data entry needs'!$F$92","v":0},{"$f":"Planner_PS2!$AD$136*$M$15","v":{"$error":"#DIV/0!"}},{"$f":"+F40*E40","v":{"$error":"#DIV/0!"}},{"$f":"Planner_PS2!$AE$136*$M$15","v":{"$error":"#DIV/0!"}},{"$f":"+H40*$E40","v":{"$error":"#DIV/0!"}},{"$f":"Planner_PS2!$AF$136*$M$15","v":{"$error":"#DIV/0!"}},{"$f":"+J40*$E40","v":{"$error":"#DIV/0!"}},{"$f":"Planner_PS2!$AG$136*$M$15","v":{"$error":"#DIV/0!"}},{"$f":"+L40*$E40","v":{"$error":"#DIV/0!"}}]
[null,{"$f":"IF(OR('Biogas Use Selection'!$P$67=1,'Biogas Use Selection'!$P$67=3),0,1)","v":0},{"$f":"title35&\" \"&IF(B41=1,\"\",title268)","v":"Electricity  - Consumption Self-Supplied"},"KWh",{"$f":"'Data entry needs'!$L$92*B41","v":0},{"$f":"VLOOKUP($L$10,Planner_PS2!$AA$150:$AE$153,2,FALSE)+Planner_PS2!$AB$179","v":{"$error":"#DIV/0!"}},{"$f":"+F41*E41","v":{"$error":"#DIV/0!"}},{"$f":"VLOOKUP($L$10,Planner_PS2!$AA$150:$AE$153,3,FALSE)+Planner_PS2!$AC$179","v":{"$error":"#DIV/0!"}},{"$f":"+H41*$E41","v":{"$error":"#DIV/0!"}},{"$f":"VLOOKUP($L$10,Planner_PS2!$AA$150:$AE$153,4,FALSE)+Planner_PS2!$AD$179","v":{"$error":"#DIV/0!"}},{"$f":"+J41*$E41","v":{"$error":"#DIV/0!"}},{"$f":"VLOOKUP($L$10,Planner_PS2!$AA$150:$AE$153,5,FALSE)+Planner_PS2!$AE$179","v":{"$error":"#DIV/0!"}},{"$f":"+L41*$E41","v":{"$error":"#DIV/0!"}}]
[null,{"$f":"IF('Biogas Use Selection'!$P$67=1,0,1)","v":0},{"$f":"title51&IF(B42=1,\"\",title268)","v":"Heat - Consumption Self-Supplied"},"USD/GJ",{"$f":"'Data entry needs'!$L$93*B42","v":0},{"$f":"Planner_PS2!$AN$144","v":{"$error":"#DIV/0!"}},{"$f":"+F42*E42","v":{"$error":"#DIV/0!"}},{"$f":"Planner_PS2!$AN$145","v":{"$error":"#DIV/0!"}},{"$f":"+H42*$E42","v":{"$error":"#DIV/0!"}},{"$f":"Planner_PS2!$AN$146","v":{"$error":"#DIV/0!"}},{"$f":"+J42*$E42","v":{"$error":"#DIV/0!"}},{"$f":"Planner_PS2!$AN$147","v":{"$error":"#DIV/0!"}},{"$f":"+L42*$E42","v":{"$error":"#DIV/0!"}}]
[null,null,"NaOH","t",{"$f":"'Data entry needs'!$F$93","v":0},{"$f":"F39*2%","v":{"$error":"#DIV/0!"}},{"$f":"F43*$E$43","v":{"$error":"#DIV/0!"}},{"$f":"H39*2%","v":{"$error":"#DIV/0!"}},{"$f":"H43*$E$43","v":{"$error":"#DIV/0!"}},{"$f":"J39*2%","v":{"$error":"#DIV/0!"}},{"$f":"J43*$E$43","v":{"$error":"#DIV/0!"}},{"$f":"L39*2%","v":{"$error":"#DIV/0!"}},{"$f":"L43*$E$43","v":{"$error":"#DIV/0!"}}]
[null,null,{"$f":"title269","v":"Subtotal"},null,null,{"$f":"SUM(G39:G43)","v":{"$error":"#DIV/0!"}},null,{"$f":"SUM(I39:I43)","v":{"$error":"#DIV/0!"}},null,{"$f":"SUM(K39:K43)","v":{"$error":"#DIV/0!"}},null,{"$f":"SUM(M39:M43)","v":{"$error":"#DIV/0!"}}]
[]
[null,null,{"$f":"title273","v":"Labour and miscellaneous costs"},{"$f":"title27","v":"Unit"},{"$f":"title267","v":"Unit Price"},{"$f":"title270","v":"Quantity"},"Total",{"$f":"title270","v":"Quantity"},"Total",{"$f":"title270","v":"Quantity"},"Total",{"$f":"title270","v":"Quantity"},"Total"]
[null,null,null,null,{"$f":"\"(\"&title128&\")\"","v":"(USD/person-hour)"},{"$f":"\"(\"&title27&\")\"","v":"(Unit)"},{"$f":"title272","v":"(USD/year)"},{"$f":"\"(\"&title27&\")\"","v":"(Unit)"},{"$f":"title272","v":"(USD/year)"},{"$f":"\"(\"&title27&\")\"","v":"(Unit)"},{"$f":"title272","v":"(USD/year)"},{"$f":"\"(\"&title27&\")\"","v":"(Unit)"},{"$f":"title272","v":"(USD/year)"}]
[null,null,{"$f":"title127","v":"Unskilled worker"},{"$f":"title275","v":" # employee"},{"$f":"'Data entry needs'!$L$96","v":0},{"$f":"ROUNDUP(0.42*'COST(ADJUSTED)_PS2'!$J$9*'COST(ADJUSTED)_PS2'!$J$15/1000000,0)","v":0},{"$f":"+E48*F48*G35","v":0},{"$f":"ROUNDUP(0.42*'COST(ADJUSTED)_PS2'!$K$9*'COST(ADJUSTED)_PS2'!$K$15/1000000,0)","v":0},{"$f":"+$E48*H48*I35","v":0},{"$f":"ROUNDUP(0.42*'COST(ADJUSTED)_PS2'!$L$9*'COST(ADJUSTED)_PS2'!$L$15/1000000,0)","v":0},{"$f":"+$E48*J48*K35","v":0},{"$f":"ROUNDUP(0.42*'COST(ADJUSTED)_PS2'!$M$9*'COST(ADJUSTED)_PS2'!$M$15/1000000,0)","v":0},{"$f":"+$E48*L48*M35","v":0}]
[null,null,{"$f":"title126","v":"Skilled worker"},{"$f":"title275","v":" # employee"},{"$f":"'Data entry needs'!$F$96","v":0},{"$f":"ROUNDUP(F48/5,0)","v":0},{"$f":"+E49*F49*G35","v":0},{"$f":"ROUNDUP(H48/5,0)","v":0},{"$f":"+$E49*H49*I35","v":0},{"$f":"ROUNDUP(J48/10,0)","v":0},{"$f":"+$E49*J49*K35","v":0},{"$f":"ROUNDUP(L48/10,0)","v":0},{"$f":"+$E49*L49*M35","v":0}]
[null,null,{"$f":"title274","v":"Miscellaneous costs"},null,null,{"$f":"'Data entry needs'!$L$114","v":0},{"$f":"+F50*SUM(G48:G49)","v":0},{"$f":"'Data entry needs'!$L$114","v":0},{"$f":"+H50*SUM(I48:I49)","v":0},{"$f":"'Data entry needs'!$L$114","v":0},{"$f":"+J50*SUM(K48:K49)","v":0},{"$f":"'Data entry needs'!$L$114","v":0},{"$f":"+L50*SUM(M48:M49)","v":0}]
[null,null,{"$f":"title269","v":"Subtotal"},null,null,null,{"$f":"SUM(G48:G50)","v":0},null,{"$f":"SUM(I48:I50)","v":0},null,{"$f":"SUM(K48:K50)","v":0},null,{"$f":"SUM(M48:M50)","v":0}]
[]
[null,null,{"$f":"title276","v":"Transportation"},{"$f":"title27","v":"Unit"},{"$f":"title267","v":"Unit Price"},{"$f":"title270","v":"Quantity"},"Total",{"$f":"title270","v":"Quantity"},"Total",{"$f":"title270","v":"Quantity"},"Total",{"$f":"title270","v":"Quantity"},"Total"]
[null,null,null,null,"(USD/t/km)",{"$f":"\"(\"&title27&\")\"","v":"(Unit)"},{"$f":"title272","v":"(USD/year)"},{"$f":"\"(\"&title27&\")\"","v":"(Unit)"},{"$f":"title272","v":"(USD/year)"},{"$f":"\"(\"&title27&\")\"","v":"(Unit)"},{"$f":"title272","v":"(USD/year)"},{"$f":"\"(\"&title27&\")\"","v":"(Unit)"},{"$f":"title272","v":"(USD/year)"}]
[{"$f":"A11","v":39},{"$f":"A55*Planner_PS2!$AH100","v":0},{"$f":"IF($B55=0,\"\",title226&\" - \"&INDIRECT(\"'Data entry needs'!$e\"&$B55))","v":""},{"$f":"IF($B55=0,\"\",\"km\")","v":""},{"$f":"IF($B55=0,\"\",$M22)","v":""},{"$f":"IF($B55=0,\"\",$E22)","v":""},{"$f":"IFERROR($F55*$E55*F$39,0)","v":0},{"$f":"IF($B55=0,\"\",$F22)","v":""},{"$f":"IFERROR($H55*$E55*H$39,0)","v":0},{"$f":"IF($B55=0,\"\",$G22)","v":""},{"$f":"IFERROR($J55*$E55*J$39,0)","v":0},{"$f":"IF($B55=0,\"\",$H22)","v":""},{"$f":"IFERROR($L55*$E55*L$39,0)","v":0}]
[41,{"$f":"A56*Planner_PS2!$AH101","v":0},{"$f":"IF($B56=0,\"\",title227&\" - \"&INDIRECT(\"'Data entry needs'!$e\"&$B56))","v":""},"","","",0,"",0,"",0,"",0]
[43,{"$f":"A57*Planner_PS2!$AH102","v":0},{"$f":"IF($B57=0,\"\",title228&\" - \"&INDIRECT(\"'Data entry needs'!$e\"&$B57))","v":""},"","","",0,"",0,"",0,"",0]
[45,{"$f":"A58*Planner_PS2!$AH103","v":0},{"$f":"IF($B58=0,\"\",title229&\" - \"&INDIRECT(\"'Data entry needs'!$e\"&$B58))","v":""},"","","",0,"",0,"",0,"",0]
[47,{"$f":"A59*Planner_PS2!$AH104","v":0},{"$f":"IF($B59=0,\"\",title258&\" - \"&INDIRECT(\"'Data entry needs'!$e\"&$B59))","v":""},"","","",0,"",0,"",0,"",0]
[51,{"$f":"A60*Planner_PS2!$AH105","v":0},{"$f":"IF($B60=0,\"\",title219&\" - \"&INDIRECT(\"'Data entry needs'!$e\"&$B60))","v":""},"","","",0,"",0,"",0,"",0]
[null,null,{"$f":"title269","v":"Subtotal"},null,null,{"$f":"SUM(G55:G60)","v":0},{"$f":"SUM(G55:G60)","v":0},{"$f":"SUM(I55:I60)","v":0},{"$f":"SUM(I55:I60)","v":0},{"$f":"SUM(K55:K60)","v":0},{"$f":"SUM(K55:K60)","v":0},{"$f":"SUM(M55:M60)","v":0},{"$f":"SUM(M55:M60)","v":0}]
[]
[null,null,{"$f":"title175","v":"Storage"},{"$f":"title27","v":"Unit"},{"$f":"title267","v":"Unit Price"},{"$f":"title270","v":"Quantity"},"Total",{"$f":"title270","v":"Quantity"},"Total",{"$f":"title270","v":"Quantity"},"Total",{"$f":"title270","v":"Quantity"},"Total"]
[null,null,null,null,null,{"$f":"\"(\"&title27&\")\"","v":"(Unit)"},{"$f":"title272","v":"(USD/year)"},{"$f":"\"(\"&title27&\")\"","v":"(Unit)"},{"$f":"title272","v":"(USD/year)"},{"$f":"\"(\"&title27&\")\"","v":"(Unit)"},{"$f":"title272","v":"(USD/year)"},{"$f":"\"(\"&title27&\")\"","v":"(Unit)"},{"$f":"title272","v":"(USD/year)"}]
[{"$f":"A55","v":39},{"$f":"A65*Planner_PS2!$AH100","v":0},{"$f":"IF($B65=0,\"\",title226&\" - \"&INDIRECT(\"'Data entry needs'!$e\"&$B65))","v":""},{"$f":"IF($B65=0,\"\",\"USD/t\")","v":""},{"$f":"IF($B65=0,\"\",$K22)","v":""},{"$f":"IF($B65=0,\"\",Planner_PS2!$AB71)","v":""},{"$f":"IFERROR($E65*F65,0)","v":0},{"$f":"IF($B65=0,\"\",Planner_PS2!$AC71)","v":""},{"$f":"IFERROR($E65*H65,0)","v":0},{"$f":"IF($B65=0,\"\",Planner_PS2!$AD71)","v":""},{"$f":"IFERROR($E65*J65,0)","v":0},{"$f":"IF($B65=0,\"\",Planner_PS2!$AE71)","v":""},{"$f":"IFERROR($E65*L65,0)","v":0}]
[41,{"$f":"A66*Planner_PS2!$AH101","v":0},{"$f":"IF($B66=0,\"\",title227&\" - \"&INDIRECT(\"'Data entry needs'!$e\"&$B66))","v":""},"","",{"$f":"IF($B66=0,\"\",Planner_PS2!$AB72)","v":""},{"$f":"IFERROR($E66*F66,0)","v":0},{"$f":"IF($B66=0,\"\",Planner_PS2!$AC72)","v":""},0,{"$f":"IF($B66=0,\"\",Planner_PS2!$AD72)","v":""},0,{"$f":"IF($B66=0,\"\",Planner_PS2!$AE72)","v":""},0]
[43,{"$f":"A67*Planner_PS2!$AH102","v":0},{"$f":"IF($B67=0,\"\",title228&\" - \"&INDIRECT(\"'Data entry needs'!$e\"&$B67))","v":""},"","",{"$f":"IF($B67=0,\"\",Planner_PS2!$AB73)","v":""},0,{"$f":"IF($B67=0,\"\",Planner_PS2!$AC73)","v":""},0,{"$f":"IF($B67=0,\"\",Planner_PS2!$AD73)","v":""},0,{"$f":"IF($B67=0,\"\",Planner_PS2!$AE73)","v":""},0]
[45,{"$f":"A68*Planner_PS2!$AH103","v":0},{"$f":"IF($B68=0,\"\",title229&\" - \"&INDIRECT(\"'Data entry needs'!$e\"&$B68))","v":""},"","",{"$f":"IF($B68=0,\"\",Planner_PS2!$AB74)","v":""},0,{"$f":"IF($B68=0,\"\",Planner_PS2!$AC74)","v":""},0,{"$f":"IF($B68=0,\"\",Planner_PS2!$AD74)","v":""},0,{"$f":"IF($B68=0,\"\",Planner_PS2!$AE74)","v":""},0]
[47,{"$f":"A69*Planner_PS2!$AH104","v":0},{"$f":"IF($B69=0,\"\",title258&\" - \"&INDIRECT(\"'Data entry needs'!$e\"&$B69))","v":""},"","",{"$f":"IF($B69=0,\"\",Planner_PS2!$AB75)","v":""},0,{"$f":"IF($B69=0,\"\",Planner_PS2!$AC75)","v":""},0,{"$f":"IF($B69=0,\"\",Planner_PS2!$AD75)","v":""},0,{"$f":"IF($B69=0,\"\",Planner_PS2!$AE75)","v":""},0]
[51,{"$f":"A70*Planner_PS2!$AH105","v":0},{"$f":"IF($B70=0,\"\",title258&\" - \"&INDIRECT(\"'Data entry needs'!$e\"&$B70))","v":""},"","",{"$f":"IF($B70=0,\"\",Planner_PS2!$AB76)","v":""},0,{"$f":"IF($B70=0,\"\",Planner_PS2!$AC76)","v":""},0,{"$f":"IF($B70=0,\"\",Planner_PS2!$AD76)","v":""},0,{"$f":"IF($B70=0,\"\",Planner_PS2!$AE76)","v":""},0]
[null,null,{"$f":"title277","v":"Biogas Low-pressure system"},"USD/m3",{"$f":"$AI$131","v":9.893992932862191E-3},{"$f":"Planner_PS2!AD$127*30/VLOOKUP('Data entry needs'!$BX$133,COST_PS2!$AE$131:$AK$134,7,FALSE)","v":{"$error":"#DIV/0!"}},{"$f":"IFERROR(F71*$E$71,0)","v":0},{"$f":"Planner_PS2!AE$127*30/VLOOKUP('Data entry needs'!$BX$133,COST_PS2!$AE$131:$AK$134,7,FALSE)","v":{"$error":"#DIV/0!"}},{"$f":"IFERROR(H71*$E$71,0)","v":0},{"$f":"Planner_PS2!AF$127*30/VLOOKUP('Data entry needs'!$BX$133,COST_PS2!$AE$131:$AK$134,7,FALSE)","v":{"$error":"#DIV/0!"}},{"$f":"IFERROR(J71*$E$71,0)","v":0},{"$f":"Planner_PS2!AG$127*30/VLOOKUP('Data entry needs'!$BX$133,COST_PS2!$AE$131:$AK$134,7,FALSE)","v":{"$error":"#DIV/0!"}},{"$f":"IFERROR(L71*$E$71,0)","v":0}]
[null,{"$f":"IF('Data entry needs'!$BX$133=0,TRUE,FALSE)","v":true},{"$f":"IF(B72,\"\",title278&VLOOKUP('Data entry needs'!$BX$133,COST_PS2!$AE$131:$AJ$134,2,FALSE))","v":""},{"$f":"IF(B72,\"\",\"USD/m3\")","v":""},{"$f":"IF(B72,\"\",VLOOKUP('Data entry needs'!$BX$133,COST_PS2!$AE$131:$AJ$134,5,FALSE))","v":""},{"$f":"IF($B$72,\"\",Planner_PS2!AD$127*30*'Data entry needs'!$L$108)","v":""},{"$f":"IFERROR(F72*$E$72,0)","v":0},{"$f":"IF($B$72,\"\",Planner_PS2!AE$127*30*'Data entry needs'!$L$108)","v":""},{"$f":"IFERROR(H72*$E$72,0)","v":0},{"$f":"IF($B$72,\"\",Planner_PS2!AF$127*30*'Data entry needs'!$L$108)","v":""},{"$f":"IFERROR(J72*$E$72,0)","v":0},{"$f":"IF($B$72,\"\",Planner_PS2!AG$127*30*'Data entry needs'!$L$108)","v":""},{"$f":"IFERROR(L72*$E$72,0)","v":0}]
[null,null,{"$f":"title269","v":"Subtotal"},null,null,{"$f":"SUM(G65:G72)","v":0},{"$f":"SUM(G65:G65)","v":0},{"$f":"SUM(I65:I70)","v":0},{"$f":"SUM(I65:I65)","v":0},{"$f":"SUM(K65:K70)","v":0},{"$f":"SUM(K65:K65)","v":0},{"$f":"SUM(M65:M70)","v":0},{"$f":"SUM(M65:M65)","v":0}]
[]
[null,null,{"$f":"title279","v":"Investment"},{"$f":"title27","v":"Unit"},{"$f":"title284","v":"Years"},"Total",{"$f":"title285","v":"Depreciation"},"Total",{"$f":"title285","v":"Depreciation"},"Total",{"$f":"title285","v":"Depreciation"},"Total",{"$f":"title285","v":"Depreciation"}]
[null,null,"Investment",null,null,"(USD)",{"$f":"title272","v":"(USD/year)"},"(USD)",{"$f":"title272","v":"(USD/year)"},"(USD)",{"$f":"title272","v":"(USD/year)"},"(USD)",{"$f":"title272","v":"(USD/year)"}]
[null,null,{"$f":"title280","v":"Equipments"},"USD",20,{"$f":"'COST(ADJUSTED)_PS2'!J42+'COST(ADJUSTED)_PS2'!J23","v":{"$error":"#DIV/0!"}},{"$f":"+F77/E77","v":{"$error":"#DIV/0!"}},{"$f":"'COST(ADJUSTED)_PS2'!K42+'COST(ADJUSTED)_PS2'!K23","v":{"$error":"#DIV/0!"}},{"$f":"+H77/$E$77","v":{"$error":"#DIV/0!"}},{"$f":"'COST(ADJUSTED)_PS2'!L42+'COST(ADJUSTED)_PS2'!L23","v":{"$error":"#DIV/0!"}},{"$f":"+J77/$E$77","v":{"$error":"#DIV/0!"}},{"$f":"'COST(ADJUSTED)_PS2'!M42+'COST(ADJUSTED)_PS2'!M23","v":{"$error":"#DIV/0!"}},{"$f":"+L77/$E$77","v":{"$error":"#DIV/0!"}}]
[null,null,{"$f":"title281","v":"Building"},"USD",20,{"$f":"'COST(ADJUSTED)_PS2'!J50","v":{"$error":"#DIV/0!"}},{"$f":"+F78/E78","v":{"$error":"#DIV/0!"}},{"$f":"'COST(ADJUSTED)_PS2'!K50","v":{"$error":"#DIV/0!"}},{"$f":"+H78/$E$77","v":{"$error":"#DIV/0!"}},{"$f":"'COST(ADJUSTED)_PS2'!L50","v":{"$error":"#DIV/0!"}},{"$f":"+J78/$E$77","v":{"$error":"#DIV/0!"}},{"$f":"'COST(ADJUSTED)_PS2'!M50","v":{"$error":"#DIV/0!"}},{"$f":"+L78/$E$77","v":{"$error":"#DIV/0!"}}]
[null,null,{"$f":"title282","v":"Installation Distribution and/or Upgrade"},"USD",20,{"$f":"'COST(ADJUSTED)_PS2'!J60+'COST(ADJUSTED)_PS2'!J64+'COST(ADJUSTED)_PS2'!J71+'COST(ADJUSTED)_PS2'!J75+'COST(ADJUSTED)_PS2'!J67","v":{"$error":"#DIV/0!"}},{"$f":"+F79/E79","v":{"$error":"#DIV/0!"}},{"$f":"'COST(ADJUSTED)_PS2'!K60+'COST(ADJUSTED)_PS2'!K64+'COST(ADJUSTED)_PS2'!K71+'COST(ADJUSTED)_PS2'!K75+'COST(ADJUSTED)_PS2'!K67","v":{"$error":"#DIV/0!"}},{"$f":"+H79/$E$77","v":{"$error":"#DIV/0!"}},{"$f":"'COST(ADJUSTED)_PS2'!L60+'COST(ADJUSTED)_PS2'!L64+'COST(ADJUSTED)_PS2'!L71+'COST(ADJUSTED)_PS2'!L75+'COST(ADJUSTED)_PS2'!L67","v":{"$error":"#DIV/0!"}},{"$f":"+J79/$E$77","v":{"$error":"#DIV/0!"}},{"$f":"'COST(ADJUSTED)_PS2'!M60+'COST(ADJUSTED)_PS2'!M64+'COST(ADJUSTED)_PS2'!M71+'COST(ADJUSTED)_PS2'!M75+'COST(ADJUSTED)_PS2'!M67","v":{"$error":"#DIV/0!"}},{"$f":"+L79/$E$77","v":{"$error":"#DIV/0!"}}]
[null,null,{"$f":"title283","v":"Total investments"},null,null,{"$f":"SUM(F77:F79)","v":{"$error":"#DIV/0!"}},null,{"$f":"SUM(H77:H79)","v":{"$error":"#DIV/0!"}},null,{"$f":"SUM(J77:J79)","v":{"$error":"#DIV/0!"}},null,{"$f":"SUM(L77:L79)","v":{"$error":"#DIV/0!"}}]
[null,null,null,null,null,"Total \nDepreciation",{"$f":"SUM(G77:G80)","v":{"$error":"#DIV/0!"}},{"$f":"title286","v":"Total\nDepreciation"},{"$f":"SUM(I77:I80)","v":{"$error":"#DIV/0!"}},{"$f":"title286","v":"Total\nDepreciation"},{"$f":"SUM(K77:K80)","v":{"$error":"#DIV/0!"}},{"$f":"title286","v":"Total\nDepreciation"},{"$f":"SUM(M77:M80)","v":{"$error":"#DIV/0!"}}]
[null,null,{"$f":"title287","v":"Maintenance cost"},null,{"$f":"'Data entry needs'!$F$115","v":0},null,{"$f":"+E82*G81","v":{"$error":"#DIV/0!"}},null,{"$f":"+E82*$I$81","v":{"$error":"#DIV/0!"}},null,{"$f":"+$E$82*K81","v":{"$error":"#DIV/0!"}},null,{"$f":"+$E$82*M81","v":{"$error":"#DIV/0!"}}]
[null,null,{"$f":"title269","v":"Subtotal"},null,null,{"$f":"SUM(G81:G82)","v":{"$error":"#DIV/0!"}},null,{"$f":"SUM(I81:I82)","v":{"$error":"#DIV/0!"}},null,{"$f":"SUM(K81:K82)","v":{"$error":"#DIV/0!"}},null,{"$f":"SUM(M81:M82)","v":{"$error":"#DIV/0!"}}]
[]
[null,null,{"$f":"title150","v":"Other costs"},{"$f":"title27","v":"Unit"},{"$f":"title290","v":"Rate (%)"},null,"Total",null,"Total",null,"Total",null,"Total"]
[null,null,null,null,null,null,{"$f":"title272","v":"(USD/year)"},null,{"$f":"title272","v":"(USD/year)"},null,{"$f":"title272","v":"(USD/year)"},null,{"$f":"title272","v":"(USD/year)"}]
[null,null,{"$f":"title151","v":"Plant overhead"},"USD",{"$f":"'Data entry needs'!$F$114","v":0},null,{"$f":"+(G48+G49+G82)*$E$87","v":{"$error":"#DIV/0!"}},null,{"$f":"+(I48+I49+I82)*$E$87","v":{"$error":"#DIV/0!"}},null,{"$f":"+(K48+K49+K82)*$E$87","v":{"$error":"#DIV/0!"}},null,{"$f":"+(M48+M49+M82)*$E$87","v":{"$error":"#DIV/0!"}}]
[null,null,{"$f":"title288","v":"General and administrative cost"},"USD",{"$f":"'Data entry needs'!$L$115","v":0},null,{"$f":"+(F44+G51+G87+G82)*$E$88","v":{"$error":"#DIV/0!"}},null,{"$f":"+(H44+I51+I87+I82)*$E$88","v":{"$error":"#DIV/0!"}},null,{"$f":"+(J44+K51+K87+K82)*$E$88","v":{"$error":"#DIV/0!"}},null,{"$f":"+(L44+M51+M87+M82)*$E$88","v":{"$error":"#DIV/0!"}}]
[null,null,{"$f":"title289","v":"Loan interest"},"USD",{"$f":"'Data entry needs'!$L$119","v":0},null,{"$f":"-G118","v":{"$error":"#DIV/0!"}},null,{"$f":"-I118","v":{"$error":"#DIV/0!"}},null,{"$f":"-K118","v":{"$error":"#DIV/0!"}},null,{"$f":"-M118","v":{"$error":"#DIV/0!"}}]
[null,null,{"$f":"title269","v":"Subtotal"},null,null,{"$f":"SUM(G87:G89)","v":{"$error":"#DIV/0!"}},null,{"$f":"SUM(I87:I89)","v":{"$error":"#DIV/0!"}},null,{"$f":"SUM(K87:K89)","v":{"$error":"#DIV/0!"}},{"$f":"SUM(K87:K89)","v":{"$error":"#DIV/0!"}},{"$f":"SUM(M87:M89)","v":{"$error":"#DIV/0!"}},{"$f":"SUM(M87:M89)","v":{"$error":"#DIV/0!"}}]
[]
[]
[null,null,{"$f":"title292","v":"Total costs"},null,null,"Total",{"$f":"title323","v":"Share (%)"},"Total",{"$f":"title323","v":"Share (%)"},"Total",{"$f":"title323","v":"Share (%)"},"Total",{"$f":"title323","v":"Share (%)"}]
[null,null,"Investment",null,null,{"$f":"title272","v":"(USD/year)"},null,{"$f":"title272","v":"(USD/year)"},null,{"$f":"title272","v":"(USD/year)"},null,{"$f":"title272","v":"(USD/year)"}]
[null,null,{"$f":"title293","v":"Total operating costs"},null,null,{"$f":"+F44+G51+G61+G73","v":{"$error":"#DIV/0!"}},{"$f":"+F95/$F$98","v":{"$error":"#DIV/0!"}},{"$f":"+H44+I51+I61+I73","v":{"$error":"#DIV/0!"}},{"$f":"+H95/$H$98","v":{"$error":"#DIV/0!"}},{"$f":"+J44+K51+K61+K73","v":{"$error":"#DIV/0!"}},{"$f":"+J95/$J$98","v":{"$error":"#DIV/0!"}},{"$f":"+L44+M51+M61+M73","v":{"$error":"#DIV/0!"}},{"$f":"+L95/$L$98","v":{"$error":"#DIV/0!"}}]
[null,null,{"$f":"title294","v":"Total fixed costs"},null,null,{"$f":"+F83","v":{"$error":"#DIV/0!"}},{"$f":"+F96/$F$98","v":{"$error":"#DIV/0!"}},{"$f":"+H83","v":{"$error":"#DIV/0!"}},{"$f":"+H96/$H$98","v":{"$error":"#DIV/0!"}},{"$f":"+J83","v":{"$error":"#DIV/0!"}},{"$f":"+J96/$J$98","v":{"$error":"#DIV/0!"}},{"$f":"+L83","v":{"$error":"#DIV/0!"}},{"$f":"+L96/$L$98","v":{"$error":"#DIV/0!"}}]
[null,null,{"$f":"title295","v":"Total other costs"},null,null,{"$f":"+F90","v":{"$error":"#DIV/0!"}},{"$f":"+F97/$F$98","v":{"$error":"#DIV/0!"}},{"$f":"+H90","v":{"$error":"#DIV/0!"}},{"$f":"+H97/$H$98","v":{"$error":"#DIV/0!"}},{"$f":"+J90","v":{"$error":"#DIV/0!"}},{"$f":"+J97/$J$98","v":{"$error":"#DIV/0!"}},{"$f":"+M90","v":{"$error":"#DIV/0!"}},{"$f":"+L97/$L$98","v":{"$error":"#DIV/0!"}}]
[null,null,{"$f":"title296","v":"Total production costs"},null,null,{"$f":"SUM(F95:F97)","v":{"$error":"#DIV/0!"}},null,{"$f":"SUM(H95:H97)","v":{"$error":"#DIV/0!"}},null,{"$f":"SUM(J95:J97)","v":{"$error":"#DIV/0!"}},null,{"$f":"SUM(L95:L97)","v":{"$error":"#DIV/0!"}}]
[]
[null,null,{"$f":"title297","v":"Energy Balance"},null,{"$f":"title27","v":"Unit"},{"$f":"F32","v":"Capacities (kWe)"}]
[null,null,"Investment",null,null,{"$f":"F$33","v":100},null,{"$f":"H$33","v":105},null,{"$f":"J$33","v":115},null,{"$f":"L$33","v":120}]
[null,null,{"$f":"title298","v":"Electricity Production"},null,{"$f":"title304","v":"kWh/year"},null,{"$f":"IF('Biogas Use Selection'!$P$67=1,Planner_PS2!AB$159,IF('Biogas Use Selection'!$P$67=3,Planner_PS2!AB$163,0))*(1-'Data entry needs'!$F$112-'Data entry needs'!$L$112)","v":{"$error":"#DIV/0!"}},null,{"$f":"IF('Biogas Use Selection'!$P$67=1,Planner_PS2!AC$159,IF('Biogas Use Selection'!$P$67=3,Planner_PS2!AC$163,0))*(1-'Data entry needs'!$F$112-'Data entry needs'!$L$112)","v":{"$error":"#DIV/0!"}},null,{"$f":"IF('Biogas Use Selection'!$P$67=1,Planner_PS2!AD$159,IF('Biogas Use Selection'!$P$67=3,Planner_PS2!AD$163,0))*(1-'Data entry needs'!$F$112-'Data entry needs'!$L$112)","v":{"$error":"#DIV/0!"}},null,{"$f":"IF('Biogas Use Selection'!$P$67=1,Planner_PS2!AE$159,IF('Biogas Use Selection'!$P$67=3,Planner_PS2!AE$163,0))*(1-'Data entry needs'!$F$112-'Data entry needs'!$L$112)","v":{"$error":"#DIV/0!"}}]
[null,null,{"$f":"title299","v":"Heat Production"},null,{"$f":"title305","v":"GJ/year"},null,{"$f":"IF('Biogas Use Selection'!$P$67=1,Planner_PS2!AB$158,0)*(1-'Data entry needs'!$F$111-'Data entry needs'!$L$111)","v":{"$error":"#DIV/0!"}},null,{"$f":"IF('Biogas Use Selection'!$P$67=1,Planner_PS2!AC$158,0)*(1-'Data entry needs'!$F$111-'Data entry needs'!$L$111)","v":{"$error":"#DIV/0!"}},null,{"$f":"IF('Biogas Use Selection'!$P$67=1,Planner_PS2!AD$158,0)*(1-'Data entry needs'!$F$111-'Data entry needs'!$L$111)","v":{"$error":"#DIV/0!"}},null,{"$f":"IF('Biogas Use Selection'!$P$67=1,Planner_PS2!AE$158,0)*(1-'Data entry needs'!$F$111-'Data entry needs'!$L$111)","v":{"$error":"#DIV/0!"}}]
[null,null,{"$f":"title300","v":"Electricity Consumption"},null,{"$f":"title304","v":"kWh/year"},null,{"$f":"-F41","v":{"$error":"#DIV/0!"}},null,{"$f":"-H41","v":{"$error":"#DIV/0!"}},null,{"$f":"-J41","v":{"$error":"#DIV/0!"}},null,{"$f":"-L41","v":{"$error":"#DIV/0!"}}]
[null,null,{"$f":"title301","v":"Heat Consumption"},null,{"$f":"title305","v":"GJ/year"},null,{"$f":"-F42","v":{"$error":"#DIV/0!"}},null,{"$f":"-H42","v":{"$error":"#DIV/0!"}},null,{"$f":"-J42","v":{"$error":"#DIV/0!"}},null,{"$f":"-L42","v":{"$error":"#DIV/0!"}}]
[null,null,{"$f":"title302","v":"Electricity Available for Selling"},null,{"$f":"title304","v":"kWh/year"},null,{"$f":"G102+G104","v":{"$error":"#DIV/0!"}},null,{"$f":"I102+I104","v":{"$error":"#DIV/0!"}},null,{"$f":"K102+K104","v":{"$error":"#DIV/0!"}},null,{"$f":"M102+M104","v":{"$error":"#DIV/0!"}}]
[null,null,{"$f":"title303","v":"Heat Available for Selling"},null,{"$f":"title305","v":"GJ/year"},null,{"$f":"G103+G105","v":{"$error":"#DIV/0!"}},null,{"$f":"I103+I105","v":{"$error":"#DIV/0!"}},null,{"$f":"K103+K105","v":{"$error":"#DIV/0!"}},null,{"$f":"M103+M105","v":{"$error":"#DIV/0!"}}]
[]
[null,null,null,null,null,{"$f":"F32","v":"Capacities (kWe)"}]
[null,null,null,null,null,{"$f":"F33","v":100},null,{"$f":"H33","v":105},null,{"$f":"J33","v":115},null,{"$f":"L33","v":120}]
[null,null,{"$f":"title312&IF(OR('Biogas Use Selection'!$P$67=5,'Biogas Use Selection'!$P$67=2),Planner_PS2!$AJ$127,IF(OR('Biogas Use Selection'!$P$67=1,'Biogas Use Selection'!$P$67=3),Planner_PS2!$AJ$128,IF('Biogas Use Selection'!$P$67=4,Planner_PS2!$AJ$129)))&\")\"","v":"Unit cost of biogas (USD/kWh)"},null,null,{"$f":"F$98/IF(OR('Biogas Use Selection'!$P$67=1,'Biogas Use Selection'!$P$67=3),G$106,IF(OR('Biogas Use Selection'!$P$67=5,'Biogas Use Selection'!$P$67=2),Planner_PS2!AD$130*'Data entry needs'!$L$100,IF('Biogas Use Selection'!$P$67=4,F110*'Data entry needs'!$L$100)))","v":{"$error":"#DIV/0!"}},null,{"$f":"H$98/IF(OR('Biogas Use Selection'!$P$67=1,'Biogas Use Selection'!$P$67=3),I$106,IF(OR('Biogas Use Selection'!$P$67=5,'Biogas Use Selection'!$P$67=2),Planner_PS2!AE$130*'Data entry needs'!$L$100,IF('Biogas Use Selection'!$P$67=4,H110*'Data entry needs'!$L$100)))","v":{"$error":"#DIV/0!"}},null,{"$f":"J$98/IF(OR('Biogas Use Selection'!$P$67=1,'Biogas Use Selection'!$P$67=3),K$106,IF(OR('Biogas Use Selection'!$P$67=5,'Biogas Use Selection'!$P$67=2),Planner_PS2!AF$130*'Data entry needs'!$L$100,IF('Biogas Use Selection'!$P$67=4,J110*'Data entry needs'!$L$100)))","v":{"$error":"#DIV/0!"}},null,{"$f":"L$98/IF(OR('Biogas Use Selection'!$P$67=1,'Biogas Use Selection'!$P$67=3),M$106,IF(OR('Biogas Use Selection'!$P$67=5,'Biogas Use Selection'!$P$67=2),Planner_PS2!AG$130*'Data entry needs'!$L$100,IF('Biogas Use Selection'!$P$67=4,L110*'Data entry needs'!$L$100)))","v":{"$error":"#DIV/0!"}}]
[]
[null,null,{"$f":"title313","v":"Average loan interest"},{"$f":"title27","v":"Unit"},null,{"$f":"title320","v":"Total investment"},{"$f":"title314","v":"Loan amount"},{"$f":"title320","v":"Total investment"},{"$f":"title314","v":"Loan amount"},{"$f":"title320","v":"Total investment"},{"$f":"title314","v":"Loan amount"},{"$f":"title320","v":"Total investment"},{"$f":"title314","v":"Loan amount"}]
[null,null,null,null,null,"(USD)","(USD)","(USD)","(USD)","(USD)","(USD)","(USD)","(USD)"]
[null,null,{"$f":"title314","v":"Loan amount"},"USD",null,{"$f":"F80","v":{"$error":"#DIV/0!"}},{"$f":"'Data entry needs'!$F$118*F115","v":{"$error":"#DIV/0!"}},{"$f":"H80","v":{"$error":"#DIV/0!"}},{"$f":"'Data entry needs'!$F$119*H115","v":{"$error":"#DIV/0!"}},{"$f":"J80","v":{"$error":"#DIV/0!"}},{"$f":"'Data entry needs'!$F$120*J115","v":{"$error":"#DIV/0!"}},{"$f":"L80","v":{"$error":"#DIV/0!"}},{"$f":"'Data entry needs'!$F$121*L115","v":{"$error":"#DIV/0!"}}]
[null,null,{"$f":"title162","v":"Loan interest rate"},"%",null,null,{"$f":"E89","v":0},null,{"$f":"E89","v":0},null,{"$f":"E89","v":0},null,{"$f":"E89","v":0}]
[null,null,{"$f":"title315","v":"Loan payment"},{"$f":"title318","v":"USD/month"},null,null,{"$f":"PMT(G116/12,G119*12,G115,0)","v":{"$error":"#DIV/0!"}},null,{"$f":"PMT(I116/12,I119*12,I115,0)","v":{"$error":"#DIV/0!"}},null,{"$f":"PMT(K116/12,K119*12,K115,0)","v":{"$error":"#DIV/0!"}},null,{"$f":"PMT(M116/12,M119*12,M115,0)","v":{"$error":"#DIV/0!"}}]
[null,null,{"$f":"title316","v":"Annual loan payment"},{"$f":"title319","v":"USD/year"},null,null,{"$f":"G117*12","v":{"$error":"#DIV/0!"}},null,{"$f":"I117*12","v":{"$error":"#DIV/0!"}},null,{"$f":"K117*12","v":{"$error":"#DIV/0!"}},null,{"$f":"M117*12","v":{"$error":"#DIV/0!"}}]
[null,null,{"$f":"title163","v":"Loan terms"},{"$f":"title164","v":"year"},null,null,{"$f":"'Data entry needs'!$L$120","v":0},null,{"$f":"$G$119","v":0},null,{"$f":"$G$119","v":0},null,{"$f":"$G$119","v":0}]
[null,null,{"$f":"title317","v":"Total loan payment"},"USD",null,null,{"$f":"G118*G119","v":{"$error":"#DIV/0!"}},null,{"$f":"I118*I119","v":{"$error":"#DIV/0!"}},null,{"$f":"K118*K119","v":{"$error":"#DIV/0!"}},null,{"$f":"M118*M119","v":{"$error":"#DIV/0!"}}]
[null,null,{"$f":"title289","v":"Loan interest"},"USD",null,null,{"$f":"G120+G115","v":{"$error":"#DIV/0!"}},null,{"$f":"I120+I115","v":{"$error":"#DIV/0!"}},null,{"$f":"K120+K115","v":{"$error":"#DIV/0!"}},null,{"$f":"M120+M115","v":{"$error":"#DIV/0!"}}]
[null,null,{"$f":"title313","v":"Average loan interest"},{"$f":"title319","v":"USD/year"},null,null,{"$f":"+G121/20","v":{"$error":"#DIV/0!"}},null,{"$f":"+I121/20","v":{"$error":"#DIV/0!"}},null,{"$f":"+K121/20","v":{"$error":"#DIV/0!"}},null,{"$f":"+M121/20","v":{"$error":"#DIV/0!"}},null,null,null,null,null,null,null,null,null,null,null,null,null,null,null,null,{"$f":"title240","v":"Mesophilic"}]
[null,null,null,null,null,null,null,null,null,null,null,null,null,null,null,null,null,null,null,null,null,null,null,null,null,null,null,null,null,{"$f":"title241","v":"Thermophilic"}]
[null,null,null,null,null,null,null,null,null,null,null,null,null,null,null,null,null,null,null,null,null,null,null,null,null,null,null,null,null,{"$f":"IF('Data entry needs'!$J$11,COST_PS2!$AE124,COST_PS2!$AE124)","v":"CSTR"},"CSTR"]
[null,null,null,null,null,null,null,null,null,null,null,null,null,null,null,null,null,null,null,null,null,null,null,null,null,null,null,null,null,{"$f":"IF('Data entry needs'!$J$11,COST_PS2!$AE125,COST_PS2!$AE125)","v":"Plug Flow"},{"$f":"title530","v":"Plug Flow"}]
[null,null,null,null,null,null,null,null,null,null,null,null,null,null,null,null,null,null,null,null,null,null,null,null,null,null,null,null,null,{"$f":"IF('Data entry needs'!$J$11,COST_PS2!$AE126,COST_PS2!$AE126)","v":"UASB"},"UASB"]
[null,null,null,null,null,null,null,null,null,null,null,null,null,null,null,null,null,null,null,null,null,null,null,null,null,null,null,null,null,{"$f":"IF('Data entry needs'!$J$11,\"\",COST_PS2!$AE127)","v":""},{"$f":"title531","v":"Batch"}]
[]
[]
[null,null,null,null,null,null,null,null,null,null,null,null,null,null,null,null,null,null,null,null,null,null,null,null,null,null,null,null,null,null,{"$f":"title560","v":"Storage Methods"},null,null,{"$f":"title561","v":"Pressure"},{"$f":"title562","v":"Cost (USD/m3)"},{"$f":"title563","v":"Energy (kWh/m3)"},{"$f":"title564","v":"Methane (%)"}]
[null,null,null,null,null,null,null,null,null,null,null,null,null,null,null,null,null,null,null,null,null,null,null,null,null,null,null,null,null,null,0,{"$f":"title565","v":"Low-pressure system"},{"$f":"title569","v":"Water sealed gas holder"}," <2",9.893992932862191E-3,0,{"$f":"Planner_PS2!$AG$107","v":{"$error":"#DIV/0!"}},"Used for short and intermediate storage"]
[null,null,null,null,null,null,null,null,null,null,null,null,null,null,null,null,null,null,null,null,null,null,null,null,null,null,null,null,null,null,1,{"$f":"title566","v":"Intermediate-pressure system"},{"$f":"title570","v":"Propane Tanks"},"300 psi",7.9119529346846758,0.1765736241383207,{"$f":"Planner_PS2!$AG$107","v":{"$error":"#DIV/0!"}},"Suitable for standard storage"]
[null,null,null,null,null,null,null,null,null,null,null,null,null,null,null,null,null,null,null,null,null,null,null,null,null,null,null,null,null,null,2,{"$f":"title567","v":"High-pressure system"},{"$f":"title571","v":"CNG Tanks"},{"$f":"title573","v":"2,000 to 5,000 psi"},12.809187279151944,0.49440614758729801,1,"For pipeline injection of biomethane, only limited on-site gas storage facilities are necessary Needs first be upgraded to biomethane"]
[null,null,null,null,null,null,null,null,null,null,null,null,null,null,null,null,null,null,null,null,null,null,null,null,null,null,null,null,null,null,3,{"$f":"title568","v":"Cryogenic-pressure system"},{"$f":"title572","v":"LNG Tanks"},">5000 psi",29.939499246165674,{"$f":"AJ133*3","v":1.483218442761894},1,"For delivery and use as a transportation fuel,"]

{"sheet":"COST(ADJUSTED)_PS2","index":26,"n_rows":75,"n_cols":13,"rows_kept":75,"cut":false,"hidden":true,"merged":[[5,9,5,12],[7,9,7,12],[9,9,9,12],[2,2,2,12]]}
[]
[]
[null,null,{"$f":"title497&\" 2\"","v":"DETAILED INVESTMENT PROCESS 2"}]
[]
[]
[null,null,{"$f":"title498","v":"Escalation Factor"},0.89,null,null,null,null,null,{"$f":"title506","v":"Capacities (m3 CH4/year)"}]
[null,null,null,null,null,null,null,null,null,{"$f":"Planner_PS2!AD$127*'Data entry needs'!$L$100","v":0},{"$f":"Planner_PS2!AE$127*'Data entry needs'!$L$100","v":0},{"$f":"Planner_PS2!AF$127*'Data entry needs'!$L$100","v":0},{"$f":"Planner_PS2!AG$127*'Data entry needs'!$L$100","v":0}]
[null,null,null,null,null,null,null,null,null,{"$f":"title507","v":"Capacities (kWe)"}]
[null,null,null,null,null,null,null,null,null,{"$f":"Planner_PS2!AD$128","v":100},{"$f":"Planner_PS2!AE$128","v":105},{"$f":"Planner_PS2!AF$128","v":115},{"$f":"Planner_PS2!AG$128","v":120}]
[null,null,null,null,null,null,null,null,null,{"$f":"title508","v":"Capacities (m3 Biogas/year)"}]
[null,null,null,null,null,null,null,null,null,{"$f":"Planner_PS2!AD$130*'Data entry needs'!$L$100","v":{"$error":"#DIV/0!"}},{"$f":"Planner_PS2!AE$130*'Data entry needs'!$L$100","v":{"$error":"#DIV/0!"}},{"$f":"Planner_PS2!AF$130*'Data entry needs'!$L$100","v":{"$error":"#DIV/0!"}},{"$f":"Planner_PS2!AG$130*'Data entry needs'!$L$100","v":{"$error":"#DIV/0!"}}]
[null,null,null,{"$f":"title500","v":"Households Electr."},"hh",null,null,null,null,{"$f":"IFERROR(COST_PS2!G106/VLOOKUP('Biogas Use Selection'!$Q$67,'Biogas Use Selection'!$O$71:$Z$75,5,FALSE),0)","v":0},{"$f":"IFERROR(COST_PS2!I106/VLOOKUP('Biogas Use Selection'!$Q$67,'Biogas Use Selection'!$O$71:$Z$75,5,FALSE),0)","v":0},{"$f":"IFERROR(COST_PS2!K106/VLOOKUP('Biogas Use Selection'!$Q$67,'Biogas Use Selection'!$O$71:$Z$75,5,FALSE),0)","v":0},{"$f":"IFERROR(COST_PS2!M106/VLOOKUP('Biogas Use Selection'!$Q$67,'Biogas Use Selection'!$O$71:$Z$75,5,FALSE),0)","v":0}]
[null,null,null,{"$f":"title501","v":"Households Heat."},"hh",null,null,null,null,{"$f":"IFERROR(ROUNDDOWN(IF(OR('Biogas Use Selection'!$P$67=5,'Biogas Use Selection'!$P$67=2),J$11,IF('Biogas Use Selection'!$P$67=1,J$17*1000,IF('Biogas Use Selection'!$P$67=4,J$7)))/VLOOKUP('Biogas Use Selection'!$Q$67,'Biogas Use Selection'!$O$71:$Z$75,3,FALSE),0),0)","v":0},{"$f":"IFERROR(ROUNDDOWN(IF(OR('Biogas Use Selection'!$P$67=5,'Biogas Use Selection'!$P$67=2),K$11,IF('Biogas Use Selection'!$P$67=1,K$17*1000,IF('Biogas Use Selection'!$P$67=4,K$7)))/VLOOKUP('Biogas Use Selection'!$Q$67,'Biogas Use Selection'!$O$71:$Z$75,3,FALSE),0),0)","v":0},{"$f":"IFERROR(ROUNDDOWN(IF(OR('Biogas Use Selection'!$P$67=5,'Biogas Use Selection'!$P$67=2),L$11,IF('Biogas Use Selection'!$P$67=1,L$17*1000,IF('Biogas Use Selection'!$P$67=4,L$7)))/VLOOKUP('Biogas Use Selection'!$Q$67,'Biogas Use Selection'!$O$71:$Z$75,3,FALSE),0),0)","v":0},{"$f":"IFERROR(ROUNDDOWN(IF(OR('Biogas Use Selection'!$P$67=5,'Biogas Use Selection'!$P$67=2),M$11,IF('Biogas Use Selection'!$P$67=1,M$17*1000,IF('Biogas Use Selection'!$P$67=4,M$7)))/VLOOKUP('Biogas Use Selection'!$Q$67,'Biogas Use Selection'!$O$71:$Z$75,3,FALSE),0),0)","v":0}]
[null,null,null,{"$f":"title109","v":"Feedstock"},{"$f":"title308","v":"t/year"},null,null,null,null,{"$f":"Planner_PS2!AD133","v":{"$error":"#DIV/0!"}},{"$f":"Planner_PS2!AE133","v":{"$error":"#DIV/0!"}},{"$f":"Planner_PS2!AF133","v":{"$error":"#DIV/0!"}},{"$f":"Planner_PS2!AG133","v":{"$error":"#DIV/0!"}}]
[null,null,null,{"$f":"title502","v":"Operating period"},{"$f":"title505","v":"h/year"},null,null,null,null,{"$f":"COST_PS2!G$35","v":0},{"$f":"J15","v":0},{"$f":"K15","v":0},{"$f":"L15","v":0}]
[null,null,null,{"$f":"title503","v":"Cable Proxy"},"m/hh",null,null,null,10,{"$f":"IFERROR($I$16*J12,0)","v":0},{"$f":"IFERROR($I$16*K12,0)","v":0},{"$f":"IFERROR($I$16*L12,0)","v":0},{"$f":"IFERROR($I$16*M12,0)","v":0}]
[null,null,null,{"$f":"title299","v":"Heat Production"},{"$f":"title305","v":"GJ/year"},null,null,null,null,{"$f":"COST_PS2!G107","v":{"$error":"#DIV/0!"}},{"$f":"COST_PS2!I107","v":{"$error":"#DIV/0!"}},{"$f":"COST_PS2!K107","v":{"$error":"#DIV/0!"}},{"$f":"COST_PS2!M107","v":{"$error":"#DIV/0!"}}]
[null,null,{"$f":"title499","v":"Digester size"},{"$f":"title504","v":"Volume Reactor"},"m3",null,null,null,null,{"$f":"Planner_PS2!AD$134","v":{"$error":"#DIV/0!"}},{"$f":"Planner_PS2!AE$134","v":{"$error":"#DIV/0!"}},{"$f":"Planner_PS2!AF$134","v":{"$error":"#DIV/0!"}},{"$f":"Planner_PS2!AG$134","v":{"$error":"#DIV/0!"}}]
[]
[null,null,{"$f":"title509","v":"Pretreatment"}]
[null,1,{"$f":"title510","v":"Other (Hygenization, crushing, homogenization)"},{"$f":"\"USD/m3 \"&title512","v":"USD/m3 BIOGAS"},10.8,2006,135.30000000000001,{"$f":"'Data entry needs'!$L$121/$G21","v":0},{"$f":"E21*B21*$H21","v":0},{"$f":"$I21*J$18^$D$6","v":{"$error":"#DIV/0!"}},{"$f":"$J21*(K$18/$J$18)^$D$6","v":{"$error":"#DIV/0!"}},{"$f":"$J21*(L$18/$J$18)^$D$6","v":{"$error":"#DIV/0!"}},{"$f":"$J21*(M$18/$J$18)^$D$6","v":{"$error":"#DIV/0!"}}]
[null,1,{"$f":"title511","v":"Pre-processing equipment"},{"$f":"\"USD/t \"&LOWER(title109)","v":"USD/t feedstock"},{"$f":"450000/100000","v":4.5},2006,135.30000000000001,{"$f":"'Data entry needs'!$L$121/$G22","v":0},{"$f":"E22*B22*$H22","v":0},{"$f":"$I22*J$14^$D$6","v":{"$error":"#DIV/0!"}},{"$f":"$J22*(K$14/$J$14)^$D$6","v":{"$error":"#DIV/0!"}},{"$f":"$J22*(L$14/$J$14)^$D$6","v":{"$error":"#DIV/0!"}},{"$f":"$J22*(M$14/$J$14)^$D$6","v":{"$error":"#DIV/0!"}}]
[null,null,null,null,{"$f":"title269","v":"Subtotal"},{"$f":"title269","v":"Subtotal"},null,null,null,{"$f":"SUM(J21:J22)","v":{"$error":"#DIV/0!"}},{"$f":"SUM(K21:K22)","v":{"$error":"#DIV/0!"}},{"$f":"SUM(L21:L22)","v":{"$error":"#DIV/0!"}},{"$f":"SUM(M21:M22)","v":{"$error":"#DIV/0!"}}]
[null,null,{"$f":"title280","v":"Equipments"}]
[null,{"$f":"IF(COST_PS2!$L$10=\"CSTR\",1,0)","v":1},{"$f":"title513","v":"Digester CSTR"},{"$f":"\"USD/m3 \"&title512","v":"USD/m3 BIOGAS"},{"$f":"174.56112313391/1","v":174.56112313391},2006,135.30000000000001,{"$f":"'Data entry needs'!$L$121/$G25","v":0},{"$f":"E25*B25*$H25","v":0},{"$f":"$I25*J$18^$D$6","v":{"$error":"#DIV/0!"}},{"$f":"$J25*(K$18/$J$18)^$D$6","v":{"$error":"#DIV/0!"}},{"$error":"#DIV/0!"},{"$error":"#DIV/0!"}]
[null,{"$f":"IF(COST_PS2!$L$10=\"uasb\",1,0)","v":0},{"$f":"title514","v":"Digester UASB"},"USD/m3 BIOGAS",{"$f":"608.409048874878/1","v":608.40904887487795},2006,135.30000000000001,{"$f":"'Data entry needs'!$L$121/$G26","v":0},0,{"$f":"$I26*J$18^$D$6","v":{"$error":"#DIV/0!"}},{"$error":"#DIV/0!"},{"$error":"#DIV/0!"},{"$error":"#DIV/0!"}]
[null,{"$f":"IF(COST_PS2!$L$10=title530,1,0)","v":0},{"$f":"title515","v":"Digester Plug Flow"},"USD/m3 BIOGAS",{"$f":"20804*Planner_PS2!$AG$107/24","v":{"$error":"#DIV/0!"}},2008,157.69999999999999,{"$f":"'Data entry needs'!$L$121/$G27","v":0},{"$error":"#DIV/0!"},{"$error":"#DIV/0!"},{"$error":"#DIV/0!"},{"$error":"#DIV/0!"},{"$error":"#DIV/0!"}]
[null,{"$f":"IF(COST_PS2!$L$10=title531,1,0)","v":0},{"$f":"title516","v":"Digester Batch"},"USD/m3 BIOGAS",{"$f":"E25/3","v":58.187041044636665},2009,138.9,{"$f":"'Data entry needs'!$L$121/$G28","v":0},0,{"$error":"#DIV/0!"},{"$error":"#DIV/0!"},{"$error":"#DIV/0!"},{"$error":"#DIV/0!"}]
[null,1,{"$f":"title517","v":"Effluence storage pool"},"USD/m3 BIOGAS",87.06,2010,146.4,{"$f":"'Data entry needs'!$L$121/$G29","v":0},0,{"$error":"#DIV/0!"},{"$error":"#DIV/0!"},{"$error":"#DIV/0!"},{"$error":"#DIV/0!"}]
[null,1,{"$f":"title518","v":"Buffer tank"},"USD/m3 BIOGAS",{"$f":"0.9/0.3048^3/2","v":15.891600024669863},2010,146.4,{"$f":"'Data entry needs'!$L$121/$G30","v":0},0,{"$error":"#DIV/0!"},{"$f":"$I30*K$18","v":{"$error":"#DIV/0!"}},{"$f":"$I30*L$18","v":{"$error":"#DIV/0!"}},{"$f":"$I30*M$18","v":{"$error":"#DIV/0!"}}]
[null,1,{"$f":"title519","v":"Odor Control System"},{"$f":"\"USD/t \"&LOWER(title109)","v":"USD/t feedstock"},{"$f":"85000/20000","v":4.25},2010,146.4,{"$f":"'Data entry needs'!$L$121/$G31","v":0},0,{"$f":"$I31*J$14^$D$6","v":{"$error":"#DIV/0!"}},{"$f":"$J31*(K$14/$J$14)^$D$6","v":{"$error":"#DIV/0!"}},{"$error":"#DIV/0!"},{"$error":"#DIV/0!"}]
[null,1,{"$f":"title520","v":"Metering Pumps"},{"$f":"\"USD/t \"&LOWER(title109)","v":"USD/t feedstock"},{"$f":"40000/20000","v":2},2010,146.4,{"$f":"'Data entry needs'!$L$121/$G32","v":0},0,{"$f":"$I32*J$14^$D$6","v":{"$error":"#DIV/0!"}},{"$error":"#DIV/0!"},{"$error":"#DIV/0!"},{"$error":"#DIV/0!"}]
[null,1,{"$f":"title521","v":"Pumps"},{"$f":"\"USD/t \"&LOWER(title109)","v":"USD/t feedstock"},{"$f":"90000/20000","v":4.5},2010,146.4,{"$f":"'Data entry needs'!$L$121/$G33","v":0},0,{"$error":"#DIV/0!"},{"$error":"#DIV/0!"},{"$error":"#DIV/0!"},{"$error":"#DIV/0!"}]
[null,1,{"$f":"title522","v":"Trommel screen"},{"$f":"\"USD/t \"&LOWER(title109)","v":"USD/t feedstock"},{"$f":"110000/20000","v":5.5},2010,146.4,{"$f":"'Data entry needs'!$L$121/$G34","v":0},0,{"$error":"#DIV/0!"},{"$error":"#DIV/0!"},{"$error":"#DIV/0!"},{"$error":"#DIV/0!"}]
[null,1,{"$f":"title523","v":"Mixers"},{"$f":"\"USD/t \"&LOWER(title109)","v":"USD/t feedstock"},{"$f":"40000/20000","v":2},2010,146.4,{"$f":"'Data entry needs'!$L$121/$G35","v":0},0,{"$f":"$I35*J$14^$D$6","v":{"$error":"#DIV/0!"}},{"$error":"#DIV/0!"},{"$error":"#DIV/0!"},{"$error":"#DIV/0!"}]
[null,1,{"$f":"title524","v":"Post digestion tank (for gravity separation)"},{"$f":"\"USD/m3 \"&title512","v":"USD/m3 BIOGAS"},{"$f":"0.9/0.3048^3/2","v":15.891600024669863},2010,146.4,{"$f":"'Data entry needs'!$L$121/$G36","v":0},0,{"$f":"$I36*J$18^$D$6","v":{"$error":"#DIV/0!"}},{"$f":"$J36*(K$18/$J$18)^$D$6","v":{"$error":"#DIV/0!"}},{"$f":"$J36*(L$18/$J$18)^$D$6","v":{"$error":"#DIV/0!"}},{"$f":"$J36*(M$18/$J$18)^$D$6","v":{"$error":"#DIV/0!"}}]
[null,1,{"$f":"title525","v":"Gas collection equipment"},{"$f":"\"USD/t \"&LOWER(title109)","v":"USD/t feedstock"},{"$f":"75000/10000","v":7.5},2010,146.4,{"$f":"'Data entry needs'!$L$121/$G37","v":0},0,{"$f":"$I37*J$14^$D$6","v":{"$error":"#DIV/0!"}},{"$f":"$J37*(K$14/$J$14)^$D$6","v":{"$error":"#DIV/0!"}},{"$f":"$J37*(L$14/$J$14)^$D$6","v":{"$error":"#DIV/0!"}},{"$f":"$J37*(M$14/$J$14)^$D$6","v":{"$error":"#DIV/0!"}}]
[null,1,{"$f":"title526","v":"Desulfurizing tower"},{"$f":"\"USD/m3 \"&title512","v":"USD/m3 BIOGAS"},0.9,2010,146.4,{"$f":"'Data entry needs'!$L$121/$G38","v":0},0,{"$f":"$I38*J$18^$D$6","v":{"$error":"#DIV/0!"}},{"$f":"$J38*(K$18/$J$18)^$D$6","v":{"$error":"#DIV/0!"}},{"$f":"$J38*(L$18/$J$18)^$D$6","v":{"$error":"#DIV/0!"}},{"$f":"$J38*(M$18/$J$18)^$D$6","v":{"$error":"#DIV/0!"}}]
[null,{"$f":"IF('Biogas Use Selection'!$P$67=1,1,0)","v":1},{"$f":"title527","v":"Microturbines (30-500 kW)"},"USD/kW",{"$f":"AVERAGE(300,1000)","v":650},2007,141,{"$f":"'Data entry needs'!$L$121/$G39","v":0},0,{"$f":"$I39*J$9^$D$6","v":0},{"$f":"$J39*(K$9/$J$9)^$D$6","v":0}]
[null,{"$f":"IF('Biogas Use Selection'!$P$67=1,1,0)","v":1},{"$f":"title528","v":"Combustion Turbine (500 kW - 50 MW)"},"USD/kW",{"$f":"AVERAGE(300,1000)","v":650},2007,141,{"$f":"'Data entry needs'!$L$121/$G40","v":0},0,null,null,{"$f":"$I40*J9*(L$9/$J$9)^$D$6","v":0},{"$f":"$I40*J9*(M$9/$J$9)^$D$6","v":0}]
[null,{"$f":"IF('Biogas Use Selection'!$P$67=3,1,0)","v":0},{"$f":"title529","v":"Reciprocating Engine (5 kW - 7 MW)"},"USD/kW",{"$f":"AVERAGE(300,900)","v":600},2007,141,{"$f":"'Data entry needs'!$L$121/$G41","v":0},0,{"$f":"$I41*J$9^$D$6","v":0},{"$f":"$J41*(K$9/$J$9)^$D$6","v":0},{"$f":"$J41*(L$9/$J$9)^$D$6","v":0},{"$f":"$J41*(M$9/$J$9)^$D$6","v":0}]
[null,null,null,null,{"$f":"title269","v":"Subtotal"},{"$f":"title269","v":"Subtotal"},null,null,null,{"$f":"SUM(J25:J41)","v":{"$error":"#DIV/0!"}},{"$f":"SUM(K25:K41)","v":{"$error":"#DIV/0!"}},{"$f":"SUM(L25:L41)","v":{"$error":"#DIV/0!"}},{"$f":"SUM(M25:M41)","v":{"$error":"#DIV/0!"}}]
[]
[null,null,{"$f":"title281","v":"Building"}]
[null,1,{"$f":"title532","v":"Building  w/slab"},{"$f":"\"USD/t \"&LOWER(title109)","v":"USD/t feedstock"},{"$f":"640000/100000","v":6.4},2010,146.4,{"$f":"'Data entry needs'!$L$121/$G45","v":0},{"$f":"E45*B45*$H45","v":0},{"$f":"$I45*J$14^$D$6","v":{"$error":"#DIV/0!"}},{"$f":"$J45*(K$18/$J$18)^$D$6","v":{"$error":"#DIV/0!"}},{"$error":"#DIV/0!"},{"$error":"#DIV/0!"}]
[null,1,{"$f":"title533","v":"50' Truck weighing scales"},{"$f":"\"USD/t \"&LOWER(title109)","v":"USD/t feedstock"},{"$f":"32700/10000","v":3.27},2010,146.4,{"$f":"'Data entry needs'!$L$121/$G46","v":0},0,{"$f":"$I46*J$14^$D$6","v":{"$error":"#DIV/0!"}},{"$error":"#DIV/0!"},{"$error":"#DIV/0!"},{"$error":"#DIV/0!"}]
[null,1,{"$f":"title534","v":"Foundation for scales inclu. Const."},{"$f":"\"USD/t \"&LOWER(title109)","v":"USD/t feedstock"},{"$f":"20000/10000","v":2},2010,146.4,{"$f":"'Data entry needs'!$L$121/$G47","v":0},0,{"$error":"#DIV/0!"},{"$error":"#DIV/0!"},{"$error":"#DIV/0!"},{"$error":"#DIV/0!"}]
[null,1,{"$f":"title535","v":"Front-End Loader"},{"$f":"\"USD/t \"&LOWER(title109)","v":"USD/t feedstock"},{"$f":"118000/20000","v":5.9},2010,146.4,{"$f":"'Data entry needs'!$L$121/$G48","v":0},0,{"$error":"#DIV/0!"},{"$error":"#DIV/0!"},{"$error":"#DIV/0!"},{"$error":"#DIV/0!"}]
[null,1,{"$f":"title536","v":"Solids drying area concrete slab"},{"$f":"\"USD/t \"&LOWER(title109)","v":"USD/t feedstock"},{"$f":"30*6400/20000","v":9.6},2010,146.4,{"$f":"'Data entry needs'!$L$121/$G49","v":0},0,{"$error":"#DIV/0!"},{"$error":"#DIV/0!"},{"$error":"#DIV/0!"},{"$error":"#DIV/0!"}]
[null,null,null,null,{"$f":"title269","v":"Subtotal"},{"$f":"title269","v":"Subtotal"},null,null,null,{"$f":"SUM(J45:J49)","v":{"$error":"#DIV/0!"}},{"$f":"SUM(K45:K49)","v":{"$error":"#DIV/0!"}},{"$f":"SUM(L45:L49)","v":{"$error":"#DIV/0!"}},{"$f":"SUM(M45:M49)","v":{"$error":"#DIV/0!"}}]
[null,null,{"$f":"title462","v":"Installation"}]
[null,{"$f":"IF(OR('Biogas Use Selection'!$P$67=1,'Biogas Use Selection'!$P$67=3),1,0)","v":1},{"$f":"title537","v":"Connection and earthing"},"USD/kW",27.142857142857142,2010,146.4,{"$f":"'Data entry needs'!$L$121/$G52","v":0},{"$f":"E52*B52*$H52","v":0},{"$f":"$I52*J$9^$D$6","v":0},{"$f":"$J52*(K$9/$J$9)^$D$6","v":0},{"$f":"$J52*(L$9/$J$9)^$D$6","v":0},{"$f":"$J52*(M$9/$J$9)^$D$6","v":0}]
[null,1,{"$f":"title538","v":"Land Preparation"},{"$f":"\"USD/t \"&LOWER(title109)","v":"USD/t feedstock"},{"$f":"87120/10000","v":8.7119999999999997},2010,146.4,{"$f":"'Data entry needs'!$L$121/$G53","v":0},0,{"$f":"$I53*J$14^$D$6","v":{"$error":"#DIV/0!"}},{"$f":"$J53*(K$18/$J$18)^$D$6","v":{"$error":"#DIV/0!"}},{"$f":"$J53*(L$18/$J$18)^$D$6","v":{"$error":"#DIV/0!"}},{"$f":"$J53*(M$18/$J$18)^$D$6","v":{"$error":"#DIV/0!"}}]
[null,{"$f":"IF(COST_PS2!$L$10=\"CSTR\",1,0)","v":1},{"$f":"title539","v":"Installation CSTR"},{"$f":"\"USD/m3 \"&title545","v":"USD/m3 ch4/year"},7.4000000000000003E-3,2010,146.4,{"$f":"'Data entry needs'!$L$121/$G54","v":0},0,{"$f":"$I54*J$7^$D$6","v":0},{"$f":"$J54*(K$7/$J$7)^$D$6","v":{"$error":"#DIV/0!"}},{"$error":"#DIV/0!"},{"$error":"#DIV/0!"}]
[null,{"$f":"IF(COST_PS2!$L$10=\"uasb\",1,0)","v":0},{"$f":"title540","v":"Installation UASB"},{"$f":"\"USD/m3 \"&title545","v":"USD/m3 ch4/year"},5.5000000000000005E-3,2010,146.4,{"$f":"'Data entry needs'!$L$121/$G55","v":0},0,{"$f":"$I55*J$7^$D$6","v":0},{"$error":"#DIV/0!"},{"$error":"#DIV/0!"},{"$error":"#DIV/0!"}]
[null,{"$f":"IF(COST_PS2!$L$10=title530,1,0)","v":0},{"$f":"title541","v":"Installation Plug Flow"},{"$f":"\"USD/m3 \"&title545","v":"USD/m3 ch4/year"},3.2291666666666662E-3,2010,146.4,{"$f":"'Data entry needs'!$L$121/$G56","v":0},0,0,{"$error":"#DIV/0!"},{"$error":"#DIV/0!"},{"$error":"#DIV/0!"}]
[null,{"$f":"IF(COST_PS2!$L$10=title531,1,0)","v":0},{"$f":"title542","v":"Installation Batch"},{"$f":"\"USD/m3 \"&title545","v":"USD/m3 ch4/year"},3.7000000000000002E-3,2010,146.4,{"$f":"'Data entry needs'!$L$121/$G57","v":0},0,0,{"$error":"#DIV/0!"},{"$error":"#DIV/0!"},{"$error":"#DIV/0!"}]
[null,1,{"$f":"title543","v":"Infrastructure (fencing) "},{"$f":"\"USD/t \"&LOWER(title109)","v":"USD/t feedstock"},{"$f":"46170/10000","v":4.617},2010,146.4,{"$f":"'Data entry needs'!$L$121/$G58","v":0},0,{"$f":"$I58*J$14^$D$6","v":{"$error":"#DIV/0!"}},{"$f":"$J58*(K$18/$J$18)^$D$6","v":{"$error":"#DIV/0!"}},{"$error":"#DIV/0!"},{"$error":"#DIV/0!"}]
[null,1,{"$f":"title544","v":"Infrastructure (roads) ($/ft2)"},{"$f":"\"USD/t \"&LOWER(title109)","v":"USD/t feedstock"},{"$f":"60000/10000","v":6},2010,146.4,{"$f":"'Data entry needs'!$L$121/$G59","v":0},0,{"$f":"$I59*J$14^$D$6","v":{"$error":"#DIV/0!"}},{"$error":"#DIV/0!"},{"$error":"#DIV/0!"},{"$error":"#DIV/0!"}]
[null,null,null,null,{"$f":"title269","v":"Subtotal"},{"$f":"title269","v":"Subtotal"},null,null,null,{"$f":"SUM(J52:J59)","v":{"$error":"#DIV/0!"}},{"$f":"SUM(K52:K59)","v":{"$error":"#DIV/0!"}},{"$f":"SUM(L52:L59)","v":{"$error":"#DIV/0!"}},{"$f":"SUM(M52:M59)","v":{"$error":"#DIV/0!"}}]
[null,null,{"$f":"title546","v":"Electricity Distribution network"}]
[null,{"$f":"IF(OR('Biogas Use Selection'!$P$67=1,'Biogas Use Selection'!$P$67=3),1,0)","v":1},{"$f":"title547","v":" Primary electricity cable"},"USD/m",7.4539999999999997,2010,146.4,{"$f":"'Data entry needs'!$L$121/$G62","v":0},{"$f":"E62*B62*$H62","v":0},{"$f":"+J$16*$I62","v":0},{"$f":"+K$16*$I62","v":0},{"$f":"+L$16*$I62","v":0},{"$f":"+M$16*$I62","v":0}]
[null,{"$f":"IF(OR('Biogas Use Selection'!$P$67=1,'Biogas Use Selection'!$P$67=3),1,0)","v":1},{"$f":"title548","v":"Secondary cable, installation and meter"},{"$f":"title557","v":"USD/household"},164,2010,146.4,{"$f":"'Data entry needs'!$L$121/$G63","v":0},0,{"$f":"$I$63*J$12","v":0},{"$f":"$I$63*K$12","v":0},{"$f":"$I$63*L$12","v":0},{"$f":"$I$63*M$12","v":0}]
[null,null,null,null,{"$f":"title269","v":"Subtotal"},{"$f":"title269","v":"Subtotal"},null,null,null,{"$f":"SUM(J62:J63)","v":0},{"$f":"SUM(K62:K63)","v":0},{"$f":"SUM(L62:L63)","v":0},{"$f":"SUM(M62:M63)","v":0}]
[null,null,{"$f":"title549","v":"Heat Distribution System"}]
[null,{"$f":"IF('Biogas Use Selection'!$P$67=1,1,0)","v":1},{"$f":"title550","v":"Dwelling System"},"USD/MJ",1.4222435477483325E-3,2008,135.30000000000001,{"$f":"'Data entry needs'!$L$121/$G66","v":0},{"$f":"E66*B66*$H66","v":0},{"$f":"$I$66*J17*1000","v":{"$error":"#DIV/0!"}},{"$f":"$J66*(K$17/$J$17)^$D$6","v":{"$error":"#DIV/0!"}},{"$f":"$J66*(L$17/$J$17)^$D$6","v":{"$error":"#DIV/0!"}},{"$f":"$J66*(M$17/$J$17)^$D$6","v":{"$error":"#DIV/0!"}}]
[null,null,null,null,{"$f":"title269","v":"Subtotal"},{"$f":"title269","v":"Subtotal"},null,null,null,{"$f":"SUM(J66:J66)","v":{"$error":"#DIV/0!"}},{"$f":"SUM(K66:K66)","v":{"$error":"#DIV/0!"}},{"$f":"SUM(L66:L66)","v":{"$error":"#DIV/0!"}},{"$f":"SUM(M66:M66)","v":{"$error":"#DIV/0!"}}]
[null,null,{"$f":"title551","v":"Biogas Distribution System"}]
[null,{"$f":"IF(AND('Biogas Use Selection'!$P$67=2,NOT('Biogas Use Selection'!K35),'Biogas Use Selection'!$J$35=title75),1,0)","v":0},{"$f":"title552","v":"Pipe system (Biogas distribution)"},{"$f":"title557","v":"USD/household"},52.63,2006,135.30000000000001,{"$f":"'Data entry needs'!$L$121/$G69","v":0},{"$f":"E69*B69*$H69","v":0},{"$f":"$I69*J$13","v":0},{"$f":"$I69*K$13","v":0},{"$f":"$I69*L$13","v":0},{"$f":"$I69*M$13","v":0}]
[null,{"$f":"IF(AND('Biogas Use Selection'!$P$67=4,'Biogas Use Selection'!$E$56),1,0)","v":0},{"$f":"title553","v":"Pipe system (BIOMETHANE distribution)"},"USD/m",{"$f":"AVERAGE(100000,250000)/1609.344","v":108.73995864153345},2006,135.30000000000001,{"$f":"'Data entry needs'!$L$121/$G70","v":0},0,{"$f":"$I$70*'Biogas Use Selection'!$E$58*1000","v":0},{"$f":"$I$70*'Biogas Use Selection'!$E$58*1000","v":0},{"$f":"$I$70*'Biogas Use Selection'!$E$58*1000","v":0},{"$f":"$I$70*'Biogas Use Selection'!$E$58*1000","v":0}]
[null,null,null,null,{"$f":"title269","v":"Subtotal"},{"$f":"title269","v":"Subtotal"},null,null,null,{"$f":"SUM(J69:J70)","v":0},{"$f":"SUM(K69:K70)","v":0},{"$f":"SUM(L69:L70)","v":0},{"$f":"SUM(M69:M70)","v":0}]
[null,null,{"$f":"title554","v":"Upgrade and connection to natural gas"}]
[null,{"$f":"IF(OR('Biogas Use Selection'!$P$67=4,'Biogas Use Selection'!$P$67=5),1,0)","v":0},{"$f":"title555","v":"Biogas Upgrading, Testing, and Injection Systems "},{"$f":"title558","v":"USD/m3/year"},1.2209860833884656,2009,138.9,{"$f":"'Data entry needs'!$L$121/$G73","v":0},{"$f":"E73*B73*$H73","v":0},{"$f":"+J$7*$I73/Planner_PS2!$AG$107","v":{"$error":"#DIV/0!"}},{"$f":"$J73*(K$7/$J$7)^$D$6","v":{"$error":"#DIV/0!"}},{"$error":"#DIV/0!"},{"$error":"#DIV/0!"}]
[null,{"$f":"IF('Biogas Use Selection'!$P$67=4,1,0)","v":0},{"$f":"title556","v":"Connection to Utility Natural Gas Pipeline"},{"$f":"title558","v":"USD/m3/year"},0.26298161796059261,2010,146.4,{"$f":"'Data entry needs'!$L$121/$G74","v":0},0,{"$f":"+J$7*$I74/Planner_PS2!$AG$107","v":{"$error":"#DIV/0!"}},{"$error":"#DIV/0!"},{"$error":"#DIV/0!"},{"$error":"#DIV/0!"}]
[null,null,null,null,{"$f":"title269","v":"Subtotal"},{"$f":"title269","v":"Subtotal"},null,null,null,{"$f":"SUM(J73:J74)","v":{"$error":"#DIV/0!"}},{"$f":"SUM(K73:K74)","v":{"$error":"#DIV/0!"}},{"$f":"SUM(L73:L74)","v":{"$error":"#DIV/0!"}},{"$f":"SUM(M73:M74)","v":{"$error":"#DIV/0!"}}]

{"sheet":"FA_SIZE1_PS2","index":27,"n_rows":97,"n_cols":25,"rows_kept":97,"cut":false,"hidden":true,"merged":[[1,1,1,23]]}
[]
[null,{"$f":"title496&\" 1\"","v":"FINANCIAL EVALUATION OF BIOGAS PRODUCTION SIZE 1"}]
[]
[null,{"$f":"title445","v":"Revenues of biomass production and use system"}]
[null,{"$f":"title446","v":"Operating Year"},null,0,1,2,3,4,5,6,7,8,9,10,11,12,13,14,15,16,17,18,19,20,1]
[null,null,null,null,null,null,null,null,null,null,null,null,null,null,null,null,null,null,null,null,null,null,null,null,1]
["AD130",{"$f":"title447","v":"Biogas production capacity (m3 Biogas per year)"},null,{"$f":"INDIRECT(\"Planner_PS2!$\"&$A$7)*'Data entry needs'!$L$100","v":{"$error":"#DIV/0!"}},{"$f":"D7","v":{"$error":"#DIV/0!"}},{"$f":"E7","v":{"$error":"#DIV/0!"}},{"$f":"F7","v":{"$error":"#DIV/0!"}},{"$error":"#DIV/0!"},{"$error":"#DIV/0!"},{"$error":"#DIV/0!"},{"$error":"#DIV/0!"},{"$error":"#DIV/0!"},{"$error":"#DIV/0!"},{"$error":"#DIV/0!"},{"$error":"#DIV/0!"},{"$error":"#DIV/0!"},{"$error":"#DIV/0!"},{"$error":"#DIV/0!"},{"$error":"#DIV/0!"},{"$error":"#DIV/0!"},{"$error":"#DIV/0!"},{"$error":"#DIV/0!"},{"$error":"#DIV/0!"},{"$error":"#DIV/0!"},1]
[]
["G107",{"$f":"title448","v":"Heat Available for Selling (MJ/year)"},null,{"$f":"IF(INDIRECT(\"COST_PS2!\"&$A$9)<0,0,INDIRECT(\"COST_PS2!\"&$A$9))","v":{"$error":"#DIV/0!"}},{"$f":"D9","v":{"$error":"#DIV/0!"}},{"$f":"E9","v":{"$error":"#DIV/0!"}},{"$error":"#DIV/0!"},{"$error":"#DIV/0!"},{"$error":"#DIV/0!"},{"$error":"#DIV/0!"},{"$error":"#DIV/0!"},{"$error":"#DIV/0!"},{"$error":"#DIV/0!"},{"$error":"#DIV/0!"},{"$error":"#DIV/0!"},{"$error":"#DIV/0!"},{"$error":"#DIV/0!"},{"$error":"#DIV/0!"},{"$error":"#DIV/0!"},{"$error":"#DIV/0!"},{"$error":"#DIV/0!"},{"$f":"U9","v":{"$error":"#DIV/0!"}},{"$error":"#DIV/0!"},{"$error":"#DIV/0!"},1]
["G106",{"$f":"title449","v":"Electricity Available for Selling (kWh/year)"},null,{"$f":"IF(INDIRECT(\"COST_PS2!\"&$A$10)<0,0,INDIRECT(\"COST_PS2!\"&$A$10))","v":{"$error":"#DIV/0!"}},{"$f":"D10","v":{"$error":"#DIV/0!"}},{"$error":"#DIV/0!"},{"$error":"#DIV/0!"},{"$error":"#DIV/0!"},{"$error":"#DIV/0!"},{"$error":"#DIV/0!"},{"$error":"#DIV/0!"},{"$error":"#DIV/0!"},{"$error":"#DIV/0!"},{"$error":"#DIV/0!"},{"$error":"#DIV/0!"},{"$error":"#DIV/0!"},{"$error":"#DIV/0!"},{"$error":"#DIV/0!"},{"$error":"#DIV/0!"},{"$error":"#DIV/0!"},{"$error":"#DIV/0!"},{"$error":"#DIV/0!"},{"$error":"#DIV/0!"},{"$error":"#DIV/0!"},1]
["AB166",{"$f":"title450","v":"Biomethane Production (m3 Methane/year)"},null,{"$f":"IF(OR('Biogas Use Selection'!$P$67=4,'Biogas Use Selection'!$P$67=5),INDIRECT(\"Planner_PS2!$\"&$A$11),0)","v":0},{"$f":"D11","v":0},0,0,0,0,0,0,0,0,0,0,0,0,0,0,0,0,0,0,0,1]
[null,{"$f":"title451","v":"Biogas Available for Selling (m3/year)"},null,{"$f":"IF('Biogas Use Selection'!$P$67=2,$D$7,0)","v":0},{"$f":"D12","v":0},0,0,0,0,0,0,0,0,0,0,0,0,0,0,0,0,0,0,0]
["AB178",{"$f":"title452","v":"Digestate Production (t/year)"},null,{"$f":"INDIRECT(\"Planner_PS2!$\"&$A$13)","v":{"$error":"#DIV/0!"}},{"$f":"D13","v":{"$error":"#DIV/0!"}},{"$error":"#DIV/0!"},{"$error":"#DIV/0!"},{"$error":"#DIV/0!"},{"$error":"#DIV/0!"},{"$error":"#DIV/0!"},{"$error":"#DIV/0!"},{"$error":"#DIV/0!"},{"$error":"#DIV/0!"},{"$error":"#DIV/0!"},{"$error":"#DIV/0!"},{"$error":"#DIV/0!"},{"$error":"#DIV/0!"},{"$error":"#DIV/0!"},{"$error":"#DIV/0!"},{"$error":"#DIV/0!"},{"$error":"#DIV/0!"},{"$error":"#DIV/0!"},{"$error":"#DIV/0!"},{"$error":"#DIV/0!"}]
[]
[null,{"$f":"title265","v":"Operating hours per year"},null,{"$f":"COST_PS2!$G$35","v":0},{"$f":"D15","v":0},{"$f":"E15","v":0},0,0,0,0,0,0,0,0,0,0,0,0,0,0,0,0,0,0,1]
[null,null,null,null,null,null,null,null,null,null,null,null,null,null,null,null,null,null,null,null,null,null,null,null,1]
[1,{"$f":"title137&\" (USD/kWh)\"","v":"Electricity Selling Price (USD/kWh)"},null,{"$f":"IF($A17=1,'Data entry needs'!$F$103,0)","v":0},null,null,null,null,null,null,null,null,null,null,null,null,null,null,null,null,null,null,null,null,1]
[1,{"$f":"title138&\" (USD/GJ)\"","v":"Heat Selling Price (USD/GJ)"},null,{"$f":"IF($A18=1,'Data entry needs'!$F$104,0)","v":0}]
[1,{"$f":"title453","v":"Biogas Selling Price (USD/m3)"},null,{"$f":"IF($A19=1,'Data entry needs'!$F$105,0)","v":0}]
[1,{"$f":"title454","v":"Biomethane Selling Price (USD/m3)"},null,{"$f":"IF($A20=1,'Data entry needs'!$L$103,0)","v":0}]
[1,{"$f":"title455","v":"Digestate Sellig Price (USD/t)"},null,{"$f":"'Data entry needs'!$L$104","v":0}]
[]
[null,null,null,null,null,null,null,null,null,null,null,null,null,null,null,null,null,null,null,null,null,null,null,null,1]
[null,{"$f":"title456","v":"Annual Income (USD per year)"},null,{"$f":"$D$18*D9+D10*$D$17+D12*$D$19+D11*$D$20+$D$21*D13","v":{"$error":"#DIV/0!"}},{"$f":"$D$18*E9+E10*$D$17+E12*$D$19+E11*$D$20+$D$21*E13","v":{"$error":"#DIV/0!"}},{"$f":"$D$18*F9+F10*$D$17+F12*$D$19+F11*$D$20+$D$21*F13","v":{"$error":"#DIV/0!"}},{"$error":"#DIV/0!"},{"$error":"#DIV/0!"},{"$error":"#DIV/0!"},{"$error":"#DIV/0!"},{"$error":"#DIV/0!"},{"$error":"#DIV/0!"},{"$error":"#DIV/0!"},{"$error":"#DIV/0!"},{"$error":"#DIV/0!"},{"$error":"#DIV/0!"},{"$error":"#DIV/0!"},{"$error":"#DIV/0!"},{"$error":"#DIV/0!"},{"$error":"#DIV/0!"},{"$error":"#DIV/0!"},{"$error":"#DIV/0!"},{"$error":"#DIV/0!"},{"$error":"#DIV/0!"},1]
[null,null,null,null,null,null,null,null,null,null,null,null,null,null,null,null,null,null,null,null,null,null,null,null,1]
[null,{"$f":"title457","v":"Lifespan of civil work (years)"},null,{"$f":"'Data entry needs'!$L$120","v":0},null,null,null,null,null,null,null,null,null,null,null,null,null,null,null,null,null,null,null,null,1]
[null,{"$f":"title458","v":"Lifespan of charcoal system (years)"},null,{"$f":"'Data entry needs'!$L$120","v":0},null,null,null,null,null,null,null,null,null,null,null,null,null,null,null,null,null,null,null,null,1]
[null,{"$f":"title459","v":"Project lifetime (years)"},null,{"$f":"'Data entry needs'!$L$120","v":0},null,null,null,null,null,null,null,null,null,null,null,null,null,null,null,null,null,null,null,null,1]
[null,null,null,null,null,null,null,null,null,null,null,null,null,null,null,null,null,null,null,null,null,null,null,null,1]
[null,null,null,null,null,null,null,null,null,null,null,null,null,null,null,null,null,null,null,null,null,null,null,null,1]
[null,{"$f":"title460","v":"Capital and operating cost of biogas system "},null,null,null,null,null,null,null,null,null,null,null,null,null,null,null,null,null,null,null,null,null,null,1]
[null,null,null,null,null,null,null,null,null,null,null,null,null,null,null,null,null,null,null,null,null,null,null,null,1]
[null,{"$f":"title446","v":"Operating Year"},null,{"$f":"title464","v":"Appraisal"},{"$f":"title465","v":"Project period (years)"},{"$f":"title466","v":"per year"},null,null,null,null,null,null,null,null,null,null,null,null,null,null,null,null,null,null,1]
[null,{"$f":"title461","v":"Capital cost (USD)"},null,"Total",null,null,null,null,null,null,null,null,null,null,null,null,null,null,null,null,null,null,null,null,1]
["F77",{"$f":"title280","v":"Equipments"},null,{"$f":"INDIRECT(\"COST_PS2!\"&$A35)","v":{"$error":"#DIV/0!"}},{"$f":"+D26","v":0},{"$f":"D35/E35","v":{"$error":"#DIV/0!"}},null,null,null,null,null,null,null,null,null,null,null,null,null,null,null,null,null,null,1]
["F78",{"$f":"title281","v":"Building"},null,{"$f":"INDIRECT(\"COST_PS2!\"&$A36)","v":{"$error":"#DIV/0!"}},{"$f":"+D27","v":0},{"$f":"D36/E36","v":{"$error":"#DIV/0!"}},null,null,null,null,null,null,null,null,null,null,null,null,null,null,null,null,null,null,1]
["F79",{"$f":"title462","v":"Installation"},null,{"$f":"INDIRECT(\"COST_PS2!\"&$A37)","v":{"$error":"#DIV/0!"}},{"$f":"+D28","v":0},{"$f":"D37/E37","v":{"$error":"#DIV/0!"}},null,null,null,null,null,null,null,null,null,null,null,null,null,null,null,null,null,null,1]
[null,{"$f":"title463","v":"Total capital cost (USD)"},null,{"$f":"SUM(D35:D37)","v":{"$error":"#DIV/0!"}},null,{"$f":"SUM(F35:F37)","v":{"$error":"#DIV/0!"}},null,null,null,null,null,null,null,null,null,null,null,null,null,null,null,null,null,null,1]
[null,null,null,null,null,null,null,null,null,null,null,null,null,null,null,null,null,null,null,null,null,null,null,null,1]
[null,null,null,null,null,null,null,null,null,null,null,null,null,null,null,null,null,null,null,null,null,null,null,null,1]
[null,{"$f":"title446","v":"Operating Year"},null,{"$f":"title464","v":"Appraisal"},1,2,3,4,5,6,7,8,9,10,11,12,13,14,15,16,17,18,19,20,1]
[null,{"$f":"title467","v":"Annual operating and maintenance cost "},null,null,null,null,null,null,null,null,null,null,null,null,null,null,null,null,null,null,null,null,null,null,1]
["F44",{"$f":"title468","v":"Sub-total inputs cost (USD)"},null,{"$f":"INDIRECT(\"COST_PS2!\"&$A$43)","v":{"$error":"#DIV/0!"}},{"$error":"#DIV/0!"},{"$error":"#DIV/0!"},{"$error":"#DIV/0!"},{"$error":"#DIV/0!"},{"$error":"#DIV/0!"},{"$error":"#DIV/0!"},{"$error":"#DIV/0!"},{"$error":"#DIV/0!"},{"$error":"#DIV/0!"},{"$error":"#DIV/0!"},{"$error":"#DIV/0!"},{"$error":"#DIV/0!"},{"$error":"#DIV/0!"},{"$error":"#DIV/0!"},{"$error":"#DIV/0!"},{"$error":"#DIV/0!"},{"$error":"#DIV/0!"},{"$error":"#DIV/0!"},{"$error":"#DIV/0!"},{"$error":"#DIV/0!"},1]
[]
[null,{"$f":"title469","v":"Sub-total operating cost (USD)"},null,{"$f":"D46+D47+D48","v":{"$error":"#DIV/0!"}},{"$f":"E46+E47+E48","v":{"$error":"#DIV/0!"}},{"$f":"F46+F47+F48","v":{"$error":"#DIV/0!"}},{"$error":"#DIV/0!"},{"$error":"#DIV/0!"},{"$error":"#DIV/0!"},{"$error":"#DIV/0!"},{"$error":"#DIV/0!"},{"$error":"#DIV/0!"},{"$error":"#DIV/0!"},{"$error":"#DIV/0!"},{"$error":"#DIV/0!"},{"$error":"#DIV/0!"},{"$error":"#DIV/0!"},{"$error":"#DIV/0!"},{"$error":"#DIV/0!"},{"$error":"#DIV/0!"},{"$error":"#DIV/0!"},{"$error":"#DIV/0!"},{"$error":"#DIV/0!"},{"$error":"#DIV/0!"},1]
["g51",{"$f":"title470","v":"Labour cost & Misc. (USD)"},null,{"$f":"INDIRECT(\"COST_PS2!\"&$A46)","v":0},{"$f":"+D46","v":0},{"$f":"+E46","v":0},0,0,0,0,0,0,0,0,0,0,0,0,0,0,0,0,0,0,1]
["g87",{"$f":"title151","v":"Plant overhead"},null,{"$f":"INDIRECT(\"COST_PS2!\"&$A47)","v":{"$error":"#DIV/0!"}},{"$f":"D47","v":{"$error":"#DIV/0!"}},{"$f":"E47","v":{"$error":"#DIV/0!"}},{"$error":"#DIV/0!"},{"$error":"#DIV/0!"},{"$error":"#DIV/0!"},{"$error":"#DIV/0!"},{"$error":"#DIV/0!"},{"$error":"#DIV/0!"},{"$error":"#DIV/0!"},{"$error":"#DIV/0!"},{"$error":"#DIV/0!"},{"$error":"#DIV/0!"},{"$error":"#DIV/0!"},{"$error":"#DIV/0!"},{"$error":"#DIV/0!"},{"$error":"#DIV/0!"},{"$error":"#DIV/0!"},{"$error":"#DIV/0!"},{"$error":"#DIV/0!"},{"$error":"#DIV/0!"},1]
["g88",{"$f":"title288","v":"General and administrative cost"},null,{"$f":"INDIRECT(\"COST_PS2!\"&$A48)","v":{"$error":"#DIV/0!"}},{"$f":"D48","v":{"$error":"#DIV/0!"}},{"$error":"#DIV/0!"},{"$error":"#DIV/0!"},{"$error":"#DIV/0!"},{"$error":"#DIV/0!"},{"$error":"#DIV/0!"},{"$error":"#DIV/0!"},{"$error":"#DIV/0!"},{"$error":"#DIV/0!"},{"$error":"#DIV/0!"},{"$error":"#DIV/0!"},{"$error":"#DIV/0!"},{"$error":"#DIV/0!"},{"$error":"#DIV/0!"},{"$error":"#DIV/0!"},{"$error":"#DIV/0!"},{"$error":"#DIV/0!"},{"$error":"#DIV/0!"},{"$error":"#DIV/0!"},{"$error":"#DIV/0!"},1]
["g82",{"$f":"title471","v":"Sub-total maintenance cost (USD)"},null,{"$f":"INDIRECT(\"COST_PS2!\"&$A49)","v":{"$error":"#DIV/0!"}},{"$f":"D49","v":{"$error":"#DIV/0!"}},{"$error":"#DIV/0!"},{"$error":"#DIV/0!"},{"$error":"#DIV/0!"},{"$error":"#DIV/0!"},{"$error":"#DIV/0!"},{"$error":"#DIV/0!"},{"$error":"#DIV/0!"},{"$error":"#DIV/0!"},{"$error":"#DIV/0!"},{"$error":"#DIV/0!"},{"$error":"#DIV/0!"},{"$error":"#DIV/0!"},{"$error":"#DIV/0!"},{"$error":"#DIV/0!"},{"$error":"#DIV/0!"},{"$error":"#DIV/0!"},{"$error":"#DIV/0!"},{"$error":"#DIV/0!"},{"$error":"#DIV/0!"},1]
[null,null,null,null,null,null,null,null,null,null,null,null,null,null,null,null,null,null,null,null,null,null,null,null,1]
["g82",{"$f":"title472","v":"Sub-total of annual fixed cost (USD)"},null,{"$f":"F38","v":{"$error":"#DIV/0!"}},{"$f":"D51","v":{"$error":"#DIV/0!"}},{"$f":"E51","v":{"$error":"#DIV/0!"}},{"$error":"#DIV/0!"},{"$error":"#DIV/0!"},{"$error":"#DIV/0!"},{"$error":"#DIV/0!"},{"$error":"#DIV/0!"},{"$error":"#DIV/0!"},{"$error":"#DIV/0!"},{"$error":"#DIV/0!"},{"$error":"#DIV/0!"},{"$error":"#DIV/0!"},{"$error":"#DIV/0!"},{"$error":"#DIV/0!"},{"$error":"#DIV/0!"},{"$error":"#DIV/0!"},{"$error":"#DIV/0!"},{"$error":"#DIV/0!"},{"$error":"#DIV/0!"},{"$error":"#DIV/0!"},1]
[null,null,null,null,null,null,null,null,null,null,null,null,null,null,null,null,null,null,null,null,null,null,null,null,1]
["f73",{"$f":"title473","v":"Sub-total of storage cost (USD)"},null,{"$f":"INDIRECT(\"COST_PS2!\"&$A53)","v":0},0,0,0,0,0,0,0,0,0,0,0,0,0,0,0,0,0,0,0,0,1]
[null,null,null,null,null,null,null,null,null,null,null,null,null,null,null,null,null,null,null,null,null,null,null,null,1]
[null,{"$f":"title474","v":"Total operation and maintenance cost (USD)"},null,{"$f":"D43+D45+D49+D51+D53","v":{"$error":"#DIV/0!"}},{"$f":"E43+E45+E49+E51+E53","v":{"$error":"#DIV/0!"}},{"$error":"#DIV/0!"},{"$error":"#DIV/0!"},{"$error":"#DIV/0!"},{"$error":"#DIV/0!"},{"$error":"#DIV/0!"},{"$error":"#DIV/0!"},{"$error":"#DIV/0!"},{"$error":"#DIV/0!"},{"$error":"#DIV/0!"},{"$error":"#DIV/0!"},{"$error":"#DIV/0!"},{"$error":"#DIV/0!"},{"$error":"#DIV/0!"},{"$error":"#DIV/0!"},{"$error":"#DIV/0!"},{"$error":"#DIV/0!"},{"$error":"#DIV/0!"},{"$error":"#DIV/0!"},{"$error":"#DIV/0!"},1]
[null,null,null,null,null,null,null,null,null,null,null,null,null,null,null,null,null,null,null,null,null,null,null,null,1]
[null,null,null,null,null,null,null,null,null,null,null,null,null,null,null,null,null,null,null,null,null,null,null,null,1]
[null,{"$f":"title155","v":"Financial parameters"},null,null,null,null,null,null,null,null,null,null,null,null,null,null,null,null,null,null,null,null,null,null,1]
[null,{"$f":"title446","v":"Operating Year"},null,{"$f":"title464","v":"Appraisal"},1,2,3,4,5,6,7,8,9,10,11,12,13,14,15,16,17,18,19,20,1]
[null,{"$f":"title161&\"(%)\"","v":"Discount rate(%)"},null,{"$f":"'Data entry needs'!$L$118","v":0},null,null,null,null,null,null,null,null,null,null,null,null,null,null,null,null,null,null,null,null,1]
[null,{"$f":"title475","v":"Loan ratio (%)"},null,{"$f":"'Data entry needs'!$F$118","v":0},null,null,null,null,null,null,null,null,null,null,null,null,null,null,null,null,null,null,null,null,1]
[null,null,null,null,null,null,null,null,null,null,null,null,null,null,null,null,null,null,null,null,null,null,null,null,1]
[null,null,null,null,null,null,null,null,null,null,null,null,null,null,null,null,null,null,null,null,null,null,null,null,1]
[null,{"$f":"title446","v":"Operating Year"},null,{"$f":"title464","v":"Appraisal"},1,2,3,4,5,6,7,8,9,10,11,12,13,14,15,16,17,18,19,20,1]
[null,{"$f":"title476","v":"Loan amount (USD)"},null,{"$f":"D61*(D38)","v":{"$error":"#DIV/0!"}},null,null,null,null,null,null,null,null,null,null,null,null,null,null,null,null,null,null,null,null,1]
[null,{"$f":"title162&\"(%)\"","v":"Loan interest rate(%)"},null,{"$f":"'Data entry needs'!$L$119","v":0},null,null,null,null,null,null,null,null,null,null,null,null,null,null,null,null,null,null,null,null,1]
[null,{"$f":"title165","v":"Loan term (years)"},null,{"$f":"D26","v":0},null,null,null,null,null,null,null,null,null,null,null,null,null,null,null,null,null,null,null,null,1]
[null,{"$f":"title315&\" (\"&title318&\")\"","v":"Loan payment (USD/month)"},null,{"$f":"(PMT($D$66/12,($D$67*12),$D$65))","v":{"$error":"#DIV/0!"}}]
[null,{"$f":"title315&\" (\"&title319&\")\"","v":"Loan payment (USD/year)"},null,{"$f":"D68*12","v":{"$error":"#DIV/0!"}},null,null,null,null,null,null,null,null,null,null,null,null,null,null,null,null,null,null,null,null,1]
[null,{"$f":"title315&\" (\"&title319&\")\"","v":"Loan payment (USD/year)"},null,null,{"$f":"IF(E64<=$D$67,$D$68*12,0)","v":0},{"$f":"IF(F64<=$D$67,$D$68*12,0)","v":0},0,0,0,0,0,0,0,0,0,0,0,0,0,0,0,0,0,0,1]
[null,{"$f":"title477","v":"Total loan payment (USD)"},null,{"$f":"SUM(E70:X70)","v":0},null,null,null,null,null,null,null,null,null,null,null,null,null,null,null,null,null,null,null,null,1]
[null,{"$f":"title478","v":"Loan interest payment (USD)"},null,{"$f":"D71+D65","v":{"$error":"#DIV/0!"}},{"$f":"title479","v":"loan interest payment for project lifetime"},null,null,null,null,null,null,null,null,null,null,null,null,null,null,null,null,null,null,null,1]
[null,null,null,null,null,null,null,null,null,null,null,null,null,null,null,null,null,null,null,null,null,null,null,null,1]
[null,{"$f":"title285","v":"Depreciation"},null,null,null,null,null,null,null,null,null,null,null,null,null,null,null,null,null,null,null,null,null,null,1]
[null,{"$f":"title446","v":"Operating Year"},null,{"$f":"title464","v":"Appraisal"},1,2,3,4,5,6,7,8,9,10,11,12,13,14,15,16,17,18,19,20,1]
[null,{"$f":"title480","v":"Depreciation method"},null,{"$f":"title482","v":"Straight-line"},null,null,null,null,null,null,null,null,null,null,null,null,null,null,null,null,null,null,null,null,1]
[null,{"$f":"title481","v":"Total depreciation (USD)"},null,null,{"$f":"$F$38","v":{"$error":"#DIV/0!"}},{"$f":"$F$38","v":{"$error":"#DIV/0!"}},{"$error":"#DIV/0!"},{"$error":"#DIV/0!"},{"$error":"#DIV/0!"},{"$error":"#DIV/0!"},{"$error":"#DIV/0!"},{"$error":"#DIV/0!"},{"$error":"#DIV/0!"},{"$error":"#DIV/0!"},{"$error":"#DIV/0!"},{"$error":"#DIV/0!"},{"$error":"#DIV/0!"},{"$error":"#DIV/0!"},{"$error":"#DIV/0!"},{"$error":"#DIV/0!"},{"$error":"#DIV/0!"},{"$error":"#DIV/0!"},{"$error":"#DIV/0!"},{"$error":"#DIV/0!"},1]
[null,null,null,null,null,null,null,null,null,null,null,null,null,null,null,null,null,null,null,null,null,null,null,null,1]
[null,{"$f":"title483","v":"Base case Project Summary"},null,null,null,null,null,null,null,null,null,null,null,null,null,null,null,null,null,null,null,null,null,null,1]
[null,{"$f":"title484","v":"Summary of this project"},null,null,null,null,null,null,null,null,null,null,null,null,null,null,null,null,null,null,null,null,null,null,1]
[null,{"$f":"title446","v":"Operating Year"},null,{"$f":"title464","v":"Appraisal"},1,2,3,4,5,6,7,8,9,10,11,12,13,14,15,16,17,18,19,20,1]
[null,{"$f":"title485","v":"Total revenue (USD)"},null,null,{"$f":"E24","v":{"$error":"#DIV/0!"}},{"$f":"F24","v":{"$error":"#DIV/0!"}},{"$error":"#DIV/0!"},{"$error":"#DIV/0!"},{"$error":"#DIV/0!"},{"$error":"#DIV/0!"},{"$error":"#DIV/0!"},{"$error":"#DIV/0!"},{"$error":"#DIV/0!"},{"$error":"#DIV/0!"},{"$error":"#DIV/0!"},{"$error":"#DIV/0!"},{"$error":"#DIV/0!"},{"$error":"#DIV/0!"},{"$error":"#DIV/0!"},{"$error":"#DIV/0!"},{"$error":"#DIV/0!"},{"$error":"#DIV/0!"},{"$error":"#DIV/0!"},{"$error":"#DIV/0!"},1]
[null,{"$f":"title463","v":"Total capital cost (USD)"},null,{"$f":"-D38*(1-$D$61)","v":{"$error":"#DIV/0!"}},null,null,null,null,null,null,null,null,null,null,null,null,null,null,null,null,null,null,null,null,1]
[null,{"$f":"title486","v":"Total operating and maintenance cost (USD)"},null,null,{"$f":"-E55+E51","v":{"$error":"#DIV/0!"}},{"$f":"-F55+F51","v":{"$error":"#DIV/0!"}},{"$f":"-G55+G51","v":{"$error":"#DIV/0!"}},{"$error":"#DIV/0!"},{"$error":"#DIV/0!"},{"$error":"#DIV/0!"},{"$error":"#DIV/0!"},{"$error":"#DIV/0!"},{"$error":"#DIV/0!"},{"$error":"#DIV/0!"},{"$error":"#DIV/0!"},{"$error":"#DIV/0!"},{"$error":"#DIV/0!"},{"$error":"#DIV/0!"},{"$error":"#DIV/0!"},{"$error":"#DIV/0!"},{"$error":"#DIV/0!"},{"$error":"#DIV/0!"},{"$error":"#DIV/0!"},{"$error":"#DIV/0!"},1]
[null,{"$f":"title487","v":"Loan payment (USD)"},null,null,{"$f":"+E70","v":0},{"$f":"+F70","v":0},{"$f":"+G70","v":0},0,0,0,0,0,0,0,0,0,0,0,0,0,0,0,0,0,1]
[null,{"$f":"title488","v":"Cash flow with loan (USD)"},null,{"$f":"SUM(D82:D85)","v":{"$error":"#DIV/0!"}},{"$f":"SUM(E82:E85)","v":{"$error":"#DIV/0!"}},{"$f":"SUM(F82:F85)","v":{"$error":"#DIV/0!"}},{"$f":"SUM(G82:G85)","v":{"$error":"#DIV/0!"}},{"$error":"#DIV/0!"},{"$error":"#DIV/0!"},{"$error":"#DIV/0!"},{"$error":"#DIV/0!"},{"$error":"#DIV/0!"},{"$error":"#DIV/0!"},{"$error":"#DIV/0!"},{"$error":"#DIV/0!"},{"$error":"#DIV/0!"},{"$error":"#DIV/0!"},{"$error":"#DIV/0!"},{"$error":"#DIV/0!"},{"$error":"#DIV/0!"},{"$error":"#DIV/0!"},{"$error":"#DIV/0!"},{"$error":"#DIV/0!"},{"$error":"#DIV/0!"},1]
[null,{"$f":"title489","v":"Cash flow without loan (USD)"},null,{"$f":"-D38","v":{"$error":"#DIV/0!"}},{"$f":"+E82+E84","v":{"$error":"#DIV/0!"}},{"$f":"+F82+F84","v":{"$error":"#DIV/0!"}},{"$f":"+G82+G84","v":{"$error":"#DIV/0!"}},{"$error":"#DIV/0!"},{"$error":"#DIV/0!"},{"$error":"#DIV/0!"},{"$error":"#DIV/0!"},{"$error":"#DIV/0!"},{"$error":"#DIV/0!"},{"$error":"#DIV/0!"},{"$error":"#DIV/0!"},{"$error":"#DIV/0!"},{"$error":"#DIV/0!"},{"$error":"#DIV/0!"},{"$error":"#DIV/0!"},{"$error":"#DIV/0!"},{"$error":"#DIV/0!"},{"$error":"#DIV/0!"},{"$error":"#DIV/0!"},{"$error":"#DIV/0!"},1]
[null,{"$f":"title446","v":"Operating Year"},null,{"$f":"title464","v":"Appraisal"},1,2,3,4,5,6,7,8,9,10,11,12,13,14,15,16,17,18,19,20,1]
[null,{"$f":"title490","v":"Cumulative value of Net Profit"},null,{"$f":"D86","v":{"$error":"#DIV/0!"}},{"$f":"D89+(E86)","v":{"$error":"#DIV/0!"}},{"$f":"E89+(F86)","v":{"$error":"#DIV/0!"}},{"$error":"#DIV/0!"},{"$error":"#DIV/0!"},{"$error":"#DIV/0!"},{"$error":"#DIV/0!"},{"$error":"#DIV/0!"},{"$error":"#DIV/0!"},{"$error":"#DIV/0!"},{"$error":"#DIV/0!"},{"$error":"#DIV/0!"},{"$error":"#DIV/0!"},{"$error":"#DIV/0!"},{"$error":"#DIV/0!"},{"$error":"#DIV/0!"},{"$error":"#DIV/0!"},{"$error":"#DIV/0!"},{"$error":"#DIV/0!"},{"$error":"#DIV/0!"},{"$error":"#DIV/0!"},1]
[null,null,null,null,null,null,null,null,null,null,null,null,null,null,null,null,null,null,null,null,null,null,null,null,1]
[null,{"$f":"title491","v":"Financial Analysis Result"},null,null,null,null,null,null,null,null,null,null,null,null,null,null,null,null,null,null,null,null,null,null,1]
[null,null,null,null,null,null,null,null,null,null,null,null,null,null,null,null,null,null,null,null,null,null,null,null,1]
[null,{"$f":"title493","v":"Net Present Value (NPV) (USD)"},null,{"$f":"NPV(D60,E86:AA86)+D86","v":{"$error":"#DIV/0!"}},null,null,null,null,null,null,null,null,null,null,null,null,null,null,null,null,null,null,null,null,1]
[null,{"$f":"title494","v":"Internal Rate of Return (IRR) (%) - without loan"},null,{"$f":"IF(D93<0,title492,IRR(D87:AA87,0.001))","v":{"$error":"#DIV/0!"}},null,null,null,null,null,null,null,null,null,null,null,null,null,null,null,null,null,null,null,null,1]
[null,{"$f":"title495","v":"Internal Rate of Return (IRR) (%) - with loan"},null,{"$f":"IF(D94<0,title492,IRR(D86:AA86,0.001))","v":{"$error":"#DIV/0!"}},null,null,null,null,null,null,null,null,null,null,null,null,null,null,null,null,null,null,null,null,1]
[null,null,null,null,null,null,null,null,null,null,null,null,null,null,null,null,null,null,null,null,null,null,null,null,1]
[null,null,null,null,null,null,null,null,null,null,null,null,null,null,null,null,null,null,null,null,null,null,null,null,1]

{"sheet":"FA_SIZE2_PS2","index":28,"n_rows":97,"n_cols":25,"rows_kept":97,"cut":false,"hidden":true,"merged":[[1,1,1,23]]}
[]
[null,{"$f":"title496&\" 2\"","v":"FINANCIAL EVALUATION OF BIOGAS PRODUCTION SIZE 2"}]
[]
[null,{"$f":"title445","v":"Revenues of biomass production and use system"}]
[null,{"$f":"title446","v":"Operating Year"},null,0,1,2,3,4,5,6,7,8,9,10,11,12,13,14,15,16,17,18,19,20,1]
[null,null,null,null,null,null,null,null,null,null,null,null,null,null,null,null,null,null,null,null,null,null,null,null,1]
["Ae130",{"$f":"title447","v":"Biogas production capacity (m3 Biogas per year)"},null,{"$f":"INDIRECT(\"Planner_PS2!$\"&$A$7)*'Data entry needs'!$L$100","v":{"$error":"#DIV/0!"}},{"$f":"D7","v":{"$error":"#DIV/0!"}},{"$f":"E7","v":{"$error":"#DIV/0!"}},{"$f":"F7","v":{"$error":"#DIV/0!"}},{"$error":"#DIV/0!"},{"$error":"#DIV/0!"},{"$error":"#DIV/0!"},{"$error":"#DIV/0!"},{"$error":"#DIV/0!"},{"$error":"#DIV/0!"},{"$error":"#DIV/0!"},{"$error":"#DIV/0!"},{"$error":"#DIV/0!"},{"$error":"#DIV/0!"},{"$error":"#DIV/0!"},{"$error":"#DIV/0!"},{"$error":"#DIV/0!"},{"$error":"#DIV/0!"},{"$error":"#DIV/0!"},{"$error":"#DIV/0!"},{"$error":"#DIV/0!"},1]
[]
["I107",{"$f":"title448","v":"Heat Available for Selling (MJ/year)"},null,{"$f":"IF(INDIRECT(\"COST_PS2!\"&$A$9)<0,0,INDIRECT(\"COST_PS2!\"&$A$9))","v":{"$error":"#DIV/0!"}},{"$f":"D9","v":{"$error":"#DIV/0!"}},{"$f":"E9","v":{"$error":"#DIV/0!"}},{"$error":"#DIV/0!"},{"$error":"#DIV/0!"},{"$error":"#DIV/0!"},{"$error":"#DIV/0!"},{"$error":"#DIV/0!"},{"$error":"#DIV/0!"},{"$error":"#DIV/0!"},{"$error":"#DIV/0!"},{"$error":"#DIV/0!"},{"$error":"#DIV/0!"},{"$error":"#DIV/0!"},{"$error":"#DIV/0!"},{"$error":"#DIV/0!"},{"$error":"#DIV/0!"},{"$error":"#DIV/0!"},{"$f":"U9","v":{"$error":"#DIV/0!"}},{"$error":"#DIV/0!"},{"$error":"#DIV/0!"},1]
["I106",{"$f":"title449","v":"Electricity Available for Selling (kWh/year)"},null,{"$f":"IF(INDIRECT(\"COST_PS2!\"&$A$10)<0,0,INDIRECT(\"COST_PS2!\"&$A$10))","v":{"$error":"#DIV/0!"}},{"$f":"D10","v":{"$error":"#DIV/0!"}},{"$error":"#DIV/0!"},{"$error":"#DIV/0!"},{"$error":"#DIV/0!"},{"$error":"#DIV/0!"},{"$error":"#DIV/0!"},{"$error":"#DIV/0!"},{"$error":"#DIV/0!"},{"$error":"#DIV/0!"},{"$error":"#DIV/0!"},{"$error":"#DIV/0!"},{"$error":"#DIV/0!"},{"$error":"#DIV/0!"},{"$error":"#DIV/0!"},{"$error":"#DIV/0!"},{"$error":"#DIV/0!"},{"$error":"#DIV/0!"},{"$error":"#DIV/0!"},{"$error":"#DIV/0!"},{"$error":"#DIV/0!"},1]
["AC166",{"$f":"title450","v":"Biomethane Production (m3 Methane/year)"},null,{"$f":"IF(OR('Biogas Use Selection'!$P$67=4,'Biogas Use Selection'!$P$67=5),INDIRECT(\"Planner_PS2!$\"&$A$11),0)","v":0},{"$f":"D11","v":0},0,0,0,0,0,0,0,0,0,0,0,0,0,0,0,0,0,0,0,1]
[null,{"$f":"title451","v":"Biogas Available for Selling (m3/year)"},null,{"$f":"IF('Biogas Use Selection'!$P$67=2,$D$7,0)","v":0},{"$f":"D12","v":0},0,0,0,0,0,0,0,0,0,0,0,0,0,0,0,0,0,0,0]
["AC178",{"$f":"title452","v":"Digestate Production (t/year)"},null,{"$f":"INDIRECT(\"Planner_PS2!$\"&$A$13)","v":{"$error":"#DIV/0!"}},{"$f":"D13","v":{"$error":"#DIV/0!"}},{"$error":"#DIV/0!"},{"$error":"#DIV/0!"},{"$error":"#DIV/0!"},{"$error":"#DIV/0!"},{"$error":"#DIV/0!"},{"$error":"#DIV/0!"},{"$error":"#DIV/0!"},{"$error":"#DIV/0!"},{"$error":"#DIV/0!"},{"$error":"#DIV/0!"},{"$error":"#DIV/0!"},{"$error":"#DIV/0!"},{"$error":"#DIV/0!"},{"$error":"#DIV/0!"},{"$error":"#DIV/0!"},{"$error":"#DIV/0!"},{"$error":"#DIV/0!"},{"$error":"#DIV/0!"},{"$error":"#DIV/0!"}]
[]
[null,{"$f":"title265","v":"Operating hours per year"},null,{"$f":"COST_PS2!$G$35","v":0},{"$f":"D15","v":0},{"$f":"E15","v":0},0,0,0,0,0,0,0,0,0,0,0,0,0,0,0,0,0,0,1]
[null,null,null,null,null,null,null,null,null,null,null,null,null,null,null,null,null,null,null,null,null,null,null,null,1]
[1,{"$f":"title137&\" (USD/kWh)\"","v":"Electricity Selling Price (USD/kWh)"},null,{"$f":"IF($A17=1,'Data entry needs'!$F$103,0)","v":0},null,null,null,null,null,null,null,null,null,null,null,null,null,null,null,null,null,null,null,null,1]
[1,{"$f":"title138&\" (USD/GJ)\"","v":"Heat Selling Price (USD/GJ)"},null,{"$f":"IF($A18=1,'Data entry needs'!$F$104,0)","v":0}]
[1,{"$f":"title453","v":"Biogas Selling Price (USD/m3)"},null,{"$f":"IF($A19=1,'Data entry needs'!$F$105,0)","v":0}]
[1,{"$f":"title454","v":"Biomethane Selling Price (USD/m3)"},null,{"$f":"IF($A20=1,'Data entry needs'!$L$103,0)","v":0}]
[1,{"$f":"title455","v":"Digestate Sellig Price (USD/t)"},null,{"$f":"'Data entry needs'!$L$104","v":0}]
[]
[null,null,null,null,null,null,null,null,null,null,null,null,null,null,null,null,null,null,null,null,null,null,null,null,1]
[null,{"$f":"title456","v":"Annual Income (USD per year)"},null,{"$f":"$D$18*D9+D10*$D$17+D12*$D$19+D11*$D$20+$D$21*D13","v":{"$error":"#DIV/0!"}},{"$f":"$D$18*E9+E10*$D$17+E12*$D$19+E11*$D$20+$D$21*E13","v":{"$error":"#DIV/0!"}},{"$f":"$D$18*F9+F10*$D$17+F12*$D$19+F11*$D$20+$D$21*F13","v":{"$error":"#DIV/0!"}},{"$error":"#DIV/0!"},{"$error":"#DIV/0!"},{"$error":"#DIV/0!"},{"$error":"#DIV/0!"},{"$error":"#DIV/0!"},{"$error":"#DIV/0!"},{"$error":"#DIV/0!"},{"$error":"#DIV/0!"},{"$error":"#DIV/0!"},{"$error":"#DIV/0!"},{"$error":"#DIV/0!"},{"$error":"#DIV/0!"},{"$error":"#DIV/0!"},{"$error":"#DIV/0!"},{"$error":"#DIV/0!"},{"$error":"#DIV/0!"},{"$error":"#DIV/0!"},{"$error":"#DIV/0!"},1]
[null,null,null,null,null,null,null,null,null,null,null,null,null,null,null,null,null,null,null,null,null,null,null,null,1]
[null,{"$f":"title457","v":"Lifespan of civil work (years)"},null,{"$f":"'Data entry needs'!$L$120","v":0},null,null,null,null,null,null,null,null,null,null,null,null,null,null,null,null,null,null,null,null,1]
[null,{"$f":"title458","v":"Lifespan of charcoal system (years)"},null,{"$f":"'Data entry needs'!$L$120","v":0},null,null,null,null,null,null,null,null,null,null,null,null,null,null,null,null,null,null,null,null,1]
[null,{"$f":"title459","v":"Project lifetime (years)"},null,{"$f":"'Data entry needs'!$L$120","v":0},null,null,null,null,null,null,null,null,null,null,null,null,null,null,null,null,null,null,null,null,1]
[null,null,null,null,null,null,null,null,null,null,null,null,null,null,null,null,null,null,null,null,null,null,null,null,1]
[null,null,null,null,null,null,null,null,null,null,null,null,null,null,null,null,null,null,null,null,null,null,null,null,1]
[null,{"$f":"title460","v":"Capital and operating cost of biogas system "},null,null,null,null,null,null,null,null,null,null,null,null,null,null,null,null,null,null,null,null,null,null,1]
[null,null,null,null,null,null,null,null,null,null,null,null,null,null,null,null,null,null,null,null,null,null,null,null,1]
[null,{"$f":"title446","v":"Operating Year"},null,{"$f":"title464","v":"Appraisal"},{"$f":"title465","v":"Project period (years)"},{"$f":"title466","v":"per year"},null,null,null,null,null,null,null,null,null,null,null,null,null,null,null,null,null,null,1]
[null,{"$f":"title461","v":"Capital cost (USD)"},null,"Total",null,null,null,null,null,null,null,null,null,null,null,null,null,null,null,null,null,null,null,null,1]
["h77",{"$f":"title280","v":"Equipments"},null,{"$f":"INDIRECT(\"COST_PS2!\"&$A35)","v":{"$error":"#DIV/0!"}},{"$f":"+D26","v":0},{"$f":"D35/E35","v":{"$error":"#DIV/0!"}},null,null,null,null,null,null,null,null,null,null,null,null,null,null,null,null,null,null,1]
["h78",{"$f":"title281","v":"Building"},null,{"$f":"INDIRECT(\"COST_PS2!\"&$A36)","v":{"$error":"#DIV/0!"}},{"$f":"+D27","v":0},{"$f":"D36/E36","v":{"$error":"#DIV/0!"}},null,null,null,null,null,null,null,null,null,null,null,null,null,null,null,null,null,null,1]
["h79",{"$f":"title462","v":"Installation"},null,{"$f":"INDIRECT(\"COST_PS2!\"&$A37)","v":{"$error":"#DIV/0!"}},{"$f":"+D28","v":0},{"$f":"D37/E37","v":{"$error":"#DIV/0!"}},null,null,null,null,null,null,null,null,null,null,null,null,null,null,null,null,null,null,1]
[null,{"$f":"title463","v":"Total capital cost (USD)"},null,{"$f":"SUM(D35:D37)","v":{"$error":"#DIV/0!"}},null,{"$f":"SUM(F35:F37)","v":{"$error":"#DIV/0!"}},null,null,null,null,null,null,null,null,null,null,null,null,null,null,null,null,null,null,1]
[null,null,null,null,null,null,null,null,null,null,null,null,null,null,null,null,null,null,null,null,null,null,null,null,1]
[null,null,null,null,null,null,null,null,null,null,null,null,null,null,null,null,null,null,null,null,null,null,null,null,1]
[null,{"$f":"title446","v":"Operating Year"},null,{"$f":"title464","v":"Appraisal"},1,2,3,4,5,6,7,8,9,10,11,12,13,14,15,16,17,18,19,20,1]
[null,{"$f":"title467","v":"Annual operating and maintenance cost "},null,null,null,null,null,null,null,null,null,null,null,null,null,null,null,null,null,null,null,null,null,null,1]
["h44",{"$f":"title468","v":"Sub-total inputs cost (USD)"},null,{"$f":"INDIRECT(\"COST_PS2!\"&$A$43)","v":{"$error":"#DIV/0!"}},{"$error":"#DIV/0!"},{"$error":"#DIV/0!"},{"$error":"#DIV/0!"},{"$error":"#DIV/0!"},{"$error":"#DIV/0!"},{"$error":"#DIV/0!"},{"$error":"#DIV/0!"},{"$error":"#DIV/0!"},{"$error":"#DIV/0!"},{"$error":"#DIV/0!"},{"$error":"#DIV/0!"},{"$error":"#DIV/0!"},{"$error":"#DIV/0!"},{"$error":"#DIV/0!"},{"$error":"#DIV/0!"},{"$error":"#DIV/0!"},{"$error":"#DIV/0!"},{"$error":"#DIV/0!"},{"$error":"#DIV/0!"},{"$error":"#DIV/0!"},1]
[]
[null,{"$f":"title469","v":"Sub-total operating cost (USD)"},null,{"$f":"D46+D47+D48","v":{"$error":"#DIV/0!"}},{"$f":"E46+E47+E48","v":{"$error":"#DIV/0!"}},{"$f":"F46+F47+F48","v":{"$error":"#DIV/0!"}},{"$error":"#DIV/0!"},{"$error":"#DIV/0!"},{"$error":"#DIV/0!"},{"$error":"#DIV/0!"},{"$error":"#DIV/0!"},{"$error":"#DIV/0!"},{"$error":"#DIV/0!"},{"$error":"#DIV/0!"},{"$error":"#DIV/0!"},{"$error":"#DIV/0!"},{"$error":"#DIV/0!"},{"$error":"#DIV/0!"},{"$error":"#DIV/0!"},{"$error":"#DIV/0!"},{"$error":"#DIV/0!"},{"$error":"#DIV/0!"},{"$error":"#DIV/0!"},{"$error":"#DIV/0!"},1]
["i51",{"$f":"title470","v":"Labour cost & Misc. (USD)"},null,{"$f":"INDIRECT(\"COST_PS2!\"&$A46)","v":0},{"$f":"+D46","v":0},{"$f":"+E46","v":0},0,0,0,0,0,0,0,0,0,0,0,0,0,0,0,0,0,0,1]
["i87",{"$f":"title151","v":"Plant overhead"},null,{"$f":"INDIRECT(\"COST_PS2!\"&$A47)","v":{"$error":"#DIV/0!"}},{"$f":"D47","v":{"$error":"#DIV/0!"}},{"$error":"#DIV/0!"},{"$error":"#DIV/0!"},{"$error":"#DIV/0!"},{"$error":"#DIV/0!"},{"$error":"#DIV/0!"},{"$error":"#DIV/0!"},{"$error":"#DIV/0!"},{"$error":"#DIV/0!"},{"$error":"#DIV/0!"},{"$error":"#DIV/0!"},{"$error":"#DIV/0!"},{"$error":"#DIV/0!"},{"$error":"#DIV/0!"},{"$error":"#DIV/0!"},{"$error":"#DIV/0!"},{"$f":"T47","v":{"$error":"#DIV/0!"}},{"$error":"#DIV/0!"},{"$error":"#DIV/0!"},{"$error":"#DIV/0!"},1]
["i88",{"$f":"title288","v":"General and administrative cost"},null,{"$f":"INDIRECT(\"COST_PS2!\"&$A48)","v":{"$error":"#DIV/0!"}},{"$error":"#DIV/0!"},{"$error":"#DIV/0!"},{"$error":"#DIV/0!"},{"$error":"#DIV/0!"},{"$error":"#DIV/0!"},{"$error":"#DIV/0!"},{"$error":"#DIV/0!"},{"$error":"#DIV/0!"},{"$error":"#DIV/0!"},{"$error":"#DIV/0!"},{"$error":"#DIV/0!"},{"$error":"#DIV/0!"},{"$error":"#DIV/0!"},{"$error":"#DIV/0!"},{"$error":"#DIV/0!"},{"$error":"#DIV/0!"},{"$error":"#DIV/0!"},{"$error":"#DIV/0!"},{"$error":"#DIV/0!"},{"$error":"#DIV/0!"},1]
["i82",{"$f":"title471","v":"Sub-total maintenance cost (USD)"},null,{"$f":"INDIRECT(\"COST_PS2!\"&$A49)","v":{"$error":"#DIV/0!"}},{"$error":"#DIV/0!"},{"$error":"#DIV/0!"},{"$error":"#DIV/0!"},{"$error":"#DIV/0!"},{"$error":"#DIV/0!"},{"$error":"#DIV/0!"},{"$error":"#DIV/0!"},{"$error":"#DIV/0!"},{"$error":"#DIV/0!"},{"$error":"#DIV/0!"},{"$error":"#DIV/0!"},{"$error":"#DIV/0!"},{"$error":"#DIV/0!"},{"$error":"#DIV/0!"},{"$error":"#DIV/0!"},{"$error":"#DIV/0!"},{"$error":"#DIV/0!"},{"$error":"#DIV/0!"},{"$error":"#DIV/0!"},{"$error":"#DIV/0!"},1]
[null,null,null,null,null,null,null,null,null,null,null,null,null,null,null,null,null,null,null,null,null,null,null,null,1]
["i82",{"$f":"title472","v":"Sub-total of annual fixed cost (USD)"},null,{"$f":"F38","v":{"$error":"#DIV/0!"}},{"$f":"D51","v":{"$error":"#DIV/0!"}},{"$f":"E51","v":{"$error":"#DIV/0!"}},{"$error":"#DIV/0!"},{"$error":"#DIV/0!"},{"$error":"#DIV/0!"},{"$error":"#DIV/0!"},{"$error":"#DIV/0!"},{"$error":"#DIV/0!"},{"$error":"#DIV/0!"},{"$error":"#DIV/0!"},{"$error":"#DIV/0!"},{"$error":"#DIV/0!"},{"$error":"#DIV/0!"},{"$error":"#DIV/0!"},{"$error":"#DIV/0!"},{"$error":"#DIV/0!"},{"$error":"#DIV/0!"},{"$error":"#DIV/0!"},{"$error":"#DIV/0!"},{"$error":"#DIV/0!"},1]
[null,null,null,null,null,null,null,null,null,null,null,null,null,null,null,null,null,null,null,null,null,null,null,null,1]
["H73",{"$f":"title473","v":"Sub-total of storage cost (USD)"},null,{"$f":"INDIRECT(\"COST_PS2!\"&$A53)","v":0},0,0,0,0,0,0,0,0,0,0,0,0,0,0,0,0,0,0,0,0,1]
[null,null,null,null,null,null,null,null,null,null,null,null,null,null,null,null,null,null,null,null,null,null,null,null,1]
[null,{"$f":"title474","v":"Total operation and maintenance cost (USD)"},null,{"$f":"D43+D45+D49+D51+D53","v":{"$error":"#DIV/0!"}},{"$f":"E43+E45+E49+E51+E53","v":{"$error":"#DIV/0!"}},{"$error":"#DIV/0!"},{"$error":"#DIV/0!"},{"$error":"#DIV/0!"},{"$error":"#DIV/0!"},{"$error":"#DIV/0!"},{"$error":"#DIV/0!"},{"$error":"#DIV/0!"},{"$error":"#DIV/0!"},{"$error":"#DIV/0!"},{"$error":"#DIV/0!"},{"$error":"#DIV/0!"},{"$error":"#DIV/0!"},{"$error":"#DIV/0!"},{"$error":"#DIV/0!"},{"$error":"#DIV/0!"},{"$error":"#DIV/0!"},{"$error":"#DIV/0!"},{"$error":"#DIV/0!"},{"$error":"#DIV/0!"},1]
[null,null,null,null,null,null,null,null,null,null,null,null,null,null,null,null,null,null,null,null,null,null,null,null,1]
[null,null,null,null,null,null,null,null,null,null,null,null,null,null,null,null,null,null,null,null,null,null,null,null,1]
[null,{"$f":"title155","v":"Financial parameters"},null,null,null,null,null,null,null,null,null,null,null,null,null,null,null,null,null,null,null,null,null,null,1]
[null,{"$f":"title446","v":"Operating Year"},null,{"$f":"title464","v":"Appraisal"},1,2,3,4,5,6,7,8,9,10,11,12,13,14,15,16,17,18,19,20,1]
[null,{"$f":"title161&\"(%)\"","v":"Discount rate(%)"},null,{"$f":"'Data entry needs'!$L$118","v":0},null,null,null,null,null,null,null,null,null,null,null,null,null,null,null,null,null,null,null,null,1]
[null,{"$f":"title475","v":"Loan ratio (%)"},null,{"$f":"'Data entry needs'!$F$118","v":0},null,null,null,null,null,null,null,null,null,null,null,null,null,null,null,null,null,null,null,null,1]
[null,null,null,null,null,null,null,null,null,null,null,null,null,null,null,null,null,null,null,null,null,null,null,null,1]
[null,null,null,null,null,null,null,null,null,null,null,null,null,null,null,null,null,null,null,null,null,null,null,null,1]
[null,{"$f":"title446","v":"Operating Year"},null,{"$f":"title464","v":"Appraisal"},1,2,3,4,5,6,7,8,9,10,11,12,13,14,15,16,17,18,19,20,1]
[null,{"$f":"title476","v":"Loan amount (USD)"},null,{"$f":"D61*(D38)","v":{"$error":"#DIV/0!"}},null,null,null,null,null,null,null,null,null,null,null,null,null,null,null,null,null,null,null,null,1]
[null,{"$f":"title162&\"(%)\"","v":"Loan interest rate(%)"},null,{"$f":"'Data entry needs'!$L$119","v":0},null,null,null,null,null,null,null,null,null,null,null,null,null,null,null,null,null,null,null,null,1]
[null,{"$f":"title165","v":"Loan term (years)"},null,{"$f":"D26","v":0},null,null,null,null,null,null,null,null,null,null,null,null,null,null,null,null,null,null,null,null,1]
[null,{"$f":"title315&\" (\"&title318&\")\"","v":"Loan payment (USD/month)"},null,{"$f":"(PMT($D$66/12,($D$67*12),$D$65))","v":{"$error":"#DIV/0!"}}]
[null,{"$f":"title315&\" (\"&title319&\")\"","v":"Loan payment (USD/year)"},null,{"$f":"D68*12","v":{"$error":"#DIV/0!"}},null,null,null,null,null,null,null,null,null,null,null,null,null,null,null,null,null,null,null,null,1]
[null,{"$f":"title315&\" (\"&title319&\")\"","v":"Loan payment (USD/year)"},null,null,{"$f":"IF(E64<=$D$67,$D$68*12,0)","v":0},{"$f":"IF(F64<=$D$67,$D$68*12,0)","v":0},0,0,0,0,0,0,0,0,0,0,0,0,0,0,0,0,0,0,1]
[null,{"$f":"title477","v":"Total loan payment (USD)"},null,{"$f":"SUM(E70:X70)","v":0},null,null,null,null,null,null,null,null,null,null,null,null,null,null,null,null,null,null,null,null,1]
[null,{"$f":"title478","v":"Loan interest payment (USD)"},null,{"$f":"D71+D65","v":{"$error":"#DIV/0!"}},{"$f":"title479","v":"loan interest payment for project lifetime"},null,null,null,null,null,null,null,null,null,null,null,null,null,null,null,null,null,null,null,1]
[null,null,null,null,null,null,null,null,null,null,null,null,null,null,null,null,null,null,null,null,null,null,null,null,1]
[null,{"$f":"title285","v":"Depreciation"},null,null,null,null,null,null,null,null,null,null,null,null,null,null,null,null,null,null,null,null,null,null,1]
[null,{"$f":"title446","v":"Operating Year"},null,{"$f":"title464","v":"Appraisal"},1,2,3,4,5,6,7,8,9,10,11,12,13,14,15,16,17,18,19,20,1]
[null,{"$f":"title480","v":"Depreciation method"},null,{"$f":"title482","v":"Straight-line"},null,null,null,null,null,null,null,null,null,null,null,null,null,null,null,null,null,null,null,null,1]
[null,{"$f":"title481","v":"Total depreciation (USD)"},null,null,{"$f":"$F$38","v":{"$error":"#DIV/0!"}},{"$f":"$F$38","v":{"$error":"#DIV/0!"}},{"$error":"#DIV/0!"},{"$error":"#DIV/0!"},{"$error":"#DIV/0!"},{"$error":"#DIV/0!"},{"$error":"#DIV/0!"},{"$error":"#DIV/0!"},{"$error":"#DIV/0!"},{"$error":"#DIV/0!"},{"$error":"#DIV/0!"},{"$error":"#DIV/0!"},{"$error":"#DIV/0!"},{"$error":"#DIV/0!"},{"$error":"#DIV/0!"},{"$error":"#DIV/0!"},{"$error":"#DIV/0!"},{"$error":"#DIV/0!"},{"$error":"#DIV/0!"},{"$error":"#DIV/0!"},1]
[null,null,null,null,null,null,null,null,null,null,null,null,null,null,null,null,null,null,null,null,null,null,null,null,1]
[null,{"$f":"title483","v":"Base case Project Summary"},null,null,null,null,null,null,null,null,null,null,null,null,null,null,null,null,null,null,null,null,null,null,1]
[null,{"$f":"title484","v":"Summary of this project"},null,null,null,null,null,null,null,null,null,null,null,null,null,null,null,null,null,null,null,null,null,null,1]
[null,{"$f":"title446","v":"Operating Year"},null,{"$f":"title464","v":"Appraisal"},1,2,3,4,5,6,7,8,9,10,11,12,13,14,15,16,17,18,19,20,1]
[null,{"$f":"title485","v":"Total revenue (USD)"},null,null,{"$f":"E24","v":{"$error":"#DIV/0!"}},{"$f":"F24","v":{"$error":"#DIV/0!"}},{"$error":"#DIV/0!"},{"$error":"#DIV/0!"},{"$error":"#DIV/0!"},{"$error":"#DIV/0!"},{"$error":"#DIV/0!"},{"$error":"#DIV/0!"},{"$error":"#DIV/0!"},{"$error":"#DIV/0!"},{"$error":"#DIV/0!"},{"$error":"#DIV/0!"},{"$error":"#DIV/0!"},{"$error":"#DIV/0!"},{"$error":"#DIV/0!"},{"$error":"#DIV/0!"},{"$error":"#DIV/0!"},{"$error":"#DIV/0!"},{"$error":"#DIV/0!"},{"$error":"#DIV/0!"},1]
[null,{"$f":"title463","v":"Total capital cost (USD)"},null,{"$f":"-D38*(1-$D$61)","v":{"$error":"#DIV/0!"}},null,null,null,null,null,null,null,null,null,null,null,null,null,null,null,null,null,null,null,null,1]
[null,{"$f":"title486","v":"Total operating and maintenance cost (USD)"},null,null,{"$f":"-E55+E51","v":{"$error":"#DIV/0!"}},{"$f":"-F55+F51","v":{"$error":"#DIV/0!"}},{"$f":"-G55+G51","v":{"$error":"#DIV/0!"}},{"$error":"#DIV/0!"},{"$error":"#DIV/0!"},{"$error":"#DIV/0!"},{"$error":"#DIV/0!"},{"$error":"#DIV/0!"},{"$error":"#DIV/0!"},{"$error":"#DIV/0!"},{"$error":"#DIV/0!"},{"$error":"#DIV/0!"},{"$error":"#DIV/0!"},{"$error":"#DIV/0!"},{"$error":"#DIV/0!"},{"$error":"#DIV/0!"},{"$error":"#DIV/0!"},{"$error":"#DIV/0!"},{"$error":"#DIV/0!"},{"$error":"#DIV/0!"},1]
[null,{"$f":"title487","v":"Loan payment (USD)"},null,null,{"$f":"+E70","v":0},{"$f":"+F70","v":0},{"$f":"+G70","v":0},0,0,0,0,0,0,0,0,0,0,0,0,0,0,0,0,0,1]
[null,{"$f":"title488","v":"Cash flow with loan (USD)"},null,{"$f":"SUM(D82:D85)","v":{"$error":"#DIV/0!"}},{"$f":"SUM(E82:E85)","v":{"$error":"#DIV/0!"}},{"$f":"SUM(F82:F85)","v":{"$error":"#DIV/0!"}},{"$f":"SUM(G82:G85)","v":{"$error":"#DIV/0!"}},{"$error":"#DIV/0!"},{"$error":"#DIV/0!"},{"$error":"#DIV/0!"},{"$error":"#DIV/0!"},{"$error":"#DIV/0!"},{"$error":"#DIV/0!"},{"$error":"#DIV/0!"},{"$error":"#DIV/0!"},{"$error":"#DIV/0!"},{"$error":"#DIV/0!"},{"$error":"#DIV/0!"},{"$error":"#DIV/0!"},{"$error":"#DIV/0!"},{"$error":"#DIV/0!"},{"$error":"#DIV/0!"},{"$error":"#DIV/0!"},{"$error":"#DIV/0!"},1]
[null,{"$f":"title489","v":"Cash flow without loan (USD)"},null,{"$f":"-D38","v":{"$error":"#DIV/0!"}},{"$f":"+E82+E84","v":{"$error":"#DIV/0!"}},{"$f":"+F82+F84","v":{"$error":"#DIV/0!"}},{"$f":"+G82+G84","v":{"$error":"#DIV/0!"}},{"$error":"#DIV/0!"},{"$error":"#DIV/0!"},{"$error":"#DIV/0!"},{"$error":"#DIV/0!"},{"$error":"#DIV/0!"},{"$error":"#DIV/0!"},{"$error":"#DIV/0!"},{"$error":"#DIV/0!"},{"$error":"#DIV/0!"},{"$error":"#DIV/0!"},{"$error":"#DIV/0!"},{"$error":"#DIV/0!"},{"$error":"#DIV/0!"},{"$error":"#DIV/0!"},{"$error":"#DIV/0!"},{"$error":"#DIV/0!"},{"$error":"#DIV/0!"},1]
[null,{"$f":"title446","v":"Operating Year"},null,{"$f":"title464","v":"Appraisal"},1,2,3,4,5,6,7,8,9,10,11,12,13,14,15,16,17,18,19,20,1]
[null,{"$f":"title490","v":"Cumulative value of Net Profit"},null,{"$f":"D86","v":{"$error":"#DIV/0!"}},{"$f":"D89+(E86)","v":{"$error":"#DIV/0!"}},{"$f":"E89+(F86)","v":{"$error":"#DIV/0!"}},{"$error":"#DIV/0!"},{"$error":"#DIV/0!"},{"$error":"#DIV/0!"},{"$error":"#DIV/0!"},{"$error":"#DIV/0!"},{"$error":"#DIV/0!"},{"$error":"#DIV/0!"},{"$error":"#DIV/0!"},{"$error":"#DIV/0!"},{"$error":"#DIV/0!"},{"$error":"#DIV/0!"},{"$error":"#DIV/0!"},{"$error":"#DIV/0!"},{"$error":"#DIV/0!"},{"$error":"#DIV/0!"},{"$error":"#DIV/0!"},{"$error":"#DIV/0!"},{"$error":"#DIV/0!"},1]
[null,null,null,null,null,null,null,null,null,null,null,null,null,null,null,null,null,null,null,null,null,null,null,null,1]
[null,{"$f":"title491","v":"Financial Analysis Result"},null,null,null,null,null,null,null,null,null,null,null,null,null,null,null,null,null,null,null,null,null,null,1]
[null,null,null,null,null,null,null,null,null,null,null,null,null,null,null,null,null,null,null,null,null,null,null,null,1]
[null,{"$f":"title493","v":"Net Present Value (NPV) (USD)"},null,{"$f":"NPV(D60,E86:AA86)+D86","v":{"$error":"#DIV/0!"}},null,null,null,null,null,null,null,null,null,null,null,null,null,null,null,null,null,null,null,null,1]
[null,{"$f":"title494","v":"Internal Rate of Return (IRR) (%) - without loan"},null,{"$f":"IF(D93<0,title492,IRR(D87:AA87,0.001))","v":{"$error":"#DIV/0!"}},null,null,null,null,null,null,null,null,null,null,null,null,null,null,null,null,null,null,null,null,1]
[null,{"$f":"title495","v":"Internal Rate of Return (IRR) (%) - with loan"},null,{"$f":"IF(D94<0,title492,IRR(D86:AA86,0.001))","v":{"$error":"#DIV/0!"}},null,null,null,null,null,null,null,null,null,null,null,null,null,null,null,null,null,null,null,null,1]
[null,null,null,null,null,null,null,null,null,null,null,null,null,null,null,null,null,null,null,null,null,null,null,null,1]
[null,null,null,null,null,null,null,null,null,null,null,null,null,null,null,null,null,null,null,null,null,null,null,null,1]

{"sheet":"FA_SIZE3_PS2","index":29,"n_rows":97,"n_cols":25,"rows_kept":97,"cut":false,"hidden":true,"merged":[[1,1,1,23]]}
[]
[null,{"$f":"title496&\" 3\"","v":"FINANCIAL EVALUATION OF BIOGAS PRODUCTION SIZE 3"}]
[]
[null,{"$f":"title445","v":"Revenues of biomass production and use system"}]
[null,{"$f":"title446","v":"Operating Year"},null,0,1,2,3,4,5,6,7,8,9,10,11,12,13,14,15,16,17,18,19,20,1]
[null,null,null,null,null,null,null,null,null,null,null,null,null,null,null,null,null,null,null,null,null,null,null,null,1]
["AF130",{"$f":"title447","v":"Biogas production capacity (m3 Biogas per year)"},null,{"$f":"INDIRECT(\"Planner_PS2!$\"&$A$7)*'Data entry needs'!$L$100","v":{"$error":"#DIV/0!"}},{"$f":"D7","v":{"$error":"#DIV/0!"}},{"$f":"E7","v":{"$error":"#DIV/0!"}},{"$f":"F7","v":{"$error":"#DIV/0!"}},{"$error":"#DIV/0!"},{"$error":"#DIV/0!"},{"$error":"#DIV/0!"},{"$error":"#DIV/0!"},{"$error":"#DIV/0!"},{"$error":"#DIV/0!"},{"$error":"#DIV/0!"},{"$error":"#DIV/0!"},{"$error":"#DIV/0!"},{"$error":"#DIV/0!"},{"$error":"#DIV/0!"},{"$error":"#DIV/0!"},{"$error":"#DIV/0!"},{"$error":"#DIV/0!"},{"$error":"#DIV/0!"},{"$error":"#DIV/0!"},{"$error":"#DIV/0!"},1]
[]
["K107",{"$f":"title448","v":"Heat Available for Selling (MJ/year)"},null,{"$f":"IF(INDIRECT(\"COST_PS2!\"&$A$9)<0,0,INDIRECT(\"COST_PS2!\"&$A$9))","v":{"$error":"#DIV/0!"}},{"$f":"D9","v":{"$error":"#DIV/0!"}},{"$f":"E9","v":{"$error":"#DIV/0!"}},{"$error":"#DIV/0!"},{"$error":"#DIV/0!"},{"$error":"#DIV/0!"},{"$error":"#DIV/0!"},{"$error":"#DIV/0!"},{"$error":"#DIV/0!"},{"$error":"#DIV/0!"},{"$error":"#DIV/0!"},{"$error":"#DIV/0!"},{"$error":"#DIV/0!"},{"$error":"#DIV/0!"},{"$error":"#DIV/0!"},{"$error":"#DIV/0!"},{"$error":"#DIV/0!"},{"$error":"#DIV/0!"},{"$f":"U9","v":{"$error":"#DIV/0!"}},{"$error":"#DIV/0!"},{"$error":"#DIV/0!"},1]
["K106",{"$f":"title449","v":"Electricity Available for Selling (kWh/year)"},null,{"$f":"IF(INDIRECT(\"COST_PS2!\"&$A$10)<0,0,INDIRECT(\"COST_PS2!\"&$A$10))","v":{"$error":"#DIV/0!"}},{"$f":"D10","v":{"$error":"#DIV/0!"}},{"$error":"#DIV/0!"},{"$error":"#DIV/0!"},{"$error":"#DIV/0!"},{"$error":"#DIV/0!"},{"$error":"#DIV/0!"},{"$error":"#DIV/0!"},{"$error":"#DIV/0!"},{"$error":"#DIV/0!"},{"$error":"#DIV/0!"},{"$error":"#DIV/0!"},{"$error":"#DIV/0!"},{"$error":"#DIV/0!"},{"$error":"#DIV/0!"},{"$error":"#DIV/0!"},{"$error":"#DIV/0!"},{"$error":"#DIV/0!"},{"$error":"#DIV/0!"},{"$error":"#DIV/0!"},{"$error":"#DIV/0!"},1]
["AD166",{"$f":"title450","v":"Biomethane Production (m3 Methane/year)"},null,{"$f":"IF(OR('Biogas Use Selection'!$P$67=4,'Biogas Use Selection'!$P$67=5),INDIRECT(\"Planner_PS2!$\"&$A$11),0)","v":0},{"$f":"D11","v":0},0,0,0,0,0,0,0,0,0,0,0,0,0,0,0,0,0,0,0,1]
[null,{"$f":"title451","v":"Biogas Available for Selling (m3/year)"},null,{"$f":"IF('Biogas Use Selection'!$P$67=2,$D$7,0)","v":0},{"$f":"D12","v":0},0,0,0,0,0,0,0,0,0,0,0,0,0,0,0,0,0,0,0]
["AD178",{"$f":"title452","v":"Digestate Production (t/year)"},null,{"$f":"INDIRECT(\"Planner_PS2!$\"&$A$13)","v":{"$error":"#DIV/0!"}},{"$f":"D13","v":{"$error":"#DIV/0!"}},{"$error":"#DIV/0!"},{"$error":"#DIV/0!"},{"$error":"#DIV/0!"},{"$error":"#DIV/0!"},{"$error":"#DIV/0!"},{"$error":"#DIV/0!"},{"$error":"#DIV/0!"},{"$error":"#DIV/0!"},{"$error":"#DIV/0!"},{"$error":"#DIV/0!"},{"$error":"#DIV/0!"},{"$error":"#DIV/0!"},{"$error":"#DIV/0!"},{"$error":"#DIV/0!"},{"$error":"#DIV/0!"},{"$error":"#DIV/0!"},{"$error":"#DIV/0!"},{"$error":"#DIV/0!"},{"$error":"#DIV/0!"}]
[]
[null,{"$f":"title265","v":"Operating hours per year"},null,{"$f":"COST_PS2!$G$35","v":0},{"$f":"D15","v":0},{"$f":"E15","v":0},0,0,0,0,0,0,0,0,0,0,0,0,0,0,0,0,0,0,1]
[null,null,null,null,null,null,null,null,null,null,null,null,null,null,null,null,null,null,null,null,null,null,null,null,1]
[1,{"$f":"title137&\" (USD/kWh)\"","v":"Electricity Selling Price (USD/kWh)"},null,{"$f":"IF($A17=1,'Data entry needs'!$F$103,0)","v":0},null,null,null,null,null,null,null,null,null,null,null,null,null,null,null,null,null,null,null,null,1]
[1,{"$f":"title138&\" (USD/GJ)\"","v":"Heat Selling Price (USD/GJ)"},null,{"$f":"IF($A18=1,'Data entry needs'!$F$104,0)","v":0}]
[1,{"$f":"title453","v":"Biogas Selling Price (USD/m3)"},null,{"$f":"IF($A19=1,'Data entry needs'!$F$105,0)","v":0}]
[1,{"$f":"title454","v":"Biomethane Selling Price (USD/m3)"},null,{"$f":"IF($A20=1,'Data entry needs'!$L$103,0)","v":0}]
[1,{"$f":"title455","v":"Digestate Sellig Price (USD/t)"},null,{"$f":"'Data entry needs'!$L$104","v":0}]
[]
[null,null,null,null,null,null,null,null,null,null,null,null,null,null,null,null,null,null,null,null,null,null,null,null,1]
[null,{"$f":"title456","v":"Annual Income (USD per year)"},null,{"$f":"$D$18*D9+D10*$D$17+D12*$D$19+D11*$D$20+$D$21*D13","v":{"$error":"#DIV/0!"}},{"$f":"$D$18*E9+E10*$D$17+E12*$D$19+E11*$D$20+$D$21*E13","v":{"$error":"#DIV/0!"}},{"$f":"$D$18*F9+F10*$D$17+F12*$D$19+F11*$D$20+$D$21*F13","v":{"$error":"#DIV/0!"}},{"$error":"#DIV/0!"},{"$error":"#DIV/0!"},{"$error":"#DIV/0!"},{"$error":"#DIV/0!"},{"$error":"#DIV/0!"},{"$error":"#DIV/0!"},{"$error":"#DIV/0!"},{"$error":"#DIV/0!"},{"$error":"#DIV/0!"},{"$error":"#DIV/0!"},{"$error":"#DIV/0!"},{"$error":"#DIV/0!"},{"$error":"#DIV/0!"},{"$error":"#DIV/0!"},{"$error":"#DIV/0!"},{"$error":"#DIV/0!"},{"$error":"#DIV/0!"},{"$error":"#DIV/0!"},1]
[null,null,null,null,null,null,null,null,null,null,null,null,null,null,null,null,null,null,null,null,null,null,null,null,1]
[null,{"$f":"title457","v":"Lifespan of civil work (years)"},null,{"$f":"'Data entry needs'!$L$120","v":0},null,null,null,null,null,null,null,null,null,null,null,null,null,null,null,null,null,null,null,null,1]
[null,{"$f":"title458","v":"Lifespan of charcoal system (years)"},null,{"$f":"'Data entry needs'!$L$120","v":0},null,null,null,null,null,null,null,null,null,null,null,null,null,null,null,null,null,null,null,null,1]
[null,{"$f":"title459","v":"Project lifetime (years)"},null,{"$f":"'Data entry needs'!$L$120","v":0},null,null,null,null,null,null,null,null,null,null,null,null,null,null,null,null,null,null,null,null,1]
[null,null,null,null,null,null,null,null,null,null,null,null,null,null,null,null,null,null,null,null,null,null,null,null,1]
[null,null,null,null,null,null,null,null,null,null,null,null,null,null,null,null,null,null,null,null,null,null,null,null,1]
[null,{"$f":"title460","v":"Capital and operating cost of biogas system "},null,null,null,null,null,null,null,null,null,null,null,null,null,null,null,null,null,null,null,null,null,null,1]
[null,null,null,null,null,null,null,null,null,null,null,null,null,null,null,null,null,null,null,null,null,null,null,null,1]
[null,{"$f":"title446","v":"Operating Year"},null,{"$f":"title464","v":"Appraisal"},{"$f":"title465","v":"Project period (years)"},{"$f":"title466","v":"per year"},null,null,null,null,null,null,null,null,null,null,null,null,null,null,null,null,null,null,1]
[null,{"$f":"title461","v":"Capital cost (USD)"},null,"Total",null,null,null,null,null,null,null,null,null,null,null,null,null,null,null,null,null,null,null,null,1]
["J77",{"$f":"title280","v":"Equipments"},null,{"$f":"INDIRECT(\"COST_PS2!\"&$A35)","v":{"$error":"#DIV/0!"}},{"$f":"+D26","v":0},{"$f":"D35/E35","v":{"$error":"#DIV/0!"}},null,null,null,null,null,null,null,null,null,null,null,null,null,null,null,null,null,null,1]
["J78",{"$f":"title281","v":"Building"},null,{"$f":"INDIRECT(\"COST_PS2!\"&$A36)","v":{"$error":"#DIV/0!"}},{"$f":"+D27","v":0},{"$f":"D36/E36","v":{"$error":"#DIV/0!"}},null,null,null,null,null,null,null,null,null,null,null,null,null,null,null,null,null,null,1]
["J79",{"$f":"title462","v":"Installation"},null,{"$f":"INDIRECT(\"COST_PS2!\"&$A37)","v":{"$error":"#DIV/0!"}},{"$f":"+D28","v":0},{"$f":"D37/E37","v":{"$error":"#DIV/0!"}},null,null,null,null,null,null,null,null,null,null,null,null,null,null,null,null,null,null,1]
[null,{"$f":"title463","v":"Total capital cost (USD)"},null,{"$f":"SUM(D35:D37)","v":{"$error":"#DIV/0!"}},null,{"$f":"SUM(F35:F37)","v":{"$error":"#DIV/0!"}},null,null,null,null,null,null,null,null,null,null,null,null,null,null,null,null,null,null,1]
[null,null,null,null,null,null,null,null,null,null,null,null,null,null,null,null,null,null,null,null,null,null,null,null,1]
[null,null,null,null,null,null,null,null,null,null,null,null,null,null,null,null,null,null,null,null,null,null,null,null,1]
[null,{"$f":"title446","v":"Operating Year"},null,{"$f":"title464","v":"Appraisal"},1,2,3,4,5,6,7,8,9,10,11,12,13,14,15,16,17,18,19,20,1]
[null,{"$f":"title467","v":"Annual operating and maintenance cost "},null,null,null,null,null,null,null,null,null,null,null,null,null,null,null,null,null,null,null,null,null,null,1]
["J44",{"$f":"title468","v":"Sub-total inputs cost (USD)"},null,{"$f":"INDIRECT(\"COST_PS2!\"&$A$43)","v":{"$error":"#DIV/0!"}},{"$error":"#DIV/0!"},{"$error":"#DIV/0!"},{"$error":"#DIV/0!"},{"$error":"#DIV/0!"},{"$error":"#DIV/0!"},{"$error":"#DIV/0!"},{"$error":"#DIV/0!"},{"$error":"#DIV/0!"},{"$error":"#DIV/0!"},{"$error":"#DIV/0!"},{"$error":"#DIV/0!"},{"$error":"#DIV/0!"},{"$error":"#DIV/0!"},{"$error":"#DIV/0!"},{"$error":"#DIV/0!"},{"$error":"#DIV/0!"},{"$error":"#DIV/0!"},{"$error":"#DIV/0!"},{"$error":"#DIV/0!"},{"$error":"#DIV/0!"},1]
[]
[null,{"$f":"title469","v":"Sub-total operating cost (USD)"},null,{"$f":"D46+D47+D48","v":{"$error":"#DIV/0!"}},{"$f":"E46+E47+E48","v":{"$error":"#DIV/0!"}},{"$f":"F46+F47+F48","v":{"$error":"#DIV/0!"}},{"$error":"#DIV/0!"},{"$error":"#DIV/0!"},{"$error":"#DIV/0!"},{"$error":"#DIV/0!"},{"$error":"#DIV/0!"},{"$error":"#DIV/0!"},{"$error":"#DIV/0!"},{"$error":"#DIV/0!"},{"$error":"#DIV/0!"},{"$error":"#DIV/0!"},{"$error":"#DIV/0!"},{"$error":"#DIV/0!"},{"$error":"#DIV/0!"},{"$error":"#DIV/0!"},{"$error":"#DIV/0!"},{"$error":"#DIV/0!"},{"$error":"#DIV/0!"},{"$error":"#DIV/0!"},1]
["k51",{"$f":"title470","v":"Labour cost & Misc. (USD)"},null,{"$f":"INDIRECT(\"COST_PS2!\"&$A46)","v":0},{"$f":"+D46","v":0},{"$f":"+E46","v":0},0,0,0,0,0,0,0,0,0,0,0,0,0,0,0,0,0,0,1]
["k87",{"$f":"title151","v":"Plant overhead"},null,{"$f":"INDIRECT(\"COST_PS2!\"&$A47)","v":{"$error":"#DIV/0!"}},{"$f":"D47","v":{"$error":"#DIV/0!"}},{"$error":"#DIV/0!"},{"$error":"#DIV/0!"},{"$error":"#DIV/0!"},{"$error":"#DIV/0!"},{"$error":"#DIV/0!"},{"$error":"#DIV/0!"},{"$error":"#DIV/0!"},{"$error":"#DIV/0!"},{"$error":"#DIV/0!"},{"$error":"#DIV/0!"},{"$error":"#DIV/0!"},{"$error":"#DIV/0!"},{"$error":"#DIV/0!"},{"$error":"#DIV/0!"},{"$error":"#DIV/0!"},{"$f":"T47","v":{"$error":"#DIV/0!"}},{"$error":"#DIV/0!"},{"$error":"#DIV/0!"},{"$error":"#DIV/0!"},1]
["k88",{"$f":"title288","v":"General and administrative cost"},null,{"$f":"INDIRECT(\"COST_PS2!\"&$A48)","v":{"$error":"#DIV/0!"}},{"$error":"#DIV/0!"},{"$error":"#DIV/0!"},{"$error":"#DIV/0!"},{"$error":"#DIV/0!"},{"$error":"#DIV/0!"},{"$error":"#DIV/0!"},{"$error":"#DIV/0!"},{"$error":"#DIV/0!"},{"$error":"#DIV/0!"},{"$error":"#DIV/0!"},{"$error":"#DIV/0!"},{"$error":"#DIV/0!"},{"$error":"#DIV/0!"},{"$error":"#DIV/0!"},{"$error":"#DIV/0!"},{"$error":"#DIV/0!"},{"$error":"#DIV/0!"},{"$error":"#DIV/0!"},{"$error":"#DIV/0!"},{"$error":"#DIV/0!"},1]
["k82",{"$f":"title471","v":"Sub-total maintenance cost (USD)"},null,{"$f":"INDIRECT(\"COST_PS2!\"&$A49)","v":{"$error":"#DIV/0!"}},{"$error":"#DIV/0!"},{"$error":"#DIV/0!"},{"$error":"#DIV/0!"},{"$error":"#DIV/0!"},{"$error":"#DIV/0!"},{"$error":"#DIV/0!"},{"$error":"#DIV/0!"},{"$error":"#DIV/0!"},{"$error":"#DIV/0!"},{"$error":"#DIV/0!"},{"$error":"#DIV/0!"},{"$error":"#DIV/0!"},{"$error":"#DIV/0!"},{"$error":"#DIV/0!"},{"$error":"#DIV/0!"},{"$error":"#DIV/0!"},{"$error":"#DIV/0!"},{"$error":"#DIV/0!"},{"$error":"#DIV/0!"},{"$error":"#DIV/0!"},1]
[null,null,null,null,null,null,null,null,null,null,null,null,null,null,null,null,null,null,null,null,null,null,null,null,1]
["k82",{"$f":"title472","v":"Sub-total of annual fixed cost (USD)"},null,{"$f":"F38","v":{"$error":"#DIV/0!"}},{"$f":"D51","v":{"$error":"#DIV/0!"}},{"$f":"E51","v":{"$error":"#DIV/0!"}},{"$error":"#DIV/0!"},{"$error":"#DIV/0!"},{"$error":"#DIV/0!"},{"$error":"#DIV/0!"},{"$error":"#DIV/0!"},{"$error":"#DIV/0!"},{"$error":"#DIV/0!"},{"$error":"#DIV/0!"},{"$error":"#DIV/0!"},{"$error":"#DIV/0!"},{"$error":"#DIV/0!"},{"$error":"#DIV/0!"},{"$error":"#DIV/0!"},{"$error":"#DIV/0!"},{"$error":"#DIV/0!"},{"$error":"#DIV/0!"},{"$error":"#DIV/0!"},{"$error":"#DIV/0!"},1]
[null,null,null,null,null,null,null,null,null,null,null,null,null,null,null,null,null,null,null,null,null,null,null,null,1]
["J73",{"$f":"title473","v":"Sub-total of storage cost (USD)"},null,{"$f":"INDIRECT(\"COST_PS2!\"&$A53)","v":0},0,0,0,0,0,0,0,0,0,0,0,0,0,0,0,0,0,0,0,0,1]
[null,null,null,null,null,null,null,null,null,null,null,null,null,null,null,null,null,null,null,null,null,null,null,null,1]
[null,{"$f":"title474","v":"Total operation and maintenance cost (USD)"},null,{"$f":"D43+D45+D49+D51+D53","v":{"$error":"#DIV/0!"}},{"$f":"E43+E45+E49+E51+E53","v":{"$error":"#DIV/0!"}},{"$error":"#DIV/0!"},{"$error":"#DIV/0!"},{"$error":"#DIV/0!"},{"$error":"#DIV/0!"},{"$error":"#DIV/0!"},{"$error":"#DIV/0!"},{"$error":"#DIV/0!"},{"$error":"#DIV/0!"},{"$error":"#DIV/0!"},{"$error":"#DIV/0!"},{"$error":"#DIV/0!"},{"$error":"#DIV/0!"},{"$error":"#DIV/0!"},{"$error":"#DIV/0!"},{"$error":"#DIV/0!"},{"$error":"#DIV/0!"},{"$error":"#DIV/0!"},{"$error":"#DIV/0!"},{"$error":"#DIV/0!"},1]
[null,null,null,null,null,null,null,null,null,null,null,null,null,null,null,null,null,null,null,null,null,null,null,null,1]
[null,null,null,null,null,null,null,null,null,null,null,null,null,null,null,null,null,null,null,null,null,null,null,null,1]
[null,{"$f":"title155","v":"Financial parameters"},null,null,null,null,null,null,null,null,null,null,null,null,null,null,null,null,null,null,null,null,null,null,1]
[null,{"$f":"title446","v":"Operating Year"},null,{"$f":"title464","v":"Appraisal"},1,2,3,4,5,6,7,8,9,10,11,12,13,14,15,16,17,18,19,20,1]
[null,{"$f":"title161&\"(%)\"","v":"Discount rate(%)"},null,{"$f":"'Data entry needs'!$L$118","v":0},null,null,null,null,null,null,null,null,null,null,null,null,null,null,null,null,null,null,null,null,1]
[null,{"$f":"title475","v":"Loan ratio (%)"},null,{"$f":"'Data entry needs'!$F$118","v":0},null,null,null,null,null,null,null,null,null,null,null,null,null,null,null,null,null,null,null,null,1]
[null,null,null,null,null,null,null,null,null,null,null,null,null,null,null,null,null,null,null,null,null,null,null,null,1]
[null,null,null,null,null,null,null,null,null,null,null,null,null,null,null,null,null,null,null,null,null,null,null,null,1]
[null,{"$f":"title446","v":"Operating Year"},null,{"$f":"title464","v":"Appraisal"},1,2,3,4,5,6,7,8,9,10,11,12,13,14,15,16,17,18,19,20,1]
[null,{"$f":"title476","v":"Loan amount (USD)"},null,{"$f":"D61*(D38)","v":{"$error":"#DIV/0!"}},null,null,null,null,null,null,null,null,null,null,null,null,null,null,null,null,null,null,null,null,1]
[null,{"$f":"title162&\"(%)\"","v":"Loan interest rate(%)"},null,{"$f":"'Data entry needs'!$L$119","v":0},null,null,null,null,null,null,null,null,null,null,null,null,null,null,null,null,null,null,null,null,1]
[null,{"$f":"title165","v":"Loan term (years)"},null,{"$f":"D26","v":0},null,null,null,null,null,null,null,null,null,null,null,null,null,null,null,null,null,null,null,null,1]
[null,{"$f":"title315&\" (\"&title318&\")\"","v":"Loan payment (USD/month)"},null,{"$f":"(PMT($D$66/12,($D$67*12),$D$65))","v":{"$error":"#DIV/0!"}}]
[null,{"$f":"title315&\" (\"&title319&\")\"","v":"Loan payment (USD/year)"},null,{"$f":"D68*12","v":{"$error":"#DIV/0!"}},null,null,null,null,null,null,null,null,null,null,null,null,null,null,null,null,null,null,null,null,1]
[null,{"$f":"title315&\" (\"&title319&\")\"","v":"Loan payment (USD/year)"},null,null,{"$f":"IF(E64<=$D$67,$D$68*12,0)","v":0},{"$f":"IF(F64<=$D$67,$D$68*12,0)","v":0},0,0,0,0,0,0,0,0,0,0,0,0,0,0,0,0,0,0,1]
[null,{"$f":"title477","v":"Total loan payment (USD)"},null,{"$f":"SUM(E70:X70)","v":0},null,null,null,null,null,null,null,null,null,null,null,null,null,null,null,null,null,null,null,null,1]
[null,{"$f":"title478","v":"Loan interest payment (USD)"},null,{"$f":"D71+D65","v":{"$error":"#DIV/0!"}},{"$f":"title479","v":"loan interest payment for project lifetime"},null,null,null,null,null,null,null,null,null,null,null,null,null,null,null,null,null,null,null,1]
[null,null,null,null,null,null,null,null,null,null,null,null,null,null,null,null,null,null,null,null,null,null,null,null,1]
[null,{"$f":"title285","v":"Depreciation"},null,null,null,null,null,null,null,null,null,null,null,null,null,null,null,null,null,null,null,null,null,null,1]
[null,{"$f":"title446","v":"Operating Year"},null,{"$f":"title464","v":"Appraisal"},1,2,3,4,5,6,7,8,9,10,11,12,13,14,15,16,17,18,19,20,1]
[null,{"$f":"title480","v":"Depreciation method"},null,{"$f":"title482","v":"Straight-line"},null,null,null,null,null,null,null,null,null,null,null,null,null,null,null,null,null,null,null,null,1]
[null,{"$f":"title481","v":"Total depreciation (USD)"},null,null,{"$f":"$F$38","v":{"$error":"#DIV/0!"}},{"$f":"$F$38","v":{"$error":"#DIV/0!"}},{"$error":"#DIV/0!"},{"$error":"#DIV/0!"},{"$error":"#DIV/0!"},{"$error":"#DIV/0!"},{"$error":"#DIV/0!"},{"$error":"#DIV/0!"},{"$error":"#DIV/0!"},{"$error":"#DIV/0!"},{"$error":"#DIV/0!"},{"$error":"#DIV/0!"},{"$error":"#DIV/0!"},{"$error":"#DIV/0!"},{"$error":"#DIV/0!"},{"$error":"#DIV/0!"},{"$error":"#DIV/0!"},{"$error":"#DIV/0!"},{"$error":"#DIV/0!"},{"$error":"#DIV/0!"},1]
[null,null,null,null,null,null,null,null,null,null,null,null,null,null,null,null,null,null,null,null,null,null,null,null,1]
[null,{"$f":"title483","v":"Base case Project Summary"},null,null,null,null,null,null,null,null,null,null,null,null,null,null,null,null,null,null,null,null,null,null,1]
[null,{"$f":"title484","v":"Summary of this project"},null,null,null,null,null,null,null,null,null,null,null,null,null,null,null,null,null,null,null,null,null,null,1]
[null,{"$f":"title446","v":"Operating Year"},null,{"$f":"title464","v":"Appraisal"},1,2,3,4,5,6,7,8,9,10,11,12,13,14,15,16,17,18,19,20,1]
[null,{"$f":"title485","v":"Total revenue (USD)"},null,null,{"$f":"E24","v":{"$error":"#DIV/0!"}},{"$f":"F24","v":{"$error":"#DIV/0!"}},{"$error":"#DIV/0!"},{"$error":"#DIV/0!"},{"$error":"#DIV/0!"},{"$error":"#DIV/0!"},{"$error":"#DIV/0!"},{"$error":"#DIV/0!"},{"$error":"#DIV/0!"},{"$error":"#DIV/0!"},{"$error":"#DIV/0!"},{"$error":"#DIV/0!"},{"$error":"#DIV/0!"},{"$error":"#DIV/0!"},{"$error":"#DIV/0!"},{"$error":"#DIV/0!"},{"$error":"#DIV/0!"},{"$error":"#DIV/0!"},{"$error":"#DIV/0!"},{"$error":"#DIV/0!"},1]
[null,{"$f":"title463","v":"Total capital cost (USD)"},null,{"$f":"-D38*(1-$D$61)","v":{"$error":"#DIV/0!"}},null,null,null,null,null,null,null,null,null,null,null,null,null,null,null,null,null,null,null,null,1]
[null,{"$f":"title486","v":"Total operating and maintenance cost (USD)"},null,null,{"$f":"-E55+E51","v":{"$error":"#DIV/0!"}},{"$f":"-F55+F51","v":{"$error":"#DIV/0!"}},{"$f":"-G55+G51","v":{"$error":"#DIV/0!"}},{"$error":"#DIV/0!"},{"$error":"#DIV/0!"},{"$error":"#DIV/0!"},{"$error":"#DIV/0!"},{"$error":"#DIV/0!"},{"$error":"#DIV/0!"},{"$error":"#DIV/0!"},{"$error":"#DIV/0!"},{"$error":"#DIV/0!"},{"$error":"#DIV/0!"},{"$error":"#DIV/0!"},{"$error":"#DIV/0!"},{"$error":"#DIV/0!"},{"$error":"#DIV/0!"},{"$error":"#DIV/0!"},{"$error":"#DIV/0!"},{"$error":"#DIV/0!"},1]
[null,{"$f":"title487","v":"Loan payment (USD)"},null,null,{"$f":"+E70","v":0},{"$f":"+F70","v":0},{"$f":"+G70","v":0},0,0,0,0,0,0,0,0,0,0,0,0,0,0,0,0,0,1]
[null,{"$f":"title488","v":"Cash flow with loan (USD)"},null,{"$f":"SUM(D82:D85)","v":{"$error":"#DIV/0!"}},{"$f":"SUM(E82:E85)","v":{"$error":"#DIV/0!"}},{"$f":"SUM(F82:F85)","v":{"$error":"#DIV/0!"}},{"$f":"SUM(G82:G85)","v":{"$error":"#DIV/0!"}},{"$error":"#DIV/0!"},{"$error":"#DIV/0!"},{"$error":"#DIV/0!"},{"$error":"#DIV/0!"},{"$error":"#DIV/0!"},{"$error":"#DIV/0!"},{"$error":"#DIV/0!"},{"$error":"#DIV/0!"},{"$error":"#DIV/0!"},{"$error":"#DIV/0!"},{"$error":"#DIV/0!"},{"$error":"#DIV/0!"},{"$error":"#DIV/0!"},{"$error":"#DIV/0!"},{"$error":"#DIV/0!"},{"$error":"#DIV/0!"},{"$error":"#DIV/0!"},1]
[null,{"$f":"title489","v":"Cash flow without loan (USD)"},null,{"$f":"-D38","v":{"$error":"#DIV/0!"}},{"$f":"+E82+E84","v":{"$error":"#DIV/0!"}},{"$f":"+F82+F84","v":{"$error":"#DIV/0!"}},{"$f":"+G82+G84","v":{"$error":"#DIV/0!"}},{"$error":"#DIV/0!"},{"$error":"#DIV/0!"},{"$error":"#DIV/0!"},{"$error":"#DIV/0!"},{"$error":"#DIV/0!"},{"$error":"#DIV/0!"},{"$error":"#DIV/0!"},{"$error":"#DIV/0!"},{"$error":"#DIV/0!"},{"$error":"#DIV/0!"},{"$error":"#DIV/0!"},{"$error":"#DIV/0!"},{"$error":"#DIV/0!"},{"$error":"#DIV/0!"},{"$error":"#DIV/0!"},{"$error":"#DIV/0!"},{"$error":"#DIV/0!"},1]
[null,{"$f":"title446","v":"Operating Year"},null,{"$f":"title464","v":"Appraisal"},1,2,3,4,5,6,7,8,9,10,11,12,13,14,15,16,17,18,19,20,1]
[null,{"$f":"title490","v":"Cumulative value of Net Profit"},null,{"$f":"D86","v":{"$error":"#DIV/0!"}},{"$f":"D89+(E86)","v":{"$error":"#DIV/0!"}},{"$f":"E89+(F86)","v":{"$error":"#DIV/0!"}},{"$error":"#DIV/0!"},{"$error":"#DIV/0!"},{"$error":"#DIV/0!"},{"$error":"#DIV/0!"},{"$error":"#DIV/0!"},{"$error":"#DIV/0!"},{"$error":"#DIV/0!"},{"$error":"#DIV/0!"},{"$error":"#DIV/0!"},{"$error":"#DIV/0!"},{"$error":"#DIV/0!"},{"$error":"#DIV/0!"},{"$error":"#DIV/0!"},{"$error":"#DIV/0!"},{"$error":"#DIV/0!"},{"$error":"#DIV/0!"},{"$error":"#DIV/0!"},{"$error":"#DIV/0!"},1]
[null,null,null,null,null,null,null,null,null,null,null,null,null,null,null,null,null,null,null,null,null,null,null,null,1]
[null,{"$f":"title491","v":"Financial Analysis Result"},null,null,null,null,null,null,null,null,null,null,null,null,null,null,null,null,null,null,null,null,null,null,1]
[null,null,null,null,null,null,null,null,null,null,null,null,null,null,null,null,null,null,null,null,null,null,null,null,1]
[null,{"$f":"title493","v":"Net Present Value (NPV) (USD)"},null,{"$f":"NPV(D60,E86:AA86)+D86","v":{"$error":"#DIV/0!"}},null,null,null,null,null,null,null,null,null,null,null,null,null,null,null,null,null,null,null,null,1]
[null,{"$f":"title494","v":"Internal Rate of Return (IRR) (%) - without loan"},null,{"$f":"IF(D93<0,title492,IRR(D87:AA87,0.001))","v":{"$error":"#DIV/0!"}},null,null,null,null,null,null,null,null,null,null,null,null,null,null,null,null,null,null,null,null,1]
[null,{"$f":"title495","v":"Internal Rate of Return (IRR) (%) - with loan"},null,{"$f":"IF(D94<0,title492,IRR(D86:AA86,0.001))","v":{"$error":"#DIV/0!"}},null,null,null,null,null,null,null,null,null,null,null,null,null,null,null,null,null,null,null,null,1]
[null,null,null,null,null,null,null,null,null,null,null,null,null,null,null,null,null,null,null,null,null,null,null,null,1]
[null,null,null,null,null,null,null,null,null,null,null,null,null,null,null,null,null,null,null,null,null,null,null,null,1]

{"sheet":"FA_SIZE4_PS2","index":30,"n_rows":97,"n_cols":25,"rows_kept":97,"cut":false,"hidden":true,"merged":[[1,1,1,23]]}
[]
[null,{"$f":"title496&\" 4\"","v":"FINANCIAL EVALUATION OF BIOGAS PRODUCTION SIZE 4"}]
[]
[null,{"$f":"title445","v":"Revenues of biomass production and use system"}]
[null,{"$f":"title446","v":"Operating Year"},null,0,1,2,3,4,5,6,7,8,9,10,11,12,13,14,15,16,17,18,19,20,1]
[null,null,null,null,null,null,null,null,null,null,null,null,null,null,null,null,null,null,null,null,null,null,null,null,1]
["Ag130",{"$f":"title447","v":"Biogas production capacity (m3 Biogas per year)"},null,{"$f":"INDIRECT(\"Planner_PS2!$\"&$A$7)*'Data entry needs'!$L$100","v":{"$error":"#DIV/0!"}},{"$f":"D7","v":{"$error":"#DIV/0!"}},{"$f":"E7","v":{"$error":"#DIV/0!"}},{"$f":"F7","v":{"$error":"#DIV/0!"}},{"$error":"#DIV/0!"},{"$error":"#DIV/0!"},{"$error":"#DIV/0!"},{"$error":"#DIV/0!"},{"$error":"#DIV/0!"},{"$error":"#DIV/0!"},{"$error":"#DIV/0!"},{"$error":"#DIV/0!"},{"$error":"#DIV/0!"},{"$error":"#DIV/0!"},{"$error":"#DIV/0!"},{"$error":"#DIV/0!"},{"$error":"#DIV/0!"},{"$error":"#DIV/0!"},{"$error":"#DIV/0!"},{"$error":"#DIV/0!"},{"$error":"#DIV/0!"},1]
[]
["m107",{"$f":"title448","v":"Heat Available for Selling (MJ/year)"},null,{"$f":"IF(INDIRECT(\"COST_PS2!\"&$A$9)<0,0,INDIRECT(\"COST_PS2!\"&$A$9))","v":{"$error":"#DIV/0!"}},{"$f":"D9","v":{"$error":"#DIV/0!"}},{"$f":"E9","v":{"$error":"#DIV/0!"}},{"$error":"#DIV/0!"},{"$error":"#DIV/0!"},{"$error":"#DIV/0!"},{"$error":"#DIV/0!"},{"$error":"#DIV/0!"},{"$error":"#DIV/0!"},{"$error":"#DIV/0!"},{"$error":"#DIV/0!"},{"$error":"#DIV/0!"},{"$error":"#DIV/0!"},{"$error":"#DIV/0!"},{"$error":"#DIV/0!"},{"$error":"#DIV/0!"},{"$error":"#DIV/0!"},{"$error":"#DIV/0!"},{"$f":"U9","v":{"$error":"#DIV/0!"}},{"$error":"#DIV/0!"},{"$error":"#DIV/0!"},1]
["m106",{"$f":"title449","v":"Electricity Available for Selling (kWh/year)"},null,{"$f":"IF(INDIRECT(\"COST_PS2!\"&$A$10)<0,0,INDIRECT(\"COST_PS2!\"&$A$10))","v":{"$error":"#DIV/0!"}},{"$f":"D10","v":{"$error":"#DIV/0!"}},{"$error":"#DIV/0!"},{"$error":"#DIV/0!"},{"$error":"#DIV/0!"},{"$error":"#DIV/0!"},{"$error":"#DIV/0!"},{"$error":"#DIV/0!"},{"$error":"#DIV/0!"},{"$error":"#DIV/0!"},{"$error":"#DIV/0!"},{"$error":"#DIV/0!"},{"$error":"#DIV/0!"},{"$error":"#DIV/0!"},{"$error":"#DIV/0!"},{"$error":"#DIV/0!"},{"$error":"#DIV/0!"},{"$error":"#DIV/0!"},{"$error":"#DIV/0!"},{"$error":"#DIV/0!"},{"$error":"#DIV/0!"},1]
["Ae166",{"$f":"title450","v":"Biomethane Production (m3 Methane/year)"},null,{"$f":"IF(OR('Biogas Use Selection'!$P$67=4,'Biogas Use Selection'!$P$67=5),INDIRECT(\"Planner_PS2!$\"&$A$11),0)","v":0},{"$f":"D11","v":0},0,0,0,0,0,0,0,0,0,0,0,0,0,0,0,0,0,0,0,1]
[null,{"$f":"title451","v":"Biogas Available for Selling (m3/year)"},null,{"$f":"IF('Biogas Use Selection'!$P$67=2,$D$7,0)","v":0},{"$f":"D12","v":0},0,0,0,0,0,0,0,0,0,0,0,0,0,0,0,0,0,0,0]
["Ae178",{"$f":"title452","v":"Digestate Production (t/year)"},null,{"$f":"INDIRECT(\"Planner_PS2!$\"&$A$13)","v":{"$error":"#DIV/0!"}},{"$f":"D13","v":{"$error":"#DIV/0!"}},{"$error":"#DIV/0!"},{"$error":"#DIV/0!"},{"$error":"#DIV/0!"},{"$error":"#DIV/0!"},{"$error":"#DIV/0!"},{"$error":"#DIV/0!"},{"$error":"#DIV/0!"},{"$error":"#DIV/0!"},{"$error":"#DIV/0!"},{"$error":"#DIV/0!"},{"$error":"#DIV/0!"},{"$error":"#DIV/0!"},{"$error":"#DIV/0!"},{"$error":"#DIV/0!"},{"$error":"#DIV/0!"},{"$error":"#DIV/0!"},{"$error":"#DIV/0!"},{"$error":"#DIV/0!"},{"$error":"#DIV/0!"}]
[]
[null,{"$f":"title265","v":"Operating hours per year"},null,{"$f":"COST_PS2!$G$35","v":0},{"$f":"D15","v":0},{"$f":"E15","v":0},0,0,0,0,0,0,0,0,0,0,0,0,0,0,0,0,0,0,1]
[null,null,null,null,null,null,null,null,null,null,null,null,null,null,null,null,null,null,null,null,null,null,null,null,1]
[1,{"$f":"title137&\" (USD/kWh)\"","v":"Electricity Selling Price (USD/kWh)"},null,{"$f":"IF($A17=1,'Data entry needs'!$F$103,0)","v":0},null,null,null,null,null,null,null,null,null,null,null,null,null,null,null,null,null,null,null,null,1]
[1,{"$f":"title138&\" (USD/GJ)\"","v":"Heat Selling Price (USD/GJ)"},null,{"$f":"IF($A18=1,'Data entry needs'!$F$104,0)","v":0}]
[1,{"$f":"title453","v":"Biogas Selling Price (USD/m3)"},null,{"$f":"IF($A19=1,'Data entry needs'!$F$105,0)","v":0}]
[1,{"$f":"title454","v":"Biomethane Selling Price (USD/m3)"},null,{"$f":"IF($A20=1,'Data entry needs'!$L$103,0)","v":0}]
[1,{"$f":"title455","v":"Digestate Sellig Price (USD/t)"},null,{"$f":"'Data entry needs'!$L$104","v":0}]
[]
[null,null,null,null,null,null,null,null,null,null,null,null,null,null,null,null,null,null,null,null,null,null,null,null,1]
[null,{"$f":"title456","v":"Annual Income (USD per year)"},null,{"$f":"$D$18*D9+D10*$D$17+D12*$D$19+D11*$D$20+$D$21*D13","v":{"$error":"#DIV/0!"}},{"$f":"$D$18*E9+E10*$D$17+E12*$D$19+E11*$D$20+$D$21*E13","v":{"$error":"#DIV/0!"}},{"$f":"$D$18*F9+F10*$D$17+F12*$D$19+F11*$D$20+$D$21*F13","v":{"$error":"#DIV/0!"}},{"$error":"#DIV/0!"},{"$error":"#DIV/0!"},{"$error":"#DIV/0!"},{"$error":"#DIV/0!"},{"$error":"#DIV/0!"},{"$error":"#DIV/0!"},{"$error":"#DIV/0!"},{"$error":"#DIV/0!"},{"$error":"#DIV/0!"},{"$error":"#DIV/0!"},{"$error":"#DIV/0!"},{"$error":"#DIV/0!"},{"$error":"#DIV/0!"},{"$error":"#DIV/0!"},{"$error":"#DIV/0!"},{"$error":"#DIV/0!"},{"$error":"#DIV/0!"},{"$error":"#DIV/0!"},1]
[null,null,null,null,null,null,null,null,null,null,null,null,null,null,null,null,null,null,null,null,null,null,null,null,1]
[null,{"$f":"title457","v":"Lifespan of civil work (years)"},null,{"$f":"'Data entry needs'!$L$120","v":0},null,null,null,null,null,null,null,null,null,null,null,null,null,null,null,null,null,null,null,null,1]
[null,{"$f":"title458","v":"Lifespan of charcoal system (years)"},null,{"$f":"'Data entry needs'!$L$120","v":0},null,null,null,null,null,null,null,null,null,null,null,null,null,null,null,null,null,null,null,null,1]
[null,{"$f":"title459","v":"Project lifetime (years)"},null,{"$f":"'Data entry needs'!$L$120","v":0},null,null,null,null,null,null,null,null,null,null,null,null,null,null,null,null,null,null,null,null,1]
[null,null,null,null,null,null,null,null,null,null,null,null,null,null,null,null,null,null,null,null,null,null,null,null,1]
[null,null,null,null,null,null,null,null,null,null,null,null,null,null,null,null,null,null,null,null,null,null,null,null,1]
[null,{"$f":"title460","v":"Capital and operating cost of biogas system "},null,null,null,null,null,null,null,null,null,null,null,null,null,null,null,null,null,null,null,null,null,null,1]
[null,null,null,null,null,null,null,null,null,null,null,null,null,null,null,null,null,null,null,null,null,null,null,null,1]
[null,{"$f":"title446","v":"Operating Year"},null,{"$f":"title464","v":"Appraisal"},{"$f":"title465","v":"Project period (years)"},{"$f":"title466","v":"per year"},null,null,null,null,null,null,null,null,null,null,null,null,null,null,null,null,null,null,1]
[null,{"$f":"title461","v":"Capital cost (USD)"},null,"Total",null,null,null,null,null,null,null,null,null,null,null,null,null,null,null,null,null,null,null,null,1]
["l77",{"$f":"title280","v":"Equipments"},null,{"$f":"INDIRECT(\"COST_PS2!\"&$A35)","v":{"$error":"#DIV/0!"}},{"$f":"+D26","v":0},{"$f":"D35/E35","v":{"$error":"#DIV/0!"}},null,null,null,null,null,null,null,null,null,null,null,null,null,null,null,null,null,null,1]
["l78",{"$f":"title281","v":"Building"},null,{"$f":"INDIRECT(\"COST_PS2!\"&$A36)","v":{"$error":"#DIV/0!"}},{"$f":"+D27","v":0},{"$f":"D36/E36","v":{"$error":"#DIV/0!"}},null,null,null,null,null,null,null,null,null,null,null,null,null,null,null,null,null,null,1]
["l79",{"$f":"title462","v":"Installation"},null,{"$f":"INDIRECT(\"COST_PS2!\"&$A37)","v":{"$error":"#DIV/0!"}},{"$f":"+D28","v":0},{"$f":"D37/E37","v":{"$error":"#DIV/0!"}},null,null,null,null,null,null,null,null,null,null,null,null,null,null,null,null,null,null,1]
[null,{"$f":"title463","v":"Total capital cost (USD)"},null,{"$f":"SUM(D35:D37)","v":{"$error":"#DIV/0!"}},null,{"$f":"SUM(F35:F37)","v":{"$error":"#DIV/0!"}},null,null,null,null,null,null,null,null,null,null,null,null,null,null,null,null,null,null,1]
[null,null,null,null,null,null,null,null,null,null,null,null,null,null,null,null,null,null,null,null,null,null,null,null,1]
[null,null,null,null,null,null,null,null,null,null,null,null,null,null,null,null,null,null,null,null,null,null,null,null,1]
[null,{"$f":"title446","v":"Operating Year"},null,{"$f":"title464","v":"Appraisal"},1,2,3,4,5,6,7,8,9,10,11,12,13,14,15,16,17,18,19,20,1]
[null,{"$f":"title467","v":"Annual operating and maintenance cost "},null,null,null,null,null,null,null,null,null,null,null,null,null,null,null,null,null,null,null,null,null,null,1]
["l44",{"$f":"title468","v":"Sub-total inputs cost (USD)"},null,{"$f":"INDIRECT(\"COST_PS2!\"&$A$43)","v":{"$error":"#DIV/0!"}},{"$error":"#DIV/0!"},{"$error":"#DIV/0!"},{"$error":"#DIV/0!"},{"$error":"#DIV/0!"},{"$error":"#DIV/0!"},{"$error":"#DIV/0!"},{"$error":"#DIV/0!"},{"$error":"#DIV/0!"},{"$error":"#DIV/0!"},{"$error":"#DIV/0!"},{"$error":"#DIV/0!"},{"$error":"#DIV/0!"},{"$error":"#DIV/0!"},{"$error":"#DIV/0!"},{"$error":"#DIV/0!"},{"$error":"#DIV/0!"},{"$error":"#DIV/0!"},{"$error":"#DIV/0!"},{"$error":"#DIV/0!"},{"$error":"#DIV/0!"},1]
[]
[null,{"$f":"title469","v":"Sub-total operating cost (USD)"},null,{"$f":"D46+D47+D48","v":{"$error":"#DIV/0!"}},{"$f":"E46+E47+E48","v":{"$error":"#DIV/0!"}},{"$f":"F46+F47+F48","v":{"$error":"#DIV/0!"}},{"$error":"#DIV/0!"},{"$error":"#DIV/0!"},{"$error":"#DIV/0!"},{"$error":"#DIV/0!"},{"$error":"#DIV/0!"},{"$error":"#DIV/0!"},{"$error":"#DIV/0!"},{"$error":"#DIV/0!"},{"$error":"#DIV/0!"},{"$error":"#DIV/0!"},{"$error":"#DIV/0!"},{"$error":"#DIV/0!"},{"$error":"#DIV/0!"},{"$error":"#DIV/0!"},{"$error":"#DIV/0!"},{"$error":"#DIV/0!"},{"$error":"#DIV/0!"},{"$error":"#DIV/0!"},1]
["m51",{"$f":"title470","v":"Labour cost & Misc. (USD)"},null,{"$f":"INDIRECT(\"COST_PS2!\"&$A46)","v":0},{"$f":"+D46","v":0},{"$f":"+E46","v":0},0,0,0,0,0,0,0,0,0,0,0,0,0,0,0,0,0,0,1]
["m87",{"$f":"title151","v":"Plant overhead"},null,{"$f":"INDIRECT(\"COST_PS2!\"&$A47)","v":{"$error":"#DIV/0!"}},{"$f":"D47","v":{"$error":"#DIV/0!"}},{"$error":"#DIV/0!"},{"$error":"#DIV/0!"},{"$error":"#DIV/0!"},{"$error":"#DIV/0!"},{"$error":"#DIV/0!"},{"$error":"#DIV/0!"},{"$error":"#DIV/0!"},{"$error":"#DIV/0!"},{"$error":"#DIV/0!"},{"$error":"#DIV/0!"},{"$error":"#DIV/0!"},{"$error":"#DIV/0!"},{"$error":"#DIV/0!"},{"$error":"#DIV/0!"},{"$error":"#DIV/0!"},{"$f":"T47","v":{"$error":"#DIV/0!"}},{"$error":"#DIV/0!"},{"$error":"#DIV/0!"},{"$error":"#DIV/0!"},1]
["m88",{"$f":"title288","v":"General and administrative cost"},null,{"$f":"INDIRECT(\"COST_PS2!\"&$A48)","v":{"$error":"#DIV/0!"}},{"$error":"#DIV/0!"},{"$error":"#DIV/0!"},{"$error":"#DIV/0!"},{"$error":"#DIV/0!"},{"$error":"#DIV/0!"},{"$error":"#DIV/0!"},{"$error":"#DIV/0!"},{"$error":"#DIV/0!"},{"$error":"#DIV/0!"},{"$error":"#DIV/0!"},{"$error":"#DIV/0!"},{"$error":"#DIV/0!"},{"$error":"#DIV/0!"},{"$error":"#DIV/0!"},{"$error":"#DIV/0!"},{"$error":"#DIV/0!"},{"$error":"#DIV/0!"},{"$error":"#DIV/0!"},{"$error":"#DIV/0!"},{"$error":"#DIV/0!"},1]
["m82",{"$f":"title471","v":"Sub-total maintenance cost (USD)"},null,{"$f":"INDIRECT(\"COST_PS2!\"&$A49)","v":{"$error":"#DIV/0!"}},{"$error":"#DIV/0!"},{"$error":"#DIV/0!"},{"$error":"#DIV/0!"},{"$error":"#DIV/0!"},{"$error":"#DIV/0!"},{"$error":"#DIV/0!"},{"$error":"#DIV/0!"},{"$error":"#DIV/0!"},{"$error":"#DIV/0!"},{"$error":"#DIV/0!"},{"$error":"#DIV/0!"},{"$error":"#DIV/0!"},{"$error":"#DIV/0!"},{"$error":"#DIV/0!"},{"$error":"#DIV/0!"},{"$error":"#DIV/0!"},{"$error":"#DIV/0!"},{"$error":"#DIV/0!"},{"$error":"#DIV/0!"},{"$error":"#DIV/0!"},1]
[null,null,null,null,null,null,null,null,null,null,null,null,null,null,null,null,null,null,null,null,null,null,null,null,1]
["m82",{"$f":"title472","v":"Sub-total of annual fixed cost (USD)"},null,{"$f":"F38","v":{"$error":"#DIV/0!"}},{"$f":"D51","v":{"$error":"#DIV/0!"}},{"$f":"E51","v":{"$error":"#DIV/0!"}},{"$error":"#DIV/0!"},{"$error":"#DIV/0!"},{"$error":"#DIV/0!"},{"$error":"#DIV/0!"},{"$error":"#DIV/0!"},{"$error":"#DIV/0!"},{"$error":"#DIV/0!"},{"$error":"#DIV/0!"},{"$error":"#DIV/0!"},{"$error":"#DIV/0!"},{"$error":"#DIV/0!"},{"$error":"#DIV/0!"},{"$error":"#DIV/0!"},{"$error":"#DIV/0!"},{"$error":"#DIV/0!"},{"$error":"#DIV/0!"},{"$error":"#DIV/0!"},{"$error":"#DIV/0!"},1]
[null,null,null,null,null,null,null,null,null,null,null,null,null,null,null,null,null,null,null,null,null,null,null,null,1]
["l73",{"$f":"title473","v":"Sub-total of storage cost (USD)"},null,{"$f":"INDIRECT(\"COST_PS2!\"&$A53)","v":0},0,0,0,0,0,0,0,0,0,0,0,0,0,0,0,0,0,0,0,0,1]
[null,null,null,null,null,null,null,null,null,null,null,null,null,null,null,null,null,null,null,null,null,null,null,null,1]
[null,{"$f":"title474","v":"Total operation and maintenance cost (USD)"},null,{"$f":"D43+D45+D49+D51+D53","v":{"$error":"#DIV/0!"}},{"$f":"E43+E45+E49+E51+E53","v":{"$error":"#DIV/0!"}},{"$error":"#DIV/0!"},{"$error":"#DIV/0!"},{"$error":"#DIV/0!"},{"$error":"#DIV/0!"},{"$error":"#DIV/0!"},{"$error":"#DIV/0!"},{"$error":"#DIV/0!"},{"$error":"#DIV/0!"},{"$error":"#DIV/0!"},{"$error":"#DIV/0!"},{"$error":"#DIV/0!"},{"$error":"#DIV/0!"},{"$error":"#DIV/0!"},{"$error":"#DIV/0!"},{"$error":"#DIV/0!"},{"$error":"#DIV/0!"},{"$error":"#DIV/0!"},{"$error":"#DIV/0!"},{"$error":"#DIV/0!"},1]
[null,null,null,null,null,null,null,null,null,null,null,null,null,null,null,null,null,null,null,null,null,null,null,null,1]
[null,null,null,null,null,null,null,null,null,null,null,null,null,null,null,null,null,null,null,null,null,null,null,null,1]
[null,{"$f":"title155","v":"Financial parameters"},null,null,null,null,null,null,null,null,null,null,null,null,null,null,null,null,null,null,null,null,null,null,1]
[null,{"$f":"title446","v":"Operating Year"},null,{"$f":"title464","v":"Appraisal"},1,2,3,4,5,6,7,8,9,10,11,12,13,14,15,16,17,18,19,20,1]
[null,{"$f":"title161&\"(%)\"","v":"Discount rate(%)"},null,{"$f":"'Data entry needs'!$L$118","v":0},null,null,null,null,null,null,null,null,null,null,null,null,null,null,null,null,null,null,null,null,1]
[null,{"$f":"title475","v":"Loan ratio (%)"},null,{"$f":"'Data entry needs'!$F$118","v":0},null,null,null,null,null,null,null,null,null,null,null,null,null,null,null,null,null,null,null,null,1]
[null,null,null,null,null,null,null,null,null,null,null,null,null,null,null,null,null,null,null,null,null,null,null,null,1]
[null,null,null,null,null,null,null,null,null,null,null,null,null,null,null,null,null,null,null,null,null,null,null,null,1]
[null,{"$f":"title446","v":"Operating Year"},null,{"$f":"title464","v":"Appraisal"},1,2,3,4,5,6,7,8,9,10,11,12,13,14,15,16,17,18,19,20,1]
[null,{"$f":"title476","v":"Loan amount (USD)"},null,{"$f":"D61*(D38)","v":{"$error":"#DIV/0!"}},null,null,null,null,null,null,null,null,null,null,null,null,null,null,null,null,null,null,null,null,1]
[null,{"$f":"title162&\"(%)\"","v":"Loan interest rate(%)"},null,{"$f":"'Data entry needs'!$L$119","v":0},null,null,null,null,null,null,null,null,null,null,null,null,null,null,null,null,null,null,null,null,1]
[null,{"$f":"title165","v":"Loan term (years)"},null,{"$f":"D26","v":0},null,null,null,null,null,null,null,null,null,null,null,null,null,null,null,null,null,null,null,null,1]
[null,{"$f":"title315&\" (\"&title318&\")\"","v":"Loan payment (USD/month)"},null,{"$f":"(PMT($D$66/12,($D$67*12),$D$65))","v":{"$error":"#DIV/0!"}}]
[null,{"$f":"title315&\" (\"&title319&\")\"","v":"Loan payment (USD/year)"},null,{"$f":"D68*12","v":{"$error":"#DIV/0!"}},null,null,null,null,null,null,null,null,null,null,null,null,null,null,null,null,null,null,null,null,1]
[null,{"$f":"title315&\" (\"&title319&\")\"","v":"Loan payment (USD/year)"},null,null,{"$f":"IF(E64<=$D$67,$D$68*12,0)","v":0},{"$f":"IF(F64<=$D$67,$D$68*12,0)","v":0},0,0,0,0,0,0,0,0,0,0,0,0,0,0,0,0,0,0,1]
[null,{"$f":"title477","v":"Total loan payment (USD)"},null,{"$f":"SUM(E70:X70)","v":0},null,null,null,null,null,null,null,null,null,null,null,null,null,null,null,null,null,null,null,null,1]
[null,{"$f":"title478","v":"Loan interest payment (USD)"},null,{"$f":"D71+D65","v":{"$error":"#DIV/0!"}},{"$f":"title479","v":"loan interest payment for project lifetime"},null,null,null,null,null,null,null,null,null,null,null,null,null,null,null,null,null,null,null,1]
[null,null,null,null,null,null,null,null,null,null,null,null,null,null,null,null,null,null,null,null,null,null,null,null,1]
[null,{"$f":"title285","v":"Depreciation"},null,null,null,null,null,null,null,null,null,null,null,null,null,null,null,null,null,null,null,null,null,null,1]
[null,{"$f":"title446","v":"Operating Year"},null,{"$f":"title464","v":"Appraisal"},1,2,3,4,5,6,7,8,9,10,11,12,13,14,15,16,17,18,19,20,1]
[null,{"$f":"title480","v":"Depreciation method"},null,{"$f":"title482","v":"Straight-line"},null,null,null,null,null,null,null,null,null,null,null,null,null,null,null,null,null,null,null,null,1]
[null,{"$f":"title481","v":"Total depreciation (USD)"},null,null,{"$f":"$F$38","v":{"$error":"#DIV/0!"}},{"$f":"$F$38","v":{"$error":"#DIV/0!"}},{"$error":"#DIV/0!"},{"$error":"#DIV/0!"},{"$error":"#DIV/0!"},{"$error":"#DIV/0!"},{"$error":"#DIV/0!"},{"$error":"#DIV/0!"},{"$error":"#DIV/0!"},{"$error":"#DIV/0!"},{"$error":"#DIV/0!"},{"$error":"#DIV/0!"},{"$error":"#DIV/0!"},{"$error":"#DIV/0!"},{"$error":"#DIV/0!"},{"$error":"#DIV/0!"},{"$error":"#DIV/0!"},{"$error":"#DIV/0!"},{"$error":"#DIV/0!"},{"$error":"#DIV/0!"},1]
[null,null,null,null,null,null,null,null,null,null,null,null,null,null,null,null,null,null,null,null,null,null,null,null,1]
[null,{"$f":"title483","v":"Base case Project Summary"},null,null,null,null,null,null,null,null,null,null,null,null,null,null,null,null,null,null,null,null,null,null,1]
[null,{"$f":"title484","v":"Summary of this project"},null,null,null,null,null,null,null,null,null,null,null,null,null,null,null,null,null,null,null,null,null,null,1]
[null,{"$f":"title446","v":"Operating Year"},null,{"$f":"title464","v":"Appraisal"},1,2,3,4,5,6,7,8,9,10,11,12,13,14,15,16,17,18,19,20,1]
[null,{"$f":"title485","v":"Total revenue (USD)"},null,null,{"$f":"E24","v":{"$error":"#DIV/0!"}},{"$f":"F24","v":{"$error":"#DIV/0!"}},{"$error":"#DIV/0!"},{"$error":"#DIV/0!"},{"$error":"#DIV/0!"},{"$error":"#DIV/0!"},{"$error":"#DIV/0!"},{"$error":"#DIV/0!"},{"$error":"#DIV/0!"},{"$error":"#DIV/0!"},{"$error":"#DIV/0!"},{"$error":"#DIV/0!"},{"$error":"#DIV/0!"},{"$error":"#DIV/0!"},{"$error":"#DIV/0!"},{"$error":"#DIV/0!"},{"$error":"#DIV/0!"},{"$error":"#DIV/0!"},{"$error":"#DIV/0!"},{"$error":"#DIV/0!"},1]
[null,{"$f":"title463","v":"Total capital cost (USD)"},null,{"$f":"-D38*(1-$D$61)","v":{"$error":"#DIV/0!"}},null,null,null,null,null,null,null,null,null,null,null,null,null,null,null,null,null,null,null,null,1]
[null,{"$f":"title486","v":"Total operating and maintenance cost (USD)"},null,null,{"$f":"-E55+E51","v":{"$error":"#DIV/0!"}},{"$f":"-F55+F51","v":{"$error":"#DIV/0!"}},{"$f":"-G55+G51","v":{"$error":"#DIV/0!"}},{"$error":"#DIV/0!"},{"$error":"#DIV/0!"},{"$error":"#DIV/0!"},{"$error":"#DIV/0!"},{"$error":"#DIV/0!"},{"$error":"#DIV/0!"},{"$error":"#DIV/0!"},{"$error":"#DIV/0!"},{"$error":"#DIV/0!"},{"$error":"#DIV/0!"},{"$error":"#DIV/0!"},{"$error":"#DIV/0!"},{"$error":"#DIV/0!"},{"$error":"#DIV/0!"},{"$error":"#DIV/0!"},{"$error":"#DIV/0!"},{"$error":"#DIV/0!"},1]
[null,{"$f":"title487","v":"Loan payment (USD)"},null,null,{"$f":"+E70","v":0},{"$f":"+F70","v":0},{"$f":"+G70","v":0},0,0,0,0,0,0,0,0,0,0,0,0,0,0,0,0,0,1]
[null,{"$f":"title488","v":"Cash flow with loan (USD)"},null,{"$f":"SUM(D82:D85)","v":{"$error":"#DIV/0!"}},{"$f":"SUM(E82:E85)","v":{"$error":"#DIV/0!"}},{"$f":"SUM(F82:F85)","v":{"$error":"#DIV/0!"}},{"$f":"SUM(G82:G85)","v":{"$error":"#DIV/0!"}},{"$error":"#DIV/0!"},{"$error":"#DIV/0!"},{"$error":"#DIV/0!"},{"$error":"#DIV/0!"},{"$error":"#DIV/0!"},{"$error":"#DIV/0!"},{"$error":"#DIV/0!"},{"$error":"#DIV/0!"},{"$error":"#DIV/0!"},{"$error":"#DIV/0!"},{"$error":"#DIV/0!"},{"$error":"#DIV/0!"},{"$error":"#DIV/0!"},{"$error":"#DIV/0!"},{"$error":"#DIV/0!"},{"$error":"#DIV/0!"},{"$error":"#DIV/0!"},1]
[null,{"$f":"title489","v":"Cash flow without loan (USD)"},null,{"$f":"-D38","v":{"$error":"#DIV/0!"}},{"$f":"+E82+E84","v":{"$error":"#DIV/0!"}},{"$f":"+F82+F84","v":{"$error":"#DIV/0!"}},{"$f":"+G82+G84","v":{"$error":"#DIV/0!"}},{"$error":"#DIV/0!"},{"$error":"#DIV/0!"},{"$error":"#DIV/0!"},{"$error":"#DIV/0!"},{"$error":"#DIV/0!"},{"$error":"#DIV/0!"},{"$error":"#DIV/0!"},{"$error":"#DIV/0!"},{"$error":"#DIV/0!"},{"$error":"#DIV/0!"},{"$error":"#DIV/0!"},{"$error":"#DIV/0!"},{"$error":"#DIV/0!"},{"$error":"#DIV/0!"},{"$error":"#DIV/0!"},{"$error":"#DIV/0!"},{"$error":"#DIV/0!"},1]
[null,{"$f":"title446","v":"Operating Year"},null,{"$f":"title464","v":"Appraisal"},1,2,3,4,5,6,7,8,9,10,11,12,13,14,15,16,17,18,19,20,1]
[null,{"$f":"title490","v":"Cumulative value of Net Profit"},null,{"$f":"D86","v":{"$error":"#DIV/0!"}},{"$f":"D89+(E86)","v":{"$error":"#DIV/0!"}},{"$f":"E89+(F86)","v":{"$error":"#DIV/0!"}},{"$error":"#DIV/0!"},{"$error":"#DIV/0!"},{"$error":"#DIV/0!"},{"$error":"#DIV/0!"},{"$error":"#DIV/0!"},{"$error":"#DIV/0!"},{"$error":"#DIV/0!"},{"$error":"#DIV/0!"},{"$error":"#DIV/0!"},{"$error":"#DIV/0!"},{"$error":"#DIV/0!"},{"$error":"#DIV/0!"},{"$error":"#DIV/0!"},{"$error":"#DIV/0!"},{"$error":"#DIV/0!"},{"$error":"#DIV/0!"},{"$error":"#DIV/0!"},{"$error":"#DIV/0!"},1]
[null,null,null,null,null,null,null,null,null,null,null,null,null,null,null,null,null,null,null,null,null,null,null,null,1]
[null,{"$f":"title491","v":"Financial Analysis Result"},null,null,null,null,null,null,null,null,null,null,null,null,null,null,null,null,null,null,null,null,null,null,1]
[null,null,null,null,null,null,null,null,null,null,null,null,null,null,null,null,null,null,null,null,null,null,null,null,1]
[null,{"$f":"title493","v":"Net Present Value (NPV) (USD)"},null,{"$f":"NPV(D60,E86:AA86)+D86","v":{"$error":"#DIV/0!"}},null,null,null,null,null,null,null,null,null,null,null,null,null,null,null,null,null,null,null,null,1]
[null,{"$f":"title494","v":"Internal Rate of Return (IRR) (%) - without loan"},null,{"$f":"IF(D93<0,title492,IRR(D87:AA87,0.001))","v":{"$error":"#DIV/0!"}},null,null,null,null,null,null,null,null,null,null,null,null,null,null,null,null,null,null,null,null,1]
[null,{"$f":"title495","v":"Internal Rate of Return (IRR) (%) - with loan"},null,{"$f":"IF(D94<0,title492,IRR(D86:AA86,0.001))","v":{"$error":"#DIV/0!"}},null,null,null,null,null,null,null,null,null,null,null,null,null,null,null,null,null,null,null,null,1]
[null,null,null,null,null,null,null,null,null,null,null,null,null,null,null,null,null,null,null,null,null,null,null,null,1]
[null,null,null,null,null,null,null,null,null,null,null,null,null,null,null,null,null,null,null,null,null,null,null,null,1]

{"sheet":"PRICE_FS1_PS2","index":31,"n_rows":178,"n_cols":39,"rows_kept":178,"cut":false,"hidden":true,"merged":[[40,8,40,9],[2,2,2,9],[5,2,5,3],[5,4,5,6],[7,2,10,9],[14,6,14,7],[15,2,15,3],[15,6,15,7],[30,3,30,7],[33,4,34,4],[33,5,34,5],[33,6,34,9],[34,2,34,3],[64,9,66,9],[86,3,86,7],[41,8,41,9],[57,3,57,7],[61,4,61,5],[61,6,62,6],[62,4,62,5],[64,2,64,3],[64,4,64,5],[64,6,66,6],[64,7,66,7],[64,8,66,8]]}
[39,88]
[]
[null,null,{"$f":"+title324&UPPER(INDIRECT(\"'Data entry needs'!$d$\"&$A$1)&\"-\"&INDIRECT(\"'Data entry needs'!$e$\"&$A$1))","v":"COLLECTION COSTS CALCULATOR FOR PLEASE SELECT-PLEASE SELECT"}]
[]
[]
[null,null,{"$f":"title193","v":"Use white cells to input data"},null,{"$f":"title194","v":"Grey cells are used for calculations"}]
[]
[null,null,{"$f":"title325&INDIRECT(\"'Data entry needs'!$d$\"&$A$1)&title326","v":"No collection method is required. It is assumed that Please Select are already collected. Then, transportation cost and/or market price should be considered."}]
[]
[]
[]
[]
[null,null,{"$f":"title327","v":"Collection Method 1 - Biomass spread in the field"}]
[]
[null,null,{"$f":"title328","v":"Collecting method"},null,{"$f":"title329","v":"Biomass Yield"},null,{"$f":"title110","v":"Feedstock Available (t/year)"},null,{"$f":"title330","v":"Collection days"}]
[null,null,"Mechanized",null,null,"t/ha",{"$f":"INDIRECT(\"'Data entry needs'!$F$\"&$A$1)","v":0},null,{"$f":"'Data entry needs'!L100-INDIRECT(\"Planner_pS2!$AN$\"&$B$1)*21","v":-252}]
[]
[null,null,{"$f":"title331","v":"Biomass Collection definition"}]
[]
[null,null,{"$f":"title332","v":"Biomass Price Definition"},null,null,null,null,null,null,null,null,null,null,null,null,null,null,null,null,null,null,{"$f":"title405","v":"Collection method"},null,{"$f":"title382","v":"Mechanized"},{"$f":"title380","v":"Number of skilled workers"},{"$f":"title409","v":"person-hour/ha"}]
[null,null,{"$f":"title333","v":"Labour cost"},{"$f":"title270","v":"Quantity"},{"$f":"title27","v":"Unit"},{"$f":"title270","v":"Quantity"},null,{"$f":"title27","v":"Unit"},"Total",{"$f":"title27","v":"Unit"},null,null,null,null,null,null,null,null,null,null,null,{"$f":"$C$16","v":"Mechanized"},null,{"$f":"title382&2","v":"Mechanized2"},{"$f":"title336","v":"Skilled labour wage"},{"$f":"title128","v":"USD/person-hour"}]
[null,null,{"$f":"IFERROR(VLOOKUP($V$21&$W21,$X$20:$Z$31,2,FALSE),\"\")","v":"Number of skilled workers"},null,{"$f":"IFERROR(VLOOKUP($V$21&$W21,$X$20:$Z$31,3,FALSE),\"\")","v":"person-hour/ha"},{"$f":"IFERROR(VLOOKUP($V$21&$W23,$X$20:$Z$31,2,FALSE),\"\")","v":"Skilled labour wage"},{"$f":"IF(F22=\"\",\"\",IF(F22=title335,'Data entry needs'!$L$96,IF(F22=title336,'Data entry needs'!F96)))","v":0},{"$f":"IFERROR(VLOOKUP($V$21&$W23,$X$20:$Z$31,3,FALSE),\"\")","v":"USD/person-hour"},{"$f":"IFERROR(G22*D22*(G16/E16)*('Data entry needs'!$L$100/$I$16),0)","v":0},{"$f":"IF(C22=\"\",\"\",title319)","v":"USD/year"},null,null,null,null,null,null,null,null,null,null,null,null,1,{"$f":"title382&4","v":"Mechanized4"},{"$f":"title407","v":"Average fuel economy"},"l/h"]
[null,null,{"$f":"IFERROR(VLOOKUP($V$21&$W22,$X$20:$Z$31,2,FALSE),\"\")","v":""},null,{"$f":"IFERROR(VLOOKUP($V$21&$W22,$X$20:$Z$31,3,FALSE),\"\")","v":""},{"$f":"IFERROR(VLOOKUP($V$21&$W24,$X$20:$Z$31,2,FALSE),\"\")","v":""},{"$f":"IF(F23=\"\",\"\",'Data entry needs'!L96)","v":""},{"$f":"title128","v":"USD/person-hour"},{"$f":"IFERROR(G23*D23*(G16/E16)*('Data entry needs'!$L$100/$I$16),0)","v":0},{"$f":"IF(C23=\"\",\"\",title319)","v":""},null,null,null,null,null,null,null,null,null,null,null,{"$f":"VLOOKUP($V$21,$T$29:$U$31,2,FALSE)","v":1},2,{"$f":"title382&5","v":"Mechanized5"},{"$f":"title408","v":"Fuel price"},"USD/l"]
[null,null,null,{"$f":"+IF(AND(C22=\"\",C23=\"\"),0,IF(C22=\"\",D23,IF(C23=\"\",D22,D22+D23)))","v":0},null,null,null,{"$f":"title269","v":"Subtotal"},{"$f":"+SUMIF($I$22:$I$23,\">0\")","v":0},{"$f":"title319","v":"USD/year"},null,null,null,null,null,null,null,null,null,null,null,null,3,{"$f":"title378","v":"Semi-mechanized"},{"$f":"title380","v":"Number of skilled workers"},{"$f":"title409","v":"person-hour/ha"}]
[null,null,{"$f":"title334","v":"Machinery & operating cost"},{"$f":"title270","v":"Quantity"},{"$f":"title27","v":"Unit"},{"$f":"title270","v":"Quantity"},null,{"$f":"title27","v":"Unit"},"Total",{"$f":"title27","v":"Unit"},null,null,null,null,null,null,null,null,null,null,null,null,4,{"$f":"title378&1","v":"Semi-mechanized1"},{"$f":"title379","v":"Number of unskilled workers"},{"$f":"title409","v":"person-hour/ha"}]
[null,null,{"$f":"IFERROR(VLOOKUP($V$21&$W25,$X$20:$Z$31,2,FALSE),\"\")","v":"Average fuel economy"},null,{"$f":"IFERROR(VLOOKUP($V$21&$W25,$X$20:$Z$31,3,FALSE),\"\")","v":"l/h"},{"$f":"IFERROR(VLOOKUP($V$21&$W26,$X$20:$Z$31,2,FALSE),\"\")","v":"Fuel price"},{"$f":"IF(F26=\"\",\"\",'Data entry needs'!$F$100)","v":0},{"$f":"+IFERROR(VLOOKUP($V$21&$W26,$X$20:$Z$31,3,FALSE),\"\")","v":"USD/l"},{"$f":"+IFERROR(D26*G26*IF($C$16=title337,0,$D$22*G16/E16)*('Data entry needs'!$L$100/$I$16),\"\")","v":""},{"$f":"IF(C26=\"\",\"\",title319)","v":"USD/year"},null,null,null,null,null,null,null,null,null,null,null,null,5,{"$f":"title378&2","v":"Semi-mechanized2"},{"$f":"title336","v":"Skilled labour wage"},{"$f":"title128","v":"USD/person-hour"}]
[null,null,null,null,null,null,null,{"$f":"IF(C26=\"\",\"\",title269)","v":"Subtotal"},{"$f":"+I26","v":""},{"$f":"IF(C26=\"\",\"\",title319)","v":"USD/year"},null,null,null,null,null,null,null,null,null,null,null,null,null,{"$f":"title378&3","v":"Semi-mechanized3"},{"$f":"title335","v":"Unskilled labour wage"},{"$f":"title128","v":"USD/person-hour"}]
[null,null,null,null,null,null,null,{"$f":"IF(C26=\"\",\"\",\"Total\")","v":"Total"},{"$f":"IFERROR(I24+I27,I24)","v":0},{"$f":"title319","v":"USD/year"},null,null,null,null,null,null,null,null,null,{"$f":"title405","v":"Collection method"},null,null,null,{"$f":"title378&4","v":"Semi-mechanized4"},{"$f":"title407","v":"Average fuel economy"},"l/h"]
[null,null,null,null,null,null,null,null,null,null,null,null,null,null,null,null,null,null,null,{"$f":"title382","v":"Mechanized"},1,null,null,{"$f":"title378&5","v":"Semi-mechanized5"},{"$f":"title408","v":"Fuel price"},"USD/l"]
[null,null,null,null,null,null,null,null,"",null,null,null,null,null,null,null,null,null,null,{"$f":"title378","v":"Semi-mechanized"},2,null,null,{"$f":"title337","v":"Manual"},{"$f":"title379","v":"Number of unskilled workers"},{"$f":"title409","v":"person-hour/ha"}]
[null,null,null,{"$f":"title338&INDIRECT(\"'Data entry needs'!$d$\"&$A$1)&\"-\"&INDIRECT(\"'Data entry needs'!$e$\"&$A$1)","v":"Collection cost of Please Select-Please Select"},null,null,null,null,{"$f":"(I24+I28)/$G$16","v":{"$error":"#DIV/0!"}},"USD/t",null,null,null,null,null,null,null,null,null,{"$f":"title337","v":"Manual"},3,null,null,{"$f":"title337&2","v":"Manual2"},{"$f":"title335","v":"Unskilled labour wage"},{"$f":"title128","v":"USD/person-hour"}]
[]
[]
[null,null,null,null,true,null,{"$f":"IF($E$34,title340,title341)","v":"Use this method for feedstock direclty collected in stables, or procesing facilities (e.g. dairy industries)"}]
[null,null,{"$f":"title339","v":"Collection Methods Available"}]
[]
[null,null,{"$f":"title342","v":"Collection Method 2"}]
[]
[null,null,{"$f":"title328","v":"Collecting method"},{"$f":"title343","v":"Transportation requirements"},null,null,null,null,{"$f":"title346","v":"Data Source"}]
[]
[null,null,"Please Select",{"$f":"title110","v":"Feedstock Available (t/year)"},{"$f":"INDIRECT(\"'Data entry needs'!$F$\"&$A$1)","v":0},{"$f":"title344","v":"Initial ts in residue (%)"},null,{"$f":"INDIRECT(\"'Data entry needs'!$h$\"&$A$1)","v":0},true]
[null,null,null,{"$f":"title134","v":"Operating days per year"},{"$f":"'Data entry needs'!L100-INDIRECT(\"Planner_pS2!$AN$\"&$B$1)*21","v":-252},{"$f":"title345&$C$41","v":"ts (%) allowed by Please Select"},null,{"$f":"Q45","v":{"$error":"#N/A"}}]
[]
[null,null,{"$f":"title347","v":"Collection Cost Definition"}]
[null,null,{"$f":"title348","v":"Operation Cost"},{"$f":"title270","v":"Quantity"},{"$f":"title27","v":"Unit"},{"$f":"title270","v":"Quantity"},{"$f":"title27","v":"Unit"},{"$f":"title267","v":"Unit Price"},"Total",null,null,null,null,null,null,"ts (%) transported",{"$f":"VLOOKUP($C$41,$P$149:$V$155,7,FALSE)","v":{"$error":"#N/A"}}]
[null,null,{"$f":"title35","v":"Electricity"},{"$f":"Q46","v":13.333333333333334},"kWh/t res",{"$f":"D46*E41","v":0},{"$f":"title304","v":"kWh/year"},{"$f":"'Data entry needs'!$L$92","v":0},{"$f":"F46*H46","v":0},{"$f":"title319","v":"USD/year"},null,null,null,null,null,{"$f":"title35","v":"Electricity"},{"$f":"$Q$160","v":13.333333333333334}]
[null,null,{"$f":"title170","v":"Diesel"},{"$f":"Q47","v":{"$error":"#N/A"}},{"$f":"title574","v":"l diesel/t res"},{"$f":"D47*$E$41","v":{"$error":"#N/A"}},{"$f":"title350","v":"Liter Diesel/year"},{"$f":"'Data entry needs'!$F$100","v":0},{"$f":"F47*H47","v":{"$error":"#N/A"}},{"$f":"title319","v":"USD/year"},null,null,null,null,null,{"$f":"title170","v":"Diesel"},{"$f":"VLOOKUP($C$41,$P$149:$S$155,2,FALSE)","v":{"$error":"#N/A"}}]
[null,null,{"$f":"title244","v":"Water Make-up "},{"$f":"Q48","v":0.15},{"$f":"title353","v":"Liter water/t res"},{"$f":"IF(D48=0,0,E41*(H41/H42)*(1-D48))","v":{"$error":"#N/A"}},{"$f":"title351","v":"Liter water/year"},{"$f":"'Data entry needs'!$F$92","v":0},{"$f":"F48*H48*D48","v":{"$error":"#N/A"}},{"$f":"title319","v":"USD/year"},null,null,null,null,null,{"$f":"title244","v":"Water Make-up "},0.15]
[null,null,{"$f":"title349","v":"Unskilled Workers"},{"$f":"Q49","v":{"$error":"#N/A"}},{"$f":"title354","v":"person-day/t res"},{"$f":"ROUNDUP($D$49*E41*('Data entry needs'!$L$100/PRICE_FS1_PS2!E42)/'Data entry needs'!$L$99,0)","v":{"$error":"#N/A"}},{"$f":"title352","v":"person-hour"},{"$f":"'Data entry needs'!$L$96","v":0},{"$f":"F49*H49","v":{"$error":"#N/A"}},{"$f":"title319","v":"USD/year"},null,null,null,null,null,{"$f":"title127","v":"Unskilled worker"},{"$f":"VLOOKUP($C$41,$P$149:$S$155,3,FALSE)","v":{"$error":"#N/A"}}]
[null,null,null,{"$f":"Q47","v":{"$error":"#N/A"}},null,null,null,{"$f":"title269","v":"Subtotal"},{"$f":"+SUMIF($I$46:$I$49,\">0\")","v":0},{"$f":"title319","v":"USD/year"}]
[]
[null,null,{"$f":"title355","v":"Capital Investment"},{"$f":"title270","v":"Quantity"},{"$f":"title27","v":"Unit"}]
[null,null,{"$f":"$C$41&title356","v":"Please Select and equipment"},{"$f":"Q53","v":{"$error":"#N/A"}},{"$f":"VLOOKUP($C$41,$P$149:$T$155,5,FALSE)","v":{"$error":"#N/A"}},null,null,null,{"$f":"D53*(E41*10)/20","v":{"$error":"#N/A"}},{"$f":"title319","v":"USD/year"},null,null,null,null,null,{"$f":"$C$41&title356","v":"Please Select and equipment"},{"$f":"VLOOKUP($C$41,$P$149:$S$155,4,FALSE)","v":{"$error":"#N/A"}}]
[null,null,{"$f":"title357","v":"Dewatering"},{"$f":"Q54","v":7},"USD/t res",null,null,null,{"$f":"D54*$E$41/20","v":0},{"$f":"title319","v":"USD/year"},null,null,null,null,null,{"$f":"title357","v":"Dewatering"},{"$f":"$Q$158","v":7}]
[null,null,{"$f":"title358","v":"Operation and Mainteinance"},{"$f":"Q55","v":0.15},null,null,null,null,{"$f":"SUM(I53:I54)*$D$55","v":{"$error":"#N/A"}},{"$f":"title319","v":"USD/year"},null,null,null,null,null,{"$f":"title358","v":"Operation and Mainteinance"},0.15]
[null,null,null,{"$f":"+IF(AND(C54=\"\",C55=\"\"),0,IF(C54=\"\",D55,IF(C55=\"\",D54,D54+D55)))","v":7.15},null,null,null,{"$f":"title269","v":"Subtotal"},{"$f":"+SUMIF(I53:I55,\">0\")","v":0},{"$f":"title319","v":"USD/year"}]
[]
[null,null,null,{"$f":"title359","v":"Cost for Collection and transfer to storage tank"},null,null,null,null,{"$f":"SUM(I50+I56)/E41","v":{"$error":"#DIV/0!"}},"USD/t"]
[]
[null,null,{"$f":"title360","v":"Collection Method 3 - Feedstock collected from different farms"}]
[]
[null,null,{"$f":"title361","v":"Source of biomass"},null,{"$f":"title405","v":"Collection method"},null,{"$f":"title346","v":"Data Source"},false]
[null,null,{"$f":"title362","v":"Transfer from individual farms"},null,"Mechanized"]
[]
[null,null,{"$f":"title363","v":"Transportation method"},null,"Tanker Truck Transfer",null,{"$f":"title372","v":"Number Of Farms Supplying Feedstock"},{"$f":"title373","v":"Average distance to collection point (m)"},{"$f":"title374","v":"Collection Period (days)"},{"$f":"IF($E$65=title364,title375,title376)&title377","v":"Number of Tanks required"}]
[]
[null,null,{"$f":"IF($E$65=title364,title365,title366)","v":"Tranport Capacity (liter)"},null,{"$f":"title370","v":"Residue Quanitiy (t/year)"},{"$f":"INDIRECT(\"'Data entry needs'!$F$\"&$A$1)","v":0},null,null,null,null,null,null,null,null,null,{"$f":"IF($E$60=title364,title365,title366)","v":"Pipe Diameter (in)"},{"$f":"VLOOKUP($E$65,$Y$147:$AE$149,3,FALSE)","v":27600}]
[null,null,{"$f":"IF($E$65=title364,title367,title368)","v":"Engine Power (HP)"},null,{"$f":"title371","v":"Residue Density (kg/m3)"},null,null,null,{"$f":"'Data entry needs'!L100-INDIRECT(\"Planner_pS2!$AN$\"&$B$1)*21","v":-252},{"$f":"IFERROR(ROUNDUP($F$67*1000*1000/(960*$D$69*'Data entry needs'!$L$99)/$I$68,0),0)","v":0},null,null,null,null,null,{"$f":"IF($E$60=title364,title367,title368)","v":"Motor Power (HP)"},{"$f":"VLOOKUP($E$65,$Y$147:$AE$149,4,FALSE)","v":200}]
[null,null,{"$f":"title369","v":"Transfer Rate (l/h)"},null,null,null,null,null,null,null,null,null,null,null,null,{"$f":"title369","v":"Transfer Rate (l/h)"},{"$f":"VLOOKUP($E$65,$Y$147:$AE$149,5,FALSE)","v":27221.917808219176}]
[]
[null,null,null,{"$f":"+IF(OR($E$63=title337,$E$63=title378),FALSE,TRUE)","v":true},{"$f":"+IF($E$63=title337,TRUE,FALSE)","v":false}]
[null,null,{"$f":"title332","v":"Biomass Price Definition"},null,null,null,null,null,null,null,null,null,null,null,null,{"$f":"title371","v":"Residue Density (kg/m3)"},{"$f":"IFERROR(VLOOKUP(INDIRECT(\"'Data entry needs'!$e$\"&$A$1),PRICE_FS1_PS2!$Y$152:$Z$156,2,FALSE),1000)","v":1000}]
[null,null,{"$f":"title333","v":"Labour cost"},{"$f":"title270","v":"Quantity"},{"$f":"title27","v":"Unit"},{"$f":"title270","v":"Quantity"},null,{"$f":"title27","v":"Unit"},"Total",{"$f":"title27","v":"Unit"}]
[null,null,{"$f":"IF(OR($E$63=title337,$E$63=title378),title379,\"\")","v":""},null,{"$f":"IF(OR($E$63=title337,$E$63=title378),title381,\"\")","v":""},{"$f":"IF(OR($E$63=title337,$E$63=title378),title335,\"\")","v":""},{"$f":"IF(OR($E$63=title337,$E$63=title378),'Data entry needs'!$L$96,\"\")","v":""},{"$f":"IF(OR($E$63=title337,$E$63=title378),title128,\"\")","v":""},{"$f":"IFERROR(IF(OR($E$63=title337,$E$63=title378),$F$67*D74*$G$74,\"\"),0)","v":""},{"$f":"IF(OR($E$63=title337,$E$63=title378),title319,\"\")","v":""}]
[null,null,{"$f":"IF($E$63=title337,\"\",title380)","v":"Number of skilled workers"},null,{"$f":"IF($E$63=title337,\"\",title381)","v":"person-hour/t"},{"$f":"IF($E$63=title337,\"\",title336)","v":"Skilled labour wage"},{"$f":"IF($E$63=title337,\"\",'Data entry needs'!$F$96)","v":0},{"$f":"IF($E$63=title337,\"\",title128)","v":"USD/person-hour"},{"$f":"IFERROR(IF($E$63=title337,\"\",D75*G75*$F$67),0)","v":0},{"$f":"IF($E$63=title337,\"\",title319)","v":"USD/year"}]
[null,null,null,{"$f":"+IF(AND(C74=\"\",C75=\"\"),0,IF(C74=\"\",D75,IF(C75=\"\",D74,D74+D75)))","v":0},null,null,null,{"$f":"title269","v":"Subtotal"},{"$f":"+SUMIF($I$74:$I$75,\">0\")","v":0},{"$f":"title319","v":"USD/year"}]
[null,null,{"$f":"title383","v":"Collection Machinery"},{"$f":"title270","v":"Quantity"},{"$f":"title27","v":"Unit"},{"$f":"title270","v":"Quantity"},null,{"$f":"title27","v":"Unit"},"Total",{"$f":"title27","v":"Unit"}]
[null,null,{"$f":"IF(OR($E$63=title382,$E$63=title378),title384,\"\")","v":"Collection Diesel Consumption"},null,{"$f":"IF(OR($E$63=title382,$E$63=title378),title575,\"\")","v":"l diesel/h"},{"$f":"IF(OR($E$63=title382,$E$63=title378),title389,\"\")","v":"Diesel Cost"},{"$f":"IF(OR($E$63=title382,$E$63=title378),'Data entry needs'!F$100,\"\")","v":0},{"$f":"IF(OR($E$63=title382,$E$63=title378),title576,\"\")","v":"USD/l diesel"},{"$f":"IFERROR(IF(OR($E$63=title382,$E$63=title378),D78*G78*D75*F67,\"\"),0)","v":0},{"$f":"title319","v":"USD/year"}]
[null,null,{"$f":"IF($E$65=title364,title385,title386)","v":"Truck Diesel Consumption"},null,{"$f":"IF($E$65=title364,title387,title388)","v":"l diesel/day"},{"$f":"IF($E$65=title364,title389,title390)","v":"Diesel Cost"},{"$f":"IF($E$65=title364,'Data entry needs'!F$100,'Data entry needs'!$L$92)","v":0},{"$f":"IF($E$65=title364,title576,\"USD/kWh\")","v":"USD/l diesel"},{"$f":"IFERROR(D79*G79*$I$68*$J$68,0)","v":0},{"$f":"title319","v":"USD/year"},null,null,null,null,null,{"$f":"IF($E$60=title364,title385,title386)","v":"Pump Electricity Consumption"},{"$f":"VLOOKUP($E$65,$Y$147:$AE$149,7,FALSE)","v":154}]
[null,null,null,null,null,null,null,{"$f":"title269","v":"Subtotal"},{"$f":"+SUMIF($I$78:$I$79,\">0\")","v":0},{"$f":"title319","v":"USD/year"}]
[null,null,{"$f":"title391","v":"Equipment"},{"$f":"title270","v":"Quantity"},{"$f":"title27","v":"Unit"},{"$f":"title270","v":"Quantity"},null,{"$f":"title27","v":"Unit"},"Total",{"$f":"title27","v":"Unit"}]
[null,null,{"$f":"IF($E$65=title364,title392,title393)","v":"Liquid Tanker Truck"},{"$f":"IF($E$65=title364,$J$68,$G$68*$H$68*1.2)","v":0},{"$f":"IF($E$65=title364,title398,\"m\")","v":"tank(s)"},{"$f":"IF($E$65=title364,title399,title400)","v":"Cost per Tank"},{"$f":"VLOOKUP($E$65,$Y$147:$AF$149,8,FALSE)/10","v":7900},{"$f":"IF($E$65=title364,title402,title403)","v":"USD/tank/year"},{"$f":"IFERROR(D82*G82,0)","v":0},{"$f":"title319","v":"USD/year"}]
[null,null,{"$f":"IF($E$65=title364,title394&$D$68&title395,title396&$D$68&title397)","v":"Semi-tractor 185  HP"},null,"USD",{"$f":"title401","v":"Depreciation Period"},null,{"$f":"title164","v":"year"},{"$f":"IFERROR(D83*$J$68/G83,0)","v":0},{"$f":"title319","v":"USD/year"},null,null,null,null,null,{"$f":"IF($E$60=title364,title406,title396&$D$63&title397)","v":"Pump  HP with agitator"},{"$f":"VLOOKUP($E$65,$Y$147:$AH$149,10,FALSE)","v":148000}]
[null,null,{"$f":"title358","v":"Operation and Mainteinance"},null,null,null,null,null,{"$f":"IFERROR(SUM(I82:I83)*$D$84,0)","v":0},{"$f":"title319","v":"USD/year"},null,null,null,null,null,{"$f":"title358","v":"Operation and Mainteinance"},0.15]
[null,null,null,null,null,null,null,{"$f":"title269","v":"Subtotal"},{"$f":"I82","v":0},{"$f":"title319","v":"USD/year"},null,null,null,null,null,{"$f":"title401","v":"Depreciation Period"},15]
[]
[null,null,null,{"$f":"title404","v":"Cost for Collection and transfer to central collection point"},null,null,null,null,{"$f":"(I85+I80+I76)/$F$67","v":{"$error":"#DIV/0!"}},"USD/t"]
[]
[]
[]
[]
[]
[]
[]
[]
[]
[]
[]
[]
[]
[]
[]
[]
[]
[]
[]
[]
[]
[]
[]
[]
[]
[]
[]
[]
[]
[]
[]
[null,null,null,null,null,null,null,null,null,null,null,null,null,null,null,{"$f":"title410","v":"Sources of biomass"}]
[null,null,null,null,null,null,null,null,null,null,null,null,null,null,null,{"$f":"title411","v":"Biomass spread in the field"}]
[null,null,null,null,null,null,null,null,null,null,null,null,null,null,null,{"$f":"title412","v":"Biomass collected from field"}]
[null,null,null,null,null,null,null,null,null,null,null,null,null,null,null,{"$f":"title413","v":"Biomass from food processing plant"}]
[]
[]
[]
[]
[null,null,null,null,null,null,null,null,null,null,null,null,null,null,null,{"$f":"title405","v":"Collection method"}]
[null,null,null,null,null,null,null,null,null,null,null,null,null,null,null,{"$f":"title382","v":"Mechanized"}]
[null,null,null,null,null,null,null,null,null,null,null,null,null,null,null,{"$f":"title378","v":"Semi-mechanized"}]
[null,null,null,null,null,null,null,null,null,null,null,null,null,null,null,{"$f":"title337","v":"Manual"}]
[]
[]
[]
[]
[]
[]
[]
[]
[]
[]
[]
[]
[]
[]
[null,null,null,null,null,null,null,null,null,null,null,null,null,null,null,"Dairy maNURE",40.753799999999998,"Manure (kg/head/day)"]
[null,null,null,null,null,null,null,null,null,null,null,null,null,null,null,null,"Energy Use Cost","Labor and Mainteinance",null,null,null,"ts (%) transported","Dewateing",null,null,null,{"$f":"title440","v":"Capacity"},{"$f":"title441","v":"Engine/motor (hp)"},{"$f":"title369","v":"Transfer Rate (l/h)"},{"$f":"title442","v":"Transfer time (m/h)"},{"$f":"title443","v":"Energy Use  (kw)"},{"$f":"title444","v":"Add equipment"}]
[null,null,null,null,null,null,null,null,null,null,null,null,null,null,null,{"$f":"title405","v":"Collection method"},"liters diesel/t residue","workers*day/t residue","Capital cost","Capital cost","Capital cost",null,"Final solids ts (%)",null,{"$f":"title364","v":"Tanker Truck Transfer"},null,27600,200,27221.917808219176,609.6,154,79000,"USD",{"$f":"148000","v":148000},2010,{"$f":"title406","v":"Semi-tractor 185 HP"},null,null,"l/working day"]
[null,null,null,null,null,null,null,null,null,null,null,null,null,null,null,{"$f":"title74","v":"Please Select"},null,null,null,null,null,null,null,null,{"$f":"title432","v":"High Volume Pipeline"},null,"6´´ PVC",150,3028,1016,215,{"$f":"37/3.048","v":12.139107611548557},"USD/m",37075,2003]
[null,null,null,null,null,null,null,null,null,null,null,null,null,null,null,{"$f":"title414","v":"Alley Scrapers"},0.14330809896079807,0.42057427773606393,{"$f":"(AVERAGE(35,45)*$B$52+10000+4000)/3785.41178","v":3.698408736922143},{"$f":"title421","v":"USD/liter mixture"},2009,0.08,0.5,null,{"$f":"title433","v":"Low Volume Pipeline"},null,"4´´ PVC",7.5,378,127,86,{"$f":"12.4/3.048","v":4.0682414698162734},"USD/m",7675,2003]
[null,null,null,null,null,null,null,null,null,null,null,null,null,null,null,{"$f":"title415","v":"Flush System"},0.4093569308278352,0.10526625737967994,{"$f":"(4950.08+(16+9.8)*$B$52)/3785.41178","v":1.3076727943188258},"USD/liter mixture",2014,{"$f":"AVERAGE(1%,3%)","v":0.02},0.5]
[null,null,null,null,null,null,null,null,null,null,null,null,null,null,null,{"$f":"title416","v":"Vacum Scraper"},3.190595592141102,1.9769935564290937,10,"USD/liter mixture",2010,0.18,0.5,null,null,{"$f":"title434","v":"Density (Kg/m3)"}]
[null,null,null,null,null,null,null,null,null,null,null,null,null,null,null,{"$f":"title417","v":"Skid-loader"},0.75612714559717353,1.2830705357537211,{"$f":"(142.6*0.914+58.5*0.084+50.75*0.997)/$Q$145","v":4.5602655457895951},"USD/liter mixture",2010,{"$f":"AVERAGE(8%,18%)","v":0.13},0.5,null,{"$f":"title435","v":"Buffalo"},960]
[null,null,null,null,null,null,null,null,null,null,null,null,null,null,null,{"$f":"title418","v":"Cross gutter Scraper"},1.5259658685640533E-2,2.6500596263415929E-2,5,"USD/liter mixture",2010,0.08,0.5,null,{"$f":"title436","v":"Cattle"},960]
[null,null,null,null,null,null,null,null,null,null,null,null,null,null,null,{"$f":"title419","v":"Cross Gutter Auger"},0.20478904265077005,2.6255220372088005E-2,{"$f":"2200*30/2378/10","v":2.7754415475189234},"USD/liter mixture",2010,0.08,0.5,null,{"$f":"title437","v":"Dairy Cattle"},994]
[null,null,null,null,null,null,null,null,null,null,null,null,null,null,null,{"$f":"title420","v":"Flush Flume"},0.13645231027594507,2.6255220372088005E-2,{"$f":"(4950.08+(16+9.8)*$B$52)*1.5/3785.41178","v":1.9615091914782385},"USD/liter mixture",2010,{"$f":"AVERAGE(4%,9%)","v":6.5000000000000002E-2},0.5,null,{"$f":"title438","v":"Poultry"},961.11]
[null,null,null,null,null,null,null,null,null,null,null,null,null,null,null,null,null,null,null,null,null,null,null,null,{"$f":"title439","v":"Swine"},1140.9000000000001]
[null,null,null,null,null,null,null,null,null,null,null,null,null,null,null,{"$f":"title357","v":"Dewatering"},"Screw Press ",{"$f":"PROPER(title164)","v":"Year"}]
[null,null,null,null,null,null,null,null,null,null,null,null,null,null,null,{"$f":"title422","v":"Capital Cost (USD/t residue)"},{"$f":"AVERAGE(0.2,0.5)*1000000*0.12/AVERAGE(4000,8000)","v":7},2002]
[null,null,null,null,null,null,null,null,null,null,null,null,null,null,null,{"$f":"title423","v":"Operation (worker/t residue)"},{"$f":"AVERAGE(20,40)*1000/AVERAGE(4000,8000)/(300*8*160)","v":1.3020833333333334E-5}]
[null,null,null,null,null,null,null,null,null,null,null,null,null,null,null,{"$f":"title424","v":"Energy Demand kWh/t residue"},{"$f":"AVERAGE(5,15)*8000/AVERAGE(4000,8000)","v":13.333333333333334},2002]
[]
[]
[]
[]
[null,null,null,null,null,null,null,null,null,null,null,null,null,null,null,{"$f":"title74","v":"Please Select"},{"$f":"title405","v":"Collection method"},"Show","Section to Show",{"$f":"VLOOKUP(INDIRECT(\"'Data entry needs'!$d$\"&$A$1),$P$166:$R$178,3,FALSE)","v":{"$error":"#N/A"}}]
[null,null,null,null,null,null,null,null,null,null,null,null,null,null,null,{"$f":"title184","v":"Biodiesel/Oilseed Ind."},{"$f":"title425","v":"No collection neeeded"},1,{"$f":"title429&\" 0\"","v":"Option 0"},0,0]
[null,null,null,null,null,null,null,null,null,null,null,null,null,null,null,{"$f":"title85","v":"Crop Residues"},{"$f":"title426","v":"Method 1"},2,{"$f":"title429&\" 1\"","v":"Option 1"},{"$f":"$I$31","v":{"$error":"#DIV/0!"}},{"$f":"$D$24/E16","v":{"$error":"#DIV/0!"}},{"$f":"title381","v":"person-hour/t"}]
[null,null,null,null,null,null,null,null,null,null,null,null,null,null,null,{"$f":"title185","v":"Dairy-milk ind."},{"$f":"title427","v":"Method 2, Method 3"},4,{"$f":"title429&\" 2\"","v":"Option 2"},{"$f":"$I$58","v":{"$error":"#DIV/0!"}},{"$f":"F49/E41","v":{"$error":"#N/A"}},{"$f":"title381","v":"person-hour/t"}]
[null,null,null,null,null,null,null,null,null,null,null,null,null,null,null,{"$f":"title120","v":"Energy Crops"},{"$f":"title425","v":"No collection neeeded"},1,{"$f":"title429&\" 3\"","v":"Option 3"},{"$f":"$I$87","v":{"$error":"#DIV/0!"}},{"$f":"D76","v":0},{"$f":"title381","v":"person-hour/t"}]
[null,null,null,null,null,null,null,null,null,null,null,null,null,null,null,{"$f":"title186","v":"Eth-Sugar-Starch Ind."},{"$f":"title425","v":"No collection neeeded"},1]
[null,null,null,null,null,null,null,null,null,null,null,null,null,null,null,{"$f":"title187","v":"Food Process. Res."},{"$f":"title425","v":"No collection neeeded"},1,{"$f":"title430","v":"Result"},{"$f":"IF($T$165=1,T166,IF($T$165=2,$T$167,IF($T$165=3,T168,IF(AND($T$165=4,$E$34),$T$168,$T$169))))","v":{"$error":"#N/A"}}]
[null,null,null,null,null,null,null,null,null,null,null,null,null,null,null,{"$f":"title188","v":"Grass"},{"$f":"title426","v":"Method 1"},2,{"$f":"title431","v":"Employees"},{"$f":"IF($T$165=1,U166,IF($T$165=2,$U$167,IF($T$165=3,U169,IF(AND($T$165=4,$E$34),$U$168,$U$169))))","v":{"$error":"#N/A"}},{"$f":"title381","v":"person-hour/t"}]
[null,null,null,null,null,null,null,null,null,null,null,null,null,null,null,{"$f":"title119","v":"Crops"},{"$f":"title425","v":"No collection neeeded"},1]
[null,null,null,null,null,null,null,null,null,null,null,null,null,null,null,{"$f":"title189","v":"Other Options"},{"$f":"title425","v":"No collection neeeded"},1]
[null,null,null,null,null,null,null,null,null,null,null,null,null,null,null,{"$f":"title190","v":"Slaughterhouses wastes"},{"$f":"title428","v":"Method 2"},3]
[null,null,null,null,null,null,null,null,null,null,null,null,null,null,null,{"$f":"title191","v":"Yeast-Alcoholic Bev."},{"$f":"title425","v":"No collection neeeded"},1]
[null,null,null,null,null,null,null,null,null,null,null,null,null,null,null,{"$f":"title84","v":"Manure"},{"$f":"title427","v":"Method 2, Method 3"},4]
[null,null,null,null,null,null,null,null,null,null,null,null,null,null,null,{"$f":"title192","v":"Wastewater"},{"$f":"title425","v":"No collection neeeded"},1]

{"sheet":"PRICE_FS2_PS2","index":32,"n_rows":178,"n_cols":39,"rows_kept":178,"cut":false,"hidden":true,"merged":[[40,8,40,9],[2,2,2,9],[5,2,5,3],[5,4,5,6],[7,2,10,9],[14,6,14,7],[15,2,15,3],[15,6,15,7],[30,3,30,7],[33,4,34,4],[33,5,34,5],[33,6,34,9],[34,2,34,3],[64,9,66,9],[86,3,86,7],[41,8,41,9],[57,3,57,7],[61,4,61,5],[61,6,62,6],[62,4,62,5],[64,2,64,3],[64,4,64,5],[64,6,66,6],[64,7,66,7],[64,8,66,8]]}
[{"$f":"+PRICE_FS1_PS2!A1+2","v":41},89]
[]
[null,null,{"$f":"+title324&UPPER(INDIRECT(\"'Data entry needs'!$d$\"&$A$1)&\"-\"&INDIRECT(\"'Data entry needs'!$e$\"&$A$1))","v":"COLLECTION COSTS CALCULATOR FOR PLEASE SELECT-PLEASE SELECT"}]
[]
[]
[null,null,{"$f":"title193","v":"Use white cells to input data"},null,{"$f":"title194","v":"Grey cells are used for calculations"}]
[]
[null,null,{"$f":"title325&INDIRECT(\"'Data entry needs'!$d$\"&$A$1)&title326","v":"No collection method is required. It is assumed that Please Select are already collected. Then, transportation cost and/or market price should be considered."}]
[]
[]
[]
[]
[null,null,{"$f":"title327","v":"Collection Method 1 - Biomass spread in the field"}]
[]
[null,null,{"$f":"title328","v":"Collecting method"},null,{"$f":"title329","v":"Biomass Yield"},null,{"$f":"title110","v":"Feedstock Available (t/year)"},null,{"$f":"title330","v":"Collection days"}]
[null,null,"Mechanized",null,null,"t/ha",{"$f":"INDIRECT(\"'Data entry needs'!$F$\"&$A$1)","v":0},null,{"$f":"'Data entry needs'!L100-INDIRECT(\"Planner_pS2!$AN$\"&$B$1)*21","v":-252}]
[]
[null,null,{"$f":"title331","v":"Biomass Collection definition"}]
[]
[null,null,{"$f":"title332","v":"Biomass Price Definition"},null,null,null,null,null,null,null,null,null,null,null,null,null,null,null,null,null,null,{"$f":"title405","v":"Collection method"},null,{"$f":"title382","v":"Mechanized"},{"$f":"title380","v":"Number of skilled workers"},{"$f":"title409","v":"person-hour/ha"}]
[null,null,{"$f":"title333","v":"Labour cost"},{"$f":"title270","v":"Quantity"},{"$f":"title27","v":"Unit"},{"$f":"title270","v":"Quantity"},null,{"$f":"title27","v":"Unit"},"Total",{"$f":"title27","v":"Unit"},null,null,null,null,null,null,null,null,null,null,null,{"$f":"$C$16","v":"Mechanized"},null,{"$f":"title382&2","v":"Mechanized2"},{"$f":"title336","v":"Skilled labour wage"},{"$f":"title128","v":"USD/person-hour"}]
[null,null,{"$f":"IFERROR(VLOOKUP($V$21&$W21,$X$20:$Z$31,2,FALSE),\"\")","v":"Number of skilled workers"},null,{"$f":"IFERROR(VLOOKUP($V$21&$W21,$X$20:$Z$31,3,FALSE),\"\")","v":"person-hour/ha"},{"$f":"IFERROR(VLOOKUP($V$21&$W23,$X$20:$Z$31,2,FALSE),\"\")","v":"Skilled labour wage"},{"$f":"IF(F22=\"\",\"\",IF(F22=title335,'Data entry needs'!$L$96,IF(F22=title336,'Data entry needs'!F96)))","v":0},{"$f":"IFERROR(VLOOKUP($V$21&$W23,$X$20:$Z$31,3,FALSE),\"\")","v":"USD/person-hour"},{"$f":"IFERROR(G22*D22*(G16/E16)*('Data entry needs'!$L$100/$I$16),0)","v":0},{"$f":"IF(C22=\"\",\"\",title319)","v":"USD/year"},null,null,null,null,null,null,null,null,null,null,null,null,1,{"$f":"title382&4","v":"Mechanized4"},{"$f":"title407","v":"Average fuel economy"},"l/h"]
[null,null,{"$f":"IFERROR(VLOOKUP($V$21&$W22,$X$20:$Z$31,2,FALSE),\"\")","v":""},null,{"$f":"IFERROR(VLOOKUP($V$21&$W22,$X$20:$Z$31,3,FALSE),\"\")","v":""},{"$f":"IFERROR(VLOOKUP($V$21&$W24,$X$20:$Z$31,2,FALSE),\"\")","v":""},{"$f":"IF(F23=\"\",\"\",'Data entry needs'!L96)","v":""},{"$f":"title128","v":"USD/person-hour"},{"$f":"IFERROR(G23*D23*(G16/E16)*('Data entry needs'!$L$100/$I$16),0)","v":0},{"$f":"IF(C23=\"\",\"\",title319)","v":""},null,null,null,null,null,null,null,null,null,null,null,{"$f":"VLOOKUP($V$21,$T$29:$U$31,2,FALSE)","v":1},2,{"$f":"title382&5","v":"Mechanized5"},{"$f":"title408","v":"Fuel price"},"USD/l"]
[null,null,null,{"$f":"+IF(AND(C22=\"\",C23=\"\"),0,IF(C22=\"\",D23,IF(C23=\"\",D22,D22+D23)))","v":0},null,null,null,{"$f":"title269","v":"Subtotal"},{"$f":"+SUMIF($I$22:$I$23,\">0\")","v":0},{"$f":"title319","v":"USD/year"},null,null,null,null,null,null,null,null,null,null,null,null,3,{"$f":"title378","v":"Semi-mechanized"},{"$f":"title380","v":"Number of skilled workers"},{"$f":"title409","v":"person-hour/ha"}]
[null,null,{"$f":"title334","v":"Machinery & operating cost"},{"$f":"title270","v":"Quantity"},{"$f":"title27","v":"Unit"},{"$f":"title270","v":"Quantity"},null,{"$f":"title27","v":"Unit"},"Total",{"$f":"title27","v":"Unit"},null,null,null,null,null,null,null,null,null,null,null,null,4,{"$f":"title378&1","v":"Semi-mechanized1"},{"$f":"title379","v":"Number of unskilled workers"},{"$f":"title409","v":"person-hour/ha"}]
[null,null,{"$f":"IFERROR(VLOOKUP($V$21&$W25,$X$20:$Z$31,2,FALSE),\"\")","v":"Average fuel economy"},null,{"$f":"IFERROR(VLOOKUP($V$21&$W25,$X$20:$Z$31,3,FALSE),\"\")","v":"l/h"},{"$f":"IFERROR(VLOOKUP($V$21&$W26,$X$20:$Z$31,2,FALSE),\"\")","v":"Fuel price"},{"$f":"IF(F26=\"\",\"\",'Data entry needs'!$F$100)","v":0},{"$f":"+IFERROR(VLOOKUP($V$21&$W26,$X$20:$Z$31,3,FALSE),\"\")","v":"USD/l"},{"$f":"+IFERROR(D26*G26*IF($C$16=title337,0,$D$22*G16/E16)*('Data entry needs'!$L$100/$I$16),\"\")","v":""},{"$f":"IF(C26=\"\",\"\",title319)","v":"USD/year"},null,null,null,null,null,null,null,null,null,null,null,null,5,{"$f":"title378&2","v":"Semi-mechanized2"},{"$f":"title336","v":"Skilled labour wage"},{"$f":"title128","v":"USD/person-hour"}]
[null,null,null,null,null,null,null,{"$f":"IF(C26=\"\",\"\",title269)","v":"Subtotal"},{"$f":"+I26","v":""},{"$f":"IF(C26=\"\",\"\",title319)","v":"USD/year"},null,null,null,null,null,null,null,null,null,null,null,null,null,{"$f":"title378&3","v":"Semi-mechanized3"},{"$f":"title335","v":"Unskilled labour wage"},{"$f":"title128","v":"USD/person-hour"}]
[null,null,null,null,null,null,null,{"$f":"IF(C26=\"\",\"\",\"Total\")","v":"Total"},{"$f":"IFERROR(I24+I27,I24)","v":0},{"$f":"title319","v":"USD/year"},null,null,null,null,null,null,null,null,null,{"$f":"title405","v":"Collection method"},null,null,null,{"$f":"title378&4","v":"Semi-mechanized4"},{"$f":"title407","v":"Average fuel economy"},"l/h"]
[null,null,null,null,null,null,null,null,null,null,null,null,null,null,null,null,null,null,null,{"$f":"title382","v":"Mechanized"},1,null,null,{"$f":"title378&5","v":"Semi-mechanized5"},{"$f":"title408","v":"Fuel price"},"USD/l"]
[null,null,null,null,null,null,null,null,"",null,null,null,null,null,null,null,null,null,null,{"$f":"title378","v":"Semi-mechanized"},2,null,null,{"$f":"title337","v":"Manual"},{"$f":"title379","v":"Number of unskilled workers"},{"$f":"title409","v":"person-hour/ha"}]
[null,null,null,{"$f":"title338&INDIRECT(\"'Data entry needs'!$d$\"&$A$1)&\"-\"&INDIRECT(\"'Data entry needs'!$e$\"&$A$1)","v":"Collection cost of Please Select-Please Select"},null,null,null,null,{"$f":"(I24+I28)/$G$16","v":{"$error":"#DIV/0!"}},"USD/t",null,null,null,null,null,null,null,null,null,{"$f":"title337","v":"Manual"},3,null,null,{"$f":"title337&2","v":"Manual2"},{"$f":"title335","v":"Unskilled labour wage"},{"$f":"title128","v":"USD/person-hour"}]
[]
[]
[null,null,null,null,false,null,{"$f":"IF($E$34,title340,title341)","v":"Use this method for feedstock collected and transported from different farms to a central collection point"}]
[null,null,{"$f":"title339","v":"Collection Methods Available"}]
[]
[null,null,{"$f":"title342","v":"Collection Method 2"}]
[]
[null,null,{"$f":"title328","v":"Collecting method"},{"$f":"title343","v":"Transportation requirements"},null,null,null,null,{"$f":"title346","v":"Data Source"}]
[]
[null,null,"Please Select",{"$f":"title110","v":"Feedstock Available (t/year)"},{"$f":"INDIRECT(\"'Data entry needs'!$F$\"&$A$1)","v":0},{"$f":"title344","v":"Initial ts in residue (%)"},null,{"$f":"INDIRECT(\"'Data entry needs'!$h$\"&$A$1)","v":0},false]
[null,null,null,{"$f":"title134","v":"Operating days per year"},{"$f":"'Data entry needs'!L100-INDIRECT(\"Planner_pS2!$AN$\"&$B$1)*21","v":-252},{"$f":"title345&$C$41","v":"ts (%) allowed by Please Select"},null,{"$f":"Q45","v":{"$error":"#N/A"}}]
[]
[null,null,{"$f":"title347","v":"Collection Cost Definition"}]
[null,null,{"$f":"title348","v":"Operation Cost"},{"$f":"title270","v":"Quantity"},{"$f":"title27","v":"Unit"},{"$f":"title270","v":"Quantity"},{"$f":"title27","v":"Unit"},{"$f":"title267","v":"Unit Price"},"Total",null,null,null,null,null,null,"ts (%) transported",{"$f":"VLOOKUP($C$41,$P$149:$V$155,7,FALSE)","v":{"$error":"#N/A"}}]
[null,null,{"$f":"title35","v":"Electricity"},null,"kWh/t res",{"$f":"D46*E41","v":0},{"$f":"title304","v":"kWh/year"},{"$f":"'Data entry needs'!$L$92","v":0},{"$f":"F46*H46","v":0},{"$f":"title319","v":"USD/year"},null,null,null,null,null,{"$f":"title35","v":"Electricity"},{"$f":"$Q$160","v":13.333333333333334}]
[null,null,{"$f":"title170","v":"Diesel"},null,{"$f":"title574","v":"l diesel/t res"},{"$f":"D47*$E$41","v":0},{"$f":"title350","v":"Liter Diesel/year"},{"$f":"'Data entry needs'!$F$100","v":0},{"$f":"F47*H47","v":0},{"$f":"title319","v":"USD/year"},null,null,null,null,null,{"$f":"title170","v":"Diesel"},{"$f":"VLOOKUP($C$41,$P$149:$S$155,2,FALSE)","v":{"$error":"#N/A"}}]
[null,null,{"$f":"title244","v":"Water Make-up "},null,{"$f":"title353","v":"Liter water/t res"},{"$f":"IF(D48=0,0,E41*(H41/H42)*(1-D48))","v":0},{"$f":"title351","v":"Liter water/year"},{"$f":"'Data entry needs'!$F$92","v":0},{"$f":"F48*H48*D48","v":0},{"$f":"title319","v":"USD/year"},null,null,null,null,null,{"$f":"title244","v":"Water Make-up "},0.15]
[null,null,{"$f":"title349","v":"Unskilled Workers"},null,{"$f":"title354","v":"person-day/t res"},{"$f":"ROUNDUP($D$49*E41*('Data entry needs'!$L$100/PRICE_FS2_PS2!E42)/'Data entry needs'!$L$99,0)","v":{"$error":"#DIV/0!"}},{"$f":"title352","v":"person-hour"},{"$f":"'Data entry needs'!$L$96","v":0},{"$f":"F49*H49","v":{"$error":"#DIV/0!"}},{"$f":"title319","v":"USD/year"},null,null,null,null,null,{"$f":"title127","v":"Unskilled worker"},{"$f":"VLOOKUP($C$41,$P$149:$S$155,3,FALSE)","v":{"$error":"#N/A"}}]
[null,null,null,{"$f":"Q47","v":{"$error":"#N/A"}},null,null,null,{"$f":"title269","v":"Subtotal"},{"$f":"+SUMIF($I$46:$I$49,\">0\")","v":0},{"$f":"title319","v":"USD/year"}]
[]
[null,null,{"$f":"title355","v":"Capital Investment"},{"$f":"title270","v":"Quantity"},{"$f":"title27","v":"Unit"}]
[null,null,{"$f":"$C$41&title356","v":"Please Select and equipment"},null,{"$f":"VLOOKUP($C$41,$P$149:$T$155,5,FALSE)","v":{"$error":"#N/A"}},null,null,null,{"$f":"D53*(E41*10)/20","v":0},{"$f":"title319","v":"USD/year"},null,null,null,null,null,{"$f":"$C$41&title356","v":"Please Select and equipment"},{"$f":"VLOOKUP($C$41,$P$149:$S$155,4,FALSE)","v":{"$error":"#N/A"}}]
[null,null,{"$f":"title357","v":"Dewatering"},null,"USD/t res",null,null,null,{"$f":"D54*$E$41/20","v":0},{"$f":"title319","v":"USD/year"},null,null,null,null,null,{"$f":"title357","v":"Dewatering"},{"$f":"$Q$158","v":7}]
[null,null,{"$f":"title358","v":"Operation and Mainteinance"},null,null,null,null,null,{"$f":"SUM(I53:I54)*$D$55","v":0},{"$f":"title319","v":"USD/year"},null,null,null,null,null,{"$f":"title358","v":"Operation and Mainteinance"},0.15]
[null,null,null,{"$f":"+IF(AND(C54=\"\",C55=\"\"),0,IF(C54=\"\",D55,IF(C55=\"\",D54,D54+D55)))","v":0},null,null,null,{"$f":"title269","v":"Subtotal"},{"$f":"+SUMIF(I53:I55,\">0\")","v":0},{"$f":"title319","v":"USD/year"}]
[]
[null,null,null,{"$f":"title359","v":"Cost for Collection and transfer to storage tank"},null,null,null,null,{"$f":"SUM(I50+I56)/E41","v":{"$error":"#DIV/0!"}},"USD/t"]
[]
[null,null,{"$f":"title360","v":"Collection Method 3 - Feedstock collected from different farms"}]
[]
[null,null,{"$f":"title361","v":"Source of biomass"},null,{"$f":"title405","v":"Collection method"},null,{"$f":"title346","v":"Data Source"},false]
[null,null,{"$f":"title362","v":"Transfer from individual farms"},null,"Mechanized"]
[]
[null,null,{"$f":"title363","v":"Transportation method"},null,"Tanker Truck Transfer",null,{"$f":"title372","v":"Number Of Farms Supplying Feedstock"},{"$f":"title373","v":"Average distance to collection point (m)"},{"$f":"title374","v":"Collection Period (days)"},{"$f":"IF($E$65=title364,title375,title376)&title377","v":"Number of Tanks required"}]
[]
[null,null,{"$f":"IF($E$65=title364,title365,title366)","v":"Tranport Capacity (liter)"},null,{"$f":"title370","v":"Residue Quanitiy (t/year)"},{"$f":"INDIRECT(\"'Data entry needs'!$F$\"&$A$1)","v":0},null,null,null,null,null,null,null,null,null,{"$f":"IF($E$60=title364,title365,title366)","v":"Pipe Diameter (in)"},{"$f":"VLOOKUP($E$65,$Y$147:$AE$149,3,FALSE)","v":27600}]
[null,null,{"$f":"IF($E$65=title364,title367,title368)","v":"Engine Power (HP)"},null,{"$f":"title371","v":"Residue Density (kg/m3)"},null,null,null,{"$f":"'Data entry needs'!L100-INDIRECT(\"Planner_pS2!$AN$\"&$B$1)*21","v":-252},{"$f":"IFERROR(ROUNDUP($F$67*1000*1000/(960*$D$69*'Data entry needs'!$L$99)/$I$68,0),0)","v":0},null,null,null,null,null,{"$f":"IF($E$60=title364,title367,title368)","v":"Motor Power (HP)"},{"$f":"VLOOKUP($E$65,$Y$147:$AE$149,4,FALSE)","v":200}]
[null,null,{"$f":"title369","v":"Transfer Rate (l/h)"},null,null,null,null,null,null,null,null,null,null,null,null,{"$f":"title369","v":"Transfer Rate (l/h)"},{"$f":"VLOOKUP($E$65,$Y$147:$AE$149,5,FALSE)","v":27221.917808219176}]
[]
[null,null,null,{"$f":"+IF(OR($E$63=title337,$E$63=title378),FALSE,TRUE)","v":true},{"$f":"+IF($E$63=title337,TRUE,FALSE)","v":false}]
[null,null,{"$f":"title332","v":"Biomass Price Definition"},null,null,null,null,null,null,null,null,null,null,null,null,{"$f":"title371","v":"Residue Density (kg/m3)"},{"$f":"IFERROR(VLOOKUP(INDIRECT(\"'Data entry needs'!$e$\"&$A$1),PRICE_FS2_PS2!$Y$152:$Z$156,2,FALSE),1000)","v":1000}]
[null,null,{"$f":"title333","v":"Labour cost"},{"$f":"title270","v":"Quantity"},{"$f":"title27","v":"Unit"},{"$f":"title270","v":"Quantity"},null,{"$f":"title27","v":"Unit"},"Total",{"$f":"title27","v":"Unit"}]
[null,null,{"$f":"IF(OR($E$63=title337,$E$63=title378),title379,\"\")","v":""},null,{"$f":"IF(OR($E$63=title337,$E$63=title378),title381,\"\")","v":""},{"$f":"IF(OR($E$63=title337,$E$63=title378),title335,\"\")","v":""},{"$f":"IF(OR($E$63=title337,$E$63=title378),'Data entry needs'!$L$96,\"\")","v":""},{"$f":"IF(OR($E$63=title337,$E$63=title378),title128,\"\")","v":""},{"$f":"IFERROR(IF(OR($E$63=title337,$E$63=title378),$F$67*D74*$G$74,\"\"),0)","v":""},{"$f":"IF(OR($E$63=title337,$E$63=title378),title319,\"\")","v":""}]
[null,null,{"$f":"IF($E$63=title337,\"\",title380)","v":"Number of skilled workers"},null,{"$f":"IF($E$63=title337,\"\",title381)","v":"person-hour/t"},{"$f":"IF($E$63=title337,\"\",title336)","v":"Skilled labour wage"},{"$f":"IF($E$63=title337,\"\",'Data entry needs'!$F$96)","v":0},{"$f":"IF($E$63=title337,\"\",title128)","v":"USD/person-hour"},{"$f":"IFERROR(IF($E$63=title337,\"\",D75*G75*$F$67),0)","v":0},{"$f":"IF($E$63=title337,\"\",title319)","v":"USD/year"}]
[null,null,null,{"$f":"+IF(AND(C74=\"\",C75=\"\"),0,IF(C74=\"\",D75,IF(C75=\"\",D74,D74+D75)))","v":0},null,null,null,{"$f":"title269","v":"Subtotal"},{"$f":"+SUMIF($I$74:$I$75,\">0\")","v":0},{"$f":"title319","v":"USD/year"}]
[null,null,{"$f":"title383","v":"Collection Machinery"},{"$f":"title270","v":"Quantity"},{"$f":"title27","v":"Unit"},{"$f":"title270","v":"Quantity"},null,{"$f":"title27","v":"Unit"},"Total",{"$f":"title27","v":"Unit"}]
[null,null,{"$f":"IF(OR($E$63=title382,$E$63=title378),title384,\"\")","v":"Collection Diesel Consumption"},null,{"$f":"IF(OR($E$63=title382,$E$63=title378),title575,\"\")","v":"l diesel/h"},{"$f":"IF(OR($E$63=title382,$E$63=title378),title389,\"\")","v":"Diesel Cost"},{"$f":"IF(OR($E$63=title382,$E$63=title378),'Data entry needs'!F$100,\"\")","v":0},{"$f":"IF(OR($E$63=title382,$E$63=title378),title576,\"\")","v":"USD/l diesel"},{"$f":"IFERROR(IF(OR($E$63=title382,$E$63=title378),D78*G78*D75*F67,\"\"),0)","v":0},{"$f":"title319","v":"USD/year"}]
[null,null,{"$f":"IF($E$65=title364,title385,title386)","v":"Truck Diesel Consumption"},null,{"$f":"IF($E$65=title364,title387,title388)","v":"l diesel/day"},{"$f":"IF($E$65=title364,title389,title390)","v":"Diesel Cost"},{"$f":"IF($E$65=title364,'Data entry needs'!F$100,'Data entry needs'!$L$92)","v":0},{"$f":"IF($E$65=title364,title576,\"USD/kWh\")","v":"USD/l diesel"},{"$f":"IFERROR(D79*G79*$I$68*$J$68,0)","v":0},{"$f":"title319","v":"USD/year"},null,null,null,null,null,{"$f":"IF($E$60=title364,title385,title386)","v":"Pump Electricity Consumption"},{"$f":"VLOOKUP($E$65,$Y$147:$AE$149,7,FALSE)","v":154}]
[null,null,null,null,null,null,null,{"$f":"title269","v":"Subtotal"},{"$f":"+SUMIF($I$78:$I$79,\">0\")","v":0},{"$f":"title319","v":"USD/year"}]
[null,null,{"$f":"title391","v":"Equipment"},{"$f":"title270","v":"Quantity"},{"$f":"title27","v":"Unit"},{"$f":"title270","v":"Quantity"},null,{"$f":"title27","v":"Unit"},"Total",{"$f":"title27","v":"Unit"}]
[null,null,{"$f":"IF($E$65=title364,title392,title393)","v":"Liquid Tanker Truck"},{"$f":"IF($E$65=title364,$J$68,$G$68*$H$68*1.2)","v":0},{"$f":"IF($E$65=title364,title398,\"m\")","v":"tank(s)"},{"$f":"IF($E$65=title364,title399,title400)","v":"Cost per Tank"},{"$f":"VLOOKUP($E$65,$Y$147:$AF$149,8,FALSE)/10","v":7900},{"$f":"IF($E$65=title364,title402,title403)","v":"USD/tank/year"},{"$f":"IFERROR(D82*G82,0)","v":0},{"$f":"title319","v":"USD/year"}]
[null,null,{"$f":"IF($E$65=title364,title394&$D$68&title395,title396&$D$68&title397)","v":"Semi-tractor 185  HP"},null,"USD",{"$f":"title401","v":"Depreciation Period"},null,{"$f":"title164","v":"year"},{"$f":"IFERROR(D83*$J$68/G83,0)","v":0},{"$f":"title319","v":"USD/year"},null,null,null,null,null,{"$f":"IF($E$60=title364,title406,title396&$D$63&title397)","v":"Pump  HP with agitator"},{"$f":"VLOOKUP($E$65,$Y$147:$AH$149,10,FALSE)","v":148000}]
[null,null,{"$f":"title358","v":"Operation and Mainteinance"},null,null,null,null,null,{"$f":"IFERROR(SUM(I82:I83)*$D$84,0)","v":0},{"$f":"title319","v":"USD/year"},null,null,null,null,null,{"$f":"title358","v":"Operation and Mainteinance"},0.15]
[null,null,null,null,null,null,null,{"$f":"title269","v":"Subtotal"},{"$f":"I82","v":0},{"$f":"title319","v":"USD/year"},null,null,null,null,null,{"$f":"title401","v":"Depreciation Period"},15]
[]
[null,null,null,{"$f":"title404","v":"Cost for Collection and transfer to central collection point"},null,null,null,null,{"$f":"(I85+I80+I76)/$F$67","v":{"$error":"#DIV/0!"}},"USD/t"]
[]
[]
[]
[]
[]
[]
[]
[]
[]
[]
[]
[]
[]
[]
[]
[]
[]
[]
[]
[]
[]
[]
[]
[]
[]
[]
[]
[]
[]
[]
[]
[null,null,null,null,null,null,null,null,null,null,null,null,null,null,null,{"$f":"title410","v":"Sources of biomass"}]
[null,null,null,null,null,null,null,null,null,null,null,null,null,null,null,{"$f":"title411","v":"Biomass spread in the field"}]
[null,null,null,null,null,null,null,null,null,null,null,null,null,null,null,{"$f":"title412","v":"Biomass collected from field"}]
[null,null,null,null,null,null,null,null,null,null,null,null,null,null,null,{"$f":"title413","v":"Biomass from food processing plant"}]
[]
[]
[]
[]
[null,null,null,null,null,null,null,null,null,null,null,null,null,null,null,{"$f":"title405","v":"Collection method"}]
[null,null,null,null,null,null,null,null,null,null,null,null,null,null,null,{"$f":"title382","v":"Mechanized"}]
[null,null,null,null,null,null,null,null,null,null,null,null,null,null,null,{"$f":"title378","v":"Semi-mechanized"}]
[null,null,null,null,null,null,null,null,null,null,null,null,null,null,null,{"$f":"title337","v":"Manual"}]
[]
[]
[]
[]
[]
[]
[]
[]
[]
[]
[]
[]
[]
[]
[null,null,null,null,null,null,null,null,null,null,null,null,null,null,null,"Dairy maNURE",40.753799999999998,"Manure (kg/head/day)"]
[null,null,null,null,null,null,null,null,null,null,null,null,null,null,null,null,"Energy Use Cost","Labor and Mainteinance",null,null,null,"ts (%) transported","Dewateing",null,null,null,{"$f":"title440","v":"Capacity"},{"$f":"title441","v":"Engine/motor (hp)"},{"$f":"title369","v":"Transfer Rate (l/h)"},{"$f":"title442","v":"Transfer time (m/h)"},{"$f":"title443","v":"Energy Use  (kw)"},{"$f":"title444","v":"Add equipment"}]
[null,null,null,null,null,null,null,null,null,null,null,null,null,null,null,{"$f":"title405","v":"Collection method"},"liters diesel/t residue","workers*day/t residue","Capital cost","Capital cost","Capital cost",null,"Final solids ts (%)",null,{"$f":"title364","v":"Tanker Truck Transfer"},null,27600,200,27221.917808219176,609.6,154,79000,"USD",{"$f":"148000","v":148000},2010,{"$f":"title406","v":"Semi-tractor 185 HP"},null,null,"l/working day"]
[null,null,null,null,null,null,null,null,null,null,null,null,null,null,null,{"$f":"title74","v":"Please Select"},null,null,null,null,null,null,null,null,{"$f":"title432","v":"High Volume Pipeline"},null,"6´´ PVC",150,3028,1016,215,{"$f":"37/3.048","v":12.139107611548557},"USD/m",37075,2003]
[null,null,null,null,null,null,null,null,null,null,null,null,null,null,null,{"$f":"title414","v":"Alley Scrapers"},0.14330809896079807,0.42057427773606393,{"$f":"(AVERAGE(35,45)*$B$52+10000+4000)/3785.41178","v":3.698408736922143},{"$f":"title421","v":"USD/liter mixture"},2009,0.08,0.5,null,{"$f":"title433","v":"Low Volume Pipeline"},null,"4´´ PVC",7.5,378,127,86,{"$f":"12.4/3.048","v":4.0682414698162734},"USD/m",7675,2003]
[null,null,null,null,null,null,null,null,null,null,null,null,null,null,null,{"$f":"title415","v":"Flush System"},0.4093569308278352,0.10526625737967994,{"$f":"(4950.08+(16+9.8)*$B$52)/3785.41178","v":1.3076727943188258},"USD/liter mixture",2014,{"$f":"AVERAGE(1%,3%)","v":0.02},0.5]
[null,null,null,null,null,null,null,null,null,null,null,null,null,null,null,{"$f":"title416","v":"Vacum Scraper"},3.190595592141102,1.9769935564290937,10,"USD/liter mixture",2010,0.18,0.5,null,null,{"$f":"title434","v":"Density (Kg/m3)"}]
[null,null,null,null,null,null,null,null,null,null,null,null,null,null,null,{"$f":"title417","v":"Skid-loader"},0.75612714559717353,1.2830705357537211,{"$f":"(142.6*0.914+58.5*0.084+50.75*0.997)/$Q$145","v":4.5602655457895951},"USD/liter mixture",2010,{"$f":"AVERAGE(8%,18%)","v":0.13},0.5,null,{"$f":"title435","v":"Buffalo"},960]
[null,null,null,null,null,null,null,null,null,null,null,null,null,null,null,{"$f":"title418","v":"Cross gutter Scraper"},1.5259658685640533E-2,2.6500596263415929E-2,5,"USD/liter mixture",2010,0.08,0.5,null,{"$f":"title436","v":"Cattle"},960]
[null,null,null,null,null,null,null,null,null,null,null,null,null,null,null,{"$f":"title419","v":"Cross Gutter Auger"},0.20478904265077005,2.6255220372088005E-2,{"$f":"2200*30/2378/10","v":2.7754415475189234},"USD/liter mixture",2010,0.08,0.5,null,{"$f":"title437","v":"Dairy Cattle"},994]
[null,null,null,null,null,null,null,null,null,null,null,null,null,null,null,{"$f":"title420","v":"Flush Flume"},0.13645231027594507,2.6255220372088005E-2,{"$f":"(4950.08+(16+9.8)*$B$52)*1.5/3785.41178","v":1.9615091914782385},"USD/liter mixture",2010,{"$f":"AVERAGE(4%,9%)","v":6.5000000000000002E-2},0.5,null,{"$f":"title438","v":"Poultry"},961.11]
[null,null,null,null,null,null,null,null,null,null,null,null,null,null,null,null,null,null,null,null,null,null,null,null,{"$f":"title439","v":"Swine"},1140.9000000000001]
[null,null,null,null,null,null,null,null,null,null,null,null,null,null,null,{"$f":"title357","v":"Dewatering"},"Screw Press ",{"$f":"PROPER(title164)","v":"Year"}]
[null,null,null,null,null,null,null,null,null,null,null,null,null,null,null,{"$f":"title422","v":"Capital Cost (USD/t residue)"},{"$f":"AVERAGE(0.2,0.5)*1000000*0.12/AVERAGE(4000,8000)","v":7},2002]
[null,null,null,null,null,null,null,null,null,null,null,null,null,null,null,{"$f":"title423","v":"Operation (worker/t residue)"},{"$f":"AVERAGE(20,40)*1000/AVERAGE(4000,8000)/(300*8*160)","v":1.3020833333333334E-5}]
[null,null,null,null,null,null,null,null,null,null,null,null,null,null,null,{"$f":"title424","v":"Energy Demand kWh/t residue"},{"$f":"AVERAGE(5,15)*8000/AVERAGE(4000,8000)","v":13.333333333333334},2002]
[]
[]
[]
[]
[null,null,null,null,null,null,null,null,null,null,null,null,null,null,null,{"$f":"title74","v":"Please Select"},{"$f":"title405","v":"Collection method"},"Show","Section to Show",{"$f":"VLOOKUP(INDIRECT(\"'Data entry needs'!$d$\"&$A$1),$P$166:$R$178,3,FALSE)","v":{"$error":"#N/A"}}]
[null,null,null,null,null,null,null,null,null,null,null,null,null,null,null,{"$f":"title184","v":"Biodiesel/Oilseed Ind."},{"$f":"title425","v":"No collection neeeded"},1,{"$f":"title429&\" 0\"","v":"Option 0"},0,0]
[null,null,null,null,null,null,null,null,null,null,null,null,null,null,null,{"$f":"title85","v":"Crop Residues"},{"$f":"title426","v":"Method 1"},2,{"$f":"title429&\" 1\"","v":"Option 1"},{"$f":"$I$31","v":{"$error":"#DIV/0!"}},{"$f":"$D$24/E16","v":{"$error":"#DIV/0!"}},{"$f":"title381","v":"person-hour/t"}]
[null,null,null,null,null,null,null,null,null,null,null,null,null,null,null,{"$f":"title185","v":"Dairy-milk ind."},{"$f":"title427","v":"Method 2, Method 3"},4,{"$f":"title429&\" 2\"","v":"Option 2"},{"$f":"$I$58","v":{"$error":"#DIV/0!"}},{"$f":"F49/E41","v":{"$error":"#DIV/0!"}},{"$f":"title381","v":"person-hour/t"}]
[null,null,null,null,null,null,null,null,null,null,null,null,null,null,null,{"$f":"title120","v":"Energy Crops"},{"$f":"title425","v":"No collection neeeded"},1,{"$f":"title429&\" 3\"","v":"Option 3"},{"$f":"$I$87","v":{"$error":"#DIV/0!"}},{"$f":"D76","v":0},{"$f":"title381","v":"person-hour/t"}]
[null,null,null,null,null,null,null,null,null,null,null,null,null,null,null,{"$f":"title186","v":"Eth-Sugar-Starch Ind."},{"$f":"title425","v":"No collection neeeded"},1]
[null,null,null,null,null,null,null,null,null,null,null,null,null,null,null,{"$f":"title187","v":"Food Process. Res."},{"$f":"title425","v":"No collection neeeded"},1,{"$f":"title430","v":"Result"},{"$f":"IF($T$165=1,T166,IF($T$165=2,$T$167,IF($T$165=3,T168,IF(AND($T$165=4,$E$34),$T$168,$T$169))))","v":{"$error":"#N/A"}}]
[null,null,null,null,null,null,null,null,null,null,null,null,null,null,null,{"$f":"title188","v":"Grass"},{"$f":"title426","v":"Method 1"},2,{"$f":"title431","v":"Employees"},{"$f":"IF($T$165=1,U166,IF($T$165=2,$U$167,IF($T$165=3,U169,IF(AND($T$165=4,$E$34),$U$168,$U$169))))","v":{"$error":"#N/A"}},{"$f":"title381","v":"person-hour/t"}]
[null,null,null,null,null,null,null,null,null,null,null,null,null,null,null,{"$f":"title119","v":"Crops"},{"$f":"title425","v":"No collection neeeded"},1]
[null,null,null,null,null,null,null,null,null,null,null,null,null,null,null,{"$f":"title189","v":"Other Options"},{"$f":"title425","v":"No collection neeeded"},1]
[null,null,null,null,null,null,null,null,null,null,null,null,null,null,null,{"$f":"title190","v":"Slaughterhouses wastes"},{"$f":"title428","v":"Method 2"},3]
[null,null,null,null,null,null,null,null,null,null,null,null,null,null,null,{"$f":"title191","v":"Yeast-Alcoholic Bev."},{"$f":"title425","v":"No collection neeeded"},1]
[null,null,null,null,null,null,null,null,null,null,null,null,null,null,null,{"$f":"title84","v":"Manure"},{"$f":"title427","v":"Method 2, Method 3"},4]
[null,null,null,null,null,null,null,null,null,null,null,null,null,null,null,{"$f":"title192","v":"Wastewater"},{"$f":"title425","v":"No collection neeeded"},1]

{"sheet":"PRICE_FS3_PS2","index":33,"n_rows":178,"n_cols":39,"rows_kept":178,"cut":false,"hidden":true,"merged":[[40,8,40,9],[2,2,2,9],[5,2,5,3],[5,4,5,6],[7,2,10,9],[14,6,14,7],[15,2,15,3],[15,6,15,7],[30,3,30,7],[33,4,34,4],[33,5,34,5],[33,6,34,9],[34,2,34,3],[64,9,66,9],[86,3,86,7],[41,8,41,9],[57,3,57,7],[61,4,61,5],[61,6,62,6],[62,4,62,5],[64,2,64,3],[64,4,64,5],[64,6,66,6],[64,7,66,7],[64,8,66,8]]}
[{"$f":"PRICE_FS2_PS2!A1+2","v":43},90]
[]
[null,null,{"$f":"+title324&UPPER(INDIRECT(\"'Data entry needs'!$d$\"&$A$1)&\"-\"&INDIRECT(\"'Data entry needs'!$e$\"&$A$1))","v":"COLLECTION COSTS CALCULATOR FOR PLEASE SELECT-PLEASE SELECT"}]
[]
[]
[null,null,{"$f":"title193","v":"Use white cells to input data"},null,{"$f":"title194","v":"Grey cells are used for calculations"}]
[]
[null,null,{"$f":"title325&INDIRECT(\"'Data entry needs'!$d$\"&$A$1)&title326","v":"No collection method is required. It is assumed that Please Select are already collected. Then, transportation cost and/or market price should be considered."}]
[]
[]
[]
[]
[null,null,{"$f":"title327","v":"Collection Method 1 - Biomass spread in the field"}]
[]
[null,null,{"$f":"title328","v":"Collecting method"},null,{"$f":"title329","v":"Biomass Yield"},null,{"$f":"title110","v":"Feedstock Available (t/year)"},null,{"$f":"title330","v":"Collection days"}]
[null,null,"Mechanized",null,null,"t/ha",{"$f":"INDIRECT(\"'Data entry needs'!$F$\"&$A$1)","v":0},null,{"$f":"'Data entry needs'!L100-INDIRECT(\"Planner_pS2!$AN$\"&$B$1)*21","v":-252}]
[]
[null,null,{"$f":"title331","v":"Biomass Collection definition"}]
[]
[null,null,{"$f":"title332","v":"Biomass Price Definition"},null,null,null,null,null,null,null,null,null,null,null,null,null,null,null,null,null,null,{"$f":"title405","v":"Collection method"},null,{"$f":"title382","v":"Mechanized"},{"$f":"title380","v":"Number of skilled workers"},{"$f":"title409","v":"person-hour/ha"}]
[null,null,{"$f":"title333","v":"Labour cost"},{"$f":"title270","v":"Quantity"},{"$f":"title27","v":"Unit"},{"$f":"title270","v":"Quantity"},null,{"$f":"title27","v":"Unit"},"Total",{"$f":"title27","v":"Unit"},null,null,null,null,null,null,null,null,null,null,null,{"$f":"$C$16","v":"Mechanized"},null,{"$f":"title382&2","v":"Mechanized2"},{"$f":"title336","v":"Skilled labour wage"},{"$f":"title128","v":"USD/person-hour"}]
[null,null,{"$f":"IFERROR(VLOOKUP($V$21&$W21,$X$20:$Z$31,2,FALSE),\"\")","v":"Number of skilled workers"},null,{"$f":"IFERROR(VLOOKUP($V$21&$W21,$X$20:$Z$31,3,FALSE),\"\")","v":"person-hour/ha"},{"$f":"IFERROR(VLOOKUP($V$21&$W23,$X$20:$Z$31,2,FALSE),\"\")","v":"Skilled labour wage"},{"$f":"IF(F22=\"\",\"\",IF(F22=title335,'Data entry needs'!$L$96,IF(F22=title336,'Data entry needs'!F96)))","v":0},{"$f":"IFERROR(VLOOKUP($V$21&$W23,$X$20:$Z$31,3,FALSE),\"\")","v":"USD/person-hour"},{"$f":"IFERROR(G22*D22*(G16/E16)*('Data entry needs'!$L$100/$I$16),0)","v":0},{"$f":"IF(C22=\"\",\"\",title319)","v":"USD/year"},null,null,null,null,null,null,null,null,null,null,null,null,1,{"$f":"title382&4","v":"Mechanized4"},{"$f":"title407","v":"Average fuel economy"},"l/h"]
[null,null,{"$f":"IFERROR(VLOOKUP($V$21&$W22,$X$20:$Z$31,2,FALSE),\"\")","v":""},null,{"$f":"IFERROR(VLOOKUP($V$21&$W22,$X$20:$Z$31,3,FALSE),\"\")","v":""},{"$f":"IFERROR(VLOOKUP($V$21&$W24,$X$20:$Z$31,2,FALSE),\"\")","v":""},{"$f":"IF(F23=\"\",\"\",'Data entry needs'!L96)","v":""},{"$f":"title128","v":"USD/person-hour"},{"$f":"IFERROR(G23*D23*(G16/E16)*('Data entry needs'!$L$100/$I$16),0)","v":0},{"$f":"IF(C23=\"\",\"\",title319)","v":""},null,null,null,null,null,null,null,null,null,null,null,{"$f":"VLOOKUP($V$21,$T$29:$U$31,2,FALSE)","v":1},2,{"$f":"title382&5","v":"Mechanized5"},{"$f":"title408","v":"Fuel price"},"USD/l"]
[null,null,null,{"$f":"+IF(AND(C22=\"\",C23=\"\"),0,IF(C22=\"\",D23,IF(C23=\"\",D22,D22+D23)))","v":0},null,null,null,{"$f":"title269","v":"Subtotal"},{"$f":"+SUMIF($I$22:$I$23,\">0\")","v":0},{"$f":"title319","v":"USD/year"},null,null,null,null,null,null,null,null,null,null,null,null,3,{"$f":"title378","v":"Semi-mechanized"},{"$f":"title380","v":"Number of skilled workers"},{"$f":"title409","v":"person-hour/ha"}]
[null,null,{"$f":"title334","v":"Machinery & operating cost"},{"$f":"title270","v":"Quantity"},{"$f":"title27","v":"Unit"},{"$f":"title270","v":"Quantity"},null,{"$f":"title27","v":"Unit"},"Total",{"$f":"title27","v":"Unit"},null,null,null,null,null,null,null,null,null,null,null,null,4,{"$f":"title378&1","v":"Semi-mechanized1"},{"$f":"title379","v":"Number of unskilled workers"},{"$f":"title409","v":"person-hour/ha"}]
[null,null,{"$f":"IFERROR(VLOOKUP($V$21&$W25,$X$20:$Z$31,2,FALSE),\"\")","v":"Average fuel economy"},null,{"$f":"IFERROR(VLOOKUP($V$21&$W25,$X$20:$Z$31,3,FALSE),\"\")","v":"l/h"},{"$f":"IFERROR(VLOOKUP($V$21&$W26,$X$20:$Z$31,2,FALSE),\"\")","v":"Fuel price"},{"$f":"IF(F26=\"\",\"\",'Data entry needs'!$F$100)","v":0},{"$f":"+IFERROR(VLOOKUP($V$21&$W26,$X$20:$Z$31,3,FALSE),\"\")","v":"USD/l"},{"$f":"+IFERROR(D26*G26*IF($C$16=title337,0,$D$22*G16/E16)*('Data entry needs'!$L$100/$I$16),\"\")","v":""},{"$f":"IF(C26=\"\",\"\",title319)","v":"USD/year"},null,null,null,null,null,null,null,null,null,null,null,null,5,{"$f":"title378&2","v":"Semi-mechanized2"},{"$f":"title336","v":"Skilled labour wage"},{"$f":"title128","v":"USD/person-hour"}]
[null,null,null,null,null,null,null,{"$f":"IF(C26=\"\",\"\",title269)","v":"Subtotal"},{"$f":"+I26","v":""},{"$f":"IF(C26=\"\",\"\",title319)","v":"USD/year"},null,null,null,null,null,null,null,null,null,null,null,null,null,{"$f":"title378&3","v":"Semi-mechanized3"},{"$f":"title335","v":"Unskilled labour wage"},{"$f":"title128","v":"USD/person-hour"}]
[null,null,null,null,null,null,null,{"$f":"IF(C26=\"\",\"\",\"Total\")","v":"Total"},{"$f":"IFERROR(I24+I27,I24)","v":0},{"$f":"title319","v":"USD/year"},null,null,null,null,null,null,null,null,null,{"$f":"title405","v":"Collection method"},null,null,null,{"$f":"title378&4","v":"Semi-mechanized4"},{"$f":"title407","v":"Average fuel economy"},"l/h"]
[null,null,null,null,null,null,null,null,null,null,null,null,null,null,null,null,null,null,null,{"$f":"title382","v":"Mechanized"},1,null,null,{"$f":"title378&5","v":"Semi-mechanized5"},{"$f":"title408","v":"Fuel price"},"USD/l"]
[null,null,null,null,null,null,null,null,"",null,null,null,null,null,null,null,null,null,null,{"$f":"title378","v":"Semi-mechanized"},2,null,null,{"$f":"title337","v":"Manual"},{"$f":"title379","v":"Number of unskilled workers"},{"$f":"title409","v":"person-hour/ha"}]
[null,null,null,{"$f":"title338&INDIRECT(\"'Data entry needs'!$d$\"&$A$1)&\"-\"&INDIRECT(\"'Data entry needs'!$e$\"&$A$1)","v":"Collection cost of Please Select-Please Select"},null,null,null,null,{"$f":"(I24+I28)/$G$16","v":{"$error":"#DIV/0!"}},"USD/t",null,null,null,null,null,null,null,null,null,{"$f":"title337","v":"Manual"},3,null,null,{"$f":"title337&2","v":"Manual2"},{"$f":"title335","v":"Unskilled labour wage"},{"$f":"title128","v":"USD/person-hour"}]
[]
[]
[null,null,null,null,false,null,{"$f":"IF($E$34,title340,title341)","v":"Use this method for feedstock collected and transported from different farms to a central collection point"}]
[null,null,{"$f":"title339","v":"Collection Methods Available"}]
[]
[null,null,{"$f":"title342","v":"Collection Method 2"}]
[]
[null,null,{"$f":"title328","v":"Collecting method"},{"$f":"title343","v":"Transportation requirements"},null,null,null,null,{"$f":"title346","v":"Data Source"}]
[]
[null,null,"Please Select",{"$f":"title110","v":"Feedstock Available (t/year)"},{"$f":"INDIRECT(\"'Data entry needs'!$F$\"&$A$1)","v":0},{"$f":"title344","v":"Initial ts in residue (%)"},null,{"$f":"INDIRECT(\"'Data entry needs'!$h$\"&$A$1)","v":0},false]
[null,null,null,{"$f":"title134","v":"Operating days per year"},{"$f":"'Data entry needs'!L100-INDIRECT(\"Planner_pS2!$AN$\"&$B$1)*21","v":-252},{"$f":"title345&$C$41","v":"ts (%) allowed by Please Select"},null,{"$f":"Q45","v":{"$error":"#N/A"}}]
[]
[null,null,{"$f":"title347","v":"Collection Cost Definition"}]
[null,null,{"$f":"title348","v":"Operation Cost"},{"$f":"title270","v":"Quantity"},{"$f":"title27","v":"Unit"},{"$f":"title270","v":"Quantity"},{"$f":"title27","v":"Unit"},{"$f":"title267","v":"Unit Price"},"Total",null,null,null,null,null,null,"ts (%) transported",{"$f":"VLOOKUP($C$41,$P$149:$V$155,7,FALSE)","v":{"$error":"#N/A"}}]
[null,null,{"$f":"title35","v":"Electricity"},{"$f":"Q46","v":13.333333333333334},"kWh/t res",{"$f":"D46*E41","v":0},{"$f":"title304","v":"kWh/year"},{"$f":"'Data entry needs'!$L$92","v":0},{"$f":"F46*H46","v":0},{"$f":"title319","v":"USD/year"},null,null,null,null,null,{"$f":"title35","v":"Electricity"},{"$f":"$Q$160","v":13.333333333333334}]
[null,null,{"$f":"title170","v":"Diesel"},{"$f":"Q47","v":{"$error":"#N/A"}},{"$f":"title574","v":"l diesel/t res"},{"$f":"D47*$E$41","v":{"$error":"#N/A"}},{"$f":"title350","v":"Liter Diesel/year"},{"$f":"'Data entry needs'!$F$100","v":0},{"$f":"F47*H47","v":{"$error":"#N/A"}},{"$f":"title319","v":"USD/year"},null,null,null,null,null,{"$f":"title170","v":"Diesel"},{"$f":"VLOOKUP($C$41,$P$149:$S$155,2,FALSE)","v":{"$error":"#N/A"}}]
[null,null,{"$f":"title244","v":"Water Make-up "},{"$f":"Q48","v":0.15},{"$f":"title353","v":"Liter water/t res"},{"$f":"IF(D48=0,0,E41*(H41/H42)*(1-D48))","v":{"$error":"#N/A"}},{"$f":"title351","v":"Liter water/year"},{"$f":"'Data entry needs'!$F$92","v":0},{"$f":"F48*H48*D48","v":{"$error":"#N/A"}},{"$f":"title319","v":"USD/year"},null,null,null,null,null,{"$f":"title244","v":"Water Make-up "},0.15]
[null,null,{"$f":"title349","v":"Unskilled Workers"},{"$f":"Q49","v":{"$error":"#N/A"}},{"$f":"title354","v":"person-day/t res"},{"$f":"ROUNDUP($D$49*E41*('Data entry needs'!$L$100/PRICE_FS3_PS2!E42)/'Data entry needs'!$L$99,0)","v":{"$error":"#N/A"}},{"$f":"title352","v":"person-hour"},{"$f":"'Data entry needs'!$L$96","v":0},{"$f":"F49*H49","v":{"$error":"#N/A"}},{"$f":"title319","v":"USD/year"},null,null,null,null,null,{"$f":"title127","v":"Unskilled worker"},{"$f":"VLOOKUP($C$41,$P$149:$S$155,3,FALSE)","v":{"$error":"#N/A"}}]
[null,null,null,{"$f":"Q47","v":{"$error":"#N/A"}},null,null,null,{"$f":"title269","v":"Subtotal"},{"$f":"+SUMIF($I$46:$I$49,\">0\")","v":0},{"$f":"title319","v":"USD/year"}]
[]
[null,null,{"$f":"title355","v":"Capital Investment"},{"$f":"title270","v":"Quantity"},{"$f":"title27","v":"Unit"}]
[null,null,{"$f":"$C$41&title356","v":"Please Select and equipment"},{"$f":"Q53","v":{"$error":"#N/A"}},{"$f":"VLOOKUP($C$41,$P$149:$T$155,5,FALSE)","v":{"$error":"#N/A"}},null,null,null,{"$f":"D53*(E41*10)/20","v":{"$error":"#N/A"}},{"$f":"title319","v":"USD/year"},null,null,null,null,null,{"$f":"$C$41&title356","v":"Please Select and equipment"},{"$f":"VLOOKUP($C$41,$P$149:$S$155,4,FALSE)","v":{"$error":"#N/A"}}]
[null,null,{"$f":"title357","v":"Dewatering"},{"$f":"Q54","v":7},"USD/t res",null,null,null,{"$f":"D54*$E$41/20","v":0},{"$f":"title319","v":"USD/year"},null,null,null,null,null,{"$f":"title357","v":"Dewatering"},{"$f":"$Q$158","v":7}]
[null,null,{"$f":"title358","v":"Operation and Mainteinance"},{"$f":"Q55","v":0.15},null,null,null,null,{"$f":"SUM(I53:I54)*$D$55","v":{"$error":"#N/A"}},{"$f":"title319","v":"USD/year"},null,null,null,null,null,{"$f":"title358","v":"Operation and Mainteinance"},0.15]
[null,null,null,{"$f":"+IF(AND(C54=\"\",C55=\"\"),0,IF(C54=\"\",D55,IF(C55=\"\",D54,D54+D55)))","v":7.15},null,null,null,{"$f":"title269","v":"Subtotal"},{"$f":"+SUMIF(I53:I55,\">0\")","v":0},{"$f":"title319","v":"USD/year"}]
[]
[null,null,null,{"$f":"title359","v":"Cost for Collection and transfer to storage tank"},null,null,null,null,{"$f":"SUM(I50+I56)/E41","v":{"$error":"#DIV/0!"}},"USD/t"]
[]
[null,null,{"$f":"title360","v":"Collection Method 3 - Feedstock collected from different farms"}]
[]
[null,null,{"$f":"title361","v":"Source of biomass"},null,{"$f":"title405","v":"Collection method"},null,{"$f":"title346","v":"Data Source"},false]
[null,null,{"$f":"title362","v":"Transfer from individual farms"},null,"Mechanized"]
[]
[null,null,{"$f":"title363","v":"Transportation method"},null,"Tanker Truck Transfer",null,{"$f":"title372","v":"Number Of Farms Supplying Feedstock"},{"$f":"title373","v":"Average distance to collection point (m)"},{"$f":"title374","v":"Collection Period (days)"},{"$f":"IF($E$65=title364,title375,title376)&title377","v":"Number of Tanks required"}]
[]
[null,null,{"$f":"IF($E$65=title364,title365,title366)","v":"Tranport Capacity (liter)"},null,{"$f":"title370","v":"Residue Quanitiy (t/year)"},{"$f":"INDIRECT(\"'Data entry needs'!$F$\"&$A$1)","v":0},null,null,null,null,null,null,null,null,null,{"$f":"IF($E$60=title364,title365,title366)","v":"Pipe Diameter (in)"},{"$f":"VLOOKUP($E$65,$Y$147:$AE$149,3,FALSE)","v":27600}]
[null,null,{"$f":"IF($E$65=title364,title367,title368)","v":"Engine Power (HP)"},null,{"$f":"title371","v":"Residue Density (kg/m3)"},null,null,null,{"$f":"'Data entry needs'!L100-INDIRECT(\"Planner_pS2!$AN$\"&$B$1)*21","v":-252},{"$f":"IFERROR(ROUNDUP($F$67*1000*1000/(960*$D$69*'Data entry needs'!$L$99)/$I$68,0),0)","v":0},null,null,null,null,null,{"$f":"IF($E$60=title364,title367,title368)","v":"Motor Power (HP)"},{"$f":"VLOOKUP($E$65,$Y$147:$AE$149,4,FALSE)","v":200}]
[null,null,{"$f":"title369","v":"Transfer Rate (l/h)"},null,null,null,null,null,null,null,null,null,null,null,null,{"$f":"title369","v":"Transfer Rate (l/h)"},{"$f":"VLOOKUP($E$65,$Y$147:$AE$149,5,FALSE)","v":27221.917808219176}]
[]
[null,null,null,{"$f":"+IF(OR($E$63=title337,$E$63=title378),FALSE,TRUE)","v":true},{"$f":"+IF($E$63=title337,TRUE,FALSE)","v":false}]
[null,null,{"$f":"title332","v":"Biomass Price Definition"},null,null,null,null,null,null,null,null,null,null,null,null,{"$f":"title371","v":"Residue Density (kg/m3)"},{"$f":"IFERROR(VLOOKUP(INDIRECT(\"'Data entry needs'!$e$\"&$A$1),PRICE_FS3_PS2!$Y$152:$Z$156,2,FALSE),1000)","v":1000}]
[null,null,{"$f":"title333","v":"Labour cost"},{"$f":"title270","v":"Quantity"},{"$f":"title27","v":"Unit"},{"$f":"title270","v":"Quantity"},null,{"$f":"title27","v":"Unit"},"Total",{"$f":"title27","v":"Unit"}]
[null,null,{"$f":"IF(OR($E$63=title337,$E$63=title378),title379,\"\")","v":""},null,{"$f":"IF(OR($E$63=title337,$E$63=title378),title381,\"\")","v":""},{"$f":"IF(OR($E$63=title337,$E$63=title378),title335,\"\")","v":""},{"$f":"IF(OR($E$63=title337,$E$63=title378),'Data entry needs'!$L$96,\"\")","v":""},{"$f":"IF(OR($E$63=title337,$E$63=title378),title128,\"\")","v":""},{"$f":"IFERROR(IF(OR($E$63=title337,$E$63=title378),$F$67*D74*$G$74,\"\"),0)","v":""},{"$f":"IF(OR($E$63=title337,$E$63=title378),title319,\"\")","v":""}]
[null,null,{"$f":"IF($E$63=title337,\"\",title380)","v":"Number of skilled workers"},null,{"$f":"IF($E$63=title337,\"\",title381)","v":"person-hour/t"},{"$f":"IF($E$63=title337,\"\",title336)","v":"Skilled labour wage"},{"$f":"IF($E$63=title337,\"\",'Data entry needs'!$F$96)","v":0},{"$f":"IF($E$63=title337,\"\",title128)","v":"USD/person-hour"},{"$f":"IFERROR(IF($E$63=title337,\"\",D75*G75*$F$67),0)","v":0},{"$f":"IF($E$63=title337,\"\",title319)","v":"USD/year"}]
[null,null,null,{"$f":"+IF(AND(C74=\"\",C75=\"\"),0,IF(C74=\"\",D75,IF(C75=\"\",D74,D74+D75)))","v":0},null,null,null,{"$f":"title269","v":"Subtotal"},{"$f":"+SUMIF($I$74:$I$75,\">0\")","v":0},{"$f":"title319","v":"USD/year"}]
[null,null,{"$f":"title383","v":"Collection Machinery"},{"$f":"title270","v":"Quantity"},{"$f":"title27","v":"Unit"},{"$f":"title270","v":"Quantity"},null,{"$f":"title27","v":"Unit"},"Total",{"$f":"title27","v":"Unit"}]
[null,null,{"$f":"IF(OR($E$63=title382,$E$63=title378),title384,\"\")","v":"Collection Diesel Consumption"},null,{"$f":"IF(OR($E$63=title382,$E$63=title378),title575,\"\")","v":"l diesel/h"},{"$f":"IF(OR($E$63=title382,$E$63=title378),title389,\"\")","v":"Diesel Cost"},{"$f":"IF(OR($E$63=title382,$E$63=title378),'Data entry needs'!F$100,\"\")","v":0},{"$f":"IF(OR($E$63=title382,$E$63=title378),title576,\"\")","v":"USD/l diesel"},{"$f":"IFERROR(IF(OR($E$63=title382,$E$63=title378),D78*G78*D75*F67,\"\"),0)","v":0},{"$f":"title319","v":"USD/year"}]
[null,null,{"$f":"IF($E$65=title364,title385,title386)","v":"Truck Diesel Consumption"},null,{"$f":"IF($E$65=title364,title387,title388)","v":"l diesel/day"},{"$f":"IF($E$65=title364,title389,title390)","v":"Diesel Cost"},{"$f":"IF($E$65=title364,'Data entry needs'!F$100,'Data entry needs'!$L$92)","v":0},{"$f":"IF($E$65=title364,title576,\"USD/kWh\")","v":"USD/l diesel"},{"$f":"IFERROR(D79*G79*$I$68*$J$68,0)","v":0},{"$f":"title319","v":"USD/year"},null,null,null,null,null,{"$f":"IF($E$60=title364,title385,title386)","v":"Pump Electricity Consumption"},{"$f":"VLOOKUP($E$65,$Y$147:$AE$149,7,FALSE)","v":154}]
[null,null,null,null,null,null,null,{"$f":"title269","v":"Subtotal"},{"$f":"+SUMIF($I$78:$I$79,\">0\")","v":0},{"$f":"title319","v":"USD/year"}]
[null,null,{"$f":"title391","v":"Equipment"},{"$f":"title270","v":"Quantity"},{"$f":"title27","v":"Unit"},{"$f":"title270","v":"Quantity"},null,{"$f":"title27","v":"Unit"},"Total",{"$f":"title27","v":"Unit"}]
[null,null,{"$f":"IF($E$65=title364,title392,title393)","v":"Liquid Tanker Truck"},{"$f":"IF($E$65=title364,$J$68,$G$68*$H$68*1.2)","v":0},{"$f":"IF($E$65=title364,title398,\"m\")","v":"tank(s)"},{"$f":"IF($E$65=title364,title399,title400)","v":"Cost per Tank"},{"$f":"VLOOKUP($E$65,$Y$147:$AF$149,8,FALSE)/10","v":7900},{"$f":"IF($E$65=title364,title402,title403)","v":"USD/tank/year"},{"$f":"IFERROR(D82*G82,0)","v":0},{"$f":"title319","v":"USD/year"}]
[null,null,{"$f":"IF($E$65=title364,title394&$D$68&title395,title396&$D$68&title397)","v":"Semi-tractor 185  HP"},null,"USD",{"$f":"title401","v":"Depreciation Period"},null,{"$f":"title164","v":"year"},{"$f":"IFERROR(D83*$J$68/G83,0)","v":0},{"$f":"title319","v":"USD/year"},null,null,null,null,null,{"$f":"IF($E$60=title364,title406,title396&$D$63&title397)","v":"Pump  HP with agitator"},{"$f":"VLOOKUP($E$65,$Y$147:$AH$149,10,FALSE)","v":148000}]
[null,null,{"$f":"title358","v":"Operation and Mainteinance"},null,null,null,null,null,{"$f":"IFERROR(SUM(I82:I83)*$D$84,0)","v":0},{"$f":"title319","v":"USD/year"},null,null,null,null,null,{"$f":"title358","v":"Operation and Mainteinance"},0.15]
[null,null,null,null,null,null,null,{"$f":"title269","v":"Subtotal"},{"$f":"I82","v":0},{"$f":"title319","v":"USD/year"},null,null,null,null,null,{"$f":"title401","v":"Depreciation Period"},15]
[]
[null,null,null,{"$f":"title404","v":"Cost for Collection and transfer to central collection point"},null,null,null,null,{"$f":"(I85+I80+I76)/$F$67","v":{"$error":"#DIV/0!"}},"USD/t"]
[]
[]
[]
[]
[]
[]
[]
[]
[]
[]
[]
[]
[]
[]
[]
[]
[]
[]
[]
[]
[]
[]
[]
[]
[]
[]
[]
[]
[]
[]
[]
[null,null,null,null,null,null,null,null,null,null,null,null,null,null,null,{"$f":"title410","v":"Sources of biomass"}]
[null,null,null,null,null,null,null,null,null,null,null,null,null,null,null,{"$f":"title411","v":"Biomass spread in the field"}]
[null,null,null,null,null,null,null,null,null,null,null,null,null,null,null,{"$f":"title412","v":"Biomass collected from field"}]
[null,null,null,null,null,null,null,null,null,null,null,null,null,null,null,{"$f":"title413","v":"Biomass from food processing plant"}]
[]
[]
[]
[]
[null,null,null,null,null,null,null,null,null,null,null,null,null,null,null,{"$f":"title405","v":"Collection method"}]
[null,null,null,null,null,null,null,null,null,null,null,null,null,null,null,{"$f":"title382","v":"Mechanized"}]
[null,null,null,null,null,null,null,null,null,null,null,null,null,null,null,{"$f":"title378","v":"Semi-mechanized"}]
[null,null,null,null,null,null,null,null,null,null,null,null,null,null,null,{"$f":"title337","v":"Manual"}]
[]
[]
[]
[]
[]
[]
[]
[]
[]
[]
[]
[]
[]
[]
[null,null,null,null,null,null,null,null,null,null,null,null,null,null,null,"Dairy maNURE",40.753799999999998,"Manure (kg/head/day)"]
[null,null,null,null,null,null,null,null,null,null,null,null,null,null,null,null,"Energy Use Cost","Labor and Mainteinance",null,null,null,"ts (%) transported","Dewateing",null,null,null,{"$f":"title440","v":"Capacity"},{"$f":"title441","v":"Engine/motor (hp)"},{"$f":"title369","v":"Transfer Rate (l/h)"},{"$f":"title442","v":"Transfer time (m/h)"},{"$f":"title443","v":"Energy Use  (kw)"},{"$f":"title444","v":"Add equipment"}]
[null,null,null,null,null,null,null,null,null,null,null,null,null,null,null,{"$f":"title405","v":"Collection method"},"liters diesel/t residue","workers*day/t residue","Capital cost","Capital cost","Capital cost",null,"Final solids ts (%)",null,{"$f":"title364","v":"Tanker Truck Transfer"},null,27600,200,27221.917808219176,609.6,154,79000,"USD",{"$f":"148000","v":148000},2010,{"$f":"title406","v":"Semi-tractor 185 HP"},null,null,"l/working day"]
[null,null,null,null,null,null,null,null,null,null,null,null,null,null,null,{"$f":"title74","v":"Please Select"},null,null,null,null,null,null,null,null,{"$f":"title432","v":"High Volume Pipeline"},null,"6´´ PVC",150,3028,1016,215,{"$f":"37/3.048","v":12.139107611548557},"USD/m",37075,2003]
[null,null,null,null,null,null,null,null,null,null,null,null,null,null,null,{"$f":"title414","v":"Alley Scrapers"},0.14330809896079807,0.42057427773606393,{"$f":"(AVERAGE(35,45)*$B$52+10000+4000)/3785.41178","v":3.698408736922143},{"$f":"title421","v":"USD/liter mixture"},2009,0.08,0.5,null,{"$f":"title433","v":"Low Volume Pipeline"},null,"4´´ PVC",7.5,378,127,86,{"$f":"12.4/3.048","v":4.0682414698162734},"USD/m",7675,2003]
[null,null,null,null,null,null,null,null,null,null,null,null,null,null,null,{"$f":"title415","v":"Flush System"},0.4093569308278352,0.10526625737967994,{"$f":"(4950.08+(16+9.8)*$B$52)/3785.41178","v":1.3076727943188258},"USD/liter mixture",2014,{"$f":"AVERAGE(1%,3%)","v":0.02},0.5]
[null,null,null,null,null,null,null,null,null,null,null,null,null,null,null,{"$f":"title416","v":"Vacum Scraper"},3.190595592141102,1.9769935564290937,10,"USD/liter mixture",2010,0.18,0.5,null,null,{"$f":"title434","v":"Density (Kg/m3)"}]
[null,null,null,null,null,null,null,null,null,null,null,null,null,null,null,{"$f":"title417","v":"Skid-loader"},0.75612714559717353,1.2830705357537211,{"$f":"(142.6*0.914+58.5*0.084+50.75*0.997)/$Q$145","v":4.5602655457895951},"USD/liter mixture",2010,{"$f":"AVERAGE(8%,18%)","v":0.13},0.5,null,{"$f":"title435","v":"Buffalo"},960]
[null,null,null,null,null,null,null,null,null,null,null,null,null,null,null,{"$f":"title418","v":"Cross gutter Scraper"},1.5259658685640533E-2,2.6500596263415929E-2,5,"USD/liter mixture",2010,0.08,0.5,null,{"$f":"title436","v":"Cattle"},960]
[null,null,null,null,null,null,null,null,null,null,null,null,null,null,null,{"$f":"title419","v":"Cross Gutter Auger"},0.20478904265077005,2.6255220372088005E-2,{"$f":"2200*30/2378/10","v":2.7754415475189234},"USD/liter mixture",2010,0.08,0.5,null,{"$f":"title437","v":"Dairy Cattle"},994]
[null,null,null,null,null,null,null,null,null,null,null,null,null,null,null,{"$f":"title420","v":"Flush Flume"},0.13645231027594507,2.6255220372088005E-2,{"$f":"(4950.08+(16+9.8)*$B$52)*1.5/3785.41178","v":1.9615091914782385},"USD/liter mixture",2010,{"$f":"AVERAGE(4%,9%)","v":6.5000000000000002E-2},0.5,null,{"$f":"title438","v":"Poultry"},961.11]
[null,null,null,null,null,null,null,null,null,null,null,null,null,null,null,null,null,null,null,null,null,null,null,null,{"$f":"title439","v":"Swine"},1140.9000000000001]
[null,null,null,null,null,null,null,null,null,null,null,null,null,null,null,{"$f":"title357","v":"Dewatering"},"Screw Press ",{"$f":"PROPER(title164)","v":"Year"}]
[null,null,null,null,null,null,null,null,null,null,null,null,null,null,null,{"$f":"title422","v":"Capital Cost (USD/t residue)"},{"$f":"AVERAGE(0.2,0.5)*1000000*0.12/AVERAGE(4000,8000)","v":7},2002]
[null,null,null,null,null,null,null,null,null,null,null,null,null,null,null,{"$f":"title423","v":"Operation (worker/t residue)"},{"$f":"AVERAGE(20,40)*1000/AVERAGE(4000,8000)/(300*8*160)","v":1.3020833333333334E-5}]
[null,null,null,null,null,null,null,null,null,null,null,null,null,null,null,{"$f":"title424","v":"Energy Demand kWh/t residue"},{"$f":"AVERAGE(5,15)*8000/AVERAGE(4000,8000)","v":13.333333333333334},2002]
[]
[]
[]
[]
[null,null,null,null,null,null,null,null,null,null,null,null,null,null,null,{"$f":"title74","v":"Please Select"},{"$f":"title405","v":"Collection method"},"Show","Section to Show",{"$f":"VLOOKUP(INDIRECT(\"'Data entry needs'!$d$\"&$A$1),$P$166:$R$178,3,FALSE)","v":{"$error":"#N/A"}}]
[null,null,null,null,null,null,null,null,null,null,null,null,null,null,null,{"$f":"title184","v":"Biodiesel/Oilseed Ind."},{"$f":"title425","v":"No collection neeeded"},1,{"$f":"title429&\" 0\"","v":"Option 0"},0,0]
[null,null,null,null,null,null,null,null,null,null,null,null,null,null,null,{"$f":"title85","v":"Crop Residues"},{"$f":"title426","v":"Method 1"},2,{"$f":"title429&\" 1\"","v":"Option 1"},{"$f":"$I$31","v":{"$error":"#DIV/0!"}},{"$f":"$D$24/E16","v":{"$error":"#DIV/0!"}},{"$f":"title381","v":"person-hour/t"}]
[null,null,null,null,null,null,null,null,null,null,null,null,null,null,null,{"$f":"title185","v":"Dairy-milk ind."},{"$f":"title427","v":"Method 2, Method 3"},4,{"$f":"title429&\" 2\"","v":"Option 2"},{"$f":"$I$58","v":{"$error":"#DIV/0!"}},{"$f":"F49/E41","v":{"$error":"#N/A"}},{"$f":"title381","v":"person-hour/t"}]
[null,null,null,null,null,null,null,null,null,null,null,null,null,null,null,{"$f":"title120","v":"Energy Crops"},{"$f":"title425","v":"No collection neeeded"},1,{"$f":"title429&\" 3\"","v":"Option 3"},{"$f":"$I$87","v":{"$error":"#DIV/0!"}},{"$f":"D76","v":0},{"$f":"title381","v":"person-hour/t"}]
[null,null,null,null,null,null,null,null,null,null,null,null,null,null,null,{"$f":"title186","v":"Eth-Sugar-Starch Ind."},{"$f":"title425","v":"No collection neeeded"},1]
[null,null,null,null,null,null,null,null,null,null,null,null,null,null,null,{"$f":"title187","v":"Food Process. Res."},{"$f":"title425","v":"No collection neeeded"},1,{"$f":"title430","v":"Result"},{"$f":"IF($T$165=1,T166,IF($T$165=2,$T$167,IF($T$165=3,T168,IF(AND($T$165=4,$E$34),$T$168,$T$169))))","v":{"$error":"#N/A"}}]
[null,null,null,null,null,null,null,null,null,null,null,null,null,null,null,{"$f":"title188","v":"Grass"},{"$f":"title426","v":"Method 1"},2,{"$f":"title431","v":"Employees"},{"$f":"IF($T$165=1,U166,IF($T$165=2,$U$167,IF($T$165=3,U169,IF(AND($T$165=4,$E$34),$U$168,$U$169))))","v":{"$error":"#N/A"}},{"$f":"title381","v":"person-hour/t"}]
[null,null,null,null,null,null,null,null,null,null,null,null,null,null,null,{"$f":"title119","v":"Crops"},{"$f":"title425","v":"No collection neeeded"},1]
[null,null,null,null,null,null,null,null,null,null,null,null,null,null,null,{"$f":"title189","v":"Other Options"},{"$f":"title425","v":"No collection neeeded"},1]
[null,null,null,null,null,null,null,null,null,null,null,null,null,null,null,{"$f":"title190","v":"Slaughterhouses wastes"},{"$f":"title428","v":"Method 2"},3]
[null,null,null,null,null,null,null,null,null,null,null,null,null,null,null,{"$f":"title191","v":"Yeast-Alcoholic Bev."},{"$f":"title425","v":"No collection neeeded"},1]
[null,null,null,null,null,null,null,null,null,null,null,null,null,null,null,{"$f":"title84","v":"Manure"},{"$f":"title427","v":"Method 2, Method 3"},4]
[null,null,null,null,null,null,null,null,null,null,null,null,null,null,null,{"$f":"title192","v":"Wastewater"},{"$f":"title425","v":"No collection neeeded"},1]

{"sheet":"PRICE_FS4_PS2","index":34,"n_rows":178,"n_cols":39,"rows_kept":178,"cut":false,"hidden":true,"merged":[[40,8,40,9],[2,2,2,9],[5,2,5,3],[5,4,5,6],[7,2,10,9],[14,6,14,7],[15,2,15,3],[15,6,15,7],[30,3,30,7],[33,4,34,4],[33,5,34,5],[33,6,34,9],[34,2,34,3],[64,9,66,9],[86,3,86,7],[41,8,41,9],[57,3,57,7],[61,4,61,5],[61,6,62,6],[62,4,62,5],[64,2,64,3],[64,4,64,5],[64,6,66,6],[64,7,66,7],[64,8,66,8]]}
[{"$f":"PRICE_FS3_PS2!A1+2","v":45},91]
[]
[null,null,{"$f":"+title324&UPPER(INDIRECT(\"'Data entry needs'!$d$\"&$A$1)&\"-\"&INDIRECT(\"'Data entry needs'!$e$\"&$A$1))","v":"COLLECTION COSTS CALCULATOR FOR PLEASE SELECT-PLEASE SELECT"}]
[]
[]
[null,null,{"$f":"title193","v":"Use white cells to input data"},null,{"$f":"title194","v":"Grey cells are used for calculations"}]
[]
[null,null,{"$f":"title325&INDIRECT(\"'Data entry needs'!$d$\"&$A$1)&title326","v":"No collection method is required. It is assumed that Please Select are already collected. Then, transportation cost and/or market price should be considered."}]
[]
[]
[]
[]
[null,null,{"$f":"title327","v":"Collection Method 1 - Biomass spread in the field"}]
[]
[null,null,{"$f":"title328","v":"Collecting method"},null,{"$f":"title329","v":"Biomass Yield"},null,{"$f":"title110","v":"Feedstock Available (t/year)"},null,{"$f":"title330","v":"Collection days"}]
[null,null,"Mechanized",null,null,"t/ha",{"$f":"INDIRECT(\"'Data entry needs'!$F$\"&$A$1)","v":0},null,{"$f":"'Data entry needs'!L100-INDIRECT(\"Planner_pS2!$AN$\"&$B$1)*21","v":-252}]
[]
[null,null,{"$f":"title331","v":"Biomass Collection definition"}]
[]
[null,null,{"$f":"title332","v":"Biomass Price Definition"},null,null,null,null,null,null,null,null,null,null,null,null,null,null,null,null,null,null,{"$f":"title405","v":"Collection method"},null,{"$f":"title382","v":"Mechanized"},{"$f":"title380","v":"Number of skilled workers"},{"$f":"title409","v":"person-hour/ha"}]
[null,null,{"$f":"title333","v":"Labour cost"},{"$f":"title270","v":"Quantity"},{"$f":"title27","v":"Unit"},{"$f":"title270","v":"Quantity"},null,{"$f":"title27","v":"Unit"},"Total",{"$f":"title27","v":"Unit"},null,null,null,null,null,null,null,null,null,null,null,{"$f":"$C$16","v":"Mechanized"},null,{"$f":"title382&2","v":"Mechanized2"},{"$f":"title336","v":"Skilled labour wage"},{"$f":"title128","v":"USD/person-hour"}]
[null,null,{"$f":"IFERROR(VLOOKUP($V$21&$W21,$X$20:$Z$31,2,FALSE),\"\")","v":"Number of skilled workers"},null,{"$f":"IFERROR(VLOOKUP($V$21&$W21,$X$20:$Z$31,3,FALSE),\"\")","v":"person-hour/ha"},{"$f":"IFERROR(VLOOKUP($V$21&$W23,$X$20:$Z$31,2,FALSE),\"\")","v":"Skilled labour wage"},{"$f":"IF(F22=\"\",\"\",IF(F22=title335,'Data entry needs'!$L$96,IF(F22=title336,'Data entry needs'!F96)))","v":0},{"$f":"IFERROR(VLOOKUP($V$21&$W23,$X$20:$Z$31,3,FALSE),\"\")","v":"USD/person-hour"},{"$f":"IFERROR(G22*D22*(G16/E16)*('Data entry needs'!$L$100/$I$16),0)","v":0},{"$f":"IF(C22=\"\",\"\",title319)","v":"USD/year"},null,null,null,null,null,null,null,null,null,null,null,null,1,{"$f":"title382&4","v":"Mechanized4"},{"$f":"title407","v":"Average fuel economy"},"l/h"]
[null,null,{"$f":"IFERROR(VLOOKUP($V$21&$W22,$X$20:$Z$31,2,FALSE),\"\")","v":""},null,{"$f":"IFERROR(VLOOKUP($V$21&$W22,$X$20:$Z$31,3,FALSE),\"\")","v":""},{"$f":"IFERROR(VLOOKUP($V$21&$W24,$X$20:$Z$31,2,FALSE),\"\")","v":""},{"$f":"IF(F23=\"\",\"\",'Data entry needs'!L96)","v":""},{"$f":"title128","v":"USD/person-hour"},{"$f":"IFERROR(G23*D23*(G16/E16)*('Data entry needs'!$L$100/$I$16),0)","v":0},{"$f":"IF(C23=\"\",\"\",title319)","v":""},null,null,null,null,null,null,null,null,null,null,null,{"$f":"VLOOKUP($V$21,$T$29:$U$31,2,FALSE)","v":1},2,{"$f":"title382&5","v":"Mechanized5"},{"$f":"title408","v":"Fuel price"},"USD/l"]
[null,null,null,{"$f":"+IF(AND(C22=\"\",C23=\"\"),0,IF(C22=\"\",D23,IF(C23=\"\",D22,D22+D23)))","v":0},null,null,null,{"$f":"title269","v":"Subtotal"},{"$f":"+SUMIF($I$22:$I$23,\">0\")","v":0},{"$f":"title319","v":"USD/year"},null,null,null,null,null,null,null,null,null,null,null,null,3,{"$f":"title378","v":"Semi-mechanized"},{"$f":"title380","v":"Number of skilled workers"},{"$f":"title409","v":"person-hour/ha"}]
[null,null,{"$f":"title334","v":"Machinery & operating cost"},{"$f":"title270","v":"Quantity"},{"$f":"title27","v":"Unit"},{"$f":"title270","v":"Quantity"},null,{"$f":"title27","v":"Unit"},"Total",{"$f":"title27","v":"Unit"},null,null,null,null,null,null,null,null,null,null,null,null,4,{"$f":"title378&1","v":"Semi-mechanized1"},{"$f":"title379","v":"Number of unskilled workers"},{"$f":"title409","v":"person-hour/ha"}]
[null,null,{"$f":"IFERROR(VLOOKUP($V$21&$W25,$X$20:$Z$31,2,FALSE),\"\")","v":"Average fuel economy"},null,{"$f":"IFERROR(VLOOKUP($V$21&$W25,$X$20:$Z$31,3,FALSE),\"\")","v":"l/h"},{"$f":"IFERROR(VLOOKUP($V$21&$W26,$X$20:$Z$31,2,FALSE),\"\")","v":"Fuel price"},{"$f":"IF(F26=\"\",\"\",'Data entry needs'!$F$100)","v":0},{"$f":"+IFERROR(VLOOKUP($V$21&$W26,$X$20:$Z$31,3,FALSE),\"\")","v":"USD/l"},{"$f":"+IFERROR(D26*G26*IF($C$16=title337,0,$D$22*G16/E16)*('Data entry needs'!$L$100/$I$16),\"\")","v":""},{"$f":"IF(C26=\"\",\"\",title319)","v":"USD/year"},null,null,null,null,null,null,null,null,null,null,null,null,5,{"$f":"title378&2","v":"Semi-mechanized2"},{"$f":"title336","v":"Skilled labour wage"},{"$f":"title128","v":"USD/person-hour"}]
[null,null,null,null,null,null,null,{"$f":"IF(C26=\"\",\"\",title269)","v":"Subtotal"},{"$f":"+I26","v":""},{"$f":"IF(C26=\"\",\"\",title319)","v":"USD/year"},null,null,null,null,null,null,null,null,null,null,null,null,null,{"$f":"title378&3","v":"Semi-mechanized3"},{"$f":"title335","v":"Unskilled labour wage"},{"$f":"title128","v":"USD/person-hour"}]
[null,null,null,null,null,null,null,{"$f":"IF(C26=\"\",\"\",\"Total\")","v":"Total"},{"$f":"IFERROR(I24+I27,I24)","v":0},{"$f":"title319","v":"USD/year"},null,null,null,null,null,null,null,null,null,{"$f":"title405","v":"Collection method"},null,null,null,{"$f":"title378&4","v":"Semi-mechanized4"},{"$f":"title407","v":"Average fuel economy"},"l/h"]
[null,null,null,null,null,null,null,null,null,null,null,null,null,null,null,null,null,null,null,{"$f":"title382","v":"Mechanized"},1,null,null,{"$f":"title378&5","v":"Semi-mechanized5"},{"$f":"title408","v":"Fuel price"},"USD/l"]
[null,null,null,null,null,null,null,null,"",null,null,null,null,null,null,null,null,null,null,{"$f":"title378","v":"Semi-mechanized"},2,null,null,{"$f":"title337","v":"Manual"},{"$f":"title379","v":"Number of unskilled workers"},{"$f":"title409","v":"person-hour/ha"}]
[null,null,null,{"$f":"title338&INDIRECT(\"'Data entry needs'!$d$\"&$A$1)&\"-\"&INDIRECT(\"'Data entry needs'!$e$\"&$A$1)","v":"Collection cost of Please Select-Please Select"},null,null,null,null,{"$f":"(I24+I28)/$G$16","v":{"$error":"#DIV/0!"}},"USD/t",null,null,null,null,null,null,null,null,null,{"$f":"title337","v":"Manual"},3,null,null,{"$f":"title337&2","v":"Manual2"},{"$f":"title335","v":"Unskilled labour wage"},{"$f":"title128","v":"USD/person-hour"}]
[]
[]
[null,null,null,null,false,null,{"$f":"IF($E$34,title340,title341)","v":"Use this method for feedstock collected and transported from different farms to a central collection point"}]
[null,null,{"$f":"title339","v":"Collection Methods Available"}]
[]
[null,null,{"$f":"title342","v":"Collection Method 2"}]
[]
[null,null,{"$f":"title328","v":"Collecting method"},{"$f":"title343","v":"Transportation requirements"},null,null,null,null,{"$f":"title346","v":"Data Source"}]
[]
[null,null,"Please Select",{"$f":"title110","v":"Feedstock Available (t/year)"},{"$f":"INDIRECT(\"'Data entry needs'!$F$\"&$A$1)","v":0},{"$f":"title344","v":"Initial ts in residue (%)"},null,{"$f":"INDIRECT(\"'Data entry needs'!$h$\"&$A$1)","v":0},false]
[null,null,null,{"$f":"title134","v":"Operating days per year"},{"$f":"'Data entry needs'!L100-INDIRECT(\"Planner_pS2!$AN$\"&$B$1)*21","v":-252},{"$f":"title345&$C$41","v":"ts (%) allowed by Please Select"},null,{"$f":"Q45","v":{"$error":"#N/A"}}]
[]
[null,null,{"$f":"title347","v":"Collection Cost Definition"}]
[null,null,{"$f":"title348","v":"Operation Cost"},{"$f":"title270","v":"Quantity"},{"$f":"title27","v":"Unit"},{"$f":"title270","v":"Quantity"},{"$f":"title27","v":"Unit"},{"$f":"title267","v":"Unit Price"},"Total",null,null,null,null,null,null,"ts (%) transported",{"$f":"VLOOKUP($C$41,$P$149:$V$155,7,FALSE)","v":{"$error":"#N/A"}}]
[null,null,{"$f":"title35","v":"Electricity"},{"$f":"Q46","v":13.333333333333334},"kWh/t res",{"$f":"D46*E41","v":0},{"$f":"title304","v":"kWh/year"},{"$f":"'Data entry needs'!$L$92","v":0},{"$f":"F46*H46","v":0},{"$f":"title319","v":"USD/year"},null,null,null,null,null,{"$f":"title35","v":"Electricity"},{"$f":"$Q$160","v":13.333333333333334}]
[null,null,{"$f":"title170","v":"Diesel"},{"$f":"Q47","v":{"$error":"#N/A"}},{"$f":"title574","v":"l diesel/t res"},{"$f":"D47*$E$41","v":{"$error":"#N/A"}},{"$f":"title350","v":"Liter Diesel/year"},{"$f":"'Data entry needs'!$F$100","v":0},{"$f":"F47*H47","v":{"$error":"#N/A"}},{"$f":"title319","v":"USD/year"},null,null,null,null,null,{"$f":"title170","v":"Diesel"},{"$f":"VLOOKUP($C$41,$P$149:$S$155,2,FALSE)","v":{"$error":"#N/A"}}]
[null,null,{"$f":"title244","v":"Water Make-up "},{"$f":"Q48","v":0.15},{"$f":"title353","v":"Liter water/t res"},{"$f":"IF(D48=0,0,E41*(H41/H42)*(1-D48))","v":{"$error":"#N/A"}},{"$f":"title351","v":"Liter water/year"},{"$f":"'Data entry needs'!$F$92","v":0},{"$f":"F48*H48*D48","v":{"$error":"#N/A"}},{"$f":"title319","v":"USD/year"},null,null,null,null,null,{"$f":"title244","v":"Water Make-up "},0.15]
[null,null,{"$f":"title349","v":"Unskilled Workers"},{"$f":"Q49","v":{"$error":"#N/A"}},{"$f":"title354","v":"person-day/t res"},{"$f":"ROUNDUP($D$49*E41*('Data entry needs'!$L$100/PRICE_FS4_PS2!E42)/'Data entry needs'!$L$99,0)","v":{"$error":"#N/A"}},{"$f":"title352","v":"person-hour"},{"$f":"'Data entry needs'!$L$96","v":0},{"$f":"F49*H49","v":{"$error":"#N/A"}},{"$f":"title319","v":"USD/year"},null,null,null,null,null,{"$f":"title127","v":"Unskilled worker"},{"$f":"VLOOKUP($C$41,$P$149:$S$155,3,FALSE)","v":{"$error":"#N/A"}}]
[null,null,null,{"$f":"Q47","v":{"$error":"#N/A"}},null,null,null,{"$f":"title269","v":"Subtotal"},{"$f":"+SUMIF($I$46:$I$49,\">0\")","v":0},{"$f":"title319","v":"USD/year"}]
[]
[null,null,{"$f":"title355","v":"Capital Investment"},{"$f":"title270","v":"Quantity"},{"$f":"title27","v":"Unit"}]
[null,null,{"$f":"$C$41&title356","v":"Please Select and equipment"},{"$f":"Q53","v":{"$error":"#N/A"}},{"$f":"VLOOKUP($C$41,$P$149:$T$155,5,FALSE)","v":{"$error":"#N/A"}},null,null,null,{"$f":"D53*(E41*10)/20","v":{"$error":"#N/A"}},{"$f":"title319","v":"USD/year"},null,null,null,null,null,{"$f":"$C$41&title356","v":"Please Select and equipment"},{"$f":"VLOOKUP($C$41,$P$149:$S$155,4,FALSE)","v":{"$error":"#N/A"}}]
[null,null,{"$f":"title357","v":"Dewatering"},{"$f":"Q54","v":7},"USD/t res",null,null,null,{"$f":"D54*$E$41/20","v":0},{"$f":"title319","v":"USD/year"},null,null,null,null,null,{"$f":"title357","v":"Dewatering"},{"$f":"$Q$158","v":7}]
[null,null,{"$f":"title358","v":"Operation and Mainteinance"},{"$f":"Q55","v":0.15},null,null,null,null,{"$f":"SUM(I53:I54)*$D$55","v":{"$error":"#N/A"}},{"$f":"title319","v":"USD/year"},null,null,null,null,null,{"$f":"title358","v":"Operation and Mainteinance"},0.15]
[null,null,null,{"$f":"+IF(AND(C54=\"\",C55=\"\"),0,IF(C54=\"\",D55,IF(C55=\"\",D54,D54+D55)))","v":7.15},null,null,null,{"$f":"title269","v":"Subtotal"},{"$f":"+SUMIF(I53:I55,\">0\")","v":0},{"$f":"title319","v":"USD/year"}]
[]
[null,null,null,{"$f":"title359","v":"Cost for Collection and transfer to storage tank"},null,null,null,null,{"$f":"SUM(I50+I56)/E41","v":{"$error":"#DIV/0!"}},"USD/t"]
[]
[null,null,{"$f":"title360","v":"Collection Method 3 - Feedstock collected from different farms"}]
[]
[null,null,{"$f":"title361","v":"Source of biomass"},null,{"$f":"title405","v":"Collection method"},null,{"$f":"title346","v":"Data Source"},false]
[null,null,{"$f":"title362","v":"Transfer from individual farms"},null,"Mechanized"]
[]
[null,null,{"$f":"title363","v":"Transportation method"},null,"Tanker Truck Transfer",null,{"$f":"title372","v":"Number Of Farms Supplying Feedstock"},{"$f":"title373","v":"Average distance to collection point (m)"},{"$f":"title374","v":"Collection Period (days)"},{"$f":"IF($E$65=title364,title375,title376)&title377","v":"Number of Tanks required"}]
[]
[null,null,{"$f":"IF($E$65=title364,title365,title366)","v":"Tranport Capacity (liter)"},null,{"$f":"title370","v":"Residue Quanitiy (t/year)"},{"$f":"INDIRECT(\"'Data entry needs'!$F$\"&$A$1)","v":0},null,null,null,null,null,null,null,null,null,{"$f":"IF($E$60=title364,title365,title366)","v":"Pipe Diameter (in)"},{"$f":"VLOOKUP($E$65,$Y$147:$AE$149,3,FALSE)","v":27600}]
[null,null,{"$f":"IF($E$65=title364,title367,title368)","v":"Engine Power (HP)"},null,{"$f":"title371","v":"Residue Density (kg/m3)"},{"$f":"Q72","v":1000},null,null,{"$f":"'Data entry needs'!L100-INDIRECT(\"Planner_pS2!$AN$\"&$B$1)*21","v":-252},{"$f":"IFERROR(ROUNDUP($F$67*1000*1000/(960*$D$69*'Data entry needs'!$L$99)/$I$68,0),0)","v":0},null,null,null,null,null,{"$f":"IF($E$60=title364,title367,title368)","v":"Motor Power (HP)"},{"$f":"VLOOKUP($E$65,$Y$147:$AE$149,4,FALSE)","v":200}]
[null,null,{"$f":"title369","v":"Transfer Rate (l/h)"},null,null,null,null,null,null,null,null,null,null,null,null,{"$f":"title369","v":"Transfer Rate (l/h)"},{"$f":"VLOOKUP($E$65,$Y$147:$AE$149,5,FALSE)","v":27221.917808219176}]
[]
[null,null,null,{"$f":"+IF(OR($E$63=title337,$E$63=title378),FALSE,TRUE)","v":true},{"$f":"+IF($E$63=title337,TRUE,FALSE)","v":false}]
[null,null,{"$f":"title332","v":"Biomass Price Definition"},null,null,null,null,null,null,null,null,null,null,null,null,{"$f":"title371","v":"Residue Density (kg/m3)"},{"$f":"IFERROR(VLOOKUP(INDIRECT(\"'Data entry needs'!$e$\"&$A$1),PRICE_FS3_PS2!$Y$152:$Z$156,2,FALSE),1000)","v":1000}]
[null,null,{"$f":"title333","v":"Labour cost"},{"$f":"title270","v":"Quantity"},{"$f":"title27","v":"Unit"},{"$f":"title270","v":"Quantity"},null,{"$f":"title27","v":"Unit"},"Total",{"$f":"title27","v":"Unit"}]
[null,null,{"$f":"IF(OR($E$63=title337,$E$63=title378),title379,\"\")","v":""},null,{"$f":"IF(OR($E$63=title337,$E$63=title378),title381,\"\")","v":""},{"$f":"IF(OR($E$63=title337,$E$63=title378),title335,\"\")","v":""},{"$f":"IF(OR($E$63=title337,$E$63=title378),'Data entry needs'!$L$96,\"\")","v":""},{"$f":"IF(OR($E$63=title337,$E$63=title378),title128,\"\")","v":""},{"$f":"IFERROR(IF(OR($E$63=title337,$E$63=title378),$F$67*D74*$G$74,\"\"),0)","v":""},{"$f":"IF(OR($E$63=title337,$E$63=title378),title319,\"\")","v":""}]
[null,null,{"$f":"IF($E$63=title337,\"\",title380)","v":"Number of skilled workers"},null,{"$f":"IF($E$63=title337,\"\",title381)","v":"person-hour/t"},{"$f":"IF($E$63=title337,\"\",title336)","v":"Skilled labour wage"},{"$f":"IF($E$63=title337,\"\",'Data entry needs'!$F$96)","v":0},{"$f":"IF($E$63=title337,\"\",title128)","v":"USD/person-hour"},{"$f":"IFERROR(IF($E$63=title337,\"\",D75*G75*$F$67),0)","v":0},{"$f":"IF($E$63=title337,\"\",title319)","v":"USD/year"}]
[null,null,null,{"$f":"+IF(AND(C74=\"\",C75=\"\"),0,IF(C74=\"\",D75,IF(C75=\"\",D74,D74+D75)))","v":0},null,null,null,{"$f":"title269","v":"Subtotal"},{"$f":"+SUMIF($I$74:$I$75,\">0\")","v":0},{"$f":"title319","v":"USD/year"}]
[null,null,{"$f":"title383","v":"Collection Machinery"},{"$f":"title270","v":"Quantity"},{"$f":"title27","v":"Unit"},{"$f":"title270","v":"Quantity"},null,{"$f":"title27","v":"Unit"},"Total",{"$f":"title27","v":"Unit"}]
[null,null,{"$f":"IF(OR($E$63=title382,$E$63=title378),title384,\"\")","v":"Collection Diesel Consumption"},null,{"$f":"IF(OR($E$63=title382,$E$63=title378),title575,\"\")","v":"l diesel/h"},{"$f":"IF(OR($E$63=title382,$E$63=title378),title389,\"\")","v":"Diesel Cost"},{"$f":"IF(OR($E$63=title382,$E$63=title378),'Data entry needs'!F$100,\"\")","v":0},{"$f":"IF(OR($E$63=title382,$E$63=title378),title576,\"\")","v":"USD/l diesel"},{"$f":"IFERROR(IF(OR($E$63=title382,$E$63=title378),D78*G78*D75*F67,\"\"),0)","v":0},{"$f":"title319","v":"USD/year"}]
[null,null,{"$f":"IF($E$65=title364,title385,title386)","v":"Truck Diesel Consumption"},null,{"$f":"IF($E$65=title364,title387,title388)","v":"l diesel/day"},{"$f":"IF($E$65=title364,title389,title390)","v":"Diesel Cost"},{"$f":"IF($E$65=title364,'Data entry needs'!F$100,'Data entry needs'!$L$92)","v":0},{"$f":"IF($E$65=title364,title576,\"USD/kWh\")","v":"USD/l diesel"},{"$f":"IFERROR(D79*G79*$I$68*$J$68,0)","v":0},{"$f":"title319","v":"USD/year"},null,null,null,null,null,{"$f":"IF($E$60=title364,title385,title386)","v":"Pump Electricity Consumption"},{"$f":"VLOOKUP($E$65,$Y$147:$AE$149,7,FALSE)","v":154}]
[null,null,null,null,null,null,null,{"$f":"title269","v":"Subtotal"},{"$f":"+SUMIF($I$78:$I$79,\">0\")","v":0},{"$f":"title319","v":"USD/year"}]
[null,null,{"$f":"title391","v":"Equipment"},{"$f":"title270","v":"Quantity"},{"$f":"title27","v":"Unit"},{"$f":"title270","v":"Quantity"},null,{"$f":"title27","v":"Unit"},"Total",{"$f":"title27","v":"Unit"}]
[null,null,{"$f":"IF($E$65=title364,title392,title393)","v":"Liquid Tanker Truck"},{"$f":"IF($E$65=title364,$J$68,$G$68*$H$68*1.2)","v":0},{"$f":"IF($E$65=title364,title398,\"m\")","v":"tank(s)"},{"$f":"IF($E$65=title364,title399,title400)","v":"Cost per Tank"},{"$f":"VLOOKUP($E$65,$Y$147:$AF$149,8,FALSE)/10","v":7900},{"$f":"IF($E$65=title364,title402,title403)","v":"USD/tank/year"},{"$f":"IFERROR(D82*G82,0)","v":0},{"$f":"title319","v":"USD/year"}]
[null,null,{"$f":"IF($E$65=title364,title394&$D$68&title395,title396&$D$68&title397)","v":"Semi-tractor 185  HP"},null,"USD",{"$f":"title401","v":"Depreciation Period"},null,{"$f":"title164","v":"year"},{"$f":"IFERROR(D83*$J$68/G83,0)","v":0},{"$f":"title319","v":"USD/year"},null,null,null,null,null,{"$f":"IF($E$60=title364,title406,title396&$D$63&title397)","v":"Pump  HP with agitator"},{"$f":"VLOOKUP($E$65,$Y$147:$AH$149,10,FALSE)","v":148000}]
[null,null,{"$f":"title358","v":"Operation and Mainteinance"},null,null,null,null,null,{"$f":"IFERROR(SUM(I82:I83)*$D$84,0)","v":0},{"$f":"title319","v":"USD/year"},null,null,null,null,null,{"$f":"title358","v":"Operation and Mainteinance"},0.15]
[null,null,null,null,null,null,null,{"$f":"title269","v":"Subtotal"},{"$f":"I82","v":0},{"$f":"title319","v":"USD/year"},null,null,null,null,null,{"$f":"title401","v":"Depreciation Period"},15]
[]
[null,null,null,{"$f":"title404","v":"Cost for Collection and transfer to central collection point"},null,null,null,null,{"$f":"(I85+I80+I76)/$F$67","v":{"$error":"#DIV/0!"}},"USD/t"]
[]
[]
[]
[]
[]
[]
[]
[]
[]
[]
[]
[]
[]
[]
[]
[]
[]
[]
[]
[]
[]
[]
[]
[]
[]
[]
[]
[]
[]
[]
[]
[null,null,null,null,null,null,null,null,null,null,null,null,null,null,null,{"$f":"title410","v":"Sources of biomass"}]
[null,null,null,null,null,null,null,null,null,null,null,null,null,null,null,{"$f":"title411","v":"Biomass spread in the field"}]
[null,null,null,null,null,null,null,null,null,null,null,null,null,null,null,{"$f":"title412","v":"Biomass collected from field"}]
[null,null,null,null,null,null,null,null,null,null,null,null,null,null,null,{"$f":"title413","v":"Biomass from food processing plant"}]
[]
[]
[]
[]
[null,null,null,null,null,null,null,null,null,null,null,null,null,null,null,{"$f":"title405","v":"Collection method"}]
[null,null,null,null,null,null,null,null,null,null,null,null,null,null,null,{"$f":"title382","v":"Mechanized"}]
[null,null,null,null,null,null,null,null,null,null,null,null,null,null,null,{"$f":"title378","v":"Semi-mechanized"}]
[null,null,null,null,null,null,null,null,null,null,null,null,null,null,null,{"$f":"title337","v":"Manual"}]
[]
[]
[]
[]
[]
[]
[]
[]
[]
[]
[]
[]
[]
[]
[null,null,null,null,null,null,null,null,null,null,null,null,null,null,null,"Dairy maNURE",40.753799999999998,"Manure (kg/head/day)"]
[null,null,null,null,null,null,null,null,null,null,null,null,null,null,null,null,"Energy Use Cost","Labor and Mainteinance",null,null,null,"ts (%) transported","Dewateing",null,null,null,{"$f":"title440","v":"Capacity"},{"$f":"title441","v":"Engine/motor (hp)"},{"$f":"title369","v":"Transfer Rate (l/h)"},{"$f":"title442","v":"Transfer time (m/h)"},{"$f":"title443","v":"Energy Use  (kw)"},{"$f":"title444","v":"Add equipment"}]
[null,null,null,null,null,null,null,null,null,null,null,null,null,null,null,{"$f":"title405","v":"Collection method"},"liters diesel/t residue","workers*day/t residue","Capital cost","Capital cost","Capital cost",null,"Final solids ts (%)",null,{"$f":"title364","v":"Tanker Truck Transfer"},null,27600,200,27221.917808219176,609.6,154,79000,"USD",{"$f":"148000","v":148000},2010,{"$f":"title406","v":"Semi-tractor 185 HP"},null,null,"l/working day"]
[null,null,null,null,null,null,null,null,null,null,null,null,null,null,null,{"$f":"title74","v":"Please Select"},null,null,null,null,null,null,null,null,{"$f":"title432","v":"High Volume Pipeline"},null,"6´´ PVC",150,3028,1016,215,{"$f":"37/3.048","v":12.139107611548557},"USD/m",37075,2003]
[null,null,null,null,null,null,null,null,null,null,null,null,null,null,null,{"$f":"title414","v":"Alley Scrapers"},0.14330809896079807,0.42057427773606393,{"$f":"(AVERAGE(35,45)*$B$52+10000+4000)/3785.41178","v":3.698408736922143},{"$f":"title421","v":"USD/liter mixture"},2009,0.08,0.5,null,{"$f":"title433","v":"Low Volume Pipeline"},null,"4´´ PVC",7.5,378,127,86,{"$f":"12.4/3.048","v":4.0682414698162734},"USD/m",7675,2003]
[null,null,null,null,null,null,null,null,null,null,null,null,null,null,null,{"$f":"title415","v":"Flush System"},0.4093569308278352,0.10526625737967994,{"$f":"(4950.08+(16+9.8)*$B$52)/3785.41178","v":1.3076727943188258},"USD/liter mixture",2014,{"$f":"AVERAGE(1%,3%)","v":0.02},0.5]
[null,null,null,null,null,null,null,null,null,null,null,null,null,null,null,{"$f":"title416","v":"Vacum Scraper"},3.190595592141102,1.9769935564290937,10,"USD/liter mixture",2010,0.18,0.5,null,null,{"$f":"title434","v":"Density (Kg/m3)"}]
[null,null,null,null,null,null,null,null,null,null,null,null,null,null,null,{"$f":"title417","v":"Skid-loader"},0.75612714559717353,1.2830705357537211,{"$f":"(142.6*0.914+58.5*0.084+50.75*0.997)/$Q$145","v":4.5602655457895951},"USD/liter mixture",2010,{"$f":"AVERAGE(8%,18%)","v":0.13},0.5,null,{"$f":"title435","v":"Buffalo"},960]
[null,null,null,null,null,null,null,null,null,null,null,null,null,null,null,{"$f":"title418","v":"Cross gutter Scraper"},1.5259658685640533E-2,2.6500596263415929E-2,5,"USD/liter mixture",2010,0.08,0.5,null,{"$f":"title436","v":"Cattle"},960]
[null,null,null,null,null,null,null,null,null,null,null,null,null,null,null,{"$f":"title419","v":"Cross Gutter Auger"},0.20478904265077005,2.6255220372088005E-2,{"$f":"2200*30/2378/10","v":2.7754415475189234},"USD/liter mixture",2010,0.08,0.5,null,{"$f":"title437","v":"Dairy Cattle"},994]
[null,null,null,null,null,null,null,null,null,null,null,null,null,null,null,{"$f":"title420","v":"Flush Flume"},0.13645231027594507,2.6255220372088005E-2,{"$f":"(4950.08+(16+9.8)*$B$52)*1.5/3785.41178","v":1.9615091914782385},"USD/liter mixture",2010,{"$f":"AVERAGE(4%,9%)","v":6.5000000000000002E-2},0.5,null,{"$f":"title438","v":"Poultry"},961.11]
[null,null,null,null,null,null,null,null,null,null,null,null,null,null,null,null,null,null,null,null,null,null,null,null,{"$f":"title439","v":"Swine"},1140.9000000000001]
[null,null,null,null,null,null,null,null,null,null,null,null,null,null,null,{"$f":"title357","v":"Dewatering"},"Screw Press ",{"$f":"PROPER(title164)","v":"Year"}]
[null,null,null,null,null,null,null,null,null,null,null,null,null,null,null,{"$f":"title422","v":"Capital Cost (USD/t residue)"},{"$f":"AVERAGE(0.2,0.5)*1000000*0.12/AVERAGE(4000,8000)","v":7},2002]
[null,null,null,null,null,null,null,null,null,null,null,null,null,null,null,{"$f":"title423","v":"Operation (worker/t residue)"},{"$f":"AVERAGE(20,40)*1000/AVERAGE(4000,8000)/(300*8*160)","v":1.3020833333333334E-5}]
[null,null,null,null,null,null,null,null,null,null,null,null,null,null,null,{"$f":"title424","v":"Energy Demand kWh/t residue"},{"$f":"AVERAGE(5,15)*8000/AVERAGE(4000,8000)","v":13.333333333333334},2002]
[]
[]
[]
[]
[null,null,null,null,null,null,null,null,null,null,null,null,null,null,null,{"$f":"title74","v":"Please Select"},{"$f":"title405","v":"Collection method"},"Show","Section to Show",{"$f":"VLOOKUP(INDIRECT(\"'Data entry needs'!$d$\"&$A$1),$P$166:$R$178,3,FALSE)","v":{"$error":"#N/A"}}]
[null,null,null,null,null,null,null,null,null,null,null,null,null,null,null,{"$f":"title184","v":"Biodiesel/Oilseed Ind."},{"$f":"title425","v":"No collection neeeded"},1,{"$f":"title429&\" 0\"","v":"Option 0"},0,0]
[null,null,null,null,null,null,null,null,null,null,null,null,null,null,null,{"$f":"title85","v":"Crop Residues"},{"$f":"title426","v":"Method 1"},2,{"$f":"title429&\" 1\"","v":"Option 1"},{"$f":"$I$31","v":{"$error":"#DIV/0!"}},{"$f":"$D$24/E16","v":{"$error":"#DIV/0!"}},{"$f":"title381","v":"person-hour/t"}]
[null,null,null,null,null,null,null,null,null,null,null,null,null,null,null,{"$f":"title185","v":"Dairy-milk ind."},{"$f":"title427","v":"Method 2, Method 3"},4,{"$f":"title429&\" 2\"","v":"Option 2"},{"$f":"$I$58","v":{"$error":"#DIV/0!"}},{"$f":"F49/E41","v":{"$error":"#N/A"}},{"$f":"title381","v":"person-hour/t"}]
[null,null,null,null,null,null,null,null,null,null,null,null,null,null,null,{"$f":"title120","v":"Energy Crops"},{"$f":"title425","v":"No collection neeeded"},1,{"$f":"title429&\" 3\"","v":"Option 3"},{"$f":"$I$87","v":{"$error":"#DIV/0!"}},{"$f":"D76","v":0},{"$f":"title381","v":"person-hour/t"}]
[null,null,null,null,null,null,null,null,null,null,null,null,null,null,null,{"$f":"title186","v":"Eth-Sugar-Starch Ind."},{"$f":"title425","v":"No collection neeeded"},1]
[null,null,null,null,null,null,null,null,null,null,null,null,null,null,null,{"$f":"title187","v":"Food Process. Res."},{"$f":"title425","v":"No collection neeeded"},1,{"$f":"title430","v":"Result"},{"$f":"IF($T$165=1,T166,IF($T$165=2,$T$167,IF($T$165=3,T168,IF(AND($T$165=4,$E$34),$T$168,$T$169))))","v":{"$error":"#N/A"}}]
[null,null,null,null,null,null,null,null,null,null,null,null,null,null,null,{"$f":"title188","v":"Grass"},{"$f":"title426","v":"Method 1"},2,{"$f":"title431","v":"Employees"},{"$f":"IF($T$165=1,U166,IF($T$165=2,$U$167,IF($T$165=3,U169,IF(AND($T$165=4,$E$34),$U$168,$U$169))))","v":{"$error":"#N/A"}},{"$f":"title381","v":"person-hour/t"}]
[null,null,null,null,null,null,null,null,null,null,null,null,null,null,null,{"$f":"title119","v":"Crops"},{"$f":"title425","v":"No collection neeeded"},1]
[null,null,null,null,null,null,null,null,null,null,null,null,null,null,null,{"$f":"title189","v":"Other Options"},{"$f":"title425","v":"No collection neeeded"},1]
[null,null,null,null,null,null,null,null,null,null,null,null,null,null,null,{"$f":"title190","v":"Slaughterhouses wastes"},{"$f":"title428","v":"Method 2"},3]
[null,null,null,null,null,null,null,null,null,null,null,null,null,null,null,{"$f":"title191","v":"Yeast-Alcoholic Bev."},{"$f":"title425","v":"No collection neeeded"},1]
[null,null,null,null,null,null,null,null,null,null,null,null,null,null,null,{"$f":"title84","v":"Manure"},{"$f":"title427","v":"Method 2, Method 3"},4]
[null,null,null,null,null,null,null,null,null,null,null,null,null,null,null,{"$f":"title192","v":"Wastewater"},{"$f":"title425","v":"No collection neeeded"},1]

{"sheet":"PRICE_FS5_PS2","index":35,"n_rows":178,"n_cols":39,"rows_kept":178,"cut":false,"hidden":true,"merged":[[40,8,40,9],[2,2,2,9],[5,2,5,3],[5,4,5,6],[7,2,10,9],[14,6,14,7],[15,2,15,3],[15,6,15,7],[30,3,30,7],[33,4,34,4],[33,5,34,5],[33,6,34,9],[34,2,34,3],[64,9,66,9],[86,3,86,7],[41,8,41,9],[57,3,57,7],[61,4,61,5],[61,6,62,6],[62,4,62,5],[64,2,64,3],[64,4,64,5],[64,6,66,6],[64,7,66,7],[64,8,66,8]]}
[{"$f":"PRICE_FS4_PS2!A1+2","v":47},92]
[]
[null,null,{"$f":"+title324&UPPER(INDIRECT(\"'Data entry needs'!$d$\"&$A$1)&\"-\"&INDIRECT(\"'Data entry needs'!$e$\"&$A$1))","v":"COLLECTION COSTS CALCULATOR FOR PLEASE SELECT-PLEASE SELECT"}]
[]
[]
[null,null,{"$f":"title193","v":"Use white cells to input data"},null,{"$f":"title194","v":"Grey cells are used for calculations"}]
[]
[null,null,{"$f":"title325&INDIRECT(\"'Data entry needs'!$d$\"&$A$1)&title326","v":"No collection method is required. It is assumed that Please Select are already collected. Then, transportation cost and/or market price should be considered."}]
[]
[]
[]
[]
[null,null,{"$f":"title327","v":"Collection Method 1 - Biomass spread in the field"}]
[]
[null,null,{"$f":"title328","v":"Collecting method"},null,{"$f":"title329","v":"Biomass Yield"},null,{"$f":"title110","v":"Feedstock Available (t/year)"},null,{"$f":"title330","v":"Collection days"}]
[null,null,"Mechanized",null,null,"t/ha",{"$f":"INDIRECT(\"'Data entry needs'!$F$\"&$A$1)","v":0},null,{"$f":"'Data entry needs'!L100-INDIRECT(\"Planner_pS2!$AN$\"&$B$1)*21","v":-252}]
[]
[null,null,{"$f":"title331","v":"Biomass Collection definition"}]
[]
[null,null,{"$f":"title332","v":"Biomass Price Definition"},null,null,null,null,null,null,null,null,null,null,null,null,null,null,null,null,null,null,{"$f":"title405","v":"Collection method"},null,{"$f":"title382","v":"Mechanized"},{"$f":"title380","v":"Number of skilled workers"},{"$f":"title409","v":"person-hour/ha"}]
[null,null,{"$f":"title333","v":"Labour cost"},{"$f":"title270","v":"Quantity"},{"$f":"title27","v":"Unit"},{"$f":"title270","v":"Quantity"},null,{"$f":"title27","v":"Unit"},"Total",{"$f":"title27","v":"Unit"},null,null,null,null,null,null,null,null,null,null,null,{"$f":"$C$16","v":"Mechanized"},null,{"$f":"title382&2","v":"Mechanized2"},{"$f":"title336","v":"Skilled labour wage"},{"$f":"title128","v":"USD/person-hour"}]
[null,null,{"$f":"IFERROR(VLOOKUP($V$21&$W21,$X$20:$Z$31,2,FALSE),\"\")","v":"Number of skilled workers"},null,{"$f":"IFERROR(VLOOKUP($V$21&$W21,$X$20:$Z$31,3,FALSE),\"\")","v":"person-hour/ha"},{"$f":"IFERROR(VLOOKUP($V$21&$W23,$X$20:$Z$31,2,FALSE),\"\")","v":"Skilled labour wage"},{"$f":"IF(F22=\"\",\"\",IF(F22=title335,'Data entry needs'!$L$96,IF(F22=title336,'Data entry needs'!F96)))","v":0},{"$f":"IFERROR(VLOOKUP($V$21&$W23,$X$20:$Z$31,3,FALSE),\"\")","v":"USD/person-hour"},{"$f":"IFERROR(G22*D22*(G16/E16)*('Data entry needs'!$L$100/$I$16),0)","v":0},{"$f":"IF(C22=\"\",\"\",title319)","v":"USD/year"},null,null,null,null,null,null,null,null,null,null,null,null,1,{"$f":"title382&4","v":"Mechanized4"},{"$f":"title407","v":"Average fuel economy"},"l/h"]
[null,null,{"$f":"IFERROR(VLOOKUP($V$21&$W22,$X$20:$Z$31,2,FALSE),\"\")","v":""},null,{"$f":"IFERROR(VLOOKUP($V$21&$W22,$X$20:$Z$31,3,FALSE),\"\")","v":""},{"$f":"IFERROR(VLOOKUP($V$21&$W24,$X$20:$Z$31,2,FALSE),\"\")","v":""},{"$f":"IF(F23=\"\",\"\",'Data entry needs'!L96)","v":""},{"$f":"title128","v":"USD/person-hour"},{"$f":"IFERROR(G23*D23*(G16/E16)*('Data entry needs'!$L$100/$I$16),0)","v":0},{"$f":"IF(C23=\"\",\"\",title319)","v":""},null,null,null,null,null,null,null,null,null,null,null,{"$f":"VLOOKUP($V$21,$T$29:$U$31,2,FALSE)","v":1},2,{"$f":"title382&5","v":"Mechanized5"},{"$f":"title408","v":"Fuel price"},"USD/l"]
[null,null,null,{"$f":"+IF(AND(C22=\"\",C23=\"\"),0,IF(C22=\"\",D23,IF(C23=\"\",D22,D22+D23)))","v":0},null,null,null,{"$f":"title269","v":"Subtotal"},{"$f":"+SUMIF($I$22:$I$23,\">0\")","v":0},{"$f":"title319","v":"USD/year"},null,null,null,null,null,null,null,null,null,null,null,null,3,{"$f":"title378","v":"Semi-mechanized"},{"$f":"title380","v":"Number of skilled workers"},{"$f":"title409","v":"person-hour/ha"}]
[null,null,{"$f":"title334","v":"Machinery & operating cost"},{"$f":"title270","v":"Quantity"},{"$f":"title27","v":"Unit"},{"$f":"title270","v":"Quantity"},null,{"$f":"title27","v":"Unit"},"Total",{"$f":"title27","v":"Unit"},null,null,null,null,null,null,null,null,null,null,null,null,4,{"$f":"title378&1","v":"Semi-mechanized1"},{"$f":"title379","v":"Number of unskilled workers"},{"$f":"title409","v":"person-hour/ha"}]
[null,null,{"$f":"IFERROR(VLOOKUP($V$21&$W25,$X$20:$Z$31,2,FALSE),\"\")","v":"Average fuel economy"},null,{"$f":"IFERROR(VLOOKUP($V$21&$W25,$X$20:$Z$31,3,FALSE),\"\")","v":"l/h"},{"$f":"IFERROR(VLOOKUP($V$21&$W26,$X$20:$Z$31,2,FALSE),\"\")","v":"Fuel price"},{"$f":"IF(F26=\"\",\"\",'Data entry needs'!$F$100)","v":0},{"$f":"+IFERROR(VLOOKUP($V$21&$W26,$X$20:$Z$31,3,FALSE),\"\")","v":"USD/l"},{"$f":"+IFERROR(D26*G26*IF($C$16=title337,0,$D$22*G16/E16)*('Data entry needs'!$L$100/$I$16),\"\")","v":""},{"$f":"IF(C26=\"\",\"\",title319)","v":"USD/year"},null,null,null,null,null,null,null,null,null,null,null,null,5,{"$f":"title378&2","v":"Semi-mechanized2"},{"$f":"title336","v":"Skilled labour wage"},{"$f":"title128","v":"USD/person-hour"}]
[null,null,null,null,null,null,null,{"$f":"IF(C26=\"\",\"\",title269)","v":"Subtotal"},{"$f":"+I26","v":""},{"$f":"IF(C26=\"\",\"\",title319)","v":"USD/year"},null,null,null,null,null,null,null,null,null,null,null,null,null,{"$f":"title378&3","v":"Semi-mechanized3"},{"$f":"title335","v":"Unskilled labour wage"},{"$f":"title128","v":"USD/person-hour"}]
[null,null,null,null,null,null,null,{"$f":"IF(C26=\"\",\"\",\"Total\")","v":"Total"},{"$f":"IFERROR(I24+I27,I24)","v":0},{"$f":"title319","v":"USD/year"},null,null,null,null,null,null,null,null,null,{"$f":"title405","v":"Collection method"},null,null,null,{"$f":"title378&4","v":"Semi-mechanized4"},{"$f":"title407","v":"Average fuel economy"},"l/h"]
[null,null,null,null,null,null,null,null,null,null,null,null,null,null,null,null,null,null,null,{"$f":"title382","v":"Mechanized"},1,null,null,{"$f":"title378&5","v":"Semi-mechanized5"},{"$f":"title408","v":"Fuel price"},"USD/l"]
[null,null,null,null,null,null,null,null,"",null,null,null,null,null,null,null,null,null,null,{"$f":"title378","v":"Semi-mechanized"},2,null,null,{"$f":"title337","v":"Manual"},{"$f":"title379","v":"Number of unskilled workers"},{"$f":"title409","v":"person-hour/ha"}]
[null,null,null,{"$f":"title338&INDIRECT(\"'Data entry needs'!$d$\"&$A$1)&\"-\"&INDIRECT(\"'Data entry needs'!$e$\"&$A$1)","v":"Collection cost of Please Select-Please Select"},null,null,null,null,{"$f":"(I24+I28)/$G$16","v":{"$error":"#DIV/0!"}},"USD/t",null,null,null,null,null,null,null,null,null,{"$f":"title337","v":"Manual"},3,null,null,{"$f":"title337&2","v":"Manual2"},{"$f":"title335","v":"Unskilled labour wage"},{"$f":"title128","v":"USD/person-hour"}]
[]
[]
[null,null,null,null,false,null,{"$f":"IF($E$34,title340,title341)","v":"Use this method for feedstock collected and transported from different farms to a central collection point"}]
[null,null,{"$f":"title339","v":"Collection Methods Available"}]
[]
[null,null,{"$f":"title342","v":"Collection Method 2"}]
[]
[null,null,{"$f":"title328","v":"Collecting method"},{"$f":"title343","v":"Transportation requirements"},null,null,null,null,{"$f":"title346","v":"Data Source"}]
[]
[null,null,"Please Select",{"$f":"title110","v":"Feedstock Available (t/year)"},{"$f":"INDIRECT(\"'Data entry needs'!$F$\"&$A$1)","v":0},{"$f":"title344","v":"Initial ts in residue (%)"},null,{"$f":"INDIRECT(\"'Data entry needs'!$h$\"&$A$1)","v":0},false]
[null,null,null,{"$f":"title134","v":"Operating days per year"},{"$f":"'Data entry needs'!L100-INDIRECT(\"Planner_pS2!$AN$\"&$B$1)*21","v":-252},{"$f":"title345&$C$41","v":"ts (%) allowed by Please Select"},null,{"$f":"Q45","v":{"$error":"#N/A"}}]
[]
[null,null,{"$f":"title347","v":"Collection Cost Definition"}]
[null,null,{"$f":"title348","v":"Operation Cost"},{"$f":"title270","v":"Quantity"},{"$f":"title27","v":"Unit"},{"$f":"title270","v":"Quantity"},{"$f":"title27","v":"Unit"},{"$f":"title267","v":"Unit Price"},"Total",null,null,null,null,null,null,"ts (%) transported",{"$f":"VLOOKUP($C$41,$P$149:$V$155,7,FALSE)","v":{"$error":"#N/A"}}]
[null,null,{"$f":"title35","v":"Electricity"},null,"kWh/t res",{"$f":"D46*E41","v":0},{"$f":"title304","v":"kWh/year"},{"$f":"'Data entry needs'!$L$92","v":0},{"$f":"F46*H46","v":0},{"$f":"title319","v":"USD/year"},null,null,null,null,null,{"$f":"title35","v":"Electricity"},{"$f":"$Q$160","v":13.333333333333334}]
[null,null,{"$f":"title170","v":"Diesel"},null,{"$f":"title574","v":"l diesel/t res"},{"$f":"D47*$E$41","v":0},{"$f":"title350","v":"Liter Diesel/year"},{"$f":"'Data entry needs'!$F$100","v":0},{"$f":"F47*H47","v":0},{"$f":"title319","v":"USD/year"},null,null,null,null,null,{"$f":"title170","v":"Diesel"},{"$f":"VLOOKUP($C$41,$P$149:$S$155,2,FALSE)","v":{"$error":"#N/A"}}]
[null,null,{"$f":"title244","v":"Water Make-up "},null,{"$f":"title353","v":"Liter water/t res"},{"$f":"IF(D48=0,0,E41*(H41/H42)*(1-D48))","v":0},{"$f":"title351","v":"Liter water/year"},{"$f":"'Data entry needs'!$F$92","v":0},{"$f":"F48*H48*D48","v":0},{"$f":"title319","v":"USD/year"},null,null,null,null,null,{"$f":"title244","v":"Water Make-up "},0.15]
[null,null,{"$f":"title349","v":"Unskilled Workers"},null,{"$f":"title354","v":"person-day/t res"},{"$f":"ROUNDUP($D$49*E41*('Data entry needs'!$L$100/PRICE_FS5_PS2!E42)/'Data entry needs'!$L$99,0)","v":{"$error":"#DIV/0!"}},{"$f":"title352","v":"person-hour"},{"$f":"'Data entry needs'!$L$96","v":0},{"$f":"F49*H49","v":{"$error":"#DIV/0!"}},{"$f":"title319","v":"USD/year"},null,null,null,null,null,{"$f":"title127","v":"Unskilled worker"},{"$f":"VLOOKUP($C$41,$P$149:$S$155,3,FALSE)","v":{"$error":"#N/A"}}]
[null,null,null,{"$f":"Q47","v":{"$error":"#N/A"}},null,null,null,{"$f":"title269","v":"Subtotal"},{"$f":"+SUMIF($I$46:$I$49,\">0\")","v":0},{"$f":"title319","v":"USD/year"}]
[]
[null,null,{"$f":"title355","v":"Capital Investment"},{"$f":"title270","v":"Quantity"},{"$f":"title27","v":"Unit"}]
[null,null,{"$f":"$C$41&title356","v":"Please Select and equipment"},null,{"$f":"VLOOKUP($C$41,$P$149:$T$155,5,FALSE)","v":{"$error":"#N/A"}},null,null,null,{"$f":"D53*(E41*10)/20","v":0},{"$f":"title319","v":"USD/year"},null,null,null,null,null,{"$f":"$C$41&title356","v":"Please Select and equipment"},{"$f":"VLOOKUP($C$41,$P$149:$S$155,4,FALSE)","v":{"$error":"#N/A"}}]
[null,null,{"$f":"title357","v":"Dewatering"},null,"USD/t res",null,null,null,{"$f":"D54*$E$41/20","v":0},{"$f":"title319","v":"USD/year"},null,null,null,null,null,{"$f":"title357","v":"Dewatering"},{"$f":"$Q$158","v":7}]
[null,null,{"$f":"title358","v":"Operation and Mainteinance"},null,null,null,null,null,{"$f":"SUM(I53:I54)*$D$55","v":0},{"$f":"title319","v":"USD/year"},null,null,null,null,null,{"$f":"title358","v":"Operation and Mainteinance"},0.15]
[null,null,null,{"$f":"+IF(AND(C54=\"\",C55=\"\"),0,IF(C54=\"\",D55,IF(C55=\"\",D54,D54+D55)))","v":0},null,null,null,{"$f":"title269","v":"Subtotal"},{"$f":"+SUMIF(I53:I55,\">0\")","v":0},{"$f":"title319","v":"USD/year"}]
[]
[null,null,null,{"$f":"title359","v":"Cost for Collection and transfer to storage tank"},null,null,null,null,{"$f":"SUM(I50+I56)/E41","v":{"$error":"#DIV/0!"}},"USD/t"]
[]
[null,null,{"$f":"title360","v":"Collection Method 3 - Feedstock collected from different farms"}]
[]
[null,null,{"$f":"title361","v":"Source of biomass"},null,{"$f":"title405","v":"Collection method"},null,{"$f":"title346","v":"Data Source"},false]
[null,null,{"$f":"title362","v":"Transfer from individual farms"},null,"Mechanized"]
[]
[null,null,{"$f":"title363","v":"Transportation method"},null,"Tanker Truck Transfer",null,{"$f":"title372","v":"Number Of Farms Supplying Feedstock"},{"$f":"title373","v":"Average distance to collection point (m)"},{"$f":"title374","v":"Collection Period (days)"},{"$f":"IF($E$65=title364,title375,title376)&title377","v":"Number of Tanks required"}]
[]
[null,null,{"$f":"IF($E$65=title364,title365,title366)","v":"Tranport Capacity (liter)"},null,{"$f":"title370","v":"Residue Quanitiy (t/year)"},{"$f":"INDIRECT(\"'Data entry needs'!$F$\"&$A$1)","v":0},null,null,null,null,null,null,null,null,null,{"$f":"IF($E$60=title364,title365,title366)","v":"Pipe Diameter (in)"},{"$f":"VLOOKUP($E$65,$Y$147:$AE$149,3,FALSE)","v":27600}]
[null,null,{"$f":"IF($E$65=title364,title367,title368)","v":"Engine Power (HP)"},null,{"$f":"title371","v":"Residue Density (kg/m3)"},{"$f":"Q72","v":1000},null,null,{"$f":"'Data entry needs'!L100-INDIRECT(\"Planner_pS2!$AN$\"&$B$1)*21","v":-252},{"$f":"IFERROR(ROUNDUP($F$67*1000*1000/(960*$D$69*'Data entry needs'!$L$99)/$I$68,0),0)","v":0},null,null,null,null,null,{"$f":"IF($E$60=title364,title367,title368)","v":"Motor Power (HP)"},{"$f":"VLOOKUP($E$65,$Y$147:$AE$149,4,FALSE)","v":200}]
[null,null,{"$f":"title369","v":"Transfer Rate (l/h)"},null,null,null,null,null,null,null,null,null,null,null,null,{"$f":"title369","v":"Transfer Rate (l/h)"},{"$f":"VLOOKUP($E$65,$Y$147:$AE$149,5,FALSE)","v":27221.917808219176}]
[]
[null,null,null,{"$f":"+IF(OR($E$63=title337,$E$63=title378),FALSE,TRUE)","v":true},{"$f":"+IF($E$63=title337,TRUE,FALSE)","v":false}]
[null,null,{"$f":"title332","v":"Biomass Price Definition"},null,null,null,null,null,null,null,null,null,null,null,null,{"$f":"title371","v":"Residue Density (kg/m3)"},{"$f":"IFERROR(VLOOKUP(INDIRECT(\"'Data entry needs'!$e$\"&$A$1),PRICE_FS3_PS2!$Y$152:$Z$156,2,FALSE),1000)","v":1000}]
[null,null,{"$f":"title333","v":"Labour cost"},{"$f":"title270","v":"Quantity"},{"$f":"title27","v":"Unit"},{"$f":"title270","v":"Quantity"},null,{"$f":"title27","v":"Unit"},"Total",{"$f":"title27","v":"Unit"}]
[null,null,{"$f":"IF(OR($E$63=title337,$E$63=title378),title379,\"\")","v":""},null,{"$f":"IF(OR($E$63=title337,$E$63=title378),title381,\"\")","v":""},{"$f":"IF(OR($E$63=title337,$E$63=title378),title335,\"\")","v":""},{"$f":"IF(OR($E$63=title337,$E$63=title378),'Data entry needs'!$L$96,\"\")","v":""},{"$f":"IF(OR($E$63=title337,$E$63=title378),title128,\"\")","v":""},{"$f":"IFERROR(IF(OR($E$63=title337,$E$63=title378),$F$67*D74*$G$74,\"\"),0)","v":""},{"$f":"IF(OR($E$63=title337,$E$63=title378),title319,\"\")","v":""}]
[null,null,{"$f":"IF($E$63=title337,\"\",title380)","v":"Number of skilled workers"},null,{"$f":"IF($E$63=title337,\"\",title381)","v":"person-hour/t"},{"$f":"IF($E$63=title337,\"\",title336)","v":"Skilled labour wage"},{"$f":"IF($E$63=title337,\"\",'Data entry needs'!$F$96)","v":0},{"$f":"IF($E$63=title337,\"\",title128)","v":"USD/person-hour"},{"$f":"IFERROR(IF($E$63=title337,\"\",D75*G75*$F$67),0)","v":0},{"$f":"IF($E$63=title337,\"\",title319)","v":"USD/year"}]
[null,null,null,{"$f":"+IF(AND(C74=\"\",C75=\"\"),0,IF(C74=\"\",D75,IF(C75=\"\",D74,D74+D75)))","v":0},null,null,null,{"$f":"title269","v":"Subtotal"},{"$f":"+SUMIF($I$74:$I$75,\">0\")","v":0},{"$f":"title319","v":"USD/year"}]
[null,null,{"$f":"title383","v":"Collection Machinery"},{"$f":"title270","v":"Quantity"},{"$f":"title27","v":"Unit"},{"$f":"title270","v":"Quantity"},null,{"$f":"title27","v":"Unit"},"Total",{"$f":"title27","v":"Unit"}]
[null,null,{"$f":"IF(OR($E$63=title382,$E$63=title378),title384,\"\")","v":"Collection Diesel Consumption"},null,{"$f":"IF(OR($E$63=title382,$E$63=title378),title575,\"\")","v":"l diesel/h"},{"$f":"IF(OR($E$63=title382,$E$63=title378),title389,\"\")","v":"Diesel Cost"},{"$f":"IF(OR($E$63=title382,$E$63=title378),'Data entry needs'!F$100,\"\")","v":0},{"$f":"IF(OR($E$63=title382,$E$63=title378),title576,\"\")","v":"USD/l diesel"},{"$f":"IFERROR(IF(OR($E$63=title382,$E$63=title378),D78*G78*D75*F67,\"\"),0)","v":0},{"$f":"title319","v":"USD/year"}]
[null,null,{"$f":"IF($E$65=title364,title385,title386)","v":"Truck Diesel Consumption"},null,{"$f":"IF($E$65=title364,title387,title388)","v":"l diesel/day"},{"$f":"IF($E$65=title364,title389,title390)","v":"Diesel Cost"},{"$f":"IF($E$65=title364,'Data entry needs'!F$100,'Data entry needs'!$L$92)","v":0},{"$f":"IF($E$65=title364,title576,\"USD/kWh\")","v":"USD/l diesel"},{"$f":"IFERROR(D79*G79*$I$68*$J$68,0)","v":0},{"$f":"title319","v":"USD/year"},null,null,null,null,null,{"$f":"IF($E$60=title364,title385,title386)","v":"Pump Electricity Consumption"},{"$f":"VLOOKUP($E$65,$Y$147:$AE$149,7,FALSE)","v":154}]
[null,null,null,null,null,null,null,{"$f":"title269","v":"Subtotal"},{"$f":"+SUMIF($I$78:$I$79,\">0\")","v":0},{"$f":"title319","v":"USD/year"}]
[null,null,{"$f":"title391","v":"Equipment"},{"$f":"title270","v":"Quantity"},{"$f":"title27","v":"Unit"},{"$f":"title270","v":"Quantity"},null,{"$f":"title27","v":"Unit"},"Total",{"$f":"title27","v":"Unit"}]
[null,null,{"$f":"IF($E$65=title364,title392,title393)","v":"Liquid Tanker Truck"},{"$f":"IF($E$65=title364,$J$68,$G$68*$H$68*1.2)","v":0},{"$f":"IF($E$65=title364,title398,\"m\")","v":"tank(s)"},{"$f":"IF($E$65=title364,title399,title400)","v":"Cost per Tank"},{"$f":"VLOOKUP($E$65,$Y$147:$AF$149,8,FALSE)/10","v":7900},{"$f":"IF($E$65=title364,title402,title403)","v":"USD/tank/year"},{"$f":"IFERROR(D82*G82,0)","v":0},{"$f":"title319","v":"USD/year"}]
[null,null,{"$f":"IF($E$65=title364,title394&$D$68&title395,title396&$D$68&title397)","v":"Semi-tractor 185  HP"},null,"USD",{"$f":"title401","v":"Depreciation Period"},null,{"$f":"title164","v":"year"},{"$f":"IFERROR(D83*$J$68/G83,0)","v":0},{"$f":"title319","v":"USD/year"},null,null,null,null,null,{"$f":"IF($E$60=title364,title406,title396&$D$63&title397)","v":"Pump  HP with agitator"},{"$f":"VLOOKUP($E$65,$Y$147:$AH$149,10,FALSE)","v":148000}]
[null,null,{"$f":"title358","v":"Operation and Mainteinance"},null,null,null,null,null,{"$f":"IFERROR(SUM(I82:I83)*$D$84,0)","v":0},{"$f":"title319","v":"USD/year"},null,null,null,null,null,{"$f":"title358","v":"Operation and Mainteinance"},0.15]
[null,null,null,null,null,null,null,{"$f":"title269","v":"Subtotal"},{"$f":"I82","v":0},{"$f":"title319","v":"USD/year"},null,null,null,null,null,{"$f":"title401","v":"Depreciation Period"},15]
[]
[null,null,null,{"$f":"title404","v":"Cost for Collection and transfer to central collection point"},null,null,null,null,{"$f":"(I85+I80+I76)/$F$67","v":{"$error":"#DIV/0!"}},"USD/t"]
[]
[]
[]
[]
[]
[]
[]
[]
[]
[]
[]
[]
[]
[]
[]
[]
[]
[]
[]
[]
[]
[]
[]
[]
[]
[]
[]
[]
[]
[]
[]
[null,null,null,null,null,null,null,null,null,null,null,null,null,null,null,{"$f":"title410","v":"Sources of biomass"}]
[null,null,null,null,null,null,null,null,null,null,null,null,null,null,null,{"$f":"title411","v":"Biomass spread in the field"}]
[null,null,null,null,null,null,null,null,null,null,null,null,null,null,null,{"$f":"title412","v":"Biomass collected from field"}]
[null,null,null,null,null,null,null,null,null,null,null,null,null,null,null,{"$f":"title413","v":"Biomass from food processing plant"}]
[]
[]
[]
[]
[null,null,null,null,null,null,null,null,null,null,null,null,null,null,null,{"$f":"title405","v":"Collection method"}]
[null,null,null,null,null,null,null,null,null,null,null,null,null,null,null,{"$f":"title382","v":"Mechanized"}]
[null,null,null,null,null,null,null,null,null,null,null,null,null,null,null,{"$f":"title378","v":"Semi-mechanized"}]
[null,null,null,null,null,null,null,null,null,null,null,null,null,null,null,{"$f":"title337","v":"Manual"}]
[]
[]
[]
[]
[]
[]
[]
[]
[]
[]
[]
[]
[]
[]
[null,null,null,null,null,null,null,null,null,null,null,null,null,null,null,"Dairy maNURE",40.753799999999998,"Manure (kg/head/day)"]
[null,null,null,null,null,null,null,null,null,null,null,null,null,null,null,null,"Energy Use Cost","Labor and Mainteinance",null,null,null,"ts (%) transported","Dewateing",null,null,null,{"$f":"title440","v":"Capacity"},{"$f":"title441","v":"Engine/motor (hp)"},{"$f":"title369","v":"Transfer Rate (l/h)"},{"$f":"title442","v":"Transfer time (m/h)"},{"$f":"title443","v":"Energy Use  (kw)"},{"$f":"title444","v":"Add equipment"}]
[null,null,null,null,null,null,null,null,null,null,null,null,null,null,null,{"$f":"title405","v":"Collection method"},"liters diesel/t residue","workers*day/t residue","Capital cost","Capital cost","Capital cost",null,"Final solids ts (%)",null,{"$f":"title364","v":"Tanker Truck Transfer"},null,27600,200,27221.917808219176,609.6,154,79000,"USD",{"$f":"148000","v":148000},2010,{"$f":"title406","v":"Semi-tractor 185 HP"},null,null,"l/working day"]
[null,null,null,null,null,null,null,null,null,null,null,null,null,null,null,{"$f":"title74","v":"Please Select"},null,null,null,null,null,null,null,null,{"$f":"title432","v":"High Volume Pipeline"},null,"6´´ PVC",150,3028,1016,215,{"$f":"37/3.048","v":12.139107611548557},"USD/m",37075,2003]
[null,null,null,null,null,null,null,null,null,null,null,null,null,null,null,{"$f":"title414","v":"Alley Scrapers"},0.14330809896079807,0.42057427773606393,{"$f":"(AVERAGE(35,45)*$B$52+10000+4000)/3785.41178","v":3.698408736922143},{"$f":"title421","v":"USD/liter mixture"},2009,0.08,0.5,null,{"$f":"title433","v":"Low Volume Pipeline"},null,"4´´ PVC",7.5,378,127,86,{"$f":"12.4/3.048","v":4.0682414698162734},"USD/m",7675,2003]
[null,null,null,null,null,null,null,null,null,null,null,null,null,null,null,{"$f":"title415","v":"Flush System"},0.4093569308278352,0.10526625737967994,{"$f":"(4950.08+(16+9.8)*$B$52)/3785.41178","v":1.3076727943188258},"USD/liter mixture",2014,{"$f":"AVERAGE(1%,3%)","v":0.02},0.5]
[null,null,null,null,null,null,null,null,null,null,null,null,null,null,null,{"$f":"title416","v":"Vacum Scraper"},3.190595592141102,1.9769935564290937,10,"USD/liter mixture",2010,0.18,0.5,null,null,{"$f":"title434","v":"Density (Kg/m3)"}]
[null,null,null,null,null,null,null,null,null,null,null,null,null,null,null,{"$f":"title417","v":"Skid-loader"},0.75612714559717353,1.2830705357537211,{"$f":"(142.6*0.914+58.5*0.084+50.75*0.997)/$Q$145","v":4.5602655457895951},"USD/liter mixture",2010,{"$f":"AVERAGE(8%,18%)","v":0.13},0.5,null,{"$f":"title435","v":"Buffalo"},960]
[null,null,null,null,null,null,null,null,null,null,null,null,null,null,null,{"$f":"title418","v":"Cross gutter Scraper"},1.5259658685640533E-2,2.6500596263415929E-2,5,"USD/liter mixture",2010,0.08,0.5,null,{"$f":"title436","v":"Cattle"},960]
[null,null,null,null,null,null,null,null,null,null,null,null,null,null,null,{"$f":"title419","v":"Cross Gutter Auger"},0.20478904265077005,2.6255220372088005E-2,{"$f":"2200*30/2378/10","v":2.7754415475189234},"USD/liter mixture",2010,0.08,0.5,null,{"$f":"title437","v":"Dairy Cattle"},994]
[null,null,null,null,null,null,null,null,null,null,null,null,null,null,null,{"$f":"title420","v":"Flush Flume"},0.13645231027594507,2.6255220372088005E-2,{"$f":"(4950.08+(16+9.8)*$B$52)*1.5/3785.41178","v":1.9615091914782385},"USD/liter mixture",2010,{"$f":"AVERAGE(4%,9%)","v":6.5000000000000002E-2},0.5,null,{"$f":"title438","v":"Poultry"},961.11]
[null,null,null,null,null,null,null,null,null,null,null,null,null,null,null,null,null,null,null,null,null,null,null,null,{"$f":"title439","v":"Swine"},1140.9000000000001]
[null,null,null,null,null,null,null,null,null,null,null,null,null,null,null,{"$f":"title357","v":"Dewatering"},"Screw Press ",{"$f":"PROPER(title164)","v":"Year"}]
[null,null,null,null,null,null,null,null,null,null,null,null,null,null,null,{"$f":"title422","v":"Capital Cost (USD/t residue)"},{"$f":"AVERAGE(0.2,0.5)*1000000*0.12/AVERAGE(4000,8000)","v":7},2002]
[null,null,null,null,null,null,null,null,null,null,null,null,null,null,null,{"$f":"title423","v":"Operation (worker/t residue)"},{"$f":"AVERAGE(20,40)*1000/AVERAGE(4000,8000)/(300*8*160)","v":1.3020833333333334E-5}]
[null,null,null,null,null,null,null,null,null,null,null,null,null,null,null,{"$f":"title424","v":"Energy Demand kWh/t residue"},{"$f":"AVERAGE(5,15)*8000/AVERAGE(4000,8000)","v":13.333333333333334},2002]
[]
[]
[]
[]
[null,null,null,null,null,null,null,null,null,null,null,null,null,null,null,{"$f":"title74","v":"Please Select"},{"$f":"title405","v":"Collection method"},"Show","Section to Show",{"$f":"VLOOKUP(INDIRECT(\"'Data entry needs'!$d$\"&$A$1),$P$166:$R$178,3,FALSE)","v":{"$error":"#N/A"}}]
[null,null,null,null,null,null,null,null,null,null,null,null,null,null,null,{"$f":"title184","v":"Biodiesel/Oilseed Ind."},{"$f":"title425","v":"No collection neeeded"},1,{"$f":"title429&\" 0\"","v":"Option 0"},0,0]
[null,null,null,null,null,null,null,null,null,null,null,null,null,null,null,{"$f":"title85","v":"Crop Residues"},{"$f":"title426","v":"Method 1"},2,{"$f":"title429&\" 1\"","v":"Option 1"},{"$f":"$I$31","v":{"$error":"#DIV/0!"}},{"$f":"$D$24/E16","v":{"$error":"#DIV/0!"}},{"$f":"title381","v":"person-hour/t"}]
[null,null,null,null,null,null,null,null,null,null,null,null,null,null,null,{"$f":"title185","v":"Dairy-milk ind."},{"$f":"title427","v":"Method 2, Method 3"},4,{"$f":"title429&\" 2\"","v":"Option 2"},{"$f":"$I$58","v":{"$error":"#DIV/0!"}},{"$f":"F49/E41","v":{"$error":"#DIV/0!"}},{"$f":"title381","v":"person-hour/t"}]
[null,null,null,null,null,null,null,null,null,null,null,null,null,null,null,{"$f":"title120","v":"Energy Crops"},{"$f":"title425","v":"No collection neeeded"},1,{"$f":"title429&\" 3\"","v":"Option 3"},{"$f":"$I$87","v":{"$error":"#DIV/0!"}},{"$f":"D76","v":0},{"$f":"title381","v":"person-hour/t"}]
[null,null,null,null,null,null,null,null,null,null,null,null,null,null,null,{"$f":"title186","v":"Eth-Sugar-Starch Ind."},{"$f":"title425","v":"No collection neeeded"},1]
[null,null,null,null,null,null,null,null,null,null,null,null,null,null,null,{"$f":"title187","v":"Food Process. Res."},{"$f":"title425","v":"No collection neeeded"},1,{"$f":"title430","v":"Result"},{"$f":"IF($T$165=1,T166,IF($T$165=2,$T$167,IF($T$165=3,T168,IF(AND($T$165=4,$E$34),$T$168,$T$169))))","v":{"$error":"#N/A"}}]
[null,null,null,null,null,null,null,null,null,null,null,null,null,null,null,{"$f":"title188","v":"Grass"},{"$f":"title426","v":"Method 1"},2,{"$f":"title431","v":"Employees"},{"$f":"IF($T$165=1,U166,IF($T$165=2,$U$167,IF($T$165=3,U169,IF(AND($T$165=4,$E$34),$U$168,$U$169))))","v":{"$error":"#N/A"}},{"$f":"title381","v":"person-hour/t"}]
[null,null,null,null,null,null,null,null,null,null,null,null,null,null,null,{"$f":"title119","v":"Crops"},{"$f":"title425","v":"No collection neeeded"},1]
[null,null,null,null,null,null,null,null,null,null,null,null,null,null,null,{"$f":"title189","v":"Other Options"},{"$f":"title425","v":"No collection neeeded"},1]
[null,null,null,null,null,null,null,null,null,null,null,null,null,null,null,{"$f":"title190","v":"Slaughterhouses wastes"},{"$f":"title428","v":"Method 2"},3]
[null,null,null,null,null,null,null,null,null,null,null,null,null,null,null,{"$f":"title191","v":"Yeast-Alcoholic Bev."},{"$f":"title425","v":"No collection neeeded"},1]
[null,null,null,null,null,null,null,null,null,null,null,null,null,null,null,{"$f":"title84","v":"Manure"},{"$f":"title427","v":"Method 2, Method 3"},4]
[null,null,null,null,null,null,null,null,null,null,null,null,null,null,null,{"$f":"title192","v":"Wastewater"},{"$f":"title425","v":"No collection neeeded"},1]

{"sheet":"PRICE_FS6_PS2","index":36,"n_rows":178,"n_cols":39,"rows_kept":178,"cut":false,"hidden":true,"merged":[[40,8,40,9],[2,2,2,9],[5,2,5,3],[5,4,5,6],[7,2,10,9],[14,6,14,7],[15,2,15,3],[15,6,15,7],[30,3,30,7],[33,4,34,4],[33,5,34,5],[33,6,34,9],[34,2,34,3],[64,9,66,9],[86,3,86,7],[41,8,41,9],[57,3,57,7],[61,4,61,5],[61,6,62,6],[62,4,62,5],[64,2,64,3],[64,4,64,5],[64,6,66,6],[64,7,66,7],[64,8,66,8]]}
[{"$f":"PRICE_FS5_PS2!A1+4","v":51},93]
[]
[null,null,{"$f":"+title324&UPPER(INDIRECT(\"'Data entry needs'!$d$\"&$A$1)&\"-\"&INDIRECT(\"'Data entry needs'!$e$\"&$A$1))","v":"COLLECTION COSTS CALCULATOR FOR PLEASE SELECT-PLEASE SELECT"}]
[]
[]
[null,null,{"$f":"title193","v":"Use white cells to input data"},null,{"$f":"title194","v":"Grey cells are used for calculations"}]
[]
[null,null,{"$f":"title325&INDIRECT(\"'Data entry needs'!$d$\"&$A$1)&title326","v":"No collection method is required. It is assumed that Please Select are already collected. Then, transportation cost and/or market price should be considered."}]
[]
[]
[]
[]
[null,null,{"$f":"title327","v":"Collection Method 1 - Biomass spread in the field"}]
[]
[null,null,{"$f":"title328","v":"Collecting method"},null,{"$f":"title329","v":"Biomass Yield"},null,{"$f":"title110","v":"Feedstock Available (t/year)"},null,{"$f":"title330","v":"Collection days"}]
[null,null,"Mechanized",null,null,"t/ha",{"$f":"INDIRECT(\"'Data entry needs'!$F$\"&$A$1)","v":0},null,{"$f":"'Data entry needs'!L100-INDIRECT(\"Planner_pS2!$AN$\"&$B$1)*21","v":0}]
[]
[null,null,{"$f":"title331","v":"Biomass Collection definition"}]
[]
[null,null,{"$f":"title332","v":"Biomass Price Definition"},null,null,null,null,null,null,null,null,null,null,null,null,null,null,null,null,null,null,{"$f":"title405","v":"Collection method"},null,{"$f":"title382","v":"Mechanized"},{"$f":"title380","v":"Number of skilled workers"},{"$f":"title409","v":"person-hour/ha"}]
[null,null,{"$f":"title333","v":"Labour cost"},{"$f":"title270","v":"Quantity"},{"$f":"title27","v":"Unit"},{"$f":"title270","v":"Quantity"},null,{"$f":"title27","v":"Unit"},"Total",{"$f":"title27","v":"Unit"},null,null,null,null,null,null,null,null,null,null,null,{"$f":"$C$16","v":"Mechanized"},null,{"$f":"title382&2","v":"Mechanized2"},{"$f":"title336","v":"Skilled labour wage"},{"$f":"title128","v":"USD/person-hour"}]
[null,null,{"$f":"IFERROR(VLOOKUP($V$21&$W21,$X$20:$Z$31,2,FALSE),\"\")","v":"Number of skilled workers"},null,{"$f":"IFERROR(VLOOKUP($V$21&$W21,$X$20:$Z$31,3,FALSE),\"\")","v":"person-hour/ha"},{"$f":"IFERROR(VLOOKUP($V$21&$W23,$X$20:$Z$31,2,FALSE),\"\")","v":"Skilled labour wage"},{"$f":"IF(F22=\"\",\"\",IF(F22=title335,'Data entry needs'!$L$96,IF(F22=title336,'Data entry needs'!F96)))","v":0},{"$f":"IFERROR(VLOOKUP($V$21&$W23,$X$20:$Z$31,3,FALSE),\"\")","v":"USD/person-hour"},{"$f":"IFERROR(G22*D22*(G16/E16)*('Data entry needs'!$L$100/$I$16),0)","v":0},{"$f":"IF(C22=\"\",\"\",title319)","v":"USD/year"},null,null,null,null,null,null,null,null,null,null,null,null,1,{"$f":"title382&4","v":"Mechanized4"},{"$f":"title407","v":"Average fuel economy"},"l/h"]
[null,null,{"$f":"IFERROR(VLOOKUP($V$21&$W22,$X$20:$Z$31,2,FALSE),\"\")","v":""},null,{"$f":"IFERROR(VLOOKUP($V$21&$W22,$X$20:$Z$31,3,FALSE),\"\")","v":""},{"$f":"IFERROR(VLOOKUP($V$21&$W24,$X$20:$Z$31,2,FALSE),\"\")","v":""},{"$f":"IF(F23=\"\",\"\",'Data entry needs'!L96)","v":""},{"$f":"title128","v":"USD/person-hour"},{"$f":"IFERROR(G23*D23*(G16/E16)*('Data entry needs'!$L$100/$I$16),0)","v":0},{"$f":"IF(C23=\"\",\"\",title319)","v":""},null,null,null,null,null,null,null,null,null,null,null,{"$f":"VLOOKUP($V$21,$T$29:$U$31,2,FALSE)","v":1},2,{"$f":"title382&5","v":"Mechanized5"},{"$f":"title408","v":"Fuel price"},"USD/l"]
[null,null,null,{"$f":"+IF(AND(C22=\"\",C23=\"\"),0,IF(C22=\"\",D23,IF(C23=\"\",D22,D22+D23)))","v":0},null,null,null,{"$f":"title269","v":"Subtotal"},{"$f":"+SUMIF($I$22:$I$23,\">0\")","v":0},{"$f":"title319","v":"USD/year"},null,null,null,null,null,null,null,null,null,null,null,null,3,{"$f":"title378","v":"Semi-mechanized"},{"$f":"title380","v":"Number of skilled workers"},{"$f":"title409","v":"person-hour/ha"}]
[null,null,{"$f":"title334","v":"Machinery & operating cost"},{"$f":"title270","v":"Quantity"},{"$f":"title27","v":"Unit"},{"$f":"title270","v":"Quantity"},null,{"$f":"title27","v":"Unit"},"Total",{"$f":"title27","v":"Unit"},null,null,null,null,null,null,null,null,null,null,null,null,4,{"$f":"title378&1","v":"Semi-mechanized1"},{"$f":"title379","v":"Number of unskilled workers"},{"$f":"title409","v":"person-hour/ha"}]
[null,null,{"$f":"IFERROR(VLOOKUP($V$21&$W25,$X$20:$Z$31,2,FALSE),\"\")","v":"Average fuel economy"},null,{"$f":"IFERROR(VLOOKUP($V$21&$W25,$X$20:$Z$31,3,FALSE),\"\")","v":"l/h"},{"$f":"IFERROR(VLOOKUP($V$21&$W26,$X$20:$Z$31,2,FALSE),\"\")","v":"Fuel price"},{"$f":"IF(F26=\"\",\"\",'Data entry needs'!$F$100)","v":0},{"$f":"+IFERROR(VLOOKUP($V$21&$W26,$X$20:$Z$31,3,FALSE),\"\")","v":"USD/l"},{"$f":"+IFERROR(D26*G26*IF($C$16=title337,0,$D$22*G16/E16)*('Data entry needs'!$L$100/$I$16),\"\")","v":""},{"$f":"IF(C26=\"\",\"\",title319)","v":"USD/year"},null,null,null,null,null,null,null,null,null,null,null,null,5,{"$f":"title378&2","v":"Semi-mechanized2"},{"$f":"title336","v":"Skilled labour wage"},{"$f":"title128","v":"USD/person-hour"}]
[null,null,null,null,null,null,null,{"$f":"IF(C26=\"\",\"\",title269)","v":"Subtotal"},{"$f":"+I26","v":""},{"$f":"IF(C26=\"\",\"\",title319)","v":"USD/year"},null,null,null,null,null,null,null,null,null,null,null,null,null,{"$f":"title378&3","v":"Semi-mechanized3"},{"$f":"title335","v":"Unskilled labour wage"},{"$f":"title128","v":"USD/person-hour"}]
[null,null,null,null,null,null,null,{"$f":"IF(C26=\"\",\"\",\"Total\")","v":"Total"},{"$f":"IFERROR(I24+I27,I24)","v":0},{"$f":"title319","v":"USD/year"},null,null,null,null,null,null,null,null,null,{"$f":"title405","v":"Collection method"},null,null,null,{"$f":"title378&4","v":"Semi-mechanized4"},{"$f":"title407","v":"Average fuel economy"},"l/h"]
[null,null,null,null,null,null,null,null,null,null,null,null,null,null,null,null,null,null,null,{"$f":"title382","v":"Mechanized"},1,null,null,{"$f":"title378&5","v":"Semi-mechanized5"},{"$f":"title408","v":"Fuel price"},"USD/l"]
[null,null,null,null,null,null,null,null,"",null,null,null,null,null,null,null,null,null,null,{"$f":"title378","v":"Semi-mechanized"},2,null,null,{"$f":"title337","v":"Manual"},{"$f":"title379","v":"Number of unskilled workers"},{"$f":"title409","v":"person-hour/ha"}]
[null,null,null,{"$f":"title338&INDIRECT(\"'Data entry needs'!$d$\"&$A$1)&\"-\"&INDIRECT(\"'Data entry needs'!$e$\"&$A$1)","v":"Collection cost of Please Select-Please Select"},null,null,null,null,{"$f":"(I24+I28)/$G$16","v":{"$error":"#DIV/0!"}},"USD/t",null,null,null,null,null,null,null,null,null,{"$f":"title337","v":"Manual"},3,null,null,{"$f":"title337&2","v":"Manual2"},{"$f":"title335","v":"Unskilled labour wage"},{"$f":"title128","v":"USD/person-hour"}]
[]
[]
[null,null,null,null,false,null,{"$f":"IF($E$34,title340,title341)","v":"Use this method for feedstock collected and transported from different farms to a central collection point"}]
[null,null,{"$f":"title339","v":"Collection Methods Available"}]
[]
[null,null,{"$f":"title342","v":"Collection Method 2"}]
[]
[null,null,{"$f":"title328","v":"Collecting method"},{"$f":"title343","v":"Transportation requirements"},null,null,null,null,{"$f":"title346","v":"Data Source"}]
[]
[null,null,"Please Select",{"$f":"title110","v":"Feedstock Available (t/year)"},{"$f":"INDIRECT(\"'Data entry needs'!$F$\"&$A$1)","v":0},{"$f":"title344","v":"Initial ts in residue (%)"},null,{"$f":"INDIRECT(\"'Data entry needs'!$h$\"&$A$1)","v":0},false]
[null,null,null,{"$f":"title134","v":"Operating days per year"},{"$f":"'Data entry needs'!L100-INDIRECT(\"Planner_pS2!$AN$\"&$B$1)*21","v":0},{"$f":"title345&$C$41","v":"ts (%) allowed by Please Select"},null,{"$f":"Q45","v":{"$error":"#N/A"}}]
[]
[null,null,{"$f":"title347","v":"Collection Cost Definition"}]
[null,null,{"$f":"title348","v":"Operation Cost"},{"$f":"title270","v":"Quantity"},{"$f":"title27","v":"Unit"},{"$f":"title270","v":"Quantity"},{"$f":"title27","v":"Unit"},{"$f":"title267","v":"Unit Price"},"Total",null,null,null,null,null,null,"ts (%) transported",{"$f":"VLOOKUP($C$41,$P$149:$V$155,7,FALSE)","v":{"$error":"#N/A"}}]
[null,null,{"$f":"title35","v":"Electricity"},null,"kWh/t res",{"$f":"D46*E41","v":0},{"$f":"title304","v":"kWh/year"},{"$f":"'Data entry needs'!$L$92","v":0},{"$f":"F46*H46","v":0},{"$f":"title319","v":"USD/year"},null,null,null,null,null,{"$f":"title35","v":"Electricity"},{"$f":"$Q$160","v":13.333333333333334}]
[null,null,{"$f":"title170","v":"Diesel"},null,{"$f":"title574","v":"l diesel/t res"},{"$f":"D47*$E$41","v":0},{"$f":"title350","v":"Liter Diesel/year"},{"$f":"'Data entry needs'!$F$100","v":0},{"$f":"F47*H47","v":0},{"$f":"title319","v":"USD/year"},null,null,null,null,null,{"$f":"title170","v":"Diesel"},{"$f":"VLOOKUP($C$41,$P$149:$S$155,2,FALSE)","v":{"$error":"#N/A"}}]
[null,null,{"$f":"title244","v":"Water Make-up "},null,{"$f":"title353","v":"Liter water/t res"},{"$f":"IF(D48=0,0,E41*(H41/H42)*(1-D48))","v":0},{"$f":"title351","v":"Liter water/year"},{"$f":"'Data entry needs'!$F$92","v":0},{"$f":"F48*H48*D48","v":0},{"$f":"title319","v":"USD/year"},null,null,null,null,null,{"$f":"title244","v":"Water Make-up "},0.15]
[null,null,{"$f":"title349","v":"Unskilled Workers"},null,{"$f":"title354","v":"person-day/t res"},{"$f":"ROUNDUP($D$49*E41*('Data entry needs'!$L$100/PRICE_FS6_PS2!E42)/'Data entry needs'!$L$99,0)","v":{"$error":"#DIV/0!"}},{"$f":"title352","v":"person-hour"},{"$f":"'Data entry needs'!$L$96","v":0},{"$f":"F49*H49","v":{"$error":"#DIV/0!"}},{"$f":"title319","v":"USD/year"},null,null,null,null,null,{"$f":"title127","v":"Unskilled worker"},{"$f":"VLOOKUP($C$41,$P$149:$S$155,3,FALSE)","v":{"$error":"#N/A"}}]
[null,null,null,{"$f":"Q47","v":{"$error":"#N/A"}},null,null,null,{"$f":"title269","v":"Subtotal"},{"$f":"+SUMIF($I$46:$I$49,\">0\")","v":0},{"$f":"title319","v":"USD/year"}]
[]
[null,null,{"$f":"title355","v":"Capital Investment"},{"$f":"title270","v":"Quantity"},{"$f":"title27","v":"Unit"}]
[null,null,{"$f":"$C$41&title356","v":"Please Select and equipment"},null,{"$f":"VLOOKUP($C$41,$P$149:$T$155,5,FALSE)","v":{"$error":"#N/A"}},null,null,null,{"$f":"D53*(E41*10)/20","v":0},{"$f":"title319","v":"USD/year"},null,null,null,null,null,{"$f":"$C$41&title356","v":"Please Select and equipment"},{"$f":"VLOOKUP($C$41,$P$149:$S$155,4,FALSE)","v":{"$error":"#N/A"}}]
[null,null,{"$f":"title357","v":"Dewatering"},null,"USD/t res",null,null,null,{"$f":"D54*$E$41/20","v":0},{"$f":"title319","v":"USD/year"},null,null,null,null,null,{"$f":"title357","v":"Dewatering"},{"$f":"$Q$158","v":7}]
[null,null,{"$f":"title358","v":"Operation and Mainteinance"},null,null,null,null,null,{"$f":"SUM(I53:I54)*$D$55","v":0},{"$f":"title319","v":"USD/year"},null,null,null,null,null,{"$f":"title358","v":"Operation and Mainteinance"},0.15]
[null,null,null,{"$f":"+IF(AND(C54=\"\",C55=\"\"),0,IF(C54=\"\",D55,IF(C55=\"\",D54,D54+D55)))","v":0},null,null,null,{"$f":"title269","v":"Subtotal"},{"$f":"+SUMIF(I53:I55,\">0\")","v":0},{"$f":"title319","v":"USD/year"}]
[]
[null,null,null,{"$f":"title359","v":"Cost for Collection and transfer to storage tank"},null,null,null,null,{"$f":"SUM(I50+I56)/E41","v":{"$error":"#DIV/0!"}},"USD/t"]
[]
[null,null,{"$f":"title360","v":"Collection Method 3 - Feedstock collected from different farms"}]
[]
[null,null,{"$f":"title361","v":"Source of biomass"},null,{"$f":"title405","v":"Collection method"},null,{"$f":"title346","v":"Data Source"},false]
[null,null,{"$f":"title362","v":"Transfer from individual farms"},null,"Mechanized",null,null,false]
[]
[null,null,{"$f":"title363","v":"Transportation method"},null,"Tanker Truck Transfer",null,{"$f":"title372","v":"Number Of Farms Supplying Feedstock"},{"$f":"title373","v":"Average distance to collection point (m)"},{"$f":"title374","v":"Collection Period (days)"},{"$f":"IF($E$65=title364,title375,title376)&title377","v":"Number of Tanks required"}]
[]
[null,null,{"$f":"IF($E$65=title364,title365,title366)","v":"Tranport Capacity (liter)"},{"$f":"Q67","v":27600},{"$f":"title370","v":"Residue Quanitiy (t/year)"},{"$f":"INDIRECT(\"'Data entry needs'!$F$\"&$A$1)","v":0},null,null,null,null,null,null,null,null,null,{"$f":"IF($E$60=title364,title365,title366)","v":"Pipe Diameter (in)"},{"$f":"VLOOKUP($E$65,$Y$147:$AE$149,3,FALSE)","v":27600}]
[null,null,{"$f":"IF($E$65=title364,title367,title368)","v":"Engine Power (HP)"},{"$f":"Q68","v":200},{"$f":"title371","v":"Residue Density (kg/m3)"},{"$f":"Q72","v":1000},null,null,{"$f":"'Data entry needs'!L100-INDIRECT(\"Planner_pS2!$AN$\"&$B$1)*21","v":0},{"$f":"IFERROR(ROUNDUP($F$67*1000*1000/(960*$D$69*'Data entry needs'!$L$99)/$I$68,0),0)","v":0},null,null,null,null,null,{"$f":"IF($E$60=title364,title367,title368)","v":"Motor Power (HP)"},{"$f":"VLOOKUP($E$65,$Y$147:$AE$149,4,FALSE)","v":200}]
[null,null,{"$f":"title369","v":"Transfer Rate (l/h)"},{"$f":"Q69","v":27221.917808219176},null,null,null,null,null,null,null,null,null,null,null,{"$f":"title369","v":"Transfer Rate (l/h)"},{"$f":"VLOOKUP($E$65,$Y$147:$AE$149,5,FALSE)","v":27221.917808219176}]
[]
[null,null,null,{"$f":"+IF(OR($E$63=title337,$E$63=title378),FALSE,TRUE)","v":true},{"$f":"+IF($E$63=title337,TRUE,FALSE)","v":false}]
[null,null,{"$f":"title332","v":"Biomass Price Definition"},null,null,null,null,null,null,null,null,null,null,null,null,{"$f":"title371","v":"Residue Density (kg/m3)"},{"$f":"IFERROR(VLOOKUP(INDIRECT(\"'Data entry needs'!$e$\"&$A$1),PRICE_FS3_PS2!$Y$152:$Z$156,2,FALSE),1000)","v":1000}]
[null,null,{"$f":"title333","v":"Labour cost"},{"$f":"title270","v":"Quantity"},{"$f":"title27","v":"Unit"},{"$f":"title270","v":"Quantity"},null,{"$f":"title27","v":"Unit"},"Total",{"$f":"title27","v":"Unit"}]
[null,null,{"$f":"IF(OR($E$63=title337,$E$63=title378),title379,\"\")","v":""},null,{"$f":"IF(OR($E$63=title337,$E$63=title378),title381,\"\")","v":""},{"$f":"IF(OR($E$63=title337,$E$63=title378),title335,\"\")","v":""},{"$f":"IF(OR($E$63=title337,$E$63=title378),'Data entry needs'!$L$96,\"\")","v":""},{"$f":"IF(OR($E$63=title337,$E$63=title378),title128,\"\")","v":""},{"$f":"IFERROR(IF(OR($E$63=title337,$E$63=title378),$F$67*D74*$G$74,\"\"),0)","v":""},{"$f":"IF(OR($E$63=title337,$E$63=title378),title319,\"\")","v":""}]
[null,null,{"$f":"IF($E$63=title337,\"\",title380)","v":"Number of skilled workers"},null,{"$f":"IF($E$63=title337,\"\",title381)","v":"person-hour/t"},{"$f":"IF($E$63=title337,\"\",title336)","v":"Skilled labour wage"},{"$f":"IF($E$63=title337,\"\",'Data entry needs'!$F$96)","v":0},{"$f":"IF($E$63=title337,\"\",title128)","v":"USD/person-hour"},{"$f":"IFERROR(IF($E$63=title337,\"\",D75*G75*$F$67),0)","v":0},{"$f":"IF($E$63=title337,\"\",title319)","v":"USD/year"}]
[null,null,null,{"$f":"+IF(AND(C74=\"\",C75=\"\"),0,IF(C74=\"\",D75,IF(C75=\"\",D74,D74+D75)))","v":0},null,null,null,{"$f":"title269","v":"Subtotal"},{"$f":"+SUMIF($I$74:$I$75,\">0\")","v":0},{"$f":"title319","v":"USD/year"}]
[null,null,{"$f":"title383","v":"Collection Machinery"},{"$f":"title270","v":"Quantity"},{"$f":"title27","v":"Unit"},{"$f":"title270","v":"Quantity"},null,{"$f":"title27","v":"Unit"},"Total",{"$f":"title27","v":"Unit"}]
[null,null,{"$f":"IF(OR($E$63=title382,$E$63=title378),title384,\"\")","v":"Collection Diesel Consumption"},null,{"$f":"IF(OR($E$63=title382,$E$63=title378),title575,\"\")","v":"l diesel/h"},{"$f":"IF(OR($E$63=title382,$E$63=title378),title389,\"\")","v":"Diesel Cost"},{"$f":"IF(OR($E$63=title382,$E$63=title378),'Data entry needs'!F$100,\"\")","v":0},{"$f":"IF(OR($E$63=title382,$E$63=title378),title576,\"\")","v":"USD/l diesel"},{"$f":"IFERROR(IF(OR($E$63=title382,$E$63=title378),D78*G78*D75*F67,\"\"),0)","v":0},{"$f":"title319","v":"USD/year"}]
[null,null,{"$f":"IF($E$65=title364,title385,title386)","v":"Truck Diesel Consumption"},{"$f":"Q79","v":154},{"$f":"IF($E$65=title364,title387,title388)","v":"l diesel/day"},{"$f":"IF($E$65=title364,title389,title390)","v":"Diesel Cost"},{"$f":"IF($E$65=title364,'Data entry needs'!F$100,'Data entry needs'!$L$92)","v":0},{"$f":"IF($E$65=title364,title576,\"USD/kWh\")","v":"USD/l diesel"},{"$f":"IFERROR(D79*G79*$I$68*$J$68,0)","v":0},{"$f":"title319","v":"USD/year"},null,null,null,null,null,{"$f":"IF($E$60=title364,title385,title386)","v":"Pump Electricity Consumption"},{"$f":"VLOOKUP($E$65,$Y$147:$AE$149,7,FALSE)","v":154}]
[null,null,null,null,null,null,null,{"$f":"title269","v":"Subtotal"},{"$f":"+SUMIF($I$78:$I$79,\">0\")","v":0},{"$f":"title319","v":"USD/year"}]
[null,null,{"$f":"title391","v":"Equipment"},{"$f":"title270","v":"Quantity"},{"$f":"title27","v":"Unit"},{"$f":"title270","v":"Quantity"},null,{"$f":"title27","v":"Unit"},"Total",{"$f":"title27","v":"Unit"}]
[null,null,{"$f":"IF($E$65=title364,title392,title393)","v":"Liquid Tanker Truck"},{"$f":"IF($E$65=title364,$J$68,$G$68*$H$68*1.2)","v":0},{"$f":"IF($E$65=title364,title398,\"m\")","v":"tank(s)"},{"$f":"IF($E$65=title364,title399,title400)","v":"Cost per Tank"},{"$f":"VLOOKUP($E$65,$Y$147:$AF$149,8,FALSE)/10","v":7900},{"$f":"IF($E$65=title364,title402,title403)","v":"USD/tank/year"},{"$f":"IFERROR(D82*G82,0)","v":0},{"$f":"title319","v":"USD/year"}]
[null,null,{"$f":"IF($E$65=title364,title394&$D$68&title395,title396&$D$68&title397)","v":"Semi-tractor 185 200 HP"},{"$f":"Q83","v":148000},"USD",{"$f":"title401","v":"Depreciation Period"},{"$f":"Q85","v":15},{"$f":"title164","v":"year"},{"$f":"IFERROR(D83*$J$68/G83,0)","v":0},{"$f":"title319","v":"USD/year"},null,null,null,null,null,{"$f":"IF($E$60=title364,title406,title396&$D$63&title397)","v":"Pump  HP with agitator"},{"$f":"VLOOKUP($E$65,$Y$147:$AH$149,10,FALSE)","v":148000}]
[null,null,{"$f":"title358","v":"Operation and Mainteinance"},{"$f":"Q84","v":0.15},null,null,null,null,{"$f":"IFERROR(SUM(I82:I83)*$D$84,0)","v":0},{"$f":"title319","v":"USD/year"},null,null,null,null,null,{"$f":"title358","v":"Operation and Mainteinance"},0.15]
[null,null,null,null,null,null,null,{"$f":"title269","v":"Subtotal"},{"$f":"I82","v":0},{"$f":"title319","v":"USD/year"},null,null,null,null,null,{"$f":"title401","v":"Depreciation Period"},15]
[]
[null,null,null,{"$f":"title404","v":"Cost for Collection and transfer to central collection point"},null,null,null,null,{"$f":"(I85+I80+I76)/$F$67","v":{"$error":"#DIV/0!"}},"USD/t"]
[]
[]
[]
[]
[]
[]
[]
[]
[]
[]
[]
[]
[]
[]
[]
[]
[]
[]
[]
[]
[]
[]
[]
[]
[]
[]
[]
[]
[]
[]
[]
[null,null,null,null,null,null,null,null,null,null,null,null,null,null,null,{"$f":"title410","v":"Sources of biomass"}]
[null,null,null,null,null,null,null,null,null,null,null,null,null,null,null,{"$f":"title411","v":"Biomass spread in the field"}]
[null,null,null,null,null,null,null,null,null,null,null,null,null,null,null,{"$f":"title412","v":"Biomass collected from field"}]
[null,null,null,null,null,null,null,null,null,null,null,null,null,null,null,{"$f":"title413","v":"Biomass from food processing plant"}]
[]
[]
[]
[]
[null,null,null,null,null,null,null,null,null,null,null,null,null,null,null,{"$f":"title405","v":"Collection method"}]
[null,null,null,null,null,null,null,null,null,null,null,null,null,null,null,{"$f":"title382","v":"Mechanized"}]
[null,null,null,null,null,null,null,null,null,null,null,null,null,null,null,{"$f":"title378","v":"Semi-mechanized"}]
[null,null,null,null,null,null,null,null,null,null,null,null,null,null,null,{"$f":"title337","v":"Manual"}]
[]
[]
[]
[]
[]
[]
[]
[]
[]
[]
[]
[]
[]
[]
[null,null,null,null,null,null,null,null,null,null,null,null,null,null,null,"Dairy maNURE",40.753799999999998,"Manure (kg/head/day)"]
[null,null,null,null,null,null,null,null,null,null,null,null,null,null,null,null,"Energy Use Cost","Labor and Mainteinance",null,null,null,"ts (%) transported","Dewateing",null,null,null,{"$f":"title440","v":"Capacity"},{"$f":"title441","v":"Engine/motor (hp)"},{"$f":"title369","v":"Transfer Rate (l/h)"},{"$f":"title442","v":"Transfer time (m/h)"},{"$f":"title443","v":"Energy Use  (kw)"},{"$f":"title444","v":"Add equipment"}]
[null,null,null,null,null,null,null,null,null,null,null,null,null,null,null,{"$f":"title405","v":"Collection method"},"liters diesel/t residue","workers*day/t residue","Capital cost","Capital cost","Capital cost",null,"Final solids ts (%)",null,{"$f":"title364","v":"Tanker Truck Transfer"},null,27600,200,27221.917808219176,609.6,154,79000,"USD",{"$f":"148000","v":148000},2010,{"$f":"title406","v":"Semi-tractor 185 HP"},null,null,"l/working day"]
[null,null,null,null,null,null,null,null,null,null,null,null,null,null,null,{"$f":"title74","v":"Please Select"},null,null,null,null,null,null,null,null,{"$f":"title432","v":"High Volume Pipeline"},null,"6´´ PVC",150,3028,1016,215,{"$f":"37/3.048","v":12.139107611548557},"USD/m",37075,2003]
[null,null,null,null,null,null,null,null,null,null,null,null,null,null,null,{"$f":"title414","v":"Alley Scrapers"},0.14330809896079807,0.42057427773606393,{"$f":"(AVERAGE(35,45)*$B$52+10000+4000)/3785.41178","v":3.698408736922143},{"$f":"title421","v":"USD/liter mixture"},2009,0.08,0.5,null,{"$f":"title433","v":"Low Volume Pipeline"},null,"4´´ PVC",7.5,378,127,86,{"$f":"12.4/3.048","v":4.0682414698162734},"USD/m",7675,2003]
[null,null,null,null,null,null,null,null,null,null,null,null,null,null,null,{"$f":"title415","v":"Flush System"},0.4093569308278352,0.10526625737967994,{"$f":"(4950.08+(16+9.8)*$B$52)/3785.41178","v":1.3076727943188258},"USD/liter mixture",2014,{"$f":"AVERAGE(1%,3%)","v":0.02},0.5]
[null,null,null,null,null,null,null,null,null,null,null,null,null,null,null,{"$f":"title416","v":"Vacum Scraper"},3.190595592141102,1.9769935564290937,10,"USD/liter mixture",2010,0.18,0.5,null,null,{"$f":"title434","v":"Density (Kg/m3)"}]
[null,null,null,null,null,null,null,null,null,null,null,null,null,null,null,{"$f":"title417","v":"Skid-loader"},0.75612714559717353,1.2830705357537211,{"$f":"(142.6*0.914+58.5*0.084+50.75*0.997)/$Q$145","v":4.5602655457895951},"USD/liter mixture",2010,{"$f":"AVERAGE(8%,18%)","v":0.13},0.5,null,{"$f":"title435","v":"Buffalo"},960]
[null,null,null,null,null,null,null,null,null,null,null,null,null,null,null,{"$f":"title418","v":"Cross gutter Scraper"},1.5259658685640533E-2,2.6500596263415929E-2,5,"USD/liter mixture",2010,0.08,0.5,null,{"$f":"title436","v":"Cattle"},960]
[null,null,null,null,null,null,null,null,null,null,null,null,null,null,null,{"$f":"title419","v":"Cross Gutter Auger"},0.20478904265077005,2.6255220372088005E-2,{"$f":"2200*30/2378/10","v":2.7754415475189234},"USD/liter mixture",2010,0.08,0.5,null,{"$f":"title437","v":"Dairy Cattle"},994]
[null,null,null,null,null,null,null,null,null,null,null,null,null,null,null,{"$f":"title420","v":"Flush Flume"},0.13645231027594507,2.6255220372088005E-2,{"$f":"(4950.08+(16+9.8)*$B$52)*1.5/3785.41178","v":1.9615091914782385},"USD/liter mixture",2010,{"$f":"AVERAGE(4%,9%)","v":6.5000000000000002E-2},0.5,null,{"$f":"title438","v":"Poultry"},961.11]
[null,null,null,null,null,null,null,null,null,null,null,null,null,null,null,null,null,null,null,null,null,null,null,null,{"$f":"title439","v":"Swine"},1140.9000000000001]
[null,null,null,null,null,null,null,null,null,null,null,null,null,null,null,{"$f":"title357","v":"Dewatering"},"Screw Press ",{"$f":"PROPER(title164)","v":"Year"}]
[null,null,null,null,null,null,null,null,null,null,null,null,null,null,null,{"$f":"title422","v":"Capital Cost (USD/t residue)"},{"$f":"AVERAGE(0.2,0.5)*1000000*0.12/AVERAGE(4000,8000)","v":7},2002]
[null,null,null,null,null,null,null,null,null,null,null,null,null,null,null,{"$f":"title423","v":"Operation (worker/t residue)"},{"$f":"AVERAGE(20,40)*1000/AVERAGE(4000,8000)/(300*8*160)","v":1.3020833333333334E-5}]
[null,null,null,null,null,null,null,null,null,null,null,null,null,null,null,{"$f":"title424","v":"Energy Demand kWh/t residue"},{"$f":"AVERAGE(5,15)*8000/AVERAGE(4000,8000)","v":13.333333333333334},2002]
[]
[]
[]
[]
[null,null,null,null,null,null,null,null,null,null,null,null,null,null,null,{"$f":"title74","v":"Please Select"},{"$f":"title405","v":"Collection method"},"Show","Section to Show",{"$f":"VLOOKUP(INDIRECT(\"'Data entry needs'!$d$\"&$A$1),$P$166:$R$178,3,FALSE)","v":{"$error":"#N/A"}}]
[null,null,null,null,null,null,null,null,null,null,null,null,null,null,null,{"$f":"title184","v":"Biodiesel/Oilseed Ind."},{"$f":"title425","v":"No collection neeeded"},1,{"$f":"title429&\" 0\"","v":"Option 0"},0,0]
[null,null,null,null,null,null,null,null,null,null,null,null,null,null,null,{"$f":"title85","v":"Crop Residues"},{"$f":"title426","v":"Method 1"},2,{"$f":"title429&\" 1\"","v":"Option 1"},{"$f":"$I$31","v":{"$error":"#DIV/0!"}},{"$f":"$D$24/E16","v":{"$error":"#DIV/0!"}},{"$f":"title381","v":"person-hour/t"}]
[null,null,null,null,null,null,null,null,null,null,null,null,null,null,null,{"$f":"title185","v":"Dairy-milk ind."},{"$f":"title427","v":"Method 2, Method 3"},4,{"$f":"title429&\" 2\"","v":"Option 2"},{"$f":"$I$58","v":{"$error":"#DIV/0!"}},{"$f":"F49/E41","v":{"$error":"#DIV/0!"}},{"$f":"title381","v":"person-hour/t"}]
[null,null,null,null,null,null,null,null,null,null,null,null,null,null,null,{"$f":"title120","v":"Energy Crops"},{"$f":"title425","v":"No collection neeeded"},1,{"$f":"title429&\" 3\"","v":"Option 3"},{"$f":"$I$87","v":{"$error":"#DIV/0!"}},{"$f":"D76","v":0},{"$f":"title381","v":"person-hour/t"}]
[null,null,null,null,null,null,null,null,null,null,null,null,null,null,null,{"$f":"title186","v":"Eth-Sugar-Starch Ind."},{"$f":"title425","v":"No collection neeeded"},1]
[null,null,null,null,null,null,null,null,null,null,null,null,null,null,null,{"$f":"title187","v":"Food Process. Res."},{"$f":"title425","v":"No collection neeeded"},1,{"$f":"title430","v":"Result"},{"$f":"IF($T$165=1,T166,IF($T$165=2,$T$167,IF($T$165=3,T168,IF(AND($T$165=4,$E$34),$T$168,$T$169))))","v":{"$error":"#N/A"}}]
[null,null,null,null,null,null,null,null,null,null,null,null,null,null,null,{"$f":"title188","v":"Grass"},{"$f":"title426","v":"Method 1"},2,{"$f":"title431","v":"Employees"},{"$f":"IF($T$165=1,U166,IF($T$165=2,$U$167,IF($T$165=3,U169,IF(AND($T$165=4,$E$34),$U$168,$U$169))))","v":{"$error":"#N/A"}},{"$f":"title381","v":"person-hour/t"}]
[null,null,null,null,null,null,null,null,null,null,null,null,null,null,null,{"$f":"title119","v":"Crops"},{"$f":"title425","v":"No collection neeeded"},1]
[null,null,null,null,null,null,null,null,null,null,null,null,null,null,null,{"$f":"title189","v":"Other Options"},{"$f":"title425","v":"No collection neeeded"},1]
[null,null,null,null,null,null,null,null,null,null,null,null,null,null,null,{"$f":"title190","v":"Slaughterhouses wastes"},{"$f":"title428","v":"Method 2"},3]
[null,null,null,null,null,null,null,null,null,null,null,null,null,null,null,{"$f":"title191","v":"Yeast-Alcoholic Bev."},{"$f":"title425","v":"No collection neeeded"},1]
[null,null,null,null,null,null,null,null,null,null,null,null,null,null,null,{"$f":"title84","v":"Manure"},{"$f":"title427","v":"Method 2, Method 3"},4]
[null,null,null,null,null,null,null,null,null,null,null,null,null,null,null,{"$f":"title192","v":"Wastewater"},{"$f":"title425","v":"No collection neeeded"},1]

{"sheet":"COST_PS3","index":37,"n_rows":134,"n_cols":38,"rows_kept":134,"cut":false,"hidden":false,"merged":[[2,2,2,12],[5,3,5,5],[7,6,7,7],[9,6,9,7],[9,9,9,10],[9,11,9,12],[12,9,12,12],[19,4,19,7],[19,9,20,9],[19,10,20,10],[19,11,20,11],[19,12,20,12],[43,11,43,12],[31,5,31,12],[32,5,32,6],[32,7,32,8],[32,9,32,10],[32,11,32,12],[33,7,33,8],[33,9,33,10],[33,11,33,12],[36,2,37,2],[36,3,37,3],[43,5,43,6],[43,7,43,8],[43,9,43,10],[72,5,72,6],[72,7,72,8],[72,9,72,10],[72,11,72,12],[45,2,46,2],[45,3,46,3],[52,2,53,2],[52,3,53,3],[60,5,60,6],[60,7,60,8],[60,9,60,10],[60,11,60,12],[62,2,63,2],[62,3,63,3],[62,4,63,4],[74,2,75,2],[74,3,75,3],[74,4,75,4],[82,5,82,6],[82,7,82,8],[82,11,82,12],[84,2,85,2],[84,3,85,3],[84,4,85,4],[89,5,89,6],[89,7,89,8],[89,9,89,10],[89,11,89,12],[82,9,82,10],[92,2,93,2],[92,3,93,3],[92,4,93,4],[97,2,97,4],[97,5,97,6],[97,9,97,10],[97,11,97,12],[99,2,100,2],[99,3,100,3],[99,4,100,4],[99,5,99,12],[100,5,100,6],[100,7,100,8],[100,9,100,10],[100,11,100,12],[97,7,97,8],[112,2,113,2],[112,3,113,3],[112,4,113,4],[108,5,108,12],[109,5,109,6],[109,7,109,8],[109,9,109,10],[109,11,109,12],[110,5,110,6],[110,7,110,8],[110,9,110,10],[110,11,110,12]]}
[]
[]
[null,null,{"$f":"title222&\" 3\"","v":" PROCESSING COSTS FOR PROCESS 3"}]
[]
[]
[null,null,{"$f":"title193","v":"Use white cells to input data"},{"$f":"title194","v":"Grey cells are used for calculations"}]
[]
[null,null,{"$f":"title223","v":"Summary of Feedstock Selected"},null,null,null,{"$f":"IF('Data entry needs'!$D$11,title230,IF('Data entry needs'!$F$11,title231,IF('Data entry needs'!$J$11,title230)))","v":"Biogas Properties"},null,null,{"$f":"title235","v":"Technical Parameters"}]
[]
[null,null,{"$f":"title224","v":"Type of Operation"},{"$f":"IF('Data entry needs'!$D$11,'Data entry needs'!$D$12,IF('Data entry needs'!$F$11,'Data entry needs'!$F$12,IF('Data entry needs'!$J$11,'Data entry needs'!$J$12)))","v":"Optimized Co-digestion"},{"$f":"title225","v":"Fs Available (t/yr)"},null,{"$f":"IF('Data entry needs'!$D$11,'Data entry needs'!$D$12,IF('Data entry needs'!$F$11,'Data entry needs'!$F$12,IF('Data entry needs'!$J$11,'Data entry needs'!$J$12)))","v":"Optimized Co-digestion"},null,null,{"$f":"title236","v":"Type of Fermentor"},null,"CSTR"]
[{"$f":"'Data entry needs'!$B57","v":57},{"$f":"A11*Planner_PS3!$AH100","v":0},{"$f":"IF($B11=0,\"\",title226&\" - \"&INDIRECT(\"'Data entry needs'!$d\"&$B11)&\" :\")","v":""},{"$f":"IF($B11=0,\"\",INDIRECT(\"'Data entry needs'!$e\"&$B11))","v":""},{"$f":"IF($B11=0,\"\",INDIRECT(\"'Data entry needs'!$f\"&$B11))","v":""},null,{"$f":"IFERROR(title232&ROUND(Planner_PS3!$AD$107*100,0)&\"%\",\"\")","v":""},null,null,null,{"$f":"IFERROR(title237&VLOOKUP($L$10,Planner_PS3!$AJ$116:$AP$119,2,FALSE)*100&\"%\",\"\")","v":"Min. TS Allowed : 2%"},null,{"$f":"IFERROR(title238&VLOOKUP($L$10,Planner_PS3!$AJ$116:$AP$119,3,FALSE)*100&\"%\",\"\")","v":"Max. TS Allowed: 20%"}]
[{"$f":"$A11+2","v":59},{"$f":"A12*Planner_PS3!$AH101","v":0},{"$f":"IF($B12=0,\"\",title227&\" - \"&INDIRECT(\"'Data entry needs'!$d\"&$B12)&\" :\")","v":""},"","",null,{"$f":"IFERROR(\"BMP (m^3 CH4/t VS) : \"&ROUND(Planner_PS3!$AF$107,0),\"\")","v":""},null,null,{"$f":"title239","v":"Temperature Regime (°C)"},null,"Mesophilic",{"$f":"IF($L$12=title241,AVERAGE(55,60),AVERAGE(35,40))","v":37.5}]
[{"$f":"$A12+2","v":61},{"$f":"A13*Planner_PS3!$AH102","v":0},{"$f":"IF($B13=0,\"\",title228&\" - \"&INDIRECT(\"'Data entry needs'!$d\"&$B13)&\" :\")","v":""},"","",null,{"$f":"IFERROR(title233&ROUND(Planner_PS3!$AG$107*100,0)&\"%\",\"\")","v":""},null,null,{"$f":"IF(VLOOKUP($L$10,Planner_PS3!$AJ$116:$AQ$119,8,FALSE),title242,title243&VLOOKUP($L$10,Planner_PS3!$AJ$116:$AQ$119,7,FALSE)*100&\"% TS\")","v":{"$error":"#DIV/0!"}}]
[{"$f":"$A13+2","v":63},{"$f":"A14*Planner_PS3!$AH103","v":0},{"$f":"IF($B14=0,\"\",title229&\" - \"&INDIRECT(\"'Data entry needs'!$d\"&$B14)&\" :\")","v":""},"","",null,{"$f":"IFERROR(title234&ROUND(Planner_PS3!$AE$107*100,0)&\"%\",\"\")","v":""}]
[{"$f":"$A14+2","v":65},{"$f":"A15*Planner_PS3!$AH104","v":0},{"$f":"IF($B15=0,\"\",title258&\" - \"&INDIRECT(\"'Data entry needs'!$d\"&$B15)&\" :\")","v":""},"","",null,null,null,null,"HRT Min. (d)",{"$f":"VLOOKUP($L$10,Planner_PS3!$AJ$116:$AP$119,5,FALSE)*IF($L$12=title241,0.5,1)","v":15},{"$f":"title244","v":"Water Make-up "}]
[{"$f":"$A15+4","v":69},{"$f":"A16*Planner_PS3!$AH105","v":0},{"$f":"IF($B16=0,\"\",title219&\"  - \"&INDIRECT(\"'Data entry needs'!$d\"&$B16)&\" :\")","v":""},"","",null,null,null,null,"HRT Max. (d)",{"$f":"VLOOKUP($L$10,Planner_PS3!$AJ$116:$AP$119,6,FALSE)*IF($L$12=title241,0.5,1)","v":40},{"$f":"title245","v":"Select a HRT (d)"}]
[]
[null,null,{"$f":"title257","v":"Transport Distance of Feedstock(s) from collection point to biogas plant"},null,null,null,null,null,null,{"$f":"title261","v":"Storage Capacity and Unitary Costs"}]
[]
[null,null,null,null,{"$f":"title259","v":"Transport Distances (km)"},null,null,null,null,{"$f":"title262","v":"Storage capacity Required (t)"},{"$f":"title116","v":"Storage Cost (USD/t)"},{"$f":"title263","v":"Feedstock Price (USD/t)"},{"$f":"title264","v":"Transport Cost (USD/t/km)"}]
[null,null,null,null,{"$f":"ROUND(F33,0)&\" (\"&IF(OR('Biogas Use Selection'!$P$67=5,'Biogas Use Selection'!$P$67=2),title260,IF(OR('Biogas Use Selection'!$P$67=1,'Biogas Use Selection'!$P$67=3),Planner_PS3!$AC$128,IF('Biogas Use Selection'!$P$67=4,Planner_PS3!$AC$127)))&\")\"","v":"100 (kWe)"},{"$f":"ROUND(H33,0)&\" (\"&IF(OR('Biogas Use Selection'!$P$67=5,'Biogas Use Selection'!$P$67=2),title260,IF(OR('Biogas Use Selection'!$P$67=1,'Biogas Use Selection'!$P$67=3),Planner_PS3!$AC$128,IF('Biogas Use Selection'!$P$67=4,Planner_PS3!$AC$127)))&\")\"","v":"105 (kWe)"},{"$f":"ROUND(J33,0)&\" (\"&IF(OR('Biogas Use Selection'!$P$67=5,'Biogas Use Selection'!$P$67=2),title260,IF(OR('Biogas Use Selection'!$P$67=1,'Biogas Use Selection'!$P$67=3),Planner_PS3!$AC$128,IF('Biogas Use Selection'!$P$67=4,Planner_PS3!$AC$127)))&\")\"","v":"115 (kWe)"},{"$f":"ROUND(L33,0)&\" (\"&IF(OR('Biogas Use Selection'!$P$67=5,'Biogas Use Selection'!$P$67=2),title260,IF(OR('Biogas Use Selection'!$P$67=1,'Biogas Use Selection'!$P$67=3),Planner_PS3!$AC$128,IF('Biogas Use Selection'!$P$67=4,Planner_PS3!$AC$127)))&\")\"","v":"120 (kWe)"}]
[null,{"$f":"$B11","v":0},{"$f":"IF($B11=0,\"\",title226&\" - \"&INDIRECT(\"'Data entry needs'!$e\"&$B11))","v":""},null,null,null,null,null,null,{"$f":"IF($B11=0,\"\",MAX(Planner_PS3!F13:Q13))","v":""},{"$f":"IF($B11=0,\"\",INDIRECT(\"'Data entry needs'!$m\"&$B11))","v":""},{"$f":"IF($B11=0,\"\",INDIRECT(\"'Data entry needs'!$k\"&$B11))","v":""}]
[null,0,{"$f":"IF($B12=0,\"\",title227&\" - \"&INDIRECT(\"'Data entry needs'!$e\"&$B12))","v":""},null,null,null,null,null,null,{"$f":"IF($B12=0,\"\",MAX(Planner_PS3!F14:Q14))","v":""},"",""]
[null,0,{"$f":"IF($B13=0,\"\",title228&\" - \"&INDIRECT(\"'Data entry needs'!$e\"&$B13))","v":""},null,null,null,null,null,null,{"$f":"IF($B13=0,\"\",MAX(Planner_PS3!F15:Q15))","v":""},"",""]
[null,0,{"$f":"IF($B14=0,\"\",title229&\" - \"&INDIRECT(\"'Data entry needs'!$e\"&$B14))","v":""},null,null,null,null,null,null,{"$f":"IF($B14=0,\"\",MAX(Planner_PS3!F16:Q16))","v":""},"",""]
[null,0,{"$f":"IF($B15=0,\"\",title258&\" - \"&INDIRECT(\"'Data entry needs'!$e\"&$B15))","v":""},null,null,null,null,null,null,{"$f":"IF($B15=0,\"\",MAX(Planner_PS3!F17:Q17))","v":""},"",""]
[null,0,{"$f":"IF($B16=0,\"\",title219&\" - \"&INDIRECT(\"'Data entry needs'!$e\"&$B16))","v":""},null,null,null,null,null,null,{"$f":"IF($B16=0,\"\",MAX(Planner_PS3!F18:Q18))","v":""},"",""]
[]
[]
[null,null,{"$f":"title559","v":"Production Cost Details"}]
[]
[null,null,null,null,null,{"$f":"title291&IF(OR('Biogas Use Selection'!$P$67=5,'Biogas Use Selection'!$P$67=2),title260,IF(OR('Biogas Use Selection'!$P$67=1,'Biogas Use Selection'!$P$67=3),Planner_PS3!$AC$128,IF('Biogas Use Selection'!$P$67=4,Planner_PS3!$AC$127)))&\")\"","v":"Capacities (kWe)"}]
[null,null,null,null,null,{"$f":"IF(OR('Biogas Use Selection'!$P$67=5,'Biogas Use Selection'!$P$67=2),Planner_PS3!AD$127/Planner_PS3!$AG$107,IF(OR('Biogas Use Selection'!$P$67=1,'Biogas Use Selection'!$P$67=3),Planner_PS3!AD$128,IF('Biogas Use Selection'!$P$67=4,Planner_PS3!AD$127)))","v":100},null,{"$f":"IF(OR('Biogas Use Selection'!$P$67=5,'Biogas Use Selection'!$P$67=2),Planner_PS3!AE$127/Planner_PS3!$AG$107,IF(OR('Biogas Use Selection'!$P$67=1,'Biogas Use Selection'!$P$67=3),Planner_PS3!AE$128,IF('Biogas Use Selection'!$P$67=4,Planner_PS3!AE$127)))","v":105},null,{"$f":"IF(OR('Biogas Use Selection'!$P$67=5,'Biogas Use Selection'!$P$67=2),Planner_PS3!AF$127/Planner_PS3!$AG$107,IF(OR('Biogas Use Selection'!$P$67=1,'Biogas Use Selection'!$P$67=3),Planner_PS3!AF$128,IF('Biogas Use Selection'!$P$67=4,Planner_PS3!AF$127)))","v":115},null,{"$f":"IF(OR('Biogas Use Selection'!$P$67=5,'Biogas Use Selection'!$P$67=2),Planner_PS3!AG$127/Planner_PS3!$AG$107,IF(OR('Biogas Use Selection'!$P$67=1,'Biogas Use Selection'!$P$67=3),Planner_PS3!AG$128,IF('Biogas Use Selection'!$P$67=4,Planner_PS3!AG$127)))","v":120}]
[]
[null,null,null,null,null,{"$f":"title265","v":"Operating hours per year"},{"$f":"'Data entry needs'!$L$100*24","v":0},{"$f":"title265","v":"Operating hours per year"},{"$f":"'Data entry needs'!$L$100*24","v":0},{"$f":"title265","v":"Operating hours per year"},{"$f":"'Data entry needs'!$L$100*24","v":0},{"$f":"title265","v":"Operating hours per year"},{"$f":"'Data entry needs'!$L$100*24","v":0}]
[]
[null,null,{"$f":"title266","v":"Inputs"},{"$f":"title27","v":"Unit"},{"$f":"title267","v":"Unit Price"},{"$f":"title270","v":"Quantity"},"Total",{"$f":"title270","v":"Quantity"},"Total",{"$f":"title270","v":"Quantity"},"Total",{"$f":"title270","v":"Quantity"},"Total"]
[null,null,null,null,{"$f":"\"(\"&title24&\")\"","v":"(USD/unit)"},{"$f":"title271","v":"(Unit/year)"},{"$f":"title272","v":"(USD/year)"},{"$f":"title271","v":"(Unit/year)"},{"$f":"title272","v":"(USD/year)"},{"$f":"title271","v":"(Unit/year)"},{"$f":"title272","v":"(USD/year)"},{"$f":"title271","v":"(Unit/year)"},{"$f":"title272","v":"(USD/year)"}]
[null,null,{"$f":"IF('Data entry needs'!$D$11,'Data entry needs'!$D$12,IF('Data entry needs'!$F$11,'Data entry needs'!$F$12,IF('Data entry needs'!$J$11,'Data entry needs'!$J$12)))","v":"Optimized Co-digestion"},"t",{"$f":"Planner_PS3!$AM$110","v":{"$error":"#DIV/0!"}},{"$f":"Planner_PS3!$AD$133","v":{"$error":"#DIV/0!"}},{"$f":"+F39*E39","v":{"$error":"#DIV/0!"}},{"$f":"Planner_PS3!$AE$133","v":{"$error":"#DIV/0!"}},{"$f":"+H39*$E39","v":{"$error":"#DIV/0!"}},{"$f":"Planner_PS3!$AF$133","v":{"$error":"#DIV/0!"}},{"$f":"+J39*$E39","v":{"$error":"#DIV/0!"}},{"$f":"Planner_PS3!$AG$133","v":{"$error":"#DIV/0!"}},{"$f":"+L39*$E39","v":{"$error":"#DIV/0!"}}]
[null,null,{"$f":"title244","v":"Water Make-up "},"m3",{"$f":"'Data entry needs'!$F$92","v":0},{"$f":"Planner_PS3!$AD$136*$M$15","v":{"$error":"#DIV/0!"}},{"$f":"+F40*E40","v":{"$error":"#DIV/0!"}},{"$f":"Planner_PS3!$AE$136*$M$15","v":{"$error":"#DIV/0!"}},{"$f":"+H40*$E40","v":{"$error":"#DIV/0!"}},{"$f":"Planner_PS3!$AF$136*$M$15","v":{"$error":"#DIV/0!"}},{"$f":"+J40*$E40","v":{"$error":"#DIV/0!"}},{"$f":"Planner_PS3!$AG$136*$M$15","v":{"$error":"#DIV/0!"}},{"$f":"+L40*$E40","v":{"$error":"#DIV/0!"}}]
[null,{"$f":"IF(OR('Biogas Use Selection'!$P$67=1,'Biogas Use Selection'!$P$67=3),0,1)","v":0},{"$f":"title35&\" \"&IF(B41=1,\"\",title268)","v":"Electricity  - Consumption Self-Supplied"},"KWh",{"$f":"'Data entry needs'!$L$92*B41","v":0},{"$f":"VLOOKUP($L$10,Planner_PS3!$AA$150:$AE$153,2,FALSE)+Planner_PS3!$AB$179","v":{"$error":"#DIV/0!"}},{"$f":"+F41*E41","v":{"$error":"#DIV/0!"}},{"$f":"VLOOKUP($L$10,Planner_PS3!$AA$150:$AE$153,3,FALSE)+Planner_PS3!$AC$179","v":{"$error":"#DIV/0!"}},{"$f":"+H41*$E41","v":{"$error":"#DIV/0!"}},{"$f":"VLOOKUP($L$10,Planner_PS3!$AA$150:$AE$153,4,FALSE)+Planner_PS3!$AD$179","v":{"$error":"#DIV/0!"}},{"$f":"+J41*$E41","v":{"$error":"#DIV/0!"}},{"$f":"VLOOKUP($L$10,Planner_PS3!$AA$150:$AE$153,5,FALSE)+Planner_PS3!$AE$179","v":{"$error":"#DIV/0!"}},{"$f":"+L41*$E41","v":{"$error":"#DIV/0!"}}]
[null,{"$f":"IF('Biogas Use Selection'!$P$67=1,0,1)","v":0},{"$f":"title51&IF(B42=1,\"\",title268)","v":"Heat - Consumption Self-Supplied"},"USD/GJ",{"$f":"'Data entry needs'!$L$93*B42","v":0},{"$f":"Planner_PS3!$AN$144","v":{"$error":"#DIV/0!"}},{"$f":"+F42*E42","v":{"$error":"#DIV/0!"}},{"$f":"Planner_PS3!$AN$145","v":{"$error":"#DIV/0!"}},{"$f":"+H42*$E42","v":{"$error":"#DIV/0!"}},{"$f":"Planner_PS3!$AN$146","v":{"$error":"#DIV/0!"}},{"$f":"+J42*$E42","v":{"$error":"#DIV/0!"}},{"$f":"Planner_PS3!$AN$147","v":{"$error":"#DIV/0!"}},{"$f":"+L42*$E42","v":{"$error":"#DIV/0!"}}]
[null,null,"NaOH","t",{"$f":"'Data entry needs'!$F$93","v":0},{"$f":"F39*2%","v":{"$error":"#DIV/0!"}},{"$f":"F43*$E$43","v":{"$error":"#DIV/0!"}},{"$f":"H39*2%","v":{"$error":"#DIV/0!"}},{"$f":"H43*$E$43","v":{"$error":"#DIV/0!"}},{"$f":"J39*2%","v":{"$error":"#DIV/0!"}},{"$f":"J43*$E$43","v":{"$error":"#DIV/0!"}},{"$f":"L39*2%","v":{"$error":"#DIV/0!"}},{"$f":"L43*$E$43","v":{"$error":"#DIV/0!"}}]
[null,null,{"$f":"title269","v":"Subtotal"},null,null,{"$f":"SUM(G39:G43)","v":{"$error":"#DIV/0!"}},null,{"$f":"SUM(I39:I43)","v":{"$error":"#DIV/0!"}},null,{"$f":"SUM(K39:K43)","v":{"$error":"#DIV/0!"}},null,{"$f":"SUM(M39:M43)","v":{"$error":"#DIV/0!"}}]
[]
[null,null,{"$f":"title273","v":"Labour and miscellaneous costs"},{"$f":"title27","v":"Unit"},{"$f":"title267","v":"Unit Price"},{"$f":"title270","v":"Quantity"},"Total",{"$f":"title270","v":"Quantity"},"Total",{"$f":"title270","v":"Quantity"},"Total",{"$f":"title270","v":"Quantity"},"Total"]
[null,null,null,null,{"$f":"\"(\"&title128&\")\"","v":"(USD/person-hour)"},{"$f":"\"(\"&title27&\")\"","v":"(Unit)"},{"$f":"title272","v":"(USD/year)"},{"$f":"\"(\"&title27&\")\"","v":"(Unit)"},{"$f":"title272","v":"(USD/year)"},{"$f":"\"(\"&title27&\")\"","v":"(Unit)"},{"$f":"title272","v":"(USD/year)"},{"$f":"\"(\"&title27&\")\"","v":"(Unit)"},{"$f":"title272","v":"(USD/year)"}]
[null,null,{"$f":"title127","v":"Unskilled worker"},{"$f":"title275","v":" # employee"},{"$f":"'Data entry needs'!$L$96","v":0},{"$f":"ROUNDUP(0.42*'COST(ADJUSTED)_PS3'!$J$9*'COST(ADJUSTED)_PS3'!$J$15/1000000,0)","v":0},{"$f":"+E48*F48*G35","v":0},{"$f":"ROUNDUP(0.42*'COST(ADJUSTED)_PS3'!$K$9*'COST(ADJUSTED)_PS3'!$K$15/1000000,0)","v":0},{"$f":"+$E48*H48*I35","v":0},{"$f":"ROUNDUP(0.42*'COST(ADJUSTED)_PS3'!$L$9*'COST(ADJUSTED)_PS3'!$L$15/1000000,0)","v":0},{"$f":"+$E48*J48*K35","v":0},{"$f":"ROUNDUP(0.42*'COST(ADJUSTED)_PS3'!$M$9*'COST(ADJUSTED)_PS3'!$M$15/1000000,0)","v":0},{"$f":"+$E48*L48*M35","v":0}]
[null,null,{"$f":"title126","v":"Skilled worker"},{"$f":"title275","v":" # employee"},{"$f":"'Data entry needs'!$F$96","v":0},{"$f":"ROUNDUP(F48/5,0)","v":0},{"$f":"+E49*F49*G35","v":0},{"$f":"ROUNDUP(H48/5,0)","v":0},{"$f":"+$E49*H49*I35","v":0},{"$f":"ROUNDUP(J48/10,0)","v":0},{"$f":"+$E49*J49*K35","v":0},{"$f":"ROUNDUP(L48/10,0)","v":0},{"$f":"+$E49*L49*M35","v":0}]
[null,null,{"$f":"title274","v":"Miscellaneous costs"},null,null,{"$f":"'Data entry needs'!$L$114","v":0},{"$f":"+F50*SUM(G48:G49)","v":0},{"$f":"'Data entry needs'!$L$114","v":0},{"$f":"+H50*SUM(I48:I49)","v":0},{"$f":"'Data entry needs'!$L$114","v":0},{"$f":"+J50*SUM(K48:K49)","v":0},{"$f":"'Data entry needs'!$L$114","v":0},{"$f":"+L50*SUM(M48:M49)","v":0}]
[null,null,{"$f":"title269","v":"Subtotal"},null,null,null,{"$f":"SUM(G48:G50)","v":0},null,{"$f":"SUM(I48:I50)","v":0},null,{"$f":"SUM(K48:K50)","v":0},null,{"$f":"SUM(M48:M50)","v":0}]
[]
[null,null,{"$f":"title276","v":"Transportation"},{"$f":"title27","v":"Unit"},{"$f":"title267","v":"Unit Price"},{"$f":"title270","v":"Quantity"},"Total",{"$f":"title270","v":"Quantity"},"Total",{"$f":"title270","v":"Quantity"},"Total",{"$f":"title270","v":"Quantity"},"Total"]
[null,null,null,null,"(USD/t/km)",{"$f":"\"(\"&title27&\")\"","v":"(Unit)"},{"$f":"title272","v":"(USD/year)"},{"$f":"\"(\"&title27&\")\"","v":"(Unit)"},{"$f":"title272","v":"(USD/year)"},{"$f":"\"(\"&title27&\")\"","v":"(Unit)"},{"$f":"title272","v":"(USD/year)"},{"$f":"\"(\"&title27&\")\"","v":"(Unit)"},{"$f":"title272","v":"(USD/year)"}]
[{"$f":"A11","v":57},{"$f":"A55*Planner_PS3!$AH100","v":0},{"$f":"IF($B55=0,\"\",title226&\" - \"&INDIRECT(\"'Data entry needs'!$e\"&$B55))","v":""},{"$f":"IF($B55=0,\"\",\"km\")","v":""},{"$f":"IF($B55=0,\"\",$M22)","v":""},{"$f":"IF($B55=0,\"\",$E22)","v":""},{"$f":"IFERROR($F55*$E55*F$39,0)","v":0},{"$f":"IF($B55=0,\"\",$F22)","v":""},{"$f":"IFERROR($H55*$E55*H$39,0)","v":0},{"$f":"IF($B55=0,\"\",$G22)","v":""},{"$f":"IFERROR($J55*$E55*J$39,0)","v":0},{"$f":"IF($B55=0,\"\",$H22)","v":""},{"$f":"IFERROR($L55*$E55*L$39,0)","v":0}]
[59,{"$f":"A56*Planner_PS3!$AH101","v":0},{"$f":"IF($B56=0,\"\",title227&\" - \"&INDIRECT(\"'Data entry needs'!$e\"&$B56))","v":""},"","","",0,"",0,"",0,"",0]
[61,{"$f":"A57*Planner_PS3!$AH102","v":0},{"$f":"IF($B57=0,\"\",title228&\" - \"&INDIRECT(\"'Data entry needs'!$e\"&$B57))","v":""},"","","",0,"",0,"",0,"",0]
[63,{"$f":"A58*Planner_PS3!$AH103","v":0},{"$f":"IF($B58=0,\"\",title229&\" - \"&INDIRECT(\"'Data entry needs'!$e\"&$B58))","v":""},"","","",0,"",0,"",0,"",0]
[65,{"$f":"A59*Planner_PS3!$AH104","v":0},{"$f":"IF($B59=0,\"\",title258&\" - \"&INDIRECT(\"'Data entry needs'!$e\"&$B59))","v":""},"","","",0,"",0,"",0,"",0]
[69,{"$f":"A60*Planner_PS3!$AH105","v":0},{"$f":"IF($B60=0,\"\",title219&\" - \"&INDIRECT(\"'Data entry needs'!$e\"&$B60))","v":""},"","","",0,"",0,"",0,"",0]
[null,null,{"$f":"title269","v":"Subtotal"},null,null,{"$f":"SUM(G55:G60)","v":0},{"$f":"SUM(G55:G60)","v":0},{"$f":"SUM(I55:I60)","v":0},{"$f":"SUM(I55:I60)","v":0},{"$f":"SUM(K55:K60)","v":0},{"$f":"SUM(K55:K60)","v":0},{"$f":"SUM(M55:M60)","v":0},{"$f":"SUM(M55:M60)","v":0}]
[]
[null,null,{"$f":"title175","v":"Storage"},{"$f":"title27","v":"Unit"},{"$f":"title267","v":"Unit Price"},{"$f":"title270","v":"Quantity"},"Total",{"$f":"title270","v":"Quantity"},"Total",{"$f":"title270","v":"Quantity"},"Total",{"$f":"title270","v":"Quantity"},"Total"]
[null,null,null,null,null,{"$f":"\"(\"&title27&\")\"","v":"(Unit)"},{"$f":"title272","v":"(USD/year)"},{"$f":"\"(\"&title27&\")\"","v":"(Unit)"},{"$f":"title272","v":"(USD/year)"},{"$f":"\"(\"&title27&\")\"","v":"(Unit)"},{"$f":"title272","v":"(USD/year)"},{"$f":"\"(\"&title27&\")\"","v":"(Unit)"},{"$f":"title272","v":"(USD/year)"}]
[{"$f":"A55","v":57},{"$f":"A65*Planner_PS3!$AH100","v":0},{"$f":"IF($B65=0,\"\",title226&\" - \"&INDIRECT(\"'Data entry needs'!$e\"&$B65))","v":""},{"$f":"IF($B65=0,\"\",\"USD/t\")","v":""},{"$f":"IF($B65=0,\"\",$K22)","v":""},{"$f":"IF($B65=0,\"\",Planner_PS3!$AB71)","v":""},{"$f":"IFERROR($E65*F65,0)","v":0},{"$f":"IF($B65=0,\"\",Planner_PS3!$AC71)","v":""},{"$f":"IFERROR($E65*H65,0)","v":0},{"$f":"IF($B65=0,\"\",Planner_PS3!$AD71)","v":""},{"$f":"IFERROR($E65*J65,0)","v":0},{"$f":"IF($B65=0,\"\",Planner_PS3!$AE71)","v":""},{"$f":"IFERROR($E65*L65,0)","v":0}]
[59,{"$f":"A66*Planner_PS3!$AH101","v":0},{"$f":"IF($B66=0,\"\",title227&\" - \"&INDIRECT(\"'Data entry needs'!$e\"&$B66))","v":""},"","",{"$f":"IF($B66=0,\"\",Planner_PS3!$AB72)","v":""},{"$f":"IFERROR($E66*F66,0)","v":0},{"$f":"IF($B66=0,\"\",Planner_PS3!$AC72)","v":""},0,{"$f":"IF($B66=0,\"\",Planner_PS3!$AD72)","v":""},0,{"$f":"IF($B66=0,\"\",Planner_PS3!$AE72)","v":""},0]
[61,{"$f":"A67*Planner_PS3!$AH102","v":0},{"$f":"IF($B67=0,\"\",title228&\" - \"&INDIRECT(\"'Data entry needs'!$e\"&$B67))","v":""},"","",{"$f":"IF($B67=0,\"\",Planner_PS3!$AB73)","v":""},0,{"$f":"IF($B67=0,\"\",Planner_PS3!$AC73)","v":""},0,{"$f":"IF($B67=0,\"\",Planner_PS3!$AD73)","v":""},0,{"$f":"IF($B67=0,\"\",Planner_PS3!$AE73)","v":""},0]
[63,{"$f":"A68*Planner_PS3!$AH103","v":0},{"$f":"IF($B68=0,\"\",title229&\" - \"&INDIRECT(\"'Data entry needs'!$e\"&$B68))","v":""},"","",{"$f":"IF($B68=0,\"\",Planner_PS3!$AB74)","v":""},0,{"$f":"IF($B68=0,\"\",Planner_PS3!$AC74)","v":""},0,{"$f":"IF($B68=0,\"\",Planner_PS3!$AD74)","v":""},0,{"$f":"IF($B68=0,\"\",Planner_PS3!$AE74)","v":""},0]
[65,{"$f":"A69*Planner_PS3!$AH104","v":0},{"$f":"IF($B69=0,\"\",title258&\" - \"&INDIRECT(\"'Data entry needs'!$e\"&$B69))","v":""},"","",{"$f":"IF($B69=0,\"\",Planner_PS3!$AB75)","v":""},0,{"$f":"IF($B69=0,\"\",Planner_PS3!$AC75)","v":""},0,{"$f":"IF($B69=0,\"\",Planner_PS3!$AD75)","v":""},0,{"$f":"IF($B69=0,\"\",Planner_PS3!$AE75)","v":""},0]
[69,{"$f":"A70*Planner_PS3!$AH105","v":0},{"$f":"IF($B70=0,\"\",title258&\" - \"&INDIRECT(\"'Data entry needs'!$e\"&$B70))","v":""},"","",{"$f":"IF($B70=0,\"\",Planner_PS3!$AB76)","v":""},0,{"$f":"IF($B70=0,\"\",Planner_PS3!$AC76)","v":""},0,{"$f":"IF($B70=0,\"\",Planner_PS3!$AD76)","v":""},0,{"$f":"IF($B70=0,\"\",Planner_PS3!$AE76)","v":""},0]
[null,null,{"$f":"title277","v":"Biogas Low-pressure system"},"USD/m3",{"$f":"$AI$131","v":9.893992932862191E-3},{"$f":"Planner_PS3!AD$127*30/VLOOKUP('Data entry needs'!$BX$133,COST_PS3!$AE$131:$AK$134,7,FALSE)","v":{"$error":"#DIV/0!"}},{"$f":"IFERROR(F71*$E$71,0)","v":0},{"$f":"Planner_PS3!AE$127*30/VLOOKUP('Data entry needs'!$BX$133,COST_PS3!$AE$131:$AK$134,7,FALSE)","v":{"$error":"#DIV/0!"}},{"$f":"IFERROR(H71*$E$71,0)","v":0},{"$f":"Planner_PS3!AF$127*30/VLOOKUP('Data entry needs'!$BX$133,COST_PS3!$AE$131:$AK$134,7,FALSE)","v":{"$error":"#DIV/0!"}},{"$f":"IFERROR(J71*$E$71,0)","v":0},{"$f":"Planner_PS3!AG$127*30/VLOOKUP('Data entry needs'!$BX$133,COST_PS3!$AE$131:$AK$134,7,FALSE)","v":{"$error":"#DIV/0!"}},{"$f":"IFERROR(L71*$E$71,0)","v":0}]
[null,{"$f":"IF('Data entry needs'!$BX$133=0,TRUE,FALSE)","v":true},{"$f":"IF(B72,\"\",title278&VLOOKUP('Data entry needs'!$BX$133,COST_PS3!$AE$131:$AJ$134,2,FALSE))","v":""},{"$f":"IF(B72,\"\",\"USD/m3\")","v":""},{"$f":"IF(B72,\"\",VLOOKUP('Data entry needs'!$BX$133,COST_PS3!$AE$131:$AJ$134,5,FALSE))","v":""},{"$f":"IF($B$72,\"\",Planner_PS3!AD$127*30*'Data entry needs'!$L$108)","v":""},{"$f":"IFERROR(F72*$E$72,0)","v":0},{"$f":"IF($B$72,\"\",Planner_PS3!AE$127*30*'Data entry needs'!$L$108)","v":""},{"$f":"IFERROR(H72*$E$72,0)","v":0},{"$f":"IF($B$72,\"\",Planner_PS3!AF$127*30*'Data entry needs'!$L$108)","v":""},{"$f":"IFERROR(J72*$E$72,0)","v":0},{"$f":"IF($B$72,\"\",Planner_PS3!AG$127*30*'Data entry needs'!$L$108)","v":""},{"$f":"IFERROR(L72*$E$72,0)","v":0}]
[null,null,{"$f":"title269","v":"Subtotal"},null,null,{"$f":"SUM(G65:G72)","v":0},{"$f":"SUM(G65:G65)","v":0},{"$f":"SUM(I65:I70)","v":0},{"$f":"SUM(I65:I65)","v":0},{"$f":"SUM(K65:K70)","v":0},{"$f":"SUM(K65:K65)","v":0},{"$f":"SUM(M65:M70)","v":0},{"$f":"SUM(M65:M65)","v":0}]
[]
[null,null,{"$f":"title279","v":"Investment"},{"$f":"title27","v":"Unit"},{"$f":"title284","v":"Years"},"Total",{"$f":"title285","v":"Depreciation"},"Total",{"$f":"title285","v":"Depreciation"},"Total",{"$f":"title285","v":"Depreciation"},"Total",{"$f":"title285","v":"Depreciation"}]
[null,null,"Investment",null,null,"(USD)",{"$f":"title272","v":"(USD/year)"},"(USD)",{"$f":"title272","v":"(USD/year)"},"(USD)",{"$f":"title272","v":"(USD/year)"},"(USD)",{"$f":"title272","v":"(USD/year)"}]
[null,null,{"$f":"title280","v":"Equipments"},"USD",20,{"$f":"'COST(ADJUSTED)_PS3'!J42+'COST(ADJUSTED)_PS3'!J23","v":{"$error":"#DIV/0!"}},{"$f":"+F77/E77","v":{"$error":"#DIV/0!"}},{"$f":"'COST(ADJUSTED)_PS3'!K42+'COST(ADJUSTED)_PS3'!K23","v":{"$error":"#DIV/0!"}},{"$f":"+H77/$E$77","v":{"$error":"#DIV/0!"}},{"$f":"'COST(ADJUSTED)_PS3'!L42+'COST(ADJUSTED)_PS3'!L23","v":{"$error":"#DIV/0!"}},{"$f":"+J77/$E$77","v":{"$error":"#DIV/0!"}},{"$f":"'COST(ADJUSTED)_PS3'!M42+'COST(ADJUSTED)_PS3'!M23","v":{"$error":"#DIV/0!"}},{"$f":"+L77/$E$77","v":{"$error":"#DIV/0!"}}]
[null,null,{"$f":"title281","v":"Building"},"USD",20,{"$f":"'COST(ADJUSTED)_PS3'!J50","v":{"$error":"#DIV/0!"}},{"$f":"+F78/E78","v":{"$error":"#DIV/0!"}},{"$f":"'COST(ADJUSTED)_PS3'!K50","v":{"$error":"#DIV/0!"}},{"$f":"+H78/$E$77","v":{"$error":"#DIV/0!"}},{"$f":"'COST(ADJUSTED)_PS3'!L50","v":{"$error":"#DIV/0!"}},{"$f":"+J78/$E$77","v":{"$error":"#DIV/0!"}},{"$f":"'COST(ADJUSTED)_PS3'!M50","v":{"$error":"#DIV/0!"}},{"$f":"+L78/$E$77","v":{"$error":"#DIV/0!"}}]
[null,null,{"$f":"title282","v":"Installation Distribution and/or Upgrade"},"USD",20,{"$f":"'COST(ADJUSTED)_PS3'!J60+'COST(ADJUSTED)_PS3'!J64+'COST(ADJUSTED)_PS3'!J71+'COST(ADJUSTED)_PS3'!J75+'COST(ADJUSTED)_PS3'!J67","v":{"$error":"#DIV/0!"}},{"$f":"+F79/E79","v":{"$error":"#DIV/0!"}},{"$f":"'COST(ADJUSTED)_PS3'!K60+'COST(ADJUSTED)_PS3'!K64+'COST(ADJUSTED)_PS3'!K71+'COST(ADJUSTED)_PS3'!K75+'COST(ADJUSTED)_PS3'!K67","v":{"$error":"#DIV/0!"}},{"$f":"+H79/$E$77","v":{"$error":"#DIV/0!"}},{"$f":"'COST(ADJUSTED)_PS3'!L60+'COST(ADJUSTED)_PS3'!L64+'COST(ADJUSTED)_PS3'!L71+'COST(ADJUSTED)_PS3'!L75+'COST(ADJUSTED)_PS3'!L67","v":{"$error":"#DIV/0!"}},{"$f":"+J79/$E$77","v":{"$error":"#DIV/0!"}},{"$f":"'COST(ADJUSTED)_PS3'!M60+'COST(ADJUSTED)_PS3'!M64+'COST(ADJUSTED)_PS3'!M71+'COST(ADJUSTED)_PS3'!M75+'COST(ADJUSTED)_PS3'!M67","v":{"$error":"#DIV/0!"}},{"$f":"+L79/$E$77","v":{"$error":"#DIV/0!"}}]
[null,null,{"$f":"title283","v":"Total investments"},null,null,{"$f":"SUM(F77:F79)","v":{"$error":"#DIV/0!"}},null,{"$f":"SUM(H77:H79)","v":{"$error":"#DIV/0!"}},null,{"$f":"SUM(J77:J79)","v":{"$error":"#DIV/0!"}},null,{"$f":"SUM(L77:L79)","v":{"$error":"#DIV/0!"}}]
[null,null,null,null,null,"Total \nDepreciation",{"$f":"SUM(G77:G80)","v":{"$error":"#DIV/0!"}},{"$f":"title286","v":"Total\nDepreciation"},{"$f":"SUM(I77:I80)","v":{"$error":"#DIV/0!"}},{"$f":"title286","v":"Total\nDepreciation"},{"$f":"SUM(K77:K80)","v":{"$error":"#DIV/0!"}},{"$f":"title286","v":"Total\nDepreciation"},{"$f":"SUM(M77:M80)","v":{"$error":"#DIV/0!"}}]
[null,null,{"$f":"title287","v":"Maintenance cost"},null,{"$f":"'Data entry needs'!$F$115","v":0},null,{"$f":"+E82*G81","v":{"$error":"#DIV/0!"}},null,{"$f":"+E82*$I$81","v":{"$error":"#DIV/0!"}},null,{"$f":"+$E$82*K81","v":{"$error":"#DIV/0!"}},null,{"$f":"+$E$82*M81","v":{"$error":"#DIV/0!"}}]
[null,null,{"$f":"title269","v":"Subtotal"},null,null,{"$f":"SUM(G81:G82)","v":{"$error":"#DIV/0!"}},null,{"$f":"SUM(I81:I82)","v":{"$error":"#DIV/0!"}},null,{"$f":"SUM(K81:K82)","v":{"$error":"#DIV/0!"}},null,{"$f":"SUM(M81:M82)","v":{"$error":"#DIV/0!"}}]
[]
[null,null,{"$f":"title150","v":"Other costs"},{"$f":"title27","v":"Unit"},{"$f":"title290","v":"Rate (%)"},null,"Total",null,"Total",null,"Total",null,"Total"]
[null,null,null,null,null,null,{"$f":"title272","v":"(USD/year)"},null,{"$f":"title272","v":"(USD/year)"},null,{"$f":"title272","v":"(USD/year)"},null,{"$f":"title272","v":"(USD/year)"}]
[null,null,{"$f":"title151","v":"Plant overhead"},"USD",{"$f":"'Data entry needs'!$F$114","v":0},null,{"$f":"+(G48+G49+G82)*$E$87","v":{"$error":"#DIV/0!"}},null,{"$f":"+(I48+I49+I82)*$E$87","v":{"$error":"#DIV/0!"}},null,{"$f":"+(K48+K49+K82)*$E$87","v":{"$error":"#DIV/0!"}},null,{"$f":"+(M48+M49+M82)*$E$87","v":{"$error":"#DIV/0!"}}]
[null,null,{"$f":"title288","v":"General and administrative cost"},"USD",{"$f":"'Data entry needs'!$L$115","v":0},null,{"$f":"+(F44+G51+G87+G82)*$E$88","v":{"$error":"#DIV/0!"}},null,{"$f":"+(H44+I51+I87+I82)*$E$88","v":{"$error":"#DIV/0!"}},null,{"$f":"+(J44+K51+K87+K82)*$E$88","v":{"$error":"#DIV/0!"}},null,{"$f":"+(L44+M51+M87+M82)*$E$88","v":{"$error":"#DIV/0!"}}]
[null,null,{"$f":"title289","v":"Loan interest"},"USD",{"$f":"'Data entry needs'!$L$119","v":0},null,{"$f":"-G118","v":{"$error":"#DIV/0!"}},null,{"$f":"-I118","v":{"$error":"#DIV/0!"}},null,{"$f":"-K118","v":{"$error":"#DIV/0!"}},null,{"$f":"-M118","v":{"$error":"#DIV/0!"}}]
[null,null,{"$f":"title269","v":"Subtotal"},null,null,{"$f":"SUM(G87:G89)","v":{"$error":"#DIV/0!"}},null,{"$f":"SUM(I87:I89)","v":{"$error":"#DIV/0!"}},null,{"$f":"SUM(K87:K89)","v":{"$error":"#DIV/0!"}},{"$f":"SUM(K87:K89)","v":{"$error":"#DIV/0!"}},{"$f":"SUM(M87:M89)","v":{"$error":"#DIV/0!"}},{"$f":"SUM(M87:M89)","v":{"$error":"#DIV/0!"}}]
[]
[]
[null,null,{"$f":"title292","v":"Total costs"},null,null,"Total",{"$f":"title323","v":"Share (%)"},"Total",{"$f":"title323","v":"Share (%)"},"Total",{"$f":"title323","v":"Share (%)"},"Total",{"$f":"title323","v":"Share (%)"}]
[null,null,"Investment",null,null,{"$f":"title272","v":"(USD/year)"},null,{"$f":"title272","v":"(USD/year)"},null,{"$f":"title272","v":"(USD/year)"},null,{"$f":"title272","v":"(USD/year)"}]
[null,null,{"$f":"title293","v":"Total operating costs"},null,null,{"$f":"+F44+G51+G61+G73","v":{"$error":"#DIV/0!"}},{"$f":"+F95/$F$98","v":{"$error":"#DIV/0!"}},{"$f":"+H44+I51+I61+I73","v":{"$error":"#DIV/0!"}},{"$f":"+H95/$H$98","v":{"$error":"#DIV/0!"}},{"$f":"+J44+K51+K61+K73","v":{"$error":"#DIV/0!"}},{"$f":"+J95/$J$98","v":{"$error":"#DIV/0!"}},{"$f":"+L44+M51+M61+M73","v":{"$error":"#DIV/0!"}},{"$f":"+L95/$L$98","v":{"$error":"#DIV/0!"}}]
[null,null,{"$f":"title294","v":"Total fixed costs"},null,null,{"$f":"+F83","v":{"$error":"#DIV/0!"}},{"$f":"+F96/$F$98","v":{"$error":"#DIV/0!"}},{"$f":"+H83","v":{"$error":"#DIV/0!"}},{"$f":"+H96/$H$98","v":{"$error":"#DIV/0!"}},{"$f":"+J83","v":{"$error":"#DIV/0!"}},{"$f":"+J96/$J$98","v":{"$error":"#DIV/0!"}},{"$f":"+L83","v":{"$error":"#DIV/0!"}},{"$f":"+L96/$L$98","v":{"$error":"#DIV/0!"}}]
[null,null,{"$f":"title295","v":"Total other costs"},null,null,{"$f":"+F90","v":{"$error":"#DIV/0!"}},{"$f":"+F97/$F$98","v":{"$error":"#DIV/0!"}},{"$f":"+H90","v":{"$error":"#DIV/0!"}},{"$f":"+H97/$H$98","v":{"$error":"#DIV/0!"}},{"$f":"+J90","v":{"$error":"#DIV/0!"}},{"$f":"+J97/$J$98","v":{"$error":"#DIV/0!"}},{"$f":"+M90","v":{"$error":"#DIV/0!"}},{"$f":"+L97/$L$98","v":{"$error":"#DIV/0!"}}]
[null,null,{"$f":"title296","v":"Total production costs"},null,null,{"$f":"SUM(F95:F97)","v":{"$error":"#DIV/0!"}},null,{"$f":"SUM(H95:H97)","v":{"$error":"#DIV/0!"}},null,{"$f":"SUM(J95:J97)","v":{"$error":"#DIV/0!"}},null,{"$f":"SUM(L95:L97)","v":{"$error":"#DIV/0!"}}]
[]
[null,null,{"$f":"title297","v":"Energy Balance"},null,{"$f":"title27","v":"Unit"},{"$f":"F32","v":"Capacities (kWe)"}]
[null,null,"Investment",null,null,{"$f":"F$33","v":100},null,{"$f":"H$33","v":105},null,{"$f":"J$33","v":115},null,{"$f":"L$33","v":120}]
[null,null,{"$f":"title298","v":"Electricity Production"},null,{"$f":"title304","v":"kWh/year"},null,{"$f":"IF('Biogas Use Selection'!$P$67=1,Planner_PS3!AB$159,IF('Biogas Use Selection'!$P$67=3,Planner_PS3!AB$163,0))*(1-'Data entry needs'!$F$112-'Data entry needs'!$L$112)","v":{"$error":"#DIV/0!"}},null,{"$f":"IF('Biogas Use Selection'!$P$67=1,Planner_PS3!AC$159,IF('Biogas Use Selection'!$P$67=3,Planner_PS3!AC$163,0))*(1-'Data entry needs'!$F$112-'Data entry needs'!$L$112)","v":{"$error":"#DIV/0!"}},null,{"$f":"IF('Biogas Use Selection'!$P$67=1,Planner_PS3!AD$159,IF('Biogas Use Selection'!$P$67=3,Planner_PS3!AD$163,0))*(1-'Data entry needs'!$F$112-'Data entry needs'!$L$112)","v":{"$error":"#DIV/0!"}},null,{"$f":"IF('Biogas Use Selection'!$P$67=1,Planner_PS3!AE$159,IF('Biogas Use Selection'!$P$67=3,Planner_PS3!AE$163,0))*(1-'Data entry needs'!$F$112-'Data entry needs'!$L$112)","v":{"$error":"#DIV/0!"}}]
[null,null,{"$f":"title299","v":"Heat Production"},null,{"$f":"title305","v":"GJ/year"},null,{"$f":"IF('Biogas Use Selection'!$P$67=1,Planner_PS3!AB$158,0)*(1-'Data entry needs'!$F$111-'Data entry needs'!$L$111)","v":{"$error":"#DIV/0!"}},null,{"$f":"IF('Biogas Use Selection'!$P$67=1,Planner_PS3!AC$158,0)*(1-'Data entry needs'!$F$111-'Data entry needs'!$L$111)","v":{"$error":"#DIV/0!"}},null,{"$f":"IF('Biogas Use Selection'!$P$67=1,Planner_PS3!AD$158,0)*(1-'Data entry needs'!$F$111-'Data entry needs'!$L$111)","v":{"$error":"#DIV/0!"}},null,{"$f":"IF('Biogas Use Selection'!$P$67=1,Planner_PS3!AE$158,0)*(1-'Data entry needs'!$F$111-'Data entry needs'!$L$111)","v":{"$error":"#DIV/0!"}}]
[null,null,{"$f":"title300","v":"Electricity Consumption"},null,{"$f":"title304","v":"kWh/year"},null,{"$f":"-F41","v":{"$error":"#DIV/0!"}},null,{"$f":"-H41","v":{"$error":"#DIV/0!"}},null,{"$f":"-J41","v":{"$error":"#DIV/0!"}},null,{"$f":"-L41","v":{"$error":"#DIV/0!"}}]
[null,null,{"$f":"title301","v":"Heat Consumption"},null,{"$f":"title305","v":"GJ/year"},null,{"$f":"-F42","v":{"$error":"#DIV/0!"}},null,{"$f":"-H42","v":{"$error":"#DIV/0!"}},null,{"$f":"-J42","v":{"$error":"#DIV/0!"}},null,{"$f":"-L42","v":{"$error":"#DIV/0!"}}]
[null,null,{"$f":"title302","v":"Electricity Available for Selling"},null,{"$f":"title304","v":"kWh/year"},null,{"$f":"G102+G104","v":{"$error":"#DIV/0!"}},null,{"$f":"I102+I104","v":{"$error":"#DIV/0!"}},null,{"$f":"K102+K104","v":{"$error":"#DIV/0!"}},null,{"$f":"M102+M104","v":{"$error":"#DIV/0!"}}]
[null,null,{"$f":"title303","v":"Heat Available for Selling"},null,{"$f":"title305","v":"GJ/year"},null,{"$f":"G103+G105","v":{"$error":"#DIV/0!"}},null,{"$f":"I103+I105","v":{"$error":"#DIV/0!"}},null,{"$f":"K103+K105","v":{"$error":"#DIV/0!"}},null,{"$f":"M103+M105","v":{"$error":"#DIV/0!"}}]
[]
[null,null,null,null,null,{"$f":"F32","v":"Capacities (kWe)"}]
[null,null,null,null,null,{"$f":"F33","v":100},null,{"$f":"H33","v":105},null,{"$f":"J33","v":115},null,{"$f":"L33","v":120}]
[null,null,{"$f":"title312&IF(OR('Biogas Use Selection'!$P$67=5,'Biogas Use Selection'!$P$67=2),Planner_PS3!$AJ$127,IF(OR('Biogas Use Selection'!$P$67=1,'Biogas Use Selection'!$P$67=3),Planner_PS3!$AJ$128,IF('Biogas Use Selection'!$P$67=4,Planner_PS3!$AJ$129)))&\")\"","v":"Unit cost of biogas (USD/kWh)"},null,null,{"$f":"F$98/IF(OR('Biogas Use Selection'!$P$67=1,'Biogas Use Selection'!$P$67=3),G$106,IF(OR('Biogas Use Selection'!$P$67=5,'Biogas Use Selection'!$P$67=2),Planner_PS3!AD$130*'Data entry needs'!$L$100,IF('Biogas Use Selection'!$P$67=4,F110*'Data entry needs'!$L$100)))","v":{"$error":"#DIV/0!"}},null,{"$f":"H$98/IF(OR('Biogas Use Selection'!$P$67=1,'Biogas Use Selection'!$P$67=3),I$106,IF(OR('Biogas Use Selection'!$P$67=5,'Biogas Use Selection'!$P$67=2),Planner_PS3!AE$130*'Data entry needs'!$L$100,IF('Biogas Use Selection'!$P$67=4,H110*'Data entry needs'!$L$100)))","v":{"$error":"#DIV/0!"}},null,{"$f":"J$98/IF(OR('Biogas Use Selection'!$P$67=1,'Biogas Use Selection'!$P$67=3),K$106,IF(OR('Biogas Use Selection'!$P$67=5,'Biogas Use Selection'!$P$67=2),Planner_PS3!AF$130*'Data entry needs'!$L$100,IF('Biogas Use Selection'!$P$67=4,J110*'Data entry needs'!$L$100)))","v":{"$error":"#DIV/0!"}},null,{"$f":"L$98/IF(OR('Biogas Use Selection'!$P$67=1,'Biogas Use Selection'!$P$67=3),M$106,IF(OR('Biogas Use Selection'!$P$67=5,'Biogas Use Selection'!$P$67=2),Planner_PS3!AG$130*'Data entry needs'!$L$100,IF('Biogas Use Selection'!$P$67=4,L110*'Data entry needs'!$L$100)))","v":{"$error":"#DIV/0!"}}]
[]
[null,null,{"$f":"title313","v":"Average loan interest"},{"$f":"title27","v":"Unit"},null,{"$f":"title320","v":"Total investment"},{"$f":"title314","v":"Loan amount"},{"$f":"title320","v":"Total investment"},{"$f":"title314","v":"Loan amount"},{"$f":"title320","v":"Total investment"},{"$f":"title314","v":"Loan amount"},{"$f":"title320","v":"Total investment"},{"$f":"title314","v":"Loan amount"}]
[null,null,null,null,null,"(USD)","(USD)","(USD)","(USD)","(USD)","(USD)","(USD)","(USD)"]
[null,null,{"$f":"title314","v":"Loan amount"},"USD",null,{"$f":"F80","v":{"$error":"#DIV/0!"}},{"$f":"'Data entry needs'!$F$118*F115","v":{"$error":"#DIV/0!"}},{"$f":"H80","v":{"$error":"#DIV/0!"}},{"$f":"'Data entry needs'!$F$119*H115","v":{"$error":"#DIV/0!"}},{"$f":"J80","v":{"$error":"#DIV/0!"}},{"$f":"'Data entry needs'!$F$120*J115","v":{"$error":"#DIV/0!"}},{"$f":"L80","v":{"$error":"#DIV/0!"}},{"$f":"'Data entry needs'!$F$121*L115","v":{"$error":"#DIV/0!"}}]
[null,null,{"$f":"title162","v":"Loan interest rate"},"%",null,null,{"$f":"E89","v":0},null,{"$f":"E89","v":0},null,{"$f":"E89","v":0},null,{"$f":"E89","v":0}]
[null,null,{"$f":"title315","v":"Loan payment"},{"$f":"title318","v":"USD/month"},null,null,{"$f":"PMT(G116/12,G119*12,G115,0)","v":{"$error":"#DIV/0!"}},null,{"$f":"PMT(I116/12,I119*12,I115,0)","v":{"$error":"#DIV/0!"}},null,{"$f":"PMT(K116/12,K119*12,K115,0)","v":{"$error":"#DIV/0!"}},null,{"$f":"PMT(M116/12,M119*12,M115,0)","v":{"$error":"#DIV/0!"}}]
[null,null,{"$f":"title316","v":"Annual loan payment"},{"$f":"title319","v":"USD/year"},null,null,{"$f":"G117*12","v":{"$error":"#DIV/0!"}},null,{"$f":"I117*12","v":{"$error":"#DIV/0!"}},null,{"$f":"K117*12","v":{"$error":"#DIV/0!"}},null,{"$f":"M117*12","v":{"$error":"#DIV/0!"}}]
[null,null,{"$f":"title163","v":"Loan terms"},{"$f":"title164","v":"year"},null,null,{"$f":"'Data entry needs'!$L$120","v":0},null,{"$f":"$G$119","v":0},null,{"$f":"$G$119","v":0},null,{"$f":"$G$119","v":0}]
[null,null,{"$f":"title317","v":"Total loan payment"},"USD",null,null,{"$f":"G118*G119","v":{"$error":"#DIV/0!"}},null,{"$f":"I118*I119","v":{"$error":"#DIV/0!"}},null,{"$f":"K118*K119","v":{"$error":"#DIV/0!"}},null,{"$f":"M118*M119","v":{"$error":"#DIV/0!"}}]
[null,null,{"$f":"title289","v":"Loan interest"},"USD",null,null,{"$f":"G120+G115","v":{"$error":"#DIV/0!"}},null,{"$f":"I120+I115","v":{"$error":"#DIV/0!"}},null,{"$f":"K120+K115","v":{"$error":"#DIV/0!"}},null,{"$f":"M120+M115","v":{"$error":"#DIV/0!"}}]
[null,null,{"$f":"title313","v":"Average loan interest"},{"$f":"title319","v":"USD/year"},null,null,{"$f":"+G121/20","v":{"$error":"#DIV/0!"}},null,{"$f":"+I121/20","v":{"$error":"#DIV/0!"}},null,{"$f":"+K121/20","v":{"$error":"#DIV/0!"}},null,{"$f":"+M121/20","v":{"$error":"#DIV/0!"}},null,null,null,null,null,null,null,null,null,null,null,null,null,null,null,null,{"$f":"title240","v":"Mesophilic"}]
[null,null,null,null,null,null,null,null,null,null,null,null,null,null,null,null,null,null,null,null,null,null,null,null,null,null,null,null,null,{"$f":"title241","v":"Thermophilic"}]
[null,null,null,null,null,null,null,null,null,null,null,null,null,null,null,null,null,null,null,null,null,null,null,null,null,null,null,null,null,{"$f":"IF('Data entry needs'!$J$11,COST_PS3!$AE124,COST_PS3!$AE124)","v":"CSTR"},"CSTR"]
[null,null,null,null,null,null,null,null,null,null,null,null,null,null,null,null,null,null,null,null,null,null,null,null,null,null,null,null,null,{"$f":"IF('Data entry needs'!$J$11,COST_PS3!$AE125,COST_PS3!$AE125)","v":"Plug Flow"},{"$f":"title530","v":"Plug Flow"}]
[null,null,null,null,null,null,null,null,null,null,null,null,null,null,null,null,null,null,null,null,null,null,null,null,null,null,null,null,null,{"$f":"IF('Data entry needs'!$J$11,COST_PS3!$AE126,COST_PS3!$AE126)","v":"UASB"},"UASB"]
[null,null,null,null,null,null,null,null,null,null,null,null,null,null,null,null,null,null,null,null,null,null,null,null,null,null,null,null,null,{"$f":"IF('Data entry needs'!$J$11,\"\",COST_PS3!$AE127)","v":""},{"$f":"title531","v":"Batch"}]
[]
[]
[null,null,null,null,null,null,null,null,null,null,null,null,null,null,null,null,null,null,null,null,null,null,null,null,null,null,null,null,null,null,{"$f":"title560","v":"Storage Methods"},null,null,{"$f":"title561","v":"Pressure"},{"$f":"title562","v":"Cost (USD/m3)"},{"$f":"title563","v":"Energy (kWh/m3)"},{"$f":"title564","v":"Methane (%)"}]
[null,null,null,null,null,null,null,null,null,null,null,null,null,null,null,null,null,null,null,null,null,null,null,null,null,null,null,null,null,null,0,{"$f":"title565","v":"Low-pressure system"},{"$f":"title569","v":"Water sealed gas holder"}," <2",9.893992932862191E-3,0,{"$f":"Planner_PS3!$AG$107","v":{"$error":"#DIV/0!"}},"Used for short and intermediate storage"]
[null,null,null,null,null,null,null,null,null,null,null,null,null,null,null,null,null,null,null,null,null,null,null,null,null,null,null,null,null,null,1,{"$f":"title566","v":"Intermediate-pressure system"},{"$f":"title570","v":"Propane Tanks"},"300 psi",7.9119529346846758,0.1765736241383207,{"$f":"Planner_PS3!$AG$107","v":{"$error":"#DIV/0!"}},"Suitable for standard storage"]
[null,null,null,null,null,null,null,null,null,null,null,null,null,null,null,null,null,null,null,null,null,null,null,null,null,null,null,null,null,null,2,{"$f":"title567","v":"High-pressure system"},{"$f":"title571","v":"CNG Tanks"},{"$f":"title573","v":"2,000 to 5,000 psi"},12.809187279151944,0.49440614758729801,1,"For pipeline injection of biomethane, only limited on-site gas storage facilities are necessary Needs first be upgraded to biomethane"]
[null,null,null,null,null,null,null,null,null,null,null,null,null,null,null,null,null,null,null,null,null,null,null,null,null,null,null,null,null,null,3,{"$f":"title568","v":"Cryogenic-pressure system"},{"$f":"title572","v":"LNG Tanks"},">5000 psi",29.939499246165674,{"$f":"AJ133*3","v":1.483218442761894},1,"For delivery and use as a transportation fuel,"]

{"sheet":"COST(ADJUSTED)_PS3","index":38,"n_rows":75,"n_cols":13,"rows_kept":75,"cut":false,"hidden":true,"merged":[[5,9,5,12],[7,9,7,12],[9,9,9,12],[2,2,2,12]]}
[]
[]
[null,null,{"$f":"title497&\" 3\"","v":"DETAILED INVESTMENT PROCESS 3"}]
[]
[]
[null,null,{"$f":"title498","v":"Escalation Factor"},0.89,null,null,null,null,null,{"$f":"title506","v":"Capacities (m3 CH4/year)"}]
[null,null,null,null,null,null,null,null,null,{"$f":"Planner_PS3!AD$127*'Data entry needs'!$L$100","v":0},{"$f":"Planner_PS3!AE$127*'Data entry needs'!$L$100","v":0},{"$f":"Planner_PS3!AF$127*'Data entry needs'!$L$100","v":0},{"$f":"Planner_PS3!AG$127*'Data entry needs'!$L$100","v":0}]
[null,null,null,null,null,null,null,null,null,{"$f":"title507","v":"Capacities (kWe)"}]
[null,null,null,null,null,null,null,null,null,{"$f":"Planner_PS3!AD$128","v":100},{"$f":"Planner_PS3!AE$128","v":105},{"$f":"Planner_PS3!AF$128","v":115},{"$f":"Planner_PS3!AG$128","v":120}]
[null,null,null,null,null,null,null,null,null,{"$f":"title508","v":"Capacities (m3 Biogas/year)"}]
[null,null,null,null,null,null,null,null,null,{"$f":"Planner_PS3!AD$130*'Data entry needs'!$L$100","v":{"$error":"#DIV/0!"}},{"$f":"Planner_PS3!AE$130*'Data entry needs'!$L$100","v":{"$error":"#DIV/0!"}},{"$f":"Planner_PS3!AF$130*'Data entry needs'!$L$100","v":{"$error":"#DIV/0!"}},{"$f":"Planner_PS3!AG$130*'Data entry needs'!$L$100","v":{"$error":"#DIV/0!"}}]
[null,null,null,{"$f":"title500","v":"Households Electr."},"hh",null,null,null,null,{"$f":"IFERROR(COST_PS3!G106/VLOOKUP('Biogas Use Selection'!$Q$67,'Biogas Use Selection'!$O$71:$Z$75,5,FALSE),0)","v":0},{"$f":"IFERROR(COST_PS3!I106/VLOOKUP('Biogas Use Selection'!$Q$67,'Biogas Use Selection'!$O$71:$Z$75,5,FALSE),0)","v":0},{"$f":"IFERROR(COST_PS3!K106/VLOOKUP('Biogas Use Selection'!$Q$67,'Biogas Use Selection'!$O$71:$Z$75,5,FALSE),0)","v":0},{"$f":"IFERROR(COST_PS3!M106/VLOOKUP('Biogas Use Selection'!$Q$67,'Biogas Use Selection'!$O$71:$Z$75,5,FALSE),0)","v":0}]
[null,null,null,{"$f":"title501","v":"Households Heat."},"hh",null,null,null,null,{"$f":"IFERROR(ROUNDDOWN(IF(OR('Biogas Use Selection'!$P$67=5,'Biogas Use Selection'!$P$67=2),J$11,IF('Biogas Use Selection'!$P$67=1,J$17*1000,IF('Biogas Use Selection'!$P$67=4,J$7)))/VLOOKUP('Biogas Use Selection'!$Q$67,'Biogas Use Selection'!$O$71:$Z$75,3,FALSE),0),0)","v":0},{"$f":"IFERROR(ROUNDDOWN(IF(OR('Biogas Use Selection'!$P$67=5,'Biogas Use Selection'!$P$67=2),K$11,IF('Biogas Use Selection'!$P$67=1,K$17*1000,IF('Biogas Use Selection'!$P$67=4,K$7)))/VLOOKUP('Biogas Use Selection'!$Q$67,'Biogas Use Selection'!$O$71:$Z$75,3,FALSE),0),0)","v":0},{"$f":"IFERROR(ROUNDDOWN(IF(OR('Biogas Use Selection'!$P$67=5,'Biogas Use Selection'!$P$67=2),L$11,IF('Biogas Use Selection'!$P$67=1,L$17*1000,IF('Biogas Use Selection'!$P$67=4,L$7)))/VLOOKUP('Biogas Use Selection'!$Q$67,'Biogas Use Selection'!$O$71:$Z$75,3,FALSE),0),0)","v":0},{"$f":"IFERROR(ROUNDDOWN(IF(OR('Biogas Use Selection'!$P$67=5,'Biogas Use Selection'!$P$67=2),M$11,IF('Biogas Use Selection'!$P$67=1,M$17*1000,IF('Biogas Use Selection'!$P$67=4,M$7)))/VLOOKUP('Biogas Use Selection'!$Q$67,'Biogas Use Selection'!$O$71:$Z$75,3,FALSE),0),0)","v":0}]
[null,null,null,{"$f":"title109","v":"Feedstock"},{"$f":"title308","v":"t/year"},null,null,null,null,{"$f":"Planner_PS3!AD133","v":{"$error":"#DIV/0!"}},{"$f":"Planner_PS3!AE133","v":{"$error":"#DIV/0!"}},{"$f":"Planner_PS3!AF133","v":{"$error":"#DIV/0!"}},{"$f":"Planner_PS3!AG133","v":{"$error":"#DIV/0!"}}]
[null,null,null,{"$f":"title502","v":"Operating period"},{"$f":"title505","v":"h/year"},null,null,null,null,{"$f":"COST_PS3!G$35","v":0},{"$f":"J15","v":0},{"$f":"K15","v":0},{"$f":"L15","v":0}]
[null,null,null,{"$f":"title503","v":"Cable Proxy"},"m/hh",null,null,null,10,{"$f":"IFERROR($I$16*J12,0)","v":0},{"$f":"IFERROR($I$16*K12,0)","v":0},{"$f":"IFERROR($I$16*L12,0)","v":0},{"$f":"IFERROR($I$16*M12,0)","v":0}]
[null,null,null,{"$f":"title299","v":"Heat Production"},{"$f":"title305","v":"GJ/year"},null,null,null,null,{"$f":"COST_PS3!G107","v":{"$error":"#DIV/0!"}},{"$f":"COST_PS3!I107","v":{"$error":"#DIV/0!"}},{"$f":"COST_PS3!K107","v":{"$error":"#DIV/0!"}},{"$f":"COST_PS3!M107","v":{"$error":"#DIV/0!"}}]
[null,null,{"$f":"title499","v":"Digester size"},{"$f":"title504","v":"Volume Reactor"},"m3",null,null,null,null,{"$f":"Planner_PS3!AD$134","v":{"$error":"#DIV/0!"}},{"$f":"Planner_PS3!AE$134","v":{"$error":"#DIV/0!"}},{"$f":"Planner_PS3!AF$134","v":{"$error":"#DIV/0!"}},{"$f":"Planner_PS3!AG$134","v":{"$error":"#DIV/0!"}}]
[]
[null,null,{"$f":"title509","v":"Pretreatment"}]
[null,1,{"$f":"title510","v":"Other (Hygenization, crushing, homogenization)"},{"$f":"\"USD/m3 \"&title512","v":"USD/m3 BIOGAS"},10.8,2006,135.30000000000001,{"$f":"'Data entry needs'!$L$121/$G21","v":0},{"$f":"E21*B21*$H21","v":0},{"$f":"$I21*J$18^$D$6","v":{"$error":"#DIV/0!"}},{"$f":"$J21*(K$18/$J$18)^$D$6","v":{"$error":"#DIV/0!"}},{"$f":"$J21*(L$18/$J$18)^$D$6","v":{"$error":"#DIV/0!"}},{"$f":"$J21*(M$18/$J$18)^$D$6","v":{"$error":"#DIV/0!"}}]
[null,1,{"$f":"title511","v":"Pre-processing equipment"},{"$f":"\"USD/t \"&LOWER(title109)","v":"USD/t feedstock"},{"$f":"450000/100000","v":4.5},2006,135.30000000000001,{"$f":"'Data entry needs'!$L$121/$G22","v":0},{"$f":"E22*B22*$H22","v":0},{"$f":"$I22*J$14^$D$6","v":{"$error":"#DIV/0!"}},{"$f":"$J22*(K$14/$J$14)^$D$6","v":{"$error":"#DIV/0!"}},{"$f":"$J22*(L$14/$J$14)^$D$6","v":{"$error":"#DIV/0!"}},{"$f":"$J22*(M$14/$J$14)^$D$6","v":{"$error":"#DIV/0!"}}]
[null,null,null,null,{"$f":"title269","v":"Subtotal"},{"$f":"title269","v":"Subtotal"},null,null,null,{"$f":"SUM(J21:J22)","v":{"$error":"#DIV/0!"}},{"$f":"SUM(K21:K22)","v":{"$error":"#DIV/0!"}},{"$f":"SUM(L21:L22)","v":{"$error":"#DIV/0!"}},{"$f":"SUM(M21:M22)","v":{"$error":"#DIV/0!"}}]
[null,null,{"$f":"title280","v":"Equipments"}]
[null,{"$f":"IF(COST_PS3!$L$10=\"CSTR\",1,0)","v":1},{"$f":"title513","v":"Digester CSTR"},{"$f":"\"USD/m3 \"&title512","v":"USD/m3 BIOGAS"},{"$f":"174.56112313391/1","v":174.56112313391},2006,135.30000000000001,{"$f":"'Data entry needs'!$L$121/$G25","v":0},{"$f":"E25*B25*$H25","v":0},{"$f":"$I25*J$18^$D$6","v":{"$error":"#DIV/0!"}},{"$f":"$J25*(K$18/$J$18)^$D$6","v":{"$error":"#DIV/0!"}},{"$error":"#DIV/0!"},{"$error":"#DIV/0!"}]
[null,{"$f":"IF(COST_PS3!$L$10=\"uasb\",1,0)","v":0},{"$f":"title514","v":"Digester UASB"},"USD/m3 BIOGAS",{"$f":"608.409048874878/1","v":608.40904887487795},2006,135.30000000000001,{"$f":"'Data entry needs'!$L$121/$G26","v":0},0,{"$f":"$I26*J$18^$D$6","v":{"$error":"#DIV/0!"}},{"$error":"#DIV/0!"},{"$error":"#DIV/0!"},{"$error":"#DIV/0!"}]
[null,{"$f":"IF(COST_PS3!$L$10=title530,1,0)","v":0},{"$f":"title515","v":"Digester Plug Flow"},"USD/m3 BIOGAS",{"$f":"20804*Planner_PS3!$AG$107/24","v":{"$error":"#DIV/0!"}},2008,157.69999999999999,{"$f":"'Data entry needs'!$L$121/$G27","v":0},{"$error":"#DIV/0!"},{"$error":"#DIV/0!"},{"$error":"#DIV/0!"},{"$error":"#DIV/0!"},{"$error":"#DIV/0!"}]
[null,{"$f":"IF(COST_PS3!$L$10=title531,1,0)","v":0},{"$f":"title516","v":"Digester Batch"},"USD/m3 BIOGAS",{"$f":"E25/3","v":58.187041044636665},2009,138.9,{"$f":"'Data entry needs'!$L$121/$G28","v":0},0,{"$error":"#DIV/0!"},{"$error":"#DIV/0!"},{"$error":"#DIV/0!"},{"$error":"#DIV/0!"}]
[null,1,{"$f":"title517","v":"Effluence storage pool"},"USD/m3 BIOGAS",87.06,2010,146.4,{"$f":"'Data entry needs'!$L$121/$G29","v":0},0,{"$error":"#DIV/0!"},{"$error":"#DIV/0!"},{"$error":"#DIV/0!"},{"$error":"#DIV/0!"}]
[null,1,{"$f":"title518","v":"Buffer tank"},"USD/m3 BIOGAS",{"$f":"0.9/0.3048^3/2","v":15.891600024669863},2010,146.4,{"$f":"'Data entry needs'!$L$121/$G30","v":0},0,{"$error":"#DIV/0!"},{"$f":"$I30*K$18","v":{"$error":"#DIV/0!"}},{"$f":"$I30*L$18","v":{"$error":"#DIV/0!"}},{"$f":"$I30*M$18","v":{"$error":"#DIV/0!"}}]
[null,1,{"$f":"title519","v":"Odor Control System"},{"$f":"\"USD/t \"&LOWER(title109)","v":"USD/t feedstock"},{"$f":"85000/20000","v":4.25},2010,146.4,{"$f":"'Data entry needs'!$L$121/$G31","v":0},0,{"$f":"$I31*J$14^$D$6","v":{"$error":"#DIV/0!"}},{"$f":"$J31*(K$14/$J$14)^$D$6","v":{"$error":"#DIV/0!"}},{"$error":"#DIV/0!"},{"$error":"#DIV/0!"}]
[null,1,{"$f":"title520","v":"Metering Pumps"},{"$f":"\"USD/t \"&LOWER(title109)","v":"USD/t feedstock"},{"$f":"40000/20000","v":2},2010,146.4,{"$f":"'Data entry needs'!$L$121/$G32","v":0},0,{"$f":"$I32*J$14^$D$6","v":{"$error":"#DIV/0!"}},{"$error":"#DIV/0!"},{"$error":"#DIV/0!"},{"$error":"#DIV/0!"}]
[null,1,{"$f":"title521","v":"Pumps"},{"$f":"\"USD/t \"&LOWER(title109)","v":"USD/t feedstock"},{"$f":"90000/20000","v":4.5},2010,146.4,{"$f":"'Data entry needs'!$L$121/$G33","v":0},0,{"$error":"#DIV/0!"},{"$error":"#DIV/0!"},{"$error":"#DIV/0!"},{"$error":"#DIV/0!"}]
[null,1,{"$f":"title522","v":"Trommel screen"},{"$f":"\"USD/t \"&LOWER(title109)","v":"USD/t feedstock"},{"$f":"110000/20000","v":5.5},2010,146.4,{"$f":"'Data entry needs'!$L$121/$G34","v":0},0,{"$error":"#DIV/0!"},{"$error":"#DIV/0!"},{"$error":"#DIV/0!"},{"$error":"#DIV/0!"}]
[null,1,{"$f":"title523","v":"Mixers"},{"$f":"\"USD/t \"&LOWER(title109)","v":"USD/t feedstock"},{"$f":"40000/20000","v":2},2010,146.4,{"$f":"'Data entry needs'!$L$121/$G35","v":0},0,{"$f":"$I35*J$14^$D$6","v":{"$error":"#DIV/0!"}},{"$error":"#DIV/0!"},{"$error":"#DIV/0!"},{"$error":"#DIV/0!"}]
[null,1,{"$f":"title524","v":"Post digestion tank (for gravity separation)"},{"$f":"\"USD/m3 \"&title512","v":"USD/m3 BIOGAS"},{"$f":"0.9/0.3048^3/2","v":15.891600024669863},2010,146.4,{"$f":"'Data entry needs'!$L$121/$G36","v":0},0,{"$f":"$I36*J$18^$D$6","v":{"$error":"#DIV/0!"}},{"$f":"$J36*(K$18/$J$18)^$D$6","v":{"$error":"#DIV/0!"}},{"$f":"$J36*(L$18/$J$18)^$D$6","v":{"$error":"#DIV/0!"}},{"$f":"$J36*(M$18/$J$18)^$D$6","v":{"$error":"#DIV/0!"}}]
[null,1,{"$f":"title525","v":"Gas collection equipment"},{"$f":"\"USD/t \"&LOWER(title109)","v":"USD/t feedstock"},{"$f":"75000/10000","v":7.5},2010,146.4,{"$f":"'Data entry needs'!$L$121/$G37","v":0},0,{"$f":"$I37*J$14^$D$6","v":{"$error":"#DIV/0!"}},{"$f":"$J37*(K$14/$J$14)^$D$6","v":{"$error":"#DIV/0!"}},{"$f":"$J37*(L$14/$J$14)^$D$6","v":{"$error":"#DIV/0!"}},{"$f":"$J37*(M$14/$J$14)^$D$6","v":{"$error":"#DIV/0!"}}]
[null,1,{"$f":"title526","v":"Desulfurizing tower"},{"$f":"\"USD/m3 \"&title512","v":"USD/m3 BIOGAS"},0.9,2010,146.4,{"$f":"'Data entry needs'!$L$121/$G38","v":0},0,{"$f":"$I38*J$18^$D$6","v":{"$error":"#DIV/0!"}},{"$f":"$J38*(K$18/$J$18)^$D$6","v":{"$error":"#DIV/0!"}},{"$f":"$J38*(L$18/$J$18)^$D$6","v":{"$error":"#DIV/0!"}},{"$f":"$J38*(M$18/$J$18)^$D$6","v":{"$error":"#DIV/0!"}}]
[null,{"$f":"IF('Biogas Use Selection'!$P$67=1,1,0)","v":1},{"$f":"title527","v":"Microturbines (30-500 kW)"},"USD/kW",{"$f":"AVERAGE(300,1000)","v":650},2007,141,{"$f":"'Data entry needs'!$L$121/$G39","v":0},0,{"$f":"$I39*J$9^$D$6","v":0},{"$f":"$J39*(K$9/$J$9)^$D$6","v":0}]
[null,{"$f":"IF('Biogas Use Selection'!$P$67=1,1,0)","v":1},{"$f":"title528","v":"Combustion Turbine (500 kW - 50 MW)"},"USD/kW",{"$f":"AVERAGE(300,1000)","v":650},2007,141,{"$f":"'Data entry needs'!$L$121/$G40","v":0},0,null,null,{"$f":"$I40*J9*(L$9/$J$9)^$D$6","v":0},{"$f":"$I40*J9*(M$9/$J$9)^$D$6","v":0}]
[null,{"$f":"IF('Biogas Use Selection'!$P$67=3,1,0)","v":0},{"$f":"title529","v":"Reciprocating Engine (5 kW - 7 MW)"},"USD/kW",{"$f":"AVERAGE(300,900)","v":600},2007,141,{"$f":"'Data entry needs'!$L$121/$G41","v":0},0,{"$f":"$I41*J$9^$D$6","v":0},{"$f":"$J41*(K$9/$J$9)^$D$6","v":0},{"$f":"$J41*(L$9/$J$9)^$D$6","v":0},{"$f":"$J41*(M$9/$J$9)^$D$6","v":0}]
[null,null,null,null,{"$f":"title269","v":"Subtotal"},{"$f":"title269","v":"Subtotal"},null,null,null,{"$f":"SUM(J25:J41)","v":{"$error":"#DIV/0!"}},{"$f":"SUM(K25:K41)","v":{"$error":"#DIV/0!"}},{"$f":"SUM(L25:L41)","v":{"$error":"#DIV/0!"}},{"$f":"SUM(M25:M41)","v":{"$error":"#DIV/0!"}}]
[]
[null,null,{"$f":"title281","v":"Building"}]
[null,1,{"$f":"title532","v":"Building  w/slab"},{"$f":"\"USD/t \"&LOWER(title109)","v":"USD/t feedstock"},{"$f":"640000/100000","v":6.4},2010,146.4,{"$f":"'Data entry needs'!$L$121/$G45","v":0},{"$f":"E45*B45*$H45","v":0},{"$f":"$I45*J$14^$D$6","v":{"$error":"#DIV/0!"}},{"$f":"$J45*(K$18/$J$18)^$D$6","v":{"$error":"#DIV/0!"}},{"$error":"#DIV/0!"},{"$error":"#DIV/0!"}]
[null,1,{"$f":"title533","v":"50' Truck weighing scales"},{"$f":"\"USD/t \"&LOWER(title109)","v":"USD/t feedstock"},{"$f":"32700/10000","v":3.27},2010,146.4,{"$f":"'Data entry needs'!$L$121/$G46","v":0},0,{"$f":"$I46*J$14^$D$6","v":{"$error":"#DIV/0!"}},{"$error":"#DIV/0!"},{"$error":"#DIV/0!"},{"$error":"#DIV/0!"}]
[null,1,{"$f":"title534","v":"Foundation for scales inclu. Const."},{"$f":"\"USD/t \"&LOWER(title109)","v":"USD/t feedstock"},{"$f":"20000/10000","v":2},2010,146.4,{"$f":"'Data entry needs'!$L$121/$G47","v":0},0,{"$error":"#DIV/0!"},{"$error":"#DIV/0!"},{"$error":"#DIV/0!"},{"$error":"#DIV/0!"}]
[null,1,{"$f":"title535","v":"Front-End Loader"},{"$f":"\"USD/t \"&LOWER(title109)","v":"USD/t feedstock"},{"$f":"118000/20000","v":5.9},2010,146.4,{"$f":"'Data entry needs'!$L$121/$G48","v":0},0,{"$error":"#DIV/0!"},{"$error":"#DIV/0!"},{"$error":"#DIV/0!"},{"$error":"#DIV/0!"}]
[null,1,{"$f":"title536","v":"Solids drying area concrete slab"},{"$f":"\"USD/t \"&LOWER(title109)","v":"USD/t feedstock"},{"$f":"30*6400/20000","v":9.6},2010,146.4,{"$f":"'Data entry needs'!$L$121/$G49","v":0},0,{"$error":"#DIV/0!"},{"$error":"#DIV/0!"},{"$error":"#DIV/0!"},{"$error":"#DIV/0!"}]
[null,null,null,null,{"$f":"title269","v":"Subtotal"},{"$f":"title269","v":"Subtotal"},null,null,null,{"$f":"SUM(J45:J49)","v":{"$error":"#DIV/0!"}},{"$f":"SUM(K45:K49)","v":{"$error":"#DIV/0!"}},{"$f":"SUM(L45:L49)","v":{"$error":"#DIV/0!"}},{"$f":"SUM(M45:M49)","v":{"$error":"#DIV/0!"}}]
[null,null,{"$f":"title462","v":"Installation"}]
[null,{"$f":"IF(OR('Biogas Use Selection'!$P$67=1,'Biogas Use Selection'!$P$67=3),1,0)","v":1},{"$f":"title537","v":"Connection and earthing"},"USD/kW",27.142857142857142,2010,146.4,{"$f":"'Data entry needs'!$L$121/$G52","v":0},{"$f":"E52*B52*$H52","v":0},{"$f":"$I52*J$9^$D$6","v":0},{"$f":"$J52*(K$9/$J$9)^$D$6","v":0},{"$f":"$J52*(L$9/$J$9)^$D$6","v":0},{"$f":"$J52*(M$9/$J$9)^$D$6","v":0}]
[null,1,{"$f":"title538","v":"Land Preparation"},{"$f":"\"USD/t \"&LOWER(title109)","v":"USD/t feedstock"},{"$f":"87120/10000","v":8.7119999999999997},2010,146.4,{"$f":"'Data entry needs'!$L$121/$G53","v":0},0,{"$f":"$I53*J$14^$D$6","v":{"$error":"#DIV/0!"}},{"$f":"$J53*(K$18/$J$18)^$D$6","v":{"$error":"#DIV/0!"}},{"$f":"$J53*(L$18/$J$18)^$D$6","v":{"$error":"#DIV/0!"}},{"$f":"$J53*(M$18/$J$18)^$D$6","v":{"$error":"#DIV/0!"}}]
[null,{"$f":"IF(COST_PS3!$L$10=\"CSTR\",1,0)","v":1},{"$f":"title539","v":"Installation CSTR"},{"$f":"\"USD/m3 \"&title545","v":"USD/m3 ch4/year"},7.4000000000000003E-3,2010,146.4,{"$f":"'Data entry needs'!$L$121/$G54","v":0},0,{"$f":"$I54*J$7^$D$6","v":0},{"$f":"$J54*(K$7/$J$7)^$D$6","v":{"$error":"#DIV/0!"}},{"$error":"#DIV/0!"},{"$error":"#DIV/0!"}]
[null,{"$f":"IF(COST_PS3!$L$10=\"uasb\",1,0)","v":0},{"$f":"title540","v":"Installation UASB"},{"$f":"\"USD/m3 \"&title545","v":"USD/m3 ch4/year"},5.5000000000000005E-3,2010,146.4,{"$f":"'Data entry needs'!$L$121/$G55","v":0},0,{"$f":"$I55*J$7^$D$6","v":0},{"$error":"#DIV/0!"},{"$error":"#DIV/0!"},{"$error":"#DIV/0!"}]
[null,{"$f":"IF(COST_PS3!$L$10=title530,1,0)","v":0},{"$f":"title541","v":"Installation Plug Flow"},{"$f":"\"USD/m3 \"&title545","v":"USD/m3 ch4/year"},3.2291666666666662E-3,2010,146.4,{"$f":"'Data entry needs'!$L$121/$G56","v":0},0,0,{"$error":"#DIV/0!"},{"$error":"#DIV/0!"},{"$error":"#DIV/0!"}]
[null,{"$f":"IF(COST_PS3!$L$10=title531,1,0)","v":0},{"$f":"title542","v":"Installation Batch"},{"$f":"\"USD/m3 \"&title545","v":"USD/m3 ch4/year"},3.7000000000000002E-3,2010,146.4,{"$f":"'Data entry needs'!$L$121/$G57","v":0},0,0,{"$error":"#DIV/0!"},{"$error":"#DIV/0!"},{"$error":"#DIV/0!"}]
[null,1,{"$f":"title543","v":"Infrastructure (fencing) "},{"$f":"\"USD/t \"&LOWER(title109)","v":"USD/t feedstock"},{"$f":"46170/10000","v":4.617},2010,146.4,{"$f":"'Data entry needs'!$L$121/$G58","v":0},0,{"$f":"$I58*J$14^$D$6","v":{"$error":"#DIV/0!"}},{"$f":"$J58*(K$18/$J$18)^$D$6","v":{"$error":"#DIV/0!"}},{"$error":"#DIV/0!"},{"$error":"#DIV/0!"}]
[null,1,{"$f":"title544","v":"Infrastructure (roads) ($/ft2)"},{"$f":"\"USD/t \"&LOWER(title109)","v":"USD/t feedstock"},{"$f":"60000/10000","v":6},2010,146.4,{"$f":"'Data entry needs'!$L$121/$G59","v":0},0,{"$f":"$I59*J$14^$D$6","v":{"$error":"#DIV/0!"}},{"$error":"#DIV/0!"},{"$error":"#DIV/0!"},{"$error":"#DIV/0!"}]
[null,null,null,null,{"$f":"title269","v":"Subtotal"},{"$f":"title269","v":"Subtotal"},null,null,null,{"$f":"SUM(J52:J59)","v":{"$error":"#DIV/0!"}},{"$f":"SUM(K52:K59)","v":{"$error":"#DIV/0!"}},{"$f":"SUM(L52:L59)","v":{"$error":"#DIV/0!"}},{"$f":"SUM(M52:M59)","v":{"$error":"#DIV/0!"}}]
[null,null,{"$f":"title546","v":"Electricity Distribution network"}]
[null,{"$f":"IF(OR('Biogas Use Selection'!$P$67=1,'Biogas Use Selection'!$P$67=3),1,0)","v":1},{"$f":"title547","v":" Primary electricity cable"},"USD/m",7.4539999999999997,2010,146.4,{"$f":"'Data entry needs'!$L$121/$G62","v":0},{"$f":"E62*B62*$H62","v":0},{"$f":"+J$16*$I62","v":0},{"$f":"+K$16*$I62","v":0},{"$f":"+L$16*$I62","v":0},{"$f":"+M$16*$I62","v":0}]
[null,{"$f":"IF(OR('Biogas Use Selection'!$P$67=1,'Biogas Use Selection'!$P$67=3),1,0)","v":1},{"$f":"title548","v":"Secondary cable, installation and meter"},{"$f":"title557","v":"USD/household"},164,2010,146.4,{"$f":"'Data entry needs'!$L$121/$G63","v":0},0,{"$f":"$I$63*J$12","v":0},{"$f":"$I$63*K$12","v":0},{"$f":"$I$63*L$12","v":0},{"$f":"$I$63*M$12","v":0}]
[null,null,null,null,{"$f":"title269","v":"Subtotal"},{"$f":"title269","v":"Subtotal"},null,null,null,{"$f":"SUM(J62:J63)","v":0},{"$f":"SUM(K62:K63)","v":0},{"$f":"SUM(L62:L63)","v":0},{"$f":"SUM(M62:M63)","v":0}]
[null,null,{"$f":"title549","v":"Heat Distribution System"}]
[null,{"$f":"IF('Biogas Use Selection'!$P$67=1,1,0)","v":1},{"$f":"title550","v":"Dwelling System"},"USD/MJ",1.4222435477483325E-3,2008,135.30000000000001,{"$f":"'Data entry needs'!$L$121/$G66","v":0},{"$f":"E66*B66*$H66","v":0},{"$f":"$I$66*J17*1000","v":{"$error":"#DIV/0!"}},{"$f":"$J66*(K$17/$J$17)^$D$6","v":{"$error":"#DIV/0!"}},{"$f":"$J66*(L$17/$J$17)^$D$6","v":{"$error":"#DIV/0!"}},{"$f":"$J66*(M$17/$J$17)^$D$6","v":{"$error":"#DIV/0!"}}]
[null,null,null,null,{"$f":"title269","v":"Subtotal"},{"$f":"title269","v":"Subtotal"},null,null,null,{"$f":"SUM(J66:J66)","v":{"$error":"#DIV/0!"}},{"$f":"SUM(K66:K66)","v":{"$error":"#DIV/0!"}},{"$f":"SUM(L66:L66)","v":{"$error":"#DIV/0!"}},{"$f":"SUM(M66:M66)","v":{"$error":"#DIV/0!"}}]
[null,null,{"$f":"title551","v":"Biogas Distribution System"}]
[null,{"$f":"IF(AND('Biogas Use Selection'!$P$67=2,NOT('Biogas Use Selection'!K35),'Biogas Use Selection'!$J$35=title75),1,0)","v":0},{"$f":"title552","v":"Pipe system (Biogas distribution)"},{"$f":"title557","v":"USD/household"},52.63,2006,135.30000000000001,{"$f":"'Data entry needs'!$L$121/$G69","v":0},{"$f":"E69*B69*$H69","v":0},{"$f":"$I69*J$13","v":0},{"$f":"$I69*K$13","v":0},{"$f":"$I69*L$13","v":0},{"$f":"$I69*M$13","v":0}]
[null,{"$f":"IF(AND('Biogas Use Selection'!$P$67=4,'Biogas Use Selection'!$E$56),1,0)","v":0},{"$f":"title553","v":"Pipe system (BIOMETHANE distribution)"},"USD/m",{"$f":"AVERAGE(100000,250000)/1609.344","v":108.73995864153345},2006,135.30000000000001,{"$f":"'Data entry needs'!$L$121/$G70","v":0},0,{"$f":"$I$70*'Biogas Use Selection'!$E$58*1000","v":0},{"$f":"$I$70*'Biogas Use Selection'!$E$58*1000","v":0},{"$f":"$I$70*'Biogas Use Selection'!$E$58*1000","v":0},{"$f":"$I$70*'Biogas Use Selection'!$E$58*1000","v":0}]
[null,null,null,null,{"$f":"title269","v":"Subtotal"},{"$f":"title269","v":"Subtotal"},null,null,null,{"$f":"SUM(J69:J70)","v":0},{"$f":"SUM(K69:K70)","v":0},{"$f":"SUM(L69:L70)","v":0},{"$f":"SUM(M69:M70)","v":0}]
[null,null,{"$f":"title554","v":"Upgrade and connection to natural gas"}]
[null,{"$f":"IF(OR('Biogas Use Selection'!$P$67=4,'Biogas Use Selection'!$P$67=5),1,0)","v":0},{"$f":"title555","v":"Biogas Upgrading, Testing, and Injection Systems "},{"$f":"title558","v":"USD/m3/year"},1.2209860833884656,2009,138.9,{"$f":"'Data entry needs'!$L$121/$G73","v":0},{"$f":"E73*B73*$H73","v":0},{"$f":"+J$7*$I73/Planner_PS3!$AG$107","v":{"$error":"#DIV/0!"}},{"$f":"$J73*(K$7/$J$7)^$D$6","v":{"$error":"#DIV/0!"}},{"$error":"#DIV/0!"},{"$error":"#DIV/0!"}]
[null,{"$f":"IF('Biogas Use Selection'!$P$67=4,1,0)","v":0},{"$f":"title556","v":"Connection to Utility Natural Gas Pipeline"},{"$f":"title558","v":"USD/m3/year"},0.26298161796059261,2010,146.4,{"$f":"'Data entry needs'!$L$121/$G74","v":0},0,{"$f":"+J$7*$I74/Planner_PS3!$AG$107","v":{"$error":"#DIV/0!"}},{"$error":"#DIV/0!"},{"$error":"#DIV/0!"},{"$error":"#DIV/0!"}]
[null,null,null,null,{"$f":"title269","v":"Subtotal"},{"$f":"title269","v":"Subtotal"},null,null,null,{"$f":"SUM(J73:J74)","v":{"$error":"#DIV/0!"}},{"$f":"SUM(K73:K74)","v":{"$error":"#DIV/0!"}},{"$f":"SUM(L73:L74)","v":{"$error":"#DIV/0!"}},{"$f":"SUM(M73:M74)","v":{"$error":"#DIV/0!"}}]

{"sheet":"FA_SIZE1_PS3","index":39,"n_rows":97,"n_cols":25,"rows_kept":97,"cut":false,"hidden":true,"merged":[[1,1,1,23]]}
[]
[null,{"$f":"title496&\" 1\"","v":"FINANCIAL EVALUATION OF BIOGAS PRODUCTION SIZE 1"}]
[]
[null,{"$f":"title445","v":"Revenues of biomass production and use system"}]
[null,{"$f":"title446","v":"Operating Year"},null,0,1,2,3,4,5,6,7,8,9,10,11,12,13,14,15,16,17,18,19,20,1]
[null,null,null,null,null,null,null,null,null,null,null,null,null,null,null,null,null,null,null,null,null,null,null,null,1]
["AD130",{"$f":"title447","v":"Biogas production capacity (m3 Biogas per year)"},null,{"$f":"INDIRECT(\"Planner_PS3!$\"&$A$7)*'Data entry needs'!$L$100","v":{"$error":"#DIV/0!"}},{"$f":"D7","v":{"$error":"#DIV/0!"}},{"$f":"E7","v":{"$error":"#DIV/0!"}},{"$f":"F7","v":{"$error":"#DIV/0!"}},{"$error":"#DIV/0!"},{"$error":"#DIV/0!"},{"$error":"#DIV/0!"},{"$error":"#DIV/0!"},{"$error":"#DIV/0!"},{"$error":"#DIV/0!"},{"$error":"#DIV/0!"},{"$error":"#DIV/0!"},{"$error":"#DIV/0!"},{"$error":"#DIV/0!"},{"$error":"#DIV/0!"},{"$error":"#DIV/0!"},{"$error":"#DIV/0!"},{"$error":"#DIV/0!"},{"$error":"#DIV/0!"},{"$error":"#DIV/0!"},{"$error":"#DIV/0!"},1]
[]
["G107",{"$f":"title448","v":"Heat Available for Selling (MJ/year)"},null,{"$f":"IF(INDIRECT(\"COST_PS3!\"&$A$9)<0,0,INDIRECT(\"COST_PS3!\"&$A$9))","v":{"$error":"#DIV/0!"}},{"$f":"D9","v":{"$error":"#DIV/0!"}},{"$f":"E9","v":{"$error":"#DIV/0!"}},{"$error":"#DIV/0!"},{"$error":"#DIV/0!"},{"$error":"#DIV/0!"},{"$error":"#DIV/0!"},{"$error":"#DIV/0!"},{"$error":"#DIV/0!"},{"$error":"#DIV/0!"},{"$error":"#DIV/0!"},{"$error":"#DIV/0!"},{"$error":"#DIV/0!"},{"$error":"#DIV/0!"},{"$error":"#DIV/0!"},{"$error":"#DIV/0!"},{"$error":"#DIV/0!"},{"$error":"#DIV/0!"},{"$f":"U9","v":{"$error":"#DIV/0!"}},{"$error":"#DIV/0!"},{"$error":"#DIV/0!"},1]
["G106",{"$f":"title449","v":"Electricity Available for Selling (kWh/year)"},null,{"$f":"IF(INDIRECT(\"COST_PS3!\"&$A$10)<0,0,INDIRECT(\"COST_PS3!\"&$A$10))","v":{"$error":"#DIV/0!"}},{"$f":"D10","v":{"$error":"#DIV/0!"}},{"$error":"#DIV/0!"},{"$error":"#DIV/0!"},{"$error":"#DIV/0!"},{"$error":"#DIV/0!"},{"$error":"#DIV/0!"},{"$error":"#DIV/0!"},{"$error":"#DIV/0!"},{"$error":"#DIV/0!"},{"$error":"#DIV/0!"},{"$error":"#DIV/0!"},{"$error":"#DIV/0!"},{"$error":"#DIV/0!"},{"$error":"#DIV/0!"},{"$error":"#DIV/0!"},{"$error":"#DIV/0!"},{"$error":"#DIV/0!"},{"$error":"#DIV/0!"},{"$error":"#DIV/0!"},{"$error":"#DIV/0!"},1]
["AB166",{"$f":"title450","v":"Biomethane Production (m3 Methane/year)"},null,{"$f":"IF(OR('Biogas Use Selection'!$P$67=4,'Biogas Use Selection'!$P$67=5),INDIRECT(\"Planner_PS3!$\"&$A$11),0)","v":0},{"$f":"D11","v":0},0,0,0,0,0,0,0,0,0,0,0,0,0,0,0,0,0,0,0,1]
[null,{"$f":"title451","v":"Biogas Available for Selling (m3/year)"},null,{"$f":"IF('Biogas Use Selection'!$P$67=2,$D$7,0)","v":0},{"$f":"D12","v":0},0,0,0,0,0,0,0,0,0,0,0,0,0,0,0,0,0,0,0]
["AB178",{"$f":"title452","v":"Digestate Production (t/year)"},null,{"$f":"INDIRECT(\"Planner_PS3!$\"&$A$13)","v":{"$error":"#DIV/0!"}},{"$f":"D13","v":{"$error":"#DIV/0!"}},{"$error":"#DIV/0!"},{"$error":"#DIV/0!"},{"$error":"#DIV/0!"},{"$error":"#DIV/0!"},{"$error":"#DIV/0!"},{"$error":"#DIV/0!"},{"$error":"#DIV/0!"},{"$error":"#DIV/0!"},{"$error":"#DIV/0!"},{"$error":"#DIV/0!"},{"$error":"#DIV/0!"},{"$error":"#DIV/0!"},{"$error":"#DIV/0!"},{"$error":"#DIV/0!"},{"$error":"#DIV/0!"},{"$error":"#DIV/0!"},{"$error":"#DIV/0!"},{"$error":"#DIV/0!"},{"$error":"#DIV/0!"}]
[]
[null,{"$f":"title265","v":"Operating hours per year"},null,{"$f":"COST_PS3!$G$35","v":0},{"$f":"D15","v":0},{"$f":"E15","v":0},0,0,0,0,0,0,0,0,0,0,0,0,0,0,0,0,0,0,1]
[null,null,null,null,null,null,null,null,null,null,null,null,null,null,null,null,null,null,null,null,null,null,null,null,1]
[1,{"$f":"title137&\" (USD/kWh)\"","v":"Electricity Selling Price (USD/kWh)"},null,{"$f":"IF($A17=1,'Data entry needs'!$F$103,0)","v":0},null,null,null,null,null,null,null,null,null,null,null,null,null,null,null,null,null,null,null,null,1]
[1,{"$f":"title138&\" (USD/GJ)\"","v":"Heat Selling Price (USD/GJ)"},null,{"$f":"IF($A18=1,'Data entry needs'!$F$104,0)","v":0}]
[1,{"$f":"title453","v":"Biogas Selling Price (USD/m3)"},null,{"$f":"IF($A19=1,'Data entry needs'!$F$105,0)","v":0}]
[1,{"$f":"title454","v":"Biomethane Selling Price (USD/m3)"},null,{"$f":"IF($A20=1,'Data entry needs'!$L$103,0)","v":0}]
[1,{"$f":"title455","v":"Digestate Sellig Price (USD/t)"},null,{"$f":"'Data entry needs'!$L$104","v":0}]
[]
[null,null,null,null,null,null,null,null,null,null,null,null,null,null,null,null,null,null,null,null,null,null,null,null,1]
[null,{"$f":"title456","v":"Annual Income (USD per year)"},null,{"$f":"$D$18*D9+D10*$D$17+D12*$D$19+D11*$D$20+$D$21*D13","v":{"$error":"#DIV/0!"}},{"$f":"$D$18*E9+E10*$D$17+E12*$D$19+E11*$D$20+$D$21*E13","v":{"$error":"#DIV/0!"}},{"$f":"$D$18*F9+F10*$D$17+F12*$D$19+F11*$D$20+$D$21*F13","v":{"$error":"#DIV/0!"}},{"$error":"#DIV/0!"},{"$error":"#DIV/0!"},{"$error":"#DIV/0!"},{"$error":"#DIV/0!"},{"$error":"#DIV/0!"},{"$error":"#DIV/0!"},{"$error":"#DIV/0!"},{"$error":"#DIV/0!"},{"$error":"#DIV/0!"},{"$error":"#DIV/0!"},{"$error":"#DIV/0!"},{"$error":"#DIV/0!"},{"$error":"#DIV/0!"},{"$error":"#DIV/0!"},{"$error":"#DIV/0!"},{"$error":"#DIV/0!"},{"$error":"#DIV/0!"},{"$error":"#DIV/0!"},1]
[null,null,null,null,null,null,null,null,null,null,null,null,null,null,null,null,null,null,null,null,null,null,null,null,1]
[null,{"$f":"title457","v":"Lifespan of civil work (years)"},null,{"$f":"'Data entry needs'!$L$120","v":0},null,null,null,null,null,null,null,null,null,null,null,null,null,null,null,null,null,null,null,null,1]
[null,{"$f":"title458","v":"Lifespan of charcoal system (years)"},null,{"$f":"'Data entry needs'!$L$120","v":0},null,null,null,null,null,null,null,null,null,null,null,null,null,null,null,null,null,null,null,null,1]
[null,{"$f":"title459","v":"Project lifetime (years)"},null,{"$f":"'Data entry needs'!$L$120","v":0},null,null,null,null,null,null,null,null,null,null,null,null,null,null,null,null,null,null,null,null,1]
[null,null,null,null,null,null,null,null,null,null,null,null,null,null,null,null,null,null,null,null,null,null,null,null,1]
[null,null,null,null,null,null,null,null,null,null,null,null,null,null,null,null,null,null,null,null,null,null,null,null,1]
[null,{"$f":"title460","v":"Capital and operating cost of biogas system "},null,null,null,null,null,null,null,null,null,null,null,null,null,null,null,null,null,null,null,null,null,null,1]
[null,null,null,null,null,null,null,null,null,null,null,null,null,null,null,null,null,null,null,null,null,null,null,null,1]
[null,{"$f":"title446","v":"Operating Year"},null,{"$f":"title464","v":"Appraisal"},{"$f":"title465","v":"Project period (years)"},{"$f":"title466","v":"per year"},null,null,null,null,null,null,null,null,null,null,null,null,null,null,null,null,null,null,1]
[null,{"$f":"title461","v":"Capital cost (USD)"},null,"Total",null,null,null,null,null,null,null,null,null,null,null,null,null,null,null,null,null,null,null,null,1]
["F77",{"$f":"title280","v":"Equipments"},null,{"$f":"INDIRECT(\"COST_PS3!\"&$A35)","v":{"$error":"#DIV/0!"}},{"$f":"+D26","v":0},{"$f":"D35/E35","v":{"$error":"#DIV/0!"}},null,null,null,null,null,null,null,null,null,null,null,null,null,null,null,null,null,null,1]
["F78",{"$f":"title281","v":"Building"},null,{"$f":"INDIRECT(\"COST_PS3!\"&$A36)","v":{"$error":"#DIV/0!"}},{"$f":"+D27","v":0},{"$f":"D36/E36","v":{"$error":"#DIV/0!"}},null,null,null,null,null,null,null,null,null,null,null,null,null,null,null,null,null,null,1]
["F79",{"$f":"title462","v":"Installation"},null,{"$f":"INDIRECT(\"COST_PS3!\"&$A37)","v":{"$error":"#DIV/0!"}},{"$f":"+D28","v":0},{"$f":"D37/E37","v":{"$error":"#DIV/0!"}},null,null,null,null,null,null,null,null,null,null,null,null,null,null,null,null,null,null,1]
[null,{"$f":"title463","v":"Total capital cost (USD)"},null,{"$f":"SUM(D35:D37)","v":{"$error":"#DIV/0!"}},null,{"$f":"SUM(F35:F37)","v":{"$error":"#DIV/0!"}},null,null,null,null,null,null,null,null,null,null,null,null,null,null,null,null,null,null,1]
[null,null,null,null,null,null,null,null,null,null,null,null,null,null,null,null,null,null,null,null,null,null,null,null,1]
[null,null,null,null,null,null,null,null,null,null,null,null,null,null,null,null,null,null,null,null,null,null,null,null,1]
[null,{"$f":"title446","v":"Operating Year"},null,{"$f":"title464","v":"Appraisal"},1,2,3,4,5,6,7,8,9,10,11,12,13,14,15,16,17,18,19,20,1]
[null,{"$f":"title467","v":"Annual operating and maintenance cost "},null,null,null,null,null,null,null,null,null,null,null,null,null,null,null,null,null,null,null,null,null,null,1]
["F44",{"$f":"title468","v":"Sub-total inputs cost (USD)"},null,{"$f":"INDIRECT(\"COST_PS3!\"&$A$43)","v":{"$error":"#DIV/0!"}},{"$error":"#DIV/0!"},{"$error":"#DIV/0!"},{"$error":"#DIV/0!"},{"$error":"#DIV/0!"},{"$error":"#DIV/0!"},{"$error":"#DIV/0!"},{"$error":"#DIV/0!"},{"$error":"#DIV/0!"},{"$error":"#DIV/0!"},{"$error":"#DIV/0!"},{"$error":"#DIV/0!"},{"$error":"#DIV/0!"},{"$error":"#DIV/0!"},{"$error":"#DIV/0!"},{"$error":"#DIV/0!"},{"$error":"#DIV/0!"},{"$error":"#DIV/0!"},{"$error":"#DIV/0!"},{"$error":"#DIV/0!"},{"$error":"#DIV/0!"},1]
[]
[null,{"$f":"title469","v":"Sub-total operating cost (USD)"},null,{"$f":"D46+D47+D48","v":{"$error":"#DIV/0!"}},{"$f":"E46+E47+E48","v":{"$error":"#DIV/0!"}},{"$f":"F46+F47+F48","v":{"$error":"#DIV/0!"}},{"$error":"#DIV/0!"},{"$error":"#DIV/0!"},{"$error":"#DIV/0!"},{"$error":"#DIV/0!"},{"$error":"#DIV/0!"},{"$error":"#DIV/0!"},{"$error":"#DIV/0!"},{"$error":"#DIV/0!"},{"$error":"#DIV/0!"},{"$error":"#DIV/0!"},{"$error":"#DIV/0!"},{"$error":"#DIV/0!"},{"$error":"#DIV/0!"},{"$error":"#DIV/0!"},{"$error":"#DIV/0!"},{"$error":"#DIV/0!"},{"$error":"#DIV/0!"},{"$error":"#DIV/0!"},1]
["g51",{"$f":"title470","v":"Labour cost & Misc. (USD)"},null,{"$f":"INDIRECT(\"COST_PS3!\"&$A46)","v":0},{"$f":"+D46","v":0},{"$f":"+E46","v":0},0,0,0,0,0,0,0,0,0,0,0,0,0,0,0,0,0,0,1]
["g87",{"$f":"title151","v":"Plant overhead"},null,{"$f":"INDIRECT(\"COST_PS3!\"&$A47)","v":{"$error":"#DIV/0!"}},{"$f":"D47","v":{"$error":"#DIV/0!"}},{"$f":"E47","v":{"$error":"#DIV/0!"}},{"$error":"#DIV/0!"},{"$error":"#DIV/0!"},{"$error":"#DIV/0!"},{"$error":"#DIV/0!"},{"$error":"#DIV/0!"},{"$error":"#DIV/0!"},{"$error":"#DIV/0!"},{"$error":"#DIV/0!"},{"$error":"#DIV/0!"},{"$error":"#DIV/0!"},{"$error":"#DIV/0!"},{"$error":"#DIV/0!"},{"$error":"#DIV/0!"},{"$error":"#DIV/0!"},{"$error":"#DIV/0!"},{"$f":"U47","v":{"$error":"#DIV/0!"}},{"$error":"#DIV/0!"},{"$error":"#DIV/0!"},1]
["g88",{"$f":"title288","v":"General and administrative cost"},null,{"$f":"INDIRECT(\"COST_PS3!\"&$A48)","v":{"$error":"#DIV/0!"}},{"$f":"D48","v":{"$error":"#DIV/0!"}},{"$error":"#DIV/0!"},{"$error":"#DIV/0!"},{"$error":"#DIV/0!"},{"$error":"#DIV/0!"},{"$error":"#DIV/0!"},{"$error":"#DIV/0!"},{"$error":"#DIV/0!"},{"$error":"#DIV/0!"},{"$error":"#DIV/0!"},{"$error":"#DIV/0!"},{"$error":"#DIV/0!"},{"$error":"#DIV/0!"},{"$error":"#DIV/0!"},{"$error":"#DIV/0!"},{"$error":"#DIV/0!"},{"$error":"#DIV/0!"},{"$error":"#DIV/0!"},{"$error":"#DIV/0!"},{"$error":"#DIV/0!"},1]
["g82",{"$f":"title471","v":"Sub-total maintenance cost (USD)"},null,{"$f":"INDIRECT(\"COST_PS3!\"&$A49)","v":{"$error":"#DIV/0!"}},{"$f":"D49","v":{"$error":"#DIV/0!"}},{"$error":"#DIV/0!"},{"$error":"#DIV/0!"},{"$error":"#DIV/0!"},{"$error":"#DIV/0!"},{"$error":"#DIV/0!"},{"$error":"#DIV/0!"},{"$error":"#DIV/0!"},{"$error":"#DIV/0!"},{"$error":"#DIV/0!"},{"$error":"#DIV/0!"},{"$error":"#DIV/0!"},{"$error":"#DIV/0!"},{"$error":"#DIV/0!"},{"$error":"#DIV/0!"},{"$error":"#DIV/0!"},{"$error":"#DIV/0!"},{"$error":"#DIV/0!"},{"$error":"#DIV/0!"},{"$error":"#DIV/0!"},1]
[null,null,null,null,null,null,null,null,null,null,null,null,null,null,null,null,null,null,null,null,null,null,null,null,1]
["g82",{"$f":"title472","v":"Sub-total of annual fixed cost (USD)"},null,{"$f":"F38","v":{"$error":"#DIV/0!"}},{"$f":"D51","v":{"$error":"#DIV/0!"}},{"$f":"E51","v":{"$error":"#DIV/0!"}},{"$error":"#DIV/0!"},{"$error":"#DIV/0!"},{"$error":"#DIV/0!"},{"$error":"#DIV/0!"},{"$error":"#DIV/0!"},{"$error":"#DIV/0!"},{"$error":"#DIV/0!"},{"$error":"#DIV/0!"},{"$error":"#DIV/0!"},{"$error":"#DIV/0!"},{"$error":"#DIV/0!"},{"$error":"#DIV/0!"},{"$error":"#DIV/0!"},{"$error":"#DIV/0!"},{"$error":"#DIV/0!"},{"$error":"#DIV/0!"},{"$error":"#DIV/0!"},{"$error":"#DIV/0!"},1]
[null,null,null,null,null,null,null,null,null,null,null,null,null,null,null,null,null,null,null,null,null,null,null,null,1]
["f73",{"$f":"title473","v":"Sub-total of storage cost (USD)"},null,{"$f":"INDIRECT(\"COST_PS3!\"&$A53)","v":0},0,0,0,0,0,0,0,0,0,0,0,0,0,0,0,0,0,0,0,0,1]
[null,null,null,null,null,null,null,null,null,null,null,null,null,null,null,null,null,null,null,null,null,null,null,null,1]
[null,{"$f":"title474","v":"Total operation and maintenance cost (USD)"},null,{"$f":"D43+D45+D49+D51+D53","v":{"$error":"#DIV/0!"}},{"$f":"E43+E45+E49+E51+E53","v":{"$error":"#DIV/0!"}},{"$error":"#DIV/0!"},{"$error":"#DIV/0!"},{"$error":"#DIV/0!"},{"$error":"#DIV/0!"},{"$error":"#DIV/0!"},{"$error":"#DIV/0!"},{"$error":"#DIV/0!"},{"$error":"#DIV/0!"},{"$error":"#DIV/0!"},{"$error":"#DIV/0!"},{"$error":"#DIV/0!"},{"$error":"#DIV/0!"},{"$error":"#DIV/0!"},{"$error":"#DIV/0!"},{"$error":"#DIV/0!"},{"$error":"#DIV/0!"},{"$error":"#DIV/0!"},{"$error":"#DIV/0!"},{"$error":"#DIV/0!"},1]
[null,null,null,null,null,null,null,null,null,null,null,null,null,null,null,null,null,null,null,null,null,null,null,null,1]
[null,null,null,null,null,null,null,null,null,null,null,null,null,null,null,null,null,null,null,null,null,null,null,null,1]
[null,{"$f":"title155","v":"Financial parameters"},null,null,null,null,null,null,null,null,null,null,null,null,null,null,null,null,null,null,null,null,null,null,1]
[null,{"$f":"title446","v":"Operating Year"},null,{"$f":"title464","v":"Appraisal"},1,2,3,4,5,6,7,8,9,10,11,12,13,14,15,16,17,18,19,20,1]
[null,{"$f":"title161&\"(%)\"","v":"Discount rate(%)"},null,{"$f":"'Data entry needs'!$L$118","v":0},null,null,null,null,null,null,null,null,null,null,null,null,null,null,null,null,null,null,null,null,1]
[null,{"$f":"title475","v":"Loan ratio (%)"},null,{"$f":"'Data entry needs'!$F$118","v":0},null,null,null,null,null,null,null,null,null,null,null,null,null,null,null,null,null,null,null,null,1]
[null,null,null,null,null,null,null,null,null,null,null,null,null,null,null,null,null,null,null,null,null,null,null,null,1]
[null,null,null,null,null,null,null,null,null,null,null,null,null,null,null,null,null,null,null,null,null,null,null,null,1]
[null,{"$f":"title446","v":"Operating Year"},null,{"$f":"title464","v":"Appraisal"},1,2,3,4,5,6,7,8,9,10,11,12,13,14,15,16,17,18,19,20,1]
[null,{"$f":"title476","v":"Loan amount (USD)"},null,{"$f":"D61*(D38)","v":{"$error":"#DIV/0!"}},null,null,null,null,null,null,null,null,null,null,null,null,null,null,null,null,null,null,null,null,1]
[null,{"$f":"title162&\"(%)\"","v":"Loan interest rate(%)"},null,{"$f":"'Data entry needs'!$L$119","v":0},null,null,null,null,null,null,null,null,null,null,null,null,null,null,null,null,null,null,null,null,1]
[null,{"$f":"title165","v":"Loan term (years)"},null,{"$f":"D26","v":0},null,null,null,null,null,null,null,null,null,null,null,null,null,null,null,null,null,null,null,null,1]
[null,{"$f":"title315&\" (\"&title318&\")\"","v":"Loan payment (USD/month)"},null,{"$f":"(PMT($D$66/12,($D$67*12),$D$65))","v":{"$error":"#DIV/0!"}}]
[null,{"$f":"title315&\" (\"&title319&\")\"","v":"Loan payment (USD/year)"},null,{"$f":"D68*12","v":{"$error":"#DIV/0!"}},null,null,null,null,null,null,null,null,null,null,null,null,null,null,null,null,null,null,null,null,1]
[null,{"$f":"title315&\" (\"&title319&\")\"","v":"Loan payment (USD/year)"},null,null,{"$f":"IF(E64<=$D$67,$D$68*12,0)","v":0},{"$f":"IF(F64<=$D$67,$D$68*12,0)","v":0},0,0,0,0,0,0,0,0,0,0,0,0,0,0,0,0,0,0,1]
[null,{"$f":"title477","v":"Total loan payment (USD)"},null,{"$f":"SUM(E70:X70)","v":0},null,null,null,null,null,null,null,null,null,null,null,null,null,null,null,null,null,null,null,null,1]
[null,{"$f":"title478","v":"Loan interest payment (USD)"},null,{"$f":"D71+D65","v":{"$error":"#DIV/0!"}},{"$f":"title479","v":"loan interest payment for project lifetime"},null,null,null,null,null,null,null,null,null,null,null,null,null,null,null,null,null,null,null,1]
[null,null,null,null,null,null,null,null,null,null,null,null,null,null,null,null,null,null,null,null,null,null,null,null,1]
[null,{"$f":"title285","v":"Depreciation"},null,null,null,null,null,null,null,null,null,null,null,null,null,null,null,null,null,null,null,null,null,null,1]
[null,{"$f":"title446","v":"Operating Year"},null,{"$f":"title464","v":"Appraisal"},1,2,3,4,5,6,7,8,9,10,11,12,13,14,15,16,17,18,19,20,1]
[null,{"$f":"title480","v":"Depreciation method"},null,{"$f":"title482","v":"Straight-line"},null,null,null,null,null,null,null,null,null,null,null,null,null,null,null,null,null,null,null,null,1]
[null,{"$f":"title481","v":"Total depreciation (USD)"},null,null,{"$f":"$F$38","v":{"$error":"#DIV/0!"}},{"$f":"$F$38","v":{"$error":"#DIV/0!"}},{"$error":"#DIV/0!"},{"$error":"#DIV/0!"},{"$error":"#DIV/0!"},{"$error":"#DIV/0!"},{"$error":"#DIV/0!"},{"$error":"#DIV/0!"},{"$error":"#DIV/0!"},{"$error":"#DIV/0!"},{"$error":"#DIV/0!"},{"$error":"#DIV/0!"},{"$error":"#DIV/0!"},{"$error":"#DIV/0!"},{"$error":"#DIV/0!"},{"$error":"#DIV/0!"},{"$error":"#DIV/0!"},{"$error":"#DIV/0!"},{"$error":"#DIV/0!"},{"$error":"#DIV/0!"},1]
[null,null,null,null,null,null,null,null,null,null,null,null,null,null,null,null,null,null,null,null,null,null,null,null,1]
[null,{"$f":"title483","v":"Base case Project Summary"},null,null,null,null,null,null,null,null,null,null,null,null,null,null,null,null,null,null,null,null,null,null,1]
[null,{"$f":"title484","v":"Summary of this project"},null,null,null,null,null,null,null,null,null,null,null,null,null,null,null,null,null,null,null,null,null,null,1]
[null,{"$f":"title446","v":"Operating Year"},null,{"$f":"title464","v":"Appraisal"},1,2,3,4,5,6,7,8,9,10,11,12,13,14,15,16,17,18,19,20,1]
[null,{"$f":"title485","v":"Total revenue (USD)"},null,null,{"$f":"E24","v":{"$error":"#DIV/0!"}},{"$f":"F24","v":{"$error":"#DIV/0!"}},{"$error":"#DIV/0!"},{"$error":"#DIV/0!"},{"$error":"#DIV/0!"},{"$error":"#DIV/0!"},{"$error":"#DIV/0!"},{"$error":"#DIV/0!"},{"$error":"#DIV/0!"},{"$error":"#DIV/0!"},{"$error":"#DIV/0!"},{"$error":"#DIV/0!"},{"$error":"#DIV/0!"},{"$error":"#DIV/0!"},{"$error":"#DIV/0!"},{"$error":"#DIV/0!"},{"$error":"#DIV/0!"},{"$error":"#DIV/0!"},{"$error":"#DIV/0!"},{"$error":"#DIV/0!"},1]
[null,{"$f":"title463","v":"Total capital cost (USD)"},null,{"$f":"-D38*(1-$D$61)","v":{"$error":"#DIV/0!"}},null,null,null,null,null,null,null,null,null,null,null,null,null,null,null,null,null,null,null,null,1]
[null,{"$f":"title486","v":"Total operating and maintenance cost (USD)"},null,null,{"$f":"-E55+E51","v":{"$error":"#DIV/0!"}},{"$f":"-F55+F51","v":{"$error":"#DIV/0!"}},{"$f":"-G55+G51","v":{"$error":"#DIV/0!"}},{"$error":"#DIV/0!"},{"$error":"#DIV/0!"},{"$error":"#DIV/0!"},{"$error":"#DIV/0!"},{"$error":"#DIV/0!"},{"$error":"#DIV/0!"},{"$error":"#DIV/0!"},{"$error":"#DIV/0!"},{"$error":"#DIV/0!"},{"$error":"#DIV/0!"},{"$error":"#DIV/0!"},{"$error":"#DIV/0!"},{"$error":"#DIV/0!"},{"$error":"#DIV/0!"},{"$error":"#DIV/0!"},{"$error":"#DIV/0!"},{"$error":"#DIV/0!"},1]
[null,{"$f":"title487","v":"Loan payment (USD)"},null,null,{"$f":"+E70","v":0},{"$f":"+F70","v":0},{"$f":"+G70","v":0},0,0,0,0,0,0,0,0,0,0,0,0,0,0,0,0,0,1]
[null,{"$f":"title488","v":"Cash flow with loan (USD)"},null,{"$f":"SUM(D82:D85)","v":{"$error":"#DIV/0!"}},{"$f":"SUM(E82:E85)","v":{"$error":"#DIV/0!"}},{"$f":"SUM(F82:F85)","v":{"$error":"#DIV/0!"}},{"$f":"SUM(G82:G85)","v":{"$error":"#DIV/0!"}},{"$error":"#DIV/0!"},{"$error":"#DIV/0!"},{"$error":"#DIV/0!"},{"$error":"#DIV/0!"},{"$error":"#DIV/0!"},{"$error":"#DIV/0!"},{"$error":"#DIV/0!"},{"$error":"#DIV/0!"},{"$error":"#DIV/0!"},{"$error":"#DIV/0!"},{"$error":"#DIV/0!"},{"$error":"#DIV/0!"},{"$error":"#DIV/0!"},{"$error":"#DIV/0!"},{"$error":"#DIV/0!"},{"$error":"#DIV/0!"},{"$error":"#DIV/0!"},1]
[null,{"$f":"title489","v":"Cash flow without loan (USD)"},null,{"$f":"-D38","v":{"$error":"#DIV/0!"}},{"$f":"+E82+E84","v":{"$error":"#DIV/0!"}},{"$f":"+F82+F84","v":{"$error":"#DIV/0!"}},{"$f":"+G82+G84","v":{"$error":"#DIV/0!"}},{"$error":"#DIV/0!"},{"$error":"#DIV/0!"},{"$error":"#DIV/0!"},{"$error":"#DIV/0!"},{"$error":"#DIV/0!"},{"$error":"#DIV/0!"},{"$error":"#DIV/0!"},{"$error":"#DIV/0!"},{"$error":"#DIV/0!"},{"$error":"#DIV/0!"},{"$error":"#DIV/0!"},{"$error":"#DIV/0!"},{"$error":"#DIV/0!"},{"$error":"#DIV/0!"},{"$error":"#DIV/0!"},{"$error":"#DIV/0!"},{"$error":"#DIV/0!"},1]
[null,{"$f":"title446","v":"Operating Year"},null,{"$f":"title464","v":"Appraisal"},1,2,3,4,5,6,7,8,9,10,11,12,13,14,15,16,17,18,19,20,1]
[null,{"$f":"title490","v":"Cumulative value of Net Profit"},null,{"$f":"D86","v":{"$error":"#DIV/0!"}},{"$f":"D89+(E86)","v":{"$error":"#DIV/0!"}},{"$f":"E89+(F86)","v":{"$error":"#DIV/0!"}},{"$error":"#DIV/0!"},{"$error":"#DIV/0!"},{"$error":"#DIV/0!"},{"$error":"#DIV/0!"},{"$error":"#DIV/0!"},{"$error":"#DIV/0!"},{"$error":"#DIV/0!"},{"$error":"#DIV/0!"},{"$error":"#DIV/0!"},{"$error":"#DIV/0!"},{"$error":"#DIV/0!"},{"$error":"#DIV/0!"},{"$error":"#DIV/0!"},{"$error":"#DIV/0!"},{"$error":"#DIV/0!"},{"$error":"#DIV/0!"},{"$error":"#DIV/0!"},{"$error":"#DIV/0!"},1]
[null,null,null,null,null,null,null,null,null,null,null,null,null,null,null,null,null,null,null,null,null,null,null,null,1]
[null,{"$f":"title491","v":"Financial Analysis Result"},null,null,null,null,null,null,null,null,null,null,null,null,null,null,null,null,null,null,null,null,null,null,1]
[null,null,null,null,null,null,null,null,null,null,null,null,null,null,null,null,null,null,null,null,null,null,null,null,1]
[null,{"$f":"title493","v":"Net Present Value (NPV) (USD)"},null,{"$f":"NPV(D60,E86:AA86)+D86","v":{"$error":"#DIV/0!"}},null,null,null,null,null,null,null,null,null,null,null,null,null,null,null,null,null,null,null,null,1]
[null,{"$f":"title494","v":"Internal Rate of Return (IRR) (%) - without loan"},null,{"$f":"IF(D93<0,title492,IRR(D87:AA87,0.001))","v":{"$error":"#DIV/0!"}},null,null,null,null,null,null,null,null,null,null,null,null,null,null,null,null,null,null,null,null,1]
[null,{"$f":"title495","v":"Internal Rate of Return (IRR) (%) - with loan"},null,{"$f":"IF(D94<0,title492,IRR(D86:AA86,0.001))","v":{"$error":"#DIV/0!"}},null,null,null,null,null,null,null,null,null,null,null,null,null,null,null,null,null,null,null,null,1]
[null,null,null,null,null,null,null,null,null,null,null,null,null,null,null,null,null,null,null,null,null,null,null,null,1]
[null,null,null,null,null,null,null,null,null,null,null,null,null,null,null,null,null,null,null,null,null,null,null,null,1]

{"sheet":"FA_SIZE2_PS3","index":40,"n_rows":97,"n_cols":25,"rows_kept":97,"cut":false,"hidden":true,"merged":[[1,1,1,23]]}
[]
[null,{"$f":"title496&\" 2\"","v":"FINANCIAL EVALUATION OF BIOGAS PRODUCTION SIZE 2"}]
[]
[null,{"$f":"title445","v":"Revenues of biomass production and use system"}]
[null,{"$f":"title446","v":"Operating Year"},null,0,1,2,3,4,5,6,7,8,9,10,11,12,13,14,15,16,17,18,19,20,1]
[null,null,null,null,null,null,null,null,null,null,null,null,null,null,null,null,null,null,null,null,null,null,null,null,1]
["Ae130",{"$f":"title447","v":"Biogas production capacity (m3 Biogas per year)"},null,{"$f":"INDIRECT(\"Planner_PS3!$\"&$A$7)*'Data entry needs'!$L$100","v":{"$error":"#DIV/0!"}},{"$f":"D7","v":{"$error":"#DIV/0!"}},{"$f":"E7","v":{"$error":"#DIV/0!"}},{"$f":"F7","v":{"$error":"#DIV/0!"}},{"$error":"#DIV/0!"},{"$error":"#DIV/0!"},{"$error":"#DIV/0!"},{"$error":"#DIV/0!"},{"$error":"#DIV/0!"},{"$error":"#DIV/0!"},{"$error":"#DIV/0!"},{"$error":"#DIV/0!"},{"$error":"#DIV/0!"},{"$error":"#DIV/0!"},{"$error":"#DIV/0!"},{"$error":"#DIV/0!"},{"$error":"#DIV/0!"},{"$error":"#DIV/0!"},{"$error":"#DIV/0!"},{"$error":"#DIV/0!"},{"$error":"#DIV/0!"},1]
[]
["I107",{"$f":"title448","v":"Heat Available for Selling (MJ/year)"},null,{"$f":"IF(INDIRECT(\"COST_PS3!\"&$A$9)<0,0,INDIRECT(\"COST_PS3!\"&$A$9))","v":{"$error":"#DIV/0!"}},{"$f":"D9","v":{"$error":"#DIV/0!"}},{"$f":"E9","v":{"$error":"#DIV/0!"}},{"$error":"#DIV/0!"},{"$error":"#DIV/0!"},{"$error":"#DIV/0!"},{"$error":"#DIV/0!"},{"$error":"#DIV/0!"},{"$error":"#DIV/0!"},{"$error":"#DIV/0!"},{"$error":"#DIV/0!"},{"$error":"#DIV/0!"},{"$error":"#DIV/0!"},{"$error":"#DIV/0!"},{"$error":"#DIV/0!"},{"$error":"#DIV/0!"},{"$error":"#DIV/0!"},{"$error":"#DIV/0!"},{"$f":"U9","v":{"$error":"#DIV/0!"}},{"$error":"#DIV/0!"},{"$error":"#DIV/0!"},1]
["I106",{"$f":"title449","v":"Electricity Available for Selling (kWh/year)"},null,{"$f":"IF(INDIRECT(\"COST_PS3!\"&$A$10)<0,0,INDIRECT(\"COST_PS3!\"&$A$10))","v":{"$error":"#DIV/0!"}},{"$f":"D10","v":{"$error":"#DIV/0!"}},{"$error":"#DIV/0!"},{"$error":"#DIV/0!"},{"$error":"#DIV/0!"},{"$error":"#DIV/0!"},{"$error":"#DIV/0!"},{"$error":"#DIV/0!"},{"$error":"#DIV/0!"},{"$error":"#DIV/0!"},{"$error":"#DIV/0!"},{"$error":"#DIV/0!"},{"$error":"#DIV/0!"},{"$error":"#DIV/0!"},{"$error":"#DIV/0!"},{"$error":"#DIV/0!"},{"$error":"#DIV/0!"},{"$error":"#DIV/0!"},{"$error":"#DIV/0!"},{"$error":"#DIV/0!"},{"$error":"#DIV/0!"},1]
["AC166",{"$f":"title450","v":"Biomethane Production (m3 Methane/year)"},null,{"$f":"IF(OR('Biogas Use Selection'!$P$67=4,'Biogas Use Selection'!$P$67=5),INDIRECT(\"Planner_PS3!$\"&$A$11),0)","v":0},{"$f":"D11","v":0},0,0,0,0,0,0,0,0,0,0,0,0,0,0,0,0,0,0,0,1]
[null,{"$f":"title451","v":"Biogas Available for Selling (m3/year)"},null,{"$f":"IF('Biogas Use Selection'!$P$67=2,$D$7,0)","v":0},{"$f":"D12","v":0},0,0,0,0,0,0,0,0,0,0,0,0,0,0,0,0,0,0,0]
["AC178",{"$f":"title452","v":"Digestate Production (t/year)"},null,{"$f":"INDIRECT(\"Planner_PS3!$\"&$A$13)","v":{"$error":"#DIV/0!"}},{"$f":"D13","v":{"$error":"#DIV/0!"}},{"$error":"#DIV/0!"},{"$error":"#DIV/0!"},{"$error":"#DIV/0!"},{"$error":"#DIV/0!"},{"$error":"#DIV/0!"},{"$error":"#DIV/0!"},{"$error":"#DIV/0!"},{"$error":"#DIV/0!"},{"$error":"#DIV/0!"},{"$error":"#DIV/0!"},{"$error":"#DIV/0!"},{"$error":"#DIV/0!"},{"$error":"#DIV/0!"},{"$error":"#DIV/0!"},{"$error":"#DIV/0!"},{"$error":"#DIV/0!"},{"$error":"#DIV/0!"},{"$error":"#DIV/0!"},{"$error":"#DIV/0!"}]
[]
[null,{"$f":"title265","v":"Operating hours per year"},null,{"$f":"COST_PS3!$G$35","v":0},{"$f":"D15","v":0},{"$f":"E15","v":0},0,0,0,0,0,0,0,0,0,0,0,0,0,0,0,0,0,0,1]
[null,null,null,null,null,null,null,null,null,null,null,null,null,null,null,null,null,null,null,null,null,null,null,null,1]
[1,{"$f":"title137&\" (USD/kWh)\"","v":"Electricity Selling Price (USD/kWh)"},null,{"$f":"IF($A17=1,'Data entry needs'!$F$103,0)","v":0},null,null,null,null,null,null,null,null,null,null,null,null,null,null,null,null,null,null,null,null,1]
[1,{"$f":"title138&\" (USD/GJ)\"","v":"Heat Selling Price (USD/GJ)"},null,{"$f":"IF($A18=1,'Data entry needs'!$F$104,0)","v":0}]
[1,{"$f":"title453","v":"Biogas Selling Price (USD/m3)"},null,{"$f":"IF($A19=1,'Data entry needs'!$F$105,0)","v":0}]
[1,{"$f":"title454","v":"Biomethane Selling Price (USD/m3)"},null,{"$f":"IF($A20=1,'Data entry needs'!$L$103,0)","v":0}]
[1,{"$f":"title455","v":"Digestate Sellig Price (USD/t)"},null,{"$f":"'Data entry needs'!$L$104","v":0}]
[]
[null,null,null,null,null,null,null,null,null,null,null,null,null,null,null,null,null,null,null,null,null,null,null,null,1]
[null,{"$f":"title456","v":"Annual Income (USD per year)"},null,{"$f":"$D$18*D9+D10*$D$17+D12*$D$19+D11*$D$20+$D$21*D13","v":{"$error":"#DIV/0!"}},{"$f":"$D$18*E9+E10*$D$17+E12*$D$19+E11*$D$20+$D$21*E13","v":{"$error":"#DIV/0!"}},{"$f":"$D$18*F9+F10*$D$17+F12*$D$19+F11*$D$20+$D$21*F13","v":{"$error":"#DIV/0!"}},{"$error":"#DIV/0!"},{"$error":"#DIV/0!"},{"$error":"#DIV/0!"},{"$error":"#DIV/0!"},{"$error":"#DIV/0!"},{"$error":"#DIV/0!"},{"$error":"#DIV/0!"},{"$error":"#DIV/0!"},{"$error":"#DIV/0!"},{"$error":"#DIV/0!"},{"$error":"#DIV/0!"},{"$error":"#DIV/0!"},{"$error":"#DIV/0!"},{"$error":"#DIV/0!"},{"$error":"#DIV/0!"},{"$error":"#DIV/0!"},{"$error":"#DIV/0!"},{"$error":"#DIV/0!"},1]
[null,null,null,null,null,null,null,null,null,null,null,null,null,null,null,null,null,null,null,null,null,null,null,null,1]
[null,{"$f":"title457","v":"Lifespan of civil work (years)"},null,{"$f":"'Data entry needs'!$L$120","v":0},null,null,null,null,null,null,null,null,null,null,null,null,null,null,null,null,null,null,null,null,1]
[null,{"$f":"title458","v":"Lifespan of charcoal system (years)"},null,{"$f":"'Data entry needs'!$L$120","v":0},null,null,null,null,null,null,null,null,null,null,null,null,null,null,null,null,null,null,null,null,1]
[null,{"$f":"title459","v":"Project lifetime (years)"},null,{"$f":"'Data entry needs'!$L$120","v":0},null,null,null,null,null,null,null,null,null,null,null,null,null,null,null,null,null,null,null,null,1]
[null,null,null,null,null,null,null,null,null,null,null,null,null,null,null,null,null,null,null,null,null,null,null,null,1]
[null,null,null,null,null,null,null,null,null,null,null,null,null,null,null,null,null,null,null,null,null,null,null,null,1]
[null,{"$f":"title460","v":"Capital and operating cost of biogas system "},null,null,null,null,null,null,null,null,null,null,null,null,null,null,null,null,null,null,null,null,null,null,1]
[null,null,null,null,null,null,null,null,null,null,null,null,null,null,null,null,null,null,null,null,null,null,null,null,1]
[null,{"$f":"title446","v":"Operating Year"},null,{"$f":"title464","v":"Appraisal"},{"$f":"title465","v":"Project period (years)"},{"$f":"title466","v":"per year"},null,null,null,null,null,null,null,null,null,null,null,null,null,null,null,null,null,null,1]
[null,{"$f":"title461","v":"Capital cost (USD)"},null,"Total",null,null,null,null,null,null,null,null,null,null,null,null,null,null,null,null,null,null,null,null,1]
["h77",{"$f":"title280","v":"Equipments"},null,{"$f":"INDIRECT(\"COST_PS3!\"&$A35)","v":{"$error":"#DIV/0!"}},{"$f":"+D26","v":0},{"$f":"D35/E35","v":{"$error":"#DIV/0!"}},null,null,null,null,null,null,null,null,null,null,null,null,null,null,null,null,null,null,1]
["h78",{"$f":"title281","v":"Building"},null,{"$f":"INDIRECT(\"COST_PS3!\"&$A36)","v":{"$error":"#DIV/0!"}},{"$f":"+D27","v":0},{"$f":"D36/E36","v":{"$error":"#DIV/0!"}},null,null,null,null,null,null,null,null,null,null,null,null,null,null,null,null,null,null,1]
["h79",{"$f":"title462","v":"Installation"},null,{"$f":"INDIRECT(\"COST_PS3!\"&$A37)","v":{"$error":"#DIV/0!"}},{"$f":"+D28","v":0},{"$f":"D37/E37","v":{"$error":"#DIV/0!"}},null,null,null,null,null,null,null,null,null,null,null,null,null,null,null,null,null,null,1]
[null,{"$f":"title463","v":"Total capital cost (USD)"},null,{"$f":"SUM(D35:D37)","v":{"$error":"#DIV/0!"}},null,{"$f":"SUM(F35:F37)","v":{"$error":"#DIV/0!"}},null,null,null,null,null,null,null,null,null,null,null,null,null,null,null,null,null,null,1]
[null,null,null,null,null,null,null,null,null,null,null,null,null,null,null,null,null,null,null,null,null,null,null,null,1]
[null,null,null,null,null,null,null,null,null,null,null,null,null,null,null,null,null,null,null,null,null,null,null,null,1]
[null,{"$f":"title446","v":"Operating Year"},null,{"$f":"title464","v":"Appraisal"},1,2,3,4,5,6,7,8,9,10,11,12,13,14,15,16,17,18,19,20,1]
[null,{"$f":"title467","v":"Annual operating and maintenance cost "},null,null,null,null,null,null,null,null,null,null,null,null,null,null,null,null,null,null,null,null,null,null,1]
["h44",{"$f":"title468","v":"Sub-total inputs cost (USD)"},null,{"$f":"INDIRECT(\"COST_PS3!\"&$A$43)","v":{"$error":"#DIV/0!"}},{"$error":"#DIV/0!"},{"$error":"#DIV/0!"},{"$error":"#DIV/0!"},{"$error":"#DIV/0!"},{"$error":"#DIV/0!"},{"$error":"#DIV/0!"},{"$error":"#DIV/0!"},{"$error":"#DIV/0!"},{"$error":"#DIV/0!"},{"$error":"#DIV/0!"},{"$error":"#DIV/0!"},{"$error":"#DIV/0!"},{"$error":"#DIV/0!"},{"$error":"#DIV/0!"},{"$error":"#DIV/0!"},{"$error":"#DIV/0!"},{"$error":"#DIV/0!"},{"$error":"#DIV/0!"},{"$error":"#DIV/0!"},{"$error":"#DIV/0!"},1]
[]
[null,{"$f":"title469","v":"Sub-total operating cost (USD)"},null,{"$f":"D46+D47+D48","v":{"$error":"#DIV/0!"}},{"$f":"E46+E47+E48","v":{"$error":"#DIV/0!"}},{"$f":"F46+F47+F48","v":{"$error":"#DIV/0!"}},{"$error":"#DIV/0!"},{"$error":"#DIV/0!"},{"$error":"#DIV/0!"},{"$error":"#DIV/0!"},{"$error":"#DIV/0!"},{"$error":"#DIV/0!"},{"$error":"#DIV/0!"},{"$error":"#DIV/0!"},{"$error":"#DIV/0!"},{"$error":"#DIV/0!"},{"$error":"#DIV/0!"},{"$error":"#DIV/0!"},{"$error":"#DIV/0!"},{"$error":"#DIV/0!"},{"$error":"#DIV/0!"},{"$error":"#DIV/0!"},{"$error":"#DIV/0!"},{"$error":"#DIV/0!"},1]
["i51",{"$f":"title470","v":"Labour cost & Misc. (USD)"},null,{"$f":"INDIRECT(\"COST_PS3!\"&$A46)","v":0},{"$f":"+D46","v":0},{"$f":"+E46","v":0},0,0,0,0,0,0,0,0,0,0,0,0,0,0,0,0,0,0,1]
["i87",{"$f":"title151","v":"Plant overhead"},null,{"$f":"INDIRECT(\"COST_PS3!\"&$A47)","v":{"$error":"#DIV/0!"}},{"$f":"D47","v":{"$error":"#DIV/0!"}},{"$error":"#DIV/0!"},{"$error":"#DIV/0!"},{"$error":"#DIV/0!"},{"$error":"#DIV/0!"},{"$error":"#DIV/0!"},{"$error":"#DIV/0!"},{"$error":"#DIV/0!"},{"$error":"#DIV/0!"},{"$error":"#DIV/0!"},{"$error":"#DIV/0!"},{"$error":"#DIV/0!"},{"$error":"#DIV/0!"},{"$error":"#DIV/0!"},{"$error":"#DIV/0!"},{"$error":"#DIV/0!"},{"$f":"T47","v":{"$error":"#DIV/0!"}},{"$error":"#DIV/0!"},{"$error":"#DIV/0!"},{"$error":"#DIV/0!"},1]
["i88",{"$f":"title288","v":"General and administrative cost"},null,{"$f":"INDIRECT(\"COST_PS3!\"&$A48)","v":{"$error":"#DIV/0!"}},{"$error":"#DIV/0!"},{"$error":"#DIV/0!"},{"$error":"#DIV/0!"},{"$error":"#DIV/0!"},{"$error":"#DIV/0!"},{"$error":"#DIV/0!"},{"$error":"#DIV/0!"},{"$error":"#DIV/0!"},{"$error":"#DIV/0!"},{"$error":"#DIV/0!"},{"$error":"#DIV/0!"},{"$error":"#DIV/0!"},{"$error":"#DIV/0!"},{"$error":"#DIV/0!"},{"$error":"#DIV/0!"},{"$error":"#DIV/0!"},{"$error":"#DIV/0!"},{"$error":"#DIV/0!"},{"$error":"#DIV/0!"},{"$error":"#DIV/0!"},1]
["i82",{"$f":"title471","v":"Sub-total maintenance cost (USD)"},null,{"$f":"INDIRECT(\"COST_PS3!\"&$A49)","v":{"$error":"#DIV/0!"}},{"$error":"#DIV/0!"},{"$error":"#DIV/0!"},{"$error":"#DIV/0!"},{"$error":"#DIV/0!"},{"$error":"#DIV/0!"},{"$error":"#DIV/0!"},{"$error":"#DIV/0!"},{"$error":"#DIV/0!"},{"$error":"#DIV/0!"},{"$error":"#DIV/0!"},{"$error":"#DIV/0!"},{"$error":"#DIV/0!"},{"$error":"#DIV/0!"},{"$error":"#DIV/0!"},{"$error":"#DIV/0!"},{"$error":"#DIV/0!"},{"$error":"#DIV/0!"},{"$error":"#DIV/0!"},{"$error":"#DIV/0!"},{"$error":"#DIV/0!"},1]
[null,null,null,null,null,null,null,null,null,null,null,null,null,null,null,null,null,null,null,null,null,null,null,null,1]
["i82",{"$f":"title472","v":"Sub-total of annual fixed cost (USD)"},null,{"$f":"F38","v":{"$error":"#DIV/0!"}},{"$f":"D51","v":{"$error":"#DIV/0!"}},{"$f":"E51","v":{"$error":"#DIV/0!"}},{"$error":"#DIV/0!"},{"$error":"#DIV/0!"},{"$error":"#DIV/0!"},{"$error":"#DIV/0!"},{"$error":"#DIV/0!"},{"$error":"#DIV/0!"},{"$error":"#DIV/0!"},{"$error":"#DIV/0!"},{"$error":"#DIV/0!"},{"$error":"#DIV/0!"},{"$error":"#DIV/0!"},{"$error":"#DIV/0!"},{"$error":"#DIV/0!"},{"$error":"#DIV/0!"},{"$error":"#DIV/0!"},{"$error":"#DIV/0!"},{"$error":"#DIV/0!"},{"$error":"#DIV/0!"},1]
[null,null,null,null,null,null,null,null,null,null,null,null,null,null,null,null,null,null,null,null,null,null,null,null,1]
["H73",{"$f":"title473","v":"Sub-total of storage cost (USD)"},null,{"$f":"INDIRECT(\"COST_PS3!\"&$A53)","v":0},0,0,0,0,0,0,0,0,0,0,0,0,0,0,0,0,0,0,0,0,1]
[null,null,null,null,null,null,null,null,null,null,null,null,null,null,null,null,null,null,null,null,null,null,null,null,1]
[null,{"$f":"title474","v":"Total operation and maintenance cost (USD)"},null,{"$f":"D43+D45+D49+D51+D53","v":{"$error":"#DIV/0!"}},{"$f":"E43+E45+E49+E51+E53","v":{"$error":"#DIV/0!"}},{"$error":"#DIV/0!"},{"$error":"#DIV/0!"},{"$error":"#DIV/0!"},{"$error":"#DIV/0!"},{"$error":"#DIV/0!"},{"$error":"#DIV/0!"},{"$error":"#DIV/0!"},{"$error":"#DIV/0!"},{"$error":"#DIV/0!"},{"$error":"#DIV/0!"},{"$error":"#DIV/0!"},{"$error":"#DIV/0!"},{"$error":"#DIV/0!"},{"$error":"#DIV/0!"},{"$error":"#DIV/0!"},{"$error":"#DIV/0!"},{"$error":"#DIV/0!"},{"$error":"#DIV/0!"},{"$error":"#DIV/0!"},1]
[null,null,null,null,null,null,null,null,null,null,null,null,null,null,null,null,null,null,null,null,null,null,null,null,1]
[null,null,null,null,null,null,null,null,null,null,null,null,null,null,null,null,null,null,null,null,null,null,null,null,1]
[null,{"$f":"title155","v":"Financial parameters"},null,null,null,null,null,null,null,null,null,null,null,null,null,null,null,null,null,null,null,null,null,null,1]
[null,{"$f":"title446","v":"Operating Year"},null,{"$f":"title464","v":"Appraisal"},1,2,3,4,5,6,7,8,9,10,11,12,13,14,15,16,17,18,19,20,1]
[null,{"$f":"title161&\"(%)\"","v":"Discount rate(%)"},null,{"$f":"'Data entry needs'!$L$118","v":0},null,null,null,null,null,null,null,null,null,null,null,null,null,null,null,null,null,null,null,null,1]
[null,{"$f":"title475","v":"Loan ratio (%)"},null,{"$f":"'Data entry needs'!$F$118","v":0},null,null,null,null,null,null,null,null,null,null,null,null,null,null,null,null,null,null,null,null,1]
[null,null,null,null,null,null,null,null,null,null,null,null,null,null,null,null,null,null,null,null,null,null,null,null,1]
[null,null,null,null,null,null,null,null,null,null,null,null,null,null,null,null,null,null,null,null,null,null,null,null,1]
[null,{"$f":"title446","v":"Operating Year"},null,{"$f":"title464","v":"Appraisal"},1,2,3,4,5,6,7,8,9,10,11,12,13,14,15,16,17,18,19,20,1]
[null,{"$f":"title476","v":"Loan amount (USD)"},null,{"$f":"D61*(D38)","v":{"$error":"#DIV/0!"}},null,null,null,null,null,null,null,null,null,null,null,null,null,null,null,null,null,null,null,null,1]
[null,{"$f":"title162&\"(%)\"","v":"Loan interest rate(%)"},null,{"$f":"'Data entry needs'!$L$119","v":0},null,null,null,null,null,null,null,null,null,null,null,null,null,null,null,null,null,null,null,null,1]
[null,{"$f":"title165","v":"Loan term (years)"},null,{"$f":"D26","v":0},null,null,null,null,null,null,null,null,null,null,null,null,null,null,null,null,null,null,null,null,1]
[null,{"$f":"title315&\" (\"&title318&\")\"","v":"Loan payment (USD/month)"},null,{"$f":"(PMT($D$66/12,($D$67*12),$D$65))","v":{"$error":"#DIV/0!"}}]
[null,{"$f":"title315&\" (\"&title319&\")\"","v":"Loan payment (USD/year)"},null,{"$f":"D68*12","v":{"$error":"#DIV/0!"}},null,null,null,null,null,null,null,null,null,null,null,null,null,null,null,null,null,null,null,null,1]
[null,{"$f":"title315&\" (\"&title319&\")\"","v":"Loan payment (USD/year)"},null,null,{"$f":"IF(E64<=$D$67,$D$68*12,0)","v":0},{"$f":"IF(F64<=$D$67,$D$68*12,0)","v":0},0,0,0,0,0,0,0,0,0,0,0,0,0,0,0,0,0,0,1]
[null,{"$f":"title477","v":"Total loan payment (USD)"},null,{"$f":"SUM(E70:X70)","v":0},null,null,null,null,null,null,null,null,null,null,null,null,null,null,null,null,null,null,null,null,1]
[null,{"$f":"title478","v":"Loan interest payment (USD)"},null,{"$f":"D71+D65","v":{"$error":"#DIV/0!"}},{"$f":"title479","v":"loan interest payment for project lifetime"},null,null,null,null,null,null,null,null,null,null,null,null,null,null,null,null,null,null,null,1]
[null,null,null,null,null,null,null,null,null,null,null,null,null,null,null,null,null,null,null,null,null,null,null,null,1]
[null,{"$f":"title285","v":"Depreciation"},null,null,null,null,null,null,null,null,null,null,null,null,null,null,null,null,null,null,null,null,null,null,1]
[null,{"$f":"title446","v":"Operating Year"},null,{"$f":"title464","v":"Appraisal"},1,2,3,4,5,6,7,8,9,10,11,12,13,14,15,16,17,18,19,20,1]
[null,{"$f":"title480","v":"Depreciation method"},null,{"$f":"title482","v":"Straight-line"},null,null,null,null,null,null,null,null,null,null,null,null,null,null,null,null,null,null,null,null,1]
[null,{"$f":"title481","v":"Total depreciation (USD)"},null,null,{"$f":"$F$38","v":{"$error":"#DIV/0!"}},{"$f":"$F$38","v":{"$error":"#DIV/0!"}},{"$error":"#DIV/0!"},{"$error":"#DIV/0!"},{"$error":"#DIV/0!"},{"$error":"#DIV/0!"},{"$error":"#DIV/0!"},{"$error":"#DIV/0!"},{"$error":"#DIV/0!"},{"$error":"#DIV/0!"},{"$error":"#DIV/0!"},{"$error":"#DIV/0!"},{"$error":"#DIV/0!"},{"$error":"#DIV/0!"},{"$error":"#DIV/0!"},{"$error":"#DIV/0!"},{"$error":"#DIV/0!"},{"$error":"#DIV/0!"},{"$error":"#DIV/0!"},{"$error":"#DIV/0!"},1]
[null,null,null,null,null,null,null,null,null,null,null,null,null,null,null,null,null,null,null,null,null,null,null,null,1]
[null,{"$f":"title483","v":"Base case Project Summary"},null,null,null,null,null,null,null,null,null,null,null,null,null,null,null,null,null,null,null,null,null,null,1]
[null,{"$f":"title484","v":"Summary of this project"},null,null,null,null,null,null,null,null,null,null,null,null,null,null,null,null,null,null,null,null,null,null,1]
[null,{"$f":"title446","v":"Operating Year"},null,{"$f":"title464","v":"Appraisal"},1,2,3,4,5,6,7,8,9,10,11,12,13,14,15,16,17,18,19,20,1]
[null,{"$f":"title485","v":"Total revenue (USD)"},null,null,{"$f":"E24","v":{"$error":"#DIV/0!"}},{"$f":"F24","v":{"$error":"#DIV/0!"}},{"$error":"#DIV/0!"},{"$error":"#DIV/0!"},{"$error":"#DIV/0!"},{"$error":"#DIV/0!"},{"$error":"#DIV/0!"},{"$error":"#DIV/0!"},{"$error":"#DIV/0!"},{"$error":"#DIV/0!"},{"$error":"#DIV/0!"},{"$error":"#DIV/0!"},{"$error":"#DIV/0!"},{"$error":"#DIV/0!"},{"$error":"#DIV/0!"},{"$error":"#DIV/0!"},{"$error":"#DIV/0!"},{"$error":"#DIV/0!"},{"$error":"#DIV/0!"},{"$error":"#DIV/0!"},1]
[null,{"$f":"title463","v":"Total capital cost (USD)"},null,{"$f":"-D38*(1-$D$61)","v":{"$error":"#DIV/0!"}},null,null,null,null,null,null,null,null,null,null,null,null,null,null,null,null,null,null,null,null,1]
[null,{"$f":"title486","v":"Total operating and maintenance cost (USD)"},null,null,{"$f":"-E55+E51","v":{"$error":"#DIV/0!"}},{"$f":"-F55+F51","v":{"$error":"#DIV/0!"}},{"$f":"-G55+G51","v":{"$error":"#DIV/0!"}},{"$error":"#DIV/0!"},{"$error":"#DIV/0!"},{"$error":"#DIV/0!"},{"$error":"#DIV/0!"},{"$error":"#DIV/0!"},{"$error":"#DIV/0!"},{"$error":"#DIV/0!"},{"$error":"#DIV/0!"},{"$error":"#DIV/0!"},{"$error":"#DIV/0!"},{"$error":"#DIV/0!"},{"$error":"#DIV/0!"},{"$error":"#DIV/0!"},{"$error":"#DIV/0!"},{"$error":"#DIV/0!"},{"$error":"#DIV/0!"},{"$error":"#DIV/0!"},1]
[null,{"$f":"title487","v":"Loan payment (USD)"},null,null,{"$f":"+E70","v":0},{"$f":"+F70","v":0},{"$f":"+G70","v":0},0,0,0,0,0,0,0,0,0,0,0,0,0,0,0,0,0,1]
[null,{"$f":"title488","v":"Cash flow with loan (USD)"},null,{"$f":"SUM(D82:D85)","v":{"$error":"#DIV/0!"}},{"$f":"SUM(E82:E85)","v":{"$error":"#DIV/0!"}},{"$f":"SUM(F82:F85)","v":{"$error":"#DIV/0!"}},{"$f":"SUM(G82:G85)","v":{"$error":"#DIV/0!"}},{"$error":"#DIV/0!"},{"$error":"#DIV/0!"},{"$error":"#DIV/0!"},{"$error":"#DIV/0!"},{"$error":"#DIV/0!"},{"$error":"#DIV/0!"},{"$error":"#DIV/0!"},{"$error":"#DIV/0!"},{"$error":"#DIV/0!"},{"$error":"#DIV/0!"},{"$error":"#DIV/0!"},{"$error":"#DIV/0!"},{"$error":"#DIV/0!"},{"$error":"#DIV/0!"},{"$error":"#DIV/0!"},{"$error":"#DIV/0!"},{"$error":"#DIV/0!"},1]
[null,{"$f":"title489","v":"Cash flow without loan (USD)"},null,{"$f":"-D38","v":{"$error":"#DIV/0!"}},{"$f":"+E82+E84","v":{"$error":"#DIV/0!"}},{"$f":"+F82+F84","v":{"$error":"#DIV/0!"}},{"$f":"+G82+G84","v":{"$error":"#DIV/0!"}},{"$error":"#DIV/0!"},{"$error":"#DIV/0!"},{"$error":"#DIV/0!"},{"$error":"#DIV/0!"},{"$error":"#DIV/0!"},{"$error":"#DIV/0!"},{"$error":"#DIV/0!"},{"$error":"#DIV/0!"},{"$error":"#DIV/0!"},{"$error":"#DIV/0!"},{"$error":"#DIV/0!"},{"$error":"#DIV/0!"},{"$error":"#DIV/0!"},{"$error":"#DIV/0!"},{"$error":"#DIV/0!"},{"$error":"#DIV/0!"},{"$error":"#DIV/0!"},1]
[null,{"$f":"title446","v":"Operating Year"},null,{"$f":"title464","v":"Appraisal"},1,2,3,4,5,6,7,8,9,10,11,12,13,14,15,16,17,18,19,20,1]
[null,{"$f":"title490","v":"Cumulative value of Net Profit"},null,{"$f":"D86","v":{"$error":"#DIV/0!"}},{"$f":"D89+(E86)","v":{"$error":"#DIV/0!"}},{"$f":"E89+(F86)","v":{"$error":"#DIV/0!"}},{"$error":"#DIV/0!"},{"$error":"#DIV/0!"},{"$error":"#DIV/0!"},{"$error":"#DIV/0!"},{"$error":"#DIV/0!"},{"$error":"#DIV/0!"},{"$error":"#DIV/0!"},{"$error":"#DIV/0!"},{"$error":"#DIV/0!"},{"$error":"#DIV/0!"},{"$error":"#DIV/0!"},{"$error":"#DIV/0!"},{"$error":"#DIV/0!"},{"$error":"#DIV/0!"},{"$error":"#DIV/0!"},{"$error":"#DIV/0!"},{"$error":"#DIV/0!"},{"$error":"#DIV/0!"},1]
[null,null,null,null,null,null,null,null,null,null,null,null,null,null,null,null,null,null,null,null,null,null,null,null,1]
[null,{"$f":"title491","v":"Financial Analysis Result"},null,null,null,null,null,null,null,null,null,null,null,null,null,null,null,null,null,null,null,null,null,null,1]
[null,null,null,null,null,null,null,null,null,null,null,null,null,null,null,null,null,null,null,null,null,null,null,null,1]
[null,{"$f":"title493","v":"Net Present Value (NPV) (USD)"},null,{"$f":"NPV(D60,E86:AA86)+D86","v":{"$error":"#DIV/0!"}},null,null,null,null,null,null,null,null,null,null,null,null,null,null,null,null,null,null,null,null,1]
[null,{"$f":"title494","v":"Internal Rate of Return (IRR) (%) - without loan"},null,{"$f":"IF(D93<0,title492,IRR(D87:AA87,0.001))","v":{"$error":"#DIV/0!"}},null,null,null,null,null,null,null,null,null,null,null,null,null,null,null,null,null,null,null,null,1]
[null,{"$f":"title495","v":"Internal Rate of Return (IRR) (%) - with loan"},null,{"$f":"IF(D94<0,title492,IRR(D86:AA86,0.001))","v":{"$error":"#DIV/0!"}},null,null,null,null,null,null,null,null,null,null,null,null,null,null,null,null,null,null,null,null,1]
[null,null,null,null,null,null,null,null,null,null,null,null,null,null,null,null,null,null,null,null,null,null,null,null,1]
[null,null,null,null,null,null,null,null,null,null,null,null,null,null,null,null,null,null,null,null,null,null,null,null,1]

{"sheet":"FA_SIZE3_PS3","index":41,"n_rows":97,"n_cols":25,"rows_kept":97,"cut":false,"hidden":true,"merged":[[1,1,1,23]]}
[]
[null,{"$f":"title496&\" 3\"","v":"FINANCIAL EVALUATION OF BIOGAS PRODUCTION SIZE 3"}]
[]
[null,{"$f":"title445","v":"Revenues of biomass production and use system"}]
[null,{"$f":"title446","v":"Operating Year"},null,0,1,2,3,4,5,6,7,8,9,10,11,12,13,14,15,16,17,18,19,20,1]
[null,null,null,null,null,null,null,null,null,null,null,null,null,null,null,null,null,null,null,null,null,null,null,null,1]
["AF130",{"$f":"title447","v":"Biogas production capacity (m3 Biogas per year)"},null,{"$f":"INDIRECT(\"Planner_PS3!$\"&$A$7)*'Data entry needs'!$L$100","v":{"$error":"#DIV/0!"}},{"$f":"D7","v":{"$error":"#DIV/0!"}},{"$f":"E7","v":{"$error":"#DIV/0!"}},{"$f":"F7","v":{"$error":"#DIV/0!"}},{"$error":"#DIV/0!"},{"$error":"#DIV/0!"},{"$error":"#DIV/0!"},{"$error":"#DIV/0!"},{"$error":"#DIV/0!"},{"$error":"#DIV/0!"},{"$error":"#DIV/0!"},{"$error":"#DIV/0!"},{"$error":"#DIV/0!"},{"$error":"#DIV/0!"},{"$error":"#DIV/0!"},{"$error":"#DIV/0!"},{"$error":"#DIV/0!"},{"$error":"#DIV/0!"},{"$error":"#DIV/0!"},{"$error":"#DIV/0!"},{"$error":"#DIV/0!"},1]
[]
["K107",{"$f":"title448","v":"Heat Available for Selling (MJ/year)"},null,{"$f":"IF(INDIRECT(\"COST_PS3!\"&$A$9)<0,0,INDIRECT(\"COST_PS3!\"&$A$9))","v":{"$error":"#DIV/0!"}},{"$f":"D9","v":{"$error":"#DIV/0!"}},{"$f":"E9","v":{"$error":"#DIV/0!"}},{"$error":"#DIV/0!"},{"$error":"#DIV/0!"},{"$error":"#DIV/0!"},{"$error":"#DIV/0!"},{"$error":"#DIV/0!"},{"$error":"#DIV/0!"},{"$error":"#DIV/0!"},{"$error":"#DIV/0!"},{"$error":"#DIV/0!"},{"$error":"#DIV/0!"},{"$error":"#DIV/0!"},{"$error":"#DIV/0!"},{"$error":"#DIV/0!"},{"$error":"#DIV/0!"},{"$error":"#DIV/0!"},{"$f":"U9","v":{"$error":"#DIV/0!"}},{"$error":"#DIV/0!"},{"$error":"#DIV/0!"},1]
["K106",{"$f":"title449","v":"Electricity Available for Selling (kWh/year)"},null,{"$f":"IF(INDIRECT(\"COST_PS3!\"&$A$10)<0,0,INDIRECT(\"COST_PS3!\"&$A$10))","v":{"$error":"#DIV/0!"}},{"$f":"D10","v":{"$error":"#DIV/0!"}},{"$error":"#DIV/0!"},{"$error":"#DIV/0!"},{"$error":"#DIV/0!"},{"$error":"#DIV/0!"},{"$error":"#DIV/0!"},{"$error":"#DIV/0!"},{"$error":"#DIV/0!"},{"$error":"#DIV/0!"},{"$error":"#DIV/0!"},{"$error":"#DIV/0!"},{"$error":"#DIV/0!"},{"$error":"#DIV/0!"},{"$error":"#DIV/0!"},{"$error":"#DIV/0!"},{"$error":"#DIV/0!"},{"$error":"#DIV/0!"},{"$error":"#DIV/0!"},{"$error":"#DIV/0!"},{"$error":"#DIV/0!"},1]
["AD166",{"$f":"title450","v":"Biomethane Production (m3 Methane/year)"},null,{"$f":"IF(OR('Biogas Use Selection'!$P$67=4,'Biogas Use Selection'!$P$67=5),INDIRECT(\"Planner_PS3!$\"&$A$11),0)","v":0},{"$f":"D11","v":0},0,0,0,0,0,0,0,0,0,0,0,0,0,0,0,0,0,0,0,1]
[null,{"$f":"title451","v":"Biogas Available for Selling (m3/year)"},null,{"$f":"IF('Biogas Use Selection'!$P$67=2,$D$7,0)","v":0},{"$f":"D12","v":0},0,0,0,0,0,0,0,0,0,0,0,0,0,0,0,0,0,0,0]
["AD178",{"$f":"title452","v":"Digestate Production (t/year)"},null,{"$f":"INDIRECT(\"Planner_PS3!$\"&$A$13)","v":{"$error":"#DIV/0!"}},{"$f":"D13","v":{"$error":"#DIV/0!"}},{"$error":"#DIV/0!"},{"$error":"#DIV/0!"},{"$error":"#DIV/0!"},{"$error":"#DIV/0!"},{"$error":"#DIV/0!"},{"$error":"#DIV/0!"},{"$error":"#DIV/0!"},{"$error":"#DIV/0!"},{"$error":"#DIV/0!"},{"$error":"#DIV/0!"},{"$error":"#DIV/0!"},{"$error":"#DIV/0!"},{"$error":"#DIV/0!"},{"$error":"#DIV/0!"},{"$error":"#DIV/0!"},{"$error":"#DIV/0!"},{"$error":"#DIV/0!"},{"$error":"#DIV/0!"},{"$error":"#DIV/0!"}]
[]
[null,{"$f":"title265","v":"Operating hours per year"},null,{"$f":"COST_PS3!$G$35","v":0},{"$f":"D15","v":0},{"$f":"E15","v":0},0,0,0,0,0,0,0,0,0,0,0,0,0,0,0,0,0,0,1]
[null,null,null,null,null,null,null,null,null,null,null,null,null,null,null,null,null,null,null,null,null,null,null,null,1]
[1,{"$f":"title137&\" (USD/kWh)\"","v":"Electricity Selling Price (USD/kWh)"},null,{"$f":"IF($A17=1,'Data entry needs'!$F$103,0)","v":0},null,null,null,null,null,null,null,null,null,null,null,null,null,null,null,null,null,null,null,null,1]
[1,{"$f":"title138&\" (USD/GJ)\"","v":"Heat Selling Price (USD/GJ)"},null,{"$f":"IF($A18=1,'Data entry needs'!$F$104,0)","v":0}]
[1,{"$f":"title453","v":"Biogas Selling Price (USD/m3)"},null,{"$f":"IF($A19=1,'Data entry needs'!$F$105,0)","v":0}]
[1,{"$f":"title454","v":"Biomethane Selling Price (USD/m3)"},null,{"$f":"IF($A20=1,'Data entry needs'!$L$103,0)","v":0}]
[1,{"$f":"title455","v":"Digestate Sellig Price (USD/t)"},null,{"$f":"'Data entry needs'!$L$104","v":0}]
[]
[null,null,null,null,null,null,null,null,null,null,null,null,null,null,null,null,null,null,null,null,null,null,null,null,1]
[null,{"$f":"title456","v":"Annual Income (USD per year)"},null,{"$f":"$D$18*D9+D10*$D$17+D12*$D$19+D11*$D$20+$D$21*D13","v":{"$error":"#DIV/0!"}},{"$f":"$D$18*E9+E10*$D$17+E12*$D$19+E11*$D$20+$D$21*E13","v":{"$error":"#DIV/0!"}},{"$f":"$D$18*F9+F10*$D$17+F12*$D$19+F11*$D$20+$D$21*F13","v":{"$error":"#DIV/0!"}},{"$error":"#DIV/0!"},{"$error":"#DIV/0!"},{"$error":"#DIV/0!"},{"$error":"#DIV/0!"},{"$error":"#DIV/0!"},{"$error":"#DIV/0!"},{"$error":"#DIV/0!"},{"$error":"#DIV/0!"},{"$error":"#DIV/0!"},{"$error":"#DIV/0!"},{"$error":"#DIV/0!"},{"$error":"#DIV/0!"},{"$error":"#DIV/0!"},{"$error":"#DIV/0!"},{"$error":"#DIV/0!"},{"$error":"#DIV/0!"},{"$error":"#DIV/0!"},{"$error":"#DIV/0!"},1]
[null,null,null,null,null,null,null,null,null,null,null,null,null,null,null,null,null,null,null,null,null,null,null,null,1]
[null,{"$f":"title457","v":"Lifespan of civil work (years)"},null,{"$f":"'Data entry needs'!$L$120","v":0},null,null,null,null,null,null,null,null,null,null,null,null,null,null,null,null,null,null,null,null,1]
[null,{"$f":"title458","v":"Lifespan of charcoal system (years)"},null,{"$f":"'Data entry needs'!$L$120","v":0},null,null,null,null,null,null,null,null,null,null,null,null,null,null,null,null,null,null,null,null,1]
[null,{"$f":"title459","v":"Project lifetime (years)"},null,{"$f":"'Data entry needs'!$L$120","v":0},null,null,null,null,null,null,null,null,null,null,null,null,null,null,null,null,null,null,null,null,1]
[null,null,null,null,null,null,null,null,null,null,null,null,null,null,null,null,null,null,null,null,null,null,null,null,1]
[null,null,null,null,null,null,null,null,null,null,null,null,null,null,null,null,null,null,null,null,null,null,null,null,1]
[null,{"$f":"title460","v":"Capital and operating cost of biogas system "},null,null,null,null,null,null,null,null,null,null,null,null,null,null,null,null,null,null,null,null,null,null,1]
[null,null,null,null,null,null,null,null,null,null,null,null,null,null,null,null,null,null,null,null,null,null,null,null,1]
[null,{"$f":"title446","v":"Operating Year"},null,{"$f":"title464","v":"Appraisal"},{"$f":"title465","v":"Project period (years)"},{"$f":"title466","v":"per year"},null,null,null,null,null,null,null,null,null,null,null,null,null,null,null,null,null,null,1]
[null,{"$f":"title461","v":"Capital cost (USD)"},null,"Total",null,null,null,null,null,null,null,null,null,null,null,null,null,null,null,null,null,null,null,null,1]
["J77",{"$f":"title280","v":"Equipments"},null,{"$f":"INDIRECT(\"COST_PS3!\"&$A35)","v":{"$error":"#DIV/0!"}},{"$f":"+D26","v":0},{"$f":"D35/E35","v":{"$error":"#DIV/0!"}},null,null,null,null,null,null,null,null,null,null,null,null,null,null,null,null,null,null,1]
["J78",{"$f":"title281","v":"Building"},null,{"$f":"INDIRECT(\"COST_PS3!\"&$A36)","v":{"$error":"#DIV/0!"}},{"$f":"+D27","v":0},{"$f":"D36/E36","v":{"$error":"#DIV/0!"}},null,null,null,null,null,null,null,null,null,null,null,null,null,null,null,null,null,null,1]
["J79",{"$f":"title462","v":"Installation"},null,{"$f":"INDIRECT(\"COST_PS3!\"&$A37)","v":{"$error":"#DIV/0!"}},{"$f":"+D28","v":0},{"$f":"D37/E37","v":{"$error":"#DIV/0!"}},null,null,null,null,null,null,null,null,null,null,null,null,null,null,null,null,null,null,1]
[null,{"$f":"title463","v":"Total capital cost (USD)"},null,{"$f":"SUM(D35:D37)","v":{"$error":"#DIV/0!"}},null,{"$f":"SUM(F35:F37)","v":{"$error":"#DIV/0!"}},null,null,null,null,null,null,null,null,null,null,null,null,null,null,null,null,null,null,1]
[null,null,null,null,null,null,null,null,null,null,null,null,null,null,null,null,null,null,null,null,null,null,null,null,1]
[null,null,null,null,null,null,null,null,null,null,null,null,null,null,null,null,null,null,null,null,null,null,null,null,1]
[null,{"$f":"title446","v":"Operating Year"},null,{"$f":"title464","v":"Appraisal"},1,2,3,4,5,6,7,8,9,10,11,12,13,14,15,16,17,18,19,20,1]
[null,{"$f":"title467","v":"Annual operating and maintenance cost "},null,null,null,null,null,null,null,null,null,null,null,null,null,null,null,null,null,null,null,null,null,null,1]
["J44",{"$f":"title468","v":"Sub-total inputs cost (USD)"},null,{"$f":"INDIRECT(\"COST_PS3!\"&$A$43)","v":{"$error":"#DIV/0!"}},{"$error":"#DIV/0!"},{"$error":"#DIV/0!"},{"$error":"#DIV/0!"},{"$error":"#DIV/0!"},{"$error":"#DIV/0!"},{"$error":"#DIV/0!"},{"$error":"#DIV/0!"},{"$error":"#DIV/0!"},{"$error":"#DIV/0!"},{"$error":"#DIV/0!"},{"$error":"#DIV/0!"},{"$error":"#DIV/0!"},{"$error":"#DIV/0!"},{"$error":"#DIV/0!"},{"$error":"#DIV/0!"},{"$error":"#DIV/0!"},{"$error":"#DIV/0!"},{"$error":"#DIV/0!"},{"$error":"#DIV/0!"},{"$error":"#DIV/0!"},1]
[]
[null,{"$f":"title469","v":"Sub-total operating cost (USD)"},null,{"$f":"D46+D47+D48","v":{"$error":"#DIV/0!"}},{"$f":"E46+E47+E48","v":{"$error":"#DIV/0!"}},{"$f":"F46+F47+F48","v":{"$error":"#DIV/0!"}},{"$error":"#DIV/0!"},{"$error":"#DIV/0!"},{"$error":"#DIV/0!"},{"$error":"#DIV/0!"},{"$error":"#DIV/0!"},{"$error":"#DIV/0!"},{"$error":"#DIV/0!"},{"$error":"#DIV/0!"},{"$error":"#DIV/0!"},{"$error":"#DIV/0!"},{"$error":"#DIV/0!"},{"$error":"#DIV/0!"},{"$error":"#DIV/0!"},{"$error":"#DIV/0!"},{"$error":"#DIV/0!"},{"$error":"#DIV/0!"},{"$error":"#DIV/0!"},{"$error":"#DIV/0!"},1]
["k51",{"$f":"title470","v":"Labour cost & Misc. (USD)"},null,{"$f":"INDIRECT(\"COST_PS3!\"&$A46)","v":0},{"$f":"+D46","v":0},{"$f":"+E46","v":0},0,0,0,0,0,0,0,0,0,0,0,0,0,0,0,0,0,0,1]
["k87",{"$f":"title151","v":"Plant overhead"},null,{"$f":"INDIRECT(\"COST_PS3!\"&$A47)","v":{"$error":"#DIV/0!"}},{"$f":"D47","v":{"$error":"#DIV/0!"}},{"$error":"#DIV/0!"},{"$error":"#DIV/0!"},{"$error":"#DIV/0!"},{"$error":"#DIV/0!"},{"$error":"#DIV/0!"},{"$error":"#DIV/0!"},{"$error":"#DIV/0!"},{"$error":"#DIV/0!"},{"$error":"#DIV/0!"},{"$error":"#DIV/0!"},{"$error":"#DIV/0!"},{"$error":"#DIV/0!"},{"$error":"#DIV/0!"},{"$error":"#DIV/0!"},{"$error":"#DIV/0!"},{"$f":"T47","v":{"$error":"#DIV/0!"}},{"$error":"#DIV/0!"},{"$error":"#DIV/0!"},{"$error":"#DIV/0!"},1]
["k88",{"$f":"title288","v":"General and administrative cost"},null,{"$f":"INDIRECT(\"COST_PS3!\"&$A48)","v":{"$error":"#DIV/0!"}},{"$error":"#DIV/0!"},{"$error":"#DIV/0!"},{"$error":"#DIV/0!"},{"$error":"#DIV/0!"},{"$error":"#DIV/0!"},{"$error":"#DIV/0!"},{"$error":"#DIV/0!"},{"$error":"#DIV/0!"},{"$error":"#DIV/0!"},{"$error":"#DIV/0!"},{"$error":"#DIV/0!"},{"$error":"#DIV/0!"},{"$error":"#DIV/0!"},{"$error":"#DIV/0!"},{"$error":"#DIV/0!"},{"$error":"#DIV/0!"},{"$error":"#DIV/0!"},{"$error":"#DIV/0!"},{"$error":"#DIV/0!"},{"$error":"#DIV/0!"},1]
["k82",{"$f":"title471","v":"Sub-total maintenance cost (USD)"},null,{"$f":"INDIRECT(\"COST_PS3!\"&$A49)","v":{"$error":"#DIV/0!"}},{"$error":"#DIV/0!"},{"$error":"#DIV/0!"},{"$error":"#DIV/0!"},{"$error":"#DIV/0!"},{"$error":"#DIV/0!"},{"$error":"#DIV/0!"},{"$error":"#DIV/0!"},{"$error":"#DIV/0!"},{"$error":"#DIV/0!"},{"$error":"#DIV/0!"},{"$error":"#DIV/0!"},{"$error":"#DIV/0!"},{"$error":"#DIV/0!"},{"$error":"#DIV/0!"},{"$error":"#DIV/0!"},{"$error":"#DIV/0!"},{"$error":"#DIV/0!"},{"$error":"#DIV/0!"},{"$error":"#DIV/0!"},{"$error":"#DIV/0!"},1]
[null,null,null,null,null,null,null,null,null,null,null,null,null,null,null,null,null,null,null,null,null,null,null,null,1]
["k82",{"$f":"title472","v":"Sub-total of annual fixed cost (USD)"},null,{"$f":"F38","v":{"$error":"#DIV/0!"}},{"$f":"D51","v":{"$error":"#DIV/0!"}},{"$f":"E51","v":{"$error":"#DIV/0!"}},{"$error":"#DIV/0!"},{"$error":"#DIV/0!"},{"$error":"#DIV/0!"},{"$error":"#DIV/0!"},{"$error":"#DIV/0!"},{"$error":"#DIV/0!"},{"$error":"#DIV/0!"},{"$error":"#DIV/0!"},{"$error":"#DIV/0!"},{"$error":"#DIV/0!"},{"$error":"#DIV/0!"},{"$error":"#DIV/0!"},{"$error":"#DIV/0!"},{"$error":"#DIV/0!"},{"$error":"#DIV/0!"},{"$error":"#DIV/0!"},{"$error":"#DIV/0!"},{"$error":"#DIV/0!"},1]
[null,null,null,null,null,null,null,null,null,null,null,null,null,null,null,null,null,null,null,null,null,null,null,null,1]
["J73",{"$f":"title473","v":"Sub-total of storage cost (USD)"},null,{"$f":"INDIRECT(\"COST_PS3!\"&$A53)","v":0},0,0,0,0,0,0,0,0,0,0,0,0,0,0,0,0,0,0,0,0,1]
[null,null,null,null,null,null,null,null,null,null,null,null,null,null,null,null,null,null,null,null,null,null,null,null,1]
[null,{"$f":"title474","v":"Total operation and maintenance cost (USD)"},null,{"$f":"D43+D45+D49+D51+D53","v":{"$error":"#DIV/0!"}},{"$f":"E43+E45+E49+E51+E53","v":{"$error":"#DIV/0!"}},{"$error":"#DIV/0!"},{"$error":"#DIV/0!"},{"$error":"#DIV/0!"},{"$error":"#DIV/0!"},{"$error":"#DIV/0!"},{"$error":"#DIV/0!"},{"$error":"#DIV/0!"},{"$error":"#DIV/0!"},{"$error":"#DIV/0!"},{"$error":"#DIV/0!"},{"$error":"#DIV/0!"},{"$error":"#DIV/0!"},{"$error":"#DIV/0!"},{"$error":"#DIV/0!"},{"$error":"#DIV/0!"},{"$error":"#DIV/0!"},{"$error":"#DIV/0!"},{"$error":"#DIV/0!"},{"$error":"#DIV/0!"},1]
[null,null,null,null,null,null,null,null,null,null,null,null,null,null,null,null,null,null,null,null,null,null,null,null,1]
[null,null,null,null,null,null,null,null,null,null,null,null,null,null,null,null,null,null,null,null,null,null,null,null,1]
[null,{"$f":"title155","v":"Financial parameters"},null,null,null,null,null,null,null,null,null,null,null,null,null,null,null,null,null,null,null,null,null,null,1]
[null,{"$f":"title446","v":"Operating Year"},null,{"$f":"title464","v":"Appraisal"},1,2,3,4,5,6,7,8,9,10,11,12,13,14,15,16,17,18,19,20,1]
[null,{"$f":"title161&\"(%)\"","v":"Discount rate(%)"},null,{"$f":"'Data entry needs'!$L$118","v":0},null,null,null,null,null,null,null,null,null,null,null,null,null,null,null,null,null,null,null,null,1]
[null,{"$f":"title475","v":"Loan ratio (%)"},null,{"$f":"'Data entry needs'!$F$118","v":0},null,null,null,null,null,null,null,null,null,null,null,null,null,null,null,null,null,null,null,null,1]
[null,null,null,null,null,null,null,null,null,null,null,null,null,null,null,null,null,null,null,null,null,null,null,null,1]
[null,null,null,null,null,null,null,null,null,null,null,null,null,null,null,null,null,null,null,null,null,null,null,null,1]
[null,{"$f":"title446","v":"Operating Year"},null,{"$f":"title464","v":"Appraisal"},1,2,3,4,5,6,7,8,9,10,11,12,13,14,15,16,17,18,19,20,1]
[null,{"$f":"title476","v":"Loan amount (USD)"},null,{"$f":"D61*(D38)","v":{"$error":"#DIV/0!"}},null,null,null,null,null,null,null,null,null,null,null,null,null,null,null,null,null,null,null,null,1]
[null,{"$f":"title162&\"(%)\"","v":"Loan interest rate(%)"},null,{"$f":"'Data entry needs'!$L$119","v":0},null,null,null,null,null,null,null,null,null,null,null,null,null,null,null,null,null,null,null,null,1]
[null,{"$f":"title165","v":"Loan term (years)"},null,{"$f":"D26","v":0},null,null,null,null,null,null,null,null,null,null,null,null,null,null,null,null,null,null,null,null,1]
[null,{"$f":"title315&\" (\"&title318&\")\"","v":"Loan payment (USD/month)"},null,{"$f":"(PMT($D$66/12,($D$67*12),$D$65))","v":{"$error":"#DIV/0!"}}]
[null,{"$f":"title315&\" (\"&title319&\")\"","v":"Loan payment (USD/year)"},null,{"$f":"D68*12","v":{"$error":"#DIV/0!"}},null,null,null,null,null,null,null,null,null,null,null,null,null,null,null,null,null,null,null,null,1]
[null,{"$f":"title315&\" (\"&title319&\")\"","v":"Loan payment (USD/year)"},null,null,{"$f":"IF(E64<=$D$67,$D$68*12,0)","v":0},{"$f":"IF(F64<=$D$67,$D$68*12,0)","v":0},0,0,0,0,0,0,0,0,0,0,0,0,0,0,0,0,0,0,1]
[null,{"$f":"title477","v":"Total loan payment (USD)"},null,{"$f":"SUM(E70:X70)","v":0},null,null,null,null,null,null,null,null,null,null,null,null,null,null,null,null,null,null,null,null,1]
[null,{"$f":"title478","v":"Loan interest payment (USD)"},null,{"$f":"D71+D65","v":{"$error":"#DIV/0!"}},{"$f":"title479","v":"loan interest payment for project lifetime"},null,null,null,null,null,null,null,null,null,null,null,null,null,null,null,null,null,null,null,1]
[null,null,null,null,null,null,null,null,null,null,null,null,null,null,null,null,null,null,null,null,null,null,null,null,1]
[null,{"$f":"title285","v":"Depreciation"},null,null,null,null,null,null,null,null,null,null,null,null,null,null,null,null,null,null,null,null,null,null,1]
[null,{"$f":"title446","v":"Operating Year"},null,{"$f":"title464","v":"Appraisal"},1,2,3,4,5,6,7,8,9,10,11,12,13,14,15,16,17,18,19,20,1]
[null,{"$f":"title480","v":"Depreciation method"},null,{"$f":"title482","v":"Straight-line"},null,null,null,null,null,null,null,null,null,null,null,null,null,null,null,null,null,null,null,null,1]
[null,{"$f":"title481","v":"Total depreciation (USD)"},null,null,{"$f":"$F$38","v":{"$error":"#DIV/0!"}},{"$f":"$F$38","v":{"$error":"#DIV/0!"}},{"$error":"#DIV/0!"},{"$error":"#DIV/0!"},{"$error":"#DIV/0!"},{"$error":"#DIV/0!"},{"$error":"#DIV/0!"},{"$error":"#DIV/0!"},{"$error":"#DIV/0!"},{"$error":"#DIV/0!"},{"$error":"#DIV/0!"},{"$error":"#DIV/0!"},{"$error":"#DIV/0!"},{"$error":"#DIV/0!"},{"$error":"#DIV/0!"},{"$error":"#DIV/0!"},{"$error":"#DIV/0!"},{"$error":"#DIV/0!"},{"$error":"#DIV/0!"},{"$error":"#DIV/0!"},1]
[null,null,null,null,null,null,null,null,null,null,null,null,null,null,null,null,null,null,null,null,null,null,null,null,1]
[null,{"$f":"title483","v":"Base case Project Summary"},null,null,null,null,null,null,null,null,null,null,null,null,null,null,null,null,null,null,null,null,null,null,1]
[null,{"$f":"title484","v":"Summary of this project"},null,null,null,null,null,null,null,null,null,null,null,null,null,null,null,null,null,null,null,null,null,null,1]
[null,{"$f":"title446","v":"Operating Year"},null,{"$f":"title464","v":"Appraisal"},1,2,3,4,5,6,7,8,9,10,11,12,13,14,15,16,17,18,19,20,1]
[null,{"$f":"title485","v":"Total revenue (USD)"},null,null,{"$f":"E24","v":{"$error":"#DIV/0!"}},{"$f":"F24","v":{"$error":"#DIV/0!"}},{"$error":"#DIV/0!"},{"$error":"#DIV/0!"},{"$error":"#DIV/0!"},{"$error":"#DIV/0!"},{"$error":"#DIV/0!"},{"$error":"#DIV/0!"},{"$error":"#DIV/0!"},{"$error":"#DIV/0!"},{"$error":"#DIV/0!"},{"$error":"#DIV/0!"},{"$error":"#DIV/0!"},{"$error":"#DIV/0!"},{"$error":"#DIV/0!"},{"$error":"#DIV/0!"},{"$error":"#DIV/0!"},{"$error":"#DIV/0!"},{"$error":"#DIV/0!"},{"$error":"#DIV/0!"},1]
[null,{"$f":"title463","v":"Total capital cost (USD)"},null,{"$f":"-D38*(1-$D$61)","v":{"$error":"#DIV/0!"}},null,null,null,null,null,null,null,null,null,null,null,null,null,null,null,null,null,null,null,null,1]
[null,{"$f":"title486","v":"Total operating and maintenance cost (USD)"},null,null,{"$f":"-E55+E51","v":{"$error":"#DIV/0!"}},{"$f":"-F55+F51","v":{"$error":"#DIV/0!"}},{"$f":"-G55+G51","v":{"$error":"#DIV/0!"}},{"$error":"#DIV/0!"},{"$error":"#DIV/0!"},{"$error":"#DIV/0!"},{"$error":"#DIV/0!"},{"$error":"#DIV/0!"},{"$error":"#DIV/0!"},{"$error":"#DIV/0!"},{"$error":"#DIV/0!"},{"$error":"#DIV/0!"},{"$error":"#DIV/0!"},{"$error":"#DIV/0!"},{"$error":"#DIV/0!"},{"$error":"#DIV/0!"},{"$error":"#DIV/0!"},{"$error":"#DIV/0!"},{"$error":"#DIV/0!"},{"$error":"#DIV/0!"},1]
[null,{"$f":"title487","v":"Loan payment (USD)"},null,null,{"$f":"+E70","v":0},{"$f":"+F70","v":0},{"$f":"+G70","v":0},0,0,0,0,0,0,0,0,0,0,0,0,0,0,0,0,0,1]
[null,{"$f":"title488","v":"Cash flow with loan (USD)"},null,{"$f":"SUM(D82:D85)","v":{"$error":"#DIV/0!"}},{"$f":"SUM(E82:E85)","v":{"$error":"#DIV/0!"}},{"$f":"SUM(F82:F85)","v":{"$error":"#DIV/0!"}},{"$f":"SUM(G82:G85)","v":{"$error":"#DIV/0!"}},{"$error":"#DIV/0!"},{"$error":"#DIV/0!"},{"$error":"#DIV/0!"},{"$error":"#DIV/0!"},{"$error":"#DIV/0!"},{"$error":"#DIV/0!"},{"$error":"#DIV/0!"},{"$error":"#DIV/0!"},{"$error":"#DIV/0!"},{"$error":"#DIV/0!"},{"$error":"#DIV/0!"},{"$error":"#DIV/0!"},{"$error":"#DIV/0!"},{"$error":"#DIV/0!"},{"$error":"#DIV/0!"},{"$error":"#DIV/0!"},{"$error":"#DIV/0!"},1]
[null,{"$f":"title489","v":"Cash flow without loan (USD)"},null,{"$f":"-D38","v":{"$error":"#DIV/0!"}},{"$f":"+E82+E84","v":{"$error":"#DIV/0!"}},{"$f":"+F82+F84","v":{"$error":"#DIV/0!"}},{"$f":"+G82+G84","v":{"$error":"#DIV/0!"}},{"$error":"#DIV/0!"},{"$error":"#DIV/0!"},{"$error":"#DIV/0!"},{"$error":"#DIV/0!"},{"$error":"#DIV/0!"},{"$error":"#DIV/0!"},{"$error":"#DIV/0!"},{"$error":"#DIV/0!"},{"$error":"#DIV/0!"},{"$error":"#DIV/0!"},{"$error":"#DIV/0!"},{"$error":"#DIV/0!"},{"$error":"#DIV/0!"},{"$error":"#DIV/0!"},{"$error":"#DIV/0!"},{"$error":"#DIV/0!"},{"$error":"#DIV/0!"},1]
[null,{"$f":"title446","v":"Operating Year"},null,{"$f":"title464","v":"Appraisal"},1,2,3,4,5,6,7,8,9,10,11,12,13,14,15,16,17,18,19,20,1]
[null,{"$f":"title490","v":"Cumulative value of Net Profit"},null,{"$f":"D86","v":{"$error":"#DIV/0!"}},{"$f":"D89+(E86)","v":{"$error":"#DIV/0!"}},{"$f":"E89+(F86)","v":{"$error":"#DIV/0!"}},{"$error":"#DIV/0!"},{"$error":"#DIV/0!"},{"$error":"#DIV/0!"},{"$error":"#DIV/0!"},{"$error":"#DIV/0!"},{"$error":"#DIV/0!"},{"$error":"#DIV/0!"},{"$error":"#DIV/0!"},{"$error":"#DIV/0!"},{"$error":"#DIV/0!"},{"$error":"#DIV/0!"},{"$error":"#DIV/0!"},{"$error":"#DIV/0!"},{"$error":"#DIV/0!"},{"$error":"#DIV/0!"},{"$error":"#DIV/0!"},{"$error":"#DIV/0!"},{"$error":"#DIV/0!"},1]
[null,null,null,null,null,null,null,null,null,null,null,null,null,null,null,null,null,null,null,null,null,null,null,null,1]
[null,{"$f":"title491","v":"Financial Analysis Result"},null,null,null,null,null,null,null,null,null,null,null,null,null,null,null,null,null,null,null,null,null,null,1]
[null,null,null,null,null,null,null,null,null,null,null,null,null,null,null,null,null,null,null,null,null,null,null,null,1]
[null,{"$f":"title493","v":"Net Present Value (NPV) (USD)"},null,{"$f":"NPV(D60,E86:AA86)+D86","v":{"$error":"#DIV/0!"}},null,null,null,null,null,null,null,null,null,null,null,null,null,null,null,null,null,null,null,null,1]
[null,{"$f":"title494","v":"Internal Rate of Return (IRR) (%) - without loan"},null,{"$f":"IF(D93<0,title492,IRR(D87:AA87,0.001))","v":{"$error":"#DIV/0!"}},null,null,null,null,null,null,null,null,null,null,null,null,null,null,null,null,null,null,null,null,1]
[null,{"$f":"title495","v":"Internal Rate of Return (IRR) (%) - with loan"},null,{"$f":"IF(D94<0,title492,IRR(D86:AA86,0.001))","v":{"$error":"#DIV/0!"}},null,null,null,null,null,null,null,null,null,null,null,null,null,null,null,null,null,null,null,null,1]
[null,null,null,null,null,null,null,null,null,null,null,null,null,null,null,null,null,null,null,null,null,null,null,null,1]
[null,null,null,null,null,null,null,null,null,null,null,null,null,null,null,null,null,null,null,null,null,null,null,null,1]

{"sheet":"FA_SIZE4_PS3","index":42,"n_rows":97,"n_cols":25,"rows_kept":97,"cut":false,"hidden":true,"merged":[[1,1,1,23]]}
[]
[null,{"$f":"title496&\" 4\"","v":"FINANCIAL EVALUATION OF BIOGAS PRODUCTION SIZE 4"}]
[]
[null,{"$f":"title445","v":"Revenues of biomass production and use system"}]
[null,{"$f":"title446","v":"Operating Year"},null,0,1,2,3,4,5,6,7,8,9,10,11,12,13,14,15,16,17,18,19,20,1]
[null,null,null,null,null,null,null,null,null,null,null,null,null,null,null,null,null,null,null,null,null,null,null,null,1]
["Ag130",{"$f":"title447","v":"Biogas production capacity (m3 Biogas per year)"},null,{"$f":"INDIRECT(\"Planner_PS3!$\"&$A$7)*'Data entry needs'!$L$100","v":{"$error":"#DIV/0!"}},{"$f":"D7","v":{"$error":"#DIV/0!"}},{"$f":"E7","v":{"$error":"#DIV/0!"}},{"$f":"F7","v":{"$error":"#DIV/0!"}},{"$error":"#DIV/0!"},{"$error":"#DIV/0!"},{"$error":"#DIV/0!"},{"$error":"#DIV/0!"},{"$error":"#DIV/0!"},{"$error":"#DIV/0!"},{"$error":"#DIV/0!"},{"$error":"#DIV/0!"},{"$error":"#DIV/0!"},{"$error":"#DIV/0!"},{"$error":"#DIV/0!"},{"$error":"#DIV/0!"},{"$error":"#DIV/0!"},{"$error":"#DIV/0!"},{"$error":"#DIV/0!"},{"$error":"#DIV/0!"},{"$error":"#DIV/0!"},1]
[]
["m107",{"$f":"title448","v":"Heat Available for Selling (MJ/year)"},null,{"$f":"IF(INDIRECT(\"COST_PS3!\"&$A$9)<0,0,INDIRECT(\"COST_PS3!\"&$A$9))","v":{"$error":"#DIV/0!"}},{"$f":"D9","v":{"$error":"#DIV/0!"}},{"$f":"E9","v":{"$error":"#DIV/0!"}},{"$error":"#DIV/0!"},{"$error":"#DIV/0!"},{"$error":"#DIV/0!"},{"$error":"#DIV/0!"},{"$error":"#DIV/0!"},{"$error":"#DIV/0!"},{"$error":"#DIV/0!"},{"$error":"#DIV/0!"},{"$error":"#DIV/0!"},{"$error":"#DIV/0!"},{"$error":"#DIV/0!"},{"$error":"#DIV/0!"},{"$error":"#DIV/0!"},{"$error":"#DIV/0!"},{"$error":"#DIV/0!"},{"$f":"U9","v":{"$error":"#DIV/0!"}},{"$error":"#DIV/0!"},{"$error":"#DIV/0!"},1]
["m106",{"$f":"title449","v":"Electricity Available for Selling (kWh/year)"},null,{"$f":"IF(INDIRECT(\"COST_PS3!\"&$A$10)<0,0,INDIRECT(\"COST_PS3!\"&$A$10))","v":{"$error":"#DIV/0!"}},{"$f":"D10","v":{"$error":"#DIV/0!"}},{"$error":"#DIV/0!"},{"$error":"#DIV/0!"},{"$error":"#DIV/0!"},{"$error":"#DIV/0!"},{"$error":"#DIV/0!"},{"$error":"#DIV/0!"},{"$error":"#DIV/0!"},{"$error":"#DIV/0!"},{"$error":"#DIV/0!"},{"$error":"#DIV/0!"},{"$error":"#DIV/0!"},{"$error":"#DIV/0!"},{"$error":"#DIV/0!"},{"$error":"#DIV/0!"},{"$error":"#DIV/0!"},{"$error":"#DIV/0!"},{"$error":"#DIV/0!"},{"$error":"#DIV/0!"},{"$error":"#DIV/0!"},1]
["Ae166",{"$f":"title450","v":"Biomethane Production (m3 Methane/year)"},null,{"$f":"IF(OR('Biogas Use Selection'!$P$67=4,'Biogas Use Selection'!$P$67=5),INDIRECT(\"Planner_PS3!$\"&$A$11),0)","v":0},{"$f":"D11","v":0},0,0,0,0,0,0,0,0,0,0,0,0,0,0,0,0,0,0,0,1]
[null,{"$f":"title451","v":"Biogas Available for Selling (m3/year)"},null,{"$f":"IF('Biogas Use Selection'!$P$67=2,$D$7,0)","v":0},{"$f":"D12","v":0},0,0,0,0,0,0,0,0,0,0,0,0,0,0,0,0,0,0,0]
["Ae178",{"$f":"title452","v":"Digestate Production (t/year)"},null,{"$f":"INDIRECT(\"Planner_PS3!$\"&$A$13)","v":{"$error":"#DIV/0!"}},{"$f":"D13","v":{"$error":"#DIV/0!"}},{"$error":"#DIV/0!"},{"$error":"#DIV/0!"},{"$error":"#DIV/0!"},{"$error":"#DIV/0!"},{"$error":"#DIV/0!"},{"$error":"#DIV/0!"},{"$error":"#DIV/0!"},{"$error":"#DIV/0!"},{"$error":"#DIV/0!"},{"$error":"#DIV/0!"},{"$error":"#DIV/0!"},{"$error":"#DIV/0!"},{"$error":"#DIV/0!"},{"$error":"#DIV/0!"},{"$error":"#DIV/0!"},{"$error":"#DIV/0!"},{"$error":"#DIV/0!"},{"$error":"#DIV/0!"},{"$error":"#DIV/0!"}]
[]
[null,{"$f":"title265","v":"Operating hours per year"},null,{"$f":"COST_PS3!$G$35","v":0},{"$f":"D15","v":0},{"$f":"E15","v":0},0,0,0,0,0,0,0,0,0,0,0,0,0,0,0,0,0,0,1]
[null,null,null,null,null,null,null,null,null,null,null,null,null,null,null,null,null,null,null,null,null,null,null,null,1]
[1,{"$f":"title137&\" (USD/kWh)\"","v":"Electricity Selling Price (USD/kWh)"},null,{"$f":"IF($A17=1,'Data entry needs'!$F$103,0)","v":0},null,null,null,null,null,null,null,null,null,null,null,null,null,null,null,null,null,null,null,null,1]
[1,{"$f":"title138&\" (USD/GJ)\"","v":"Heat Selling Price (USD/GJ)"},null,{"$f":"IF($A18=1,'Data entry needs'!$F$104,0)","v":0}]
[1,{"$f":"title453","v":"Biogas Selling Price (USD/m3)"},null,{"$f":"IF($A19=1,'Data entry needs'!$F$105,0)","v":0}]
[1,{"$f":"title454","v":"Biomethane Selling Price (USD/m3)"},null,{"$f":"IF($A20=1,'Data entry needs'!$L$103,0)","v":0}]
[1,{"$f":"title455","v":"Digestate Sellig Price (USD/t)"},null,{"$f":"'Data entry needs'!$L$104","v":0}]
[]
[null,null,null,null,null,null,null,null,null,null,null,null,null,null,null,null,null,null,null,null,null,null,null,null,1]
[null,{"$f":"title456","v":"Annual Income (USD per year)"},null,{"$f":"$D$18*D9+D10*$D$17+D12*$D$19+D11*$D$20+$D$21*D13","v":{"$error":"#DIV/0!"}},{"$f":"$D$18*E9+E10*$D$17+E12*$D$19+E11*$D$20+$D$21*E13","v":{"$error":"#DIV/0!"}},{"$f":"$D$18*F9+F10*$D$17+F12*$D$19+F11*$D$20+$D$21*F13","v":{"$error":"#DIV/0!"}},{"$error":"#DIV/0!"},{"$error":"#DIV/0!"},{"$error":"#DIV/0!"},{"$error":"#DIV/0!"},{"$error":"#DIV/0!"},{"$error":"#DIV/0!"},{"$error":"#DIV/0!"},{"$error":"#DIV/0!"},{"$error":"#DIV/0!"},{"$error":"#DIV/0!"},{"$error":"#DIV/0!"},{"$error":"#DIV/0!"},{"$error":"#DIV/0!"},{"$error":"#DIV/0!"},{"$error":"#DIV/0!"},{"$error":"#DIV/0!"},{"$error":"#DIV/0!"},{"$error":"#DIV/0!"},1]
[null,null,null,null,null,null,null,null,null,null,null,null,null,null,null,null,null,null,null,null,null,null,null,null,1]
[null,{"$f":"title457","v":"Lifespan of civil work (years)"},null,{"$f":"'Data entry needs'!$L$120","v":0},null,null,null,null,null,null,null,null,null,null,null,null,null,null,null,null,null,null,null,null,1]
[null,{"$f":"title458","v":"Lifespan of charcoal system (years)"},null,{"$f":"'Data entry needs'!$L$120","v":0},null,null,null,null,null,null,null,null,null,null,null,null,null,null,null,null,null,null,null,null,1]
[null,{"$f":"title459","v":"Project lifetime (years)"},null,{"$f":"'Data entry needs'!$L$120","v":0},null,null,null,null,null,null,null,null,null,null,null,null,null,null,null,null,null,null,null,null,1]
[null,null,null,null,null,null,null,null,null,null,null,null,null,null,null,null,null,null,null,null,null,null,null,null,1]
[null,null,null,null,null,null,null,null,null,null,null,null,null,null,null,null,null,null,null,null,null,null,null,null,1]
[null,{"$f":"title460","v":"Capital and operating cost of biogas system "},null,null,null,null,null,null,null,null,null,null,null,null,null,null,null,null,null,null,null,null,null,null,1]
[null,null,null,null,null,null,null,null,null,null,null,null,null,null,null,null,null,null,null,null,null,null,null,null,1]
[null,{"$f":"title446","v":"Operating Year"},null,{"$f":"title464","v":"Appraisal"},{"$f":"title465","v":"Project period (years)"},{"$f":"title466","v":"per year"},null,null,null,null,null,null,null,null,null,null,null,null,null,null,null,null,null,null,1]
[null,{"$f":"title461","v":"Capital cost (USD)"},null,"Total",null,null,null,null,null,null,null,null,null,null,null,null,null,null,null,null,null,null,null,null,1]
["l77",{"$f":"title280","v":"Equipments"},null,{"$f":"INDIRECT(\"COST_PS3!\"&$A35)","v":{"$error":"#DIV/0!"}},{"$f":"+D26","v":0},{"$f":"D35/E35","v":{"$error":"#DIV/0!"}},null,null,null,null,null,null,null,null,null,null,null,null,null,null,null,null,null,null,1]
["l78",{"$f":"title281","v":"Building"},null,{"$f":"INDIRECT(\"COST_PS3!\"&$A36)","v":{"$error":"#DIV/0!"}},{"$f":"+D27","v":0},{"$f":"D36/E36","v":{"$error":"#DIV/0!"}},null,null,null,null,null,null,null,null,null,null,null,null,null,null,null,null,null,null,1]
["l79",{"$f":"title462","v":"Installation"},null,{"$f":"INDIRECT(\"COST_PS3!\"&$A37)","v":{"$error":"#DIV/0!"}},{"$f":"+D28","v":0},{"$f":"D37/E37","v":{"$error":"#DIV/0!"}},null,null,null,null,null,null,null,null,null,null,null,null,null,null,null,null,null,null,1]
[null,{"$f":"title463","v":"Total capital cost (USD)"},null,{"$f":"SUM(D35:D37)","v":{"$error":"#DIV/0!"}},null,{"$f":"SUM(F35:F37)","v":{"$error":"#DIV/0!"}},null,null,null,null,null,null,null,null,null,null,null,null,null,null,null,null,null,null,1]
[null,null,null,null,null,null,null,null,null,null,null,null,null,null,null,null,null,null,null,null,null,null,null,null,1]
[null,null,null,null,null,null,null,null,null,null,null,null,null,null,null,null,null,null,null,null,null,null,null,null,1]
[null,{"$f":"title446","v":"Operating Year"},null,{"$f":"title464","v":"Appraisal"},1,2,3,4,5,6,7,8,9,10,11,12,13,14,15,16,17,18,19,20,1]
[null,{"$f":"title467","v":"Annual operating and maintenance cost "},null,null,null,null,null,null,null,null,null,null,null,null,null,null,null,null,null,null,null,null,null,null,1]
["l44",{"$f":"title468","v":"Sub-total inputs cost (USD)"},null,{"$f":"INDIRECT(\"COST_PS3!\"&$A$43)","v":{"$error":"#DIV/0!"}},{"$error":"#DIV/0!"},{"$error":"#DIV/0!"},{"$error":"#DIV/0!"},{"$error":"#DIV/0!"},{"$error":"#DIV/0!"},{"$error":"#DIV/0!"},{"$error":"#DIV/0!"},{"$error":"#DIV/0!"},{"$error":"#DIV/0!"},{"$error":"#DIV/0!"},{"$error":"#DIV/0!"},{"$error":"#DIV/0!"},{"$error":"#DIV/0!"},{"$error":"#DIV/0!"},{"$error":"#DIV/0!"},{"$error":"#DIV/0!"},{"$error":"#DIV/0!"},{"$error":"#DIV/0!"},{"$error":"#DIV/0!"},{"$error":"#DIV/0!"},1]
[]
[null,{"$f":"title469","v":"Sub-total operating cost (USD)"},null,{"$f":"D46+D47+D48","v":{"$error":"#DIV/0!"}},{"$f":"E46+E47+E48","v":{"$error":"#DIV/0!"}},{"$f":"F46+F47+F48","v":{"$error":"#DIV/0!"}},{"$error":"#DIV/0!"},{"$error":"#DIV/0!"},{"$error":"#DIV/0!"},{"$error":"#DIV/0!"},{"$error":"#DIV/0!"},{"$error":"#DIV/0!"},{"$error":"#DIV/0!"},{"$error":"#DIV/0!"},{"$error":"#DIV/0!"},{"$error":"#DIV/0!"},{"$error":"#DIV/0!"},{"$error":"#DIV/0!"},{"$error":"#DIV/0!"},{"$error":"#DIV/0!"},{"$error":"#DIV/0!"},{"$error":"#DIV/0!"},{"$error":"#DIV/0!"},{"$error":"#DIV/0!"},1]
["m51",{"$f":"title470","v":"Labour cost & Misc. (USD)"},null,{"$f":"INDIRECT(\"COST_PS3!\"&$A46)","v":0},{"$f":"+D46","v":0},{"$f":"+E46","v":0},0,0,0,0,0,0,0,0,0,0,0,0,0,0,0,0,0,0,1]
["m87",{"$f":"title151","v":"Plant overhead"},null,{"$f":"INDIRECT(\"COST_PS3!\"&$A47)","v":{"$error":"#DIV/0!"}},{"$f":"D47","v":{"$error":"#DIV/0!"}},{"$error":"#DIV/0!"},{"$error":"#DIV/0!"},{"$error":"#DIV/0!"},{"$error":"#DIV/0!"},{"$error":"#DIV/0!"},{"$error":"#DIV/0!"},{"$error":"#DIV/0!"},{"$error":"#DIV/0!"},{"$error":"#DIV/0!"},{"$error":"#DIV/0!"},{"$error":"#DIV/0!"},{"$error":"#DIV/0!"},{"$error":"#DIV/0!"},{"$error":"#DIV/0!"},{"$error":"#DIV/0!"},{"$f":"T47","v":{"$error":"#DIV/0!"}},{"$error":"#DIV/0!"},{"$error":"#DIV/0!"},{"$error":"#DIV/0!"},1]
["m88",{"$f":"title288","v":"General and administrative cost"},null,{"$f":"INDIRECT(\"COST_PS3!\"&$A48)","v":{"$error":"#DIV/0!"}},{"$error":"#DIV/0!"},{"$error":"#DIV/0!"},{"$error":"#DIV/0!"},{"$error":"#DIV/0!"},{"$error":"#DIV/0!"},{"$error":"#DIV/0!"},{"$error":"#DIV/0!"},{"$error":"#DIV/0!"},{"$error":"#DIV/0!"},{"$error":"#DIV/0!"},{"$error":"#DIV/0!"},{"$error":"#DIV/0!"},{"$error":"#DIV/0!"},{"$error":"#DIV/0!"},{"$error":"#DIV/0!"},{"$error":"#DIV/0!"},{"$error":"#DIV/0!"},{"$error":"#DIV/0!"},{"$error":"#DIV/0!"},{"$error":"#DIV/0!"},1]
["m82",{"$f":"title471","v":"Sub-total maintenance cost (USD)"},null,{"$f":"INDIRECT(\"COST_PS3!\"&$A49)","v":{"$error":"#DIV/0!"}},{"$error":"#DIV/0!"},{"$error":"#DIV/0!"},{"$error":"#DIV/0!"},{"$error":"#DIV/0!"},{"$error":"#DIV/0!"},{"$error":"#DIV/0!"},{"$error":"#DIV/0!"},{"$error":"#DIV/0!"},{"$error":"#DIV/0!"},{"$error":"#DIV/0!"},{"$error":"#DIV/0!"},{"$error":"#DIV/0!"},{"$error":"#DIV/0!"},{"$error":"#DIV/0!"},{"$error":"#DIV/0!"},{"$error":"#DIV/0!"},{"$error":"#DIV/0!"},{"$error":"#DIV/0!"},{"$error":"#DIV/0!"},{"$error":"#DIV/0!"},1]
[null,null,null,null,null,null,null,null,null,null,null,null,null,null,null,null,null,null,null,null,null,null,null,null,1]
["m82",{"$f":"title472","v":"Sub-total of annual fixed cost (USD)"},null,{"$f":"F38","v":{"$error":"#DIV/0!"}},{"$f":"D51","v":{"$error":"#DIV/0!"}},{"$f":"E51","v":{"$error":"#DIV/0!"}},{"$error":"#DIV/0!"},{"$error":"#DIV/0!"},{"$error":"#DIV/0!"},{"$error":"#DIV/0!"},{"$error":"#DIV/0!"},{"$error":"#DIV/0!"},{"$error":"#DIV/0!"},{"$error":"#DIV/0!"},{"$error":"#DIV/0!"},{"$error":"#DIV/0!"},{"$error":"#DIV/0!"},{"$error":"#DIV/0!"},{"$error":"#DIV/0!"},{"$error":"#DIV/0!"},{"$error":"#DIV/0!"},{"$error":"#DIV/0!"},{"$error":"#DIV/0!"},{"$error":"#DIV/0!"},1]
[null,null,null,null,null,null,null,null,null,null,null,null,null,null,null,null,null,null,null,null,null,null,null,null,1]
["l73",{"$f":"title473","v":"Sub-total of storage cost (USD)"},null,{"$f":"INDIRECT(\"COST_PS3!\"&$A53)","v":0},0,0,0,0,0,0,0,0,0,0,0,0,0,0,0,0,0,0,0,0,1]
[null,null,null,null,null,null,null,null,null,null,null,null,null,null,null,null,null,null,null,null,null,null,null,null,1]
[null,{"$f":"title474","v":"Total operation and maintenance cost (USD)"},null,{"$f":"D43+D45+D49+D51+D53","v":{"$error":"#DIV/0!"}},{"$f":"E43+E45+E49+E51+E53","v":{"$error":"#DIV/0!"}},{"$error":"#DIV/0!"},{"$error":"#DIV/0!"},{"$error":"#DIV/0!"},{"$error":"#DIV/0!"},{"$error":"#DIV/0!"},{"$error":"#DIV/0!"},{"$error":"#DIV/0!"},{"$error":"#DIV/0!"},{"$error":"#DIV/0!"},{"$error":"#DIV/0!"},{"$error":"#DIV/0!"},{"$error":"#DIV/0!"},{"$error":"#DIV/0!"},{"$error":"#DIV/0!"},{"$error":"#DIV/0!"},{"$error":"#DIV/0!"},{"$error":"#DIV/0!"},{"$error":"#DIV/0!"},{"$error":"#DIV/0!"},1]
[null,null,null,null,null,null,null,null,null,null,null,null,null,null,null,null,null,null,null,null,null,null,null,null,1]
[null,null,null,null,null,null,null,null,null,null,null,null,null,null,null,null,null,null,null,null,null,null,null,null,1]
[null,{"$f":"title155","v":"Financial parameters"},null,null,null,null,null,null,null,null,null,null,null,null,null,null,null,null,null,null,null,null,null,null,1]
[null,{"$f":"title446","v":"Operating Year"},null,{"$f":"title464","v":"Appraisal"},1,2,3,4,5,6,7,8,9,10,11,12,13,14,15,16,17,18,19,20,1]
[null,{"$f":"title161&\"(%)\"","v":"Discount rate(%)"},null,{"$f":"'Data entry needs'!$L$118","v":0},null,null,null,null,null,null,null,null,null,null,null,null,null,null,null,null,null,null,null,null,1]
[null,{"$f":"title475","v":"Loan ratio (%)"},null,{"$f":"'Data entry needs'!$F$118","v":0},null,null,null,null,null,null,null,null,null,null,null,null,null,null,null,null,null,null,null,null,1]
[null,null,null,null,null,null,null,null,null,null,null,null,null,null,null,null,null,null,null,null,null,null,null,null,1]
[null,null,null,null,null,null,null,null,null,null,null,null,null,null,null,null,null,null,null,null,null,null,null,null,1]
[null,{"$f":"title446","v":"Operating Year"},null,{"$f":"title464","v":"Appraisal"},1,2,3,4,5,6,7,8,9,10,11,12,13,14,15,16,17,18,19,20,1]
[null,{"$f":"title476","v":"Loan amount (USD)"},null,{"$f":"D61*(D38)","v":{"$error":"#DIV/0!"}},null,null,null,null,null,null,null,null,null,null,null,null,null,null,null,null,null,null,null,null,1]
[null,{"$f":"title162&\"(%)\"","v":"Loan interest rate(%)"},null,{"$f":"'Data entry needs'!$L$119","v":0},null,null,null,null,null,null,null,null,null,null,null,null,null,null,null,null,null,null,null,null,1]
[null,{"$f":"title165","v":"Loan term (years)"},null,{"$f":"D26","v":0},null,null,null,null,null,null,null,null,null,null,null,null,null,null,null,null,null,null,null,null,1]
[null,{"$f":"title315&\" (\"&title318&\")\"","v":"Loan payment (USD/month)"},null,{"$f":"(PMT($D$66/12,($D$67*12),$D$65))","v":{"$error":"#DIV/0!"}}]
[null,{"$f":"title315&\" (\"&title319&\")\"","v":"Loan payment (USD/year)"},null,{"$f":"D68*12","v":{"$error":"#DIV/0!"}},null,null,null,null,null,null,null,null,null,null,null,null,null,null,null,null,null,null,null,null,1]
[null,{"$f":"title315&\" (\"&title319&\")\"","v":"Loan payment (USD/year)"},null,null,{"$f":"IF(E64<=$D$67,$D$68*12,0)","v":0},{"$f":"IF(F64<=$D$67,$D$68*12,0)","v":0},0,0,0,0,0,0,0,0,0,0,0,0,0,0,0,0,0,0,1]
[null,{"$f":"title477","v":"Total loan payment (USD)"},null,{"$f":"SUM(E70:X70)","v":0},null,null,null,null,null,null,null,null,null,null,null,null,null,null,null,null,null,null,null,null,1]
[null,{"$f":"title478","v":"Loan interest payment (USD)"},null,{"$f":"D71+D65","v":{"$error":"#DIV/0!"}},{"$f":"title479","v":"loan interest payment for project lifetime"},null,null,null,null,null,null,null,null,null,null,null,null,null,null,null,null,null,null,null,1]
[null,null,null,null,null,null,null,null,null,null,null,null,null,null,null,null,null,null,null,null,null,null,null,null,1]
[null,{"$f":"title285","v":"Depreciation"},null,null,null,null,null,null,null,null,null,null,null,null,null,null,null,null,null,null,null,null,null,null,1]
[null,{"$f":"title446","v":"Operating Year"},null,{"$f":"title464","v":"Appraisal"},1,2,3,4,5,6,7,8,9,10,11,12,13,14,15,16,17,18,19,20,1]
[null,{"$f":"title480","v":"Depreciation method"},null,{"$f":"title482","v":"Straight-line"},null,null,null,null,null,null,null,null,null,null,null,null,null,null,null,null,null,null,null,null,1]
[null,{"$f":"title481","v":"Total depreciation (USD)"},null,null,{"$f":"$F$38","v":{"$error":"#DIV/0!"}},{"$f":"$F$38","v":{"$error":"#DIV/0!"}},{"$error":"#DIV/0!"},{"$error":"#DIV/0!"},{"$error":"#DIV/0!"},{"$error":"#DIV/0!"},{"$error":"#DIV/0!"},{"$error":"#DIV/0!"},{"$error":"#DIV/0!"},{"$error":"#DIV/0!"},{"$error":"#DIV/0!"},{"$error":"#DIV/0!"},{"$error":"#DIV/0!"},{"$error":"#DIV/0!"},{"$error":"#DIV/0!"},{"$error":"#DIV/0!"},{"$error":"#DIV/0!"},{"$error":"#DIV/0!"},{"$error":"#DIV/0!"},{"$error":"#DIV/0!"},1]
[null,null,null,null,null,null,null,null,null,null,null,null,null,null,null,null,null,null,null,null,null,null,null,null,1]
[null,{"$f":"title483","v":"Base case Project Summary"},null,null,null,null,null,null,null,null,null,null,null,null,null,null,null,null,null,null,null,null,null,null,1]
[null,{"$f":"title484","v":"Summary of this project"},null,null,null,null,null,null,null,null,null,null,null,null,null,null,null,null,null,null,null,null,null,null,1]
[null,{"$f":"title446","v":"Operating Year"},null,{"$f":"title464","v":"Appraisal"},1,2,3,4,5,6,7,8,9,10,11,12,13,14,15,16,17,18,19,20,1]
[null,{"$f":"title485","v":"Total revenue (USD)"},null,null,{"$f":"E24","v":{"$error":"#DIV/0!"}},{"$f":"F24","v":{"$error":"#DIV/0!"}},{"$error":"#DIV/0!"},{"$error":"#DIV/0!"},{"$error":"#DIV/0!"},{"$error":"#DIV/0!"},{"$error":"#DIV/0!"},{"$error":"#DIV/0!"},{"$error":"#DIV/0!"},{"$error":"#DIV/0!"},{"$error":"#DIV/0!"},{"$error":"#DIV/0!"},{"$error":"#DIV/0!"},{"$error":"#DIV/0!"},{"$error":"#DIV/0!"},{"$error":"#DIV/0!"},{"$error":"#DIV/0!"},{"$error":"#DIV/0!"},{"$error":"#DIV/0!"},{"$error":"#DIV/0!"},1]
[null,{"$f":"title463","v":"Total capital cost (USD)"},null,{"$f":"-D38*(1-$D$61)","v":{"$error":"#DIV/0!"}},null,null,null,null,null,null,null,null,null,null,null,null,null,null,null,null,null,null,null,null,1]
[null,{"$f":"title486","v":"Total operating and maintenance cost (USD)"},null,null,{"$f":"-E55+E51","v":{"$error":"#DIV/0!"}},{"$f":"-F55+F51","v":{"$error":"#DIV/0!"}},{"$f":"-G55+G51","v":{"$error":"#DIV/0!"}},{"$error":"#DIV/0!"},{"$error":"#DIV/0!"},{"$error":"#DIV/0!"},{"$error":"#DIV/0!"},{"$error":"#DIV/0!"},{"$error":"#DIV/0!"},{"$error":"#DIV/0!"},{"$error":"#DIV/0!"},{"$error":"#DIV/0!"},{"$error":"#DIV/0!"},{"$error":"#DIV/0!"},{"$error":"#DIV/0!"},{"$error":"#DIV/0!"},{"$error":"#DIV/0!"},{"$error":"#DIV/0!"},{"$error":"#DIV/0!"},{"$error":"#DIV/0!"},1]
[null,{"$f":"title487","v":"Loan payment (USD)"},null,null,{"$f":"+E70","v":0},{"$f":"+F70","v":0},{"$f":"+G70","v":0},0,0,0,0,0,0,0,0,0,0,0,0,0,0,0,0,0,1]
[null,{"$f":"title488","v":"Cash flow with loan (USD)"},null,{"$f":"SUM(D82:D85)","v":{"$error":"#DIV/0!"}},{"$f":"SUM(E82:E85)","v":{"$error":"#DIV/0!"}},{"$f":"SUM(F82:F85)","v":{"$error":"#DIV/0!"}},{"$f":"SUM(G82:G85)","v":{"$error":"#DIV/0!"}},{"$error":"#DIV/0!"},{"$error":"#DIV/0!"},{"$error":"#DIV/0!"},{"$error":"#DIV/0!"},{"$error":"#DIV/0!"},{"$error":"#DIV/0!"},{"$error":"#DIV/0!"},{"$error":"#DIV/0!"},{"$error":"#DIV/0!"},{"$error":"#DIV/0!"},{"$error":"#DIV/0!"},{"$error":"#DIV/0!"},{"$error":"#DIV/0!"},{"$error":"#DIV/0!"},{"$error":"#DIV/0!"},{"$error":"#DIV/0!"},{"$error":"#DIV/0!"},1]
[null,{"$f":"title489","v":"Cash flow without loan (USD)"},null,{"$f":"-D38","v":{"$error":"#DIV/0!"}},{"$f":"+E82+E84","v":{"$error":"#DIV/0!"}},{"$f":"+F82+F84","v":{"$error":"#DIV/0!"}},{"$f":"+G82+G84","v":{"$error":"#DIV/0!"}},{"$error":"#DIV/0!"},{"$error":"#DIV/0!"},{"$error":"#DIV/0!"},{"$error":"#DIV/0!"},{"$error":"#DIV/0!"},{"$error":"#DIV/0!"},{"$error":"#DIV/0!"},{"$error":"#DIV/0!"},{"$error":"#DIV/0!"},{"$error":"#DIV/0!"},{"$error":"#DIV/0!"},{"$error":"#DIV/0!"},{"$error":"#DIV/0!"},{"$error":"#DIV/0!"},{"$error":"#DIV/0!"},{"$error":"#DIV/0!"},{"$error":"#DIV/0!"},1]
[null,{"$f":"title446","v":"Operating Year"},null,{"$f":"title464","v":"Appraisal"},1,2,3,4,5,6,7,8,9,10,11,12,13,14,15,16,17,18,19,20,1]
[null,{"$f":"title490","v":"Cumulative value of Net Profit"},null,{"$f":"D86","v":{"$error":"#DIV/0!"}},{"$f":"D89+(E86)","v":{"$error":"#DIV/0!"}},{"$f":"E89+(F86)","v":{"$error":"#DIV/0!"}},{"$error":"#DIV/0!"},{"$error":"#DIV/0!"},{"$error":"#DIV/0!"},{"$error":"#DIV/0!"},{"$error":"#DIV/0!"},{"$error":"#DIV/0!"},{"$error":"#DIV/0!"},{"$error":"#DIV/0!"},{"$error":"#DIV/0!"},{"$error":"#DIV/0!"},{"$error":"#DIV/0!"},{"$error":"#DIV/0!"},{"$error":"#DIV/0!"},{"$error":"#DIV/0!"},{"$error":"#DIV/0!"},{"$error":"#DIV/0!"},{"$error":"#DIV/0!"},{"$error":"#DIV/0!"},1]
[null,null,null,null,null,null,null,null,null,null,null,null,null,null,null,null,null,null,null,null,null,null,null,null,1]
[null,{"$f":"title491","v":"Financial Analysis Result"},null,null,null,null,null,null,null,null,null,null,null,null,null,null,null,null,null,null,null,null,null,null,1]
[null,null,null,null,null,null,null,null,null,null,null,null,null,null,null,null,null,null,null,null,null,null,null,null,1]
[null,{"$f":"title493","v":"Net Present Value (NPV) (USD)"},null,{"$f":"NPV(D60,E86:AA86)+D86","v":{"$error":"#DIV/0!"}},null,null,null,null,null,null,null,null,null,null,null,null,null,null,null,null,null,null,null,null,1]
[null,{"$f":"title494","v":"Internal Rate of Return (IRR) (%) - without loan"},null,{"$f":"IF(D93<0,title492,IRR(D87:AA87,0.001))","v":{"$error":"#DIV/0!"}},null,null,null,null,null,null,null,null,null,null,null,null,null,null,null,null,null,null,null,null,1]
[null,{"$f":"title495","v":"Internal Rate of Return (IRR) (%) - with loan"},null,{"$f":"IF(D94<0,title492,IRR(D86:AA86,0.001))","v":{"$error":"#DIV/0!"}},null,null,null,null,null,null,null,null,null,null,null,null,null,null,null,null,null,null,null,null,1]
[null,null,null,null,null,null,null,null,null,null,null,null,null,null,null,null,null,null,null,null,null,null,null,null,1]
[null,null,null,null,null,null,null,null,null,null,null,null,null,null,null,null,null,null,null,null,null,null,null,null,1]

{"sheet":"PRICE_FS1_PS3","index":43,"n_rows":178,"n_cols":39,"rows_kept":178,"cut":false,"hidden":true,"merged":[[40,8,40,9],[2,2,2,9],[5,2,5,3],[5,4,5,6],[7,2,10,9],[14,6,14,7],[15,2,15,3],[15,6,15,7],[30,3,30,7],[33,4,34,4],[33,5,34,5],[33,6,34,9],[34,2,34,3],[64,9,66,9],[86,3,86,7],[41,8,41,9],[57,3,57,7],[61,4,61,5],[61,6,62,6],[62,4,62,5],[64,2,64,3],[64,4,64,5],[64,6,66,6],[64,7,66,7],[64,8,66,8]]}
[57,88]
[]
[null,null,{"$f":"+title324&UPPER(INDIRECT(\"'Data entry needs'!$d$\"&$A$1)&\"-\"&INDIRECT(\"'Data entry needs'!$e$\"&$A$1))","v":"COLLECTION COSTS CALCULATOR FOR PLEASE SELECT-PLEASE SELECT"}]
[]
[]
[null,null,{"$f":"title193","v":"Use white cells to input data"},null,{"$f":"title194","v":"Grey cells are used for calculations"}]
[]
[null,null,{"$f":"title325&INDIRECT(\"'Data entry needs'!$d$\"&$A$1)&title326","v":"No collection method is required. It is assumed that Please Select are already collected. Then, transportation cost and/or market price should be considered."}]
[]
[]
[]
[]
[null,null,{"$f":"title327","v":"Collection Method 1 - Biomass spread in the field"}]
[]
[null,null,{"$f":"title328","v":"Collecting method"},null,{"$f":"title329","v":"Biomass Yield"},null,{"$f":"title110","v":"Feedstock Available (t/year)"},null,{"$f":"title330","v":"Collection days"}]
[null,null,"Mechanized",null,null,"t/ha",{"$f":"INDIRECT(\"'Data entry needs'!$F$\"&$A$1)","v":0},null,{"$f":"'Data entry needs'!L100-INDIRECT(\"Planner_pS3!$AN$\"&$B$1)*21","v":-252}]
[]
[null,null,{"$f":"title331","v":"Biomass Collection definition"}]
[]
[null,null,{"$f":"title332","v":"Biomass Price Definition"},null,null,null,null,null,null,null,null,null,null,null,null,null,null,null,null,null,null,{"$f":"title405","v":"Collection method"},null,{"$f":"title382","v":"Mechanized"},{"$f":"title380","v":"Number of skilled workers"},{"$f":"title409","v":"person-hour/ha"}]
[null,null,{"$f":"title333","v":"Labour cost"},{"$f":"title270","v":"Quantity"},{"$f":"title27","v":"Unit"},{"$f":"title270","v":"Quantity"},null,{"$f":"title27","v":"Unit"},"Total",{"$f":"title27","v":"Unit"},null,null,null,null,null,null,null,null,null,null,null,{"$f":"$C$16","v":"Mechanized"},null,{"$f":"title382&2","v":"Mechanized2"},{"$f":"title336","v":"Skilled labour wage"},{"$f":"title128","v":"USD/person-hour"}]
[null,null,{"$f":"IFERROR(VLOOKUP($V$21&$W21,$X$20:$Z$31,2,FALSE),\"\")","v":"Number of skilled workers"},null,{"$f":"IFERROR(VLOOKUP($V$21&$W21,$X$20:$Z$31,3,FALSE),\"\")","v":"person-hour/ha"},{"$f":"IFERROR(VLOOKUP($V$21&$W23,$X$20:$Z$31,2,FALSE),\"\")","v":"Skilled labour wage"},{"$f":"IF(F22=\"\",\"\",IF(F22=title335,'Data entry needs'!$L$96,IF(F22=title336,'Data entry needs'!F96)))","v":0},{"$f":"IFERROR(VLOOKUP($V$21&$W23,$X$20:$Z$31,3,FALSE),\"\")","v":"USD/person-hour"},{"$f":"IFERROR(G22*D22*(G16/E16)*('Data entry needs'!$L$100/$I$16),0)","v":0},{"$f":"IF(C22=\"\",\"\",title319)","v":"USD/year"},null,null,null,null,null,null,null,null,null,null,null,null,1,{"$f":"title382&4","v":"Mechanized4"},{"$f":"title407","v":"Average fuel economy"},"l/h"]
[null,null,{"$f":"IFERROR(VLOOKUP($V$21&$W22,$X$20:$Z$31,2,FALSE),\"\")","v":""},null,{"$f":"IFERROR(VLOOKUP($V$21&$W22,$X$20:$Z$31,3,FALSE),\"\")","v":""},{"$f":"IFERROR(VLOOKUP($V$21&$W24,$X$20:$Z$31,2,FALSE),\"\")","v":""},{"$f":"IF(F23=\"\",\"\",'Data entry needs'!L96)","v":""},{"$f":"title128","v":"USD/person-hour"},{"$f":"IFERROR(G23*D23*(G16/E16)*('Data entry needs'!$L$100/$I$16),0)","v":0},{"$f":"IF(C23=\"\",\"\",title319)","v":""},null,null,null,null,null,null,null,null,null,null,null,{"$f":"VLOOKUP($V$21,$T$29:$U$31,2,FALSE)","v":1},2,{"$f":"title382&5","v":"Mechanized5"},{"$f":"title408","v":"Fuel price"},"USD/l"]
[null,null,null,{"$f":"+IF(AND(C22=\"\",C23=\"\"),0,IF(C22=\"\",D23,IF(C23=\"\",D22,D22+D23)))","v":0},null,null,null,{"$f":"title269","v":"Subtotal"},{"$f":"+SUMIF($I$22:$I$23,\">0\")","v":0},{"$f":"title319","v":"USD/year"},null,null,null,null,null,null,null,null,null,null,null,null,3,{"$f":"title378","v":"Semi-mechanized"},{"$f":"title380","v":"Number of skilled workers"},{"$f":"title409","v":"person-hour/ha"}]
[null,null,{"$f":"title334","v":"Machinery & operating cost"},{"$f":"title270","v":"Quantity"},{"$f":"title27","v":"Unit"},{"$f":"title270","v":"Quantity"},null,{"$f":"title27","v":"Unit"},"Total",{"$f":"title27","v":"Unit"},null,null,null,null,null,null,null,null,null,null,null,null,4,{"$f":"title378&1","v":"Semi-mechanized1"},{"$f":"title379","v":"Number of unskilled workers"},{"$f":"title409","v":"person-hour/ha"}]
[null,null,{"$f":"IFERROR(VLOOKUP($V$21&$W25,$X$20:$Z$31,2,FALSE),\"\")","v":"Average fuel economy"},null,{"$f":"IFERROR(VLOOKUP($V$21&$W25,$X$20:$Z$31,3,FALSE),\"\")","v":"l/h"},{"$f":"IFERROR(VLOOKUP($V$21&$W26,$X$20:$Z$31,2,FALSE),\"\")","v":"Fuel price"},{"$f":"IF(F26=\"\",\"\",'Data entry needs'!$F$100)","v":0},{"$f":"+IFERROR(VLOOKUP($V$21&$W26,$X$20:$Z$31,3,FALSE),\"\")","v":"USD/l"},{"$f":"+IFERROR(D26*G26*IF($C$16=title337,0,$D$22*G16/E16)*('Data entry needs'!$L$100/$I$16),\"\")","v":""},{"$f":"IF(C26=\"\",\"\",title319)","v":"USD/year"},null,null,null,null,null,null,null,null,null,null,null,null,5,{"$f":"title378&2","v":"Semi-mechanized2"},{"$f":"title336","v":"Skilled labour wage"},{"$f":"title128","v":"USD/person-hour"}]
[null,null,null,null,null,null,null,{"$f":"IF(C26=\"\",\"\",title269)","v":"Subtotal"},{"$f":"+I26","v":""},{"$f":"IF(C26=\"\",\"\",title319)","v":"USD/year"},null,null,null,null,null,null,null,null,null,null,null,null,null,{"$f":"title378&3","v":"Semi-mechanized3"},{"$f":"title335","v":"Unskilled labour wage"},{"$f":"title128","v":"USD/person-hour"}]
[null,null,null,null,null,null,null,{"$f":"IF(C26=\"\",\"\",\"Total\")","v":"Total"},{"$f":"IFERROR(I24+I27,I24)","v":0},{"$f":"title319","v":"USD/year"},null,null,null,null,null,null,null,null,null,{"$f":"title405","v":"Collection method"},null,null,null,{"$f":"title378&4","v":"Semi-mechanized4"},{"$f":"title407","v":"Average fuel economy"},"l/h"]
[null,null,null,null,null,null,null,null,null,null,null,null,null,null,null,null,null,null,null,{"$f":"title382","v":"Mechanized"},1,null,null,{"$f":"title378&5","v":"Semi-mechanized5"},{"$f":"title408","v":"Fuel price"},"USD/l"]
[null,null,null,null,null,null,null,null,"",null,null,null,null,null,null,null,null,null,null,{"$f":"title378","v":"Semi-mechanized"},2,null,null,{"$f":"title337","v":"Manual"},{"$f":"title379","v":"Number of unskilled workers"},{"$f":"title409","v":"person-hour/ha"}]
[null,null,null,{"$f":"title338&INDIRECT(\"'Data entry needs'!$d$\"&$A$1)&\"-\"&INDIRECT(\"'Data entry needs'!$e$\"&$A$1)","v":"Collection cost of Please Select-Please Select"},null,null,null,null,{"$f":"(I24+I28)/$G$16","v":{"$error":"#DIV/0!"}},"USD/t",null,null,null,null,null,null,null,null,null,{"$f":"title337","v":"Manual"},3,null,null,{"$f":"title337&2","v":"Manual2"},{"$f":"title335","v":"Unskilled labour wage"},{"$f":"title128","v":"USD/person-hour"}]
[]
[]
[null,null,null,null,false,null,{"$f":"IF($E$34,title340,title341)","v":"Use this method for feedstock collected and transported from different farms to a central collection point"}]
[null,null,{"$f":"title339","v":"Collection Methods Available"}]
[]
[null,null,{"$f":"title342","v":"Collection Method 2"}]
[]
[null,null,{"$f":"title328","v":"Collecting method"},{"$f":"title343","v":"Transportation requirements"},null,null,null,null,{"$f":"title346","v":"Data Source"}]
[]
[null,null,"Please Select",{"$f":"title110","v":"Feedstock Available (t/year)"},{"$f":"INDIRECT(\"'Data entry needs'!$F$\"&$A$1)","v":0},{"$f":"title344","v":"Initial ts in residue (%)"},null,{"$f":"INDIRECT(\"'Data entry needs'!$h$\"&$A$1)","v":0},false]
[null,null,null,{"$f":"title134","v":"Operating days per year"},{"$f":"'Data entry needs'!L100-INDIRECT(\"Planner_pS3!$AN$\"&$B$1)*21","v":-252},{"$f":"title345&$C$41","v":"ts (%) allowed by Please Select"},null,{"$f":"Q45","v":{"$error":"#N/A"}}]
[]
[null,null,{"$f":"title347","v":"Collection Cost Definition"}]
[null,null,{"$f":"title348","v":"Operation Cost"},{"$f":"title270","v":"Quantity"},{"$f":"title27","v":"Unit"},{"$f":"title270","v":"Quantity"},{"$f":"title27","v":"Unit"},{"$f":"title267","v":"Unit Price"},"Total",null,null,null,null,null,null,"ts (%) transported",{"$f":"VLOOKUP($C$41,$P$149:$V$155,7,FALSE)","v":{"$error":"#N/A"}}]
[null,null,{"$f":"title35","v":"Electricity"},{"$f":"Q46","v":13.333333333333334},"kWh/t res",{"$f":"D46*E41","v":0},{"$f":"title304","v":"kWh/year"},{"$f":"'Data entry needs'!$L$92","v":0},{"$f":"F46*H46","v":0},{"$f":"title319","v":"USD/year"},null,null,null,null,null,{"$f":"title35","v":"Electricity"},{"$f":"$Q$160","v":13.333333333333334}]
[null,null,{"$f":"title170","v":"Diesel"},{"$f":"Q47","v":{"$error":"#N/A"}},{"$f":"title574","v":"l diesel/t res"},{"$f":"D47*$E$41","v":{"$error":"#N/A"}},{"$f":"title350","v":"Liter Diesel/year"},{"$f":"'Data entry needs'!$F$100","v":0},{"$f":"F47*H47","v":{"$error":"#N/A"}},{"$f":"title319","v":"USD/year"},null,null,null,null,null,{"$f":"title170","v":"Diesel"},{"$f":"VLOOKUP($C$41,$P$149:$S$155,2,FALSE)","v":{"$error":"#N/A"}}]
[null,null,{"$f":"title244","v":"Water Make-up "},{"$f":"Q48","v":0.15},{"$f":"title353","v":"Liter water/t res"},{"$f":"IF(D48=0,0,E41*(H41/H42)*(1-D48))","v":{"$error":"#N/A"}},{"$f":"title351","v":"Liter water/year"},{"$f":"'Data entry needs'!$F$92","v":0},{"$f":"F48*H48*D48","v":{"$error":"#N/A"}},{"$f":"title319","v":"USD/year"},null,null,null,null,null,{"$f":"title244","v":"Water Make-up "},0.15]
[null,null,{"$f":"title349","v":"Unskilled Workers"},{"$f":"Q49","v":{"$error":"#N/A"}},{"$f":"title354","v":"person-day/t res"},{"$f":"ROUNDUP($D$49*E41*('Data entry needs'!$L$100/PRICE_FS1_PS3!E42)/'Data entry needs'!$L$99,0)","v":{"$error":"#N/A"}},{"$f":"title352","v":"person-hour"},{"$f":"'Data entry needs'!$L$96","v":0},{"$f":"F49*H49","v":{"$error":"#N/A"}},{"$f":"title319","v":"USD/year"},null,null,null,null,null,{"$f":"title127","v":"Unskilled worker"},{"$f":"VLOOKUP($C$41,$P$149:$S$155,3,FALSE)","v":{"$error":"#N/A"}}]
[null,null,null,{"$f":"Q47","v":{"$error":"#N/A"}},null,null,null,{"$f":"title269","v":"Subtotal"},{"$f":"+SUMIF($I$46:$I$49,\">0\")","v":0},{"$f":"title319","v":"USD/year"}]
[]
[null,null,{"$f":"title355","v":"Capital Investment"},{"$f":"title270","v":"Quantity"},{"$f":"title27","v":"Unit"}]
[null,null,{"$f":"$C$41&title356","v":"Please Select and equipment"},{"$f":"Q53","v":{"$error":"#N/A"}},{"$f":"VLOOKUP($C$41,$P$149:$T$155,5,FALSE)","v":{"$error":"#N/A"}},null,null,null,{"$f":"D53*(E41*10)/20","v":{"$error":"#N/A"}},{"$f":"title319","v":"USD/year"},null,null,null,null,null,{"$f":"$C$41&title356","v":"Please Select and equipment"},{"$f":"VLOOKUP($C$41,$P$149:$S$155,4,FALSE)","v":{"$error":"#N/A"}}]
[null,null,{"$f":"title357","v":"Dewatering"},{"$f":"Q54","v":7},"USD/t res",null,null,null,{"$f":"D54*$E$41/20","v":0},{"$f":"title319","v":"USD/year"},null,null,null,null,null,{"$f":"title357","v":"Dewatering"},{"$f":"$Q$158","v":7}]
[null,null,{"$f":"title358","v":"Operation and Mainteinance"},{"$f":"Q55","v":0.15},null,null,null,null,{"$f":"SUM(I53:I54)*$D$55","v":{"$error":"#N/A"}},{"$f":"title319","v":"USD/year"},null,null,null,null,null,{"$f":"title358","v":"Operation and Mainteinance"},0.15]
[null,null,null,{"$f":"+IF(AND(C54=\"\",C55=\"\"),0,IF(C54=\"\",D55,IF(C55=\"\",D54,D54+D55)))","v":7.15},null,null,null,{"$f":"title269","v":"Subtotal"},{"$f":"+SUMIF(I53:I55,\">0\")","v":0},{"$f":"title319","v":"USD/year"}]
[]
[null,null,null,{"$f":"title359","v":"Cost for Collection and transfer to storage tank"},null,null,null,null,{"$f":"SUM(I50+I56)/E41","v":{"$error":"#DIV/0!"}},"USD/t"]
[]
[null,null,{"$f":"title360","v":"Collection Method 3 - Feedstock collected from different farms"}]
[]
[null,null,{"$f":"title361","v":"Source of biomass"},null,{"$f":"title405","v":"Collection method"},null,{"$f":"title346","v":"Data Source"},false]
[null,null,{"$f":"title362","v":"Transfer from individual farms"},null,"Mechanized"]
[]
[null,null,{"$f":"title363","v":"Transportation method"},null,"Tanker Truck Transfer",null,{"$f":"title372","v":"Number Of Farms Supplying Feedstock"},{"$f":"title373","v":"Average distance to collection point (m)"},{"$f":"title374","v":"Collection Period (days)"},{"$f":"IF($E$65=title364,title375,title376)&title377","v":"Number of Tanks required"}]
[]
[null,null,{"$f":"IF($E$65=title364,title365,title366)","v":"Tranport Capacity (liter)"},null,{"$f":"title370","v":"Residue Quanitiy (t/year)"},{"$f":"INDIRECT(\"'Data entry needs'!$F$\"&$A$1)","v":0},null,null,null,null,null,null,null,null,null,{"$f":"IF($E$60=title364,title365,title366)","v":"Pipe Diameter (in)"},{"$f":"VLOOKUP($E$65,$Y$147:$AE$149,3,FALSE)","v":27600}]
[null,null,{"$f":"IF($E$65=title364,title367,title368)","v":"Engine Power (HP)"},null,{"$f":"title371","v":"Residue Density (kg/m3)"},null,null,null,{"$f":"'Data entry needs'!L100-INDIRECT(\"Planner_pS3!$AN$\"&$B$1)*21","v":-252},{"$f":"IFERROR(ROUNDUP($F$67*1000*1000/(960*$D$69*'Data entry needs'!$L$99)/$I$68,0),0)","v":0},null,null,null,null,null,{"$f":"IF($E$60=title364,title367,title368)","v":"Motor Power (HP)"},{"$f":"VLOOKUP($E$65,$Y$147:$AE$149,4,FALSE)","v":200}]
[null,null,{"$f":"title369","v":"Transfer Rate (l/h)"},null,null,null,null,null,null,null,null,null,null,null,null,{"$f":"title369","v":"Transfer Rate (l/h)"},{"$f":"VLOOKUP($E$65,$Y$147:$AE$149,5,FALSE)","v":27221.917808219176}]
[]
[null,null,null,{"$f":"+IF(OR($E$63=title337,$E$63=title378),FALSE,TRUE)","v":true},{"$f":"+IF($E$63=title337,TRUE,FALSE)","v":false}]
[null,null,{"$f":"title332","v":"Biomass Price Definition"},null,null,null,null,null,null,null,null,null,null,null,null,{"$f":"title371","v":"Residue Density (kg/m3)"},{"$f":"IFERROR(VLOOKUP(INDIRECT(\"'Data entry needs'!$e$\"&$A$1),PRICE_FS1_PS3!$Y$152:$Z$156,2,FALSE),1000)","v":1000}]
[null,null,{"$f":"title333","v":"Labour cost"},{"$f":"title270","v":"Quantity"},{"$f":"title27","v":"Unit"},{"$f":"title270","v":"Quantity"},null,{"$f":"title27","v":"Unit"},"Total",{"$f":"title27","v":"Unit"}]
[null,null,{"$f":"IF(OR($E$63=title337,$E$63=title378),title379,\"\")","v":""},null,{"$f":"IF(OR($E$63=title337,$E$63=title378),title381,\"\")","v":""},{"$f":"IF(OR($E$63=title337,$E$63=title378),title335,\"\")","v":""},{"$f":"IF(OR($E$63=title337,$E$63=title378),'Data entry needs'!$L$96,\"\")","v":""},{"$f":"IF(OR($E$63=title337,$E$63=title378),title128,\"\")","v":""},{"$f":"IFERROR(IF(OR($E$63=title337,$E$63=title378),$F$67*D74*$G$74,\"\"),0)","v":""},{"$f":"IF(OR($E$63=title337,$E$63=title378),title319,\"\")","v":""}]
[null,null,{"$f":"IF($E$63=title337,\"\",title380)","v":"Number of skilled workers"},null,{"$f":"IF($E$63=title337,\"\",title381)","v":"person-hour/t"},{"$f":"IF($E$63=title337,\"\",title336)","v":"Skilled labour wage"},{"$f":"IF($E$63=title337,\"\",'Data entry needs'!$F$96)","v":0},{"$f":"IF($E$63=title337,\"\",title128)","v":"USD/person-hour"},{"$f":"IFERROR(IF($E$63=title337,\"\",D75*G75*$F$67),0)","v":0},{"$f":"IF($E$63=title337,\"\",title319)","v":"USD/year"}]
[null,null,null,{"$f":"+IF(AND(C74=\"\",C75=\"\"),0,IF(C74=\"\",D75,IF(C75=\"\",D74,D74+D75)))","v":0},null,null,null,{"$f":"title269","v":"Subtotal"},{"$f":"+SUMIF($I$74:$I$75,\">0\")","v":0},{"$f":"title319","v":"USD/year"}]
[null,null,{"$f":"title383","v":"Collection Machinery"},{"$f":"title270","v":"Quantity"},{"$f":"title27","v":"Unit"},{"$f":"title270","v":"Quantity"},null,{"$f":"title27","v":"Unit"},"Total",{"$f":"title27","v":"Unit"}]
[null,null,{"$f":"IF(OR($E$63=title382,$E$63=title378),title384,\"\")","v":"Collection Diesel Consumption"},null,{"$f":"IF(OR($E$63=title382,$E$63=title378),title575,\"\")","v":"l diesel/h"},{"$f":"IF(OR($E$63=title382,$E$63=title378),title389,\"\")","v":"Diesel Cost"},{"$f":"IF(OR($E$63=title382,$E$63=title378),'Data entry needs'!F$100,\"\")","v":0},{"$f":"IF(OR($E$63=title382,$E$63=title378),title576,\"\")","v":"USD/l diesel"},{"$f":"IFERROR(IF(OR($E$63=title382,$E$63=title378),D78*G78*D75*F67,\"\"),0)","v":0},{"$f":"title319","v":"USD/year"}]
[null,null,{"$f":"IF($E$65=title364,title385,title386)","v":"Truck Diesel Consumption"},{"$f":"Q79","v":154},{"$f":"IF($E$65=title364,title387,title388)","v":"l diesel/day"},{"$f":"IF($E$65=title364,title389,title390)","v":"Diesel Cost"},{"$f":"IF($E$65=title364,'Data entry needs'!F$100,'Data entry needs'!$L$92)","v":0},{"$f":"IF($E$65=title364,title576,\"USD/kWh\")","v":"USD/l diesel"},{"$f":"IFERROR(D79*G79*$I$68*$J$68,0)","v":0},{"$f":"title319","v":"USD/year"},null,null,null,null,null,{"$f":"IF($E$60=title364,title385,title386)","v":"Pump Electricity Consumption"},{"$f":"VLOOKUP($E$65,$Y$147:$AE$149,7,FALSE)","v":154}]
[null,null,null,null,null,null,null,{"$f":"title269","v":"Subtotal"},{"$f":"+SUMIF($I$78:$I$79,\">0\")","v":0},{"$f":"title319","v":"USD/year"}]
[null,null,{"$f":"title391","v":"Equipment"},{"$f":"title270","v":"Quantity"},{"$f":"title27","v":"Unit"},{"$f":"title270","v":"Quantity"},null,{"$f":"title27","v":"Unit"},"Total",{"$f":"title27","v":"Unit"}]
[null,null,{"$f":"IF($E$65=title364,title392,title393)","v":"Liquid Tanker Truck"},{"$f":"IF($E$65=title364,$J$68,$G$68*$H$68*1.2)","v":0},{"$f":"IF($E$65=title364,title398,\"m\")","v":"tank(s)"},{"$f":"IF($E$65=title364,title399,title400)","v":"Cost per Tank"},{"$f":"VLOOKUP($E$65,$Y$147:$AF$149,8,FALSE)/10","v":7900},{"$f":"IF($E$65=title364,title402,title403)","v":"USD/tank/year"},{"$f":"IFERROR(D82*G82,0)","v":0},{"$f":"title319","v":"USD/year"}]
[null,null,{"$f":"IF($E$65=title364,title394&$D$68&title395,title396&$D$68&title397)","v":"Semi-tractor 185  HP"},null,"USD",{"$f":"title401","v":"Depreciation Period"},null,{"$f":"title164","v":"year"},{"$f":"IFERROR(D83*$J$68/G83,0)","v":0},{"$f":"title319","v":"USD/year"},null,null,null,null,null,{"$f":"IF($E$60=title364,title406,title396&$D$63&title397)","v":"Pump  HP with agitator"},{"$f":"VLOOKUP($E$65,$Y$147:$AH$149,10,FALSE)","v":148000}]
[null,null,{"$f":"title358","v":"Operation and Mainteinance"},{"$f":"Q84","v":0.15},null,null,null,null,{"$f":"IFERROR(SUM(I82:I83)*$D$84,0)","v":0},{"$f":"title319","v":"USD/year"},null,null,null,null,null,{"$f":"title358","v":"Operation and Mainteinance"},0.15]
[null,null,null,null,null,null,null,{"$f":"title269","v":"Subtotal"},{"$f":"I82","v":0},{"$f":"title319","v":"USD/year"},null,null,null,null,null,{"$f":"title401","v":"Depreciation Period"},15]
[]
[null,null,null,{"$f":"title404","v":"Cost for Collection and transfer to central collection point"},null,null,null,null,{"$f":"(I85+I80+I76)/$F$67","v":{"$error":"#DIV/0!"}},"USD/t"]
[]
[]
[]
[]
[]
[]
[]
[]
[]
[]
[]
[]
[]
[]
[]
[]
[]
[]
[]
[]
[]
[]
[]
[]
[]
[]
[]
[]
[]
[]
[]
[null,null,null,null,null,null,null,null,null,null,null,null,null,null,null,{"$f":"title410","v":"Sources of biomass"}]
[null,null,null,null,null,null,null,null,null,null,null,null,null,null,null,{"$f":"title411","v":"Biomass spread in the field"}]
[null,null,null,null,null,null,null,null,null,null,null,null,null,null,null,{"$f":"title412","v":"Biomass collected from field"}]
[null,null,null,null,null,null,null,null,null,null,null,null,null,null,null,{"$f":"title413","v":"Biomass from food processing plant"}]
[]
[]
[]
[]
[null,null,null,null,null,null,null,null,null,null,null,null,null,null,null,{"$f":"title405","v":"Collection method"}]
[null,null,null,null,null,null,null,null,null,null,null,null,null,null,null,{"$f":"title382","v":"Mechanized"}]
[null,null,null,null,null,null,null,null,null,null,null,null,null,null,null,{"$f":"title378","v":"Semi-mechanized"}]
[null,null,null,null,null,null,null,null,null,null,null,null,null,null,null,{"$f":"title337","v":"Manual"}]
[]
[]
[]
[]
[]
[]
[]
[]
[]
[]
[]
[]
[]
[]
[null,null,null,null,null,null,null,null,null,null,null,null,null,null,null,"Dairy maNURE",40.753799999999998,"Manure (kg/head/day)"]
[null,null,null,null,null,null,null,null,null,null,null,null,null,null,null,null,"Energy Use Cost","Labor and Mainteinance",null,null,null,"ts (%) transported","Dewateing",null,null,null,{"$f":"title440","v":"Capacity"},{"$f":"title441","v":"Engine/motor (hp)"},{"$f":"title369","v":"Transfer Rate (l/h)"},{"$f":"title442","v":"Transfer time (m/h)"},{"$f":"title443","v":"Energy Use  (kw)"},{"$f":"title444","v":"Add equipment"}]
[null,null,null,null,null,null,null,null,null,null,null,null,null,null,null,{"$f":"title405","v":"Collection method"},"liters diesel/t residue","workers*day/t residue","Capital cost","Capital cost","Capital cost",null,"Final solids ts (%)",null,{"$f":"title364","v":"Tanker Truck Transfer"},null,27600,200,27221.917808219176,609.6,154,79000,"USD",{"$f":"148000","v":148000},2010,{"$f":"title406","v":"Semi-tractor 185 HP"},null,null,"l/working day"]
[null,null,null,null,null,null,null,null,null,null,null,null,null,null,null,{"$f":"title74","v":"Please Select"},null,null,null,null,null,null,null,null,{"$f":"title432","v":"High Volume Pipeline"},null,"6´´ PVC",150,3028,1016,215,{"$f":"37/3.048","v":12.139107611548557},"USD/m",37075,2003]
[null,null,null,null,null,null,null,null,null,null,null,null,null,null,null,{"$f":"title414","v":"Alley Scrapers"},0.14330809896079807,0.42057427773606393,{"$f":"(AVERAGE(35,45)*$B$52+10000+4000)/3785.41178","v":3.698408736922143},{"$f":"title421","v":"USD/liter mixture"},2009,0.08,0.5,null,{"$f":"title433","v":"Low Volume Pipeline"},null,"4´´ PVC",7.5,378,127,86,{"$f":"12.4/3.048","v":4.0682414698162734},"USD/m",7675,2003]
[null,null,null,null,null,null,null,null,null,null,null,null,null,null,null,{"$f":"title415","v":"Flush System"},0.4093569308278352,0.10526625737967994,{"$f":"(4950.08+(16+9.8)*$B$52)/3785.41178","v":1.3076727943188258},"USD/liter mixture",2014,{"$f":"AVERAGE(1%,3%)","v":0.02},0.5]
[null,null,null,null,null,null,null,null,null,null,null,null,null,null,null,{"$f":"title416","v":"Vacum Scraper"},3.190595592141102,1.9769935564290937,10,"USD/liter mixture",2010,0.18,0.5,null,null,{"$f":"title434","v":"Density (Kg/m3)"}]
[null,null,null,null,null,null,null,null,null,null,null,null,null,null,null,{"$f":"title417","v":"Skid-loader"},0.75612714559717353,1.2830705357537211,{"$f":"(142.6*0.914+58.5*0.084+50.75*0.997)/$Q$145","v":4.5602655457895951},"USD/liter mixture",2010,{"$f":"AVERAGE(8%,18%)","v":0.13},0.5,null,{"$f":"title435","v":"Buffalo"},960]
[null,null,null,null,null,null,null,null,null,null,null,null,null,null,null,{"$f":"title418","v":"Cross gutter Scraper"},1.5259658685640533E-2,2.6500596263415929E-2,5,"USD/liter mixture",2010,0.08,0.5,null,{"$f":"title436","v":"Cattle"},960]
[null,null,null,null,null,null,null,null,null,null,null,null,null,null,null,{"$f":"title419","v":"Cross Gutter Auger"},0.20478904265077005,2.6255220372088005E-2,{"$f":"2200*30/2378/10","v":2.7754415475189234},"USD/liter mixture",2010,0.08,0.5,null,{"$f":"title437","v":"Dairy Cattle"},994]
[null,null,null,null,null,null,null,null,null,null,null,null,null,null,null,{"$f":"title420","v":"Flush Flume"},0.13645231027594507,2.6255220372088005E-2,{"$f":"(4950.08+(16+9.8)*$B$52)*1.5/3785.41178","v":1.9615091914782385},"USD/liter mixture",2010,{"$f":"AVERAGE(4%,9%)","v":6.5000000000000002E-2},0.5,null,{"$f":"title438","v":"Poultry"},961.11]
[null,null,null,null,null,null,null,null,null,null,null,null,null,null,null,null,null,null,null,null,null,null,null,null,{"$f":"title439","v":"Swine"},1140.9000000000001]
[null,null,null,null,null,null,null,null,null,null,null,null,null,null,null,{"$f":"title357","v":"Dewatering"},"Screw Press ",{"$f":"PROPER(title164)","v":"Year"}]
[null,null,null,null,null,null,null,null,null,null,null,null,null,null,null,{"$f":"title422","v":"Capital Cost (USD/t residue)"},{"$f":"AVERAGE(0.2,0.5)*1000000*0.12/AVERAGE(4000,8000)","v":7},2002]
[null,null,null,null,null,null,null,null,null,null,null,null,null,null,null,{"$f":"title423","v":"Operation (worker/t residue)"},{"$f":"AVERAGE(20,40)*1000/AVERAGE(4000,8000)/(300*8*160)","v":1.3020833333333334E-5}]
[null,null,null,null,null,null,null,null,null,null,null,null,null,null,null,{"$f":"title424","v":"Energy Demand kWh/t residue"},{"$f":"AVERAGE(5,15)*8000/AVERAGE(4000,8000)","v":13.333333333333334},2002]
[]
[]
[]
[]
[null,null,null,null,null,null,null,null,null,null,null,null,null,null,null,{"$f":"title74","v":"Please Select"},{"$f":"title405","v":"Collection method"},"Show","Section to Show",{"$f":"VLOOKUP(INDIRECT(\"'Data entry needs'!$d$\"&$A$1),$P$166:$R$178,3,FALSE)","v":{"$error":"#N/A"}}]
[null,null,null,null,null,null,null,null,null,null,null,null,null,null,null,{"$f":"title184","v":"Biodiesel/Oilseed Ind."},{"$f":"title425","v":"No collection neeeded"},1,{"$f":"title429&\" 0\"","v":"Option 0"},0,0]
[null,null,null,null,null,null,null,null,null,null,null,null,null,null,null,{"$f":"title85","v":"Crop Residues"},{"$f":"title426","v":"Method 1"},2,{"$f":"title429&\" 1\"","v":"Option 1"},{"$f":"$I$31","v":{"$error":"#DIV/0!"}},{"$f":"$D$24/E16","v":{"$error":"#DIV/0!"}},{"$f":"title381","v":"person-hour/t"}]
[null,null,null,null,null,null,null,null,null,null,null,null,null,null,null,{"$f":"title185","v":"Dairy-milk ind."},{"$f":"title427","v":"Method 2, Method 3"},4,{"$f":"title429&\" 2\"","v":"Option 2"},{"$f":"$I$58","v":{"$error":"#DIV/0!"}},{"$f":"F49/E41","v":{"$error":"#N/A"}},{"$f":"title381","v":"person-hour/t"}]
[null,null,null,null,null,null,null,null,null,null,null,null,null,null,null,{"$f":"title120","v":"Energy Crops"},{"$f":"title425","v":"No collection neeeded"},1,{"$f":"title429&\" 3\"","v":"Option 3"},{"$f":"$I$87","v":{"$error":"#DIV/0!"}},{"$f":"D76","v":0},{"$f":"title381","v":"person-hour/t"}]
[null,null,null,null,null,null,null,null,null,null,null,null,null,null,null,{"$f":"title186","v":"Eth-Sugar-Starch Ind."},{"$f":"title425","v":"No collection neeeded"},1]
[null,null,null,null,null,null,null,null,null,null,null,null,null,null,null,{"$f":"title187","v":"Food Process. Res."},{"$f":"title425","v":"No collection neeeded"},1,{"$f":"title430","v":"Result"},{"$f":"IF($T$165=1,T166,IF($T$165=2,$T$167,IF($T$165=3,T168,IF(AND($T$165=4,$E$34),$T$168,$T$169))))","v":{"$error":"#N/A"}}]
[null,null,null,null,null,null,null,null,null,null,null,null,null,null,null,{"$f":"title188","v":"Grass"},{"$f":"title426","v":"Method 1"},2,{"$f":"title431","v":"Employees"},{"$f":"IF($T$165=1,U166,IF($T$165=2,$U$167,IF($T$165=3,U169,IF(AND($T$165=4,$E$34),$U$168,$U$169))))","v":{"$error":"#N/A"}},{"$f":"title381","v":"person-hour/t"}]
[null,null,null,null,null,null,null,null,null,null,null,null,null,null,null,{"$f":"title119","v":"Crops"},{"$f":"title425","v":"No collection neeeded"},1]
[null,null,null,null,null,null,null,null,null,null,null,null,null,null,null,{"$f":"title189","v":"Other Options"},{"$f":"title425","v":"No collection neeeded"},1]
[null,null,null,null,null,null,null,null,null,null,null,null,null,null,null,{"$f":"title190","v":"Slaughterhouses wastes"},{"$f":"title428","v":"Method 2"},3]
[null,null,null,null,null,null,null,null,null,null,null,null,null,null,null,{"$f":"title191","v":"Yeast-Alcoholic Bev."},{"$f":"title425","v":"No collection neeeded"},1]
[null,null,null,null,null,null,null,null,null,null,null,null,null,null,null,{"$f":"title84","v":"Manure"},{"$f":"title427","v":"Method 2, Method 3"},4]
[null,null,null,null,null,null,null,null,null,null,null,null,null,null,null,{"$f":"title192","v":"Wastewater"},{"$f":"title425","v":"No collection neeeded"},1]

{"sheet":"PRICE_FS2_PS3","index":44,"n_rows":178,"n_cols":39,"rows_kept":178,"cut":false,"hidden":true,"merged":[[40,8,40,9],[2,2,2,9],[5,2,5,3],[5,4,5,6],[7,2,10,9],[14,6,14,7],[15,2,15,3],[15,6,15,7],[30,3,30,7],[33,4,34,4],[33,5,34,5],[33,6,34,9],[34,2,34,3],[64,9,66,9],[86,3,86,7],[41,8,41,9],[57,3,57,7],[61,4,61,5],[61,6,62,6],[62,4,62,5],[64,2,64,3],[64,4,64,5],[64,6,66,6],[64,7,66,7],[64,8,66,8]]}
[{"$f":"+PRICE_FS1_PS3!A1+2","v":59},89]
[]
[null,null,{"$f":"+title324&UPPER(INDIRECT(\"'Data entry needs'!$d$\"&$A$1)&\"-\"&INDIRECT(\"'Data entry needs'!$e$\"&$A$1))","v":"COLLECTION COSTS CALCULATOR FOR PLEASE SELECT-PLEASE SELECT"}]
[]
[]
[null,null,{"$f":"title193","v":"Use white cells to input data"},null,{"$f":"title194","v":"Grey cells are used for calculations"}]
[]
[null,null,{"$f":"title325&INDIRECT(\"'Data entry needs'!$d$\"&$A$1)&title326","v":"No collection method is required. It is assumed that Please Select are already collected. Then, transportation cost and/or market price should be considered."}]
[]
[]
[]
[]
[null,null,{"$f":"title327","v":"Collection Method 1 - Biomass spread in the field"}]
[]
[null,null,{"$f":"title328","v":"Collecting method"},null,{"$f":"title329","v":"Biomass Yield"},null,{"$f":"title110","v":"Feedstock Available (t/year)"},null,{"$f":"title330","v":"Collection days"}]
[null,null,"Mechanized",null,null,"t/ha",{"$f":"INDIRECT(\"'Data entry needs'!$F$\"&$A$1)","v":0},null,{"$f":"'Data entry needs'!L100-INDIRECT(\"Planner_pS3!$AN$\"&$B$1)*21","v":-252}]
[]
[null,null,{"$f":"title331","v":"Biomass Collection definition"}]
[]
[null,null,{"$f":"title332","v":"Biomass Price Definition"},null,null,null,null,null,null,null,null,null,null,null,null,null,null,null,null,null,null,{"$f":"title405","v":"Collection method"},null,{"$f":"title382","v":"Mechanized"},{"$f":"title380","v":"Number of skilled workers"},{"$f":"title409","v":"person-hour/ha"}]
[null,null,{"$f":"title333","v":"Labour cost"},{"$f":"title270","v":"Quantity"},{"$f":"title27","v":"Unit"},{"$f":"title270","v":"Quantity"},null,{"$f":"title27","v":"Unit"},"Total",{"$f":"title27","v":"Unit"},null,null,null,null,null,null,null,null,null,null,null,{"$f":"$C$16","v":"Mechanized"},null,{"$f":"title382&2","v":"Mechanized2"},{"$f":"title336","v":"Skilled labour wage"},{"$f":"title128","v":"USD/person-hour"}]
[null,null,{"$f":"IFERROR(VLOOKUP($V$21&$W21,$X$20:$Z$31,2,FALSE),\"\")","v":"Number of skilled workers"},null,{"$f":"IFERROR(VLOOKUP($V$21&$W21,$X$20:$Z$31,3,FALSE),\"\")","v":"person-hour/ha"},{"$f":"IFERROR(VLOOKUP($V$21&$W23,$X$20:$Z$31,2,FALSE),\"\")","v":"Skilled labour wage"},{"$f":"IF(F22=\"\",\"\",IF(F22=title335,'Data entry needs'!$L$96,IF(F22=title336,'Data entry needs'!F96)))","v":0},{"$f":"IFERROR(VLOOKUP($V$21&$W23,$X$20:$Z$31,3,FALSE),\"\")","v":"USD/person-hour"},{"$f":"IFERROR(G22*D22*(G16/E16)*('Data entry needs'!$L$100/$I$16),0)","v":0},{"$f":"IF(C22=\"\",\"\",title319)","v":"USD/year"},null,null,null,null,null,null,null,null,null,null,null,null,1,{"$f":"title382&4","v":"Mechanized4"},{"$f":"title407","v":"Average fuel economy"},"l/h"]
[null,null,{"$f":"IFERROR(VLOOKUP($V$21&$W22,$X$20:$Z$31,2,FALSE),\"\")","v":""},null,{"$f":"IFERROR(VLOOKUP($V$21&$W22,$X$20:$Z$31,3,FALSE),\"\")","v":""},{"$f":"IFERROR(VLOOKUP($V$21&$W24,$X$20:$Z$31,2,FALSE),\"\")","v":""},{"$f":"IF(F23=\"\",\"\",'Data entry needs'!L96)","v":""},{"$f":"title128","v":"USD/person-hour"},{"$f":"IFERROR(G23*D23*(G16/E16)*('Data entry needs'!$L$100/$I$16),0)","v":0},{"$f":"IF(C23=\"\",\"\",title319)","v":""},null,null,null,null,null,null,null,null,null,null,null,{"$f":"VLOOKUP($V$21,$T$29:$U$31,2,FALSE)","v":1},2,{"$f":"title382&5","v":"Mechanized5"},{"$f":"title408","v":"Fuel price"},"USD/l"]
[null,null,null,{"$f":"+IF(AND(C22=\"\",C23=\"\"),0,IF(C22=\"\",D23,IF(C23=\"\",D22,D22+D23)))","v":0},null,null,null,{"$f":"title269","v":"Subtotal"},{"$f":"+SUMIF($I$22:$I$23,\">0\")","v":0},{"$f":"title319","v":"USD/year"},null,null,null,null,null,null,null,null,null,null,null,null,3,{"$f":"title378","v":"Semi-mechanized"},{"$f":"title380","v":"Number of skilled workers"},{"$f":"title409","v":"person-hour/ha"}]
[null,null,{"$f":"title334","v":"Machinery & operating cost"},{"$f":"title270","v":"Quantity"},{"$f":"title27","v":"Unit"},{"$f":"title270","v":"Quantity"},null,{"$f":"title27","v":"Unit"},"Total",{"$f":"title27","v":"Unit"},null,null,null,null,null,null,null,null,null,null,null,null,4,{"$f":"title378&1","v":"Semi-mechanized1"},{"$f":"title379","v":"Number of unskilled workers"},{"$f":"title409","v":"person-hour/ha"}]
[null,null,{"$f":"IFERROR(VLOOKUP($V$21&$W25,$X$20:$Z$31,2,FALSE),\"\")","v":"Average fuel economy"},null,{"$f":"IFERROR(VLOOKUP($V$21&$W25,$X$20:$Z$31,3,FALSE),\"\")","v":"l/h"},{"$f":"IFERROR(VLOOKUP($V$21&$W26,$X$20:$Z$31,2,FALSE),\"\")","v":"Fuel price"},{"$f":"IF(F26=\"\",\"\",'Data entry needs'!$F$100)","v":0},{"$f":"+IFERROR(VLOOKUP($V$21&$W26,$X$20:$Z$31,3,FALSE),\"\")","v":"USD/l"},{"$f":"+IFERROR(D26*G26*IF($C$16=title337,0,$D$22*G16/E16)*('Data entry needs'!$L$100/$I$16),\"\")","v":""},{"$f":"IF(C26=\"\",\"\",title319)","v":"USD/year"},null,null,null,null,null,null,null,null,null,null,null,null,5,{"$f":"title378&2","v":"Semi-mechanized2"},{"$f":"title336","v":"Skilled labour wage"},{"$f":"title128","v":"USD/person-hour"}]
[null,null,null,null,null,null,null,{"$f":"IF(C26=\"\",\"\",title269)","v":"Subtotal"},{"$f":"+I26","v":""},{"$f":"IF(C26=\"\",\"\",title319)","v":"USD/year"},null,null,null,null,null,null,null,null,null,null,null,null,null,{"$f":"title378&3","v":"Semi-mechanized3"},{"$f":"title335","v":"Unskilled labour wage"},{"$f":"title128","v":"USD/person-hour"}]
[null,null,null,null,null,null,null,{"$f":"IF(C26=\"\",\"\",\"Total\")","v":"Total"},{"$f":"IFERROR(I24+I27,I24)","v":0},{"$f":"title319","v":"USD/year"},null,null,null,null,null,null,null,null,null,{"$f":"title405","v":"Collection method"},null,null,null,{"$f":"title378&4","v":"Semi-mechanized4"},{"$f":"title407","v":"Average fuel economy"},"l/h"]
[null,null,null,null,null,null,null,null,null,null,null,null,null,null,null,null,null,null,null,{"$f":"title382","v":"Mechanized"},1,null,null,{"$f":"title378&5","v":"Semi-mechanized5"},{"$f":"title408","v":"Fuel price"},"USD/l"]
[null,null,null,null,null,null,null,null,"",null,null,null,null,null,null,null,null,null,null,{"$f":"title378","v":"Semi-mechanized"},2,null,null,{"$f":"title337","v":"Manual"},{"$f":"title379","v":"Number of unskilled workers"},{"$f":"title409","v":"person-hour/ha"}]
[null,null,null,{"$f":"title338&INDIRECT(\"'Data entry needs'!$d$\"&$A$1)&\"-\"&INDIRECT(\"'Data entry needs'!$e$\"&$A$1)","v":"Collection cost of Please Select-Please Select"},null,null,null,null,{"$f":"(I24+I28)/$G$16","v":{"$error":"#DIV/0!"}},"USD/t",null,null,null,null,null,null,null,null,null,{"$f":"title337","v":"Manual"},3,null,null,{"$f":"title337&2","v":"Manual2"},{"$f":"title335","v":"Unskilled labour wage"},{"$f":"title128","v":"USD/person-hour"}]
[]
[]
[null,null,null,null,false,null,{"$f":"IF($E$34,title340,title341)","v":"Use this method for feedstock collected and transported from different farms to a central collection point"}]
[null,null,{"$f":"title339","v":"Collection Methods Available"}]
[]
[null,null,{"$f":"title342","v":"Collection Method 2"}]
[]
[null,null,{"$f":"title328","v":"Collecting method"},{"$f":"title343","v":"Transportation requirements"},null,null,null,null,{"$f":"title346","v":"Data Source"}]
[]
[null,null,"Please Select",{"$f":"title110","v":"Feedstock Available (t/year)"},{"$f":"INDIRECT(\"'Data entry needs'!$F$\"&$A$1)","v":0},{"$f":"title344","v":"Initial ts in residue (%)"},null,{"$f":"INDIRECT(\"'Data entry needs'!$h$\"&$A$1)","v":0},false]
[null,null,null,{"$f":"title134","v":"Operating days per year"},{"$f":"'Data entry needs'!L100-INDIRECT(\"Planner_pS3!$AN$\"&$B$1)*21","v":-252},{"$f":"title345&$C$41","v":"ts (%) allowed by Please Select"},null,{"$f":"Q45","v":{"$error":"#N/A"}}]
[]
[null,null,{"$f":"title347","v":"Collection Cost Definition"}]
[null,null,{"$f":"title348","v":"Operation Cost"},{"$f":"title270","v":"Quantity"},{"$f":"title27","v":"Unit"},{"$f":"title270","v":"Quantity"},{"$f":"title27","v":"Unit"},{"$f":"title267","v":"Unit Price"},"Total",null,null,null,null,null,null,"ts (%) transported",{"$f":"VLOOKUP($C$41,$P$149:$V$155,7,FALSE)","v":{"$error":"#N/A"}}]
[null,null,{"$f":"title35","v":"Electricity"},null,"kWh/t res",{"$f":"D46*E41","v":0},{"$f":"title304","v":"kWh/year"},{"$f":"'Data entry needs'!$L$92","v":0},{"$f":"F46*H46","v":0},{"$f":"title319","v":"USD/year"},null,null,null,null,null,{"$f":"title35","v":"Electricity"},{"$f":"$Q$160","v":13.333333333333334}]
[null,null,{"$f":"title170","v":"Diesel"},null,{"$f":"title574","v":"l diesel/t res"},{"$f":"D47*$E$41","v":0},{"$f":"title350","v":"Liter Diesel/year"},{"$f":"'Data entry needs'!$F$100","v":0},{"$f":"F47*H47","v":0},{"$f":"title319","v":"USD/year"},null,null,null,null,null,{"$f":"title170","v":"Diesel"},{"$f":"VLOOKUP($C$41,$P$149:$S$155,2,FALSE)","v":{"$error":"#N/A"}}]
[null,null,{"$f":"title244","v":"Water Make-up "},null,{"$f":"title353","v":"Liter water/t res"},{"$f":"IF(D48=0,0,E41*(H41/H42)*(1-D48))","v":0},{"$f":"title351","v":"Liter water/year"},{"$f":"'Data entry needs'!$F$92","v":0},{"$f":"F48*H48*D48","v":0},{"$f":"title319","v":"USD/year"},null,null,null,null,null,{"$f":"title244","v":"Water Make-up "},0.15]
[null,null,{"$f":"title349","v":"Unskilled Workers"},null,{"$f":"title354","v":"person-day/t res"},{"$f":"ROUNDUP($D$49*E41*('Data entry needs'!$L$100/PRICE_FS2_PS3!E42)/'Data entry needs'!$L$99,0)","v":{"$error":"#DIV/0!"}},{"$f":"title352","v":"person-hour"},{"$f":"'Data entry needs'!$L$96","v":0},{"$f":"F49*H49","v":{"$error":"#DIV/0!"}},{"$f":"title319","v":"USD/year"},null,null,null,null,null,{"$f":"title127","v":"Unskilled worker"},{"$f":"VLOOKUP($C$41,$P$149:$S$155,3,FALSE)","v":{"$error":"#N/A"}}]
[null,null,null,{"$f":"Q47","v":{"$error":"#N/A"}},null,null,null,{"$f":"title269","v":"Subtotal"},{"$f":"+SUMIF($I$46:$I$49,\">0\")","v":0},{"$f":"title319","v":"USD/year"}]
[]
[null,null,{"$f":"title355","v":"Capital Investment"},{"$f":"title270","v":"Quantity"},{"$f":"title27","v":"Unit"}]
[null,null,{"$f":"$C$41&title356","v":"Please Select and equipment"},null,{"$f":"VLOOKUP($C$41,$P$149:$T$155,5,FALSE)","v":{"$error":"#N/A"}},null,null,null,{"$f":"D53*(E41*10)/20","v":0},{"$f":"title319","v":"USD/year"},null,null,null,null,null,{"$f":"$C$41&title356","v":"Please Select and equipment"},{"$f":"VLOOKUP($C$41,$P$149:$S$155,4,FALSE)","v":{"$error":"#N/A"}}]
[null,null,{"$f":"title357","v":"Dewatering"},null,"USD/t res",null,null,null,{"$f":"D54*$E$41/20","v":0},{"$f":"title319","v":"USD/year"},null,null,null,null,null,{"$f":"title357","v":"Dewatering"},{"$f":"$Q$158","v":7}]
[null,null,{"$f":"title358","v":"Operation and Mainteinance"},null,null,null,null,null,{"$f":"SUM(I53:I54)*$D$55","v":0},{"$f":"title319","v":"USD/year"},null,null,null,null,null,{"$f":"title358","v":"Operation and Mainteinance"},0.15]
[null,null,null,{"$f":"+IF(AND(C54=\"\",C55=\"\"),0,IF(C54=\"\",D55,IF(C55=\"\",D54,D54+D55)))","v":0},null,null,null,{"$f":"title269","v":"Subtotal"},{"$f":"+SUMIF(I53:I55,\">0\")","v":0},{"$f":"title319","v":"USD/year"}]
[]
[null,null,null,{"$f":"title359","v":"Cost for Collection and transfer to storage tank"},null,null,null,null,{"$f":"SUM(I50+I56)/E41","v":{"$error":"#DIV/0!"}},"USD/t"]
[]
[null,null,{"$f":"title360","v":"Collection Method 3 - Feedstock collected from different farms"}]
[]
[null,null,{"$f":"title361","v":"Source of biomass"},null,{"$f":"title405","v":"Collection method"},null,{"$f":"title346","v":"Data Source"},false]
[null,null,{"$f":"title362","v":"Transfer from individual farms"},null,"Mechanized"]
[]
[null,null,{"$f":"title363","v":"Transportation method"},null,"Tanker Truck Transfer",null,{"$f":"title372","v":"Number Of Farms Supplying Feedstock"},{"$f":"title373","v":"Average distance to collection point (m)"},{"$f":"title374","v":"Collection Period (days)"},{"$f":"IF($E$65=title364,title375,title376)&title377","v":"Number of Tanks required"}]
[]
[null,null,{"$f":"IF($E$65=title364,title365,title366)","v":"Tranport Capacity (liter)"},{"$f":"Q67","v":27600},{"$f":"title370","v":"Residue Quanitiy (t/year)"},{"$f":"INDIRECT(\"'Data entry needs'!$F$\"&$A$1)","v":0},null,null,null,null,null,null,null,null,null,{"$f":"IF($E$60=title364,title365,title366)","v":"Pipe Diameter (in)"},{"$f":"VLOOKUP($E$65,$Y$147:$AE$149,3,FALSE)","v":27600}]
[null,null,{"$f":"IF($E$65=title364,title367,title368)","v":"Engine Power (HP)"},{"$f":"Q68","v":200},{"$f":"title371","v":"Residue Density (kg/m3)"},{"$f":"Q72","v":1000},null,null,{"$f":"'Data entry needs'!L100-INDIRECT(\"Planner_pS3!$AN$\"&$B$1)*21","v":-252},{"$f":"IFERROR(ROUNDUP($F$67*1000*1000/(960*$D$69*'Data entry needs'!$L$99)/$I$68,0),0)","v":0},null,null,null,null,null,{"$f":"IF($E$60=title364,title367,title368)","v":"Motor Power (HP)"},{"$f":"VLOOKUP($E$65,$Y$147:$AE$149,4,FALSE)","v":200}]
[null,null,{"$f":"title369","v":"Transfer Rate (l/h)"},{"$f":"Q69","v":27221.917808219176},null,null,null,null,null,null,null,null,null,null,null,{"$f":"title369","v":"Transfer Rate (l/h)"},{"$f":"VLOOKUP($E$65,$Y$147:$AE$149,5,FALSE)","v":27221.917808219176}]
[]
[null,null,null,{"$f":"+IF(OR($E$63=title337,$E$63=title378),FALSE,TRUE)","v":true},{"$f":"+IF($E$63=title337,TRUE,FALSE)","v":false}]
[null,null,{"$f":"title332","v":"Biomass Price Definition"},null,null,null,null,null,null,null,null,null,null,null,null,{"$f":"title371","v":"Residue Density (kg/m3)"},{"$f":"IFERROR(VLOOKUP(INDIRECT(\"'Data entry needs'!$e$\"&$A$1),PRICE_FS2_PS3!$Y$152:$Z$156,2,FALSE),1000)","v":1000}]
[null,null,{"$f":"title333","v":"Labour cost"},{"$f":"title270","v":"Quantity"},{"$f":"title27","v":"Unit"},{"$f":"title270","v":"Quantity"},null,{"$f":"title27","v":"Unit"},"Total",{"$f":"title27","v":"Unit"}]
[null,null,{"$f":"IF(OR($E$63=title337,$E$63=title378),title379,\"\")","v":""},null,{"$f":"IF(OR($E$63=title337,$E$63=title378),title381,\"\")","v":""},{"$f":"IF(OR($E$63=title337,$E$63=title378),title335,\"\")","v":""},{"$f":"IF(OR($E$63=title337,$E$63=title378),'Data entry needs'!$L$96,\"\")","v":""},{"$f":"IF(OR($E$63=title337,$E$63=title378),title128,\"\")","v":""},{"$f":"IFERROR(IF(OR($E$63=title337,$E$63=title378),$F$67*D74*$G$74,\"\"),0)","v":""},{"$f":"IF(OR($E$63=title337,$E$63=title378),title319,\"\")","v":""}]
[null,null,{"$f":"IF($E$63=title337,\"\",title380)","v":"Number of skilled workers"},null,{"$f":"IF($E$63=title337,\"\",title381)","v":"person-hour/t"},{"$f":"IF($E$63=title337,\"\",title336)","v":"Skilled labour wage"},{"$f":"IF($E$63=title337,\"\",'Data entry needs'!$F$96)","v":0},{"$f":"IF($E$63=title337,\"\",title128)","v":"USD/person-hour"},{"$f":"IFERROR(IF($E$63=title337,\"\",D75*G75*$F$67),0)","v":0},{"$f":"IF($E$63=title337,\"\",title319)","v":"USD/year"}]
[null,null,null,{"$f":"+IF(AND(C74=\"\",C75=\"\"),0,IF(C74=\"\",D75,IF(C75=\"\",D74,D74+D75)))","v":0},null,null,null,{"$f":"title269","v":"Subtotal"},{"$f":"+SUMIF($I$74:$I$75,\">0\")","v":0},{"$f":"title319","v":"USD/year"}]
[null,null,{"$f":"title383","v":"Collection Machinery"},{"$f":"title270","v":"Quantity"},{"$f":"title27","v":"Unit"},{"$f":"title270","v":"Quantity"},null,{"$f":"title27","v":"Unit"},"Total",{"$f":"title27","v":"Unit"}]
[null,null,{"$f":"IF(OR($E$63=title382,$E$63=title378),title384,\"\")","v":"Collection Diesel Consumption"},null,{"$f":"IF(OR($E$63=title382,$E$63=title378),title575,\"\")","v":"l diesel/h"},{"$f":"IF(OR($E$63=title382,$E$63=title378),title389,\"\")","v":"Diesel Cost"},{"$f":"IF(OR($E$63=title382,$E$63=title378),'Data entry needs'!F$100,\"\")","v":0},{"$f":"IF(OR($E$63=title382,$E$63=title378),title576,\"\")","v":"USD/l diesel"},{"$f":"IFERROR(IF(OR($E$63=title382,$E$63=title378),D78*G78*D75*F67,\"\"),0)","v":0},{"$f":"title319","v":"USD/year"}]
[null,null,{"$f":"IF($E$65=title364,title385,title386)","v":"Truck Diesel Consumption"},{"$f":"Q79","v":154},{"$f":"IF($E$65=title364,title387,title388)","v":"l diesel/day"},{"$f":"IF($E$65=title364,title389,title390)","v":"Diesel Cost"},{"$f":"IF($E$65=title364,'Data entry needs'!F$100,'Data entry needs'!$L$92)","v":0},{"$f":"IF($E$65=title364,title576,\"USD/kWh\")","v":"USD/l diesel"},{"$f":"IFERROR(D79*G79*$I$68*$J$68,0)","v":0},{"$f":"title319","v":"USD/year"},null,null,null,null,null,{"$f":"IF($E$60=title364,title385,title386)","v":"Pump Electricity Consumption"},{"$f":"VLOOKUP($E$65,$Y$147:$AE$149,7,FALSE)","v":154}]
[null,null,null,null,null,null,null,{"$f":"title269","v":"Subtotal"},{"$f":"+SUMIF($I$78:$I$79,\">0\")","v":0},{"$f":"title319","v":"USD/year"}]
[null,null,{"$f":"title391","v":"Equipment"},{"$f":"title270","v":"Quantity"},{"$f":"title27","v":"Unit"},{"$f":"title270","v":"Quantity"},null,{"$f":"title27","v":"Unit"},"Total",{"$f":"title27","v":"Unit"}]
[null,null,{"$f":"IF($E$65=title364,title392,title393)","v":"Liquid Tanker Truck"},{"$f":"IF($E$65=title364,$J$68,$G$68*$H$68*1.2)","v":0},{"$f":"IF($E$65=title364,title398,\"m\")","v":"tank(s)"},{"$f":"IF($E$65=title364,title399,title400)","v":"Cost per Tank"},{"$f":"VLOOKUP($E$65,$Y$147:$AF$149,8,FALSE)/10","v":7900},{"$f":"IF($E$65=title364,title402,title403)","v":"USD/tank/year"},{"$f":"IFERROR(D82*G82,0)","v":0},{"$f":"title319","v":"USD/year"}]
[null,null,{"$f":"IF($E$65=title364,title394&$D$68&title395,title396&$D$68&title397)","v":"Semi-tractor 185 200 HP"},{"$f":"Q83","v":148000},"USD",{"$f":"title401","v":"Depreciation Period"},{"$f":"Q85","v":15},{"$f":"title164","v":"year"},{"$f":"IFERROR(D83*$J$68/G83,0)","v":0},{"$f":"title319","v":"USD/year"},null,null,null,null,null,{"$f":"IF($E$60=title364,title406,title396&$D$63&title397)","v":"Pump  HP with agitator"},{"$f":"VLOOKUP($E$65,$Y$147:$AH$149,10,FALSE)","v":148000}]
[null,null,{"$f":"title358","v":"Operation and Mainteinance"},{"$f":"Q84","v":0.15},null,null,null,null,{"$f":"IFERROR(SUM(I82:I83)*$D$84,0)","v":0},{"$f":"title319","v":"USD/year"},null,null,null,null,null,{"$f":"title358","v":"Operation and Mainteinance"},0.15]
[null,null,null,null,null,null,null,{"$f":"title269","v":"Subtotal"},{"$f":"I82","v":0},{"$f":"title319","v":"USD/year"},null,null,null,null,null,{"$f":"title401","v":"Depreciation Period"},15]
[]
[null,null,null,{"$f":"title404","v":"Cost for Collection and transfer to central collection point"},null,null,null,null,{"$f":"(I85+I80+I76)/$F$67","v":{"$error":"#DIV/0!"}},"USD/t"]
[]
[]
[]
[]
[]
[]
[]
[]
[]
[]
[]
[]
[]
[]
[]
[]
[]
[]
[]
[]
[]
[]
[]
[]
[]
[]
[]
[]
[]
[]
[]
[null,null,null,null,null,null,null,null,null,null,null,null,null,null,null,{"$f":"title410","v":"Sources of biomass"}]
[null,null,null,null,null,null,null,null,null,null,null,null,null,null,null,{"$f":"title411","v":"Biomass spread in the field"}]
[null,null,null,null,null,null,null,null,null,null,null,null,null,null,null,{"$f":"title412","v":"Biomass collected from field"}]
[null,null,null,null,null,null,null,null,null,null,null,null,null,null,null,{"$f":"title413","v":"Biomass from food processing plant"}]
[]
[]
[]
[]
[null,null,null,null,null,null,null,null,null,null,null,null,null,null,null,{"$f":"title405","v":"Collection method"}]
[null,null,null,null,null,null,null,null,null,null,null,null,null,null,null,{"$f":"title382","v":"Mechanized"}]
[null,null,null,null,null,null,null,null,null,null,null,null,null,null,null,{"$f":"title378","v":"Semi-mechanized"}]
[null,null,null,null,null,null,null,null,null,null,null,null,null,null,null,{"$f":"title337","v":"Manual"}]
[]
[]
[]
[]
[]
[]
[]
[]
[]
[]
[]
[]
[]
[]
[null,null,null,null,null,null,null,null,null,null,null,null,null,null,null,"Dairy maNURE",40.753799999999998,"Manure (kg/head/day)"]
[null,null,null,null,null,null,null,null,null,null,null,null,null,null,null,null,"Energy Use Cost","Labor and Mainteinance",null,null,null,"ts (%) transported","Dewateing",null,null,null,{"$f":"title440","v":"Capacity"},{"$f":"title441","v":"Engine/motor (hp)"},{"$f":"title369","v":"Transfer Rate (l/h)"},{"$f":"title442","v":"Transfer time (m/h)"},{"$f":"title443","v":"Energy Use  (kw)"},{"$f":"title444","v":"Add equipment"}]
[null,null,null,null,null,null,null,null,null,null,null,null,null,null,null,{"$f":"title405","v":"Collection method"},"liters diesel/t residue","workers*day/t residue","Capital cost","Capital cost","Capital cost",null,"Final solids ts (%)",null,{"$f":"title364","v":"Tanker Truck Transfer"},null,27600,200,27221.917808219176,609.6,154,79000,"USD",{"$f":"148000","v":148000},2010,{"$f":"title406","v":"Semi-tractor 185 HP"},null,null,"l/working day"]
[null,null,null,null,null,null,null,null,null,null,null,null,null,null,null,{"$f":"title74","v":"Please Select"},null,null,null,null,null,null,null,null,{"$f":"title432","v":"High Volume Pipeline"},null,"6´´ PVC",150,3028,1016,215,{"$f":"37/3.048","v":12.139107611548557},"USD/m",37075,2003]
[null,null,null,null,null,null,null,null,null,null,null,null,null,null,null,{"$f":"title414","v":"Alley Scrapers"},0.14330809896079807,0.42057427773606393,{"$f":"(AVERAGE(35,45)*$B$52+10000+4000)/3785.41178","v":3.698408736922143},{"$f":"title421","v":"USD/liter mixture"},2009,0.08,0.5,null,{"$f":"title433","v":"Low Volume Pipeline"},null,"4´´ PVC",7.5,378,127,86,{"$f":"12.4/3.048","v":4.0682414698162734},"USD/m",7675,2003]
[null,null,null,null,null,null,null,null,null,null,null,null,null,null,null,{"$f":"title415","v":"Flush System"},0.4093569308278352,0.10526625737967994,{"$f":"(4950.08+(16+9.8)*$B$52)/3785.41178","v":1.3076727943188258},"USD/liter mixture",2014,{"$f":"AVERAGE(1%,3%)","v":0.02},0.5]
[null,null,null,null,null,null,null,null,null,null,null,null,null,null,null,{"$f":"title416","v":"Vacum Scraper"},3.190595592141102,1.9769935564290937,10,"USD/liter mixture",2010,0.18,0.5,null,null,{"$f":"title434","v":"Density (Kg/m3)"}]
[null,null,null,null,null,null,null,null,null,null,null,null,null,null,null,{"$f":"title417","v":"Skid-loader"},0.75612714559717353,1.2830705357537211,{"$f":"(142.6*0.914+58.5*0.084+50.75*0.997)/$Q$145","v":4.5602655457895951},"USD/liter mixture",2010,{"$f":"AVERAGE(8%,18%)","v":0.13},0.5,null,{"$f":"title435","v":"Buffalo"},960]
[null,null,null,null,null,null,null,null,null,null,null,null,null,null,null,{"$f":"title418","v":"Cross gutter Scraper"},1.5259658685640533E-2,2.6500596263415929E-2,5,"USD/liter mixture",2010,0.08,0.5,null,{"$f":"title436","v":"Cattle"},960]
[null,null,null,null,null,null,null,null,null,null,null,null,null,null,null,{"$f":"title419","v":"Cross Gutter Auger"},0.20478904265077005,2.6255220372088005E-2,{"$f":"2200*30/2378/10","v":2.7754415475189234},"USD/liter mixture",2010,0.08,0.5,null,{"$f":"title437","v":"Dairy Cattle"},994]
[null,null,null,null,null,null,null,null,null,null,null,null,null,null,null,{"$f":"title420","v":"Flush Flume"},0.13645231027594507,2.6255220372088005E-2,{"$f":"(4950.08+(16+9.8)*$B$52)*1.5/3785.41178","v":1.9615091914782385},"USD/liter mixture",2010,{"$f":"AVERAGE(4%,9%)","v":6.5000000000000002E-2},0.5,null,{"$f":"title438","v":"Poultry"},961.11]
[null,null,null,null,null,null,null,null,null,null,null,null,null,null,null,null,null,null,null,null,null,null,null,null,{"$f":"title439","v":"Swine"},1140.9000000000001]
[null,null,null,null,null,null,null,null,null,null,null,null,null,null,null,{"$f":"title357","v":"Dewatering"},"Screw Press ",{"$f":"PROPER(title164)","v":"Year"}]
[null,null,null,null,null,null,null,null,null,null,null,null,null,null,null,{"$f":"title422","v":"Capital Cost (USD/t residue)"},{"$f":"AVERAGE(0.2,0.5)*1000000*0.12/AVERAGE(4000,8000)","v":7},2002]
[null,null,null,null,null,null,null,null,null,null,null,null,null,null,null,{"$f":"title423","v":"Operation (worker/t residue)"},{"$f":"AVERAGE(20,40)*1000/AVERAGE(4000,8000)/(300*8*160)","v":1.3020833333333334E-5}]
[null,null,null,null,null,null,null,null,null,null,null,null,null,null,null,{"$f":"title424","v":"Energy Demand kWh/t residue"},{"$f":"AVERAGE(5,15)*8000/AVERAGE(4000,8000)","v":13.333333333333334},2002]
[]
[]
[]
[]
[null,null,null,null,null,null,null,null,null,null,null,null,null,null,null,{"$f":"title74","v":"Please Select"},{"$f":"title405","v":"Collection method"},"Show","Section to Show",{"$f":"VLOOKUP(INDIRECT(\"'Data entry needs'!$d$\"&$A$1),$P$166:$R$178,3,FALSE)","v":{"$error":"#N/A"}}]
[null,null,null,null,null,null,null,null,null,null,null,null,null,null,null,{"$f":"title184","v":"Biodiesel/Oilseed Ind."},{"$f":"title425","v":"No collection neeeded"},1,{"$f":"title429&\" 0\"","v":"Option 0"},0,0]
[null,null,null,null,null,null,null,null,null,null,null,null,null,null,null,{"$f":"title85","v":"Crop Residues"},{"$f":"title426","v":"Method 1"},2,{"$f":"title429&\" 1\"","v":"Option 1"},{"$f":"$I$31","v":{"$error":"#DIV/0!"}},{"$f":"$D$24/E16","v":{"$error":"#DIV/0!"}},{"$f":"title381","v":"person-hour/t"}]
[null,null,null,null,null,null,null,null,null,null,null,null,null,null,null,{"$f":"title185","v":"Dairy-milk ind."},{"$f":"title427","v":"Method 2, Method 3"},4,{"$f":"title429&\" 2\"","v":"Option 2"},{"$f":"$I$58","v":{"$error":"#DIV/0!"}},{"$f":"F49/E41","v":{"$error":"#DIV/0!"}},{"$f":"title381","v":"person-hour/t"}]
[null,null,null,null,null,null,null,null,null,null,null,null,null,null,null,{"$f":"title120","v":"Energy Crops"},{"$f":"title425","v":"No collection neeeded"},1,{"$f":"title429&\" 3\"","v":"Option 3"},{"$f":"$I$87","v":{"$error":"#DIV/0!"}},{"$f":"D76","v":0},{"$f":"title381","v":"person-hour/t"}]
[null,null,null,null,null,null,null,null,null,null,null,null,null,null,null,{"$f":"title186","v":"Eth-Sugar-Starch Ind."},{"$f":"title425","v":"No collection neeeded"},1]
[null,null,null,null,null,null,null,null,null,null,null,null,null,null,null,{"$f":"title187","v":"Food Process. Res."},{"$f":"title425","v":"No collection neeeded"},1,{"$f":"title430","v":"Result"},{"$f":"IF($T$165=1,T166,IF($T$165=2,$T$167,IF($T$165=3,T168,IF(AND($T$165=4,$E$34),$T$168,$T$169))))","v":{"$error":"#N/A"}}]
[null,null,null,null,null,null,null,null,null,null,null,null,null,null,null,{"$f":"title188","v":"Grass"},{"$f":"title426","v":"Method 1"},2,{"$f":"title431","v":"Employees"},{"$f":"IF($T$165=1,U166,IF($T$165=2,$U$167,IF($T$165=3,U169,IF(AND($T$165=4,$E$34),$U$168,$U$169))))","v":{"$error":"#N/A"}},{"$f":"title381","v":"person-hour/t"}]
[null,null,null,null,null,null,null,null,null,null,null,null,null,null,null,{"$f":"title119","v":"Crops"},{"$f":"title425","v":"No collection neeeded"},1]
[null,null,null,null,null,null,null,null,null,null,null,null,null,null,null,{"$f":"title189","v":"Other Options"},{"$f":"title425","v":"No collection neeeded"},1]
[null,null,null,null,null,null,null,null,null,null,null,null,null,null,null,{"$f":"title190","v":"Slaughterhouses wastes"},{"$f":"title428","v":"Method 2"},3]
[null,null,null,null,null,null,null,null,null,null,null,null,null,null,null,{"$f":"title191","v":"Yeast-Alcoholic Bev."},{"$f":"title425","v":"No collection neeeded"},1]
[null,null,null,null,null,null,null,null,null,null,null,null,null,null,null,{"$f":"title84","v":"Manure"},{"$f":"title427","v":"Method 2, Method 3"},4]
[null,null,null,null,null,null,null,null,null,null,null,null,null,null,null,{"$f":"title192","v":"Wastewater"},{"$f":"title425","v":"No collection neeeded"},1]

{"sheet":"PRICE_FS3_PS3","index":45,"n_rows":178,"n_cols":39,"rows_kept":178,"cut":false,"hidden":true,"merged":[[40,8,40,9],[2,2,2,9],[5,2,5,3],[5,4,5,6],[7,2,10,9],[14,6,14,7],[15,2,15,3],[15,6,15,7],[30,3,30,7],[33,4,34,4],[33,5,34,5],[33,6,34,9],[34,2,34,3],[64,9,66,9],[86,3,86,7],[41,8,41,9],[57,3,57,7],[61,4,61,5],[61,6,62,6],[62,4,62,5],[64,2,64,3],[64,4,64,5],[64,6,66,6],[64,7,66,7],[64,8,66,8]]}
[{"$f":"PRICE_FS2_PS3!A1+2","v":61},90]
[]
[null,null,{"$f":"+title324&UPPER(INDIRECT(\"'Data entry needs'!$d$\"&$A$1)&\"-\"&INDIRECT(\"'Data entry needs'!$e$\"&$A$1))","v":"COLLECTION COSTS CALCULATOR FOR PLEASE SELECT-PLEASE SELECT"}]
[]
[]
[null,null,{"$f":"title193","v":"Use white cells to input data"},null,{"$f":"title194","v":"Grey cells are used for calculations"}]
[]
[null,null,{"$f":"title325&INDIRECT(\"'Data entry needs'!$d$\"&$A$1)&title326","v":"No collection method is required. It is assumed that Please Select are already collected. Then, transportation cost and/or market price should be considered."}]
[]
[]
[]
[]
[null,null,{"$f":"title327","v":"Collection Method 1 - Biomass spread in the field"}]
[]
[null,null,{"$f":"title328","v":"Collecting method"},null,{"$f":"title329","v":"Biomass Yield"},null,{"$f":"title110","v":"Feedstock Available (t/year)"},null,{"$f":"title330","v":"Collection days"}]
[null,null,"Mechanized",null,null,"t/ha",{"$f":"INDIRECT(\"'Data entry needs'!$F$\"&$A$1)","v":0},null,{"$f":"'Data entry needs'!L100-INDIRECT(\"Planner_pS3!$AN$\"&$B$1)*21","v":-252}]
[]
[null,null,{"$f":"title331","v":"Biomass Collection definition"}]
[]
[null,null,{"$f":"title332","v":"Biomass Price Definition"},null,null,null,null,null,null,null,null,null,null,null,null,null,null,null,null,null,null,{"$f":"title405","v":"Collection method"},null,{"$f":"title382","v":"Mechanized"},{"$f":"title380","v":"Number of skilled workers"},{"$f":"title409","v":"person-hour/ha"}]
[null,null,{"$f":"title333","v":"Labour cost"},{"$f":"title270","v":"Quantity"},{"$f":"title27","v":"Unit"},{"$f":"title270","v":"Quantity"},null,{"$f":"title27","v":"Unit"},"Total",{"$f":"title27","v":"Unit"},null,null,null,null,null,null,null,null,null,null,null,{"$f":"$C$16","v":"Mechanized"},null,{"$f":"title382&2","v":"Mechanized2"},{"$f":"title336","v":"Skilled labour wage"},{"$f":"title128","v":"USD/person-hour"}]
[null,null,{"$f":"IFERROR(VLOOKUP($V$21&$W21,$X$20:$Z$31,2,FALSE),\"\")","v":"Number of skilled workers"},null,{"$f":"IFERROR(VLOOKUP($V$21&$W21,$X$20:$Z$31,3,FALSE),\"\")","v":"person-hour/ha"},{"$f":"IFERROR(VLOOKUP($V$21&$W23,$X$20:$Z$31,2,FALSE),\"\")","v":"Skilled labour wage"},{"$f":"IF(F22=\"\",\"\",IF(F22=title335,'Data entry needs'!$L$96,IF(F22=title336,'Data entry needs'!F96)))","v":0},{"$f":"IFERROR(VLOOKUP($V$21&$W23,$X$20:$Z$31,3,FALSE),\"\")","v":"USD/person-hour"},{"$f":"IFERROR(G22*D22*(G16/E16)*('Data entry needs'!$L$100/$I$16),0)","v":0},{"$f":"IF(C22=\"\",\"\",title319)","v":"USD/year"},null,null,null,null,null,null,null,null,null,null,null,null,1,{"$f":"title382&4","v":"Mechanized4"},{"$f":"title407","v":"Average fuel economy"},"l/h"]
[null,null,{"$f":"IFERROR(VLOOKUP($V$21&$W22,$X$20:$Z$31,2,FALSE),\"\")","v":""},null,{"$f":"IFERROR(VLOOKUP($V$21&$W22,$X$20:$Z$31,3,FALSE),\"\")","v":""},{"$f":"IFERROR(VLOOKUP($V$21&$W24,$X$20:$Z$31,2,FALSE),\"\")","v":""},{"$f":"IF(F23=\"\",\"\",'Data entry needs'!L96)","v":""},{"$f":"title128","v":"USD/person-hour"},{"$f":"IFERROR(G23*D23*(G16/E16)*('Data entry needs'!$L$100/$I$16),0)","v":0},{"$f":"IF(C23=\"\",\"\",title319)","v":""},null,null,null,null,null,null,null,null,null,null,null,{"$f":"VLOOKUP($V$21,$T$29:$U$31,2,FALSE)","v":1},2,{"$f":"title382&5","v":"Mechanized5"},{"$f":"title408","v":"Fuel price"},"USD/l"]
[null,null,null,{"$f":"+IF(AND(C22=\"\",C23=\"\"),0,IF(C22=\"\",D23,IF(C23=\"\",D22,D22+D23)))","v":0},null,null,null,{"$f":"title269","v":"Subtotal"},{"$f":"+SUMIF($I$22:$I$23,\">0\")","v":0},{"$f":"title319","v":"USD/year"},null,null,null,null,null,null,null,null,null,null,null,null,3,{"$f":"title378","v":"Semi-mechanized"},{"$f":"title380","v":"Number of skilled workers"},{"$f":"title409","v":"person-hour/ha"}]
[null,null,{"$f":"title334","v":"Machinery & operating cost"},{"$f":"title270","v":"Quantity"},{"$f":"title27","v":"Unit"},{"$f":"title270","v":"Quantity"},null,{"$f":"title27","v":"Unit"},"Total",{"$f":"title27","v":"Unit"},null,null,null,null,null,null,null,null,null,null,null,null,4,{"$f":"title378&1","v":"Semi-mechanized1"},{"$f":"title379","v":"Number of unskilled workers"},{"$f":"title409","v":"person-hour/ha"}]
[null,null,{"$f":"IFERROR(VLOOKUP($V$21&$W25,$X$20:$Z$31,2,FALSE),\"\")","v":"Average fuel economy"},null,{"$f":"IFERROR(VLOOKUP($V$21&$W25,$X$20:$Z$31,3,FALSE),\"\")","v":"l/h"},{"$f":"IFERROR(VLOOKUP($V$21&$W26,$X$20:$Z$31,2,FALSE),\"\")","v":"Fuel price"},{"$f":"IF(F26=\"\",\"\",'Data entry needs'!$F$100)","v":0},{"$f":"+IFERROR(VLOOKUP($V$21&$W26,$X$20:$Z$31,3,FALSE),\"\")","v":"USD/l"},{"$f":"+IFERROR(D26*G26*IF($C$16=title337,0,$D$22*G16/E16)*('Data entry needs'!$L$100/$I$16),\"\")","v":""},{"$f":"IF(C26=\"\",\"\",title319)","v":"USD/year"},null,null,null,null,null,null,null,null,null,null,null,null,5,{"$f":"title378&2","v":"Semi-mechanized2"},{"$f":"title336","v":"Skilled labour wage"},{"$f":"title128","v":"USD/person-hour"}]
[null,null,null,null,null,null,null,{"$f":"IF(C26=\"\",\"\",title269)","v":"Subtotal"},{"$f":"+I26","v":""},{"$f":"IF(C26=\"\",\"\",title319)","v":"USD/year"},null,null,null,null,null,null,null,null,null,null,null,null,null,{"$f":"title378&3","v":"Semi-mechanized3"},{"$f":"title335","v":"Unskilled labour wage"},{"$f":"title128","v":"USD/person-hour"}]
[null,null,null,null,null,null,null,{"$f":"IF(C26=\"\",\"\",\"Total\")","v":"Total"},{"$f":"IFERROR(I24+I27,I24)","v":0},{"$f":"title319","v":"USD/year"},null,null,null,null,null,null,null,null,null,{"$f":"title405","v":"Collection method"},null,null,null,{"$f":"title378&4","v":"Semi-mechanized4"},{"$f":"title407","v":"Average fuel economy"},"l/h"]
[null,null,null,null,null,null,null,null,null,null,null,null,null,null,null,null,null,null,null,{"$f":"title382","v":"Mechanized"},1,null,null,{"$f":"title378&5","v":"Semi-mechanized5"},{"$f":"title408","v":"Fuel price"},"USD/l"]
[null,null,null,null,null,null,null,null,"",null,null,null,null,null,null,null,null,null,null,{"$f":"title378","v":"Semi-mechanized"},2,null,null,{"$f":"title337","v":"Manual"},{"$f":"title379","v":"Number of unskilled workers"},{"$f":"title409","v":"person-hour/ha"}]
[null,null,null,{"$f":"title338&INDIRECT(\"'Data entry needs'!$d$\"&$A$1)&\"-\"&INDIRECT(\"'Data entry needs'!$e$\"&$A$1)","v":"Collection cost of Please Select-Please Select"},null,null,null,null,{"$f":"(I24+I28)/$G$16","v":{"$error":"#DIV/0!"}},"USD/t",null,null,null,null,null,null,null,null,null,{"$f":"title337","v":"Manual"},3,null,null,{"$f":"title337&2","v":"Manual2"},{"$f":"title335","v":"Unskilled labour wage"},{"$f":"title128","v":"USD/person-hour"}]
[]
[]
[null,null,null,null,false,null,{"$f":"IF($E$34,title340,title341)","v":"Use this method for feedstock collected and transported from different farms to a central collection point"}]
[null,null,{"$f":"title339","v":"Collection Methods Available"}]
[]
[null,null,{"$f":"title342","v":"Collection Method 2"}]
[]
[null,null,{"$f":"title328","v":"Collecting method"},{"$f":"title343","v":"Transportation requirements"},null,null,null,null,{"$f":"title346","v":"Data Source"}]
[]
[null,null,"Please Select",{"$f":"title110","v":"Feedstock Available (t/year)"},{"$f":"INDIRECT(\"'Data entry needs'!$F$\"&$A$1)","v":0},{"$f":"title344","v":"Initial ts in residue (%)"},null,{"$f":"INDIRECT(\"'Data entry needs'!$h$\"&$A$1)","v":0},false]
[null,null,null,{"$f":"title134","v":"Operating days per year"},{"$f":"'Data entry needs'!L100-INDIRECT(\"Planner_pS3!$AN$\"&$B$1)*21","v":-252},{"$f":"title345&$C$41","v":"ts (%) allowed by Please Select"},null,{"$f":"Q45","v":{"$error":"#N/A"}}]
[]
[null,null,{"$f":"title347","v":"Collection Cost Definition"}]
[null,null,{"$f":"title348","v":"Operation Cost"},{"$f":"title270","v":"Quantity"},{"$f":"title27","v":"Unit"},{"$f":"title270","v":"Quantity"},{"$f":"title27","v":"Unit"},{"$f":"title267","v":"Unit Price"},"Total",null,null,null,null,null,null,"ts (%) transported",{"$f":"VLOOKUP($C$41,$P$149:$V$155,7,FALSE)","v":{"$error":"#N/A"}}]
[null,null,{"$f":"title35","v":"Electricity"},{"$f":"Q46","v":13.333333333333334},"kWh/t res",{"$f":"D46*E41","v":0},{"$f":"title304","v":"kWh/year"},{"$f":"'Data entry needs'!$L$92","v":0},{"$f":"F46*H46","v":0},{"$f":"title319","v":"USD/year"},null,null,null,null,null,{"$f":"title35","v":"Electricity"},{"$f":"$Q$160","v":13.333333333333334}]
[null,null,{"$f":"title170","v":"Diesel"},{"$f":"Q47","v":{"$error":"#N/A"}},{"$f":"title574","v":"l diesel/t res"},{"$f":"D47*$E$41","v":{"$error":"#N/A"}},{"$f":"title350","v":"Liter Diesel/year"},{"$f":"'Data entry needs'!$F$100","v":0},{"$f":"F47*H47","v":{"$error":"#N/A"}},{"$f":"title319","v":"USD/year"},null,null,null,null,null,{"$f":"title170","v":"Diesel"},{"$f":"VLOOKUP($C$41,$P$149:$S$155,2,FALSE)","v":{"$error":"#N/A"}}]
[null,null,{"$f":"title244","v":"Water Make-up "},{"$f":"Q48","v":0.15},{"$f":"title353","v":"Liter water/t res"},{"$f":"IF(D48=0,0,E41*(H41/H42)*(1-D48))","v":{"$error":"#N/A"}},{"$f":"title351","v":"Liter water/year"},{"$f":"'Data entry needs'!$F$92","v":0},{"$f":"F48*H48*D48","v":{"$error":"#N/A"}},{"$f":"title319","v":"USD/year"},null,null,null,null,null,{"$f":"title244","v":"Water Make-up "},0.15]
[null,null,{"$f":"title349","v":"Unskilled Workers"},{"$f":"Q49","v":{"$error":"#N/A"}},{"$f":"title354","v":"person-day/t res"},{"$f":"ROUNDUP($D$49*E41*('Data entry needs'!$L$100/PRICE_FS3_PS3!E42)/'Data entry needs'!$L$99,0)","v":{"$error":"#N/A"}},{"$f":"title352","v":"person-hour"},{"$f":"'Data entry needs'!$L$96","v":0},{"$f":"F49*H49","v":{"$error":"#N/A"}},{"$f":"title319","v":"USD/year"},null,null,null,null,null,{"$f":"title127","v":"Unskilled worker"},{"$f":"VLOOKUP($C$41,$P$149:$S$155,3,FALSE)","v":{"$error":"#N/A"}}]
[null,null,null,{"$f":"Q47","v":{"$error":"#N/A"}},null,null,null,{"$f":"title269","v":"Subtotal"},{"$f":"+SUMIF($I$46:$I$49,\">0\")","v":0},{"$f":"title319","v":"USD/year"}]
[]
[null,null,{"$f":"title355","v":"Capital Investment"},{"$f":"title270","v":"Quantity"},{"$f":"title27","v":"Unit"}]
[null,null,{"$f":"$C$41&title356","v":"Please Select and equipment"},{"$f":"Q53","v":{"$error":"#N/A"}},{"$f":"VLOOKUP($C$41,$P$149:$T$155,5,FALSE)","v":{"$error":"#N/A"}},null,null,null,{"$f":"D53*(E41*10)/20","v":{"$error":"#N/A"}},{"$f":"title319","v":"USD/year"},null,null,null,null,null,{"$f":"$C$41&title356","v":"Please Select and equipment"},{"$f":"VLOOKUP($C$41,$P$149:$S$155,4,FALSE)","v":{"$error":"#N/A"}}]
[null,null,{"$f":"title357","v":"Dewatering"},{"$f":"Q54","v":7},"USD/t res",null,null,null,{"$f":"D54*$E$41/20","v":0},{"$f":"title319","v":"USD/year"},null,null,null,null,null,{"$f":"title357","v":"Dewatering"},{"$f":"$Q$158","v":7}]
[null,null,{"$f":"title358","v":"Operation and Mainteinance"},{"$f":"Q55","v":0.15},null,null,null,null,{"$f":"SUM(I53:I54)*$D$55","v":{"$error":"#N/A"}},{"$f":"title319","v":"USD/year"},null,null,null,null,null,{"$f":"title358","v":"Operation and Mainteinance"},0.15]
[null,null,null,{"$f":"+IF(AND(C54=\"\",C55=\"\"),0,IF(C54=\"\",D55,IF(C55=\"\",D54,D54+D55)))","v":7.15},null,null,null,{"$f":"title269","v":"Subtotal"},{"$f":"+SUMIF(I53:I55,\">0\")","v":0},{"$f":"title319","v":"USD/year"}]
[]
[null,null,null,{"$f":"title359","v":"Cost for Collection and transfer to storage tank"},null,null,null,null,{"$f":"SUM(I50+I56)/E41","v":{"$error":"#DIV/0!"}},"USD/t"]
[]
[null,null,{"$f":"title360","v":"Collection Method 3 - Feedstock collected from different farms"}]
[]
[null,null,{"$f":"title361","v":"Source of biomass"},null,{"$f":"title405","v":"Collection method"},null,{"$f":"title346","v":"Data Source"},false]
[null,null,{"$f":"title362","v":"Transfer from individual farms"},null,"Mechanized"]
[]
[null,null,{"$f":"title363","v":"Transportation method"},null,"Tanker Truck Transfer",null,{"$f":"title372","v":"Number Of Farms Supplying Feedstock"},{"$f":"title373","v":"Average distance to collection point (m)"},{"$f":"title374","v":"Collection Period (days)"},{"$f":"IF($E$65=title364,title375,title376)&title377","v":"Number of Tanks required"}]
[]
[null,null,{"$f":"IF($E$65=title364,title365,title366)","v":"Tranport Capacity (liter)"},null,{"$f":"title370","v":"Residue Quanitiy (t/year)"},{"$f":"INDIRECT(\"'Data entry needs'!$F$\"&$A$1)","v":0},null,null,null,null,null,null,null,null,null,{"$f":"IF($E$60=title364,title365,title366)","v":"Pipe Diameter (in)"},{"$f":"VLOOKUP($E$65,$Y$147:$AE$149,3,FALSE)","v":27600}]
[null,null,{"$f":"IF($E$65=title364,title367,title368)","v":"Engine Power (HP)"},null,{"$f":"title371","v":"Residue Density (kg/m3)"},null,null,null,{"$f":"'Data entry needs'!L100-INDIRECT(\"Planner_pS3!$AN$\"&$B$1)*21","v":-252},{"$f":"IFERROR(ROUNDUP($F$67*1000*1000/(960*$D$69*'Data entry needs'!$L$99)/$I$68,0),0)","v":0},null,null,null,null,null,{"$f":"IF($E$60=title364,title367,title368)","v":"Motor Power (HP)"},{"$f":"VLOOKUP($E$65,$Y$147:$AE$149,4,FALSE)","v":200}]
[null,null,{"$f":"title369","v":"Transfer Rate (l/h)"},null,null,null,null,null,null,null,null,null,null,null,null,{"$f":"title369","v":"Transfer Rate (l/h)"},{"$f":"VLOOKUP($E$65,$Y$147:$AE$149,5,FALSE)","v":27221.917808219176}]
[]
[null,null,null,{"$f":"+IF(OR($E$63=title337,$E$63=title378),FALSE,TRUE)","v":true},{"$f":"+IF($E$63=title337,TRUE,FALSE)","v":false}]
[null,null,{"$f":"title332","v":"Biomass Price Definition"},null,null,null,null,null,null,null,null,null,null,null,null,{"$f":"title371","v":"Residue Density (kg/m3)"},{"$f":"IFERROR(VLOOKUP(INDIRECT(\"'Data entry needs'!$e$\"&$A$1),PRICE_FS3_PS3!$Y$152:$Z$156,2,FALSE),1000)","v":1000}]
[null,null,{"$f":"title333","v":"Labour cost"},{"$f":"title270","v":"Quantity"},{"$f":"title27","v":"Unit"},{"$f":"title270","v":"Quantity"},null,{"$f":"title27","v":"Unit"},"Total",{"$f":"title27","v":"Unit"}]
[null,null,{"$f":"IF(OR($E$63=title337,$E$63=title378),title379,\"\")","v":""},null,{"$f":"IF(OR($E$63=title337,$E$63=title378),title381,\"\")","v":""},{"$f":"IF(OR($E$63=title337,$E$63=title378),title335,\"\")","v":""},{"$f":"IF(OR($E$63=title337,$E$63=title378),'Data entry needs'!$L$96,\"\")","v":""},{"$f":"IF(OR($E$63=title337,$E$63=title378),title128,\"\")","v":""},{"$f":"IFERROR(IF(OR($E$63=title337,$E$63=title378),$F$67*D74*$G$74,\"\"),0)","v":""},{"$f":"IF(OR($E$63=title337,$E$63=title378),title319,\"\")","v":""}]
[null,null,{"$f":"IF($E$63=title337,\"\",title380)","v":"Number of skilled workers"},null,{"$f":"IF($E$63=title337,\"\",title381)","v":"person-hour/t"},{"$f":"IF($E$63=title337,\"\",title336)","v":"Skilled labour wage"},{"$f":"IF($E$63=title337,\"\",'Data entry needs'!$F$96)","v":0},{"$f":"IF($E$63=title337,\"\",title128)","v":"USD/person-hour"},{"$f":"IFERROR(IF($E$63=title337,\"\",D75*G75*$F$67),0)","v":0},{"$f":"IF($E$63=title337,\"\",title319)","v":"USD/year"}]
[null,null,null,{"$f":"+IF(AND(C74=\"\",C75=\"\"),0,IF(C74=\"\",D75,IF(C75=\"\",D74,D74+D75)))","v":0},null,null,null,{"$f":"title269","v":"Subtotal"},{"$f":"+SUMIF($I$74:$I$75,\">0\")","v":0},{"$f":"title319","v":"USD/year"}]
[null,null,{"$f":"title383","v":"Collection Machinery"},{"$f":"title270","v":"Quantity"},{"$f":"title27","v":"Unit"},{"$f":"title270","v":"Quantity"},null,{"$f":"title27","v":"Unit"},"Total",{"$f":"title27","v":"Unit"}]
[null,null,{"$f":"IF(OR($E$63=title382,$E$63=title378),title384,\"\")","v":"Collection Diesel Consumption"},null,{"$f":"IF(OR($E$63=title382,$E$63=title378),title575,\"\")","v":"l diesel/h"},{"$f":"IF(OR($E$63=title382,$E$63=title378),title389,\"\")","v":"Diesel Cost"},{"$f":"IF(OR($E$63=title382,$E$63=title378),'Data entry needs'!F$100,\"\")","v":0},{"$f":"IF(OR($E$63=title382,$E$63=title378),title576,\"\")","v":"USD/l diesel"},{"$f":"IFERROR(IF(OR($E$63=title382,$E$63=title378),D78*G78*D75*F67,\"\"),0)","v":0},{"$f":"title319","v":"USD/year"}]
[null,null,{"$f":"IF($E$65=title364,title385,title386)","v":"Truck Diesel Consumption"},null,{"$f":"IF($E$65=title364,title387,title388)","v":"l diesel/day"},{"$f":"IF($E$65=title364,title389,title390)","v":"Diesel Cost"},{"$f":"IF($E$65=title364,'Data entry needs'!F$100,'Data entry needs'!$L$92)","v":0},{"$f":"IF($E$65=title364,title576,\"USD/kWh\")","v":"USD/l diesel"},{"$f":"IFERROR(D79*G79*$I$68*$J$68,0)","v":0},{"$f":"title319","v":"USD/year"},null,null,null,null,null,{"$f":"IF($E$60=title364,title385,title386)","v":"Pump Electricity Consumption"},{"$f":"VLOOKUP($E$65,$Y$147:$AE$149,7,FALSE)","v":154}]
[null,null,null,null,null,null,null,{"$f":"title269","v":"Subtotal"},{"$f":"+SUMIF($I$78:$I$79,\">0\")","v":0},{"$f":"title319","v":"USD/year"}]
[null,null,{"$f":"title391","v":"Equipment"},{"$f":"title270","v":"Quantity"},{"$f":"title27","v":"Unit"},{"$f":"title270","v":"Quantity"},null,{"$f":"title27","v":"Unit"},"Total",{"$f":"title27","v":"Unit"}]
[null,null,{"$f":"IF($E$65=title364,title392,title393)","v":"Liquid Tanker Truck"},{"$f":"IF($E$65=title364,$J$68,$G$68*$H$68*1.2)","v":0},{"$f":"IF($E$65=title364,title398,\"m\")","v":"tank(s)"},{"$f":"IF($E$65=title364,title399,title400)","v":"Cost per Tank"},{"$f":"VLOOKUP($E$65,$Y$147:$AF$149,8,FALSE)/10","v":7900},{"$f":"IF($E$65=title364,title402,title403)","v":"USD/tank/year"},{"$f":"IFERROR(D82*G82,0)","v":0},{"$f":"title319","v":"USD/year"}]
[null,null,{"$f":"IF($E$65=title364,title394&$D$68&title395,title396&$D$68&title397)","v":"Semi-tractor 185  HP"},null,"USD",{"$f":"title401","v":"Depreciation Period"},null,{"$f":"title164","v":"year"},{"$f":"IFERROR(D83*$J$68/G83,0)","v":0},{"$f":"title319","v":"USD/year"},null,null,null,null,null,{"$f":"IF($E$60=title364,title406,title396&$D$63&title397)","v":"Pump  HP with agitator"},{"$f":"VLOOKUP($E$65,$Y$147:$AH$149,10,FALSE)","v":148000}]
[null,null,{"$f":"title358","v":"Operation and Mainteinance"},null,null,null,null,null,{"$f":"IFERROR(SUM(I82:I83)*$D$84,0)","v":0},{"$f":"title319","v":"USD/year"},null,null,null,null,null,{"$f":"title358","v":"Operation and Mainteinance"},0.15]
[null,null,null,null,null,null,null,{"$f":"title269","v":"Subtotal"},{"$f":"I82","v":0},{"$f":"title319","v":"USD/year"},null,null,null,null,null,{"$f":"title401","v":"Depreciation Period"},15]
[]
[null,null,null,{"$f":"title404","v":"Cost for Collection and transfer to central collection point"},null,null,null,null,{"$f":"(I85+I80+I76)/$F$67","v":{"$error":"#DIV/0!"}},"USD/t"]
[]
[]
[]
[]
[]
[]
[]
[]
[]
[]
[]
[]
[]
[]
[]
[]
[]
[]
[]
[]
[]
[]
[]
[]
[]
[]
[]
[]
[]
[]
[]
[null,null,null,null,null,null,null,null,null,null,null,null,null,null,null,{"$f":"title410","v":"Sources of biomass"}]
[null,null,null,null,null,null,null,null,null,null,null,null,null,null,null,{"$f":"title411","v":"Biomass spread in the field"}]
[null,null,null,null,null,null,null,null,null,null,null,null,null,null,null,{"$f":"title412","v":"Biomass collected from field"}]
[null,null,null,null,null,null,null,null,null,null,null,null,null,null,null,{"$f":"title413","v":"Biomass from food processing plant"}]
[]
[]
[]
[]
[null,null,null,null,null,null,null,null,null,null,null,null,null,null,null,{"$f":"title405","v":"Collection method"}]
[null,null,null,null,null,null,null,null,null,null,null,null,null,null,null,{"$f":"title382","v":"Mechanized"}]
[null,null,null,null,null,null,null,null,null,null,null,null,null,null,null,{"$f":"title378","v":"Semi-mechanized"}]
[null,null,null,null,null,null,null,null,null,null,null,null,null,null,null,{"$f":"title337","v":"Manual"}]
[]
[]
[]
[]
[]
[]
[]
[]
[]
[]
[]
[]
[]
[]
[null,null,null,null,null,null,null,null,null,null,null,null,null,null,null,"Dairy maNURE",40.753799999999998,"Manure (kg/head/day)"]
[null,null,null,null,null,null,null,null,null,null,null,null,null,null,null,null,"Energy Use Cost","Labor and Mainteinance",null,null,null,"ts (%) transported","Dewateing",null,null,null,{"$f":"title440","v":"Capacity"},{"$f":"title441","v":"Engine/motor (hp)"},{"$f":"title369","v":"Transfer Rate (l/h)"},{"$f":"title442","v":"Transfer time (m/h)"},{"$f":"title443","v":"Energy Use  (kw)"},{"$f":"title444","v":"Add equipment"}]
[null,null,null,null,null,null,null,null,null,null,null,null,null,null,null,{"$f":"title405","v":"Collection method"},"liters diesel/t residue","workers*day/t residue","Capital cost","Capital cost","Capital cost",null,"Final solids ts (%)",null,{"$f":"title364","v":"Tanker Truck Transfer"},null,27600,200,27221.917808219176,609.6,154,79000,"USD",{"$f":"148000","v":148000},2010,{"$f":"title406","v":"Semi-tractor 185 HP"},null,null,"l/working day"]
[null,null,null,null,null,null,null,null,null,null,null,null,null,null,null,{"$f":"title74","v":"Please Select"},null,null,null,null,null,null,null,null,{"$f":"title432","v":"High Volume Pipeline"},null,"6´´ PVC",150,3028,1016,215,{"$f":"37/3.048","v":12.139107611548557},"USD/m",37075,2003]
[null,null,null,null,null,null,null,null,null,null,null,null,null,null,null,{"$f":"title414","v":"Alley Scrapers"},0.14330809896079807,0.42057427773606393,{"$f":"(AVERAGE(35,45)*$B$52+10000+4000)/3785.41178","v":3.698408736922143},{"$f":"title421","v":"USD/liter mixture"},2009,0.08,0.5,null,{"$f":"title433","v":"Low Volume Pipeline"},null,"4´´ PVC",7.5,378,127,86,{"$f":"12.4/3.048","v":4.0682414698162734},"USD/m",7675,2003]
[null,null,null,null,null,null,null,null,null,null,null,null,null,null,null,{"$f":"title415","v":"Flush System"},0.4093569308278352,0.10526625737967994,{"$f":"(4950.08+(16+9.8)*$B$52)/3785.41178","v":1.3076727943188258},"USD/liter mixture",2014,{"$f":"AVERAGE(1%,3%)","v":0.02},0.5]
[null,null,null,null,null,null,null,null,null,null,null,null,null,null,null,{"$f":"title416","v":"Vacum Scraper"},3.190595592141102,1.9769935564290937,10,"USD/liter mixture",2010,0.18,0.5,null,null,{"$f":"title434","v":"Density (Kg/m3)"}]
[null,null,null,null,null,null,null,null,null,null,null,null,null,null,null,{"$f":"title417","v":"Skid-loader"},0.75612714559717353,1.2830705357537211,{"$f":"(142.6*0.914+58.5*0.084+50.75*0.997)/$Q$145","v":4.5602655457895951},"USD/liter mixture",2010,{"$f":"AVERAGE(8%,18%)","v":0.13},0.5,null,{"$f":"title435","v":"Buffalo"},960]
[null,null,null,null,null,null,null,null,null,null,null,null,null,null,null,{"$f":"title418","v":"Cross gutter Scraper"},1.5259658685640533E-2,2.6500596263415929E-2,5,"USD/liter mixture",2010,0.08,0.5,null,{"$f":"title436","v":"Cattle"},960]
[null,null,null,null,null,null,null,null,null,null,null,null,null,null,null,{"$f":"title419","v":"Cross Gutter Auger"},0.20478904265077005,2.6255220372088005E-2,{"$f":"2200*30/2378/10","v":2.7754415475189234},"USD/liter mixture",2010,0.08,0.5,null,{"$f":"title437","v":"Dairy Cattle"},994]
[null,null,null,null,null,null,null,null,null,null,null,null,null,null,null,{"$f":"title420","v":"Flush Flume"},0.13645231027594507,2.6255220372088005E-2,{"$f":"(4950.08+(16+9.8)*$B$52)*1.5/3785.41178","v":1.9615091914782385},"USD/liter mixture",2010,{"$f":"AVERAGE(4%,9%)","v":6.5000000000000002E-2},0.5,null,{"$f":"title438","v":"Poultry"},961.11]
[null,null,null,null,null,null,null,null,null,null,null,null,null,null,null,null,null,null,null,null,null,null,null,null,{"$f":"title439","v":"Swine"},1140.9000000000001]
[null,null,null,null,null,null,null,null,null,null,null,null,null,null,null,{"$f":"title357","v":"Dewatering"},"Screw Press ",{"$f":"PROPER(title164)","v":"Year"}]
[null,null,null,null,null,null,null,null,null,null,null,null,null,null,null,{"$f":"title422","v":"Capital Cost (USD/t residue)"},{"$f":"AVERAGE(0.2,0.5)*1000000*0.12/AVERAGE(4000,8000)","v":7},2002]
[null,null,null,null,null,null,null,null,null,null,null,null,null,null,null,{"$f":"title423","v":"Operation (worker/t residue)"},{"$f":"AVERAGE(20,40)*1000/AVERAGE(4000,8000)/(300*8*160)","v":1.3020833333333334E-5}]
[null,null,null,null,null,null,null,null,null,null,null,null,null,null,null,{"$f":"title424","v":"Energy Demand kWh/t residue"},{"$f":"AVERAGE(5,15)*8000/AVERAGE(4000,8000)","v":13.333333333333334},2002]
[]
[]
[]
[]
[null,null,null,null,null,null,null,null,null,null,null,null,null,null,null,{"$f":"title74","v":"Please Select"},{"$f":"title405","v":"Collection method"},"Show","Section to Show",{"$f":"VLOOKUP(INDIRECT(\"'Data entry needs'!$d$\"&$A$1),$P$166:$R$178,3,FALSE)","v":{"$error":"#N/A"}}]
[null,null,null,null,null,null,null,null,null,null,null,null,null,null,null,{"$f":"title184","v":"Biodiesel/Oilseed Ind."},{"$f":"title425","v":"No collection neeeded"},1,{"$f":"title429&\" 0\"","v":"Option 0"},0,0]
[null,null,null,null,null,null,null,null,null,null,null,null,null,null,null,{"$f":"title85","v":"Crop Residues"},{"$f":"title426","v":"Method 1"},2,{"$f":"title429&\" 1\"","v":"Option 1"},{"$f":"$I$31","v":{"$error":"#DIV/0!"}},{"$f":"$D$24/E16","v":{"$error":"#DIV/0!"}},{"$f":"title381","v":"person-hour/t"}]
[null,null,null,null,null,null,null,null,null,null,null,null,null,null,null,{"$f":"title185","v":"Dairy-milk ind."},{"$f":"title427","v":"Method 2, Method 3"},4,{"$f":"title429&\" 2\"","v":"Option 2"},{"$f":"$I$58","v":{"$error":"#DIV/0!"}},{"$f":"F49/E41","v":{"$error":"#N/A"}},{"$f":"title381","v":"person-hour/t"}]
[null,null,null,null,null,null,null,null,null,null,null,null,null,null,null,{"$f":"title120","v":"Energy Crops"},{"$f":"title425","v":"No collection neeeded"},1,{"$f":"title429&\" 3\"","v":"Option 3"},{"$f":"$I$87","v":{"$error":"#DIV/0!"}},{"$f":"D76","v":0},{"$f":"title381","v":"person-hour/t"}]
[null,null,null,null,null,null,null,null,null,null,null,null,null,null,null,{"$f":"title186","v":"Eth-Sugar-Starch Ind."},{"$f":"title425","v":"No collection neeeded"},1]
[null,null,null,null,null,null,null,null,null,null,null,null,null,null,null,{"$f":"title187","v":"Food Process. Res."},{"$f":"title425","v":"No collection neeeded"},1,{"$f":"title430","v":"Result"},{"$f":"IF($T$165=1,T166,IF($T$165=2,$T$167,IF($T$165=3,T168,IF(AND($T$165=4,$E$34),$T$168,$T$169))))","v":{"$error":"#N/A"}}]
[null,null,null,null,null,null,null,null,null,null,null,null,null,null,null,{"$f":"title188","v":"Grass"},{"$f":"title426","v":"Method 1"},2,{"$f":"title431","v":"Employees"},{"$f":"IF($T$165=1,U166,IF($T$165=2,$U$167,IF($T$165=3,U169,IF(AND($T$165=4,$E$34),$U$168,$U$169))))","v":{"$error":"#N/A"}},{"$f":"title381","v":"person-hour/t"}]
[null,null,null,null,null,null,null,null,null,null,null,null,null,null,null,{"$f":"title119","v":"Crops"},{"$f":"title425","v":"No collection neeeded"},1]
[null,null,null,null,null,null,null,null,null,null,null,null,null,null,null,{"$f":"title189","v":"Other Options"},{"$f":"title425","v":"No collection neeeded"},1]
[null,null,null,null,null,null,null,null,null,null,null,null,null,null,null,{"$f":"title190","v":"Slaughterhouses wastes"},{"$f":"title428","v":"Method 2"},3]
[null,null,null,null,null,null,null,null,null,null,null,null,null,null,null,{"$f":"title191","v":"Yeast-Alcoholic Bev."},{"$f":"title425","v":"No collection neeeded"},1]
[null,null,null,null,null,null,null,null,null,null,null,null,null,null,null,{"$f":"title84","v":"Manure"},{"$f":"title427","v":"Method 2, Method 3"},4]
[null,null,null,null,null,null,null,null,null,null,null,null,null,null,null,{"$f":"title192","v":"Wastewater"},{"$f":"title425","v":"No collection neeeded"},1]

{"sheet":"PRICE_FS4_PS3","index":46,"n_rows":178,"n_cols":39,"rows_kept":178,"cut":false,"hidden":true,"merged":[[40,8,40,9],[2,2,2,9],[5,2,5,3],[5,4,5,6],[7,2,10,9],[14,6,14,7],[15,2,15,3],[15,6,15,7],[30,3,30,7],[33,4,34,4],[33,5,34,5],[33,6,34,9],[34,2,34,3],[64,9,66,9],[86,3,86,7],[41,8,41,9],[57,3,57,7],[61,4,61,5],[61,6,62,6],[62,4,62,5],[64,2,64,3],[64,4,64,5],[64,6,66,6],[64,7,66,7],[64,8,66,8]]}
[{"$f":"PRICE_FS3_PS3!A1+2","v":63},91]
[]
[null,null,{"$f":"+title324&UPPER(INDIRECT(\"'Data entry needs'!$d$\"&$A$1)&\"-\"&INDIRECT(\"'Data entry needs'!$e$\"&$A$1))","v":"COLLECTION COSTS CALCULATOR FOR PLEASE SELECT-PLEASE SELECT"}]
[]
[]
[null,null,{"$f":"title193","v":"Use white cells to input data"},null,{"$f":"title194","v":"Grey cells are used for calculations"}]
[]
[null,null,{"$f":"title325&INDIRECT(\"'Data entry needs'!$d$\"&$A$1)&title326","v":"No collection method is required. It is assumed that Please Select are already collected. Then, transportation cost and/or market price should be considered."}]
[]
[]
[]
[]
[null,null,{"$f":"title327","v":"Collection Method 1 - Biomass spread in the field"}]
[]
[null,null,{"$f":"title328","v":"Collecting method"},null,{"$f":"title329","v":"Biomass Yield"},null,{"$f":"title110","v":"Feedstock Available (t/year)"},null,{"$f":"title330","v":"Collection days"}]
[null,null,"Mechanized",null,null,"t/ha",{"$f":"INDIRECT(\"'Data entry needs'!$F$\"&$A$1)","v":0},null,{"$f":"'Data entry needs'!L100-INDIRECT(\"Planner_pS3!$AN$\"&$B$1)*21","v":-252}]
[]
[null,null,{"$f":"title331","v":"Biomass Collection definition"}]
[]
[null,null,{"$f":"title332","v":"Biomass Price Definition"},null,null,null,null,null,null,null,null,null,null,null,null,null,null,null,null,null,null,{"$f":"title405","v":"Collection method"},null,{"$f":"title382","v":"Mechanized"},{"$f":"title380","v":"Number of skilled workers"},{"$f":"title409","v":"person-hour/ha"}]
[null,null,{"$f":"title333","v":"Labour cost"},{"$f":"title270","v":"Quantity"},{"$f":"title27","v":"Unit"},{"$f":"title270","v":"Quantity"},null,{"$f":"title27","v":"Unit"},"Total",{"$f":"title27","v":"Unit"},null,null,null,null,null,null,null,null,null,null,null,{"$f":"$C$16","v":"Mechanized"},null,{"$f":"title382&2","v":"Mechanized2"},{"$f":"title336","v":"Skilled labour wage"},{"$f":"title128","v":"USD/person-hour"}]
[null,null,{"$f":"IFERROR(VLOOKUP($V$21&$W21,$X$20:$Z$31,2,FALSE),\"\")","v":"Number of skilled workers"},null,{"$f":"IFERROR(VLOOKUP($V$21&$W21,$X$20:$Z$31,3,FALSE),\"\")","v":"person-hour/ha"},{"$f":"IFERROR(VLOOKUP($V$21&$W23,$X$20:$Z$31,2,FALSE),\"\")","v":"Skilled labour wage"},{"$f":"IF(F22=\"\",\"\",IF(F22=title335,'Data entry needs'!$L$96,IF(F22=title336,'Data entry needs'!F96)))","v":0},{"$f":"IFERROR(VLOOKUP($V$21&$W23,$X$20:$Z$31,3,FALSE),\"\")","v":"USD/person-hour"},{"$f":"IFERROR(G22*D22*(G16/E16)*('Data entry needs'!$L$100/$I$16),0)","v":0},{"$f":"IF(C22=\"\",\"\",title319)","v":"USD/year"},null,null,null,null,null,null,null,null,null,null,null,null,1,{"$f":"title382&4","v":"Mechanized4"},{"$f":"title407","v":"Average fuel economy"},"l/h"]
[null,null,{"$f":"IFERROR(VLOOKUP($V$21&$W22,$X$20:$Z$31,2,FALSE),\"\")","v":""},null,{"$f":"IFERROR(VLOOKUP($V$21&$W22,$X$20:$Z$31,3,FALSE),\"\")","v":""},{"$f":"IFERROR(VLOOKUP($V$21&$W24,$X$20:$Z$31,2,FALSE),\"\")","v":""},{"$f":"IF(F23=\"\",\"\",'Data entry needs'!L96)","v":""},{"$f":"title128","v":"USD/person-hour"},{"$f":"IFERROR(G23*D23*(G16/E16)*('Data entry needs'!$L$100/$I$16),0)","v":0},{"$f":"IF(C23=\"\",\"\",title319)","v":""},null,null,null,null,null,null,null,null,null,null,null,{"$f":"VLOOKUP($V$21,$T$29:$U$31,2,FALSE)","v":1},2,{"$f":"title382&5","v":"Mechanized5"},{"$f":"title408","v":"Fuel price"},"USD/l"]
[null,null,null,{"$f":"+IF(AND(C22=\"\",C23=\"\"),0,IF(C22=\"\",D23,IF(C23=\"\",D22,D22+D23)))","v":0},null,null,null,{"$f":"title269","v":"Subtotal"},{"$f":"+SUMIF($I$22:$I$23,\">0\")","v":0},{"$f":"title319","v":"USD/year"},null,null,null,null,null,null,null,null,null,null,null,null,3,{"$f":"title378","v":"Semi-mechanized"},{"$f":"title380","v":"Number of skilled workers"},{"$f":"title409","v":"person-hour/ha"}]
[null,null,{"$f":"title334","v":"Machinery & operating cost"},{"$f":"title270","v":"Quantity"},{"$f":"title27","v":"Unit"},{"$f":"title270","v":"Quantity"},null,{"$f":"title27","v":"Unit"},"Total",{"$f":"title27","v":"Unit"},null,null,null,null,null,null,null,null,null,null,null,null,4,{"$f":"title378&1","v":"Semi-mechanized1"},{"$f":"title379","v":"Number of unskilled workers"},{"$f":"title409","v":"person-hour/ha"}]
[null,null,{"$f":"IFERROR(VLOOKUP($V$21&$W25,$X$20:$Z$31,2,FALSE),\"\")","v":"Average fuel economy"},null,{"$f":"IFERROR(VLOOKUP($V$21&$W25,$X$20:$Z$31,3,FALSE),\"\")","v":"l/h"},{"$f":"IFERROR(VLOOKUP($V$21&$W26,$X$20:$Z$31,2,FALSE),\"\")","v":"Fuel price"},{"$f":"IF(F26=\"\",\"\",'Data entry needs'!$F$100)","v":0},{"$f":"+IFERROR(VLOOKUP($V$21&$W26,$X$20:$Z$31,3,FALSE),\"\")","v":"USD/l"},{"$f":"+IFERROR(D26*G26*IF($C$16=title337,0,$D$22*G16/E16)*('Data entry needs'!$L$100/$I$16),\"\")","v":""},{"$f":"IF(C26=\"\",\"\",title319)","v":"USD/year"},null,null,null,null,null,null,null,null,null,null,null,null,5,{"$f":"title378&2","v":"Semi-mechanized2"},{"$f":"title336","v":"Skilled labour wage"},{"$f":"title128","v":"USD/person-hour"}]
[null,null,null,null,null,null,null,{"$f":"IF(C26=\"\",\"\",title269)","v":"Subtotal"},{"$f":"+I26","v":""},{"$f":"IF(C26=\"\",\"\",title319)","v":"USD/year"},null,null,null,null,null,null,null,null,null,null,null,null,null,{"$f":"title378&3","v":"Semi-mechanized3"},{"$f":"title335","v":"Unskilled labour wage"},{"$f":"title128","v":"USD/person-hour"}]
[null,null,null,null,null,null,null,{"$f":"IF(C26=\"\",\"\",\"Total\")","v":"Total"},{"$f":"IFERROR(I24+I27,I24)","v":0},{"$f":"title319","v":"USD/year"},null,null,null,null,null,null,null,null,null,{"$f":"title405","v":"Collection method"},null,null,null,{"$f":"title378&4","v":"Semi-mechanized4"},{"$f":"title407","v":"Average fuel economy"},"l/h"]
[null,null,null,null,null,null,null,null,null,null,null,null,null,null,null,null,null,null,null,{"$f":"title382","v":"Mechanized"},1,null,null,{"$f":"title378&5","v":"Semi-mechanized5"},{"$f":"title408","v":"Fuel price"},"USD/l"]
[null,null,null,null,null,null,null,null,"",null,null,null,null,null,null,null,null,null,null,{"$f":"title378","v":"Semi-mechanized"},2,null,null,{"$f":"title337","v":"Manual"},{"$f":"title379","v":"Number of unskilled workers"},{"$f":"title409","v":"person-hour/ha"}]
[null,null,null,{"$f":"title338&INDIRECT(\"'Data entry needs'!$d$\"&$A$1)&\"-\"&INDIRECT(\"'Data entry needs'!$e$\"&$A$1)","v":"Collection cost of Please Select-Please Select"},null,null,null,null,{"$f":"(I24+I28)/$G$16","v":{"$error":"#DIV/0!"}},"USD/t",null,null,null,null,null,null,null,null,null,{"$f":"title337","v":"Manual"},3,null,null,{"$f":"title337&2","v":"Manual2"},{"$f":"title335","v":"Unskilled labour wage"},{"$f":"title128","v":"USD/person-hour"}]
[]
[]
[null,null,null,null,false,null,{"$f":"IF($E$34,title340,title341)","v":"Use this method for feedstock collected and transported from different farms to a central collection point"}]
[null,null,{"$f":"title339","v":"Collection Methods Available"}]
[]
[null,null,{"$f":"title342","v":"Collection Method 2"}]
[]
[null,null,{"$f":"title328","v":"Collecting method"},{"$f":"title343","v":"Transportation requirements"},null,null,null,null,{"$f":"title346","v":"Data Source"}]
[]
[null,null,"Please Select",{"$f":"title110","v":"Feedstock Available (t/year)"},{"$f":"INDIRECT(\"'Data entry needs'!$F$\"&$A$1)","v":0},{"$f":"title344","v":"Initial ts in residue (%)"},null,{"$f":"INDIRECT(\"'Data entry needs'!$h$\"&$A$1)","v":0},false]
[null,null,null,{"$f":"title134","v":"Operating days per year"},{"$f":"'Data entry needs'!L100-INDIRECT(\"Planner_pS3!$AN$\"&$B$1)*21","v":-252},{"$f":"title345&$C$41","v":"ts (%) allowed by Please Select"},null,{"$f":"Q45","v":{"$error":"#N/A"}}]
[]
[null,null,{"$f":"title347","v":"Collection Cost Definition"}]
[null,null,{"$f":"title348","v":"Operation Cost"},{"$f":"title270","v":"Quantity"},{"$f":"title27","v":"Unit"},{"$f":"title270","v":"Quantity"},{"$f":"title27","v":"Unit"},{"$f":"title267","v":"Unit Price"},"Total",null,null,null,null,null,null,"ts (%) transported",{"$f":"VLOOKUP($C$41,$P$149:$V$155,7,FALSE)","v":{"$error":"#N/A"}}]
[null,null,{"$f":"title35","v":"Electricity"},{"$f":"Q46","v":13.333333333333334},"kWh/t res",{"$f":"D46*E41","v":0},{"$f":"title304","v":"kWh/year"},{"$f":"'Data entry needs'!$L$92","v":0},{"$f":"F46*H46","v":0},{"$f":"title319","v":"USD/year"},null,null,null,null,null,{"$f":"title35","v":"Electricity"},{"$f":"$Q$160","v":13.333333333333334}]
[null,null,{"$f":"title170","v":"Diesel"},{"$f":"Q47","v":{"$error":"#N/A"}},{"$f":"title574","v":"l diesel/t res"},{"$f":"D47*$E$41","v":{"$error":"#N/A"}},{"$f":"title350","v":"Liter Diesel/year"},{"$f":"'Data entry needs'!$F$100","v":0},{"$f":"F47*H47","v":{"$error":"#N/A"}},{"$f":"title319","v":"USD/year"},null,null,null,null,null,{"$f":"title170","v":"Diesel"},{"$f":"VLOOKUP($C$41,$P$149:$S$155,2,FALSE)","v":{"$error":"#N/A"}}]
[null,null,{"$f":"title244","v":"Water Make-up "},{"$f":"Q48","v":0.15},{"$f":"title353","v":"Liter water/t res"},{"$f":"IF(D48=0,0,E41*(H41/H42)*(1-D48))","v":{"$error":"#N/A"}},{"$f":"title351","v":"Liter water/year"},{"$f":"'Data entry needs'!$F$92","v":0},{"$f":"F48*H48*D48","v":{"$error":"#N/A"}},{"$f":"title319","v":"USD/year"},null,null,null,null,null,{"$f":"title244","v":"Water Make-up "},0.15]
[null,null,{"$f":"title349","v":"Unskilled Workers"},{"$f":"Q49","v":{"$error":"#N/A"}},{"$f":"title354","v":"person-day/t res"},{"$f":"ROUNDUP($D$49*E41*('Data entry needs'!$L$100/PRICE_FS4_PS3!E42)/'Data entry needs'!$L$99,0)","v":{"$error":"#N/A"}},{"$f":"title352","v":"person-hour"},{"$f":"'Data entry needs'!$L$96","v":0},{"$f":"F49*H49","v":{"$error":"#N/A"}},{"$f":"title319","v":"USD/year"},null,null,null,null,null,{"$f":"title127","v":"Unskilled worker"},{"$f":"VLOOKUP($C$41,$P$149:$S$155,3,FALSE)","v":{"$error":"#N/A"}}]
[null,null,null,{"$f":"Q47","v":{"$error":"#N/A"}},null,null,null,{"$f":"title269","v":"Subtotal"},{"$f":"+SUMIF($I$46:$I$49,\">0\")","v":0},{"$f":"title319","v":"USD/year"}]
[]
[null,null,{"$f":"title355","v":"Capital Investment"},{"$f":"title270","v":"Quantity"},{"$f":"title27","v":"Unit"}]
[null,null,{"$f":"$C$41&title356","v":"Please Select and equipment"},{"$f":"Q53","v":{"$error":"#N/A"}},{"$f":"VLOOKUP($C$41,$P$149:$T$155,5,FALSE)","v":{"$error":"#N/A"}},null,null,null,{"$f":"D53*(E41*10)/20","v":{"$error":"#N/A"}},{"$f":"title319","v":"USD/year"},null,null,null,null,null,{"$f":"$C$41&title356","v":"Please Select and equipment"},{"$f":"VLOOKUP($C$41,$P$149:$S$155,4,FALSE)","v":{"$error":"#N/A"}}]
[null,null,{"$f":"title357","v":"Dewatering"},{"$f":"Q54","v":7},"USD/t res",null,null,null,{"$f":"D54*$E$41/20","v":0},{"$f":"title319","v":"USD/year"},null,null,null,null,null,{"$f":"title357","v":"Dewatering"},{"$f":"$Q$158","v":7}]
[null,null,{"$f":"title358","v":"Operation and Mainteinance"},{"$f":"Q55","v":0.15},null,null,null,null,{"$f":"SUM(I53:I54)*$D$55","v":{"$error":"#N/A"}},{"$f":"title319","v":"USD/year"},null,null,null,null,null,{"$f":"title358","v":"Operation and Mainteinance"},0.15]
[null,null,null,{"$f":"+IF(AND(C54=\"\",C55=\"\"),0,IF(C54=\"\",D55,IF(C55=\"\",D54,D54+D55)))","v":7.15},null,null,null,{"$f":"title269","v":"Subtotal"},{"$f":"+SUMIF(I53:I55,\">0\")","v":0},{"$f":"title319","v":"USD/year"}]
[]
[null,null,null,{"$f":"title359","v":"Cost for Collection and transfer to storage tank"},null,null,null,null,{"$f":"SUM(I50+I56)/E41","v":{"$error":"#DIV/0!"}},"USD/t"]
[]
[null,null,{"$f":"title360","v":"Collection Method 3 - Feedstock collected from different farms"}]
[]
[null,null,{"$f":"title361","v":"Source of biomass"},null,{"$f":"title405","v":"Collection method"},null,{"$f":"title346","v":"Data Source"},false]
[null,null,{"$f":"title362","v":"Transfer from individual farms"},null,"Mechanized"]
[]
[null,null,{"$f":"title363","v":"Transportation method"},null,"Tanker Truck Transfer",null,{"$f":"title372","v":"Number Of Farms Supplying Feedstock"},{"$f":"title373","v":"Average distance to collection point (m)"},{"$f":"title374","v":"Collection Period (days)"},{"$f":"IF($E$65=title364,title375,title376)&title377","v":"Number of Tanks required"}]
[]
[null,null,{"$f":"IF($E$65=title364,title365,title366)","v":"Tranport Capacity (liter)"},null,{"$f":"title370","v":"Residue Quanitiy (t/year)"},{"$f":"INDIRECT(\"'Data entry needs'!$F$\"&$A$1)","v":0},null,null,null,null,null,null,null,null,null,{"$f":"IF($E$60=title364,title365,title366)","v":"Pipe Diameter (in)"},{"$f":"VLOOKUP($E$65,$Y$147:$AE$149,3,FALSE)","v":27600}]
[null,null,{"$f":"IF($E$65=title364,title367,title368)","v":"Engine Power (HP)"},null,{"$f":"title371","v":"Residue Density (kg/m3)"},{"$f":"Q72","v":1000},null,null,{"$f":"'Data entry needs'!L100-INDIRECT(\"Planner_pS3!$AN$\"&$B$1)*21","v":-252},{"$f":"IFERROR(ROUNDUP($F$67*1000*1000/(960*$D$69*'Data entry needs'!$L$99)/$I$68,0),0)","v":0},null,null,null,null,null,{"$f":"IF($E$60=title364,title367,title368)","v":"Motor Power (HP)"},{"$f":"VLOOKUP($E$65,$Y$147:$AE$149,4,FALSE)","v":200}]
[null,null,{"$f":"title369","v":"Transfer Rate (l/h)"},null,null,null,null,null,null,null,null,null,null,null,null,{"$f":"title369","v":"Transfer Rate (l/h)"},{"$f":"VLOOKUP($E$65,$Y$147:$AE$149,5,FALSE)","v":27221.917808219176}]
[]
[null,null,null,{"$f":"+IF(OR($E$63=title337,$E$63=title378),FALSE,TRUE)","v":true},{"$f":"+IF($E$63=title337,TRUE,FALSE)","v":false}]
[null,null,{"$f":"title332","v":"Biomass Price Definition"},null,null,null,null,null,null,null,null,null,null,null,null,{"$f":"title371","v":"Residue Density (kg/m3)"},{"$f":"IFERROR(VLOOKUP(INDIRECT(\"'Data entry needs'!$e$\"&$A$1),PRICE_FS3_PS3!$Y$152:$Z$156,2,FALSE),1000)","v":1000}]
[null,null,{"$f":"title333","v":"Labour cost"},{"$f":"title270","v":"Quantity"},{"$f":"title27","v":"Unit"},{"$f":"title270","v":"Quantity"},null,{"$f":"title27","v":"Unit"},"Total",{"$f":"title27","v":"Unit"}]
[null,null,{"$f":"IF(OR($E$63=title337,$E$63=title378),title379,\"\")","v":""},null,{"$f":"IF(OR($E$63=title337,$E$63=title378),title381,\"\")","v":""},{"$f":"IF(OR($E$63=title337,$E$63=title378),title335,\"\")","v":""},{"$f":"IF(OR($E$63=title337,$E$63=title378),'Data entry needs'!$L$96,\"\")","v":""},{"$f":"IF(OR($E$63=title337,$E$63=title378),title128,\"\")","v":""},{"$f":"IFERROR(IF(OR($E$63=title337,$E$63=title378),$F$67*D74*$G$74,\"\"),0)","v":""},{"$f":"IF(OR($E$63=title337,$E$63=title378),title319,\"\")","v":""}]
[null,null,{"$f":"IF($E$63=title337,\"\",title380)","v":"Number of skilled workers"},null,{"$f":"IF($E$63=title337,\"\",title381)","v":"person-hour/t"},{"$f":"IF($E$63=title337,\"\",title336)","v":"Skilled labour wage"},{"$f":"IF($E$63=title337,\"\",'Data entry needs'!$F$96)","v":0},{"$f":"IF($E$63=title337,\"\",title128)","v":"USD/person-hour"},{"$f":"IFERROR(IF($E$63=title337,\"\",D75*G75*$F$67),0)","v":0},{"$f":"IF($E$63=title337,\"\",title319)","v":"USD/year"}]
[null,null,null,{"$f":"+IF(AND(C74=\"\",C75=\"\"),0,IF(C74=\"\",D75,IF(C75=\"\",D74,D74+D75)))","v":0},null,null,null,{"$f":"title269","v":"Subtotal"},{"$f":"+SUMIF($I$74:$I$75,\">0\")","v":0},{"$f":"title319","v":"USD/year"}]
[null,null,{"$f":"title383","v":"Collection Machinery"},{"$f":"title270","v":"Quantity"},{"$f":"title27","v":"Unit"},{"$f":"title270","v":"Quantity"},null,{"$f":"title27","v":"Unit"},"Total",{"$f":"title27","v":"Unit"}]
[null,null,{"$f":"IF(OR($E$63=title382,$E$63=title378),title384,\"\")","v":"Collection Diesel Consumption"},null,{"$f":"IF(OR($E$63=title382,$E$63=title378),title575,\"\")","v":"l diesel/h"},{"$f":"IF(OR($E$63=title382,$E$63=title378),title389,\"\")","v":"Diesel Cost"},{"$f":"IF(OR($E$63=title382,$E$63=title378),'Data entry needs'!F$100,\"\")","v":0},{"$f":"IF(OR($E$63=title382,$E$63=title378),title576,\"\")","v":"USD/l diesel"},{"$f":"IFERROR(IF(OR($E$63=title382,$E$63=title378),D78*G78*D75*F67,\"\"),0)","v":0},{"$f":"title319","v":"USD/year"}]
[null,null,{"$f":"IF($E$65=title364,title385,title386)","v":"Truck Diesel Consumption"},null,{"$f":"IF($E$65=title364,title387,title388)","v":"l diesel/day"},{"$f":"IF($E$65=title364,title389,title390)","v":"Diesel Cost"},{"$f":"IF($E$65=title364,'Data entry needs'!F$100,'Data entry needs'!$L$92)","v":0},{"$f":"IF($E$65=title364,title576,\"USD/kWh\")","v":"USD/l diesel"},{"$f":"IFERROR(D79*G79*$I$68*$J$68,0)","v":0},{"$f":"title319","v":"USD/year"},null,null,null,null,null,{"$f":"IF($E$60=title364,title385,title386)","v":"Pump Electricity Consumption"},{"$f":"VLOOKUP($E$65,$Y$147:$AE$149,7,FALSE)","v":154}]
[null,null,null,null,null,null,null,{"$f":"title269","v":"Subtotal"},{"$f":"+SUMIF($I$78:$I$79,\">0\")","v":0},{"$f":"title319","v":"USD/year"}]
[null,null,{"$f":"title391","v":"Equipment"},{"$f":"title270","v":"Quantity"},{"$f":"title27","v":"Unit"},{"$f":"title270","v":"Quantity"},null,{"$f":"title27","v":"Unit"},"Total",{"$f":"title27","v":"Unit"}]
[null,null,{"$f":"IF($E$65=title364,title392,title393)","v":"Liquid Tanker Truck"},{"$f":"IF($E$65=title364,$J$68,$G$68*$H$68*1.2)","v":0},{"$f":"IF($E$65=title364,title398,\"m\")","v":"tank(s)"},{"$f":"IF($E$65=title364,title399,title400)","v":"Cost per Tank"},{"$f":"VLOOKUP($E$65,$Y$147:$AF$149,8,FALSE)/10","v":7900},{"$f":"IF($E$65=title364,title402,title403)","v":"USD/tank/year"},{"$f":"IFERROR(D82*G82,0)","v":0},{"$f":"title319","v":"USD/year"}]
[null,null,{"$f":"IF($E$65=title364,title394&$D$68&title395,title396&$D$68&title397)","v":"Semi-tractor 185  HP"},null,"USD",{"$f":"title401","v":"Depreciation Period"},null,{"$f":"title164","v":"year"},{"$f":"IFERROR(D83*$J$68/G83,0)","v":0},{"$f":"title319","v":"USD/year"},null,null,null,null,null,{"$f":"IF($E$60=title364,title406,title396&$D$63&title397)","v":"Pump  HP with agitator"},{"$f":"VLOOKUP($E$65,$Y$147:$AH$149,10,FALSE)","v":148000}]
[null,null,{"$f":"title358","v":"Operation and Mainteinance"},null,null,null,null,null,{"$f":"IFERROR(SUM(I82:I83)*$D$84,0)","v":0},{"$f":"title319","v":"USD/year"},null,null,null,null,null,{"$f":"title358","v":"Operation and Mainteinance"},0.15]
[null,null,null,null,null,null,null,{"$f":"title269","v":"Subtotal"},{"$f":"I82","v":0},{"$f":"title319","v":"USD/year"},null,null,null,null,null,{"$f":"title401","v":"Depreciation Period"},15]
[]
[null,null,null,{"$f":"title404","v":"Cost for Collection and transfer to central collection point"},null,null,null,null,{"$f":"(I85+I80+I76)/$F$67","v":{"$error":"#DIV/0!"}},"USD/t"]
[]
[]
[]
[]
[]
[]
[]
[]
[]
[]
[]
[]
[]
[]
[]
[]
[]
[]
[]
[]
[]
[]
[]
[]
[]
[]
[]
[]
[]
[]
[]
[null,null,null,null,null,null,null,null,null,null,null,null,null,null,null,{"$f":"title410","v":"Sources of biomass"}]
[null,null,null,null,null,null,null,null,null,null,null,null,null,null,null,{"$f":"title411","v":"Biomass spread in the field"}]
[null,null,null,null,null,null,null,null,null,null,null,null,null,null,null,{"$f":"title412","v":"Biomass collected from field"}]
[null,null,null,null,null,null,null,null,null,null,null,null,null,null,null,{"$f":"title413","v":"Biomass from food processing plant"}]
[]
[]
[]
[]
[null,null,null,null,null,null,null,null,null,null,null,null,null,null,null,{"$f":"title405","v":"Collection method"}]
[null,null,null,null,null,null,null,null,null,null,null,null,null,null,null,{"$f":"title382","v":"Mechanized"}]
[null,null,null,null,null,null,null,null,null,null,null,null,null,null,null,{"$f":"title378","v":"Semi-mechanized"}]
[null,null,null,null,null,null,null,null,null,null,null,null,null,null,null,{"$f":"title337","v":"Manual"}]
[]
[]
[]
[]
[]
[]
[]
[]
[]
[]
[]
[]
[]
[]
[null,null,null,null,null,null,null,null,null,null,null,null,null,null,null,"Dairy maNURE",40.753799999999998,"Manure (kg/head/day)"]
[null,null,null,null,null,null,null,null,null,null,null,null,null,null,null,null,"Energy Use Cost","Labor and Mainteinance",null,null,null,"ts (%) transported","Dewateing",null,null,null,{"$f":"title440","v":"Capacity"},{"$f":"title441","v":"Engine/motor (hp)"},{"$f":"title369","v":"Transfer Rate (l/h)"},{"$f":"title442","v":"Transfer time (m/h)"},{"$f":"title443","v":"Energy Use  (kw)"},{"$f":"title444","v":"Add equipment"}]
[null,null,null,null,null,null,null,null,null,null,null,null,null,null,null,{"$f":"title405","v":"Collection method"},"liters diesel/t residue","workers*day/t residue","Capital cost","Capital cost","Capital cost",null,"Final solids ts (%)",null,{"$f":"title364","v":"Tanker Truck Transfer"},null,27600,200,27221.917808219176,609.6,154,79000,"USD",{"$f":"148000","v":148000},2010,{"$f":"title406","v":"Semi-tractor 185 HP"},null,null,"l/working day"]
[null,null,null,null,null,null,null,null,null,null,null,null,null,null,null,{"$f":"title74","v":"Please Select"},null,null,null,null,null,null,null,null,{"$f":"title432","v":"High Volume Pipeline"},null,"6´´ PVC",150,3028,1016,215,{"$f":"37/3.048","v":12.139107611548557},"USD/m",37075,2003]
[null,null,null,null,null,null,null,null,null,null,null,null,null,null,null,{"$f":"title414","v":"Alley Scrapers"},0.14330809896079807,0.42057427773606393,{"$f":"(AVERAGE(35,45)*$B$52+10000+4000)/3785.41178","v":3.698408736922143},{"$f":"title421","v":"USD/liter mixture"},2009,0.08,0.5,null,{"$f":"title433","v":"Low Volume Pipeline"},null,"4´´ PVC",7.5,378,127,86,{"$f":"12.4/3.048","v":4.0682414698162734},"USD/m",7675,2003]
[null,null,null,null,null,null,null,null,null,null,null,null,null,null,null,{"$f":"title415","v":"Flush System"},0.4093569308278352,0.10526625737967994,{"$f":"(4950.08+(16+9.8)*$B$52)/3785.41178","v":1.3076727943188258},"USD/liter mixture",2014,{"$f":"AVERAGE(1%,3%)","v":0.02},0.5]
[null,null,null,null,null,null,null,null,null,null,null,null,null,null,null,{"$f":"title416","v":"Vacum Scraper"},3.190595592141102,1.9769935564290937,10,"USD/liter mixture",2010,0.18,0.5,null,null,{"$f":"title434","v":"Density (Kg/m3)"}]
[null,null,null,null,null,null,null,null,null,null,null,null,null,null,null,{"$f":"title417","v":"Skid-loader"},0.75612714559717353,1.2830705357537211,{"$f":"(142.6*0.914+58.5*0.084+50.75*0.997)/$Q$145","v":4.5602655457895951},"USD/liter mixture",2010,{"$f":"AVERAGE(8%,18%)","v":0.13},0.5,null,{"$f":"title435","v":"Buffalo"},960]
[null,null,null,null,null,null,null,null,null,null,null,null,null,null,null,{"$f":"title418","v":"Cross gutter Scraper"},1.5259658685640533E-2,2.6500596263415929E-2,5,"USD/liter mixture",2010,0.08,0.5,null,{"$f":"title436","v":"Cattle"},960]
[null,null,null,null,null,null,null,null,null,null,null,null,null,null,null,{"$f":"title419","v":"Cross Gutter Auger"},0.20478904265077005,2.6255220372088005E-2,{"$f":"2200*30/2378/10","v":2.7754415475189234},"USD/liter mixture",2010,0.08,0.5,null,{"$f":"title437","v":"Dairy Cattle"},994]
[null,null,null,null,null,null,null,null,null,null,null,null,null,null,null,{"$f":"title420","v":"Flush Flume"},0.13645231027594507,2.6255220372088005E-2,{"$f":"(4950.08+(16+9.8)*$B$52)*1.5/3785.41178","v":1.9615091914782385},"USD/liter mixture",2010,{"$f":"AVERAGE(4%,9%)","v":6.5000000000000002E-2},0.5,null,{"$f":"title438","v":"Poultry"},961.11]
[null,null,null,null,null,null,null,null,null,null,null,null,null,null,null,null,null,null,null,null,null,null,null,null,{"$f":"title439","v":"Swine"},1140.9000000000001]
[null,null,null,null,null,null,null,null,null,null,null,null,null,null,null,{"$f":"title357","v":"Dewatering"},"Screw Press ",{"$f":"PROPER(title164)","v":"Year"}]
[null,null,null,null,null,null,null,null,null,null,null,null,null,null,null,{"$f":"title422","v":"Capital Cost (USD/t residue)"},{"$f":"AVERAGE(0.2,0.5)*1000000*0.12/AVERAGE(4000,8000)","v":7},2002]
[null,null,null,null,null,null,null,null,null,null,null,null,null,null,null,{"$f":"title423","v":"Operation (worker/t residue)"},{"$f":"AVERAGE(20,40)*1000/AVERAGE(4000,8000)/(300*8*160)","v":1.3020833333333334E-5}]
[null,null,null,null,null,null,null,null,null,null,null,null,null,null,null,{"$f":"title424","v":"Energy Demand kWh/t residue"},{"$f":"AVERAGE(5,15)*8000/AVERAGE(4000,8000)","v":13.333333333333334},2002]
[]
[]
[]
[]
[null,null,null,null,null,null,null,null,null,null,null,null,null,null,null,{"$f":"title74","v":"Please Select"},{"$f":"title405","v":"Collection method"},"Show","Section to Show",{"$f":"VLOOKUP(INDIRECT(\"'Data entry needs'!$d$\"&$A$1),$P$166:$R$178,3,FALSE)","v":{"$error":"#N/A"}}]
[null,null,null,null,null,null,null,null,null,null,null,null,null,null,null,{"$f":"title184","v":"Biodiesel/Oilseed Ind."},{"$f":"title425","v":"No collection neeeded"},1,{"$f":"title429&\" 0\"","v":"Option 0"},0,0]
[null,null,null,null,null,null,null,null,null,null,null,null,null,null,null,{"$f":"title85","v":"Crop Residues"},{"$f":"title426","v":"Method 1"},2,{"$f":"title429&\" 1\"","v":"Option 1"},{"$f":"$I$31","v":{"$error":"#DIV/0!"}},{"$f":"$D$24/E16","v":{"$error":"#DIV/0!"}},{"$f":"title381","v":"person-hour/t"}]
[null,null,null,null,null,null,null,null,null,null,null,null,null,null,null,{"$f":"title185","v":"Dairy-milk ind."},{"$f":"title427","v":"Method 2, Method 3"},4,{"$f":"title429&\" 2\"","v":"Option 2"},{"$f":"$I$58","v":{"$error":"#DIV/0!"}},{"$f":"F49/E41","v":{"$error":"#N/A"}},{"$f":"title381","v":"person-hour/t"}]
[null,null,null,null,null,null,null,null,null,null,null,null,null,null,null,{"$f":"title120","v":"Energy Crops"},{"$f":"title425","v":"No collection neeeded"},1,{"$f":"title429&\" 3\"","v":"Option 3"},{"$f":"$I$87","v":{"$error":"#DIV/0!"}},{"$f":"D76","v":0},{"$f":"title381","v":"person-hour/t"}]
[null,null,null,null,null,null,null,null,null,null,null,null,null,null,null,{"$f":"title186","v":"Eth-Sugar-Starch Ind."},{"$f":"title425","v":"No collection neeeded"},1]
[null,null,null,null,null,null,null,null,null,null,null,null,null,null,null,{"$f":"title187","v":"Food Process. Res."},{"$f":"title425","v":"No collection neeeded"},1,{"$f":"title430","v":"Result"},{"$f":"IF($T$165=1,T166,IF($T$165=2,$T$167,IF($T$165=3,T168,IF(AND($T$165=4,$E$34),$T$168,$T$169))))","v":{"$error":"#N/A"}}]
[null,null,null,null,null,null,null,null,null,null,null,null,null,null,null,{"$f":"title188","v":"Grass"},{"$f":"title426","v":"Method 1"},2,{"$f":"title431","v":"Employees"},{"$f":"IF($T$165=1,U166,IF($T$165=2,$U$167,IF($T$165=3,U169,IF(AND($T$165=4,$E$34),$U$168,$U$169))))","v":{"$error":"#N/A"}},{"$f":"title381","v":"person-hour/t"}]
[null,null,null,null,null,null,null,null,null,null,null,null,null,null,null,{"$f":"title119","v":"Crops"},{"$f":"title425","v":"No collection neeeded"},1]
[null,null,null,null,null,null,null,null,null,null,null,null,null,null,null,{"$f":"title189","v":"Other Options"},{"$f":"title425","v":"No collection neeeded"},1]
[null,null,null,null,null,null,null,null,null,null,null,null,null,null,null,{"$f":"title190","v":"Slaughterhouses wastes"},{"$f":"title428","v":"Method 2"},3]
[null,null,null,null,null,null,null,null,null,null,null,null,null,null,null,{"$f":"title191","v":"Yeast-Alcoholic Bev."},{"$f":"title425","v":"No collection neeeded"},1]
[null,null,null,null,null,null,null,null,null,null,null,null,null,null,null,{"$f":"title84","v":"Manure"},{"$f":"title427","v":"Method 2, Method 3"},4]
[null,null,null,null,null,null,null,null,null,null,null,null,null,null,null,{"$f":"title192","v":"Wastewater"},{"$f":"title425","v":"No collection neeeded"},1]

{"sheet":"PRICE_FS5_PS3","index":47,"n_rows":178,"n_cols":39,"rows_kept":178,"cut":false,"hidden":true,"merged":[[40,8,40,9],[2,2,2,9],[5,2,5,3],[5,4,5,6],[7,2,10,9],[14,6,14,7],[15,2,15,3],[15,6,15,7],[30,3,30,7],[33,4,34,4],[33,5,34,5],[33,6,34,9],[34,2,34,3],[64,9,66,9],[86,3,86,7],[41,8,41,9],[57,3,57,7],[61,4,61,5],[61,6,62,6],[62,4,62,5],[64,2,64,3],[64,4,64,5],[64,6,66,6],[64,7,66,7],[64,8,66,8]]}
[{"$f":"PRICE_FS4_PS3!A1+2","v":65},92]
[]
[null,null,{"$f":"+title324&UPPER(INDIRECT(\"'Data entry needs'!$d$\"&$A$1)&\"-\"&INDIRECT(\"'Data entry needs'!$e$\"&$A$1))","v":"COLLECTION COSTS CALCULATOR FOR PLEASE SELECT-PLEASE SELECT"}]
[]
[]
[null,null,{"$f":"title193","v":"Use white cells to input data"},null,{"$f":"title194","v":"Grey cells are used for calculations"}]
[]
[null,null,{"$f":"title325&INDIRECT(\"'Data entry needs'!$d$\"&$A$1)&title326","v":"No collection method is required. It is assumed that Please Select are already collected. Then, transportation cost and/or market price should be considered."}]
[]
[]
[]
[]
[null,null,{"$f":"title327","v":"Collection Method 1 - Biomass spread in the field"}]
[]
[null,null,{"$f":"title328","v":"Collecting method"},null,{"$f":"title329","v":"Biomass Yield"},null,{"$f":"title110","v":"Feedstock Available (t/year)"},null,{"$f":"title330","v":"Collection days"}]
[null,null,"Mechanized",null,null,"t/ha",{"$f":"INDIRECT(\"'Data entry needs'!$F$\"&$A$1)","v":0},null,{"$f":"'Data entry needs'!L100-INDIRECT(\"Planner_pS3!$AN$\"&$B$1)*21","v":-252}]
[]
[null,null,{"$f":"title331","v":"Biomass Collection definition"}]
[]
[null,null,{"$f":"title332","v":"Biomass Price Definition"},null,null,null,null,null,null,null,null,null,null,null,null,null,null,null,null,null,null,{"$f":"title405","v":"Collection method"},null,{"$f":"title382","v":"Mechanized"},{"$f":"title380","v":"Number of skilled workers"},{"$f":"title409","v":"person-hour/ha"}]
[null,null,{"$f":"title333","v":"Labour cost"},{"$f":"title270","v":"Quantity"},{"$f":"title27","v":"Unit"},{"$f":"title270","v":"Quantity"},null,{"$f":"title27","v":"Unit"},"Total",{"$f":"title27","v":"Unit"},null,null,null,null,null,null,null,null,null,null,null,{"$f":"$C$16","v":"Mechanized"},null,{"$f":"title382&2","v":"Mechanized2"},{"$f":"title336","v":"Skilled labour wage"},{"$f":"title128","v":"USD/person-hour"}]
[null,null,{"$f":"IFERROR(VLOOKUP($V$21&$W21,$X$20:$Z$31,2,FALSE),\"\")","v":"Number of skilled workers"},null,{"$f":"IFERROR(VLOOKUP($V$21&$W21,$X$20:$Z$31,3,FALSE),\"\")","v":"person-hour/ha"},{"$f":"IFERROR(VLOOKUP($V$21&$W23,$X$20:$Z$31,2,FALSE),\"\")","v":"Skilled labour wage"},{"$f":"IF(F22=\"\",\"\",IF(F22=title335,'Data entry needs'!$L$96,IF(F22=title336,'Data entry needs'!F96)))","v":0},{"$f":"IFERROR(VLOOKUP($V$21&$W23,$X$20:$Z$31,3,FALSE),\"\")","v":"USD/person-hour"},{"$f":"IFERROR(G22*D22*(G16/E16)*('Data entry needs'!$L$100/$I$16),0)","v":0},{"$f":"IF(C22=\"\",\"\",title319)","v":"USD/year"},null,null,null,null,null,null,null,null,null,null,null,null,1,{"$f":"title382&4","v":"Mechanized4"},{"$f":"title407","v":"Average fuel economy"},"l/h"]
[null,null,{"$f":"IFERROR(VLOOKUP($V$21&$W22,$X$20:$Z$31,2,FALSE),\"\")","v":""},null,{"$f":"IFERROR(VLOOKUP($V$21&$W22,$X$20:$Z$31,3,FALSE),\"\")","v":""},{"$f":"IFERROR(VLOOKUP($V$21&$W24,$X$20:$Z$31,2,FALSE),\"\")","v":""},{"$f":"IF(F23=\"\",\"\",'Data entry needs'!L96)","v":""},{"$f":"title128","v":"USD/person-hour"},{"$f":"IFERROR(G23*D23*(G16/E16)*('Data entry needs'!$L$100/$I$16),0)","v":0},{"$f":"IF(C23=\"\",\"\",title319)","v":""},null,null,null,null,null,null,null,null,null,null,null,{"$f":"VLOOKUP($V$21,$T$29:$U$31,2,FALSE)","v":1},2,{"$f":"title382&5","v":"Mechanized5"},{"$f":"title408","v":"Fuel price"},"USD/l"]
[null,null,null,{"$f":"+IF(AND(C22=\"\",C23=\"\"),0,IF(C22=\"\",D23,IF(C23=\"\",D22,D22+D23)))","v":0},null,null,null,{"$f":"title269","v":"Subtotal"},{"$f":"+SUMIF($I$22:$I$23,\">0\")","v":0},{"$f":"title319","v":"USD/year"},null,null,null,null,null,null,null,null,null,null,null,null,3,{"$f":"title378","v":"Semi-mechanized"},{"$f":"title380","v":"Number of skilled workers"},{"$f":"title409","v":"person-hour/ha"}]
[null,null,{"$f":"title334","v":"Machinery & operating cost"},{"$f":"title270","v":"Quantity"},{"$f":"title27","v":"Unit"},{"$f":"title270","v":"Quantity"},null,{"$f":"title27","v":"Unit"},"Total",{"$f":"title27","v":"Unit"},null,null,null,null,null,null,null,null,null,null,null,null,4,{"$f":"title378&1","v":"Semi-mechanized1"},{"$f":"title379","v":"Number of unskilled workers"},{"$f":"title409","v":"person-hour/ha"}]
[null,null,{"$f":"IFERROR(VLOOKUP($V$21&$W25,$X$20:$Z$31,2,FALSE),\"\")","v":"Average fuel economy"},null,{"$f":"IFERROR(VLOOKUP($V$21&$W25,$X$20:$Z$31,3,FALSE),\"\")","v":"l/h"},{"$f":"IFERROR(VLOOKUP($V$21&$W26,$X$20:$Z$31,2,FALSE),\"\")","v":"Fuel price"},{"$f":"IF(F26=\"\",\"\",'Data entry needs'!$F$100)","v":0},{"$f":"+IFERROR(VLOOKUP($V$21&$W26,$X$20:$Z$31,3,FALSE),\"\")","v":"USD/l"},{"$f":"+IFERROR(D26*G26*IF($C$16=title337,0,$D$22*G16/E16)*('Data entry needs'!$L$100/$I$16),\"\")","v":""},{"$f":"IF(C26=\"\",\"\",title319)","v":"USD/year"},null,null,null,null,null,null,null,null,null,null,null,null,5,{"$f":"title378&2","v":"Semi-mechanized2"},{"$f":"title336","v":"Skilled labour wage"},{"$f":"title128","v":"USD/person-hour"}]
[null,null,null,null,null,null,null,{"$f":"IF(C26=\"\",\"\",title269)","v":"Subtotal"},{"$f":"+I26","v":""},{"$f":"IF(C26=\"\",\"\",title319)","v":"USD/year"},null,null,null,null,null,null,null,null,null,null,null,null,null,{"$f":"title378&3","v":"Semi-mechanized3"},{"$f":"title335","v":"Unskilled labour wage"},{"$f":"title128","v":"USD/person-hour"}]
[null,null,null,null,null,null,null,{"$f":"IF(C26=\"\",\"\",\"Total\")","v":"Total"},{"$f":"IFERROR(I24+I27,I24)","v":0},{"$f":"title319","v":"USD/year"},null,null,null,null,null,null,null,null,null,{"$f":"title405","v":"Collection method"},null,null,null,{"$f":"title378&4","v":"Semi-mechanized4"},{"$f":"title407","v":"Average fuel economy"},"l/h"]
[null,null,null,null,null,null,null,null,null,null,null,null,null,null,null,null,null,null,null,{"$f":"title382","v":"Mechanized"},1,null,null,{"$f":"title378&5","v":"Semi-mechanized5"},{"$f":"title408","v":"Fuel price"},"USD/l"]
[null,null,null,null,null,null,null,null,"",null,null,null,null,null,null,null,null,null,null,{"$f":"title378","v":"Semi-mechanized"},2,null,null,{"$f":"title337","v":"Manual"},{"$f":"title379","v":"Number of unskilled workers"},{"$f":"title409","v":"person-hour/ha"}]
[null,null,null,{"$f":"title338&INDIRECT(\"'Data entry needs'!$d$\"&$A$1)&\"-\"&INDIRECT(\"'Data entry needs'!$e$\"&$A$1)","v":"Collection cost of Please Select-Please Select"},null,null,null,null,{"$f":"(I24+I28)/$G$16","v":{"$error":"#DIV/0!"}},"USD/t",null,null,null,null,null,null,null,null,null,{"$f":"title337","v":"Manual"},3,null,null,{"$f":"title337&2","v":"Manual2"},{"$f":"title335","v":"Unskilled labour wage"},{"$f":"title128","v":"USD/person-hour"}]
[]
[]
[null,null,null,null,false,null,{"$f":"IF($E$34,title340,title341)","v":"Use this method for feedstock collected and transported from different farms to a central collection point"}]
[null,null,{"$f":"title339","v":"Collection Methods Available"}]
[]
[null,null,{"$f":"title342","v":"Collection Method 2"}]
[]
[null,null,{"$f":"title328","v":"Collecting method"},{"$f":"title343","v":"Transportation requirements"},null,null,null,null,{"$f":"title346","v":"Data Source"}]
[]
[null,null,"Please Select",{"$f":"title110","v":"Feedstock Available (t/year)"},{"$f":"INDIRECT(\"'Data entry needs'!$F$\"&$A$1)","v":0},{"$f":"title344","v":"Initial ts in residue (%)"},null,{"$f":"INDIRECT(\"'Data entry needs'!$h$\"&$A$1)","v":0},false]
[null,null,null,{"$f":"title134","v":"Operating days per year"},{"$f":"'Data entry needs'!L100-INDIRECT(\"Planner_pS3!$AN$\"&$B$1)*21","v":-252},{"$f":"title345&$C$41","v":"ts (%) allowed by Please Select"},null,{"$f":"Q45","v":{"$error":"#N/A"}}]
[]
[null,null,{"$f":"title347","v":"Collection Cost Definition"}]
[null,null,{"$f":"title348","v":"Operation Cost"},{"$f":"title270","v":"Quantity"},{"$f":"title27","v":"Unit"},{"$f":"title270","v":"Quantity"},{"$f":"title27","v":"Unit"},{"$f":"title267","v":"Unit Price"},"Total",null,null,null,null,null,null,"ts (%) transported",{"$f":"VLOOKUP($C$41,$P$149:$V$155,7,FALSE)","v":{"$error":"#N/A"}}]
[null,null,{"$f":"title35","v":"Electricity"},null,"kWh/t res",{"$f":"D46*E41","v":0},{"$f":"title304","v":"kWh/year"},{"$f":"'Data entry needs'!$L$92","v":0},{"$f":"F46*H46","v":0},{"$f":"title319","v":"USD/year"},null,null,null,null,null,{"$f":"title35","v":"Electricity"},{"$f":"$Q$160","v":13.333333333333334}]
[null,null,{"$f":"title170","v":"Diesel"},null,{"$f":"title574","v":"l diesel/t res"},{"$f":"D47*$E$41","v":0},{"$f":"title350","v":"Liter Diesel/year"},{"$f":"'Data entry needs'!$F$100","v":0},{"$f":"F47*H47","v":0},{"$f":"title319","v":"USD/year"},null,null,null,null,null,{"$f":"title170","v":"Diesel"},{"$f":"VLOOKUP($C$41,$P$149:$S$155,2,FALSE)","v":{"$error":"#N/A"}}]
[null,null,{"$f":"title244","v":"Water Make-up "},null,{"$f":"title353","v":"Liter water/t res"},{"$f":"IF(D48=0,0,E41*(H41/H42)*(1-D48))","v":0},{"$f":"title351","v":"Liter water/year"},{"$f":"'Data entry needs'!$F$92","v":0},{"$f":"F48*H48*D48","v":0},{"$f":"title319","v":"USD/year"},null,null,null,null,null,{"$f":"title244","v":"Water Make-up "},0.15]
[null,null,{"$f":"title349","v":"Unskilled Workers"},null,{"$f":"title354","v":"person-day/t res"},{"$f":"ROUNDUP($D$49*E41*('Data entry needs'!$L$100/PRICE_FS5_PS3!E42)/'Data entry needs'!$L$99,0)","v":{"$error":"#DIV/0!"}},{"$f":"title352","v":"person-hour"},{"$f":"'Data entry needs'!$L$96","v":0},{"$f":"F49*H49","v":{"$error":"#DIV/0!"}},{"$f":"title319","v":"USD/year"},null,null,null,null,null,{"$f":"title127","v":"Unskilled worker"},{"$f":"VLOOKUP($C$41,$P$149:$S$155,3,FALSE)","v":{"$error":"#N/A"}}]
[null,null,null,{"$f":"Q47","v":{"$error":"#N/A"}},null,null,null,{"$f":"title269","v":"Subtotal"},{"$f":"+SUMIF($I$46:$I$49,\">0\")","v":0},{"$f":"title319","v":"USD/year"}]
[]
[null,null,{"$f":"title355","v":"Capital Investment"},{"$f":"title270","v":"Quantity"},{"$f":"title27","v":"Unit"}]
[null,null,{"$f":"$C$41&title356","v":"Please Select and equipment"},null,{"$f":"VLOOKUP($C$41,$P$149:$T$155,5,FALSE)","v":{"$error":"#N/A"}},null,null,null,{"$f":"D53*(E41*10)/20","v":0},{"$f":"title319","v":"USD/year"},null,null,null,null,null,{"$f":"$C$41&title356","v":"Please Select and equipment"},{"$f":"VLOOKUP($C$41,$P$149:$S$155,4,FALSE)","v":{"$error":"#N/A"}}]
[null,null,{"$f":"title357","v":"Dewatering"},null,"USD/t res",null,null,null,{"$f":"D54*$E$41/20","v":0},{"$f":"title319","v":"USD/year"},null,null,null,null,null,{"$f":"title357","v":"Dewatering"},{"$f":"$Q$158","v":7}]
[null,null,{"$f":"title358","v":"Operation and Mainteinance"},null,null,null,null,null,{"$f":"SUM(I53:I54)*$D$55","v":0},{"$f":"title319","v":"USD/year"},null,null,null,null,null,{"$f":"title358","v":"Operation and Mainteinance"},0.15]
[null,null,null,{"$f":"+IF(AND(C54=\"\",C55=\"\"),0,IF(C54=\"\",D55,IF(C55=\"\",D54,D54+D55)))","v":0},null,null,null,{"$f":"title269","v":"Subtotal"},{"$f":"+SUMIF(I53:I55,\">0\")","v":0},{"$f":"title319","v":"USD/year"}]
[]
[null,null,null,{"$f":"title359","v":"Cost for Collection and transfer to storage tank"},null,null,null,null,{"$f":"SUM(I50+I56)/E41","v":{"$error":"#DIV/0!"}},"USD/t"]
[]
[null,null,{"$f":"title360","v":"Collection Method 3 - Feedstock collected from different farms"}]
[]
[null,null,{"$f":"title361","v":"Source of biomass"},null,{"$f":"title405","v":"Collection method"},null,{"$f":"title346","v":"Data Source"},false]
[null,null,{"$f":"title362","v":"Transfer from individual farms"},null,"Mechanized"]
[]
[null,null,{"$f":"title363","v":"Transportation method"},null,"Tanker Truck Transfer",null,{"$f":"title372","v":"Number Of Farms Supplying Feedstock"},{"$f":"title373","v":"Average distance to collection point (m)"},{"$f":"title374","v":"Collection Period (days)"},{"$f":"IF($E$65=title364,title375,title376)&title377","v":"Number of Tanks required"}]
[]
[null,null,{"$f":"IF($E$65=title364,title365,title366)","v":"Tranport Capacity (liter)"},null,{"$f":"title370","v":"Residue Quanitiy (t/year)"},{"$f":"INDIRECT(\"'Data entry needs'!$F$\"&$A$1)","v":0},null,null,null,null,null,null,null,null,null,{"$f":"IF($E$60=title364,title365,title366)","v":"Pipe Diameter (in)"},{"$f":"VLOOKUP($E$65,$Y$147:$AE$149,3,FALSE)","v":27600}]
[null,null,{"$f":"IF($E$65=title364,title367,title368)","v":"Engine Power (HP)"},null,{"$f":"title371","v":"Residue Density (kg/m3)"},{"$f":"Q72","v":1000},null,null,{"$f":"'Data entry needs'!L100-INDIRECT(\"Planner_pS3!$AN$\"&$B$1)*21","v":-252},{"$f":"IFERROR(ROUNDUP($F$67*1000*1000/(960*$D$69*'Data entry needs'!$L$99)/$I$68,0),0)","v":0},null,null,null,null,null,{"$f":"IF($E$60=title364,title367,title368)","v":"Motor Power (HP)"},{"$f":"VLOOKUP($E$65,$Y$147:$AE$149,4,FALSE)","v":200}]
[null,null,{"$f":"title369","v":"Transfer Rate (l/h)"},null,null,null,null,null,null,null,null,null,null,null,null,{"$f":"title369","v":"Transfer Rate (l/h)"},{"$f":"VLOOKUP($E$65,$Y$147:$AE$149,5,FALSE)","v":27221.917808219176}]
[]
[null,null,null,{"$f":"+IF(OR($E$63=title337,$E$63=title378),FALSE,TRUE)","v":true},{"$f":"+IF($E$63=title337,TRUE,FALSE)","v":false}]
[null,null,{"$f":"title332","v":"Biomass Price Definition"},null,null,null,null,null,null,null,null,null,null,null,null,{"$f":"title371","v":"Residue Density (kg/m3)"},{"$f":"IFERROR(VLOOKUP(INDIRECT(\"'Data entry needs'!$e$\"&$A$1),PRICE_FS3_PS3!$Y$152:$Z$156,2,FALSE),1000)","v":1000}]
[null,null,{"$f":"title333","v":"Labour cost"},{"$f":"title270","v":"Quantity"},{"$f":"title27","v":"Unit"},{"$f":"title270","v":"Quantity"},null,{"$f":"title27","v":"Unit"},"Total",{"$f":"title27","v":"Unit"}]
[null,null,{"$f":"IF(OR($E$63=title337,$E$63=title378),title379,\"\")","v":""},null,{"$f":"IF(OR($E$63=title337,$E$63=title378),title381,\"\")","v":""},{"$f":"IF(OR($E$63=title337,$E$63=title378),title335,\"\")","v":""},{"$f":"IF(OR($E$63=title337,$E$63=title378),'Data entry needs'!$L$96,\"\")","v":""},{"$f":"IF(OR($E$63=title337,$E$63=title378),title128,\"\")","v":""},{"$f":"IFERROR(IF(OR($E$63=title337,$E$63=title378),$F$67*D74*$G$74,\"\"),0)","v":""},{"$f":"IF(OR($E$63=title337,$E$63=title378),title319,\"\")","v":""}]
[null,null,{"$f":"IF($E$63=title337,\"\",title380)","v":"Number of skilled workers"},null,{"$f":"IF($E$63=title337,\"\",title381)","v":"person-hour/t"},{"$f":"IF($E$63=title337,\"\",title336)","v":"Skilled labour wage"},{"$f":"IF($E$63=title337,\"\",'Data entry needs'!$F$96)","v":0},{"$f":"IF($E$63=title337,\"\",title128)","v":"USD/person-hour"},{"$f":"IFERROR(IF($E$63=title337,\"\",D75*G75*$F$67),0)","v":0},{"$f":"IF($E$63=title337,\"\",title319)","v":"USD/year"}]
[null,null,null,{"$f":"+IF(AND(C74=\"\",C75=\"\"),0,IF(C74=\"\",D75,IF(C75=\"\",D74,D74+D75)))","v":0},null,null,null,{"$f":"title269","v":"Subtotal"},{"$f":"+SUMIF($I$74:$I$75,\">0\")","v":0},{"$f":"title319","v":"USD/year"}]
[null,null,{"$f":"title383","v":"Collection Machinery"},{"$f":"title270","v":"Quantity"},{"$f":"title27","v":"Unit"},{"$f":"title270","v":"Quantity"},null,{"$f":"title27","v":"Unit"},"Total",{"$f":"title27","v":"Unit"}]
[null,null,{"$f":"IF(OR($E$63=title382,$E$63=title378),title384,\"\")","v":"Collection Diesel Consumption"},null,{"$f":"IF(OR($E$63=title382,$E$63=title378),title575,\"\")","v":"l diesel/h"},{"$f":"IF(OR($E$63=title382,$E$63=title378),title389,\"\")","v":"Diesel Cost"},{"$f":"IF(OR($E$63=title382,$E$63=title378),'Data entry needs'!F$100,\"\")","v":0},{"$f":"IF(OR($E$63=title382,$E$63=title378),title576,\"\")","v":"USD/l diesel"},{"$f":"IFERROR(IF(OR($E$63=title382,$E$63=title378),D78*G78*D75*F67,\"\"),0)","v":0},{"$f":"title319","v":"USD/year"}]
[null,null,{"$f":"IF($E$65=title364,title385,title386)","v":"Truck Diesel Consumption"},null,{"$f":"IF($E$65=title364,title387,title388)","v":"l diesel/day"},{"$f":"IF($E$65=title364,title389,title390)","v":"Diesel Cost"},{"$f":"IF($E$65=title364,'Data entry needs'!F$100,'Data entry needs'!$L$92)","v":0},{"$f":"IF($E$65=title364,title576,\"USD/kWh\")","v":"USD/l diesel"},{"$f":"IFERROR(D79*G79*$I$68*$J$68,0)","v":0},{"$f":"title319","v":"USD/year"},null,null,null,null,null,{"$f":"IF($E$60=title364,title385,title386)","v":"Pump Electricity Consumption"},{"$f":"VLOOKUP($E$65,$Y$147:$AE$149,7,FALSE)","v":154}]
[null,null,null,null,null,null,null,{"$f":"title269","v":"Subtotal"},{"$f":"+SUMIF($I$78:$I$79,\">0\")","v":0},{"$f":"title319","v":"USD/year"}]
[null,null,{"$f":"title391","v":"Equipment"},{"$f":"title270","v":"Quantity"},{"$f":"title27","v":"Unit"},{"$f":"title270","v":"Quantity"},null,{"$f":"title27","v":"Unit"},"Total",{"$f":"title27","v":"Unit"}]
[null,null,{"$f":"IF($E$65=title364,title392,title393)","v":"Liquid Tanker Truck"},{"$f":"IF($E$65=title364,$J$68,$G$68*$H$68*1.2)","v":0},{"$f":"IF($E$65=title364,title398,\"m\")","v":"tank(s)"},{"$f":"IF($E$65=title364,title399,title400)","v":"Cost per Tank"},{"$f":"VLOOKUP($E$65,$Y$147:$AF$149,8,FALSE)/10","v":7900},{"$f":"IF($E$65=title364,title402,title403)","v":"USD/tank/year"},{"$f":"IFERROR(D82*G82,0)","v":0},{"$f":"title319","v":"USD/year"}]
[null,null,{"$f":"IF($E$65=title364,title394&$D$68&title395,title396&$D$68&title397)","v":"Semi-tractor 185  HP"},null,"USD",{"$f":"title401","v":"Depreciation Period"},null,{"$f":"title164","v":"year"},{"$f":"IFERROR(D83*$J$68/G83,0)","v":0},{"$f":"title319","v":"USD/year"},null,null,null,null,null,{"$f":"IF($E$60=title364,title406,title396&$D$63&title397)","v":"Pump  HP with agitator"},{"$f":"VLOOKUP($E$65,$Y$147:$AH$149,10,FALSE)","v":148000}]
[null,null,{"$f":"title358","v":"Operation and Mainteinance"},null,null,null,null,null,{"$f":"IFERROR(SUM(I82:I83)*$D$84,0)","v":0},{"$f":"title319","v":"USD/year"},null,null,null,null,null,{"$f":"title358","v":"Operation and Mainteinance"},0.15]
[null,null,null,null,null,null,null,{"$f":"title269","v":"Subtotal"},{"$f":"I82","v":0},{"$f":"title319","v":"USD/year"},null,null,null,null,null,{"$f":"title401","v":"Depreciation Period"},15]
[]
[null,null,null,{"$f":"title404","v":"Cost for Collection and transfer to central collection point"},null,null,null,null,{"$f":"(I85+I80+I76)/$F$67","v":{"$error":"#DIV/0!"}},"USD/t"]
[]
[]
[]
[]
[]
[]
[]
[]
[]
[]
[]
[]
[]
[]
[]
[]
[]
[]
[]
[]
[]
[]
[]
[]
[]
[]
[]
[]
[]
[]
[]
[null,null,null,null,null,null,null,null,null,null,null,null,null,null,null,{"$f":"title410","v":"Sources of biomass"}]
[null,null,null,null,null,null,null,null,null,null,null,null,null,null,null,{"$f":"title411","v":"Biomass spread in the field"}]
[null,null,null,null,null,null,null,null,null,null,null,null,null,null,null,{"$f":"title412","v":"Biomass collected from field"}]
[null,null,null,null,null,null,null,null,null,null,null,null,null,null,null,{"$f":"title413","v":"Biomass from food processing plant"}]
[]
[]
[]
[]
[null,null,null,null,null,null,null,null,null,null,null,null,null,null,null,{"$f":"title405","v":"Collection method"}]
[null,null,null,null,null,null,null,null,null,null,null,null,null,null,null,{"$f":"title382","v":"Mechanized"}]
[null,null,null,null,null,null,null,null,null,null,null,null,null,null,null,{"$f":"title378","v":"Semi-mechanized"}]
[null,null,null,null,null,null,null,null,null,null,null,null,null,null,null,{"$f":"title337","v":"Manual"}]
[]
[]
[]
[]
[]
[]
[]
[]
[]
[]
[]
[]
[]
[]
[null,null,null,null,null,null,null,null,null,null,null,null,null,null,null,"Dairy maNURE",40.753799999999998,"Manure (kg/head/day)"]
[null,null,null,null,null,null,null,null,null,null,null,null,null,null,null,null,"Energy Use Cost","Labor and Mainteinance",null,null,null,"ts (%) transported","Dewateing",null,null,null,{"$f":"title440","v":"Capacity"},{"$f":"title441","v":"Engine/motor (hp)"},{"$f":"title369","v":"Transfer Rate (l/h)"},{"$f":"title442","v":"Transfer time (m/h)"},{"$f":"title443","v":"Energy Use  (kw)"},{"$f":"title444","v":"Add equipment"}]
[null,null,null,null,null,null,null,null,null,null,null,null,null,null,null,{"$f":"title405","v":"Collection method"},"liters diesel/t residue","workers*day/t residue","Capital cost","Capital cost","Capital cost",null,"Final solids ts (%)",null,{"$f":"title364","v":"Tanker Truck Transfer"},null,27600,200,27221.917808219176,609.6,154,79000,"USD",{"$f":"148000","v":148000},2010,{"$f":"title406","v":"Semi-tractor 185 HP"},null,null,"l/working day"]
[null,null,null,null,null,null,null,null,null,null,null,null,null,null,null,{"$f":"title74","v":"Please Select"},null,null,null,null,null,null,null,null,{"$f":"title432","v":"High Volume Pipeline"},null,"6´´ PVC",150,3028,1016,215,{"$f":"37/3.048","v":12.139107611548557},"USD/m",37075,2003]
[null,null,null,null,null,null,null,null,null,null,null,null,null,null,null,{"$f":"title414","v":"Alley Scrapers"},0.14330809896079807,0.42057427773606393,{"$f":"(AVERAGE(35,45)*$B$52+10000+4000)/3785.41178","v":3.698408736922143},{"$f":"title421","v":"USD/liter mixture"},2009,0.08,0.5,null,{"$f":"title433","v":"Low Volume Pipeline"},null,"4´´ PVC",7.5,378,127,86,{"$f":"12.4/3.048","v":4.0682414698162734},"USD/m",7675,2003]
[null,null,null,null,null,null,null,null,null,null,null,null,null,null,null,{"$f":"title415","v":"Flush System"},0.4093569308278352,0.10526625737967994,{"$f":"(4950.08+(16+9.8)*$B$52)/3785.41178","v":1.3076727943188258},"USD/liter mixture",2014,{"$f":"AVERAGE(1%,3%)","v":0.02},0.5]
[null,null,null,null,null,null,null,null,null,null,null,null,null,null,null,{"$f":"title416","v":"Vacum Scraper"},3.190595592141102,1.9769935564290937,10,"USD/liter mixture",2010,0.18,0.5,null,null,{"$f":"title434","v":"Density (Kg/m3)"}]
[null,null,null,null,null,null,null,null,null,null,null,null,null,null,null,{"$f":"title417","v":"Skid-loader"},0.75612714559717353,1.2830705357537211,{"$f":"(142.6*0.914+58.5*0.084+50.75*0.997)/$Q$145","v":4.5602655457895951},"USD/liter mixture",2010,{"$f":"AVERAGE(8%,18%)","v":0.13},0.5,null,{"$f":"title435","v":"Buffalo"},960]
[null,null,null,null,null,null,null,null,null,null,null,null,null,null,null,{"$f":"title418","v":"Cross gutter Scraper"},1.5259658685640533E-2,2.6500596263415929E-2,5,"USD/liter mixture",2010,0.08,0.5,null,{"$f":"title436","v":"Cattle"},960]
[null,null,null,null,null,null,null,null,null,null,null,null,null,null,null,{"$f":"title419","v":"Cross Gutter Auger"},0.20478904265077005,2.6255220372088005E-2,{"$f":"2200*30/2378/10","v":2.7754415475189234},"USD/liter mixture",2010,0.08,0.5,null,{"$f":"title437","v":"Dairy Cattle"},994]
[null,null,null,null,null,null,null,null,null,null,null,null,null,null,null,{"$f":"title420","v":"Flush Flume"},0.13645231027594507,2.6255220372088005E-2,{"$f":"(4950.08+(16+9.8)*$B$52)*1.5/3785.41178","v":1.9615091914782385},"USD/liter mixture",2010,{"$f":"AVERAGE(4%,9%)","v":6.5000000000000002E-2},0.5,null,{"$f":"title438","v":"Poultry"},961.11]
[null,null,null,null,null,null,null,null,null,null,null,null,null,null,null,null,null,null,null,null,null,null,null,null,{"$f":"title439","v":"Swine"},1140.9000000000001]
[null,null,null,null,null,null,null,null,null,null,null,null,null,null,null,{"$f":"title357","v":"Dewatering"},"Screw Press ",{"$f":"PROPER(title164)","v":"Year"}]
[null,null,null,null,null,null,null,null,null,null,null,null,null,null,null,{"$f":"title422","v":"Capital Cost (USD/t residue)"},{"$f":"AVERAGE(0.2,0.5)*1000000*0.12/AVERAGE(4000,8000)","v":7},2002]
[null,null,null,null,null,null,null,null,null,null,null,null,null,null,null,{"$f":"title423","v":"Operation (worker/t residue)"},{"$f":"AVERAGE(20,40)*1000/AVERAGE(4000,8000)/(300*8*160)","v":1.3020833333333334E-5}]
[null,null,null,null,null,null,null,null,null,null,null,null,null,null,null,{"$f":"title424","v":"Energy Demand kWh/t residue"},{"$f":"AVERAGE(5,15)*8000/AVERAGE(4000,8000)","v":13.333333333333334},2002]
[]
[]
[]
[]
[null,null,null,null,null,null,null,null,null,null,null,null,null,null,null,{"$f":"title74","v":"Please Select"},{"$f":"title405","v":"Collection method"},"Show","Section to Show",{"$f":"VLOOKUP(INDIRECT(\"'Data entry needs'!$d$\"&$A$1),$P$166:$R$178,3,FALSE)","v":{"$error":"#N/A"}}]
[null,null,null,null,null,null,null,null,null,null,null,null,null,null,null,{"$f":"title184","v":"Biodiesel/Oilseed Ind."},{"$f":"title425","v":"No collection neeeded"},1,{"$f":"title429&\" 0\"","v":"Option 0"},0,0]
[null,null,null,null,null,null,null,null,null,null,null,null,null,null,null,{"$f":"title85","v":"Crop Residues"},{"$f":"title426","v":"Method 1"},2,{"$f":"title429&\" 1\"","v":"Option 1"},{"$f":"$I$31","v":{"$error":"#DIV/0!"}},{"$f":"$D$24/E16","v":{"$error":"#DIV/0!"}},{"$f":"title381","v":"person-hour/t"}]
[null,null,null,null,null,null,null,null,null,null,null,null,null,null,null,{"$f":"title185","v":"Dairy-milk ind."},{"$f":"title427","v":"Method 2, Method 3"},4,{"$f":"title429&\" 2\"","v":"Option 2"},{"$f":"$I$58","v":{"$error":"#DIV/0!"}},{"$f":"F49/E41","v":{"$error":"#DIV/0!"}},{"$f":"title381","v":"person-hour/t"}]
[null,null,null,null,null,null,null,null,null,null,null,null,null,null,null,{"$f":"title120","v":"Energy Crops"},{"$f":"title425","v":"No collection neeeded"},1,{"$f":"title429&\" 3\"","v":"Option 3"},{"$f":"$I$87","v":{"$error":"#DIV/0!"}},{"$f":"D76","v":0},{"$f":"title381","v":"person-hour/t"}]
[null,null,null,null,null,null,null,null,null,null,null,null,null,null,null,{"$f":"title186","v":"Eth-Sugar-Starch Ind."},{"$f":"title425","v":"No collection neeeded"},1]
[null,null,null,null,null,null,null,null,null,null,null,null,null,null,null,{"$f":"title187","v":"Food Process. Res."},{"$f":"title425","v":"No collection neeeded"},1,{"$f":"title430","v":"Result"},{"$f":"IF($T$165=1,T166,IF($T$165=2,$T$167,IF($T$165=3,T168,IF(AND($T$165=4,$E$34),$T$168,$T$169))))","v":{"$error":"#N/A"}}]
[null,null,null,null,null,null,null,null,null,null,null,null,null,null,null,{"$f":"title188","v":"Grass"},{"$f":"title426","v":"Method 1"},2,{"$f":"title431","v":"Employees"},{"$f":"IF($T$165=1,U166,IF($T$165=2,$U$167,IF($T$165=3,U169,IF(AND($T$165=4,$E$34),$U$168,$U$169))))","v":{"$error":"#N/A"}},{"$f":"title381","v":"person-hour/t"}]
[null,null,null,null,null,null,null,null,null,null,null,null,null,null,null,{"$f":"title119","v":"Crops"},{"$f":"title425","v":"No collection neeeded"},1]
[null,null,null,null,null,null,null,null,null,null,null,null,null,null,null,{"$f":"title189","v":"Other Options"},{"$f":"title425","v":"No collection neeeded"},1]
[null,null,null,null,null,null,null,null,null,null,null,null,null,null,null,{"$f":"title190","v":"Slaughterhouses wastes"},{"$f":"title428","v":"Method 2"},3]
[null,null,null,null,null,null,null,null,null,null,null,null,null,null,null,{"$f":"title191","v":"Yeast-Alcoholic Bev."},{"$f":"title425","v":"No collection neeeded"},1]
[null,null,null,null,null,null,null,null,null,null,null,null,null,null,null,{"$f":"title84","v":"Manure"},{"$f":"title427","v":"Method 2, Method 3"},4]
[null,null,null,null,null,null,null,null,null,null,null,null,null,null,null,{"$f":"title192","v":"Wastewater"},{"$f":"title425","v":"No collection neeeded"},1]

{"sheet":"PRICE_FS6_PS3","index":48,"n_rows":178,"n_cols":39,"rows_kept":178,"cut":false,"hidden":true,"merged":[[40,8,40,9],[2,2,2,9],[5,2,5,3],[5,4,5,6],[7,2,10,9],[14,6,14,7],[15,2,15,3],[15,6,15,7],[30,3,30,7],[33,4,34,4],[33,5,34,5],[33,6,34,9],[34,2,34,3],[64,9,66,9],[86,3,86,7],[41,8,41,9],[57,3,57,7],[61,4,61,5],[61,6,62,6],[62,4,62,5],[64,2,64,3],[64,4,64,5],[64,6,66,6],[64,7,66,7],[64,8,66,8]]}
[{"$f":"PRICE_FS5_PS3!A1+4","v":69},93]
[]
[null,null,{"$f":"+title324&UPPER(INDIRECT(\"'Data entry needs'!$d$\"&$A$1)&\"-\"&INDIRECT(\"'Data entry needs'!$e$\"&$A$1))","v":"COLLECTION COSTS CALCULATOR FOR PLEASE SELECT-PLEASE SELECT"}]
[]
[]
[null,null,{"$f":"title193","v":"Use white cells to input data"},null,{"$f":"title194","v":"Grey cells are used for calculations"}]
[]
[null,null,{"$f":"title325&INDIRECT(\"'Data entry needs'!$d$\"&$A$1)&title326","v":"No collection method is required. It is assumed that Please Select are already collected. Then, transportation cost and/or market price should be considered."}]
[]
[]
[]
[]
[null,null,{"$f":"title327","v":"Collection Method 1 - Biomass spread in the field"}]
[]
[null,null,{"$f":"title328","v":"Collecting method"},null,{"$f":"title329","v":"Biomass Yield"},null,{"$f":"title110","v":"Feedstock Available (t/year)"},null,{"$f":"title330","v":"Collection days"}]
[null,null,"Mechanized",null,null,"t/ha",{"$f":"INDIRECT(\"'Data entry needs'!$F$\"&$A$1)","v":0},null,{"$f":"'Data entry needs'!L100-INDIRECT(\"Planner_pS3!$AN$\"&$B$1)*21","v":0}]
[]
[null,null,{"$f":"title331","v":"Biomass Collection definition"}]
[]
[null,null,{"$f":"title332","v":"Biomass Price Definition"},null,null,null,null,null,null,null,null,null,null,null,null,null,null,null,null,null,null,{"$f":"title405","v":"Collection method"},null,{"$f":"title382","v":"Mechanized"},{"$f":"title380","v":"Number of skilled workers"},{"$f":"title409","v":"person-hour/ha"}]
[null,null,{"$f":"title333","v":"Labour cost"},{"$f":"title270","v":"Quantity"},{"$f":"title27","v":"Unit"},{"$f":"title270","v":"Quantity"},null,{"$f":"title27","v":"Unit"},"Total",{"$f":"title27","v":"Unit"},null,null,null,null,null,null,null,null,null,null,null,{"$f":"$C$16","v":"Mechanized"},null,{"$f":"title382&2","v":"Mechanized2"},{"$f":"title336","v":"Skilled labour wage"},{"$f":"title128","v":"USD/person-hour"}]
[null,null,{"$f":"IFERROR(VLOOKUP($V$21&$W21,$X$20:$Z$31,2,FALSE),\"\")","v":"Number of skilled workers"},null,{"$f":"IFERROR(VLOOKUP($V$21&$W21,$X$20:$Z$31,3,FALSE),\"\")","v":"person-hour/ha"},{"$f":"IFERROR(VLOOKUP($V$21&$W23,$X$20:$Z$31,2,FALSE),\"\")","v":"Skilled labour wage"},{"$f":"IF(F22=\"\",\"\",IF(F22=title335,'Data entry needs'!$L$96,IF(F22=title336,'Data entry needs'!F96)))","v":0},{"$f":"IFERROR(VLOOKUP($V$21&$W23,$X$20:$Z$31,3,FALSE),\"\")","v":"USD/person-hour"},{"$f":"IFERROR(G22*D22*(G16/E16)*('Data entry needs'!$L$100/$I$16),0)","v":0},{"$f":"IF(C22=\"\",\"\",title319)","v":"USD/year"},null,null,null,null,null,null,null,null,null,null,null,null,1,{"$f":"title382&4","v":"Mechanized4"},{"$f":"title407","v":"Average fuel economy"},"l/h"]
[null,null,{"$f":"IFERROR(VLOOKUP($V$21&$W22,$X$20:$Z$31,2,FALSE),\"\")","v":""},null,{"$f":"IFERROR(VLOOKUP($V$21&$W22,$X$20:$Z$31,3,FALSE),\"\")","v":""},{"$f":"IFERROR(VLOOKUP($V$21&$W24,$X$20:$Z$31,2,FALSE),\"\")","v":""},{"$f":"IF(F23=\"\",\"\",'Data entry needs'!L96)","v":""},{"$f":"title128","v":"USD/person-hour"},{"$f":"IFERROR(G23*D23*(G16/E16)*('Data entry needs'!$L$100/$I$16),0)","v":0},{"$f":"IF(C23=\"\",\"\",title319)","v":""},null,null,null,null,null,null,null,null,null,null,null,{"$f":"VLOOKUP($V$21,$T$29:$U$31,2,FALSE)","v":1},2,{"$f":"title382&5","v":"Mechanized5"},{"$f":"title408","v":"Fuel price"},"USD/l"]
[null,null,null,{"$f":"+IF(AND(C22=\"\",C23=\"\"),0,IF(C22=\"\",D23,IF(C23=\"\",D22,D22+D23)))","v":0},null,null,null,{"$f":"title269","v":"Subtotal"},{"$f":"+SUMIF($I$22:$I$23,\">0\")","v":0},{"$f":"title319","v":"USD/year"},null,null,null,null,null,null,null,null,null,null,null,null,3,{"$f":"title378","v":"Semi-mechanized"},{"$f":"title380","v":"Number of skilled workers"},{"$f":"title409","v":"person-hour/ha"}]
[null,null,{"$f":"title334","v":"Machinery & operating cost"},{"$f":"title270","v":"Quantity"},{"$f":"title27","v":"Unit"},{"$f":"title270","v":"Quantity"},null,{"$f":"title27","v":"Unit"},"Total",{"$f":"title27","v":"Unit"},null,null,null,null,null,null,null,null,null,null,null,null,4,{"$f":"title378&1","v":"Semi-mechanized1"},{"$f":"title379","v":"Number of unskilled workers"},{"$f":"title409","v":"person-hour/ha"}]
[null,null,{"$f":"IFERROR(VLOOKUP($V$21&$W25,$X$20:$Z$31,2,FALSE),\"\")","v":"Average fuel economy"},null,{"$f":"IFERROR(VLOOKUP($V$21&$W25,$X$20:$Z$31,3,FALSE),\"\")","v":"l/h"},{"$f":"IFERROR(VLOOKUP($V$21&$W26,$X$20:$Z$31,2,FALSE),\"\")","v":"Fuel price"},{"$f":"IF(F26=\"\",\"\",'Data entry needs'!$F$100)","v":0},{"$f":"+IFERROR(VLOOKUP($V$21&$W26,$X$20:$Z$31,3,FALSE),\"\")","v":"USD/l"},{"$f":"+IFERROR(D26*G26*IF($C$16=title337,0,$D$22*G16/E16)*('Data entry needs'!$L$100/$I$16),\"\")","v":""},{"$f":"IF(C26=\"\",\"\",title319)","v":"USD/year"},null,null,null,null,null,null,null,null,null,null,null,null,5,{"$f":"title378&2","v":"Semi-mechanized2"},{"$f":"title336","v":"Skilled labour wage"},{"$f":"title128","v":"USD/person-hour"}]
[null,null,null,null,null,null,null,{"$f":"IF(C26=\"\",\"\",title269)","v":"Subtotal"},{"$f":"+I26","v":""},{"$f":"IF(C26=\"\",\"\",title319)","v":"USD/year"},null,null,null,null,null,null,null,null,null,null,null,null,null,{"$f":"title378&3","v":"Semi-mechanized3"},{"$f":"title335","v":"Unskilled labour wage"},{"$f":"title128","v":"USD/person-hour"}]
[null,null,null,null,null,null,null,{"$f":"IF(C26=\"\",\"\",\"Total\")","v":"Total"},{"$f":"IFERROR(I24+I27,I24)","v":0},{"$f":"title319","v":"USD/year"},null,null,null,null,null,null,null,null,null,{"$f":"title405","v":"Collection method"},null,null,null,{"$f":"title378&4","v":"Semi-mechanized4"},{"$f":"title407","v":"Average fuel economy"},"l/h"]
[null,null,null,null,null,null,null,null,null,null,null,null,null,null,null,null,null,null,null,{"$f":"title382","v":"Mechanized"},1,null,null,{"$f":"title378&5","v":"Semi-mechanized5"},{"$f":"title408","v":"Fuel price"},"USD/l"]
[null,null,null,null,null,null,null,null,"",null,null,null,null,null,null,null,null,null,null,{"$f":"title378","v":"Semi-mechanized"},2,null,null,{"$f":"title337","v":"Manual"},{"$f":"title379","v":"Number of unskilled workers"},{"$f":"title409","v":"person-hour/ha"}]
[null,null,null,{"$f":"title338&INDIRECT(\"'Data entry needs'!$d$\"&$A$1)&\"-\"&INDIRECT(\"'Data entry needs'!$e$\"&$A$1)","v":"Collection cost of Please Select-Please Select"},null,null,null,null,{"$f":"(I24+I28)/$G$16","v":{"$error":"#DIV/0!"}},"USD/t",null,null,null,null,null,null,null,null,null,{"$f":"title337","v":"Manual"},3,null,null,{"$f":"title337&2","v":"Manual2"},{"$f":"title335","v":"Unskilled labour wage"},{"$f":"title128","v":"USD/person-hour"}]
[]
[]
[null,null,null,null,false,null,{"$f":"IF($E$34,title340,title341)","v":"Use this method for feedstock collected and transported from different farms to a central collection point"}]
[null,null,{"$f":"title339","v":"Collection Methods Available"}]
[]
[null,null,{"$f":"title342","v":"Collection Method 2"}]
[]
[null,null,{"$f":"title328","v":"Collecting method"},{"$f":"title343","v":"Transportation requirements"},null,null,null,null,{"$f":"title346","v":"Data Source"}]
[]
[null,null,"Please Select",{"$f":"title110","v":"Feedstock Available (t/year)"},{"$f":"INDIRECT(\"'Data entry needs'!$F$\"&$A$1)","v":0},{"$f":"title344","v":"Initial ts in residue (%)"},null,{"$f":"INDIRECT(\"'Data entry needs'!$h$\"&$A$1)","v":0},false]
[null,null,null,{"$f":"title134","v":"Operating days per year"},{"$f":"'Data entry needs'!L100-INDIRECT(\"Planner_pS3!$AN$\"&$B$1)*21","v":0},{"$f":"title345&$C$41","v":"ts (%) allowed by Please Select"},null,{"$f":"Q45","v":{"$error":"#N/A"}}]
[]
[null,null,{"$f":"title347","v":"Collection Cost Definition"}]
[null,null,{"$f":"title348","v":"Operation Cost"},{"$f":"title270","v":"Quantity"},{"$f":"title27","v":"Unit"},{"$f":"title270","v":"Quantity"},{"$f":"title27","v":"Unit"},{"$f":"title267","v":"Unit Price"},"Total",null,null,null,null,null,null,"ts (%) transported",{"$f":"VLOOKUP($C$41,$P$149:$V$155,7,FALSE)","v":{"$error":"#N/A"}}]
[null,null,{"$f":"title35","v":"Electricity"},null,"kWh/t res",{"$f":"D46*E41","v":0},{"$f":"title304","v":"kWh/year"},{"$f":"'Data entry needs'!$L$92","v":0},{"$f":"F46*H46","v":0},{"$f":"title319","v":"USD/year"},null,null,null,null,null,{"$f":"title35","v":"Electricity"},{"$f":"$Q$160","v":13.333333333333334}]
[null,null,{"$f":"title170","v":"Diesel"},null,{"$f":"title574","v":"l diesel/t res"},{"$f":"D47*$E$41","v":0},{"$f":"title350","v":"Liter Diesel/year"},{"$f":"'Data entry needs'!$F$100","v":0},{"$f":"F47*H47","v":0},{"$f":"title319","v":"USD/year"},null,null,null,null,null,{"$f":"title170","v":"Diesel"},{"$f":"VLOOKUP($C$41,$P$149:$S$155,2,FALSE)","v":{"$error":"#N/A"}}]
[null,null,{"$f":"title244","v":"Water Make-up "},null,{"$f":"title353","v":"Liter water/t res"},{"$f":"IF(D48=0,0,E41*(H41/H42)*(1-D48))","v":0},{"$f":"title351","v":"Liter water/year"},{"$f":"'Data entry needs'!$F$92","v":0},{"$f":"F48*H48*D48","v":0},{"$f":"title319","v":"USD/year"},null,null,null,null,null,{"$f":"title244","v":"Water Make-up "},0.15]
[null,null,{"$f":"title349","v":"Unskilled Workers"},null,{"$f":"title354","v":"person-day/t res"},{"$f":"ROUNDUP($D$49*E41*('Data entry needs'!$L$100/PRICE_FS6_PS3!E42)/'Data entry needs'!$L$99,0)","v":{"$error":"#DIV/0!"}},{"$f":"title352","v":"person-hour"},{"$f":"'Data entry needs'!$L$96","v":0},{"$f":"F49*H49","v":{"$error":"#DIV/0!"}},{"$f":"title319","v":"USD/year"},null,null,null,null,null,{"$f":"title127","v":"Unskilled worker"},{"$f":"VLOOKUP($C$41,$P$149:$S$155,3,FALSE)","v":{"$error":"#N/A"}}]
[null,null,null,{"$f":"Q47","v":{"$error":"#N/A"}},null,null,null,{"$f":"title269","v":"Subtotal"},{"$f":"+SUMIF($I$46:$I$49,\">0\")","v":0},{"$f":"title319","v":"USD/year"}]
[]
[null,null,{"$f":"title355","v":"Capital Investment"},{"$f":"title270","v":"Quantity"},{"$f":"title27","v":"Unit"}]
[null,null,{"$f":"$C$41&title356","v":"Please Select and equipment"},null,{"$f":"VLOOKUP($C$41,$P$149:$T$155,5,FALSE)","v":{"$error":"#N/A"}},null,null,null,{"$f":"D53*(E41*10)/20","v":0},{"$f":"title319","v":"USD/year"},null,null,null,null,null,{"$f":"$C$41&title356","v":"Please Select and equipment"},{"$f":"VLOOKUP($C$41,$P$149:$S$155,4,FALSE)","v":{"$error":"#N/A"}}]
[null,null,{"$f":"title357","v":"Dewatering"},null,"USD/t res",null,null,null,{"$f":"D54*$E$41/20","v":0},{"$f":"title319","v":"USD/year"},null,null,null,null,null,{"$f":"title357","v":"Dewatering"},{"$f":"$Q$158","v":7}]
[null,null,{"$f":"title358","v":"Operation and Mainteinance"},null,null,null,null,null,{"$f":"SUM(I53:I54)*$D$55","v":0},{"$f":"title319","v":"USD/year"},null,null,null,null,null,{"$f":"title358","v":"Operation and Mainteinance"},0.15]
[null,null,null,{"$f":"+IF(AND(C54=\"\",C55=\"\"),0,IF(C54=\"\",D55,IF(C55=\"\",D54,D54+D55)))","v":0},null,null,null,{"$f":"title269","v":"Subtotal"},{"$f":"+SUMIF(I53:I55,\">0\")","v":0},{"$f":"title319","v":"USD/year"}]
[]
[null,null,null,{"$f":"title359","v":"Cost for Collection and transfer to storage tank"},null,null,null,null,{"$f":"SUM(I50+I56)/E41","v":{"$error":"#DIV/0!"}},"USD/t"]
[]
[null,null,{"$f":"title360","v":"Collection Method 3 - Feedstock collected from different farms"}]
[]
[null,null,{"$f":"title361","v":"Source of biomass"},null,{"$f":"title405","v":"Collection method"},null,{"$f":"title346","v":"Data Source"},false]
[null,null,{"$f":"title362","v":"Transfer from individual farms"},null,"Mechanized",null,null,false]
[]
[null,null,{"$f":"title363","v":"Transportation method"},null,"Tanker Truck Transfer",null,{"$f":"title372","v":"Number Of Farms Supplying Feedstock"},{"$f":"title373","v":"Average distance to collection point (m)"},{"$f":"title374","v":"Collection Period (days)"},{"$f":"IF($E$65=title364,title375,title376)&title377","v":"Number of Tanks required"}]
[]
[null,null,{"$f":"IF($E$65=title364,title365,title366)","v":"Tranport Capacity (liter)"},{"$f":"Q67","v":27600},{"$f":"title370","v":"Residue Quanitiy (t/year)"},{"$f":"INDIRECT(\"'Data entry needs'!$F$\"&$A$1)","v":0},null,null,null,null,null,null,null,null,null,{"$f":"IF($E$60=title364,title365,title366)","v":"Pipe Diameter (in)"},{"$f":"VLOOKUP($E$65,$Y$147:$AE$149,3,FALSE)","v":27600}]
[null,null,{"$f":"IF($E$65=title364,title367,title368)","v":"Engine Power (HP)"},{"$f":"Q68","v":200},{"$f":"title371","v":"Residue Density (kg/m3)"},{"$f":"Q72","v":1000},null,null,{"$f":"'Data entry needs'!L100-INDIRECT(\"Planner_pS3!$AN$\"&$B$1)*21","v":0},{"$f":"IFERROR(ROUNDUP($F$67*1000*1000/(960*$D$69*'Data entry needs'!$L$99)/$I$68,0),0)","v":0},null,null,null,null,null,{"$f":"IF($E$60=title364,title367,title368)","v":"Motor Power (HP)"},{"$f":"VLOOKUP($E$65,$Y$147:$AE$149,4,FALSE)","v":200}]
[null,null,{"$f":"title369","v":"Transfer Rate (l/h)"},{"$f":"Q69","v":27221.917808219176},null,null,null,null,null,null,null,null,null,null,null,{"$f":"title369","v":"Transfer Rate (l/h)"},{"$f":"VLOOKUP($E$65,$Y$147:$AE$149,5,FALSE)","v":27221.917808219176}]
[]
[null,null,null,{"$f":"+IF(OR($E$63=title337,$E$63=title378),FALSE,TRUE)","v":true},{"$f":"+IF($E$63=title337,TRUE,FALSE)","v":false}]
[null,null,{"$f":"title332","v":"Biomass Price Definition"},null,null,null,null,null,null,null,null,null,null,null,null,{"$f":"title371","v":"Residue Density (kg/m3)"},{"$f":"IFERROR(VLOOKUP(INDIRECT(\"'Data entry needs'!$e$\"&$A$1),PRICE_FS3_PS3!$Y$152:$Z$156,2,FALSE),1000)","v":1000}]
[null,null,{"$f":"title333","v":"Labour cost"},{"$f":"title270","v":"Quantity"},{"$f":"title27","v":"Unit"},{"$f":"title270","v":"Quantity"},null,{"$f":"title27","v":"Unit"},"Total",{"$f":"title27","v":"Unit"}]
[null,null,{"$f":"IF(OR($E$63=title337,$E$63=title378),title379,\"\")","v":""},null,{"$f":"IF(OR($E$63=title337,$E$63=title378),title381,\"\")","v":""},{"$f":"IF(OR($E$63=title337,$E$63=title378),title335,\"\")","v":""},{"$f":"IF(OR($E$63=title337,$E$63=title378),'Data entry needs'!$L$96,\"\")","v":""},{"$f":"IF(OR($E$63=title337,$E$63=title378),title128,\"\")","v":""},{"$f":"IFERROR(IF(OR($E$63=title337,$E$63=title378),$F$67*D74*$G$74,\"\"),0)","v":""},{"$f":"IF(OR($E$63=title337,$E$63=title378),title319,\"\")","v":""}]
[null,null,{"$f":"IF($E$63=title337,\"\",title380)","v":"Number of skilled workers"},null,{"$f":"IF($E$63=title337,\"\",title381)","v":"person-hour/t"},{"$f":"IF($E$63=title337,\"\",title336)","v":"Skilled labour wage"},{"$f":"IF($E$63=title337,\"\",'Data entry needs'!$F$96)","v":0},{"$f":"IF($E$63=title337,\"\",title128)","v":"USD/person-hour"},{"$f":"IFERROR(IF($E$63=title337,\"\",D75*G75*$F$67),0)","v":0},{"$f":"IF($E$63=title337,\"\",title319)","v":"USD/year"}]
[null,null,null,{"$f":"+IF(AND(C74=\"\",C75=\"\"),0,IF(C74=\"\",D75,IF(C75=\"\",D74,D74+D75)))","v":0},null,null,null,{"$f":"title269","v":"Subtotal"},{"$f":"+SUMIF($I$74:$I$75,\">0\")","v":0},{"$f":"title319","v":"USD/year"}]
[null,null,{"$f":"title383","v":"Collection Machinery"},{"$f":"title270","v":"Quantity"},{"$f":"title27","v":"Unit"},{"$f":"title270","v":"Quantity"},null,{"$f":"title27","v":"Unit"},"Total",{"$f":"title27","v":"Unit"}]
[null,null,{"$f":"IF(OR($E$63=title382,$E$63=title378),title384,\"\")","v":"Collection Diesel Consumption"},null,{"$f":"IF(OR($E$63=title382,$E$63=title378),title575,\"\")","v":"l diesel/h"},{"$f":"IF(OR($E$63=title382,$E$63=title378),title389,\"\")","v":"Diesel Cost"},{"$f":"IF(OR($E$63=title382,$E$63=title378),'Data entry needs'!F$100,\"\")","v":0},{"$f":"IF(OR($E$63=title382,$E$63=title378),title576,\"\")","v":"USD/l diesel"},{"$f":"IFERROR(IF(OR($E$63=title382,$E$63=title378),D78*G78*D75*F67,\"\"),0)","v":0},{"$f":"title319","v":"USD/year"}]
[null,null,{"$f":"IF($E$65=title364,title385,title386)","v":"Truck Diesel Consumption"},{"$f":"Q79","v":154},{"$f":"IF($E$65=title364,title387,title388)","v":"l diesel/day"},{"$f":"IF($E$65=title364,title389,title390)","v":"Diesel Cost"},{"$f":"IF($E$65=title364,'Data entry needs'!F$100,'Data entry needs'!$L$92)","v":0},{"$f":"IF($E$65=title364,title576,\"USD/kWh\")","v":"USD/l diesel"},{"$f":"IFERROR(D79*G79*$I$68*$J$68,0)","v":0},{"$f":"title319","v":"USD/year"},null,null,null,null,null,{"$f":"IF($E$60=title364,title385,title386)","v":"Pump Electricity Consumption"},{"$f":"VLOOKUP($E$65,$Y$147:$AE$149,7,FALSE)","v":154}]
[null,null,null,null,null,null,null,{"$f":"title269","v":"Subtotal"},{"$f":"+SUMIF($I$78:$I$79,\">0\")","v":0},{"$f":"title319","v":"USD/year"}]
[null,null,{"$f":"title391","v":"Equipment"},{"$f":"title270","v":"Quantity"},{"$f":"title27","v":"Unit"},{"$f":"title270","v":"Quantity"},null,{"$f":"title27","v":"Unit"},"Total",{"$f":"title27","v":"Unit"}]
[null,null,{"$f":"IF($E$65=title364,title392,title393)","v":"Liquid Tanker Truck"},{"$f":"IF($E$65=title364,$J$68,$G$68*$H$68*1.2)","v":0},{"$f":"IF($E$65=title364,title398,\"m\")","v":"tank(s)"},{"$f":"IF($E$65=title364,title399,title400)","v":"Cost per Tank"},{"$f":"VLOOKUP($E$65,$Y$147:$AF$149,8,FALSE)/10","v":7900},{"$f":"IF($E$65=title364,title402,title403)","v":"USD/tank/year"},{"$f":"IFERROR(D82*G82,0)","v":0},{"$f":"title319","v":"USD/year"}]
[null,null,{"$f":"IF($E$65=title364,title394&$D$68&title395,title396&$D$68&title397)","v":"Semi-tractor 185 200 HP"},{"$f":"Q83","v":148000},"USD",{"$f":"title401","v":"Depreciation Period"},{"$f":"Q85","v":15},{"$f":"title164","v":"year"},{"$f":"IFERROR(D83*$J$68/G83,0)","v":0},{"$f":"title319","v":"USD/year"},null,null,null,null,null,{"$f":"IF($E$60=title364,title406,title396&$D$63&title397)","v":"Pump  HP with agitator"},{"$f":"VLOOKUP($E$65,$Y$147:$AH$149,10,FALSE)","v":148000}]
[null,null,{"$f":"title358","v":"Operation and Mainteinance"},{"$f":"Q84","v":0.15},null,null,null,null,{"$f":"IFERROR(SUM(I82:I83)*$D$84,0)","v":0},{"$f":"title319","v":"USD/year"},null,null,null,null,null,{"$f":"title358","v":"Operation and Mainteinance"},0.15]
[null,null,null,null,null,null,null,{"$f":"title269","v":"Subtotal"},{"$f":"I82","v":0},{"$f":"title319","v":"USD/year"},null,null,null,null,null,{"$f":"title401","v":"Depreciation Period"},15]
[]
[null,null,null,{"$f":"title404","v":"Cost for Collection and transfer to central collection point"},null,null,null,null,{"$f":"(I85+I80+I76)/$F$67","v":{"$error":"#DIV/0!"}},"USD/t"]
[]
[]
[]
[]
[]
[]
[]
[]
[]
[]
[]
[]
[]
[]
[]
[]
[]
[]
[]
[]
[]
[]
[]
[]
[]
[]
[]
[]
[]
[]
[]
[null,null,null,null,null,null,null,null,null,null,null,null,null,null,null,{"$f":"title410","v":"Sources of biomass"}]
[null,null,null,null,null,null,null,null,null,null,null,null,null,null,null,{"$f":"title411","v":"Biomass spread in the field"}]
[null,null,null,null,null,null,null,null,null,null,null,null,null,null,null,{"$f":"title412","v":"Biomass collected from field"}]
[null,null,null,null,null,null,null,null,null,null,null,null,null,null,null,{"$f":"title413","v":"Biomass from food processing plant"}]
[]
[]
[]
[]
[null,null,null,null,null,null,null,null,null,null,null,null,null,null,null,{"$f":"title405","v":"Collection method"}]
[null,null,null,null,null,null,null,null,null,null,null,null,null,null,null,{"$f":"title382","v":"Mechanized"}]
[null,null,null,null,null,null,null,null,null,null,null,null,null,null,null,{"$f":"title378","v":"Semi-mechanized"}]
[null,null,null,null,null,null,null,null,null,null,null,null,null,null,null,{"$f":"title337","v":"Manual"}]
[]
[]
[]
[]
[]
[]
[]
[]
[]
[]
[]
[]
[]
[]
[null,null,null,null,null,null,null,null,null,null,null,null,null,null,null,"Dairy maNURE",40.753799999999998,"Manure (kg/head/day)"]
[null,null,null,null,null,null,null,null,null,null,null,null,null,null,null,null,"Energy Use Cost","Labor and Mainteinance",null,null,null,"ts (%) transported","Dewateing",null,null,null,{"$f":"title440","v":"Capacity"},{"$f":"title441","v":"Engine/motor (hp)"},{"$f":"title369","v":"Transfer Rate (l/h)"},{"$f":"title442","v":"Transfer time (m/h)"},{"$f":"title443","v":"Energy Use  (kw)"},{"$f":"title444","v":"Add equipment"}]
[null,null,null,null,null,null,null,null,null,null,null,null,null,null,null,{"$f":"title405","v":"Collection method"},"liters diesel/t residue","workers*day/t residue","Capital cost","Capital cost","Capital cost",null,"Final solids ts (%)",null,{"$f":"title364","v":"Tanker Truck Transfer"},null,27600,200,27221.917808219176,609.6,154,79000,"USD",{"$f":"148000","v":148000},2010,{"$f":"title406","v":"Semi-tractor 185 HP"},null,null,"l/working day"]
[null,null,null,null,null,null,null,null,null,null,null,null,null,null,null,{"$f":"title74","v":"Please Select"},null,null,null,null,null,null,null,null,{"$f":"title432","v":"High Volume Pipeline"},null,"6´´ PVC",150,3028,1016,215,{"$f":"37/3.048","v":12.139107611548557},"USD/m",37075,2003]
[null,null,null,null,null,null,null,null,null,null,null,null,null,null,null,{"$f":"title414","v":"Alley Scrapers"},0.14330809896079807,0.42057427773606393,{"$f":"(AVERAGE(35,45)*$B$52+10000+4000)/3785.41178","v":3.698408736922143},{"$f":"title421","v":"USD/liter mixture"},2009,0.08,0.5,null,{"$f":"title433","v":"Low Volume Pipeline"},null,"4´´ PVC",7.5,378,127,86,{"$f":"12.4/3.048","v":4.0682414698162734},"USD/m",7675,2003]
[null,null,null,null,null,null,null,null,null,null,null,null,null,null,null,{"$f":"title415","v":"Flush System"},0.4093569308278352,0.10526625737967994,{"$f":"(4950.08+(16+9.8)*$B$52)/3785.41178","v":1.3076727943188258},"USD/liter mixture",2014,{"$f":"AVERAGE(1%,3%)","v":0.02},0.5]
[null,null,null,null,null,null,null,null,null,null,null,null,null,null,null,{"$f":"title416","v":"Vacum Scraper"},3.190595592141102,1.9769935564290937,10,"USD/liter mixture",2010,0.18,0.5,null,null,{"$f":"title434","v":"Density (Kg/m3)"}]
[null,null,null,null,null,null,null,null,null,null,null,null,null,null,null,{"$f":"title417","v":"Skid-loader"},0.75612714559717353,1.2830705357537211,{"$f":"(142.6*0.914+58.5*0.084+50.75*0.997)/$Q$145","v":4.5602655457895951},"USD/liter mixture",2010,{"$f":"AVERAGE(8%,18%)","v":0.13},0.5,null,{"$f":"title435","v":"Buffalo"},960]
[null,null,null,null,null,null,null,null,null,null,null,null,null,null,null,{"$f":"title418","v":"Cross gutter Scraper"},1.5259658685640533E-2,2.6500596263415929E-2,5,"USD/liter mixture",2010,0.08,0.5,null,{"$f":"title436","v":"Cattle"},960]
[null,null,null,null,null,null,null,null,null,null,null,null,null,null,null,{"$f":"title419","v":"Cross Gutter Auger"},0.20478904265077005,2.6255220372088005E-2,{"$f":"2200*30/2378/10","v":2.7754415475189234},"USD/liter mixture",2010,0.08,0.5,null,{"$f":"title437","v":"Dairy Cattle"},994]
[null,null,null,null,null,null,null,null,null,null,null,null,null,null,null,{"$f":"title420","v":"Flush Flume"},0.13645231027594507,2.6255220372088005E-2,{"$f":"(4950.08+(16+9.8)*$B$52)*1.5/3785.41178","v":1.9615091914782385},"USD/liter mixture",2010,{"$f":"AVERAGE(4%,9%)","v":6.5000000000000002E-2},0.5,null,{"$f":"title438","v":"Poultry"},961.11]
[null,null,null,null,null,null,null,null,null,null,null,null,null,null,null,null,null,null,null,null,null,null,null,null,{"$f":"title439","v":"Swine"},1140.9000000000001]
[null,null,null,null,null,null,null,null,null,null,null,null,null,null,null,{"$f":"title357","v":"Dewatering"},"Screw Press ",{"$f":"PROPER(title164)","v":"Year"}]
[null,null,null,null,null,null,null,null,null,null,null,null,null,null,null,{"$f":"title422","v":"Capital Cost (USD/t residue)"},{"$f":"AVERAGE(0.2,0.5)*1000000*0.12/AVERAGE(4000,8000)","v":7},2002]
[null,null,null,null,null,null,null,null,null,null,null,null,null,null,null,{"$f":"title423","v":"Operation (worker/t residue)"},{"$f":"AVERAGE(20,40)*1000/AVERAGE(4000,8000)/(300*8*160)","v":1.3020833333333334E-5}]
[null,null,null,null,null,null,null,null,null,null,null,null,null,null,null,{"$f":"title424","v":"Energy Demand kWh/t residue"},{"$f":"AVERAGE(5,15)*8000/AVERAGE(4000,8000)","v":13.333333333333334},2002]
[]
[]
[]
[]
[null,null,null,null,null,null,null,null,null,null,null,null,null,null,null,{"$f":"title74","v":"Please Select"},{"$f":"title405","v":"Collection method"},"Show","Section to Show",{"$f":"VLOOKUP(INDIRECT(\"'Data entry needs'!$d$\"&$A$1),$P$166:$R$178,3,FALSE)","v":{"$error":"#N/A"}}]
[null,null,null,null,null,null,null,null,null,null,null,null,null,null,null,{"$f":"title184","v":"Biodiesel/Oilseed Ind."},{"$f":"title425","v":"No collection neeeded"},1,{"$f":"title429&\" 0\"","v":"Option 0"},0,0]
[null,null,null,null,null,null,null,null,null,null,null,null,null,null,null,{"$f":"title85","v":"Crop Residues"},{"$f":"title426","v":"Method 1"},2,{"$f":"title429&\" 1\"","v":"Option 1"},{"$f":"$I$31","v":{"$error":"#DIV/0!"}},{"$f":"$D$24/E16","v":{"$error":"#DIV/0!"}},{"$f":"title381","v":"person-hour/t"}]
[null,null,null,null,null,null,null,null,null,null,null,null,null,null,null,{"$f":"title185","v":"Dairy-milk ind."},{"$f":"title427","v":"Method 2, Method 3"},4,{"$f":"title429&\" 2\"","v":"Option 2"},{"$f":"$I$58","v":{"$error":"#DIV/0!"}},{"$f":"F49/E41","v":{"$error":"#DIV/0!"}},{"$f":"title381","v":"person-hour/t"}]
[null,null,null,null,null,null,null,null,null,null,null,null,null,null,null,{"$f":"title120","v":"Energy Crops"},{"$f":"title425","v":"No collection neeeded"},1,{"$f":"title429&\" 3\"","v":"Option 3"},{"$f":"$I$87","v":{"$error":"#DIV/0!"}},{"$f":"D76","v":0},{"$f":"title381","v":"person-hour/t"}]
[null,null,null,null,null,null,null,null,null,null,null,null,null,null,null,{"$f":"title186","v":"Eth-Sugar-Starch Ind."},{"$f":"title425","v":"No collection neeeded"},1]
[null,null,null,null,null,null,null,null,null,null,null,null,null,null,null,{"$f":"title187","v":"Food Process. Res."},{"$f":"title425","v":"No collection neeeded"},1,{"$f":"title430","v":"Result"},{"$f":"IF($T$165=1,T166,IF($T$165=2,$T$167,IF($T$165=3,T168,IF(AND($T$165=4,$E$34),$T$168,$T$169))))","v":{"$error":"#N/A"}}]
[null,null,null,null,null,null,null,null,null,null,null,null,null,null,null,{"$f":"title188","v":"Grass"},{"$f":"title426","v":"Method 1"},2,{"$f":"title431","v":"Employees"},{"$f":"IF($T$165=1,U166,IF($T$165=2,$U$167,IF($T$165=3,U169,IF(AND($T$165=4,$E$34),$U$168,$U$169))))","v":{"$error":"#N/A"}},{"$f":"title381","v":"person-hour/t"}]
[null,null,null,null,null,null,null,null,null,null,null,null,null,null,null,{"$f":"title119","v":"Crops"},{"$f":"title425","v":"No collection neeeded"},1]
[null,null,null,null,null,null,null,null,null,null,null,null,null,null,null,{"$f":"title189","v":"Other Options"},{"$f":"title425","v":"No collection neeeded"},1]
[null,null,null,null,null,null,null,null,null,null,null,null,null,null,null,{"$f":"title190","v":"Slaughterhouses wastes"},{"$f":"title428","v":"Method 2"},3]
[null,null,null,null,null,null,null,null,null,null,null,null,null,null,null,{"$f":"title191","v":"Yeast-Alcoholic Bev."},{"$f":"title425","v":"No collection neeeded"},1]
[null,null,null,null,null,null,null,null,null,null,null,null,null,null,null,{"$f":"title84","v":"Manure"},{"$f":"title427","v":"Method 2, Method 3"},4]
[null,null,null,null,null,null,null,null,null,null,null,null,null,null,null,{"$f":"title192","v":"Wastewater"},{"$f":"title425","v":"No collection neeeded"},1]

{"sheet":"COST_PS4","index":49,"n_rows":134,"n_cols":38,"rows_kept":134,"cut":false,"hidden":false,"merged":[[2,2,2,12],[5,3,5,5],[7,6,7,7],[9,6,9,7],[9,9,9,10],[9,11,9,12],[12,9,12,12],[19,4,19,7],[19,9,20,9],[19,10,20,10],[19,11,20,11],[19,12,20,12],[43,11,43,12],[31,5,31,12],[32,5,32,6],[32,7,32,8],[32,9,32,10],[32,11,32,12],[33,7,33,8],[33,9,33,10],[33,11,33,12],[36,2,37,2],[36,3,37,3],[43,5,43,6],[43,7,43,8],[43,9,43,10],[72,5,72,6],[72,7,72,8],[72,9,72,10],[72,11,72,12],[45,2,46,2],[45,3,46,3],[52,2,53,2],[52,3,53,3],[60,5,60,6],[60,7,60,8],[60,9,60,10],[60,11,60,12],[62,2,63,2],[62,3,63,3],[62,4,63,4],[74,2,75,2],[74,3,75,3],[74,4,75,4],[82,5,82,6],[82,7,82,8],[82,11,82,12],[84,2,85,2],[84,3,85,3],[84,4,85,4],[89,5,89,6],[89,7,89,8],[89,9,89,10],[89,11,89,12],[82,9,82,10],[92,2,93,2],[92,3,93,3],[92,4,93,4],[97,2,97,4],[97,5,97,6],[97,9,97,10],[97,11,97,12],[99,2,100,2],[99,3,100,3],[99,4,100,4],[99,5,99,12],[100,5,100,6],[100,7,100,8],[100,9,100,10],[100,11,100,12],[97,7,97,8],[112,2,113,2],[112,3,113,3],[112,4,113,4],[108,5,108,12],[109,5,109,6],[109,7,109,8],[109,9,109,10],[109,11,109,12],[110,5,110,6],[110,7,110,8],[110,9,110,10],[110,11,110,12]]}
[]
[]
[null,null,{"$f":"title222&\" 4\"","v":" PROCESSING COSTS FOR PROCESS 4"}]
[]
[]
[null,null,{"$f":"title193","v":"Use white cells to input data"},{"$f":"title194","v":"Grey cells are used for calculations"}]
[]
[null,null,{"$f":"title223","v":"Summary of Feedstock Selected"},null,null,null,{"$f":"IF('Data entry needs'!$D$11,title230,IF('Data entry needs'!$F$11,title231,IF('Data entry needs'!$J$11,title230)))","v":"Biogas Properties"},null,"                            ",{"$f":"title235","v":"Technical Parameters"}]
[]
[null,null,{"$f":"title224","v":"Type of Operation"},{"$f":"IF('Data entry needs'!$D$11,'Data entry needs'!$D$12,IF('Data entry needs'!$F$11,'Data entry needs'!$F$12,IF('Data entry needs'!$J$11,'Data entry needs'!$J$12)))","v":"Optimized Co-digestion"},{"$f":"title225","v":"Fs Available (t/yr)"},null,{"$f":"IF('Data entry needs'!$D$11,'Data entry needs'!$D$12,IF('Data entry needs'!$F$11,'Data entry needs'!$F$12,IF('Data entry needs'!$J$11,'Data entry needs'!$J$12)))","v":"Optimized Co-digestion"},null,null,{"$f":"title236","v":"Type of Fermentor"},null,"CSTR"]
[75,{"$f":"A11*Planner_PS4!$AH100","v":0},{"$f":"IF($B11=0,\"\",title226&\" - \"&INDIRECT(\"'Data entry needs'!$d\"&$B11)&\" :\")","v":""},{"$f":"IF($B11=0,\"\",INDIRECT(\"'Data entry needs'!$e\"&$B11))","v":""},{"$f":"IF($B11=0,\"\",INDIRECT(\"'Data entry needs'!$f\"&$B11))","v":""},null,{"$f":"IFERROR(title232&ROUND(Planner_PS4!$AD$107*100,0)&\"%\",\"\")","v":""},null,null,null,{"$f":"IFERROR(title237&VLOOKUP($L$10,Planner_PS4!$AJ$116:$AP$119,2,FALSE)*100&\"%\",\"\")","v":"Min. TS Allowed : 2%"},null,{"$f":"IFERROR(title238&VLOOKUP($L$10,Planner_PS4!$AJ$116:$AP$119,3,FALSE)*100&\"%\",\"\")","v":"Max. TS Allowed: 20%"}]
[{"$f":"$A11+2","v":77},{"$f":"A12*Planner_PS4!$AH101","v":0},{"$f":"IF($B12=0,\"\",title227&\" - \"&INDIRECT(\"'Data entry needs'!$d\"&$B12)&\" :\")","v":""},"","",null,{"$f":"IFERROR(\"BMP (m^3 CH4/t VS) : \"&ROUND(Planner_PS4!$AF$107,0),\"\")","v":""},null,null,{"$f":"title239","v":"Temperature Regime (°C)"},null,"Mesophilic",{"$f":"IF($L$12=title241,AVERAGE(55,60),AVERAGE(35,40))","v":37.5}]
[{"$f":"$A12+2","v":79},{"$f":"A13*Planner_PS4!$AH102","v":0},{"$f":"IF($B13=0,\"\",title228&\" - \"&INDIRECT(\"'Data entry needs'!$d\"&$B13)&\" :\")","v":""},"","",null,{"$f":"IFERROR(title233&ROUND(Planner_PS4!$AG$107*100,0)&\"%\",\"\")","v":""},null,null,{"$f":"IF(VLOOKUP($L$10,Planner_PS4!$AJ$116:$AQ$119,8,FALSE),title242,title243&VLOOKUP($L$10,Planner_PS4!$AJ$116:$AQ$119,7,FALSE)*100&\"% TS\")","v":{"$error":"#DIV/0!"}}]
[{"$f":"$A13+2","v":81},{"$f":"A14*Planner_PS4!$AH103","v":0},{"$f":"IF($B14=0,\"\",title229&\" - \"&INDIRECT(\"'Data entry needs'!$d\"&$B14)&\" :\")","v":""},"","",null,{"$f":"IFERROR(title234&ROUND(Planner_PS4!$AE$107*100,0)&\"%\",\"\")","v":""}]
[{"$f":"$A14+2","v":83},{"$f":"A15*Planner_PS4!$AH104","v":0},{"$f":"IF($B15=0,\"\",title258&\" - \"&INDIRECT(\"'Data entry needs'!$d\"&$B15)&\" :\")","v":""},"","",null,null,null,null,"HRT Min. (d)",{"$f":"VLOOKUP($L$10,Planner_PS4!$AJ$116:$AP$119,5,FALSE)*IF($L$12=title241,0.5,1)","v":15},{"$f":"title244","v":"Water Make-up "}]
[{"$f":"$A15+4","v":87},{"$f":"A16*Planner_PS4!$AH105","v":0},{"$f":"IF($B16=0,\"\",title219&\"  - \"&INDIRECT(\"'Data entry needs'!$d\"&$B16)&\" :\")","v":""},"","",null,null,null,null,"HRT Max. (d)",{"$f":"VLOOKUP($L$10,Planner_PS4!$AJ$116:$AP$119,6,FALSE)*IF($L$12=title241,0.5,1)","v":40},{"$f":"title245","v":"Select a HRT (d)"}]
[]
[null,null,{"$f":"title257","v":"Transport Distance of Feedstock(s) from collection point to biogas plant"},null,null,null,null,null,null,{"$f":"title261","v":"Storage Capacity and Unitary Costs"}]
[]
[null,null,null,null,{"$f":"title259","v":"Transport Distances (km)"},null,null,null,null,{"$f":"title262","v":"Storage capacity Required (t)"},{"$f":"title116","v":"Storage Cost (USD/t)"},{"$f":"title263","v":"Feedstock Price (USD/t)"},{"$f":"title264","v":"Transport Cost (USD/t/km)"}]
[null,null,null,null,{"$f":"ROUND(F33,0)&\" (\"&IF(OR('Biogas Use Selection'!$P$67=5,'Biogas Use Selection'!$P$67=2),title260,IF(OR('Biogas Use Selection'!$P$67=1,'Biogas Use Selection'!$P$67=3),Planner_PS4!$AC$128,IF('Biogas Use Selection'!$P$67=4,Planner_PS4!$AC$127)))&\")\"","v":"100 (kWe)"},{"$f":"ROUND(H33,0)&\" (\"&IF(OR('Biogas Use Selection'!$P$67=5,'Biogas Use Selection'!$P$67=2),title260,IF(OR('Biogas Use Selection'!$P$67=1,'Biogas Use Selection'!$P$67=3),Planner_PS4!$AC$128,IF('Biogas Use Selection'!$P$67=4,Planner_PS4!$AC$127)))&\")\"","v":"105 (kWe)"},{"$f":"ROUND(J33,0)&\" (\"&IF(OR('Biogas Use Selection'!$P$67=5,'Biogas Use Selection'!$P$67=2),title260,IF(OR('Biogas Use Selection'!$P$67=1,'Biogas Use Selection'!$P$67=3),Planner_PS4!$AC$128,IF('Biogas Use Selection'!$P$67=4,Planner_PS4!$AC$127)))&\")\"","v":"115 (kWe)"},{"$f":"ROUND(L33,0)&\" (\"&IF(OR('Biogas Use Selection'!$P$67=5,'Biogas Use Selection'!$P$67=2),title260,IF(OR('Biogas Use Selection'!$P$67=1,'Biogas Use Selection'!$P$67=3),Planner_PS4!$AC$128,IF('Biogas Use Selection'!$P$67=4,Planner_PS4!$AC$127)))&\")\"","v":"120 (kWe)"}]
[null,{"$f":"$B11","v":0},{"$f":"IF($B11=0,\"\",title226&\" - \"&INDIRECT(\"'Data entry needs'!$e\"&$B11))","v":""},null,null,null,null,null,null,{"$f":"IF($B11=0,\"\",MAX(Planner_PS4!F13:Q13))","v":""},{"$f":"IF($B11=0,\"\",INDIRECT(\"'Data entry needs'!$m\"&$B11))","v":""},{"$f":"IF($B11=0,\"\",INDIRECT(\"'Data entry needs'!$k\"&$B11))","v":""}]
[null,0,{"$f":"IF($B12=0,\"\",title227&\" - \"&INDIRECT(\"'Data entry needs'!$e\"&$B12))","v":""},null,null,null,null,null,null,{"$f":"IF($B12=0,\"\",MAX(Planner_PS4!F14:Q14))","v":""},"",""]
[null,0,{"$f":"IF($B13=0,\"\",title228&\" - \"&INDIRECT(\"'Data entry needs'!$e\"&$B13))","v":""},null,null,null,null,null,null,{"$f":"IF($B13=0,\"\",MAX(Planner_PS4!F15:Q15))","v":""},"",""]
[null,0,{"$f":"IF($B14=0,\"\",title229&\" - \"&INDIRECT(\"'Data entry needs'!$e\"&$B14))","v":""},null,null,null,null,null,null,{"$f":"IF($B14=0,\"\",MAX(Planner_PS4!F16:Q16))","v":""},"",""]
[null,0,{"$f":"IF($B15=0,\"\",title258&\" - \"&INDIRECT(\"'Data entry needs'!$e\"&$B15))","v":""},null,null,null,null,null,null,{"$f":"IF($B15=0,\"\",MAX(Planner_PS4!F17:Q17))","v":""},"",""]
[null,0,{"$f":"IF($B16=0,\"\",title219&\" - \"&INDIRECT(\"'Data entry needs'!$e\"&$B16))","v":""},null,null,null,null,null,null,{"$f":"IF($B16=0,\"\",MAX(Planner_PS4!F18:Q18))","v":""},"",""]
[]
[]
[null,null,{"$f":"title559","v":"Production Cost Details"}]
[]
[null,null,null,null,null,{"$f":"title291&IF(OR('Biogas Use Selection'!$P$67=5,'Biogas Use Selection'!$P$67=2),title260,IF(OR('Biogas Use Selection'!$P$67=1,'Biogas Use Selection'!$P$67=3),Planner_PS4!$AC$128,IF('Biogas Use Selection'!$P$67=4,Planner_PS4!$AC$127)))&\")\"","v":"Capacities (kWe)"}]
[null,null,null,null,null,{"$f":"IF(OR('Biogas Use Selection'!$P$67=5,'Biogas Use Selection'!$P$67=2),Planner_PS4!AD$127/Planner_PS4!$AG$107,IF(OR('Biogas Use Selection'!$P$67=1,'Biogas Use Selection'!$P$67=3),Planner_PS4!AD$128,IF('Biogas Use Selection'!$P$67=4,Planner_PS4!AD$127)))","v":100},null,{"$f":"IF(OR('Biogas Use Selection'!$P$67=5,'Biogas Use Selection'!$P$67=2),Planner_PS4!AE$127/Planner_PS4!$AG$107,IF(OR('Biogas Use Selection'!$P$67=1,'Biogas Use Selection'!$P$67=3),Planner_PS4!AE$128,IF('Biogas Use Selection'!$P$67=4,Planner_PS4!AE$127)))","v":105},null,{"$f":"IF(OR('Biogas Use Selection'!$P$67=5,'Biogas Use Selection'!$P$67=2),Planner_PS4!AF$127/Planner_PS4!$AG$107,IF(OR('Biogas Use Selection'!$P$67=1,'Biogas Use Selection'!$P$67=3),Planner_PS4!AF$128,IF('Biogas Use Selection'!$P$67=4,Planner_PS4!AF$127)))","v":115},null,{"$f":"IF(OR('Biogas Use Selection'!$P$67=5,'Biogas Use Selection'!$P$67=2),Planner_PS4!AG$127/Planner_PS4!$AG$107,IF(OR('Biogas Use Selection'!$P$67=1,'Biogas Use Selection'!$P$67=3),Planner_PS4!AG$128,IF('Biogas Use Selection'!$P$67=4,Planner_PS4!AG$127)))","v":120}]
[]
[null,null,null,null,null,{"$f":"title265","v":"Operating hours per year"},{"$f":"'Data entry needs'!$L$100*24","v":0},{"$f":"title265","v":"Operating hours per year"},{"$f":"'Data entry needs'!$L$100*24","v":0},{"$f":"title265","v":"Operating hours per year"},{"$f":"'Data entry needs'!$L$100*24","v":0},{"$f":"title265","v":"Operating hours per year"},{"$f":"'Data entry needs'!$L$100*24","v":0}]
[]
[null,null,{"$f":"title266","v":"Inputs"},{"$f":"title27","v":"Unit"},{"$f":"title267","v":"Unit Price"},{"$f":"title270","v":"Quantity"},"Total",{"$f":"title270","v":"Quantity"},"Total",{"$f":"title270","v":"Quantity"},"Total",{"$f":"title270","v":"Quantity"},"Total"]
[null,null,null,null,{"$f":"\"(\"&title24&\")\"","v":"(USD/unit)"},{"$f":"title271","v":"(Unit/year)"},{"$f":"title272","v":"(USD/year)"},{"$f":"title271","v":"(Unit/year)"},{"$f":"title272","v":"(USD/year)"},{"$f":"title271","v":"(Unit/year)"},{"$f":"title272","v":"(USD/year)"},{"$f":"title271","v":"(Unit/year)"},{"$f":"title272","v":"(USD/year)"}]
[null,null,{"$f":"IF('Data entry needs'!$D$11,'Data entry needs'!$D$12,IF('Data entry needs'!$F$11,'Data entry needs'!$F$12,IF('Data entry needs'!$J$11,'Data entry needs'!$J$12)))","v":"Optimized Co-digestion"},"t",{"$f":"Planner_PS4!$AM$110","v":{"$error":"#DIV/0!"}},{"$f":"Planner_PS4!$AD$133","v":{"$error":"#DIV/0!"}},{"$f":"+F39*E39","v":{"$error":"#DIV/0!"}},{"$f":"Planner_PS4!$AE$133","v":{"$error":"#DIV/0!"}},{"$f":"+H39*$E39","v":{"$error":"#DIV/0!"}},{"$f":"Planner_PS4!$AF$133","v":{"$error":"#DIV/0!"}},{"$f":"+J39*$E39","v":{"$error":"#DIV/0!"}},{"$f":"Planner_PS4!$AG$133","v":{"$error":"#DIV/0!"}},{"$f":"+L39*$E39","v":{"$error":"#DIV/0!"}}]
[null,null,{"$f":"title244","v":"Water Make-up "},"m3",{"$f":"'Data entry needs'!$F$92","v":0},{"$f":"Planner_PS4!$AD$136*$M$15","v":{"$error":"#DIV/0!"}},{"$f":"+F40*E40","v":{"$error":"#DIV/0!"}},{"$f":"Planner_PS4!$AE$136*$M$15","v":{"$error":"#DIV/0!"}},{"$f":"+H40*$E40","v":{"$error":"#DIV/0!"}},{"$f":"Planner_PS4!$AF$136*$M$15","v":{"$error":"#DIV/0!"}},{"$f":"+J40*$E40","v":{"$error":"#DIV/0!"}},{"$f":"Planner_PS4!$AG$136*$M$15","v":{"$error":"#DIV/0!"}},{"$f":"+L40*$E40","v":{"$error":"#DIV/0!"}}]
[null,{"$f":"IF(OR('Biogas Use Selection'!$P$67=1,'Biogas Use Selection'!$P$67=3),0,1)","v":0},{"$f":"title35&\" \"&IF(B41=1,\"\",title268)","v":"Electricity  - Consumption Self-Supplied"},"KWh",{"$f":"'Data entry needs'!$L$92*B41","v":0},{"$f":"VLOOKUP($L$10,Planner_PS4!$AA$150:$AE$153,2,FALSE)+Planner_PS4!$AB$179","v":{"$error":"#DIV/0!"}},{"$f":"+F41*E41","v":{"$error":"#DIV/0!"}},{"$f":"VLOOKUP($L$10,Planner_PS4!$AA$150:$AE$153,3,FALSE)+Planner_PS4!$AC$179","v":{"$error":"#DIV/0!"}},{"$f":"+H41*$E41","v":{"$error":"#DIV/0!"}},{"$f":"VLOOKUP($L$10,Planner_PS4!$AA$150:$AE$153,4,FALSE)+Planner_PS4!$AD$179","v":{"$error":"#DIV/0!"}},{"$f":"+J41*$E41","v":{"$error":"#DIV/0!"}},{"$f":"VLOOKUP($L$10,Planner_PS4!$AA$150:$AE$153,5,FALSE)+Planner_PS4!$AE$179","v":{"$error":"#DIV/0!"}},{"$f":"+L41*$E41","v":{"$error":"#DIV/0!"}}]
[null,{"$f":"IF('Biogas Use Selection'!$P$67=1,0,1)","v":0},{"$f":"title51&IF(B42=1,\"\",title268)","v":"Heat - Consumption Self-Supplied"},"USD/GJ",{"$f":"'Data entry needs'!$L$93*B42","v":0},{"$f":"Planner_PS4!$AN$144","v":{"$error":"#DIV/0!"}},{"$f":"+F42*E42","v":{"$error":"#DIV/0!"}},{"$f":"Planner_PS4!$AN$145","v":{"$error":"#DIV/0!"}},{"$f":"+H42*$E42","v":{"$error":"#DIV/0!"}},{"$f":"Planner_PS4!$AN$146","v":{"$error":"#DIV/0!"}},{"$f":"+J42*$E42","v":{"$error":"#DIV/0!"}},{"$f":"Planner_PS4!$AN$147","v":{"$error":"#DIV/0!"}},{"$f":"+L42*$E42","v":{"$error":"#DIV/0!"}}]
[null,null,"NaOH","t",{"$f":"'Data entry needs'!$F$93","v":0},{"$f":"F39*2%","v":{"$error":"#DIV/0!"}},{"$f":"F43*$E$43","v":{"$error":"#DIV/0!"}},{"$f":"H39*2%","v":{"$error":"#DIV/0!"}},{"$f":"H43*$E$43","v":{"$error":"#DIV/0!"}},{"$f":"J39*2%","v":{"$error":"#DIV/0!"}},{"$f":"J43*$E$43","v":{"$error":"#DIV/0!"}},{"$f":"L39*1%","v":{"$error":"#DIV/0!"}},{"$f":"L43*$E$43","v":{"$error":"#DIV/0!"}}]
[null,null,{"$f":"title269","v":"Subtotal"},null,null,{"$f":"SUM(G39:G43)","v":{"$error":"#DIV/0!"}},null,{"$f":"SUM(I39:I43)","v":{"$error":"#DIV/0!"}},null,{"$f":"SUM(K39:K43)","v":{"$error":"#DIV/0!"}},null,{"$f":"SUM(M39:M43)","v":{"$error":"#DIV/0!"}}]
[]
[null,null,{"$f":"title273","v":"Labour and miscellaneous costs"},{"$f":"title27","v":"Unit"},{"$f":"title267","v":"Unit Price"},{"$f":"title270","v":"Quantity"},"Total",{"$f":"title270","v":"Quantity"},"Total",{"$f":"title270","v":"Quantity"},"Total",{"$f":"title270","v":"Quantity"},"Total"]
[null,null,null,null,{"$f":"\"(\"&title128&\")\"","v":"(USD/person-hour)"},{"$f":"\"(\"&title27&\")\"","v":"(Unit)"},{"$f":"title272","v":"(USD/year)"},{"$f":"\"(\"&title27&\")\"","v":"(Unit)"},{"$f":"title272","v":"(USD/year)"},{"$f":"\"(\"&title27&\")\"","v":"(Unit)"},{"$f":"title272","v":"(USD/year)"},{"$f":"\"(\"&title27&\")\"","v":"(Unit)"},{"$f":"title272","v":"(USD/year)"}]
[null,null,{"$f":"title127","v":"Unskilled worker"},{"$f":"title275","v":" # employee"},{"$f":"'Data entry needs'!$L$96","v":0},{"$f":"ROUNDUP(0.42*'COST(ADJUSTED)_PS4'!$J$9*'COST(ADJUSTED)_PS4'!$J$15/1000000,0)","v":0},{"$f":"+E48*F48*G35","v":0},{"$f":"ROUNDUP(0.42*'COST(ADJUSTED)_PS4'!$K$9*'COST(ADJUSTED)_PS4'!$K$15/1000000,0)","v":0},{"$f":"+$E48*H48*I35","v":0},{"$f":"ROUNDUP(0.42*'COST(ADJUSTED)_PS4'!$L$9*'COST(ADJUSTED)_PS4'!$L$15/1000000,0)","v":0},{"$f":"+$E48*J48*K35","v":0},{"$f":"ROUNDUP(0.42*'COST(ADJUSTED)_PS4'!$M$9*'COST(ADJUSTED)_PS4'!$M$15/1000000,0)","v":0},{"$f":"+$E48*L48*M35","v":0}]
[null,null,{"$f":"title126","v":"Skilled worker"},{"$f":"title275","v":" # employee"},{"$f":"'Data entry needs'!$F$96","v":0},{"$f":"ROUNDUP(F48/5,0)","v":0},{"$f":"+E49*F49*G35","v":0},{"$f":"ROUNDUP(H48/5,0)","v":0},{"$f":"+$E49*H49*I35","v":0},{"$f":"ROUNDUP(J48/10,0)","v":0},{"$f":"+$E49*J49*K35","v":0},{"$f":"ROUNDUP(L48/10,0)","v":0},{"$f":"+$E49*L49*M35","v":0}]
[null,null,{"$f":"title274","v":"Miscellaneous costs"},null,null,{"$f":"'Data entry needs'!$L$114","v":0},{"$f":"+F50*SUM(G48:G49)","v":0},{"$f":"'Data entry needs'!$L$114","v":0},{"$f":"+H50*SUM(I48:I49)","v":0},{"$f":"'Data entry needs'!$L$114","v":0},{"$f":"+J50*SUM(K48:K49)","v":0},{"$f":"'Data entry needs'!$L$114","v":0},{"$f":"+L50*SUM(M48:M49)","v":0}]
[null,null,{"$f":"title269","v":"Subtotal"},null,null,null,{"$f":"SUM(G48:G50)","v":0},null,{"$f":"SUM(I48:I50)","v":0},null,{"$f":"SUM(K48:K50)","v":0},null,{"$f":"SUM(M48:M50)","v":0}]
[]
[null,null,{"$f":"title276","v":"Transportation"},{"$f":"title27","v":"Unit"},{"$f":"title267","v":"Unit Price"},{"$f":"title270","v":"Quantity"},"Total",{"$f":"title270","v":"Quantity"},"Total",{"$f":"title270","v":"Quantity"},"Total",{"$f":"title270","v":"Quantity"},"Total"]
[null,null,null,null,"(USD/t/km)",{"$f":"\"(\"&title27&\")\"","v":"(Unit)"},{"$f":"title272","v":"(USD/year)"},{"$f":"\"(\"&title27&\")\"","v":"(Unit)"},{"$f":"title272","v":"(USD/year)"},{"$f":"\"(\"&title27&\")\"","v":"(Unit)"},{"$f":"title272","v":"(USD/year)"},{"$f":"\"(\"&title27&\")\"","v":"(Unit)"},{"$f":"title272","v":"(USD/year)"}]
[{"$f":"A11","v":75},{"$f":"A55*Planner_PS4!$AH100","v":0},{"$f":"IF($B55=0,\"\",title226&\" - \"&INDIRECT(\"'Data entry needs'!$e\"&$B55))","v":""},{"$f":"IF($B55=0,\"\",\"km\")","v":""},{"$f":"IF($B55=0,\"\",$M22)","v":""},{"$f":"IF($B55=0,\"\",$E22)","v":""},{"$f":"IFERROR($F55*$E55*F$39,0)","v":0},{"$f":"IF($B55=0,\"\",$F22)","v":""},{"$f":"IFERROR($H55*$E55*H$39,0)","v":0},{"$f":"IF($B55=0,\"\",$G22)","v":""},{"$f":"IFERROR($J55*$E55*J$39,0)","v":0},{"$f":"IF($B55=0,\"\",$H22)","v":""},{"$f":"IFERROR($L55*$E55*L$39,0)","v":0}]
[77,{"$f":"A56*Planner_PS4!$AH101","v":0},{"$f":"IF($B56=0,\"\",title227&\" - \"&INDIRECT(\"'Data entry needs'!$e\"&$B56))","v":""},"","","",0,"",0,"",0,"",0]
[79,{"$f":"A57*Planner_PS4!$AH102","v":0},{"$f":"IF($B57=0,\"\",title228&\" - \"&INDIRECT(\"'Data entry needs'!$e\"&$B57))","v":""},"","","",0,"",0,"",0,"",0]
[81,{"$f":"A58*Planner_PS4!$AH103","v":0},{"$f":"IF($B58=0,\"\",title229&\" - \"&INDIRECT(\"'Data entry needs'!$e\"&$B58))","v":""},"","","",0,"",0,"",0,"",0]
[83,{"$f":"A59*Planner_PS4!$AH104","v":0},{"$f":"IF($B59=0,\"\",title258&\" - \"&INDIRECT(\"'Data entry needs'!$e\"&$B59))","v":""},"","","",0,"",0,"",0,"",0]
[87,{"$f":"A60*Planner_PS4!$AH105","v":0},{"$f":"IF($B60=0,\"\",title219&\" - \"&INDIRECT(\"'Data entry needs'!$e\"&$B60))","v":""},"","","",0,"",0,"",0,"",0]
[null,null,{"$f":"title269","v":"Subtotal"},null,null,{"$f":"SUM(G55:G60)","v":0},{"$f":"SUM(G55:G60)","v":0},{"$f":"SUM(I55:I60)","v":0},{"$f":"SUM(I55:I60)","v":0},{"$f":"SUM(K55:K60)","v":0},{"$f":"SUM(K55:K60)","v":0},{"$f":"SUM(M55:M60)","v":0},{"$f":"SUM(M55:M60)","v":0}]
[]
[null,null,{"$f":"title175","v":"Storage"},{"$f":"title27","v":"Unit"},{"$f":"title267","v":"Unit Price"},{"$f":"title270","v":"Quantity"},"Total",{"$f":"title270","v":"Quantity"},"Total",{"$f":"title270","v":"Quantity"},"Total",{"$f":"title270","v":"Quantity"},"Total"]
[null,null,null,null,null,{"$f":"\"(\"&title27&\")\"","v":"(Unit)"},{"$f":"title272","v":"(USD/year)"},{"$f":"\"(\"&title27&\")\"","v":"(Unit)"},{"$f":"title272","v":"(USD/year)"},{"$f":"\"(\"&title27&\")\"","v":"(Unit)"},{"$f":"title272","v":"(USD/year)"},{"$f":"\"(\"&title27&\")\"","v":"(Unit)"},{"$f":"title272","v":"(USD/year)"}]
[{"$f":"A55","v":75},{"$f":"A65*Planner_PS4!$AH100","v":0},{"$f":"IF($B65=0,\"\",title226&\" - \"&INDIRECT(\"'Data entry needs'!$e\"&$B65))","v":""},{"$f":"IF($B65=0,\"\",\"USD/t\")","v":""},{"$f":"IF($B65=0,\"\",$K22)","v":""},{"$f":"IF($B65=0,\"\",Planner_PS4!$AB71)","v":""},{"$f":"IFERROR($E65*F65,0)","v":0},{"$f":"IF($B65=0,\"\",Planner_PS4!$AC71)","v":""},{"$f":"IFERROR($E65*H65,0)","v":0},{"$f":"IF($B65=0,\"\",Planner_PS4!$AD71)","v":""},{"$f":"IFERROR($E65*J65,0)","v":0},{"$f":"IF($B65=0,\"\",Planner_PS4!$AE71)","v":""},{"$f":"IFERROR($E65*L65,0)","v":0}]
[77,{"$f":"A66*Planner_PS4!$AH101","v":0},{"$f":"IF($B66=0,\"\",title227&\" - \"&INDIRECT(\"'Data entry needs'!$e\"&$B66))","v":""},"","",{"$f":"IF($B66=0,\"\",Planner_PS4!$AB72)","v":""},{"$f":"IFERROR($E66*F66,0)","v":0},{"$f":"IF($B66=0,\"\",Planner_PS4!$AC72)","v":""},0,{"$f":"IF($B66=0,\"\",Planner_PS4!$AD72)","v":""},0,{"$f":"IF($B66=0,\"\",Planner_PS4!$AE72)","v":""},0]
[79,{"$f":"A67*Planner_PS4!$AH102","v":0},{"$f":"IF($B67=0,\"\",title228&\" - \"&INDIRECT(\"'Data entry needs'!$e\"&$B67))","v":""},"","",{"$f":"IF($B67=0,\"\",Planner_PS4!$AB73)","v":""},0,{"$f":"IF($B67=0,\"\",Planner_PS4!$AC73)","v":""},0,{"$f":"IF($B67=0,\"\",Planner_PS4!$AD73)","v":""},0,{"$f":"IF($B67=0,\"\",Planner_PS4!$AE73)","v":""},0]
[81,{"$f":"A68*Planner_PS4!$AH103","v":0},{"$f":"IF($B68=0,\"\",title229&\" - \"&INDIRECT(\"'Data entry needs'!$e\"&$B68))","v":""},"","",{"$f":"IF($B68=0,\"\",Planner_PS4!$AB74)","v":""},0,{"$f":"IF($B68=0,\"\",Planner_PS4!$AC74)","v":""},0,{"$f":"IF($B68=0,\"\",Planner_PS4!$AD74)","v":""},0,{"$f":"IF($B68=0,\"\",Planner_PS4!$AE74)","v":""},0]
[83,{"$f":"A69*Planner_PS4!$AH104","v":0},{"$f":"IF($B69=0,\"\",title258&\" - \"&INDIRECT(\"'Data entry needs'!$e\"&$B69))","v":""},"","",{"$f":"IF($B69=0,\"\",Planner_PS4!$AB75)","v":""},0,{"$f":"IF($B69=0,\"\",Planner_PS4!$AC75)","v":""},0,{"$f":"IF($B69=0,\"\",Planner_PS4!$AD75)","v":""},0,{"$f":"IF($B69=0,\"\",Planner_PS4!$AE75)","v":""},0]
[87,{"$f":"A70*Planner_PS4!$AH105","v":0},{"$f":"IF($B70=0,\"\",title258&\" - \"&INDIRECT(\"'Data entry needs'!$e\"&$B70))","v":""},"","",{"$f":"IF($B70=0,\"\",Planner_PS4!$AB76)","v":""},0,{"$f":"IF($B70=0,\"\",Planner_PS4!$AC76)","v":""},0,{"$f":"IF($B70=0,\"\",Planner_PS4!$AD76)","v":""},0,{"$f":"IF($B70=0,\"\",Planner_PS4!$AE76)","v":""},0]
[null,null,{"$f":"title277","v":"Biogas Low-pressure system"},"USD/m3",{"$f":"$AI$131","v":9.893992932862191E-3},{"$f":"Planner_PS4!AD$127*30/VLOOKUP('Data entry needs'!$BX$133,COST_PS4!$AE$131:$AK$134,7,FALSE)","v":{"$error":"#DIV/0!"}},{"$f":"IFERROR(F71*$E$71,0)","v":0},{"$f":"Planner_PS4!AE$127*30/VLOOKUP('Data entry needs'!$BX$133,COST_PS4!$AE$131:$AK$134,7,FALSE)","v":{"$error":"#DIV/0!"}},{"$f":"IFERROR(H71*$E$71,0)","v":0},{"$f":"Planner_PS4!AF$127*30/VLOOKUP('Data entry needs'!$BX$133,COST_PS4!$AE$131:$AK$134,7,FALSE)","v":{"$error":"#DIV/0!"}},{"$f":"IFERROR(J71*$E$71,0)","v":0},{"$f":"Planner_PS4!AG$127*30/VLOOKUP('Data entry needs'!$BX$133,COST_PS4!$AE$131:$AK$134,7,FALSE)","v":{"$error":"#DIV/0!"}},{"$f":"IFERROR(L71*$E$71,0)","v":0}]
[null,{"$f":"IF('Data entry needs'!$BX$133=0,TRUE,FALSE)","v":true},{"$f":"IF(B72,\"\",title278&VLOOKUP('Data entry needs'!$BX$133,COST_PS4!$AE$131:$AJ$134,2,FALSE))","v":""},{"$f":"IF(B72,\"\",\"USD/m3\")","v":""},{"$f":"IF(B72,\"\",VLOOKUP('Data entry needs'!$BX$133,COST_PS4!$AE$131:$AJ$134,5,FALSE))","v":""},{"$f":"IF($B$72,\"\",Planner_PS4!AD$127*30*'Data entry needs'!$L$108)","v":""},{"$f":"IFERROR(F72*$E$72,0)","v":0},{"$f":"IF($B$72,\"\",Planner_PS4!AE$127*30*'Data entry needs'!$L$108)","v":""},{"$f":"IFERROR(H72*$E$72,0)","v":0},{"$f":"IF($B$72,\"\",Planner_PS4!AF$127*30*'Data entry needs'!$L$108)","v":""},{"$f":"IFERROR(J72*$E$72,0)","v":0},{"$f":"IF($B$72,\"\",Planner_PS4!AG$127*30*'Data entry needs'!$L$108)","v":""},{"$f":"IFERROR(L72*$E$72,0)","v":0}]
[null,null,{"$f":"title269","v":"Subtotal"},null,null,{"$f":"SUM(G65:G72)","v":0},{"$f":"SUM(G65:G65)","v":0},{"$f":"SUM(I65:I70)","v":0},{"$f":"SUM(I65:I65)","v":0},{"$f":"SUM(K65:K70)","v":0},{"$f":"SUM(K65:K65)","v":0},{"$f":"SUM(M65:M70)","v":0},{"$f":"SUM(M65:M65)","v":0}]
[]
[null,null,{"$f":"title279","v":"Investment"},{"$f":"title27","v":"Unit"},{"$f":"title284","v":"Years"},"Total",{"$f":"title285","v":"Depreciation"},"Total",{"$f":"title285","v":"Depreciation"},"Total",{"$f":"title285","v":"Depreciation"},"Total",{"$f":"title285","v":"Depreciation"}]
[null,null,"Investment",null,null,"(USD)",{"$f":"title272","v":"(USD/year)"},"(USD)",{"$f":"title272","v":"(USD/year)"},"(USD)",{"$f":"title272","v":"(USD/year)"},"(USD)",{"$f":"title272","v":"(USD/year)"}]
[null,null,{"$f":"title280","v":"Equipments"},"USD",20,{"$f":"'COST(ADJUSTED)_PS4'!J42+'COST(ADJUSTED)_PS4'!J23","v":{"$error":"#DIV/0!"}},{"$f":"+F77/E77","v":{"$error":"#DIV/0!"}},{"$f":"'COST(ADJUSTED)_PS4'!K42+'COST(ADJUSTED)_PS4'!K23","v":{"$error":"#DIV/0!"}},{"$f":"+H77/$E$77","v":{"$error":"#DIV/0!"}},{"$f":"'COST(ADJUSTED)_PS4'!L42+'COST(ADJUSTED)_PS4'!L23","v":{"$error":"#DIV/0!"}},{"$f":"+J77/$E$77","v":{"$error":"#DIV/0!"}},{"$f":"'COST(ADJUSTED)_PS4'!M42+'COST(ADJUSTED)_PS4'!M23","v":{"$error":"#DIV/0!"}},{"$f":"+L77/$E$77","v":{"$error":"#DIV/0!"}}]
[null,null,{"$f":"title281","v":"Building"},"USD",20,{"$f":"'COST(ADJUSTED)_PS4'!J50","v":{"$error":"#DIV/0!"}},{"$f":"+F78/E78","v":{"$error":"#DIV/0!"}},{"$f":"'COST(ADJUSTED)_PS4'!K50","v":{"$error":"#DIV/0!"}},{"$f":"+H78/$E$77","v":{"$error":"#DIV/0!"}},{"$f":"'COST(ADJUSTED)_PS4'!L50","v":{"$error":"#DIV/0!"}},{"$f":"+J78/$E$77","v":{"$error":"#DIV/0!"}},{"$f":"'COST(ADJUSTED)_PS4'!M50","v":{"$error":"#DIV/0!"}},{"$f":"+L78/$E$77","v":{"$error":"#DIV/0!"}}]
[null,null,{"$f":"title282","v":"Installation Distribution and/or Upgrade"},"USD",20,{"$f":"'COST(ADJUSTED)_PS4'!J60+'COST(ADJUSTED)_PS4'!J64+'COST(ADJUSTED)_PS4'!J71+'COST(ADJUSTED)_PS4'!J75+'COST(ADJUSTED)_PS4'!J67","v":{"$error":"#DIV/0!"}},{"$f":"+F79/E79","v":{"$error":"#DIV/0!"}},{"$f":"'COST(ADJUSTED)_PS4'!K60+'COST(ADJUSTED)_PS4'!K64+'COST(ADJUSTED)_PS4'!K71+'COST(ADJUSTED)_PS4'!K75+'COST(ADJUSTED)_PS4'!K67","v":{"$error":"#DIV/0!"}},{"$f":"+H79/$E$77","v":{"$error":"#DIV/0!"}},{"$f":"'COST(ADJUSTED)_PS4'!L60+'COST(ADJUSTED)_PS4'!L64+'COST(ADJUSTED)_PS4'!L71+'COST(ADJUSTED)_PS4'!L75+'COST(ADJUSTED)_PS4'!L67","v":{"$error":"#DIV/0!"}},{"$f":"+J79/$E$77","v":{"$error":"#DIV/0!"}},{"$f":"'COST(ADJUSTED)_PS4'!M60+'COST(ADJUSTED)_PS4'!M64+'COST(ADJUSTED)_PS4'!M71+'COST(ADJUSTED)_PS4'!M75+'COST(ADJUSTED)_PS4'!M67","v":{"$error":"#DIV/0!"}},{"$f":"+L79/$E$77","v":{"$error":"#DIV/0!"}}]
[null,null,{"$f":"title283","v":"Total investments"},null,null,{"$f":"SUM(F77:F79)","v":{"$error":"#DIV/0!"}},null,{"$f":"SUM(H77:H79)","v":{"$error":"#DIV/0!"}},null,{"$f":"SUM(J77:J79)","v":{"$error":"#DIV/0!"}},null,{"$f":"SUM(L77:L79)","v":{"$error":"#DIV/0!"}}]
[null,null,null,null,null,"Total \nDepreciation",{"$f":"SUM(G77:G80)","v":{"$error":"#DIV/0!"}},{"$f":"title286","v":"Total\nDepreciation"},{"$f":"SUM(I77:I80)","v":{"$error":"#DIV/0!"}},{"$f":"title286","v":"Total\nDepreciation"},{"$f":"SUM(K77:K80)","v":{"$error":"#DIV/0!"}},{"$f":"title286","v":"Total\nDepreciation"},{"$f":"SUM(M77:M80)","v":{"$error":"#DIV/0!"}}]
[null,null,{"$f":"title287","v":"Maintenance cost"},null,{"$f":"'Data entry needs'!$F$115","v":0},null,{"$f":"+E82*G81","v":{"$error":"#DIV/0!"}},null,{"$f":"+E82*$I$81","v":{"$error":"#DIV/0!"}},null,{"$f":"+$E$82*K81","v":{"$error":"#DIV/0!"}},null,{"$f":"+$E$82*M81","v":{"$error":"#DIV/0!"}}]
[null,null,{"$f":"title269","v":"Subtotal"},null,null,{"$f":"SUM(G81:G82)","v":{"$error":"#DIV/0!"}},null,{"$f":"SUM(I81:I82)","v":{"$error":"#DIV/0!"}},null,{"$f":"SUM(K81:K82)","v":{"$error":"#DIV/0!"}},null,{"$f":"SUM(M81:M82)","v":{"$error":"#DIV/0!"}}]
[]
[null,null,{"$f":"title150","v":"Other costs"},{"$f":"title27","v":"Unit"},{"$f":"title290","v":"Rate (%)"},null,"Total",null,"Total",null,"Total",null,"Total"]
[null,null,null,null,null,null,{"$f":"title272","v":"(USD/year)"},null,{"$f":"title272","v":"(USD/year)"},null,{"$f":"title272","v":"(USD/year)"},null,{"$f":"title272","v":"(USD/year)"}]
[null,null,{"$f":"title151","v":"Plant overhead"},"USD",{"$f":"'Data entry needs'!$F$114","v":0},null,{"$f":"+(G48+G49+G82)*$E$87","v":{"$error":"#DIV/0!"}},null,{"$f":"+(I48+I49+I82)*$E$87","v":{"$error":"#DIV/0!"}},null,{"$f":"+(K48+K49+K82)*$E$87","v":{"$error":"#DIV/0!"}},null,{"$f":"+(M48+M49+M82)*$E$87","v":{"$error":"#DIV/0!"}}]
[null,null,{"$f":"title288","v":"General and administrative cost"},"USD",{"$f":"'Data entry needs'!$L$115","v":0},null,{"$f":"+(F44+G51+G87+G82)*$E$88","v":{"$error":"#DIV/0!"}},null,{"$f":"+(H44+I51+I87+I82)*$E$88","v":{"$error":"#DIV/0!"}},null,{"$f":"+(J44+K51+K87+K82)*$E$88","v":{"$error":"#DIV/0!"}},null,{"$f":"+(L44+M51+M87+M82)*$E$88","v":{"$error":"#DIV/0!"}}]
[null,null,{"$f":"title289","v":"Loan interest"},"USD",{"$f":"'Data entry needs'!$L$119","v":0},null,{"$f":"-G118","v":{"$error":"#DIV/0!"}},null,{"$f":"-I118","v":{"$error":"#DIV/0!"}},null,{"$f":"-K118","v":{"$error":"#DIV/0!"}},null,{"$f":"-M118","v":{"$error":"#DIV/0!"}}]
[null,null,{"$f":"title269","v":"Subtotal"},null,null,{"$f":"SUM(G87:G89)","v":{"$error":"#DIV/0!"}},null,{"$f":"SUM(I87:I89)","v":{"$error":"#DIV/0!"}},null,{"$f":"SUM(K87:K89)","v":{"$error":"#DIV/0!"}},{"$f":"SUM(K87:K89)","v":{"$error":"#DIV/0!"}},{"$f":"SUM(M87:M89)","v":{"$error":"#DIV/0!"}},{"$f":"SUM(M87:M89)","v":{"$error":"#DIV/0!"}}]
[]
[]
[null,null,{"$f":"title292","v":"Total costs"},null,null,"Total",{"$f":"title323","v":"Share (%)"},"Total",{"$f":"title323","v":"Share (%)"},"Total",{"$f":"title323","v":"Share (%)"},"Total",{"$f":"title323","v":"Share (%)"}]
[null,null,"Investment",null,null,{"$f":"title272","v":"(USD/year)"},null,{"$f":"title272","v":"(USD/year)"},null,{"$f":"title272","v":"(USD/year)"},null,{"$f":"title272","v":"(USD/year)"}]
[null,null,{"$f":"title293","v":"Total operating costs"},null,null,{"$f":"+F44+G51+G61+G73","v":{"$error":"#DIV/0!"}},{"$f":"+F95/$F$98","v":{"$error":"#DIV/0!"}},{"$f":"+H44+I51+I61+I73","v":{"$error":"#DIV/0!"}},{"$f":"+H95/$H$98","v":{"$error":"#DIV/0!"}},{"$f":"+J44+K51+K61+K73","v":{"$error":"#DIV/0!"}},{"$f":"+J95/$J$98","v":{"$error":"#DIV/0!"}},{"$f":"+L44+M51+M61+M73","v":{"$error":"#DIV/0!"}},{"$f":"+L95/$L$98","v":{"$error":"#DIV/0!"}}]
[null,null,{"$f":"title294","v":"Total fixed costs"},null,null,{"$f":"+F83","v":{"$error":"#DIV/0!"}},{"$f":"+F96/$F$98","v":{"$error":"#DIV/0!"}},{"$f":"+H83","v":{"$error":"#DIV/0!"}},{"$f":"+H96/$H$98","v":{"$error":"#DIV/0!"}},{"$f":"+J83","v":{"$error":"#DIV/0!"}},{"$f":"+J96/$J$98","v":{"$error":"#DIV/0!"}},{"$f":"+L83","v":{"$error":"#DIV/0!"}},{"$f":"+L96/$L$98","v":{"$error":"#DIV/0!"}}]
[null,null,{"$f":"title295","v":"Total other costs"},null,null,{"$f":"+F90","v":{"$error":"#DIV/0!"}},{"$f":"+F97/$F$98","v":{"$error":"#DIV/0!"}},{"$f":"+H90","v":{"$error":"#DIV/0!"}},{"$f":"+H97/$H$98","v":{"$error":"#DIV/0!"}},{"$f":"+J90","v":{"$error":"#DIV/0!"}},{"$f":"+J97/$J$98","v":{"$error":"#DIV/0!"}},{"$f":"+M90","v":{"$error":"#DIV/0!"}},{"$f":"+L97/$L$98","v":{"$error":"#DIV/0!"}}]
[null,null,{"$f":"title296","v":"Total production costs"},null,null,{"$f":"SUM(F95:F97)","v":{"$error":"#DIV/0!"}},null,{"$f":"SUM(H95:H97)","v":{"$error":"#DIV/0!"}},null,{"$f":"SUM(J95:J97)","v":{"$error":"#DIV/0!"}},null,{"$f":"SUM(L95:L97)","v":{"$error":"#DIV/0!"}}]
[]
[null,null,{"$f":"title297","v":"Energy Balance"},null,{"$f":"title27","v":"Unit"},{"$f":"F32","v":"Capacities (kWe)"}]
[null,null,"Investment",null,null,{"$f":"F$33","v":100},null,{"$f":"H$33","v":105},null,{"$f":"J$33","v":115},null,{"$f":"L$33","v":120}]
[null,null,{"$f":"title298","v":"Electricity Production"},null,{"$f":"title304","v":"kWh/year"},null,{"$f":"IF('Biogas Use Selection'!$P$67=1,Planner_PS4!AB$159,IF('Biogas Use Selection'!$P$67=3,Planner_PS4!AB$163,0))*(1-'Data entry needs'!$F$112-'Data entry needs'!$L$112)","v":{"$error":"#DIV/0!"}},null,{"$f":"IF('Biogas Use Selection'!$P$67=1,Planner_PS4!AC$159,IF('Biogas Use Selection'!$P$67=3,Planner_PS4!AC$163,0))*(1-'Data entry needs'!$F$112-'Data entry needs'!$L$112)","v":{"$error":"#DIV/0!"}},null,{"$f":"IF('Biogas Use Selection'!$P$67=1,Planner_PS4!AD$159,IF('Biogas Use Selection'!$P$67=3,Planner_PS4!AD$163,0))*(1-'Data entry needs'!$F$112-'Data entry needs'!$L$112)","v":{"$error":"#DIV/0!"}},null,{"$f":"IF('Biogas Use Selection'!$P$67=1,Planner_PS4!AE$159,IF('Biogas Use Selection'!$P$67=3,Planner_PS4!AE$163,0))*(1-'Data entry needs'!$F$112-'Data entry needs'!$L$112)","v":{"$error":"#DIV/0!"}}]
[null,null,{"$f":"title299","v":"Heat Production"},null,{"$f":"title305","v":"GJ/year"},null,{"$f":"IF('Biogas Use Selection'!$P$67=1,Planner_PS4!AB$158,0)*(1-'Data entry needs'!$F$111-'Data entry needs'!$L$111)","v":{"$error":"#DIV/0!"}},null,{"$f":"IF('Biogas Use Selection'!$P$67=1,Planner_PS4!AC$158,0)*(1-'Data entry needs'!$F$111-'Data entry needs'!$L$111)","v":{"$error":"#DIV/0!"}},null,{"$f":"IF('Biogas Use Selection'!$P$67=1,Planner_PS4!AD$158,0)*(1-'Data entry needs'!$F$111-'Data entry needs'!$L$111)","v":{"$error":"#DIV/0!"}},null,{"$f":"IF('Biogas Use Selection'!$P$67=1,Planner_PS4!AE$158,0)*(1-'Data entry needs'!$F$111-'Data entry needs'!$L$111)","v":{"$error":"#DIV/0!"}}]
[null,null,{"$f":"title300","v":"Electricity Consumption"},null,{"$f":"title304","v":"kWh/year"},null,{"$f":"-F41","v":{"$error":"#DIV/0!"}},null,{"$f":"-H41","v":{"$error":"#DIV/0!"}},null,{"$f":"-J41","v":{"$error":"#DIV/0!"}},null,{"$f":"-L41","v":{"$error":"#DIV/0!"}}]
[null,null,{"$f":"title301","v":"Heat Consumption"},null,{"$f":"title305","v":"GJ/year"},null,{"$f":"-F42","v":{"$error":"#DIV/0!"}},null,{"$f":"-H42","v":{"$error":"#DIV/0!"}},null,{"$f":"-J42","v":{"$error":"#DIV/0!"}},null,{"$f":"-L42","v":{"$error":"#DIV/0!"}}]
[null,null,{"$f":"title302","v":"Electricity Available for Selling"},null,{"$f":"title304","v":"kWh/year"},null,{"$f":"G102+G104","v":{"$error":"#DIV/0!"}},null,{"$f":"I102+I104","v":{"$error":"#DIV/0!"}},null,{"$f":"K102+K104","v":{"$error":"#DIV/0!"}},null,{"$f":"M102+M104","v":{"$error":"#DIV/0!"}}]
[null,null,{"$f":"title303","v":"Heat Available for Selling"},null,{"$f":"title305","v":"GJ/year"},null,{"$f":"G103+G105","v":{"$error":"#DIV/0!"}},null,{"$f":"I103+I105","v":{"$error":"#DIV/0!"}},null,{"$f":"K103+K105","v":{"$error":"#DIV/0!"}},null,{"$f":"M103+M105","v":{"$error":"#DIV/0!"}}]
[]
[null,null,null,null,null,{"$f":"F32","v":"Capacities (kWe)"}]
[null,null,null,null,null,{"$f":"F33","v":100},null,{"$f":"H33","v":105},null,{"$f":"J33","v":115},null,{"$f":"L33","v":120}]
[null,null,{"$f":"title312&IF(OR('Biogas Use Selection'!$P$67=5,'Biogas Use Selection'!$P$67=2),Planner_PS4!$AJ$127,IF(OR('Biogas Use Selection'!$P$67=1,'Biogas Use Selection'!$P$67=3),Planner_PS4!$AJ$128,IF('Biogas Use Selection'!$P$67=4,Planner_PS4!$AJ$129)))&\")\"","v":"Unit cost of biogas (USD/kWh)"},null,null,{"$f":"F$98/IF(OR('Biogas Use Selection'!$P$67=1,'Biogas Use Selection'!$P$67=3),G$106,IF(OR('Biogas Use Selection'!$P$67=5,'Biogas Use Selection'!$P$67=2),Planner_PS4!AD$130*'Data entry needs'!$L$100,IF('Biogas Use Selection'!$P$67=4,F110*'Data entry needs'!$L$100)))","v":{"$error":"#DIV/0!"}},null,{"$f":"H$98/IF(OR('Biogas Use Selection'!$P$67=1,'Biogas Use Selection'!$P$67=3),I$106,IF(OR('Biogas Use Selection'!$P$67=5,'Biogas Use Selection'!$P$67=2),Planner_PS4!AE$130*'Data entry needs'!$L$100,IF('Biogas Use Selection'!$P$67=4,H110*'Data entry needs'!$L$100)))","v":{"$error":"#DIV/0!"}},null,{"$f":"J$98/IF(OR('Biogas Use Selection'!$P$67=1,'Biogas Use Selection'!$P$67=3),K$106,IF(OR('Biogas Use Selection'!$P$67=5,'Biogas Use Selection'!$P$67=2),Planner_PS4!AF$130*'Data entry needs'!$L$100,IF('Biogas Use Selection'!$P$67=4,J110*'Data entry needs'!$L$100)))","v":{"$error":"#DIV/0!"}},null,{"$f":"L$98/IF(OR('Biogas Use Selection'!$P$67=1,'Biogas Use Selection'!$P$67=3),M$106,IF(OR('Biogas Use Selection'!$P$67=5,'Biogas Use Selection'!$P$67=2),Planner_PS4!AG$130*'Data entry needs'!$L$100,IF('Biogas Use Selection'!$P$67=4,L110*'Data entry needs'!$L$100)))","v":{"$error":"#DIV/0!"}}]
[]
[null,null,{"$f":"title313","v":"Average loan interest"},{"$f":"title27","v":"Unit"},null,{"$f":"title320","v":"Total investment"},{"$f":"title314","v":"Loan amount"},{"$f":"title320","v":"Total investment"},{"$f":"title314","v":"Loan amount"},{"$f":"title320","v":"Total investment"},{"$f":"title314","v":"Loan amount"},{"$f":"title320","v":"Total investment"},{"$f":"title314","v":"Loan amount"}]
[null,null,null,null,null,"(USD)","(USD)","(USD)","(USD)","(USD)","(USD)","(USD)","(USD)"]
[null,null,{"$f":"title314","v":"Loan amount"},"USD",null,{"$f":"F80","v":{"$error":"#DIV/0!"}},{"$f":"'Data entry needs'!$F$118*F115","v":{"$error":"#DIV/0!"}},{"$f":"H80","v":{"$error":"#DIV/0!"}},{"$f":"'Data entry needs'!$F$119*H115","v":{"$error":"#DIV/0!"}},{"$f":"J80","v":{"$error":"#DIV/0!"}},{"$f":"'Data entry needs'!$F$120*J115","v":{"$error":"#DIV/0!"}},{"$f":"L80","v":{"$error":"#DIV/0!"}},{"$f":"'Data entry needs'!$F$121*L115","v":{"$error":"#DIV/0!"}}]
[null,null,{"$f":"title162","v":"Loan interest rate"},"%",null,null,{"$f":"E89","v":0},null,{"$f":"E89","v":0},null,{"$f":"E89","v":0},null,{"$f":"E89","v":0}]
[null,null,{"$f":"title315","v":"Loan payment"},{"$f":"title318","v":"USD/month"},null,null,{"$f":"PMT(G116/12,G119*12,G115,0)","v":{"$error":"#DIV/0!"}},null,{"$f":"PMT(I116/12,I119*12,I115,0)","v":{"$error":"#DIV/0!"}},null,{"$f":"PMT(K116/12,K119*12,K115,0)","v":{"$error":"#DIV/0!"}},null,{"$f":"PMT(M116/12,M119*12,M115,0)","v":{"$error":"#DIV/0!"}}]
[null,null,{"$f":"title316","v":"Annual loan payment"},{"$f":"title319","v":"USD/year"},null,null,{"$f":"G117*12","v":{"$error":"#DIV/0!"}},null,{"$f":"I117*12","v":{"$error":"#DIV/0!"}},null,{"$f":"K117*12","v":{"$error":"#DIV/0!"}},null,{"$f":"M117*12","v":{"$error":"#DIV/0!"}},null,null,null,null,null,null,null,null,null,null,null,null,null,null,null,null,"FS1",{"$f":"+$D$14","v":""},{"$f":"+IF(AE118=title74,TRUE,FALSE)","v":false}]
[null,null,{"$f":"title163","v":"Loan terms"},{"$f":"title164","v":"year"},null,null,{"$f":"'Data entry needs'!$L$120","v":0},null,{"$f":"$G$119","v":0},null,{"$f":"$G$119","v":0},null,{"$f":"$G$119","v":0},null,null,null,null,null,null,null,null,null,null,null,null,null,null,null,null,"FS2",{"$f":"+#REF!","v":{"$error":"#REF!"}},{"$f":"+IF(AE119=title74,TRUE,FALSE)","v":{"$error":"#REF!"}}]
[null,null,{"$f":"title317","v":"Total loan payment"},"USD",null,null,{"$f":"G118*G119","v":{"$error":"#DIV/0!"}},null,{"$f":"I118*I119","v":{"$error":"#DIV/0!"}},null,{"$f":"K118*K119","v":{"$error":"#DIV/0!"}},null,{"$f":"M118*M119","v":{"$error":"#DIV/0!"}},null,null,null,null,null,null,null,null,null,null,null,null,null,null,null,null,"FS3",{"$f":"+$L$16","v":"Select a HRT (d)"},{"$f":"+IF(AE120=title74,TRUE,FALSE)","v":false}]
[null,null,{"$f":"title289","v":"Loan interest"},"USD",null,null,{"$f":"G120+G115","v":{"$error":"#DIV/0!"}},null,{"$f":"I120+I115","v":{"$error":"#DIV/0!"}},null,{"$f":"K120+K115","v":{"$error":"#DIV/0!"}},null,{"$f":"M120+M115","v":{"$error":"#DIV/0!"}},null,null,null,null,null,null,null,null,null,null,null,null,null,null,null,null,"FS4",{"$f":"+$M$16","v":0},{"$f":"+IF(AE121=title74,TRUE,FALSE)","v":false}]
[null,null,{"$f":"title313","v":"Average loan interest"},{"$f":"title319","v":"USD/year"},null,null,{"$f":"+G121/20","v":{"$error":"#DIV/0!"}},null,{"$f":"+I121/20","v":{"$error":"#DIV/0!"}},null,{"$f":"+K121/20","v":{"$error":"#DIV/0!"}},null,{"$f":"+M121/20","v":{"$error":"#DIV/0!"}},null,null,null,null,null,null,null,null,null,null,null,null,null,null,null,null,{"$f":"title240","v":"Mesophilic"}]
[null,null,null,null,null,null,null,null,null,null,null,null,null,null,null,null,null,null,null,null,null,null,null,null,null,null,null,null,null,{"$f":"title241","v":"Thermophilic"}]
[null,null,null,null,null,null,null,null,null,null,null,null,null,null,null,null,null,null,null,null,null,null,null,null,null,null,null,null,null,{"$f":"IF('Data entry needs'!$J$11,COST_PS4!$AE124,COST_PS4!$AE124)","v":"CSTR"},"CSTR"]
[null,null,null,null,null,null,null,null,null,null,null,null,null,null,null,null,null,null,null,null,null,null,null,null,null,null,null,null,null,{"$f":"IF('Data entry needs'!$J$11,COST_PS4!$AE125,COST_PS4!$AE125)","v":"Plug Flow"},{"$f":"title530","v":"Plug Flow"}]
[null,null,null,null,null,null,null,null,null,null,null,null,null,null,null,null,null,null,null,null,null,null,null,null,null,null,null,null,null,{"$f":"IF('Data entry needs'!$J$11,COST_PS4!$AE126,COST_PS4!$AE126)","v":"UASB"},"UASB"]
[null,null,null,null,null,null,null,null,null,null,null,null,null,null,null,null,null,null,null,null,null,null,null,null,null,null,null,null,null,{"$f":"IF('Data entry needs'!$J$11,\"\",COST_PS4!$AE127)","v":""},{"$f":"title531","v":"Batch"}]
[]
[]
[null,null,null,null,null,null,null,null,null,null,null,null,null,null,null,null,null,null,null,null,null,null,null,null,null,null,null,null,null,null,{"$f":"title560","v":"Storage Methods"},null,null,{"$f":"title561","v":"Pressure"},{"$f":"title562","v":"Cost (USD/m3)"},{"$f":"title563","v":"Energy (kWh/m3)"},{"$f":"title564","v":"Methane (%)"}]
[null,null,null,null,null,null,null,null,null,null,null,null,null,null,null,null,null,null,null,null,null,null,null,null,null,null,null,null,null,null,0,{"$f":"title565","v":"Low-pressure system"},{"$f":"title569","v":"Water sealed gas holder"}," <2",9.893992932862191E-3,0,{"$f":"Planner_PS4!$AG$107","v":{"$error":"#DIV/0!"}},"Used for short and intermediate storage"]
[null,null,null,null,null,null,null,null,null,null,null,null,null,null,null,null,null,null,null,null,null,null,null,null,null,null,null,null,null,null,1,{"$f":"title566","v":"Intermediate-pressure system"},{"$f":"title570","v":"Propane Tanks"},"300 psi",7.9119529346846758,0.1765736241383207,{"$f":"Planner_PS4!$AG$107","v":{"$error":"#DIV/0!"}},"Suitable for standard storage"]
[null,null,null,null,null,null,null,null,null,null,null,null,null,null,null,null,null,null,null,null,null,null,null,null,null,null,null,null,null,null,2,{"$f":"title567","v":"High-pressure system"},{"$f":"title571","v":"CNG Tanks"},{"$f":"title573","v":"2,000 to 5,000 psi"},12.809187279151944,0.49440614758729801,1,"For pipeline injection of biomethane, only limited on-site gas storage facilities are necessary Needs first be upgraded to biomethane"]
[null,null,null,null,null,null,null,null,null,null,null,null,null,null,null,null,null,null,null,null,null,null,null,null,null,null,null,null,null,null,3,{"$f":"title568","v":"Cryogenic-pressure system"},{"$f":"title572","v":"LNG Tanks"},">5000 psi",29.939499246165674,{"$f":"AJ133*3","v":1.483218442761894},1,"For delivery and use as a transportation fuel,"]

{"sheet":"FA_SIZE1_PS4","index":50,"n_rows":97,"n_cols":25,"rows_kept":97,"cut":false,"hidden":true,"merged":[[1,1,1,23]]}
[]
[null,{"$f":"title496&\" 1\"","v":"FINANCIAL EVALUATION OF BIOGAS PRODUCTION SIZE 1"}]
[]
[null,{"$f":"title445","v":"Revenues of biomass production and use system"}]
[null,{"$f":"title446","v":"Operating Year"},null,0,1,2,3,4,5,6,7,8,9,10,11,12,13,14,15,16,17,18,19,20,1]
[null,null,null,null,null,null,null,null,null,null,null,null,null,null,null,null,null,null,null,null,null,null,null,null,1]
["AD130",{"$f":"title447","v":"Biogas production capacity (m3 Biogas per year)"},null,{"$f":"INDIRECT(\"Planner_PS4!$\"&$A$7)*'Data entry needs'!$L$100","v":{"$error":"#DIV/0!"}},{"$f":"D7","v":{"$error":"#DIV/0!"}},{"$f":"E7","v":{"$error":"#DIV/0!"}},{"$f":"F7","v":{"$error":"#DIV/0!"}},{"$error":"#DIV/0!"},{"$error":"#DIV/0!"},{"$error":"#DIV/0!"},{"$error":"#DIV/0!"},{"$error":"#DIV/0!"},{"$error":"#DIV/0!"},{"$error":"#DIV/0!"},{"$error":"#DIV/0!"},{"$error":"#DIV/0!"},{"$error":"#DIV/0!"},{"$error":"#DIV/0!"},{"$error":"#DIV/0!"},{"$error":"#DIV/0!"},{"$error":"#DIV/0!"},{"$error":"#DIV/0!"},{"$error":"#DIV/0!"},{"$error":"#DIV/0!"},1]
[]
["G107",{"$f":"title448","v":"Heat Available for Selling (MJ/year)"},null,{"$f":"IF(INDIRECT(\"COST_PS4!\"&$A$9)<0,0,INDIRECT(\"COST_PS4!\"&$A$9))","v":{"$error":"#DIV/0!"}},{"$f":"D9","v":{"$error":"#DIV/0!"}},{"$f":"E9","v":{"$error":"#DIV/0!"}},{"$error":"#DIV/0!"},{"$error":"#DIV/0!"},{"$error":"#DIV/0!"},{"$error":"#DIV/0!"},{"$error":"#DIV/0!"},{"$error":"#DIV/0!"},{"$error":"#DIV/0!"},{"$error":"#DIV/0!"},{"$error":"#DIV/0!"},{"$error":"#DIV/0!"},{"$error":"#DIV/0!"},{"$error":"#DIV/0!"},{"$error":"#DIV/0!"},{"$error":"#DIV/0!"},{"$error":"#DIV/0!"},{"$f":"U9","v":{"$error":"#DIV/0!"}},{"$error":"#DIV/0!"},{"$error":"#DIV/0!"},1]
["G106",{"$f":"title449","v":"Electricity Available for Selling (kWh/year)"},null,{"$f":"IF(INDIRECT(\"COST_PS4!\"&$A$10)<0,0,INDIRECT(\"COST_PS4!\"&$A$10))","v":{"$error":"#DIV/0!"}},{"$f":"D10","v":{"$error":"#DIV/0!"}},{"$error":"#DIV/0!"},{"$error":"#DIV/0!"},{"$error":"#DIV/0!"},{"$error":"#DIV/0!"},{"$error":"#DIV/0!"},{"$error":"#DIV/0!"},{"$error":"#DIV/0!"},{"$error":"#DIV/0!"},{"$error":"#DIV/0!"},{"$error":"#DIV/0!"},{"$error":"#DIV/0!"},{"$error":"#DIV/0!"},{"$error":"#DIV/0!"},{"$error":"#DIV/0!"},{"$error":"#DIV/0!"},{"$error":"#DIV/0!"},{"$error":"#DIV/0!"},{"$error":"#DIV/0!"},{"$error":"#DIV/0!"},1]
["AB166",{"$f":"title450","v":"Biomethane Production (m3 Methane/year)"},null,{"$f":"IF(OR('Biogas Use Selection'!$P$67=4,'Biogas Use Selection'!$P$67=5),INDIRECT(\"Planner_PS4!$\"&$A$11),0)","v":0},{"$f":"D11","v":0},0,0,0,0,0,0,0,0,0,0,0,0,0,0,0,0,0,0,0,1]
[null,{"$f":"title451","v":"Biogas Available for Selling (m3/year)"},null,{"$f":"IF('Biogas Use Selection'!$P$67=2,$D$7,0)","v":0},{"$f":"D12","v":0},0,0,0,0,0,0,0,0,0,0,0,0,0,0,0,0,0,0,0]
["AB178",{"$f":"title452","v":"Digestate Production (t/year)"},null,{"$f":"INDIRECT(\"Planner_PS4!$\"&$A$13)","v":{"$error":"#DIV/0!"}},{"$f":"D13","v":{"$error":"#DIV/0!"}},{"$error":"#DIV/0!"},{"$error":"#DIV/0!"},{"$error":"#DIV/0!"},{"$error":"#DIV/0!"},{"$error":"#DIV/0!"},{"$error":"#DIV/0!"},{"$error":"#DIV/0!"},{"$error":"#DIV/0!"},{"$error":"#DIV/0!"},{"$error":"#DIV/0!"},{"$error":"#DIV/0!"},{"$error":"#DIV/0!"},{"$error":"#DIV/0!"},{"$error":"#DIV/0!"},{"$error":"#DIV/0!"},{"$error":"#DIV/0!"},{"$error":"#DIV/0!"},{"$error":"#DIV/0!"},{"$error":"#DIV/0!"}]
[]
[null,{"$f":"title265","v":"Operating hours per year"},null,{"$f":"COST_PS4!$G$35","v":0},{"$f":"D15","v":0},{"$f":"E15","v":0},0,0,0,0,0,0,0,0,0,0,0,0,0,0,0,0,0,0,1]
[null,null,null,null,null,null,null,null,null,null,null,null,null,null,null,null,null,null,null,null,null,null,null,null,1]
[1,{"$f":"title137&\" (USD/kWh)\"","v":"Electricity Selling Price (USD/kWh)"},null,{"$f":"IF($A17=1,'Data entry needs'!$F$103,0)","v":0},null,null,null,null,null,null,null,null,null,null,null,null,null,null,null,null,null,null,null,null,1]
[1,{"$f":"title138&\" (USD/GJ)\"","v":"Heat Selling Price (USD/GJ)"},null,{"$f":"IF($A18=1,'Data entry needs'!$F$104,0)","v":0}]
[1,{"$f":"title453","v":"Biogas Selling Price (USD/m3)"},null,{"$f":"IF($A19=1,'Data entry needs'!$F$105,0)","v":0}]
[1,{"$f":"title454","v":"Biomethane Selling Price (USD/m3)"},null,{"$f":"IF($A20=1,'Data entry needs'!$L$103,0)","v":0}]
[1,{"$f":"title455","v":"Digestate Sellig Price (USD/t)"},null,{"$f":"'Data entry needs'!$L$104","v":0}]
[]
[null,null,null,null,null,null,null,null,null,null,null,null,null,null,null,null,null,null,null,null,null,null,null,null,1]
[null,{"$f":"title456","v":"Annual Income (USD per year)"},null,{"$f":"$D$18*D9+D10*$D$17+D12*$D$19+D11*$D$20+$D$21*D13","v":{"$error":"#DIV/0!"}},{"$f":"$D$18*E9+E10*$D$17+E12*$D$19+E11*$D$20+$D$21*E13","v":{"$error":"#DIV/0!"}},{"$f":"$D$18*F9+F10*$D$17+F12*$D$19+F11*$D$20+$D$21*F13","v":{"$error":"#DIV/0!"}},{"$error":"#DIV/0!"},{"$error":"#DIV/0!"},{"$error":"#DIV/0!"},{"$error":"#DIV/0!"},{"$error":"#DIV/0!"},{"$error":"#DIV/0!"},{"$error":"#DIV/0!"},{"$error":"#DIV/0!"},{"$error":"#DIV/0!"},{"$error":"#DIV/0!"},{"$error":"#DIV/0!"},{"$error":"#DIV/0!"},{"$error":"#DIV/0!"},{"$error":"#DIV/0!"},{"$error":"#DIV/0!"},{"$error":"#DIV/0!"},{"$error":"#DIV/0!"},{"$error":"#DIV/0!"},1]
[null,null,null,null,null,null,null,null,null,null,null,null,null,null,null,null,null,null,null,null,null,null,null,null,1]
[null,{"$f":"title457","v":"Lifespan of civil work (years)"},null,{"$f":"'Data entry needs'!$L$120","v":0},null,null,null,null,null,null,null,null,null,null,null,null,null,null,null,null,null,null,null,null,1]
[null,{"$f":"title458","v":"Lifespan of charcoal system (years)"},null,{"$f":"'Data entry needs'!$L$120","v":0},null,null,null,null,null,null,null,null,null,null,null,null,null,null,null,null,null,null,null,null,1]
[null,{"$f":"title459","v":"Project lifetime (years)"},null,{"$f":"'Data entry needs'!$L$120","v":0},null,null,null,null,null,null,null,null,null,null,null,null,null,null,null,null,null,null,null,null,1]
[null,null,null,null,null,null,null,null,null,null,null,null,null,null,null,null,null,null,null,null,null,null,null,null,1]
[null,null,null,null,null,null,null,null,null,null,null,null,null,null,null,null,null,null,null,null,null,null,null,null,1]
[null,{"$f":"title460","v":"Capital and operating cost of biogas system "},null,null,null,null,null,null,null,null,null,null,null,null,null,null,null,null,null,null,null,null,null,null,1]
[null,null,null,null,null,null,null,null,null,null,null,null,null,null,null,null,null,null,null,null,null,null,null,null,1]
[null,{"$f":"title446","v":"Operating Year"},null,{"$f":"title464","v":"Appraisal"},{"$f":"title465","v":"Project period (years)"},{"$f":"title466","v":"per year"},null,null,null,null,null,null,null,null,null,null,null,null,null,null,null,null,null,null,1]
[null,{"$f":"title461","v":"Capital cost (USD)"},null,"Total",null,null,null,null,null,null,null,null,null,null,null,null,null,null,null,null,null,null,null,null,1]
["F77",{"$f":"title280","v":"Equipments"},null,{"$f":"INDIRECT(\"COST_PS4!\"&$A35)","v":{"$error":"#DIV/0!"}},{"$f":"+D26","v":0},{"$f":"D35/E35","v":{"$error":"#DIV/0!"}},null,null,null,null,null,null,null,null,null,null,null,null,null,null,null,null,null,null,1]
["F78",{"$f":"title281","v":"Building"},null,{"$f":"INDIRECT(\"COST_PS4!\"&$A36)","v":{"$error":"#DIV/0!"}},{"$f":"+D27","v":0},{"$f":"D36/E36","v":{"$error":"#DIV/0!"}},null,null,null,null,null,null,null,null,null,null,null,null,null,null,null,null,null,null,1]
["F79",{"$f":"title462","v":"Installation"},null,{"$f":"INDIRECT(\"COST_PS4!\"&$A37)","v":{"$error":"#DIV/0!"}},{"$f":"+D28","v":0},{"$f":"D37/E37","v":{"$error":"#DIV/0!"}},null,null,null,null,null,null,null,null,null,null,null,null,null,null,null,null,null,null,1]
[null,{"$f":"title463","v":"Total capital cost (USD)"},null,{"$f":"SUM(D35:D37)","v":{"$error":"#DIV/0!"}},null,{"$f":"SUM(F35:F37)","v":{"$error":"#DIV/0!"}},null,null,null,null,null,null,null,null,null,null,null,null,null,null,null,null,null,null,1]
[null,null,null,null,null,null,null,null,null,null,null,null,null,null,null,null,null,null,null,null,null,null,null,null,1]
[null,null,null,null,null,null,null,null,null,null,null,null,null,null,null,null,null,null,null,null,null,null,null,null,1]
[null,{"$f":"title446","v":"Operating Year"},null,{"$f":"title464","v":"Appraisal"},1,2,3,4,5,6,7,8,9,10,11,12,13,14,15,16,17,18,19,20,1]
[null,{"$f":"title467","v":"Annual operating and maintenance cost "},null,null,null,null,null,null,null,null,null,null,null,null,null,null,null,null,null,null,null,null,null,null,1]
["F44",{"$f":"title468","v":"Sub-total inputs cost (USD)"},null,{"$f":"INDIRECT(\"COST_PS4!\"&$A$43)","v":{"$error":"#DIV/0!"}},{"$error":"#DIV/0!"},{"$error":"#DIV/0!"},{"$error":"#DIV/0!"},{"$error":"#DIV/0!"},{"$error":"#DIV/0!"},{"$error":"#DIV/0!"},{"$error":"#DIV/0!"},{"$error":"#DIV/0!"},{"$error":"#DIV/0!"},{"$error":"#DIV/0!"},{"$error":"#DIV/0!"},{"$error":"#DIV/0!"},{"$error":"#DIV/0!"},{"$error":"#DIV/0!"},{"$error":"#DIV/0!"},{"$error":"#DIV/0!"},{"$error":"#DIV/0!"},{"$error":"#DIV/0!"},{"$error":"#DIV/0!"},{"$error":"#DIV/0!"},1]
[]
[null,{"$f":"title469","v":"Sub-total operating cost (USD)"},null,{"$f":"D46+D47+D48","v":{"$error":"#DIV/0!"}},{"$f":"E46+E47+E48","v":{"$error":"#DIV/0!"}},{"$f":"F46+F47+F48","v":{"$error":"#DIV/0!"}},{"$error":"#DIV/0!"},{"$error":"#DIV/0!"},{"$error":"#DIV/0!"},{"$error":"#DIV/0!"},{"$error":"#DIV/0!"},{"$error":"#DIV/0!"},{"$error":"#DIV/0!"},{"$error":"#DIV/0!"},{"$error":"#DIV/0!"},{"$error":"#DIV/0!"},{"$error":"#DIV/0!"},{"$error":"#DIV/0!"},{"$error":"#DIV/0!"},{"$error":"#DIV/0!"},{"$error":"#DIV/0!"},{"$error":"#DIV/0!"},{"$error":"#DIV/0!"},{"$error":"#DIV/0!"},1]
["g51",{"$f":"title470","v":"Labour cost & Misc. (USD)"},null,{"$f":"INDIRECT(\"COST_PS4!\"&$A46)","v":0},{"$f":"+D46","v":0},{"$f":"+E46","v":0},0,0,0,0,0,0,0,0,0,0,0,0,0,0,0,0,0,0,1]
["g87",{"$f":"title151","v":"Plant overhead"},null,{"$f":"INDIRECT(\"COST_PS4!\"&$A47)","v":{"$error":"#DIV/0!"}},{"$f":"D47","v":{"$error":"#DIV/0!"}},{"$f":"E47","v":{"$error":"#DIV/0!"}},{"$error":"#DIV/0!"},{"$error":"#DIV/0!"},{"$error":"#DIV/0!"},{"$error":"#DIV/0!"},{"$error":"#DIV/0!"},{"$error":"#DIV/0!"},{"$error":"#DIV/0!"},{"$error":"#DIV/0!"},{"$error":"#DIV/0!"},{"$error":"#DIV/0!"},{"$error":"#DIV/0!"},{"$error":"#DIV/0!"},{"$error":"#DIV/0!"},{"$error":"#DIV/0!"},{"$error":"#DIV/0!"},{"$f":"U47","v":{"$error":"#DIV/0!"}},{"$error":"#DIV/0!"},{"$error":"#DIV/0!"},1]
["g88",{"$f":"title288","v":"General and administrative cost"},null,{"$f":"INDIRECT(\"COST_PS4!\"&$A48)","v":{"$error":"#DIV/0!"}},{"$f":"D48","v":{"$error":"#DIV/0!"}},{"$error":"#DIV/0!"},{"$error":"#DIV/0!"},{"$error":"#DIV/0!"},{"$error":"#DIV/0!"},{"$error":"#DIV/0!"},{"$error":"#DIV/0!"},{"$error":"#DIV/0!"},{"$error":"#DIV/0!"},{"$error":"#DIV/0!"},{"$error":"#DIV/0!"},{"$error":"#DIV/0!"},{"$error":"#DIV/0!"},{"$error":"#DIV/0!"},{"$error":"#DIV/0!"},{"$error":"#DIV/0!"},{"$error":"#DIV/0!"},{"$error":"#DIV/0!"},{"$error":"#DIV/0!"},{"$error":"#DIV/0!"},1]
["g82",{"$f":"title471","v":"Sub-total maintenance cost (USD)"},null,{"$f":"INDIRECT(\"COST_PS4!\"&$A49)","v":{"$error":"#DIV/0!"}},{"$f":"D49","v":{"$error":"#DIV/0!"}},{"$error":"#DIV/0!"},{"$error":"#DIV/0!"},{"$error":"#DIV/0!"},{"$error":"#DIV/0!"},{"$error":"#DIV/0!"},{"$error":"#DIV/0!"},{"$error":"#DIV/0!"},{"$error":"#DIV/0!"},{"$error":"#DIV/0!"},{"$error":"#DIV/0!"},{"$error":"#DIV/0!"},{"$error":"#DIV/0!"},{"$error":"#DIV/0!"},{"$error":"#DIV/0!"},{"$error":"#DIV/0!"},{"$error":"#DIV/0!"},{"$error":"#DIV/0!"},{"$error":"#DIV/0!"},{"$error":"#DIV/0!"},1]
[null,null,null,null,null,null,null,null,null,null,null,null,null,null,null,null,null,null,null,null,null,null,null,null,1]
["g82",{"$f":"title472","v":"Sub-total of annual fixed cost (USD)"},null,{"$f":"F38","v":{"$error":"#DIV/0!"}},{"$f":"D51","v":{"$error":"#DIV/0!"}},{"$f":"E51","v":{"$error":"#DIV/0!"}},{"$error":"#DIV/0!"},{"$error":"#DIV/0!"},{"$error":"#DIV/0!"},{"$error":"#DIV/0!"},{"$error":"#DIV/0!"},{"$error":"#DIV/0!"},{"$error":"#DIV/0!"},{"$error":"#DIV/0!"},{"$error":"#DIV/0!"},{"$error":"#DIV/0!"},{"$error":"#DIV/0!"},{"$error":"#DIV/0!"},{"$error":"#DIV/0!"},{"$error":"#DIV/0!"},{"$error":"#DIV/0!"},{"$error":"#DIV/0!"},{"$error":"#DIV/0!"},{"$error":"#DIV/0!"},1]
[null,null,null,null,null,null,null,null,null,null,null,null,null,null,null,null,null,null,null,null,null,null,null,null,1]
["f73",{"$f":"title473","v":"Sub-total of storage cost (USD)"},null,{"$f":"INDIRECT(\"COST_PS4!\"&$A53)","v":0},0,0,0,0,0,0,0,0,0,0,0,0,0,0,0,0,0,0,0,0,1]
[null,null,null,null,null,null,null,null,null,null,null,null,null,null,null,null,null,null,null,null,null,null,null,null,1]
[null,{"$f":"title474","v":"Total operation and maintenance cost (USD)"},null,{"$f":"D43+D45+D49+D51+D53","v":{"$error":"#DIV/0!"}},{"$f":"E43+E45+E49+E51+E53","v":{"$error":"#DIV/0!"}},{"$error":"#DIV/0!"},{"$error":"#DIV/0!"},{"$error":"#DIV/0!"},{"$error":"#DIV/0!"},{"$error":"#DIV/0!"},{"$error":"#DIV/0!"},{"$error":"#DIV/0!"},{"$error":"#DIV/0!"},{"$error":"#DIV/0!"},{"$error":"#DIV/0!"},{"$error":"#DIV/0!"},{"$error":"#DIV/0!"},{"$error":"#DIV/0!"},{"$error":"#DIV/0!"},{"$error":"#DIV/0!"},{"$error":"#DIV/0!"},{"$error":"#DIV/0!"},{"$error":"#DIV/0!"},{"$error":"#DIV/0!"},1]
[null,null,null,null,null,null,null,null,null,null,null,null,null,null,null,null,null,null,null,null,null,null,null,null,1]
[null,null,null,null,null,null,null,null,null,null,null,null,null,null,null,null,null,null,null,null,null,null,null,null,1]
[null,{"$f":"title155","v":"Financial parameters"},null,null,null,null,null,null,null,null,null,null,null,null,null,null,null,null,null,null,null,null,null,null,1]
[null,{"$f":"title446","v":"Operating Year"},null,{"$f":"title464","v":"Appraisal"},1,2,3,4,5,6,7,8,9,10,11,12,13,14,15,16,17,18,19,20,1]
[null,{"$f":"title161&\"(%)\"","v":"Discount rate(%)"},null,{"$f":"'Data entry needs'!$L$118","v":0},null,null,null,null,null,null,null,null,null,null,null,null,null,null,null,null,null,null,null,null,1]
[null,{"$f":"title475","v":"Loan ratio (%)"},null,{"$f":"'Data entry needs'!$F$118","v":0},null,null,null,null,null,null,null,null,null,null,null,null,null,null,null,null,null,null,null,null,1]
[null,null,null,null,null,null,null,null,null,null,null,null,null,null,null,null,null,null,null,null,null,null,null,null,1]
[null,null,null,null,null,null,null,null,null,null,null,null,null,null,null,null,null,null,null,null,null,null,null,null,1]
[null,{"$f":"title446","v":"Operating Year"},null,{"$f":"title464","v":"Appraisal"},1,2,3,4,5,6,7,8,9,10,11,12,13,14,15,16,17,18,19,20,1]
[null,{"$f":"title476","v":"Loan amount (USD)"},null,{"$f":"D61*(D38)","v":{"$error":"#DIV/0!"}},null,null,null,null,null,null,null,null,null,null,null,null,null,null,null,null,null,null,null,null,1]
[null,{"$f":"title162&\"(%)\"","v":"Loan interest rate(%)"},null,{"$f":"'Data entry needs'!$L$119","v":0},null,null,null,null,null,null,null,null,null,null,null,null,null,null,null,null,null,null,null,null,1]
[null,{"$f":"title165","v":"Loan term (years)"},null,{"$f":"D26","v":0},null,null,null,null,null,null,null,null,null,null,null,null,null,null,null,null,null,null,null,null,1]
[null,{"$f":"title315&\" (\"&title318&\")\"","v":"Loan payment (USD/month)"},null,{"$f":"(PMT($D$66/12,($D$67*12),$D$65))","v":{"$error":"#DIV/0!"}}]
[null,{"$f":"title315&\" (\"&title319&\")\"","v":"Loan payment (USD/year)"},null,{"$f":"D68*12","v":{"$error":"#DIV/0!"}},null,null,null,null,null,null,null,null,null,null,null,null,null,null,null,null,null,null,null,null,1]
[null,{"$f":"title315&\" (\"&title319&\")\"","v":"Loan payment (USD/year)"},null,null,{"$f":"IF(E64<=$D$67,$D$68*12,0)","v":0},{"$f":"IF(F64<=$D$67,$D$68*12,0)","v":0},0,0,0,0,0,0,0,0,0,0,0,0,0,0,0,0,0,0,1]
[null,{"$f":"title477","v":"Total loan payment (USD)"},null,{"$f":"SUM(E70:X70)","v":0},null,null,null,null,null,null,null,null,null,null,null,null,null,null,null,null,null,null,null,null,1]
[null,{"$f":"title478","v":"Loan interest payment (USD)"},null,{"$f":"D71+D65","v":{"$error":"#DIV/0!"}},{"$f":"title479","v":"loan interest payment for project lifetime"},null,null,null,null,null,null,null,null,null,null,null,null,null,null,null,null,null,null,null,1]
[null,null,null,null,null,null,null,null,null,null,null,null,null,null,null,null,null,null,null,null,null,null,null,null,1]
[null,{"$f":"title285","v":"Depreciation"},null,null,null,null,null,null,null,null,null,null,null,null,null,null,null,null,null,null,null,null,null,null,1]
[null,{"$f":"title446","v":"Operating Year"},null,{"$f":"title464","v":"Appraisal"},1,2,3,4,5,6,7,8,9,10,11,12,13,14,15,16,17,18,19,20,1]
[null,{"$f":"title480","v":"Depreciation method"},null,{"$f":"title482","v":"Straight-line"},null,null,null,null,null,null,null,null,null,null,null,null,null,null,null,null,null,null,null,null,1]
[null,{"$f":"title481","v":"Total depreciation (USD)"},null,null,{"$f":"$F$38","v":{"$error":"#DIV/0!"}},{"$f":"$F$38","v":{"$error":"#DIV/0!"}},{"$error":"#DIV/0!"},{"$error":"#DIV/0!"},{"$error":"#DIV/0!"},{"$error":"#DIV/0!"},{"$error":"#DIV/0!"},{"$error":"#DIV/0!"},{"$error":"#DIV/0!"},{"$error":"#DIV/0!"},{"$error":"#DIV/0!"},{"$error":"#DIV/0!"},{"$error":"#DIV/0!"},{"$error":"#DIV/0!"},{"$error":"#DIV/0!"},{"$error":"#DIV/0!"},{"$error":"#DIV/0!"},{"$error":"#DIV/0!"},{"$error":"#DIV/0!"},{"$error":"#DIV/0!"},1]
[null,null,null,null,null,null,null,null,null,null,null,null,null,null,null,null,null,null,null,null,null,null,null,null,1]
[null,{"$f":"title483","v":"Base case Project Summary"},null,null,null,null,null,null,null,null,null,null,null,null,null,null,null,null,null,null,null,null,null,null,1]
[null,{"$f":"title484","v":"Summary of this project"},null,null,null,null,null,null,null,null,null,null,null,null,null,null,null,null,null,null,null,null,null,null,1]
[null,{"$f":"title446","v":"Operating Year"},null,{"$f":"title464","v":"Appraisal"},1,2,3,4,5,6,7,8,9,10,11,12,13,14,15,16,17,18,19,20,1]
[null,{"$f":"title485","v":"Total revenue (USD)"},null,null,{"$f":"E24","v":{"$error":"#DIV/0!"}},{"$f":"F24","v":{"$error":"#DIV/0!"}},{"$error":"#DIV/0!"},{"$error":"#DIV/0!"},{"$error":"#DIV/0!"},{"$error":"#DIV/0!"},{"$error":"#DIV/0!"},{"$error":"#DIV/0!"},{"$error":"#DIV/0!"},{"$error":"#DIV/0!"},{"$error":"#DIV/0!"},{"$error":"#DIV/0!"},{"$error":"#DIV/0!"},{"$error":"#DIV/0!"},{"$error":"#DIV/0!"},{"$error":"#DIV/0!"},{"$error":"#DIV/0!"},{"$error":"#DIV/0!"},{"$error":"#DIV/0!"},{"$error":"#DIV/0!"},1]
[null,{"$f":"title463","v":"Total capital cost (USD)"},null,{"$f":"-D38*(1-$D$61)","v":{"$error":"#DIV/0!"}},null,null,null,null,null,null,null,null,null,null,null,null,null,null,null,null,null,null,null,null,1]
[null,{"$f":"title486","v":"Total operating and maintenance cost (USD)"},null,null,{"$f":"-E55+E51","v":{"$error":"#DIV/0!"}},{"$f":"-F55+F51","v":{"$error":"#DIV/0!"}},{"$f":"-G55+G51","v":{"$error":"#DIV/0!"}},{"$error":"#DIV/0!"},{"$error":"#DIV/0!"},{"$error":"#DIV/0!"},{"$error":"#DIV/0!"},{"$error":"#DIV/0!"},{"$error":"#DIV/0!"},{"$error":"#DIV/0!"},{"$error":"#DIV/0!"},{"$error":"#DIV/0!"},{"$error":"#DIV/0!"},{"$error":"#DIV/0!"},{"$error":"#DIV/0!"},{"$error":"#DIV/0!"},{"$error":"#DIV/0!"},{"$error":"#DIV/0!"},{"$error":"#DIV/0!"},{"$error":"#DIV/0!"},1]
[null,{"$f":"title487","v":"Loan payment (USD)"},null,null,{"$f":"+E70","v":0},{"$f":"+F70","v":0},{"$f":"+G70","v":0},0,0,0,0,0,0,0,0,0,0,0,0,0,0,0,0,0,1]
[null,{"$f":"title488","v":"Cash flow with loan (USD)"},null,{"$f":"SUM(D82:D85)","v":{"$error":"#DIV/0!"}},{"$f":"SUM(E82:E85)","v":{"$error":"#DIV/0!"}},{"$f":"SUM(F82:F85)","v":{"$error":"#DIV/0!"}},{"$f":"SUM(G82:G85)","v":{"$error":"#DIV/0!"}},{"$error":"#DIV/0!"},{"$error":"#DIV/0!"},{"$error":"#DIV/0!"},{"$error":"#DIV/0!"},{"$error":"#DIV/0!"},{"$error":"#DIV/0!"},{"$error":"#DIV/0!"},{"$error":"#DIV/0!"},{"$error":"#DIV/0!"},{"$error":"#DIV/0!"},{"$error":"#DIV/0!"},{"$error":"#DIV/0!"},{"$error":"#DIV/0!"},{"$error":"#DIV/0!"},{"$error":"#DIV/0!"},{"$error":"#DIV/0!"},{"$error":"#DIV/0!"},1]
[null,{"$f":"title489","v":"Cash flow without loan (USD)"},null,{"$f":"-D38","v":{"$error":"#DIV/0!"}},{"$f":"+E82+E84","v":{"$error":"#DIV/0!"}},{"$f":"+F82+F84","v":{"$error":"#DIV/0!"}},{"$f":"+G82+G84","v":{"$error":"#DIV/0!"}},{"$error":"#DIV/0!"},{"$error":"#DIV/0!"},{"$error":"#DIV/0!"},{"$error":"#DIV/0!"},{"$error":"#DIV/0!"},{"$error":"#DIV/0!"},{"$error":"#DIV/0!"},{"$error":"#DIV/0!"},{"$error":"#DIV/0!"},{"$error":"#DIV/0!"},{"$error":"#DIV/0!"},{"$error":"#DIV/0!"},{"$error":"#DIV/0!"},{"$error":"#DIV/0!"},{"$error":"#DIV/0!"},{"$error":"#DIV/0!"},{"$error":"#DIV/0!"},1]
[null,{"$f":"title446","v":"Operating Year"},null,{"$f":"title464","v":"Appraisal"},1,2,3,4,5,6,7,8,9,10,11,12,13,14,15,16,17,18,19,20,1]
[null,{"$f":"title490","v":"Cumulative value of Net Profit"},null,{"$f":"D86","v":{"$error":"#DIV/0!"}},{"$f":"D89+(E86)","v":{"$error":"#DIV/0!"}},{"$f":"E89+(F86)","v":{"$error":"#DIV/0!"}},{"$error":"#DIV/0!"},{"$error":"#DIV/0!"},{"$error":"#DIV/0!"},{"$error":"#DIV/0!"},{"$error":"#DIV/0!"},{"$error":"#DIV/0!"},{"$error":"#DIV/0!"},{"$error":"#DIV/0!"},{"$error":"#DIV/0!"},{"$error":"#DIV/0!"},{"$error":"#DIV/0!"},{"$error":"#DIV/0!"},{"$error":"#DIV/0!"},{"$error":"#DIV/0!"},{"$error":"#DIV/0!"},{"$error":"#DIV/0!"},{"$error":"#DIV/0!"},{"$error":"#DIV/0!"},1]
[null,null,null,null,null,null,null,null,null,null,null,null,null,null,null,null,null,null,null,null,null,null,null,null,1]
[null,{"$f":"title491","v":"Financial Analysis Result"},null,null,null,null,null,null,null,null,null,null,null,null,null,null,null,null,null,null,null,null,null,null,1]
[null,null,null,null,null,null,null,null,null,null,null,null,null,null,null,null,null,null,null,null,null,null,null,null,1]
[null,{"$f":"title493","v":"Net Present Value (NPV) (USD)"},null,{"$f":"NPV(D60,E86:AA86)+D86","v":{"$error":"#DIV/0!"}},null,null,null,null,null,null,null,null,null,null,null,null,null,null,null,null,null,null,null,null,1]
[null,{"$f":"title494","v":"Internal Rate of Return (IRR) (%) - without loan"},null,{"$f":"IF(D93<0,title492,IRR(D87:AA87,0.001))","v":{"$error":"#DIV/0!"}},null,null,null,null,null,null,null,null,null,null,null,null,null,null,null,null,null,null,null,null,1]
[null,{"$f":"title495","v":"Internal Rate of Return (IRR) (%) - with loan"},null,{"$f":"IF(D94<0,title492,IRR(D86:AA86,0.001))","v":{"$error":"#DIV/0!"}},null,null,null,null,null,null,null,null,null,null,null,null,null,null,null,null,null,null,null,null,1]
[null,null,null,null,null,null,null,null,null,null,null,null,null,null,null,null,null,null,null,null,null,null,null,null,1]
[null,null,null,null,null,null,null,null,null,null,null,null,null,null,null,null,null,null,null,null,null,null,null,null,1]

{"sheet":"FA_SIZE2_PS4","index":51,"n_rows":97,"n_cols":25,"rows_kept":97,"cut":false,"hidden":true,"merged":[[1,1,1,23]]}
[]
[null,{"$f":"title496&\" 2\"","v":"FINANCIAL EVALUATION OF BIOGAS PRODUCTION SIZE 2"}]
[]
[null,{"$f":"title445","v":"Revenues of biomass production and use system"}]
[null,{"$f":"title446","v":"Operating Year"},null,0,1,2,3,4,5,6,7,8,9,10,11,12,13,14,15,16,17,18,19,20,1]
[null,null,null,null,null,null,null,null,null,null,null,null,null,null,null,null,null,null,null,null,null,null,null,null,1]
["Ae130",{"$f":"title447","v":"Biogas production capacity (m3 Biogas per year)"},null,{"$f":"INDIRECT(\"Planner_PS4!$\"&$A$7)*'Data entry needs'!$L$100","v":{"$error":"#DIV/0!"}},{"$f":"D7","v":{"$error":"#DIV/0!"}},{"$f":"E7","v":{"$error":"#DIV/0!"}},{"$f":"F7","v":{"$error":"#DIV/0!"}},{"$error":"#DIV/0!"},{"$error":"#DIV/0!"},{"$error":"#DIV/0!"},{"$error":"#DIV/0!"},{"$error":"#DIV/0!"},{"$error":"#DIV/0!"},{"$error":"#DIV/0!"},{"$error":"#DIV/0!"},{"$error":"#DIV/0!"},{"$error":"#DIV/0!"},{"$error":"#DIV/0!"},{"$error":"#DIV/0!"},{"$error":"#DIV/0!"},{"$error":"#DIV/0!"},{"$error":"#DIV/0!"},{"$error":"#DIV/0!"},{"$error":"#DIV/0!"},1]
[]
["I107",{"$f":"title448","v":"Heat Available for Selling (MJ/year)"},null,{"$f":"IF(INDIRECT(\"COST_PS4!\"&$A$9)<0,0,INDIRECT(\"COST_PS4!\"&$A$9))","v":{"$error":"#DIV/0!"}},{"$f":"D9","v":{"$error":"#DIV/0!"}},{"$f":"E9","v":{"$error":"#DIV/0!"}},{"$error":"#DIV/0!"},{"$error":"#DIV/0!"},{"$error":"#DIV/0!"},{"$error":"#DIV/0!"},{"$error":"#DIV/0!"},{"$error":"#DIV/0!"},{"$error":"#DIV/0!"},{"$error":"#DIV/0!"},{"$error":"#DIV/0!"},{"$error":"#DIV/0!"},{"$error":"#DIV/0!"},{"$error":"#DIV/0!"},{"$error":"#DIV/0!"},{"$error":"#DIV/0!"},{"$error":"#DIV/0!"},{"$f":"U9","v":{"$error":"#DIV/0!"}},{"$error":"#DIV/0!"},{"$error":"#DIV/0!"},1]
["I106",{"$f":"title449","v":"Electricity Available for Selling (kWh/year)"},null,{"$f":"IF(INDIRECT(\"COST_PS4!\"&$A$10)<0,0,INDIRECT(\"COST_PS4!\"&$A$10))","v":{"$error":"#DIV/0!"}},{"$f":"D10","v":{"$error":"#DIV/0!"}},{"$error":"#DIV/0!"},{"$error":"#DIV/0!"},{"$error":"#DIV/0!"},{"$error":"#DIV/0!"},{"$error":"#DIV/0!"},{"$error":"#DIV/0!"},{"$error":"#DIV/0!"},{"$error":"#DIV/0!"},{"$error":"#DIV/0!"},{"$error":"#DIV/0!"},{"$error":"#DIV/0!"},{"$error":"#DIV/0!"},{"$error":"#DIV/0!"},{"$error":"#DIV/0!"},{"$error":"#DIV/0!"},{"$error":"#DIV/0!"},{"$error":"#DIV/0!"},{"$error":"#DIV/0!"},{"$error":"#DIV/0!"},1]
["AC166",{"$f":"title450","v":"Biomethane Production (m3 Methane/year)"},null,{"$f":"IF(OR('Biogas Use Selection'!$P$67=4,'Biogas Use Selection'!$P$67=5),INDIRECT(\"Planner_PS4!$\"&$A$11),0)","v":0},{"$f":"D11","v":0},0,0,0,0,0,0,0,0,0,0,0,0,0,0,0,0,0,0,0,1]
[null,{"$f":"title451","v":"Biogas Available for Selling (m3/year)"},null,{"$f":"IF('Biogas Use Selection'!$P$67=2,$D$7,0)","v":0},{"$f":"D12","v":0},0,0,0,0,0,0,0,0,0,0,0,0,0,0,0,0,0,0,0]
["AC178",{"$f":"title452","v":"Digestate Production (t/year)"},null,{"$f":"INDIRECT(\"Planner_PS4!$\"&$A$13)","v":{"$error":"#DIV/0!"}},{"$f":"D13","v":{"$error":"#DIV/0!"}},{"$error":"#DIV/0!"},{"$error":"#DIV/0!"},{"$error":"#DIV/0!"},{"$error":"#DIV/0!"},{"$error":"#DIV/0!"},{"$error":"#DIV/0!"},{"$error":"#DIV/0!"},{"$error":"#DIV/0!"},{"$error":"#DIV/0!"},{"$error":"#DIV/0!"},{"$error":"#DIV/0!"},{"$error":"#DIV/0!"},{"$error":"#DIV/0!"},{"$error":"#DIV/0!"},{"$error":"#DIV/0!"},{"$error":"#DIV/0!"},{"$error":"#DIV/0!"},{"$error":"#DIV/0!"},{"$error":"#DIV/0!"}]
[]
[null,{"$f":"title265","v":"Operating hours per year"},null,{"$f":"COST_PS4!$G$35","v":0},{"$f":"D15","v":0},{"$f":"E15","v":0},0,0,0,0,0,0,0,0,0,0,0,0,0,0,0,0,0,0,1]
[null,null,null,null,null,null,null,null,null,null,null,null,null,null,null,null,null,null,null,null,null,null,null,null,1]
[1,{"$f":"title137&\" (USD/kWh)\"","v":"Electricity Selling Price (USD/kWh)"},null,{"$f":"IF($A17=1,'Data entry needs'!$F$103,0)","v":0},null,null,null,null,null,null,null,null,null,null,null,null,null,null,null,null,null,null,null,null,1]
[1,{"$f":"title138&\" (USD/GJ)\"","v":"Heat Selling Price (USD/GJ)"},null,{"$f":"IF($A18=1,'Data entry needs'!$F$104,0)","v":0}]
[1,{"$f":"title453","v":"Biogas Selling Price (USD/m3)"},null,{"$f":"IF($A19=1,'Data entry needs'!$F$105,0)","v":0}]
[1,{"$f":"title454","v":"Biomethane Selling Price (USD/m3)"},null,{"$f":"IF($A20=1,'Data entry needs'!$L$103,0)","v":0}]
[1,{"$f":"title455","v":"Digestate Sellig Price (USD/t)"},null,{"$f":"'Data entry needs'!$L$104","v":0}]
[]
[null,null,null,null,null,null,null,null,null,null,null,null,null,null,null,null,null,null,null,null,null,null,null,null,1]
[null,{"$f":"title456","v":"Annual Income (USD per year)"},null,{"$f":"$D$18*D9+D10*$D$17+D12*$D$19+D11*$D$20+$D$21*D13","v":{"$error":"#DIV/0!"}},{"$f":"$D$18*E9+E10*$D$17+E12*$D$19+E11*$D$20+$D$21*E13","v":{"$error":"#DIV/0!"}},{"$f":"$D$18*F9+F10*$D$17+F12*$D$19+F11*$D$20+$D$21*F13","v":{"$error":"#DIV/0!"}},{"$error":"#DIV/0!"},{"$error":"#DIV/0!"},{"$error":"#DIV/0!"},{"$error":"#DIV/0!"},{"$error":"#DIV/0!"},{"$error":"#DIV/0!"},{"$error":"#DIV/0!"},{"$error":"#DIV/0!"},{"$error":"#DIV/0!"},{"$error":"#DIV/0!"},{"$error":"#DIV/0!"},{"$error":"#DIV/0!"},{"$error":"#DIV/0!"},{"$error":"#DIV/0!"},{"$error":"#DIV/0!"},{"$error":"#DIV/0!"},{"$error":"#DIV/0!"},{"$error":"#DIV/0!"},1]
[null,null,null,null,null,null,null,null,null,null,null,null,null,null,null,null,null,null,null,null,null,null,null,null,1]
[null,{"$f":"title457","v":"Lifespan of civil work (years)"},null,{"$f":"'Data entry needs'!$L$120","v":0},null,null,null,null,null,null,null,null,null,null,null,null,null,null,null,null,null,null,null,null,1]
[null,{"$f":"title458","v":"Lifespan of charcoal system (years)"},null,{"$f":"'Data entry needs'!$L$120","v":0},null,null,null,null,null,null,null,null,null,null,null,null,null,null,null,null,null,null,null,null,1]
[null,{"$f":"title459","v":"Project lifetime (years)"},null,{"$f":"'Data entry needs'!$L$120","v":0},null,null,null,null,null,null,null,null,null,null,null,null,null,null,null,null,null,null,null,null,1]
[null,null,null,null,null,null,null,null,null,null,null,null,null,null,null,null,null,null,null,null,null,null,null,null,1]
[null,null,null,null,null,null,null,null,null,null,null,null,null,null,null,null,null,null,null,null,null,null,null,null,1]
[null,{"$f":"title460","v":"Capital and operating cost of biogas system "},null,null,null,null,null,null,null,null,null,null,null,null,null,null,null,null,null,null,null,null,null,null,1]
[null,null,null,null,null,null,null,null,null,null,null,null,null,null,null,null,null,null,null,null,null,null,null,null,1]
[null,{"$f":"title446","v":"Operating Year"},null,{"$f":"title464","v":"Appraisal"},{"$f":"title465","v":"Project period (years)"},{"$f":"title466","v":"per year"},null,null,null,null,null,null,null,null,null,null,null,null,null,null,null,null,null,null,1]
[null,{"$f":"title461","v":"Capital cost (USD)"},null,"Total",null,null,null,null,null,null,null,null,null,null,null,null,null,null,null,null,null,null,null,null,1]
["h77",{"$f":"title280","v":"Equipments"},null,{"$f":"INDIRECT(\"COST_PS4!\"&$A35)","v":{"$error":"#DIV/0!"}},{"$f":"+D26","v":0},{"$f":"D35/E35","v":{"$error":"#DIV/0!"}},null,null,null,null,null,null,null,null,null,null,null,null,null,null,null,null,null,null,1]
["h78",{"$f":"title281","v":"Building"},null,{"$f":"INDIRECT(\"COST_PS4!\"&$A36)","v":{"$error":"#DIV/0!"}},{"$f":"+D27","v":0},{"$f":"D36/E36","v":{"$error":"#DIV/0!"}},null,null,null,null,null,null,null,null,null,null,null,null,null,null,null,null,null,null,1]
["h79",{"$f":"title462","v":"Installation"},null,{"$f":"INDIRECT(\"COST_PS4!\"&$A37)","v":{"$error":"#DIV/0!"}},{"$f":"+D28","v":0},{"$f":"D37/E37","v":{"$error":"#DIV/0!"}},null,null,null,null,null,null,null,null,null,null,null,null,null,null,null,null,null,null,1]
[null,{"$f":"title463","v":"Total capital cost (USD)"},null,{"$f":"SUM(D35:D37)","v":{"$error":"#DIV/0!"}},null,{"$f":"SUM(F35:F37)","v":{"$error":"#DIV/0!"}},null,null,null,null,null,null,null,null,null,null,null,null,null,null,null,null,null,null,1]
[null,null,null,null,null,null,null,null,null,null,null,null,null,null,null,null,null,null,null,null,null,null,null,null,1]
[null,null,null,null,null,null,null,null,null,null,null,null,null,null,null,null,null,null,null,null,null,null,null,null,1]
[null,{"$f":"title446","v":"Operating Year"},null,{"$f":"title464","v":"Appraisal"},1,2,3,4,5,6,7,8,9,10,11,12,13,14,15,16,17,18,19,20,1]
[null,{"$f":"title467","v":"Annual operating and maintenance cost "},null,null,null,null,null,null,null,null,null,null,null,null,null,null,null,null,null,null,null,null,null,null,1]
["h44",{"$f":"title468","v":"Sub-total inputs cost (USD)"},null,{"$f":"INDIRECT(\"COST_PS4!\"&$A$43)","v":{"$error":"#DIV/0!"}},{"$error":"#DIV/0!"},{"$error":"#DIV/0!"},{"$error":"#DIV/0!"},{"$error":"#DIV/0!"},{"$error":"#DIV/0!"},{"$error":"#DIV/0!"},{"$error":"#DIV/0!"},{"$error":"#DIV/0!"},{"$error":"#DIV/0!"},{"$error":"#DIV/0!"},{"$error":"#DIV/0!"},{"$error":"#DIV/0!"},{"$error":"#DIV/0!"},{"$error":"#DIV/0!"},{"$error":"#DIV/0!"},{"$error":"#DIV/0!"},{"$error":"#DIV/0!"},{"$error":"#DIV/0!"},{"$error":"#DIV/0!"},{"$error":"#DIV/0!"},1]
[]
[null,{"$f":"title469","v":"Sub-total operating cost (USD)"},null,{"$f":"D46+D47+D48","v":{"$error":"#DIV/0!"}},{"$f":"E46+E47+E48","v":{"$error":"#DIV/0!"}},{"$f":"F46+F47+F48","v":{"$error":"#DIV/0!"}},{"$error":"#DIV/0!"},{"$error":"#DIV/0!"},{"$error":"#DIV/0!"},{"$error":"#DIV/0!"},{"$error":"#DIV/0!"},{"$error":"#DIV/0!"},{"$error":"#DIV/0!"},{"$error":"#DIV/0!"},{"$error":"#DIV/0!"},{"$error":"#DIV/0!"},{"$error":"#DIV/0!"},{"$error":"#DIV/0!"},{"$error":"#DIV/0!"},{"$error":"#DIV/0!"},{"$error":"#DIV/0!"},{"$error":"#DIV/0!"},{"$error":"#DIV/0!"},{"$error":"#DIV/0!"},1]
["i51",{"$f":"title470","v":"Labour cost & Misc. (USD)"},null,{"$f":"INDIRECT(\"COST_PS4!\"&$A46)","v":0},{"$f":"+D46","v":0},{"$f":"+E46","v":0},0,0,0,0,0,0,0,0,0,0,0,0,0,0,0,0,0,0,1]
["i87",{"$f":"title151","v":"Plant overhead"},null,{"$f":"INDIRECT(\"COST_PS4!\"&$A47)","v":{"$error":"#DIV/0!"}},{"$f":"D47","v":{"$error":"#DIV/0!"}},{"$error":"#DIV/0!"},{"$error":"#DIV/0!"},{"$error":"#DIV/0!"},{"$error":"#DIV/0!"},{"$error":"#DIV/0!"},{"$error":"#DIV/0!"},{"$error":"#DIV/0!"},{"$error":"#DIV/0!"},{"$error":"#DIV/0!"},{"$error":"#DIV/0!"},{"$error":"#DIV/0!"},{"$error":"#DIV/0!"},{"$error":"#DIV/0!"},{"$error":"#DIV/0!"},{"$error":"#DIV/0!"},{"$f":"T47","v":{"$error":"#DIV/0!"}},{"$error":"#DIV/0!"},{"$error":"#DIV/0!"},{"$error":"#DIV/0!"},1]
["i88",{"$f":"title288","v":"General and administrative cost"},null,{"$f":"INDIRECT(\"COST_PS4!\"&$A48)","v":{"$error":"#DIV/0!"}},{"$error":"#DIV/0!"},{"$error":"#DIV/0!"},{"$error":"#DIV/0!"},{"$error":"#DIV/0!"},{"$error":"#DIV/0!"},{"$error":"#DIV/0!"},{"$error":"#DIV/0!"},{"$error":"#DIV/0!"},{"$error":"#DIV/0!"},{"$error":"#DIV/0!"},{"$error":"#DIV/0!"},{"$error":"#DIV/0!"},{"$error":"#DIV/0!"},{"$error":"#DIV/0!"},{"$error":"#DIV/0!"},{"$error":"#DIV/0!"},{"$error":"#DIV/0!"},{"$error":"#DIV/0!"},{"$error":"#DIV/0!"},{"$error":"#DIV/0!"},1]
["i82",{"$f":"title471","v":"Sub-total maintenance cost (USD)"},null,{"$f":"INDIRECT(\"COST_PS4!\"&$A49)","v":{"$error":"#DIV/0!"}},{"$error":"#DIV/0!"},{"$error":"#DIV/0!"},{"$error":"#DIV/0!"},{"$error":"#DIV/0!"},{"$error":"#DIV/0!"},{"$error":"#DIV/0!"},{"$error":"#DIV/0!"},{"$error":"#DIV/0!"},{"$error":"#DIV/0!"},{"$error":"#DIV/0!"},{"$error":"#DIV/0!"},{"$error":"#DIV/0!"},{"$error":"#DIV/0!"},{"$error":"#DIV/0!"},{"$error":"#DIV/0!"},{"$error":"#DIV/0!"},{"$error":"#DIV/0!"},{"$error":"#DIV/0!"},{"$error":"#DIV/0!"},{"$error":"#DIV/0!"},1]
[null,null,null,null,null,null,null,null,null,null,null,null,null,null,null,null,null,null,null,null,null,null,null,null,1]
["i82",{"$f":"title472","v":"Sub-total of annual fixed cost (USD)"},null,{"$f":"F38","v":{"$error":"#DIV/0!"}},{"$f":"D51","v":{"$error":"#DIV/0!"}},{"$f":"E51","v":{"$error":"#DIV/0!"}},{"$error":"#DIV/0!"},{"$error":"#DIV/0!"},{"$error":"#DIV/0!"},{"$error":"#DIV/0!"},{"$error":"#DIV/0!"},{"$error":"#DIV/0!"},{"$error":"#DIV/0!"},{"$error":"#DIV/0!"},{"$error":"#DIV/0!"},{"$error":"#DIV/0!"},{"$error":"#DIV/0!"},{"$error":"#DIV/0!"},{"$error":"#DIV/0!"},{"$error":"#DIV/0!"},{"$error":"#DIV/0!"},{"$error":"#DIV/0!"},{"$error":"#DIV/0!"},{"$error":"#DIV/0!"},1]
[null,null,null,null,null,null,null,null,null,null,null,null,null,null,null,null,null,null,null,null,null,null,null,null,1]
["H73",{"$f":"title473","v":"Sub-total of storage cost (USD)"},null,{"$f":"INDIRECT(\"COST_PS4!\"&$A53)","v":0},0,0,0,0,0,0,0,0,0,0,0,0,0,0,0,0,0,0,0,0,1]
[null,null,null,null,null,null,null,null,null,null,null,null,null,null,null,null,null,null,null,null,null,null,null,null,1]
[null,{"$f":"title474","v":"Total operation and maintenance cost (USD)"},null,{"$f":"D43+D45+D49+D51+D53","v":{"$error":"#DIV/0!"}},{"$f":"E43+E45+E49+E51+E53","v":{"$error":"#DIV/0!"}},{"$error":"#DIV/0!"},{"$error":"#DIV/0!"},{"$error":"#DIV/0!"},{"$error":"#DIV/0!"},{"$error":"#DIV/0!"},{"$error":"#DIV/0!"},{"$error":"#DIV/0!"},{"$error":"#DIV/0!"},{"$error":"#DIV/0!"},{"$error":"#DIV/0!"},{"$error":"#DIV/0!"},{"$error":"#DIV/0!"},{"$error":"#DIV/0!"},{"$error":"#DIV/0!"},{"$error":"#DIV/0!"},{"$error":"#DIV/0!"},{"$error":"#DIV/0!"},{"$error":"#DIV/0!"},{"$error":"#DIV/0!"},1]
[null,null,null,null,null,null,null,null,null,null,null,null,null,null,null,null,null,null,null,null,null,null,null,null,1]
[null,null,null,null,null,null,null,null,null,null,null,null,null,null,null,null,null,null,null,null,null,null,null,null,1]
[null,{"$f":"title155","v":"Financial parameters"},null,null,null,null,null,null,null,null,null,null,null,null,null,null,null,null,null,null,null,null,null,null,1]
[null,{"$f":"title446","v":"Operating Year"},null,{"$f":"title464","v":"Appraisal"},1,2,3,4,5,6,7,8,9,10,11,12,13,14,15,16,17,18,19,20,1]
[null,{"$f":"title161&\"(%)\"","v":"Discount rate(%)"},null,{"$f":"'Data entry needs'!$L$118","v":0},null,null,null,null,null,null,null,null,null,null,null,null,null,null,null,null,null,null,null,null,1]
[null,{"$f":"title475","v":"Loan ratio (%)"},null,{"$f":"'Data entry needs'!$F$118","v":0},null,null,null,null,null,null,null,null,null,null,null,null,null,null,null,null,null,null,null,null,1]
[null,null,null,null,null,null,null,null,null,null,null,null,null,null,null,null,null,null,null,null,null,null,null,null,1]
[null,null,null,null,null,null,null,null,null,null,null,null,null,null,null,null,null,null,null,null,null,null,null,null,1]
[null,{"$f":"title446","v":"Operating Year"},null,{"$f":"title464","v":"Appraisal"},1,2,3,4,5,6,7,8,9,10,11,12,13,14,15,16,17,18,19,20,1]
[null,{"$f":"title476","v":"Loan amount (USD)"},null,{"$f":"D61*(D38)","v":{"$error":"#DIV/0!"}},null,null,null,null,null,null,null,null,null,null,null,null,null,null,null,null,null,null,null,null,1]
[null,{"$f":"title162&\"(%)\"","v":"Loan interest rate(%)"},null,{"$f":"'Data entry needs'!$L$119","v":0},null,null,null,null,null,null,null,null,null,null,null,null,null,null,null,null,null,null,null,null,1]
[null,{"$f":"title165","v":"Loan term (years)"},null,{"$f":"D26","v":0},null,null,null,null,null,null,null,null,null,null,null,null,null,null,null,null,null,null,null,null,1]
[null,{"$f":"title315&\" (\"&title318&\")\"","v":"Loan payment (USD/month)"},null,{"$f":"(PMT($D$66/12,($D$67*12),$D$65))","v":{"$error":"#DIV/0!"}}]
[null,{"$f":"title315&\" (\"&title319&\")\"","v":"Loan payment (USD/year)"},null,{"$f":"D68*12","v":{"$error":"#DIV/0!"}},null,null,null,null,null,null,null,null,null,null,null,null,null,null,null,null,null,null,null,null,1]
[null,{"$f":"title315&\" (\"&title319&\")\"","v":"Loan payment (USD/year)"},null,null,{"$f":"IF(E64<=$D$67,$D$68*12,0)","v":0},{"$f":"IF(F64<=$D$67,$D$68*12,0)","v":0},0,0,0,0,0,0,0,0,0,0,0,0,0,0,0,0,0,0,1]
[null,{"$f":"title477","v":"Total loan payment (USD)"},null,{"$f":"SUM(E70:X70)","v":0},null,null,null,null,null,null,null,null,null,null,null,null,null,null,null,null,null,null,null,null,1]
[null,{"$f":"title478","v":"Loan interest payment (USD)"},null,{"$f":"D71+D65","v":{"$error":"#DIV/0!"}},{"$f":"title479","v":"loan interest payment for project lifetime"},null,null,null,null,null,null,null,null,null,null,null,null,null,null,null,null,null,null,null,1]
[null,null,null,null,null,null,null,null,null,null,null,null,null,null,null,null,null,null,null,null,null,null,null,null,1]
[null,{"$f":"title285","v":"Depreciation"},null,null,null,null,null,null,null,null,null,null,null,null,null,null,null,null,null,null,null,null,null,null,1]
[null,{"$f":"title446","v":"Operating Year"},null,{"$f":"title464","v":"Appraisal"},1,2,3,4,5,6,7,8,9,10,11,12,13,14,15,16,17,18,19,20,1]
[null,{"$f":"title480","v":"Depreciation method"},null,{"$f":"title482","v":"Straight-line"},null,null,null,null,null,null,null,null,null,null,null,null,null,null,null,null,null,null,null,null,1]
[null,{"$f":"title481","v":"Total depreciation (USD)"},null,null,{"$f":"$F$38","v":{"$error":"#DIV/0!"}},{"$f":"$F$38","v":{"$error":"#DIV/0!"}},{"$error":"#DIV/0!"},{"$error":"#DIV/0!"},{"$error":"#DIV/0!"},{"$error":"#DIV/0!"},{"$error":"#DIV/0!"},{"$error":"#DIV/0!"},{"$error":"#DIV/0!"},{"$error":"#DIV/0!"},{"$error":"#DIV/0!"},{"$error":"#DIV/0!"},{"$error":"#DIV/0!"},{"$error":"#DIV/0!"},{"$error":"#DIV/0!"},{"$error":"#DIV/0!"},{"$error":"#DIV/0!"},{"$error":"#DIV/0!"},{"$error":"#DIV/0!"},{"$error":"#DIV/0!"},1]
[null,null,null,null,null,null,null,null,null,null,null,null,null,null,null,null,null,null,null,null,null,null,null,null,1]
[null,{"$f":"title483","v":"Base case Project Summary"},null,null,null,null,null,null,null,null,null,null,null,null,null,null,null,null,null,null,null,null,null,null,1]
[null,{"$f":"title484","v":"Summary of this project"},null,null,null,null,null,null,null,null,null,null,null,null,null,null,null,null,null,null,null,null,null,null,1]
[null,{"$f":"title446","v":"Operating Year"},null,{"$f":"title464","v":"Appraisal"},1,2,3,4,5,6,7,8,9,10,11,12,13,14,15,16,17,18,19,20,1]
[null,{"$f":"title485","v":"Total revenue (USD)"},null,null,{"$f":"E24","v":{"$error":"#DIV/0!"}},{"$f":"F24","v":{"$error":"#DIV/0!"}},{"$error":"#DIV/0!"},{"$error":"#DIV/0!"},{"$error":"#DIV/0!"},{"$error":"#DIV/0!"},{"$error":"#DIV/0!"},{"$error":"#DIV/0!"},{"$error":"#DIV/0!"},{"$error":"#DIV/0!"},{"$error":"#DIV/0!"},{"$error":"#DIV/0!"},{"$error":"#DIV/0!"},{"$error":"#DIV/0!"},{"$error":"#DIV/0!"},{"$error":"#DIV/0!"},{"$error":"#DIV/0!"},{"$error":"#DIV/0!"},{"$error":"#DIV/0!"},{"$error":"#DIV/0!"},1]
[null,{"$f":"title463","v":"Total capital cost (USD)"},null,{"$f":"-D38*(1-$D$61)","v":{"$error":"#DIV/0!"}},null,null,null,null,null,null,null,null,null,null,null,null,null,null,null,null,null,null,null,null,1]
[null,{"$f":"title486","v":"Total operating and maintenance cost (USD)"},null,null,{"$f":"-E55+E51","v":{"$error":"#DIV/0!"}},{"$f":"-F55+F51","v":{"$error":"#DIV/0!"}},{"$f":"-G55+G51","v":{"$error":"#DIV/0!"}},{"$error":"#DIV/0!"},{"$error":"#DIV/0!"},{"$error":"#DIV/0!"},{"$error":"#DIV/0!"},{"$error":"#DIV/0!"},{"$error":"#DIV/0!"},{"$error":"#DIV/0!"},{"$error":"#DIV/0!"},{"$error":"#DIV/0!"},{"$error":"#DIV/0!"},{"$error":"#DIV/0!"},{"$error":"#DIV/0!"},{"$error":"#DIV/0!"},{"$error":"#DIV/0!"},{"$error":"#DIV/0!"},{"$error":"#DIV/0!"},{"$error":"#DIV/0!"},1]
[null,{"$f":"title487","v":"Loan payment (USD)"},null,null,{"$f":"+E70","v":0},{"$f":"+F70","v":0},{"$f":"+G70","v":0},0,0,0,0,0,0,0,0,0,0,0,0,0,0,0,0,0,1]
[null,{"$f":"title488","v":"Cash flow with loan (USD)"},null,{"$f":"SUM(D82:D85)","v":{"$error":"#DIV/0!"}},{"$f":"SUM(E82:E85)","v":{"$error":"#DIV/0!"}},{"$f":"SUM(F82:F85)","v":{"$error":"#DIV/0!"}},{"$f":"SUM(G82:G85)","v":{"$error":"#DIV/0!"}},{"$error":"#DIV/0!"},{"$error":"#DIV/0!"},{"$error":"#DIV/0!"},{"$error":"#DIV/0!"},{"$error":"#DIV/0!"},{"$error":"#DIV/0!"},{"$error":"#DIV/0!"},{"$error":"#DIV/0!"},{"$error":"#DIV/0!"},{"$error":"#DIV/0!"},{"$error":"#DIV/0!"},{"$error":"#DIV/0!"},{"$error":"#DIV/0!"},{"$error":"#DIV/0!"},{"$error":"#DIV/0!"},{"$error":"#DIV/0!"},{"$error":"#DIV/0!"},1]
[null,{"$f":"title489","v":"Cash flow without loan (USD)"},null,{"$f":"-D38","v":{"$error":"#DIV/0!"}},{"$f":"+E82+E84","v":{"$error":"#DIV/0!"}},{"$f":"+F82+F84","v":{"$error":"#DIV/0!"}},{"$f":"+G82+G84","v":{"$error":"#DIV/0!"}},{"$error":"#DIV/0!"},{"$error":"#DIV/0!"},{"$error":"#DIV/0!"},{"$error":"#DIV/0!"},{"$error":"#DIV/0!"},{"$error":"#DIV/0!"},{"$error":"#DIV/0!"},{"$error":"#DIV/0!"},{"$error":"#DIV/0!"},{"$error":"#DIV/0!"},{"$error":"#DIV/0!"},{"$error":"#DIV/0!"},{"$error":"#DIV/0!"},{"$error":"#DIV/0!"},{"$error":"#DIV/0!"},{"$error":"#DIV/0!"},{"$error":"#DIV/0!"},1]
[null,{"$f":"title446","v":"Operating Year"},null,{"$f":"title464","v":"Appraisal"},1,2,3,4,5,6,7,8,9,10,11,12,13,14,15,16,17,18,19,20,1]
[null,{"$f":"title490","v":"Cumulative value of Net Profit"},null,{"$f":"D86","v":{"$error":"#DIV/0!"}},{"$f":"D89+(E86)","v":{"$error":"#DIV/0!"}},{"$f":"E89+(F86)","v":{"$error":"#DIV/0!"}},{"$error":"#DIV/0!"},{"$error":"#DIV/0!"},{"$error":"#DIV/0!"},{"$error":"#DIV/0!"},{"$error":"#DIV/0!"},{"$error":"#DIV/0!"},{"$error":"#DIV/0!"},{"$error":"#DIV/0!"},{"$error":"#DIV/0!"},{"$error":"#DIV/0!"},{"$error":"#DIV/0!"},{"$error":"#DIV/0!"},{"$error":"#DIV/0!"},{"$error":"#DIV/0!"},{"$error":"#DIV/0!"},{"$error":"#DIV/0!"},{"$error":"#DIV/0!"},{"$error":"#DIV/0!"},1]
[null,null,null,null,null,null,null,null,null,null,null,null,null,null,null,null,null,null,null,null,null,null,null,null,1]
[null,{"$f":"title491","v":"Financial Analysis Result"},null,null,null,null,null,null,null,null,null,null,null,null,null,null,null,null,null,null,null,null,null,null,1]
[null,null,null,null,null,null,null,null,null,null,null,null,null,null,null,null,null,null,null,null,null,null,null,null,1]
[null,{"$f":"title493","v":"Net Present Value (NPV) (USD)"},null,{"$f":"NPV(D60,E86:AA86)+D86","v":{"$error":"#DIV/0!"}},null,null,null,null,null,null,null,null,null,null,null,null,null,null,null,null,null,null,null,null,1]
[null,{"$f":"title494","v":"Internal Rate of Return (IRR) (%) - without loan"},null,{"$f":"IF(D93<0,title492,IRR(D87:AA87,0.001))","v":{"$error":"#DIV/0!"}},null,null,null,null,null,null,null,null,null,null,null,null,null,null,null,null,null,null,null,null,1]
[null,{"$f":"title495","v":"Internal Rate of Return (IRR) (%) - with loan"},null,{"$f":"IF(D94<0,title492,IRR(D86:AA86,0.001))","v":{"$error":"#DIV/0!"}},null,null,null,null,null,null,null,null,null,null,null,null,null,null,null,null,null,null,null,null,1]
[null,null,null,null,null,null,null,null,null,null,null,null,null,null,null,null,null,null,null,null,null,null,null,null,1]
[null,null,null,null,null,null,null,null,null,null,null,null,null,null,null,null,null,null,null,null,null,null,null,null,1]

{"sheet":"FA_SIZE3_PS4","index":52,"n_rows":97,"n_cols":25,"rows_kept":97,"cut":false,"hidden":true,"merged":[[1,1,1,23]]}
[]
[null,{"$f":"title496&\" 3\"","v":"FINANCIAL EVALUATION OF BIOGAS PRODUCTION SIZE 3"}]
[]
[null,{"$f":"title445","v":"Revenues of biomass production and use system"}]
[null,{"$f":"title446","v":"Operating Year"},null,0,1,2,3,4,5,6,7,8,9,10,11,12,13,14,15,16,17,18,19,20,1]
[null,null,null,null,null,null,null,null,null,null,null,null,null,null,null,null,null,null,null,null,null,null,null,null,1]
["AF130",{"$f":"title447","v":"Biogas production capacity (m3 Biogas per year)"},null,{"$f":"INDIRECT(\"Planner_PS4!$\"&$A$7)*'Data entry needs'!$L$100","v":{"$error":"#DIV/0!"}},{"$f":"D7","v":{"$error":"#DIV/0!"}},{"$f":"E7","v":{"$error":"#DIV/0!"}},{"$f":"F7","v":{"$error":"#DIV/0!"}},{"$error":"#DIV/0!"},{"$error":"#DIV/0!"},{"$error":"#DIV/0!"},{"$error":"#DIV/0!"},{"$error":"#DIV/0!"},{"$error":"#DIV/0!"},{"$error":"#DIV/0!"},{"$error":"#DIV/0!"},{"$error":"#DIV/0!"},{"$error":"#DIV/0!"},{"$error":"#DIV/0!"},{"$error":"#DIV/0!"},{"$error":"#DIV/0!"},{"$error":"#DIV/0!"},{"$error":"#DIV/0!"},{"$error":"#DIV/0!"},{"$error":"#DIV/0!"},1]
[]
["K107",{"$f":"title448","v":"Heat Available for Selling (MJ/year)"},null,{"$f":"IF(INDIRECT(\"COST_PS4!\"&$A$9)<0,0,INDIRECT(\"COST_PS4!\"&$A$9))","v":{"$error":"#DIV/0!"}},{"$f":"D9","v":{"$error":"#DIV/0!"}},{"$f":"E9","v":{"$error":"#DIV/0!"}},{"$error":"#DIV/0!"},{"$error":"#DIV/0!"},{"$error":"#DIV/0!"},{"$error":"#DIV/0!"},{"$error":"#DIV/0!"},{"$error":"#DIV/0!"},{"$error":"#DIV/0!"},{"$error":"#DIV/0!"},{"$error":"#DIV/0!"},{"$error":"#DIV/0!"},{"$error":"#DIV/0!"},{"$error":"#DIV/0!"},{"$error":"#DIV/0!"},{"$error":"#DIV/0!"},{"$error":"#DIV/0!"},{"$f":"U9","v":{"$error":"#DIV/0!"}},{"$error":"#DIV/0!"},{"$error":"#DIV/0!"},1]
["K106",{"$f":"title449","v":"Electricity Available for Selling (kWh/year)"},null,{"$f":"IF(INDIRECT(\"COST_PS4!\"&$A$10)<0,0,INDIRECT(\"COST_PS4!\"&$A$10))","v":{"$error":"#DIV/0!"}},{"$f":"D10","v":{"$error":"#DIV/0!"}},{"$error":"#DIV/0!"},{"$error":"#DIV/0!"},{"$error":"#DIV/0!"},{"$error":"#DIV/0!"},{"$error":"#DIV/0!"},{"$error":"#DIV/0!"},{"$error":"#DIV/0!"},{"$error":"#DIV/0!"},{"$error":"#DIV/0!"},{"$error":"#DIV/0!"},{"$error":"#DIV/0!"},{"$error":"#DIV/0!"},{"$error":"#DIV/0!"},{"$error":"#DIV/0!"},{"$error":"#DIV/0!"},{"$error":"#DIV/0!"},{"$error":"#DIV/0!"},{"$error":"#DIV/0!"},{"$error":"#DIV/0!"},1]
["AD166",{"$f":"title450","v":"Biomethane Production (m3 Methane/year)"},null,{"$f":"IF(OR('Biogas Use Selection'!$P$67=4,'Biogas Use Selection'!$P$67=5),INDIRECT(\"Planner_PS4!$\"&$A$11),0)","v":0},{"$f":"D11","v":0},0,0,0,0,0,0,0,0,0,0,0,0,0,0,0,0,0,0,0,1]
[null,{"$f":"title451","v":"Biogas Available for Selling (m3/year)"},null,{"$f":"IF('Biogas Use Selection'!$P$67=2,$D$7,0)","v":0},{"$f":"D12","v":0},0,0,0,0,0,0,0,0,0,0,0,0,0,0,0,0,0,0,0]
["AD178",{"$f":"title452","v":"Digestate Production (t/year)"},null,{"$f":"INDIRECT(\"Planner_PS4!$\"&$A$13)","v":{"$error":"#DIV/0!"}},{"$f":"D13","v":{"$error":"#DIV/0!"}},{"$error":"#DIV/0!"},{"$error":"#DIV/0!"},{"$error":"#DIV/0!"},{"$error":"#DIV/0!"},{"$error":"#DIV/0!"},{"$error":"#DIV/0!"},{"$error":"#DIV/0!"},{"$error":"#DIV/0!"},{"$error":"#DIV/0!"},{"$error":"#DIV/0!"},{"$error":"#DIV/0!"},{"$error":"#DIV/0!"},{"$error":"#DIV/0!"},{"$error":"#DIV/0!"},{"$error":"#DIV/0!"},{"$error":"#DIV/0!"},{"$error":"#DIV/0!"},{"$error":"#DIV/0!"},{"$error":"#DIV/0!"}]
[]
[null,{"$f":"title265","v":"Operating hours per year"},null,{"$f":"COST_PS4!$G$35","v":0},{"$f":"D15","v":0},{"$f":"E15","v":0},0,0,0,0,0,0,0,0,0,0,0,0,0,0,0,0,0,0,1]
[null,null,null,null,null,null,null,null,null,null,null,null,null,null,null,null,null,null,null,null,null,null,null,null,1]
[1,{"$f":"title137&\" (USD/kWh)\"","v":"Electricity Selling Price (USD/kWh)"},null,{"$f":"IF($A17=1,'Data entry needs'!$F$103,0)","v":0},null,null,null,null,null,null,null,null,null,null,null,null,null,null,null,null,null,null,null,null,1]
[1,{"$f":"title138&\" (USD/GJ)\"","v":"Heat Selling Price (USD/GJ)"},null,{"$f":"IF($A18=1,'Data entry needs'!$F$104,0)","v":0}]
[1,{"$f":"title453","v":"Biogas Selling Price (USD/m3)"},null,{"$f":"IF($A19=1,'Data entry needs'!$F$105,0)","v":0}]
[1,{"$f":"title454","v":"Biomethane Selling Price (USD/m3)"},null,{"$f":"IF($A20=1,'Data entry needs'!$L$103,0)","v":0}]
[1,{"$f":"title455","v":"Digestate Sellig Price (USD/t)"},null,{"$f":"'Data entry needs'!$L$104","v":0}]
[]
[null,null,null,null,null,null,null,null,null,null,null,null,null,null,null,null,null,null,null,null,null,null,null,null,1]
[null,{"$f":"title456","v":"Annual Income (USD per year)"},null,{"$f":"$D$18*D9+D10*$D$17+D12*$D$19+D11*$D$20+$D$21*D13","v":{"$error":"#DIV/0!"}},{"$f":"$D$18*E9+E10*$D$17+E12*$D$19+E11*$D$20+$D$21*E13","v":{"$error":"#DIV/0!"}},{"$f":"$D$18*F9+F10*$D$17+F12*$D$19+F11*$D$20+$D$21*F13","v":{"$error":"#DIV/0!"}},{"$error":"#DIV/0!"},{"$error":"#DIV/0!"},{"$error":"#DIV/0!"},{"$error":"#DIV/0!"},{"$error":"#DIV/0!"},{"$error":"#DIV/0!"},{"$error":"#DIV/0!"},{"$error":"#DIV/0!"},{"$error":"#DIV/0!"},{"$error":"#DIV/0!"},{"$error":"#DIV/0!"},{"$error":"#DIV/0!"},{"$error":"#DIV/0!"},{"$error":"#DIV/0!"},{"$error":"#DIV/0!"},{"$error":"#DIV/0!"},{"$error":"#DIV/0!"},{"$error":"#DIV/0!"},1]
[null,null,null,null,null,null,null,null,null,null,null,null,null,null,null,null,null,null,null,null,null,null,null,null,1]
[null,{"$f":"title457","v":"Lifespan of civil work (years)"},null,{"$f":"'Data entry needs'!$L$120","v":0},null,null,null,null,null,null,null,null,null,null,null,null,null,null,null,null,null,null,null,null,1]
[null,{"$f":"title458","v":"Lifespan of charcoal system (years)"},null,{"$f":"'Data entry needs'!$L$120","v":0},null,null,null,null,null,null,null,null,null,null,null,null,null,null,null,null,null,null,null,null,1]
[null,{"$f":"title459","v":"Project lifetime (years)"},null,{"$f":"'Data entry needs'!$L$120","v":0},null,null,null,null,null,null,null,null,null,null,null,null,null,null,null,null,null,null,null,null,1]
[null,null,null,null,null,null,null,null,null,null,null,null,null,null,null,null,null,null,null,null,null,null,null,null,1]
[null,null,null,null,null,null,null,null,null,null,null,null,null,null,null,null,null,null,null,null,null,null,null,null,1]
[null,{"$f":"title460","v":"Capital and operating cost of biogas system "},null,null,null,null,null,null,null,null,null,null,null,null,null,null,null,null,null,null,null,null,null,null,1]
[null,null,null,null,null,null,null,null,null,null,null,null,null,null,null,null,null,null,null,null,null,null,null,null,1]
[null,{"$f":"title446","v":"Operating Year"},null,{"$f":"title464","v":"Appraisal"},{"$f":"title465","v":"Project period (years)"},{"$f":"title466","v":"per year"},null,null,null,null,null,null,null,null,null,null,null,null,null,null,null,null,null,null,1]
[null,{"$f":"title461","v":"Capital cost (USD)"},null,"Total",null,null,null,null,null,null,null,null,null,null,null,null,null,null,null,null,null,null,null,null,1]
["J77",{"$f":"title280","v":"Equipments"},null,{"$f":"INDIRECT(\"COST_PS4!\"&$A35)","v":{"$error":"#DIV/0!"}},{"$f":"+D26","v":0},{"$f":"D35/E35","v":{"$error":"#DIV/0!"}},null,null,null,null,null,null,null,null,null,null,null,null,null,null,null,null,null,null,1]
["J78",{"$f":"title281","v":"Building"},null,{"$f":"INDIRECT(\"COST_PS4!\"&$A36)","v":{"$error":"#DIV/0!"}},{"$f":"+D27","v":0},{"$f":"D36/E36","v":{"$error":"#DIV/0!"}},null,null,null,null,null,null,null,null,null,null,null,null,null,null,null,null,null,null,1]
["J79",{"$f":"title462","v":"Installation"},null,{"$f":"INDIRECT(\"COST_PS4!\"&$A37)","v":{"$error":"#DIV/0!"}},{"$f":"+D28","v":0},{"$f":"D37/E37","v":{"$error":"#DIV/0!"}},null,null,null,null,null,null,null,null,null,null,null,null,null,null,null,null,null,null,1]
[null,{"$f":"title463","v":"Total capital cost (USD)"},null,{"$f":"SUM(D35:D37)","v":{"$error":"#DIV/0!"}},null,{"$f":"SUM(F35:F37)","v":{"$error":"#DIV/0!"}},null,null,null,null,null,null,null,null,null,null,null,null,null,null,null,null,null,null,1]
[null,null,null,null,null,null,null,null,null,null,null,null,null,null,null,null,null,null,null,null,null,null,null,null,1]
[null,null,null,null,null,null,null,null,null,null,null,null,null,null,null,null,null,null,null,null,null,null,null,null,1]
[null,{"$f":"title446","v":"Operating Year"},null,{"$f":"title464","v":"Appraisal"},1,2,3,4,5,6,7,8,9,10,11,12,13,14,15,16,17,18,19,20,1]
[null,{"$f":"title467","v":"Annual operating and maintenance cost "},null,null,null,null,null,null,null,null,null,null,null,null,null,null,null,null,null,null,null,null,null,null,1]
["J44",{"$f":"title468","v":"Sub-total inputs cost (USD)"},null,{"$f":"INDIRECT(\"COST_PS4!\"&$A$43)","v":{"$error":"#DIV/0!"}},{"$error":"#DIV/0!"},{"$error":"#DIV/0!"},{"$error":"#DIV/0!"},{"$error":"#DIV/0!"},{"$error":"#DIV/0!"},{"$error":"#DIV/0!"},{"$error":"#DIV/0!"},{"$error":"#DIV/0!"},{"$error":"#DIV/0!"},{"$error":"#DIV/0!"},{"$error":"#DIV/0!"},{"$error":"#DIV/0!"},{"$error":"#DIV/0!"},{"$error":"#DIV/0!"},{"$error":"#DIV/0!"},{"$error":"#DIV/0!"},{"$error":"#DIV/0!"},{"$error":"#DIV/0!"},{"$error":"#DIV/0!"},{"$error":"#DIV/0!"},1]
[]
[null,{"$f":"title469","v":"Sub-total operating cost (USD)"},null,{"$f":"D46+D47+D48","v":{"$error":"#DIV/0!"}},{"$f":"E46+E47+E48","v":{"$error":"#DIV/0!"}},{"$f":"F46+F47+F48","v":{"$error":"#DIV/0!"}},{"$error":"#DIV/0!"},{"$error":"#DIV/0!"},{"$error":"#DIV/0!"},{"$error":"#DIV/0!"},{"$error":"#DIV/0!"},{"$error":"#DIV/0!"},{"$error":"#DIV/0!"},{"$error":"#DIV/0!"},{"$error":"#DIV/0!"},{"$error":"#DIV/0!"},{"$error":"#DIV/0!"},{"$error":"#DIV/0!"},{"$error":"#DIV/0!"},{"$error":"#DIV/0!"},{"$error":"#DIV/0!"},{"$error":"#DIV/0!"},{"$error":"#DIV/0!"},{"$error":"#DIV/0!"},1]
["k51",{"$f":"title470","v":"Labour cost & Misc. (USD)"},null,{"$f":"INDIRECT(\"COST_PS4!\"&$A46)","v":0},{"$f":"+D46","v":0},{"$f":"+E46","v":0},0,0,0,0,0,0,0,0,0,0,0,0,0,0,0,0,0,0,1]
["k87",{"$f":"title151","v":"Plant overhead"},null,{"$f":"INDIRECT(\"COST_PS4!\"&$A47)","v":{"$error":"#DIV/0!"}},{"$f":"D47","v":{"$error":"#DIV/0!"}},{"$error":"#DIV/0!"},{"$error":"#DIV/0!"},{"$error":"#DIV/0!"},{"$error":"#DIV/0!"},{"$error":"#DIV/0!"},{"$error":"#DIV/0!"},{"$error":"#DIV/0!"},{"$error":"#DIV/0!"},{"$error":"#DIV/0!"},{"$error":"#DIV/0!"},{"$error":"#DIV/0!"},{"$error":"#DIV/0!"},{"$error":"#DIV/0!"},{"$error":"#DIV/0!"},{"$error":"#DIV/0!"},{"$f":"T47","v":{"$error":"#DIV/0!"}},{"$error":"#DIV/0!"},{"$error":"#DIV/0!"},{"$error":"#DIV/0!"},1]
["k88",{"$f":"title288","v":"General and administrative cost"},null,{"$f":"INDIRECT(\"COST_PS4!\"&$A48)","v":{"$error":"#DIV/0!"}},{"$error":"#DIV/0!"},{"$error":"#DIV/0!"},{"$error":"#DIV/0!"},{"$error":"#DIV/0!"},{"$error":"#DIV/0!"},{"$error":"#DIV/0!"},{"$error":"#DIV/0!"},{"$error":"#DIV/0!"},{"$error":"#DIV/0!"},{"$error":"#DIV/0!"},{"$error":"#DIV/0!"},{"$error":"#DIV/0!"},{"$error":"#DIV/0!"},{"$error":"#DIV/0!"},{"$error":"#DIV/0!"},{"$error":"#DIV/0!"},{"$error":"#DIV/0!"},{"$error":"#DIV/0!"},{"$error":"#DIV/0!"},{"$error":"#DIV/0!"},1]
["k82",{"$f":"title471","v":"Sub-total maintenance cost (USD)"},null,{"$f":"INDIRECT(\"COST_PS4!\"&$A49)","v":{"$error":"#DIV/0!"}},{"$error":"#DIV/0!"},{"$error":"#DIV/0!"},{"$error":"#DIV/0!"},{"$error":"#DIV/0!"},{"$error":"#DIV/0!"},{"$error":"#DIV/0!"},{"$error":"#DIV/0!"},{"$error":"#DIV/0!"},{"$error":"#DIV/0!"},{"$error":"#DIV/0!"},{"$error":"#DIV/0!"},{"$error":"#DIV/0!"},{"$error":"#DIV/0!"},{"$error":"#DIV/0!"},{"$error":"#DIV/0!"},{"$error":"#DIV/0!"},{"$error":"#DIV/0!"},{"$error":"#DIV/0!"},{"$error":"#DIV/0!"},{"$error":"#DIV/0!"},1]
[null,null,null,null,null,null,null,null,null,null,null,null,null,null,null,null,null,null,null,null,null,null,null,null,1]
["k82",{"$f":"title472","v":"Sub-total of annual fixed cost (USD)"},null,{"$f":"F38","v":{"$error":"#DIV/0!"}},{"$f":"D51","v":{"$error":"#DIV/0!"}},{"$f":"E51","v":{"$error":"#DIV/0!"}},{"$error":"#DIV/0!"},{"$error":"#DIV/0!"},{"$error":"#DIV/0!"},{"$error":"#DIV/0!"},{"$error":"#DIV/0!"},{"$error":"#DIV/0!"},{"$error":"#DIV/0!"},{"$error":"#DIV/0!"},{"$error":"#DIV/0!"},{"$error":"#DIV/0!"},{"$error":"#DIV/0!"},{"$error":"#DIV/0!"},{"$error":"#DIV/0!"},{"$error":"#DIV/0!"},{"$error":"#DIV/0!"},{"$error":"#DIV/0!"},{"$error":"#DIV/0!"},{"$error":"#DIV/0!"},1]
[null,null,null,null,null,null,null,null,null,null,null,null,null,null,null,null,null,null,null,null,null,null,null,null,1]
["J73",{"$f":"title473","v":"Sub-total of storage cost (USD)"},null,{"$f":"INDIRECT(\"COST_PS4!\"&$A53)","v":0},0,0,0,0,0,0,0,0,0,0,0,0,0,0,0,0,0,0,0,0,1]
[null,null,null,null,null,null,null,null,null,null,null,null,null,null,null,null,null,null,null,null,null,null,null,null,1]
[null,{"$f":"title474","v":"Total operation and maintenance cost (USD)"},null,{"$f":"D43+D45+D49+D51+D53","v":{"$error":"#DIV/0!"}},{"$f":"E43+E45+E49+E51+E53","v":{"$error":"#DIV/0!"}},{"$error":"#DIV/0!"},{"$error":"#DIV/0!"},{"$error":"#DIV/0!"},{"$error":"#DIV/0!"},{"$error":"#DIV/0!"},{"$error":"#DIV/0!"},{"$error":"#DIV/0!"},{"$error":"#DIV/0!"},{"$error":"#DIV/0!"},{"$error":"#DIV/0!"},{"$error":"#DIV/0!"},{"$error":"#DIV/0!"},{"$error":"#DIV/0!"},{"$error":"#DIV/0!"},{"$error":"#DIV/0!"},{"$error":"#DIV/0!"},{"$error":"#DIV/0!"},{"$error":"#DIV/0!"},{"$error":"#DIV/0!"},1]
[null,null,null,null,null,null,null,null,null,null,null,null,null,null,null,null,null,null,null,null,null,null,null,null,1]
[null,null,null,null,null,null,null,null,null,null,null,null,null,null,null,null,null,null,null,null,null,null,null,null,1]
[null,{"$f":"title155","v":"Financial parameters"},null,null,null,null,null,null,null,null,null,null,null,null,null,null,null,null,null,null,null,null,null,null,1]
[null,{"$f":"title446","v":"Operating Year"},null,{"$f":"title464","v":"Appraisal"},1,2,3,4,5,6,7,8,9,10,11,12,13,14,15,16,17,18,19,20,1]
[null,{"$f":"title161&\"(%)\"","v":"Discount rate(%)"},null,{"$f":"'Data entry needs'!$L$118","v":0},null,null,null,null,null,null,null,null,null,null,null,null,null,null,null,null,null,null,null,null,1]
[null,{"$f":"title475","v":"Loan ratio (%)"},null,{"$f":"'Data entry needs'!$F$118","v":0},null,null,null,null,null,null,null,null,null,null,null,null,null,null,null,null,null,null,null,null,1]
[null,null,null,null,null,null,null,null,null,null,null,null,null,null,null,null,null,null,null,null,null,null,null,null,1]
[null,null,null,null,null,null,null,null,null,null,null,null,null,null,null,null,null,null,null,null,null,null,null,null,1]
[null,{"$f":"title446","v":"Operating Year"},null,{"$f":"title464","v":"Appraisal"},1,2,3,4,5,6,7,8,9,10,11,12,13,14,15,16,17,18,19,20,1]
[null,{"$f":"title476","v":"Loan amount (USD)"},null,{"$f":"D61*(D38)","v":{"$error":"#DIV/0!"}},null,null,null,null,null,null,null,null,null,null,null,null,null,null,null,null,null,null,null,null,1]
[null,{"$f":"title162&\"(%)\"","v":"Loan interest rate(%)"},null,{"$f":"'Data entry needs'!$L$119","v":0},null,null,null,null,null,null,null,null,null,null,null,null,null,null,null,null,null,null,null,null,1]
[null,{"$f":"title165","v":"Loan term (years)"},null,{"$f":"D26","v":0},null,null,null,null,null,null,null,null,null,null,null,null,null,null,null,null,null,null,null,null,1]
[null,{"$f":"title315&\" (\"&title318&\")\"","v":"Loan payment (USD/month)"},null,{"$f":"(PMT($D$66/12,($D$67*12),$D$65))","v":{"$error":"#DIV/0!"}}]
[null,{"$f":"title315&\" (\"&title319&\")\"","v":"Loan payment (USD/year)"},null,{"$f":"D68*12","v":{"$error":"#DIV/0!"}},null,null,null,null,null,null,null,null,null,null,null,null,null,null,null,null,null,null,null,null,1]
[null,{"$f":"title315&\" (\"&title319&\")\"","v":"Loan payment (USD/year)"},null,null,{"$f":"IF(E64<=$D$67,$D$68*12,0)","v":0},{"$f":"IF(F64<=$D$67,$D$68*12,0)","v":0},0,0,0,0,0,0,0,0,0,0,0,0,0,0,0,0,0,0,1]
[null,{"$f":"title477","v":"Total loan payment (USD)"},null,{"$f":"SUM(E70:X70)","v":0},null,null,null,null,null,null,null,null,null,null,null,null,null,null,null,null,null,null,null,null,1]
[null,{"$f":"title478","v":"Loan interest payment (USD)"},null,{"$f":"D71+D65","v":{"$error":"#DIV/0!"}},{"$f":"title479","v":"loan interest payment for project lifetime"},null,null,null,null,null,null,null,null,null,null,null,null,null,null,null,null,null,null,null,1]
[null,null,null,null,null,null,null,null,null,null,null,null,null,null,null,null,null,null,null,null,null,null,null,null,1]
[null,{"$f":"title285","v":"Depreciation"},null,null,null,null,null,null,null,null,null,null,null,null,null,null,null,null,null,null,null,null,null,null,1]
[null,{"$f":"title446","v":"Operating Year"},null,{"$f":"title464","v":"Appraisal"},1,2,3,4,5,6,7,8,9,10,11,12,13,14,15,16,17,18,19,20,1]
[null,{"$f":"title480","v":"Depreciation method"},null,{"$f":"title482","v":"Straight-line"},null,null,null,null,null,null,null,null,null,null,null,null,null,null,null,null,null,null,null,null,1]
[null,{"$f":"title481","v":"Total depreciation (USD)"},null,null,{"$f":"$F$38","v":{"$error":"#DIV/0!"}},{"$f":"$F$38","v":{"$error":"#DIV/0!"}},{"$error":"#DIV/0!"},{"$error":"#DIV/0!"},{"$error":"#DIV/0!"},{"$error":"#DIV/0!"},{"$error":"#DIV/0!"},{"$error":"#DIV/0!"},{"$error":"#DIV/0!"},{"$error":"#DIV/0!"},{"$error":"#DIV/0!"},{"$error":"#DIV/0!"},{"$error":"#DIV/0!"},{"$error":"#DIV/0!"},{"$error":"#DIV/0!"},{"$error":"#DIV/0!"},{"$error":"#DIV/0!"},{"$error":"#DIV/0!"},{"$error":"#DIV/0!"},{"$error":"#DIV/0!"},1]
[null,null,null,null,null,null,null,null,null,null,null,null,null,null,null,null,null,null,null,null,null,null,null,null,1]
[null,{"$f":"title483","v":"Base case Project Summary"},null,null,null,null,null,null,null,null,null,null,null,null,null,null,null,null,null,null,null,null,null,null,1]
[null,{"$f":"title484","v":"Summary of this project"},null,null,null,null,null,null,null,null,null,null,null,null,null,null,null,null,null,null,null,null,null,null,1]
[null,{"$f":"title446","v":"Operating Year"},null,{"$f":"title464","v":"Appraisal"},1,2,3,4,5,6,7,8,9,10,11,12,13,14,15,16,17,18,19,20,1]
[null,{"$f":"title485","v":"Total revenue (USD)"},null,null,{"$f":"E24","v":{"$error":"#DIV/0!"}},{"$f":"F24","v":{"$error":"#DIV/0!"}},{"$error":"#DIV/0!"},{"$error":"#DIV/0!"},{"$error":"#DIV/0!"},{"$error":"#DIV/0!"},{"$error":"#DIV/0!"},{"$error":"#DIV/0!"},{"$error":"#DIV/0!"},{"$error":"#DIV/0!"},{"$error":"#DIV/0!"},{"$error":"#DIV/0!"},{"$error":"#DIV/0!"},{"$error":"#DIV/0!"},{"$error":"#DIV/0!"},{"$error":"#DIV/0!"},{"$error":"#DIV/0!"},{"$error":"#DIV/0!"},{"$error":"#DIV/0!"},{"$error":"#DIV/0!"},1]
[null,{"$f":"title463","v":"Total capital cost (USD)"},null,{"$f":"-D38*(1-$D$61)","v":{"$error":"#DIV/0!"}},null,null,null,null,null,null,null,null,null,null,null,null,null,null,null,null,null,null,null,null,1]
[null,{"$f":"title486","v":"Total operating and maintenance cost (USD)"},null,null,{"$f":"-E55+E51","v":{"$error":"#DIV/0!"}},{"$f":"-F55+F51","v":{"$error":"#DIV/0!"}},{"$f":"-G55+G51","v":{"$error":"#DIV/0!"}},{"$error":"#DIV/0!"},{"$error":"#DIV/0!"},{"$error":"#DIV/0!"},{"$error":"#DIV/0!"},{"$error":"#DIV/0!"},{"$error":"#DIV/0!"},{"$error":"#DIV/0!"},{"$error":"#DIV/0!"},{"$error":"#DIV/0!"},{"$error":"#DIV/0!"},{"$error":"#DIV/0!"},{"$error":"#DIV/0!"},{"$error":"#DIV/0!"},{"$error":"#DIV/0!"},{"$error":"#DIV/0!"},{"$error":"#DIV/0!"},{"$error":"#DIV/0!"},1]
[null,{"$f":"title487","v":"Loan payment (USD)"},null,null,{"$f":"+E70","v":0},{"$f":"+F70","v":0},{"$f":"+G70","v":0},0,0,0,0,0,0,0,0,0,0,0,0,0,0,0,0,0,1]
[null,{"$f":"title488","v":"Cash flow with loan (USD)"},null,{"$f":"SUM(D82:D85)","v":{"$error":"#DIV/0!"}},{"$f":"SUM(E82:E85)","v":{"$error":"#DIV/0!"}},{"$f":"SUM(F82:F85)","v":{"$error":"#DIV/0!"}},{"$f":"SUM(G82:G85)","v":{"$error":"#DIV/0!"}},{"$error":"#DIV/0!"},{"$error":"#DIV/0!"},{"$error":"#DIV/0!"},{"$error":"#DIV/0!"},{"$error":"#DIV/0!"},{"$error":"#DIV/0!"},{"$error":"#DIV/0!"},{"$error":"#DIV/0!"},{"$error":"#DIV/0!"},{"$error":"#DIV/0!"},{"$error":"#DIV/0!"},{"$error":"#DIV/0!"},{"$error":"#DIV/0!"},{"$error":"#DIV/0!"},{"$error":"#DIV/0!"},{"$error":"#DIV/0!"},{"$error":"#DIV/0!"},1]
[null,{"$f":"title489","v":"Cash flow without loan (USD)"},null,{"$f":"-D38","v":{"$error":"#DIV/0!"}},{"$f":"+E82+E84","v":{"$error":"#DIV/0!"}},{"$f":"+F82+F84","v":{"$error":"#DIV/0!"}},{"$f":"+G82+G84","v":{"$error":"#DIV/0!"}},{"$error":"#DIV/0!"},{"$error":"#DIV/0!"},{"$error":"#DIV/0!"},{"$error":"#DIV/0!"},{"$error":"#DIV/0!"},{"$error":"#DIV/0!"},{"$error":"#DIV/0!"},{"$error":"#DIV/0!"},{"$error":"#DIV/0!"},{"$error":"#DIV/0!"},{"$error":"#DIV/0!"},{"$error":"#DIV/0!"},{"$error":"#DIV/0!"},{"$error":"#DIV/0!"},{"$error":"#DIV/0!"},{"$error":"#DIV/0!"},{"$error":"#DIV/0!"},1]
[null,{"$f":"title446","v":"Operating Year"},null,{"$f":"title464","v":"Appraisal"},1,2,3,4,5,6,7,8,9,10,11,12,13,14,15,16,17,18,19,20,1]
[null,{"$f":"title490","v":"Cumulative value of Net Profit"},null,{"$f":"D86","v":{"$error":"#DIV/0!"}},{"$f":"D89+(E86)","v":{"$error":"#DIV/0!"}},{"$f":"E89+(F86)","v":{"$error":"#DIV/0!"}},{"$error":"#DIV/0!"},{"$error":"#DIV/0!"},{"$error":"#DIV/0!"},{"$error":"#DIV/0!"},{"$error":"#DIV/0!"},{"$error":"#DIV/0!"},{"$error":"#DIV/0!"},{"$error":"#DIV/0!"},{"$error":"#DIV/0!"},{"$error":"#DIV/0!"},{"$error":"#DIV/0!"},{"$error":"#DIV/0!"},{"$error":"#DIV/0!"},{"$error":"#DIV/0!"},{"$error":"#DIV/0!"},{"$error":"#DIV/0!"},{"$error":"#DIV/0!"},{"$error":"#DIV/0!"},1]
[null,null,null,null,null,null,null,null,null,null,null,null,null,null,null,null,null,null,null,null,null,null,null,null,1]
[null,{"$f":"title491","v":"Financial Analysis Result"},null,null,null,null,null,null,null,null,null,null,null,null,null,null,null,null,null,null,null,null,null,null,1]
[null,null,null,null,null,null,null,null,null,null,null,null,null,null,null,null,null,null,null,null,null,null,null,null,1]
[null,{"$f":"title493","v":"Net Present Value (NPV) (USD)"},null,{"$f":"NPV(D60,E86:AA86)+D86","v":{"$error":"#DIV/0!"}},null,null,null,null,null,null,null,null,null,null,null,null,null,null,null,null,null,null,null,null,1]
[null,{"$f":"title494","v":"Internal Rate of Return (IRR) (%) - without loan"},null,{"$f":"IF(D93<0,title492,IRR(D87:AA87,0.001))","v":{"$error":"#DIV/0!"}},null,null,null,null,null,null,null,null,null,null,null,null,null,null,null,null,null,null,null,null,1]
[null,{"$f":"title495","v":"Internal Rate of Return (IRR) (%) - with loan"},null,{"$f":"IF(D94<0,title492,IRR(D86:AA86,0.001))","v":{"$error":"#DIV/0!"}},null,null,null,null,null,null,null,null,null,null,null,null,null,null,null,null,null,null,null,null,1]
[null,null,null,null,null,null,null,null,null,null,null,null,null,null,null,null,null,null,null,null,null,null,null,null,1]
[null,null,null,null,null,null,null,null,null,null,null,null,null,null,null,null,null,null,null,null,null,null,null,null,1]

{"sheet":"FA_SIZE4_PS4","index":53,"n_rows":97,"n_cols":25,"rows_kept":97,"cut":false,"hidden":true,"merged":[[1,1,1,23]]}
[]
[null,{"$f":"title496&\" 4\"","v":"FINANCIAL EVALUATION OF BIOGAS PRODUCTION SIZE 4"}]
[]
[null,{"$f":"title445","v":"Revenues of biomass production and use system"}]
[null,{"$f":"title446","v":"Operating Year"},null,0,1,2,3,4,5,6,7,8,9,10,11,12,13,14,15,16,17,18,19,20,1]
[null,null,null,null,null,null,null,null,null,null,null,null,null,null,null,null,null,null,null,null,null,null,null,null,1]
["Ag130",{"$f":"title447","v":"Biogas production capacity (m3 Biogas per year)"},null,{"$f":"INDIRECT(\"Planner_PS4!$\"&$A$7)*'Data entry needs'!$L$100","v":{"$error":"#DIV/0!"}},{"$f":"D7","v":{"$error":"#DIV/0!"}},{"$f":"E7","v":{"$error":"#DIV/0!"}},{"$f":"F7","v":{"$error":"#DIV/0!"}},{"$error":"#DIV/0!"},{"$error":"#DIV/0!"},{"$error":"#DIV/0!"},{"$error":"#DIV/0!"},{"$error":"#DIV/0!"},{"$error":"#DIV/0!"},{"$error":"#DIV/0!"},{"$error":"#DIV/0!"},{"$error":"#DIV/0!"},{"$error":"#DIV/0!"},{"$error":"#DIV/0!"},{"$error":"#DIV/0!"},{"$error":"#DIV/0!"},{"$error":"#DIV/0!"},{"$error":"#DIV/0!"},{"$error":"#DIV/0!"},{"$error":"#DIV/0!"},1]
[]
["m107",{"$f":"title448","v":"Heat Available for Selling (MJ/year)"},null,{"$f":"IF(INDIRECT(\"COST_PS4!\"&$A$9)<0,0,INDIRECT(\"COST_PS4!\"&$A$9))","v":{"$error":"#DIV/0!"}},{"$f":"D9","v":{"$error":"#DIV/0!"}},{"$f":"E9","v":{"$error":"#DIV/0!"}},{"$error":"#DIV/0!"},{"$error":"#DIV/0!"},{"$error":"#DIV/0!"},{"$error":"#DIV/0!"},{"$error":"#DIV/0!"},{"$error":"#DIV/0!"},{"$error":"#DIV/0!"},{"$error":"#DIV/0!"},{"$error":"#DIV/0!"},{"$error":"#DIV/0!"},{"$error":"#DIV/0!"},{"$error":"#DIV/0!"},{"$error":"#DIV/0!"},{"$error":"#DIV/0!"},{"$error":"#DIV/0!"},{"$f":"U9","v":{"$error":"#DIV/0!"}},{"$error":"#DIV/0!"},{"$error":"#DIV/0!"},1]
["m106",{"$f":"title449","v":"Electricity Available for Selling (kWh/year)"},null,{"$f":"IF(INDIRECT(\"COST_PS4!\"&$A$10)<0,0,INDIRECT(\"COST_PS4!\"&$A$10))","v":{"$error":"#DIV/0!"}},{"$f":"D10","v":{"$error":"#DIV/0!"}},{"$error":"#DIV/0!"},{"$error":"#DIV/0!"},{"$error":"#DIV/0!"},{"$error":"#DIV/0!"},{"$error":"#DIV/0!"},{"$error":"#DIV/0!"},{"$error":"#DIV/0!"},{"$error":"#DIV/0!"},{"$error":"#DIV/0!"},{"$error":"#DIV/0!"},{"$error":"#DIV/0!"},{"$error":"#DIV/0!"},{"$error":"#DIV/0!"},{"$error":"#DIV/0!"},{"$error":"#DIV/0!"},{"$error":"#DIV/0!"},{"$error":"#DIV/0!"},{"$error":"#DIV/0!"},{"$error":"#DIV/0!"},1]
["Ae166",{"$f":"title450","v":"Biomethane Production (m3 Methane/year)"},null,{"$f":"IF(OR('Biogas Use Selection'!$P$67=4,'Biogas Use Selection'!$P$67=5),INDIRECT(\"Planner_PS4!$\"&$A$11),0)","v":0},{"$f":"D11","v":0},0,0,0,0,0,0,0,0,0,0,0,0,0,0,0,0,0,0,0,1]
[null,{"$f":"title451","v":"Biogas Available for Selling (m3/year)"},null,{"$f":"IF('Biogas Use Selection'!$P$67=2,$D$7,0)","v":0},{"$f":"D12","v":0},0,0,0,0,0,0,0,0,0,0,0,0,0,0,0,0,0,0,0]
["Ae178",{"$f":"title452","v":"Digestate Production (t/year)"},null,{"$f":"INDIRECT(\"Planner_PS4!$\"&$A$13)","v":{"$error":"#DIV/0!"}},{"$f":"D13","v":{"$error":"#DIV/0!"}},{"$error":"#DIV/0!"},{"$error":"#DIV/0!"},{"$error":"#DIV/0!"},{"$error":"#DIV/0!"},{"$error":"#DIV/0!"},{"$error":"#DIV/0!"},{"$error":"#DIV/0!"},{"$error":"#DIV/0!"},{"$error":"#DIV/0!"},{"$error":"#DIV/0!"},{"$error":"#DIV/0!"},{"$error":"#DIV/0!"},{"$error":"#DIV/0!"},{"$error":"#DIV/0!"},{"$error":"#DIV/0!"},{"$error":"#DIV/0!"},{"$error":"#DIV/0!"},{"$error":"#DIV/0!"},{"$error":"#DIV/0!"}]
[]
[null,{"$f":"title265","v":"Operating hours per year"},null,{"$f":"COST_PS4!$G$35","v":0},{"$f":"D15","v":0},{"$f":"E15","v":0},0,0,0,0,0,0,0,0,0,0,0,0,0,0,0,0,0,0,1]
[null,null,null,null,null,null,null,null,null,null,null,null,null,null,null,null,null,null,null,null,null,null,null,null,1]
[1,{"$f":"title137&\" (USD/kWh)\"","v":"Electricity Selling Price (USD/kWh)"},null,{"$f":"IF($A17=1,'Data entry needs'!$F$103,0)","v":0},null,null,null,null,null,null,null,null,null,null,null,null,null,null,null,null,null,null,null,null,1]
[1,{"$f":"title138&\" (USD/GJ)\"","v":"Heat Selling Price (USD/GJ)"},null,{"$f":"IF($A18=1,'Data entry needs'!$F$104,0)","v":0}]
[1,{"$f":"title453","v":"Biogas Selling Price (USD/m3)"},null,{"$f":"IF($A19=1,'Data entry needs'!$F$105,0)","v":0}]
[1,{"$f":"title454","v":"Biomethane Selling Price (USD/m3)"},null,{"$f":"IF($A20=1,'Data entry needs'!$L$103,0)","v":0}]
[1,{"$f":"title455","v":"Digestate Sellig Price (USD/t)"},null,{"$f":"'Data entry needs'!$L$104","v":0}]
[]
[null,null,null,null,null,null,null,null,null,null,null,null,null,null,null,null,null,null,null,null,null,null,null,null,1]
[null,{"$f":"title456","v":"Annual Income (USD per year)"},null,{"$f":"$D$18*D9+D10*$D$17+D12*$D$19+D11*$D$20+$D$21*D13","v":{"$error":"#DIV/0!"}},{"$f":"$D$18*E9+E10*$D$17+E12*$D$19+E11*$D$20+$D$21*E13","v":{"$error":"#DIV/0!"}},{"$f":"$D$18*F9+F10*$D$17+F12*$D$19+F11*$D$20+$D$21*F13","v":{"$error":"#DIV/0!"}},{"$error":"#DIV/0!"},{"$error":"#DIV/0!"},{"$error":"#DIV/0!"},{"$error":"#DIV/0!"},{"$error":"#DIV/0!"},{"$error":"#DIV/0!"},{"$error":"#DIV/0!"},{"$error":"#DIV/0!"},{"$error":"#DIV/0!"},{"$error":"#DIV/0!"},{"$error":"#DIV/0!"},{"$error":"#DIV/0!"},{"$error":"#DIV/0!"},{"$error":"#DIV/0!"},{"$error":"#DIV/0!"},{"$error":"#DIV/0!"},{"$error":"#DIV/0!"},{"$error":"#DIV/0!"},1]
[null,null,null,null,null,null,null,null,null,null,null,null,null,null,null,null,null,null,null,null,null,null,null,null,1]
[null,{"$f":"title457","v":"Lifespan of civil work (years)"},null,{"$f":"'Data entry needs'!$L$120","v":0},null,null,null,null,null,null,null,null,null,null,null,null,null,null,null,null,null,null,null,null,1]
[null,{"$f":"title458","v":"Lifespan of charcoal system (years)"},null,{"$f":"'Data entry needs'!$L$120","v":0},null,null,null,null,null,null,null,null,null,null,null,null,null,null,null,null,null,null,null,null,1]
[null,{"$f":"title459","v":"Project lifetime (years)"},null,{"$f":"'Data entry needs'!$L$120","v":0},null,null,null,null,null,null,null,null,null,null,null,null,null,null,null,null,null,null,null,null,1]
[null,null,null,null,null,null,null,null,null,null,null,null,null,null,null,null,null,null,null,null,null,null,null,null,1]
[null,null,null,null,null,null,null,null,null,null,null,null,null,null,null,null,null,null,null,null,null,null,null,null,1]
[null,{"$f":"title460","v":"Capital and operating cost of biogas system "},null,null,null,null,null,null,null,null,null,null,null,null,null,null,null,null,null,null,null,null,null,null,1]
[null,null,null,null,null,null,null,null,null,null,null,null,null,null,null,null,null,null,null,null,null,null,null,null,1]
[null,{"$f":"title446","v":"Operating Year"},null,{"$f":"title464","v":"Appraisal"},{"$f":"title465","v":"Project period (years)"},{"$f":"title466","v":"per year"},null,null,null,null,null,null,null,null,null,null,null,null,null,null,null,null,null,null,1]
[null,{"$f":"title461","v":"Capital cost (USD)"},null,"Total",null,null,null,null,null,null,null,null,null,null,null,null,null,null,null,null,null,null,null,null,1]
["l77",{"$f":"title280","v":"Equipments"},null,{"$f":"INDIRECT(\"COST_PS4!\"&$A35)","v":{"$error":"#DIV/0!"}},{"$f":"+D26","v":0},{"$f":"D35/E35","v":{"$error":"#DIV/0!"}},null,null,null,null,null,null,null,null,null,null,null,null,null,null,null,null,null,null,1]
["l78",{"$f":"title281","v":"Building"},null,{"$f":"INDIRECT(\"COST_PS4!\"&$A36)","v":{"$error":"#DIV/0!"}},{"$f":"+D27","v":0},{"$f":"D36/E36","v":{"$error":"#DIV/0!"}},null,null,null,null,null,null,null,null,null,null,null,null,null,null,null,null,null,null,1]
["l79",{"$f":"title462","v":"Installation"},null,{"$f":"INDIRECT(\"COST_PS4!\"&$A37)","v":{"$error":"#DIV/0!"}},{"$f":"+D28","v":0},{"$f":"D37/E37","v":{"$error":"#DIV/0!"}},null,null,null,null,null,null,null,null,null,null,null,null,null,null,null,null,null,null,1]
[null,{"$f":"title463","v":"Total capital cost (USD)"},null,{"$f":"SUM(D35:D37)","v":{"$error":"#DIV/0!"}},null,{"$f":"SUM(F35:F37)","v":{"$error":"#DIV/0!"}},null,null,null,null,null,null,null,null,null,null,null,null,null,null,null,null,null,null,1]
[null,null,null,null,null,null,null,null,null,null,null,null,null,null,null,null,null,null,null,null,null,null,null,null,1]
[null,null,null,null,null,null,null,null,null,null,null,null,null,null,null,null,null,null,null,null,null,null,null,null,1]
[null,{"$f":"title446","v":"Operating Year"},null,{"$f":"title464","v":"Appraisal"},1,2,3,4,5,6,7,8,9,10,11,12,13,14,15,16,17,18,19,20,1]
[null,{"$f":"title467","v":"Annual operating and maintenance cost "},null,null,null,null,null,null,null,null,null,null,null,null,null,null,null,null,null,null,null,null,null,null,1]
["l44",{"$f":"title468","v":"Sub-total inputs cost (USD)"},null,{"$f":"INDIRECT(\"COST_PS4!\"&$A$43)","v":{"$error":"#DIV/0!"}},{"$error":"#DIV/0!"},{"$error":"#DIV/0!"},{"$error":"#DIV/0!"},{"$error":"#DIV/0!"},{"$error":"#DIV/0!"},{"$error":"#DIV/0!"},{"$error":"#DIV/0!"},{"$error":"#DIV/0!"},{"$error":"#DIV/0!"},{"$error":"#DIV/0!"},{"$error":"#DIV/0!"},{"$error":"#DIV/0!"},{"$error":"#DIV/0!"},{"$error":"#DIV/0!"},{"$error":"#DIV/0!"},{"$error":"#DIV/0!"},{"$error":"#DIV/0!"},{"$error":"#DIV/0!"},{"$error":"#DIV/0!"},{"$error":"#DIV/0!"},1]
[]
[null,{"$f":"title469","v":"Sub-total operating cost (USD)"},null,{"$f":"D46+D47+D48","v":{"$error":"#DIV/0!"}},{"$f":"E46+E47+E48","v":{"$error":"#DIV/0!"}},{"$f":"F46+F47+F48","v":{"$error":"#DIV/0!"}},{"$error":"#DIV/0!"},{"$error":"#DIV/0!"},{"$error":"#DIV/0!"},{"$error":"#DIV/0!"},{"$error":"#DIV/0!"},{"$error":"#DIV/0!"},{"$error":"#DIV/0!"},{"$error":"#DIV/0!"},{"$error":"#DIV/0!"},{"$error":"#DIV/0!"},{"$error":"#DIV/0!"},{"$error":"#DIV/0!"},{"$error":"#DIV/0!"},{"$error":"#DIV/0!"},{"$error":"#DIV/0!"},{"$error":"#DIV/0!"},{"$error":"#DIV/0!"},{"$error":"#DIV/0!"},1]
["m51",{"$f":"title470","v":"Labour cost & Misc. (USD)"},null,{"$f":"INDIRECT(\"COST_PS4!\"&$A46)","v":0},{"$f":"+D46","v":0},{"$f":"+E46","v":0},0,0,0,0,0,0,0,0,0,0,0,0,0,0,0,0,0,0,1]
["m87",{"$f":"title151","v":"Plant overhead"},null,{"$f":"INDIRECT(\"COST_PS4!\"&$A47)","v":{"$error":"#DIV/0!"}},{"$f":"D47","v":{"$error":"#DIV/0!"}},{"$error":"#DIV/0!"},{"$error":"#DIV/0!"},{"$error":"#DIV/0!"},{"$error":"#DIV/0!"},{"$error":"#DIV/0!"},{"$error":"#DIV/0!"},{"$error":"#DIV/0!"},{"$error":"#DIV/0!"},{"$error":"#DIV/0!"},{"$error":"#DIV/0!"},{"$error":"#DIV/0!"},{"$error":"#DIV/0!"},{"$error":"#DIV/0!"},{"$error":"#DIV/0!"},{"$error":"#DIV/0!"},{"$f":"T47","v":{"$error":"#DIV/0!"}},{"$error":"#DIV/0!"},{"$error":"#DIV/0!"},{"$error":"#DIV/0!"},1]
["m88",{"$f":"title288","v":"General and administrative cost"},null,{"$f":"INDIRECT(\"COST_PS4!\"&$A48)","v":{"$error":"#DIV/0!"}},{"$error":"#DIV/0!"},{"$error":"#DIV/0!"},{"$error":"#DIV/0!"},{"$error":"#DIV/0!"},{"$error":"#DIV/0!"},{"$error":"#DIV/0!"},{"$error":"#DIV/0!"},{"$error":"#DIV/0!"},{"$error":"#DIV/0!"},{"$error":"#DIV/0!"},{"$error":"#DIV/0!"},{"$error":"#DIV/0!"},{"$error":"#DIV/0!"},{"$error":"#DIV/0!"},{"$error":"#DIV/0!"},{"$error":"#DIV/0!"},{"$error":"#DIV/0!"},{"$error":"#DIV/0!"},{"$error":"#DIV/0!"},{"$error":"#DIV/0!"},1]
["m82",{"$f":"title471","v":"Sub-total maintenance cost (USD)"},null,{"$f":"INDIRECT(\"COST_PS4!\"&$A49)","v":{"$error":"#DIV/0!"}},{"$error":"#DIV/0!"},{"$error":"#DIV/0!"},{"$error":"#DIV/0!"},{"$error":"#DIV/0!"},{"$error":"#DIV/0!"},{"$error":"#DIV/0!"},{"$error":"#DIV/0!"},{"$error":"#DIV/0!"},{"$error":"#DIV/0!"},{"$error":"#DIV/0!"},{"$error":"#DIV/0!"},{"$error":"#DIV/0!"},{"$error":"#DIV/0!"},{"$error":"#DIV/0!"},{"$error":"#DIV/0!"},{"$error":"#DIV/0!"},{"$error":"#DIV/0!"},{"$error":"#DIV/0!"},{"$error":"#DIV/0!"},{"$error":"#DIV/0!"},1]
[null,null,null,null,null,null,null,null,null,null,null,null,null,null,null,null,null,null,null,null,null,null,null,null,1]
["m82",{"$f":"title472","v":"Sub-total of annual fixed cost (USD)"},null,{"$f":"F38","v":{"$error":"#DIV/0!"}},{"$f":"D51","v":{"$error":"#DIV/0!"}},{"$f":"E51","v":{"$error":"#DIV/0!"}},{"$error":"#DIV/0!"},{"$error":"#DIV/0!"},{"$error":"#DIV/0!"},{"$error":"#DIV/0!"},{"$error":"#DIV/0!"},{"$error":"#DIV/0!"},{"$error":"#DIV/0!"},{"$error":"#DIV/0!"},{"$error":"#DIV/0!"},{"$error":"#DIV/0!"},{"$error":"#DIV/0!"},{"$error":"#DIV/0!"},{"$error":"#DIV/0!"},{"$error":"#DIV/0!"},{"$error":"#DIV/0!"},{"$error":"#DIV/0!"},{"$error":"#DIV/0!"},{"$error":"#DIV/0!"},1]
[null,null,null,null,null,null,null,null,null,null,null,null,null,null,null,null,null,null,null,null,null,null,null,null,1]
["l73",{"$f":"title473","v":"Sub-total of storage cost (USD)"},null,{"$f":"INDIRECT(\"COST_PS4!\"&$A53)","v":0},0,0,0,0,0,0,0,0,0,0,0,0,0,0,0,0,0,0,0,0,1]
[null,null,null,null,null,null,null,null,null,null,null,null,null,null,null,null,null,null,null,null,null,null,null,null,1]
[null,{"$f":"title474","v":"Total operation and maintenance cost (USD)"},null,{"$f":"D43+D45+D49+D51+D53","v":{"$error":"#DIV/0!"}},{"$f":"E43+E45+E49+E51+E53","v":{"$error":"#DIV/0!"}},{"$error":"#DIV/0!"},{"$error":"#DIV/0!"},{"$error":"#DIV/0!"},{"$error":"#DIV/0!"},{"$error":"#DIV/0!"},{"$error":"#DIV/0!"},{"$error":"#DIV/0!"},{"$error":"#DIV/0!"},{"$error":"#DIV/0!"},{"$error":"#DIV/0!"},{"$error":"#DIV/0!"},{"$error":"#DIV/0!"},{"$error":"#DIV/0!"},{"$error":"#DIV/0!"},{"$error":"#DIV/0!"},{"$error":"#DIV/0!"},{"$error":"#DIV/0!"},{"$error":"#DIV/0!"},{"$error":"#DIV/0!"},1]
[null,null,null,null,null,null,null,null,null,null,null,null,null,null,null,null,null,null,null,null,null,null,null,null,1]
[null,null,null,null,null,null,null,null,null,null,null,null,null,null,null,null,null,null,null,null,null,null,null,null,1]
[null,{"$f":"title155","v":"Financial parameters"},null,null,null,null,null,null,null,null,null,null,null,null,null,null,null,null,null,null,null,null,null,null,1]
[null,{"$f":"title446","v":"Operating Year"},null,{"$f":"title464","v":"Appraisal"},1,2,3,4,5,6,7,8,9,10,11,12,13,14,15,16,17,18,19,20,1]
[null,{"$f":"title161&\"(%)\"","v":"Discount rate(%)"},null,{"$f":"'Data entry needs'!$L$118","v":0},null,null,null,null,null,null,null,null,null,null,null,null,null,null,null,null,null,null,null,null,1]
[null,{"$f":"title475","v":"Loan ratio (%)"},null,{"$f":"'Data entry needs'!$F$118","v":0},null,null,null,null,null,null,null,null,null,null,null,null,null,null,null,null,null,null,null,null,1]
[null,null,null,null,null,null,null,null,null,null,null,null,null,null,null,null,null,null,null,null,null,null,null,null,1]
[null,null,null,null,null,null,null,null,null,null,null,null,null,null,null,null,null,null,null,null,null,null,null,null,1]
[null,{"$f":"title446","v":"Operating Year"},null,{"$f":"title464","v":"Appraisal"},1,2,3,4,5,6,7,8,9,10,11,12,13,14,15,16,17,18,19,20,1]
[null,{"$f":"title476","v":"Loan amount (USD)"},null,{"$f":"D61*(D38)","v":{"$error":"#DIV/0!"}},null,null,null,null,null,null,null,null,null,null,null,null,null,null,null,null,null,null,null,null,1]
[null,{"$f":"title162&\"(%)\"","v":"Loan interest rate(%)"},null,{"$f":"'Data entry needs'!$L$119","v":0},null,null,null,null,null,null,null,null,null,null,null,null,null,null,null,null,null,null,null,null,1]
[null,{"$f":"title165","v":"Loan term (years)"},null,{"$f":"D26","v":0},null,null,null,null,null,null,null,null,null,null,null,null,null,null,null,null,null,null,null,null,1]
[null,{"$f":"title315&\" (\"&title318&\")\"","v":"Loan payment (USD/month)"},null,{"$f":"(PMT($D$66/12,($D$67*12),$D$65))","v":{"$error":"#DIV/0!"}}]
[null,{"$f":"title315&\" (\"&title319&\")\"","v":"Loan payment (USD/year)"},null,{"$f":"D68*12","v":{"$error":"#DIV/0!"}},null,null,null,null,null,null,null,null,null,null,null,null,null,null,null,null,null,null,null,null,1]
[null,{"$f":"title315&\" (\"&title319&\")\"","v":"Loan payment (USD/year)"},null,null,{"$f":"IF(E64<=$D$67,$D$68*12,0)","v":0},{"$f":"IF(F64<=$D$67,$D$68*12,0)","v":0},0,0,0,0,0,0,0,0,0,0,0,0,0,0,0,0,0,0,1]
[null,{"$f":"title477","v":"Total loan payment (USD)"},null,{"$f":"SUM(E70:X70)","v":0},null,null,null,null,null,null,null,null,null,null,null,null,null,null,null,null,null,null,null,null,1]
[null,{"$f":"title478","v":"Loan interest payment (USD)"},null,{"$f":"D71+D65","v":{"$error":"#DIV/0!"}},{"$f":"title479","v":"loan interest payment for project lifetime"},null,null,null,null,null,null,null,null,null,null,null,null,null,null,null,null,null,null,null,1]
[null,null,null,null,null,null,null,null,null,null,null,null,null,null,null,null,null,null,null,null,null,null,null,null,1]
[null,{"$f":"title285","v":"Depreciation"},null,null,null,null,null,null,null,null,null,null,null,null,null,null,null,null,null,null,null,null,null,null,1]
[null,{"$f":"title446","v":"Operating Year"},null,{"$f":"title464","v":"Appraisal"},1,2,3,4,5,6,7,8,9,10,11,12,13,14,15,16,17,18,19,20,1]
[null,{"$f":"title480","v":"Depreciation method"},null,{"$f":"title482","v":"Straight-line"},null,null,null,null,null,null,null,null,null,null,null,null,null,null,null,null,null,null,null,null,1]
[null,{"$f":"title481","v":"Total depreciation (USD)"},null,null,{"$f":"$F$38","v":{"$error":"#DIV/0!"}},{"$f":"$F$38","v":{"$error":"#DIV/0!"}},{"$error":"#DIV/0!"},{"$error":"#DIV/0!"},{"$error":"#DIV/0!"},{"$error":"#DIV/0!"},{"$error":"#DIV/0!"},{"$error":"#DIV/0!"},{"$error":"#DIV/0!"},{"$error":"#DIV/0!"},{"$error":"#DIV/0!"},{"$error":"#DIV/0!"},{"$error":"#DIV/0!"},{"$error":"#DIV/0!"},{"$error":"#DIV/0!"},{"$error":"#DIV/0!"},{"$error":"#DIV/0!"},{"$error":"#DIV/0!"},{"$error":"#DIV/0!"},{"$error":"#DIV/0!"},1]
[null,null,null,null,null,null,null,null,null,null,null,null,null,null,null,null,null,null,null,null,null,null,null,null,1]
[null,{"$f":"title483","v":"Base case Project Summary"},null,null,null,null,null,null,null,null,null,null,null,null,null,null,null,null,null,null,null,null,null,null,1]
[null,{"$f":"title484","v":"Summary of this project"},null,null,null,null,null,null,null,null,null,null,null,null,null,null,null,null,null,null,null,null,null,null,1]
[null,{"$f":"title446","v":"Operating Year"},null,{"$f":"title464","v":"Appraisal"},1,2,3,4,5,6,7,8,9,10,11,12,13,14,15,16,17,18,19,20,1]
[null,{"$f":"title485","v":"Total revenue (USD)"},null,null,{"$f":"E24","v":{"$error":"#DIV/0!"}},{"$f":"F24","v":{"$error":"#DIV/0!"}},{"$error":"#DIV/0!"},{"$error":"#DIV/0!"},{"$error":"#DIV/0!"},{"$error":"#DIV/0!"},{"$error":"#DIV/0!"},{"$error":"#DIV/0!"},{"$error":"#DIV/0!"},{"$error":"#DIV/0!"},{"$error":"#DIV/0!"},{"$error":"#DIV/0!"},{"$error":"#DIV/0!"},{"$error":"#DIV/0!"},{"$error":"#DIV/0!"},{"$error":"#DIV/0!"},{"$error":"#DIV/0!"},{"$error":"#DIV/0!"},{"$error":"#DIV/0!"},{"$error":"#DIV/0!"},1]
[null,{"$f":"title463","v":"Total capital cost (USD)"},null,{"$f":"-D38*(1-$D$61)","v":{"$error":"#DIV/0!"}},null,null,null,null,null,null,null,null,null,null,null,null,null,null,null,null,null,null,null,null,1]
[null,{"$f":"title486","v":"Total operating and maintenance cost (USD)"},null,null,{"$f":"-E55+E51","v":{"$error":"#DIV/0!"}},{"$f":"-F55+F51","v":{"$error":"#DIV/0!"}},{"$f":"-G55+G51","v":{"$error":"#DIV/0!"}},{"$error":"#DIV/0!"},{"$error":"#DIV/0!"},{"$error":"#DIV/0!"},{"$error":"#DIV/0!"},{"$error":"#DIV/0!"},{"$error":"#DIV/0!"},{"$error":"#DIV/0!"},{"$error":"#DIV/0!"},{"$error":"#DIV/0!"},{"$error":"#DIV/0!"},{"$error":"#DIV/0!"},{"$error":"#DIV/0!"},{"$error":"#DIV/0!"},{"$error":"#DIV/0!"},{"$error":"#DIV/0!"},{"$error":"#DIV/0!"},{"$error":"#DIV/0!"},1]
[null,{"$f":"title487","v":"Loan payment (USD)"},null,null,{"$f":"+E70","v":0},{"$f":"+F70","v":0},{"$f":"+G70","v":0},0,0,0,0,0,0,0,0,0,0,0,0,0,0,0,0,0,1]
[null,{"$f":"title488","v":"Cash flow with loan (USD)"},null,{"$f":"SUM(D82:D85)","v":{"$error":"#DIV/0!"}},{"$f":"SUM(E82:E85)","v":{"$error":"#DIV/0!"}},{"$f":"SUM(F82:F85)","v":{"$error":"#DIV/0!"}},{"$f":"SUM(G82:G85)","v":{"$error":"#DIV/0!"}},{"$error":"#DIV/0!"},{"$error":"#DIV/0!"},{"$error":"#DIV/0!"},{"$error":"#DIV/0!"},{"$error":"#DIV/0!"},{"$error":"#DIV/0!"},{"$error":"#DIV/0!"},{"$error":"#DIV/0!"},{"$error":"#DIV/0!"},{"$error":"#DIV/0!"},{"$error":"#DIV/0!"},{"$error":"#DIV/0!"},{"$error":"#DIV/0!"},{"$error":"#DIV/0!"},{"$error":"#DIV/0!"},{"$error":"#DIV/0!"},{"$error":"#DIV/0!"},1]
[null,{"$f":"title489","v":"Cash flow without loan (USD)"},null,{"$f":"-D38","v":{"$error":"#DIV/0!"}},{"$f":"+E82+E84","v":{"$error":"#DIV/0!"}},{"$f":"+F82+F84","v":{"$error":"#DIV/0!"}},{"$f":"+G82+G84","v":{"$error":"#DIV/0!"}},{"$error":"#DIV/0!"},{"$error":"#DIV/0!"},{"$error":"#DIV/0!"},{"$error":"#DIV/0!"},{"$error":"#DIV/0!"},{"$error":"#DIV/0!"},{"$error":"#DIV/0!"},{"$error":"#DIV/0!"},{"$error":"#DIV/0!"},{"$error":"#DIV/0!"},{"$error":"#DIV/0!"},{"$error":"#DIV/0!"},{"$error":"#DIV/0!"},{"$error":"#DIV/0!"},{"$error":"#DIV/0!"},{"$error":"#DIV/0!"},{"$error":"#DIV/0!"},1]
[null,{"$f":"title446","v":"Operating Year"},null,{"$f":"title464","v":"Appraisal"},1,2,3,4,5,6,7,8,9,10,11,12,13,14,15,16,17,18,19,20,1]
[null,{"$f":"title490","v":"Cumulative value of Net Profit"},null,{"$f":"D86","v":{"$error":"#DIV/0!"}},{"$f":"D89+(E86)","v":{"$error":"#DIV/0!"}},{"$f":"E89+(F86)","v":{"$error":"#DIV/0!"}},{"$error":"#DIV/0!"},{"$error":"#DIV/0!"},{"$error":"#DIV/0!"},{"$error":"#DIV/0!"},{"$error":"#DIV/0!"},{"$error":"#DIV/0!"},{"$error":"#DIV/0!"},{"$error":"#DIV/0!"},{"$error":"#DIV/0!"},{"$error":"#DIV/0!"},{"$error":"#DIV/0!"},{"$error":"#DIV/0!"},{"$error":"#DIV/0!"},{"$error":"#DIV/0!"},{"$error":"#DIV/0!"},{"$error":"#DIV/0!"},{"$error":"#DIV/0!"},{"$error":"#DIV/0!"},1]
[null,null,null,null,null,null,null,null,null,null,null,null,null,null,null,null,null,null,null,null,null,null,null,null,1]
[null,{"$f":"title491","v":"Financial Analysis Result"},null,null,null,null,null,null,null,null,null,null,null,null,null,null,null,null,null,null,null,null,null,null,1]
[null,null,null,null,null,null,null,null,null,null,null,null,null,null,null,null,null,null,null,null,null,null,null,null,1]
[null,{"$f":"title493","v":"Net Present Value (NPV) (USD)"},null,{"$f":"NPV(D60,E86:AA86)+D86","v":{"$error":"#DIV/0!"}},null,null,null,null,null,null,null,null,null,null,null,null,null,null,null,null,null,null,null,null,1]
[null,{"$f":"title494","v":"Internal Rate of Return (IRR) (%) - without loan"},null,{"$f":"IF(D93<0,title492,IRR(D87:AA87,0.001))","v":{"$error":"#DIV/0!"}},null,null,null,null,null,null,null,null,null,null,null,null,null,null,null,null,null,null,null,null,1]
[null,{"$f":"title495","v":"Internal Rate of Return (IRR) (%) - with loan"},null,{"$f":"IF(D94<0,title492,IRR(D86:AA86,0.001))","v":{"$error":"#DIV/0!"}},null,null,null,null,null,null,null,null,null,null,null,null,null,null,null,null,null,null,null,null,1]
[null,null,null,null,null,null,null,null,null,null,null,null,null,null,null,null,null,null,null,null,null,null,null,null,1]
[null,null,null,null,null,null,null,null,null,null,null,null,null,null,null,null,null,null,null,null,null,null,null,null,1]

{"sheet":"COST(ADJUSTED)_PS4","index":54,"n_rows":75,"n_cols":13,"rows_kept":75,"cut":false,"hidden":true,"merged":[[5,9,5,12],[7,9,7,12],[9,9,9,12],[2,2,2,12]]}
[]
[]
[null,null,{"$f":"title497&\" 4\"","v":"DETAILED INVESTMENT PROCESS 4"}]
[]
[]
[null,null,{"$f":"title498","v":"Escalation Factor"},0.89,null,null,null,null,null,{"$f":"title506","v":"Capacities (m3 CH4/year)"}]
[null,null,null,null,null,null,null,null,null,{"$f":"Planner_PS4!AD$127*'Data entry needs'!$L$100","v":0},{"$f":"Planner_PS4!AE$127*'Data entry needs'!$L$100","v":0},{"$f":"Planner_PS4!AF$127*'Data entry needs'!$L$100","v":0},{"$f":"Planner_PS4!AG$127*'Data entry needs'!$L$100","v":0}]
[null,null,null,null,null,null,null,null,null,{"$f":"title507","v":"Capacities (kWe)"}]
[null,null,null,null,null,null,null,null,null,{"$f":"Planner_PS4!AD$128","v":100},{"$f":"Planner_PS4!AE$128","v":105},{"$f":"Planner_PS4!AF$128","v":115},{"$f":"Planner_PS4!AG$128","v":120}]
[null,null,null,null,null,null,null,null,null,{"$f":"title508","v":"Capacities (m3 Biogas/year)"}]
[null,null,null,null,null,null,null,null,null,{"$f":"Planner_PS4!AD$130*'Data entry needs'!$L$100","v":{"$error":"#DIV/0!"}},{"$f":"Planner_PS4!AE$130*'Data entry needs'!$L$100","v":{"$error":"#DIV/0!"}},{"$f":"Planner_PS4!AF$130*'Data entry needs'!$L$100","v":{"$error":"#DIV/0!"}},{"$f":"Planner_PS4!AG$130*'Data entry needs'!$L$100","v":{"$error":"#DIV/0!"}}]
[null,null,null,{"$f":"title500","v":"Households Electr."},"hh",null,null,null,null,{"$f":"IFERROR(COST_PS4!G106/VLOOKUP('Biogas Use Selection'!$Q$67,'Biogas Use Selection'!$O$71:$Z$75,5,FALSE),0)","v":0},{"$f":"IFERROR(COST_PS4!I106/VLOOKUP('Biogas Use Selection'!$Q$67,'Biogas Use Selection'!$O$71:$Z$75,5,FALSE),0)","v":0},{"$f":"IFERROR(COST_PS4!K106/VLOOKUP('Biogas Use Selection'!$Q$67,'Biogas Use Selection'!$O$71:$Z$75,5,FALSE),0)","v":0},{"$f":"IFERROR(COST_PS4!M106/VLOOKUP('Biogas Use Selection'!$Q$67,'Biogas Use Selection'!$O$71:$Z$75,5,FALSE),0)","v":0}]
[null,null,null,{"$f":"title501","v":"Households Heat."},"hh",null,null,null,null,{"$f":"IFERROR(ROUNDDOWN(IF(OR('Biogas Use Selection'!$P$67=5,'Biogas Use Selection'!$P$67=2),J$11,IF('Biogas Use Selection'!$P$67=1,J$17*1000,IF('Biogas Use Selection'!$P$67=4,J$7)))/VLOOKUP('Biogas Use Selection'!$Q$67,'Biogas Use Selection'!$O$71:$Z$75,3,FALSE),0),0)","v":0},{"$f":"IFERROR(ROUNDDOWN(IF(OR('Biogas Use Selection'!$P$67=5,'Biogas Use Selection'!$P$67=2),K$11,IF('Biogas Use Selection'!$P$67=1,K$17*1000,IF('Biogas Use Selection'!$P$67=4,K$7)))/VLOOKUP('Biogas Use Selection'!$Q$67,'Biogas Use Selection'!$O$71:$Z$75,3,FALSE),0),0)","v":0},{"$f":"IFERROR(ROUNDDOWN(IF(OR('Biogas Use Selection'!$P$67=5,'Biogas Use Selection'!$P$67=2),L$11,IF('Biogas Use Selection'!$P$67=1,L$17*1000,IF('Biogas Use Selection'!$P$67=4,L$7)))/VLOOKUP('Biogas Use Selection'!$Q$67,'Biogas Use Selection'!$O$71:$Z$75,3,FALSE),0),0)","v":0},{"$f":"IFERROR(ROUNDDOWN(IF(OR('Biogas Use Selection'!$P$67=5,'Biogas Use Selection'!$P$67=2),M$11,IF('Biogas Use Selection'!$P$67=1,M$17*1000,IF('Biogas Use Selection'!$P$67=4,M$7)))/VLOOKUP('Biogas Use Selection'!$Q$67,'Biogas Use Selection'!$O$71:$Z$75,3,FALSE),0),0)","v":0}]
[null,null,null,{"$f":"title109","v":"Feedstock"},{"$f":"title308","v":"t/year"},null,null,null,null,{"$f":"Planner_PS4!AD133","v":{"$error":"#DIV/0!"}},{"$f":"Planner_PS4!AE133","v":{"$error":"#DIV/0!"}},{"$f":"Planner_PS4!AF133","v":{"$error":"#DIV/0!"}},{"$f":"Planner_PS4!AG133","v":{"$error":"#DIV/0!"}}]
[null,null,null,{"$f":"title502","v":"Operating period"},{"$f":"title505","v":"h/year"},null,null,null,null,{"$f":"COST_PS4!G$35","v":0},{"$f":"J15","v":0},{"$f":"K15","v":0},{"$f":"L15","v":0}]
[null,null,null,{"$f":"title503","v":"Cable Proxy"},"m/hh",null,null,null,10,{"$f":"IFERROR($I$16*J12,0)","v":0},{"$f":"IFERROR($I$16*K12,0)","v":0},{"$f":"IFERROR($I$16*L12,0)","v":0},{"$f":"IFERROR($I$16*M12,0)","v":0}]
[null,null,null,{"$f":"title299","v":"Heat Production"},{"$f":"title305","v":"GJ/year"},null,null,null,null,{"$f":"COST_PS4!G107","v":{"$error":"#DIV/0!"}},{"$f":"COST_PS4!I107","v":{"$error":"#DIV/0!"}},{"$f":"COST_PS4!K107","v":{"$error":"#DIV/0!"}},{"$f":"COST_PS4!M107","v":{"$error":"#DIV/0!"}}]
[null,null,{"$f":"title499","v":"Digester size"},{"$f":"title504","v":"Volume Reactor"},"m3",null,null,null,null,{"$f":"Planner_PS4!AD$134","v":{"$error":"#DIV/0!"}},{"$f":"Planner_PS4!AE$134","v":{"$error":"#DIV/0!"}},{"$f":"Planner_PS4!AF$134","v":{"$error":"#DIV/0!"}},{"$f":"Planner_PS4!AG$134","v":{"$error":"#DIV/0!"}}]
[]
[null,null,{"$f":"title509","v":"Pretreatment"}]
[null,1,{"$f":"title510","v":"Other (Hygenization, crushing, homogenization)"},{"$f":"\"USD/m3 \"&title512","v":"USD/m3 BIOGAS"},10.8,2006,135.30000000000001,{"$f":"'Data entry needs'!$L$121/$G21","v":0},{"$f":"E21*B21*$H21","v":0},{"$f":"$I21*J$18","v":{"$error":"#DIV/0!"}},{"$f":"$J21*(K$18/$J$18)^$D$6","v":{"$error":"#DIV/0!"}},{"$f":"$J21*(L$18/$J$18)^$D$6","v":{"$error":"#DIV/0!"}},{"$f":"$J21*(M$18/$J$18)^$D$6","v":{"$error":"#DIV/0!"}}]
[null,1,{"$f":"title511","v":"Pre-processing equipment"},{"$f":"\"USD/t \"&LOWER(title109)","v":"USD/t feedstock"},{"$f":"450000/100000","v":4.5},2006,135.30000000000001,{"$f":"'Data entry needs'!$L$121/$G22","v":0},{"$f":"E22*B22*$H22","v":0},{"$f":"$I22*J$14","v":{"$error":"#DIV/0!"}},{"$f":"$J22*(K$14/$J$14)^$D$6","v":{"$error":"#DIV/0!"}},{"$f":"$J22*(L$14/$J$14)^$D$6","v":{"$error":"#DIV/0!"}},{"$f":"$J22*(M$14/$J$14)^$D$6","v":{"$error":"#DIV/0!"}}]
[null,null,null,null,{"$f":"title269","v":"Subtotal"},{"$f":"title269","v":"Subtotal"},null,null,null,{"$f":"SUM(J21:J22)","v":{"$error":"#DIV/0!"}},{"$f":"SUM(K21:K22)","v":{"$error":"#DIV/0!"}},{"$f":"SUM(L21:L22)","v":{"$error":"#DIV/0!"}},{"$f":"SUM(M21:M22)","v":{"$error":"#DIV/0!"}}]
[null,null,{"$f":"title280","v":"Equipments"}]
[null,{"$f":"IF(COST_PS4!$L$10=\"CSTR\",1,0)","v":1},{"$f":"title513","v":"Digester CSTR"},{"$f":"\"USD/m3 \"&title512","v":"USD/m3 BIOGAS"},{"$f":"174.56112313391/1","v":174.56112313391},2006,135.30000000000001,{"$f":"'Data entry needs'!$L$121/$G25","v":0},{"$f":"E25*B25*$H25","v":0},{"$f":"$I25*J$18^$D$6","v":{"$error":"#DIV/0!"}},{"$f":"$J25*(K$18/$J$18)^$D$6","v":{"$error":"#DIV/0!"}},{"$error":"#DIV/0!"},{"$error":"#DIV/0!"}]
[null,{"$f":"IF(COST_PS4!$L$10=\"uasb\",1,0)","v":0},{"$f":"title514","v":"Digester UASB"},"USD/m3 BIOGAS",{"$f":"608.409048874878/1","v":608.40904887487795},2006,135.30000000000001,{"$f":"'Data entry needs'!$L$121/$G26","v":0},0,{"$f":"$I26*J$18^$D$6","v":{"$error":"#DIV/0!"}},{"$error":"#DIV/0!"},{"$error":"#DIV/0!"},{"$error":"#DIV/0!"}]
[null,{"$f":"IF(COST_PS4!$L$10=title530,1,0)","v":0},{"$f":"title515","v":"Digester Plug Flow"},"USD/m3 BIOGAS",{"$f":"20804*Planner_PS4!$AG$107/24","v":{"$error":"#DIV/0!"}},2008,157.69999999999999,{"$f":"'Data entry needs'!$L$121/$G27","v":0},{"$error":"#DIV/0!"},{"$error":"#DIV/0!"},{"$error":"#DIV/0!"},{"$error":"#DIV/0!"},{"$error":"#DIV/0!"}]
[null,{"$f":"IF(COST_PS4!$L$10=title531,1,0)","v":0},{"$f":"title516","v":"Digester Batch"},"USD/m3 BIOGAS",{"$f":"E25/3","v":58.187041044636665},2009,138.9,{"$f":"'Data entry needs'!$L$121/$G28","v":0},0,{"$error":"#DIV/0!"},{"$error":"#DIV/0!"},{"$error":"#DIV/0!"},{"$error":"#DIV/0!"}]
[null,1,{"$f":"title517","v":"Effluence storage pool"},"USD/m3 BIOGAS",87.06,2010,146.4,{"$f":"'Data entry needs'!$L$121/$G29","v":0},0,{"$error":"#DIV/0!"},{"$error":"#DIV/0!"},{"$error":"#DIV/0!"},{"$error":"#DIV/0!"}]
[null,1,{"$f":"title518","v":"Buffer tank"},"USD/m3 BIOGAS",{"$f":"0.9/0.3048^3/2","v":15.891600024669863},2010,146.4,{"$f":"'Data entry needs'!$L$121/$G30","v":0},0,{"$error":"#DIV/0!"},{"$f":"$I30*K$18","v":{"$error":"#DIV/0!"}},{"$f":"$I30*L$18","v":{"$error":"#DIV/0!"}},{"$f":"$I30*M$18","v":{"$error":"#DIV/0!"}}]
[null,1,{"$f":"title519","v":"Odor Control System"},{"$f":"\"USD/t \"&LOWER(title109)","v":"USD/t feedstock"},{"$f":"85000/20000","v":4.25},2010,146.4,{"$f":"'Data entry needs'!$L$121/$G31","v":0},0,{"$f":"$I31*J$14^$D$6","v":{"$error":"#DIV/0!"}},{"$f":"$J31*(K$14/$J$14)^$D$6","v":{"$error":"#DIV/0!"}},{"$error":"#DIV/0!"},{"$error":"#DIV/0!"}]
[null,1,{"$f":"title520","v":"Metering Pumps"},{"$f":"\"USD/t \"&LOWER(title109)","v":"USD/t feedstock"},{"$f":"40000/20000","v":2},2010,146.4,{"$f":"'Data entry needs'!$L$121/$G32","v":0},0,{"$f":"$I32*J$14^$D$6","v":{"$error":"#DIV/0!"}},{"$error":"#DIV/0!"},{"$error":"#DIV/0!"},{"$error":"#DIV/0!"}]
[null,1,{"$f":"title521","v":"Pumps"},{"$f":"\"USD/t \"&LOWER(title109)","v":"USD/t feedstock"},{"$f":"90000/20000","v":4.5},2010,146.4,{"$f":"'Data entry needs'!$L$121/$G33","v":0},0,{"$error":"#DIV/0!"},{"$error":"#DIV/0!"},{"$error":"#DIV/0!"},{"$error":"#DIV/0!"}]
[null,1,{"$f":"title522","v":"Trommel screen"},{"$f":"\"USD/t \"&LOWER(title109)","v":"USD/t feedstock"},{"$f":"110000/20000","v":5.5},2010,146.4,{"$f":"'Data entry needs'!$L$121/$G34","v":0},0,{"$error":"#DIV/0!"},{"$error":"#DIV/0!"},{"$error":"#DIV/0!"},{"$error":"#DIV/0!"}]
[null,1,{"$f":"title523","v":"Mixers"},{"$f":"\"USD/t \"&LOWER(title109)","v":"USD/t feedstock"},{"$f":"40000/20000","v":2},2010,146.4,{"$f":"'Data entry needs'!$L$121/$G35","v":0},0,{"$f":"$I35*J$14^$D$6","v":{"$error":"#DIV/0!"}},{"$error":"#DIV/0!"},{"$error":"#DIV/0!"},{"$error":"#DIV/0!"}]
[null,1,{"$f":"title524","v":"Post digestion tank (for gravity separation)"},{"$f":"\"USD/m3 \"&title512","v":"USD/m3 BIOGAS"},{"$f":"0.9/0.3048^3/2","v":15.891600024669863},2010,146.4,{"$f":"'Data entry needs'!$L$121/$G36","v":0},0,{"$f":"$I36*J$18^$D$6","v":{"$error":"#DIV/0!"}},{"$f":"$J36*(K$18/$J$18)^$D$6","v":{"$error":"#DIV/0!"}},{"$f":"$J36*(L$18/$J$18)^$D$6","v":{"$error":"#DIV/0!"}},{"$f":"$J36*(M$18/$J$18)^$D$6","v":{"$error":"#DIV/0!"}}]
[null,1,{"$f":"title525","v":"Gas collection equipment"},{"$f":"\"USD/t \"&LOWER(title109)","v":"USD/t feedstock"},{"$f":"75000/10000","v":7.5},2010,146.4,{"$f":"'Data entry needs'!$L$121/$G37","v":0},0,{"$f":"$I37*J$14^$D$6","v":{"$error":"#DIV/0!"}},{"$f":"$J37*(K$14/$J$14)^$D$6","v":{"$error":"#DIV/0!"}},{"$f":"$J37*(L$14/$J$14)^$D$6","v":{"$error":"#DIV/0!"}},{"$f":"$J37*(M$14/$J$14)^$D$6","v":{"$error":"#DIV/0!"}}]
[null,1,{"$f":"title526","v":"Desulfurizing tower"},{"$f":"\"USD/m3 \"&title512","v":"USD/m3 BIOGAS"},0.9,2010,146.4,{"$f":"'Data entry needs'!$L$121/$G38","v":0},0,{"$f":"$I38*J$18^$D$6","v":{"$error":"#DIV/0!"}},{"$f":"$J38*(K$18/$J$18)^$D$6","v":{"$error":"#DIV/0!"}},{"$f":"$J38*(L$18/$J$18)^$D$6","v":{"$error":"#DIV/0!"}},{"$f":"$J38*(M$18/$J$18)^$D$6","v":{"$error":"#DIV/0!"}}]
[null,{"$f":"IF('Biogas Use Selection'!$P$67=1,1,0)","v":1},{"$f":"title527","v":"Microturbines (30-500 kW)"},"USD/kW",{"$f":"AVERAGE(300,1000)","v":650},2007,141,{"$f":"'Data entry needs'!$L$121/$G39","v":0},0,{"$f":"$I39*J$9^$D$6","v":0},{"$f":"$J39*(K$9/$J$9)^$D$6","v":0}]
[null,{"$f":"IF('Biogas Use Selection'!$P$67=1,1,0)","v":1},{"$f":"title528","v":"Combustion Turbine (500 kW - 50 MW)"},"USD/kW",{"$f":"AVERAGE(300,1000)","v":650},2007,141,{"$f":"'Data entry needs'!$L$121/$G40","v":0},0,null,null,{"$f":"$I40*J9*(L$9/$J$9)^$D$6","v":0},{"$f":"$I40*J9*(M$9/$J$9)^$D$6","v":0}]
[null,{"$f":"IF('Biogas Use Selection'!$P$67=3,1,0)","v":0},{"$f":"title529","v":"Reciprocating Engine (5 kW - 7 MW)"},"USD/kW",{"$f":"AVERAGE(300,900)","v":600},2007,141,{"$f":"'Data entry needs'!$L$121/$G41","v":0},0,{"$f":"$I41*J$9^$D$6","v":0},{"$f":"$J41*(K$9/$J$9)^$D$6","v":0},{"$f":"$J41*(L$9/$J$9)^$D$6","v":0},{"$f":"$J41*(M$9/$J$9)^$D$6","v":0}]
[null,null,null,null,{"$f":"title269","v":"Subtotal"},{"$f":"title269","v":"Subtotal"},null,null,null,{"$f":"SUM(J25:J41)","v":{"$error":"#DIV/0!"}},{"$f":"SUM(K25:K41)","v":{"$error":"#DIV/0!"}},{"$f":"SUM(L25:L41)","v":{"$error":"#DIV/0!"}},{"$f":"SUM(M25:M41)","v":{"$error":"#DIV/0!"}}]
[]
[null,null,{"$f":"title281","v":"Building"}]
[null,1,{"$f":"title532","v":"Building  w/slab"},{"$f":"\"USD/t \"&LOWER(title109)","v":"USD/t feedstock"},{"$f":"640000/100000","v":6.4},2010,146.4,{"$f":"'Data entry needs'!$L$121/$G45","v":0},{"$f":"E45*B45*$H45","v":0},{"$f":"$I45*J$14^$D$6","v":{"$error":"#DIV/0!"}},{"$f":"$J45*(K$18/$J$18)^$D$6","v":{"$error":"#DIV/0!"}},{"$error":"#DIV/0!"},{"$error":"#DIV/0!"}]
[null,1,{"$f":"title533","v":"50' Truck weighing scales"},{"$f":"\"USD/t \"&LOWER(title109)","v":"USD/t feedstock"},{"$f":"32700/10000","v":3.27},2010,146.4,{"$f":"'Data entry needs'!$L$121/$G46","v":0},0,{"$f":"$I46*J$14^$D$6","v":{"$error":"#DIV/0!"}},{"$error":"#DIV/0!"},{"$error":"#DIV/0!"},{"$error":"#DIV/0!"}]
[null,1,{"$f":"title534","v":"Foundation for scales inclu. Const."},{"$f":"\"USD/t \"&LOWER(title109)","v":"USD/t feedstock"},{"$f":"20000/10000","v":2},2010,146.4,{"$f":"'Data entry needs'!$L$121/$G47","v":0},0,{"$error":"#DIV/0!"},{"$error":"#DIV/0!"},{"$error":"#DIV/0!"},{"$error":"#DIV/0!"}]
[null,1,{"$f":"title535","v":"Front-End Loader"},{"$f":"\"USD/t \"&LOWER(title109)","v":"USD/t feedstock"},{"$f":"118000/20000","v":5.9},2010,146.4,{"$f":"'Data entry needs'!$L$121/$G48","v":0},0,{"$error":"#DIV/0!"},{"$error":"#DIV/0!"},{"$error":"#DIV/0!"},{"$error":"#DIV/0!"}]
[null,1,{"$f":"title536","v":"Solids drying area concrete slab"},{"$f":"\"USD/t \"&LOWER(title109)","v":"USD/t feedstock"},{"$f":"30*6400/20000","v":9.6},2010,146.4,{"$f":"'Data entry needs'!$L$121/$G49","v":0},0,{"$error":"#DIV/0!"},{"$error":"#DIV/0!"},{"$error":"#DIV/0!"},{"$error":"#DIV/0!"}]
[null,null,null,null,{"$f":"title269","v":"Subtotal"},{"$f":"title269","v":"Subtotal"},null,null,null,{"$f":"SUM(J45:J49)","v":{"$error":"#DIV/0!"}},{"$f":"SUM(K45:K49)","v":{"$error":"#DIV/0!"}},{"$f":"SUM(L45:L49)","v":{"$error":"#DIV/0!"}},{"$f":"SUM(M45:M49)","v":{"$error":"#DIV/0!"}}]
[null,null,{"$f":"title462","v":"Installation"}]
[null,{"$f":"IF(OR('Biogas Use Selection'!$P$67=1,'Biogas Use Selection'!$P$67=3),1,0)","v":1},{"$f":"title537","v":"Connection and earthing"},"USD/kW",27.142857142857142,2010,146.4,{"$f":"'Data entry needs'!$L$121/$G52","v":0},{"$f":"E52*B52*$H52","v":0},{"$f":"$I52*J$9^$D$6","v":0},{"$f":"$J52*(K$9/$J$9)^$D$6","v":0},{"$f":"$J52*(L$9/$J$9)^$D$6","v":0},{"$f":"$J52*(M$9/$J$9)^$D$6","v":0}]
[null,1,{"$f":"title538","v":"Land Preparation"},{"$f":"\"USD/t \"&LOWER(title109)","v":"USD/t feedstock"},{"$f":"87120/10000","v":8.7119999999999997},2010,146.4,{"$f":"'Data entry needs'!$L$121/$G53","v":0},0,{"$f":"$I53*J$14^$D$6","v":{"$error":"#DIV/0!"}},{"$f":"$J53*(K$18/$J$18)^$D$6","v":{"$error":"#DIV/0!"}},{"$f":"$J53*(L$18/$J$18)^$D$6","v":{"$error":"#DIV/0!"}},{"$f":"$J53*(M$18/$J$18)^$D$6","v":{"$error":"#DIV/0!"}}]
[null,{"$f":"IF(COST_PS4!$L$10=\"CSTR\",1,0)","v":1},{"$f":"title539","v":"Installation CSTR"},{"$f":"\"USD/m3 \"&title545","v":"USD/m3 ch4/year"},7.4000000000000003E-3,2010,146.4,{"$f":"'Data entry needs'!$L$121/$G54","v":0},0,{"$f":"$I54*J$7^$D$6","v":0},{"$f":"$J54*(K$7/$J$7)^$D$6","v":{"$error":"#DIV/0!"}},{"$error":"#DIV/0!"},{"$error":"#DIV/0!"}]
[null,{"$f":"IF(COST_PS4!$L$10=\"uasb\",1,0)","v":0},{"$f":"title540","v":"Installation UASB"},{"$f":"\"USD/m3 \"&title545","v":"USD/m3 ch4/year"},5.5000000000000005E-3,2010,146.4,{"$f":"'Data entry needs'!$L$121/$G55","v":0},0,{"$f":"$I55*J$7^$D$6","v":0},{"$error":"#DIV/0!"},{"$error":"#DIV/0!"},{"$error":"#DIV/0!"}]
[null,{"$f":"IF(COST_PS4!$L$10=title530,1,0)","v":0},{"$f":"title541","v":"Installation Plug Flow"},{"$f":"\"USD/m3 \"&title545","v":"USD/m3 ch4/year"},3.2291666666666662E-3,2010,146.4,{"$f":"'Data entry needs'!$L$121/$G56","v":0},0,0,{"$error":"#DIV/0!"},{"$error":"#DIV/0!"},{"$error":"#DIV/0!"}]
[null,{"$f":"IF(COST_PS4!$L$10=title531,1,0)","v":0},{"$f":"title542","v":"Installation Batch"},{"$f":"\"USD/m3 \"&title545","v":"USD/m3 ch4/year"},3.7000000000000002E-3,2010,146.4,{"$f":"'Data entry needs'!$L$121/$G57","v":0},0,0,{"$error":"#DIV/0!"},{"$error":"#DIV/0!"},{"$error":"#DIV/0!"}]
[null,1,{"$f":"title543","v":"Infrastructure (fencing) "},{"$f":"\"USD/t \"&LOWER(title109)","v":"USD/t feedstock"},{"$f":"46170/10000","v":4.617},2010,146.4,{"$f":"'Data entry needs'!$L$121/$G58","v":0},0,{"$f":"$I58*J$14^$D$6","v":{"$error":"#DIV/0!"}},{"$f":"$J58*(K$18/$J$18)^$D$6","v":{"$error":"#DIV/0!"}},{"$error":"#DIV/0!"},{"$error":"#DIV/0!"}]
[null,1,{"$f":"title544","v":"Infrastructure (roads) ($/ft2)"},{"$f":"\"USD/t \"&LOWER(title109)","v":"USD/t feedstock"},{"$f":"60000/10000","v":6},2010,146.4,{"$f":"'Data entry needs'!$L$121/$G59","v":0},0,{"$f":"$I59*J$14^$D$6","v":{"$error":"#DIV/0!"}},{"$error":"#DIV/0!"},{"$error":"#DIV/0!"},{"$error":"#DIV/0!"}]
[null,null,null,null,{"$f":"title269","v":"Subtotal"},{"$f":"title269","v":"Subtotal"},null,null,null,{"$f":"SUM(J52:J59)","v":{"$error":"#DIV/0!"}},{"$f":"SUM(K52:K59)","v":{"$error":"#DIV/0!"}},{"$f":"SUM(L52:L59)","v":{"$error":"#DIV/0!"}},{"$f":"SUM(M52:M59)","v":{"$error":"#DIV/0!"}}]
[null,null,{"$f":"title546","v":"Electricity Distribution network"}]
[null,{"$f":"IF(OR('Biogas Use Selection'!$P$67=1,'Biogas Use Selection'!$P$67=3),1,0)","v":1},{"$f":"title547","v":" Primary electricity cable"},"USD/m",7.4539999999999997,2010,146.4,{"$f":"'Data entry needs'!$L$121/$G62","v":0},{"$f":"E62*B62*$H62","v":0},{"$f":"+J$16*$I62","v":0},{"$f":"+K$16*$I62","v":0},{"$f":"+L$16*$I62","v":0},{"$f":"+M$16*$I62","v":0}]
[null,{"$f":"IF(OR('Biogas Use Selection'!$P$67=1,'Biogas Use Selection'!$P$67=3),1,0)","v":1},{"$f":"title548","v":"Secondary cable, installation and meter"},{"$f":"title557","v":"USD/household"},164,2010,146.4,{"$f":"'Data entry needs'!$L$121/$G63","v":0},0,{"$f":"$I$63*J$12","v":0},{"$f":"$I$63*K$12","v":0},{"$f":"$I$63*L$12","v":0},{"$f":"$I$63*M$12","v":0}]
[null,null,null,null,{"$f":"title269","v":"Subtotal"},{"$f":"title269","v":"Subtotal"},null,null,null,{"$f":"SUM(J62:J63)","v":0},{"$f":"SUM(K62:K63)","v":0},{"$f":"SUM(L62:L63)","v":0},{"$f":"SUM(M62:M63)","v":0}]
[null,null,{"$f":"title549","v":"Heat Distribution System"}]
[null,{"$f":"IF('Biogas Use Selection'!$P$67=1,1,0)","v":1},{"$f":"title550","v":"Dwelling System"},"USD/MJ",1.4222435477483325E-3,2008,135.30000000000001,{"$f":"'Data entry needs'!$L$121/$G66","v":0},{"$f":"E66*B66*$H66","v":0},{"$f":"$I$66*J17*1000","v":{"$error":"#DIV/0!"}},{"$f":"$J66*(K$17/$J$17)^$D$6","v":{"$error":"#DIV/0!"}},{"$f":"$J66*(L$17/$J$17)^$D$6","v":{"$error":"#DIV/0!"}},{"$f":"$J66*(M$17/$J$17)^$D$6","v":{"$error":"#DIV/0!"}}]
[null,null,null,null,{"$f":"title269","v":"Subtotal"},{"$f":"title269","v":"Subtotal"},null,null,null,{"$f":"SUM(J66:J66)","v":{"$error":"#DIV/0!"}},{"$f":"SUM(K66:K66)","v":{"$error":"#DIV/0!"}},{"$f":"SUM(L66:L66)","v":{"$error":"#DIV/0!"}},{"$f":"SUM(M66:M66)","v":{"$error":"#DIV/0!"}}]
[null,null,{"$f":"title551","v":"Biogas Distribution System"}]
[null,{"$f":"IF(AND('Biogas Use Selection'!$P$67=2,NOT('Biogas Use Selection'!K35),'Biogas Use Selection'!$J$35=title75),1,0)","v":0},{"$f":"title552","v":"Pipe system (Biogas distribution)"},{"$f":"title557","v":"USD/household"},52.63,2006,135.30000000000001,{"$f":"'Data entry needs'!$L$121/$G69","v":0},{"$f":"E69*B69*$H69","v":0},{"$f":"$I69*J$13","v":0},{"$f":"$I69*K$13","v":0},{"$f":"$I69*L$13","v":0},{"$f":"$I69*M$13","v":0}]
[null,{"$f":"IF(AND('Biogas Use Selection'!$P$67=4,'Biogas Use Selection'!$E$56),1,0)","v":0},{"$f":"title553","v":"Pipe system (BIOMETHANE distribution)"},"USD/m",{"$f":"AVERAGE(100000,250000)/1609.344","v":108.73995864153345},2006,135.30000000000001,{"$f":"'Data entry needs'!$L$121/$G70","v":0},0,{"$f":"$I$70*'Biogas Use Selection'!$E$58*1000","v":0},{"$f":"$I$70*'Biogas Use Selection'!$E$58*1000","v":0},{"$f":"$I$70*'Biogas Use Selection'!$E$58*1000","v":0},{"$f":"$I$70*'Biogas Use Selection'!$E$58*1000","v":0}]
[null,null,null,null,{"$f":"title269","v":"Subtotal"},{"$f":"title269","v":"Subtotal"},null,null,null,{"$f":"SUM(J69:J70)","v":0},{"$f":"SUM(K69:K70)","v":0},{"$f":"SUM(L69:L70)","v":0},{"$f":"SUM(M69:M70)","v":0}]
[null,null,{"$f":"title554","v":"Upgrade and connection to natural gas"}]
[null,{"$f":"IF(OR('Biogas Use Selection'!$P$67=4,'Biogas Use Selection'!$P$67=5),1,0)","v":0},{"$f":"title555","v":"Biogas Upgrading, Testing, and Injection Systems "},{"$f":"title558","v":"USD/m3/year"},1.2209860833884656,2009,138.9,{"$f":"'Data entry needs'!$L$121/$G73","v":0},{"$f":"E73*B73*$H73","v":0},{"$f":"+J$7*$I73/Planner_PS4!$AG$107","v":{"$error":"#DIV/0!"}},{"$f":"$J73*(K$7/$J$7)^$D$6","v":{"$error":"#DIV/0!"}},{"$error":"#DIV/0!"},{"$error":"#DIV/0!"}]
[null,{"$f":"IF('Biogas Use Selection'!$P$67=4,1,0)","v":0},{"$f":"title556","v":"Connection to Utility Natural Gas Pipeline"},{"$f":"title558","v":"USD/m3/year"},0.26298161796059261,2010,146.4,{"$f":"'Data entry needs'!$L$121/$G74","v":0},0,{"$f":"+J$7*$I74/Planner_PS4!$AG$107","v":{"$error":"#DIV/0!"}},{"$error":"#DIV/0!"},{"$error":"#DIV/0!"},{"$error":"#DIV/0!"}]
[null,null,null,null,{"$f":"title269","v":"Subtotal"},{"$f":"title269","v":"Subtotal"},null,null,null,{"$f":"SUM(J73:J74)","v":{"$error":"#DIV/0!"}},{"$f":"SUM(K73:K74)","v":{"$error":"#DIV/0!"}},{"$f":"SUM(L73:L74)","v":{"$error":"#DIV/0!"}},{"$f":"SUM(M73:M74)","v":{"$error":"#DIV/0!"}}]

{"sheet":"PRICE_FS1_PS4","index":55,"n_rows":178,"n_cols":39,"rows_kept":178,"cut":false,"hidden":true,"merged":[[40,8,40,9],[2,2,2,9],[5,2,5,3],[5,4,5,6],[7,2,10,9],[14,6,14,7],[15,2,15,3],[15,6,15,7],[30,3,30,7],[33,4,34,4],[33,5,34,5],[33,6,34,9],[34,2,34,3],[64,9,66,9],[86,3,86,7],[41,8,41,9],[57,3,57,7],[61,4,61,5],[61,6,62,6],[62,4,62,5],[64,2,64,3],[64,4,64,5],[64,6,66,6],[64,7,66,7],[64,8,66,8]]}
[75,88]
[]
[null,null,{"$f":"+title324&UPPER(INDIRECT(\"'Data entry needs'!$d$\"&$A$1)&\"-\"&INDIRECT(\"'Data entry needs'!$e$\"&$A$1))","v":"COLLECTION COSTS CALCULATOR FOR PLEASE SELECT-PLEASE SELECT"}]
[]
[]
[null,null,{"$f":"title193","v":"Use white cells to input data"},null,{"$f":"title194","v":"Grey cells are used for calculations"}]
[]
[null,null,{"$f":"title325&INDIRECT(\"'Data entry needs'!$d$\"&$A$1)&title326","v":"No collection method is required. It is assumed that Please Select are already collected. Then, transportation cost and/or market price should be considered."}]
[]
[]
[]
[]
[null,null,{"$f":"title327","v":"Collection Method 1 - Biomass spread in the field"}]
[]
[null,null,{"$f":"title328","v":"Collecting method"},null,{"$f":"title329","v":"Biomass Yield"},null,{"$f":"title110","v":"Feedstock Available (t/year)"},null,{"$f":"title330","v":"Collection days"}]
[null,null,"Mechanized",null,null,"t/ha",{"$f":"INDIRECT(\"'Data entry needs'!$F$\"&$A$1)","v":0},null,{"$f":"'Data entry needs'!L100-INDIRECT(\"Planner_pS4!$AN$\"&$B$1)*21","v":-252}]
[]
[null,null,{"$f":"title331","v":"Biomass Collection definition"}]
[]
[null,null,{"$f":"title332","v":"Biomass Price Definition"},null,null,null,null,null,null,null,null,null,null,null,null,null,null,null,null,null,null,{"$f":"title405","v":"Collection method"},null,{"$f":"title382","v":"Mechanized"},{"$f":"title380","v":"Number of skilled workers"},{"$f":"title409","v":"person-hour/ha"}]
[null,null,{"$f":"title333","v":"Labour cost"},{"$f":"title270","v":"Quantity"},{"$f":"title27","v":"Unit"},{"$f":"title270","v":"Quantity"},null,{"$f":"title27","v":"Unit"},"Total",{"$f":"title27","v":"Unit"},null,null,null,null,null,null,null,null,null,null,null,{"$f":"$C$16","v":"Mechanized"},null,{"$f":"title382&2","v":"Mechanized2"},{"$f":"title336","v":"Skilled labour wage"},{"$f":"title128","v":"USD/person-hour"}]
[null,null,{"$f":"IFERROR(VLOOKUP($V$21&$W21,$X$20:$Z$31,2,FALSE),\"\")","v":"Number of skilled workers"},null,{"$f":"IFERROR(VLOOKUP($V$21&$W21,$X$20:$Z$31,3,FALSE),\"\")","v":"person-hour/ha"},{"$f":"IFERROR(VLOOKUP($V$21&$W23,$X$20:$Z$31,2,FALSE),\"\")","v":"Skilled labour wage"},{"$f":"IF(F22=\"\",\"\",IF(F22=title335,'Data entry needs'!$L$96,IF(F22=title336,'Data entry needs'!F96)))","v":0},{"$f":"IFERROR(VLOOKUP($V$21&$W23,$X$20:$Z$31,3,FALSE),\"\")","v":"USD/person-hour"},{"$f":"IFERROR(G22*D22*(G16/E16)*('Data entry needs'!$L$100/$I$16),0)","v":0},{"$f":"IF(C22=\"\",\"\",title319)","v":"USD/year"},null,null,null,null,null,null,null,null,null,null,null,null,1,{"$f":"title382&4","v":"Mechanized4"},{"$f":"title407","v":"Average fuel economy"},"l/h"]
[null,null,{"$f":"IFERROR(VLOOKUP($V$21&$W22,$X$20:$Z$31,2,FALSE),\"\")","v":""},null,{"$f":"IFERROR(VLOOKUP($V$21&$W22,$X$20:$Z$31,3,FALSE),\"\")","v":""},{"$f":"IFERROR(VLOOKUP($V$21&$W24,$X$20:$Z$31,2,FALSE),\"\")","v":""},{"$f":"IF(F23=\"\",\"\",'Data entry needs'!L96)","v":""},{"$f":"title128","v":"USD/person-hour"},{"$f":"IFERROR(G23*D23*(G16/E16)*('Data entry needs'!$L$100/$I$16),0)","v":0},{"$f":"IF(C23=\"\",\"\",title319)","v":""},null,null,null,null,null,null,null,null,null,null,null,{"$f":"VLOOKUP($V$21,$T$29:$U$31,2,FALSE)","v":1},2,{"$f":"title382&5","v":"Mechanized5"},{"$f":"title408","v":"Fuel price"},"USD/l"]
[null,null,null,{"$f":"+IF(AND(C22=\"\",C23=\"\"),0,IF(C22=\"\",D23,IF(C23=\"\",D22,D22+D23)))","v":0},null,null,null,{"$f":"title269","v":"Subtotal"},{"$f":"+SUMIF($I$22:$I$23,\">0\")","v":0},{"$f":"title319","v":"USD/year"},null,null,null,null,null,null,null,null,null,null,null,null,3,{"$f":"title378","v":"Semi-mechanized"},{"$f":"title380","v":"Number of skilled workers"},{"$f":"title409","v":"person-hour/ha"}]
[null,null,{"$f":"title334","v":"Machinery & operating cost"},{"$f":"title270","v":"Quantity"},{"$f":"title27","v":"Unit"},{"$f":"title270","v":"Quantity"},null,{"$f":"title27","v":"Unit"},"Total",{"$f":"title27","v":"Unit"},null,null,null,null,null,null,null,null,null,null,null,null,4,{"$f":"title378&1","v":"Semi-mechanized1"},{"$f":"title379","v":"Number of unskilled workers"},{"$f":"title409","v":"person-hour/ha"}]
[null,null,{"$f":"IFERROR(VLOOKUP($V$21&$W25,$X$20:$Z$31,2,FALSE),\"\")","v":"Average fuel economy"},null,{"$f":"IFERROR(VLOOKUP($V$21&$W25,$X$20:$Z$31,3,FALSE),\"\")","v":"l/h"},{"$f":"IFERROR(VLOOKUP($V$21&$W26,$X$20:$Z$31,2,FALSE),\"\")","v":"Fuel price"},{"$f":"IF(F26=\"\",\"\",'Data entry needs'!$F$100)","v":0},{"$f":"+IFERROR(VLOOKUP($V$21&$W26,$X$20:$Z$31,3,FALSE),\"\")","v":"USD/l"},{"$f":"+IFERROR(D26*G26*IF($C$16=title337,0,$D$22*G16/E16)*('Data entry needs'!$L$100/$I$16),\"\")","v":""},{"$f":"IF(C26=\"\",\"\",title319)","v":"USD/year"},null,null,null,null,null,null,null,null,null,null,null,null,5,{"$f":"title378&2","v":"Semi-mechanized2"},{"$f":"title336","v":"Skilled labour wage"},{"$f":"title128","v":"USD/person-hour"}]
[null,null,null,null,null,null,null,{"$f":"IF(C26=\"\",\"\",title269)","v":"Subtotal"},{"$f":"+I26","v":""},{"$f":"IF(C26=\"\",\"\",title319)","v":"USD/year"},null,null,null,null,null,null,null,null,null,null,null,null,null,{"$f":"title378&3","v":"Semi-mechanized3"},{"$f":"title335","v":"Unskilled labour wage"},{"$f":"title128","v":"USD/person-hour"}]
[null,null,null,null,null,null,null,{"$f":"IF(C26=\"\",\"\",\"Total\")","v":"Total"},{"$f":"IFERROR(I24+I27,I24)","v":0},{"$f":"title319","v":"USD/year"},null,null,null,null,null,null,null,null,null,{"$f":"title405","v":"Collection method"},null,null,null,{"$f":"title378&4","v":"Semi-mechanized4"},{"$f":"title407","v":"Average fuel economy"},"l/h"]
[null,null,null,null,null,null,null,null,null,null,null,null,null,null,null,null,null,null,null,{"$f":"title382","v":"Mechanized"},1,null,null,{"$f":"title378&5","v":"Semi-mechanized5"},{"$f":"title408","v":"Fuel price"},"USD/l"]
[null,null,null,null,null,null,null,null,"",null,null,null,null,null,null,null,null,null,null,{"$f":"title378","v":"Semi-mechanized"},2,null,null,{"$f":"title337","v":"Manual"},{"$f":"title379","v":"Number of unskilled workers"},{"$f":"title409","v":"person-hour/ha"}]
[null,null,null,{"$f":"title338&INDIRECT(\"'Data entry needs'!$d$\"&$A$1)&\"-\"&INDIRECT(\"'Data entry needs'!$e$\"&$A$1)","v":"Collection cost of Please Select-Please Select"},null,null,null,null,{"$f":"(I24+I28)/$G$16","v":{"$error":"#DIV/0!"}},"USD/t",null,null,null,null,null,null,null,null,null,{"$f":"title337","v":"Manual"},3,null,null,{"$f":"title337&2","v":"Manual2"},{"$f":"title335","v":"Unskilled labour wage"},{"$f":"title128","v":"USD/person-hour"}]
[]
[]
[null,null,null,null,false,null,{"$f":"IF($E$34,title340,title341)","v":"Use this method for feedstock collected and transported from different farms to a central collection point"}]
[null,null,{"$f":"title339","v":"Collection Methods Available"}]
[]
[null,null,{"$f":"title342","v":"Collection Method 2"}]
[]
[null,null,{"$f":"title328","v":"Collecting method"},{"$f":"title343","v":"Transportation requirements"},null,null,null,null,{"$f":"title346","v":"Data Source"}]
[]
[null,null,"Please Select",{"$f":"title110","v":"Feedstock Available (t/year)"},{"$f":"INDIRECT(\"'Data entry needs'!$F$\"&$A$1)","v":0},{"$f":"title344","v":"Initial ts in residue (%)"},null,{"$f":"INDIRECT(\"'Data entry needs'!$h$\"&$A$1)","v":0},false]
[null,null,null,{"$f":"title134","v":"Operating days per year"},{"$f":"'Data entry needs'!L100-INDIRECT(\"Planner_pS4!$AN$\"&$B$1)*21","v":-252},{"$f":"title345&$C$41","v":"ts (%) allowed by Please Select"},null,{"$f":"Q45","v":{"$error":"#N/A"}}]
[]
[null,null,{"$f":"title347","v":"Collection Cost Definition"}]
[null,null,{"$f":"title348","v":"Operation Cost"},{"$f":"title270","v":"Quantity"},{"$f":"title27","v":"Unit"},{"$f":"title270","v":"Quantity"},{"$f":"title27","v":"Unit"},{"$f":"title267","v":"Unit Price"},"Total",null,null,null,null,null,null,"ts (%) transported",{"$f":"VLOOKUP($C$41,$P$149:$V$155,7,FALSE)","v":{"$error":"#N/A"}}]
[null,null,{"$f":"title35","v":"Electricity"},{"$f":"Q46","v":13.333333333333334},"kWh/t res",{"$f":"D46*E41","v":0},{"$f":"title304","v":"kWh/year"},{"$f":"'Data entry needs'!$L$92","v":0},{"$f":"F46*H46","v":0},{"$f":"title319","v":"USD/year"},null,null,null,null,null,{"$f":"title35","v":"Electricity"},{"$f":"$Q$160","v":13.333333333333334}]
[null,null,{"$f":"title170","v":"Diesel"},{"$f":"Q47","v":{"$error":"#N/A"}},{"$f":"title574","v":"l diesel/t res"},{"$f":"D47*$E$41","v":{"$error":"#N/A"}},{"$f":"title350","v":"Liter Diesel/year"},{"$f":"'Data entry needs'!$F$100","v":0},{"$f":"F47*H47","v":{"$error":"#N/A"}},{"$f":"title319","v":"USD/year"},null,null,null,null,null,{"$f":"title170","v":"Diesel"},{"$f":"VLOOKUP($C$41,$P$149:$S$155,2,FALSE)","v":{"$error":"#N/A"}}]
[null,null,{"$f":"title244","v":"Water Make-up "},{"$f":"Q48","v":0.15},{"$f":"title353","v":"Liter water/t res"},{"$f":"IF(D48=0,0,E41*(H41/H42)*(1-D48))","v":{"$error":"#N/A"}},{"$f":"title351","v":"Liter water/year"},{"$f":"'Data entry needs'!$F$92","v":0},{"$f":"F48*H48*D48","v":{"$error":"#N/A"}},{"$f":"title319","v":"USD/year"},null,null,null,null,null,{"$f":"title244","v":"Water Make-up "},0.15]
[null,null,{"$f":"title349","v":"Unskilled Workers"},{"$f":"Q49","v":{"$error":"#N/A"}},{"$f":"title354","v":"person-day/t res"},{"$f":"ROUNDUP($D$49*E41*('Data entry needs'!$L$100/PRICE_FS1_PS4!E42)/'Data entry needs'!$L$99,0)","v":{"$error":"#N/A"}},{"$f":"title352","v":"person-hour"},{"$f":"'Data entry needs'!$L$96","v":0},{"$f":"F49*H49","v":{"$error":"#N/A"}},{"$f":"title319","v":"USD/year"},null,null,null,null,null,{"$f":"title127","v":"Unskilled worker"},{"$f":"VLOOKUP($C$41,$P$149:$S$155,3,FALSE)","v":{"$error":"#N/A"}}]
[null,null,null,{"$f":"Q47","v":{"$error":"#N/A"}},null,null,null,{"$f":"title269","v":"Subtotal"},{"$f":"+SUMIF($I$46:$I$49,\">0\")","v":0},{"$f":"title319","v":"USD/year"}]
[]
[null,null,{"$f":"title355","v":"Capital Investment"},{"$f":"title270","v":"Quantity"},{"$f":"title27","v":"Unit"}]
[null,null,{"$f":"$C$41&title356","v":"Please Select and equipment"},{"$f":"Q53","v":{"$error":"#N/A"}},{"$f":"VLOOKUP($C$41,$P$149:$T$155,5,FALSE)","v":{"$error":"#N/A"}},null,null,null,{"$f":"D53*(E41*10)/20","v":{"$error":"#N/A"}},{"$f":"title319","v":"USD/year"},null,null,null,null,null,{"$f":"$C$41&title356","v":"Please Select and equipment"},{"$f":"VLOOKUP($C$41,$P$149:$S$155,4,FALSE)","v":{"$error":"#N/A"}}]
[null,null,{"$f":"title357","v":"Dewatering"},{"$f":"Q54","v":7},"USD/t res",null,null,null,{"$f":"D54*$E$41/20","v":0},{"$f":"title319","v":"USD/year"},null,null,null,null,null,{"$f":"title357","v":"Dewatering"},{"$f":"$Q$158","v":7}]
[null,null,{"$f":"title358","v":"Operation and Mainteinance"},{"$f":"Q55","v":0.15},null,null,null,null,{"$f":"SUM(I53:I54)*$D$55","v":{"$error":"#N/A"}},{"$f":"title319","v":"USD/year"},null,null,null,null,null,{"$f":"title358","v":"Operation and Mainteinance"},0.15]
[null,null,null,{"$f":"+IF(AND(C54=\"\",C55=\"\"),0,IF(C54=\"\",D55,IF(C55=\"\",D54,D54+D55)))","v":7.15},null,null,null,{"$f":"title269","v":"Subtotal"},{"$f":"+SUMIF(I53:I55,\">0\")","v":0},{"$f":"title319","v":"USD/year"}]
[]
[null,null,null,{"$f":"title359","v":"Cost for Collection and transfer to storage tank"},null,null,null,null,{"$f":"SUM(I50+I56)/E41","v":{"$error":"#DIV/0!"}},"USD/t"]
[]
[null,null,{"$f":"title360","v":"Collection Method 3 - Feedstock collected from different farms"}]
[]
[null,null,{"$f":"title361","v":"Source of biomass"},null,{"$f":"title405","v":"Collection method"},null,{"$f":"title346","v":"Data Source"},false]
[null,null,{"$f":"title362","v":"Transfer from individual farms"},null,"Mechanized"]
[]
[null,null,{"$f":"title363","v":"Transportation method"},null,"Tanker Truck Transfer",null,{"$f":"title372","v":"Number Of Farms Supplying Feedstock"},{"$f":"title373","v":"Average distance to collection point (m)"},{"$f":"title374","v":"Collection Period (days)"},{"$f":"IF($E$65=title364,title375,title376)&title377","v":"Number of Tanks required"}]
[]
[null,null,{"$f":"IF($E$65=title364,title365,title366)","v":"Tranport Capacity (liter)"},null,{"$f":"title370","v":"Residue Quanitiy (t/year)"},{"$f":"INDIRECT(\"'Data entry needs'!$F$\"&$A$1)","v":0},null,null,null,null,null,null,null,null,null,{"$f":"IF($E$60=title364,title365,title366)","v":"Pipe Diameter (in)"},{"$f":"VLOOKUP($E$65,$Y$147:$AE$149,3,FALSE)","v":27600}]
[null,null,{"$f":"IF($E$65=title364,title367,title368)","v":"Engine Power (HP)"},null,{"$f":"title371","v":"Residue Density (kg/m3)"},null,null,null,{"$f":"'Data entry needs'!L100-INDIRECT(\"Planner_pS4!$AN$\"&$B$1)*21","v":-252},{"$f":"IFERROR(ROUNDUP($F$67*1000*1000/(960*$D$69*'Data entry needs'!$L$99)/$I$68,0),0)","v":0},null,null,null,null,null,{"$f":"IF($E$60=title364,title367,title368)","v":"Motor Power (HP)"},{"$f":"VLOOKUP($E$65,$Y$147:$AE$149,4,FALSE)","v":200}]
[null,null,{"$f":"title369","v":"Transfer Rate (l/h)"},null,null,null,null,null,null,null,null,null,null,null,null,{"$f":"title369","v":"Transfer Rate (l/h)"},{"$f":"VLOOKUP($E$65,$Y$147:$AE$149,5,FALSE)","v":27221.917808219176}]
[]
[null,null,null,{"$f":"+IF(OR($E$63=title337,$E$63=title378),FALSE,TRUE)","v":true},{"$f":"+IF($E$63=title337,TRUE,FALSE)","v":false}]
[null,null,{"$f":"title332","v":"Biomass Price Definition"},null,null,null,null,null,null,null,null,null,null,null,null,{"$f":"title371","v":"Residue Density (kg/m3)"},{"$f":"IFERROR(VLOOKUP(INDIRECT(\"'Data entry needs'!$e$\"&$A$1),PRICE_FS1_PS4!$Y$152:$Z$156,2,FALSE),1000)","v":1000}]
[null,null,{"$f":"title333","v":"Labour cost"},{"$f":"title270","v":"Quantity"},{"$f":"title27","v":"Unit"},{"$f":"title270","v":"Quantity"},null,{"$f":"title27","v":"Unit"},"Total",{"$f":"title27","v":"Unit"}]
[null,null,{"$f":"IF(OR($E$63=title337,$E$63=title378),title379,\"\")","v":""},null,{"$f":"IF(OR($E$63=title337,$E$63=title378),title381,\"\")","v":""},{"$f":"IF(OR($E$63=title337,$E$63=title378),title335,\"\")","v":""},{"$f":"IF(OR($E$63=title337,$E$63=title378),'Data entry needs'!$L$96,\"\")","v":""},{"$f":"IF(OR($E$63=title337,$E$63=title378),title128,\"\")","v":""},{"$f":"IFERROR(IF(OR($E$63=title337,$E$63=title378),$F$67*D74*$G$74,\"\"),0)","v":""},{"$f":"IF(OR($E$63=title337,$E$63=title378),title319,\"\")","v":""}]
[null,null,{"$f":"IF($E$63=title337,\"\",title380)","v":"Number of skilled workers"},null,{"$f":"IF($E$63=title337,\"\",title381)","v":"person-hour/t"},{"$f":"IF($E$63=title337,\"\",title336)","v":"Skilled labour wage"},{"$f":"IF($E$63=title337,\"\",'Data entry needs'!$F$96)","v":0},{"$f":"IF($E$63=title337,\"\",title128)","v":"USD/person-hour"},{"$f":"IFERROR(IF($E$63=title337,\"\",D75*G75*$F$67),0)","v":0},{"$f":"IF($E$63=title337,\"\",title319)","v":"USD/year"}]
[null,null,null,{"$f":"+IF(AND(C74=\"\",C75=\"\"),0,IF(C74=\"\",D75,IF(C75=\"\",D74,D74+D75)))","v":0},null,null,null,{"$f":"title269","v":"Subtotal"},{"$f":"+SUMIF($I$74:$I$75,\">0\")","v":0},{"$f":"title319","v":"USD/year"}]
[null,null,{"$f":"title383","v":"Collection Machinery"},{"$f":"title270","v":"Quantity"},{"$f":"title27","v":"Unit"},{"$f":"title270","v":"Quantity"},null,{"$f":"title27","v":"Unit"},"Total",{"$f":"title27","v":"Unit"}]
[null,null,{"$f":"IF(OR($E$63=title382,$E$63=title378),title384,\"\")","v":"Collection Diesel Consumption"},null,{"$f":"IF(OR($E$63=title382,$E$63=title378),title575,\"\")","v":"l diesel/h"},{"$f":"IF(OR($E$63=title382,$E$63=title378),title389,\"\")","v":"Diesel Cost"},{"$f":"IF(OR($E$63=title382,$E$63=title378),'Data entry needs'!F$100,\"\")","v":0},{"$f":"IF(OR($E$63=title382,$E$63=title378),title576,\"\")","v":"USD/l diesel"},{"$f":"IFERROR(IF(OR($E$63=title382,$E$63=title378),D78*G78*D75*F67,\"\"),0)","v":0},{"$f":"title319","v":"USD/year"}]
[null,null,{"$f":"IF($E$65=title364,title385,title386)","v":"Truck Diesel Consumption"},null,{"$f":"IF($E$65=title364,title387,title388)","v":"l diesel/day"},{"$f":"IF($E$65=title364,title389,title390)","v":"Diesel Cost"},{"$f":"IF($E$65=title364,'Data entry needs'!F$100,'Data entry needs'!$L$92)","v":0},{"$f":"IF($E$65=title364,title576,\"USD/kWh\")","v":"USD/l diesel"},{"$f":"IFERROR(D79*G79*$I$68*$J$68,0)","v":0},{"$f":"title319","v":"USD/year"},null,null,null,null,null,{"$f":"IF($E$60=title364,title385,title386)","v":"Pump Electricity Consumption"},{"$f":"VLOOKUP($E$65,$Y$147:$AE$149,7,FALSE)","v":154}]
[null,null,null,null,null,null,null,{"$f":"title269","v":"Subtotal"},{"$f":"+SUMIF($I$78:$I$79,\">0\")","v":0},{"$f":"title319","v":"USD/year"}]
[null,null,{"$f":"title391","v":"Equipment"},{"$f":"title270","v":"Quantity"},{"$f":"title27","v":"Unit"},{"$f":"title270","v":"Quantity"},null,{"$f":"title27","v":"Unit"},"Total",{"$f":"title27","v":"Unit"}]
[null,null,{"$f":"IF($E$65=title364,title392,title393)","v":"Liquid Tanker Truck"},{"$f":"IF($E$65=title364,$J$68,$G$68*$H$68*1.2)","v":0},{"$f":"IF($E$65=title364,title398,\"m\")","v":"tank(s)"},{"$f":"IF($E$65=title364,title399,title400)","v":"Cost per Tank"},{"$f":"VLOOKUP($E$65,$Y$147:$AF$149,8,FALSE)/10","v":7900},{"$f":"IF($E$65=title364,title402,title403)","v":"USD/tank/year"},{"$f":"IFERROR(D82*G82,0)","v":0},{"$f":"title319","v":"USD/year"}]
[null,null,{"$f":"IF($E$65=title364,title394&$D$68&title395,title396&$D$68&title397)","v":"Semi-tractor 185  HP"},null,"USD",{"$f":"title401","v":"Depreciation Period"},null,{"$f":"title164","v":"year"},{"$f":"IFERROR(D83*$J$68/G83,0)","v":0},{"$f":"title319","v":"USD/year"},null,null,null,null,null,{"$f":"IF($E$60=title364,title406,title396&$D$63&title397)","v":"Pump  HP with agitator"},{"$f":"VLOOKUP($E$65,$Y$147:$AH$149,10,FALSE)","v":148000}]
[null,null,{"$f":"title358","v":"Operation and Mainteinance"},null,null,null,null,null,{"$f":"IFERROR(SUM(I82:I83)*$D$84,0)","v":0},{"$f":"title319","v":"USD/year"},null,null,null,null,null,{"$f":"title358","v":"Operation and Mainteinance"},0.15]
[null,null,null,null,null,null,null,{"$f":"title269","v":"Subtotal"},{"$f":"I82","v":0},{"$f":"title319","v":"USD/year"},null,null,null,null,null,{"$f":"title401","v":"Depreciation Period"},15]
[]
[null,null,null,{"$f":"title404","v":"Cost for Collection and transfer to central collection point"},null,null,null,null,{"$f":"(I85+I80+I76)/$F$67","v":{"$error":"#DIV/0!"}},"USD/t"]
[]
[]
[]
[]
[]
[]
[]
[]
[]
[]
[]
[]
[]
[]
[]
[]
[]
[]
[]
[]
[]
[]
[]
[]
[]
[]
[]
[]
[]
[]
[]
[null,null,null,null,null,null,null,null,null,null,null,null,null,null,null,{"$f":"title410","v":"Sources of biomass"}]
[null,null,null,null,null,null,null,null,null,null,null,null,null,null,null,{"$f":"title411","v":"Biomass spread in the field"}]
[null,null,null,null,null,null,null,null,null,null,null,null,null,null,null,{"$f":"title412","v":"Biomass collected from field"}]
[null,null,null,null,null,null,null,null,null,null,null,null,null,null,null,{"$f":"title413","v":"Biomass from food processing plant"}]
[]
[]
[]
[]
[null,null,null,null,null,null,null,null,null,null,null,null,null,null,null,{"$f":"title405","v":"Collection method"}]
[null,null,null,null,null,null,null,null,null,null,null,null,null,null,null,{"$f":"title382","v":"Mechanized"}]
[null,null,null,null,null,null,null,null,null,null,null,null,null,null,null,{"$f":"title378","v":"Semi-mechanized"}]
[null,null,null,null,null,null,null,null,null,null,null,null,null,null,null,{"$f":"title337","v":"Manual"}]
[]
[]
[]
[]
[]
[]
[]
[]
[]
[]
[]
[]
[]
[]
[null,null,null,null,null,null,null,null,null,null,null,null,null,null,null,"Dairy maNURE",40.753799999999998,"Manure (kg/head/day)"]
[null,null,null,null,null,null,null,null,null,null,null,null,null,null,null,null,"Energy Use Cost","Labor and Mainteinance",null,null,null,"ts (%) transported","Dewateing",null,null,null,{"$f":"title440","v":"Capacity"},{"$f":"title441","v":"Engine/motor (hp)"},{"$f":"title369","v":"Transfer Rate (l/h)"},{"$f":"title442","v":"Transfer time (m/h)"},{"$f":"title443","v":"Energy Use  (kw)"},{"$f":"title444","v":"Add equipment"}]
[null,null,null,null,null,null,null,null,null,null,null,null,null,null,null,{"$f":"title405","v":"Collection method"},"liters diesel/t residue","workers*day/t residue","Capital cost","Capital cost","Capital cost",null,"Final solids ts (%)",null,{"$f":"title364","v":"Tanker Truck Transfer"},null,27600,200,27221.917808219176,609.6,154,79000,"USD",{"$f":"148000","v":148000},2010,{"$f":"title406","v":"Semi-tractor 185 HP"},null,null,"l/working day"]
[null,null,null,null,null,null,null,null,null,null,null,null,null,null,null,{"$f":"title74","v":"Please Select"},null,null,null,null,null,null,null,null,{"$f":"title432","v":"High Volume Pipeline"},null,"6´´ PVC",150,3028,1016,215,{"$f":"37/3.048","v":12.139107611548557},"USD/m",37075,2003]
[null,null,null,null,null,null,null,null,null,null,null,null,null,null,null,{"$f":"title414","v":"Alley Scrapers"},0.14330809896079807,0.42057427773606393,{"$f":"(AVERAGE(35,45)*$B$52+10000+4000)/3785.41178","v":3.698408736922143},{"$f":"title421","v":"USD/liter mixture"},2009,0.08,0.5,null,{"$f":"title433","v":"Low Volume Pipeline"},null,"4´´ PVC",7.5,378,127,86,{"$f":"12.4/3.048","v":4.0682414698162734},"USD/m",7675,2003]
[null,null,null,null,null,null,null,null,null,null,null,null,null,null,null,{"$f":"title415","v":"Flush System"},0.4093569308278352,0.10526625737967994,{"$f":"(4950.08+(16+9.8)*$B$52)/3785.41178","v":1.3076727943188258},"USD/liter mixture",2014,{"$f":"AVERAGE(1%,3%)","v":0.02},0.5]
[null,null,null,null,null,null,null,null,null,null,null,null,null,null,null,{"$f":"title416","v":"Vacum Scraper"},3.190595592141102,1.9769935564290937,10,"USD/liter mixture",2010,0.18,0.5,null,null,{"$f":"title434","v":"Density (Kg/m3)"}]
[null,null,null,null,null,null,null,null,null,null,null,null,null,null,null,{"$f":"title417","v":"Skid-loader"},0.75612714559717353,1.2830705357537211,{"$f":"(142.6*0.914+58.5*0.084+50.75*0.997)/$Q$145","v":4.5602655457895951},"USD/liter mixture",2010,{"$f":"AVERAGE(8%,18%)","v":0.13},0.5,null,{"$f":"title435","v":"Buffalo"},960]
[null,null,null,null,null,null,null,null,null,null,null,null,null,null,null,{"$f":"title418","v":"Cross gutter Scraper"},1.5259658685640533E-2,2.6500596263415929E-2,5,"USD/liter mixture",2010,0.08,0.5,null,{"$f":"title436","v":"Cattle"},960]
[null,null,null,null,null,null,null,null,null,null,null,null,null,null,null,{"$f":"title419","v":"Cross Gutter Auger"},0.20478904265077005,2.6255220372088005E-2,{"$f":"2200*30/2378/10","v":2.7754415475189234},"USD/liter mixture",2010,0.08,0.5,null,{"$f":"title437","v":"Dairy Cattle"},994]
[null,null,null,null,null,null,null,null,null,null,null,null,null,null,null,{"$f":"title420","v":"Flush Flume"},0.13645231027594507,2.6255220372088005E-2,{"$f":"(4950.08+(16+9.8)*$B$52)*1.5/3785.41178","v":1.9615091914782385},"USD/liter mixture",2010,{"$f":"AVERAGE(4%,9%)","v":6.5000000000000002E-2},0.5,null,{"$f":"title438","v":"Poultry"},961.11]
[null,null,null,null,null,null,null,null,null,null,null,null,null,null,null,null,null,null,null,null,null,null,null,null,{"$f":"title439","v":"Swine"},1140.9000000000001]
[null,null,null,null,null,null,null,null,null,null,null,null,null,null,null,{"$f":"title357","v":"Dewatering"},"Screw Press ",{"$f":"PROPER(title164)","v":"Year"}]
[null,null,null,null,null,null,null,null,null,null,null,null,null,null,null,{"$f":"title422","v":"Capital Cost (USD/t residue)"},{"$f":"AVERAGE(0.2,0.5)*1000000*0.12/AVERAGE(4000,8000)","v":7},2002]
[null,null,null,null,null,null,null,null,null,null,null,null,null,null,null,{"$f":"title423","v":"Operation (worker/t residue)"},{"$f":"AVERAGE(20,40)*1000/AVERAGE(4000,8000)/(300*8*160)","v":1.3020833333333334E-5}]
[null,null,null,null,null,null,null,null,null,null,null,null,null,null,null,{"$f":"title424","v":"Energy Demand kWh/t residue"},{"$f":"AVERAGE(5,15)*8000/AVERAGE(4000,8000)","v":13.333333333333334},2002]
[]
[]
[]
[]
[null,null,null,null,null,null,null,null,null,null,null,null,null,null,null,{"$f":"title74","v":"Please Select"},{"$f":"title405","v":"Collection method"},"Show","Section to Show",{"$f":"VLOOKUP(INDIRECT(\"'Data entry needs'!$d$\"&$A$1),$P$166:$R$178,3,FALSE)","v":{"$error":"#N/A"}}]
[null,null,null,null,null,null,null,null,null,null,null,null,null,null,null,{"$f":"title184","v":"Biodiesel/Oilseed Ind."},{"$f":"title425","v":"No collection neeeded"},1,{"$f":"title429&\" 0\"","v":"Option 0"},0,0]
[null,null,null,null,null,null,null,null,null,null,null,null,null,null,null,{"$f":"title85","v":"Crop Residues"},{"$f":"title426","v":"Method 1"},2,{"$f":"title429&\" 1\"","v":"Option 1"},{"$f":"$I$31","v":{"$error":"#DIV/0!"}},{"$f":"$D$24/E16","v":{"$error":"#DIV/0!"}},{"$f":"title381","v":"person-hour/t"}]
[null,null,null,null,null,null,null,null,null,null,null,null,null,null,null,{"$f":"title185","v":"Dairy-milk ind."},{"$f":"title427","v":"Method 2, Method 3"},4,{"$f":"title429&\" 2\"","v":"Option 2"},{"$f":"$I$58","v":{"$error":"#DIV/0!"}},{"$f":"F49/E41","v":{"$error":"#N/A"}},{"$f":"title381","v":"person-hour/t"}]
[null,null,null,null,null,null,null,null,null,null,null,null,null,null,null,{"$f":"title120","v":"Energy Crops"},{"$f":"title425","v":"No collection neeeded"},1,{"$f":"title429&\" 3\"","v":"Option 3"},{"$f":"$I$87","v":{"$error":"#DIV/0!"}},{"$f":"D76","v":0},{"$f":"title381","v":"person-hour/t"}]
[null,null,null,null,null,null,null,null,null,null,null,null,null,null,null,{"$f":"title186","v":"Eth-Sugar-Starch Ind."},{"$f":"title425","v":"No collection neeeded"},1]
[null,null,null,null,null,null,null,null,null,null,null,null,null,null,null,{"$f":"title187","v":"Food Process. Res."},{"$f":"title425","v":"No collection neeeded"},1,{"$f":"title430","v":"Result"},{"$f":"IF($T$165=1,T166,IF($T$165=2,$T$167,IF($T$165=3,T168,IF(AND($T$165=4,$E$34),$T$168,$T$169))))","v":{"$error":"#N/A"}}]
[null,null,null,null,null,null,null,null,null,null,null,null,null,null,null,{"$f":"title188","v":"Grass"},{"$f":"title426","v":"Method 1"},2,{"$f":"title431","v":"Employees"},{"$f":"IF($T$165=1,U166,IF($T$165=2,$U$167,IF($T$165=3,U169,IF(AND($T$165=4,$E$34),$U$168,$U$169))))","v":{"$error":"#N/A"}},{"$f":"title381","v":"person-hour/t"}]
[null,null,null,null,null,null,null,null,null,null,null,null,null,null,null,{"$f":"title119","v":"Crops"},{"$f":"title425","v":"No collection neeeded"},1]
[null,null,null,null,null,null,null,null,null,null,null,null,null,null,null,{"$f":"title189","v":"Other Options"},{"$f":"title425","v":"No collection neeeded"},1]
[null,null,null,null,null,null,null,null,null,null,null,null,null,null,null,{"$f":"title190","v":"Slaughterhouses wastes"},{"$f":"title428","v":"Method 2"},3]
[null,null,null,null,null,null,null,null,null,null,null,null,null,null,null,{"$f":"title191","v":"Yeast-Alcoholic Bev."},{"$f":"title425","v":"No collection neeeded"},1]
[null,null,null,null,null,null,null,null,null,null,null,null,null,null,null,{"$f":"title84","v":"Manure"},{"$f":"title427","v":"Method 2, Method 3"},4]
[null,null,null,null,null,null,null,null,null,null,null,null,null,null,null,{"$f":"title192","v":"Wastewater"},{"$f":"title425","v":"No collection neeeded"},1]

{"sheet":"PRICE_FS2_PS4","index":56,"n_rows":178,"n_cols":39,"rows_kept":178,"cut":false,"hidden":true,"merged":[[40,8,40,9],[2,2,2,9],[5,2,5,3],[5,4,5,6],[7,2,10,9],[14,6,14,7],[15,2,15,3],[15,6,15,7],[30,3,30,7],[33,4,34,4],[33,5,34,5],[33,6,34,9],[34,2,34,3],[64,9,66,9],[86,3,86,7],[41,8,41,9],[57,3,57,7],[61,4,61,5],[61,6,62,6],[62,4,62,5],[64,2,64,3],[64,4,64,5],[64,6,66,6],[64,7,66,7],[64,8,66,8]]}
[{"$f":"+PRICE_FS1_PS4!A1+2","v":77},89]
[]
[null,null,{"$f":"+title324&UPPER(INDIRECT(\"'Data entry needs'!$d$\"&$A$1)&\"-\"&INDIRECT(\"'Data entry needs'!$e$\"&$A$1))","v":"COLLECTION COSTS CALCULATOR FOR PLEASE SELECT-PLEASE SELECT"}]
[]
[]
[null,null,{"$f":"title193","v":"Use white cells to input data"},null,{"$f":"title194","v":"Grey cells are used for calculations"}]
[]
[null,null,{"$f":"title325&INDIRECT(\"'Data entry needs'!$d$\"&$A$1)&title326","v":"No collection method is required. It is assumed that Please Select are already collected. Then, transportation cost and/or market price should be considered."}]
[]
[]
[]
[]
[null,null,{"$f":"title327","v":"Collection Method 1 - Biomass spread in the field"}]
[]
[null,null,{"$f":"title328","v":"Collecting method"},null,{"$f":"title329","v":"Biomass Yield"},null,{"$f":"title110","v":"Feedstock Available (t/year)"},null,{"$f":"title330","v":"Collection days"}]
[null,null,"Mechanized",null,null,"t/ha",{"$f":"INDIRECT(\"'Data entry needs'!$F$\"&$A$1)","v":0},null,{"$f":"'Data entry needs'!L100-INDIRECT(\"Planner_pS4!$AN$\"&$B$1)*21","v":-252}]
[]
[null,null,{"$f":"title331","v":"Biomass Collection definition"}]
[]
[null,null,{"$f":"title332","v":"Biomass Price Definition"},null,null,null,null,null,null,null,null,null,null,null,null,null,null,null,null,null,null,{"$f":"title405","v":"Collection method"},null,{"$f":"title382","v":"Mechanized"},{"$f":"title380","v":"Number of skilled workers"},{"$f":"title409","v":"person-hour/ha"}]
[null,null,{"$f":"title333","v":"Labour cost"},{"$f":"title270","v":"Quantity"},{"$f":"title27","v":"Unit"},{"$f":"title270","v":"Quantity"},null,{"$f":"title27","v":"Unit"},"Total",{"$f":"title27","v":"Unit"},null,null,null,null,null,null,null,null,null,null,null,{"$f":"$C$16","v":"Mechanized"},null,{"$f":"title382&2","v":"Mechanized2"},{"$f":"title336","v":"Skilled labour wage"},{"$f":"title128","v":"USD/person-hour"}]
[null,null,{"$f":"IFERROR(VLOOKUP($V$21&$W21,$X$20:$Z$31,2,FALSE),\"\")","v":"Number of skilled workers"},null,{"$f":"IFERROR(VLOOKUP($V$21&$W21,$X$20:$Z$31,3,FALSE),\"\")","v":"person-hour/ha"},{"$f":"IFERROR(VLOOKUP($V$21&$W23,$X$20:$Z$31,2,FALSE),\"\")","v":"Skilled labour wage"},{"$f":"IF(F22=\"\",\"\",IF(F22=title335,'Data entry needs'!$L$96,IF(F22=title336,'Data entry needs'!F96)))","v":0},{"$f":"IFERROR(VLOOKUP($V$21&$W23,$X$20:$Z$31,3,FALSE),\"\")","v":"USD/person-hour"},{"$f":"IFERROR(G22*D22*(G16/E16)*('Data entry needs'!$L$100/$I$16),0)","v":0},{"$f":"IF(C22=\"\",\"\",title319)","v":"USD/year"},null,null,null,null,null,null,null,null,null,null,null,null,1,{"$f":"title382&4","v":"Mechanized4"},{"$f":"title407","v":"Average fuel economy"},"l/h"]
[null,null,{"$f":"IFERROR(VLOOKUP($V$21&$W22,$X$20:$Z$31,2,FALSE),\"\")","v":""},null,{"$f":"IFERROR(VLOOKUP($V$21&$W22,$X$20:$Z$31,3,FALSE),\"\")","v":""},{"$f":"IFERROR(VLOOKUP($V$21&$W24,$X$20:$Z$31,2,FALSE),\"\")","v":""},{"$f":"IF(F23=\"\",\"\",'Data entry needs'!L96)","v":""},{"$f":"title128","v":"USD/person-hour"},{"$f":"IFERROR(G23*D23*(G16/E16)*('Data entry needs'!$L$100/$I$16),0)","v":0},{"$f":"IF(C23=\"\",\"\",title319)","v":""},null,null,null,null,null,null,null,null,null,null,null,{"$f":"VLOOKUP($V$21,$T$29:$U$31,2,FALSE)","v":1},2,{"$f":"title382&5","v":"Mechanized5"},{"$f":"title408","v":"Fuel price"},"USD/l"]
[null,null,null,{"$f":"+IF(AND(C22=\"\",C23=\"\"),0,IF(C22=\"\",D23,IF(C23=\"\",D22,D22+D23)))","v":0},null,null,null,{"$f":"title269","v":"Subtotal"},{"$f":"+SUMIF($I$22:$I$23,\">0\")","v":0},{"$f":"title319","v":"USD/year"},null,null,null,null,null,null,null,null,null,null,null,null,3,{"$f":"title378","v":"Semi-mechanized"},{"$f":"title380","v":"Number of skilled workers"},{"$f":"title409","v":"person-hour/ha"}]
[null,null,{"$f":"title334","v":"Machinery & operating cost"},{"$f":"title270","v":"Quantity"},{"$f":"title27","v":"Unit"},{"$f":"title270","v":"Quantity"},null,{"$f":"title27","v":"Unit"},"Total",{"$f":"title27","v":"Unit"},null,null,null,null,null,null,null,null,null,null,null,null,4,{"$f":"title378&1","v":"Semi-mechanized1"},{"$f":"title379","v":"Number of unskilled workers"},{"$f":"title409","v":"person-hour/ha"}]
[null,null,{"$f":"IFERROR(VLOOKUP($V$21&$W25,$X$20:$Z$31,2,FALSE),\"\")","v":"Average fuel economy"},null,{"$f":"IFERROR(VLOOKUP($V$21&$W25,$X$20:$Z$31,3,FALSE),\"\")","v":"l/h"},{"$f":"IFERROR(VLOOKUP($V$21&$W26,$X$20:$Z$31,2,FALSE),\"\")","v":"Fuel price"},{"$f":"IF(F26=\"\",\"\",'Data entry needs'!$F$100)","v":0},{"$f":"+IFERROR(VLOOKUP($V$21&$W26,$X$20:$Z$31,3,FALSE),\"\")","v":"USD/l"},{"$f":"+IFERROR(D26*G26*IF($C$16=title337,0,$D$22*G16/E16)*('Data entry needs'!$L$100/$I$16),\"\")","v":""},{"$f":"IF(C26=\"\",\"\",title319)","v":"USD/year"},null,null,null,null,null,null,null,null,null,null,null,null,5,{"$f":"title378&2","v":"Semi-mechanized2"},{"$f":"title336","v":"Skilled labour wage"},{"$f":"title128","v":"USD/person-hour"}]
[null,null,null,null,null,null,null,{"$f":"IF(C26=\"\",\"\",title269)","v":"Subtotal"},{"$f":"+I26","v":""},{"$f":"IF(C26=\"\",\"\",title319)","v":"USD/year"},null,null,null,null,null,null,null,null,null,null,null,null,null,{"$f":"title378&3","v":"Semi-mechanized3"},{"$f":"title335","v":"Unskilled labour wage"},{"$f":"title128","v":"USD/person-hour"}]
[null,null,null,null,null,null,null,{"$f":"IF(C26=\"\",\"\",\"Total\")","v":"Total"},{"$f":"IFERROR(I24+I27,I24)","v":0},{"$f":"title319","v":"USD/year"},null,null,null,null,null,null,null,null,null,{"$f":"title405","v":"Collection method"},null,null,null,{"$f":"title378&4","v":"Semi-mechanized4"},{"$f":"title407","v":"Average fuel economy"},"l/h"]
[null,null,null,null,null,null,null,null,null,null,null,null,null,null,null,null,null,null,null,{"$f":"title382","v":"Mechanized"},1,null,null,{"$f":"title378&5","v":"Semi-mechanized5"},{"$f":"title408","v":"Fuel price"},"USD/l"]
[null,null,null,null,null,null,null,null,"",null,null,null,null,null,null,null,null,null,null,{"$f":"title378","v":"Semi-mechanized"},2,null,null,{"$f":"title337","v":"Manual"},{"$f":"title379","v":"Number of unskilled workers"},{"$f":"title409","v":"person-hour/ha"}]
[null,null,null,{"$f":"title338&INDIRECT(\"'Data entry needs'!$d$\"&$A$1)&\"-\"&INDIRECT(\"'Data entry needs'!$e$\"&$A$1)","v":"Collection cost of Please Select-Please Select"},null,null,null,null,{"$f":"(I24+I28)/$G$16","v":{"$error":"#DIV/0!"}},"USD/t",null,null,null,null,null,null,null,null,null,{"$f":"title337","v":"Manual"},3,null,null,{"$f":"title337&2","v":"Manual2"},{"$f":"title335","v":"Unskilled labour wage"},{"$f":"title128","v":"USD/person-hour"}]
[]
[]
[null,null,null,null,false,null,{"$f":"IF($E$34,title340,title341)","v":"Use this method for feedstock collected and transported from different farms to a central collection point"}]
[null,null,{"$f":"title339","v":"Collection Methods Available"}]
[]
[null,null,{"$f":"title342","v":"Collection Method 2"}]
[]
[null,null,{"$f":"title328","v":"Collecting method"},{"$f":"title343","v":"Transportation requirements"},null,null,null,null,{"$f":"title346","v":"Data Source"}]
[]
[null,null,"Please Select",{"$f":"title110","v":"Feedstock Available (t/year)"},{"$f":"INDIRECT(\"'Data entry needs'!$F$\"&$A$1)","v":0},{"$f":"title344","v":"Initial ts in residue (%)"},null,{"$f":"INDIRECT(\"'Data entry needs'!$h$\"&$A$1)","v":0},false]
[null,null,null,{"$f":"title134","v":"Operating days per year"},{"$f":"'Data entry needs'!L100-INDIRECT(\"Planner_pS4!$AN$\"&$B$1)*21","v":-252},{"$f":"title345&$C$41","v":"ts (%) allowed by Please Select"},null,{"$f":"Q45","v":{"$error":"#N/A"}}]
[]
[null,null,{"$f":"title347","v":"Collection Cost Definition"}]
[null,null,{"$f":"title348","v":"Operation Cost"},{"$f":"title270","v":"Quantity"},{"$f":"title27","v":"Unit"},{"$f":"title270","v":"Quantity"},{"$f":"title27","v":"Unit"},{"$f":"title267","v":"Unit Price"},"Total",null,null,null,null,null,null,"ts (%) transported",{"$f":"VLOOKUP($C$41,$P$149:$V$155,7,FALSE)","v":{"$error":"#N/A"}}]
[null,null,{"$f":"title35","v":"Electricity"},null,"kWh/t res",{"$f":"D46*E41","v":0},{"$f":"title304","v":"kWh/year"},{"$f":"'Data entry needs'!$L$92","v":0},{"$f":"F46*H46","v":0},{"$f":"title319","v":"USD/year"},null,null,null,null,null,{"$f":"title35","v":"Electricity"},{"$f":"$Q$160","v":13.333333333333334}]
[null,null,{"$f":"title170","v":"Diesel"},null,{"$f":"title574","v":"l diesel/t res"},{"$f":"D47*$E$41","v":0},{"$f":"title350","v":"Liter Diesel/year"},{"$f":"'Data entry needs'!$F$100","v":0},{"$f":"F47*H47","v":0},{"$f":"title319","v":"USD/year"},null,null,null,null,null,{"$f":"title170","v":"Diesel"},{"$f":"VLOOKUP($C$41,$P$149:$S$155,2,FALSE)","v":{"$error":"#N/A"}}]
[null,null,{"$f":"title244","v":"Water Make-up "},null,{"$f":"title353","v":"Liter water/t res"},{"$f":"IF(D48=0,0,E41*(H41/H42)*(1-D48))","v":0},{"$f":"title351","v":"Liter water/year"},{"$f":"'Data entry needs'!$F$92","v":0},{"$f":"F48*H48*D48","v":0},{"$f":"title319","v":"USD/year"},null,null,null,null,null,{"$f":"title244","v":"Water Make-up "},0.15]
[null,null,{"$f":"title349","v":"Unskilled Workers"},null,{"$f":"title354","v":"person-day/t res"},{"$f":"ROUNDUP($D$49*E41*('Data entry needs'!$L$100/PRICE_FS2_PS4!E42)/'Data entry needs'!$L$99,0)","v":{"$error":"#DIV/0!"}},{"$f":"title352","v":"person-hour"},{"$f":"'Data entry needs'!$L$96","v":0},{"$f":"F49*H49","v":{"$error":"#DIV/0!"}},{"$f":"title319","v":"USD/year"},null,null,null,null,null,{"$f":"title127","v":"Unskilled worker"},{"$f":"VLOOKUP($C$41,$P$149:$S$155,3,FALSE)","v":{"$error":"#N/A"}}]
[null,null,null,{"$f":"Q47","v":{"$error":"#N/A"}},null,null,null,{"$f":"title269","v":"Subtotal"},{"$f":"+SUMIF($I$46:$I$49,\">0\")","v":0},{"$f":"title319","v":"USD/year"}]
[]
[null,null,{"$f":"title355","v":"Capital Investment"},{"$f":"title270","v":"Quantity"},{"$f":"title27","v":"Unit"}]
[null,null,{"$f":"$C$41&title356","v":"Please Select and equipment"},null,{"$f":"VLOOKUP($C$41,$P$149:$T$155,5,FALSE)","v":{"$error":"#N/A"}},null,null,null,{"$f":"D53*(E41*10)/20","v":0},{"$f":"title319","v":"USD/year"},null,null,null,null,null,{"$f":"$C$41&title356","v":"Please Select and equipment"},{"$f":"VLOOKUP($C$41,$P$149:$S$155,4,FALSE)","v":{"$error":"#N/A"}}]
[null,null,{"$f":"title357","v":"Dewatering"},null,"USD/t res",null,null,null,{"$f":"D54*$E$41/20","v":0},{"$f":"title319","v":"USD/year"},null,null,null,null,null,{"$f":"title357","v":"Dewatering"},{"$f":"$Q$158","v":7}]
[null,null,{"$f":"title358","v":"Operation and Mainteinance"},null,null,null,null,null,{"$f":"SUM(I53:I54)*$D$55","v":0},{"$f":"title319","v":"USD/year"},null,null,null,null,null,{"$f":"title358","v":"Operation and Mainteinance"},0.15]
[null,null,null,{"$f":"+IF(AND(C54=\"\",C55=\"\"),0,IF(C54=\"\",D55,IF(C55=\"\",D54,D54+D55)))","v":0},null,null,null,{"$f":"title269","v":"Subtotal"},{"$f":"+SUMIF(I53:I55,\">0\")","v":0},{"$f":"title319","v":"USD/year"}]
[]
[null,null,null,{"$f":"title359","v":"Cost for Collection and transfer to storage tank"},null,null,null,null,{"$f":"SUM(I50+I56)/E41","v":{"$error":"#DIV/0!"}},"USD/t"]
[]
[null,null,{"$f":"title360","v":"Collection Method 3 - Feedstock collected from different farms"}]
[]
[null,null,{"$f":"title361","v":"Source of biomass"},null,{"$f":"title405","v":"Collection method"},null,{"$f":"title346","v":"Data Source"},false]
[null,null,{"$f":"title362","v":"Transfer from individual farms"},null,"Mechanized"]
[]
[null,null,{"$f":"title363","v":"Transportation method"},null,"Tanker Truck Transfer",null,{"$f":"title372","v":"Number Of Farms Supplying Feedstock"},{"$f":"title373","v":"Average distance to collection point (m)"},{"$f":"title374","v":"Collection Period (days)"},{"$f":"IF($E$65=title364,title375,title376)&title377","v":"Number of Tanks required"}]
[]
[null,null,{"$f":"IF($E$65=title364,title365,title366)","v":"Tranport Capacity (liter)"},{"$f":"Q67","v":27600},{"$f":"title370","v":"Residue Quanitiy (t/year)"},{"$f":"INDIRECT(\"'Data entry needs'!$F$\"&$A$1)","v":0},null,null,null,null,null,null,null,null,null,{"$f":"IF($E$60=title364,title365,title366)","v":"Pipe Diameter (in)"},{"$f":"VLOOKUP($E$65,$Y$147:$AE$149,3,FALSE)","v":27600}]
[null,null,{"$f":"IF($E$65=title364,title367,title368)","v":"Engine Power (HP)"},{"$f":"Q68","v":200},{"$f":"title371","v":"Residue Density (kg/m3)"},{"$f":"Q72","v":1000},null,null,{"$f":"'Data entry needs'!L100-INDIRECT(\"Planner_pS4!$AN$\"&$B$1)*21","v":-252},{"$f":"IFERROR(ROUNDUP($F$67*1000*1000/(960*$D$69*'Data entry needs'!$L$99)/$I$68,0),0)","v":0},null,null,null,null,null,{"$f":"IF($E$60=title364,title367,title368)","v":"Motor Power (HP)"},{"$f":"VLOOKUP($E$65,$Y$147:$AE$149,4,FALSE)","v":200}]
[null,null,{"$f":"title369","v":"Transfer Rate (l/h)"},{"$f":"Q69","v":27221.917808219176},null,null,null,null,null,null,null,null,null,null,null,{"$f":"title369","v":"Transfer Rate (l/h)"},{"$f":"VLOOKUP($E$65,$Y$147:$AE$149,5,FALSE)","v":27221.917808219176}]
[]
[null,null,null,{"$f":"+IF(OR($E$63=title337,$E$63=title378),FALSE,TRUE)","v":true},{"$f":"+IF($E$63=title337,TRUE,FALSE)","v":false}]
[null,null,{"$f":"title332","v":"Biomass Price Definition"},null,null,null,null,null,null,null,null,null,null,null,null,{"$f":"title371","v":"Residue Density (kg/m3)"},{"$f":"IFERROR(VLOOKUP(INDIRECT(\"'Data entry needs'!$e$\"&$A$1),PRICE_FS2_PS4!$Y$152:$Z$156,2,FALSE),1000)","v":1000}]
[null,null,{"$f":"title333","v":"Labour cost"},{"$f":"title270","v":"Quantity"},{"$f":"title27","v":"Unit"},{"$f":"title270","v":"Quantity"},null,{"$f":"title27","v":"Unit"},"Total",{"$f":"title27","v":"Unit"}]
[null,null,{"$f":"IF(OR($E$63=title337,$E$63=title378),title379,\"\")","v":""},null,{"$f":"IF(OR($E$63=title337,$E$63=title378),title381,\"\")","v":""},{"$f":"IF(OR($E$63=title337,$E$63=title378),title335,\"\")","v":""},{"$f":"IF(OR($E$63=title337,$E$63=title378),'Data entry needs'!$L$96,\"\")","v":""},{"$f":"IF(OR($E$63=title337,$E$63=title378),title128,\"\")","v":""},{"$f":"IFERROR(IF(OR($E$63=title337,$E$63=title378),$F$67*D74*$G$74,\"\"),0)","v":""},{"$f":"IF(OR($E$63=title337,$E$63=title378),title319,\"\")","v":""}]
[null,null,{"$f":"IF($E$63=title337,\"\",title380)","v":"Number of skilled workers"},null,{"$f":"IF($E$63=title337,\"\",title381)","v":"person-hour/t"},{"$f":"IF($E$63=title337,\"\",title336)","v":"Skilled labour wage"},{"$f":"IF($E$63=title337,\"\",'Data entry needs'!$F$96)","v":0},{"$f":"IF($E$63=title337,\"\",title128)","v":"USD/person-hour"},{"$f":"IFERROR(IF($E$63=title337,\"\",D75*G75*$F$67),0)","v":0},{"$f":"IF($E$63=title337,\"\",title319)","v":"USD/year"}]
[null,null,null,{"$f":"+IF(AND(C74=\"\",C75=\"\"),0,IF(C74=\"\",D75,IF(C75=\"\",D74,D74+D75)))","v":0},null,null,null,{"$f":"title269","v":"Subtotal"},{"$f":"+SUMIF($I$74:$I$75,\">0\")","v":0},{"$f":"title319","v":"USD/year"}]
[null,null,{"$f":"title383","v":"Collection Machinery"},{"$f":"title270","v":"Quantity"},{"$f":"title27","v":"Unit"},{"$f":"title270","v":"Quantity"},null,{"$f":"title27","v":"Unit"},"Total",{"$f":"title27","v":"Unit"}]
[null,null,{"$f":"IF(OR($E$63=title382,$E$63=title378),title384,\"\")","v":"Collection Diesel Consumption"},null,{"$f":"IF(OR($E$63=title382,$E$63=title378),title575,\"\")","v":"l diesel/h"},{"$f":"IF(OR($E$63=title382,$E$63=title378),title389,\"\")","v":"Diesel Cost"},{"$f":"IF(OR($E$63=title382,$E$63=title378),'Data entry needs'!F$100,\"\")","v":0},{"$f":"IF(OR($E$63=title382,$E$63=title378),title576,\"\")","v":"USD/l diesel"},{"$f":"IFERROR(IF(OR($E$63=title382,$E$63=title378),D78*G78*D75*F67,\"\"),0)","v":0},{"$f":"title319","v":"USD/year"}]
[null,null,{"$f":"IF($E$65=title364,title385,title386)","v":"Truck Diesel Consumption"},{"$f":"Q79","v":154},{"$f":"IF($E$65=title364,title387,title388)","v":"l diesel/day"},{"$f":"IF($E$65=title364,title389,title390)","v":"Diesel Cost"},{"$f":"IF($E$65=title364,'Data entry needs'!F$100,'Data entry needs'!$L$92)","v":0},{"$f":"IF($E$65=title364,title576,\"USD/kWh\")","v":"USD/l diesel"},{"$f":"IFERROR(D79*G79*$I$68*$J$68,0)","v":0},{"$f":"title319","v":"USD/year"},null,null,null,null,null,{"$f":"IF($E$60=title364,title385,title386)","v":"Pump Electricity Consumption"},{"$f":"VLOOKUP($E$65,$Y$147:$AE$149,7,FALSE)","v":154}]
[null,null,null,null,null,null,null,{"$f":"title269","v":"Subtotal"},{"$f":"+SUMIF($I$78:$I$79,\">0\")","v":0},{"$f":"title319","v":"USD/year"}]
[null,null,{"$f":"title391","v":"Equipment"},{"$f":"title270","v":"Quantity"},{"$f":"title27","v":"Unit"},{"$f":"title270","v":"Quantity"},null,{"$f":"title27","v":"Unit"},"Total",{"$f":"title27","v":"Unit"}]
[null,null,{"$f":"IF($E$65=title364,title392,title393)","v":"Liquid Tanker Truck"},{"$f":"IF($E$65=title364,$J$68,$G$68*$H$68*1.2)","v":0},{"$f":"IF($E$65=title364,title398,\"m\")","v":"tank(s)"},{"$f":"IF($E$65=title364,title399,title400)","v":"Cost per Tank"},{"$f":"VLOOKUP($E$65,$Y$147:$AF$149,8,FALSE)/10","v":7900},{"$f":"IF($E$65=title364,title402,title403)","v":"USD/tank/year"},{"$f":"IFERROR(D82*G82,0)","v":0},{"$f":"title319","v":"USD/year"}]
[null,null,{"$f":"IF($E$65=title364,title394&$D$68&title395,title396&$D$68&title397)","v":"Semi-tractor 185 200 HP"},{"$f":"Q83","v":148000},"USD",{"$f":"title401","v":"Depreciation Period"},{"$f":"Q85","v":15},{"$f":"title164","v":"year"},{"$f":"IFERROR(D83*$J$68/G83,0)","v":0},{"$f":"title319","v":"USD/year"},null,null,null,null,null,{"$f":"IF($E$60=title364,title406,title396&$D$63&title397)","v":"Pump  HP with agitator"},{"$f":"VLOOKUP($E$65,$Y$147:$AH$149,10,FALSE)","v":148000}]
[null,null,{"$f":"title358","v":"Operation and Mainteinance"},{"$f":"Q84","v":0.15},null,null,null,null,{"$f":"IFERROR(SUM(I82:I83)*$D$84,0)","v":0},{"$f":"title319","v":"USD/year"},null,null,null,null,null,{"$f":"title358","v":"Operation and Mainteinance"},0.15]
[null,null,null,null,null,null,null,{"$f":"title269","v":"Subtotal"},{"$f":"I82","v":0},{"$f":"title319","v":"USD/year"},null,null,null,null,null,{"$f":"title401","v":"Depreciation Period"},15]
[]
[null,null,null,{"$f":"title404","v":"Cost for Collection and transfer to central collection point"},null,null,null,null,{"$f":"(I85+I80+I76)/$F$67","v":{"$error":"#DIV/0!"}},"USD/t"]
[]
[]
[]
[]
[]
[]
[]
[]
[]
[]
[]
[]
[]
[]
[]
[]
[]
[]
[]
[]
[]
[]
[]
[]
[]
[]
[]
[]
[]
[]
[]
[null,null,null,null,null,null,null,null,null,null,null,null,null,null,null,{"$f":"title410","v":"Sources of biomass"}]
[null,null,null,null,null,null,null,null,null,null,null,null,null,null,null,{"$f":"title411","v":"Biomass spread in the field"}]
[null,null,null,null,null,null,null,null,null,null,null,null,null,null,null,{"$f":"title412","v":"Biomass collected from field"}]
[null,null,null,null,null,null,null,null,null,null,null,null,null,null,null,{"$f":"title413","v":"Biomass from food processing plant"}]
[]
[]
[]
[]
[null,null,null,null,null,null,null,null,null,null,null,null,null,null,null,{"$f":"title405","v":"Collection method"}]
[null,null,null,null,null,null,null,null,null,null,null,null,null,null,null,{"$f":"title382","v":"Mechanized"}]
[null,null,null,null,null,null,null,null,null,null,null,null,null,null,null,{"$f":"title378","v":"Semi-mechanized"}]
[null,null,null,null,null,null,null,null,null,null,null,null,null,null,null,{"$f":"title337","v":"Manual"}]
[]
[]
[]
[]
[]
[]
[]
[]
[]
[]
[]
[]
[]
[]
[null,null,null,null,null,null,null,null,null,null,null,null,null,null,null,"Dairy maNURE",40.753799999999998,"Manure (kg/head/day)"]
[null,null,null,null,null,null,null,null,null,null,null,null,null,null,null,null,"Energy Use Cost","Labor and Mainteinance",null,null,null,"ts (%) transported","Dewateing",null,null,null,{"$f":"title440","v":"Capacity"},{"$f":"title441","v":"Engine/motor (hp)"},{"$f":"title369","v":"Transfer Rate (l/h)"},{"$f":"title442","v":"Transfer time (m/h)"},{"$f":"title443","v":"Energy Use  (kw)"},{"$f":"title444","v":"Add equipment"}]
[null,null,null,null,null,null,null,null,null,null,null,null,null,null,null,{"$f":"title405","v":"Collection method"},"liters diesel/t residue","workers*day/t residue","Capital cost","Capital cost","Capital cost",null,"Final solids ts (%)",null,{"$f":"title364","v":"Tanker Truck Transfer"},null,27600,200,27221.917808219176,609.6,154,79000,"USD",{"$f":"148000","v":148000},2010,{"$f":"title406","v":"Semi-tractor 185 HP"},null,null,"l/working day"]
[null,null,null,null,null,null,null,null,null,null,null,null,null,null,null,{"$f":"title74","v":"Please Select"},null,null,null,null,null,null,null,null,{"$f":"title432","v":"High Volume Pipeline"},null,"6´´ PVC",150,3028,1016,215,{"$f":"37/3.048","v":12.139107611548557},"USD/m",37075,2003]
[null,null,null,null,null,null,null,null,null,null,null,null,null,null,null,{"$f":"title414","v":"Alley Scrapers"},0.14330809896079807,0.42057427773606393,{"$f":"(AVERAGE(35,45)*$B$52+10000+4000)/3785.41178","v":3.698408736922143},{"$f":"title421","v":"USD/liter mixture"},2009,0.08,0.5,null,{"$f":"title433","v":"Low Volume Pipeline"},null,"4´´ PVC",7.5,378,127,86,{"$f":"12.4/3.048","v":4.0682414698162734},"USD/m",7675,2003]
[null,null,null,null,null,null,null,null,null,null,null,null,null,null,null,{"$f":"title415","v":"Flush System"},0.4093569308278352,0.10526625737967994,{"$f":"(4950.08+(16+9.8)*$B$52)/3785.41178","v":1.3076727943188258},"USD/liter mixture",2014,{"$f":"AVERAGE(1%,3%)","v":0.02},0.5]
[null,null,null,null,null,null,null,null,null,null,null,null,null,null,null,{"$f":"title416","v":"Vacum Scraper"},3.190595592141102,1.9769935564290937,10,"USD/liter mixture",2010,0.18,0.5,null,null,{"$f":"title434","v":"Density (Kg/m3)"}]
[null,null,null,null,null,null,null,null,null,null,null,null,null,null,null,{"$f":"title417","v":"Skid-loader"},0.75612714559717353,1.2830705357537211,{"$f":"(142.6*0.914+58.5*0.084+50.75*0.997)/$Q$145","v":4.5602655457895951},"USD/liter mixture",2010,{"$f":"AVERAGE(8%,18%)","v":0.13},0.5,null,{"$f":"title435","v":"Buffalo"},960]
[null,null,null,null,null,null,null,null,null,null,null,null,null,null,null,{"$f":"title418","v":"Cross gutter Scraper"},1.5259658685640533E-2,2.6500596263415929E-2,5,"USD/liter mixture",2010,0.08,0.5,null,{"$f":"title436","v":"Cattle"},960]
[null,null,null,null,null,null,null,null,null,null,null,null,null,null,null,{"$f":"title419","v":"Cross Gutter Auger"},0.20478904265077005,2.6255220372088005E-2,{"$f":"2200*30/2378/10","v":2.7754415475189234},"USD/liter mixture",2010,0.08,0.5,null,{"$f":"title437","v":"Dairy Cattle"},994]
[null,null,null,null,null,null,null,null,null,null,null,null,null,null,null,{"$f":"title420","v":"Flush Flume"},0.13645231027594507,2.6255220372088005E-2,{"$f":"(4950.08+(16+9.8)*$B$52)*1.5/3785.41178","v":1.9615091914782385},"USD/liter mixture",2010,{"$f":"AVERAGE(4%,9%)","v":6.5000000000000002E-2},0.5,null,{"$f":"title438","v":"Poultry"},961.11]
[null,null,null,null,null,null,null,null,null,null,null,null,null,null,null,null,null,null,null,null,null,null,null,null,{"$f":"title439","v":"Swine"},1140.9000000000001]
[null,null,null,null,null,null,null,null,null,null,null,null,null,null,null,{"$f":"title357","v":"Dewatering"},"Screw Press ",{"$f":"PROPER(title164)","v":"Year"}]
[null,null,null,null,null,null,null,null,null,null,null,null,null,null,null,{"$f":"title422","v":"Capital Cost (USD/t residue)"},{"$f":"AVERAGE(0.2,0.5)*1000000*0.12/AVERAGE(4000,8000)","v":7},2002]
[null,null,null,null,null,null,null,null,null,null,null,null,null,null,null,{"$f":"title423","v":"Operation (worker/t residue)"},{"$f":"AVERAGE(20,40)*1000/AVERAGE(4000,8000)/(300*8*160)","v":1.3020833333333334E-5}]
[null,null,null,null,null,null,null,null,null,null,null,null,null,null,null,{"$f":"title424","v":"Energy Demand kWh/t residue"},{"$f":"AVERAGE(5,15)*8000/AVERAGE(4000,8000)","v":13.333333333333334},2002]
[]
[]
[]
[]
[null,null,null,null,null,null,null,null,null,null,null,null,null,null,null,{"$f":"title74","v":"Please Select"},{"$f":"title405","v":"Collection method"},"Show","Section to Show",{"$f":"VLOOKUP(INDIRECT(\"'Data entry needs'!$d$\"&$A$1),$P$166:$R$178,3,FALSE)","v":{"$error":"#N/A"}}]
[null,null,null,null,null,null,null,null,null,null,null,null,null,null,null,{"$f":"title184","v":"Biodiesel/Oilseed Ind."},{"$f":"title425","v":"No collection neeeded"},1,{"$f":"title429&\" 0\"","v":"Option 0"},0,0]
[null,null,null,null,null,null,null,null,null,null,null,null,null,null,null,{"$f":"title85","v":"Crop Residues"},{"$f":"title426","v":"Method 1"},2,{"$f":"title429&\" 1\"","v":"Option 1"},{"$f":"$I$31","v":{"$error":"#DIV/0!"}},{"$f":"$D$24/E16","v":{"$error":"#DIV/0!"}},{"$f":"title381","v":"person-hour/t"}]
[null,null,null,null,null,null,null,null,null,null,null,null,null,null,null,{"$f":"title185","v":"Dairy-milk ind."},{"$f":"title427","v":"Method 2, Method 3"},4,{"$f":"title429&\" 2\"","v":"Option 2"},{"$f":"$I$58","v":{"$error":"#DIV/0!"}},{"$f":"F49/E41","v":{"$error":"#DIV/0!"}},{"$f":"title381","v":"person-hour/t"}]
[null,null,null,null,null,null,null,null,null,null,null,null,null,null,null,{"$f":"title120","v":"Energy Crops"},{"$f":"title425","v":"No collection neeeded"},1,{"$f":"title429&\" 3\"","v":"Option 3"},{"$f":"$I$87","v":{"$error":"#DIV/0!"}},{"$f":"D76","v":0},{"$f":"title381","v":"person-hour/t"}]
[null,null,null,null,null,null,null,null,null,null,null,null,null,null,null,{"$f":"title186","v":"Eth-Sugar-Starch Ind."},{"$f":"title425","v":"No collection neeeded"},1]
[null,null,null,null,null,null,null,null,null,null,null,null,null,null,null,{"$f":"title187","v":"Food Process. Res."},{"$f":"title425","v":"No collection neeeded"},1,{"$f":"title430","v":"Result"},{"$f":"IF($T$165=1,T166,IF($T$165=2,$T$167,IF($T$165=3,T168,IF(AND($T$165=4,$E$34),$T$168,$T$169))))","v":{"$error":"#N/A"}}]
[null,null,null,null,null,null,null,null,null,null,null,null,null,null,null,{"$f":"title188","v":"Grass"},{"$f":"title426","v":"Method 1"},2,{"$f":"title431","v":"Employees"},{"$f":"IF($T$165=1,U166,IF($T$165=2,$U$167,IF($T$165=3,U169,IF(AND($T$165=4,$E$34),$U$168,$U$169))))","v":{"$error":"#N/A"}},{"$f":"title381","v":"person-hour/t"}]
[null,null,null,null,null,null,null,null,null,null,null,null,null,null,null,{"$f":"title119","v":"Crops"},{"$f":"title425","v":"No collection neeeded"},1]
[null,null,null,null,null,null,null,null,null,null,null,null,null,null,null,{"$f":"title189","v":"Other Options"},{"$f":"title425","v":"No collection neeeded"},1]
[null,null,null,null,null,null,null,null,null,null,null,null,null,null,null,{"$f":"title190","v":"Slaughterhouses wastes"},{"$f":"title428","v":"Method 2"},3]
[null,null,null,null,null,null,null,null,null,null,null,null,null,null,null,{"$f":"title191","v":"Yeast-Alcoholic Bev."},{"$f":"title425","v":"No collection neeeded"},1]
[null,null,null,null,null,null,null,null,null,null,null,null,null,null,null,{"$f":"title84","v":"Manure"},{"$f":"title427","v":"Method 2, Method 3"},4]
[null,null,null,null,null,null,null,null,null,null,null,null,null,null,null,{"$f":"title192","v":"Wastewater"},{"$f":"title425","v":"No collection neeeded"},1]

{"sheet":"PRICE_FS3_PS4","index":57,"n_rows":178,"n_cols":39,"rows_kept":178,"cut":false,"hidden":true,"merged":[[40,8,40,9],[2,2,2,9],[5,2,5,3],[5,4,5,6],[7,2,10,9],[14,6,14,7],[15,2,15,3],[15,6,15,7],[30,3,30,7],[33,4,34,4],[33,5,34,5],[33,6,34,9],[34,2,34,3],[64,9,66,9],[86,3,86,7],[41,8,41,9],[57,3,57,7],[61,4,61,5],[61,6,62,6],[62,4,62,5],[64,2,64,3],[64,4,64,5],[64,6,66,6],[64,7,66,7],[64,8,66,8]]}
[{"$f":"PRICE_FS2_PS4!A1+2","v":79},90]
[]
[null,null,{"$f":"+title324&UPPER(INDIRECT(\"'Data entry needs'!$d$\"&$A$1)&\"-\"&INDIRECT(\"'Data entry needs'!$e$\"&$A$1))","v":"COLLECTION COSTS CALCULATOR FOR PLEASE SELECT-PLEASE SELECT"}]
[]
[]
[null,null,{"$f":"title193","v":"Use white cells to input data"},null,{"$f":"title194","v":"Grey cells are used for calculations"}]
[]
[null,null,{"$f":"title325&INDIRECT(\"'Data entry needs'!$d$\"&$A$1)&title326","v":"No collection method is required. It is assumed that Please Select are already collected. Then, transportation cost and/or market price should be considered."}]
[]
[]
[]
[]
[null,null,{"$f":"title327","v":"Collection Method 1 - Biomass spread in the field"}]
[]
[null,null,{"$f":"title328","v":"Collecting method"},null,{"$f":"title329","v":"Biomass Yield"},null,{"$f":"title110","v":"Feedstock Available (t/year)"},null,{"$f":"title330","v":"Collection days"}]
[null,null,"Mechanized",null,null,"t/ha",{"$f":"INDIRECT(\"'Data entry needs'!$F$\"&$A$1)","v":0},null,{"$f":"'Data entry needs'!L100-INDIRECT(\"Planner_pS4!$AN$\"&$B$1)*21","v":-252}]
[]
[null,null,{"$f":"title331","v":"Biomass Collection definition"}]
[]
[null,null,{"$f":"title332","v":"Biomass Price Definition"},null,null,null,null,null,null,null,null,null,null,null,null,null,null,null,null,null,null,{"$f":"title405","v":"Collection method"},null,{"$f":"title382","v":"Mechanized"},{"$f":"title380","v":"Number of skilled workers"},{"$f":"title409","v":"person-hour/ha"}]
[null,null,{"$f":"title333","v":"Labour cost"},{"$f":"title270","v":"Quantity"},{"$f":"title27","v":"Unit"},{"$f":"title270","v":"Quantity"},null,{"$f":"title27","v":"Unit"},"Total",{"$f":"title27","v":"Unit"},null,null,null,null,null,null,null,null,null,null,null,{"$f":"$C$16","v":"Mechanized"},null,{"$f":"title382&2","v":"Mechanized2"},{"$f":"title336","v":"Skilled labour wage"},{"$f":"title128","v":"USD/person-hour"}]
[null,null,{"$f":"IFERROR(VLOOKUP($V$21&$W21,$X$20:$Z$31,2,FALSE),\"\")","v":"Number of skilled workers"},null,{"$f":"IFERROR(VLOOKUP($V$21&$W21,$X$20:$Z$31,3,FALSE),\"\")","v":"person-hour/ha"},{"$f":"IFERROR(VLOOKUP($V$21&$W23,$X$20:$Z$31,2,FALSE),\"\")","v":"Skilled labour wage"},{"$f":"IF(F22=\"\",\"\",IF(F22=title335,'Data entry needs'!$L$96,IF(F22=title336,'Data entry needs'!F96)))","v":0},{"$f":"IFERROR(VLOOKUP($V$21&$W23,$X$20:$Z$31,3,FALSE),\"\")","v":"USD/person-hour"},{"$f":"IFERROR(G22*D22*(G16/E16)*('Data entry needs'!$L$100/$I$16),0)","v":0},{"$f":"IF(C22=\"\",\"\",title319)","v":"USD/year"},null,null,null,null,null,null,null,null,null,null,null,null,1,{"$f":"title382&4","v":"Mechanized4"},{"$f":"title407","v":"Average fuel economy"},"l/h"]
[null,null,{"$f":"IFERROR(VLOOKUP($V$21&$W22,$X$20:$Z$31,2,FALSE),\"\")","v":""},null,{"$f":"IFERROR(VLOOKUP($V$21&$W22,$X$20:$Z$31,3,FALSE),\"\")","v":""},{"$f":"IFERROR(VLOOKUP($V$21&$W24,$X$20:$Z$31,2,FALSE),\"\")","v":""},{"$f":"IF(F23=\"\",\"\",'Data entry needs'!L96)","v":""},{"$f":"title128","v":"USD/person-hour"},{"$f":"IFERROR(G23*D23*(G16/E16)*('Data entry needs'!$L$100/$I$16),0)","v":0},{"$f":"IF(C23=\"\",\"\",title319)","v":""},null,null,null,null,null,null,null,null,null,null,null,{"$f":"VLOOKUP($V$21,$T$29:$U$31,2,FALSE)","v":1},2,{"$f":"title382&5","v":"Mechanized5"},{"$f":"title408","v":"Fuel price"},"USD/l"]
[null,null,null,{"$f":"+IF(AND(C22=\"\",C23=\"\"),0,IF(C22=\"\",D23,IF(C23=\"\",D22,D22+D23)))","v":0},null,null,null,{"$f":"title269","v":"Subtotal"},{"$f":"+SUMIF($I$22:$I$23,\">0\")","v":0},{"$f":"title319","v":"USD/year"},null,null,null,null,null,null,null,null,null,null,null,null,3,{"$f":"title378","v":"Semi-mechanized"},{"$f":"title380","v":"Number of skilled workers"},{"$f":"title409","v":"person-hour/ha"}]
[null,null,{"$f":"title334","v":"Machinery & operating cost"},{"$f":"title270","v":"Quantity"},{"$f":"title27","v":"Unit"},{"$f":"title270","v":"Quantity"},null,{"$f":"title27","v":"Unit"},"Total",{"$f":"title27","v":"Unit"},null,null,null,null,null,null,null,null,null,null,null,null,4,{"$f":"title378&1","v":"Semi-mechanized1"},{"$f":"title379","v":"Number of unskilled workers"},{"$f":"title409","v":"person-hour/ha"}]
[null,null,{"$f":"IFERROR(VLOOKUP($V$21&$W25,$X$20:$Z$31,2,FALSE),\"\")","v":"Average fuel economy"},null,{"$f":"IFERROR(VLOOKUP($V$21&$W25,$X$20:$Z$31,3,FALSE),\"\")","v":"l/h"},{"$f":"IFERROR(VLOOKUP($V$21&$W26,$X$20:$Z$31,2,FALSE),\"\")","v":"Fuel price"},{"$f":"IF(F26=\"\",\"\",'Data entry needs'!$F$100)","v":0},{"$f":"+IFERROR(VLOOKUP($V$21&$W26,$X$20:$Z$31,3,FALSE),\"\")","v":"USD/l"},{"$f":"+IFERROR(D26*G26*IF($C$16=title337,0,$D$22*G16/E16)*('Data entry needs'!$L$100/$I$16),\"\")","v":""},{"$f":"IF(C26=\"\",\"\",title319)","v":"USD/year"},null,null,null,null,null,null,null,null,null,null,null,null,5,{"$f":"title378&2","v":"Semi-mechanized2"},{"$f":"title336","v":"Skilled labour wage"},{"$f":"title128","v":"USD/person-hour"}]
[null,null,null,null,null,null,null,{"$f":"IF(C26=\"\",\"\",title269)","v":"Subtotal"},{"$f":"+I26","v":""},{"$f":"IF(C26=\"\",\"\",title319)","v":"USD/year"},null,null,null,null,null,null,null,null,null,null,null,null,null,{"$f":"title378&3","v":"Semi-mechanized3"},{"$f":"title335","v":"Unskilled labour wage"},{"$f":"title128","v":"USD/person-hour"}]
[null,null,null,null,null,null,null,{"$f":"IF(C26=\"\",\"\",\"Total\")","v":"Total"},{"$f":"IFERROR(I24+I27,I24)","v":0},{"$f":"title319","v":"USD/year"},null,null,null,null,null,null,null,null,null,{"$f":"title405","v":"Collection method"},null,null,null,{"$f":"title378&4","v":"Semi-mechanized4"},{"$f":"title407","v":"Average fuel economy"},"l/h"]
[null,null,null,null,null,null,null,null,null,null,null,null,null,null,null,null,null,null,null,{"$f":"title382","v":"Mechanized"},1,null,null,{"$f":"title378&5","v":"Semi-mechanized5"},{"$f":"title408","v":"Fuel price"},"USD/l"]
[null,null,null,null,null,null,null,null,"",null,null,null,null,null,null,null,null,null,null,{"$f":"title378","v":"Semi-mechanized"},2,null,null,{"$f":"title337","v":"Manual"},{"$f":"title379","v":"Number of unskilled workers"},{"$f":"title409","v":"person-hour/ha"}]
[null,null,null,{"$f":"title338&INDIRECT(\"'Data entry needs'!$d$\"&$A$1)&\"-\"&INDIRECT(\"'Data entry needs'!$e$\"&$A$1)","v":"Collection cost of Please Select-Please Select"},null,null,null,null,{"$f":"(I24+I28)/$G$16","v":{"$error":"#DIV/0!"}},"USD/t",null,null,null,null,null,null,null,null,null,{"$f":"title337","v":"Manual"},3,null,null,{"$f":"title337&2","v":"Manual2"},{"$f":"title335","v":"Unskilled labour wage"},{"$f":"title128","v":"USD/person-hour"}]
[]
[]
[null,null,null,null,false,null,{"$f":"IF($E$34,title340,title341)","v":"Use this method for feedstock collected and transported from different farms to a central collection point"}]
[null,null,{"$f":"title339","v":"Collection Methods Available"}]
[]
[null,null,{"$f":"title342","v":"Collection Method 2"}]
[]
[null,null,{"$f":"title328","v":"Collecting method"},{"$f":"title343","v":"Transportation requirements"},null,null,null,null,{"$f":"title346","v":"Data Source"}]
[]
[null,null,"Please Select",{"$f":"title110","v":"Feedstock Available (t/year)"},{"$f":"INDIRECT(\"'Data entry needs'!$F$\"&$A$1)","v":0},{"$f":"title344","v":"Initial ts in residue (%)"},null,{"$f":"INDIRECT(\"'Data entry needs'!$h$\"&$A$1)","v":0},false]
[null,null,null,{"$f":"title134","v":"Operating days per year"},{"$f":"'Data entry needs'!L100-INDIRECT(\"Planner_pS4!$AN$\"&$B$1)*21","v":-252},{"$f":"title345&$C$41","v":"ts (%) allowed by Please Select"},null,{"$f":"Q45","v":{"$error":"#N/A"}}]
[]
[null,null,{"$f":"title347","v":"Collection Cost Definition"}]
[null,null,{"$f":"title348","v":"Operation Cost"},{"$f":"title270","v":"Quantity"},{"$f":"title27","v":"Unit"},{"$f":"title270","v":"Quantity"},{"$f":"title27","v":"Unit"},{"$f":"title267","v":"Unit Price"},"Total",null,null,null,null,null,null,"ts (%) transported",{"$f":"VLOOKUP($C$41,$P$149:$V$155,7,FALSE)","v":{"$error":"#N/A"}}]
[null,null,{"$f":"title35","v":"Electricity"},{"$f":"Q46","v":13.333333333333334},"kWh/t res",{"$f":"D46*E41","v":0},{"$f":"title304","v":"kWh/year"},{"$f":"'Data entry needs'!$L$92","v":0},{"$f":"F46*H46","v":0},{"$f":"title319","v":"USD/year"},null,null,null,null,null,{"$f":"title35","v":"Electricity"},{"$f":"$Q$160","v":13.333333333333334}]
[null,null,{"$f":"title170","v":"Diesel"},{"$f":"Q47","v":{"$error":"#N/A"}},{"$f":"title574","v":"l diesel/t res"},{"$f":"D47*$E$41","v":{"$error":"#N/A"}},{"$f":"title350","v":"Liter Diesel/year"},{"$f":"'Data entry needs'!$F$100","v":0},{"$f":"F47*H47","v":{"$error":"#N/A"}},{"$f":"title319","v":"USD/year"},null,null,null,null,null,{"$f":"title170","v":"Diesel"},{"$f":"VLOOKUP($C$41,$P$149:$S$155,2,FALSE)","v":{"$error":"#N/A"}}]
[null,null,{"$f":"title244","v":"Water Make-up "},{"$f":"Q48","v":0.15},{"$f":"title353","v":"Liter water/t res"},{"$f":"IF(D48=0,0,E41*(H41/H42)*(1-D48))","v":{"$error":"#N/A"}},{"$f":"title351","v":"Liter water/year"},{"$f":"'Data entry needs'!$F$92","v":0},{"$f":"F48*H48*D48","v":{"$error":"#N/A"}},{"$f":"title319","v":"USD/year"},null,null,null,null,null,{"$f":"title244","v":"Water Make-up "},0.15]
[null,null,{"$f":"title349","v":"Unskilled Workers"},{"$f":"Q49","v":{"$error":"#N/A"}},{"$f":"title354","v":"person-day/t res"},{"$f":"ROUNDUP($D$49*E41*('Data entry needs'!$L$100/PRICE_FS3_PS4!E42)/'Data entry needs'!$L$99,0)","v":{"$error":"#N/A"}},{"$f":"title352","v":"person-hour"},{"$f":"'Data entry needs'!$L$96","v":0},{"$f":"F49*H49","v":{"$error":"#N/A"}},{"$f":"title319","v":"USD/year"},null,null,null,null,null,{"$f":"title127","v":"Unskilled worker"},{"$f":"VLOOKUP($C$41,$P$149:$S$155,3,FALSE)","v":{"$error":"#N/A"}}]
[null,null,null,{"$f":"Q47","v":{"$error":"#N/A"}},null,null,null,{"$f":"title269","v":"Subtotal"},{"$f":"+SUMIF($I$46:$I$49,\">0\")","v":0},{"$f":"title319","v":"USD/year"}]
[]
[null,null,{"$f":"title355","v":"Capital Investment"},{"$f":"title270","v":"Quantity"},{"$f":"title27","v":"Unit"}]
[null,null,{"$f":"$C$41&title356","v":"Please Select and equipment"},{"$f":"Q53","v":{"$error":"#N/A"}},{"$f":"VLOOKUP($C$41,$P$149:$T$155,5,FALSE)","v":{"$error":"#N/A"}},null,null,null,{"$f":"D53*(E41*10)/20","v":{"$error":"#N/A"}},{"$f":"title319","v":"USD/year"},null,null,null,null,null,{"$f":"$C$41&title356","v":"Please Select and equipment"},{"$f":"VLOOKUP($C$41,$P$149:$S$155,4,FALSE)","v":{"$error":"#N/A"}}]
[null,null,{"$f":"title357","v":"Dewatering"},{"$f":"Q54","v":7},"USD/t res",null,null,null,{"$f":"D54*$E$41/20","v":0},{"$f":"title319","v":"USD/year"},null,null,null,null,null,{"$f":"title357","v":"Dewatering"},{"$f":"$Q$158","v":7}]
[null,null,{"$f":"title358","v":"Operation and Mainteinance"},{"$f":"Q55","v":0.15},null,null,null,null,{"$f":"SUM(I53:I54)*$D$55","v":{"$error":"#N/A"}},{"$f":"title319","v":"USD/year"},null,null,null,null,null,{"$f":"title358","v":"Operation and Mainteinance"},0.15]
[null,null,null,{"$f":"+IF(AND(C54=\"\",C55=\"\"),0,IF(C54=\"\",D55,IF(C55=\"\",D54,D54+D55)))","v":7.15},null,null,null,{"$f":"title269","v":"Subtotal"},{"$f":"+SUMIF(I53:I55,\">0\")","v":0},{"$f":"title319","v":"USD/year"}]
[]
[null,null,null,{"$f":"title359","v":"Cost for Collection and transfer to storage tank"},null,null,null,null,{"$f":"SUM(I50+I56)/E41","v":{"$error":"#DIV/0!"}},"USD/t"]
[]
[null,null,{"$f":"title360","v":"Collection Method 3 - Feedstock collected from different farms"}]
[]
[null,null,{"$f":"title361","v":"Source of biomass"},null,{"$f":"title405","v":"Collection method"},null,{"$f":"title346","v":"Data Source"},false]
[null,null,{"$f":"title362","v":"Transfer from individual farms"},null,"Mechanized"]
[]
[null,null,{"$f":"title363","v":"Transportation method"},null,"Tanker Truck Transfer",null,{"$f":"title372","v":"Number Of Farms Supplying Feedstock"},{"$f":"title373","v":"Average distance to collection point (m)"},{"$f":"title374","v":"Collection Period (days)"},{"$f":"IF($E$65=title364,title375,title376)&title377","v":"Number of Tanks required"}]
[]
[null,null,{"$f":"IF($E$65=title364,title365,title366)","v":"Tranport Capacity (liter)"},null,{"$f":"title370","v":"Residue Quanitiy (t/year)"},{"$f":"INDIRECT(\"'Data entry needs'!$F$\"&$A$1)","v":0},null,null,null,null,null,null,null,null,null,{"$f":"IF($E$60=title364,title365,title366)","v":"Pipe Diameter (in)"},{"$f":"VLOOKUP($E$65,$Y$147:$AE$149,3,FALSE)","v":27600}]
[null,null,{"$f":"IF($E$65=title364,title367,title368)","v":"Engine Power (HP)"},null,{"$f":"title371","v":"Residue Density (kg/m3)"},null,null,null,{"$f":"'Data entry needs'!L100-INDIRECT(\"Planner_pS4!$AN$\"&$B$1)*21","v":-252},{"$f":"IFERROR(ROUNDUP($F$67*1000*1000/(960*$D$69*'Data entry needs'!$L$99)/$I$68,0),0)","v":0},null,null,null,null,null,{"$f":"IF($E$60=title364,title367,title368)","v":"Motor Power (HP)"},{"$f":"VLOOKUP($E$65,$Y$147:$AE$149,4,FALSE)","v":200}]
[null,null,{"$f":"title369","v":"Transfer Rate (l/h)"},null,null,null,null,null,null,null,null,null,null,null,null,{"$f":"title369","v":"Transfer Rate (l/h)"},{"$f":"VLOOKUP($E$65,$Y$147:$AE$149,5,FALSE)","v":27221.917808219176}]
[]
[null,null,null,{"$f":"+IF(OR($E$63=title337,$E$63=title378),FALSE,TRUE)","v":true},{"$f":"+IF($E$63=title337,TRUE,FALSE)","v":false}]
[null,null,{"$f":"title332","v":"Biomass Price Definition"},null,null,null,null,null,null,null,null,null,null,null,null,{"$f":"title371","v":"Residue Density (kg/m3)"},{"$f":"IFERROR(VLOOKUP(INDIRECT(\"'Data entry needs'!$e$\"&$A$1),PRICE_FS3_PS4!$Y$152:$Z$156,2,FALSE),1000)","v":1000}]
[null,null,{"$f":"title333","v":"Labour cost"},{"$f":"title270","v":"Quantity"},{"$f":"title27","v":"Unit"},{"$f":"title270","v":"Quantity"},null,{"$f":"title27","v":"Unit"},"Total",{"$f":"title27","v":"Unit"}]
[null,null,{"$f":"IF(OR($E$63=title337,$E$63=title378),title379,\"\")","v":""},null,{"$f":"IF(OR($E$63=title337,$E$63=title378),title381,\"\")","v":""},{"$f":"IF(OR($E$63=title337,$E$63=title378),title335,\"\")","v":""},{"$f":"IF(OR($E$63=title337,$E$63=title378),'Data entry needs'!$L$96,\"\")","v":""},{"$f":"IF(OR($E$63=title337,$E$63=title378),title128,\"\")","v":""},{"$f":"IFERROR(IF(OR($E$63=title337,$E$63=title378),$F$67*D74*$G$74,\"\"),0)","v":""},{"$f":"IF(OR($E$63=title337,$E$63=title378),title319,\"\")","v":""}]
[null,null,{"$f":"IF($E$63=title337,\"\",title380)","v":"Number of skilled workers"},null,{"$f":"IF($E$63=title337,\"\",title381)","v":"person-hour/t"},{"$f":"IF($E$63=title337,\"\",title336)","v":"Skilled labour wage"},{"$f":"IF($E$63=title337,\"\",'Data entry needs'!$F$96)","v":0},{"$f":"IF($E$63=title337,\"\",title128)","v":"USD/person-hour"},{"$f":"IFERROR(IF($E$63=title337,\"\",D75*G75*$F$67),0)","v":0},{"$f":"IF($E$63=title337,\"\",title319)","v":"USD/year"}]
[null,null,null,{"$f":"+IF(AND(C74=\"\",C75=\"\"),0,IF(C74=\"\",D75,IF(C75=\"\",D74,D74+D75)))","v":0},null,null,null,{"$f":"title269","v":"Subtotal"},{"$f":"+SUMIF($I$74:$I$75,\">0\")","v":0},{"$f":"title319","v":"USD/year"}]
[null,null,{"$f":"title383","v":"Collection Machinery"},{"$f":"title270","v":"Quantity"},{"$f":"title27","v":"Unit"},{"$f":"title270","v":"Quantity"},null,{"$f":"title27","v":"Unit"},"Total",{"$f":"title27","v":"Unit"}]
[null,null,{"$f":"IF(OR($E$63=title382,$E$63=title378),title384,\"\")","v":"Collection Diesel Consumption"},null,{"$f":"IF(OR($E$63=title382,$E$63=title378),title575,\"\")","v":"l diesel/h"},{"$f":"IF(OR($E$63=title382,$E$63=title378),title389,\"\")","v":"Diesel Cost"},{"$f":"IF(OR($E$63=title382,$E$63=title378),'Data entry needs'!F$100,\"\")","v":0},{"$f":"IF(OR($E$63=title382,$E$63=title378),title576,\"\")","v":"USD/l diesel"},{"$f":"IFERROR(IF(OR($E$63=title382,$E$63=title378),D78*G78*D75*F67,\"\"),0)","v":0},{"$f":"title319","v":"USD/year"}]
[null,null,{"$f":"IF($E$65=title364,title385,title386)","v":"Truck Diesel Consumption"},null,{"$f":"IF($E$65=title364,title387,title388)","v":"l diesel/day"},{"$f":"IF($E$65=title364,title389,title390)","v":"Diesel Cost"},{"$f":"IF($E$65=title364,'Data entry needs'!F$100,'Data entry needs'!$L$92)","v":0},{"$f":"IF($E$65=title364,title576,\"USD/kWh\")","v":"USD/l diesel"},{"$f":"IFERROR(D79*G79*$I$68*$J$68,0)","v":0},{"$f":"title319","v":"USD/year"},null,null,null,null,null,{"$f":"IF($E$60=title364,title385,title386)","v":"Pump Electricity Consumption"},{"$f":"VLOOKUP($E$65,$Y$147:$AE$149,7,FALSE)","v":154}]
[null,null,null,null,null,null,null,{"$f":"title269","v":"Subtotal"},{"$f":"+SUMIF($I$78:$I$79,\">0\")","v":0},{"$f":"title319","v":"USD/year"}]
[null,null,{"$f":"title391","v":"Equipment"},{"$f":"title270","v":"Quantity"},{"$f":"title27","v":"Unit"},{"$f":"title270","v":"Quantity"},null,{"$f":"title27","v":"Unit"},"Total",{"$f":"title27","v":"Unit"}]
[null,null,{"$f":"IF($E$65=title364,title392,title393)","v":"Liquid Tanker Truck"},{"$f":"IF($E$65=title364,$J$68,$G$68*$H$68*1.2)","v":0},{"$f":"IF($E$65=title364,title398,\"m\")","v":"tank(s)"},{"$f":"IF($E$65=title364,title399,title400)","v":"Cost per Tank"},{"$f":"VLOOKUP($E$65,$Y$147:$AF$149,8,FALSE)/10","v":7900},{"$f":"IF($E$65=title364,title402,title403)","v":"USD/tank/year"},{"$f":"IFERROR(D82*G82,0)","v":0},{"$f":"title319","v":"USD/year"}]
[null,null,{"$f":"IF($E$65=title364,title394&$D$68&title395,title396&$D$68&title397)","v":"Semi-tractor 185  HP"},null,"USD",{"$f":"title401","v":"Depreciation Period"},null,{"$f":"title164","v":"year"},{"$f":"IFERROR(D83*$J$68/G83,0)","v":0},{"$f":"title319","v":"USD/year"},null,null,null,null,null,{"$f":"IF($E$60=title364,title406,title396&$D$63&title397)","v":"Pump  HP with agitator"},{"$f":"VLOOKUP($E$65,$Y$147:$AH$149,10,FALSE)","v":148000}]
[null,null,{"$f":"title358","v":"Operation and Mainteinance"},null,null,null,null,null,{"$f":"IFERROR(SUM(I82:I83)*$D$84,0)","v":0},{"$f":"title319","v":"USD/year"},null,null,null,null,null,{"$f":"title358","v":"Operation and Mainteinance"},0.15]
[null,null,null,null,null,null,null,{"$f":"title269","v":"Subtotal"},{"$f":"I82","v":0},{"$f":"title319","v":"USD/year"},null,null,null,null,null,{"$f":"title401","v":"Depreciation Period"},15]
[]
[null,null,null,{"$f":"title404","v":"Cost for Collection and transfer to central collection point"},null,null,null,null,{"$f":"(I85+I80+I76)/$F$67","v":{"$error":"#DIV/0!"}},"USD/t"]
[]
[]
[]
[]
[]
[]
[]
[]
[]
[]
[]
[]
[]
[]
[]
[]
[]
[]
[]
[]
[]
[]
[]
[]
[]
[]
[]
[]
[]
[]
[]
[null,null,null,null,null,null,null,null,null,null,null,null,null,null,null,{"$f":"title410","v":"Sources of biomass"}]
[null,null,null,null,null,null,null,null,null,null,null,null,null,null,null,{"$f":"title411","v":"Biomass spread in the field"}]
[null,null,null,null,null,null,null,null,null,null,null,null,null,null,null,{"$f":"title412","v":"Biomass collected from field"}]
[null,null,null,null,null,null,null,null,null,null,null,null,null,null,null,{"$f":"title413","v":"Biomass from food processing plant"}]
[]
[]
[]
[]
[null,null,null,null,null,null,null,null,null,null,null,null,null,null,null,{"$f":"title405","v":"Collection method"}]
[null,null,null,null,null,null,null,null,null,null,null,null,null,null,null,{"$f":"title382","v":"Mechanized"}]
[null,null,null,null,null,null,null,null,null,null,null,null,null,null,null,{"$f":"title378","v":"Semi-mechanized"}]
[null,null,null,null,null,null,null,null,null,null,null,null,null,null,null,{"$f":"title337","v":"Manual"}]
[]
[]
[]
[]
[]
[]
[]
[]
[]
[]
[]
[]
[]
[]
[null,null,null,null,null,null,null,null,null,null,null,null,null,null,null,"Dairy maNURE",40.753799999999998,"Manure (kg/head/day)"]
[null,null,null,null,null,null,null,null,null,null,null,null,null,null,null,null,"Energy Use Cost","Labor and Mainteinance",null,null,null,"ts (%) transported","Dewateing",null,null,null,{"$f":"title440","v":"Capacity"},{"$f":"title441","v":"Engine/motor (hp)"},{"$f":"title369","v":"Transfer Rate (l/h)"},{"$f":"title442","v":"Transfer time (m/h)"},{"$f":"title443","v":"Energy Use  (kw)"},{"$f":"title444","v":"Add equipment"}]
[null,null,null,null,null,null,null,null,null,null,null,null,null,null,null,{"$f":"title405","v":"Collection method"},"liters diesel/t residue","workers*day/t residue","Capital cost","Capital cost","Capital cost",null,"Final solids ts (%)",null,{"$f":"title364","v":"Tanker Truck Transfer"},null,27600,200,27221.917808219176,609.6,154,79000,"USD",{"$f":"148000","v":148000},2010,{"$f":"title406","v":"Semi-tractor 185 HP"},null,null,"l/working day"]
[null,null,null,null,null,null,null,null,null,null,null,null,null,null,null,{"$f":"title74","v":"Please Select"},null,null,null,null,null,null,null,null,{"$f":"title432","v":"High Volume Pipeline"},null,"6´´ PVC",150,3028,1016,215,{"$f":"37/3.048","v":12.139107611548557},"USD/m",37075,2003]
[null,null,null,null,null,null,null,null,null,null,null,null,null,null,null,{"$f":"title414","v":"Alley Scrapers"},0.14330809896079807,0.42057427773606393,{"$f":"(AVERAGE(35,45)*$B$52+10000+4000)/3785.41178","v":3.698408736922143},{"$f":"title421","v":"USD/liter mixture"},2009,0.08,0.5,null,{"$f":"title433","v":"Low Volume Pipeline"},null,"4´´ PVC",7.5,378,127,86,{"$f":"12.4/3.048","v":4.0682414698162734},"USD/m",7675,2003]
[null,null,null,null,null,null,null,null,null,null,null,null,null,null,null,{"$f":"title415","v":"Flush System"},0.4093569308278352,0.10526625737967994,{"$f":"(4950.08+(16+9.8)*$B$52)/3785.41178","v":1.3076727943188258},"USD/liter mixture",2014,{"$f":"AVERAGE(1%,3%)","v":0.02},0.5]
[null,null,null,null,null,null,null,null,null,null,null,null,null,null,null,{"$f":"title416","v":"Vacum Scraper"},3.190595592141102,1.9769935564290937,10,"USD/liter mixture",2010,0.18,0.5,null,null,{"$f":"title434","v":"Density (Kg/m3)"}]
[null,null,null,null,null,null,null,null,null,null,null,null,null,null,null,{"$f":"title417","v":"Skid-loader"},0.75612714559717353,1.2830705357537211,{"$f":"(142.6*0.914+58.5*0.084+50.75*0.997)/$Q$145","v":4.5602655457895951},"USD/liter mixture",2010,{"$f":"AVERAGE(8%,18%)","v":0.13},0.5,null,{"$f":"title435","v":"Buffalo"},960]
[null,null,null,null,null,null,null,null,null,null,null,null,null,null,null,{"$f":"title418","v":"Cross gutter Scraper"},1.5259658685640533E-2,2.6500596263415929E-2,5,"USD/liter mixture",2010,0.08,0.5,null,{"$f":"title436","v":"Cattle"},960]
[null,null,null,null,null,null,null,null,null,null,null,null,null,null,null,{"$f":"title419","v":"Cross Gutter Auger"},0.20478904265077005,2.6255220372088005E-2,{"$f":"2200*30/2378/10","v":2.7754415475189234},"USD/liter mixture",2010,0.08,0.5,null,{"$f":"title437","v":"Dairy Cattle"},994]
[null,null,null,null,null,null,null,null,null,null,null,null,null,null,null,{"$f":"title420","v":"Flush Flume"},0.13645231027594507,2.6255220372088005E-2,{"$f":"(4950.08+(16+9.8)*$B$52)*1.5/3785.41178","v":1.9615091914782385},"USD/liter mixture",2010,{"$f":"AVERAGE(4%,9%)","v":6.5000000000000002E-2},0.5,null,{"$f":"title438","v":"Poultry"},961.11]
[null,null,null,null,null,null,null,null,null,null,null,null,null,null,null,null,null,null,null,null,null,null,null,null,{"$f":"title439","v":"Swine"},1140.9000000000001]
[null,null,null,null,null,null,null,null,null,null,null,null,null,null,null,{"$f":"title357","v":"Dewatering"},"Screw Press ",{"$f":"PROPER(title164)","v":"Year"}]
[null,null,null,null,null,null,null,null,null,null,null,null,null,null,null,{"$f":"title422","v":"Capital Cost (USD/t residue)"},{"$f":"AVERAGE(0.2,0.5)*1000000*0.12/AVERAGE(4000,8000)","v":7},2002]
[null,null,null,null,null,null,null,null,null,null,null,null,null,null,null,{"$f":"title423","v":"Operation (worker/t residue)"},{"$f":"AVERAGE(20,40)*1000/AVERAGE(4000,8000)/(300*8*160)","v":1.3020833333333334E-5}]
[null,null,null,null,null,null,null,null,null,null,null,null,null,null,null,{"$f":"title424","v":"Energy Demand kWh/t residue"},{"$f":"AVERAGE(5,15)*8000/AVERAGE(4000,8000)","v":13.333333333333334},2002]
[]
[]
[]
[]
[null,null,null,null,null,null,null,null,null,null,null,null,null,null,null,{"$f":"title74","v":"Please Select"},{"$f":"title405","v":"Collection method"},"Show","Section to Show",{"$f":"VLOOKUP(INDIRECT(\"'Data entry needs'!$d$\"&$A$1),$P$166:$R$178,3,FALSE)","v":{"$error":"#N/A"}}]
[null,null,null,null,null,null,null,null,null,null,null,null,null,null,null,{"$f":"title184","v":"Biodiesel/Oilseed Ind."},{"$f":"title425","v":"No collection neeeded"},1,{"$f":"title429&\" 0\"","v":"Option 0"},0,0]
[null,null,null,null,null,null,null,null,null,null,null,null,null,null,null,{"$f":"title85","v":"Crop Residues"},{"$f":"title426","v":"Method 1"},2,{"$f":"title429&\" 1\"","v":"Option 1"},{"$f":"$I$31","v":{"$error":"#DIV/0!"}},{"$f":"$D$24/E16","v":{"$error":"#DIV/0!"}},{"$f":"title381","v":"person-hour/t"}]
[null,null,null,null,null,null,null,null,null,null,null,null,null,null,null,{"$f":"title185","v":"Dairy-milk ind."},{"$f":"title427","v":"Method 2, Method 3"},4,{"$f":"title429&\" 2\"","v":"Option 2"},{"$f":"$I$58","v":{"$error":"#DIV/0!"}},{"$f":"F49/E41","v":{"$error":"#N/A"}},{"$f":"title381","v":"person-hour/t"}]
[null,null,null,null,null,null,null,null,null,null,null,null,null,null,null,{"$f":"title120","v":"Energy Crops"},{"$f":"title425","v":"No collection neeeded"},1,{"$f":"title429&\" 3\"","v":"Option 3"},{"$f":"$I$87","v":{"$error":"#DIV/0!"}},{"$f":"D76","v":0},{"$f":"title381","v":"person-hour/t"}]
[null,null,null,null,null,null,null,null,null,null,null,null,null,null,null,{"$f":"title186","v":"Eth-Sugar-Starch Ind."},{"$f":"title425","v":"No collection neeeded"},1]
[null,null,null,null,null,null,null,null,null,null,null,null,null,null,null,{"$f":"title187","v":"Food Process. Res."},{"$f":"title425","v":"No collection neeeded"},1,{"$f":"title430","v":"Result"},{"$f":"IF($T$165=1,T166,IF($T$165=2,$T$167,IF($T$165=3,T168,IF(AND($T$165=4,$E$34),$T$168,$T$169))))","v":{"$error":"#N/A"}}]
[null,null,null,null,null,null,null,null,null,null,null,null,null,null,null,{"$f":"title188","v":"Grass"},{"$f":"title426","v":"Method 1"},2,{"$f":"title431","v":"Employees"},{"$f":"IF($T$165=1,U166,IF($T$165=2,$U$167,IF($T$165=3,U169,IF(AND($T$165=4,$E$34),$U$168,$U$169))))","v":{"$error":"#N/A"}},{"$f":"title381","v":"person-hour/t"}]
[null,null,null,null,null,null,null,null,null,null,null,null,null,null,null,{"$f":"title119","v":"Crops"},{"$f":"title425","v":"No collection neeeded"},1]
[null,null,null,null,null,null,null,null,null,null,null,null,null,null,null,{"$f":"title189","v":"Other Options"},{"$f":"title425","v":"No collection neeeded"},1]
[null,null,null,null,null,null,null,null,null,null,null,null,null,null,null,{"$f":"title190","v":"Slaughterhouses wastes"},{"$f":"title428","v":"Method 2"},3]
[null,null,null,null,null,null,null,null,null,null,null,null,null,null,null,{"$f":"title191","v":"Yeast-Alcoholic Bev."},{"$f":"title425","v":"No collection neeeded"},1]
[null,null,null,null,null,null,null,null,null,null,null,null,null,null,null,{"$f":"title84","v":"Manure"},{"$f":"title427","v":"Method 2, Method 3"},4]
[null,null,null,null,null,null,null,null,null,null,null,null,null,null,null,{"$f":"title192","v":"Wastewater"},{"$f":"title425","v":"No collection neeeded"},1]

{"sheet":"PRICE_FS4_PS4","index":58,"n_rows":178,"n_cols":39,"rows_kept":178,"cut":false,"hidden":true,"merged":[[40,8,40,9],[2,2,2,9],[5,2,5,3],[5,4,5,6],[7,2,10,9],[14,6,14,7],[15,2,15,3],[15,6,15,7],[30,3,30,7],[33,4,34,4],[33,5,34,5],[33,6,34,9],[34,2,34,3],[64,9,66,9],[86,3,86,7],[41,8,41,9],[57,3,57,7],[61,4,61,5],[61,6,62,6],[62,4,62,5],[64,2,64,3],[64,4,64,5],[64,6,66,6],[64,7,66,7],[64,8,66,8]]}
[{"$f":"PRICE_FS3_PS4!A1+2","v":81},91]
[]
[null,null,{"$f":"+title324&UPPER(INDIRECT(\"'Data entry needs'!$d$\"&$A$1)&\"-\"&INDIRECT(\"'Data entry needs'!$e$\"&$A$1))","v":"COLLECTION COSTS CALCULATOR FOR PLEASE SELECT-PLEASE SELECT"}]
[]
[]
[null,null,{"$f":"title193","v":"Use white cells to input data"},null,{"$f":"title194","v":"Grey cells are used for calculations"}]
[]
[null,null,{"$f":"title325&INDIRECT(\"'Data entry needs'!$d$\"&$A$1)&title326","v":"No collection method is required. It is assumed that Please Select are already collected. Then, transportation cost and/or market price should be considered."}]
[]
[]
[]
[]
[null,null,{"$f":"title327","v":"Collection Method 1 - Biomass spread in the field"}]
[]
[null,null,{"$f":"title328","v":"Collecting method"},null,{"$f":"title329","v":"Biomass Yield"},null,{"$f":"title110","v":"Feedstock Available (t/year)"},null,{"$f":"title330","v":"Collection days"}]
[null,null,"Mechanized",null,null,"t/ha",{"$f":"INDIRECT(\"'Data entry needs'!$F$\"&$A$1)","v":0},null,{"$f":"'Data entry needs'!L100-INDIRECT(\"Planner_pS4!$AN$\"&$B$1)*21","v":-252}]
[]
[null,null,{"$f":"title331","v":"Biomass Collection definition"}]
[]
[null,null,{"$f":"title332","v":"Biomass Price Definition"},null,null,null,null,null,null,null,null,null,null,null,null,null,null,null,null,null,null,{"$f":"title405","v":"Collection method"},null,{"$f":"title382","v":"Mechanized"},{"$f":"title380","v":"Number of skilled workers"},{"$f":"title409","v":"person-hour/ha"}]
[null,null,{"$f":"title333","v":"Labour cost"},{"$f":"title270","v":"Quantity"},{"$f":"title27","v":"Unit"},{"$f":"title270","v":"Quantity"},null,{"$f":"title27","v":"Unit"},"Total",{"$f":"title27","v":"Unit"},null,null,null,null,null,null,null,null,null,null,null,{"$f":"$C$16","v":"Mechanized"},null,{"$f":"title382&2","v":"Mechanized2"},{"$f":"title336","v":"Skilled labour wage"},{"$f":"title128","v":"USD/person-hour"}]
[null,null,{"$f":"IFERROR(VLOOKUP($V$21&$W21,$X$20:$Z$31,2,FALSE),\"\")","v":"Number of skilled workers"},null,{"$f":"IFERROR(VLOOKUP($V$21&$W21,$X$20:$Z$31,3,FALSE),\"\")","v":"person-hour/ha"},{"$f":"IFERROR(VLOOKUP($V$21&$W23,$X$20:$Z$31,2,FALSE),\"\")","v":"Skilled labour wage"},{"$f":"IF(F22=\"\",\"\",IF(F22=title335,'Data entry needs'!$L$96,IF(F22=title336,'Data entry needs'!F96)))","v":0},{"$f":"IFERROR(VLOOKUP($V$21&$W23,$X$20:$Z$31,3,FALSE),\"\")","v":"USD/person-hour"},{"$f":"IFERROR(G22*D22*(G16/E16)*('Data entry needs'!$L$100/$I$16),0)","v":0},{"$f":"IF(C22=\"\",\"\",title319)","v":"USD/year"},null,null,null,null,null,null,null,null,null,null,null,null,1,{"$f":"title382&4","v":"Mechanized4"},{"$f":"title407","v":"Average fuel economy"},"l/h"]
[null,null,{"$f":"IFERROR(VLOOKUP($V$21&$W22,$X$20:$Z$31,2,FALSE),\"\")","v":""},null,{"$f":"IFERROR(VLOOKUP($V$21&$W22,$X$20:$Z$31,3,FALSE),\"\")","v":""},{"$f":"IFERROR(VLOOKUP($V$21&$W24,$X$20:$Z$31,2,FALSE),\"\")","v":""},{"$f":"IF(F23=\"\",\"\",'Data entry needs'!L96)","v":""},{"$f":"title128","v":"USD/person-hour"},{"$f":"IFERROR(G23*D23*(G16/E16)*('Data entry needs'!$L$100/$I$16),0)","v":0},{"$f":"IF(C23=\"\",\"\",title319)","v":""},null,null,null,null,null,null,null,null,null,null,null,{"$f":"VLOOKUP($V$21,$T$29:$U$31,2,FALSE)","v":1},2,{"$f":"title382&5","v":"Mechanized5"},{"$f":"title408","v":"Fuel price"},"USD/l"]
[null,null,null,{"$f":"+IF(AND(C22=\"\",C23=\"\"),0,IF(C22=\"\",D23,IF(C23=\"\",D22,D22+D23)))","v":0},null,null,null,{"$f":"title269","v":"Subtotal"},{"$f":"+SUMIF($I$22:$I$23,\">0\")","v":0},{"$f":"title319","v":"USD/year"},null,null,null,null,null,null,null,null,null,null,null,null,3,{"$f":"title378","v":"Semi-mechanized"},{"$f":"title380","v":"Number of skilled workers"},{"$f":"title409","v":"person-hour/ha"}]
[null,null,{"$f":"title334","v":"Machinery & operating cost"},{"$f":"title270","v":"Quantity"},{"$f":"title27","v":"Unit"},{"$f":"title270","v":"Quantity"},null,{"$f":"title27","v":"Unit"},"Total",{"$f":"title27","v":"Unit"},null,null,null,null,null,null,null,null,null,null,null,null,4,{"$f":"title378&1","v":"Semi-mechanized1"},{"$f":"title379","v":"Number of unskilled workers"},{"$f":"title409","v":"person-hour/ha"}]
[null,null,{"$f":"IFERROR(VLOOKUP($V$21&$W25,$X$20:$Z$31,2,FALSE),\"\")","v":"Average fuel economy"},null,{"$f":"IFERROR(VLOOKUP($V$21&$W25,$X$20:$Z$31,3,FALSE),\"\")","v":"l/h"},{"$f":"IFERROR(VLOOKUP($V$21&$W26,$X$20:$Z$31,2,FALSE),\"\")","v":"Fuel price"},{"$f":"IF(F26=\"\",\"\",'Data entry needs'!$F$100)","v":0},{"$f":"+IFERROR(VLOOKUP($V$21&$W26,$X$20:$Z$31,3,FALSE),\"\")","v":"USD/l"},{"$f":"+IFERROR(D26*G26*IF($C$16=title337,0,$D$22*G16/E16)*('Data entry needs'!$L$100/$I$16),\"\")","v":""},{"$f":"IF(C26=\"\",\"\",title319)","v":"USD/year"},null,null,null,null,null,null,null,null,null,null,null,null,5,{"$f":"title378&2","v":"Semi-mechanized2"},{"$f":"title336","v":"Skilled labour wage"},{"$f":"title128","v":"USD/person-hour"}]
[null,null,null,null,null,null,null,{"$f":"IF(C26=\"\",\"\",title269)","v":"Subtotal"},{"$f":"+I26","v":""},{"$f":"IF(C26=\"\",\"\",title319)","v":"USD/year"},null,null,null,null,null,null,null,null,null,null,null,null,null,{"$f":"title378&3","v":"Semi-mechanized3"},{"$f":"title335","v":"Unskilled labour wage"},{"$f":"title128","v":"USD/person-hour"}]
[null,null,null,null,null,null,null,{"$f":"IF(C26=\"\",\"\",\"Total\")","v":"Total"},{"$f":"IFERROR(I24+I27,I24)","v":0},{"$f":"title319","v":"USD/year"},null,null,null,null,null,null,null,null,null,{"$f":"title405","v":"Collection method"},null,null,null,{"$f":"title378&4","v":"Semi-mechanized4"},{"$f":"title407","v":"Average fuel economy"},"l/h"]
[null,null,null,null,null,null,null,null,null,null,null,null,null,null,null,null,null,null,null,{"$f":"title382","v":"Mechanized"},1,null,null,{"$f":"title378&5","v":"Semi-mechanized5"},{"$f":"title408","v":"Fuel price"},"USD/l"]
[null,null,null,null,null,null,null,null,"",null,null,null,null,null,null,null,null,null,null,{"$f":"title378","v":"Semi-mechanized"},2,null,null,{"$f":"title337","v":"Manual"},{"$f":"title379","v":"Number of unskilled workers"},{"$f":"title409","v":"person-hour/ha"}]
[null,null,null,{"$f":"title338&INDIRECT(\"'Data entry needs'!$d$\"&$A$1)&\"-\"&INDIRECT(\"'Data entry needs'!$e$\"&$A$1)","v":"Collection cost of Please Select-Please Select"},null,null,null,null,{"$f":"(I24+I28)/$G$16","v":{"$error":"#DIV/0!"}},"USD/t",null,null,null,null,null,null,null,null,null,{"$f":"title337","v":"Manual"},3,null,null,{"$f":"title337&2","v":"Manual2"},{"$f":"title335","v":"Unskilled labour wage"},{"$f":"title128","v":"USD/person-hour"}]
[]
[]
[null,null,null,null,false,null,{"$f":"IF($E$34,title340,title341)","v":"Use this method for feedstock collected and transported from different farms to a central collection point"}]
[null,null,{"$f":"title339","v":"Collection Methods Available"}]
[]
[null,null,{"$f":"title342","v":"Collection Method 2"}]
[]
[null,null,{"$f":"title328","v":"Collecting method"},{"$f":"title343","v":"Transportation requirements"},null,null,null,null,{"$f":"title346","v":"Data Source"}]
[]
[null,null,"Please Select",{"$f":"title110","v":"Feedstock Available (t/year)"},{"$f":"INDIRECT(\"'Data entry needs'!$F$\"&$A$1)","v":0},{"$f":"title344","v":"Initial ts in residue (%)"},null,{"$f":"INDIRECT(\"'Data entry needs'!$h$\"&$A$1)","v":0},false]
[null,null,null,{"$f":"title134","v":"Operating days per year"},{"$f":"'Data entry needs'!L100-INDIRECT(\"Planner_pS4!$AN$\"&$B$1)*21","v":-252},{"$f":"title345&$C$41","v":"ts (%) allowed by Please Select"},null,{"$f":"Q45","v":{"$error":"#N/A"}}]
[]
[null,null,{"$f":"title347","v":"Collection Cost Definition"}]
[null,null,{"$f":"title348","v":"Operation Cost"},{"$f":"title270","v":"Quantity"},{"$f":"title27","v":"Unit"},{"$f":"title270","v":"Quantity"},{"$f":"title27","v":"Unit"},{"$f":"title267","v":"Unit Price"},"Total",null,null,null,null,null,null,"ts (%) transported",{"$f":"VLOOKUP($C$41,$P$149:$V$155,7,FALSE)","v":{"$error":"#N/A"}}]
[null,null,{"$f":"title35","v":"Electricity"},{"$f":"Q46","v":13.333333333333334},"kWh/t res",{"$f":"D46*E41","v":0},{"$f":"title304","v":"kWh/year"},{"$f":"'Data entry needs'!$L$92","v":0},{"$f":"F46*H46","v":0},{"$f":"title319","v":"USD/year"},null,null,null,null,null,{"$f":"title35","v":"Electricity"},{"$f":"$Q$160","v":13.333333333333334}]
[null,null,{"$f":"title170","v":"Diesel"},{"$f":"Q47","v":{"$error":"#N/A"}},{"$f":"title574","v":"l diesel/t res"},{"$f":"D47*$E$41","v":{"$error":"#N/A"}},{"$f":"title350","v":"Liter Diesel/year"},{"$f":"'Data entry needs'!$F$100","v":0},{"$f":"F47*H47","v":{"$error":"#N/A"}},{"$f":"title319","v":"USD/year"},null,null,null,null,null,{"$f":"title170","v":"Diesel"},{"$f":"VLOOKUP($C$41,$P$149:$S$155,2,FALSE)","v":{"$error":"#N/A"}}]
[null,null,{"$f":"title244","v":"Water Make-up "},{"$f":"Q48","v":0.15},{"$f":"title353","v":"Liter water/t res"},{"$f":"IF(D48=0,0,E41*(H41/H42)*(1-D48))","v":{"$error":"#N/A"}},{"$f":"title351","v":"Liter water/year"},{"$f":"'Data entry needs'!$F$92","v":0},{"$f":"F48*H48*D48","v":{"$error":"#N/A"}},{"$f":"title319","v":"USD/year"},null,null,null,null,null,{"$f":"title244","v":"Water Make-up "},0.15]
[null,null,{"$f":"title349","v":"Unskilled Workers"},{"$f":"Q49","v":{"$error":"#N/A"}},{"$f":"title354","v":"person-day/t res"},{"$f":"ROUNDUP($D$49*E41*('Data entry needs'!$L$100/PRICE_FS4_PS4!E42)/'Data entry needs'!$L$99,0)","v":{"$error":"#N/A"}},{"$f":"title352","v":"person-hour"},{"$f":"'Data entry needs'!$L$96","v":0},{"$f":"F49*H49","v":{"$error":"#N/A"}},{"$f":"title319","v":"USD/year"},null,null,null,null,null,{"$f":"title127","v":"Unskilled worker"},{"$f":"VLOOKUP($C$41,$P$149:$S$155,3,FALSE)","v":{"$error":"#N/A"}}]
[null,null,null,{"$f":"Q47","v":{"$error":"#N/A"}},null,null,null,{"$f":"title269","v":"Subtotal"},{"$f":"+SUMIF($I$46:$I$49,\">0\")","v":0},{"$f":"title319","v":"USD/year"}]
[]
[null,null,{"$f":"title355","v":"Capital Investment"},{"$f":"title270","v":"Quantity"},{"$f":"title27","v":"Unit"}]
[null,null,{"$f":"$C$41&title356","v":"Please Select and equipment"},{"$f":"Q53","v":{"$error":"#N/A"}},{"$f":"VLOOKUP($C$41,$P$149:$T$155,5,FALSE)","v":{"$error":"#N/A"}},null,null,null,{"$f":"D53*(E41*10)/20","v":{"$error":"#N/A"}},{"$f":"title319","v":"USD/year"},null,null,null,null,null,{"$f":"$C$41&title356","v":"Please Select and equipment"},{"$f":"VLOOKUP($C$41,$P$149:$S$155,4,FALSE)","v":{"$error":"#N/A"}}]
[null,null,{"$f":"title357","v":"Dewatering"},{"$f":"Q54","v":7},"USD/t res",null,null,null,{"$f":"D54*$E$41/20","v":0},{"$f":"title319","v":"USD/year"},null,null,null,null,null,{"$f":"title357","v":"Dewatering"},{"$f":"$Q$158","v":7}]
[null,null,{"$f":"title358","v":"Operation and Mainteinance"},{"$f":"Q55","v":0.15},null,null,null,null,{"$f":"SUM(I53:I54)*$D$55","v":{"$error":"#N/A"}},{"$f":"title319","v":"USD/year"},null,null,null,null,null,{"$f":"title358","v":"Operation and Mainteinance"},0.15]
[null,null,null,{"$f":"+IF(AND(C54=\"\",C55=\"\"),0,IF(C54=\"\",D55,IF(C55=\"\",D54,D54+D55)))","v":7.15},null,null,null,{"$f":"title269","v":"Subtotal"},{"$f":"+SUMIF(I53:I55,\">0\")","v":0},{"$f":"title319","v":"USD/year"}]
[]
[null,null,null,{"$f":"title359","v":"Cost for Collection and transfer to storage tank"},null,null,null,null,{"$f":"SUM(I50+I56)/E41","v":{"$error":"#DIV/0!"}},"USD/t"]
[]
[null,null,{"$f":"title360","v":"Collection Method 3 - Feedstock collected from different farms"}]
[]
[null,null,{"$f":"title361","v":"Source of biomass"},null,{"$f":"title405","v":"Collection method"},null,{"$f":"title346","v":"Data Source"},false]
[null,null,{"$f":"title362","v":"Transfer from individual farms"},null,"Mechanized"]
[]
[null,null,{"$f":"title363","v":"Transportation method"},null,"Tanker Truck Transfer",null,{"$f":"title372","v":"Number Of Farms Supplying Feedstock"},{"$f":"title373","v":"Average distance to collection point (m)"},{"$f":"title374","v":"Collection Period (days)"},{"$f":"IF($E$65=title364,title375,title376)&title377","v":"Number of Tanks required"}]
[]
[null,null,{"$f":"IF($E$65=title364,title365,title366)","v":"Tranport Capacity (liter)"},null,{"$f":"title370","v":"Residue Quanitiy (t/year)"},{"$f":"INDIRECT(\"'Data entry needs'!$F$\"&$A$1)","v":0},null,null,null,null,null,null,null,null,null,{"$f":"IF($E$60=title364,title365,title366)","v":"Pipe Diameter (in)"},{"$f":"VLOOKUP($E$65,$Y$147:$AE$149,3,FALSE)","v":27600}]
[null,null,{"$f":"IF($E$65=title364,title367,title368)","v":"Engine Power (HP)"},null,{"$f":"title371","v":"Residue Density (kg/m3)"},{"$f":"Q72","v":1000},null,null,{"$f":"'Data entry needs'!L100-INDIRECT(\"Planner_pS4!$AN$\"&$B$1)*21","v":-252},{"$f":"IFERROR(ROUNDUP($F$67*1000*1000/(960*$D$69*'Data entry needs'!$L$99)/$I$68,0),0)","v":0},null,null,null,null,null,{"$f":"IF($E$60=title364,title367,title368)","v":"Motor Power (HP)"},{"$f":"VLOOKUP($E$65,$Y$147:$AE$149,4,FALSE)","v":200}]
[null,null,{"$f":"title369","v":"Transfer Rate (l/h)"},null,null,null,null,null,null,null,null,null,null,null,null,{"$f":"title369","v":"Transfer Rate (l/h)"},{"$f":"VLOOKUP($E$65,$Y$147:$AE$149,5,FALSE)","v":27221.917808219176}]
[]
[null,null,null,{"$f":"+IF(OR($E$63=title337,$E$63=title378),FALSE,TRUE)","v":true},{"$f":"+IF($E$63=title337,TRUE,FALSE)","v":false}]
[null,null,{"$f":"title332","v":"Biomass Price Definition"},null,null,null,null,null,null,null,null,null,null,null,null,{"$f":"title371","v":"Residue Density (kg/m3)"},{"$f":"IFERROR(VLOOKUP(INDIRECT(\"'Data entry needs'!$e$\"&$A$1),PRICE_FS3_PS4!$Y$152:$Z$156,2,FALSE),1000)","v":1000}]
[null,null,{"$f":"title333","v":"Labour cost"},{"$f":"title270","v":"Quantity"},{"$f":"title27","v":"Unit"},{"$f":"title270","v":"Quantity"},null,{"$f":"title27","v":"Unit"},"Total",{"$f":"title27","v":"Unit"}]
[null,null,{"$f":"IF(OR($E$63=title337,$E$63=title378),title379,\"\")","v":""},null,{"$f":"IF(OR($E$63=title337,$E$63=title378),title381,\"\")","v":""},{"$f":"IF(OR($E$63=title337,$E$63=title378),title335,\"\")","v":""},{"$f":"IF(OR($E$63=title337,$E$63=title378),'Data entry needs'!$L$96,\"\")","v":""},{"$f":"IF(OR($E$63=title337,$E$63=title378),title128,\"\")","v":""},{"$f":"IFERROR(IF(OR($E$63=title337,$E$63=title378),$F$67*D74*$G$74,\"\"),0)","v":""},{"$f":"IF(OR($E$63=title337,$E$63=title378),title319,\"\")","v":""}]
[null,null,{"$f":"IF($E$63=title337,\"\",title380)","v":"Number of skilled workers"},null,{"$f":"IF($E$63=title337,\"\",title381)","v":"person-hour/t"},{"$f":"IF($E$63=title337,\"\",title336)","v":"Skilled labour wage"},{"$f":"IF($E$63=title337,\"\",'Data entry needs'!$F$96)","v":0},{"$f":"IF($E$63=title337,\"\",title128)","v":"USD/person-hour"},{"$f":"IFERROR(IF($E$63=title337,\"\",D75*G75*$F$67),0)","v":0},{"$f":"IF($E$63=title337,\"\",title319)","v":"USD/year"}]
[null,null,null,{"$f":"+IF(AND(C74=\"\",C75=\"\"),0,IF(C74=\"\",D75,IF(C75=\"\",D74,D74+D75)))","v":0},null,null,null,{"$f":"title269","v":"Subtotal"},{"$f":"+SUMIF($I$74:$I$75,\">0\")","v":0},{"$f":"title319","v":"USD/year"}]
[null,null,{"$f":"title383","v":"Collection Machinery"},{"$f":"title270","v":"Quantity"},{"$f":"title27","v":"Unit"},{"$f":"title270","v":"Quantity"},null,{"$f":"title27","v":"Unit"},"Total",{"$f":"title27","v":"Unit"}]
[null,null,{"$f":"IF(OR($E$63=title382,$E$63=title378),title384,\"\")","v":"Collection Diesel Consumption"},null,{"$f":"IF(OR($E$63=title382,$E$63=title378),title575,\"\")","v":"l diesel/h"},{"$f":"IF(OR($E$63=title382,$E$63=title378),title389,\"\")","v":"Diesel Cost"},{"$f":"IF(OR($E$63=title382,$E$63=title378),'Data entry needs'!F$100,\"\")","v":0},{"$f":"IF(OR($E$63=title382,$E$63=title378),title576,\"\")","v":"USD/l diesel"},{"$f":"IFERROR(IF(OR($E$63=title382,$E$63=title378),D78*G78*D75*F67,\"\"),0)","v":0},{"$f":"title319","v":"USD/year"}]
[null,null,{"$f":"IF($E$65=title364,title385,title386)","v":"Truck Diesel Consumption"},null,{"$f":"IF($E$65=title364,title387,title388)","v":"l diesel/day"},{"$f":"IF($E$65=title364,title389,title390)","v":"Diesel Cost"},{"$f":"IF($E$65=title364,'Data entry needs'!F$100,'Data entry needs'!$L$92)","v":0},{"$f":"IF($E$65=title364,title576,\"USD/kWh\")","v":"USD/l diesel"},{"$f":"IFERROR(D79*G79*$I$68*$J$68,0)","v":0},{"$f":"title319","v":"USD/year"},null,null,null,null,null,{"$f":"IF($E$60=title364,title385,title386)","v":"Pump Electricity Consumption"},{"$f":"VLOOKUP($E$65,$Y$147:$AE$149,7,FALSE)","v":154}]
[null,null,null,null,null,null,null,{"$f":"title269","v":"Subtotal"},{"$f":"+SUMIF($I$78:$I$79,\">0\")","v":0},{"$f":"title319","v":"USD/year"}]
[null,null,{"$f":"title391","v":"Equipment"},{"$f":"title270","v":"Quantity"},{"$f":"title27","v":"Unit"},{"$f":"title270","v":"Quantity"},null,{"$f":"title27","v":"Unit"},"Total",{"$f":"title27","v":"Unit"}]
[null,null,{"$f":"IF($E$65=title364,title392,title393)","v":"Liquid Tanker Truck"},{"$f":"IF($E$65=title364,$J$68,$G$68*$H$68*1.2)","v":0},{"$f":"IF($E$65=title364,title398,\"m\")","v":"tank(s)"},{"$f":"IF($E$65=title364,title399,title400)","v":"Cost per Tank"},{"$f":"VLOOKUP($E$65,$Y$147:$AF$149,8,FALSE)/10","v":7900},{"$f":"IF($E$65=title364,title402,title403)","v":"USD/tank/year"},{"$f":"IFERROR(D82*G82,0)","v":0},{"$f":"title319","v":"USD/year"}]
[null,null,{"$f":"IF($E$65=title364,title394&$D$68&title395,title396&$D$68&title397)","v":"Semi-tractor 185  HP"},null,"USD",{"$f":"title401","v":"Depreciation Period"},null,{"$f":"title164","v":"year"},{"$f":"IFERROR(D83*$J$68/G83,0)","v":0},{"$f":"title319","v":"USD/year"},null,null,null,null,null,{"$f":"IF($E$60=title364,title406,title396&$D$63&title397)","v":"Pump  HP with agitator"},{"$f":"VLOOKUP($E$65,$Y$147:$AH$149,10,FALSE)","v":148000}]
[null,null,{"$f":"title358","v":"Operation and Mainteinance"},null,null,null,null,null,{"$f":"IFERROR(SUM(I82:I83)*$D$84,0)","v":0},{"$f":"title319","v":"USD/year"},null,null,null,null,null,{"$f":"title358","v":"Operation and Mainteinance"},0.15]
[null,null,null,null,null,null,null,{"$f":"title269","v":"Subtotal"},{"$f":"I82","v":0},{"$f":"title319","v":"USD/year"},null,null,null,null,null,{"$f":"title401","v":"Depreciation Period"},15]
[]
[null,null,null,{"$f":"title404","v":"Cost for Collection and transfer to central collection point"},null,null,null,null,{"$f":"(I85+I80+I76)/$F$67","v":{"$error":"#DIV/0!"}},"USD/t"]
[]
[]
[]
[]
[]
[]
[]
[]
[]
[]
[]
[]
[]
[]
[]
[]
[]
[]
[]
[]
[]
[]
[]
[]
[]
[]
[]
[]
[]
[]
[]
[null,null,null,null,null,null,null,null,null,null,null,null,null,null,null,{"$f":"title410","v":"Sources of biomass"}]
[null,null,null,null,null,null,null,null,null,null,null,null,null,null,null,{"$f":"title411","v":"Biomass spread in the field"}]
[null,null,null,null,null,null,null,null,null,null,null,null,null,null,null,{"$f":"title412","v":"Biomass collected from field"}]
[null,null,null,null,null,null,null,null,null,null,null,null,null,null,null,{"$f":"title413","v":"Biomass from food processing plant"}]
[]
[]
[]
[]
[null,null,null,null,null,null,null,null,null,null,null,null,null,null,null,{"$f":"title405","v":"Collection method"}]
[null,null,null,null,null,null,null,null,null,null,null,null,null,null,null,{"$f":"title382","v":"Mechanized"}]
[null,null,null,null,null,null,null,null,null,null,null,null,null,null,null,{"$f":"title378","v":"Semi-mechanized"}]
[null,null,null,null,null,null,null,null,null,null,null,null,null,null,null,{"$f":"title337","v":"Manual"}]
[]
[]
[]
[]
[]
[]
[]
[]
[]
[]
[]
[]
[]
[]
[null,null,null,null,null,null,null,null,null,null,null,null,null,null,null,"Dairy maNURE",40.753799999999998,"Manure (kg/head/day)"]
[null,null,null,null,null,null,null,null,null,null,null,null,null,null,null,null,"Energy Use Cost","Labor and Mainteinance",null,null,null,"ts (%) transported","Dewateing",null,null,null,{"$f":"title440","v":"Capacity"},{"$f":"title441","v":"Engine/motor (hp)"},{"$f":"title369","v":"Transfer Rate (l/h)"},{"$f":"title442","v":"Transfer time (m/h)"},{"$f":"title443","v":"Energy Use  (kw)"},{"$f":"title444","v":"Add equipment"}]
[null,null,null,null,null,null,null,null,null,null,null,null,null,null,null,{"$f":"title405","v":"Collection method"},"liters diesel/t residue","workers*day/t residue","Capital cost","Capital cost","Capital cost",null,"Final solids ts (%)",null,{"$f":"title364","v":"Tanker Truck Transfer"},null,27600,200,27221.917808219176,609.6,154,79000,"USD",{"$f":"148000","v":148000},2010,{"$f":"title406","v":"Semi-tractor 185 HP"},null,null,"l/working day"]
[null,null,null,null,null,null,null,null,null,null,null,null,null,null,null,{"$f":"title74","v":"Please Select"},null,null,null,null,null,null,null,null,{"$f":"title432","v":"High Volume Pipeline"},null,"6´´ PVC",150,3028,1016,215,{"$f":"37/3.048","v":12.139107611548557},"USD/m",37075,2003]
[null,null,null,null,null,null,null,null,null,null,null,null,null,null,null,{"$f":"title414","v":"Alley Scrapers"},0.14330809896079807,0.42057427773606393,{"$f":"(AVERAGE(35,45)*$B$52+10000+4000)/3785.41178","v":3.698408736922143},{"$f":"title421","v":"USD/liter mixture"},2009,0.08,0.5,null,{"$f":"title433","v":"Low Volume Pipeline"},null,"4´´ PVC",7.5,378,127,86,{"$f":"12.4/3.048","v":4.0682414698162734},"USD/m",7675,2003]
[null,null,null,null,null,null,null,null,null,null,null,null,null,null,null,{"$f":"title415","v":"Flush System"},0.4093569308278352,0.10526625737967994,{"$f":"(4950.08+(16+9.8)*$B$52)/3785.41178","v":1.3076727943188258},"USD/liter mixture",2014,{"$f":"AVERAGE(1%,3%)","v":0.02},0.5]
[null,null,null,null,null,null,null,null,null,null,null,null,null,null,null,{"$f":"title416","v":"Vacum Scraper"},3.190595592141102,1.9769935564290937,10,"USD/liter mixture",2010,0.18,0.5,null,null,{"$f":"title434","v":"Density (Kg/m3)"}]
[null,null,null,null,null,null,null,null,null,null,null,null,null,null,null,{"$f":"title417","v":"Skid-loader"},0.75612714559717353,1.2830705357537211,{"$f":"(142.6*0.914+58.5*0.084+50.75*0.997)/$Q$145","v":4.5602655457895951},"USD/liter mixture",2010,{"$f":"AVERAGE(8%,18%)","v":0.13},0.5,null,{"$f":"title435","v":"Buffalo"},960]
[null,null,null,null,null,null,null,null,null,null,null,null,null,null,null,{"$f":"title418","v":"Cross gutter Scraper"},1.5259658685640533E-2,2.6500596263415929E-2,5,"USD/liter mixture",2010,0.08,0.5,null,{"$f":"title436","v":"Cattle"},960]
[null,null,null,null,null,null,null,null,null,null,null,null,null,null,null,{"$f":"title419","v":"Cross Gutter Auger"},0.20478904265077005,2.6255220372088005E-2,{"$f":"2200*30/2378/10","v":2.7754415475189234},"USD/liter mixture",2010,0.08,0.5,null,{"$f":"title437","v":"Dairy Cattle"},994]
[null,null,null,null,null,null,null,null,null,null,null,null,null,null,null,{"$f":"title420","v":"Flush Flume"},0.13645231027594507,2.6255220372088005E-2,{"$f":"(4950.08+(16+9.8)*$B$52)*1.5/3785.41178","v":1.9615091914782385},"USD/liter mixture",2010,{"$f":"AVERAGE(4%,9%)","v":6.5000000000000002E-2},0.5,null,{"$f":"title438","v":"Poultry"},961.11]
[null,null,null,null,null,null,null,null,null,null,null,null,null,null,null,null,null,null,null,null,null,null,null,null,{"$f":"title439","v":"Swine"},1140.9000000000001]
[null,null,null,null,null,null,null,null,null,null,null,null,null,null,null,{"$f":"title357","v":"Dewatering"},"Screw Press ",{"$f":"PROPER(title164)","v":"Year"}]
[null,null,null,null,null,null,null,null,null,null,null,null,null,null,null,{"$f":"title422","v":"Capital Cost (USD/t residue)"},{"$f":"AVERAGE(0.2,0.5)*1000000*0.12/AVERAGE(4000,8000)","v":7},2002]
[null,null,null,null,null,null,null,null,null,null,null,null,null,null,null,{"$f":"title423","v":"Operation (worker/t residue)"},{"$f":"AVERAGE(20,40)*1000/AVERAGE(4000,8000)/(300*8*160)","v":1.3020833333333334E-5}]
[null,null,null,null,null,null,null,null,null,null,null,null,null,null,null,{"$f":"title424","v":"Energy Demand kWh/t residue"},{"$f":"AVERAGE(5,15)*8000/AVERAGE(4000,8000)","v":13.333333333333334},2002]
[]
[]
[]
[]
[null,null,null,null,null,null,null,null,null,null,null,null,null,null,null,{"$f":"title74","v":"Please Select"},{"$f":"title405","v":"Collection method"},"Show","Section to Show",{"$f":"VLOOKUP(INDIRECT(\"'Data entry needs'!$d$\"&$A$1),$P$166:$R$178,3,FALSE)","v":{"$error":"#N/A"}}]
[null,null,null,null,null,null,null,null,null,null,null,null,null,null,null,{"$f":"title184","v":"Biodiesel/Oilseed Ind."},{"$f":"title425","v":"No collection neeeded"},1,{"$f":"title429&\" 0\"","v":"Option 0"},0,0]
[null,null,null,null,null,null,null,null,null,null,null,null,null,null,null,{"$f":"title85","v":"Crop Residues"},{"$f":"title426","v":"Method 1"},2,{"$f":"title429&\" 1\"","v":"Option 1"},{"$f":"$I$31","v":{"$error":"#DIV/0!"}},{"$f":"$D$24/E16","v":{"$error":"#DIV/0!"}},{"$f":"title381","v":"person-hour/t"}]
[null,null,null,null,null,null,null,null,null,null,null,null,null,null,null,{"$f":"title185","v":"Dairy-milk ind."},{"$f":"title427","v":"Method 2, Method 3"},4,{"$f":"title429&\" 2\"","v":"Option 2"},{"$f":"$I$58","v":{"$error":"#DIV/0!"}},{"$f":"F49/E41","v":{"$error":"#N/A"}},{"$f":"title381","v":"person-hour/t"}]
[null,null,null,null,null,null,null,null,null,null,null,null,null,null,null,{"$f":"title120","v":"Energy Crops"},{"$f":"title425","v":"No collection neeeded"},1,{"$f":"title429&\" 3\"","v":"Option 3"},{"$f":"$I$87","v":{"$error":"#DIV/0!"}},{"$f":"D76","v":0},{"$f":"title381","v":"person-hour/t"}]
[null,null,null,null,null,null,null,null,null,null,null,null,null,null,null,{"$f":"title186","v":"Eth-Sugar-Starch Ind."},{"$f":"title425","v":"No collection neeeded"},1]
[null,null,null,null,null,null,null,null,null,null,null,null,null,null,null,{"$f":"title187","v":"Food Process. Res."},{"$f":"title425","v":"No collection neeeded"},1,{"$f":"title430","v":"Result"},{"$f":"IF($T$165=1,T166,IF($T$165=2,$T$167,IF($T$165=3,T168,IF(AND($T$165=4,$E$34),$T$168,$T$169))))","v":{"$error":"#N/A"}}]
[null,null,null,null,null,null,null,null,null,null,null,null,null,null,null,{"$f":"title188","v":"Grass"},{"$f":"title426","v":"Method 1"},2,{"$f":"title431","v":"Employees"},{"$f":"IF($T$165=1,U166,IF($T$165=2,$U$167,IF($T$165=3,U169,IF(AND($T$165=4,$E$34),$U$168,$U$169))))","v":{"$error":"#N/A"}},{"$f":"title381","v":"person-hour/t"}]
[null,null,null,null,null,null,null,null,null,null,null,null,null,null,null,{"$f":"title119","v":"Crops"},{"$f":"title425","v":"No collection neeeded"},1]
[null,null,null,null,null,null,null,null,null,null,null,null,null,null,null,{"$f":"title189","v":"Other Options"},{"$f":"title425","v":"No collection neeeded"},1]
[null,null,null,null,null,null,null,null,null,null,null,null,null,null,null,{"$f":"title190","v":"Slaughterhouses wastes"},{"$f":"title428","v":"Method 2"},3]
[null,null,null,null,null,null,null,null,null,null,null,null,null,null,null,{"$f":"title191","v":"Yeast-Alcoholic Bev."},{"$f":"title425","v":"No collection neeeded"},1]
[null,null,null,null,null,null,null,null,null,null,null,null,null,null,null,{"$f":"title84","v":"Manure"},{"$f":"title427","v":"Method 2, Method 3"},4]
[null,null,null,null,null,null,null,null,null,null,null,null,null,null,null,{"$f":"title192","v":"Wastewater"},{"$f":"title425","v":"No collection neeeded"},1]

{"sheet":"PRICE_FS5_PS4","index":59,"n_rows":178,"n_cols":39,"rows_kept":178,"cut":false,"hidden":true,"merged":[[40,8,40,9],[2,2,2,9],[5,2,5,3],[5,4,5,6],[7,2,10,9],[14,6,14,7],[15,2,15,3],[15,6,15,7],[30,3,30,7],[33,4,34,4],[33,5,34,5],[33,6,34,9],[34,2,34,3],[64,9,66,9],[86,3,86,7],[41,8,41,9],[57,3,57,7],[61,4,61,5],[61,6,62,6],[62,4,62,5],[64,2,64,3],[64,4,64,5],[64,6,66,6],[64,7,66,7],[64,8,66,8]]}
[{"$f":"PRICE_FS4_PS4!A1+2","v":83},92]
[]
[null,null,{"$f":"+title324&UPPER(INDIRECT(\"'Data entry needs'!$d$\"&$A$1)&\"-\"&INDIRECT(\"'Data entry needs'!$e$\"&$A$1))","v":"COLLECTION COSTS CALCULATOR FOR PLEASE SELECT-PLEASE SELECT"}]
[]
[]
[null,null,{"$f":"title193","v":"Use white cells to input data"},null,{"$f":"title194","v":"Grey cells are used for calculations"}]
[]
[null,null,{"$f":"title325&INDIRECT(\"'Data entry needs'!$d$\"&$A$1)&title326","v":"No collection method is required. It is assumed that Please Select are already collected. Then, transportation cost and/or market price should be considered."}]
[]
[]
[]
[]
[null,null,{"$f":"title327","v":"Collection Method 1 - Biomass spread in the field"}]
[]
[null,null,{"$f":"title328","v":"Collecting method"},null,{"$f":"title329","v":"Biomass Yield"},null,{"$f":"title110","v":"Feedstock Available (t/year)"},null,{"$f":"title330","v":"Collection days"}]
[null,null,"Mechanized",null,null,"t/ha",{"$f":"INDIRECT(\"'Data entry needs'!$F$\"&$A$1)","v":0},null,{"$f":"'Data entry needs'!L100-INDIRECT(\"Planner_pS4!$AN$\"&$B$1)*21","v":-252}]
[]
[null,null,{"$f":"title331","v":"Biomass Collection definition"}]
[]
[null,null,{"$f":"title332","v":"Biomass Price Definition"},null,null,null,null,null,null,null,null,null,null,null,null,null,null,null,null,null,null,{"$f":"title405","v":"Collection method"},null,{"$f":"title382","v":"Mechanized"},{"$f":"title380","v":"Number of skilled workers"},{"$f":"title409","v":"person-hour/ha"}]
[null,null,{"$f":"title333","v":"Labour cost"},{"$f":"title270","v":"Quantity"},{"$f":"title27","v":"Unit"},{"$f":"title270","v":"Quantity"},null,{"$f":"title27","v":"Unit"},"Total",{"$f":"title27","v":"Unit"},null,null,null,null,null,null,null,null,null,null,null,{"$f":"$C$16","v":"Mechanized"},null,{"$f":"title382&2","v":"Mechanized2"},{"$f":"title336","v":"Skilled labour wage"},{"$f":"title128","v":"USD/person-hour"}]
[null,null,{"$f":"IFERROR(VLOOKUP($V$21&$W21,$X$20:$Z$31,2,FALSE),\"\")","v":"Number of skilled workers"},null,{"$f":"IFERROR(VLOOKUP($V$21&$W21,$X$20:$Z$31,3,FALSE),\"\")","v":"person-hour/ha"},{"$f":"IFERROR(VLOOKUP($V$21&$W23,$X$20:$Z$31,2,FALSE),\"\")","v":"Skilled labour wage"},{"$f":"IF(F22=\"\",\"\",IF(F22=title335,'Data entry needs'!$L$96,IF(F22=title336,'Data entry needs'!F96)))","v":0},{"$f":"IFERROR(VLOOKUP($V$21&$W23,$X$20:$Z$31,3,FALSE),\"\")","v":"USD/person-hour"},{"$f":"IFERROR(G22*D22*(G16/E16)*('Data entry needs'!$L$100/$I$16),0)","v":0},{"$f":"IF(C22=\"\",\"\",title319)","v":"USD/year"},null,null,null,null,null,null,null,null,null,null,null,null,1,{"$f":"title382&4","v":"Mechanized4"},{"$f":"title407","v":"Average fuel economy"},"l/h"]
[null,null,{"$f":"IFERROR(VLOOKUP($V$21&$W22,$X$20:$Z$31,2,FALSE),\"\")","v":""},null,{"$f":"IFERROR(VLOOKUP($V$21&$W22,$X$20:$Z$31,3,FALSE),\"\")","v":""},{"$f":"IFERROR(VLOOKUP($V$21&$W24,$X$20:$Z$31,2,FALSE),\"\")","v":""},{"$f":"IF(F23=\"\",\"\",'Data entry needs'!L96)","v":""},{"$f":"title128","v":"USD/person-hour"},{"$f":"IFERROR(G23*D23*(G16/E16)*('Data entry needs'!$L$100/$I$16),0)","v":0},{"$f":"IF(C23=\"\",\"\",title319)","v":""},null,null,null,null,null,null,null,null,null,null,null,{"$f":"VLOOKUP($V$21,$T$29:$U$31,2,FALSE)","v":1},2,{"$f":"title382&5","v":"Mechanized5"},{"$f":"title408","v":"Fuel price"},"USD/l"]
[null,null,null,{"$f":"+IF(AND(C22=\"\",C23=\"\"),0,IF(C22=\"\",D23,IF(C23=\"\",D22,D22+D23)))","v":0},null,null,null,{"$f":"title269","v":"Subtotal"},{"$f":"+SUMIF($I$22:$I$23,\">0\")","v":0},{"$f":"title319","v":"USD/year"},null,null,null,null,null,null,null,null,null,null,null,null,3,{"$f":"title378","v":"Semi-mechanized"},{"$f":"title380","v":"Number of skilled workers"},{"$f":"title409","v":"person-hour/ha"}]
[null,null,{"$f":"title334","v":"Machinery & operating cost"},{"$f":"title270","v":"Quantity"},{"$f":"title27","v":"Unit"},{"$f":"title270","v":"Quantity"},null,{"$f":"title27","v":"Unit"},"Total",{"$f":"title27","v":"Unit"},null,null,null,null,null,null,null,null,null,null,null,null,4,{"$f":"title378&1","v":"Semi-mechanized1"},{"$f":"title379","v":"Number of unskilled workers"},{"$f":"title409","v":"person-hour/ha"}]
[null,null,{"$f":"IFERROR(VLOOKUP($V$21&$W25,$X$20:$Z$31,2,FALSE),\"\")","v":"Average fuel economy"},null,{"$f":"IFERROR(VLOOKUP($V$21&$W25,$X$20:$Z$31,3,FALSE),\"\")","v":"l/h"},{"$f":"IFERROR(VLOOKUP($V$21&$W26,$X$20:$Z$31,2,FALSE),\"\")","v":"Fuel price"},{"$f":"IF(F26=\"\",\"\",'Data entry needs'!$F$100)","v":0},{"$f":"+IFERROR(VLOOKUP($V$21&$W26,$X$20:$Z$31,3,FALSE),\"\")","v":"USD/l"},{"$f":"+IFERROR(D26*G26*IF($C$16=title337,0,$D$22*G16/E16)*('Data entry needs'!$L$100/$I$16),\"\")","v":""},{"$f":"IF(C26=\"\",\"\",title319)","v":"USD/year"},null,null,null,null,null,null,null,null,null,null,null,null,5,{"$f":"title378&2","v":"Semi-mechanized2"},{"$f":"title336","v":"Skilled labour wage"},{"$f":"title128","v":"USD/person-hour"}]
[null,null,null,null,null,null,null,{"$f":"IF(C26=\"\",\"\",title269)","v":"Subtotal"},{"$f":"+I26","v":""},{"$f":"IF(C26=\"\",\"\",title319)","v":"USD/year"},null,null,null,null,null,null,null,null,null,null,null,null,null,{"$f":"title378&3","v":"Semi-mechanized3"},{"$f":"title335","v":"Unskilled labour wage"},{"$f":"title128","v":"USD/person-hour"}]
[null,null,null,null,null,null,null,{"$f":"IF(C26=\"\",\"\",\"Total\")","v":"Total"},{"$f":"IFERROR(I24+I27,I24)","v":0},{"$f":"title319","v":"USD/year"},null,null,null,null,null,null,null,null,null,{"$f":"title405","v":"Collection method"},null,null,null,{"$f":"title378&4","v":"Semi-mechanized4"},{"$f":"title407","v":"Average fuel economy"},"l/h"]
[null,null,null,null,null,null,null,null,null,null,null,null,null,null,null,null,null,null,null,{"$f":"title382","v":"Mechanized"},1,null,null,{"$f":"title378&5","v":"Semi-mechanized5"},{"$f":"title408","v":"Fuel price"},"USD/l"]
[null,null,null,null,null,null,null,null,"",null,null,null,null,null,null,null,null,null,null,{"$f":"title378","v":"Semi-mechanized"},2,null,null,{"$f":"title337","v":"Manual"},{"$f":"title379","v":"Number of unskilled workers"},{"$f":"title409","v":"person-hour/ha"}]
[null,null,null,{"$f":"title338&INDIRECT(\"'Data entry needs'!$d$\"&$A$1)&\"-\"&INDIRECT(\"'Data entry needs'!$e$\"&$A$1)","v":"Collection cost of Please Select-Please Select"},null,null,null,null,{"$f":"(I24+I28)/$G$16","v":{"$error":"#DIV/0!"}},"USD/t",null,null,null,null,null,null,null,null,null,{"$f":"title337","v":"Manual"},3,null,null,{"$f":"title337&2","v":"Manual2"},{"$f":"title335","v":"Unskilled labour wage"},{"$f":"title128","v":"USD/person-hour"}]
[]
[]
[null,null,null,null,false,null,{"$f":"IF($E$34,title340,title341)","v":"Use this method for feedstock collected and transported from different farms to a central collection point"}]
[null,null,{"$f":"title339","v":"Collection Methods Available"}]
[]
[null,null,{"$f":"title342","v":"Collection Method 2"}]
[]
[null,null,{"$f":"title328","v":"Collecting method"},{"$f":"title343","v":"Transportation requirements"},null,null,null,null,{"$f":"title346","v":"Data Source"}]
[]
[null,null,"Please Select",{"$f":"title110","v":"Feedstock Available (t/year)"},{"$f":"INDIRECT(\"'Data entry needs'!$F$\"&$A$1)","v":0},{"$f":"title344","v":"Initial ts in residue (%)"},null,{"$f":"INDIRECT(\"'Data entry needs'!$h$\"&$A$1)","v":0},false]
[null,null,null,{"$f":"title134","v":"Operating days per year"},{"$f":"'Data entry needs'!L100-INDIRECT(\"Planner_pS4!$AN$\"&$B$1)*21","v":-252},{"$f":"title345&$C$41","v":"ts (%) allowed by Please Select"},null,{"$f":"Q45","v":{"$error":"#N/A"}}]
[]
[null,null,{"$f":"title347","v":"Collection Cost Definition"}]
[null,null,{"$f":"title348","v":"Operation Cost"},{"$f":"title270","v":"Quantity"},{"$f":"title27","v":"Unit"},{"$f":"title270","v":"Quantity"},{"$f":"title27","v":"Unit"},{"$f":"title267","v":"Unit Price"},"Total",null,null,null,null,null,null,"ts (%) transported",{"$f":"VLOOKUP($C$41,$P$149:$V$155,7,FALSE)","v":{"$error":"#N/A"}}]
[null,null,{"$f":"title35","v":"Electricity"},null,"kWh/t res",{"$f":"D46*E41","v":0},{"$f":"title304","v":"kWh/year"},{"$f":"'Data entry needs'!$L$92","v":0},{"$f":"F46*H46","v":0},{"$f":"title319","v":"USD/year"},null,null,null,null,null,{"$f":"title35","v":"Electricity"},{"$f":"$Q$160","v":13.333333333333334}]
[null,null,{"$f":"title170","v":"Diesel"},null,{"$f":"title574","v":"l diesel/t res"},{"$f":"D47*$E$41","v":0},{"$f":"title350","v":"Liter Diesel/year"},{"$f":"'Data entry needs'!$F$100","v":0},{"$f":"F47*H47","v":0},{"$f":"title319","v":"USD/year"},null,null,null,null,null,{"$f":"title170","v":"Diesel"},{"$f":"VLOOKUP($C$41,$P$149:$S$155,2,FALSE)","v":{"$error":"#N/A"}}]
[null,null,{"$f":"title244","v":"Water Make-up "},null,{"$f":"title353","v":"Liter water/t res"},{"$f":"IF(D48=0,0,E41*(H41/H42)*(1-D48))","v":0},{"$f":"title351","v":"Liter water/year"},{"$f":"'Data entry needs'!$F$92","v":0},{"$f":"F48*H48*D48","v":0},{"$f":"title319","v":"USD/year"},null,null,null,null,null,{"$f":"title244","v":"Water Make-up "},0.15]
[null,null,{"$f":"title349","v":"Unskilled Workers"},null,{"$f":"title354","v":"person-day/t res"},{"$f":"ROUNDUP($D$49*E41*('Data entry needs'!$L$100/PRICE_FS5_PS4!E42)/'Data entry needs'!$L$99,0)","v":{"$error":"#DIV/0!"}},{"$f":"title352","v":"person-hour"},{"$f":"'Data entry needs'!$L$96","v":0},{"$f":"F49*H49","v":{"$error":"#DIV/0!"}},{"$f":"title319","v":"USD/year"},null,null,null,null,null,{"$f":"title127","v":"Unskilled worker"},{"$f":"VLOOKUP($C$41,$P$149:$S$155,3,FALSE)","v":{"$error":"#N/A"}}]
[null,null,null,{"$f":"Q47","v":{"$error":"#N/A"}},null,null,null,{"$f":"title269","v":"Subtotal"},{"$f":"+SUMIF($I$46:$I$49,\">0\")","v":0},{"$f":"title319","v":"USD/year"}]
[]
[null,null,{"$f":"title355","v":"Capital Investment"},{"$f":"title270","v":"Quantity"},{"$f":"title27","v":"Unit"}]
[null,null,{"$f":"$C$41&title356","v":"Please Select and equipment"},null,{"$f":"VLOOKUP($C$41,$P$149:$T$155,5,FALSE)","v":{"$error":"#N/A"}},null,null,null,{"$f":"D53*(E41*10)/20","v":0},{"$f":"title319","v":"USD/year"},null,null,null,null,null,{"$f":"$C$41&title356","v":"Please Select and equipment"},{"$f":"VLOOKUP($C$41,$P$149:$S$155,4,FALSE)","v":{"$error":"#N/A"}}]
[null,null,{"$f":"title357","v":"Dewatering"},null,"USD/t res",null,null,null,{"$f":"D54*$E$41/20","v":0},{"$f":"title319","v":"USD/year"},null,null,null,null,null,{"$f":"title357","v":"Dewatering"},{"$f":"$Q$158","v":7}]
[null,null,{"$f":"title358","v":"Operation and Mainteinance"},null,null,null,null,null,{"$f":"SUM(I53:I54)*$D$55","v":0},{"$f":"title319","v":"USD/year"},null,null,null,null,null,{"$f":"title358","v":"Operation and Mainteinance"},0.15]
[null,null,null,{"$f":"+IF(AND(C54=\"\",C55=\"\"),0,IF(C54=\"\",D55,IF(C55=\"\",D54,D54+D55)))","v":0},null,null,null,{"$f":"title269","v":"Subtotal"},{"$f":"+SUMIF(I53:I55,\">0\")","v":0},{"$f":"title319","v":"USD/year"}]
[]
[null,null,null,{"$f":"title359","v":"Cost for Collection and transfer to storage tank"},null,null,null,null,{"$f":"SUM(I50+I56)/E41","v":{"$error":"#DIV/0!"}},"USD/t"]
[]
[null,null,{"$f":"title360","v":"Collection Method 3 - Feedstock collected from different farms"}]
[]
[null,null,{"$f":"title361","v":"Source of biomass"},null,{"$f":"title405","v":"Collection method"},null,{"$f":"title346","v":"Data Source"},false]
[null,null,{"$f":"title362","v":"Transfer from individual farms"},null,"Mechanized"]
[]
[null,null,{"$f":"title363","v":"Transportation method"},null,"Tanker Truck Transfer",null,{"$f":"title372","v":"Number Of Farms Supplying Feedstock"},{"$f":"title373","v":"Average distance to collection point (m)"},{"$f":"title374","v":"Collection Period (days)"},{"$f":"IF($E$65=title364,title375,title376)&title377","v":"Number of Tanks required"}]
[]
[null,null,{"$f":"IF($E$65=title364,title365,title366)","v":"Tranport Capacity (liter)"},null,{"$f":"title370","v":"Residue Quanitiy (t/year)"},{"$f":"INDIRECT(\"'Data entry needs'!$F$\"&$A$1)","v":0},null,null,null,null,null,null,null,null,null,{"$f":"IF($E$60=title364,title365,title366)","v":"Pipe Diameter (in)"},{"$f":"VLOOKUP($E$65,$Y$147:$AE$149,3,FALSE)","v":27600}]
[null,null,{"$f":"IF($E$65=title364,title367,title368)","v":"Engine Power (HP)"},null,{"$f":"title371","v":"Residue Density (kg/m3)"},{"$f":"Q72","v":1000},null,null,{"$f":"'Data entry needs'!L100-INDIRECT(\"Planner_pS4!$AN$\"&$B$1)*21","v":-252},{"$f":"IFERROR(ROUNDUP($F$67*1000*1000/(960*$D$69*'Data entry needs'!$L$99)/$I$68,0),0)","v":0},null,null,null,null,null,{"$f":"IF($E$60=title364,title367,title368)","v":"Motor Power (HP)"},{"$f":"VLOOKUP($E$65,$Y$147:$AE$149,4,FALSE)","v":200}]
[null,null,{"$f":"title369","v":"Transfer Rate (l/h)"},null,null,null,null,null,null,null,null,null,null,null,null,{"$f":"title369","v":"Transfer Rate (l/h)"},{"$f":"VLOOKUP($E$65,$Y$147:$AE$149,5,FALSE)","v":27221.917808219176}]
[]
[null,null,null,{"$f":"+IF(OR($E$63=title337,$E$63=title378),FALSE,TRUE)","v":true},{"$f":"+IF($E$63=title337,TRUE,FALSE)","v":false}]
[null,null,{"$f":"title332","v":"Biomass Price Definition"},null,null,null,null,null,null,null,null,null,null,null,null,{"$f":"title371","v":"Residue Density (kg/m3)"},{"$f":"IFERROR(VLOOKUP(INDIRECT(\"'Data entry needs'!$e$\"&$A$1),PRICE_FS3_PS4!$Y$152:$Z$156,2,FALSE),1000)","v":1000}]
[null,null,{"$f":"title333","v":"Labour cost"},{"$f":"title270","v":"Quantity"},{"$f":"title27","v":"Unit"},{"$f":"title270","v":"Quantity"},null,{"$f":"title27","v":"Unit"},"Total",{"$f":"title27","v":"Unit"}]
[null,null,{"$f":"IF(OR($E$63=title337,$E$63=title378),title379,\"\")","v":""},null,{"$f":"IF(OR($E$63=title337,$E$63=title378),title381,\"\")","v":""},{"$f":"IF(OR($E$63=title337,$E$63=title378),title335,\"\")","v":""},{"$f":"IF(OR($E$63=title337,$E$63=title378),'Data entry needs'!$L$96,\"\")","v":""},{"$f":"IF(OR($E$63=title337,$E$63=title378),title128,\"\")","v":""},{"$f":"IFERROR(IF(OR($E$63=title337,$E$63=title378),$F$67*D74*$G$74,\"\"),0)","v":""},{"$f":"IF(OR($E$63=title337,$E$63=title378),title319,\"\")","v":""}]
[null,null,{"$f":"IF($E$63=title337,\"\",title380)","v":"Number of skilled workers"},null,{"$f":"IF($E$63=title337,\"\",title381)","v":"person-hour/t"},{"$f":"IF($E$63=title337,\"\",title336)","v":"Skilled labour wage"},{"$f":"IF($E$63=title337,\"\",'Data entry needs'!$F$96)","v":0},{"$f":"IF($E$63=title337,\"\",title128)","v":"USD/person-hour"},{"$f":"IFERROR(IF($E$63=title337,\"\",D75*G75*$F$67),0)","v":0},{"$f":"IF($E$63=title337,\"\",title319)","v":"USD/year"}]
[null,null,null,{"$f":"+IF(AND(C74=\"\",C75=\"\"),0,IF(C74=\"\",D75,IF(C75=\"\",D74,D74+D75)))","v":0},null,null,null,{"$f":"title269","v":"Subtotal"},{"$f":"+SUMIF($I$74:$I$75,\">0\")","v":0},{"$f":"title319","v":"USD/year"}]
[null,null,{"$f":"title383","v":"Collection Machinery"},{"$f":"title270","v":"Quantity"},{"$f":"title27","v":"Unit"},{"$f":"title270","v":"Quantity"},null,{"$f":"title27","v":"Unit"},"Total",{"$f":"title27","v":"Unit"}]
[null,null,{"$f":"IF(OR($E$63=title382,$E$63=title378),title384,\"\")","v":"Collection Diesel Consumption"},null,{"$f":"IF(OR($E$63=title382,$E$63=title378),title575,\"\")","v":"l diesel/h"},{"$f":"IF(OR($E$63=title382,$E$63=title378),title389,\"\")","v":"Diesel Cost"},{"$f":"IF(OR($E$63=title382,$E$63=title378),'Data entry needs'!F$100,\"\")","v":0},{"$f":"IF(OR($E$63=title382,$E$63=title378),title576,\"\")","v":"USD/l diesel"},{"$f":"IFERROR(IF(OR($E$63=title382,$E$63=title378),D78*G78*D75*F67,\"\"),0)","v":0},{"$f":"title319","v":"USD/year"}]
[null,null,{"$f":"IF($E$65=title364,title385,title386)","v":"Truck Diesel Consumption"},null,{"$f":"IF($E$65=title364,title387,title388)","v":"l diesel/day"},{"$f":"IF($E$65=title364,title389,title390)","v":"Diesel Cost"},{"$f":"IF($E$65=title364,'Data entry needs'!F$100,'Data entry needs'!$L$92)","v":0},{"$f":"IF($E$65=title364,title576,\"USD/kWh\")","v":"USD/l diesel"},{"$f":"IFERROR(D79*G79*$I$68*$J$68,0)","v":0},{"$f":"title319","v":"USD/year"},null,null,null,null,null,{"$f":"IF($E$60=title364,title385,title386)","v":"Pump Electricity Consumption"},{"$f":"VLOOKUP($E$65,$Y$147:$AE$149,7,FALSE)","v":154}]
[null,null,null,null,null,null,null,{"$f":"title269","v":"Subtotal"},{"$f":"+SUMIF($I$78:$I$79,\">0\")","v":0},{"$f":"title319","v":"USD/year"}]
[null,null,{"$f":"title391","v":"Equipment"},{"$f":"title270","v":"Quantity"},{"$f":"title27","v":"Unit"},{"$f":"title270","v":"Quantity"},null,{"$f":"title27","v":"Unit"},"Total",{"$f":"title27","v":"Unit"}]
[null,null,{"$f":"IF($E$65=title364,title392,title393)","v":"Liquid Tanker Truck"},{"$f":"IF($E$65=title364,$J$68,$G$68*$H$68*1.2)","v":0},{"$f":"IF($E$65=title364,title398,\"m\")","v":"tank(s)"},{"$f":"IF($E$65=title364,title399,title400)","v":"Cost per Tank"},{"$f":"VLOOKUP($E$65,$Y$147:$AF$149,8,FALSE)/10","v":7900},{"$f":"IF($E$65=title364,title402,title403)","v":"USD/tank/year"},{"$f":"IFERROR(D82*G82,0)","v":0},{"$f":"title319","v":"USD/year"}]
[null,null,{"$f":"IF($E$65=title364,title394&$D$68&title395,title396&$D$68&title397)","v":"Semi-tractor 185  HP"},null,"USD",{"$f":"title401","v":"Depreciation Period"},null,{"$f":"title164","v":"year"},{"$f":"IFERROR(D83*$J$68/G83,0)","v":0},{"$f":"title319","v":"USD/year"},null,null,null,null,null,{"$f":"IF($E$60=title364,title406,title396&$D$63&title397)","v":"Pump  HP with agitator"},{"$f":"VLOOKUP($E$65,$Y$147:$AH$149,10,FALSE)","v":148000}]
[null,null,{"$f":"title358","v":"Operation and Mainteinance"},null,null,null,null,null,{"$f":"IFERROR(SUM(I82:I83)*$D$84,0)","v":0},{"$f":"title319","v":"USD/year"},null,null,null,null,null,{"$f":"title358","v":"Operation and Mainteinance"},0.15]
[null,null,null,null,null,null,null,{"$f":"title269","v":"Subtotal"},{"$f":"I82","v":0},{"$f":"title319","v":"USD/year"},null,null,null,null,null,{"$f":"title401","v":"Depreciation Period"},15]
[]
[null,null,null,{"$f":"title404","v":"Cost for Collection and transfer to central collection point"},null,null,null,null,{"$f":"(I85+I80+I76)/$F$67","v":{"$error":"#DIV/0!"}},"USD/t"]
[]
[]
[]
[]
[]
[]
[]
[]
[]
[]
[]
[]
[]
[]
[]
[]
[]
[]
[]
[]
[]
[]
[]
[]
[]
[]
[]
[]
[]
[]
[]
[null,null,null,null,null,null,null,null,null,null,null,null,null,null,null,{"$f":"title410","v":"Sources of biomass"}]
[null,null,null,null,null,null,null,null,null,null,null,null,null,null,null,{"$f":"title411","v":"Biomass spread in the field"}]
[null,null,null,null,null,null,null,null,null,null,null,null,null,null,null,{"$f":"title412","v":"Biomass collected from field"}]
[null,null,null,null,null,null,null,null,null,null,null,null,null,null,null,{"$f":"title413","v":"Biomass from food processing plant"}]
[]
[]
[]
[]
[null,null,null,null,null,null,null,null,null,null,null,null,null,null,null,{"$f":"title405","v":"Collection method"}]
[null,null,null,null,null,null,null,null,null,null,null,null,null,null,null,{"$f":"title382","v":"Mechanized"}]
[null,null,null,null,null,null,null,null,null,null,null,null,null,null,null,{"$f":"title378","v":"Semi-mechanized"}]
[null,null,null,null,null,null,null,null,null,null,null,null,null,null,null,{"$f":"title337","v":"Manual"}]
[]
[]
[]
[]
[]
[]
[]
[]
[]
[]
[]
[]
[]
[]
[null,null,null,null,null,null,null,null,null,null,null,null,null,null,null,"Dairy maNURE",40.753799999999998,"Manure (kg/head/day)"]
[null,null,null,null,null,null,null,null,null,null,null,null,null,null,null,null,"Energy Use Cost","Labor and Mainteinance",null,null,null,"ts (%) transported","Dewateing",null,null,null,{"$f":"title440","v":"Capacity"},{"$f":"title441","v":"Engine/motor (hp)"},{"$f":"title369","v":"Transfer Rate (l/h)"},{"$f":"title442","v":"Transfer time (m/h)"},{"$f":"title443","v":"Energy Use  (kw)"},{"$f":"title444","v":"Add equipment"}]
[null,null,null,null,null,null,null,null,null,null,null,null,null,null,null,{"$f":"title405","v":"Collection method"},"liters diesel/t residue","workers*day/t residue","Capital cost","Capital cost","Capital cost",null,"Final solids ts (%)",null,{"$f":"title364","v":"Tanker Truck Transfer"},null,27600,200,27221.917808219176,609.6,154,79000,"USD",{"$f":"148000","v":148000},2010,{"$f":"title406","v":"Semi-tractor 185 HP"},null,null,"l/working day"]
[null,null,null,null,null,null,null,null,null,null,null,null,null,null,null,{"$f":"title74","v":"Please Select"},null,null,null,null,null,null,null,null,{"$f":"title432","v":"High Volume Pipeline"},null,"6´´ PVC",150,3028,1016,215,{"$f":"37/3.048","v":12.139107611548557},"USD/m",37075,2003]
[null,null,null,null,null,null,null,null,null,null,null,null,null,null,null,{"$f":"title414","v":"Alley Scrapers"},0.14330809896079807,0.42057427773606393,{"$f":"(AVERAGE(35,45)*$B$52+10000+4000)/3785.41178","v":3.698408736922143},{"$f":"title421","v":"USD/liter mixture"},2009,0.08,0.5,null,{"$f":"title433","v":"Low Volume Pipeline"},null,"4´´ PVC",7.5,378,127,86,{"$f":"12.4/3.048","v":4.0682414698162734},"USD/m",7675,2003]
[null,null,null,null,null,null,null,null,null,null,null,null,null,null,null,{"$f":"title415","v":"Flush System"},0.4093569308278352,0.10526625737967994,{"$f":"(4950.08+(16+9.8)*$B$52)/3785.41178","v":1.3076727943188258},"USD/liter mixture",2014,{"$f":"AVERAGE(1%,3%)","v":0.02},0.5]
[null,null,null,null,null,null,null,null,null,null,null,null,null,null,null,{"$f":"title416","v":"Vacum Scraper"},3.190595592141102,1.9769935564290937,10,"USD/liter mixture",2010,0.18,0.5,null,null,{"$f":"title434","v":"Density (Kg/m3)"}]
[null,null,null,null,null,null,null,null,null,null,null,null,null,null,null,{"$f":"title417","v":"Skid-loader"},0.75612714559717353,1.2830705357537211,{"$f":"(142.6*0.914+58.5*0.084+50.75*0.997)/$Q$145","v":4.5602655457895951},"USD/liter mixture",2010,{"$f":"AVERAGE(8%,18%)","v":0.13},0.5,null,{"$f":"title435","v":"Buffalo"},960]
[null,null,null,null,null,null,null,null,null,null,null,null,null,null,null,{"$f":"title418","v":"Cross gutter Scraper"},1.5259658685640533E-2,2.6500596263415929E-2,5,"USD/liter mixture",2010,0.08,0.5,null,{"$f":"title436","v":"Cattle"},960]
[null,null,null,null,null,null,null,null,null,null,null,null,null,null,null,{"$f":"title419","v":"Cross Gutter Auger"},0.20478904265077005,2.6255220372088005E-2,{"$f":"2200*30/2378/10","v":2.7754415475189234},"USD/liter mixture",2010,0.08,0.5,null,{"$f":"title437","v":"Dairy Cattle"},994]
[null,null,null,null,null,null,null,null,null,null,null,null,null,null,null,{"$f":"title420","v":"Flush Flume"},0.13645231027594507,2.6255220372088005E-2,{"$f":"(4950.08+(16+9.8)*$B$52)*1.5/3785.41178","v":1.9615091914782385},"USD/liter mixture",2010,{"$f":"AVERAGE(4%,9%)","v":6.5000000000000002E-2},0.5,null,{"$f":"title438","v":"Poultry"},961.11]
[null,null,null,null,null,null,null,null,null,null,null,null,null,null,null,null,null,null,null,null,null,null,null,null,{"$f":"title439","v":"Swine"},1140.9000000000001]
[null,null,null,null,null,null,null,null,null,null,null,null,null,null,null,{"$f":"title357","v":"Dewatering"},"Screw Press ",{"$f":"PROPER(title164)","v":"Year"}]
[null,null,null,null,null,null,null,null,null,null,null,null,null,null,null,{"$f":"title422","v":"Capital Cost (USD/t residue)"},{"$f":"AVERAGE(0.2,0.5)*1000000*0.12/AVERAGE(4000,8000)","v":7},2002]
[null,null,null,null,null,null,null,null,null,null,null,null,null,null,null,{"$f":"title423","v":"Operation (worker/t residue)"},{"$f":"AVERAGE(20,40)*1000/AVERAGE(4000,8000)/(300*8*160)","v":1.3020833333333334E-5}]
[null,null,null,null,null,null,null,null,null,null,null,null,null,null,null,{"$f":"title424","v":"Energy Demand kWh/t residue"},{"$f":"AVERAGE(5,15)*8000/AVERAGE(4000,8000)","v":13.333333333333334},2002]
[]
[]
[]
[]
[null,null,null,null,null,null,null,null,null,null,null,null,null,null,null,{"$f":"title74","v":"Please Select"},{"$f":"title405","v":"Collection method"},"Show","Section to Show",{"$f":"VLOOKUP(INDIRECT(\"'Data entry needs'!$d$\"&$A$1),$P$166:$R$178,3,FALSE)","v":{"$error":"#N/A"}}]
[null,null,null,null,null,null,null,null,null,null,null,null,null,null,null,{"$f":"title184","v":"Biodiesel/Oilseed Ind."},{"$f":"title425","v":"No collection neeeded"},1,{"$f":"title429&\" 0\"","v":"Option 0"},0,0]
[null,null,null,null,null,null,null,null,null,null,null,null,null,null,null,{"$f":"title85","v":"Crop Residues"},{"$f":"title426","v":"Method 1"},2,{"$f":"title429&\" 1\"","v":"Option 1"},{"$f":"$I$31","v":{"$error":"#DIV/0!"}},{"$f":"$D$24/E16","v":{"$error":"#DIV/0!"}},{"$f":"title381","v":"person-hour/t"}]
[null,null,null,null,null,null,null,null,null,null,null,null,null,null,null,{"$f":"title185","v":"Dairy-milk ind."},{"$f":"title427","v":"Method 2, Method 3"},4,{"$f":"title429&\" 2\"","v":"Option 2"},{"$f":"$I$58","v":{"$error":"#DIV/0!"}},{"$f":"F49/E41","v":{"$error":"#DIV/0!"}},{"$f":"title381","v":"person-hour/t"}]
[null,null,null,null,null,null,null,null,null,null,null,null,null,null,null,{"$f":"title120","v":"Energy Crops"},{"$f":"title425","v":"No collection neeeded"},1,{"$f":"title429&\" 3\"","v":"Option 3"},{"$f":"$I$87","v":{"$error":"#DIV/0!"}},{"$f":"D76","v":0},{"$f":"title381","v":"person-hour/t"}]
[null,null,null,null,null,null,null,null,null,null,null,null,null,null,null,{"$f":"title186","v":"Eth-Sugar-Starch Ind."},{"$f":"title425","v":"No collection neeeded"},1]
[null,null,null,null,null,null,null,null,null,null,null,null,null,null,null,{"$f":"title187","v":"Food Process. Res."},{"$f":"title425","v":"No collection neeeded"},1,{"$f":"title430","v":"Result"},{"$f":"IF($T$165=1,T166,IF($T$165=2,$T$167,IF($T$165=3,T168,IF(AND($T$165=4,$E$34),$T$168,$T$169))))","v":{"$error":"#N/A"}}]
[null,null,null,null,null,null,null,null,null,null,null,null,null,null,null,{"$f":"title188","v":"Grass"},{"$f":"title426","v":"Method 1"},2,{"$f":"title431","v":"Employees"},{"$f":"IF($T$165=1,U166,IF($T$165=2,$U$167,IF($T$165=3,U169,IF(AND($T$165=4,$E$34),$U$168,$U$169))))","v":{"$error":"#N/A"}},{"$f":"title381","v":"person-hour/t"}]
[null,null,null,null,null,null,null,null,null,null,null,null,null,null,null,{"$f":"title119","v":"Crops"},{"$f":"title425","v":"No collection neeeded"},1]
[null,null,null,null,null,null,null,null,null,null,null,null,null,null,null,{"$f":"title189","v":"Other Options"},{"$f":"title425","v":"No collection neeeded"},1]
[null,null,null,null,null,null,null,null,null,null,null,null,null,null,null,{"$f":"title190","v":"Slaughterhouses wastes"},{"$f":"title428","v":"Method 2"},3]
[null,null,null,null,null,null,null,null,null,null,null,null,null,null,null,{"$f":"title191","v":"Yeast-Alcoholic Bev."},{"$f":"title425","v":"No collection neeeded"},1]
[null,null,null,null,null,null,null,null,null,null,null,null,null,null,null,{"$f":"title84","v":"Manure"},{"$f":"title427","v":"Method 2, Method 3"},4]
[null,null,null,null,null,null,null,null,null,null,null,null,null,null,null,{"$f":"title192","v":"Wastewater"},{"$f":"title425","v":"No collection neeeded"},1]

{"sheet":"PRICE_FS6_PS4","index":60,"n_rows":178,"n_cols":39,"rows_kept":178,"cut":false,"hidden":true,"merged":[[40,8,40,9],[2,2,2,9],[5,2,5,3],[5,4,5,6],[7,2,10,9],[14,6,14,7],[15,2,15,3],[15,6,15,7],[30,3,30,7],[33,4,34,4],[33,5,34,5],[33,6,34,9],[34,2,34,3],[64,9,66,9],[86,3,86,7],[41,8,41,9],[57,3,57,7],[61,4,61,5],[61,6,62,6],[62,4,62,5],[64,2,64,3],[64,4,64,5],[64,6,66,6],[64,7,66,7],[64,8,66,8]]}
[{"$f":"PRICE_FS5_PS4!A1+4","v":87},93]
[]
[null,null,{"$f":"+title324&UPPER(INDIRECT(\"'Data entry needs'!$d$\"&$A$1)&\"-\"&INDIRECT(\"'Data entry needs'!$e$\"&$A$1))","v":"COLLECTION COSTS CALCULATOR FOR PLEASE SELECT-PLEASE SELECT"}]
[]
[]
[null,null,{"$f":"title193","v":"Use white cells to input data"},null,{"$f":"title194","v":"Grey cells are used for calculations"}]
[]
[null,null,{"$f":"title325&INDIRECT(\"'Data entry needs'!$d$\"&$A$1)&title326","v":"No collection method is required. It is assumed that Please Select are already collected. Then, transportation cost and/or market price should be considered."}]
[]
[]
[]
[]
[null,null,{"$f":"title327","v":"Collection Method 1 - Biomass spread in the field"}]
[]
[null,null,{"$f":"title328","v":"Collecting method"},null,{"$f":"title329","v":"Biomass Yield"},null,{"$f":"title110","v":"Feedstock Available (t/year)"},null,{"$f":"title330","v":"Collection days"}]
[null,null,"Mechanized",null,null,"t/ha",{"$f":"INDIRECT(\"'Data entry needs'!$F$\"&$A$1)","v":0},null,{"$f":"'Data entry needs'!L100-INDIRECT(\"Planner_pS4!$AN$\"&$B$1)*21","v":0}]
[]
[null,null,{"$f":"title331","v":"Biomass Collection definition"}]
[]
[null,null,{"$f":"title332","v":"Biomass Price Definition"},null,null,null,null,null,null,null,null,null,null,null,null,null,null,null,null,null,null,{"$f":"title405","v":"Collection method"},null,{"$f":"title382","v":"Mechanized"},{"$f":"title380","v":"Number of skilled workers"},{"$f":"title409","v":"person-hour/ha"}]
[null,null,{"$f":"title333","v":"Labour cost"},{"$f":"title270","v":"Quantity"},{"$f":"title27","v":"Unit"},{"$f":"title270","v":"Quantity"},null,{"$f":"title27","v":"Unit"},"Total",{"$f":"title27","v":"Unit"},null,null,null,null,null,null,null,null,null,null,null,{"$f":"$C$16","v":"Mechanized"},null,{"$f":"title382&2","v":"Mechanized2"},{"$f":"title336","v":"Skilled labour wage"},{"$f":"title128","v":"USD/person-hour"}]
[null,null,{"$f":"IFERROR(VLOOKUP($V$21&$W21,$X$20:$Z$31,2,FALSE),\"\")","v":"Number of skilled workers"},null,{"$f":"IFERROR(VLOOKUP($V$21&$W21,$X$20:$Z$31,3,FALSE),\"\")","v":"person-hour/ha"},{"$f":"IFERROR(VLOOKUP($V$21&$W23,$X$20:$Z$31,2,FALSE),\"\")","v":"Skilled labour wage"},{"$f":"IF(F22=\"\",\"\",IF(F22=title335,'Data entry needs'!$L$96,IF(F22=title336,'Data entry needs'!F96)))","v":0},{"$f":"IFERROR(VLOOKUP($V$21&$W23,$X$20:$Z$31,3,FALSE),\"\")","v":"USD/person-hour"},{"$f":"IFERROR(G22*D22*(G16/E16)*('Data entry needs'!$L$100/$I$16),0)","v":0},{"$f":"IF(C22=\"\",\"\",title319)","v":"USD/year"},null,null,null,null,null,null,null,null,null,null,null,null,1,{"$f":"title382&4","v":"Mechanized4"},{"$f":"title407","v":"Average fuel economy"},"l/h"]
[null,null,{"$f":"IFERROR(VLOOKUP($V$21&$W22,$X$20:$Z$31,2,FALSE),\"\")","v":""},null,{"$f":"IFERROR(VLOOKUP($V$21&$W22,$X$20:$Z$31,3,FALSE),\"\")","v":""},{"$f":"IFERROR(VLOOKUP($V$21&$W24,$X$20:$Z$31,2,FALSE),\"\")","v":""},{"$f":"IF(F23=\"\",\"\",'Data entry needs'!L96)","v":""},{"$f":"title128","v":"USD/person-hour"},{"$f":"IFERROR(G23*D23*(G16/E16)*('Data entry needs'!$L$100/$I$16),0)","v":0},{"$f":"IF(C23=\"\",\"\",title319)","v":""},null,null,null,null,null,null,null,null,null,null,null,{"$f":"VLOOKUP($V$21,$T$29:$U$31,2,FALSE)","v":1},2,{"$f":"title382&5","v":"Mechanized5"},{"$f":"title408","v":"Fuel price"},"USD/l"]
[null,null,null,{"$f":"+IF(AND(C22=\"\",C23=\"\"),0,IF(C22=\"\",D23,IF(C23=\"\",D22,D22+D23)))","v":0},null,null,null,{"$f":"title269","v":"Subtotal"},{"$f":"+SUMIF($I$22:$I$23,\">0\")","v":0},{"$f":"title319","v":"USD/year"},null,null,null,null,null,null,null,null,null,null,null,null,3,{"$f":"title378","v":"Semi-mechanized"},{"$f":"title380","v":"Number of skilled workers"},{"$f":"title409","v":"person-hour/ha"}]
[null,null,{"$f":"title334","v":"Machinery & operating cost"},{"$f":"title270","v":"Quantity"},{"$f":"title27","v":"Unit"},{"$f":"title270","v":"Quantity"},null,{"$f":"title27","v":"Unit"},"Total",{"$f":"title27","v":"Unit"},null,null,null,null,null,null,null,null,null,null,null,null,4,{"$f":"title378&1","v":"Semi-mechanized1"},{"$f":"title379","v":"Number of unskilled workers"},{"$f":"title409","v":"person-hour/ha"}]
[null,null,{"$f":"IFERROR(VLOOKUP($V$21&$W25,$X$20:$Z$31,2,FALSE),\"\")","v":"Average fuel economy"},null,{"$f":"IFERROR(VLOOKUP($V$21&$W25,$X$20:$Z$31,3,FALSE),\"\")","v":"l/h"},{"$f":"IFERROR(VLOOKUP($V$21&$W26,$X$20:$Z$31,2,FALSE),\"\")","v":"Fuel price"},{"$f":"IF(F26=\"\",\"\",'Data entry needs'!$F$100)","v":0},{"$f":"+IFERROR(VLOOKUP($V$21&$W26,$X$20:$Z$31,3,FALSE),\"\")","v":"USD/l"},{"$f":"+IFERROR(D26*G26*IF($C$16=title337,0,$D$22*G16/E16)*('Data entry needs'!$L$100/$I$16),\"\")","v":""},{"$f":"IF(C26=\"\",\"\",title319)","v":"USD/year"},null,null,null,null,null,null,null,null,null,null,null,null,5,{"$f":"title378&2","v":"Semi-mechanized2"},{"$f":"title336","v":"Skilled labour wage"},{"$f":"title128","v":"USD/person-hour"}]
[null,null,null,null,null,null,null,{"$f":"IF(C26=\"\",\"\",title269)","v":"Subtotal"},{"$f":"+I26","v":""},{"$f":"IF(C26=\"\",\"\",title319)","v":"USD/year"},null,null,null,null,null,null,null,null,null,null,null,null,null,{"$f":"title378&3","v":"Semi-mechanized3"},{"$f":"title335","v":"Unskilled labour wage"},{"$f":"title128","v":"USD/person-hour"}]
[null,null,null,null,null,null,null,{"$f":"IF(C26=\"\",\"\",\"Total\")","v":"Total"},{"$f":"IFERROR(I24+I27,I24)","v":0},{"$f":"title319","v":"USD/year"},null,null,null,null,null,null,null,null,null,{"$f":"title405","v":"Collection method"},null,null,null,{"$f":"title378&4","v":"Semi-mechanized4"},{"$f":"title407","v":"Average fuel economy"},"l/h"]
[null,null,null,null,null,null,null,null,null,null,null,null,null,null,null,null,null,null,null,{"$f":"title382","v":"Mechanized"},1,null,null,{"$f":"title378&5","v":"Semi-mechanized5"},{"$f":"title408","v":"Fuel price"},"USD/l"]
[null,null,null,null,null,null,null,null,"",null,null,null,null,null,null,null,null,null,null,{"$f":"title378","v":"Semi-mechanized"},2,null,null,{"$f":"title337","v":"Manual"},{"$f":"title379","v":"Number of unskilled workers"},{"$f":"title409","v":"person-hour/ha"}]
[null,null,null,{"$f":"title338&INDIRECT(\"'Data entry needs'!$d$\"&$A$1)&\"-\"&INDIRECT(\"'Data entry needs'!$e$\"&$A$1)","v":"Collection cost of Please Select-Please Select"},null,null,null,null,{"$f":"(I24+I28)/$G$16","v":{"$error":"#DIV/0!"}},"USD/t",null,null,null,null,null,null,null,null,null,{"$f":"title337","v":"Manual"},3,null,null,{"$f":"title337&2","v":"Manual2"},{"$f":"title335","v":"Unskilled labour wage"},{"$f":"title128","v":"USD/person-hour"}]
[]
[]
[null,null,null,null,false,null,{"$f":"IF($E$34,title340,title341)","v":"Use this method for feedstock collected and transported from different farms to a central collection point"}]
[null,null,{"$f":"title339","v":"Collection Methods Available"}]
[]
[null,null,{"$f":"title342","v":"Collection Method 2"}]
[]
[null,null,{"$f":"title328","v":"Collecting method"},{"$f":"title343","v":"Transportation requirements"},null,null,null,null,{"$f":"title346","v":"Data Source"}]
[]
[null,null,"Please Select",{"$f":"title110","v":"Feedstock Available (t/year)"},{"$f":"INDIRECT(\"'Data entry needs'!$F$\"&$A$1)","v":0},{"$f":"title344","v":"Initial ts in residue (%)"},null,{"$f":"INDIRECT(\"'Data entry needs'!$h$\"&$A$1)","v":0},false]
[null,null,null,{"$f":"title134","v":"Operating days per year"},{"$f":"'Data entry needs'!L100-INDIRECT(\"Planner_pS4!$AN$\"&$B$1)*21","v":0},{"$f":"title345&$C$41","v":"ts (%) allowed by Please Select"},null,{"$f":"Q45","v":{"$error":"#N/A"}}]
[]
[null,null,{"$f":"title347","v":"Collection Cost Definition"}]
[null,null,{"$f":"title348","v":"Operation Cost"},{"$f":"title270","v":"Quantity"},{"$f":"title27","v":"Unit"},{"$f":"title270","v":"Quantity"},{"$f":"title27","v":"Unit"},{"$f":"title267","v":"Unit Price"},"Total",null,null,null,null,null,null,"ts (%) transported",{"$f":"VLOOKUP($C$41,$P$149:$V$155,7,FALSE)","v":{"$error":"#N/A"}}]
[null,null,{"$f":"title35","v":"Electricity"},null,"kWh/t res",{"$f":"D46*E41","v":0},{"$f":"title304","v":"kWh/year"},{"$f":"'Data entry needs'!$L$92","v":0},{"$f":"F46*H46","v":0},{"$f":"title319","v":"USD/year"},null,null,null,null,null,{"$f":"title35","v":"Electricity"},{"$f":"$Q$160","v":13.333333333333334}]
[null,null,{"$f":"title170","v":"Diesel"},null,{"$f":"title574","v":"l diesel/t res"},{"$f":"D47*$E$41","v":0},{"$f":"title350","v":"Liter Diesel/year"},{"$f":"'Data entry needs'!$F$100","v":0},{"$f":"F47*H47","v":0},{"$f":"title319","v":"USD/year"},null,null,null,null,null,{"$f":"title170","v":"Diesel"},{"$f":"VLOOKUP($C$41,$P$149:$S$155,2,FALSE)","v":{"$error":"#N/A"}}]
[null,null,{"$f":"title244","v":"Water Make-up "},null,{"$f":"title353","v":"Liter water/t res"},{"$f":"IF(D48=0,0,E41*(H41/H42)*(1-D48))","v":0},{"$f":"title351","v":"Liter water/year"},{"$f":"'Data entry needs'!$F$92","v":0},{"$f":"F48*H48*D48","v":0},{"$f":"title319","v":"USD/year"},null,null,null,null,null,{"$f":"title244","v":"Water Make-up "},0.15]
[null,null,{"$f":"title349","v":"Unskilled Workers"},null,{"$f":"title354","v":"person-day/t res"},{"$f":"ROUNDUP($D$49*E41*('Data entry needs'!$L$100/PRICE_FS6_PS4!E42)/'Data entry needs'!$L$99,0)","v":{"$error":"#DIV/0!"}},{"$f":"title352","v":"person-hour"},{"$f":"'Data entry needs'!$L$96","v":0},{"$f":"F49*H49","v":{"$error":"#DIV/0!"}},{"$f":"title319","v":"USD/year"},null,null,null,null,null,{"$f":"title127","v":"Unskilled worker"},{"$f":"VLOOKUP($C$41,$P$149:$S$155,3,FALSE)","v":{"$error":"#N/A"}}]
[null,null,null,{"$f":"Q47","v":{"$error":"#N/A"}},null,null,null,{"$f":"title269","v":"Subtotal"},{"$f":"+SUMIF($I$46:$I$49,\">0\")","v":0},{"$f":"title319","v":"USD/year"}]
[]
[null,null,{"$f":"title355","v":"Capital Investment"},{"$f":"title270","v":"Quantity"},{"$f":"title27","v":"Unit"}]
[null,null,{"$f":"$C$41&title356","v":"Please Select and equipment"},null,{"$f":"VLOOKUP($C$41,$P$149:$T$155,5,FALSE)","v":{"$error":"#N/A"}},null,null,null,{"$f":"D53*(E41*10)/20","v":0},{"$f":"title319","v":"USD/year"},null,null,null,null,null,{"$f":"$C$41&title356","v":"Please Select and equipment"},{"$f":"VLOOKUP($C$41,$P$149:$S$155,4,FALSE)","v":{"$error":"#N/A"}}]
[null,null,{"$f":"title357","v":"Dewatering"},null,"USD/t res",null,null,null,{"$f":"D54*$E$41/20","v":0},{"$f":"title319","v":"USD/year"},null,null,null,null,null,{"$f":"title357","v":"Dewatering"},{"$f":"$Q$158","v":7}]
[null,null,{"$f":"title358","v":"Operation and Mainteinance"},null,null,null,null,null,{"$f":"SUM(I53:I54)*$D$55","v":0},{"$f":"title319","v":"USD/year"},null,null,null,null,null,{"$f":"title358","v":"Operation and Mainteinance"},0.15]
[null,null,null,{"$f":"+IF(AND(C54=\"\",C55=\"\"),0,IF(C54=\"\",D55,IF(C55=\"\",D54,D54+D55)))","v":0},null,null,null,{"$f":"title269","v":"Subtotal"},{"$f":"+SUMIF(I53:I55,\">0\")","v":0},{"$f":"title319","v":"USD/year"}]
[]
[null,null,null,{"$f":"title359","v":"Cost for Collection and transfer to storage tank"},null,null,null,null,{"$f":"SUM(I50+I56)/E41","v":{"$error":"#DIV/0!"}},"USD/t"]
[]
[null,null,{"$f":"title360","v":"Collection Method 3 - Feedstock collected from different farms"}]
[]
[null,null,{"$f":"title361","v":"Source of biomass"},null,{"$f":"title405","v":"Collection method"},null,{"$f":"title346","v":"Data Source"},false]
[null,null,{"$f":"title362","v":"Transfer from individual farms"},null,"Mechanized",null,null,false]
[]
[null,null,{"$f":"title363","v":"Transportation method"},null,"Tanker Truck Transfer",null,{"$f":"title372","v":"Number Of Farms Supplying Feedstock"},{"$f":"title373","v":"Average distance to collection point (m)"},{"$f":"title374","v":"Collection Period (days)"},{"$f":"IF($E$65=title364,title375,title376)&title377","v":"Number of Tanks required"}]
[]
[null,null,{"$f":"IF($E$65=title364,title365,title366)","v":"Tranport Capacity (liter)"},{"$f":"Q67","v":27600},{"$f":"title370","v":"Residue Quanitiy (t/year)"},{"$f":"INDIRECT(\"'Data entry needs'!$F$\"&$A$1)","v":0},null,null,null,null,null,null,null,null,null,{"$f":"IF($E$60=title364,title365,title366)","v":"Pipe Diameter (in)"},{"$f":"VLOOKUP($E$65,$Y$147:$AE$149,3,FALSE)","v":27600}]
[null,null,{"$f":"IF($E$65=title364,title367,title368)","v":"Engine Power (HP)"},{"$f":"Q68","v":200},{"$f":"title371","v":"Residue Density (kg/m3)"},{"$f":"Q72","v":1000},null,null,{"$f":"'Data entry needs'!L100-INDIRECT(\"Planner_pS4!$AN$\"&$B$1)*21","v":0},{"$f":"IFERROR(ROUNDUP($F$67*1000*1000/(960*$D$69*'Data entry needs'!$L$99)/$I$68,0),0)","v":0},null,null,null,null,null,{"$f":"IF($E$60=title364,title367,title368)","v":"Motor Power (HP)"},{"$f":"VLOOKUP($E$65,$Y$147:$AE$149,4,FALSE)","v":200}]
[null,null,{"$f":"title369","v":"Transfer Rate (l/h)"},{"$f":"Q69","v":27221.917808219176},null,null,null,null,null,null,null,null,null,null,null,{"$f":"title369","v":"Transfer Rate (l/h)"},{"$f":"VLOOKUP($E$65,$Y$147:$AE$149,5,FALSE)","v":27221.917808219176}]
[]
[null,null,null,{"$f":"+IF(OR($E$63=title337,$E$63=title378),FALSE,TRUE)","v":true},{"$f":"+IF($E$63=title337,TRUE,FALSE)","v":false}]
[null,null,{"$f":"title332","v":"Biomass Price Definition"},null,null,null,null,null,null,null,null,null,null,null,null,{"$f":"title371","v":"Residue Density (kg/m3)"},{"$f":"IFERROR(VLOOKUP(INDIRECT(\"'Data entry needs'!$e$\"&$A$1),PRICE_FS3_PS4!$Y$152:$Z$156,2,FALSE),1000)","v":1000}]
[null,null,{"$f":"title333","v":"Labour cost"},{"$f":"title270","v":"Quantity"},{"$f":"title27","v":"Unit"},{"$f":"title270","v":"Quantity"},null,{"$f":"title27","v":"Unit"},"Total",{"$f":"title27","v":"Unit"}]
[null,null,{"$f":"IF(OR($E$63=title337,$E$63=title378),title379,\"\")","v":""},null,{"$f":"IF(OR($E$63=title337,$E$63=title378),title381,\"\")","v":""},{"$f":"IF(OR($E$63=title337,$E$63=title378),title335,\"\")","v":""},{"$f":"IF(OR($E$63=title337,$E$63=title378),'Data entry needs'!$L$96,\"\")","v":""},{"$f":"IF(OR($E$63=title337,$E$63=title378),title128,\"\")","v":""},{"$f":"IFERROR(IF(OR($E$63=title337,$E$63=title378),$F$67*D74*$G$74,\"\"),0)","v":""},{"$f":"IF(OR($E$63=title337,$E$63=title378),title319,\"\")","v":""}]
[null,null,{"$f":"IF($E$63=title337,\"\",title380)","v":"Number of skilled workers"},null,{"$f":"IF($E$63=title337,\"\",title381)","v":"person-hour/t"},{"$f":"IF($E$63=title337,\"\",title336)","v":"Skilled labour wage"},{"$f":"IF($E$63=title337,\"\",'Data entry needs'!$F$96)","v":0},{"$f":"IF($E$63=title337,\"\",title128)","v":"USD/person-hour"},{"$f":"IFERROR(IF($E$63=title337,\"\",D75*G75*$F$67),0)","v":0},{"$f":"IF($E$63=title337,\"\",title319)","v":"USD/year"}]
[null,null,null,{"$f":"+IF(AND(C74=\"\",C75=\"\"),0,IF(C74=\"\",D75,IF(C75=\"\",D74,D74+D75)))","v":0},null,null,null,{"$f":"title269","v":"Subtotal"},{"$f":"+SUMIF($I$74:$I$75,\">0\")","v":0},{"$f":"title319","v":"USD/year"}]
[null,null,{"$f":"title383","v":"Collection Machinery"},{"$f":"title270","v":"Quantity"},{"$f":"title27","v":"Unit"},{"$f":"title270","v":"Quantity"},null,{"$f":"title27","v":"Unit"},"Total",{"$f":"title27","v":"Unit"}]
[null,null,{"$f":"IF(OR($E$63=title382,$E$63=title378),title384,\"\")","v":"Collection Diesel Consumption"},null,{"$f":"IF(OR($E$63=title382,$E$63=title378),title575,\"\")","v":"l diesel/h"},{"$f":"IF(OR($E$63=title382,$E$63=title378),title389,\"\")","v":"Diesel Cost"},{"$f":"IF(OR($E$63=title382,$E$63=title378),'Data entry needs'!F$100,\"\")","v":0},{"$f":"IF(OR($E$63=title382,$E$63=title378),title576,\"\")","v":"USD/l diesel"},{"$f":"IFERROR(IF(OR($E$63=title382,$E$63=title378),D78*G78*D75*F67,\"\"),0)","v":0},{"$f":"title319","v":"USD/year"}]
[null,null,{"$f":"IF($E$65=title364,title385,title386)","v":"Truck Diesel Consumption"},{"$f":"Q79","v":154},{"$f":"IF($E$65=title364,title387,title388)","v":"l diesel/day"},{"$f":"IF($E$65=title364,title389,title390)","v":"Diesel Cost"},{"$f":"IF($E$65=title364,'Data entry needs'!F$100,'Data entry needs'!$L$92)","v":0},{"$f":"IF($E$65=title364,title576,\"USD/kWh\")","v":"USD/l diesel"},{"$f":"IFERROR(D79*G79*$I$68*$J$68,0)","v":0},{"$f":"title319","v":"USD/year"},null,null,null,null,null,{"$f":"IF($E$60=title364,title385,title386)","v":"Pump Electricity Consumption"},{"$f":"VLOOKUP($E$65,$Y$147:$AE$149,7,FALSE)","v":154}]
[null,null,null,null,null,null,null,{"$f":"title269","v":"Subtotal"},{"$f":"+SUMIF($I$78:$I$79,\">0\")","v":0},{"$f":"title319","v":"USD/year"}]
[null,null,{"$f":"title391","v":"Equipment"},{"$f":"title270","v":"Quantity"},{"$f":"title27","v":"Unit"},{"$f":"title270","v":"Quantity"},null,{"$f":"title27","v":"Unit"},"Total",{"$f":"title27","v":"Unit"}]
[null,null,{"$f":"IF($E$65=title364,title392,title393)","v":"Liquid Tanker Truck"},{"$f":"IF($E$65=title364,$J$68,$G$68*$H$68*1.2)","v":0},{"$f":"IF($E$65=title364,title398,\"m\")","v":"tank(s)"},{"$f":"IF($E$65=title364,title399,title400)","v":"Cost per Tank"},{"$f":"VLOOKUP($E$65,$Y$147:$AF$149,8,FALSE)/10","v":7900},{"$f":"IF($E$65=title364,title402,title403)","v":"USD/tank/year"},{"$f":"IFERROR(D82*G82,0)","v":0},{"$f":"title319","v":"USD/year"}]
[null,null,{"$f":"IF($E$65=title364,title394&$D$68&title395,title396&$D$68&title397)","v":"Semi-tractor 185 200 HP"},{"$f":"Q83","v":148000},"USD",{"$f":"title401","v":"Depreciation Period"},{"$f":"Q85","v":15},{"$f":"title164","v":"year"},{"$f":"IFERROR(D83*$J$68/G83,0)","v":0},{"$f":"title319","v":"USD/year"},null,null,null,null,null,{"$f":"IF($E$60=title364,title406,title396&$D$63&title397)","v":"Pump  HP with agitator"},{"$f":"VLOOKUP($E$65,$Y$147:$AH$149,10,FALSE)","v":148000}]
[null,null,{"$f":"title358","v":"Operation and Mainteinance"},{"$f":"Q84","v":0.15},null,null,null,null,{"$f":"IFERROR(SUM(I82:I83)*$D$84,0)","v":0},{"$f":"title319","v":"USD/year"},null,null,null,null,null,{"$f":"title358","v":"Operation and Mainteinance"},0.15]
[null,null,null,null,null,null,null,{"$f":"title269","v":"Subtotal"},{"$f":"I82","v":0},{"$f":"title319","v":"USD/year"},null,null,null,null,null,{"$f":"title401","v":"Depreciation Period"},15]
[]
[null,null,null,{"$f":"title404","v":"Cost for Collection and transfer to central collection point"},null,null,null,null,{"$f":"(I85+I80+I76)/$F$67","v":{"$error":"#DIV/0!"}},"USD/t"]
[]
[]
[]
[]
[]
[]
[]
[]
[]
[]
[]
[]
[]
[]
[]
[]
[]
[]
[]
[]
[]
[]
[]
[]
[]
[]
[]
[]
[]
[]
[]
[null,null,null,null,null,null,null,null,null,null,null,null,null,null,null,{"$f":"title410","v":"Sources of biomass"}]
[null,null,null,null,null,null,null,null,null,null,null,null,null,null,null,{"$f":"title411","v":"Biomass spread in the field"}]
[null,null,null,null,null,null,null,null,null,null,null,null,null,null,null,{"$f":"title412","v":"Biomass collected from field"}]
[null,null,null,null,null,null,null,null,null,null,null,null,null,null,null,{"$f":"title413","v":"Biomass from food processing plant"}]
[]
[]
[]
[]
[null,null,null,null,null,null,null,null,null,null,null,null,null,null,null,{"$f":"title405","v":"Collection method"}]
[null,null,null,null,null,null,null,null,null,null,null,null,null,null,null,{"$f":"title382","v":"Mechanized"}]
[null,null,null,null,null,null,null,null,null,null,null,null,null,null,null,{"$f":"title378","v":"Semi-mechanized"}]
[null,null,null,null,null,null,null,null,null,null,null,null,null,null,null,{"$f":"title337","v":"Manual"}]
[]
[]
[]
[]
[]
[]
[]
[]
[]
[]
[]
[]
[]
[]
[null,null,null,null,null,null,null,null,null,null,null,null,null,null,null,"Dairy maNURE",40.753799999999998,"Manure (kg/head/day)"]
[null,null,null,null,null,null,null,null,null,null,null,null,null,null,null,null,"Energy Use Cost","Labor and Mainteinance",null,null,null,"ts (%) transported","Dewateing",null,null,null,{"$f":"title440","v":"Capacity"},{"$f":"title441","v":"Engine/motor (hp)"},{"$f":"title369","v":"Transfer Rate (l/h)"},{"$f":"title442","v":"Transfer time (m/h)"},{"$f":"title443","v":"Energy Use  (kw)"},{"$f":"title444","v":"Add equipment"}]
[null,null,null,null,null,null,null,null,null,null,null,null,null,null,null,{"$f":"title405","v":"Collection method"},"liters diesel/t residue","workers*day/t residue","Capital cost","Capital cost","Capital cost",null,"Final solids ts (%)",null,{"$f":"title364","v":"Tanker Truck Transfer"},null,27600,200,27221.917808219176,609.6,154,79000,"USD",{"$f":"148000","v":148000},2010,{"$f":"title406","v":"Semi-tractor 185 HP"},null,null,"l/working day"]
[null,null,null,null,null,null,null,null,null,null,null,null,null,null,null,{"$f":"title74","v":"Please Select"},null,null,null,null,null,null,null,null,{"$f":"title432","v":"High Volume Pipeline"},null,"6´´ PVC",150,3028,1016,215,{"$f":"37/3.048","v":12.139107611548557},"USD/m",37075,2003]
[null,null,null,null,null,null,null,null,null,null,null,null,null,null,null,{"$f":"title414","v":"Alley Scrapers"},0.14330809896079807,0.42057427773606393,{"$f":"(AVERAGE(35,45)*$B$52+10000+4000)/3785.41178","v":3.698408736922143},{"$f":"title421","v":"USD/liter mixture"},2009,0.08,0.5,null,{"$f":"title433","v":"Low Volume Pipeline"},null,"4´´ PVC",7.5,378,127,86,{"$f":"12.4/3.048","v":4.0682414698162734},"USD/m",7675,2003]
[null,null,null,null,null,null,null,null,null,null,null,null,null,null,null,{"$f":"title415","v":"Flush System"},0.4093569308278352,0.10526625737967994,{"$f":"(4950.08+(16+9.8)*$B$52)/3785.41178","v":1.3076727943188258},"USD/liter mixture",2014,{"$f":"AVERAGE(1%,3%)","v":0.02},0.5]
[null,null,null,null,null,null,null,null,null,null,null,null,null,null,null,{"$f":"title416","v":"Vacum Scraper"},3.190595592141102,1.9769935564290937,10,"USD/liter mixture",2010,0.18,0.5,null,null,{"$f":"title434","v":"Density (Kg/m3)"}]
[null,null,null,null,null,null,null,null,null,null,null,null,null,null,null,{"$f":"title417","v":"Skid-loader"},0.75612714559717353,1.2830705357537211,{"$f":"(142.6*0.914+58.5*0.084+50.75*0.997)/$Q$145","v":4.5602655457895951},"USD/liter mixture",2010,{"$f":"AVERAGE(8%,18%)","v":0.13},0.5,null,{"$f":"title435","v":"Buffalo"},960]
[null,null,null,null,null,null,null,null,null,null,null,null,null,null,null,{"$f":"title418","v":"Cross gutter Scraper"},1.5259658685640533E-2,2.6500596263415929E-2,5,"USD/liter mixture",2010,0.08,0.5,null,{"$f":"title436","v":"Cattle"},960]
[null,null,null,null,null,null,null,null,null,null,null,null,null,null,null,{"$f":"title419","v":"Cross Gutter Auger"},0.20478904265077005,2.6255220372088005E-2,{"$f":"2200*30/2378/10","v":2.7754415475189234},"USD/liter mixture",2010,0.08,0.5,null,{"$f":"title437","v":"Dairy Cattle"},994]
[null,null,null,null,null,null,null,null,null,null,null,null,null,null,null,{"$f":"title420","v":"Flush Flume"},0.13645231027594507,2.6255220372088005E-2,{"$f":"(4950.08+(16+9.8)*$B$52)*1.5/3785.41178","v":1.9615091914782385},"USD/liter mixture",2010,{"$f":"AVERAGE(4%,9%)","v":6.5000000000000002E-2},0.5,null,{"$f":"title438","v":"Poultry"},961.11]
[null,null,null,null,null,null,null,null,null,null,null,null,null,null,null,null,null,null,null,null,null,null,null,null,{"$f":"title439","v":"Swine"},1140.9000000000001]
[null,null,null,null,null,null,null,null,null,null,null,null,null,null,null,{"$f":"title357","v":"Dewatering"},"Screw Press ",{"$f":"PROPER(title164)","v":"Year"}]
[null,null,null,null,null,null,null,null,null,null,null,null,null,null,null,{"$f":"title422","v":"Capital Cost (USD/t residue)"},{"$f":"AVERAGE(0.2,0.5)*1000000*0.12/AVERAGE(4000,8000)","v":7},2002]
[null,null,null,null,null,null,null,null,null,null,null,null,null,null,null,{"$f":"title423","v":"Operation (worker/t residue)"},{"$f":"AVERAGE(20,40)*1000/AVERAGE(4000,8000)/(300*8*160)","v":1.3020833333333334E-5}]
[null,null,null,null,null,null,null,null,null,null,null,null,null,null,null,{"$f":"title424","v":"Energy Demand kWh/t residue"},{"$f":"AVERAGE(5,15)*8000/AVERAGE(4000,8000)","v":13.333333333333334},2002]
[]
[]
[]
[]
[null,null,null,null,null,null,null,null,null,null,null,null,null,null,null,{"$f":"title74","v":"Please Select"},{"$f":"title405","v":"Collection method"},"Show","Section to Show",{"$f":"VLOOKUP(INDIRECT(\"'Data entry needs'!$d$\"&$A$1),$P$166:$R$178,3,FALSE)","v":{"$error":"#N/A"}}]
[null,null,null,null,null,null,null,null,null,null,null,null,null,null,null,{"$f":"title184","v":"Biodiesel/Oilseed Ind."},{"$f":"title425","v":"No collection neeeded"},1,{"$f":"title429&\" 0\"","v":"Option 0"},0,0]
[null,null,null,null,null,null,null,null,null,null,null,null,null,null,null,{"$f":"title85","v":"Crop Residues"},{"$f":"title426","v":"Method 1"},2,{"$f":"title429&\" 1\"","v":"Option 1"},{"$f":"$I$31","v":{"$error":"#DIV/0!"}},{"$f":"$D$24/E16","v":{"$error":"#DIV/0!"}},{"$f":"title381","v":"person-hour/t"}]
[null,null,null,null,null,null,null,null,null,null,null,null,null,null,null,{"$f":"title185","v":"Dairy-milk ind."},{"$f":"title427","v":"Method 2, Method 3"},4,{"$f":"title429&\" 2\"","v":"Option 2"},{"$f":"$I$58","v":{"$error":"#DIV/0!"}},{"$f":"F49/E41","v":{"$error":"#DIV/0!"}},{"$f":"title381","v":"person-hour/t"}]
[null,null,null,null,null,null,null,null,null,null,null,null,null,null,null,{"$f":"title120","v":"Energy Crops"},{"$f":"title425","v":"No collection neeeded"},1,{"$f":"title429&\" 3\"","v":"Option 3"},{"$f":"$I$87","v":{"$error":"#DIV/0!"}},{"$f":"D76","v":0},{"$f":"title381","v":"person-hour/t"}]
[null,null,null,null,null,null,null,null,null,null,null,null,null,null,null,{"$f":"title186","v":"Eth-Sugar-Starch Ind."},{"$f":"title425","v":"No collection neeeded"},1]
[null,null,null,null,null,null,null,null,null,null,null,null,null,null,null,{"$f":"title187","v":"Food Process. Res."},{"$f":"title425","v":"No collection neeeded"},1,{"$f":"title430","v":"Result"},{"$f":"IF($T$165=1,T166,IF($T$165=2,$T$167,IF($T$165=3,T168,IF(AND($T$165=4,$E$34),$T$168,$T$169))))","v":{"$error":"#N/A"}}]
[null,null,null,null,null,null,null,null,null,null,null,null,null,null,null,{"$f":"title188","v":"Grass"},{"$f":"title426","v":"Method 1"},2,{"$f":"title431","v":"Employees"},{"$f":"IF($T$165=1,U166,IF($T$165=2,$U$167,IF($T$165=3,U169,IF(AND($T$165=4,$E$34),$U$168,$U$169))))","v":{"$error":"#N/A"}},{"$f":"title381","v":"person-hour/t"}]
[null,null,null,null,null,null,null,null,null,null,null,null,null,null,null,{"$f":"title119","v":"Crops"},{"$f":"title425","v":"No collection neeeded"},1]
[null,null,null,null,null,null,null,null,null,null,null,null,null,null,null,{"$f":"title189","v":"Other Options"},{"$f":"title425","v":"No collection neeeded"},1]
[null,null,null,null,null,null,null,null,null,null,null,null,null,null,null,{"$f":"title190","v":"Slaughterhouses wastes"},{"$f":"title428","v":"Method 2"},3]
[null,null,null,null,null,null,null,null,null,null,null,null,null,null,null,{"$f":"title191","v":"Yeast-Alcoholic Bev."},{"$f":"title425","v":"No collection neeeded"},1]
[null,null,null,null,null,null,null,null,null,null,null,null,null,null,null,{"$f":"title84","v":"Manure"},{"$f":"title427","v":"Method 2, Method 3"},4]
[null,null,null,null,null,null,null,null,null,null,null,null,null,null,null,{"$f":"title192","v":"Wastewater"},{"$f":"title425","v":"No collection neeeded"},1]

{"sheet":"Summary of results-by feedstock","index":61,"n_rows":294,"n_cols":37,"rows_kept":294,"cut":false,"hidden":false,"merged":[[63,6,63,8],[64,6,64,8],[65,6,65,8],[70,3,70,4],[70,10,70,12],[39,3,39,4],[9,13,9,18],[10,4,10,6],[10,7,10,10],[10,11,10,12],[12,11,12,12],[9,3,9,6],[9,7,9,12],[18,3,18,7],[41,17,41,18],[39,15,39,17],[42,15,42,16],[42,17,42,18],[53,15,53,17],[61,6,61,8],[62,6,62,8],[60,6,60,8],[2,2,2,18],[16,2,16,6],[16,10,16,12],[39,10,39,13],[39,6,39,8],[5,7,5,12],[5,2,5,6],[11,4,11,6],[11,7,11,10],[11,11,11,12],[12,4,12,6],[12,7,12,10],[7,4,7,5]]}
[null,null,null,null,null,null,null,null,0.1]
[]
[null,null,{"$f":"UPPER(title577&\" \"&$AC$138)","v":{"$error":"#N/A"}}]
[]
[]
[null,null,{"$f":"title578","v":"Select a feedstock to see the summary results"},null,null,null,null,"Please Select"]
[]
[null,null,null,{"$f":"title605&IF(OR('Biogas Use Selection'!$P$67=5,'Biogas Use Selection'!$P$67=2),title260,IF(OR('Biogas Use Selection'!$P$67=1,'Biogas Use Selection'!$P$67=3),Planner_PS1!$AC$128,IF('Biogas Use Selection'!$P$67=4,Planner_PS1!$AC$127)))&\")\"","v":"Size 1 (kWe)"},{"$f":"ROUND($AD$174,0)","v":{"$error":"#N/A"}},null,{"$f":"title606&IF(OR('Biogas Use Selection'!$P$67=5,'Biogas Use Selection'!$P$67=2),title260,IF(OR('Biogas Use Selection'!$P$67=1,'Biogas Use Selection'!$P$67=3),Planner_PS1!$AC$128,IF('Biogas Use Selection'!$P$67=4,Planner_PS1!$AC$127)))&\")\"","v":"Size 2 (kWe)"},null,null,null,{"$f":"ROUND($AE$174,0)","v":{"$error":"#N/A"}},{"$f":"title607&IF(OR('Biogas Use Selection'!$P$67=5,'Biogas Use Selection'!$P$67=2),title260,IF(OR('Biogas Use Selection'!$P$67=1,'Biogas Use Selection'!$P$67=3),Planner_PS1!$AC$128,IF('Biogas Use Selection'!$P$67=4,Planner_PS1!$AC$127)))&\")\"","v":"Size 3 (kWe)"},null,null,null,{"$f":"ROUND($AF$174,0)","v":{"$error":"#N/A"}},{"$f":"title608&IF(OR('Biogas Use Selection'!$P$67=5,'Biogas Use Selection'!$P$67=2),title260,IF(OR('Biogas Use Selection'!$P$67=1,'Biogas Use Selection'!$P$67=3),Planner_PS1!$AC$128,IF('Biogas Use Selection'!$P$67=4,Planner_PS1!$AC$127)))&\")\"","v":"Size 4 (kWe)"},null,{"$f":"ROUND($AG$174,0)","v":{"$error":"#N/A"}}]
[]
[null,null,null,{"$f":"title579","v":"Feedstock Selected"},null,null,null,{"$f":"title580","v":"Production Requirements"},null,null,null,null,null,{"$f":"title235","v":"Technical Parameters"}]
[null,null,null,{"$f":"$AB154","v":""},{"$f":"$AB157","v":""},{"$f":"$AB153","v":"Total Biomass available (t/year)"},"Total Biomass available (t/year)",{"$f":"title581","v":"Production Objective "},null,null,null,{"$f":"'Biogas Use Selection'!$F$6","v":"Heat and Electricity"},null,{"$f":"INDIRECT(\"COST_PS\"&$AC$138&\"!g11\")","v":{"$error":"#N/A"}},null,null,{"$f":"title583","v":"Digester Selected"},null,{"$f":"COST_PS1!L10","v":"CSTR"}]
[null,null,null,{"$f":"$AB155","v":""},{"$f":"$AB158","v":""},"","",{"$f":"title105","v":"Operation Mode"},null,null,null,{"$f":"IF('Data entry needs'!$D$11,'Data entry needs'!$D$12,IF('Data entry needs'!$F$11,'Data entry needs'!$F$12,IF('Data entry needs'!$J$11,'Data entry needs'!$J$12)))","v":"Optimized Co-digestion"},null,{"$f":"INDIRECT(\"COST_PS\"&$AC$138&\"!g12\")","v":{"$error":"#N/A"}},null,null,{"$f":"title584","v":"HRT (days)"},null,{"$f":"COST_PS1!M16","v":0}]
[null,null,null,{"$f":"$AB156","v":""},{"$f":"$AB159","v":""},"","",{"$f":"title582","v":"Operation Hour per year"},null,null,null,{"$f":"$AD$185","v":{"$error":"#N/A"}},null,{"$f":"INDIRECT(\"COST_PS\"&$AC$138&\"!g13\")","v":{"$error":"#N/A"}},null,null,{"$f":"title585","v":"Temperature Regime"},null,{"$f":"COST_PS1!$L$12","v":"Mesophilic"}]
[]
[null,null,{"$f":"title586","v":"Production Cost and Investment Results"}]
[]
[null,null,{"$f":"title587&IF($D$19,title588,title589)&$AC$179","v":"Production Cost Main Product - With Digestate Credits(USD/kWh)"},null,null,null,null,null,null,null,{"$f":"title590","v":"Share of Production Cost (%)"},null,null,null,null,{"$f":"title591","v":"Investment (USD)"}]
[]
[null,null,null,true]
[]
[]
[]
[]
[]
[]
[]
[]
[]
[]
[]
[]
[]
[]
[]
[]
[]
[]
[null,null,{"$f":"title592","v":"Operative Results"}]
[]
[null,null,null,{"$f":"title593","v":"Feedstock Consumption and Demand (t/yr)"},null,null,{"$f":"title594","v":"Annual Feedstock Disitribution"},null,null,null,{"$f":"title595","v":"Number of Plants Supported"},null,null,null,null,{"$f":"title596","v":"Consumers potentially supplied"}]
[]
[]
[null,null,null,null,null,null,null,null,null,null,null,null,null,null,null,{"$f":"$AB$207","v":"Heat "},null,{"$f":"$AB$268","v":"No Electricity Produced"}]
[]
[]
[]
[]
[]
[]
[]
[]
[]
[]
[null,null,null,null,null,null,null,null,null,null,null,null,null,null,null,{"$f":"title597","v":"Number of Jobs Potentially Created"}]
[]
[]
[]
[]
[]
[]
[null,null,null,null,null,null,{"$f":"D11","v":""}]
[null,null,null,null,null,null,{"$f":"D12","v":""}]
[null,null,null,null,null,null,{"$f":"D13","v":""}]
[null,null,null,null,null,null,{"$f":"E11","v":""}]
[null,null,null,null,null,null,{"$f":"E12","v":""}]
[null,null,null,null,null,null,{"$f":"E13","v":""}]
[]
[]
[null,null,null,{"$f":"title598","v":"Financial Analysis"},null,null,null,null,null,null,null,null,null,null,null,{"$f":"title601","v":"Digestate Composition"}]
[]
[null,null,null,{"$f":"title599","v":"Net Present Value (1000 USD/year)"},null,null,null,null,null,null,{"$f":"title600","v":"Internal Rate of Return (%)"},null,null,null,null,"N (%)",{"$f":"$AJ171","v":{"$error":"#N/A"}},"K (%)",{"$f":"$AJ173","v":{"$error":"#N/A"}}]
[null,null,null,null,null,null,null,null,null,null,null,null,null,null,null,"P (%)",{"$f":"$AJ172","v":{"$error":"#N/A"}},{"$f":"title602&\" (%)\"","v":"Moisture (%)"},{"$f":"$AJ176","v":{"$error":"#N/A"}}]
[null,null,null,null,null,null,null,null,null,null,null,null,null,null,null,{"$f":"title603","v":"Digestate Production and Income"}]
[]
[]
[]
[]
[]
[]
[]
[]
[]
[]
[]
[]
[]
[]
[null,null,null,null,null,null,null,null,null,null,null,null,null,null,null,null,null,null,null,null,null,null,null,2]
[]
[]
[]
[]
[]
[]
[]
[]
[]
[]
[]
[]
[]
[]
[]
[]
[]
[]
[]
[]
[]
[]
[]
[]
[]
[]
[]
[]
[]
[]
[]
[]
[]
[]
[]
[]
[]
[null,null,null,null,null,null,null,null,null,null,null,null,null,null,null,null,null,null,null,null,null,null,4]
[]
[]
[null,null,null,null,null,null,null,null,null,null,null,null,null,null,null,null,null,null,null,null,null,null,null,null,null,null,null,null,null,null,100,101,102,103,104,105]
[null,null,null,null,null,null,null,null,null,null,null,null,null,null,null,null,null,null,null,null,null,null,null,null,null,null,null,null,null,null,"fs1","fs2","fs3","fs4","fs5","fs6"]
[null,null,null,null,null,null,null,null,null,null,null,null,null,null,null,null,null,null,null,null,null,null,null,null,null,null,null,{"$f":"title74","v":"Please Select"},"Pos.","Active",{"$f":"INDIRECT(\"Planner_PS\"&$AC$138&\"!$AH\"&AE$129)","v":{"$error":"#N/A"}},{"$error":"#N/A"},{"$error":"#N/A"},{"$error":"#N/A"},{"$error":"#N/A"},{"$error":"#N/A"}]
[null,null,null,null,null,null,null,null,null,null,null,null,null,null,null,null,null,null,null,null,null,null,null,null,null,null,null,{"$f":"title98&\" 1\"","v":"Process 1"},1,{"$f":"title98&\" 1\"","v":"Process 1"},21,23,25,27,29,33]
[null,null,null,null,null,null,null,null,null,null,null,null,null,null,null,null,null,null,null,null,null,null,null,null,null,null,null,{"$f":"title98&\" 2\"","v":"Process 2"},2,{"$f":"title98&\" 2\"","v":"Process 2"},39,41,43,45,47,51]
[null,null,null,null,null,null,null,null,null,null,null,null,null,null,null,null,null,null,null,null,null,null,null,null,null,null,null,{"$f":"title98&\" 3\"","v":"Process 3"},3,{"$f":"title98&\" 3\"","v":"Process 3"},57,59,61,63,65,69]
[null,null,null,null,null,null,null,null,null,null,null,null,null,null,null,null,null,null,null,null,null,null,null,null,null,null,null,{"$f":"title98&\" 4\"","v":"Process 4"},4,{"$f":"title98&\" 4\"","v":"Process 4"},75,77,79,81,83,87]
[]
[null,null,null,null,null,null,null,null,null,null,null,null,null,null,null,null,null,null,null,null,null,null,null,null,null,null,null,{"$f":"title64","v":"Selection"},"No."]
[null,null,null,null,null,null,null,null,null,null,null,null,null,null,null,null,null,null,null,null,null,null,null,null,null,null,null,{"$f":"$H$6","v":"Please Select"},{"$f":"+VLOOKUP($AB$138,$AB$132:$AC$135,2,FALSE)","v":{"$error":"#N/A"}},{"$f":"title224","v":"Type of Operation"},null,{"$f":"IF('Data entry needs'!$D$11,'Data entry needs'!$D$12,IF('Data entry needs'!$F$11,'Data entry needs'!$F$12,IF('Data entry needs'!$J$11,'Data entry needs'!$J$12)))","v":"Optimized Co-digestion"}]
[null,null,null,null,null,null,null,null,null,null,null,null,null,null,null,null,null,null,null,null,null,null,null,null,null,null,null,null,null,null,{"$f":"title115","v":"Price (USD/t)"}]
[null,null,null,null,null,null,null,null,null,null,null,null,null,null,null,null,null,null,null,null,null,null,null,3,{"$f":"$AE$131","v":{"$error":"#N/A"}},{"$f":"+VLOOKUP($AC$138,$AC$132:$AJ$135,X140,FALSE)","v":{"$error":"#N/A"}},{"$f":"Z140*Y140","v":{"$error":"#N/A"}},"Fs1",{"$f":"IFERROR(INDIRECT(\"'Data entry needs'!$d\"&$AA140),\"\")","v":""},{"$f":"IFERROR(INDIRECT(\"'Data entry needs'!$e\"&$AA140),\"\")","v":""},{"$f":"IFERROR(INDIRECT(\"'Data entry needs'!$k\"&$AA140),0)","v":0}]
[null,null,null,null,null,null,null,null,null,null,null,null,null,null,null,null,null,null,null,null,null,null,null,4,{"$f":"$AF$131","v":{"$error":"#N/A"}},{"$error":"#N/A"},{"$error":"#N/A"},"Fs2","","",0]
[null,null,null,null,null,null,null,null,null,null,null,null,null,null,null,null,null,null,null,null,null,null,null,5,{"$f":"$AG$131","v":{"$error":"#N/A"}},{"$error":"#N/A"},{"$error":"#N/A"},"Fs3","","",0]
[null,null,null,null,null,null,null,null,null,null,null,null,null,null,null,null,null,null,null,null,null,null,null,6,{"$f":"$AH$131","v":{"$error":"#N/A"}},{"$error":"#N/A"},{"$error":"#N/A"},"Fs4","","",0]
[null,null,null,null,null,null,null,null,null,null,null,null,null,null,null,null,null,null,null,null,null,null,null,7,{"$f":"$AI$131","v":{"$error":"#N/A"}},{"$error":"#N/A"},{"$error":"#N/A"},"Fs5","","",0]
[null,null,null,null,null,null,null,null,null,null,null,null,null,null,null,null,null,null,null,null,null,null,null,8,{"$f":"$AJ$131","v":{"$error":"#N/A"}},{"$error":"#N/A"},{"$error":"#N/A"},"Fs6","","",0]
[null,null,null,null,null,null,null,null,null,null,null,null,null,null,null,null,null,null,null,null,null,null,null,null,null,null,null,{"$f":"title609","v":"Biogas Project Summary"}]
[]
[null,null,null,null,null,null,null,null,null,null,null,null,null,null,null,null,null,null,null,null,null,null,null,null,null,null,null,null,null,"F","H","J","L"]
[null,null,null,null,null,null,null,null,null,null,null,null,null,null,null,null,null,null,null,null,null,null,null,null,null,null,null,null,null,"G","I","K","M"]
[]
[null,null,null,null,null,null,null,null,null,null,null,null,null,null,null,null,null,null,null,null,null,null,null,null,null,null,null,{"$f":"title610","v":"Biomass type"}]
[null,null,null,null,null,null,null,null,null,null,null,null,null,null,null,null,null,null,null,null,null,null,null,null,null,null,39,{"$f":"title611","v":"Biomass required (t/year)"},{"$f":"title308","v":"t/year"},{"$f":"INDIRECT(\"COST_PS\"&$AC$138&\"!\"&AD$148&$AA152)","v":{"$error":"#N/A"}},{"$f":"INDIRECT(\"COST_PS\"&$AC$138&\"!\"&AE$148&$AA152)","v":{"$error":"#N/A"}},{"$f":"INDIRECT(\"COST_PS\"&$AC$138&\"!\"&AF$148&$AA152)","v":{"$error":"#N/A"}},{"$f":"INDIRECT(\"COST_PS\"&$AC$138&\"!\"&AG$148&$AA152)","v":{"$error":"#N/A"}}]
[null,null,null,null,null,null,null,null,null,null,null,null,null,null,null,null,null,null,null,null,null,null,null,null,null,null,22,{"$f":"title612","v":"Total Biomass available (t/year)"},"t/year",{"$f":"SUM(AD154:AD159)","v":0}]
[null,null,null,null,null,null,null,null,null,null,null,null,null,null,null,null,null,null,null,null,null,null,null,null,13,{"$f":"Y140","v":{"$error":"#N/A"}},{"$f":"Z154*Y154","v":{"$error":"#N/A"}},{"$f":"AD140","v":""},"t/year",{"$f":"IFERROR(INDIRECT(\"Planner_PS\"&$AC$138&\"!$e\"&$AA154),0)","v":0}]
[null,null,null,null,null,null,null,null,null,null,null,null,null,null,null,null,null,null,null,null,null,null,null,null,14,{"$error":"#N/A"},{"$error":"#N/A"},"","t/year",0]
[null,null,null,null,null,null,null,null,null,null,null,null,null,null,null,null,null,null,null,null,null,null,null,null,15,{"$error":"#N/A"},{"$error":"#N/A"},"","t/year",0]
[null,null,null,null,null,null,null,null,null,null,null,null,null,null,null,null,null,null,null,null,null,null,null,null,16,{"$error":"#N/A"},{"$error":"#N/A"},"","t/year",0]
[null,null,null,null,null,null,null,null,null,null,null,null,null,null,null,null,null,null,null,null,null,null,null,null,17,{"$error":"#N/A"},{"$error":"#N/A"},"","t/year",0]
[null,null,null,null,null,null,null,null,null,null,null,null,null,null,null,null,null,null,null,null,null,null,null,null,20,{"$error":"#N/A"},{"$error":"#N/A"},"","t/year",0]
[null,null,null,null,null,null,null,null,null,null,null,null,null,null,null,null,null,null,null,null,null,null,null,null,null,null,null,{"$f":"title613","v":"Plants potentially supported"},null,{"$f":"ROUNDDOWN($AD$153/AD$152,0)","v":{"$error":"#N/A"}},{"$f":"ROUNDDOWN($AD$153/AE$152,0)","v":{"$error":"#N/A"}},{"$f":"ROUNDDOWN($AD$153/AF$152,0)","v":{"$error":"#N/A"}},{"$f":"ROUNDDOWN($AD$153/AG$152,0)","v":{"$error":"#N/A"}}]
[]
[]
[null,null,null,null,null,null,null,null,null,null,null,null,null,null,null,null,null,null,null,null,null,null,null,null,null,null,null,null,null,{"$f":"IF(OR('Biogas Use Selection'!$P$67=5,'Biogas Use Selection'!$P$67=2),title260,IF(OR('Biogas Use Selection'!$P$67=1,'Biogas Use Selection'!$P$67=3),Planner_PS1!$AC$128,IF('Biogas Use Selection'!$P$67=4,Planner_PS1!$AC$127)))","v":"kWe"}]
[null,null,null,null,null,null,null,null,null,null,null,null,null,null,null,null,null,null,null,null,null,null,null,null,null,null,null,{"$f":"title614","v":"Production cost"},null,{"$f":"AD$174&\" (\"&$AD$163&\")\"","v":{"$error":"#N/A"}},{"$f":"AE$174&\" (\"&$AD$163&\")\"","v":{"$error":"#N/A"}},{"$f":"AF$174&\" (\"&$AD$163&\")\"","v":{"$error":"#N/A"}},{"$f":"AG$174&\" (\"&$AD$163&\")\"","v":{"$error":"#N/A"}}]
[null,null,null,null,null,null,null,null,null,null,null,null,null,null,null,null,null,null,null,null,null,null,null,null,null,null,39,{"$f":"title615","v":"Main feedstock(s)"},{"$f":"title319","v":"USD/year"},{"$f":"INDIRECT(\"COST_PS\"&$AC$138&\"!\"&AD$149&$AA165)","v":{"$error":"#N/A"}},{"$f":"INDIRECT(\"COST_PS\"&$AC$138&\"!\"&AE$149&$AA165)","v":{"$error":"#N/A"}},{"$f":"INDIRECT(\"COST_PS\"&$AC$138&\"!\"&AF$149&$AA165)","v":{"$error":"#N/A"}},{"$f":"INDIRECT(\"COST_PS\"&$AC$138&\"!\"&AG$149&$AA165)","v":{"$error":"#N/A"}},{"$f":"IF(OR('Biogas Use Selection'!$P$67=5,'Biogas Use Selection'!$P$67=2),0,IF(OR('Biogas Use Selection'!$P$67=1,'Biogas Use Selection'!$P$67=3),1,IF('Biogas Use Selection'!$P$67=4,0)))","v":1},{"$f":"title137","v":"Electricity Selling Price"},{"$f":"'Data entry needs'!$F$103","v":0},"USD/kWh"]
[null,null,null,null,null,null,null,null,null,null,null,null,null,null,null,null,null,null,null,null,null,null,null,null,null,null,44,{"$f":"title616","v":"Other Raw Materials"},"USD/year",{"$f":"INDIRECT(\"COST_PS\"&$AC$138&\"!\"&AD$148&$AA166)-AD165","v":{"$error":"#N/A"}},{"$f":"INDIRECT(\"COST_PS\"&$AC$138&\"!\"&AE$148&$AA166)-AE165","v":{"$error":"#N/A"}},{"$f":"INDIRECT(\"COST_PS\"&$AC$138&\"!\"&AF$148&$AA166)-AF165","v":{"$error":"#N/A"}},{"$f":"INDIRECT(\"COST_PS\"&$AC$138&\"!\"&AG$148&$AA166)-AG165","v":{"$error":"#N/A"}},{"$f":"IF(OR('Biogas Use Selection'!$P$67=5,'Biogas Use Selection'!$P$67=2),1,IF(OR('Biogas Use Selection'!$P$67=1,'Biogas Use Selection'!$P$67=3),0,IF('Biogas Use Selection'!$P$67=4,0)))","v":0},{"$f":"title617","v":"Biogas Selling Price"},{"$f":"'Data entry needs'!$F$105","v":0},{"$f":"\"USD/m3 \"&PROPER(title512)","v":"USD/m3 Biogas"}]
[null,null,null,null,null,null,null,null,null,null,null,null,null,null,null,null,null,null,null,null,null,null,null,null,null,null,51,{"$f":"title273","v":"Labour and miscellaneous costs"},"USD/year",{"$f":"INDIRECT(\"COST_PS\"&$AC$138&\"!\"&AD$149&$AA167)","v":{"$error":"#N/A"}},{"$f":"INDIRECT(\"COST_PS\"&$AC$138&\"!\"&AE$149&$AA167)","v":{"$error":"#N/A"}},{"$f":"INDIRECT(\"COST_PS\"&$AC$138&\"!\"&AF$149&$AA167)","v":{"$error":"#N/A"}},{"$f":"INDIRECT(\"COST_PS\"&$AC$138&\"!\"&AG$149&$AA167)","v":{"$error":"#N/A"}},{"$f":"IF(OR('Biogas Use Selection'!$P$67=5,'Biogas Use Selection'!$P$67=2),0,IF(OR('Biogas Use Selection'!$P$67=1,'Biogas Use Selection'!$P$67=3),0,IF('Biogas Use Selection'!$P$67=4,1)))","v":0},{"$f":"title657","v":"Biomethane Selling Price"},{"$f":"'Data entry needs'!$L$103","v":0},{"$f":"title618","v":"USD/m3 methane"}]
[null,null,null,null,null,null,null,null,null,null,null,null,null,null,null,null,null,null,null,null,null,null,null,null,null,73,61,{"$f":"title619","v":"Transport & Storage"},"USD/year",{"$f":"INDIRECT(\"COST_PS\"&$AC$138&\"!\"&AD$148&$AA168)+INDIRECT(\"COST_PS\"&$AC$138&\"!\"&AD$148&$Z168)","v":{"$error":"#N/A"}},{"$f":"INDIRECT(\"COST_PS\"&$AC$138&\"!\"&AE$148&$AA168)+INDIRECT(\"COST_PS\"&$AC$138&\"!\"&AE$148&$Z168)","v":{"$error":"#N/A"}},{"$f":"INDIRECT(\"COST_PS\"&$AC$138&\"!\"&AF$148&$AA168)+INDIRECT(\"COST_PS\"&$AC$138&\"!\"&AF$148&$Z168)","v":{"$error":"#N/A"}},{"$f":"INDIRECT(\"COST_PS\"&$AC$138&\"!\"&AG$148&$AA168)+INDIRECT(\"COST_PS\"&$AC$138&\"!\"&AG$148&$Z168)","v":{"$error":"#N/A"}}]
[null,null,null,null,null,null,null,null,null,null,null,null,null,null,null,null,null,null,null,null,null,null,null,null,null,82,81,{"$f":"title620","v":"Depreciation & Manteinance"},"USD/year",{"$f":"INDIRECT(\"COST_PS\"&$AC$138&\"!\"&AD$149&$Z169)+INDIRECT(\"COST_PS\"&$AC$138&\"!\"&AD$149&$AA169)","v":{"$error":"#N/A"}},{"$f":"INDIRECT(\"COST_PS\"&$AC$138&\"!\"&AE$149&$Z169)+INDIRECT(\"COST_PS\"&$AC$138&\"!\"&AE$149&$AA169)","v":{"$error":"#N/A"}},{"$f":"INDIRECT(\"COST_PS\"&$AC$138&\"!\"&AF$149&$Z169)+INDIRECT(\"COST_PS\"&$AC$138&\"!\"&AF$149&$AA169)","v":{"$error":"#N/A"}},{"$f":"INDIRECT(\"COST_PS\"&$AC$138&\"!\"&AG$149&$Z169)+INDIRECT(\"COST_PS\"&$AC$138&\"!\"&AG$149&$AA169)","v":{"$error":"#N/A"}},1,{"$f":"title455","v":"Digestate Sellig Price (USD/t)"},null,{"$f":"'Data entry needs'!$L$104","v":0}]
[null,null,null,null,null,null,null,null,null,null,null,null,null,null,null,null,null,null,null,null,null,null,null,null,null,null,90,{"$f":"title150","v":"Other costs"},"USD/year",{"$f":"INDIRECT(\"COST_PS\"&$AC$138&\"!\"&AD$148&$AA170)","v":{"$error":"#N/A"}},{"$f":"INDIRECT(\"COST_PS\"&$AC$138&\"!\"&AE$148&$AA170)","v":{"$error":"#N/A"}},{"$f":"INDIRECT(\"COST_PS\"&$AC$138&\"!\"&AF$148&$AA170)","v":{"$error":"#N/A"}},{"$f":"INDIRECT(\"COST_PS\"&$AC$138&\"!\"&AG$148&$AA170)","v":{"$error":"#N/A"}},2,{"$f":"title138&\" (USD/GJ)\"","v":"Heat Selling Price (USD/GJ)"},null,{"$f":"'Data entry needs'!$F$104/1000","v":0}]
[null,null,null,null,null,null,null,null,null,null,null,null,null,null,null,null,null,null,null,null,null,null,null,null,null,{"$f":"+$D$19","v":true},98,{"$f":"title621","v":"Total annualized production cost"},"USD/year",{"$f":"IF(INDIRECT(\"COST_PS\"&$AC$138&\"!\"&AD$148&$AA171)-IF($Z$171,AD184,0)<0,0,INDIRECT(\"COST_PS\"&$AC$138&\"!\"&AD$148&$AA171)-IF($Z$171,AD184,0))","v":{"$error":"#N/A"}},{"$f":"IF(INDIRECT(\"COST_PS\"&$AC$138&\"!\"&AE$148&$AA171)-IF($Z$171,AE184,0)<0,0,INDIRECT(\"COST_PS\"&$AC$138&\"!\"&AE$148&$AA171)-IF($Z$171,AE184,0))","v":{"$error":"#N/A"}},{"$error":"#N/A"},{"$error":"#N/A"},186,"N",{"$f":"INDIRECT(\"Planner_PS\"&$AC$138&\"!$ab\"&$AH171)","v":{"$error":"#N/A"}}]
[null,null,null,null,null,null,null,null,null,null,null,null,null,null,null,null,null,null,null,null,null,null,null,null,null,null,null,null,null,"AD","AE","AF","AG",187,"P",{"$f":"INDIRECT(\"Planner_PS\"&$AC$138&\"!$ab\"&$AH172)","v":{"$error":"#N/A"}}]
[null,null,null,null,null,null,null,null,null,null,null,null,null,null,null,null,null,null,null,null,null,null,null,null,127,130,106,{"$f":"title622","v":"Comparison Production"},{"$f":"IF(OR('Biogas Use Selection'!$P$67=5,'Biogas Use Selection'!$P$67=2),title310,IF(OR('Biogas Use Selection'!$P$67=1,'Biogas Use Selection'!$P$67=3),title304,IF('Biogas Use Selection'!$P$67=4,title311)))","v":"kWh/year"},{"$f":"IF(OR('Biogas Use Selection'!$P$67=5,'Biogas Use Selection'!$P$67=2),INDIRECT(\"Planner_PS\"&$AC$138&\"!\"&AD$172&$Z$173)*'Data entry needs'!$L$100,IF(OR('Biogas Use Selection'!$P$67=1,'Biogas Use Selection'!$P$67=3),INDIRECT(\"COST_PS\"&$AC$138&\"!\"&AD$149&$AA173),IF('Biogas Use Selection'!$P$67=4,INDIRECT(\"Planner_PS\"&$AC$138&\"!\"&AD$172&$Y$173)*'Data entry needs'!$L$100)))","v":{"$error":"#N/A"}},{"$f":"IF(OR('Biogas Use Selection'!$P$67=5,'Biogas Use Selection'!$P$67=2),INDIRECT(\"Planner_PS\"&$AC$138&\"!\"&AE$172&$Z$173)*'Data entry needs'!$L$100,IF(OR('Biogas Use Selection'!$P$67=1,'Biogas Use Selection'!$P$67=3),INDIRECT(\"COST_PS\"&$AC$138&\"!\"&AE$149&$AA173),IF('Biogas Use Selection'!$P$67=4,INDIRECT(\"Planner_PS\"&$AC$138&\"!\"&AE$172&$Y$173)*'Data entry needs'!$L$100)))","v":{"$error":"#N/A"}},{"$f":"IF(OR('Biogas Use Selection'!$P$67=5,'Biogas Use Selection'!$P$67=2),INDIRECT(\"Planner_PS\"&$AC$138&\"!\"&AF$172&$Z$173)*'Data entry needs'!$L$100,IF(OR('Biogas Use Selection'!$P$67=1,'Biogas Use Selection'!$P$67=3),INDIRECT(\"COST_PS\"&$AC$138&\"!\"&AF$149&$AA173),IF('Biogas Use Selection'!$P$67=4,INDIRECT(\"Planner_PS\"&$AC$138&\"!\"&AF$172&$Y$173)*'Data entry needs'!$L$100)))","v":{"$error":"#N/A"}},{"$f":"IF(OR('Biogas Use Selection'!$P$67=5,'Biogas Use Selection'!$P$67=2),INDIRECT(\"Planner_PS\"&$AC$138&\"!\"&AG$172&$Z$173)*'Data entry needs'!$L$100,IF(OR('Biogas Use Selection'!$P$67=1,'Biogas Use Selection'!$P$67=3),INDIRECT(\"COST_PS\"&$AC$138&\"!\"&AG$149&$AA173),IF('Biogas Use Selection'!$P$67=4,INDIRECT(\"Planner_PS\"&$AC$138&\"!\"&AG$172&$Y$173)*'Data entry needs'!$L$100)))","v":{"$error":"#N/A"}},188,"K",{"$f":"INDIRECT(\"Planner_PS\"&$AC$138&\"!$ab\"&$AH173)","v":{"$error":"#N/A"}}]
[null,null,null,null,null,null,null,null,null,null,null,null,null,null,null,null,null,null,null,null,null,null,null,null,null,null,33,null,null,{"$f":"INDIRECT(\"COST_PS\"&$AC$138&\"!\"&AD$148&$AA174)","v":{"$error":"#N/A"}},{"$f":"INDIRECT(\"COST_PS\"&$AC$138&\"!\"&AE$148&$AA174)","v":{"$error":"#N/A"}},{"$f":"INDIRECT(\"COST_PS\"&$AC$138&\"!\"&AF$148&$AA174)","v":{"$error":"#N/A"}},{"$f":"INDIRECT(\"COST_PS\"&$AC$138&\"!\"&AG$148&$AA174)","v":{"$error":"#N/A"}},189,{"$f":"title658","v":"Ash"},{"$f":"INDIRECT(\"Planner_PS\"&$AC$138&\"!$ab\"&$AH174)","v":{"$error":"#N/A"}}]
[null,null,null,null,null,null,null,null,null,null,null,null,null,null,null,null,null,null,null,null,null,null,null,null,null,null,null,null,null,null,null,null,null,190,{"$f":"title602","v":"Moisture"}]
[null,null,null,null,null,null,null,null,null,null,null,null,null,null,null,null,null,null,null,null,null,null,null,null,null,null,null,null,null,{"$f":"title248&\" 1\"","v":"Size 1"},{"$f":"title248&\" 2\"","v":"Size 2"},{"$f":"title248&\" 3\"","v":"Size 3"},{"$f":"title248&\" 4\"","v":"Size 4"},null,null,{"$f":"INDIRECT(\"Planner_PS\"&$AC$138&\"!$ab\"&$AH175)","v":{"$error":"#N/A"}}]
[null,null,null,null,null,null,null,null,null,null,null,null,null,null,null,null,null,null,null,null,null,null,null,null,null,null,null,{"$f":"title623","v":"Total production cost-limsup"},{"$f":"IF(OR('Biogas Use Selection'!$P$67=5,'Biogas Use Selection'!$P$67=2),Planner_PS1!$AJ$127,IF(OR('Biogas Use Selection'!$P$67=1,'Biogas Use Selection'!$P$67=3),Planner_PS1!$AJ$128,IF('Biogas Use Selection'!$P$67=4,Planner_PS1!$AJ$129)))","v":"USD/kWh"},{"$f":"INDIRECT(\"COST_PS\"&$AC$138&\"!\"&AD$148&$Z234)/AD$173*(1+$I$1)","v":{"$error":"#N/A"}},{"$f":"AE$171/AE$173*(1+$I$1)","v":{"$error":"#N/A"}},{"$f":"AF$171/AF$173*(1+$I$1)","v":{"$error":"#N/A"}},{"$f":"AG$171/AG$173*(1+$I$1)","v":{"$error":"#N/A"}}]
[null,null,null,null,null,null,null,null,null,null,null,null,null,null,null,null,null,null,null,null,null,null,null,null,null,null,null,{"$f":"title624","v":"Total production cost-liminf"},{"$f":"IF(OR('Biogas Use Selection'!$P$67=5,'Biogas Use Selection'!$P$67=2),Planner_PS1!$AJ$127,IF(OR('Biogas Use Selection'!$P$67=1,'Biogas Use Selection'!$P$67=3),Planner_PS1!$AJ$128,IF('Biogas Use Selection'!$P$67=4,Planner_PS1!$AJ$129)))","v":"USD/kWh"},{"$f":"IF($I$1>0,INDIRECT(\"COST_PS\"&$AC$138&\"!\"&AD$148&$Z234)/AD$173*(1-$I$1),0)","v":{"$error":"#N/A"}},{"$f":"IF($I$1>0,AE$171/AE$173*(1-$I$1),0)","v":{"$error":"#N/A"}},{"$f":"IF($I$1>0,AF$171/AF$173*(1-$I$1),0)","v":{"$error":"#N/A"}},{"$f":"IF($I$1>0,AG$171/AG$173*(1-$I$1),0)","v":{"$error":"#N/A"}}]
[null,null,null,null,null,null,null,null,null,null,null,null,null,null,null,null,null,null,null,null,null,null,null,null,null,null,null,{"$f":"VLOOKUP(1,$AH$165:$AJ$167,2,FALSE)","v":"Electricity Selling Price"},{"$f":"\"(\"&VLOOKUP(1,$AH$165:$AK$167,4,FALSE)&\")\"","v":"(USD/kWh)"},{"$f":"VLOOKUP(1,$AH$165:$AK$167,3,FALSE)","v":0},{"$f":"VLOOKUP(1,$AH$165:$AK$167,3,FALSE)","v":0},{"$f":"VLOOKUP(1,$AH$165:$AK$167,3,FALSE)","v":0},{"$f":"VLOOKUP(1,$AH$165:$AK$167,3,FALSE)","v":0},{"$f":"VLOOKUP(1,$AH$165:$AK$167,3,FALSE)","v":0}]
[]
[null,null,null,null,null,null,null,null,null,null,null,null,null,null,null,null,null,null,null,null,null,null,null,null,null,null,80,{"$f":"title625","v":"Total Capital Investment"},"USD",{"$f":"INDIRECT(\"COST_PS\"&$AC$138&\"!\"&AD$148&$AA181)","v":{"$error":"#N/A"}},{"$f":"INDIRECT(\"COST_PS\"&$AC$138&\"!\"&AE$148&$AA181)","v":{"$error":"#N/A"}},{"$f":"INDIRECT(\"COST_PS\"&$AC$138&\"!\"&AF$148&$AA181)","v":{"$error":"#N/A"}},{"$f":"INDIRECT(\"COST_PS\"&$AC$138&\"!\"&AG$148&$AA181)","v":{"$error":"#N/A"}}]
[]
[null,null,null,null,null,null,null,null,null,null,null,null,null,null,null,null,null,null,null,null,null,null,null,null,null,null,178,{"$f":"title626","v":"Digestate"},{"$f":"title308","v":"t/year"},{"$f":"INDIRECT(\"Planner_PS\"&$AC$138&\"!$ab\"&$AA183)","v":{"$error":"#N/A"}},{"$f":"INDIRECT(\"Planner_PS\"&$AC$138&\"!$ac\"&$AA183)","v":{"$error":"#N/A"}},{"$f":"INDIRECT(\"Planner_PS\"&$AC$138&\"!$ad\"&$AA183)","v":{"$error":"#N/A"}},{"$f":"INDIRECT(\"Planner_PS\"&$AC$138&\"!$ae\"&$AA183)","v":{"$error":"#N/A"}}]
[null,null,null,null,null,null,null,null,null,null,null,null,null,null,null,null,null,null,null,null,null,null,null,null,null,null,null,{"$f":"title627","v":"Digestate Income"},{"$f":"title319","v":"USD/year"},{"$f":"$AK$169*AD183","v":{"$error":"#N/A"}},{"$f":"$AK$169*AE183","v":{"$error":"#N/A"}},{"$error":"#N/A"},{"$error":"#N/A"}]
[null,null,null,null,null,null,null,null,null,null,null,null,null,null,null,null,null,null,null,null,null,null,null,null,null,null,35,{"$f":"title628","v":"Operating hour/year"},{"$f":"title505","v":"h/year"},{"$f":"INDIRECT(\"COST_PS\"&$AC$138&\"!\"&AD$149&$AA185)","v":{"$error":"#N/A"}}]
[null,null,null,null,null,null,null,null,null,null,null,null,null,null,null,null,null,null,null,null,null,null,null,null,null,null,null,{"$f":"title629","v":"Jobs"},{"$f":"title632","v":"Person-h/t"},"%",{"$f":"title633","v":"Collection Months"},{"$f":"title248&\" 1\"","v":"Size 1"},{"$f":"title248&\" 2\"","v":"Size 2"},{"$f":"title248&\" 3\"","v":"Size 3"},{"$f":"title248&\" 4\"","v":"Size 4"}]
[null,null,null,null,null,null,null,null,null,null,null,null,null,null,null,null,null,null,null,null,null,null,null,88,1,{"$f":"$AE$131","v":{"$error":"#N/A"}},{"$f":"Z187*Y187","v":{"$error":"#N/A"}},{"$f":"title630&\" 1\"","v":"Collection 1"},{"$f":"IFERROR(INDIRECT(\"PRICE_FS\"&$AA187&\"_PS\"&$AC$138&\"!T172\"),0)","v":0},{"$f":"AC245","v":""},{"$f":"IFERROR(INDIRECT(\"Planner_PS\"&$AC$138&\"!$ao\"&$X187),0)","v":0},{"$f":"IFERROR(ROUNDUP($AC187*$AD187*AD$152/($AD$185*($AE187/12)),0),0)","v":0},0,0,0]
[null,null,null,null,null,null,null,null,null,null,null,null,null,null,null,null,null,null,null,null,null,null,null,89,2,{"$f":"$AF$131","v":{"$error":"#N/A"}},{"$error":"#N/A"},{"$f":"title630&\" 2\"","v":"Collection 2"},0,"",0,0,0,0,0]
[null,null,null,null,null,null,null,null,null,null,null,null,null,null,null,null,null,null,null,null,null,null,null,90,3,{"$f":"$AG$131","v":{"$error":"#N/A"}},{"$error":"#N/A"},{"$f":"title630&\" 3\"","v":"Collection 3"},0,"",0,0,0,0,0]
[null,null,null,null,null,null,null,null,null,null,null,null,null,null,null,null,null,null,null,null,null,null,null,91,4,{"$f":"$AH$131","v":{"$error":"#N/A"}},{"$error":"#N/A"},{"$f":"title630&\" 4\"","v":"Collection 4"},0,"",0,0,0,0,0]
[null,null,null,null,null,null,null,null,null,null,null,null,null,null,null,null,null,null,null,null,null,null,null,92,5,{"$f":"$AI$131","v":{"$error":"#N/A"}},{"$error":"#N/A"},{"$f":"title630&\" 5\"","v":"Collection 5"},0,"",0,0,0,0,0]
[null,null,null,null,null,null,null,null,null,null,null,null,null,null,null,null,null,null,null,null,null,null,null,95,6,{"$f":"$AJ$131","v":{"$error":"#N/A"}},{"$error":"#N/A"},{"$f":"title630&\" 6\"","v":"Collection 6"},0,"",0,0,0,0,0]
[null,null,null,null,null,null,null,null,null,null,null,null,null,null,null,null,null,null,null,null,null,null,null,null,null,48,49,{"$f":"title631","v":"Processing"},null,null,null,{"$f":"INDIRECT(\"COST_PS\"&$AC$138&\"!\"&AD$148&$Z193)+INDIRECT(\"COST_PS\"&$AC$138&\"!\"&AD$148&$AA193)","v":{"$error":"#N/A"}},{"$f":"INDIRECT(\"COST_PS\"&$AC$138&\"!\"&AE$148&$Z193)+INDIRECT(\"COST_PS\"&$AC$138&\"!\"&AE$148&$AA193)","v":{"$error":"#N/A"}},{"$f":"INDIRECT(\"COST_PS\"&$AC$138&\"!\"&AF$148&$Z193)+INDIRECT(\"COST_PS\"&$AC$138&\"!\"&AF$148&$AA193)","v":{"$error":"#N/A"}},{"$f":"INDIRECT(\"COST_PS\"&$AC$138&\"!\"&AG$148&$Z193)+INDIRECT(\"COST_PS\"&$AC$138&\"!\"&AG$148&$AA193)","v":{"$error":"#N/A"}}]
[]
[]
[]
[null,null,null,null,null,null,null,null,null,null,null,null,null,null,null,null,null,null,null,null,null,null,null,null,null,null,null,null,null,{"$f":"title248&\" 1\"","v":"Size 1"},{"$f":"title248&\" 2\"","v":"Size 2"},{"$f":"title248&\" 3\"","v":"Size 3"},{"$f":"title248&\" 4\"","v":"Size 4"}]
[null,null,null,null,null,null,null,null,null,null,null,null,null,null,null,null,null,null,null,null,null,null,null,null,null,1,107,{"$f":"title634","v":"Heat Available"},{"$f":"title306","v":"MJ/year"},{"$f":"INDIRECT(\"COST_PS\"&$AC$138&\"!\"&AD$149&$AA198)*1000","v":{"$error":"#N/A"}},{"$f":"INDIRECT(\"COST_PS\"&$AC$138&\"!\"&AE$149&$AA198)*1000","v":{"$error":"#N/A"}},{"$f":"INDIRECT(\"COST_PS\"&$AC$138&\"!\"&AF$149&$AA198)*1000","v":{"$error":"#N/A"}},{"$f":"INDIRECT(\"COST_PS\"&$AC$138&\"!\"&AG$149&$AA198)*1000","v":{"$error":"#N/A"}}]
[null,null,null,null,null,null,null,null,null,null,null,null,null,null,null,null,null,null,null,null,null,null,null,null,null,5,106,{"$f":"title635","v":"Electricity Available"},{"$f":"title304","v":"kWh/year"},{"$f":"INDIRECT(\"COST_PS\"&$AC$138&\"!\"&AD$149&$AA199)","v":{"$error":"#N/A"}},{"$f":"INDIRECT(\"COST_PS\"&$AC$138&\"!\"&AE$149&$AA199)","v":{"$error":"#N/A"}},{"$f":"INDIRECT(\"COST_PS\"&$AC$138&\"!\"&AF$149&$AA199)","v":{"$error":"#N/A"}},{"$f":"INDIRECT(\"COST_PS\"&$AC$138&\"!\"&AG$149&$AA199)","v":{"$error":"#N/A"}}]
[null,null,null,null,null,null,null,null,null,null,null,null,null,null,null,null,null,null,null,null,null,null,null,null,null,2,130,{"$f":"title89","v":"Biogas Production"},{"$f":"title310","v":"m3 Biogas/year"},{"$f":"INDIRECT(\"Planner_PS\"&$AC$138&\"!$ad\"&$AA200)*'Data entry needs'!$L$100","v":{"$error":"#N/A"}},{"$f":"INDIRECT(\"Planner_PS\"&$AC$138&\"!$ae\"&$AA200)*'Data entry needs'!$L$100","v":{"$error":"#N/A"}},{"$f":"INDIRECT(\"Planner_PS\"&$AC$138&\"!$af\"&$AA200)*'Data entry needs'!$L$100","v":{"$error":"#N/A"}},{"$f":"INDIRECT(\"Planner_PS\"&$AC$138&\"!$ag\"&$AA200)*'Data entry needs'!$L$100","v":{"$error":"#N/A"}}]
[null,null,null,null,null,null,null,null,null,null,null,null,null,null,null,null,null,null,null,null,null,null,null,null,null,4,127,{"$f":"title636","v":"Methane Production"},{"$f":"title311","v":"m3 Methane/year"},{"$f":"INDIRECT(\"Planner_PS\"&$AC$138&\"!$ad\"&$AA201)*'Data entry needs'!$L$100","v":{"$error":"#N/A"}},{"$f":"INDIRECT(\"Planner_PS\"&$AC$138&\"!$ae\"&$AA201)*'Data entry needs'!$L$100","v":{"$error":"#N/A"}},{"$f":"INDIRECT(\"Planner_PS\"&$AC$138&\"!$af\"&$AA201)*'Data entry needs'!$L$100","v":{"$error":"#N/A"}},{"$f":"INDIRECT(\"Planner_PS\"&$AC$138&\"!$ag\"&$AA201)*'Data entry needs'!$L$100","v":{"$error":"#N/A"}}]
[null,null,null,null,null,null,null,null,null,null,null,null,null,null,null,null,null,null,null,null,null,null,null,null,null,null,null,null,4,5,6,7,8]
[null,null,null,null,null,null,null,null,null,null,null,null,null,null,null,null,null,null,null,null,null,null,null,null,null,null,null,{"$f":"title64&\" 1\"","v":"Selection 1"},{"$f":"IFERROR(VLOOKUP('Biogas Use Selection'!$P$67,'Summary of results-by feedstock'!$Z$198:$AG$201,AC$202,FALSE),0)","v":"MJ/year"},{"$f":"IFERROR(VLOOKUP('Biogas Use Selection'!$P$67,'Summary of results-by feedstock'!$Z$198:$AG$201,AD$202,FALSE),0)","v":0},{"$f":"IFERROR(VLOOKUP('Biogas Use Selection'!$P$67,'Summary of results-by feedstock'!$Z$198:$AG$201,AE$202,FALSE),0)","v":0},{"$f":"IFERROR(VLOOKUP('Biogas Use Selection'!$P$67,'Summary of results-by feedstock'!$Z$198:$AG$201,AF$202,FALSE),0)","v":0},{"$f":"IFERROR(VLOOKUP('Biogas Use Selection'!$P$67,'Summary of results-by feedstock'!$Z$198:$AG$201,AG$202,FALSE),0)","v":0}]
[null,null,null,null,null,null,null,null,null,null,null,null,null,null,null,null,null,null,null,null,null,null,null,null,null,null,null,{"$f":"title64&\" 2\"","v":"Selection 2"},{"$f":"IF(OR('Biogas Use Selection'!$P$67=3,'Biogas Use Selection'!$P$67=1),VLOOKUP(5,'Summary of results-by feedstock'!$Z$198:$AG$201,AC$202,FALSE),0)","v":"kWh/year"},{"$f":"IF(OR('Biogas Use Selection'!$P$67=3,'Biogas Use Selection'!$P$67=1),VLOOKUP(5,'Summary of results-by feedstock'!$Z$198:$AG$201,AD$202,FALSE),0)","v":{"$error":"#N/A"}},{"$f":"IF(OR('Biogas Use Selection'!$P$67=3,'Biogas Use Selection'!$P$67=1),VLOOKUP(5,'Summary of results-by feedstock'!$Z$198:$AG$201,AE$202,FALSE),0)","v":{"$error":"#N/A"}},{"$f":"IF(OR('Biogas Use Selection'!$P$67=3,'Biogas Use Selection'!$P$67=1),VLOOKUP(5,'Summary of results-by feedstock'!$Z$198:$AG$201,AF$202,FALSE),0)","v":{"$error":"#N/A"}},{"$f":"IF(OR('Biogas Use Selection'!$P$67=3,'Biogas Use Selection'!$P$67=1),VLOOKUP(5,'Summary of results-by feedstock'!$Z$198:$AG$201,AG$202,FALSE),0)","v":{"$error":"#N/A"}}]
[]
[null,null,null,null,null,null,null,null,null,null,null,null,null,null,null,null,null,null,null,null,null,null,null,null,null,null,null,null,{"$f":"title52","v":"Households"},null,{"$f":"title55","v":"Industries"}]
[null,null,null,null,null,null,null,null,null,null,null,null,null,null,null,null,null,null,null,null,null,null,null,null,null,null,null,{"$f":"IF(OR('Biogas Use Selection'!$P$67=5,'Biogas Use Selection'!$P$67=2),title637,IF('Biogas Use Selection'!$P$67=1,title638,IF('Biogas Use Selection'!$P$67=4,title639,\"\")))","v":"Heat "},{"$f":"VLOOKUP('Biogas Use Selection'!$Q$67,'Biogas Use Selection'!$O$71:$Z$75,3,FALSE)","v":0},{"$f":"VLOOKUP('Biogas Use Selection'!$Q$67,'Biogas Use Selection'!$O$71:$Z$75,4,FALSE)","v":"MJ/year/hh"},{"$f":"VLOOKUP('Biogas Use Selection'!$Q$67,'Biogas Use Selection'!$O$71:$Z$75,9,FALSE)","v":0},{"$f":"VLOOKUP('Biogas Use Selection'!$Q$67,'Biogas Use Selection'!$O$71:$Z$75,10,FALSE)","v":"MJ/year/hh"}]
[null,null,null,null,null,null,null,null,null,null,null,null,null,null,null,null,null,null,null,null,null,null,null,null,null,null,null,{"$f":"IF(AC208=0,\"\",title300)","v":""},{"$f":"VLOOKUP('Biogas Use Selection'!$Q$67,'Biogas Use Selection'!$O$71:$Z$75,5,FALSE)","v":0},{"$f":"VLOOKUP('Biogas Use Selection'!$Q$67,'Biogas Use Selection'!$O$71:$Z$75,6,FALSE)","v":"kWh/year/hh"},{"$f":"VLOOKUP('Biogas Use Selection'!$Q$67,'Biogas Use Selection'!$O$71:$Z$75,11,FALSE)","v":0},{"$f":"VLOOKUP('Biogas Use Selection'!$Q$67,'Biogas Use Selection'!$O$71:$Z$75,12,FALSE)","v":"kWh/year/ind"}]
[null,null,null,null,null,null,null,null,null,null,null,null,null,null,null,null,null,null,null,null,null,null,null,null,null,null,null,{"$f":"title53","v":"Expenditure Heat"},{"$f":"VLOOKUP('Biogas Use Selection'!$Q$67,'Biogas Use Selection'!$O$71:$Z$75,7,FALSE)","v":0},{"$f":"title669","v":"USD/year/ind"},{"$f":"VLOOKUP('Biogas Use Selection'!$Q$67,'Biogas Use Selection'!$O$71:$AA$75,13,FALSE)","v":0},{"$f":"title669","v":"USD/year/ind"}]
[null,null,null,null,null,null,null,null,null,null,null,null,null,null,null,null,null,null,null,null,null,null,null,null,null,null,null,{"$f":"title54","v":"Expenditure Electricity"},{"$f":"VLOOKUP('Biogas Use Selection'!$Q$67,'Biogas Use Selection'!$O$71:$Z$75,8,FALSE)","v":0},{"$f":"title669","v":"USD/year/ind"},{"$f":"VLOOKUP('Biogas Use Selection'!$Q$67,'Biogas Use Selection'!$O$71:$AB$75,14,FALSE)","v":0},{"$f":"title669","v":"USD/year/ind"}]
[null,null,null,null,null,null,null,null,null,null,null,null,null,null,null,null,null,null,null,null,null,null,null,null,null,null,null,{"$f":"AB207","v":"Heat "},null,{"$f":"title248&\" 1\"","v":"Size 1"},{"$f":"title248&\" 2\"","v":"Size 2"},{"$f":"title248&\" 3\"","v":"Size 3"},{"$f":"title248&\" 4\"","v":"Size 4"}]
[null,null,null,null,null,null,null,null,null,null,null,null,null,null,null,null,null,null,null,null,null,null,null,null,null,null,null,null,{"$f":"title52","v":"Households"},{"$f":"ROUNDDOWN(AD$203/$AC$207,0)","v":{"$error":"#DIV/0!"}},{"$f":"ROUNDDOWN(AE$203/$AC$207,0)","v":{"$error":"#DIV/0!"}},{"$f":"ROUNDDOWN(AF$203/$AC$207,0)","v":{"$error":"#DIV/0!"}},{"$f":"ROUNDDOWN(AG$203/$AC$207,0)","v":{"$error":"#DIV/0!"}}]
[null,null,null,null,null,null,null,null,null,null,null,null,null,null,null,null,null,null,null,null,null,null,null,null,null,null,null,null,{"$f":"title55","v":"Industries"},{"$f":"ROUNDDOWN(AD$203/$AE$207,0)","v":{"$error":"#DIV/0!"}},{"$f":"ROUNDDOWN(AE$203/$AE$207,0)","v":{"$error":"#DIV/0!"}},{"$f":"ROUNDDOWN(AF$203/$AE$207,0)","v":{"$error":"#DIV/0!"}},{"$f":"ROUNDDOWN(AG$203/$AE$207,0)","v":{"$error":"#DIV/0!"}}]
[null,null,null,null,null,null,null,null,null,null,null,null,null,null,null,null,null,null,null,null,null,null,null,null,null,null,null,{"$f":"title640","v":"Expenditure Traditional"},{"$f":"title52","v":"Households"},{"$f":"AD212*$AC$209","v":{"$error":"#DIV/0!"}},{"$f":"AE212*$AC$209","v":{"$error":"#DIV/0!"}},{"$f":"AF212*$AC$209","v":{"$error":"#DIV/0!"}},{"$f":"AG212*$AC$209","v":{"$error":"#DIV/0!"}}]
[null,null,null,null,null,null,null,null,null,null,null,null,null,null,null,null,null,null,null,null,null,null,null,null,null,null,null,null,{"$f":"title55","v":"Industries"},{"$f":"AD213*$AE$209","v":{"$error":"#DIV/0!"}},{"$f":"AE213*$AE$209","v":{"$error":"#DIV/0!"}},{"$f":"AF213*$AE$209","v":{"$error":"#DIV/0!"}},{"$f":"AG213*$AE$209","v":{"$error":"#DIV/0!"}}]
[null,null,null,null,null,null,null,null,null,null,null,null,null,null,null,null,null,null,null,null,null,null,null,null,null,null,null,{"$f":"title641","v":"Expenditure Biogas Tech."},null,{"$f":"IF('Biogas Use Selection'!$P$67=1,$AK$170,IF('Biogas Use Selection'!$P$67=2,$AJ$166,IF('Biogas Use Selection'!$P$67=3,0,IF('Biogas Use Selection'!$P$67=4,$AJ$167))))*AD203","v":0},{"$f":"IF('Biogas Use Selection'!$P$67=1,$AK$170,IF('Biogas Use Selection'!$P$67=2,$AJ$166,IF('Biogas Use Selection'!$P$67=3,0,IF('Biogas Use Selection'!$P$67=4,$AJ$167))))*AE203","v":0},{"$f":"IF('Biogas Use Selection'!$P$67=1,$AK$170,IF('Biogas Use Selection'!$P$67=2,$AJ$166,IF('Biogas Use Selection'!$P$67=3,0,IF('Biogas Use Selection'!$P$67=4,$AJ$167))))*AF203","v":0},{"$f":"IF('Biogas Use Selection'!$P$67=1,$AK$170,IF('Biogas Use Selection'!$P$67=2,$AJ$166,IF('Biogas Use Selection'!$P$67=3,0,IF('Biogas Use Selection'!$P$67=4,$AJ$167))))*AG203","v":0}]
[null,null,null,null,null,null,null,null,null,null,null,null,null,null,null,null,null,null,null,null,null,null,null,null,null,null,null,{"$f":"title642","v":"Electricity "},{"$f":"title52","v":"Households"},{"$f":"IFERROR(ROUNDDOWN(AD$204/$AC$208,0),0)","v":0},{"$f":"IFERROR(ROUNDDOWN(AE$204/$AC$208,0),0)","v":0},{"$f":"IFERROR(ROUNDDOWN(AF$204/$AC$208,0),0)","v":0},{"$f":"IFERROR(ROUNDDOWN(AG$204/$AC$208,0),0)","v":0}]
[null,null,null,null,null,null,null,null,null,null,null,null,null,null,null,null,null,null,null,null,null,null,null,null,null,null,null,null,{"$f":"title55","v":"Industries"},{"$f":"IFERROR(ROUNDDOWN(AD$204/$AE$208,0),0)","v":0},{"$f":"IFERROR(ROUNDDOWN(AE$204/$AE$208,0),0)","v":0},{"$f":"IFERROR(ROUNDDOWN(AF$204/$AE$208,0),0)","v":0},{"$f":"IFERROR(ROUNDDOWN(AG$204/$AE$208,0),0)","v":0}]
[null,null,null,null,null,null,null,null,null,null,null,null,null,null,null,null,null,null,null,null,null,null,null,null,null,null,null,{"$f":"title640","v":"Expenditure Traditional"},{"$f":"title52","v":"Households"},{"$f":"AD217*$AC$210","v":0},{"$f":"AE217*$AC$210","v":0},{"$f":"AF217*$AC$210","v":0},{"$f":"AG217*$AC$210","v":0}]
[null,null,null,null,null,null,null,null,null,null,null,null,null,null,null,null,null,null,null,null,null,null,null,null,null,null,null,null,{"$f":"title55","v":"Industries"},{"$f":"AD218*$AE$210","v":0},{"$f":"AE218*$AE$210","v":0},{"$f":"AF218*$AE$210","v":0},{"$f":"AG218*$AE$210","v":0}]
[null,null,null,null,null,null,null,null,null,null,null,null,null,null,null,null,null,null,null,null,null,null,null,null,null,null,null,{"$f":"title641","v":"Expenditure Biogas Tech."},null,{"$f":"IF(OR('Biogas Use Selection'!$P$67=1,'Biogas Use Selection'!$P$67=3),$AJ$165,IF(OR('Biogas Use Selection'!$P$67=2,'Biogas Use Selection'!$P$67=40),0))*AD204","v":{"$error":"#N/A"}},{"$f":"IF(OR('Biogas Use Selection'!$P$67=1,'Biogas Use Selection'!$P$67=3),$AJ$165,IF(OR('Biogas Use Selection'!$P$67=2,'Biogas Use Selection'!$P$67=40),0))*AE204","v":{"$error":"#N/A"}},{"$f":"IF(OR('Biogas Use Selection'!$P$67=1,'Biogas Use Selection'!$P$67=3),$AJ$165,IF(OR('Biogas Use Selection'!$P$67=2,'Biogas Use Selection'!$P$67=40),0))*AF204","v":{"$error":"#N/A"}},{"$f":"IF(OR('Biogas Use Selection'!$P$67=1,'Biogas Use Selection'!$P$67=3),$AJ$165,IF(OR('Biogas Use Selection'!$P$67=2,'Biogas Use Selection'!$P$67=40),0))*AG204","v":{"$error":"#N/A"}}]
[]
[null,null,null,null,null,null,null,null,null,null,null,null,null,null,null,null,null,null,null,null,null,null,null,null,null,null,null,null,"FA_SIZE1_PS","FA_SIZE2_PS","FA_SIZE3_PS","FA_SIZE4_PS"]
[null,null,null,null,null,null,null,null,null,null,null,null,null,null,null,null,null,null,null,null,null,null,null,null,null,null,null,"NPV",{"$f":"INDIRECT(AC$223&$AC$138&\"!D93\")","v":{"$error":"#N/A"}},{"$f":"INDIRECT(AD$223&$AC$138&\"!D93\")","v":{"$error":"#N/A"}},{"$f":"INDIRECT(AE$223&$AC$138&\"!D93\")","v":{"$error":"#N/A"}},{"$f":"INDIRECT(AF$223&$AC$138&\"!D93\")","v":{"$error":"#N/A"}}]
[null,null,null,null,null,null,null,null,null,null,null,null,null,null,null,null,null,null,null,null,null,null,null,null,null,null,null,"IRR",{"$f":"INDIRECT(AC$223&$AC$138&\"!D94\")","v":{"$error":"#N/A"}},{"$f":"INDIRECT(AD$223&$AC$138&\"!D94\")","v":{"$error":"#N/A"}},{"$f":"INDIRECT(AE$223&$AC$138&\"!D94\")","v":{"$error":"#N/A"}},{"$f":"INDIRECT(AF$223&$AC$138&\"!D94\")","v":{"$error":"#N/A"}}]
[]
[null,null,null,null,null,null,null,null,null,null,null,null,null,null,null,null,null,null,null,null,null,null,null,null,null,null,null,"Chart 2"]
[null,null,null,null,null,null,null,null,null,null,null,null,null,null,null,null,null,null,null,null,null,null,null,null,null,null,null,null,{"$f":"title248&\" 1\"","v":"Size 1"},{"$f":"title248&\" 2\"","v":"Size 2"},{"$f":"title248&\" 3\"","v":"Size 3"},{"$f":"title248&\" 4\"","v":"Size 4"}]
[null,null,null,null,null,null,null,null,null,null,null,null,null,null,null,null,null,null,null,null,null,null,null,null,null,null,null,{"$f":"title643","v":"Raw Materials"},{"$f":"(AD165+AD166)/INDIRECT(\"COST_PS\"&$AC$138&\"!\"&AD$148&$Z234)","v":{"$error":"#N/A"}},{"$f":"(AE165+AE166)/INDIRECT(\"COST_PS\"&$AC$138&\"!\"&AE$148&$Z234)","v":{"$error":"#N/A"}},{"$error":"#N/A"},{"$error":"#N/A"}]
[null,null,null,null,null,null,null,null,null,null,null,null,null,null,null,null,null,null,null,null,null,null,null,null,null,null,null,{"$f":"title644","v":"Labour and Miscellaneous"},{"$f":"AD167/INDIRECT(\"COST_PS\"&$AC$138&\"!\"&AD$148&$Z234)","v":{"$error":"#N/A"}},{"$f":"AE167/INDIRECT(\"COST_PS\"&$AC$138&\"!\"&AE$148&$Z234)","v":{"$error":"#N/A"}},{"$error":"#N/A"},{"$error":"#N/A"}]
[null,null,null,null,null,null,null,null,null,null,null,null,null,null,null,null,null,null,null,null,null,null,null,null,null,null,null,{"$f":"title619","v":"Transport & Storage"},{"$f":"AD168/INDIRECT(\"COST_PS\"&$AC$138&\"!\"&AD$148&$Z234)","v":{"$error":"#N/A"}},{"$f":"AE168/INDIRECT(\"COST_PS\"&$AC$138&\"!\"&AE$148&$Z234)","v":{"$error":"#N/A"}},{"$error":"#N/A"},{"$error":"#N/A"}]
[null,null,null,null,null,null,null,null,null,null,null,null,null,null,null,null,null,null,null,null,null,null,null,null,null,null,null,{"$f":"title620","v":"Depreciation & Manteinance"},{"$f":"AD169/INDIRECT(\"COST_PS\"&$AC$138&\"!\"&AD$148&$Z234)","v":{"$error":"#N/A"}},{"$f":"AE169/INDIRECT(\"COST_PS\"&$AC$138&\"!\"&AE$148&$Z234)","v":{"$error":"#N/A"}},{"$error":"#N/A"},{"$error":"#N/A"}]
[null,null,null,null,null,null,null,null,null,null,null,null,null,null,null,null,null,null,null,null,null,null,null,null,null,null,null,{"$f":"title150","v":"Other costs"},{"$f":"AD170/INDIRECT(\"COST_PS\"&$AC$138&\"!\"&AD$148&$Z234)","v":{"$error":"#N/A"}},{"$f":"AE170/INDIRECT(\"COST_PS\"&$AC$138&\"!\"&AE$148&$Z234)","v":{"$error":"#N/A"}},{"$error":"#N/A"},{"$error":"#N/A"}]
[null,null,null,null,null,null,null,null,null,null,null,null,null,null,null,null,null,null,null,null,null,null,null,null,null,98,{"$f":"+$D$19","v":true},{"$f":"+IF($AA$234,\"Digestate Credits\",\"\")","v":"Digestate Credits"},{"$f":"-IF($AA$234,AD184/INDIRECT(\"COST_PS\"&$AC$138&\"!\"&AD$148&$Z234))","v":{"$error":"#N/A"}},{"$f":"-IF($AA$234,AE184/INDIRECT(\"COST_PS\"&$AC$138&\"!\"&AE$148&$Z234))","v":{"$error":"#N/A"}},{"$error":"#N/A"},{"$error":"#N/A"}]
[null,null,null,null,null,null,null,null,null,null,null,null,null,null,null,null,null,null,null,null,null,null,null,null,null,null,null,"Chart 3",{"$f":"title248&\" 1\"","v":"Size 1"},{"$f":"title248&\" 2\"","v":"Size 2"},{"$f":"title248&\" 3\"","v":"Size 3"},{"$f":"title248&\" 4\"","v":"Size 4"}]
[null,null,null,null,null,null,null,null,null,null,null,null,null,null,null,null,null,null,null,null,null,null,null,null,null,null,null,{"$f":"title645","v":"Total Feedstock Available"},{"$f":"SUM($AD$154:$AD$159)","v":0},{"$f":"SUM($AD$154:$AD$159)","v":0},{"$f":"SUM($AD$154:$AD$159)","v":0},{"$f":"SUM($AD$154:$AD$159)","v":0},{"$f":"SUM($AD$154:$AD$159)","v":0}]
[null,null,null,null,null,null,null,null,null,null,null,null,null,null,null,null,null,null,null,null,null,null,null,null,null,null,null,{"$f":"title646","v":"Feedstock Demand"},{"$f":"AD152","v":{"$error":"#N/A"}},{"$f":"AE152","v":{"$error":"#N/A"}},{"$f":"AF152","v":{"$error":"#N/A"}},{"$f":"AG152","v":{"$error":"#N/A"}}]
[]
[null,null,null,null,null,null,null,null,null,null,null,null,null,null,null,null,null,null,null,null,null,null,null,null,null,null,null,"Chart 4"]
[null,null,null,null,null,null,null,null,null,null,null,null,null,null,null,null,null,null,null,null,null,null,null,null,null,null,null,null,{"$f":"title248&\" 1\"","v":"Size 1"},{"$f":"title248&\" 2\"","v":"Size 2"},{"$f":"title248&\" 3\"","v":"Size 3"},{"$f":"title248&\" 4\"","v":"Size 4"}]
[null,null,null,null,null,null,null,null,null,null,null,null,null,null,null,null,null,null,null,null,null,null,null,null,null,null,null,{"$f":"AB181","v":"Total Capital Investment"},{"$f":"AD181","v":{"$error":"#N/A"}},{"$f":"AE181","v":{"$error":"#N/A"}},{"$f":"AF181","v":{"$error":"#N/A"}},{"$f":"AG181","v":{"$error":"#N/A"}}]
[]
[null,null,null,null,null,null,null,null,null,null,null,null,null,null,null,null,null,null,null,null,null,null,null,null,null,null,null,"Chart 5"]
[null,null,null,null,null,null,null,null,null,null,null,null,null,null,null,null,null,null,null,null,null,null,null,null,null,null,null,null,"%"]
[null,null,null,null,null,null,null,null,null,null,null,null,null,null,null,null,null,null,null,null,null,null,null,null,null,null,null,{"$f":"AB154","v":""},{"$f":"IF($AB245=\"\",\"\",AD154/$AD$153)","v":""}]
[null,null,null,null,null,null,null,null,null,null,null,null,null,null,null,null,null,null,null,null,null,null,null,null,null,null,null,"",""]
[null,null,null,null,null,null,null,null,null,null,null,null,null,null,null,null,null,null,null,null,null,null,null,null,null,null,null,"",""]
[null,null,null,null,null,null,null,null,null,null,null,null,null,null,null,null,null,null,null,null,null,null,null,null,null,null,null,"",""]
[null,null,null,null,null,null,null,null,null,null,null,null,null,null,null,null,null,null,null,null,null,null,null,null,null,null,null,"",""]
[null,null,null,null,null,null,null,null,null,null,null,null,null,null,null,null,null,null,null,null,null,null,null,null,null,null,null,"",""]
[]
[]
[null,null,null,null,null,null,null,null,null,null,null,null,null,null,null,null,null,null,null,null,null,null,null,null,null,null,null,"Chart 6"]
[null,null,null,null,null,null,null,null,null,null,null,null,null,null,null,null,null,null,null,null,null,null,null,null,null,null,null,null,{"$f":"title248&\" 1\"","v":"Size 1"},{"$f":"title248&\" 2\"","v":"Size 2"},{"$f":"title248&\" 3\"","v":"Size 3"},{"$f":"title248&\" 4\"","v":"Size 4"}]
[null,null,null,null,null,null,null,null,null,null,null,null,null,null,null,null,null,null,null,null,null,null,null,null,null,null,null,{"$f":"AB160","v":"Plants potentially supported"},{"$f":"$AD$160","v":{"$error":"#N/A"}},{"$f":"$AE$160","v":{"$error":"#N/A"}},{"$f":"$AF$160","v":{"$error":"#N/A"}},{"$f":"$AG$160","v":{"$error":"#N/A"}}]
[]
[null,null,null,null,null,null,null,null,null,null,null,null,null,null,null,null,null,null,null,null,null,null,null,null,null,null,null,"Chart 7"]
[null,null,null,null,null,null,null,null,null,null,null,null,null,null,null,null,null,null,null,null,null,null,null,null,null,null,null,null,{"$f":"title248&\" 1\"","v":"Size 1"},{"$f":"title248&\" 2\"","v":"Size 2"},{"$f":"title248&\" 3\"","v":"Size 3"},{"$f":"title248&\" 4\"","v":"Size 4"}]
[null,null,null,null,null,null,null,null,null,null,null,null,null,null,null,null,null,null,null,null,null,null,null,null,null,null,null,{"$f":"title647","v":"Collection Jobs"},{"$f":"SUM(AF$187:AF$192)","v":0},{"$f":"SUM(AG$187:AG$192)","v":0},{"$f":"SUM(AH$187:AH$192)","v":0},{"$f":"SUM(AI$187:AI$192)","v":0}]
[null,null,null,null,null,null,null,null,null,null,null,null,null,null,null,null,null,null,null,null,null,null,null,null,null,null,null,{"$f":"title648","v":"Processing Jobs"},{"$f":"AF193","v":{"$error":"#N/A"}},{"$f":"AG193","v":{"$error":"#N/A"}},{"$f":"AH193","v":{"$error":"#N/A"}},{"$f":"AI193","v":{"$error":"#N/A"}}]
[null,null,null,null,null,null,null,null,null,null,null,null,null,null,null,null,null,null,null,null,null,null,null,null,null,null,null,{"$f":"title649","v":"Total Jobs"},{"$f":"SUM(AC259:AC260)","v":{"$error":"#N/A"}},{"$f":"SUM(AD259:AD260)","v":{"$error":"#N/A"}},{"$f":"SUM(AE259:AE260)","v":{"$error":"#N/A"}},{"$f":"SUM(AF259:AF260)","v":{"$error":"#N/A"}}]
[]
[null,null,null,null,null,null,null,null,null,null,null,null,null,null,null,null,null,null,null,null,null,null,null,null,null,null,null,"Chart 8"]
[null,null,null,null,null,null,null,null,null,null,null,null,null,null,null,null,null,null,null,null,null,null,null,null,null,null,null,{"$f":"AB211","v":"Heat "},{"$f":"title248&\" 1\"","v":"Size 1"},{"$f":"title248&\" 2\"","v":"Size 2"},{"$f":"title248&\" 3\"","v":"Size 3"},{"$f":"title248&\" 4\"","v":"Size 4"}]
[null,null,null,null,null,null,null,null,null,null,null,null,null,null,null,null,null,null,null,null,null,null,null,null,null,null,true,{"$f":"IF($AA$265,AC212,\"\")","v":"Households"},{"$f":"IF($AA$265,AD212,\"\")","v":{"$error":"#DIV/0!"}},{"$f":"IF($AA$265,AE212,\"\")","v":{"$error":"#DIV/0!"}},{"$f":"IF($AA$265,AF212,\"\")","v":{"$error":"#DIV/0!"}},{"$f":"IF($AA$265,AG212,\"\")","v":{"$error":"#DIV/0!"}}]
[null,null,null,null,null,null,null,null,null,null,null,null,null,null,null,null,null,null,null,null,null,null,null,null,null,null,{"$f":"NOT(AA265)","v":false},{"$f":"IF($AA$266,AC213,\"\")","v":""},{"$f":"IF($AA$266,AD213,\"\")","v":""},{"$f":"IF($AA$266,AE213,\"\")","v":""},{"$f":"IF($AA$266,AF213,\"\")","v":""},{"$f":"IF($AA$266,AG213,\"\")","v":""}]
[null,null,null,null,null,null,null,null,null,null,null,null,null,null,null,null,null,null,null,null,null,null,null,null,null,null,null,"Chart 9-Electricity"]
[null,null,null,null,null,null,null,null,null,null,null,null,null,null,null,null,null,null,null,null,null,null,null,null,null,null,null,{"$f":"IF(AG270=0,title650,AB217)","v":"No Electricity Produced"},{"$f":"title248&\" 1\"","v":"Size 1"},{"$f":"title248&\" 2\"","v":"Size 2"},{"$f":"title248&\" 3\"","v":"Size 3"},{"$f":"title248&\" 4\"","v":"Size 4"}]
[null,null,null,null,null,null,null,null,null,null,null,null,null,null,null,null,null,null,null,null,null,null,null,null,null,null,{"$f":"AA265","v":true},{"$f":"IF($AA$269,AC217,\"\")","v":"Households"},{"$f":"IF($AA$269,AD217,\"\")","v":0},{"$f":"IF($AA$269,AE217,\"\")","v":0},{"$f":"IF($AA$269,AF217,\"\")","v":0},{"$f":"IF($AA$269,AG217,\"\")","v":0}]
[null,null,null,null,null,null,null,null,null,null,null,null,null,null,null,null,null,null,null,null,null,null,null,null,null,null,{"$f":"NOT(AA269)","v":false},{"$f":"IF($AA$270,AC218,\"\")","v":""},{"$f":"IF($AA$270,AD218,\"\")","v":""},{"$f":"IF($AA$270,AE218,\"\")","v":""},{"$f":"IF($AA$270,AF218,\"\")","v":""},{"$f":"IF($AA$270,AG218,\"\")","v":""},{"$f":"SUM(AC269:AF270)","v":0}]
[]
[null,null,null,null,null,null,null,null,null,null,null,null,null,null,null,null,null,null,null,null,null,null,null,null,null,null,null,"Chart 10"]
[null,null,null,null,null,null,null,null,null,null,null,null,null,null,null,null,null,null,null,null,null,null,null,null,null,null,null,null,{"$f":"title248&\" 1\"","v":"Size 1"},{"$f":"title248&\" 2\"","v":"Size 2"},{"$f":"title248&\" 3\"","v":"Size 3"},{"$f":"title248&\" 4\"","v":"Size 4"}]
[null,null,null,null,null,null,null,null,null,null,null,null,null,null,null,null,null,null,null,null,null,null,null,null,null,null,null,"NPV",{"$f":"AC224","v":{"$error":"#N/A"}},{"$f":"AD224","v":{"$error":"#N/A"}},{"$f":"AE224","v":{"$error":"#N/A"}},{"$f":"AF224","v":{"$error":"#N/A"}}]
[]
[null,null,null,null,null,null,null,null,null,null,null,null,null,null,null,null,null,null,null,null,null,null,null,null,null,null,null,"Chart 11"]
[null,null,null,null,null,null,null,null,null,null,null,null,null,null,null,null,null,null,null,null,null,null,null,null,null,null,null,null,{"$f":"title248&\" 1\"","v":"Size 1"},{"$f":"title248&\" 2\"","v":"Size 2"},{"$f":"title248&\" 3\"","v":"Size 3"},{"$f":"title248&\" 4\"","v":"Size 4"}]
[null,null,null,null,null,null,null,null,null,null,null,null,null,null,null,null,null,null,null,null,null,null,null,null,null,null,null,"IRR",{"$f":"AC225","v":{"$error":"#N/A"}},{"$f":"AD225","v":{"$error":"#N/A"}},{"$f":"AE225","v":{"$error":"#N/A"}},{"$f":"AF225","v":{"$error":"#N/A"}}]
[]
[null,null,null,null,null,null,null,null,null,null,null,null,null,null,null,null,null,null,null,null,null,null,null,null,null,null,null,"Chart 12"]
[null,null,null,null,null,null,null,null,null,null,null,null,null,null,null,null,null,null,null,null,null,null,null,null,null,null,null,null,{"$f":"title248&\" 1\"","v":"Size 1"},{"$f":"title248&\" 2\"","v":"Size 2"},{"$f":"title248&\" 3\"","v":"Size 3"},{"$f":"title248&\" 4\"","v":"Size 4"}]
[null,null,null,null,null,null,null,null,null,null,null,null,null,null,null,null,null,null,null,null,null,null,null,null,null,null,true,{"$f":"IF($AA282,title651,\"\")","v":"Traditional  Expenditure of households"},{"$f":"IF($AA282,AD$214+AD$219,\"\")","v":{"$error":"#DIV/0!"}},{"$f":"IF($AA282,AE$214+AE$219,\"\")","v":{"$error":"#DIV/0!"}},{"$f":"IF($AA282,AF$214+AF$219,\"\")","v":{"$error":"#DIV/0!"}},{"$f":"IF($AA282,AG$214+AG$219,\"\")","v":{"$error":"#DIV/0!"}}]
[null,null,null,null,null,null,null,null,null,null,null,null,null,null,null,null,null,null,null,null,null,null,null,null,null,null,true,{"$f":"IF($AA283,title652,\"\")","v":"Traditional  Expenditure of Industries"},{"$f":"IF($AA283,AD$215+AD$220,\"\")","v":{"$error":"#DIV/0!"}},{"$f":"IF($AA283,AE$215+AE$220,\"\")","v":{"$error":"#DIV/0!"}},{"$f":"IF($AA283,AF$215+AF$220,\"\")","v":{"$error":"#DIV/0!"}},{"$f":"IF($AA283,AG$215+AG$220,\"\")","v":{"$error":"#DIV/0!"}}]
[null,null,null,null,null,null,null,null,null,null,null,null,null,null,null,null,null,null,null,null,null,null,null,null,null,null,true,{"$f":"IF($AA284,title653,\"\")","v":"Biogas Tech. Expenditure of households"},{"$f":"IF($AA284,AD$216,\"\")","v":0},{"$f":"IF($AA284,AE$216,\"\")","v":0},{"$f":"IF($AA284,AF$216,\"\")","v":0},{"$f":"IF($AA284,AG$216,\"\")","v":0}]
[null,null,null,null,null,null,null,null,null,null,null,null,null,null,null,null,null,null,null,null,null,null,null,null,null,null,true,{"$f":"IF($AA285,title654,\"\")","v":"Biogas Tech. Expenditure of Industries"},{"$f":"IF($AA285,AD$221,\"\")","v":{"$error":"#N/A"}},{"$f":"IF($AA285,AE$221,\"\")","v":{"$error":"#N/A"}},{"$f":"IF($AA285,AF$221,\"\")","v":{"$error":"#N/A"}},{"$f":"IF($AA285,AG$221,\"\")","v":{"$error":"#N/A"}}]
[]
[null,null,null,null,null,null,null,null,null,null,null,null,null,null,null,null,null,null,null,null,null,null,null,null,null,null,null,null,{"$f":"title248&\" 1\"","v":"Size 1"},{"$f":"title248&\" 2\"","v":"Size 2"},{"$f":"title248&\" 3\"","v":"Size 3"},{"$f":"title248&\" 4\"","v":"Size 4"}]
[null,null,null,null,null,null,null,null,null,null,null,null,null,null,null,null,null,null,null,null,null,null,null,null,null,null,{"$f":"AA265","v":true},{"$f":"IF($AA288,title655,\"\")","v":"Savings per Industry"},{"$f":"IF($AA288,IF(AD$213=0,0,(AD$215-AD$216)/AD$213+(AD$220-AD$221)/AD$218),\"\")","v":{"$error":"#DIV/0!"}},{"$f":"IF($AA288,IF(AE$213=0,0,(AE$215-AE$216)/AE$213+(AE$220-AE$221)/AE$218),\"\")","v":{"$error":"#DIV/0!"}},{"$f":"IF($AA288,IF(AF$213=0,0,(AF$215-AF$216)/AF$213+(AF$220-AF$221)/AF$218),\"\")","v":{"$error":"#DIV/0!"}},{"$f":"IF($AA288,IF(AG$213=0,0,(AG$215-AG$216)/AG$213+(AG$220-AG$221)/AG$218),\"\")","v":{"$error":"#DIV/0!"}}]
[null,null,null,null,null,null,null,null,null,null,null,null,null,null,null,null,null,null,null,null,null,null,null,null,null,null,{"$f":"AA285","v":true},{"$f":"IF($AA289,title656,\"\")","v":"Savings per Household"},{"$f":"IF($AA289,IF(AD$212=0,0,(AD$214-AD$216)/AD$212+(AD$219-AD$221)/AD$217),\"\")","v":{"$error":"#DIV/0!"}},{"$f":"IF($AA289,IF(AE$212=0,0,(AE$214-AE$216)/AE$212+(AE$219-AE$221)/AE$217),\"\")","v":{"$error":"#DIV/0!"}},{"$f":"IF($AA289,IF(AF$212=0,0,(AF$214-AF$216)/AF$212+(AF$219-AF$221)/AF$217),\"\")","v":{"$error":"#DIV/0!"}},{"$f":"IF($AA289,IF(AG$212=0,0,(AG$214-AG$216)/AG$212+(AG$219-AG$221)/AG$217),\"\")","v":{"$error":"#DIV/0!"}}]
[]
[null,null,null,null,null,null,null,null,null,null,null,null,null,null,null,null,null,null,null,null,null,null,null,null,null,null,null,"Chart 13"]
[null,null,null,null,null,null,null,null,null,null,null,null,null,null,null,null,null,null,null,null,null,null,null,null,null,null,null,null,{"$f":"title248&\" 1\"","v":"Size 1"},{"$f":"title248&\" 2\"","v":"Size 2"},{"$f":"title248&\" 3\"","v":"Size 3"},{"$f":"title248&\" 4\"","v":"Size 4"}]
[null,null,null,null,null,null,null,null,null,null,null,null,null,null,null,null,null,null,null,null,null,null,null,null,null,null,null,{"$f":"title452","v":"Digestate Production (t/year)"},{"$f":"AD183","v":{"$error":"#N/A"}},{"$f":"AE183","v":{"$error":"#N/A"}},{"$error":"#N/A"},{"$error":"#N/A"}]
[null,null,null,null,null,null,null,null,null,null,null,null,null,null,null,null,null,null,null,null,null,null,null,null,null,null,null,{"$f":"title627&\" \"&title272","v":"Digestate Income (USD/year)"},{"$error":"#N/A"},{"$error":"#N/A"},{"$error":"#N/A"},{"$error":"#N/A"}]

{"sheet":"Summary of results-comparative","index":62,"n_rows":320,"n_cols":86,"rows_kept":320,"cut":false,"hidden":false,"merged":[[36,22,36,24],[5,15,5,17],[13,2,13,10],[2,2,2,25],[13,20,13,24],[5,3,5,6],[5,22,5,24],[5,18,5,21],[5,8,5,13],[13,14,13,17],[9,3,9,7],[9,8,9,14],[9,15,9,21],[9,22,9,25],[40,3,40,4],[38,3,38,4],[38,5,38,7],[36,10,36,14],[36,16,36,17],[36,2,36,8]]}
[null,null,null,null,null,null,null,null,null,null,null,null,0.1,null,null,null,null,null,0]
[]
[null,null,{"$f":"title659","v":"SUMMARY OF RESULTS COMPARATIVE"}]
[]
[]
[null,null,null,{"$f":"title605&IF(OR('Biogas Use Selection'!$P$67=5,'Biogas Use Selection'!$P$67=2),title260,IF(OR('Biogas Use Selection'!$P$67=1,'Biogas Use Selection'!$P$67=3),Planner_PS1!$AC$128,IF('Biogas Use Selection'!$P$67=4,Planner_PS1!$AC$127)))&\")\"","v":"Size 1 (kWe)"},null,null,null,{"$f":"ROUND($AK$171,0)","v":100},{"$f":"title606&IF(OR('Biogas Use Selection'!$P$67=5,'Biogas Use Selection'!$P$67=2),title260,IF(OR('Biogas Use Selection'!$P$67=1,'Biogas Use Selection'!$P$67=3),Planner_PS1!$AC$128,IF('Biogas Use Selection'!$P$67=4,Planner_PS1!$AC$127)))&\")\"","v":"Size 2 (kWe)"},null,null,null,null,null,{"$f":"ROUND($AL$171,0)","v":105},{"$f":"title607&IF(OR('Biogas Use Selection'!$P$67=5,'Biogas Use Selection'!$P$67=2),title260,IF(OR('Biogas Use Selection'!$P$67=1,'Biogas Use Selection'!$P$67=3),Planner_PS1!$AC$128,IF('Biogas Use Selection'!$P$67=4,Planner_PS1!$AC$127)))&\")\"","v":"Size 3 (kWe)"},null,null,{"$f":"ROUND($AM$171,0)","v":115},null,null,null,{"$f":"title608&IF(OR('Biogas Use Selection'!$P$67=5,'Biogas Use Selection'!$P$67=2),title260,IF(OR('Biogas Use Selection'!$P$67=1,'Biogas Use Selection'!$P$67=3),Planner_PS1!$AC$128,IF('Biogas Use Selection'!$P$67=4,Planner_PS1!$AC$127)))&\")\"","v":"Size 4 (kWe)"},null,null,{"$f":"ROUND($AN$171,0)","v":120}]
[]
[null,null,null,{"$f":"title670","v":"Process Selection"}]
[]
[null,null,null,{"$f":"title98&\" 1\"","v":"Process 1"},null,null,null,null,{"$f":"title98&\" 2\"","v":"Process 2"},null,null,null,null,null,null,{"$f":"title98&\" 3\"","v":"Process 3"},null,null,null,null,null,null,{"$f":"title98&\" 4\"","v":"Process 4"}]
[]
[null,null,{"$f":"title660","v":"Techno-economic Results"}]
[]
[null,null,{"$f":"title661&\" \"&$AJ$175","v":"Production Cost Main Product - No Digestate Credits (USD/kWh)"},null,null,null,null,null,null,null,null,null,null,null,{"$f":"title601&\" (%)\"","v":"Digestate Composition (%)"},null,null,null,null,null,{"$f":"title662","v":"Number of Plants Potentially Supplied"}]
[]
[]
[]
[]
[]
[]
[]
[]
[]
[]
[]
[]
[]
[]
[]
[]
[]
[]
[]
[]
[null,null,{"$f":"title663","v":"Socio-Economic Results"},null,null,null,null,null,null,null,null,null,null,null,null,null,{"$f":"title664","v":"Financial Results"}]
[]
[null,null,{"$f":"title665","v":"Maximum Number of Consumers Potentially Supplied"},null,null,null,null,null,null,null,{"$f":"title666","v":"Maximum Number of Jobs Potentially Created"},null,null,null,null,null,{"$f":"title667","v":"Internal Rate Return (%)"},null,null,null,null,null,{"$f":"title668","v":"Net Preset Value (1000 USD)"}]
[]
[]
[]
[null,null,null,{"$f":"$AJ$291","v":"Heat "},null,{"$f":"AL291","v":"No Electricity Produced"}]
[]
[]
[]
[]
[]
[]
[]
[]
[]
[]
[]
[]
[]
[]
[]
[]
[]
[]
[]
[]
[]
[]
[]
[]
[]
[]
[]
[]
[]
[]
[]
[]
[]
[]
[]
[]
[]
[]
[]
[]
[]
[]
[]
[]
[]
[]
[]
[]
[]
[]
[]
[]
[]
[]
[]
[]
[]
[]
[]
[]
[]
[]
[]
[]
[]
[]
[]
[]
[]
[]
[]
[]
[]
[]
[]
[]
[]
[]
[]
[]
[]
[]
[]
[]
[null,null,null,null,null,null,null,null,null,null,null,null,null,null,null,null,null,null,null,null,null,null,null,null,null,null,null,null,null,null,null,null,null,null,null,null,null,100,101,102,103,104,105,null,null,null,null,null,null,null,100,101,102,103,104,105,null,null,null,null,null,null,null,null,100,101,102,103,104,105,null,null,null,null,null,null,null,null,100,101,102,103,104,105]
[null,null,null,null,null,null,null,null,null,null,null,null,null,null,null,null,null,null,null,null,null,null,null,null,null,null,null,null,null,null,null,null,null,null,null,null,null,"fs1","fs2","fs3","fs4","fs5","fs6",null,null,null,null,null,null,null,"fs1","fs2","fs3","fs4","fs5","fs6",null,null,null,null,null,null,null,null,"fs1","fs2","fs3","fs4","fs5","fs6",null,null,null,null,null,null,null,null,"fs1","fs2","fs3","fs4","fs5","fs6"]
[null,null,null,null,null,null,null,null,null,null,null,null,null,null,null,null,null,null,null,null,null,null,null,null,null,null,null,null,null,null,null,null,null,null,{"$f":"title74","v":"Please Select"},"Pos.","Active",{"$f":"INDIRECT(\"Planner_PS\"&$AJ$135&\"!$AH\"&AL$126)","v":0},0,0,0,0,0,null,null,null,null,{"$f":"title74","v":"Please Select"},"Pos.","Active",{"$f":"INDIRECT(\"Planner_PS\"&$AX$135&\"!$AH\"&AY$126)","v":0},0,0,0,0,0,null,null,null,null,null,{"$f":"title74","v":"Please Select"},"Pos.","Active",{"$f":"INDIRECT(\"Planner_PS\"&$BL$135&\"!$AH\"&BM$126)","v":0},0,0,0,0,0,null,null,null,null,null,{"$f":"title74","v":"Please Select"},"Pos.","Active",{"$f":"INDIRECT(\"Planner_PS\"&$BZ$135&\"!$AH\"&CA$126)","v":0},0,0,0,0,0]
[null,null,null,null,null,null,null,null,null,null,null,null,null,null,null,null,null,null,null,null,null,null,null,null,null,null,null,null,null,null,null,null,null,null,{"$f":"title98&\" 1\"","v":"Process 1"},1,{"$f":"title98&\" 1\"","v":"Process 1"},21,23,25,27,29,33]
[null,null,null,null,null,null,null,null,null,null,null,null,null,null,null,null,null,null,null,null,null,null,null,null,null,null,null,null,null,null,null,null,null,null,{"$f":"title98&\" 2\"","v":"Process 2"},2,{"$f":"title98&\" 2\"","v":"Process 2"},39,41,43,45,47,51]
[null,null,null,null,null,null,null,null,null,null,null,null,null,null,null,null,null,null,null,null,null,null,null,null,null,null,null,null,null,null,null,null,null,null,{"$f":"title98&\" 3\"","v":"Process 3"},3,{"$f":"title98&\" 3\"","v":"Process 3"},57,59,61,63,65,69]
[null,null,null,null,null,null,null,null,null,null,null,null,null,null,null,null,null,null,null,null,null,null,null,null,null,null,null,null,null,null,null,null,null,null,{"$f":"title98&\" 4\"","v":"Process 4"},4,{"$f":"title98&\" 4\"","v":"Process 4"},75,77,79,81,83,87]
[]
[null,null,null,null,null,null,null,null,null,null,null,null,null,null,null,null,null,null,null,null,null,null,null,null,null,null,null,null,null,null,null,null,null,null,{"$f":"title64","v":"Selection"},"No.",null,null,null,null,null,null,null,null,null,null,null,null,{"$f":"title64","v":"Selection"},"No.",null,null,null,null,null,null,null,null,null,null,null,null,{"$f":"title64","v":"Selection"},"No.",null,null,null,null,null,null,null,null,null,null,null,null,{"$f":"title64","v":"Selection"},"No."]
[null,null,null,null,null,null,null,null,null,null,null,null,null,null,null,null,null,null,null,null,null,null,null,null,null,null,null,null,null,null,null,null,null,null,{"$f":"title98&\" 1\"","v":"Process 1"},1,{"$f":"title224","v":"Type of Operation"},null,{"$f":"IF('Data entry needs'!$D$11,'Data entry needs'!$D$12,IF('Data entry needs'!$F$11,'Data entry needs'!$F$12,IF('Data entry needs'!$J$11,'Data entry needs'!$J$12)))","v":"Optimized Co-digestion"},null,null,null,null,null,null,null,null,null,{"$f":"title98&\" 2\"","v":"Process 2"},{"$f":"+VLOOKUP(AW135,AI129:AJ132,2,FALSE)","v":2},{"$f":"title224","v":"Type of Operation"},null,{"$f":"$AM$135","v":"Optimized Co-digestion"},null,null,null,null,null,null,null,null,null,{"$f":"title98&\" 2\"","v":"Process 2"},3,{"$f":"title224","v":"Type of Operation"},null,{"$f":"$AM$135","v":"Optimized Co-digestion"},null,null,null,null,null,null,null,null,null,{"$f":"title98&\" 2\"","v":"Process 2"},4,{"$f":"title224","v":"Type of Operation"},null,{"$f":"$AM$135","v":"Optimized Co-digestion"}]
[null,null,null,null,null,null,null,null,null,null,null,null,null,null,null,null,null,null,null,null,null,null,null,null,null,null,null,null,null,null,null,null,null,null,null,null,null,{"$f":"title115","v":"Price (USD/t)"},null,null,null,null,null,null,null,null,null,null,null,null,null,{"$f":"title115","v":"Price (USD/t)"},null,null,null,null,null,null,null,null,null,null,null,null,null,{"$f":"title115","v":"Price (USD/t)"},null,null,null,null,null,null,null,null,null,null,null,null,null,{"$f":"title115","v":"Price (USD/t)"}]
[null,null,null,null,null,null,null,null,null,null,null,null,null,null,null,null,null,null,null,null,null,null,null,null,null,null,null,null,null,null,3,{"$f":"INDIRECT(\"Planner_PS\"&$AJ$135&\"!$AH\"&AL$126)","v":0},{"$f":"+VLOOKUP($AJ$135,$AJ$129:$AQ$132,AE137,FALSE)","v":21},{"$f":"AG137*AF137","v":0},"Fs1",{"$f":"IFERROR(INDIRECT(\"'Data entry needs'!$d\"&$AH137),\"\")","v":""},{"$f":"IFERROR(INDIRECT(\"'Data entry needs'!$e\"&$AH137),\"\")","v":""},{"$f":"IFERROR(INDIRECT(\"'Data entry needs'!$k\"&$AH137),0)","v":0},null,null,null,null,null,null,3,{"$f":"INDIRECT(\"Planner_PS\"&AX135&\"!AH\"&AY126)","v":0},{"$f":"+VLOOKUP(AX135,AJ129:AQ132,AS137,FALSE)","v":39},{"$f":"AU137*AT137","v":0},"Fs1",{"$f":"IFERROR(INDIRECT(\"'Data entry needs'!d\"&AV137),\"\")","v":""},{"$f":"IFERROR(INDIRECT(\"'Data entry needs'!e\"&AV137),\"\")","v":""},{"$f":"IFERROR(INDIRECT(\"'Data entry needs'!k\"&AV137),0)","v":0},null,null,null,null,null,null,3,{"$f":"INDIRECT(\"Planner_PS\"&BL135&\"!AH\"&BM126)","v":0},{"$f":"+VLOOKUP($BL$135,$AJ$129:$AQ$132,BG137,FALSE)","v":57},{"$f":"BI137*BH137","v":0},"Fs1",{"$f":"IFERROR(INDIRECT(\"'Data entry needs'!d\"&BJ137),\"\")","v":""},{"$f":"IFERROR(INDIRECT(\"'Data entry needs'!e\"&BJ137),\"\")","v":""},{"$f":"IFERROR(INDIRECT(\"'Data entry needs'!k\"&BJ137),0)","v":0},null,null,null,null,null,null,3,{"$f":"INDIRECT(\"Planner_PS\"&BZ135&\"!AH\"&CA126)","v":0},{"$f":"+VLOOKUP($BZ$135,$AJ$129:$AQ$132,BU137,FALSE)","v":75},{"$f":"BW137*BV137","v":0},"Fs1",{"$f":"IFERROR(INDIRECT(\"'Data entry needs'!d\"&BX137),\"\")","v":""},{"$f":"IFERROR(INDIRECT(\"'Data entry needs'!e\"&BX137),\"\")","v":""},{"$f":"IFERROR(INDIRECT(\"'Data entry needs'!k\"&BX137),0)","v":0}]
[null,null,null,null,null,null,null,null,null,null,null,null,null,null,null,null,null,null,null,null,null,null,null,null,null,null,null,null,null,null,4,{"$f":"INDIRECT(\"Planner_PS\"&$AJ$135&\"!$AH\"&AM$126)","v":0},23,0,"Fs2","","",0,null,null,null,null,null,null,4,{"$f":"INDIRECT(\"Planner_PS\"&AX135&\"!AH\"&AZ126)","v":0},{"$f":"+VLOOKUP(AX135,AJ129:AQ132,AS138,FALSE)","v":41},0,"Fs2","","",0,null,null,null,null,null,null,4,{"$f":"INDIRECT(\"Planner_PS\"&BL135&\"!AH\"&BN126)","v":0},59,0,"Fs2","","",0,null,null,null,null,null,null,4,{"$f":"INDIRECT(\"Planner_PS\"&BZ135&\"!AH\"&CB126)","v":0},77,0,"Fs2","","",0]
[null,null,null,null,null,null,null,null,null,null,null,null,null,null,null,null,null,null,null,null,null,null,null,null,null,null,null,null,null,null,5,{"$f":"INDIRECT(\"Planner_PS\"&$AJ$135&\"!$AH\"&AN$126)","v":0},25,0,"Fs3","","",0,null,null,null,null,null,null,5,{"$f":"INDIRECT(\"Planner_PS\"&AX135&\"!AH\"&BA126)","v":0},{"$f":"+VLOOKUP(AX135,AJ129:AQ132,AS139,FALSE)","v":43},0,"Fs3","","",0,null,null,null,null,null,null,5,{"$f":"INDIRECT(\"Planner_PS\"&BL135&\"!AH\"&BO126)","v":0},61,0,"Fs3","","",0,null,null,null,null,null,null,5,{"$f":"INDIRECT(\"Planner_PS\"&BZ135&\"!AH\"&CC126)","v":0},79,0,"Fs3","","",0]
[null,null,null,null,null,null,null,null,null,null,null,null,null,null,null,null,null,null,null,null,null,null,null,null,null,null,null,null,null,null,6,{"$f":"INDIRECT(\"Planner_PS\"&$AJ$135&\"!$AH\"&AO$126)","v":0},27,0,"Fs4","","",0,null,null,null,null,null,null,6,{"$f":"INDIRECT(\"Planner_PS\"&AX135&\"!AH\"&BB126)","v":0},{"$f":"+VLOOKUP(AX135,AJ129:AQ132,AS140,FALSE)","v":45},0,"Fs4","","",0,null,null,null,null,null,null,6,{"$f":"INDIRECT(\"Planner_PS\"&BL135&\"!AH\"&BP126)","v":0},63,0,"Fs4","","",0,null,null,null,null,null,null,6,{"$f":"INDIRECT(\"Planner_PS\"&BZ135&\"!AH\"&CD126)","v":0},81,0,"Fs4","","",0]
[null,null,null,null,null,null,null,null,null,null,null,null,null,null,null,null,null,null,null,null,null,null,null,null,null,null,null,null,null,null,7,{"$f":"INDIRECT(\"Planner_PS\"&$AJ$135&\"!$AH\"&AP$126)","v":0},29,0,"Fs5","","",0,null,null,null,null,null,null,7,{"$f":"INDIRECT(\"Planner_PS\"&AX135&\"!AH\"&BC126)","v":0},{"$f":"+VLOOKUP(AX135,AJ129:AQ132,AS141,FALSE)","v":47},0,"Fs5","","",0,null,null,null,null,null,null,7,{"$f":"INDIRECT(\"Planner_PS\"&BL135&\"!AH\"&BQ126)","v":0},65,0,"Fs5","","",0,null,null,null,null,null,null,7,{"$f":"INDIRECT(\"Planner_PS\"&BZ135&\"!AH\"&CE126)","v":0},83,0,"Fs5","","",0]
[null,null,null,null,null,null,null,null,null,null,null,null,null,null,null,null,null,null,null,null,null,null,null,null,null,null,null,null,null,null,8,{"$f":"INDIRECT(\"Planner_PS\"&$AJ$135&\"!$AH\"&AQ$126)","v":0},33,0,"Fs6","","",0,null,null,null,null,null,null,8,{"$f":"INDIRECT(\"Planner_PS\"&AX135&\"!AH\"&BD126)","v":0},{"$f":"+VLOOKUP(AX135,AJ129:AQ132,AS142,FALSE)","v":51},0,"Fs6","","",0,null,null,null,null,null,null,8,{"$f":"INDIRECT(\"Planner_PS\"&BL135&\"!AH\"&BR126)","v":0},69,0,"Fs6","","",0,null,null,null,null,null,null,8,{"$f":"INDIRECT(\"Planner_PS\"&BZ135&\"!AH\"&CF126)","v":0},87,0,"Fs6","","",0]
[null,null,null,null,null,null,null,null,null,null,null,null,null,null,null,null,null,null,null,null,null,null,null,null,null,null,null,null,null,null,null,null,null,null,{"$f":"title609","v":"Biogas Project Summary"},null,null,null,null,null,null,null,null,null,null,null,null,null,{"$f":"title609","v":"Biogas Project Summary"},null,null,null,null,null,null,null,null,null,null,null,null,null,{"$f":"title609","v":"Biogas Project Summary"},null,null,null,null,null,null,null,null,null,null,null,null,null,{"$f":"title609","v":"Biogas Project Summary"}]
[]
[null,null,null,null,null,null,null,null,null,null,null,null,null,null,null,null,null,null,null,null,null,null,null,null,null,null,null,null,null,null,null,null,null,null,null,null,"F","H","J","L",null,null,null,null,null,null,null,null,null,null,"F","H","J","L",null,null,null,null,null,null,null,null,null,null,"F","H","J","L",null,null,null,null,null,null,null,null,null,null,"F","H","J","L"]
[null,null,null,null,null,null,null,null,null,null,null,null,null,null,null,null,null,null,null,null,null,null,null,null,null,null,null,null,null,null,null,null,null,null,null,null,"G","I","K","M",null,null,null,null,null,null,null,null,null,null,"G","I","K","M",null,null,null,null,null,null,null,null,null,null,"G","I","K","M",null,null,null,null,null,null,null,null,null,null,"G","I","K","M"]
[]
[null,null,null,null,null,null,null,null,null,null,null,null,null,null,null,null,null,null,null,null,null,null,null,null,null,null,null,null,null,null,null,null,null,null,{"$f":"title610","v":"Biomass type"},null,null,null,null,null,null,null,null,null,null,null,null,null,{"$f":"title610","v":"Biomass type"},null,null,null,null,null,null,null,null,null,null,null,null,null,{"$f":"title610","v":"Biomass type"},null,null,null,null,null,null,null,null,null,null,null,null,null,{"$f":"title610","v":"Biomass type"}]
[null,null,null,null,null,null,null,null,null,null,null,null,null,null,null,null,null,null,null,null,null,null,null,null,null,null,null,null,null,null,null,null,null,39,{"$f":"title611","v":"Biomass required (t/year)"},{"$f":"title308","v":"t/year"},{"$f":"INDIRECT(\"COST_PS\"&AJ135&\"!\"&AK145&AH149)","v":{"$error":"#DIV/0!"}},{"$f":"INDIRECT(\"COST_PS\"&AJ135&\"!\"&AL145&AH149)","v":{"$error":"#DIV/0!"}},{"$f":"INDIRECT(\"COST_PS\"&AJ135&\"!\"&AM145&AH149)","v":{"$error":"#DIV/0!"}},{"$f":"INDIRECT(\"COST_PS\"&AJ135&\"!\"&AN145&AH149)","v":{"$error":"#DIV/0!"}},null,null,null,null,null,null,null,39,{"$f":"title611","v":"Biomass required (t/year)"},{"$f":"title308","v":"t/year"},{"$f":"INDIRECT(\"COST_PS\"&AX135&\"!\"&AY145&AV149)","v":{"$error":"#DIV/0!"}},{"$f":"INDIRECT(\"COST_PS\"&AX135&\"!\"&AZ145&AV149)","v":{"$error":"#DIV/0!"}},{"$f":"INDIRECT(\"COST_PS\"&AX135&\"!\"&BA145&AV149)","v":{"$error":"#DIV/0!"}},{"$f":"INDIRECT(\"COST_PS\"&AX135&\"!\"&BB145&AV149)","v":{"$error":"#DIV/0!"}},null,null,null,null,null,null,null,39,{"$f":"title611","v":"Biomass required (t/year)"},{"$f":"title308","v":"t/year"},{"$f":"INDIRECT(\"COST_PS\"&BL135&\"!\"&BM145&BJ149)","v":{"$error":"#DIV/0!"}},{"$f":"INDIRECT(\"COST_PS\"&BL135&\"!\"&BN145&BJ149)","v":{"$error":"#DIV/0!"}},{"$f":"INDIRECT(\"COST_PS\"&BL135&\"!\"&BO145&BJ149)","v":{"$error":"#DIV/0!"}},{"$f":"INDIRECT(\"COST_PS\"&BL135&\"!\"&BP145&BJ149)","v":{"$error":"#DIV/0!"}},null,null,null,null,null,null,null,39,{"$f":"title611","v":"Biomass required (t/year)"},{"$f":"title308","v":"t/year"},{"$f":"INDIRECT(\"COST_PS\"&BZ135&\"!\"&CA145&BX149)","v":{"$error":"#DIV/0!"}},{"$f":"INDIRECT(\"COST_PS\"&BZ135&\"!\"&CB145&BX149)","v":{"$error":"#DIV/0!"}},{"$f":"INDIRECT(\"COST_PS\"&BZ135&\"!\"&CC145&BX149)","v":{"$error":"#DIV/0!"}},{"$f":"INDIRECT(\"COST_PS\"&BZ135&\"!\"&CD145&BX149)","v":{"$error":"#DIV/0!"}}]
[null,null,null,null,null,null,null,null,null,null,null,null,null,null,null,null,null,null,null,null,null,null,null,null,null,null,null,null,null,null,null,null,null,22,{"$f":"title612","v":"Total Biomass available (t/year)"},"t/year",{"$f":"SUM(AK151:AK156)","v":0},null,null,null,"2 graficas: la Normal y otra de distribución de materia prima",null,null,null,null,null,null,22,{"$f":"title612","v":"Total Biomass available (t/year)"},"t/year",{"$f":"SUM(AY151:AY156)","v":0},null,null,null,"2 graficas: la Normal y otra de distribución de materia prima",null,null,null,null,null,null,22,{"$f":"title612","v":"Total Biomass available (t/year)"},"t/year",{"$f":"SUM(BM151:BM156)","v":0},null,null,null,null,null,null,null,null,null,null,22,{"$f":"title612","v":"Total Biomass available (t/year)"},"t/year",{"$f":"SUM(CA151:CA156)","v":0}]
[null,null,null,null,null,null,null,null,null,null,null,null,null,null,null,null,null,null,null,null,null,null,null,null,null,null,null,null,null,null,null,13,{"$f":"AF137","v":0},{"$f":"AG151*AF151","v":0},{"$f":"AK137","v":""},"t/year",{"$f":"IFERROR(INDIRECT(\"Planner_PS\"&AJ135&\"!e\"&AH151),0)","v":0},null,null,null,null,null,null,null,null,13,{"$f":"AT137","v":0},{"$f":"AU151*AT151","v":0},{"$f":"AY137","v":""},"t/year",{"$f":"IFERROR(INDIRECT(\"Planner_PS\"&AX135&\"!e\"&AV151),0)","v":0},null,null,null,null,null,null,null,null,13,{"$f":"BH137","v":0},{"$f":"BI151*BH151","v":0},{"$f":"BM137","v":""},"t/year",{"$f":"IFERROR(INDIRECT(\"Planner_PS\"&BL135&\"!e\"&BJ151),0)","v":0},null,null,null,null,null,null,null,null,13,{"$f":"BV137","v":0},{"$f":"BW151*BV151","v":0},{"$f":"CA137","v":""},"t/year",{"$f":"IFERROR(INDIRECT(\"Planner_PS\"&BZ135&\"!e\"&BX151),0)","v":0}]
[null,null,null,null,null,null,null,null,null,null,null,null,null,null,null,null,null,null,null,null,null,null,null,null,null,null,null,null,null,null,null,14,0,0,"","t/year",{"$f":"IFERROR(INDIRECT(\"Planner_PS\"&AJ135&\"!e\"&AH152),0)","v":0},null,null,null,null,null,null,null,null,14,0,0,"","t/year",{"$f":"IFERROR(INDIRECT(\"Planner_PS\"&AX135&\"!e\"&AV152),0)","v":0},null,null,null,null,null,null,null,null,14,0,0,"","t/year",{"$f":"IFERROR(INDIRECT(\"Planner_PS\"&BL135&\"!e\"&BJ152),0)","v":0},null,null,null,null,null,null,null,null,14,0,0,"","t/year",{"$f":"IFERROR(INDIRECT(\"Planner_PS\"&BZ135&\"!e\"&BX152),0)","v":0}]
[null,null,null,null,null,null,null,null,null,null,null,null,null,null,null,null,null,null,null,null,null,null,null,null,null,null,null,null,null,null,null,15,0,0,"","t/year",{"$f":"IFERROR(INDIRECT(\"Planner_PS\"&AJ135&\"!e\"&AH153),0)","v":0},null,null,null,null,null,null,null,null,15,0,0,"","t/year",{"$f":"IFERROR(INDIRECT(\"Planner_PS\"&AX135&\"!e\"&AV153),0)","v":0},null,null,null,null,null,null,null,null,15,0,0,"","t/year",{"$f":"IFERROR(INDIRECT(\"Planner_PS\"&BL135&\"!e\"&BJ153),0)","v":0},null,null,null,null,null,null,null,null,15,0,0,"","t/year",{"$f":"IFERROR(INDIRECT(\"Planner_PS\"&BZ135&\"!e\"&BX153),0)","v":0}]
[null,null,null,null,null,null,null,null,null,null,null,null,null,null,null,null,null,null,null,null,null,null,null,null,null,null,null,null,null,null,null,16,0,0,"","t/year",{"$f":"IFERROR(INDIRECT(\"Planner_PS\"&AJ135&\"!e\"&AH154),0)","v":0},null,null,null,null,null,null,null,null,16,0,0,"","t/year",{"$f":"IFERROR(INDIRECT(\"Planner_PS\"&AX135&\"!e\"&AV154),0)","v":0},null,null,null,null,null,null,null,null,16,0,0,"","t/year",{"$f":"IFERROR(INDIRECT(\"Planner_PS\"&BL135&\"!e\"&BJ154),0)","v":0},null,null,null,null,null,null,null,null,16,0,0,"","t/year",{"$f":"IFERROR(INDIRECT(\"Planner_PS\"&BZ135&\"!e\"&BX154),0)","v":0}]
[null,null,null,null,null,null,null,null,null,null,null,null,null,null,null,null,null,null,null,null,null,null,null,null,null,null,null,null,null,null,null,17,0,0,"","t/year",{"$f":"IFERROR(INDIRECT(\"Planner_PS\"&AJ135&\"!e\"&AH155),0)","v":0},null,null,null,null,null,null,null,null,17,0,0,"","t/year",{"$f":"IFERROR(INDIRECT(\"Planner_PS\"&AX135&\"!e\"&AV155),0)","v":0},null,null,null,null,null,null,null,null,17,0,0,"","t/year",{"$f":"IFERROR(INDIRECT(\"Planner_PS\"&BL135&\"!e\"&BJ155),0)","v":0},null,null,null,null,null,null,null,null,17,0,0,"","t/year",{"$f":"IFERROR(INDIRECT(\"Planner_PS\"&BZ135&\"!e\"&BX155),0)","v":0}]
[null,null,null,null,null,null,null,null,null,null,null,null,null,null,null,null,null,null,null,null,null,null,null,null,null,null,null,null,null,null,null,20,0,0,"","t/year",{"$f":"IFERROR(INDIRECT(\"Planner_PS\"&AJ135&\"!e\"&AH156),0)","v":0},null,null,null,null,null,null,null,null,20,0,0,"","t/year",{"$f":"IFERROR(INDIRECT(\"Planner_PS\"&AX135&\"!e\"&AV156),0)","v":0},null,null,null,null,null,null,null,null,20,0,0,"","t/year",{"$f":"IFERROR(INDIRECT(\"Planner_PS\"&BL135&\"!e\"&BJ156),0)","v":0},null,null,null,null,null,null,null,null,20,0,0,"","t/year",{"$f":"IFERROR(INDIRECT(\"Planner_PS\"&BZ135&\"!e\"&BX156),0)","v":0}]
[null,null,null,null,null,null,null,null,null,null,null,null,null,null,null,null,null,null,null,null,null,null,null,null,null,null,null,null,null,null,null,null,null,null,{"$f":"title613","v":"Plants potentially supported"},null,{"$f":"ROUNDDOWN(AK150/AK149,0)","v":{"$error":"#DIV/0!"}},{"$f":"ROUNDDOWN(AK150/AL149,0)","v":{"$error":"#DIV/0!"}},{"$f":"ROUNDDOWN(AK150/AM149,0)","v":{"$error":"#DIV/0!"}},{"$f":"ROUNDDOWN(AK150/AN149,0)","v":{"$error":"#DIV/0!"}},null,null,null,null,null,null,null,null,{"$f":"title613","v":"Plants potentially supported"},null,{"$f":"ROUNDDOWN(AY150/AY149,0)","v":{"$error":"#DIV/0!"}},{"$f":"ROUNDDOWN(AY150/AZ149,0)","v":{"$error":"#DIV/0!"}},{"$f":"ROUNDDOWN(AY150/BA149,0)","v":{"$error":"#DIV/0!"}},{"$f":"ROUNDDOWN(AY150/BB149,0)","v":{"$error":"#DIV/0!"}},null,null,null,null,null,null,null,null,{"$f":"title613","v":"Plants potentially supported"},null,{"$f":"ROUNDDOWN(BM150/BM149,0)","v":{"$error":"#DIV/0!"}},{"$f":"ROUNDDOWN(BM150/BN149,0)","v":{"$error":"#DIV/0!"}},{"$f":"ROUNDDOWN(BM150/BO149,0)","v":{"$error":"#DIV/0!"}},{"$f":"ROUNDDOWN(BM150/BP149,0)","v":{"$error":"#DIV/0!"}},null,null,null,null,null,null,null,null,{"$f":"title613","v":"Plants potentially supported"},null,{"$f":"ROUNDDOWN(CA150/CA149,0)","v":{"$error":"#DIV/0!"}},{"$f":"ROUNDDOWN(CA150/CB149,0)","v":{"$error":"#DIV/0!"}},{"$f":"ROUNDDOWN(CA150/CC149,0)","v":{"$error":"#DIV/0!"}},{"$f":"ROUNDDOWN(CA150/CD149,0)","v":{"$error":"#DIV/0!"}}]
[]
[]
[null,null,null,null,null,null,null,null,null,null,null,null,null,null,null,null,null,null,null,null,null,null,null,null,null,null,null,null,null,null,null,null,null,null,null,null,{"$f":"IF(OR('Biogas Use Selection'!$P67=5,'Biogas Use Selection'!$P67=2),title260,IF(OR('Biogas Use Selection'!$P67=1,'Biogas Use Selection'!$P67=3),Planner_PS1!$AC$128,IF('Biogas Use Selection'!$P67=4,Planner_PS1!$AC$127)))","v":"kWe"},null,null,null,null,null,null,null,null,null,null,null,null,null,{"$f":"IF(OR('Biogas Use Selection'!$P67=5,'Biogas Use Selection'!$P67=2),title260,IF(OR('Biogas Use Selection'!$P67=1,'Biogas Use Selection'!$P67=3),Planner_PS1!$AC$128,IF('Biogas Use Selection'!$P67=4,Planner_PS1!$AC$127)))","v":"kWe"},null,null,null,null,null,null,null,null,null,null,null,null,null,{"$f":"IF(OR('Biogas Use Selection'!$P67=5,'Biogas Use Selection'!$P67=2),title260,IF(OR('Biogas Use Selection'!$P67=1,'Biogas Use Selection'!$P67=3),Planner_PS1!$AC$128,IF('Biogas Use Selection'!$P67=4,Planner_PS1!$AC$127)))","v":"kWe"},null,null,null,null,null,null,null,null,null,null,null,null,null,{"$f":"IF(OR('Biogas Use Selection'!$P67=5,'Biogas Use Selection'!$P67=2),title260,IF(OR('Biogas Use Selection'!$P67=1,'Biogas Use Selection'!$P67=3),Planner_PS1!$AC$128,IF('Biogas Use Selection'!$P67=4,Planner_PS1!$AC$127)))","v":"kWe"}]
[null,null,null,null,null,null,null,null,null,null,null,null,null,null,null,null,null,null,null,null,null,null,null,null,null,null,null,null,null,null,null,null,null,null,{"$f":"title614","v":"Production cost"},null,{"$f":"AK171&\" (\"&AK160&\")\"","v":"100 (kWe)"},{"$f":"AL171&\" (\"&AK160&\")\"","v":"105 (kWe)"},{"$f":"AM171&\" (\"&AK160&\")\"","v":"115 (kWe)"},{"$f":"AN171&\" (\"&AK160&\")\"","v":"120 (kWe)"},null,null,null,null,null,null,null,null,{"$f":"title614","v":"Production cost"},null,{"$f":"AY171&\" (\"&AY160&\")\"","v":"100 (kWe)"},{"$f":"AZ171&\" (\"&AY160&\")\"","v":"105 (kWe)"},{"$f":"BA171&\" (\"&AY160&\")\"","v":"115 (kWe)"},{"$f":"BB171&\" (\"&AY160&\")\"","v":"120 (kWe)"},null,null,null,null,null,null,null,null,{"$f":"title614","v":"Production cost"},null,{"$f":"BM171&\" (\"&BM160&\")\"","v":"100 (kWe)"},{"$f":"BN171&\" (\"&BM160&\")\"","v":"105 (kWe)"},{"$f":"BO171&\" (\"&BM160&\")\"","v":"115 (kWe)"},{"$f":"BP171&\" (\"&BM160&\")\"","v":"120 (kWe)"},null,null,null,null,null,null,null,null,{"$f":"title614","v":"Production cost"},null,{"$f":"CA171&\" (\"&CA160&\")\"","v":"100 (kWe)"},{"$f":"CB171&\" (\"&CA160&\")\"","v":"105 (kWe)"},{"$f":"CC171&\" (\"&CA160&\")\"","v":"115 (kWe)"},{"$f":"CD171&\" (\"&CA160&\")\"","v":"120 (kWe)"}]
[null,null,null,null,null,null,null,null,null,null,null,null,null,null,null,null,null,null,null,null,null,null,null,null,null,null,null,null,null,null,null,null,null,39,{"$f":"title615","v":"Main feedstock(s)"},{"$f":"title319","v":"USD/year"},{"$f":"INDIRECT(\"COST_PS\"&AJ135&\"!\"&AK146&AH162)","v":{"$error":"#DIV/0!"}},{"$f":"INDIRECT(\"COST_PS\"&AJ135&\"!\"&AL146&AH162)","v":{"$error":"#DIV/0!"}},{"$f":"INDIRECT(\"COST_PS\"&AJ135&\"!\"&AM146&AH162)","v":{"$error":"#DIV/0!"}},{"$f":"INDIRECT(\"COST_PS\"&AJ135&\"!\"&AN146&AH162)","v":{"$error":"#DIV/0!"}},{"$f":"IF(OR('Biogas Use Selection'!$P67=5,'Biogas Use Selection'!$P67=2),0,IF(OR('Biogas Use Selection'!$P67=1,'Biogas Use Selection'!$P67=3),1,IF('Biogas Use Selection'!$P67=4,0)))","v":1},{"$f":"title137","v":"Electricity Selling Price"},{"$f":"'Data entry needs'!$F103","v":0},"USD/kWh",null,null,null,39,{"$f":"title615","v":"Main feedstock(s)"},{"$f":"title319","v":"USD/year"},{"$f":"INDIRECT(\"COST_PS\"&AX135&\"!\"&AY146&AV162)","v":{"$error":"#DIV/0!"}},{"$f":"INDIRECT(\"COST_PS\"&AX135&\"!\"&AZ146&AV162)","v":{"$error":"#DIV/0!"}},{"$f":"INDIRECT(\"COST_PS\"&AX135&\"!\"&BA146&AV162)","v":{"$error":"#DIV/0!"}},{"$f":"INDIRECT(\"COST_PS\"&AX135&\"!\"&BB146&AV162)","v":{"$error":"#DIV/0!"}},{"$f":"IF(OR('Biogas Use Selection'!$P67=5,'Biogas Use Selection'!$P67=2),0,IF(OR('Biogas Use Selection'!$P67=1,'Biogas Use Selection'!$P67=3),1,IF('Biogas Use Selection'!$P67=4,0)))","v":1},{"$f":"title137","v":"Electricity Selling Price"},{"$f":"'Data entry needs'!$F103","v":0},"USD/kWh",null,null,null,39,{"$f":"title615","v":"Main feedstock(s)"},{"$f":"title319","v":"USD/year"},{"$f":"INDIRECT(\"COST_PS\"&BL135&\"!\"&BM146&BJ162)","v":{"$error":"#DIV/0!"}},{"$f":"INDIRECT(\"COST_PS\"&BL135&\"!\"&BN146&BJ162)","v":{"$error":"#DIV/0!"}},{"$f":"INDIRECT(\"COST_PS\"&BL135&\"!\"&BO146&BJ162)","v":{"$error":"#DIV/0!"}},{"$f":"INDIRECT(\"COST_PS\"&BL135&\"!\"&BP146&BJ162)","v":{"$error":"#DIV/0!"}},{"$f":"IF(OR('Biogas Use Selection'!$P67=5,'Biogas Use Selection'!$P67=2),0,IF(OR('Biogas Use Selection'!$P67=1,'Biogas Use Selection'!$P67=3),1,IF('Biogas Use Selection'!$P67=4,0)))","v":1},{"$f":"title137","v":"Electricity Selling Price"},{"$f":"'Data entry needs'!$F103","v":0},"USD/kWh",null,null,null,39,{"$f":"title615","v":"Main feedstock(s)"},{"$f":"title319","v":"USD/year"},{"$f":"INDIRECT(\"COST_PS\"&BZ135&\"!\"&CA146&BX162)","v":{"$error":"#DIV/0!"}},{"$f":"INDIRECT(\"COST_PS\"&BZ135&\"!\"&CB146&BX162)","v":{"$error":"#DIV/0!"}},{"$f":"INDIRECT(\"COST_PS\"&BZ135&\"!\"&CC146&BX162)","v":{"$error":"#DIV/0!"}},{"$f":"INDIRECT(\"COST_PS\"&BZ135&\"!\"&CD146&BX162)","v":{"$error":"#DIV/0!"}},{"$f":"IF(OR('Biogas Use Selection'!$P67=5,'Biogas Use Selection'!$P67=2),0,IF(OR('Biogas Use Selection'!$P67=1,'Biogas Use Selection'!$P67=3),1,IF('Biogas Use Selection'!$P67=4,0)))","v":1},{"$f":"title137","v":"Electricity Selling Price"},{"$f":"'Data entry needs'!$F103","v":0},"USD/kWh"]
[null,null,null,null,null,null,null,null,null,null,null,null,null,null,null,null,null,null,null,null,null,null,null,null,null,null,null,null,null,null,null,null,null,44,{"$f":"title616","v":"Other Raw Materials"},"USD/year",{"$f":"INDIRECT(\"COST_PS\"&AJ135&\"!\"&AK145&AH163)-AK162","v":{"$error":"#DIV/0!"}},{"$f":"INDIRECT(\"COST_PS\"&AJ135&\"!\"&AL145&AH163)-AL162","v":{"$error":"#DIV/0!"}},{"$f":"INDIRECT(\"COST_PS\"&AJ135&\"!\"&AM145&AH163)-AM162","v":{"$error":"#DIV/0!"}},{"$f":"INDIRECT(\"COST_PS\"&AJ135&\"!\"&AN145&AH163)-AN162","v":{"$error":"#DIV/0!"}},{"$f":"IF(OR('Biogas Use Selection'!$P67=5,'Biogas Use Selection'!$P67=2),1,IF(OR('Biogas Use Selection'!$P67=1,'Biogas Use Selection'!$P67=3),0,IF('Biogas Use Selection'!$P67=4,0)))","v":0},{"$f":"title617","v":"Biogas Selling Price"},{"$f":"'Data entry needs'!$F105","v":0},{"$f":"\"USD/m3 \"&PROPER(title512)","v":"USD/m3 Biogas"},null,null,null,44,{"$f":"title616","v":"Other Raw Materials"},"USD/year",{"$f":"INDIRECT(\"COST_PS\"&AX135&\"!\"&AY145&AV163)-AY162","v":{"$error":"#DIV/0!"}},{"$f":"INDIRECT(\"COST_PS\"&AX135&\"!\"&AZ145&AV163)-AZ162","v":{"$error":"#DIV/0!"}},{"$f":"INDIRECT(\"COST_PS\"&AX135&\"!\"&BA145&AV163)-BA162","v":{"$error":"#DIV/0!"}},{"$f":"INDIRECT(\"COST_PS\"&AX135&\"!\"&BB145&AV163)-BB162","v":{"$error":"#DIV/0!"}},{"$f":"IF(OR('Biogas Use Selection'!$P67=5,'Biogas Use Selection'!$P67=2),1,IF(OR('Biogas Use Selection'!$P67=1,'Biogas Use Selection'!$P67=3),0,IF('Biogas Use Selection'!$P67=4,0)))","v":0},{"$f":"title617","v":"Biogas Selling Price"},{"$f":"'Data entry needs'!$F105","v":0},{"$f":"\"USD/m3 \"&PROPER(title512)","v":"USD/m3 Biogas"},null,null,null,44,{"$f":"title616","v":"Other Raw Materials"},"USD/year",{"$f":"INDIRECT(\"COST_PS\"&BL135&\"!\"&BM145&BJ163)-BM162","v":{"$error":"#DIV/0!"}},{"$f":"INDIRECT(\"COST_PS\"&BL135&\"!\"&BN145&BJ163)-BN162","v":{"$error":"#DIV/0!"}},{"$f":"INDIRECT(\"COST_PS\"&BL135&\"!\"&BO145&BJ163)-BO162","v":{"$error":"#DIV/0!"}},{"$f":"INDIRECT(\"COST_PS\"&BL135&\"!\"&BP145&BJ163)-BP162","v":{"$error":"#DIV/0!"}},{"$f":"IF(OR('Biogas Use Selection'!$P67=5,'Biogas Use Selection'!$P67=2),1,IF(OR('Biogas Use Selection'!$P67=1,'Biogas Use Selection'!$P67=3),0,IF('Biogas Use Selection'!$P67=4,0)))","v":0},{"$f":"title617","v":"Biogas Selling Price"},{"$f":"'Data entry needs'!$F105","v":0},{"$f":"\"USD/m3 \"&PROPER(title512)","v":"USD/m3 Biogas"},null,null,null,44,{"$f":"title616","v":"Other Raw Materials"},"USD/year",{"$f":"INDIRECT(\"COST_PS\"&BZ135&\"!\"&CA145&BX163)-CA162","v":{"$error":"#DIV/0!"}},{"$f":"INDIRECT(\"COST_PS\"&BZ135&\"!\"&CB145&BX163)-CB162","v":{"$error":"#DIV/0!"}},{"$f":"INDIRECT(\"COST_PS\"&BZ135&\"!\"&CC145&BX163)-CC162","v":{"$error":"#DIV/0!"}},{"$f":"INDIRECT(\"COST_PS\"&BZ135&\"!\"&CD145&BX163)-CD162","v":{"$error":"#DIV/0!"}},{"$f":"IF(OR('Biogas Use Selection'!$P67=5,'Biogas Use Selection'!$P67=2),1,IF(OR('Biogas Use Selection'!$P67=1,'Biogas Use Selection'!$P67=3),0,IF('Biogas Use Selection'!$P67=4,0)))","v":0},{"$f":"title617","v":"Biogas Selling Price"},{"$f":"'Data entry needs'!$F105","v":0},{"$f":"\"USD/m3 \"&PROPER(title512)","v":"USD/m3 Biogas"}]
[null,null,null,null,null,null,null,null,null,null,null,null,null,null,null,null,null,null,null,null,null,null,null,null,null,null,null,null,null,null,null,null,null,51,{"$f":"title273","v":"Labour and miscellaneous costs"},"USD/year",{"$f":"INDIRECT(\"COST_PS\"&AJ135&\"!\"&AK146&AH164)","v":0},{"$f":"INDIRECT(\"COST_PS\"&AJ135&\"!\"&AL146&AH164)","v":0},{"$f":"INDIRECT(\"COST_PS\"&AJ135&\"!\"&AM146&AH164)","v":0},{"$f":"INDIRECT(\"COST_PS\"&AJ135&\"!\"&AN146&AH164)","v":0},{"$f":"IF(OR('Biogas Use Selection'!$P67=5,'Biogas Use Selection'!$P67=2),0,IF(OR('Biogas Use Selection'!$P67=1,'Biogas Use Selection'!$P67=3),0,IF('Biogas Use Selection'!$P67=4,1)))","v":0},{"$f":"title657","v":"Biomethane Selling Price"},{"$f":"'Data entry needs'!$L103","v":0},{"$f":"title618","v":"USD/m3 methane"},null,null,null,51,{"$f":"title273","v":"Labour and miscellaneous costs"},"USD/year",{"$f":"INDIRECT(\"COST_PS\"&AX135&\"!\"&AY146&AV164)","v":0},{"$f":"INDIRECT(\"COST_PS\"&AX135&\"!\"&AZ146&AV164)","v":0},{"$f":"INDIRECT(\"COST_PS\"&AX135&\"!\"&BA146&AV164)","v":0},{"$f":"INDIRECT(\"COST_PS\"&AX135&\"!\"&BB146&AV164)","v":0},{"$f":"IF(OR('Biogas Use Selection'!$P67=5,'Biogas Use Selection'!$P67=2),0,IF(OR('Biogas Use Selection'!$P67=1,'Biogas Use Selection'!$P67=3),0,IF('Biogas Use Selection'!$P67=4,1)))","v":0},{"$f":"title657","v":"Biomethane Selling Price"},{"$f":"'Data entry needs'!$L103","v":0},{"$f":"title618","v":"USD/m3 methane"},null,null,null,51,{"$f":"title273","v":"Labour and miscellaneous costs"},"USD/year",{"$f":"INDIRECT(\"COST_PS\"&BL135&\"!\"&BM146&BJ164)","v":0},{"$f":"INDIRECT(\"COST_PS\"&BL135&\"!\"&BN146&BJ164)","v":0},{"$f":"INDIRECT(\"COST_PS\"&BL135&\"!\"&BO146&BJ164)","v":0},{"$f":"INDIRECT(\"COST_PS\"&BL135&\"!\"&BP146&BJ164)","v":0},{"$f":"IF(OR('Biogas Use Selection'!$P67=5,'Biogas Use Selection'!$P67=2),0,IF(OR('Biogas Use Selection'!$P67=1,'Biogas Use Selection'!$P67=3),0,IF('Biogas Use Selection'!$P67=4,1)))","v":0},{"$f":"title657","v":"Biomethane Selling Price"},{"$f":"'Data entry needs'!$L103","v":0},{"$f":"title618","v":"USD/m3 methane"},null,null,null,51,{"$f":"title273","v":"Labour and miscellaneous costs"},"USD/year",{"$f":"INDIRECT(\"COST_PS\"&BZ135&\"!\"&CA146&BX164)","v":0},{"$f":"INDIRECT(\"COST_PS\"&BZ135&\"!\"&CB146&BX164)","v":0},{"$f":"INDIRECT(\"COST_PS\"&BZ135&\"!\"&CC146&BX164)","v":0},{"$f":"INDIRECT(\"COST_PS\"&BZ135&\"!\"&CD146&BX164)","v":0},{"$f":"IF(OR('Biogas Use Selection'!$P67=5,'Biogas Use Selection'!$P67=2),0,IF(OR('Biogas Use Selection'!$P67=1,'Biogas Use Selection'!$P67=3),0,IF('Biogas Use Selection'!$P67=4,1)))","v":0},{"$f":"title657","v":"Biomethane Selling Price"},{"$f":"'Data entry needs'!$L103","v":0},{"$f":"title618","v":"USD/m3 methane"}]
[null,null,null,null,null,null,null,null,null,null,null,null,null,null,null,null,null,null,null,null,null,null,null,null,null,null,null,null,null,null,null,null,73,61,{"$f":"title619","v":"Transport & Storage"},"USD/year",{"$f":"INDIRECT(\"COST_PS\"&AJ135&\"!\"&AK145&AH165)+INDIRECT(\"COST_PS\"&AJ135&\"!\"&AK145&AG165)","v":0},{"$f":"INDIRECT(\"COST_PS\"&AJ135&\"!\"&AL145&AH165)+INDIRECT(\"COST_PS\"&AJ135&\"!\"&AL145&AG165)","v":0},{"$f":"INDIRECT(\"COST_PS\"&AJ135&\"!\"&AM145&AH165)+INDIRECT(\"COST_PS\"&AJ135&\"!\"&AM145&AG165)","v":0},{"$f":"INDIRECT(\"COST_PS\"&AJ135&\"!\"&AN145&AH165)+INDIRECT(\"COST_PS\"&AJ135&\"!\"&AN145&AG165)","v":0},null,null,null,null,null,null,73,61,{"$f":"title619","v":"Transport & Storage"},"USD/year",{"$f":"INDIRECT(\"COST_PS\"&AX135&\"!\"&AY145&AV165)+INDIRECT(\"COST_PS\"&AX135&\"!\"&AY145&AU165)","v":0},{"$f":"INDIRECT(\"COST_PS\"&AX135&\"!\"&AZ145&AV165)+INDIRECT(\"COST_PS\"&AX135&\"!\"&AZ145&AU165)","v":0},{"$f":"INDIRECT(\"COST_PS\"&AX135&\"!\"&BA145&AV165)+INDIRECT(\"COST_PS\"&AX135&\"!\"&BA145&AU165)","v":0},{"$f":"INDIRECT(\"COST_PS\"&AX135&\"!\"&BB145&AV165)+INDIRECT(\"COST_PS\"&AX135&\"!\"&BB145&AU165)","v":0},null,null,null,null,null,null,73,61,{"$f":"title619","v":"Transport & Storage"},"USD/year",{"$f":"INDIRECT(\"COST_PS\"&BL135&\"!\"&BM145&BJ165)+INDIRECT(\"COST_PS\"&BL135&\"!\"&BM145&BI165)","v":0},{"$f":"INDIRECT(\"COST_PS\"&BL135&\"!\"&BN145&BJ165)+INDIRECT(\"COST_PS\"&BL135&\"!\"&BN145&BI165)","v":0},{"$f":"INDIRECT(\"COST_PS\"&BL135&\"!\"&BO145&BJ165)+INDIRECT(\"COST_PS\"&BL135&\"!\"&BO145&BI165)","v":0},{"$f":"INDIRECT(\"COST_PS\"&BL135&\"!\"&BP145&BJ165)+INDIRECT(\"COST_PS\"&BL135&\"!\"&BP145&BI165)","v":0},null,null,null,null,null,null,73,61,{"$f":"title619","v":"Transport & Storage"},"USD/year",{"$f":"INDIRECT(\"COST_PS\"&BZ135&\"!\"&CA145&BX165)+INDIRECT(\"COST_PS\"&BZ135&\"!\"&CA145&BW165)","v":0},{"$f":"INDIRECT(\"COST_PS\"&BZ135&\"!\"&CB145&BX165)+INDIRECT(\"COST_PS\"&BZ135&\"!\"&CB145&BW165)","v":0},{"$f":"INDIRECT(\"COST_PS\"&BZ135&\"!\"&CC145&BX165)+INDIRECT(\"COST_PS\"&BZ135&\"!\"&CC145&BW165)","v":0},{"$f":"INDIRECT(\"COST_PS\"&BZ135&\"!\"&CD145&BX165)+INDIRECT(\"COST_PS\"&BZ135&\"!\"&CD145&BW165)","v":0}]
[null,null,null,null,null,null,null,null,null,null,null,null,null,null,null,null,null,null,null,null,null,null,null,null,null,null,null,null,null,null,null,null,82,81,{"$f":"title620","v":"Depreciation & Manteinance"},"USD/year",{"$f":"INDIRECT(\"COST_PS\"&AJ135&\"!\"&AK146&AG166)+INDIRECT(\"COST_PS\"&AJ135&\"!\"&AK146&AH166)","v":{"$error":"#DIV/0!"}},{"$f":"INDIRECT(\"COST_PS\"&AJ135&\"!\"&AL146&AG166)+INDIRECT(\"COST_PS\"&AJ135&\"!\"&AL146&AH166)","v":{"$error":"#DIV/0!"}},{"$f":"INDIRECT(\"COST_PS\"&AJ135&\"!\"&AM146&AG166)+INDIRECT(\"COST_PS\"&AJ135&\"!\"&AM146&AH166)","v":{"$error":"#DIV/0!"}},{"$f":"INDIRECT(\"COST_PS\"&AJ135&\"!\"&AN146&AG166)+INDIRECT(\"COST_PS\"&AJ135&\"!\"&AN146&AH166)","v":{"$error":"#DIV/0!"}},1,{"$f":"title455","v":"Digestate Sellig Price (USD/t)"},null,{"$f":"'Data entry needs'!$L104","v":0},null,null,82,81,{"$f":"title620","v":"Depreciation & Manteinance"},"USD/year",{"$f":"INDIRECT(\"COST_PS\"&AX135&\"!\"&AY146&AU166)+INDIRECT(\"COST_PS\"&AX135&\"!\"&AY146&AV166)","v":{"$error":"#DIV/0!"}},{"$f":"INDIRECT(\"COST_PS\"&AX135&\"!\"&AZ146&AU166)+INDIRECT(\"COST_PS\"&AX135&\"!\"&AZ146&AV166)","v":{"$error":"#DIV/0!"}},{"$f":"INDIRECT(\"COST_PS\"&AX135&\"!\"&BA146&AU166)+INDIRECT(\"COST_PS\"&AX135&\"!\"&BA146&AV166)","v":{"$error":"#DIV/0!"}},{"$f":"INDIRECT(\"COST_PS\"&AX135&\"!\"&BB146&AU166)+INDIRECT(\"COST_PS\"&AX135&\"!\"&BB146&AV166)","v":{"$error":"#DIV/0!"}},1,{"$f":"title455","v":"Digestate Sellig Price (USD/t)"},null,{"$f":"'Data entry needs'!$L104","v":0},null,null,82,81,{"$f":"title620","v":"Depreciation & Manteinance"},"USD/year",{"$f":"INDIRECT(\"COST_PS\"&BL135&\"!\"&BM146&BI166)+INDIRECT(\"COST_PS\"&BL135&\"!\"&BM146&BJ166)","v":{"$error":"#DIV/0!"}},{"$f":"INDIRECT(\"COST_PS\"&BL135&\"!\"&BN146&BI166)+INDIRECT(\"COST_PS\"&BL135&\"!\"&BN146&BJ166)","v":{"$error":"#DIV/0!"}},{"$f":"INDIRECT(\"COST_PS\"&BL135&\"!\"&BO146&BI166)+INDIRECT(\"COST_PS\"&BL135&\"!\"&BO146&BJ166)","v":{"$error":"#DIV/0!"}},{"$f":"INDIRECT(\"COST_PS\"&BL135&\"!\"&BP146&BI166)+INDIRECT(\"COST_PS\"&BL135&\"!\"&BP146&BJ166)","v":{"$error":"#DIV/0!"}},1,{"$f":"title455","v":"Digestate Sellig Price (USD/t)"},null,{"$f":"'Data entry needs'!$L104","v":0},null,null,82,81,{"$f":"title620","v":"Depreciation & Manteinance"},"USD/year",{"$f":"INDIRECT(\"COST_PS\"&BZ135&\"!\"&CA146&BW166)+INDIRECT(\"COST_PS\"&BZ135&\"!\"&CA146&BX166)","v":{"$error":"#DIV/0!"}},{"$f":"INDIRECT(\"COST_PS\"&BZ135&\"!\"&CB146&BW166)+INDIRECT(\"COST_PS\"&BZ135&\"!\"&CB146&BX166)","v":{"$error":"#DIV/0!"}},{"$f":"INDIRECT(\"COST_PS\"&BZ135&\"!\"&CC146&BW166)+INDIRECT(\"COST_PS\"&BZ135&\"!\"&CC146&BX166)","v":{"$error":"#DIV/0!"}},{"$f":"INDIRECT(\"COST_PS\"&BZ135&\"!\"&CD146&BW166)+INDIRECT(\"COST_PS\"&BZ135&\"!\"&CD146&BX166)","v":{"$error":"#DIV/0!"}},1,{"$f":"title455","v":"Digestate Sellig Price (USD/t)"},null,{"$f":"'Data entry needs'!$L104","v":0}]
[null,null,null,null,null,null,null,null,null,null,null,null,null,null,null,null,null,null,null,null,null,null,null,null,null,null,null,null,null,null,null,null,null,90,{"$f":"title150","v":"Other costs"},"USD/year",{"$f":"INDIRECT(\"COST_PS\"&AJ135&\"!\"&AK145&AH167)","v":{"$error":"#DIV/0!"}},{"$f":"INDIRECT(\"COST_PS\"&AJ135&\"!\"&AL145&AH167)","v":{"$error":"#DIV/0!"}},{"$f":"INDIRECT(\"COST_PS\"&AJ135&\"!\"&AM145&AH167)","v":{"$error":"#DIV/0!"}},{"$f":"INDIRECT(\"COST_PS\"&AJ135&\"!\"&AN145&AH167)","v":{"$error":"#DIV/0!"}},2,{"$f":"title138&\" (USD/GJ)\"","v":"Heat Selling Price (USD/GJ)"},null,{"$f":"'Data entry needs'!$F104/1000","v":0},null,null,null,90,{"$f":"title150","v":"Other costs"},"USD/year",{"$f":"INDIRECT(\"COST_PS\"&AX135&\"!\"&AY145&AV167)","v":{"$error":"#DIV/0!"}},{"$f":"INDIRECT(\"COST_PS\"&AX135&\"!\"&AZ145&AV167)","v":{"$error":"#DIV/0!"}},{"$f":"INDIRECT(\"COST_PS\"&AX135&\"!\"&BA145&AV167)","v":{"$error":"#DIV/0!"}},{"$f":"INDIRECT(\"COST_PS\"&AX135&\"!\"&BB145&AV167)","v":{"$error":"#DIV/0!"}},2,{"$f":"title138&\" (USD/GJ)\"","v":"Heat Selling Price (USD/GJ)"},null,{"$f":"'Data entry needs'!$F104/1000","v":0},null,null,null,90,{"$f":"title150","v":"Other costs"},"USD/year",{"$f":"INDIRECT(\"COST_PS\"&BL135&\"!\"&BM145&BJ167)","v":{"$error":"#DIV/0!"}},{"$f":"INDIRECT(\"COST_PS\"&BL135&\"!\"&BN145&BJ167)","v":{"$error":"#DIV/0!"}},{"$f":"INDIRECT(\"COST_PS\"&BL135&\"!\"&BO145&BJ167)","v":{"$error":"#DIV/0!"}},{"$f":"INDIRECT(\"COST_PS\"&BL135&\"!\"&BP145&BJ167)","v":{"$error":"#DIV/0!"}},2,{"$f":"title138&\" (USD/GJ)\"","v":"Heat Selling Price (USD/GJ)"},null,{"$f":"'Data entry needs'!$F104/1000","v":0},null,null,null,90,{"$f":"title150","v":"Other costs"},"USD/year",{"$f":"INDIRECT(\"COST_PS\"&BZ135&\"!\"&CA145&BX167)","v":{"$error":"#DIV/0!"}},{"$f":"INDIRECT(\"COST_PS\"&BZ135&\"!\"&CB145&BX167)","v":{"$error":"#DIV/0!"}},{"$f":"INDIRECT(\"COST_PS\"&BZ135&\"!\"&CC145&BX167)","v":{"$error":"#DIV/0!"}},{"$f":"INDIRECT(\"COST_PS\"&BZ135&\"!\"&CD145&BX167)","v":{"$error":"#DIV/0!"}},2,{"$f":"title138&\" (USD/GJ)\"","v":"Heat Selling Price (USD/GJ)"},null,{"$f":"'Data entry needs'!$F104/1000","v":0}]
[null,null,null,null,null,null,null,null,null,null,null,null,null,null,null,null,null,null,null,null,null,null,null,null,null,null,null,null,null,null,null,null,true,98,{"$f":"title621","v":"Total annualized production cost"},"USD/year",{"$f":"INDIRECT(\"COST_PS\"&AJ135&\"!\"&AK145&AH168)-IF(AG168,AK180,0)","v":{"$error":"#DIV/0!"}},{"$f":"INDIRECT(\"COST_PS\"&AJ135&\"!\"&AL145&AH168)-IF(AG168,AL180,0)","v":{"$error":"#DIV/0!"}},{"$f":"INDIRECT(\"COST_PS\"&AJ135&\"!\"&AM145&AH168)-IF(AG168,AM180,0)","v":{"$error":"#DIV/0!"}},{"$f":"INDIRECT(\"COST_PS\"&AJ135&\"!\"&AN145&AH168)-IF(AG168,AN180,0)","v":{"$error":"#DIV/0!"}},186,"N",{"$f":"INDIRECT(\"Planner_PS\"&AJ135&\"!ab\"&AO168)","v":{"$error":"#DIV/0!"}},null,null,null,true,98,{"$f":"title621","v":"Total annualized production cost"},"USD/year",{"$f":"INDIRECT(\"COST_PS\"&AX135&\"!\"&AY145&AV168)-IF(AU168,AY180,0)","v":{"$error":"#DIV/0!"}},{"$f":"INDIRECT(\"COST_PS\"&AX135&\"!\"&AZ145&AV168)-IF(AU168,AZ180,0)","v":{"$error":"#DIV/0!"}},{"$f":"INDIRECT(\"COST_PS\"&AX135&\"!\"&BA145&AV168)-IF(AU168,BA180,0)","v":{"$error":"#DIV/0!"}},{"$f":"INDIRECT(\"COST_PS\"&AX135&\"!\"&BB145&AV168)-IF(AU168,BB180,0)","v":{"$error":"#DIV/0!"}},186,"N",{"$f":"INDIRECT(\"Planner_PS\"&AX135&\"!ab\"&BC168)","v":{"$error":"#DIV/0!"}},null,null,null,true,98,{"$f":"title621","v":"Total annualized production cost"},"USD/year",{"$f":"INDIRECT(\"COST_PS\"&BL135&\"!\"&BM145&BJ168)-IF(BI168,BM180,0)","v":{"$error":"#DIV/0!"}},{"$f":"INDIRECT(\"COST_PS\"&BL135&\"!\"&BN145&BJ168)-IF(BI168,BN180,0)","v":{"$error":"#DIV/0!"}},{"$f":"INDIRECT(\"COST_PS\"&BL135&\"!\"&BO145&BJ168)-IF(BI168,BO180,0)","v":{"$error":"#DIV/0!"}},{"$f":"INDIRECT(\"COST_PS\"&BL135&\"!\"&BP145&BJ168)-IF(BI168,BP180,0)","v":{"$error":"#DIV/0!"}},186,"N",{"$f":"INDIRECT(\"Planner_PS\"&BL135&\"!ab\"&BQ168)","v":{"$error":"#DIV/0!"}},null,null,null,true,98,{"$f":"title621","v":"Total annualized production cost"},"USD/year",{"$f":"INDIRECT(\"COST_PS\"&BZ135&\"!\"&CA145&BX168)-IF(BW168,CA180,0)","v":{"$error":"#DIV/0!"}},{"$f":"INDIRECT(\"COST_PS\"&BZ135&\"!\"&CB145&BX168)-IF(BW168,CB180,0)","v":{"$error":"#DIV/0!"}},{"$f":"INDIRECT(\"COST_PS\"&BZ135&\"!\"&CC145&BX168)-IF(BW168,CC180,0)","v":{"$error":"#DIV/0!"}},{"$f":"INDIRECT(\"COST_PS\"&BZ135&\"!\"&CD145&BX168)-IF(BW168,CD180,0)","v":{"$error":"#DIV/0!"}},186,"N",{"$f":"INDIRECT(\"Planner_PS\"&BZ135&\"!ab\"&CE168)","v":{"$error":"#DIV/0!"}}]
[null,null,null,null,null,null,null,null,null,null,null,null,null,null,null,null,null,null,null,null,null,null,null,null,null,null,null,null,null,null,null,null,null,null,null,null,"AD","AE","AF","AG",187,"P",{"$f":"INDIRECT(\"Planner_PS\"&AJ135&\"!ab\"&AO169)","v":{"$error":"#DIV/0!"}},null,null,null,null,null,null,null,"AD","AE","AF","AG",187,"P",{"$f":"INDIRECT(\"Planner_PS\"&AX135&\"!ab\"&BC169)","v":{"$error":"#DIV/0!"}},null,null,null,null,null,null,null,"AD","AE","AF","AG",187,"P",{"$f":"INDIRECT(\"Planner_PS\"&BL135&\"!ab\"&BQ169)","v":{"$error":"#DIV/0!"}},null,null,null,null,null,null,null,"AD","AE","AF","AG",187,"P",{"$f":"INDIRECT(\"Planner_PS\"&BZ135&\"!ab\"&CE169)","v":{"$error":"#DIV/0!"}}]
[null,null,null,null,null,null,null,null,null,null,null,null,null,null,null,null,null,null,null,null,null,null,null,null,null,null,null,null,null,null,null,127,130,106,{"$f":"title622","v":"Comparison Production"},{"$f":"IF(OR('Biogas Use Selection'!$P67=5,'Biogas Use Selection'!$P67=2),title310,IF(OR('Biogas Use Selection'!$P67=1,'Biogas Use Selection'!$P67=3),title304,IF('Biogas Use Selection'!$P67=4,title311)))","v":"kWh/year"},{"$f":"IF(OR('Biogas Use Selection'!$P67=5,'Biogas Use Selection'!$P67=2),INDIRECT(\"Planner_PS\"&AJ135&\"!\"&AK169&AG170)*'Data entry needs'!$L100,IF(OR('Biogas Use Selection'!$P67=1,'Biogas Use Selection'!$P67=3),INDIRECT(\"COST_PS\"&AJ135&\"!\"&AK146&AH170),IF('Biogas Use Selection'!$P67=4,INDIRECT(\"Planner_PS\"&AJ135&\"!\"&AK169&AF170)*'Data entry needs'!$L100)))","v":{"$error":"#DIV/0!"}},{"$f":"IF(OR('Biogas Use Selection'!$P67=5,'Biogas Use Selection'!$P67=2),INDIRECT(\"Planner_PS\"&AJ135&\"!\"&AL169&AG170)*'Data entry needs'!$L100,IF(OR('Biogas Use Selection'!$P67=1,'Biogas Use Selection'!$P67=3),INDIRECT(\"COST_PS\"&AJ135&\"!\"&AL146&AH170),IF('Biogas Use Selection'!$P67=4,INDIRECT(\"Planner_PS\"&AJ135&\"!\"&AL169&AF170)*'Data entry needs'!$L100)))","v":{"$error":"#DIV/0!"}},{"$f":"IF(OR('Biogas Use Selection'!$P67=5,'Biogas Use Selection'!$P67=2),INDIRECT(\"Planner_PS\"&AJ135&\"!\"&AM169&AG170)*'Data entry needs'!$L100,IF(OR('Biogas Use Selection'!$P67=1,'Biogas Use Selection'!$P67=3),INDIRECT(\"COST_PS\"&AJ135&\"!\"&AM146&AH170),IF('Biogas Use Selection'!$P67=4,INDIRECT(\"Planner_PS\"&AJ135&\"!\"&AM169&AF170)*'Data entry needs'!$L100)))","v":{"$error":"#DIV/0!"}},{"$f":"IF(OR('Biogas Use Selection'!$P67=5,'Biogas Use Selection'!$P67=2),INDIRECT(\"Planner_PS\"&AJ135&\"!\"&AN169&AG170)*'Data entry needs'!$L100,IF(OR('Biogas Use Selection'!$P67=1,'Biogas Use Selection'!$P67=3),INDIRECT(\"COST_PS\"&AJ135&\"!\"&AN146&AH170),IF('Biogas Use Selection'!$P67=4,INDIRECT(\"Planner_PS\"&AJ135&\"!\"&AN169&AF170)*'Data entry needs'!$L100)))","v":{"$error":"#DIV/0!"}},188,"K",{"$f":"INDIRECT(\"Planner_PS\"&AJ135&\"!ab\"&AO170)","v":{"$error":"#DIV/0!"}},null,null,127,130,106,{"$f":"title622","v":"Comparison Production"},{"$f":"IF(OR('Biogas Use Selection'!$P67=5,'Biogas Use Selection'!$P67=2),title310,IF(OR('Biogas Use Selection'!$P67=1,'Biogas Use Selection'!$P67=3),title304,IF('Biogas Use Selection'!$P67=4,title311)))","v":"kWh/year"},{"$f":"IF(OR('Biogas Use Selection'!$P67=5,'Biogas Use Selection'!$P67=2),INDIRECT(\"Planner_PS\"&AX135&\"!\"&AY169&AU170)*'Data entry needs'!$L100,IF(OR('Biogas Use Selection'!$P67=1,'Biogas Use Selection'!$P67=3),INDIRECT(\"COST_PS\"&AX135&\"!\"&AY146&AV170),IF('Biogas Use Selection'!$P67=4,INDIRECT(\"Planner_PS\"&AX135&\"!\"&AY169&AT170)*'Data entry needs'!$L100)))","v":{"$error":"#DIV/0!"}},{"$f":"IF(OR('Biogas Use Selection'!$P67=5,'Biogas Use Selection'!$P67=2),INDIRECT(\"Planner_PS\"&AX135&\"!\"&AZ169&AU170)*'Data entry needs'!$L100,IF(OR('Biogas Use Selection'!$P67=1,'Biogas Use Selection'!$P67=3),INDIRECT(\"COST_PS\"&AX135&\"!\"&AZ146&AV170),IF('Biogas Use Selection'!$P67=4,INDIRECT(\"Planner_PS\"&AX135&\"!\"&AZ169&AT170)*'Data entry needs'!$L100)))","v":{"$error":"#DIV/0!"}},{"$f":"IF(OR('Biogas Use Selection'!$P67=5,'Biogas Use Selection'!$P67=2),INDIRECT(\"Planner_PS\"&AX135&\"!\"&BA169&AU170)*'Data entry needs'!$L100,IF(OR('Biogas Use Selection'!$P67=1,'Biogas Use Selection'!$P67=3),INDIRECT(\"COST_PS\"&AX135&\"!\"&BA146&AV170),IF('Biogas Use Selection'!$P67=4,INDIRECT(\"Planner_PS\"&AX135&\"!\"&BA169&AT170)*'Data entry needs'!$L100)))","v":{"$error":"#DIV/0!"}},{"$f":"IF(OR('Biogas Use Selection'!$P67=5,'Biogas Use Selection'!$P67=2),INDIRECT(\"Planner_PS\"&AX135&\"!\"&BB169&AU170)*'Data entry needs'!$L100,IF(OR('Biogas Use Selection'!$P67=1,'Biogas Use Selection'!$P67=3),INDIRECT(\"COST_PS\"&AX135&\"!\"&BB146&AV170),IF('Biogas Use Selection'!$P67=4,INDIRECT(\"Planner_PS\"&AX135&\"!\"&BB169&AT170)*'Data entry needs'!$L100)))","v":{"$error":"#DIV/0!"}},188,"K",{"$f":"INDIRECT(\"Planner_PS\"&AX135&\"!ab\"&BC170)","v":{"$error":"#DIV/0!"}},null,null,127,130,106,{"$f":"title622","v":"Comparison Production"},{"$f":"IF(OR('Biogas Use Selection'!$P67=5,'Biogas Use Selection'!$P67=2),title310,IF(OR('Biogas Use Selection'!$P67=1,'Biogas Use Selection'!$P67=3),title304,IF('Biogas Use Selection'!$P67=4,title311)))","v":"kWh/year"},{"$f":"IF(OR('Biogas Use Selection'!$P67=5,'Biogas Use Selection'!$P67=2),INDIRECT(\"Planner_PS\"&BL135&\"!\"&BM169&BI170)*'Data entry needs'!$L100,IF(OR('Biogas Use Selection'!$P67=1,'Biogas Use Selection'!$P67=3),INDIRECT(\"COST_PS\"&BL135&\"!\"&BM146&BJ170),IF('Biogas Use Selection'!$P67=4,INDIRECT(\"Planner_PS\"&BL135&\"!\"&BM169&BH170)*'Data entry needs'!$L100)))","v":{"$error":"#DIV/0!"}},{"$f":"IF(OR('Biogas Use Selection'!$P67=5,'Biogas Use Selection'!$P67=2),INDIRECT(\"Planner_PS\"&BL135&\"!\"&BN169&BI170)*'Data entry needs'!$L100,IF(OR('Biogas Use Selection'!$P67=1,'Biogas Use Selection'!$P67=3),INDIRECT(\"COST_PS\"&BL135&\"!\"&BN146&BJ170),IF('Biogas Use Selection'!$P67=4,INDIRECT(\"Planner_PS\"&BL135&\"!\"&BN169&BH170)*'Data entry needs'!$L100)))","v":{"$error":"#DIV/0!"}},{"$f":"IF(OR('Biogas Use Selection'!$P67=5,'Biogas Use Selection'!$P67=2),INDIRECT(\"Planner_PS\"&BL135&\"!\"&BO169&BI170)*'Data entry needs'!$L100,IF(OR('Biogas Use Selection'!$P67=1,'Biogas Use Selection'!$P67=3),INDIRECT(\"COST_PS\"&BL135&\"!\"&BO146&BJ170),IF('Biogas Use Selection'!$P67=4,INDIRECT(\"Planner_PS\"&BL135&\"!\"&BO169&BH170)*'Data entry needs'!$L100)))","v":{"$error":"#DIV/0!"}},{"$f":"IF(OR('Biogas Use Selection'!$P67=5,'Biogas Use Selection'!$P67=2),INDIRECT(\"Planner_PS\"&BL135&\"!\"&BP169&BI170)*'Data entry needs'!$L100,IF(OR('Biogas Use Selection'!$P67=1,'Biogas Use Selection'!$P67=3),INDIRECT(\"COST_PS\"&BL135&\"!\"&BP146&BJ170),IF('Biogas Use Selection'!$P67=4,INDIRECT(\"Planner_PS\"&BL135&\"!\"&BP169&BH170)*'Data entry needs'!$L100)))","v":{"$error":"#DIV/0!"}},188,"K",{"$f":"INDIRECT(\"Planner_PS\"&BL135&\"!ab\"&BQ170)","v":{"$error":"#DIV/0!"}},null,null,127,130,106,{"$f":"title622","v":"Comparison Production"},{"$f":"IF(OR('Biogas Use Selection'!$P67=5,'Biogas Use Selection'!$P67=2),title310,IF(OR('Biogas Use Selection'!$P67=1,'Biogas Use Selection'!$P67=3),title304,IF('Biogas Use Selection'!$P67=4,title311)))","v":"kWh/year"},{"$f":"IF(OR('Biogas Use Selection'!$P67=5,'Biogas Use Selection'!$P67=2),INDIRECT(\"Planner_PS\"&BZ135&\"!\"&CA169&BW170)*'Data entry needs'!$L100,IF(OR('Biogas Use Selection'!$P67=1,'Biogas Use Selection'!$P67=3),INDIRECT(\"COST_PS\"&BZ135&\"!\"&CA146&BX170),IF('Biogas Use Selection'!$P67=4,INDIRECT(\"Planner_PS\"&BZ135&\"!\"&CA169&BV170)*'Data entry needs'!$L100)))","v":{"$error":"#DIV/0!"}},{"$f":"IF(OR('Biogas Use Selection'!$P67=5,'Biogas Use Selection'!$P67=2),INDIRECT(\"Planner_PS\"&BZ135&\"!\"&CB169&BW170)*'Data entry needs'!$L100,IF(OR('Biogas Use Selection'!$P67=1,'Biogas Use Selection'!$P67=3),INDIRECT(\"COST_PS\"&BZ135&\"!\"&CB146&BX170),IF('Biogas Use Selection'!$P67=4,INDIRECT(\"Planner_PS\"&BZ135&\"!\"&CB169&BV170)*'Data entry needs'!$L100)))","v":{"$error":"#DIV/0!"}},{"$f":"IF(OR('Biogas Use Selection'!$P67=5,'Biogas Use Selection'!$P67=2),INDIRECT(\"Planner_PS\"&BZ135&\"!\"&CC169&BW170)*'Data entry needs'!$L100,IF(OR('Biogas Use Selection'!$P67=1,'Biogas Use Selection'!$P67=3),INDIRECT(\"COST_PS\"&BZ135&\"!\"&CC146&BX170),IF('Biogas Use Selection'!$P67=4,INDIRECT(\"Planner_PS\"&BZ135&\"!\"&CC169&BV170)*'Data entry needs'!$L100)))","v":{"$error":"#DIV/0!"}},{"$f":"IF(OR('Biogas Use Selection'!$P67=5,'Biogas Use Selection'!$P67=2),INDIRECT(\"Planner_PS\"&BZ135&\"!\"&CD169&BW170)*'Data entry needs'!$L100,IF(OR('Biogas Use Selection'!$P67=1,'Biogas Use Selection'!$P67=3),INDIRECT(\"COST_PS\"&BZ135&\"!\"&CD146&BX170),IF('Biogas Use Selection'!$P67=4,INDIRECT(\"Planner_PS\"&BZ135&\"!\"&CD169&BV170)*'Data entry needs'!$L100)))","v":{"$error":"#DIV/0!"}},188,"K",{"$f":"INDIRECT(\"Planner_PS\"&BZ135&\"!ab\"&CE170)","v":{"$error":"#DIV/0!"}}]
[null,null,null,null,null,null,null,null,null,null,null,null,null,null,null,null,null,null,null,null,null,null,null,null,null,null,null,null,null,null,null,null,null,33,null,null,{"$f":"INDIRECT(\"COST_PS\"&AJ135&\"!\"&AK145&AH171)","v":100},{"$f":"INDIRECT(\"COST_PS\"&AJ135&\"!\"&AL145&AH171)","v":105},{"$f":"INDIRECT(\"COST_PS\"&AJ135&\"!\"&AM145&AH171)","v":115},{"$f":"INDIRECT(\"COST_PS\"&AJ135&\"!\"&AN145&AH171)","v":120},189,{"$f":"title658","v":"Ash"},{"$f":"INDIRECT(\"Planner_PS\"&AJ135&\"!ab\"&AO171)","v":{"$error":"#DIV/0!"}},null,null,null,null,33,null,null,{"$f":"INDIRECT(\"COST_PS\"&AX135&\"!\"&AY145&AV171)","v":100},{"$f":"INDIRECT(\"COST_PS\"&AX135&\"!\"&AZ145&AV171)","v":105},{"$f":"INDIRECT(\"COST_PS\"&AX135&\"!\"&BA145&AV171)","v":115},{"$f":"INDIRECT(\"COST_PS\"&AX135&\"!\"&BB145&AV171)","v":120},189,{"$f":"title658","v":"Ash"},{"$f":"INDIRECT(\"Planner_PS\"&AX135&\"!ab\"&BC171)","v":{"$error":"#DIV/0!"}},null,null,null,null,33,null,null,{"$f":"INDIRECT(\"COST_PS\"&BL135&\"!\"&BM145&BJ171)","v":100},{"$f":"INDIRECT(\"COST_PS\"&BL135&\"!\"&BN145&BJ171)","v":105},{"$f":"INDIRECT(\"COST_PS\"&BL135&\"!\"&BO145&BJ171)","v":115},{"$f":"INDIRECT(\"COST_PS\"&BL135&\"!\"&BP145&BJ171)","v":120},189,{"$f":"title658","v":"Ash"},{"$f":"INDIRECT(\"Planner_PS\"&BL135&\"!ab\"&BQ171)","v":{"$error":"#DIV/0!"}},null,null,null,null,33,null,null,{"$f":"INDIRECT(\"COST_PS\"&BZ135&\"!\"&CA145&BX171)","v":100},{"$f":"INDIRECT(\"COST_PS\"&BZ135&\"!\"&CB145&BX171)","v":105},{"$f":"INDIRECT(\"COST_PS\"&BZ135&\"!\"&CC145&BX171)","v":115},{"$f":"INDIRECT(\"COST_PS\"&BZ135&\"!\"&CD145&BX171)","v":120},189,{"$f":"title658","v":"Ash"},{"$f":"INDIRECT(\"Planner_PS\"&BZ135&\"!ab\"&CE171)","v":{"$error":"#DIV/0!"}}]
[null,null,null,null,null,null,null,null,null,null,null,null,null,null,null,null,null,null,null,null,null,null,null,null,null,null,null,null,null,null,null,null,null,null,null,null,{"$f":"title248&\" 1\"","v":"Size 1"},{"$f":"title248&\" 2\"","v":"Size 2"},{"$f":"title248&\" 3\"","v":"Size 3"},{"$f":"title248&\" 4\"","v":"Size 4"},190,{"$f":"title602","v":"Moisture"},{"$f":"INDIRECT(\"Planner_PS\"&AJ135&\"!ab\"&AO172)","v":{"$error":"#N/A"}},null,null,null,null,null,null,null,{"$f":"title248&\" 1\"","v":"Size 1"},{"$f":"title248&\" 2\"","v":"Size 2"},{"$f":"title248&\" 3\"","v":"Size 3"},{"$f":"title248&\" 4\"","v":"Size 4"},190,{"$f":"title602","v":"Moisture"},{"$f":"INDIRECT(\"Planner_PS\"&AX135&\"!ab\"&BC172)","v":{"$error":"#N/A"}},null,null,null,null,null,null,null,{"$f":"title248&\" 1\"","v":"Size 1"},{"$f":"title248&\" 2\"","v":"Size 2"},{"$f":"title248&\" 3\"","v":"Size 3"},{"$f":"title248&\" 4\"","v":"Size 4"},190,{"$f":"title602","v":"Moisture"},{"$f":"INDIRECT(\"Planner_PS\"&BL135&\"!ab\"&BQ172)","v":{"$error":"#N/A"}},null,null,null,null,null,null,null,{"$f":"title248&\" 1\"","v":"Size 1"},{"$f":"title248&\" 2\"","v":"Size 2"},{"$f":"title248&\" 3\"","v":"Size 3"},{"$f":"title248&\" 4\"","v":"Size 4"},190,{"$f":"title602","v":"Moisture"},{"$f":"INDIRECT(\"Planner_PS\"&BZ135&\"!ab\"&CE172)","v":{"$error":"#N/A"}}]
[null,null,null,null,null,null,null,null,null,null,null,null,null,null,null,null,null,null,null,null,null,null,null,null,null,null,null,null,null,null,null,null,null,null,{"$f":"title623","v":"Total production cost-limsup"},{"$f":"IF(OR('Biogas Use Selection'!$P67=5,'Biogas Use Selection'!$P67=2),Planner_PS1!$AJ$127,IF(OR('Biogas Use Selection'!$P67=1,'Biogas Use Selection'!$P67=3),Planner_PS1!AJ128,IF('Biogas Use Selection'!$P67=4,Planner_PS1!AJ129)))","v":"USD/kWh"},{"$f":"AK168/AK170*(1+M1)","v":{"$error":"#DIV/0!"}},{"$f":"AL168/AL170*(1+M1)","v":{"$error":"#DIV/0!"}},{"$f":"AM168/AM170*(1+M1)","v":{"$error":"#DIV/0!"}},{"$f":"AN168/AN170*(1+M1)","v":{"$error":"#DIV/0!"}},null,null,null,null,null,null,null,null,{"$f":"title623","v":"Total production cost-limsup"},{"$f":"IF(OR('Biogas Use Selection'!$P67=5,'Biogas Use Selection'!$P67=2),Planner_PS1!AX127,IF(OR('Biogas Use Selection'!$P67=1,'Biogas Use Selection'!$P67=3),Planner_PS1!AX128,IF('Biogas Use Selection'!$P67=4,Planner_PS1!AX129)))","v":0},{"$f":"AY168/AY170*(1+AD1)","v":{"$error":"#DIV/0!"}},{"$f":"AZ168/AZ170*(1+AD1)","v":{"$error":"#DIV/0!"}},{"$f":"BA168/BA170*(1+AD1)","v":{"$error":"#DIV/0!"}},{"$f":"BB168/BB170*(1+AD1)","v":{"$error":"#DIV/0!"}},null,null,null,null,null,null,null,null,{"$f":"title623","v":"Total production cost-limsup"},{"$f":"IF(OR('Biogas Use Selection'!$P67=5,'Biogas Use Selection'!$P67=2),Planner_PS1!BL127,IF(OR('Biogas Use Selection'!$P67=1,'Biogas Use Selection'!$P67=3),Planner_PS1!BL128,IF('Biogas Use Selection'!$P67=4,Planner_PS1!BL129)))","v":0},{"$f":"BM168/BM170*(1+AR1)","v":{"$error":"#DIV/0!"}},{"$f":"BN168/BN170*(1+AR1)","v":{"$error":"#DIV/0!"}},{"$f":"BO168/BO170*(1+AR1)","v":{"$error":"#DIV/0!"}},{"$f":"BP168/BP170*(1+AR1)","v":{"$error":"#DIV/0!"}},null,null,null,null,null,null,null,null,{"$f":"title623","v":"Total production cost-limsup"},{"$f":"IF(OR('Biogas Use Selection'!$P67=5,'Biogas Use Selection'!$P67=2),Planner_PS1!BZ127,IF(OR('Biogas Use Selection'!$P67=1,'Biogas Use Selection'!$P67=3),Planner_PS1!BZ128,IF('Biogas Use Selection'!$P67=4,Planner_PS1!BZ129)))","v":0},{"$f":"CA168/CA170*(1+BF1)","v":{"$error":"#DIV/0!"}},{"$f":"CB168/CB170*(1+BF1)","v":{"$error":"#DIV/0!"}},{"$f":"CC168/CC170*(1+BF1)","v":{"$error":"#DIV/0!"}},{"$f":"CD168/CD170*(1+BF1)","v":{"$error":"#DIV/0!"}}]
[null,null,null,null,null,null,null,null,null,null,null,null,null,null,null,null,null,null,null,null,null,null,null,null,null,null,null,null,null,null,null,null,null,null,{"$f":"title624","v":"Total production cost-liminf"},{"$f":"IF(OR('Biogas Use Selection'!$P67=5,'Biogas Use Selection'!$P67=2),Planner_PS1!$AJ$127,IF(OR('Biogas Use Selection'!$P67=1,'Biogas Use Selection'!$P67=3),Planner_PS1!AJ128,IF('Biogas Use Selection'!$P67=4,Planner_PS1!AJ129)))","v":"USD/kWh"},{"$f":"IF($M$1>0,AK168/AK170*(1-$M$1),0)","v":{"$error":"#DIV/0!"}},{"$f":"IF($M$1>0,AL168/AL170*(1-$M$1),0)","v":{"$error":"#DIV/0!"}},{"$f":"IF($M$1>0,AM168/AM170*(1-$M$1),0)","v":{"$error":"#DIV/0!"}},{"$f":"IF($M$1>0,AN168/AN170*(1-$M$1),0)","v":{"$error":"#DIV/0!"}},null,null,null,null,null,null,null,null,{"$f":"title624","v":"Total production cost-liminf"},{"$f":"IF(OR('Biogas Use Selection'!$P67=5,'Biogas Use Selection'!$P67=2),Planner_PS1!AX127,IF(OR('Biogas Use Selection'!$P67=1,'Biogas Use Selection'!$P67=3),Planner_PS1!AX128,IF('Biogas Use Selection'!$P67=4,Planner_PS1!AX129)))","v":0},{"$f":"IF($M$1>0,AY168/AY170*(1-$M$1),0)","v":{"$error":"#DIV/0!"}},{"$f":"IF($M$1>0,AZ168/AZ170*(1-$M$1),0)","v":{"$error":"#DIV/0!"}},{"$f":"IF($M$1>0,BA168/BA170*(1-$M$1),0)","v":{"$error":"#DIV/0!"}},{"$f":"IF($M$1>0,BB168/BB170*(1-$M$1),0)","v":{"$error":"#DIV/0!"}},null,null,null,null,null,null,null,null,{"$f":"title624","v":"Total production cost-liminf"},{"$f":"IF(OR('Biogas Use Selection'!$P67=5,'Biogas Use Selection'!$P67=2),Planner_PS1!BL127,IF(OR('Biogas Use Selection'!$P67=1,'Biogas Use Selection'!$P67=3),Planner_PS1!BL128,IF('Biogas Use Selection'!$P67=4,Planner_PS1!BL129)))","v":0},{"$f":"IF($M$1>0,BM168/BM170*(1-$M$1),0)","v":{"$error":"#DIV/0!"}},{"$f":"IF($M$1>0,BN168/BN170*(1-$M$1),0)","v":{"$error":"#DIV/0!"}},{"$f":"IF($M$1>0,BO168/BO170*(1-$M$1),0)","v":{"$error":"#DIV/0!"}},{"$f":"IF($M$1>0,BP168/BP170*(1-$M$1),0)","v":{"$error":"#DIV/0!"}},null,null,null,null,null,null,null,null,{"$f":"title624","v":"Total production cost-liminf"},{"$f":"IF(OR('Biogas Use Selection'!$P67=5,'Biogas Use Selection'!$P67=2),Planner_PS1!BZ127,IF(OR('Biogas Use Selection'!$P67=1,'Biogas Use Selection'!$P67=3),Planner_PS1!BZ128,IF('Biogas Use Selection'!$P67=4,Planner_PS1!BZ129)))","v":0},{"$f":"IF($M$1>0,CA168/CA170*(1-$M$1),0)","v":{"$error":"#DIV/0!"}},{"$f":"IF($M$1>0,CB168/CB170*(1-$M$1),0)","v":{"$error":"#DIV/0!"}},{"$f":"IF($M$1>0,CC168/CC170*(1-$M$1),0)","v":{"$error":"#DIV/0!"}},{"$f":"IF($M$1>0,CD168/CD170*(1-$M$1),0)","v":{"$error":"#DIV/0!"}}]
[null,null,null,null,null,null,null,null,null,null,null,null,null,null,null,null,null,null,null,null,null,null,null,null,null,null,null,null,null,null,null,null,null,null,{"$f":"VLOOKUP(1,AO162:AQ164,2,FALSE)","v":"Electricity Selling Price"},{"$f":"\"(\"&VLOOKUP(1,AO162:AR164,4,FALSE)&\")\"","v":"(USD/kWh)"},{"$f":"VLOOKUP(1,AO162:AR164,3,FALSE)","v":0},{"$f":"VLOOKUP(1,AO162:AR164,3,FALSE)","v":0},{"$f":"VLOOKUP(1,AO162:AR164,3,FALSE)","v":0},{"$f":"VLOOKUP(1,AO162:AR164,3,FALSE)","v":0},{"$f":"VLOOKUP(1,AO162:AR164,3,FALSE)","v":0},null,null,null,null,null,null,null,{"$f":"VLOOKUP(1,BC162:BE164,2,FALSE)","v":"Electricity Selling Price"},{"$f":"\"(\"&VLOOKUP(1,BC162:BF164,4,FALSE)&\")\"","v":"(USD/kWh)"},{"$f":"VLOOKUP(1,BC162:BF164,3,FALSE)","v":0},{"$f":"VLOOKUP(1,BC162:BF164,3,FALSE)","v":0},{"$f":"VLOOKUP(1,BC162:BF164,3,FALSE)","v":0},{"$f":"VLOOKUP(1,BC162:BF164,3,FALSE)","v":0},{"$f":"VLOOKUP(1,BC162:BF164,3,FALSE)","v":0},null,null,null,null,null,null,null,{"$f":"VLOOKUP(1,BQ162:BS164,2,FALSE)","v":"Electricity Selling Price"},{"$f":"\"(\"&VLOOKUP(1,BQ162:BT164,4,FALSE)&\")\"","v":"(USD/kWh)"},{"$f":"VLOOKUP(1,BQ162:BT164,3,FALSE)","v":0},{"$f":"VLOOKUP(1,BQ162:BT164,3,FALSE)","v":0},{"$f":"VLOOKUP(1,BQ162:BT164,3,FALSE)","v":0},{"$f":"VLOOKUP(1,BQ162:BT164,3,FALSE)","v":0},{"$f":"VLOOKUP(1,BQ162:BT164,3,FALSE)","v":0},null,null,null,null,null,null,null,{"$f":"VLOOKUP(1,CE162:CG164,2,FALSE)","v":"Electricity Selling Price"},{"$f":"\"(\"&VLOOKUP(1,CE162:CH164,4,FALSE)&\")\"","v":"(USD/kWh)"},{"$f":"VLOOKUP(1,CE162:CH164,3,FALSE)","v":0},{"$f":"VLOOKUP(1,CE162:CH164,3,FALSE)","v":0},{"$f":"VLOOKUP(1,CE162:CH164,3,FALSE)","v":0},{"$f":"VLOOKUP(1,CE162:CH164,3,FALSE)","v":0},{"$f":"VLOOKUP(1,CE162:CH164,3,FALSE)","v":0}]
[]
[null,null,null,null,null,null,null,null,null,null,null,null,null,null,null,null,null,null,null,null,null,null,null,null,null,null,null,null,null,null,null,null,null,80,{"$f":"title625","v":"Total Capital Investment"},"USD",{"$f":"INDIRECT(\"COST_PS\"&AJ135&\"!\"&AK145&AH177)","v":{"$error":"#DIV/0!"}},{"$f":"INDIRECT(\"COST_PS\"&AJ135&\"!\"&AL145&AH177)","v":{"$error":"#DIV/0!"}},{"$f":"INDIRECT(\"COST_PS\"&AJ135&\"!\"&AM145&AH177)","v":{"$error":"#DIV/0!"}},{"$f":"INDIRECT(\"COST_PS\"&AJ135&\"!\"&AN145&AH177)","v":{"$error":"#DIV/0!"}},null,null,null,null,null,null,null,80,{"$f":"title625","v":"Total Capital Investment"},"USD",{"$f":"INDIRECT(\"COST_PS\"&AX135&\"!\"&AY145&AV177)","v":{"$error":"#DIV/0!"}},{"$f":"INDIRECT(\"COST_PS\"&AX135&\"!\"&AZ145&AV177)","v":{"$error":"#DIV/0!"}},{"$f":"INDIRECT(\"COST_PS\"&AX135&\"!\"&BA145&AV177)","v":{"$error":"#DIV/0!"}},{"$f":"INDIRECT(\"COST_PS\"&AX135&\"!\"&BB145&AV177)","v":{"$error":"#DIV/0!"}},null,null,null,null,null,null,null,80,{"$f":"title625","v":"Total Capital Investment"},"USD",{"$f":"INDIRECT(\"COST_PS\"&BL135&\"!\"&BM145&BJ177)","v":{"$error":"#DIV/0!"}},{"$f":"INDIRECT(\"COST_PS\"&BL135&\"!\"&BN145&BJ177)","v":{"$error":"#DIV/0!"}},{"$f":"INDIRECT(\"COST_PS\"&BL135&\"!\"&BO145&BJ177)","v":{"$error":"#DIV/0!"}},{"$f":"INDIRECT(\"COST_PS\"&BL135&\"!\"&BP145&BJ177)","v":{"$error":"#DIV/0!"}},null,null,null,null,null,null,null,80,{"$f":"title625","v":"Total Capital Investment"},"USD",{"$f":"INDIRECT(\"COST_PS\"&BZ135&\"!\"&CA145&BX177)","v":{"$error":"#DIV/0!"}},{"$f":"INDIRECT(\"COST_PS\"&BZ135&\"!\"&CB145&BX177)","v":{"$error":"#DIV/0!"}},{"$f":"INDIRECT(\"COST_PS\"&BZ135&\"!\"&CC145&BX177)","v":{"$error":"#DIV/0!"}},{"$f":"INDIRECT(\"COST_PS\"&BZ135&\"!\"&CD145&BX177)","v":{"$error":"#DIV/0!"}}]
[]
[null,null,null,null,null,null,null,null,null,null,null,null,null,null,null,null,null,null,null,null,null,null,null,null,null,null,null,null,null,null,null,null,null,178,{"$f":"title626","v":"Digestate"},{"$f":"title309","v":"kg/year"},{"$f":"INDIRECT(\"Planner_PS\"&AJ135&\"!ab\"&AH179)","v":{"$error":"#DIV/0!"}},{"$f":"INDIRECT(\"Planner_PS\"&AJ135&\"!ac\"&AH179)","v":{"$error":"#DIV/0!"}},{"$f":"INDIRECT(\"Planner_PS\"&AJ135&\"!ad\"&AH179)","v":{"$error":"#DIV/0!"}},{"$f":"INDIRECT(\"Planner_PS\"&AJ135&\"!ae\"&AH179)","v":{"$error":"#DIV/0!"}},null,null,null,null,null,null,null,178,{"$f":"title626","v":"Digestate"},{"$f":"title309","v":"kg/year"},{"$f":"INDIRECT(\"Planner_PS\"&AX135&\"!ab\"&AV179)","v":{"$error":"#DIV/0!"}},{"$f":"INDIRECT(\"Planner_PS\"&AX135&\"!ac\"&AV179)","v":{"$error":"#DIV/0!"}},{"$f":"INDIRECT(\"Planner_PS\"&AX135&\"!ad\"&AV179)","v":{"$error":"#DIV/0!"}},{"$f":"INDIRECT(\"Planner_PS\"&AX135&\"!ae\"&AV179)","v":{"$error":"#DIV/0!"}},null,null,null,null,null,null,null,178,{"$f":"title626","v":"Digestate"},{"$f":"title309","v":"kg/year"},{"$f":"INDIRECT(\"Planner_PS\"&BL135&\"!ab\"&BJ179)","v":{"$error":"#DIV/0!"}},{"$f":"INDIRECT(\"Planner_PS\"&BL135&\"!ac\"&BJ179)","v":{"$error":"#DIV/0!"}},{"$f":"INDIRECT(\"Planner_PS\"&BL135&\"!ad\"&BJ179)","v":{"$error":"#DIV/0!"}},{"$f":"INDIRECT(\"Planner_PS\"&BL135&\"!ae\"&BJ179)","v":{"$error":"#DIV/0!"}},null,null,null,null,null,null,null,178,{"$f":"title626","v":"Digestate"},{"$f":"title309","v":"kg/year"},{"$f":"INDIRECT(\"Planner_PS\"&BZ135&\"!ab\"&BX179)","v":{"$error":"#DIV/0!"}},{"$f":"INDIRECT(\"Planner_PS\"&BZ135&\"!ac\"&BX179)","v":{"$error":"#DIV/0!"}},{"$f":"INDIRECT(\"Planner_PS\"&BZ135&\"!ad\"&BX179)","v":{"$error":"#DIV/0!"}},{"$f":"INDIRECT(\"Planner_PS\"&BZ135&\"!ae\"&BX179)","v":{"$error":"#DIV/0!"}}]
[null,null,null,null,null,null,null,null,null,null,null,null,null,null,null,null,null,null,null,null,null,null,null,null,null,null,null,null,null,null,null,null,null,null,{"$f":"title627","v":"Digestate Income"},{"$f":"title319","v":"USD/year"},{"$f":"AR166*AK179/1000","v":{"$error":"#DIV/0!"}},{"$f":"AR166*AL179/1000","v":{"$error":"#DIV/0!"}},{"$f":"AR166*AM179/1000","v":{"$error":"#DIV/0!"}},{"$f":"AR166*AN179/1000","v":{"$error":"#DIV/0!"}},null,null,null,null,null,null,null,null,{"$f":"title627","v":"Digestate Income"},{"$f":"title319","v":"USD/year"},{"$f":"BF166*AY179/1000","v":{"$error":"#DIV/0!"}},{"$f":"BF166*AZ179/1000","v":{"$error":"#DIV/0!"}},{"$f":"BF166*BA179/1000","v":{"$error":"#DIV/0!"}},{"$f":"BF166*BB179/1000","v":{"$error":"#DIV/0!"}},null,null,null,null,null,null,null,null,{"$f":"title627","v":"Digestate Income"},{"$f":"title319","v":"USD/year"},{"$f":"BT166*BM179/1000","v":{"$error":"#DIV/0!"}},{"$f":"BT166*BN179/1000","v":{"$error":"#DIV/0!"}},{"$f":"BT166*BO179/1000","v":{"$error":"#DIV/0!"}},{"$f":"BT166*BP179/1000","v":{"$error":"#DIV/0!"}},null,null,null,null,null,null,null,null,{"$f":"title627","v":"Digestate Income"},{"$f":"title319","v":"USD/year"},{"$f":"CH166*CA179/1000","v":{"$error":"#DIV/0!"}},{"$f":"CH166*CB179/1000","v":{"$error":"#DIV/0!"}},{"$f":"CH166*CC179/1000","v":{"$error":"#DIV/0!"}},{"$f":"CH166*CD179/1000","v":{"$error":"#DIV/0!"}}]
[null,null,null,null,null,null,null,null,null,null,null,null,null,null,null,null,null,null,null,null,null,null,null,null,null,null,null,null,null,null,null,null,null,35,{"$f":"title628","v":"Operating hour/year"},{"$f":"title505","v":"h/year"},{"$f":"INDIRECT(\"COST_PS\"&AJ135&\"!\"&AK146&AH181)","v":0},null,null,null,null,null,null,null,null,null,null,35,{"$f":"title628","v":"Operating hour/year"},{"$f":"title505","v":"h/year"},{"$f":"INDIRECT(\"COST_PS\"&AX135&\"!\"&AY146&AV181)","v":0},null,null,null,null,null,null,null,null,null,null,35,{"$f":"title628","v":"Operating hour/year"},{"$f":"title505","v":"h/year"},{"$f":"INDIRECT(\"COST_PS\"&BL135&\"!\"&BM146&BJ181)","v":0},null,null,null,null,null,null,null,null,null,null,35,{"$f":"title628","v":"Operating hour/year"},{"$f":"title505","v":"h/year"},{"$f":"INDIRECT(\"COST_PS\"&BZ135&\"!\"&CA146&BX181)","v":0}]
[null,null,null,null,null,null,null,null,null,null,null,null,null,null,null,null,null,null,null,null,null,null,null,null,null,null,null,null,null,null,null,null,null,null,{"$f":"title629","v":"Jobs"},{"$f":"title632","v":"Person-h/t"},"%",{"$f":"title633","v":"Collection Months"},{"$f":"title248&\" 1\"","v":"Size 1"},{"$f":"title248&\" 2\"","v":"Size 2"},{"$f":"title248&\" 3\"","v":"Size 3"},{"$f":"title248&\" 4\"","v":"Size 4"},null,null,null,null,null,null,{"$f":"title629","v":"Jobs"},{"$f":"title632","v":"Person-h/t"},"%",{"$f":"title633","v":"Collection Months"},{"$f":"title248&\" 1\"","v":"Size 1"},{"$f":"title248&\" 2\"","v":"Size 2"},{"$f":"title248&\" 3\"","v":"Size 3"},{"$f":"title248&\" 4\"","v":"Size 4"},null,null,null,null,null,null,{"$f":"title629","v":"Jobs"},{"$f":"title632","v":"Person-h/t"},"%",{"$f":"title633","v":"Collection Months"},{"$f":"title248&\" 1\"","v":"Size 1"},{"$f":"title248&\" 2\"","v":"Size 2"},{"$f":"title248&\" 3\"","v":"Size 3"},{"$f":"title248&\" 4\"","v":"Size 4"},null,null,null,null,null,null,{"$f":"title629","v":"Jobs"},{"$f":"title632","v":"Person-h/t"},"%",{"$f":"title633","v":"Collection Months"},{"$f":"title248&\" 1\"","v":"Size 1"},{"$f":"title248&\" 2\"","v":"Size 2"},{"$f":"title248&\" 3\"","v":"Size 3"},{"$f":"title248&\" 4\"","v":"Size 4"}]
[null,null,null,null,null,null,null,null,null,null,null,null,null,null,null,null,null,null,null,null,null,null,null,null,null,null,null,null,null,null,88,1,{"$f":"AL128","v":0},{"$f":"AG183*AF183","v":0},{"$f":"title630&\" 1\"","v":"Collection 1"},{"$f":"IFERROR(INDIRECT(\"PRICE_FS\"&AH183&\"_PS\"&AJ135&\"!T172\"),0)","v":0},{"$f":"AQ194","v":""},{"$f":"IFERROR(INDIRECT(\"Planner_PS\"&AJ135&\"!ao\"&AE183),0)","v":0},{"$f":"IFERROR(ROUNDUP(AJ183*AK183*AK149/(AK181*(AL183/12)),0),0)","v":0},{"$f":"IFERROR(ROUNDUP(AJ183*AK183*AL149/(AK181*(AL183/12)),0),0)","v":0},{"$f":"IFERROR(ROUNDUP(AJ183*AK183*AM149/(AK181*(AL183/12)),0),0)","v":0},{"$f":"IFERROR(ROUNDUP(AJ183*AK183*AN149/(AK181*(AL183/12)),0),0)","v":0},null,null,88,1,{"$f":"AZ128","v":0},{"$f":"AU183*AT183","v":0},{"$f":"title630&\" 1\"","v":"Collection 1"},{"$f":"IFERROR(INDIRECT(\"PRICE_FS\"&AV183&\"_PS\"&AX135&\"!T172\"),0)","v":0},{"$f":"BE194","v":""},{"$f":"IFERROR(INDIRECT(\"Planner_PS\"&AX135&\"!ao\"&AS183),0)","v":0},{"$f":"IFERROR(ROUNDUP(AX183*AY183*AY149/(AY181*(AZ183/12)),0),0)","v":0},{"$f":"IFERROR(ROUNDUP(AX183*AY183*AZ149/(AY181*(AZ183/12)),0),0)","v":0},{"$f":"IFERROR(ROUNDUP(AX183*AY183*BA149/(AY181*(AZ183/12)),0),0)","v":0},{"$f":"IFERROR(ROUNDUP(AX183*AY183*BB149/(AY181*(AZ183/12)),0),0)","v":0},null,null,88,1,{"$f":"BN128","v":0},{"$f":"BI183*BH183","v":0},{"$f":"title630&\" 1\"","v":"Collection 1"},{"$f":"IFERROR(INDIRECT(\"PRICE_FS\"&BJ183&\"_PS\"&BL135&\"!T172\"),0)","v":0},{"$f":"BS194","v":""},{"$f":"IFERROR(INDIRECT(\"Planner_PS\"&BL135&\"!ao\"&BG183),0)","v":0},{"$f":"IFERROR(ROUNDUP(BL183*BM183*BM149/(BM181*(BN183/12)),0),0)","v":0},{"$f":"IFERROR(ROUNDUP(BL183*BM183*BN149/(BM181*(BN183/12)),0),0)","v":0},{"$f":"IFERROR(ROUNDUP(BL183*BM183*BO149/(BM181*(BN183/12)),0),0)","v":0},{"$f":"IFERROR(ROUNDUP(BL183*BM183*BP149/(BM181*(BN183/12)),0),0)","v":0},null,null,88,1,{"$f":"CB128","v":0},{"$f":"BW183*BV183","v":0},{"$f":"title630&\" 1\"","v":"Collection 1"},{"$f":"IFERROR(INDIRECT(\"PRICE_FS\"&BX183&\"_PS\"&BZ135&\"!T172\"),0)","v":0},{"$f":"CG194","v":""},{"$f":"IFERROR(INDIRECT(\"Planner_PS\"&BZ135&\"!ao\"&BU183),0)","v":0},{"$f":"IFERROR(ROUNDUP(BZ183*CA183*CA149/(CA181*(CB183/12)),0),0)","v":0},{"$f":"IFERROR(ROUNDUP(BZ183*CA183*CB149/(CA181*(CB183/12)),0),0)","v":0},{"$f":"IFERROR(ROUNDUP(BZ183*CA183*CC149/(CA181*(CB183/12)),0),0)","v":0},{"$f":"IFERROR(ROUNDUP(BZ183*CA183*CD149/(CA181*(CB183/12)),0),0)","v":0}]
[null,null,null,null,null,null,null,null,null,null,null,null,null,null,null,null,null,null,null,null,null,null,null,null,null,null,null,null,null,null,89,2,{"$f":"AM128","v":0},0,{"$f":"title630&\" 2\"","v":"Collection 2"},{"$f":"IFERROR(INDIRECT(\"PRICE_FS\"&AH184&\"_PS\"&AJ135&\"!T172\"),0)","v":0},"",{"$f":"IFERROR(INDIRECT(\"Planner_PS\"&AJ135&\"!ao\"&AE184),0)","v":0},{"$f":"IFERROR(ROUNDUP(AJ184*AK184*AK149/(AK181*(AL184/12)),0),0)","v":0},{"$f":"IFERROR(ROUNDUP(AJ184*AK184*AL149/(AK181*(AL184/12)),0),0)","v":0},{"$f":"IFERROR(ROUNDUP(AJ184*AK184*AM149/(AK181*(AL184/12)),0),0)","v":0},{"$f":"IFERROR(ROUNDUP(AJ184*AK184*AN149/(AK181*(AL184/12)),0),0)","v":0},null,null,89,2,{"$f":"BA128","v":0},0,{"$f":"title630&\" 2\"","v":"Collection 2"},{"$f":"IFERROR(INDIRECT(\"PRICE_FS\"&AV184&\"_PS\"&AX135&\"!T172\"),0)","v":0},"",{"$f":"IFERROR(INDIRECT(\"Planner_PS\"&AX135&\"!ao\"&AS184),0)","v":0},{"$f":"IFERROR(ROUNDUP(AX184*AY184*AY149/(AY181*(AZ184/12)),0),0)","v":0},{"$f":"IFERROR(ROUNDUP(AX184*AY184*AZ149/(AY181*(AZ184/12)),0),0)","v":0},{"$f":"IFERROR(ROUNDUP(AX184*AY184*BA149/(AY181*(AZ184/12)),0),0)","v":0},{"$f":"IFERROR(ROUNDUP(AX184*AY184*BB149/(AY181*(AZ184/12)),0),0)","v":0},null,null,89,2,{"$f":"BO128","v":0},0,{"$f":"title630&\" 2\"","v":"Collection 2"},{"$f":"IFERROR(INDIRECT(\"PRICE_FS\"&BJ184&\"_PS\"&BL135&\"!T172\"),0)","v":0},"",{"$f":"IFERROR(INDIRECT(\"Planner_PS\"&BL135&\"!ao\"&BG184),0)","v":0},{"$f":"IFERROR(ROUNDUP(BL184*BM184*BM149/(BM181*(BN184/12)),0),0)","v":0},{"$f":"IFERROR(ROUNDUP(BL184*BM184*BN149/(BM181*(BN184/12)),0),0)","v":0},{"$f":"IFERROR(ROUNDUP(BL184*BM184*BO149/(BM181*(BN184/12)),0),0)","v":0},{"$f":"IFERROR(ROUNDUP(BL184*BM184*BP149/(BM181*(BN184/12)),0),0)","v":0},null,null,89,2,{"$f":"CC128","v":0},0,{"$f":"title630&\" 2\"","v":"Collection 2"},{"$f":"IFERROR(INDIRECT(\"PRICE_FS\"&BX184&\"_PS\"&BZ135&\"!T172\"),0)","v":0},"",{"$f":"IFERROR(INDIRECT(\"Planner_PS\"&BZ135&\"!ao\"&BU184),0)","v":0},{"$f":"IFERROR(ROUNDUP(BZ184*CA184*CA149/(CA181*(CB184/12)),0),0)","v":0},{"$f":"IFERROR(ROUNDUP(BZ184*CA184*CB149/(CA181*(CB184/12)),0),0)","v":0},{"$f":"IFERROR(ROUNDUP(BZ184*CA184*CC149/(CA181*(CB184/12)),0),0)","v":0},{"$f":"IFERROR(ROUNDUP(BZ184*CA184*CD149/(CA181*(CB184/12)),0),0)","v":0}]
[null,null,null,null,null,null,null,null,null,null,null,null,null,null,null,null,null,null,null,null,null,null,null,null,null,null,null,null,null,null,90,3,{"$f":"AN128","v":0},0,{"$f":"title630&\" 3\"","v":"Collection 3"},{"$f":"IFERROR(INDIRECT(\"PRICE_FS\"&AH185&\"_PS\"&AJ135&\"!T172\"),0)","v":0},"",{"$f":"IFERROR(INDIRECT(\"Planner_PS\"&AJ135&\"!ao\"&AE185),0)","v":0},{"$f":"IFERROR(ROUNDUP(AJ185*AK185*AK149/(AK181*(AL185/12)),0),0)","v":0},{"$f":"IFERROR(ROUNDUP(AJ185*AK185*AL149/(AK181*(AL185/12)),0),0)","v":0},{"$f":"IFERROR(ROUNDUP(AJ185*AK185*AM149/(AK181*(AL185/12)),0),0)","v":0},{"$f":"IFERROR(ROUNDUP(AJ185*AK185*AN149/(AK181*(AL185/12)),0),0)","v":0},null,null,90,3,{"$f":"BB128","v":0},0,{"$f":"title630&\" 3\"","v":"Collection 3"},{"$f":"IFERROR(INDIRECT(\"PRICE_FS\"&AV185&\"_PS\"&AX135&\"!T172\"),0)","v":0},"",{"$f":"IFERROR(INDIRECT(\"Planner_PS\"&AX135&\"!ao\"&AS185),0)","v":0},{"$f":"IFERROR(ROUNDUP(AX185*AY185*AY149/(AY181*(AZ185/12)),0),0)","v":0},{"$f":"IFERROR(ROUNDUP(AX185*AY185*AZ149/(AY181*(AZ185/12)),0),0)","v":0},{"$f":"IFERROR(ROUNDUP(AX185*AY185*BA149/(AY181*(AZ185/12)),0),0)","v":0},{"$f":"IFERROR(ROUNDUP(AX185*AY185*BB149/(AY181*(AZ185/12)),0),0)","v":0},null,null,90,3,{"$f":"BP128","v":0},0,{"$f":"title630&\" 3\"","v":"Collection 3"},{"$f":"IFERROR(INDIRECT(\"PRICE_FS\"&BJ185&\"_PS\"&BL135&\"!T172\"),0)","v":0},"",{"$f":"IFERROR(INDIRECT(\"Planner_PS\"&BL135&\"!ao\"&BG185),0)","v":0},{"$f":"IFERROR(ROUNDUP(BL185*BM185*BM149/(BM181*(BN185/12)),0),0)","v":0},{"$f":"IFERROR(ROUNDUP(BL185*BM185*BN149/(BM181*(BN185/12)),0),0)","v":0},{"$f":"IFERROR(ROUNDUP(BL185*BM185*BO149/(BM181*(BN185/12)),0),0)","v":0},{"$f":"IFERROR(ROUNDUP(BL185*BM185*BP149/(BM181*(BN185/12)),0),0)","v":0},null,null,90,3,{"$f":"CD128","v":0},0,{"$f":"title630&\" 3\"","v":"Collection 3"},{"$f":"IFERROR(INDIRECT(\"PRICE_FS\"&BX185&\"_PS\"&BZ135&\"!T172\"),0)","v":0},"",{"$f":"IFERROR(INDIRECT(\"Planner_PS\"&BZ135&\"!ao\"&BU185),0)","v":0},{"$f":"IFERROR(ROUNDUP(BZ185*CA185*CA149/(CA181*(CB185/12)),0),0)","v":0},{"$f":"IFERROR(ROUNDUP(BZ185*CA185*CB149/(CA181*(CB185/12)),0),0)","v":0},{"$f":"IFERROR(ROUNDUP(BZ185*CA185*CC149/(CA181*(CB185/12)),0),0)","v":0},{"$f":"IFERROR(ROUNDUP(BZ185*CA185*CD149/(CA181*(CB185/12)),0),0)","v":0}]
[null,null,null,null,null,null,null,null,null,null,null,null,null,null,null,null,null,null,null,null,null,null,null,null,null,null,null,null,null,null,91,4,{"$f":"AO128","v":0},0,{"$f":"title630&\" 4\"","v":"Collection 4"},{"$f":"IFERROR(INDIRECT(\"PRICE_FS\"&AH186&\"_PS\"&AJ135&\"!T172\"),0)","v":0},"",{"$f":"IFERROR(INDIRECT(\"Planner_PS\"&AJ135&\"!ao\"&AE186),0)","v":0},{"$f":"IFERROR(ROUNDUP(AJ186*AK186*AK149/(AK181*(AL186/12)),0),0)","v":0},{"$f":"IFERROR(ROUNDUP(AJ186*AK186*AL149/(AK181*(AL186/12)),0),0)","v":0},{"$f":"IFERROR(ROUNDUP(AJ186*AK186*AM149/(AK181*(AL186/12)),0),0)","v":0},{"$f":"IFERROR(ROUNDUP(AJ186*AK186*AN149/(AK181*(AL186/12)),0),0)","v":0},null,null,91,4,{"$f":"BC128","v":0},0,{"$f":"title630&\" 4\"","v":"Collection 4"},{"$f":"IFERROR(INDIRECT(\"PRICE_FS\"&AV186&\"_PS\"&AX135&\"!T172\"),0)","v":0},"",{"$f":"IFERROR(INDIRECT(\"Planner_PS\"&AX135&\"!ao\"&AS186),0)","v":0},{"$f":"IFERROR(ROUNDUP(AX186*AY186*AY149/(AY181*(AZ186/12)),0),0)","v":0},{"$f":"IFERROR(ROUNDUP(AX186*AY186*AZ149/(AY181*(AZ186/12)),0),0)","v":0},{"$f":"IFERROR(ROUNDUP(AX186*AY186*BA149/(AY181*(AZ186/12)),0),0)","v":0},{"$f":"IFERROR(ROUNDUP(AX186*AY186*BB149/(AY181*(AZ186/12)),0),0)","v":0},null,null,91,4,{"$f":"BQ128","v":0},0,{"$f":"title630&\" 4\"","v":"Collection 4"},{"$f":"IFERROR(INDIRECT(\"PRICE_FS\"&BJ186&\"_PS\"&BL135&\"!T172\"),0)","v":0},"",{"$f":"IFERROR(INDIRECT(\"Planner_PS\"&BL135&\"!ao\"&BG186),0)","v":0},{"$f":"IFERROR(ROUNDUP(BL186*BM186*BM149/(BM181*(BN186/12)),0),0)","v":0},{"$f":"IFERROR(ROUNDUP(BL186*BM186*BN149/(BM181*(BN186/12)),0),0)","v":0},{"$f":"IFERROR(ROUNDUP(BL186*BM186*BO149/(BM181*(BN186/12)),0),0)","v":0},{"$f":"IFERROR(ROUNDUP(BL186*BM186*BP149/(BM181*(BN186/12)),0),0)","v":0},null,null,91,4,{"$f":"CE128","v":0},0,{"$f":"title630&\" 4\"","v":"Collection 4"},{"$f":"IFERROR(INDIRECT(\"PRICE_FS\"&BX186&\"_PS\"&BZ135&\"!T172\"),0)","v":0},"",{"$f":"IFERROR(INDIRECT(\"Planner_PS\"&BZ135&\"!ao\"&BU186),0)","v":0},{"$f":"IFERROR(ROUNDUP(BZ186*CA186*CA149/(CA181*(CB186/12)),0),0)","v":0},{"$f":"IFERROR(ROUNDUP(BZ186*CA186*CB149/(CA181*(CB186/12)),0),0)","v":0},{"$f":"IFERROR(ROUNDUP(BZ186*CA186*CC149/(CA181*(CB186/12)),0),0)","v":0},{"$f":"IFERROR(ROUNDUP(BZ186*CA186*CD149/(CA181*(CB186/12)),0),0)","v":0}]
[null,null,null,null,null,null,null,null,null,null,null,null,null,null,null,null,null,null,null,null,null,null,null,null,null,null,null,null,null,null,92,5,{"$f":"AP128","v":0},0,{"$f":"title630&\" 5\"","v":"Collection 5"},{"$f":"IFERROR(INDIRECT(\"PRICE_FS\"&AH187&\"_PS\"&AJ135&\"!T172\"),0)","v":0},"",{"$f":"IFERROR(INDIRECT(\"Planner_PS\"&AJ135&\"!ao\"&AE187),0)","v":0},{"$f":"IFERROR(ROUNDUP(AJ187*AK187*AK149/(AK181*(AL187/12)),0),0)","v":0},{"$f":"IFERROR(ROUNDUP(AJ187*AK187*AL149/(AK181*(AL187/12)),0),0)","v":0},{"$f":"IFERROR(ROUNDUP(AJ187*AK187*AM149/(AK181*(AL187/12)),0),0)","v":0},{"$f":"IFERROR(ROUNDUP(AJ187*AK187*AN149/(AK181*(AL187/12)),0),0)","v":0},null,null,92,5,{"$f":"BD128","v":0},0,{"$f":"title630&\" 5\"","v":"Collection 5"},{"$f":"IFERROR(INDIRECT(\"PRICE_FS\"&AV187&\"_PS\"&AX135&\"!T172\"),0)","v":0},"",{"$f":"IFERROR(INDIRECT(\"Planner_PS\"&AX135&\"!ao\"&AS187),0)","v":0},{"$f":"IFERROR(ROUNDUP(AX187*AY187*AY149/(AY181*(AZ187/12)),0),0)","v":0},{"$f":"IFERROR(ROUNDUP(AX187*AY187*AZ149/(AY181*(AZ187/12)),0),0)","v":0},{"$f":"IFERROR(ROUNDUP(AX187*AY187*BA149/(AY181*(AZ187/12)),0),0)","v":0},{"$f":"IFERROR(ROUNDUP(AX187*AY187*BB149/(AY181*(AZ187/12)),0),0)","v":0},null,null,92,5,{"$f":"BR128","v":0},0,{"$f":"title630&\" 5\"","v":"Collection 5"},{"$f":"IFERROR(INDIRECT(\"PRICE_FS\"&BJ187&\"_PS\"&BL135&\"!T172\"),0)","v":0},"",{"$f":"IFERROR(INDIRECT(\"Planner_PS\"&BL135&\"!ao\"&BG187),0)","v":0},{"$f":"IFERROR(ROUNDUP(BL187*BM187*BM149/(BM181*(BN187/12)),0),0)","v":0},{"$f":"IFERROR(ROUNDUP(BL187*BM187*BN149/(BM181*(BN187/12)),0),0)","v":0},{"$f":"IFERROR(ROUNDUP(BL187*BM187*BO149/(BM181*(BN187/12)),0),0)","v":0},{"$f":"IFERROR(ROUNDUP(BL187*BM187*BP149/(BM181*(BN187/12)),0),0)","v":0},null,null,92,5,{"$f":"CF128","v":0},0,{"$f":"title630&\" 5\"","v":"Collection 5"},{"$f":"IFERROR(INDIRECT(\"PRICE_FS\"&BX187&\"_PS\"&BZ135&\"!T172\"),0)","v":0},"",{"$f":"IFERROR(INDIRECT(\"Planner_PS\"&BZ135&\"!ao\"&BU187),0)","v":0},{"$f":"IFERROR(ROUNDUP(BZ187*CA187*CA149/(CA181*(CB187/12)),0),0)","v":0},{"$f":"IFERROR(ROUNDUP(BZ187*CA187*CB149/(CA181*(CB187/12)),0),0)","v":0},{"$f":"IFERROR(ROUNDUP(BZ187*CA187*CC149/(CA181*(CB187/12)),0),0)","v":0},{"$f":"IFERROR(ROUNDUP(BZ187*CA187*CD149/(CA181*(CB187/12)),0),0)","v":0}]
[null,null,null,null,null,null,null,null,null,null,null,null,null,null,null,null,null,null,null,null,null,null,null,null,null,null,null,null,null,null,95,6,{"$f":"AQ128","v":0},0,{"$f":"title630&\" 6\"","v":"Collection 6"},{"$f":"IFERROR(INDIRECT(\"PRICE_FS\"&AH188&\"_PS\"&AJ135&\"!T172\"),0)","v":0},"",{"$f":"IFERROR(INDIRECT(\"Planner_PS\"&AJ135&\"!ao\"&AE188),0)","v":0},{"$f":"IFERROR(ROUNDUP(AJ188*AK188*AK149/(AK181*(AL188/12)),0),0)","v":0},{"$f":"IFERROR(ROUNDUP(AJ188*AK188*AL149/(AK181*(AL188/12)),0),0)","v":0},{"$f":"IFERROR(ROUNDUP(AJ188*AK188*AM149/(AK181*(AL188/12)),0),0)","v":0},{"$f":"IFERROR(ROUNDUP(AJ188*AK188*AN149/(AK181*(AL188/12)),0),0)","v":0},null,null,95,6,{"$f":"BE128","v":0},0,{"$f":"title630&\" 6\"","v":"Collection 6"},{"$f":"IFERROR(INDIRECT(\"PRICE_FS\"&AV188&\"_PS\"&AX135&\"!T172\"),0)","v":0},"",{"$f":"IFERROR(INDIRECT(\"Planner_PS\"&AX135&\"!ao\"&AS188),0)","v":0},{"$f":"IFERROR(ROUNDUP(AX188*AY188*AY149/(AY181*(AZ188/12)),0),0)","v":0},{"$f":"IFERROR(ROUNDUP(AX188*AY188*AZ149/(AY181*(AZ188/12)),0),0)","v":0},{"$f":"IFERROR(ROUNDUP(AX188*AY188*BA149/(AY181*(AZ188/12)),0),0)","v":0},{"$f":"IFERROR(ROUNDUP(AX188*AY188*BB149/(AY181*(AZ188/12)),0),0)","v":0},null,null,95,6,{"$f":"BS128","v":0},0,{"$f":"title630&\" 6\"","v":"Collection 6"},{"$f":"IFERROR(INDIRECT(\"PRICE_FS\"&BJ188&\"_PS\"&BL135&\"!T172\"),0)","v":0},"",{"$f":"IFERROR(INDIRECT(\"Planner_PS\"&BL135&\"!ao\"&BG188),0)","v":0},{"$f":"IFERROR(ROUNDUP(BL188*BM188*BM149/(BM181*(BN188/12)),0),0)","v":0},{"$f":"IFERROR(ROUNDUP(BL188*BM188*BN149/(BM181*(BN188/12)),0),0)","v":0},{"$f":"IFERROR(ROUNDUP(BL188*BM188*BO149/(BM181*(BN188/12)),0),0)","v":0},{"$f":"IFERROR(ROUNDUP(BL188*BM188*BP149/(BM181*(BN188/12)),0),0)","v":0},null,null,95,6,{"$f":"CG128","v":0},0,{"$f":"title630&\" 6\"","v":"Collection 6"},{"$f":"IFERROR(INDIRECT(\"PRICE_FS\"&BX188&\"_PS\"&BZ135&\"!T172\"),0)","v":0},"",{"$f":"IFERROR(INDIRECT(\"Planner_PS\"&BZ135&\"!ao\"&BU188),0)","v":0},{"$f":"IFERROR(ROUNDUP(BZ188*CA188*CA149/(CA181*(CB188/12)),0),0)","v":0},{"$f":"IFERROR(ROUNDUP(BZ188*CA188*CB149/(CA181*(CB188/12)),0),0)","v":0},{"$f":"IFERROR(ROUNDUP(BZ188*CA188*CC149/(CA181*(CB188/12)),0),0)","v":0},{"$f":"IFERROR(ROUNDUP(BZ188*CA188*CD149/(CA181*(CB188/12)),0),0)","v":0}]
[null,null,null,null,null,null,null,null,null,null,null,null,null,null,null,null,null,null,null,null,null,null,null,null,null,null,null,null,null,null,null,null,48,49,{"$f":"title631","v":"Processing"},null,null,null,{"$f":"INDIRECT(\"COST_PS\"&AJ135&\"!\"&AK145&AG189)+INDIRECT(\"COST_PS\"&AJ135&\"!\"&AK145&AH189)","v":0},{"$f":"INDIRECT(\"COST_PS\"&AJ135&\"!\"&AL145&AG189)+INDIRECT(\"COST_PS\"&AJ135&\"!\"&AL145&AH189)","v":0},{"$f":"INDIRECT(\"COST_PS\"&AJ135&\"!\"&AM145&AG189)+INDIRECT(\"COST_PS\"&AJ135&\"!\"&AM145&AH189)","v":0},{"$f":"INDIRECT(\"COST_PS\"&AJ135&\"!\"&AN145&AG189)+INDIRECT(\"COST_PS\"&AJ135&\"!\"&AN145&AH189)","v":0},null,null,null,null,48,49,{"$f":"title631","v":"Processing"},null,null,null,{"$f":"INDIRECT(\"COST_PS\"&AX135&\"!\"&AY145&AU189)+INDIRECT(\"COST_PS\"&AX135&\"!\"&AY145&AV189)","v":0},{"$f":"INDIRECT(\"COST_PS\"&AX135&\"!\"&AZ145&AU189)+INDIRECT(\"COST_PS\"&AX135&\"!\"&AZ145&AV189)","v":0},{"$f":"INDIRECT(\"COST_PS\"&AX135&\"!\"&BA145&AU189)+INDIRECT(\"COST_PS\"&AX135&\"!\"&BA145&AV189)","v":0},{"$f":"INDIRECT(\"COST_PS\"&AX135&\"!\"&BB145&AU189)+INDIRECT(\"COST_PS\"&AX135&\"!\"&BB145&AV189)","v":0},null,null,null,null,48,49,{"$f":"title631","v":"Processing"},null,null,null,{"$f":"INDIRECT(\"COST_PS\"&BL135&\"!\"&BM145&BI189)+INDIRECT(\"COST_PS\"&BL135&\"!\"&BM145&BJ189)","v":0},{"$f":"INDIRECT(\"COST_PS\"&BL135&\"!\"&BN145&BI189)+INDIRECT(\"COST_PS\"&BL135&\"!\"&BN145&BJ189)","v":0},{"$f":"INDIRECT(\"COST_PS\"&BL135&\"!\"&BO145&BI189)+INDIRECT(\"COST_PS\"&BL135&\"!\"&BO145&BJ189)","v":0},{"$f":"INDIRECT(\"COST_PS\"&BL135&\"!\"&BP145&BI189)+INDIRECT(\"COST_PS\"&BL135&\"!\"&BP145&BJ189)","v":0},null,null,null,null,48,49,{"$f":"title631","v":"Processing"},null,null,null,{"$f":"INDIRECT(\"COST_PS\"&BZ135&\"!\"&CA145&BW189)+INDIRECT(\"COST_PS\"&BZ135&\"!\"&CA145&BX189)","v":0},{"$f":"INDIRECT(\"COST_PS\"&BZ135&\"!\"&CB145&BW189)+INDIRECT(\"COST_PS\"&BZ135&\"!\"&CB145&BX189)","v":0},{"$f":"INDIRECT(\"COST_PS\"&BZ135&\"!\"&CC145&BW189)+INDIRECT(\"COST_PS\"&BZ135&\"!\"&CC145&BX189)","v":0},{"$f":"INDIRECT(\"COST_PS\"&BZ135&\"!\"&CD145&BW189)+INDIRECT(\"COST_PS\"&BZ135&\"!\"&CD145&BX189)","v":0}]
[null,null,null,null,null,null,null,null,null,null,null,null,null,null,null,null,null,null,null,null,null,null,null,null,null,null,null,null,null,null,null,null,null,null,{"$f":"title649","v":"Total Jobs"},null,null,null,{"$f":"SUM(AM183:AM189)","v":0},{"$f":"SUM(AN183:AN189)","v":0},{"$f":"SUM(AO183:AO189)","v":0},{"$f":"SUM(AP183:AP189)","v":0},null,null,null,null,null,null,{"$f":"title649","v":"Total Jobs"},null,null,null,{"$f":"SUM(BA183:BA189)","v":0},{"$f":"SUM(BB183:BB189)","v":0},{"$f":"SUM(BC183:BC189)","v":0},{"$f":"SUM(BD183:BD189)","v":0},null,null,null,null,null,null,{"$f":"title649","v":"Total Jobs"},null,null,null,{"$f":"SUM(BO183:BO189)","v":0},{"$f":"SUM(BP183:BP189)","v":0},{"$f":"SUM(BQ183:BQ189)","v":0},{"$f":"SUM(BR183:BR189)","v":0},null,null,null,null,null,null,{"$f":"title649","v":"Total Jobs"},null,null,null,{"$f":"SUM(CC183:CC189)","v":0},{"$f":"SUM(CD183:CD189)","v":0},{"$f":"SUM(CE183:CE189)","v":0},{"$f":"SUM(CF183:CF189)","v":0}]
[]
[]
[null,null,null,null,null,null,null,null,null,null,null,null,null,null,null,null,null,null,null,null,null,null,null,null,null,null,null,null,null,null,null,null,null,null,null,null,{"$f":"title248&\" 1\"","v":"Size 1"},{"$f":"title248&\" 2\"","v":"Size 2"},{"$f":"title248&\" 3\"","v":"Size 3"},{"$f":"title248&\" 4\"","v":"Size 4"},null,null,"%",null,null,null,null,null,null,null,{"$f":"title248&\" 1\"","v":"Size 1"},{"$f":"title248&\" 2\"","v":"Size 2"},{"$f":"title248&\" 3\"","v":"Size 3"},{"$f":"title248&\" 4\"","v":"Size 4"},null,null,"%",null,null,null,null,null,null,null,{"$f":"title248&\" 1\"","v":"Size 1"},{"$f":"title248&\" 2\"","v":"Size 2"},{"$f":"title248&\" 3\"","v":"Size 3"},{"$f":"title248&\" 4\"","v":"Size 4"},null,null,"%",null,null,null,null,null,null,null,{"$f":"title248&\" 1\"","v":"Size 1"},{"$f":"title248&\" 2\"","v":"Size 2"},{"$f":"title248&\" 3\"","v":"Size 3"},{"$f":"title248&\" 4\"","v":"Size 4"},null,null,"%"]
[null,null,null,null,null,null,null,null,null,null,null,null,null,null,null,null,null,null,null,null,null,null,null,null,null,null,null,null,null,null,null,null,1,107,{"$f":"title634","v":"Heat Available"},{"$f":"title306","v":"MJ/year"},{"$f":"INDIRECT(\"COST_PS\"&AJ135&\"!\"&AK146&AH194)*1000","v":{"$error":"#DIV/0!"}},{"$f":"INDIRECT(\"COST_PS\"&AJ135&\"!\"&AL146&AH194)*1000","v":{"$error":"#DIV/0!"}},{"$f":"INDIRECT(\"COST_PS\"&AJ135&\"!\"&AM146&AH194)*1000","v":{"$error":"#DIV/0!"}},{"$f":"INDIRECT(\"COST_PS\"&AJ135&\"!\"&AN146&AH194)*1000","v":{"$error":"#DIV/0!"}},null,{"$f":"AI151","v":""},{"$f":"IF(AP194=\"\",\"\",AK151/AK150)","v":""},null,null,null,1,107,{"$f":"title634","v":"Heat Available"},{"$f":"title306","v":"MJ/year"},{"$f":"INDIRECT(\"COST_PS\"&AX135&\"!\"&AY146&AV194)*1000","v":{"$error":"#DIV/0!"}},{"$f":"INDIRECT(\"COST_PS\"&AX135&\"!\"&AZ146&AV194)*1000","v":{"$error":"#DIV/0!"}},{"$f":"INDIRECT(\"COST_PS\"&AX135&\"!\"&BA146&AV194)*1000","v":{"$error":"#DIV/0!"}},{"$f":"INDIRECT(\"COST_PS\"&AX135&\"!\"&BB146&AV194)*1000","v":{"$error":"#DIV/0!"}},null,{"$f":"AW151","v":""},{"$f":"IF(BD194=\"\",\"\",AY151/AY150)","v":""},null,null,null,1,107,{"$f":"title634","v":"Heat Available"},{"$f":"title306","v":"MJ/year"},{"$f":"INDIRECT(\"COST_PS\"&BL135&\"!\"&BM146&BJ194)*1000","v":{"$error":"#DIV/0!"}},{"$f":"INDIRECT(\"COST_PS\"&BL135&\"!\"&BN146&BJ194)*1000","v":{"$error":"#DIV/0!"}},{"$f":"INDIRECT(\"COST_PS\"&BL135&\"!\"&BO146&BJ194)*1000","v":{"$error":"#DIV/0!"}},{"$f":"INDIRECT(\"COST_PS\"&BL135&\"!\"&BP146&BJ194)*1000","v":{"$error":"#DIV/0!"}},null,{"$f":"BK151","v":""},{"$f":"IF(BR194=\"\",\"\",BM151/BM150)","v":""},null,null,null,1,107,{"$f":"title634","v":"Heat Available"},{"$f":"title306","v":"MJ/year"},{"$f":"INDIRECT(\"COST_PS\"&BZ135&\"!\"&CA146&BX194)*1000","v":{"$error":"#DIV/0!"}},{"$f":"INDIRECT(\"COST_PS\"&BZ135&\"!\"&CB146&BX194)*1000","v":{"$error":"#DIV/0!"}},{"$f":"INDIRECT(\"COST_PS\"&BZ135&\"!\"&CC146&BX194)*1000","v":{"$error":"#DIV/0!"}},{"$f":"INDIRECT(\"COST_PS\"&BZ135&\"!\"&CD146&BX194)*1000","v":{"$error":"#DIV/0!"}},null,{"$f":"BY151","v":""},{"$f":"IF(CF194=\"\",\"\",CA151/CA150)","v":""}]
[null,null,null,null,null,null,null,null,null,null,null,null,null,null,null,null,null,null,null,null,null,null,null,null,null,null,null,null,null,null,null,null,5,106,{"$f":"title635","v":"Electricity Available"},{"$f":"title304","v":"kWh/year"},{"$f":"INDIRECT(\"COST_PS\"&AJ135&\"!\"&AK146&AH195)","v":{"$error":"#DIV/0!"}},{"$f":"INDIRECT(\"COST_PS\"&AJ135&\"!\"&AL146&AH195)","v":{"$error":"#DIV/0!"}},{"$f":"INDIRECT(\"COST_PS\"&AJ135&\"!\"&AM146&AH195)","v":{"$error":"#DIV/0!"}},{"$f":"INDIRECT(\"COST_PS\"&AJ135&\"!\"&AN146&AH195)","v":{"$error":"#DIV/0!"}},null,"",{"$f":"IF(AP195=\"\",\"\",AK152/AK150)","v":""},null,null,null,5,106,{"$f":"title635","v":"Electricity Available"},{"$f":"title304","v":"kWh/year"},{"$f":"INDIRECT(\"COST_PS\"&AX135&\"!\"&AY146&AV195)","v":{"$error":"#DIV/0!"}},{"$f":"INDIRECT(\"COST_PS\"&AX135&\"!\"&AZ146&AV195)","v":{"$error":"#DIV/0!"}},{"$f":"INDIRECT(\"COST_PS\"&AX135&\"!\"&BA146&AV195)","v":{"$error":"#DIV/0!"}},{"$f":"INDIRECT(\"COST_PS\"&AX135&\"!\"&BB146&AV195)","v":{"$error":"#DIV/0!"}},null,"",{"$f":"IF(BD195=\"\",\"\",AY152/AY150)","v":""},null,null,null,5,106,{"$f":"title635","v":"Electricity Available"},{"$f":"title304","v":"kWh/year"},{"$f":"INDIRECT(\"COST_PS\"&BL135&\"!\"&BM146&BJ195)","v":{"$error":"#DIV/0!"}},{"$f":"INDIRECT(\"COST_PS\"&BL135&\"!\"&BN146&BJ195)","v":{"$error":"#DIV/0!"}},{"$f":"INDIRECT(\"COST_PS\"&BL135&\"!\"&BO146&BJ195)","v":{"$error":"#DIV/0!"}},{"$f":"INDIRECT(\"COST_PS\"&BL135&\"!\"&BP146&BJ195)","v":{"$error":"#DIV/0!"}},null,"",{"$f":"IF(BR195=\"\",\"\",BM152/BM150)","v":""},null,null,null,5,106,{"$f":"title635","v":"Electricity Available"},{"$f":"title304","v":"kWh/year"},{"$f":"INDIRECT(\"COST_PS\"&BZ135&\"!\"&CA146&BX195)","v":{"$error":"#DIV/0!"}},{"$f":"INDIRECT(\"COST_PS\"&BZ135&\"!\"&CB146&BX195)","v":{"$error":"#DIV/0!"}},{"$f":"INDIRECT(\"COST_PS\"&BZ135&\"!\"&CC146&BX195)","v":{"$error":"#DIV/0!"}},{"$f":"INDIRECT(\"COST_PS\"&BZ135&\"!\"&CD146&BX195)","v":{"$error":"#DIV/0!"}},null,"",{"$f":"IF(CF195=\"\",\"\",CA152/CA150)","v":""}]
[null,null,null,null,null,null,null,null,null,null,null,null,null,null,null,null,null,null,null,null,null,null,null,null,null,null,null,null,null,null,null,null,2,130,{"$f":"title89","v":"Biogas Production"},{"$f":"title310","v":"m3 Biogas/year"},{"$f":"INDIRECT(\"Planner_PS\"&AJ135&\"!ad\"&AH196)*'Data entry needs'!$L100","v":{"$error":"#DIV/0!"}},{"$f":"INDIRECT(\"Planner_PS\"&AJ135&\"!ae\"&AH196)*'Data entry needs'!$L100","v":{"$error":"#DIV/0!"}},{"$f":"INDIRECT(\"Planner_PS\"&AJ135&\"!af\"&AH196)*'Data entry needs'!$L100","v":{"$error":"#DIV/0!"}},{"$f":"INDIRECT(\"Planner_PS\"&AJ135&\"!ag\"&AH196)*'Data entry needs'!$L100","v":{"$error":"#DIV/0!"}},null,"",{"$f":"IF(AP196=\"\",\"\",AK153/AK150)","v":""},null,null,null,2,130,{"$f":"title89","v":"Biogas Production"},{"$f":"title310","v":"m3 Biogas/year"},{"$f":"INDIRECT(\"Planner_PS\"&AX135&\"!ad\"&AV196)*'Data entry needs'!$L100","v":{"$error":"#DIV/0!"}},{"$f":"INDIRECT(\"Planner_PS\"&AX135&\"!ae\"&AV196)*'Data entry needs'!$L100","v":{"$error":"#DIV/0!"}},{"$f":"INDIRECT(\"Planner_PS\"&AX135&\"!af\"&AV196)*'Data entry needs'!$L100","v":{"$error":"#DIV/0!"}},{"$f":"INDIRECT(\"Planner_PS\"&AX135&\"!ag\"&AV196)*'Data entry needs'!$L100","v":{"$error":"#DIV/0!"}},null,"",{"$f":"IF(BD196=\"\",\"\",AY153/AY150)","v":""},null,null,null,2,130,{"$f":"title89","v":"Biogas Production"},{"$f":"title310","v":"m3 Biogas/year"},{"$f":"INDIRECT(\"Planner_PS\"&BL135&\"!ad\"&BJ196)*'Data entry needs'!$L100","v":{"$error":"#DIV/0!"}},{"$f":"INDIRECT(\"Planner_PS\"&BL135&\"!ae\"&BJ196)*'Data entry needs'!$L100","v":{"$error":"#DIV/0!"}},{"$f":"INDIRECT(\"Planner_PS\"&BL135&\"!af\"&BJ196)*'Data entry needs'!$L100","v":{"$error":"#DIV/0!"}},{"$f":"INDIRECT(\"Planner_PS\"&BL135&\"!ag\"&BJ196)*'Data entry needs'!$L100","v":{"$error":"#DIV/0!"}},null,"",{"$f":"IF(BR196=\"\",\"\",BM153/BM150)","v":""},null,null,null,2,130,{"$f":"title89","v":"Biogas Production"},{"$f":"title310","v":"m3 Biogas/year"},{"$f":"INDIRECT(\"Planner_PS\"&BZ135&\"!ad\"&BX196)*'Data entry needs'!$L100","v":{"$error":"#DIV/0!"}},{"$f":"INDIRECT(\"Planner_PS\"&BZ135&\"!ae\"&BX196)*'Data entry needs'!$L100","v":{"$error":"#DIV/0!"}},{"$f":"INDIRECT(\"Planner_PS\"&BZ135&\"!af\"&BX196)*'Data entry needs'!$L100","v":{"$error":"#DIV/0!"}},{"$f":"INDIRECT(\"Planner_PS\"&BZ135&\"!ag\"&BX196)*'Data entry needs'!$L100","v":{"$error":"#DIV/0!"}},null,"",{"$f":"IF(CF196=\"\",\"\",CA153/CA150)","v":""}]
[null,null,null,null,null,null,null,null,null,null,null,null,null,null,null,null,null,null,null,null,null,null,null,null,null,null,null,null,null,null,null,null,4,127,{"$f":"title636","v":"Methane Production"},{"$f":"title311","v":"m3 Methane/year"},{"$f":"INDIRECT(\"Planner_PS\"&AJ135&\"!ad\"&AH197)*'Data entry needs'!$L100","v":0},{"$f":"INDIRECT(\"Planner_PS\"&AJ135&\"!ae\"&AH197)*'Data entry needs'!$L100","v":0},{"$f":"INDIRECT(\"Planner_PS\"&AJ135&\"!af\"&AH197)*'Data entry needs'!$L100","v":0},{"$f":"INDIRECT(\"Planner_PS\"&AJ135&\"!ag\"&AH197)*'Data entry needs'!$L100","v":0},null,"",{"$f":"IF(AP197=\"\",\"\",AK154/AK150)","v":""},null,null,null,4,127,{"$f":"title636","v":"Methane Production"},{"$f":"title311","v":"m3 Methane/year"},{"$f":"INDIRECT(\"Planner_PS\"&AX135&\"!ad\"&AV197)*'Data entry needs'!$L100","v":0},{"$f":"INDIRECT(\"Planner_PS\"&AX135&\"!ae\"&AV197)*'Data entry needs'!$L100","v":0},{"$f":"INDIRECT(\"Planner_PS\"&AX135&\"!af\"&AV197)*'Data entry needs'!$L100","v":0},{"$f":"INDIRECT(\"Planner_PS\"&AX135&\"!ag\"&AV197)*'Data entry needs'!$L100","v":0},null,"",{"$f":"IF(BD197=\"\",\"\",AY154/AY150)","v":""},null,null,null,4,127,{"$f":"title636","v":"Methane Production"},{"$f":"title311","v":"m3 Methane/year"},{"$f":"INDIRECT(\"Planner_PS\"&BL135&\"!ad\"&BJ197)*'Data entry needs'!$L100","v":0},{"$f":"INDIRECT(\"Planner_PS\"&BL135&\"!ae\"&BJ197)*'Data entry needs'!$L100","v":0},{"$f":"INDIRECT(\"Planner_PS\"&BL135&\"!af\"&BJ197)*'Data entry needs'!$L100","v":0},{"$f":"INDIRECT(\"Planner_PS\"&BL135&\"!ag\"&BJ197)*'Data entry needs'!$L100","v":0},null,"",{"$f":"IF(BR197=\"\",\"\",BM154/BM150)","v":""},null,null,null,4,127,{"$f":"title636","v":"Methane Production"},{"$f":"title311","v":"m3 Methane/year"},{"$f":"INDIRECT(\"Planner_PS\"&BZ135&\"!ad\"&BX197)*'Data entry needs'!$L100","v":0},{"$f":"INDIRECT(\"Planner_PS\"&BZ135&\"!ae\"&BX197)*'Data entry needs'!$L100","v":0},{"$f":"INDIRECT(\"Planner_PS\"&BZ135&\"!af\"&BX197)*'Data entry needs'!$L100","v":0},{"$f":"INDIRECT(\"Planner_PS\"&BZ135&\"!ag\"&BX197)*'Data entry needs'!$L100","v":0},null,"",{"$f":"IF(CF197=\"\",\"\",CA154/CA150)","v":""}]
[null,null,null,null,null,null,null,null,null,null,null,null,null,null,null,null,null,null,null,null,null,null,null,null,null,null,null,null,null,null,null,null,null,null,null,4,5,6,7,8,null,"",{"$f":"IF(AP198=\"\",\"\",AK155/AK150)","v":""},null,null,null,null,null,null,4,5,6,7,8,null,"",{"$f":"IF(BD198=\"\",\"\",AY155/AY150)","v":""},null,null,null,null,null,null,4,5,6,7,8,null,"",{"$f":"IF(BR198=\"\",\"\",BM155/BM150)","v":""},null,null,null,null,null,null,4,5,6,7,8,null,"",{"$f":"IF(CF198=\"\",\"\",CA155/CA150)","v":""}]
[null,null,null,null,null,null,null,null,null,null,null,null,null,null,null,null,null,null,null,null,null,null,null,null,null,null,null,null,null,null,null,null,null,null,{"$f":"title64&\" 1\"","v":"Selection 1"},{"$f":"IFERROR(VLOOKUP('Biogas Use Selection'!$P67,'Summary of results-comparative'!AG194:AN197,AJ198,FALSE),0)","v":"MJ/year"},{"$f":"IFERROR(VLOOKUP('Biogas Use Selection'!$P67,'Summary of results-comparative'!AG194:AN197,AK198,FALSE),0)","v":0},{"$f":"IFERROR(VLOOKUP('Biogas Use Selection'!$P67,'Summary of results-comparative'!AG194:AN197,AL198,FALSE),0)","v":0},{"$f":"IFERROR(VLOOKUP('Biogas Use Selection'!$P67,'Summary of results-comparative'!AG194:AN197,AM198,FALSE),0)","v":0},{"$f":"IFERROR(VLOOKUP('Biogas Use Selection'!$P67,'Summary of results-comparative'!AG194:AN197,AN198,FALSE),0)","v":0},null,"",{"$f":"IF(AP199=\"\",\"\",AK156/AK150)","v":""},null,null,null,null,null,{"$f":"title64&\" 1\"","v":"Selection 1"},{"$f":"IFERROR(VLOOKUP('Biogas Use Selection'!$P67,'Summary of results-comparative'!AU194:BB197,AX198,FALSE),0)","v":"MJ/year"},{"$f":"IFERROR(VLOOKUP('Biogas Use Selection'!$P67,'Summary of results-comparative'!AU194:BB197,AY198,FALSE),0)","v":0},{"$f":"IFERROR(VLOOKUP('Biogas Use Selection'!$P67,'Summary of results-comparative'!AU194:BB197,AZ198,FALSE),0)","v":0},{"$f":"IFERROR(VLOOKUP('Biogas Use Selection'!$P67,'Summary of results-comparative'!AU194:BB197,BA198,FALSE),0)","v":0},{"$f":"IFERROR(VLOOKUP('Biogas Use Selection'!$P67,'Summary of results-comparative'!AU194:BB197,BB198,FALSE),0)","v":0},null,"",{"$f":"IF(BD199=\"\",\"\",AY156/AY150)","v":""},null,null,null,null,null,{"$f":"title64&\" 1\"","v":"Selection 1"},{"$f":"IFERROR(VLOOKUP('Biogas Use Selection'!$P67,'Summary of results-comparative'!BI194:BP197,BL198,FALSE),0)","v":"MJ/year"},{"$f":"IFERROR(VLOOKUP('Biogas Use Selection'!$P67,'Summary of results-comparative'!BI194:BP197,BM198,FALSE),0)","v":0},{"$f":"IFERROR(VLOOKUP('Biogas Use Selection'!$P67,'Summary of results-comparative'!BI194:BP197,BN198,FALSE),0)","v":0},{"$f":"IFERROR(VLOOKUP('Biogas Use Selection'!$P67,'Summary of results-comparative'!BI194:BP197,BO198,FALSE),0)","v":0},{"$f":"IFERROR(VLOOKUP('Biogas Use Selection'!$P67,'Summary of results-comparative'!BI194:BP197,BP198,FALSE),0)","v":0},null,"",{"$f":"IF(BR199=\"\",\"\",BM156/BM150)","v":""},null,null,null,null,null,{"$f":"title64&\" 1\"","v":"Selection 1"},{"$f":"IFERROR(VLOOKUP('Biogas Use Selection'!$P67,'Summary of results-comparative'!BW194:CD197,BZ198,FALSE),0)","v":"MJ/year"},{"$f":"IFERROR(VLOOKUP('Biogas Use Selection'!$P67,'Summary of results-comparative'!BW194:CD197,CA198,FALSE),0)","v":0},{"$f":"IFERROR(VLOOKUP('Biogas Use Selection'!$P67,'Summary of results-comparative'!BW194:CD197,CB198,FALSE),0)","v":0},{"$f":"IFERROR(VLOOKUP('Biogas Use Selection'!$P67,'Summary of results-comparative'!BW194:CD197,CC198,FALSE),0)","v":0},{"$f":"IFERROR(VLOOKUP('Biogas Use Selection'!$P67,'Summary of results-comparative'!BW194:CD197,CD198,FALSE),0)","v":0},null,"",{"$f":"IF(CF199=\"\",\"\",CA156/CA150)","v":""}]
[null,null,null,null,null,null,null,null,null,null,null,null,null,null,null,null,null,null,null,null,null,null,null,null,null,null,null,null,null,null,null,null,null,null,{"$f":"title64&\" 2\"","v":"Selection 2"},{"$f":"IF(OR('Biogas Use Selection'!$P67=3,'Biogas Use Selection'!$P67=1),VLOOKUP(5,'Summary of results-comparative'!AG194:AN197,AJ198,FALSE),0)","v":"kWh/year"},{"$f":"IF(OR('Biogas Use Selection'!$P67=3,'Biogas Use Selection'!$P67=1),VLOOKUP(5,'Summary of results-comparative'!AG194:AN197,AK198,FALSE),0)","v":{"$error":"#DIV/0!"}},{"$f":"IF(OR('Biogas Use Selection'!$P67=3,'Biogas Use Selection'!$P67=1),VLOOKUP(5,'Summary of results-comparative'!AG194:AN197,AL198,FALSE),0)","v":{"$error":"#DIV/0!"}},{"$f":"IF(OR('Biogas Use Selection'!$P67=3,'Biogas Use Selection'!$P67=1),VLOOKUP(5,'Summary of results-comparative'!AG194:AN197,AM198,FALSE),0)","v":{"$error":"#DIV/0!"}},{"$f":"IF(OR('Biogas Use Selection'!$P67=3,'Biogas Use Selection'!$P67=1),VLOOKUP(5,'Summary of results-comparative'!AG194:AN197,AN198,FALSE),0)","v":{"$error":"#DIV/0!"}},null,null,null,null,null,null,null,null,{"$f":"title64&\" 2\"","v":"Selection 2"},{"$f":"IF(OR('Biogas Use Selection'!$P67=3,'Biogas Use Selection'!$P67=1),VLOOKUP(5,'Summary of results-comparative'!AU194:BB197,AX198,FALSE),0)","v":"kWh/year"},{"$f":"IF(OR('Biogas Use Selection'!$P67=3,'Biogas Use Selection'!$P67=1),VLOOKUP(5,'Summary of results-comparative'!AU194:BB197,AY198,FALSE),0)","v":{"$error":"#DIV/0!"}},{"$f":"IF(OR('Biogas Use Selection'!$P67=3,'Biogas Use Selection'!$P67=1),VLOOKUP(5,'Summary of results-comparative'!AU194:BB197,AZ198,FALSE),0)","v":{"$error":"#DIV/0!"}},{"$f":"IF(OR('Biogas Use Selection'!$P67=3,'Biogas Use Selection'!$P67=1),VLOOKUP(5,'Summary of results-comparative'!AU194:BB197,BA198,FALSE),0)","v":{"$error":"#DIV/0!"}},{"$f":"IF(OR('Biogas Use Selection'!$P67=3,'Biogas Use Selection'!$P67=1),VLOOKUP(5,'Summary of results-comparative'!AU194:BB197,BB198,FALSE),0)","v":{"$error":"#DIV/0!"}},null,null,null,null,null,null,null,null,{"$f":"title64&\" 2\"","v":"Selection 2"},{"$f":"IF(OR('Biogas Use Selection'!$P67=3,'Biogas Use Selection'!$P67=1),VLOOKUP(5,'Summary of results-comparative'!BI194:BP197,BL198,FALSE),0)","v":"kWh/year"},{"$f":"IF(OR('Biogas Use Selection'!$P67=3,'Biogas Use Selection'!$P67=1),VLOOKUP(5,'Summary of results-comparative'!BI194:BP197,BM198,FALSE),0)","v":{"$error":"#DIV/0!"}},{"$f":"IF(OR('Biogas Use Selection'!$P67=3,'Biogas Use Selection'!$P67=1),VLOOKUP(5,'Summary of results-comparative'!BI194:BP197,BN198,FALSE),0)","v":{"$error":"#DIV/0!"}},{"$f":"IF(OR('Biogas Use Selection'!$P67=3,'Biogas Use Selection'!$P67=1),VLOOKUP(5,'Summary of results-comparative'!BI194:BP197,BO198,FALSE),0)","v":{"$error":"#DIV/0!"}},{"$f":"IF(OR('Biogas Use Selection'!$P67=3,'Biogas Use Selection'!$P67=1),VLOOKUP(5,'Summary of results-comparative'!BI194:BP197,BP198,FALSE),0)","v":{"$error":"#DIV/0!"}},null,null,null,null,null,null,null,null,{"$f":"title64&\" 2\"","v":"Selection 2"},{"$f":"IF(OR('Biogas Use Selection'!$P67=3,'Biogas Use Selection'!$P67=1),VLOOKUP(5,'Summary of results-comparative'!BW194:CD197,BZ198,FALSE),0)","v":"kWh/year"},{"$f":"IF(OR('Biogas Use Selection'!$P67=3,'Biogas Use Selection'!$P67=1),VLOOKUP(5,'Summary of results-comparative'!BW194:CD197,CA198,FALSE),0)","v":{"$error":"#DIV/0!"}},{"$f":"IF(OR('Biogas Use Selection'!$P67=3,'Biogas Use Selection'!$P67=1),VLOOKUP(5,'Summary of results-comparative'!BW194:CD197,CB198,FALSE),0)","v":{"$error":"#DIV/0!"}},{"$f":"IF(OR('Biogas Use Selection'!$P67=3,'Biogas Use Selection'!$P67=1),VLOOKUP(5,'Summary of results-comparative'!BW194:CD197,CC198,FALSE),0)","v":{"$error":"#DIV/0!"}},{"$f":"IF(OR('Biogas Use Selection'!$P67=3,'Biogas Use Selection'!$P67=1),VLOOKUP(5,'Summary of results-comparative'!BW194:CD197,CD198,FALSE),0)","v":{"$error":"#DIV/0!"}}]
[null,null,null,null,null,null,null,null,null,null,null,null,null,null,null,null,null,null,null,null,null,null,null,null,null,null,null,null,null,null,null,null,null,null,{"$f":"title649","v":"Total Jobs"},null,{"$f":"AM190","v":0},{"$f":"AN190","v":0},{"$f":"AO190","v":0},{"$f":"AP190","v":0},null,null,null,null,null,null,null,null,{"$f":"title649","v":"Total Jobs"},null,{"$f":"BA190","v":0},{"$f":"BB190","v":0},{"$f":"BC190","v":0},{"$f":"BD190","v":0},null,null,null,null,null,null,null,null,{"$f":"title649","v":"Total Jobs"},null,{"$f":"BO190","v":0},{"$f":"BP190","v":0},{"$f":"BQ190","v":0},{"$f":"BR190","v":0},null,null,null,null,null,null,null,null,{"$f":"title649","v":"Total Jobs"},null,{"$f":"CC190","v":0},{"$f":"CD190","v":0},{"$f":"CE190","v":0},{"$f":"CF190","v":0}]
[null,null,null,null,null,null,null,null,null,null,null,null,null,null,null,null,null,null,null,null,null,null,null,null,null,null,null,null,null,null,null,null,null,null,null,{"$f":"title52","v":"Households"},null,{"$f":"title55","v":"Industries"},null,null,null,null,null,null,null,null,null,null,null,{"$f":"title52","v":"Households"},null,{"$f":"title55","v":"Industries"},null,null,null,null,null,null,null,null,null,null,null,{"$f":"title52","v":"Households"},null,{"$f":"title55","v":"Industries"},null,null,null,null,null,null,null,null,null,null,null,{"$f":"title52","v":"Households"},null,{"$f":"title55","v":"Industries"}]
[null,null,null,null,null,null,null,null,null,null,null,null,null,null,null,null,null,null,null,null,null,null,null,null,null,null,null,null,null,null,null,null,null,null,{"$f":"IF(OR('Biogas Use Selection'!$P67=5,'Biogas Use Selection'!$P67=2),title637,IF('Biogas Use Selection'!$P67=1,title638,IF('Biogas Use Selection'!$P67=4,title639,\"\")))","v":"Heat "},{"$f":"VLOOKUP('Biogas Use Selection'!$Q67,'Biogas Use Selection'!$O71:Z75,3,FALSE)","v":0},{"$f":"VLOOKUP('Biogas Use Selection'!$Q67,'Biogas Use Selection'!$O71:Z75,4,FALSE)","v":"MJ/year/hh"},{"$f":"VLOOKUP('Biogas Use Selection'!$Q67,'Biogas Use Selection'!$O71:Z75,9,FALSE)","v":0},{"$f":"VLOOKUP('Biogas Use Selection'!$Q67,'Biogas Use Selection'!$O71:Z75,10,FALSE)","v":"MJ/year/hh"},null,null,null,null,null,null,null,null,null,{"$f":"IF(OR('Biogas Use Selection'!$P67=5,'Biogas Use Selection'!$P67=2),title637,IF('Biogas Use Selection'!$P67=1,title638,IF('Biogas Use Selection'!$P67=4,title639)))","v":"Heat "},{"$f":"VLOOKUP('Biogas Use Selection'!$Q67,'Biogas Use Selection'!$O71:AN75,3,FALSE)","v":0},{"$f":"VLOOKUP('Biogas Use Selection'!$Q67,'Biogas Use Selection'!$O71:AN75,4,FALSE)","v":"MJ/year/hh"},{"$f":"VLOOKUP('Biogas Use Selection'!$Q67,'Biogas Use Selection'!$O71:AN75,9,FALSE)","v":0},{"$f":"VLOOKUP('Biogas Use Selection'!$Q67,'Biogas Use Selection'!$O71:AN75,10,FALSE)","v":"MJ/year/hh"},null,null,null,null,null,null,null,null,null,{"$f":"IF(OR('Biogas Use Selection'!$P67=5,'Biogas Use Selection'!$P67=2),title637,IF('Biogas Use Selection'!$P67=1,title638,IF('Biogas Use Selection'!$P67=4,title639)))","v":"Heat "},{"$f":"VLOOKUP('Biogas Use Selection'!$Q67,'Biogas Use Selection'!$O71:BB75,3,FALSE)","v":0},{"$f":"VLOOKUP('Biogas Use Selection'!$Q67,'Biogas Use Selection'!$O71:BB75,4,FALSE)","v":"MJ/year/hh"},{"$f":"VLOOKUP('Biogas Use Selection'!$Q67,'Biogas Use Selection'!$O71:BB75,9,FALSE)","v":0},{"$f":"VLOOKUP('Biogas Use Selection'!$Q67,'Biogas Use Selection'!$O71:BB75,10,FALSE)","v":"MJ/year/hh"},null,null,null,null,null,null,null,null,null,{"$f":"IF(OR('Biogas Use Selection'!$P67=5,'Biogas Use Selection'!$P67=2),title637,IF('Biogas Use Selection'!$P67=1,title638,IF('Biogas Use Selection'!$P67=4,title639)))","v":"Heat "},{"$f":"VLOOKUP('Biogas Use Selection'!$Q67,'Biogas Use Selection'!$O71:BP75,3,FALSE)","v":0},{"$f":"VLOOKUP('Biogas Use Selection'!$Q67,'Biogas Use Selection'!$O71:BP75,4,FALSE)","v":"MJ/year/hh"},{"$f":"VLOOKUP('Biogas Use Selection'!$Q67,'Biogas Use Selection'!$O71:BP75,9,FALSE)","v":0},{"$f":"VLOOKUP('Biogas Use Selection'!$Q67,'Biogas Use Selection'!$O71:BP75,10,FALSE)","v":"MJ/year/hh"}]
[null,null,null,null,null,null,null,null,null,null,null,null,null,null,null,null,null,null,null,null,null,null,null,null,null,null,null,null,null,null,null,null,null,null,{"$f":"IF(AJ204=0,\"\",title300)","v":""},{"$f":"VLOOKUP('Biogas Use Selection'!$Q67,'Biogas Use Selection'!$O71:Z75,5,FALSE)","v":0},{"$f":"VLOOKUP('Biogas Use Selection'!$Q67,'Biogas Use Selection'!$O71:Z75,6,FALSE)","v":"kWh/year/hh"},{"$f":"VLOOKUP('Biogas Use Selection'!$Q67,'Biogas Use Selection'!$O71:Z75,11,FALSE)","v":0},{"$f":"VLOOKUP('Biogas Use Selection'!$Q67,'Biogas Use Selection'!$O71:Z75,12,FALSE)","v":"kWh/year/ind"},null,null,null,null,null,null,null,null,null,{"$f":"IF(AX204=0,\"\",title300)","v":""},{"$f":"VLOOKUP('Biogas Use Selection'!$Q67,'Biogas Use Selection'!$O71:AN75,5,FALSE)","v":0},{"$f":"VLOOKUP('Biogas Use Selection'!$Q67,'Biogas Use Selection'!$O71:AN75,6,FALSE)","v":"kWh/year/hh"},{"$f":"VLOOKUP('Biogas Use Selection'!$Q67,'Biogas Use Selection'!$O71:AN75,11,FALSE)","v":0},{"$f":"VLOOKUP('Biogas Use Selection'!$Q67,'Biogas Use Selection'!$O71:AN75,12,FALSE)","v":"kWh/year/ind"},null,null,null,null,null,null,null,null,null,{"$f":"IF(BL204=0,\"\",title300)","v":""},{"$f":"VLOOKUP('Biogas Use Selection'!$Q67,'Biogas Use Selection'!$O71:BB75,5,FALSE)","v":0},{"$f":"VLOOKUP('Biogas Use Selection'!$Q67,'Biogas Use Selection'!$O71:BB75,6,FALSE)","v":"kWh/year/hh"},{"$f":"VLOOKUP('Biogas Use Selection'!$Q67,'Biogas Use Selection'!$O71:BB75,11,FALSE)","v":0},{"$f":"VLOOKUP('Biogas Use Selection'!$Q67,'Biogas Use Selection'!$O71:BB75,12,FALSE)","v":"kWh/year/ind"},null,null,null,null,null,null,null,null,null,{"$f":"IF(BZ204=0,\"\",title300)","v":""},{"$f":"VLOOKUP('Biogas Use Selection'!$Q67,'Biogas Use Selection'!$O71:BP75,5,FALSE)","v":0},{"$f":"VLOOKUP('Biogas Use Selection'!$Q67,'Biogas Use Selection'!$O71:BP75,6,FALSE)","v":"kWh/year/hh"},{"$f":"VLOOKUP('Biogas Use Selection'!$Q67,'Biogas Use Selection'!$O71:BP75,11,FALSE)","v":0},{"$f":"VLOOKUP('Biogas Use Selection'!$Q67,'Biogas Use Selection'!$O71:BP75,12,FALSE)","v":"kWh/year/ind"}]
[null,null,null,null,null,null,null,null,null,null,null,null,null,null,null,null,null,null,null,null,null,null,null,null,null,null,null,null,null,null,null,null,null,null,{"$f":"title53","v":"Expenditure Heat"},{"$f":"VLOOKUP('Biogas Use Selection'!$Q67,'Biogas Use Selection'!$O71:Z75,7,FALSE)","v":0},{"$f":"title669","v":"USD/year/ind"},{"$f":"VLOOKUP('Biogas Use Selection'!$Q67,'Biogas Use Selection'!$O71:AA75,13,FALSE)","v":0},{"$f":"title669","v":"USD/year/ind"},null,null,null,null,null,null,null,null,null,{"$f":"title53","v":"Expenditure Heat"},{"$f":"VLOOKUP('Biogas Use Selection'!$Q67,'Biogas Use Selection'!$O71:AN75,7,FALSE)","v":0},{"$f":"title669","v":"USD/year/ind"},{"$f":"VLOOKUP('Biogas Use Selection'!$Q67,'Biogas Use Selection'!$O71:AO75,13,FALSE)","v":0},{"$f":"title669","v":"USD/year/ind"},null,null,null,null,null,null,null,null,null,{"$f":"title53","v":"Expenditure Heat"},{"$f":"VLOOKUP('Biogas Use Selection'!$Q67,'Biogas Use Selection'!$O71:BB75,7,FALSE)","v":0},{"$f":"title669","v":"USD/year/ind"},{"$f":"VLOOKUP('Biogas Use Selection'!$Q67,'Biogas Use Selection'!$O71:BC75,13,FALSE)","v":0},{"$f":"title669","v":"USD/year/ind"},null,null,null,null,null,null,null,null,null,{"$f":"title53","v":"Expenditure Heat"},{"$f":"VLOOKUP('Biogas Use Selection'!$Q67,'Biogas Use Selection'!$O71:BP75,7,FALSE)","v":0},{"$f":"title669","v":"USD/year/ind"},{"$f":"VLOOKUP('Biogas Use Selection'!$Q67,'Biogas Use Selection'!$O71:BQ75,13,FALSE)","v":0},{"$f":"title669","v":"USD/year/ind"}]
[null,null,null,null,null,null,null,null,null,null,null,null,null,null,null,null,null,null,null,null,null,null,null,null,null,null,null,null,null,null,null,null,null,null,{"$f":"title54","v":"Expenditure Electricity"},{"$f":"VLOOKUP('Biogas Use Selection'!$Q67,'Biogas Use Selection'!$O71:Z75,8,FALSE)","v":0},{"$f":"title669","v":"USD/year/ind"},{"$f":"VLOOKUP('Biogas Use Selection'!$Q67,'Biogas Use Selection'!$O71:AB75,14,FALSE)","v":0},{"$f":"title669","v":"USD/year/ind"},null,null,null,null,null,null,null,null,null,{"$f":"title54","v":"Expenditure Electricity"},{"$f":"VLOOKUP('Biogas Use Selection'!$Q67,'Biogas Use Selection'!$O71:AN75,8,FALSE)","v":0},{"$f":"title669","v":"USD/year/ind"},{"$f":"VLOOKUP('Biogas Use Selection'!$Q67,'Biogas Use Selection'!$O71:AP75,14,FALSE)","v":0},{"$f":"title669","v":"USD/year/ind"},null,null,null,null,null,null,null,null,null,{"$f":"title54","v":"Expenditure Electricity"},{"$f":"VLOOKUP('Biogas Use Selection'!$Q67,'Biogas Use Selection'!$O71:BB75,8,FALSE)","v":0},{"$f":"title669","v":"USD/year/ind"},{"$f":"VLOOKUP('Biogas Use Selection'!$Q67,'Biogas Use Selection'!$O71:BD75,14,FALSE)","v":0},{"$f":"title669","v":"USD/year/ind"},null,null,null,null,null,null,null,null,null,{"$f":"title54","v":"Expenditure Electricity"},{"$f":"VLOOKUP('Biogas Use Selection'!$Q67,'Biogas Use Selection'!$O71:BP75,8,FALSE)","v":0},{"$f":"title669","v":"USD/year/ind"},{"$f":"VLOOKUP('Biogas Use Selection'!$Q67,'Biogas Use Selection'!$O71:BR75,14,FALSE)","v":0},{"$f":"title669","v":"USD/year/ind"}]
[null,null,null,null,null,null,null,null,null,null,null,null,null,null,null,null,null,null,null,null,null,null,null,null,null,null,null,null,null,null,null,null,null,null,{"$f":"AI203","v":"Heat "},null,{"$f":"title248&\" 1\"","v":"Size 1"},{"$f":"title248&\" 2\"","v":"Size 2"},{"$f":"title248&\" 3\"","v":"Size 3"},{"$f":"title248&\" 4\"","v":"Size 4"},null,null,null,null,null,null,null,null,{"$f":"AW203","v":"Heat "},null,{"$f":"title248&\" 1\"","v":"Size 1"},{"$f":"title248&\" 2\"","v":"Size 2"},{"$f":"title248&\" 3\"","v":"Size 3"},{"$f":"title248&\" 4\"","v":"Size 4"},null,null,null,null,null,null,null,null,{"$f":"BK203","v":"Heat "},null,{"$f":"title248&\" 1\"","v":"Size 1"},{"$f":"title248&\" 2\"","v":"Size 2"},{"$f":"title248&\" 3\"","v":"Size 3"},{"$f":"title248&\" 4\"","v":"Size 4"},null,null,null,null,null,null,null,null,{"$f":"BY203","v":"Heat "},null,{"$f":"title248&\" 1\"","v":"Size 1"},{"$f":"title248&\" 2\"","v":"Size 2"},{"$f":"title248&\" 3\"","v":"Size 3"},{"$f":"title248&\" 4\"","v":"Size 4"}]
[null,null,null,null,null,null,null,null,null,null,null,null,null,null,null,null,null,null,null,null,null,null,null,null,null,null,null,null,null,null,null,null,null,null,null,{"$f":"title52","v":"Households"},{"$f":"ROUNDDOWN(AK199/AJ203,0)","v":{"$error":"#DIV/0!"}},{"$f":"ROUNDDOWN(AL199/AJ203,0)","v":{"$error":"#DIV/0!"}},{"$f":"ROUNDDOWN(AM199/AJ203,0)","v":{"$error":"#DIV/0!"}},{"$f":"ROUNDDOWN(AN199/AJ203,0)","v":{"$error":"#DIV/0!"}},null,null,null,null,null,null,null,null,null,{"$f":"title52","v":"Households"},{"$f":"ROUNDDOWN(AY199/AX203,0)","v":{"$error":"#DIV/0!"}},{"$f":"ROUNDDOWN(AZ199/AX203,0)","v":{"$error":"#DIV/0!"}},{"$f":"ROUNDDOWN(BA199/AX203,0)","v":{"$error":"#DIV/0!"}},{"$f":"ROUNDDOWN(BB199/AX203,0)","v":{"$error":"#DIV/0!"}},null,null,null,null,null,null,null,null,null,{"$f":"title52","v":"Households"},{"$f":"ROUNDDOWN(BM199/BL203,0)","v":{"$error":"#DIV/0!"}},{"$f":"ROUNDDOWN(BN199/BL203,0)","v":{"$error":"#DIV/0!"}},{"$f":"ROUNDDOWN(BO199/BL203,0)","v":{"$error":"#DIV/0!"}},{"$f":"ROUNDDOWN(BP199/BL203,0)","v":{"$error":"#DIV/0!"}},null,null,null,null,null,null,null,null,null,{"$f":"title52","v":"Households"},{"$f":"ROUNDDOWN(CA199/BZ203,0)","v":{"$error":"#DIV/0!"}},{"$f":"ROUNDDOWN(CB199/BZ203,0)","v":{"$error":"#DIV/0!"}},{"$f":"ROUNDDOWN(CC199/BZ203,0)","v":{"$error":"#DIV/0!"}},{"$f":"ROUNDDOWN(CD199/BZ203,0)","v":{"$error":"#DIV/0!"}}]
[null,null,null,null,null,null,null,null,null,null,null,null,null,null,null,null,null,null,null,null,null,null,null,null,null,null,null,null,null,null,null,null,null,null,null,{"$f":"title55","v":"Industries"},{"$f":"ROUNDDOWN(AK199/AL203,0)","v":{"$error":"#DIV/0!"}},{"$f":"ROUNDDOWN(AL199/AL203,0)","v":{"$error":"#DIV/0!"}},{"$f":"ROUNDDOWN(AM199/AL203,0)","v":{"$error":"#DIV/0!"}},{"$f":"ROUNDDOWN(AN199/AL203,0)","v":{"$error":"#DIV/0!"}},null,null,null,null,null,null,null,null,null,{"$f":"title55","v":"Industries"},{"$f":"ROUNDDOWN(AY199/AZ203,0)","v":{"$error":"#DIV/0!"}},{"$f":"ROUNDDOWN(AZ199/AZ203,0)","v":{"$error":"#DIV/0!"}},{"$f":"ROUNDDOWN(BA199/AZ203,0)","v":{"$error":"#DIV/0!"}},{"$f":"ROUNDDOWN(BB199/AZ203,0)","v":{"$error":"#DIV/0!"}},null,null,null,null,null,null,null,null,null,{"$f":"title55","v":"Industries"},{"$f":"ROUNDDOWN(BM199/BN203,0)","v":{"$error":"#DIV/0!"}},{"$f":"ROUNDDOWN(BN199/BN203,0)","v":{"$error":"#DIV/0!"}},{"$f":"ROUNDDOWN(BO199/BN203,0)","v":{"$error":"#DIV/0!"}},{"$f":"ROUNDDOWN(BP199/BN203,0)","v":{"$error":"#DIV/0!"}},null,null,null,null,null,null,null,null,null,{"$f":"title55","v":"Industries"},{"$f":"ROUNDDOWN(CA199/CB203,0)","v":{"$error":"#DIV/0!"}},{"$f":"ROUNDDOWN(CB199/CB203,0)","v":{"$error":"#DIV/0!"}},{"$f":"ROUNDDOWN(CC199/CB203,0)","v":{"$error":"#DIV/0!"}},{"$f":"ROUNDDOWN(CD199/CB203,0)","v":{"$error":"#DIV/0!"}}]
[null,null,null,null,null,null,null,null,null,null,null,null,null,null,null,null,null,null,null,null,null,null,null,null,null,null,null,null,null,null,null,null,null,null,{"$f":"title640","v":"Expenditure Traditional"},{"$f":"title52","v":"Households"},{"$f":"AK208*AJ205","v":{"$error":"#DIV/0!"}},{"$f":"AL208*AJ205","v":{"$error":"#DIV/0!"}},{"$f":"AM208*AJ205","v":{"$error":"#DIV/0!"}},{"$f":"AN208*AJ205","v":{"$error":"#DIV/0!"}},null,null,null,null,null,null,null,null,{"$f":"title640","v":"Expenditure Traditional"},{"$f":"title52","v":"Households"},{"$f":"AY208*AX205","v":{"$error":"#DIV/0!"}},{"$f":"AZ208*AX205","v":{"$error":"#DIV/0!"}},{"$f":"BA208*AX205","v":{"$error":"#DIV/0!"}},{"$f":"BB208*AX205","v":{"$error":"#DIV/0!"}},null,null,null,null,null,null,null,null,{"$f":"title640","v":"Expenditure Traditional"},{"$f":"title52","v":"Households"},{"$f":"BM208*BL205","v":{"$error":"#DIV/0!"}},{"$f":"BN208*BL205","v":{"$error":"#DIV/0!"}},{"$f":"BO208*BL205","v":{"$error":"#DIV/0!"}},{"$f":"BP208*BL205","v":{"$error":"#DIV/0!"}},null,null,null,null,null,null,null,null,{"$f":"title640","v":"Expenditure Traditional"},{"$f":"title52","v":"Households"},{"$f":"CA208*BZ205","v":{"$error":"#DIV/0!"}},{"$f":"CB208*BZ205","v":{"$error":"#DIV/0!"}},{"$f":"CC208*BZ205","v":{"$error":"#DIV/0!"}},{"$f":"CD208*BZ205","v":{"$error":"#DIV/0!"}}]
[null,null,null,null,null,null,null,null,null,null,null,null,null,null,null,null,null,null,null,null,null,null,null,null,null,null,null,null,null,null,null,null,null,null,null,{"$f":"title55","v":"Industries"},{"$f":"AK209*AL205","v":{"$error":"#DIV/0!"}},{"$f":"AL209*AL205","v":{"$error":"#DIV/0!"}},{"$f":"AM209*AL205","v":{"$error":"#DIV/0!"}},{"$f":"AN209*AL205","v":{"$error":"#DIV/0!"}},null,null,null,null,null,null,null,null,null,{"$f":"title55","v":"Industries"},{"$f":"AY209*AZ205","v":{"$error":"#DIV/0!"}},{"$f":"AZ209*AZ205","v":{"$error":"#DIV/0!"}},{"$f":"BA209*AZ205","v":{"$error":"#DIV/0!"}},{"$f":"BB209*AZ205","v":{"$error":"#DIV/0!"}},null,null,null,null,null,null,null,null,null,{"$f":"title55","v":"Industries"},{"$f":"BM209*BN205","v":{"$error":"#DIV/0!"}},{"$f":"BN209*BN205","v":{"$error":"#DIV/0!"}},{"$f":"BO209*BN205","v":{"$error":"#DIV/0!"}},{"$f":"BP209*BN205","v":{"$error":"#DIV/0!"}},null,null,null,null,null,null,null,null,null,{"$f":"title55","v":"Industries"},{"$f":"CA209*CB205","v":{"$error":"#DIV/0!"}},{"$f":"CB209*CB205","v":{"$error":"#DIV/0!"}},{"$f":"CC209*CB205","v":{"$error":"#DIV/0!"}},{"$f":"CD209*CB205","v":{"$error":"#DIV/0!"}}]
[null,null,null,null,null,null,null,null,null,null,null,null,null,null,null,null,null,null,null,null,null,null,null,null,null,null,null,null,null,null,null,null,null,null,{"$f":"title641","v":"Expenditure Biogas Tech."},null,{"$f":"IF('Biogas Use Selection'!$P67=1,AR167,IF('Biogas Use Selection'!$P67=2,AQ163,IF('Biogas Use Selection'!$P67=3,0,IF('Biogas Use Selection'!$P67=4,AQ164))))*AK199","v":0},{"$f":"IF('Biogas Use Selection'!$P67=1,AR167,IF('Biogas Use Selection'!$P67=2,AQ163,IF('Biogas Use Selection'!$P67=3,0,IF('Biogas Use Selection'!$P67=4,AQ164))))*AL199","v":0},{"$f":"IF('Biogas Use Selection'!$P67=1,AR167,IF('Biogas Use Selection'!$P67=2,AQ163,IF('Biogas Use Selection'!$P67=3,0,IF('Biogas Use Selection'!$P67=4,AQ164))))*AM199","v":0},{"$f":"IF('Biogas Use Selection'!$P67=1,AR167,IF('Biogas Use Selection'!$P67=2,AQ163,IF('Biogas Use Selection'!$P67=3,0,IF('Biogas Use Selection'!$P67=4,AQ164))))*AN199","v":0},null,null,null,null,null,null,null,null,{"$f":"title641","v":"Expenditure Biogas Tech."},null,{"$f":"IF('Biogas Use Selection'!$P67=1,BF167,IF('Biogas Use Selection'!$P67=2,BE163,IF('Biogas Use Selection'!$P67=3,0,IF('Biogas Use Selection'!$P67=4,BE164))))*AY199","v":0},{"$f":"IF('Biogas Use Selection'!$P67=1,BF167,IF('Biogas Use Selection'!$P67=2,BE163,IF('Biogas Use Selection'!$P67=3,0,IF('Biogas Use Selection'!$P67=4,BE164))))*AZ199","v":0},{"$f":"IF('Biogas Use Selection'!$P67=1,BF167,IF('Biogas Use Selection'!$P67=2,BE163,IF('Biogas Use Selection'!$P67=3,0,IF('Biogas Use Selection'!$P67=4,BE164))))*BA199","v":0},{"$f":"IF('Biogas Use Selection'!$P67=1,BF167,IF('Biogas Use Selection'!$P67=2,BE163,IF('Biogas Use Selection'!$P67=3,0,IF('Biogas Use Selection'!$P67=4,BE164))))*BB199","v":0},null,null,null,null,null,null,null,null,{"$f":"title641","v":"Expenditure Biogas Tech."},null,{"$f":"IF('Biogas Use Selection'!$P67=1,BT167,IF('Biogas Use Selection'!$P67=2,BS163,IF('Biogas Use Selection'!$P67=3,0,IF('Biogas Use Selection'!$P67=4,BS164))))*BM199","v":0},{"$f":"IF('Biogas Use Selection'!$P67=1,BT167,IF('Biogas Use Selection'!$P67=2,BS163,IF('Biogas Use Selection'!$P67=3,0,IF('Biogas Use Selection'!$P67=4,BS164))))*BN199","v":0},{"$f":"IF('Biogas Use Selection'!$P67=1,BT167,IF('Biogas Use Selection'!$P67=2,BS163,IF('Biogas Use Selection'!$P67=3,0,IF('Biogas Use Selection'!$P67=4,BS164))))*BO199","v":0},{"$f":"IF('Biogas Use Selection'!$P67=1,BT167,IF('Biogas Use Selection'!$P67=2,BS163,IF('Biogas Use Selection'!$P67=3,0,IF('Biogas Use Selection'!$P67=4,BS164))))*BP199","v":0},null,null,null,null,null,null,null,null,{"$f":"title641","v":"Expenditure Biogas Tech."},null,{"$f":"IF('Biogas Use Selection'!$P67=1,CH167,IF('Biogas Use Selection'!$P67=2,CG163,IF('Biogas Use Selection'!$P67=3,0,IF('Biogas Use Selection'!$P67=4,CG164))))*CA199","v":0},{"$f":"IF('Biogas Use Selection'!$P67=1,CH167,IF('Biogas Use Selection'!$P67=2,CG163,IF('Biogas Use Selection'!$P67=3,0,IF('Biogas Use Selection'!$P67=4,CG164))))*CB199","v":0},{"$f":"IF('Biogas Use Selection'!$P67=1,CH167,IF('Biogas Use Selection'!$P67=2,CG163,IF('Biogas Use Selection'!$P67=3,0,IF('Biogas Use Selection'!$P67=4,CG164))))*CC199","v":0},{"$f":"IF('Biogas Use Selection'!$P67=1,CH167,IF('Biogas Use Selection'!$P67=2,CG163,IF('Biogas Use Selection'!$P67=3,0,IF('Biogas Use Selection'!$P67=4,CG164))))*CD199","v":0}]
[null,null,null,null,null,null,null,null,null,null,null,null,null,null,null,null,null,null,null,null,null,null,null,null,null,null,null,null,null,null,null,null,null,null,{"$f":"title642","v":"Electricity "},{"$f":"title52","v":"Households"},{"$f":"IFERROR(ROUNDDOWN(AK200/AJ204,0),0)","v":0},{"$f":"IFERROR(ROUNDDOWN(AL200/AJ204,0),0)","v":0},{"$f":"IFERROR(ROUNDDOWN(AM200/AJ204,0),0)","v":0},{"$f":"IFERROR(ROUNDDOWN(AN200/AJ204,0),0)","v":0},null,null,null,null,null,null,null,null,{"$f":"title642","v":"Electricity "},{"$f":"title52","v":"Households"},{"$f":"IFERROR(ROUNDDOWN(AY200/AX204,0),0)","v":0},{"$f":"IFERROR(ROUNDDOWN(AZ200/AX204,0),0)","v":0},{"$f":"IFERROR(ROUNDDOWN(BA200/AX204,0),0)","v":0},{"$f":"IFERROR(ROUNDDOWN(BB200/AX204,0),0)","v":0},null,null,null,null,null,null,null,null,{"$f":"title642","v":"Electricity "},{"$f":"title52","v":"Households"},{"$f":"IFERROR(ROUNDDOWN(BM200/BL204,0),0)","v":0},{"$f":"IFERROR(ROUNDDOWN(BN200/BL204,0),0)","v":0},{"$f":"IFERROR(ROUNDDOWN(BO200/BL204,0),0)","v":0},{"$f":"IFERROR(ROUNDDOWN(BP200/BL204,0),0)","v":0},null,null,null,null,null,null,null,null,{"$f":"title642","v":"Electricity "},{"$f":"title52","v":"Households"},{"$f":"IFERROR(ROUNDDOWN(CA200/BZ204,0),0)","v":0},{"$f":"IFERROR(ROUNDDOWN(CB200/BZ204,0),0)","v":0},{"$f":"IFERROR(ROUNDDOWN(CC200/BZ204,0),0)","v":0},{"$f":"IFERROR(ROUNDDOWN(CD200/BZ204,0),0)","v":0}]
[null,null,null,null,null,null,null,null,null,null,null,null,null,null,null,null,null,null,null,null,null,null,null,null,null,null,null,null,null,null,null,null,null,null,null,{"$f":"title55","v":"Industries"},{"$f":"IFERROR(ROUNDDOWN(AK200/AL204,0),0)","v":0},{"$f":"IFERROR(ROUNDDOWN(AL200/AL204,0),0)","v":0},{"$f":"IFERROR(ROUNDDOWN(AM200/AL204,0),0)","v":0},{"$f":"IFERROR(ROUNDDOWN(AN200/AL204,0),0)","v":0},null,null,null,null,null,null,null,null,null,{"$f":"title55","v":"Industries"},{"$f":"IFERROR(ROUNDDOWN(AY200/AZ204,0),0)","v":0},{"$f":"IFERROR(ROUNDDOWN(AZ200/AZ204,0),0)","v":0},{"$f":"IFERROR(ROUNDDOWN(BA200/AZ204,0),0)","v":0},{"$f":"IFERROR(ROUNDDOWN(BB200/AZ204,0),0)","v":0},null,null,null,null,null,null,null,null,null,{"$f":"title55","v":"Industries"},{"$f":"IFERROR(ROUNDDOWN(BM200/BN204,0),0)","v":0},{"$f":"IFERROR(ROUNDDOWN(BN200/BN204,0),0)","v":0},{"$f":"IFERROR(ROUNDDOWN(BO200/BN204,0),0)","v":0},{"$f":"IFERROR(ROUNDDOWN(BP200/BN204,0),0)","v":0},null,null,null,null,null,null,null,null,null,{"$f":"title55","v":"Industries"},{"$f":"IFERROR(ROUNDDOWN(CA200/CB204,0),0)","v":0},{"$f":"IFERROR(ROUNDDOWN(CB200/CB204,0),0)","v":0},{"$f":"IFERROR(ROUNDDOWN(CC200/CB204,0),0)","v":0},{"$f":"IFERROR(ROUNDDOWN(CD200/CB204,0),0)","v":0}]
[null,null,null,null,null,null,null,null,null,null,null,null,null,null,null,null,null,null,null,null,null,null,null,null,null,null,null,null,null,null,null,null,null,null,{"$f":"title640","v":"Expenditure Traditional"},{"$f":"title52","v":"Households"},{"$f":"AK213*AJ206","v":0},{"$f":"AL213*AJ206","v":0},{"$f":"AM213*AJ206","v":0},{"$f":"AN213*AJ206","v":0},null,null,null,null,null,null,null,null,{"$f":"title640","v":"Expenditure Traditional"},{"$f":"title52","v":"Households"},{"$f":"AY213*AX206","v":0},{"$f":"AZ213*AX206","v":0},{"$f":"BA213*AX206","v":0},{"$f":"BB213*AX206","v":0},null,null,null,null,null,null,null,null,{"$f":"title640","v":"Expenditure Traditional"},{"$f":"title52","v":"Households"},{"$f":"BM213*BL206","v":0},{"$f":"BN213*BL206","v":0},{"$f":"BO213*BL206","v":0},{"$f":"BP213*BL206","v":0},null,null,null,null,null,null,null,null,{"$f":"title640","v":"Expenditure Traditional"},{"$f":"title52","v":"Households"},{"$f":"CA213*BZ206","v":0},{"$f":"CB213*BZ206","v":0},{"$f":"CC213*BZ206","v":0},{"$f":"CD213*BZ206","v":0}]
[null,null,null,null,null,null,null,null,null,null,null,null,null,null,null,null,null,null,null,null,null,null,null,null,null,null,null,null,null,null,null,null,null,null,null,{"$f":"title55","v":"Industries"},{"$f":"AK214*AL206","v":0},{"$f":"AL214*AL206","v":0},{"$f":"AM214*AL206","v":0},{"$f":"AN214*AL206","v":0},null,null,null,null,null,null,null,null,null,{"$f":"title55","v":"Industries"},{"$f":"AY214*AZ206","v":0},{"$f":"AZ214*AZ206","v":0},{"$f":"BA214*AZ206","v":0},{"$f":"BB214*AZ206","v":0},null,null,null,null,null,null,null,null,null,{"$f":"title55","v":"Industries"},{"$f":"BM214*BN206","v":0},{"$f":"BN214*BN206","v":0},{"$f":"BO214*BN206","v":0},{"$f":"BP214*BN206","v":0},null,null,null,null,null,null,null,null,null,{"$f":"title55","v":"Industries"},{"$f":"CA214*CB206","v":0},{"$f":"CB214*CB206","v":0},{"$f":"CC214*CB206","v":0},{"$f":"CD214*CB206","v":0}]
[null,null,null,null,null,null,null,null,null,null,null,null,null,null,null,null,null,null,null,null,null,null,null,null,null,null,null,null,null,null,null,null,null,null,{"$f":"title641","v":"Expenditure Biogas Tech."},null,{"$f":"IF(OR('Biogas Use Selection'!$P67=1,'Biogas Use Selection'!$P67=3),AQ162,IF(OR('Biogas Use Selection'!$P67=2,'Biogas Use Selection'!$P67=40),0))*AK200","v":{"$error":"#DIV/0!"}},{"$f":"IF(OR('Biogas Use Selection'!$P67=1,'Biogas Use Selection'!$P67=3),AQ162,IF(OR('Biogas Use Selection'!$P67=2,'Biogas Use Selection'!$P67=40),0))*AL200","v":{"$error":"#DIV/0!"}},{"$f":"IF(OR('Biogas Use Selection'!$P67=1,'Biogas Use Selection'!$P67=3),AQ162,IF(OR('Biogas Use Selection'!$P67=2,'Biogas Use Selection'!$P67=40),0))*AM200","v":{"$error":"#DIV/0!"}},{"$f":"IF(OR('Biogas Use Selection'!$P67=1,'Biogas Use Selection'!$P67=3),AQ162,IF(OR('Biogas Use Selection'!$P67=2,'Biogas Use Selection'!$P67=40),0))*AN200","v":{"$error":"#DIV/0!"}},null,null,null,null,null,null,null,null,{"$f":"title641","v":"Expenditure Biogas Tech."},null,{"$f":"IF(OR('Biogas Use Selection'!$P67=1,'Biogas Use Selection'!$P67=3),BE162,IF(OR('Biogas Use Selection'!$P67=2,'Biogas Use Selection'!$P67=40),0))*AY200","v":{"$error":"#DIV/0!"}},{"$f":"IF(OR('Biogas Use Selection'!$P67=1,'Biogas Use Selection'!$P67=3),BE162,IF(OR('Biogas Use Selection'!$P67=2,'Biogas Use Selection'!$P67=40),0))*AZ200","v":{"$error":"#DIV/0!"}},{"$f":"IF(OR('Biogas Use Selection'!$P67=1,'Biogas Use Selection'!$P67=3),BE162,IF(OR('Biogas Use Selection'!$P67=2,'Biogas Use Selection'!$P67=40),0))*BA200","v":{"$error":"#DIV/0!"}},{"$f":"IF(OR('Biogas Use Selection'!$P67=1,'Biogas Use Selection'!$P67=3),BE162,IF(OR('Biogas Use Selection'!$P67=2,'Biogas Use Selection'!$P67=40),0))*BB200","v":{"$error":"#DIV/0!"}},null,null,null,null,null,null,null,null,{"$f":"title641","v":"Expenditure Biogas Tech."},null,{"$f":"IF(OR('Biogas Use Selection'!$P67=1,'Biogas Use Selection'!$P67=3),BS162,IF(OR('Biogas Use Selection'!$P67=2,'Biogas Use Selection'!$P67=40),0))*BM200","v":{"$error":"#DIV/0!"}},{"$f":"IF(OR('Biogas Use Selection'!$P67=1,'Biogas Use Selection'!$P67=3),BS162,IF(OR('Biogas Use Selection'!$P67=2,'Biogas Use Selection'!$P67=40),0))*BN200","v":{"$error":"#DIV/0!"}},{"$f":"IF(OR('Biogas Use Selection'!$P67=1,'Biogas Use Selection'!$P67=3),BS162,IF(OR('Biogas Use Selection'!$P67=2,'Biogas Use Selection'!$P67=40),0))*BO200","v":{"$error":"#DIV/0!"}},{"$f":"IF(OR('Biogas Use Selection'!$P67=1,'Biogas Use Selection'!$P67=3),BS162,IF(OR('Biogas Use Selection'!$P67=2,'Biogas Use Selection'!$P67=40),0))*BP200","v":{"$error":"#DIV/0!"}},null,null,null,null,null,null,null,null,{"$f":"title641","v":"Expenditure Biogas Tech."},null,{"$f":"IF(OR('Biogas Use Selection'!$P67=1,'Biogas Use Selection'!$P67=3),CG162,IF(OR('Biogas Use Selection'!$P67=2,'Biogas Use Selection'!$P67=40),0))*CA200","v":{"$error":"#DIV/0!"}},{"$f":"IF(OR('Biogas Use Selection'!$P67=1,'Biogas Use Selection'!$P67=3),CG162,IF(OR('Biogas Use Selection'!$P67=2,'Biogas Use Selection'!$P67=40),0))*CB200","v":{"$error":"#DIV/0!"}},{"$f":"IF(OR('Biogas Use Selection'!$P67=1,'Biogas Use Selection'!$P67=3),CG162,IF(OR('Biogas Use Selection'!$P67=2,'Biogas Use Selection'!$P67=40),0))*CC200","v":{"$error":"#DIV/0!"}},{"$f":"IF(OR('Biogas Use Selection'!$P67=1,'Biogas Use Selection'!$P67=3),CG162,IF(OR('Biogas Use Selection'!$P67=2,'Biogas Use Selection'!$P67=40),0))*CD200","v":{"$error":"#DIV/0!"}}]
[]
[null,null,null,null,null,null,null,null,null,null,null,null,null,null,null,null,null,null,null,null,null,null,null,null,null,null,null,null,null,null,null,null,null,null,null,null,"FA_SIZE1_PS","FA_SIZE2_PS","FA_SIZE3_PS","FA_SIZE4_PS",null,null,null,null,null,null,null,null,null,null,"FA_SIZE1_PS","FA_SIZE2_PS","FA_SIZE3_PS","FA_SIZE4_PS",null,null,null,null,null,null,null,null,null,null,"FA_SIZE1_PS","FA_SIZE2_PS","FA_SIZE3_PS","FA_SIZE4_PS",null,null,null,null,null,null,null,null,null,null,"FA_SIZE1_PS","FA_SIZE2_PS","FA_SIZE3_PS","FA_SIZE4_PS"]
[null,null,null,null,null,null,null,null,null,null,null,null,null,null,null,null,null,null,null,null,null,null,null,null,null,null,null,null,null,null,null,null,null,null,"NPV",null,{"$f":"INDIRECT(AK219&AJ135&\"!D93\")","v":{"$error":"#DIV/0!"}},{"$f":"INDIRECT(AL219&AJ135&\"!D93\")","v":{"$error":"#DIV/0!"}},{"$f":"INDIRECT(AM219&AJ135&\"!D93\")","v":{"$error":"#DIV/0!"}},{"$f":"INDIRECT(AN219&AJ135&\"!D93\")","v":{"$error":"#DIV/0!"}},null,null,null,null,null,null,null,null,"NPV",null,{"$f":"INDIRECT(AY219&AX135&\"!D93\")","v":{"$error":"#DIV/0!"}},{"$f":"INDIRECT(AZ219&AX135&\"!D93\")","v":{"$error":"#DIV/0!"}},{"$f":"INDIRECT(BA219&AX135&\"!D93\")","v":{"$error":"#DIV/0!"}},{"$f":"INDIRECT(BB219&AX135&\"!D93\")","v":{"$error":"#DIV/0!"}},null,null,null,null,null,null,null,null,"NPV",null,{"$f":"INDIRECT(BM219&BL135&\"!D93\")","v":{"$error":"#DIV/0!"}},{"$f":"INDIRECT(BN219&BL135&\"!D93\")","v":{"$error":"#DIV/0!"}},{"$f":"INDIRECT(BO219&BL135&\"!D93\")","v":{"$error":"#DIV/0!"}},{"$f":"INDIRECT(BP219&BL135&\"!D93\")","v":{"$error":"#DIV/0!"}},null,null,null,null,null,null,null,null,"NPV",null,{"$f":"INDIRECT(CA219&BZ135&\"!D93\")","v":{"$error":"#DIV/0!"}},{"$f":"INDIRECT(CB219&BZ135&\"!D93\")","v":{"$error":"#DIV/0!"}},{"$f":"INDIRECT(CC219&BZ135&\"!D93\")","v":{"$error":"#DIV/0!"}},{"$f":"INDIRECT(CD219&BZ135&\"!D93\")","v":{"$error":"#DIV/0!"}}]
[null,null,null,null,null,null,null,null,null,null,null,null,null,null,null,null,null,null,null,null,null,null,null,null,null,null,null,null,null,null,null,null,null,null,"IRR",null,{"$f":"INDIRECT(AK219&AJ135&\"!D94\")","v":{"$error":"#DIV/0!"}},{"$f":"INDIRECT(AL219&AJ135&\"!D94\")","v":{"$error":"#DIV/0!"}},{"$f":"INDIRECT(AM219&AJ135&\"!D94\")","v":{"$error":"#DIV/0!"}},{"$f":"INDIRECT(AN219&AJ135&\"!D94\")","v":{"$error":"#DIV/0!"}},null,null,null,null,null,null,null,null,"IRR",null,{"$f":"INDIRECT(AY219&AX135&\"!D94\")","v":{"$error":"#DIV/0!"}},{"$f":"INDIRECT(AZ219&AX135&\"!D94\")","v":{"$error":"#DIV/0!"}},{"$f":"INDIRECT(BA219&AX135&\"!D94\")","v":{"$error":"#DIV/0!"}},{"$f":"INDIRECT(BB219&AX135&\"!D94\")","v":{"$error":"#DIV/0!"}},null,null,null,null,null,null,null,null,"IRR",null,{"$f":"INDIRECT(BM219&BL135&\"!D94\")","v":{"$error":"#DIV/0!"}},{"$f":"INDIRECT(BN219&BL135&\"!D94\")","v":{"$error":"#DIV/0!"}},{"$f":"INDIRECT(BO219&BL135&\"!D94\")","v":{"$error":"#DIV/0!"}},{"$f":"INDIRECT(BP219&BL135&\"!D94\")","v":{"$error":"#DIV/0!"}},null,null,null,null,null,null,null,null,"IRR",null,{"$f":"INDIRECT(CA219&BZ135&\"!D94\")","v":{"$error":"#DIV/0!"}},{"$f":"INDIRECT(CB219&BZ135&\"!D94\")","v":{"$error":"#DIV/0!"}},{"$f":"INDIRECT(CC219&BZ135&\"!D94\")","v":{"$error":"#DIV/0!"}},{"$f":"INDIRECT(CD219&BZ135&\"!D94\")","v":{"$error":"#DIV/0!"}}]
[]
[null,null,null,null,null,null,null,null,null,null,null,null,null,null,null,null,null,null,null,null,null,null,null,null,null,null,null,null,null,null,null,null,{"$f":"title98&\" 1\"","v":"Process 1"},true]
[null,null,null,null,null,null,null,null,null,null,null,null,null,null,null,null,null,null,null,null,null,null,null,null,null,null,null,null,null,null,null,null,{"$f":"title98&\" 2\"","v":"Process 2"},true]
[null,null,null,null,null,null,null,null,null,null,null,null,null,null,null,null,null,null,null,null,null,null,null,null,null,null,null,null,null,null,null,null,{"$f":"title98&\" 3\"","v":"Process 3"},true]
[null,null,null,null,null,null,null,null,null,null,null,null,null,null,null,null,null,null,null,null,null,null,null,null,null,null,null,null,null,null,null,null,{"$f":"title98&\" 4\"","v":"Process 4"},true]
[null,null,null,null,null,null,null,null,null,null,null,null,null,null,null,null,null,null,null,null,null,null,null,null,null,null,null,null,null,null,null,null,null,null,null,null,null,null,null,null,null,173,174]
[null,null,null,null,null,null,null,null,null,null,null,null,null,null,null,null,null,null,null,null,null,null,null,null,null,null,null,null,null,null,null,null,null,null,"Chart 1",{"$f":"title614","v":"Production cost"},null,null,null,null,null,"Data"]
[null,null,null,null,null,null,null,null,null,null,null,null,null,null,null,null,null,null,null,null,null,null,null,null,null,null,null,null,null,null,null,null,null,null,null,null,{"$f":"title248&\" 1\"","v":"Size 1"},{"$f":"title248&\" 2\"","v":"Size 2"},{"$f":"title248&\" 3\"","v":"Size 3"},{"$f":"title248&\" 4\"","v":"Size 4"},null,{"$f":"title614","v":"Production cost"},{"$f":"title248&\" 1\"","v":"Size 1"},{"$f":"title248&\" 2\"","v":"Size 2"},{"$f":"title248&\" 3\"","v":"Size 3"},{"$f":"title248&\" 4\"","v":"Size 4"}]
[null,null,null,null,null,null,null,null,null,null,null,null,null,null,null,null,null,null,null,null,null,null,null,null,null,null,null,null,null,null,null,null,"Option 1 -up",{"$f":"$AH223","v":true},{"$f":"IF($AH230,AP230,\"\")","v":"Process 1"},null,null,null,null,null,null,{"$f":"title98&\" 1\"","v":"Process 1"},{"$f":"INDIRECT(\"'Summary of results-comparative'!\"&AU230&$AP$227)","v":{"$error":"#DIV/0!"}},{"$f":"INDIRECT(\"'Summary of results-comparative'!\"&AV230&$AP$227)","v":{"$error":"#DIV/0!"}},{"$f":"INDIRECT(\"'Summary of results-comparative'!\"&AW230&$AP$227)","v":{"$error":"#DIV/0!"}},{"$f":"INDIRECT(\"'Summary of results-comparative'!\"&AX230&$AP$227)","v":{"$error":"#DIV/0!"}},"$AK$","$AL$","$AM$","$AN$"]
[null,null,null,null,null,null,null,null,null,null,null,null,null,null,null,null,null,null,null,null,null,null,null,null,null,null,null,null,null,null,null,null,"Option 1 -low",{"$f":"$AH223","v":true},"Process 1",null,null,null,null,null,null,{"$f":"title98&\" 1\"","v":"Process 1"},{"$f":"INDIRECT(\"'Summary of results-comparative'!\"&AU231&$AQ$227)","v":{"$error":"#DIV/0!"}},{"$f":"INDIRECT(\"'Summary of results-comparative'!\"&AV231&$AQ$227)","v":{"$error":"#DIV/0!"}},{"$f":"INDIRECT(\"'Summary of results-comparative'!\"&AW231&$AQ$227)","v":{"$error":"#DIV/0!"}},{"$f":"INDIRECT(\"'Summary of results-comparative'!\"&AX231&$AQ$227)","v":{"$error":"#DIV/0!"}},"$AK$","$AL$","$AM$","$AN$"]
[null,null,null,null,null,null,null,null,null,null,null,null,null,null,null,null,null,null,null,null,null,null,null,null,null,null,null,null,null,null,null,null,"Option 2 -up",{"$f":"$AH224","v":true},"Process 2",null,null,null,null,null,null,{"$f":"title98&\" 2\"","v":"Process 2"},{"$f":"INDIRECT(\"'Summary of results-comparative'!\"&AU232&$AP$227)","v":{"$error":"#DIV/0!"}},{"$f":"INDIRECT(\"'Summary of results-comparative'!\"&AV232&$AP$227)","v":{"$error":"#DIV/0!"}},{"$f":"INDIRECT(\"'Summary of results-comparative'!\"&AW232&$AP$227)","v":{"$error":"#DIV/0!"}},{"$f":"INDIRECT(\"'Summary of results-comparative'!\"&AX232&$AP$227)","v":{"$error":"#DIV/0!"}},"$AY$","$AZ$","$BA$","$BB$"]
[null,null,null,null,null,null,null,null,null,null,null,null,null,null,null,null,null,null,null,null,null,null,null,null,null,null,null,null,null,null,null,null,"Option 2 -low",{"$f":"$AH224","v":true},"Process 2",null,null,null,null,null,null,{"$f":"title98&\" 2\"","v":"Process 2"},{"$f":"INDIRECT(\"'Summary of results-comparative'!\"&AU233&$AQ$227)","v":{"$error":"#DIV/0!"}},{"$f":"INDIRECT(\"'Summary of results-comparative'!\"&AV233&$AQ$227)","v":{"$error":"#DIV/0!"}},{"$f":"INDIRECT(\"'Summary of results-comparative'!\"&AW233&$AQ$227)","v":{"$error":"#DIV/0!"}},{"$f":"INDIRECT(\"'Summary of results-comparative'!\"&AX233&$AQ$227)","v":{"$error":"#DIV/0!"}},"$AY$","$AZ$","$BA$","$BB$"]
[null,null,null,null,null,null,null,null,null,null,null,null,null,null,null,null,null,null,null,null,null,null,null,null,null,null,null,null,null,null,null,null,"Option 3 -up",{"$f":"$AH225","v":true},"Process 3",null,null,null,null,null,null,{"$f":"title98&\" 3\"","v":"Process 3"},{"$f":"INDIRECT(\"'Summary of results-comparative'!\"&AU234&$AP$227)","v":{"$error":"#DIV/0!"}},{"$f":"INDIRECT(\"'Summary of results-comparative'!\"&AV234&$AP$227)","v":{"$error":"#DIV/0!"}},{"$f":"INDIRECT(\"'Summary of results-comparative'!\"&AW234&$AP$227)","v":{"$error":"#DIV/0!"}},{"$f":"INDIRECT(\"'Summary of results-comparative'!\"&AX234&$AP$227)","v":{"$error":"#DIV/0!"}},"$BM$","$BN$","$BO$","$BP$"]
[null,null,null,null,null,null,null,null,null,null,null,null,null,null,null,null,null,null,null,null,null,null,null,null,null,null,null,null,null,null,null,null,"Option 3 -low",{"$f":"$AH225","v":true},"Process 3",null,null,null,null,null,null,{"$f":"title98&\" 3\"","v":"Process 3"},{"$f":"INDIRECT(\"'Summary of results-comparative'!\"&AU235&$AQ$227)","v":{"$error":"#DIV/0!"}},{"$f":"INDIRECT(\"'Summary of results-comparative'!\"&AV235&$AQ$227)","v":{"$error":"#DIV/0!"}},{"$f":"INDIRECT(\"'Summary of results-comparative'!\"&AW235&$AQ$227)","v":{"$error":"#DIV/0!"}},{"$f":"INDIRECT(\"'Summary of results-comparative'!\"&AX235&$AQ$227)","v":{"$error":"#DIV/0!"}},"$BM$","$BN$","$BO$","$BP$"]
[null,null,null,null,null,null,null,null,null,null,null,null,null,null,null,null,null,null,null,null,null,null,null,null,null,null,null,null,null,null,null,null,"Option 4 -up",{"$f":"$AH226","v":true},"Process 4",null,null,null,null,null,null,{"$f":"title98&\" 4\"","v":"Process 4"},{"$f":"INDIRECT(\"'Summary of results-comparative'!\"&AU236&$AP$227)","v":{"$error":"#DIV/0!"}},{"$f":"INDIRECT(\"'Summary of results-comparative'!\"&AV236&$AP$227)","v":{"$error":"#DIV/0!"}},{"$f":"INDIRECT(\"'Summary of results-comparative'!\"&AW236&$AP$227)","v":{"$error":"#DIV/0!"}},{"$f":"INDIRECT(\"'Summary of results-comparative'!\"&AX236&$AP$227)","v":{"$error":"#DIV/0!"}},"$CA$","$CB$","$CC$","$CD$"]
[null,null,null,null,null,null,null,null,null,null,null,null,null,null,null,null,null,null,null,null,null,null,null,null,null,null,null,null,null,null,null,null,"Option 4 -low",{"$f":"$AH226","v":true},"Process 4",null,null,null,null,null,null,{"$f":"title98&\" 4\"","v":"Process 4"},{"$f":"INDIRECT(\"'Summary of results-comparative'!\"&AU237&$AQ$227)","v":{"$error":"#DIV/0!"}},{"$f":"INDIRECT(\"'Summary of results-comparative'!\"&AV237&$AQ$227)","v":{"$error":"#DIV/0!"}},{"$f":"INDIRECT(\"'Summary of results-comparative'!\"&AW237&$AQ$227)","v":{"$error":"#DIV/0!"}},{"$f":"INDIRECT(\"'Summary of results-comparative'!\"&AX237&$AQ$227)","v":{"$error":"#DIV/0!"}},"$CA$","$CB$","$CC$","$CD$"]
[]
[]
[null,null,null,null,null,null,null,null,null,null,null,null,null,null,null,null,null,null,null,null,null,null,null,null,null,null,null,null,null,null,null,null,{"$f":"$AI$230","v":"Process 1"},null,null,null,{"$f":"$AI$232","v":"Process 2"},null,null,null,{"$f":"$AI$234","v":"Process 3"},null,null,null,{"$f":"$AI$236","v":"Process 4"}]
[null,null,null,null,null,null,null,null,null,null,null,null,null,null,null,null,null,null,null,null,null,null,null,null,null,null,null,null,null,null,null,null,{"$f":"title248&\" 1\"","v":"Size 1"},{"$f":"title248&\" 2\"","v":"Size 2"},{"$f":"title248&\" 3\"","v":"Size 3"},{"$f":"title248&\" 4\"","v":"Size 4"},{"$f":"title248&\" 1\"","v":"Size 1"},{"$f":"title248&\" 2\"","v":"Size 2"},{"$f":"title248&\" 3\"","v":"Size 3"},{"$f":"title248&\" 4\"","v":"Size 4"},{"$f":"title248&\" 1\"","v":"Size 1"},{"$f":"title248&\" 2\"","v":"Size 2"},{"$f":"title248&\" 3\"","v":"Size 3"},{"$f":"title248&\" 4\"","v":"Size 4"},{"$f":"title248&\" 1\"","v":"Size 1"},{"$f":"title248&\" 2\"","v":"Size 2"},{"$f":"title248&\" 3\"","v":"Size 3"},{"$f":"title248&\" 4\"","v":"Size 4"}]
[null,null,null,null,null,null,null,null,null,null,null,null,null,null,null,null,null,null,null,null,null,null,null,null,null,null,null,null,null,null,null,null,{"$f":"IF($AH230,AQ230,\"\")","v":{"$error":"#DIV/0!"}},{"$f":"IF($AH230,AR230,\"\")","v":{"$error":"#DIV/0!"}},{"$error":"#DIV/0!"},{"$error":"#DIV/0!"},{"$f":"IF($AH232,AQ232,\"\")","v":{"$error":"#DIV/0!"}},{"$error":"#DIV/0!"},{"$error":"#DIV/0!"},{"$error":"#DIV/0!"},{"$f":"IF($AH234,AQ234,\"\")","v":{"$error":"#DIV/0!"}},{"$error":"#DIV/0!"},{"$error":"#DIV/0!"},{"$error":"#DIV/0!"},{"$f":"IF($AH236,AQ236,\"\")","v":{"$error":"#DIV/0!"}},{"$error":"#DIV/0!"},{"$error":"#DIV/0!"},{"$error":"#DIV/0!"}]
[null,null,null,null,null,null,null,null,null,null,null,null,null,null,null,null,null,null,null,null,null,null,null,null,null,null,null,null,null,null,null,null,{"$error":"#DIV/0!"},{"$error":"#DIV/0!"},{"$error":"#DIV/0!"},{"$error":"#DIV/0!"},{"$error":"#DIV/0!"},{"$error":"#DIV/0!"},{"$error":"#DIV/0!"},{"$error":"#DIV/0!"},{"$error":"#DIV/0!"},{"$error":"#DIV/0!"},{"$error":"#DIV/0!"},{"$error":"#DIV/0!"},{"$error":"#DIV/0!"},{"$error":"#DIV/0!"},{"$error":"#DIV/0!"},{"$error":"#DIV/0!"}]
[null,null,null,null,null,null,null,null,null,null,null,null,null,null,null,null,null,null,null,null,null,null,null,null,null,null,null,null,null,null,{"$f":"AI175","v":"Electricity Selling Price"},{"$f":"AJ175","v":"(USD/kWh)"},{"$f":"$AK$175","v":0},{"$f":"$AK$175","v":0},0,0,0,0,0,0,0,0,0,0,0,0,0,0,0]
[]
[null,null,null,null,null,null,null,null,null,null,null,null,null,null,null,null,null,null,null,null,null,null,null,null,null,null,null,null,null,null,null,null,null,null,"Chart 2",null,null,null,null,null,null,"Data",157,"No. Plants"]
[null,null,null,null,null,null,null,null,null,null,null,null,null,null,null,null,null,null,null,null,null,null,null,null,null,null,null,null,null,null,null,null,null,null,null,{"$f":"title248&\" 1\"","v":"Size 1"},{"$f":"title248&\" 2\"","v":"Size 2"},{"$f":"title248&\" 3\"","v":"Size 3"},{"$f":"title248&\" 4\"","v":"Size 4"},null,null,{"$f":"title614","v":"Production cost"},{"$f":"title248&\" 1\"","v":"Size 1"},{"$f":"title248&\" 2\"","v":"Size 2"},{"$f":"title248&\" 3\"","v":"Size 3"},{"$f":"title248&\" 4\"","v":"Size 4"}]
[null,null,null,null,null,null,null,null,null,null,null,null,null,null,null,null,null,null,null,null,null,null,null,null,null,null,null,null,null,null,null,null,null,{"$f":"AH223","v":true},{"$f":"IF($AH248,$AP248,\"\")","v":"Process 1"},{"$f":"IF($AH248,AQ248,\"\")","v":{"$error":"#DIV/0!"}},{"$error":"#DIV/0!"},{"$error":"#DIV/0!"},{"$error":"#DIV/0!"},null,null,{"$f":"title98&\" 1\"","v":"Process 1"},{"$f":"INDIRECT(\"'Summary of results-comparative'!\"&AU248&$AQ$246)","v":{"$error":"#DIV/0!"}},{"$error":"#DIV/0!"},{"$error":"#DIV/0!"},{"$error":"#DIV/0!"},"$AK$","$AL$","$AM$","$AN$"]
[null,null,null,null,null,null,null,null,null,null,null,null,null,null,null,null,null,null,null,null,null,null,null,null,null,null,null,null,null,null,null,null,null,{"$f":"AH224","v":true},{"$f":"IF($AH249,$AP249,\"\")","v":"Process 2"},{"$error":"#DIV/0!"},{"$error":"#DIV/0!"},{"$error":"#DIV/0!"},{"$error":"#DIV/0!"},null,null,{"$f":"title98&\" 2\"","v":"Process 2"},{"$error":"#DIV/0!"},{"$error":"#DIV/0!"},{"$error":"#DIV/0!"},{"$error":"#DIV/0!"},"$AY$","$AZ$","$BA$","$BB$"]
[null,null,null,null,null,null,null,null,null,null,null,null,null,null,null,null,null,null,null,null,null,null,null,null,null,null,null,null,null,null,null,null,null,{"$f":"AH225","v":true},{"$f":"IF($AH250,$AP250,\"\")","v":"Process 3"},{"$error":"#DIV/0!"},{"$error":"#DIV/0!"},{"$error":"#DIV/0!"},{"$error":"#DIV/0!"},null,null,{"$f":"title98&\" 3\"","v":"Process 3"},{"$error":"#DIV/0!"},{"$error":"#DIV/0!"},{"$error":"#DIV/0!"},{"$error":"#DIV/0!"},"$BM$","$BN$","$BO$","$BP$"]
[null,null,null,null,null,null,null,null,null,null,null,null,null,null,null,null,null,null,null,null,null,null,null,null,null,null,null,null,null,null,null,null,null,{"$f":"AH226","v":true},{"$f":"IF($AH251,$AP251,\"\")","v":"Process 4"},{"$error":"#DIV/0!"},{"$error":"#DIV/0!"},{"$error":"#DIV/0!"},{"$error":"#DIV/0!"},null,null,{"$f":"title98&\" 4\"","v":"Process 4"},{"$error":"#DIV/0!"},{"$error":"#DIV/0!"},{"$error":"#DIV/0!"},{"$error":"#DIV/0!"},"$CA$","$CB$","$CC$","$CD$"]
[]
[]
[null,null,null,null,null,null,null,null,null,null,null,null,null,null,null,null,null,null,null,null,null,null,null,null,null,null,null,null,null,null,null,null,null,null,"Chart 3"]
[null,null,null,null,null,null,null,null,null,null,null,null,null,null,null,null,null,null,null,null,null,null,null,null,null,null,null,null,null,null,null,null,null,null,null,{"$f":"$AH$223","v":true},{"$f":"$AH$224","v":true},{"$f":"$AH$225","v":true},{"$f":"$AH$226","v":true}]
[null,null,null,null,null,null,null,null,null,null,null,null,null,null,null,null,null,null,null,null,null,null,null,null,null,null,null,null,null,null,null,null,null,null,null,{"$f":"IF(AJ255,$AG$223,\"\")","v":"Process 1"},{"$f":"IF(AK255,$AG$224,\"\")","v":"Process 2"},{"$f":"IF(AL255,$AG$225,\"\")","v":"Process 3"},{"$f":"IF(AM255,$AG$226,\"\")","v":"Process 4"}]
[null,null,null,null,null,null,null,null,null,null,null,null,null,null,null,null,null,null,null,null,null,null,null,null,null,null,null,null,null,null,null,null,null,null,"N (%)",{"$f":"IF(AJ$255,AQ168,\"\")","v":{"$error":"#DIV/0!"}},{"$f":"IF(AK$255,BE168,\"\")","v":{"$error":"#DIV/0!"}},{"$f":"IF(AL$255,BS168,\"\")","v":{"$error":"#DIV/0!"}},{"$f":"IF(AM$255,CG168,\"\")","v":{"$error":"#DIV/0!"}}]
[null,null,null,null,null,null,null,null,null,null,null,null,null,null,null,null,null,null,null,null,null,null,null,null,null,null,null,null,null,null,null,null,null,null,"P (%)",{"$f":"IF(AJ$255,AQ169,\"\")","v":{"$error":"#DIV/0!"}},{"$f":"IF(AK$255,BE169,\"\")","v":{"$error":"#DIV/0!"}},{"$f":"IF(AL$255,BS169,\"\")","v":{"$error":"#DIV/0!"}},{"$f":"IF(AM$255,CG169,\"\")","v":{"$error":"#DIV/0!"}}]
[null,null,null,null,null,null,null,null,null,null,null,null,null,null,null,null,null,null,null,null,null,null,null,null,null,null,null,null,null,null,null,null,null,null,"K (%)",{"$f":"IF(AJ$255,AQ170,\"\")","v":{"$error":"#DIV/0!"}},{"$f":"IF(AK$255,BE170,\"\")","v":{"$error":"#DIV/0!"}},{"$f":"IF(AL$255,BS170,\"\")","v":{"$error":"#DIV/0!"}},{"$f":"IF(AM$255,CG170,\"\")","v":{"$error":"#DIV/0!"}}]
[null,null,null,null,null,null,null,null,null,null,null,null,null,null,null,null,null,null,null,null,null,null,null,null,null,null,null,null,null,null,null,null,null,null,null,null,null,null,null,null,null,"Data",208,{"$f":"title52","v":"Households"},{"$f":"title51","v":"Heat"}]
[null,null,null,null,null,null,null,null,null,null,null,null,null,null,null,null,null,null,null,null,null,null,null,null,null,null,null,null,null,null,null,null,null,null,null,{"$f":"$AI$207","v":"Heat "},null,null,null,null,null,{"$f":"title614","v":"Production cost"},{"$f":"title248&\" 1\"","v":"Size 1"},{"$f":"title248&\" 2\"","v":"Size 2"},{"$f":"title248&\" 3\"","v":"Size 3"},{"$f":"title248&\" 4\"","v":"Size 4"}]
[null,null,null,null,null,null,null,null,null,null,null,null,null,null,null,null,null,null,null,null,null,null,null,null,null,null,null,null,null,null,null,null,null,{"$f":"AH248","v":true},{"$f":"title98&\" 1\"","v":"Process 1"},{"$f":"IF($AH262,AJ248*AQ262,0)","v":{"$error":"#DIV/0!"}},{"$error":"#DIV/0!"},{"$error":"#DIV/0!"},{"$error":"#DIV/0!"},{"$f":"AVERAGEIF(AJ262:AM262,\">0\")","v":{"$error":"#DIV/0!"}},null,{"$f":"title98&\" 1\"","v":"Process 1"},{"$f":"INDIRECT(\"'Summary of results-comparative'!\"&AU262&$AQ$260)","v":{"$error":"#DIV/0!"}},{"$error":"#DIV/0!"},{"$error":"#DIV/0!"},{"$error":"#DIV/0!"},"$AK$","$AL$","$AM$","$AN$"]
[null,null,null,null,null,null,null,null,null,null,null,null,null,null,null,null,null,null,null,null,null,null,null,null,null,null,null,null,null,null,null,null,null,{"$f":"AH249","v":true},{"$f":"title98&\" 2\"","v":"Process 2"},{"$error":"#DIV/0!"},{"$error":"#DIV/0!"},{"$error":"#DIV/0!"},{"$error":"#DIV/0!"},{"$f":"AVERAGEIF(AJ263:AM263,\">0\")","v":{"$error":"#DIV/0!"}},null,{"$f":"title98&\" 2\"","v":"Process 2"},{"$error":"#DIV/0!"},{"$error":"#DIV/0!"},{"$error":"#DIV/0!"},{"$error":"#DIV/0!"},"$AY$","$AZ$","$BA$","$BB$"]
[null,null,null,null,null,null,null,null,null,null,null,null,null,null,null,null,null,null,null,null,null,null,null,null,null,null,null,null,null,null,null,null,null,{"$f":"AH250","v":true},{"$f":"title98&\" 3\"","v":"Process 3"},{"$error":"#DIV/0!"},{"$error":"#DIV/0!"},{"$error":"#DIV/0!"},{"$error":"#DIV/0!"},{"$f":"AVERAGEIF(AJ264:AM264,\">0\")","v":{"$error":"#DIV/0!"}},null,{"$f":"title98&\" 3\"","v":"Process 3"},{"$error":"#DIV/0!"},{"$error":"#DIV/0!"},{"$error":"#DIV/0!"},{"$error":"#DIV/0!"},"$BM$","$BN$","$BO$","$BP$"]
[null,null,null,null,null,null,null,null,null,null,null,null,null,null,null,null,null,null,null,null,null,null,null,null,null,null,null,null,null,null,null,null,null,{"$f":"AH251","v":true},{"$f":"title98&\" 4\"","v":"Process 4"},{"$error":"#DIV/0!"},{"$error":"#DIV/0!"},{"$error":"#DIV/0!"},{"$error":"#DIV/0!"},{"$f":"AVERAGEIF(AJ265:AM265,\">0\")","v":{"$error":"#DIV/0!"}},null,{"$f":"title98&\" 4\"","v":"Process 4"},{"$error":"#DIV/0!"},{"$error":"#DIV/0!"},{"$error":"#DIV/0!"},{"$error":"#DIV/0!"},"$CA$","$CB$","$CC$","$CD$"]
[]
[null,null,null,null,null,null,null,null,null,null,null,null,null,null,null,null,null,null,null,null,null,null,null,null,null,null,null,null,null,null,null,null,null,null,null,{"$f":"AI213","v":"Electricity "}]
[null,null,null,null,null,null,null,null,null,null,null,null,null,null,null,null,null,null,null,null,null,null,null,null,null,null,null,null,null,null,null,null,null,{"$f":"AH262","v":true},{"$f":"title98&\" 1\"","v":"Process 1"},{"$f":"IF($AH268,AJ248*AQ270,0)","v":{"$error":"#DIV/0!"}},{"$error":"#DIV/0!"},{"$error":"#DIV/0!"},{"$error":"#DIV/0!"},{"$f":"IFERROR(AVERAGEIF(AJ268:AM268,\">0\"),0)","v":0},null,"Data",213,{"$f":"title52","v":"Households"},{"$f":"title35","v":"Electricity"}]
[null,null,null,null,null,null,null,null,null,null,null,null,null,null,null,null,null,null,null,null,null,null,null,null,null,null,null,null,null,null,null,null,null,{"$f":"AH263","v":true},{"$f":"title98&\" 2\"","v":"Process 2"},{"$error":"#DIV/0!"},{"$error":"#DIV/0!"},{"$error":"#DIV/0!"},{"$error":"#DIV/0!"},{"$f":"IFERROR(AVERAGEIF(AJ269:AM269,\">0\"),0)","v":0},null,{"$f":"title614","v":"Production cost"},{"$f":"title248&\" 1\"","v":"Size 1"},{"$f":"title248&\" 2\"","v":"Size 2"},{"$f":"title248&\" 3\"","v":"Size 3"},{"$f":"title248&\" 4\"","v":"Size 4"}]
[null,null,null,null,null,null,null,null,null,null,null,null,null,null,null,null,null,null,null,null,null,null,null,null,null,null,null,null,null,null,null,null,null,{"$f":"AH264","v":true},{"$f":"title98&\" 3\"","v":"Process 3"},{"$error":"#DIV/0!"},{"$error":"#DIV/0!"},{"$error":"#DIV/0!"},{"$error":"#DIV/0!"},{"$f":"IFERROR(AVERAGEIF(AJ270:AM270,\">0\"),0)","v":0},null,{"$f":"title98&\" 1\"","v":"Process 1"},{"$f":"INDIRECT(\"'Summary of results-comparative'!\"&AU270&$AQ$268)","v":0},0,0,0,"$AK$","$AL$","$AM$","$AN$"]
[null,null,null,null,null,null,null,null,null,null,null,null,null,null,null,null,null,null,null,null,null,null,null,null,null,null,null,null,null,null,null,null,null,{"$f":"AH265","v":true},{"$f":"title98&\" 4\"","v":"Process 4"},{"$error":"#DIV/0!"},{"$error":"#DIV/0!"},{"$error":"#DIV/0!"},{"$error":"#DIV/0!"},{"$f":"IFERROR(AVERAGEIF(AJ271:AM271,\">0\"),0)","v":0},null,{"$f":"title98&\" 2\"","v":"Process 2"},0,0,0,0,"$AY$","$AZ$","$BA$","$BB$"]
[null,null,null,null,null,null,null,null,null,null,null,null,null,null,null,null,null,null,null,null,null,null,null,null,null,null,null,null,null,null,null,null,null,null,null,null,null,null,null,null,null,{"$f":"title98&\" 3\"","v":"Process 3"},0,0,0,0,"$BM$","$BN$","$BO$","$BP$"]
[null,null,null,null,null,null,null,null,null,null,null,null,null,null,null,null,null,null,null,null,null,null,null,null,null,null,null,null,null,null,null,null,null,null,null,null,null,null,null,null,null,{"$f":"title98&\" 4\"","v":"Process 4"},0,0,0,0,"$CA$","$CB$","$CC$","$CD$"]
[]
[]
[null,null,null,null,null,null,null,null,null,null,null,null,null,null,null,null,null,null,null,null,null,null,null,null,null,null,null,null,null,null,null,null,null,null,null,null,null,null,null,null,null,"Data",209,{"$f":"title55","v":"Industries"},{"$f":"title51","v":"Heat"}]
[null,null,null,null,null,null,null,null,null,null,null,null,null,null,null,null,null,null,null,null,null,null,null,null,null,null,null,null,null,null,null,null,null,null,null,{"$f":"$AI$207","v":"Heat "},null,null,null,null,null,{"$f":"title614","v":"Production cost"},{"$f":"title248&\" 1\"","v":"Size 1"},{"$f":"title248&\" 2\"","v":"Size 2"},{"$f":"title248&\" 3\"","v":"Size 3"},{"$f":"title248&\" 4\"","v":"Size 4"}]
[null,null,null,null,null,null,null,null,null,null,null,null,null,null,null,null,null,null,null,null,null,null,null,null,null,null,null,null,null,null,null,null,null,{"$f":"AH268","v":true},{"$f":"title98&\" 1\"","v":"Process 1"},{"$f":"IF($AH278,AJ248*AQ278,0)","v":{"$error":"#DIV/0!"}},{"$error":"#DIV/0!"},{"$error":"#DIV/0!"},{"$error":"#DIV/0!"},{"$f":"AVERAGEIF(AJ278:AM278,\">0\")","v":{"$error":"#DIV/0!"}},null,{"$f":"title98&\" 1\"","v":"Process 1"},{"$f":"INDIRECT(\"'Summary of results-comparative'!\"&AU278&$AQ$276)","v":{"$error":"#DIV/0!"}},{"$error":"#DIV/0!"},{"$error":"#DIV/0!"},{"$error":"#DIV/0!"},"$AK$","$AL$","$AM$","$AN$"]
[null,null,null,null,null,null,null,null,null,null,null,null,null,null,null,null,null,null,null,null,null,null,null,null,null,null,null,null,null,null,null,null,null,{"$f":"AH269","v":true},{"$f":"title98&\" 2\"","v":"Process 2"},{"$error":"#DIV/0!"},{"$error":"#DIV/0!"},{"$error":"#DIV/0!"},{"$error":"#DIV/0!"},{"$f":"AVERAGEIF(AJ279:AM279,\">0\")","v":{"$error":"#DIV/0!"}},null,{"$f":"title98&\" 2\"","v":"Process 2"},{"$error":"#DIV/0!"},{"$error":"#DIV/0!"},{"$error":"#DIV/0!"},{"$error":"#DIV/0!"},"$AY$","$AZ$","$BA$","$BB$"]
[null,null,null,null,null,null,null,null,null,null,null,null,null,null,null,null,null,null,null,null,null,null,null,null,null,null,null,null,null,null,null,null,null,{"$f":"AH270","v":true},{"$f":"title98&\" 3\"","v":"Process 3"},{"$f":"IF($AH280,AJ250*AQ280,0)","v":{"$error":"#DIV/0!"}},{"$error":"#DIV/0!"},{"$error":"#DIV/0!"},{"$error":"#DIV/0!"},{"$f":"AVERAGEIF(AJ280:AM280,\">0\")","v":{"$error":"#DIV/0!"}},null,{"$f":"title98&\" 3\"","v":"Process 3"},{"$error":"#DIV/0!"},{"$error":"#DIV/0!"},{"$error":"#DIV/0!"},{"$error":"#DIV/0!"},"$BM$","$BN$","$BO$","$BP$"]
[null,null,null,null,null,null,null,null,null,null,null,null,null,null,null,null,null,null,null,null,null,null,null,null,null,null,null,null,null,null,null,null,null,{"$f":"AH271","v":true},{"$f":"title98&\" 4\"","v":"Process 4"},{"$error":"#DIV/0!"},{"$error":"#DIV/0!"},{"$error":"#DIV/0!"},{"$error":"#DIV/0!"},{"$f":"AVERAGEIF(AJ281:AM281,\">0\")","v":{"$error":"#DIV/0!"}},null,{"$f":"title98&\" 4\"","v":"Process 4"},{"$error":"#DIV/0!"},{"$error":"#DIV/0!"},{"$error":"#DIV/0!"},{"$error":"#DIV/0!"},"$CA$","$CB$","$CC$","$CD$"]
[null,null,null,null,null,null,null,null,null,null,null,null,null,null,null,null,null,null,null,null,null,null,null,null,null,null,null,null,null,null,null,null,null,null,null,{"$f":"AJ267","v":"Electricity "}]
[]
[null,null,null,null,null,null,null,null,null,null,null,null,null,null,null,null,null,null,null,null,null,null,null,null,null,null,null,null,null,null,null,null,null,{"$f":"AH278","v":true},{"$f":"title98&\" 1\"","v":"Process 1"},{"$f":"IF($AH284,AJ248*AQ286,0)","v":{"$error":"#DIV/0!"}},{"$error":"#DIV/0!"},{"$error":"#DIV/0!"},{"$error":"#DIV/0!"},{"$f":"IFERROR(AVERAGEIF(AJ284:AM284,\">0\"),0)","v":0},null,"Data",214,{"$f":"title55","v":"Industries"},{"$f":"title35","v":"Electricity"}]
[null,null,null,null,null,null,null,null,null,null,null,null,null,null,null,null,null,null,null,null,null,null,null,null,null,null,null,null,null,null,null,null,null,{"$f":"AH279","v":true},{"$f":"title98&\" 2\"","v":"Process 2"},{"$error":"#DIV/0!"},{"$error":"#DIV/0!"},{"$error":"#DIV/0!"},{"$error":"#DIV/0!"},{"$f":"IFERROR(AVERAGEIF(AJ285:AM285,\">0\"),0)","v":0},null,{"$f":"title614","v":"Production cost"},{"$f":"title248&\" 1\"","v":"Size 1"},{"$f":"title248&\" 2\"","v":"Size 2"},{"$f":"title248&\" 3\"","v":"Size 3"},{"$f":"title248&\" 4\"","v":"Size 4"}]
[null,null,null,null,null,null,null,null,null,null,null,null,null,null,null,null,null,null,null,null,null,null,null,null,null,null,null,null,null,null,null,null,null,{"$f":"AH280","v":true},{"$f":"title98&\" 3\"","v":"Process 3"},{"$error":"#DIV/0!"},{"$error":"#DIV/0!"},{"$error":"#DIV/0!"},{"$error":"#DIV/0!"},{"$f":"IFERROR(AVERAGEIF(AJ286:AM286,\">0\"),0)","v":0},null,{"$f":"title98&\" 1\"","v":"Process 1"},{"$f":"INDIRECT(\"'Summary of results-comparative'!\"&AU286&$AQ$284)","v":0},0,0,0,"$AK$","$AL$","$AM$","$AN$"]
[null,null,null,null,null,null,null,null,null,null,null,null,null,null,null,null,null,null,null,null,null,null,null,null,null,null,null,null,null,null,null,null,null,{"$f":"AH281","v":true},{"$f":"title98&\" 4\"","v":"Process 4"},{"$error":"#DIV/0!"},{"$error":"#DIV/0!"},{"$error":"#DIV/0!"},{"$error":"#DIV/0!"},{"$f":"IFERROR(AVERAGEIF(AJ287:AM287,\">0\"),0)","v":0},null,{"$f":"title98&\" 2\"","v":"Process 2"},0,0,0,0,"$AY$","$AZ$","$BA$","$BB$"]
[null,null,null,null,null,null,null,null,null,null,null,null,null,null,null,null,null,null,null,null,null,null,null,null,null,null,null,null,null,null,null,null,null,null,null,null,null,null,null,null,null,{"$f":"title98&\" 3\"","v":"Process 3"},0,0,0,0,"$BM$","$BN$","$BO$","$BP$"]
[null,null,null,null,null,null,null,null,null,null,null,null,null,null,null,null,null,null,null,null,null,null,null,null,null,null,null,null,null,null,null,null,null,null,null,null,null,null,null,null,null,{"$f":"title98&\" 4\"","v":"Process 4"},0,0,0,0,"$CA$","$CB$","$CC$","$CD$"]
[null,null,null,null,null,null,null,null,null,null,null,null,null,null,null,null,null,null,null,null,null,null,null,null,null,null,null,null,null,null,null,null,null,null,true]
[null,null,null,null,null,null,null,null,null,null,null,null,null,null,null,null,null,null,null,null,null,null,null,null,null,null,null,null,null,null,null,null,null,null,null,{"$f":"IFERROR(AJ261,\"\")","v":"Heat "},null,{"$f":"IF(AM297=0,title650,title35)","v":"No Electricity Produced"}]
[null,null,null,null,null,null,null,null,null,null,null,null,null,null,null,null,null,null,null,null,null,null,null,null,null,null,null,null,null,null,null,null,null,null,null,{"$f":"IF(AND($AI$290,$AH293),title52,\"\")","v":"Households"},{"$f":"IF(AND($AI$290,$AH293),\"\",title55)","v":""},{"$f":"IF(AND($AI$290,$AH293),title52,\"\")","v":"Households"},{"$f":"IF(AND($AI$290,$AH293),\"\",title55)","v":""}]
[null,null,null,null,null,null,null,null,null,null,null,null,null,null,null,null,null,null,null,null,null,null,null,null,null,null,null,null,null,null,null,null,null,{"$f":"AH284","v":true},{"$f":"title98&\" 1\"","v":"Process 1"},{"$f":"IFERROR(IF(AND(AND($AI$290,$AH293),$AH293),AN262,0),0)","v":0},{"$f":"IFERROR(IF( NOT(AND($AI$290,$AH293)),AN278,0),0)","v":0},{"$f":"IFERROR(IF( (AND($AI$290,$AH293)),AN268,0),0)","v":0},{"$f":"IFERROR(IF( NOT(AND($AI$290,$AH293)),AN284,0),0)","v":0}]
[null,null,null,null,null,null,null,null,null,null,null,null,null,null,null,null,null,null,null,null,null,null,null,null,null,null,null,null,null,null,null,null,null,{"$f":"AH285","v":true},{"$f":"title98&\" 2\"","v":"Process 2"},{"$f":"IFERROR(IF(AND(AND($AI$290,$AH293),$AH294),AN263,0),0)","v":0},{"$f":"IFERROR(IF( NOT(AND($AI$290,$AH293)),AN279,0),0)","v":0},{"$f":"IFERROR(IF( (AND($AI$290,$AH293)),AN269,0),0)","v":0},{"$f":"IFERROR(IF( NOT(AND($AI$290,$AH293)),AN285,0),0)","v":0}]
[null,null,null,null,null,null,null,null,null,null,null,null,null,null,null,null,null,null,null,null,null,null,null,null,null,null,null,null,null,null,null,null,null,{"$f":"AH286","v":true},{"$f":"title98&\" 3\"","v":"Process 3"},{"$f":"IFERROR(IF(AND(AND($AI$290,$AH293),$AH295),AN264,0),0)","v":0},{"$f":"IFERROR(IF( NOT(AND($AI$290,$AH293)),AN280,0),0)","v":0},{"$f":"IFERROR(IF( (AND($AI$290,$AH293)),AN270,0),0)","v":0},{"$f":"IFERROR(IF( NOT(AND($AI$290,$AH293)),AN286,0),0)","v":0}]
[null,null,null,null,null,null,null,null,null,null,null,null,null,null,null,null,null,null,null,null,null,null,null,null,null,null,null,null,null,null,null,null,null,{"$f":"AH287","v":true},{"$f":"title98&\" 4\"","v":"Process 4"},{"$f":"IFERROR(IF(AND(AND($AI$290,$AH293),$AH296),AN265,0),0)","v":0},{"$f":"IFERROR(IF( NOT(AND($AI$290,$AH293)),AN281,0),0)","v":0},{"$f":"IFERROR(IF( (AND($AI$290,$AH293)),AN271,0),0)","v":0},{"$f":"IFERROR(IF( NOT(AND($AI$290,$AH293)),AN287,0),0)","v":0}]
[null,null,null,null,null,null,null,null,null,null,null,null,null,null,null,null,null,null,null,null,null,null,null,null,null,null,null,null,null,null,null,null,null,null,null,null,null,null,{"$f":"SUM(AL293:AM296)","v":0}]
[]
[null,null,null,null,null,null,null,null,null,null,null,null,null,null,null,null,null,null,null,null,null,null,null,null,null,null,null,null,null,null,null,null,null,null,null,null,null,null,null,null,null,"Data",201,{"$f":"title629","v":"Jobs"}]
[null,null,null,null,null,null,null,null,null,null,null,null,null,null,null,null,null,null,null,null,null,null,null,null,null,null,null,null,null,null,null,null,null,null,null,{"$f":"title248&\" 1\"","v":"Size 1"},{"$f":"title248&\" 2\"","v":"Size 2"},{"$f":"title248&\" 3\"","v":"Size 3"},{"$f":"title248&\" 4\"","v":"Size 4"},null,null,{"$f":"title614","v":"Production cost"},{"$f":"title248&\" 1\"","v":"Size 1"},{"$f":"title248&\" 2\"","v":"Size 2"},{"$f":"title248&\" 3\"","v":"Size 3"},{"$f":"title248&\" 4\"","v":"Size 4"}]
[null,null,null,null,null,null,null,null,null,null,null,null,null,null,null,null,null,null,null,null,null,null,null,null,null,null,null,null,null,null,null,null,null,{"$f":"AH293","v":true},{"$f":"title98&\" 1\"","v":"Process 1"},{"$f":"IF($AH301,AJ248*AQ301,0)","v":{"$error":"#DIV/0!"}},{"$f":"IF($AH301,AK248*AR301,0)","v":{"$error":"#DIV/0!"}},{"$error":"#DIV/0!"},{"$error":"#DIV/0!"},null,null,{"$f":"title98&\" 1\"","v":"Process 1"},{"$f":"INDIRECT(\"'Summary of results-comparative'!\"&AU301&$AQ$299)","v":0},0,0,0,{"$f":"LEFT(CELL(\"address\",AK$173),4)","v":"$AK$"},{"$f":"LEFT(CELL(\"address\",AL$173),4)","v":"$AL$"},{"$f":"LEFT(CELL(\"address\",AM$173),4)","v":"$AM$"},{"$f":"LEFT(CELL(\"address\",AN$173),4)","v":"$AN$"}]
[null,null,null,null,null,null,null,null,null,null,null,null,null,null,null,null,null,null,null,null,null,null,null,null,null,null,null,null,null,null,null,null,null,{"$f":"AH294","v":true},{"$f":"title98&\" 2\"","v":"Process 2"},{"$f":"IF($AH302,AJ249*AQ302,0)","v":{"$error":"#DIV/0!"}},{"$error":"#DIV/0!"},{"$error":"#DIV/0!"},{"$error":"#DIV/0!"},null,null,{"$f":"title98&\" 2\"","v":"Process 2"},0,0,0,0,{"$f":"LEFT(CELL(\"address\",AY$173),4)","v":"$AY$"},{"$f":"LEFT(CELL(\"address\",AZ$173),4)","v":"$AZ$"},{"$f":"LEFT(CELL(\"address\",BA$173),4)","v":"$BA$"},{"$f":"LEFT(CELL(\"address\",BB$173),4)","v":"$BB$"}]
[null,null,null,null,null,null,null,null,null,null,null,null,null,null,null,null,null,null,null,null,null,null,null,null,null,null,null,null,null,null,null,null,null,{"$f":"AH295","v":true},{"$f":"title98&\" 3\"","v":"Process 3"},{"$f":"IF($AH303,AJ250*AQ303,0)","v":{"$error":"#DIV/0!"}},{"$error":"#DIV/0!"},{"$error":"#DIV/0!"},{"$error":"#DIV/0!"},null,null,{"$f":"title98&\" 3\"","v":"Process 3"},0,0,0,0,{"$f":"LEFT(CELL(\"address\",BM$173),4)","v":"$BM$"},{"$f":"LEFT(CELL(\"address\",BN$173),4)","v":"$BN$"},{"$f":"LEFT(CELL(\"address\",BO$173),4)","v":"$BO$"},{"$f":"LEFT(CELL(\"address\",BP$173),4)","v":"$BP$"}]
[null,null,null,null,null,null,null,null,null,null,null,null,null,null,null,null,null,null,null,null,null,null,null,null,null,null,null,null,null,null,null,null,null,{"$f":"AH296","v":true},{"$f":"title98&\" 4\"","v":"Process 4"},{"$f":"IF($AH304,AJ251*AQ304,0)","v":{"$error":"#DIV/0!"}},{"$error":"#DIV/0!"},{"$error":"#DIV/0!"},{"$error":"#DIV/0!"},null,null,{"$f":"title98&\" 4\"","v":"Process 4"},0,0,0,0,{"$f":"LEFT(CELL(\"address\",CA$173),4)","v":"$CA$"},{"$f":"LEFT(CELL(\"address\",CB$173),4)","v":"$CB$"},{"$f":"LEFT(CELL(\"address\",CC$173),4)","v":"$CC$"},{"$f":"LEFT(CELL(\"address\",CD$173),4)","v":"$CD$"}]
[]
[]
[null,null,null,null,null,null,null,null,null,null,null,null,null,null,null,null,null,null,null,null,null,null,null,null,null,null,null,null,null,null,null,null,null,null,"NPV",null,null,null,null,null,null,"Data",220,"NPV"]
[null,null,null,null,null,null,null,null,null,null,null,null,null,null,null,null,null,null,null,null,null,null,null,null,null,null,null,null,null,null,null,null,null,null,null,{"$f":"title248&\" 1\"","v":"Size 1"},{"$f":"title248&\" 2\"","v":"Size 2"},{"$f":"title248&\" 3\"","v":"Size 3"},{"$f":"title248&\" 4\"","v":"Size 4"},null,null,{"$f":"title614","v":"Production cost"},{"$f":"title248&\" 1\"","v":"Size 1"},{"$f":"title248&\" 2\"","v":"Size 2"},{"$f":"title248&\" 3\"","v":"Size 3"},{"$f":"title248&\" 4\"","v":"Size 4"}]
[null,null,null,null,null,null,null,null,null,null,null,null,null,null,null,null,null,null,null,null,null,null,null,null,null,null,null,null,null,null,null,null,null,{"$f":"AH301","v":true},{"$f":"title98&\" 1\"","v":"Process 1"},{"$f":"IF($AH309,AQ309,0)","v":{"$error":"#DIV/0!"}},{"$error":"#DIV/0!"},{"$error":"#DIV/0!"},{"$error":"#DIV/0!"},null,null,{"$f":"title98&\" 1\"","v":"Process 1"},{"$f":"INDIRECT(\"'Summary of results-comparative'!\"&AU309&$AQ$307)","v":{"$error":"#DIV/0!"}},{"$error":"#DIV/0!"},{"$error":"#DIV/0!"},{"$error":"#DIV/0!"},{"$f":"LEFT(CELL(\"address\",AK$173),4)","v":"$AK$"},{"$f":"LEFT(CELL(\"address\",AL$173),4)","v":"$AL$"},{"$f":"LEFT(CELL(\"address\",AM$173),4)","v":"$AM$"},{"$f":"LEFT(CELL(\"address\",AN$173),4)","v":"$AN$"}]
[null,null,null,null,null,null,null,null,null,null,null,null,null,null,null,null,null,null,null,null,null,null,null,null,null,null,null,null,null,null,null,null,null,{"$f":"AH302","v":true},{"$f":"title98&\" 2\"","v":"Process 2"},{"$error":"#DIV/0!"},{"$error":"#DIV/0!"},{"$error":"#DIV/0!"},{"$error":"#DIV/0!"},null,null,{"$f":"title98&\" 2\"","v":"Process 2"},{"$error":"#DIV/0!"},{"$error":"#DIV/0!"},{"$error":"#DIV/0!"},{"$error":"#DIV/0!"},{"$f":"LEFT(CELL(\"address\",AY$173),4)","v":"$AY$"},{"$f":"LEFT(CELL(\"address\",AZ$173),4)","v":"$AZ$"},{"$f":"LEFT(CELL(\"address\",BA$173),4)","v":"$BA$"},{"$f":"LEFT(CELL(\"address\",BB$173),4)","v":"$BB$"}]
[null,null,null,null,null,null,null,null,null,null,null,null,null,null,null,null,null,null,null,null,null,null,null,null,null,null,null,null,null,null,null,null,null,{"$f":"AH303","v":true},{"$f":"title98&\" 3\"","v":"Process 3"},{"$error":"#DIV/0!"},{"$error":"#DIV/0!"},{"$error":"#DIV/0!"},{"$error":"#DIV/0!"},null,null,{"$f":"title98&\" 3\"","v":"Process 3"},{"$error":"#DIV/0!"},{"$error":"#DIV/0!"},{"$error":"#DIV/0!"},{"$error":"#DIV/0!"},{"$f":"LEFT(CELL(\"address\",BM$173),4)","v":"$BM$"},{"$f":"LEFT(CELL(\"address\",BN$173),4)","v":"$BN$"},{"$f":"LEFT(CELL(\"address\",BO$173),4)","v":"$BO$"},{"$f":"LEFT(CELL(\"address\",BP$173),4)","v":"$BP$"}]
[null,null,null,null,null,null,null,null,null,null,null,null,null,null,null,null,null,null,null,null,null,null,null,null,null,null,null,null,null,null,null,null,null,{"$f":"AH304","v":true},{"$f":"title98&\" 4\"","v":"Process 4"},{"$error":"#DIV/0!"},{"$error":"#DIV/0!"},{"$error":"#DIV/0!"},{"$error":"#DIV/0!"},null,null,{"$f":"title98&\" 4\"","v":"Process 4"},{"$error":"#DIV/0!"},{"$error":"#DIV/0!"},{"$error":"#DIV/0!"},{"$error":"#DIV/0!"},{"$f":"LEFT(CELL(\"address\",CA$173),4)","v":"$CA$"},{"$f":"LEFT(CELL(\"address\",CB$173),4)","v":"$CB$"},{"$f":"LEFT(CELL(\"address\",CC$173),4)","v":"$CC$"},{"$f":"LEFT(CELL(\"address\",CD$173),4)","v":"$CD$"}]
[]
[]
[null,null,null,null,null,null,null,null,null,null,null,null,null,null,null,null,null,null,null,null,null,null,null,null,null,null,null,null,null,null,null,null,null,null,"IRR",null,null,null,null,null,null,"Data",221,"IRR"]
[null,null,null,null,null,null,null,null,null,null,null,null,null,null,null,null,null,null,null,null,null,null,null,null,null,null,null,null,null,null,null,null,null,null,null,{"$f":"title248&\" 1\"","v":"Size 1"},{"$f":"title248&\" 2\"","v":"Size 2"},{"$f":"title248&\" 3\"","v":"Size 3"},{"$f":"title248&\" 4\"","v":"Size 4"},null,null,{"$f":"title614","v":"Production cost"},{"$f":"title248&\" 1\"","v":"Size 1"},{"$f":"title248&\" 2\"","v":"Size 2"},{"$f":"title248&\" 3\"","v":"Size 3"},{"$f":"title248&\" 4\"","v":"Size 4"}]
[null,null,null,null,null,null,null,null,null,null,null,null,null,null,null,null,null,null,null,null,null,null,null,null,null,null,null,null,null,null,null,null,null,{"$f":"AH309","v":true},{"$f":"title98&\" 1\"","v":"Process 1"},{"$f":"IF($AH317,AQ317,0)","v":{"$error":"#DIV/0!"}},{"$error":"#DIV/0!"},{"$error":"#DIV/0!"},{"$error":"#DIV/0!"},null,null,{"$f":"title98&\" 1\"","v":"Process 1"},{"$f":"INDIRECT(\"'Summary of results-comparative'!\"&AU317&$AQ$315)","v":{"$error":"#DIV/0!"}},{"$error":"#DIV/0!"},{"$error":"#DIV/0!"},{"$error":"#DIV/0!"},{"$f":"LEFT(CELL(\"address\",AK$173),4)","v":"$AK$"},{"$f":"LEFT(CELL(\"address\",AL$173),4)","v":"$AL$"},{"$f":"LEFT(CELL(\"address\",AM$173),4)","v":"$AM$"},{"$f":"LEFT(CELL(\"address\",AN$173),4)","v":"$AN$"}]
[null,null,null,null,null,null,null,null,null,null,null,null,null,null,null,null,null,null,null,null,null,null,null,null,null,null,null,null,null,null,null,null,null,{"$f":"AH310","v":true},{"$f":"title98&\" 2\"","v":"Process 2"},{"$error":"#DIV/0!"},{"$error":"#DIV/0!"},{"$error":"#DIV/0!"},{"$error":"#DIV/0!"},null,null,{"$f":"title98&\" 2\"","v":"Process 2"},{"$error":"#DIV/0!"},{"$error":"#DIV/0!"},{"$error":"#DIV/0!"},{"$error":"#DIV/0!"},{"$f":"LEFT(CELL(\"address\",AY$173),4)","v":"$AY$"},{"$f":"LEFT(CELL(\"address\",AZ$173),4)","v":"$AZ$"},{"$f":"LEFT(CELL(\"address\",BA$173),4)","v":"$BA$"},{"$f":"LEFT(CELL(\"address\",BB$173),4)","v":"$BB$"}]
[null,null,null,null,null,null,null,null,null,null,null,null,null,null,null,null,null,null,null,null,null,null,null,null,null,null,null,null,null,null,null,null,null,{"$f":"AH311","v":true},{"$f":"title98&\" 3\"","v":"Process 3"},{"$error":"#DIV/0!"},{"$error":"#DIV/0!"},{"$error":"#DIV/0!"},{"$error":"#DIV/0!"},null,null,{"$f":"title98&\" 3\"","v":"Process 3"},{"$error":"#DIV/0!"},{"$error":"#DIV/0!"},{"$error":"#DIV/0!"},{"$error":"#DIV/0!"},{"$f":"LEFT(CELL(\"address\",BM$173),4)","v":"$BM$"},{"$f":"LEFT(CELL(\"address\",BN$173),4)","v":"$BN$"},{"$f":"LEFT(CELL(\"address\",BO$173),4)","v":"$BO$"},{"$f":"LEFT(CELL(\"address\",BP$173),4)","v":"$BP$"}]
[null,null,null,null,null,null,null,null,null,null,null,null,null,null,null,null,null,null,null,null,null,null,null,null,null,null,null,null,null,null,null,null,null,{"$f":"AH312","v":true},{"$f":"title98&\" 4\"","v":"Process 4"},{"$error":"#DIV/0!"},{"$error":"#DIV/0!"},{"$error":"#DIV/0!"},{"$error":"#DIV/0!"},null,null,{"$f":"title98&\" 4\"","v":"Process 4"},{"$error":"#DIV/0!"},{"$error":"#DIV/0!"},{"$error":"#DIV/0!"},{"$error":"#DIV/0!"},{"$f":"LEFT(CELL(\"address\",CA$173),4)","v":"$CA$"},{"$f":"LEFT(CELL(\"address\",CB$173),4)","v":"$CB$"},{"$f":"LEFT(CELL(\"address\",CC$173),4)","v":"$CC$"},{"$f":"LEFT(CELL(\"address\",CD$173),4)","v":"$CD$"}]